{"text_format":"1","workbook":"xlsx","n_sheets":14,"sheets":["Log","Coding Generator","WO Simulator","Account Simulator","Product to Account","PRODUCTS","WORKORDERS","CHART OF ACCOUNTS","Prod COA","Statement","Work Order Master","FRS CC Master","WO UBW - DATA","WO Sims"],"not_rendered":{"charts":0,"images":0,"macros":1,"external_links":4,"defined_names":55,"comments":0,"pivot_tables":5},"unopened":[],"bounds":{"document_bytes":16777216,"sheet_cells":100000,"rows_first":2000,"rows_last":500,"rows_between":2000,"halvings":0,"cell_chars":16384,"cell_head_chars":4096},"cells_cut":0,"cells_raw":0,"read":"whole","date_system":"1900"}

{"sheet":"Log","index":0,"n_rows":12,"n_cols":3,"rows_kept":12,"cut":false,"hidden":false,"merged":[]}
["Date:","2021-08-31"]
["Revision:",11]
["Updated by: ","Jose G"]
[null,"Items added"]
[null,"Account","Account description"]
[null,"2370","Deferred Revenue - Tourism Chair"]
[null,"2371","Deferred Revenue - Aboriginal Early Childhood Development Chair"]
[null,"3071","Unrestricted Statement of Remeasurement - Chairs"]
[null,"6020-3","Fees and Memberships - Institutional (GP)"]
[null,"6025-3","Fees and Memberships - Employee (GP)"]
[null,"7707-1","Capital Purchases - Equipment (NT)"]
[null,"8297","Internal Consumption - Budget Transfers"]

{"sheet":"Coding Generator","index":1,"n_rows":205,"n_cols":14,"rows_kept":205,"cut":false,"hidden":false,"merged":[]}
["Steps:","1. Copy desired FRS cost centres, then paste in the yellow section",null,null,null,null,null,null,null,"1. Copy desired FRS object codes, then paste in the yellow section"]
[null,"2. See for the converted values in the ouptput section",null,null,null,null,null,null,null,"2. See for the converted values in the ouptput section"]
[null,"3. If multiple Act Codes then find the appropiate in the WO simulator"]
[null,"Input","FIS - WORK ORDER GENERATOR (OUTPUT)",null,null,null,null,null,null,"Input","FIS - ACCOUNT  GENERATOR (OUTPUT)"]
["Item no.","FRS CC","FIS - WO","FIS-WO Description","FIS - ACT/Intake","FIS - Activity Code Description","Multiple?",null,"Item no.","FRS Obj C","Account","Description","Account type","Account Category"]
[1,null,{"$f":"IF($B6=\"\",\"\",IFERROR(INDEX('Work Order Master'!K:K,MATCH('Coding Generator'!$B6,'Work Order Master'!$S:$S,0)),\"Contact Finance\"))","v":""},{"$f":"IF($B6=\"\",\"\",IFERROR(INDEX('Work Order Master'!L:L,MATCH('Coding Generator'!$B6,'Work Order Master'!$S:$S,0)),\"Contact Finance\"))","v":""},{"$f":"IF($B6=\"\",\"\",IFERROR(INDEX('Work Order Master'!M:M,MATCH('Coding Generator'!$B6,'Work Order Master'!$S:$S,0)),\"Contact Finance\"))","v":""},{"$f":"IF($B6=\"\",\"\",IFERROR(INDEX('Work Order Master'!N:N,MATCH('Coding Generator'!$B6,'Work Order Master'!$S:$S,0)),\"Contact Finance\"))","v":""},{"$f":"IF($B6=\"\",\"\",IFERROR(INDEX('Work Order Master'!U:U,MATCH('Coding Generator'!$B6,'Work Order Master'!$S:$S,0)),\"Contact Finance\"))","v":""},null,1,null,{"$f":"IF($J6=\"\",\"\",IFERROR(INDEX('CHART OF ACCOUNTS'!G:G,MATCH('Coding Generator'!$J6,'CHART OF ACCOUNTS'!$N:$N,0)),\"Contact Finance\"))","v":""},{"$f":"IF($J6=\"\",\"\",IFERROR(INDEX('CHART OF ACCOUNTS'!H:H,MATCH('Coding Generator'!$J6,'CHART OF ACCOUNTS'!$N:$N,0)),\"Contact Finance\"))","v":""},{"$f":"IF($J6=\"\",\"\",IFERROR(INDEX('CHART OF ACCOUNTS'!D:D,MATCH('Coding Generator'!$J6,'CHART OF ACCOUNTS'!$N:$N,0)),\"Contact Finance\"))","v":""},{"$f":"IF($J6=\"\",\"\",IFERROR(INDEX('CHART OF ACCOUNTS'!F:F,MATCH('Coding Generator'!$J6,'CHART OF ACCOUNTS'!$N:$N,0)),\"Contact Finance\"))","v":""}]
[{"$f":"A6+1","v":2},null,{"$f":"IF($B7=\"\",\"\",IFERROR(INDEX('Work Order Master'!K:K,MATCH('Coding Generator'!$B7,'Work Order Master'!$S:$S,0)),\"Contact Finance\"))","v":""},{"$f":"IF($B7=\"\",\"\",IFERROR(INDEX('Work Order Master'!L:L,MATCH('Coding Generator'!$B7,'Work Order Master'!$S:$S,0)),\"Contact Finance\"))","v":""},{"$f":"IF($B7=\"\",\"\",IFERROR(INDEX('Work Order Master'!M:M,MATCH('Coding Generator'!$B7,'Work Order Master'!$S:$S,0)),\"Contact Finance\"))","v":""},{"$f":"IF($B7=\"\",\"\",IFERROR(INDEX('Work Order Master'!N:N,MATCH('Coding Generator'!$B7,'Work Order Master'!$S:$S,0)),\"Contact Finance\"))","v":""},{"$f":"IF($B7=\"\",\"\",IFERROR(INDEX('Work Order Master'!U:U,MATCH('Coding Generator'!$B7,'Work Order Master'!$S:$S,0)),\"Contact Finance\"))","v":""},null,{"$f":"I6+1","v":2},null,{"$f":"IF($J7=\"\",\"\",IFERROR(INDEX('CHART OF ACCOUNTS'!G:G,MATCH('Coding Generator'!$J7,'CHART OF ACCOUNTS'!$N:$N,0)),\"Contact Finance\"))","v":""},{"$f":"IF($J7=\"\",\"\",IFERROR(INDEX('CHART OF ACCOUNTS'!H:H,MATCH('Coding Generator'!$J7,'CHART OF ACCOUNTS'!$N:$N,0)),\"Contact Finance\"))","v":""},{"$f":"IF($J7=\"\",\"\",IFERROR(INDEX('CHART OF ACCOUNTS'!D:D,MATCH('Coding Generator'!$J7,'CHART OF ACCOUNTS'!$N:$N,0)),\"Contact Finance\"))","v":""},{"$f":"IF($J7=\"\",\"\",IFERROR(INDEX('CHART OF ACCOUNTS'!F:F,MATCH('Coding Generator'!$J7,'CHART OF ACCOUNTS'!$N:$N,0)),\"Contact Finance\"))","v":""}]
[{"$f":"A7+1","v":3},null,{"$f":"IF($B8=\"\",\"\",IFERROR(INDEX('Work Order Master'!K:K,MATCH('Coding Generator'!$B8,'Work Order Master'!$S:$S,0)),\"Contact Finance\"))","v":""},{"$f":"IF($B8=\"\",\"\",IFERROR(INDEX('Work Order Master'!L:L,MATCH('Coding Generator'!$B8,'Work Order Master'!$S:$S,0)),\"Contact Finance\"))","v":""},{"$f":"IF($B8=\"\",\"\",IFERROR(INDEX('Work Order Master'!M:M,MATCH('Coding Generator'!$B8,'Work Order Master'!$S:$S,0)),\"Contact Finance\"))","v":""},{"$f":"IF($B8=\"\",\"\",IFERROR(INDEX('Work Order Master'!N:N,MATCH('Coding Generator'!$B8,'Work Order Master'!$S:$S,0)),\"Contact Finance\"))","v":""},{"$f":"IF($B8=\"\",\"\",IFERROR(INDEX('Work Order Master'!U:U,MATCH('Coding Generator'!$B8,'Work Order Master'!$S:$S,0)),\"Contact Finance\"))","v":""},null,{"$f":"I7+1","v":3},null,{"$f":"IF($J8=\"\",\"\",IFERROR(INDEX('CHART OF ACCOUNTS'!G:G,MATCH('Coding Generator'!$J8,'CHART OF ACCOUNTS'!$N:$N,0)),\"Contact Finance\"))","v":""},{"$f":"IF($J8=\"\",\"\",IFERROR(INDEX('CHART OF ACCOUNTS'!H:H,MATCH('Coding Generator'!$J8,'CHART OF ACCOUNTS'!$N:$N,0)),\"Contact Finance\"))","v":""},{"$f":"IF($J8=\"\",\"\",IFERROR(INDEX('CHART OF ACCOUNTS'!D:D,MATCH('Coding Generator'!$J8,'CHART OF ACCOUNTS'!$N:$N,0)),\"Contact Finance\"))","v":""},{"$f":"IF($J8=\"\",\"\",IFERROR(INDEX('CHART OF ACCOUNTS'!F:F,MATCH('Coding Generator'!$J8,'CHART OF ACCOUNTS'!$N:$N,0)),\"Contact Finance\"))","v":""}]
[4,null,{"$f":"IF($B9=\"\",\"\",IFERROR(INDEX('Work Order Master'!K:K,MATCH('Coding Generator'!$B9,'Work Order Master'!$S:$S,0)),\"Contact Finance\"))","v":""},{"$f":"IF($B9=\"\",\"\",IFERROR(INDEX('Work Order Master'!L:L,MATCH('Coding Generator'!$B9,'Work Order Master'!$S:$S,0)),\"Contact Finance\"))","v":""},{"$f":"IF($B9=\"\",\"\",IFERROR(INDEX('Work Order Master'!M:M,MATCH('Coding Generator'!$B9,'Work Order Master'!$S:$S,0)),\"Contact Finance\"))","v":""},{"$f":"IF($B9=\"\",\"\",IFERROR(INDEX('Work Order Master'!N:N,MATCH('Coding Generator'!$B9,'Work Order Master'!$S:$S,0)),\"Contact Finance\"))","v":""},{"$f":"IF($B9=\"\",\"\",IFERROR(INDEX('Work Order Master'!U:U,MATCH('Coding Generator'!$B9,'Work Order Master'!$S:$S,0)),\"Contact Finance\"))","v":""},null,4,null,{"$f":"IF($J9=\"\",\"\",IFERROR(INDEX('CHART OF ACCOUNTS'!G:G,MATCH('Coding Generator'!$J9,'CHART OF ACCOUNTS'!$N:$N,0)),\"Contact Finance\"))","v":""},{"$f":"IF($J9=\"\",\"\",IFERROR(INDEX('CHART OF ACCOUNTS'!H:H,MATCH('Coding Generator'!$J9,'CHART OF ACCOUNTS'!$N:$N,0)),\"Contact Finance\"))","v":""},{"$f":"IF($J9=\"\",\"\",IFERROR(INDEX('CHART OF ACCOUNTS'!D:D,MATCH('Coding Generator'!$J9,'CHART OF ACCOUNTS'!$N:$N,0)),\"Contact Finance\"))","v":""},{"$f":"IF($J9=\"\",\"\",IFERROR(INDEX('CHART OF ACCOUNTS'!F:F,MATCH('Coding Generator'!$J9,'CHART OF ACCOUNTS'!$N:$N,0)),\"Contact Finance\"))","v":""}]
[5,null,{"$f":"IF($B10=\"\",\"\",IFERROR(INDEX('Work Order Master'!K:K,MATCH('Coding Generator'!$B10,'Work Order Master'!$S:$S,0)),\"Contact Finance\"))","v":""},{"$f":"IF($B10=\"\",\"\",IFERROR(INDEX('Work Order Master'!L:L,MATCH('Coding Generator'!$B10,'Work Order Master'!$S:$S,0)),\"Contact Finance\"))","v":""},{"$f":"IF($B10=\"\",\"\",IFERROR(INDEX('Work Order Master'!M:M,MATCH('Coding Generator'!$B10,'Work Order Master'!$S:$S,0)),\"Contact Finance\"))","v":""},{"$f":"IF($B10=\"\",\"\",IFERROR(INDEX('Work Order Master'!N:N,MATCH('Coding Generator'!$B10,'Work Order Master'!$S:$S,0)),\"Contact Finance\"))","v":""},{"$f":"IF($B10=\"\",\"\",IFERROR(INDEX('Work Order Master'!U:U,MATCH('Coding Generator'!$B10,'Work Order Master'!$S:$S,0)),\"Contact Finance\"))","v":""},null,5,null,{"$f":"IF($J10=\"\",\"\",IFERROR(INDEX('CHART OF ACCOUNTS'!G:G,MATCH('Coding Generator'!$J10,'CHART OF ACCOUNTS'!$N:$N,0)),\"Contact Finance\"))","v":""},{"$f":"IF($J10=\"\",\"\",IFERROR(INDEX('CHART OF ACCOUNTS'!H:H,MATCH('Coding Generator'!$J10,'CHART OF ACCOUNTS'!$N:$N,0)),\"Contact Finance\"))","v":""},{"$f":"IF($J10=\"\",\"\",IFERROR(INDEX('CHART OF ACCOUNTS'!D:D,MATCH('Coding Generator'!$J10,'CHART OF ACCOUNTS'!$N:$N,0)),\"Contact Finance\"))","v":""},{"$f":"IF($J10=\"\",\"\",IFERROR(INDEX('CHART OF ACCOUNTS'!F:F,MATCH('Coding Generator'!$J10,'CHART OF ACCOUNTS'!$N:$N,0)),\"Contact Finance\"))","v":""}]
[6,null,{"$f":"IF($B11=\"\",\"\",IFERROR(INDEX('Work Order Master'!K:K,MATCH('Coding Generator'!$B11,'Work Order Master'!$S:$S,0)),\"Contact Finance\"))","v":""},{"$f":"IF($B11=\"\",\"\",IFERROR(INDEX('Work Order Master'!L:L,MATCH('Coding Generator'!$B11,'Work Order Master'!$S:$S,0)),\"Contact Finance\"))","v":""},{"$f":"IF($B11=\"\",\"\",IFERROR(INDEX('Work Order Master'!M:M,MATCH('Coding Generator'!$B11,'Work Order Master'!$S:$S,0)),\"Contact Finance\"))","v":""},{"$f":"IF($B11=\"\",\"\",IFERROR(INDEX('Work Order Master'!N:N,MATCH('Coding Generator'!$B11,'Work Order Master'!$S:$S,0)),\"Contact Finance\"))","v":""},{"$f":"IF($B11=\"\",\"\",IFERROR(INDEX('Work Order Master'!U:U,MATCH('Coding Generator'!$B11,'Work Order Master'!$S:$S,0)),\"Contact Finance\"))","v":""},null,6,null,{"$f":"IF($J11=\"\",\"\",IFERROR(INDEX('CHART OF ACCOUNTS'!G:G,MATCH('Coding Generator'!$J11,'CHART OF ACCOUNTS'!$N:$N,0)),\"Contact Finance\"))","v":""},{"$f":"IF($J11=\"\",\"\",IFERROR(INDEX('CHART OF ACCOUNTS'!H:H,MATCH('Coding Generator'!$J11,'CHART OF ACCOUNTS'!$N:$N,0)),\"Contact Finance\"))","v":""},{"$f":"IF($J11=\"\",\"\",IFERROR(INDEX('CHART OF ACCOUNTS'!D:D,MATCH('Coding Generator'!$J11,'CHART OF ACCOUNTS'!$N:$N,0)),\"Contact Finance\"))","v":""},{"$f":"IF($J11=\"\",\"\",IFERROR(INDEX('CHART OF ACCOUNTS'!F:F,MATCH('Coding Generator'!$J11,'CHART OF ACCOUNTS'!$N:$N,0)),\"Contact Finance\"))","v":""}]
[7,null,{"$f":"IF($B12=\"\",\"\",IFERROR(INDEX('Work Order Master'!K:K,MATCH('Coding Generator'!$B12,'Work Order Master'!$S:$S,0)),\"Contact Finance\"))","v":""},{"$f":"IF($B12=\"\",\"\",IFERROR(INDEX('Work Order Master'!L:L,MATCH('Coding Generator'!$B12,'Work Order Master'!$S:$S,0)),\"Contact Finance\"))","v":""},{"$f":"IF($B12=\"\",\"\",IFERROR(INDEX('Work Order Master'!M:M,MATCH('Coding Generator'!$B12,'Work Order Master'!$S:$S,0)),\"Contact Finance\"))","v":""},{"$f":"IF($B12=\"\",\"\",IFERROR(INDEX('Work Order Master'!N:N,MATCH('Coding Generator'!$B12,'Work Order Master'!$S:$S,0)),\"Contact Finance\"))","v":""},{"$f":"IF($B12=\"\",\"\",IFERROR(INDEX('Work Order Master'!U:U,MATCH('Coding Generator'!$B12,'Work Order Master'!$S:$S,0)),\"Contact Finance\"))","v":""},null,7,null,{"$f":"IF($J12=\"\",\"\",IFERROR(INDEX('CHART OF ACCOUNTS'!G:G,MATCH('Coding Generator'!$J12,'CHART OF ACCOUNTS'!$N:$N,0)),\"Contact Finance\"))","v":""},{"$f":"IF($J12=\"\",\"\",IFERROR(INDEX('CHART OF ACCOUNTS'!H:H,MATCH('Coding Generator'!$J12,'CHART OF ACCOUNTS'!$N:$N,0)),\"Contact Finance\"))","v":""},{"$f":"IF($J12=\"\",\"\",IFERROR(INDEX('CHART OF ACCOUNTS'!D:D,MATCH('Coding Generator'!$J12,'CHART OF ACCOUNTS'!$N:$N,0)),\"Contact Finance\"))","v":""},{"$f":"IF($J12=\"\",\"\",IFERROR(INDEX('CHART OF ACCOUNTS'!F:F,MATCH('Coding Generator'!$J12,'CHART OF ACCOUNTS'!$N:$N,0)),\"Contact Finance\"))","v":""}]
[8,null,{"$f":"IF($B13=\"\",\"\",IFERROR(INDEX('Work Order Master'!K:K,MATCH('Coding Generator'!$B13,'Work Order Master'!$S:$S,0)),\"Contact Finance\"))","v":""},{"$f":"IF($B13=\"\",\"\",IFERROR(INDEX('Work Order Master'!L:L,MATCH('Coding Generator'!$B13,'Work Order Master'!$S:$S,0)),\"Contact Finance\"))","v":""},{"$f":"IF($B13=\"\",\"\",IFERROR(INDEX('Work Order Master'!M:M,MATCH('Coding Generator'!$B13,'Work Order Master'!$S:$S,0)),\"Contact Finance\"))","v":""},{"$f":"IF($B13=\"\",\"\",IFERROR(INDEX('Work Order Master'!N:N,MATCH('Coding Generator'!$B13,'Work Order Master'!$S:$S,0)),\"Contact Finance\"))","v":""},{"$f":"IF($B13=\"\",\"\",IFERROR(INDEX('Work Order Master'!U:U,MATCH('Coding Generator'!$B13,'Work Order Master'!$S:$S,0)),\"Contact Finance\"))","v":""},null,8,null,{"$f":"IF($J13=\"\",\"\",IFERROR(INDEX('CHART OF ACCOUNTS'!G:G,MATCH('Coding Generator'!$J13,'CHART OF ACCOUNTS'!$N:$N,0)),\"Contact Finance\"))","v":""},{"$f":"IF($J13=\"\",\"\",IFERROR(INDEX('CHART OF ACCOUNTS'!H:H,MATCH('Coding Generator'!$J13,'CHART OF ACCOUNTS'!$N:$N,0)),\"Contact Finance\"))","v":""},{"$f":"IF($J13=\"\",\"\",IFERROR(INDEX('CHART OF ACCOUNTS'!D:D,MATCH('Coding Generator'!$J13,'CHART OF ACCOUNTS'!$N:$N,0)),\"Contact Finance\"))","v":""},{"$f":"IF($J13=\"\",\"\",IFERROR(INDEX('CHART OF ACCOUNTS'!F:F,MATCH('Coding Generator'!$J13,'CHART OF ACCOUNTS'!$N:$N,0)),\"Contact Finance\"))","v":""}]
[9,null,{"$f":"IF($B14=\"\",\"\",IFERROR(INDEX('Work Order Master'!K:K,MATCH('Coding Generator'!$B14,'Work Order Master'!$S:$S,0)),\"Contact Finance\"))","v":""},{"$f":"IF($B14=\"\",\"\",IFERROR(INDEX('Work Order Master'!L:L,MATCH('Coding Generator'!$B14,'Work Order Master'!$S:$S,0)),\"Contact Finance\"))","v":""},{"$f":"IF($B14=\"\",\"\",IFERROR(INDEX('Work Order Master'!M:M,MATCH('Coding Generator'!$B14,'Work Order Master'!$S:$S,0)),\"Contact Finance\"))","v":""},{"$f":"IF($B14=\"\",\"\",IFERROR(INDEX('Work Order Master'!N:N,MATCH('Coding Generator'!$B14,'Work Order Master'!$S:$S,0)),\"Contact Finance\"))","v":""},{"$f":"IF($B14=\"\",\"\",IFERROR(INDEX('Work Order Master'!U:U,MATCH('Coding Generator'!$B14,'Work Order Master'!$S:$S,0)),\"Contact Finance\"))","v":""},null,9,null,{"$f":"IF($J14=\"\",\"\",IFERROR(INDEX('CHART OF ACCOUNTS'!G:G,MATCH('Coding Generator'!$J14,'CHART OF ACCOUNTS'!$N:$N,0)),\"Contact Finance\"))","v":""},{"$f":"IF($J14=\"\",\"\",IFERROR(INDEX('CHART OF ACCOUNTS'!H:H,MATCH('Coding Generator'!$J14,'CHART OF ACCOUNTS'!$N:$N,0)),\"Contact Finance\"))","v":""},{"$f":"IF($J14=\"\",\"\",IFERROR(INDEX('CHART OF ACCOUNTS'!D:D,MATCH('Coding Generator'!$J14,'CHART OF ACCOUNTS'!$N:$N,0)),\"Contact Finance\"))","v":""},{"$f":"IF($J14=\"\",\"\",IFERROR(INDEX('CHART OF ACCOUNTS'!F:F,MATCH('Coding Generator'!$J14,'CHART OF ACCOUNTS'!$N:$N,0)),\"Contact Finance\"))","v":""}]
[10,null,{"$f":"IF($B15=\"\",\"\",IFERROR(INDEX('Work Order Master'!K:K,MATCH('Coding Generator'!$B15,'Work Order Master'!$S:$S,0)),\"Contact Finance\"))","v":""},{"$f":"IF($B15=\"\",\"\",IFERROR(INDEX('Work Order Master'!L:L,MATCH('Coding Generator'!$B15,'Work Order Master'!$S:$S,0)),\"Contact Finance\"))","v":""},{"$f":"IF($B15=\"\",\"\",IFERROR(INDEX('Work Order Master'!M:M,MATCH('Coding Generator'!$B15,'Work Order Master'!$S:$S,0)),\"Contact Finance\"))","v":""},{"$f":"IF($B15=\"\",\"\",IFERROR(INDEX('Work Order Master'!N:N,MATCH('Coding Generator'!$B15,'Work Order Master'!$S:$S,0)),\"Contact Finance\"))","v":""},{"$f":"IF($B15=\"\",\"\",IFERROR(INDEX('Work Order Master'!U:U,MATCH('Coding Generator'!$B15,'Work Order Master'!$S:$S,0)),\"Contact Finance\"))","v":""},null,10,null,{"$f":"IF($J15=\"\",\"\",IFERROR(INDEX('CHART OF ACCOUNTS'!G:G,MATCH('Coding Generator'!$J15,'CHART OF ACCOUNTS'!$N:$N,0)),\"Contact Finance\"))","v":""},{"$f":"IF($J15=\"\",\"\",IFERROR(INDEX('CHART OF ACCOUNTS'!H:H,MATCH('Coding Generator'!$J15,'CHART OF ACCOUNTS'!$N:$N,0)),\"Contact Finance\"))","v":""},{"$f":"IF($J15=\"\",\"\",IFERROR(INDEX('CHART OF ACCOUNTS'!D:D,MATCH('Coding Generator'!$J15,'CHART OF ACCOUNTS'!$N:$N,0)),\"Contact Finance\"))","v":""},{"$f":"IF($J15=\"\",\"\",IFERROR(INDEX('CHART OF ACCOUNTS'!F:F,MATCH('Coding Generator'!$J15,'CHART OF ACCOUNTS'!$N:$N,0)),\"Contact Finance\"))","v":""}]
[11,null,{"$f":"IF($B16=\"\",\"\",IFERROR(INDEX('Work Order Master'!K:K,MATCH('Coding Generator'!$B16,'Work Order Master'!$S:$S,0)),\"Contact Finance\"))","v":""},{"$f":"IF($B16=\"\",\"\",IFERROR(INDEX('Work Order Master'!L:L,MATCH('Coding Generator'!$B16,'Work Order Master'!$S:$S,0)),\"Contact Finance\"))","v":""},{"$f":"IF($B16=\"\",\"\",IFERROR(INDEX('Work Order Master'!M:M,MATCH('Coding Generator'!$B16,'Work Order Master'!$S:$S,0)),\"Contact Finance\"))","v":""},{"$f":"IF($B16=\"\",\"\",IFERROR(INDEX('Work Order Master'!N:N,MATCH('Coding Generator'!$B16,'Work Order Master'!$S:$S,0)),\"Contact Finance\"))","v":""},{"$f":"IF($B16=\"\",\"\",IFERROR(INDEX('Work Order Master'!U:U,MATCH('Coding Generator'!$B16,'Work Order Master'!$S:$S,0)),\"Contact Finance\"))","v":""},null,11,null,{"$f":"IF($J16=\"\",\"\",IFERROR(INDEX('CHART OF ACCOUNTS'!G:G,MATCH('Coding Generator'!$J16,'CHART OF ACCOUNTS'!$N:$N,0)),\"Contact Finance\"))","v":""},{"$f":"IF($J16=\"\",\"\",IFERROR(INDEX('CHART OF ACCOUNTS'!H:H,MATCH('Coding Generator'!$J16,'CHART OF ACCOUNTS'!$N:$N,0)),\"Contact Finance\"))","v":""},{"$f":"IF($J16=\"\",\"\",IFERROR(INDEX('CHART OF ACCOUNTS'!D:D,MATCH('Coding Generator'!$J16,'CHART OF ACCOUNTS'!$N:$N,0)),\"Contact Finance\"))","v":""},{"$f":"IF($J16=\"\",\"\",IFERROR(INDEX('CHART OF ACCOUNTS'!F:F,MATCH('Coding Generator'!$J16,'CHART OF ACCOUNTS'!$N:$N,0)),\"Contact Finance\"))","v":""}]
[12,null,{"$f":"IF($B17=\"\",\"\",IFERROR(INDEX('Work Order Master'!K:K,MATCH('Coding Generator'!$B17,'Work Order Master'!$S:$S,0)),\"Contact Finance\"))","v":""},{"$f":"IF($B17=\"\",\"\",IFERROR(INDEX('Work Order Master'!L:L,MATCH('Coding Generator'!$B17,'Work Order Master'!$S:$S,0)),\"Contact Finance\"))","v":""},{"$f":"IF($B17=\"\",\"\",IFERROR(INDEX('Work Order Master'!M:M,MATCH('Coding Generator'!$B17,'Work Order Master'!$S:$S,0)),\"Contact Finance\"))","v":""},{"$f":"IF($B17=\"\",\"\",IFERROR(INDEX('Work Order Master'!N:N,MATCH('Coding Generator'!$B17,'Work Order Master'!$S:$S,0)),\"Contact Finance\"))","v":""},{"$f":"IF($B17=\"\",\"\",IFERROR(INDEX('Work Order Master'!U:U,MATCH('Coding Generator'!$B17,'Work Order Master'!$S:$S,0)),\"Contact Finance\"))","v":""},null,12,null,{"$f":"IF($J17=\"\",\"\",IFERROR(INDEX('CHART OF ACCOUNTS'!G:G,MATCH('Coding Generator'!$J17,'CHART OF ACCOUNTS'!$N:$N,0)),\"Contact Finance\"))","v":""},{"$f":"IF($J17=\"\",\"\",IFERROR(INDEX('CHART OF ACCOUNTS'!H:H,MATCH('Coding Generator'!$J17,'CHART OF ACCOUNTS'!$N:$N,0)),\"Contact Finance\"))","v":""},{"$f":"IF($J17=\"\",\"\",IFERROR(INDEX('CHART OF ACCOUNTS'!D:D,MATCH('Coding Generator'!$J17,'CHART OF ACCOUNTS'!$N:$N,0)),\"Contact Finance\"))","v":""},{"$f":"IF($J17=\"\",\"\",IFERROR(INDEX('CHART OF ACCOUNTS'!F:F,MATCH('Coding Generator'!$J17,'CHART OF ACCOUNTS'!$N:$N,0)),\"Contact Finance\"))","v":""}]
[13,null,{"$f":"IF($B18=\"\",\"\",IFERROR(INDEX('Work Order Master'!K:K,MATCH('Coding Generator'!$B18,'Work Order Master'!$S:$S,0)),\"Contact Finance\"))","v":""},{"$f":"IF($B18=\"\",\"\",IFERROR(INDEX('Work Order Master'!L:L,MATCH('Coding Generator'!$B18,'Work Order Master'!$S:$S,0)),\"Contact Finance\"))","v":""},{"$f":"IF($B18=\"\",\"\",IFERROR(INDEX('Work Order Master'!M:M,MATCH('Coding Generator'!$B18,'Work Order Master'!$S:$S,0)),\"Contact Finance\"))","v":""},{"$f":"IF($B18=\"\",\"\",IFERROR(INDEX('Work Order Master'!N:N,MATCH('Coding Generator'!$B18,'Work Order Master'!$S:$S,0)),\"Contact Finance\"))","v":""},{"$f":"IF($B18=\"\",\"\",IFERROR(INDEX('Work Order Master'!U:U,MATCH('Coding Generator'!$B18,'Work Order Master'!$S:$S,0)),\"Contact Finance\"))","v":""},null,13,null,{"$f":"IF($J18=\"\",\"\",IFERROR(INDEX('CHART OF ACCOUNTS'!G:G,MATCH('Coding Generator'!$J18,'CHART OF ACCOUNTS'!$N:$N,0)),\"Contact Finance\"))","v":""},{"$f":"IF($J18=\"\",\"\",IFERROR(INDEX('CHART OF ACCOUNTS'!H:H,MATCH('Coding Generator'!$J18,'CHART OF ACCOUNTS'!$N:$N,0)),\"Contact Finance\"))","v":""},{"$f":"IF($J18=\"\",\"\",IFERROR(INDEX('CHART OF ACCOUNTS'!D:D,MATCH('Coding Generator'!$J18,'CHART OF ACCOUNTS'!$N:$N,0)),\"Contact Finance\"))","v":""},{"$f":"IF($J18=\"\",\"\",IFERROR(INDEX('CHART OF ACCOUNTS'!F:F,MATCH('Coding Generator'!$J18,'CHART OF ACCOUNTS'!$N:$N,0)),\"Contact Finance\"))","v":""}]
[14,null,{"$f":"IF($B19=\"\",\"\",IFERROR(INDEX('Work Order Master'!K:K,MATCH('Coding Generator'!$B19,'Work Order Master'!$S:$S,0)),\"Contact Finance\"))","v":""},{"$f":"IF($B19=\"\",\"\",IFERROR(INDEX('Work Order Master'!L:L,MATCH('Coding Generator'!$B19,'Work Order Master'!$S:$S,0)),\"Contact Finance\"))","v":""},{"$f":"IF($B19=\"\",\"\",IFERROR(INDEX('Work Order Master'!M:M,MATCH('Coding Generator'!$B19,'Work Order Master'!$S:$S,0)),\"Contact Finance\"))","v":""},{"$f":"IF($B19=\"\",\"\",IFERROR(INDEX('Work Order Master'!N:N,MATCH('Coding Generator'!$B19,'Work Order Master'!$S:$S,0)),\"Contact Finance\"))","v":""},{"$f":"IF($B19=\"\",\"\",IFERROR(INDEX('Work Order Master'!U:U,MATCH('Coding Generator'!$B19,'Work Order Master'!$S:$S,0)),\"Contact Finance\"))","v":""},null,14,null,{"$f":"IF($J19=\"\",\"\",IFERROR(INDEX('CHART OF ACCOUNTS'!G:G,MATCH('Coding Generator'!$J19,'CHART OF ACCOUNTS'!$N:$N,0)),\"Contact Finance\"))","v":""},{"$f":"IF($J19=\"\",\"\",IFERROR(INDEX('CHART OF ACCOUNTS'!H:H,MATCH('Coding Generator'!$J19,'CHART OF ACCOUNTS'!$N:$N,0)),\"Contact Finance\"))","v":""},{"$f":"IF($J19=\"\",\"\",IFERROR(INDEX('CHART OF ACCOUNTS'!D:D,MATCH('Coding Generator'!$J19,'CHART OF ACCOUNTS'!$N:$N,0)),\"Contact Finance\"))","v":""},{"$f":"IF($J19=\"\",\"\",IFERROR(INDEX('CHART OF ACCOUNTS'!F:F,MATCH('Coding Generator'!$J19,'CHART OF ACCOUNTS'!$N:$N,0)),\"Contact Finance\"))","v":""}]
[15,null,{"$f":"IF($B20=\"\",\"\",IFERROR(INDEX('Work Order Master'!K:K,MATCH('Coding Generator'!$B20,'Work Order Master'!$S:$S,0)),\"Contact Finance\"))","v":""},{"$f":"IF($B20=\"\",\"\",IFERROR(INDEX('Work Order Master'!L:L,MATCH('Coding Generator'!$B20,'Work Order Master'!$S:$S,0)),\"Contact Finance\"))","v":""},{"$f":"IF($B20=\"\",\"\",IFERROR(INDEX('Work Order Master'!M:M,MATCH('Coding Generator'!$B20,'Work Order Master'!$S:$S,0)),\"Contact Finance\"))","v":""},{"$f":"IF($B20=\"\",\"\",IFERROR(INDEX('Work Order Master'!N:N,MATCH('Coding Generator'!$B20,'Work Order Master'!$S:$S,0)),\"Contact Finance\"))","v":""},{"$f":"IF($B20=\"\",\"\",IFERROR(INDEX('Work Order Master'!U:U,MATCH('Coding Generator'!$B20,'Work Order Master'!$S:$S,0)),\"Contact Finance\"))","v":""},null,15,null,{"$f":"IF($J20=\"\",\"\",IFERROR(INDEX('CHART OF ACCOUNTS'!G:G,MATCH('Coding Generator'!$J20,'CHART OF ACCOUNTS'!$N:$N,0)),\"Contact Finance\"))","v":""},{"$f":"IF($J20=\"\",\"\",IFERROR(INDEX('CHART OF ACCOUNTS'!H:H,MATCH('Coding Generator'!$J20,'CHART OF ACCOUNTS'!$N:$N,0)),\"Contact Finance\"))","v":""},{"$f":"IF($J20=\"\",\"\",IFERROR(INDEX('CHART OF ACCOUNTS'!D:D,MATCH('Coding Generator'!$J20,'CHART OF ACCOUNTS'!$N:$N,0)),\"Contact Finance\"))","v":""},{"$f":"IF($J20=\"\",\"\",IFERROR(INDEX('CHART OF ACCOUNTS'!F:F,MATCH('Coding Generator'!$J20,'CHART OF ACCOUNTS'!$N:$N,0)),\"Contact Finance\"))","v":""}]
[16,null,{"$f":"IF($B21=\"\",\"\",IFERROR(INDEX('Work Order Master'!K:K,MATCH('Coding Generator'!$B21,'Work Order Master'!$S:$S,0)),\"Contact Finance\"))","v":""},{"$f":"IF($B21=\"\",\"\",IFERROR(INDEX('Work Order Master'!L:L,MATCH('Coding Generator'!$B21,'Work Order Master'!$S:$S,0)),\"Contact Finance\"))","v":""},{"$f":"IF($B21=\"\",\"\",IFERROR(INDEX('Work Order Master'!M:M,MATCH('Coding Generator'!$B21,'Work Order Master'!$S:$S,0)),\"Contact Finance\"))","v":""},{"$f":"IF($B21=\"\",\"\",IFERROR(INDEX('Work Order Master'!N:N,MATCH('Coding Generator'!$B21,'Work Order Master'!$S:$S,0)),\"Contact Finance\"))","v":""},{"$f":"IF($B21=\"\",\"\",IFERROR(INDEX('Work Order Master'!U:U,MATCH('Coding Generator'!$B21,'Work Order Master'!$S:$S,0)),\"Contact Finance\"))","v":""},null,16,null,{"$f":"IF($J21=\"\",\"\",IFERROR(INDEX('CHART OF ACCOUNTS'!G:G,MATCH('Coding Generator'!$J21,'CHART OF ACCOUNTS'!$N:$N,0)),\"Contact Finance\"))","v":""},{"$f":"IF($J21=\"\",\"\",IFERROR(INDEX('CHART OF ACCOUNTS'!H:H,MATCH('Coding Generator'!$J21,'CHART OF ACCOUNTS'!$N:$N,0)),\"Contact Finance\"))","v":""},{"$f":"IF($J21=\"\",\"\",IFERROR(INDEX('CHART OF ACCOUNTS'!D:D,MATCH('Coding Generator'!$J21,'CHART OF ACCOUNTS'!$N:$N,0)),\"Contact Finance\"))","v":""},{"$f":"IF($J21=\"\",\"\",IFERROR(INDEX('CHART OF ACCOUNTS'!F:F,MATCH('Coding Generator'!$J21,'CHART OF ACCOUNTS'!$N:$N,0)),\"Contact Finance\"))","v":""}]
[17,null,{"$f":"IF($B22=\"\",\"\",IFERROR(INDEX('Work Order Master'!K:K,MATCH('Coding Generator'!$B22,'Work Order Master'!$S:$S,0)),\"Contact Finance\"))","v":""},{"$f":"IF($B22=\"\",\"\",IFERROR(INDEX('Work Order Master'!L:L,MATCH('Coding Generator'!$B22,'Work Order Master'!$S:$S,0)),\"Contact Finance\"))","v":""},{"$f":"IF($B22=\"\",\"\",IFERROR(INDEX('Work Order Master'!M:M,MATCH('Coding Generator'!$B22,'Work Order Master'!$S:$S,0)),\"Contact Finance\"))","v":""},{"$f":"IF($B22=\"\",\"\",IFERROR(INDEX('Work Order Master'!N:N,MATCH('Coding Generator'!$B22,'Work Order Master'!$S:$S,0)),\"Contact Finance\"))","v":""},{"$f":"IF($B22=\"\",\"\",IFERROR(INDEX('Work Order Master'!U:U,MATCH('Coding Generator'!$B22,'Work Order Master'!$S:$S,0)),\"Contact Finance\"))","v":""},null,17,null,{"$f":"IF($J22=\"\",\"\",IFERROR(INDEX('CHART OF ACCOUNTS'!G:G,MATCH('Coding Generator'!$J22,'CHART OF ACCOUNTS'!$N:$N,0)),\"Contact Finance\"))","v":""},{"$f":"IF($J22=\"\",\"\",IFERROR(INDEX('CHART OF ACCOUNTS'!H:H,MATCH('Coding Generator'!$J22,'CHART OF ACCOUNTS'!$N:$N,0)),\"Contact Finance\"))","v":""},{"$f":"IF($J22=\"\",\"\",IFERROR(INDEX('CHART OF ACCOUNTS'!D:D,MATCH('Coding Generator'!$J22,'CHART OF ACCOUNTS'!$N:$N,0)),\"Contact Finance\"))","v":""},{"$f":"IF($J22=\"\",\"\",IFERROR(INDEX('CHART OF ACCOUNTS'!F:F,MATCH('Coding Generator'!$J22,'CHART OF ACCOUNTS'!$N:$N,0)),\"Contact Finance\"))","v":""}]
[18,null,{"$f":"IF($B23=\"\",\"\",IFERROR(INDEX('Work Order Master'!K:K,MATCH('Coding Generator'!$B23,'Work Order Master'!$S:$S,0)),\"Contact Finance\"))","v":""},{"$f":"IF($B23=\"\",\"\",IFERROR(INDEX('Work Order Master'!L:L,MATCH('Coding Generator'!$B23,'Work Order Master'!$S:$S,0)),\"Contact Finance\"))","v":""},{"$f":"IF($B23=\"\",\"\",IFERROR(INDEX('Work Order Master'!M:M,MATCH('Coding Generator'!$B23,'Work Order Master'!$S:$S,0)),\"Contact Finance\"))","v":""},{"$f":"IF($B23=\"\",\"\",IFERROR(INDEX('Work Order Master'!N:N,MATCH('Coding Generator'!$B23,'Work Order Master'!$S:$S,0)),\"Contact Finance\"))","v":""},{"$f":"IF($B23=\"\",\"\",IFERROR(INDEX('Work Order Master'!U:U,MATCH('Coding Generator'!$B23,'Work Order Master'!$S:$S,0)),\"Contact Finance\"))","v":""},null,18,null,{"$f":"IF($J23=\"\",\"\",IFERROR(INDEX('CHART OF ACCOUNTS'!G:G,MATCH('Coding Generator'!$J23,'CHART OF ACCOUNTS'!$N:$N,0)),\"Contact Finance\"))","v":""},{"$f":"IF($J23=\"\",\"\",IFERROR(INDEX('CHART OF ACCOUNTS'!H:H,MATCH('Coding Generator'!$J23,'CHART OF ACCOUNTS'!$N:$N,0)),\"Contact Finance\"))","v":""},{"$f":"IF($J23=\"\",\"\",IFERROR(INDEX('CHART OF ACCOUNTS'!D:D,MATCH('Coding Generator'!$J23,'CHART OF ACCOUNTS'!$N:$N,0)),\"Contact Finance\"))","v":""},{"$f":"IF($J23=\"\",\"\",IFERROR(INDEX('CHART OF ACCOUNTS'!F:F,MATCH('Coding Generator'!$J23,'CHART OF ACCOUNTS'!$N:$N,0)),\"Contact Finance\"))","v":""}]
[19,null,{"$f":"IF($B24=\"\",\"\",IFERROR(INDEX('Work Order Master'!K:K,MATCH('Coding Generator'!$B24,'Work Order Master'!$S:$S,0)),\"Contact Finance\"))","v":""},{"$f":"IF($B24=\"\",\"\",IFERROR(INDEX('Work Order Master'!L:L,MATCH('Coding Generator'!$B24,'Work Order Master'!$S:$S,0)),\"Contact Finance\"))","v":""},{"$f":"IF($B24=\"\",\"\",IFERROR(INDEX('Work Order Master'!M:M,MATCH('Coding Generator'!$B24,'Work Order Master'!$S:$S,0)),\"Contact Finance\"))","v":""},{"$f":"IF($B24=\"\",\"\",IFERROR(INDEX('Work Order Master'!N:N,MATCH('Coding Generator'!$B24,'Work Order Master'!$S:$S,0)),\"Contact Finance\"))","v":""},{"$f":"IF($B24=\"\",\"\",IFERROR(INDEX('Work Order Master'!U:U,MATCH('Coding Generator'!$B24,'Work Order Master'!$S:$S,0)),\"Contact Finance\"))","v":""},null,19,null,{"$f":"IF($J24=\"\",\"\",IFERROR(INDEX('CHART OF ACCOUNTS'!G:G,MATCH('Coding Generator'!$J24,'CHART OF ACCOUNTS'!$N:$N,0)),\"Contact Finance\"))","v":""},{"$f":"IF($J24=\"\",\"\",IFERROR(INDEX('CHART OF ACCOUNTS'!H:H,MATCH('Coding Generator'!$J24,'CHART OF ACCOUNTS'!$N:$N,0)),\"Contact Finance\"))","v":""},{"$f":"IF($J24=\"\",\"\",IFERROR(INDEX('CHART OF ACCOUNTS'!D:D,MATCH('Coding Generator'!$J24,'CHART OF ACCOUNTS'!$N:$N,0)),\"Contact Finance\"))","v":""},{"$f":"IF($J24=\"\",\"\",IFERROR(INDEX('CHART OF ACCOUNTS'!F:F,MATCH('Coding Generator'!$J24,'CHART OF ACCOUNTS'!$N:$N,0)),\"Contact Finance\"))","v":""}]
[20,null,{"$f":"IF($B25=\"\",\"\",IFERROR(INDEX('Work Order Master'!K:K,MATCH('Coding Generator'!$B25,'Work Order Master'!$S:$S,0)),\"Contact Finance\"))","v":""},{"$f":"IF($B25=\"\",\"\",IFERROR(INDEX('Work Order Master'!L:L,MATCH('Coding Generator'!$B25,'Work Order Master'!$S:$S,0)),\"Contact Finance\"))","v":""},{"$f":"IF($B25=\"\",\"\",IFERROR(INDEX('Work Order Master'!M:M,MATCH('Coding Generator'!$B25,'Work Order Master'!$S:$S,0)),\"Contact Finance\"))","v":""},{"$f":"IF($B25=\"\",\"\",IFERROR(INDEX('Work Order Master'!N:N,MATCH('Coding Generator'!$B25,'Work Order Master'!$S:$S,0)),\"Contact Finance\"))","v":""},{"$f":"IF($B25=\"\",\"\",IFERROR(INDEX('Work Order Master'!U:U,MATCH('Coding Generator'!$B25,'Work Order Master'!$S:$S,0)),\"Contact Finance\"))","v":""},null,20,null,{"$f":"IF($J25=\"\",\"\",IFERROR(INDEX('CHART OF ACCOUNTS'!G:G,MATCH('Coding Generator'!$J25,'CHART OF ACCOUNTS'!$N:$N,0)),\"Contact Finance\"))","v":""},{"$f":"IF($J25=\"\",\"\",IFERROR(INDEX('CHART OF ACCOUNTS'!H:H,MATCH('Coding Generator'!$J25,'CHART OF ACCOUNTS'!$N:$N,0)),\"Contact Finance\"))","v":""},{"$f":"IF($J25=\"\",\"\",IFERROR(INDEX('CHART OF ACCOUNTS'!D:D,MATCH('Coding Generator'!$J25,'CHART OF ACCOUNTS'!$N:$N,0)),\"Contact Finance\"))","v":""},{"$f":"IF($J25=\"\",\"\",IFERROR(INDEX('CHART OF ACCOUNTS'!F:F,MATCH('Coding Generator'!$J25,'CHART OF ACCOUNTS'!$N:$N,0)),\"Contact Finance\"))","v":""}]
[21,null,{"$f":"IF($B26=\"\",\"\",IFERROR(INDEX('Work Order Master'!K:K,MATCH('Coding Generator'!$B26,'Work Order Master'!$S:$S,0)),\"Contact Finance\"))","v":""},{"$f":"IF($B26=\"\",\"\",IFERROR(INDEX('Work Order Master'!L:L,MATCH('Coding Generator'!$B26,'Work Order Master'!$S:$S,0)),\"Contact Finance\"))","v":""},{"$f":"IF($B26=\"\",\"\",IFERROR(INDEX('Work Order Master'!M:M,MATCH('Coding Generator'!$B26,'Work Order Master'!$S:$S,0)),\"Contact Finance\"))","v":""},{"$f":"IF($B26=\"\",\"\",IFERROR(INDEX('Work Order Master'!N:N,MATCH('Coding Generator'!$B26,'Work Order Master'!$S:$S,0)),\"Contact Finance\"))","v":""},{"$f":"IF($B26=\"\",\"\",IFERROR(INDEX('Work Order Master'!U:U,MATCH('Coding Generator'!$B26,'Work Order Master'!$S:$S,0)),\"Contact Finance\"))","v":""},null,21,null,{"$f":"IF($J26=\"\",\"\",IFERROR(INDEX('CHART OF ACCOUNTS'!G:G,MATCH('Coding Generator'!$J26,'CHART OF ACCOUNTS'!$N:$N,0)),\"Contact Finance\"))","v":""},{"$f":"IF($J26=\"\",\"\",IFERROR(INDEX('CHART OF ACCOUNTS'!H:H,MATCH('Coding Generator'!$J26,'CHART OF ACCOUNTS'!$N:$N,0)),\"Contact Finance\"))","v":""},{"$f":"IF($J26=\"\",\"\",IFERROR(INDEX('CHART OF ACCOUNTS'!D:D,MATCH('Coding Generator'!$J26,'CHART OF ACCOUNTS'!$N:$N,0)),\"Contact Finance\"))","v":""},{"$f":"IF($J26=\"\",\"\",IFERROR(INDEX('CHART OF ACCOUNTS'!F:F,MATCH('Coding Generator'!$J26,'CHART OF ACCOUNTS'!$N:$N,0)),\"Contact Finance\"))","v":""}]
[22,null,{"$f":"IF($B27=\"\",\"\",IFERROR(INDEX('Work Order Master'!K:K,MATCH('Coding Generator'!$B27,'Work Order Master'!$S:$S,0)),\"Contact Finance\"))","v":""},{"$f":"IF($B27=\"\",\"\",IFERROR(INDEX('Work Order Master'!L:L,MATCH('Coding Generator'!$B27,'Work Order Master'!$S:$S,0)),\"Contact Finance\"))","v":""},{"$f":"IF($B27=\"\",\"\",IFERROR(INDEX('Work Order Master'!M:M,MATCH('Coding Generator'!$B27,'Work Order Master'!$S:$S,0)),\"Contact Finance\"))","v":""},{"$f":"IF($B27=\"\",\"\",IFERROR(INDEX('Work Order Master'!N:N,MATCH('Coding Generator'!$B27,'Work Order Master'!$S:$S,0)),\"Contact Finance\"))","v":""},{"$f":"IF($B27=\"\",\"\",IFERROR(INDEX('Work Order Master'!U:U,MATCH('Coding Generator'!$B27,'Work Order Master'!$S:$S,0)),\"Contact Finance\"))","v":""},null,22,null,{"$f":"IF($J27=\"\",\"\",IFERROR(INDEX('CHART OF ACCOUNTS'!G:G,MATCH('Coding Generator'!$J27,'CHART OF ACCOUNTS'!$N:$N,0)),\"Contact Finance\"))","v":""},{"$f":"IF($J27=\"\",\"\",IFERROR(INDEX('CHART OF ACCOUNTS'!H:H,MATCH('Coding Generator'!$J27,'CHART OF ACCOUNTS'!$N:$N,0)),\"Contact Finance\"))","v":""},{"$f":"IF($J27=\"\",\"\",IFERROR(INDEX('CHART OF ACCOUNTS'!D:D,MATCH('Coding Generator'!$J27,'CHART OF ACCOUNTS'!$N:$N,0)),\"Contact Finance\"))","v":""},{"$f":"IF($J27=\"\",\"\",IFERROR(INDEX('CHART OF ACCOUNTS'!F:F,MATCH('Coding Generator'!$J27,'CHART OF ACCOUNTS'!$N:$N,0)),\"Contact Finance\"))","v":""}]
[23,null,{"$f":"IF($B28=\"\",\"\",IFERROR(INDEX('Work Order Master'!K:K,MATCH('Coding Generator'!$B28,'Work Order Master'!$S:$S,0)),\"Contact Finance\"))","v":""},{"$f":"IF($B28=\"\",\"\",IFERROR(INDEX('Work Order Master'!L:L,MATCH('Coding Generator'!$B28,'Work Order Master'!$S:$S,0)),\"Contact Finance\"))","v":""},{"$f":"IF($B28=\"\",\"\",IFERROR(INDEX('Work Order Master'!M:M,MATCH('Coding Generator'!$B28,'Work Order Master'!$S:$S,0)),\"Contact Finance\"))","v":""},{"$f":"IF($B28=\"\",\"\",IFERROR(INDEX('Work Order Master'!N:N,MATCH('Coding Generator'!$B28,'Work Order Master'!$S:$S,0)),\"Contact Finance\"))","v":""},{"$f":"IF($B28=\"\",\"\",IFERROR(INDEX('Work Order Master'!U:U,MATCH('Coding Generator'!$B28,'Work Order Master'!$S:$S,0)),\"Contact Finance\"))","v":""},null,23,null,{"$f":"IF($J28=\"\",\"\",IFERROR(INDEX('CHART OF ACCOUNTS'!G:G,MATCH('Coding Generator'!$J28,'CHART OF ACCOUNTS'!$N:$N,0)),\"Contact Finance\"))","v":""},{"$f":"IF($J28=\"\",\"\",IFERROR(INDEX('CHART OF ACCOUNTS'!H:H,MATCH('Coding Generator'!$J28,'CHART OF ACCOUNTS'!$N:$N,0)),\"Contact Finance\"))","v":""},{"$f":"IF($J28=\"\",\"\",IFERROR(INDEX('CHART OF ACCOUNTS'!D:D,MATCH('Coding Generator'!$J28,'CHART OF ACCOUNTS'!$N:$N,0)),\"Contact Finance\"))","v":""},{"$f":"IF($J28=\"\",\"\",IFERROR(INDEX('CHART OF ACCOUNTS'!F:F,MATCH('Coding Generator'!$J28,'CHART OF ACCOUNTS'!$N:$N,0)),\"Contact Finance\"))","v":""}]
[24,null,{"$f":"IF($B29=\"\",\"\",IFERROR(INDEX('Work Order Master'!K:K,MATCH('Coding Generator'!$B29,'Work Order Master'!$S:$S,0)),\"Contact Finance\"))","v":""},{"$f":"IF($B29=\"\",\"\",IFERROR(INDEX('Work Order Master'!L:L,MATCH('Coding Generator'!$B29,'Work Order Master'!$S:$S,0)),\"Contact Finance\"))","v":""},{"$f":"IF($B29=\"\",\"\",IFERROR(INDEX('Work Order Master'!M:M,MATCH('Coding Generator'!$B29,'Work Order Master'!$S:$S,0)),\"Contact Finance\"))","v":""},{"$f":"IF($B29=\"\",\"\",IFERROR(INDEX('Work Order Master'!N:N,MATCH('Coding Generator'!$B29,'Work Order Master'!$S:$S,0)),\"Contact Finance\"))","v":""},{"$f":"IF($B29=\"\",\"\",IFERROR(INDEX('Work Order Master'!U:U,MATCH('Coding Generator'!$B29,'Work Order Master'!$S:$S,0)),\"Contact Finance\"))","v":""},null,24,null,{"$f":"IF($J29=\"\",\"\",IFERROR(INDEX('CHART OF ACCOUNTS'!G:G,MATCH('Coding Generator'!$J29,'CHART OF ACCOUNTS'!$N:$N,0)),\"Contact Finance\"))","v":""},{"$f":"IF($J29=\"\",\"\",IFERROR(INDEX('CHART OF ACCOUNTS'!H:H,MATCH('Coding Generator'!$J29,'CHART OF ACCOUNTS'!$N:$N,0)),\"Contact Finance\"))","v":""},{"$f":"IF($J29=\"\",\"\",IFERROR(INDEX('CHART OF ACCOUNTS'!D:D,MATCH('Coding Generator'!$J29,'CHART OF ACCOUNTS'!$N:$N,0)),\"Contact Finance\"))","v":""},{"$f":"IF($J29=\"\",\"\",IFERROR(INDEX('CHART OF ACCOUNTS'!F:F,MATCH('Coding Generator'!$J29,'CHART OF ACCOUNTS'!$N:$N,0)),\"Contact Finance\"))","v":""}]
[25,null,{"$f":"IF($B30=\"\",\"\",IFERROR(INDEX('Work Order Master'!K:K,MATCH('Coding Generator'!$B30,'Work Order Master'!$S:$S,0)),\"Contact Finance\"))","v":""},{"$f":"IF($B30=\"\",\"\",IFERROR(INDEX('Work Order Master'!L:L,MATCH('Coding Generator'!$B30,'Work Order Master'!$S:$S,0)),\"Contact Finance\"))","v":""},{"$f":"IF($B30=\"\",\"\",IFERROR(INDEX('Work Order Master'!M:M,MATCH('Coding Generator'!$B30,'Work Order Master'!$S:$S,0)),\"Contact Finance\"))","v":""},{"$f":"IF($B30=\"\",\"\",IFERROR(INDEX('Work Order Master'!N:N,MATCH('Coding Generator'!$B30,'Work Order Master'!$S:$S,0)),\"Contact Finance\"))","v":""},{"$f":"IF($B30=\"\",\"\",IFERROR(INDEX('Work Order Master'!U:U,MATCH('Coding Generator'!$B30,'Work Order Master'!$S:$S,0)),\"Contact Finance\"))","v":""},null,25,null,{"$f":"IF($J30=\"\",\"\",IFERROR(INDEX('CHART OF ACCOUNTS'!G:G,MATCH('Coding Generator'!$J30,'CHART OF ACCOUNTS'!$N:$N,0)),\"Contact Finance\"))","v":""},{"$f":"IF($J30=\"\",\"\",IFERROR(INDEX('CHART OF ACCOUNTS'!H:H,MATCH('Coding Generator'!$J30,'CHART OF ACCOUNTS'!$N:$N,0)),\"Contact Finance\"))","v":""},{"$f":"IF($J30=\"\",\"\",IFERROR(INDEX('CHART OF ACCOUNTS'!D:D,MATCH('Coding Generator'!$J30,'CHART OF ACCOUNTS'!$N:$N,0)),\"Contact Finance\"))","v":""},{"$f":"IF($J30=\"\",\"\",IFERROR(INDEX('CHART OF ACCOUNTS'!F:F,MATCH('Coding Generator'!$J30,'CHART OF ACCOUNTS'!$N:$N,0)),\"Contact Finance\"))","v":""}]
[26,null,{"$f":"IF($B31=\"\",\"\",IFERROR(INDEX('Work Order Master'!K:K,MATCH('Coding Generator'!$B31,'Work Order Master'!$S:$S,0)),\"Contact Finance\"))","v":""},{"$f":"IF($B31=\"\",\"\",IFERROR(INDEX('Work Order Master'!L:L,MATCH('Coding Generator'!$B31,'Work Order Master'!$S:$S,0)),\"Contact Finance\"))","v":""},{"$f":"IF($B31=\"\",\"\",IFERROR(INDEX('Work Order Master'!M:M,MATCH('Coding Generator'!$B31,'Work Order Master'!$S:$S,0)),\"Contact Finance\"))","v":""},{"$f":"IF($B31=\"\",\"\",IFERROR(INDEX('Work Order Master'!N:N,MATCH('Coding Generator'!$B31,'Work Order Master'!$S:$S,0)),\"Contact Finance\"))","v":""},{"$f":"IF($B31=\"\",\"\",IFERROR(INDEX('Work Order Master'!U:U,MATCH('Coding Generator'!$B31,'Work Order Master'!$S:$S,0)),\"Contact Finance\"))","v":""},null,26,null,{"$f":"IF($J31=\"\",\"\",IFERROR(INDEX('CHART OF ACCOUNTS'!G:G,MATCH('Coding Generator'!$J31,'CHART OF ACCOUNTS'!$N:$N,0)),\"Contact Finance\"))","v":""},{"$f":"IF($J31=\"\",\"\",IFERROR(INDEX('CHART OF ACCOUNTS'!H:H,MATCH('Coding Generator'!$J31,'CHART OF ACCOUNTS'!$N:$N,0)),\"Contact Finance\"))","v":""},{"$f":"IF($J31=\"\",\"\",IFERROR(INDEX('CHART OF ACCOUNTS'!D:D,MATCH('Coding Generator'!$J31,'CHART OF ACCOUNTS'!$N:$N,0)),\"Contact Finance\"))","v":""},{"$f":"IF($J31=\"\",\"\",IFERROR(INDEX('CHART OF ACCOUNTS'!F:F,MATCH('Coding Generator'!$J31,'CHART OF ACCOUNTS'!$N:$N,0)),\"Contact Finance\"))","v":""}]
[27,null,{"$f":"IF($B32=\"\",\"\",IFERROR(INDEX('Work Order Master'!K:K,MATCH('Coding Generator'!$B32,'Work Order Master'!$S:$S,0)),\"Contact Finance\"))","v":""},{"$f":"IF($B32=\"\",\"\",IFERROR(INDEX('Work Order Master'!L:L,MATCH('Coding Generator'!$B32,'Work Order Master'!$S:$S,0)),\"Contact Finance\"))","v":""},{"$f":"IF($B32=\"\",\"\",IFERROR(INDEX('Work Order Master'!M:M,MATCH('Coding Generator'!$B32,'Work Order Master'!$S:$S,0)),\"Contact Finance\"))","v":""},{"$f":"IF($B32=\"\",\"\",IFERROR(INDEX('Work Order Master'!N:N,MATCH('Coding Generator'!$B32,'Work Order Master'!$S:$S,0)),\"Contact Finance\"))","v":""},{"$f":"IF($B32=\"\",\"\",IFERROR(INDEX('Work Order Master'!U:U,MATCH('Coding Generator'!$B32,'Work Order Master'!$S:$S,0)),\"Contact Finance\"))","v":""},null,27,null,{"$f":"IF($J32=\"\",\"\",IFERROR(INDEX('CHART OF ACCOUNTS'!G:G,MATCH('Coding Generator'!$J32,'CHART OF ACCOUNTS'!$N:$N,0)),\"Contact Finance\"))","v":""},{"$f":"IF($J32=\"\",\"\",IFERROR(INDEX('CHART OF ACCOUNTS'!H:H,MATCH('Coding Generator'!$J32,'CHART OF ACCOUNTS'!$N:$N,0)),\"Contact Finance\"))","v":""},{"$f":"IF($J32=\"\",\"\",IFERROR(INDEX('CHART OF ACCOUNTS'!D:D,MATCH('Coding Generator'!$J32,'CHART OF ACCOUNTS'!$N:$N,0)),\"Contact Finance\"))","v":""},{"$f":"IF($J32=\"\",\"\",IFERROR(INDEX('CHART OF ACCOUNTS'!F:F,MATCH('Coding Generator'!$J32,'CHART OF ACCOUNTS'!$N:$N,0)),\"Contact Finance\"))","v":""}]
[28,null,{"$f":"IF($B33=\"\",\"\",IFERROR(INDEX('Work Order Master'!K:K,MATCH('Coding Generator'!$B33,'Work Order Master'!$S:$S,0)),\"Contact Finance\"))","v":""},{"$f":"IF($B33=\"\",\"\",IFERROR(INDEX('Work Order Master'!L:L,MATCH('Coding Generator'!$B33,'Work Order Master'!$S:$S,0)),\"Contact Finance\"))","v":""},{"$f":"IF($B33=\"\",\"\",IFERROR(INDEX('Work Order Master'!M:M,MATCH('Coding Generator'!$B33,'Work Order Master'!$S:$S,0)),\"Contact Finance\"))","v":""},{"$f":"IF($B33=\"\",\"\",IFERROR(INDEX('Work Order Master'!N:N,MATCH('Coding Generator'!$B33,'Work Order Master'!$S:$S,0)),\"Contact Finance\"))","v":""},{"$f":"IF($B33=\"\",\"\",IFERROR(INDEX('Work Order Master'!U:U,MATCH('Coding Generator'!$B33,'Work Order Master'!$S:$S,0)),\"Contact Finance\"))","v":""},null,28,null,{"$f":"IF($J33=\"\",\"\",IFERROR(INDEX('CHART OF ACCOUNTS'!G:G,MATCH('Coding Generator'!$J33,'CHART OF ACCOUNTS'!$N:$N,0)),\"Contact Finance\"))","v":""},{"$f":"IF($J33=\"\",\"\",IFERROR(INDEX('CHART OF ACCOUNTS'!H:H,MATCH('Coding Generator'!$J33,'CHART OF ACCOUNTS'!$N:$N,0)),\"Contact Finance\"))","v":""},{"$f":"IF($J33=\"\",\"\",IFERROR(INDEX('CHART OF ACCOUNTS'!D:D,MATCH('Coding Generator'!$J33,'CHART OF ACCOUNTS'!$N:$N,0)),\"Contact Finance\"))","v":""},{"$f":"IF($J33=\"\",\"\",IFERROR(INDEX('CHART OF ACCOUNTS'!F:F,MATCH('Coding Generator'!$J33,'CHART OF ACCOUNTS'!$N:$N,0)),\"Contact Finance\"))","v":""}]
[29,null,{"$f":"IF($B34=\"\",\"\",IFERROR(INDEX('Work Order Master'!K:K,MATCH('Coding Generator'!$B34,'Work Order Master'!$S:$S,0)),\"Contact Finance\"))","v":""},{"$f":"IF($B34=\"\",\"\",IFERROR(INDEX('Work Order Master'!L:L,MATCH('Coding Generator'!$B34,'Work Order Master'!$S:$S,0)),\"Contact Finance\"))","v":""},{"$f":"IF($B34=\"\",\"\",IFERROR(INDEX('Work Order Master'!M:M,MATCH('Coding Generator'!$B34,'Work Order Master'!$S:$S,0)),\"Contact Finance\"))","v":""},{"$f":"IF($B34=\"\",\"\",IFERROR(INDEX('Work Order Master'!N:N,MATCH('Coding Generator'!$B34,'Work Order Master'!$S:$S,0)),\"Contact Finance\"))","v":""},{"$f":"IF($B34=\"\",\"\",IFERROR(INDEX('Work Order Master'!U:U,MATCH('Coding Generator'!$B34,'Work Order Master'!$S:$S,0)),\"Contact Finance\"))","v":""},null,29,null,{"$f":"IF($J34=\"\",\"\",IFERROR(INDEX('CHART OF ACCOUNTS'!G:G,MATCH('Coding Generator'!$J34,'CHART OF ACCOUNTS'!$N:$N,0)),\"Contact Finance\"))","v":""},{"$f":"IF($J34=\"\",\"\",IFERROR(INDEX('CHART OF ACCOUNTS'!H:H,MATCH('Coding Generator'!$J34,'CHART OF ACCOUNTS'!$N:$N,0)),\"Contact Finance\"))","v":""},{"$f":"IF($J34=\"\",\"\",IFERROR(INDEX('CHART OF ACCOUNTS'!D:D,MATCH('Coding Generator'!$J34,'CHART OF ACCOUNTS'!$N:$N,0)),\"Contact Finance\"))","v":""},{"$f":"IF($J34=\"\",\"\",IFERROR(INDEX('CHART OF ACCOUNTS'!F:F,MATCH('Coding Generator'!$J34,'CHART OF ACCOUNTS'!$N:$N,0)),\"Contact Finance\"))","v":""}]
[30,null,{"$f":"IF($B35=\"\",\"\",IFERROR(INDEX('Work Order Master'!K:K,MATCH('Coding Generator'!$B35,'Work Order Master'!$S:$S,0)),\"Contact Finance\"))","v":""},{"$f":"IF($B35=\"\",\"\",IFERROR(INDEX('Work Order Master'!L:L,MATCH('Coding Generator'!$B35,'Work Order Master'!$S:$S,0)),\"Contact Finance\"))","v":""},{"$f":"IF($B35=\"\",\"\",IFERROR(INDEX('Work Order Master'!M:M,MATCH('Coding Generator'!$B35,'Work Order Master'!$S:$S,0)),\"Contact Finance\"))","v":""},{"$f":"IF($B35=\"\",\"\",IFERROR(INDEX('Work Order Master'!N:N,MATCH('Coding Generator'!$B35,'Work Order Master'!$S:$S,0)),\"Contact Finance\"))","v":""},{"$f":"IF($B35=\"\",\"\",IFERROR(INDEX('Work Order Master'!U:U,MATCH('Coding Generator'!$B35,'Work Order Master'!$S:$S,0)),\"Contact Finance\"))","v":""},null,30,null,{"$f":"IF($J35=\"\",\"\",IFERROR(INDEX('CHART OF ACCOUNTS'!G:G,MATCH('Coding Generator'!$J35,'CHART OF ACCOUNTS'!$N:$N,0)),\"Contact Finance\"))","v":""},{"$f":"IF($J35=\"\",\"\",IFERROR(INDEX('CHART OF ACCOUNTS'!H:H,MATCH('Coding Generator'!$J35,'CHART OF ACCOUNTS'!$N:$N,0)),\"Contact Finance\"))","v":""},{"$f":"IF($J35=\"\",\"\",IFERROR(INDEX('CHART OF ACCOUNTS'!D:D,MATCH('Coding Generator'!$J35,'CHART OF ACCOUNTS'!$N:$N,0)),\"Contact Finance\"))","v":""},{"$f":"IF($J35=\"\",\"\",IFERROR(INDEX('CHART OF ACCOUNTS'!F:F,MATCH('Coding Generator'!$J35,'CHART OF ACCOUNTS'!$N:$N,0)),\"Contact Finance\"))","v":""}]
[31,null,{"$f":"IF($B36=\"\",\"\",IFERROR(INDEX('Work Order Master'!K:K,MATCH('Coding Generator'!$B36,'Work Order Master'!$S:$S,0)),\"Contact Finance\"))","v":""},{"$f":"IF($B36=\"\",\"\",IFERROR(INDEX('Work Order Master'!L:L,MATCH('Coding Generator'!$B36,'Work Order Master'!$S:$S,0)),\"Contact Finance\"))","v":""},{"$f":"IF($B36=\"\",\"\",IFERROR(INDEX('Work Order Master'!M:M,MATCH('Coding Generator'!$B36,'Work Order Master'!$S:$S,0)),\"Contact Finance\"))","v":""},{"$f":"IF($B36=\"\",\"\",IFERROR(INDEX('Work Order Master'!N:N,MATCH('Coding Generator'!$B36,'Work Order Master'!$S:$S,0)),\"Contact Finance\"))","v":""},{"$f":"IF($B36=\"\",\"\",IFERROR(INDEX('Work Order Master'!U:U,MATCH('Coding Generator'!$B36,'Work Order Master'!$S:$S,0)),\"Contact Finance\"))","v":""},null,31,null,{"$f":"IF($J36=\"\",\"\",IFERROR(INDEX('CHART OF ACCOUNTS'!G:G,MATCH('Coding Generator'!$J36,'CHART OF ACCOUNTS'!$N:$N,0)),\"Contact Finance\"))","v":""},{"$f":"IF($J36=\"\",\"\",IFERROR(INDEX('CHART OF ACCOUNTS'!H:H,MATCH('Coding Generator'!$J36,'CHART OF ACCOUNTS'!$N:$N,0)),\"Contact Finance\"))","v":""},{"$f":"IF($J36=\"\",\"\",IFERROR(INDEX('CHART OF ACCOUNTS'!D:D,MATCH('Coding Generator'!$J36,'CHART OF ACCOUNTS'!$N:$N,0)),\"Contact Finance\"))","v":""},{"$f":"IF($J36=\"\",\"\",IFERROR(INDEX('CHART OF ACCOUNTS'!F:F,MATCH('Coding Generator'!$J36,'CHART OF ACCOUNTS'!$N:$N,0)),\"Contact Finance\"))","v":""}]
[32,null,{"$f":"IF($B37=\"\",\"\",IFERROR(INDEX('Work Order Master'!K:K,MATCH('Coding Generator'!$B37,'Work Order Master'!$S:$S,0)),\"Contact Finance\"))","v":""},{"$f":"IF($B37=\"\",\"\",IFERROR(INDEX('Work Order Master'!L:L,MATCH('Coding Generator'!$B37,'Work Order Master'!$S:$S,0)),\"Contact Finance\"))","v":""},{"$f":"IF($B37=\"\",\"\",IFERROR(INDEX('Work Order Master'!M:M,MATCH('Coding Generator'!$B37,'Work Order Master'!$S:$S,0)),\"Contact Finance\"))","v":""},{"$f":"IF($B37=\"\",\"\",IFERROR(INDEX('Work Order Master'!N:N,MATCH('Coding Generator'!$B37,'Work Order Master'!$S:$S,0)),\"Contact Finance\"))","v":""},{"$f":"IF($B37=\"\",\"\",IFERROR(INDEX('Work Order Master'!U:U,MATCH('Coding Generator'!$B37,'Work Order Master'!$S:$S,0)),\"Contact Finance\"))","v":""},null,32,null,{"$f":"IF($J37=\"\",\"\",IFERROR(INDEX('CHART OF ACCOUNTS'!G:G,MATCH('Coding Generator'!$J37,'CHART OF ACCOUNTS'!$N:$N,0)),\"Contact Finance\"))","v":""},{"$f":"IF($J37=\"\",\"\",IFERROR(INDEX('CHART OF ACCOUNTS'!H:H,MATCH('Coding Generator'!$J37,'CHART OF ACCOUNTS'!$N:$N,0)),\"Contact Finance\"))","v":""},{"$f":"IF($J37=\"\",\"\",IFERROR(INDEX('CHART OF ACCOUNTS'!D:D,MATCH('Coding Generator'!$J37,'CHART OF ACCOUNTS'!$N:$N,0)),\"Contact Finance\"))","v":""},{"$f":"IF($J37=\"\",\"\",IFERROR(INDEX('CHART OF ACCOUNTS'!F:F,MATCH('Coding Generator'!$J37,'CHART OF ACCOUNTS'!$N:$N,0)),\"Contact Finance\"))","v":""}]
[33,null,{"$f":"IF($B38=\"\",\"\",IFERROR(INDEX('Work Order Master'!K:K,MATCH('Coding Generator'!$B38,'Work Order Master'!$S:$S,0)),\"Contact Finance\"))","v":""},{"$f":"IF($B38=\"\",\"\",IFERROR(INDEX('Work Order Master'!L:L,MATCH('Coding Generator'!$B38,'Work Order Master'!$S:$S,0)),\"Contact Finance\"))","v":""},{"$f":"IF($B38=\"\",\"\",IFERROR(INDEX('Work Order Master'!M:M,MATCH('Coding Generator'!$B38,'Work Order Master'!$S:$S,0)),\"Contact Finance\"))","v":""},{"$f":"IF($B38=\"\",\"\",IFERROR(INDEX('Work Order Master'!N:N,MATCH('Coding Generator'!$B38,'Work Order Master'!$S:$S,0)),\"Contact Finance\"))","v":""},{"$f":"IF($B38=\"\",\"\",IFERROR(INDEX('Work Order Master'!U:U,MATCH('Coding Generator'!$B38,'Work Order Master'!$S:$S,0)),\"Contact Finance\"))","v":""},null,33,null,{"$f":"IF($J38=\"\",\"\",IFERROR(INDEX('CHART OF ACCOUNTS'!G:G,MATCH('Coding Generator'!$J38,'CHART OF ACCOUNTS'!$N:$N,0)),\"Contact Finance\"))","v":""},{"$f":"IF($J38=\"\",\"\",IFERROR(INDEX('CHART OF ACCOUNTS'!H:H,MATCH('Coding Generator'!$J38,'CHART OF ACCOUNTS'!$N:$N,0)),\"Contact Finance\"))","v":""},{"$f":"IF($J38=\"\",\"\",IFERROR(INDEX('CHART OF ACCOUNTS'!D:D,MATCH('Coding Generator'!$J38,'CHART OF ACCOUNTS'!$N:$N,0)),\"Contact Finance\"))","v":""},{"$f":"IF($J38=\"\",\"\",IFERROR(INDEX('CHART OF ACCOUNTS'!F:F,MATCH('Coding Generator'!$J38,'CHART OF ACCOUNTS'!$N:$N,0)),\"Contact Finance\"))","v":""}]
[34,null,{"$f":"IF($B39=\"\",\"\",IFERROR(INDEX('Work Order Master'!K:K,MATCH('Coding Generator'!$B39,'Work Order Master'!$S:$S,0)),\"Contact Finance\"))","v":""},{"$f":"IF($B39=\"\",\"\",IFERROR(INDEX('Work Order Master'!L:L,MATCH('Coding Generator'!$B39,'Work Order Master'!$S:$S,0)),\"Contact Finance\"))","v":""},{"$f":"IF($B39=\"\",\"\",IFERROR(INDEX('Work Order Master'!M:M,MATCH('Coding Generator'!$B39,'Work Order Master'!$S:$S,0)),\"Contact Finance\"))","v":""},{"$f":"IF($B39=\"\",\"\",IFERROR(INDEX('Work Order Master'!N:N,MATCH('Coding Generator'!$B39,'Work Order Master'!$S:$S,0)),\"Contact Finance\"))","v":""},{"$f":"IF($B39=\"\",\"\",IFERROR(INDEX('Work Order Master'!U:U,MATCH('Coding Generator'!$B39,'Work Order Master'!$S:$S,0)),\"Contact Finance\"))","v":""},null,34,null,{"$f":"IF($J39=\"\",\"\",IFERROR(INDEX('CHART OF ACCOUNTS'!G:G,MATCH('Coding Generator'!$J39,'CHART OF ACCOUNTS'!$N:$N,0)),\"Contact Finance\"))","v":""},{"$f":"IF($J39=\"\",\"\",IFERROR(INDEX('CHART OF ACCOUNTS'!H:H,MATCH('Coding Generator'!$J39,'CHART OF ACCOUNTS'!$N:$N,0)),\"Contact Finance\"))","v":""},{"$f":"IF($J39=\"\",\"\",IFERROR(INDEX('CHART OF ACCOUNTS'!D:D,MATCH('Coding Generator'!$J39,'CHART OF ACCOUNTS'!$N:$N,0)),\"Contact Finance\"))","v":""},{"$f":"IF($J39=\"\",\"\",IFERROR(INDEX('CHART OF ACCOUNTS'!F:F,MATCH('Coding Generator'!$J39,'CHART OF ACCOUNTS'!$N:$N,0)),\"Contact Finance\"))","v":""}]
[35,null,{"$f":"IF($B40=\"\",\"\",IFERROR(INDEX('Work Order Master'!K:K,MATCH('Coding Generator'!$B40,'Work Order Master'!$S:$S,0)),\"Contact Finance\"))","v":""},{"$f":"IF($B40=\"\",\"\",IFERROR(INDEX('Work Order Master'!L:L,MATCH('Coding Generator'!$B40,'Work Order Master'!$S:$S,0)),\"Contact Finance\"))","v":""},{"$f":"IF($B40=\"\",\"\",IFERROR(INDEX('Work Order Master'!M:M,MATCH('Coding Generator'!$B40,'Work Order Master'!$S:$S,0)),\"Contact Finance\"))","v":""},{"$f":"IF($B40=\"\",\"\",IFERROR(INDEX('Work Order Master'!N:N,MATCH('Coding Generator'!$B40,'Work Order Master'!$S:$S,0)),\"Contact Finance\"))","v":""},{"$f":"IF($B40=\"\",\"\",IFERROR(INDEX('Work Order Master'!U:U,MATCH('Coding Generator'!$B40,'Work Order Master'!$S:$S,0)),\"Contact Finance\"))","v":""},null,35,null,{"$f":"IF($J40=\"\",\"\",IFERROR(INDEX('CHART OF ACCOUNTS'!G:G,MATCH('Coding Generator'!$J40,'CHART OF ACCOUNTS'!$N:$N,0)),\"Contact Finance\"))","v":""},{"$f":"IF($J40=\"\",\"\",IFERROR(INDEX('CHART OF ACCOUNTS'!H:H,MATCH('Coding Generator'!$J40,'CHART OF ACCOUNTS'!$N:$N,0)),\"Contact Finance\"))","v":""},{"$f":"IF($J40=\"\",\"\",IFERROR(INDEX('CHART OF ACCOUNTS'!D:D,MATCH('Coding Generator'!$J40,'CHART OF ACCOUNTS'!$N:$N,0)),\"Contact Finance\"))","v":""},{"$f":"IF($J40=\"\",\"\",IFERROR(INDEX('CHART OF ACCOUNTS'!F:F,MATCH('Coding Generator'!$J40,'CHART OF ACCOUNTS'!$N:$N,0)),\"Contact Finance\"))","v":""}]
[36,null,{"$f":"IF($B41=\"\",\"\",IFERROR(INDEX('Work Order Master'!K:K,MATCH('Coding Generator'!$B41,'Work Order Master'!$S:$S,0)),\"Contact Finance\"))","v":""},{"$f":"IF($B41=\"\",\"\",IFERROR(INDEX('Work Order Master'!L:L,MATCH('Coding Generator'!$B41,'Work Order Master'!$S:$S,0)),\"Contact Finance\"))","v":""},{"$f":"IF($B41=\"\",\"\",IFERROR(INDEX('Work Order Master'!M:M,MATCH('Coding Generator'!$B41,'Work Order Master'!$S:$S,0)),\"Contact Finance\"))","v":""},{"$f":"IF($B41=\"\",\"\",IFERROR(INDEX('Work Order Master'!N:N,MATCH('Coding Generator'!$B41,'Work Order Master'!$S:$S,0)),\"Contact Finance\"))","v":""},{"$f":"IF($B41=\"\",\"\",IFERROR(INDEX('Work Order Master'!U:U,MATCH('Coding Generator'!$B41,'Work Order Master'!$S:$S,0)),\"Contact Finance\"))","v":""},null,36,null,{"$f":"IF($J41=\"\",\"\",IFERROR(INDEX('CHART OF ACCOUNTS'!G:G,MATCH('Coding Generator'!$J41,'CHART OF ACCOUNTS'!$N:$N,0)),\"Contact Finance\"))","v":""},{"$f":"IF($J41=\"\",\"\",IFERROR(INDEX('CHART OF ACCOUNTS'!H:H,MATCH('Coding Generator'!$J41,'CHART OF ACCOUNTS'!$N:$N,0)),\"Contact Finance\"))","v":""},{"$f":"IF($J41=\"\",\"\",IFERROR(INDEX('CHART OF ACCOUNTS'!D:D,MATCH('Coding Generator'!$J41,'CHART OF ACCOUNTS'!$N:$N,0)),\"Contact Finance\"))","v":""},{"$f":"IF($J41=\"\",\"\",IFERROR(INDEX('CHART OF ACCOUNTS'!F:F,MATCH('Coding Generator'!$J41,'CHART OF ACCOUNTS'!$N:$N,0)),\"Contact Finance\"))","v":""}]
[37,null,{"$f":"IF($B42=\"\",\"\",IFERROR(INDEX('Work Order Master'!K:K,MATCH('Coding Generator'!$B42,'Work Order Master'!$S:$S,0)),\"Contact Finance\"))","v":""},{"$f":"IF($B42=\"\",\"\",IFERROR(INDEX('Work Order Master'!L:L,MATCH('Coding Generator'!$B42,'Work Order Master'!$S:$S,0)),\"Contact Finance\"))","v":""},{"$f":"IF($B42=\"\",\"\",IFERROR(INDEX('Work Order Master'!M:M,MATCH('Coding Generator'!$B42,'Work Order Master'!$S:$S,0)),\"Contact Finance\"))","v":""},{"$f":"IF($B42=\"\",\"\",IFERROR(INDEX('Work Order Master'!N:N,MATCH('Coding Generator'!$B42,'Work Order Master'!$S:$S,0)),\"Contact Finance\"))","v":""},{"$f":"IF($B42=\"\",\"\",IFERROR(INDEX('Work Order Master'!U:U,MATCH('Coding Generator'!$B42,'Work Order Master'!$S:$S,0)),\"Contact Finance\"))","v":""},null,37,null,{"$f":"IF($J42=\"\",\"\",IFERROR(INDEX('CHART OF ACCOUNTS'!G:G,MATCH('Coding Generator'!$J42,'CHART OF ACCOUNTS'!$N:$N,0)),\"Contact Finance\"))","v":""},{"$f":"IF($J42=\"\",\"\",IFERROR(INDEX('CHART OF ACCOUNTS'!H:H,MATCH('Coding Generator'!$J42,'CHART OF ACCOUNTS'!$N:$N,0)),\"Contact Finance\"))","v":""},{"$f":"IF($J42=\"\",\"\",IFERROR(INDEX('CHART OF ACCOUNTS'!D:D,MATCH('Coding Generator'!$J42,'CHART OF ACCOUNTS'!$N:$N,0)),\"Contact Finance\"))","v":""},{"$f":"IF($J42=\"\",\"\",IFERROR(INDEX('CHART OF ACCOUNTS'!F:F,MATCH('Coding Generator'!$J42,'CHART OF ACCOUNTS'!$N:$N,0)),\"Contact Finance\"))","v":""}]
[38,null,{"$f":"IF($B43=\"\",\"\",IFERROR(INDEX('Work Order Master'!K:K,MATCH('Coding Generator'!$B43,'Work Order Master'!$S:$S,0)),\"Contact Finance\"))","v":""},{"$f":"IF($B43=\"\",\"\",IFERROR(INDEX('Work Order Master'!L:L,MATCH('Coding Generator'!$B43,'Work Order Master'!$S:$S,0)),\"Contact Finance\"))","v":""},{"$f":"IF($B43=\"\",\"\",IFERROR(INDEX('Work Order Master'!M:M,MATCH('Coding Generator'!$B43,'Work Order Master'!$S:$S,0)),\"Contact Finance\"))","v":""},{"$f":"IF($B43=\"\",\"\",IFERROR(INDEX('Work Order Master'!N:N,MATCH('Coding Generator'!$B43,'Work Order Master'!$S:$S,0)),\"Contact Finance\"))","v":""},{"$f":"IF($B43=\"\",\"\",IFERROR(INDEX('Work Order Master'!U:U,MATCH('Coding Generator'!$B43,'Work Order Master'!$S:$S,0)),\"Contact Finance\"))","v":""},null,38,null,{"$f":"IF($J43=\"\",\"\",IFERROR(INDEX('CHART OF ACCOUNTS'!G:G,MATCH('Coding Generator'!$J43,'CHART OF ACCOUNTS'!$N:$N,0)),\"Contact Finance\"))","v":""},{"$f":"IF($J43=\"\",\"\",IFERROR(INDEX('CHART OF ACCOUNTS'!H:H,MATCH('Coding Generator'!$J43,'CHART OF ACCOUNTS'!$N:$N,0)),\"Contact Finance\"))","v":""},{"$f":"IF($J43=\"\",\"\",IFERROR(INDEX('CHART OF ACCOUNTS'!D:D,MATCH('Coding Generator'!$J43,'CHART OF ACCOUNTS'!$N:$N,0)),\"Contact Finance\"))","v":""},{"$f":"IF($J43=\"\",\"\",IFERROR(INDEX('CHART OF ACCOUNTS'!F:F,MATCH('Coding Generator'!$J43,'CHART OF ACCOUNTS'!$N:$N,0)),\"Contact Finance\"))","v":""}]
[39,null,{"$f":"IF($B44=\"\",\"\",IFERROR(INDEX('Work Order Master'!K:K,MATCH('Coding Generator'!$B44,'Work Order Master'!$S:$S,0)),\"Contact Finance\"))","v":""},{"$f":"IF($B44=\"\",\"\",IFERROR(INDEX('Work Order Master'!L:L,MATCH('Coding Generator'!$B44,'Work Order Master'!$S:$S,0)),\"Contact Finance\"))","v":""},{"$f":"IF($B44=\"\",\"\",IFERROR(INDEX('Work Order Master'!M:M,MATCH('Coding Generator'!$B44,'Work Order Master'!$S:$S,0)),\"Contact Finance\"))","v":""},{"$f":"IF($B44=\"\",\"\",IFERROR(INDEX('Work Order Master'!N:N,MATCH('Coding Generator'!$B44,'Work Order Master'!$S:$S,0)),\"Contact Finance\"))","v":""},{"$f":"IF($B44=\"\",\"\",IFERROR(INDEX('Work Order Master'!U:U,MATCH('Coding Generator'!$B44,'Work Order Master'!$S:$S,0)),\"Contact Finance\"))","v":""},null,39,null,{"$f":"IF($J44=\"\",\"\",IFERROR(INDEX('CHART OF ACCOUNTS'!G:G,MATCH('Coding Generator'!$J44,'CHART OF ACCOUNTS'!$N:$N,0)),\"Contact Finance\"))","v":""},{"$f":"IF($J44=\"\",\"\",IFERROR(INDEX('CHART OF ACCOUNTS'!H:H,MATCH('Coding Generator'!$J44,'CHART OF ACCOUNTS'!$N:$N,0)),\"Contact Finance\"))","v":""},{"$f":"IF($J44=\"\",\"\",IFERROR(INDEX('CHART OF ACCOUNTS'!D:D,MATCH('Coding Generator'!$J44,'CHART OF ACCOUNTS'!$N:$N,0)),\"Contact Finance\"))","v":""},{"$f":"IF($J44=\"\",\"\",IFERROR(INDEX('CHART OF ACCOUNTS'!F:F,MATCH('Coding Generator'!$J44,'CHART OF ACCOUNTS'!$N:$N,0)),\"Contact Finance\"))","v":""}]
[40,null,{"$f":"IF($B45=\"\",\"\",IFERROR(INDEX('Work Order Master'!K:K,MATCH('Coding Generator'!$B45,'Work Order Master'!$S:$S,0)),\"Contact Finance\"))","v":""},{"$f":"IF($B45=\"\",\"\",IFERROR(INDEX('Work Order Master'!L:L,MATCH('Coding Generator'!$B45,'Work Order Master'!$S:$S,0)),\"Contact Finance\"))","v":""},{"$f":"IF($B45=\"\",\"\",IFERROR(INDEX('Work Order Master'!M:M,MATCH('Coding Generator'!$B45,'Work Order Master'!$S:$S,0)),\"Contact Finance\"))","v":""},{"$f":"IF($B45=\"\",\"\",IFERROR(INDEX('Work Order Master'!N:N,MATCH('Coding Generator'!$B45,'Work Order Master'!$S:$S,0)),\"Contact Finance\"))","v":""},{"$f":"IF($B45=\"\",\"\",IFERROR(INDEX('Work Order Master'!U:U,MATCH('Coding Generator'!$B45,'Work Order Master'!$S:$S,0)),\"Contact Finance\"))","v":""},null,40,null,{"$f":"IF($J45=\"\",\"\",IFERROR(INDEX('CHART OF ACCOUNTS'!G:G,MATCH('Coding Generator'!$J45,'CHART OF ACCOUNTS'!$N:$N,0)),\"Contact Finance\"))","v":""},{"$f":"IF($J45=\"\",\"\",IFERROR(INDEX('CHART OF ACCOUNTS'!H:H,MATCH('Coding Generator'!$J45,'CHART OF ACCOUNTS'!$N:$N,0)),\"Contact Finance\"))","v":""},{"$f":"IF($J45=\"\",\"\",IFERROR(INDEX('CHART OF ACCOUNTS'!D:D,MATCH('Coding Generator'!$J45,'CHART OF ACCOUNTS'!$N:$N,0)),\"Contact Finance\"))","v":""},{"$f":"IF($J45=\"\",\"\",IFERROR(INDEX('CHART OF ACCOUNTS'!F:F,MATCH('Coding Generator'!$J45,'CHART OF ACCOUNTS'!$N:$N,0)),\"Contact Finance\"))","v":""}]
[41,null,{"$f":"IF($B46=\"\",\"\",IFERROR(INDEX('Work Order Master'!K:K,MATCH('Coding Generator'!$B46,'Work Order Master'!$S:$S,0)),\"Contact Finance\"))","v":""},{"$f":"IF($B46=\"\",\"\",IFERROR(INDEX('Work Order Master'!L:L,MATCH('Coding Generator'!$B46,'Work Order Master'!$S:$S,0)),\"Contact Finance\"))","v":""},{"$f":"IF($B46=\"\",\"\",IFERROR(INDEX('Work Order Master'!M:M,MATCH('Coding Generator'!$B46,'Work Order Master'!$S:$S,0)),\"Contact Finance\"))","v":""},{"$f":"IF($B46=\"\",\"\",IFERROR(INDEX('Work Order Master'!N:N,MATCH('Coding Generator'!$B46,'Work Order Master'!$S:$S,0)),\"Contact Finance\"))","v":""},{"$f":"IF($B46=\"\",\"\",IFERROR(INDEX('Work Order Master'!U:U,MATCH('Coding Generator'!$B46,'Work Order Master'!$S:$S,0)),\"Contact Finance\"))","v":""},null,41,null,{"$f":"IF($J46=\"\",\"\",IFERROR(INDEX('CHART OF ACCOUNTS'!G:G,MATCH('Coding Generator'!$J46,'CHART OF ACCOUNTS'!$N:$N,0)),\"Contact Finance\"))","v":""},{"$f":"IF($J46=\"\",\"\",IFERROR(INDEX('CHART OF ACCOUNTS'!H:H,MATCH('Coding Generator'!$J46,'CHART OF ACCOUNTS'!$N:$N,0)),\"Contact Finance\"))","v":""},{"$f":"IF($J46=\"\",\"\",IFERROR(INDEX('CHART OF ACCOUNTS'!D:D,MATCH('Coding Generator'!$J46,'CHART OF ACCOUNTS'!$N:$N,0)),\"Contact Finance\"))","v":""},{"$f":"IF($J46=\"\",\"\",IFERROR(INDEX('CHART OF ACCOUNTS'!F:F,MATCH('Coding Generator'!$J46,'CHART OF ACCOUNTS'!$N:$N,0)),\"Contact Finance\"))","v":""}]
[42,null,{"$f":"IF($B47=\"\",\"\",IFERROR(INDEX('Work Order Master'!K:K,MATCH('Coding Generator'!$B47,'Work Order Master'!$S:$S,0)),\"Contact Finance\"))","v":""},{"$f":"IF($B47=\"\",\"\",IFERROR(INDEX('Work Order Master'!L:L,MATCH('Coding Generator'!$B47,'Work Order Master'!$S:$S,0)),\"Contact Finance\"))","v":""},{"$f":"IF($B47=\"\",\"\",IFERROR(INDEX('Work Order Master'!M:M,MATCH('Coding Generator'!$B47,'Work Order Master'!$S:$S,0)),\"Contact Finance\"))","v":""},{"$f":"IF($B47=\"\",\"\",IFERROR(INDEX('Work Order Master'!N:N,MATCH('Coding Generator'!$B47,'Work Order Master'!$S:$S,0)),\"Contact Finance\"))","v":""},{"$f":"IF($B47=\"\",\"\",IFERROR(INDEX('Work Order Master'!U:U,MATCH('Coding Generator'!$B47,'Work Order Master'!$S:$S,0)),\"Contact Finance\"))","v":""},null,42,null,{"$f":"IF($J47=\"\",\"\",IFERROR(INDEX('CHART OF ACCOUNTS'!G:G,MATCH('Coding Generator'!$J47,'CHART OF ACCOUNTS'!$N:$N,0)),\"Contact Finance\"))","v":""},{"$f":"IF($J47=\"\",\"\",IFERROR(INDEX('CHART OF ACCOUNTS'!H:H,MATCH('Coding Generator'!$J47,'CHART OF ACCOUNTS'!$N:$N,0)),\"Contact Finance\"))","v":""},{"$f":"IF($J47=\"\",\"\",IFERROR(INDEX('CHART OF ACCOUNTS'!D:D,MATCH('Coding Generator'!$J47,'CHART OF ACCOUNTS'!$N:$N,0)),\"Contact Finance\"))","v":""},{"$f":"IF($J47=\"\",\"\",IFERROR(INDEX('CHART OF ACCOUNTS'!F:F,MATCH('Coding Generator'!$J47,'CHART OF ACCOUNTS'!$N:$N,0)),\"Contact Finance\"))","v":""}]
[43,null,{"$f":"IF($B48=\"\",\"\",IFERROR(INDEX('Work Order Master'!K:K,MATCH('Coding Generator'!$B48,'Work Order Master'!$S:$S,0)),\"Contact Finance\"))","v":""},{"$f":"IF($B48=\"\",\"\",IFERROR(INDEX('Work Order Master'!L:L,MATCH('Coding Generator'!$B48,'Work Order Master'!$S:$S,0)),\"Contact Finance\"))","v":""},{"$f":"IF($B48=\"\",\"\",IFERROR(INDEX('Work Order Master'!M:M,MATCH('Coding Generator'!$B48,'Work Order Master'!$S:$S,0)),\"Contact Finance\"))","v":""},{"$f":"IF($B48=\"\",\"\",IFERROR(INDEX('Work Order Master'!N:N,MATCH('Coding Generator'!$B48,'Work Order Master'!$S:$S,0)),\"Contact Finance\"))","v":""},{"$f":"IF($B48=\"\",\"\",IFERROR(INDEX('Work Order Master'!U:U,MATCH('Coding Generator'!$B48,'Work Order Master'!$S:$S,0)),\"Contact Finance\"))","v":""},null,43,null,{"$f":"IF($J48=\"\",\"\",IFERROR(INDEX('CHART OF ACCOUNTS'!G:G,MATCH('Coding Generator'!$J48,'CHART OF ACCOUNTS'!$N:$N,0)),\"Contact Finance\"))","v":""},{"$f":"IF($J48=\"\",\"\",IFERROR(INDEX('CHART OF ACCOUNTS'!H:H,MATCH('Coding Generator'!$J48,'CHART OF ACCOUNTS'!$N:$N,0)),\"Contact Finance\"))","v":""},{"$f":"IF($J48=\"\",\"\",IFERROR(INDEX('CHART OF ACCOUNTS'!D:D,MATCH('Coding Generator'!$J48,'CHART OF ACCOUNTS'!$N:$N,0)),\"Contact Finance\"))","v":""},{"$f":"IF($J48=\"\",\"\",IFERROR(INDEX('CHART OF ACCOUNTS'!F:F,MATCH('Coding Generator'!$J48,'CHART OF ACCOUNTS'!$N:$N,0)),\"Contact Finance\"))","v":""}]
[44,null,{"$f":"IF($B49=\"\",\"\",IFERROR(INDEX('Work Order Master'!K:K,MATCH('Coding Generator'!$B49,'Work Order Master'!$S:$S,0)),\"Contact Finance\"))","v":""},{"$f":"IF($B49=\"\",\"\",IFERROR(INDEX('Work Order Master'!L:L,MATCH('Coding Generator'!$B49,'Work Order Master'!$S:$S,0)),\"Contact Finance\"))","v":""},{"$f":"IF($B49=\"\",\"\",IFERROR(INDEX('Work Order Master'!M:M,MATCH('Coding Generator'!$B49,'Work Order Master'!$S:$S,0)),\"Contact Finance\"))","v":""},{"$f":"IF($B49=\"\",\"\",IFERROR(INDEX('Work Order Master'!N:N,MATCH('Coding Generator'!$B49,'Work Order Master'!$S:$S,0)),\"Contact Finance\"))","v":""},{"$f":"IF($B49=\"\",\"\",IFERROR(INDEX('Work Order Master'!U:U,MATCH('Coding Generator'!$B49,'Work Order Master'!$S:$S,0)),\"Contact Finance\"))","v":""},null,44,null,{"$f":"IF($J49=\"\",\"\",IFERROR(INDEX('CHART OF ACCOUNTS'!G:G,MATCH('Coding Generator'!$J49,'CHART OF ACCOUNTS'!$N:$N,0)),\"Contact Finance\"))","v":""},{"$f":"IF($J49=\"\",\"\",IFERROR(INDEX('CHART OF ACCOUNTS'!H:H,MATCH('Coding Generator'!$J49,'CHART OF ACCOUNTS'!$N:$N,0)),\"Contact Finance\"))","v":""},{"$f":"IF($J49=\"\",\"\",IFERROR(INDEX('CHART OF ACCOUNTS'!D:D,MATCH('Coding Generator'!$J49,'CHART OF ACCOUNTS'!$N:$N,0)),\"Contact Finance\"))","v":""},{"$f":"IF($J49=\"\",\"\",IFERROR(INDEX('CHART OF ACCOUNTS'!F:F,MATCH('Coding Generator'!$J49,'CHART OF ACCOUNTS'!$N:$N,0)),\"Contact Finance\"))","v":""}]
[45,null,{"$f":"IF($B50=\"\",\"\",IFERROR(INDEX('Work Order Master'!K:K,MATCH('Coding Generator'!$B50,'Work Order Master'!$S:$S,0)),\"Contact Finance\"))","v":""},{"$f":"IF($B50=\"\",\"\",IFERROR(INDEX('Work Order Master'!L:L,MATCH('Coding Generator'!$B50,'Work Order Master'!$S:$S,0)),\"Contact Finance\"))","v":""},{"$f":"IF($B50=\"\",\"\",IFERROR(INDEX('Work Order Master'!M:M,MATCH('Coding Generator'!$B50,'Work Order Master'!$S:$S,0)),\"Contact Finance\"))","v":""},{"$f":"IF($B50=\"\",\"\",IFERROR(INDEX('Work Order Master'!N:N,MATCH('Coding Generator'!$B50,'Work Order Master'!$S:$S,0)),\"Contact Finance\"))","v":""},{"$f":"IF($B50=\"\",\"\",IFERROR(INDEX('Work Order Master'!U:U,MATCH('Coding Generator'!$B50,'Work Order Master'!$S:$S,0)),\"Contact Finance\"))","v":""},null,45,null,{"$f":"IF($J50=\"\",\"\",IFERROR(INDEX('CHART OF ACCOUNTS'!G:G,MATCH('Coding Generator'!$J50,'CHART OF ACCOUNTS'!$N:$N,0)),\"Contact Finance\"))","v":""},{"$f":"IF($J50=\"\",\"\",IFERROR(INDEX('CHART OF ACCOUNTS'!H:H,MATCH('Coding Generator'!$J50,'CHART OF ACCOUNTS'!$N:$N,0)),\"Contact Finance\"))","v":""},{"$f":"IF($J50=\"\",\"\",IFERROR(INDEX('CHART OF ACCOUNTS'!D:D,MATCH('Coding Generator'!$J50,'CHART OF ACCOUNTS'!$N:$N,0)),\"Contact Finance\"))","v":""},{"$f":"IF($J50=\"\",\"\",IFERROR(INDEX('CHART OF ACCOUNTS'!F:F,MATCH('Coding Generator'!$J50,'CHART OF ACCOUNTS'!$N:$N,0)),\"Contact Finance\"))","v":""}]
[46,null,{"$f":"IF($B51=\"\",\"\",IFERROR(INDEX('Work Order Master'!K:K,MATCH('Coding Generator'!$B51,'Work Order Master'!$S:$S,0)),\"Contact Finance\"))","v":""},{"$f":"IF($B51=\"\",\"\",IFERROR(INDEX('Work Order Master'!L:L,MATCH('Coding Generator'!$B51,'Work Order Master'!$S:$S,0)),\"Contact Finance\"))","v":""},{"$f":"IF($B51=\"\",\"\",IFERROR(INDEX('Work Order Master'!M:M,MATCH('Coding Generator'!$B51,'Work Order Master'!$S:$S,0)),\"Contact Finance\"))","v":""},{"$f":"IF($B51=\"\",\"\",IFERROR(INDEX('Work Order Master'!N:N,MATCH('Coding Generator'!$B51,'Work Order Master'!$S:$S,0)),\"Contact Finance\"))","v":""},{"$f":"IF($B51=\"\",\"\",IFERROR(INDEX('Work Order Master'!U:U,MATCH('Coding Generator'!$B51,'Work Order Master'!$S:$S,0)),\"Contact Finance\"))","v":""},null,46,null,{"$f":"IF($J51=\"\",\"\",IFERROR(INDEX('CHART OF ACCOUNTS'!G:G,MATCH('Coding Generator'!$J51,'CHART OF ACCOUNTS'!$N:$N,0)),\"Contact Finance\"))","v":""},{"$f":"IF($J51=\"\",\"\",IFERROR(INDEX('CHART OF ACCOUNTS'!H:H,MATCH('Coding Generator'!$J51,'CHART OF ACCOUNTS'!$N:$N,0)),\"Contact Finance\"))","v":""},{"$f":"IF($J51=\"\",\"\",IFERROR(INDEX('CHART OF ACCOUNTS'!D:D,MATCH('Coding Generator'!$J51,'CHART OF ACCOUNTS'!$N:$N,0)),\"Contact Finance\"))","v":""},{"$f":"IF($J51=\"\",\"\",IFERROR(INDEX('CHART OF ACCOUNTS'!F:F,MATCH('Coding Generator'!$J51,'CHART OF ACCOUNTS'!$N:$N,0)),\"Contact Finance\"))","v":""}]
[47,null,{"$f":"IF($B52=\"\",\"\",IFERROR(INDEX('Work Order Master'!K:K,MATCH('Coding Generator'!$B52,'Work Order Master'!$S:$S,0)),\"Contact Finance\"))","v":""},{"$f":"IF($B52=\"\",\"\",IFERROR(INDEX('Work Order Master'!L:L,MATCH('Coding Generator'!$B52,'Work Order Master'!$S:$S,0)),\"Contact Finance\"))","v":""},{"$f":"IF($B52=\"\",\"\",IFERROR(INDEX('Work Order Master'!M:M,MATCH('Coding Generator'!$B52,'Work Order Master'!$S:$S,0)),\"Contact Finance\"))","v":""},{"$f":"IF($B52=\"\",\"\",IFERROR(INDEX('Work Order Master'!N:N,MATCH('Coding Generator'!$B52,'Work Order Master'!$S:$S,0)),\"Contact Finance\"))","v":""},{"$f":"IF($B52=\"\",\"\",IFERROR(INDEX('Work Order Master'!U:U,MATCH('Coding Generator'!$B52,'Work Order Master'!$S:$S,0)),\"Contact Finance\"))","v":""},null,47,null,{"$f":"IF($J52=\"\",\"\",IFERROR(INDEX('CHART OF ACCOUNTS'!G:G,MATCH('Coding Generator'!$J52,'CHART OF ACCOUNTS'!$N:$N,0)),\"Contact Finance\"))","v":""},{"$f":"IF($J52=\"\",\"\",IFERROR(INDEX('CHART OF ACCOUNTS'!H:H,MATCH('Coding Generator'!$J52,'CHART OF ACCOUNTS'!$N:$N,0)),\"Contact Finance\"))","v":""},{"$f":"IF($J52=\"\",\"\",IFERROR(INDEX('CHART OF ACCOUNTS'!D:D,MATCH('Coding Generator'!$J52,'CHART OF ACCOUNTS'!$N:$N,0)),\"Contact Finance\"))","v":""},{"$f":"IF($J52=\"\",\"\",IFERROR(INDEX('CHART OF ACCOUNTS'!F:F,MATCH('Coding Generator'!$J52,'CHART OF ACCOUNTS'!$N:$N,0)),\"Contact Finance\"))","v":""}]
[48,null,{"$f":"IF($B53=\"\",\"\",IFERROR(INDEX('Work Order Master'!K:K,MATCH('Coding Generator'!$B53,'Work Order Master'!$S:$S,0)),\"Contact Finance\"))","v":""},{"$f":"IF($B53=\"\",\"\",IFERROR(INDEX('Work Order Master'!L:L,MATCH('Coding Generator'!$B53,'Work Order Master'!$S:$S,0)),\"Contact Finance\"))","v":""},{"$f":"IF($B53=\"\",\"\",IFERROR(INDEX('Work Order Master'!M:M,MATCH('Coding Generator'!$B53,'Work Order Master'!$S:$S,0)),\"Contact Finance\"))","v":""},{"$f":"IF($B53=\"\",\"\",IFERROR(INDEX('Work Order Master'!N:N,MATCH('Coding Generator'!$B53,'Work Order Master'!$S:$S,0)),\"Contact Finance\"))","v":""},{"$f":"IF($B53=\"\",\"\",IFERROR(INDEX('Work Order Master'!U:U,MATCH('Coding Generator'!$B53,'Work Order Master'!$S:$S,0)),\"Contact Finance\"))","v":""},null,48,null,{"$f":"IF($J53=\"\",\"\",IFERROR(INDEX('CHART OF ACCOUNTS'!G:G,MATCH('Coding Generator'!$J53,'CHART OF ACCOUNTS'!$N:$N,0)),\"Contact Finance\"))","v":""},{"$f":"IF($J53=\"\",\"\",IFERROR(INDEX('CHART OF ACCOUNTS'!H:H,MATCH('Coding Generator'!$J53,'CHART OF ACCOUNTS'!$N:$N,0)),\"Contact Finance\"))","v":""},{"$f":"IF($J53=\"\",\"\",IFERROR(INDEX('CHART OF ACCOUNTS'!D:D,MATCH('Coding Generator'!$J53,'CHART OF ACCOUNTS'!$N:$N,0)),\"Contact Finance\"))","v":""},{"$f":"IF($J53=\"\",\"\",IFERROR(INDEX('CHART OF ACCOUNTS'!F:F,MATCH('Coding Generator'!$J53,'CHART OF ACCOUNTS'!$N:$N,0)),\"Contact Finance\"))","v":""}]
[49,null,{"$f":"IF($B54=\"\",\"\",IFERROR(INDEX('Work Order Master'!K:K,MATCH('Coding Generator'!$B54,'Work Order Master'!$S:$S,0)),\"Contact Finance\"))","v":""},{"$f":"IF($B54=\"\",\"\",IFERROR(INDEX('Work Order Master'!L:L,MATCH('Coding Generator'!$B54,'Work Order Master'!$S:$S,0)),\"Contact Finance\"))","v":""},{"$f":"IF($B54=\"\",\"\",IFERROR(INDEX('Work Order Master'!M:M,MATCH('Coding Generator'!$B54,'Work Order Master'!$S:$S,0)),\"Contact Finance\"))","v":""},{"$f":"IF($B54=\"\",\"\",IFERROR(INDEX('Work Order Master'!N:N,MATCH('Coding Generator'!$B54,'Work Order Master'!$S:$S,0)),\"Contact Finance\"))","v":""},{"$f":"IF($B54=\"\",\"\",IFERROR(INDEX('Work Order Master'!U:U,MATCH('Coding Generator'!$B54,'Work Order Master'!$S:$S,0)),\"Contact Finance\"))","v":""},null,49,null,{"$f":"IF($J54=\"\",\"\",IFERROR(INDEX('CHART OF ACCOUNTS'!G:G,MATCH('Coding Generator'!$J54,'CHART OF ACCOUNTS'!$N:$N,0)),\"Contact Finance\"))","v":""},{"$f":"IF($J54=\"\",\"\",IFERROR(INDEX('CHART OF ACCOUNTS'!H:H,MATCH('Coding Generator'!$J54,'CHART OF ACCOUNTS'!$N:$N,0)),\"Contact Finance\"))","v":""},{"$f":"IF($J54=\"\",\"\",IFERROR(INDEX('CHART OF ACCOUNTS'!D:D,MATCH('Coding Generator'!$J54,'CHART OF ACCOUNTS'!$N:$N,0)),\"Contact Finance\"))","v":""},{"$f":"IF($J54=\"\",\"\",IFERROR(INDEX('CHART OF ACCOUNTS'!F:F,MATCH('Coding Generator'!$J54,'CHART OF ACCOUNTS'!$N:$N,0)),\"Contact Finance\"))","v":""}]
[50,null,{"$f":"IF($B55=\"\",\"\",IFERROR(INDEX('Work Order Master'!K:K,MATCH('Coding Generator'!$B55,'Work Order Master'!$S:$S,0)),\"Contact Finance\"))","v":""},{"$f":"IF($B55=\"\",\"\",IFERROR(INDEX('Work Order Master'!L:L,MATCH('Coding Generator'!$B55,'Work Order Master'!$S:$S,0)),\"Contact Finance\"))","v":""},{"$f":"IF($B55=\"\",\"\",IFERROR(INDEX('Work Order Master'!M:M,MATCH('Coding Generator'!$B55,'Work Order Master'!$S:$S,0)),\"Contact Finance\"))","v":""},{"$f":"IF($B55=\"\",\"\",IFERROR(INDEX('Work Order Master'!N:N,MATCH('Coding Generator'!$B55,'Work Order Master'!$S:$S,0)),\"Contact Finance\"))","v":""},{"$f":"IF($B55=\"\",\"\",IFERROR(INDEX('Work Order Master'!U:U,MATCH('Coding Generator'!$B55,'Work Order Master'!$S:$S,0)),\"Contact Finance\"))","v":""},null,50,null,{"$f":"IF($J55=\"\",\"\",IFERROR(INDEX('CHART OF ACCOUNTS'!G:G,MATCH('Coding Generator'!$J55,'CHART OF ACCOUNTS'!$N:$N,0)),\"Contact Finance\"))","v":""},{"$f":"IF($J55=\"\",\"\",IFERROR(INDEX('CHART OF ACCOUNTS'!H:H,MATCH('Coding Generator'!$J55,'CHART OF ACCOUNTS'!$N:$N,0)),\"Contact Finance\"))","v":""},{"$f":"IF($J55=\"\",\"\",IFERROR(INDEX('CHART OF ACCOUNTS'!D:D,MATCH('Coding Generator'!$J55,'CHART OF ACCOUNTS'!$N:$N,0)),\"Contact Finance\"))","v":""},{"$f":"IF($J55=\"\",\"\",IFERROR(INDEX('CHART OF ACCOUNTS'!F:F,MATCH('Coding Generator'!$J55,'CHART OF ACCOUNTS'!$N:$N,0)),\"Contact Finance\"))","v":""}]
[51,null,{"$f":"IF($B56=\"\",\"\",IFERROR(INDEX('Work Order Master'!K:K,MATCH('Coding Generator'!$B56,'Work Order Master'!$S:$S,0)),\"Contact Finance\"))","v":""},{"$f":"IF($B56=\"\",\"\",IFERROR(INDEX('Work Order Master'!L:L,MATCH('Coding Generator'!$B56,'Work Order Master'!$S:$S,0)),\"Contact Finance\"))","v":""},{"$f":"IF($B56=\"\",\"\",IFERROR(INDEX('Work Order Master'!M:M,MATCH('Coding Generator'!$B56,'Work Order Master'!$S:$S,0)),\"Contact Finance\"))","v":""},{"$f":"IF($B56=\"\",\"\",IFERROR(INDEX('Work Order Master'!N:N,MATCH('Coding Generator'!$B56,'Work Order Master'!$S:$S,0)),\"Contact Finance\"))","v":""},{"$f":"IF($B56=\"\",\"\",IFERROR(INDEX('Work Order Master'!U:U,MATCH('Coding Generator'!$B56,'Work Order Master'!$S:$S,0)),\"Contact Finance\"))","v":""},null,51,null,{"$f":"IF($J56=\"\",\"\",IFERROR(INDEX('CHART OF ACCOUNTS'!G:G,MATCH('Coding Generator'!$J56,'CHART OF ACCOUNTS'!$N:$N,0)),\"Contact Finance\"))","v":""},{"$f":"IF($J56=\"\",\"\",IFERROR(INDEX('CHART OF ACCOUNTS'!H:H,MATCH('Coding Generator'!$J56,'CHART OF ACCOUNTS'!$N:$N,0)),\"Contact Finance\"))","v":""},{"$f":"IF($J56=\"\",\"\",IFERROR(INDEX('CHART OF ACCOUNTS'!D:D,MATCH('Coding Generator'!$J56,'CHART OF ACCOUNTS'!$N:$N,0)),\"Contact Finance\"))","v":""},{"$f":"IF($J56=\"\",\"\",IFERROR(INDEX('CHART OF ACCOUNTS'!F:F,MATCH('Coding Generator'!$J56,'CHART OF ACCOUNTS'!$N:$N,0)),\"Contact Finance\"))","v":""}]
[52,null,{"$f":"IF($B57=\"\",\"\",IFERROR(INDEX('Work Order Master'!K:K,MATCH('Coding Generator'!$B57,'Work Order Master'!$S:$S,0)),\"Contact Finance\"))","v":""},{"$f":"IF($B57=\"\",\"\",IFERROR(INDEX('Work Order Master'!L:L,MATCH('Coding Generator'!$B57,'Work Order Master'!$S:$S,0)),\"Contact Finance\"))","v":""},{"$f":"IF($B57=\"\",\"\",IFERROR(INDEX('Work Order Master'!M:M,MATCH('Coding Generator'!$B57,'Work Order Master'!$S:$S,0)),\"Contact Finance\"))","v":""},{"$f":"IF($B57=\"\",\"\",IFERROR(INDEX('Work Order Master'!N:N,MATCH('Coding Generator'!$B57,'Work Order Master'!$S:$S,0)),\"Contact Finance\"))","v":""},{"$f":"IF($B57=\"\",\"\",IFERROR(INDEX('Work Order Master'!U:U,MATCH('Coding Generator'!$B57,'Work Order Master'!$S:$S,0)),\"Contact Finance\"))","v":""},null,52,null,{"$f":"IF($J57=\"\",\"\",IFERROR(INDEX('CHART OF ACCOUNTS'!G:G,MATCH('Coding Generator'!$J57,'CHART OF ACCOUNTS'!$N:$N,0)),\"Contact Finance\"))","v":""},{"$f":"IF($J57=\"\",\"\",IFERROR(INDEX('CHART OF ACCOUNTS'!H:H,MATCH('Coding Generator'!$J57,'CHART OF ACCOUNTS'!$N:$N,0)),\"Contact Finance\"))","v":""},{"$f":"IF($J57=\"\",\"\",IFERROR(INDEX('CHART OF ACCOUNTS'!D:D,MATCH('Coding Generator'!$J57,'CHART OF ACCOUNTS'!$N:$N,0)),\"Contact Finance\"))","v":""},{"$f":"IF($J57=\"\",\"\",IFERROR(INDEX('CHART OF ACCOUNTS'!F:F,MATCH('Coding Generator'!$J57,'CHART OF ACCOUNTS'!$N:$N,0)),\"Contact Finance\"))","v":""}]
[53,null,{"$f":"IF($B58=\"\",\"\",IFERROR(INDEX('Work Order Master'!K:K,MATCH('Coding Generator'!$B58,'Work Order Master'!$S:$S,0)),\"Contact Finance\"))","v":""},{"$f":"IF($B58=\"\",\"\",IFERROR(INDEX('Work Order Master'!L:L,MATCH('Coding Generator'!$B58,'Work Order Master'!$S:$S,0)),\"Contact Finance\"))","v":""},{"$f":"IF($B58=\"\",\"\",IFERROR(INDEX('Work Order Master'!M:M,MATCH('Coding Generator'!$B58,'Work Order Master'!$S:$S,0)),\"Contact Finance\"))","v":""},{"$f":"IF($B58=\"\",\"\",IFERROR(INDEX('Work Order Master'!N:N,MATCH('Coding Generator'!$B58,'Work Order Master'!$S:$S,0)),\"Contact Finance\"))","v":""},{"$f":"IF($B58=\"\",\"\",IFERROR(INDEX('Work Order Master'!U:U,MATCH('Coding Generator'!$B58,'Work Order Master'!$S:$S,0)),\"Contact Finance\"))","v":""},null,53,null,{"$f":"IF($J58=\"\",\"\",IFERROR(INDEX('CHART OF ACCOUNTS'!G:G,MATCH('Coding Generator'!$J58,'CHART OF ACCOUNTS'!$N:$N,0)),\"Contact Finance\"))","v":""},{"$f":"IF($J58=\"\",\"\",IFERROR(INDEX('CHART OF ACCOUNTS'!H:H,MATCH('Coding Generator'!$J58,'CHART OF ACCOUNTS'!$N:$N,0)),\"Contact Finance\"))","v":""},{"$f":"IF($J58=\"\",\"\",IFERROR(INDEX('CHART OF ACCOUNTS'!D:D,MATCH('Coding Generator'!$J58,'CHART OF ACCOUNTS'!$N:$N,0)),\"Contact Finance\"))","v":""},{"$f":"IF($J58=\"\",\"\",IFERROR(INDEX('CHART OF ACCOUNTS'!F:F,MATCH('Coding Generator'!$J58,'CHART OF ACCOUNTS'!$N:$N,0)),\"Contact Finance\"))","v":""}]
[54,null,{"$f":"IF($B59=\"\",\"\",IFERROR(INDEX('Work Order Master'!K:K,MATCH('Coding Generator'!$B59,'Work Order Master'!$S:$S,0)),\"Contact Finance\"))","v":""},{"$f":"IF($B59=\"\",\"\",IFERROR(INDEX('Work Order Master'!L:L,MATCH('Coding Generator'!$B59,'Work Order Master'!$S:$S,0)),\"Contact Finance\"))","v":""},{"$f":"IF($B59=\"\",\"\",IFERROR(INDEX('Work Order Master'!M:M,MATCH('Coding Generator'!$B59,'Work Order Master'!$S:$S,0)),\"Contact Finance\"))","v":""},{"$f":"IF($B59=\"\",\"\",IFERROR(INDEX('Work Order Master'!N:N,MATCH('Coding Generator'!$B59,'Work Order Master'!$S:$S,0)),\"Contact Finance\"))","v":""},{"$f":"IF($B59=\"\",\"\",IFERROR(INDEX('Work Order Master'!U:U,MATCH('Coding Generator'!$B59,'Work Order Master'!$S:$S,0)),\"Contact Finance\"))","v":""},null,54,null,{"$f":"IF($J59=\"\",\"\",IFERROR(INDEX('CHART OF ACCOUNTS'!G:G,MATCH('Coding Generator'!$J59,'CHART OF ACCOUNTS'!$N:$N,0)),\"Contact Finance\"))","v":""},{"$f":"IF($J59=\"\",\"\",IFERROR(INDEX('CHART OF ACCOUNTS'!H:H,MATCH('Coding Generator'!$J59,'CHART OF ACCOUNTS'!$N:$N,0)),\"Contact Finance\"))","v":""},{"$f":"IF($J59=\"\",\"\",IFERROR(INDEX('CHART OF ACCOUNTS'!D:D,MATCH('Coding Generator'!$J59,'CHART OF ACCOUNTS'!$N:$N,0)),\"Contact Finance\"))","v":""},{"$f":"IF($J59=\"\",\"\",IFERROR(INDEX('CHART OF ACCOUNTS'!F:F,MATCH('Coding Generator'!$J59,'CHART OF ACCOUNTS'!$N:$N,0)),\"Contact Finance\"))","v":""}]
[55,null,{"$f":"IF($B60=\"\",\"\",IFERROR(INDEX('Work Order Master'!K:K,MATCH('Coding Generator'!$B60,'Work Order Master'!$S:$S,0)),\"Contact Finance\"))","v":""},{"$f":"IF($B60=\"\",\"\",IFERROR(INDEX('Work Order Master'!L:L,MATCH('Coding Generator'!$B60,'Work Order Master'!$S:$S,0)),\"Contact Finance\"))","v":""},{"$f":"IF($B60=\"\",\"\",IFERROR(INDEX('Work Order Master'!M:M,MATCH('Coding Generator'!$B60,'Work Order Master'!$S:$S,0)),\"Contact Finance\"))","v":""},{"$f":"IF($B60=\"\",\"\",IFERROR(INDEX('Work Order Master'!N:N,MATCH('Coding Generator'!$B60,'Work Order Master'!$S:$S,0)),\"Contact Finance\"))","v":""},{"$f":"IF($B60=\"\",\"\",IFERROR(INDEX('Work Order Master'!U:U,MATCH('Coding Generator'!$B60,'Work Order Master'!$S:$S,0)),\"Contact Finance\"))","v":""},null,55,null,{"$f":"IF($J60=\"\",\"\",IFERROR(INDEX('CHART OF ACCOUNTS'!G:G,MATCH('Coding Generator'!$J60,'CHART OF ACCOUNTS'!$N:$N,0)),\"Contact Finance\"))","v":""},{"$f":"IF($J60=\"\",\"\",IFERROR(INDEX('CHART OF ACCOUNTS'!H:H,MATCH('Coding Generator'!$J60,'CHART OF ACCOUNTS'!$N:$N,0)),\"Contact Finance\"))","v":""},{"$f":"IF($J60=\"\",\"\",IFERROR(INDEX('CHART OF ACCOUNTS'!D:D,MATCH('Coding Generator'!$J60,'CHART OF ACCOUNTS'!$N:$N,0)),\"Contact Finance\"))","v":""},{"$f":"IF($J60=\"\",\"\",IFERROR(INDEX('CHART OF ACCOUNTS'!F:F,MATCH('Coding Generator'!$J60,'CHART OF ACCOUNTS'!$N:$N,0)),\"Contact Finance\"))","v":""}]
[56,null,{"$f":"IF($B61=\"\",\"\",IFERROR(INDEX('Work Order Master'!K:K,MATCH('Coding Generator'!$B61,'Work Order Master'!$S:$S,0)),\"Contact Finance\"))","v":""},{"$f":"IF($B61=\"\",\"\",IFERROR(INDEX('Work Order Master'!L:L,MATCH('Coding Generator'!$B61,'Work Order Master'!$S:$S,0)),\"Contact Finance\"))","v":""},{"$f":"IF($B61=\"\",\"\",IFERROR(INDEX('Work Order Master'!M:M,MATCH('Coding Generator'!$B61,'Work Order Master'!$S:$S,0)),\"Contact Finance\"))","v":""},{"$f":"IF($B61=\"\",\"\",IFERROR(INDEX('Work Order Master'!N:N,MATCH('Coding Generator'!$B61,'Work Order Master'!$S:$S,0)),\"Contact Finance\"))","v":""},{"$f":"IF($B61=\"\",\"\",IFERROR(INDEX('Work Order Master'!U:U,MATCH('Coding Generator'!$B61,'Work Order Master'!$S:$S,0)),\"Contact Finance\"))","v":""},null,56,null,{"$f":"IF($J61=\"\",\"\",IFERROR(INDEX('CHART OF ACCOUNTS'!G:G,MATCH('Coding Generator'!$J61,'CHART OF ACCOUNTS'!$N:$N,0)),\"Contact Finance\"))","v":""},{"$f":"IF($J61=\"\",\"\",IFERROR(INDEX('CHART OF ACCOUNTS'!H:H,MATCH('Coding Generator'!$J61,'CHART OF ACCOUNTS'!$N:$N,0)),\"Contact Finance\"))","v":""},{"$f":"IF($J61=\"\",\"\",IFERROR(INDEX('CHART OF ACCOUNTS'!D:D,MATCH('Coding Generator'!$J61,'CHART OF ACCOUNTS'!$N:$N,0)),\"Contact Finance\"))","v":""},{"$f":"IF($J61=\"\",\"\",IFERROR(INDEX('CHART OF ACCOUNTS'!F:F,MATCH('Coding Generator'!$J61,'CHART OF ACCOUNTS'!$N:$N,0)),\"Contact Finance\"))","v":""}]
[57,null,{"$f":"IF($B62=\"\",\"\",IFERROR(INDEX('Work Order Master'!K:K,MATCH('Coding Generator'!$B62,'Work Order Master'!$S:$S,0)),\"Contact Finance\"))","v":""},{"$f":"IF($B62=\"\",\"\",IFERROR(INDEX('Work Order Master'!L:L,MATCH('Coding Generator'!$B62,'Work Order Master'!$S:$S,0)),\"Contact Finance\"))","v":""},{"$f":"IF($B62=\"\",\"\",IFERROR(INDEX('Work Order Master'!M:M,MATCH('Coding Generator'!$B62,'Work Order Master'!$S:$S,0)),\"Contact Finance\"))","v":""},{"$f":"IF($B62=\"\",\"\",IFERROR(INDEX('Work Order Master'!N:N,MATCH('Coding Generator'!$B62,'Work Order Master'!$S:$S,0)),\"Contact Finance\"))","v":""},{"$f":"IF($B62=\"\",\"\",IFERROR(INDEX('Work Order Master'!U:U,MATCH('Coding Generator'!$B62,'Work Order Master'!$S:$S,0)),\"Contact Finance\"))","v":""},null,57,null,{"$f":"IF($J62=\"\",\"\",IFERROR(INDEX('CHART OF ACCOUNTS'!G:G,MATCH('Coding Generator'!$J62,'CHART OF ACCOUNTS'!$N:$N,0)),\"Contact Finance\"))","v":""},{"$f":"IF($J62=\"\",\"\",IFERROR(INDEX('CHART OF ACCOUNTS'!H:H,MATCH('Coding Generator'!$J62,'CHART OF ACCOUNTS'!$N:$N,0)),\"Contact Finance\"))","v":""},{"$f":"IF($J62=\"\",\"\",IFERROR(INDEX('CHART OF ACCOUNTS'!D:D,MATCH('Coding Generator'!$J62,'CHART OF ACCOUNTS'!$N:$N,0)),\"Contact Finance\"))","v":""},{"$f":"IF($J62=\"\",\"\",IFERROR(INDEX('CHART OF ACCOUNTS'!F:F,MATCH('Coding Generator'!$J62,'CHART OF ACCOUNTS'!$N:$N,0)),\"Contact Finance\"))","v":""}]
[58,null,{"$f":"IF($B63=\"\",\"\",IFERROR(INDEX('Work Order Master'!K:K,MATCH('Coding Generator'!$B63,'Work Order Master'!$S:$S,0)),\"Contact Finance\"))","v":""},{"$f":"IF($B63=\"\",\"\",IFERROR(INDEX('Work Order Master'!L:L,MATCH('Coding Generator'!$B63,'Work Order Master'!$S:$S,0)),\"Contact Finance\"))","v":""},{"$f":"IF($B63=\"\",\"\",IFERROR(INDEX('Work Order Master'!M:M,MATCH('Coding Generator'!$B63,'Work Order Master'!$S:$S,0)),\"Contact Finance\"))","v":""},{"$f":"IF($B63=\"\",\"\",IFERROR(INDEX('Work Order Master'!N:N,MATCH('Coding Generator'!$B63,'Work Order Master'!$S:$S,0)),\"Contact Finance\"))","v":""},{"$f":"IF($B63=\"\",\"\",IFERROR(INDEX('Work Order Master'!U:U,MATCH('Coding Generator'!$B63,'Work Order Master'!$S:$S,0)),\"Contact Finance\"))","v":""},null,58,null,{"$f":"IF($J63=\"\",\"\",IFERROR(INDEX('CHART OF ACCOUNTS'!G:G,MATCH('Coding Generator'!$J63,'CHART OF ACCOUNTS'!$N:$N,0)),\"Contact Finance\"))","v":""},{"$f":"IF($J63=\"\",\"\",IFERROR(INDEX('CHART OF ACCOUNTS'!H:H,MATCH('Coding Generator'!$J63,'CHART OF ACCOUNTS'!$N:$N,0)),\"Contact Finance\"))","v":""},{"$f":"IF($J63=\"\",\"\",IFERROR(INDEX('CHART OF ACCOUNTS'!D:D,MATCH('Coding Generator'!$J63,'CHART OF ACCOUNTS'!$N:$N,0)),\"Contact Finance\"))","v":""},{"$f":"IF($J63=\"\",\"\",IFERROR(INDEX('CHART OF ACCOUNTS'!F:F,MATCH('Coding Generator'!$J63,'CHART OF ACCOUNTS'!$N:$N,0)),\"Contact Finance\"))","v":""}]
[59,null,{"$f":"IF($B64=\"\",\"\",IFERROR(INDEX('Work Order Master'!K:K,MATCH('Coding Generator'!$B64,'Work Order Master'!$S:$S,0)),\"Contact Finance\"))","v":""},{"$f":"IF($B64=\"\",\"\",IFERROR(INDEX('Work Order Master'!L:L,MATCH('Coding Generator'!$B64,'Work Order Master'!$S:$S,0)),\"Contact Finance\"))","v":""},{"$f":"IF($B64=\"\",\"\",IFERROR(INDEX('Work Order Master'!M:M,MATCH('Coding Generator'!$B64,'Work Order Master'!$S:$S,0)),\"Contact Finance\"))","v":""},{"$f":"IF($B64=\"\",\"\",IFERROR(INDEX('Work Order Master'!N:N,MATCH('Coding Generator'!$B64,'Work Order Master'!$S:$S,0)),\"Contact Finance\"))","v":""},{"$f":"IF($B64=\"\",\"\",IFERROR(INDEX('Work Order Master'!U:U,MATCH('Coding Generator'!$B64,'Work Order Master'!$S:$S,0)),\"Contact Finance\"))","v":""},null,59,null,{"$f":"IF($J64=\"\",\"\",IFERROR(INDEX('CHART OF ACCOUNTS'!G:G,MATCH('Coding Generator'!$J64,'CHART OF ACCOUNTS'!$N:$N,0)),\"Contact Finance\"))","v":""},{"$f":"IF($J64=\"\",\"\",IFERROR(INDEX('CHART OF ACCOUNTS'!H:H,MATCH('Coding Generator'!$J64,'CHART OF ACCOUNTS'!$N:$N,0)),\"Contact Finance\"))","v":""},{"$f":"IF($J64=\"\",\"\",IFERROR(INDEX('CHART OF ACCOUNTS'!D:D,MATCH('Coding Generator'!$J64,'CHART OF ACCOUNTS'!$N:$N,0)),\"Contact Finance\"))","v":""},{"$f":"IF($J64=\"\",\"\",IFERROR(INDEX('CHART OF ACCOUNTS'!F:F,MATCH('Coding Generator'!$J64,'CHART OF ACCOUNTS'!$N:$N,0)),\"Contact Finance\"))","v":""}]
[60,null,{"$f":"IF($B65=\"\",\"\",IFERROR(INDEX('Work Order Master'!K:K,MATCH('Coding Generator'!$B65,'Work Order Master'!$S:$S,0)),\"Contact Finance\"))","v":""},{"$f":"IF($B65=\"\",\"\",IFERROR(INDEX('Work Order Master'!L:L,MATCH('Coding Generator'!$B65,'Work Order Master'!$S:$S,0)),\"Contact Finance\"))","v":""},{"$f":"IF($B65=\"\",\"\",IFERROR(INDEX('Work Order Master'!M:M,MATCH('Coding Generator'!$B65,'Work Order Master'!$S:$S,0)),\"Contact Finance\"))","v":""},{"$f":"IF($B65=\"\",\"\",IFERROR(INDEX('Work Order Master'!N:N,MATCH('Coding Generator'!$B65,'Work Order Master'!$S:$S,0)),\"Contact Finance\"))","v":""},{"$f":"IF($B65=\"\",\"\",IFERROR(INDEX('Work Order Master'!U:U,MATCH('Coding Generator'!$B65,'Work Order Master'!$S:$S,0)),\"Contact Finance\"))","v":""},null,60,null,{"$f":"IF($J65=\"\",\"\",IFERROR(INDEX('CHART OF ACCOUNTS'!G:G,MATCH('Coding Generator'!$J65,'CHART OF ACCOUNTS'!$N:$N,0)),\"Contact Finance\"))","v":""},{"$f":"IF($J65=\"\",\"\",IFERROR(INDEX('CHART OF ACCOUNTS'!H:H,MATCH('Coding Generator'!$J65,'CHART OF ACCOUNTS'!$N:$N,0)),\"Contact Finance\"))","v":""},{"$f":"IF($J65=\"\",\"\",IFERROR(INDEX('CHART OF ACCOUNTS'!D:D,MATCH('Coding Generator'!$J65,'CHART OF ACCOUNTS'!$N:$N,0)),\"Contact Finance\"))","v":""},{"$f":"IF($J65=\"\",\"\",IFERROR(INDEX('CHART OF ACCOUNTS'!F:F,MATCH('Coding Generator'!$J65,'CHART OF ACCOUNTS'!$N:$N,0)),\"Contact Finance\"))","v":""}]
[61,null,{"$f":"IF($B66=\"\",\"\",IFERROR(INDEX('Work Order Master'!K:K,MATCH('Coding Generator'!$B66,'Work Order Master'!$S:$S,0)),\"Contact Finance\"))","v":""},{"$f":"IF($B66=\"\",\"\",IFERROR(INDEX('Work Order Master'!L:L,MATCH('Coding Generator'!$B66,'Work Order Master'!$S:$S,0)),\"Contact Finance\"))","v":""},{"$f":"IF($B66=\"\",\"\",IFERROR(INDEX('Work Order Master'!M:M,MATCH('Coding Generator'!$B66,'Work Order Master'!$S:$S,0)),\"Contact Finance\"))","v":""},{"$f":"IF($B66=\"\",\"\",IFERROR(INDEX('Work Order Master'!N:N,MATCH('Coding Generator'!$B66,'Work Order Master'!$S:$S,0)),\"Contact Finance\"))","v":""},{"$f":"IF($B66=\"\",\"\",IFERROR(INDEX('Work Order Master'!U:U,MATCH('Coding Generator'!$B66,'Work Order Master'!$S:$S,0)),\"Contact Finance\"))","v":""},null,61,null,{"$f":"IF($J66=\"\",\"\",IFERROR(INDEX('CHART OF ACCOUNTS'!G:G,MATCH('Coding Generator'!$J66,'CHART OF ACCOUNTS'!$N:$N,0)),\"Contact Finance\"))","v":""},{"$f":"IF($J66=\"\",\"\",IFERROR(INDEX('CHART OF ACCOUNTS'!H:H,MATCH('Coding Generator'!$J66,'CHART OF ACCOUNTS'!$N:$N,0)),\"Contact Finance\"))","v":""},{"$f":"IF($J66=\"\",\"\",IFERROR(INDEX('CHART OF ACCOUNTS'!D:D,MATCH('Coding Generator'!$J66,'CHART OF ACCOUNTS'!$N:$N,0)),\"Contact Finance\"))","v":""},{"$f":"IF($J66=\"\",\"\",IFERROR(INDEX('CHART OF ACCOUNTS'!F:F,MATCH('Coding Generator'!$J66,'CHART OF ACCOUNTS'!$N:$N,0)),\"Contact Finance\"))","v":""}]
[62,null,{"$f":"IF($B67=\"\",\"\",IFERROR(INDEX('Work Order Master'!K:K,MATCH('Coding Generator'!$B67,'Work Order Master'!$S:$S,0)),\"Contact Finance\"))","v":""},{"$f":"IF($B67=\"\",\"\",IFERROR(INDEX('Work Order Master'!L:L,MATCH('Coding Generator'!$B67,'Work Order Master'!$S:$S,0)),\"Contact Finance\"))","v":""},{"$f":"IF($B67=\"\",\"\",IFERROR(INDEX('Work Order Master'!M:M,MATCH('Coding Generator'!$B67,'Work Order Master'!$S:$S,0)),\"Contact Finance\"))","v":""},{"$f":"IF($B67=\"\",\"\",IFERROR(INDEX('Work Order Master'!N:N,MATCH('Coding Generator'!$B67,'Work Order Master'!$S:$S,0)),\"Contact Finance\"))","v":""},{"$f":"IF($B67=\"\",\"\",IFERROR(INDEX('Work Order Master'!U:U,MATCH('Coding Generator'!$B67,'Work Order Master'!$S:$S,0)),\"Contact Finance\"))","v":""},null,62,null,{"$f":"IF($J67=\"\",\"\",IFERROR(INDEX('CHART OF ACCOUNTS'!G:G,MATCH('Coding Generator'!$J67,'CHART OF ACCOUNTS'!$N:$N,0)),\"Contact Finance\"))","v":""},{"$f":"IF($J67=\"\",\"\",IFERROR(INDEX('CHART OF ACCOUNTS'!H:H,MATCH('Coding Generator'!$J67,'CHART OF ACCOUNTS'!$N:$N,0)),\"Contact Finance\"))","v":""},{"$f":"IF($J67=\"\",\"\",IFERROR(INDEX('CHART OF ACCOUNTS'!D:D,MATCH('Coding Generator'!$J67,'CHART OF ACCOUNTS'!$N:$N,0)),\"Contact Finance\"))","v":""},{"$f":"IF($J67=\"\",\"\",IFERROR(INDEX('CHART OF ACCOUNTS'!F:F,MATCH('Coding Generator'!$J67,'CHART OF ACCOUNTS'!$N:$N,0)),\"Contact Finance\"))","v":""}]
[63,null,{"$f":"IF($B68=\"\",\"\",IFERROR(INDEX('Work Order Master'!K:K,MATCH('Coding Generator'!$B68,'Work Order Master'!$S:$S,0)),\"Contact Finance\"))","v":""},{"$f":"IF($B68=\"\",\"\",IFERROR(INDEX('Work Order Master'!L:L,MATCH('Coding Generator'!$B68,'Work Order Master'!$S:$S,0)),\"Contact Finance\"))","v":""},{"$f":"IF($B68=\"\",\"\",IFERROR(INDEX('Work Order Master'!M:M,MATCH('Coding Generator'!$B68,'Work Order Master'!$S:$S,0)),\"Contact Finance\"))","v":""},{"$f":"IF($B68=\"\",\"\",IFERROR(INDEX('Work Order Master'!N:N,MATCH('Coding Generator'!$B68,'Work Order Master'!$S:$S,0)),\"Contact Finance\"))","v":""},{"$f":"IF($B68=\"\",\"\",IFERROR(INDEX('Work Order Master'!U:U,MATCH('Coding Generator'!$B68,'Work Order Master'!$S:$S,0)),\"Contact Finance\"))","v":""},null,63,null,{"$f":"IF($J68=\"\",\"\",IFERROR(INDEX('CHART OF ACCOUNTS'!G:G,MATCH('Coding Generator'!$J68,'CHART OF ACCOUNTS'!$N:$N,0)),\"Contact Finance\"))","v":""},{"$f":"IF($J68=\"\",\"\",IFERROR(INDEX('CHART OF ACCOUNTS'!H:H,MATCH('Coding Generator'!$J68,'CHART OF ACCOUNTS'!$N:$N,0)),\"Contact Finance\"))","v":""},{"$f":"IF($J68=\"\",\"\",IFERROR(INDEX('CHART OF ACCOUNTS'!D:D,MATCH('Coding Generator'!$J68,'CHART OF ACCOUNTS'!$N:$N,0)),\"Contact Finance\"))","v":""},{"$f":"IF($J68=\"\",\"\",IFERROR(INDEX('CHART OF ACCOUNTS'!F:F,MATCH('Coding Generator'!$J68,'CHART OF ACCOUNTS'!$N:$N,0)),\"Contact Finance\"))","v":""}]
[64,null,{"$f":"IF($B69=\"\",\"\",IFERROR(INDEX('Work Order Master'!K:K,MATCH('Coding Generator'!$B69,'Work Order Master'!$S:$S,0)),\"Contact Finance\"))","v":""},{"$f":"IF($B69=\"\",\"\",IFERROR(INDEX('Work Order Master'!L:L,MATCH('Coding Generator'!$B69,'Work Order Master'!$S:$S,0)),\"Contact Finance\"))","v":""},{"$f":"IF($B69=\"\",\"\",IFERROR(INDEX('Work Order Master'!M:M,MATCH('Coding Generator'!$B69,'Work Order Master'!$S:$S,0)),\"Contact Finance\"))","v":""},{"$f":"IF($B69=\"\",\"\",IFERROR(INDEX('Work Order Master'!N:N,MATCH('Coding Generator'!$B69,'Work Order Master'!$S:$S,0)),\"Contact Finance\"))","v":""},{"$f":"IF($B69=\"\",\"\",IFERROR(INDEX('Work Order Master'!U:U,MATCH('Coding Generator'!$B69,'Work Order Master'!$S:$S,0)),\"Contact Finance\"))","v":""},null,64,null,{"$f":"IF($J69=\"\",\"\",IFERROR(INDEX('CHART OF ACCOUNTS'!G:G,MATCH('Coding Generator'!$J69,'CHART OF ACCOUNTS'!$N:$N,0)),\"Contact Finance\"))","v":""},{"$f":"IF($J69=\"\",\"\",IFERROR(INDEX('CHART OF ACCOUNTS'!H:H,MATCH('Coding Generator'!$J69,'CHART OF ACCOUNTS'!$N:$N,0)),\"Contact Finance\"))","v":""},{"$f":"IF($J69=\"\",\"\",IFERROR(INDEX('CHART OF ACCOUNTS'!D:D,MATCH('Coding Generator'!$J69,'CHART OF ACCOUNTS'!$N:$N,0)),\"Contact Finance\"))","v":""},{"$f":"IF($J69=\"\",\"\",IFERROR(INDEX('CHART OF ACCOUNTS'!F:F,MATCH('Coding Generator'!$J69,'CHART OF ACCOUNTS'!$N:$N,0)),\"Contact Finance\"))","v":""}]
[65,null,{"$f":"IF($B70=\"\",\"\",IFERROR(INDEX('Work Order Master'!K:K,MATCH('Coding Generator'!$B70,'Work Order Master'!$S:$S,0)),\"Contact Finance\"))","v":""},{"$f":"IF($B70=\"\",\"\",IFERROR(INDEX('Work Order Master'!L:L,MATCH('Coding Generator'!$B70,'Work Order Master'!$S:$S,0)),\"Contact Finance\"))","v":""},{"$f":"IF($B70=\"\",\"\",IFERROR(INDEX('Work Order Master'!M:M,MATCH('Coding Generator'!$B70,'Work Order Master'!$S:$S,0)),\"Contact Finance\"))","v":""},{"$f":"IF($B70=\"\",\"\",IFERROR(INDEX('Work Order Master'!N:N,MATCH('Coding Generator'!$B70,'Work Order Master'!$S:$S,0)),\"Contact Finance\"))","v":""},{"$f":"IF($B70=\"\",\"\",IFERROR(INDEX('Work Order Master'!U:U,MATCH('Coding Generator'!$B70,'Work Order Master'!$S:$S,0)),\"Contact Finance\"))","v":""},null,65,null,{"$f":"IF($J70=\"\",\"\",IFERROR(INDEX('CHART OF ACCOUNTS'!G:G,MATCH('Coding Generator'!$J70,'CHART OF ACCOUNTS'!$N:$N,0)),\"Contact Finance\"))","v":""},{"$f":"IF($J70=\"\",\"\",IFERROR(INDEX('CHART OF ACCOUNTS'!H:H,MATCH('Coding Generator'!$J70,'CHART OF ACCOUNTS'!$N:$N,0)),\"Contact Finance\"))","v":""},{"$f":"IF($J70=\"\",\"\",IFERROR(INDEX('CHART OF ACCOUNTS'!D:D,MATCH('Coding Generator'!$J70,'CHART OF ACCOUNTS'!$N:$N,0)),\"Contact Finance\"))","v":""},{"$f":"IF($J70=\"\",\"\",IFERROR(INDEX('CHART OF ACCOUNTS'!F:F,MATCH('Coding Generator'!$J70,'CHART OF ACCOUNTS'!$N:$N,0)),\"Contact Finance\"))","v":""}]
[66,null,{"$f":"IF($B71=\"\",\"\",IFERROR(INDEX('Work Order Master'!K:K,MATCH('Coding Generator'!$B71,'Work Order Master'!$S:$S,0)),\"Contact Finance\"))","v":""},{"$f":"IF($B71=\"\",\"\",IFERROR(INDEX('Work Order Master'!L:L,MATCH('Coding Generator'!$B71,'Work Order Master'!$S:$S,0)),\"Contact Finance\"))","v":""},{"$f":"IF($B71=\"\",\"\",IFERROR(INDEX('Work Order Master'!M:M,MATCH('Coding Generator'!$B71,'Work Order Master'!$S:$S,0)),\"Contact Finance\"))","v":""},{"$f":"IF($B71=\"\",\"\",IFERROR(INDEX('Work Order Master'!N:N,MATCH('Coding Generator'!$B71,'Work Order Master'!$S:$S,0)),\"Contact Finance\"))","v":""},{"$f":"IF($B71=\"\",\"\",IFERROR(INDEX('Work Order Master'!U:U,MATCH('Coding Generator'!$B71,'Work Order Master'!$S:$S,0)),\"Contact Finance\"))","v":""},null,66,null,{"$f":"IF($J71=\"\",\"\",IFERROR(INDEX('CHART OF ACCOUNTS'!G:G,MATCH('Coding Generator'!$J71,'CHART OF ACCOUNTS'!$N:$N,0)),\"Contact Finance\"))","v":""},{"$f":"IF($J71=\"\",\"\",IFERROR(INDEX('CHART OF ACCOUNTS'!H:H,MATCH('Coding Generator'!$J71,'CHART OF ACCOUNTS'!$N:$N,0)),\"Contact Finance\"))","v":""},{"$f":"IF($J71=\"\",\"\",IFERROR(INDEX('CHART OF ACCOUNTS'!D:D,MATCH('Coding Generator'!$J71,'CHART OF ACCOUNTS'!$N:$N,0)),\"Contact Finance\"))","v":""},{"$f":"IF($J71=\"\",\"\",IFERROR(INDEX('CHART OF ACCOUNTS'!F:F,MATCH('Coding Generator'!$J71,'CHART OF ACCOUNTS'!$N:$N,0)),\"Contact Finance\"))","v":""}]
[{"$f":"A71+1","v":67},null,{"$f":"IF($B72=\"\",\"\",IFERROR(INDEX('Work Order Master'!K:K,MATCH('Coding Generator'!$B72,'Work Order Master'!$S:$S,0)),\"Contact Finance\"))","v":""},{"$f":"IF($B72=\"\",\"\",IFERROR(INDEX('Work Order Master'!L:L,MATCH('Coding Generator'!$B72,'Work Order Master'!$S:$S,0)),\"Contact Finance\"))","v":""},{"$f":"IF($B72=\"\",\"\",IFERROR(INDEX('Work Order Master'!M:M,MATCH('Coding Generator'!$B72,'Work Order Master'!$S:$S,0)),\"Contact Finance\"))","v":""},{"$f":"IF($B72=\"\",\"\",IFERROR(INDEX('Work Order Master'!N:N,MATCH('Coding Generator'!$B72,'Work Order Master'!$S:$S,0)),\"Contact Finance\"))","v":""},{"$f":"IF($B72=\"\",\"\",IFERROR(INDEX('Work Order Master'!U:U,MATCH('Coding Generator'!$B72,'Work Order Master'!$S:$S,0)),\"Contact Finance\"))","v":""},null,{"$f":"I71+1","v":67},null,{"$f":"IF($J72=\"\",\"\",IFERROR(INDEX('CHART OF ACCOUNTS'!G:G,MATCH('Coding Generator'!$J72,'CHART OF ACCOUNTS'!$N:$N,0)),\"Contact Finance\"))","v":""},{"$f":"IF($J72=\"\",\"\",IFERROR(INDEX('CHART OF ACCOUNTS'!H:H,MATCH('Coding Generator'!$J72,'CHART OF ACCOUNTS'!$N:$N,0)),\"Contact Finance\"))","v":""},{"$f":"IF($J72=\"\",\"\",IFERROR(INDEX('CHART OF ACCOUNTS'!D:D,MATCH('Coding Generator'!$J72,'CHART OF ACCOUNTS'!$N:$N,0)),\"Contact Finance\"))","v":""},{"$f":"IF($J72=\"\",\"\",IFERROR(INDEX('CHART OF ACCOUNTS'!F:F,MATCH('Coding Generator'!$J72,'CHART OF ACCOUNTS'!$N:$N,0)),\"Contact Finance\"))","v":""}]
[68,null,{"$f":"IF($B73=\"\",\"\",IFERROR(INDEX('Work Order Master'!K:K,MATCH('Coding Generator'!$B73,'Work Order Master'!$S:$S,0)),\"Contact Finance\"))","v":""},{"$f":"IF($B73=\"\",\"\",IFERROR(INDEX('Work Order Master'!L:L,MATCH('Coding Generator'!$B73,'Work Order Master'!$S:$S,0)),\"Contact Finance\"))","v":""},{"$f":"IF($B73=\"\",\"\",IFERROR(INDEX('Work Order Master'!M:M,MATCH('Coding Generator'!$B73,'Work Order Master'!$S:$S,0)),\"Contact Finance\"))","v":""},{"$f":"IF($B73=\"\",\"\",IFERROR(INDEX('Work Order Master'!N:N,MATCH('Coding Generator'!$B73,'Work Order Master'!$S:$S,0)),\"Contact Finance\"))","v":""},{"$f":"IF($B73=\"\",\"\",IFERROR(INDEX('Work Order Master'!U:U,MATCH('Coding Generator'!$B73,'Work Order Master'!$S:$S,0)),\"Contact Finance\"))","v":""},null,68,null,{"$f":"IF($J73=\"\",\"\",IFERROR(INDEX('CHART OF ACCOUNTS'!G:G,MATCH('Coding Generator'!$J73,'CHART OF ACCOUNTS'!$N:$N,0)),\"Contact Finance\"))","v":""},{"$f":"IF($J73=\"\",\"\",IFERROR(INDEX('CHART OF ACCOUNTS'!H:H,MATCH('Coding Generator'!$J73,'CHART OF ACCOUNTS'!$N:$N,0)),\"Contact Finance\"))","v":""},{"$f":"IF($J73=\"\",\"\",IFERROR(INDEX('CHART OF ACCOUNTS'!D:D,MATCH('Coding Generator'!$J73,'CHART OF ACCOUNTS'!$N:$N,0)),\"Contact Finance\"))","v":""},{"$f":"IF($J73=\"\",\"\",IFERROR(INDEX('CHART OF ACCOUNTS'!F:F,MATCH('Coding Generator'!$J73,'CHART OF ACCOUNTS'!$N:$N,0)),\"Contact Finance\"))","v":""}]
[69,null,{"$f":"IF($B74=\"\",\"\",IFERROR(INDEX('Work Order Master'!K:K,MATCH('Coding Generator'!$B74,'Work Order Master'!$S:$S,0)),\"Contact Finance\"))","v":""},{"$f":"IF($B74=\"\",\"\",IFERROR(INDEX('Work Order Master'!L:L,MATCH('Coding Generator'!$B74,'Work Order Master'!$S:$S,0)),\"Contact Finance\"))","v":""},{"$f":"IF($B74=\"\",\"\",IFERROR(INDEX('Work Order Master'!M:M,MATCH('Coding Generator'!$B74,'Work Order Master'!$S:$S,0)),\"Contact Finance\"))","v":""},{"$f":"IF($B74=\"\",\"\",IFERROR(INDEX('Work Order Master'!N:N,MATCH('Coding Generator'!$B74,'Work Order Master'!$S:$S,0)),\"Contact Finance\"))","v":""},{"$f":"IF($B74=\"\",\"\",IFERROR(INDEX('Work Order Master'!U:U,MATCH('Coding Generator'!$B74,'Work Order Master'!$S:$S,0)),\"Contact Finance\"))","v":""},null,69,null,{"$f":"IF($J74=\"\",\"\",IFERROR(INDEX('CHART OF ACCOUNTS'!G:G,MATCH('Coding Generator'!$J74,'CHART OF ACCOUNTS'!$N:$N,0)),\"Contact Finance\"))","v":""},{"$f":"IF($J74=\"\",\"\",IFERROR(INDEX('CHART OF ACCOUNTS'!H:H,MATCH('Coding Generator'!$J74,'CHART OF ACCOUNTS'!$N:$N,0)),\"Contact Finance\"))","v":""},{"$f":"IF($J74=\"\",\"\",IFERROR(INDEX('CHART OF ACCOUNTS'!D:D,MATCH('Coding Generator'!$J74,'CHART OF ACCOUNTS'!$N:$N,0)),\"Contact Finance\"))","v":""},{"$f":"IF($J74=\"\",\"\",IFERROR(INDEX('CHART OF ACCOUNTS'!F:F,MATCH('Coding Generator'!$J74,'CHART OF ACCOUNTS'!$N:$N,0)),\"Contact Finance\"))","v":""}]
[70,null,{"$f":"IF($B75=\"\",\"\",IFERROR(INDEX('Work Order Master'!K:K,MATCH('Coding Generator'!$B75,'Work Order Master'!$S:$S,0)),\"Contact Finance\"))","v":""},{"$f":"IF($B75=\"\",\"\",IFERROR(INDEX('Work Order Master'!L:L,MATCH('Coding Generator'!$B75,'Work Order Master'!$S:$S,0)),\"Contact Finance\"))","v":""},{"$f":"IF($B75=\"\",\"\",IFERROR(INDEX('Work Order Master'!M:M,MATCH('Coding Generator'!$B75,'Work Order Master'!$S:$S,0)),\"Contact Finance\"))","v":""},{"$f":"IF($B75=\"\",\"\",IFERROR(INDEX('Work Order Master'!N:N,MATCH('Coding Generator'!$B75,'Work Order Master'!$S:$S,0)),\"Contact Finance\"))","v":""},{"$f":"IF($B75=\"\",\"\",IFERROR(INDEX('Work Order Master'!U:U,MATCH('Coding Generator'!$B75,'Work Order Master'!$S:$S,0)),\"Contact Finance\"))","v":""},null,70,null,{"$f":"IF($J75=\"\",\"\",IFERROR(INDEX('CHART OF ACCOUNTS'!G:G,MATCH('Coding Generator'!$J75,'CHART OF ACCOUNTS'!$N:$N,0)),\"Contact Finance\"))","v":""},{"$f":"IF($J75=\"\",\"\",IFERROR(INDEX('CHART OF ACCOUNTS'!H:H,MATCH('Coding Generator'!$J75,'CHART OF ACCOUNTS'!$N:$N,0)),\"Contact Finance\"))","v":""},{"$f":"IF($J75=\"\",\"\",IFERROR(INDEX('CHART OF ACCOUNTS'!D:D,MATCH('Coding Generator'!$J75,'CHART OF ACCOUNTS'!$N:$N,0)),\"Contact Finance\"))","v":""},{"$f":"IF($J75=\"\",\"\",IFERROR(INDEX('CHART OF ACCOUNTS'!F:F,MATCH('Coding Generator'!$J75,'CHART OF ACCOUNTS'!$N:$N,0)),\"Contact Finance\"))","v":""}]
[71,null,{"$f":"IF($B76=\"\",\"\",IFERROR(INDEX('Work Order Master'!K:K,MATCH('Coding Generator'!$B76,'Work Order Master'!$S:$S,0)),\"Contact Finance\"))","v":""},{"$f":"IF($B76=\"\",\"\",IFERROR(INDEX('Work Order Master'!L:L,MATCH('Coding Generator'!$B76,'Work Order Master'!$S:$S,0)),\"Contact Finance\"))","v":""},{"$f":"IF($B76=\"\",\"\",IFERROR(INDEX('Work Order Master'!M:M,MATCH('Coding Generator'!$B76,'Work Order Master'!$S:$S,0)),\"Contact Finance\"))","v":""},{"$f":"IF($B76=\"\",\"\",IFERROR(INDEX('Work Order Master'!N:N,MATCH('Coding Generator'!$B76,'Work Order Master'!$S:$S,0)),\"Contact Finance\"))","v":""},{"$f":"IF($B76=\"\",\"\",IFERROR(INDEX('Work Order Master'!U:U,MATCH('Coding Generator'!$B76,'Work Order Master'!$S:$S,0)),\"Contact Finance\"))","v":""},null,71,null,{"$f":"IF($J76=\"\",\"\",IFERROR(INDEX('CHART OF ACCOUNTS'!G:G,MATCH('Coding Generator'!$J76,'CHART OF ACCOUNTS'!$N:$N,0)),\"Contact Finance\"))","v":""},{"$f":"IF($J76=\"\",\"\",IFERROR(INDEX('CHART OF ACCOUNTS'!H:H,MATCH('Coding Generator'!$J76,'CHART OF ACCOUNTS'!$N:$N,0)),\"Contact Finance\"))","v":""},{"$f":"IF($J76=\"\",\"\",IFERROR(INDEX('CHART OF ACCOUNTS'!D:D,MATCH('Coding Generator'!$J76,'CHART OF ACCOUNTS'!$N:$N,0)),\"Contact Finance\"))","v":""},{"$f":"IF($J76=\"\",\"\",IFERROR(INDEX('CHART OF ACCOUNTS'!F:F,MATCH('Coding Generator'!$J76,'CHART OF ACCOUNTS'!$N:$N,0)),\"Contact Finance\"))","v":""}]
[72,null,{"$f":"IF($B77=\"\",\"\",IFERROR(INDEX('Work Order Master'!K:K,MATCH('Coding Generator'!$B77,'Work Order Master'!$S:$S,0)),\"Contact Finance\"))","v":""},{"$f":"IF($B77=\"\",\"\",IFERROR(INDEX('Work Order Master'!L:L,MATCH('Coding Generator'!$B77,'Work Order Master'!$S:$S,0)),\"Contact Finance\"))","v":""},{"$f":"IF($B77=\"\",\"\",IFERROR(INDEX('Work Order Master'!M:M,MATCH('Coding Generator'!$B77,'Work Order Master'!$S:$S,0)),\"Contact Finance\"))","v":""},{"$f":"IF($B77=\"\",\"\",IFERROR(INDEX('Work Order Master'!N:N,MATCH('Coding Generator'!$B77,'Work Order Master'!$S:$S,0)),\"Contact Finance\"))","v":""},{"$f":"IF($B77=\"\",\"\",IFERROR(INDEX('Work Order Master'!U:U,MATCH('Coding Generator'!$B77,'Work Order Master'!$S:$S,0)),\"Contact Finance\"))","v":""},null,72,null,{"$f":"IF($J77=\"\",\"\",IFERROR(INDEX('CHART OF ACCOUNTS'!G:G,MATCH('Coding Generator'!$J77,'CHART OF ACCOUNTS'!$N:$N,0)),\"Contact Finance\"))","v":""},{"$f":"IF($J77=\"\",\"\",IFERROR(INDEX('CHART OF ACCOUNTS'!H:H,MATCH('Coding Generator'!$J77,'CHART OF ACCOUNTS'!$N:$N,0)),\"Contact Finance\"))","v":""},{"$f":"IF($J77=\"\",\"\",IFERROR(INDEX('CHART OF ACCOUNTS'!D:D,MATCH('Coding Generator'!$J77,'CHART OF ACCOUNTS'!$N:$N,0)),\"Contact Finance\"))","v":""},{"$f":"IF($J77=\"\",\"\",IFERROR(INDEX('CHART OF ACCOUNTS'!F:F,MATCH('Coding Generator'!$J77,'CHART OF ACCOUNTS'!$N:$N,0)),\"Contact Finance\"))","v":""}]
[73,null,{"$f":"IF($B78=\"\",\"\",IFERROR(INDEX('Work Order Master'!K:K,MATCH('Coding Generator'!$B78,'Work Order Master'!$S:$S,0)),\"Contact Finance\"))","v":""},{"$f":"IF($B78=\"\",\"\",IFERROR(INDEX('Work Order Master'!L:L,MATCH('Coding Generator'!$B78,'Work Order Master'!$S:$S,0)),\"Contact Finance\"))","v":""},{"$f":"IF($B78=\"\",\"\",IFERROR(INDEX('Work Order Master'!M:M,MATCH('Coding Generator'!$B78,'Work Order Master'!$S:$S,0)),\"Contact Finance\"))","v":""},{"$f":"IF($B78=\"\",\"\",IFERROR(INDEX('Work Order Master'!N:N,MATCH('Coding Generator'!$B78,'Work Order Master'!$S:$S,0)),\"Contact Finance\"))","v":""},{"$f":"IF($B78=\"\",\"\",IFERROR(INDEX('Work Order Master'!U:U,MATCH('Coding Generator'!$B78,'Work Order Master'!$S:$S,0)),\"Contact Finance\"))","v":""},null,73,null,{"$f":"IF($J78=\"\",\"\",IFERROR(INDEX('CHART OF ACCOUNTS'!G:G,MATCH('Coding Generator'!$J78,'CHART OF ACCOUNTS'!$N:$N,0)),\"Contact Finance\"))","v":""},{"$f":"IF($J78=\"\",\"\",IFERROR(INDEX('CHART OF ACCOUNTS'!H:H,MATCH('Coding Generator'!$J78,'CHART OF ACCOUNTS'!$N:$N,0)),\"Contact Finance\"))","v":""},{"$f":"IF($J78=\"\",\"\",IFERROR(INDEX('CHART OF ACCOUNTS'!D:D,MATCH('Coding Generator'!$J78,'CHART OF ACCOUNTS'!$N:$N,0)),\"Contact Finance\"))","v":""},{"$f":"IF($J78=\"\",\"\",IFERROR(INDEX('CHART OF ACCOUNTS'!F:F,MATCH('Coding Generator'!$J78,'CHART OF ACCOUNTS'!$N:$N,0)),\"Contact Finance\"))","v":""}]
[74,null,{"$f":"IF($B79=\"\",\"\",IFERROR(INDEX('Work Order Master'!K:K,MATCH('Coding Generator'!$B79,'Work Order Master'!$S:$S,0)),\"Contact Finance\"))","v":""},{"$f":"IF($B79=\"\",\"\",IFERROR(INDEX('Work Order Master'!L:L,MATCH('Coding Generator'!$B79,'Work Order Master'!$S:$S,0)),\"Contact Finance\"))","v":""},{"$f":"IF($B79=\"\",\"\",IFERROR(INDEX('Work Order Master'!M:M,MATCH('Coding Generator'!$B79,'Work Order Master'!$S:$S,0)),\"Contact Finance\"))","v":""},{"$f":"IF($B79=\"\",\"\",IFERROR(INDEX('Work Order Master'!N:N,MATCH('Coding Generator'!$B79,'Work Order Master'!$S:$S,0)),\"Contact Finance\"))","v":""},{"$f":"IF($B79=\"\",\"\",IFERROR(INDEX('Work Order Master'!U:U,MATCH('Coding Generator'!$B79,'Work Order Master'!$S:$S,0)),\"Contact Finance\"))","v":""},null,74,null,{"$f":"IF($J79=\"\",\"\",IFERROR(INDEX('CHART OF ACCOUNTS'!G:G,MATCH('Coding Generator'!$J79,'CHART OF ACCOUNTS'!$N:$N,0)),\"Contact Finance\"))","v":""},{"$f":"IF($J79=\"\",\"\",IFERROR(INDEX('CHART OF ACCOUNTS'!H:H,MATCH('Coding Generator'!$J79,'CHART OF ACCOUNTS'!$N:$N,0)),\"Contact Finance\"))","v":""},{"$f":"IF($J79=\"\",\"\",IFERROR(INDEX('CHART OF ACCOUNTS'!D:D,MATCH('Coding Generator'!$J79,'CHART OF ACCOUNTS'!$N:$N,0)),\"Contact Finance\"))","v":""},{"$f":"IF($J79=\"\",\"\",IFERROR(INDEX('CHART OF ACCOUNTS'!F:F,MATCH('Coding Generator'!$J79,'CHART OF ACCOUNTS'!$N:$N,0)),\"Contact Finance\"))","v":""}]
[75,null,{"$f":"IF($B80=\"\",\"\",IFERROR(INDEX('Work Order Master'!K:K,MATCH('Coding Generator'!$B80,'Work Order Master'!$S:$S,0)),\"Contact Finance\"))","v":""},{"$f":"IF($B80=\"\",\"\",IFERROR(INDEX('Work Order Master'!L:L,MATCH('Coding Generator'!$B80,'Work Order Master'!$S:$S,0)),\"Contact Finance\"))","v":""},{"$f":"IF($B80=\"\",\"\",IFERROR(INDEX('Work Order Master'!M:M,MATCH('Coding Generator'!$B80,'Work Order Master'!$S:$S,0)),\"Contact Finance\"))","v":""},{"$f":"IF($B80=\"\",\"\",IFERROR(INDEX('Work Order Master'!N:N,MATCH('Coding Generator'!$B80,'Work Order Master'!$S:$S,0)),\"Contact Finance\"))","v":""},{"$f":"IF($B80=\"\",\"\",IFERROR(INDEX('Work Order Master'!U:U,MATCH('Coding Generator'!$B80,'Work Order Master'!$S:$S,0)),\"Contact Finance\"))","v":""},null,75,null,{"$f":"IF($J80=\"\",\"\",IFERROR(INDEX('CHART OF ACCOUNTS'!G:G,MATCH('Coding Generator'!$J80,'CHART OF ACCOUNTS'!$N:$N,0)),\"Contact Finance\"))","v":""},{"$f":"IF($J80=\"\",\"\",IFERROR(INDEX('CHART OF ACCOUNTS'!H:H,MATCH('Coding Generator'!$J80,'CHART OF ACCOUNTS'!$N:$N,0)),\"Contact Finance\"))","v":""},{"$f":"IF($J80=\"\",\"\",IFERROR(INDEX('CHART OF ACCOUNTS'!D:D,MATCH('Coding Generator'!$J80,'CHART OF ACCOUNTS'!$N:$N,0)),\"Contact Finance\"))","v":""},{"$f":"IF($J80=\"\",\"\",IFERROR(INDEX('CHART OF ACCOUNTS'!F:F,MATCH('Coding Generator'!$J80,'CHART OF ACCOUNTS'!$N:$N,0)),\"Contact Finance\"))","v":""}]
[76,null,{"$f":"IF($B81=\"\",\"\",IFERROR(INDEX('Work Order Master'!K:K,MATCH('Coding Generator'!$B81,'Work Order Master'!$S:$S,0)),\"Contact Finance\"))","v":""},{"$f":"IF($B81=\"\",\"\",IFERROR(INDEX('Work Order Master'!L:L,MATCH('Coding Generator'!$B81,'Work Order Master'!$S:$S,0)),\"Contact Finance\"))","v":""},{"$f":"IF($B81=\"\",\"\",IFERROR(INDEX('Work Order Master'!M:M,MATCH('Coding Generator'!$B81,'Work Order Master'!$S:$S,0)),\"Contact Finance\"))","v":""},{"$f":"IF($B81=\"\",\"\",IFERROR(INDEX('Work Order Master'!N:N,MATCH('Coding Generator'!$B81,'Work Order Master'!$S:$S,0)),\"Contact Finance\"))","v":""},{"$f":"IF($B81=\"\",\"\",IFERROR(INDEX('Work Order Master'!U:U,MATCH('Coding Generator'!$B81,'Work Order Master'!$S:$S,0)),\"Contact Finance\"))","v":""},null,76,null,{"$f":"IF($J81=\"\",\"\",IFERROR(INDEX('CHART OF ACCOUNTS'!G:G,MATCH('Coding Generator'!$J81,'CHART OF ACCOUNTS'!$N:$N,0)),\"Contact Finance\"))","v":""},{"$f":"IF($J81=\"\",\"\",IFERROR(INDEX('CHART OF ACCOUNTS'!H:H,MATCH('Coding Generator'!$J81,'CHART OF ACCOUNTS'!$N:$N,0)),\"Contact Finance\"))","v":""},{"$f":"IF($J81=\"\",\"\",IFERROR(INDEX('CHART OF ACCOUNTS'!D:D,MATCH('Coding Generator'!$J81,'CHART OF ACCOUNTS'!$N:$N,0)),\"Contact Finance\"))","v":""},{"$f":"IF($J81=\"\",\"\",IFERROR(INDEX('CHART OF ACCOUNTS'!F:F,MATCH('Coding Generator'!$J81,'CHART OF ACCOUNTS'!$N:$N,0)),\"Contact Finance\"))","v":""}]
[77,null,{"$f":"IF($B82=\"\",\"\",IFERROR(INDEX('Work Order Master'!K:K,MATCH('Coding Generator'!$B82,'Work Order Master'!$S:$S,0)),\"Contact Finance\"))","v":""},{"$f":"IF($B82=\"\",\"\",IFERROR(INDEX('Work Order Master'!L:L,MATCH('Coding Generator'!$B82,'Work Order Master'!$S:$S,0)),\"Contact Finance\"))","v":""},{"$f":"IF($B82=\"\",\"\",IFERROR(INDEX('Work Order Master'!M:M,MATCH('Coding Generator'!$B82,'Work Order Master'!$S:$S,0)),\"Contact Finance\"))","v":""},{"$f":"IF($B82=\"\",\"\",IFERROR(INDEX('Work Order Master'!N:N,MATCH('Coding Generator'!$B82,'Work Order Master'!$S:$S,0)),\"Contact Finance\"))","v":""},{"$f":"IF($B82=\"\",\"\",IFERROR(INDEX('Work Order Master'!U:U,MATCH('Coding Generator'!$B82,'Work Order Master'!$S:$S,0)),\"Contact Finance\"))","v":""},null,77,null,{"$f":"IF($J82=\"\",\"\",IFERROR(INDEX('CHART OF ACCOUNTS'!G:G,MATCH('Coding Generator'!$J82,'CHART OF ACCOUNTS'!$N:$N,0)),\"Contact Finance\"))","v":""},{"$f":"IF($J82=\"\",\"\",IFERROR(INDEX('CHART OF ACCOUNTS'!H:H,MATCH('Coding Generator'!$J82,'CHART OF ACCOUNTS'!$N:$N,0)),\"Contact Finance\"))","v":""},{"$f":"IF($J82=\"\",\"\",IFERROR(INDEX('CHART OF ACCOUNTS'!D:D,MATCH('Coding Generator'!$J82,'CHART OF ACCOUNTS'!$N:$N,0)),\"Contact Finance\"))","v":""},{"$f":"IF($J82=\"\",\"\",IFERROR(INDEX('CHART OF ACCOUNTS'!F:F,MATCH('Coding Generator'!$J82,'CHART OF ACCOUNTS'!$N:$N,0)),\"Contact Finance\"))","v":""}]
[78,null,{"$f":"IF($B83=\"\",\"\",IFERROR(INDEX('Work Order Master'!K:K,MATCH('Coding Generator'!$B83,'Work Order Master'!$S:$S,0)),\"Contact Finance\"))","v":""},{"$f":"IF($B83=\"\",\"\",IFERROR(INDEX('Work Order Master'!L:L,MATCH('Coding Generator'!$B83,'Work Order Master'!$S:$S,0)),\"Contact Finance\"))","v":""},{"$f":"IF($B83=\"\",\"\",IFERROR(INDEX('Work Order Master'!M:M,MATCH('Coding Generator'!$B83,'Work Order Master'!$S:$S,0)),\"Contact Finance\"))","v":""},{"$f":"IF($B83=\"\",\"\",IFERROR(INDEX('Work Order Master'!N:N,MATCH('Coding Generator'!$B83,'Work Order Master'!$S:$S,0)),\"Contact Finance\"))","v":""},{"$f":"IF($B83=\"\",\"\",IFERROR(INDEX('Work Order Master'!U:U,MATCH('Coding Generator'!$B83,'Work Order Master'!$S:$S,0)),\"Contact Finance\"))","v":""},null,78,null,{"$f":"IF($J83=\"\",\"\",IFERROR(INDEX('CHART OF ACCOUNTS'!G:G,MATCH('Coding Generator'!$J83,'CHART OF ACCOUNTS'!$N:$N,0)),\"Contact Finance\"))","v":""},{"$f":"IF($J83=\"\",\"\",IFERROR(INDEX('CHART OF ACCOUNTS'!H:H,MATCH('Coding Generator'!$J83,'CHART OF ACCOUNTS'!$N:$N,0)),\"Contact Finance\"))","v":""},{"$f":"IF($J83=\"\",\"\",IFERROR(INDEX('CHART OF ACCOUNTS'!D:D,MATCH('Coding Generator'!$J83,'CHART OF ACCOUNTS'!$N:$N,0)),\"Contact Finance\"))","v":""},{"$f":"IF($J83=\"\",\"\",IFERROR(INDEX('CHART OF ACCOUNTS'!F:F,MATCH('Coding Generator'!$J83,'CHART OF ACCOUNTS'!$N:$N,0)),\"Contact Finance\"))","v":""}]
[79,null,{"$f":"IF($B84=\"\",\"\",IFERROR(INDEX('Work Order Master'!K:K,MATCH('Coding Generator'!$B84,'Work Order Master'!$S:$S,0)),\"Contact Finance\"))","v":""},{"$f":"IF($B84=\"\",\"\",IFERROR(INDEX('Work Order Master'!L:L,MATCH('Coding Generator'!$B84,'Work Order Master'!$S:$S,0)),\"Contact Finance\"))","v":""},{"$f":"IF($B84=\"\",\"\",IFERROR(INDEX('Work Order Master'!M:M,MATCH('Coding Generator'!$B84,'Work Order Master'!$S:$S,0)),\"Contact Finance\"))","v":""},{"$f":"IF($B84=\"\",\"\",IFERROR(INDEX('Work Order Master'!N:N,MATCH('Coding Generator'!$B84,'Work Order Master'!$S:$S,0)),\"Contact Finance\"))","v":""},{"$f":"IF($B84=\"\",\"\",IFERROR(INDEX('Work Order Master'!U:U,MATCH('Coding Generator'!$B84,'Work Order Master'!$S:$S,0)),\"Contact Finance\"))","v":""},null,79,null,{"$f":"IF($J84=\"\",\"\",IFERROR(INDEX('CHART OF ACCOUNTS'!G:G,MATCH('Coding Generator'!$J84,'CHART OF ACCOUNTS'!$N:$N,0)),\"Contact Finance\"))","v":""},{"$f":"IF($J84=\"\",\"\",IFERROR(INDEX('CHART OF ACCOUNTS'!H:H,MATCH('Coding Generator'!$J84,'CHART OF ACCOUNTS'!$N:$N,0)),\"Contact Finance\"))","v":""},{"$f":"IF($J84=\"\",\"\",IFERROR(INDEX('CHART OF ACCOUNTS'!D:D,MATCH('Coding Generator'!$J84,'CHART OF ACCOUNTS'!$N:$N,0)),\"Contact Finance\"))","v":""},{"$f":"IF($J84=\"\",\"\",IFERROR(INDEX('CHART OF ACCOUNTS'!F:F,MATCH('Coding Generator'!$J84,'CHART OF ACCOUNTS'!$N:$N,0)),\"Contact Finance\"))","v":""}]
[80,null,{"$f":"IF($B85=\"\",\"\",IFERROR(INDEX('Work Order Master'!K:K,MATCH('Coding Generator'!$B85,'Work Order Master'!$S:$S,0)),\"Contact Finance\"))","v":""},{"$f":"IF($B85=\"\",\"\",IFERROR(INDEX('Work Order Master'!L:L,MATCH('Coding Generator'!$B85,'Work Order Master'!$S:$S,0)),\"Contact Finance\"))","v":""},{"$f":"IF($B85=\"\",\"\",IFERROR(INDEX('Work Order Master'!M:M,MATCH('Coding Generator'!$B85,'Work Order Master'!$S:$S,0)),\"Contact Finance\"))","v":""},{"$f":"IF($B85=\"\",\"\",IFERROR(INDEX('Work Order Master'!N:N,MATCH('Coding Generator'!$B85,'Work Order Master'!$S:$S,0)),\"Contact Finance\"))","v":""},{"$f":"IF($B85=\"\",\"\",IFERROR(INDEX('Work Order Master'!U:U,MATCH('Coding Generator'!$B85,'Work Order Master'!$S:$S,0)),\"Contact Finance\"))","v":""},null,80,null,{"$f":"IF($J85=\"\",\"\",IFERROR(INDEX('CHART OF ACCOUNTS'!G:G,MATCH('Coding Generator'!$J85,'CHART OF ACCOUNTS'!$N:$N,0)),\"Contact Finance\"))","v":""},{"$f":"IF($J85=\"\",\"\",IFERROR(INDEX('CHART OF ACCOUNTS'!H:H,MATCH('Coding Generator'!$J85,'CHART OF ACCOUNTS'!$N:$N,0)),\"Contact Finance\"))","v":""},{"$f":"IF($J85=\"\",\"\",IFERROR(INDEX('CHART OF ACCOUNTS'!D:D,MATCH('Coding Generator'!$J85,'CHART OF ACCOUNTS'!$N:$N,0)),\"Contact Finance\"))","v":""},{"$f":"IF($J85=\"\",\"\",IFERROR(INDEX('CHART OF ACCOUNTS'!F:F,MATCH('Coding Generator'!$J85,'CHART OF ACCOUNTS'!$N:$N,0)),\"Contact Finance\"))","v":""}]
[81,null,{"$f":"IF($B86=\"\",\"\",IFERROR(INDEX('Work Order Master'!K:K,MATCH('Coding Generator'!$B86,'Work Order Master'!$S:$S,0)),\"Contact Finance\"))","v":""},{"$f":"IF($B86=\"\",\"\",IFERROR(INDEX('Work Order Master'!L:L,MATCH('Coding Generator'!$B86,'Work Order Master'!$S:$S,0)),\"Contact Finance\"))","v":""},{"$f":"IF($B86=\"\",\"\",IFERROR(INDEX('Work Order Master'!M:M,MATCH('Coding Generator'!$B86,'Work Order Master'!$S:$S,0)),\"Contact Finance\"))","v":""},{"$f":"IF($B86=\"\",\"\",IFERROR(INDEX('Work Order Master'!N:N,MATCH('Coding Generator'!$B86,'Work Order Master'!$S:$S,0)),\"Contact Finance\"))","v":""},{"$f":"IF($B86=\"\",\"\",IFERROR(INDEX('Work Order Master'!U:U,MATCH('Coding Generator'!$B86,'Work Order Master'!$S:$S,0)),\"Contact Finance\"))","v":""},null,81,null,{"$f":"IF($J86=\"\",\"\",IFERROR(INDEX('CHART OF ACCOUNTS'!G:G,MATCH('Coding Generator'!$J86,'CHART OF ACCOUNTS'!$N:$N,0)),\"Contact Finance\"))","v":""},{"$f":"IF($J86=\"\",\"\",IFERROR(INDEX('CHART OF ACCOUNTS'!H:H,MATCH('Coding Generator'!$J86,'CHART OF ACCOUNTS'!$N:$N,0)),\"Contact Finance\"))","v":""},{"$f":"IF($J86=\"\",\"\",IFERROR(INDEX('CHART OF ACCOUNTS'!D:D,MATCH('Coding Generator'!$J86,'CHART OF ACCOUNTS'!$N:$N,0)),\"Contact Finance\"))","v":""},{"$f":"IF($J86=\"\",\"\",IFERROR(INDEX('CHART OF ACCOUNTS'!F:F,MATCH('Coding Generator'!$J86,'CHART OF ACCOUNTS'!$N:$N,0)),\"Contact Finance\"))","v":""}]
[82,null,{"$f":"IF($B87=\"\",\"\",IFERROR(INDEX('Work Order Master'!K:K,MATCH('Coding Generator'!$B87,'Work Order Master'!$S:$S,0)),\"Contact Finance\"))","v":""},{"$f":"IF($B87=\"\",\"\",IFERROR(INDEX('Work Order Master'!L:L,MATCH('Coding Generator'!$B87,'Work Order Master'!$S:$S,0)),\"Contact Finance\"))","v":""},{"$f":"IF($B87=\"\",\"\",IFERROR(INDEX('Work Order Master'!M:M,MATCH('Coding Generator'!$B87,'Work Order Master'!$S:$S,0)),\"Contact Finance\"))","v":""},{"$f":"IF($B87=\"\",\"\",IFERROR(INDEX('Work Order Master'!N:N,MATCH('Coding Generator'!$B87,'Work Order Master'!$S:$S,0)),\"Contact Finance\"))","v":""},{"$f":"IF($B87=\"\",\"\",IFERROR(INDEX('Work Order Master'!U:U,MATCH('Coding Generator'!$B87,'Work Order Master'!$S:$S,0)),\"Contact Finance\"))","v":""},null,82,null,{"$f":"IF($J87=\"\",\"\",IFERROR(INDEX('CHART OF ACCOUNTS'!G:G,MATCH('Coding Generator'!$J87,'CHART OF ACCOUNTS'!$N:$N,0)),\"Contact Finance\"))","v":""},{"$f":"IF($J87=\"\",\"\",IFERROR(INDEX('CHART OF ACCOUNTS'!H:H,MATCH('Coding Generator'!$J87,'CHART OF ACCOUNTS'!$N:$N,0)),\"Contact Finance\"))","v":""},{"$f":"IF($J87=\"\",\"\",IFERROR(INDEX('CHART OF ACCOUNTS'!D:D,MATCH('Coding Generator'!$J87,'CHART OF ACCOUNTS'!$N:$N,0)),\"Contact Finance\"))","v":""},{"$f":"IF($J87=\"\",\"\",IFERROR(INDEX('CHART OF ACCOUNTS'!F:F,MATCH('Coding Generator'!$J87,'CHART OF ACCOUNTS'!$N:$N,0)),\"Contact Finance\"))","v":""}]
[83,null,{"$f":"IF($B88=\"\",\"\",IFERROR(INDEX('Work Order Master'!K:K,MATCH('Coding Generator'!$B88,'Work Order Master'!$S:$S,0)),\"Contact Finance\"))","v":""},{"$f":"IF($B88=\"\",\"\",IFERROR(INDEX('Work Order Master'!L:L,MATCH('Coding Generator'!$B88,'Work Order Master'!$S:$S,0)),\"Contact Finance\"))","v":""},{"$f":"IF($B88=\"\",\"\",IFERROR(INDEX('Work Order Master'!M:M,MATCH('Coding Generator'!$B88,'Work Order Master'!$S:$S,0)),\"Contact Finance\"))","v":""},{"$f":"IF($B88=\"\",\"\",IFERROR(INDEX('Work Order Master'!N:N,MATCH('Coding Generator'!$B88,'Work Order Master'!$S:$S,0)),\"Contact Finance\"))","v":""},{"$f":"IF($B88=\"\",\"\",IFERROR(INDEX('Work Order Master'!U:U,MATCH('Coding Generator'!$B88,'Work Order Master'!$S:$S,0)),\"Contact Finance\"))","v":""},null,83,null,{"$f":"IF($J88=\"\",\"\",IFERROR(INDEX('CHART OF ACCOUNTS'!G:G,MATCH('Coding Generator'!$J88,'CHART OF ACCOUNTS'!$N:$N,0)),\"Contact Finance\"))","v":""},{"$f":"IF($J88=\"\",\"\",IFERROR(INDEX('CHART OF ACCOUNTS'!H:H,MATCH('Coding Generator'!$J88,'CHART OF ACCOUNTS'!$N:$N,0)),\"Contact Finance\"))","v":""},{"$f":"IF($J88=\"\",\"\",IFERROR(INDEX('CHART OF ACCOUNTS'!D:D,MATCH('Coding Generator'!$J88,'CHART OF ACCOUNTS'!$N:$N,0)),\"Contact Finance\"))","v":""},{"$f":"IF($J88=\"\",\"\",IFERROR(INDEX('CHART OF ACCOUNTS'!F:F,MATCH('Coding Generator'!$J88,'CHART OF ACCOUNTS'!$N:$N,0)),\"Contact Finance\"))","v":""}]
[84,null,{"$f":"IF($B89=\"\",\"\",IFERROR(INDEX('Work Order Master'!K:K,MATCH('Coding Generator'!$B89,'Work Order Master'!$S:$S,0)),\"Contact Finance\"))","v":""},{"$f":"IF($B89=\"\",\"\",IFERROR(INDEX('Work Order Master'!L:L,MATCH('Coding Generator'!$B89,'Work Order Master'!$S:$S,0)),\"Contact Finance\"))","v":""},{"$f":"IF($B89=\"\",\"\",IFERROR(INDEX('Work Order Master'!M:M,MATCH('Coding Generator'!$B89,'Work Order Master'!$S:$S,0)),\"Contact Finance\"))","v":""},{"$f":"IF($B89=\"\",\"\",IFERROR(INDEX('Work Order Master'!N:N,MATCH('Coding Generator'!$B89,'Work Order Master'!$S:$S,0)),\"Contact Finance\"))","v":""},{"$f":"IF($B89=\"\",\"\",IFERROR(INDEX('Work Order Master'!U:U,MATCH('Coding Generator'!$B89,'Work Order Master'!$S:$S,0)),\"Contact Finance\"))","v":""},null,84,null,{"$f":"IF($J89=\"\",\"\",IFERROR(INDEX('CHART OF ACCOUNTS'!G:G,MATCH('Coding Generator'!$J89,'CHART OF ACCOUNTS'!$N:$N,0)),\"Contact Finance\"))","v":""},{"$f":"IF($J89=\"\",\"\",IFERROR(INDEX('CHART OF ACCOUNTS'!H:H,MATCH('Coding Generator'!$J89,'CHART OF ACCOUNTS'!$N:$N,0)),\"Contact Finance\"))","v":""},{"$f":"IF($J89=\"\",\"\",IFERROR(INDEX('CHART OF ACCOUNTS'!D:D,MATCH('Coding Generator'!$J89,'CHART OF ACCOUNTS'!$N:$N,0)),\"Contact Finance\"))","v":""},{"$f":"IF($J89=\"\",\"\",IFERROR(INDEX('CHART OF ACCOUNTS'!F:F,MATCH('Coding Generator'!$J89,'CHART OF ACCOUNTS'!$N:$N,0)),\"Contact Finance\"))","v":""}]
[85,null,{"$f":"IF($B90=\"\",\"\",IFERROR(INDEX('Work Order Master'!K:K,MATCH('Coding Generator'!$B90,'Work Order Master'!$S:$S,0)),\"Contact Finance\"))","v":""},{"$f":"IF($B90=\"\",\"\",IFERROR(INDEX('Work Order Master'!L:L,MATCH('Coding Generator'!$B90,'Work Order Master'!$S:$S,0)),\"Contact Finance\"))","v":""},{"$f":"IF($B90=\"\",\"\",IFERROR(INDEX('Work Order Master'!M:M,MATCH('Coding Generator'!$B90,'Work Order Master'!$S:$S,0)),\"Contact Finance\"))","v":""},{"$f":"IF($B90=\"\",\"\",IFERROR(INDEX('Work Order Master'!N:N,MATCH('Coding Generator'!$B90,'Work Order Master'!$S:$S,0)),\"Contact Finance\"))","v":""},{"$f":"IF($B90=\"\",\"\",IFERROR(INDEX('Work Order Master'!U:U,MATCH('Coding Generator'!$B90,'Work Order Master'!$S:$S,0)),\"Contact Finance\"))","v":""},null,85,null,{"$f":"IF($J90=\"\",\"\",IFERROR(INDEX('CHART OF ACCOUNTS'!G:G,MATCH('Coding Generator'!$J90,'CHART OF ACCOUNTS'!$N:$N,0)),\"Contact Finance\"))","v":""},{"$f":"IF($J90=\"\",\"\",IFERROR(INDEX('CHART OF ACCOUNTS'!H:H,MATCH('Coding Generator'!$J90,'CHART OF ACCOUNTS'!$N:$N,0)),\"Contact Finance\"))","v":""},{"$f":"IF($J90=\"\",\"\",IFERROR(INDEX('CHART OF ACCOUNTS'!D:D,MATCH('Coding Generator'!$J90,'CHART OF ACCOUNTS'!$N:$N,0)),\"Contact Finance\"))","v":""},{"$f":"IF($J90=\"\",\"\",IFERROR(INDEX('CHART OF ACCOUNTS'!F:F,MATCH('Coding Generator'!$J90,'CHART OF ACCOUNTS'!$N:$N,0)),\"Contact Finance\"))","v":""}]
[86,null,{"$f":"IF($B91=\"\",\"\",IFERROR(INDEX('Work Order Master'!K:K,MATCH('Coding Generator'!$B91,'Work Order Master'!$S:$S,0)),\"Contact Finance\"))","v":""},{"$f":"IF($B91=\"\",\"\",IFERROR(INDEX('Work Order Master'!L:L,MATCH('Coding Generator'!$B91,'Work Order Master'!$S:$S,0)),\"Contact Finance\"))","v":""},{"$f":"IF($B91=\"\",\"\",IFERROR(INDEX('Work Order Master'!M:M,MATCH('Coding Generator'!$B91,'Work Order Master'!$S:$S,0)),\"Contact Finance\"))","v":""},{"$f":"IF($B91=\"\",\"\",IFERROR(INDEX('Work Order Master'!N:N,MATCH('Coding Generator'!$B91,'Work Order Master'!$S:$S,0)),\"Contact Finance\"))","v":""},{"$f":"IF($B91=\"\",\"\",IFERROR(INDEX('Work Order Master'!U:U,MATCH('Coding Generator'!$B91,'Work Order Master'!$S:$S,0)),\"Contact Finance\"))","v":""},null,86,null,{"$f":"IF($J91=\"\",\"\",IFERROR(INDEX('CHART OF ACCOUNTS'!G:G,MATCH('Coding Generator'!$J91,'CHART OF ACCOUNTS'!$N:$N,0)),\"Contact Finance\"))","v":""},{"$f":"IF($J91=\"\",\"\",IFERROR(INDEX('CHART OF ACCOUNTS'!H:H,MATCH('Coding Generator'!$J91,'CHART OF ACCOUNTS'!$N:$N,0)),\"Contact Finance\"))","v":""},{"$f":"IF($J91=\"\",\"\",IFERROR(INDEX('CHART OF ACCOUNTS'!D:D,MATCH('Coding Generator'!$J91,'CHART OF ACCOUNTS'!$N:$N,0)),\"Contact Finance\"))","v":""},{"$f":"IF($J91=\"\",\"\",IFERROR(INDEX('CHART OF ACCOUNTS'!F:F,MATCH('Coding Generator'!$J91,'CHART OF ACCOUNTS'!$N:$N,0)),\"Contact Finance\"))","v":""}]
[87,null,{"$f":"IF($B92=\"\",\"\",IFERROR(INDEX('Work Order Master'!K:K,MATCH('Coding Generator'!$B92,'Work Order Master'!$S:$S,0)),\"Contact Finance\"))","v":""},{"$f":"IF($B92=\"\",\"\",IFERROR(INDEX('Work Order Master'!L:L,MATCH('Coding Generator'!$B92,'Work Order Master'!$S:$S,0)),\"Contact Finance\"))","v":""},{"$f":"IF($B92=\"\",\"\",IFERROR(INDEX('Work Order Master'!M:M,MATCH('Coding Generator'!$B92,'Work Order Master'!$S:$S,0)),\"Contact Finance\"))","v":""},{"$f":"IF($B92=\"\",\"\",IFERROR(INDEX('Work Order Master'!N:N,MATCH('Coding Generator'!$B92,'Work Order Master'!$S:$S,0)),\"Contact Finance\"))","v":""},{"$f":"IF($B92=\"\",\"\",IFERROR(INDEX('Work Order Master'!U:U,MATCH('Coding Generator'!$B92,'Work Order Master'!$S:$S,0)),\"Contact Finance\"))","v":""},null,87,null,{"$f":"IF($J92=\"\",\"\",IFERROR(INDEX('CHART OF ACCOUNTS'!G:G,MATCH('Coding Generator'!$J92,'CHART OF ACCOUNTS'!$N:$N,0)),\"Contact Finance\"))","v":""},{"$f":"IF($J92=\"\",\"\",IFERROR(INDEX('CHART OF ACCOUNTS'!H:H,MATCH('Coding Generator'!$J92,'CHART OF ACCOUNTS'!$N:$N,0)),\"Contact Finance\"))","v":""},{"$f":"IF($J92=\"\",\"\",IFERROR(INDEX('CHART OF ACCOUNTS'!D:D,MATCH('Coding Generator'!$J92,'CHART OF ACCOUNTS'!$N:$N,0)),\"Contact Finance\"))","v":""},{"$f":"IF($J92=\"\",\"\",IFERROR(INDEX('CHART OF ACCOUNTS'!F:F,MATCH('Coding Generator'!$J92,'CHART OF ACCOUNTS'!$N:$N,0)),\"Contact Finance\"))","v":""}]
[88,null,{"$f":"IF($B93=\"\",\"\",IFERROR(INDEX('Work Order Master'!K:K,MATCH('Coding Generator'!$B93,'Work Order Master'!$S:$S,0)),\"Contact Finance\"))","v":""},{"$f":"IF($B93=\"\",\"\",IFERROR(INDEX('Work Order Master'!L:L,MATCH('Coding Generator'!$B93,'Work Order Master'!$S:$S,0)),\"Contact Finance\"))","v":""},{"$f":"IF($B93=\"\",\"\",IFERROR(INDEX('Work Order Master'!M:M,MATCH('Coding Generator'!$B93,'Work Order Master'!$S:$S,0)),\"Contact Finance\"))","v":""},{"$f":"IF($B93=\"\",\"\",IFERROR(INDEX('Work Order Master'!N:N,MATCH('Coding Generator'!$B93,'Work Order Master'!$S:$S,0)),\"Contact Finance\"))","v":""},{"$f":"IF($B93=\"\",\"\",IFERROR(INDEX('Work Order Master'!U:U,MATCH('Coding Generator'!$B93,'Work Order Master'!$S:$S,0)),\"Contact Finance\"))","v":""},null,88,null,{"$f":"IF($J93=\"\",\"\",IFERROR(INDEX('CHART OF ACCOUNTS'!G:G,MATCH('Coding Generator'!$J93,'CHART OF ACCOUNTS'!$N:$N,0)),\"Contact Finance\"))","v":""},{"$f":"IF($J93=\"\",\"\",IFERROR(INDEX('CHART OF ACCOUNTS'!H:H,MATCH('Coding Generator'!$J93,'CHART OF ACCOUNTS'!$N:$N,0)),\"Contact Finance\"))","v":""},{"$f":"IF($J93=\"\",\"\",IFERROR(INDEX('CHART OF ACCOUNTS'!D:D,MATCH('Coding Generator'!$J93,'CHART OF ACCOUNTS'!$N:$N,0)),\"Contact Finance\"))","v":""},{"$f":"IF($J93=\"\",\"\",IFERROR(INDEX('CHART OF ACCOUNTS'!F:F,MATCH('Coding Generator'!$J93,'CHART OF ACCOUNTS'!$N:$N,0)),\"Contact Finance\"))","v":""}]
[89,null,{"$f":"IF($B94=\"\",\"\",IFERROR(INDEX('Work Order Master'!K:K,MATCH('Coding Generator'!$B94,'Work Order Master'!$S:$S,0)),\"Contact Finance\"))","v":""},{"$f":"IF($B94=\"\",\"\",IFERROR(INDEX('Work Order Master'!L:L,MATCH('Coding Generator'!$B94,'Work Order Master'!$S:$S,0)),\"Contact Finance\"))","v":""},{"$f":"IF($B94=\"\",\"\",IFERROR(INDEX('Work Order Master'!M:M,MATCH('Coding Generator'!$B94,'Work Order Master'!$S:$S,0)),\"Contact Finance\"))","v":""},{"$f":"IF($B94=\"\",\"\",IFERROR(INDEX('Work Order Master'!N:N,MATCH('Coding Generator'!$B94,'Work Order Master'!$S:$S,0)),\"Contact Finance\"))","v":""},{"$f":"IF($B94=\"\",\"\",IFERROR(INDEX('Work Order Master'!U:U,MATCH('Coding Generator'!$B94,'Work Order Master'!$S:$S,0)),\"Contact Finance\"))","v":""},null,89,null,{"$f":"IF($J94=\"\",\"\",IFERROR(INDEX('CHART OF ACCOUNTS'!G:G,MATCH('Coding Generator'!$J94,'CHART OF ACCOUNTS'!$N:$N,0)),\"Contact Finance\"))","v":""},{"$f":"IF($J94=\"\",\"\",IFERROR(INDEX('CHART OF ACCOUNTS'!H:H,MATCH('Coding Generator'!$J94,'CHART OF ACCOUNTS'!$N:$N,0)),\"Contact Finance\"))","v":""},{"$f":"IF($J94=\"\",\"\",IFERROR(INDEX('CHART OF ACCOUNTS'!D:D,MATCH('Coding Generator'!$J94,'CHART OF ACCOUNTS'!$N:$N,0)),\"Contact Finance\"))","v":""},{"$f":"IF($J94=\"\",\"\",IFERROR(INDEX('CHART OF ACCOUNTS'!F:F,MATCH('Coding Generator'!$J94,'CHART OF ACCOUNTS'!$N:$N,0)),\"Contact Finance\"))","v":""}]
[90,null,{"$f":"IF($B95=\"\",\"\",IFERROR(INDEX('Work Order Master'!K:K,MATCH('Coding Generator'!$B95,'Work Order Master'!$S:$S,0)),\"Contact Finance\"))","v":""},{"$f":"IF($B95=\"\",\"\",IFERROR(INDEX('Work Order Master'!L:L,MATCH('Coding Generator'!$B95,'Work Order Master'!$S:$S,0)),\"Contact Finance\"))","v":""},{"$f":"IF($B95=\"\",\"\",IFERROR(INDEX('Work Order Master'!M:M,MATCH('Coding Generator'!$B95,'Work Order Master'!$S:$S,0)),\"Contact Finance\"))","v":""},{"$f":"IF($B95=\"\",\"\",IFERROR(INDEX('Work Order Master'!N:N,MATCH('Coding Generator'!$B95,'Work Order Master'!$S:$S,0)),\"Contact Finance\"))","v":""},{"$f":"IF($B95=\"\",\"\",IFERROR(INDEX('Work Order Master'!U:U,MATCH('Coding Generator'!$B95,'Work Order Master'!$S:$S,0)),\"Contact Finance\"))","v":""},null,90,null,{"$f":"IF($J95=\"\",\"\",IFERROR(INDEX('CHART OF ACCOUNTS'!G:G,MATCH('Coding Generator'!$J95,'CHART OF ACCOUNTS'!$N:$N,0)),\"Contact Finance\"))","v":""},{"$f":"IF($J95=\"\",\"\",IFERROR(INDEX('CHART OF ACCOUNTS'!H:H,MATCH('Coding Generator'!$J95,'CHART OF ACCOUNTS'!$N:$N,0)),\"Contact Finance\"))","v":""},{"$f":"IF($J95=\"\",\"\",IFERROR(INDEX('CHART OF ACCOUNTS'!D:D,MATCH('Coding Generator'!$J95,'CHART OF ACCOUNTS'!$N:$N,0)),\"Contact Finance\"))","v":""},{"$f":"IF($J95=\"\",\"\",IFERROR(INDEX('CHART OF ACCOUNTS'!F:F,MATCH('Coding Generator'!$J95,'CHART OF ACCOUNTS'!$N:$N,0)),\"Contact Finance\"))","v":""}]
[91,null,{"$f":"IF($B96=\"\",\"\",IFERROR(INDEX('Work Order Master'!K:K,MATCH('Coding Generator'!$B96,'Work Order Master'!$S:$S,0)),\"Contact Finance\"))","v":""},{"$f":"IF($B96=\"\",\"\",IFERROR(INDEX('Work Order Master'!L:L,MATCH('Coding Generator'!$B96,'Work Order Master'!$S:$S,0)),\"Contact Finance\"))","v":""},{"$f":"IF($B96=\"\",\"\",IFERROR(INDEX('Work Order Master'!M:M,MATCH('Coding Generator'!$B96,'Work Order Master'!$S:$S,0)),\"Contact Finance\"))","v":""},{"$f":"IF($B96=\"\",\"\",IFERROR(INDEX('Work Order Master'!N:N,MATCH('Coding Generator'!$B96,'Work Order Master'!$S:$S,0)),\"Contact Finance\"))","v":""},{"$f":"IF($B96=\"\",\"\",IFERROR(INDEX('Work Order Master'!U:U,MATCH('Coding Generator'!$B96,'Work Order Master'!$S:$S,0)),\"Contact Finance\"))","v":""},null,91,null,{"$f":"IF($J96=\"\",\"\",IFERROR(INDEX('CHART OF ACCOUNTS'!G:G,MATCH('Coding Generator'!$J96,'CHART OF ACCOUNTS'!$N:$N,0)),\"Contact Finance\"))","v":""},{"$f":"IF($J96=\"\",\"\",IFERROR(INDEX('CHART OF ACCOUNTS'!H:H,MATCH('Coding Generator'!$J96,'CHART OF ACCOUNTS'!$N:$N,0)),\"Contact Finance\"))","v":""},{"$f":"IF($J96=\"\",\"\",IFERROR(INDEX('CHART OF ACCOUNTS'!D:D,MATCH('Coding Generator'!$J96,'CHART OF ACCOUNTS'!$N:$N,0)),\"Contact Finance\"))","v":""},{"$f":"IF($J96=\"\",\"\",IFERROR(INDEX('CHART OF ACCOUNTS'!F:F,MATCH('Coding Generator'!$J96,'CHART OF ACCOUNTS'!$N:$N,0)),\"Contact Finance\"))","v":""}]
[92,null,{"$f":"IF($B97=\"\",\"\",IFERROR(INDEX('Work Order Master'!K:K,MATCH('Coding Generator'!$B97,'Work Order Master'!$S:$S,0)),\"Contact Finance\"))","v":""},{"$f":"IF($B97=\"\",\"\",IFERROR(INDEX('Work Order Master'!L:L,MATCH('Coding Generator'!$B97,'Work Order Master'!$S:$S,0)),\"Contact Finance\"))","v":""},{"$f":"IF($B97=\"\",\"\",IFERROR(INDEX('Work Order Master'!M:M,MATCH('Coding Generator'!$B97,'Work Order Master'!$S:$S,0)),\"Contact Finance\"))","v":""},{"$f":"IF($B97=\"\",\"\",IFERROR(INDEX('Work Order Master'!N:N,MATCH('Coding Generator'!$B97,'Work Order Master'!$S:$S,0)),\"Contact Finance\"))","v":""},{"$f":"IF($B97=\"\",\"\",IFERROR(INDEX('Work Order Master'!U:U,MATCH('Coding Generator'!$B97,'Work Order Master'!$S:$S,0)),\"Contact Finance\"))","v":""},null,92,null,{"$f":"IF($J97=\"\",\"\",IFERROR(INDEX('CHART OF ACCOUNTS'!G:G,MATCH('Coding Generator'!$J97,'CHART OF ACCOUNTS'!$N:$N,0)),\"Contact Finance\"))","v":""},{"$f":"IF($J97=\"\",\"\",IFERROR(INDEX('CHART OF ACCOUNTS'!H:H,MATCH('Coding Generator'!$J97,'CHART OF ACCOUNTS'!$N:$N,0)),\"Contact Finance\"))","v":""},{"$f":"IF($J97=\"\",\"\",IFERROR(INDEX('CHART OF ACCOUNTS'!D:D,MATCH('Coding Generator'!$J97,'CHART OF ACCOUNTS'!$N:$N,0)),\"Contact Finance\"))","v":""},{"$f":"IF($J97=\"\",\"\",IFERROR(INDEX('CHART OF ACCOUNTS'!F:F,MATCH('Coding Generator'!$J97,'CHART OF ACCOUNTS'!$N:$N,0)),\"Contact Finance\"))","v":""}]
[93,null,{"$f":"IF($B98=\"\",\"\",IFERROR(INDEX('Work Order Master'!K:K,MATCH('Coding Generator'!$B98,'Work Order Master'!$S:$S,0)),\"Contact Finance\"))","v":""},{"$f":"IF($B98=\"\",\"\",IFERROR(INDEX('Work Order Master'!L:L,MATCH('Coding Generator'!$B98,'Work Order Master'!$S:$S,0)),\"Contact Finance\"))","v":""},{"$f":"IF($B98=\"\",\"\",IFERROR(INDEX('Work Order Master'!M:M,MATCH('Coding Generator'!$B98,'Work Order Master'!$S:$S,0)),\"Contact Finance\"))","v":""},{"$f":"IF($B98=\"\",\"\",IFERROR(INDEX('Work Order Master'!N:N,MATCH('Coding Generator'!$B98,'Work Order Master'!$S:$S,0)),\"Contact Finance\"))","v":""},{"$f":"IF($B98=\"\",\"\",IFERROR(INDEX('Work Order Master'!U:U,MATCH('Coding Generator'!$B98,'Work Order Master'!$S:$S,0)),\"Contact Finance\"))","v":""},null,93,null,{"$f":"IF($J98=\"\",\"\",IFERROR(INDEX('CHART OF ACCOUNTS'!G:G,MATCH('Coding Generator'!$J98,'CHART OF ACCOUNTS'!$N:$N,0)),\"Contact Finance\"))","v":""},{"$f":"IF($J98=\"\",\"\",IFERROR(INDEX('CHART OF ACCOUNTS'!H:H,MATCH('Coding Generator'!$J98,'CHART OF ACCOUNTS'!$N:$N,0)),\"Contact Finance\"))","v":""},{"$f":"IF($J98=\"\",\"\",IFERROR(INDEX('CHART OF ACCOUNTS'!D:D,MATCH('Coding Generator'!$J98,'CHART OF ACCOUNTS'!$N:$N,0)),\"Contact Finance\"))","v":""},{"$f":"IF($J98=\"\",\"\",IFERROR(INDEX('CHART OF ACCOUNTS'!F:F,MATCH('Coding Generator'!$J98,'CHART OF ACCOUNTS'!$N:$N,0)),\"Contact Finance\"))","v":""}]
[94,null,{"$f":"IF($B99=\"\",\"\",IFERROR(INDEX('Work Order Master'!K:K,MATCH('Coding Generator'!$B99,'Work Order Master'!$S:$S,0)),\"Contact Finance\"))","v":""},{"$f":"IF($B99=\"\",\"\",IFERROR(INDEX('Work Order Master'!L:L,MATCH('Coding Generator'!$B99,'Work Order Master'!$S:$S,0)),\"Contact Finance\"))","v":""},{"$f":"IF($B99=\"\",\"\",IFERROR(INDEX('Work Order Master'!M:M,MATCH('Coding Generator'!$B99,'Work Order Master'!$S:$S,0)),\"Contact Finance\"))","v":""},{"$f":"IF($B99=\"\",\"\",IFERROR(INDEX('Work Order Master'!N:N,MATCH('Coding Generator'!$B99,'Work Order Master'!$S:$S,0)),\"Contact Finance\"))","v":""},{"$f":"IF($B99=\"\",\"\",IFERROR(INDEX('Work Order Master'!U:U,MATCH('Coding Generator'!$B99,'Work Order Master'!$S:$S,0)),\"Contact Finance\"))","v":""},null,94,null,{"$f":"IF($J99=\"\",\"\",IFERROR(INDEX('CHART OF ACCOUNTS'!G:G,MATCH('Coding Generator'!$J99,'CHART OF ACCOUNTS'!$N:$N,0)),\"Contact Finance\"))","v":""},{"$f":"IF($J99=\"\",\"\",IFERROR(INDEX('CHART OF ACCOUNTS'!H:H,MATCH('Coding Generator'!$J99,'CHART OF ACCOUNTS'!$N:$N,0)),\"Contact Finance\"))","v":""},{"$f":"IF($J99=\"\",\"\",IFERROR(INDEX('CHART OF ACCOUNTS'!D:D,MATCH('Coding Generator'!$J99,'CHART OF ACCOUNTS'!$N:$N,0)),\"Contact Finance\"))","v":""},{"$f":"IF($J99=\"\",\"\",IFERROR(INDEX('CHART OF ACCOUNTS'!F:F,MATCH('Coding Generator'!$J99,'CHART OF ACCOUNTS'!$N:$N,0)),\"Contact Finance\"))","v":""}]
[95,null,{"$f":"IF($B100=\"\",\"\",IFERROR(INDEX('Work Order Master'!K:K,MATCH('Coding Generator'!$B100,'Work Order Master'!$S:$S,0)),\"Contact Finance\"))","v":""},{"$f":"IF($B100=\"\",\"\",IFERROR(INDEX('Work Order Master'!L:L,MATCH('Coding Generator'!$B100,'Work Order Master'!$S:$S,0)),\"Contact Finance\"))","v":""},{"$f":"IF($B100=\"\",\"\",IFERROR(INDEX('Work Order Master'!M:M,MATCH('Coding Generator'!$B100,'Work Order Master'!$S:$S,0)),\"Contact Finance\"))","v":""},{"$f":"IF($B100=\"\",\"\",IFERROR(INDEX('Work Order Master'!N:N,MATCH('Coding Generator'!$B100,'Work Order Master'!$S:$S,0)),\"Contact Finance\"))","v":""},{"$f":"IF($B100=\"\",\"\",IFERROR(INDEX('Work Order Master'!U:U,MATCH('Coding Generator'!$B100,'Work Order Master'!$S:$S,0)),\"Contact Finance\"))","v":""},null,95,null,{"$f":"IF($J100=\"\",\"\",IFERROR(INDEX('CHART OF ACCOUNTS'!G:G,MATCH('Coding Generator'!$J100,'CHART OF ACCOUNTS'!$N:$N,0)),\"Contact Finance\"))","v":""},{"$f":"IF($J100=\"\",\"\",IFERROR(INDEX('CHART OF ACCOUNTS'!H:H,MATCH('Coding Generator'!$J100,'CHART OF ACCOUNTS'!$N:$N,0)),\"Contact Finance\"))","v":""},{"$f":"IF($J100=\"\",\"\",IFERROR(INDEX('CHART OF ACCOUNTS'!D:D,MATCH('Coding Generator'!$J100,'CHART OF ACCOUNTS'!$N:$N,0)),\"Contact Finance\"))","v":""},{"$f":"IF($J100=\"\",\"\",IFERROR(INDEX('CHART OF ACCOUNTS'!F:F,MATCH('Coding Generator'!$J100,'CHART OF ACCOUNTS'!$N:$N,0)),\"Contact Finance\"))","v":""}]
[96,null,{"$f":"IF($B101=\"\",\"\",IFERROR(INDEX('Work Order Master'!K:K,MATCH('Coding Generator'!$B101,'Work Order Master'!$S:$S,0)),\"Contact Finance\"))","v":""},{"$f":"IF($B101=\"\",\"\",IFERROR(INDEX('Work Order Master'!L:L,MATCH('Coding Generator'!$B101,'Work Order Master'!$S:$S,0)),\"Contact Finance\"))","v":""},{"$f":"IF($B101=\"\",\"\",IFERROR(INDEX('Work Order Master'!M:M,MATCH('Coding Generator'!$B101,'Work Order Master'!$S:$S,0)),\"Contact Finance\"))","v":""},{"$f":"IF($B101=\"\",\"\",IFERROR(INDEX('Work Order Master'!N:N,MATCH('Coding Generator'!$B101,'Work Order Master'!$S:$S,0)),\"Contact Finance\"))","v":""},{"$f":"IF($B101=\"\",\"\",IFERROR(INDEX('Work Order Master'!U:U,MATCH('Coding Generator'!$B101,'Work Order Master'!$S:$S,0)),\"Contact Finance\"))","v":""},null,96,null,{"$f":"IF($J101=\"\",\"\",IFERROR(INDEX('CHART OF ACCOUNTS'!G:G,MATCH('Coding Generator'!$J101,'CHART OF ACCOUNTS'!$N:$N,0)),\"Contact Finance\"))","v":""},{"$f":"IF($J101=\"\",\"\",IFERROR(INDEX('CHART OF ACCOUNTS'!H:H,MATCH('Coding Generator'!$J101,'CHART OF ACCOUNTS'!$N:$N,0)),\"Contact Finance\"))","v":""},{"$f":"IF($J101=\"\",\"\",IFERROR(INDEX('CHART OF ACCOUNTS'!D:D,MATCH('Coding Generator'!$J101,'CHART OF ACCOUNTS'!$N:$N,0)),\"Contact Finance\"))","v":""},{"$f":"IF($J101=\"\",\"\",IFERROR(INDEX('CHART OF ACCOUNTS'!F:F,MATCH('Coding Generator'!$J101,'CHART OF ACCOUNTS'!$N:$N,0)),\"Contact Finance\"))","v":""}]
[97,null,{"$f":"IF($B102=\"\",\"\",IFERROR(INDEX('Work Order Master'!K:K,MATCH('Coding Generator'!$B102,'Work Order Master'!$S:$S,0)),\"Contact Finance\"))","v":""},{"$f":"IF($B102=\"\",\"\",IFERROR(INDEX('Work Order Master'!L:L,MATCH('Coding Generator'!$B102,'Work Order Master'!$S:$S,0)),\"Contact Finance\"))","v":""},{"$f":"IF($B102=\"\",\"\",IFERROR(INDEX('Work Order Master'!M:M,MATCH('Coding Generator'!$B102,'Work Order Master'!$S:$S,0)),\"Contact Finance\"))","v":""},{"$f":"IF($B102=\"\",\"\",IFERROR(INDEX('Work Order Master'!N:N,MATCH('Coding Generator'!$B102,'Work Order Master'!$S:$S,0)),\"Contact Finance\"))","v":""},{"$f":"IF($B102=\"\",\"\",IFERROR(INDEX('Work Order Master'!U:U,MATCH('Coding Generator'!$B102,'Work Order Master'!$S:$S,0)),\"Contact Finance\"))","v":""},null,97,null,{"$f":"IF($J102=\"\",\"\",IFERROR(INDEX('CHART OF ACCOUNTS'!G:G,MATCH('Coding Generator'!$J102,'CHART OF ACCOUNTS'!$N:$N,0)),\"Contact Finance\"))","v":""},{"$f":"IF($J102=\"\",\"\",IFERROR(INDEX('CHART OF ACCOUNTS'!H:H,MATCH('Coding Generator'!$J102,'CHART OF ACCOUNTS'!$N:$N,0)),\"Contact Finance\"))","v":""},{"$f":"IF($J102=\"\",\"\",IFERROR(INDEX('CHART OF ACCOUNTS'!D:D,MATCH('Coding Generator'!$J102,'CHART OF ACCOUNTS'!$N:$N,0)),\"Contact Finance\"))","v":""},{"$f":"IF($J102=\"\",\"\",IFERROR(INDEX('CHART OF ACCOUNTS'!F:F,MATCH('Coding Generator'!$J102,'CHART OF ACCOUNTS'!$N:$N,0)),\"Contact Finance\"))","v":""}]
[98,null,{"$f":"IF($B103=\"\",\"\",IFERROR(INDEX('Work Order Master'!K:K,MATCH('Coding Generator'!$B103,'Work Order Master'!$S:$S,0)),\"Contact Finance\"))","v":""},{"$f":"IF($B103=\"\",\"\",IFERROR(INDEX('Work Order Master'!L:L,MATCH('Coding Generator'!$B103,'Work Order Master'!$S:$S,0)),\"Contact Finance\"))","v":""},{"$f":"IF($B103=\"\",\"\",IFERROR(INDEX('Work Order Master'!M:M,MATCH('Coding Generator'!$B103,'Work Order Master'!$S:$S,0)),\"Contact Finance\"))","v":""},{"$f":"IF($B103=\"\",\"\",IFERROR(INDEX('Work Order Master'!N:N,MATCH('Coding Generator'!$B103,'Work Order Master'!$S:$S,0)),\"Contact Finance\"))","v":""},{"$f":"IF($B103=\"\",\"\",IFERROR(INDEX('Work Order Master'!U:U,MATCH('Coding Generator'!$B103,'Work Order Master'!$S:$S,0)),\"Contact Finance\"))","v":""},null,98,null,{"$f":"IF($J103=\"\",\"\",IFERROR(INDEX('CHART OF ACCOUNTS'!G:G,MATCH('Coding Generator'!$J103,'CHART OF ACCOUNTS'!$N:$N,0)),\"Contact Finance\"))","v":""},{"$f":"IF($J103=\"\",\"\",IFERROR(INDEX('CHART OF ACCOUNTS'!H:H,MATCH('Coding Generator'!$J103,'CHART OF ACCOUNTS'!$N:$N,0)),\"Contact Finance\"))","v":""},{"$f":"IF($J103=\"\",\"\",IFERROR(INDEX('CHART OF ACCOUNTS'!D:D,MATCH('Coding Generator'!$J103,'CHART OF ACCOUNTS'!$N:$N,0)),\"Contact Finance\"))","v":""},{"$f":"IF($J103=\"\",\"\",IFERROR(INDEX('CHART OF ACCOUNTS'!F:F,MATCH('Coding Generator'!$J103,'CHART OF ACCOUNTS'!$N:$N,0)),\"Contact Finance\"))","v":""}]
[99,null,{"$f":"IF($B104=\"\",\"\",IFERROR(INDEX('Work Order Master'!K:K,MATCH('Coding Generator'!$B104,'Work Order Master'!$S:$S,0)),\"Contact Finance\"))","v":""},{"$f":"IF($B104=\"\",\"\",IFERROR(INDEX('Work Order Master'!L:L,MATCH('Coding Generator'!$B104,'Work Order Master'!$S:$S,0)),\"Contact Finance\"))","v":""},{"$f":"IF($B104=\"\",\"\",IFERROR(INDEX('Work Order Master'!M:M,MATCH('Coding Generator'!$B104,'Work Order Master'!$S:$S,0)),\"Contact Finance\"))","v":""},{"$f":"IF($B104=\"\",\"\",IFERROR(INDEX('Work Order Master'!N:N,MATCH('Coding Generator'!$B104,'Work Order Master'!$S:$S,0)),\"Contact Finance\"))","v":""},{"$f":"IF($B104=\"\",\"\",IFERROR(INDEX('Work Order Master'!U:U,MATCH('Coding Generator'!$B104,'Work Order Master'!$S:$S,0)),\"Contact Finance\"))","v":""},null,99,null,{"$f":"IF($J104=\"\",\"\",IFERROR(INDEX('CHART OF ACCOUNTS'!G:G,MATCH('Coding Generator'!$J104,'CHART OF ACCOUNTS'!$N:$N,0)),\"Contact Finance\"))","v":""},{"$f":"IF($J104=\"\",\"\",IFERROR(INDEX('CHART OF ACCOUNTS'!H:H,MATCH('Coding Generator'!$J104,'CHART OF ACCOUNTS'!$N:$N,0)),\"Contact Finance\"))","v":""},{"$f":"IF($J104=\"\",\"\",IFERROR(INDEX('CHART OF ACCOUNTS'!D:D,MATCH('Coding Generator'!$J104,'CHART OF ACCOUNTS'!$N:$N,0)),\"Contact Finance\"))","v":""},{"$f":"IF($J104=\"\",\"\",IFERROR(INDEX('CHART OF ACCOUNTS'!F:F,MATCH('Coding Generator'!$J104,'CHART OF ACCOUNTS'!$N:$N,0)),\"Contact Finance\"))","v":""}]
[100,null,{"$f":"IF($B105=\"\",\"\",IFERROR(INDEX('Work Order Master'!K:K,MATCH('Coding Generator'!$B105,'Work Order Master'!$S:$S,0)),\"Contact Finance\"))","v":""},{"$f":"IF($B105=\"\",\"\",IFERROR(INDEX('Work Order Master'!L:L,MATCH('Coding Generator'!$B105,'Work Order Master'!$S:$S,0)),\"Contact Finance\"))","v":""},{"$f":"IF($B105=\"\",\"\",IFERROR(INDEX('Work Order Master'!M:M,MATCH('Coding Generator'!$B105,'Work Order Master'!$S:$S,0)),\"Contact Finance\"))","v":""},{"$f":"IF($B105=\"\",\"\",IFERROR(INDEX('Work Order Master'!N:N,MATCH('Coding Generator'!$B105,'Work Order Master'!$S:$S,0)),\"Contact Finance\"))","v":""},{"$f":"IF($B105=\"\",\"\",IFERROR(INDEX('Work Order Master'!U:U,MATCH('Coding Generator'!$B105,'Work Order Master'!$S:$S,0)),\"Contact Finance\"))","v":""},null,100,null,{"$f":"IF($J105=\"\",\"\",IFERROR(INDEX('CHART OF ACCOUNTS'!G:G,MATCH('Coding Generator'!$J105,'CHART OF ACCOUNTS'!$N:$N,0)),\"Contact Finance\"))","v":""},{"$f":"IF($J105=\"\",\"\",IFERROR(INDEX('CHART OF ACCOUNTS'!H:H,MATCH('Coding Generator'!$J105,'CHART OF ACCOUNTS'!$N:$N,0)),\"Contact Finance\"))","v":""},{"$f":"IF($J105=\"\",\"\",IFERROR(INDEX('CHART OF ACCOUNTS'!D:D,MATCH('Coding Generator'!$J105,'CHART OF ACCOUNTS'!$N:$N,0)),\"Contact Finance\"))","v":""},{"$f":"IF($J105=\"\",\"\",IFERROR(INDEX('CHART OF ACCOUNTS'!F:F,MATCH('Coding Generator'!$J105,'CHART OF ACCOUNTS'!$N:$N,0)),\"Contact Finance\"))","v":""}]
[101,null,{"$f":"IF($B106=\"\",\"\",IFERROR(INDEX('Work Order Master'!K:K,MATCH('Coding Generator'!$B106,'Work Order Master'!$S:$S,0)),\"Contact Finance\"))","v":""},{"$f":"IF($B106=\"\",\"\",IFERROR(INDEX('Work Order Master'!L:L,MATCH('Coding Generator'!$B106,'Work Order Master'!$S:$S,0)),\"Contact Finance\"))","v":""},{"$f":"IF($B106=\"\",\"\",IFERROR(INDEX('Work Order Master'!M:M,MATCH('Coding Generator'!$B106,'Work Order Master'!$S:$S,0)),\"Contact Finance\"))","v":""},{"$f":"IF($B106=\"\",\"\",IFERROR(INDEX('Work Order Master'!N:N,MATCH('Coding Generator'!$B106,'Work Order Master'!$S:$S,0)),\"Contact Finance\"))","v":""},{"$f":"IF($B106=\"\",\"\",IFERROR(INDEX('Work Order Master'!U:U,MATCH('Coding Generator'!$B106,'Work Order Master'!$S:$S,0)),\"Contact Finance\"))","v":""},null,101,null,{"$f":"IF($J106=\"\",\"\",IFERROR(INDEX('CHART OF ACCOUNTS'!G:G,MATCH('Coding Generator'!$J106,'CHART OF ACCOUNTS'!$N:$N,0)),\"Contact Finance\"))","v":""},{"$f":"IF($J106=\"\",\"\",IFERROR(INDEX('CHART OF ACCOUNTS'!H:H,MATCH('Coding Generator'!$J106,'CHART OF ACCOUNTS'!$N:$N,0)),\"Contact Finance\"))","v":""},{"$f":"IF($J106=\"\",\"\",IFERROR(INDEX('CHART OF ACCOUNTS'!D:D,MATCH('Coding Generator'!$J106,'CHART OF ACCOUNTS'!$N:$N,0)),\"Contact Finance\"))","v":""},{"$f":"IF($J106=\"\",\"\",IFERROR(INDEX('CHART OF ACCOUNTS'!F:F,MATCH('Coding Generator'!$J106,'CHART OF ACCOUNTS'!$N:$N,0)),\"Contact Finance\"))","v":""}]
[102,null,{"$f":"IF($B107=\"\",\"\",IFERROR(INDEX('Work Order Master'!K:K,MATCH('Coding Generator'!$B107,'Work Order Master'!$S:$S,0)),\"Contact Finance\"))","v":""},{"$f":"IF($B107=\"\",\"\",IFERROR(INDEX('Work Order Master'!L:L,MATCH('Coding Generator'!$B107,'Work Order Master'!$S:$S,0)),\"Contact Finance\"))","v":""},{"$f":"IF($B107=\"\",\"\",IFERROR(INDEX('Work Order Master'!M:M,MATCH('Coding Generator'!$B107,'Work Order Master'!$S:$S,0)),\"Contact Finance\"))","v":""},{"$f":"IF($B107=\"\",\"\",IFERROR(INDEX('Work Order Master'!N:N,MATCH('Coding Generator'!$B107,'Work Order Master'!$S:$S,0)),\"Contact Finance\"))","v":""},{"$f":"IF($B107=\"\",\"\",IFERROR(INDEX('Work Order Master'!U:U,MATCH('Coding Generator'!$B107,'Work Order Master'!$S:$S,0)),\"Contact Finance\"))","v":""},null,102,null,{"$f":"IF($J107=\"\",\"\",IFERROR(INDEX('CHART OF ACCOUNTS'!G:G,MATCH('Coding Generator'!$J107,'CHART OF ACCOUNTS'!$N:$N,0)),\"Contact Finance\"))","v":""},{"$f":"IF($J107=\"\",\"\",IFERROR(INDEX('CHART OF ACCOUNTS'!H:H,MATCH('Coding Generator'!$J107,'CHART OF ACCOUNTS'!$N:$N,0)),\"Contact Finance\"))","v":""},{"$f":"IF($J107=\"\",\"\",IFERROR(INDEX('CHART OF ACCOUNTS'!D:D,MATCH('Coding Generator'!$J107,'CHART OF ACCOUNTS'!$N:$N,0)),\"Contact Finance\"))","v":""},{"$f":"IF($J107=\"\",\"\",IFERROR(INDEX('CHART OF ACCOUNTS'!F:F,MATCH('Coding Generator'!$J107,'CHART OF ACCOUNTS'!$N:$N,0)),\"Contact Finance\"))","v":""}]
[103,null,{"$f":"IF($B108=\"\",\"\",IFERROR(INDEX('Work Order Master'!K:K,MATCH('Coding Generator'!$B108,'Work Order Master'!$S:$S,0)),\"Contact Finance\"))","v":""},{"$f":"IF($B108=\"\",\"\",IFERROR(INDEX('Work Order Master'!L:L,MATCH('Coding Generator'!$B108,'Work Order Master'!$S:$S,0)),\"Contact Finance\"))","v":""},{"$f":"IF($B108=\"\",\"\",IFERROR(INDEX('Work Order Master'!M:M,MATCH('Coding Generator'!$B108,'Work Order Master'!$S:$S,0)),\"Contact Finance\"))","v":""},{"$f":"IF($B108=\"\",\"\",IFERROR(INDEX('Work Order Master'!N:N,MATCH('Coding Generator'!$B108,'Work Order Master'!$S:$S,0)),\"Contact Finance\"))","v":""},{"$f":"IF($B108=\"\",\"\",IFERROR(INDEX('Work Order Master'!U:U,MATCH('Coding Generator'!$B108,'Work Order Master'!$S:$S,0)),\"Contact Finance\"))","v":""},null,103,null,{"$f":"IF($J108=\"\",\"\",IFERROR(INDEX('CHART OF ACCOUNTS'!G:G,MATCH('Coding Generator'!$J108,'CHART OF ACCOUNTS'!$N:$N,0)),\"Contact Finance\"))","v":""},{"$f":"IF($J108=\"\",\"\",IFERROR(INDEX('CHART OF ACCOUNTS'!H:H,MATCH('Coding Generator'!$J108,'CHART OF ACCOUNTS'!$N:$N,0)),\"Contact Finance\"))","v":""},{"$f":"IF($J108=\"\",\"\",IFERROR(INDEX('CHART OF ACCOUNTS'!D:D,MATCH('Coding Generator'!$J108,'CHART OF ACCOUNTS'!$N:$N,0)),\"Contact Finance\"))","v":""},{"$f":"IF($J108=\"\",\"\",IFERROR(INDEX('CHART OF ACCOUNTS'!F:F,MATCH('Coding Generator'!$J108,'CHART OF ACCOUNTS'!$N:$N,0)),\"Contact Finance\"))","v":""}]
[104,null,{"$f":"IF($B109=\"\",\"\",IFERROR(INDEX('Work Order Master'!K:K,MATCH('Coding Generator'!$B109,'Work Order Master'!$S:$S,0)),\"Contact Finance\"))","v":""},{"$f":"IF($B109=\"\",\"\",IFERROR(INDEX('Work Order Master'!L:L,MATCH('Coding Generator'!$B109,'Work Order Master'!$S:$S,0)),\"Contact Finance\"))","v":""},{"$f":"IF($B109=\"\",\"\",IFERROR(INDEX('Work Order Master'!M:M,MATCH('Coding Generator'!$B109,'Work Order Master'!$S:$S,0)),\"Contact Finance\"))","v":""},{"$f":"IF($B109=\"\",\"\",IFERROR(INDEX('Work Order Master'!N:N,MATCH('Coding Generator'!$B109,'Work Order Master'!$S:$S,0)),\"Contact Finance\"))","v":""},{"$f":"IF($B109=\"\",\"\",IFERROR(INDEX('Work Order Master'!U:U,MATCH('Coding Generator'!$B109,'Work Order Master'!$S:$S,0)),\"Contact Finance\"))","v":""},null,104,null,{"$f":"IF($J109=\"\",\"\",IFERROR(INDEX('CHART OF ACCOUNTS'!G:G,MATCH('Coding Generator'!$J109,'CHART OF ACCOUNTS'!$N:$N,0)),\"Contact Finance\"))","v":""},{"$f":"IF($J109=\"\",\"\",IFERROR(INDEX('CHART OF ACCOUNTS'!H:H,MATCH('Coding Generator'!$J109,'CHART OF ACCOUNTS'!$N:$N,0)),\"Contact Finance\"))","v":""},{"$f":"IF($J109=\"\",\"\",IFERROR(INDEX('CHART OF ACCOUNTS'!D:D,MATCH('Coding Generator'!$J109,'CHART OF ACCOUNTS'!$N:$N,0)),\"Contact Finance\"))","v":""},{"$f":"IF($J109=\"\",\"\",IFERROR(INDEX('CHART OF ACCOUNTS'!F:F,MATCH('Coding Generator'!$J109,'CHART OF ACCOUNTS'!$N:$N,0)),\"Contact Finance\"))","v":""}]
[105,null,{"$f":"IF($B110=\"\",\"\",IFERROR(INDEX('Work Order Master'!K:K,MATCH('Coding Generator'!$B110,'Work Order Master'!$S:$S,0)),\"Contact Finance\"))","v":""},{"$f":"IF($B110=\"\",\"\",IFERROR(INDEX('Work Order Master'!L:L,MATCH('Coding Generator'!$B110,'Work Order Master'!$S:$S,0)),\"Contact Finance\"))","v":""},{"$f":"IF($B110=\"\",\"\",IFERROR(INDEX('Work Order Master'!M:M,MATCH('Coding Generator'!$B110,'Work Order Master'!$S:$S,0)),\"Contact Finance\"))","v":""},{"$f":"IF($B110=\"\",\"\",IFERROR(INDEX('Work Order Master'!N:N,MATCH('Coding Generator'!$B110,'Work Order Master'!$S:$S,0)),\"Contact Finance\"))","v":""},{"$f":"IF($B110=\"\",\"\",IFERROR(INDEX('Work Order Master'!U:U,MATCH('Coding Generator'!$B110,'Work Order Master'!$S:$S,0)),\"Contact Finance\"))","v":""},null,105,null,{"$f":"IF($J110=\"\",\"\",IFERROR(INDEX('CHART OF ACCOUNTS'!G:G,MATCH('Coding Generator'!$J110,'CHART OF ACCOUNTS'!$N:$N,0)),\"Contact Finance\"))","v":""},{"$f":"IF($J110=\"\",\"\",IFERROR(INDEX('CHART OF ACCOUNTS'!H:H,MATCH('Coding Generator'!$J110,'CHART OF ACCOUNTS'!$N:$N,0)),\"Contact Finance\"))","v":""},{"$f":"IF($J110=\"\",\"\",IFERROR(INDEX('CHART OF ACCOUNTS'!D:D,MATCH('Coding Generator'!$J110,'CHART OF ACCOUNTS'!$N:$N,0)),\"Contact Finance\"))","v":""},{"$f":"IF($J110=\"\",\"\",IFERROR(INDEX('CHART OF ACCOUNTS'!F:F,MATCH('Coding Generator'!$J110,'CHART OF ACCOUNTS'!$N:$N,0)),\"Contact Finance\"))","v":""}]
[106,null,{"$f":"IF($B111=\"\",\"\",IFERROR(INDEX('Work Order Master'!K:K,MATCH('Coding Generator'!$B111,'Work Order Master'!$S:$S,0)),\"Contact Finance\"))","v":""},{"$f":"IF($B111=\"\",\"\",IFERROR(INDEX('Work Order Master'!L:L,MATCH('Coding Generator'!$B111,'Work Order Master'!$S:$S,0)),\"Contact Finance\"))","v":""},{"$f":"IF($B111=\"\",\"\",IFERROR(INDEX('Work Order Master'!M:M,MATCH('Coding Generator'!$B111,'Work Order Master'!$S:$S,0)),\"Contact Finance\"))","v":""},{"$f":"IF($B111=\"\",\"\",IFERROR(INDEX('Work Order Master'!N:N,MATCH('Coding Generator'!$B111,'Work Order Master'!$S:$S,0)),\"Contact Finance\"))","v":""},{"$f":"IF($B111=\"\",\"\",IFERROR(INDEX('Work Order Master'!U:U,MATCH('Coding Generator'!$B111,'Work Order Master'!$S:$S,0)),\"Contact Finance\"))","v":""},null,106,null,{"$f":"IF($J111=\"\",\"\",IFERROR(INDEX('CHART OF ACCOUNTS'!G:G,MATCH('Coding Generator'!$J111,'CHART OF ACCOUNTS'!$N:$N,0)),\"Contact Finance\"))","v":""},{"$f":"IF($J111=\"\",\"\",IFERROR(INDEX('CHART OF ACCOUNTS'!H:H,MATCH('Coding Generator'!$J111,'CHART OF ACCOUNTS'!$N:$N,0)),\"Contact Finance\"))","v":""},{"$f":"IF($J111=\"\",\"\",IFERROR(INDEX('CHART OF ACCOUNTS'!D:D,MATCH('Coding Generator'!$J111,'CHART OF ACCOUNTS'!$N:$N,0)),\"Contact Finance\"))","v":""},{"$f":"IF($J111=\"\",\"\",IFERROR(INDEX('CHART OF ACCOUNTS'!F:F,MATCH('Coding Generator'!$J111,'CHART OF ACCOUNTS'!$N:$N,0)),\"Contact Finance\"))","v":""}]
[107,null,{"$f":"IF($B112=\"\",\"\",IFERROR(INDEX('Work Order Master'!K:K,MATCH('Coding Generator'!$B112,'Work Order Master'!$S:$S,0)),\"Contact Finance\"))","v":""},{"$f":"IF($B112=\"\",\"\",IFERROR(INDEX('Work Order Master'!L:L,MATCH('Coding Generator'!$B112,'Work Order Master'!$S:$S,0)),\"Contact Finance\"))","v":""},{"$f":"IF($B112=\"\",\"\",IFERROR(INDEX('Work Order Master'!M:M,MATCH('Coding Generator'!$B112,'Work Order Master'!$S:$S,0)),\"Contact Finance\"))","v":""},{"$f":"IF($B112=\"\",\"\",IFERROR(INDEX('Work Order Master'!N:N,MATCH('Coding Generator'!$B112,'Work Order Master'!$S:$S,0)),\"Contact Finance\"))","v":""},{"$f":"IF($B112=\"\",\"\",IFERROR(INDEX('Work Order Master'!U:U,MATCH('Coding Generator'!$B112,'Work Order Master'!$S:$S,0)),\"Contact Finance\"))","v":""},null,107,null,{"$f":"IF($J112=\"\",\"\",IFERROR(INDEX('CHART OF ACCOUNTS'!G:G,MATCH('Coding Generator'!$J112,'CHART OF ACCOUNTS'!$N:$N,0)),\"Contact Finance\"))","v":""},{"$f":"IF($J112=\"\",\"\",IFERROR(INDEX('CHART OF ACCOUNTS'!H:H,MATCH('Coding Generator'!$J112,'CHART OF ACCOUNTS'!$N:$N,0)),\"Contact Finance\"))","v":""},{"$f":"IF($J112=\"\",\"\",IFERROR(INDEX('CHART OF ACCOUNTS'!D:D,MATCH('Coding Generator'!$J112,'CHART OF ACCOUNTS'!$N:$N,0)),\"Contact Finance\"))","v":""},{"$f":"IF($J112=\"\",\"\",IFERROR(INDEX('CHART OF ACCOUNTS'!F:F,MATCH('Coding Generator'!$J112,'CHART OF ACCOUNTS'!$N:$N,0)),\"Contact Finance\"))","v":""}]
[108,null,{"$f":"IF($B113=\"\",\"\",IFERROR(INDEX('Work Order Master'!K:K,MATCH('Coding Generator'!$B113,'Work Order Master'!$S:$S,0)),\"Contact Finance\"))","v":""},{"$f":"IF($B113=\"\",\"\",IFERROR(INDEX('Work Order Master'!L:L,MATCH('Coding Generator'!$B113,'Work Order Master'!$S:$S,0)),\"Contact Finance\"))","v":""},{"$f":"IF($B113=\"\",\"\",IFERROR(INDEX('Work Order Master'!M:M,MATCH('Coding Generator'!$B113,'Work Order Master'!$S:$S,0)),\"Contact Finance\"))","v":""},{"$f":"IF($B113=\"\",\"\",IFERROR(INDEX('Work Order Master'!N:N,MATCH('Coding Generator'!$B113,'Work Order Master'!$S:$S,0)),\"Contact Finance\"))","v":""},{"$f":"IF($B113=\"\",\"\",IFERROR(INDEX('Work Order Master'!U:U,MATCH('Coding Generator'!$B113,'Work Order Master'!$S:$S,0)),\"Contact Finance\"))","v":""},null,108,null,{"$f":"IF($J113=\"\",\"\",IFERROR(INDEX('CHART OF ACCOUNTS'!G:G,MATCH('Coding Generator'!$J113,'CHART OF ACCOUNTS'!$N:$N,0)),\"Contact Finance\"))","v":""},{"$f":"IF($J113=\"\",\"\",IFERROR(INDEX('CHART OF ACCOUNTS'!H:H,MATCH('Coding Generator'!$J113,'CHART OF ACCOUNTS'!$N:$N,0)),\"Contact Finance\"))","v":""},{"$f":"IF($J113=\"\",\"\",IFERROR(INDEX('CHART OF ACCOUNTS'!D:D,MATCH('Coding Generator'!$J113,'CHART OF ACCOUNTS'!$N:$N,0)),\"Contact Finance\"))","v":""},{"$f":"IF($J113=\"\",\"\",IFERROR(INDEX('CHART OF ACCOUNTS'!F:F,MATCH('Coding Generator'!$J113,'CHART OF ACCOUNTS'!$N:$N,0)),\"Contact Finance\"))","v":""}]
[109,null,{"$f":"IF($B114=\"\",\"\",IFERROR(INDEX('Work Order Master'!K:K,MATCH('Coding Generator'!$B114,'Work Order Master'!$S:$S,0)),\"Contact Finance\"))","v":""},{"$f":"IF($B114=\"\",\"\",IFERROR(INDEX('Work Order Master'!L:L,MATCH('Coding Generator'!$B114,'Work Order Master'!$S:$S,0)),\"Contact Finance\"))","v":""},{"$f":"IF($B114=\"\",\"\",IFERROR(INDEX('Work Order Master'!M:M,MATCH('Coding Generator'!$B114,'Work Order Master'!$S:$S,0)),\"Contact Finance\"))","v":""},{"$f":"IF($B114=\"\",\"\",IFERROR(INDEX('Work Order Master'!N:N,MATCH('Coding Generator'!$B114,'Work Order Master'!$S:$S,0)),\"Contact Finance\"))","v":""},{"$f":"IF($B114=\"\",\"\",IFERROR(INDEX('Work Order Master'!U:U,MATCH('Coding Generator'!$B114,'Work Order Master'!$S:$S,0)),\"Contact Finance\"))","v":""},null,109,null,{"$f":"IF($J114=\"\",\"\",IFERROR(INDEX('CHART OF ACCOUNTS'!G:G,MATCH('Coding Generator'!$J114,'CHART OF ACCOUNTS'!$N:$N,0)),\"Contact Finance\"))","v":""},{"$f":"IF($J114=\"\",\"\",IFERROR(INDEX('CHART OF ACCOUNTS'!H:H,MATCH('Coding Generator'!$J114,'CHART OF ACCOUNTS'!$N:$N,0)),\"Contact Finance\"))","v":""},{"$f":"IF($J114=\"\",\"\",IFERROR(INDEX('CHART OF ACCOUNTS'!D:D,MATCH('Coding Generator'!$J114,'CHART OF ACCOUNTS'!$N:$N,0)),\"Contact Finance\"))","v":""},{"$f":"IF($J114=\"\",\"\",IFERROR(INDEX('CHART OF ACCOUNTS'!F:F,MATCH('Coding Generator'!$J114,'CHART OF ACCOUNTS'!$N:$N,0)),\"Contact Finance\"))","v":""}]
[110,null,{"$f":"IF($B115=\"\",\"\",IFERROR(INDEX('Work Order Master'!K:K,MATCH('Coding Generator'!$B115,'Work Order Master'!$S:$S,0)),\"Contact Finance\"))","v":""},{"$f":"IF($B115=\"\",\"\",IFERROR(INDEX('Work Order Master'!L:L,MATCH('Coding Generator'!$B115,'Work Order Master'!$S:$S,0)),\"Contact Finance\"))","v":""},{"$f":"IF($B115=\"\",\"\",IFERROR(INDEX('Work Order Master'!M:M,MATCH('Coding Generator'!$B115,'Work Order Master'!$S:$S,0)),\"Contact Finance\"))","v":""},{"$f":"IF($B115=\"\",\"\",IFERROR(INDEX('Work Order Master'!N:N,MATCH('Coding Generator'!$B115,'Work Order Master'!$S:$S,0)),\"Contact Finance\"))","v":""},{"$f":"IF($B115=\"\",\"\",IFERROR(INDEX('Work Order Master'!U:U,MATCH('Coding Generator'!$B115,'Work Order Master'!$S:$S,0)),\"Contact Finance\"))","v":""},null,110,null,{"$f":"IF($J115=\"\",\"\",IFERROR(INDEX('CHART OF ACCOUNTS'!G:G,MATCH('Coding Generator'!$J115,'CHART OF ACCOUNTS'!$N:$N,0)),\"Contact Finance\"))","v":""},{"$f":"IF($J115=\"\",\"\",IFERROR(INDEX('CHART OF ACCOUNTS'!H:H,MATCH('Coding Generator'!$J115,'CHART OF ACCOUNTS'!$N:$N,0)),\"Contact Finance\"))","v":""},{"$f":"IF($J115=\"\",\"\",IFERROR(INDEX('CHART OF ACCOUNTS'!D:D,MATCH('Coding Generator'!$J115,'CHART OF ACCOUNTS'!$N:$N,0)),\"Contact Finance\"))","v":""},{"$f":"IF($J115=\"\",\"\",IFERROR(INDEX('CHART OF ACCOUNTS'!F:F,MATCH('Coding Generator'!$J115,'CHART OF ACCOUNTS'!$N:$N,0)),\"Contact Finance\"))","v":""}]
[111,null,{"$f":"IF($B116=\"\",\"\",IFERROR(INDEX('Work Order Master'!K:K,MATCH('Coding Generator'!$B116,'Work Order Master'!$S:$S,0)),\"Contact Finance\"))","v":""},{"$f":"IF($B116=\"\",\"\",IFERROR(INDEX('Work Order Master'!L:L,MATCH('Coding Generator'!$B116,'Work Order Master'!$S:$S,0)),\"Contact Finance\"))","v":""},{"$f":"IF($B116=\"\",\"\",IFERROR(INDEX('Work Order Master'!M:M,MATCH('Coding Generator'!$B116,'Work Order Master'!$S:$S,0)),\"Contact Finance\"))","v":""},{"$f":"IF($B116=\"\",\"\",IFERROR(INDEX('Work Order Master'!N:N,MATCH('Coding Generator'!$B116,'Work Order Master'!$S:$S,0)),\"Contact Finance\"))","v":""},{"$f":"IF($B116=\"\",\"\",IFERROR(INDEX('Work Order Master'!U:U,MATCH('Coding Generator'!$B116,'Work Order Master'!$S:$S,0)),\"Contact Finance\"))","v":""},null,111,null,{"$f":"IF($J116=\"\",\"\",IFERROR(INDEX('CHART OF ACCOUNTS'!G:G,MATCH('Coding Generator'!$J116,'CHART OF ACCOUNTS'!$N:$N,0)),\"Contact Finance\"))","v":""},{"$f":"IF($J116=\"\",\"\",IFERROR(INDEX('CHART OF ACCOUNTS'!H:H,MATCH('Coding Generator'!$J116,'CHART OF ACCOUNTS'!$N:$N,0)),\"Contact Finance\"))","v":""},{"$f":"IF($J116=\"\",\"\",IFERROR(INDEX('CHART OF ACCOUNTS'!D:D,MATCH('Coding Generator'!$J116,'CHART OF ACCOUNTS'!$N:$N,0)),\"Contact Finance\"))","v":""},{"$f":"IF($J116=\"\",\"\",IFERROR(INDEX('CHART OF ACCOUNTS'!F:F,MATCH('Coding Generator'!$J116,'CHART OF ACCOUNTS'!$N:$N,0)),\"Contact Finance\"))","v":""}]
[112,null,{"$f":"IF($B117=\"\",\"\",IFERROR(INDEX('Work Order Master'!K:K,MATCH('Coding Generator'!$B117,'Work Order Master'!$S:$S,0)),\"Contact Finance\"))","v":""},{"$f":"IF($B117=\"\",\"\",IFERROR(INDEX('Work Order Master'!L:L,MATCH('Coding Generator'!$B117,'Work Order Master'!$S:$S,0)),\"Contact Finance\"))","v":""},{"$f":"IF($B117=\"\",\"\",IFERROR(INDEX('Work Order Master'!M:M,MATCH('Coding Generator'!$B117,'Work Order Master'!$S:$S,0)),\"Contact Finance\"))","v":""},{"$f":"IF($B117=\"\",\"\",IFERROR(INDEX('Work Order Master'!N:N,MATCH('Coding Generator'!$B117,'Work Order Master'!$S:$S,0)),\"Contact Finance\"))","v":""},{"$f":"IF($B117=\"\",\"\",IFERROR(INDEX('Work Order Master'!U:U,MATCH('Coding Generator'!$B117,'Work Order Master'!$S:$S,0)),\"Contact Finance\"))","v":""},null,112,null,{"$f":"IF($J117=\"\",\"\",IFERROR(INDEX('CHART OF ACCOUNTS'!G:G,MATCH('Coding Generator'!$J117,'CHART OF ACCOUNTS'!$N:$N,0)),\"Contact Finance\"))","v":""},{"$f":"IF($J117=\"\",\"\",IFERROR(INDEX('CHART OF ACCOUNTS'!H:H,MATCH('Coding Generator'!$J117,'CHART OF ACCOUNTS'!$N:$N,0)),\"Contact Finance\"))","v":""},{"$f":"IF($J117=\"\",\"\",IFERROR(INDEX('CHART OF ACCOUNTS'!D:D,MATCH('Coding Generator'!$J117,'CHART OF ACCOUNTS'!$N:$N,0)),\"Contact Finance\"))","v":""},{"$f":"IF($J117=\"\",\"\",IFERROR(INDEX('CHART OF ACCOUNTS'!F:F,MATCH('Coding Generator'!$J117,'CHART OF ACCOUNTS'!$N:$N,0)),\"Contact Finance\"))","v":""}]
[113,null,{"$f":"IF($B118=\"\",\"\",IFERROR(INDEX('Work Order Master'!K:K,MATCH('Coding Generator'!$B118,'Work Order Master'!$S:$S,0)),\"Contact Finance\"))","v":""},{"$f":"IF($B118=\"\",\"\",IFERROR(INDEX('Work Order Master'!L:L,MATCH('Coding Generator'!$B118,'Work Order Master'!$S:$S,0)),\"Contact Finance\"))","v":""},{"$f":"IF($B118=\"\",\"\",IFERROR(INDEX('Work Order Master'!M:M,MATCH('Coding Generator'!$B118,'Work Order Master'!$S:$S,0)),\"Contact Finance\"))","v":""},{"$f":"IF($B118=\"\",\"\",IFERROR(INDEX('Work Order Master'!N:N,MATCH('Coding Generator'!$B118,'Work Order Master'!$S:$S,0)),\"Contact Finance\"))","v":""},{"$f":"IF($B118=\"\",\"\",IFERROR(INDEX('Work Order Master'!U:U,MATCH('Coding Generator'!$B118,'Work Order Master'!$S:$S,0)),\"Contact Finance\"))","v":""},null,113,null,{"$f":"IF($J118=\"\",\"\",IFERROR(INDEX('CHART OF ACCOUNTS'!G:G,MATCH('Coding Generator'!$J118,'CHART OF ACCOUNTS'!$N:$N,0)),\"Contact Finance\"))","v":""},{"$f":"IF($J118=\"\",\"\",IFERROR(INDEX('CHART OF ACCOUNTS'!H:H,MATCH('Coding Generator'!$J118,'CHART OF ACCOUNTS'!$N:$N,0)),\"Contact Finance\"))","v":""},{"$f":"IF($J118=\"\",\"\",IFERROR(INDEX('CHART OF ACCOUNTS'!D:D,MATCH('Coding Generator'!$J118,'CHART OF ACCOUNTS'!$N:$N,0)),\"Contact Finance\"))","v":""},{"$f":"IF($J118=\"\",\"\",IFERROR(INDEX('CHART OF ACCOUNTS'!F:F,MATCH('Coding Generator'!$J118,'CHART OF ACCOUNTS'!$N:$N,0)),\"Contact Finance\"))","v":""}]
[114,null,{"$f":"IF($B119=\"\",\"\",IFERROR(INDEX('Work Order Master'!K:K,MATCH('Coding Generator'!$B119,'Work Order Master'!$S:$S,0)),\"Contact Finance\"))","v":""},{"$f":"IF($B119=\"\",\"\",IFERROR(INDEX('Work Order Master'!L:L,MATCH('Coding Generator'!$B119,'Work Order Master'!$S:$S,0)),\"Contact Finance\"))","v":""},{"$f":"IF($B119=\"\",\"\",IFERROR(INDEX('Work Order Master'!M:M,MATCH('Coding Generator'!$B119,'Work Order Master'!$S:$S,0)),\"Contact Finance\"))","v":""},{"$f":"IF($B119=\"\",\"\",IFERROR(INDEX('Work Order Master'!N:N,MATCH('Coding Generator'!$B119,'Work Order Master'!$S:$S,0)),\"Contact Finance\"))","v":""},{"$f":"IF($B119=\"\",\"\",IFERROR(INDEX('Work Order Master'!U:U,MATCH('Coding Generator'!$B119,'Work Order Master'!$S:$S,0)),\"Contact Finance\"))","v":""},null,114,null,{"$f":"IF($J119=\"\",\"\",IFERROR(INDEX('CHART OF ACCOUNTS'!G:G,MATCH('Coding Generator'!$J119,'CHART OF ACCOUNTS'!$N:$N,0)),\"Contact Finance\"))","v":""},{"$f":"IF($J119=\"\",\"\",IFERROR(INDEX('CHART OF ACCOUNTS'!H:H,MATCH('Coding Generator'!$J119,'CHART OF ACCOUNTS'!$N:$N,0)),\"Contact Finance\"))","v":""},{"$f":"IF($J119=\"\",\"\",IFERROR(INDEX('CHART OF ACCOUNTS'!D:D,MATCH('Coding Generator'!$J119,'CHART OF ACCOUNTS'!$N:$N,0)),\"Contact Finance\"))","v":""},{"$f":"IF($J119=\"\",\"\",IFERROR(INDEX('CHART OF ACCOUNTS'!F:F,MATCH('Coding Generator'!$J119,'CHART OF ACCOUNTS'!$N:$N,0)),\"Contact Finance\"))","v":""}]
[115,null,{"$f":"IF($B120=\"\",\"\",IFERROR(INDEX('Work Order Master'!K:K,MATCH('Coding Generator'!$B120,'Work Order Master'!$S:$S,0)),\"Contact Finance\"))","v":""},{"$f":"IF($B120=\"\",\"\",IFERROR(INDEX('Work Order Master'!L:L,MATCH('Coding Generator'!$B120,'Work Order Master'!$S:$S,0)),\"Contact Finance\"))","v":""},{"$f":"IF($B120=\"\",\"\",IFERROR(INDEX('Work Order Master'!M:M,MATCH('Coding Generator'!$B120,'Work Order Master'!$S:$S,0)),\"Contact Finance\"))","v":""},{"$f":"IF($B120=\"\",\"\",IFERROR(INDEX('Work Order Master'!N:N,MATCH('Coding Generator'!$B120,'Work Order Master'!$S:$S,0)),\"Contact Finance\"))","v":""},{"$f":"IF($B120=\"\",\"\",IFERROR(INDEX('Work Order Master'!U:U,MATCH('Coding Generator'!$B120,'Work Order Master'!$S:$S,0)),\"Contact Finance\"))","v":""},null,115,null,{"$f":"IF($J120=\"\",\"\",IFERROR(INDEX('CHART OF ACCOUNTS'!G:G,MATCH('Coding Generator'!$J120,'CHART OF ACCOUNTS'!$N:$N,0)),\"Contact Finance\"))","v":""},{"$f":"IF($J120=\"\",\"\",IFERROR(INDEX('CHART OF ACCOUNTS'!H:H,MATCH('Coding Generator'!$J120,'CHART OF ACCOUNTS'!$N:$N,0)),\"Contact Finance\"))","v":""},{"$f":"IF($J120=\"\",\"\",IFERROR(INDEX('CHART OF ACCOUNTS'!D:D,MATCH('Coding Generator'!$J120,'CHART OF ACCOUNTS'!$N:$N,0)),\"Contact Finance\"))","v":""},{"$f":"IF($J120=\"\",\"\",IFERROR(INDEX('CHART OF ACCOUNTS'!F:F,MATCH('Coding Generator'!$J120,'CHART OF ACCOUNTS'!$N:$N,0)),\"Contact Finance\"))","v":""}]
[116,null,{"$f":"IF($B121=\"\",\"\",IFERROR(INDEX('Work Order Master'!K:K,MATCH('Coding Generator'!$B121,'Work Order Master'!$S:$S,0)),\"Contact Finance\"))","v":""},{"$f":"IF($B121=\"\",\"\",IFERROR(INDEX('Work Order Master'!L:L,MATCH('Coding Generator'!$B121,'Work Order Master'!$S:$S,0)),\"Contact Finance\"))","v":""},{"$f":"IF($B121=\"\",\"\",IFERROR(INDEX('Work Order Master'!M:M,MATCH('Coding Generator'!$B121,'Work Order Master'!$S:$S,0)),\"Contact Finance\"))","v":""},{"$f":"IF($B121=\"\",\"\",IFERROR(INDEX('Work Order Master'!N:N,MATCH('Coding Generator'!$B121,'Work Order Master'!$S:$S,0)),\"Contact Finance\"))","v":""},{"$f":"IF($B121=\"\",\"\",IFERROR(INDEX('Work Order Master'!U:U,MATCH('Coding Generator'!$B121,'Work Order Master'!$S:$S,0)),\"Contact Finance\"))","v":""},null,116,null,{"$f":"IF($J121=\"\",\"\",IFERROR(INDEX('CHART OF ACCOUNTS'!G:G,MATCH('Coding Generator'!$J121,'CHART OF ACCOUNTS'!$N:$N,0)),\"Contact Finance\"))","v":""},{"$f":"IF($J121=\"\",\"\",IFERROR(INDEX('CHART OF ACCOUNTS'!H:H,MATCH('Coding Generator'!$J121,'CHART OF ACCOUNTS'!$N:$N,0)),\"Contact Finance\"))","v":""},{"$f":"IF($J121=\"\",\"\",IFERROR(INDEX('CHART OF ACCOUNTS'!D:D,MATCH('Coding Generator'!$J121,'CHART OF ACCOUNTS'!$N:$N,0)),\"Contact Finance\"))","v":""},{"$f":"IF($J121=\"\",\"\",IFERROR(INDEX('CHART OF ACCOUNTS'!F:F,MATCH('Coding Generator'!$J121,'CHART OF ACCOUNTS'!$N:$N,0)),\"Contact Finance\"))","v":""}]
[117,null,{"$f":"IF($B122=\"\",\"\",IFERROR(INDEX('Work Order Master'!K:K,MATCH('Coding Generator'!$B122,'Work Order Master'!$S:$S,0)),\"Contact Finance\"))","v":""},{"$f":"IF($B122=\"\",\"\",IFERROR(INDEX('Work Order Master'!L:L,MATCH('Coding Generator'!$B122,'Work Order Master'!$S:$S,0)),\"Contact Finance\"))","v":""},{"$f":"IF($B122=\"\",\"\",IFERROR(INDEX('Work Order Master'!M:M,MATCH('Coding Generator'!$B122,'Work Order Master'!$S:$S,0)),\"Contact Finance\"))","v":""},{"$f":"IF($B122=\"\",\"\",IFERROR(INDEX('Work Order Master'!N:N,MATCH('Coding Generator'!$B122,'Work Order Master'!$S:$S,0)),\"Contact Finance\"))","v":""},{"$f":"IF($B122=\"\",\"\",IFERROR(INDEX('Work Order Master'!U:U,MATCH('Coding Generator'!$B122,'Work Order Master'!$S:$S,0)),\"Contact Finance\"))","v":""},null,117,null,{"$f":"IF($J122=\"\",\"\",IFERROR(INDEX('CHART OF ACCOUNTS'!G:G,MATCH('Coding Generator'!$J122,'CHART OF ACCOUNTS'!$N:$N,0)),\"Contact Finance\"))","v":""},{"$f":"IF($J122=\"\",\"\",IFERROR(INDEX('CHART OF ACCOUNTS'!H:H,MATCH('Coding Generator'!$J122,'CHART OF ACCOUNTS'!$N:$N,0)),\"Contact Finance\"))","v":""},{"$f":"IF($J122=\"\",\"\",IFERROR(INDEX('CHART OF ACCOUNTS'!D:D,MATCH('Coding Generator'!$J122,'CHART OF ACCOUNTS'!$N:$N,0)),\"Contact Finance\"))","v":""},{"$f":"IF($J122=\"\",\"\",IFERROR(INDEX('CHART OF ACCOUNTS'!F:F,MATCH('Coding Generator'!$J122,'CHART OF ACCOUNTS'!$N:$N,0)),\"Contact Finance\"))","v":""}]
[118,null,{"$f":"IF($B123=\"\",\"\",IFERROR(INDEX('Work Order Master'!K:K,MATCH('Coding Generator'!$B123,'Work Order Master'!$S:$S,0)),\"Contact Finance\"))","v":""},{"$f":"IF($B123=\"\",\"\",IFERROR(INDEX('Work Order Master'!L:L,MATCH('Coding Generator'!$B123,'Work Order Master'!$S:$S,0)),\"Contact Finance\"))","v":""},{"$f":"IF($B123=\"\",\"\",IFERROR(INDEX('Work Order Master'!M:M,MATCH('Coding Generator'!$B123,'Work Order Master'!$S:$S,0)),\"Contact Finance\"))","v":""},{"$f":"IF($B123=\"\",\"\",IFERROR(INDEX('Work Order Master'!N:N,MATCH('Coding Generator'!$B123,'Work Order Master'!$S:$S,0)),\"Contact Finance\"))","v":""},{"$f":"IF($B123=\"\",\"\",IFERROR(INDEX('Work Order Master'!U:U,MATCH('Coding Generator'!$B123,'Work Order Master'!$S:$S,0)),\"Contact Finance\"))","v":""},null,118,null,{"$f":"IF($J123=\"\",\"\",IFERROR(INDEX('CHART OF ACCOUNTS'!G:G,MATCH('Coding Generator'!$J123,'CHART OF ACCOUNTS'!$N:$N,0)),\"Contact Finance\"))","v":""},{"$f":"IF($J123=\"\",\"\",IFERROR(INDEX('CHART OF ACCOUNTS'!H:H,MATCH('Coding Generator'!$J123,'CHART OF ACCOUNTS'!$N:$N,0)),\"Contact Finance\"))","v":""},{"$f":"IF($J123=\"\",\"\",IFERROR(INDEX('CHART OF ACCOUNTS'!D:D,MATCH('Coding Generator'!$J123,'CHART OF ACCOUNTS'!$N:$N,0)),\"Contact Finance\"))","v":""},{"$f":"IF($J123=\"\",\"\",IFERROR(INDEX('CHART OF ACCOUNTS'!F:F,MATCH('Coding Generator'!$J123,'CHART OF ACCOUNTS'!$N:$N,0)),\"Contact Finance\"))","v":""}]
[119,null,{"$f":"IF($B124=\"\",\"\",IFERROR(INDEX('Work Order Master'!K:K,MATCH('Coding Generator'!$B124,'Work Order Master'!$S:$S,0)),\"Contact Finance\"))","v":""},{"$f":"IF($B124=\"\",\"\",IFERROR(INDEX('Work Order Master'!L:L,MATCH('Coding Generator'!$B124,'Work Order Master'!$S:$S,0)),\"Contact Finance\"))","v":""},{"$f":"IF($B124=\"\",\"\",IFERROR(INDEX('Work Order Master'!M:M,MATCH('Coding Generator'!$B124,'Work Order Master'!$S:$S,0)),\"Contact Finance\"))","v":""},{"$f":"IF($B124=\"\",\"\",IFERROR(INDEX('Work Order Master'!N:N,MATCH('Coding Generator'!$B124,'Work Order Master'!$S:$S,0)),\"Contact Finance\"))","v":""},{"$f":"IF($B124=\"\",\"\",IFERROR(INDEX('Work Order Master'!U:U,MATCH('Coding Generator'!$B124,'Work Order Master'!$S:$S,0)),\"Contact Finance\"))","v":""},null,119,null,{"$f":"IF($J124=\"\",\"\",IFERROR(INDEX('CHART OF ACCOUNTS'!G:G,MATCH('Coding Generator'!$J124,'CHART OF ACCOUNTS'!$N:$N,0)),\"Contact Finance\"))","v":""},{"$f":"IF($J124=\"\",\"\",IFERROR(INDEX('CHART OF ACCOUNTS'!H:H,MATCH('Coding Generator'!$J124,'CHART OF ACCOUNTS'!$N:$N,0)),\"Contact Finance\"))","v":""},{"$f":"IF($J124=\"\",\"\",IFERROR(INDEX('CHART OF ACCOUNTS'!D:D,MATCH('Coding Generator'!$J124,'CHART OF ACCOUNTS'!$N:$N,0)),\"Contact Finance\"))","v":""},{"$f":"IF($J124=\"\",\"\",IFERROR(INDEX('CHART OF ACCOUNTS'!F:F,MATCH('Coding Generator'!$J124,'CHART OF ACCOUNTS'!$N:$N,0)),\"Contact Finance\"))","v":""}]
[120,null,{"$f":"IF($B125=\"\",\"\",IFERROR(INDEX('Work Order Master'!K:K,MATCH('Coding Generator'!$B125,'Work Order Master'!$S:$S,0)),\"Contact Finance\"))","v":""},{"$f":"IF($B125=\"\",\"\",IFERROR(INDEX('Work Order Master'!L:L,MATCH('Coding Generator'!$B125,'Work Order Master'!$S:$S,0)),\"Contact Finance\"))","v":""},{"$f":"IF($B125=\"\",\"\",IFERROR(INDEX('Work Order Master'!M:M,MATCH('Coding Generator'!$B125,'Work Order Master'!$S:$S,0)),\"Contact Finance\"))","v":""},{"$f":"IF($B125=\"\",\"\",IFERROR(INDEX('Work Order Master'!N:N,MATCH('Coding Generator'!$B125,'Work Order Master'!$S:$S,0)),\"Contact Finance\"))","v":""},{"$f":"IF($B125=\"\",\"\",IFERROR(INDEX('Work Order Master'!U:U,MATCH('Coding Generator'!$B125,'Work Order Master'!$S:$S,0)),\"Contact Finance\"))","v":""},null,120,null,{"$f":"IF($J125=\"\",\"\",IFERROR(INDEX('CHART OF ACCOUNTS'!G:G,MATCH('Coding Generator'!$J125,'CHART OF ACCOUNTS'!$N:$N,0)),\"Contact Finance\"))","v":""},{"$f":"IF($J125=\"\",\"\",IFERROR(INDEX('CHART OF ACCOUNTS'!H:H,MATCH('Coding Generator'!$J125,'CHART OF ACCOUNTS'!$N:$N,0)),\"Contact Finance\"))","v":""},{"$f":"IF($J125=\"\",\"\",IFERROR(INDEX('CHART OF ACCOUNTS'!D:D,MATCH('Coding Generator'!$J125,'CHART OF ACCOUNTS'!$N:$N,0)),\"Contact Finance\"))","v":""},{"$f":"IF($J125=\"\",\"\",IFERROR(INDEX('CHART OF ACCOUNTS'!F:F,MATCH('Coding Generator'!$J125,'CHART OF ACCOUNTS'!$N:$N,0)),\"Contact Finance\"))","v":""}]
[121,null,{"$f":"IF($B126=\"\",\"\",IFERROR(INDEX('Work Order Master'!K:K,MATCH('Coding Generator'!$B126,'Work Order Master'!$S:$S,0)),\"Contact Finance\"))","v":""},{"$f":"IF($B126=\"\",\"\",IFERROR(INDEX('Work Order Master'!L:L,MATCH('Coding Generator'!$B126,'Work Order Master'!$S:$S,0)),\"Contact Finance\"))","v":""},{"$f":"IF($B126=\"\",\"\",IFERROR(INDEX('Work Order Master'!M:M,MATCH('Coding Generator'!$B126,'Work Order Master'!$S:$S,0)),\"Contact Finance\"))","v":""},{"$f":"IF($B126=\"\",\"\",IFERROR(INDEX('Work Order Master'!N:N,MATCH('Coding Generator'!$B126,'Work Order Master'!$S:$S,0)),\"Contact Finance\"))","v":""},{"$f":"IF($B126=\"\",\"\",IFERROR(INDEX('Work Order Master'!U:U,MATCH('Coding Generator'!$B126,'Work Order Master'!$S:$S,0)),\"Contact Finance\"))","v":""},null,121,null,{"$f":"IF($J126=\"\",\"\",IFERROR(INDEX('CHART OF ACCOUNTS'!G:G,MATCH('Coding Generator'!$J126,'CHART OF ACCOUNTS'!$N:$N,0)),\"Contact Finance\"))","v":""},{"$f":"IF($J126=\"\",\"\",IFERROR(INDEX('CHART OF ACCOUNTS'!H:H,MATCH('Coding Generator'!$J126,'CHART OF ACCOUNTS'!$N:$N,0)),\"Contact Finance\"))","v":""},{"$f":"IF($J126=\"\",\"\",IFERROR(INDEX('CHART OF ACCOUNTS'!D:D,MATCH('Coding Generator'!$J126,'CHART OF ACCOUNTS'!$N:$N,0)),\"Contact Finance\"))","v":""},{"$f":"IF($J126=\"\",\"\",IFERROR(INDEX('CHART OF ACCOUNTS'!F:F,MATCH('Coding Generator'!$J126,'CHART OF ACCOUNTS'!$N:$N,0)),\"Contact Finance\"))","v":""}]
[122,null,{"$f":"IF($B127=\"\",\"\",IFERROR(INDEX('Work Order Master'!K:K,MATCH('Coding Generator'!$B127,'Work Order Master'!$S:$S,0)),\"Contact Finance\"))","v":""},{"$f":"IF($B127=\"\",\"\",IFERROR(INDEX('Work Order Master'!L:L,MATCH('Coding Generator'!$B127,'Work Order Master'!$S:$S,0)),\"Contact Finance\"))","v":""},{"$f":"IF($B127=\"\",\"\",IFERROR(INDEX('Work Order Master'!M:M,MATCH('Coding Generator'!$B127,'Work Order Master'!$S:$S,0)),\"Contact Finance\"))","v":""},{"$f":"IF($B127=\"\",\"\",IFERROR(INDEX('Work Order Master'!N:N,MATCH('Coding Generator'!$B127,'Work Order Master'!$S:$S,0)),\"Contact Finance\"))","v":""},{"$f":"IF($B127=\"\",\"\",IFERROR(INDEX('Work Order Master'!U:U,MATCH('Coding Generator'!$B127,'Work Order Master'!$S:$S,0)),\"Contact Finance\"))","v":""},null,122,null,{"$f":"IF($J127=\"\",\"\",IFERROR(INDEX('CHART OF ACCOUNTS'!G:G,MATCH('Coding Generator'!$J127,'CHART OF ACCOUNTS'!$N:$N,0)),\"Contact Finance\"))","v":""},{"$f":"IF($J127=\"\",\"\",IFERROR(INDEX('CHART OF ACCOUNTS'!H:H,MATCH('Coding Generator'!$J127,'CHART OF ACCOUNTS'!$N:$N,0)),\"Contact Finance\"))","v":""},{"$f":"IF($J127=\"\",\"\",IFERROR(INDEX('CHART OF ACCOUNTS'!D:D,MATCH('Coding Generator'!$J127,'CHART OF ACCOUNTS'!$N:$N,0)),\"Contact Finance\"))","v":""},{"$f":"IF($J127=\"\",\"\",IFERROR(INDEX('CHART OF ACCOUNTS'!F:F,MATCH('Coding Generator'!$J127,'CHART OF ACCOUNTS'!$N:$N,0)),\"Contact Finance\"))","v":""}]
[123,null,{"$f":"IF($B128=\"\",\"\",IFERROR(INDEX('Work Order Master'!K:K,MATCH('Coding Generator'!$B128,'Work Order Master'!$S:$S,0)),\"Contact Finance\"))","v":""},{"$f":"IF($B128=\"\",\"\",IFERROR(INDEX('Work Order Master'!L:L,MATCH('Coding Generator'!$B128,'Work Order Master'!$S:$S,0)),\"Contact Finance\"))","v":""},{"$f":"IF($B128=\"\",\"\",IFERROR(INDEX('Work Order Master'!M:M,MATCH('Coding Generator'!$B128,'Work Order Master'!$S:$S,0)),\"Contact Finance\"))","v":""},{"$f":"IF($B128=\"\",\"\",IFERROR(INDEX('Work Order Master'!N:N,MATCH('Coding Generator'!$B128,'Work Order Master'!$S:$S,0)),\"Contact Finance\"))","v":""},{"$f":"IF($B128=\"\",\"\",IFERROR(INDEX('Work Order Master'!U:U,MATCH('Coding Generator'!$B128,'Work Order Master'!$S:$S,0)),\"Contact Finance\"))","v":""},null,123,null,{"$f":"IF($J128=\"\",\"\",IFERROR(INDEX('CHART OF ACCOUNTS'!G:G,MATCH('Coding Generator'!$J128,'CHART OF ACCOUNTS'!$N:$N,0)),\"Contact Finance\"))","v":""},{"$f":"IF($J128=\"\",\"\",IFERROR(INDEX('CHART OF ACCOUNTS'!H:H,MATCH('Coding Generator'!$J128,'CHART OF ACCOUNTS'!$N:$N,0)),\"Contact Finance\"))","v":""},{"$f":"IF($J128=\"\",\"\",IFERROR(INDEX('CHART OF ACCOUNTS'!D:D,MATCH('Coding Generator'!$J128,'CHART OF ACCOUNTS'!$N:$N,0)),\"Contact Finance\"))","v":""},{"$f":"IF($J128=\"\",\"\",IFERROR(INDEX('CHART OF ACCOUNTS'!F:F,MATCH('Coding Generator'!$J128,'CHART OF ACCOUNTS'!$N:$N,0)),\"Contact Finance\"))","v":""}]
[124,null,{"$f":"IF($B129=\"\",\"\",IFERROR(INDEX('Work Order Master'!K:K,MATCH('Coding Generator'!$B129,'Work Order Master'!$S:$S,0)),\"Contact Finance\"))","v":""},{"$f":"IF($B129=\"\",\"\",IFERROR(INDEX('Work Order Master'!L:L,MATCH('Coding Generator'!$B129,'Work Order Master'!$S:$S,0)),\"Contact Finance\"))","v":""},{"$f":"IF($B129=\"\",\"\",IFERROR(INDEX('Work Order Master'!M:M,MATCH('Coding Generator'!$B129,'Work Order Master'!$S:$S,0)),\"Contact Finance\"))","v":""},{"$f":"IF($B129=\"\",\"\",IFERROR(INDEX('Work Order Master'!N:N,MATCH('Coding Generator'!$B129,'Work Order Master'!$S:$S,0)),\"Contact Finance\"))","v":""},{"$f":"IF($B129=\"\",\"\",IFERROR(INDEX('Work Order Master'!U:U,MATCH('Coding Generator'!$B129,'Work Order Master'!$S:$S,0)),\"Contact Finance\"))","v":""},null,124,null,{"$f":"IF($J129=\"\",\"\",IFERROR(INDEX('CHART OF ACCOUNTS'!G:G,MATCH('Coding Generator'!$J129,'CHART OF ACCOUNTS'!$N:$N,0)),\"Contact Finance\"))","v":""},{"$f":"IF($J129=\"\",\"\",IFERROR(INDEX('CHART OF ACCOUNTS'!H:H,MATCH('Coding Generator'!$J129,'CHART OF ACCOUNTS'!$N:$N,0)),\"Contact Finance\"))","v":""},{"$f":"IF($J129=\"\",\"\",IFERROR(INDEX('CHART OF ACCOUNTS'!D:D,MATCH('Coding Generator'!$J129,'CHART OF ACCOUNTS'!$N:$N,0)),\"Contact Finance\"))","v":""},{"$f":"IF($J129=\"\",\"\",IFERROR(INDEX('CHART OF ACCOUNTS'!F:F,MATCH('Coding Generator'!$J129,'CHART OF ACCOUNTS'!$N:$N,0)),\"Contact Finance\"))","v":""}]
[125,null,{"$f":"IF($B130=\"\",\"\",IFERROR(INDEX('Work Order Master'!K:K,MATCH('Coding Generator'!$B130,'Work Order Master'!$S:$S,0)),\"Contact Finance\"))","v":""},{"$f":"IF($B130=\"\",\"\",IFERROR(INDEX('Work Order Master'!L:L,MATCH('Coding Generator'!$B130,'Work Order Master'!$S:$S,0)),\"Contact Finance\"))","v":""},{"$f":"IF($B130=\"\",\"\",IFERROR(INDEX('Work Order Master'!M:M,MATCH('Coding Generator'!$B130,'Work Order Master'!$S:$S,0)),\"Contact Finance\"))","v":""},{"$f":"IF($B130=\"\",\"\",IFERROR(INDEX('Work Order Master'!N:N,MATCH('Coding Generator'!$B130,'Work Order Master'!$S:$S,0)),\"Contact Finance\"))","v":""},{"$f":"IF($B130=\"\",\"\",IFERROR(INDEX('Work Order Master'!U:U,MATCH('Coding Generator'!$B130,'Work Order Master'!$S:$S,0)),\"Contact Finance\"))","v":""},null,125,null,{"$f":"IF($J130=\"\",\"\",IFERROR(INDEX('CHART OF ACCOUNTS'!G:G,MATCH('Coding Generator'!$J130,'CHART OF ACCOUNTS'!$N:$N,0)),\"Contact Finance\"))","v":""},{"$f":"IF($J130=\"\",\"\",IFERROR(INDEX('CHART OF ACCOUNTS'!H:H,MATCH('Coding Generator'!$J130,'CHART OF ACCOUNTS'!$N:$N,0)),\"Contact Finance\"))","v":""},{"$f":"IF($J130=\"\",\"\",IFERROR(INDEX('CHART OF ACCOUNTS'!D:D,MATCH('Coding Generator'!$J130,'CHART OF ACCOUNTS'!$N:$N,0)),\"Contact Finance\"))","v":""},{"$f":"IF($J130=\"\",\"\",IFERROR(INDEX('CHART OF ACCOUNTS'!F:F,MATCH('Coding Generator'!$J130,'CHART OF ACCOUNTS'!$N:$N,0)),\"Contact Finance\"))","v":""}]
[126,null,{"$f":"IF($B131=\"\",\"\",IFERROR(INDEX('Work Order Master'!K:K,MATCH('Coding Generator'!$B131,'Work Order Master'!$S:$S,0)),\"Contact Finance\"))","v":""},{"$f":"IF($B131=\"\",\"\",IFERROR(INDEX('Work Order Master'!L:L,MATCH('Coding Generator'!$B131,'Work Order Master'!$S:$S,0)),\"Contact Finance\"))","v":""},{"$f":"IF($B131=\"\",\"\",IFERROR(INDEX('Work Order Master'!M:M,MATCH('Coding Generator'!$B131,'Work Order Master'!$S:$S,0)),\"Contact Finance\"))","v":""},{"$f":"IF($B131=\"\",\"\",IFERROR(INDEX('Work Order Master'!N:N,MATCH('Coding Generator'!$B131,'Work Order Master'!$S:$S,0)),\"Contact Finance\"))","v":""},{"$f":"IF($B131=\"\",\"\",IFERROR(INDEX('Work Order Master'!U:U,MATCH('Coding Generator'!$B131,'Work Order Master'!$S:$S,0)),\"Contact Finance\"))","v":""},null,126,null,{"$f":"IF($J131=\"\",\"\",IFERROR(INDEX('CHART OF ACCOUNTS'!G:G,MATCH('Coding Generator'!$J131,'CHART OF ACCOUNTS'!$N:$N,0)),\"Contact Finance\"))","v":""},{"$f":"IF($J131=\"\",\"\",IFERROR(INDEX('CHART OF ACCOUNTS'!H:H,MATCH('Coding Generator'!$J131,'CHART OF ACCOUNTS'!$N:$N,0)),\"Contact Finance\"))","v":""},{"$f":"IF($J131=\"\",\"\",IFERROR(INDEX('CHART OF ACCOUNTS'!D:D,MATCH('Coding Generator'!$J131,'CHART OF ACCOUNTS'!$N:$N,0)),\"Contact Finance\"))","v":""},{"$f":"IF($J131=\"\",\"\",IFERROR(INDEX('CHART OF ACCOUNTS'!F:F,MATCH('Coding Generator'!$J131,'CHART OF ACCOUNTS'!$N:$N,0)),\"Contact Finance\"))","v":""}]
[127,null,{"$f":"IF($B132=\"\",\"\",IFERROR(INDEX('Work Order Master'!K:K,MATCH('Coding Generator'!$B132,'Work Order Master'!$S:$S,0)),\"Contact Finance\"))","v":""},{"$f":"IF($B132=\"\",\"\",IFERROR(INDEX('Work Order Master'!L:L,MATCH('Coding Generator'!$B132,'Work Order Master'!$S:$S,0)),\"Contact Finance\"))","v":""},{"$f":"IF($B132=\"\",\"\",IFERROR(INDEX('Work Order Master'!M:M,MATCH('Coding Generator'!$B132,'Work Order Master'!$S:$S,0)),\"Contact Finance\"))","v":""},{"$f":"IF($B132=\"\",\"\",IFERROR(INDEX('Work Order Master'!N:N,MATCH('Coding Generator'!$B132,'Work Order Master'!$S:$S,0)),\"Contact Finance\"))","v":""},{"$f":"IF($B132=\"\",\"\",IFERROR(INDEX('Work Order Master'!U:U,MATCH('Coding Generator'!$B132,'Work Order Master'!$S:$S,0)),\"Contact Finance\"))","v":""},null,127,null,{"$f":"IF($J132=\"\",\"\",IFERROR(INDEX('CHART OF ACCOUNTS'!G:G,MATCH('Coding Generator'!$J132,'CHART OF ACCOUNTS'!$N:$N,0)),\"Contact Finance\"))","v":""},{"$f":"IF($J132=\"\",\"\",IFERROR(INDEX('CHART OF ACCOUNTS'!H:H,MATCH('Coding Generator'!$J132,'CHART OF ACCOUNTS'!$N:$N,0)),\"Contact Finance\"))","v":""},{"$f":"IF($J132=\"\",\"\",IFERROR(INDEX('CHART OF ACCOUNTS'!D:D,MATCH('Coding Generator'!$J132,'CHART OF ACCOUNTS'!$N:$N,0)),\"Contact Finance\"))","v":""},{"$f":"IF($J132=\"\",\"\",IFERROR(INDEX('CHART OF ACCOUNTS'!F:F,MATCH('Coding Generator'!$J132,'CHART OF ACCOUNTS'!$N:$N,0)),\"Contact Finance\"))","v":""}]
[128,null,{"$f":"IF($B133=\"\",\"\",IFERROR(INDEX('Work Order Master'!K:K,MATCH('Coding Generator'!$B133,'Work Order Master'!$S:$S,0)),\"Contact Finance\"))","v":""},{"$f":"IF($B133=\"\",\"\",IFERROR(INDEX('Work Order Master'!L:L,MATCH('Coding Generator'!$B133,'Work Order Master'!$S:$S,0)),\"Contact Finance\"))","v":""},{"$f":"IF($B133=\"\",\"\",IFERROR(INDEX('Work Order Master'!M:M,MATCH('Coding Generator'!$B133,'Work Order Master'!$S:$S,0)),\"Contact Finance\"))","v":""},{"$f":"IF($B133=\"\",\"\",IFERROR(INDEX('Work Order Master'!N:N,MATCH('Coding Generator'!$B133,'Work Order Master'!$S:$S,0)),\"Contact Finance\"))","v":""},{"$f":"IF($B133=\"\",\"\",IFERROR(INDEX('Work Order Master'!U:U,MATCH('Coding Generator'!$B133,'Work Order Master'!$S:$S,0)),\"Contact Finance\"))","v":""},null,128,null,{"$f":"IF($J133=\"\",\"\",IFERROR(INDEX('CHART OF ACCOUNTS'!G:G,MATCH('Coding Generator'!$J133,'CHART OF ACCOUNTS'!$N:$N,0)),\"Contact Finance\"))","v":""},{"$f":"IF($J133=\"\",\"\",IFERROR(INDEX('CHART OF ACCOUNTS'!H:H,MATCH('Coding Generator'!$J133,'CHART OF ACCOUNTS'!$N:$N,0)),\"Contact Finance\"))","v":""},{"$f":"IF($J133=\"\",\"\",IFERROR(INDEX('CHART OF ACCOUNTS'!D:D,MATCH('Coding Generator'!$J133,'CHART OF ACCOUNTS'!$N:$N,0)),\"Contact Finance\"))","v":""},{"$f":"IF($J133=\"\",\"\",IFERROR(INDEX('CHART OF ACCOUNTS'!F:F,MATCH('Coding Generator'!$J133,'CHART OF ACCOUNTS'!$N:$N,0)),\"Contact Finance\"))","v":""}]
[129,null,{"$f":"IF($B134=\"\",\"\",IFERROR(INDEX('Work Order Master'!K:K,MATCH('Coding Generator'!$B134,'Work Order Master'!$S:$S,0)),\"Contact Finance\"))","v":""},{"$f":"IF($B134=\"\",\"\",IFERROR(INDEX('Work Order Master'!L:L,MATCH('Coding Generator'!$B134,'Work Order Master'!$S:$S,0)),\"Contact Finance\"))","v":""},{"$f":"IF($B134=\"\",\"\",IFERROR(INDEX('Work Order Master'!M:M,MATCH('Coding Generator'!$B134,'Work Order Master'!$S:$S,0)),\"Contact Finance\"))","v":""},{"$f":"IF($B134=\"\",\"\",IFERROR(INDEX('Work Order Master'!N:N,MATCH('Coding Generator'!$B134,'Work Order Master'!$S:$S,0)),\"Contact Finance\"))","v":""},{"$f":"IF($B134=\"\",\"\",IFERROR(INDEX('Work Order Master'!U:U,MATCH('Coding Generator'!$B134,'Work Order Master'!$S:$S,0)),\"Contact Finance\"))","v":""},null,129,null,{"$f":"IF($J134=\"\",\"\",IFERROR(INDEX('CHART OF ACCOUNTS'!G:G,MATCH('Coding Generator'!$J134,'CHART OF ACCOUNTS'!$N:$N,0)),\"Contact Finance\"))","v":""},{"$f":"IF($J134=\"\",\"\",IFERROR(INDEX('CHART OF ACCOUNTS'!H:H,MATCH('Coding Generator'!$J134,'CHART OF ACCOUNTS'!$N:$N,0)),\"Contact Finance\"))","v":""},{"$f":"IF($J134=\"\",\"\",IFERROR(INDEX('CHART OF ACCOUNTS'!D:D,MATCH('Coding Generator'!$J134,'CHART OF ACCOUNTS'!$N:$N,0)),\"Contact Finance\"))","v":""},{"$f":"IF($J134=\"\",\"\",IFERROR(INDEX('CHART OF ACCOUNTS'!F:F,MATCH('Coding Generator'!$J134,'CHART OF ACCOUNTS'!$N:$N,0)),\"Contact Finance\"))","v":""}]
[130,null,{"$f":"IF($B135=\"\",\"\",IFERROR(INDEX('Work Order Master'!K:K,MATCH('Coding Generator'!$B135,'Work Order Master'!$S:$S,0)),\"Contact Finance\"))","v":""},{"$f":"IF($B135=\"\",\"\",IFERROR(INDEX('Work Order Master'!L:L,MATCH('Coding Generator'!$B135,'Work Order Master'!$S:$S,0)),\"Contact Finance\"))","v":""},{"$f":"IF($B135=\"\",\"\",IFERROR(INDEX('Work Order Master'!M:M,MATCH('Coding Generator'!$B135,'Work Order Master'!$S:$S,0)),\"Contact Finance\"))","v":""},{"$f":"IF($B135=\"\",\"\",IFERROR(INDEX('Work Order Master'!N:N,MATCH('Coding Generator'!$B135,'Work Order Master'!$S:$S,0)),\"Contact Finance\"))","v":""},{"$f":"IF($B135=\"\",\"\",IFERROR(INDEX('Work Order Master'!U:U,MATCH('Coding Generator'!$B135,'Work Order Master'!$S:$S,0)),\"Contact Finance\"))","v":""},null,130,null,{"$f":"IF($J135=\"\",\"\",IFERROR(INDEX('CHART OF ACCOUNTS'!G:G,MATCH('Coding Generator'!$J135,'CHART OF ACCOUNTS'!$N:$N,0)),\"Contact Finance\"))","v":""},{"$f":"IF($J135=\"\",\"\",IFERROR(INDEX('CHART OF ACCOUNTS'!H:H,MATCH('Coding Generator'!$J135,'CHART OF ACCOUNTS'!$N:$N,0)),\"Contact Finance\"))","v":""},{"$f":"IF($J135=\"\",\"\",IFERROR(INDEX('CHART OF ACCOUNTS'!D:D,MATCH('Coding Generator'!$J135,'CHART OF ACCOUNTS'!$N:$N,0)),\"Contact Finance\"))","v":""},{"$f":"IF($J135=\"\",\"\",IFERROR(INDEX('CHART OF ACCOUNTS'!F:F,MATCH('Coding Generator'!$J135,'CHART OF ACCOUNTS'!$N:$N,0)),\"Contact Finance\"))","v":""}]
[{"$f":"A135+1","v":131},null,{"$f":"IF($B136=\"\",\"\",IFERROR(INDEX('Work Order Master'!K:K,MATCH('Coding Generator'!$B136,'Work Order Master'!$S:$S,0)),\"Contact Finance\"))","v":""},{"$f":"IF($B136=\"\",\"\",IFERROR(INDEX('Work Order Master'!L:L,MATCH('Coding Generator'!$B136,'Work Order Master'!$S:$S,0)),\"Contact Finance\"))","v":""},{"$f":"IF($B136=\"\",\"\",IFERROR(INDEX('Work Order Master'!M:M,MATCH('Coding Generator'!$B136,'Work Order Master'!$S:$S,0)),\"Contact Finance\"))","v":""},{"$f":"IF($B136=\"\",\"\",IFERROR(INDEX('Work Order Master'!N:N,MATCH('Coding Generator'!$B136,'Work Order Master'!$S:$S,0)),\"Contact Finance\"))","v":""},{"$f":"IF($B136=\"\",\"\",IFERROR(INDEX('Work Order Master'!U:U,MATCH('Coding Generator'!$B136,'Work Order Master'!$S:$S,0)),\"Contact Finance\"))","v":""},null,{"$f":"I135+1","v":131},null,{"$f":"IF($J136=\"\",\"\",IFERROR(INDEX('CHART OF ACCOUNTS'!G:G,MATCH('Coding Generator'!$J136,'CHART OF ACCOUNTS'!$N:$N,0)),\"Contact Finance\"))","v":""},{"$f":"IF($J136=\"\",\"\",IFERROR(INDEX('CHART OF ACCOUNTS'!H:H,MATCH('Coding Generator'!$J136,'CHART OF ACCOUNTS'!$N:$N,0)),\"Contact Finance\"))","v":""},{"$f":"IF($J136=\"\",\"\",IFERROR(INDEX('CHART OF ACCOUNTS'!D:D,MATCH('Coding Generator'!$J136,'CHART OF ACCOUNTS'!$N:$N,0)),\"Contact Finance\"))","v":""},{"$f":"IF($J136=\"\",\"\",IFERROR(INDEX('CHART OF ACCOUNTS'!F:F,MATCH('Coding Generator'!$J136,'CHART OF ACCOUNTS'!$N:$N,0)),\"Contact Finance\"))","v":""}]
[132,null,{"$f":"IF($B137=\"\",\"\",IFERROR(INDEX('Work Order Master'!K:K,MATCH('Coding Generator'!$B137,'Work Order Master'!$S:$S,0)),\"Contact Finance\"))","v":""},{"$f":"IF($B137=\"\",\"\",IFERROR(INDEX('Work Order Master'!L:L,MATCH('Coding Generator'!$B137,'Work Order Master'!$S:$S,0)),\"Contact Finance\"))","v":""},{"$f":"IF($B137=\"\",\"\",IFERROR(INDEX('Work Order Master'!M:M,MATCH('Coding Generator'!$B137,'Work Order Master'!$S:$S,0)),\"Contact Finance\"))","v":""},{"$f":"IF($B137=\"\",\"\",IFERROR(INDEX('Work Order Master'!N:N,MATCH('Coding Generator'!$B137,'Work Order Master'!$S:$S,0)),\"Contact Finance\"))","v":""},{"$f":"IF($B137=\"\",\"\",IFERROR(INDEX('Work Order Master'!U:U,MATCH('Coding Generator'!$B137,'Work Order Master'!$S:$S,0)),\"Contact Finance\"))","v":""},null,132,null,{"$f":"IF($J137=\"\",\"\",IFERROR(INDEX('CHART OF ACCOUNTS'!G:G,MATCH('Coding Generator'!$J137,'CHART OF ACCOUNTS'!$N:$N,0)),\"Contact Finance\"))","v":""},{"$f":"IF($J137=\"\",\"\",IFERROR(INDEX('CHART OF ACCOUNTS'!H:H,MATCH('Coding Generator'!$J137,'CHART OF ACCOUNTS'!$N:$N,0)),\"Contact Finance\"))","v":""},{"$f":"IF($J137=\"\",\"\",IFERROR(INDEX('CHART OF ACCOUNTS'!D:D,MATCH('Coding Generator'!$J137,'CHART OF ACCOUNTS'!$N:$N,0)),\"Contact Finance\"))","v":""},{"$f":"IF($J137=\"\",\"\",IFERROR(INDEX('CHART OF ACCOUNTS'!F:F,MATCH('Coding Generator'!$J137,'CHART OF ACCOUNTS'!$N:$N,0)),\"Contact Finance\"))","v":""}]
[133,null,{"$f":"IF($B138=\"\",\"\",IFERROR(INDEX('Work Order Master'!K:K,MATCH('Coding Generator'!$B138,'Work Order Master'!$S:$S,0)),\"Contact Finance\"))","v":""},{"$f":"IF($B138=\"\",\"\",IFERROR(INDEX('Work Order Master'!L:L,MATCH('Coding Generator'!$B138,'Work Order Master'!$S:$S,0)),\"Contact Finance\"))","v":""},{"$f":"IF($B138=\"\",\"\",IFERROR(INDEX('Work Order Master'!M:M,MATCH('Coding Generator'!$B138,'Work Order Master'!$S:$S,0)),\"Contact Finance\"))","v":""},{"$f":"IF($B138=\"\",\"\",IFERROR(INDEX('Work Order Master'!N:N,MATCH('Coding Generator'!$B138,'Work Order Master'!$S:$S,0)),\"Contact Finance\"))","v":""},{"$f":"IF($B138=\"\",\"\",IFERROR(INDEX('Work Order Master'!U:U,MATCH('Coding Generator'!$B138,'Work Order Master'!$S:$S,0)),\"Contact Finance\"))","v":""},null,133,null,{"$f":"IF($J138=\"\",\"\",IFERROR(INDEX('CHART OF ACCOUNTS'!G:G,MATCH('Coding Generator'!$J138,'CHART OF ACCOUNTS'!$N:$N,0)),\"Contact Finance\"))","v":""},{"$f":"IF($J138=\"\",\"\",IFERROR(INDEX('CHART OF ACCOUNTS'!H:H,MATCH('Coding Generator'!$J138,'CHART OF ACCOUNTS'!$N:$N,0)),\"Contact Finance\"))","v":""},{"$f":"IF($J138=\"\",\"\",IFERROR(INDEX('CHART OF ACCOUNTS'!D:D,MATCH('Coding Generator'!$J138,'CHART OF ACCOUNTS'!$N:$N,0)),\"Contact Finance\"))","v":""},{"$f":"IF($J138=\"\",\"\",IFERROR(INDEX('CHART OF ACCOUNTS'!F:F,MATCH('Coding Generator'!$J138,'CHART OF ACCOUNTS'!$N:$N,0)),\"Contact Finance\"))","v":""}]
[134,null,{"$f":"IF($B139=\"\",\"\",IFERROR(INDEX('Work Order Master'!K:K,MATCH('Coding Generator'!$B139,'Work Order Master'!$S:$S,0)),\"Contact Finance\"))","v":""},{"$f":"IF($B139=\"\",\"\",IFERROR(INDEX('Work Order Master'!L:L,MATCH('Coding Generator'!$B139,'Work Order Master'!$S:$S,0)),\"Contact Finance\"))","v":""},{"$f":"IF($B139=\"\",\"\",IFERROR(INDEX('Work Order Master'!M:M,MATCH('Coding Generator'!$B139,'Work Order Master'!$S:$S,0)),\"Contact Finance\"))","v":""},{"$f":"IF($B139=\"\",\"\",IFERROR(INDEX('Work Order Master'!N:N,MATCH('Coding Generator'!$B139,'Work Order Master'!$S:$S,0)),\"Contact Finance\"))","v":""},{"$f":"IF($B139=\"\",\"\",IFERROR(INDEX('Work Order Master'!U:U,MATCH('Coding Generator'!$B139,'Work Order Master'!$S:$S,0)),\"Contact Finance\"))","v":""},null,134,null,{"$f":"IF($J139=\"\",\"\",IFERROR(INDEX('CHART OF ACCOUNTS'!G:G,MATCH('Coding Generator'!$J139,'CHART OF ACCOUNTS'!$N:$N,0)),\"Contact Finance\"))","v":""},{"$f":"IF($J139=\"\",\"\",IFERROR(INDEX('CHART OF ACCOUNTS'!H:H,MATCH('Coding Generator'!$J139,'CHART OF ACCOUNTS'!$N:$N,0)),\"Contact Finance\"))","v":""},{"$f":"IF($J139=\"\",\"\",IFERROR(INDEX('CHART OF ACCOUNTS'!D:D,MATCH('Coding Generator'!$J139,'CHART OF ACCOUNTS'!$N:$N,0)),\"Contact Finance\"))","v":""},{"$f":"IF($J139=\"\",\"\",IFERROR(INDEX('CHART OF ACCOUNTS'!F:F,MATCH('Coding Generator'!$J139,'CHART OF ACCOUNTS'!$N:$N,0)),\"Contact Finance\"))","v":""}]
[135,null,{"$f":"IF($B140=\"\",\"\",IFERROR(INDEX('Work Order Master'!K:K,MATCH('Coding Generator'!$B140,'Work Order Master'!$S:$S,0)),\"Contact Finance\"))","v":""},{"$f":"IF($B140=\"\",\"\",IFERROR(INDEX('Work Order Master'!L:L,MATCH('Coding Generator'!$B140,'Work Order Master'!$S:$S,0)),\"Contact Finance\"))","v":""},{"$f":"IF($B140=\"\",\"\",IFERROR(INDEX('Work Order Master'!M:M,MATCH('Coding Generator'!$B140,'Work Order Master'!$S:$S,0)),\"Contact Finance\"))","v":""},{"$f":"IF($B140=\"\",\"\",IFERROR(INDEX('Work Order Master'!N:N,MATCH('Coding Generator'!$B140,'Work Order Master'!$S:$S,0)),\"Contact Finance\"))","v":""},{"$f":"IF($B140=\"\",\"\",IFERROR(INDEX('Work Order Master'!U:U,MATCH('Coding Generator'!$B140,'Work Order Master'!$S:$S,0)),\"Contact Finance\"))","v":""},null,135,null,{"$f":"IF($J140=\"\",\"\",IFERROR(INDEX('CHART OF ACCOUNTS'!G:G,MATCH('Coding Generator'!$J140,'CHART OF ACCOUNTS'!$N:$N,0)),\"Contact Finance\"))","v":""},{"$f":"IF($J140=\"\",\"\",IFERROR(INDEX('CHART OF ACCOUNTS'!H:H,MATCH('Coding Generator'!$J140,'CHART OF ACCOUNTS'!$N:$N,0)),\"Contact Finance\"))","v":""},{"$f":"IF($J140=\"\",\"\",IFERROR(INDEX('CHART OF ACCOUNTS'!D:D,MATCH('Coding Generator'!$J140,'CHART OF ACCOUNTS'!$N:$N,0)),\"Contact Finance\"))","v":""},{"$f":"IF($J140=\"\",\"\",IFERROR(INDEX('CHART OF ACCOUNTS'!F:F,MATCH('Coding Generator'!$J140,'CHART OF ACCOUNTS'!$N:$N,0)),\"Contact Finance\"))","v":""}]
[136,null,{"$f":"IF($B141=\"\",\"\",IFERROR(INDEX('Work Order Master'!K:K,MATCH('Coding Generator'!$B141,'Work Order Master'!$S:$S,0)),\"Contact Finance\"))","v":""},{"$f":"IF($B141=\"\",\"\",IFERROR(INDEX('Work Order Master'!L:L,MATCH('Coding Generator'!$B141,'Work Order Master'!$S:$S,0)),\"Contact Finance\"))","v":""},{"$f":"IF($B141=\"\",\"\",IFERROR(INDEX('Work Order Master'!M:M,MATCH('Coding Generator'!$B141,'Work Order Master'!$S:$S,0)),\"Contact Finance\"))","v":""},{"$f":"IF($B141=\"\",\"\",IFERROR(INDEX('Work Order Master'!N:N,MATCH('Coding Generator'!$B141,'Work Order Master'!$S:$S,0)),\"Contact Finance\"))","v":""},{"$f":"IF($B141=\"\",\"\",IFERROR(INDEX('Work Order Master'!U:U,MATCH('Coding Generator'!$B141,'Work Order Master'!$S:$S,0)),\"Contact Finance\"))","v":""},null,136,null,{"$f":"IF($J141=\"\",\"\",IFERROR(INDEX('CHART OF ACCOUNTS'!G:G,MATCH('Coding Generator'!$J141,'CHART OF ACCOUNTS'!$N:$N,0)),\"Contact Finance\"))","v":""},{"$f":"IF($J141=\"\",\"\",IFERROR(INDEX('CHART OF ACCOUNTS'!H:H,MATCH('Coding Generator'!$J141,'CHART OF ACCOUNTS'!$N:$N,0)),\"Contact Finance\"))","v":""},{"$f":"IF($J141=\"\",\"\",IFERROR(INDEX('CHART OF ACCOUNTS'!D:D,MATCH('Coding Generator'!$J141,'CHART OF ACCOUNTS'!$N:$N,0)),\"Contact Finance\"))","v":""},{"$f":"IF($J141=\"\",\"\",IFERROR(INDEX('CHART OF ACCOUNTS'!F:F,MATCH('Coding Generator'!$J141,'CHART OF ACCOUNTS'!$N:$N,0)),\"Contact Finance\"))","v":""}]
[137,null,{"$f":"IF($B142=\"\",\"\",IFERROR(INDEX('Work Order Master'!K:K,MATCH('Coding Generator'!$B142,'Work Order Master'!$S:$S,0)),\"Contact Finance\"))","v":""},{"$f":"IF($B142=\"\",\"\",IFERROR(INDEX('Work Order Master'!L:L,MATCH('Coding Generator'!$B142,'Work Order Master'!$S:$S,0)),\"Contact Finance\"))","v":""},{"$f":"IF($B142=\"\",\"\",IFERROR(INDEX('Work Order Master'!M:M,MATCH('Coding Generator'!$B142,'Work Order Master'!$S:$S,0)),\"Contact Finance\"))","v":""},{"$f":"IF($B142=\"\",\"\",IFERROR(INDEX('Work Order Master'!N:N,MATCH('Coding Generator'!$B142,'Work Order Master'!$S:$S,0)),\"Contact Finance\"))","v":""},{"$f":"IF($B142=\"\",\"\",IFERROR(INDEX('Work Order Master'!U:U,MATCH('Coding Generator'!$B142,'Work Order Master'!$S:$S,0)),\"Contact Finance\"))","v":""},null,137,null,{"$f":"IF($J142=\"\",\"\",IFERROR(INDEX('CHART OF ACCOUNTS'!G:G,MATCH('Coding Generator'!$J142,'CHART OF ACCOUNTS'!$N:$N,0)),\"Contact Finance\"))","v":""},{"$f":"IF($J142=\"\",\"\",IFERROR(INDEX('CHART OF ACCOUNTS'!H:H,MATCH('Coding Generator'!$J142,'CHART OF ACCOUNTS'!$N:$N,0)),\"Contact Finance\"))","v":""},{"$f":"IF($J142=\"\",\"\",IFERROR(INDEX('CHART OF ACCOUNTS'!D:D,MATCH('Coding Generator'!$J142,'CHART OF ACCOUNTS'!$N:$N,0)),\"Contact Finance\"))","v":""},{"$f":"IF($J142=\"\",\"\",IFERROR(INDEX('CHART OF ACCOUNTS'!F:F,MATCH('Coding Generator'!$J142,'CHART OF ACCOUNTS'!$N:$N,0)),\"Contact Finance\"))","v":""}]
[138,null,{"$f":"IF($B143=\"\",\"\",IFERROR(INDEX('Work Order Master'!K:K,MATCH('Coding Generator'!$B143,'Work Order Master'!$S:$S,0)),\"Contact Finance\"))","v":""},{"$f":"IF($B143=\"\",\"\",IFERROR(INDEX('Work Order Master'!L:L,MATCH('Coding Generator'!$B143,'Work Order Master'!$S:$S,0)),\"Contact Finance\"))","v":""},{"$f":"IF($B143=\"\",\"\",IFERROR(INDEX('Work Order Master'!M:M,MATCH('Coding Generator'!$B143,'Work Order Master'!$S:$S,0)),\"Contact Finance\"))","v":""},{"$f":"IF($B143=\"\",\"\",IFERROR(INDEX('Work Order Master'!N:N,MATCH('Coding Generator'!$B143,'Work Order Master'!$S:$S,0)),\"Contact Finance\"))","v":""},{"$f":"IF($B143=\"\",\"\",IFERROR(INDEX('Work Order Master'!U:U,MATCH('Coding Generator'!$B143,'Work Order Master'!$S:$S,0)),\"Contact Finance\"))","v":""},null,138,null,{"$f":"IF($J143=\"\",\"\",IFERROR(INDEX('CHART OF ACCOUNTS'!G:G,MATCH('Coding Generator'!$J143,'CHART OF ACCOUNTS'!$N:$N,0)),\"Contact Finance\"))","v":""},{"$f":"IF($J143=\"\",\"\",IFERROR(INDEX('CHART OF ACCOUNTS'!H:H,MATCH('Coding Generator'!$J143,'CHART OF ACCOUNTS'!$N:$N,0)),\"Contact Finance\"))","v":""},{"$f":"IF($J143=\"\",\"\",IFERROR(INDEX('CHART OF ACCOUNTS'!D:D,MATCH('Coding Generator'!$J143,'CHART OF ACCOUNTS'!$N:$N,0)),\"Contact Finance\"))","v":""},{"$f":"IF($J143=\"\",\"\",IFERROR(INDEX('CHART OF ACCOUNTS'!F:F,MATCH('Coding Generator'!$J143,'CHART OF ACCOUNTS'!$N:$N,0)),\"Contact Finance\"))","v":""}]
[139,null,{"$f":"IF($B144=\"\",\"\",IFERROR(INDEX('Work Order Master'!K:K,MATCH('Coding Generator'!$B144,'Work Order Master'!$S:$S,0)),\"Contact Finance\"))","v":""},{"$f":"IF($B144=\"\",\"\",IFERROR(INDEX('Work Order Master'!L:L,MATCH('Coding Generator'!$B144,'Work Order Master'!$S:$S,0)),\"Contact Finance\"))","v":""},{"$f":"IF($B144=\"\",\"\",IFERROR(INDEX('Work Order Master'!M:M,MATCH('Coding Generator'!$B144,'Work Order Master'!$S:$S,0)),\"Contact Finance\"))","v":""},{"$f":"IF($B144=\"\",\"\",IFERROR(INDEX('Work Order Master'!N:N,MATCH('Coding Generator'!$B144,'Work Order Master'!$S:$S,0)),\"Contact Finance\"))","v":""},{"$f":"IF($B144=\"\",\"\",IFERROR(INDEX('Work Order Master'!U:U,MATCH('Coding Generator'!$B144,'Work Order Master'!$S:$S,0)),\"Contact Finance\"))","v":""},null,139,null,{"$f":"IF($J144=\"\",\"\",IFERROR(INDEX('CHART OF ACCOUNTS'!G:G,MATCH('Coding Generator'!$J144,'CHART OF ACCOUNTS'!$N:$N,0)),\"Contact Finance\"))","v":""},{"$f":"IF($J144=\"\",\"\",IFERROR(INDEX('CHART OF ACCOUNTS'!H:H,MATCH('Coding Generator'!$J144,'CHART OF ACCOUNTS'!$N:$N,0)),\"Contact Finance\"))","v":""},{"$f":"IF($J144=\"\",\"\",IFERROR(INDEX('CHART OF ACCOUNTS'!D:D,MATCH('Coding Generator'!$J144,'CHART OF ACCOUNTS'!$N:$N,0)),\"Contact Finance\"))","v":""},{"$f":"IF($J144=\"\",\"\",IFERROR(INDEX('CHART OF ACCOUNTS'!F:F,MATCH('Coding Generator'!$J144,'CHART OF ACCOUNTS'!$N:$N,0)),\"Contact Finance\"))","v":""}]
[140,null,{"$f":"IF($B145=\"\",\"\",IFERROR(INDEX('Work Order Master'!K:K,MATCH('Coding Generator'!$B145,'Work Order Master'!$S:$S,0)),\"Contact Finance\"))","v":""},{"$f":"IF($B145=\"\",\"\",IFERROR(INDEX('Work Order Master'!L:L,MATCH('Coding Generator'!$B145,'Work Order Master'!$S:$S,0)),\"Contact Finance\"))","v":""},{"$f":"IF($B145=\"\",\"\",IFERROR(INDEX('Work Order Master'!M:M,MATCH('Coding Generator'!$B145,'Work Order Master'!$S:$S,0)),\"Contact Finance\"))","v":""},{"$f":"IF($B145=\"\",\"\",IFERROR(INDEX('Work Order Master'!N:N,MATCH('Coding Generator'!$B145,'Work Order Master'!$S:$S,0)),\"Contact Finance\"))","v":""},{"$f":"IF($B145=\"\",\"\",IFERROR(INDEX('Work Order Master'!U:U,MATCH('Coding Generator'!$B145,'Work Order Master'!$S:$S,0)),\"Contact Finance\"))","v":""},null,140,null,{"$f":"IF($J145=\"\",\"\",IFERROR(INDEX('CHART OF ACCOUNTS'!G:G,MATCH('Coding Generator'!$J145,'CHART OF ACCOUNTS'!$N:$N,0)),\"Contact Finance\"))","v":""},{"$f":"IF($J145=\"\",\"\",IFERROR(INDEX('CHART OF ACCOUNTS'!H:H,MATCH('Coding Generator'!$J145,'CHART OF ACCOUNTS'!$N:$N,0)),\"Contact Finance\"))","v":""},{"$f":"IF($J145=\"\",\"\",IFERROR(INDEX('CHART OF ACCOUNTS'!D:D,MATCH('Coding Generator'!$J145,'CHART OF ACCOUNTS'!$N:$N,0)),\"Contact Finance\"))","v":""},{"$f":"IF($J145=\"\",\"\",IFERROR(INDEX('CHART OF ACCOUNTS'!F:F,MATCH('Coding Generator'!$J145,'CHART OF ACCOUNTS'!$N:$N,0)),\"Contact Finance\"))","v":""}]
[141,null,{"$f":"IF($B146=\"\",\"\",IFERROR(INDEX('Work Order Master'!K:K,MATCH('Coding Generator'!$B146,'Work Order Master'!$S:$S,0)),\"Contact Finance\"))","v":""},{"$f":"IF($B146=\"\",\"\",IFERROR(INDEX('Work Order Master'!L:L,MATCH('Coding Generator'!$B146,'Work Order Master'!$S:$S,0)),\"Contact Finance\"))","v":""},{"$f":"IF($B146=\"\",\"\",IFERROR(INDEX('Work Order Master'!M:M,MATCH('Coding Generator'!$B146,'Work Order Master'!$S:$S,0)),\"Contact Finance\"))","v":""},{"$f":"IF($B146=\"\",\"\",IFERROR(INDEX('Work Order Master'!N:N,MATCH('Coding Generator'!$B146,'Work Order Master'!$S:$S,0)),\"Contact Finance\"))","v":""},{"$f":"IF($B146=\"\",\"\",IFERROR(INDEX('Work Order Master'!U:U,MATCH('Coding Generator'!$B146,'Work Order Master'!$S:$S,0)),\"Contact Finance\"))","v":""},null,141,null,{"$f":"IF($J146=\"\",\"\",IFERROR(INDEX('CHART OF ACCOUNTS'!G:G,MATCH('Coding Generator'!$J146,'CHART OF ACCOUNTS'!$N:$N,0)),\"Contact Finance\"))","v":""},{"$f":"IF($J146=\"\",\"\",IFERROR(INDEX('CHART OF ACCOUNTS'!H:H,MATCH('Coding Generator'!$J146,'CHART OF ACCOUNTS'!$N:$N,0)),\"Contact Finance\"))","v":""},{"$f":"IF($J146=\"\",\"\",IFERROR(INDEX('CHART OF ACCOUNTS'!D:D,MATCH('Coding Generator'!$J146,'CHART OF ACCOUNTS'!$N:$N,0)),\"Contact Finance\"))","v":""},{"$f":"IF($J146=\"\",\"\",IFERROR(INDEX('CHART OF ACCOUNTS'!F:F,MATCH('Coding Generator'!$J146,'CHART OF ACCOUNTS'!$N:$N,0)),\"Contact Finance\"))","v":""}]
[142,null,{"$f":"IF($B147=\"\",\"\",IFERROR(INDEX('Work Order Master'!K:K,MATCH('Coding Generator'!$B147,'Work Order Master'!$S:$S,0)),\"Contact Finance\"))","v":""},{"$f":"IF($B147=\"\",\"\",IFERROR(INDEX('Work Order Master'!L:L,MATCH('Coding Generator'!$B147,'Work Order Master'!$S:$S,0)),\"Contact Finance\"))","v":""},{"$f":"IF($B147=\"\",\"\",IFERROR(INDEX('Work Order Master'!M:M,MATCH('Coding Generator'!$B147,'Work Order Master'!$S:$S,0)),\"Contact Finance\"))","v":""},{"$f":"IF($B147=\"\",\"\",IFERROR(INDEX('Work Order Master'!N:N,MATCH('Coding Generator'!$B147,'Work Order Master'!$S:$S,0)),\"Contact Finance\"))","v":""},{"$f":"IF($B147=\"\",\"\",IFERROR(INDEX('Work Order Master'!U:U,MATCH('Coding Generator'!$B147,'Work Order Master'!$S:$S,0)),\"Contact Finance\"))","v":""},null,142,null,{"$f":"IF($J147=\"\",\"\",IFERROR(INDEX('CHART OF ACCOUNTS'!G:G,MATCH('Coding Generator'!$J147,'CHART OF ACCOUNTS'!$N:$N,0)),\"Contact Finance\"))","v":""},{"$f":"IF($J147=\"\",\"\",IFERROR(INDEX('CHART OF ACCOUNTS'!H:H,MATCH('Coding Generator'!$J147,'CHART OF ACCOUNTS'!$N:$N,0)),\"Contact Finance\"))","v":""},{"$f":"IF($J147=\"\",\"\",IFERROR(INDEX('CHART OF ACCOUNTS'!D:D,MATCH('Coding Generator'!$J147,'CHART OF ACCOUNTS'!$N:$N,0)),\"Contact Finance\"))","v":""},{"$f":"IF($J147=\"\",\"\",IFERROR(INDEX('CHART OF ACCOUNTS'!F:F,MATCH('Coding Generator'!$J147,'CHART OF ACCOUNTS'!$N:$N,0)),\"Contact Finance\"))","v":""}]
[143,null,{"$f":"IF($B148=\"\",\"\",IFERROR(INDEX('Work Order Master'!K:K,MATCH('Coding Generator'!$B148,'Work Order Master'!$S:$S,0)),\"Contact Finance\"))","v":""},{"$f":"IF($B148=\"\",\"\",IFERROR(INDEX('Work Order Master'!L:L,MATCH('Coding Generator'!$B148,'Work Order Master'!$S:$S,0)),\"Contact Finance\"))","v":""},{"$f":"IF($B148=\"\",\"\",IFERROR(INDEX('Work Order Master'!M:M,MATCH('Coding Generator'!$B148,'Work Order Master'!$S:$S,0)),\"Contact Finance\"))","v":""},{"$f":"IF($B148=\"\",\"\",IFERROR(INDEX('Work Order Master'!N:N,MATCH('Coding Generator'!$B148,'Work Order Master'!$S:$S,0)),\"Contact Finance\"))","v":""},{"$f":"IF($B148=\"\",\"\",IFERROR(INDEX('Work Order Master'!U:U,MATCH('Coding Generator'!$B148,'Work Order Master'!$S:$S,0)),\"Contact Finance\"))","v":""},null,143,null,{"$f":"IF($J148=\"\",\"\",IFERROR(INDEX('CHART OF ACCOUNTS'!G:G,MATCH('Coding Generator'!$J148,'CHART OF ACCOUNTS'!$N:$N,0)),\"Contact Finance\"))","v":""},{"$f":"IF($J148=\"\",\"\",IFERROR(INDEX('CHART OF ACCOUNTS'!H:H,MATCH('Coding Generator'!$J148,'CHART OF ACCOUNTS'!$N:$N,0)),\"Contact Finance\"))","v":""},{"$f":"IF($J148=\"\",\"\",IFERROR(INDEX('CHART OF ACCOUNTS'!D:D,MATCH('Coding Generator'!$J148,'CHART OF ACCOUNTS'!$N:$N,0)),\"Contact Finance\"))","v":""},{"$f":"IF($J148=\"\",\"\",IFERROR(INDEX('CHART OF ACCOUNTS'!F:F,MATCH('Coding Generator'!$J148,'CHART OF ACCOUNTS'!$N:$N,0)),\"Contact Finance\"))","v":""}]
[144,null,{"$f":"IF($B149=\"\",\"\",IFERROR(INDEX('Work Order Master'!K:K,MATCH('Coding Generator'!$B149,'Work Order Master'!$S:$S,0)),\"Contact Finance\"))","v":""},{"$f":"IF($B149=\"\",\"\",IFERROR(INDEX('Work Order Master'!L:L,MATCH('Coding Generator'!$B149,'Work Order Master'!$S:$S,0)),\"Contact Finance\"))","v":""},{"$f":"IF($B149=\"\",\"\",IFERROR(INDEX('Work Order Master'!M:M,MATCH('Coding Generator'!$B149,'Work Order Master'!$S:$S,0)),\"Contact Finance\"))","v":""},{"$f":"IF($B149=\"\",\"\",IFERROR(INDEX('Work Order Master'!N:N,MATCH('Coding Generator'!$B149,'Work Order Master'!$S:$S,0)),\"Contact Finance\"))","v":""},{"$f":"IF($B149=\"\",\"\",IFERROR(INDEX('Work Order Master'!U:U,MATCH('Coding Generator'!$B149,'Work Order Master'!$S:$S,0)),\"Contact Finance\"))","v":""},null,144,null,{"$f":"IF($J149=\"\",\"\",IFERROR(INDEX('CHART OF ACCOUNTS'!G:G,MATCH('Coding Generator'!$J149,'CHART OF ACCOUNTS'!$N:$N,0)),\"Contact Finance\"))","v":""},{"$f":"IF($J149=\"\",\"\",IFERROR(INDEX('CHART OF ACCOUNTS'!H:H,MATCH('Coding Generator'!$J149,'CHART OF ACCOUNTS'!$N:$N,0)),\"Contact Finance\"))","v":""},{"$f":"IF($J149=\"\",\"\",IFERROR(INDEX('CHART OF ACCOUNTS'!D:D,MATCH('Coding Generator'!$J149,'CHART OF ACCOUNTS'!$N:$N,0)),\"Contact Finance\"))","v":""},{"$f":"IF($J149=\"\",\"\",IFERROR(INDEX('CHART OF ACCOUNTS'!F:F,MATCH('Coding Generator'!$J149,'CHART OF ACCOUNTS'!$N:$N,0)),\"Contact Finance\"))","v":""}]
[145,null,{"$f":"IF($B150=\"\",\"\",IFERROR(INDEX('Work Order Master'!K:K,MATCH('Coding Generator'!$B150,'Work Order Master'!$S:$S,0)),\"Contact Finance\"))","v":""},{"$f":"IF($B150=\"\",\"\",IFERROR(INDEX('Work Order Master'!L:L,MATCH('Coding Generator'!$B150,'Work Order Master'!$S:$S,0)),\"Contact Finance\"))","v":""},{"$f":"IF($B150=\"\",\"\",IFERROR(INDEX('Work Order Master'!M:M,MATCH('Coding Generator'!$B150,'Work Order Master'!$S:$S,0)),\"Contact Finance\"))","v":""},{"$f":"IF($B150=\"\",\"\",IFERROR(INDEX('Work Order Master'!N:N,MATCH('Coding Generator'!$B150,'Work Order Master'!$S:$S,0)),\"Contact Finance\"))","v":""},{"$f":"IF($B150=\"\",\"\",IFERROR(INDEX('Work Order Master'!U:U,MATCH('Coding Generator'!$B150,'Work Order Master'!$S:$S,0)),\"Contact Finance\"))","v":""},null,145,null,{"$f":"IF($J150=\"\",\"\",IFERROR(INDEX('CHART OF ACCOUNTS'!G:G,MATCH('Coding Generator'!$J150,'CHART OF ACCOUNTS'!$N:$N,0)),\"Contact Finance\"))","v":""},{"$f":"IF($J150=\"\",\"\",IFERROR(INDEX('CHART OF ACCOUNTS'!H:H,MATCH('Coding Generator'!$J150,'CHART OF ACCOUNTS'!$N:$N,0)),\"Contact Finance\"))","v":""},{"$f":"IF($J150=\"\",\"\",IFERROR(INDEX('CHART OF ACCOUNTS'!D:D,MATCH('Coding Generator'!$J150,'CHART OF ACCOUNTS'!$N:$N,0)),\"Contact Finance\"))","v":""},{"$f":"IF($J150=\"\",\"\",IFERROR(INDEX('CHART OF ACCOUNTS'!F:F,MATCH('Coding Generator'!$J150,'CHART OF ACCOUNTS'!$N:$N,0)),\"Contact Finance\"))","v":""}]
[146,null,{"$f":"IF($B151=\"\",\"\",IFERROR(INDEX('Work Order Master'!K:K,MATCH('Coding Generator'!$B151,'Work Order Master'!$S:$S,0)),\"Contact Finance\"))","v":""},{"$f":"IF($B151=\"\",\"\",IFERROR(INDEX('Work Order Master'!L:L,MATCH('Coding Generator'!$B151,'Work Order Master'!$S:$S,0)),\"Contact Finance\"))","v":""},{"$f":"IF($B151=\"\",\"\",IFERROR(INDEX('Work Order Master'!M:M,MATCH('Coding Generator'!$B151,'Work Order Master'!$S:$S,0)),\"Contact Finance\"))","v":""},{"$f":"IF($B151=\"\",\"\",IFERROR(INDEX('Work Order Master'!N:N,MATCH('Coding Generator'!$B151,'Work Order Master'!$S:$S,0)),\"Contact Finance\"))","v":""},{"$f":"IF($B151=\"\",\"\",IFERROR(INDEX('Work Order Master'!U:U,MATCH('Coding Generator'!$B151,'Work Order Master'!$S:$S,0)),\"Contact Finance\"))","v":""},null,146,null,{"$f":"IF($J151=\"\",\"\",IFERROR(INDEX('CHART OF ACCOUNTS'!G:G,MATCH('Coding Generator'!$J151,'CHART OF ACCOUNTS'!$N:$N,0)),\"Contact Finance\"))","v":""},{"$f":"IF($J151=\"\",\"\",IFERROR(INDEX('CHART OF ACCOUNTS'!H:H,MATCH('Coding Generator'!$J151,'CHART OF ACCOUNTS'!$N:$N,0)),\"Contact Finance\"))","v":""},{"$f":"IF($J151=\"\",\"\",IFERROR(INDEX('CHART OF ACCOUNTS'!D:D,MATCH('Coding Generator'!$J151,'CHART OF ACCOUNTS'!$N:$N,0)),\"Contact Finance\"))","v":""},{"$f":"IF($J151=\"\",\"\",IFERROR(INDEX('CHART OF ACCOUNTS'!F:F,MATCH('Coding Generator'!$J151,'CHART OF ACCOUNTS'!$N:$N,0)),\"Contact Finance\"))","v":""}]
[147,null,{"$f":"IF($B152=\"\",\"\",IFERROR(INDEX('Work Order Master'!K:K,MATCH('Coding Generator'!$B152,'Work Order Master'!$S:$S,0)),\"Contact Finance\"))","v":""},{"$f":"IF($B152=\"\",\"\",IFERROR(INDEX('Work Order Master'!L:L,MATCH('Coding Generator'!$B152,'Work Order Master'!$S:$S,0)),\"Contact Finance\"))","v":""},{"$f":"IF($B152=\"\",\"\",IFERROR(INDEX('Work Order Master'!M:M,MATCH('Coding Generator'!$B152,'Work Order Master'!$S:$S,0)),\"Contact Finance\"))","v":""},{"$f":"IF($B152=\"\",\"\",IFERROR(INDEX('Work Order Master'!N:N,MATCH('Coding Generator'!$B152,'Work Order Master'!$S:$S,0)),\"Contact Finance\"))","v":""},{"$f":"IF($B152=\"\",\"\",IFERROR(INDEX('Work Order Master'!U:U,MATCH('Coding Generator'!$B152,'Work Order Master'!$S:$S,0)),\"Contact Finance\"))","v":""},null,147,null,{"$f":"IF($J152=\"\",\"\",IFERROR(INDEX('CHART OF ACCOUNTS'!G:G,MATCH('Coding Generator'!$J152,'CHART OF ACCOUNTS'!$N:$N,0)),\"Contact Finance\"))","v":""},{"$f":"IF($J152=\"\",\"\",IFERROR(INDEX('CHART OF ACCOUNTS'!H:H,MATCH('Coding Generator'!$J152,'CHART OF ACCOUNTS'!$N:$N,0)),\"Contact Finance\"))","v":""},{"$f":"IF($J152=\"\",\"\",IFERROR(INDEX('CHART OF ACCOUNTS'!D:D,MATCH('Coding Generator'!$J152,'CHART OF ACCOUNTS'!$N:$N,0)),\"Contact Finance\"))","v":""},{"$f":"IF($J152=\"\",\"\",IFERROR(INDEX('CHART OF ACCOUNTS'!F:F,MATCH('Coding Generator'!$J152,'CHART OF ACCOUNTS'!$N:$N,0)),\"Contact Finance\"))","v":""}]
[148,null,{"$f":"IF($B153=\"\",\"\",IFERROR(INDEX('Work Order Master'!K:K,MATCH('Coding Generator'!$B153,'Work Order Master'!$S:$S,0)),\"Contact Finance\"))","v":""},{"$f":"IF($B153=\"\",\"\",IFERROR(INDEX('Work Order Master'!L:L,MATCH('Coding Generator'!$B153,'Work Order Master'!$S:$S,0)),\"Contact Finance\"))","v":""},{"$f":"IF($B153=\"\",\"\",IFERROR(INDEX('Work Order Master'!M:M,MATCH('Coding Generator'!$B153,'Work Order Master'!$S:$S,0)),\"Contact Finance\"))","v":""},{"$f":"IF($B153=\"\",\"\",IFERROR(INDEX('Work Order Master'!N:N,MATCH('Coding Generator'!$B153,'Work Order Master'!$S:$S,0)),\"Contact Finance\"))","v":""},{"$f":"IF($B153=\"\",\"\",IFERROR(INDEX('Work Order Master'!U:U,MATCH('Coding Generator'!$B153,'Work Order Master'!$S:$S,0)),\"Contact Finance\"))","v":""},null,148,null,{"$f":"IF($J153=\"\",\"\",IFERROR(INDEX('CHART OF ACCOUNTS'!G:G,MATCH('Coding Generator'!$J153,'CHART OF ACCOUNTS'!$N:$N,0)),\"Contact Finance\"))","v":""},{"$f":"IF($J153=\"\",\"\",IFERROR(INDEX('CHART OF ACCOUNTS'!H:H,MATCH('Coding Generator'!$J153,'CHART OF ACCOUNTS'!$N:$N,0)),\"Contact Finance\"))","v":""},{"$f":"IF($J153=\"\",\"\",IFERROR(INDEX('CHART OF ACCOUNTS'!D:D,MATCH('Coding Generator'!$J153,'CHART OF ACCOUNTS'!$N:$N,0)),\"Contact Finance\"))","v":""},{"$f":"IF($J153=\"\",\"\",IFERROR(INDEX('CHART OF ACCOUNTS'!F:F,MATCH('Coding Generator'!$J153,'CHART OF ACCOUNTS'!$N:$N,0)),\"Contact Finance\"))","v":""}]
[149,null,{"$f":"IF($B154=\"\",\"\",IFERROR(INDEX('Work Order Master'!K:K,MATCH('Coding Generator'!$B154,'Work Order Master'!$S:$S,0)),\"Contact Finance\"))","v":""},{"$f":"IF($B154=\"\",\"\",IFERROR(INDEX('Work Order Master'!L:L,MATCH('Coding Generator'!$B154,'Work Order Master'!$S:$S,0)),\"Contact Finance\"))","v":""},{"$f":"IF($B154=\"\",\"\",IFERROR(INDEX('Work Order Master'!M:M,MATCH('Coding Generator'!$B154,'Work Order Master'!$S:$S,0)),\"Contact Finance\"))","v":""},{"$f":"IF($B154=\"\",\"\",IFERROR(INDEX('Work Order Master'!N:N,MATCH('Coding Generator'!$B154,'Work Order Master'!$S:$S,0)),\"Contact Finance\"))","v":""},{"$f":"IF($B154=\"\",\"\",IFERROR(INDEX('Work Order Master'!U:U,MATCH('Coding Generator'!$B154,'Work Order Master'!$S:$S,0)),\"Contact Finance\"))","v":""},null,149,null,{"$f":"IF($J154=\"\",\"\",IFERROR(INDEX('CHART OF ACCOUNTS'!G:G,MATCH('Coding Generator'!$J154,'CHART OF ACCOUNTS'!$N:$N,0)),\"Contact Finance\"))","v":""},{"$f":"IF($J154=\"\",\"\",IFERROR(INDEX('CHART OF ACCOUNTS'!H:H,MATCH('Coding Generator'!$J154,'CHART OF ACCOUNTS'!$N:$N,0)),\"Contact Finance\"))","v":""},{"$f":"IF($J154=\"\",\"\",IFERROR(INDEX('CHART OF ACCOUNTS'!D:D,MATCH('Coding Generator'!$J154,'CHART OF ACCOUNTS'!$N:$N,0)),\"Contact Finance\"))","v":""},{"$f":"IF($J154=\"\",\"\",IFERROR(INDEX('CHART OF ACCOUNTS'!F:F,MATCH('Coding Generator'!$J154,'CHART OF ACCOUNTS'!$N:$N,0)),\"Contact Finance\"))","v":""}]
[150,null,{"$f":"IF($B155=\"\",\"\",IFERROR(INDEX('Work Order Master'!K:K,MATCH('Coding Generator'!$B155,'Work Order Master'!$S:$S,0)),\"Contact Finance\"))","v":""},{"$f":"IF($B155=\"\",\"\",IFERROR(INDEX('Work Order Master'!L:L,MATCH('Coding Generator'!$B155,'Work Order Master'!$S:$S,0)),\"Contact Finance\"))","v":""},{"$f":"IF($B155=\"\",\"\",IFERROR(INDEX('Work Order Master'!M:M,MATCH('Coding Generator'!$B155,'Work Order Master'!$S:$S,0)),\"Contact Finance\"))","v":""},{"$f":"IF($B155=\"\",\"\",IFERROR(INDEX('Work Order Master'!N:N,MATCH('Coding Generator'!$B155,'Work Order Master'!$S:$S,0)),\"Contact Finance\"))","v":""},{"$f":"IF($B155=\"\",\"\",IFERROR(INDEX('Work Order Master'!U:U,MATCH('Coding Generator'!$B155,'Work Order Master'!$S:$S,0)),\"Contact Finance\"))","v":""},null,150,null,{"$f":"IF($J155=\"\",\"\",IFERROR(INDEX('CHART OF ACCOUNTS'!G:G,MATCH('Coding Generator'!$J155,'CHART OF ACCOUNTS'!$N:$N,0)),\"Contact Finance\"))","v":""},{"$f":"IF($J155=\"\",\"\",IFERROR(INDEX('CHART OF ACCOUNTS'!H:H,MATCH('Coding Generator'!$J155,'CHART OF ACCOUNTS'!$N:$N,0)),\"Contact Finance\"))","v":""},{"$f":"IF($J155=\"\",\"\",IFERROR(INDEX('CHART OF ACCOUNTS'!D:D,MATCH('Coding Generator'!$J155,'CHART OF ACCOUNTS'!$N:$N,0)),\"Contact Finance\"))","v":""},{"$f":"IF($J155=\"\",\"\",IFERROR(INDEX('CHART OF ACCOUNTS'!F:F,MATCH('Coding Generator'!$J155,'CHART OF ACCOUNTS'!$N:$N,0)),\"Contact Finance\"))","v":""}]
[151,null,{"$f":"IF($B156=\"\",\"\",IFERROR(INDEX('Work Order Master'!K:K,MATCH('Coding Generator'!$B156,'Work Order Master'!$S:$S,0)),\"Contact Finance\"))","v":""},{"$f":"IF($B156=\"\",\"\",IFERROR(INDEX('Work Order Master'!L:L,MATCH('Coding Generator'!$B156,'Work Order Master'!$S:$S,0)),\"Contact Finance\"))","v":""},{"$f":"IF($B156=\"\",\"\",IFERROR(INDEX('Work Order Master'!M:M,MATCH('Coding Generator'!$B156,'Work Order Master'!$S:$S,0)),\"Contact Finance\"))","v":""},{"$f":"IF($B156=\"\",\"\",IFERROR(INDEX('Work Order Master'!N:N,MATCH('Coding Generator'!$B156,'Work Order Master'!$S:$S,0)),\"Contact Finance\"))","v":""},{"$f":"IF($B156=\"\",\"\",IFERROR(INDEX('Work Order Master'!U:U,MATCH('Coding Generator'!$B156,'Work Order Master'!$S:$S,0)),\"Contact Finance\"))","v":""},null,151,null,{"$f":"IF($J156=\"\",\"\",IFERROR(INDEX('CHART OF ACCOUNTS'!G:G,MATCH('Coding Generator'!$J156,'CHART OF ACCOUNTS'!$N:$N,0)),\"Contact Finance\"))","v":""},{"$f":"IF($J156=\"\",\"\",IFERROR(INDEX('CHART OF ACCOUNTS'!H:H,MATCH('Coding Generator'!$J156,'CHART OF ACCOUNTS'!$N:$N,0)),\"Contact Finance\"))","v":""},{"$f":"IF($J156=\"\",\"\",IFERROR(INDEX('CHART OF ACCOUNTS'!D:D,MATCH('Coding Generator'!$J156,'CHART OF ACCOUNTS'!$N:$N,0)),\"Contact Finance\"))","v":""},{"$f":"IF($J156=\"\",\"\",IFERROR(INDEX('CHART OF ACCOUNTS'!F:F,MATCH('Coding Generator'!$J156,'CHART OF ACCOUNTS'!$N:$N,0)),\"Contact Finance\"))","v":""}]
[152,null,{"$f":"IF($B157=\"\",\"\",IFERROR(INDEX('Work Order Master'!K:K,MATCH('Coding Generator'!$B157,'Work Order Master'!$S:$S,0)),\"Contact Finance\"))","v":""},{"$f":"IF($B157=\"\",\"\",IFERROR(INDEX('Work Order Master'!L:L,MATCH('Coding Generator'!$B157,'Work Order Master'!$S:$S,0)),\"Contact Finance\"))","v":""},{"$f":"IF($B157=\"\",\"\",IFERROR(INDEX('Work Order Master'!M:M,MATCH('Coding Generator'!$B157,'Work Order Master'!$S:$S,0)),\"Contact Finance\"))","v":""},{"$f":"IF($B157=\"\",\"\",IFERROR(INDEX('Work Order Master'!N:N,MATCH('Coding Generator'!$B157,'Work Order Master'!$S:$S,0)),\"Contact Finance\"))","v":""},{"$f":"IF($B157=\"\",\"\",IFERROR(INDEX('Work Order Master'!U:U,MATCH('Coding Generator'!$B157,'Work Order Master'!$S:$S,0)),\"Contact Finance\"))","v":""},null,152,null,{"$f":"IF($J157=\"\",\"\",IFERROR(INDEX('CHART OF ACCOUNTS'!G:G,MATCH('Coding Generator'!$J157,'CHART OF ACCOUNTS'!$N:$N,0)),\"Contact Finance\"))","v":""},{"$f":"IF($J157=\"\",\"\",IFERROR(INDEX('CHART OF ACCOUNTS'!H:H,MATCH('Coding Generator'!$J157,'CHART OF ACCOUNTS'!$N:$N,0)),\"Contact Finance\"))","v":""},{"$f":"IF($J157=\"\",\"\",IFERROR(INDEX('CHART OF ACCOUNTS'!D:D,MATCH('Coding Generator'!$J157,'CHART OF ACCOUNTS'!$N:$N,0)),\"Contact Finance\"))","v":""},{"$f":"IF($J157=\"\",\"\",IFERROR(INDEX('CHART OF ACCOUNTS'!F:F,MATCH('Coding Generator'!$J157,'CHART OF ACCOUNTS'!$N:$N,0)),\"Contact Finance\"))","v":""}]
[153,null,{"$f":"IF($B158=\"\",\"\",IFERROR(INDEX('Work Order Master'!K:K,MATCH('Coding Generator'!$B158,'Work Order Master'!$S:$S,0)),\"Contact Finance\"))","v":""},{"$f":"IF($B158=\"\",\"\",IFERROR(INDEX('Work Order Master'!L:L,MATCH('Coding Generator'!$B158,'Work Order Master'!$S:$S,0)),\"Contact Finance\"))","v":""},{"$f":"IF($B158=\"\",\"\",IFERROR(INDEX('Work Order Master'!M:M,MATCH('Coding Generator'!$B158,'Work Order Master'!$S:$S,0)),\"Contact Finance\"))","v":""},{"$f":"IF($B158=\"\",\"\",IFERROR(INDEX('Work Order Master'!N:N,MATCH('Coding Generator'!$B158,'Work Order Master'!$S:$S,0)),\"Contact Finance\"))","v":""},{"$f":"IF($B158=\"\",\"\",IFERROR(INDEX('Work Order Master'!U:U,MATCH('Coding Generator'!$B158,'Work Order Master'!$S:$S,0)),\"Contact Finance\"))","v":""},null,153,null,{"$f":"IF($J158=\"\",\"\",IFERROR(INDEX('CHART OF ACCOUNTS'!G:G,MATCH('Coding Generator'!$J158,'CHART OF ACCOUNTS'!$N:$N,0)),\"Contact Finance\"))","v":""},{"$f":"IF($J158=\"\",\"\",IFERROR(INDEX('CHART OF ACCOUNTS'!H:H,MATCH('Coding Generator'!$J158,'CHART OF ACCOUNTS'!$N:$N,0)),\"Contact Finance\"))","v":""},{"$f":"IF($J158=\"\",\"\",IFERROR(INDEX('CHART OF ACCOUNTS'!D:D,MATCH('Coding Generator'!$J158,'CHART OF ACCOUNTS'!$N:$N,0)),\"Contact Finance\"))","v":""},{"$f":"IF($J158=\"\",\"\",IFERROR(INDEX('CHART OF ACCOUNTS'!F:F,MATCH('Coding Generator'!$J158,'CHART OF ACCOUNTS'!$N:$N,0)),\"Contact Finance\"))","v":""}]
[154,null,{"$f":"IF($B159=\"\",\"\",IFERROR(INDEX('Work Order Master'!K:K,MATCH('Coding Generator'!$B159,'Work Order Master'!$S:$S,0)),\"Contact Finance\"))","v":""},{"$f":"IF($B159=\"\",\"\",IFERROR(INDEX('Work Order Master'!L:L,MATCH('Coding Generator'!$B159,'Work Order Master'!$S:$S,0)),\"Contact Finance\"))","v":""},{"$f":"IF($B159=\"\",\"\",IFERROR(INDEX('Work Order Master'!M:M,MATCH('Coding Generator'!$B159,'Work Order Master'!$S:$S,0)),\"Contact Finance\"))","v":""},{"$f":"IF($B159=\"\",\"\",IFERROR(INDEX('Work Order Master'!N:N,MATCH('Coding Generator'!$B159,'Work Order Master'!$S:$S,0)),\"Contact Finance\"))","v":""},{"$f":"IF($B159=\"\",\"\",IFERROR(INDEX('Work Order Master'!U:U,MATCH('Coding Generator'!$B159,'Work Order Master'!$S:$S,0)),\"Contact Finance\"))","v":""},null,154,null,{"$f":"IF($J159=\"\",\"\",IFERROR(INDEX('CHART OF ACCOUNTS'!G:G,MATCH('Coding Generator'!$J159,'CHART OF ACCOUNTS'!$N:$N,0)),\"Contact Finance\"))","v":""},{"$f":"IF($J159=\"\",\"\",IFERROR(INDEX('CHART OF ACCOUNTS'!H:H,MATCH('Coding Generator'!$J159,'CHART OF ACCOUNTS'!$N:$N,0)),\"Contact Finance\"))","v":""},{"$f":"IF($J159=\"\",\"\",IFERROR(INDEX('CHART OF ACCOUNTS'!D:D,MATCH('Coding Generator'!$J159,'CHART OF ACCOUNTS'!$N:$N,0)),\"Contact Finance\"))","v":""},{"$f":"IF($J159=\"\",\"\",IFERROR(INDEX('CHART OF ACCOUNTS'!F:F,MATCH('Coding Generator'!$J159,'CHART OF ACCOUNTS'!$N:$N,0)),\"Contact Finance\"))","v":""}]
[155,null,{"$f":"IF($B160=\"\",\"\",IFERROR(INDEX('Work Order Master'!K:K,MATCH('Coding Generator'!$B160,'Work Order Master'!$S:$S,0)),\"Contact Finance\"))","v":""},{"$f":"IF($B160=\"\",\"\",IFERROR(INDEX('Work Order Master'!L:L,MATCH('Coding Generator'!$B160,'Work Order Master'!$S:$S,0)),\"Contact Finance\"))","v":""},{"$f":"IF($B160=\"\",\"\",IFERROR(INDEX('Work Order Master'!M:M,MATCH('Coding Generator'!$B160,'Work Order Master'!$S:$S,0)),\"Contact Finance\"))","v":""},{"$f":"IF($B160=\"\",\"\",IFERROR(INDEX('Work Order Master'!N:N,MATCH('Coding Generator'!$B160,'Work Order Master'!$S:$S,0)),\"Contact Finance\"))","v":""},{"$f":"IF($B160=\"\",\"\",IFERROR(INDEX('Work Order Master'!U:U,MATCH('Coding Generator'!$B160,'Work Order Master'!$S:$S,0)),\"Contact Finance\"))","v":""},null,155,null,{"$f":"IF($J160=\"\",\"\",IFERROR(INDEX('CHART OF ACCOUNTS'!G:G,MATCH('Coding Generator'!$J160,'CHART OF ACCOUNTS'!$N:$N,0)),\"Contact Finance\"))","v":""},{"$f":"IF($J160=\"\",\"\",IFERROR(INDEX('CHART OF ACCOUNTS'!H:H,MATCH('Coding Generator'!$J160,'CHART OF ACCOUNTS'!$N:$N,0)),\"Contact Finance\"))","v":""},{"$f":"IF($J160=\"\",\"\",IFERROR(INDEX('CHART OF ACCOUNTS'!D:D,MATCH('Coding Generator'!$J160,'CHART OF ACCOUNTS'!$N:$N,0)),\"Contact Finance\"))","v":""},{"$f":"IF($J160=\"\",\"\",IFERROR(INDEX('CHART OF ACCOUNTS'!F:F,MATCH('Coding Generator'!$J160,'CHART OF ACCOUNTS'!$N:$N,0)),\"Contact Finance\"))","v":""}]
[156,null,{"$f":"IF($B161=\"\",\"\",IFERROR(INDEX('Work Order Master'!K:K,MATCH('Coding Generator'!$B161,'Work Order Master'!$S:$S,0)),\"Contact Finance\"))","v":""},{"$f":"IF($B161=\"\",\"\",IFERROR(INDEX('Work Order Master'!L:L,MATCH('Coding Generator'!$B161,'Work Order Master'!$S:$S,0)),\"Contact Finance\"))","v":""},{"$f":"IF($B161=\"\",\"\",IFERROR(INDEX('Work Order Master'!M:M,MATCH('Coding Generator'!$B161,'Work Order Master'!$S:$S,0)),\"Contact Finance\"))","v":""},{"$f":"IF($B161=\"\",\"\",IFERROR(INDEX('Work Order Master'!N:N,MATCH('Coding Generator'!$B161,'Work Order Master'!$S:$S,0)),\"Contact Finance\"))","v":""},{"$f":"IF($B161=\"\",\"\",IFERROR(INDEX('Work Order Master'!U:U,MATCH('Coding Generator'!$B161,'Work Order Master'!$S:$S,0)),\"Contact Finance\"))","v":""},null,156,null,{"$f":"IF($J161=\"\",\"\",IFERROR(INDEX('CHART OF ACCOUNTS'!G:G,MATCH('Coding Generator'!$J161,'CHART OF ACCOUNTS'!$N:$N,0)),\"Contact Finance\"))","v":""},{"$f":"IF($J161=\"\",\"\",IFERROR(INDEX('CHART OF ACCOUNTS'!H:H,MATCH('Coding Generator'!$J161,'CHART OF ACCOUNTS'!$N:$N,0)),\"Contact Finance\"))","v":""},{"$f":"IF($J161=\"\",\"\",IFERROR(INDEX('CHART OF ACCOUNTS'!D:D,MATCH('Coding Generator'!$J161,'CHART OF ACCOUNTS'!$N:$N,0)),\"Contact Finance\"))","v":""},{"$f":"IF($J161=\"\",\"\",IFERROR(INDEX('CHART OF ACCOUNTS'!F:F,MATCH('Coding Generator'!$J161,'CHART OF ACCOUNTS'!$N:$N,0)),\"Contact Finance\"))","v":""}]
[157,null,{"$f":"IF($B162=\"\",\"\",IFERROR(INDEX('Work Order Master'!K:K,MATCH('Coding Generator'!$B162,'Work Order Master'!$S:$S,0)),\"Contact Finance\"))","v":""},{"$f":"IF($B162=\"\",\"\",IFERROR(INDEX('Work Order Master'!L:L,MATCH('Coding Generator'!$B162,'Work Order Master'!$S:$S,0)),\"Contact Finance\"))","v":""},{"$f":"IF($B162=\"\",\"\",IFERROR(INDEX('Work Order Master'!M:M,MATCH('Coding Generator'!$B162,'Work Order Master'!$S:$S,0)),\"Contact Finance\"))","v":""},{"$f":"IF($B162=\"\",\"\",IFERROR(INDEX('Work Order Master'!N:N,MATCH('Coding Generator'!$B162,'Work Order Master'!$S:$S,0)),\"Contact Finance\"))","v":""},{"$f":"IF($B162=\"\",\"\",IFERROR(INDEX('Work Order Master'!U:U,MATCH('Coding Generator'!$B162,'Work Order Master'!$S:$S,0)),\"Contact Finance\"))","v":""},null,157,null,{"$f":"IF($J162=\"\",\"\",IFERROR(INDEX('CHART OF ACCOUNTS'!G:G,MATCH('Coding Generator'!$J162,'CHART OF ACCOUNTS'!$N:$N,0)),\"Contact Finance\"))","v":""},{"$f":"IF($J162=\"\",\"\",IFERROR(INDEX('CHART OF ACCOUNTS'!H:H,MATCH('Coding Generator'!$J162,'CHART OF ACCOUNTS'!$N:$N,0)),\"Contact Finance\"))","v":""},{"$f":"IF($J162=\"\",\"\",IFERROR(INDEX('CHART OF ACCOUNTS'!D:D,MATCH('Coding Generator'!$J162,'CHART OF ACCOUNTS'!$N:$N,0)),\"Contact Finance\"))","v":""},{"$f":"IF($J162=\"\",\"\",IFERROR(INDEX('CHART OF ACCOUNTS'!F:F,MATCH('Coding Generator'!$J162,'CHART OF ACCOUNTS'!$N:$N,0)),\"Contact Finance\"))","v":""}]
[158,null,{"$f":"IF($B163=\"\",\"\",IFERROR(INDEX('Work Order Master'!K:K,MATCH('Coding Generator'!$B163,'Work Order Master'!$S:$S,0)),\"Contact Finance\"))","v":""},{"$f":"IF($B163=\"\",\"\",IFERROR(INDEX('Work Order Master'!L:L,MATCH('Coding Generator'!$B163,'Work Order Master'!$S:$S,0)),\"Contact Finance\"))","v":""},{"$f":"IF($B163=\"\",\"\",IFERROR(INDEX('Work Order Master'!M:M,MATCH('Coding Generator'!$B163,'Work Order Master'!$S:$S,0)),\"Contact Finance\"))","v":""},{"$f":"IF($B163=\"\",\"\",IFERROR(INDEX('Work Order Master'!N:N,MATCH('Coding Generator'!$B163,'Work Order Master'!$S:$S,0)),\"Contact Finance\"))","v":""},{"$f":"IF($B163=\"\",\"\",IFERROR(INDEX('Work Order Master'!U:U,MATCH('Coding Generator'!$B163,'Work Order Master'!$S:$S,0)),\"Contact Finance\"))","v":""},null,158,null,{"$f":"IF($J163=\"\",\"\",IFERROR(INDEX('CHART OF ACCOUNTS'!G:G,MATCH('Coding Generator'!$J163,'CHART OF ACCOUNTS'!$N:$N,0)),\"Contact Finance\"))","v":""},{"$f":"IF($J163=\"\",\"\",IFERROR(INDEX('CHART OF ACCOUNTS'!H:H,MATCH('Coding Generator'!$J163,'CHART OF ACCOUNTS'!$N:$N,0)),\"Contact Finance\"))","v":""},{"$f":"IF($J163=\"\",\"\",IFERROR(INDEX('CHART OF ACCOUNTS'!D:D,MATCH('Coding Generator'!$J163,'CHART OF ACCOUNTS'!$N:$N,0)),\"Contact Finance\"))","v":""},{"$f":"IF($J163=\"\",\"\",IFERROR(INDEX('CHART OF ACCOUNTS'!F:F,MATCH('Coding Generator'!$J163,'CHART OF ACCOUNTS'!$N:$N,0)),\"Contact Finance\"))","v":""}]
[159,null,{"$f":"IF($B164=\"\",\"\",IFERROR(INDEX('Work Order Master'!K:K,MATCH('Coding Generator'!$B164,'Work Order Master'!$S:$S,0)),\"Contact Finance\"))","v":""},{"$f":"IF($B164=\"\",\"\",IFERROR(INDEX('Work Order Master'!L:L,MATCH('Coding Generator'!$B164,'Work Order Master'!$S:$S,0)),\"Contact Finance\"))","v":""},{"$f":"IF($B164=\"\",\"\",IFERROR(INDEX('Work Order Master'!M:M,MATCH('Coding Generator'!$B164,'Work Order Master'!$S:$S,0)),\"Contact Finance\"))","v":""},{"$f":"IF($B164=\"\",\"\",IFERROR(INDEX('Work Order Master'!N:N,MATCH('Coding Generator'!$B164,'Work Order Master'!$S:$S,0)),\"Contact Finance\"))","v":""},{"$f":"IF($B164=\"\",\"\",IFERROR(INDEX('Work Order Master'!U:U,MATCH('Coding Generator'!$B164,'Work Order Master'!$S:$S,0)),\"Contact Finance\"))","v":""},null,159,null,{"$f":"IF($J164=\"\",\"\",IFERROR(INDEX('CHART OF ACCOUNTS'!G:G,MATCH('Coding Generator'!$J164,'CHART OF ACCOUNTS'!$N:$N,0)),\"Contact Finance\"))","v":""},{"$f":"IF($J164=\"\",\"\",IFERROR(INDEX('CHART OF ACCOUNTS'!H:H,MATCH('Coding Generator'!$J164,'CHART OF ACCOUNTS'!$N:$N,0)),\"Contact Finance\"))","v":""},{"$f":"IF($J164=\"\",\"\",IFERROR(INDEX('CHART OF ACCOUNTS'!D:D,MATCH('Coding Generator'!$J164,'CHART OF ACCOUNTS'!$N:$N,0)),\"Contact Finance\"))","v":""},{"$f":"IF($J164=\"\",\"\",IFERROR(INDEX('CHART OF ACCOUNTS'!F:F,MATCH('Coding Generator'!$J164,'CHART OF ACCOUNTS'!$N:$N,0)),\"Contact Finance\"))","v":""}]
[160,null,{"$f":"IF($B165=\"\",\"\",IFERROR(INDEX('Work Order Master'!K:K,MATCH('Coding Generator'!$B165,'Work Order Master'!$S:$S,0)),\"Contact Finance\"))","v":""},{"$f":"IF($B165=\"\",\"\",IFERROR(INDEX('Work Order Master'!L:L,MATCH('Coding Generator'!$B165,'Work Order Master'!$S:$S,0)),\"Contact Finance\"))","v":""},{"$f":"IF($B165=\"\",\"\",IFERROR(INDEX('Work Order Master'!M:M,MATCH('Coding Generator'!$B165,'Work Order Master'!$S:$S,0)),\"Contact Finance\"))","v":""},{"$f":"IF($B165=\"\",\"\",IFERROR(INDEX('Work Order Master'!N:N,MATCH('Coding Generator'!$B165,'Work Order Master'!$S:$S,0)),\"Contact Finance\"))","v":""},{"$f":"IF($B165=\"\",\"\",IFERROR(INDEX('Work Order Master'!U:U,MATCH('Coding Generator'!$B165,'Work Order Master'!$S:$S,0)),\"Contact Finance\"))","v":""},null,160,null,{"$f":"IF($J165=\"\",\"\",IFERROR(INDEX('CHART OF ACCOUNTS'!G:G,MATCH('Coding Generator'!$J165,'CHART OF ACCOUNTS'!$N:$N,0)),\"Contact Finance\"))","v":""},{"$f":"IF($J165=\"\",\"\",IFERROR(INDEX('CHART OF ACCOUNTS'!H:H,MATCH('Coding Generator'!$J165,'CHART OF ACCOUNTS'!$N:$N,0)),\"Contact Finance\"))","v":""},{"$f":"IF($J165=\"\",\"\",IFERROR(INDEX('CHART OF ACCOUNTS'!D:D,MATCH('Coding Generator'!$J165,'CHART OF ACCOUNTS'!$N:$N,0)),\"Contact Finance\"))","v":""},{"$f":"IF($J165=\"\",\"\",IFERROR(INDEX('CHART OF ACCOUNTS'!F:F,MATCH('Coding Generator'!$J165,'CHART OF ACCOUNTS'!$N:$N,0)),\"Contact Finance\"))","v":""}]
[161,null,{"$f":"IF($B166=\"\",\"\",IFERROR(INDEX('Work Order Master'!K:K,MATCH('Coding Generator'!$B166,'Work Order Master'!$S:$S,0)),\"Contact Finance\"))","v":""},{"$f":"IF($B166=\"\",\"\",IFERROR(INDEX('Work Order Master'!L:L,MATCH('Coding Generator'!$B166,'Work Order Master'!$S:$S,0)),\"Contact Finance\"))","v":""},{"$f":"IF($B166=\"\",\"\",IFERROR(INDEX('Work Order Master'!M:M,MATCH('Coding Generator'!$B166,'Work Order Master'!$S:$S,0)),\"Contact Finance\"))","v":""},{"$f":"IF($B166=\"\",\"\",IFERROR(INDEX('Work Order Master'!N:N,MATCH('Coding Generator'!$B166,'Work Order Master'!$S:$S,0)),\"Contact Finance\"))","v":""},{"$f":"IF($B166=\"\",\"\",IFERROR(INDEX('Work Order Master'!U:U,MATCH('Coding Generator'!$B166,'Work Order Master'!$S:$S,0)),\"Contact Finance\"))","v":""},null,161,null,{"$f":"IF($J166=\"\",\"\",IFERROR(INDEX('CHART OF ACCOUNTS'!G:G,MATCH('Coding Generator'!$J166,'CHART OF ACCOUNTS'!$N:$N,0)),\"Contact Finance\"))","v":""},{"$f":"IF($J166=\"\",\"\",IFERROR(INDEX('CHART OF ACCOUNTS'!H:H,MATCH('Coding Generator'!$J166,'CHART OF ACCOUNTS'!$N:$N,0)),\"Contact Finance\"))","v":""},{"$f":"IF($J166=\"\",\"\",IFERROR(INDEX('CHART OF ACCOUNTS'!D:D,MATCH('Coding Generator'!$J166,'CHART OF ACCOUNTS'!$N:$N,0)),\"Contact Finance\"))","v":""},{"$f":"IF($J166=\"\",\"\",IFERROR(INDEX('CHART OF ACCOUNTS'!F:F,MATCH('Coding Generator'!$J166,'CHART OF ACCOUNTS'!$N:$N,0)),\"Contact Finance\"))","v":""}]
[162,null,{"$f":"IF($B167=\"\",\"\",IFERROR(INDEX('Work Order Master'!K:K,MATCH('Coding Generator'!$B167,'Work Order Master'!$S:$S,0)),\"Contact Finance\"))","v":""},{"$f":"IF($B167=\"\",\"\",IFERROR(INDEX('Work Order Master'!L:L,MATCH('Coding Generator'!$B167,'Work Order Master'!$S:$S,0)),\"Contact Finance\"))","v":""},{"$f":"IF($B167=\"\",\"\",IFERROR(INDEX('Work Order Master'!M:M,MATCH('Coding Generator'!$B167,'Work Order Master'!$S:$S,0)),\"Contact Finance\"))","v":""},{"$f":"IF($B167=\"\",\"\",IFERROR(INDEX('Work Order Master'!N:N,MATCH('Coding Generator'!$B167,'Work Order Master'!$S:$S,0)),\"Contact Finance\"))","v":""},{"$f":"IF($B167=\"\",\"\",IFERROR(INDEX('Work Order Master'!U:U,MATCH('Coding Generator'!$B167,'Work Order Master'!$S:$S,0)),\"Contact Finance\"))","v":""},null,162,null,{"$f":"IF($J167=\"\",\"\",IFERROR(INDEX('CHART OF ACCOUNTS'!G:G,MATCH('Coding Generator'!$J167,'CHART OF ACCOUNTS'!$N:$N,0)),\"Contact Finance\"))","v":""},{"$f":"IF($J167=\"\",\"\",IFERROR(INDEX('CHART OF ACCOUNTS'!H:H,MATCH('Coding Generator'!$J167,'CHART OF ACCOUNTS'!$N:$N,0)),\"Contact Finance\"))","v":""},{"$f":"IF($J167=\"\",\"\",IFERROR(INDEX('CHART OF ACCOUNTS'!D:D,MATCH('Coding Generator'!$J167,'CHART OF ACCOUNTS'!$N:$N,0)),\"Contact Finance\"))","v":""},{"$f":"IF($J167=\"\",\"\",IFERROR(INDEX('CHART OF ACCOUNTS'!F:F,MATCH('Coding Generator'!$J167,'CHART OF ACCOUNTS'!$N:$N,0)),\"Contact Finance\"))","v":""}]
[163,null,{"$f":"IF($B168=\"\",\"\",IFERROR(INDEX('Work Order Master'!K:K,MATCH('Coding Generator'!$B168,'Work Order Master'!$S:$S,0)),\"Contact Finance\"))","v":""},{"$f":"IF($B168=\"\",\"\",IFERROR(INDEX('Work Order Master'!L:L,MATCH('Coding Generator'!$B168,'Work Order Master'!$S:$S,0)),\"Contact Finance\"))","v":""},{"$f":"IF($B168=\"\",\"\",IFERROR(INDEX('Work Order Master'!M:M,MATCH('Coding Generator'!$B168,'Work Order Master'!$S:$S,0)),\"Contact Finance\"))","v":""},{"$f":"IF($B168=\"\",\"\",IFERROR(INDEX('Work Order Master'!N:N,MATCH('Coding Generator'!$B168,'Work Order Master'!$S:$S,0)),\"Contact Finance\"))","v":""},{"$f":"IF($B168=\"\",\"\",IFERROR(INDEX('Work Order Master'!U:U,MATCH('Coding Generator'!$B168,'Work Order Master'!$S:$S,0)),\"Contact Finance\"))","v":""},null,163,null,{"$f":"IF($J168=\"\",\"\",IFERROR(INDEX('CHART OF ACCOUNTS'!G:G,MATCH('Coding Generator'!$J168,'CHART OF ACCOUNTS'!$N:$N,0)),\"Contact Finance\"))","v":""},{"$f":"IF($J168=\"\",\"\",IFERROR(INDEX('CHART OF ACCOUNTS'!H:H,MATCH('Coding Generator'!$J168,'CHART OF ACCOUNTS'!$N:$N,0)),\"Contact Finance\"))","v":""},{"$f":"IF($J168=\"\",\"\",IFERROR(INDEX('CHART OF ACCOUNTS'!D:D,MATCH('Coding Generator'!$J168,'CHART OF ACCOUNTS'!$N:$N,0)),\"Contact Finance\"))","v":""},{"$f":"IF($J168=\"\",\"\",IFERROR(INDEX('CHART OF ACCOUNTS'!F:F,MATCH('Coding Generator'!$J168,'CHART OF ACCOUNTS'!$N:$N,0)),\"Contact Finance\"))","v":""}]
[164,null,{"$f":"IF($B169=\"\",\"\",IFERROR(INDEX('Work Order Master'!K:K,MATCH('Coding Generator'!$B169,'Work Order Master'!$S:$S,0)),\"Contact Finance\"))","v":""},{"$f":"IF($B169=\"\",\"\",IFERROR(INDEX('Work Order Master'!L:L,MATCH('Coding Generator'!$B169,'Work Order Master'!$S:$S,0)),\"Contact Finance\"))","v":""},{"$f":"IF($B169=\"\",\"\",IFERROR(INDEX('Work Order Master'!M:M,MATCH('Coding Generator'!$B169,'Work Order Master'!$S:$S,0)),\"Contact Finance\"))","v":""},{"$f":"IF($B169=\"\",\"\",IFERROR(INDEX('Work Order Master'!N:N,MATCH('Coding Generator'!$B169,'Work Order Master'!$S:$S,0)),\"Contact Finance\"))","v":""},{"$f":"IF($B169=\"\",\"\",IFERROR(INDEX('Work Order Master'!U:U,MATCH('Coding Generator'!$B169,'Work Order Master'!$S:$S,0)),\"Contact Finance\"))","v":""},null,164,null,{"$f":"IF($J169=\"\",\"\",IFERROR(INDEX('CHART OF ACCOUNTS'!G:G,MATCH('Coding Generator'!$J169,'CHART OF ACCOUNTS'!$N:$N,0)),\"Contact Finance\"))","v":""},{"$f":"IF($J169=\"\",\"\",IFERROR(INDEX('CHART OF ACCOUNTS'!H:H,MATCH('Coding Generator'!$J169,'CHART OF ACCOUNTS'!$N:$N,0)),\"Contact Finance\"))","v":""},{"$f":"IF($J169=\"\",\"\",IFERROR(INDEX('CHART OF ACCOUNTS'!D:D,MATCH('Coding Generator'!$J169,'CHART OF ACCOUNTS'!$N:$N,0)),\"Contact Finance\"))","v":""},{"$f":"IF($J169=\"\",\"\",IFERROR(INDEX('CHART OF ACCOUNTS'!F:F,MATCH('Coding Generator'!$J169,'CHART OF ACCOUNTS'!$N:$N,0)),\"Contact Finance\"))","v":""}]
[165,null,{"$f":"IF($B170=\"\",\"\",IFERROR(INDEX('Work Order Master'!K:K,MATCH('Coding Generator'!$B170,'Work Order Master'!$S:$S,0)),\"Contact Finance\"))","v":""},{"$f":"IF($B170=\"\",\"\",IFERROR(INDEX('Work Order Master'!L:L,MATCH('Coding Generator'!$B170,'Work Order Master'!$S:$S,0)),\"Contact Finance\"))","v":""},{"$f":"IF($B170=\"\",\"\",IFERROR(INDEX('Work Order Master'!M:M,MATCH('Coding Generator'!$B170,'Work Order Master'!$S:$S,0)),\"Contact Finance\"))","v":""},{"$f":"IF($B170=\"\",\"\",IFERROR(INDEX('Work Order Master'!N:N,MATCH('Coding Generator'!$B170,'Work Order Master'!$S:$S,0)),\"Contact Finance\"))","v":""},{"$f":"IF($B170=\"\",\"\",IFERROR(INDEX('Work Order Master'!U:U,MATCH('Coding Generator'!$B170,'Work Order Master'!$S:$S,0)),\"Contact Finance\"))","v":""},null,165,null,{"$f":"IF($J170=\"\",\"\",IFERROR(INDEX('CHART OF ACCOUNTS'!G:G,MATCH('Coding Generator'!$J170,'CHART OF ACCOUNTS'!$N:$N,0)),\"Contact Finance\"))","v":""},{"$f":"IF($J170=\"\",\"\",IFERROR(INDEX('CHART OF ACCOUNTS'!H:H,MATCH('Coding Generator'!$J170,'CHART OF ACCOUNTS'!$N:$N,0)),\"Contact Finance\"))","v":""},{"$f":"IF($J170=\"\",\"\",IFERROR(INDEX('CHART OF ACCOUNTS'!D:D,MATCH('Coding Generator'!$J170,'CHART OF ACCOUNTS'!$N:$N,0)),\"Contact Finance\"))","v":""},{"$f":"IF($J170=\"\",\"\",IFERROR(INDEX('CHART OF ACCOUNTS'!F:F,MATCH('Coding Generator'!$J170,'CHART OF ACCOUNTS'!$N:$N,0)),\"Contact Finance\"))","v":""}]
[166,null,{"$f":"IF($B171=\"\",\"\",IFERROR(INDEX('Work Order Master'!K:K,MATCH('Coding Generator'!$B171,'Work Order Master'!$S:$S,0)),\"Contact Finance\"))","v":""},{"$f":"IF($B171=\"\",\"\",IFERROR(INDEX('Work Order Master'!L:L,MATCH('Coding Generator'!$B171,'Work Order Master'!$S:$S,0)),\"Contact Finance\"))","v":""},{"$f":"IF($B171=\"\",\"\",IFERROR(INDEX('Work Order Master'!M:M,MATCH('Coding Generator'!$B171,'Work Order Master'!$S:$S,0)),\"Contact Finance\"))","v":""},{"$f":"IF($B171=\"\",\"\",IFERROR(INDEX('Work Order Master'!N:N,MATCH('Coding Generator'!$B171,'Work Order Master'!$S:$S,0)),\"Contact Finance\"))","v":""},{"$f":"IF($B171=\"\",\"\",IFERROR(INDEX('Work Order Master'!U:U,MATCH('Coding Generator'!$B171,'Work Order Master'!$S:$S,0)),\"Contact Finance\"))","v":""},null,166,null,{"$f":"IF($J171=\"\",\"\",IFERROR(INDEX('CHART OF ACCOUNTS'!G:G,MATCH('Coding Generator'!$J171,'CHART OF ACCOUNTS'!$N:$N,0)),\"Contact Finance\"))","v":""},{"$f":"IF($J171=\"\",\"\",IFERROR(INDEX('CHART OF ACCOUNTS'!H:H,MATCH('Coding Generator'!$J171,'CHART OF ACCOUNTS'!$N:$N,0)),\"Contact Finance\"))","v":""},{"$f":"IF($J171=\"\",\"\",IFERROR(INDEX('CHART OF ACCOUNTS'!D:D,MATCH('Coding Generator'!$J171,'CHART OF ACCOUNTS'!$N:$N,0)),\"Contact Finance\"))","v":""},{"$f":"IF($J171=\"\",\"\",IFERROR(INDEX('CHART OF ACCOUNTS'!F:F,MATCH('Coding Generator'!$J171,'CHART OF ACCOUNTS'!$N:$N,0)),\"Contact Finance\"))","v":""}]
[167,null,{"$f":"IF($B172=\"\",\"\",IFERROR(INDEX('Work Order Master'!K:K,MATCH('Coding Generator'!$B172,'Work Order Master'!$S:$S,0)),\"Contact Finance\"))","v":""},{"$f":"IF($B172=\"\",\"\",IFERROR(INDEX('Work Order Master'!L:L,MATCH('Coding Generator'!$B172,'Work Order Master'!$S:$S,0)),\"Contact Finance\"))","v":""},{"$f":"IF($B172=\"\",\"\",IFERROR(INDEX('Work Order Master'!M:M,MATCH('Coding Generator'!$B172,'Work Order Master'!$S:$S,0)),\"Contact Finance\"))","v":""},{"$f":"IF($B172=\"\",\"\",IFERROR(INDEX('Work Order Master'!N:N,MATCH('Coding Generator'!$B172,'Work Order Master'!$S:$S,0)),\"Contact Finance\"))","v":""},{"$f":"IF($B172=\"\",\"\",IFERROR(INDEX('Work Order Master'!U:U,MATCH('Coding Generator'!$B172,'Work Order Master'!$S:$S,0)),\"Contact Finance\"))","v":""},null,167,null,{"$f":"IF($J172=\"\",\"\",IFERROR(INDEX('CHART OF ACCOUNTS'!G:G,MATCH('Coding Generator'!$J172,'CHART OF ACCOUNTS'!$N:$N,0)),\"Contact Finance\"))","v":""},{"$f":"IF($J172=\"\",\"\",IFERROR(INDEX('CHART OF ACCOUNTS'!H:H,MATCH('Coding Generator'!$J172,'CHART OF ACCOUNTS'!$N:$N,0)),\"Contact Finance\"))","v":""},{"$f":"IF($J172=\"\",\"\",IFERROR(INDEX('CHART OF ACCOUNTS'!D:D,MATCH('Coding Generator'!$J172,'CHART OF ACCOUNTS'!$N:$N,0)),\"Contact Finance\"))","v":""},{"$f":"IF($J172=\"\",\"\",IFERROR(INDEX('CHART OF ACCOUNTS'!F:F,MATCH('Coding Generator'!$J172,'CHART OF ACCOUNTS'!$N:$N,0)),\"Contact Finance\"))","v":""}]
[168,null,{"$f":"IF($B173=\"\",\"\",IFERROR(INDEX('Work Order Master'!K:K,MATCH('Coding Generator'!$B173,'Work Order Master'!$S:$S,0)),\"Contact Finance\"))","v":""},{"$f":"IF($B173=\"\",\"\",IFERROR(INDEX('Work Order Master'!L:L,MATCH('Coding Generator'!$B173,'Work Order Master'!$S:$S,0)),\"Contact Finance\"))","v":""},{"$f":"IF($B173=\"\",\"\",IFERROR(INDEX('Work Order Master'!M:M,MATCH('Coding Generator'!$B173,'Work Order Master'!$S:$S,0)),\"Contact Finance\"))","v":""},{"$f":"IF($B173=\"\",\"\",IFERROR(INDEX('Work Order Master'!N:N,MATCH('Coding Generator'!$B173,'Work Order Master'!$S:$S,0)),\"Contact Finance\"))","v":""},{"$f":"IF($B173=\"\",\"\",IFERROR(INDEX('Work Order Master'!U:U,MATCH('Coding Generator'!$B173,'Work Order Master'!$S:$S,0)),\"Contact Finance\"))","v":""},null,168,null,{"$f":"IF($J173=\"\",\"\",IFERROR(INDEX('CHART OF ACCOUNTS'!G:G,MATCH('Coding Generator'!$J173,'CHART OF ACCOUNTS'!$N:$N,0)),\"Contact Finance\"))","v":""},{"$f":"IF($J173=\"\",\"\",IFERROR(INDEX('CHART OF ACCOUNTS'!H:H,MATCH('Coding Generator'!$J173,'CHART OF ACCOUNTS'!$N:$N,0)),\"Contact Finance\"))","v":""},{"$f":"IF($J173=\"\",\"\",IFERROR(INDEX('CHART OF ACCOUNTS'!D:D,MATCH('Coding Generator'!$J173,'CHART OF ACCOUNTS'!$N:$N,0)),\"Contact Finance\"))","v":""},{"$f":"IF($J173=\"\",\"\",IFERROR(INDEX('CHART OF ACCOUNTS'!F:F,MATCH('Coding Generator'!$J173,'CHART OF ACCOUNTS'!$N:$N,0)),\"Contact Finance\"))","v":""}]
[169,null,{"$f":"IF($B174=\"\",\"\",IFERROR(INDEX('Work Order Master'!K:K,MATCH('Coding Generator'!$B174,'Work Order Master'!$S:$S,0)),\"Contact Finance\"))","v":""},{"$f":"IF($B174=\"\",\"\",IFERROR(INDEX('Work Order Master'!L:L,MATCH('Coding Generator'!$B174,'Work Order Master'!$S:$S,0)),\"Contact Finance\"))","v":""},{"$f":"IF($B174=\"\",\"\",IFERROR(INDEX('Work Order Master'!M:M,MATCH('Coding Generator'!$B174,'Work Order Master'!$S:$S,0)),\"Contact Finance\"))","v":""},{"$f":"IF($B174=\"\",\"\",IFERROR(INDEX('Work Order Master'!N:N,MATCH('Coding Generator'!$B174,'Work Order Master'!$S:$S,0)),\"Contact Finance\"))","v":""},{"$f":"IF($B174=\"\",\"\",IFERROR(INDEX('Work Order Master'!U:U,MATCH('Coding Generator'!$B174,'Work Order Master'!$S:$S,0)),\"Contact Finance\"))","v":""},null,169,null,{"$f":"IF($J174=\"\",\"\",IFERROR(INDEX('CHART OF ACCOUNTS'!G:G,MATCH('Coding Generator'!$J174,'CHART OF ACCOUNTS'!$N:$N,0)),\"Contact Finance\"))","v":""},{"$f":"IF($J174=\"\",\"\",IFERROR(INDEX('CHART OF ACCOUNTS'!H:H,MATCH('Coding Generator'!$J174,'CHART OF ACCOUNTS'!$N:$N,0)),\"Contact Finance\"))","v":""},{"$f":"IF($J174=\"\",\"\",IFERROR(INDEX('CHART OF ACCOUNTS'!D:D,MATCH('Coding Generator'!$J174,'CHART OF ACCOUNTS'!$N:$N,0)),\"Contact Finance\"))","v":""},{"$f":"IF($J174=\"\",\"\",IFERROR(INDEX('CHART OF ACCOUNTS'!F:F,MATCH('Coding Generator'!$J174,'CHART OF ACCOUNTS'!$N:$N,0)),\"Contact Finance\"))","v":""}]
[170,null,{"$f":"IF($B175=\"\",\"\",IFERROR(INDEX('Work Order Master'!K:K,MATCH('Coding Generator'!$B175,'Work Order Master'!$S:$S,0)),\"Contact Finance\"))","v":""},{"$f":"IF($B175=\"\",\"\",IFERROR(INDEX('Work Order Master'!L:L,MATCH('Coding Generator'!$B175,'Work Order Master'!$S:$S,0)),\"Contact Finance\"))","v":""},{"$f":"IF($B175=\"\",\"\",IFERROR(INDEX('Work Order Master'!M:M,MATCH('Coding Generator'!$B175,'Work Order Master'!$S:$S,0)),\"Contact Finance\"))","v":""},{"$f":"IF($B175=\"\",\"\",IFERROR(INDEX('Work Order Master'!N:N,MATCH('Coding Generator'!$B175,'Work Order Master'!$S:$S,0)),\"Contact Finance\"))","v":""},{"$f":"IF($B175=\"\",\"\",IFERROR(INDEX('Work Order Master'!U:U,MATCH('Coding Generator'!$B175,'Work Order Master'!$S:$S,0)),\"Contact Finance\"))","v":""},null,170,null,{"$f":"IF($J175=\"\",\"\",IFERROR(INDEX('CHART OF ACCOUNTS'!G:G,MATCH('Coding Generator'!$J175,'CHART OF ACCOUNTS'!$N:$N,0)),\"Contact Finance\"))","v":""},{"$f":"IF($J175=\"\",\"\",IFERROR(INDEX('CHART OF ACCOUNTS'!H:H,MATCH('Coding Generator'!$J175,'CHART OF ACCOUNTS'!$N:$N,0)),\"Contact Finance\"))","v":""},{"$f":"IF($J175=\"\",\"\",IFERROR(INDEX('CHART OF ACCOUNTS'!D:D,MATCH('Coding Generator'!$J175,'CHART OF ACCOUNTS'!$N:$N,0)),\"Contact Finance\"))","v":""},{"$f":"IF($J175=\"\",\"\",IFERROR(INDEX('CHART OF ACCOUNTS'!F:F,MATCH('Coding Generator'!$J175,'CHART OF ACCOUNTS'!$N:$N,0)),\"Contact Finance\"))","v":""}]
[171,null,{"$f":"IF($B176=\"\",\"\",IFERROR(INDEX('Work Order Master'!K:K,MATCH('Coding Generator'!$B176,'Work Order Master'!$S:$S,0)),\"Contact Finance\"))","v":""},{"$f":"IF($B176=\"\",\"\",IFERROR(INDEX('Work Order Master'!L:L,MATCH('Coding Generator'!$B176,'Work Order Master'!$S:$S,0)),\"Contact Finance\"))","v":""},{"$f":"IF($B176=\"\",\"\",IFERROR(INDEX('Work Order Master'!M:M,MATCH('Coding Generator'!$B176,'Work Order Master'!$S:$S,0)),\"Contact Finance\"))","v":""},{"$f":"IF($B176=\"\",\"\",IFERROR(INDEX('Work Order Master'!N:N,MATCH('Coding Generator'!$B176,'Work Order Master'!$S:$S,0)),\"Contact Finance\"))","v":""},{"$f":"IF($B176=\"\",\"\",IFERROR(INDEX('Work Order Master'!U:U,MATCH('Coding Generator'!$B176,'Work Order Master'!$S:$S,0)),\"Contact Finance\"))","v":""},null,171,null,{"$f":"IF($J176=\"\",\"\",IFERROR(INDEX('CHART OF ACCOUNTS'!G:G,MATCH('Coding Generator'!$J176,'CHART OF ACCOUNTS'!$N:$N,0)),\"Contact Finance\"))","v":""},{"$f":"IF($J176=\"\",\"\",IFERROR(INDEX('CHART OF ACCOUNTS'!H:H,MATCH('Coding Generator'!$J176,'CHART OF ACCOUNTS'!$N:$N,0)),\"Contact Finance\"))","v":""},{"$f":"IF($J176=\"\",\"\",IFERROR(INDEX('CHART OF ACCOUNTS'!D:D,MATCH('Coding Generator'!$J176,'CHART OF ACCOUNTS'!$N:$N,0)),\"Contact Finance\"))","v":""},{"$f":"IF($J176=\"\",\"\",IFERROR(INDEX('CHART OF ACCOUNTS'!F:F,MATCH('Coding Generator'!$J176,'CHART OF ACCOUNTS'!$N:$N,0)),\"Contact Finance\"))","v":""}]
[172,null,{"$f":"IF($B177=\"\",\"\",IFERROR(INDEX('Work Order Master'!K:K,MATCH('Coding Generator'!$B177,'Work Order Master'!$S:$S,0)),\"Contact Finance\"))","v":""},{"$f":"IF($B177=\"\",\"\",IFERROR(INDEX('Work Order Master'!L:L,MATCH('Coding Generator'!$B177,'Work Order Master'!$S:$S,0)),\"Contact Finance\"))","v":""},{"$f":"IF($B177=\"\",\"\",IFERROR(INDEX('Work Order Master'!M:M,MATCH('Coding Generator'!$B177,'Work Order Master'!$S:$S,0)),\"Contact Finance\"))","v":""},{"$f":"IF($B177=\"\",\"\",IFERROR(INDEX('Work Order Master'!N:N,MATCH('Coding Generator'!$B177,'Work Order Master'!$S:$S,0)),\"Contact Finance\"))","v":""},{"$f":"IF($B177=\"\",\"\",IFERROR(INDEX('Work Order Master'!U:U,MATCH('Coding Generator'!$B177,'Work Order Master'!$S:$S,0)),\"Contact Finance\"))","v":""},null,172,null,{"$f":"IF($J177=\"\",\"\",IFERROR(INDEX('CHART OF ACCOUNTS'!G:G,MATCH('Coding Generator'!$J177,'CHART OF ACCOUNTS'!$N:$N,0)),\"Contact Finance\"))","v":""},{"$f":"IF($J177=\"\",\"\",IFERROR(INDEX('CHART OF ACCOUNTS'!H:H,MATCH('Coding Generator'!$J177,'CHART OF ACCOUNTS'!$N:$N,0)),\"Contact Finance\"))","v":""},{"$f":"IF($J177=\"\",\"\",IFERROR(INDEX('CHART OF ACCOUNTS'!D:D,MATCH('Coding Generator'!$J177,'CHART OF ACCOUNTS'!$N:$N,0)),\"Contact Finance\"))","v":""},{"$f":"IF($J177=\"\",\"\",IFERROR(INDEX('CHART OF ACCOUNTS'!F:F,MATCH('Coding Generator'!$J177,'CHART OF ACCOUNTS'!$N:$N,0)),\"Contact Finance\"))","v":""}]
[173,null,{"$f":"IF($B178=\"\",\"\",IFERROR(INDEX('Work Order Master'!K:K,MATCH('Coding Generator'!$B178,'Work Order Master'!$S:$S,0)),\"Contact Finance\"))","v":""},{"$f":"IF($B178=\"\",\"\",IFERROR(INDEX('Work Order Master'!L:L,MATCH('Coding Generator'!$B178,'Work Order Master'!$S:$S,0)),\"Contact Finance\"))","v":""},{"$f":"IF($B178=\"\",\"\",IFERROR(INDEX('Work Order Master'!M:M,MATCH('Coding Generator'!$B178,'Work Order Master'!$S:$S,0)),\"Contact Finance\"))","v":""},{"$f":"IF($B178=\"\",\"\",IFERROR(INDEX('Work Order Master'!N:N,MATCH('Coding Generator'!$B178,'Work Order Master'!$S:$S,0)),\"Contact Finance\"))","v":""},{"$f":"IF($B178=\"\",\"\",IFERROR(INDEX('Work Order Master'!U:U,MATCH('Coding Generator'!$B178,'Work Order Master'!$S:$S,0)),\"Contact Finance\"))","v":""},null,173,null,{"$f":"IF($J178=\"\",\"\",IFERROR(INDEX('CHART OF ACCOUNTS'!G:G,MATCH('Coding Generator'!$J178,'CHART OF ACCOUNTS'!$N:$N,0)),\"Contact Finance\"))","v":""},{"$f":"IF($J178=\"\",\"\",IFERROR(INDEX('CHART OF ACCOUNTS'!H:H,MATCH('Coding Generator'!$J178,'CHART OF ACCOUNTS'!$N:$N,0)),\"Contact Finance\"))","v":""},{"$f":"IF($J178=\"\",\"\",IFERROR(INDEX('CHART OF ACCOUNTS'!D:D,MATCH('Coding Generator'!$J178,'CHART OF ACCOUNTS'!$N:$N,0)),\"Contact Finance\"))","v":""},{"$f":"IF($J178=\"\",\"\",IFERROR(INDEX('CHART OF ACCOUNTS'!F:F,MATCH('Coding Generator'!$J178,'CHART OF ACCOUNTS'!$N:$N,0)),\"Contact Finance\"))","v":""}]
[174,null,{"$f":"IF($B179=\"\",\"\",IFERROR(INDEX('Work Order Master'!K:K,MATCH('Coding Generator'!$B179,'Work Order Master'!$S:$S,0)),\"Contact Finance\"))","v":""},{"$f":"IF($B179=\"\",\"\",IFERROR(INDEX('Work Order Master'!L:L,MATCH('Coding Generator'!$B179,'Work Order Master'!$S:$S,0)),\"Contact Finance\"))","v":""},{"$f":"IF($B179=\"\",\"\",IFERROR(INDEX('Work Order Master'!M:M,MATCH('Coding Generator'!$B179,'Work Order Master'!$S:$S,0)),\"Contact Finance\"))","v":""},{"$f":"IF($B179=\"\",\"\",IFERROR(INDEX('Work Order Master'!N:N,MATCH('Coding Generator'!$B179,'Work Order Master'!$S:$S,0)),\"Contact Finance\"))","v":""},{"$f":"IF($B179=\"\",\"\",IFERROR(INDEX('Work Order Master'!U:U,MATCH('Coding Generator'!$B179,'Work Order Master'!$S:$S,0)),\"Contact Finance\"))","v":""},null,174,null,{"$f":"IF($J179=\"\",\"\",IFERROR(INDEX('CHART OF ACCOUNTS'!G:G,MATCH('Coding Generator'!$J179,'CHART OF ACCOUNTS'!$N:$N,0)),\"Contact Finance\"))","v":""},{"$f":"IF($J179=\"\",\"\",IFERROR(INDEX('CHART OF ACCOUNTS'!H:H,MATCH('Coding Generator'!$J179,'CHART OF ACCOUNTS'!$N:$N,0)),\"Contact Finance\"))","v":""},{"$f":"IF($J179=\"\",\"\",IFERROR(INDEX('CHART OF ACCOUNTS'!D:D,MATCH('Coding Generator'!$J179,'CHART OF ACCOUNTS'!$N:$N,0)),\"Contact Finance\"))","v":""},{"$f":"IF($J179=\"\",\"\",IFERROR(INDEX('CHART OF ACCOUNTS'!F:F,MATCH('Coding Generator'!$J179,'CHART OF ACCOUNTS'!$N:$N,0)),\"Contact Finance\"))","v":""}]
[175,null,{"$f":"IF($B180=\"\",\"\",IFERROR(INDEX('Work Order Master'!K:K,MATCH('Coding Generator'!$B180,'Work Order Master'!$S:$S,0)),\"Contact Finance\"))","v":""},{"$f":"IF($B180=\"\",\"\",IFERROR(INDEX('Work Order Master'!L:L,MATCH('Coding Generator'!$B180,'Work Order Master'!$S:$S,0)),\"Contact Finance\"))","v":""},{"$f":"IF($B180=\"\",\"\",IFERROR(INDEX('Work Order Master'!M:M,MATCH('Coding Generator'!$B180,'Work Order Master'!$S:$S,0)),\"Contact Finance\"))","v":""},{"$f":"IF($B180=\"\",\"\",IFERROR(INDEX('Work Order Master'!N:N,MATCH('Coding Generator'!$B180,'Work Order Master'!$S:$S,0)),\"Contact Finance\"))","v":""},{"$f":"IF($B180=\"\",\"\",IFERROR(INDEX('Work Order Master'!U:U,MATCH('Coding Generator'!$B180,'Work Order Master'!$S:$S,0)),\"Contact Finance\"))","v":""},null,175,null,{"$f":"IF($J180=\"\",\"\",IFERROR(INDEX('CHART OF ACCOUNTS'!G:G,MATCH('Coding Generator'!$J180,'CHART OF ACCOUNTS'!$N:$N,0)),\"Contact Finance\"))","v":""},{"$f":"IF($J180=\"\",\"\",IFERROR(INDEX('CHART OF ACCOUNTS'!H:H,MATCH('Coding Generator'!$J180,'CHART OF ACCOUNTS'!$N:$N,0)),\"Contact Finance\"))","v":""},{"$f":"IF($J180=\"\",\"\",IFERROR(INDEX('CHART OF ACCOUNTS'!D:D,MATCH('Coding Generator'!$J180,'CHART OF ACCOUNTS'!$N:$N,0)),\"Contact Finance\"))","v":""},{"$f":"IF($J180=\"\",\"\",IFERROR(INDEX('CHART OF ACCOUNTS'!F:F,MATCH('Coding Generator'!$J180,'CHART OF ACCOUNTS'!$N:$N,0)),\"Contact Finance\"))","v":""}]
[176,null,{"$f":"IF($B181=\"\",\"\",IFERROR(INDEX('Work Order Master'!K:K,MATCH('Coding Generator'!$B181,'Work Order Master'!$S:$S,0)),\"Contact Finance\"))","v":""},{"$f":"IF($B181=\"\",\"\",IFERROR(INDEX('Work Order Master'!L:L,MATCH('Coding Generator'!$B181,'Work Order Master'!$S:$S,0)),\"Contact Finance\"))","v":""},{"$f":"IF($B181=\"\",\"\",IFERROR(INDEX('Work Order Master'!M:M,MATCH('Coding Generator'!$B181,'Work Order Master'!$S:$S,0)),\"Contact Finance\"))","v":""},{"$f":"IF($B181=\"\",\"\",IFERROR(INDEX('Work Order Master'!N:N,MATCH('Coding Generator'!$B181,'Work Order Master'!$S:$S,0)),\"Contact Finance\"))","v":""},{"$f":"IF($B181=\"\",\"\",IFERROR(INDEX('Work Order Master'!U:U,MATCH('Coding Generator'!$B181,'Work Order Master'!$S:$S,0)),\"Contact Finance\"))","v":""},null,176,null,{"$f":"IF($J181=\"\",\"\",IFERROR(INDEX('CHART OF ACCOUNTS'!G:G,MATCH('Coding Generator'!$J181,'CHART OF ACCOUNTS'!$N:$N,0)),\"Contact Finance\"))","v":""},{"$f":"IF($J181=\"\",\"\",IFERROR(INDEX('CHART OF ACCOUNTS'!H:H,MATCH('Coding Generator'!$J181,'CHART OF ACCOUNTS'!$N:$N,0)),\"Contact Finance\"))","v":""},{"$f":"IF($J181=\"\",\"\",IFERROR(INDEX('CHART OF ACCOUNTS'!D:D,MATCH('Coding Generator'!$J181,'CHART OF ACCOUNTS'!$N:$N,0)),\"Contact Finance\"))","v":""},{"$f":"IF($J181=\"\",\"\",IFERROR(INDEX('CHART OF ACCOUNTS'!F:F,MATCH('Coding Generator'!$J181,'CHART OF ACCOUNTS'!$N:$N,0)),\"Contact Finance\"))","v":""}]
[177,null,{"$f":"IF($B182=\"\",\"\",IFERROR(INDEX('Work Order Master'!K:K,MATCH('Coding Generator'!$B182,'Work Order Master'!$S:$S,0)),\"Contact Finance\"))","v":""},{"$f":"IF($B182=\"\",\"\",IFERROR(INDEX('Work Order Master'!L:L,MATCH('Coding Generator'!$B182,'Work Order Master'!$S:$S,0)),\"Contact Finance\"))","v":""},{"$f":"IF($B182=\"\",\"\",IFERROR(INDEX('Work Order Master'!M:M,MATCH('Coding Generator'!$B182,'Work Order Master'!$S:$S,0)),\"Contact Finance\"))","v":""},{"$f":"IF($B182=\"\",\"\",IFERROR(INDEX('Work Order Master'!N:N,MATCH('Coding Generator'!$B182,'Work Order Master'!$S:$S,0)),\"Contact Finance\"))","v":""},{"$f":"IF($B182=\"\",\"\",IFERROR(INDEX('Work Order Master'!U:U,MATCH('Coding Generator'!$B182,'Work Order Master'!$S:$S,0)),\"Contact Finance\"))","v":""},null,177,null,{"$f":"IF($J182=\"\",\"\",IFERROR(INDEX('CHART OF ACCOUNTS'!G:G,MATCH('Coding Generator'!$J182,'CHART OF ACCOUNTS'!$N:$N,0)),\"Contact Finance\"))","v":""},{"$f":"IF($J182=\"\",\"\",IFERROR(INDEX('CHART OF ACCOUNTS'!H:H,MATCH('Coding Generator'!$J182,'CHART OF ACCOUNTS'!$N:$N,0)),\"Contact Finance\"))","v":""},{"$f":"IF($J182=\"\",\"\",IFERROR(INDEX('CHART OF ACCOUNTS'!D:D,MATCH('Coding Generator'!$J182,'CHART OF ACCOUNTS'!$N:$N,0)),\"Contact Finance\"))","v":""},{"$f":"IF($J182=\"\",\"\",IFERROR(INDEX('CHART OF ACCOUNTS'!F:F,MATCH('Coding Generator'!$J182,'CHART OF ACCOUNTS'!$N:$N,0)),\"Contact Finance\"))","v":""}]
[178,null,{"$f":"IF($B183=\"\",\"\",IFERROR(INDEX('Work Order Master'!K:K,MATCH('Coding Generator'!$B183,'Work Order Master'!$S:$S,0)),\"Contact Finance\"))","v":""},{"$f":"IF($B183=\"\",\"\",IFERROR(INDEX('Work Order Master'!L:L,MATCH('Coding Generator'!$B183,'Work Order Master'!$S:$S,0)),\"Contact Finance\"))","v":""},{"$f":"IF($B183=\"\",\"\",IFERROR(INDEX('Work Order Master'!M:M,MATCH('Coding Generator'!$B183,'Work Order Master'!$S:$S,0)),\"Contact Finance\"))","v":""},{"$f":"IF($B183=\"\",\"\",IFERROR(INDEX('Work Order Master'!N:N,MATCH('Coding Generator'!$B183,'Work Order Master'!$S:$S,0)),\"Contact Finance\"))","v":""},{"$f":"IF($B183=\"\",\"\",IFERROR(INDEX('Work Order Master'!U:U,MATCH('Coding Generator'!$B183,'Work Order Master'!$S:$S,0)),\"Contact Finance\"))","v":""},null,178,null,{"$f":"IF($J183=\"\",\"\",IFERROR(INDEX('CHART OF ACCOUNTS'!G:G,MATCH('Coding Generator'!$J183,'CHART OF ACCOUNTS'!$N:$N,0)),\"Contact Finance\"))","v":""},{"$f":"IF($J183=\"\",\"\",IFERROR(INDEX('CHART OF ACCOUNTS'!H:H,MATCH('Coding Generator'!$J183,'CHART OF ACCOUNTS'!$N:$N,0)),\"Contact Finance\"))","v":""},{"$f":"IF($J183=\"\",\"\",IFERROR(INDEX('CHART OF ACCOUNTS'!D:D,MATCH('Coding Generator'!$J183,'CHART OF ACCOUNTS'!$N:$N,0)),\"Contact Finance\"))","v":""},{"$f":"IF($J183=\"\",\"\",IFERROR(INDEX('CHART OF ACCOUNTS'!F:F,MATCH('Coding Generator'!$J183,'CHART OF ACCOUNTS'!$N:$N,0)),\"Contact Finance\"))","v":""}]
[179,null,{"$f":"IF($B184=\"\",\"\",IFERROR(INDEX('Work Order Master'!K:K,MATCH('Coding Generator'!$B184,'Work Order Master'!$S:$S,0)),\"Contact Finance\"))","v":""},{"$f":"IF($B184=\"\",\"\",IFERROR(INDEX('Work Order Master'!L:L,MATCH('Coding Generator'!$B184,'Work Order Master'!$S:$S,0)),\"Contact Finance\"))","v":""},{"$f":"IF($B184=\"\",\"\",IFERROR(INDEX('Work Order Master'!M:M,MATCH('Coding Generator'!$B184,'Work Order Master'!$S:$S,0)),\"Contact Finance\"))","v":""},{"$f":"IF($B184=\"\",\"\",IFERROR(INDEX('Work Order Master'!N:N,MATCH('Coding Generator'!$B184,'Work Order Master'!$S:$S,0)),\"Contact Finance\"))","v":""},{"$f":"IF($B184=\"\",\"\",IFERROR(INDEX('Work Order Master'!U:U,MATCH('Coding Generator'!$B184,'Work Order Master'!$S:$S,0)),\"Contact Finance\"))","v":""},null,179,null,{"$f":"IF($J184=\"\",\"\",IFERROR(INDEX('CHART OF ACCOUNTS'!G:G,MATCH('Coding Generator'!$J184,'CHART OF ACCOUNTS'!$N:$N,0)),\"Contact Finance\"))","v":""},{"$f":"IF($J184=\"\",\"\",IFERROR(INDEX('CHART OF ACCOUNTS'!H:H,MATCH('Coding Generator'!$J184,'CHART OF ACCOUNTS'!$N:$N,0)),\"Contact Finance\"))","v":""},{"$f":"IF($J184=\"\",\"\",IFERROR(INDEX('CHART OF ACCOUNTS'!D:D,MATCH('Coding Generator'!$J184,'CHART OF ACCOUNTS'!$N:$N,0)),\"Contact Finance\"))","v":""},{"$f":"IF($J184=\"\",\"\",IFERROR(INDEX('CHART OF ACCOUNTS'!F:F,MATCH('Coding Generator'!$J184,'CHART OF ACCOUNTS'!$N:$N,0)),\"Contact Finance\"))","v":""}]
[180,null,{"$f":"IF($B185=\"\",\"\",IFERROR(INDEX('Work Order Master'!K:K,MATCH('Coding Generator'!$B185,'Work Order Master'!$S:$S,0)),\"Contact Finance\"))","v":""},{"$f":"IF($B185=\"\",\"\",IFERROR(INDEX('Work Order Master'!L:L,MATCH('Coding Generator'!$B185,'Work Order Master'!$S:$S,0)),\"Contact Finance\"))","v":""},{"$f":"IF($B185=\"\",\"\",IFERROR(INDEX('Work Order Master'!M:M,MATCH('Coding Generator'!$B185,'Work Order Master'!$S:$S,0)),\"Contact Finance\"))","v":""},{"$f":"IF($B185=\"\",\"\",IFERROR(INDEX('Work Order Master'!N:N,MATCH('Coding Generator'!$B185,'Work Order Master'!$S:$S,0)),\"Contact Finance\"))","v":""},{"$f":"IF($B185=\"\",\"\",IFERROR(INDEX('Work Order Master'!U:U,MATCH('Coding Generator'!$B185,'Work Order Master'!$S:$S,0)),\"Contact Finance\"))","v":""},null,180,null,{"$f":"IF($J185=\"\",\"\",IFERROR(INDEX('CHART OF ACCOUNTS'!G:G,MATCH('Coding Generator'!$J185,'CHART OF ACCOUNTS'!$N:$N,0)),\"Contact Finance\"))","v":""},{"$f":"IF($J185=\"\",\"\",IFERROR(INDEX('CHART OF ACCOUNTS'!H:H,MATCH('Coding Generator'!$J185,'CHART OF ACCOUNTS'!$N:$N,0)),\"Contact Finance\"))","v":""},{"$f":"IF($J185=\"\",\"\",IFERROR(INDEX('CHART OF ACCOUNTS'!D:D,MATCH('Coding Generator'!$J185,'CHART OF ACCOUNTS'!$N:$N,0)),\"Contact Finance\"))","v":""},{"$f":"IF($J185=\"\",\"\",IFERROR(INDEX('CHART OF ACCOUNTS'!F:F,MATCH('Coding Generator'!$J185,'CHART OF ACCOUNTS'!$N:$N,0)),\"Contact Finance\"))","v":""}]
[181,null,{"$f":"IF($B186=\"\",\"\",IFERROR(INDEX('Work Order Master'!K:K,MATCH('Coding Generator'!$B186,'Work Order Master'!$S:$S,0)),\"Contact Finance\"))","v":""},{"$f":"IF($B186=\"\",\"\",IFERROR(INDEX('Work Order Master'!L:L,MATCH('Coding Generator'!$B186,'Work Order Master'!$S:$S,0)),\"Contact Finance\"))","v":""},{"$f":"IF($B186=\"\",\"\",IFERROR(INDEX('Work Order Master'!M:M,MATCH('Coding Generator'!$B186,'Work Order Master'!$S:$S,0)),\"Contact Finance\"))","v":""},{"$f":"IF($B186=\"\",\"\",IFERROR(INDEX('Work Order Master'!N:N,MATCH('Coding Generator'!$B186,'Work Order Master'!$S:$S,0)),\"Contact Finance\"))","v":""},{"$f":"IF($B186=\"\",\"\",IFERROR(INDEX('Work Order Master'!U:U,MATCH('Coding Generator'!$B186,'Work Order Master'!$S:$S,0)),\"Contact Finance\"))","v":""},null,181,null,{"$f":"IF($J186=\"\",\"\",IFERROR(INDEX('CHART OF ACCOUNTS'!G:G,MATCH('Coding Generator'!$J186,'CHART OF ACCOUNTS'!$N:$N,0)),\"Contact Finance\"))","v":""},{"$f":"IF($J186=\"\",\"\",IFERROR(INDEX('CHART OF ACCOUNTS'!H:H,MATCH('Coding Generator'!$J186,'CHART OF ACCOUNTS'!$N:$N,0)),\"Contact Finance\"))","v":""},{"$f":"IF($J186=\"\",\"\",IFERROR(INDEX('CHART OF ACCOUNTS'!D:D,MATCH('Coding Generator'!$J186,'CHART OF ACCOUNTS'!$N:$N,0)),\"Contact Finance\"))","v":""},{"$f":"IF($J186=\"\",\"\",IFERROR(INDEX('CHART OF ACCOUNTS'!F:F,MATCH('Coding Generator'!$J186,'CHART OF ACCOUNTS'!$N:$N,0)),\"Contact Finance\"))","v":""}]
[182,null,{"$f":"IF($B187=\"\",\"\",IFERROR(INDEX('Work Order Master'!K:K,MATCH('Coding Generator'!$B187,'Work Order Master'!$S:$S,0)),\"Contact Finance\"))","v":""},{"$f":"IF($B187=\"\",\"\",IFERROR(INDEX('Work Order Master'!L:L,MATCH('Coding Generator'!$B187,'Work Order Master'!$S:$S,0)),\"Contact Finance\"))","v":""},{"$f":"IF($B187=\"\",\"\",IFERROR(INDEX('Work Order Master'!M:M,MATCH('Coding Generator'!$B187,'Work Order Master'!$S:$S,0)),\"Contact Finance\"))","v":""},{"$f":"IF($B187=\"\",\"\",IFERROR(INDEX('Work Order Master'!N:N,MATCH('Coding Generator'!$B187,'Work Order Master'!$S:$S,0)),\"Contact Finance\"))","v":""},{"$f":"IF($B187=\"\",\"\",IFERROR(INDEX('Work Order Master'!U:U,MATCH('Coding Generator'!$B187,'Work Order Master'!$S:$S,0)),\"Contact Finance\"))","v":""},null,182,null,{"$f":"IF($J187=\"\",\"\",IFERROR(INDEX('CHART OF ACCOUNTS'!G:G,MATCH('Coding Generator'!$J187,'CHART OF ACCOUNTS'!$N:$N,0)),\"Contact Finance\"))","v":""},{"$f":"IF($J187=\"\",\"\",IFERROR(INDEX('CHART OF ACCOUNTS'!H:H,MATCH('Coding Generator'!$J187,'CHART OF ACCOUNTS'!$N:$N,0)),\"Contact Finance\"))","v":""},{"$f":"IF($J187=\"\",\"\",IFERROR(INDEX('CHART OF ACCOUNTS'!D:D,MATCH('Coding Generator'!$J187,'CHART OF ACCOUNTS'!$N:$N,0)),\"Contact Finance\"))","v":""},{"$f":"IF($J187=\"\",\"\",IFERROR(INDEX('CHART OF ACCOUNTS'!F:F,MATCH('Coding Generator'!$J187,'CHART OF ACCOUNTS'!$N:$N,0)),\"Contact Finance\"))","v":""}]
[183,null,{"$f":"IF($B188=\"\",\"\",IFERROR(INDEX('Work Order Master'!K:K,MATCH('Coding Generator'!$B188,'Work Order Master'!$S:$S,0)),\"Contact Finance\"))","v":""},{"$f":"IF($B188=\"\",\"\",IFERROR(INDEX('Work Order Master'!L:L,MATCH('Coding Generator'!$B188,'Work Order Master'!$S:$S,0)),\"Contact Finance\"))","v":""},{"$f":"IF($B188=\"\",\"\",IFERROR(INDEX('Work Order Master'!M:M,MATCH('Coding Generator'!$B188,'Work Order Master'!$S:$S,0)),\"Contact Finance\"))","v":""},{"$f":"IF($B188=\"\",\"\",IFERROR(INDEX('Work Order Master'!N:N,MATCH('Coding Generator'!$B188,'Work Order Master'!$S:$S,0)),\"Contact Finance\"))","v":""},{"$f":"IF($B188=\"\",\"\",IFERROR(INDEX('Work Order Master'!U:U,MATCH('Coding Generator'!$B188,'Work Order Master'!$S:$S,0)),\"Contact Finance\"))","v":""},null,183,null,{"$f":"IF($J188=\"\",\"\",IFERROR(INDEX('CHART OF ACCOUNTS'!G:G,MATCH('Coding Generator'!$J188,'CHART OF ACCOUNTS'!$N:$N,0)),\"Contact Finance\"))","v":""},{"$f":"IF($J188=\"\",\"\",IFERROR(INDEX('CHART OF ACCOUNTS'!H:H,MATCH('Coding Generator'!$J188,'CHART OF ACCOUNTS'!$N:$N,0)),\"Contact Finance\"))","v":""},{"$f":"IF($J188=\"\",\"\",IFERROR(INDEX('CHART OF ACCOUNTS'!D:D,MATCH('Coding Generator'!$J188,'CHART OF ACCOUNTS'!$N:$N,0)),\"Contact Finance\"))","v":""},{"$f":"IF($J188=\"\",\"\",IFERROR(INDEX('CHART OF ACCOUNTS'!F:F,MATCH('Coding Generator'!$J188,'CHART OF ACCOUNTS'!$N:$N,0)),\"Contact Finance\"))","v":""}]
[184,null,{"$f":"IF($B189=\"\",\"\",IFERROR(INDEX('Work Order Master'!K:K,MATCH('Coding Generator'!$B189,'Work Order Master'!$S:$S,0)),\"Contact Finance\"))","v":""},{"$f":"IF($B189=\"\",\"\",IFERROR(INDEX('Work Order Master'!L:L,MATCH('Coding Generator'!$B189,'Work Order Master'!$S:$S,0)),\"Contact Finance\"))","v":""},{"$f":"IF($B189=\"\",\"\",IFERROR(INDEX('Work Order Master'!M:M,MATCH('Coding Generator'!$B189,'Work Order Master'!$S:$S,0)),\"Contact Finance\"))","v":""},{"$f":"IF($B189=\"\",\"\",IFERROR(INDEX('Work Order Master'!N:N,MATCH('Coding Generator'!$B189,'Work Order Master'!$S:$S,0)),\"Contact Finance\"))","v":""},{"$f":"IF($B189=\"\",\"\",IFERROR(INDEX('Work Order Master'!U:U,MATCH('Coding Generator'!$B189,'Work Order Master'!$S:$S,0)),\"Contact Finance\"))","v":""},null,184,null,{"$f":"IF($J189=\"\",\"\",IFERROR(INDEX('CHART OF ACCOUNTS'!G:G,MATCH('Coding Generator'!$J189,'CHART OF ACCOUNTS'!$N:$N,0)),\"Contact Finance\"))","v":""},{"$f":"IF($J189=\"\",\"\",IFERROR(INDEX('CHART OF ACCOUNTS'!H:H,MATCH('Coding Generator'!$J189,'CHART OF ACCOUNTS'!$N:$N,0)),\"Contact Finance\"))","v":""},{"$f":"IF($J189=\"\",\"\",IFERROR(INDEX('CHART OF ACCOUNTS'!D:D,MATCH('Coding Generator'!$J189,'CHART OF ACCOUNTS'!$N:$N,0)),\"Contact Finance\"))","v":""},{"$f":"IF($J189=\"\",\"\",IFERROR(INDEX('CHART OF ACCOUNTS'!F:F,MATCH('Coding Generator'!$J189,'CHART OF ACCOUNTS'!$N:$N,0)),\"Contact Finance\"))","v":""}]
[185,null,{"$f":"IF($B190=\"\",\"\",IFERROR(INDEX('Work Order Master'!K:K,MATCH('Coding Generator'!$B190,'Work Order Master'!$S:$S,0)),\"Contact Finance\"))","v":""},{"$f":"IF($B190=\"\",\"\",IFERROR(INDEX('Work Order Master'!L:L,MATCH('Coding Generator'!$B190,'Work Order Master'!$S:$S,0)),\"Contact Finance\"))","v":""},{"$f":"IF($B190=\"\",\"\",IFERROR(INDEX('Work Order Master'!M:M,MATCH('Coding Generator'!$B190,'Work Order Master'!$S:$S,0)),\"Contact Finance\"))","v":""},{"$f":"IF($B190=\"\",\"\",IFERROR(INDEX('Work Order Master'!N:N,MATCH('Coding Generator'!$B190,'Work Order Master'!$S:$S,0)),\"Contact Finance\"))","v":""},{"$f":"IF($B190=\"\",\"\",IFERROR(INDEX('Work Order Master'!U:U,MATCH('Coding Generator'!$B190,'Work Order Master'!$S:$S,0)),\"Contact Finance\"))","v":""},null,185,null,{"$f":"IF($J190=\"\",\"\",IFERROR(INDEX('CHART OF ACCOUNTS'!G:G,MATCH('Coding Generator'!$J190,'CHART OF ACCOUNTS'!$N:$N,0)),\"Contact Finance\"))","v":""},{"$f":"IF($J190=\"\",\"\",IFERROR(INDEX('CHART OF ACCOUNTS'!H:H,MATCH('Coding Generator'!$J190,'CHART OF ACCOUNTS'!$N:$N,0)),\"Contact Finance\"))","v":""},{"$f":"IF($J190=\"\",\"\",IFERROR(INDEX('CHART OF ACCOUNTS'!D:D,MATCH('Coding Generator'!$J190,'CHART OF ACCOUNTS'!$N:$N,0)),\"Contact Finance\"))","v":""},{"$f":"IF($J190=\"\",\"\",IFERROR(INDEX('CHART OF ACCOUNTS'!F:F,MATCH('Coding Generator'!$J190,'CHART OF ACCOUNTS'!$N:$N,0)),\"Contact Finance\"))","v":""}]
[186,null,{"$f":"IF($B191=\"\",\"\",IFERROR(INDEX('Work Order Master'!K:K,MATCH('Coding Generator'!$B191,'Work Order Master'!$S:$S,0)),\"Contact Finance\"))","v":""},{"$f":"IF($B191=\"\",\"\",IFERROR(INDEX('Work Order Master'!L:L,MATCH('Coding Generator'!$B191,'Work Order Master'!$S:$S,0)),\"Contact Finance\"))","v":""},{"$f":"IF($B191=\"\",\"\",IFERROR(INDEX('Work Order Master'!M:M,MATCH('Coding Generator'!$B191,'Work Order Master'!$S:$S,0)),\"Contact Finance\"))","v":""},{"$f":"IF($B191=\"\",\"\",IFERROR(INDEX('Work Order Master'!N:N,MATCH('Coding Generator'!$B191,'Work Order Master'!$S:$S,0)),\"Contact Finance\"))","v":""},{"$f":"IF($B191=\"\",\"\",IFERROR(INDEX('Work Order Master'!U:U,MATCH('Coding Generator'!$B191,'Work Order Master'!$S:$S,0)),\"Contact Finance\"))","v":""},null,186,null,{"$f":"IF($J191=\"\",\"\",IFERROR(INDEX('CHART OF ACCOUNTS'!G:G,MATCH('Coding Generator'!$J191,'CHART OF ACCOUNTS'!$N:$N,0)),\"Contact Finance\"))","v":""},{"$f":"IF($J191=\"\",\"\",IFERROR(INDEX('CHART OF ACCOUNTS'!H:H,MATCH('Coding Generator'!$J191,'CHART OF ACCOUNTS'!$N:$N,0)),\"Contact Finance\"))","v":""},{"$f":"IF($J191=\"\",\"\",IFERROR(INDEX('CHART OF ACCOUNTS'!D:D,MATCH('Coding Generator'!$J191,'CHART OF ACCOUNTS'!$N:$N,0)),\"Contact Finance\"))","v":""},{"$f":"IF($J191=\"\",\"\",IFERROR(INDEX('CHART OF ACCOUNTS'!F:F,MATCH('Coding Generator'!$J191,'CHART OF ACCOUNTS'!$N:$N,0)),\"Contact Finance\"))","v":""}]
[187,null,{"$f":"IF($B192=\"\",\"\",IFERROR(INDEX('Work Order Master'!K:K,MATCH('Coding Generator'!$B192,'Work Order Master'!$S:$S,0)),\"Contact Finance\"))","v":""},{"$f":"IF($B192=\"\",\"\",IFERROR(INDEX('Work Order Master'!L:L,MATCH('Coding Generator'!$B192,'Work Order Master'!$S:$S,0)),\"Contact Finance\"))","v":""},{"$f":"IF($B192=\"\",\"\",IFERROR(INDEX('Work Order Master'!M:M,MATCH('Coding Generator'!$B192,'Work Order Master'!$S:$S,0)),\"Contact Finance\"))","v":""},{"$f":"IF($B192=\"\",\"\",IFERROR(INDEX('Work Order Master'!N:N,MATCH('Coding Generator'!$B192,'Work Order Master'!$S:$S,0)),\"Contact Finance\"))","v":""},{"$f":"IF($B192=\"\",\"\",IFERROR(INDEX('Work Order Master'!U:U,MATCH('Coding Generator'!$B192,'Work Order Master'!$S:$S,0)),\"Contact Finance\"))","v":""},null,187,null,{"$f":"IF($J192=\"\",\"\",IFERROR(INDEX('CHART OF ACCOUNTS'!G:G,MATCH('Coding Generator'!$J192,'CHART OF ACCOUNTS'!$N:$N,0)),\"Contact Finance\"))","v":""},{"$f":"IF($J192=\"\",\"\",IFERROR(INDEX('CHART OF ACCOUNTS'!H:H,MATCH('Coding Generator'!$J192,'CHART OF ACCOUNTS'!$N:$N,0)),\"Contact Finance\"))","v":""},{"$f":"IF($J192=\"\",\"\",IFERROR(INDEX('CHART OF ACCOUNTS'!D:D,MATCH('Coding Generator'!$J192,'CHART OF ACCOUNTS'!$N:$N,0)),\"Contact Finance\"))","v":""},{"$f":"IF($J192=\"\",\"\",IFERROR(INDEX('CHART OF ACCOUNTS'!F:F,MATCH('Coding Generator'!$J192,'CHART OF ACCOUNTS'!$N:$N,0)),\"Contact Finance\"))","v":""}]
[188,null,{"$f":"IF($B193=\"\",\"\",IFERROR(INDEX('Work Order Master'!K:K,MATCH('Coding Generator'!$B193,'Work Order Master'!$S:$S,0)),\"Contact Finance\"))","v":""},{"$f":"IF($B193=\"\",\"\",IFERROR(INDEX('Work Order Master'!L:L,MATCH('Coding Generator'!$B193,'Work Order Master'!$S:$S,0)),\"Contact Finance\"))","v":""},{"$f":"IF($B193=\"\",\"\",IFERROR(INDEX('Work Order Master'!M:M,MATCH('Coding Generator'!$B193,'Work Order Master'!$S:$S,0)),\"Contact Finance\"))","v":""},{"$f":"IF($B193=\"\",\"\",IFERROR(INDEX('Work Order Master'!N:N,MATCH('Coding Generator'!$B193,'Work Order Master'!$S:$S,0)),\"Contact Finance\"))","v":""},{"$f":"IF($B193=\"\",\"\",IFERROR(INDEX('Work Order Master'!U:U,MATCH('Coding Generator'!$B193,'Work Order Master'!$S:$S,0)),\"Contact Finance\"))","v":""},null,188,null,{"$f":"IF($J193=\"\",\"\",IFERROR(INDEX('CHART OF ACCOUNTS'!G:G,MATCH('Coding Generator'!$J193,'CHART OF ACCOUNTS'!$N:$N,0)),\"Contact Finance\"))","v":""},{"$f":"IF($J193=\"\",\"\",IFERROR(INDEX('CHART OF ACCOUNTS'!H:H,MATCH('Coding Generator'!$J193,'CHART OF ACCOUNTS'!$N:$N,0)),\"Contact Finance\"))","v":""},{"$f":"IF($J193=\"\",\"\",IFERROR(INDEX('CHART OF ACCOUNTS'!D:D,MATCH('Coding Generator'!$J193,'CHART OF ACCOUNTS'!$N:$N,0)),\"Contact Finance\"))","v":""},{"$f":"IF($J193=\"\",\"\",IFERROR(INDEX('CHART OF ACCOUNTS'!F:F,MATCH('Coding Generator'!$J193,'CHART OF ACCOUNTS'!$N:$N,0)),\"Contact Finance\"))","v":""}]
[189,null,{"$f":"IF($B194=\"\",\"\",IFERROR(INDEX('Work Order Master'!K:K,MATCH('Coding Generator'!$B194,'Work Order Master'!$S:$S,0)),\"Contact Finance\"))","v":""},{"$f":"IF($B194=\"\",\"\",IFERROR(INDEX('Work Order Master'!L:L,MATCH('Coding Generator'!$B194,'Work Order Master'!$S:$S,0)),\"Contact Finance\"))","v":""},{"$f":"IF($B194=\"\",\"\",IFERROR(INDEX('Work Order Master'!M:M,MATCH('Coding Generator'!$B194,'Work Order Master'!$S:$S,0)),\"Contact Finance\"))","v":""},{"$f":"IF($B194=\"\",\"\",IFERROR(INDEX('Work Order Master'!N:N,MATCH('Coding Generator'!$B194,'Work Order Master'!$S:$S,0)),\"Contact Finance\"))","v":""},{"$f":"IF($B194=\"\",\"\",IFERROR(INDEX('Work Order Master'!U:U,MATCH('Coding Generator'!$B194,'Work Order Master'!$S:$S,0)),\"Contact Finance\"))","v":""},null,189,null,{"$f":"IF($J194=\"\",\"\",IFERROR(INDEX('CHART OF ACCOUNTS'!G:G,MATCH('Coding Generator'!$J194,'CHART OF ACCOUNTS'!$N:$N,0)),\"Contact Finance\"))","v":""},{"$f":"IF($J194=\"\",\"\",IFERROR(INDEX('CHART OF ACCOUNTS'!H:H,MATCH('Coding Generator'!$J194,'CHART OF ACCOUNTS'!$N:$N,0)),\"Contact Finance\"))","v":""},{"$f":"IF($J194=\"\",\"\",IFERROR(INDEX('CHART OF ACCOUNTS'!D:D,MATCH('Coding Generator'!$J194,'CHART OF ACCOUNTS'!$N:$N,0)),\"Contact Finance\"))","v":""},{"$f":"IF($J194=\"\",\"\",IFERROR(INDEX('CHART OF ACCOUNTS'!F:F,MATCH('Coding Generator'!$J194,'CHART OF ACCOUNTS'!$N:$N,0)),\"Contact Finance\"))","v":""}]
[190,null,{"$f":"IF($B195=\"\",\"\",IFERROR(INDEX('Work Order Master'!K:K,MATCH('Coding Generator'!$B195,'Work Order Master'!$S:$S,0)),\"Contact Finance\"))","v":""},{"$f":"IF($B195=\"\",\"\",IFERROR(INDEX('Work Order Master'!L:L,MATCH('Coding Generator'!$B195,'Work Order Master'!$S:$S,0)),\"Contact Finance\"))","v":""},{"$f":"IF($B195=\"\",\"\",IFERROR(INDEX('Work Order Master'!M:M,MATCH('Coding Generator'!$B195,'Work Order Master'!$S:$S,0)),\"Contact Finance\"))","v":""},{"$f":"IF($B195=\"\",\"\",IFERROR(INDEX('Work Order Master'!N:N,MATCH('Coding Generator'!$B195,'Work Order Master'!$S:$S,0)),\"Contact Finance\"))","v":""},{"$f":"IF($B195=\"\",\"\",IFERROR(INDEX('Work Order Master'!U:U,MATCH('Coding Generator'!$B195,'Work Order Master'!$S:$S,0)),\"Contact Finance\"))","v":""},null,190,null,{"$f":"IF($J195=\"\",\"\",IFERROR(INDEX('CHART OF ACCOUNTS'!G:G,MATCH('Coding Generator'!$J195,'CHART OF ACCOUNTS'!$N:$N,0)),\"Contact Finance\"))","v":""},{"$f":"IF($J195=\"\",\"\",IFERROR(INDEX('CHART OF ACCOUNTS'!H:H,MATCH('Coding Generator'!$J195,'CHART OF ACCOUNTS'!$N:$N,0)),\"Contact Finance\"))","v":""},{"$f":"IF($J195=\"\",\"\",IFERROR(INDEX('CHART OF ACCOUNTS'!D:D,MATCH('Coding Generator'!$J195,'CHART OF ACCOUNTS'!$N:$N,0)),\"Contact Finance\"))","v":""},{"$f":"IF($J195=\"\",\"\",IFERROR(INDEX('CHART OF ACCOUNTS'!F:F,MATCH('Coding Generator'!$J195,'CHART OF ACCOUNTS'!$N:$N,0)),\"Contact Finance\"))","v":""}]
[191,null,{"$f":"IF($B196=\"\",\"\",IFERROR(INDEX('Work Order Master'!K:K,MATCH('Coding Generator'!$B196,'Work Order Master'!$S:$S,0)),\"Contact Finance\"))","v":""},{"$f":"IF($B196=\"\",\"\",IFERROR(INDEX('Work Order Master'!L:L,MATCH('Coding Generator'!$B196,'Work Order Master'!$S:$S,0)),\"Contact Finance\"))","v":""},{"$f":"IF($B196=\"\",\"\",IFERROR(INDEX('Work Order Master'!M:M,MATCH('Coding Generator'!$B196,'Work Order Master'!$S:$S,0)),\"Contact Finance\"))","v":""},{"$f":"IF($B196=\"\",\"\",IFERROR(INDEX('Work Order Master'!N:N,MATCH('Coding Generator'!$B196,'Work Order Master'!$S:$S,0)),\"Contact Finance\"))","v":""},{"$f":"IF($B196=\"\",\"\",IFERROR(INDEX('Work Order Master'!U:U,MATCH('Coding Generator'!$B196,'Work Order Master'!$S:$S,0)),\"Contact Finance\"))","v":""},null,191,null,{"$f":"IF($J196=\"\",\"\",IFERROR(INDEX('CHART OF ACCOUNTS'!G:G,MATCH('Coding Generator'!$J196,'CHART OF ACCOUNTS'!$N:$N,0)),\"Contact Finance\"))","v":""},{"$f":"IF($J196=\"\",\"\",IFERROR(INDEX('CHART OF ACCOUNTS'!H:H,MATCH('Coding Generator'!$J196,'CHART OF ACCOUNTS'!$N:$N,0)),\"Contact Finance\"))","v":""},{"$f":"IF($J196=\"\",\"\",IFERROR(INDEX('CHART OF ACCOUNTS'!D:D,MATCH('Coding Generator'!$J196,'CHART OF ACCOUNTS'!$N:$N,0)),\"Contact Finance\"))","v":""},{"$f":"IF($J196=\"\",\"\",IFERROR(INDEX('CHART OF ACCOUNTS'!F:F,MATCH('Coding Generator'!$J196,'CHART OF ACCOUNTS'!$N:$N,0)),\"Contact Finance\"))","v":""}]
[192,null,{"$f":"IF($B197=\"\",\"\",IFERROR(INDEX('Work Order Master'!K:K,MATCH('Coding Generator'!$B197,'Work Order Master'!$S:$S,0)),\"Contact Finance\"))","v":""},{"$f":"IF($B197=\"\",\"\",IFERROR(INDEX('Work Order Master'!L:L,MATCH('Coding Generator'!$B197,'Work Order Master'!$S:$S,0)),\"Contact Finance\"))","v":""},{"$f":"IF($B197=\"\",\"\",IFERROR(INDEX('Work Order Master'!M:M,MATCH('Coding Generator'!$B197,'Work Order Master'!$S:$S,0)),\"Contact Finance\"))","v":""},{"$f":"IF($B197=\"\",\"\",IFERROR(INDEX('Work Order Master'!N:N,MATCH('Coding Generator'!$B197,'Work Order Master'!$S:$S,0)),\"Contact Finance\"))","v":""},{"$f":"IF($B197=\"\",\"\",IFERROR(INDEX('Work Order Master'!U:U,MATCH('Coding Generator'!$B197,'Work Order Master'!$S:$S,0)),\"Contact Finance\"))","v":""},null,192,null,{"$f":"IF($J197=\"\",\"\",IFERROR(INDEX('CHART OF ACCOUNTS'!G:G,MATCH('Coding Generator'!$J197,'CHART OF ACCOUNTS'!$N:$N,0)),\"Contact Finance\"))","v":""},{"$f":"IF($J197=\"\",\"\",IFERROR(INDEX('CHART OF ACCOUNTS'!H:H,MATCH('Coding Generator'!$J197,'CHART OF ACCOUNTS'!$N:$N,0)),\"Contact Finance\"))","v":""},{"$f":"IF($J197=\"\",\"\",IFERROR(INDEX('CHART OF ACCOUNTS'!D:D,MATCH('Coding Generator'!$J197,'CHART OF ACCOUNTS'!$N:$N,0)),\"Contact Finance\"))","v":""},{"$f":"IF($J197=\"\",\"\",IFERROR(INDEX('CHART OF ACCOUNTS'!F:F,MATCH('Coding Generator'!$J197,'CHART OF ACCOUNTS'!$N:$N,0)),\"Contact Finance\"))","v":""}]
[193,null,{"$f":"IF($B198=\"\",\"\",IFERROR(INDEX('Work Order Master'!K:K,MATCH('Coding Generator'!$B198,'Work Order Master'!$S:$S,0)),\"Contact Finance\"))","v":""},{"$f":"IF($B198=\"\",\"\",IFERROR(INDEX('Work Order Master'!L:L,MATCH('Coding Generator'!$B198,'Work Order Master'!$S:$S,0)),\"Contact Finance\"))","v":""},{"$f":"IF($B198=\"\",\"\",IFERROR(INDEX('Work Order Master'!M:M,MATCH('Coding Generator'!$B198,'Work Order Master'!$S:$S,0)),\"Contact Finance\"))","v":""},{"$f":"IF($B198=\"\",\"\",IFERROR(INDEX('Work Order Master'!N:N,MATCH('Coding Generator'!$B198,'Work Order Master'!$S:$S,0)),\"Contact Finance\"))","v":""},{"$f":"IF($B198=\"\",\"\",IFERROR(INDEX('Work Order Master'!U:U,MATCH('Coding Generator'!$B198,'Work Order Master'!$S:$S,0)),\"Contact Finance\"))","v":""},null,193,null,{"$f":"IF($J198=\"\",\"\",IFERROR(INDEX('CHART OF ACCOUNTS'!G:G,MATCH('Coding Generator'!$J198,'CHART OF ACCOUNTS'!$N:$N,0)),\"Contact Finance\"))","v":""},{"$f":"IF($J198=\"\",\"\",IFERROR(INDEX('CHART OF ACCOUNTS'!H:H,MATCH('Coding Generator'!$J198,'CHART OF ACCOUNTS'!$N:$N,0)),\"Contact Finance\"))","v":""},{"$f":"IF($J198=\"\",\"\",IFERROR(INDEX('CHART OF ACCOUNTS'!D:D,MATCH('Coding Generator'!$J198,'CHART OF ACCOUNTS'!$N:$N,0)),\"Contact Finance\"))","v":""},{"$f":"IF($J198=\"\",\"\",IFERROR(INDEX('CHART OF ACCOUNTS'!F:F,MATCH('Coding Generator'!$J198,'CHART OF ACCOUNTS'!$N:$N,0)),\"Contact Finance\"))","v":""}]
[194,null,{"$f":"IF($B199=\"\",\"\",IFERROR(INDEX('Work Order Master'!K:K,MATCH('Coding Generator'!$B199,'Work Order Master'!$S:$S,0)),\"Contact Finance\"))","v":""},{"$f":"IF($B199=\"\",\"\",IFERROR(INDEX('Work Order Master'!L:L,MATCH('Coding Generator'!$B199,'Work Order Master'!$S:$S,0)),\"Contact Finance\"))","v":""},{"$f":"IF($B199=\"\",\"\",IFERROR(INDEX('Work Order Master'!M:M,MATCH('Coding Generator'!$B199,'Work Order Master'!$S:$S,0)),\"Contact Finance\"))","v":""},{"$f":"IF($B199=\"\",\"\",IFERROR(INDEX('Work Order Master'!N:N,MATCH('Coding Generator'!$B199,'Work Order Master'!$S:$S,0)),\"Contact Finance\"))","v":""},{"$f":"IF($B199=\"\",\"\",IFERROR(INDEX('Work Order Master'!U:U,MATCH('Coding Generator'!$B199,'Work Order Master'!$S:$S,0)),\"Contact Finance\"))","v":""},null,194,null,{"$f":"IF($J199=\"\",\"\",IFERROR(INDEX('CHART OF ACCOUNTS'!G:G,MATCH('Coding Generator'!$J199,'CHART OF ACCOUNTS'!$N:$N,0)),\"Contact Finance\"))","v":""},{"$f":"IF($J199=\"\",\"\",IFERROR(INDEX('CHART OF ACCOUNTS'!H:H,MATCH('Coding Generator'!$J199,'CHART OF ACCOUNTS'!$N:$N,0)),\"Contact Finance\"))","v":""},{"$f":"IF($J199=\"\",\"\",IFERROR(INDEX('CHART OF ACCOUNTS'!D:D,MATCH('Coding Generator'!$J199,'CHART OF ACCOUNTS'!$N:$N,0)),\"Contact Finance\"))","v":""},{"$f":"IF($J199=\"\",\"\",IFERROR(INDEX('CHART OF ACCOUNTS'!F:F,MATCH('Coding Generator'!$J199,'CHART OF ACCOUNTS'!$N:$N,0)),\"Contact Finance\"))","v":""}]
[{"$f":"A199+1","v":195},null,{"$f":"IF($B200=\"\",\"\",IFERROR(INDEX('Work Order Master'!K:K,MATCH('Coding Generator'!$B200,'Work Order Master'!$S:$S,0)),\"Contact Finance\"))","v":""},{"$f":"IF($B200=\"\",\"\",IFERROR(INDEX('Work Order Master'!L:L,MATCH('Coding Generator'!$B200,'Work Order Master'!$S:$S,0)),\"Contact Finance\"))","v":""},{"$f":"IF($B200=\"\",\"\",IFERROR(INDEX('Work Order Master'!M:M,MATCH('Coding Generator'!$B200,'Work Order Master'!$S:$S,0)),\"Contact Finance\"))","v":""},{"$f":"IF($B200=\"\",\"\",IFERROR(INDEX('Work Order Master'!N:N,MATCH('Coding Generator'!$B200,'Work Order Master'!$S:$S,0)),\"Contact Finance\"))","v":""},{"$f":"IF($B200=\"\",\"\",IFERROR(INDEX('Work Order Master'!U:U,MATCH('Coding Generator'!$B200,'Work Order Master'!$S:$S,0)),\"Contact Finance\"))","v":""},null,{"$f":"I199+1","v":195},null,{"$f":"IF($J200=\"\",\"\",IFERROR(INDEX('CHART OF ACCOUNTS'!G:G,MATCH('Coding Generator'!$J200,'CHART OF ACCOUNTS'!$N:$N,0)),\"Contact Finance\"))","v":""},{"$f":"IF($J200=\"\",\"\",IFERROR(INDEX('CHART OF ACCOUNTS'!H:H,MATCH('Coding Generator'!$J200,'CHART OF ACCOUNTS'!$N:$N,0)),\"Contact Finance\"))","v":""},{"$f":"IF($J200=\"\",\"\",IFERROR(INDEX('CHART OF ACCOUNTS'!D:D,MATCH('Coding Generator'!$J200,'CHART OF ACCOUNTS'!$N:$N,0)),\"Contact Finance\"))","v":""},{"$f":"IF($J200=\"\",\"\",IFERROR(INDEX('CHART OF ACCOUNTS'!F:F,MATCH('Coding Generator'!$J200,'CHART OF ACCOUNTS'!$N:$N,0)),\"Contact Finance\"))","v":""}]
[196,null,{"$f":"IF($B201=\"\",\"\",IFERROR(INDEX('Work Order Master'!K:K,MATCH('Coding Generator'!$B201,'Work Order Master'!$S:$S,0)),\"Contact Finance\"))","v":""},{"$f":"IF($B201=\"\",\"\",IFERROR(INDEX('Work Order Master'!L:L,MATCH('Coding Generator'!$B201,'Work Order Master'!$S:$S,0)),\"Contact Finance\"))","v":""},{"$f":"IF($B201=\"\",\"\",IFERROR(INDEX('Work Order Master'!M:M,MATCH('Coding Generator'!$B201,'Work Order Master'!$S:$S,0)),\"Contact Finance\"))","v":""},{"$f":"IF($B201=\"\",\"\",IFERROR(INDEX('Work Order Master'!N:N,MATCH('Coding Generator'!$B201,'Work Order Master'!$S:$S,0)),\"Contact Finance\"))","v":""},{"$f":"IF($B201=\"\",\"\",IFERROR(INDEX('Work Order Master'!U:U,MATCH('Coding Generator'!$B201,'Work Order Master'!$S:$S,0)),\"Contact Finance\"))","v":""},null,196,null,{"$f":"IF($J201=\"\",\"\",IFERROR(INDEX('CHART OF ACCOUNTS'!G:G,MATCH('Coding Generator'!$J201,'CHART OF ACCOUNTS'!$N:$N,0)),\"Contact Finance\"))","v":""},{"$f":"IF($J201=\"\",\"\",IFERROR(INDEX('CHART OF ACCOUNTS'!H:H,MATCH('Coding Generator'!$J201,'CHART OF ACCOUNTS'!$N:$N,0)),\"Contact Finance\"))","v":""},{"$f":"IF($J201=\"\",\"\",IFERROR(INDEX('CHART OF ACCOUNTS'!D:D,MATCH('Coding Generator'!$J201,'CHART OF ACCOUNTS'!$N:$N,0)),\"Contact Finance\"))","v":""},{"$f":"IF($J201=\"\",\"\",IFERROR(INDEX('CHART OF ACCOUNTS'!F:F,MATCH('Coding Generator'!$J201,'CHART OF ACCOUNTS'!$N:$N,0)),\"Contact Finance\"))","v":""}]
[197,null,{"$f":"IF($B202=\"\",\"\",IFERROR(INDEX('Work Order Master'!K:K,MATCH('Coding Generator'!$B202,'Work Order Master'!$S:$S,0)),\"Contact Finance\"))","v":""},{"$f":"IF($B202=\"\",\"\",IFERROR(INDEX('Work Order Master'!L:L,MATCH('Coding Generator'!$B202,'Work Order Master'!$S:$S,0)),\"Contact Finance\"))","v":""},{"$f":"IF($B202=\"\",\"\",IFERROR(INDEX('Work Order Master'!M:M,MATCH('Coding Generator'!$B202,'Work Order Master'!$S:$S,0)),\"Contact Finance\"))","v":""},{"$f":"IF($B202=\"\",\"\",IFERROR(INDEX('Work Order Master'!N:N,MATCH('Coding Generator'!$B202,'Work Order Master'!$S:$S,0)),\"Contact Finance\"))","v":""},{"$f":"IF($B202=\"\",\"\",IFERROR(INDEX('Work Order Master'!U:U,MATCH('Coding Generator'!$B202,'Work Order Master'!$S:$S,0)),\"Contact Finance\"))","v":""},null,197,null,{"$f":"IF($J202=\"\",\"\",IFERROR(INDEX('CHART OF ACCOUNTS'!G:G,MATCH('Coding Generator'!$J202,'CHART OF ACCOUNTS'!$N:$N,0)),\"Contact Finance\"))","v":""},{"$f":"IF($J202=\"\",\"\",IFERROR(INDEX('CHART OF ACCOUNTS'!H:H,MATCH('Coding Generator'!$J202,'CHART OF ACCOUNTS'!$N:$N,0)),\"Contact Finance\"))","v":""},{"$f":"IF($J202=\"\",\"\",IFERROR(INDEX('CHART OF ACCOUNTS'!D:D,MATCH('Coding Generator'!$J202,'CHART OF ACCOUNTS'!$N:$N,0)),\"Contact Finance\"))","v":""},{"$f":"IF($J202=\"\",\"\",IFERROR(INDEX('CHART OF ACCOUNTS'!F:F,MATCH('Coding Generator'!$J202,'CHART OF ACCOUNTS'!$N:$N,0)),\"Contact Finance\"))","v":""}]
[198,null,{"$f":"IF($B203=\"\",\"\",IFERROR(INDEX('Work Order Master'!K:K,MATCH('Coding Generator'!$B203,'Work Order Master'!$S:$S,0)),\"Contact Finance\"))","v":""},{"$f":"IF($B203=\"\",\"\",IFERROR(INDEX('Work Order Master'!L:L,MATCH('Coding Generator'!$B203,'Work Order Master'!$S:$S,0)),\"Contact Finance\"))","v":""},{"$f":"IF($B203=\"\",\"\",IFERROR(INDEX('Work Order Master'!M:M,MATCH('Coding Generator'!$B203,'Work Order Master'!$S:$S,0)),\"Contact Finance\"))","v":""},{"$f":"IF($B203=\"\",\"\",IFERROR(INDEX('Work Order Master'!N:N,MATCH('Coding Generator'!$B203,'Work Order Master'!$S:$S,0)),\"Contact Finance\"))","v":""},{"$f":"IF($B203=\"\",\"\",IFERROR(INDEX('Work Order Master'!U:U,MATCH('Coding Generator'!$B203,'Work Order Master'!$S:$S,0)),\"Contact Finance\"))","v":""},null,198,null,{"$f":"IF($J203=\"\",\"\",IFERROR(INDEX('CHART OF ACCOUNTS'!G:G,MATCH('Coding Generator'!$J203,'CHART OF ACCOUNTS'!$N:$N,0)),\"Contact Finance\"))","v":""},{"$f":"IF($J203=\"\",\"\",IFERROR(INDEX('CHART OF ACCOUNTS'!H:H,MATCH('Coding Generator'!$J203,'CHART OF ACCOUNTS'!$N:$N,0)),\"Contact Finance\"))","v":""},{"$f":"IF($J203=\"\",\"\",IFERROR(INDEX('CHART OF ACCOUNTS'!D:D,MATCH('Coding Generator'!$J203,'CHART OF ACCOUNTS'!$N:$N,0)),\"Contact Finance\"))","v":""},{"$f":"IF($J203=\"\",\"\",IFERROR(INDEX('CHART OF ACCOUNTS'!F:F,MATCH('Coding Generator'!$J203,'CHART OF ACCOUNTS'!$N:$N,0)),\"Contact Finance\"))","v":""}]
[199,null,{"$f":"IF($B204=\"\",\"\",IFERROR(INDEX('Work Order Master'!K:K,MATCH('Coding Generator'!$B204,'Work Order Master'!$S:$S,0)),\"Contact Finance\"))","v":""},{"$f":"IF($B204=\"\",\"\",IFERROR(INDEX('Work Order Master'!L:L,MATCH('Coding Generator'!$B204,'Work Order Master'!$S:$S,0)),\"Contact Finance\"))","v":""},{"$f":"IF($B204=\"\",\"\",IFERROR(INDEX('Work Order Master'!M:M,MATCH('Coding Generator'!$B204,'Work Order Master'!$S:$S,0)),\"Contact Finance\"))","v":""},{"$f":"IF($B204=\"\",\"\",IFERROR(INDEX('Work Order Master'!N:N,MATCH('Coding Generator'!$B204,'Work Order Master'!$S:$S,0)),\"Contact Finance\"))","v":""},{"$f":"IF($B204=\"\",\"\",IFERROR(INDEX('Work Order Master'!U:U,MATCH('Coding Generator'!$B204,'Work Order Master'!$S:$S,0)),\"Contact Finance\"))","v":""},null,199,null,{"$f":"IF($J204=\"\",\"\",IFERROR(INDEX('CHART OF ACCOUNTS'!G:G,MATCH('Coding Generator'!$J204,'CHART OF ACCOUNTS'!$N:$N,0)),\"Contact Finance\"))","v":""},{"$f":"IF($J204=\"\",\"\",IFERROR(INDEX('CHART OF ACCOUNTS'!H:H,MATCH('Coding Generator'!$J204,'CHART OF ACCOUNTS'!$N:$N,0)),\"Contact Finance\"))","v":""},{"$f":"IF($J204=\"\",\"\",IFERROR(INDEX('CHART OF ACCOUNTS'!D:D,MATCH('Coding Generator'!$J204,'CHART OF ACCOUNTS'!$N:$N,0)),\"Contact Finance\"))","v":""},{"$f":"IF($J204=\"\",\"\",IFERROR(INDEX('CHART OF ACCOUNTS'!F:F,MATCH('Coding Generator'!$J204,'CHART OF ACCOUNTS'!$N:$N,0)),\"Contact Finance\"))","v":""}]
[200,null,{"$f":"IF($B205=\"\",\"\",IFERROR(INDEX('Work Order Master'!K:K,MATCH('Coding Generator'!$B205,'Work Order Master'!$S:$S,0)),\"Contact Finance\"))","v":""},{"$f":"IF($B205=\"\",\"\",IFERROR(INDEX('Work Order Master'!L:L,MATCH('Coding Generator'!$B205,'Work Order Master'!$S:$S,0)),\"Contact Finance\"))","v":""},{"$f":"IF($B205=\"\",\"\",IFERROR(INDEX('Work Order Master'!M:M,MATCH('Coding Generator'!$B205,'Work Order Master'!$S:$S,0)),\"Contact Finance\"))","v":""},{"$f":"IF($B205=\"\",\"\",IFERROR(INDEX('Work Order Master'!N:N,MATCH('Coding Generator'!$B205,'Work Order Master'!$S:$S,0)),\"Contact Finance\"))","v":""},{"$f":"IF($B205=\"\",\"\",IFERROR(INDEX('Work Order Master'!U:U,MATCH('Coding Generator'!$B205,'Work Order Master'!$S:$S,0)),\"Contact Finance\"))","v":""},null,200,null,{"$f":"IF($J205=\"\",\"\",IFERROR(INDEX('CHART OF ACCOUNTS'!G:G,MATCH('Coding Generator'!$J205,'CHART OF ACCOUNTS'!$N:$N,0)),\"Contact Finance\"))","v":""},{"$f":"IF($J205=\"\",\"\",IFERROR(INDEX('CHART OF ACCOUNTS'!H:H,MATCH('Coding Generator'!$J205,'CHART OF ACCOUNTS'!$N:$N,0)),\"Contact Finance\"))","v":""},{"$f":"IF($J205=\"\",\"\",IFERROR(INDEX('CHART OF ACCOUNTS'!D:D,MATCH('Coding Generator'!$J205,'CHART OF ACCOUNTS'!$N:$N,0)),\"Contact Finance\"))","v":""},{"$f":"IF($J205=\"\",\"\",IFERROR(INDEX('CHART OF ACCOUNTS'!F:F,MATCH('Coding Generator'!$J205,'CHART OF ACCOUNTS'!$N:$N,0)),\"Contact Finance\"))","v":""}]

{"sheet":"WO Simulator","index":2,"n_rows":1237,"n_cols":8,"rows_kept":1237,"cut":false,"hidden":false,"merged":[]}
[]
[]
[]
[]
[]
[]
[]
[]
[]
[]
[]
[]
["X-Fer to Pivot","(Multiple Items)"]
[]
["FRS Cst Ctr","FRS Cst Ctr Description","FRS Division","FIS Division Name","FIS Work order ","FIS Work order name","Activity ID","Activity Desc"]
[1007,"VP ACADEMIC - PRO D","Provost VP Academic ","Provost and VP Academic - Office","12000-1-2","PVPA Professional Development","200","Academic Administration"]
[1010,"PROVOST & VPA","Provost VP Academic ","Provost and VP Academic - Office","12000-1-1","PVPA Office","200","Academic Administration"]
[1012,"ASSOCIATE VP ACADEMIC","Provost VP Academic ","Provost and VP Academic - Office","14000-1-1","PVPA - AVPA Office","200","Academic Administration"]
[1015,"UNIVERSITY PLAN/ANALYSIS","Provost VP Academic ","PVPA - Centralized Academic Units","14200-1-1","PVPA-CAU UPA University Planning and Analysis","200","Academic Administration"]
[1016,"PROGRAM REVIEW","Provost VP Academic ","PVPA - Centralized Academic Units","14205-1-1","PVPA-CAU UPA Programs - Review","218","Program Review"]
[1017,"CURRICULUM DEV. FUND","Provost VP Academic ","PVPA - Centralized Academic Units","12015-4-1","PVPA-CAU Curriculum Development Fund","200","Academic Administration"]
[1018,"INTERIM PROVOST & VPA-PD","Provost VP Academic ","Provost and VP Academic - Office","12000-1-3","PVPA Interim PVPA Professional Development","200","Academic Administration"]
[1019,"ACTING ASSOC. VPA - PD","Provost VP Academic ","Provost and VP Academic - Office","14000-1-2","PVPA - AVPA Interim AVPA Professional Development","200","Academic Administration"]
[1020,"RESEARCH OFFICE","Scholarship, Research and Creative Activity","Scholarship, Research and Creative Activity","15000-1-1","SRCA Research Office","216","Research Administration"]
[1021,"ANIMAL CARE","Scholarship, Research and Creative Activity","Scholarship, Research and Creative Activity","15005-1-1","SRCA Animal Care","216","Research Administration"]
[1022,"UT INSTR.DELIVERY TRAVEL","Provost VP Academic ","PVPA - Centralized Academic Units","12015-2-1","PVPA-CAU Travel - UT Instructional Delivery","200","Academic Administration"]
[1023,"RESEARCH ETHICS BOARD ","Scholarship, Research and Creative Activity","Scholarship, Research and Creative Activity","15005-2-1","SRCA Research Ethics Board","216","Research Administration"]
[1024,"VIU BIOSAFETY ","Scholarship, Research and Creative Activity","Scholarship, Research and Creative Activity","15005-3-1","SRCA Biosafety","216","Research Administration"]
[1027,"STUDENT CONFERENCES ","Scholarship, Research and Creative Activity","Scholarship, Research and Creative Activity","15020-2-1","SRCA Student Conferences","216","Research Administration"]
[1028,"AVP SCH/COMM ENGAGEMT PD","Scholarship, Research and Creative Activity","Scholarship, Research and Creative Activity","15000-1-2","SRCA AVP Professional Development","216","Research Administration"]
[1029,"PRO-D UBC DOC EDUCATION","Provost VP Academic ","PVPA - Centralized Academic Units","12015-3-1","PVPA-CAU Professional Development - UBC Doctor Education","200","Academic Administration"]
[1030,"ACADEMIC INST. ADMIN","Provost VP Academic ","PVPA - Centralized Academic Units","12015-1-1","PVPA-CAU Provost Contingency","200","Academic Administration"]
[1032,"PVPA INITIATIVES","Provost VP Academic ","PVPA - Centralized Academic Units","12010-1-1","PVPA-CAU PVPA Initiatives","200","Academic Administration"]
[1033,"WRITING CENTRE","Provost VP Academic ","PVPA - Centralized Academic Units","14010-2-1","PVPA-CAU AVPA Initiatives - Writing Centre","210","Writing Centre"]
[1034,"THEATRE OPERATIONS","Provost VP Academic ","PVPA - Centralized Academic Units","12015-5-1","PVPA-CAU Theatre Operations","200","Academic Administration"]
[1035,"DUAL CREDIT","Provost VP Academic ","PVPA - Centralized Academic Units","14010-3-1","PVPA-CAU AVPA Initiatives - Dual Credit","200","Academic Administration"]
[1038,"AVPA INITIATIVES","Provost VP Academic ","PVPA - Centralized Academic Units","14010-1-1","PVPA-CAU AVPA Initiatives","200","Academic Administration"]
[1042,"INSTR.RECRUITMENT-TRAVEL","Provost VP Academic ","PVPA - Centralized Academic Units","12015-2-2","PVPA-CAU Travel - Instructional Recruitment","200","Academic Administration"]
[1050,"TRAVEL/CONFEREN","Scholarship, Research and Creative Activity","Scholarship, Research and Creative Activity","15020-3-1","SRCA Travel and Conferences","216","Research Administration"]
[1055,"SSF SRCA EXP LEARNING","Scholarship, Research and Creative Activity","Scholarship, Research and Creative Activity","15001-1-1","SRCA SSF Funds - Experiential Learning","216","Research Administration"]
[1057,"VIURAC RESEARCH FUND","Scholarship, Research and Creative Activity","Scholarship, Research and Creative Activity","15025-1-1","SRCA VIURAC Research Fund","315","VIURAC RF"]
[1065,"SCHOLARLY RESEA","Scholarship, Research and Creative Activity","Scholarship, Research and Creative Activity","15020-1-1","SRCA Scholarly Research","216","Research Administration"]
[1089,"STUDENT FEES","Institutional Revenue","Institutional Revenue","19110-1-1","INST Institutional Revenue - Student Fees","101","Institutional"]
[1090,"TUITION - NANAIMO","Institutional Revenue","Institutional Revenue","19105-1-1","INST Institutional Revenue - Tuition","101","Institutional"]
[1101,"MT.ARROWSMITH RES. INST","Scholarship, Research and Creative Activity","Scholarship, Research and Creative Activity","25150-1-1","SRCA MABRRI - Administration","300","Research Contract Administration"]
[1110,"CHCCRL - FLOYD","Scholarship, Research and Creative Activity","Scholarship, Research and Creative Activity","25001-1-4","SRCA CHCCRL - Floyd","300","Research Contract Administration"]
[1112,"AERL HARM CHECK PHASE I","Scholarship, Research and Creative Activity","Scholarship, Research and Creative Activity","25001-1-2","SRCA AERL Harm Check Phase 1","300","Research Contract Administration"]
[1118,"GRF - SSHRC","Scholarship, Research and Creative Activity","Scholarship, Research and Creative Activity","25100-8-1","SRCA GRF - NSERC","309","Research Grant"]
[1119,"RESEARCH SUPPORT FUND","Scholarship, Research and Creative Activity","Scholarship, Research and Creative Activity","25100-1-1","SRCA Research Support Fund","309","Research Grant"]
[1120,"GRF - NSERC","Scholarship, Research and Creative Activity","Scholarship, Research and Creative Activity","25100-12-1","SRCA SSHRC GRF","309","Research Grant"]
[1133,"CTR FOR SOCIAL ENTERPRISE","Scholarship, Research and Creative Activity","Scholarship, Research and Creative Activity","25001-1-3","SRCA Centre for Social Enterprise","300","Research Contract Administration"]
[1134,"CREATE-STUDENT POSTER EVT","Scholarship, Research and Creative Activity","Scholarship, Research and Creative Activity","25001-1-7","SRCA CREATE Student Poster","300","Research Contract Administration"]
[1135,"COMMUNITY INITIATIVES","Scholarship, Research and Creative Activity","Scholarship, Research and Creative Activity","25001-1-5","SRCA Community Initiatives","300","Research Contract Administration"]
[1136,"NEWCASTLE FN INITIATIVE","Scholarship, Research and Creative Activity","Scholarship, Research and Creative Activity","25001-1-8","SRCA Newcastle FN Initiatives","300","Research Contract Administration"]
[1137,"REGIONAL INITIATIVES FUND","Scholarship, Research and Creative Activity","Scholarship, Research and Creative Activity","25100-9-1","SRCA RIF Ministry - AVED","309","Research Grant"]
[1138,"RIF - REFBC","Scholarship, Research and Creative Activity","Scholarship, Research and Creative Activity","25100-10-3","SRCA RIF - REFBC","309","Research Grant"]
[1139,"AVPSCE INITIATIVES","Scholarship, Research and Creative Activity","Scholarship, Research and Creative Activity","25001-1-1","SRCA Initiatives","300","Research Contract Administration"]
[1140,"FACULTY REASSIGNMENTS","Scholarship, Research and Creative Activity","Scholarship, Research and Creative Activity","25020-1-1","SRCA Internal - Faculty Reassignments","300","Research Contract Administration"]
[1141,"RIF - AEST 2019","Scholarship, Research and Creative Activity","Scholarship, Research and Creative Activity","25100-9-10","SRCA RIF - Ministry - AEST","309","Research Grant"]
[1144,"SRCA-STUDENT MISC FUNDING","Scholarship, Research and Creative Activity","Scholarship, Research and Creative Activity","25001-1-11","SRCA - Student - Misc External Funding","300","Research Contract Administration"]
[1145,"VIURAC RF AFFLECK 101042","Scholarship, Research and Creative Activity","Scholarship, Research and Creative Activity","25025-1-55","SRCA VIURAC RF - Affleck 101042","315","VIURAC RF"]
[1146,"VIURAC RF MOGH 100262","Scholarship, Research and Creative Activity","Scholarship, Research and Creative Activity","25025-1-44","SRCA VIURAC RF - MOGH 100262","315","VIURAC RF"]
[1147,"VIURAC M-HEALTH DAMES ","Scholarship, Research and Creative Activity","Scholarship, Research and Creative Activity","25025-8-1","SRCA VIURAC M-HEALTH- Dames 100989","315","VIURAC RF"]
[1149,"VIURAC RF DOUGHTY 101013","Scholarship, Research and Creative Activity","Scholarship, Research and Creative Activity","25025-1-54","SRCA VIURAC RF - Doughty 101013","315","VIURAC RF"]
[1151,"VIURAC SIG18 ESLIGER 101017/18","Scholarship, Research and Creative Activity","Scholarship, Research and Creative Activity","25025-5-13","SRCA VIURAC SIG18 - Esliger 101017/18","315","VIURAC RF"]
[1152,"VIURAC S-GRF MOGHIMEHFAR","Scholarship, Research and Creative Activity","Scholarship, Research and Creative Activity","25025-3-8","SRCA VIURAC S-GRF - Warsh 101178","315","VIURAC RF"]
[1153,"VRC SIG18-SGRF GOVER-BASAR ","Scholarship, Research and Creative Activity","Scholarship, Research and Creative Activity","25025-6-5","SRCA VIURAC-MULTIPLE-SIG18-SGRF-GOVER-BASAR 100590-91","315","VIURAC RF"]
[1154,"VIURAC S-GRF LEWIS 100556","Scholarship, Research and Creative Activity","Scholarship, Research and Creative Activity","25025-3-4","SRCA VIURAC S-GRF-Lewis 100556","315","VIURAC RF"]
[1157,"VIURAC SIG-18 TAPLAY 100633","Scholarship, Research and Creative Activity","Scholarship, Research and Creative Activity","25025-5-12","SRCA VIURAC SIG18 - TAPLAY 100633","315","VIURAC RF"]
[1158,"VIURAC RF MCEWEN 100581","Scholarship, Research and Creative Activity","Scholarship, Research and Creative Activity","25025-1-48","SRCA VIURAC RF - MCEWEN 100581","315","VIURAC RF"]
[1159,"VIURAC S-GRF GARDINER 101041","Scholarship, Research and Creative Activity","Scholarship, Research and Creative Activity","25025-3-5","SRCA VIURAC S-GRF - Gardiner 101041","315","VIURAC RF"]
[1160,"VIURAC RF GORRELL 100579","Scholarship, Research and Creative Activity","Scholarship, Research and Creative Activity","25025-1-49","SRCA VIURAC RF - GORRELL 100579","315","VIURAC RF"]
[1161,"VIURAC RF HERNANDEZ ","Scholarship, Research and Creative Activity","Scholarship, Research and Creative Activity","25025-1-45","SRCA VIURAC RF - HERNANDEZ 100580","315","VIURAC RF"]
[1162,"VIURAC SIG-18 WARSH ","Scholarship, Research and Creative Activity","Scholarship, Research and Creative Activity","25025-5-11","SRCA VIURAC SIG18 - WARSH 100592","315","VIURAC RF"]
[1163,"VIURAC AEST RIEDEL 100650","Scholarship, Research and Creative Activity","Scholarship, Research and Creative Activity","25025-7-1","SRCA VIURAC-AEST- Riedel 100650","315","VIURAC RF"]
[1164,"VIURAC AEST MAYES 100652","Scholarship, Research and Creative Activity","Scholarship, Research and Creative Activity","25025-7-6","SRCA VIURAC-AEST- Mayes 100652","315","VIURAC RF"]
[1165,"VIURAC AEST MORDEN 653","Scholarship, Research and Creative Activity","Scholarship, Research and Creative Activity","25025-7-2","SRCA VIURAC-AEST Morden 653","315","VIURAC RF"]
[1166,"VIURAC AEST WEIGHILL 658","Scholarship, Research and Creative Activity","Scholarship, Research and Creative Activity","25025-7-4","SRCA VIURAC-AEST- Weighill 658","315","VIURAC RF"]
[1167,"VIURAC RF LOUDON 100997","Scholarship, Research and Creative Activity","Scholarship, Research and Creative Activity","25025-1-57","SRCA VIURAC RF - LOUDON 100997","315","VIURAC RF"]
[1169,"VIURAC AEST ANDERSON 637","Scholarship, Research and Creative Activity","Scholarship, Research and Creative Activity","25025-7-7","SRCA VIURAC-AEST- Anderson 637","315","VIURAC RF"]
[1170,"VIURAC S-GRF MOGHIMEHFAR","Scholarship, Research and Creative Activity","Scholarship, Research and Creative Activity","25025-3-7","SRCA VIURAC S-GRF - Moghimehfar 101040","315","VIURAC RF"]
[1171,"VIURAC AEST LAIT 100668","Scholarship, Research and Creative Activity","Scholarship, Research and Creative Activity","25025-7-5","SRCA VIURAC-AEST- Lait 100668","315","VIURAC RF"]
[1176,"VIURAC AEST MCFARLAND 665","Scholarship, Research and Creative Activity","Scholarship, Research and Creative Activity","25025-7-3","SRCA VIURAC-AEST McFarland 665","315","VIURAC RF"]
[1182,"VIURAC AEST MORDEN 101054","Scholarship, Research and Creative Activity","Scholarship, Research and Creative Activity","25025-7-8","SRCA VIURAC-AEST- Morden 101054","315","VIURAC RF"]
[1184,"VIURAC S-GRF REED 101043","Scholarship, Research and Creative Activity","Scholarship, Research and Creative Activity","25025-3-6","SRCA VIURAC S-GRF - Reed 101043","315","VIURAC RF"]
[1185,"VIURAC RF RUSSELL 101007","Scholarship, Research and Creative Activity","Scholarship, Research and Creative Activity","25025-1-53","SRCA VIURAC RF - Russell 101007","315","VIURAC RF"]
[1186,"VIURAC RF SUN 101008","Scholarship, Research and Creative Activity","Scholarship, Research and Creative Activity","25025-1-56","SRCA VIURAC RF - Sun 101008","315","VIURAC RF"]
[1188,"VIURAC RF STERN","Scholarship, Research and Creative Activity","Scholarship, Research and Creative Activity","25025-1-24","SRCA VIURAC RF - Stern","315","VIURAC RF"]
[1189,"VIURAC RF MOHABEER 101160","Scholarship, Research and Creative Activity","Scholarship, Research and Creative Activity","25025-1-58","SRCA VIURAC RF - Mohabeer 101160","315","VIURAC RF"]
[1190,"VIURAC MH GILL 101174","Scholarship, Research and Creative Activity","Scholarship, Research and Creative Activity","25025-8-2","SRCA VIURAC M-HEALTH- Gill 101174","315","VIURAC RF"]
[1192,"VIURAC RF WIEBE 101172","Scholarship, Research and Creative Activity","Scholarship, Research and Creative Activity","25025-1-59","SRCA VIURAC RF - Wiebe 101172-173","315","VIURAC RF"]
[1193,"VIURAC RF CARRUTHERS","Scholarship, Research and Creative Activity","Scholarship, Research and Creative Activity","25025-1-60","SRCA VIURAC RF - Carruthers 101165-6","315","VIURAC RF"]
[1199,"VIURAC RF-PUB MARTIN","Scholarship, Research and Creative Activity","Scholarship, Research and Creative Activity","25025-1-52","SRCA VIURAC RF - Publish - Martin 100877","315","VIURAC RF"]
[1200,"CFI - IOF","Scholarship, Research and Creative Activity","Scholarship, Research and Creative Activity","25100-5-1","SRCA CFI - IOFCFI - IOF","309","Research Grant"]
[1201,"CFI-IOF META DH LAB - LANE ","Scholarship, Research and Creative Activity","Scholarship, Research and Creative Activity","25100-5-5","SRCA CFI - IOF MeTA DH Lab - Lane","309","Research Grant"]
[1202,"CFI-IOF RUSSELL ","Scholarship, Research and Creative Activity","Scholarship, Research and Creative Activity","25100-5-6","SRCA CFI - IOF Russell","309","Research Grant"]
[1203,"CFI-IOF GILL","Scholarship, Research and Creative Activity","Scholarship, Research and Creative Activity","25100-5-7","SRCA CFI - IOF Gill","309","Research Grant"]
[1207,"CFI IOF SHELLFISH (GREEN)","Scholarship, Research and Creative Activity","Scholarship, Research and Creative Activity","25100-5-4","SRCA CFI - IOF Shellfish (Green)","309","Research Grant"]
[1209,"CFI IOF MOBILE LAB(KROGH)","Scholarship, Research and Creative Activity","Scholarship, Research and Creative Activity","25100-5-3","SRCA CFI - IOF Mobile Lab (Krogh)","309","Research Grant"]
[1222,"SIG SSHRC 2018-21","Scholarship, Research and Creative Activity","Scholarship, Research and Creative Activity","25100-12-8","SRCA SSHRC SIG 2018-21","309","Research Grant"]
[1224,"SSHRC CGSM","Scholarship, Research and Creative Activity","Scholarship, Research and Creative Activity","25100-12-5","SRCA SSHRC CGSM","309","Research Grant"]
[1232,"SSHRC IDG - BROUDER","Scholarship, Research and Creative Activity","Scholarship, Research and Creative Activity","25100-12-10","SRCA SSHRC IDG - Brouder","309","Research Grant"]
[1234,"SSHRC IRCR CG - MARTIN","Scholarship, Research and Creative Activity","Scholarship, Research and Creative Activity","25100-12-7","SRCA SSHRC IRCR CG - Martin","309","Research Grant"]
[1235,"SSHRC PDG (UOFA)-ROLLINS","Scholarship, Research and Creative Activity","Scholarship, Research and Creative Activity","25100-12-14","SRCA SSHRC PDG (UofA) - Rollins","309","Research Grant"]
[1237,"SSHRC CG - WARSH","Scholarship, Research and Creative Activity","Scholarship, Research and Creative Activity","25100-12-11","SRCA SSHRC CG - Warsh","309","Research Grant"]
[1239,"SSHRC CG - DOUGHTY 5714","Scholarship, Research and Creative Activity","Scholarship, Research and Creative Activity","25100-12-12","SRCA SSHRC CG - DOUGHTY 5714","309","Research Grant"]
[1240,"SSHRC ICG - WAGER 5669","Scholarship, Research and Creative Activity","Scholarship, Research and Creative Activity","25100-12-13","SRCA SSHRC ICG - Wager 5669","309","Research Grant"]
[1250,"NSERC USRA","Scholarship, Research and Creative Activity","Scholarship, Research and Creative Activity","25100-8-11","SRCA NSERC USRA","309","Research Grant"]
[1256,"NSERC DG - BAKER","Scholarship, Research and Creative Activity","Scholarship, Research and Creative Activity","25100-8-2","SRCA NSERC  DG - Baker","309","Research Grant"]
[1259,"NSERC SPGN(WATRLOO)-FLOYD","Scholarship, Research and Creative Activity","Scholarship, Research and Creative Activity","25100-8-10","SRCA NSERC SPGN (Waterloo) - Floyd","309","Research Grant"]
[1260,"NSERC SPGN (VIU) - FLOYD","Scholarship, Research and Creative Activity","Scholarship, Research and Creative Activity","25100-8-9","SRCA NSERC SPGN (VIU) - Floyd","309","Research Grant"]
[1277,"NSERC DG - KROGH","Scholarship, Research and Creative Activity","Scholarship, Research and Creative Activity","25100-8-6","SRCA NSERC DG - Krogh","309","Research Grant"]
[1278,"NSERC DG - GILL","Scholarship, Research and Creative Activity","Scholarship, Research and Creative Activity","25100-8-3","SRCA NSERC DG - Gill","309","Research Grant"]
[1279,"NSERC DG - JANES ","Scholarship, Research and Creative Activity","Scholarship, Research and Creative Activity","25100-8-12","SRCA NSERC DG - Janes","309","Research Grant"]
[1280,"NSERC DG - GREEN","Scholarship, Research and Creative Activity","Scholarship, Research and Creative Activity","25100-8-5","SRCA NSERC DG - Green","309","Research Grant"]
[1281,"NSERC DG - GORRELL","Scholarship, Research and Creative Activity","Scholarship, Research and Creative Activity","25100-8-4","SRCA NSERC DG - Gorrell","309","Research Grant"]
[1282,"NSERC EDI - VAUGEOIS","Scholarship, Research and Creative Activity","Scholarship, Research and Creative Activity","25100-8-7","SRCA NSERC EDI - Vaugeois","309","Research Grant"]
[1283,"NSERC DG - STRINGHAM","Scholarship, Research and Creative Activity","Scholarship, Research and Creative Activity","25100-8-13","SRCA NSERC DG - Stringham","309","Research Grant"]
[1284,"NSERC DG - WIEBE 5790","Scholarship, Research and Creative Activity","Scholarship, Research and Creative Activity","25100-8-14","SRCA NSERC DG - Wiebe 5790-101005","309","Research Grant"]
[1290,"CIHR IGWDG-MEIJER-DREES ","Scholarship, Research and Creative Activity","Scholarship, Research and Creative Activity","25100-6-2","SRCA CIHR - IGWDG - Meijer-Drees 100093","309","Research Grant"]
[1292,"VAN FDN-WAGER 100677","Scholarship, Research and Creative Activity","Scholarship, Research and Creative Activity","25100-13-17","SRCA VAN FDN - Wager 100677","309","Research Grant"]
[1293,"VANCOUVER FDN 2 - FALVAI","Scholarship, Research and Creative Activity","Scholarship, Research and Creative Activity","25100-13-10","SRCA Vancouver Fdn 2 - Falvai","309","Research Grant"]
[1295,"MITACS ACC - GORRELL 5761","Scholarship, Research and Creative Activity","Scholarship, Research and Creative Activity","25100-13-16","SRCA MITACS ACC - Gorrell 5761","309","Research Grant"]
[1296,"UNI-CAN-SRCA 5825","Scholarship, Research and Creative Activity","Scholarship, Research and Creative Activity","25100-13-18","SRCA UNI-CAN-SRCA 5825","309","Research Grant"]
[1298,"MITACS BSI - SRCA","Scholarship, Research and Creative Activity","Scholarship, Research and Creative Activity","25100-13-15","SRCA MITACS BSI - SRCA","309","Research Grant"]
[1299,"MITACS RTA - SCRA ","Scholarship, Research and Creative Activity","Scholarship, Research and Creative Activity","25100-13-13","SRCA MITACS RTA - SRCA","309","Research Grant"]
[1300,"CRC - WAGER","Scholarship, Research and Creative Activity","Scholarship, Research and Creative Activity","25100-4-1","SRCA CRC - Wager","309","Research Grant"]
[1301,"CRC - SLOAN 4670","Scholarship, Research and Creative Activity","Scholarship, Research and Creative Activity","25100-4-5","SRCA CRC - Sloan 4670","309","Research Grant"]
[1304,"TIPS-EDI STIP-VAUGEOIS","Scholarship, Research and Creative Activity","Scholarship, Research and Creative Activity","25100-4-4","SRCA CRC TIPS - EDI Stipend - Vaugeois 5779","309","Research Grant"]
[1305,"BCRIC AECD","Scholarship, Research and Creative Activity","Scholarship, Research and Creative Activity","25100-3-1","SRCA BCRIC - AECD","309","Research Grant"]
[1306,"BCRIC AECD-OPERATING","Scholarship, Research and Creative Activity","Scholarship, Research and Creative Activity","25100-3-3","SRCA BCRIC - AECD Alphonse GRF","309","Research Grant"]
[1310,"BCRIC CHAIR TOURISM","Scholarship, Research and Creative Activity","Scholarship, Research and Creative Activity","25100-3-2","SRCA BCRIC - Chair Tourism","309","Research Grant"]
[1315,"CRC - WOOD","Scholarship, Research and Creative Activity","Scholarship, Research and Creative Activity","25100-4-2","SRCA CRC - Wood","309","Research Grant"]
[1324,"DFO ACRDP-DUDAS","Scholarship, Research and Creative Activity","Scholarship, Research and Creative Activity","25125-1-5","SRCA DFO ACRDP - Dudas","310","Research Contract"]
[1325,"CRC GENOMICS-GREEN","Scholarship, Research and Creative Activity","Scholarship, Research and Creative Activity","25100-4-3","SRCA CRC - Green","309","Research Grant"]
[1326,"CRC GENOMICS-OPERATING","Scholarship, Research and Creative Activity","Scholarship, Research and Creative Activity","25001-1-6","SRCA CRC Genomics - Green Operating","300","Research Contract Administration"]
[1328,"NOAA/PSMFC (OSU) - GREEN","Scholarship, Research and Creative Activity","Scholarship, Research and Creative Activity","25100-13-14","SRCA NOAA/PSMFC (OSU) - Green","309","Research Grant"]
[1330,"MIN HLTH - SRCA 5832","Scholarship, Research and Creative Activity","Scholarship, Research and Creative Activity","25125-1-32","SRCA MIN HLTH - SRCA 5832","310","Research Contract"]
[1347,"GENOME BC (SFU)-MURRAY","Scholarship, Research and Creative Activity","Scholarship, Research and Creative Activity","25100-13-5","SRCA Genome BC (SFU) - Murray","309","Research Grant"]
[1349,"IS HEALTH INNOVATION-GILL","Scholarship, Research and Creative Activity","Scholarship, Research and Creative Activity","25100-13-7","SRCA IS Health Innovation - Gill","309","Research Grant"]
[1377,"CVRD - FLOYD 5712","Scholarship, Research and Creative Activity","Scholarship, Research and Creative Activity","25125-1-31","SRCA CVRD - Floyd 5712","310","Research Contract"]
[1378,"RDN - FLOYD 100604","Scholarship, Research and Creative Activity","Scholarship, Research and Creative Activity","25125-1-29","SRCA RDN - Floyd - 100604","310","Research Contract"]
[1379,"TULA (UNBC) - OWIKENO - FLOYD","Scholarship, Research and Creative Activity","Scholarship, Research and Creative Activity","25125-1-28","SRCA TULA (UNBC) - Owikeno - Floyd","310","Research Contract"]
[1380,"TULA (UNBC) - FLOYD","Scholarship, Research and Creative Activity","Scholarship, Research and Creative Activity","25100-13-9","SRCA TULA (UNBC) - Floyd","309","Research Grant"]
[1381,"TULA FDN 2 - FLOYD","Scholarship, Research and Creative Activity","Scholarship, Research and Creative Activity","25125-1-18","SRCA TULA FDN 2 - Floyd","310","Research Contract"]
[1383,"AVED - RUSSELL","Scholarship, Research and Creative Activity","Scholarship, Research and Creative Activity","25100-13-2","SRCA AVED - Russell","309","Research Grant"]
[1387,"G-H JOURNAL - WARSH","Scholarship, Research and Creative Activity","Scholarship, Research and Creative Activity","25125-1-9","SRCA G-H JOURNAL - Warsh","310","Research Contract"]
[1393,"BC MIN FORESTS 6 - FLOYD","Scholarship, Research and Creative Activity","Scholarship, Research and Creative Activity","25125-1-2","SRCA BC MIN FORESTS 6 - Floyd","310","Research Contract"]
[1395,"MITACS-ACC-PD-VAUGEOIS","Scholarship, Research and Creative Activity","Scholarship, Research and Creative Activity","25100-13-8","SRCA MITACS-ACC-PD - Vaugeois","309","Research Grant"]
[1398,"BC SUPP (UVIC) - BLANEY 5817","Scholarship, Research and Creative Activity","Scholarship, Research and Creative Activity","25125-1-35","SRCA BC SUPP (UVIC) - Blaney 5817","310","Research Contract"]
[1399,"PVPA RESEARCH HOLDING A/C","Scholarship, Research and Creative Activity","Scholarship, Research and Creative Activity","25000-1-1","SRCA Research Contract Holding","300","Research Contract Administration"]
[1418,"VIURAC SIG-18 PASTRO ","Scholarship, Research and Creative Activity","Scholarship, Research and Creative Activity","25025-5-10","SRCA VIURAC SIG18 - PASTRO","315","VIURAC RF"]
[1419,"VIURAC RF ALPHONSE","Scholarship, Research and Creative Activity","Scholarship, Research and Creative Activity","25025-1-43","SRCA VIURAC RF - Alphonse","315","VIURAC RF"]
[1438,"RIF - GILL","Scholarship, Research and Creative Activity","Scholarship, Research and Creative Activity","25100-9-5","SRCA RIF - Ministry - Gill","309","Research Grant"]
[1439,"RIF - BROUDER","Scholarship, Research and Creative Activity","Scholarship, Research and Creative Activity","25100-10-1","SRCA RIF - REFBC - Brouder","309","Research Grant"]
[1443,"RIF - DAMES 100546","Scholarship, Research and Creative Activity","Scholarship, Research and Creative Activity","25100-9-14","SRCA RIF - Ministry  - Dames - 100546","309","Research Grant"]
[1444,"RIF - JOHNSON 100497","Scholarship, Research and Creative Activity","Scholarship, Research and Creative Activity","25100-9-13","SRCA RIF - Ministry - Johnson - 100497","309","Research Grant"]
[1445,"RIF - RUSSELL 100849","Scholarship, Research and Creative Activity","Scholarship, Research and Creative Activity","25100-9-15","SRCA RIF - Ministry  - Russell 100948","309","Research Grant"]
[1446,"RIF-GORRELL 101061","Scholarship, Research and Creative Activity","Scholarship, Research and Creative Activity","25100-10-10","SRCA RIF - REFBC - Gorrell 101061","309","Research Grant"]
[1447,"RIF-GREEN 101062","Scholarship, Research and Creative Activity","Scholarship, Research and Creative Activity","25100-10-11","SRCA RIF - REFBC - Green 101062","309","Research Grant"]
[1448,"RIF-(IOF)-RUSSELL 101069","Scholarship, Research and Creative Activity","Scholarship, Research and Creative Activity","25100-9-16","SRCA RIF - Ministry  - Russell 101069","309","Research Grant"]
[1449,"RIF - BAKER 101071","Scholarship, Research and Creative Activity","Scholarship, Research and Creative Activity","25100-9-17","SRCA RIF - Ministry  - Baker 101071","309","Research Grant"]
[1450,"RIF - KROGH 101085","Scholarship, Research and Creative Activity","Scholarship, Research and Creative Activity","25100-10-12","SRCA RIF - REFBC - Krogh 101085","309","Research Grant"]
[1451,"RIF - Schroeder 101065","Scholarship, Research and Creative Activity","Scholarship, Research and Creative Activity","25100-10-4","SRCA RIF - REFBC - Schroeder 101065","309","Research Grant"]
[1475,"STURGEON CTR-GENERAL OPS","Science and Technology","Science and Technology","22705-3-1","ST SC Operations","201","Faculty Administration"]
[1476,"DEEP BAY-PUBLIC ED/EVENTS","Science and Technology","Science and Technology","22705-2-2","ST DBMFS Public Education & Events","216","Research Administration"]
[1477,"DEEP BAY-RESEARCH, SERVICE","Science and Technology","Science and Technology","22705-2-3","ST DBMFS Research & Service","216","Research Administration"]
[1479,"SEAFOOD INNOVATION CENTRE","Science and Technology","Science and Technology","22705-4-1","ST Seafood Innovation Centre - Feasibility","201","Faculty Administration"]
[1480,"CSR OPERATING FUND ","Science and Technology","Science and Technology","22705-1-1","ST CSR Operations","216","Research Administration"]
[1481,"DEEP BAY OPERATIONS/ADMIN ","Science and Technology","Science and Technology","22705-2-1","ST DBMFS Operations","216","Research Administration"]
[1482,"SIC - IMPLEMENTATION","Science and Technology","Science and Technology","22705-4-2","ST Seafood Innovation Centre - Implementation","201","Faculty Administration"]
[1500,"DEAN - FACULTY OF MGMT","Management","Management","12600-1-1","FOM Faculty Dean's Office","201","Faculty Administration"]
[1505,"ADVISING - F OF M ","Management","Management","12601-1-2","FOM Advising","201","Faculty Administration"]
[1505,"ADVISING - F OF M ","Management","Management","12601-1-2","FOM Advising","204","Advising"]
[1510,"DIRECTED STUDIES - F OF M","Management","Management","12601-3-1","FOM Faculty - Directed Studies","208","Instruction"]
[1515,"INT'L SECTIONS - MGMT","Management","Management","12601-2-1","FOM Faculty - International Sections","208","Instruction"]
[1522,"MANAGEMENT-EXTRA SECTIONS","Management","Management","12620-1-2","FOM Management / Law - Extra Sections","208","Instruction"]
[1525,"ACCOUNTING","Management","Management","12605-1-1","FOM Accounting","208","Instruction"]
[1530,"ECONOMICS","Management","Management","12610-1-1","FOM Economics","208","Instruction"]
[1535,"FINANCE/QUME","Management","Management","12615-1-1","FOM Finance / QUME","208","Instruction"]
[1540,"MANAGEMENT / LAW","Management","Management","12620-1-1","FOM Management / Law","208","Instruction"]
[1545,"MARKETING","Management","Management","12625-1-1","FOM Marketing","208","Instruction"]
[1550,"RECREATION/TOUR - F OF M","Management","Management","12630-1-1","FOM Recreation and Tourism","208","Instruction"]
[1560,"HOSPITALITY - F O M","Management","Management","12635-1-1","FOM Hospitality Management","208","Instruction"]
[1561,"HOSP.MGMT TRUST/FIELD TRI","Management","Management","12635-4-1","FOM Hospitality Management - Field Trips","223","Field Schools"]
[1562,"HOSPITALITY LAB","Management","Management","12635-2-1","FOM Hospitality Management - Lab","208","Instruction"]
[1563,"DISCOVERY ROOM LAB","Management","Management","12635-3-1","FOM Hospitality Management - Discovery Room Lab","208","Instruction"]
[1602,"MBA-RELATED FACULTY DEV'T","Management","Management","22660-4-1","FOM MBA Faculty Development","201","Faculty Administration"]
[1612,"FOM INITIATIVES","Management","Management","22601-2-1","FOM MBA Funded Initatives","201","Faculty Administration"]
[1613,"GD HOSPITALITY MANAGEMENT","Management","Management","22650-1-1","FOM Graduate Diploma in Hospitality","208","Instruction"]
[1615,"MA SUSTAINABLE LEISURE","Management","Management","22655-1-1","FOM Master of Arts in Sustainable Leisure Management","208","Instruction"]
[1616,"GDPM PROGRAM","Management","Management","22652-1-1","FOM Graduate Diploma in Project Management","208","Instruction"]
[1617,"GCIB PROGRAM","Management","Management","22645-1-1","FOM Graduate Certificate in Business Program","208","Instruction"]
[1618,"GCIT PROGRAM","Management","Management","22651-1-1","FOM Graduate Diploma in International Trade","208","Instruction"]
[1619,"ACCREDITATION-BUSINESS PR","Management","Management","22601-4-1","FOM Accreditation - Business Programs","201","Faculty Administration"]
[1620,"MBA PRGM INSTRUCTION","Management","Management","22660-1-1","FOM MBA Instruction","208","Instruction"]
[1621,"MBA COURSE REDESIGN","Management","Management","22660-3-1","FOM MBA Course Redesign","201","Faculty Administration"]
[1622,"MBA INTERNSHIP PROGRAM","Management","Management","22660-2-1","FOM MBA Internship","208","Instruction"]
[1627,"GENERAL RESEARCH - VAUGEOIS","Management","Management","22601-1-13","FOM General Research - Vaugeois","302","General Research"]
[1634,"GENERAL RESEARCH - BURNLEY,C","Management","Management","22601-1-2","FOM General Research - Burnley, Chris","302","General Research"]
[1637,"GENERAL RESEARCH - DELAMERE","Management","Management","22601-1-4","FOM General Research - Delamere","302","General Research"]
[1639,"GENERAL RESEARCH -  DE LA BARRE","Management","Management","22601-1-3","FOM General Research - De La Barre","302","General Research"]
[1641,"GENERAL RESEARCH - STONE","Management","Management","22601-1-12","FOM General Research - Stone","302","General Research"]
[1642,"GENERAL RESEARCH - MOGHIMEHFAR","Management","Management","22601-1-8","FOM General Research - Moghimehfar","302","General Research"]
[1643,"GENERAL RESEARCH - BROUDER","Management","Management","22601-1-1","FOM General Research - Brouder","302","General Research"]
[1645,"GENERAL RESEARCH - WEIGHILL","Management","Management","22601-1-14","FOM General Research - Weighill","302","General Research"]
[1647,"GENERAL RESEARCH - FERGUSON","Management","Management","22601-1-5","FOM General Research - Ferguson","302","General Research"]
[1648,"GENERAL RESEARCH - SCHROEDER","Management","Management","22601-1-11","FOM General Research - Schroeder","302","General Research"]
[1649,"GENERAL RESEARCH - PREDYK","Management","Management","22601-1-10","FOM General Research - Predyk","302","General Research"]
[1651,"GENERAL RESEARCH - JOHNSON","Management","Management","22601-1-6","FOM General Research - Johnson","302","General Research"]
[1652,"GENERAL RESEARCH - LATULIPPE","Management","Management","22601-1-7","FOM General Research - Latulippe","302","General Research"]
[1654,"COMPETITIVE FUND","Management","Management","22601-3-1","FOM Scholarships - Competitive Fund","201","Faculty Administration"]
[1662,"PDD BUSINESS STUDIES CO-O","Management","Management","22641-1-1","FOM Post Degree Diploma in Business Studies","208","Instruction"]
[1670,"WINE PROGRAM","Management","Management","22635-1-1","FOM Hospitality Management - Wine Certificate","208","Instruction"]
[1672,"EVENT MANAGEMENT","Management","Management","22630-1-1","FOM Event Management","208","Instruction"]
[1700,"CE ADMIN - MANAGEMENT","Management","Management","32670-1-1","FOM PD&T Administration","280","PD&T Administration"]
[1703,"BUSINESS AND COMM LEADERS","Management","Management","32670-2-1","FOM PD&T Business Leaders","281","PD&T Program Delivery"]
[1704,"MANAGEMENT SKILLS","Management","Management","32670-3-1","FOM PD&T Management Skills","281","PD&T Program Delivery"]
[1705,"MANAGING CONFLIC-WORKPLA","Management","Management","32670-4-1","FOM PD&T Managing Conflicts","281","PD&T Program Delivery"]
[1706,"PD&T CONTRCT TRNG-EXTERNAL","Management","Management","32670-5-1","FOM PD&T External","281","PD&T Program Delivery"]
[1751,"CLEMENTE PROGRAM","Social Sciences","Social Sciences","32860-1-1","SS PD&T Clemente","281","PD&T Program Delivery"]
[1755,"GIS CIDA HOLDING FUND","Social Sciences","Social Sciences","32860-3-1","SS PD&T GIS CIDA","281","PD&T Program Delivery"]
[1756,"INSIDE OUT PRISON EDUC","Social Sciences","Social Sciences","32860-4-1","SS PD&T Inside Out Prison Education","281","PD&T Program Delivery"]
[1758,"COUCH STONE SYMPSIUM 2016","Social Sciences","Social Sciences","32860-2-1","SS PD&T Couch Stone Symposium","281","PD&T Program Delivery"]
[1759,"INSIDE OUT TRAINING","Social Sciences","Social Sciences","32860-5-1","SS PD&T Inside Out Training","281","PD&T Program Delivery"]
[1800,"DEAN, SOCIAL SCIENCES","Social Sciences","Social Sciences","12800-1-1","SS Faculty Dean's Office","201","Faculty Administration"]
[1801,"SOC SCI RECRUIT/RETENTION","Social Sciences","Social Sciences","12801-1-4","SS Recruitment and Retention","201","Faculty Administration"]
[1801,"SOC SCI RECRUIT/RETENTION","Social Sciences","Social Sciences","12801-1-4","SS Recruitment and Retention","204","Advising"]
[1804,"BUILDING 355 SUPPORT","Social Sciences","Social Sciences","12801-1-3","SS Building 355 Support","201","Faculty Administration"]
[1804,"BUILDING 355 SUPPORT","Social Sciences","Social Sciences","12801-1-3","SS Building 355 Support","204","Advising"]
[1810,"LIBERAL STUDIES","Social Sciences","Social Sciences","12825-1-1","SS Liberal Studies","208","Instruction"]
[1811,"SOC SCI INTERDISCIPLINARY","Social Sciences","Social Sciences","12820-1-1","SS Interdisciplinary Studies","208","Instruction"]
[1812,"DIRECT STUDIES SOCIAL SCI","Social Sciences","Social Sciences","12801-3-1","SS Faculty - Directed Studies","208","Instruction"]
[1815,"INT'L SECTIONS SOCIAL SCI","Social Sciences","Social Sciences","12801-2-1","SS Faculty - International Sections","208","Instruction"]
[1836,"PHILOSOPHY","Social Sciences","Social Sciences","12830-1-1","SS Philosophy ","208","Instruction"]
[1840,"ANTHROPOLOGY","Social Sciences","Social Sciences","12805-1-1","SS Anthropology","208","Instruction"]
[1843,"SOCIOLOGY","Social Sciences","Social Sciences","12845-1-1","SS Sociology ","208","Instruction"]
[1844,"CBAIR","Social Sciences","Social Sciences","12801-4-1","SS Community Based Applied Interdisciplinary Research","201","Faculty Administration"]
[1846,"CRIMINOLOGY","Social Sciences","Social Sciences","12810-1-1","SS Criminology","208","Instruction"]
[1849,"GEOGRAPHY","Social Sciences","Social Sciences","12815-1-1","SS Geography","208","Instruction"]
[1855,"POLITICAL STUDIES","Social Sciences","Social Sciences","12835-1-1","SS Political Studies","208","Instruction"]
[1861,"PSYCHOLOGY","Social Sciences","Social Sciences","12840-1-1","SS Psychology","208","Instruction"]
[1880,"B.A. ADVISING","Social Sciences","Social Sciences","12801-1-2","SS Faculty - Advising","201","Faculty Administration"]
[1880,"B.A. ADVISING","Social Sciences","Social Sciences","12801-1-2","SS Faculty - Advising","204","Advising"]
[1900,"VIU MODEL UN","Social Sciences","Social Sciences","22801-4-1","SS VIU Model UN","201","Faculty Administration"]
[1903,"WORLDBRIDGER FILM SERIES","Social Sciences","Social Sciences","22801-4-3","SS Worldbridger Film Series","201","Faculty Administration"]
[1904,"RESILIENCE LAB (RSAC)","Social Sciences","Social Sciences","22801-3-3","SS Resilience Research Lab (RSAC)","216","Research Administration"]
[1912,"RESILIENCE RESEARCH LAB","Social Sciences","Social Sciences","22801-3-2","SS Resilience Research Lab","216","Research Administration"]
[1919,"THE COMPASS ROSE","Social Sciences","Social Sciences","22801-4-2","SS The Compass Rose","201","Faculty Administration"]
[1920,"MALASPINA RESEARCH CENTRE","Social Sciences","Social Sciences","22801-3-1","SS Malaspina Research Centre","216","Research Administration"]
[1921,"MALASPINA FELLOWS PROGRAM","Social Sciences","Social Sciences","22801-4-4","SS Malaspina Fellows Program","201","Faculty Administration"]
[1922,"GENERAL RESEARCH-MARCHANT","Social Sciences","Social Sciences","22801-1-8","SS General Research - Marchant","302","General Research"]
[1923,"GENERL RESEARCH-PATENAUDE","Social Sciences","Social Sciences","22801-1-11","SS General Research - Patenaude","302","General Research"]
[1924,"GENERAL RESEARCH-MCCUNN","Social Sciences","Social Sciences","22801-1-9","SS General Research - McCunn","302","General Research"]
[1925,"GENERAL RESEARCH-COOPER","Social Sciences","Social Sciences","22801-1-2","SS General Research - Cooper","302","General Research"]
[1927,"GENERL RESEARCH-LIVINGSTO","Social Sciences","Social Sciences","22801-1-6","SS General Research - Livingstone","302","General Research"]
[1928,"GENERAL RESEARCH-BURNLEY","Social Sciences","Social Sciences","22801-1-1","SS General Research - Burnley, Caroline","302","General Research"]
[1929,"GENERAL RESEARCH-HINBEST","Social Sciences","Social Sciences","22801-1-4","SS General Research - Hinbest","302","General Research"]
[1930,"GENERAL RESEARCH-MACGUIRE","Social Sciences","Social Sciences","22801-1-7","SS General Research - MacGuire","302","General Research"]
[1931,"GENERL RESEARCH-GILCHRIST","Social Sciences","Social Sciences","22801-1-3","SS General Research - Gilchrist","302","General Research"]
[1932,"GENERAL RESEARCH-SHAW","Social Sciences","Social Sciences","22801-2-1","SS General Research - Shaw","302","General Research"]
[1933,"GENERAL RESEARCH-NICOL","Social Sciences","Social Sciences","22801-1-10","SS General Research - Nicol","302","General Research"]
[1934,"GENERAL RESEARCH-LIM","Social Sciences","Social Sciences","22801-1-5","SS General Research - Lim","302","General Research"]
[1970,"MASTERS-COMM.PLANNING","Social Sciences","Social Sciences","22850-1-1","SS Master of Community Planning ","208","Instruction"]
[1971,"LANDS MGMT CERT PROGRAM","Social Sciences","Social Sciences","22849-1-1","SS Lands Management Certificate","208","Instruction"]
[1974,"ADVANCED DIPLOMA GIS","Social Sciences","Social Sciences","22848-1-1","SS Advanced Diploma in GIS Applications","208","Instruction"]
[1975,"MASTERS-GIS APPLICATIONS","Social Sciences","Social Sciences","22855-1-1","SS Master of Geographic Information Systems Applications","208","Instruction"]
[1976,"NRCAN","Social Sciences","Social Sciences","22815-1-1","SS Geography - Online Course- National Resource Canada","219","Contract activity"]
[2000,"DEAN, ARTS AND HUMANITIES","Arts and Humanities","Arts and Humanities","12200-1-1","AH Faculty Dean's Office","201","Faculty Administration"]
[2002,"A & H DIRECTED STUDIES","Arts and Humanities","Arts and Humanities","12201-3-1","AH Faculty of Arts and Humanities - Initiatives - Directed Studies","208","Instruction"]
[2003,"INTERED SECTIONS ARTS","Arts and Humanities","Arts and Humanities","12201-2-1","AH Faculty of Arts and Humanities - Initiatives - International Sections","208","Instruction"]
[2005,"ARTS AND F.N.ST ADVISING","Arts and Humanities","Arts and Humanities","12201-1-2","AH Faculty Advising","201","Faculty Administration"]
[2005,"ARTS AND F.N.ST ADVISING","Arts and Humanities","Arts and Humanities","12201-1-2","AH Faculty Advising","204","Advising"]
[2009,"ART TECHNICIAN","Arts and Humanities","Arts and Humanities","12215-1-2","AH Art and Design - Art Technician","201","Faculty Administration"]
[2009,"ART TECHNICIAN","Arts and Humanities","Arts and Humanities","12215-1-2","AH Art and Design - Art Technician","208","Instruction"]
[2010,"ART","Arts and Humanities","Arts and Humanities","12215-1-1","AH Art and Design - Visual Art","201","Faculty Administration"]
[2010,"ART","Arts and Humanities","Arts and Humanities","12215-1-1","AH Art and Design - Visual Art","208","Instruction"]
[2011,"APPLIED ART - GRAPHICS","Arts and Humanities","Arts and Humanities","12205-1-1","AH Art and Design - Graphic Design","208","Instruction"]
[2012,"INTERIOR DESIGN","Arts and Humanities","Arts and Humanities","12210-1-1","AH Art and Design - Interior Design","208","Instruction"]
[2013,"MEDIA STUDIES - EXTRA SECTIONS","Arts and Humanities","Arts and Humanities","12240-1-2","AH Media Studies - Extra Sections","208","Instruction"]
[2014,"MEDIA STUDIES","Arts and Humanities","Arts and Humanities","12240-1-1","AH Media Studies","208","Instruction"]
[2016,"MUSIC","Arts and Humanities","Arts and Humanities","12250-1-1","AH Music","208","Instruction"]
[2018,"MUSIC-PRIVATE INSTRUCTION","Arts and Humanities","Arts and Humanities","12250-1-2","AH Music - Private Instruction","208","Instruction"]
[2019,"THEATRE","Arts and Humanities","Arts and Humanities","12260-1-1","AH Theatre","208","Instruction"]
[2026,"MODERN LANGUAGE","Arts and Humanities","Arts and Humanities","12245-1-1","AH Modern Languages Studies","208","Instruction"]
[2027,"ASIAN STUDIES CREDENTIAL","Arts and Humanities","Arts and Humanities","12245-2-1","AH Asian Studies Credential","208","Instruction"]
[2029,"ENGLISH - EXTRA SECTIONS","Arts and Humanities","Arts and Humanities","12225-1-2","AH English - Extra Sections","208","Instruction"]
[2030,"ENGLISH","Arts and Humanities","Arts and Humanities","12225-1-1","AH English","208","Instruction"]
[2032,"CREATIVE WRITING","Arts and Humanities","Arts and Humanities","12220-1-1","AH Creative Writing and Journalism","208","Instruction"]
[2035,"CREW - EXTRA SECTIONS","Arts and Humanities","Arts and Humanities","12220-1-2","AH Creative Writing and Journalism - Extra Sections","208","Instruction"]
[2052,"HISTORY","Arts and Humanities","Arts and Humanities","12230-1-1","AH History","208","Instruction"]
[2070,"FIRST NATIONS STUDIES","Arts and Humanities","Arts and Humanities","12235-1-1","AH Indigenous/Xwulmuxw Studies","208","Instruction"]
[2080,"WOMEN'S STUDIES","Arts and Humanities","Arts and Humanities","12255-1-1","AH Studies in Women and Gender","208","Instruction"]
[2090,"VIEW GALLERY","Arts and Humanities","Arts and Humanities","12215-1-3","AH Art and Design - View Gallery","201","Faculty Administration"]
[2090,"VIEW GALLERY","Arts and Humanities","Arts and Humanities","12215-1-3","AH Art and Design - View Gallery","208","Instruction"]
[2201,"ARTS-CONTRACTS-HOLDING","Arts and Humanities","Arts and Humanities","22201-1-1","AH Faculty of Arts and Humanities - Faculty Holding","221","Department Initiatives"]
[2202,"CANADA COUNCIL READINGS","Arts and Humanities","Arts and Humanities","22201-3-3","AH Faculty of Arts and Humanities - Other - Canada Council Readings","221","Department Initiatives"]
[2203,"CREATIVE WRITING - PORTAL","Arts and Humanities","Arts and Humanities","22220-1-1","AH Creative Writing and Journalism - Portal Magazine","221","Department Initiatives"]
[2205,"MISC META LAB NEEDS","Arts and Humanities","Arts and Humanities","22201-3-1","AH Faculty of Arts and Humanities - Other - Meta Lab","221","Department Initiatives"]
[2206,"MUSIC MASTER SERIES","Arts and Humanities","Arts and Humanities","22250-1-1","AH Music - Other - Master Series","221","Department Initiatives"]
[2207,"A&H COLLOQUIUM SERIES","Arts and Humanities","Arts and Humanities","22201-3-2","AH Faculty of Arts and Humanities - Other - Colloquium Series","221","Department Initiatives"]
[2209,"RALPH GUSTAFSON POETRY TR","Arts and Humanities","Arts and Humanities","22201-2-1","AH Faculty of Arts and Humanities - Gustafson - Poetry Trust","221","Department Initiatives"]
[2210,"STUDENT ART SALES","Arts and Humanities","Arts and Humanities","22205-1-1","AH Art and Design - Graphic Design - Other - Student Art Sales","208","Instruction"]
[2210,"STUDENT ART SALES","Arts and Humanities","Arts and Humanities","22205-1-1","AH Art and Design - Graphic Design - Other - Student Art Sales","227","Student Sales"]
[2211,"VISITING ARTIST SERIES","Arts and Humanities","Arts and Humanities","22205-1-2","AH Art and Design - Graphic Design - Other - Visiting Artists Series","208","Instruction"]
[2211,"VISITING ARTIST SERIES","Arts and Humanities","Arts and Humanities","22205-1-2","AH Art and Design - Graphic Design - Other - Visiting Artists Series","227","Student Sales"]
[2212,"ARTG 480 FINAL EXHIBIT","Arts and Humanities","Arts and Humanities","22205-1-3","AH Art and Design - Graphic Design - Other - ARTG 480 FINAL exhibit","208","Instruction"]
[2212,"ARTG 480 FINAL EXHIBIT","Arts and Humanities","Arts and Humanities","22205-1-3","AH Art and Design - Graphic Design - Other - ARTG 480 FINAL exhibit","227","Student Sales"]
[2214,"CANADIAN LETTERS,IMAGES","Arts and Humanities","Arts and Humanities","22230-1-1","AH History - Other - Canadian Letters, Images","221","Department Initiatives"]
[2217,"ENGL DUAL CREDIT SD68","Arts and Humanities","Arts and Humanities","22225-1-1","AH English - Other - Dual Credit","208","Instruction"]
[2220,"GUSTAFSON CHAPBOOKS SERIE","Arts and Humanities","Arts and Humanities","22201-2-2","AH Faculty of Arts and Humanities - Gustafson - Chapbook Series","221","Department Initiatives"]
[2232,"PROGRESSIONS","Arts and Humanities","Arts and Humanities","22215-1-3","AH Art and Design - Visual Art - Other - Progressions","208","Instruction"]
[2232,"PROGRESSIONS","Arts and Humanities","Arts and Humanities","22215-1-3","AH Art and Design - Visual Art - Other - Progressions","227","Student Sales"]
[2256,"MRL BUSINESS ACTIVITY","Arts and Humanities","Arts and Humanities","22240-1-1","AH Media Studies - Other - MRL Business Activity","208","Instruction"]
[2260,"GENERAL RESEARCH - WOOD","Arts and Humanities","Arts and Humanities","22201-4-1","AH General Research - Wood","302","General Research"]
[2300,"DEAN, SCIENCE AND TECH","Science and Technology","Science and Technology","12700-1-1","ST Faculty Dean's Office","201","Faculty Administration"]
[2301,"FACULTY ADMINISTRATION","Science and Technology","Science and Technology","12700-2-1","ST Faculty Administration","201","Faculty Administration"]
[2303,"SCIENCE/TECH ADVISING","Science and Technology","Science and Technology","12701-1-2","ST Faculty Advising","201","Faculty Administration"]
[2303,"SCIENCE/TECH ADVISING","Science and Technology","Science and Technology","12701-1-2","ST Faculty Advising","204","Advising"]
[2305,"BAMFIELD FELLOWSHIPS","Science and Technology","Science and Technology","12701-1-5","ST Bamfield - Fellowships","201","Faculty Administration"]
[2305,"BAMFIELD FELLOWSHIPS","Science and Technology","Science and Technology","12701-1-5","ST Bamfield - Fellowships","204","Advising"]
[2306,"DIRECTED STUDIES-SCIENCE","Science and Technology","Science and Technology","12701-3-1","ST Faculty - Directed Studies","208","Instruction"]
[2310,"MATH","Science and Technology","Science and Technology","12745-1-1","ST Mathematics","208","Instruction"]
[2313,"MATH CENTRE","Science and Technology","Science and Technology","12745-2-1","ST Math Centre","208","Instruction"]
[2315,"INT'L SECTIONS - SCIENCE","Science and Technology","Science and Technology","12701-2-1","ST Faculty - International Sections","208","Instruction"]
[2320,"CHEMISTRY","Science and Technology","Science and Technology","12715-1-1","ST Chemistry","208","Instruction"]
[2325,"FUMEHOOD HAZ.WASTE DISPOS","Science and Technology","Science and Technology","12701-1-4","ST Fumehood Hazardous Waste Disposal","201","Faculty Administration"]
[2325,"FUMEHOOD HAZ.WASTE DISPOS","Science and Technology","Science and Technology","12701-1-4","ST Fumehood Hazardous Waste Disposal","204","Advising"]
[2326,"PHYSICS","Science and Technology","Science and Technology","12750-1-1","ST Physics","208","Instruction"]
[2327,"ENGINEERING DEGREE PROGR","Science and Technology","Science and Technology","12730-1-1","ST Engineering","208","Instruction"]
[2340,"COMPUTER SCIENCE","Science and Technology","Science and Technology","12720-1-1","ST Computer Science","208","Instruction"]
[2350,"FORESTRY","Science and Technology","Science and Technology","12740-1-1","ST Forestry","208","Instruction"]
[2360,"BIOLOGY","Science and Technology","Science and Technology","12710-1-1","ST Biology","208","Instruction"]
[2380,"AQUACULTURE","Science and Technology","Science and Technology","12735-1-1","ST Fisheries and Aquaculture","208","Instruction"]
[2386,"RESOURCE MGMT/PROTECTION","Science and Technology","Science and Technology","12755-1-1","ST Resource Management and Protection","208","Instruction"]
[2393,"GEOLOGY","Science and Technology","Science and Technology","12725-1-1","ST Earth Science / Geology","208","Instruction"]
[2402,"VIU MUSEUM FUNDRAISING","Science and Technology","Science and Technology","22701-3-1","ST Fundraising - VIU Museum","201","Faculty Administration"]
[2406,"AERL APPLIED RESEARCH","Science and Technology","Science and Technology","22701-6-2","ST AERL Applied Research","216","Research Administration"]
[2409,"FORESTRY FIELD TRIPS","Science and Technology","Science and Technology","22740-1-1","ST Forestry Field Trips - Domestic","223","Field Schools"]
[2451,"MATH CONTEST","Science and Technology","Science and Technology","22745-1-1","ST Math Contest","208","Instruction"]
[2452,"AERL OPERATING (KROGH)","Science and Technology","Science and Technology","22701-6-1","ST AERL (Krogh)","216","Research Administration"]
[2453,"ENV CAN - KROGH","Science and Technology","Science and Technology","22701-5-2","ST Environment Canada Contract - Krogh","310","Research Contract"]
[2455,"PROMOTING EARTH SCIENCE","Science and Technology","Science and Technology","22725-2-1","ST Earth Science / Geology - Promotion","201","Faculty Administration"]
[2458,"GENERAL RESEARCH-KROGH","Science and Technology","Science and Technology","22701-1-11","ST General Research - Krogh","302","General Research"]
[2459,"GENERAL RESEARCH-GILL","Science and Technology","Science and Technology","22701-1-7","ST General Research - Gill","302","General Research"]
[2461,"GENERAL RESEARCH-SUN","Science and Technology","Science and Technology","22701-1-19","ST General Research - Sun","302","General Research"]
[2463,"GENERAL RESEARCH-BAKER","Science and Technology","Science and Technology","22701-1-1","ST General Research - Baker","302","General Research"]
[2464,"GENERAL RESEARCH-RUSSELL","Science and Technology","Science and Technology","22701-1-17","ST General Research - Russell","302","General Research"]
[2465,"GENERAL RESEARCH-MCEWEN","Science and Technology","Science and Technology","22701-1-18","ST General Research - McEwen","302","General Research"]
[2466,"GENERAL RESEARCH-STOKES","Science and Technology","Science and Technology","22701-1-16","ST General Research - Stokes","302","General Research"]
[2470,"GENERAL RESEARCH-LESEMANN","Science and Technology","Science and Technology","22701-1-12","ST General Research - Lesemann","302","General Research"]
[2471,"GENERAL RESEARCH - DUNCAN ","Science and Technology","Science and Technology","22701-1-20","ST General Research - Duncan","302","General Research"]
[2483,"VIU BIRD BANDING STATION","Science and Technology","Science and Technology","22710-2-1","ST VIU Bird Banding Station","216","Research Administration"]
[2500,"PROCEEDS - SCIENCE/TECH","Science and Technology","Science and Technology","22701-2-1","ST Faculty Proceeds","201","Faculty Administration"]
[2510,"PRGM EQUIPMENT DEPOSITS","Science and Technology","Science and Technology","22740-2-2","ST Forestry Equipment Deposits","201","Faculty Administration"]
[2511,"RMOT STUDENT FUND","Science and Technology","Science and Technology","22755-1-1","ST RMOT Student Fund","201","Faculty Administration"]
[2515,"GENERAL RESEARCH-PENNER","Science and Technology","Science and Technology","22701-1-15","ST General Research - Penner","302","General Research"]
[2519,"FORESTRY WOODLOT-A117","Science and Technology","Science and Technology","22740-3-1","ST Forestry Woodlot - A117","219","Contract activity"]
[2520,"SCIENCE/TECH LECTURE SER.","Science and Technology","Science and Technology","22701-4-1","ST Faculty Lecture Series","201","Faculty Administration"]
[2530,"MENREP PROGRAM","Science and Technology","Science and Technology","22755-2-1","ST MENREP Program","219","Contract activity"]
[2533,"CENTRE FOR COASTAL HEALTH","Science and Technology","Science and Technology","22701-5-1","ST Centre for Coastal Health","310","Research Contract"]
[2535,"HERNANDEZ STUDENT RESEARC","Science and Technology","Science and Technology","22701-1-9","ST General Research - Hernandez","302","General Research"]
[2562,"GEOL 390 SPEC.FIELD STUDI","Science and Technology","Science and Technology","22725-1-2","ST Geology 390 Field Studies","223","Field Schools"]
[2563,"GEOL 206 FIELD SCHOOL","Science and Technology","Science and Technology","22725-1-1","ST Geology 206 Field School","223","Field Schools"]
[2566,"ENGINEERING RESEARCH","Science and Technology","Science and Technology","22730-2-1","ST Engineering Research","216","Research Administration"]
[2574,"GENERAL RESEARCH-DUFF","Science and Technology","Science and Technology","22701-1-4","ST General Research - Duff","302","General Research"]
[2579,"AWARENESS CLIMATE CHANGE","Science and Technology","Science and Technology","22701-3-2","ST Fundraising - Awareness Climate Change","201","Faculty Administration"]
[2612,"FFTCP MODULES","Science and Technology","Science and Technology","32760-3-1","ST PD&T Fisheries Field Technician","281","PD&T Program Delivery"]
[2613,"ENVIRONMENTAL MONITORING","Science and Technology","Science and Technology","32760-2-2","ST PD&T Environmental Monitoring","281","PD&T Program Delivery"]
[2614,"FRESHWATER SAMPLING METHO","Science and Technology","Science and Technology","32760-8-1","ST PD&T Water Quality Sampling","281","PD&T Program Delivery"]
[2617,"EROSION AND SEDIMENT CONT","Science and Technology","Science and Technology","32760-2-3","ST PD&T Erosion and Sediment Control","281","PD&T Program Delivery"]
[2618,"NRSH-SHELLFISH COURSE","Science and Technology","Science and Technology","32760-7-1","ST PD&T Shellfish Course","281","PD&T Program Delivery"]
[2619,"RIPARIAN AREA REGULATION","Science and Technology","Science and Technology","32760-5-1","ST PD&T Riparian Area Regulation","281","PD&T Program Delivery"]
[2620,"EF RECERT","Science and Technology","Science and Technology","32760-3-2","ST PD&T Electrofishing Recertification","281","PD&T Program Delivery"]
[2621,"ABORIGINAL ENV.TECH.CERT.","Science and Technology","Science and Technology","32760-2-1","ST PD&T Environmental Technician","281","PD&T Program Delivery"]
[2622,"ESSENTIAL FISHERIES FIELD","Science and Technology","Science and Technology","32760-3-3","ST PD&T Essential Fisheries Field","281","PD&T Program Delivery"]
[2625,"NRTW-WRITING COURSE","Science and Technology","Science and Technology","32760-4-1","ST PD&T Technical Writing","281","PD&T Program Delivery"]
[2627,"SAFETY TRAINING (NRST)","Science and Technology","Science and Technology","32760-6-1","ST PD&T Safety Training","281","PD&T Program Delivery"]
[2700,"ABE & CAP ADMINISTRATRATION","Academic and Career Preparation","Academic and Career Preparation","12100-1-1","ACP Faculty Dean's Office","201","Faculty Administration"]
[2705,"ABE LEARNING CENTRE","Academic and Career Preparation","Academic and Career Preparation","12105-4-1","ACP ABE - Learning Centre","208","Instruction"]
[2706,"FOUNDATIONS FOR SUCCESS","Academic and Career Preparation","Academic and Career Preparation","12115-1-1","ACP Foundations for Success","208","Instruction"]
[2730,"ADULT BASIC EDU","Academic and Career Preparation","Academic and Career Preparation","12105-1-1","ACP ABE - Nanaimo","208","Instruction"]
[2735,"REGIONAL PROGRAMS","Academic and Career Preparation","Academic and Career Preparation","12120-3-1","ACP Community Adult Literacy Programs","208","Instruction"]
[2736,"VOLUNTEER TUTOR","Academic and Career Preparation","Academic and Career Preparation","12120-1-1","ACP Volunteer Tutors - Nanaimo","208","Instruction"]
[2741,"ACCESS PROGRAMS","Academic and Career Preparation","Academic and Career Preparation","12110-1-1","ACP ASE - Nanaimo","208","Instruction"]
[2750,"COWICHAN-VOLUNTEER TUTORS","Academic and Career Preparation","Academic and Career Preparation","12120-2-1","ACP Volunteer Tutors - Cowichan","208","Instruction"]
[2752,"COWICHAN-A.B.E.","Academic and Career Preparation","Academic and Career Preparation","12105-2-1","ACP ABE - Cowichan","208","Instruction"]
[2755,"COWICHAN-ACCESS PROGRAMS","Academic and Career Preparation","Academic and Career Preparation","12110-2-1","ACP ASE - Cowichan","208","Instruction"]
[2770,"ABORIGINAL UNIV. BRIDGING","Academic and Career Preparation","Academic and Career Preparation","12105-1-2","ACP ABE - Aboriginal University Bridging","208","Instruction"]
[2780,"PARKSVILLE A.B.E.","Academic and Career Preparation","Academic and Career Preparation","12105-3-1","ACP ABE - Parksville","208","Instruction"]
[2903,"CETP 2019-2020","Academic and Career Preparation","Academic and Career Preparation","22110-1-1","ACP ASE - CETP Grant","208","Instruction"]
[2904,"WEST MINSTRY GRANT 2019","Academic and Career Preparation","Academic and Career Preparation","22110-2-1","ACP ASE - WEST Grant","208","Instruction"]
[3000,"INTERNATIONAL ADMIN","International Education","International Education","22500-1-1","IE Department Dean's Office","201","Faculty Administration"]
[3002,"CUSTOMER RELATIONS MGMT","International Education","International Education","22530-1-2","IE Marketing - Customer Relations Management","201","Faculty Administration"]
[3004,"INTERED RENOVATIONS","International Education","International Education","22501-1-2","IE Department - Building 255 Renovations","201","Faculty Administration"]
[3005,"INTERNATIONAL MEDICAL","International Education","International Education","22520-1-4","IE International Student Services - Medical","204","Advising"]
[3005,"INTERNATIONAL MEDICAL","International Education","International Education","22520-1-4","IE International Student Services - Medical","217","Student Support and Services"]
[3006,"INTED STUDENT EMERG LOAN","International Education","International Education","22520-1-3","IE International Student Services - Emergency Loan","204","Advising"]
[3006,"INTED STUDENT EMERG LOAN","International Education","International Education","22520-1-3","IE International Student Services - Emergency Loan","217","Student Support and Services"]
[3008,"INT'L STUDENT ADVISING","International Education","International Education","22520-1-2","IE International Student Services - Advising","204","Advising"]
[3008,"INT'L STUDENT ADVISING","International Education","International Education","22520-1-2","IE International Student Services - Advising","217","Student Support and Services"]
[3009,"INTERCULTURAL PROGRAMS","International Education","International Education","22515-1-1","IE Centre for Intercultural Studies - Intercultural Programs","201","Faculty Administration"]
[3010,"INTERN'L STU SERVICES","International Education","International Education","22520-1-1","IE International Student Services","204","Advising"]
[3010,"INTERN'L STU SERVICES","International Education","International Education","22520-1-1","IE International Student Services","217","Student Support and Services"]
[3011,"HOMESTAY","International Education","International Education","22525-1-1","IE Homestay - Administration","217","Student Support and Services"]
[3012,"AGENTS FEES  ESL","International Education","International Education","22530-2-2","IE Marketing - ESL","201","Faculty Administration"]
[3013,"AGENTS FEES ACADEMIC","International Education","International Education","22530-2-1","IE Marketing - Academic","201","Faculty Administration"]
[3014,"INTERNATIONAL SHOLARSHIPS","International Education","International Education","22505-4-1","IE Student Scholarships","201","Faculty Administration"]
[3015,"NYAKA SCHOLARSHIP","International Education","International Education","22505-4-2","IE Scholarships - NYAKA","201","Faculty Administration"]
[3016,"HOMESTAY-VIU STUDENTS","International Education","International Education","22525-1-2","IE Homestay - VIU Students","217","Student Support and Services"]
[3017,"HOMESTAY - GROUPS","International Education","International Education","22525-1-3","IE Homestay - Groups","217","Student Support and Services"]
[3019,"TASIS/VIU SCHOLARSHIP","International Education","International Education","22505-4-10","IE Scholarships - TASIS/VIU","201","Faculty Administration"]
[3020,"SYRIAN STDNT SCHOLARSHIP","International Education","International Education","22505-4-7","IE Scholarships - Syrian","201","Faculty Administration"]
[3021,"PEASON COLLEGE SCLRSHIP","International Education","International Education","22505-4-3","IE Scholarships - Pearson college","201","Faculty Administration"]
[3022,"SYRIAN SCHOLARSHIP-ALLIKO","International Education","International Education","22505-4-8","IE Scholarships - Syrian Alliko","201","Faculty Administration"]
[3023,"SYRIAN SCHOLARSHIP-BAKER","International Education","International Education","22505-4-9","IE Scholarships - Syrian Baker","201","Faculty Administration"]
[3024,"SYRIAN SCHOLARSHIP-SHEIKHO","International Education","International Education","22505-4-11","IE Scholarships - Syrian Sheikho","201","Faculty Administration"]
[3025,"GROUP PROGRAMS&CONTRACTS","International Education","International Education","22540-1-1","IE Group Programs","219","Contract activity"]
[3027,"ISTEP-TANZANIA","International Education","International Education","22550-1-24","IE EAFS - ISTEP EAFS - Tanzania","223","Field Schools"]
[3028,"ISTEP-TANZANIA-PIP","International Education","International Education","22550-1-25","IE EAFS - ISTEP EAFS - Tanzania PIP","223","Field Schools"]
[3029,"ELAP","International Education","International Education","22540-1-2","IE Group Programs  - ELAP","219","Contract activity"]
[3030,"INTERNL PROJECT/PARTNERSH","International Education","International Education","22540-1-3","IE Group Programs  - International Project/Partnerships","219","Contract activity"]
[3034,"SHANGHAI LIXIN U COMMERCE","International Education","International Education","22540-1-4","IE Group Programs  - Shanghai Lizin U Commerce","219","Contract activity"]
[3035,"SDIBT","International Education","International Education","22540-1-5","IE Group Programs  - SDIBT","219","Contract activity"]
[3039,"COSMETOLGY IMPLEMENTATION","International Education","International Education","22550-1-12","IE EAFS - Cosmetology Implementation","223","Field Schools"]
[3040,"INTERNATIONAL ED TRAVEL","International Education","International Education","22501-2-1","IE Department Travel","201","Faculty Administration"]
[3041,"QUEEN ELIZABETH SCHOLARS","International Education","International Education","22505-4-4","IE Scholarships - Queen Elizabeth","201","Faculty Administration"]
[3042,"QES VIU WAIVED TUITION","International Education","International Education","22505-4-5","IE Scholarships - QES - Waived tuition","201","Faculty Administration"]
[3043,"KEFEP - KENYA","International Education","International Education","22550-1-26","IE EAFS - KEFEP EAFS - Kenya","223","Field Schools"]
[3044,"SAGE - BELIZE","International Education","International Education","22545-3-1","IE Global Engagement - SAGE - Belize","219","Contract activity"]
[3045,"PACIFIC ALLIANCE","International Education","International Education","22545-5-1","IE Global Engagement - Pacific Alliance - Chile","219","Contract activity"]
[3046,"YOUNG AFRICA WORKS - KENYA","International Education","International Education","22545-4-1","IE Global Engagement- Young Africa Works- Kenya","219","Contract activity"]
[3060,"ED. ABROAD & PROJ MNGMT","International Education","International Education","22550-1-1","IE Education Abroad and Field Schools","223","Field Schools"]
[3061,"GLOBAL ENGAGEMENT ","International Education","International Education","22545-1-1","IE Global Engagement","201","Faculty Administration"]
[3070,"ERM TRAVEL SUPPORT","International Education","International Education","22501-3-1","IE ERM Travel Support Project","201","Faculty Administration"]
[3073,"VIETNAM - TRA VINH","International Education","International Education","22545-6-1","IE Global Engagement - TRA NINH - Vietnam","219","Contract activity"]
[3082,"MIHS SUMMER STUDY","High School","International Education","88215-1-1","VH Summer Programs","100","Administration"]
[3082,"MIHS SUMMER STUDY","High School","International Education","88215-1-1","VH Summer Programs","208","Instruction"]
[3083,"GROUP PROGRAMS","High School","International Education","88230-1-1","VH Group Programs","100","Administration"]
[3083,"GROUP PROGRAMS","High School","International Education","88230-1-1","VH Group Programs","208","Instruction"]
[3084,"ADULT & FDN PROGRAMS","High School","International Education","88210-1-1","VH Adult and Foundation Programs","100","Administration"]
[3084,"ADULT & FDN PROGRAMS","High School","International Education","88210-1-1","VH Adult and Foundation Programs","208","Instruction"]
[3085,"MIHS OPERATIONS","High School","International Education","88000-1-1","VH High Schools - Administration","100","Administration"]
[3085,"MIHS OPERATIONS","High School","International Education","88000-1-1","VH High Schools - Administration","101","Institutional"]
[3087,"HIGH SCHOOL INSTRUCTION","High School","International Education","88075-1-1","VH Combined - Domestic and International activity","100","Administration"]
[3087,"HIGH SCHOOL INSTRUCTION","High School","International Education","88075-1-1","VH Combined - Domestic and International activity","208","Instruction"]
[3088,"HIGH SCHOOL- CANADIAN","High School","International Education","88100-1-1","VH Domestic activity","100","Administration"]
[3088,"HIGH SCHOOL- CANADIAN","High School","International Education","88100-1-1","VH Domestic activity","208","Instruction"]
[3089,"MHS -INT'L STUDENTS","High School","International Education","88200-1-1","VH International activity","100","Administration"]
[3089,"MHS -INT'L STUDENTS","High School","International Education","88200-1-1","VH International activity","208","Instruction"]
[3090,"INT'L MARKETING PROGRAMS","International Education","International Education","22530-1-1","IE International Marketing","201","Faculty Administration"]
[3092,"MAL.INTERNATIONALIZATION","International Education","International Education","22545-2-1","IE Global Engagement - Internationalization","201","Faculty Administration"]
[3093,"OVERSEAS TRAVEL STIPEND","International Education","International Education","22501-2-2","IE Department Travel Stipends","201","Faculty Administration"]
[3094,"EXCHANGE PROGRAMS","International Education","International Education","22550-1-2","IE EAFS - Exchange Programs","223","Field Schools"]
[3095,"ACADEMIC PAID BY IE","International Education","International Education","22505-3-1","IE Academic Transfers","201","Faculty Administration"]
[3096,"ABE PAID BY IE","International Education","International Education","22505-3-2","IE ABE Transfers","201","Faculty Administration"]
[3098,"STU.FEES-HOLDING ACCOUNT","International Education","International Education","22505-2-2","IE International Student Fee - Holding","201","Faculty Administration"]
[3099,"INTER ED INDIV. STUDENTS","International Education","International Education","22505-2-1","IE International Student Revenues","201","Faculty Administration"]
[3100,"INTERNATIONAL ADMISSIONS","International Education","International Education","22522-1-1","IE International Admissions","217","Student Support and Services"]
[3101,"INTERNATIONAL RETENTION","International Education","International Education","22515-1-2","IE Centre for Intercultural Studies","201","Faculty Administration"]
[3110,"GLOBAL STUDIES INTERNSHIP","International Education","International Education","22550-1-19","IE EAFS - Global Studies Internship","223","Field Schools"]
[3111,"INTERNAT'L ED: GLOBAL ST.","International Education","International Education","22550-1-23","IE EAFS - International Ed EAFS - Global Studies","223","Field Schools"]
[3112,"MBA PROGRAM","International Education","International Education","22510-2-1","IE Master of Business Administration","208","Instruction"]
[3114,"MA SUSTAIN.LEISURE MGMT","International Education","International Education","22510-3-1","IE Master of Arts in Sustainable Leisure Management","208","Instruction"]
[3116,"MASTERS ED - INTL PERSPEC","International Education","International Education","22510-4-1","IE Master of Education International Perspective","208","Instruction"]
[3118,"MASTER OF COM PLANN (MCP)","International Education","International Education","22510-5-1","IE Master of Community Planning","208","Instruction"]
[3120,"MASTER OF GISA (MGISA)","International Education","International Education","22510-6-1","IE Master of Geographic Information Systems Applications","208","Instruction"]
[3122,"GRAD CERT IN BUSINESS ","International Education","International Education","22510-7-1","IE Grad Certificate - Business","208","Instruction"]
[3124,"GRAD DIPL INTL TRADE","International Education","International Education","22510-7-2","IE Grad Diploma - International Trade","208","Instruction"]
[3126,"GRAD DIPL PROJ MGMT","International Education","International Education","22510-7-3","IE Grad Diploma - Project Management","208","Instruction"]
[3130,"TAMAGAWA  ESL/HORTICULTUR","International Education","International Education","22540-1-6","IE Group Programs  - Tamagawa ESL/Horticulture","219","Contract activity"]
[3140,"INDIA OFFICE","International Education","International Education","22550-1-22","IE EAFS - India Office","223","Field Schools"]
[3141,"OWWE - EUROPE OFFICE","International Education","International Education","22550-1-30","IE EAFS - OWWE EAFS - Europe Office","223","Field Schools"]
[3142,"RASHA - EAST ASIA OFFICE","International Education","International Education","22550-1-32","IE EAFS - RASHA EAFS - East Asia Office","223","Field Schools"]
[3143,"GROK EDUC-CHINA OFFICE","International Education","International Education","22550-1-20","IE EAFS - China Office","223","Field Schools"]
[3145,"LATIN AMERICA OFFICE","International Education","International Education","22550-1-27","IE EAFS - Latin America Office","223","Field Schools"]
[3150,"INT'L TRVL/CURRIC GRANTS","International Education","International Education","22501-2-3","IE Global Engagement Grants","201","Faculty Administration"]
[3155,"FIELD SCHOOL FEE-CLEARING","International Education","International Education","22550-1-16","IE EAFS - Field School Fee Clearing","223","Field Schools"]
[3158,"PRACTICUM SUPPORT","International Education","International Education","22550-1-31","IE EAFS - Practicum Support","223","Field Schools"]
[3159,"STUDY ABROAD EMERGENCY FD","International Education","International Education","22550-1-34","IE EAFS - Study Abroad Emergency Fund","223","Field Schools"]
[3160,"STUDENTS FOR DEVELOPMENT","International Education","International Education","22505-4-6","IE Scholarships - Students for Development","201","Faculty Administration"]
[3163,"ENGR FIELD SCHOOL VIETNAM","International Education","International Education","22550-1-15","IE EAFS - Engineering Field School Vietnam","223","Field Schools"]
[3169,"MGMT WINE FS-EUROPE","International Education","International Education","22550-1-39","IE EAFS - Wine Field School - Europe","223","Field Schools"]
[3170,"ART - NEW YORK","International Education","International Education","22550-1-5","IE EAFS - Art EAFS - New York","223","Field Schools"]
[3172,"HSP/TOUR FIELD SCH-HAWAII","International Education","International Education","22550-1-21","IE EAFS - HSP/Tourism Field School EAFS - Hawaii","223","Field Schools"]
[3173,"VIU IN AFRICA","International Education","International Education","22550-1-38","IE EAFS - VIU in Africa","223","Field Schools"]
[3174,"Crim FS - Philidelphia ","International Education","International Education","22550-1-8","IE EAFS - Crim - Philidelphia","223","Field Schools"]
[3175,"GEOLOGY ABROAD","International Education","International Education","22550-1-18","IE EAFS - Geology Abroad","223","Field Schools"]
[3178,"ANTHROPOLOGY INTERNSHIPS","International Education","International Education","22550-1-4","IE EAFS - Anthropology Internships","223","Field Schools"]
[3179,"BACH EDUCATION ABROAD","International Education","International Education","22550-1-6","IE EAFS - Bach Education Abroad","223","Field Schools"]
[3180,"LIBERAL STUDIES ABROAD","International Education","International Education","22550-1-28","IE EAFS - Liberal Studies Abroad","223","Field Schools"]
[3182,"NURSING FIELD SCH NEPAL","International Education","International Education","22550-1-29","IE EAFS - Nursing field School Nepal","223","Field Schools"]
[3183,"BUSINESS FIELD SCH-CHINA","International Education","International Education","22550-1-9","IE EAFS - Business Field School EAFS - China","223","Field Schools"]
[3184,"CULINARY FIELD SCH -ITALY","International Education","International Education","22550-1-13","IE EAFS - Culinary Field School EAFS - Italy","223","Field Schools"]
[3185,"ENG/GEOGRAPHY FS ITALY","International Education","International Education","22550-1-14","IE EAFS - Eng/Geography Field School Italy","223","Field Schools"]
[3186,"PE ABROAD","International Education","International Education","22550-1-40","IE EAFS - PE Abroad","223","Field Schools"]
[3187,"SOC/CRIM FS ARIZONA","International Education","International Education","22550-1-33","IE EAFS - Soc/Crim Field School EAFS - Arizona","223","Field Schools"]
[3189,"SWU BIP","International Education","International Education","22550-1-35","IE EAFS - SWU BIP","223","Field Schools"]
[3190,"BAKING - FRANCE","International Education","International Education","22550-1-7","IE EAFS - Baking EAFS - France","223","Field Schools"]
[3191,"GEOGRAPHY ABROAD","International Education","International Education","22550-1-17","IE EAFS - Geography Abroad","223","Field Schools"]
[3192,"HHS FIELD SCH-INDONESIA","International Education","International Education","22550-1-41","IE EAFS - HHS Field School - Indonesia","223","Field Schools"]
[3194,"BUSINESS FS - EUROPE","International Education","International Education","22550-1-10","IE EAFS - Business Field School EAFS - Europe","223","Field Schools"]
[3195,"ANTHROPOLOGY FIELD SCHOOL","International Education","International Education","22550-1-3","IE EAFS - Anthropology Field School","223","Field Schools"]
[3200,"DEAN,TRADES/APPLIED TECH","Trades and Applied Technology","Trades and Applied Technology","12900-1-1","TAT Faculty Dean's Office","201","Faculty Administration"]
[3299,"TRADES - HOLDING ACCOUNT","Trades and Applied Technology","Trades and Applied Technology","12901-1-2","TAT Faculty Holding Account","201","Faculty Administration"]
[3320,"CULINARY ARTS/BAKING","Trades and Applied Technology","Trades and Applied Technology","12920-1-1","TAT Culinary Arts","208","Instruction"]
[3320,"CULINARY ARTS/BAKING","Trades and Applied Technology","Trades and Applied Technology","12920-1-1","TAT Culinary Arts","223","Field Schools"]
[3322,"CUL COMPETITIONS-FIELD TR","Trades and Applied Technology","Trades and Applied Technology","12920-1-2","TAT Culinary Arts - Nanaimo - Competitions & Field Trips","208","Instruction"]
[3322,"CUL COMPETITIONS-FIELD TR","Trades and Applied Technology","Trades and Applied Technology","12920-1-2","TAT Culinary Arts - Nanaimo - Competitions & Field Trips","223","Field Schools"]
[3600,"CAFETERIA ","Ancillary - Business Operations","Ancillary Operations","46740-2-1","ANC Food Services - Cafeteria","401","Retail Operations"]
[3604,"CATERING SERVICES ","Ancillary - Business Operations","Ancillary Operations","46740-3-1","ANC Food Services - Catering","401","Retail Operations"]
[3605,"STUDENT FOOD SALES ","Ancillary - Business Operations","Ancillary Operations","46740-4-1","ANC Food Services - Student Food Sales","401","Retail Operations"]
[3606,"STARBUCKS ","Ancillary - Business Operations","Ancillary Operations","46740-5-1","ANC Food Services - StarBucks","401","Retail Operations"]
[3700,"TRADES AND APPRENTICESHIP","Trades and Applied Technology","Trades and Applied Technology","12900-2-1","TAT Enrolment Services and Operations","201","Faculty Administration"]
[3720,"HORTICULTURE","Trades and Applied Technology","Trades and Applied Technology","12945-1-1","TAT Horticultural Technician","208","Instruction"]
[3728,"CARPENTRY","Trades and Applied Technology","Trades and Applied Technology","12915-1-1","TAT Carpentry","208","Instruction"]
[3729,"TRADES DISCOVERY NAN","Trades and Applied Technology","Trades and Applied Technology","12972-1-1","TAT Trades Discovery - Nanaimo","208","Instruction"]
[3761,"AUTO SERVICE TECH","Trades and Applied Technology","Trades and Applied Technology","12910-1-1","TAT Automotive Service Technician","208","Instruction"]
[3765,"H.D./COMMERCIAL TRANSPORT","Trades and Applied Technology","Trades and Applied Technology","12940-1-1","TAT Heavy Mechanical Trades","208","Instruction"]
[3770,"MARINE/INBOARD/OUTBOARD","Trades and Applied Technology","Trades and Applied Technology","12955-1-1","TAT Motorcycle and Marine Technician","208","Instruction"]
[3780,"WELDING","Trades and Applied Technology","Trades and Applied Technology","12975-1-1","TAT Welding","208","Instruction"]
[3781,"WELD FOUNDATION COWICHAN","Trades and Applied Technology","Trades and Applied Technology","12975-2-1","TAT Welding - Cowichan","208","Instruction"]
[3785,"ELECTRICIAN","Trades and Applied Technology","Trades and Applied Technology","12925-1-1","TAT Electrician","208","Instruction"]
[3790,"HAIRDRESSING","Trades and Applied Technology","Trades and Applied Technology","12930-1-1","TAT Hairdressing","208","Instruction"]
[3791,"HAIRDRESSING STUDENT KITS","Trades and Applied Technology","Trades and Applied Technology","12930-1-2","TAT Hairdressing - Student Kits","208","Instruction"]
[3809,"ESTHETICS","Trades and Applied Technology","Trades and Applied Technology","32980-1-1","TAT PD&T Esthetics","281","PD&T Program Delivery"]
[3810,"ELECTRICIAN CE","Trades and Applied Technology","Trades and Applied Technology","32980-2-1","TAT PD&T Electrician","281","PD&T Program Delivery"]
[3900,"HEAVY EQUIP.OP.A075","Trades and Applied Technology","Trades and Applied Technology","22935-1-1","TAT Heavy Equipment Operator","208","Instruction"]
[3903,"FORKLIFT TRAINING","Trades and Applied Technology","Trades and Applied Technology","22935-4-1","TAT Forklift Training","208","Instruction"]
[3904,"HEAVY METAL ROCKS","Trades and Applied Technology","Trades and Applied Technology","22935-5-1","TAT Heavy Metal Rocks","208","Instruction"]
[3909,"HEO SIMULATOR PROGRAM","Trades and Applied Technology","Trades and Applied Technology","22935-2-1","TAT HEO Simulator Program","208","Instruction"]
[3911,"ABORIGINAL CONSTRUCTION","Trades and Applied Technology","Trades and Applied Technology","22915-2-1","TAT Carpentry - Aboriginal Construction - Pt Alberni, Nuuchahnulth","219","Contract activity"]
[3912,"POWER ENGINEERING","Trades and Applied Technology","Trades and Applied Technology","22960-1-1","TAT Power Engineering - Contract","208","Instruction"]
[3914,"CULINARY DIPLOMA","Trades and Applied Technology","Trades and Applied Technology","22920-1-1","TAT Culinary Arts Contract - Diploma","219","Contract activity"]
[3915,"BAKING DIPLOMA","Trades and Applied Technology","Trades and Applied Technology","22965-2-1","TAT Baking Diploma","208","Instruction"]
[3916,"SCH.DIST#79 PROGRAMS","Trades and Applied Technology","Trades and Applied Technology","22950-1-1","TAT Information Technology and Applied Systems - Contract - SD #79","219","Contract activity"]
[3917,"SCH.DIST#46 PARTNERSHIP","Trades and Applied Technology","Trades and Applied Technology","22915-1-1","TAT Carpentry - Sunshine Coast SD #46 Partnership","219","Contract activity"]
[3926,"FOREST CENTRE","Trades and Applied Technology","Trades and Applied Technology","22935-2-2","TAT HEO Simulator Program - Forest Centre","208","Instruction"]
[3930,"TAMAGAWA INTERNATIONAL FD","Trades and Applied Technology","Trades and Applied Technology","22945-1-1","TAT Horticulture Contract - Tamagawa","219","Contract activity"]
[3938,"WELDER FITTER COWICHAN","Trades and Applied Technology","Trades and Applied Technology","22975-2-1","TAT Welding - Cowichan Welder-Fitter","208","Instruction"]
[3939,"WELDER-FITTER NAN 2015/16","Trades and Applied Technology","Trades and Applied Technology","22975-1-1","TAT Welding - Nanaimo Welder-Fitter","208","Instruction"]
[3944,"CONTRACT DEVELOPMENT","Trades and Applied Technology","Trades and Applied Technology","22901-1-1","TAT Faculty Contracts - Development","219","Contract activity"]
[3948,"SKILLS CANADA COMPETITION","Trades and Applied Technology","Trades and Applied Technology","22901-2-1","TAT Skills Canada Competition","224","Field Experience / Practicum"]
[3949,"BAKING DONATIONS","Trades and Applied Technology","Trades and Applied Technology","22965-1-1","TAT Baking Donations","208","Instruction"]
[3960,"OA CALC.RENTAL/DEPOSIT","Trades and Applied Technology","Trades and Applied Technology","22905-1-1","TAT Office Administration - Rentals & Deposits","208","Instruction"]
[3980,"OA COST RECOVERY-COW","Trades and Applied Technology","Trades and Applied Technology","22905-2-1","TAT Office Administration - Cowichan Contract","219","Contract activity"]
[3983,"HAIRDRESSING SD#63-COW","Trades and Applied Technology","Trades and Applied Technology","22930-2-1","TAT Hairdressing Contract - Saanich SD #63 (Cowichan)","219","Contract activity"]
[3985,"HAIRDRESSING SD#79-COW","Trades and Applied Technology","Trades and Applied Technology","22930-1-1","TAT Hairdressing Contract - Cowichan SD #79","219","Contract activity"]
[3990,"HAIRDRESSING-POWELL RIVER","Trades and Applied Technology","Trades and Applied Technology","22930-3-1","TAT Hairdressing Contract - Powell River","219","Contract activity"]
[3991,"HAIR HARMONIZATION","Trades and Applied Technology","Trades and Applied Technology","22901-1-3","TAT Faculty Contracts- Hair Harmonization - Trades Training BC","219","Contract activity"]
[4010,"CULINARY ARTS COW","Trades and Applied Technology","Trades and Applied Technology","12920-2-1","TAT Culinary Arts - Cowichan","208","Instruction"]
[4013,"CARPENTRY COWICHAN","Trades and Applied Technology","Trades and Applied Technology","12915-2-1","TAT Carpentry - Cowichan","208","Instruction"]
[4014,"TRADES DISCOVERY COW","Trades and Applied Technology","Trades and Applied Technology","12972-2-1","TAT Trades Discovery - Cowichan","208","Instruction"]
[4016,"REFRIDGTN A/C MECH. COW","Trades and Applied Technology","Trades and Applied Technology","12970-1-1","TAT Refrigeration Mechanic","208","Instruction"]
[4030,"CULINARY ARTS-POWELL RIV","Trades and Applied Technology","Trades and Applied Technology","12920-3-1","TAT Culinary Arts - Powell River","208","Instruction"]
[4031,"WELDING-POWELL RIVER","Trades and Applied Technology","Trades and Applied Technology","12975-3-1","TAT Welding - Powell River","208","Instruction"]
[4032,"AUTO SV TECH-POWELL RIVER","Trades and Applied Technology","Trades and Applied Technology","12910-2-1","TAT Automotive Service Technician - Powell River","208","Instruction"]
[4033,"CARPENTRY-POWELL RIVER","Trades and Applied Technology","Trades and Applied Technology","12915-3-1","TAT Carpentry - Powell River","208","Instruction"]
[4060,"OFFICE ADMINISTRATION","Trades and Applied Technology","Trades and Applied Technology","12905-1-1","TAT Office Administration","208","Instruction"]
[4065,"ITAS","Trades and Applied Technology","Trades and Applied Technology","12950-1-1","TAT Information Technology and Applied Systems","208","Instruction"]
[4111,"VIURAC-EN/IQ RF BLANEY","Scholarship, Research and Creative Activity","Scholarship, Research and Creative Activity","25025-1-26","SRCA VIURAC RF - EN/IQ RF Blaney","315","VIURAC RF"]
[4114,"VIURAC SIG-18 DAVIDSON","Scholarship, Research and Creative Activity","Scholarship, Research and Creative Activity","25025-5-1","SRCA VIURAC SIG18 - Davidson","315","VIURAC RF"]
[4121,"VIURAC SIG-18-SGRF MANSON","Scholarship, Research and Creative Activity","Scholarship, Research and Creative Activity","25025-6-3","SRCA VIURAC-Multiple - SIG18 SGRF - Manson","315","VIURAC RF"]
[4125,"VIURAC S-GRF FARRELL","Scholarship, Research and Creative Activity","Scholarship, Research and Creative Activity","25025-3-2","SRCA VIURAC S-GRF - Farrell","315","VIURAC RF"]
[4129,"VIURAC N-GRF STOKES","Scholarship, Research and Creative Activity","Scholarship, Research and Creative Activity","25025-2-7","SRCA VIURAC N-GRF - Stokes","315","VIURAC RF"]
[4130,"VIURAC BAKER","Scholarship, Research and Creative Activity","Scholarship, Research and Creative Activity","25025-1-3","SRCA VIURAC RF - Baker","315","VIURAC RF"]
[4137,"VIURAC N-GRF RUSSELL","Scholarship, Research and Creative Activity","Scholarship, Research and Creative Activity","25025-2-6","SRCA VIURAC N-GRF - Russell","315","VIURAC RF"]
[4139,"VIURAC RF CRAIG","Scholarship, Research and Creative Activity","Scholarship, Research and Creative Activity","25025-1-28","SRCA VIURAC RF - Craig","315","VIURAC RF"]
[4140,"VIURAC RF JUBY","Scholarship, Research and Creative Activity","Scholarship, Research and Creative Activity","25025-1-33","SRCA VIURAC RF - Juby","315","VIURAC RF"]
[4141,"VIURAC RF KROGH 100281","Scholarship, Research and Creative Activity","Scholarship, Research and Creative Activity","25025-1-38","SRCA VIURAC RF - Krogh 100281","315","VIURAC RF"]
[4143,"VIURAC RF DAMES 100239","Scholarship, Research and Creative Activity","Scholarship, Research and Creative Activity","25025-1-37","SRCA VIURAC RF - Dames 100239","315","VIURAC RF"]
[4145,"VIURAC RF HEITI","Scholarship, Research and Creative Activity","Scholarship, Research and Creative Activity","25025-1-31","SRCA VIURAC RF - Heiti","315","VIURAC RF"]
[4146,"VIURAC RF HOPWOOD","Scholarship, Research and Creative Activity","Scholarship, Research and Creative Activity","25025-1-32","SRCA VIURAC RF - Hopwood","315","VIURAC RF"]
[4147,"VIURAC RF DAVEY","Scholarship, Research and Creative Activity","Scholarship, Research and Creative Activity","25025-1-29","SRCA VIURAC RF - Davey","315","VIURAC RF"]
[4154,"GVWD-FLOYD ","Scholarship, Research and Creative Activity","Scholarship, Research and Creative Activity","25125-1-21","SRCA GVWD - Floyd","310","Research Contract"]
[4158,"BCCAMPUS - DRURY","Scholarship, Research and Creative Activity","Scholarship, Research and Creative Activity","25125-1-23","SRCA BCCAMPUS - DRURY","310","Research Contract"]
[4161,"MITACS-RBC-ALPHONSE","Scholarship, Research and Creative Activity","Scholarship, Research and Creative Activity","25125-1-24","SRCA MITACS-RBC-ALPHONSE","310","Research Contract"]
[4163,"GENOMEBC-GREEN","Scholarship, Research and Creative Activity","Scholarship, Research and Creative Activity","25125-1-25","SRCA GENOME BC - GREEN","310","Research Contract"]
[4164,"BCSGA – GREEN","Scholarship, Research and Creative Activity","Scholarship, Research and Creative Activity","25125-1-26","SRCA BCSGA - GREEN","310","Research Contract"]
[4165,"IN-NA (GITKSAN) - FLOYD ","Scholarship, Research and Creative Activity","Scholarship, Research and Creative Activity","25125-1-30","SRCA IND-North-Affairs (Gitksan) Floyd 100600","310","Research Contract"]
[4167,"BC-CMPS - VINDEN 4167","Scholarship, Research and Creative Activity","Scholarship, Research and Creative Activity","25125-1-34","SRCA BC-CMPS - Vinden 4589","310","Research Contract"]
[4200,"MABRRI HOLDING ACCOUNT","Scholarship, Research and Creative Activity","Scholarship, Research and Creative Activity","25150-1-3","SRCA MABRRI - Research Contract Holding","300","Research Contract Administration"]
[4201,"PORT ALBERNI-SHAW 5697","Scholarship, Research and Creative Activity","Scholarship, Research and Creative Activity","25155-1-22","SRCA MABRRI Port Alberni-Shaw 5697","310","Research Contract"]
[4202,"KOMOKS-SHAW 5707","Scholarship, Research and Creative Activity","Scholarship, Research and Creative Activity","25155-1-23","SRCA MABRRI Komoks-Shaw 5707","310","Research Contract"]
[4206,"RDN-SHAW ","Scholarship, Research and Creative Activity","Scholarship, Research and Creative Activity","25155-1-12","SRCA MABRRI RDN - Shaw","310","Research Contract"]
[4207,"ST JOHN LEGACY FDN - SHAW","Scholarship, Research and Creative Activity","Scholarship, Research and Creative Activity","25152-3-4","SRCA MABRRI St John Legacy Fdn - Shaw","309","Research Grant"]
[4208,"CFI IOF ESTUARIES (SHAW)","Scholarship, Research and Creative Activity","Scholarship, Research and Creative Activity","25152-4-1","SRCA MABRRI CFI - IOF Estuaries (Shaw)","309","Research Grant"]
[4211,"VI ECON ALLIANCE-SAKAKI","Scholarship, Research and Creative Activity","Scholarship, Research and Creative Activity","25155-1-27","SRCA MABRRI VI Economic Alliance - Sakaki","310","Research Contract"]
[4212,"PFWSBC-SHAW","Scholarship, Research and Creative Activity","Scholarship, Research and Creative Activity","25155-1-9","SRCA MABRRI PFWSBC - Shaw","310","Research Contract"]
[4213,"REFBC - SHAW","Scholarship, Research and Creative Activity","Scholarship, Research and Creative Activity","25155-1-13","SRCA MABRRI REFBC - Shaw","310","Research Contract"]
[4215,"SITKA2019-SHAW","Scholarship, Research and Creative Activity","Scholarship, Research and Creative Activity","25152-3-3","SRCA MABRRI SITKA2019 - Shaw","309","Research Grant"]
[4219,"PSF-FORAGE-SHAW 5907","Scholarship, Research and Creative Activity","Scholarship, Research and Creative Activity","25155-1-16","SRCA MABRRI  PSF-FORAGE-SHAW","310","Research Contract"]
[4220,"IN-SERV-CAN(CANDO)-SHAW","Scholarship, Research and Creative Activity","Scholarship, Research and Creative Activity","25155-1-17","SRCA MABRRI  IN-SERV-CAN(CANDO)-SHAW","310","Research Contract"]
[4223,"CITY NAN DKP-SHAW","Scholarship, Research and Creative Activity","Scholarship, Research and Creative Activity","25155-1-21","SRCA MABRRI CITY NAN DKP - Shaw","310","Research Contract"]
[4230,"RIF - BOWES 100598","Scholarship, Research and Creative Activity","Scholarship, Research and Creative Activity","25152-1-5","SRCA MABRRI RIF REFBC - Bowes 100598","309","Research Grant"]
[4231,"NCE (CMN) SHAW","Scholarship, Research and Creative Activity","Scholarship, Research and Creative Activity","25152-2-2","SRCA MABRRI SSHRC NCE (CMN) - Shaw","309","Research Grant"]
[4233,"SSHRC IRCR CG - SHAW","Scholarship, Research and Creative Activity","Scholarship, Research and Creative Activity","25152-2-1","SRCA MABRRI SSHRC IRCR CG - Shaw","309","Research Grant"]
[4234,"RIF LAFRENIERE 100614","Scholarship, Research and Creative Activity","Scholarship, Research and Creative Activity","25152-1-4","SRCA MABRRI RIF REFBC - Lafreniere 100614","309","Research Grant"]
[4236,"TFN - SHAW 100734","Scholarship, Research and Creative Activity","Scholarship, Research and Creative Activity","25155-1-29","SRCA MABRRI TseshahtFN - Shaw 100734","310","Research Contract"]
[4237,"MECCS - SHAW 5665","Scholarship, Research and Creative Activity","Scholarship, Research and Creative Activity","25155-1-30","SRCA MABRRI MECCS - Shaw 5665","310","Research Contract"]
[4238,"CMN - SHAW 5747","Scholarship, Research and Creative Activity","Scholarship, Research and Creative Activity","25155-1-31","SRCA MABRRI CMN - Shaw 5747","310","Research Contract"]
[4239,"MITACS ACC - SHAW 5763","Scholarship, Research and Creative Activity","Scholarship, Research and Creative Activity","25152-3-6","SRCA MABRRI Grant - Other Mitacs Accelerate (Fletcher) - Shaw 5763","309","Research Grant"]
[4240,"WWF - SHAW 5792","Scholarship, Research and Creative Activity","Scholarship, Research and Creative Activity","25155-1-32","SRCA MABRRI WWF - Shaw 5792","310","Research Contract"]
[4241,"RIF - SHAW 100740","Scholarship, Research and Creative Activity","Scholarship, Research and Creative Activity","25152-1-6","SRCA MABRRI RIF REFBC - Shaw 100740","309","Research Grant"]
[4242,"ACRD - SHAW 5818","Scholarship, Research and Creative Activity","Scholarship, Research and Creative Activity","25155-1-33","SRCA MABRRI ACRD - Shaw 5818","310","Research Contract"]
[4243,"CMN-STIPEND-SHAW 5851","Scholarship, Research and Creative Activity","Scholarship, Research and Creative Activity","25152-3-8","SRCA MABRRI Grant - Other CMN - Stipend - Shaw 5851","309","Research Grant"]
[4244,"MOLSON FND - SHAW 5786","Scholarship, Research and Creative Activity","Scholarship, Research and Creative Activity","25152-3-7","SRCA MABRRI Grant - Other Molson Fnd - Shaw 5786","309","Research Grant"]
[4245,"DOL - SHAW 5843","Scholarship, Research and Creative Activity","Scholarship, Research and Creative Activity","25155-1-34","SRCA MABRRI DoL - Shaw 5843","310","Research Contract"]
[4246,"RIF - SHAW 101098","Scholarship, Research and Creative Activity","Scholarship, Research and Creative Activity","25152-1-7","SRCA MABRRI RIF REFBC - Shaw 101098","309","Research Grant"]
[4248,"ESDC - SHAW 5847","Scholarship, Research and Creative Activity","Scholarship, Research and Creative Activity","25152-3-9","SRCA MABRRI Grant - Other ESDC - SHAW 5847","309","Research Grant"]
[4249,"RDN - SHAW 5877","Scholarship, Research and Creative Activity","Scholarship, Research and Creative Activity","25155-1-36","SRCA MABRRI RDN - Shaw 5877","310","Research Contract"]
[4250,"NEDC - SHAW 5887","Scholarship, Research and Creative Activity","Scholarship, Research and Creative Activity","25155-1-37","SRCA MABRRI NEDC - Shaw 5887","310","Research Contract"]
[4500,"DEAN,HEALTH & HUMAN SERV","Health and Human Services","Health and Human Services","12400-1-1","HHS Faculty Dean's Office","201","Faculty Administration"]
[4502,"HEALTH PROGRAMS SUPPORT","Health and Human Services","Health and Human Services","12400-2-1","HHS Health Programs Support","201","Faculty Administration"]
[4509,"DIRECTED STUDIES - HEALTH","Health and Human Services","Health and Human Services","12401-3-1","HHS Faculty - Directed Studies","208","Instruction"]
[4510,"BSN","Health and Human Services","Health and Human Services","12405-1-1","HHS Bachelor of Science in Nursing","208","Instruction"]
[4511,"B.NURSING - NORTH ISLAND COLLEGE","Health and Human Services","Health and Human Services","12405-2-1","HHS Bachelor of Science in Nursing  - North Island College","219","Contract activity"]
[4513,"PRACTICAL NURSING","Health and Human Services","Health and Human Services","12425-1-1","HHS Practical Nursing","208","Instruction"]
[4516,"HEALTH CARE ASSISTANT-HCA","Health and Human Services","Health and Human Services","12420-1-1","HHS Health Care Assistant","208","Instruction"]
[4519,"DENTAL CLINIC","Health and Human Services","Health and Human Services","12412-1-1","HHS Dental Clinic","208","Instruction"]
[4520,"DENTAL ASSISTANT","Health and Human Services","Health and Human Services","12410-1-1","HHS Dental Assistant","208","Instruction"]
[4522,"DENTAL HYGIENE PROGRAM","Health and Human Services","Health and Human Services","12415-1-1","HHS Dental Hygiene","208","Instruction"]
[4600,"CE ADMIN - HEALTH & HS ","Health and Human Services","Health and Human Services","32465-1-1","HHS PD&T - Administration","280","PD&T Administration"]
[4603,"HEALTH AND HUMAN SERVICES ","Health and Human Services","Health and Human Services","32465-7-1","HHS PD&T - Health and Human Services","281","PD&T Program Delivery"]
[4606,"MEDICAL OFFICE ASSISTANT","Health and Human Services","Health and Human Services","32465-10-1","HHS PD&T - Medical Office Assistant","281","PD&T Program Delivery"]
[4607,"HOPSITAL UNIT COORDINATOR ","Health and Human Services","Health and Human Services","32465-8-1","HHS PD&T - Hospital Unit Coordinator","281","PD&T Program Delivery"]
[4608,"ANIMAL CARE AIDE CERTIFIC","Health and Human Services","Health and Human Services","32465-3-1","HHS PD&T - Animal Care Aide Certificate","281","PD&T Program Delivery"]
[4609,"ACTIVITY ASSISTANT","Health and Human Services","Health and Human Services","32465-2-1","HHS PD&T - Activity Assistant","281","PD&T Program Delivery"]
[4610,"MED DEVICE REPROC TECHNCN","Health and Human Services","Health and Human Services","32465-9-1","HHS PD&T - Medical Device Processing Technician","281","PD&T Program Delivery"]
[4613,"COMM.MENTAL HLTH WK CERT","Health and Human Services","Health and Human Services","32465-6-1","HHS PD&T - Community Mental Health Worker","281","PD&T Program Delivery"]
[4615,"COMMUNITY HEALTH PROMO","Health and Human Services","Health and Human Services","32465-5-1","HHS PD&T - Community Health Promotion","281","PD&T Program Delivery"]
[4625,"CE CREDIT COURSES - HHS","Health and Human Services","Health and Human Services","32465-4-1","HHS PD&T - Credit courses","281","PD&T Program Delivery"]
[4703,"HHS STUDENT ENGAGEMENT FD","Health and Human Services","Health and Human Services","22401-5-2","HHS Faculty - Student Engagement Fund","201","Faculty Administration"]
[4704,"HHS FACULTY SCH ACTIVITY","Health and Human Services","Health and Human Services","22401-2-1","HHS Faculty - Scholarly Activity","201","Faculty Administration"]
[4705,"HHS INTERPROF DEV FUND","Health and Human Services","Health and Human Services","22401-3-1","HHS Faculty - Interprofessional Development Fund","201","Faculty Administration"]
[4709,"ABORIGINAL FORUM","Health and Human Services","Health and Human Services","22401-5-1","HHS Faculty - Aboriginal Forum","201","Faculty Administration"]
[4710,"HCA PARTNERSHIP PATHWAYS ","Health and Human Services","Health and Human Services","22420-4-1","HHS Health Care Assistant - Partnership Pathways","219","Contract activity"]
[4719,"BC DENTAL HYGIENIST ASSN","Health and Human Services","Health and Human Services","22415-1-1","HHS BC Dental Hygienist Association","201","Faculty Administration"]
[4721,"ECEC-COWICHAN CERTIFICATE","Health and Human Services","Health and Human Services","22440-1-1","HHS Early Childhood Education and Care - Cowichan Cert.","219","Contract activity"]
[4722,"ECEC-INFANT TODDLER","Health and Human Services","Health and Human Services","22440-4-1","HHS Early Childhood Education and Care - Infant Toddler","219","Contract activity"]
[4723,"ECEC-AHS","Health and Human Services","Health and Human Services","22440-3-1","HHS Early Childhood Education and Care - Aboriginal Head Start","219","Contract activity"]
[4724,"ECEC-POWELL RIVER CERT.","Health and Human Services","Health and Human Services","22440-2-1","HHS Early Childhood Education and Care - Powell River Cert.","219","Contract activity"]
[4725,"ECEC - Nanaimo Cert. ","Health and Human Services","Health and Human Services","22440-7-1","HHS Early Childhood Education and Care - Nanaimo Cert.","219","Contract activity"]
[4726,"ECEC - Special Needs Cert.","Health and Human Services","Health and Human Services","22440-8-1","HHS Early Childhood Education and Care - Special Needs Cert.","219","Contract activity"]
[4772,"GENERAL RESEARCH - TAPLAY","Health and Human Services","Health and Human Services","22401-1-2","HHS Faculty - General Research - Taplay","302","General Research"]
[4775,"STYLES-PATHWAYS PROJECT","Health and Human Services","Health and Human Services","22401-4-1","HHS Faculty - Research contracts - Styles - Pathways","310","Research Contract"]
[4776,"GENERAL RESEARCH-PRICE","Health and Human Services","Health and Human Services","22401-1-1","HHS Faculty - General Research - Price","302","General Research"]
[4780,"RTT - KAT ","Health and Human Services","Health and Human Services","22406-1-1","HHS Roots to Thrive - KAT","219","Contract activity"]
[5000,"DEAN, EDUCATION","Education","Education","12300-1-1","EDUC Faculty Dean's Office","201","Faculty Administration"]
[5003,"EDUC. - DIRECTED STUDIES","Education","Education","12301-3-1","EDUC Faculty - Directed Studies","208","Instruction"]
[5004,"SCHOOL EXPERIENCE","Education","Education","12301-4-1","EDUC Faculty - School Experience","223","Field Schools"]
[5005,"EDUCATION ADVISING","Education","Education","12301-1-1","EDUC Faculty - Advising","201","Faculty Administration"]
[5005,"EDUCATION ADVISING","Education","Education","12301-1-1","EDUC Faculty - Advising","204","Advising"]
[5006,"EDUCATION, INSTRUCTION","Education","Education","12310-1-1","EDUC Education - Instruction","208","Instruction"]
[5007,"MULTI MEDIA","Education","Education","12301-1-2","EDUC Faculty - Multi Media","201","Faculty Administration"]
[5007,"MULTI MEDIA","Education","Education","12301-1-2","EDUC Faculty - Multi Media","204","Advising"]
[5010,"PHYSICAL EDUCATION","Education","Education","12320-1-1","EDUC Kinesiology","208","Instruction"]
[5014,"POST BAC-SECONDARY FOCUS","Education","Education","12315-1-1","EDUC Education - Post Bac Secondary Education","208","Instruction"]
[5070,"ATHLETICS","Student Affairs","Student Affairs","15580-1-1","SA Athletics and Recreation Department","200","Academic Administration"]
[5071,"OUTDOOR RECREATION","Student Affairs","Student Affairs","15587-1-1","SA Outdoor Recreation","217","Student Support and Services"]
[5072,"FITNESS AND INTRAMURALS","Student Affairs","Student Affairs","15586-1-1","SA Recreation - Fitness","217","Student Support and Services"]
[5073,"GYM MANAGEMENT","Student Affairs","Student Affairs","15585-1-1","SA Gym Management","217","Student Support and Services"]
[5074,"STUDENT ACTIVITIES","Student Affairs","Student Affairs","15588-1-1","SA Athletics","217","Student Support and Services"]
[5076,"ATHLETICS FUNDRAISING","Student Affairs","Student Affairs","15581-1-1","SA Athletics and Recreation Fundraising","217","Student Support and Services"]
[5077,"NATIONAL TRAVEL POOL","Student Affairs","Student Affairs","15581-2-1","SA National Travel Pool","217","Student Support and Services"]
[5078,"SPORTS DEVELOPMENT CENTRE","Student Affairs","Student Affairs","15581-3-1","SA Sports Development Centre","217","Student Support and Services"]
[5079,"STUDENT ACTIVITY FEE","Student Affairs","Student Affairs","15580-2-1","SA Athletics and Recreation Department - Student Activity Fee","200","Academic Administration"]
[5080,"GOLF","Student Affairs","Student Affairs","15588-5-3","SA Athletics - Club Golf","217","Student Support and Services"]
[5083,"MEN'S BASKETBALL","Student Affairs","Student Affairs","15588-2-1","SA Men's Basketball","217","Student Support and Services"]
[5084,"WOMEN'S BASKETBALL","Student Affairs","Student Affairs","15588-2-2","SA Women's Basketball","217","Student Support and Services"]
[5085,"MEN'S VOLLEYBALL","Student Affairs","Student Affairs","15588-4-1","SA Men's Volleyball","217","Student Support and Services"]
[5086,"WOMEN'S VOLLEYBALL","Student Affairs","Student Affairs","15588-4-2","SA Women's Volleyball","217","Student Support and Services"]
[5087,"MEN'S SOCCER","Student Affairs","Student Affairs","15588-3-1","SA Men's Soccer","217","Student Support and Services"]
[5088,"WOMEN'S SOCCER","Student Affairs","Student Affairs","15588-3-2","SA Women's Soccer","217","Student Support and Services"]
[5089,"BADMINTON","Student Affairs","Student Affairs","15588-5-1","SA Athletics - Club Badminton","217","Student Support and Services"]
[5090,"CLUB SPORT PROGRAMS","Student Affairs","Student Affairs","15588-5-7","SA Athletics - Club Sport Programs","217","Student Support and Services"]
[5105,"M.ED LEADERSHIP","Education","Education","22360-1-1","EDUC Masters of Education (Leadership)","208","Instruction"]
[5109,"PRO-D/RESEARCH","Education","Education","22310-1-1","EDUC Education  - Conferences","220","Conferences"]
[5111,"SPECIAL ED TEACHING SPECI","Education","Education","22355-1-1","EDUC Graduate Diploma - Inclusive Education","208","Instruction"]
[5116,"SHAPE - PRO D","Education","Education","22320-1-1","EDUC Kinesiology - Development","211","Program Development"]
[5116,"SHAPE - PRO D","Education","Education","22320-1-1","EDUC Kinesiology - Development","220","Conferences"]
[5117,"M.ED SPECIAL EDUCATION","Education","Education","22365-1-1","EDUC Masters of Education (Special Education)","208","Instruction"]
[5120,"GRAD DIPL-ONLINE LEARNING","Education","Education","22350-1-1","EDUC Graduate Diploma - Online Teaching and Learning","208","Instruction"]
[5121,"NPPE CONFERENCE","Education","Education","22320-1-2","EDUC Kinesiology - NPPE Conference","211","Program Development"]
[5121,"NPPE CONFERENCE","Education","Education","22320-1-2","EDUC Kinesiology - NPPE Conference","220","Conferences"]
[5132,"GENERAL RESEARCH-DAVIDSON","Education","Education","22301-1-1","EDUC General Research - Davidson","302","General Research"]
[5205,"HEALTH&HS-HOLDING ACCOUNT","Health and Human Services","Health and Human Services","12401-2-1","HHS Faculty - International Sections","208","Instruction"]
[5210,"SS DIPLOMA","Health and Human Services","Health and Human Services","12450-1-1","HHS Social Services Diploma","208","Instruction"]
[5215,"SCSW","Health and Human Services","Health and Human Services","12445-1-1","HHS Education Assistant and Community Support","208","Instruction"]
[5230,"E.C.E.C.","Health and Human Services","Health and Human Services","12440-1-1","HHS Early Childhood Education and Care","208","Instruction"]
[5240,"CHILD/YTH CARE","Health and Human Services","Health and Human Services","12435-1-1","HHS Child and Youth Care","208","Instruction"]
[5414,"ECEC - ECPN","Health and Human Services","Health and Human Services","22440-6-1","HHS Early Childhood Education and Care- ECPN","219","Contract activity"]
[5420,"BACHELOR OF SOCIAL WORK","Health and Human Services","Health and Human Services","22430-1-1","HHS Bachelor of Social Work","208","Instruction"]
[5494,"CTR-OUTREACH/COMM.CARE","Health and Human Services","Health and Human Services","22435-1-1","HHS Child and Youth Care - CTR - Outreach/Comm. Care","201","Faculty Administration"]
[6302,"EX. DIR. STUDENT AFFAIRS","Student Affairs","Student Affairs","15500-1-1","SA Student Affairs Division","200","Academic Administration"]
[6303,"FINANCIAL AID","Student Affairs","Student Affairs","15519-1-1","SA Financial Aid","217","Student Support and Services"]
[6304,"CAMPUS CAREER CENTRE","Student Affairs","Student Affairs","15555-1-1","SA Centre for Experiential Learning","217","Student Support and Services"]
[6305,"CONDUCT","Student Affairs","Student Affairs","15522-1-1","SA Student Conduct - Administration","217","Student Support and Services"]
[6306,"WORK-OP PROGRAM","Student Affairs","Student Affairs","15558-1-1","SA On Campus Employment - Work Op","217","Student Support and Services"]
[6307,"FOUNDATION S+B MATCHING","Student Affairs","Student Affairs","15519-2-1","SA Foundation Matching","217","Student Support and Services"]
[6313,"COMMUNITY ENGAGEMENT","Student Affairs","Student Affairs","15501-3-1","SA Community Engagement","217","Student Support and Services"]
[6320,"COUNSELLING","Student Affairs","Student Affairs","15517-1-1","SA Student Services Counselling","217","Student Support and Services"]
[6326,"PRIOR LEARNING ASSESSMENT","Student Affairs","Student Affairs","15501-2-1","SA Prior Learning Assessment","217","Student Support and Services"]
[6333,"CANADA STUDENT GRANT","Student Affairs","Student Affairs","25519-2-1","SA Financial Aid - Other - Canada Student Grant","217","Student Support and Services"]
[6334,"EXTRAORDINARY ACCOMMODATI","Student Affairs","Student Affairs","15518-1-2","SA Extraordinary Accommodations","217","Student Support and Services"]
[6335,"ACCCESSIBILITY SERVICES","Student Affairs","Student Affairs","15518-1-1","SA Accessibility Services","217","Student Support and Services"]
[6336,"INTERPRETING SERVICES","Student Affairs","Student Affairs","15518-1-4","SA Interpreting","217","Student Support and Services"]
[6337,"PEER HELPERS","Student Affairs","Student Affairs","15516-1-2","SA Peer Helpers","217","Student Support and Services"]
[6338,"LEARNING DISABIL.ASMT N/R","Student Affairs","Student Affairs","15518-1-5","SA Learning Disability Assessment","217","Student Support and Services"]
[6339,"INTED ACCESSBLTY SERVICES","Student Affairs","Student Affairs","15518-1-3","SA International Accessibility Services","217","Student Support and Services"]
[6340,"EDUCATIONAL ASSESSMENTS","Student Affairs","Student Affairs","15516-1-1","SA Assessment and Invigilation","217","Student Support and Services"]
[6350,"HEALTH AND WELLNESS CTR","Student Affairs","Student Affairs","15520-1-1","SA Health and Wellness Centre","217","Student Support and Services"]
[6397,"SCHOLARSHIPS","Student Affairs","Student Affairs","15519-2-2","SA Scholarships","217","Student Support and Services"]
[6398,"S/B EXECUTIVE FUNDS","Student Affairs","Student Affairs","15519-2-3","SA Executive Scholarships","217","Student Support and Services"]
[6399,"TUITION BURSARY","Student Affairs","Student Affairs","15519-2-4","SA Tuition Bursaries","217","Student Support and Services"]
[6400,"C0-OP EDUCATION","Student Affairs","Student Affairs","15557-3-1","SA Internships - Education","224","Field Experience / Practicum"]
[6401,"CO-OP: CRIMINOLOGY","Student Affairs","Student Affairs","15557-2-1","SA Internships - Criminology","224","Field Experience / Practicum"]
[6402,"CO-OP: COMPUTER SCIENCE","Student Affairs","Student Affairs","15556-1-1","SA Co-Op Programs - Computer Science","225","Co-Op Programs"]
[6403,"CO-OP: PHYSICAL EDUCATION","Student Affairs","Student Affairs","15557-7-1","SA Internships - Physical Education","224","Field Experience / Practicum"]
[6404,"CO-OP: CREATIVE WRITING","Student Affairs","Student Affairs","15557-1-1","SA Internships - Creative Writing","224","Field Experience / Practicum"]
[6405,"CO-OP: REC/TOUR","Student Affairs","Student Affairs","15556-5-1","SA Co-Op Programs - Rec and Tourism","225","Co-Op Programs"]
[6406,"CO-OP: CULINARY ARTS","Student Affairs","Student Affairs","15556-2-1","SA Co-Op Programs - Culinary Arts","225","Co-Op Programs"]
[6407,"CO-OP: HOSPITALITY","Student Affairs","Student Affairs","15556-4-1","SA Co-Op Programs - Hospitality","225","Co-Op Programs"]
[6408,"CO-OP: BAKING","Student Affairs","Student Affairs","15556-6-1","SA Co-Op Programs - Baking","225","Co-Op Programs"]
[6409,"CO-OP: PHILOSOPHY","Student Affairs","Student Affairs","15557-6-1","SA Internships - Philosophy","224","Field Experience / Practicum"]
[6410,"CO-OP: INTERIOR DESIGN","Student Affairs","Student Affairs","15557-5-1","SA Internships - Interior Design","224","Field Experience / Practicum"]
[6411,"CO-OP: ENGINEERING","Student Affairs","Student Affairs","15556-3-1","SA Co-Op Programs - Engineering","225","Co-Op Programs"]
[6412,"CO-OP: GRAPHIC DESIGN","Student Affairs","Student Affairs","15557-4-1","SA Internships  - Graphic Design","224","Field Experience / Practicum"]
[6415,"NEW STUDENT ORIENTATION","Student Affairs","Student Affairs","15555-2-1","SA New Student Orientation","217","Student Support and Services"]
[6430,"SSF HEALTH AND WELLNESS","Student Affairs","Student Affairs","15520-2-1","SA SSF Funds (HW) - Health and Wellness","217","Student Support and Services"]
[6440,"SSF EXPERIENTIAL LEARNING","Student Affairs","Student Affairs","15550-2-1","SA SSF Funds (EL) - Co-Curricular Engagement and Learning","217","Student Support and Services"]
[6441,"SSF EXP LEARNING RESEARCH","Student Affairs","Student Affairs","15550-2-2","SA SSF Funds (EL) - Research","217","Student Support and Services"]
[6502,"PEER TO PEER CONNECTIONS","Student Affairs","Student Affairs","25516-1-1","SA Peer to Peer Connections","217","Student Support and Services"]
[6505,"STUDENT SUMMER EMPL-FEDER","Student Affairs","Student Affairs","15558-1-2","SA On Campus employment - Student Summer employment","217","Student Support and Services"]
[6510,"PACWEST-CCAA HOSTING ","Student Affairs","Student Affairs","25581-1-1","SA PacificWest CCAA hosting","217","Student Support and Services"]
[6515,"MENTAL HEALTH  - CMHA ","Student Affairs","Student Affairs","25520-1-1","SA Mental Health  - Canadian Mental Health Association","217","Student Support and Services"]
[6515,"MENTAL HEALTH  - CMHA ","Student Affairs","Student Affairs","25520-1-1","SA Mental Health  - Canadian Mental Health Association","219","Contract activity"]
[6516,"APSD/MINISTRY ","Student Affairs","Student Affairs","25518-1-1","SA APSD / Ministry funding","217","Student Support and Services"]
[6517,"DISABILITY SERV. PROCEEDS","Student Affairs","Student Affairs","25518-1-3","SA Disability Services Proceeds","217","Student Support and Services"]
[6530,"VAN ISLE LEADERSIHP CONF","Student Affairs","Student Affairs","25555-1-1","SA Vancouver Island Leadership Conference","217","Student Support and Services"]
[6601,"CENTRE FOR IEL","Centre for Innovation and Excellence in Learning","Centre for Innovation and Excellence in Learning","14100-1-1","CIEL Centre for Innovation and Excellence in Learning","200","Academic Administration"]
[6700,"INFORMATION TECHNOLOGY","Information Technology Services","Information Technology Services","16100-1-1","IT Information Technology Division","100","Administration"]
[6701,"STUDENT PRINTING","Information Technology Services","Information Technology Services","16140-2-2","IT End User Technology - Student Printing","101","Institutional"]
[6702,"IT INFRASTRUCTURE","Information Technology Services","Information Technology Services","16130-1-1","IT Infrastructure Department","100","Administration"]
[6703,"IT CLIENT SERVICES","Information Technology Services","Information Technology Services","16120-1-1","IT Client Services Department","100","Administration"]
[6704,"IT END USER TECHNOLOGY","Information Technology Services","Information Technology Services","16140-1-1","IT End User Technology","100","Administration"]
[6705,"INSTNL IT SERVICES ","Information Technology Services","Information Technology Services","16110-2-1","IT Operations - Institutional Services","101","Institutional"]
[6708,"PHONE SERVICE","Information Technology Services","Information Technology Services","16130-2-2","IT Infrastructure - Phone Service","101","Institutional"]
[6710,"ENTERPRISE SYSTEMS","Information Technology Services","Information Technology Services","16180-1-1","IT Enterprise Systems Department","100","Administration"]
[6711,"INSTNL IT INFRASTRUCTURE","Information Technology Services","Information Technology Services","16130-2-1","IT Infrastructure - Institutional","101","Institutional"]
[6712,"INSTNL IT END USER","Information Technology Services","Information Technology Services","16140-2-1","IT End User Technology - Institutional","101","Institutional"]
[6713,"WEB MANAGEMENT OFFICE","Information Technology Services","Information Technology Services","16150-1-1","IT Web Management Department","100","Administration"]
[6714,"TLASR PROJECT","Information Technology Services","Information Technology Services","16180-2-2","IT ES Institutional - TLASR Project","101","Institutional"]
[6715,"INSTITUTION DATA SECURITY","Information Technology Services","Information Technology Services","16160-1-1","IT Security Department","100","Administration"]
[6720,"SSF ITS ACCESS TO TECH","Information Technology Services","Information Technology Services","16110-3-1","IT Operations - SSF Funds - Access to Technology","101","Institutional"]
[6800,"LIBRARY","Library","Library","13600-1-1","LIB Library - Department","222","Library Services"]
[6802,"LIBRARY NON RECURRING","Library","Library","13600-2-2","LIB Library - Non-Recurring licensing","222","Library Services"]
[6804,"LIBRARY BOOKS,PERIODICALS","Library","Library","13600-2-1","LIB Library - Books and Periodicals (non-capital)","222","Library Services"]
[6810,"SPECIAL COLLECTIONS","Library","Library","13600-2-4","LIB Library - Special Collections","222","Library Services"]
[6815,"PHOTO ID","Library","Library","13600-2-3","LIB Library - Photo ID","222","Library Services"]
[6820,"SSF DIGITAL ACCESS","Library","Library","13610-1-1","LIB Library SSF - Digital Access","222","Library Services"]
[6850,"LIBRARY FIELD SCHOOL","Library","Library","23610-1-1","LIB Library - Field School","219","Contract activity"]
[6850,"LIBRARY FIELD SCHOOL","Library","Library","23610-1-1","LIB Library - Field School","223","Field Schools"]
[6851,"DIGITAL BC SECRETATIAT","Library","Library","23610-1-2","LIB Library -  Digital BC Secretatiat","219","Contract activity"]
[6851,"DIGITAL BC SECRETATIAT","Library","Library","23610-1-2","LIB Library -  Digital BC Secretatiat","223","Field Schools"]
[6860,"GEN RESEARCH - MCLEOD","Library","Library","23610-2-1","LIB Faculty - General Research - McLeod","302","General Research"]
[6861,"GEN RESEARCH - MCFARLAND","Library","Library","23610-2-2","LIB Faculty - General Research - McFarland","302","General Research"]
[6900,"REGISTRATION","Registration Services","Registration Services","13700-1-1","REG Registration","200","Academic Administration"]
[6901,"Recruitment & Advising","Registration Services","Registration Services","13750-1-1","REG Recruitment & Advising","200","Academic Administration"]
[6905,"CONVOCATION","Registration Services","Registration Services","13705-1-1","REG Convocation","200","Academic Administration"]
[6930,"DIRECTOR-INDIGENOUS EDUC.","Indigenous Education and Engagement","Indigenous Education and Engagement","13500-1-1","IEE Indigenous Education and Engagement","200","Academic Administration"]
[6931,"INDIGENOUS EDUCATION","Indigenous Education and Engagement","Indigenous Education and Engagement","13501-1-1","IEE Indigenous Education","200","Academic Administration"]
[6932,"INDIGENOUS INTERNSHIP","Indigenous Education and Engagement","Indigenous Education and Engagement","13505-1-1","IEE AUB - ACP Partnership","200","Academic Administration"]
[6952,"ADVENTURES IN MIND","Registration Services","Registration Services","33715-2-1","REG PD&T - Adventures in Mind","281","PD&T Program Delivery"]
[6960,"CE ADMIN - REGISTRATION","Registration Services","Registration Services","33715-1-1","REG Registration - PD&T","280","PD&T Administration"]
[6961,"GRANDKIDS UNIVERSITY","Registration Services","Registration Services","33715-4-1","REG PD&T - Grandkids University","281","PD&T Program Delivery"]
[6963,"ELDERCOLLEGE","Registration Services","Registration Services","33715-3-1","REG PD&T - Eldercollege","281","PD&T Program Delivery"]
[6964,"LOVE OF LEARNING","Registration Services","Registration Services","33715-5-1","REG PD&T - Love of Learning","281","PD&T Program Delivery"]
[6980,"INDIGENOUS MENTORSHIP","Indigenous Education and Engagement","Indigenous Education and Engagement","23510-1-1","IEE Indigenous Mentorship","219","Contract activity"]
[6981,"ASP-COMMUNITY-LEAD PROJ.","Indigenous Education and Engagement","Indigenous Education and Engagement","23515-1-1","IEE ASP - Community Lead Projects","219","Contract activity"]
[6982,"ASP-VIU-LEAD PROJECTS","Indigenous Education and Engagement","Indigenous Education and Engagement","23520-1-1","IEE ASP - VIU Lead Projects","219","Contract activity"]
[6984,"INDIGENOUSE ECOTOURI 20-21","Indigenous Education and Engagement","Indigenous Education and Engagement","23525-3-2","IEE Heiltsuk - Ecotourism 2020-2021","219","Contract activity"]
[6988,"IN ED. - CONTRACT ADMIN","Indigenous Education and Engagement","Indigenous Education and Engagement","23530-1-2","IEE Indigenous Education - Contract Admin","219","Contract activity"]
[6990,"AEST-SNUNEYMUXW ECE 2020","Indigenous Education and Engagement","Indigenous Education and Engagement","23525-4-2","IEE SFN - ECE 2020","219","Contract activity"]
[6991,"NANWAKOLAS COUNCIL-STTP","Indigenous Education and Engagement","Indigenous Education and Engagement","23525-5-1","IEE Nanwakolas Council - STTP","219","Contract activity"]
[6992,"INDIGENOUS ECOTOURI 18-20","Indigenous Education and Engagement","Indigenous Education and Engagement","23525-3-1","IEE Heiltsuk - Eco Tourism","219","Contract activity"]
[6997,"CFN 2020 STEWARDSHIP","Indigenous Education and Engagement","Indigenous Education and Engagement","23525-1-3","IEE CFN - 2020 Stewardship Training","219","Contract activity"]
[6999,"OAEE-MISC INDIG. CONTRACT","Indigenous Education and Engagement","Indigenous Education and Engagement","23530-1-1","IEE Misc - Indigenous Contract","219","Contract activity"]
[7000,"PARKSVILLE CTR OPERATIONS","Health and Human Services","Health and Human Services","12455-1-1","HHS Parksville Operations","201","Faculty Administration"]
[7300,"ADMINISTRATION","Cowichan Campus","Cowichan Campus","14405-1-1","CC Campus Administration","200","Academic Administration"]
[7304,"COWICHAN REGIST","Cowichan Campus","Cowichan Campus","14420-1-1","CC Registration and Admissions","217","Student Support and Services"]
[7305,"CYC- COWICHAN","Cowichan Campus","Cowichan Campus","14430-1-2","CC Instructional Support - CYC","200","Academic Administration"]
[7306,"STRAT ENRL MGMT COMMITTEE","Cowichan Campus","Cowichan Campus","14410-2-1","CC Strategic Enrolment Management Committee","200","Academic Administration"]
[7309,"INSTRUCT.SUPPOR","Cowichan Campus","Cowichan Campus","14430-1-1","CC Instructional Support","200","Academic Administration"]
[7311,"CWCHN INDIGENOUS SCIENCE","Cowichan Campus","Cowichan Campus","14430-2-1","CC Indigenous Science","208","Instruction"]
[7360,"Duncan Student Programs","Cowichan Campus","Cowichan Campus","14408-1-2","CC Student Programs","217","Student Support and Services"]
[7380,"STUDENT SERVICE","Cowichan Campus","Cowichan Campus","14408-1-1","CC Student Services","217","Student Support and Services"]
[7381,"COWICHAN ASSESSMENT","Cowichan Campus","Cowichan Campus","14408-1-3","CC Student Assessment","217","Student Support and Services"]
[7391,"COWICHAN UT - SCIENCE","Cowichan Campus","Cowichan Campus","14435-5-1","CC UP - Science and Technology","208","Instruction"]
[7392,"COWICHAN UT - SOCIAL SCI","Cowichan Campus","Cowichan Campus","14435-6-1","CC UP - Social Sciences","208","Instruction"]
[7393,"COWICHAN UT- HUMAN SERVICE","Cowichan Campus","Cowichan Campus","14435-3-1","CC UP - Health and Human Services","208","Instruction"]
[7394,"COWICHAN UT-ARTS/HUMANITI","Cowichan Campus","Cowichan Campus","14435-1-1","CC UP - Arts & Humanities","208","Instruction"]
[7395,"COWICHAN UT - MGMT","Cowichan Campus","Cowichan Campus","14435-4-1","CC UP - Management","208","Instruction"]
[7397,"COWICHAN UT - EDUCATION","Cowichan Campus","Cowichan Campus","14435-2-1","CC UP - Education","208","Instruction"]
[7399,"COWICHAN NEW INITIATIVES","Cowichan Campus","Cowichan Campus","14405-2-1","CC Campus Initiatives","200","Academic Administration"]
[7400,"PD&T ADMIN - COWICHAN","Cowichan Campus","Cowichan Campus","34440-1-1","CC PD&T Administration","280","PD&T Administration"]
[7410,"PD&T OPEN ENROL - COWICHAN","Cowichan Campus","Cowichan Campus","34440-6-1","CC  PD&T- Open Enrolment","281","PD&T Program Delivery"]
[7412,"PD&T BUSINESS & MANAGEMENT ","Cowichan Campus","Cowichan Campus","34440-2-1","CC  PD&T- Business Management","281","PD&T Program Delivery"]
[7414,"PD&T TRADES - COWICHAN","Cowichan Campus","Cowichan Campus","34440-8-1","CC  PD&T- Trades & Applied Technology","281","PD&T Program Delivery"]
[7416,"PD&T HEALTH & HS COWCHAN","Cowichan Campus","Cowichan Campus","34440-4-1","CC  PD&T- Health & Human Services","281","PD&T Program Delivery"]
[7436,"MASTER GARDENER","Cowichan Campus","Cowichan Campus","34440-5-1","CC  PD&T- Master Gardener","281","PD&T Program Delivery"]
[7438,"FN HOUSING MANAGER CERT.","Cowichan Campus","Cowichan Campus","34440-3-1","CC  PD&T- FN Housing Manager Certificate","281","PD&T Program Delivery"]
[7450,"PD & T CUST SMALL CONTRACTS","Cowichan Campus","Cowichan Campus","34440-7-1","CC  PD&T- Small Contracts","281","PD&T Program Delivery"]
[7504,"FACILITIES RENTALS COWICH","Cowichan Campus","Cowichan Campus","24405-1-2","CC Facilities Rentals","200","Academic Administration"]
[7510,"DN SUMMER SESS-NET PROCEE","Cowichan Campus","Cowichan Campus","24445-3-1","CC Contract - Summer Session","208","Instruction"]
[7558,"LIL ' WAT EMP PRGM CARPNTRY","Cowichan Campus","Cowichan Campus","24445-5-2","CC Contract - Lil'wat Emp Program Carpentry","219","Contract activity"]
[7563,"ECEC PROGRAM ","Cowichan Campus","Cowichan Campus","24445-1-1","CC Contracts - ECEC","219","Contract activity"]
[7564,"WOMEN IN TRADES TRAINING ","Cowichan Campus","Cowichan Campus","24445-5-4","CC Contract - Women In Trades Training","219","Contract activity"]
[7565,"COWICHAN - UCEP","Cowichan Campus","Cowichan Campus","24445-2-1","CC Contract - UCEP","219","Contract activity"]
[7566,"IPTT","Cowichan Campus","Cowichan Campus","24445-5-5","CC Contract - Indigenous Peoples In Trades Training","219","Contract activity"]
[7569,"BUILDING SERVICE WORKERS ","Cowichan Campus","Cowichan Campus","24445-5-6","CC Contract - Building Service Worker","219","Contract activity"]
[7570,"CAFETERIA - COWICHAN ","Cowichan Campus","Cowichan Campus","24405-1-1","CC Cafeteria","200","Academic Administration"]
[7571,"COWICHAN CAMPUS LOCKERS","Cowichan Campus","Cowichan Campus","24405-1-3","CC Lockers","200","Academic Administration"]
[7575,"SD#79 UP CONTRACTS","Cowichan Campus","Cowichan Campus","24445-4-2","CC Contract - SD 79 UP","219","Contract activity"]
[7600,"ADMINISTRATION POW.RIVER","Powell River Campus","Powell River Campus","14600-1-1","PRC Administrator's Office","200","Academic Administration"]
[7604,"POWELL RIVER ST.SERVICES","Powell River Campus","Powell River Campus","14608-1-1","PRC Student Services","217","Student Support and Services"]
[7605,"CONTRACTS-SUPPORT STAFF","Powell River Campus","Powell River Campus","14605-1-1","PRC Campus Administration","200","Academic Administration"]
[7606,"COMPUTER LAB/SERVICES PR","Powell River Campus","Powell River Campus","14630-1-1","PRC Computer Lab","200","Academic Administration"]
[7608,"STUDENT PROGRAMS POW.R.","Powell River Campus","Powell River Campus","14608-1-2","PRC Student Programs","217","Student Support and Services"]
[7609,"STUDENT SERVICE TRNG SUPP","Powell River Campus","Powell River Campus","14608-1-3","PRC Student Services Training Support","217","Student Support and Services"]
[7634,"FLEXIBLE FTE'S POW.RIVER","Powell River Campus","Powell River Campus","14630-1-2","PRC Flexible FTE's","200","Academic Administration"]
[7640,"UT POWELL RIVER","Powell River Campus","Powell River Campus","14635-1-1","PRC University Programs","208","Instruction"]
[7642,"HUMAN SERVICES","Powell River Campus","Powell River Campus","14630-2-1","PRC Human Services","208","Instruction"]
[7643,"DUAL CREDIT - SD47","Powell River Campus","Powell River Campus","14630-4-1","PRC Dual Credit - SD 47","208","Instruction"]
[7644,"PR HOME CARE ASSISTANT","Powell River Campus","Powell River Campus","14630-3-1","PRC Home Care Assistant","208","Instruction"]
[7660,"CE - POWELL RIVER","Powell River Campus","Powell River Campus","34640-1-1","PRC PD&T - Administration","280","PD&T Administration"]
[7667,"ELDERCOLLEGE","Powell River Campus","Powell River Campus","34640-2-1","PRC PD&T - Eldercollege","281","PD&T Program Delivery"]
[7668,"CE ONLINE TRAINING ","Powell River Campus","Powell River Campus","34640-3-1","PRC PD&T - Online Training","281","PD&T Program Delivery"]
[7700,"A2E SCHOLARSHIP SUPPORT","Indigenous Education and Engagement","Indigenous Education and Engagement","23535-1-1","IEE EleV Scholarship Program - Administration","219","Contract activity"]
[7701,"A2E STUDENT SCHOLARSHIPS","Indigenous Education and Engagement","Indigenous Education and Engagement","23535-4-1","IEE EleV - Scholarships","219","Contract activity"]
[7702,"A2E CREATING PATHWAYS","Indigenous Education and Engagement","Indigenous Education and Engagement","23535-2-1","IEE EleV - Creating Pathways","219","Contract activity"]
[7703,"A2E YOUTH DEVELOPMENT","Indigenous Education and Engagement","Indigenous Education and Engagement","23535-6-1","IEE EleV - Youth Development","219","Contract activity"]
[7704,"A2E TRANSITION TO EMPLOY","Indigenous Education and Engagement","Indigenous Education and Engagement","23535-5-1","IEE EleV - Transition to employment","219","Contract activity"]
[7705,"A2E MONITOR & EVALUATION","Indigenous Education and Engagement","Indigenous Education and Engagement","23535-3-1","IEE EleV - Monitor & Evaluation","219","Contract activity"]
[7706,"A2E VIU CONTRIBUTION","Indigenous Education and Engagement","Indigenous Education and Engagement","23535-4-2","IEE EleV - VIU Contribution","219","Contract activity"]
[7708,"MCF - COMMUNITY INTERNSHP","Indigenous Education and Engagement","Indigenous Education and Engagement","23540-1-1","IEE MCF - Community Internship","219","Contract activity"]
[7709,"MCF-LEARNING FACILITATOR","Indigenous Education and Engagement","Indigenous Education and Engagement","23540-2-1","IEE MCF - Learning Facilitator","219","Contract activity"]
[7710,"ASP-CULTURE EVENTS","Indigenous Education and Engagement","Indigenous Education and Engagement","23520-3-1","IEE ASP - Shq’athut Cultural Events","219","Contract activity"]
[7711,"ASP-AUBP-NANAIMO & COWICH","Indigenous Education and Engagement","Indigenous Education and Engagement","23520-2-1","IEE ASP - IUB Program","219","Contract activity"]
[7712,"ASP-LANGUAGE-COASTAL","Indigenous Education and Engagement","Indigenous Education and Engagement","23520-4-1","IEE ASP - Language HLQ","219","Contract activity"]
[7713,"ASP-LANGUAGE-KWAK","Indigenous Education and Engagement","Indigenous Education and Engagement","23520-4-2","IEE ASP - Language KWA","219","Contract activity"]
[7802,"STUDENT SERVICES PROCEEDS","Powell River Campus","Powell River Campus","24608-1-1","PRC Student Services Proceeds","200","Academic Administration"]
[7802,"STUDENT SERVICES PROCEEDS","Powell River Campus","Powell River Campus","24608-1-1","PRC Student Services Proceeds","217","Student Support and Services"]
[7805,"ABORIGINAL SERVICE PLAN ","Powell River Campus","Powell River Campus","24645-1-1","PRC Contracts - Aboriginal Service Plan","219","Contract activity"]
[7810,"CONTRACTS HOLDING ACCOUNT","Powell River Campus","Powell River Campus","24645-5-1","PRC Contracts - Holding Account","219","Contract activity"]
[7811,"HEO - PBLMT POWELL RIVER","Powell River Campus","Powell River Campus","24645-3-1","PRC Contracts - HEO - Ministry of Social Development","219","Contract activity"]
[7812,"PR WEST","Powell River Campus","Powell River Campus","24645-4-1","PRC Contracts - Work Essential Skills Training - AVED","219","Contract activity"]
[8000,"VP Admin & Finance","VP Administration and Finance","CFO and VP Administration - Office","16000-1-1","CFOVPA Office","100","Administration"]
[8002,"VP ADMIN DIVISION-HOLDING","VP Administration and Finance","CFOVPA - ASA (Administrative Support Activity)","16030-1-1","CFOVPA ASA - Divisional Holding","100","Administration"]
[8002,"VP ADMIN DIVISION-HOLDING","VP Administration and Finance","CFOVPA - ASA (Administrative Support Activity)","16030-1-1","CFOVPA ASA - Divisional Holding","101","Institutional"]
[8003,"LEGIN - VP Admin PD","VP Administration and Finance","CFO and VP Administration - Office","16000-1-2","CFOVPA Professional Development","100","Administration"]
[8005,"NON INSURRED LOSSES","VP Administration and Finance","CFOVPA - Institutional","19115-1-2","INST Non Insurred Losses","101","Institutional"]
[8009,"MINISTRY BASE GRANTS","Institutional Revenue","Institutional Revenue","19100-1-1","INST Institutional Revenue - Grants","101","Institutional"]
[8035,"INSTITUTIONAL ADMINISTRA","VP Administration and Finance","CFOVPA - Institutional","19115-1-1","INST Institutional Administration","101","Institutional"]
[8040,"INST. LABOUR ADJUSTMENTS","VP Administration and Finance","CFOVPA - Institutional","19125-1-1","INST Labour Adjustments","101","Institutional"]
[8041,"VIUFA PD RECOVERY","VP Administration and Finance","CFOVPA - Institutional","19125-1-3","INST Labour Adjustments - VIUFA PD Recovery","101","Institutional"]
[8049,"INST EMPLOYEE AWARDS","VP Administration and Finance","CFOVPA - Institutional","19115-2-1","INST Institutional Employee Awards","101","Institutional"]
[8050,"RESIGNATION/RETIRE PAYOUT","VP Administration and Finance","CFOVPA - Institutional","19120-1-2","INST Labour Payouts - Severance","101","Institutional"]
[8051,"PRESIDENT ADMIN LEAVE","VP Administration and Finance","CFOVPA - Institutional","19120-1-4","INST Labour Payouts - President Admin Leave","101","Institutional"]
[8052,"COVID-19 EXPENDITURES","VP Administration and Finance","CFOVPA - ASA (Administrative Support Activity)","16030-2-1","CFOVPA ASA - COVID 19 Expenditures","101","Institutional"]
[8080,"ENTERPRISE RISK MGMT","VP Administration and Finance","Enterprise Risk Management","17500-1-1","ERM Enterprise Risk Management Office","100","Administration"]
[8081,"HEALTH & SAFETY SERVICES","VP Administration and Finance","Enterprise Risk Management","17550-1-1","ERM Health and Safety","100","Administration"]
[8082,"EMRGNCY MGMT/BUSIN CONT.","VP Administration and Finance","Enterprise Risk Management","17500-2-1","ERM Emergency Management and Business Continuity","100","Administration"]
[8200,"HUMAN RESOURCES","Human Resources","Human Resources","11100-1-1","HR Human Resources Division","100","Administration"]
[8201,"CUPE TRAINING AND DEV'T","Human Resources","Human Resources","11102-4-1","HR Training & PD - CUPE Contract Fund","101","Institutional"]
[8202,"CHAIR DEVELOPMENT","Human Resources","Human Resources","11102-6-1","HR Training & PD - VIUFA & BCGEU Chair Development","205","Chair"]
[8203,"MEDICAL TRAVEL","Human Resources","Human Resources","11151-2-4","HR Employee Wellbeing - Health - Medical Travel","101","Institutional"]
[8204,"WORKPLACE WELLNESS","Human Resources","Human Resources","11151-3-1","HR Employee Wellbeing - Wellness","101","Institutional"]
[8205,"UNITED WAY","Human Resources","Human Resources","11101-1-2","HR Human Resources - Initiatives - United Way Representative","101","Institutional"]
[8206,"ACCOMMODATIONS","Human Resources","Human Resources","11151-2-2","HR Employee Wellbeing - Health - Accommodations","101","Institutional"]
[8207,"EMPLOYEE ASSIST","Human Resources","Human Resources","11151-2-3","HR Employee Wellbeing - Health - Employee Assistance Program","101","Institutional"]
[8210,"PROF. DEV. ADMI","Human Resources","Human Resources","11102-2-1","HR Training & PD - ADMIN","101","Institutional"]
[8212,"EMPLOYEE RECOGNITION","Human Resources","Human Resources","11160-1-1","HR Recognition & Retention","101","Institutional"]
[8215,"CAREER DEV'T FUND","Human Resources","Human Resources","11102-4-2","HR Training & PD - CUPE Career Development Fund","101","Institutional"]
[8216,"EMPLOYEE RELOCATION GRANT","Human Resources","Human Resources","11165-2-2","HR Talent Acquisition - Employee Relocation Grant","101","Institutional"]
[8230,"INSTITUTIONAL HR","Human Resources","Human Resources","11115-1-1","HR Institutional HR (Conflict Resolution and Risk Assessment)","101","Institutional"]
[8231,"RECRUITMENT GEN. SERVICES ","Human Resources","Human Resources","11165-2-3","HR Talent Acquisition - Recruitment Gen. Services","101","Institutional"]
[8232,"SENIOR ADMIN. RECRUITMENT","Human Resources","Human Resources","11165-2-4","HR Talent Acquisition - Senior Administrator Recruiting","101","Institutional"]
[8233,"INSTRUCTIONAL RECRUITMENT ","Human Resources","Human Resources","11165-2-5","HR Talent Acquisition - Instructional Recruitment","101","Institutional"]
[8234,"UNION LEAVE BCGEU","Human Resources","Human Resources","11155-3-2","HR Leave & Attendance Management - BCGEU - UNION LEAVE","101","Institutional"]
[8235,"CUPE UNION RELE","Human Resources","Human Resources","11155-4-2","HR Leave & Attendance Management - CUPE - UNION LEAVE","101","Institutional"]
[8236,"VIUFA ASSISTED LEAVE","Human Resources","Human Resources","11155-5-3","HR Leave & Attendance Management - VIUFA - ASSISTED LEAVE","101","Institutional"]
[8237,"UNION LEAVE VIU FA","Human Resources","Human Resources","11155-5-2","HR Leave & Attendance Management - VIUFA - UNION LEAVE","101","Institutional"]
[8238,"VIUFA PROF. MEMBERSHIP","Human Resources","Human Resources","11102-5-1","HR Training & PD - VIUFA","101","Institutional"]
[8239,"BCGEU - PROFESSIONAL DEVELOPMENT","Human Resources","Human Resources","11102-3-1","HR Training & PD - BCGEU","101","Institutional"]
[8240,"BCGEU - PRO-D COMMITTEE","Human Resources","Human Resources","11102-3-2","HR Training & PD - BCGEU - PD Committee","101","Institutional"]
[8251,"VIUFA PD COMMITTEE","Human Resources","Human Resources","21111-1-4","HR Collective Agreement - VIUFA Committee Charges (RECOVERY)","102","External recoveries (Inst)"]
[8252,"VIUFA CHARGES","Human Resources","Human Resources","21111-1-3","HR Collective Agreement - VIUFA Charges (RECOVERY)","102","External recoveries (Inst)"]
[8253,"BCGEU CHARGES","Human Resources","Human Resources","21111-1-1","HR Collective Agreement - BCGEU Charges (RECOVERY)","102","External recoveries (Inst)"]
[8254,"CUPE CHARGES","Human Resources","Human Resources","21111-1-2","HR Collective Agreement - CUPE Charges (RECOVERY)","102","External recoveries (Inst)"]
[8258,"POSITIVE SPACE ALLIANCE","Human Resources","Human Resources","21151-1-1","HR Employee Wellbeing - Positive Space Alliance (RECOVERY)","102","External recoveries (Inst)"]
[8300,"FINANCIAL SERVICES","Financial Services","Financial Services","17000-1-1","FIN Financial Services - AVP Office","100","Administration"]
[8309,"DIRECTOR OFFICE-ACCTING","Financial Services","Financial Services","17010-1-1","FIN Accounting Services - Director's Office","100","Administration"]
[8310,"ACOUNTING SERVICES","Financial Services","Financial Services","17015-1-1","FIN Accounting Services Department","100","Administration"]
[8311,"TREASURY & COLLECTIONS","Financial Services","Financial Services","17040-1-1","FIN Treasury & Collections","100","Administration"]
[8312,"PROCUREMENT","Financial Services","Financial Services","17030-1-1","FIN Procurement and Contract Services","100","Administration"]
[8313,"ACCOUNTS PAYABLE","Financial Services","Financial Services","17020-1-1","FIN Accounts Payable","100","Administration"]
[8320,"DIRECTOR OFFICE-FIN PLAN","Financial Services","Financial Services","17050-1-1","FIN Financial Planning and Reporting - Director's Office","100","Administration"]
[8321,"BUDGETS & FINANCIAL PLAN","Financial Services","Financial Services","17060-1-1","FIN Budgets & Financial Planning","100","Administration"]
[8322,"PAYROLL","Financial Services","Financial Services","17070-1-1","FIN Payroll","100","Administration"]
[8340,"PORTFOLIO INTEREST","Financial Services","Financial Services","17040-2-1","FIN Treasury & Collections Inst - Portfolio Interest","101","Institutional"]
[8350,"PCARD REBATE","Financial Services","Financial Services","17030-2-1","FIN Procurement Inst - PCard Rebate","101","Institutional"]
[8399,"INST.OPEN PURCHASE ORDERS","Financial Services","Financial Services","17030-2-2","FIN Procurement Inst - Open PO Clearing","101","Institutional"]
[8400,"NANAIMO FACILITIES MAINT.","Facilities","Facilities Services and Campus Development","16445-5-1","FSCD Facilities Maintenance - Nanaimo","100","Administration"]
[8401,"PHYS.PLANT RECOVERY","Facilities","Facilities Services and Campus Development","16432-1-1","FSCD Recoveries - Physical Plant","100","Administration"]
[8402,"PROJECT COST RECOVERY","Facilities","Facilities Services and Campus Development","16432-1-2","FSCD Recoveries - Project costs","100","Administration"]
[8403,"UNIVERSAL ACCESS","Facilities","Facilities Services and Campus Development","16435-2-1","FSCD Universal Access","100","Administration"]
[8405,"FLEET","Facilities","Facilities Services and Campus Development","16442-1-1","FSCD Fleet Management","100","Administration"]
[8407,"MOTOR VEHICLE INSURANCE","Facilities","Facilities Services and Campus Development","16442-1-2","FSCD Fleet Vehicle Insurance","100","Administration"]
[8408,"RISK MANAGEMENT","Facilities","Facilities Services and Campus Development","16432-2-2","FSCD Risk Management","100","Administration"]
[8410,"NANAIMO GROUNDS","Facilities","Facilities Services and Campus Development","16448-4-1","FSCD Grounds Maintenance - Nanaimo","100","Administration"]
[8411,"NANAIMO HVAC & UTILITIES","Facilities","Facilities Services and Campus Development","16452-5-1","FSCD HVAC and Utilities - Nanaimo","100","Administration"]
[8412,"GEOEXCHANGE","Facilities","Facilities Services and Campus Development","16452-5-2","FSCD Nanaimo Geoexchange","100","Administration"]
[8415,"GR PAINE FACILITIES MAINT","Facilities","Facilities Services and Campus Development","16445-4-1","FSCD Facilities Maintenance - G.R. Paine Centre","100","Administration"]
[8416,"GR PAINE GROUNDS","Facilities","Facilities Services and Campus Development","16448-3-1","FSCD Grounds Maintenance - G.R. Paine Centre","100","Administration"]
[8417,"GR PAINE HVAC & UTILITIES","Facilities","Facilities Services and Campus Development","16452-4-1","FSCD HVAC and Utilities - G.R. Paine Centre","100","Administration"]
[8425,"PARKSVILLE MAIN CAMPUS","Facilities","Facilities Services and Campus Development","16445-6-1","FSCD Facilities Maintenance - Parksville","100","Administration"]
[8426,"DEEP BAY RESEARCH CENTRE","Facilities","Facilities Services and Campus Development","16445-3-1","FSCD Facilities Maintenance - Deep Bay","100","Administration"]
[8427,"HHS PORTABLES ","Facilities","Facilities Services and Campus Development","16432-3-1","FSCD HHS Portables","100","Administration"]
[8428,"DEEP BAY HVAC & UTILITIES","Facilities","Facilities Services and Campus Development","16452-3-1","FSCD HVAC and Utilities - Deep Bay","100","Administration"]
[8430,"POW RIVER FACILITIES MAIN","Facilities","Facilities Services and Campus Development","16445-7-1","FSCD Facilities Maintenance - Powell River","100","Administration"]
[8431,"POW RIVER GROUNDS","Facilities","Facilities Services and Campus Development","16448-5-1","FSCD Grounds Maintenance - Powell River","100","Administration"]
[8432,"POW RIVER HVAC&UTILITIES","Facilities","Facilities Services and Campus Development","16452-6-1","FSCD HVAC and Utilities - Powell River","100","Administration"]
[8437,"COWICHAN FACILITIES MAINT","Facilities","Facilities Services and Campus Development","16445-1-1","FSCD Facilities Maintenance - Cowichan","100","Administration"]
[8438,"COWICHAN GROUNDS","Facilities","Facilities Services and Campus Development","16448-1-1","FSCD Grounds Maintenance - Cowichan","100","Administration"]
[8439,"COWICHAN HVAC & UTILITIES","Facilities","Facilities Services and Campus Development","16452-1-1","FSCD HVAC and Utilities - Cowichan","100","Administration"]
[8440,"CTC FACILITIES MAINT.","Facilities","Facilities Services and Campus Development","16445-2-1","FSCD Facilities Maintenance - CTC","100","Administration"]
[8441,"CTC GROUNDS","Facilities","Facilities Services and Campus Development","16448-2-1","FSCD Grounds Maintenance - CTC","100","Administration"]
[8442,"CTC HVAC & UTILITIES","Facilities","Facilities Services and Campus Development","16452-2-1","FSCD HVAC and Utilities - CTC","100","Administration"]
[8445,"MILNER GARDENS","Facilities","Facilities Services and Campus Development","16432-3-4","FSCD Milner Gardens","100","Administration"]
[8450,"FSCD ADMINISTRATION","Facilities","Facilities Services and Campus Development","16430-1-1","FSCD Administration","100","Administration"]
[8451,"BUILDING & GROUNDS MGMT.","Facilities","Facilities Services and Campus Development","16440-1-1","FSCD Buildings and Grounds - Administration","100","Administration"]
[8452,"BUILDING SYSTEMS MGMT.","Facilities","Facilities Services and Campus Development","16450-1-1","FSCD Technical Systems  - Administration","100","Administration"]
[8453,"CAMPUS DEVELOPMENT","Facilities","Facilities Services and Campus Development","16435-1-1","FSCD Campus Development","100","Administration"]
[8454,"FAC & ANCILLARY ADMIN ","Facilities","Facilities Services and Campus Development","16400-1-1","FSCD Facilities and Ancillary - AVP Office","100","Administration"]
[8456,"AUDIO-VISUAL SERVICES","Facilities","Facilities Services and Campus Development","16455-1-1","FSCD Audio Visual Systems","100","Administration"]
[8480,"SHIPPING & RECEIVING","Facilities","Facilities Services and Campus Development","16440-2-1","FSCD Shipping & Receiving","100","Administration"]
[8490,"MAIL & DELIVERY","Facilities","Facilities Services and Campus Development","16440-3-1","FSCD Mail & Delivery","100","Administration"]
[8495,"SSF UAC HEALTH & WELLNESS","Facilities","Facilities Services and Campus Development","16435-3-1","FSCD SSF Funds UAC - Health and Wellness","100","Administration"]
[8500,"COST RECOVERY - OVERHEAD","Institutional Revenue","Institutional Revenue","29114-1-1","INST Recoveries - Overhead","101","Institutional"]
[8500,"COST RECOVERY - OVERHEAD","Institutional Revenue","Institutional Revenue","29114-1-1","INST Recoveries - Overhead","103","internal Sales and Recoveries"]
[8501,"EXTERNAL FDN CLEARING","Institutional Revenue","Institutional Revenue","29114-2-1","INST Recoveries - VIU Foundation Clearing","102","External recoveries (Inst)"]
[8600,"BOOKSTORE","Ancillary - Business Operations","Ancillary Operations","46710-1-1","ANC Campus Store - Nanaimo","401","Retail Operations"]
[8601,"BOOKSTORE - DUNCAN","Ancillary - Business Operations","Ancillary Operations","46710-2-1","ANC Campus Store - Cowichan","401","Retail Operations"]
[8602,"BOOKSTORE - PARKSVILLE","Ancillary - Business Operations","Ancillary Operations","46710-4-1","ANC Campus Store - Parksville","401","Retail Operations"]
[8603,"BOOKSTORE - POWELL RIVER","Ancillary - Business Operations","Ancillary Operations","46710-3-1","ANC Campus Store - Powell River","401","Retail Operations"]
[8605,"BB WEB (BOOK BUY BACK) ","Ancillary - Business Operations","Ancillary Operations","46710-5-1","ANC Campus Store - Book Buyback WEB","401","Retail Operations"]
[8606,"VENDING/CONCESSIONS","Ancillary - Business Operations","Ancillary Operations","46720-2-1","ANC Conference & Event Services - Vending","401","Retail Operations"]
[8610,"REGALIA DEPOSITS","Ancillary - Business Operations","Ancillary Operations","46705-1-1","ANC Other Ancillary Services - Regalia","401","Retail Operations"]
[8612,"BKS INTERNAL CRG-CLEARING","Ancillary - Business Operations","Ancillary Operations","46710-1-2","ANC Campus Store - Nanaimo - Internal Clearing","401","Retail Operations"]
[8620,"BUSINESS OPERATIONS ","Ancillary - Business Operations","Ancillary Operations","46700-1-1","ANC Ancillary Services","400","Ancillary Administration"]
[8625,"BUSINESS OPS EXTERNAL REV","Ancillary - Business Operations","Ancillary Operations","46720-1-1","ANC Conference & Event Services - External Events","401","Retail Operations"]
[8626,"CATERING - CLEARING ","Ancillary - Business Operations","Ancillary Operations","46740-3-2","ANC Food Services - Catering Clearing","401","Retail Operations"]
[8640,"PRINTING/DUPLICATING ","Ancillary - Business Operations","Ancillary Operations","46780-1-1","ANC Printshop","401","Retail Operations"]
[8650,"ANCILLARY - VIU STUDENT RES.","Ancillary - VIU Student Residences","Ancillary Operations","46800-1-1","ANC Student Residences","400","Ancillary Administration"]
[8701,"FAC. ANCILLARY - ADMIN","Ancillary - Facilities","Facilities Services and Campus Development","46410-1-1","FSCD Parking - Administration","400","Ancillary Administration"]
[8702,"SECURITY MANAGEMENT","Ancillary - Facilities","Facilities Services and Campus Development","46410-1-2","FSCD Security - Administration","400","Ancillary Administration"]
[8704,"NANAIMO-SNOW/ICE REMOVAL","Ancillary - Facilities","Facilities Services and Campus Development","46410-5-2","FSCD Snow Removal - Nanaimo","401","Retail Operations"]
[8705,"NANAIMO-PARKING/SECURITY","Ancillary - Facilities","Facilities Services and Campus Development","46410-5-1","FSCD Parking and Security - Nanaimo","401","Retail Operations"]
[8707,"COWICHAN - PARKING/SECURITY","Ancillary - Facilities","Facilities Services and Campus Development","46410-2-1","FSCD Parking and Security - Cowichan","401","Retail Operations"]
[8708,"COWICHAN-SNOW/ICE REMOVAL","Ancillary - Facilities","Facilities Services and Campus Development","46410-2-2","FSCD Snow Removal - Cowichan","401","Retail Operations"]
[8709,"POWELL RIVER-PARKING/SEC.","Ancillary - Facilities","Facilities Services and Campus Development","46410-6-1","FSCD Parking and Security -  Powell River","401","Retail Operations"]
[8710,"POWELL RIVER-SNOW/ICE REM","Ancillary - Facilities","Facilities Services and Campus Development","46410-6-2","FSCD Snow Removal - Powell River","401","Retail Operations"]
[8711,"COW.TRADES-SNOW/ICE REMOV","Ancillary - Facilities","Facilities Services and Campus Development","46410-3-2","FSCD Snow Removal - CTC","401","Retail Operations"]
[8712,"COW.TRADES-PARKING/SECURI","Ancillary - Facilities","Facilities Services and Campus Development","46410-3-1","FSCD Parking and Security - CTC","401","Retail Operations"]
[8713,"GR PAINE-PARKING/SECURITY","Ancillary - Facilities","Facilities Services and Campus Development","46410-4-1","FSCD Parking and Security -  G.R. Paine Centre","401","Retail Operations"]
[8714,"GR PAINE-SNOW/ICE REMOVAL","Ancillary - Facilities","Facilities Services and Campus Development","46410-4-2","FSCD Snow Removal -  G.R. Paine Centre","401","Retail Operations"]
[8715,"ENVIRON. & SUSTAINABILITY","Ancillary - Facilities","Facilities Services and Campus Development","46420-1-1","FSCD Environmental Sustainability","400","Ancillary Administration"]
[8721,"INSTL NON-BUDG CONTRACTS","VP Administration and Finance","CFOVPA - ASA (Administrative Support Activity)","26035-1-1","CFOVPA ASA - Institutional Non-Budgeted Contracts","101","Institutional"]
[8799,"VIU INIT TRUST - CLEARING","VP Administration and Finance","CFOVPA - ASA (Administrative Support Activity)","26040-1-1","CFOVPA ASA - VIU Initiatives Trust (Clearing)","102","External recoveries (Inst)"]
[8800,"PRESIDENT","President","President - Office","11000-1-1","PRES President Office","100","Administration"]
[8801,"PRESIDENT'S DEVELOPMENT","President","President - Office","11010-1-1","PRES President Initiatives","101","Institutional"]
[8803,"INDIGENOUS SPKR SERIES ","President","President - Office","11030-1-2","PRES Communications and External Affairs - Indigenous Speakers Series","100","Administration"]
[8804,"HUMAN RIGHTS & RESP WKPLC","President","President - Office","11020-1-1","PRES Diversity, Equity and Human Rights Office","100","Administration"]
[8805,"BRAND AND MARKETING","President","President - Office","11040-1-1","PRES Brand and Marketing","100","Administration"]
[8806,"COMMUN. & EXTNL AFFAIRS ","President","President - Office","11030-1-1","PRES Communications and External Affairs","100","Administration"]
[8808,"ADVANCEMENT OFFICE","Community Partnerships","Community Partnerships","11505-1-1","CP Advancement Services","100","Administration"]
[8810,"VIU BOARD","University Secretary","University Secretary","11610-1-1","USEC VIU Board","101","Institutional"]
[8811,"UNIVERSITY SECRETARIAT","University Secretary","University Secretary","11600-1-1","USEC University Secretary","100","Administration"]
[8812,"UNIVERSITY SENTATE ","University Secretary","University Secretary","11620-1-1","USEC University Senate","101","Institutional"]
[8813,"PRESIDENTS INSTALLATION","University Secretary","University Secretary","11600-1-2","USEC University Secretary - Presidents Installation","100","Administration"]
[8815,"ALUMNI RELATIONS","Community Partnerships","Community Partnerships","11510-1-1","CP Alumni Relations","100","Administration"]
[8816,"CAMPAIGN","Community Partnerships","Community Partnerships","11502-2-1","CP Imagine VIU Campaign","101","Institutional"]
[8817,"CALL CENTRE","Community Partnerships","Community Partnerships","11510-2-1","CP Call Centre","100","Administration"]
[8860,"PRESIDENT'S CONTINGENCY","President","President - Institutional","11050-1-1","PRES President Institutional - Contingency","101","Institutional"]
[8862,"INSTITUTIONAL HR LEGAL ","President","President - Institutional","11050-2-1","PRES President Institutional - HR Legal","101","Institutional"]
[8897,"BCBC INTERNSHIP PROGRAM","President","President - Office","11010-2-1","PRES BCBC Internship program","101","Institutional"]
[8898,"SOCIAL INNOVATION","President","President - Office","11010-4-1","PRES Social Innovation","101","Institutional"]
[8899,"STRATEGIC PLANNING ","President","President - Office","11010-5-1","PRES Strategic Planning","101","Institutional"]
[8900,"COMMUNITY PARTNERSHIPS ","Community Partnerships","Community Partnerships","11500-1-1","CP Community Partnerships Division","100","Administration"]
[8907,"SPONSORSHIP","Community Partnerships","Community Partnerships","11503-1-1","CP Sponsorship - Nanaimo","101","Institutional"]
[8908,"CANADA LEARNING BOND","Community Partnerships","Community Partnerships","11501-1-1","CP Canada Learning Bond","101","Institutional"]
[9000,"LIB - EXPANSION","Capital","Facilities Services and Campus Development","56575-1-3","FSCD BI - LIB - Expansion (Buildings & Equipment)","550","Capital FMP - Administration"]
[9012,"CFI EXPENSES - GREEN","Capital","Scholarship, Research and Creative Activity","55140-1-6","SRCA Green CFI","500","Capital - General"]
[9023,"CFI - WAGER ","Capital","Scholarship, Research and Creative Activity","55140-1-2","SRCA Wager CFI","500","Capital - General"]
[9024,"CFI - WOOD ","Capital","Scholarship, Research and Creative Activity","55140-1-3","SRCA Wood CFI","500","Capital - General"]
[9029,"CARBON NEUTRAL PROJECTREV ","Capital","Facilities Services and Campus Development","56550-1-1","FSCD CNP - Administration","550","Capital FMP - Administration"]
[9030,"TRADES TRAINING EQUIPMENT ","Capital","Trades and Applied Technology","52901-2-1","TAT Capital - Training Equipment","500","Capital - General"]
[9062,"ITS-VRTUAL DSKTP EXPNSION ","Capital","Information Technology Services","56101-2-2","IT CRP Capital Projects - Virtual Desktop Expansion","500","Capital - General"]
[9075,"LIBRARY BOOK PURCHASES (CAPITAL FUND)","Capital","Library","53610-1-1","LIB Library - Capital - Book Purchases","500","Capital - General"]
[9077,"DAY CARE EXP","Capital","Facilities Services and Campus Development","56575-1-1","FSCD BI - Day Care - Exp","550","Capital FMP - Administration"]
[9081,"BOREALIS NR","Capital","Information Technology Services","56110-1-1","IT Ops Major Projects - Borealis","500","Capital - General"]
[9100,"ABOR. GATHERING PL. PHASE 2","Capital","Facilities Services and Campus Development","56575-1-2","FSCD BI - Aboriginal Gathering Phase II","550","Capital FMP - Administration"]
[9116,"HCA - PP EQUIPMENT ","Capital","Health and Human Services","52401-2-1","HHS Capital - Health Equipment","500","Capital - General"]
[9131,"GILL CFI-BCKDF EXP ","Capital","Scholarship, Research and Creative Activity","55140-1-4","SRCA Gill CFI - BCKDF","500","Capital - General"]
[9134,"LANE CFI - BCKDF EXP","Capital","Scholarship, Research and Creative Activity","55140-1-1","SRCA Lane CFI - BCKDF","500","Capital - General"]
[9137,"RUSSELL CFI-BCKDF EXP","Capital","Scholarship, Research and Creative Activity","55140-1-5","SRCA Russell CFI - BCKDF","500","Capital - General"]
[9140,"JANES - CFI-BCKDF EXP","Capital","Scholarship, Research and Creative Activity","55140-1-7","SRCA Janes CFI - BCKDF","500","Capital - General"]
[9143,"MCCUNN CFI-BCKDF EXP ","Capital","Scholarship, Research and Creative Activity","55140-1-8","SRCA McCunn CFI - BCKDF","500","Capital - General"]
[9150,"AURORA-EXP","Capital","Information Technology Services","56180-1-1","IT ES Major Projects - Aurora","500","Capital - General"]
[9303,"1819-006 EXT CORR PROTECT","Capital","Facilities Services and Campus Development","56575-1-4","FSCD BI - 1819-006 Ext Corr Protect","550","Capital FMP - Administration"]
[9307,"1819-010 DUCTWORK RESEAL","Capital","Facilities Services and Campus Development","56575-1-5","FSCD BI - 1819-010 Ductwork Reseal","550","Capital FMP - Administration"]
[9333,"1920-003 LED EXT LIGHTING ","Capital","Facilities Services and Campus Development","56600-1-1","FSCD RC - 1920-003 LED EXT Lighting","550","Capital FMP - Administration"]
[9341,"1920-015 B356 HVAC RPLCE ","Capital","Facilities Services and Campus Development","56600-1-2","FSCD RC - 1920-015 B356 HVAC Replacement","550","Capital FMP - Administration"]
[9348,"1920-037 DEEP BAY STRUCT","Capital","Facilities Services and Campus Development","56600-1-8","FSCD RC - 1920-037 Deep Bay Structure","550","Capital FMP - Administration"]
[9380,"1920-023 B300 REFRIGERATR ","Capital","Facilities Services and Campus Development","56550-1-2","FSCD CNP - 1920-023 B300 Refrigerator","550","Capital FMP - Administration"]
[9383,"2021-029 INTRUSION SYSY","Capital","Facilities Services and Campus Development","56600-1-3","FSCD RC - 2021-029 Intrusion Sysy","550","Capital FMP - Administration"]
[9394,"1920-022 UNIVERSL ACCESS ","Capital","Facilities Services and Campus Development","56625-1-1","FSCD UA - 1920-022 Universal Access","550","Capital FMP - Administration"]
[9395,"1920-083 OUTDR RMP REP","Capital","Facilities Services and Campus Development","56625-1-2","FSCD UA - 1920-083 Outdoor Ramp Replacement","550","Capital FMP - Administration"]
[9454,"1920-086 ECLIPSE","Capital","Facilities Services and Campus Development","56650-1-1","FSCD CO - Eclipse","550","Capital FMP - Administration"]
[9475,"1920-082 B345 CLADDING ","Capital","Facilities Services and Campus Development","56600-1-4","FSCD RC - 1920-082 B345 Cladding","550","Capital FMP - Administration"]
[9503,"2021-049 B300&B310 RF&AIR","Capital","Facilities Services and Campus Development","56600-1-5","FSCD RC - 2021-049 B300 & B310 RF & Air","550","Capital FMP - Administration"]
[9505,"1920-037 STUDT FIRE ALARM","Capital","Facilities Services and Campus Development","56600-1-9","FSCD RC - 2021-101 Student Fire Alarm","550","Capital FMP - Administration"]
[9507,"2122-001 ROOF REPLACEMENT","Capital","Facilities Services and Campus Development","56600-1-6","FSCD RC - 2122-001 Roof Replacement","550","Capital FMP - Administration"]
[9508,"2122-002 EXTERIOR PAINT ","Capital","Facilities Services and Campus Development","56600-1-7","FSCD RC - 2122-002 Exterior Paint","550","Capital FMP - Administration"]
[9510,"2021-117 ACCESS WASHROOMS","Capital","Facilities Services and Campus Development","56625-1-3","FSCD UA - 2021-117 Access Washrooms","550","Capital FMP - Administration"]
[9517,"2122-021 FOOD SERV RENO","Capital","Facilities Services and Campus Development","56600-1-10","FSCD RC - 2122-021 Food Services Reno","550","Capital FMP - Administration"]
[9518,"1920-102 B610 PR HCA LAB","Capital","Facilities Services and Campus Development","56600-1-13","FSCD RC - 1920-102 B610 PR HCA Lab","550","Capital FMP - Administration"]
[9519,"2021-126 B160 GEOEXCHANGE ","Capital","Facilities Services and Campus Development","56600-1-14","FSCD RC - 2021-126 B160 Geoexchange","550","Capital FMP - Administration"]
[9521,"2122-009 B305 WASHROOMS ","Capital","Facilities Services and Campus Development","56600-1-15","FSCD RC - 2122-009 B305 Washrooms","550","Capital FMP - Administration"]
[9522,"2122-011 B355 LEC THEATRE ","Capital","Facilities Services and Campus Development","56600-1-16","FSCD RC - 2122-011 B355 Lecture Theatre","550","Capital FMP - Administration"]
[9523,"2122-013 LIB COURTYARD  ","Capital","Facilities Services and Campus Development","56600-1-17","FSCD RC - 2122-013 Library Courtyard","550","Capital FMP - Administration"]
[9524,"2021-103 DECK REPAIR  ","Capital","Facilities Services and Campus Development","56600-1-18","FSCD RC - 2021-103 Deck Repair","550","Capital FMP - Administration"]
[9525,"2122-017 B300 MECHANICAL ","Capital","Facilities Services and Campus Development","56600-1-11","FSCD RC - 2122-017 B300 Mechanical","550","Capital FMP - Administration"]
[9526,"NELVANA - AV","Capital","Information Technology Services","56101-2-1","IT CRP Capital Projects - Nelvana","500","Capital - General"]
[9527,"2122-006 CLASSROOM REFURB ","Capital","Facilities Services and Campus Development","56600-1-12","FSCD RC - 2122-006 Classroom Refurbish","550","Capital FMP - Administration"]
[9528,"2122-020 B180 CLASSROOM","Capital","Facilities Services and Campus Development","56500-1-1","FSCD FMP - 2122-020 B180 Classroom Upgrades","550","Capital FMP - Administration"]
[9529,"2122-021 COVID MECHANICAL ","Capital","Facilities Services and Campus Development","56600-1-19","FSCD RC - 2122-021 COVID Mechanical","550","Capital FMP - Administration"]
[9600,"ACCESS TRUST FUND","Student Affairs","Student Affairs","25518-1-2","SA Disability Access Trust Funds","217","Student Support and Services"]
[9609,"ABORIGINAL EMERG.ASSIST","Student Affairs","Student Affairs","25519-1-2","SA Financial Aid - Aboriginal Emergency Assistance","217","Student Support and Services"]
[9610,"ABESAP ","Student Affairs","Student Affairs","25519-1-1","SA Financial Aid - ABESAP","217","Student Support and Services"]
[9611,"MSU SPECIAL BURSARIES","Student Affairs","Student Affairs","25519-1-5","SA Financial Aid - MSU Special Bursaries","217","Student Support and Services"]
[9613,"GENERAL SCH/BURSARY FUND ","Student Affairs","Student Affairs","25519-1-4","SA Financial Aid - General Scholarships/Bursaries","217","Student Support and Services"]
[9616,"FOUNDATION FUNDS","Student Affairs","Student Affairs","25519-1-3","SA Financial Aid - Foundation Funds","217","Student Support and Services"]
[9625,"MILNER INVESTMENT INCOME","Milner Gardens - Operations","Community Partnerships","11554-1-3","CP MGW Society - Investment Income","100","Administration"]
[9629,"VOLUNTEER EXPENSES","Milner Gardens - Operations","Community Partnerships","11553-1-1","CP Milner - Volunteers","100","Administration"]
[9630,"HOUSE RENTAL","Milner Gardens - Operations","Community Partnerships","11552-1-4","CP Milner - House Rental","100","Administration"]
[9631,"NURSERY/PLANT PRODUCTION","Milner Gardens - Operations","Community Partnerships","11552-1-6","CP Milner - Nursery and Plant Production","100","Administration"]
[9632,"GIFT SHOP","Milner Gardens - Operations","Community Partnerships","11552-1-2","CP Milner - Gift Shop","100","Administration"]
[9634,"ADMISSION","Milner Gardens - Operations","Community Partnerships","11552-1-1","CP Milner - Public Admissions","100","Administration"]
[9635,"MILNER GARDENS OPERATIONS","Milner Gardens - Operations","Community Partnerships","11550-2-1","CP Milner Gardens - Operations","100","Administration"]
[9636,"OFFICE ADMINISTRATION","Milner Gardens - Operations","Community Partnerships","11550-1-1","CP Milner Gardens - Administration","100","Administration"]
[9637,"TEA ROOM","Milner Gardens - Operations","Community Partnerships","11552-1-3","CP Milner - Tea Room","100","Administration"]
[9638,"MEMBERSHIP","Milner Gardens - Operations","Community Partnerships","11552-1-5","CP Milner - Memberships","100","Administration"]
[9640,"DONATION/MEMBERSHIP/OTHER","Milner Gardens - Operations","Community Partnerships","11554-1-2","CP MGW Society - Donations, Memberships & Other","100","Administration"]
[9641,"DONATIONS/DROP BOXES","Milner Gardens - Operations","Community Partnerships","11554-1-1","CP MGW Society - Donations, Drop Boxes","100","Administration"]
[9642,"MILNER CHRISTMAS MAGIC","Milner Gardens - Operations","Community Partnerships","11552-2-2","CP Milner - Christmas Magic","100","Administration"]
[9645,"CAP.PROJ-HOUSE RENOVATION","Milner Gardens - Operations","Community Partnerships","11551-2-1","CP Milner Gardens - Major Projects","100","Administration"]
[9646,"ROOTS & SHOOTS/FOOD GARDN","Milner Gardens - Operations","Community Partnerships","11552-3-1","CP Milner - Roots & Shoots","100","Administration"]
[9653,"ART & PHOTOGRAPHY","Milner Gardens - Operations","Community Partnerships","11552-2-3","CP Milner - Art and Photography","100","Administration"]
[9655,"MILNER - SMALL EVENTS","Milner Gardens - Operations","Community Partnerships","11552-2-1","CP Milner - Small Events","100","Administration"]
[9675,"RESIDENTIAL HOUSE","Milner Gardens - Operations","Community Partnerships","11551-1-1","CP Milner Gardens - Mill Road Residence","100","Administration"]
[1632,"GENERAL RESEARCH - MCKEOWEN","Management","Management","22601-1-15","FOM General Research - McKeown","302","General Research"]
[1172,"VIURAC RF LESTER 101256","Scholarship, Research and Creative Activity","Scholarship, Research and Creative Activity","25025-1-61","SRCA VIURAC RF - Lester 101256","315","VIURAC RF"]
[1196,"VIURAC RF DUNCAN 248-9","Scholarship, Research and Creative Activity","Scholarship, Research and Creative Activity","25025-1-62","SRCA VIURAC RF - Duncan 248-9","315","VIURAC RF"]
[1197,"VIURAC RF JANES 101240","Scholarship, Research and Creative Activity","Scholarship, Research and Creative Activity","25025-1-63","SRCA VIURAC RF - Janes 101240","315","VIURAC RF"]
[1178,"VIURAC RF BITTERBERG","Scholarship, Research and Creative Activity","Scholarship, Research and Creative Activity","25025-1-64","SRCA VIURAC RF - Bitterberg 101253-2-1","315","VIURAC RF"]
[1194,"VIURAC RF RUSSELL 101246","Scholarship, Research and Creative Activity","Scholarship, Research and Creative Activity","25025-1-65","SRCA VIURAC RF - Russell 101246","315","VIURAC RF"]
[1174,"VIURAC RF SUN 101250","Scholarship, Research and Creative Activity","Scholarship, Research and Creative Activity","25025-1-66","SRCA VIURAC RF - Sun 101250","315","VIURAC RF"]
[4251,"CANDO - SHAW 5902-5904","Scholarship, Research and Creative Activity","Scholarship, Research and Creative Activity","25155-1-38","SRCA MABRRI CANDO - Shaw 5902-5904","310","Research Contract"]
[4252,"ISLANDS TRUST - SHAW 5908","Scholarship, Research and Creative Activity","Scholarship, Research and Creative Activity","25155-1-39","SRCA MABRRI Islands Trust - Shaw 5908","310","Research Contract"]
[9207,"SCI-MULTI MODE MICROPLATE","Capital","Science and Technology","52701-2-1","ST Multi-Mode Microplate","500","Capital - General"]
[9208,"SCI - ENGNING LAB EQUIP","Capital","Science and Technology","52701-2-2","ST Enginnering Lab Equipment","500","Capital - General"]
[9130,"MIN HLTH - GILL 5920","Capital","Scholarship, Research and Creative Activity","55140-2-1","SRCA Ministry of Health - Gill 5920","500","Capital - General"]
[9460,"FACILITY STDNT ACCOMDTION","Capital","Facilities Services and Campus Development","56500-1-2","FSCD FMP - Facility Student Accomodations","550","Capital FMP - Administration"]
[9531,"2122-061 BIO LAB REPAIRS ","Capital","Facilities Services and Campus Development","56500-1-3","FSCD FMP - Biology Lab Repairs","550","Capital FMP - Administration"]
[9530,"1920-029 PR PARKING LOT","Capital","Facilities Services and Campus Development","56600-1-20","FSCD RC - 1920-029 Powell River Parking Lot Resurfacing","550","Capital FMP - Administration"]
[9001,"FAC - EVERGREEN ","Capital","Facilities Services and Campus Development","56650-1-2","FSCD CO - Evergreen","550","Capital FMP - Administration"]
["New","New","Academic and Career Preparation","Academic and Career Preparation","12101-1-1","ACP Faculty Initiatives","201","Faculty Administration"]
["New","New","Academic and Career Preparation","Academic and Career Preparation","52101-1-1","ACP Minor Capital","500","Capital - General"]
["New","New","Academic and Career Preparation","Academic and Career Preparation","22125-1-1","ACP English Language Learning","208","Instruction"]
["New","New","CFOVPA - Institutional","CFOVPA - Institutional","19120-1-1","INST Labour Payouts - Other","101","Institutional"]
["New","New","CFOVPA - Institutional","CFOVPA - Institutional","19120-1-3","INST Labour Payouts - Sick Leave","101","Institutional"]
["New","New","CFOVPA - Institutional","CFOVPA - Institutional","19125-1-2","INST Labour Adjustments - CUPE EI Rebate (Benefit exchange)","101","Institutional"]
["New","New","CFOVPA - Institutional","CFOVPA - Institutional","19150-1-1","INST Institutional Other","101","Institutional"]
["New","New","CFOVPA - Institutional","CFOVPA - Institutional","59150-1-1","INST Historic Assets - Pre 2022","500","Capital - General"]
["New","New","Cowichan Campus","Cowichan Campus","14400-1-1","CC Academic Administrator, Cowichan","200","Academic Administration"]
["New","New","Cowichan Campus","Cowichan Campus","14410-1-1","CC Campus Operations","200","Academic Administration"]
["New","New","Cowichan Campus","Cowichan Campus","54401-1-1","CC Minor Capital","500","Capital - General"]
["New","New","Education","Education","52301-1-1","EDUC Minor Capital","500","Capital - General"]
["New","New","Financial Services","Financial Services","57001-1-1","FIN Minor Capital","500","Capital - General"]
["New","New","Human Resources","Human Resources","11101-1-1","HR Human Resources - Initiatives","101","Institutional"]
["New","New","Human Resources","Human Resources","11101-2-1","HR Pooled Positions","101","Institutional"]
["New","New","Human Resources","Human Resources","11102-1-1","HR Training and Professional Development - Institutional","101","Institutional"]
["New","New","Human Resources","Human Resources","11110-1-1","HR Employee Relations Department","100","Administration"]
["New","New","Human Resources","Human Resources","11111-1-1","HR Collective Agreement / Legislation Interpretation and Application","101","Institutional"]
["New","New","Human Resources","Human Resources","11120-1-1","HR External Legal Counsel And Mediation/Arbitration","101","Institutional"]
["New","New","Human Resources","Human Resources","11125-1-1","HR Investigations","101","Institutional"]
["New","New","Human Resources","Human Resources","11130-1-1","HR Performance Management","101","Institutional"]
["New","New","Human Resources","Human Resources","11150-1-1","HR Human Resources Department","100","Administration"]
["New","New","Human Resources","Human Resources","11150-2-1","HR Human Resources Department - Systems and Projects","100","Administration"]
["New","New","Human Resources","Human Resources","11151-1-1","HR Employee Wellbeing","101","Institutional"]
["New","New","Human Resources","Human Resources","11151-2-1","HR Employee Wellbeing - Health","101","Institutional"]
["New","New","Human Resources","Human Resources","11151-4-1","HR Employee Wellbeing - Benefits","101","Institutional"]
["New","New","Human Resources","Human Resources","11155-1-1","HR Leave & Attendance Management","101","Institutional"]
["New","New","Human Resources","Human Resources","11155-2-1","HR Leave & Attendance Management - ADMIN","101","Institutional"]
["New","New","Human Resources","Human Resources","11155-3-1","HR Leave & Attendance Management - BCGEU","101","Institutional"]
["New","New","Human Resources","Human Resources","11155-4-1","HR Leave & Attendance Management - CUPE","101","Institutional"]
["New","New","Human Resources","Human Resources","11155-5-1","HR Leave & Attendance Management - VIUFA","101","Institutional"]
["New","New","Human Resources","Human Resources","11165-1-1","HR Recruitment & Job Evaluation","100","Administration"]
["New","New","Human Resources","Human Resources","11165-2-1","HR Talent Acquisition","101","Institutional"]
["New","New","Human Resources","Human Resources","11165-3-1","HR Orientation","100","Administration"]
["New","New","Human Resources","Human Resources","11165-4-1","HR Job Evaluation","101","Institutional"]
["New","New","Human Resources","Human Resources","51101-1-1","HR Minor Capital","500","Capital - General"]
["New","New","Library","Library","53610-2-1","LIB Library - Minor Capital","500","Capital - General"]
["New","New","Management","Management","12600-2-1","FOM Faculty Administration","201","Faculty Administration"]
["New","New","Management","Management","12601-1-1","FOM Faculty Initiatives","201","Faculty Administration"]
["New","New","Management","Management","12601-1-1","FOM Faculty Initiatives","204","Advising"]
["New","New","Management","Management","22601-1-9","FOM General Research - Murray","302","General Research"]
["New","New","Management","Management","22601-2-2","FOM MBA Funded - TBD","201","Faculty Administration"]
["New","New","Management","Management","22601-4-3","FOM IPTRN conference","201","Faculty Administration"]
["New","New","Management","Management","22640-1-1","FOM Graduate Programs Administrator","201","Faculty Administration"]
["New","New","Management","Management","52601-1-1","FOM Minor Capital","500","Capital - General"]
["New","New","Powell River Campus","Powell River Campus","54601-1-1","PRC Minor Capital","500","Capital - General"]
["New","New","President - Office","President - Office","51010-1-1","PRES Minor Capital","500","Capital - General"]
["New","New","Provost and VP Academic - Office","Provost and VP Academic - Office","14000-2-1","PVPA - AVPA Business Case Office","200","Academic Administration"]
["New","New","Social Sciences","Social Sciences","12801-1-1","SS Faculty - Initiatives","201","Faculty Administration"]
["New","New","Social Sciences","Social Sciences","12801-1-1","SS Faculty - Initiatives","204","Advising"]
["New","New","Social Sciences","Social Sciences","52801-1-1","SS Minor Capital","500","Capital - General"]
["New","New","Social Sciences","Social Sciences","12827-1-1","SS Global Studies","208","Instruction"]
["New","New","Student Affairs","Student Affairs","15501-1-1","SA Student Affairs Division - Initiatives","217","Student Support and Services"]
["New","New","Student Affairs","Student Affairs","15510-1-1","SA Student Services Department","200","Academic Administration"]
["New","New","Student Affairs","Student Affairs","15515-1-1","SA Student Services Advising","217","Student Support and Services"]
["New","New","Student Affairs","Student Affairs","15519-2-5","SA Awards - VIU Foundation","217","Student Support and Services"]
["New","New","Student Affairs","Student Affairs","15522-2-1","SA Student Conduct - Education & Training","217","Student Support and Services"]
["New","New","Student Affairs","Student Affairs","15522-3-1","SA Student Conduct - External Investigators","217","Student Support and Services"]
["New","New","Student Affairs","Student Affairs","15550-1-1","SA Student Engagement and Experiential Learning Department","200","Academic Administration"]
["New","New","Student Affairs","Student Affairs","15586-2-1","SA Recreation - Intramurals","217","Student Support and Services"]
["New","New","Student Affairs","Student Affairs","15586-3-1","SA Recreation - Camps","217","Student Support and Services"]
["New","New","Student Affairs","Student Affairs","15588-1-2","SA Athletics - Banquet","217","Student Support and Services"]
["New","New","Student Affairs","Student Affairs","15588-5-4","SA Athletics - Club Hockey","217","Student Support and Services"]
["New","New","Student Affairs","Student Affairs","15588-5-6","SA Athletics - Club Swimming","217","Student Support and Services"]
["New","New","Student Affairs","Student Affairs","55501-1-1","SA Minor Capital","500","Capital - General"]
["New","New","Community Partnerships","Community Partnerships","11502-1-1","CP Annual Campaigns","101","Institutional"]
["New","New","Community Partnerships","Community Partnerships","11502-1-2","CP Giving Tuesday Campaign","101","Institutional"]
["New","New","Community Partnerships","Community Partnerships","11503-1-2","CP Sponsorship - Cowichan Valley","101","Institutional"]
["New","New","Community Partnerships","Community Partnerships","11503-1-3","CP Sponsorship - Parksville-Qualicum","101","Institutional"]
["New","New","Community Partnerships","Community Partnerships","11503-1-4","CP Sponsorship - Powell River","101","Institutional"]
["New","New","Community Partnerships","Community Partnerships","11503-1-5","CP Sponsorship - Vancouver Island Focus","101","Institutional"]
["New","New","Community Partnerships","Community Partnerships","11503-1-6","CP Sponsorship - Provincial Focus","101","Institutional"]
["New","New","Community Partnerships","Community Partnerships","11503-1-7","CP Sponsorship - National Focus","101","Institutional"]
["New","New","Community Partnerships","Community Partnerships","11505-2-1","CP Gift Officer - Academic and Career Preparation","100","Administration"]
["New","New","Community Partnerships","Community Partnerships","11505-2-2","CP Gift Officer - Arts & Humanities","100","Administration"]
["New","New","Community Partnerships","Community Partnerships","11505-2-3","CP Gift Officer - Education","100","Administration"]
["New","New","Community Partnerships","Community Partnerships","11505-2-4","CP Gift Officer - Health & Human Services","100","Administration"]
["New","New","Community Partnerships","Community Partnerships","11505-2-5","CP Gift Officer - International Education","100","Administration"]
["New","New","Community Partnerships","Community Partnerships","11505-2-6","CP Gift Officer - Management","100","Administration"]
["New","New","Community Partnerships","Community Partnerships","11505-2-7","CP Gift Officer - Science & Technology","100","Administration"]
["New","New","Community Partnerships","Community Partnerships","11505-2-8","CP Gift Officer - Social Sciences","100","Administration"]
["New","New","Community Partnerships","Community Partnerships","11505-2-9","CP Gift Officer - Trades & Applied Technology","100","Administration"]
["New","New","Community Partnerships","Community Partnerships","11515-1-1","CP Donor Relations","100","Administration"]
["New","New","Community Partnerships","Community Partnerships","11520-1-1","CP Major Gifts & Legacies","100","Administration"]
["New","New","Community Partnerships","Community Partnerships","51501-1-1","CP Minor Capital","500","Capital - General"]
["New","New","University Secretary","University Secretary","51601-1-1","USEC Minor Capital","500","Capital - General"]
["New","New","PVPA - Centralized Academic Units","PVPA - Centralized Academic Units","14205-2-1","PVPA-CAU UPA Programs - Development","200","Academic Administration"]
["New","New","PVPA - Centralized Academic Units","PVPA - Centralized Academic Units","14210-1-1","PVPA-CAU UPA Surveys","200","Academic Administration"]
["New","New","PVPA - Centralized Academic Units","PVPA - Centralized Academic Units","14210-2-1","PVPA-CAU UPA Surveys - Students - NSSE","200","Academic Administration"]
["New","New","PVPA - Centralized Academic Units","PVPA - Centralized Academic Units","14210-2-2","PVPA-CAU UPA Surveys - Students - BGE","200","Academic Administration"]
["New","New","PVPA - Centralized Academic Units","PVPA - Centralized Academic Units","14210-3-1","PVPA-CAU UPA Surveys - Institutional","200","Academic Administration"]
["New","New","PVPA - Centralized Academic Units","PVPA - Centralized Academic Units","14210-3-2","PVPA-CAU UPA Surveys - Institutional - TBD","200","Academic Administration"]
["New","New","PVPA - Centralized Academic Units","PVPA - Centralized Academic Units","52010-1-1","PVPA-CAU Minor Capital","500","Capital - General"]
["New","New","PVPA - Centralized Academic Units","PVPA - Centralized Academic Units","12015-6-1","PVPA-CAU International Academic Support","200","Academic Administration"]
["New","New","Arts and Humanities","Arts and Humanities","12201-1-1","AH Faculty Initiatives","201","Faculty Administration"]
["New","New","Arts and Humanities","Arts and Humanities","12201-1-1","AH Faculty Initiatives","204","Advising"]
["New","New","Arts and Humanities","Arts and Humanities","22210-1-1","AH Art and Design - Interior Design - Other - Student Art Sales","208","Instruction"]
["New","New","Arts and Humanities","Arts and Humanities","22210-1-2","AH Art and Design - Interior Design - Other - Visiting Artists Series","208","Instruction"]
["New","New","Arts and Humanities","Arts and Humanities","22215-1-1","AH Art and Design - Visual Art - Other - Student Art Sales","208","Instruction"]
["New","New","Arts and Humanities","Arts and Humanities","22215-1-1","AH Art and Design - Visual Art - Other - Student Art Sales","227","Student Sales"]
["New","New","Arts and Humanities","Arts and Humanities","22215-1-2","AH Art and Design - Visual Art - Other - Visiting Artists Series","208","Instruction"]
["New","New","Arts and Humanities","Arts and Humanities","22215-1-2","AH Art and Design - Visual Art - Other - Visiting Artists Series","227","Student Sales"]
["New","New","Arts and Humanities","Arts and Humanities","52201-1-1","AH Minor Capital","500","Capital - General"]
["New","New","Health and Human Services","Health and Human Services","12401-1-1","HHS Faculty Initiatives","201","Faculty Administration"]
["New","New","Health and Human Services","Health and Human Services","12401-1-2","HHS Faculty - Initiatives - TBD","201","Faculty Administration"]
["New","New","Health and Human Services","Health and Human Services","52401-1-1","HHS Minor Capital","500","Capital - General"]
["New","New","Science and Technology","Science and Technology","12701-1-1","ST Faculty Initiatives","201","Faculty Administration"]
["New","New","Science and Technology","Science and Technology","12701-1-1","ST Faculty Initiatives","204","Advising"]
["New","New","Science and Technology","Science and Technology","52701-1-1","ST Minor Capital","500","Capital - General"]
["New","New","International Education","International Education","22501-1-1","IE Department Initiatives","201","Faculty Administration"]
["New","New","International Education","International Education","22505-1-1","IE International Finance","201","Faculty Administration"]
["New","New","International Education","International Education","22510-1-1","IE Graduate Programs Administration","201","Faculty Administration"]
["New","New","International Education","International Education","22550-1-11","IE EAFS - Central Asia Office","223","Field Schools"]
["New","New","International Education","International Education","52501-1-1","IE Minor Capital","500","Capital - General"]
["New","New","International Education","International Education","88300-1-1","VH High Schools - Due To/From","100","Administration"]
["New","New","Trades and Applied Technology","Trades and Applied Technology","12901-1-1","TAT Faculty Initiatives","201","Faculty Administration"]
["New","New","Trades and Applied Technology","Trades and Applied Technology","12901-1-3","TAT Faculty Development","201","Faculty Administration"]
["New","New","Trades and Applied Technology","Trades and Applied Technology","52901-1-1","TAT Minor Capital","500","Capital - General"]
["New","New","Indigenous Education and Engagement","Indigenous Education and Engagement","53501-1-1","IEE Minor Capital","500","Capital - General"]
["New","New","Registration Services","Registration Services","13730-1-1","REG Admissions & Registration","200","Academic Administration"]
["New","New","Registration Services","Registration Services","13740-1-1","REG Records & Registration Systems","200","Academic Administration"]
["New","New","Registration Services","Registration Services","23710-1-1","REG Summer Session","208","Instruction"]
["New","New","Registration Services","Registration Services","53701-1-1","REG Minor Capital","500","Capital - General"]
["New","New","Centre for Innovation and Excellence in Learning","Centre for Innovation and Excellence in Learning","54101-1-1","CIEL Minor Capital","500","Capital - General"]
["New","New","Scholarship, Research and Creative Activity","Scholarship, Research and Creative Activity","55001-1-1","SRCA Minor Capital","500","Capital - General"]
["New","New","Scholarship, Research and Creative Activity","Scholarship, Research and Creative Activity","25125-1-36","SRCA IH - GILL 101344","310","Research Contract"]
["New","New","Scholarship, Research and Creative Activity","Scholarship, Research and Creative Activity","25155-1-40","SRCA MABRRI BC Parks - Shaw 100968","310","Research Contract"]
["New","New","CFO and VP Administration - Office","CFO and VP Administration - Office","16010-1-1","CFOVPA Office - Initiatives","100","Administration"]
["New","New","CFO and VP Administration - Office","CFO and VP Administration - Office","16010-1-1","CFOVPA Office - Initiatives","101","Institutional"]
["New","New","CFO and VP Administration - Office","CFO and VP Administration - Office","56010-1-1","CFOVPA Minor Capital","500","Capital - General"]
["New","New","Information Technology Services","Information Technology Services","16110-1-1","IT Operations Department","100","Administration"]
["New","New","Information Technology Services","Information Technology Services","16120-2-1","IT Client Services - Institutional","101","Institutional"]
["New","New","Information Technology Services","Information Technology Services","16150-2-1","IT Web Management - Institutional","101","Institutional"]
["New","New","Information Technology Services","Information Technology Services","16160-2-1","IT Security - Institutional","101","Institutional"]
["New","New","Information Technology Services","Information Technology Services","16180-2-1","IT Enterprise Systems - Institutional","101","Institutional"]
["New","New","Information Technology Services","Information Technology Services","56101-1-1","IT Minor Capital","500","Capital - General"]
["New","New","Facilities Services and Campus Development","Facilities Services and Campus Development","56401-1-1","FSCD Minor Capital","500","Capital - General"]
["New","New","Facilities Services and Campus Development","Facilities Services and Campus Development","56550-1-3","FSCD CNP - 2122-004 Fleet EV Charge Stations","550","Capital FMP - Administration"]
["New","New","Facilities Services and Campus Development","Facilities Services and Campus Development","56600-1-21","FSCD RC - 2122-022 B120 Enclosed Office Space Paint Shop","550","Capital FMP - Administration"]
["New","New","Facilities Services and Campus Development","Facilities Services and Campus Development","56600-1-22","FSCD RC - 2122-035 Universal Access Improvements","550","Capital FMP - Administration"]
["New","New","Facilities Services and Campus Development","Facilities Services and Campus Development","56650-2-1","FSCD UFO - 2122-074 Cowichan Trade Centre - Business Case","550","Capital FMP - Administration"]
["New","New","Enterprise Risk Management","Enterprise Risk Management","57501-1-1","ERM Minor Capital","500","Capital - General"]
["New","New","Ancillary Operations","Ancillary Operations","46740-1-1","ANC Food Services - Department","400","Ancillary Administration"]
["New","New","Ancillary Operations","Ancillary Operations","46810-1-1","ANC Student Residences - Residence Life","401","Retail Operations"]
["New","New","Ancillary Operations","Ancillary Operations","56701-1-1","ANC Minor Capital","500","Capital - General"]
["8460, 8461","ROUTINE MINOR OPERAT EXP, ROUTINE MINOR OPERATE REV","Facilities Services and Campus Development","Facilities Services and Campus Development","16435-4-1","FSCD Routine Minor Maintenance","100","Administration"]
["100, 200","ASSETS, LIABILITIES","CFOVPA - Institutional","CFOVPA - Institutional","19000-1-1","INST Balance Sheet","101","Institutional"]
["2820, 2829","ENGLISH LANGUAGE CENTRE, ESL TUITION ","International Education","International Education","22508-1-1","IE English Language Centre","208","Instruction"]
["2610, 2649","FISH EXTENSION-GENERAL EX, NREP CREDIT CARD CHARGES ","Science and Technology","Science and Technology","32760-1-1","ST PD&T Administration","280","PD&T Administration"]

{"sheet":"Account Simulator","index":3,"n_rows":930,"n_cols":7,"rows_kept":930,"cut":false,"hidden":false,"merged":[]}
[]
[]
[]
[]
[]
[]
[]
[]
[]
[]
[]
[]
[]
[]
[]
["FRS Object Code","FRS Object Code Descirption","Account","Account Description"," Account type","Account Category ","Status"]
[200,"200 ADMIN COMPLEMENT",5000,"ADMIN - Salaries","Expenses","Salaries and benefits","Active"]
[201,"201 ADMIN TERM",5000,"ADMIN - Salaries","Expenses","Salaries and benefits","Active"]
[202,"202 VIUFA LTC",5300,"VIUFA - Salaries","Expenses","Salaries and benefits","Active"]
[203,"203 VIUFA O/T AND ON-CALL",5301,"VIUFA - Overtime / Other","Expenses","Salaries and benefits","Active"]
[204,"204 VIUFA STIPEND/ALLOWANCE",5302,"VIUFA - Stipend","Expenses","Salaries and benefits","Active"]
[205,"205 VIUFA COMPLEMENT",5300,"VIUFA - Salaries","Expenses","Salaries and benefits","Active"]
[206,"206 VIUFA TEMPORARY",5300,"VIUFA - Salaries","Expenses","Salaries and benefits","Active"]
[207,"207 VIUFA PART-TIME",5300,"VIUFA - Salaries","Expenses","Salaries and benefits","Active"]
[208,"208 VIUFA LEAVE",5320,"VIUFA - Contractual PD - Time taken","Expenses","Salaries and benefits","Active"]
[209,"209 BCGEU STIPEND/ALLOWANCE",5102,"BCGEU - Stipend","Expenses","Salaries and benefits","Active"]
[210,"210 BCGEU COMPLEMENT",5100,"BCGEU - Salaries","Expenses","Salaries and benefits","Active"]
[211,"211 BCGEU TERM",5100,"BCGEU - Salaries","Expenses","Salaries and benefits","Active"]
[212,"212 BCGEU AUXILIARY",5100,"BCGEU - Salaries","Expenses","Salaries and benefits","Active"]
[213,"Not in YTD GL",5100,"BCGEU - Salaries","Expenses","Salaries and benefits","Active"]
[214,"214 BCGEU O/T",5101,"BCGEU - Overtime / Other","Expenses","Salaries and benefits","Active"]
[215,"215 CUPE COMPLEMENT",5200,"CUPE - Salaries","Expenses","Salaries and benefits","Active"]
[216,"216 CUPE TEMPORARY",5200,"CUPE - Salaries","Expenses","Salaries and benefits","Active"]
[217,"217 CUPE CASUAL",5200,"CUPE - Salaries","Expenses","Salaries and benefits","Active"]
[218,"218 CUPE O/T",5201,"CUPE - Overtime / Other","Expenses","Salaries and benefits","Active"]
[219,"219 CUPE ALLOWANCE",5203,"CUPE - Allowance","Expenses","Salaries and benefits","Active"]
[220,"220 CE N/CR-GENERAL INTEREST",5400,"Non-Jurisdictional - Salaries","Expenses","Salaries and benefits","Active"]
[221,"221 STUDENTS/OTHER",5400,"Non-Jurisdictional - Salaries","Expenses","Salaries and benefits","Active"]
[222,"222 PROGRAM DEVELOPMENT",5500,"Salary - Other expenses","Expenses","Salaries and benefits","Active"]
[223,"223 C.E. N/CREDIT-VOCATIONAL",5400,"Non-Jurisdictional - Salaries","Expenses","Salaries and benefits","Active"]
[226,"226 SALARY - OTHER",5500,"Salary - Other expenses","Expenses","Salaries and benefits","Active"]
[229,"229 PROJECT PERSONNEL",5400,"Non-Jurisdictional - Salaries","Expenses","Salaries and benefits","Active"]
[230,"230 SALARY RECOVERY INTERNAL",5530,"Salary - Internal recoveries","Expenses","Salaries and benefits","Active"]
[231,"231 SALARY RECOVERY EXTERNAL",5848,"EXTERNAL Salary recoveries","Expenses","Salaries and benefits","Active"]
[232,"Not in YTD GL",5500,"Salary - Other expenses","Expenses","Salaries and benefits","Active"]
[235,"235 HONORARIA","6006-1","Non-Employee Honoraria (NT)","Expenses","Fees and purchased services","Active"]
[239,"239 FEE FOR SERVICE","6005-1","Fee for Service - Individual / Sole Proprietor (NT)","Expenses","Fees and purchased services","Active"]
[240,"240 FRINGE BENEFITS",5899,"FORECAST Benefits - Employer costs and Premiums","Expenses","Salaries and benefits","Active"]
[250,"250 RESEARCH-UNDERGRAD STUDNT",5400,"Non-Jurisdictional - Salaries","Expenses","Salaries and benefits","Active"]
[251,"251 RESEARCH-MASTERS STUDENT",5400,"Non-Jurisdictional - Salaries","Expenses","Salaries and benefits","Active"]
[252,"252 RESEARCH-DOCTORAL STUDENT",5400,"Non-Jurisdictional - Salaries","Expenses","Salaries and benefits","Active"]
[253,"253 RESEARCH-POST-DOCTORAL",5400,"Non-Jurisdictional - Salaries","Expenses","Salaries and benefits","Active"]
[280,"280 VUIFA PROFESSIONAL DEV'T",5330,"VIUFA - Contractual PD - Funds","Expenses","Salaries and benefits","Active"]
[281,"281 BGGEU CONTRACTUAL PRO-D",5120,"BCGEU - Contractual Professional Development","Expenses","Salaries and benefits","Active"]
[281,"281 BGGEU CONTRACTUAL PRO-D","6110-1","Training - Employee (NT)","Expenses","Travel and training","Active"]
[282,"282 NON-CONTRACTUAL PRO-D","6110-1","Training - Employee (NT)","Expenses","Travel and training","Active"]
[285,"285 VIU PAID STAFF COURSE FEE","6111-1","Training - VIU Courses Paid for Staff - SLED","Expenses","Travel and training","Active"]
[300,"Not in YTD GL","7700-1","Capital Purchases - Buildings (NT)","Capital additions - to be capitalized","Capital additions - to be capitalized","Active"]
[315,"315 CONSTRUCTION-PAINTING","7700-1","Capital Purchases - Buildings (NT)","Capital additions - to be capitalized","Capital additions - to be capitalized","Active"]
[400,"400 SUPPLIES","6500-1","Supplies (NT)","Expenses","Materials and supplies","Active"]
[401,"401 BROCHURES/POSTERS","6010-1","Advertising & Promotion (NT)","Expenses","Fees and purchased services","Active"]
[402,"402 PUBLICITY/PROMOTION","6010-1","Advertising & Promotion (NT)","Expenses","Fees and purchased services","Active"]
[403,"Not in YTD GL","6010-1","Advertising & Promotion (NT)","Expenses","Fees and purchased services","Active"]
[404,"Not in YTD GL","6500-1","Supplies (NT)","Expenses","Materials and supplies","Active"]
[405,"405 ADVERTISING","6010-1","Advertising & Promotion (NT)","Expenses","Fees and purchased services","Active"]
[406,"406 POSTAGE AND COURIER","6520-1","Postage, Courier, and Freight (NT)","Expenses","Materials and supplies","Active"]
[408,"Not in YTD GL","6325-1","Rental and Lease (NT)","Expenses","Equipment rental and maintenance","Active"]
[409,"409 PROGRAM DEVELOPMENT","6000-1","Services (NT)","Expenses","Fees and purchased services","Active"]
[410,"410 SERVICES","6000-1","Services (NT)","Expenses","Fees and purchased services","Active"]
[411,"411 AGENTS' COMMISSIONS","6000-1","Services (NT)","Expenses","Fees and purchased services","Active"]
[412,"412 AUDIT FEES","6030-1","Professional and Consulting Fees (NT)","Expenses","Fees and purchased services","Active"]
[413,"413 LEGAL FEES","6030-1","Professional and Consulting Fees (NT)","Expenses","Fees and purchased services","Active"]
[415,"Not in YTD GL","6035-1","Bank Charges, Interest, and Credit Card Fees (NT)","Expenses","Fees and purchased services","Active"]
[416,"416 PAPER SUPPLIES CAFETERIA","6600-1","Cost of Goods Sold (NT)","Expenses","Cost of goods sold","Active"]
[417,"417 LAUNDRY/LINEN","6000-1","Services (NT)","Expenses","Fees and purchased services","Active"]
[418,"418 TECHN. SERVICES/SUPPLIES","6000-1","Services (NT)","Expenses","Fees and purchased services","Active"]
[420,"420 TRAVEL","6100-1","Travel - Employee (NT)","Expenses","Travel and training","Active"]
[421,"421 INTER-CAMPUS TRAVEL","6100-1","Travel - Employee (NT)","Expenses","Travel and training","Active"]
[422,"422 TRAVEL - INST. DELIVERY","6100-1","Travel - Employee (NT)","Expenses","Travel and training","Active"]
[423,"423 TRAVEL - ADMINISTRATION","6100-1","Travel - Employee (NT)","Expenses","Travel and training","Active"]
[424,"Not in YTD GL","6100-1","Travel - Employee (NT)","Expenses","Travel and training","Active"]
[425,"425 TRAVEL-STUDENT/NON-EMPL","6105-1","Travel - Non Employee (NT)","Expenses","Travel and training","Active"]
[426,"Not in YTD GL","6105-1","Travel - Non Employee (NT)","Expenses","Travel and training","Active"]
[427,"427 PARTICIPANT ALLOWANCES","6005-1","Fee for Service - Individual / Sole Proprietor (NT)","Expenses","Fees and purchased services","Active"]
[428,"428 ARTICULATION","6100-1","Travel - Employee (NT)","Expenses","Travel and training","Active"]
[429,"429 TUITION CHG/BURSAY/SCHOLA","6200-1","Tuition Bursary/Scholarships (NT)","Expenses","Scholarships and bursaries","Active"]
[430,"430 RENTAL - EQUIPMENT","6325-1","Rental and Lease (NT)","Expenses","Equipment rental and maintenance","Active"]
[431,"431 RENTAL - FACILITES","6325-1","Rental and Lease (NT)","Expenses","Equipment rental and maintenance","Active"]
[435,"Not in YTD GL","7701-1","Capital Purchases - Building Retrofit (NT)","Capital additions - to be capitalized","Capital additions - to be capitalized","Active"]
[437,"Not in YTD GL","7712-3","Capital Purchases - Land (GP)","Capital additions - to be capitalized","Capital additions - to be capitalized","Active"]
[440,"440 EQUIP/INSTRUMENTS >$5,000","7707-2","Capital Purchases - Equipment (G)","Capital additions - to be capitalized","Capital additions - to be capitalized","Active"]
[441,"Not in YTD GL","7711-2","Capital Purchases - Vehicles (G)","Capital additions - to be capitalized","Capital additions - to be capitalized","Active"]
[443,"Not in YTD GL","7702-2","Capital Purchases - Computer Equipment (G)","Capital additions - to be capitalized","Capital additions - to be capitalized","Active"]
[444,"444 SOFTWARE","6045-1","Software (NT)","Expenses","Fees and purchased services","Active"]
[450,"450 REPAIRS - FURN & EQUIP","6300-1","Repair and Maintenance - Furniture & Equipment (NT)","Expenses","Equipment rental and maintenance","Active"]
[451,"451 PREVENTATIVE MAINTENANCE","6310-1","Repair and Maintenance - Facilities (GP)","Expenses","Equipment rental and maintenance","Active"]
[451,"451 PREVENTATIVE MAINTENANCE","6310-3","Repair and Maintenance - Facilities (GP)","Expenses","Equipment rental and maintenance","Active"]
[452,"Not in YTD GL","6310-1","Repair and Maintenance - Facilities (GP)","Expenses","Equipment rental and maintenance","Active"]
[460,"460 ON CAMPUS HOSPITALITY EXP",8204,"Internal Consumption - Catering Costs","Internal Expenses","Internal ordering - expenditures","Active"]
[461,"461 HOSPITALITY EXP. OTHER","6015-1","Hospitality - External (NT)","Expenses","Fees and purchased services","Active"]
[462,"462 EMPLOYEE EXPENSES - MISC","6525-1","Miscellaneous Employee Expenses (NT)","Expenses","Materials and supplies","Active"]
[463,"463 VIU BOOKSTORE CHARGES",8205,"Internal Consumption - Campus Store Costs","Internal Expenses","Internal ordering - expenditures","Active"]
[465,"465 MAJOR SUPPLIES/EQUIPMENT","6500-1","Supplies (NT)","Expenses","Materials and supplies","Active"]
[466,"466 MAJOR SUPPLIES-COMP H/W","6500-1","Supplies (NT)","Expenses","Materials and supplies","Active"]
[469,"469 SECURITY/EMER.TELE.ACCESS","6000-1","Services (NT)","Expenses","Fees and purchased services","Active"]
[470,"470 UTILITIES-HYDRO","6400-1","Utilities (NT)","Expenses","Utilities, insurance and taxes","Active"]
[471,"471 UTILITIES WATER/SW/GARB.","6400-1","Utilities (NT)","Expenses","Utilities, insurance and taxes","Active"]
[472,"472 UTILITIES-HEATING FUEL","6400-1","Utilities (NT)","Expenses","Utilities, insurance and taxes","Active"]
[473,"473 UTILITIES NATURAL GAS","6400-1","Utilities (NT)","Expenses","Utilities, insurance and taxes","Active"]
[474,"474 UTILITIES-CONTRACTED GARB","6400-1","Utilities (NT)","Expenses","Utilities, insurance and taxes","Active"]
[475,"475 PROPERTY TAX/CARBON OFFSE","6400-1","Utilities (NT)","Expenses","Utilities, insurance and taxes","Active"]
[476,"476 GARBAGE REMOVAL","6400-1","Utilities (NT)","Expenses","Utilities, insurance and taxes","Active"]
[478,"478 HVAC","6310-1","Repair and Maintenance - Facilities (GP)","Expenses","Equipment rental and maintenance","Active"]
[479,"479 SAFETY","6300-1","Repair and Maintenance - Furniture & Equipment (NT)","Expenses","Equipment rental and maintenance","Active"]
[480,"480 JANITORIAL SERVICES","6000-1","Services (NT)","Expenses","Fees and purchased services","Active"]
[482,"482 FIRE PROTECTION","6300-1","Repair and Maintenance - Furniture & Equipment (NT)","Expenses","Equipment rental and maintenance","Active"]
[483,"483 ELEVATORS","6310-1","Repair and Maintenance - Facilities (GP)","Expenses","Equipment rental and maintenance","Active"]
[484,"484 ELECTRICAL","6310-1","Repair and Maintenance - Facilities (GP)","Expenses","Equipment rental and maintenance","Active"]
[485,"485 PLUMBING","6310-1","Repair and Maintenance - Facilities (GP)","Expenses","Equipment rental and maintenance","Active"]
[486,"486 SECURITY SERVICES","6000-1","Services (NT)","Expenses","Fees and purchased services","Active"]
[487,"Not in YTD GL","6000-1","Services (NT)","Expenses","Fees and purchased services","Active"]
[488,"Not in YTD GL","6310-1","Repair and Maintenance - Facilities (GP)","Expenses","Equipment rental and maintenance","Active"]
[493,"493 STAFF TRAINING-INSTITUTIO","6115-1","Training - Institutional (NT)","Expenses","Travel and training","Active"]
[494,"494 MEMBERSHIPS-INSTITUTIONAL","6020-1","Fees and Memberships - Institutional (NT)","Expenses","Fees and purchased services","Active"]
[495,"495 MEMBERSHIPS - EMPLOYEE","6025-1","Fees and Memberships - Employee (NT)","Expenses","Fees and purchased services","Active"]
[496,"496 SITE LICENCES/LIC/PERMITS","6020-1","Fees and Memberships - Institutional (NT)","Expenses","Fees and purchased services","Active"]
[497,"497 CONFERENCE FEES","6110-1","Training - Employee (NT)","Expenses","Travel and training","Active"]
[498,"498 FIRST AID","6500-1","Supplies (NT)","Expenses","Materials and supplies","Active"]
[499,"499 SPECIAL EVENT EXPENDITURE","6010-1","Advertising & Promotion (NT)","Expenses","Fees and purchased services","Active"]
[500,"500 VEHICLE RENTAL-EMPL.TRAVE","6100-1","Travel - Employee (NT)","Expenses","Travel and training","Active"]
[501,"Not in YTD GL","6325-1","Rental and Lease (NT)","Expenses","Equipment rental and maintenance","Active"]
[505,"505 VEHICLES - REPAIR & MAINT","6305-2","Repair and Maintenance - Vehicles (G)","Expenses","Equipment rental and maintenance","Active"]
[506,"506 VEHICLES - FUEL","6320-2","Vehicle Fuel (G)","Expenses","Equipment rental and maintenance","Active"]
[520,"520 PHONE - EQUIPMENT","6405-1","Phone (NT)","Expenses","Utilities, insurance and taxes","Active"]
[521,"521 PHONE MAINTENANCE CONT.","6405-1","Phone (NT)","Expenses","Utilities, insurance and taxes","Active"]
[525,"525 PHONE - LONG DISTANCE","6405-1","Phone (NT)","Expenses","Utilities, insurance and taxes","Active"]
[526,"526 CELLULAR PHONE CHARGES","6405-1","Phone (NT)","Expenses","Utilities, insurance and taxes","Active"]
[535,"535 PRINTING & DUPLICATING","6515-3","Printing and Duplicating (GP)","Expenses","Materials and supplies","Active"]
[540,"540 STATIONERY/OFF.SUPPLIES","6505-1","Office Supplies and Stationery (NT)","Expenses","Materials and supplies","Active"]
[541,"Not in YTD GL","6500-1","Supplies (NT)","Expenses","Materials and supplies","Active"]
[542,"542 PRGM-RELATED CONSUMMABLES","6500-1","Supplies (NT)","Expenses","Materials and supplies","Active"]
[545,"Not in YTD GL","6505-1","Office Supplies and Stationery (NT)","Expenses","Materials and supplies","Active"]
[550,"550 INSURANCE PREMIUMS","6410-1","Insurance (NT)","Expenses","Utilities, insurance and taxes","Active"]
[555,"Not in YTD GL","6500-1","Supplies (NT)","Expenses","Materials and supplies","Active"]
[557,"557 MILNER-IRRIGATION/INS.R&M","6310-1","Repair and Maintenance - Facilities (GP)","Expenses","Equipment rental and maintenance","Active"]
[576,"576 GIFTS IN KIND - EXPENSE","6530-1","Gifts in Kind - Expense (NT)","Expenses","Materials and supplies","Active"]
[578,"578 BURS/SCHLSHP INTRNL FNDED","6200-1","Tuition Bursary/Scholarships (NT)","Expenses","Scholarships and bursaries","Active"]
[598,"598 GRANTS","6040-1","Payments to Service Partners (NT)","Expenses","Fees and purchased services","Active"]
[600,"600 BOOK PURCH. LIBRARY ONLY","7709-2","Capital Purchases - Library Books (G)","Capital additions - to be capitalized","Capital additions - to be capitalized","Active"]
[601,"601 BOOK PURCHASES, INSTRUCT.","6500-1","Supplies (NT)","Expenses","Materials and supplies","Active"]
[608,"608 INTER LIBRARY LOAN","6325-1","Rental and Lease (NT)","Expenses","Equipment rental and maintenance","Active"]
[620,"620 RESALEABLE ITEMS","6600-1","Cost of Goods Sold (NT)","Expenses","Cost of goods sold","Active"]
[625,"625 EXPENSE RECOVERY","6500-1","Supplies (NT)","Expenses","Materials and supplies","Active"]
[626,"626 PHOTOCOPY RECOVERY","6500-1","Supplies (NT)","Expenses","Materials and supplies","Active"]
[630,"630 CGS-CULINARY FOOD COSTS","6600-1","Cost of Goods Sold (NT)","Expenses","Cost of goods sold","Active"]
[631,"631 CGS-CUL.COSTS RECOVERY","6600-1","Cost of Goods Sold (NT)","Expenses","Cost of goods sold","Active"]
[632,"Not in YTD GL","6600-1","Cost of Goods Sold (NT)","Expenses","Cost of goods sold","Active"]
[633,"Not in YTD GL","6600-1","Cost of Goods Sold (NT)","Expenses","Cost of goods sold","Active"]
[635,"Not in YTD GL","6600-1","Cost of Goods Sold (NT)","Expenses","Cost of goods sold","Active"]
[636,"Not in YTD GL","6600-1","Cost of Goods Sold (NT)","Expenses","Cost of goods sold","Active"]
[637,"Not in YTD GL","6600-1","Cost of Goods Sold (NT)","Expenses","Cost of goods sold","Active"]
[638,"Not in YTD GL","6600-1","Cost of Goods Sold (NT)","Expenses","Cost of goods sold","Active"]
[639,"639 CREDIT CARD CHARGES","6035-1","Bank Charges, Interest, and Credit Card Fees (NT)","Expenses","Fees and purchased services","Active"]
[640,"640 LIQUOR PURCHASES","6600-1","Cost of Goods Sold (NT)","Expenses","Cost of goods sold","Active"]
[644,"Not in YTD GL","6600-1","Cost of Goods Sold (NT)","Expenses","Cost of goods sold","Active"]
[647,"647 PURCHASE-GENERAL MDSE","6600-1","Cost of Goods Sold (NT)","Expenses","Cost of goods sold","Active"]
[648,"648 PURCHASES - NON MERCHANDS","6600-1","Cost of Goods Sold (NT)","Expenses","Cost of goods sold","Active"]
[649,"Not in YTD GL","6600-1","Cost of Goods Sold (NT)","Expenses","Cost of goods sold","Active"]
[651,"651 PURCHASES - TEXT","6600-1","Cost of Goods Sold (NT)","Expenses","Cost of goods sold","Active"]
[653,"Not in YTD GL","6600-1","Cost of Goods Sold (NT)","Expenses","Cost of goods sold","Active"]
[654,"654 PURCHASE-TRADE","6600-1","Cost of Goods Sold (NT)","Expenses","Cost of goods sold","Active"]
[655,"655 FREIGHT-IN/BOOKS","6605-1","Freight and Brokerage Fees (NT)","Expenses","Cost of goods sold","Active"]
[656,"656 FREIGHT-IN/OTHER","6605-1","Freight and Brokerage Fees (NT)","Expenses","Cost of goods sold","Active"]
[657,"657 FREIGHT OUT","6605-1","Freight and Brokerage Fees (NT)","Expenses","Cost of goods sold","Active"]
[660,"660 BROKER FEES/BOOKS","6605-1","Freight and Brokerage Fees (NT)","Expenses","Cost of goods sold","Active"]
[664,"664 FREIGHT GENERAL/COURIER","6605-1","Freight and Brokerage Fees (NT)","Expenses","Cost of goods sold","Active"]
[665,"Not in YTD GL",6611,"Bad Debt Expense - Actuals","Expenses","Cost of goods sold","Active"]
[680,"680 CONTRACT PROCEEDS, DEPT.",8450,"Internal Consumption - Overhead paid - Department","Internal Expenses","Overhead Paid","Active"]
[681,"Not in YTD GL",8451,"Internal Consumption - Overhead paid - Institutional","Internal Expenses","Overhead Paid","Active"]
[682,"682 RESEARCH OVERHEAD",8452,"Internal Consumption - Overhead paid - Research","Internal Expenses","Overhead Paid","Active"]
[683,"Not in YTD GL",8453,"Internal Consumption - Overhead paid - PVPA Premium","Internal Expenses","Overhead Paid","Active"]
[699,"Not in YTD GL","6600-1","Cost of Goods Sold (NT)","Expenses","Cost of goods sold","Active"]
[700,"700 OPERATING GRANT",4000,"Province of BC - Grants - AVED Core Operating Grant","Revenue","Province of British Columbia grants","Active"]
[701,"701 GRNTS & CTRCTS - OTHR GOV",4050,"Province of BC - Crown Corps, Agencies, Boards - Grants and Contracts - Other","Revenue","Province of British Columbia grants","Active"]
[704,"704 NON RECURRING GRANT",4010,"Province of BC -  Grants - AVED General Grants","Revenue","Province of British Columbia grants","Active"]
[705,"Not in YTD GL",4010,"Province of BC -  Grants - AVED General Grants","Revenue","Province of British Columbia grants","Active"]
[706,"Not in YTD GL",4010,"Province of BC -  Grants - AVED General Grants","Revenue","Province of British Columbia grants","Active"]
[707,"707 MIN.GRANT INDUSTRY TRNG",4040,"Province of BC - Crown Corps, Agencies, Boards - Grants and Contracts - ITA","Revenue","Province of British Columbia grants","Active"]
[708,"708 MINISTRY GRANT DEFERRED",4010,"Province of BC -  Grants - AVED General Grants","Revenue","Province of British Columbia grants","Active"]
[709,"709 FEDERAL GOVT GRANTS",4100,"Government of Canada Department - Grants","Revenue","Government of Canada grants","Active"]
[710,"710 TUITION FEES AC/TECH.",4300,"Domestic Distributed - Tuition","Revenue","Tuition and student fees","Active"]
[713,"713 IE TUITION FEES",4330,"International Distributed - Tuition","Revenue","Tuition and student fees","Active"]
[714,"714 E.S.L. TUITION (DOMESTIC)",4301,"Domestic Distributed - ESL","Revenue","Tuition and student fees","Active"]
[715,"715 TUITION FEES VOCATIONAL",4302,"Domestic Distributed - Vocational (Trade)","Revenue","Tuition and student fees","Active"]
[716,"716 TUITION-PERSONAL INTEREST",4303,"Domestic Distributed - CE General Interest","Revenue","Tuition and student fees","Active"]
[717,"717 A.B.E. TUITION",4304,"Domestic Distributed - ABE","Revenue","Tuition and student fees","Active"]
[720,"720 LAB FEES",4350,"Other Student Fees Distributed - Domestic Lab Fees","Revenue","Tuition and student fees","Active"]
[721,"721 TUITION DISCOUNT",4367,"Other Student Fees - Tuition Discount","Revenue","Tuition and student fees","Active"]
[722,"722 OTHER FEES",4360,"Other Student Fees - General Other Fees","Revenue","Tuition and student fees","Active"]
[723,"Not in YTD GL",4364,"Other Student Fees - Appeals Fee","Revenue","Tuition and student fees","Active"]
[724,"724 REGISTRATION - GRAD FEE",4365,"Other Student Fees - Graduation Fee","Revenue","Tuition and student fees","Active"]
[725,"725 REGISTRATION-CRIM.RCD CK",4363,"Other Student Fees - Criminal Record Check Fees","Revenue","Tuition and student fees","Active"]
[726,"726 STUDENT SERVICES FEE",4354,"Other Student Fees Distributed - Domestic Student Services Fee","Revenue","Tuition and student fees","Active"]
[727,"727 STUDENT ACTIVITY FEE",4352,"Other Student Fees Distributed - Domestic Student Activity Fee","Revenue","Tuition and student fees","Active"]
[730,"Not in YTD GL",4366,"Other Student Fees - Library Fines","Revenue","Tuition and student fees","Active"]
[740,"740 SALES - GENERAL MDSE",4400,"Merchandise Revenue","Revenue","Sales of goods and services","Active"]
[741,"741 SALES-NON MERCHANDISE",4401,"Service Revenue","Revenue","Sales of goods and services","Active"]
[745,"745 SALES - TEXT",4408,"Textbook Revenue","Revenue","Sales of goods and services","Active"]
[748,"Not in YTD GL",4408,"Textbook Revenue","Revenue","Sales of goods and services","Active"]
[749,"749 SALES - TRADE",4400,"Merchandise Revenue","Revenue","Sales of goods and services","Active"]
[750,"750 PST-TAXABLE SALES",4400,"Merchandise Revenue","Revenue","Sales of goods and services","Active"]
[754,"Not in YTD GL",8004,"Internal Consumption - Catering Sales","Internal Revenues","Internal ordering - revenue","Active"]
[755,"Not in YTD GL",4403,"Liquor Sales Revenue","Revenue","Sales of goods and services","Active"]
[760,"760 SALES",4412,"Miscellaneous Sales Revenue","Revenue","Sales of goods and services","Active"]
[762,"Not in YTD GL",4405,"Admissions Revenue","Revenue","Sales of goods and services","Active"]
[766,"766 CATERING REVENUE-FOOD",4402,"Food and Non Alcoholic Beverages Revenue","Revenue","Sales of goods and services","Active"]
[767,"767 CATERING -LIQUOR",4403,"Liquor Sales Revenue","Revenue","Sales of goods and services","Active"]
[774,"774 REALIZED (GAINS) LOSSES",4800,"Realized Gain (Loss) on Investments","Revenue","Gain (Loss) on investments","Active"]
[775,"775 TICKET SALES",4405,"Admissions Revenue","Revenue","Sales of goods and services","Active"]
[776,"776 GIFTS IN KIND",4700,"Gifts in Kind","Revenue","Gifts, grants and bequests","Active"]
[778,"778 DONATIONS,GIFTS,BEQUESTS",4701,"Donations","Revenue","Gifts, grants and bequests","Active"]
[779,"779 SPECIAL EVENT REVENUE",4407,"Special Events Revenue","Revenue","Sales of goods and services","Active"]
[780,"780 INTEREST INCOME",4600,"Investment Income","Revenue","Investment income","Active"]
[782,"Not in YTD GL",4801,"Unrealized Gain (Loss) on Investments","Revenue","Gain (Loss) on investments","Active"]
[783,"783 GRANTS&CONTRACTS-NFP ORG",4270,"Grants and Contracts - NFP's","Revenue","Other grants and contracts","Active"]
[784,"784 FEDERAL GOVT CONTRACTS",4110,"Government of Canada Department - Contracts","Revenue","Government of Canada grants","Active"]
[785,"785 BC PROV CONTRACTS",4020,"Province of BC - Contracts - Non AVED Other Ministries","Revenue","Province of British Columbia grants","Active"]
[786,"786 INTERFUND TRANSFER",8298,"Internal Consumption - Opening Balance - Interfund Transfer","Internal Expenses","Internal ordering - expenditures","Active"]
[787,"787 INTRAFUND TRANSFER",8299,"Internal Consumption - Opening Balance - Intarfund Transfer","Internal Expenses","Internal ordering - expenditures","Active"]
[790,"790 GRANTS&CONTRACTS-IND/CORP",4250,"Grants and Contracts - Corporations","Revenue","Other grants and contracts","Active"]
[791,"791 MEMBERSHIP REVENUE",4404,"Operating Fees Revenue","Revenue","Sales of goods and services","Active"]
[792,"792 REVENUE VENDING MACHINES",4411,"Commission Revenue","Revenue","Sales of goods and services","Active"]
[793,"793 PARKING PERMITS",4409,"Parking Revenue","Revenue","Sales of goods and services","Active"]
[794,"794 PARKING METERS REVENUE",4409,"Parking Revenue","Revenue","Sales of goods and services","Active"]
[795,"795 FACILITIES RENTAL REVENUE",4501,"Residence Rental Income","Revenue","Rental income","Active"]
[796,"796 SUMMER CAMP REVENUE",4406,"Recreation Classes, Courses and Trips Revenue","Revenue","Sales of goods and services","Active"]
[797,"797 ENTRY/REGISTRATION FEES",4405,"Admissions Revenue","Revenue","Sales of goods and services","Active"]
[798,"798 SERVICES REVENUE",4401,"Service Revenue","Revenue","Sales of goods and services","Active"]
[799,"799 OTHER REVENUE",4900,"Other Revenue","Revenue","Other revenue","Active"]
[800,"800 BANK - GENERAL",1000,"Bank - General","Financial assets","Cash and cash equivalents","Active"]
[801,"801 BANK - U.S.",1010,"Bank - U.S.","Financial assets","Cash and cash equivalents","Active"]
[803,"803 PRE-AUTH DR ACCT-APPLY BC",1020,"Bank - External Access","Financial assets","Cash and cash equivalents","Active"]
[820,"820 PETTY CASH/CHANGE FUND",1030,"Petty Cash & Cash Floats","Financial assets","Cash and cash equivalents","Active"]
[822,"822 G.S.T. REBATE RECEIVABLE",1212,"Accounts Receivable - GST ITCs and Rebates","Financial assets","Accounts receivable","Active"]
[825,"825 G.S.T. ITC'S RECEIVABLE",1212,"Accounts Receivable - GST ITCs and Rebates","Financial assets","Accounts receivable","Active"]
[827,"827 G.S.T. REBATES MANUAL ADJ",1212,"Accounts Receivable - GST ITCs and Rebates","Financial assets","Accounts receivable","Active"]
[828,"828 DUE TO/FROM MIHS",1291,"Accounts Receivable - Due from THS at VIU (Intercompany)","Financial assets","Accounts receivable","Active"]
[830,"830 ACCTS REC - GENERAL",1200,"Accounts Receivable Control - BC Provincial Govt - Grants and Contracts","Financial assets","Accounts receivable","Active"]
[830,"830 ACCTS REC - GENERAL",1210,"Accounts Receivable Control -  Federal Govt- Grants and Contracts","Financial assets","Accounts receivable","Active"]
[830,"830 ACCTS REC - GENERAL",1220,"Accounts Receivable  Control - Other Govt - Grants and Contracts","Financial assets","Accounts receivable","Active"]
[830,"830 ACCTS REC - GENERAL",1230,"Accounts Receivable Control - Trade General","Financial assets","Accounts receivable","Active"]
[832,"Not in YTD GL",1260,"AR Clearing - Student Emergency Loans (Advances)","Financial assets","Accounts receivable","Active"]
[833,"833 GST CLEARING",1212,"Accounts Receivable - GST ITCs and Rebates","Financial assets","Accounts receivable","Active"]
[836,"836 BOOKSTORE A/R CLEARING",1252,"Accounts Receivable - Campus Store","Financial assets","Accounts receivable","Active"]
[837,"Not in YTD GL",1263,"AR Clearing - Passport / Youth Works","Financial assets","Accounts receivable","Active"]
[839,"FEES RECEIVABLE",1200,"Accounts Receivable Control - BC Provincial Govt - Grants and Contracts","Financial assets","Accounts receivable","Active"]
[839,"FEES RECEIVABLE",1210,"Accounts Receivable Control -  Federal Govt- Grants and Contracts","Financial assets","Accounts receivable","Active"]
[839,"FEES RECEIVABLE",1220,"Accounts Receivable  Control - Other Govt - Grants and Contracts","Financial assets","Accounts receivable","Active"]
[839,"FEES RECEIVABLE",1230,"Accounts Receivable Control - Trade General","Financial assets","Accounts receivable","Active"]
[840,"840 PREPAID EXPENSES-GENERAL",1700,"Prepaid Expenses - Supplier Invoices","Non-financial assets","Prepaid expenses","Active"]
[844,"844 DUE TO/FROM FOUNDATION",1290,"AR Clearing - Due from VIU Foundation","Financial assets","Accounts receivable","Active"]
[845,"845 BOOKSTORE INV.CLEARING",1252,"Accounts Receivable - Campus Store","Financial assets","Accounts receivable","Active"]
[846,"846 TRAVEL ADVANCES",1805,"Deposits - Employee Advances","Non-financial assets","Prepaid expenses","Active"]
[848,"Not in YTD GL",1251,"Accounts Receivable - Residence","Financial assets","Accounts receivable","Active"]
[849,"849 STU LEDGER:TUITION RECEIV",1235,"Accounts Receivable - Student Ledger AR (SLED)","Financial assets","Accounts receivable","Active"]
[850,"850 SLED BAD DEBT CONTRA ACCT",1240,"Accounts Receivable - Allowance for Doubtful Accounts","Financial assets","Accounts receivable","Active"]
[851,"851 INVESTMENT-CUMULATIVE UGL",1400,"Investment - General - Cumulative Unrealized Gains/Losses","Financial assets","Portfolio investments","Active"]
[853,"853 INVESTMENTS",1410,"Investment - General","Financial assets","Portfolio investments","Active"]
[855,"855 BOOKSTORE INVENTORY",1300,"Inventory - Campus Store","Financial assets","Inventories for resale","Active"]
[856,"856 CAFETERIA INVENTORY",1310,"Inventory - Food Services","Financial assets","Inventories for resale","Active"]
[857,"857 MILNER GARDENS INVENTORY",1320,"Inventory - Milner Gardens","Financial assets","Inventories for resale","Active"]
[867,"867 INVESTMENT TOURISM CHAIR",1420,"Investment - Tourism Chair","Financial assets","Portfolio investments","Active"]
[868,"868 TOURISM CH-CUMULATIVE UGL",1430,"Investment - Tourism Chair - Cumulative Unrealized Gains/Losses","Financial assets","Portfolio investments","Active"]
[869,"869 INVESTMENT-AECD CHAIR",1440,"Investment - Aboriginal Early Childhood Development Chair","Financial assets","Portfolio investments","Active"]
[870,"870 ACED CHAIR-CUMULATIVE UGL",1450,"Investment - Aboriginal Early Childhood Development Chair - Cumulative Unrealized Gains/Losses","Financial assets","Portfolio investments","Active"]
[871,"871 INVESTMENT IN VIUIC",1455,"Investment - VIU Initiatives Corp ","Financial assets","Portfolio investments","Active"]
[875,"875 VEHICLES",1509,"Capital Assets - Vehicles","Non-financial assets","Tangible capital assets","Active"]
[876,"876 WORK IN PROGRESS",1511,"Capital Assets - Work In Progress","Non-financial assets","Tangible capital assets","Active"]
[880,"880 LAND",1510,"Capital Assets - Land","Non-financial assets","Tangible capital assets","Active"]
[881,"881 SITE IMPROVEMENTS",1508,"Capital Assets - Site Improvements (Land)","Non-financial assets","Tangible capital assets","Active"]
[882,"882 BUILDINGS",1500,"Capital Assets - Buildings - New Construction","Non-financial assets","Tangible capital assets","Active"]
[883,"883 FURNITURE & EQUIPMENT",1504,"Capital Assets - Furniture","Non-financial assets","Tangible capital assets","Active"]
[884,"884 COMPUTER EQUIPMENT",1502,"Capital Assets - Computer Equipment","Non-financial assets","Tangible capital assets","Active"]
[885,"885 LEASEHOLD IMPROVEMENTS",1506,"Capital Assets - Leasehold Improvements","Non-financial assets","Tangible capital assets","Active"]
[886,"886 LIBRARY BOOKS",1507,"Capital Assets - Library Books","Non-financial assets","Tangible capital assets","Active"]
[887,"887 ACCUM.AMORT.SITE IMPROV.",1558,"Accumulated Amortization - Site Improvements (Land)","Non-financial assets","Tangible capital assets","Active"]
[888,"888 ACCUM.AMORT.BUILDINGS",1550,"Accumulated Amortization - New Building Construction","Non-financial assets","Tangible capital assets","Active"]
[889,"889 ACCUM.AMORT.EQUIP.F&F",1554,"Accumulated Amortization - Furniture","Non-financial assets","Tangible capital assets","Active"]
[890,"890 ACCUM.AMORT.COMPUTER EQ.",1552,"Accumulated Amortization - Computer Equipment","Non-financial assets","Tangible capital assets","Active"]
[891,"891 ACCUM.AMORT.LEASEHOLD IMP",1556,"Accumulated Amortization - Leasehold Improvements","Non-financial assets","Tangible capital assets","Active"]
[892,"892 ACCUM.AMORT.LIBRARY BOOKS",1557,"Accumulated Amortization - Library Books","Non-financial assets","Tangible capital assets","Active"]
[895,"895 ACCUMULATED DEP-VEHICLES",1559,"Accumulated Amortization - Vehicles","Non-financial assets","Tangible capital assets","Active"]
[897,"897 LOAN RECEIVABLE - VIIT",1460,"Loan Receivable - VIU Initiatives Trust ","Financial assets","Loan receivable","Active"]
[900,"900 ACCTS PAYABLE - GENERAL",2000,"Accounts Payable - Control - Provincial","Liabilities","Accounts payable","Active"]
[900,"900 ACCTS PAYABLE - GENERAL",2010,"Accounts Payable - Control - Federal","Liabilities","Accounts payable","Active"]
[900,"900 ACCTS PAYABLE - GENERAL",2020,"Accounts Payable - Control - Other Government","Liabilities","Accounts payable","Active"]
[900,"900 ACCTS PAYABLE - GENERAL",2030,"Accounts Payable - Control - Trade","Liabilities","Accounts payable","Active"]
[900,"900 ACCTS PAYABLE - GENERAL",2032,"Accounts Payable - Control - Union","Liabilities","Accounts payable","Active"]
[901,"901 ACCTS PAYABLE - CLEARING",2067,"Accounts Payable - General Clearing","Liabilities","Accounts payable","Active"]
[902,"902 ACCTS PAYABLE-VENDOR ADJ.",2140,"Accrued - Registered Supplier Invoices","Liabilities","Accrued liabilities","Active"]
[903,"903 B.C. SALES TAX PAYABLE",2001,"PST Payable","Liabilities","Accounts payable","Active"]
[904,"904 ACCTS PAYABLE - U.S. BANK",2030,"Accounts Payable - Control - Trade","Liabilities","Accounts payable","Active"]
[905,"905 B.C.TEL L.D.CLEARING ACT.",2067,"Accounts Payable - General Clearing","Liabilities","Accounts payable","Active"]
[906,"906 ACCTS PAYABLE - WEEKLY",2000,"Accounts Payable - Control - Provincial","Liabilities","Accounts payable","Active"]
[906,"906 ACCTS PAYABLE - WEEKLY",2010,"Accounts Payable - Control - Federal","Liabilities","Accounts payable","Active"]
[906,"906 ACCTS PAYABLE - WEEKLY",2020,"Accounts Payable - Control - Other Government","Liabilities","Accounts payable","Active"]
[906,"906 ACCTS PAYABLE - WEEKLY",2030,"Accounts Payable - Control - Trade","Liabilities","Accounts payable","Active"]
[906,"906 ACCTS PAYABLE - WEEKLY",2032,"Accounts Payable - Control - Union","Liabilities","Accounts payable","Active"]
[906,"906 ACCTS PAYABLE - WEEKLY",2033,"Accounts Payable - Control - Employees","Liabilities","Accounts payable","Active"]
[907,"907 G.S.T. COLLECTED ON SALES",2011,"GST Collected on Sales","Liabilities","Accounts payable","Active"]
[908,"908 FOOD SERVICES-MEAL PLANS",2360,"Deferred Revenue - Food Services Meal Plans","Liabilities","Deferred revenue","Active"]
[910,"910 WAGES PAYABLE",2100,"Wages Payable","Liabilities","Accrued liabilities","Active"]
[911,"911 WORKSAFEBC PAYABLE",2114,"WorkSafeBC Payable","Liabilities","Accrued liabilities","Active"]
[912,"912 UNION DUES-CHARITY-MISC",2130,"Union Dues Payable","Liabilities","Accrued liabilities","Active"]
[913,"913 MUNICIPAL/COLLEGE PENSION",2111,"College Pension Payable","Liabilities","Accrued liabilities","Active"]
[914,"914 STAFF LOTTERY - CLEARING",2066,"Accounts Payable - VIU Foundation - Employee McLotto","Liabilities","Accounts payable","Active"]
[915,"915 DEFERRED SALARY PAYABLE",2132,"Deferred Salary Payable","Liabilities","Accrued liabilities","Active"]
[917,"917 M.S.A. (E.H.B.) PAYABLE",2120,"Benefits - Extended Health Payable","Liabilities","Accrued liabilities","Active"]
[918,"918 MANULIFE/I.A. INSURANCES",2122,"Benefits - Accidental death and dismemberment Payable","Liabilities","Accrued liabilities","Active"]
[918,"918 MANULIFE/I.A. INSURANCES",2123,"Benefits - Group Life Payable","Liabilities","Accrued liabilities","Active"]
[918,"918 MANULIFE/I.A. INSURANCES",2124,"Benefits - Short Term Disability Payable","Liabilities","Accrued liabilities","Active"]
[918,"918 MANULIFE/I.A. INSURANCES",2125,"Benefits - Long Term Disability Payable","Liabilities","Accrued liabilities","Active"]
[919,"919 M.S.A. DENTAL PAYABLE",2121,"Benefits - Dental benefit Payable","Liabilities","Accrued liabilities","Active"]
[920,"920 STUDENT SOCIETY FEES PAY.",2060,"Accounts Payable - VIUSU Payable - Student Society Fees","Liabilities","Accounts payable","Active"]
[923,"923 BANKED LEAVE SECTIONS",2175,"Accrued Employee Liabilities - VIUFA Overtime","Liabilities","Accrued liabilities","Active"]
[925,"925 RRSP PAYABLE",2101,"RRSP Payable","Liabilities","Accrued liabilities","Active"]
[926,"926 EMPLOYEE RECEIVABLE",1233,"Accounts Receivable Control - Employee Receivables","Financial assets","Accounts receivable","Active"]
[927,"927 COMPUTER/PD/RELOC. LOANS",1234,"Accounts Receivable - Employee Receivables (Computer and Relocation Loans)","Financial assets","Accounts receivable","Active"]
[929,"929 VIUFA PD BANK",2178,"Accrued Employee Liabilities - VIUFA Professional Development","Liabilities","Accrued liabilities","Active"]
[930,"930 PRO-PASS DEDUCTIONS",2134,"PRO-PASS Deductions","Liabilities","Accrued liabilities","Active"]
[931,"931 EE RECEIVABLE-PAY ADVANCE",1236,"Accounts Receivable - Employee Receivables (Pay Advance)","Financial assets","Accounts receivable","Active"]
[932,"932 RECEIVER GENRAL PAYROLL",2110,"Receiver General Payroll Payable","Liabilities","Accrued liabilities","Active"]
[933,"933 AR/AP CREDITS - CLEARING",1262,"AR Clearing - Accounts Receivable","Financial assets","Accounts receivable","Active"]
[934,"934 CBV CLEARING",1261,"AR Clearing - CBV Collections Clearing","Financial assets","Accounts receivable","Active"]
[935,"935 DINING $$$ CLEARING",2361,"Deferred Revenue - Food Services Dining Dollars","Liabilities","Deferred revenue","Active"]
[937,"937 DEFERRED TUITION REVENUE",2350,"Deferred Revenue - Tuition and Student Fees - SLED","Liabilities","Deferred revenue","Active"]
[938,"938 DEFERRED REVENUE",2310,"Deferred Revenue - Corporations - Grants and Contracts","Liabilities","Deferred revenue","Active"]
[938,"938 DEFERRED REVENUE",2320,"Deferred Revenue - Individuals - Grants and Contracts","Liabilities","Deferred revenue","Active"]
[938,"938 DEFERRED REVENUE",2330,"Deferred Revenue - NFPs - Grants and Contracts","Liabilities","Deferred revenue","Active"]
[939,"939 BOOKSTORE STU.CREDITS-CLE",2070,"Accounts Payable -Bookstore Student Credits","Liabilities","Accounts payable","Active"]
[940,"940 UNRESTRICTED NET ASSETS",3020,"Unrestricted Net Assets","Accumulated surplus","Equity/Accumulated surplus","Active"]
[941,"941 MANULIFE CLAIM CLEARING",2071,"Accounts Payable - Manulife Claims","Liabilities","Accounts payable","Active"]
[945,"945 DEFERRED FED.GRANTS-OPERA",2430,"Deferred Contributions - Government of Canada Department - Grants","Liabilities","Deferred contributions","Active"]
[945,"945 DEFERRED FED.GRANTS-OPERA",2431,"Deferred Contributions - Government of Canada Department - Contracts","Liabilities","Deferred contributions","Active"]
[945,"945 DEFERRED FED.GRANTS-OPERA",2510,"Deferred Capital Contributions -  Federal","Liabilities","Deferred capital contributions","Active"]
[946,"946 DEFERRED MINISTRY GRANTS",2400,"Deferred Contributions - Province of BC - AVED Core Operating","Liabilities","Deferred contributions","Active"]
[946,"946 DEFERRED MINISTRY GRANTS",2401,"Deferred Contributions - Province of BC - AVED General Grants","Liabilities","Deferred contributions","Active"]
[949,"949 EMPLOYEE FUTURE BENEFITS",2200,"Employee Future Benefits - Actuarial","Liabilities","Employee future benefits","Active"]
[950,"950 EQUITY Endow-AECD Chair",3030,"Equity Endowment - Aboriginal Early Childhood Development Chair","Accumulated surplus","Equity/Accumulated surplus","Active"]
[952,"952 EQUITY Endow-Tour Chair",3040,"Equity Endowment - Tourism Chair","Accumulated surplus","Equity/Accumulated surplus","Active"]
[955,"955 ACCR. VACATION LIABILITY",2161,"Accrued Employee Liabilities - ADMIN Vacation","Liabilities","Accrued liabilities","Active"]
[956,"956 MRDT PAYABLE",2002,"Municipal and Regional District Tax (MRDT) Payable","Liabilities","Accounts payable","Active"]
[957,"957 RESIDENCE DAMAGE DEPOSITS",2191,"Residence Damage Deposits ","Liabilities","Accrued liabilities","Active"]
[958,"958 DEFERRED PROV GRANTS OTHR",2402,"Deferred Contributions - Province of BC - Non AVED Other Ministries","Liabilities","Deferred contributions","Active"]
[959,"959 DEFERRED PROV ITA",2404,"Deferred Contributions - Province of BC - Crown Corps, Agencies, Boards - ITA","Liabilities","Deferred contributions","Active"]
[963,"963 DEFERRED OTHER GOV GRANTS",2405,"Deferred Contributions - Province of BC - Crown Corps, Agencies, Boards - Other","Liabilities","Deferred contributions","Active"]
[963,"963 DEFERRED OTHER GOV GRANTS",2440,"Deferred Contributions - Other Govt - Grants and Contracts ","Liabilities","Deferred contributions","Active"]
[964,"964 EHT PAYABLE",2113,"Employer Health Tax Payable (MSP)","Liabilities","Accrued liabilities","Active"]
[966,"Not in YTD GL",2520,"Deferred Capital Contributions - Other","Liabilities","Deferred capital contributions","Active"]
[967,"967 DEF DONATION&OTHER CONTRB",2520,"Deferred Capital Contributions - Other","Liabilities","Deferred capital contributions","Active"]
[968,"968 DEFERRED HISTORICAL ACA",2500,"Deferred Capital Contributions - Provincial","Liabilities","Deferred capital contributions","Active"]
[969,"969 DEFERRED CERTIFICATES REV",2500,"Deferred Capital Contributions - Provincial","Liabilities","Deferred capital contributions","Active"]
[970,"970 INVESTED IN CAP ASSETS",3050,"Invested in Capital Assets","Accumulated surplus","Equity/Accumulated surplus","Active"]
[971,"971 INVESTED IN CAP ASSET-WIP",3060,"Invested in Capital Assets - Work in Progress (WIP)","Accumulated surplus","Equity/Accumulated surplus","Active"]
[999,"999 CLEARING ACCOUNT",9999,"GL Balancing  Account - SYSTEM Errors","CLEARING","Clearing","Active"]
["Not in FRS","Not in YTD GL",1201,"Accounts Receivable - PST Adjustments","Financial assets","Accounts receivable","Closed"]
["Not in FRS","Not in YTD GL",1211,"Accounts Receivable - GST Rebates Receivable","Financial assets","Accounts receivable","Closed"]
["Not in FRS","Not in YTD GL",1231,"Accounts Receivable Control - Student Tuition (Domestic and International)","Financial assets","Accounts receivable","Closed"]
["Not in FRS","Not in YTD GL",1232,"Accounts Receivable Control - Student Tuition (International - Pending U4SM))","Financial assets","Accounts receivable","Closed"]
["Not in FRS","Not in YTD GL",1250,"Accounts Receivable - Deposits Paid","Financial assets","Accounts receivable","Active"]
["Not in FRS","Not in YTD GL",1264,"AR Clearing - Domestic Sponsor Billing From SLED","Financial assets","Accounts receivable","Active"]
["Not in FRS","Not in YTD GL",1265,"AR Clearing - Domestic Contract Billing From SLED","Financial assets","Accounts receivable","Active"]
["Not in FRS","Not in YTD GL",1266,"AR Clearing - International Sponsor Billing From SLED","Financial assets","Accounts receivable","Active"]
["Not in FRS","Not in YTD GL",1267,"AR Clearing - International Contract Billing From SLED","Financial assets","Accounts receivable","Active"]
["Not in FRS","Not in YTD GL",1268,"AR Clearing - Homestay SLED clearing","Financial assets","Accounts receivable","Active"]
["Not in FRS","Not in YTD GL",1269,"AR Clearing - S&B Cash Equivalent Disbursement","Financial assets","Accounts receivable","Active"]
["Not in FRS","Not in YTD GL",1270,"AR Clearing - IE Application Fees (AIE)","Financial assets","Accounts receivable","Active"]
["Not in FRS","Not in YTD GL",1271,"AR Clearing - Residence Cash Receipts","Financial assets","Accounts receivable","Active"]
["Not in FRS","Not in YTD GL",1330,"Inventory Clearing - Campus Store Inventory","Financial assets","Inventories for resale","Closed"]
["Not in FRS","Not in YTD GL",1501,"Capital Assets - Buildings - Building Retrofit","Non-financial assets","Tangible capital assets","Active"]
["Not in FRS","Not in YTD GL",1503,"Capital Assets - Computer Software","Non-financial assets","Tangible capital assets","Active"]
["Not in FRS","Not in YTD GL",1505,"Capital Assets - Equipment","Non-financial assets","Tangible capital assets","Active"]
["Not in FRS","Not in YTD GL",1512,"FA Accum.Amort - Furniture & Equipment","Non-financial assets","Tangible capital assets","Closed"]
["Not in FRS","Not in YTD GL",1513,"FA Accum.Amort - Leasehold Improvements","Non-financial assets","Tangible capital assets","Closed"]
["Not in FRS","Not in YTD GL",1514,"FA Accum.Amort - Library Books","Non-financial assets","Tangible capital assets","Closed"]
["Not in FRS","Not in YTD GL",1515,"FA Accum.Amort - Site improvements","Non-financial assets","Tangible capital assets","Closed"]
["Not in FRS","Not in YTD GL",1516,"FA Accum.Amort - Vehicles","Non-financial assets","Tangible capital assets","Closed"]
["Not in FRS","Not in YTD GL",1517,"FA Accum.Amort - TBD","Non-financial assets","Tangible capital assets","Closed"]
["Not in FRS","Not in YTD GL",1551,"Accumulated Amortization - Building Retrofit","Non-financial assets","Tangible capital assets","Active"]
["Not in FRS","Not in YTD GL",1553,"Accumulated Amortization - Computer Software","Non-financial assets","Tangible capital assets","Active"]
["Not in FRS","Not in YTD GL",1555,"Accumulated Amortization - Equipment","Non-financial assets","Tangible capital assets","Active"]
["Not in FRS","Not in YTD GL",1575,"Capital Asset Suspense - New Building Construction","Non-financial assets","Tangible capital assets","Active"]
["Not in FRS","Not in YTD GL",1576,"Capital Asset Suspense - Building Retrofit","Non-financial assets","Tangible capital assets","Active"]
["Not in FRS","Not in YTD GL",1577,"Capital Asset Suspense - Computer Equipment","Non-financial assets","Tangible capital assets","Active"]
["Not in FRS","Not in YTD GL",1578,"Capital Asset Suspense - Computer Software","Non-financial assets","Tangible capital assets","Active"]
["Not in FRS","Not in YTD GL",1579,"Capital Asset Suspense - Furniture","Non-financial assets","Tangible capital assets","Active"]
["Not in FRS","Not in YTD GL",1580,"Capital Asset Suspense - Equipment","Non-financial assets","Tangible capital assets","Active"]
["Not in FRS","Not in YTD GL",1581,"Capital Asset Suspense - Leasehold Improvements","Non-financial assets","Tangible capital assets","Active"]
["Not in FRS","Not in YTD GL",1582,"Capital Asset Suspense - Library Books","Non-financial assets","Tangible capital assets","Active"]
["Not in FRS","Not in YTD GL",1583,"Capital Asset Suspense - Site Improvements (Land)","Non-financial assets","Tangible capital assets","Active"]
["Not in FRS","Not in YTD GL",1584,"Capital Assets Suspense - Vehicles","Non-financial assets","Tangible capital assets","Active"]
["Not in FRS","Not in YTD GL",1585,"Capital Asset Suspense - Land","Non-financial assets","Tangible capital assets","Active"]
["Not in FRS","Not in YTD GL",1599,"Capital Assets - Suspense Account (Fixed Asset Management)","Non-financial assets","Tangible capital assets","Closed"]
["Not in FRS","Not in YTD GL",1600,"Restricted Endowment Investments - Tourism Chair","Non-financial assets","Restricted endowment investments","Active"]
["Not in FRS","Not in YTD GL",1610,"Restricted Endowment Investments - Tourism Chair - Cumulative Unrealized Gains/Losses","Non-financial assets","Restricted endowment investments","Closed"]
["Not in FRS","Not in YTD GL",1620,"Restricted Endowment Investments - Aboriginal Early Childhood Development","Non-financial assets","Restricted endowment investments","Active"]
["Not in FRS","Not in YTD GL",1630,"Restricted Endowment Investments - Aboriginal Early Childhood Development Chair - Cumulative Unrealized Gains/Losses","Non-financial assets","Restricted endowment investments","Closed"]
["Not in FRS","Not in YTD GL",1705,"Prepaid Expenses - Employee Expenses","Non-financial assets","Prepaid expenses","Active"]
["Not in FRS","Not in YTD GL",1800,"Deposits - Supplier","Non-financial assets","Prepaid expenses","Active"]
["Not in FRS","Not in YTD GL",2003,"PST Self Assessed","Liabilities","Accounts payable","Closed"]
["Not in FRS","Not in YTD GL",2012,"GST Self Assessed","Liabilities","Accounts payable","Active"]
["Not in FRS","Not in YTD GL",2031,"Accounts Payable - Holdbacks","Liabilities","Accounts payable","Active"]
["Not in FRS","Not in YTD GL",2034,"Accounts Payable - Control - Employee Advances","Liabilities","Accounts payable","Closed"]
["Not in FRS","Not in YTD GL",2035,"Accounts Payable - VIUFA PD Bank","Liabilities","Accounts payable","Closed"]
["Not in FRS","Not in YTD GL",2061,"Accounts Payable - PCard - Payments made by PCard","Liabilities","Accounts payable","Active"]
["Not in FRS","Not in YTD GL",2062,"CLEARING - TELUS LONG DISTANCE","Liabilities","Accounts payable","Closed"]
["Not in FRS","Not in YTD GL",2063,"Accounts Payable - Food Services - Meal Plans","Liabilities","Accounts payable","Closed"]
["Not in FRS","Not in YTD GL",2064,"CLEARING - PARKING CHARGES/SLED","Liabilities","Accounts payable","Closed"]
["Not in FRS","Not in YTD GL",2065,"Accounts Payable - Print Cards","Liabilities","Accounts payable","Closed"]
["Not in FRS","Not in YTD GL",2068,"CLEARING - CBV (COLLECTIONS)","Liabilities","Accounts payable","Closed"]
["Not in FRS","Not in YTD GL",2069,"Accounts Payable  - Food Services - Dinning Dollars","Liabilities","Accounts payable","Closed"]
["Not in FRS","Not in YTD GL",2072,"CLEARING - STUDENT WIRES","Liabilities","Accounts payable","Closed"]
["Not in FRS","Not in YTD GL",2073,"CLEARING - STUDENT CHEQUES & EFTS","Liabilities","Accounts payable","Closed"]
["Not in FRS","Not in YTD GL",2074,"CLEARING - TUITION FEES CLEARING","Liabilities","Accounts payable","Closed"]
["Not in FRS","Not in YTD GL",2075,"CLEARING - TUITION DISTRIBUTION","Liabilities","Accounts payable","Closed"]
["Not in FRS","Not in YTD GL",2076,"Accounts Payable - International Medical Fees","Liabilities","Accounts payable","Active"]
["Not in FRS","Not in YTD GL",2077,"Accounts Payable - Parking - Employee Payments","Liabilities","Accounts payable","Closed"]
["Not in FRS","Not in YTD GL",2078,"Accounts Payable - Athletics Activenet Refunds","Liabilities","Accounts payable","Closed"]
["Not in FRS","Not in YTD GL",2079,"Accounts Payable - Supplier Credits Outstanding","Liabilities","Accounts payable","Active"]
["Not in FRS","Not in YTD GL",2090,"Accounts Payable - VIU Foundation - Employee Donations","Liabilities","Accounts payable","Active"]
["Not in FRS","Not in YTD GL",2091,"Accounts Payable - Due to THS at VIU (Intercompany)","Liabilities","Accounts payable","Active"]
["Not in FRS","Not in YTD GL",2112,"Municipal Pension Payable","Liabilities","Accrued liabilities","Active"]
["Not in FRS","Not in YTD GL",2126,"EI Rebate Benefit - Payable","Liabilities","Accrued liabilities","Active"]
["Not in FRS","Not in YTD GL",2131,"United Way Payable","Liabilities","Accrued liabilities","Active"]
["Not in FRS","Not in YTD GL",2133,"Family Maintenance and Garnishments","Liabilities","Accrued liabilities","Active"]
["Not in FRS","Not in YTD GL",2141,"Receiver General - Non-Resident Tax Payable","Liabilities","Accrued liabilities","Active"]
["Not in FRS","Not in YTD GL",2160,"Accrued Employee Liabilities - ADMIN Overtime","Liabilities","Accrued liabilities","Active"]
["Not in FRS","Not in YTD GL",2162,"Accrued Employee Liabilities - ADMIN Frozen Sick Bank","Liabilities","Accrued liabilities","Active"]
["Not in FRS","Not in YTD GL",2163,"Accrued Employee Liabilities - ADMIN Professional Development","Liabilities","Accrued liabilities","Active"]
["Not in FRS","Not in YTD GL",2164,"Accrued Employee Liabilities - ADMIN Other","Liabilities","Accrued liabilities","Active"]
["Not in FRS","Not in YTD GL",2165,"Accrued Employee Liabilities - BCGEU Overtime","Liabilities","Accrued liabilities","Active"]
["Not in FRS","Not in YTD GL",2166,"Accrued Employee Liabilities - BCGEU Vacation","Liabilities","Accrued liabilities","Active"]
["Not in FRS","Not in YTD GL",2167,"Accrued Employee Liabilities - BCGEU Frozen Sick Bank","Liabilities","Accrued liabilities","Active"]
["Not in FRS","Not in YTD GL",2168,"Accrued Employee Liabilities - BCGEU Professional Development","Liabilities","Accrued liabilities","Active"]
["Not in FRS","Not in YTD GL",2169,"Accrued Employee Liabilities - BCGEU Other","Liabilities","Accrued liabilities","Active"]
["Not in FRS","Not in YTD GL",2170,"Accrued Employee Liabilities - CUPE Overtime","Liabilities","Accrued liabilities","Active"]
["Not in FRS","Not in YTD GL",2171,"Accrued Employee Liabilities - CUPE Vacation","Liabilities","Accrued liabilities","Active"]
["Not in FRS","Not in YTD GL",2172,"Accrued Employee Liabilities - CUPE Other","Liabilities","Accrued liabilities","Active"]
["Not in FRS","Not in YTD GL",2176,"Accrued Employee Liabilities - VIUFA Vacation","Liabilities","Accrued liabilities","Active"]
["Not in FRS","Not in YTD GL",2177,"Accrued Employee Liabilities - VIUFA Frozen Sick Bank","Liabilities","Accrued liabilities","Active"]
["Not in FRS","Not in YTD GL",2179,"Accrued Employee Liabilities - VIUFA Other","Liabilities","Accrued liabilities","Active"]
["Not in FRS","Not in YTD GL",2180,"Accrued Employee Liabilities - Non-Jurisdicational Overtime","Liabilities","Accrued liabilities","Active"]
["Not in FRS","Not in YTD GL",2181,"Accrued Employee Liabilities - Non-Jurisidicational Vacation","Liabilities","Accrued liabilities","Active"]
["Not in FRS","Not in YTD GL",2190,"Unearned Revenue - Deposits General","Liabilities","Accrued liabilities","Active"]
["Not in FRS","Not in YTD GL",2192,"Homestay Family Deposits ","Liabilities","Accrued liabilities","Active"]
["Not in FRS","Not in YTD GL",2193,"Unearned Revenue - Homestay Student Deposits","Liabilities","Accrued liabilities","Closed"]
["Not in FRS","Not in YTD GL",2194,"Unearned Revenue - Food Services Meal Plans","Liabilities","Accrued liabilities","Closed"]
["Not in FRS","Not in YTD GL",2195,"Unearned Revenue - Food Services Dinning Dollars","Liabilities","Accrued liabilities","Closed"]
["Not in FRS","Not in YTD GL",2196,"SLED Reclass Deposits","Liabilities","Accrued liabilities","Active"]
["Not in FRS","Not in YTD GL",2210,"Employee Future Benefits - ADMIN","Liabilities","Employee future benefits","Active"]
["Not in FRS","Not in YTD GL",2300,"Deferred Revenue - Other Govt -Grants and Contracts","Liabilities","Deferred revenue","Closed"]
["Not in FRS","Not in YTD GL",2301,"Deferred Contributions - BC Provincial Govt - AVED General Grants","Liabilities","Deferred revenue","Closed"]
["Not in FRS","Not in YTD GL",2302,"Deferred Contributions - BC Provincial Govt - Non AVED Other Ministries","Liabilities","Deferred revenue","Closed"]
["Not in FRS","Not in YTD GL",2303,"Deferred Contributions - BC Provincial Govt - AVED - BC Operating COA","Liabilities","Deferred revenue","Closed"]
["Not in FRS","Not in YTD GL",2304,"Deferred Contributions - BC Provincial Crown Corps, Agencies, Boards - ITA","Liabilities","Deferred revenue","Closed"]
["Not in FRS","Not in YTD GL",2305,"Deferred Contributions - BC Provincial Crown Corps, Agencies, Boards - Other","Liabilities","Deferred revenue","Closed"]
["Not in FRS","Not in YTD GL",2331,"Deferred Contributions - Federal Govt Department Contracts","Liabilities","Deferred revenue","Closed"]
["Not in FRS","Not in YTD GL",2340,"Deferred Revenue - Indigenous Organizations - Grants and Contracts","Liabilities","Deferred revenue","Closed"]
["Not in FRS","Not in YTD GL",2351,"Deferred Revenue - SLED Reclass Contra Account","Liabilities","Deferred revenue","Active"]
["Not in FRS","Not in YTD GL",2403,"Deferred Contributions - Province of BC - AVED - COA (Operating/Non Capital)","Liabilities","Deferred contributions","Closed"]
["Not in FRS","Not in YTD GL",2410,"Deferred Revenue - Corporations - Corporations","Liabilities","Deferred contributions","Closed"]
["Not in FRS","Not in YTD GL",2420,"Deferred Revenue - Individuals - Grants and Contracts","Liabilities","Deferred contributions","Closed"]
["Not in FRS","Not in YTD GL",2450,"Deferred Revenue - Tuition and Student Fees - SLED","Liabilities","Deferred contributions","Closed"]
["Not in FRS","Not in YTD GL",2451,"Deferred Revenue - Tuition and Student Fees - DOMESTIC","Liabilities","Deferred contributions","Closed"]
["Not in FRS","Not in YTD GL",2452,"Deferred Revenue - Tuition and Student Fees - INTERNATIONAL","Liabilities","Deferred contributions","Closed"]
["Not in FRS","Not in YTD GL",2501,"FA DCC Provincial - Computers and Software","Liabilities","Deferred capital contributions","Closed"]
["Not in FRS","Not in YTD GL",2502,"FA DCC Provincial - Furniture and Equipment","Liabilities","Deferred capital contributions","Closed"]
["Not in FRS","Not in YTD GL",2503,"FA DCC Provincial - Leasehold Improvements","Liabilities","Deferred capital contributions","Closed"]
["Not in FRS","Not in YTD GL",2504,"FA DCC Provincial - Library","Liabilities","Deferred capital contributions","Closed"]
["Not in FRS","Not in YTD GL",2505,"FA DCC Provincial - Site Improvements","Liabilities","Deferred capital contributions","Closed"]
["Not in FRS","Not in YTD GL",2506,"FA DCC Provincial - Vehicles","Liabilities","Deferred capital contributions","Closed"]
["Not in FRS","Not in YTD GL",2507,"FA DCC Provincial - TBD","Liabilities","Deferred capital contributions","Closed"]
["Not in FRS","Not in YTD GL",2508,"FA DCC Provincial - Land","Liabilities","Deferred capital contributions","Closed"]
["Not in FRS","Not in YTD GL",2509,"FA DCC Provincial - Work In Progress","Liabilities","Deferred capital contributions","Closed"]
["Not in FRS","Not in YTD GL",2511,"FA DCC Federal - Computers and Software","Liabilities","Deferred capital contributions","Closed"]
["Not in FRS","Not in YTD GL",2512,"FA DCC Federal - Furniture and Equipment","Liabilities","Deferred capital contributions","Closed"]
["Not in FRS","Not in YTD GL",2513,"FA DCC Federal - Leasehold Improvements","Liabilities","Deferred capital contributions","Closed"]
["Not in FRS","Not in YTD GL",2514,"FA DCC Federal - Library","Liabilities","Deferred capital contributions","Closed"]
["Not in FRS","Not in YTD GL",2515,"FA DCC Federal - Site Improvements","Liabilities","Deferred capital contributions","Closed"]
["Not in FRS","Not in YTD GL",2516,"FA DCC Federal - Vehicles","Liabilities","Deferred capital contributions","Closed"]
["Not in FRS","Not in YTD GL",2517,"FA DCC Federal - TBD","Liabilities","Deferred capital contributions","Closed"]
["Not in FRS","Not in YTD GL",2518,"FA DCC Federal - Land","Liabilities","Deferred capital contributions","Closed"]
["Not in FRS","Not in YTD GL",2519,"FA DCC Federal - Work In Progress","Liabilities","Deferred capital contributions","Closed"]
["Not in FRS","Not in YTD GL",2521,"FA DCC Other - Computers and Software","Liabilities","Deferred capital contributions","Closed"]
["Not in FRS","Not in YTD GL",2522,"FA DCC Other - Furniture and Equipment","Liabilities","Deferred capital contributions","Closed"]
["Not in FRS","Not in YTD GL",2523,"FA DCC Other - Leasehold Improvements","Liabilities","Deferred capital contributions","Closed"]
["Not in FRS","Not in YTD GL",2524,"FA DCC Other - Library","Liabilities","Deferred capital contributions","Closed"]
["Not in FRS","Not in YTD GL",2525,"FA DCC Other - Site Improvements","Liabilities","Deferred capital contributions","Closed"]
["Not in FRS","Not in YTD GL",2526,"FA DCC Other - Vehicles","Liabilities","Deferred capital contributions","Closed"]
["Not in FRS","Not in YTD GL",2527,"FA DCC Accum.Amort. Provincial - TBD","Liabilities","Deferred capital contributions","Closed"]
["Not in FRS","Not in YTD GL",2528,"FA DCC Other - Land","Liabilities","Deferred capital contributions","Closed"]
["Not in FRS","Not in YTD GL",2529,"FA DCC Other - Work In Progress","Liabilities","Deferred capital contributions","Closed"]
["Not in FRS","Not in YTD GL",2530,"FA DCC Accum.Amort. Provincial - Buildings","Liabilities","Deferred capital contributions","Closed"]
["Not in FRS","Not in YTD GL",2531,"FA DCC Accum.Amort. Provincial - Computers and Software","Liabilities","Deferred capital contributions","Closed"]
["Not in FRS","Not in YTD GL",2532,"FA DCC Accum.Amort. Provincial - Furniture and Equipment","Liabilities","Deferred capital contributions","Closed"]
["Not in FRS","Not in YTD GL",2533,"FA DCC Accum.Amort. Provincial - Leasehold Improvements","Liabilities","Deferred capital contributions","Closed"]
["Not in FRS","Not in YTD GL",2534,"FA DCC Accum.Amort. Provincial - Library","Liabilities","Deferred capital contributions","Closed"]
["Not in FRS","Not in YTD GL",2535,"FA DCC Accum.Amort. Provincial - Site Improvements","Liabilities","Deferred capital contributions","Closed"]
["Not in FRS","Not in YTD GL",2536,"FA DCC Accum.Amort. Provincial - Vehicles","Liabilities","Deferred capital contributions","Closed"]
["Not in FRS","Not in YTD GL",2537,"FA DCC Accum.Amort. Federal - TBD","Liabilities","Deferred capital contributions","Closed"]
["Not in FRS","Not in YTD GL",2540,"FA DCC Accum.Amort. Federal - Buildings","Liabilities","Deferred capital contributions","Closed"]
["Not in FRS","Not in YTD GL",2541,"FA DCC Accum.Amort. Federal - Computers and Software","Liabilities","Deferred capital contributions","Closed"]
["Not in FRS","Not in YTD GL",2542,"FA DCC Accum.Amort. Federal - Furniture and Equipment","Liabilities","Deferred capital contributions","Closed"]
["Not in FRS","Not in YTD GL",2543,"FA DCC Accum.Amort. Federal - Leasehold Improvements","Liabilities","Deferred capital contributions","Closed"]
["Not in FRS","Not in YTD GL",2544,"FA DCC Accum.Amort. Federal - Library","Liabilities","Deferred capital contributions","Closed"]
["Not in FRS","Not in YTD GL",2545,"FA DCC Accum.Amort. Federal - Site Improvements","Liabilities","Deferred capital contributions","Closed"]
["Not in FRS","Not in YTD GL",2546,"FA DCC Accum.Amort. Federal - Vehicles","Liabilities","Deferred capital contributions","Closed"]
["Not in FRS","Not in YTD GL",2550,"FA DCC Accum.Amort. Other - Buildings","Liabilities","Deferred capital contributions","Closed"]
["Not in FRS","Not in YTD GL",2551,"FA DCC Accum.Amort. Other - Computers and Software","Liabilities","Deferred capital contributions","Closed"]
["Not in FRS","Not in YTD GL",2552,"FA DCC Accum.Amort. Other - Furniture and Equipment","Liabilities","Deferred capital contributions","Closed"]
["Not in FRS","Not in YTD GL",2553,"FA DCC Accum.Amort. Other - Leasehold Improvements","Liabilities","Deferred capital contributions","Closed"]
["Not in FRS","Not in YTD GL",2554,"FA DCC Accum.Amort. Other - Library","Liabilities","Deferred capital contributions","Closed"]
["Not in FRS","Not in YTD GL",2555,"FA DCC Accum.Amort. Other - Site Improvements","Liabilities","Deferred capital contributions","Closed"]
["Not in FRS","Not in YTD GL",2556,"FA DCC Accum.Amort. Other - Vehicles","Liabilities","Deferred capital contributions","Closed"]
["Not in FRS","Not in YTD GL",2599,"FA Decrease SUSPENSE Account (Fixed Asset Management)","Liabilities","Deferred capital contributions","Closed"]
["Not in FRS","Not in YTD GL",3000,"Internally Restricted Surplus - Department Operations","Accumulated surplus","Equity/Accumulated surplus","Closed"]
["Not in FRS","Not in YTD GL",3010,"Internally Restricted Surplus - International Downturn Reserve","Accumulated surplus","Equity/Accumulated surplus","Closed"]
["Not in FRS","Not in YTD GL",3070,"Unrestricted Statement of Remeasurement ","Accumulated surplus","Equity/Accumulated surplus","Active"]
["Not in FRS","Not in YTD GL",3080,"Internally Restricted Net Assets  - Capital Reserve","Accumulated surplus","Equity/Accumulated surplus","Closed"]
["Not in FRS","Not in YTD GL",3999,"Op. Bal. Clearing - SLED","Accumulated surplus","Equity/Accumulated surplus","Active"]
["Not in FRS","Not in YTD GL",4030,"Province of BC - COA Funds (Operating/Non Capital)","Revenue","Province of British Columbia grants","Closed"]
["Not in FRS","Not in YTD GL",4200,"Other Govt Grants and Contracts - Municipalities, SD's, Post Secondary Institutions","Revenue","Other grants and contracts","Active"]
["Not in FRS","Not in YTD GL",4201,"Grants and Contracts - Indivduals","Revenue","Other grants and contracts","Closed"]
["Not in FRS","Not in YTD GL",4202,"Grants and Contracts - Not For Profits","Revenue","Other grants and contracts","Closed"]
["Not in FRS","Not in YTD GL",4203,"Grants and Contracts - Indigenous Organizations","Revenue","Other grants and contracts","Closed"]
["Not in FRS","Not in YTD GL",4220,"Other Govt Grants and Contracts - Municialities, SD's, Post Secondary Institutions","Revenue","Other grants and contracts","Closed"]
["Not in FRS","Not in YTD GL",4260,"Grants and Contracts - Individuals","Revenue","Other grants and contracts","Active"]
["Not in FRS","Not in YTD GL",4280,"Grants and Contracts - Indigenous Organizations","Revenue","Other grants and contracts","Closed"]
["Not in FRS","Not in YTD GL",4299,"Grant Transfer","Revenue","Other grants and contracts","Closed"]
["Not in FRS","Not in YTD GL",4305,"Domestic Distributed - TBD","Revenue","Tuition and student fees","Closed"]
["Not in FRS","Not in YTD GL",4331,"International Distributed - ESL","Revenue","Tuition and student fees","Active"]
["Not in FRS","Not in YTD GL",4332,"International Distributed - Vocational (Trade)","Revenue","Tuition and student fees","Active"]
["Not in FRS","Not in YTD GL",4333,"International Distributed - CE General Interest","Revenue","Tuition and student fees","Active"]
["Not in FRS","Not in YTD GL",4334,"International Distributed - ABE","Revenue","Tuition and student fees","Active"]
["Not in FRS","Not in YTD GL",4335,"International Distributed - TBD","Revenue","Tuition and student fees","Closed"]
["Not in FRS","Not in YTD GL",4351,"Other Student Fees Distributed - International Lab Fees","Revenue","Tuition and student fees","Active"]
["Not in FRS","Not in YTD GL",4353,"Other Student Fees Distributed - International Student Activity Fee","Revenue","Tuition and student fees","Active"]
["Not in FRS","Not in YTD GL",4355,"Other Student Fees Distributed - International Student Services Fee","Revenue","Tuition and student fees","Active"]
["Not in FRS","Not in YTD GL",4356,"Other Student Fees Distributed - TBD","Revenue","Tuition and student fees","Closed"]
["Not in FRS","Not in YTD GL",4357,"Other Student Fees Distributed - TBD","Revenue","Tuition and student fees","Closed"]
["Not in FRS","Not in YTD GL",4361,"Other Student Fees - Domestic Application Fees","Revenue","Tuition and student fees","Active"]
["Not in FRS","Not in YTD GL",4362,"Other Student Fees - International Application Fees","Revenue","Tuition and student fees","Active"]
["Not in FRS","Not in YTD GL",4368,"Other Student Fees - Late Fees","Revenue","Tuition and student fees","Active"]
["Not in FRS","Not in YTD GL",4369,"Other Student Fees - Replacement Cheque","Revenue","Tuition and student fees","Active"]
["Not in FRS","Not in YTD GL",4370,"Other Student Fees - Homestay Fees","Revenue","Tuition and student fees","Active"]
["Not in FRS","Not in YTD GL",4371,"Other Student Fees - Transcript Fees","Revenue","Tuition and student fees","Active"]
["Not in FRS","Not in YTD GL",4410,"Conferences and Seminars","Revenue","Sales of goods and services","Active"]
["Not in FRS","Not in YTD GL",4440,"TBD","Revenue","Sales of goods and services","Closed"]
["Not in FRS","Not in YTD GL",4500,"Rental Income","Revenue","Rental income","Active"]
["Not in FRS","Not in YTD GL",4702,"Bequests","Revenue","Gifts, grants and bequests","Active"]
["Not in FRS","Not in YTD GL",4802,"Foreign Exchange Gain (Loss)","Revenue","Gain (Loss) on investments","Active"]
["Not in FRS","Not in YTD GL",4901,"Other Revenue - Sales Discounts","Revenue","Other revenue","Active"]
["Not in FRS","Not in YTD GL",5001,"ADMIN - Overtime / Other","Expenses","Salaries and benefits","Active"]
["Not in FRS","Not in YTD GL",5002,"ADMIN - Stipend","Expenses","Salaries and benefits","Active"]
["Not in FRS","Not in YTD GL",5003,"ADMIN - Allowance","Expenses","Salaries and benefits","Active"]
["Not in FRS","Not in YTD GL",5010,"ADMIN - Vacation Accrual","Expenses","Salaries and benefits","Active"]
["Not in FRS","Not in YTD GL",5011,"ADMIN - Vacation paid in lieu","Expenses","Salaries and benefits","Active"]
["Not in FRS","Not in YTD GL",5020,"ADMIN - Professional Development","Expenses","Salaries and benefits","Active"]
["Not in FRS","Not in YTD GL",5103,"BCGEU - Allowance","Expenses","Salaries and benefits","Active"]
["Not in FRS","Not in YTD GL",5110,"BCGEU - Vacation Accrual","Expenses","Salaries and benefits","Active"]
["Not in FRS","Not in YTD GL",5111,"BCGEU - Vacation paid in lieu","Expenses","Salaries and benefits","Active"]
["Not in FRS","Not in YTD GL",5202,"CUPE - Stipend","Expenses","Salaries and benefits","Active"]
["Not in FRS","Not in YTD GL",5210,"CUPE - Vacation Accrual","Expenses","Salaries and benefits","Active"]
["Not in FRS","Not in YTD GL",5211,"CUPE - Vacation paid in lieu","Expenses","Salaries and benefits","Active"]
["Not in FRS","Not in YTD GL",5220,"CUPE - Contractual Professional Development","Expenses","Salaries and benefits","Active"]
["Not in FRS","Not in YTD GL",5303,"VIUFA - Allowance","Expenses","Salaries and benefits","Active"]
["Not in FRS","Not in YTD GL",5310,"VIUFA - Vacation Accrual","Expenses","Salaries and benefits","Active"]
["Not in FRS","Not in YTD GL",5311,"VIUFA - Vacation paid in lieu","Expenses","Salaries and benefits","Active"]
["Not in FRS","Not in YTD GL",5401,"Non-Jurisdictional - Overtime / Other","Expenses","Salaries and benefits","Active"]
["Not in FRS","Not in YTD GL",5402,"Non-Jurisdictional - Stipend","Expenses","Salaries and benefits","Active"]
["Not in FRS","Not in YTD GL",5403,"Non-Jurisdictional - Allowance","Expenses","Salaries and benefits","Active"]
["Not in FRS","Not in YTD GL",5410,"Non-Jurisdictional - Vacation Accrual","Expenses","Salaries and benefits","Active"]
["Not in FRS","Not in YTD GL",5411,"Non-Jurisdictional - Vacation paid in lieu","Expenses","Salaries and benefits","Active"]
["Not in FRS","Not in YTD GL",5420,"Non-Jurisdictional - Contractual Professional Development","Expenses","Salaries and benefits","Active"]
["Not in FRS","Not in YTD GL",5430,"Non-Jurisdictional - Fee for Service (AP Use only)","Expenses","Salaries and benefits","Closed"]
["Not in FRS","Not in YTD GL",5431,"Non-Jurisdictional - Honoraria (AP Use only)","Expenses","Salaries and benefits","Closed"]
["Not in FRS","Not in YTD GL",5800,"Employer Costs - Receiver General","Expenses","Salaries and benefits","Active"]
["Not in FRS","Not in YTD GL",5801,"Employer Costs - College Pension Plan","Expenses","Salaries and benefits","Active"]
["Not in FRS","Not in YTD GL",5802,"Employer Costs - Municipal Pension Plan","Expenses","Salaries and benefits","Active"]
["Not in FRS","Not in YTD GL",5803,"Employer Costs - Employer Health Tax (MSP)","Expenses","Salaries and benefits","Active"]
["Not in FRS","Not in YTD GL",5804,"Employer Costs - WorkSafeBC","Expenses","Salaries and benefits","Active"]
["Not in FRS","Not in YTD GL",5810,"Employer Costs - Misc Employee Expenses","Expenses","Salaries and benefits","Closed"]
["Not in FRS","Not in YTD GL",5820,"Benefit Premiums - Extended Health","Expenses","Salaries and benefits","Active"]
["Not in FRS","Not in YTD GL",5821,"Benefit Premiums - Dental","Expenses","Salaries and benefits","Active"]
["Not in FRS","Not in YTD GL",5822,"Benefit Premiums - Accidental death and dismemberment","Expenses","Salaries and benefits","Active"]
["Not in FRS","Not in YTD GL",5823,"Benefit Premiums - Group Life","Expenses","Salaries and benefits","Active"]
["Not in FRS","Not in YTD GL",5824,"Benefit Premiums - Short Term Disability","Expenses","Salaries and benefits","Active"]
["Not in FRS","Not in YTD GL",5825,"Benefit Premiums - Long Term Disability","Expenses","Salaries and benefits","Active"]
["Not in FRS","Not in YTD GL",5826,"EI Rebate Benefit Expense","Expenses","Salaries and benefits","Active"]
["Not in FRS","Not in YTD GL",5827,"Employee Assistance Program - Employee portion","Expenses","Salaries and benefits","Active"]
["Not in FRS","Not in YTD GL",5849,"TEMP ACCOUNT OPENING BAL. - Consolidated Benefit Costs","Expenses","Salaries and benefits","Closed"]
["Not in FRS","Not in YTD GL",5850,"VIU Paid Staff Courses","Expenses","Salaries and benefits","Active"]
["Not in FRS","Not in YTD GL",6000,"Services - Budget","Expenses","Fees and purchased services","Active"]
["Not in FRS","Not in YTD GL",6001,"Services - Service Fee from CBV - Budget","Expenses","Fees and purchased services","Active"]
["Not in FRS","Not in YTD GL",6002,"Service Fees - Banking","Expenses","Fees and purchased services","Closed"]
["Not in FRS","Not in YTD GL",6003,"Service Fees - Interest","Expenses","Fees and purchased services","Closed"]
["Not in FRS","Not in YTD GL",6004,"Fees","Expenses","Fees and purchased services","Closed"]
["Not in FRS","Not in YTD GL",6005,"Fee for Service - Individual / Sole Proprietor - Budget","Expenses","Fees and purchased services","Active"]
["Not in FRS","Not in YTD GL",6006,"Non-Employee Honoraria - Budget","Expenses","Fees and purchased services","Active"]
["Not in FRS","Not in YTD GL",6008,"Service Fees - Credit Card","Expenses","Fees and purchased services","Closed"]
["Not in FRS","Not in YTD GL",6010,"Advertising & Promotion - Budget","Expenses","Fees and purchased services","Active"]
["Not in FRS","Not in YTD GL",6015,"Hospitality - Budget","Expenses","Fees and purchased services","Active"]
["Not in FRS","Not in YTD GL",6020,"Fees and Memberships - Institutional - Budget","Expenses","Fees and purchased services","Active"]
["Not in FRS","Not in YTD GL",6025,"Fees and Memberships - Employees - Budget","Expenses","Fees and purchased services","Active"]
["Not in FRS","Not in YTD GL",6030,"Professional and Consulting Fees - Budget","Expenses","Fees and purchased services","Active"]
["Not in FRS","Not in YTD GL",6035,"Bank Charges, Interest, and Credit Card Fees - Budget","Expenses","Fees and purchased services","Active"]
["Not in FRS","Not in YTD GL",6040,"Payments to Service Partners - Budget","Expenses","Fees and purchased services","Active"]
["Not in FRS","Not in YTD GL",6045,"Software - Budget","Expenses","Fees and purchased services","Active"]
["Not in FRS","Not in YTD GL",6050,"Foreign Exchange Gain / Loss - Budget","Expenses","Fees and purchased services","Active"]
["Not in FRS","Not in YTD GL",6100,"Travel - Employee - Budget","Expenses","Travel and training","Active"]
["Not in FRS","Not in YTD GL",6101,"Staff Training","Expenses","Travel and training","Closed"]
["Not in FRS","Not in YTD GL",6102,"Articulation","Expenses","Travel and training","Closed"]
["Not in FRS","Not in YTD GL",6103,"Non-Employee Travel","Expenses","Travel and training","Closed"]
["Not in FRS","Not in YTD GL",6105,"Travel - Non Employee - Budget","Expenses","Travel and training","Active"]
["Not in FRS","Not in YTD GL",6110,"Training - Employee - Budget","Expenses","Travel and training","Active"]
["Not in FRS","Not in YTD GL",6111,"Training - VIU Courses Paid for Staff - SLED - Budget","Expenses","Travel and training","Active"]
["Not in FRS","Not in YTD GL",6115,"Training- Institutional - Budget","Expenses","Travel and training","Active"]
["Not in FRS","Not in YTD GL",6200,"Tuition Bursary/Scholarships - Budget","Expenses","Scholarships and bursaries","Active"]
["Not in FRS","Not in YTD GL",6300,"Repairs and Maintenance - Furniture  & Equipment - Budget","Expenses","Equipment rental and maintenance","Active"]
["Not in FRS","Not in YTD GL",6301,"R&M - Vehicles","Expenses","Equipment rental and maintenance","Closed"]
["Not in FRS","Not in YTD GL",6302,"R&M - Buildings","Expenses","Equipment rental and maintenance","Closed"]
["Not in FRS","Not in YTD GL",6303,"Safety Equipment","Expenses","Equipment rental and maintenance","Closed"]
["Not in FRS","Not in YTD GL",6305,"Repairs and Maintenance - Vehicles - Budget","Expenses","Equipment rental and maintenance","Active"]
["Not in FRS","Not in YTD GL",6310,"Repairs and Maintenance - Facilities - Budget","Expenses","Equipment rental and maintenance","Active"]
["Not in FRS","Not in YTD GL",6320,"Vehicle Fuel - Budget","Expenses","Equipment rental and maintenance","Active"]
["Not in FRS","Not in YTD GL",6325,"Rental and Lease - Budget","Expenses","Equipment rental and maintenance","Active"]
["Not in FRS","Not in YTD GL",6400,"Utilities - Budget","Expenses","Utilities, insurance and taxes","Active"]
["Not in FRS","Not in YTD GL",6401,"Property Tax","Expenses","Utilities, insurance and taxes","Closed"]
["Not in FRS","Not in YTD GL",6402,"Phone","Expenses","Utilities, insurance and taxes","Closed"]
["Not in FRS","Not in YTD GL",6403,"Insurance Premiums","Expenses","Utilities, insurance and taxes","Closed"]
["Not in FRS","Not in YTD GL",6404,"Carbon Offset","Expenses","Utilities, insurance and taxes","Closed"]
["Not in FRS","Not in YTD GL",6405,"Phone - Budget","Expenses","Utilities, insurance and taxes","Active"]
["Not in FRS","Not in YTD GL",6410,"Insurance - Budget","Expenses","Utilities, insurance and taxes","Active"]
["Not in FRS","Not in YTD GL",6500,"Supplies - Budget","Expenses","Materials and supplies","Active"]
["Not in FRS","Not in YTD GL",6501,"Paper Supplies - Cafeteria","Expenses","Materials and supplies","Closed"]
["Not in FRS","Not in YTD GL",6502,"Hospitality","Expenses","Materials and supplies","Closed"]
["Not in FRS","Not in YTD GL",6503,"First Aid","Expenses","Materials and supplies","Closed"]
["Not in FRS","Not in YTD GL",6504,"Postage and Courier","Expenses","Materials and supplies","Closed"]
["Not in FRS","Not in YTD GL",6505,"Office Supplies and Stationery - Budget","Expenses","Materials and supplies","Active"]
["Not in FRS","Not in YTD GL",6506,"Major Supplies - Computers","Expenses","Materials and supplies","Closed"]
["Not in FRS","Not in YTD GL",6507,"Major Supplies - Equipment","Expenses","Materials and supplies","Closed"]
["Not in FRS","Not in YTD GL",6508,"Inter-Library Loan","Expenses","Materials and supplies","Closed"]
["Not in FRS","Not in YTD GL",6509,"Special Event Expenditures","Expenses","Materials and supplies","Closed"]
["Not in FRS","Not in YTD GL",6510,"Software - Budget","Expenses","Materials and supplies","Closed"]
["Not in FRS","Not in YTD GL",6511,"Instruction - Program Related Consumables","Expenses","Materials and supplies","Closed"]
["Not in FRS","Not in YTD GL",6512,"Instruction - Book purchases (External)","Expenses","Materials and supplies","Closed"]
["Not in FRS","Not in YTD GL",6513,"Printing and Duplicating (External)","Expenses","Materials and supplies","Closed"]
["Not in FRS","Not in YTD GL",6514,"Gifts in Kind - Expense - to be eliminated?","Expenses","Materials and supplies","Closed"]
["Not in FRS","Not in YTD GL",6515,"Printing and Duplicating - Budget","Expenses","Materials and supplies","Active"]
["Not in FRS","Not in YTD GL",6520,"Postage, Courier, and Freight- Budget","Expenses","Materials and supplies","Active"]
["Not in FRS","Not in YTD GL",6525,"Miscellaneous Employee Expenses - Budget","Expenses","Materials and supplies","Active"]
["Not in FRS","Not in YTD GL",6530,"Gifts in Kind - Expense - Budget","Expenses","Materials and supplies","Active"]
["Not in FRS","Not in YTD GL",6600,"Cost of Goods Sold - Budget","Expenses","Cost of goods sold","Active"]
["Not in FRS","Not in YTD GL",6601,"Culinary Foods purchases","Expenses","Cost of goods sold","Closed"]
["Not in FRS","Not in YTD GL",6602,"Hospitality Food","Expenses","Cost of goods sold","Closed"]
["Not in FRS","Not in YTD GL",6603,"Food Services Food","Expenses","Cost of goods sold","Closed"]
["Not in FRS","Not in YTD GL",6604,"Liquor purchases","Expenses","Cost of goods sold","Closed"]
["Not in FRS","Not in YTD GL",6605,"Freight and Brokerage Fees - Budget","Expenses","Cost of goods sold","Active"]
["Not in FRS","Not in YTD GL",6606,"Freight In","Expenses","Cost of goods sold","Closed"]
["Not in FRS","Not in YTD GL",6607,"Freight Out","Expenses","Cost of goods sold","Closed"]
["Not in FRS","Not in YTD GL",6608,"Brokerage Fees","Expenses","Cost of goods sold","Closed"]
["Not in FRS","Not in YTD GL",6609,"Inventory adjustment","Expenses","Cost of goods sold","Closed"]
["Not in FRS","Not in YTD GL",6610,"Bad Debt Expense - Budget","Expenses","Cost of goods sold","Closed"]
["Not in FRS","Not in YTD GL",6700,"Bad Debt Expense","Expenses","Cost of goods sold","Closed"]
["Not in FRS","Not in YTD GL",7000,"Accretion Revenue on Deferred Capital Contributions - Provincial","Revenue","Revenue recognized from deferred capital contributions","Active"]
["Not in FRS","Not in YTD GL",7001,"Accretion Revenue on Deferred Capital Contributions - Federal","Revenue","Revenue recognized from deferred capital contributions","Active"]
["Not in FRS","Not in YTD GL",7002,"Accretion Revenue on Deferred Capital Contributions - Other","Revenue","Revenue recognized from deferred capital contributions","Active"]
["Not in FRS","Not in YTD GL",7003,"FA DCC Provincial Revenue - Leasehold Improvements","Revenue","Revenue recognized from deferred capital contributions","Closed"]
["Not in FRS","Not in YTD GL",7004,"FA DCC Provincial Revenue - Library","Revenue","Revenue recognized from deferred capital contributions","Closed"]
["Not in FRS","Not in YTD GL",7005,"FA DCC Provincial Revenue - Site Improvements","Revenue","Revenue recognized from deferred capital contributions","Closed"]
["Not in FRS","Not in YTD GL",7006,"FA DCC Provincial Revenue - Vehicles","Revenue","Revenue recognized from deferred capital contributions","Closed"]
["Not in FRS","Not in YTD GL",7007,"FA DCC Provincial Revenue - TBD","Revenue","Revenue recognized from deferred capital contributions","Closed"]
["Not in FRS","Not in YTD GL",7100,"Capital Contributions Suspense - Provincial","Revenue","Revenue recognized from deferred capital contributions","Active"]
["Not in FRS","Not in YTD GL",7101,"Capital Contributions Suspense - Federal","Revenue","Revenue recognized from deferred capital contributions","Active"]
["Not in FRS","Not in YTD GL",7102,"Capital Contributions Suspense - Other","Revenue","Revenue recognized from deferred capital contributions","Active"]
["Not in FRS","Not in YTD GL",7103,"FA DCC Federal Revenue - Leasehold Improvements","Revenue","Revenue recognized from deferred capital contributions","Closed"]
["Not in FRS","Not in YTD GL",7104,"FA DCC Federal Revenue - Library","Revenue","Revenue recognized from deferred capital contributions","Closed"]
["Not in FRS","Not in YTD GL",7105,"FA DCC Federal Revenue - Site Improvements","Revenue","Revenue recognized from deferred capital contributions","Closed"]
["Not in FRS","Not in YTD GL",7106,"FA DCC Federal Revenue - Vehicles","Revenue","Revenue recognized from deferred capital contributions","Closed"]
["Not in FRS","Not in YTD GL",7107,"FA DCC Federal Revenue - TBD","Revenue","Revenue recognized from deferred capital contributions","Closed"]
["Not in FRS","Not in YTD GL",7200,"FA DCC Other Revenue - Buildings","Revenue","Revenue recognized from deferred capital contributions","Closed"]
["Not in FRS","Not in YTD GL",7201,"FA DCC Other Revenue - Computers and Software","Revenue","Revenue recognized from deferred capital contributions","Closed"]
["Not in FRS","Not in YTD GL",7202,"FA DCC Other Revenue - Furniture and Equipment","Revenue","Revenue recognized from deferred capital contributions","Closed"]
["Not in FRS","Not in YTD GL",7203,"FA DCC Other Revenue - Leasehold Improvements","Revenue","Revenue recognized from deferred capital contributions","Closed"]
["Not in FRS","Not in YTD GL",7204,"FA DCC Other Revenue - Library","Revenue","Revenue recognized from deferred capital contributions","Closed"]
["Not in FRS","Not in YTD GL",7205,"FA DCC Other Revenue - Site Improvements","Revenue","Revenue recognized from deferred capital contributions","Closed"]
["Not in FRS","Not in YTD GL",7206,"FA DCC Other Revenue - Vehicles","Revenue","Revenue recognized from deferred capital contributions","Closed"]
["Not in FRS","Not in YTD GL",7400,"Capital Asset Adjustments - Gain (Loss) on Asset Disposal","Revenue","Gain (Loss) on sale of tangible capital assets","Active"]
["Not in FRS","Not in YTD GL",7450,"Capital Gain (Loss) - Other","Revenue","Gain (Loss) on sale of tangible capital assets","Closed"]
["Not in FRS","Not in YTD GL",7499,"Capital revenue - Suspense","Revenue","Other revenue - Capital","Closed"]
["Not in FRS","Not in YTD GL",7500,"Amortization Expense - New Building Construction","Expenses","Amortization of tangible capital assets","Active"]
["Not in FRS","Not in YTD GL",7501,"Amortization Expense - Building Retrofit","Expenses","Amortization of tangible capital assets","Active"]
["Not in FRS","Not in YTD GL",7502,"Amortization Expense - Computer Equipment","Expenses","Amortization of tangible capital assets","Active"]
["Not in FRS","Not in YTD GL",7503,"Amortization Expense - Computer Software","Expenses","Amortization of tangible capital assets","Active"]
["Not in FRS","Not in YTD GL",7504,"Amortization  Expense - Furniture","Expenses","Amortization of tangible capital assets","Active"]
["Not in FRS","Not in YTD GL",7505,"Amortization Expense - Equipment","Expenses","Amortization of tangible capital assets","Active"]
["Not in FRS","Not in YTD GL",7506,"Amortization Expense - Leasehold Improvements","Expenses","Amortization of tangible capital assets","Active"]
["Not in FRS","Not in YTD GL",7507,"Amortization Expense - Library Books","Expenses","Amortization of tangible capital assets","Active"]
["Not in FRS","Not in YTD GL",7508,"Amortization Expense - Site Improvements (Land)","Expenses","Amortization of tangible capital assets","Active"]
["Not in FRS","Not in YTD GL",7509,"Amortization Expense - Vehicles","Expenses","Amortization of tangible capital assets","Active"]
["Not in FRS","Not in YTD GL",7550,"Capital Asset Adjustments - Loss on Asset Disposal","Expenses","Capital expenses - Other","Closed"]
["Not in FRS","Not in YTD GL",7555,"Capital Asset Adjustments - Capital Asset Write-Down","Expenses","Capital expenses - Other","Active"]
["Not in FRS","Not in YTD GL",7600,"FA General Expenses","Expenses","Capital expenses - Other","Closed"]
["Not in FRS","Not in YTD GL",7700,"Capital Purchases - Buildings","Capital additions - to be capitalized","Capital additions - to be capitalized","Active"]
["Not in FRS","Not in YTD GL",7701,"Capital Purchases - Building Retrofit","Capital additions - to be capitalized","Capital additions - to be capitalized","Active"]
["Not in FRS","Not in YTD GL",7702,"Capital Purchases - Computer Equipment","Capital additions - to be capitalized","Capital additions - to be capitalized","Active"]
["Not in FRS","Not in YTD GL",7703,"Capital Purchases - Network and Server Equipment","Capital additions - to be capitalized","Capital additions - to be capitalized","Active"]
["Not in FRS","Not in YTD GL",7704,"Capital Purchases - Computer Software","Capital additions - to be capitalized","Capital additions - to be capitalized","Active"]
["Not in FRS","Not in YTD GL",7705,"Capital Purchases - Enterprise Systems","Capital additions - to be capitalized","Capital additions - to be capitalized","Active"]
["Not in FRS","Not in YTD GL",7706,"Capital Purchases - Furniture","Capital additions - to be capitalized","Capital additions - to be capitalized","Active"]
["Not in FRS","Not in YTD GL",7707,"Capital Purchases - Equipment","Capital additions - to be capitalized","Capital additions - to be capitalized","Active"]
["Not in FRS","Not in YTD GL",7708,"Capital Purchases - Leasehold Improvements","Capital additions - to be capitalized","Capital additions - to be capitalized","Active"]
["Not in FRS","Not in YTD GL",7709,"Capital Purchases - Library Books","Capital additions - to be capitalized","Capital additions - to be capitalized","Active"]
["Not in FRS","Not in YTD GL",7710,"Capital Purchases - Site Improvements (Land)","Capital additions - to be capitalized","Capital additions - to be capitalized","Active"]
["Not in FRS","Not in YTD GL",7711,"Capital Purchases - Vehicles","Capital additions - to be capitalized","Capital additions - to be capitalized","Active"]
["Not in FRS","Not in YTD GL",7712,"Capital Purchases - Land","Capital additions - to be capitalized","Capital additions - to be capitalized","Active"]
["Not in FRS","Not in YTD GL",7800,"Capital Transfers","Transfers to Capital Assets","Transfers to Capital Assets","Active"]
["Not in FRS","Not in YTD GL",7900,"TBD","Transfers to Capital Assets","Transfers to Capital Assets","Closed"]
["Not in FRS","Not in YTD GL",7901,"TBD","Transfers to Capital Assets","Transfers to Capital Assets","Closed"]
["Not in FRS","Not in YTD GL",7950,"TBD","Transfers to Capital Assets","Transfers to Capital Assets","Closed"]
["Not in FRS","Not in YTD GL",7999,"TBD","Transfers to Capital Assets","Transfers to Capital Assets","Closed"]
["Not in FRS","Not in YTD GL",8000,"Internal Consumption - Revenue","Internal Revenues","Internal ordering - revenue","Active"]
["Not in FRS","Not in YTD GL",8001,"Internal Consumption - Merchandise Sales","Internal Revenues","Internal ordering - revenue","Active"]
["Not in FRS","Not in YTD GL",8002,"Internal Consumption - Admissions Sales","Internal Revenues","Internal ordering - revenue","Active"]
["Not in FRS","Not in YTD GL",8003,"Internal Consumption - Facilities (recoveries)","Internal Revenues","Internal ordering - revenue","Active"]
["Not in FRS","Not in YTD GL",8005,"Internal Consumption - Campus Store Sales","Internal Revenues","Internal ordering - revenue","Active"]
["Not in FRS","Not in YTD GL",8006,"Internal Consumption - Campus Store Book Sales","Internal Revenues","Internal ordering - revenue","Active"]
["Not in FRS","Not in YTD GL",8007,"Internal Consumption - Printing and Duplicating Sales","Internal Revenues","Internal ordering - revenue","Active"]
["Not in FRS","Not in YTD GL",8008,"Internal Consumption - Housing Revenue","Internal Revenues","Internal ordering - revenue","Active"]
["Not in FRS","Not in YTD GL",8009,"Internal Consumption - Gifts in Kind Recoveries","Internal Revenues","Internal ordering - revenue","Active"]
["Not in FRS","Not in YTD GL",8010,"Internal Consumption - Food Services Sales","Internal Revenues","Internal ordering - revenue","Active"]
["Not in FRS","Not in YTD GL",8011,"Internal Consumption - Overhead - Institutional Revenue","Internal Revenues","Internal ordering - revenue","Closed"]
["Not in FRS","Not in YTD GL",8012,"Internal Consumption - Overhead - Research Revenue","Internal Revenues","Internal ordering - revenue","Closed"]
["Not in FRS","Not in YTD GL",8013,"Internal Consumption - Overhead - PVPA Premium Revenue","Internal Revenues","Internal ordering - revenue","Closed"]
["Not in FRS","Not in YTD GL",8200,"Internal Consumption - Expenditures","Internal Expenses","Internal ordering - expenditures","Active"]
["Not in FRS","Not in YTD GL",8201,"Internal Consumption - Merchandise Costs","Internal Expenses","Internal ordering - expenditures","Active"]
["Not in FRS","Not in YTD GL",8202,"Internal Consumption - Admissions Costs","Internal Expenses","Internal ordering - expenditures","Active"]
["Not in FRS","Not in YTD GL",8203,"Internal Consumption - Facilities Costs","Internal Expenses","Internal ordering - expenditures","Active"]
["Not in FRS","Not in YTD GL",8206,"Internal Consumption - Campus Store Book Costs","Internal Expenses","Internal ordering - expenditures","Active"]
["Not in FRS","Not in YTD GL",8207,"Internal Consumption - Printing and Duplicating Costs","Internal Expenses","Internal ordering - expenditures","Active"]
["Not in FRS","Not in YTD GL",8208,"Internal Consumption - Housing Costs","Internal Expenses","Internal ordering - expenditures","Active"]
["Not in FRS","Not in YTD GL",8209,"Internal Consumption - Gifts in Kind Costs","Internal Expenses","Internal ordering - expenditures","Active"]
["Not in FRS","Not in YTD GL",8210,"Internal Consumption - Food Services Costs","Internal Expenses","Internal ordering - expenditures","Active"]
["Not in FRS","Not in YTD GL",8250,"Internal Consumption - Expenditures","Internal Expenses","Internal ordering - expenditures","Closed"]
["Not in FRS","Not in YTD GL",8251,"Internal Consumption - Merchandise Costs","Internal Expenses","Internal ordering - expenditures","Closed"]
["Not in FRS","Not in YTD GL",8252,"Internal Consumption - Admissions Costs","Internal Expenses","Internal ordering - expenditures","Closed"]
["Not in FRS","Not in YTD GL",8253,"Internal Consumption - Facilities Costs","Internal Expenses","Internal ordering - expenditures","Closed"]
["Not in FRS","Not in YTD GL",8254,"Internal Consumption - Catering Costs","Internal Expenses","Internal ordering - expenditures","Closed"]
["Not in FRS","Not in YTD GL",8255,"Internal Consumption - Campus Store Costs","Internal Expenses","Internal ordering - expenditures","Closed"]
["Not in FRS","Not in YTD GL",8256,"Internal Consumption - Campus Store Book Costs","Internal Expenses","Internal ordering - expenditures","Closed"]
["Not in FRS","Not in YTD GL",8257,"Internal Consumption - Printing and Duplicating Costs","Internal Expenses","Internal ordering - expenditures","Closed"]
["Not in FRS","Not in YTD GL",8258,"Internal Consumption - Housing Costs","Internal Expenses","Internal ordering - expenditures","Closed"]
["Not in FRS","Not in YTD GL",8259,"Internal Consumption - Gifts in Kind Costs","Internal Expenses","Internal ordering - expenditures","Closed"]
["Not in FRS","Not in YTD GL",8260,"Internal Consumption - Overhead paid - Department","Internal Expenses","Internal ordering - expenditures","Closed"]
["Not in FRS","Not in YTD GL",8261,"Internal Consumption - Overhead paid - Institutional","Internal Expenses","Internal ordering - expenditures","Closed"]
["Not in FRS","Not in YTD GL",8262,"Internal Consumption - Overhead paid - Research","Internal Expenses","Internal ordering - expenditures","Closed"]
["Not in FRS","Not in YTD GL",8263,"Internal Consumption - Overhead paid - PVPA Premium","Internal Expenses","Internal ordering - expenditures","Closed"]
["Not in FRS","Not in YTD GL",8400,"Internal Consumption - Overhead - Department Revenue","Internal Revenues","Overhead Received","Active"]
["Not in FRS","Not in YTD GL",8401,"Internal Consumption - Overhead - Institutional Revenue","Internal Revenues","Overhead Received","Active"]
["Not in FRS","Not in YTD GL",8402,"Internal Consumption - Overhead - Research Revenue","Internal Revenues","Overhead Received","Active"]
["Not in FRS","Not in YTD GL",8403,"Internal Consumption - Overhead - PVPA Premium Revenue","Internal Revenues","Overhead Received","Active"]
["Not in FRS","Not in YTD GL",8500,"Project Costing and Billing Revenue - Placeholder","Project Costing and Billing Placeholder (Parked)","Project Costing and Billing (Parked)","Closed"]
["Not in FRS","Not in YTD GL",8501,"Hourly Costs Contractors - Project Costing","Project Costing and Billing Placeholder (Parked)","Project Costing and Billing (Parked)","Closed"]
["Not in FRS","Not in YTD GL",8502,"ACE - Project Costing","Project Costing and Billing Placeholder (Parked)","Project Costing and Billing (Parked)","Closed"]
["Not in FRS","Not in YTD GL",8503,"Contingency","Project Costing and Billing Placeholder (Parked)","Project Costing and Billing (Parked)","Closed"]
["Not in FRS","Not in YTD GL",8804,"Hourly Cost Employees  - Recovery","Project Costing and Billing Placeholder (Parked)","Project Costing and Billing (Parked)","Closed"]
["Not in FRS","Not in YTD GL",8805,"Hourly Cost Contractors - Recovery","Project Costing and Billing Placeholder (Parked)","Project Costing and Billing (Parked)","Closed"]
["Not in FRS","Not in YTD GL",8806,"ACE Recovery","Project Costing and Billing Placeholder (Parked)","Project Costing and Billing (Parked)","Closed"]
["Not in FRS","Not in YTD GL",8900,"Internal Consumption - Revenue","Project Costing and Billing Placeholder (Parked)","Project Costing and Billing (Parked)","Closed"]
["Not in FRS","Not in YTD GL",8901,"Internal Consumption - Merchandise Sales","Project Costing and Billing Placeholder (Parked)","Project Costing and Billing (Parked)","Closed"]
["Not in FRS","Not in YTD GL",8902,"Internal Consumption - Admissions Sales","Project Costing and Billing Placeholder (Parked)","Project Costing and Billing (Parked)","Closed"]
["Not in FRS","Not in YTD GL",8903,"Internal Consumption - Facilities (recoveries)","Project Costing and Billing Placeholder (Parked)","Project Costing and Billing (Parked)","Closed"]
["Not in FRS","Not in YTD GL",8904,"Internal Consumption - Catering Sales","Project Costing and Billing Placeholder (Parked)","Project Costing and Billing (Parked)","Closed"]
["Not in FRS","Not in YTD GL",8905,"Internal Consumption - Campus Store Sales","Project Costing and Billing Placeholder (Parked)","Project Costing and Billing (Parked)","Closed"]
["Not in FRS","Not in YTD GL",8906,"Internal Consumption - Campus Store Book Sales","Project Costing and Billing Placeholder (Parked)","Project Costing and Billing (Parked)","Closed"]
["Not in FRS","Not in YTD GL",8907,"Internal Consumption - Printing and Duplicating Sales","Project Costing and Billing Placeholder (Parked)","Project Costing and Billing (Parked)","Closed"]
["Not in FRS","Not in YTD GL",8908,"Internal Consumption - Gifts in Kind Recoveries","Project Costing and Billing Placeholder (Parked)","Project Costing and Billing (Parked)","Closed"]
["Not in FRS","Not in YTD GL",8909,"Internal Consumption - Department Overhead Revenue","Project Costing and Billing Placeholder (Parked)","Project Costing and Billing (Parked)","Closed"]
["Not in FRS","Not in YTD GL",8910,"Internal Consumption - Institutional Overhead Revenue","Project Costing and Billing Placeholder (Parked)","Project Costing and Billing (Parked)","Closed"]
["Not in FRS","Not in YTD GL",8911,"Internal Consumption - Research Overhead Revenue","Project Costing and Billing Placeholder (Parked)","Project Costing and Billing (Parked)","Closed"]
["Not in FRS","Not in YTD GL",8912,"Internal Consumption - PVPA Premium Revenue","Project Costing and Billing Placeholder (Parked)","Project Costing and Billing (Parked)","Closed"]
["Not in FRS","Not in YTD GL",8913,"Internal Consumption - Housing Revenue","Project Costing and Billing Placeholder (Parked)","Project Costing and Billing (Parked)","Closed"]
["Not in FRS","Not in YTD GL",8950,"Internal Consumption - Expenditures","Project Costing and Billing Placeholder (Parked)","Project Costing and Billing (Parked)","Closed"]
["Not in FRS","Not in YTD GL",8951,"Internal Consumption - Merchandise Costs","Project Costing and Billing Placeholder (Parked)","Project Costing and Billing (Parked)","Closed"]
["Not in FRS","Not in YTD GL",8952,"Internal Consumption - Admissions Costs","Project Costing and Billing Placeholder (Parked)","Project Costing and Billing (Parked)","Closed"]
["Not in FRS","Not in YTD GL",8953,"Internal Consumption - Facilities Costs","Project Costing and Billing Placeholder (Parked)","Project Costing and Billing (Parked)","Closed"]
["Not in FRS","Not in YTD GL",8954,"Internal Consumption - Catering Costs","Project Costing and Billing Placeholder (Parked)","Project Costing and Billing (Parked)","Closed"]
["Not in FRS","Not in YTD GL",8955,"Internal Consumption - Campus Store Costs","Project Costing and Billing Placeholder (Parked)","Project Costing and Billing (Parked)","Closed"]
["Not in FRS","Not in YTD GL",8956,"Internal Consumption - Campus Store Book Costs","Project Costing and Billing Placeholder (Parked)","Project Costing and Billing (Parked)","Closed"]
["Not in FRS","Not in YTD GL",8957]
["Not in FRS","Not in YTD GL",8958,"Internal Consumption - Gifts in Kind Costs","Project Costing and Billing Placeholder (Parked)","Project Costing and Billing (Parked)","Closed"]
["Not in FRS","Not in YTD GL",8959,"Internal Consumption - Department Overhead Paid","Project Costing and Billing Placeholder (Parked)","Project Costing and Billing (Parked)","Closed"]
["Not in FRS","Not in YTD GL",8960,"Internal Consumption - Institutional Overhead Paid","Project Costing and Billing Placeholder (Parked)","Project Costing and Billing (Parked)","Closed"]
["Not in FRS","Not in YTD GL",8961,"Internal Consumption - Research Overhead paid","Project Costing and Billing Placeholder (Parked)","Project Costing and Billing (Parked)","Closed"]
["Not in FRS","Not in YTD GL",8962,"Internal Consumption - PVPA Premium Paid","Project Costing and Billing Placeholder (Parked)","Project Costing and Billing (Parked)","Closed"]
["Not in FRS","Not in YTD GL",8963,"Internal Consumption - Housing Costs","Project Costing and Billing Placeholder (Parked)","Project Costing and Billing (Parked)","Closed"]
["Not in FRS","Not in YTD GL",9600,"PAYROLL Business Number Account - CLEARING FOR T4s","CLEARING","Clearing","Active"]
["Not in FRS","Not in YTD GL",9601,"PAYROLL Balancing  Account - SYSTEM Errors","CLEARING","Clearing","Active"]
["Not in FRS","Not in YTD GL",9602,"PAYROLL Balancing  Account - BENEFITS rounding (BILLING)","CLEARING","Clearing","Active"]
["Not in FRS","Not in YTD GL",9603,"PAYROLL Balancing Account - Cost Distribution","CLEARING","Clearing","Active"]
["Not in FRS","Not in YTD GL",9700,"PCard Suspense Account","CLEARING","Clearing","Closed"]
["Not in FRS","Not in YTD GL",9800,"Payment Differences - Rounding","CLEARING","Clearing","Active"]
["Not in FRS","Not in YTD GL",9990,"P2P Suspense","CLEARING","Clearing","Active"]
["Not in FRS","Not in YTD GL","6000-2","Services (G)","Expenses","Fees and purchased services","Active"]
["Not in FRS","Not in YTD GL","6000-3","Services (GP)","Expenses","Fees and purchased services","Active"]
["Not in FRS","Not in YTD GL","6001-2","Services - Service Fee from CBV - SO","Expenses","Fees and purchased services","Active"]
["Not in FRS","Not in YTD GL","6005-2","Fee for Service - Individual / Sole Proprietor (G)","Expenses","Fees and purchased services","Active"]
["Not in FRS","Not in YTD GL","6005-3","Fee for Service - Individual / Sole Proprietor (GP)","Expenses","Fees and purchased services","Active"]
["Not in FRS","Not in YTD GL","6010-2","Advertising & Promotion (G)","Expenses","Fees and purchased services","Active"]
["Not in FRS","Not in YTD GL","6010-3","Advertising & Promotion (GP)","Expenses","Fees and purchased services","Active"]
["Not in FRS","Not in YTD GL","6015-2","Hospitality - External (G)","Expenses","Fees and purchased services","Active"]
["Not in FRS","Not in YTD GL","6015-3","Hospitality - External (GP)","Expenses","Fees and purchased services","Active"]
["Not in FRS","Not in YTD GL","6020-2","Fees and Memberships - Institutional (G)","Expenses","Fees and purchased services","Active"]
["Not in FRS","Not in YTD GL","6025-2","Fees and Memberships - Employee (G)","Expenses","Fees and purchased services","Active"]
["Not in FRS","Not in YTD GL","6030-2","Professional and Consulting Fees (G)","Expenses","Fees and purchased services","Active"]
["Not in FRS","Not in YTD GL","6030-3","Professional and Consulting Fees (GP)","Expenses","Fees and purchased services","Active"]
["Not in FRS","Not in YTD GL","6050-1","Foreign Exchange Gain / Loss","Expenses","Fees and purchased services","Active"]
["Not in FRS","Not in YTD GL","6100-2","Travel - Employee (G)","Expenses","Travel and training","Active"]
["Not in FRS","Not in YTD GL","6100-3","Travel - Employee (GP)","Expenses","Travel and training","Active"]
["Not in FRS","Not in YTD GL","6100-5","Travel - Employee (M)","Expenses","Travel and training","Active"]
["Not in FRS","Not in YTD GL","6100-6","Travel - Employee (4/104)","Expenses","Travel and training","Active"]
["Not in FRS","Not in YTD GL","6100-7","Travel - Employee (5/105)","Expenses","Travel and training","Active"]
["Not in FRS","Not in YTD GL","6105-2","Travel - Non Employee (G)","Expenses","Travel and training","Active"]
["Not in FRS","Not in YTD GL","6105-3","Travel - Non Employee (GP)","Expenses","Travel and training","Active"]
["Not in FRS","Not in YTD GL","6105-5","Travel - Non Employee (M)","Expenses","Travel and training","Active"]
["Not in FRS","Not in YTD GL","6105-6","Travel - Non Employee (4/104)","Expenses","Travel and training","Active"]
["Not in FRS","Not in YTD GL","6105-7","Travel - Non Employee (5/105)","Expenses","Travel and training","Active"]
["Not in FRS","Not in YTD GL","6110-2","Training - Employee (G)","Expenses","Travel and training","Active"]
["Not in FRS","Not in YTD GL","6110-3","Training - Employee (GP)","Expenses","Travel and training","Active"]
["Not in FRS","Not in YTD GL","6115-2","Training - Institutional (G)","Expenses","Travel and training","Active"]
["Not in FRS","Not in YTD GL","6115-3","Training - Institutional (GP)","Expenses","Travel and training","Active"]
["Not in FRS","Not in YTD GL","6200-2","Tuition Bursary/Scholarships (G)","Expenses","Scholarships and bursaries","Active"]
["Not in FRS","Not in YTD GL","6200-3","Tuition Bursary/Scholarships (GP)","Expenses","Scholarships and bursaries","Active"]
["Not in FRS","Not in YTD GL","6300-2","Repair and Maintenance - Furniture & Equipment (G)","Expenses","Equipment rental and maintenance","Active"]
["Not in FRS","Not in YTD GL","6300-3","Repair and Maintenance - Furniture & Equipment (GP)","Expenses","Equipment rental and maintenance","Active"]
["Not in FRS","Not in YTD GL","6305-3","Repair and Maintenance - Vehicles (GP)","Expenses","Equipment rental and maintenance","Active"]
["Not in FRS","Not in YTD GL","6310-2","Repair and Maintenance - Facilities (G)","Expenses","Equipment rental and maintenance","Active"]
["Not in FRS","Not in YTD GL","6325-2","Rental and Lease (G)","Expenses","Equipment rental and maintenance","Active"]
["Not in FRS","Not in YTD GL","6325-3","Rental and Lease (GP)","Expenses","Equipment rental and maintenance","Active"]
["Not in FRS","Not in YTD GL","6400-2","Utilities (G)","Expenses","Utilities, insurance and taxes","Active"]
["Not in FRS","Not in YTD GL","6400-3","Utilities (GP)","Expenses","Utilities, insurance and taxes","Active"]
["Not in FRS","Not in YTD GL","6405-2","Phone (G)","Expenses","Utilities, insurance and taxes","Active"]
["Not in FRS","Not in YTD GL","6405-3","Phone (GP)","Expenses","Utilities, insurance and taxes","Active"]
["Not in FRS","Not in YTD GL","6500-2","Supplies (G)","Expenses","Materials and supplies","Active"]
["Not in FRS","Not in YTD GL","6500-3","Supplies (GP)","Expenses","Materials and supplies","Active"]
["Not in FRS","Not in YTD GL","6505-3","Office Supplies and Stationery (GP)","Expenses","Materials and supplies","Active"]
["Not in FRS","Not in YTD GL","6510-1","Software (NT)","Expenses","Materials and supplies","Closed"]
["Not in FRS","Not in YTD GL","6510-2","Software (G)","Expenses","Materials and supplies","Closed"]
["Not in FRS","Not in YTD GL","6510-3","Software (GP)","Expenses","Materials and supplies","Closed"]
["Not in FRS","Not in YTD GL","6520-2","Postage, Courier, and Freight (G)","Expenses","Materials and supplies","Active"]
["Not in FRS","Not in YTD GL","6520-3","Postage, Courier, and Freight (GP)","Expenses","Materials and supplies","Active"]
["Not in FRS","Not in YTD GL","6525-2","Miscellaneous Employee Expenses (G)","Expenses","Materials and supplies","Active"]
["Not in FRS","Not in YTD GL","6525-3","Miscellaneous Employee Expenses (GP)","Expenses","Materials and supplies","Active"]
["Not in FRS","Not in YTD GL","6525-6","Miscellaneous Employee Expenses (4/104)","Expenses","Materials and supplies","Active"]
["Not in FRS","Not in YTD GL","6525-7","Miscellaneous Employee Expenses (5/105)","Expenses","Materials and supplies","Active"]
["Not in FRS","Not in YTD GL","6600-2","Cost of Goods Sold (G)","Expenses","Cost of goods sold","Active"]
["Not in FRS","Not in YTD GL","6600-3","Cost of Goods Sold (GP)","Expenses","Cost of goods sold","Active"]
["Not in FRS","Not in YTD GL","6605-2","Freight and Brokerage Fees (G)","Expenses","Cost of goods sold","Active"]
["Not in FRS","Not in YTD GL","6605-3","Freight and Brokerage Fees (GP)","Expenses","Cost of goods sold","Active"]
["Not in FRS","Not in YTD GL","6610-1","Bad Debt Expense (NT)","Expenses","Cost of goods sold","Closed"]
["Not in FRS","Not in YTD GL","7700-2","Capital Purchases - Buildings (G)","Capital additions - to be capitalized","Capital additions - to be capitalized","Active"]
["Not in FRS","Not in YTD GL","7700-3","Capital Purchases - Buildings (GP)","Capital additions - to be capitalized","Capital additions - to be capitalized","Active"]
["Not in FRS","Not in YTD GL","7701-2","Capital Purchases - Building Retrofit (G)","Capital additions - to be capitalized","Capital additions - to be capitalized","Active"]
["Not in FRS","Not in YTD GL","7701-3","Capital Purchases - Building Retrofit (GP)","Capital additions - to be capitalized","Capital additions - to be capitalized","Active"]
["Not in FRS","Not in YTD GL","7702-3","Capital Purchases - Computer Equipment (GP)","Capital additions - to be capitalized","Capital additions - to be capitalized","Active"]
["Not in FRS","Not in YTD GL","7703-2","Capital Purchases - Network and Server Equipment (G)","Capital additions - to be capitalized","Capital additions - to be capitalized","Active"]
["Not in FRS","Not in YTD GL","7703-3","Capital Purchases - Network and Server Equipment (GP)","Capital additions - to be capitalized","Capital additions - to be capitalized","Active"]
["Not in FRS","Not in YTD GL","7704-2","Capital Purchases - Computer Software (G)","Capital additions - to be capitalized","Capital additions - to be capitalized","Active"]
["Not in FRS","Not in YTD GL","7704-3","Capital Purchases - Computer Software (GP)","Capital additions - to be capitalized","Capital additions - to be capitalized","Active"]
["Not in FRS","Not in YTD GL","7705-2","Capital Purchases - Enterprise Systems (G)","Capital additions - to be capitalized","Capital additions - to be capitalized","Active"]
["Not in FRS","Not in YTD GL","7705-3","Capital Purchases - Enterprise Systems (GP)","Capital additions - to be capitalized","Capital additions - to be capitalized","Active"]
["Not in FRS","Not in YTD GL","7706-2","Capital Purchases - Furniture (G)","Capital additions - to be capitalized","Capital additions - to be capitalized","Active"]
["Not in FRS","Not in YTD GL","7706-3","Capital Purchases - Furniture (GP)","Capital additions - to be capitalized","Capital additions - to be capitalized","Active"]
["Not in FRS","Not in YTD GL","7707-3","Capital Purchases - Equipment (GP)","Capital additions - to be capitalized","Capital additions - to be capitalized","Active"]
["Not in FRS","Not in YTD GL","7708-1","Capital Purchases - Leasehold Improvements (NT)","Capital additions - to be capitalized","Capital additions - to be capitalized","Active"]
["Not in FRS","Not in YTD GL","7708-2","Capital Purchases - Leasehold Improvements (G)","Capital additions - to be capitalized","Capital additions - to be capitalized","Active"]
["Not in FRS","Not in YTD GL","7708-3","Capital Purchases - Leasehold Improvements (GP)","Capital additions - to be capitalized","Capital additions - to be capitalized","Active"]
["Not in FRS","Not in YTD GL","7710-2","Capital Purchases - Site Improvements (Land) (G)","Capital additions - to be capitalized","Capital additions - to be capitalized","Active"]
["Not in FRS","Not in YTD GL","7710-3","Capital Purchases - Site Improvements (Land) (GP)","Capital additions - to be capitalized","Capital additions - to be capitalized","Active"]
["Not in FRS","Not in YTD GL","7711-3","Capital Purchases - Vehicles (GP)","Capital additions - to be capitalized","Capital additions - to be capitalized","Active"]
["Not in FRS","Not in YTD GL","7800-99","Capital Transfers - Buildings - Transfers","Transfers to Capital Assets","Transfers to Capital Assets","Active"]
["Not in FRS","Not in YTD GL","7801-99","Capital Transfers - Building Retrofit - Transfers","Transfers to Capital Assets","Transfers to Capital Assets","Active"]
["Not in FRS","Not in YTD GL","7802-99","Capital Transfers - Computer Equipment - Transfers","Transfers to Capital Assets","Transfers to Capital Assets","Active"]
["Not in FRS","Not in YTD GL","7803-99","Capital Transfers - Network and Server Equipment - Transfers","Transfers to Capital Assets","Transfers to Capital Assets","Active"]
["Not in FRS","Not in YTD GL","7804-99","Capital Transfers - Computer Software - Transfers","Transfers to Capital Assets","Transfers to Capital Assets","Active"]
["Not in FRS","Not in YTD GL","7805-99","Capital Transfers - Enterprise Systems - Transfers","Transfers to Capital Assets","Transfers to Capital Assets","Active"]
["Not in FRS","Not in YTD GL","7806-99","Capital Transfers - Furniture - Transfers","Transfers to Capital Assets","Transfers to Capital Assets","Active"]
["Not in FRS","Not in YTD GL","7807-99","Capital Transfers - Equipment - Transfers","Transfers to Capital Assets","Transfers to Capital Assets","Active"]
["Not in FRS","Not in YTD GL","7808-99","Capital Transfers - Leasehold Improvements - Transfers","Transfers to Capital Assets","Transfers to Capital Assets","Active"]
["Not in FRS","Not in YTD GL","7809-99","Capital Transfers - Library Books - Transfers","Transfers to Capital Assets","Transfers to Capital Assets","Active"]
["Not in FRS","Not in YTD GL","7810-99","Capital Transfers - Site Improvements (Land) - Transfers","Transfers to Capital Assets","Transfers to Capital Assets","Active"]
["Not in FRS","Not in YTD GL","7811-99","Capital Transfers - Vehicles - Transfers","Transfers to Capital Assets","Transfers to Capital Assets","Active"]
["Not in FRS","Not in YTD GL","7812-99","Capital Transfers - Land - Transfers","Transfers to Capital Assets","Transfers to Capital Assets","Active"]
["Not in FRS","Not in YTD GL",1272,"AR Clearing - Residence Sponsorships","Financial assets","Accounts receivable","Active"]
["Not in FRS","Not in YTD GL",1273,"AR Clearing - Campus Store Sponsorships","Financial assets","Accounts receivable","Active"]
["Not in FRS","Not in YTD GL",1275,"AR Clearing - Campus Store eleV ","Financial assets","Accounts receivable","Active"]
["Not in FRS","Not in YTD GL",1470,"CLOSED - Never Used - Available For Future Use ","Financial assets","Loan receivable","Closed"]
["Not in FRS","Not in YTD GL",3993,"Op. Bal. Clearing - Bank","Accumulated surplus","Equity/Accumulated surplus","Active"]
["Not in FRS","Not in YTD GL",3994,"Op. Bal. - Cashbook","Accumulated surplus","Equity/Accumulated surplus","Active"]
["Not in FRS","Not in YTD GL",3995,"Op. Bal. Clearing - AR","Accumulated surplus","Equity/Accumulated surplus","Active"]
["Not in FRS","Not in YTD GL",3996,"Op. Bal. Clearing – AP","Accumulated surplus","Equity/Accumulated surplus","Active"]
["Not in FRS","Not in YTD GL",3997,"Op. Bal. Clearing - Income Statement Clearing (TEST ONLY)","Accumulated surplus","Equity/Accumulated surplus","Active"]
["Not in FRS","Not in YTD GL",3998,"Op. Bal. Clearing – Balance Sheet Other (TEST ONLY)","Accumulated surplus","Equity/Accumulated surplus","Active"]
["Not in FRS","Not in YTD GL",6800,"Contributions To VIU FDN - Internally Funded - Budget","Expenses","Grants and Contributions","Active"]
["Not in FRS","Not in YTD GL",6801,"Contributions To VIU FDN - Externally Funded - Budget","Expenses","Grants and Contributions","Active"]
["Not in FRS","Not in YTD GL",6805,"Grants Distributed To External Agencies - Budget","Expenses","Grants and Contributions","Active"]
["Not in FRS","Not in YTD GL","6045-2","Software (G)","Expenses","Fees and purchased services","Active"]
["Not in FRS","Not in YTD GL","6045-3","Software (GP)","Expenses","Fees and purchased services","Active"]
["Not in FRS","Not in YTD GL","6800-1","Contributions To VIU FDN - Internally Funded (NT)","Expenses","Grants and Contributions","Active"]
["Not in FRS","Not in YTD GL","6801-1","Contributions To VIU FDN - Externally Funded (NT)","Expenses","Grants and Contributions","Active"]
["Not in FRS","Not in YTD GL","6805-1","Grants Distributed To External Agencies (NT)","Expenses","Grants and Contributions","Active"]
["Not in FRS","Not in FRS",1237,"Accounts Receivable - SLED Reclass Contra Account","Financial assets","Accounts receivable","Active"]
["Not in FRS","Not in FRS","2370","Deferred Revenue - Tourism Chair","Liabilities","Deferred revenue","Active"]
["Not in FRS","Not in FRS","2371","Deferred Revenue - Aboriginal Early Childhood Development Chair","Liabilities","Deferred revenue","Active"]
["Not in FRS","Not in FRS","3071","Unrestricted Statement of Remeasurement - Chairs","Accumulated surplus","Equity/Accumulated surplus","Active"]
["Not in FRS","Not in FRS","6020-3","Fees and Memberships - Institutional (GP)","Expenses","Fees and purchased services","Active"]
["Not in FRS","Not in FRS","6025-3","Fees and Memberships - Employee (GP)","Expenses","Fees and purchased services","Active"]
["Not in FRS","Not in FRS","7707-1","Capital Purchases - Equipment (NT)","Capital additions - to be capitalized","Capital additions - to be capitalized","Active"]
["Not in FRS","Not in FRS","8297","Internal Consumption - Budget Transfers","Internal Expenses","Internal ordering - expenditures","Active"]
["Grand Total"]

{"sheet":"Product to Account","index":4,"n_rows":365,"n_cols":9,"rows_kept":365,"cut":false,"hidden":false,"merged":[]}
[]
[]
[]
[]
[]
[]
[]
[]
[]
[]
[]
[]
[]
[]
[]
[]
[]
["Obj C","Product ID","Product description","Product group","Account","Account Description","Taxacctgrp","Taxacctgrp Description","Status"]
[239,"A100006","Fee for Service Individual - Other (No Tax)","6005NT","6005-1","Fee for Service - Individual / Sole Proprietor (NT)","NT","No Tax","Active"]
[239,"A100007","Fee for Service Individual - Mariner Coaching Services","6005NT","6005-1","Fee for Service - Individual / Sole Proprietor (NT)","NT","No Tax","Active"]
[239,"A100008","Fee for Service Individual - Music Tutor","6005NT","6005-1","Fee for Service - Individual / Sole Proprietor (NT)","NT","No Tax","Active"]
[239,"A100009","Fee for Service Individual - Artist, Model and Musician","6005NT","6005-1","Fee for Service - Individual / Sole Proprietor (NT)","NT","No Tax","Active"]
[239,"A100010","Fee for Service Individual - Guest Speaker","6005NT","6005-1","Fee for Service - Individual / Sole Proprietor (NT)","NT","No Tax","Active"]
[239,"A100011","Fee for Service Individual - Translation and Interpreting","6005NT","6005-1","Fee for Service - Individual / Sole Proprietor (NT)","NT","No Tax","Active"]
[239,"A100012","Fee for Service Individual - Photography","6005NT","6005-1","Fee for Service - Individual / Sole Proprietor (NT)","NT","No Tax","Active"]
[239,"A100013","Fee for Service Individual - Graphic Design","6005NT","6005-1","Fee for Service - Individual / Sole Proprietor (NT)","NT","No Tax","Active"]
[239,"A100014","Fee for Service Individual - Thesis Supervision","6005NT","6005-1","Fee for Service - Individual / Sole Proprietor (NT)","NT","No Tax","Active"]
[239,"B100024","Fee for Service Individual - Other (BLANKET PO ONLY)","6005NT","6005-1","Fee for Service - Individual / Sole Proprietor (NT)","NT","No Tax","Active"]
[239,"B100025","Fee for Service Individual - Music Tutor (BLANKET PO ONLY)","6005NT","6005-1","Fee for Service - Individual / Sole Proprietor (NT)","NT","No Tax","Active"]
[300,"C100018","Buildings - Insurance - CAPITAL","7700NT","7700-1","Capital Purchases - Buildings (NT)","NT","No Tax","Active"]
[400,"B100004","Supplies - Purified Water Jugs (BLANKET PO ONLY)","6500NT","6500-1","Supplies (NT)","NT","No Tax","Active"]
[401,"A100018","Advertising - Fee Starbucks","6010NT","6010-1","Advertising & Promotion (NT)","NT","No Tax","Active"]
[401,"B100026","Advertising - Fee Starbucks (BLANKET PO ONLY)","6010NT","6010-1","Advertising & Promotion (NT)","NT","No Tax","Active"]
[409,"B100022","Services - Program Development (BSN) (BLANKET PO ONLY)","6000NT","6000-1","Services (NT)","NT","No Tax","Active"]
[416,"A100091","Cost of Goods Sold - Campus Store General Merchandise (No Tax)","6600NT","6600-1","Cost of Goods Sold (NT)","NT","No Tax","Active"]
[416,"A100092","Cost of Goods Sold - Food & Beverage (No Tax)","6600NT","6600-1","Cost of Goods Sold (NT)","NT","No Tax","Active"]
[416,"A100093","Cost of Goods Sold - Campus Store Non-Merchandise (No Tax)","6600NT","6600-1","Cost of Goods Sold (NT)","NT","No Tax","Active"]
[416,"A100122","Cost of Goods Sold - Container Deposit","6600NT","6600-1","Cost of Goods Sold (NT)","NT","No Tax","Active"]
[416,"B100058","Cost of Goods Sold - Campus Store General Merchandise (No Tax) (BLANKET PO ONLY)","6600NT","6600-1","Cost of Goods Sold (NT)","NT","No Tax","Active"]
[416,"B100059","Cost of Goods Sold - Food & Beverage (No Tax) (BLANKET PO ONLY)","6600NT","6600-1","Cost of Goods Sold (NT)","NT","No Tax","Active"]
[416,"B100060","Cost of Goods Sold - Container Deposit (BLANKET PO ONLY)","6600NT","6600-1","Cost of Goods Sold (NT)","NT","No Tax","Active"]
[420,"A100032","Travel - Employee - Out of Country","6100NT","6100-1","Travel - Employee (NT)","NT","No Tax","Active"]
[425,"A100037","Travel - Non-Employee - Out of Country","6105NT","6105-1","Travel - Non Employee (NT)","NT","No Tax","Active"]
[425,"A100109","Travel - Non-Employee - Bus Passes","6105NT","6105-1","Travel - Non Employee (NT)","NT","No Tax","Active"]
[435,"C100055","Building Retrofit - Insurance - CAPITAL","7701NT","7701-1","Capital Purchases - Building Retrofit (NT)","NT","No Tax","Active"]
[437,"C100163","Land - Land - CAPITAL","7712GP","7712-3","Capital Purchases - Land (GP)","GP","GST and PST","Active"]
[440,"C100123","Equipment - Installation - CAPITAL","7707G","7707-2","Capital Purchases - Equipment (G)","G","GST Only","Active"]
[440,"C100128","Equipment - Moving Services - CAPITAL","7707G","7707-2","Capital Purchases - Equipment (G)","G","GST Only","Active"]
[443,"C100144","Computing Equipment - Installation - CAPITAL","7702G","7702-2","Capital Purchases - Computer Equipment (G)","G","GST Only","Active"]
[451,"A100048","Repair and Maintenance - Facilities Other","6310GP","6310-3","Repair and Maintenance - Facilities (GP)","GP","GST and PST","Active"]
[451,"A100050","Repair and Maintenance - Refrigeration","6310GP","6310-3","Repair and Maintenance - Facilities (GP)","GP","GST and PST","Active"]
[451,"A100051","Repair and Maintenance - HVAC","6310GP","6310-3","Repair and Maintenance - Facilities (GP)","GP","GST and PST","Active"]
[451,"A100052","Repair and Maintenance - Electrical","6310GP","6310-3","Repair and Maintenance - Facilities (GP)","GP","GST and PST","Active"]
[451,"A100053","Repair and Maintenance - Plumbing","6310GP","6310-3","Repair and Maintenance - Facilities (GP)","GP","GST and PST","Active"]
[451,"A100054","Repair and Maintenance - Preventative Maintenance","6310GP","6310-3","Repair and Maintenance - Facilities (GP)","GP","GST and PST","Active"]
[451,"A100055","Repair and Maintenance - Fabric Maintenance","6310GP","6310-3","Repair and Maintenance - Facilities (GP)","GP","GST and PST","Active"]
[451,"A100056","Repair and Maintenance - Irrigation","6310GP","6310-3","Repair and Maintenance - Facilities (GP)","GP","GST and PST","Active"]
[451,"B100038","Repair and Maintenance - Facilities Other (BLANKET PO ONLY)","6310GP","6310-3","Repair and Maintenance - Facilities (GP)","GP","GST and PST","Active"]
[451,"B100039","Repair and Maintenance - Refrigeration (BLANKET PO ONLY)","6310GP","6310-3","Repair and Maintenance - Facilities (GP)","GP","GST and PST","Active"]
[451,"B100040","Repair and Maintenance - HVAC (BLANKET PO ONLY)","6310GP","6310-3","Repair and Maintenance - Facilities (GP)","GP","GST and PST","Active"]
[451,"B100041","Repair and Maintenance - Electrical (BLANKET PO ONLY)","6310GP","6310-3","Repair and Maintenance - Facilities (GP)","GP","GST and PST","Active"]
[451,"B100042","Repair and Maintenance - Plumbing (BLANKET PO ONLY)","6310GP","6310-3","Repair and Maintenance - Facilities (GP)","GP","GST and PST","Active"]
[451,"B100043","Repair and Maintenance - Preventative Maintenance (BLANKET PO ONLY)","6310GP","6310-3","Repair and Maintenance - Facilities (GP)","GP","GST and PST","Active"]
[451,"B100044","Repair and Maintenance - Fabric Maintenance (BLANKET PO ONLY)","6310GP","6310-3","Repair and Maintenance - Facilities (GP)","GP","GST and PST","Active"]
[451,"B100045","Repair and Maintenance - Irrigation (BLANKET PO ONLY)","6310GP","6310-3","Repair and Maintenance - Facilities (GP)","GP","GST and PST","Active"]
[470,"A100065","Utilities - Water/Sewer","6400NT","6400-1","Utilities (NT)","NT","No Tax","Active"]
[470,"A100066","Utilities - Property Tax","6400NT","6400-1","Utilities (NT)","NT","No Tax","Active"]
[470,"B100051","Utilities - Water/Sewer (BLANKET PO ONLY)","6400NT","6400-1","Utilities (NT)","NT","No Tax","Active"]
[470,"B100052","Utilities - Property Tax (BLANKET PO ONLY)","6400NT","6400-1","Utilities (NT)","NT","No Tax","Active"]
[494,"A100025","Fees and Memberships - Institutional","6020NT","6020-1","Fees and Memberships - Institutional (NT)","NT","No Tax","Active"]
[494,"A100026","Fees and Memberships - Royalties","6020NT","6020-1","Fees and Memberships - Institutional (NT)","NT","No Tax","Active"]
[494,"B100030","Fees and Memberships - Royalties (BLANKET PO ONLY)","6020NT","6020-1","Fees and Memberships - Institutional (NT)","NT","No Tax","Active"]
[506,"A100057","Vehicle Fuel","6320G","6320-2","Vehicle Fuel (G)","G","GST Only","Active"]
[506,"B100046","Vehicle Fuel (BLANKET PO ONLY)","6320G","6320-2","Vehicle Fuel (G)","G","GST Only","Active"]
[535,"A100088","Printing & Duplicating - External","6515GP","6515-3","Printing and Duplicating (GP)","GP","GST and PST","Active"]
[550,"A100076","Insurance Premiums - Institutional","6410NT","6410-1","Insurance (NT)","NT","No Tax","Active"]
[550,"A100077","Insurance Premiums - Medical","6410NT","6410-1","Insurance (NT)","NT","No Tax","Active"]
[598,"A100031","Grants Distributed to External Agencies","6040NT","6040-1","Payments to Service Partners (NT)","NT","No Tax","Active"]
[600,"C100139","Library Books - Hard Copy Library Books - CAPITAL","7709G","7709-2","Capital Purchases - Library Books (G)","G","GST Only","Active"]
["New in FIS","A100001","Services - Other","6000G","6000-2","Services (G)","G","GST Only","Active"]
["New in FIS","A100002","Services - Janitorial","6000G","6000-2","Services (G)","G","GST Only","Active"]
["New in FIS","A100003","Services - Recruitment / Agents Commission","6000G","6000-2","Services (G)","G","GST Only","Active"]
["New in FIS","A100004","Services - Security","6000G","6000-2","Services (G)","G","GST Only","Active"]
["New in FIS","A100005","Services - Laundry / Linen","6000GP","6000-3","Services (GP)","GP","GST and PST","Active"]
["New in FIS","A100015","Fee for Service Individual - Other (GST)","6005G","6005-2","Fee for Service - Individual / Sole Proprietor (G)","G","GST Only","Active"]
["New in FIS","A100016","Fee for Service Individual  - Consulting and Project Management","6005G","6005-2","Fee for Service - Individual / Sole Proprietor (G)","G","GST Only","Active"]
["New in FIS","A100017","Fee for Service Individual - Workshop / Course Delivery","6005G","6005-2","Fee for Service - Individual / Sole Proprietor (G)","G","GST Only","Active"]
["New in FIS","A100019","Advertising - Other","6010G","6010-2","Advertising & Promotion (G)","G","GST Only","Active"]
["New in FIS","A100020","Advertising - Sponsorships and Promotions","6010G","6010-2","Advertising & Promotion (G)","G","GST Only","Active"]
["New in FIS","A100021","Advertising - Web","6010G","6010-2","Advertising & Promotion (G)","G","GST Only","Active"]
["New in FIS","A100022","Advertising - Printed Products","6010GP","6010-3","Advertising & Promotion (GP)","GP","GST and PST","Active"]
["New in FIS","A100023","Advertising - Special Events","6010GP","6010-3","Advertising & Promotion (GP)","GP","GST and PST","Active"]
["New in FIS","A100024","Hospitality - External","6015G","6015-2","Hospitality - External (G)","G","GST Only","Active"]
["New in FIS","A100027","Fees and Memberships - Employee","6025G","6025-2","Fees and Memberships - Employee (G)","G","GST Only","Active"]
["New in FIS","A100028","Professional fees - Technical / Consulting","6030G","6030-2","Professional and Consulting Fees (G)","G","GST Only","Active"]
["New in FIS","A100029","Professional fees - Audit / Accounting","6030G","6030-2","Professional and Consulting Fees (G)","G","GST Only","Active"]
["New in FIS","A100030","Professional fees  - Legal","6030GP","6030-3","Professional and Consulting Fees (GP)","GP","GST and PST","Active"]
["New in FIS","A100033","Travel - Employee - Other","6100G","6100-2","Travel - Employee (G)","G","GST Only","Active"]
["New in FIS","A100034","Travel - Employee - Airfare","6100G","6100-2","Travel - Employee (G)","G","GST Only","Active"]
["New in FIS","A100035","Travel - Employee - Vehicle Rental","6100GP","6100-3","Travel - Employee (GP)","GP","GST and PST","Active"]
["New in FIS","A100036","Travel - Employee - Hotel Accommodation","6100M","6100-5","Travel - Employee (M)","M","GST, PST8%, MRDT","Active"]
["New in FIS","A100038","Travel - Non-Employee - Other","6105G","6105-2","Travel - Non Employee (G)","G","GST Only","Active"]
["New in FIS","A100039","Travel - Non-Employee - Airfare","6105G","6105-2","Travel - Non Employee (G)","G","GST Only","Active"]
["New in FIS","A100040","Travel - Non-Employee - Vehicle Rental","6105GP","6105-3","Travel - Non Employee (GP)","GP","GST and PST","Active"]
["New in FIS","A100041","Travel - Non-Employee - Hotel Accommodation","6105M","6105-5","Travel - Non Employee (M)","M","GST, PST8%, MRDT","Active"]
["New in FIS","A100042","Training - Employee - Professional Development","6110G","6110-2","Training - Employee (G)","G","GST Only","Active"]
["New in FIS","A100043","Training - Institutional - Certification","6115G","6115-2","Training - Institutional (G)","G","GST Only","Active"]
["New in FIS","A100044","Repair and Maintenance - Equipment","6300GP","6300-3","Repair and Maintenance - Furniture & Equipment (GP)","GP","GST and PST","Active"]
["New in FIS","A100045","Repair and Maintenance - Safety and Fire Protection","6300GP","6300-3","Repair and Maintenance - Furniture & Equipment (GP)","GP","GST and PST","Active"]
["New in FIS","A100046","Repair and Maintenance - Furniture","6300GP","6300-3","Repair and Maintenance - Furniture & Equipment (GP)","GP","GST and PST","Active"]
["New in FIS","A100047","Repair and Maintenance - Vehicles Operational","6305GP","6305-3","Repair and Maintenance - Vehicles (GP)","GP","GST and PST","Active"]
["New in FIS","A100049","Repair and Maintenance - Elevators","6310G","6310-2","Repair and Maintenance - Facilities (G)","G","GST Only","Active"]
["New in FIS","A100058","Rental - Facilities","6325G","6325-2","Rental and Lease (G)","G","GST Only","Active"]
["New in FIS","A100059","Rental - Inter Library Loan","6325G","6325-2","Rental and Lease (G)","G","GST Only","Active"]
["New in FIS","A100060","Lease - Facilities","6325G","6325-2","Rental and Lease (G)","G","GST Only","Active"]
["New in FIS","A100061","Rental - Institutional Vehicle","6325GP","6325-3","Rental and Lease (GP)","GP","GST and PST","Active"]
["New in FIS","A100062","Lease - Institutional Vehicle","6325GP","6325-3","Rental and Lease (GP)","GP","GST and PST","Active"]
["New in FIS","A100063","Rental - Equipment","6325GP","6325-3","Rental and Lease (GP)","GP","GST and PST","Active"]
["New in FIS","A100064","Lease - Equipment","6325GP","6325-3","Rental and Lease (GP)","GP","GST and PST","Active"]
["New in FIS","A100067","Utilities - Hydro","6400G","6400-2","Utilities (G)","G","GST Only","Active"]
["New in FIS","A100069","Utilities - Garbage Removal","6400G","6400-2","Utilities (G)","G","GST Only","Active"]
["New in FIS","A100071","Utilities - Natural Gas","6400GP","6400-3","Utilities (GP)","GP","GST and PST","Active"]
["New in FIS","A100072","Utilities - Heating Fuel","6400GP","6400-3","Utilities (GP)","GP","GST and PST","Active"]
["New in FIS","A100073","Phone - Equipment","6405GP","6405-3","Phone (GP)","GP","GST and PST","Active"]
["New in FIS","A100074","Phone - Repairs","6405GP","6405-3","Phone (GP)","GP","GST and PST","Active"]
["New in FIS","A100075","Phone - Cell Phone and Land Line Charges","6405GP","6405-3","Phone (GP)","GP","GST and PST","Active"]
["New in FIS","A100078","Supplies - Instruction Related Consumable","6500G","6500-2","Supplies (G)","G","GST Only","Active"]
["New in FIS","A100079","Supplies - Other","6500GP","6500-3","Supplies (GP)","GP","GST and PST","Active"]
["New in FIS","A100080","Supplies - First Aid","6500GP","6500-3","Supplies (GP)","GP","GST and PST","Active"]
["New in FIS","A100081","Supplies - Equipment (Under $5k Non Capital)","6500GP","6500-3","Supplies (GP)","GP","GST and PST","Active"]
["New in FIS","A100082","Supplies - Furniture (Under $5k Non Capital)","6500GP","6500-3","Supplies (GP)","GP","GST and PST","Active"]
["New in FIS","A100083","Supplies - Foodservice Smallwares","6500GP","6500-3","Supplies (GP)","GP","GST and PST","Active"]
["New in FIS","A100084","Supplies - Office / Stationery","6505GP","6505-3","Office Supplies and Stationery (GP)","GP","GST and PST","Active"]
["New in FIS","A100085","Software - Applications & Cloud Services","6045GP","6045-3","Software (GPI)","GPI","GST and PST, incl. int'l","Active"]
["New in FIS","A100089","Postage","6520G","6520-2","Postage, Courier, and Freight (G)","G","GST Only","Active"]
["New in FIS","A100090","Courier","6520G","6520-2","Postage, Courier, and Freight (G)","G","GST Only","Active"]
["New in FIS","A100094","Cost of Goods Sold - Institutional Resalable items (GST)","6600G","6600-2","Cost of Goods Sold (G)","G","GST Only","Active"]
["New in FIS","A100095","Cost of Goods Sold - Foodservice Paper/Plastic","6600G","6600-2","Cost of Goods Sold (G)","G","GST Only","Active"]
["New in FIS","A100096","Cost of Goods Sold - Food & Beverage (GST)","6600G","6600-2","Cost of Goods Sold (G)","G","GST Only","Active"]
["New in FIS","A100097","Cost of Goods Sold - Liquor Discovery Room","6600G","6600-2","Cost of Goods Sold (G)","G","GST Only","Active"]
["New in FIS","A100099","Cost of Goods Sold - Campus Store General Merchandise","6600G","6600-2","Cost of Goods Sold (G)","G","GST Only","Active"]
["New in FIS","A100100","Cost of Goods Sold - Campus Store Non-Merchandise (GST)","6600G","6600-2","Cost of Goods Sold (G)","G","GST Only","Active"]
["New in FIS","A100101","Cost of Goods Sold - Campus Store Textbooks","6600G","6600-2","Cost of Goods Sold (G)","G","GST Only","Active"]
["New in FIS","A100102","Cost of Goods Sold - Campus Store Trade","6600G","6600-2","Cost of Goods Sold (G)","G","GST Only","Active"]
["New in FIS","A100103","Cost of Goods Sold - Institutional Resalable items (GST & PST)","6600GP","6600-3","Cost of Goods Sold (GP)","GP","GST and PST","Active"]
["New in FIS","A100104","Cost of Goods Sold - Foodservice Disposables/Cleaning","6600GP","6600-3","Cost of Goods Sold (GP)","GP","GST and PST","Active"]
["New in FIS","A100105","Cost of Goods Sold - Food & Beverage (GST & PST)","6600GP","6600-3","Cost of Goods Sold (GP)","GP","GST and PST","Active"]
["New in FIS","A100106","Cost of Goods Sold - Campus Store Non-Merchandise (GST & PST)","6600GP","6600-3","Cost of Goods Sold (GP)","GP","GST and PST","Active"]
["New in FIS","A100107","Supplies - Computer Equipment","6500GP","6500-3","Supplies (GP)","GP","GST and PST","Active"]
["New in FIS","A100108","Supplies - Audio Visual Equipment","6500GP","6500-3","Supplies (GP)","GP","GST and PST","Active"]
["New in FIS","A100112","Supplies - Medical (For Health & Wellness Centre Only)","6500G","6500-2","Supplies (G)","G","GST Only","Active"]
["New in FIS","A100113","Supplies - Safety","6500G","6500-2","Supplies (G)","G","GST Only","Active"]
["New in FIS","A100115","Deposit - Pay Deposit (PROCUREMENT ONLY)","1800","1800","Deposits - Supplier","(blank)","(blank)","Active"]
["New in FIS","A100116","Deposit - Apply Deposit (PROCUREMENT ONLY)","1800","1800","Deposits - Supplier","(blank)","(blank)","Active"]
["New in FIS","A100117","Supplies - Freight","6500G","6500-2","Supplies (G)","G","GST Only","Active"]
["New in FIS","A100119","Repair and Maintenance - Labour","6310G","6310-2","Repair and Maintenance - Facilities (G)","G","GST Only","Active"]
["New in FIS","A100120","Rental - Delivery","6325G","6325-2","Rental and Lease (G)","G","GST Only","Active"]
["New in FIS","A100121","Supplies - Books","6500G","6500-2","Supplies (G)","G","GST Only","Active"]
["New in FIS","A100123","Cost of Goods Sold - Freight","6600G","6600-2","Cost of Goods Sold (G)","G","GST Only","Active"]
["New in FIS","A100124","Cost of Goods Sold - Freight Campus Store","6600G","6600-2","Cost of Goods Sold (G)","G","GST Only","Active"]
["New in FIS","A100126","Repair and Maintenance - Computer Equipment","6300GP","6300-3","Repair and Maintenance - Furniture & Equipment (GP)","GP","GST and PST","Active"]
["New in FIS","A100128","Software - Library Infrastructure Systems (LIBRARY ONLY)","6045GP","6045-3","Software (GPI)","GPI","GST and PST, incl. int'l","Active"]
["New in FIS","A100129","Software - Digital Research Infrastructure","6045GP","6045-3","Software (GPI)","GPI","GST and PST, incl. int'l","Active"]
["New in FIS","A100130","Supplies - Laboratory","6500GP","6500-3","Supplies (GP)","GP","GST and PST","Active"]
["New in FIS","B100001","Supplies - Other (BLANKET PO ONLY)","6500GP","6500-3","Supplies (GP)","GP","GST and PST","Active"]
["New in FIS","B100002","Supplies - Medical (BLANKET PO ONLY)","6500G","6500-2","Supplies (G)","G","GST Only","Active"]
["New in FIS","B100003","Supplies - Instruction Related Consumables (BLANKET PO ONLY)","6500G","6500-2","Supplies (G)","G","GST Only","Active"]
["New in FIS","C100001","Buildings - Accessibility - CAPITAL","7700G","7700-2","Capital Purchases - Buildings (G)","G","GST Only","Active"]
["New in FIS","C100002","Buildings - Architect Services - CAPITAL","7700G","7700-2","Capital Purchases - Buildings (G)","G","GST Only","Active"]
["New in FIS","C100003","Buildings - Assessments & Surveys - CAPITAL","7700G","7700-2","Capital Purchases - Buildings (G)","G","GST Only","Active"]
["New in FIS","C100004","Buildings - Audio Visual- CAPITAL","7700G","7700-2","Capital Purchases - Buildings (G)","G","GST Only","Active"]
["New in FIS","C100005","Buildings - Awnings - CAPITAL","7700G","7700-2","Capital Purchases - Buildings (G)","G","GST Only","Active"]
["New in FIS","C100006","Buildings - Consulting Services - CAPITAL","7700G","7700-2","Capital Purchases - Buildings (G)","G","GST Only","Active"]
["New in FIS","C100007","Buildings - Doors - CAPITAL","7700G","7700-2","Capital Purchases - Buildings (G)","G","GST Only","Active"]
["New in FIS","C100008","Buildings - Drywall - CAPITAL","7700G","7700-2","Capital Purchases - Buildings (G)","G","GST Only","Active"]
["New in FIS","C100009","Buildings - Electrical - CAPITAL","7700G","7700-2","Capital Purchases - Buildings (G)","G","GST Only","Active"]
["New in FIS","C100010","Buildings - Engineering - CAPITAL","7700G","7700-2","Capital Purchases - Buildings (G)","G","GST Only","Active"]
["New in FIS","C100011","Buildings - Environmental - CAPITAL","7700G","7700-2","Capital Purchases - Buildings (G)","G","GST Only","Active"]
["New in FIS","C100012","Buildings - Exterior - CAPITAL","7700G","7700-2","Capital Purchases - Buildings (G)","G","GST Only","Active"]
["New in FIS","C100013","Buildings - Flooring - CAPITAL","7700G","7700-2","Capital Purchases - Buildings (G)","G","GST Only","Active"]
["New in FIS","C100014","Buildings - General Contracting Services - CAPITAL","7700G","7700-2","Capital Purchases - Buildings (G)","G","GST Only","Active"]
["New in FIS","C100015","Buildings - Glass - CAPITAL","7700G","7700-2","Capital Purchases - Buildings (G)","G","GST Only","Active"]
["New in FIS","C100016","Buildings - Handyman/labour Services - CAPITAL","7700G","7700-2","Capital Purchases - Buildings (G)","G","GST Only","Active"]
["New in FIS","C100017","Buildings - HVAC - CAPITAL","7700G","7700-2","Capital Purchases - Buildings (G)","G","GST Only","Active"]
["New in FIS","C100019","Buildings - Interior Design - CAPITAL","7700G","7700-2","Capital Purchases - Buildings (G)","G","GST Only","Active"]
["New in FIS","C100020","Buildings - Landscaping & Irrigation - CAPITAL","7700G","7700-2","Capital Purchases - Buildings (G)","G","GST Only","Active"]
["New in FIS","C100021","Buildings - Lighting - CAPITAL","7700G","7700-2","Capital Purchases - Buildings (G)","G","GST Only","Active"]
["New in FIS","C100022","Buildings - Locating - CAPITAL","7700G","7700-2","Capital Purchases - Buildings (G)","G","GST Only","Active"]
["New in FIS","C100023","Buildings - Locksmith - CAPITAL","7700G","7700-2","Capital Purchases - Buildings (G)","G","GST Only","Active"]
["New in FIS","C100024","Buildings - Mechanical - CAPITAL","7700G","7700-2","Capital Purchases - Buildings (G)","G","GST Only","Active"]
["New in FIS","C100025","Buildings - Moving Services - CAPITAL","7700G","7700-2","Capital Purchases - Buildings (G)","G","GST Only","Active"]
["New in FIS","C100026","Buildings - Painting (interior) - CAPITAL","7700G","7700-2","Capital Purchases - Buildings (G)","G","GST Only","Active"]
["New in FIS","C100027","Buildings - Pest Control - CAPITAL","7700G","7700-2","Capital Purchases - Buildings (G)","G","GST Only","Active"]
["New in FIS","C100028","Buildings - Permits - CAPITAL","7700G","7700-2","Capital Purchases - Buildings (G)","G","GST Only","Active"]
["New in FIS","C100029","Buildings - Plumbing - CAPITAL","7700G","7700-2","Capital Purchases - Buildings (G)","G","GST Only","Active"]
["New in FIS","C100030","Buildings - Project Management Services - CAPITAL","7700G","7700-2","Capital Purchases - Buildings (G)","G","GST Only","Active"]
["New in FIS","C100031","Buildings - Remediation - CAPITAL","7700G","7700-2","Capital Purchases - Buildings (G)","G","GST Only","Active"]
["New in FIS","C100032","Buildings - Roof - CAPITAL","7700G","7700-2","Capital Purchases - Buildings (G)","G","GST Only","Active"]
["New in FIS","C100033","Buildings - Safety and Fire Protection - CAPITAL","7700G","7700-2","Capital Purchases - Buildings (G)","G","GST Only","Active"]
["New in FIS","C100034","Buildings - Signage - CAPITAL","7700GP","7700-3","Capital Purchases - Buildings (GP)","GP","GST and PST","Active"]
["New in FIS","C100035","Buildings - Waste Disposal - CAPITAL","7700G","7700-2","Capital Purchases - Buildings (G)","G","GST Only","Active"]
["New in FIS","C100036","Buildings - Window Coverings - CAPITAL","7700G","7700-2","Capital Purchases - Buildings (G)","G","GST Only","Active"]
["New in FIS","C100037","Buildings - Other - CAPITAL","7700G","7700-2","Capital Purchases - Buildings (G)","G","GST Only","Active"]
["New in FIS","C100038","Building Retrofit - Accessibility - CAPITAL","7701G","7701-2","Capital Purchases - Building Retrofit (G)","G","GST Only","Active"]
["New in FIS","C100039","Building Retrofit - Architect Services - CAPITAL","7701G","7701-2","Capital Purchases - Building Retrofit (G)","G","GST Only","Active"]
["New in FIS","C100040","Building Retrofit - Assessments & Surveys - CAPITAL","7701G","7701-2","Capital Purchases - Building Retrofit (G)","G","GST Only","Active"]
["New in FIS","C100041","Building Retrofit - Audio Visual - CAPITAL","7701G","7701-2","Capital Purchases - Building Retrofit (G)","G","GST Only","Active"]
["New in FIS","C100042","Building Retrofit - Awnings - CAPITAL","7701G","7701-2","Capital Purchases - Building Retrofit (G)","G","GST Only","Active"]
["New in FIS","C100043","Building Retrofit - Consulting Services - CAPITAL","7701G","7701-2","Capital Purchases - Building Retrofit (G)","G","GST Only","Active"]
["New in FIS","C100044","Building Retrofit - Doors - CAPITAL","7701G","7701-2","Capital Purchases - Building Retrofit (G)","G","GST Only","Active"]
["New in FIS","C100045","Building Retrofit - Drywall - CAPITAL","7701G","7701-2","Capital Purchases - Building Retrofit (G)","G","GST Only","Active"]
["New in FIS","C100046","Building Retrofit - Electrical - CAPITAL","7701G","7701-2","Capital Purchases - Building Retrofit (G)","G","GST Only","Active"]
["New in FIS","C100047","Building Retrofit - Engineering - CAPITAL","7701G","7701-2","Capital Purchases - Building Retrofit (G)","G","GST Only","Active"]
["New in FIS","C100048","Building Retrofit - Environmental - CAPITAL","7701G","7701-2","Capital Purchases - Building Retrofit (G)","G","GST Only","Active"]
["New in FIS","C100049","Building Retrofit - Exterior - CAPITAL","7701G","7701-2","Capital Purchases - Building Retrofit (G)","G","GST Only","Active"]
["New in FIS","C100050","Building Retrofit - Flooring - CAPITAL","7701G","7701-2","Capital Purchases - Building Retrofit (G)","G","GST Only","Active"]
["New in FIS","C100051","Building Retrofit - General Contracting Services - CAPITAL","7701G","7701-2","Capital Purchases - Building Retrofit (G)","G","GST Only","Active"]
["New in FIS","C100052","Building Retrofit - Glass - CAPITAL","7701G","7701-2","Capital Purchases - Building Retrofit (G)","G","GST Only","Active"]
["New in FIS","C100053","Building Retrofit - Handyman/Labour Services - CAPITAL","7701G","7701-2","Capital Purchases - Building Retrofit (G)","G","GST Only","Active"]
["New in FIS","C100054","Building Retrofit - HVAC - CAPITAL","7701G","7701-2","Capital Purchases - Building Retrofit (G)","G","GST Only","Active"]
["New in FIS","C100056","Building Retrofit - Interior Design - CAPITAL","7701G","7701-2","Capital Purchases - Building Retrofit (G)","G","GST Only","Active"]
["New in FIS","C100057","Building Retrofit - Landscaping & Irrigation - CAPITAL","7701G","7701-2","Capital Purchases - Building Retrofit (G)","G","GST Only","Active"]
["New in FIS","C100058","Building Retrofit - Lighting - CAPITAL","7701G","7701-2","Capital Purchases - Building Retrofit (G)","G","GST Only","Active"]
["New in FIS","C100059","Building Retrofit - Locating - CAPITAL","7701G","7701-2","Capital Purchases - Building Retrofit (G)","G","GST Only","Active"]
["New in FIS","C100060","Building Retrofit - Locksmith - CAPITAL","7701G","7701-2","Capital Purchases - Building Retrofit (G)","G","GST Only","Active"]
["New in FIS","C100061","Building Retrofit - Mechanical - CAPITAL","7701G","7701-2","Capital Purchases - Building Retrofit (G)","G","GST Only","Active"]
["New in FIS","C100062","Building Retrofit - Moving Services - CAPITAL","7701G","7701-2","Capital Purchases - Building Retrofit (G)","G","GST Only","Active"]
["New in FIS","C100063","Building Retrofit - Painting - CAPITAL","7701G","7701-2","Capital Purchases - Building Retrofit (G)","G","GST Only","Active"]
["New in FIS","C100064","Building Retrofit - Pest Control - CAPITAL","7701G","7701-2","Capital Purchases - Building Retrofit (G)","G","GST Only","Active"]
["New in FIS","C100065","Building Retrofit - Permits - CAPITAL","7701G","7701-2","Capital Purchases - Building Retrofit (G)","G","GST Only","Active"]
["New in FIS","C100066","Building Retrofit - Plumbing - CAPITAL","7701G","7701-2","Capital Purchases - Building Retrofit (G)","G","GST Only","Active"]
["New in FIS","C100067","Building Retrofit - Project Management Services - CAPITAL","7701G","7701-2","Capital Purchases - Building Retrofit (G)","G","GST Only","Active"]
["New in FIS","C100068","Building Retrofit - Remediation - CAPITAL","7701G","7701-2","Capital Purchases - Building Retrofit (G)","G","GST Only","Active"]
["New in FIS","C100069","Building Retrofit - Roof - CAPITAL","7701G","7701-2","Capital Purchases - Building Retrofit (G)","G","GST Only","Active"]
["New in FIS","C100070","Building Retrofit - Safety & Fire Protection - CAPITAL","7701G","7701-2","Capital Purchases - Building Retrofit (G)","G","GST Only","Active"]
["New in FIS","C100071","Building Retrofit - Signage - CAPITAL","7701GP","7701-3","Capital Purchases - Building Retrofit (GP)","GP","GST and PST","Active"]
["New in FIS","C100072","Building Retrofit - Waste Disposal - CAPITAL","7701G","7701-2","Capital Purchases - Building Retrofit (G)","G","GST Only","Active"]
["New in FIS","C100073","Building Retrofit - Window Coverings - CAPITAL","7701G","7701-2","Capital Purchases - Building Retrofit (G)","G","GST Only","Active"]
["New in FIS","C100074","Building Retrofit - Other - CAPITAL","7701G","7701-2","Capital Purchases - Building Retrofit (G)","G","GST Only","Active"]
["New in FIS","C100075","Leasehold Improvements - Accessibility - CAPITAL","7708G","7708-2","Capital Purchases - Leasehold Improvements (G)","G","GST Only","Active"]
["New in FIS","C100076","Leasehold Improvements - Architect Services - CAPITAL","7708G","7708-2","Capital Purchases - Leasehold Improvements (G)","G","GST Only","Active"]
["New in FIS","C100077","Leasehold Improvements - Assessments & Surveys - CAPITAL","7708G","7708-2","Capital Purchases - Leasehold Improvements (G)","G","GST Only","Active"]
["New in FIS","C100078","Leasehold Improvements - Audio Visual - CAPITAL","7708G","7708-2","Capital Purchases - Leasehold Improvements (G)","G","GST Only","Active"]
["New in FIS","C100079","Leasehold Improvements - Awnings - CAPITAL","7708G","7708-2","Capital Purchases - Leasehold Improvements (G)","G","GST Only","Active"]
["New in FIS","C100080","Leasehold Improvements - Consulting Services - CAPITAL","7708G","7708-2","Capital Purchases - Leasehold Improvements (G)","G","GST Only","Active"]
["New in FIS","C100081","Leasehold Improvements - Doors - CAPITAL","7708G","7708-2","Capital Purchases - Leasehold Improvements (G)","G","GST Only","Active"]
["New in FIS","C100082","Leasehold Improvements - Drywall - CAPITAL","7708G","7708-2","Capital Purchases - Leasehold Improvements (G)","G","GST Only","Active"]
["New in FIS","C100083","Leasehold Improvements - Electrical - CAPITAL","7708G","7708-2","Capital Purchases - Leasehold Improvements (G)","G","GST Only","Active"]
["New in FIS","C100084","Leasehold Improvements - Engineering - CAPITAL","7708G","7708-2","Capital Purchases - Leasehold Improvements (G)","G","GST Only","Active"]
["New in FIS","C100085","Leasehold Improvements - Environmental - CAPITAL","7708G","7708-2","Capital Purchases - Leasehold Improvements (G)","G","GST Only","Active"]
["New in FIS","C100086","Leasehold Improvements - Exterior - CAPITAL","7708G","7708-2","Capital Purchases - Leasehold Improvements (G)","G","GST Only","Active"]
["New in FIS","C100087","Leasehold Improvements - Flooring - CAPITAL","7708G","7708-2","Capital Purchases - Leasehold Improvements (G)","G","GST Only","Active"]
["New in FIS","C100088","Leasehold Improvements - General Contracting - CAPITAL","7708G","7708-2","Capital Purchases - Leasehold Improvements (G)","G","GST Only","Active"]
["New in FIS","C100089","Leasehold Improvements - Glass - CAPITAL","7708G","7708-2","Capital Purchases - Leasehold Improvements (G)","G","GST Only","Active"]
["New in FIS","C100090","Leasehold Improvements - Handyman/Labour Services - CAPITAL","7708G","7708-2","Capital Purchases - Leasehold Improvements (G)","G","GST Only","Active"]
["New in FIS","C100091","Leasehold Improvements - HVAC - CAPITAL","7708G","7708-2","Capital Purchases - Leasehold Improvements (G)","G","GST Only","Active"]
["New in FIS","C100092","Leasehold Improvements - Insurance - CAPITAL","7708NT","7708-1","Capital Purchases - Leasehold Improvements (NT)","NT","No Tax","Active"]
["New in FIS","C100093","Leasehold Improvements - Interior Design - CAPITAL","7708G","7708-2","Capital Purchases - Leasehold Improvements (G)","G","GST Only","Active"]
["New in FIS","C100094","Leasehold Improvements - Landscaping & Irrigation - CAPITAL","7708G","7708-2","Capital Purchases - Leasehold Improvements (G)","G","GST Only","Active"]
["New in FIS","C100095","Leasehold Improvements - Lighting - CAPITAL","7708G","7708-2","Capital Purchases - Leasehold Improvements (G)","G","GST Only","Active"]
["New in FIS","C100096","Leasehold Improvements - Locating - CAPITAL","7708G","7708-2","Capital Purchases - Leasehold Improvements (G)","G","GST Only","Active"]
["New in FIS","C100097","Leasehold Improvements - Locksmith - CAPITAL","7708G","7708-2","Capital Purchases - Leasehold Improvements (G)","G","GST Only","Active"]
["New in FIS","C100098","Leasehold Improvements - Mechanical - CAPITAL","7708G","7708-2","Capital Purchases - Leasehold Improvements (G)","G","GST Only","Active"]
["New in FIS","C100099","Leasehold Improvements - Moving Services - CAPITAL","7708G","7708-2","Capital Purchases - Leasehold Improvements (G)","G","GST Only","Active"]
["New in FIS","C100100","Leasehold Improvements - Painting - CAPITAL","7708G","7708-2","Capital Purchases - Leasehold Improvements (G)","G","GST Only","Active"]
["New in FIS","C100101","Leasehold Improvements - Pest Control - CAPITAL","7708G","7708-2","Capital Purchases - Leasehold Improvements (G)","G","GST Only","Active"]
["New in FIS","C100102","Leasehold Improvements - Permits - CAPITAL","7708G","7708-2","Capital Purchases - Leasehold Improvements (G)","G","GST Only","Active"]
["New in FIS","C100103","Leasehold Improvements - Plumbing - CAPITAL","7708G","7708-2","Capital Purchases - Leasehold Improvements (G)","G","GST Only","Active"]
["New in FIS","C100104","Leasehold Improvements - Project Management - CAPITAL","7708G","7708-2","Capital Purchases - Leasehold Improvements (G)","G","GST Only","Active"]
["New in FIS","C100105","Leasehold Improvements - Remediation - CAPITAL","7708G","7708-2","Capital Purchases - Leasehold Improvements (G)","G","GST Only","Active"]
["New in FIS","C100106","Leasehold Improvements - Roof - CAPITAL","7708G","7708-2","Capital Purchases - Leasehold Improvements (G)","G","GST Only","Active"]
["New in FIS","C100107","Leasehold Improvements - Safety & Fire Protection - CAPITAL","7708G","7708-2","Capital Purchases - Leasehold Improvements (G)","G","GST Only","Active"]
["New in FIS","C100108","Leasehold Improvements - Signage - CAPITAL","7708GP","7708-3","Capital Purchases - Leasehold Improvements (GP)","GP","GST and PST","Active"]
["New in FIS","C100109","Leasehold Improvements - Waste Disposal - CAPITAL","7708G","7708-2","Capital Purchases - Leasehold Improvements (G)","G","GST Only","Active"]
["New in FIS","C100110","Leasehold Improvements - Window Coverings - CAPITAL","7708G","7708-2","Capital Purchases - Leasehold Improvements (G)","G","GST Only","Active"]
["New in FIS","C100111","Leasehold Improvements - Other - CAPITAL","7708G","7708-2","Capital Purchases - Leasehold Improvements (G)","G","GST Only","Active"]
["New in FIS","C100112","Furniture - Accessibility - CAPITAL","7706GP","7706-3","Capital Purchases - Furniture (GP)","GP","GST and PST","Active"]
["New in FIS","C100113","Furniture - CFI Discount - CAPITAL (PROCUREMENT ONLY)","7706GP","7706-3","Capital Purchases - Furniture (GP)","GP","GST and PST","Active"]
["New in FIS","C100114","Furniture - Installation - CAPITAL","7706G","7706-2","Capital Purchases - Furniture (G)","G","GST Only","Active"]
["New in FIS","C100115","Furniture - Moving Services - CAPITAL","7706G","7706-2","Capital Purchases - Furniture (G)","G","GST Only","Active"]
["New in FIS","C100116","Furniture - Office Furniture - CAPITAL","7706GP","7706-3","Capital Purchases - Furniture (GP)","GP","GST and PST","Active"]
["New in FIS","C100117","Furniture - Shelving & Storage - CAPITAL","7706GP","7706-3","Capital Purchases - Furniture (GP)","GP","GST and PST","Active"]
["New in FIS","C100118","Furniture - Other - CAPITAL","7706GP","7706-3","Capital Purchases - Furniture (GP)","GP","GST and PST","Active"]
["New in FIS","C100119","Equipment - Accessibility - CAPITAL","7707GP","7707-3","Capital Purchases - Equipment (GP)","GP","GST and PST","Active"]
["New in FIS","C100120","Equipment - Cables - CAPITAL","7707GP","7707-3","Capital Purchases - Equipment (GP)","GP","GST and PST","Active"]
["New in FIS","C100121","Equipment - CFI Discount - CAPITAL (PROCUREMENT ONLY)","7707GP","7707-3","Capital Purchases - Equipment (GP)","GP","GST and PST","Active"]
["New in FIS","C100122","Equipment - Equipment Rentals - CAPITAL","7707GP","7707-3","Capital Purchases - Equipment (GP)","GP","GST and PST","Active"]
["New in FIS","C100124","Equipment - Kitchen Large Appliances - CAPITAL","7707GP","7707-3","Capital Purchases - Equipment (GP)","GP","GST and PST","Active"]
["New in FIS","C100125","Equipment - Kitchen Small Appliances - CAPITAL","7707GP","7707-3","Capital Purchases - Equipment (GP)","GP","GST and PST","Active"]
["New in FIS","C100126","Equipment - Lab Equipment - CAPITAL","7707GP","7707-3","Capital Purchases - Equipment (GP)","GP","GST and PST","Active"]
["New in FIS","C100127","Equipment - Lighting - CAPITAL","7707GP","7707-3","Capital Purchases - Equipment (GP)","GP","GST and PST","Active"]
["New in FIS","C100129","Equipment - Phones - CAPITAL","7707GP","7707-3","Capital Purchases - Equipment (GP)","GP","GST and PST","Active"]
["New in FIS","C100130","Equipment - Safety & Fire Protection - CAPITAL","7707GP","7707-3","Capital Purchases - Equipment (GP)","GP","GST and PST","Active"]
["New in FIS","C100131","Equipment - Tools & Equipment - CAPITAL","7707GP","7707-3","Capital Purchases - Equipment (GP)","GP","GST and PST","Active"]
["New in FIS","C100132","Equipment - Window Coverings - CAPITAL","7707GP","7707-3","Capital Purchases - Equipment (GP)","GP","GST and PST","Active"]
["New in FIS","C100133","Equipment - Other - CAPITAL","7707GP","7707-3","Capital Purchases - Equipment (GP)","GP","GST and PST","Active"]
["New in FIS","C100134","Vehicles - Cars, Trucks, Vans - CAPITAL","7711GP","7711-3","Capital Purchases - Vehicles (GP)","GP","GST and PST","Active"]
["New in FIS","C100135","Vehicles - CFI Discount - CAPITAL (PROCUREMENT ONLY)","7711GP","7711-3","Capital Purchases - Vehicles (GP)","GP","GST and PST","Active"]
["New in FIS","C100136","Vehicles - Leases - CAPITAL","7711GP","7711-3","Capital Purchases - Vehicles (GP)","GP","GST and PST","Active"]
["New in FIS","C100137","Vehicles - Recreation - CAPITAL","7711GP","7711-3","Capital Purchases - Vehicles (GP)","GP","GST and PST","Active"]
["New in FIS","C100138","Vehicles - Other - CAPITAL","7711GP","7711-3","Capital Purchases - Vehicles (GP)","GP","GST and PST","Active"]
["New in FIS","C100140","Computing Equipment - Cables - CAPITAL","7702GP","7702-3","Capital Purchases - Computer Equipment (GP)","GP","GST and PST","Active"]
["New in FIS","C100141","Computing Equipment - CFI Discount - CAPITAL (PROCUREMENT ONLY)","7702GP","7702-3","Capital Purchases - Computer Equipment (GP)","GP","GST and PST","Active"]
["New in FIS","C100142","Computing Equipment - Computer Monitors - CAPITAL","7702GP","7702-3","Capital Purchases - Computer Equipment (GP)","GP","GST and PST","Active"]
["New in FIS","C100143","Computing Equipment - Computers - CAPITAL","7702GP","7702-3","Capital Purchases - Computer Equipment (GP)","GP","GST and PST","Active"]
["New in FIS","C100145","Computing Equipment - Other - CAPITAL","7702GP","7702-3","Capital Purchases - Computer Equipment (GP)","GP","GST and PST","Active"]
["New in FIS","C100146","Computing Equipment - Other - CAPITAL","7702GP","7702-3","Capital Purchases - Computer Equipment (GP)","GP","GST and PST","Active"]
["New in FIS","C100147","Network and Server Equipment - Installation - CAPITAL","7703GP","7703-3","Capital Purchases - Network and Server Equipment (GP)","GP","GST and PST","Active"]
["New in FIS","C100148","Network and Server Equipment - Cables - CAPITAL","7703G","7703-2","Capital Purchases - Network and Server Equipment (G)","G","GST Only","Active"]
["New in FIS","C100149","Network and Server Equipment - Cell & Landline - CAPITAL","7703GP","7703-3","Capital Purchases - Network and Server Equipment (GP)","GP","GST and PST","Active"]
["New in FIS","C100150","Network and Server Equipment - Servers - CAPITAL","7703GP","7703-3","Capital Purchases - Network and Server Equipment (GP)","GP","GST and PST","Active"]
["New in FIS","C100151","Network and Server Equipment - Storage - CAPITAL","7703GP","7703-3","Capital Purchases - Network and Server Equipment (GP)","GP","GST and PST","Active"]
["New in FIS","C100152","Network and Server Equipment - Other - CAPITAL","7703GP","7703-3","Capital Purchases - Network and Server Equipment (GP)","GP","GST and PST","Active"]
["New in FIS","C100153","Computer Software - Applications & Cloud Services - CAPITAL","7704GP","7704-3","Capital Purchases - Computer Software (GP)","GP","GST and PST","Active"]
["New in FIS","C100154","Computer Software - CFI Discount - CAPITAL (PROCUREMENT ONLY)","7704GP","7704-3","Capital Purchases - Computer Software (GP)","GP","GST and PST","Active"]
["New in FIS","C100155","Computer Software - Consulting Services - CAPITAL","7704G","7704-2","Capital Purchases - Computer Software (G)","G","GST Only","Active"]
["New in FIS","C100156","Computer Software - Website - CAPITAL","7704G","7704-2","Capital Purchases - Computer Software (G)","G","GST Only","Active"]
["New in FIS","C100157","Computer Software - Other - CAPITAL","7704GP","7704-3","Capital Purchases - Computer Software (GP)","GP","GST and PST","Active"]
["New in FIS","C100158","Enterprise Systems - Applications & Cloud Services - CAPITAL","7705GP","7705-3","Capital Purchases - Enterprise Systems (GP)","GP","GST and PST","Active"]
["New in FIS","C100159","Enterprise Systems - Consulting - CAPITAL","7705G","7705-2","Capital Purchases - Enterprise Systems (G)","G","GST Only","Active"]
["New in FIS","C100160","Enterprise Systems - Project Management - CAPITAL","7705G","7705-2","Capital Purchases - Enterprise Systems (G)","G","GST Only","Active"]
["New in FIS","C100161","Enterprise Systems - Other - CAPITAL","7705GP","7705-3","Capital Purchases - Enterprise Systems (GP)","GP","GST and PST","Active"]
["New in FIS","C100162","Site Improvements - Other - CAPITAL","7710G","7710-2","Capital Purchases - Site Improvements (Land) (G)","G","GST Only","Active"]
["New in FIS","B100005","Supplies - Safety (BLANKET PO ONLY)","6500G","6500-2","Supplies (G)","G","GST Only","Active"]
["New in FIS","B100006","Supplies - Compressed Gases / Cylinders","6500G","6500-2","Supplies (G)","G","GST Only","Active"]
["New in FIS","B100007","Supplies - Freight (BLANKET PO ONLY)","6500G","6500-2","Supplies (G)","G","GST Only","Active"]
["New in FIS","B100013","Supplies - Books (BLANKET PO ONLY)","6500G","6500-2","Supplies (G)","G","GST Only","Active"]
["New in FIS","B100014","Supplies - First Aid (BLANKET PO ONLY)","6500GP","6500-3","Supplies (GP)","GP","GST and PST","Active"]
["New in FIS","B100015","Supplies - Equipment (Under $5k Non Capital) (BLANKET PO ONLY)","6500GP","6500-3","Supplies (GP)","GP","GST and PST","Active"]
["New in FIS","B100016","Supplies - Foodservice Smallwares (BLANKET PO ONLY)","6500GP","6500-3","Supplies (GP)","GP","GST and PST","Active"]
["New in FIS","B100017","Supplies - Laboratory (BLANKET PO ONLY)","6500GP","6500-3","Supplies (GP)","GP","GST and PST","Active"]
["New in FIS","B100018","Services - Other (BLANKET PO ONLY)","6000G","6000-2","Services (G)","G","GST Only","Active"]
["New in FIS","B100019","Services - Janitorial (BLANKET PO ONLY)","6000G","6000-2","Services (G)","G","GST Only","Active"]
["New in FIS","B100020","Services - Recruitment / Agents Commission (BLANKET PO ONLY)","6000G","6000-2","Services (G)","G","GST Only","Active"]
["New in FIS","B100021","Services - Security (BLANKET PO ONLY)","6000G","6000-2","Services (G)","G","GST Only","Active"]
["New in FIS","B100023","Services - Laundry / Linen (BLANKET PO ONLY)","6000GP","6000-3","Services (GP)","GP","GST and PST","Active"]
["New in FIS","B100027","Advertising - Other (BLANKET PO ONLY)","6010G","6010-2","Advertising & Promotion (G)","G","GST Only","Active"]
["New in FIS","B100028","Advertising - Sponsorships and Promotions (BLANKET PO ONLY)","6010G","6010-2","Advertising & Promotion (G)","G","GST Only","Active"]
["New in FIS","B100029","Advertising - Web (BLANKET PO ONLY)","6010G","6010-2","Advertising & Promotion (G)","G","GST Only","Active"]
["New in FIS","B100031","Software - Applications & Cloud Services (BLANKET PO ONLY)","6045GP","6045-3","Software (GPI)","GPI","GST and PST, incl. int'l","Active"]
["New in FIS","B100032","Repair and Maintenance - Equipment (BLANKET PO ONLY)","6300GP","6300-3","Repair and Maintenance - Furniture & Equipment (GP)","GP","GST and PST","Active"]
["New in FIS","B100033","Repair and Maintenance - Safety and Fire Protection (BLANKET PO ONLY)","6300GP","6300-3","Repair and Maintenance - Furniture & Equipment (GP)","GP","GST and PST","Active"]
["New in FIS","B100034","Repair and Maintenance - Furniture (BLANKET PO ONLY)","6300GP","6300-3","Repair and Maintenance - Furniture & Equipment (GP)","GP","GST and PST","Active"]
["New in FIS","B100035","Repair and Maintenance - Vehicles Operational (BLANKET PO ONLY)","6305GP","6305-3","Repair and Maintenance - Vehicles (GP)","GP","GST and PST","Active"]
["New in FIS","B100036","Repair and Maintenance - Elevators (BLANKET PO ONLY)","6310G","6310-2","Repair and Maintenance - Facilities (G)","G","GST Only","Active"]
["New in FIS","B100037","Repair and Maintenance - Labour (BLANKET PO ONLY)","6310G","6310-2","Repair and Maintenance - Facilities (G)","G","GST Only","Active"]
["New in FIS","B100047","Rental - Facilities (BLANKET PO ONLY)","6325G","6325-2","Rental and Lease (G)","G","GST Only","Active"]
["New in FIS","B100048","Rental - Delivery (BLANKET PO ONLY)","6325G","6325-2","Rental and Lease (G)","G","GST Only","Active"]
["New in FIS","B100049","Rental - Equipment (BLANKET PO ONLY)","6325GP","6325-3","Rental and Lease (GP)","GP","GST and PST","Active"]
["New in FIS","B100050","Lease - Equipment (BLANKET PO ONLY)","6325GP","6325-3","Rental and Lease (GP)","GP","GST and PST","Active"]
["New in FIS","B100053","Utilities - Hydro (BLANKET PO ONLY)","6400G","6400-2","Utilities (G)","G","GST Only","Active"]
["New in FIS","B100054","Utilities - Garbage Removal (BLANKET PO ONLY)","6400G","6400-2","Utilities (G)","G","GST Only","Active"]
["New in FIS","B100055","Utilities - Natural Gas (BLANKET PO ONLY)","6400GP","6400-3","Utilities (GP)","GP","GST and PST","Active"]
["New in FIS","B100056","Postage (BLANKET PO ONLY)","6520G","6520-2","Postage, Courier, and Freight (G)","G","GST Only","Active"]
["New in FIS","B100057","Courier (BLANKET PO ONLY)","6520G","6520-2","Postage, Courier, and Freight (G)","G","GST Only","Active"]
["New in FIS","B100061","Cost of Goods Sold - Institutional Resalable items (GST) (BLANKET PO ONLY)","6600G","6600-2","Cost of Goods Sold (G)","G","GST Only","Active"]
["New in FIS","B100062","Cost of Goods Sold - Foodservice Paper/Plastic (BLANKET PO ONLY)","6600G","6600-2","Cost of Goods Sold (G)","G","GST Only","Active"]
["New in FIS","B100063","Cost of Goods Sold - Food & Beverage (GST) (BLANKET PO ONLY)","6600G","6600-2","Cost of Goods Sold (G)","G","GST Only","Active"]
["New in FIS","B100064","Cost of Goods Sold - Liquor Discovery Room (BLANKET PO ONLY)","6600G","6600-2","Cost of Goods Sold (G)","G","GST Only","Active"]
["New in FIS","B100065","Cost of Goods Sold - Campus Store General Merchandise (BLANKET PO ONLY)","6600G","6600-2","Cost of Goods Sold (G)","G","GST Only","Active"]
["New in FIS","B100066","Cost of Goods Sold - Freight (BLANKET PO ONLY)","6600G","6600-2","Cost of Goods Sold (G)","G","GST Only","Active"]
["New in FIS","B100067","Cost of Goods Sold - Institutional Resalable items (GST/PST) (BLANKET PO ONLY)","6600GP","6600-3","Cost of Goods Sold (GP)","GP","GST and PST","Active"]
["New in FIS","B100068","Cost of Goods Sold - Foodservice Disposables/Cleaning (BLANKET PO ONLY)","6600GP","6600-3","Cost of Goods Sold (GP)","GP","GST and PST","Active"]
["New in FIS","B100069","Cost of Goods Sold - Food & Beverage (GST/PST) (BLANKET PO ONLY)","6600GP","6600-3","Cost of Goods Sold (GP)","GP","GST and PST","Active"]
["Grand Total"]

{"sheet":"PRODUCTS","index":5,"n_rows":347,"n_cols":10,"rows_kept":347,"cut":false,"hidden":true,"merged":[]}
["Product ID","Product description","Product group","Costs","Costs (T)","Taxacctgrp","Taxacctgrp (T)","Status (T)","Amount use","Obj C"]
["A100001","Services - Other","6000G","6000-2","Services (G)","G","GST Only","Active",true,"New in FIS"]
["A100002","Services - Janitorial","6000G","6000-2","Services (G)","G","GST Only","Active",true,"New in FIS"]
["A100003","Services - Recruitment / Agents Commission","6000G","6000-2","Services (G)","G","GST Only","Active",true,"New in FIS"]
["A100004","Services - Security","6000G","6000-2","Services (G)","G","GST Only","Active",true,"New in FIS"]
["A100005","Services - Laundry / Linen","6000GP","6000-3","Services (GP)","GP","GST and PST","Active",true,"New in FIS"]
["A100006","Fee for Service Individual - Other (No Tax)","6005NT","6005-1","Fee for Service - Individual / Sole Proprietor (NT)","NT","No Tax","Active",true,239]
["A100007","Fee for Service Individual - Mariner Coaching Services","6005NT","6005-1","Fee for Service - Individual / Sole Proprietor (NT)","NT","No Tax","Active",true,239]
["A100008","Fee for Service Individual - Music Tutor","6005NT","6005-1","Fee for Service - Individual / Sole Proprietor (NT)","NT","No Tax","Active",true,239]
["A100009","Fee for Service Individual - Artist, Model and Musician","6005NT","6005-1","Fee for Service - Individual / Sole Proprietor (NT)","NT","No Tax","Active",true,239]
["A100010","Fee for Service Individual - Guest Speaker","6005NT","6005-1","Fee for Service - Individual / Sole Proprietor (NT)","NT","No Tax","Active",true,239]
["A100011","Fee for Service Individual - Translation and Interpreting","6005NT","6005-1","Fee for Service - Individual / Sole Proprietor (NT)","NT","No Tax","Active",true,239]
["A100012","Fee for Service Individual - Photography","6005NT","6005-1","Fee for Service - Individual / Sole Proprietor (NT)","NT","No Tax","Active",true,239]
["A100013","Fee for Service Individual - Graphic Design","6005NT","6005-1","Fee for Service - Individual / Sole Proprietor (NT)","NT","No Tax","Active",true,239]
["A100014","Fee for Service Individual - Thesis Supervision","6005NT","6005-1","Fee for Service - Individual / Sole Proprietor (NT)","NT","No Tax","Active",true,239]
["A100015","Fee for Service Individual - Other (GST)","6005G","6005-2","Fee for Service - Individual / Sole Proprietor (G)","G","GST Only","Active",true,"New in FIS"]
["A100016","Fee for Service Individual  - Consulting and Project Management","6005G","6005-2","Fee for Service - Individual / Sole Proprietor (G)","G","GST Only","Active",true,"New in FIS"]
["A100017","Fee for Service Individual - Workshop / Course Delivery","6005G","6005-2","Fee for Service - Individual / Sole Proprietor (G)","G","GST Only","Active",true,"New in FIS"]
["A100018","Advertising - Fee Starbucks","6010NT","6010-1","Advertising & Promotion (NT)","NT","No Tax","Active",true,401]
["A100019","Advertising - Other","6010G","6010-2","Advertising & Promotion (G)","G","GST Only","Active",true,"New in FIS"]
["A100020","Advertising - Sponsorships and Promotions","6010G","6010-2","Advertising & Promotion (G)","G","GST Only","Active",true,"New in FIS"]
["A100021","Advertising - Web","6010G","6010-2","Advertising & Promotion (G)","G","GST Only","Active",true,"New in FIS"]
["A100022","Advertising - Printed Products","6010GP","6010-3","Advertising & Promotion (GP)","GP","GST and PST","Active",false,"New in FIS"]
["A100023","Advertising - Special Events","6010GP","6010-3","Advertising & Promotion (GP)","GP","GST and PST","Active",true,"New in FIS"]
["A100024","Hospitality - External","6015G","6015-2","Hospitality - External (G)","G","GST Only","Active",true,"New in FIS"]
["A100025","Fees and Memberships - Institutional","6020NT","6020-1","Fees and Memberships - Institutional (NT)","NT","No Tax","Active",true,494]
["A100026","Fees and Memberships - Royalties","6020NT","6020-1","Fees and Memberships - Institutional (NT)","NT","No Tax","Active",true,494]
["A100027","Fees and Memberships - Employee","6025G","6025-2","Fees and Memberships - Employee (G)","G","GST Only","Active",true,"New in FIS"]
["A100028","Professional fees - Technical / Consulting","6030G","6030-2","Professional and Consulting Fees (G)","G","GST Only","Active",true,"New in FIS"]
["A100029","Professional fees - Audit / Accounting","6030G","6030-2","Professional and Consulting Fees (G)","G","GST Only","Active",true,"New in FIS"]
["A100030","Professional fees  - Legal","6030GP","6030-3","Professional and Consulting Fees (GP)","GP","GST and PST","Active",true,"New in FIS"]
["A100031","Grants Distributed to External Agencies","6040NT","6040-1","Payments to Service Partners (NT)","NT","No Tax","Active",true,598]
["A100032","Travel - Employee - Out of Country","6100NT","6100-1","Travel - Employee (NT)","NT","No Tax","Active",true,420]
["A100033","Travel - Employee - Other","6100G","6100-2","Travel - Employee (G)","G","GST Only","Active",true,"New in FIS"]
["A100034","Travel - Employee - Airfare","6100G","6100-2","Travel - Employee (G)","G","GST Only","Active",true,"New in FIS"]
["A100035","Travel - Employee - Vehicle Rental","6100GP","6100-3","Travel - Employee (GP)","GP","GST and PST","Active",true,"New in FIS"]
["A100036","Travel - Employee - Hotel Accommodation","6100M","6100-5","Travel - Employee (M)","M","GST, PST8%, MRDT","Active",true,"New in FIS"]
["A100037","Travel - Non-Employee - Out of Country","6105NT","6105-1","Travel - Non Employee (NT)","NT","No Tax","Active",true,425]
["A100038","Travel - Non-Employee - Other","6105G","6105-2","Travel - Non Employee (G)","G","GST Only","Active",true,"New in FIS"]
["A100039","Travel - Non-Employee - Airfare","6105G","6105-2","Travel - Non Employee (G)","G","GST Only","Active",true,"New in FIS"]
["A100040","Travel - Non-Employee - Vehicle Rental","6105GP","6105-3","Travel - Non Employee (GP)","GP","GST and PST","Active",true,"New in FIS"]
["A100041","Travel - Non-Employee - Hotel Accommodation","6105M","6105-5","Travel - Non Employee (M)","M","GST, PST8%, MRDT","Active",true,"New in FIS"]
["A100042","Training - Employee - Professional Development","6110G","6110-2","Training - Employee (G)","G","GST Only","Active",true,"New in FIS"]
["A100043","Training - Institutional - Certification","6115G","6115-2","Training - Institutional (G)","G","GST Only","Active",true,"New in FIS"]
["A100044","Repair and Maintenance - Equipment","6300GP","6300-3","Repair and Maintenance - Furniture & Equipment (GP)","GP","GST and PST","Active",true,"New in FIS"]
["A100045","Repair and Maintenance - Safety and Fire Protection","6300GP","6300-3","Repair and Maintenance - Furniture & Equipment (GP)","GP","GST and PST","Active",true,"New in FIS"]
["A100046","Repair and Maintenance - Furniture","6300GP","6300-3","Repair and Maintenance - Furniture & Equipment (GP)","GP","GST and PST","Active",true,"New in FIS"]
["A100047","Repair and Maintenance - Vehicles Operational","6305GP","6305-3","Repair and Maintenance - Vehicles (GP)","GP","GST and PST","Active",true,"New in FIS"]
["A100048","Repair and Maintenance - Facilities Other","6310GP","6310-3","Repair and Maintenance - Facilities (GP)","GP","GST and PST","Active",true,451]
["A100049","Repair and Maintenance - Elevators","6310G","6310-2","Repair and Maintenance - Facilities (G)","G","GST Only","Active",true,"New in FIS"]
["A100050","Repair and Maintenance - Refrigeration","6310GP","6310-3","Repair and Maintenance - Facilities (GP)","GP","GST and PST","Active",true,451]
["A100051","Repair and Maintenance - HVAC","6310GP","6310-3","Repair and Maintenance - Facilities (GP)","GP","GST and PST","Active",true,451]
["A100052","Repair and Maintenance - Electrical","6310GP","6310-3","Repair and Maintenance - Facilities (GP)","GP","GST and PST","Active",true,451]
["A100053","Repair and Maintenance - Plumbing","6310GP","6310-3","Repair and Maintenance - Facilities (GP)","GP","GST and PST","Active",true,451]
["A100054","Repair and Maintenance - Preventative Maintenance","6310GP","6310-3","Repair and Maintenance - Facilities (GP)","GP","GST and PST","Active",true,451]
["A100055","Repair and Maintenance - Fabric Maintenance","6310GP","6310-3","Repair and Maintenance - Facilities (GP)","GP","GST and PST","Active",true,451]
["A100056","Repair and Maintenance - Irrigation","6310GP","6310-3","Repair and Maintenance - Facilities (GP)","GP","GST and PST","Active",true,451]
["A100057","Vehicle Fuel","6320G","6320-2","Vehicle Fuel (G)","G","GST Only","Active",true,506]
["A100058","Rental - Facilities","6325G","6325-2","Rental and Lease (G)","G","GST Only","Active",true,"New in FIS"]
["A100059","Rental - Inter Library Loan","6325G","6325-2","Rental and Lease (G)","G","GST Only","Active",true,"New in FIS"]
["A100060","Lease - Facilities","6325G","6325-2","Rental and Lease (G)","G","GST Only","Active",true,"New in FIS"]
["A100061","Rental - Institutional Vehicle","6325GP","6325-3","Rental and Lease (GP)","GP","GST and PST","Active",true,"New in FIS"]
["A100062","Lease - Institutional Vehicle","6325GP","6325-3","Rental and Lease (GP)","GP","GST and PST","Active",true,"New in FIS"]
["A100063","Rental - Equipment","6325GP","6325-3","Rental and Lease (GP)","GP","GST and PST","Active",true,"New in FIS"]
["A100064","Lease - Equipment","6325GP","6325-3","Rental and Lease (GP)","GP","GST and PST","Active",true,"New in FIS"]
["A100065","Utilities - Water/Sewer","6400NT","6400-1","Utilities (NT)","NT","No Tax","Active",true,470]
["A100066","Utilities - Property Tax","6400NT","6400-1","Utilities (NT)","NT","No Tax","Active",true,470]
["A100067","Utilities - Hydro","6400G","6400-2","Utilities (G)","G","GST Only","Active",true,"New in FIS"]
["A100069","Utilities - Garbage Removal","6400G","6400-2","Utilities (G)","G","GST Only","Active",true,"New in FIS"]
["A100071","Utilities - Natural Gas","6400GP","6400-3","Utilities (GP)","GP","GST and PST","Active",true,"New in FIS"]
["A100072","Utilities - Heating Fuel","6400GP","6400-3","Utilities (GP)","GP","GST and PST","Active",true,"New in FIS"]
["A100073","Phone - Equipment","6405GP","6405-3","Phone (GP)","GP","GST and PST","Active",true,"New in FIS"]
["A100074","Phone - Repairs","6405GP","6405-3","Phone (GP)","GP","GST and PST","Active",true,"New in FIS"]
["A100075","Phone - Cell Phone and Land Line Charges","6405GP","6405-3","Phone (GP)","GP","GST and PST","Active",true,"New in FIS"]
["A100076","Insurance Premiums - Institutional","6410NT","6410-1","Insurance (NT)","NT","No Tax","Active",true,550]
["A100077","Insurance Premiums - Medical","6410NT","6410-1","Insurance (NT)","NT","No Tax","Active",true,550]
["A100078","Supplies - Instruction Related Consumable","6500G","6500-2","Supplies (G)","G","GST Only","Active",false,"New in FIS"]
["A100079","Supplies - Other","6500GP","6500-3","Supplies (GP)","GP","GST and PST","Active",false,"New in FIS"]
["A100080","Supplies - First Aid","6500GP","6500-3","Supplies (GP)","GP","GST and PST","Active",false,"New in FIS"]
["A100081","Supplies - Equipment (Under $5k Non Capital)","6500GP","6500-3","Supplies (GP)","GP","GST and PST","Active",false,"New in FIS"]
["A100082","Supplies - Furniture (Under $5k Non Capital)","6500GP","6500-3","Supplies (GP)","GP","GST and PST","Active",false,"New in FIS"]
["A100083","Supplies - Foodservice Smallwares","6500GP","6500-3","Supplies (GP)","GP","GST and PST","Active",true,"New in FIS"]
["A100084","Supplies - Office / Stationery","6505GP","6505-3","Office Supplies and Stationery (GP)","GP","GST and PST","Active",false,"New in FIS"]
["A100085","Software - Applications & Cloud Services","6045GP","6045-3","Software (GPI)","GPI","GST and PST, incl. int'l","Active",true,"New in FIS"]
["A100088","Printing & Duplicating - External","6515GP","6515-3","Printing and Duplicating (GP)","GP","GST and PST","Active",true,535]
["A100089","Postage","6520G","6520-2","Postage, Courier, and Freight (G)","G","GST Only","Active",true,"New in FIS"]
["A100090","Courier","6520G","6520-2","Postage, Courier, and Freight (G)","G","GST Only","Active",true,"New in FIS"]
["A100091","Cost of Goods Sold - Campus Store General Merchandise (No Tax)","6600NT","6600-1","Cost of Goods Sold (NT)","NT","No Tax","Active",true,416]
["A100092","Cost of Goods Sold - Food & Beverage (No Tax)","6600NT","6600-1","Cost of Goods Sold (NT)","NT","No Tax","Active",true,416]
["A100093","Cost of Goods Sold - Campus Store Non-Merchandise (No Tax)","6600NT","6600-1","Cost of Goods Sold (NT)","NT","No Tax","Active",true,416]
["A100094","Cost of Goods Sold - Institutional Resalable items (GST)","6600G","6600-2","Cost of Goods Sold (G)","G","GST Only","Active",true,"New in FIS"]
["A100095","Cost of Goods Sold - Foodservice Paper/Plastic","6600G","6600-2","Cost of Goods Sold (G)","G","GST Only","Active",true,"New in FIS"]
["A100096","Cost of Goods Sold - Food & Beverage (GST)","6600G","6600-2","Cost of Goods Sold (G)","G","GST Only","Active",true,"New in FIS"]
["A100097","Cost of Goods Sold - Liquor Discovery Room","6600G","6600-2","Cost of Goods Sold (G)","G","GST Only","Active",true,"New in FIS"]
["A100099","Cost of Goods Sold - Campus Store General Merchandise","6600G","6600-2","Cost of Goods Sold (G)","G","GST Only","Active",true,"New in FIS"]
["A100100","Cost of Goods Sold - Campus Store Non-Merchandise (GST)","6600G","6600-2","Cost of Goods Sold (G)","G","GST Only","Active",true,"New in FIS"]
["A100101","Cost of Goods Sold - Campus Store Textbooks","6600G","6600-2","Cost of Goods Sold (G)","G","GST Only","Active",true,"New in FIS"]
["A100102","Cost of Goods Sold - Campus Store Trade","6600G","6600-2","Cost of Goods Sold (G)","G","GST Only","Active",true,"New in FIS"]
["A100103","Cost of Goods Sold - Institutional Resalable items (GST & PST)","6600GP","6600-3","Cost of Goods Sold (GP)","GP","GST and PST","Active",true,"New in FIS"]
["A100104","Cost of Goods Sold - Foodservice Disposables/Cleaning","6600GP","6600-3","Cost of Goods Sold (GP)","GP","GST and PST","Active",true,"New in FIS"]
["A100105","Cost of Goods Sold - Food & Beverage (GST & PST)","6600GP","6600-3","Cost of Goods Sold (GP)","GP","GST and PST","Active",true,"New in FIS"]
["A100106","Cost of Goods Sold - Campus Store Non-Merchandise (GST & PST)","6600GP","6600-3","Cost of Goods Sold (GP)","GP","GST and PST","Active",true,"New in FIS"]
["A100107","Supplies - Computer Equipment","6500GP","6500-3","Supplies (GP)","GP","GST and PST","Active",false,"New in FIS"]
["A100108","Supplies - Audio Visual Equipment","6500GP","6500-3","Supplies (GP)","GP","GST and PST","Active",false,"New in FIS"]
["A100109","Travel - Non-Employee - Bus Passes","6105NT","6105-1","Travel - Non Employee (NT)","NT","No Tax","Active",true,425]
["A100112","Supplies - Medical (For Health & Wellness Centre Only)","6500G","6500-2","Supplies (G)","G","GST Only","Active",true,"New in FIS"]
["A100113","Supplies - Safety","6500G","6500-2","Supplies (G)","G","GST Only","Active",false,"New in FIS"]
["A100115","Deposit - Pay Deposit (PROCUREMENT ONLY)","1800","1800","Deposits - Supplier",null,null,"Active",true,"New in FIS"]
["A100116","Deposit - Apply Deposit (PROCUREMENT ONLY)","1800","1800","Deposits - Supplier",null,null,"Active",true,"New in FIS"]
["A100117","Supplies - Freight","6500G","6500-2","Supplies (G)","G","GST Only","Active",true,"New in FIS"]
["A100119","Repair and Maintenance - Labour","6310G","6310-2","Repair and Maintenance - Facilities (G)","G","GST Only","Active",true,"New in FIS"]
["A100120","Rental - Delivery","6325G","6325-2","Rental and Lease (G)","G","GST Only","Active",true,"New in FIS"]
["A100121","Supplies - Books","6500G","6500-2","Supplies (G)","G","GST Only","Active",false,"New in FIS"]
["A100122","Cost of Goods Sold - Container Deposit","6600NT","6600-1","Cost of Goods Sold (NT)","NT","No Tax","Active",true,416]
["A100123","Cost of Goods Sold - Freight","6600G","6600-2","Cost of Goods Sold (G)","G","GST Only","Active",true,"New in FIS"]
["A100124","Cost of Goods Sold - Freight Campus Store","6600G","6600-2","Cost of Goods Sold (G)","G","GST Only","Active",true,"New in FIS"]
["A100126","Repair and Maintenance - Computer Equipment","6300GP","6300-3","Repair and Maintenance - Furniture & Equipment (GP)","GP","GST and PST","Active",true,"New in FIS"]
["A100128","Software - Library Infrastructure Systems (LIBRARY ONLY)","6045GP","6045-3","Software (GPI)","GPI","GST and PST, incl. int'l","Active",true,"New in FIS"]
["A100129","Software - Digital Research Infrastructure","6045GP","6045-3","Software (GPI)","GPI","GST and PST, incl. int'l","Active",true,"New in FIS"]
["A100130","Supplies - Laboratory","6500GP","6500-3","Supplies (GP)","GP","GST and PST","Active",false,"New in FIS"]
["B100001","Supplies - Other (BLANKET PO ONLY)","6500GP","6500-3","Supplies (GP)","GP","GST and PST","Active",false,"New in FIS"]
["B100002","Supplies - Medical (BLANKET PO ONLY)","6500G","6500-2","Supplies (G)","G","GST Only","Active",false,"New in FIS"]
["B100003","Supplies - Instruction Related Consumables (BLANKET PO ONLY)","6500G","6500-2","Supplies (G)","G","GST Only","Active",false,"New in FIS"]
["B100004","Supplies - Purified Water Jugs (BLANKET PO ONLY)","6500NT","6500-1","Supplies (NT)","NT","No Tax","Active",false,400]
["B100005","Supplies - Safety (BLANKET PO ONLY)","6500G","6500-2","Supplies (G)","G","GST Only","Active",false,"New in FIS"]
["B100006","Supplies - Compressed Gases / Cylinders","6500G","6500-2","Supplies (G)","G","GST Only","Active",false,"New in FIS"]
["B100007","Supplies - Freight (BLANKET PO ONLY)","6500G","6500-2","Supplies (G)","G","GST Only","Active",false,"New in FIS"]
["B100013","Supplies - Books (BLANKET PO ONLY)","6500G","6500-2","Supplies (G)","G","GST Only","Active",false,"New in FIS"]
["B100014","Supplies - First Aid (BLANKET PO ONLY)","6500GP","6500-3","Supplies (GP)","GP","GST and PST","Active",false,"New in FIS"]
["B100015","Supplies - Equipment (Under $5k Non Capital) (BLANKET PO ONLY)","6500GP","6500-3","Supplies (GP)","GP","GST and PST","Active",false,"New in FIS"]
["B100016","Supplies - Foodservice Smallwares (BLANKET PO ONLY)","6500GP","6500-3","Supplies (GP)","GP","GST and PST","Active",false,"New in FIS"]
["B100017","Supplies - Laboratory (BLANKET PO ONLY)","6500GP","6500-3","Supplies (GP)","GP","GST and PST","Active",false,"New in FIS"]
["B100018","Services - Other (BLANKET PO ONLY)","6000G","6000-2","Services (G)","G","GST Only","Active",false,"New in FIS"]
["B100019","Services - Janitorial (BLANKET PO ONLY)","6000G","6000-2","Services (G)","G","GST Only","Active",false,"New in FIS"]
["B100020","Services - Recruitment / Agents Commission (BLANKET PO ONLY)","6000G","6000-2","Services (G)","G","GST Only","Active",false,"New in FIS"]
["B100021","Services - Security (BLANKET PO ONLY)","6000G","6000-2","Services (G)","G","GST Only","Active",false,"New in FIS"]
["B100022","Services - Program Development (BSN) (BLANKET PO ONLY)","6000NT","6000-1","Services (NT)","NT","No Tax","Active",false,409]
["B100023","Services - Laundry / Linen (BLANKET PO ONLY)","6000GP","6000-3","Services (GP)","GP","GST and PST","Active",false,"New in FIS"]
["B100024","Fee for Service Individual - Other (BLANKET PO ONLY)","6005NT","6005-1","Fee for Service - Individual / Sole Proprietor (NT)","NT","No Tax","Active",false,239]
["B100025","Fee for Service Individual - Music Tutor (BLANKET PO ONLY)","6005NT","6005-1","Fee for Service - Individual / Sole Proprietor (NT)","NT","No Tax","Active",false,239]
["B100026","Advertising - Fee Starbucks (BLANKET PO ONLY)","6010NT","6010-1","Advertising & Promotion (NT)","NT","No Tax","Active",false,401]
["B100027","Advertising - Other (BLANKET PO ONLY)","6010G","6010-2","Advertising & Promotion (G)","G","GST Only","Active",false,"New in FIS"]
["B100028","Advertising - Sponsorships and Promotions (BLANKET PO ONLY)","6010G","6010-2","Advertising & Promotion (G)","G","GST Only","Active",false,"New in FIS"]
["B100029","Advertising - Web (BLANKET PO ONLY)","6010G","6010-2","Advertising & Promotion (G)","G","GST Only","Active",false,"New in FIS"]
["B100030","Fees and Memberships - Royalties (BLANKET PO ONLY)","6020NT","6020-1","Fees and Memberships - Institutional (NT)","NT","No Tax","Active",false,494]
["B100031","Software - Applications & Cloud Services (BLANKET PO ONLY)","6045GP","6045-3","Software (GPI)","GPI","GST and PST, incl. int'l","Active",false,"New in FIS"]
["B100032","Repair and Maintenance - Equipment (BLANKET PO ONLY)","6300GP","6300-3","Repair and Maintenance - Furniture & Equipment (GP)","GP","GST and PST","Active",false,"New in FIS"]
["B100033","Repair and Maintenance - Safety and Fire Protection (BLANKET PO ONLY)","6300GP","6300-3","Repair and Maintenance - Furniture & Equipment (GP)","GP","GST and PST","Active",false,"New in FIS"]
["B100034","Repair and Maintenance - Furniture (BLANKET PO ONLY)","6300GP","6300-3","Repair and Maintenance - Furniture & Equipment (GP)","GP","GST and PST","Active",false,"New in FIS"]
["B100035","Repair and Maintenance - Vehicles Operational (BLANKET PO ONLY)","6305GP","6305-3","Repair and Maintenance - Vehicles (GP)","GP","GST and PST","Active",false,"New in FIS"]
["B100036","Repair and Maintenance - Elevators (BLANKET PO ONLY)","6310G","6310-2","Repair and Maintenance - Facilities (G)","G","GST Only","Active",false,"New in FIS"]
["B100037","Repair and Maintenance - Labour (BLANKET PO ONLY)","6310G","6310-2","Repair and Maintenance - Facilities (G)","G","GST Only","Active",false,"New in FIS"]
["B100038","Repair and Maintenance - Facilities Other (BLANKET PO ONLY)","6310GP","6310-3","Repair and Maintenance - Facilities (GP)","GP","GST and PST","Active",false,451]
["B100039","Repair and Maintenance - Refrigeration (BLANKET PO ONLY)","6310GP","6310-3","Repair and Maintenance - Facilities (GP)","GP","GST and PST","Active",false,451]
["B100040","Repair and Maintenance - HVAC (BLANKET PO ONLY)","6310GP","6310-3","Repair and Maintenance - Facilities (GP)","GP","GST and PST","Active",false,451]
["B100041","Repair and Maintenance - Electrical (BLANKET PO ONLY)","6310GP","6310-3","Repair and Maintenance - Facilities (GP)","GP","GST and PST","Active",false,451]
["B100042","Repair and Maintenance - Plumbing (BLANKET PO ONLY)","6310GP","6310-3","Repair and Maintenance - Facilities (GP)","GP","GST and PST","Active",false,451]
["B100043","Repair and Maintenance - Preventative Maintenance (BLANKET PO ONLY)","6310GP","6310-3","Repair and Maintenance - Facilities (GP)","GP","GST and PST","Active",false,451]
["B100044","Repair and Maintenance - Fabric Maintenance (BLANKET PO ONLY)","6310GP","6310-3","Repair and Maintenance - Facilities (GP)","GP","GST and PST","Active",false,451]
["B100045","Repair and Maintenance - Irrigation (BLANKET PO ONLY)","6310GP","6310-3","Repair and Maintenance - Facilities (GP)","GP","GST and PST","Active",false,451]
["B100046","Vehicle Fuel (BLANKET PO ONLY)","6320G","6320-2","Vehicle Fuel (G)","G","GST Only","Active",false,506]
["B100047","Rental - Facilities (BLANKET PO ONLY)","6325G","6325-2","Rental and Lease (G)","G","GST Only","Active",false,"New in FIS"]
["B100048","Rental - Delivery (BLANKET PO ONLY)","6325G","6325-2","Rental and Lease (G)","G","GST Only","Active",false,"New in FIS"]
["B100049","Rental - Equipment (BLANKET PO ONLY)","6325GP","6325-3","Rental and Lease (GP)","GP","GST and PST","Active",false,"New in FIS"]
["B100050","Lease - Equipment (BLANKET PO ONLY)","6325GP","6325-3","Rental and Lease (GP)","GP","GST and PST","Active",false,"New in FIS"]
["B100051","Utilities - Water/Sewer (BLANKET PO ONLY)","6400NT","6400-1","Utilities (NT)","NT","No Tax","Active",false,470]
["B100052","Utilities - Property Tax (BLANKET PO ONLY)","6400NT","6400-1","Utilities (NT)","NT","No Tax","Active",false,470]
["B100053","Utilities - Hydro (BLANKET PO ONLY)","6400G","6400-2","Utilities (G)","G","GST Only","Active",false,"New in FIS"]
["B100054","Utilities - Garbage Removal (BLANKET PO ONLY)","6400G","6400-2","Utilities (G)","G","GST Only","Active",false,"New in FIS"]
["B100055","Utilities - Natural Gas (BLANKET PO ONLY)","6400GP","6400-3","Utilities (GP)","GP","GST and PST","Active",false,"New in FIS"]
["B100056","Postage (BLANKET PO ONLY)","6520G","6520-2","Postage, Courier, and Freight (G)","G","GST Only","Active",false,"New in FIS"]
["B100057","Courier (BLANKET PO ONLY)","6520G","6520-2","Postage, Courier, and Freight (G)","G","GST Only","Active",false,"New in FIS"]
["B100058","Cost of Goods Sold - Campus Store General Merchandise (No Tax) (BLANKET PO ONLY)","6600NT","6600-1","Cost of Goods Sold (NT)","NT","No Tax","Active",false,416]
["B100059","Cost of Goods Sold - Food & Beverage (No Tax) (BLANKET PO ONLY)","6600NT","6600-1","Cost of Goods Sold (NT)","NT","No Tax","Active",false,416]
["B100060","Cost of Goods Sold - Container Deposit (BLANKET PO ONLY)","6600NT","6600-1","Cost of Goods Sold (NT)","NT","No Tax","Active",false,416]
["B100061","Cost of Goods Sold - Institutional Resalable items (GST) (BLANKET PO ONLY)","6600G","6600-2","Cost of Goods Sold (G)","G","GST Only","Active",false,"New in FIS"]
["B100062","Cost of Goods Sold - Foodservice Paper/Plastic (BLANKET PO ONLY)","6600G","6600-2","Cost of Goods Sold (G)","G","GST Only","Active",false,"New in FIS"]
["B100063","Cost of Goods Sold - Food & Beverage (GST) (BLANKET PO ONLY)","6600G","6600-2","Cost of Goods Sold (G)","G","GST Only","Active",false,"New in FIS"]
["B100064","Cost of Goods Sold - Liquor Discovery Room (BLANKET PO ONLY)","6600G","6600-2","Cost of Goods Sold (G)","G","GST Only","Active",false,"New in FIS"]
["B100065","Cost of Goods Sold - Campus Store General Merchandise (BLANKET PO ONLY)","6600G","6600-2","Cost of Goods Sold (G)","G","GST Only","Active",false,"New in FIS"]
["B100066","Cost of Goods Sold - Freight (BLANKET PO ONLY)","6600G","6600-2","Cost of Goods Sold (G)","G","GST Only","Active",false,"New in FIS"]
["B100067","Cost of Goods Sold - Institutional Resalable items (GST/PST) (BLANKET PO ONLY)","6600GP","6600-3","Cost of Goods Sold (GP)","GP","GST and PST","Active",false,"New in FIS"]
["B100068","Cost of Goods Sold - Foodservice Disposables/Cleaning (BLANKET PO ONLY)","6600GP","6600-3","Cost of Goods Sold (GP)","GP","GST and PST","Active",false,"New in FIS"]
["B100069","Cost of Goods Sold - Food & Beverage (GST/PST) (BLANKET PO ONLY)","6600GP","6600-3","Cost of Goods Sold (GP)","GP","GST and PST","Active",false,"New in FIS"]
["C100001","Buildings - Accessibility - CAPITAL","7700G","7700-2","Capital Purchases - Buildings (G)","G","GST Only","Active",true,"New in FIS"]
["C100002","Buildings - Architect Services - CAPITAL","7700G","7700-2","Capital Purchases - Buildings (G)","G","GST Only","Active",true,"New in FIS"]
["C100003","Buildings - Assessments & Surveys - CAPITAL","7700G","7700-2","Capital Purchases - Buildings (G)","G","GST Only","Active",true,"New in FIS"]
["C100004","Buildings - Audio Visual- CAPITAL","7700G","7700-2","Capital Purchases - Buildings (G)","G","GST Only","Active",true,"New in FIS"]
["C100005","Buildings - Awnings - CAPITAL","7700G","7700-2","Capital Purchases - Buildings (G)","G","GST Only","Active",true,"New in FIS"]
["C100006","Buildings - Consulting Services - CAPITAL","7700G","7700-2","Capital Purchases - Buildings (G)","G","GST Only","Active",true,"New in FIS"]
["C100007","Buildings - Doors - CAPITAL","7700G","7700-2","Capital Purchases - Buildings (G)","G","GST Only","Active",true,"New in FIS"]
["C100008","Buildings - Drywall - CAPITAL","7700G","7700-2","Capital Purchases - Buildings (G)","G","GST Only","Active",true,"New in FIS"]
["C100009","Buildings - Electrical - CAPITAL","7700G","7700-2","Capital Purchases - Buildings (G)","G","GST Only","Active",true,"New in FIS"]
["C100010","Buildings - Engineering - CAPITAL","7700G","7700-2","Capital Purchases - Buildings (G)","G","GST Only","Active",true,"New in FIS"]
["C100011","Buildings - Environmental - CAPITAL","7700G","7700-2","Capital Purchases - Buildings (G)","G","GST Only","Active",true,"New in FIS"]
["C100012","Buildings - Exterior - CAPITAL","7700G","7700-2","Capital Purchases - Buildings (G)","G","GST Only","Active",true,"New in FIS"]
["C100013","Buildings - Flooring - CAPITAL","7700G","7700-2","Capital Purchases - Buildings (G)","G","GST Only","Active",true,"New in FIS"]
["C100014","Buildings - General Contracting Services - CAPITAL","7700G","7700-2","Capital Purchases - Buildings (G)","G","GST Only","Active",true,"New in FIS"]
["C100015","Buildings - Glass - CAPITAL","7700G","7700-2","Capital Purchases - Buildings (G)","G","GST Only","Active",true,"New in FIS"]
["C100016","Buildings - Handyman/labour Services - CAPITAL","7700G","7700-2","Capital Purchases - Buildings (G)","G","GST Only","Active",true,"New in FIS"]
["C100017","Buildings - HVAC - CAPITAL","7700G","7700-2","Capital Purchases - Buildings (G)","G","GST Only","Active",true,"New in FIS"]
["C100018","Buildings - Insurance - CAPITAL","7700NT","7700-1","Capital Purchases - Buildings (NT)","NT","No Tax","Active",true,300]
["C100019","Buildings - Interior Design - CAPITAL","7700G","7700-2","Capital Purchases - Buildings (G)","G","GST Only","Active",true,"New in FIS"]
["C100020","Buildings - Landscaping & Irrigation - CAPITAL","7700G","7700-2","Capital Purchases - Buildings (G)","G","GST Only","Active",true,"New in FIS"]
["C100021","Buildings - Lighting - CAPITAL","7700G","7700-2","Capital Purchases - Buildings (G)","G","GST Only","Active",true,"New in FIS"]
["C100022","Buildings - Locating - CAPITAL","7700G","7700-2","Capital Purchases - Buildings (G)","G","GST Only","Active",true,"New in FIS"]
["C100023","Buildings - Locksmith - CAPITAL","7700G","7700-2","Capital Purchases - Buildings (G)","G","GST Only","Active",true,"New in FIS"]
["C100024","Buildings - Mechanical - CAPITAL","7700G","7700-2","Capital Purchases - Buildings (G)","G","GST Only","Active",true,"New in FIS"]
["C100025","Buildings - Moving Services - CAPITAL","7700G","7700-2","Capital Purchases - Buildings (G)","G","GST Only","Active",true,"New in FIS"]
["C100026","Buildings - Painting (interior) - CAPITAL","7700G","7700-2","Capital Purchases - Buildings (G)","G","GST Only","Active",true,"New in FIS"]
["C100027","Buildings - Pest Control - CAPITAL","7700G","7700-2","Capital Purchases - Buildings (G)","G","GST Only","Active",true,"New in FIS"]
["C100028","Buildings - Permits - CAPITAL","7700G","7700-2","Capital Purchases - Buildings (G)","G","GST Only","Active",true,"New in FIS"]
["C100029","Buildings - Plumbing - CAPITAL","7700G","7700-2","Capital Purchases - Buildings (G)","G","GST Only","Active",true,"New in FIS"]
["C100030","Buildings - Project Management Services - CAPITAL","7700G","7700-2","Capital Purchases - Buildings (G)","G","GST Only","Active",true,"New in FIS"]
["C100031","Buildings - Remediation - CAPITAL","7700G","7700-2","Capital Purchases - Buildings (G)","G","GST Only","Active",true,"New in FIS"]
["C100032","Buildings - Roof - CAPITAL","7700G","7700-2","Capital Purchases - Buildings (G)","G","GST Only","Active",true,"New in FIS"]
["C100033","Buildings - Safety and Fire Protection - CAPITAL","7700G","7700-2","Capital Purchases - Buildings (G)","G","GST Only","Active",true,"New in FIS"]
["C100034","Buildings - Signage - CAPITAL","7700GP","7700-3","Capital Purchases - Buildings (GP)","GP","GST and PST","Active",true,"New in FIS"]
["C100035","Buildings - Waste Disposal - CAPITAL","7700G","7700-2","Capital Purchases - Buildings (G)","G","GST Only","Active",true,"New in FIS"]
["C100036","Buildings - Window Coverings - CAPITAL","7700G","7700-2","Capital Purchases - Buildings (G)","G","GST Only","Active",true,"New in FIS"]
["C100037","Buildings - Other - CAPITAL","7700G","7700-2","Capital Purchases - Buildings (G)","G","GST Only","Active",true,"New in FIS"]
["C100038","Building Retrofit - Accessibility - CAPITAL","7701G","7701-2","Capital Purchases - Building Retrofit (G)","G","GST Only","Active",true,"New in FIS"]
["C100039","Building Retrofit - Architect Services - CAPITAL","7701G","7701-2","Capital Purchases - Building Retrofit (G)","G","GST Only","Active",true,"New in FIS"]
["C100040","Building Retrofit - Assessments & Surveys - CAPITAL","7701G","7701-2","Capital Purchases - Building Retrofit (G)","G","GST Only","Active",true,"New in FIS"]
["C100041","Building Retrofit - Audio Visual - CAPITAL","7701G","7701-2","Capital Purchases - Building Retrofit (G)","G","GST Only","Active",true,"New in FIS"]
["C100042","Building Retrofit - Awnings - CAPITAL","7701G","7701-2","Capital Purchases - Building Retrofit (G)","G","GST Only","Active",true,"New in FIS"]
["C100043","Building Retrofit - Consulting Services - CAPITAL","7701G","7701-2","Capital Purchases - Building Retrofit (G)","G","GST Only","Active",true,"New in FIS"]
["C100044","Building Retrofit - Doors - CAPITAL","7701G","7701-2","Capital Purchases - Building Retrofit (G)","G","GST Only","Active",true,"New in FIS"]
["C100045","Building Retrofit - Drywall - CAPITAL","7701G","7701-2","Capital Purchases - Building Retrofit (G)","G","GST Only","Active",true,"New in FIS"]
["C100046","Building Retrofit - Electrical - CAPITAL","7701G","7701-2","Capital Purchases - Building Retrofit (G)","G","GST Only","Active",true,"New in FIS"]
["C100047","Building Retrofit - Engineering - CAPITAL","7701G","7701-2","Capital Purchases - Building Retrofit (G)","G","GST Only","Active",true,"New in FIS"]
["C100048","Building Retrofit - Environmental - CAPITAL","7701G","7701-2","Capital Purchases - Building Retrofit (G)","G","GST Only","Active",true,"New in FIS"]
["C100049","Building Retrofit - Exterior - CAPITAL","7701G","7701-2","Capital Purchases - Building Retrofit (G)","G","GST Only","Active",true,"New in FIS"]
["C100050","Building Retrofit - Flooring - CAPITAL","7701G","7701-2","Capital Purchases - Building Retrofit (G)","G","GST Only","Active",true,"New in FIS"]
["C100051","Building Retrofit - General Contracting Services - CAPITAL","7701G","7701-2","Capital Purchases - Building Retrofit (G)","G","GST Only","Active",true,"New in FIS"]
["C100052","Building Retrofit - Glass - CAPITAL","7701G","7701-2","Capital Purchases - Building Retrofit (G)","G","GST Only","Active",true,"New in FIS"]
["C100053","Building Retrofit - Handyman/Labour Services - CAPITAL","7701G","7701-2","Capital Purchases - Building Retrofit (G)","G","GST Only","Active",true,"New in FIS"]
["C100054","Building Retrofit - HVAC - CAPITAL","7701G","7701-2","Capital Purchases - Building Retrofit (G)","G","GST Only","Active",true,"New in FIS"]
["C100055","Building Retrofit - Insurance - CAPITAL","7701NT","7701-1","Capital Purchases - Building Retrofit (NT)","NT","No Tax","Active",true,435]
["C100056","Building Retrofit - Interior Design - CAPITAL","7701G","7701-2","Capital Purchases - Building Retrofit (G)","G","GST Only","Active",true,"New in FIS"]
["C100057","Building Retrofit - Landscaping & Irrigation - CAPITAL","7701G","7701-2","Capital Purchases - Building Retrofit (G)","G","GST Only","Active",true,"New in FIS"]
["C100058","Building Retrofit - Lighting - CAPITAL","7701G","7701-2","Capital Purchases - Building Retrofit (G)","G","GST Only","Active",true,"New in FIS"]
["C100059","Building Retrofit - Locating - CAPITAL","7701G","7701-2","Capital Purchases - Building Retrofit (G)","G","GST Only","Active",true,"New in FIS"]
["C100060","Building Retrofit - Locksmith - CAPITAL","7701G","7701-2","Capital Purchases - Building Retrofit (G)","G","GST Only","Active",true,"New in FIS"]
["C100061","Building Retrofit - Mechanical - CAPITAL","7701G","7701-2","Capital Purchases - Building Retrofit (G)","G","GST Only","Active",true,"New in FIS"]
["C100062","Building Retrofit - Moving Services - CAPITAL","7701G","7701-2","Capital Purchases - Building Retrofit (G)","G","GST Only","Active",true,"New in FIS"]
["C100063","Building Retrofit - Painting - CAPITAL","7701G","7701-2","Capital Purchases - Building Retrofit (G)","G","GST Only","Active",true,"New in FIS"]
["C100064","Building Retrofit - Pest Control - CAPITAL","7701G","7701-2","Capital Purchases - Building Retrofit (G)","G","GST Only","Active",true,"New in FIS"]
["C100065","Building Retrofit - Permits - CAPITAL","7701G","7701-2","Capital Purchases - Building Retrofit (G)","G","GST Only","Active",true,"New in FIS"]
["C100066","Building Retrofit - Plumbing - CAPITAL","7701G","7701-2","Capital Purchases - Building Retrofit (G)","G","GST Only","Active",true,"New in FIS"]
["C100067","Building Retrofit - Project Management Services - CAPITAL","7701G","7701-2","Capital Purchases - Building Retrofit (G)","G","GST Only","Active",true,"New in FIS"]
["C100068","Building Retrofit - Remediation - CAPITAL","7701G","7701-2","Capital Purchases - Building Retrofit (G)","G","GST Only","Active",true,"New in FIS"]
["C100069","Building Retrofit - Roof - CAPITAL","7701G","7701-2","Capital Purchases - Building Retrofit (G)","G","GST Only","Active",true,"New in FIS"]
["C100070","Building Retrofit - Safety & Fire Protection - CAPITAL","7701G","7701-2","Capital Purchases - Building Retrofit (G)","G","GST Only","Active",true,"New in FIS"]
["C100071","Building Retrofit - Signage - CAPITAL","7701GP","7701-3","Capital Purchases - Building Retrofit (GP)","GP","GST and PST","Active",true,"New in FIS"]
["C100072","Building Retrofit - Waste Disposal - CAPITAL","7701G","7701-2","Capital Purchases - Building Retrofit (G)","G","GST Only","Active",true,"New in FIS"]
["C100073","Building Retrofit - Window Coverings - CAPITAL","7701G","7701-2","Capital Purchases - Building Retrofit (G)","G","GST Only","Active",true,"New in FIS"]
["C100074","Building Retrofit - Other - CAPITAL","7701G","7701-2","Capital Purchases - Building Retrofit (G)","G","GST Only","Active",true,"New in FIS"]
["C100075","Leasehold Improvements - Accessibility - CAPITAL","7708G","7708-2","Capital Purchases - Leasehold Improvements (G)","G","GST Only","Active",true,"New in FIS"]
["C100076","Leasehold Improvements - Architect Services - CAPITAL","7708G","7708-2","Capital Purchases - Leasehold Improvements (G)","G","GST Only","Active",true,"New in FIS"]
["C100077","Leasehold Improvements - Assessments & Surveys - CAPITAL","7708G","7708-2","Capital Purchases - Leasehold Improvements (G)","G","GST Only","Active",true,"New in FIS"]
["C100078","Leasehold Improvements - Audio Visual - CAPITAL","7708G","7708-2","Capital Purchases - Leasehold Improvements (G)","G","GST Only","Active",true,"New in FIS"]
["C100079","Leasehold Improvements - Awnings - CAPITAL","7708G","7708-2","Capital Purchases - Leasehold Improvements (G)","G","GST Only","Active",true,"New in FIS"]
["C100080","Leasehold Improvements - Consulting Services - CAPITAL","7708G","7708-2","Capital Purchases - Leasehold Improvements (G)","G","GST Only","Active",true,"New in FIS"]
["C100081","Leasehold Improvements - Doors - CAPITAL","7708G","7708-2","Capital Purchases - Leasehold Improvements (G)","G","GST Only","Active",true,"New in FIS"]
["C100082","Leasehold Improvements - Drywall - CAPITAL","7708G","7708-2","Capital Purchases - Leasehold Improvements (G)","G","GST Only","Active",true,"New in FIS"]
["C100083","Leasehold Improvements - Electrical - CAPITAL","7708G","7708-2","Capital Purchases - Leasehold Improvements (G)","G","GST Only","Active",true,"New in FIS"]
["C100084","Leasehold Improvements - Engineering - CAPITAL","7708G","7708-2","Capital Purchases - Leasehold Improvements (G)","G","GST Only","Active",true,"New in FIS"]
["C100085","Leasehold Improvements - Environmental - CAPITAL","7708G","7708-2","Capital Purchases - Leasehold Improvements (G)","G","GST Only","Active",true,"New in FIS"]
["C100086","Leasehold Improvements - Exterior - CAPITAL","7708G","7708-2","Capital Purchases - Leasehold Improvements (G)","G","GST Only","Active",true,"New in FIS"]
["C100087","Leasehold Improvements - Flooring - CAPITAL","7708G","7708-2","Capital Purchases - Leasehold Improvements (G)","G","GST Only","Active",true,"New in FIS"]
["C100088","Leasehold Improvements - General Contracting - CAPITAL","7708G","7708-2","Capital Purchases - Leasehold Improvements (G)","G","GST Only","Active",true,"New in FIS"]
["C100089","Leasehold Improvements - Glass - CAPITAL","7708G","7708-2","Capital Purchases - Leasehold Improvements (G)","G","GST Only","Active",true,"New in FIS"]
["C100090","Leasehold Improvements - Handyman/Labour Services - CAPITAL","7708G","7708-2","Capital Purchases - Leasehold Improvements (G)","G","GST Only","Active",true,"New in FIS"]
["C100091","Leasehold Improvements - HVAC - CAPITAL","7708G","7708-2","Capital Purchases - Leasehold Improvements (G)","G","GST Only","Active",true,"New in FIS"]
["C100092","Leasehold Improvements - Insurance - CAPITAL","7708NT","7708-1","Capital Purchases - Leasehold Improvements (NT)","NT","No Tax","Active",true,"New in FIS"]
["C100093","Leasehold Improvements - Interior Design - CAPITAL","7708G","7708-2","Capital Purchases - Leasehold Improvements (G)","G","GST Only","Active",true,"New in FIS"]
["C100094","Leasehold Improvements - Landscaping & Irrigation - CAPITAL","7708G","7708-2","Capital Purchases - Leasehold Improvements (G)","G","GST Only","Active",true,"New in FIS"]
["C100095","Leasehold Improvements - Lighting - CAPITAL","7708G","7708-2","Capital Purchases - Leasehold Improvements (G)","G","GST Only","Active",true,"New in FIS"]
["C100096","Leasehold Improvements - Locating - CAPITAL","7708G","7708-2","Capital Purchases - Leasehold Improvements (G)","G","GST Only","Active",true,"New in FIS"]
["C100097","Leasehold Improvements - Locksmith - CAPITAL","7708G","7708-2","Capital Purchases - Leasehold Improvements (G)","G","GST Only","Active",true,"New in FIS"]
["C100098","Leasehold Improvements - Mechanical - CAPITAL","7708G","7708-2","Capital Purchases - Leasehold Improvements (G)","G","GST Only","Active",true,"New in FIS"]
["C100099","Leasehold Improvements - Moving Services - CAPITAL","7708G","7708-2","Capital Purchases - Leasehold Improvements (G)","G","GST Only","Active",true,"New in FIS"]
["C100100","Leasehold Improvements - Painting - CAPITAL","7708G","7708-2","Capital Purchases - Leasehold Improvements (G)","G","GST Only","Active",true,"New in FIS"]
["C100101","Leasehold Improvements - Pest Control - CAPITAL","7708G","7708-2","Capital Purchases - Leasehold Improvements (G)","G","GST Only","Active",true,"New in FIS"]
["C100102","Leasehold Improvements - Permits - CAPITAL","7708G","7708-2","Capital Purchases - Leasehold Improvements (G)","G","GST Only","Active",true,"New in FIS"]
["C100103","Leasehold Improvements - Plumbing - CAPITAL","7708G","7708-2","Capital Purchases - Leasehold Improvements (G)","G","GST Only","Active",true,"New in FIS"]
["C100104","Leasehold Improvements - Project Management - CAPITAL","7708G","7708-2","Capital Purchases - Leasehold Improvements (G)","G","GST Only","Active",true,"New in FIS"]
["C100105","Leasehold Improvements - Remediation - CAPITAL","7708G","7708-2","Capital Purchases - Leasehold Improvements (G)","G","GST Only","Active",true,"New in FIS"]
["C100106","Leasehold Improvements - Roof - CAPITAL","7708G","7708-2","Capital Purchases - Leasehold Improvements (G)","G","GST Only","Active",true,"New in FIS"]
["C100107","Leasehold Improvements - Safety & Fire Protection - CAPITAL","7708G","7708-2","Capital Purchases - Leasehold Improvements (G)","G","GST Only","Active",true,"New in FIS"]
["C100108","Leasehold Improvements - Signage - CAPITAL","7708GP","7708-3","Capital Purchases - Leasehold Improvements (GP)","GP","GST and PST","Active",true,"New in FIS"]
["C100109","Leasehold Improvements - Waste Disposal - CAPITAL","7708G","7708-2","Capital Purchases - Leasehold Improvements (G)","G","GST Only","Active",true,"New in FIS"]
["C100110","Leasehold Improvements - Window Coverings - CAPITAL","7708G","7708-2","Capital Purchases - Leasehold Improvements (G)","G","GST Only","Active",true,"New in FIS"]
["C100111","Leasehold Improvements - Other - CAPITAL","7708G","7708-2","Capital Purchases - Leasehold Improvements (G)","G","GST Only","Active",true,"New in FIS"]
["C100112","Furniture - Accessibility - CAPITAL","7706GP","7706-3","Capital Purchases - Furniture (GP)","GP","GST and PST","Active",true,"New in FIS"]
["C100113","Furniture - CFI Discount - CAPITAL (PROCUREMENT ONLY)","7706GP","7706-3","Capital Purchases - Furniture (GP)","GP","GST and PST","Active",false,"New in FIS"]
["C100114","Furniture - Installation - CAPITAL","7706G","7706-2","Capital Purchases - Furniture (G)","G","GST Only","Active",true,"New in FIS"]
["C100115","Furniture - Moving Services - CAPITAL","7706G","7706-2","Capital Purchases - Furniture (G)","G","GST Only","Active",true,"New in FIS"]
["C100116","Furniture - Office Furniture - CAPITAL","7706GP","7706-3","Capital Purchases - Furniture (GP)","GP","GST and PST","Active",true,"New in FIS"]
["C100117","Furniture - Shelving & Storage - CAPITAL","7706GP","7706-3","Capital Purchases - Furniture (GP)","GP","GST and PST","Active",true,"New in FIS"]
["C100118","Furniture - Other - CAPITAL","7706GP","7706-3","Capital Purchases - Furniture (GP)","GP","GST and PST","Active",true,"New in FIS"]
["C100119","Equipment - Accessibility - CAPITAL","7707GP","7707-3","Capital Purchases - Equipment (GP)","GP","GST and PST","Active",false,"New in FIS"]
["C100120","Equipment - Cables - CAPITAL","7707GP","7707-3","Capital Purchases - Equipment (GP)","GP","GST and PST","Active",false,"New in FIS"]
["C100121","Equipment - CFI Discount - CAPITAL (PROCUREMENT ONLY)","7707GP","7707-3","Capital Purchases - Equipment (GP)","GP","GST and PST","Active",false,"New in FIS"]
["C100122","Equipment - Equipment Rentals - CAPITAL","7707GP","7707-3","Capital Purchases - Equipment (GP)","GP","GST and PST","Active",true,"New in FIS"]
["C100123","Equipment - Installation - CAPITAL","7707G","7707-2","Capital Purchases - Equipment (G)","G","GST Only","Active",true,440]
["C100124","Equipment - Kitchen Large Appliances - CAPITAL","7707GP","7707-3","Capital Purchases - Equipment (GP)","GP","GST and PST","Active",false,"New in FIS"]
["C100125","Equipment - Kitchen Small Appliances - CAPITAL","7707GP","7707-3","Capital Purchases - Equipment (GP)","GP","GST and PST","Active",false,"New in FIS"]
["C100126","Equipment - Lab Equipment - CAPITAL","7707GP","7707-3","Capital Purchases - Equipment (GP)","GP","GST and PST","Active",false,"New in FIS"]
["C100127","Equipment - Lighting - CAPITAL","7707GP","7707-3","Capital Purchases - Equipment (GP)","GP","GST and PST","Active",false,"New in FIS"]
["C100128","Equipment - Moving Services - CAPITAL","7707G","7707-2","Capital Purchases - Equipment (G)","G","GST Only","Active",true,440]
["C100129","Equipment - Phones - CAPITAL","7707GP","7707-3","Capital Purchases - Equipment (GP)","GP","GST and PST","Active",false,"New in FIS"]
["C100130","Equipment - Safety & Fire Protection - CAPITAL","7707GP","7707-3","Capital Purchases - Equipment (GP)","GP","GST and PST","Active",false,"New in FIS"]
["C100131","Equipment - Tools & Equipment - CAPITAL","7707GP","7707-3","Capital Purchases - Equipment (GP)","GP","GST and PST","Active",false,"New in FIS"]
["C100132","Equipment - Window Coverings - CAPITAL","7707GP","7707-3","Capital Purchases - Equipment (GP)","GP","GST and PST","Active",false,"New in FIS"]
["C100133","Equipment - Other - CAPITAL","7707GP","7707-3","Capital Purchases - Equipment (GP)","GP","GST and PST","Active",false,"New in FIS"]
["C100134","Vehicles - Cars, Trucks, Vans - CAPITAL","7711GP","7711-3","Capital Purchases - Vehicles (GP)","GP","GST and PST","Active",false,"New in FIS"]
["C100135","Vehicles - CFI Discount - CAPITAL (PROCUREMENT ONLY)","7711GP","7711-3","Capital Purchases - Vehicles (GP)","GP","GST and PST","Active",false,"New in FIS"]
["C100136","Vehicles - Leases - CAPITAL","7711GP","7711-3","Capital Purchases - Vehicles (GP)","GP","GST and PST","Active",false,"New in FIS"]
["C100137","Vehicles - Recreation - CAPITAL","7711GP","7711-3","Capital Purchases - Vehicles (GP)","GP","GST and PST","Active",false,"New in FIS"]
["C100138","Vehicles - Other - CAPITAL","7711GP","7711-3","Capital Purchases - Vehicles (GP)","GP","GST and PST","Active",false,"New in FIS"]
["C100139","Library Books - Hard Copy Library Books - CAPITAL","7709G","7709-2","Capital Purchases - Library Books (G)","G","GST Only","Active",false,600]
["C100140","Computing Equipment - Cables - CAPITAL","7702GP","7702-3","Capital Purchases - Computer Equipment (GP)","GP","GST and PST","Active",false,"New in FIS"]
["C100141","Computing Equipment - CFI Discount - CAPITAL (PROCUREMENT ONLY)","7702GP","7702-3","Capital Purchases - Computer Equipment (GP)","GP","GST and PST","Active",false,"New in FIS"]
["C100142","Computing Equipment - Computer Monitors - CAPITAL","7702GP","7702-3","Capital Purchases - Computer Equipment (GP)","GP","GST and PST","Active",false,"New in FIS"]
["C100143","Computing Equipment - Computers - CAPITAL","7702GP","7702-3","Capital Purchases - Computer Equipment (GP)","GP","GST and PST","Active",false,"New in FIS"]
["C100144","Computing Equipment - Installation - CAPITAL","7702G","7702-2","Capital Purchases - Computer Equipment (G)","G","GST Only","Active",false,443]
["C100145","Computing Equipment - Other - CAPITAL","7702GP","7702-3","Capital Purchases - Computer Equipment (GP)","GP","GST and PST","Active",false,"New in FIS"]
["C100146","Computing Equipment - Other - CAPITAL","7702GP","7702-3","Capital Purchases - Computer Equipment (GP)","GP","GST and PST","Active",false,"New in FIS"]
["C100147","Network and Server Equipment - Installation - CAPITAL","7703GP","7703-3","Capital Purchases - Network and Server Equipment (GP)","GP","GST and PST","Active",false,"New in FIS"]
["C100148","Network and Server Equipment - Cables - CAPITAL","7703G","7703-2","Capital Purchases - Network and Server Equipment (G)","G","GST Only","Active",false,"New in FIS"]
["C100149","Network and Server Equipment - Cell & Landline - CAPITAL","7703GP","7703-3","Capital Purchases - Network and Server Equipment (GP)","GP","GST and PST","Active",false,"New in FIS"]
["C100150","Network and Server Equipment - Servers - CAPITAL","7703GP","7703-3","Capital Purchases - Network and Server Equipment (GP)","GP","GST and PST","Active",false,"New in FIS"]
["C100151","Network and Server Equipment - Storage - CAPITAL","7703GP","7703-3","Capital Purchases - Network and Server Equipment (GP)","GP","GST and PST","Active",false,"New in FIS"]
["C100152","Network and Server Equipment - Other - CAPITAL","7703GP","7703-3","Capital Purchases - Network and Server Equipment (GP)","GP","GST and PST","Active",false,"New in FIS"]
["C100153","Computer Software - Applications & Cloud Services - CAPITAL","7704GP","7704-3","Capital Purchases - Computer Software (GP)","GP","GST and PST","Active",true,"New in FIS"]
["C100154","Computer Software - CFI Discount - CAPITAL (PROCUREMENT ONLY)","7704GP","7704-3","Capital Purchases - Computer Software (GP)","GP","GST and PST","Active",false,"New in FIS"]
["C100155","Computer Software - Consulting Services - CAPITAL","7704G","7704-2","Capital Purchases - Computer Software (G)","G","GST Only","Active",true,"New in FIS"]
["C100156","Computer Software - Website - CAPITAL","7704G","7704-2","Capital Purchases - Computer Software (G)","G","GST Only","Active",true,"New in FIS"]
["C100157","Computer Software - Other - CAPITAL","7704GP","7704-3","Capital Purchases - Computer Software (GP)","GP","GST and PST","Active",true,"New in FIS"]
["C100158","Enterprise Systems - Applications & Cloud Services - CAPITAL","7705GP","7705-3","Capital Purchases - Enterprise Systems (GP)","GP","GST and PST","Active",true,"New in FIS"]
["C100159","Enterprise Systems - Consulting - CAPITAL","7705G","7705-2","Capital Purchases - Enterprise Systems (G)","G","GST Only","Active",true,"New in FIS"]
["C100160","Enterprise Systems - Project Management - CAPITAL","7705G","7705-2","Capital Purchases - Enterprise Systems (G)","G","GST Only","Active",true,"New in FIS"]
["C100161","Enterprise Systems - Other - CAPITAL","7705GP","7705-3","Capital Purchases - Enterprise Systems (GP)","GP","GST and PST","Active",true,"New in FIS"]
["C100162","Site Improvements - Other - CAPITAL","7710G","7710-2","Capital Purchases - Site Improvements (Land) (G)","G","GST Only","Active",true,"New in FIS"]
["C100163","Land - Land - CAPITAL","7712GP","7712-3","Capital Purchases - Land (GP)","GP","GST and PST","Active",true,437]

{"sheet":"WORKORDERS","index":6,"n_rows":1452,"n_cols":20,"rows_kept":1452,"cut":false,"hidden":true,"merged":[]}
[true,true,true,true,true,true,true,true,true,true,false,true,true,false,false,true]
["FIS Work order ","FIS Work order name","Work Order Status","Project ID","Project Description","Project Status","Cost centre","Cost centre Description","Subdivision","Subdivision Description","FIS Division","FIS Division Name","Activity Status","Activity ID","Activity ID (T)","Multiple","FRS Cst Ctr","FRS Cst Ctr Description","FRS Division","X-Fer to Pivot"]
["11000-1-1","PRES President Office","Active","11000-1","PRES President Office","(blank)","1000","President - Office","100","President - Office","100","President - Office","(blank)","100","Administration",{"$f":"IF(OR(A3=A2,A3=A4),\"yes\",\"no\")","v":"no"},{"$f":"IFERROR(INDEX('Work Order Master'!$S:$S,MATCH(A3,'Work Order Master'!$K:$K,0)),\"New\")","v":8800},{"$f":"IFERROR(INDEX('Work Order Master'!T:T,MATCH(WORKORDERS!$Q3,'Work Order Master'!$S:$S,0)),Q3)","v":"PRESIDENT"},{"$f":"IFERROR(INDEX('FRS CC Master'!A:A,MATCH(WORKORDERS!$Q3*1,'FRS CC Master'!$C:$C,0)),WORKORDERS!$L3)","v":"President"},{"$f":"IFERROR(VLOOKUP($A3,'Work Order Master'!$K:$Q,7,FALSE),\"Remove\")","v":"N"}]
["11010-1-1","PRES President Initiatives","Active","11010-1","PRES President Initiatives","(blank)","1010","President Initiatives","100","President - Office","100","President - Office","(blank)","101","Institutional",{"$f":"IF(OR(A4=A3,A4=A5),\"yes\",\"no\")","v":"no"},{"$f":"IFERROR(INDEX('Work Order Master'!$S:$S,MATCH(A4,'Work Order Master'!$K:$K,0)),\"New\")","v":8801},{"$f":"IFERROR(INDEX('Work Order Master'!T:T,MATCH(WORKORDERS!$Q4,'Work Order Master'!$S:$S,0)),Q4)","v":"PRESIDENT'S DEVELOPMENT"},{"$f":"IFERROR(INDEX('FRS CC Master'!A:A,MATCH(WORKORDERS!$Q4*1,'FRS CC Master'!$C:$C,0)),WORKORDERS!$L4)","v":"President"},{"$f":"IFERROR(VLOOKUP($A4,'Work Order Master'!$K:$Q,7,FALSE),\"Remove\")","v":"N"}]
["11010-2-1","PRES BCBC Internship program","Active","11010-2","PRES BCBC Internship program","(blank)","1010","President Initiatives","100","President - Office","100","President - Office","(blank)","101","Institutional","no",{"$f":"IFERROR(INDEX('Work Order Master'!$S:$S,MATCH(A5,'Work Order Master'!$K:$K,0)),\"New\")","v":8897},{"$f":"IFERROR(INDEX('Work Order Master'!T:T,MATCH(WORKORDERS!$Q5,'Work Order Master'!$S:$S,0)),Q5)","v":"BCBC INTERNSHIP PROGRAM"},{"$f":"IFERROR(INDEX('FRS CC Master'!A:A,MATCH(WORKORDERS!$Q5*1,'FRS CC Master'!$C:$C,0)),WORKORDERS!$L5)","v":"President"},{"$f":"IFERROR(VLOOKUP($A5,'Work Order Master'!$K:$Q,7,FALSE),\"Remove\")","v":"N"}]
["11010-3-1","PRES Pre - Confederation Treaties","Parked","11010-3","PRES Pre - Confederation Treaties","(blank)","1010","President Initiatives","100","President - Office","100","President - Office","(blank)","101","Institutional","no",{"$f":"IFERROR(INDEX('Work Order Master'!$S:$S,MATCH(A6,'Work Order Master'!$K:$K,0)),\"New\")","v":"New"},{"$f":"IFERROR(INDEX('Work Order Master'!T:T,MATCH(WORKORDERS!$Q6,'Work Order Master'!$S:$S,0)),Q6)","v":"New"},{"$f":"IFERROR(INDEX('FRS CC Master'!A:A,MATCH(WORKORDERS!$Q6*1,'FRS CC Master'!$C:$C,0)),WORKORDERS!$L6)","v":"President - Office"},{"$f":"IFERROR(VLOOKUP($A6,'Work Order Master'!$K:$Q,7,FALSE),\"Remove\")","v":"Remove"}]
["11010-4-1","PRES Social Innovation","Active","11010-4","PRES Social Innovation","(blank)","1010","President Initiatives","100","President - Office","100","President - Office","(blank)","101","Institutional","no",{"$f":"IFERROR(INDEX('Work Order Master'!$S:$S,MATCH(A7,'Work Order Master'!$K:$K,0)),\"New\")","v":8898},{"$f":"IFERROR(INDEX('Work Order Master'!T:T,MATCH(WORKORDERS!$Q7,'Work Order Master'!$S:$S,0)),Q7)","v":"SOCIAL INNOVATION"},{"$f":"IFERROR(INDEX('FRS CC Master'!A:A,MATCH(WORKORDERS!$Q7*1,'FRS CC Master'!$C:$C,0)),WORKORDERS!$L7)","v":"President"},{"$f":"IFERROR(VLOOKUP($A7,'Work Order Master'!$K:$Q,7,FALSE),\"Remove\")","v":"N"}]
["11010-5-1","PRES Strategic Planning","Active","11010-5","PRES Strategic Planning","(blank)","1010","President Initiatives","100","President - Office","100","President - Office","(blank)","101","Institutional","no",{"$f":"IFERROR(INDEX('Work Order Master'!$S:$S,MATCH(A8,'Work Order Master'!$K:$K,0)),\"New\")","v":8899},{"$f":"IFERROR(INDEX('Work Order Master'!T:T,MATCH(WORKORDERS!$Q8,'Work Order Master'!$S:$S,0)),Q8)","v":"STRATEGIC PLANNING "},{"$f":"IFERROR(INDEX('FRS CC Master'!A:A,MATCH(WORKORDERS!$Q8*1,'FRS CC Master'!$C:$C,0)),WORKORDERS!$L8)","v":"President"},{"$f":"IFERROR(VLOOKUP($A8,'Work Order Master'!$K:$Q,7,FALSE),\"Remove\")","v":"N"}]
["11015-1-1","PRES Marketing and Communications","Parked","11015-1","PRES Marketing & Communications","(blank)","1015","Marketing and Communications","100","President - Office","100","President - Office","(blank)","100","Administration","no",{"$f":"IFERROR(INDEX('Work Order Master'!$S:$S,MATCH(A9,'Work Order Master'!$K:$K,0)),\"New\")","v":"New"},{"$f":"IFERROR(INDEX('Work Order Master'!T:T,MATCH(WORKORDERS!$Q9,'Work Order Master'!$S:$S,0)),Q9)","v":"New"},{"$f":"IFERROR(INDEX('FRS CC Master'!A:A,MATCH(WORKORDERS!$Q9*1,'FRS CC Master'!$C:$C,0)),WORKORDERS!$L9)","v":"President - Office"},{"$f":"IFERROR(VLOOKUP($A9,'Work Order Master'!$K:$Q,7,FALSE),\"Remove\")","v":"Remove"}]
["11015-2-1","PRES MarComm - Indigenous Speaker Series","Parked","11015-2","PRES  MarComm - Indigenous Speaker Series","(blank)","1015","Marketing and Communications","100","President - Office","100","President - Office","(blank)","100","Administration","no",{"$f":"IFERROR(INDEX('Work Order Master'!$S:$S,MATCH(A10,'Work Order Master'!$K:$K,0)),\"New\")","v":"New"},{"$f":"IFERROR(INDEX('Work Order Master'!T:T,MATCH(WORKORDERS!$Q10,'Work Order Master'!$S:$S,0)),Q10)","v":"New"},{"$f":"IFERROR(INDEX('FRS CC Master'!A:A,MATCH(WORKORDERS!$Q10*1,'FRS CC Master'!$C:$C,0)),WORKORDERS!$L10)","v":"President - Office"},{"$f":"IFERROR(VLOOKUP($A10,'Work Order Master'!$K:$Q,7,FALSE),\"Remove\")","v":"Remove"}]
["11020-1-1","PRES Diversity, Equity and Human Rights Office","Active","11020-1","PRES Diversity, Equity and Human Rights Office","(blank)","1020","Diversity, Equity and Human Rights Office","102","Diversity, Equity and Human Rights Office","100","President - Office","(blank)","100","Administration","no",{"$f":"IFERROR(INDEX('Work Order Master'!$S:$S,MATCH(A11,'Work Order Master'!$K:$K,0)),\"New\")","v":8804},{"$f":"IFERROR(INDEX('Work Order Master'!T:T,MATCH(WORKORDERS!$Q11,'Work Order Master'!$S:$S,0)),Q11)","v":"HUMAN RIGHTS & RESP WKPLC"},{"$f":"IFERROR(INDEX('FRS CC Master'!A:A,MATCH(WORKORDERS!$Q11*1,'FRS CC Master'!$C:$C,0)),WORKORDERS!$L11)","v":"President"},{"$f":"IFERROR(VLOOKUP($A11,'Work Order Master'!$K:$Q,7,FALSE),\"Remove\")","v":"N"}]
["11030-1-1","PRES Communications and External Affairs","Active","11030-1","PRES Communications and External Affairs","(blank)","1030","Communications and External Affairs","103","Communications and External Affaris","100","President - Office","(blank)","100","Administration","no",{"$f":"IFERROR(INDEX('Work Order Master'!$S:$S,MATCH(A12,'Work Order Master'!$K:$K,0)),\"New\")","v":8806},{"$f":"IFERROR(INDEX('Work Order Master'!T:T,MATCH(WORKORDERS!$Q12,'Work Order Master'!$S:$S,0)),Q12)","v":"COMMUN. & EXTNL AFFAIRS "},{"$f":"IFERROR(INDEX('FRS CC Master'!A:A,MATCH(WORKORDERS!$Q12*1,'FRS CC Master'!$C:$C,0)),WORKORDERS!$L12)","v":"President"},{"$f":"IFERROR(VLOOKUP($A12,'Work Order Master'!$K:$Q,7,FALSE),\"Remove\")","v":"N"}]
["11030-1-2","PRES Communications and External Affairs - Indigenous Speakers Series","Active","11030-1","PRES Communications and External Affairs","(blank)","1030","Communications and External Affairs","103","Communications and External Affaris","100","President - Office","(blank)","100","Administration","no",{"$f":"IFERROR(INDEX('Work Order Master'!$S:$S,MATCH(A13,'Work Order Master'!$K:$K,0)),\"New\")","v":8803},{"$f":"IFERROR(INDEX('Work Order Master'!T:T,MATCH(WORKORDERS!$Q13,'Work Order Master'!$S:$S,0)),Q13)","v":"INDIGENOUS SPKR SERIES "},{"$f":"IFERROR(INDEX('FRS CC Master'!A:A,MATCH(WORKORDERS!$Q13*1,'FRS CC Master'!$C:$C,0)),WORKORDERS!$L13)","v":"President"},{"$f":"IFERROR(VLOOKUP($A13,'Work Order Master'!$K:$Q,7,FALSE),\"Remove\")","v":"N"}]
["11040-1-1","PRES Brand and Marketing","Active","11040-1","PRES Brand and Marketing","(blank)","1040","Brand and Marketing","104","Brand and Marketing","100","President - Office","(blank)","100","Administration","no",{"$f":"IFERROR(INDEX('Work Order Master'!$S:$S,MATCH(A14,'Work Order Master'!$K:$K,0)),\"New\")","v":8805},{"$f":"IFERROR(INDEX('Work Order Master'!T:T,MATCH(WORKORDERS!$Q14,'Work Order Master'!$S:$S,0)),Q14)","v":"BRAND AND MARKETING"},{"$f":"IFERROR(INDEX('FRS CC Master'!A:A,MATCH(WORKORDERS!$Q14*1,'FRS CC Master'!$C:$C,0)),WORKORDERS!$L14)","v":"President"},{"$f":"IFERROR(VLOOKUP($A14,'Work Order Master'!$K:$Q,7,FALSE),\"Remove\")","v":"N"}]
["11050-1-1","PRES President Institutional - Contingency","Active","11050-1","PRES President Institutional - Contingency","(blank)","1050","President Institutional","105","President - Institutional","105","President - Institutional","(blank)","101","Institutional","no",{"$f":"IFERROR(INDEX('Work Order Master'!$S:$S,MATCH(A15,'Work Order Master'!$K:$K,0)),\"New\")","v":8860},{"$f":"IFERROR(INDEX('Work Order Master'!T:T,MATCH(WORKORDERS!$Q15,'Work Order Master'!$S:$S,0)),Q15)","v":"PRESIDENT'S CONTINGENCY"},{"$f":"IFERROR(INDEX('FRS CC Master'!A:A,MATCH(WORKORDERS!$Q15*1,'FRS CC Master'!$C:$C,0)),WORKORDERS!$L15)","v":"President"},{"$f":"IFERROR(VLOOKUP($A15,'Work Order Master'!$K:$Q,7,FALSE),\"Remove\")","v":"N"}]
["11050-2-1","PRES President Institutional - HR Legal","Active","11050-2","PRES President Institutional - HR Legal","(blank)","1050","President Institutional","105","President - Institutional","105","President - Institutional","(blank)","101","Institutional","no",{"$f":"IFERROR(INDEX('Work Order Master'!$S:$S,MATCH(A16,'Work Order Master'!$K:$K,0)),\"New\")","v":8862},{"$f":"IFERROR(INDEX('Work Order Master'!T:T,MATCH(WORKORDERS!$Q16,'Work Order Master'!$S:$S,0)),Q16)","v":"INSTITUTIONAL HR LEGAL "},{"$f":"IFERROR(INDEX('FRS CC Master'!A:A,MATCH(WORKORDERS!$Q16*1,'FRS CC Master'!$C:$C,0)),WORKORDERS!$L16)","v":"President"},{"$f":"IFERROR(VLOOKUP($A16,'Work Order Master'!$K:$Q,7,FALSE),\"Remove\")","v":"N"}]
["11100-1-1","HR Human Resources Division","Active","11100-1","HR Human Resources Division","(blank)","1100","Human Resources Division","110","Human Resources Division","110","Human Resources","(blank)","100","Administration","no",{"$f":"IFERROR(INDEX('Work Order Master'!$S:$S,MATCH(A17,'Work Order Master'!$K:$K,0)),\"New\")","v":8200},{"$f":"IFERROR(INDEX('Work Order Master'!T:T,MATCH(WORKORDERS!$Q17,'Work Order Master'!$S:$S,0)),Q17)","v":"HUMAN RESOURCES"},{"$f":"IFERROR(INDEX('FRS CC Master'!A:A,MATCH(WORKORDERS!$Q17*1,'FRS CC Master'!$C:$C,0)),WORKORDERS!$L17)","v":"Human Resources"},{"$f":"IFERROR(VLOOKUP($A17,'Work Order Master'!$K:$Q,7,FALSE),\"Remove\")","v":"N"}]
["11101-1-1","HR Human Resources - Initiatives","Parked","11101-1","HR Human Resources - Initiatives","(blank)","1101","Human Resources Division - AVP Initiatives","110","Human Resources Division","110","Human Resources","(blank)","101","Institutional","no",{"$f":"IFERROR(INDEX('Work Order Master'!$S:$S,MATCH(A18,'Work Order Master'!$K:$K,0)),\"New\")","v":"New"},{"$f":"IFERROR(INDEX('Work Order Master'!T:T,MATCH(WORKORDERS!$Q18,'Work Order Master'!$S:$S,0)),Q18)","v":"New"},{"$f":"IFERROR(INDEX('FRS CC Master'!A:A,MATCH(WORKORDERS!$Q18*1,'FRS CC Master'!$C:$C,0)),WORKORDERS!$L18)","v":"Human Resources"},{"$f":"IFERROR(VLOOKUP($A18,'Work Order Master'!$K:$Q,7,FALSE),\"Remove\")","v":"P"}]
["11101-1-2","HR Human Resources - Initiatives - United Way Representative","Active","11101-1","HR Human Resources - Initiatives","(blank)","1101","Human Resources Division - AVP Initiatives","110","Human Resources Division","110","Human Resources","(blank)","101","Institutional","no",{"$f":"IFERROR(INDEX('Work Order Master'!$S:$S,MATCH(A19,'Work Order Master'!$K:$K,0)),\"New\")","v":8205},{"$f":"IFERROR(INDEX('Work Order Master'!T:T,MATCH(WORKORDERS!$Q19,'Work Order Master'!$S:$S,0)),Q19)","v":"UNITED WAY"},{"$f":"IFERROR(INDEX('FRS CC Master'!A:A,MATCH(WORKORDERS!$Q19*1,'FRS CC Master'!$C:$C,0)),WORKORDERS!$L19)","v":"Human Resources"},{"$f":"IFERROR(VLOOKUP($A19,'Work Order Master'!$K:$Q,7,FALSE),\"Remove\")","v":"N"}]
["11101-2-1","HR Pooled Positions","Active","11101-2","HR Pooled Positions","(blank)","1101","Human Resources Division - AVP Initiatives","110","Human Resources Division","110","Human Resources","(blank)","101","Institutional","no",{"$f":"IFERROR(INDEX('Work Order Master'!$S:$S,MATCH(A20,'Work Order Master'!$K:$K,0)),\"New\")","v":"New"},{"$f":"IFERROR(INDEX('Work Order Master'!T:T,MATCH(WORKORDERS!$Q20,'Work Order Master'!$S:$S,0)),Q20)","v":"New"},{"$f":"IFERROR(INDEX('FRS CC Master'!A:A,MATCH(WORKORDERS!$Q20*1,'FRS CC Master'!$C:$C,0)),WORKORDERS!$L20)","v":"Human Resources"},{"$f":"IFERROR(VLOOKUP($A20,'Work Order Master'!$K:$Q,7,FALSE),\"Remove\")","v":"N"}]
["11102-1-1","HR Training and Professional Development - Institutional","Parked","11102-1","HR Training and Professional Development - Institutional","(blank)","1102","Training & Professional Development","110","Human Resources Division","110","Human Resources","(blank)","101","Institutional","no",{"$f":"IFERROR(INDEX('Work Order Master'!$S:$S,MATCH(A21,'Work Order Master'!$K:$K,0)),\"New\")","v":"New"},{"$f":"IFERROR(INDEX('Work Order Master'!T:T,MATCH(WORKORDERS!$Q21,'Work Order Master'!$S:$S,0)),Q21)","v":"New"},{"$f":"IFERROR(INDEX('FRS CC Master'!A:A,MATCH(WORKORDERS!$Q21*1,'FRS CC Master'!$C:$C,0)),WORKORDERS!$L21)","v":"Human Resources"},{"$f":"IFERROR(VLOOKUP($A21,'Work Order Master'!$K:$Q,7,FALSE),\"Remove\")","v":"P"}]
["11102-2-1","HR Training & PD - ADMIN","Active","11102-2","HR Training & PD - ADMIN","(blank)","1102","Training & Professional Development","110","Human Resources Division","110","Human Resources","(blank)","101","Institutional","no",{"$f":"IFERROR(INDEX('Work Order Master'!$S:$S,MATCH(A22,'Work Order Master'!$K:$K,0)),\"New\")","v":8210},{"$f":"IFERROR(INDEX('Work Order Master'!T:T,MATCH(WORKORDERS!$Q22,'Work Order Master'!$S:$S,0)),Q22)","v":"PROF. DEV. ADMI"},{"$f":"IFERROR(INDEX('FRS CC Master'!A:A,MATCH(WORKORDERS!$Q22*1,'FRS CC Master'!$C:$C,0)),WORKORDERS!$L22)","v":"Human Resources"},{"$f":"IFERROR(VLOOKUP($A22,'Work Order Master'!$K:$Q,7,FALSE),\"Remove\")","v":"N"}]
["11102-3-1","HR Training & PD - BCGEU","Active","11102-3","HR Training & PD - BCGEU","(blank)","1102","Training & Professional Development","110","Human Resources Division","110","Human Resources","(blank)","101","Institutional","no",{"$f":"IFERROR(INDEX('Work Order Master'!$S:$S,MATCH(A23,'Work Order Master'!$K:$K,0)),\"New\")","v":8239},{"$f":"IFERROR(INDEX('Work Order Master'!T:T,MATCH(WORKORDERS!$Q23,'Work Order Master'!$S:$S,0)),Q23)","v":"BCGEU - PROFESSIONAL DEVELOPMENT"},{"$f":"IFERROR(INDEX('FRS CC Master'!A:A,MATCH(WORKORDERS!$Q23*1,'FRS CC Master'!$C:$C,0)),WORKORDERS!$L23)","v":"Human Resources"},{"$f":"IFERROR(VLOOKUP($A23,'Work Order Master'!$K:$Q,7,FALSE),\"Remove\")","v":"N"}]
["11102-3-2","HR Training & PD - BCGEU - PD Committee","Active","11102-3","HR Training & PD - BCGEU","(blank)","1102","Training & Professional Development","110","Human Resources Division","110","Human Resources","(blank)","101","Institutional","no",{"$f":"IFERROR(INDEX('Work Order Master'!$S:$S,MATCH(A24,'Work Order Master'!$K:$K,0)),\"New\")","v":8240},{"$f":"IFERROR(INDEX('Work Order Master'!T:T,MATCH(WORKORDERS!$Q24,'Work Order Master'!$S:$S,0)),Q24)","v":"BCGEU - PRO-D COMMITTEE"},{"$f":"IFERROR(INDEX('FRS CC Master'!A:A,MATCH(WORKORDERS!$Q24*1,'FRS CC Master'!$C:$C,0)),WORKORDERS!$L24)","v":"Human Resources"},{"$f":"IFERROR(VLOOKUP($A24,'Work Order Master'!$K:$Q,7,FALSE),\"Remove\")","v":"N"}]
["11102-4-1","HR Training & PD - CUPE Contract Fund","Active","11102-4","HR Training & PD - CUPE","(blank)","1102","Training & Professional Development","110","Human Resources Division","110","Human Resources","(blank)","101","Institutional","no",{"$f":"IFERROR(INDEX('Work Order Master'!$S:$S,MATCH(A25,'Work Order Master'!$K:$K,0)),\"New\")","v":8201},{"$f":"IFERROR(INDEX('Work Order Master'!T:T,MATCH(WORKORDERS!$Q25,'Work Order Master'!$S:$S,0)),Q25)","v":"CUPE TRAINING AND DEV'T"},{"$f":"IFERROR(INDEX('FRS CC Master'!A:A,MATCH(WORKORDERS!$Q25*1,'FRS CC Master'!$C:$C,0)),WORKORDERS!$L25)","v":"Human Resources"},{"$f":"IFERROR(VLOOKUP($A25,'Work Order Master'!$K:$Q,7,FALSE),\"Remove\")","v":"N"}]
["11102-4-2","HR Training & PD - CUPE Career Development Fund","Active","11102-4","HR Training & PD - CUPE","(blank)","1102","Training & Professional Development","110","Human Resources Division","110","Human Resources","(blank)","101","Institutional","no",{"$f":"IFERROR(INDEX('Work Order Master'!$S:$S,MATCH(A26,'Work Order Master'!$K:$K,0)),\"New\")","v":8215},{"$f":"IFERROR(INDEX('Work Order Master'!T:T,MATCH(WORKORDERS!$Q26,'Work Order Master'!$S:$S,0)),Q26)","v":"CAREER DEV'T FUND"},{"$f":"IFERROR(INDEX('FRS CC Master'!A:A,MATCH(WORKORDERS!$Q26*1,'FRS CC Master'!$C:$C,0)),WORKORDERS!$L26)","v":"Human Resources"},{"$f":"IFERROR(VLOOKUP($A26,'Work Order Master'!$K:$Q,7,FALSE),\"Remove\")","v":"N"}]
["11102-5-1","HR Training & PD - VIUFA","Active","11102-5","HR Training & PD - VIUFA","(blank)","1102","Training & Professional Development","110","Human Resources Division","110","Human Resources","(blank)","101","Institutional","no",{"$f":"IFERROR(INDEX('Work Order Master'!$S:$S,MATCH(A27,'Work Order Master'!$K:$K,0)),\"New\")","v":8238},{"$f":"IFERROR(INDEX('Work Order Master'!T:T,MATCH(WORKORDERS!$Q27,'Work Order Master'!$S:$S,0)),Q27)","v":"VIUFA PROF. MEMBERSHIP"},{"$f":"IFERROR(INDEX('FRS CC Master'!A:A,MATCH(WORKORDERS!$Q27*1,'FRS CC Master'!$C:$C,0)),WORKORDERS!$L27)","v":"Human Resources"},{"$f":"IFERROR(VLOOKUP($A27,'Work Order Master'!$K:$Q,7,FALSE),\"Remove\")","v":"N"}]
["11102-6-1","HR Training & PD - VIUFA & BCGEU Chair Development","Active","11102-6","HR Training & PD - VIUFA & BCGEU","(blank)","1102","Training & Professional Development","110","Human Resources Division","110","Human Resources","(blank)","205","Chair","no",{"$f":"IFERROR(INDEX('Work Order Master'!$S:$S,MATCH(A28,'Work Order Master'!$K:$K,0)),\"New\")","v":8202},{"$f":"IFERROR(INDEX('Work Order Master'!T:T,MATCH(WORKORDERS!$Q28,'Work Order Master'!$S:$S,0)),Q28)","v":"CHAIR DEVELOPMENT"},{"$f":"IFERROR(INDEX('FRS CC Master'!A:A,MATCH(WORKORDERS!$Q28*1,'FRS CC Master'!$C:$C,0)),WORKORDERS!$L28)","v":"Human Resources"},{"$f":"IFERROR(VLOOKUP($A28,'Work Order Master'!$K:$Q,7,FALSE),\"Remove\")","v":"N"}]
["11110-1-1","HR Employee Relations Department","Parked","11110-1","HR Employee Relations Department","(blank)","1110","Employee Relations Department","111","Employee Relations","110","Human Resources","(blank)","100","Administration","no",{"$f":"IFERROR(INDEX('Work Order Master'!$S:$S,MATCH(A29,'Work Order Master'!$K:$K,0)),\"New\")","v":"New"},{"$f":"IFERROR(INDEX('Work Order Master'!T:T,MATCH(WORKORDERS!$Q29,'Work Order Master'!$S:$S,0)),Q29)","v":"New"},{"$f":"IFERROR(INDEX('FRS CC Master'!A:A,MATCH(WORKORDERS!$Q29*1,'FRS CC Master'!$C:$C,0)),WORKORDERS!$L29)","v":"Human Resources"},{"$f":"IFERROR(VLOOKUP($A29,'Work Order Master'!$K:$Q,7,FALSE),\"Remove\")","v":"P"}]
["11111-1-1","HR Collective Agreement / Legislation Interpretation and Application","Parked","11111-1","HR Collective Agreement / Legislation Interpretation and Application","(blank)","1111","Collective Agreement / Legislation Interpretation & Application","111","Employee Relations","110","Human Resources","(blank)","101","Institutional","no",{"$f":"IFERROR(INDEX('Work Order Master'!$S:$S,MATCH(A30,'Work Order Master'!$K:$K,0)),\"New\")","v":"New"},{"$f":"IFERROR(INDEX('Work Order Master'!T:T,MATCH(WORKORDERS!$Q30,'Work Order Master'!$S:$S,0)),Q30)","v":"New"},{"$f":"IFERROR(INDEX('FRS CC Master'!A:A,MATCH(WORKORDERS!$Q30*1,'FRS CC Master'!$C:$C,0)),WORKORDERS!$L30)","v":"Human Resources"},{"$f":"IFERROR(VLOOKUP($A30,'Work Order Master'!$K:$Q,7,FALSE),\"Remove\")","v":"P"}]
["11115-1-1","HR Institutional HR (Conflict Resolution and Risk Assessment)","Active","11115-1","HR Institutional HR (Conflict Resolution and Risk Assessment)","(blank)","1115","Conflict Resolution and Risk Assessment","111","Employee Relations","110","Human Resources","(blank)","101","Institutional","no",{"$f":"IFERROR(INDEX('Work Order Master'!$S:$S,MATCH(A31,'Work Order Master'!$K:$K,0)),\"New\")","v":8230},{"$f":"IFERROR(INDEX('Work Order Master'!T:T,MATCH(WORKORDERS!$Q31,'Work Order Master'!$S:$S,0)),Q31)","v":"INSTITUTIONAL HR"},{"$f":"IFERROR(INDEX('FRS CC Master'!A:A,MATCH(WORKORDERS!$Q31*1,'FRS CC Master'!$C:$C,0)),WORKORDERS!$L31)","v":"Human Resources"},{"$f":"IFERROR(VLOOKUP($A31,'Work Order Master'!$K:$Q,7,FALSE),\"Remove\")","v":"N"}]
["11120-1-1","HR External Legal Counsel And Mediation/Arbitration","Parked","11120-1","HR External Legal Counsel And Mediation/Arbitration","(blank)","1120","External Legal Counsel and Mediation/Arbitration","111","Employee Relations","110","Human Resources","(blank)","101","Institutional","no",{"$f":"IFERROR(INDEX('Work Order Master'!$S:$S,MATCH(A32,'Work Order Master'!$K:$K,0)),\"New\")","v":"New"},{"$f":"IFERROR(INDEX('Work Order Master'!T:T,MATCH(WORKORDERS!$Q32,'Work Order Master'!$S:$S,0)),Q32)","v":"New"},{"$f":"IFERROR(INDEX('FRS CC Master'!A:A,MATCH(WORKORDERS!$Q32*1,'FRS CC Master'!$C:$C,0)),WORKORDERS!$L32)","v":"Human Resources"},{"$f":"IFERROR(VLOOKUP($A32,'Work Order Master'!$K:$Q,7,FALSE),\"Remove\")","v":"P"}]
["11125-1-1","HR Investigations","Parked","11125-1","HR Investigations","(blank)","1125","Investigations","111","Employee Relations","110","Human Resources","(blank)","101","Institutional","no",{"$f":"IFERROR(INDEX('Work Order Master'!$S:$S,MATCH(A33,'Work Order Master'!$K:$K,0)),\"New\")","v":"New"},{"$f":"IFERROR(INDEX('Work Order Master'!T:T,MATCH(WORKORDERS!$Q33,'Work Order Master'!$S:$S,0)),Q33)","v":"New"},{"$f":"IFERROR(INDEX('FRS CC Master'!A:A,MATCH(WORKORDERS!$Q33*1,'FRS CC Master'!$C:$C,0)),WORKORDERS!$L33)","v":"Human Resources"},{"$f":"IFERROR(VLOOKUP($A33,'Work Order Master'!$K:$Q,7,FALSE),\"Remove\")","v":"P"}]
["11130-1-1","HR Performance Management","Parked","11130-1","HR Performance Management","(blank)","1130","Performance Management","111","Employee Relations","110","Human Resources","(blank)","101","Institutional","no",{"$f":"IFERROR(INDEX('Work Order Master'!$S:$S,MATCH(A34,'Work Order Master'!$K:$K,0)),\"New\")","v":"New"},{"$f":"IFERROR(INDEX('Work Order Master'!T:T,MATCH(WORKORDERS!$Q34,'Work Order Master'!$S:$S,0)),Q34)","v":"New"},{"$f":"IFERROR(INDEX('FRS CC Master'!A:A,MATCH(WORKORDERS!$Q34*1,'FRS CC Master'!$C:$C,0)),WORKORDERS!$L34)","v":"Human Resources"},{"$f":"IFERROR(VLOOKUP($A34,'Work Order Master'!$K:$Q,7,FALSE),\"Remove\")","v":"P"}]
["11150-1-1","HR Human Resources Department","Parked","11150-1","HR Human Resources Department","(blank)","1150","Human Resources Department","115","Human Resources Department","110","Human Resources","(blank)","100","Administration","no",{"$f":"IFERROR(INDEX('Work Order Master'!$S:$S,MATCH(A35,'Work Order Master'!$K:$K,0)),\"New\")","v":"New"},{"$f":"IFERROR(INDEX('Work Order Master'!T:T,MATCH(WORKORDERS!$Q35,'Work Order Master'!$S:$S,0)),Q35)","v":"New"},{"$f":"IFERROR(INDEX('FRS CC Master'!A:A,MATCH(WORKORDERS!$Q35*1,'FRS CC Master'!$C:$C,0)),WORKORDERS!$L35)","v":"Human Resources"},{"$f":"IFERROR(VLOOKUP($A35,'Work Order Master'!$K:$Q,7,FALSE),\"Remove\")","v":"P"}]
["11150-2-1","HR Human Resources Department - Systems and Projects","Parked","11150-2","HR Human Resources Department - Systems and Projects","(blank)","1150","Human Resources Department","115","Human Resources Department","110","Human Resources","(blank)","100","Administration","no",{"$f":"IFERROR(INDEX('Work Order Master'!$S:$S,MATCH(A36,'Work Order Master'!$K:$K,0)),\"New\")","v":"New"},{"$f":"IFERROR(INDEX('Work Order Master'!T:T,MATCH(WORKORDERS!$Q36,'Work Order Master'!$S:$S,0)),Q36)","v":"New"},{"$f":"IFERROR(INDEX('FRS CC Master'!A:A,MATCH(WORKORDERS!$Q36*1,'FRS CC Master'!$C:$C,0)),WORKORDERS!$L36)","v":"Human Resources"},{"$f":"IFERROR(VLOOKUP($A36,'Work Order Master'!$K:$Q,7,FALSE),\"Remove\")","v":"P"}]
["11151-1-1","HR Employee Wellbeing","Parked","11151-1","HR Employee Wellbeing","(blank)","1151","Employee Wellbeing","115","Human Resources Department","110","Human Resources","(blank)","101","Institutional","no",{"$f":"IFERROR(INDEX('Work Order Master'!$S:$S,MATCH(A37,'Work Order Master'!$K:$K,0)),\"New\")","v":"New"},{"$f":"IFERROR(INDEX('Work Order Master'!T:T,MATCH(WORKORDERS!$Q37,'Work Order Master'!$S:$S,0)),Q37)","v":"New"},{"$f":"IFERROR(INDEX('FRS CC Master'!A:A,MATCH(WORKORDERS!$Q37*1,'FRS CC Master'!$C:$C,0)),WORKORDERS!$L37)","v":"Human Resources"},{"$f":"IFERROR(VLOOKUP($A37,'Work Order Master'!$K:$Q,7,FALSE),\"Remove\")","v":"P"}]
["11151-2-1","HR Employee Wellbeing - Health","Parked","11151-2","HR Employee Wellbeing - Health","(blank)","1151","Employee Wellbeing","115","Human Resources Department","110","Human Resources","(blank)","101","Institutional","no",{"$f":"IFERROR(INDEX('Work Order Master'!$S:$S,MATCH(A38,'Work Order Master'!$K:$K,0)),\"New\")","v":"New"},{"$f":"IFERROR(INDEX('Work Order Master'!T:T,MATCH(WORKORDERS!$Q38,'Work Order Master'!$S:$S,0)),Q38)","v":"New"},{"$f":"IFERROR(INDEX('FRS CC Master'!A:A,MATCH(WORKORDERS!$Q38*1,'FRS CC Master'!$C:$C,0)),WORKORDERS!$L38)","v":"Human Resources"},{"$f":"IFERROR(VLOOKUP($A38,'Work Order Master'!$K:$Q,7,FALSE),\"Remove\")","v":"P"}]
["11151-2-2","HR Employee Wellbeing - Health - Accommodations","Active","11151-2","HR Employee Wellbeing - Health","(blank)","1151","Employee Wellbeing","115","Human Resources Department","110","Human Resources","(blank)","101","Institutional","no",{"$f":"IFERROR(INDEX('Work Order Master'!$S:$S,MATCH(A39,'Work Order Master'!$K:$K,0)),\"New\")","v":8206},{"$f":"IFERROR(INDEX('Work Order Master'!T:T,MATCH(WORKORDERS!$Q39,'Work Order Master'!$S:$S,0)),Q39)","v":"ACCOMMODATIONS"},{"$f":"IFERROR(INDEX('FRS CC Master'!A:A,MATCH(WORKORDERS!$Q39*1,'FRS CC Master'!$C:$C,0)),WORKORDERS!$L39)","v":"Human Resources"},{"$f":"IFERROR(VLOOKUP($A39,'Work Order Master'!$K:$Q,7,FALSE),\"Remove\")","v":"N"}]
["11151-2-3","HR Employee Wellbeing - Health - Employee Assistance Program","Active","11151-2","HR Employee Wellbeing - Health","(blank)","1151","Employee Wellbeing","115","Human Resources Department","110","Human Resources","(blank)","101","Institutional","no",{"$f":"IFERROR(INDEX('Work Order Master'!$S:$S,MATCH(A40,'Work Order Master'!$K:$K,0)),\"New\")","v":8207},{"$f":"IFERROR(INDEX('Work Order Master'!T:T,MATCH(WORKORDERS!$Q40,'Work Order Master'!$S:$S,0)),Q40)","v":"EMPLOYEE ASSIST"},{"$f":"IFERROR(INDEX('FRS CC Master'!A:A,MATCH(WORKORDERS!$Q40*1,'FRS CC Master'!$C:$C,0)),WORKORDERS!$L40)","v":"Human Resources"},{"$f":"IFERROR(VLOOKUP($A40,'Work Order Master'!$K:$Q,7,FALSE),\"Remove\")","v":"N"}]
["11151-2-4","HR Employee Wellbeing - Health - Medical Travel","Active","11151-2","HR Employee Wellbeing - Health","(blank)","1151","Employee Wellbeing","115","Human Resources Department","110","Human Resources","(blank)","101","Institutional","no",{"$f":"IFERROR(INDEX('Work Order Master'!$S:$S,MATCH(A41,'Work Order Master'!$K:$K,0)),\"New\")","v":8203},{"$f":"IFERROR(INDEX('Work Order Master'!T:T,MATCH(WORKORDERS!$Q41,'Work Order Master'!$S:$S,0)),Q41)","v":"MEDICAL TRAVEL"},{"$f":"IFERROR(INDEX('FRS CC Master'!A:A,MATCH(WORKORDERS!$Q41*1,'FRS CC Master'!$C:$C,0)),WORKORDERS!$L41)","v":"Human Resources"},{"$f":"IFERROR(VLOOKUP($A41,'Work Order Master'!$K:$Q,7,FALSE),\"Remove\")","v":"N"}]
["11151-3-1","HR Employee Wellbeing - Wellness","Active","11151-3","HR Employee Wellbeing - Wellness","(blank)","1151","Employee Wellbeing","115","Human Resources Department","110","Human Resources","(blank)","101","Institutional","no",{"$f":"IFERROR(INDEX('Work Order Master'!$S:$S,MATCH(A42,'Work Order Master'!$K:$K,0)),\"New\")","v":8204},{"$f":"IFERROR(INDEX('Work Order Master'!T:T,MATCH(WORKORDERS!$Q42,'Work Order Master'!$S:$S,0)),Q42)","v":"WORKPLACE WELLNESS"},{"$f":"IFERROR(INDEX('FRS CC Master'!A:A,MATCH(WORKORDERS!$Q42*1,'FRS CC Master'!$C:$C,0)),WORKORDERS!$L42)","v":"Human Resources"},{"$f":"IFERROR(VLOOKUP($A42,'Work Order Master'!$K:$Q,7,FALSE),\"Remove\")","v":"N"}]
["11151-4-1","HR Employee Wellbeing - Benefits","Parked","11151-4","HR Employee Wellbeing - Benefits","(blank)","1151","Employee Wellbeing","115","Human Resources Department","110","Human Resources","(blank)","101","Institutional","no",{"$f":"IFERROR(INDEX('Work Order Master'!$S:$S,MATCH(A43,'Work Order Master'!$K:$K,0)),\"New\")","v":"New"},{"$f":"IFERROR(INDEX('Work Order Master'!T:T,MATCH(WORKORDERS!$Q43,'Work Order Master'!$S:$S,0)),Q43)","v":"New"},{"$f":"IFERROR(INDEX('FRS CC Master'!A:A,MATCH(WORKORDERS!$Q43*1,'FRS CC Master'!$C:$C,0)),WORKORDERS!$L43)","v":"Human Resources"},{"$f":"IFERROR(VLOOKUP($A43,'Work Order Master'!$K:$Q,7,FALSE),\"Remove\")","v":"P"}]
["11155-1-1","HR Leave & Attendance Management","Parked","11155-1","HR Leave & Attendance Management","(blank)","1155","Leave & Attendance Management","115","Human Resources Department","110","Human Resources","(blank)","101","Institutional","no",{"$f":"IFERROR(INDEX('Work Order Master'!$S:$S,MATCH(A44,'Work Order Master'!$K:$K,0)),\"New\")","v":"New"},{"$f":"IFERROR(INDEX('Work Order Master'!T:T,MATCH(WORKORDERS!$Q44,'Work Order Master'!$S:$S,0)),Q44)","v":"New"},{"$f":"IFERROR(INDEX('FRS CC Master'!A:A,MATCH(WORKORDERS!$Q44*1,'FRS CC Master'!$C:$C,0)),WORKORDERS!$L44)","v":"Human Resources"},{"$f":"IFERROR(VLOOKUP($A44,'Work Order Master'!$K:$Q,7,FALSE),\"Remove\")","v":"P"}]
["11155-2-1","HR Leave & Attendance Management - ADMIN","Parked","11155-2","HR Leave & Attendance Management - ADMIN","(blank)","1155","Leave & Attendance Management","115","Human Resources Department","110","Human Resources","(blank)","101","Institutional","no",{"$f":"IFERROR(INDEX('Work Order Master'!$S:$S,MATCH(A45,'Work Order Master'!$K:$K,0)),\"New\")","v":"New"},{"$f":"IFERROR(INDEX('Work Order Master'!T:T,MATCH(WORKORDERS!$Q45,'Work Order Master'!$S:$S,0)),Q45)","v":"New"},{"$f":"IFERROR(INDEX('FRS CC Master'!A:A,MATCH(WORKORDERS!$Q45*1,'FRS CC Master'!$C:$C,0)),WORKORDERS!$L45)","v":"Human Resources"},{"$f":"IFERROR(VLOOKUP($A45,'Work Order Master'!$K:$Q,7,FALSE),\"Remove\")","v":"P"}]
["11155-3-1","HR Leave & Attendance Management - BCGEU","Parked","11155-3","HR Leave & Attendance Management - BCGEU","(blank)","1155","Leave & Attendance Management","115","Human Resources Department","110","Human Resources","(blank)","101","Institutional","no",{"$f":"IFERROR(INDEX('Work Order Master'!$S:$S,MATCH(A46,'Work Order Master'!$K:$K,0)),\"New\")","v":"New"},{"$f":"IFERROR(INDEX('Work Order Master'!T:T,MATCH(WORKORDERS!$Q46,'Work Order Master'!$S:$S,0)),Q46)","v":"New"},{"$f":"IFERROR(INDEX('FRS CC Master'!A:A,MATCH(WORKORDERS!$Q46*1,'FRS CC Master'!$C:$C,0)),WORKORDERS!$L46)","v":"Human Resources"},{"$f":"IFERROR(VLOOKUP($A46,'Work Order Master'!$K:$Q,7,FALSE),\"Remove\")","v":"P"}]
["11155-3-2","HR Leave & Attendance Management - BCGEU - UNION LEAVE","Active","11155-3","HR Leave & Attendance Management - BCGEU","(blank)","1155","Leave & Attendance Management","115","Human Resources Department","110","Human Resources","(blank)","101","Institutional","no",{"$f":"IFERROR(INDEX('Work Order Master'!$S:$S,MATCH(A47,'Work Order Master'!$K:$K,0)),\"New\")","v":8234},{"$f":"IFERROR(INDEX('Work Order Master'!T:T,MATCH(WORKORDERS!$Q47,'Work Order Master'!$S:$S,0)),Q47)","v":"UNION LEAVE BCGEU"},{"$f":"IFERROR(INDEX('FRS CC Master'!A:A,MATCH(WORKORDERS!$Q47*1,'FRS CC Master'!$C:$C,0)),WORKORDERS!$L47)","v":"Human Resources"},{"$f":"IFERROR(VLOOKUP($A47,'Work Order Master'!$K:$Q,7,FALSE),\"Remove\")","v":"N"}]
["11155-4-1","HR Leave & Attendance Management - CUPE","Parked","11155-4","HR Leave & Attendance Management - CUPE","(blank)","1155","Leave & Attendance Management","115","Human Resources Department","110","Human Resources","(blank)","101","Institutional","no",{"$f":"IFERROR(INDEX('Work Order Master'!$S:$S,MATCH(A48,'Work Order Master'!$K:$K,0)),\"New\")","v":"New"},{"$f":"IFERROR(INDEX('Work Order Master'!T:T,MATCH(WORKORDERS!$Q48,'Work Order Master'!$S:$S,0)),Q48)","v":"New"},{"$f":"IFERROR(INDEX('FRS CC Master'!A:A,MATCH(WORKORDERS!$Q48*1,'FRS CC Master'!$C:$C,0)),WORKORDERS!$L48)","v":"Human Resources"},{"$f":"IFERROR(VLOOKUP($A48,'Work Order Master'!$K:$Q,7,FALSE),\"Remove\")","v":"P"}]
["11155-4-2","HR Leave & Attendance Management - CUPE - UNION LEAVE","Active","11155-4","HR Leave & Attendance Management - CUPE","(blank)","1155","Leave & Attendance Management","115","Human Resources Department","110","Human Resources","(blank)","101","Institutional","no",{"$f":"IFERROR(INDEX('Work Order Master'!$S:$S,MATCH(A49,'Work Order Master'!$K:$K,0)),\"New\")","v":8235},{"$f":"IFERROR(INDEX('Work Order Master'!T:T,MATCH(WORKORDERS!$Q49,'Work Order Master'!$S:$S,0)),Q49)","v":"CUPE UNION RELE"},{"$f":"IFERROR(INDEX('FRS CC Master'!A:A,MATCH(WORKORDERS!$Q49*1,'FRS CC Master'!$C:$C,0)),WORKORDERS!$L49)","v":"Human Resources"},{"$f":"IFERROR(VLOOKUP($A49,'Work Order Master'!$K:$Q,7,FALSE),\"Remove\")","v":"N"}]
["11155-5-1","HR Leave & Attendance Management - VIUFA","Parked","11155-5","HR Leave & Attendance Management - VIUFA","(blank)","1155","Leave & Attendance Management","115","Human Resources Department","110","Human Resources","(blank)","101","Institutional","no",{"$f":"IFERROR(INDEX('Work Order Master'!$S:$S,MATCH(A50,'Work Order Master'!$K:$K,0)),\"New\")","v":"New"},{"$f":"IFERROR(INDEX('Work Order Master'!T:T,MATCH(WORKORDERS!$Q50,'Work Order Master'!$S:$S,0)),Q50)","v":"New"},{"$f":"IFERROR(INDEX('FRS CC Master'!A:A,MATCH(WORKORDERS!$Q50*1,'FRS CC Master'!$C:$C,0)),WORKORDERS!$L50)","v":"Human Resources"},{"$f":"IFERROR(VLOOKUP($A50,'Work Order Master'!$K:$Q,7,FALSE),\"Remove\")","v":"P"}]
["11155-5-2","HR Leave & Attendance Management - VIUFA - UNION LEAVE","Active","11155-5","HR Leave & Attendance Management - VIUFA","(blank)","1155","Leave & Attendance Management","115","Human Resources Department","110","Human Resources","(blank)","101","Institutional","no",{"$f":"IFERROR(INDEX('Work Order Master'!$S:$S,MATCH(A51,'Work Order Master'!$K:$K,0)),\"New\")","v":8237},{"$f":"IFERROR(INDEX('Work Order Master'!T:T,MATCH(WORKORDERS!$Q51,'Work Order Master'!$S:$S,0)),Q51)","v":"UNION LEAVE VIU FA"},{"$f":"IFERROR(INDEX('FRS CC Master'!A:A,MATCH(WORKORDERS!$Q51*1,'FRS CC Master'!$C:$C,0)),WORKORDERS!$L51)","v":"Human Resources"},{"$f":"IFERROR(VLOOKUP($A51,'Work Order Master'!$K:$Q,7,FALSE),\"Remove\")","v":"N"}]
["11155-5-3","HR Leave & Attendance Management - VIUFA - ASSISTED LEAVE","Active","11155-5","HR Leave & Attendance Management - VIUFA","(blank)","1155","Leave & Attendance Management","115","Human Resources Department","110","Human Resources","(blank)","101","Institutional","no",{"$f":"IFERROR(INDEX('Work Order Master'!$S:$S,MATCH(A52,'Work Order Master'!$K:$K,0)),\"New\")","v":8236},{"$f":"IFERROR(INDEX('Work Order Master'!T:T,MATCH(WORKORDERS!$Q52,'Work Order Master'!$S:$S,0)),Q52)","v":"VIUFA ASSISTED LEAVE"},{"$f":"IFERROR(INDEX('FRS CC Master'!A:A,MATCH(WORKORDERS!$Q52*1,'FRS CC Master'!$C:$C,0)),WORKORDERS!$L52)","v":"Human Resources"},{"$f":"IFERROR(VLOOKUP($A52,'Work Order Master'!$K:$Q,7,FALSE),\"Remove\")","v":"N"}]
["11160-1-1","HR Recognition & Retention","Active","11160-1","HR Recognition & Retention","(blank)","1160","Recognition & Retention","115","Human Resources Department","110","Human Resources","(blank)","101","Institutional","no",{"$f":"IFERROR(INDEX('Work Order Master'!$S:$S,MATCH(A53,'Work Order Master'!$K:$K,0)),\"New\")","v":8212},{"$f":"IFERROR(INDEX('Work Order Master'!T:T,MATCH(WORKORDERS!$Q53,'Work Order Master'!$S:$S,0)),Q53)","v":"EMPLOYEE RECOGNITION"},{"$f":"IFERROR(INDEX('FRS CC Master'!A:A,MATCH(WORKORDERS!$Q53*1,'FRS CC Master'!$C:$C,0)),WORKORDERS!$L53)","v":"Human Resources"},{"$f":"IFERROR(VLOOKUP($A53,'Work Order Master'!$K:$Q,7,FALSE),\"Remove\")","v":"N"}]
["11165-1-1","HR Recruitment & Job Evaluation","Parked","11165-1","HR Recruitment & Job Evaluation","(blank)","1165","Recruitment & Job Evaluation","115","Human Resources Department","110","Human Resources","(blank)","100","Administration","no",{"$f":"IFERROR(INDEX('Work Order Master'!$S:$S,MATCH(A54,'Work Order Master'!$K:$K,0)),\"New\")","v":"New"},{"$f":"IFERROR(INDEX('Work Order Master'!T:T,MATCH(WORKORDERS!$Q54,'Work Order Master'!$S:$S,0)),Q54)","v":"New"},{"$f":"IFERROR(INDEX('FRS CC Master'!A:A,MATCH(WORKORDERS!$Q54*1,'FRS CC Master'!$C:$C,0)),WORKORDERS!$L54)","v":"Human Resources"},{"$f":"IFERROR(VLOOKUP($A54,'Work Order Master'!$K:$Q,7,FALSE),\"Remove\")","v":"P"}]
["11165-2-1","HR Talent Acquisition","Parked","11165-2","HR Talent Acquisition","(blank)","1165","Recruitment & Job Evaluation","115","Human Resources Department","110","Human Resources","(blank)","101","Institutional","no",{"$f":"IFERROR(INDEX('Work Order Master'!$S:$S,MATCH(A55,'Work Order Master'!$K:$K,0)),\"New\")","v":"New"},{"$f":"IFERROR(INDEX('Work Order Master'!T:T,MATCH(WORKORDERS!$Q55,'Work Order Master'!$S:$S,0)),Q55)","v":"New"},{"$f":"IFERROR(INDEX('FRS CC Master'!A:A,MATCH(WORKORDERS!$Q55*1,'FRS CC Master'!$C:$C,0)),WORKORDERS!$L55)","v":"Human Resources"},{"$f":"IFERROR(VLOOKUP($A55,'Work Order Master'!$K:$Q,7,FALSE),\"Remove\")","v":"P"}]
["11165-2-2","HR Talent Acquisition - Employee Relocation Grant","Active","11165-2","HR Talent Acquisition","(blank)","1165","Recruitment & Job Evaluation","115","Human Resources Department","110","Human Resources","(blank)","101","Institutional","no",{"$f":"IFERROR(INDEX('Work Order Master'!$S:$S,MATCH(A56,'Work Order Master'!$K:$K,0)),\"New\")","v":8216},{"$f":"IFERROR(INDEX('Work Order Master'!T:T,MATCH(WORKORDERS!$Q56,'Work Order Master'!$S:$S,0)),Q56)","v":"EMPLOYEE RELOCATION GRANT"},{"$f":"IFERROR(INDEX('FRS CC Master'!A:A,MATCH(WORKORDERS!$Q56*1,'FRS CC Master'!$C:$C,0)),WORKORDERS!$L56)","v":"Human Resources"},{"$f":"IFERROR(VLOOKUP($A56,'Work Order Master'!$K:$Q,7,FALSE),\"Remove\")","v":"N"}]
["11165-2-3","HR Talent Acquisition - Recruitment Gen. Services","Active","11165-2","HR Talent Acquisition","(blank)","1165","Recruitment & Job Evaluation","115","Human Resources Department","110","Human Resources","(blank)","101","Institutional","no",{"$f":"IFERROR(INDEX('Work Order Master'!$S:$S,MATCH(A57,'Work Order Master'!$K:$K,0)),\"New\")","v":8231},{"$f":"IFERROR(INDEX('Work Order Master'!T:T,MATCH(WORKORDERS!$Q57,'Work Order Master'!$S:$S,0)),Q57)","v":"RECRUITMENT GEN. SERVICES "},{"$f":"IFERROR(INDEX('FRS CC Master'!A:A,MATCH(WORKORDERS!$Q57*1,'FRS CC Master'!$C:$C,0)),WORKORDERS!$L57)","v":"Human Resources"},{"$f":"IFERROR(VLOOKUP($A57,'Work Order Master'!$K:$Q,7,FALSE),\"Remove\")","v":"N"}]
["11165-2-4","HR Talent Acquisition - Senior Administrator Recruiting","Active","11165-2","HR Talent Acquisition","(blank)","1165","Recruitment & Job Evaluation","115","Human Resources Department","110","Human Resources","(blank)","101","Institutional","no",{"$f":"IFERROR(INDEX('Work Order Master'!$S:$S,MATCH(A58,'Work Order Master'!$K:$K,0)),\"New\")","v":8232},{"$f":"IFERROR(INDEX('Work Order Master'!T:T,MATCH(WORKORDERS!$Q58,'Work Order Master'!$S:$S,0)),Q58)","v":"SENIOR ADMIN. RECRUITMENT"},{"$f":"IFERROR(INDEX('FRS CC Master'!A:A,MATCH(WORKORDERS!$Q58*1,'FRS CC Master'!$C:$C,0)),WORKORDERS!$L58)","v":"Human Resources"},{"$f":"IFERROR(VLOOKUP($A58,'Work Order Master'!$K:$Q,7,FALSE),\"Remove\")","v":"N"}]
["11165-2-5","HR Talent Acquisition - Instructional Recruitment","Active","11165-2","HR Talent Acquisition","(blank)","1165","Recruitment & Job Evaluation","115","Human Resources Department","110","Human Resources","(blank)","101","Institutional","no",{"$f":"IFERROR(INDEX('Work Order Master'!$S:$S,MATCH(A59,'Work Order Master'!$K:$K,0)),\"New\")","v":8233},{"$f":"IFERROR(INDEX('Work Order Master'!T:T,MATCH(WORKORDERS!$Q59,'Work Order Master'!$S:$S,0)),Q59)","v":"INSTRUCTIONAL RECRUITMENT "},{"$f":"IFERROR(INDEX('FRS CC Master'!A:A,MATCH(WORKORDERS!$Q59*1,'FRS CC Master'!$C:$C,0)),WORKORDERS!$L59)","v":"Human Resources"},{"$f":"IFERROR(VLOOKUP($A59,'Work Order Master'!$K:$Q,7,FALSE),\"Remove\")","v":"N"}]
["11165-3-1","HR Orientation","Parked","11165-3","HR Orientation","(blank)","1165","Recruitment & Job Evaluation","115","Human Resources Department","110","Human Resources","(blank)","100","Administration","no",{"$f":"IFERROR(INDEX('Work Order Master'!$S:$S,MATCH(A60,'Work Order Master'!$K:$K,0)),\"New\")","v":"New"},{"$f":"IFERROR(INDEX('Work Order Master'!T:T,MATCH(WORKORDERS!$Q60,'Work Order Master'!$S:$S,0)),Q60)","v":"New"},{"$f":"IFERROR(INDEX('FRS CC Master'!A:A,MATCH(WORKORDERS!$Q60*1,'FRS CC Master'!$C:$C,0)),WORKORDERS!$L60)","v":"Human Resources"},{"$f":"IFERROR(VLOOKUP($A60,'Work Order Master'!$K:$Q,7,FALSE),\"Remove\")","v":"P"}]
["11165-4-1","HR Job Evaluation","Parked","11165-4","HR Job Evaluation","(blank)","1165","Recruitment & Job Evaluation","115","Human Resources Department","110","Human Resources","(blank)","101","Institutional","no",{"$f":"IFERROR(INDEX('Work Order Master'!$S:$S,MATCH(A61,'Work Order Master'!$K:$K,0)),\"New\")","v":"New"},{"$f":"IFERROR(INDEX('Work Order Master'!T:T,MATCH(WORKORDERS!$Q61,'Work Order Master'!$S:$S,0)),Q61)","v":"New"},{"$f":"IFERROR(INDEX('FRS CC Master'!A:A,MATCH(WORKORDERS!$Q61*1,'FRS CC Master'!$C:$C,0)),WORKORDERS!$L61)","v":"Human Resources"},{"$f":"IFERROR(VLOOKUP($A61,'Work Order Master'!$K:$Q,7,FALSE),\"Remove\")","v":"P"}]
["11500-1-1","CP Community Partnerships Division","Active","11500-1","CP Community Partnerships Division","(blank)","1500","Community Partnerships Division","150","Community Partnerships","150","Community Partnerships","(blank)","100","Administration","no",{"$f":"IFERROR(INDEX('Work Order Master'!$S:$S,MATCH(A62,'Work Order Master'!$K:$K,0)),\"New\")","v":8900},{"$f":"IFERROR(INDEX('Work Order Master'!T:T,MATCH(WORKORDERS!$Q62,'Work Order Master'!$S:$S,0)),Q62)","v":"COMMUNITY PARTNERSHIPS "},{"$f":"IFERROR(INDEX('FRS CC Master'!A:A,MATCH(WORKORDERS!$Q62*1,'FRS CC Master'!$C:$C,0)),WORKORDERS!$L62)","v":"Community Partnerships"},{"$f":"IFERROR(VLOOKUP($A62,'Work Order Master'!$K:$Q,7,FALSE),\"Remove\")","v":"N"}]
["11501-1-1","CP Canada Learning Bond","Active","11501-1","CP Community Partnerships - Initiatives","(blank)","1501","Community Partnerships - Initiatives","150","Community Partnerships","150","Community Partnerships","(blank)","101","Institutional","no",{"$f":"IFERROR(INDEX('Work Order Master'!$S:$S,MATCH(A63,'Work Order Master'!$K:$K,0)),\"New\")","v":8908},{"$f":"IFERROR(INDEX('Work Order Master'!T:T,MATCH(WORKORDERS!$Q63,'Work Order Master'!$S:$S,0)),Q63)","v":"CANADA LEARNING BOND"},{"$f":"IFERROR(INDEX('FRS CC Master'!A:A,MATCH(WORKORDERS!$Q63*1,'FRS CC Master'!$C:$C,0)),WORKORDERS!$L63)","v":"Community Partnerships"},{"$f":"IFERROR(VLOOKUP($A63,'Work Order Master'!$K:$Q,7,FALSE),\"Remove\")","v":"N"}]
["11501-2-1","CP Scholarship - Internally Funded","Parked","11501-2","CP Scholarships, Awards and Bursaries","(blank)","1501","Community Partnerships - Initiatives","150","Community Partnerships","150","Community Partnerships","(blank)","101","Institutional","no",{"$f":"IFERROR(INDEX('Work Order Master'!$S:$S,MATCH(A64,'Work Order Master'!$K:$K,0)),\"New\")","v":"New"},{"$f":"IFERROR(INDEX('Work Order Master'!T:T,MATCH(WORKORDERS!$Q64,'Work Order Master'!$S:$S,0)),Q64)","v":"New"},{"$f":"IFERROR(INDEX('FRS CC Master'!A:A,MATCH(WORKORDERS!$Q64*1,'FRS CC Master'!$C:$C,0)),WORKORDERS!$L64)","v":"Community Partnerships"},{"$f":"IFERROR(VLOOKUP($A64,'Work Order Master'!$K:$Q,7,FALSE),\"Remove\")","v":"Remove"}]
["11502-1-1","CP Annual Campaigns","Parked","11502-1","CP Annual Campaigns","(blank)","1502","Campaigns","150","Community Partnerships","150","Community Partnerships","(blank)","101","Institutional","no",{"$f":"IFERROR(INDEX('Work Order Master'!$S:$S,MATCH(A65,'Work Order Master'!$K:$K,0)),\"New\")","v":"New"},{"$f":"IFERROR(INDEX('Work Order Master'!T:T,MATCH(WORKORDERS!$Q65,'Work Order Master'!$S:$S,0)),Q65)","v":"New"},{"$f":"IFERROR(INDEX('FRS CC Master'!A:A,MATCH(WORKORDERS!$Q65*1,'FRS CC Master'!$C:$C,0)),WORKORDERS!$L65)","v":"Community Partnerships"},{"$f":"IFERROR(VLOOKUP($A65,'Work Order Master'!$K:$Q,7,FALSE),\"Remove\")","v":"P"}]
["11502-1-2","CP Giving Tuesday Campaign","Parked","11502-1","CP Annual Campaigns","(blank)","1502","Campaigns","150","Community Partnerships","150","Community Partnerships","(blank)","101","Institutional","no",{"$f":"IFERROR(INDEX('Work Order Master'!$S:$S,MATCH(A66,'Work Order Master'!$K:$K,0)),\"New\")","v":"New"},{"$f":"IFERROR(INDEX('Work Order Master'!T:T,MATCH(WORKORDERS!$Q66,'Work Order Master'!$S:$S,0)),Q66)","v":"New"},{"$f":"IFERROR(INDEX('FRS CC Master'!A:A,MATCH(WORKORDERS!$Q66*1,'FRS CC Master'!$C:$C,0)),WORKORDERS!$L66)","v":"Community Partnerships"},{"$f":"IFERROR(VLOOKUP($A66,'Work Order Master'!$K:$Q,7,FALSE),\"Remove\")","v":"P"}]
["11502-2-1","CP Imagine VIU Campaign","Active","11502-2","CP VIU Campaigns","(blank)","1502","Campaigns","150","Community Partnerships","150","Community Partnerships","(blank)","101","Institutional","no",{"$f":"IFERROR(INDEX('Work Order Master'!$S:$S,MATCH(A67,'Work Order Master'!$K:$K,0)),\"New\")","v":8816},{"$f":"IFERROR(INDEX('Work Order Master'!T:T,MATCH(WORKORDERS!$Q67,'Work Order Master'!$S:$S,0)),Q67)","v":"CAMPAIGN"},{"$f":"IFERROR(INDEX('FRS CC Master'!A:A,MATCH(WORKORDERS!$Q67*1,'FRS CC Master'!$C:$C,0)),WORKORDERS!$L67)","v":"Community Partnerships"},{"$f":"IFERROR(VLOOKUP($A67,'Work Order Master'!$K:$Q,7,FALSE),\"Remove\")","v":"N"}]
["11503-1-1","CP Sponsorship - Nanaimo","Active","11503-1","CP Sponsorship","(blank)","1503","Sponsorship","150","Community Partnerships","150","Community Partnerships","(blank)","101","Institutional",{"$f":"IF(OR(A68=A67,A68=A69),\"yes\",\"no\")","v":"no"},{"$f":"IFERROR(INDEX('Work Order Master'!$S:$S,MATCH(A68,'Work Order Master'!$K:$K,0)),\"New\")","v":8907},{"$f":"IFERROR(INDEX('Work Order Master'!T:T,MATCH(WORKORDERS!$Q68,'Work Order Master'!$S:$S,0)),Q68)","v":"SPONSORSHIP"},{"$f":"IFERROR(INDEX('FRS CC Master'!A:A,MATCH(WORKORDERS!$Q68*1,'FRS CC Master'!$C:$C,0)),WORKORDERS!$L68)","v":"Community Partnerships"},{"$f":"IFERROR(VLOOKUP($A68,'Work Order Master'!$K:$Q,7,FALSE),\"Remove\")","v":"N"}]
["11503-1-2","CP Sponsorship - Cowichan Valley","Parked","11503-1","CP Sponsorship","(blank)","1503","Sponsorship","150","Community Partnerships","150","Community Partnerships","(blank)","101","Institutional","no",{"$f":"IFERROR(INDEX('Work Order Master'!$S:$S,MATCH(A69,'Work Order Master'!$K:$K,0)),\"New\")","v":"New"},{"$f":"IFERROR(INDEX('Work Order Master'!T:T,MATCH(WORKORDERS!$Q69,'Work Order Master'!$S:$S,0)),Q69)","v":"New"},{"$f":"IFERROR(INDEX('FRS CC Master'!A:A,MATCH(WORKORDERS!$Q69*1,'FRS CC Master'!$C:$C,0)),WORKORDERS!$L69)","v":"Community Partnerships"},{"$f":"IFERROR(VLOOKUP($A69,'Work Order Master'!$K:$Q,7,FALSE),\"Remove\")","v":"P"}]
["11503-1-3","CP Sponsorship - Parksville-Qualicum","Parked","11503-1","CP Sponsorship","(blank)","1503","Sponsorship","150","Community Partnerships","150","Community Partnerships","(blank)","101","Institutional","no",{"$f":"IFERROR(INDEX('Work Order Master'!$S:$S,MATCH(A70,'Work Order Master'!$K:$K,0)),\"New\")","v":"New"},{"$f":"IFERROR(INDEX('Work Order Master'!T:T,MATCH(WORKORDERS!$Q70,'Work Order Master'!$S:$S,0)),Q70)","v":"New"},{"$f":"IFERROR(INDEX('FRS CC Master'!A:A,MATCH(WORKORDERS!$Q70*1,'FRS CC Master'!$C:$C,0)),WORKORDERS!$L70)","v":"Community Partnerships"},{"$f":"IFERROR(VLOOKUP($A70,'Work Order Master'!$K:$Q,7,FALSE),\"Remove\")","v":"P"}]
["11503-1-4","CP Sponsorship - Powell River","Parked","11503-1","CP Sponsorship","(blank)","1503","Sponsorship","150","Community Partnerships","150","Community Partnerships","(blank)","101","Institutional","no",{"$f":"IFERROR(INDEX('Work Order Master'!$S:$S,MATCH(A71,'Work Order Master'!$K:$K,0)),\"New\")","v":"New"},{"$f":"IFERROR(INDEX('Work Order Master'!T:T,MATCH(WORKORDERS!$Q71,'Work Order Master'!$S:$S,0)),Q71)","v":"New"},{"$f":"IFERROR(INDEX('FRS CC Master'!A:A,MATCH(WORKORDERS!$Q71*1,'FRS CC Master'!$C:$C,0)),WORKORDERS!$L71)","v":"Community Partnerships"},{"$f":"IFERROR(VLOOKUP($A71,'Work Order Master'!$K:$Q,7,FALSE),\"Remove\")","v":"P"}]
["11503-1-5","CP Sponsorship - Vancouver Island Focus","Parked","11503-1","CP Sponsorship","(blank)","1503","Sponsorship","150","Community Partnerships","150","Community Partnerships","(blank)","101","Institutional","no",{"$f":"IFERROR(INDEX('Work Order Master'!$S:$S,MATCH(A72,'Work Order Master'!$K:$K,0)),\"New\")","v":"New"},{"$f":"IFERROR(INDEX('Work Order Master'!T:T,MATCH(WORKORDERS!$Q72,'Work Order Master'!$S:$S,0)),Q72)","v":"New"},{"$f":"IFERROR(INDEX('FRS CC Master'!A:A,MATCH(WORKORDERS!$Q72*1,'FRS CC Master'!$C:$C,0)),WORKORDERS!$L72)","v":"Community Partnerships"},{"$f":"IFERROR(VLOOKUP($A72,'Work Order Master'!$K:$Q,7,FALSE),\"Remove\")","v":"P"}]
["11503-1-6","CP Sponsorship - Provincial Focus","Parked","11503-1","CP Sponsorship","(blank)","1503","Sponsorship","150","Community Partnerships","150","Community Partnerships","(blank)","101","Institutional","no",{"$f":"IFERROR(INDEX('Work Order Master'!$S:$S,MATCH(A73,'Work Order Master'!$K:$K,0)),\"New\")","v":"New"},{"$f":"IFERROR(INDEX('Work Order Master'!T:T,MATCH(WORKORDERS!$Q73,'Work Order Master'!$S:$S,0)),Q73)","v":"New"},{"$f":"IFERROR(INDEX('FRS CC Master'!A:A,MATCH(WORKORDERS!$Q73*1,'FRS CC Master'!$C:$C,0)),WORKORDERS!$L73)","v":"Community Partnerships"},{"$f":"IFERROR(VLOOKUP($A73,'Work Order Master'!$K:$Q,7,FALSE),\"Remove\")","v":"P"}]
["11503-1-7","CP Sponsorship - National Focus","Parked","11503-1","CP Sponsorship","(blank)","1503","Sponsorship","150","Community Partnerships","150","Community Partnerships","(blank)","101","Institutional","no",{"$f":"IFERROR(INDEX('Work Order Master'!$S:$S,MATCH(A74,'Work Order Master'!$K:$K,0)),\"New\")","v":"New"},{"$f":"IFERROR(INDEX('Work Order Master'!T:T,MATCH(WORKORDERS!$Q74,'Work Order Master'!$S:$S,0)),Q74)","v":"New"},{"$f":"IFERROR(INDEX('FRS CC Master'!A:A,MATCH(WORKORDERS!$Q74*1,'FRS CC Master'!$C:$C,0)),WORKORDERS!$L74)","v":"Community Partnerships"},{"$f":"IFERROR(VLOOKUP($A74,'Work Order Master'!$K:$Q,7,FALSE),\"Remove\")","v":"P"}]
["11505-1-1","CP Advancement Services","Active","11505-1","CP Advancement Services","(blank)","1505","Advancement Services","150","Community Partnerships","150","Community Partnerships","(blank)","100","Administration","no",{"$f":"IFERROR(INDEX('Work Order Master'!$S:$S,MATCH(A75,'Work Order Master'!$K:$K,0)),\"New\")","v":8808},{"$f":"IFERROR(INDEX('Work Order Master'!T:T,MATCH(WORKORDERS!$Q75,'Work Order Master'!$S:$S,0)),Q75)","v":"ADVANCEMENT OFFICE"},{"$f":"IFERROR(INDEX('FRS CC Master'!A:A,MATCH(WORKORDERS!$Q75*1,'FRS CC Master'!$C:$C,0)),WORKORDERS!$L75)","v":"Community Partnerships"},{"$f":"IFERROR(VLOOKUP($A75,'Work Order Master'!$K:$Q,7,FALSE),\"Remove\")","v":"N"}]
["11505-2-1","CP Gift Officer - Academic and Career Preparation","Parked","11505-2","CP Gift Officers","(blank)","1505","Advancement Services","150","Community Partnerships","150","Community Partnerships","(blank)","100","Administration","no",{"$f":"IFERROR(INDEX('Work Order Master'!$S:$S,MATCH(A76,'Work Order Master'!$K:$K,0)),\"New\")","v":"New"},{"$f":"IFERROR(INDEX('Work Order Master'!T:T,MATCH(WORKORDERS!$Q76,'Work Order Master'!$S:$S,0)),Q76)","v":"New"},{"$f":"IFERROR(INDEX('FRS CC Master'!A:A,MATCH(WORKORDERS!$Q76*1,'FRS CC Master'!$C:$C,0)),WORKORDERS!$L76)","v":"Community Partnerships"},{"$f":"IFERROR(VLOOKUP($A76,'Work Order Master'!$K:$Q,7,FALSE),\"Remove\")","v":"P"}]
["11505-2-2","CP Gift Officer - Arts & Humanities","Parked","11505-2","CP Gift Officers","(blank)","1505","Advancement Services","150","Community Partnerships","150","Community Partnerships","(blank)","100","Administration","no",{"$f":"IFERROR(INDEX('Work Order Master'!$S:$S,MATCH(A77,'Work Order Master'!$K:$K,0)),\"New\")","v":"New"},{"$f":"IFERROR(INDEX('Work Order Master'!T:T,MATCH(WORKORDERS!$Q77,'Work Order Master'!$S:$S,0)),Q77)","v":"New"},{"$f":"IFERROR(INDEX('FRS CC Master'!A:A,MATCH(WORKORDERS!$Q77*1,'FRS CC Master'!$C:$C,0)),WORKORDERS!$L77)","v":"Community Partnerships"},{"$f":"IFERROR(VLOOKUP($A77,'Work Order Master'!$K:$Q,7,FALSE),\"Remove\")","v":"P"}]
["11505-2-3","CP Gift Officer - Education","Parked","11505-2","CP Gift Officers","(blank)","1505","Advancement Services","150","Community Partnerships","150","Community Partnerships","(blank)","100","Administration","no",{"$f":"IFERROR(INDEX('Work Order Master'!$S:$S,MATCH(A78,'Work Order Master'!$K:$K,0)),\"New\")","v":"New"},{"$f":"IFERROR(INDEX('Work Order Master'!T:T,MATCH(WORKORDERS!$Q78,'Work Order Master'!$S:$S,0)),Q78)","v":"New"},{"$f":"IFERROR(INDEX('FRS CC Master'!A:A,MATCH(WORKORDERS!$Q78*1,'FRS CC Master'!$C:$C,0)),WORKORDERS!$L78)","v":"Community Partnerships"},{"$f":"IFERROR(VLOOKUP($A78,'Work Order Master'!$K:$Q,7,FALSE),\"Remove\")","v":"P"}]
["11505-2-4","CP Gift Officer - Health & Human Services","Parked","11505-2","CP Gift Officers","(blank)","1505","Advancement Services","150","Community Partnerships","150","Community Partnerships","(blank)","100","Administration","no",{"$f":"IFERROR(INDEX('Work Order Master'!$S:$S,MATCH(A79,'Work Order Master'!$K:$K,0)),\"New\")","v":"New"},{"$f":"IFERROR(INDEX('Work Order Master'!T:T,MATCH(WORKORDERS!$Q79,'Work Order Master'!$S:$S,0)),Q79)","v":"New"},{"$f":"IFERROR(INDEX('FRS CC Master'!A:A,MATCH(WORKORDERS!$Q79*1,'FRS CC Master'!$C:$C,0)),WORKORDERS!$L79)","v":"Community Partnerships"},{"$f":"IFERROR(VLOOKUP($A79,'Work Order Master'!$K:$Q,7,FALSE),\"Remove\")","v":"P"}]
["11505-2-5","CP Gift Officer - International Education","Parked","11505-2","CP Gift Officers","(blank)","1505","Advancement Services","150","Community Partnerships","150","Community Partnerships","(blank)","100","Administration","no",{"$f":"IFERROR(INDEX('Work Order Master'!$S:$S,MATCH(A80,'Work Order Master'!$K:$K,0)),\"New\")","v":"New"},{"$f":"IFERROR(INDEX('Work Order Master'!T:T,MATCH(WORKORDERS!$Q80,'Work Order Master'!$S:$S,0)),Q80)","v":"New"},{"$f":"IFERROR(INDEX('FRS CC Master'!A:A,MATCH(WORKORDERS!$Q80*1,'FRS CC Master'!$C:$C,0)),WORKORDERS!$L80)","v":"Community Partnerships"},{"$f":"IFERROR(VLOOKUP($A80,'Work Order Master'!$K:$Q,7,FALSE),\"Remove\")","v":"P"}]
["11505-2-6","CP Gift Officer - Management","Parked","11505-2","CP Gift Officers","(blank)","1505","Advancement Services","150","Community Partnerships","150","Community Partnerships","(blank)","100","Administration","no",{"$f":"IFERROR(INDEX('Work Order Master'!$S:$S,MATCH(A81,'Work Order Master'!$K:$K,0)),\"New\")","v":"New"},{"$f":"IFERROR(INDEX('Work Order Master'!T:T,MATCH(WORKORDERS!$Q81,'Work Order Master'!$S:$S,0)),Q81)","v":"New"},{"$f":"IFERROR(INDEX('FRS CC Master'!A:A,MATCH(WORKORDERS!$Q81*1,'FRS CC Master'!$C:$C,0)),WORKORDERS!$L81)","v":"Community Partnerships"},{"$f":"IFERROR(VLOOKUP($A81,'Work Order Master'!$K:$Q,7,FALSE),\"Remove\")","v":"P"}]
["11505-2-7","CP Gift Officer - Science & Technology","Parked","11505-2","CP Gift Officers","(blank)","1505","Advancement Services","150","Community Partnerships","150","Community Partnerships","(blank)","100","Administration","no",{"$f":"IFERROR(INDEX('Work Order Master'!$S:$S,MATCH(A82,'Work Order Master'!$K:$K,0)),\"New\")","v":"New"},{"$f":"IFERROR(INDEX('Work Order Master'!T:T,MATCH(WORKORDERS!$Q82,'Work Order Master'!$S:$S,0)),Q82)","v":"New"},{"$f":"IFERROR(INDEX('FRS CC Master'!A:A,MATCH(WORKORDERS!$Q82*1,'FRS CC Master'!$C:$C,0)),WORKORDERS!$L82)","v":"Community Partnerships"},{"$f":"IFERROR(VLOOKUP($A82,'Work Order Master'!$K:$Q,7,FALSE),\"Remove\")","v":"P"}]
["11505-2-8","CP Gift Officer - Social Sciences","Parked","11505-2","CP Gift Officers","(blank)","1505","Advancement Services","150","Community Partnerships","150","Community Partnerships","(blank)","100","Administration","no",{"$f":"IFERROR(INDEX('Work Order Master'!$S:$S,MATCH(A83,'Work Order Master'!$K:$K,0)),\"New\")","v":"New"},{"$f":"IFERROR(INDEX('Work Order Master'!T:T,MATCH(WORKORDERS!$Q83,'Work Order Master'!$S:$S,0)),Q83)","v":"New"},{"$f":"IFERROR(INDEX('FRS CC Master'!A:A,MATCH(WORKORDERS!$Q83*1,'FRS CC Master'!$C:$C,0)),WORKORDERS!$L83)","v":"Community Partnerships"},{"$f":"IFERROR(VLOOKUP($A83,'Work Order Master'!$K:$Q,7,FALSE),\"Remove\")","v":"P"}]
["11505-2-9","CP Gift Officer - Trades & Applied Technology","Parked","11505-2","CP Gift Officers","(blank)","1505","Advancement Services","150","Community Partnerships","150","Community Partnerships","(blank)","100","Administration","no",{"$f":"IFERROR(INDEX('Work Order Master'!$S:$S,MATCH(A84,'Work Order Master'!$K:$K,0)),\"New\")","v":"New"},{"$f":"IFERROR(INDEX('Work Order Master'!T:T,MATCH(WORKORDERS!$Q84,'Work Order Master'!$S:$S,0)),Q84)","v":"New"},{"$f":"IFERROR(INDEX('FRS CC Master'!A:A,MATCH(WORKORDERS!$Q84*1,'FRS CC Master'!$C:$C,0)),WORKORDERS!$L84)","v":"Community Partnerships"},{"$f":"IFERROR(VLOOKUP($A84,'Work Order Master'!$K:$Q,7,FALSE),\"Remove\")","v":"P"}]
["11510-1-1","CP Alumni Relations","Active","11510-1","CP Alumni Relations","(blank)","1510","Alumni Relations","150","Community Partnerships","150","Community Partnerships","(blank)","100","Administration","no",{"$f":"IFERROR(INDEX('Work Order Master'!$S:$S,MATCH(A85,'Work Order Master'!$K:$K,0)),\"New\")","v":8815},{"$f":"IFERROR(INDEX('Work Order Master'!T:T,MATCH(WORKORDERS!$Q85,'Work Order Master'!$S:$S,0)),Q85)","v":"ALUMNI RELATIONS"},{"$f":"IFERROR(INDEX('FRS CC Master'!A:A,MATCH(WORKORDERS!$Q85*1,'FRS CC Master'!$C:$C,0)),WORKORDERS!$L85)","v":"Community Partnerships"},{"$f":"IFERROR(VLOOKUP($A85,'Work Order Master'!$K:$Q,7,FALSE),\"Remove\")","v":"N"}]
["11510-2-1","CP Call Centre","Active","11510-2","CP Call Centre","(blank)","1510","Alumni Relations","150","Community Partnerships","150","Community Partnerships","(blank)","100","Administration","no",{"$f":"IFERROR(INDEX('Work Order Master'!$S:$S,MATCH(A86,'Work Order Master'!$K:$K,0)),\"New\")","v":8817},{"$f":"IFERROR(INDEX('Work Order Master'!T:T,MATCH(WORKORDERS!$Q86,'Work Order Master'!$S:$S,0)),Q86)","v":"CALL CENTRE"},{"$f":"IFERROR(INDEX('FRS CC Master'!A:A,MATCH(WORKORDERS!$Q86*1,'FRS CC Master'!$C:$C,0)),WORKORDERS!$L86)","v":"Community Partnerships"},{"$f":"IFERROR(VLOOKUP($A86,'Work Order Master'!$K:$Q,7,FALSE),\"Remove\")","v":"N"}]
["11515-1-1","CP Donor Relations","Parked","11515-1","CP Donor Relations","(blank)","1515","Donor Relations","150","Community Partnerships","150","Community Partnerships","(blank)","100","Administration","no",{"$f":"IFERROR(INDEX('Work Order Master'!$S:$S,MATCH(A87,'Work Order Master'!$K:$K,0)),\"New\")","v":"New"},{"$f":"IFERROR(INDEX('Work Order Master'!T:T,MATCH(WORKORDERS!$Q87,'Work Order Master'!$S:$S,0)),Q87)","v":"New"},{"$f":"IFERROR(INDEX('FRS CC Master'!A:A,MATCH(WORKORDERS!$Q87*1,'FRS CC Master'!$C:$C,0)),WORKORDERS!$L87)","v":"Community Partnerships"},{"$f":"IFERROR(VLOOKUP($A87,'Work Order Master'!$K:$Q,7,FALSE),\"Remove\")","v":"P"}]
["11520-1-1","CP Major Gifts & Legacies","Parked","11520-1","CP Major Gifts & Legacies","(blank)","1520","Major Gifts & Legacies","150","Community Partnerships","150","Community Partnerships","(blank)","100","Administration","no",{"$f":"IFERROR(INDEX('Work Order Master'!$S:$S,MATCH(A88,'Work Order Master'!$K:$K,0)),\"New\")","v":"New"},{"$f":"IFERROR(INDEX('Work Order Master'!T:T,MATCH(WORKORDERS!$Q88,'Work Order Master'!$S:$S,0)),Q88)","v":"New"},{"$f":"IFERROR(INDEX('FRS CC Master'!A:A,MATCH(WORKORDERS!$Q88*1,'FRS CC Master'!$C:$C,0)),WORKORDERS!$L88)","v":"Community Partnerships"},{"$f":"IFERROR(VLOOKUP($A88,'Work Order Master'!$K:$Q,7,FALSE),\"Remove\")","v":"P"}]
["11550-1-1","CP Milner Gardens - Administration","Active","11550-1","CP Milner Gardens - Administration","(blank)","1550","Milner Gardens Administration","155","Milner Gardens","150","Community Partnerships","(blank)","100","Administration","no",{"$f":"IFERROR(INDEX('Work Order Master'!$S:$S,MATCH(A89,'Work Order Master'!$K:$K,0)),\"New\")","v":9636},{"$f":"IFERROR(INDEX('Work Order Master'!T:T,MATCH(WORKORDERS!$Q89,'Work Order Master'!$S:$S,0)),Q89)","v":"OFFICE ADMINISTRATION"},{"$f":"IFERROR(INDEX('FRS CC Master'!A:A,MATCH(WORKORDERS!$Q89*1,'FRS CC Master'!$C:$C,0)),WORKORDERS!$L89)","v":"Milner Gardens - Operations"},{"$f":"IFERROR(VLOOKUP($A89,'Work Order Master'!$K:$Q,7,FALSE),\"Remove\")","v":"N"}]
["11550-2-1","CP Milner Gardens - Operations","Active","11550-2","CP Milner Gardens - Operations","(blank)","1550","Milner Gardens Administration","155","Milner Gardens","150","Community Partnerships","(blank)","100","Administration","no",{"$f":"IFERROR(INDEX('Work Order Master'!$S:$S,MATCH(A90,'Work Order Master'!$K:$K,0)),\"New\")","v":9635},{"$f":"IFERROR(INDEX('Work Order Master'!T:T,MATCH(WORKORDERS!$Q90,'Work Order Master'!$S:$S,0)),Q90)","v":"MILNER GARDENS OPERATIONS"},{"$f":"IFERROR(INDEX('FRS CC Master'!A:A,MATCH(WORKORDERS!$Q90*1,'FRS CC Master'!$C:$C,0)),WORKORDERS!$L90)","v":"Milner Gardens - Operations"},{"$f":"IFERROR(VLOOKUP($A90,'Work Order Master'!$K:$Q,7,FALSE),\"Remove\")","v":"N"}]
["11551-1-1","CP Milner Gardens - Mill Road Residence","Active","11551-1","CP Milner Gardens - Mill Road Residence","(blank)","1551","Milner - Other","155","Milner Gardens","150","Community Partnerships","(blank)","100","Administration","no",{"$f":"IFERROR(INDEX('Work Order Master'!$S:$S,MATCH(A91,'Work Order Master'!$K:$K,0)),\"New\")","v":9675},{"$f":"IFERROR(INDEX('Work Order Master'!T:T,MATCH(WORKORDERS!$Q91,'Work Order Master'!$S:$S,0)),Q91)","v":"RESIDENTIAL HOUSE"},{"$f":"IFERROR(INDEX('FRS CC Master'!A:A,MATCH(WORKORDERS!$Q91*1,'FRS CC Master'!$C:$C,0)),WORKORDERS!$L91)","v":"Milner Gardens - Operations"},{"$f":"IFERROR(VLOOKUP($A91,'Work Order Master'!$K:$Q,7,FALSE),\"Remove\")","v":"N"}]
["11551-2-1","CP Milner Gardens - Major Projects","Active","11551-2","CP Milner Gardens - Major Projects","(blank)","1551","Milner - Other","155","Milner Gardens","150","Community Partnerships","(blank)","100","Administration","no",{"$f":"IFERROR(INDEX('Work Order Master'!$S:$S,MATCH(A92,'Work Order Master'!$K:$K,0)),\"New\")","v":9645},{"$f":"IFERROR(INDEX('Work Order Master'!T:T,MATCH(WORKORDERS!$Q92,'Work Order Master'!$S:$S,0)),Q92)","v":"CAP.PROJ-HOUSE RENOVATION"},{"$f":"IFERROR(INDEX('FRS CC Master'!A:A,MATCH(WORKORDERS!$Q92*1,'FRS CC Master'!$C:$C,0)),WORKORDERS!$L92)","v":"Milner Gardens - Operations"},{"$f":"IFERROR(VLOOKUP($A92,'Work Order Master'!$K:$Q,7,FALSE),\"Remove\")","v":"N"}]
["11552-1-1","CP Milner - Public Admissions","Active","11552-1","CP Milner - Public Openings","(blank)","1552","Milner - Public Openings","155","Milner Gardens","150","Community Partnerships","(blank)","100","Administration","no",{"$f":"IFERROR(INDEX('Work Order Master'!$S:$S,MATCH(A93,'Work Order Master'!$K:$K,0)),\"New\")","v":9634},{"$f":"IFERROR(INDEX('Work Order Master'!T:T,MATCH(WORKORDERS!$Q93,'Work Order Master'!$S:$S,0)),Q93)","v":"ADMISSION"},{"$f":"IFERROR(INDEX('FRS CC Master'!A:A,MATCH(WORKORDERS!$Q93*1,'FRS CC Master'!$C:$C,0)),WORKORDERS!$L93)","v":"Milner Gardens - Operations"},{"$f":"IFERROR(VLOOKUP($A93,'Work Order Master'!$K:$Q,7,FALSE),\"Remove\")","v":"N"}]
["11552-1-2","CP Milner - Gift Shop","Active","11552-1","CP Milner - Public Openings","(blank)","1552","Milner - Public Openings","155","Milner Gardens","150","Community Partnerships","(blank)","100","Administration","no",{"$f":"IFERROR(INDEX('Work Order Master'!$S:$S,MATCH(A94,'Work Order Master'!$K:$K,0)),\"New\")","v":9632},{"$f":"IFERROR(INDEX('Work Order Master'!T:T,MATCH(WORKORDERS!$Q94,'Work Order Master'!$S:$S,0)),Q94)","v":"GIFT SHOP"},{"$f":"IFERROR(INDEX('FRS CC Master'!A:A,MATCH(WORKORDERS!$Q94*1,'FRS CC Master'!$C:$C,0)),WORKORDERS!$L94)","v":"Milner Gardens - Operations"},{"$f":"IFERROR(VLOOKUP($A94,'Work Order Master'!$K:$Q,7,FALSE),\"Remove\")","v":"N"}]
["11552-1-3","CP Milner - Tea Room","Active","11552-1","CP Milner - Public Openings","(blank)","1552","Milner - Public Openings","155","Milner Gardens","150","Community Partnerships","(blank)","100","Administration","no",{"$f":"IFERROR(INDEX('Work Order Master'!$S:$S,MATCH(A95,'Work Order Master'!$K:$K,0)),\"New\")","v":9637},{"$f":"IFERROR(INDEX('Work Order Master'!T:T,MATCH(WORKORDERS!$Q95,'Work Order Master'!$S:$S,0)),Q95)","v":"TEA ROOM"},{"$f":"IFERROR(INDEX('FRS CC Master'!A:A,MATCH(WORKORDERS!$Q95*1,'FRS CC Master'!$C:$C,0)),WORKORDERS!$L95)","v":"Milner Gardens - Operations"},{"$f":"IFERROR(VLOOKUP($A95,'Work Order Master'!$K:$Q,7,FALSE),\"Remove\")","v":"N"}]
["11552-1-4","CP Milner - House Rental","Active","11552-1","CP Milner - Public Openings","(blank)","1552","Milner - Public Openings","155","Milner Gardens","150","Community Partnerships","(blank)","100","Administration","no",{"$f":"IFERROR(INDEX('Work Order Master'!$S:$S,MATCH(A96,'Work Order Master'!$K:$K,0)),\"New\")","v":9630},{"$f":"IFERROR(INDEX('Work Order Master'!T:T,MATCH(WORKORDERS!$Q96,'Work Order Master'!$S:$S,0)),Q96)","v":"HOUSE RENTAL"},{"$f":"IFERROR(INDEX('FRS CC Master'!A:A,MATCH(WORKORDERS!$Q96*1,'FRS CC Master'!$C:$C,0)),WORKORDERS!$L96)","v":"Milner Gardens - Operations"},{"$f":"IFERROR(VLOOKUP($A96,'Work Order Master'!$K:$Q,7,FALSE),\"Remove\")","v":"N"}]
["11552-1-5","CP Milner - Memberships","Active","11552-1","CP Milner - Public Openings","(blank)","1552","Milner - Public Openings","155","Milner Gardens","150","Community Partnerships","(blank)","100","Administration","no",{"$f":"IFERROR(INDEX('Work Order Master'!$S:$S,MATCH(A97,'Work Order Master'!$K:$K,0)),\"New\")","v":9638},{"$f":"IFERROR(INDEX('Work Order Master'!T:T,MATCH(WORKORDERS!$Q97,'Work Order Master'!$S:$S,0)),Q97)","v":"MEMBERSHIP"},{"$f":"IFERROR(INDEX('FRS CC Master'!A:A,MATCH(WORKORDERS!$Q97*1,'FRS CC Master'!$C:$C,0)),WORKORDERS!$L97)","v":"Milner Gardens - Operations"},{"$f":"IFERROR(VLOOKUP($A97,'Work Order Master'!$K:$Q,7,FALSE),\"Remove\")","v":"N"}]
["11552-1-6","CP Milner - Nursery and Plant Production","Active","11552-1","CP Milner - Public Openings","(blank)","1552","Milner - Public Openings","155","Milner Gardens","150","Community Partnerships","(blank)","100","Administration","no",{"$f":"IFERROR(INDEX('Work Order Master'!$S:$S,MATCH(A98,'Work Order Master'!$K:$K,0)),\"New\")","v":9631},{"$f":"IFERROR(INDEX('Work Order Master'!T:T,MATCH(WORKORDERS!$Q98,'Work Order Master'!$S:$S,0)),Q98)","v":"NURSERY/PLANT PRODUCTION"},{"$f":"IFERROR(INDEX('FRS CC Master'!A:A,MATCH(WORKORDERS!$Q98*1,'FRS CC Master'!$C:$C,0)),WORKORDERS!$L98)","v":"Milner Gardens - Operations"},{"$f":"IFERROR(VLOOKUP($A98,'Work Order Master'!$K:$Q,7,FALSE),\"Remove\")","v":"N"}]
["11552-2-1","CP Milner - Small Events","Active","11552-2","CP Milner - Public Events","(blank)","1552","Milner - Public Openings","155","Milner Gardens","150","Community Partnerships","(blank)","100","Administration","no",{"$f":"IFERROR(INDEX('Work Order Master'!$S:$S,MATCH(A99,'Work Order Master'!$K:$K,0)),\"New\")","v":9655},{"$f":"IFERROR(INDEX('Work Order Master'!T:T,MATCH(WORKORDERS!$Q99,'Work Order Master'!$S:$S,0)),Q99)","v":"MILNER - SMALL EVENTS"},{"$f":"IFERROR(INDEX('FRS CC Master'!A:A,MATCH(WORKORDERS!$Q99*1,'FRS CC Master'!$C:$C,0)),WORKORDERS!$L99)","v":"Milner Gardens - Operations"},{"$f":"IFERROR(VLOOKUP($A99,'Work Order Master'!$K:$Q,7,FALSE),\"Remove\")","v":"N"}]
["11552-2-2","CP Milner - Christmas Magic","Active","11552-2","CP Milner - Public Events","(blank)","1552","Milner - Public Openings","155","Milner Gardens","150","Community Partnerships","(blank)","100","Administration","no",{"$f":"IFERROR(INDEX('Work Order Master'!$S:$S,MATCH(A100,'Work Order Master'!$K:$K,0)),\"New\")","v":9642},{"$f":"IFERROR(INDEX('Work Order Master'!T:T,MATCH(WORKORDERS!$Q100,'Work Order Master'!$S:$S,0)),Q100)","v":"MILNER CHRISTMAS MAGIC"},{"$f":"IFERROR(INDEX('FRS CC Master'!A:A,MATCH(WORKORDERS!$Q100*1,'FRS CC Master'!$C:$C,0)),WORKORDERS!$L100)","v":"Milner Gardens - Operations"},{"$f":"IFERROR(VLOOKUP($A100,'Work Order Master'!$K:$Q,7,FALSE),\"Remove\")","v":"N"}]
["11552-2-3","CP Milner - Art and Photography","Active","11552-2","CP Milner - Public Events","(blank)","1552","Milner - Public Openings","155","Milner Gardens","150","Community Partnerships","(blank)","100","Administration","no",{"$f":"IFERROR(INDEX('Work Order Master'!$S:$S,MATCH(A101,'Work Order Master'!$K:$K,0)),\"New\")","v":9653},{"$f":"IFERROR(INDEX('Work Order Master'!T:T,MATCH(WORKORDERS!$Q101,'Work Order Master'!$S:$S,0)),Q101)","v":"ART & PHOTOGRAPHY"},{"$f":"IFERROR(INDEX('FRS CC Master'!A:A,MATCH(WORKORDERS!$Q101*1,'FRS CC Master'!$C:$C,0)),WORKORDERS!$L101)","v":"Milner Gardens - Operations"},{"$f":"IFERROR(VLOOKUP($A101,'Work Order Master'!$K:$Q,7,FALSE),\"Remove\")","v":"N"}]
["11552-2-4","CP Milner - Summer Jazz in the Garden","Parked","11552-2","CP Milner - Public Events","(blank)","1552","Milner - Public Openings","155","Milner Gardens","150","Community Partnerships","(blank)","100","Administration","no",{"$f":"IFERROR(INDEX('Work Order Master'!$S:$S,MATCH(A102,'Work Order Master'!$K:$K,0)),\"New\")","v":"New"},{"$f":"IFERROR(INDEX('Work Order Master'!T:T,MATCH(WORKORDERS!$Q102,'Work Order Master'!$S:$S,0)),Q102)","v":"New"},{"$f":"IFERROR(INDEX('FRS CC Master'!A:A,MATCH(WORKORDERS!$Q102*1,'FRS CC Master'!$C:$C,0)),WORKORDERS!$L102)","v":"Community Partnerships"},{"$f":"IFERROR(VLOOKUP($A102,'Work Order Master'!$K:$Q,7,FALSE),\"Remove\")","v":"Remove"}]
["11552-3-1","CP Milner - Roots & Shoots","Active","11552-3","CP Milner - Programs","(blank)","1552","Milner - Public Openings","155","Milner Gardens","150","Community Partnerships","(blank)","100","Administration","no",{"$f":"IFERROR(INDEX('Work Order Master'!$S:$S,MATCH(A103,'Work Order Master'!$K:$K,0)),\"New\")","v":9646},{"$f":"IFERROR(INDEX('Work Order Master'!T:T,MATCH(WORKORDERS!$Q103,'Work Order Master'!$S:$S,0)),Q103)","v":"ROOTS & SHOOTS/FOOD GARDN"},{"$f":"IFERROR(INDEX('FRS CC Master'!A:A,MATCH(WORKORDERS!$Q103*1,'FRS CC Master'!$C:$C,0)),WORKORDERS!$L103)","v":"Milner Gardens - Operations"},{"$f":"IFERROR(VLOOKUP($A103,'Work Order Master'!$K:$Q,7,FALSE),\"Remove\")","v":"N"}]
["11553-1-1","CP Milner - Volunteers","Active","11553-1","CP Milner - Volunteers","(blank)","1553","Milner - Volunteers","155","Milner Gardens","150","Community Partnerships","(blank)","100","Administration","no",{"$f":"IFERROR(INDEX('Work Order Master'!$S:$S,MATCH(A104,'Work Order Master'!$K:$K,0)),\"New\")","v":9629},{"$f":"IFERROR(INDEX('Work Order Master'!T:T,MATCH(WORKORDERS!$Q104,'Work Order Master'!$S:$S,0)),Q104)","v":"VOLUNTEER EXPENSES"},{"$f":"IFERROR(INDEX('FRS CC Master'!A:A,MATCH(WORKORDERS!$Q104*1,'FRS CC Master'!$C:$C,0)),WORKORDERS!$L104)","v":"Milner Gardens - Operations"},{"$f":"IFERROR(VLOOKUP($A104,'Work Order Master'!$K:$Q,7,FALSE),\"Remove\")","v":"N"}]
["11554-1-1","CP MGW Society - Donations, Drop Boxes","Active","11554-1","CP Milner - MGW Society","(blank)","1554","Milner - MGW Society","155","Milner Gardens","150","Community Partnerships","(blank)","100","Administration","no",{"$f":"IFERROR(INDEX('Work Order Master'!$S:$S,MATCH(A105,'Work Order Master'!$K:$K,0)),\"New\")","v":9641},{"$f":"IFERROR(INDEX('Work Order Master'!T:T,MATCH(WORKORDERS!$Q105,'Work Order Master'!$S:$S,0)),Q105)","v":"DONATIONS/DROP BOXES"},{"$f":"IFERROR(INDEX('FRS CC Master'!A:A,MATCH(WORKORDERS!$Q105*1,'FRS CC Master'!$C:$C,0)),WORKORDERS!$L105)","v":"Milner Gardens - Operations"},{"$f":"IFERROR(VLOOKUP($A105,'Work Order Master'!$K:$Q,7,FALSE),\"Remove\")","v":"N"}]
["11554-1-2","CP MGW Society - Donations, Memberships & Other","Active","11554-1","CP Milner - MGW Society","(blank)","1554","Milner - MGW Society","155","Milner Gardens","150","Community Partnerships","(blank)","100","Administration","no",{"$f":"IFERROR(INDEX('Work Order Master'!$S:$S,MATCH(A106,'Work Order Master'!$K:$K,0)),\"New\")","v":9640},{"$f":"IFERROR(INDEX('Work Order Master'!T:T,MATCH(WORKORDERS!$Q106,'Work Order Master'!$S:$S,0)),Q106)","v":"DONATION/MEMBERSHIP/OTHER"},{"$f":"IFERROR(INDEX('FRS CC Master'!A:A,MATCH(WORKORDERS!$Q106*1,'FRS CC Master'!$C:$C,0)),WORKORDERS!$L106)","v":"Milner Gardens - Operations"},{"$f":"IFERROR(VLOOKUP($A106,'Work Order Master'!$K:$Q,7,FALSE),\"Remove\")","v":"N"}]
["11554-1-3","CP MGW Society - Investment Income","Active","11554-1","CP Milner - MGW Society","(blank)","1554","Milner - MGW Society","155","Milner Gardens","150","Community Partnerships","(blank)","100","Administration","no",{"$f":"IFERROR(INDEX('Work Order Master'!$S:$S,MATCH(A107,'Work Order Master'!$K:$K,0)),\"New\")","v":9625},{"$f":"IFERROR(INDEX('Work Order Master'!T:T,MATCH(WORKORDERS!$Q107,'Work Order Master'!$S:$S,0)),Q107)","v":"MILNER INVESTMENT INCOME"},{"$f":"IFERROR(INDEX('FRS CC Master'!A:A,MATCH(WORKORDERS!$Q107*1,'FRS CC Master'!$C:$C,0)),WORKORDERS!$L107)","v":"Milner Gardens - Operations"},{"$f":"IFERROR(VLOOKUP($A107,'Work Order Master'!$K:$Q,7,FALSE),\"Remove\")","v":"N"}]
["11600-1-1","USEC University Secretary","Active","11600-1","USEC University Secretary","(blank)","1600","University Secretary","160","University Secretary","160","University Secretary","(blank)","100","Administration","no",{"$f":"IFERROR(INDEX('Work Order Master'!$S:$S,MATCH(A108,'Work Order Master'!$K:$K,0)),\"New\")","v":8811},{"$f":"IFERROR(INDEX('Work Order Master'!T:T,MATCH(WORKORDERS!$Q108,'Work Order Master'!$S:$S,0)),Q108)","v":"UNIVERSITY SECRETARIAT"},{"$f":"IFERROR(INDEX('FRS CC Master'!A:A,MATCH(WORKORDERS!$Q108*1,'FRS CC Master'!$C:$C,0)),WORKORDERS!$L108)","v":"University Secretary"},{"$f":"IFERROR(VLOOKUP($A108,'Work Order Master'!$K:$Q,7,FALSE),\"Remove\")","v":"N"}]
["11600-1-2","USEC University Secretary - Presidents Installation","Active","11600-1","USEC University Secretary","(blank)","1600","University Secretary","160","University Secretary","160","University Secretary","(blank)","100","Administration","no",{"$f":"IFERROR(INDEX('Work Order Master'!$S:$S,MATCH(A109,'Work Order Master'!$K:$K,0)),\"New\")","v":8813},{"$f":"IFERROR(INDEX('Work Order Master'!T:T,MATCH(WORKORDERS!$Q109,'Work Order Master'!$S:$S,0)),Q109)","v":"PRESIDENTS INSTALLATION"},{"$f":"IFERROR(INDEX('FRS CC Master'!A:A,MATCH(WORKORDERS!$Q109*1,'FRS CC Master'!$C:$C,0)),WORKORDERS!$L109)","v":"University Secretary"},{"$f":"IFERROR(VLOOKUP($A109,'Work Order Master'!$K:$Q,7,FALSE),\"Remove\")","v":"N"}]
["11610-1-1","USEC VIU Board","Active","11610-1","USEC VIU Board","(blank)","1610","VIU Board","160","University Secretary","160","University Secretary","(blank)","101","Institutional","no",{"$f":"IFERROR(INDEX('Work Order Master'!$S:$S,MATCH(A110,'Work Order Master'!$K:$K,0)),\"New\")","v":8810},{"$f":"IFERROR(INDEX('Work Order Master'!T:T,MATCH(WORKORDERS!$Q110,'Work Order Master'!$S:$S,0)),Q110)","v":"VIU BOARD"},{"$f":"IFERROR(INDEX('FRS CC Master'!A:A,MATCH(WORKORDERS!$Q110*1,'FRS CC Master'!$C:$C,0)),WORKORDERS!$L110)","v":"University Secretary"},{"$f":"IFERROR(VLOOKUP($A110,'Work Order Master'!$K:$Q,7,FALSE),\"Remove\")","v":"N"}]
["11620-1-1","USEC University Senate","Active","11620-1","USEC University Senate","(blank)","1620","University Senate","160","University Secretary","160","University Secretary","(blank)","101","Institutional","no",{"$f":"IFERROR(INDEX('Work Order Master'!$S:$S,MATCH(A111,'Work Order Master'!$K:$K,0)),\"New\")","v":8812},{"$f":"IFERROR(INDEX('Work Order Master'!T:T,MATCH(WORKORDERS!$Q111,'Work Order Master'!$S:$S,0)),Q111)","v":"UNIVERSITY SENTATE "},{"$f":"IFERROR(INDEX('FRS CC Master'!A:A,MATCH(WORKORDERS!$Q111*1,'FRS CC Master'!$C:$C,0)),WORKORDERS!$L111)","v":"University Secretary"},{"$f":"IFERROR(VLOOKUP($A111,'Work Order Master'!$K:$Q,7,FALSE),\"Remove\")","v":"N"}]
["11630-1-1","USEC Diversity, Equity and Human Rights Office","Parked","11630-1","USEC Diversity, Equity and Human Rights Office","(blank)","1630","DNU- Diversity, Equity and Human Rights Office","163","Closed - Diversity, Equity and Human Rights Office","160","University Secretary","(blank)","100","Administration","no",{"$f":"IFERROR(INDEX('Work Order Master'!$S:$S,MATCH(A112,'Work Order Master'!$K:$K,0)),\"New\")","v":"New"},{"$f":"IFERROR(INDEX('Work Order Master'!T:T,MATCH(WORKORDERS!$Q112,'Work Order Master'!$S:$S,0)),Q112)","v":"New"},{"$f":"IFERROR(INDEX('FRS CC Master'!A:A,MATCH(WORKORDERS!$Q112*1,'FRS CC Master'!$C:$C,0)),WORKORDERS!$L112)","v":"University Secretary"},{"$f":"IFERROR(VLOOKUP($A112,'Work Order Master'!$K:$Q,7,FALSE),\"Remove\")","v":"Remove"}]
["12000-1-1","PVPA Office","Active","12000-1","PVPA Office","(blank)","2000","Provost VP Academic - Office","200","Provost and VP Academic - Office","200","Provost and VP Academic - Office","(blank)","200","Academic Administration","no",{"$f":"IFERROR(INDEX('Work Order Master'!$S:$S,MATCH(A113,'Work Order Master'!$K:$K,0)),\"New\")","v":1010},{"$f":"IFERROR(INDEX('Work Order Master'!T:T,MATCH(WORKORDERS!$Q113,'Work Order Master'!$S:$S,0)),Q113)","v":"PROVOST & VPA"},{"$f":"IFERROR(INDEX('FRS CC Master'!A:A,MATCH(WORKORDERS!$Q113*1,'FRS CC Master'!$C:$C,0)),WORKORDERS!$L113)","v":"Provost VP Academic "},{"$f":"IFERROR(VLOOKUP($A113,'Work Order Master'!$K:$Q,7,FALSE),\"Remove\")","v":"N"}]
["12000-1-2","PVPA Professional Development","Active","12000-1","PVPA Office","(blank)","2000","Provost VP Academic - Office","200","Provost and VP Academic - Office","200","Provost and VP Academic - Office","(blank)","200","Academic Administration","no",{"$f":"IFERROR(INDEX('Work Order Master'!$S:$S,MATCH(A114,'Work Order Master'!$K:$K,0)),\"New\")","v":1007},{"$f":"IFERROR(INDEX('Work Order Master'!T:T,MATCH(WORKORDERS!$Q114,'Work Order Master'!$S:$S,0)),Q114)","v":"VP ACADEMIC - PRO D"},{"$f":"IFERROR(INDEX('FRS CC Master'!A:A,MATCH(WORKORDERS!$Q114*1,'FRS CC Master'!$C:$C,0)),WORKORDERS!$L114)","v":"Provost VP Academic "},{"$f":"IFERROR(VLOOKUP($A114,'Work Order Master'!$K:$Q,7,FALSE),\"Remove\")","v":"N"}]
["12000-1-3","PVPA Interim PVPA Professional Development","Active","12000-1","PVPA Office","(blank)","2000","Provost VP Academic - Office","200","Provost and VP Academic - Office","200","Provost and VP Academic - Office","(blank)","200","Academic Administration","no",{"$f":"IFERROR(INDEX('Work Order Master'!$S:$S,MATCH(A115,'Work Order Master'!$K:$K,0)),\"New\")","v":1018},{"$f":"IFERROR(INDEX('Work Order Master'!T:T,MATCH(WORKORDERS!$Q115,'Work Order Master'!$S:$S,0)),Q115)","v":"INTERIM PROVOST & VPA-PD"},{"$f":"IFERROR(INDEX('FRS CC Master'!A:A,MATCH(WORKORDERS!$Q115*1,'FRS CC Master'!$C:$C,0)),WORKORDERS!$L115)","v":"Provost VP Academic "},{"$f":"IFERROR(VLOOKUP($A115,'Work Order Master'!$K:$Q,7,FALSE),\"Remove\")","v":"N"}]
["12010-1-1","PVPA-CAU PVPA Initiatives","Active","12010-1","PVPA-CAU PVPA Initiatives","(blank)","2010","PVPA Initiatives","201","PVPA Initiatives and Instructional Support","201","PVPA - Centralized Academic Units","(blank)","200","Academic Administration","no",{"$f":"IFERROR(INDEX('Work Order Master'!$S:$S,MATCH(A116,'Work Order Master'!$K:$K,0)),\"New\")","v":1032},{"$f":"IFERROR(INDEX('Work Order Master'!T:T,MATCH(WORKORDERS!$Q116,'Work Order Master'!$S:$S,0)),Q116)","v":"PVPA INITIATIVES"},{"$f":"IFERROR(INDEX('FRS CC Master'!A:A,MATCH(WORKORDERS!$Q116*1,'FRS CC Master'!$C:$C,0)),WORKORDERS!$L116)","v":"Provost VP Academic "},{"$f":"IFERROR(VLOOKUP($A116,'Work Order Master'!$K:$Q,7,FALSE),\"Remove\")","v":"N"}]
["12015-1-1","PVPA-CAU Provost Contingency","Active","12015-1","PVPA-CAU Provost Contingency","(blank)","2015","Academic Instructional Support","201","PVPA Initiatives and Instructional Support","201","PVPA - Centralized Academic Units","(blank)","200","Academic Administration","no",{"$f":"IFERROR(INDEX('Work Order Master'!$S:$S,MATCH(A117,'Work Order Master'!$K:$K,0)),\"New\")","v":1030},{"$f":"IFERROR(INDEX('Work Order Master'!T:T,MATCH(WORKORDERS!$Q117,'Work Order Master'!$S:$S,0)),Q117)","v":"ACADEMIC INST. ADMIN"},{"$f":"IFERROR(INDEX('FRS CC Master'!A:A,MATCH(WORKORDERS!$Q117*1,'FRS CC Master'!$C:$C,0)),WORKORDERS!$L117)","v":"Provost VP Academic "},{"$f":"IFERROR(VLOOKUP($A117,'Work Order Master'!$K:$Q,7,FALSE),\"Remove\")","v":"N"}]
["12015-2-1","PVPA-CAU Travel - UT Instructional Delivery","Active","12015-2","PVPA-CAU Academic Travel","(blank)","2015","Academic Instructional Support","201","PVPA Initiatives and Instructional Support","201","PVPA - Centralized Academic Units","(blank)","200","Academic Administration","no",{"$f":"IFERROR(INDEX('Work Order Master'!$S:$S,MATCH(A118,'Work Order Master'!$K:$K,0)),\"New\")","v":1022},{"$f":"IFERROR(INDEX('Work Order Master'!T:T,MATCH(WORKORDERS!$Q118,'Work Order Master'!$S:$S,0)),Q118)","v":"UT INSTR.DELIVERY TRAVEL"},{"$f":"IFERROR(INDEX('FRS CC Master'!A:A,MATCH(WORKORDERS!$Q118*1,'FRS CC Master'!$C:$C,0)),WORKORDERS!$L118)","v":"Provost VP Academic "},{"$f":"IFERROR(VLOOKUP($A118,'Work Order Master'!$K:$Q,7,FALSE),\"Remove\")","v":"N"}]
["12015-2-2","PVPA-CAU Travel - Instructional Recruitment","Active","12015-2","PVPA-CAU Academic Travel","(blank)","2015","Academic Instructional Support","201","PVPA Initiatives and Instructional Support","201","PVPA - Centralized Academic Units","(blank)","200","Academic Administration","no",{"$f":"IFERROR(INDEX('Work Order Master'!$S:$S,MATCH(A119,'Work Order Master'!$K:$K,0)),\"New\")","v":1042},{"$f":"IFERROR(INDEX('Work Order Master'!T:T,MATCH(WORKORDERS!$Q119,'Work Order Master'!$S:$S,0)),Q119)","v":"INSTR.RECRUITMENT-TRAVEL"},{"$f":"IFERROR(INDEX('FRS CC Master'!A:A,MATCH(WORKORDERS!$Q119*1,'FRS CC Master'!$C:$C,0)),WORKORDERS!$L119)","v":"Provost VP Academic "},{"$f":"IFERROR(VLOOKUP($A119,'Work Order Master'!$K:$Q,7,FALSE),\"Remove\")","v":"N"}]
["12015-3-1","PVPA-CAU Professional Development - UBC Doctor Education","Active","12015-3","PVPA-CAU Professional Development","(blank)","2015","Academic Instructional Support","201","PVPA Initiatives and Instructional Support","201","PVPA - Centralized Academic Units","(blank)","200","Academic Administration","no",{"$f":"IFERROR(INDEX('Work Order Master'!$S:$S,MATCH(A120,'Work Order Master'!$K:$K,0)),\"New\")","v":1029},{"$f":"IFERROR(INDEX('Work Order Master'!T:T,MATCH(WORKORDERS!$Q120,'Work Order Master'!$S:$S,0)),Q120)","v":"PRO-D UBC DOC EDUCATION"},{"$f":"IFERROR(INDEX('FRS CC Master'!A:A,MATCH(WORKORDERS!$Q120*1,'FRS CC Master'!$C:$C,0)),WORKORDERS!$L120)","v":"Provost VP Academic "},{"$f":"IFERROR(VLOOKUP($A120,'Work Order Master'!$K:$Q,7,FALSE),\"Remove\")","v":"N"}]
["12015-4-1","PVPA-CAU Curriculum Development Fund","Active","12015-4","PVPA-CAU Curriculum Development Fund","(blank)","2015","Academic Instructional Support","201","PVPA Initiatives and Instructional Support","201","PVPA - Centralized Academic Units","(blank)","200","Academic Administration","no",{"$f":"IFERROR(INDEX('Work Order Master'!$S:$S,MATCH(A121,'Work Order Master'!$K:$K,0)),\"New\")","v":1017},{"$f":"IFERROR(INDEX('Work Order Master'!T:T,MATCH(WORKORDERS!$Q121,'Work Order Master'!$S:$S,0)),Q121)","v":"CURRICULUM DEV. FUND"},{"$f":"IFERROR(INDEX('FRS CC Master'!A:A,MATCH(WORKORDERS!$Q121*1,'FRS CC Master'!$C:$C,0)),WORKORDERS!$L121)","v":"Provost VP Academic "},{"$f":"IFERROR(VLOOKUP($A121,'Work Order Master'!$K:$Q,7,FALSE),\"Remove\")","v":"N"}]
["12015-5-1","PVPA-CAU Theatre Operations","Active","12015-5","PVPA-CAU Theatre Operations","(blank)","2015","Academic Instructional Support","201","PVPA Initiatives and Instructional Support","201","PVPA - Centralized Academic Units","(blank)","200","Academic Administration","no",{"$f":"IFERROR(INDEX('Work Order Master'!$S:$S,MATCH(A122,'Work Order Master'!$K:$K,0)),\"New\")","v":1034},{"$f":"IFERROR(INDEX('Work Order Master'!T:T,MATCH(WORKORDERS!$Q122,'Work Order Master'!$S:$S,0)),Q122)","v":"THEATRE OPERATIONS"},{"$f":"IFERROR(INDEX('FRS CC Master'!A:A,MATCH(WORKORDERS!$Q122*1,'FRS CC Master'!$C:$C,0)),WORKORDERS!$L122)","v":"Provost VP Academic "},{"$f":"IFERROR(VLOOKUP($A122,'Work Order Master'!$K:$Q,7,FALSE),\"Remove\")","v":"N"}]
["12015-6-1","PVPA-CAU International Academic Support","Active","12015-6","PVPA-CAU International Academic Support","(blank)","2015","Academic Instructional Support","201","PVPA Initiatives and Instructional Support","201","PVPA - Centralized Academic Units","(blank)","200","Academic Administration","no",{"$f":"IFERROR(INDEX('Work Order Master'!$S:$S,MATCH(A123,'Work Order Master'!$K:$K,0)),\"New\")","v":"New"},{"$f":"IFERROR(INDEX('Work Order Master'!T:T,MATCH(WORKORDERS!$Q123,'Work Order Master'!$S:$S,0)),Q123)","v":"New"},{"$f":"IFERROR(INDEX('FRS CC Master'!A:A,MATCH(WORKORDERS!$Q123*1,'FRS CC Master'!$C:$C,0)),WORKORDERS!$L123)","v":"PVPA - Centralized Academic Units"},{"$f":"IFERROR(VLOOKUP($A123,'Work Order Master'!$K:$Q,7,FALSE),\"Remove\")","v":"N"}]
["12100-1-1","ACP Faculty Dean's Office","Active","12100-1","ACP Faculty Dean's Office","(blank)","2100","Faculty of Academic and Career Preparation","210","Academic and Career Preparation","210","Academic and Career Preparation","(blank)","201","Faculty Administration","no",{"$f":"IFERROR(INDEX('Work Order Master'!$S:$S,MATCH(A124,'Work Order Master'!$K:$K,0)),\"New\")","v":2700},{"$f":"IFERROR(INDEX('Work Order Master'!T:T,MATCH(WORKORDERS!$Q124,'Work Order Master'!$S:$S,0)),Q124)","v":"ABE & CAP ADMINISTRATRATION"},{"$f":"IFERROR(INDEX('FRS CC Master'!A:A,MATCH(WORKORDERS!$Q124*1,'FRS CC Master'!$C:$C,0)),WORKORDERS!$L124)","v":"Academic and Career Preparation"},{"$f":"IFERROR(VLOOKUP($A124,'Work Order Master'!$K:$Q,7,FALSE),\"Remove\")","v":"N"}]
["12101-1-1","ACP Faculty Initiatives","Parked","12101-1","ACP Faculty Initiatives","(blank)","2101","Academic and Career Preparation - Initiatives","210","Academic and Career Preparation","210","Academic and Career Preparation","(blank)","201","Faculty Administration","no",{"$f":"IFERROR(INDEX('Work Order Master'!$S:$S,MATCH(A125,'Work Order Master'!$K:$K,0)),\"New\")","v":"New"},{"$f":"IFERROR(INDEX('Work Order Master'!T:T,MATCH(WORKORDERS!$Q125,'Work Order Master'!$S:$S,0)),Q125)","v":"New"},{"$f":"IFERROR(INDEX('FRS CC Master'!A:A,MATCH(WORKORDERS!$Q125*1,'FRS CC Master'!$C:$C,0)),WORKORDERS!$L125)","v":"Academic and Career Preparation"},{"$f":"IFERROR(VLOOKUP($A125,'Work Order Master'!$K:$Q,7,FALSE),\"Remove\")","v":"P"}]
["12105-1-1","ACP ABE - Nanaimo","Active","12105-1","ACP ABE - Nanaimo","(blank)","2105","Adult Basic Education","210","Academic and Career Preparation","210","Academic and Career Preparation","(blank)","208","Instruction","no",{"$f":"IFERROR(INDEX('Work Order Master'!$S:$S,MATCH(A126,'Work Order Master'!$K:$K,0)),\"New\")","v":2730},{"$f":"IFERROR(INDEX('Work Order Master'!T:T,MATCH(WORKORDERS!$Q126,'Work Order Master'!$S:$S,0)),Q126)","v":"ADULT BASIC EDU"},{"$f":"IFERROR(INDEX('FRS CC Master'!A:A,MATCH(WORKORDERS!$Q126*1,'FRS CC Master'!$C:$C,0)),WORKORDERS!$L126)","v":"Academic and Career Preparation"},{"$f":"IFERROR(VLOOKUP($A126,'Work Order Master'!$K:$Q,7,FALSE),\"Remove\")","v":"N"}]
["12105-1-2","ACP ABE - Aboriginal University Bridging","Active","12105-1","ACP ABE - Nanaimo","(blank)","2105","Adult Basic Education","210","Academic and Career Preparation","210","Academic and Career Preparation","(blank)","208","Instruction","no",{"$f":"IFERROR(INDEX('Work Order Master'!$S:$S,MATCH(A127,'Work Order Master'!$K:$K,0)),\"New\")","v":2770},{"$f":"IFERROR(INDEX('Work Order Master'!T:T,MATCH(WORKORDERS!$Q127,'Work Order Master'!$S:$S,0)),Q127)","v":"ABORIGINAL UNIV. BRIDGING"},{"$f":"IFERROR(INDEX('FRS CC Master'!A:A,MATCH(WORKORDERS!$Q127*1,'FRS CC Master'!$C:$C,0)),WORKORDERS!$L127)","v":"Academic and Career Preparation"},{"$f":"IFERROR(VLOOKUP($A127,'Work Order Master'!$K:$Q,7,FALSE),\"Remove\")","v":"N"}]
["12105-2-1","ACP ABE - Cowichan","Active","12105-2","ACP ABE - Cowichan","(blank)","2105","Adult Basic Education","210","Academic and Career Preparation","210","Academic and Career Preparation","(blank)","208","Instruction","no",{"$f":"IFERROR(INDEX('Work Order Master'!$S:$S,MATCH(A128,'Work Order Master'!$K:$K,0)),\"New\")","v":2752},{"$f":"IFERROR(INDEX('Work Order Master'!T:T,MATCH(WORKORDERS!$Q128,'Work Order Master'!$S:$S,0)),Q128)","v":"COWICHAN-A.B.E."},{"$f":"IFERROR(INDEX('FRS CC Master'!A:A,MATCH(WORKORDERS!$Q128*1,'FRS CC Master'!$C:$C,0)),WORKORDERS!$L128)","v":"Academic and Career Preparation"},{"$f":"IFERROR(VLOOKUP($A128,'Work Order Master'!$K:$Q,7,FALSE),\"Remove\")","v":"N"}]
["12105-3-1","ACP ABE - Parksville","Active","12105-3","ACP ABE - Parksville","(blank)","2105","Adult Basic Education","210","Academic and Career Preparation","210","Academic and Career Preparation","(blank)","208","Instruction","no",{"$f":"IFERROR(INDEX('Work Order Master'!$S:$S,MATCH(A129,'Work Order Master'!$K:$K,0)),\"New\")","v":2780},{"$f":"IFERROR(INDEX('Work Order Master'!T:T,MATCH(WORKORDERS!$Q129,'Work Order Master'!$S:$S,0)),Q129)","v":"PARKSVILLE A.B.E."},{"$f":"IFERROR(INDEX('FRS CC Master'!A:A,MATCH(WORKORDERS!$Q129*1,'FRS CC Master'!$C:$C,0)),WORKORDERS!$L129)","v":"Academic and Career Preparation"},{"$f":"IFERROR(VLOOKUP($A129,'Work Order Master'!$K:$Q,7,FALSE),\"Remove\")","v":"N"}]
["12105-4-1","ACP ABE - Learning Centre","Active","12105-4","ACP ABE - Learning Centre","(blank)","2105","Adult Basic Education","210","Academic and Career Preparation","210","Academic and Career Preparation","(blank)","208","Instruction","no",{"$f":"IFERROR(INDEX('Work Order Master'!$S:$S,MATCH(A130,'Work Order Master'!$K:$K,0)),\"New\")","v":2705},{"$f":"IFERROR(INDEX('Work Order Master'!T:T,MATCH(WORKORDERS!$Q130,'Work Order Master'!$S:$S,0)),Q130)","v":"ABE LEARNING CENTRE"},{"$f":"IFERROR(INDEX('FRS CC Master'!A:A,MATCH(WORKORDERS!$Q130*1,'FRS CC Master'!$C:$C,0)),WORKORDERS!$L130)","v":"Academic and Career Preparation"},{"$f":"IFERROR(VLOOKUP($A130,'Work Order Master'!$K:$Q,7,FALSE),\"Remove\")","v":"N"}]
["12110-1-1","ACP ASE - Nanaimo","Active","12110-1","ACP ASE - Nanaimo","(blank)","2110","Adult Special Education","210","Academic and Career Preparation","210","Academic and Career Preparation","(blank)","208","Instruction","no",{"$f":"IFERROR(INDEX('Work Order Master'!$S:$S,MATCH(A131,'Work Order Master'!$K:$K,0)),\"New\")","v":2741},{"$f":"IFERROR(INDEX('Work Order Master'!T:T,MATCH(WORKORDERS!$Q131,'Work Order Master'!$S:$S,0)),Q131)","v":"ACCESS PROGRAMS"},{"$f":"IFERROR(INDEX('FRS CC Master'!A:A,MATCH(WORKORDERS!$Q131*1,'FRS CC Master'!$C:$C,0)),WORKORDERS!$L131)","v":"Academic and Career Preparation"},{"$f":"IFERROR(VLOOKUP($A131,'Work Order Master'!$K:$Q,7,FALSE),\"Remove\")","v":"N"}]
["12110-2-1","ACP ASE - Cowichan","Active","12110-2","ACP ASE - Cowichan","(blank)","2110","Adult Special Education","210","Academic and Career Preparation","210","Academic and Career Preparation","(blank)","208","Instruction",{"$f":"IF(OR(A132=A131,A132=A133),\"yes\",\"no\")","v":"no"},{"$f":"IFERROR(INDEX('Work Order Master'!$S:$S,MATCH(A132,'Work Order Master'!$K:$K,0)),\"New\")","v":2755},{"$f":"IFERROR(INDEX('Work Order Master'!T:T,MATCH(WORKORDERS!$Q132,'Work Order Master'!$S:$S,0)),Q132)","v":"COWICHAN-ACCESS PROGRAMS"},{"$f":"IFERROR(INDEX('FRS CC Master'!A:A,MATCH(WORKORDERS!$Q132*1,'FRS CC Master'!$C:$C,0)),WORKORDERS!$L132)","v":"Academic and Career Preparation"},{"$f":"IFERROR(VLOOKUP($A132,'Work Order Master'!$K:$Q,7,FALSE),\"Remove\")","v":"N"}]
["12115-1-1","ACP Foundations for Success","Active","12115-1","ACP Foundations for Success","(blank)","2115","Foundations for Success","210","Academic and Career Preparation","210","Academic and Career Preparation","(blank)","208","Instruction","no",{"$f":"IFERROR(INDEX('Work Order Master'!$S:$S,MATCH(A133,'Work Order Master'!$K:$K,0)),\"New\")","v":2706},{"$f":"IFERROR(INDEX('Work Order Master'!T:T,MATCH(WORKORDERS!$Q133,'Work Order Master'!$S:$S,0)),Q133)","v":"FOUNDATIONS FOR SUCCESS"},{"$f":"IFERROR(INDEX('FRS CC Master'!A:A,MATCH(WORKORDERS!$Q133*1,'FRS CC Master'!$C:$C,0)),WORKORDERS!$L133)","v":"Academic and Career Preparation"},{"$f":"IFERROR(VLOOKUP($A133,'Work Order Master'!$K:$Q,7,FALSE),\"Remove\")","v":"N"}]
["12120-1-1","ACP Volunteer Tutors - Nanaimo","Active","12120-1","ACP Volunteer Tutors - Nanaimo","(blank)","2120","Volunteer Tutors and Community Adult Literacy","210","Academic and Career Preparation","210","Academic and Career Preparation","(blank)","208","Instruction","no",{"$f":"IFERROR(INDEX('Work Order Master'!$S:$S,MATCH(A134,'Work Order Master'!$K:$K,0)),\"New\")","v":2736},{"$f":"IFERROR(INDEX('Work Order Master'!T:T,MATCH(WORKORDERS!$Q134,'Work Order Master'!$S:$S,0)),Q134)","v":"VOLUNTEER TUTOR"},{"$f":"IFERROR(INDEX('FRS CC Master'!A:A,MATCH(WORKORDERS!$Q134*1,'FRS CC Master'!$C:$C,0)),WORKORDERS!$L134)","v":"Academic and Career Preparation"},{"$f":"IFERROR(VLOOKUP($A134,'Work Order Master'!$K:$Q,7,FALSE),\"Remove\")","v":"N"}]
["12120-2-1","ACP Volunteer Tutors - Cowichan","Active","12120-2","ACP Volunteer Tutors - Cowichan","(blank)","2120","Volunteer Tutors and Community Adult Literacy","210","Academic and Career Preparation","210","Academic and Career Preparation","(blank)","208","Instruction","no",{"$f":"IFERROR(INDEX('Work Order Master'!$S:$S,MATCH(A135,'Work Order Master'!$K:$K,0)),\"New\")","v":2750},{"$f":"IFERROR(INDEX('Work Order Master'!T:T,MATCH(WORKORDERS!$Q135,'Work Order Master'!$S:$S,0)),Q135)","v":"COWICHAN-VOLUNTEER TUTORS"},{"$f":"IFERROR(INDEX('FRS CC Master'!A:A,MATCH(WORKORDERS!$Q135*1,'FRS CC Master'!$C:$C,0)),WORKORDERS!$L135)","v":"Academic and Career Preparation"},{"$f":"IFERROR(VLOOKUP($A135,'Work Order Master'!$K:$Q,7,FALSE),\"Remove\")","v":"N"}]
["12120-3-1","ACP Community Adult Literacy Programs","Active","12120-3","ACP Community Adult Literacy Programs","(blank)","2120","Volunteer Tutors and Community Adult Literacy","210","Academic and Career Preparation","210","Academic and Career Preparation","(blank)","208","Instruction","no",{"$f":"IFERROR(INDEX('Work Order Master'!$S:$S,MATCH(A136,'Work Order Master'!$K:$K,0)),\"New\")","v":2735},{"$f":"IFERROR(INDEX('Work Order Master'!T:T,MATCH(WORKORDERS!$Q136,'Work Order Master'!$S:$S,0)),Q136)","v":"REGIONAL PROGRAMS"},{"$f":"IFERROR(INDEX('FRS CC Master'!A:A,MATCH(WORKORDERS!$Q136*1,'FRS CC Master'!$C:$C,0)),WORKORDERS!$L136)","v":"Academic and Career Preparation"},{"$f":"IFERROR(VLOOKUP($A136,'Work Order Master'!$K:$Q,7,FALSE),\"Remove\")","v":"N"}]
["12200-1-1","AH Faculty Dean's Office","Active","12200-1","AH Faculty Dean's Office","(blank)","2200","Faculty of Arts and Humanities","220","Arts and Humanitites","220","Arts and Humanities","(blank)","201","Faculty Administration","no",{"$f":"IFERROR(INDEX('Work Order Master'!$S:$S,MATCH(A137,'Work Order Master'!$K:$K,0)),\"New\")","v":2000},{"$f":"IFERROR(INDEX('Work Order Master'!T:T,MATCH(WORKORDERS!$Q137,'Work Order Master'!$S:$S,0)),Q137)","v":"DEAN, ARTS AND HUMANITIES"},{"$f":"IFERROR(INDEX('FRS CC Master'!A:A,MATCH(WORKORDERS!$Q137*1,'FRS CC Master'!$C:$C,0)),WORKORDERS!$L137)","v":"Arts and Humanities"},{"$f":"IFERROR(VLOOKUP($A137,'Work Order Master'!$K:$Q,7,FALSE),\"Remove\")","v":"N"}]
["12201-1-1","AH Faculty Initiatives","Parked","12201-1","AH Faculty Initiatives","(blank)","2201","Arts and Humanities - Initiatives","220","Arts and Humanitites","220","Arts and Humanities","(blank)","201","Faculty Administration","yes",{"$f":"IFERROR(INDEX('Work Order Master'!$S:$S,MATCH(A138,'Work Order Master'!$K:$K,0)),\"New\")","v":"New"},{"$f":"IFERROR(INDEX('Work Order Master'!T:T,MATCH(WORKORDERS!$Q138,'Work Order Master'!$S:$S,0)),Q138)","v":"New"},{"$f":"IFERROR(INDEX('FRS CC Master'!A:A,MATCH(WORKORDERS!$Q138*1,'FRS CC Master'!$C:$C,0)),WORKORDERS!$L138)","v":"Arts and Humanities"},{"$f":"IFERROR(VLOOKUP($A138,'Work Order Master'!$K:$Q,7,FALSE),\"Remove\")","v":"P"}]
["12201-1-1","AH Faculty Initiatives","Parked","12201-1","AH Faculty Initiatives","(blank)","2201","Arts and Humanities - Initiatives","220","Arts and Humanitites","220","Arts and Humanities","(blank)","204","Advising","yes",{"$f":"IFERROR(INDEX('Work Order Master'!$S:$S,MATCH(A139,'Work Order Master'!$K:$K,0)),\"New\")","v":"New"},{"$f":"IFERROR(INDEX('Work Order Master'!T:T,MATCH(WORKORDERS!$Q139,'Work Order Master'!$S:$S,0)),Q139)","v":"New"},{"$f":"IFERROR(INDEX('FRS CC Master'!A:A,MATCH(WORKORDERS!$Q139*1,'FRS CC Master'!$C:$C,0)),WORKORDERS!$L139)","v":"Arts and Humanities"},{"$f":"IFERROR(VLOOKUP($A139,'Work Order Master'!$K:$Q,7,FALSE),\"Remove\")","v":"P"}]
["12201-1-2","AH Faculty Advising","Active","12201-1","AH Faculty Initiatives","(blank)","2201","Arts and Humanities - Initiatives","220","Arts and Humanitites","220","Arts and Humanities","(blank)","201","Faculty Administration","yes",{"$f":"IFERROR(INDEX('Work Order Master'!$S:$S,MATCH(A140,'Work Order Master'!$K:$K,0)),\"New\")","v":2005},{"$f":"IFERROR(INDEX('Work Order Master'!T:T,MATCH(WORKORDERS!$Q140,'Work Order Master'!$S:$S,0)),Q140)","v":"ARTS AND F.N.ST ADVISING"},{"$f":"IFERROR(INDEX('FRS CC Master'!A:A,MATCH(WORKORDERS!$Q140*1,'FRS CC Master'!$C:$C,0)),WORKORDERS!$L140)","v":"Arts and Humanities"},{"$f":"IFERROR(VLOOKUP($A140,'Work Order Master'!$K:$Q,7,FALSE),\"Remove\")","v":"N"}]
["12201-1-2","AH Faculty Advising","Active","12201-1","AH Faculty Initiatives","(blank)","2201","Arts and Humanities - Initiatives","220","Arts and Humanitites","220","Arts and Humanities","(blank)","204","Advising","yes",{"$f":"IFERROR(INDEX('Work Order Master'!$S:$S,MATCH(A141,'Work Order Master'!$K:$K,0)),\"New\")","v":2005},{"$f":"IFERROR(INDEX('Work Order Master'!T:T,MATCH(WORKORDERS!$Q141,'Work Order Master'!$S:$S,0)),Q141)","v":"ARTS AND F.N.ST ADVISING"},{"$f":"IFERROR(INDEX('FRS CC Master'!A:A,MATCH(WORKORDERS!$Q141*1,'FRS CC Master'!$C:$C,0)),WORKORDERS!$L141)","v":"Arts and Humanities"},{"$f":"IFERROR(VLOOKUP($A141,'Work Order Master'!$K:$Q,7,FALSE),\"Remove\")","v":"N"}]
["12201-2-1","AH Faculty of Arts and Humanities - Initiatives - International Sections","Active","12201-2","AH Faculty of Arts and Humanities - Initiatives - International Sections","(blank)","2201","Arts and Humanities - Initiatives","220","Arts and Humanitites","220","Arts and Humanities","(blank)","208","Instruction","no",{"$f":"IFERROR(INDEX('Work Order Master'!$S:$S,MATCH(A142,'Work Order Master'!$K:$K,0)),\"New\")","v":2003},{"$f":"IFERROR(INDEX('Work Order Master'!T:T,MATCH(WORKORDERS!$Q142,'Work Order Master'!$S:$S,0)),Q142)","v":"INTERED SECTIONS ARTS"},{"$f":"IFERROR(INDEX('FRS CC Master'!A:A,MATCH(WORKORDERS!$Q142*1,'FRS CC Master'!$C:$C,0)),WORKORDERS!$L142)","v":"Arts and Humanities"},{"$f":"IFERROR(VLOOKUP($A142,'Work Order Master'!$K:$Q,7,FALSE),\"Remove\")","v":"N"}]
["12201-3-1","AH Faculty of Arts and Humanities - Initiatives - Directed Studies","Active","12201-3","AH Faculty of Arts and Humanities - Initiatives - Directed Studies","(blank)","2201","Arts and Humanities - Initiatives","220","Arts and Humanitites","220","Arts and Humanities","(blank)","208","Instruction","no",{"$f":"IFERROR(INDEX('Work Order Master'!$S:$S,MATCH(A143,'Work Order Master'!$K:$K,0)),\"New\")","v":2002},{"$f":"IFERROR(INDEX('Work Order Master'!T:T,MATCH(WORKORDERS!$Q143,'Work Order Master'!$S:$S,0)),Q143)","v":"A & H DIRECTED STUDIES"},{"$f":"IFERROR(INDEX('FRS CC Master'!A:A,MATCH(WORKORDERS!$Q143*1,'FRS CC Master'!$C:$C,0)),WORKORDERS!$L143)","v":"Arts and Humanities"},{"$f":"IFERROR(VLOOKUP($A143,'Work Order Master'!$K:$Q,7,FALSE),\"Remove\")","v":"N"}]
["12205-1-1","AH Art and Design - Graphic Design","Active","12205-1","AH Art and Design - Graphic Design","(blank)","2205","Art and Design - Graphic Design","220","Arts and Humanitites","220","Arts and Humanities","(blank)","208","Instruction","no",{"$f":"IFERROR(INDEX('Work Order Master'!$S:$S,MATCH(A144,'Work Order Master'!$K:$K,0)),\"New\")","v":2011},{"$f":"IFERROR(INDEX('Work Order Master'!T:T,MATCH(WORKORDERS!$Q144,'Work Order Master'!$S:$S,0)),Q144)","v":"APPLIED ART - GRAPHICS"},{"$f":"IFERROR(INDEX('FRS CC Master'!A:A,MATCH(WORKORDERS!$Q144*1,'FRS CC Master'!$C:$C,0)),WORKORDERS!$L144)","v":"Arts and Humanities"},{"$f":"IFERROR(VLOOKUP($A144,'Work Order Master'!$K:$Q,7,FALSE),\"Remove\")","v":"N"}]
["12210-1-1","AH Art and Design - Interior Design","Active","12210-1","AH Art and Design - Interior Design","(blank)","2210","Art and Design - Interior Design","220","Arts and Humanitites","220","Arts and Humanities","(blank)","208","Instruction","no",{"$f":"IFERROR(INDEX('Work Order Master'!$S:$S,MATCH(A145,'Work Order Master'!$K:$K,0)),\"New\")","v":2012},{"$f":"IFERROR(INDEX('Work Order Master'!T:T,MATCH(WORKORDERS!$Q145,'Work Order Master'!$S:$S,0)),Q145)","v":"INTERIOR DESIGN"},{"$f":"IFERROR(INDEX('FRS CC Master'!A:A,MATCH(WORKORDERS!$Q145*1,'FRS CC Master'!$C:$C,0)),WORKORDERS!$L145)","v":"Arts and Humanities"},{"$f":"IFERROR(VLOOKUP($A145,'Work Order Master'!$K:$Q,7,FALSE),\"Remove\")","v":"N"}]
["12215-1-1","AH Art and Design - Visual Art","Active","12215-1","AH Art and Design - Visual Art","(blank)","2215","Art and Design - Visual Art","220","Arts and Humanitites","220","Arts and Humanities","(blank)","201","Faculty Administration","yes",{"$f":"IFERROR(INDEX('Work Order Master'!$S:$S,MATCH(A146,'Work Order Master'!$K:$K,0)),\"New\")","v":2010},{"$f":"IFERROR(INDEX('Work Order Master'!T:T,MATCH(WORKORDERS!$Q146,'Work Order Master'!$S:$S,0)),Q146)","v":"ART"},{"$f":"IFERROR(INDEX('FRS CC Master'!A:A,MATCH(WORKORDERS!$Q146*1,'FRS CC Master'!$C:$C,0)),WORKORDERS!$L146)","v":"Arts and Humanities"},{"$f":"IFERROR(VLOOKUP($A146,'Work Order Master'!$K:$Q,7,FALSE),\"Remove\")","v":"N"}]
["12215-1-1","AH Art and Design - Visual Art","Active","12215-1","AH Art and Design - Visual Art","(blank)","2215","Art and Design - Visual Art","220","Arts and Humanitites","220","Arts and Humanities","(blank)","208","Instruction","yes",{"$f":"IFERROR(INDEX('Work Order Master'!$S:$S,MATCH(A147,'Work Order Master'!$K:$K,0)),\"New\")","v":2010},{"$f":"IFERROR(INDEX('Work Order Master'!T:T,MATCH(WORKORDERS!$Q147,'Work Order Master'!$S:$S,0)),Q147)","v":"ART"},{"$f":"IFERROR(INDEX('FRS CC Master'!A:A,MATCH(WORKORDERS!$Q147*1,'FRS CC Master'!$C:$C,0)),WORKORDERS!$L147)","v":"Arts and Humanities"},{"$f":"IFERROR(VLOOKUP($A147,'Work Order Master'!$K:$Q,7,FALSE),\"Remove\")","v":"N"}]
["12215-1-2","AH Art and Design - Art Technician","Active","12215-1","AH Art and Design - Visual Art","(blank)","2215","Art and Design - Visual Art","220","Arts and Humanitites","220","Arts and Humanities","(blank)","201","Faculty Administration","yes",{"$f":"IFERROR(INDEX('Work Order Master'!$S:$S,MATCH(A148,'Work Order Master'!$K:$K,0)),\"New\")","v":2009},{"$f":"IFERROR(INDEX('Work Order Master'!T:T,MATCH(WORKORDERS!$Q148,'Work Order Master'!$S:$S,0)),Q148)","v":"ART TECHNICIAN"},{"$f":"IFERROR(INDEX('FRS CC Master'!A:A,MATCH(WORKORDERS!$Q148*1,'FRS CC Master'!$C:$C,0)),WORKORDERS!$L148)","v":"Arts and Humanities"},{"$f":"IFERROR(VLOOKUP($A148,'Work Order Master'!$K:$Q,7,FALSE),\"Remove\")","v":"N"}]
["12215-1-2","AH Art and Design - Art Technician","Active","12215-1","AH Art and Design - Visual Art","(blank)","2215","Art and Design - Visual Art","220","Arts and Humanitites","220","Arts and Humanities","(blank)","208","Instruction","yes",{"$f":"IFERROR(INDEX('Work Order Master'!$S:$S,MATCH(A149,'Work Order Master'!$K:$K,0)),\"New\")","v":2009},{"$f":"IFERROR(INDEX('Work Order Master'!T:T,MATCH(WORKORDERS!$Q149,'Work Order Master'!$S:$S,0)),Q149)","v":"ART TECHNICIAN"},{"$f":"IFERROR(INDEX('FRS CC Master'!A:A,MATCH(WORKORDERS!$Q149*1,'FRS CC Master'!$C:$C,0)),WORKORDERS!$L149)","v":"Arts and Humanities"},{"$f":"IFERROR(VLOOKUP($A149,'Work Order Master'!$K:$Q,7,FALSE),\"Remove\")","v":"N"}]
["12215-1-3","AH Art and Design - View Gallery","Active","12215-1","AH Art and Design - Visual Art","(blank)","2215","Art and Design - Visual Art","220","Arts and Humanitites","220","Arts and Humanities","(blank)","201","Faculty Administration","yes",{"$f":"IFERROR(INDEX('Work Order Master'!$S:$S,MATCH(A150,'Work Order Master'!$K:$K,0)),\"New\")","v":2090},{"$f":"IFERROR(INDEX('Work Order Master'!T:T,MATCH(WORKORDERS!$Q150,'Work Order Master'!$S:$S,0)),Q150)","v":"VIEW GALLERY"},{"$f":"IFERROR(INDEX('FRS CC Master'!A:A,MATCH(WORKORDERS!$Q150*1,'FRS CC Master'!$C:$C,0)),WORKORDERS!$L150)","v":"Arts and Humanities"},{"$f":"IFERROR(VLOOKUP($A150,'Work Order Master'!$K:$Q,7,FALSE),\"Remove\")","v":"N"}]
["12215-1-3","AH Art and Design - View Gallery","Active","12215-1","AH Art and Design - Visual Art","(blank)","2215","Art and Design - Visual Art","220","Arts and Humanitites","220","Arts and Humanities","(blank)","208","Instruction","yes",{"$f":"IFERROR(INDEX('Work Order Master'!$S:$S,MATCH(A151,'Work Order Master'!$K:$K,0)),\"New\")","v":2090},{"$f":"IFERROR(INDEX('Work Order Master'!T:T,MATCH(WORKORDERS!$Q151,'Work Order Master'!$S:$S,0)),Q151)","v":"VIEW GALLERY"},{"$f":"IFERROR(INDEX('FRS CC Master'!A:A,MATCH(WORKORDERS!$Q151*1,'FRS CC Master'!$C:$C,0)),WORKORDERS!$L151)","v":"Arts and Humanities"},{"$f":"IFERROR(VLOOKUP($A151,'Work Order Master'!$K:$Q,7,FALSE),\"Remove\")","v":"N"}]
["12220-1-1","AH Creative Writing and Journalism","Active","12220-1","AH Creative Writing and Journalism","(blank)","2220","Creative Writing and Journalism","220","Arts and Humanitites","220","Arts and Humanities","(blank)","208","Instruction","no",{"$f":"IFERROR(INDEX('Work Order Master'!$S:$S,MATCH(A152,'Work Order Master'!$K:$K,0)),\"New\")","v":2032},{"$f":"IFERROR(INDEX('Work Order Master'!T:T,MATCH(WORKORDERS!$Q152,'Work Order Master'!$S:$S,0)),Q152)","v":"CREATIVE WRITING"},{"$f":"IFERROR(INDEX('FRS CC Master'!A:A,MATCH(WORKORDERS!$Q152*1,'FRS CC Master'!$C:$C,0)),WORKORDERS!$L152)","v":"Arts and Humanities"},{"$f":"IFERROR(VLOOKUP($A152,'Work Order Master'!$K:$Q,7,FALSE),\"Remove\")","v":"N"}]
["12220-1-2","AH Creative Writing and Journalism - Extra Sections","Active","12220-1","AH Creative Writing and Journalism","(blank)","2220","Creative Writing and Journalism","220","Arts and Humanitites","220","Arts and Humanities","(blank)","208","Instruction","no",{"$f":"IFERROR(INDEX('Work Order Master'!$S:$S,MATCH(A153,'Work Order Master'!$K:$K,0)),\"New\")","v":2035},{"$f":"IFERROR(INDEX('Work Order Master'!T:T,MATCH(WORKORDERS!$Q153,'Work Order Master'!$S:$S,0)),Q153)","v":"CREW - EXTRA SECTIONS"},{"$f":"IFERROR(INDEX('FRS CC Master'!A:A,MATCH(WORKORDERS!$Q153*1,'FRS CC Master'!$C:$C,0)),WORKORDERS!$L153)","v":"Arts and Humanities"},{"$f":"IFERROR(VLOOKUP($A153,'Work Order Master'!$K:$Q,7,FALSE),\"Remove\")","v":"N"}]
["12225-1-1","AH English","Active","12225-1","AH English","(blank)","2225","English","220","Arts and Humanitites","220","Arts and Humanities","(blank)","208","Instruction","no",{"$f":"IFERROR(INDEX('Work Order Master'!$S:$S,MATCH(A154,'Work Order Master'!$K:$K,0)),\"New\")","v":2030},{"$f":"IFERROR(INDEX('Work Order Master'!T:T,MATCH(WORKORDERS!$Q154,'Work Order Master'!$S:$S,0)),Q154)","v":"ENGLISH"},{"$f":"IFERROR(INDEX('FRS CC Master'!A:A,MATCH(WORKORDERS!$Q154*1,'FRS CC Master'!$C:$C,0)),WORKORDERS!$L154)","v":"Arts and Humanities"},{"$f":"IFERROR(VLOOKUP($A154,'Work Order Master'!$K:$Q,7,FALSE),\"Remove\")","v":"N"}]
["12225-1-2","AH English - Extra Sections","Active","12225-1","AH English","(blank)","2225","English","220","Arts and Humanitites","220","Arts and Humanities","(blank)","208","Instruction","no",{"$f":"IFERROR(INDEX('Work Order Master'!$S:$S,MATCH(A155,'Work Order Master'!$K:$K,0)),\"New\")","v":2029},{"$f":"IFERROR(INDEX('Work Order Master'!T:T,MATCH(WORKORDERS!$Q155,'Work Order Master'!$S:$S,0)),Q155)","v":"ENGLISH - EXTRA SECTIONS"},{"$f":"IFERROR(INDEX('FRS CC Master'!A:A,MATCH(WORKORDERS!$Q155*1,'FRS CC Master'!$C:$C,0)),WORKORDERS!$L155)","v":"Arts and Humanities"},{"$f":"IFERROR(VLOOKUP($A155,'Work Order Master'!$K:$Q,7,FALSE),\"Remove\")","v":"N"}]
["12230-1-1","AH History","Active","12230-1","AH History","(blank)","2230","History","220","Arts and Humanitites","220","Arts and Humanities","(blank)","208","Instruction","no",{"$f":"IFERROR(INDEX('Work Order Master'!$S:$S,MATCH(A156,'Work Order Master'!$K:$K,0)),\"New\")","v":2052},{"$f":"IFERROR(INDEX('Work Order Master'!T:T,MATCH(WORKORDERS!$Q156,'Work Order Master'!$S:$S,0)),Q156)","v":"HISTORY"},{"$f":"IFERROR(INDEX('FRS CC Master'!A:A,MATCH(WORKORDERS!$Q156*1,'FRS CC Master'!$C:$C,0)),WORKORDERS!$L156)","v":"Arts and Humanities"},{"$f":"IFERROR(VLOOKUP($A156,'Work Order Master'!$K:$Q,7,FALSE),\"Remove\")","v":"N"}]
["12235-1-1","AH Indigenous/Xwulmuxw Studies","Active","12235-1","AH Indigenous/Xwulmuxw Studies","(blank)","2235","Indigenous/Xwulmuxw Studies","220","Arts and Humanitites","220","Arts and Humanities","(blank)","208","Instruction","no",{"$f":"IFERROR(INDEX('Work Order Master'!$S:$S,MATCH(A157,'Work Order Master'!$K:$K,0)),\"New\")","v":2070},{"$f":"IFERROR(INDEX('Work Order Master'!T:T,MATCH(WORKORDERS!$Q157,'Work Order Master'!$S:$S,0)),Q157)","v":"FIRST NATIONS STUDIES"},{"$f":"IFERROR(INDEX('FRS CC Master'!A:A,MATCH(WORKORDERS!$Q157*1,'FRS CC Master'!$C:$C,0)),WORKORDERS!$L157)","v":"Arts and Humanities"},{"$f":"IFERROR(VLOOKUP($A157,'Work Order Master'!$K:$Q,7,FALSE),\"Remove\")","v":"N"}]
["12240-1-1","AH Media Studies","Active","12240-1","AH Media Studies","(blank)","2240","Media Studies","220","Arts and Humanitites","220","Arts and Humanities","(blank)","208","Instruction","no",{"$f":"IFERROR(INDEX('Work Order Master'!$S:$S,MATCH(A158,'Work Order Master'!$K:$K,0)),\"New\")","v":2014},{"$f":"IFERROR(INDEX('Work Order Master'!T:T,MATCH(WORKORDERS!$Q158,'Work Order Master'!$S:$S,0)),Q158)","v":"MEDIA STUDIES"},{"$f":"IFERROR(INDEX('FRS CC Master'!A:A,MATCH(WORKORDERS!$Q158*1,'FRS CC Master'!$C:$C,0)),WORKORDERS!$L158)","v":"Arts and Humanities"},{"$f":"IFERROR(VLOOKUP($A158,'Work Order Master'!$K:$Q,7,FALSE),\"Remove\")","v":"N"}]
["12240-1-2","AH Media Studies - Extra Sections","Active","12240-1","AH Media Studies","(blank)","2240","Media Studies","220","Arts and Humanitites","220","Arts and Humanities","(blank)","208","Instruction","no",{"$f":"IFERROR(INDEX('Work Order Master'!$S:$S,MATCH(A159,'Work Order Master'!$K:$K,0)),\"New\")","v":2013},{"$f":"IFERROR(INDEX('Work Order Master'!T:T,MATCH(WORKORDERS!$Q159,'Work Order Master'!$S:$S,0)),Q159)","v":"MEDIA STUDIES - EXTRA SECTIONS"},{"$f":"IFERROR(INDEX('FRS CC Master'!A:A,MATCH(WORKORDERS!$Q159*1,'FRS CC Master'!$C:$C,0)),WORKORDERS!$L159)","v":"Arts and Humanities"},{"$f":"IFERROR(VLOOKUP($A159,'Work Order Master'!$K:$Q,7,FALSE),\"Remove\")","v":"N"}]
["12245-1-1","AH Modern Languages Studies","Active","12245-1","AH Modern Languages Studies","(blank)","2245","Modern Languages Studies","220","Arts and Humanitites","220","Arts and Humanities","(blank)","208","Instruction","no",{"$f":"IFERROR(INDEX('Work Order Master'!$S:$S,MATCH(A160,'Work Order Master'!$K:$K,0)),\"New\")","v":2026},{"$f":"IFERROR(INDEX('Work Order Master'!T:T,MATCH(WORKORDERS!$Q160,'Work Order Master'!$S:$S,0)),Q160)","v":"MODERN LANGUAGE"},{"$f":"IFERROR(INDEX('FRS CC Master'!A:A,MATCH(WORKORDERS!$Q160*1,'FRS CC Master'!$C:$C,0)),WORKORDERS!$L160)","v":"Arts and Humanities"},{"$f":"IFERROR(VLOOKUP($A160,'Work Order Master'!$K:$Q,7,FALSE),\"Remove\")","v":"N"}]
["12245-2-1","AH Asian Studies Credential","Active","12245-2","AH Asian Studies Credential","(blank)","2245","Modern Languages Studies","220","Arts and Humanitites","220","Arts and Humanities","(blank)","208","Instruction","no",{"$f":"IFERROR(INDEX('Work Order Master'!$S:$S,MATCH(A161,'Work Order Master'!$K:$K,0)),\"New\")","v":2027},{"$f":"IFERROR(INDEX('Work Order Master'!T:T,MATCH(WORKORDERS!$Q161,'Work Order Master'!$S:$S,0)),Q161)","v":"ASIAN STUDIES CREDENTIAL"},{"$f":"IFERROR(INDEX('FRS CC Master'!A:A,MATCH(WORKORDERS!$Q161*1,'FRS CC Master'!$C:$C,0)),WORKORDERS!$L161)","v":"Arts and Humanities"},{"$f":"IFERROR(VLOOKUP($A161,'Work Order Master'!$K:$Q,7,FALSE),\"Remove\")","v":"N"}]
["12245-2-2","AH Asian Studies Credential - TBD","Parked","12245-2","AH Asian Studies Credential","(blank)","2245","Modern Languages Studies","220","Arts and Humanitites","220","Arts and Humanities","(blank)","208","Instruction","no",{"$f":"IFERROR(INDEX('Work Order Master'!$S:$S,MATCH(A162,'Work Order Master'!$K:$K,0)),\"New\")","v":"New"},{"$f":"IFERROR(INDEX('Work Order Master'!T:T,MATCH(WORKORDERS!$Q162,'Work Order Master'!$S:$S,0)),Q162)","v":"New"},{"$f":"IFERROR(INDEX('FRS CC Master'!A:A,MATCH(WORKORDERS!$Q162*1,'FRS CC Master'!$C:$C,0)),WORKORDERS!$L162)","v":"Arts and Humanities"},{"$f":"IFERROR(VLOOKUP($A162,'Work Order Master'!$K:$Q,7,FALSE),\"Remove\")","v":"Remove"}]
["12250-1-1","AH Music","Active","12250-1","AH Music","(blank)","2250","Music","220","Arts and Humanitites","220","Arts and Humanities","(blank)","208","Instruction","no",{"$f":"IFERROR(INDEX('Work Order Master'!$S:$S,MATCH(A163,'Work Order Master'!$K:$K,0)),\"New\")","v":2016},{"$f":"IFERROR(INDEX('Work Order Master'!T:T,MATCH(WORKORDERS!$Q163,'Work Order Master'!$S:$S,0)),Q163)","v":"MUSIC"},{"$f":"IFERROR(INDEX('FRS CC Master'!A:A,MATCH(WORKORDERS!$Q163*1,'FRS CC Master'!$C:$C,0)),WORKORDERS!$L163)","v":"Arts and Humanities"},{"$f":"IFERROR(VLOOKUP($A163,'Work Order Master'!$K:$Q,7,FALSE),\"Remove\")","v":"N"}]
["12250-1-2","AH Music - Private Instruction","Active","12250-1","AH Music","(blank)","2250","Music","220","Arts and Humanitites","220","Arts and Humanities","(blank)","208","Instruction","no",{"$f":"IFERROR(INDEX('Work Order Master'!$S:$S,MATCH(A164,'Work Order Master'!$K:$K,0)),\"New\")","v":2018},{"$f":"IFERROR(INDEX('Work Order Master'!T:T,MATCH(WORKORDERS!$Q164,'Work Order Master'!$S:$S,0)),Q164)","v":"MUSIC-PRIVATE INSTRUCTION"},{"$f":"IFERROR(INDEX('FRS CC Master'!A:A,MATCH(WORKORDERS!$Q164*1,'FRS CC Master'!$C:$C,0)),WORKORDERS!$L164)","v":"Arts and Humanities"},{"$f":"IFERROR(VLOOKUP($A164,'Work Order Master'!$K:$Q,7,FALSE),\"Remove\")","v":"N"}]
["12255-1-1","AH Studies in Women and Gender","Active","12255-1","AH Studies in Women and Gender","(blank)","2255","Studies in Women and Gender","220","Arts and Humanitites","220","Arts and Humanities","(blank)","208","Instruction","no",{"$f":"IFERROR(INDEX('Work Order Master'!$S:$S,MATCH(A165,'Work Order Master'!$K:$K,0)),\"New\")","v":2080},{"$f":"IFERROR(INDEX('Work Order Master'!T:T,MATCH(WORKORDERS!$Q165,'Work Order Master'!$S:$S,0)),Q165)","v":"WOMEN'S STUDIES"},{"$f":"IFERROR(INDEX('FRS CC Master'!A:A,MATCH(WORKORDERS!$Q165*1,'FRS CC Master'!$C:$C,0)),WORKORDERS!$L165)","v":"Arts and Humanities"},{"$f":"IFERROR(VLOOKUP($A165,'Work Order Master'!$K:$Q,7,FALSE),\"Remove\")","v":"N"}]
["12260-1-1","AH Theatre","Active","12260-1","AH Theatre","(blank)","2260","Theatre","220","Arts and Humanitites","220","Arts and Humanities","(blank)","208","Instruction","no",{"$f":"IFERROR(INDEX('Work Order Master'!$S:$S,MATCH(A166,'Work Order Master'!$K:$K,0)),\"New\")","v":2019},{"$f":"IFERROR(INDEX('Work Order Master'!T:T,MATCH(WORKORDERS!$Q166,'Work Order Master'!$S:$S,0)),Q166)","v":"THEATRE"},{"$f":"IFERROR(INDEX('FRS CC Master'!A:A,MATCH(WORKORDERS!$Q166*1,'FRS CC Master'!$C:$C,0)),WORKORDERS!$L166)","v":"Arts and Humanities"},{"$f":"IFERROR(VLOOKUP($A166,'Work Order Master'!$K:$Q,7,FALSE),\"Remove\")","v":"N"}]
["12300-1-1","EDUC Faculty Dean's Office","Active","12300-1","EDUC Faculty Dean's Office","(blank)","2300","Faculty of Education","230","Education","230","Education","(blank)","201","Faculty Administration","no",{"$f":"IFERROR(INDEX('Work Order Master'!$S:$S,MATCH(A167,'Work Order Master'!$K:$K,0)),\"New\")","v":5000},{"$f":"IFERROR(INDEX('Work Order Master'!T:T,MATCH(WORKORDERS!$Q167,'Work Order Master'!$S:$S,0)),Q167)","v":"DEAN, EDUCATION"},{"$f":"IFERROR(INDEX('FRS CC Master'!A:A,MATCH(WORKORDERS!$Q167*1,'FRS CC Master'!$C:$C,0)),WORKORDERS!$L167)","v":"Education"},{"$f":"IFERROR(VLOOKUP($A167,'Work Order Master'!$K:$Q,7,FALSE),\"Remove\")","v":"N"}]
["12301-1-1","EDUC Faculty - Advising","Active","12301-1","EDUC Faculty of Education - Initiatives","(blank)","2301","Education - Initiatives","230","Education","230","Education","(blank)","201","Faculty Administration","yes",{"$f":"IFERROR(INDEX('Work Order Master'!$S:$S,MATCH(A168,'Work Order Master'!$K:$K,0)),\"New\")","v":5005},{"$f":"IFERROR(INDEX('Work Order Master'!T:T,MATCH(WORKORDERS!$Q168,'Work Order Master'!$S:$S,0)),Q168)","v":"EDUCATION ADVISING"},{"$f":"IFERROR(INDEX('FRS CC Master'!A:A,MATCH(WORKORDERS!$Q168*1,'FRS CC Master'!$C:$C,0)),WORKORDERS!$L168)","v":"Education"},{"$f":"IFERROR(VLOOKUP($A168,'Work Order Master'!$K:$Q,7,FALSE),\"Remove\")","v":"N"}]
["12301-1-1","EDUC Faculty - Advising","Active","12301-1","EDUC Faculty of Education - Initiatives","(blank)","2301","Education - Initiatives","230","Education","230","Education","(blank)","204","Advising","yes",{"$f":"IFERROR(INDEX('Work Order Master'!$S:$S,MATCH(A169,'Work Order Master'!$K:$K,0)),\"New\")","v":5005},{"$f":"IFERROR(INDEX('Work Order Master'!T:T,MATCH(WORKORDERS!$Q169,'Work Order Master'!$S:$S,0)),Q169)","v":"EDUCATION ADVISING"},{"$f":"IFERROR(INDEX('FRS CC Master'!A:A,MATCH(WORKORDERS!$Q169*1,'FRS CC Master'!$C:$C,0)),WORKORDERS!$L169)","v":"Education"},{"$f":"IFERROR(VLOOKUP($A169,'Work Order Master'!$K:$Q,7,FALSE),\"Remove\")","v":"N"}]
["12301-1-2","EDUC Faculty - Multi Media","Active","12301-1","EDUC Faculty of Education - Initiatives","(blank)","2301","Education - Initiatives","230","Education","230","Education","(blank)","201","Faculty Administration","yes",{"$f":"IFERROR(INDEX('Work Order Master'!$S:$S,MATCH(A170,'Work Order Master'!$K:$K,0)),\"New\")","v":5007},{"$f":"IFERROR(INDEX('Work Order Master'!T:T,MATCH(WORKORDERS!$Q170,'Work Order Master'!$S:$S,0)),Q170)","v":"MULTI MEDIA"},{"$f":"IFERROR(INDEX('FRS CC Master'!A:A,MATCH(WORKORDERS!$Q170*1,'FRS CC Master'!$C:$C,0)),WORKORDERS!$L170)","v":"Education"},{"$f":"IFERROR(VLOOKUP($A170,'Work Order Master'!$K:$Q,7,FALSE),\"Remove\")","v":"N"}]
["12301-1-2","EDUC Faculty - Multi Media","Active","12301-1","EDUC Faculty of Education - Initiatives","(blank)","2301","Education - Initiatives","230","Education","230","Education","(blank)","204","Advising","yes",{"$f":"IFERROR(INDEX('Work Order Master'!$S:$S,MATCH(A171,'Work Order Master'!$K:$K,0)),\"New\")","v":5007},{"$f":"IFERROR(INDEX('Work Order Master'!T:T,MATCH(WORKORDERS!$Q171,'Work Order Master'!$S:$S,0)),Q171)","v":"MULTI MEDIA"},{"$f":"IFERROR(INDEX('FRS CC Master'!A:A,MATCH(WORKORDERS!$Q171*1,'FRS CC Master'!$C:$C,0)),WORKORDERS!$L171)","v":"Education"},{"$f":"IFERROR(VLOOKUP($A171,'Work Order Master'!$K:$Q,7,FALSE),\"Remove\")","v":"N"}]
["12301-2-1","EDUC Faculty - International Sections","Parked","12301-2","EDUC Faculty - International Sections","(blank)","2301","Education - Initiatives","230","Education","230","Education","(blank)","208","Instruction","no",{"$f":"IFERROR(INDEX('Work Order Master'!$S:$S,MATCH(A172,'Work Order Master'!$K:$K,0)),\"New\")","v":"New"},{"$f":"IFERROR(INDEX('Work Order Master'!T:T,MATCH(WORKORDERS!$Q172,'Work Order Master'!$S:$S,0)),Q172)","v":"New"},{"$f":"IFERROR(INDEX('FRS CC Master'!A:A,MATCH(WORKORDERS!$Q172*1,'FRS CC Master'!$C:$C,0)),WORKORDERS!$L172)","v":"Education"},{"$f":"IFERROR(VLOOKUP($A172,'Work Order Master'!$K:$Q,7,FALSE),\"Remove\")","v":"Remove"}]
["12301-3-1","EDUC Faculty - Directed Studies","Active","12301-3","EDUC Faculty - Directed Studies","(blank)","2301","Education - Initiatives","230","Education","230","Education","(blank)","208","Instruction","no",{"$f":"IFERROR(INDEX('Work Order Master'!$S:$S,MATCH(A173,'Work Order Master'!$K:$K,0)),\"New\")","v":5003},{"$f":"IFERROR(INDEX('Work Order Master'!T:T,MATCH(WORKORDERS!$Q173,'Work Order Master'!$S:$S,0)),Q173)","v":"EDUC. - DIRECTED STUDIES"},{"$f":"IFERROR(INDEX('FRS CC Master'!A:A,MATCH(WORKORDERS!$Q173*1,'FRS CC Master'!$C:$C,0)),WORKORDERS!$L173)","v":"Education"},{"$f":"IFERROR(VLOOKUP($A173,'Work Order Master'!$K:$Q,7,FALSE),\"Remove\")","v":"N"}]
["12301-4-1","EDUC Faculty - School Experience","Active","12301-4","EDUC Faculty - School Experience","(blank)","2301","Education - Initiatives","230","Education","230","Education","(blank)","223","Field Schools","no",{"$f":"IFERROR(INDEX('Work Order Master'!$S:$S,MATCH(A174,'Work Order Master'!$K:$K,0)),\"New\")","v":5004},{"$f":"IFERROR(INDEX('Work Order Master'!T:T,MATCH(WORKORDERS!$Q174,'Work Order Master'!$S:$S,0)),Q174)","v":"SCHOOL EXPERIENCE"},{"$f":"IFERROR(INDEX('FRS CC Master'!A:A,MATCH(WORKORDERS!$Q174*1,'FRS CC Master'!$C:$C,0)),WORKORDERS!$L174)","v":"Education"},{"$f":"IFERROR(VLOOKUP($A174,'Work Order Master'!$K:$Q,7,FALSE),\"Remove\")","v":"N"}]
["12310-1-1","EDUC Education - Instruction","Active","12310-1","EDUC Education - Instruction","(blank)","2310","Education","230","Education","230","Education","(blank)","208","Instruction","no",{"$f":"IFERROR(INDEX('Work Order Master'!$S:$S,MATCH(A175,'Work Order Master'!$K:$K,0)),\"New\")","v":5006},{"$f":"IFERROR(INDEX('Work Order Master'!T:T,MATCH(WORKORDERS!$Q175,'Work Order Master'!$S:$S,0)),Q175)","v":"EDUCATION, INSTRUCTION"},{"$f":"IFERROR(INDEX('FRS CC Master'!A:A,MATCH(WORKORDERS!$Q175*1,'FRS CC Master'!$C:$C,0)),WORKORDERS!$L175)","v":"Education"},{"$f":"IFERROR(VLOOKUP($A175,'Work Order Master'!$K:$Q,7,FALSE),\"Remove\")","v":"N"}]
["12315-1-1","EDUC Education - Post Bac Secondary Education","Active","12315-1","EDUC Education - Post Bac Secondary Education","(blank)","2315","Post Bac - Secondary Education","230","Education","230","Education","(blank)","208","Instruction","no",{"$f":"IFERROR(INDEX('Work Order Master'!$S:$S,MATCH(A176,'Work Order Master'!$K:$K,0)),\"New\")","v":5014},{"$f":"IFERROR(INDEX('Work Order Master'!T:T,MATCH(WORKORDERS!$Q176,'Work Order Master'!$S:$S,0)),Q176)","v":"POST BAC-SECONDARY FOCUS"},{"$f":"IFERROR(INDEX('FRS CC Master'!A:A,MATCH(WORKORDERS!$Q176*1,'FRS CC Master'!$C:$C,0)),WORKORDERS!$L176)","v":"Education"},{"$f":"IFERROR(VLOOKUP($A176,'Work Order Master'!$K:$Q,7,FALSE),\"Remove\")","v":"N"}]
["12320-1-1","EDUC Kinesiology","Active","12320-1","EDUC Kinesiology","(blank)","2320","Kinesiology","230","Education","230","Education","(blank)","208","Instruction","no",{"$f":"IFERROR(INDEX('Work Order Master'!$S:$S,MATCH(A177,'Work Order Master'!$K:$K,0)),\"New\")","v":5010},{"$f":"IFERROR(INDEX('Work Order Master'!T:T,MATCH(WORKORDERS!$Q177,'Work Order Master'!$S:$S,0)),Q177)","v":"PHYSICAL EDUCATION"},{"$f":"IFERROR(INDEX('FRS CC Master'!A:A,MATCH(WORKORDERS!$Q177*1,'FRS CC Master'!$C:$C,0)),WORKORDERS!$L177)","v":"Education"},{"$f":"IFERROR(VLOOKUP($A177,'Work Order Master'!$K:$Q,7,FALSE),\"Remove\")","v":"N"}]
["12400-1-1","HHS Faculty Dean's Office","Active","12400-1","HHS Faculty Dean's Office","(blank)","2400","Faculty of Health and Human Services","240","Health and Human Services","240","Health and Human Services","(blank)","201","Faculty Administration","no",{"$f":"IFERROR(INDEX('Work Order Master'!$S:$S,MATCH(A178,'Work Order Master'!$K:$K,0)),\"New\")","v":4500},{"$f":"IFERROR(INDEX('Work Order Master'!T:T,MATCH(WORKORDERS!$Q178,'Work Order Master'!$S:$S,0)),Q178)","v":"DEAN,HEALTH & HUMAN SERV"},{"$f":"IFERROR(INDEX('FRS CC Master'!A:A,MATCH(WORKORDERS!$Q178*1,'FRS CC Master'!$C:$C,0)),WORKORDERS!$L178)","v":"Health and Human Services"},{"$f":"IFERROR(VLOOKUP($A178,'Work Order Master'!$K:$Q,7,FALSE),\"Remove\")","v":"N"}]
["12400-2-1","HHS Health Programs Support","Active","12400-2","HHS Health Programs Support","(blank)","2400","Faculty of Health and Human Services","240","Health and Human Services","240","Health and Human Services","(blank)","201","Faculty Administration","no",{"$f":"IFERROR(INDEX('Work Order Master'!$S:$S,MATCH(A179,'Work Order Master'!$K:$K,0)),\"New\")","v":4502},{"$f":"IFERROR(INDEX('Work Order Master'!T:T,MATCH(WORKORDERS!$Q179,'Work Order Master'!$S:$S,0)),Q179)","v":"HEALTH PROGRAMS SUPPORT"},{"$f":"IFERROR(INDEX('FRS CC Master'!A:A,MATCH(WORKORDERS!$Q179*1,'FRS CC Master'!$C:$C,0)),WORKORDERS!$L179)","v":"Health and Human Services"},{"$f":"IFERROR(VLOOKUP($A179,'Work Order Master'!$K:$Q,7,FALSE),\"Remove\")","v":"N"}]
["12401-1-1","HHS Faculty Initiatives","Parked","12401-1","HHS Faculty Initiatives","(blank)","2401","Health and Human Services - Initiatives","240","Health and Human Services","240","Health and Human Services","(blank)","201","Faculty Administration","no",{"$f":"IFERROR(INDEX('Work Order Master'!$S:$S,MATCH(A180,'Work Order Master'!$K:$K,0)),\"New\")","v":"New"},{"$f":"IFERROR(INDEX('Work Order Master'!T:T,MATCH(WORKORDERS!$Q180,'Work Order Master'!$S:$S,0)),Q180)","v":"New"},{"$f":"IFERROR(INDEX('FRS CC Master'!A:A,MATCH(WORKORDERS!$Q180*1,'FRS CC Master'!$C:$C,0)),WORKORDERS!$L180)","v":"Health and Human Services"},{"$f":"IFERROR(VLOOKUP($A180,'Work Order Master'!$K:$Q,7,FALSE),\"Remove\")","v":"P"}]
["12401-1-2","HHS Faculty - Initiatives - TBD","Parked","12401-1","HHS Faculty Initiatives","(blank)","2401","Health and Human Services - Initiatives","240","Health and Human Services","240","Health and Human Services","(blank)","201","Faculty Administration","no",{"$f":"IFERROR(INDEX('Work Order Master'!$S:$S,MATCH(A181,'Work Order Master'!$K:$K,0)),\"New\")","v":"New"},{"$f":"IFERROR(INDEX('Work Order Master'!T:T,MATCH(WORKORDERS!$Q181,'Work Order Master'!$S:$S,0)),Q181)","v":"New"},{"$f":"IFERROR(INDEX('FRS CC Master'!A:A,MATCH(WORKORDERS!$Q181*1,'FRS CC Master'!$C:$C,0)),WORKORDERS!$L181)","v":"Health and Human Services"},{"$f":"IFERROR(VLOOKUP($A181,'Work Order Master'!$K:$Q,7,FALSE),\"Remove\")","v":"P"}]
["12401-2-1","HHS Faculty - International Sections","Active","12401-2","HHS Faculty - International Sections","(blank)","2401","Health and Human Services - Initiatives","240","Health and Human Services","240","Health and Human Services","(blank)","208","Instruction","no",{"$f":"IFERROR(INDEX('Work Order Master'!$S:$S,MATCH(A182,'Work Order Master'!$K:$K,0)),\"New\")","v":5205},{"$f":"IFERROR(INDEX('Work Order Master'!T:T,MATCH(WORKORDERS!$Q182,'Work Order Master'!$S:$S,0)),Q182)","v":"HEALTH&HS-HOLDING ACCOUNT"},{"$f":"IFERROR(INDEX('FRS CC Master'!A:A,MATCH(WORKORDERS!$Q182*1,'FRS CC Master'!$C:$C,0)),WORKORDERS!$L182)","v":"Health and Human Services"},{"$f":"IFERROR(VLOOKUP($A182,'Work Order Master'!$K:$Q,7,FALSE),\"Remove\")","v":"N"}]
["12401-3-1","HHS Faculty - Directed Studies","Active","12401-3","HHS Faculty - Directed Studies","(blank)","2401","Health and Human Services - Initiatives","240","Health and Human Services","240","Health and Human Services","(blank)","208","Instruction","no",{"$f":"IFERROR(INDEX('Work Order Master'!$S:$S,MATCH(A183,'Work Order Master'!$K:$K,0)),\"New\")","v":4509},{"$f":"IFERROR(INDEX('Work Order Master'!T:T,MATCH(WORKORDERS!$Q183,'Work Order Master'!$S:$S,0)),Q183)","v":"DIRECTED STUDIES - HEALTH"},{"$f":"IFERROR(INDEX('FRS CC Master'!A:A,MATCH(WORKORDERS!$Q183*1,'FRS CC Master'!$C:$C,0)),WORKORDERS!$L183)","v":"Health and Human Services"},{"$f":"IFERROR(VLOOKUP($A183,'Work Order Master'!$K:$Q,7,FALSE),\"Remove\")","v":"N"}]
["12401-4-1","HHS Faculty - AECD Endowment","Parked","12401-4","HHS Faculty - AECD Endowment","(blank)","2401","Health and Human Services - Initiatives","240","Health and Human Services","240","Health and Human Services","(blank)","201","Faculty Administration","no",{"$f":"IFERROR(INDEX('Work Order Master'!$S:$S,MATCH(A184,'Work Order Master'!$K:$K,0)),\"New\")","v":"New"},{"$f":"IFERROR(INDEX('Work Order Master'!T:T,MATCH(WORKORDERS!$Q184,'Work Order Master'!$S:$S,0)),Q184)","v":"New"},{"$f":"IFERROR(INDEX('FRS CC Master'!A:A,MATCH(WORKORDERS!$Q184*1,'FRS CC Master'!$C:$C,0)),WORKORDERS!$L184)","v":"Health and Human Services"},{"$f":"IFERROR(VLOOKUP($A184,'Work Order Master'!$K:$Q,7,FALSE),\"Remove\")","v":"Remove"}]
["12405-1-1","HHS Bachelor of Science in Nursing","Active","12405-1","HHS Bachelor of Science in Nursing","(blank)","2405","Bachelor of Science in Nursing","240","Health and Human Services","240","Health and Human Services","(blank)","208","Instruction","no",{"$f":"IFERROR(INDEX('Work Order Master'!$S:$S,MATCH(A185,'Work Order Master'!$K:$K,0)),\"New\")","v":4510},{"$f":"IFERROR(INDEX('Work Order Master'!T:T,MATCH(WORKORDERS!$Q185,'Work Order Master'!$S:$S,0)),Q185)","v":"BSN"},{"$f":"IFERROR(INDEX('FRS CC Master'!A:A,MATCH(WORKORDERS!$Q185*1,'FRS CC Master'!$C:$C,0)),WORKORDERS!$L185)","v":"Health and Human Services"},{"$f":"IFERROR(VLOOKUP($A185,'Work Order Master'!$K:$Q,7,FALSE),\"Remove\")","v":"N"}]
["12405-2-1","HHS Bachelor of Science in Nursing  - North Island College","Active","12405-2","HHS Bachelor of Science in Nursing  - North Island College","(blank)","2405","Bachelor of Science in Nursing","240","Health and Human Services","240","Health and Human Services","(blank)","219","Contract activity","no",{"$f":"IFERROR(INDEX('Work Order Master'!$S:$S,MATCH(A186,'Work Order Master'!$K:$K,0)),\"New\")","v":4511},{"$f":"IFERROR(INDEX('Work Order Master'!T:T,MATCH(WORKORDERS!$Q186,'Work Order Master'!$S:$S,0)),Q186)","v":"B.NURSING - NORTH ISLAND COLLEGE"},{"$f":"IFERROR(INDEX('FRS CC Master'!A:A,MATCH(WORKORDERS!$Q186*1,'FRS CC Master'!$C:$C,0)),WORKORDERS!$L186)","v":"Health and Human Services"},{"$f":"IFERROR(VLOOKUP($A186,'Work Order Master'!$K:$Q,7,FALSE),\"Remove\")","v":"N"}]
["12410-1-1","HHS Dental Assistant","Active","12410-1","HHS Dental Assistant","(blank)","2410","Dental Assistant","240","Health and Human Services","240","Health and Human Services","(blank)","208","Instruction","no",{"$f":"IFERROR(INDEX('Work Order Master'!$S:$S,MATCH(A187,'Work Order Master'!$K:$K,0)),\"New\")","v":4520},{"$f":"IFERROR(INDEX('Work Order Master'!T:T,MATCH(WORKORDERS!$Q187,'Work Order Master'!$S:$S,0)),Q187)","v":"DENTAL ASSISTANT"},{"$f":"IFERROR(INDEX('FRS CC Master'!A:A,MATCH(WORKORDERS!$Q187*1,'FRS CC Master'!$C:$C,0)),WORKORDERS!$L187)","v":"Health and Human Services"},{"$f":"IFERROR(VLOOKUP($A187,'Work Order Master'!$K:$Q,7,FALSE),\"Remove\")","v":"N"}]
["12412-1-1","HHS Dental Clinic","Active","12412-1","HHS Dental Clinic","(blank)","2412","Dental Clinic","240","Health and Human Services","240","Health and Human Services","(blank)","208","Instruction","no",{"$f":"IFERROR(INDEX('Work Order Master'!$S:$S,MATCH(A188,'Work Order Master'!$K:$K,0)),\"New\")","v":4519},{"$f":"IFERROR(INDEX('Work Order Master'!T:T,MATCH(WORKORDERS!$Q188,'Work Order Master'!$S:$S,0)),Q188)","v":"DENTAL CLINIC"},{"$f":"IFERROR(INDEX('FRS CC Master'!A:A,MATCH(WORKORDERS!$Q188*1,'FRS CC Master'!$C:$C,0)),WORKORDERS!$L188)","v":"Health and Human Services"},{"$f":"IFERROR(VLOOKUP($A188,'Work Order Master'!$K:$Q,7,FALSE),\"Remove\")","v":"N"}]
["12415-1-1","HHS Dental Hygiene","Active","12415-1","HHS Dental Hygiene","(blank)","2415","Dental Hygiene","240","Health and Human Services","240","Health and Human Services","(blank)","208","Instruction","no",{"$f":"IFERROR(INDEX('Work Order Master'!$S:$S,MATCH(A189,'Work Order Master'!$K:$K,0)),\"New\")","v":4522},{"$f":"IFERROR(INDEX('Work Order Master'!T:T,MATCH(WORKORDERS!$Q189,'Work Order Master'!$S:$S,0)),Q189)","v":"DENTAL HYGIENE PROGRAM"},{"$f":"IFERROR(INDEX('FRS CC Master'!A:A,MATCH(WORKORDERS!$Q189*1,'FRS CC Master'!$C:$C,0)),WORKORDERS!$L189)","v":"Health and Human Services"},{"$f":"IFERROR(VLOOKUP($A189,'Work Order Master'!$K:$Q,7,FALSE),\"Remove\")","v":"N"}]
["12420-1-1","HHS Health Care Assistant","Active","12420-1","HHS Health Care Assistant","(blank)","2420","Health Care Assistant","240","Health and Human Services","240","Health and Human Services","(blank)","208","Instruction","no",{"$f":"IFERROR(INDEX('Work Order Master'!$S:$S,MATCH(A190,'Work Order Master'!$K:$K,0)),\"New\")","v":4516},{"$f":"IFERROR(INDEX('Work Order Master'!T:T,MATCH(WORKORDERS!$Q190,'Work Order Master'!$S:$S,0)),Q190)","v":"HEALTH CARE ASSISTANT-HCA"},{"$f":"IFERROR(INDEX('FRS CC Master'!A:A,MATCH(WORKORDERS!$Q190*1,'FRS CC Master'!$C:$C,0)),WORKORDERS!$L190)","v":"Health and Human Services"},{"$f":"IFERROR(VLOOKUP($A190,'Work Order Master'!$K:$Q,7,FALSE),\"Remove\")","v":"N"}]
["12425-1-1","HHS Practical Nursing","Active","12425-1","HHS Practical Nursing","(blank)","2425","Practical Nursing","240","Health and Human Services","240","Health and Human Services","(blank)","208","Instruction","no",{"$f":"IFERROR(INDEX('Work Order Master'!$S:$S,MATCH(A191,'Work Order Master'!$K:$K,0)),\"New\")","v":4513},{"$f":"IFERROR(INDEX('Work Order Master'!T:T,MATCH(WORKORDERS!$Q191,'Work Order Master'!$S:$S,0)),Q191)","v":"PRACTICAL NURSING"},{"$f":"IFERROR(INDEX('FRS CC Master'!A:A,MATCH(WORKORDERS!$Q191*1,'FRS CC Master'!$C:$C,0)),WORKORDERS!$L191)","v":"Health and Human Services"},{"$f":"IFERROR(VLOOKUP($A191,'Work Order Master'!$K:$Q,7,FALSE),\"Remove\")","v":"N"}]
["12435-1-1","HHS Child and Youth Care","Active","12435-1","HHS Child and Youth Care","(blank)","2435","Child and Youth Care","240","Health and Human Services","240","Health and Human Services","(blank)","208","Instruction","no",{"$f":"IFERROR(INDEX('Work Order Master'!$S:$S,MATCH(A192,'Work Order Master'!$K:$K,0)),\"New\")","v":5240},{"$f":"IFERROR(INDEX('Work Order Master'!T:T,MATCH(WORKORDERS!$Q192,'Work Order Master'!$S:$S,0)),Q192)","v":"CHILD/YTH CARE"},{"$f":"IFERROR(INDEX('FRS CC Master'!A:A,MATCH(WORKORDERS!$Q192*1,'FRS CC Master'!$C:$C,0)),WORKORDERS!$L192)","v":"Health and Human Services"},{"$f":"IFERROR(VLOOKUP($A192,'Work Order Master'!$K:$Q,7,FALSE),\"Remove\")","v":"N"}]
["12440-1-1","HHS Early Childhood Education and Care","Active","12440-1","HHS Early Childhood Education and Care","(blank)","2440","Early Childhood Education and Care","240","Health and Human Services","240","Health and Human Services","(blank)","208","Instruction","no",{"$f":"IFERROR(INDEX('Work Order Master'!$S:$S,MATCH(A193,'Work Order Master'!$K:$K,0)),\"New\")","v":5230},{"$f":"IFERROR(INDEX('Work Order Master'!T:T,MATCH(WORKORDERS!$Q193,'Work Order Master'!$S:$S,0)),Q193)","v":"E.C.E.C."},{"$f":"IFERROR(INDEX('FRS CC Master'!A:A,MATCH(WORKORDERS!$Q193*1,'FRS CC Master'!$C:$C,0)),WORKORDERS!$L193)","v":"Health and Human Services"},{"$f":"IFERROR(VLOOKUP($A193,'Work Order Master'!$K:$Q,7,FALSE),\"Remove\")","v":"N"}]
["12445-1-1","HHS Education Assistant and Community Support","Active","12445-1","HHS Education Assistant and Community Support","(blank)","2445","Education Assistant and Community Support","240","Health and Human Services","240","Health and Human Services","(blank)","208","Instruction","no",{"$f":"IFERROR(INDEX('Work Order Master'!$S:$S,MATCH(A194,'Work Order Master'!$K:$K,0)),\"New\")","v":5215},{"$f":"IFERROR(INDEX('Work Order Master'!T:T,MATCH(WORKORDERS!$Q194,'Work Order Master'!$S:$S,0)),Q194)","v":"SCSW"},{"$f":"IFERROR(INDEX('FRS CC Master'!A:A,MATCH(WORKORDERS!$Q194*1,'FRS CC Master'!$C:$C,0)),WORKORDERS!$L194)","v":"Health and Human Services"},{"$f":"IFERROR(VLOOKUP($A194,'Work Order Master'!$K:$Q,7,FALSE),\"Remove\")","v":"N"}]
["12450-1-1","HHS Social Services Diploma","Active","12450-1","HHS Social Services Diploma","(blank)","2450","Social Services Diploma","240","Health and Human Services","240","Health and Human Services","(blank)","208","Instruction","no",{"$f":"IFERROR(INDEX('Work Order Master'!$S:$S,MATCH(A195,'Work Order Master'!$K:$K,0)),\"New\")","v":5210},{"$f":"IFERROR(INDEX('Work Order Master'!T:T,MATCH(WORKORDERS!$Q195,'Work Order Master'!$S:$S,0)),Q195)","v":"SS DIPLOMA"},{"$f":"IFERROR(INDEX('FRS CC Master'!A:A,MATCH(WORKORDERS!$Q195*1,'FRS CC Master'!$C:$C,0)),WORKORDERS!$L195)","v":"Health and Human Services"},{"$f":"IFERROR(VLOOKUP($A195,'Work Order Master'!$K:$Q,7,FALSE),\"Remove\")","v":"N"}]
["12455-1-1","HHS Parksville Operations","Active","12455-1","HHS Parksville Operations","(blank)","2455","Parksville Operations","240","Health and Human Services","240","Health and Human Services","(blank)","201","Faculty Administration",{"$f":"IF(OR(A196=A195,A196=A197),\"yes\",\"no\")","v":"no"},{"$f":"IFERROR(INDEX('Work Order Master'!$S:$S,MATCH(A196,'Work Order Master'!$K:$K,0)),\"New\")","v":7000},{"$f":"IFERROR(INDEX('Work Order Master'!T:T,MATCH(WORKORDERS!$Q196,'Work Order Master'!$S:$S,0)),Q196)","v":"PARKSVILLE CTR OPERATIONS"},{"$f":"IFERROR(INDEX('FRS CC Master'!A:A,MATCH(WORKORDERS!$Q196*1,'FRS CC Master'!$C:$C,0)),WORKORDERS!$L196)","v":"Health and Human Services"},{"$f":"IFERROR(VLOOKUP($A196,'Work Order Master'!$K:$Q,7,FALSE),\"Remove\")","v":"N"}]
["12600-1-1","FOM Faculty Dean's Office","Active","12600-1","FOM Faculty Dean's Office","(blank)","2600","Faculty of Management","260","Management","260","Management","(blank)","201","Faculty Administration","no",{"$f":"IFERROR(INDEX('Work Order Master'!$S:$S,MATCH(A197,'Work Order Master'!$K:$K,0)),\"New\")","v":1500},{"$f":"IFERROR(INDEX('Work Order Master'!T:T,MATCH(WORKORDERS!$Q197,'Work Order Master'!$S:$S,0)),Q197)","v":"DEAN - FACULTY OF MGMT"},{"$f":"IFERROR(INDEX('FRS CC Master'!A:A,MATCH(WORKORDERS!$Q197*1,'FRS CC Master'!$C:$C,0)),WORKORDERS!$L197)","v":"Management"},{"$f":"IFERROR(VLOOKUP($A197,'Work Order Master'!$K:$Q,7,FALSE),\"Remove\")","v":"N"}]
["12600-2-1","FOM Faculty Administration","Parked","12600-2","FOM Faculty Administration","(blank)","2600","Faculty of Management","260","Management","260","Management","(blank)","201","Faculty Administration","no",{"$f":"IFERROR(INDEX('Work Order Master'!$S:$S,MATCH(A198,'Work Order Master'!$K:$K,0)),\"New\")","v":"New"},{"$f":"IFERROR(INDEX('Work Order Master'!T:T,MATCH(WORKORDERS!$Q198,'Work Order Master'!$S:$S,0)),Q198)","v":"New"},{"$f":"IFERROR(INDEX('FRS CC Master'!A:A,MATCH(WORKORDERS!$Q198*1,'FRS CC Master'!$C:$C,0)),WORKORDERS!$L198)","v":"Management"},{"$f":"IFERROR(VLOOKUP($A198,'Work Order Master'!$K:$Q,7,FALSE),\"Remove\")","v":"P"}]
["12601-1-1","FOM Faculty Initiatives","Parked","12601-1","FOM Faculty Initiatives","(blank)","2601","Faculty of Management - Initiatives","260","Management","260","Management","(blank)","201","Faculty Administration","yes",{"$f":"IFERROR(INDEX('Work Order Master'!$S:$S,MATCH(A199,'Work Order Master'!$K:$K,0)),\"New\")","v":"New"},{"$f":"IFERROR(INDEX('Work Order Master'!T:T,MATCH(WORKORDERS!$Q199,'Work Order Master'!$S:$S,0)),Q199)","v":"New"},{"$f":"IFERROR(INDEX('FRS CC Master'!A:A,MATCH(WORKORDERS!$Q199*1,'FRS CC Master'!$C:$C,0)),WORKORDERS!$L199)","v":"Management"},{"$f":"IFERROR(VLOOKUP($A199,'Work Order Master'!$K:$Q,7,FALSE),\"Remove\")","v":"P"}]
["12601-1-1","FOM Faculty Initiatives","Parked","12601-1","FOM Faculty Initiatives","(blank)","2601","Faculty of Management - Initiatives","260","Management","260","Management","(blank)","204","Advising","yes",{"$f":"IFERROR(INDEX('Work Order Master'!$S:$S,MATCH(A200,'Work Order Master'!$K:$K,0)),\"New\")","v":"New"},{"$f":"IFERROR(INDEX('Work Order Master'!T:T,MATCH(WORKORDERS!$Q200,'Work Order Master'!$S:$S,0)),Q200)","v":"New"},{"$f":"IFERROR(INDEX('FRS CC Master'!A:A,MATCH(WORKORDERS!$Q200*1,'FRS CC Master'!$C:$C,0)),WORKORDERS!$L200)","v":"Management"},{"$f":"IFERROR(VLOOKUP($A200,'Work Order Master'!$K:$Q,7,FALSE),\"Remove\")","v":"P"}]
["12601-1-2","FOM Advising","Active","12601-1","FOM Faculty Initiatives","(blank)","2601","Faculty of Management - Initiatives","260","Management","260","Management","(blank)","201","Faculty Administration","yes",{"$f":"IFERROR(INDEX('Work Order Master'!$S:$S,MATCH(A201,'Work Order Master'!$K:$K,0)),\"New\")","v":1505},{"$f":"IFERROR(INDEX('Work Order Master'!T:T,MATCH(WORKORDERS!$Q201,'Work Order Master'!$S:$S,0)),Q201)","v":"ADVISING - F OF M "},{"$f":"IFERROR(INDEX('FRS CC Master'!A:A,MATCH(WORKORDERS!$Q201*1,'FRS CC Master'!$C:$C,0)),WORKORDERS!$L201)","v":"Management"},{"$f":"IFERROR(VLOOKUP($A201,'Work Order Master'!$K:$Q,7,FALSE),\"Remove\")","v":"N"}]
["12601-1-2","FOM Advising","Active","12601-1","FOM Faculty Initiatives","(blank)","2601","Faculty of Management - Initiatives","260","Management","260","Management","(blank)","204","Advising","yes",{"$f":"IFERROR(INDEX('Work Order Master'!$S:$S,MATCH(A202,'Work Order Master'!$K:$K,0)),\"New\")","v":1505},{"$f":"IFERROR(INDEX('Work Order Master'!T:T,MATCH(WORKORDERS!$Q202,'Work Order Master'!$S:$S,0)),Q202)","v":"ADVISING - F OF M "},{"$f":"IFERROR(INDEX('FRS CC Master'!A:A,MATCH(WORKORDERS!$Q202*1,'FRS CC Master'!$C:$C,0)),WORKORDERS!$L202)","v":"Management"},{"$f":"IFERROR(VLOOKUP($A202,'Work Order Master'!$K:$Q,7,FALSE),\"Remove\")","v":"N"}]
["12601-2-1","FOM Faculty - International Sections","Active","12601-2","FOM Faculty - International Sections","(blank)","2601","Faculty of Management - Initiatives","260","Management","260","Management","(blank)","208","Instruction","no",{"$f":"IFERROR(INDEX('Work Order Master'!$S:$S,MATCH(A203,'Work Order Master'!$K:$K,0)),\"New\")","v":1515},{"$f":"IFERROR(INDEX('Work Order Master'!T:T,MATCH(WORKORDERS!$Q203,'Work Order Master'!$S:$S,0)),Q203)","v":"INT'L SECTIONS - MGMT"},{"$f":"IFERROR(INDEX('FRS CC Master'!A:A,MATCH(WORKORDERS!$Q203*1,'FRS CC Master'!$C:$C,0)),WORKORDERS!$L203)","v":"Management"},{"$f":"IFERROR(VLOOKUP($A203,'Work Order Master'!$K:$Q,7,FALSE),\"Remove\")","v":"N"}]
["12601-3-1","FOM Faculty - Directed Studies","Active","12601-3","FOM Faculty - Directed Studies","(blank)","2601","Faculty of Management - Initiatives","260","Management","260","Management","(blank)","208","Instruction","no",{"$f":"IFERROR(INDEX('Work Order Master'!$S:$S,MATCH(A204,'Work Order Master'!$K:$K,0)),\"New\")","v":1510},{"$f":"IFERROR(INDEX('Work Order Master'!T:T,MATCH(WORKORDERS!$Q204,'Work Order Master'!$S:$S,0)),Q204)","v":"DIRECTED STUDIES - F OF M"},{"$f":"IFERROR(INDEX('FRS CC Master'!A:A,MATCH(WORKORDERS!$Q204*1,'FRS CC Master'!$C:$C,0)),WORKORDERS!$L204)","v":"Management"},{"$f":"IFERROR(VLOOKUP($A204,'Work Order Master'!$K:$Q,7,FALSE),\"Remove\")","v":"N"}]
["12601-4-1","FOM Faculty - Rec/Tourism Endowment","Parked","12601-4","FOM Faculty - Rec/Tourism Endowment","(blank)","2601","Faculty of Management - Initiatives","260","Management","260","Management","(blank)","201","Faculty Administration","no",{"$f":"IFERROR(INDEX('Work Order Master'!$S:$S,MATCH(A205,'Work Order Master'!$K:$K,0)),\"New\")","v":"New"},{"$f":"IFERROR(INDEX('Work Order Master'!T:T,MATCH(WORKORDERS!$Q205,'Work Order Master'!$S:$S,0)),Q205)","v":"New"},{"$f":"IFERROR(INDEX('FRS CC Master'!A:A,MATCH(WORKORDERS!$Q205*1,'FRS CC Master'!$C:$C,0)),WORKORDERS!$L205)","v":"Management"},{"$f":"IFERROR(VLOOKUP($A205,'Work Order Master'!$K:$Q,7,FALSE),\"Remove\")","v":"Remove"}]
["12605-1-1","FOM Accounting","Active","12605-1","FOM Accounting","(blank)","2605","Accounting","260","Management","260","Management","(blank)","208","Instruction","no",{"$f":"IFERROR(INDEX('Work Order Master'!$S:$S,MATCH(A206,'Work Order Master'!$K:$K,0)),\"New\")","v":1525},{"$f":"IFERROR(INDEX('Work Order Master'!T:T,MATCH(WORKORDERS!$Q206,'Work Order Master'!$S:$S,0)),Q206)","v":"ACCOUNTING"},{"$f":"IFERROR(INDEX('FRS CC Master'!A:A,MATCH(WORKORDERS!$Q206*1,'FRS CC Master'!$C:$C,0)),WORKORDERS!$L206)","v":"Management"},{"$f":"IFERROR(VLOOKUP($A206,'Work Order Master'!$K:$Q,7,FALSE),\"Remove\")","v":"N"}]
["12610-1-1","FOM Economics","Active","12610-1","FOM Economics","(blank)","2610","Economics","260","Management","260","Management","(blank)","208","Instruction","no",{"$f":"IFERROR(INDEX('Work Order Master'!$S:$S,MATCH(A207,'Work Order Master'!$K:$K,0)),\"New\")","v":1530},{"$f":"IFERROR(INDEX('Work Order Master'!T:T,MATCH(WORKORDERS!$Q207,'Work Order Master'!$S:$S,0)),Q207)","v":"ECONOMICS"},{"$f":"IFERROR(INDEX('FRS CC Master'!A:A,MATCH(WORKORDERS!$Q207*1,'FRS CC Master'!$C:$C,0)),WORKORDERS!$L207)","v":"Management"},{"$f":"IFERROR(VLOOKUP($A207,'Work Order Master'!$K:$Q,7,FALSE),\"Remove\")","v":"N"}]
["12615-1-1","FOM Finance / QUME","Active","12615-1","FOM Finance / QUME","(blank)","2615","Finance / QUME","260","Management","260","Management","(blank)","208","Instruction","no",{"$f":"IFERROR(INDEX('Work Order Master'!$S:$S,MATCH(A208,'Work Order Master'!$K:$K,0)),\"New\")","v":1535},{"$f":"IFERROR(INDEX('Work Order Master'!T:T,MATCH(WORKORDERS!$Q208,'Work Order Master'!$S:$S,0)),Q208)","v":"FINANCE/QUME"},{"$f":"IFERROR(INDEX('FRS CC Master'!A:A,MATCH(WORKORDERS!$Q208*1,'FRS CC Master'!$C:$C,0)),WORKORDERS!$L208)","v":"Management"},{"$f":"IFERROR(VLOOKUP($A208,'Work Order Master'!$K:$Q,7,FALSE),\"Remove\")","v":"N"}]
["12620-1-1","FOM Management / Law","Active","12620-1","FOM Management / Law","(blank)","2620","Management / Law","260","Management","260","Management","(blank)","208","Instruction","no",{"$f":"IFERROR(INDEX('Work Order Master'!$S:$S,MATCH(A209,'Work Order Master'!$K:$K,0)),\"New\")","v":1540},{"$f":"IFERROR(INDEX('Work Order Master'!T:T,MATCH(WORKORDERS!$Q209,'Work Order Master'!$S:$S,0)),Q209)","v":"MANAGEMENT / LAW"},{"$f":"IFERROR(INDEX('FRS CC Master'!A:A,MATCH(WORKORDERS!$Q209*1,'FRS CC Master'!$C:$C,0)),WORKORDERS!$L209)","v":"Management"},{"$f":"IFERROR(VLOOKUP($A209,'Work Order Master'!$K:$Q,7,FALSE),\"Remove\")","v":"N"}]
["12620-1-2","FOM Management / Law - Extra Sections","Active","12620-1","FOM Management / Law","(blank)","2620","Management / Law","260","Management","260","Management","(blank)","208","Instruction","no",{"$f":"IFERROR(INDEX('Work Order Master'!$S:$S,MATCH(A210,'Work Order Master'!$K:$K,0)),\"New\")","v":1522},{"$f":"IFERROR(INDEX('Work Order Master'!T:T,MATCH(WORKORDERS!$Q210,'Work Order Master'!$S:$S,0)),Q210)","v":"MANAGEMENT-EXTRA SECTIONS"},{"$f":"IFERROR(INDEX('FRS CC Master'!A:A,MATCH(WORKORDERS!$Q210*1,'FRS CC Master'!$C:$C,0)),WORKORDERS!$L210)","v":"Management"},{"$f":"IFERROR(VLOOKUP($A210,'Work Order Master'!$K:$Q,7,FALSE),\"Remove\")","v":"N"}]
["12625-1-1","FOM Marketing","Active","12625-1","FOM Marketing","(blank)","2625","Marketing","260","Management","260","Management","(blank)","208","Instruction","no",{"$f":"IFERROR(INDEX('Work Order Master'!$S:$S,MATCH(A211,'Work Order Master'!$K:$K,0)),\"New\")","v":1545},{"$f":"IFERROR(INDEX('Work Order Master'!T:T,MATCH(WORKORDERS!$Q211,'Work Order Master'!$S:$S,0)),Q211)","v":"MARKETING"},{"$f":"IFERROR(INDEX('FRS CC Master'!A:A,MATCH(WORKORDERS!$Q211*1,'FRS CC Master'!$C:$C,0)),WORKORDERS!$L211)","v":"Management"},{"$f":"IFERROR(VLOOKUP($A211,'Work Order Master'!$K:$Q,7,FALSE),\"Remove\")","v":"N"}]
["12625-1-2","FOM Marketing - Extra Sections","Parked","12625-1","FOM Marketing","(blank)","2625","Marketing","260","Management","260","Management","(blank)","208","Instruction","no",{"$f":"IFERROR(INDEX('Work Order Master'!$S:$S,MATCH(A212,'Work Order Master'!$K:$K,0)),\"New\")","v":"New"},{"$f":"IFERROR(INDEX('Work Order Master'!T:T,MATCH(WORKORDERS!$Q212,'Work Order Master'!$S:$S,0)),Q212)","v":"New"},{"$f":"IFERROR(INDEX('FRS CC Master'!A:A,MATCH(WORKORDERS!$Q212*1,'FRS CC Master'!$C:$C,0)),WORKORDERS!$L212)","v":"Management"},{"$f":"IFERROR(VLOOKUP($A212,'Work Order Master'!$K:$Q,7,FALSE),\"Remove\")","v":"Remove"}]
["12630-1-1","FOM Recreation and Tourism","Active","12630-1","FOM Recreation and Tourism","(blank)","2630","Recreation and Tourism","260","Management","260","Management","(blank)","208","Instruction","no",{"$f":"IFERROR(INDEX('Work Order Master'!$S:$S,MATCH(A213,'Work Order Master'!$K:$K,0)),\"New\")","v":1550},{"$f":"IFERROR(INDEX('Work Order Master'!T:T,MATCH(WORKORDERS!$Q213,'Work Order Master'!$S:$S,0)),Q213)","v":"RECREATION/TOUR - F OF M"},{"$f":"IFERROR(INDEX('FRS CC Master'!A:A,MATCH(WORKORDERS!$Q213*1,'FRS CC Master'!$C:$C,0)),WORKORDERS!$L213)","v":"Management"},{"$f":"IFERROR(VLOOKUP($A213,'Work Order Master'!$K:$Q,7,FALSE),\"Remove\")","v":"N"}]
["12635-1-1","FOM Hospitality Management","Active","12635-1","FOM Hospitality Management","(blank)","2635","Hospitality Management","260","Management","260","Management","(blank)","208","Instruction","no",{"$f":"IFERROR(INDEX('Work Order Master'!$S:$S,MATCH(A214,'Work Order Master'!$K:$K,0)),\"New\")","v":1560},{"$f":"IFERROR(INDEX('Work Order Master'!T:T,MATCH(WORKORDERS!$Q214,'Work Order Master'!$S:$S,0)),Q214)","v":"HOSPITALITY - F O M"},{"$f":"IFERROR(INDEX('FRS CC Master'!A:A,MATCH(WORKORDERS!$Q214*1,'FRS CC Master'!$C:$C,0)),WORKORDERS!$L214)","v":"Management"},{"$f":"IFERROR(VLOOKUP($A214,'Work Order Master'!$K:$Q,7,FALSE),\"Remove\")","v":"N"}]
["12635-2-1","FOM Hospitality Management - Lab","Active","12635-2","FOM Hospitality Management - Lab","(blank)","2635","Hospitality Management","260","Management","260","Management","(blank)","208","Instruction","no",{"$f":"IFERROR(INDEX('Work Order Master'!$S:$S,MATCH(A215,'Work Order Master'!$K:$K,0)),\"New\")","v":1562},{"$f":"IFERROR(INDEX('Work Order Master'!T:T,MATCH(WORKORDERS!$Q215,'Work Order Master'!$S:$S,0)),Q215)","v":"HOSPITALITY LAB"},{"$f":"IFERROR(INDEX('FRS CC Master'!A:A,MATCH(WORKORDERS!$Q215*1,'FRS CC Master'!$C:$C,0)),WORKORDERS!$L215)","v":"Management"},{"$f":"IFERROR(VLOOKUP($A215,'Work Order Master'!$K:$Q,7,FALSE),\"Remove\")","v":"N"}]
["12635-3-1","FOM Hospitality Management - Discovery Room Lab","Active","12635-3","FOM Hospitality Management - Discovery Room Lab","(blank)","2635","Hospitality Management","260","Management","260","Management","(blank)","208","Instruction","no",{"$f":"IFERROR(INDEX('Work Order Master'!$S:$S,MATCH(A216,'Work Order Master'!$K:$K,0)),\"New\")","v":1563},{"$f":"IFERROR(INDEX('Work Order Master'!T:T,MATCH(WORKORDERS!$Q216,'Work Order Master'!$S:$S,0)),Q216)","v":"DISCOVERY ROOM LAB"},{"$f":"IFERROR(INDEX('FRS CC Master'!A:A,MATCH(WORKORDERS!$Q216*1,'FRS CC Master'!$C:$C,0)),WORKORDERS!$L216)","v":"Management"},{"$f":"IFERROR(VLOOKUP($A216,'Work Order Master'!$K:$Q,7,FALSE),\"Remove\")","v":"N"}]
["12635-4-1","FOM Hospitality Management - Field Trips","Active","12635-4","FOM Hospitality Management - Field Trips","(blank)","2635","Hospitality Management","260","Management","260","Management","(blank)","223","Field Schools","no",{"$f":"IFERROR(INDEX('Work Order Master'!$S:$S,MATCH(A217,'Work Order Master'!$K:$K,0)),\"New\")","v":1561},{"$f":"IFERROR(INDEX('Work Order Master'!T:T,MATCH(WORKORDERS!$Q217,'Work Order Master'!$S:$S,0)),Q217)","v":"HOSP.MGMT TRUST/FIELD TRI"},{"$f":"IFERROR(INDEX('FRS CC Master'!A:A,MATCH(WORKORDERS!$Q217*1,'FRS CC Master'!$C:$C,0)),WORKORDERS!$L217)","v":"Management"},{"$f":"IFERROR(VLOOKUP($A217,'Work Order Master'!$K:$Q,7,FALSE),\"Remove\")","v":"N"}]
["12700-1-1","ST Faculty Dean's Office","Active","12700-1","ST Faculty Dean's Office","(blank)","2700","Faculty of Science and Technology","270","Science and Technology","270","Science and Technology","(blank)","201","Faculty Administration","no",{"$f":"IFERROR(INDEX('Work Order Master'!$S:$S,MATCH(A218,'Work Order Master'!$K:$K,0)),\"New\")","v":2300},{"$f":"IFERROR(INDEX('Work Order Master'!T:T,MATCH(WORKORDERS!$Q218,'Work Order Master'!$S:$S,0)),Q218)","v":"DEAN, SCIENCE AND TECH"},{"$f":"IFERROR(INDEX('FRS CC Master'!A:A,MATCH(WORKORDERS!$Q218*1,'FRS CC Master'!$C:$C,0)),WORKORDERS!$L218)","v":"Science and Technology"},{"$f":"IFERROR(VLOOKUP($A218,'Work Order Master'!$K:$Q,7,FALSE),\"Remove\")","v":"N"}]
["12700-2-1","ST Faculty Administration","Active","12700-2","ST Faculty Administration","(blank)","2700","Faculty of Science and Technology","270","Science and Technology","270","Science and Technology","(blank)","201","Faculty Administration","no",{"$f":"IFERROR(INDEX('Work Order Master'!$S:$S,MATCH(A219,'Work Order Master'!$K:$K,0)),\"New\")","v":2301},{"$f":"IFERROR(INDEX('Work Order Master'!T:T,MATCH(WORKORDERS!$Q219,'Work Order Master'!$S:$S,0)),Q219)","v":"FACULTY ADMINISTRATION"},{"$f":"IFERROR(INDEX('FRS CC Master'!A:A,MATCH(WORKORDERS!$Q219*1,'FRS CC Master'!$C:$C,0)),WORKORDERS!$L219)","v":"Science and Technology"},{"$f":"IFERROR(VLOOKUP($A219,'Work Order Master'!$K:$Q,7,FALSE),\"Remove\")","v":"N"}]
["12701-1-1","ST Faculty Initiatives","Parked","12701-1","ST Faculty Initiatives","(blank)","2701","Science and Technology - Initiatives","270","Science and Technology","270","Science and Technology","(blank)","201","Faculty Administration","yes",{"$f":"IFERROR(INDEX('Work Order Master'!$S:$S,MATCH(A220,'Work Order Master'!$K:$K,0)),\"New\")","v":"New"},{"$f":"IFERROR(INDEX('Work Order Master'!T:T,MATCH(WORKORDERS!$Q220,'Work Order Master'!$S:$S,0)),Q220)","v":"New"},{"$f":"IFERROR(INDEX('FRS CC Master'!A:A,MATCH(WORKORDERS!$Q220*1,'FRS CC Master'!$C:$C,0)),WORKORDERS!$L220)","v":"Science and Technology"},{"$f":"IFERROR(VLOOKUP($A220,'Work Order Master'!$K:$Q,7,FALSE),\"Remove\")","v":"P"}]
["12701-1-1","ST Faculty Initiatives","Parked","12701-1","ST Faculty Initiatives","(blank)","2701","Science and Technology - Initiatives","270","Science and Technology","270","Science and Technology","(blank)","204","Advising","yes",{"$f":"IFERROR(INDEX('Work Order Master'!$S:$S,MATCH(A221,'Work Order Master'!$K:$K,0)),\"New\")","v":"New"},{"$f":"IFERROR(INDEX('Work Order Master'!T:T,MATCH(WORKORDERS!$Q221,'Work Order Master'!$S:$S,0)),Q221)","v":"New"},{"$f":"IFERROR(INDEX('FRS CC Master'!A:A,MATCH(WORKORDERS!$Q221*1,'FRS CC Master'!$C:$C,0)),WORKORDERS!$L221)","v":"Science and Technology"},{"$f":"IFERROR(VLOOKUP($A221,'Work Order Master'!$K:$Q,7,FALSE),\"Remove\")","v":"P"}]
["12701-1-2","ST Faculty Advising","Active","12701-1","ST Faculty Initiatives","(blank)","2701","Science and Technology - Initiatives","270","Science and Technology","270","Science and Technology","(blank)","201","Faculty Administration","yes",{"$f":"IFERROR(INDEX('Work Order Master'!$S:$S,MATCH(A222,'Work Order Master'!$K:$K,0)),\"New\")","v":2303},{"$f":"IFERROR(INDEX('Work Order Master'!T:T,MATCH(WORKORDERS!$Q222,'Work Order Master'!$S:$S,0)),Q222)","v":"SCIENCE/TECH ADVISING"},{"$f":"IFERROR(INDEX('FRS CC Master'!A:A,MATCH(WORKORDERS!$Q222*1,'FRS CC Master'!$C:$C,0)),WORKORDERS!$L222)","v":"Science and Technology"},{"$f":"IFERROR(VLOOKUP($A222,'Work Order Master'!$K:$Q,7,FALSE),\"Remove\")","v":"N"}]
["12701-1-2","ST Faculty Advising","Active","12701-1","ST Faculty Initiatives","(blank)","2701","Science and Technology - Initiatives","270","Science and Technology","270","Science and Technology","(blank)","204","Advising","yes",{"$f":"IFERROR(INDEX('Work Order Master'!$S:$S,MATCH(A223,'Work Order Master'!$K:$K,0)),\"New\")","v":2303},{"$f":"IFERROR(INDEX('Work Order Master'!T:T,MATCH(WORKORDERS!$Q223,'Work Order Master'!$S:$S,0)),Q223)","v":"SCIENCE/TECH ADVISING"},{"$f":"IFERROR(INDEX('FRS CC Master'!A:A,MATCH(WORKORDERS!$Q223*1,'FRS CC Master'!$C:$C,0)),WORKORDERS!$L223)","v":"Science and Technology"},{"$f":"IFERROR(VLOOKUP($A223,'Work Order Master'!$K:$Q,7,FALSE),\"Remove\")","v":"N"}]
["12701-1-3","ST Animal Care","Parked","12701-1","ST Faculty Initiatives","(blank)","2701","Science and Technology - Initiatives","270","Science and Technology","270","Science and Technology","(blank)","201","Faculty Administration","yes",{"$f":"IFERROR(INDEX('Work Order Master'!$S:$S,MATCH(A224,'Work Order Master'!$K:$K,0)),\"New\")","v":"New"},{"$f":"IFERROR(INDEX('Work Order Master'!T:T,MATCH(WORKORDERS!$Q224,'Work Order Master'!$S:$S,0)),Q224)","v":"New"},{"$f":"IFERROR(INDEX('FRS CC Master'!A:A,MATCH(WORKORDERS!$Q224*1,'FRS CC Master'!$C:$C,0)),WORKORDERS!$L224)","v":"Science and Technology"},{"$f":"IFERROR(VLOOKUP($A224,'Work Order Master'!$K:$Q,7,FALSE),\"Remove\")","v":"Remove"}]
["12701-1-3","ST Animal Care","Parked","12701-1","ST Faculty Initiatives","(blank)","2701","Science and Technology - Initiatives","270","Science and Technology","270","Science and Technology","(blank)","204","Advising","yes",{"$f":"IFERROR(INDEX('Work Order Master'!$S:$S,MATCH(A225,'Work Order Master'!$K:$K,0)),\"New\")","v":"New"},{"$f":"IFERROR(INDEX('Work Order Master'!T:T,MATCH(WORKORDERS!$Q225,'Work Order Master'!$S:$S,0)),Q225)","v":"New"},{"$f":"IFERROR(INDEX('FRS CC Master'!A:A,MATCH(WORKORDERS!$Q225*1,'FRS CC Master'!$C:$C,0)),WORKORDERS!$L225)","v":"Science and Technology"},{"$f":"IFERROR(VLOOKUP($A225,'Work Order Master'!$K:$Q,7,FALSE),\"Remove\")","v":"Remove"}]
["12701-1-4","ST Fumehood Hazardous Waste Disposal","Active","12701-1","ST Faculty Initiatives","(blank)","2701","Science and Technology - Initiatives","270","Science and Technology","270","Science and Technology","(blank)","201","Faculty Administration","yes",{"$f":"IFERROR(INDEX('Work Order Master'!$S:$S,MATCH(A226,'Work Order Master'!$K:$K,0)),\"New\")","v":2325},{"$f":"IFERROR(INDEX('Work Order Master'!T:T,MATCH(WORKORDERS!$Q226,'Work Order Master'!$S:$S,0)),Q226)","v":"FUMEHOOD HAZ.WASTE DISPOS"},{"$f":"IFERROR(INDEX('FRS CC Master'!A:A,MATCH(WORKORDERS!$Q226*1,'FRS CC Master'!$C:$C,0)),WORKORDERS!$L226)","v":"Science and Technology"},{"$f":"IFERROR(VLOOKUP($A226,'Work Order Master'!$K:$Q,7,FALSE),\"Remove\")","v":"N"}]
["12701-1-4","ST Fumehood Hazardous Waste Disposal","Active","12701-1","ST Faculty Initiatives","(blank)","2701","Science and Technology - Initiatives","270","Science and Technology","270","Science and Technology","(blank)","204","Advising","yes",{"$f":"IFERROR(INDEX('Work Order Master'!$S:$S,MATCH(A227,'Work Order Master'!$K:$K,0)),\"New\")","v":2325},{"$f":"IFERROR(INDEX('Work Order Master'!T:T,MATCH(WORKORDERS!$Q227,'Work Order Master'!$S:$S,0)),Q227)","v":"FUMEHOOD HAZ.WASTE DISPOS"},{"$f":"IFERROR(INDEX('FRS CC Master'!A:A,MATCH(WORKORDERS!$Q227*1,'FRS CC Master'!$C:$C,0)),WORKORDERS!$L227)","v":"Science and Technology"},{"$f":"IFERROR(VLOOKUP($A227,'Work Order Master'!$K:$Q,7,FALSE),\"Remove\")","v":"N"}]
["12701-1-5","ST Bamfield - Fellowships","Active","12701-1","ST Faculty Initiatives","(blank)","2701","Science and Technology - Initiatives","270","Science and Technology","270","Science and Technology","(blank)","201","Faculty Administration","yes",{"$f":"IFERROR(INDEX('Work Order Master'!$S:$S,MATCH(A228,'Work Order Master'!$K:$K,0)),\"New\")","v":2305},{"$f":"IFERROR(INDEX('Work Order Master'!T:T,MATCH(WORKORDERS!$Q228,'Work Order Master'!$S:$S,0)),Q228)","v":"BAMFIELD FELLOWSHIPS"},{"$f":"IFERROR(INDEX('FRS CC Master'!A:A,MATCH(WORKORDERS!$Q228*1,'FRS CC Master'!$C:$C,0)),WORKORDERS!$L228)","v":"Science and Technology"},{"$f":"IFERROR(VLOOKUP($A228,'Work Order Master'!$K:$Q,7,FALSE),\"Remove\")","v":"N"}]
["12701-1-5","ST Bamfield - Fellowships","Active","12701-1","ST Faculty Initiatives","(blank)","2701","Science and Technology - Initiatives","270","Science and Technology","270","Science and Technology","(blank)","204","Advising","yes",{"$f":"IFERROR(INDEX('Work Order Master'!$S:$S,MATCH(A229,'Work Order Master'!$K:$K,0)),\"New\")","v":2305},{"$f":"IFERROR(INDEX('Work Order Master'!T:T,MATCH(WORKORDERS!$Q229,'Work Order Master'!$S:$S,0)),Q229)","v":"BAMFIELD FELLOWSHIPS"},{"$f":"IFERROR(INDEX('FRS CC Master'!A:A,MATCH(WORKORDERS!$Q229*1,'FRS CC Master'!$C:$C,0)),WORKORDERS!$L229)","v":"Science and Technology"},{"$f":"IFERROR(VLOOKUP($A229,'Work Order Master'!$K:$Q,7,FALSE),\"Remove\")","v":"N"}]
["12701-2-1","ST Faculty - International Sections","Active","12701-2","ST Faculty - International Sections","(blank)","2701","Science and Technology - Initiatives","270","Science and Technology","270","Science and Technology","(blank)","208","Instruction","no",{"$f":"IFERROR(INDEX('Work Order Master'!$S:$S,MATCH(A230,'Work Order Master'!$K:$K,0)),\"New\")","v":2315},{"$f":"IFERROR(INDEX('Work Order Master'!T:T,MATCH(WORKORDERS!$Q230,'Work Order Master'!$S:$S,0)),Q230)","v":"INT'L SECTIONS - SCIENCE"},{"$f":"IFERROR(INDEX('FRS CC Master'!A:A,MATCH(WORKORDERS!$Q230*1,'FRS CC Master'!$C:$C,0)),WORKORDERS!$L230)","v":"Science and Technology"},{"$f":"IFERROR(VLOOKUP($A230,'Work Order Master'!$K:$Q,7,FALSE),\"Remove\")","v":"N"}]
["12701-3-1","ST Faculty - Directed Studies","Active","12701-3","ST Faculty - Directed Studies","(blank)","2701","Science and Technology - Initiatives","270","Science and Technology","270","Science and Technology","(blank)","208","Instruction","no",{"$f":"IFERROR(INDEX('Work Order Master'!$S:$S,MATCH(A231,'Work Order Master'!$K:$K,0)),\"New\")","v":2306},{"$f":"IFERROR(INDEX('Work Order Master'!T:T,MATCH(WORKORDERS!$Q231,'Work Order Master'!$S:$S,0)),Q231)","v":"DIRECTED STUDIES-SCIENCE"},{"$f":"IFERROR(INDEX('FRS CC Master'!A:A,MATCH(WORKORDERS!$Q231*1,'FRS CC Master'!$C:$C,0)),WORKORDERS!$L231)","v":"Science and Technology"},{"$f":"IFERROR(VLOOKUP($A231,'Work Order Master'!$K:$Q,7,FALSE),\"Remove\")","v":"N"}]
["12710-1-1","ST Biology","Active","12710-1","ST Biology","(blank)","2710","Biology","270","Science and Technology","270","Science and Technology","(blank)","208","Instruction","no",{"$f":"IFERROR(INDEX('Work Order Master'!$S:$S,MATCH(A232,'Work Order Master'!$K:$K,0)),\"New\")","v":2360},{"$f":"IFERROR(INDEX('Work Order Master'!T:T,MATCH(WORKORDERS!$Q232,'Work Order Master'!$S:$S,0)),Q232)","v":"BIOLOGY"},{"$f":"IFERROR(INDEX('FRS CC Master'!A:A,MATCH(WORKORDERS!$Q232*1,'FRS CC Master'!$C:$C,0)),WORKORDERS!$L232)","v":"Science and Technology"},{"$f":"IFERROR(VLOOKUP($A232,'Work Order Master'!$K:$Q,7,FALSE),\"Remove\")","v":"N"}]
["12715-1-1","ST Chemistry","Active","12715-1","ST Chemistry","(blank)","2715","Chemistry","270","Science and Technology","270","Science and Technology","(blank)","208","Instruction","no",{"$f":"IFERROR(INDEX('Work Order Master'!$S:$S,MATCH(A233,'Work Order Master'!$K:$K,0)),\"New\")","v":2320},{"$f":"IFERROR(INDEX('Work Order Master'!T:T,MATCH(WORKORDERS!$Q233,'Work Order Master'!$S:$S,0)),Q233)","v":"CHEMISTRY"},{"$f":"IFERROR(INDEX('FRS CC Master'!A:A,MATCH(WORKORDERS!$Q233*1,'FRS CC Master'!$C:$C,0)),WORKORDERS!$L233)","v":"Science and Technology"},{"$f":"IFERROR(VLOOKUP($A233,'Work Order Master'!$K:$Q,7,FALSE),\"Remove\")","v":"N"}]
["12720-1-1","ST Computer Science","Active","12720-1","ST Computer Science","(blank)","2720","Computer Science","270","Science and Technology","270","Science and Technology","(blank)","208","Instruction","no",{"$f":"IFERROR(INDEX('Work Order Master'!$S:$S,MATCH(A234,'Work Order Master'!$K:$K,0)),\"New\")","v":2340},{"$f":"IFERROR(INDEX('Work Order Master'!T:T,MATCH(WORKORDERS!$Q234,'Work Order Master'!$S:$S,0)),Q234)","v":"COMPUTER SCIENCE"},{"$f":"IFERROR(INDEX('FRS CC Master'!A:A,MATCH(WORKORDERS!$Q234*1,'FRS CC Master'!$C:$C,0)),WORKORDERS!$L234)","v":"Science and Technology"},{"$f":"IFERROR(VLOOKUP($A234,'Work Order Master'!$K:$Q,7,FALSE),\"Remove\")","v":"N"}]
["12725-1-1","ST Earth Science / Geology","Active","12725-1","ST Earth Science / Geology","(blank)","2725","Earth Science / Geology","270","Science and Technology","270","Science and Technology","(blank)","208","Instruction","no",{"$f":"IFERROR(INDEX('Work Order Master'!$S:$S,MATCH(A235,'Work Order Master'!$K:$K,0)),\"New\")","v":2393},{"$f":"IFERROR(INDEX('Work Order Master'!T:T,MATCH(WORKORDERS!$Q235,'Work Order Master'!$S:$S,0)),Q235)","v":"GEOLOGY"},{"$f":"IFERROR(INDEX('FRS CC Master'!A:A,MATCH(WORKORDERS!$Q235*1,'FRS CC Master'!$C:$C,0)),WORKORDERS!$L235)","v":"Science and Technology"},{"$f":"IFERROR(VLOOKUP($A235,'Work Order Master'!$K:$Q,7,FALSE),\"Remove\")","v":"N"}]
["12730-1-1","ST Engineering","Active","12730-1","ST Engineering","(blank)","2730","Engineering","270","Science and Technology","270","Science and Technology","(blank)","208","Instruction","no",{"$f":"IFERROR(INDEX('Work Order Master'!$S:$S,MATCH(A236,'Work Order Master'!$K:$K,0)),\"New\")","v":2327},{"$f":"IFERROR(INDEX('Work Order Master'!T:T,MATCH(WORKORDERS!$Q236,'Work Order Master'!$S:$S,0)),Q236)","v":"ENGINEERING DEGREE PROGR"},{"$f":"IFERROR(INDEX('FRS CC Master'!A:A,MATCH(WORKORDERS!$Q236*1,'FRS CC Master'!$C:$C,0)),WORKORDERS!$L236)","v":"Science and Technology"},{"$f":"IFERROR(VLOOKUP($A236,'Work Order Master'!$K:$Q,7,FALSE),\"Remove\")","v":"N"}]
["12735-1-1","ST Fisheries and Aquaculture","Active","12735-1","ST Fisheries and Aquaculture","(blank)","2735","Fisheries and Aquaculture","270","Science and Technology","270","Science and Technology","(blank)","208","Instruction","no",{"$f":"IFERROR(INDEX('Work Order Master'!$S:$S,MATCH(A237,'Work Order Master'!$K:$K,0)),\"New\")","v":2380},{"$f":"IFERROR(INDEX('Work Order Master'!T:T,MATCH(WORKORDERS!$Q237,'Work Order Master'!$S:$S,0)),Q237)","v":"AQUACULTURE"},{"$f":"IFERROR(INDEX('FRS CC Master'!A:A,MATCH(WORKORDERS!$Q237*1,'FRS CC Master'!$C:$C,0)),WORKORDERS!$L237)","v":"Science and Technology"},{"$f":"IFERROR(VLOOKUP($A237,'Work Order Master'!$K:$Q,7,FALSE),\"Remove\")","v":"N"}]
["12740-1-1","ST Forestry","Active","12740-1","ST Forestry","(blank)","2740","Forestry","270","Science and Technology","270","Science and Technology","(blank)","208","Instruction","no",{"$f":"IFERROR(INDEX('Work Order Master'!$S:$S,MATCH(A238,'Work Order Master'!$K:$K,0)),\"New\")","v":2350},{"$f":"IFERROR(INDEX('Work Order Master'!T:T,MATCH(WORKORDERS!$Q238,'Work Order Master'!$S:$S,0)),Q238)","v":"FORESTRY"},{"$f":"IFERROR(INDEX('FRS CC Master'!A:A,MATCH(WORKORDERS!$Q238*1,'FRS CC Master'!$C:$C,0)),WORKORDERS!$L238)","v":"Science and Technology"},{"$f":"IFERROR(VLOOKUP($A238,'Work Order Master'!$K:$Q,7,FALSE),\"Remove\")","v":"N"}]
["12745-1-1","ST Mathematics","Active","12745-1","ST Mathematics","(blank)","2745","Mathematics","270","Science and Technology","270","Science and Technology","(blank)","208","Instruction","no",{"$f":"IFERROR(INDEX('Work Order Master'!$S:$S,MATCH(A239,'Work Order Master'!$K:$K,0)),\"New\")","v":2310},{"$f":"IFERROR(INDEX('Work Order Master'!T:T,MATCH(WORKORDERS!$Q239,'Work Order Master'!$S:$S,0)),Q239)","v":"MATH"},{"$f":"IFERROR(INDEX('FRS CC Master'!A:A,MATCH(WORKORDERS!$Q239*1,'FRS CC Master'!$C:$C,0)),WORKORDERS!$L239)","v":"Science and Technology"},{"$f":"IFERROR(VLOOKUP($A239,'Work Order Master'!$K:$Q,7,FALSE),\"Remove\")","v":"N"}]
["12745-2-1","ST Math Centre","Active","12745-2","ST Math Centre","(blank)","2745","Mathematics","270","Science and Technology","270","Science and Technology","(blank)","208","Instruction","no",{"$f":"IFERROR(INDEX('Work Order Master'!$S:$S,MATCH(A240,'Work Order Master'!$K:$K,0)),\"New\")","v":2313},{"$f":"IFERROR(INDEX('Work Order Master'!T:T,MATCH(WORKORDERS!$Q240,'Work Order Master'!$S:$S,0)),Q240)","v":"MATH CENTRE"},{"$f":"IFERROR(INDEX('FRS CC Master'!A:A,MATCH(WORKORDERS!$Q240*1,'FRS CC Master'!$C:$C,0)),WORKORDERS!$L240)","v":"Science and Technology"},{"$f":"IFERROR(VLOOKUP($A240,'Work Order Master'!$K:$Q,7,FALSE),\"Remove\")","v":"N"}]
["12750-1-1","ST Physics","Active","12750-1","ST Physics","(blank)","2750","Physics","270","Science and Technology","270","Science and Technology","(blank)","208","Instruction","no",{"$f":"IFERROR(INDEX('Work Order Master'!$S:$S,MATCH(A241,'Work Order Master'!$K:$K,0)),\"New\")","v":2326},{"$f":"IFERROR(INDEX('Work Order Master'!T:T,MATCH(WORKORDERS!$Q241,'Work Order Master'!$S:$S,0)),Q241)","v":"PHYSICS"},{"$f":"IFERROR(INDEX('FRS CC Master'!A:A,MATCH(WORKORDERS!$Q241*1,'FRS CC Master'!$C:$C,0)),WORKORDERS!$L241)","v":"Science and Technology"},{"$f":"IFERROR(VLOOKUP($A241,'Work Order Master'!$K:$Q,7,FALSE),\"Remove\")","v":"N"}]
["12755-1-1","ST Resource Management and Protection","Active","12755-1","ST Resource Management and Protection","(blank)","2755","Resource Management and Protection","270","Science and Technology","270","Science and Technology","(blank)","208","Instruction","no",{"$f":"IFERROR(INDEX('Work Order Master'!$S:$S,MATCH(A242,'Work Order Master'!$K:$K,0)),\"New\")","v":2386},{"$f":"IFERROR(INDEX('Work Order Master'!T:T,MATCH(WORKORDERS!$Q242,'Work Order Master'!$S:$S,0)),Q242)","v":"RESOURCE MGMT/PROTECTION"},{"$f":"IFERROR(INDEX('FRS CC Master'!A:A,MATCH(WORKORDERS!$Q242*1,'FRS CC Master'!$C:$C,0)),WORKORDERS!$L242)","v":"Science and Technology"},{"$f":"IFERROR(VLOOKUP($A242,'Work Order Master'!$K:$Q,7,FALSE),\"Remove\")","v":"N"}]
["12800-1-1","SS Faculty Dean's Office","Active","12800-1","SS Faculty Dean's Office","(blank)","2800","Faculty of Social Sciences","280","Social Sciences","280","Social Sciences","(blank)","201","Faculty Administration","no",{"$f":"IFERROR(INDEX('Work Order Master'!$S:$S,MATCH(A243,'Work Order Master'!$K:$K,0)),\"New\")","v":1800},{"$f":"IFERROR(INDEX('Work Order Master'!T:T,MATCH(WORKORDERS!$Q243,'Work Order Master'!$S:$S,0)),Q243)","v":"DEAN, SOCIAL SCIENCES"},{"$f":"IFERROR(INDEX('FRS CC Master'!A:A,MATCH(WORKORDERS!$Q243*1,'FRS CC Master'!$C:$C,0)),WORKORDERS!$L243)","v":"Social Sciences"},{"$f":"IFERROR(VLOOKUP($A243,'Work Order Master'!$K:$Q,7,FALSE),\"Remove\")","v":"N"}]
["12801-1-1","SS Faculty - Initiatives","Parked","12801-1","SS Faculty Initiatives","(blank)","2801","Social Sciences - Initiatives","280","Social Sciences","280","Social Sciences","(blank)","201","Faculty Administration","yes",{"$f":"IFERROR(INDEX('Work Order Master'!$S:$S,MATCH(A244,'Work Order Master'!$K:$K,0)),\"New\")","v":"New"},{"$f":"IFERROR(INDEX('Work Order Master'!T:T,MATCH(WORKORDERS!$Q244,'Work Order Master'!$S:$S,0)),Q244)","v":"New"},{"$f":"IFERROR(INDEX('FRS CC Master'!A:A,MATCH(WORKORDERS!$Q244*1,'FRS CC Master'!$C:$C,0)),WORKORDERS!$L244)","v":"Social Sciences"},{"$f":"IFERROR(VLOOKUP($A244,'Work Order Master'!$K:$Q,7,FALSE),\"Remove\")","v":"P"}]
["12801-1-1","SS Faculty - Initiatives","Parked","12801-1","SS Faculty Initiatives","(blank)","2801","Social Sciences - Initiatives","280","Social Sciences","280","Social Sciences","(blank)","204","Advising","yes",{"$f":"IFERROR(INDEX('Work Order Master'!$S:$S,MATCH(A245,'Work Order Master'!$K:$K,0)),\"New\")","v":"New"},{"$f":"IFERROR(INDEX('Work Order Master'!T:T,MATCH(WORKORDERS!$Q245,'Work Order Master'!$S:$S,0)),Q245)","v":"New"},{"$f":"IFERROR(INDEX('FRS CC Master'!A:A,MATCH(WORKORDERS!$Q245*1,'FRS CC Master'!$C:$C,0)),WORKORDERS!$L245)","v":"Social Sciences"},{"$f":"IFERROR(VLOOKUP($A245,'Work Order Master'!$K:$Q,7,FALSE),\"Remove\")","v":"P"}]
["12801-1-2","SS Faculty - Advising","Active","12801-1","SS Faculty Initiatives","(blank)","2801","Social Sciences - Initiatives","280","Social Sciences","280","Social Sciences","(blank)","201","Faculty Administration","yes",{"$f":"IFERROR(INDEX('Work Order Master'!$S:$S,MATCH(A246,'Work Order Master'!$K:$K,0)),\"New\")","v":1880},{"$f":"IFERROR(INDEX('Work Order Master'!T:T,MATCH(WORKORDERS!$Q246,'Work Order Master'!$S:$S,0)),Q246)","v":"B.A. ADVISING"},{"$f":"IFERROR(INDEX('FRS CC Master'!A:A,MATCH(WORKORDERS!$Q246*1,'FRS CC Master'!$C:$C,0)),WORKORDERS!$L246)","v":"Social Sciences"},{"$f":"IFERROR(VLOOKUP($A246,'Work Order Master'!$K:$Q,7,FALSE),\"Remove\")","v":"N"}]
["12801-1-2","SS Faculty - Advising","Active","12801-1","SS Faculty Initiatives","(blank)","2801","Social Sciences - Initiatives","280","Social Sciences","280","Social Sciences","(blank)","204","Advising","yes",{"$f":"IFERROR(INDEX('Work Order Master'!$S:$S,MATCH(A247,'Work Order Master'!$K:$K,0)),\"New\")","v":1880},{"$f":"IFERROR(INDEX('Work Order Master'!T:T,MATCH(WORKORDERS!$Q247,'Work Order Master'!$S:$S,0)),Q247)","v":"B.A. ADVISING"},{"$f":"IFERROR(INDEX('FRS CC Master'!A:A,MATCH(WORKORDERS!$Q247*1,'FRS CC Master'!$C:$C,0)),WORKORDERS!$L247)","v":"Social Sciences"},{"$f":"IFERROR(VLOOKUP($A247,'Work Order Master'!$K:$Q,7,FALSE),\"Remove\")","v":"N"}]
["12801-1-3","SS Building 355 Support","Active","12801-1","SS Faculty Initiatives","(blank)","2801","Social Sciences - Initiatives","280","Social Sciences","280","Social Sciences","(blank)","201","Faculty Administration","yes",{"$f":"IFERROR(INDEX('Work Order Master'!$S:$S,MATCH(A248,'Work Order Master'!$K:$K,0)),\"New\")","v":1804},{"$f":"IFERROR(INDEX('Work Order Master'!T:T,MATCH(WORKORDERS!$Q248,'Work Order Master'!$S:$S,0)),Q248)","v":"BUILDING 355 SUPPORT"},{"$f":"IFERROR(INDEX('FRS CC Master'!A:A,MATCH(WORKORDERS!$Q248*1,'FRS CC Master'!$C:$C,0)),WORKORDERS!$L248)","v":"Social Sciences"},{"$f":"IFERROR(VLOOKUP($A248,'Work Order Master'!$K:$Q,7,FALSE),\"Remove\")","v":"N"}]
["12801-1-3","SS Building 355 Support","Active","12801-1","SS Faculty Initiatives","(blank)","2801","Social Sciences - Initiatives","280","Social Sciences","280","Social Sciences","(blank)","204","Advising","yes",{"$f":"IFERROR(INDEX('Work Order Master'!$S:$S,MATCH(A249,'Work Order Master'!$K:$K,0)),\"New\")","v":1804},{"$f":"IFERROR(INDEX('Work Order Master'!T:T,MATCH(WORKORDERS!$Q249,'Work Order Master'!$S:$S,0)),Q249)","v":"BUILDING 355 SUPPORT"},{"$f":"IFERROR(INDEX('FRS CC Master'!A:A,MATCH(WORKORDERS!$Q249*1,'FRS CC Master'!$C:$C,0)),WORKORDERS!$L249)","v":"Social Sciences"},{"$f":"IFERROR(VLOOKUP($A249,'Work Order Master'!$K:$Q,7,FALSE),\"Remove\")","v":"N"}]
["12801-1-4","SS Recruitment and Retention","Active","12801-1","SS Faculty Initiatives","(blank)","2801","Social Sciences - Initiatives","280","Social Sciences","280","Social Sciences","(blank)","201","Faculty Administration","yes",{"$f":"IFERROR(INDEX('Work Order Master'!$S:$S,MATCH(A250,'Work Order Master'!$K:$K,0)),\"New\")","v":1801},{"$f":"IFERROR(INDEX('Work Order Master'!T:T,MATCH(WORKORDERS!$Q250,'Work Order Master'!$S:$S,0)),Q250)","v":"SOC SCI RECRUIT/RETENTION"},{"$f":"IFERROR(INDEX('FRS CC Master'!A:A,MATCH(WORKORDERS!$Q250*1,'FRS CC Master'!$C:$C,0)),WORKORDERS!$L250)","v":"Social Sciences"},{"$f":"IFERROR(VLOOKUP($A250,'Work Order Master'!$K:$Q,7,FALSE),\"Remove\")","v":"N"}]
["12801-1-4","SS Recruitment and Retention","Active","12801-1","SS Faculty Initiatives","(blank)","2801","Social Sciences - Initiatives","280","Social Sciences","280","Social Sciences","(blank)","204","Advising","yes",{"$f":"IFERROR(INDEX('Work Order Master'!$S:$S,MATCH(A251,'Work Order Master'!$K:$K,0)),\"New\")","v":1801},{"$f":"IFERROR(INDEX('Work Order Master'!T:T,MATCH(WORKORDERS!$Q251,'Work Order Master'!$S:$S,0)),Q251)","v":"SOC SCI RECRUIT/RETENTION"},{"$f":"IFERROR(INDEX('FRS CC Master'!A:A,MATCH(WORKORDERS!$Q251*1,'FRS CC Master'!$C:$C,0)),WORKORDERS!$L251)","v":"Social Sciences"},{"$f":"IFERROR(VLOOKUP($A251,'Work Order Master'!$K:$Q,7,FALSE),\"Remove\")","v":"N"}]
["12801-2-1","SS Faculty - International Sections","Active","12801-2","SS Faculty - International Sections","(blank)","2801","Social Sciences - Initiatives","280","Social Sciences","280","Social Sciences","(blank)","208","Instruction","no",{"$f":"IFERROR(INDEX('Work Order Master'!$S:$S,MATCH(A252,'Work Order Master'!$K:$K,0)),\"New\")","v":1815},{"$f":"IFERROR(INDEX('Work Order Master'!T:T,MATCH(WORKORDERS!$Q252,'Work Order Master'!$S:$S,0)),Q252)","v":"INT'L SECTIONS SOCIAL SCI"},{"$f":"IFERROR(INDEX('FRS CC Master'!A:A,MATCH(WORKORDERS!$Q252*1,'FRS CC Master'!$C:$C,0)),WORKORDERS!$L252)","v":"Social Sciences"},{"$f":"IFERROR(VLOOKUP($A252,'Work Order Master'!$K:$Q,7,FALSE),\"Remove\")","v":"N"}]
["12801-3-1","SS Faculty - Directed Studies","Active","12801-3","SS Faculty - Directed Studies","(blank)","2801","Social Sciences - Initiatives","280","Social Sciences","280","Social Sciences","(blank)","208","Instruction","no",{"$f":"IFERROR(INDEX('Work Order Master'!$S:$S,MATCH(A253,'Work Order Master'!$K:$K,0)),\"New\")","v":1812},{"$f":"IFERROR(INDEX('Work Order Master'!T:T,MATCH(WORKORDERS!$Q253,'Work Order Master'!$S:$S,0)),Q253)","v":"DIRECT STUDIES SOCIAL SCI"},{"$f":"IFERROR(INDEX('FRS CC Master'!A:A,MATCH(WORKORDERS!$Q253*1,'FRS CC Master'!$C:$C,0)),WORKORDERS!$L253)","v":"Social Sciences"},{"$f":"IFERROR(VLOOKUP($A253,'Work Order Master'!$K:$Q,7,FALSE),\"Remove\")","v":"N"}]
["12801-4-1","SS Community Based Applied Interdisciplinary Research","Active","12801-4","SS Community Based Applied Interdisciplinary Research","(blank)","2801","Social Sciences - Initiatives","280","Social Sciences","280","Social Sciences","(blank)","201","Faculty Administration","no",{"$f":"IFERROR(INDEX('Work Order Master'!$S:$S,MATCH(A254,'Work Order Master'!$K:$K,0)),\"New\")","v":1844},{"$f":"IFERROR(INDEX('Work Order Master'!T:T,MATCH(WORKORDERS!$Q254,'Work Order Master'!$S:$S,0)),Q254)","v":"CBAIR"},{"$f":"IFERROR(INDEX('FRS CC Master'!A:A,MATCH(WORKORDERS!$Q254*1,'FRS CC Master'!$C:$C,0)),WORKORDERS!$L254)","v":"Social Sciences"},{"$f":"IFERROR(VLOOKUP($A254,'Work Order Master'!$K:$Q,7,FALSE),\"Remove\")","v":"N"}]
["12805-1-1","SS Anthropology","Active","12805-1","SS Anthropology","(blank)","2805","Anthropology","280","Social Sciences","280","Social Sciences","(blank)","208","Instruction","no",{"$f":"IFERROR(INDEX('Work Order Master'!$S:$S,MATCH(A255,'Work Order Master'!$K:$K,0)),\"New\")","v":1840},{"$f":"IFERROR(INDEX('Work Order Master'!T:T,MATCH(WORKORDERS!$Q255,'Work Order Master'!$S:$S,0)),Q255)","v":"ANTHROPOLOGY"},{"$f":"IFERROR(INDEX('FRS CC Master'!A:A,MATCH(WORKORDERS!$Q255*1,'FRS CC Master'!$C:$C,0)),WORKORDERS!$L255)","v":"Social Sciences"},{"$f":"IFERROR(VLOOKUP($A255,'Work Order Master'!$K:$Q,7,FALSE),\"Remove\")","v":"N"}]
["12810-1-1","SS Criminology","Active","12810-1","SS Criminology","(blank)","2810","Criminology","280","Social Sciences","280","Social Sciences","(blank)","208","Instruction","no",{"$f":"IFERROR(INDEX('Work Order Master'!$S:$S,MATCH(A256,'Work Order Master'!$K:$K,0)),\"New\")","v":1846},{"$f":"IFERROR(INDEX('Work Order Master'!T:T,MATCH(WORKORDERS!$Q256,'Work Order Master'!$S:$S,0)),Q256)","v":"CRIMINOLOGY"},{"$f":"IFERROR(INDEX('FRS CC Master'!A:A,MATCH(WORKORDERS!$Q256*1,'FRS CC Master'!$C:$C,0)),WORKORDERS!$L256)","v":"Social Sciences"},{"$f":"IFERROR(VLOOKUP($A256,'Work Order Master'!$K:$Q,7,FALSE),\"Remove\")","v":"N"}]
["12815-1-1","SS Geography","Active","12815-1","SS Geography","(blank)","2815","Geography","280","Social Sciences","280","Social Sciences","(blank)","208","Instruction","no",{"$f":"IFERROR(INDEX('Work Order Master'!$S:$S,MATCH(A257,'Work Order Master'!$K:$K,0)),\"New\")","v":1849},{"$f":"IFERROR(INDEX('Work Order Master'!T:T,MATCH(WORKORDERS!$Q257,'Work Order Master'!$S:$S,0)),Q257)","v":"GEOGRAPHY"},{"$f":"IFERROR(INDEX('FRS CC Master'!A:A,MATCH(WORKORDERS!$Q257*1,'FRS CC Master'!$C:$C,0)),WORKORDERS!$L257)","v":"Social Sciences"},{"$f":"IFERROR(VLOOKUP($A257,'Work Order Master'!$K:$Q,7,FALSE),\"Remove\")","v":"N"}]
["12820-1-1","SS Interdisciplinary Studies","Active","12820-1","SS Interdisciplinary Studies","(blank)","2820","Interdisciplinary","280","Social Sciences","280","Social Sciences","(blank)","208","Instruction","no",{"$f":"IFERROR(INDEX('Work Order Master'!$S:$S,MATCH(A258,'Work Order Master'!$K:$K,0)),\"New\")","v":1811},{"$f":"IFERROR(INDEX('Work Order Master'!T:T,MATCH(WORKORDERS!$Q258,'Work Order Master'!$S:$S,0)),Q258)","v":"SOC SCI INTERDISCIPLINARY"},{"$f":"IFERROR(INDEX('FRS CC Master'!A:A,MATCH(WORKORDERS!$Q258*1,'FRS CC Master'!$C:$C,0)),WORKORDERS!$L258)","v":"Social Sciences"},{"$f":"IFERROR(VLOOKUP($A258,'Work Order Master'!$K:$Q,7,FALSE),\"Remove\")","v":"N"}]
["12825-1-1","SS Liberal Studies","Active","12825-1","SS Liberal Studies","(blank)","2825","Liberal Studies","280","Social Sciences","280","Social Sciences","(blank)","208","Instruction","no",{"$f":"IFERROR(INDEX('Work Order Master'!$S:$S,MATCH(A259,'Work Order Master'!$K:$K,0)),\"New\")","v":1810},{"$f":"IFERROR(INDEX('Work Order Master'!T:T,MATCH(WORKORDERS!$Q259,'Work Order Master'!$S:$S,0)),Q259)","v":"LIBERAL STUDIES"},{"$f":"IFERROR(INDEX('FRS CC Master'!A:A,MATCH(WORKORDERS!$Q259*1,'FRS CC Master'!$C:$C,0)),WORKORDERS!$L259)","v":"Social Sciences"},{"$f":"IFERROR(VLOOKUP($A259,'Work Order Master'!$K:$Q,7,FALSE),\"Remove\")","v":"N"}]
["12827-1-1","SS Global Studies","Active","12827-1","SS Global Studies","(blank)","2827","Global Studies","280","Social Sciences","280","Social Sciences","(blank)","208","Instruction",{"$f":"IF(OR(A260=A259,A260=A261),\"yes\",\"no\")","v":"no"},{"$f":"IFERROR(INDEX('Work Order Master'!$S:$S,MATCH(A260,'Work Order Master'!$K:$K,0)),\"New\")","v":"New"},{"$f":"IFERROR(INDEX('Work Order Master'!T:T,MATCH(WORKORDERS!$Q260,'Work Order Master'!$S:$S,0)),Q260)","v":"New"},{"$f":"IFERROR(INDEX('FRS CC Master'!A:A,MATCH(WORKORDERS!$Q260*1,'FRS CC Master'!$C:$C,0)),WORKORDERS!$L260)","v":"Social Sciences"},{"$f":"IFERROR(VLOOKUP($A260,'Work Order Master'!$K:$Q,7,FALSE),\"Remove\")","v":"N"}]
["12830-1-1","SS Philosophy ","Active","12830-1","SS Philosophy ","(blank)","2830","Philosophy ","280","Social Sciences","280","Social Sciences","(blank)","208","Instruction","no",{"$f":"IFERROR(INDEX('Work Order Master'!$S:$S,MATCH(A261,'Work Order Master'!$K:$K,0)),\"New\")","v":1836},{"$f":"IFERROR(INDEX('Work Order Master'!T:T,MATCH(WORKORDERS!$Q261,'Work Order Master'!$S:$S,0)),Q261)","v":"PHILOSOPHY"},{"$f":"IFERROR(INDEX('FRS CC Master'!A:A,MATCH(WORKORDERS!$Q261*1,'FRS CC Master'!$C:$C,0)),WORKORDERS!$L261)","v":"Social Sciences"},{"$f":"IFERROR(VLOOKUP($A261,'Work Order Master'!$K:$Q,7,FALSE),\"Remove\")","v":"N"}]
["12835-1-1","SS Political Studies","Active","12835-1","SS Political Studies","(blank)","2835","Political Studies","280","Social Sciences","280","Social Sciences","(blank)","208","Instruction","no",{"$f":"IFERROR(INDEX('Work Order Master'!$S:$S,MATCH(A262,'Work Order Master'!$K:$K,0)),\"New\")","v":1855},{"$f":"IFERROR(INDEX('Work Order Master'!T:T,MATCH(WORKORDERS!$Q262,'Work Order Master'!$S:$S,0)),Q262)","v":"POLITICAL STUDIES"},{"$f":"IFERROR(INDEX('FRS CC Master'!A:A,MATCH(WORKORDERS!$Q262*1,'FRS CC Master'!$C:$C,0)),WORKORDERS!$L262)","v":"Social Sciences"},{"$f":"IFERROR(VLOOKUP($A262,'Work Order Master'!$K:$Q,7,FALSE),\"Remove\")","v":"N"}]
["12840-1-1","SS Psychology","Active","12840-1","SS Psychology","(blank)","2840","Psychology","280","Social Sciences","280","Social Sciences","(blank)","208","Instruction","no",{"$f":"IFERROR(INDEX('Work Order Master'!$S:$S,MATCH(A263,'Work Order Master'!$K:$K,0)),\"New\")","v":1861},{"$f":"IFERROR(INDEX('Work Order Master'!T:T,MATCH(WORKORDERS!$Q263,'Work Order Master'!$S:$S,0)),Q263)","v":"PSYCHOLOGY"},{"$f":"IFERROR(INDEX('FRS CC Master'!A:A,MATCH(WORKORDERS!$Q263*1,'FRS CC Master'!$C:$C,0)),WORKORDERS!$L263)","v":"Social Sciences"},{"$f":"IFERROR(VLOOKUP($A263,'Work Order Master'!$K:$Q,7,FALSE),\"Remove\")","v":"N"}]
["12845-1-1","SS Sociology ","Active","12845-1","SS Sociology ","(blank)","2845","Sociology ","280","Social Sciences","280","Social Sciences","(blank)","208","Instruction","no",{"$f":"IFERROR(INDEX('Work Order Master'!$S:$S,MATCH(A264,'Work Order Master'!$K:$K,0)),\"New\")","v":1843},{"$f":"IFERROR(INDEX('Work Order Master'!T:T,MATCH(WORKORDERS!$Q264,'Work Order Master'!$S:$S,0)),Q264)","v":"SOCIOLOGY"},{"$f":"IFERROR(INDEX('FRS CC Master'!A:A,MATCH(WORKORDERS!$Q264*1,'FRS CC Master'!$C:$C,0)),WORKORDERS!$L264)","v":"Social Sciences"},{"$f":"IFERROR(VLOOKUP($A264,'Work Order Master'!$K:$Q,7,FALSE),\"Remove\")","v":"N"}]
["12900-1-1","TAT Faculty Dean's Office","Active","12900-1","TAT Faculty Dean's Office","(blank)","2900","Faculty of Trades and Applied Technology","290","Trades and Applied Technology","290","Trades and Applied Technology","(blank)","201","Faculty Administration","no",{"$f":"IFERROR(INDEX('Work Order Master'!$S:$S,MATCH(A265,'Work Order Master'!$K:$K,0)),\"New\")","v":3200},{"$f":"IFERROR(INDEX('Work Order Master'!T:T,MATCH(WORKORDERS!$Q265,'Work Order Master'!$S:$S,0)),Q265)","v":"DEAN,TRADES/APPLIED TECH"},{"$f":"IFERROR(INDEX('FRS CC Master'!A:A,MATCH(WORKORDERS!$Q265*1,'FRS CC Master'!$C:$C,0)),WORKORDERS!$L265)","v":"Trades and Applied Technology"},{"$f":"IFERROR(VLOOKUP($A265,'Work Order Master'!$K:$Q,7,FALSE),\"Remove\")","v":"N"}]
["12900-2-1","TAT Enrolment Services and Operations","Active","12900-2","TAT Enrolment Services and Operations","(blank)","2900","Faculty of Trades and Applied Technology","290","Trades and Applied Technology","290","Trades and Applied Technology","(blank)","201","Faculty Administration","no",{"$f":"IFERROR(INDEX('Work Order Master'!$S:$S,MATCH(A266,'Work Order Master'!$K:$K,0)),\"New\")","v":3700},{"$f":"IFERROR(INDEX('Work Order Master'!T:T,MATCH(WORKORDERS!$Q266,'Work Order Master'!$S:$S,0)),Q266)","v":"TRADES AND APPRENTICESHIP"},{"$f":"IFERROR(INDEX('FRS CC Master'!A:A,MATCH(WORKORDERS!$Q266*1,'FRS CC Master'!$C:$C,0)),WORKORDERS!$L266)","v":"Trades and Applied Technology"},{"$f":"IFERROR(VLOOKUP($A266,'Work Order Master'!$K:$Q,7,FALSE),\"Remove\")","v":"N"}]
["12901-1-1","TAT Faculty Initiatives","Parked","12901-1","TAT Faculty Initiatives","(blank)","2901","Trades and Applied Technology - Initiatives","290","Trades and Applied Technology","290","Trades and Applied Technology","(blank)","201","Faculty Administration","no",{"$f":"IFERROR(INDEX('Work Order Master'!$S:$S,MATCH(A267,'Work Order Master'!$K:$K,0)),\"New\")","v":"New"},{"$f":"IFERROR(INDEX('Work Order Master'!T:T,MATCH(WORKORDERS!$Q267,'Work Order Master'!$S:$S,0)),Q267)","v":"New"},{"$f":"IFERROR(INDEX('FRS CC Master'!A:A,MATCH(WORKORDERS!$Q267*1,'FRS CC Master'!$C:$C,0)),WORKORDERS!$L267)","v":"Trades and Applied Technology"},{"$f":"IFERROR(VLOOKUP($A267,'Work Order Master'!$K:$Q,7,FALSE),\"Remove\")","v":"P"}]
["12901-1-2","TAT Faculty Holding Account","Active","12901-1","TAT Faculty Initiatives","(blank)","2901","Trades and Applied Technology - Initiatives","290","Trades and Applied Technology","290","Trades and Applied Technology","(blank)","201","Faculty Administration","no",{"$f":"IFERROR(INDEX('Work Order Master'!$S:$S,MATCH(A268,'Work Order Master'!$K:$K,0)),\"New\")","v":3299},{"$f":"IFERROR(INDEX('Work Order Master'!T:T,MATCH(WORKORDERS!$Q268,'Work Order Master'!$S:$S,0)),Q268)","v":"TRADES - HOLDING ACCOUNT"},{"$f":"IFERROR(INDEX('FRS CC Master'!A:A,MATCH(WORKORDERS!$Q268*1,'FRS CC Master'!$C:$C,0)),WORKORDERS!$L268)","v":"Trades and Applied Technology"},{"$f":"IFERROR(VLOOKUP($A268,'Work Order Master'!$K:$Q,7,FALSE),\"Remove\")","v":"N"}]
["12901-1-3","TAT Faculty Development","Parked","12901-1","TAT Faculty Initiatives","(blank)","2901","Trades and Applied Technology - Initiatives","290","Trades and Applied Technology","290","Trades and Applied Technology","(blank)","201","Faculty Administration","no",{"$f":"IFERROR(INDEX('Work Order Master'!$S:$S,MATCH(A269,'Work Order Master'!$K:$K,0)),\"New\")","v":"New"},{"$f":"IFERROR(INDEX('Work Order Master'!T:T,MATCH(WORKORDERS!$Q269,'Work Order Master'!$S:$S,0)),Q269)","v":"New"},{"$f":"IFERROR(INDEX('FRS CC Master'!A:A,MATCH(WORKORDERS!$Q269*1,'FRS CC Master'!$C:$C,0)),WORKORDERS!$L269)","v":"Trades and Applied Technology"},{"$f":"IFERROR(VLOOKUP($A269,'Work Order Master'!$K:$Q,7,FALSE),\"Remove\")","v":"P"}]
["12905-1-1","TAT Office Administration","Active","12905-1","TAT Applied Business Technology","(blank)","2905","Office Administration","290","Trades and Applied Technology","290","Trades and Applied Technology","(blank)","208","Instruction","no",{"$f":"IFERROR(INDEX('Work Order Master'!$S:$S,MATCH(A270,'Work Order Master'!$K:$K,0)),\"New\")","v":4060},{"$f":"IFERROR(INDEX('Work Order Master'!T:T,MATCH(WORKORDERS!$Q270,'Work Order Master'!$S:$S,0)),Q270)","v":"OFFICE ADMINISTRATION"},{"$f":"IFERROR(INDEX('FRS CC Master'!A:A,MATCH(WORKORDERS!$Q270*1,'FRS CC Master'!$C:$C,0)),WORKORDERS!$L270)","v":"Trades and Applied Technology"},{"$f":"IFERROR(VLOOKUP($A270,'Work Order Master'!$K:$Q,7,FALSE),\"Remove\")","v":"N"}]
["12910-1-1","TAT Automotive Service Technician","Active","12910-1","TAT Automotive Service Technician","(blank)","2910","Automotive Service Technician","290","Trades and Applied Technology","290","Trades and Applied Technology","(blank)","208","Instruction","no",{"$f":"IFERROR(INDEX('Work Order Master'!$S:$S,MATCH(A271,'Work Order Master'!$K:$K,0)),\"New\")","v":3761},{"$f":"IFERROR(INDEX('Work Order Master'!T:T,MATCH(WORKORDERS!$Q271,'Work Order Master'!$S:$S,0)),Q271)","v":"AUTO SERVICE TECH"},{"$f":"IFERROR(INDEX('FRS CC Master'!A:A,MATCH(WORKORDERS!$Q271*1,'FRS CC Master'!$C:$C,0)),WORKORDERS!$L271)","v":"Trades and Applied Technology"},{"$f":"IFERROR(VLOOKUP($A271,'Work Order Master'!$K:$Q,7,FALSE),\"Remove\")","v":"N"}]
["12910-2-1","TAT Automotive Service Technician - Powell River","Active","12910-2","TAT Automotive Service Technician - Powell River","(blank)","2910","Automotive Service Technician","290","Trades and Applied Technology","290","Trades and Applied Technology","(blank)","208","Instruction","no",{"$f":"IFERROR(INDEX('Work Order Master'!$S:$S,MATCH(A272,'Work Order Master'!$K:$K,0)),\"New\")","v":4032},{"$f":"IFERROR(INDEX('Work Order Master'!T:T,MATCH(WORKORDERS!$Q272,'Work Order Master'!$S:$S,0)),Q272)","v":"AUTO SV TECH-POWELL RIVER"},{"$f":"IFERROR(INDEX('FRS CC Master'!A:A,MATCH(WORKORDERS!$Q272*1,'FRS CC Master'!$C:$C,0)),WORKORDERS!$L272)","v":"Trades and Applied Technology"},{"$f":"IFERROR(VLOOKUP($A272,'Work Order Master'!$K:$Q,7,FALSE),\"Remove\")","v":"N"}]
["12915-1-1","TAT Carpentry","Active","12915-1","TAT Carpentry","(blank)","2915","Carpentry","290","Trades and Applied Technology","290","Trades and Applied Technology","(blank)","208","Instruction","no",{"$f":"IFERROR(INDEX('Work Order Master'!$S:$S,MATCH(A273,'Work Order Master'!$K:$K,0)),\"New\")","v":3728},{"$f":"IFERROR(INDEX('Work Order Master'!T:T,MATCH(WORKORDERS!$Q273,'Work Order Master'!$S:$S,0)),Q273)","v":"CARPENTRY"},{"$f":"IFERROR(INDEX('FRS CC Master'!A:A,MATCH(WORKORDERS!$Q273*1,'FRS CC Master'!$C:$C,0)),WORKORDERS!$L273)","v":"Trades and Applied Technology"},{"$f":"IFERROR(VLOOKUP($A273,'Work Order Master'!$K:$Q,7,FALSE),\"Remove\")","v":"N"}]
["12915-2-1","TAT Carpentry - Cowichan","Active","12915-2","TAT Carpentry - Cowichan","(blank)","2915","Carpentry","290","Trades and Applied Technology","290","Trades and Applied Technology","(blank)","208","Instruction","no",{"$f":"IFERROR(INDEX('Work Order Master'!$S:$S,MATCH(A274,'Work Order Master'!$K:$K,0)),\"New\")","v":4013},{"$f":"IFERROR(INDEX('Work Order Master'!T:T,MATCH(WORKORDERS!$Q274,'Work Order Master'!$S:$S,0)),Q274)","v":"CARPENTRY COWICHAN"},{"$f":"IFERROR(INDEX('FRS CC Master'!A:A,MATCH(WORKORDERS!$Q274*1,'FRS CC Master'!$C:$C,0)),WORKORDERS!$L274)","v":"Trades and Applied Technology"},{"$f":"IFERROR(VLOOKUP($A274,'Work Order Master'!$K:$Q,7,FALSE),\"Remove\")","v":"N"}]
["12915-3-1","TAT Carpentry - Powell River","Active","12915-3","TAT Carpentry - Powell River","(blank)","2915","Carpentry","290","Trades and Applied Technology","290","Trades and Applied Technology","(blank)","208","Instruction","no",{"$f":"IFERROR(INDEX('Work Order Master'!$S:$S,MATCH(A275,'Work Order Master'!$K:$K,0)),\"New\")","v":4033},{"$f":"IFERROR(INDEX('Work Order Master'!T:T,MATCH(WORKORDERS!$Q275,'Work Order Master'!$S:$S,0)),Q275)","v":"CARPENTRY-POWELL RIVER"},{"$f":"IFERROR(INDEX('FRS CC Master'!A:A,MATCH(WORKORDERS!$Q275*1,'FRS CC Master'!$C:$C,0)),WORKORDERS!$L275)","v":"Trades and Applied Technology"},{"$f":"IFERROR(VLOOKUP($A275,'Work Order Master'!$K:$Q,7,FALSE),\"Remove\")","v":"N"}]
["12920-1-1","TAT Culinary Arts","Active","12920-1","TAT Culinary Arts","(blank)","2920","Culinary Arts","290","Trades and Applied Technology","290","Trades and Applied Technology","(blank)","208","Instruction","yes",{"$f":"IFERROR(INDEX('Work Order Master'!$S:$S,MATCH(A276,'Work Order Master'!$K:$K,0)),\"New\")","v":3320},{"$f":"IFERROR(INDEX('Work Order Master'!T:T,MATCH(WORKORDERS!$Q276,'Work Order Master'!$S:$S,0)),Q276)","v":"CULINARY ARTS/BAKING"},{"$f":"IFERROR(INDEX('FRS CC Master'!A:A,MATCH(WORKORDERS!$Q276*1,'FRS CC Master'!$C:$C,0)),WORKORDERS!$L276)","v":"Trades and Applied Technology"},{"$f":"IFERROR(VLOOKUP($A276,'Work Order Master'!$K:$Q,7,FALSE),\"Remove\")","v":"N"}]
["12920-1-1","TAT Culinary Arts","Active","12920-1","TAT Culinary Arts","(blank)","2920","Culinary Arts","290","Trades and Applied Technology","290","Trades and Applied Technology","(blank)","223","Field Schools","yes",{"$f":"IFERROR(INDEX('Work Order Master'!$S:$S,MATCH(A277,'Work Order Master'!$K:$K,0)),\"New\")","v":3320},{"$f":"IFERROR(INDEX('Work Order Master'!T:T,MATCH(WORKORDERS!$Q277,'Work Order Master'!$S:$S,0)),Q277)","v":"CULINARY ARTS/BAKING"},{"$f":"IFERROR(INDEX('FRS CC Master'!A:A,MATCH(WORKORDERS!$Q277*1,'FRS CC Master'!$C:$C,0)),WORKORDERS!$L277)","v":"Trades and Applied Technology"},{"$f":"IFERROR(VLOOKUP($A277,'Work Order Master'!$K:$Q,7,FALSE),\"Remove\")","v":"N"}]
["12920-1-2","TAT Culinary Arts - Nanaimo - Competitions & Field Trips","Active","12920-1","TAT Culinary Arts","(blank)","2920","Culinary Arts","290","Trades and Applied Technology","290","Trades and Applied Technology","(blank)","208","Instruction","yes",{"$f":"IFERROR(INDEX('Work Order Master'!$S:$S,MATCH(A278,'Work Order Master'!$K:$K,0)),\"New\")","v":3322},{"$f":"IFERROR(INDEX('Work Order Master'!T:T,MATCH(WORKORDERS!$Q278,'Work Order Master'!$S:$S,0)),Q278)","v":"CUL COMPETITIONS-FIELD TR"},{"$f":"IFERROR(INDEX('FRS CC Master'!A:A,MATCH(WORKORDERS!$Q278*1,'FRS CC Master'!$C:$C,0)),WORKORDERS!$L278)","v":"Trades and Applied Technology"},{"$f":"IFERROR(VLOOKUP($A278,'Work Order Master'!$K:$Q,7,FALSE),\"Remove\")","v":"N"}]
["12920-1-2","TAT Culinary Arts - Nanaimo - Competitions & Field Trips","Active","12920-1","TAT Culinary Arts","(blank)","2920","Culinary Arts","290","Trades and Applied Technology","290","Trades and Applied Technology","(blank)","223","Field Schools","yes",{"$f":"IFERROR(INDEX('Work Order Master'!$S:$S,MATCH(A279,'Work Order Master'!$K:$K,0)),\"New\")","v":3322},{"$f":"IFERROR(INDEX('Work Order Master'!T:T,MATCH(WORKORDERS!$Q279,'Work Order Master'!$S:$S,0)),Q279)","v":"CUL COMPETITIONS-FIELD TR"},{"$f":"IFERROR(INDEX('FRS CC Master'!A:A,MATCH(WORKORDERS!$Q279*1,'FRS CC Master'!$C:$C,0)),WORKORDERS!$L279)","v":"Trades and Applied Technology"},{"$f":"IFERROR(VLOOKUP($A279,'Work Order Master'!$K:$Q,7,FALSE),\"Remove\")","v":"N"}]
["12920-2-1","TAT Culinary Arts - Cowichan","Active","12920-2","TAT Culinary Arts - Cowichan","(blank)","2920","Culinary Arts","290","Trades and Applied Technology","290","Trades and Applied Technology","(blank)","208","Instruction","no",{"$f":"IFERROR(INDEX('Work Order Master'!$S:$S,MATCH(A280,'Work Order Master'!$K:$K,0)),\"New\")","v":4010},{"$f":"IFERROR(INDEX('Work Order Master'!T:T,MATCH(WORKORDERS!$Q280,'Work Order Master'!$S:$S,0)),Q280)","v":"CULINARY ARTS COW"},{"$f":"IFERROR(INDEX('FRS CC Master'!A:A,MATCH(WORKORDERS!$Q280*1,'FRS CC Master'!$C:$C,0)),WORKORDERS!$L280)","v":"Trades and Applied Technology"},{"$f":"IFERROR(VLOOKUP($A280,'Work Order Master'!$K:$Q,7,FALSE),\"Remove\")","v":"N"}]
["12920-3-1","TAT Culinary Arts - Powell River","Active","12920-3","TAT Culinary Arts - Powell River","(blank)","2920","Culinary Arts","290","Trades and Applied Technology","290","Trades and Applied Technology","(blank)","208","Instruction","no",{"$f":"IFERROR(INDEX('Work Order Master'!$S:$S,MATCH(A281,'Work Order Master'!$K:$K,0)),\"New\")","v":4030},{"$f":"IFERROR(INDEX('Work Order Master'!T:T,MATCH(WORKORDERS!$Q281,'Work Order Master'!$S:$S,0)),Q281)","v":"CULINARY ARTS-POWELL RIV"},{"$f":"IFERROR(INDEX('FRS CC Master'!A:A,MATCH(WORKORDERS!$Q281*1,'FRS CC Master'!$C:$C,0)),WORKORDERS!$L281)","v":"Trades and Applied Technology"},{"$f":"IFERROR(VLOOKUP($A281,'Work Order Master'!$K:$Q,7,FALSE),\"Remove\")","v":"N"}]
["12925-1-1","TAT Electrician","Active","12925-1","TAT Electrician","(blank)","2925","Electrician","290","Trades and Applied Technology","290","Trades and Applied Technology","(blank)","208","Instruction","no",{"$f":"IFERROR(INDEX('Work Order Master'!$S:$S,MATCH(A282,'Work Order Master'!$K:$K,0)),\"New\")","v":3785},{"$f":"IFERROR(INDEX('Work Order Master'!T:T,MATCH(WORKORDERS!$Q282,'Work Order Master'!$S:$S,0)),Q282)","v":"ELECTRICIAN"},{"$f":"IFERROR(INDEX('FRS CC Master'!A:A,MATCH(WORKORDERS!$Q282*1,'FRS CC Master'!$C:$C,0)),WORKORDERS!$L282)","v":"Trades and Applied Technology"},{"$f":"IFERROR(VLOOKUP($A282,'Work Order Master'!$K:$Q,7,FALSE),\"Remove\")","v":"N"}]
["12930-1-1","TAT Hairdressing","Active","12930-1","TAT Hairdressing","(blank)","2930","Hairdressing","290","Trades and Applied Technology","290","Trades and Applied Technology","(blank)","208","Instruction","no",{"$f":"IFERROR(INDEX('Work Order Master'!$S:$S,MATCH(A283,'Work Order Master'!$K:$K,0)),\"New\")","v":3790},{"$f":"IFERROR(INDEX('Work Order Master'!T:T,MATCH(WORKORDERS!$Q283,'Work Order Master'!$S:$S,0)),Q283)","v":"HAIRDRESSING"},{"$f":"IFERROR(INDEX('FRS CC Master'!A:A,MATCH(WORKORDERS!$Q283*1,'FRS CC Master'!$C:$C,0)),WORKORDERS!$L283)","v":"Trades and Applied Technology"},{"$f":"IFERROR(VLOOKUP($A283,'Work Order Master'!$K:$Q,7,FALSE),\"Remove\")","v":"N"}]
["12930-1-2","TAT Hairdressing - Student Kits","Active","12930-1","TAT Hairdressing","(blank)","2930","Hairdressing","290","Trades and Applied Technology","290","Trades and Applied Technology","(blank)","208","Instruction","no",{"$f":"IFERROR(INDEX('Work Order Master'!$S:$S,MATCH(A284,'Work Order Master'!$K:$K,0)),\"New\")","v":3791},{"$f":"IFERROR(INDEX('Work Order Master'!T:T,MATCH(WORKORDERS!$Q284,'Work Order Master'!$S:$S,0)),Q284)","v":"HAIRDRESSING STUDENT KITS"},{"$f":"IFERROR(INDEX('FRS CC Master'!A:A,MATCH(WORKORDERS!$Q284*1,'FRS CC Master'!$C:$C,0)),WORKORDERS!$L284)","v":"Trades and Applied Technology"},{"$f":"IFERROR(VLOOKUP($A284,'Work Order Master'!$K:$Q,7,FALSE),\"Remove\")","v":"N"}]
["12940-1-1","TAT Heavy Mechanical Trades","Active","12940-1","TAT Heavy Mechanical Trades","(blank)","2940","Heavy Mechanical Trades","290","Trades and Applied Technology","290","Trades and Applied Technology","(blank)","208","Instruction","no",{"$f":"IFERROR(INDEX('Work Order Master'!$S:$S,MATCH(A285,'Work Order Master'!$K:$K,0)),\"New\")","v":3765},{"$f":"IFERROR(INDEX('Work Order Master'!T:T,MATCH(WORKORDERS!$Q285,'Work Order Master'!$S:$S,0)),Q285)","v":"H.D./COMMERCIAL TRANSPORT"},{"$f":"IFERROR(INDEX('FRS CC Master'!A:A,MATCH(WORKORDERS!$Q285*1,'FRS CC Master'!$C:$C,0)),WORKORDERS!$L285)","v":"Trades and Applied Technology"},{"$f":"IFERROR(VLOOKUP($A285,'Work Order Master'!$K:$Q,7,FALSE),\"Remove\")","v":"N"}]
["12945-1-1","TAT Horticultural Technician","Active","12945-1","TAT Horticultural Technician","(blank)","2945","Horticultural Technician","290","Trades and Applied Technology","290","Trades and Applied Technology","(blank)","208","Instruction","no",{"$f":"IFERROR(INDEX('Work Order Master'!$S:$S,MATCH(A286,'Work Order Master'!$K:$K,0)),\"New\")","v":3720},{"$f":"IFERROR(INDEX('Work Order Master'!T:T,MATCH(WORKORDERS!$Q286,'Work Order Master'!$S:$S,0)),Q286)","v":"HORTICULTURE"},{"$f":"IFERROR(INDEX('FRS CC Master'!A:A,MATCH(WORKORDERS!$Q286*1,'FRS CC Master'!$C:$C,0)),WORKORDERS!$L286)","v":"Trades and Applied Technology"},{"$f":"IFERROR(VLOOKUP($A286,'Work Order Master'!$K:$Q,7,FALSE),\"Remove\")","v":"N"}]
["12945-2-1","TAT Horticulture - Greenhouse Production","Parked","12945-2","TAT Horticulture - Greenhouse Production","(blank)","2945","Horticultural Technician","290","Trades and Applied Technology","290","Trades and Applied Technology","(blank)","227","Student Sales","no",{"$f":"IFERROR(INDEX('Work Order Master'!$S:$S,MATCH(A287,'Work Order Master'!$K:$K,0)),\"New\")","v":"New"},{"$f":"IFERROR(INDEX('Work Order Master'!T:T,MATCH(WORKORDERS!$Q287,'Work Order Master'!$S:$S,0)),Q287)","v":"New"},{"$f":"IFERROR(INDEX('FRS CC Master'!A:A,MATCH(WORKORDERS!$Q287*1,'FRS CC Master'!$C:$C,0)),WORKORDERS!$L287)","v":"Trades and Applied Technology"},{"$f":"IFERROR(VLOOKUP($A287,'Work Order Master'!$K:$Q,7,FALSE),\"Remove\")","v":"Remove"}]
["12950-1-1","TAT Information Technology and Applied Systems","Active","12950-1","TAT Information Technology and Applied Systems","(blank)","2950","Information Technology & Applied Systems","290","Trades and Applied Technology","290","Trades and Applied Technology","(blank)","208","Instruction","no",{"$f":"IFERROR(INDEX('Work Order Master'!$S:$S,MATCH(A288,'Work Order Master'!$K:$K,0)),\"New\")","v":4065},{"$f":"IFERROR(INDEX('Work Order Master'!T:T,MATCH(WORKORDERS!$Q288,'Work Order Master'!$S:$S,0)),Q288)","v":"ITAS"},{"$f":"IFERROR(INDEX('FRS CC Master'!A:A,MATCH(WORKORDERS!$Q288*1,'FRS CC Master'!$C:$C,0)),WORKORDERS!$L288)","v":"Trades and Applied Technology"},{"$f":"IFERROR(VLOOKUP($A288,'Work Order Master'!$K:$Q,7,FALSE),\"Remove\")","v":"N"}]
["12955-1-1","TAT Motorcycle and Marine Technician","Active","12955-1","TAT Motorcycle and Marine Technician","(blank)","2955","Motorcycle & Marine Technician","290","Trades and Applied Technology","290","Trades and Applied Technology","(blank)","208","Instruction","no",{"$f":"IFERROR(INDEX('Work Order Master'!$S:$S,MATCH(A289,'Work Order Master'!$K:$K,0)),\"New\")","v":3770},{"$f":"IFERROR(INDEX('Work Order Master'!T:T,MATCH(WORKORDERS!$Q289,'Work Order Master'!$S:$S,0)),Q289)","v":"MARINE/INBOARD/OUTBOARD"},{"$f":"IFERROR(INDEX('FRS CC Master'!A:A,MATCH(WORKORDERS!$Q289*1,'FRS CC Master'!$C:$C,0)),WORKORDERS!$L289)","v":"Trades and Applied Technology"},{"$f":"IFERROR(VLOOKUP($A289,'Work Order Master'!$K:$Q,7,FALSE),\"Remove\")","v":"N"}]
["12960-1-1","TAT Power Engineering","Parked","12960-1","TAT Power Engineering","(blank)","2960","Power Engineering","290","Trades and Applied Technology","290","Trades and Applied Technology","(blank)","208","Instruction","no",{"$f":"IFERROR(INDEX('Work Order Master'!$S:$S,MATCH(A290,'Work Order Master'!$K:$K,0)),\"New\")","v":"New"},{"$f":"IFERROR(INDEX('Work Order Master'!T:T,MATCH(WORKORDERS!$Q290,'Work Order Master'!$S:$S,0)),Q290)","v":"New"},{"$f":"IFERROR(INDEX('FRS CC Master'!A:A,MATCH(WORKORDERS!$Q290*1,'FRS CC Master'!$C:$C,0)),WORKORDERS!$L290)","v":"Trades and Applied Technology"},{"$f":"IFERROR(VLOOKUP($A290,'Work Order Master'!$K:$Q,7,FALSE),\"Remove\")","v":"Remove"}]
["12965-1-1","TAT Professional Baking & Pastry Arts ","Parked","12965-1","TAT Professional Baking & Pastry Arts ","(blank)","2965","Professional Baking & Pastry Arts ","290","Trades and Applied Technology","290","Trades and Applied Technology","(blank)","208","Instruction","no",{"$f":"IFERROR(INDEX('Work Order Master'!$S:$S,MATCH(A291,'Work Order Master'!$K:$K,0)),\"New\")","v":"New"},{"$f":"IFERROR(INDEX('Work Order Master'!T:T,MATCH(WORKORDERS!$Q291,'Work Order Master'!$S:$S,0)),Q291)","v":"New"},{"$f":"IFERROR(INDEX('FRS CC Master'!A:A,MATCH(WORKORDERS!$Q291*1,'FRS CC Master'!$C:$C,0)),WORKORDERS!$L291)","v":"Trades and Applied Technology"},{"$f":"IFERROR(VLOOKUP($A291,'Work Order Master'!$K:$Q,7,FALSE),\"Remove\")","v":"Remove"}]
["12970-1-1","TAT Refrigeration Mechanic","Active","12970-1","TAT Refrigeration Mechanic","(blank)","2970","Refrigeration Mechanic","290","Trades and Applied Technology","290","Trades and Applied Technology","(blank)","208","Instruction","no",{"$f":"IFERROR(INDEX('Work Order Master'!$S:$S,MATCH(A292,'Work Order Master'!$K:$K,0)),\"New\")","v":4016},{"$f":"IFERROR(INDEX('Work Order Master'!T:T,MATCH(WORKORDERS!$Q292,'Work Order Master'!$S:$S,0)),Q292)","v":"REFRIDGTN A/C MECH. COW"},{"$f":"IFERROR(INDEX('FRS CC Master'!A:A,MATCH(WORKORDERS!$Q292*1,'FRS CC Master'!$C:$C,0)),WORKORDERS!$L292)","v":"Trades and Applied Technology"},{"$f":"IFERROR(VLOOKUP($A292,'Work Order Master'!$K:$Q,7,FALSE),\"Remove\")","v":"N"}]
["12972-1-1","TAT Trades Discovery - Nanaimo","Active","12972-1","TAT Trades Discovery - Nanaimo","(blank)","2972","Trades Discovery","290","Trades and Applied Technology","290","Trades and Applied Technology","(blank)","208","Instruction","no",{"$f":"IFERROR(INDEX('Work Order Master'!$S:$S,MATCH(A293,'Work Order Master'!$K:$K,0)),\"New\")","v":3729},{"$f":"IFERROR(INDEX('Work Order Master'!T:T,MATCH(WORKORDERS!$Q293,'Work Order Master'!$S:$S,0)),Q293)","v":"TRADES DISCOVERY NAN"},{"$f":"IFERROR(INDEX('FRS CC Master'!A:A,MATCH(WORKORDERS!$Q293*1,'FRS CC Master'!$C:$C,0)),WORKORDERS!$L293)","v":"Trades and Applied Technology"},{"$f":"IFERROR(VLOOKUP($A293,'Work Order Master'!$K:$Q,7,FALSE),\"Remove\")","v":"N"}]
["12972-2-1","TAT Trades Discovery - Cowichan","Active","12972-2","TAT Trades Discovery - Cowichan","(blank)","2972","Trades Discovery","290","Trades and Applied Technology","290","Trades and Applied Technology","(blank)","208","Instruction","no",{"$f":"IFERROR(INDEX('Work Order Master'!$S:$S,MATCH(A294,'Work Order Master'!$K:$K,0)),\"New\")","v":4014},{"$f":"IFERROR(INDEX('Work Order Master'!T:T,MATCH(WORKORDERS!$Q294,'Work Order Master'!$S:$S,0)),Q294)","v":"TRADES DISCOVERY COW"},{"$f":"IFERROR(INDEX('FRS CC Master'!A:A,MATCH(WORKORDERS!$Q294*1,'FRS CC Master'!$C:$C,0)),WORKORDERS!$L294)","v":"Trades and Applied Technology"},{"$f":"IFERROR(VLOOKUP($A294,'Work Order Master'!$K:$Q,7,FALSE),\"Remove\")","v":"N"}]
["12975-1-1","TAT Welding","Active","12975-1","TAT Welding","(blank)","2975","Welding","290","Trades and Applied Technology","290","Trades and Applied Technology","(blank)","208","Instruction","no",{"$f":"IFERROR(INDEX('Work Order Master'!$S:$S,MATCH(A295,'Work Order Master'!$K:$K,0)),\"New\")","v":3780},{"$f":"IFERROR(INDEX('Work Order Master'!T:T,MATCH(WORKORDERS!$Q295,'Work Order Master'!$S:$S,0)),Q295)","v":"WELDING"},{"$f":"IFERROR(INDEX('FRS CC Master'!A:A,MATCH(WORKORDERS!$Q295*1,'FRS CC Master'!$C:$C,0)),WORKORDERS!$L295)","v":"Trades and Applied Technology"},{"$f":"IFERROR(VLOOKUP($A295,'Work Order Master'!$K:$Q,7,FALSE),\"Remove\")","v":"N"}]
["12975-2-1","TAT Welding - Cowichan","Active","12975-2","TAT Welding - Cowichan","(blank)","2975","Welding","290","Trades and Applied Technology","290","Trades and Applied Technology","(blank)","208","Instruction","no",{"$f":"IFERROR(INDEX('Work Order Master'!$S:$S,MATCH(A296,'Work Order Master'!$K:$K,0)),\"New\")","v":3781},{"$f":"IFERROR(INDEX('Work Order Master'!T:T,MATCH(WORKORDERS!$Q296,'Work Order Master'!$S:$S,0)),Q296)","v":"WELD FOUNDATION COWICHAN"},{"$f":"IFERROR(INDEX('FRS CC Master'!A:A,MATCH(WORKORDERS!$Q296*1,'FRS CC Master'!$C:$C,0)),WORKORDERS!$L296)","v":"Trades and Applied Technology"},{"$f":"IFERROR(VLOOKUP($A296,'Work Order Master'!$K:$Q,7,FALSE),\"Remove\")","v":"N"}]
["12975-3-1","TAT Welding - Powell River","Active","12975-3","TAT Welding - Powell River","(blank)","2975","Welding","290","Trades and Applied Technology","290","Trades and Applied Technology","(blank)","208","Instruction","no",{"$f":"IFERROR(INDEX('Work Order Master'!$S:$S,MATCH(A297,'Work Order Master'!$K:$K,0)),\"New\")","v":4031},{"$f":"IFERROR(INDEX('Work Order Master'!T:T,MATCH(WORKORDERS!$Q297,'Work Order Master'!$S:$S,0)),Q297)","v":"WELDING-POWELL RIVER"},{"$f":"IFERROR(INDEX('FRS CC Master'!A:A,MATCH(WORKORDERS!$Q297*1,'FRS CC Master'!$C:$C,0)),WORKORDERS!$L297)","v":"Trades and Applied Technology"},{"$f":"IFERROR(VLOOKUP($A297,'Work Order Master'!$K:$Q,7,FALSE),\"Remove\")","v":"N"}]
["13500-1-1","IEE Indigenous Education and Engagement","Active","13500-1","IEE Indigenous Education and Engagement","(blank)","3500","Indigenous Education and Engagement","350","Indigenous Education and Engagement","350","Indigenous Education and Engagement","(blank)","200","Academic Administration","no",{"$f":"IFERROR(INDEX('Work Order Master'!$S:$S,MATCH(A298,'Work Order Master'!$K:$K,0)),\"New\")","v":6930},{"$f":"IFERROR(INDEX('Work Order Master'!T:T,MATCH(WORKORDERS!$Q298,'Work Order Master'!$S:$S,0)),Q298)","v":"DIRECTOR-INDIGENOUS EDUC."},{"$f":"IFERROR(INDEX('FRS CC Master'!A:A,MATCH(WORKORDERS!$Q298*1,'FRS CC Master'!$C:$C,0)),WORKORDERS!$L298)","v":"Indigenous Education and Engagement"},{"$f":"IFERROR(VLOOKUP($A298,'Work Order Master'!$K:$Q,7,FALSE),\"Remove\")","v":"N"}]
["13501-1-1","IEE Indigenous Education","Active","13501-1","IEE Indigenous Education and Engagement - Initiatives","(blank)","3501","Indigenous Education and Engagement - Initiatives","350","Indigenous Education and Engagement","350","Indigenous Education and Engagement","(blank)","200","Academic Administration","no",{"$f":"IFERROR(INDEX('Work Order Master'!$S:$S,MATCH(A299,'Work Order Master'!$K:$K,0)),\"New\")","v":6931},{"$f":"IFERROR(INDEX('Work Order Master'!T:T,MATCH(WORKORDERS!$Q299,'Work Order Master'!$S:$S,0)),Q299)","v":"INDIGENOUS EDUCATION"},{"$f":"IFERROR(INDEX('FRS CC Master'!A:A,MATCH(WORKORDERS!$Q299*1,'FRS CC Master'!$C:$C,0)),WORKORDERS!$L299)","v":"Indigenous Education and Engagement"},{"$f":"IFERROR(VLOOKUP($A299,'Work Order Master'!$K:$Q,7,FALSE),\"Remove\")","v":"N"}]
["13505-1-1","IEE AUB - ACP Partnership","Active","13505-1","IEE Indigenous University Bridging - ACP Partnership","(blank)","3505","Indigenous University Bridging - ACP Partnership","350","Indigenous Education and Engagement","350","Indigenous Education and Engagement","(blank)","200","Academic Administration","no",{"$f":"IFERROR(INDEX('Work Order Master'!$S:$S,MATCH(A300,'Work Order Master'!$K:$K,0)),\"New\")","v":6932},{"$f":"IFERROR(INDEX('Work Order Master'!T:T,MATCH(WORKORDERS!$Q300,'Work Order Master'!$S:$S,0)),Q300)","v":"INDIGENOUS INTERNSHIP"},{"$f":"IFERROR(INDEX('FRS CC Master'!A:A,MATCH(WORKORDERS!$Q300*1,'FRS CC Master'!$C:$C,0)),WORKORDERS!$L300)","v":"Indigenous Education and Engagement"},{"$f":"IFERROR(VLOOKUP($A300,'Work Order Master'!$K:$Q,7,FALSE),\"Remove\")","v":"N"}]
["13600-1-1","LIB Library - Department","Active","13600-1","LIB Library - Department","(blank)","3600","Library","360","Library","360","Library","(blank)","222","Library Services","no",{"$f":"IFERROR(INDEX('Work Order Master'!$S:$S,MATCH(A301,'Work Order Master'!$K:$K,0)),\"New\")","v":6800},{"$f":"IFERROR(INDEX('Work Order Master'!T:T,MATCH(WORKORDERS!$Q301,'Work Order Master'!$S:$S,0)),Q301)","v":"LIBRARY"},{"$f":"IFERROR(INDEX('FRS CC Master'!A:A,MATCH(WORKORDERS!$Q301*1,'FRS CC Master'!$C:$C,0)),WORKORDERS!$L301)","v":"Library"},{"$f":"IFERROR(VLOOKUP($A301,'Work Order Master'!$K:$Q,7,FALSE),\"Remove\")","v":"N"}]
["13600-2-1","LIB Library - Books and Periodicals (non-capital)","Active","13600-2","LIB Library - Institutional","(blank)","3600","Library","360","Library","360","Library","(blank)","222","Library Services","no",{"$f":"IFERROR(INDEX('Work Order Master'!$S:$S,MATCH(A302,'Work Order Master'!$K:$K,0)),\"New\")","v":6804},{"$f":"IFERROR(INDEX('Work Order Master'!T:T,MATCH(WORKORDERS!$Q302,'Work Order Master'!$S:$S,0)),Q302)","v":"LIBRARY BOOKS,PERIODICALS"},{"$f":"IFERROR(INDEX('FRS CC Master'!A:A,MATCH(WORKORDERS!$Q302*1,'FRS CC Master'!$C:$C,0)),WORKORDERS!$L302)","v":"Library"},{"$f":"IFERROR(VLOOKUP($A302,'Work Order Master'!$K:$Q,7,FALSE),\"Remove\")","v":"N"}]
["13600-2-2","LIB Library - Non-Recurring licensing","Active","13600-2","LIB Library - Institutional","(blank)","3600","Library","360","Library","360","Library","(blank)","222","Library Services","no",{"$f":"IFERROR(INDEX('Work Order Master'!$S:$S,MATCH(A303,'Work Order Master'!$K:$K,0)),\"New\")","v":6802},{"$f":"IFERROR(INDEX('Work Order Master'!T:T,MATCH(WORKORDERS!$Q303,'Work Order Master'!$S:$S,0)),Q303)","v":"LIBRARY NON RECURRING"},{"$f":"IFERROR(INDEX('FRS CC Master'!A:A,MATCH(WORKORDERS!$Q303*1,'FRS CC Master'!$C:$C,0)),WORKORDERS!$L303)","v":"Library"},{"$f":"IFERROR(VLOOKUP($A303,'Work Order Master'!$K:$Q,7,FALSE),\"Remove\")","v":"N"}]
["13600-2-3","LIB Library - Photo ID","Active","13600-2","LIB Library - Institutional","(blank)","3600","Library","360","Library","360","Library","(blank)","222","Library Services","no",{"$f":"IFERROR(INDEX('Work Order Master'!$S:$S,MATCH(A304,'Work Order Master'!$K:$K,0)),\"New\")","v":6815},{"$f":"IFERROR(INDEX('Work Order Master'!T:T,MATCH(WORKORDERS!$Q304,'Work Order Master'!$S:$S,0)),Q304)","v":"PHOTO ID"},{"$f":"IFERROR(INDEX('FRS CC Master'!A:A,MATCH(WORKORDERS!$Q304*1,'FRS CC Master'!$C:$C,0)),WORKORDERS!$L304)","v":"Library"},{"$f":"IFERROR(VLOOKUP($A304,'Work Order Master'!$K:$Q,7,FALSE),\"Remove\")","v":"N"}]
["13600-2-4","LIB Library - Special Collections","Active","13600-2","LIB Library - Institutional","(blank)","3600","Library","360","Library","360","Library","(blank)","222","Library Services","no",{"$f":"IFERROR(INDEX('Work Order Master'!$S:$S,MATCH(A305,'Work Order Master'!$K:$K,0)),\"New\")","v":6810},{"$f":"IFERROR(INDEX('Work Order Master'!T:T,MATCH(WORKORDERS!$Q305,'Work Order Master'!$S:$S,0)),Q305)","v":"SPECIAL COLLECTIONS"},{"$f":"IFERROR(INDEX('FRS CC Master'!A:A,MATCH(WORKORDERS!$Q305*1,'FRS CC Master'!$C:$C,0)),WORKORDERS!$L305)","v":"Library"},{"$f":"IFERROR(VLOOKUP($A305,'Work Order Master'!$K:$Q,7,FALSE),\"Remove\")","v":"N"}]
["13610-1-1","LIB Library SSF - Digital Access","Active","13610-1","LIB Library SSF - Student Service Fee project","(blank)","3610","Library - Initiatives","360","Library","360","Library","(blank)","222","Library Services","no",{"$f":"IFERROR(INDEX('Work Order Master'!$S:$S,MATCH(A306,'Work Order Master'!$K:$K,0)),\"New\")","v":6820},{"$f":"IFERROR(INDEX('Work Order Master'!T:T,MATCH(WORKORDERS!$Q306,'Work Order Master'!$S:$S,0)),Q306)","v":"SSF DIGITAL ACCESS"},{"$f":"IFERROR(INDEX('FRS CC Master'!A:A,MATCH(WORKORDERS!$Q306*1,'FRS CC Master'!$C:$C,0)),WORKORDERS!$L306)","v":"Library"},{"$f":"IFERROR(VLOOKUP($A306,'Work Order Master'!$K:$Q,7,FALSE),\"Remove\")","v":"N"}]
["13700-1-1","REG Registration","Active","13700-1","REG Registration","(blank)","3700","Registration","370","Registration Services","370","Registration Services","(blank)","200","Academic Administration","no",{"$f":"IFERROR(INDEX('Work Order Master'!$S:$S,MATCH(A307,'Work Order Master'!$K:$K,0)),\"New\")","v":6900},{"$f":"IFERROR(INDEX('Work Order Master'!T:T,MATCH(WORKORDERS!$Q307,'Work Order Master'!$S:$S,0)),Q307)","v":"REGISTRATION"},{"$f":"IFERROR(INDEX('FRS CC Master'!A:A,MATCH(WORKORDERS!$Q307*1,'FRS CC Master'!$C:$C,0)),WORKORDERS!$L307)","v":"Registration Services"},{"$f":"IFERROR(VLOOKUP($A307,'Work Order Master'!$K:$Q,7,FALSE),\"Remove\")","v":"N"}]
["13705-1-1","REG Convocation","Active","13705-1","REG Convocation","(blank)","3705","Convocation","370","Registration Services","370","Registration Services","(blank)","200","Academic Administration","no",{"$f":"IFERROR(INDEX('Work Order Master'!$S:$S,MATCH(A308,'Work Order Master'!$K:$K,0)),\"New\")","v":6905},{"$f":"IFERROR(INDEX('Work Order Master'!T:T,MATCH(WORKORDERS!$Q308,'Work Order Master'!$S:$S,0)),Q308)","v":"CONVOCATION"},{"$f":"IFERROR(INDEX('FRS CC Master'!A:A,MATCH(WORKORDERS!$Q308*1,'FRS CC Master'!$C:$C,0)),WORKORDERS!$L308)","v":"Registration Services"},{"$f":"IFERROR(VLOOKUP($A308,'Work Order Master'!$K:$Q,7,FALSE),\"Remove\")","v":"N"}]
["13730-1-1","REG Admissions & Registration","Parked","13730-1","REG Admissions & Registration","(blank)","3730","Admissions & Registration","373","Admissions & Registration","370","Registration Services","(blank)","200","Academic Administration","no",{"$f":"IFERROR(INDEX('Work Order Master'!$S:$S,MATCH(A309,'Work Order Master'!$K:$K,0)),\"New\")","v":"New"},{"$f":"IFERROR(INDEX('Work Order Master'!T:T,MATCH(WORKORDERS!$Q309,'Work Order Master'!$S:$S,0)),Q309)","v":"New"},{"$f":"IFERROR(INDEX('FRS CC Master'!A:A,MATCH(WORKORDERS!$Q309*1,'FRS CC Master'!$C:$C,0)),WORKORDERS!$L309)","v":"Registration Services"},{"$f":"IFERROR(VLOOKUP($A309,'Work Order Master'!$K:$Q,7,FALSE),\"Remove\")","v":"P"}]
["13740-1-1","REG Records & Registration Systems","Parked","13740-1","REG Records & Registration Systems","(blank)","3740","Records & Registration Systems","374","Records & Registration Systems","370","Registration Services","(blank)","200","Academic Administration","no",{"$f":"IFERROR(INDEX('Work Order Master'!$S:$S,MATCH(A310,'Work Order Master'!$K:$K,0)),\"New\")","v":"New"},{"$f":"IFERROR(INDEX('Work Order Master'!T:T,MATCH(WORKORDERS!$Q310,'Work Order Master'!$S:$S,0)),Q310)","v":"New"},{"$f":"IFERROR(INDEX('FRS CC Master'!A:A,MATCH(WORKORDERS!$Q310*1,'FRS CC Master'!$C:$C,0)),WORKORDERS!$L310)","v":"Registration Services"},{"$f":"IFERROR(VLOOKUP($A310,'Work Order Master'!$K:$Q,7,FALSE),\"Remove\")","v":"P"}]
["13750-1-1","REG Recruitment & Advising","Active","13750-1","REG Recruitment & Advising","(blank)","3750","Recruitment & Advising","375","Recruitment & Advising","370","Registration Services","(blank)","200","Academic Administration","no",{"$f":"IFERROR(INDEX('Work Order Master'!$S:$S,MATCH(A311,'Work Order Master'!$K:$K,0)),\"New\")","v":6901},{"$f":"IFERROR(INDEX('Work Order Master'!T:T,MATCH(WORKORDERS!$Q311,'Work Order Master'!$S:$S,0)),Q311)","v":"Recruitment & Advising"},{"$f":"IFERROR(INDEX('FRS CC Master'!A:A,MATCH(WORKORDERS!$Q311*1,'FRS CC Master'!$C:$C,0)),WORKORDERS!$L311)","v":"Registration Services"},{"$f":"IFERROR(VLOOKUP($A311,'Work Order Master'!$K:$Q,7,FALSE),\"Remove\")","v":"N"}]
["14000-1-1","PVPA - AVPA Office","Active","14000-1","PVPA - AVPA Office","(blank)","4000","AVPA - Office","200","Provost and VP Academic - Office","200","Provost and VP Academic - Office","(blank)","200","Academic Administration","no",{"$f":"IFERROR(INDEX('Work Order Master'!$S:$S,MATCH(A312,'Work Order Master'!$K:$K,0)),\"New\")","v":1012},{"$f":"IFERROR(INDEX('Work Order Master'!T:T,MATCH(WORKORDERS!$Q312,'Work Order Master'!$S:$S,0)),Q312)","v":"ASSOCIATE VP ACADEMIC"},{"$f":"IFERROR(INDEX('FRS CC Master'!A:A,MATCH(WORKORDERS!$Q312*1,'FRS CC Master'!$C:$C,0)),WORKORDERS!$L312)","v":"Provost VP Academic "},{"$f":"IFERROR(VLOOKUP($A312,'Work Order Master'!$K:$Q,7,FALSE),\"Remove\")","v":"N"}]
["14000-1-2","PVPA - AVPA Interim AVPA Professional Development","Active","14000-1","PVPA - AVPA Office","(blank)","4000","AVPA - Office","200","Provost and VP Academic - Office","200","Provost and VP Academic - Office","(blank)","200","Academic Administration","no",{"$f":"IFERROR(INDEX('Work Order Master'!$S:$S,MATCH(A313,'Work Order Master'!$K:$K,0)),\"New\")","v":1019},{"$f":"IFERROR(INDEX('Work Order Master'!T:T,MATCH(WORKORDERS!$Q313,'Work Order Master'!$S:$S,0)),Q313)","v":"ACTING ASSOC. VPA - PD"},{"$f":"IFERROR(INDEX('FRS CC Master'!A:A,MATCH(WORKORDERS!$Q313*1,'FRS CC Master'!$C:$C,0)),WORKORDERS!$L313)","v":"Provost VP Academic "},{"$f":"IFERROR(VLOOKUP($A313,'Work Order Master'!$K:$Q,7,FALSE),\"Remove\")","v":"N"}]
["14000-2-1","PVPA - AVPA Business Case Office","Parked","14000-2","PVPA - AVPA Business Case Office","(blank)","4000","AVPA - Office","200","Provost and VP Academic - Office","200","Provost and VP Academic - Office","(blank)","200","Academic Administration","no",{"$f":"IFERROR(INDEX('Work Order Master'!$S:$S,MATCH(A314,'Work Order Master'!$K:$K,0)),\"New\")","v":"New"},{"$f":"IFERROR(INDEX('Work Order Master'!T:T,MATCH(WORKORDERS!$Q314,'Work Order Master'!$S:$S,0)),Q314)","v":"New"},{"$f":"IFERROR(INDEX('FRS CC Master'!A:A,MATCH(WORKORDERS!$Q314*1,'FRS CC Master'!$C:$C,0)),WORKORDERS!$L314)","v":"Provost and VP Academic - Office"},{"$f":"IFERROR(VLOOKUP($A314,'Work Order Master'!$K:$Q,7,FALSE),\"Remove\")","v":"P"}]
["14010-1-1","PVPA-CAU AVPA Initiatives","Active","14010-1","PVPA-CAU AVPA Initiatives","(blank)","4010","AVPA Initiatives","202","AVP Academic Initiatives","201","PVPA - Centralized Academic Units","(blank)","200","Academic Administration","no",{"$f":"IFERROR(INDEX('Work Order Master'!$S:$S,MATCH(A315,'Work Order Master'!$K:$K,0)),\"New\")","v":1038},{"$f":"IFERROR(INDEX('Work Order Master'!T:T,MATCH(WORKORDERS!$Q315,'Work Order Master'!$S:$S,0)),Q315)","v":"AVPA INITIATIVES"},{"$f":"IFERROR(INDEX('FRS CC Master'!A:A,MATCH(WORKORDERS!$Q315*1,'FRS CC Master'!$C:$C,0)),WORKORDERS!$L315)","v":"Provost VP Academic "},{"$f":"IFERROR(VLOOKUP($A315,'Work Order Master'!$K:$Q,7,FALSE),\"Remove\")","v":"N"}]
["14010-2-1","PVPA-CAU AVPA Initiatives - Writing Centre","Active","14010-2","PVPA-CAU AVPA Initiatives - Writing Centre","(blank)","4010","AVPA Initiatives","202","AVP Academic Initiatives","201","PVPA - Centralized Academic Units","(blank)","210","Writing Centre","no",{"$f":"IFERROR(INDEX('Work Order Master'!$S:$S,MATCH(A316,'Work Order Master'!$K:$K,0)),\"New\")","v":1033},{"$f":"IFERROR(INDEX('Work Order Master'!T:T,MATCH(WORKORDERS!$Q316,'Work Order Master'!$S:$S,0)),Q316)","v":"WRITING CENTRE"},{"$f":"IFERROR(INDEX('FRS CC Master'!A:A,MATCH(WORKORDERS!$Q316*1,'FRS CC Master'!$C:$C,0)),WORKORDERS!$L316)","v":"Provost VP Academic "},{"$f":"IFERROR(VLOOKUP($A316,'Work Order Master'!$K:$Q,7,FALSE),\"Remove\")","v":"N"}]
["14010-3-1","PVPA-CAU AVPA Initiatives - Dual Credit","Active","14010-3","PVPA-CAU AVPA Initiatives - Dual Credit","(blank)","4010","AVPA Initiatives","202","AVP Academic Initiatives","201","PVPA - Centralized Academic Units","(blank)","200","Academic Administration","no",{"$f":"IFERROR(INDEX('Work Order Master'!$S:$S,MATCH(A317,'Work Order Master'!$K:$K,0)),\"New\")","v":1035},{"$f":"IFERROR(INDEX('Work Order Master'!T:T,MATCH(WORKORDERS!$Q317,'Work Order Master'!$S:$S,0)),Q317)","v":"DUAL CREDIT"},{"$f":"IFERROR(INDEX('FRS CC Master'!A:A,MATCH(WORKORDERS!$Q317*1,'FRS CC Master'!$C:$C,0)),WORKORDERS!$L317)","v":"Provost VP Academic "},{"$f":"IFERROR(VLOOKUP($A317,'Work Order Master'!$K:$Q,7,FALSE),\"Remove\")","v":"N"}]
["14100-1-1","CIEL Centre for Innovation and Excellence in Learning","Active","14100-1","CIEL Centre for Innovation and Excellence in Learning","(blank)","4100","Centre for Innovation and Excellence in Learning","410","Centre for Innovation and Excellence in Learning","410","Centre for Innovation and Excellence in Learning","(blank)","200","Academic Administration","no",{"$f":"IFERROR(INDEX('Work Order Master'!$S:$S,MATCH(A318,'Work Order Master'!$K:$K,0)),\"New\")","v":6601},{"$f":"IFERROR(INDEX('Work Order Master'!T:T,MATCH(WORKORDERS!$Q318,'Work Order Master'!$S:$S,0)),Q318)","v":"CENTRE FOR IEL"},{"$f":"IFERROR(INDEX('FRS CC Master'!A:A,MATCH(WORKORDERS!$Q318*1,'FRS CC Master'!$C:$C,0)),WORKORDERS!$L318)","v":"Centre for Innovation and Excellence in Learning"},{"$f":"IFERROR(VLOOKUP($A318,'Work Order Master'!$K:$Q,7,FALSE),\"Remove\")","v":"N"}]
["14200-1-1","PVPA-CAU UPA University Planning and Analysis","Active","14200-1","PVPA-CAU UPA University Planning and Analysis","(blank)","4200","University Planning and Analysis","205","PVPA University Planning and Analysis","201","PVPA - Centralized Academic Units","(blank)","200","Academic Administration","no",{"$f":"IFERROR(INDEX('Work Order Master'!$S:$S,MATCH(A319,'Work Order Master'!$K:$K,0)),\"New\")","v":1015},{"$f":"IFERROR(INDEX('Work Order Master'!T:T,MATCH(WORKORDERS!$Q319,'Work Order Master'!$S:$S,0)),Q319)","v":"UNIVERSITY PLAN/ANALYSIS"},{"$f":"IFERROR(INDEX('FRS CC Master'!A:A,MATCH(WORKORDERS!$Q319*1,'FRS CC Master'!$C:$C,0)),WORKORDERS!$L319)","v":"Provost VP Academic "},{"$f":"IFERROR(VLOOKUP($A319,'Work Order Master'!$K:$Q,7,FALSE),\"Remove\")","v":"N"}]
["14205-1-1","PVPA-CAU UPA Programs - Review","Active","14205-1","PVPA-CAU UPA Programs - Review","(blank)","4205","UPA Programs","205","PVPA University Planning and Analysis","201","PVPA - Centralized Academic Units","(blank)","218","Program Review","no",{"$f":"IFERROR(INDEX('Work Order Master'!$S:$S,MATCH(A320,'Work Order Master'!$K:$K,0)),\"New\")","v":1016},{"$f":"IFERROR(INDEX('Work Order Master'!T:T,MATCH(WORKORDERS!$Q320,'Work Order Master'!$S:$S,0)),Q320)","v":"PROGRAM REVIEW"},{"$f":"IFERROR(INDEX('FRS CC Master'!A:A,MATCH(WORKORDERS!$Q320*1,'FRS CC Master'!$C:$C,0)),WORKORDERS!$L320)","v":"Provost VP Academic "},{"$f":"IFERROR(VLOOKUP($A320,'Work Order Master'!$K:$Q,7,FALSE),\"Remove\")","v":"N"}]
["14205-2-1","PVPA-CAU UPA Programs - Development","Parked","14205-2","PVPA-CAU UPA Programs - Development","(blank)","4205","UPA Programs","205","PVPA University Planning and Analysis","201","PVPA - Centralized Academic Units","(blank)","200","Academic Administration","no",{"$f":"IFERROR(INDEX('Work Order Master'!$S:$S,MATCH(A321,'Work Order Master'!$K:$K,0)),\"New\")","v":"New"},{"$f":"IFERROR(INDEX('Work Order Master'!T:T,MATCH(WORKORDERS!$Q321,'Work Order Master'!$S:$S,0)),Q321)","v":"New"},{"$f":"IFERROR(INDEX('FRS CC Master'!A:A,MATCH(WORKORDERS!$Q321*1,'FRS CC Master'!$C:$C,0)),WORKORDERS!$L321)","v":"PVPA - Centralized Academic Units"},{"$f":"IFERROR(VLOOKUP($A321,'Work Order Master'!$K:$Q,7,FALSE),\"Remove\")","v":"P"}]
["14210-1-1","PVPA-CAU UPA Surveys","Parked","14210-1","PVPA-CAU UPA Surveys","(blank)","4210","UPA Surveys","205","PVPA University Planning and Analysis","201","PVPA - Centralized Academic Units","(blank)","200","Academic Administration","no",{"$f":"IFERROR(INDEX('Work Order Master'!$S:$S,MATCH(A322,'Work Order Master'!$K:$K,0)),\"New\")","v":"New"},{"$f":"IFERROR(INDEX('Work Order Master'!T:T,MATCH(WORKORDERS!$Q322,'Work Order Master'!$S:$S,0)),Q322)","v":"New"},{"$f":"IFERROR(INDEX('FRS CC Master'!A:A,MATCH(WORKORDERS!$Q322*1,'FRS CC Master'!$C:$C,0)),WORKORDERS!$L322)","v":"PVPA - Centralized Academic Units"},{"$f":"IFERROR(VLOOKUP($A322,'Work Order Master'!$K:$Q,7,FALSE),\"Remove\")","v":"P"}]
["14210-2-1","PVPA-CAU UPA Surveys - Students - NSSE","Parked","14210-2","PVPA-CAU UPA Surveys - Students","(blank)","4210","UPA Surveys","205","PVPA University Planning and Analysis","201","PVPA - Centralized Academic Units","(blank)","200","Academic Administration","no",{"$f":"IFERROR(INDEX('Work Order Master'!$S:$S,MATCH(A323,'Work Order Master'!$K:$K,0)),\"New\")","v":"New"},{"$f":"IFERROR(INDEX('Work Order Master'!T:T,MATCH(WORKORDERS!$Q323,'Work Order Master'!$S:$S,0)),Q323)","v":"New"},{"$f":"IFERROR(INDEX('FRS CC Master'!A:A,MATCH(WORKORDERS!$Q323*1,'FRS CC Master'!$C:$C,0)),WORKORDERS!$L323)","v":"PVPA - Centralized Academic Units"},{"$f":"IFERROR(VLOOKUP($A323,'Work Order Master'!$K:$Q,7,FALSE),\"Remove\")","v":"P"}]
["14210-2-2","PVPA-CAU UPA Surveys - Students - BGE","Parked","14210-2","PVPA-CAU UPA Surveys - Students","(blank)","4210","UPA Surveys","205","PVPA University Planning and Analysis","201","PVPA - Centralized Academic Units","(blank)","200","Academic Administration",{"$f":"IF(OR(A324=A323,A324=A325),\"yes\",\"no\")","v":"no"},{"$f":"IFERROR(INDEX('Work Order Master'!$S:$S,MATCH(A324,'Work Order Master'!$K:$K,0)),\"New\")","v":"New"},{"$f":"IFERROR(INDEX('Work Order Master'!T:T,MATCH(WORKORDERS!$Q324,'Work Order Master'!$S:$S,0)),Q324)","v":"New"},{"$f":"IFERROR(INDEX('FRS CC Master'!A:A,MATCH(WORKORDERS!$Q324*1,'FRS CC Master'!$C:$C,0)),WORKORDERS!$L324)","v":"PVPA - Centralized Academic Units"},{"$f":"IFERROR(VLOOKUP($A324,'Work Order Master'!$K:$Q,7,FALSE),\"Remove\")","v":"P"}]
["14210-3-1","PVPA-CAU UPA Surveys - Institutional","Parked","14210-3","PVPA-CAU UPA Surveys - Institutional","(blank)","4210","UPA Surveys","205","PVPA University Planning and Analysis","201","PVPA - Centralized Academic Units","(blank)","200","Academic Administration","no",{"$f":"IFERROR(INDEX('Work Order Master'!$S:$S,MATCH(A325,'Work Order Master'!$K:$K,0)),\"New\")","v":"New"},{"$f":"IFERROR(INDEX('Work Order Master'!T:T,MATCH(WORKORDERS!$Q325,'Work Order Master'!$S:$S,0)),Q325)","v":"New"},{"$f":"IFERROR(INDEX('FRS CC Master'!A:A,MATCH(WORKORDERS!$Q325*1,'FRS CC Master'!$C:$C,0)),WORKORDERS!$L325)","v":"PVPA - Centralized Academic Units"},{"$f":"IFERROR(VLOOKUP($A325,'Work Order Master'!$K:$Q,7,FALSE),\"Remove\")","v":"P"}]
["14210-3-2","PVPA-CAU UPA Surveys - Institutional - TBD","Parked","14210-3","PVPA-CAU UPA Surveys - Institutional","(blank)","4210","UPA Surveys","205","PVPA University Planning and Analysis","201","PVPA - Centralized Academic Units","(blank)","200","Academic Administration","no",{"$f":"IFERROR(INDEX('Work Order Master'!$S:$S,MATCH(A326,'Work Order Master'!$K:$K,0)),\"New\")","v":"New"},{"$f":"IFERROR(INDEX('Work Order Master'!T:T,MATCH(WORKORDERS!$Q326,'Work Order Master'!$S:$S,0)),Q326)","v":"New"},{"$f":"IFERROR(INDEX('FRS CC Master'!A:A,MATCH(WORKORDERS!$Q326*1,'FRS CC Master'!$C:$C,0)),WORKORDERS!$L326)","v":"PVPA - Centralized Academic Units"},{"$f":"IFERROR(VLOOKUP($A326,'Work Order Master'!$K:$Q,7,FALSE),\"Remove\")","v":"P"}]
["14400-1-1","CC Academic Administrator, Cowichan","Parked","14400-1","CC Academic Administrator, Cowichan","(blank)","4400","Academic Administrator's Office","440","Cowichan Campus Administration","440","Cowichan Campus","(blank)","200","Academic Administration","no",{"$f":"IFERROR(INDEX('Work Order Master'!$S:$S,MATCH(A327,'Work Order Master'!$K:$K,0)),\"New\")","v":"New"},{"$f":"IFERROR(INDEX('Work Order Master'!T:T,MATCH(WORKORDERS!$Q327,'Work Order Master'!$S:$S,0)),Q327)","v":"New"},{"$f":"IFERROR(INDEX('FRS CC Master'!A:A,MATCH(WORKORDERS!$Q327*1,'FRS CC Master'!$C:$C,0)),WORKORDERS!$L327)","v":"Cowichan Campus"},{"$f":"IFERROR(VLOOKUP($A327,'Work Order Master'!$K:$Q,7,FALSE),\"Remove\")","v":"P"}]
["14405-1-1","CC Campus Administration","Active","14405-1","CC Campus Administration","(blank)","4405","Cowichan Campus Administration","440","Cowichan Campus Administration","440","Cowichan Campus","(blank)","200","Academic Administration","no",{"$f":"IFERROR(INDEX('Work Order Master'!$S:$S,MATCH(A328,'Work Order Master'!$K:$K,0)),\"New\")","v":7300},{"$f":"IFERROR(INDEX('Work Order Master'!T:T,MATCH(WORKORDERS!$Q328,'Work Order Master'!$S:$S,0)),Q328)","v":"ADMINISTRATION"},{"$f":"IFERROR(INDEX('FRS CC Master'!A:A,MATCH(WORKORDERS!$Q328*1,'FRS CC Master'!$C:$C,0)),WORKORDERS!$L328)","v":"Cowichan Campus"},{"$f":"IFERROR(VLOOKUP($A328,'Work Order Master'!$K:$Q,7,FALSE),\"Remove\")","v":"N"}]
["14405-2-1","CC Campus Initiatives","Active","14405-2","CC Campus Initiatives","(blank)","4405","Cowichan Campus Administration","440","Cowichan Campus Administration","440","Cowichan Campus","(blank)","200","Academic Administration","no",{"$f":"IFERROR(INDEX('Work Order Master'!$S:$S,MATCH(A329,'Work Order Master'!$K:$K,0)),\"New\")","v":7399},{"$f":"IFERROR(INDEX('Work Order Master'!T:T,MATCH(WORKORDERS!$Q329,'Work Order Master'!$S:$S,0)),Q329)","v":"COWICHAN NEW INITIATIVES"},{"$f":"IFERROR(INDEX('FRS CC Master'!A:A,MATCH(WORKORDERS!$Q329*1,'FRS CC Master'!$C:$C,0)),WORKORDERS!$L329)","v":"Cowichan Campus"},{"$f":"IFERROR(VLOOKUP($A329,'Work Order Master'!$K:$Q,7,FALSE),\"Remove\")","v":"N"}]
["14408-1-1","CC Student Services","Active","14408-1","CC Cowichan Student Services","(blank)","4408","Cowichan Student Services","440","Cowichan Campus Administration","440","Cowichan Campus","(blank)","217","Student Support and Services","no",{"$f":"IFERROR(INDEX('Work Order Master'!$S:$S,MATCH(A330,'Work Order Master'!$K:$K,0)),\"New\")","v":7380},{"$f":"IFERROR(INDEX('Work Order Master'!T:T,MATCH(WORKORDERS!$Q330,'Work Order Master'!$S:$S,0)),Q330)","v":"STUDENT SERVICE"},{"$f":"IFERROR(INDEX('FRS CC Master'!A:A,MATCH(WORKORDERS!$Q330*1,'FRS CC Master'!$C:$C,0)),WORKORDERS!$L330)","v":"Cowichan Campus"},{"$f":"IFERROR(VLOOKUP($A330,'Work Order Master'!$K:$Q,7,FALSE),\"Remove\")","v":"N"}]
["14408-1-2","CC Student Programs","Active","14408-1","CC Cowichan Student Services","(blank)","4408","Cowichan Student Services","440","Cowichan Campus Administration","440","Cowichan Campus","(blank)","217","Student Support and Services","no",{"$f":"IFERROR(INDEX('Work Order Master'!$S:$S,MATCH(A331,'Work Order Master'!$K:$K,0)),\"New\")","v":7360},{"$f":"IFERROR(INDEX('Work Order Master'!T:T,MATCH(WORKORDERS!$Q331,'Work Order Master'!$S:$S,0)),Q331)","v":"Duncan Student Programs"},{"$f":"IFERROR(INDEX('FRS CC Master'!A:A,MATCH(WORKORDERS!$Q331*1,'FRS CC Master'!$C:$C,0)),WORKORDERS!$L331)","v":"Cowichan Campus"},{"$f":"IFERROR(VLOOKUP($A331,'Work Order Master'!$K:$Q,7,FALSE),\"Remove\")","v":"N"}]
["14408-1-3","CC Student Assessment","Active","14408-1","CC Cowichan Student Services","(blank)","4408","Cowichan Student Services","440","Cowichan Campus Administration","440","Cowichan Campus","(blank)","217","Student Support and Services","no",{"$f":"IFERROR(INDEX('Work Order Master'!$S:$S,MATCH(A332,'Work Order Master'!$K:$K,0)),\"New\")","v":7381},{"$f":"IFERROR(INDEX('Work Order Master'!T:T,MATCH(WORKORDERS!$Q332,'Work Order Master'!$S:$S,0)),Q332)","v":"COWICHAN ASSESSMENT"},{"$f":"IFERROR(INDEX('FRS CC Master'!A:A,MATCH(WORKORDERS!$Q332*1,'FRS CC Master'!$C:$C,0)),WORKORDERS!$L332)","v":"Cowichan Campus"},{"$f":"IFERROR(VLOOKUP($A332,'Work Order Master'!$K:$Q,7,FALSE),\"Remove\")","v":"N"}]
["14410-1-1","CC Campus Operations","Parked","14410-1","CC Cowichan Campus Operations","(blank)","4410","Cowichan Campus Operations","441","Cowichan Campus Operations","440","Cowichan Campus","(blank)","200","Academic Administration","no",{"$f":"IFERROR(INDEX('Work Order Master'!$S:$S,MATCH(A333,'Work Order Master'!$K:$K,0)),\"New\")","v":"New"},{"$f":"IFERROR(INDEX('Work Order Master'!T:T,MATCH(WORKORDERS!$Q333,'Work Order Master'!$S:$S,0)),Q333)","v":"New"},{"$f":"IFERROR(INDEX('FRS CC Master'!A:A,MATCH(WORKORDERS!$Q333*1,'FRS CC Master'!$C:$C,0)),WORKORDERS!$L333)","v":"Cowichan Campus"},{"$f":"IFERROR(VLOOKUP($A333,'Work Order Master'!$K:$Q,7,FALSE),\"Remove\")","v":"P"}]
["14410-2-1","CC Strategic Enrolment Management Committee","Active","14410-2","CC Strategic Enrolment Management Committee","(blank)","4410","Cowichan Campus Operations","441","Cowichan Campus Operations","440","Cowichan Campus","(blank)","200","Academic Administration","no",{"$f":"IFERROR(INDEX('Work Order Master'!$S:$S,MATCH(A334,'Work Order Master'!$K:$K,0)),\"New\")","v":7306},{"$f":"IFERROR(INDEX('Work Order Master'!T:T,MATCH(WORKORDERS!$Q334,'Work Order Master'!$S:$S,0)),Q334)","v":"STRAT ENRL MGMT COMMITTEE"},{"$f":"IFERROR(INDEX('FRS CC Master'!A:A,MATCH(WORKORDERS!$Q334*1,'FRS CC Master'!$C:$C,0)),WORKORDERS!$L334)","v":"Cowichan Campus"},{"$f":"IFERROR(VLOOKUP($A334,'Work Order Master'!$K:$Q,7,FALSE),\"Remove\")","v":"N"}]
["14420-1-1","CC Registration and Admissions","Active","14420-1","CC Cowichan Registration and Admissions","(blank)","4420","Cowichan Registration & Admissions","442","Cowichan Registration & Admissions","440","Cowichan Campus","(blank)","217","Student Support and Services","no",{"$f":"IFERROR(INDEX('Work Order Master'!$S:$S,MATCH(A335,'Work Order Master'!$K:$K,0)),\"New\")","v":7304},{"$f":"IFERROR(INDEX('Work Order Master'!T:T,MATCH(WORKORDERS!$Q335,'Work Order Master'!$S:$S,0)),Q335)","v":"COWICHAN REGIST"},{"$f":"IFERROR(INDEX('FRS CC Master'!A:A,MATCH(WORKORDERS!$Q335*1,'FRS CC Master'!$C:$C,0)),WORKORDERS!$L335)","v":"Cowichan Campus"},{"$f":"IFERROR(VLOOKUP($A335,'Work Order Master'!$K:$Q,7,FALSE),\"Remove\")","v":"N"}]
["14430-1-1","CC Instructional Support","Active","14430-1","CC Cowichan Instruction","(blank)","4430","Cowichan General Instruction","443","Cowichan Faculty Operations","440","Cowichan Campus","(blank)","200","Academic Administration","no",{"$f":"IFERROR(INDEX('Work Order Master'!$S:$S,MATCH(A336,'Work Order Master'!$K:$K,0)),\"New\")","v":7309},{"$f":"IFERROR(INDEX('Work Order Master'!T:T,MATCH(WORKORDERS!$Q336,'Work Order Master'!$S:$S,0)),Q336)","v":"INSTRUCT.SUPPOR"},{"$f":"IFERROR(INDEX('FRS CC Master'!A:A,MATCH(WORKORDERS!$Q336*1,'FRS CC Master'!$C:$C,0)),WORKORDERS!$L336)","v":"Cowichan Campus"},{"$f":"IFERROR(VLOOKUP($A336,'Work Order Master'!$K:$Q,7,FALSE),\"Remove\")","v":"N"}]
["14430-1-2","CC Instructional Support - CYC","Active","14430-1","CC Cowichan Instruction","(blank)","4430","Cowichan General Instruction","443","Cowichan Faculty Operations","440","Cowichan Campus","(blank)","200","Academic Administration","no",{"$f":"IFERROR(INDEX('Work Order Master'!$S:$S,MATCH(A337,'Work Order Master'!$K:$K,0)),\"New\")","v":7305},{"$f":"IFERROR(INDEX('Work Order Master'!T:T,MATCH(WORKORDERS!$Q337,'Work Order Master'!$S:$S,0)),Q337)","v":"CYC- COWICHAN"},{"$f":"IFERROR(INDEX('FRS CC Master'!A:A,MATCH(WORKORDERS!$Q337*1,'FRS CC Master'!$C:$C,0)),WORKORDERS!$L337)","v":"Cowichan Campus"},{"$f":"IFERROR(VLOOKUP($A337,'Work Order Master'!$K:$Q,7,FALSE),\"Remove\")","v":"N"}]
["14430-2-1","CC Indigenous Science","Active","14430-2","CC Indigenous Science","(blank)","4430","Cowichan General Instruction","443","Cowichan Faculty Operations","440","Cowichan Campus","(blank)","208","Instruction","no",{"$f":"IFERROR(INDEX('Work Order Master'!$S:$S,MATCH(A338,'Work Order Master'!$K:$K,0)),\"New\")","v":7311},{"$f":"IFERROR(INDEX('Work Order Master'!T:T,MATCH(WORKORDERS!$Q338,'Work Order Master'!$S:$S,0)),Q338)","v":"CWCHN INDIGENOUS SCIENCE"},{"$f":"IFERROR(INDEX('FRS CC Master'!A:A,MATCH(WORKORDERS!$Q338*1,'FRS CC Master'!$C:$C,0)),WORKORDERS!$L338)","v":"Cowichan Campus"},{"$f":"IFERROR(VLOOKUP($A338,'Work Order Master'!$K:$Q,7,FALSE),\"Remove\")","v":"N"}]
["14435-1-1","CC UP - Arts & Humanities","Active","14435-1","CC University Programs - Arts & Humanities","(blank)","4435","Cowichan University Programs","443","Cowichan Faculty Operations","440","Cowichan Campus","(blank)","208","Instruction","no",{"$f":"IFERROR(INDEX('Work Order Master'!$S:$S,MATCH(A339,'Work Order Master'!$K:$K,0)),\"New\")","v":7394},{"$f":"IFERROR(INDEX('Work Order Master'!T:T,MATCH(WORKORDERS!$Q339,'Work Order Master'!$S:$S,0)),Q339)","v":"COWICHAN UT-ARTS/HUMANITI"},{"$f":"IFERROR(INDEX('FRS CC Master'!A:A,MATCH(WORKORDERS!$Q339*1,'FRS CC Master'!$C:$C,0)),WORKORDERS!$L339)","v":"Cowichan Campus"},{"$f":"IFERROR(VLOOKUP($A339,'Work Order Master'!$K:$Q,7,FALSE),\"Remove\")","v":"N"}]
["14435-2-1","CC UP - Education","Active","14435-2","CC University Programs - Education","(blank)","4435","Cowichan University Programs","443","Cowichan Faculty Operations","440","Cowichan Campus","(blank)","208","Instruction","no",{"$f":"IFERROR(INDEX('Work Order Master'!$S:$S,MATCH(A340,'Work Order Master'!$K:$K,0)),\"New\")","v":7397},{"$f":"IFERROR(INDEX('Work Order Master'!T:T,MATCH(WORKORDERS!$Q340,'Work Order Master'!$S:$S,0)),Q340)","v":"COWICHAN UT - EDUCATION"},{"$f":"IFERROR(INDEX('FRS CC Master'!A:A,MATCH(WORKORDERS!$Q340*1,'FRS CC Master'!$C:$C,0)),WORKORDERS!$L340)","v":"Cowichan Campus"},{"$f":"IFERROR(VLOOKUP($A340,'Work Order Master'!$K:$Q,7,FALSE),\"Remove\")","v":"N"}]
["14435-3-1","CC UP - Health and Human Services","Active","14435-3","CC University Programs - Health and Human Services","(blank)","4435","Cowichan University Programs","443","Cowichan Faculty Operations","440","Cowichan Campus","(blank)","208","Instruction","no",{"$f":"IFERROR(INDEX('Work Order Master'!$S:$S,MATCH(A341,'Work Order Master'!$K:$K,0)),\"New\")","v":7393},{"$f":"IFERROR(INDEX('Work Order Master'!T:T,MATCH(WORKORDERS!$Q341,'Work Order Master'!$S:$S,0)),Q341)","v":"COWICHAN UT- HUMAN SERVICE"},{"$f":"IFERROR(INDEX('FRS CC Master'!A:A,MATCH(WORKORDERS!$Q341*1,'FRS CC Master'!$C:$C,0)),WORKORDERS!$L341)","v":"Cowichan Campus"},{"$f":"IFERROR(VLOOKUP($A341,'Work Order Master'!$K:$Q,7,FALSE),\"Remove\")","v":"N"}]
["14435-4-1","CC UP - Management","Active","14435-4","CC University Programs - Management","(blank)","4435","Cowichan University Programs","443","Cowichan Faculty Operations","440","Cowichan Campus","(blank)","208","Instruction","no",{"$f":"IFERROR(INDEX('Work Order Master'!$S:$S,MATCH(A342,'Work Order Master'!$K:$K,0)),\"New\")","v":7395},{"$f":"IFERROR(INDEX('Work Order Master'!T:T,MATCH(WORKORDERS!$Q342,'Work Order Master'!$S:$S,0)),Q342)","v":"COWICHAN UT - MGMT"},{"$f":"IFERROR(INDEX('FRS CC Master'!A:A,MATCH(WORKORDERS!$Q342*1,'FRS CC Master'!$C:$C,0)),WORKORDERS!$L342)","v":"Cowichan Campus"},{"$f":"IFERROR(VLOOKUP($A342,'Work Order Master'!$K:$Q,7,FALSE),\"Remove\")","v":"N"}]
["14435-5-1","CC UP - Science and Technology","Active","14435-5","CC University Programs - Science and Technology","(blank)","4435","Cowichan University Programs","443","Cowichan Faculty Operations","440","Cowichan Campus","(blank)","208","Instruction","no",{"$f":"IFERROR(INDEX('Work Order Master'!$S:$S,MATCH(A343,'Work Order Master'!$K:$K,0)),\"New\")","v":7391},{"$f":"IFERROR(INDEX('Work Order Master'!T:T,MATCH(WORKORDERS!$Q343,'Work Order Master'!$S:$S,0)),Q343)","v":"COWICHAN UT - SCIENCE"},{"$f":"IFERROR(INDEX('FRS CC Master'!A:A,MATCH(WORKORDERS!$Q343*1,'FRS CC Master'!$C:$C,0)),WORKORDERS!$L343)","v":"Cowichan Campus"},{"$f":"IFERROR(VLOOKUP($A343,'Work Order Master'!$K:$Q,7,FALSE),\"Remove\")","v":"N"}]
["14435-6-1","CC UP - Social Sciences","Active","14435-6","CC University Programs - Social Sciences","(blank)","4435","Cowichan University Programs","443","Cowichan Faculty Operations","440","Cowichan Campus","(blank)","208","Instruction","no",{"$f":"IFERROR(INDEX('Work Order Master'!$S:$S,MATCH(A344,'Work Order Master'!$K:$K,0)),\"New\")","v":7392},{"$f":"IFERROR(INDEX('Work Order Master'!T:T,MATCH(WORKORDERS!$Q344,'Work Order Master'!$S:$S,0)),Q344)","v":"COWICHAN UT - SOCIAL SCI"},{"$f":"IFERROR(INDEX('FRS CC Master'!A:A,MATCH(WORKORDERS!$Q344*1,'FRS CC Master'!$C:$C,0)),WORKORDERS!$L344)","v":"Cowichan Campus"},{"$f":"IFERROR(VLOOKUP($A344,'Work Order Master'!$K:$Q,7,FALSE),\"Remove\")","v":"N"}]
["14600-1-1","PRC Administrator's Office","Active","14600-1","PRC Administrator's Office","(blank)","4600","Powell River Administrator's Office","460","Powell River Campus Administration","460","Powell River Campus","(blank)","200","Academic Administration","no",{"$f":"IFERROR(INDEX('Work Order Master'!$S:$S,MATCH(A345,'Work Order Master'!$K:$K,0)),\"New\")","v":7600},{"$f":"IFERROR(INDEX('Work Order Master'!T:T,MATCH(WORKORDERS!$Q345,'Work Order Master'!$S:$S,0)),Q345)","v":"ADMINISTRATION POW.RIVER"},{"$f":"IFERROR(INDEX('FRS CC Master'!A:A,MATCH(WORKORDERS!$Q345*1,'FRS CC Master'!$C:$C,0)),WORKORDERS!$L345)","v":"Powell River Campus"},{"$f":"IFERROR(VLOOKUP($A345,'Work Order Master'!$K:$Q,7,FALSE),\"Remove\")","v":"N"}]
["14605-1-1","PRC Campus Administration","Active","14605-1","PRC Campus Administration","(blank)","4605","Powell River Campus Administration","460","Powell River Campus Administration","460","Powell River Campus","(blank)","200","Academic Administration","no",{"$f":"IFERROR(INDEX('Work Order Master'!$S:$S,MATCH(A346,'Work Order Master'!$K:$K,0)),\"New\")","v":7605},{"$f":"IFERROR(INDEX('Work Order Master'!T:T,MATCH(WORKORDERS!$Q346,'Work Order Master'!$S:$S,0)),Q346)","v":"CONTRACTS-SUPPORT STAFF"},{"$f":"IFERROR(INDEX('FRS CC Master'!A:A,MATCH(WORKORDERS!$Q346*1,'FRS CC Master'!$C:$C,0)),WORKORDERS!$L346)","v":"Powell River Campus"},{"$f":"IFERROR(VLOOKUP($A346,'Work Order Master'!$K:$Q,7,FALSE),\"Remove\")","v":"N"}]
["14608-1-1","PRC Student Services","Active","14608-1","PRC Student Services","(blank)","4608","Powell River Student Services","460","Powell River Campus Administration","460","Powell River Campus","(blank)","217","Student Support and Services","no",{"$f":"IFERROR(INDEX('Work Order Master'!$S:$S,MATCH(A347,'Work Order Master'!$K:$K,0)),\"New\")","v":7604},{"$f":"IFERROR(INDEX('Work Order Master'!T:T,MATCH(WORKORDERS!$Q347,'Work Order Master'!$S:$S,0)),Q347)","v":"POWELL RIVER ST.SERVICES"},{"$f":"IFERROR(INDEX('FRS CC Master'!A:A,MATCH(WORKORDERS!$Q347*1,'FRS CC Master'!$C:$C,0)),WORKORDERS!$L347)","v":"Powell River Campus"},{"$f":"IFERROR(VLOOKUP($A347,'Work Order Master'!$K:$Q,7,FALSE),\"Remove\")","v":"N"}]
["14608-1-2","PRC Student Programs","Active","14608-1","PRC Student Services","(blank)","4608","Powell River Student Services","460","Powell River Campus Administration","460","Powell River Campus","(blank)","217","Student Support and Services","no",{"$f":"IFERROR(INDEX('Work Order Master'!$S:$S,MATCH(A348,'Work Order Master'!$K:$K,0)),\"New\")","v":7608},{"$f":"IFERROR(INDEX('Work Order Master'!T:T,MATCH(WORKORDERS!$Q348,'Work Order Master'!$S:$S,0)),Q348)","v":"STUDENT PROGRAMS POW.R."},{"$f":"IFERROR(INDEX('FRS CC Master'!A:A,MATCH(WORKORDERS!$Q348*1,'FRS CC Master'!$C:$C,0)),WORKORDERS!$L348)","v":"Powell River Campus"},{"$f":"IFERROR(VLOOKUP($A348,'Work Order Master'!$K:$Q,7,FALSE),\"Remove\")","v":"N"}]
["14608-1-3","PRC Student Services Training Support","Active","14608-1","PRC Student Services","(blank)","4608","Powell River Student Services","460","Powell River Campus Administration","460","Powell River Campus","(blank)","217","Student Support and Services","no",{"$f":"IFERROR(INDEX('Work Order Master'!$S:$S,MATCH(A349,'Work Order Master'!$K:$K,0)),\"New\")","v":7609},{"$f":"IFERROR(INDEX('Work Order Master'!T:T,MATCH(WORKORDERS!$Q349,'Work Order Master'!$S:$S,0)),Q349)","v":"STUDENT SERVICE TRNG SUPP"},{"$f":"IFERROR(INDEX('FRS CC Master'!A:A,MATCH(WORKORDERS!$Q349*1,'FRS CC Master'!$C:$C,0)),WORKORDERS!$L349)","v":"Powell River Campus"},{"$f":"IFERROR(VLOOKUP($A349,'Work Order Master'!$K:$Q,7,FALSE),\"Remove\")","v":"N"}]
["14630-1-1","PRC Computer Lab","Active","14630-1","PRC Instructional Support","(blank)","4630","Powell River General Instruction","463","Powell River Faculty Operations","460","Powell River Campus","(blank)","200","Academic Administration","no",{"$f":"IFERROR(INDEX('Work Order Master'!$S:$S,MATCH(A350,'Work Order Master'!$K:$K,0)),\"New\")","v":7606},{"$f":"IFERROR(INDEX('Work Order Master'!T:T,MATCH(WORKORDERS!$Q350,'Work Order Master'!$S:$S,0)),Q350)","v":"COMPUTER LAB/SERVICES PR"},{"$f":"IFERROR(INDEX('FRS CC Master'!A:A,MATCH(WORKORDERS!$Q350*1,'FRS CC Master'!$C:$C,0)),WORKORDERS!$L350)","v":"Powell River Campus"},{"$f":"IFERROR(VLOOKUP($A350,'Work Order Master'!$K:$Q,7,FALSE),\"Remove\")","v":"N"}]
["14630-1-2","PRC Flexible FTE's","Active","14630-1","PRC Instructional Support","(blank)","4630","Powell River General Instruction","463","Powell River Faculty Operations","460","Powell River Campus","(blank)","200","Academic Administration","no",{"$f":"IFERROR(INDEX('Work Order Master'!$S:$S,MATCH(A351,'Work Order Master'!$K:$K,0)),\"New\")","v":7634},{"$f":"IFERROR(INDEX('Work Order Master'!T:T,MATCH(WORKORDERS!$Q351,'Work Order Master'!$S:$S,0)),Q351)","v":"FLEXIBLE FTE'S POW.RIVER"},{"$f":"IFERROR(INDEX('FRS CC Master'!A:A,MATCH(WORKORDERS!$Q351*1,'FRS CC Master'!$C:$C,0)),WORKORDERS!$L351)","v":"Powell River Campus"},{"$f":"IFERROR(VLOOKUP($A351,'Work Order Master'!$K:$Q,7,FALSE),\"Remove\")","v":"N"}]
["14630-2-1","PRC Human Services","Active","14630-2","PRC Human Services","(blank)","4630","Powell River General Instruction","463","Powell River Faculty Operations","460","Powell River Campus","(blank)","208","Instruction","no",{"$f":"IFERROR(INDEX('Work Order Master'!$S:$S,MATCH(A352,'Work Order Master'!$K:$K,0)),\"New\")","v":7642},{"$f":"IFERROR(INDEX('Work Order Master'!T:T,MATCH(WORKORDERS!$Q352,'Work Order Master'!$S:$S,0)),Q352)","v":"HUMAN SERVICES"},{"$f":"IFERROR(INDEX('FRS CC Master'!A:A,MATCH(WORKORDERS!$Q352*1,'FRS CC Master'!$C:$C,0)),WORKORDERS!$L352)","v":"Powell River Campus"},{"$f":"IFERROR(VLOOKUP($A352,'Work Order Master'!$K:$Q,7,FALSE),\"Remove\")","v":"N"}]
["14630-3-1","PRC Home Care Assistant","Active","14630-3","PRC Home Care Assistant","(blank)","4630","Powell River General Instruction","463","Powell River Faculty Operations","460","Powell River Campus","(blank)","208","Instruction","no",{"$f":"IFERROR(INDEX('Work Order Master'!$S:$S,MATCH(A353,'Work Order Master'!$K:$K,0)),\"New\")","v":7644},{"$f":"IFERROR(INDEX('Work Order Master'!T:T,MATCH(WORKORDERS!$Q353,'Work Order Master'!$S:$S,0)),Q353)","v":"PR HOME CARE ASSISTANT"},{"$f":"IFERROR(INDEX('FRS CC Master'!A:A,MATCH(WORKORDERS!$Q353*1,'FRS CC Master'!$C:$C,0)),WORKORDERS!$L353)","v":"Powell River Campus"},{"$f":"IFERROR(VLOOKUP($A353,'Work Order Master'!$K:$Q,7,FALSE),\"Remove\")","v":"N"}]
["14630-4-1","PRC Dual Credit - SD 47","Active","14630-4","PRC Dual Credit - SD 47","(blank)","4630","Powell River General Instruction","463","Powell River Faculty Operations","460","Powell River Campus","(blank)","208","Instruction","no",{"$f":"IFERROR(INDEX('Work Order Master'!$S:$S,MATCH(A354,'Work Order Master'!$K:$K,0)),\"New\")","v":7643},{"$f":"IFERROR(INDEX('Work Order Master'!T:T,MATCH(WORKORDERS!$Q354,'Work Order Master'!$S:$S,0)),Q354)","v":"DUAL CREDIT - SD47"},{"$f":"IFERROR(INDEX('FRS CC Master'!A:A,MATCH(WORKORDERS!$Q354*1,'FRS CC Master'!$C:$C,0)),WORKORDERS!$L354)","v":"Powell River Campus"},{"$f":"IFERROR(VLOOKUP($A354,'Work Order Master'!$K:$Q,7,FALSE),\"Remove\")","v":"N"}]
["14635-1-1","PRC University Programs","Active","14635-1","PRC University Programs","(blank)","4635","Powell River University Programs","463","Powell River Faculty Operations","460","Powell River Campus","(blank)","208","Instruction","no",{"$f":"IFERROR(INDEX('Work Order Master'!$S:$S,MATCH(A355,'Work Order Master'!$K:$K,0)),\"New\")","v":7640},{"$f":"IFERROR(INDEX('Work Order Master'!T:T,MATCH(WORKORDERS!$Q355,'Work Order Master'!$S:$S,0)),Q355)","v":"UT POWELL RIVER"},{"$f":"IFERROR(INDEX('FRS CC Master'!A:A,MATCH(WORKORDERS!$Q355*1,'FRS CC Master'!$C:$C,0)),WORKORDERS!$L355)","v":"Powell River Campus"},{"$f":"IFERROR(VLOOKUP($A355,'Work Order Master'!$K:$Q,7,FALSE),\"Remove\")","v":"N"}]
["15000-1-1","SRCA Research Office","Active","15000-1","SRCA Scholarship, Research & Creative Activity","(blank)","5000","Scholarship, Research & Creative Activity","500","Scholarship, Research and Creative Activity","500","Scholarship, Research and Creative Activity","(blank)","216","Research Administration","no",{"$f":"IFERROR(INDEX('Work Order Master'!$S:$S,MATCH(A356,'Work Order Master'!$K:$K,0)),\"New\")","v":1020},{"$f":"IFERROR(INDEX('Work Order Master'!T:T,MATCH(WORKORDERS!$Q356,'Work Order Master'!$S:$S,0)),Q356)","v":"RESEARCH OFFICE"},{"$f":"IFERROR(INDEX('FRS CC Master'!A:A,MATCH(WORKORDERS!$Q356*1,'FRS CC Master'!$C:$C,0)),WORKORDERS!$L356)","v":"Scholarship, Research and Creative Activity"},{"$f":"IFERROR(VLOOKUP($A356,'Work Order Master'!$K:$Q,7,FALSE),\"Remove\")","v":"N"}]
["15000-1-2","SRCA AVP Professional Development","Active","15000-1","SRCA Scholarship, Research & Creative Activity","(blank)","5000","Scholarship, Research & Creative Activity","500","Scholarship, Research and Creative Activity","500","Scholarship, Research and Creative Activity","(blank)","216","Research Administration","no",{"$f":"IFERROR(INDEX('Work Order Master'!$S:$S,MATCH(A357,'Work Order Master'!$K:$K,0)),\"New\")","v":1028},{"$f":"IFERROR(INDEX('Work Order Master'!T:T,MATCH(WORKORDERS!$Q357,'Work Order Master'!$S:$S,0)),Q357)","v":"AVP SCH/COMM ENGAGEMT PD"},{"$f":"IFERROR(INDEX('FRS CC Master'!A:A,MATCH(WORKORDERS!$Q357*1,'FRS CC Master'!$C:$C,0)),WORKORDERS!$L357)","v":"Scholarship, Research and Creative Activity"},{"$f":"IFERROR(VLOOKUP($A357,'Work Order Master'!$K:$Q,7,FALSE),\"Remove\")","v":"N"}]
["15001-1-1","SRCA SSF Funds - Experiential Learning","Active","15001-1","SRCA SSF Funds","(blank)","5001","Research Initiatives","500","Scholarship, Research and Creative Activity","500","Scholarship, Research and Creative Activity","(blank)","216","Research Administration","no",{"$f":"IFERROR(INDEX('Work Order Master'!$S:$S,MATCH(A358,'Work Order Master'!$K:$K,0)),\"New\")","v":1055},{"$f":"IFERROR(INDEX('Work Order Master'!T:T,MATCH(WORKORDERS!$Q358,'Work Order Master'!$S:$S,0)),Q358)","v":"SSF SRCA EXP LEARNING"},{"$f":"IFERROR(INDEX('FRS CC Master'!A:A,MATCH(WORKORDERS!$Q358*1,'FRS CC Master'!$C:$C,0)),WORKORDERS!$L358)","v":"Scholarship, Research and Creative Activity"},{"$f":"IFERROR(VLOOKUP($A358,'Work Order Master'!$K:$Q,7,FALSE),\"Remove\")","v":"N"}]
["15005-1-1","SRCA Animal Care","Active","15005-1","SRCA Animal Care","(blank)","5005","Research Compliance","500","Scholarship, Research and Creative Activity","500","Scholarship, Research and Creative Activity","(blank)","216","Research Administration","no",{"$f":"IFERROR(INDEX('Work Order Master'!$S:$S,MATCH(A359,'Work Order Master'!$K:$K,0)),\"New\")","v":1021},{"$f":"IFERROR(INDEX('Work Order Master'!T:T,MATCH(WORKORDERS!$Q359,'Work Order Master'!$S:$S,0)),Q359)","v":"ANIMAL CARE"},{"$f":"IFERROR(INDEX('FRS CC Master'!A:A,MATCH(WORKORDERS!$Q359*1,'FRS CC Master'!$C:$C,0)),WORKORDERS!$L359)","v":"Scholarship, Research and Creative Activity"},{"$f":"IFERROR(VLOOKUP($A359,'Work Order Master'!$K:$Q,7,FALSE),\"Remove\")","v":"N"}]
["15005-2-1","SRCA Research Ethics Board","Active","15005-2","SRCA Research Ethics Board","(blank)","5005","Research Compliance","500","Scholarship, Research and Creative Activity","500","Scholarship, Research and Creative Activity","(blank)","216","Research Administration","no",{"$f":"IFERROR(INDEX('Work Order Master'!$S:$S,MATCH(A360,'Work Order Master'!$K:$K,0)),\"New\")","v":1023},{"$f":"IFERROR(INDEX('Work Order Master'!T:T,MATCH(WORKORDERS!$Q360,'Work Order Master'!$S:$S,0)),Q360)","v":"RESEARCH ETHICS BOARD "},{"$f":"IFERROR(INDEX('FRS CC Master'!A:A,MATCH(WORKORDERS!$Q360*1,'FRS CC Master'!$C:$C,0)),WORKORDERS!$L360)","v":"Scholarship, Research and Creative Activity"},{"$f":"IFERROR(VLOOKUP($A360,'Work Order Master'!$K:$Q,7,FALSE),\"Remove\")","v":"N"}]
["15005-3-1","SRCA Biosafety","Active","15005-3","SRCA Biosafety","(blank)","5005","Research Compliance","500","Scholarship, Research and Creative Activity","500","Scholarship, Research and Creative Activity","(blank)","216","Research Administration","no",{"$f":"IFERROR(INDEX('Work Order Master'!$S:$S,MATCH(A361,'Work Order Master'!$K:$K,0)),\"New\")","v":1024},{"$f":"IFERROR(INDEX('Work Order Master'!T:T,MATCH(WORKORDERS!$Q361,'Work Order Master'!$S:$S,0)),Q361)","v":"VIU BIOSAFETY "},{"$f":"IFERROR(INDEX('FRS CC Master'!A:A,MATCH(WORKORDERS!$Q361*1,'FRS CC Master'!$C:$C,0)),WORKORDERS!$L361)","v":"Scholarship, Research and Creative Activity"},{"$f":"IFERROR(VLOOKUP($A361,'Work Order Master'!$K:$Q,7,FALSE),\"Remove\")","v":"N"}]
["15020-1-1","SRCA Scholarly Research","Active","15020-1","SRCA Scholarly Research","(blank)","5020","VIU Internal Awards","500","Scholarship, Research and Creative Activity","500","Scholarship, Research and Creative Activity","(blank)","216","Research Administration","no",{"$f":"IFERROR(INDEX('Work Order Master'!$S:$S,MATCH(A362,'Work Order Master'!$K:$K,0)),\"New\")","v":1065},{"$f":"IFERROR(INDEX('Work Order Master'!T:T,MATCH(WORKORDERS!$Q362,'Work Order Master'!$S:$S,0)),Q362)","v":"SCHOLARLY RESEA"},{"$f":"IFERROR(INDEX('FRS CC Master'!A:A,MATCH(WORKORDERS!$Q362*1,'FRS CC Master'!$C:$C,0)),WORKORDERS!$L362)","v":"Scholarship, Research and Creative Activity"},{"$f":"IFERROR(VLOOKUP($A362,'Work Order Master'!$K:$Q,7,FALSE),\"Remove\")","v":"N"}]
["15020-2-1","SRCA Student Conferences","Active","15020-2","SRCA Student Conferences","(blank)","5020","VIU Internal Awards","500","Scholarship, Research and Creative Activity","500","Scholarship, Research and Creative Activity","(blank)","216","Research Administration","no",{"$f":"IFERROR(INDEX('Work Order Master'!$S:$S,MATCH(A363,'Work Order Master'!$K:$K,0)),\"New\")","v":1027},{"$f":"IFERROR(INDEX('Work Order Master'!T:T,MATCH(WORKORDERS!$Q363,'Work Order Master'!$S:$S,0)),Q363)","v":"STUDENT CONFERENCES "},{"$f":"IFERROR(INDEX('FRS CC Master'!A:A,MATCH(WORKORDERS!$Q363*1,'FRS CC Master'!$C:$C,0)),WORKORDERS!$L363)","v":"Scholarship, Research and Creative Activity"},{"$f":"IFERROR(VLOOKUP($A363,'Work Order Master'!$K:$Q,7,FALSE),\"Remove\")","v":"N"}]
["15020-3-1","SRCA Travel and Conferences","Active","15020-3","SRCA Travel and Conferences","(blank)","5020","VIU Internal Awards","500","Scholarship, Research and Creative Activity","500","Scholarship, Research and Creative Activity","(blank)","216","Research Administration","no",{"$f":"IFERROR(INDEX('Work Order Master'!$S:$S,MATCH(A364,'Work Order Master'!$K:$K,0)),\"New\")","v":1050},{"$f":"IFERROR(INDEX('Work Order Master'!T:T,MATCH(WORKORDERS!$Q364,'Work Order Master'!$S:$S,0)),Q364)","v":"TRAVEL/CONFEREN"},{"$f":"IFERROR(INDEX('FRS CC Master'!A:A,MATCH(WORKORDERS!$Q364*1,'FRS CC Master'!$C:$C,0)),WORKORDERS!$L364)","v":"Scholarship, Research and Creative Activity"},{"$f":"IFERROR(VLOOKUP($A364,'Work Order Master'!$K:$Q,7,FALSE),\"Remove\")","v":"N"}]
["15025-1-1","SRCA VIURAC Research Fund","Active","15025-1","SRCA VIURAC Research Fund","(blank)","5025","VIU Internal Awards - VIURAC","500","Scholarship, Research and Creative Activity","500","Scholarship, Research and Creative Activity","(blank)","315","VIURAC RF","no",{"$f":"IFERROR(INDEX('Work Order Master'!$S:$S,MATCH(A365,'Work Order Master'!$K:$K,0)),\"New\")","v":1057},{"$f":"IFERROR(INDEX('Work Order Master'!T:T,MATCH(WORKORDERS!$Q365,'Work Order Master'!$S:$S,0)),Q365)","v":"VIURAC RESEARCH FUND"},{"$f":"IFERROR(INDEX('FRS CC Master'!A:A,MATCH(WORKORDERS!$Q365*1,'FRS CC Master'!$C:$C,0)),WORKORDERS!$L365)","v":"Scholarship, Research and Creative Activity"},{"$f":"IFERROR(VLOOKUP($A365,'Work Order Master'!$K:$Q,7,FALSE),\"Remove\")","v":"N"}]
["15500-1-1","SA Student Affairs Division","Active","15500-1","SA Student Affairs Division","(blank)","5500","Student Affairs Division","550","Student Affairs Division","550","Student Affairs","(blank)","200","Academic Administration","no",{"$f":"IFERROR(INDEX('Work Order Master'!$S:$S,MATCH(A366,'Work Order Master'!$K:$K,0)),\"New\")","v":6302},{"$f":"IFERROR(INDEX('Work Order Master'!T:T,MATCH(WORKORDERS!$Q366,'Work Order Master'!$S:$S,0)),Q366)","v":"EX. DIR. STUDENT AFFAIRS"},{"$f":"IFERROR(INDEX('FRS CC Master'!A:A,MATCH(WORKORDERS!$Q366*1,'FRS CC Master'!$C:$C,0)),WORKORDERS!$L366)","v":"Student Affairs"},{"$f":"IFERROR(VLOOKUP($A366,'Work Order Master'!$K:$Q,7,FALSE),\"Remove\")","v":"N"}]
["15501-1-1","SA Student Affairs Division - Initiatives","Parked","15501-1","SA Student Affairs Division - Initiatives","(blank)","5501","Student Affairs Division - Initiatives","550","Student Affairs Division","550","Student Affairs","(blank)","217","Student Support and Services","no",{"$f":"IFERROR(INDEX('Work Order Master'!$S:$S,MATCH(A367,'Work Order Master'!$K:$K,0)),\"New\")","v":"New"},{"$f":"IFERROR(INDEX('Work Order Master'!T:T,MATCH(WORKORDERS!$Q367,'Work Order Master'!$S:$S,0)),Q367)","v":"New"},{"$f":"IFERROR(INDEX('FRS CC Master'!A:A,MATCH(WORKORDERS!$Q367*1,'FRS CC Master'!$C:$C,0)),WORKORDERS!$L367)","v":"Student Affairs"},{"$f":"IFERROR(VLOOKUP($A367,'Work Order Master'!$K:$Q,7,FALSE),\"Remove\")","v":"P"}]
["15501-2-1","SA Prior Learning Assessment","Active","15501-2","SA Prior Learning Assessment","(blank)","5501","Student Affairs Division - Initiatives","550","Student Affairs Division","550","Student Affairs","(blank)","217","Student Support and Services","no",{"$f":"IFERROR(INDEX('Work Order Master'!$S:$S,MATCH(A368,'Work Order Master'!$K:$K,0)),\"New\")","v":6326},{"$f":"IFERROR(INDEX('Work Order Master'!T:T,MATCH(WORKORDERS!$Q368,'Work Order Master'!$S:$S,0)),Q368)","v":"PRIOR LEARNING ASSESSMENT"},{"$f":"IFERROR(INDEX('FRS CC Master'!A:A,MATCH(WORKORDERS!$Q368*1,'FRS CC Master'!$C:$C,0)),WORKORDERS!$L368)","v":"Student Affairs"},{"$f":"IFERROR(VLOOKUP($A368,'Work Order Master'!$K:$Q,7,FALSE),\"Remove\")","v":"N"}]
["15501-3-1","SA Community Engagement","Active","15501-3","SA Community Engagement","(blank)","5501","Student Affairs Division - Initiatives","550","Student Affairs Division","550","Student Affairs","(blank)","217","Student Support and Services","no",{"$f":"IFERROR(INDEX('Work Order Master'!$S:$S,MATCH(A369,'Work Order Master'!$K:$K,0)),\"New\")","v":6313},{"$f":"IFERROR(INDEX('Work Order Master'!T:T,MATCH(WORKORDERS!$Q369,'Work Order Master'!$S:$S,0)),Q369)","v":"COMMUNITY ENGAGEMENT"},{"$f":"IFERROR(INDEX('FRS CC Master'!A:A,MATCH(WORKORDERS!$Q369*1,'FRS CC Master'!$C:$C,0)),WORKORDERS!$L369)","v":"Student Affairs"},{"$f":"IFERROR(VLOOKUP($A369,'Work Order Master'!$K:$Q,7,FALSE),\"Remove\")","v":"N"}]
["15510-1-1","SA Student Services Department","Parked","15510-1","SA Student Services Department","(blank)","5510","Student Services Department","551","Student Affairs Department","550","Student Affairs","(blank)","200","Academic Administration","no",{"$f":"IFERROR(INDEX('Work Order Master'!$S:$S,MATCH(A370,'Work Order Master'!$K:$K,0)),\"New\")","v":"New"},{"$f":"IFERROR(INDEX('Work Order Master'!T:T,MATCH(WORKORDERS!$Q370,'Work Order Master'!$S:$S,0)),Q370)","v":"New"},{"$f":"IFERROR(INDEX('FRS CC Master'!A:A,MATCH(WORKORDERS!$Q370*1,'FRS CC Master'!$C:$C,0)),WORKORDERS!$L370)","v":"Student Affairs"},{"$f":"IFERROR(VLOOKUP($A370,'Work Order Master'!$K:$Q,7,FALSE),\"Remove\")","v":"P"}]
["15515-1-1","SA Student Services Advising","Parked","15515-1","SA Student Services Advising","(blank)","5515","Student Services Advising","551","Student Affairs Department","550","Student Affairs","(blank)","217","Student Support and Services","no",{"$f":"IFERROR(INDEX('Work Order Master'!$S:$S,MATCH(A371,'Work Order Master'!$K:$K,0)),\"New\")","v":"New"},{"$f":"IFERROR(INDEX('Work Order Master'!T:T,MATCH(WORKORDERS!$Q371,'Work Order Master'!$S:$S,0)),Q371)","v":"New"},{"$f":"IFERROR(INDEX('FRS CC Master'!A:A,MATCH(WORKORDERS!$Q371*1,'FRS CC Master'!$C:$C,0)),WORKORDERS!$L371)","v":"Student Affairs"},{"$f":"IFERROR(VLOOKUP($A371,'Work Order Master'!$K:$Q,7,FALSE),\"Remove\")","v":"P"}]
["15516-1-1","SA Assessment and Invigilation","Active","15516-1","SA Assessment and Invigilation","(blank)","5516","Assessment and Invigilation","551","Student Affairs Department","550","Student Affairs","(blank)","217","Student Support and Services","no",{"$f":"IFERROR(INDEX('Work Order Master'!$S:$S,MATCH(A372,'Work Order Master'!$K:$K,0)),\"New\")","v":6340},{"$f":"IFERROR(INDEX('Work Order Master'!T:T,MATCH(WORKORDERS!$Q372,'Work Order Master'!$S:$S,0)),Q372)","v":"EDUCATIONAL ASSESSMENTS"},{"$f":"IFERROR(INDEX('FRS CC Master'!A:A,MATCH(WORKORDERS!$Q372*1,'FRS CC Master'!$C:$C,0)),WORKORDERS!$L372)","v":"Student Affairs"},{"$f":"IFERROR(VLOOKUP($A372,'Work Order Master'!$K:$Q,7,FALSE),\"Remove\")","v":"N"}]
["15516-1-2","SA Peer Helpers","Active","15516-1","SA Assessment and Invigilation","(blank)","5516","Assessment and Invigilation","551","Student Affairs Department","550","Student Affairs","(blank)","217","Student Support and Services","no",{"$f":"IFERROR(INDEX('Work Order Master'!$S:$S,MATCH(A373,'Work Order Master'!$K:$K,0)),\"New\")","v":6337},{"$f":"IFERROR(INDEX('Work Order Master'!T:T,MATCH(WORKORDERS!$Q373,'Work Order Master'!$S:$S,0)),Q373)","v":"PEER HELPERS"},{"$f":"IFERROR(INDEX('FRS CC Master'!A:A,MATCH(WORKORDERS!$Q373*1,'FRS CC Master'!$C:$C,0)),WORKORDERS!$L373)","v":"Student Affairs"},{"$f":"IFERROR(VLOOKUP($A373,'Work Order Master'!$K:$Q,7,FALSE),\"Remove\")","v":"N"}]
["15517-1-1","SA Student Services Counselling","Active","15517-1","SA Student Services Counselling","(blank)","5517","Student Services Counselling","551","Student Affairs Department","550","Student Affairs","(blank)","217","Student Support and Services","no",{"$f":"IFERROR(INDEX('Work Order Master'!$S:$S,MATCH(A374,'Work Order Master'!$K:$K,0)),\"New\")","v":6320},{"$f":"IFERROR(INDEX('Work Order Master'!T:T,MATCH(WORKORDERS!$Q374,'Work Order Master'!$S:$S,0)),Q374)","v":"COUNSELLING"},{"$f":"IFERROR(INDEX('FRS CC Master'!A:A,MATCH(WORKORDERS!$Q374*1,'FRS CC Master'!$C:$C,0)),WORKORDERS!$L374)","v":"Student Affairs"},{"$f":"IFERROR(VLOOKUP($A374,'Work Order Master'!$K:$Q,7,FALSE),\"Remove\")","v":"N"}]
["15518-1-1","SA Accessibility Services","Active","15518-1","SA Accessibility Services","(blank)","5518","Accessibility Services","551","Student Affairs Department","550","Student Affairs","(blank)","217","Student Support and Services","no",{"$f":"IFERROR(INDEX('Work Order Master'!$S:$S,MATCH(A375,'Work Order Master'!$K:$K,0)),\"New\")","v":6335},{"$f":"IFERROR(INDEX('Work Order Master'!T:T,MATCH(WORKORDERS!$Q375,'Work Order Master'!$S:$S,0)),Q375)","v":"ACCCESSIBILITY SERVICES"},{"$f":"IFERROR(INDEX('FRS CC Master'!A:A,MATCH(WORKORDERS!$Q375*1,'FRS CC Master'!$C:$C,0)),WORKORDERS!$L375)","v":"Student Affairs"},{"$f":"IFERROR(VLOOKUP($A375,'Work Order Master'!$K:$Q,7,FALSE),\"Remove\")","v":"N"}]
["15518-1-2","SA Extraordinary Accommodations","Active","15518-1","SA Accessibility Services","(blank)","5518","Accessibility Services","551","Student Affairs Department","550","Student Affairs","(blank)","217","Student Support and Services","no",{"$f":"IFERROR(INDEX('Work Order Master'!$S:$S,MATCH(A376,'Work Order Master'!$K:$K,0)),\"New\")","v":6334},{"$f":"IFERROR(INDEX('Work Order Master'!T:T,MATCH(WORKORDERS!$Q376,'Work Order Master'!$S:$S,0)),Q376)","v":"EXTRAORDINARY ACCOMMODATI"},{"$f":"IFERROR(INDEX('FRS CC Master'!A:A,MATCH(WORKORDERS!$Q376*1,'FRS CC Master'!$C:$C,0)),WORKORDERS!$L376)","v":"Student Affairs"},{"$f":"IFERROR(VLOOKUP($A376,'Work Order Master'!$K:$Q,7,FALSE),\"Remove\")","v":"N"}]
["15518-1-3","SA International Accessibility Services","Active","15518-1","SA Accessibility Services","(blank)","5518","Accessibility Services","551","Student Affairs Department","550","Student Affairs","(blank)","217","Student Support and Services","no",{"$f":"IFERROR(INDEX('Work Order Master'!$S:$S,MATCH(A377,'Work Order Master'!$K:$K,0)),\"New\")","v":6339},{"$f":"IFERROR(INDEX('Work Order Master'!T:T,MATCH(WORKORDERS!$Q377,'Work Order Master'!$S:$S,0)),Q377)","v":"INTED ACCESSBLTY SERVICES"},{"$f":"IFERROR(INDEX('FRS CC Master'!A:A,MATCH(WORKORDERS!$Q377*1,'FRS CC Master'!$C:$C,0)),WORKORDERS!$L377)","v":"Student Affairs"},{"$f":"IFERROR(VLOOKUP($A377,'Work Order Master'!$K:$Q,7,FALSE),\"Remove\")","v":"N"}]
["15518-1-4","SA Interpreting","Active","15518-1","SA Accessibility Services","(blank)","5518","Accessibility Services","551","Student Affairs Department","550","Student Affairs","(blank)","217","Student Support and Services","no",{"$f":"IFERROR(INDEX('Work Order Master'!$S:$S,MATCH(A378,'Work Order Master'!$K:$K,0)),\"New\")","v":6336},{"$f":"IFERROR(INDEX('Work Order Master'!T:T,MATCH(WORKORDERS!$Q378,'Work Order Master'!$S:$S,0)),Q378)","v":"INTERPRETING SERVICES"},{"$f":"IFERROR(INDEX('FRS CC Master'!A:A,MATCH(WORKORDERS!$Q378*1,'FRS CC Master'!$C:$C,0)),WORKORDERS!$L378)","v":"Student Affairs"},{"$f":"IFERROR(VLOOKUP($A378,'Work Order Master'!$K:$Q,7,FALSE),\"Remove\")","v":"N"}]
["15518-1-5","SA Learning Disability Assessment","Active","15518-1","SA Accessibility Services","(blank)","5518","Accessibility Services","551","Student Affairs Department","550","Student Affairs","(blank)","217","Student Support and Services","no",{"$f":"IFERROR(INDEX('Work Order Master'!$S:$S,MATCH(A379,'Work Order Master'!$K:$K,0)),\"New\")","v":6338},{"$f":"IFERROR(INDEX('Work Order Master'!T:T,MATCH(WORKORDERS!$Q379,'Work Order Master'!$S:$S,0)),Q379)","v":"LEARNING DISABIL.ASMT N/R"},{"$f":"IFERROR(INDEX('FRS CC Master'!A:A,MATCH(WORKORDERS!$Q379*1,'FRS CC Master'!$C:$C,0)),WORKORDERS!$L379)","v":"Student Affairs"},{"$f":"IFERROR(VLOOKUP($A379,'Work Order Master'!$K:$Q,7,FALSE),\"Remove\")","v":"N"}]
["15519-1-1","SA Financial Aid","Active","15519-1","SA Financial Aid","(blank)","5519","Financial Aid and Awards","551","Student Affairs Department","550","Student Affairs","(blank)","217","Student Support and Services","no",{"$f":"IFERROR(INDEX('Work Order Master'!$S:$S,MATCH(A380,'Work Order Master'!$K:$K,0)),\"New\")","v":6303},{"$f":"IFERROR(INDEX('Work Order Master'!T:T,MATCH(WORKORDERS!$Q380,'Work Order Master'!$S:$S,0)),Q380)","v":"FINANCIAL AID"},{"$f":"IFERROR(INDEX('FRS CC Master'!A:A,MATCH(WORKORDERS!$Q380*1,'FRS CC Master'!$C:$C,0)),WORKORDERS!$L380)","v":"Student Affairs"},{"$f":"IFERROR(VLOOKUP($A380,'Work Order Master'!$K:$Q,7,FALSE),\"Remove\")","v":"N"}]
["15519-2-1","SA Foundation Matching","Active","15519-2","SA Financial Aid - Scholarships and Bursaries","(blank)","5519","Financial Aid and Awards","551","Student Affairs Department","550","Student Affairs","(blank)","217","Student Support and Services","no",{"$f":"IFERROR(INDEX('Work Order Master'!$S:$S,MATCH(A381,'Work Order Master'!$K:$K,0)),\"New\")","v":6307},{"$f":"IFERROR(INDEX('Work Order Master'!T:T,MATCH(WORKORDERS!$Q381,'Work Order Master'!$S:$S,0)),Q381)","v":"FOUNDATION S+B MATCHING"},{"$f":"IFERROR(INDEX('FRS CC Master'!A:A,MATCH(WORKORDERS!$Q381*1,'FRS CC Master'!$C:$C,0)),WORKORDERS!$L381)","v":"Student Affairs"},{"$f":"IFERROR(VLOOKUP($A381,'Work Order Master'!$K:$Q,7,FALSE),\"Remove\")","v":"N"}]
["15519-2-2","SA Scholarships","Active","15519-2","SA Financial Aid - Scholarships and Bursaries","(blank)","5519","Financial Aid and Awards","551","Student Affairs Department","550","Student Affairs","(blank)","217","Student Support and Services","no",{"$f":"IFERROR(INDEX('Work Order Master'!$S:$S,MATCH(A382,'Work Order Master'!$K:$K,0)),\"New\")","v":6397},{"$f":"IFERROR(INDEX('Work Order Master'!T:T,MATCH(WORKORDERS!$Q382,'Work Order Master'!$S:$S,0)),Q382)","v":"SCHOLARSHIPS"},{"$f":"IFERROR(INDEX('FRS CC Master'!A:A,MATCH(WORKORDERS!$Q382*1,'FRS CC Master'!$C:$C,0)),WORKORDERS!$L382)","v":"Student Affairs"},{"$f":"IFERROR(VLOOKUP($A382,'Work Order Master'!$K:$Q,7,FALSE),\"Remove\")","v":"N"}]
["15519-2-3","SA Executive Scholarships","Active","15519-2","SA Financial Aid - Scholarships and Bursaries","(blank)","5519","Financial Aid and Awards","551","Student Affairs Department","550","Student Affairs","(blank)","217","Student Support and Services","no",{"$f":"IFERROR(INDEX('Work Order Master'!$S:$S,MATCH(A383,'Work Order Master'!$K:$K,0)),\"New\")","v":6398},{"$f":"IFERROR(INDEX('Work Order Master'!T:T,MATCH(WORKORDERS!$Q383,'Work Order Master'!$S:$S,0)),Q383)","v":"S/B EXECUTIVE FUNDS"},{"$f":"IFERROR(INDEX('FRS CC Master'!A:A,MATCH(WORKORDERS!$Q383*1,'FRS CC Master'!$C:$C,0)),WORKORDERS!$L383)","v":"Student Affairs"},{"$f":"IFERROR(VLOOKUP($A383,'Work Order Master'!$K:$Q,7,FALSE),\"Remove\")","v":"N"}]
["15519-2-4","SA Tuition Bursaries","Active","15519-2","SA Financial Aid - Scholarships and Bursaries","(blank)","5519","Financial Aid and Awards","551","Student Affairs Department","550","Student Affairs","(blank)","217","Student Support and Services","no",{"$f":"IFERROR(INDEX('Work Order Master'!$S:$S,MATCH(A384,'Work Order Master'!$K:$K,0)),\"New\")","v":6399},{"$f":"IFERROR(INDEX('Work Order Master'!T:T,MATCH(WORKORDERS!$Q384,'Work Order Master'!$S:$S,0)),Q384)","v":"TUITION BURSARY"},{"$f":"IFERROR(INDEX('FRS CC Master'!A:A,MATCH(WORKORDERS!$Q384*1,'FRS CC Master'!$C:$C,0)),WORKORDERS!$L384)","v":"Student Affairs"},{"$f":"IFERROR(VLOOKUP($A384,'Work Order Master'!$K:$Q,7,FALSE),\"Remove\")","v":"N"}]
["15519-2-5","SA Awards - VIU Foundation","Active","15519-2","SA Financial Aid - Scholarships and Bursaries","(blank)","5519","Financial Aid and Awards","551","Student Affairs Department","550","Student Affairs","(blank)","217","Student Support and Services","no",{"$f":"IFERROR(INDEX('Work Order Master'!$S:$S,MATCH(A385,'Work Order Master'!$K:$K,0)),\"New\")","v":"New"},{"$f":"IFERROR(INDEX('Work Order Master'!T:T,MATCH(WORKORDERS!$Q385,'Work Order Master'!$S:$S,0)),Q385)","v":"New"},{"$f":"IFERROR(INDEX('FRS CC Master'!A:A,MATCH(WORKORDERS!$Q385*1,'FRS CC Master'!$C:$C,0)),WORKORDERS!$L385)","v":"Student Affairs"},{"$f":"IFERROR(VLOOKUP($A385,'Work Order Master'!$K:$Q,7,FALSE),\"Remove\")","v":"N"}]
["15520-1-1","SA Health and Wellness Centre","Active","15520-1","SA Health and Wellness Centre","(blank)","5520","Health and Wellness","551","Student Affairs Department","550","Student Affairs","(blank)","217","Student Support and Services","no",{"$f":"IFERROR(INDEX('Work Order Master'!$S:$S,MATCH(A386,'Work Order Master'!$K:$K,0)),\"New\")","v":6350},{"$f":"IFERROR(INDEX('Work Order Master'!T:T,MATCH(WORKORDERS!$Q386,'Work Order Master'!$S:$S,0)),Q386)","v":"HEALTH AND WELLNESS CTR"},{"$f":"IFERROR(INDEX('FRS CC Master'!A:A,MATCH(WORKORDERS!$Q386*1,'FRS CC Master'!$C:$C,0)),WORKORDERS!$L386)","v":"Student Affairs"},{"$f":"IFERROR(VLOOKUP($A386,'Work Order Master'!$K:$Q,7,FALSE),\"Remove\")","v":"N"}]
["15520-2-1","SA SSF Funds (HW) - Health and Wellness","Active","15520-2","SA SSF Funds (HW)","(blank)","5520","Health and Wellness","551","Student Affairs Department","550","Student Affairs","(blank)","217","Student Support and Services","no",{"$f":"IFERROR(INDEX('Work Order Master'!$S:$S,MATCH(A387,'Work Order Master'!$K:$K,0)),\"New\")","v":6430},{"$f":"IFERROR(INDEX('Work Order Master'!T:T,MATCH(WORKORDERS!$Q387,'Work Order Master'!$S:$S,0)),Q387)","v":"SSF HEALTH AND WELLNESS"},{"$f":"IFERROR(INDEX('FRS CC Master'!A:A,MATCH(WORKORDERS!$Q387*1,'FRS CC Master'!$C:$C,0)),WORKORDERS!$L387)","v":"Student Affairs"},{"$f":"IFERROR(VLOOKUP($A387,'Work Order Master'!$K:$Q,7,FALSE),\"Remove\")","v":"N"}]
["15521-1-1","SA Services for Aboriginal Students","Parked","15521-1","SA Services for Aboriginal Students","(blank)","5521","Services for Aboriginal Students","551","Student Affairs Department","550","Student Affairs","(blank)","217","Student Support and Services",{"$f":"IF(OR(A388=A387,A388=A389),\"yes\",\"no\")","v":"no"},{"$f":"IFERROR(INDEX('Work Order Master'!$S:$S,MATCH(A388,'Work Order Master'!$K:$K,0)),\"New\")","v":"New"},{"$f":"IFERROR(INDEX('Work Order Master'!T:T,MATCH(WORKORDERS!$Q388,'Work Order Master'!$S:$S,0)),Q388)","v":"New"},{"$f":"IFERROR(INDEX('FRS CC Master'!A:A,MATCH(WORKORDERS!$Q388*1,'FRS CC Master'!$C:$C,0)),WORKORDERS!$L388)","v":"Student Affairs"},{"$f":"IFERROR(VLOOKUP($A388,'Work Order Master'!$K:$Q,7,FALSE),\"Remove\")","v":"Remove"}]
["15522-1-1","SA Student Conduct - Administration","Active","15522-1","SA Student Conduct - Administration","(blank)","5522","Student Conduct","551","Student Affairs Department","550","Student Affairs","(blank)","217","Student Support and Services","no",{"$f":"IFERROR(INDEX('Work Order Master'!$S:$S,MATCH(A389,'Work Order Master'!$K:$K,0)),\"New\")","v":6305},{"$f":"IFERROR(INDEX('Work Order Master'!T:T,MATCH(WORKORDERS!$Q389,'Work Order Master'!$S:$S,0)),Q389)","v":"CONDUCT"},{"$f":"IFERROR(INDEX('FRS CC Master'!A:A,MATCH(WORKORDERS!$Q389*1,'FRS CC Master'!$C:$C,0)),WORKORDERS!$L389)","v":"Student Affairs"},{"$f":"IFERROR(VLOOKUP($A389,'Work Order Master'!$K:$Q,7,FALSE),\"Remove\")","v":"N"}]
["15522-2-1","SA Student Conduct - Education & Training","Parked","15522-2","SA Student Conduct - Education & Training","(blank)","5522","Student Conduct","551","Student Affairs Department","550","Student Affairs","(blank)","217","Student Support and Services","no",{"$f":"IFERROR(INDEX('Work Order Master'!$S:$S,MATCH(A390,'Work Order Master'!$K:$K,0)),\"New\")","v":"New"},{"$f":"IFERROR(INDEX('Work Order Master'!T:T,MATCH(WORKORDERS!$Q390,'Work Order Master'!$S:$S,0)),Q390)","v":"New"},{"$f":"IFERROR(INDEX('FRS CC Master'!A:A,MATCH(WORKORDERS!$Q390*1,'FRS CC Master'!$C:$C,0)),WORKORDERS!$L390)","v":"Student Affairs"},{"$f":"IFERROR(VLOOKUP($A390,'Work Order Master'!$K:$Q,7,FALSE),\"Remove\")","v":"P"}]
["15522-3-1","SA Student Conduct - External Investigators","Parked","15522-3","SA Student Conduct - External Investigators","(blank)","5522","Student Conduct","551","Student Affairs Department","550","Student Affairs","(blank)","217","Student Support and Services","no",{"$f":"IFERROR(INDEX('Work Order Master'!$S:$S,MATCH(A391,'Work Order Master'!$K:$K,0)),\"New\")","v":"New"},{"$f":"IFERROR(INDEX('Work Order Master'!T:T,MATCH(WORKORDERS!$Q391,'Work Order Master'!$S:$S,0)),Q391)","v":"New"},{"$f":"IFERROR(INDEX('FRS CC Master'!A:A,MATCH(WORKORDERS!$Q391*1,'FRS CC Master'!$C:$C,0)),WORKORDERS!$L391)","v":"Student Affairs"},{"$f":"IFERROR(VLOOKUP($A391,'Work Order Master'!$K:$Q,7,FALSE),\"Remove\")","v":"P"}]
["15550-1-1","SA Student Engagement and Experiential Learning Department","Parked","15550-1","SA Student Engagement and Experiential Learning Department","(blank)","5550","Student Engagement and Experiential Learning Department","555","Student Engagement and Experiential Learning","550","Student Affairs","(blank)","200","Academic Administration","no",{"$f":"IFERROR(INDEX('Work Order Master'!$S:$S,MATCH(A392,'Work Order Master'!$K:$K,0)),\"New\")","v":"New"},{"$f":"IFERROR(INDEX('Work Order Master'!T:T,MATCH(WORKORDERS!$Q392,'Work Order Master'!$S:$S,0)),Q392)","v":"New"},{"$f":"IFERROR(INDEX('FRS CC Master'!A:A,MATCH(WORKORDERS!$Q392*1,'FRS CC Master'!$C:$C,0)),WORKORDERS!$L392)","v":"Student Affairs"},{"$f":"IFERROR(VLOOKUP($A392,'Work Order Master'!$K:$Q,7,FALSE),\"Remove\")","v":"P"}]
["15550-2-1","SA SSF Funds (EL) - Co-Curricular Engagement and Learning","Active","15550-2","SA SSF Funds (EL)","(blank)","5550","Student Engagement and Experiential Learning Department","555","Student Engagement and Experiential Learning","550","Student Affairs","(blank)","217","Student Support and Services","no",{"$f":"IFERROR(INDEX('Work Order Master'!$S:$S,MATCH(A393,'Work Order Master'!$K:$K,0)),\"New\")","v":6440},{"$f":"IFERROR(INDEX('Work Order Master'!T:T,MATCH(WORKORDERS!$Q393,'Work Order Master'!$S:$S,0)),Q393)","v":"SSF EXPERIENTIAL LEARNING"},{"$f":"IFERROR(INDEX('FRS CC Master'!A:A,MATCH(WORKORDERS!$Q393*1,'FRS CC Master'!$C:$C,0)),WORKORDERS!$L393)","v":"Student Affairs"},{"$f":"IFERROR(VLOOKUP($A393,'Work Order Master'!$K:$Q,7,FALSE),\"Remove\")","v":"N"}]
["15550-2-2","SA SSF Funds (EL) - Research","Active","15550-2","SA SSF Funds (EL)","(blank)","5550","Student Engagement and Experiential Learning Department","555","Student Engagement and Experiential Learning","550","Student Affairs","(blank)","217","Student Support and Services","no",{"$f":"IFERROR(INDEX('Work Order Master'!$S:$S,MATCH(A394,'Work Order Master'!$K:$K,0)),\"New\")","v":6441},{"$f":"IFERROR(INDEX('Work Order Master'!T:T,MATCH(WORKORDERS!$Q394,'Work Order Master'!$S:$S,0)),Q394)","v":"SSF EXP LEARNING RESEARCH"},{"$f":"IFERROR(INDEX('FRS CC Master'!A:A,MATCH(WORKORDERS!$Q394*1,'FRS CC Master'!$C:$C,0)),WORKORDERS!$L394)","v":"Student Affairs"},{"$f":"IFERROR(VLOOKUP($A394,'Work Order Master'!$K:$Q,7,FALSE),\"Remove\")","v":"N"}]
["15555-1-1","SA Centre for Experiential Learning","Active","15555-1","SA Centre for Experiential Learning","(blank)","5555","Centre for Experiential Learning","555","Student Engagement and Experiential Learning","550","Student Affairs","(blank)","217","Student Support and Services","no",{"$f":"IFERROR(INDEX('Work Order Master'!$S:$S,MATCH(A395,'Work Order Master'!$K:$K,0)),\"New\")","v":6304},{"$f":"IFERROR(INDEX('Work Order Master'!T:T,MATCH(WORKORDERS!$Q395,'Work Order Master'!$S:$S,0)),Q395)","v":"CAMPUS CAREER CENTRE"},{"$f":"IFERROR(INDEX('FRS CC Master'!A:A,MATCH(WORKORDERS!$Q395*1,'FRS CC Master'!$C:$C,0)),WORKORDERS!$L395)","v":"Student Affairs"},{"$f":"IFERROR(VLOOKUP($A395,'Work Order Master'!$K:$Q,7,FALSE),\"Remove\")","v":"N"}]
["15555-2-1","SA New Student Orientation","Active","15555-2","SA New Student Orientation","(blank)","5555","Centre for Experiential Learning","555","Student Engagement and Experiential Learning","550","Student Affairs","(blank)","217","Student Support and Services","no",{"$f":"IFERROR(INDEX('Work Order Master'!$S:$S,MATCH(A396,'Work Order Master'!$K:$K,0)),\"New\")","v":6415},{"$f":"IFERROR(INDEX('Work Order Master'!T:T,MATCH(WORKORDERS!$Q396,'Work Order Master'!$S:$S,0)),Q396)","v":"NEW STUDENT ORIENTATION"},{"$f":"IFERROR(INDEX('FRS CC Master'!A:A,MATCH(WORKORDERS!$Q396*1,'FRS CC Master'!$C:$C,0)),WORKORDERS!$L396)","v":"Student Affairs"},{"$f":"IFERROR(VLOOKUP($A396,'Work Order Master'!$K:$Q,7,FALSE),\"Remove\")","v":"N"}]
["15556-1-1","SA Co-Op Programs - Computer Science","Active","15556-1","SA Co-Op Programs - Computer Science","(blank)","5556","Co-Op Programs","555","Student Engagement and Experiential Learning","550","Student Affairs","(blank)","225","Co-Op Programs","no",{"$f":"IFERROR(INDEX('Work Order Master'!$S:$S,MATCH(A397,'Work Order Master'!$K:$K,0)),\"New\")","v":6402},{"$f":"IFERROR(INDEX('Work Order Master'!T:T,MATCH(WORKORDERS!$Q397,'Work Order Master'!$S:$S,0)),Q397)","v":"CO-OP: COMPUTER SCIENCE"},{"$f":"IFERROR(INDEX('FRS CC Master'!A:A,MATCH(WORKORDERS!$Q397*1,'FRS CC Master'!$C:$C,0)),WORKORDERS!$L397)","v":"Student Affairs"},{"$f":"IFERROR(VLOOKUP($A397,'Work Order Master'!$K:$Q,7,FALSE),\"Remove\")","v":"N"}]
["15556-2-1","SA Co-Op Programs - Culinary Arts","Active","15556-2","SA Co-Op Programs - Culinary Arts","(blank)","5556","Co-Op Programs","555","Student Engagement and Experiential Learning","550","Student Affairs","(blank)","225","Co-Op Programs","no",{"$f":"IFERROR(INDEX('Work Order Master'!$S:$S,MATCH(A398,'Work Order Master'!$K:$K,0)),\"New\")","v":6406},{"$f":"IFERROR(INDEX('Work Order Master'!T:T,MATCH(WORKORDERS!$Q398,'Work Order Master'!$S:$S,0)),Q398)","v":"CO-OP: CULINARY ARTS"},{"$f":"IFERROR(INDEX('FRS CC Master'!A:A,MATCH(WORKORDERS!$Q398*1,'FRS CC Master'!$C:$C,0)),WORKORDERS!$L398)","v":"Student Affairs"},{"$f":"IFERROR(VLOOKUP($A398,'Work Order Master'!$K:$Q,7,FALSE),\"Remove\")","v":"N"}]
["15556-3-1","SA Co-Op Programs - Engineering","Active","15556-3","SA Co-Op Programs - Engineering","(blank)","5556","Co-Op Programs","555","Student Engagement and Experiential Learning","550","Student Affairs","(blank)","225","Co-Op Programs","no",{"$f":"IFERROR(INDEX('Work Order Master'!$S:$S,MATCH(A399,'Work Order Master'!$K:$K,0)),\"New\")","v":6411},{"$f":"IFERROR(INDEX('Work Order Master'!T:T,MATCH(WORKORDERS!$Q399,'Work Order Master'!$S:$S,0)),Q399)","v":"CO-OP: ENGINEERING"},{"$f":"IFERROR(INDEX('FRS CC Master'!A:A,MATCH(WORKORDERS!$Q399*1,'FRS CC Master'!$C:$C,0)),WORKORDERS!$L399)","v":"Student Affairs"},{"$f":"IFERROR(VLOOKUP($A399,'Work Order Master'!$K:$Q,7,FALSE),\"Remove\")","v":"N"}]
["15556-4-1","SA Co-Op Programs - Hospitality","Active","15556-4","SA Co-Op Programs - Hospitality","(blank)","5556","Co-Op Programs","555","Student Engagement and Experiential Learning","550","Student Affairs","(blank)","225","Co-Op Programs","no",{"$f":"IFERROR(INDEX('Work Order Master'!$S:$S,MATCH(A400,'Work Order Master'!$K:$K,0)),\"New\")","v":6407},{"$f":"IFERROR(INDEX('Work Order Master'!T:T,MATCH(WORKORDERS!$Q400,'Work Order Master'!$S:$S,0)),Q400)","v":"CO-OP: HOSPITALITY"},{"$f":"IFERROR(INDEX('FRS CC Master'!A:A,MATCH(WORKORDERS!$Q400*1,'FRS CC Master'!$C:$C,0)),WORKORDERS!$L400)","v":"Student Affairs"},{"$f":"IFERROR(VLOOKUP($A400,'Work Order Master'!$K:$Q,7,FALSE),\"Remove\")","v":"N"}]
["15556-5-1","SA Co-Op Programs - Rec and Tourism","Active","15556-5","SA Co-Op Programs - Rec and Tourism","(blank)","5556","Co-Op Programs","555","Student Engagement and Experiential Learning","550","Student Affairs","(blank)","225","Co-Op Programs","no",{"$f":"IFERROR(INDEX('Work Order Master'!$S:$S,MATCH(A401,'Work Order Master'!$K:$K,0)),\"New\")","v":6405},{"$f":"IFERROR(INDEX('Work Order Master'!T:T,MATCH(WORKORDERS!$Q401,'Work Order Master'!$S:$S,0)),Q401)","v":"CO-OP: REC/TOUR"},{"$f":"IFERROR(INDEX('FRS CC Master'!A:A,MATCH(WORKORDERS!$Q401*1,'FRS CC Master'!$C:$C,0)),WORKORDERS!$L401)","v":"Student Affairs"},{"$f":"IFERROR(VLOOKUP($A401,'Work Order Master'!$K:$Q,7,FALSE),\"Remove\")","v":"N"}]
["15556-6-1","SA Co-Op Programs - Baking","Active","15556-6","SA Co-Op Programs - Baking","(blank)","5556","Co-Op Programs","555","Student Engagement and Experiential Learning","550","Student Affairs","(blank)","225","Co-Op Programs","no",{"$f":"IFERROR(INDEX('Work Order Master'!$S:$S,MATCH(A402,'Work Order Master'!$K:$K,0)),\"New\")","v":6408},{"$f":"IFERROR(INDEX('Work Order Master'!T:T,MATCH(WORKORDERS!$Q402,'Work Order Master'!$S:$S,0)),Q402)","v":"CO-OP: BAKING"},{"$f":"IFERROR(INDEX('FRS CC Master'!A:A,MATCH(WORKORDERS!$Q402*1,'FRS CC Master'!$C:$C,0)),WORKORDERS!$L402)","v":"Student Affairs"},{"$f":"IFERROR(VLOOKUP($A402,'Work Order Master'!$K:$Q,7,FALSE),\"Remove\")","v":"N"}]
["15557-1-1","SA Internships - Creative Writing","Active","15557-1","SA Internships - Creative Writing","(blank)","5557","Internships","555","Student Engagement and Experiential Learning","550","Student Affairs","(blank)","224","Field Experience / Practicum","no",{"$f":"IFERROR(INDEX('Work Order Master'!$S:$S,MATCH(A403,'Work Order Master'!$K:$K,0)),\"New\")","v":6404},{"$f":"IFERROR(INDEX('Work Order Master'!T:T,MATCH(WORKORDERS!$Q403,'Work Order Master'!$S:$S,0)),Q403)","v":"CO-OP: CREATIVE WRITING"},{"$f":"IFERROR(INDEX('FRS CC Master'!A:A,MATCH(WORKORDERS!$Q403*1,'FRS CC Master'!$C:$C,0)),WORKORDERS!$L403)","v":"Student Affairs"},{"$f":"IFERROR(VLOOKUP($A403,'Work Order Master'!$K:$Q,7,FALSE),\"Remove\")","v":"N"}]
["15557-2-1","SA Internships - Criminology","Active","15557-2","SA Internships - Criminology","(blank)","5557","Internships","555","Student Engagement and Experiential Learning","550","Student Affairs","(blank)","224","Field Experience / Practicum","no",{"$f":"IFERROR(INDEX('Work Order Master'!$S:$S,MATCH(A404,'Work Order Master'!$K:$K,0)),\"New\")","v":6401},{"$f":"IFERROR(INDEX('Work Order Master'!T:T,MATCH(WORKORDERS!$Q404,'Work Order Master'!$S:$S,0)),Q404)","v":"CO-OP: CRIMINOLOGY"},{"$f":"IFERROR(INDEX('FRS CC Master'!A:A,MATCH(WORKORDERS!$Q404*1,'FRS CC Master'!$C:$C,0)),WORKORDERS!$L404)","v":"Student Affairs"},{"$f":"IFERROR(VLOOKUP($A404,'Work Order Master'!$K:$Q,7,FALSE),\"Remove\")","v":"N"}]
["15557-3-1","SA Internships - Education","Active","15557-3","SA Internships - Education","(blank)","5557","Internships","555","Student Engagement and Experiential Learning","550","Student Affairs","(blank)","224","Field Experience / Practicum","no",{"$f":"IFERROR(INDEX('Work Order Master'!$S:$S,MATCH(A405,'Work Order Master'!$K:$K,0)),\"New\")","v":6400},{"$f":"IFERROR(INDEX('Work Order Master'!T:T,MATCH(WORKORDERS!$Q405,'Work Order Master'!$S:$S,0)),Q405)","v":"C0-OP EDUCATION"},{"$f":"IFERROR(INDEX('FRS CC Master'!A:A,MATCH(WORKORDERS!$Q405*1,'FRS CC Master'!$C:$C,0)),WORKORDERS!$L405)","v":"Student Affairs"},{"$f":"IFERROR(VLOOKUP($A405,'Work Order Master'!$K:$Q,7,FALSE),\"Remove\")","v":"N"}]
["15557-4-1","SA Internships  - Graphic Design","Active","15557-4","SA Internships  - Graphic Design","(blank)","5557","Internships","555","Student Engagement and Experiential Learning","550","Student Affairs","(blank)","224","Field Experience / Practicum","no",{"$f":"IFERROR(INDEX('Work Order Master'!$S:$S,MATCH(A406,'Work Order Master'!$K:$K,0)),\"New\")","v":6412},{"$f":"IFERROR(INDEX('Work Order Master'!T:T,MATCH(WORKORDERS!$Q406,'Work Order Master'!$S:$S,0)),Q406)","v":"CO-OP: GRAPHIC DESIGN"},{"$f":"IFERROR(INDEX('FRS CC Master'!A:A,MATCH(WORKORDERS!$Q406*1,'FRS CC Master'!$C:$C,0)),WORKORDERS!$L406)","v":"Student Affairs"},{"$f":"IFERROR(VLOOKUP($A406,'Work Order Master'!$K:$Q,7,FALSE),\"Remove\")","v":"N"}]
["15557-5-1","SA Internships - Interior Design","Active","15557-5","SA Internships - Interior Design","(blank)","5557","Internships","555","Student Engagement and Experiential Learning","550","Student Affairs","(blank)","224","Field Experience / Practicum","no",{"$f":"IFERROR(INDEX('Work Order Master'!$S:$S,MATCH(A407,'Work Order Master'!$K:$K,0)),\"New\")","v":6410},{"$f":"IFERROR(INDEX('Work Order Master'!T:T,MATCH(WORKORDERS!$Q407,'Work Order Master'!$S:$S,0)),Q407)","v":"CO-OP: INTERIOR DESIGN"},{"$f":"IFERROR(INDEX('FRS CC Master'!A:A,MATCH(WORKORDERS!$Q407*1,'FRS CC Master'!$C:$C,0)),WORKORDERS!$L407)","v":"Student Affairs"},{"$f":"IFERROR(VLOOKUP($A407,'Work Order Master'!$K:$Q,7,FALSE),\"Remove\")","v":"N"}]
["15557-6-1","SA Internships - Philosophy","Active","15557-6","SA Internships - Philosophy","(blank)","5557","Internships","555","Student Engagement and Experiential Learning","550","Student Affairs","(blank)","224","Field Experience / Practicum","no",{"$f":"IFERROR(INDEX('Work Order Master'!$S:$S,MATCH(A408,'Work Order Master'!$K:$K,0)),\"New\")","v":6409},{"$f":"IFERROR(INDEX('Work Order Master'!T:T,MATCH(WORKORDERS!$Q408,'Work Order Master'!$S:$S,0)),Q408)","v":"CO-OP: PHILOSOPHY"},{"$f":"IFERROR(INDEX('FRS CC Master'!A:A,MATCH(WORKORDERS!$Q408*1,'FRS CC Master'!$C:$C,0)),WORKORDERS!$L408)","v":"Student Affairs"},{"$f":"IFERROR(VLOOKUP($A408,'Work Order Master'!$K:$Q,7,FALSE),\"Remove\")","v":"N"}]
["15557-7-1","SA Internships - Physical Education","Active","15557-7","SA Internships - Physical Education","(blank)","5557","Internships","555","Student Engagement and Experiential Learning","550","Student Affairs","(blank)","224","Field Experience / Practicum","no",{"$f":"IFERROR(INDEX('Work Order Master'!$S:$S,MATCH(A409,'Work Order Master'!$K:$K,0)),\"New\")","v":6403},{"$f":"IFERROR(INDEX('Work Order Master'!T:T,MATCH(WORKORDERS!$Q409,'Work Order Master'!$S:$S,0)),Q409)","v":"CO-OP: PHYSICAL EDUCATION"},{"$f":"IFERROR(INDEX('FRS CC Master'!A:A,MATCH(WORKORDERS!$Q409*1,'FRS CC Master'!$C:$C,0)),WORKORDERS!$L409)","v":"Student Affairs"},{"$f":"IFERROR(VLOOKUP($A409,'Work Order Master'!$K:$Q,7,FALSE),\"Remove\")","v":"N"}]
["15558-1-1","SA On Campus Employment - Work Op","Active","15558-1","SA On Campus Employment - Contracts","(blank)","5558","On Campus Employment","555","Student Engagement and Experiential Learning","550","Student Affairs","(blank)","217","Student Support and Services","no",{"$f":"IFERROR(INDEX('Work Order Master'!$S:$S,MATCH(A410,'Work Order Master'!$K:$K,0)),\"New\")","v":6306},{"$f":"IFERROR(INDEX('Work Order Master'!T:T,MATCH(WORKORDERS!$Q410,'Work Order Master'!$S:$S,0)),Q410)","v":"WORK-OP PROGRAM"},{"$f":"IFERROR(INDEX('FRS CC Master'!A:A,MATCH(WORKORDERS!$Q410*1,'FRS CC Master'!$C:$C,0)),WORKORDERS!$L410)","v":"Student Affairs"},{"$f":"IFERROR(VLOOKUP($A410,'Work Order Master'!$K:$Q,7,FALSE),\"Remove\")","v":"N"}]
["15558-1-2","SA On Campus employment - Student Summer employment","Active","15558-1","SA On Campus Employment - Contracts","(blank)","5558","On Campus Employment","555","Student Engagement and Experiential Learning","550","Student Affairs","(blank)","217","Student Support and Services","no",{"$f":"IFERROR(INDEX('Work Order Master'!$S:$S,MATCH(A411,'Work Order Master'!$K:$K,0)),\"New\")","v":6505},{"$f":"IFERROR(INDEX('Work Order Master'!T:T,MATCH(WORKORDERS!$Q411,'Work Order Master'!$S:$S,0)),Q411)","v":"STUDENT SUMMER EMPL-FEDER"},{"$f":"IFERROR(INDEX('FRS CC Master'!A:A,MATCH(WORKORDERS!$Q411*1,'FRS CC Master'!$C:$C,0)),WORKORDERS!$L411)","v":"Student Affairs"},{"$f":"IFERROR(VLOOKUP($A411,'Work Order Master'!$K:$Q,7,FALSE),\"Remove\")","v":"N"}]
["15580-1-1","SA Athletics and Recreation Department","Active","15580-1","SA Athletics and Recreation Department","(blank)","5580","Athletics and Recreation Department","558","Athletics and Recreation","550","Student Affairs","(blank)","200","Academic Administration","no",{"$f":"IFERROR(INDEX('Work Order Master'!$S:$S,MATCH(A412,'Work Order Master'!$K:$K,0)),\"New\")","v":5070},{"$f":"IFERROR(INDEX('Work Order Master'!T:T,MATCH(WORKORDERS!$Q412,'Work Order Master'!$S:$S,0)),Q412)","v":"ATHLETICS"},{"$f":"IFERROR(INDEX('FRS CC Master'!A:A,MATCH(WORKORDERS!$Q412*1,'FRS CC Master'!$C:$C,0)),WORKORDERS!$L412)","v":"Student Affairs"},{"$f":"IFERROR(VLOOKUP($A412,'Work Order Master'!$K:$Q,7,FALSE),\"Remove\")","v":"N"}]
["15580-2-1","SA Athletics and Recreation Department - Student Activity Fee","Active","15580-2","SA Athletics and Recreation Department - Student Activity Fee","(blank)","5580","Athletics and Recreation Department","558","Athletics and Recreation","550","Student Affairs","(blank)","200","Academic Administration","no",{"$f":"IFERROR(INDEX('Work Order Master'!$S:$S,MATCH(A413,'Work Order Master'!$K:$K,0)),\"New\")","v":5079},{"$f":"IFERROR(INDEX('Work Order Master'!T:T,MATCH(WORKORDERS!$Q413,'Work Order Master'!$S:$S,0)),Q413)","v":"STUDENT ACTIVITY FEE"},{"$f":"IFERROR(INDEX('FRS CC Master'!A:A,MATCH(WORKORDERS!$Q413*1,'FRS CC Master'!$C:$C,0)),WORKORDERS!$L413)","v":"Student Affairs"},{"$f":"IFERROR(VLOOKUP($A413,'Work Order Master'!$K:$Q,7,FALSE),\"Remove\")","v":"N"}]
["15581-1-1","SA Athletics and Recreation Fundraising","Active","15581-1","SA Athletics and Recreation Fundraising","(blank)","5581","Athletics and Recreation Department - Initiatives","558","Athletics and Recreation","550","Student Affairs","(blank)","217","Student Support and Services","no",{"$f":"IFERROR(INDEX('Work Order Master'!$S:$S,MATCH(A414,'Work Order Master'!$K:$K,0)),\"New\")","v":5076},{"$f":"IFERROR(INDEX('Work Order Master'!T:T,MATCH(WORKORDERS!$Q414,'Work Order Master'!$S:$S,0)),Q414)","v":"ATHLETICS FUNDRAISING"},{"$f":"IFERROR(INDEX('FRS CC Master'!A:A,MATCH(WORKORDERS!$Q414*1,'FRS CC Master'!$C:$C,0)),WORKORDERS!$L414)","v":"Student Affairs"},{"$f":"IFERROR(VLOOKUP($A414,'Work Order Master'!$K:$Q,7,FALSE),\"Remove\")","v":"N"}]
["15581-2-1","SA National Travel Pool","Active","15581-2","SA National Travel Pool","(blank)","5581","Athletics and Recreation Department - Initiatives","558","Athletics and Recreation","550","Student Affairs","(blank)","217","Student Support and Services","no",{"$f":"IFERROR(INDEX('Work Order Master'!$S:$S,MATCH(A415,'Work Order Master'!$K:$K,0)),\"New\")","v":5077},{"$f":"IFERROR(INDEX('Work Order Master'!T:T,MATCH(WORKORDERS!$Q415,'Work Order Master'!$S:$S,0)),Q415)","v":"NATIONAL TRAVEL POOL"},{"$f":"IFERROR(INDEX('FRS CC Master'!A:A,MATCH(WORKORDERS!$Q415*1,'FRS CC Master'!$C:$C,0)),WORKORDERS!$L415)","v":"Student Affairs"},{"$f":"IFERROR(VLOOKUP($A415,'Work Order Master'!$K:$Q,7,FALSE),\"Remove\")","v":"N"}]
["15581-3-1","SA Sports Development Centre","Active","15581-3","SA Sports Development Centre","(blank)","5581","Athletics and Recreation Department - Initiatives","558","Athletics and Recreation","550","Student Affairs","(blank)","217","Student Support and Services","no",{"$f":"IFERROR(INDEX('Work Order Master'!$S:$S,MATCH(A416,'Work Order Master'!$K:$K,0)),\"New\")","v":5078},{"$f":"IFERROR(INDEX('Work Order Master'!T:T,MATCH(WORKORDERS!$Q416,'Work Order Master'!$S:$S,0)),Q416)","v":"SPORTS DEVELOPMENT CENTRE"},{"$f":"IFERROR(INDEX('FRS CC Master'!A:A,MATCH(WORKORDERS!$Q416*1,'FRS CC Master'!$C:$C,0)),WORKORDERS!$L416)","v":"Student Affairs"},{"$f":"IFERROR(VLOOKUP($A416,'Work Order Master'!$K:$Q,7,FALSE),\"Remove\")","v":"N"}]
["15585-1-1","SA Gym Management","Active","15585-1","SA Gym Management","(blank)","5585","Gym Management","558","Athletics and Recreation","550","Student Affairs","(blank)","217","Student Support and Services","no",{"$f":"IFERROR(INDEX('Work Order Master'!$S:$S,MATCH(A417,'Work Order Master'!$K:$K,0)),\"New\")","v":5073},{"$f":"IFERROR(INDEX('Work Order Master'!T:T,MATCH(WORKORDERS!$Q417,'Work Order Master'!$S:$S,0)),Q417)","v":"GYM MANAGEMENT"},{"$f":"IFERROR(INDEX('FRS CC Master'!A:A,MATCH(WORKORDERS!$Q417*1,'FRS CC Master'!$C:$C,0)),WORKORDERS!$L417)","v":"Student Affairs"},{"$f":"IFERROR(VLOOKUP($A417,'Work Order Master'!$K:$Q,7,FALSE),\"Remove\")","v":"N"}]
["15586-1-1","SA Recreation - Fitness","Active","15586-1","SA Recreation - Fitness","(blank)","5586","Recreation","558","Athletics and Recreation","550","Student Affairs","(blank)","217","Student Support and Services","no",{"$f":"IFERROR(INDEX('Work Order Master'!$S:$S,MATCH(A418,'Work Order Master'!$K:$K,0)),\"New\")","v":5072},{"$f":"IFERROR(INDEX('Work Order Master'!T:T,MATCH(WORKORDERS!$Q418,'Work Order Master'!$S:$S,0)),Q418)","v":"FITNESS AND INTRAMURALS"},{"$f":"IFERROR(INDEX('FRS CC Master'!A:A,MATCH(WORKORDERS!$Q418*1,'FRS CC Master'!$C:$C,0)),WORKORDERS!$L418)","v":"Student Affairs"},{"$f":"IFERROR(VLOOKUP($A418,'Work Order Master'!$K:$Q,7,FALSE),\"Remove\")","v":"N"}]
["15586-2-1","SA Recreation - Intramurals","Parked","15586-2","SA Recreation - Intramurals","(blank)","5586","Recreation","558","Athletics and Recreation","550","Student Affairs","(blank)","217","Student Support and Services","no",{"$f":"IFERROR(INDEX('Work Order Master'!$S:$S,MATCH(A419,'Work Order Master'!$K:$K,0)),\"New\")","v":"New"},{"$f":"IFERROR(INDEX('Work Order Master'!T:T,MATCH(WORKORDERS!$Q419,'Work Order Master'!$S:$S,0)),Q419)","v":"New"},{"$f":"IFERROR(INDEX('FRS CC Master'!A:A,MATCH(WORKORDERS!$Q419*1,'FRS CC Master'!$C:$C,0)),WORKORDERS!$L419)","v":"Student Affairs"},{"$f":"IFERROR(VLOOKUP($A419,'Work Order Master'!$K:$Q,7,FALSE),\"Remove\")","v":"P"}]
["15586-3-1","SA Recreation - Camps","Parked","15586-3","SA Recreation - Camps","(blank)","5586","Recreation","558","Athletics and Recreation","550","Student Affairs","(blank)","217","Student Support and Services","no",{"$f":"IFERROR(INDEX('Work Order Master'!$S:$S,MATCH(A420,'Work Order Master'!$K:$K,0)),\"New\")","v":"New"},{"$f":"IFERROR(INDEX('Work Order Master'!T:T,MATCH(WORKORDERS!$Q420,'Work Order Master'!$S:$S,0)),Q420)","v":"New"},{"$f":"IFERROR(INDEX('FRS CC Master'!A:A,MATCH(WORKORDERS!$Q420*1,'FRS CC Master'!$C:$C,0)),WORKORDERS!$L420)","v":"Student Affairs"},{"$f":"IFERROR(VLOOKUP($A420,'Work Order Master'!$K:$Q,7,FALSE),\"Remove\")","v":"P"}]
["15587-1-1","SA Outdoor Recreation","Active","15587-1","SA Outdoor Recreation","(blank)","5587","Outdoor Recreation","558","Athletics and Recreation","550","Student Affairs","(blank)","217","Student Support and Services","no",{"$f":"IFERROR(INDEX('Work Order Master'!$S:$S,MATCH(A421,'Work Order Master'!$K:$K,0)),\"New\")","v":5071},{"$f":"IFERROR(INDEX('Work Order Master'!T:T,MATCH(WORKORDERS!$Q421,'Work Order Master'!$S:$S,0)),Q421)","v":"OUTDOOR RECREATION"},{"$f":"IFERROR(INDEX('FRS CC Master'!A:A,MATCH(WORKORDERS!$Q421*1,'FRS CC Master'!$C:$C,0)),WORKORDERS!$L421)","v":"Student Affairs"},{"$f":"IFERROR(VLOOKUP($A421,'Work Order Master'!$K:$Q,7,FALSE),\"Remove\")","v":"N"}]
["15587-2-1","SA Outdoor Recreation - Development","Parked","15587-2","SA Outdoor Recreation - Development","(blank)","5587","Outdoor Recreation","558","Athletics and Recreation","550","Student Affairs","(blank)","217","Student Support and Services","no",{"$f":"IFERROR(INDEX('Work Order Master'!$S:$S,MATCH(A422,'Work Order Master'!$K:$K,0)),\"New\")","v":"New"},{"$f":"IFERROR(INDEX('Work Order Master'!T:T,MATCH(WORKORDERS!$Q422,'Work Order Master'!$S:$S,0)),Q422)","v":"New"},{"$f":"IFERROR(INDEX('FRS CC Master'!A:A,MATCH(WORKORDERS!$Q422*1,'FRS CC Master'!$C:$C,0)),WORKORDERS!$L422)","v":"Student Affairs"},{"$f":"IFERROR(VLOOKUP($A422,'Work Order Master'!$K:$Q,7,FALSE),\"Remove\")","v":"Remove"}]
["15588-1-1","SA Athletics","Active","15588-1","SA Athletics","(blank)","5588","Athletics","558","Athletics and Recreation","550","Student Affairs","(blank)","217","Student Support and Services","no",{"$f":"IFERROR(INDEX('Work Order Master'!$S:$S,MATCH(A423,'Work Order Master'!$K:$K,0)),\"New\")","v":5074},{"$f":"IFERROR(INDEX('Work Order Master'!T:T,MATCH(WORKORDERS!$Q423,'Work Order Master'!$S:$S,0)),Q423)","v":"STUDENT ACTIVITIES"},{"$f":"IFERROR(INDEX('FRS CC Master'!A:A,MATCH(WORKORDERS!$Q423*1,'FRS CC Master'!$C:$C,0)),WORKORDERS!$L423)","v":"Student Affairs"},{"$f":"IFERROR(VLOOKUP($A423,'Work Order Master'!$K:$Q,7,FALSE),\"Remove\")","v":"N"}]
["15588-1-2","SA Athletics - Banquet","Parked","15588-1","SA Athletics","(blank)","5588","Athletics","558","Athletics and Recreation","550","Student Affairs","(blank)","217","Student Support and Services","no",{"$f":"IFERROR(INDEX('Work Order Master'!$S:$S,MATCH(A424,'Work Order Master'!$K:$K,0)),\"New\")","v":"New"},{"$f":"IFERROR(INDEX('Work Order Master'!T:T,MATCH(WORKORDERS!$Q424,'Work Order Master'!$S:$S,0)),Q424)","v":"New"},{"$f":"IFERROR(INDEX('FRS CC Master'!A:A,MATCH(WORKORDERS!$Q424*1,'FRS CC Master'!$C:$C,0)),WORKORDERS!$L424)","v":"Student Affairs"},{"$f":"IFERROR(VLOOKUP($A424,'Work Order Master'!$K:$Q,7,FALSE),\"Remove\")","v":"P"}]
["15588-2-1","SA Men's Basketball","Active","15588-2","SA Athletics - Basketball","(blank)","5588","Athletics","558","Athletics and Recreation","550","Student Affairs","(blank)","217","Student Support and Services","no",{"$f":"IFERROR(INDEX('Work Order Master'!$S:$S,MATCH(A425,'Work Order Master'!$K:$K,0)),\"New\")","v":5083},{"$f":"IFERROR(INDEX('Work Order Master'!T:T,MATCH(WORKORDERS!$Q425,'Work Order Master'!$S:$S,0)),Q425)","v":"MEN'S BASKETBALL"},{"$f":"IFERROR(INDEX('FRS CC Master'!A:A,MATCH(WORKORDERS!$Q425*1,'FRS CC Master'!$C:$C,0)),WORKORDERS!$L425)","v":"Student Affairs"},{"$f":"IFERROR(VLOOKUP($A425,'Work Order Master'!$K:$Q,7,FALSE),\"Remove\")","v":"N"}]
["15588-2-2","SA Women's Basketball","Active","15588-2","SA Athletics - Basketball","(blank)","5588","Athletics","558","Athletics and Recreation","550","Student Affairs","(blank)","217","Student Support and Services","no",{"$f":"IFERROR(INDEX('Work Order Master'!$S:$S,MATCH(A426,'Work Order Master'!$K:$K,0)),\"New\")","v":5084},{"$f":"IFERROR(INDEX('Work Order Master'!T:T,MATCH(WORKORDERS!$Q426,'Work Order Master'!$S:$S,0)),Q426)","v":"WOMEN'S BASKETBALL"},{"$f":"IFERROR(INDEX('FRS CC Master'!A:A,MATCH(WORKORDERS!$Q426*1,'FRS CC Master'!$C:$C,0)),WORKORDERS!$L426)","v":"Student Affairs"},{"$f":"IFERROR(VLOOKUP($A426,'Work Order Master'!$K:$Q,7,FALSE),\"Remove\")","v":"N"}]
["15588-3-1","SA Men's Soccer","Active","15588-3","SA Athletics - Soccer","(blank)","5588","Athletics","558","Athletics and Recreation","550","Student Affairs","(blank)","217","Student Support and Services","no",{"$f":"IFERROR(INDEX('Work Order Master'!$S:$S,MATCH(A427,'Work Order Master'!$K:$K,0)),\"New\")","v":5087},{"$f":"IFERROR(INDEX('Work Order Master'!T:T,MATCH(WORKORDERS!$Q427,'Work Order Master'!$S:$S,0)),Q427)","v":"MEN'S SOCCER"},{"$f":"IFERROR(INDEX('FRS CC Master'!A:A,MATCH(WORKORDERS!$Q427*1,'FRS CC Master'!$C:$C,0)),WORKORDERS!$L427)","v":"Student Affairs"},{"$f":"IFERROR(VLOOKUP($A427,'Work Order Master'!$K:$Q,7,FALSE),\"Remove\")","v":"N"}]
["15588-3-2","SA Women's Soccer","Active","15588-3","SA Athletics - Soccer","(blank)","5588","Athletics","558","Athletics and Recreation","550","Student Affairs","(blank)","217","Student Support and Services","no",{"$f":"IFERROR(INDEX('Work Order Master'!$S:$S,MATCH(A428,'Work Order Master'!$K:$K,0)),\"New\")","v":5088},{"$f":"IFERROR(INDEX('Work Order Master'!T:T,MATCH(WORKORDERS!$Q428,'Work Order Master'!$S:$S,0)),Q428)","v":"WOMEN'S SOCCER"},{"$f":"IFERROR(INDEX('FRS CC Master'!A:A,MATCH(WORKORDERS!$Q428*1,'FRS CC Master'!$C:$C,0)),WORKORDERS!$L428)","v":"Student Affairs"},{"$f":"IFERROR(VLOOKUP($A428,'Work Order Master'!$K:$Q,7,FALSE),\"Remove\")","v":"N"}]
["15588-4-1","SA Men's Volleyball","Active","15588-4","SA Athletics - Volleyball","(blank)","5588","Athletics","558","Athletics and Recreation","550","Student Affairs","(blank)","217","Student Support and Services","no",{"$f":"IFERROR(INDEX('Work Order Master'!$S:$S,MATCH(A429,'Work Order Master'!$K:$K,0)),\"New\")","v":5085},{"$f":"IFERROR(INDEX('Work Order Master'!T:T,MATCH(WORKORDERS!$Q429,'Work Order Master'!$S:$S,0)),Q429)","v":"MEN'S VOLLEYBALL"},{"$f":"IFERROR(INDEX('FRS CC Master'!A:A,MATCH(WORKORDERS!$Q429*1,'FRS CC Master'!$C:$C,0)),WORKORDERS!$L429)","v":"Student Affairs"},{"$f":"IFERROR(VLOOKUP($A429,'Work Order Master'!$K:$Q,7,FALSE),\"Remove\")","v":"N"}]
["15588-4-2","SA Women's Volleyball","Active","15588-4","SA Athletics - Volleyball","(blank)","5588","Athletics","558","Athletics and Recreation","550","Student Affairs","(blank)","217","Student Support and Services","no",{"$f":"IFERROR(INDEX('Work Order Master'!$S:$S,MATCH(A430,'Work Order Master'!$K:$K,0)),\"New\")","v":5086},{"$f":"IFERROR(INDEX('Work Order Master'!T:T,MATCH(WORKORDERS!$Q430,'Work Order Master'!$S:$S,0)),Q430)","v":"WOMEN'S VOLLEYBALL"},{"$f":"IFERROR(INDEX('FRS CC Master'!A:A,MATCH(WORKORDERS!$Q430*1,'FRS CC Master'!$C:$C,0)),WORKORDERS!$L430)","v":"Student Affairs"},{"$f":"IFERROR(VLOOKUP($A430,'Work Order Master'!$K:$Q,7,FALSE),\"Remove\")","v":"N"}]
["15588-5-1","SA Athletics - Club Badminton","Active","15588-5","SA Athletics - Club","(blank)","5588","Athletics","558","Athletics and Recreation","550","Student Affairs","(blank)","217","Student Support and Services","no",{"$f":"IFERROR(INDEX('Work Order Master'!$S:$S,MATCH(A431,'Work Order Master'!$K:$K,0)),\"New\")","v":5089},{"$f":"IFERROR(INDEX('Work Order Master'!T:T,MATCH(WORKORDERS!$Q431,'Work Order Master'!$S:$S,0)),Q431)","v":"BADMINTON"},{"$f":"IFERROR(INDEX('FRS CC Master'!A:A,MATCH(WORKORDERS!$Q431*1,'FRS CC Master'!$C:$C,0)),WORKORDERS!$L431)","v":"Student Affairs"},{"$f":"IFERROR(VLOOKUP($A431,'Work Order Master'!$K:$Q,7,FALSE),\"Remove\")","v":"N"}]
["15588-5-2","SA Athletics - Club Baseball","Parked","15588-5","SA Athletics - Club","(blank)","5588","Athletics","558","Athletics and Recreation","550","Student Affairs","(blank)","217","Student Support and Services","no",{"$f":"IFERROR(INDEX('Work Order Master'!$S:$S,MATCH(A432,'Work Order Master'!$K:$K,0)),\"New\")","v":"New"},{"$f":"IFERROR(INDEX('Work Order Master'!T:T,MATCH(WORKORDERS!$Q432,'Work Order Master'!$S:$S,0)),Q432)","v":"New"},{"$f":"IFERROR(INDEX('FRS CC Master'!A:A,MATCH(WORKORDERS!$Q432*1,'FRS CC Master'!$C:$C,0)),WORKORDERS!$L432)","v":"Student Affairs"},{"$f":"IFERROR(VLOOKUP($A432,'Work Order Master'!$K:$Q,7,FALSE),\"Remove\")","v":"Remove"}]
["15588-5-3","SA Athletics - Club Golf","Active","15588-5","SA Athletics - Club","(blank)","5588","Athletics","558","Athletics and Recreation","550","Student Affairs","(blank)","217","Student Support and Services","no",{"$f":"IFERROR(INDEX('Work Order Master'!$S:$S,MATCH(A433,'Work Order Master'!$K:$K,0)),\"New\")","v":5080},{"$f":"IFERROR(INDEX('Work Order Master'!T:T,MATCH(WORKORDERS!$Q433,'Work Order Master'!$S:$S,0)),Q433)","v":"GOLF"},{"$f":"IFERROR(INDEX('FRS CC Master'!A:A,MATCH(WORKORDERS!$Q433*1,'FRS CC Master'!$C:$C,0)),WORKORDERS!$L433)","v":"Student Affairs"},{"$f":"IFERROR(VLOOKUP($A433,'Work Order Master'!$K:$Q,7,FALSE),\"Remove\")","v":"N"}]
["15588-5-4","SA Athletics - Club Hockey","Parked","15588-5","SA Athletics - Club","(blank)","5588","Athletics","558","Athletics and Recreation","550","Student Affairs","(blank)","217","Student Support and Services","no",{"$f":"IFERROR(INDEX('Work Order Master'!$S:$S,MATCH(A434,'Work Order Master'!$K:$K,0)),\"New\")","v":"New"},{"$f":"IFERROR(INDEX('Work Order Master'!T:T,MATCH(WORKORDERS!$Q434,'Work Order Master'!$S:$S,0)),Q434)","v":"New"},{"$f":"IFERROR(INDEX('FRS CC Master'!A:A,MATCH(WORKORDERS!$Q434*1,'FRS CC Master'!$C:$C,0)),WORKORDERS!$L434)","v":"Student Affairs"},{"$f":"IFERROR(VLOOKUP($A434,'Work Order Master'!$K:$Q,7,FALSE),\"Remove\")","v":"P"}]
["15588-5-5","SA Athletics - Club Rugby","Parked","15588-5","SA Athletics - Club","(blank)","5588","Athletics","558","Athletics and Recreation","550","Student Affairs","(blank)","217","Student Support and Services","no",{"$f":"IFERROR(INDEX('Work Order Master'!$S:$S,MATCH(A435,'Work Order Master'!$K:$K,0)),\"New\")","v":"New"},{"$f":"IFERROR(INDEX('Work Order Master'!T:T,MATCH(WORKORDERS!$Q435,'Work Order Master'!$S:$S,0)),Q435)","v":"New"},{"$f":"IFERROR(INDEX('FRS CC Master'!A:A,MATCH(WORKORDERS!$Q435*1,'FRS CC Master'!$C:$C,0)),WORKORDERS!$L435)","v":"Student Affairs"},{"$f":"IFERROR(VLOOKUP($A435,'Work Order Master'!$K:$Q,7,FALSE),\"Remove\")","v":"Remove"}]
["15588-5-6","SA Athletics - Club Swimming","Parked","15588-5","SA Athletics - Club","(blank)","5588","Athletics","558","Athletics and Recreation","550","Student Affairs","(blank)","217","Student Support and Services","no",{"$f":"IFERROR(INDEX('Work Order Master'!$S:$S,MATCH(A436,'Work Order Master'!$K:$K,0)),\"New\")","v":"New"},{"$f":"IFERROR(INDEX('Work Order Master'!T:T,MATCH(WORKORDERS!$Q436,'Work Order Master'!$S:$S,0)),Q436)","v":"New"},{"$f":"IFERROR(INDEX('FRS CC Master'!A:A,MATCH(WORKORDERS!$Q436*1,'FRS CC Master'!$C:$C,0)),WORKORDERS!$L436)","v":"Student Affairs"},{"$f":"IFERROR(VLOOKUP($A436,'Work Order Master'!$K:$Q,7,FALSE),\"Remove\")","v":"P"}]
["15588-5-7","SA Athletics - Club Sport Programs","Active","15588-5","SA Athletics - Club","(blank)","5588","Athletics","558","Athletics and Recreation","550","Student Affairs","(blank)","217","Student Support and Services","no",{"$f":"IFERROR(INDEX('Work Order Master'!$S:$S,MATCH(A437,'Work Order Master'!$K:$K,0)),\"New\")","v":5090},{"$f":"IFERROR(INDEX('Work Order Master'!T:T,MATCH(WORKORDERS!$Q437,'Work Order Master'!$S:$S,0)),Q437)","v":"CLUB SPORT PROGRAMS"},{"$f":"IFERROR(INDEX('FRS CC Master'!A:A,MATCH(WORKORDERS!$Q437*1,'FRS CC Master'!$C:$C,0)),WORKORDERS!$L437)","v":"Student Affairs"},{"$f":"IFERROR(VLOOKUP($A437,'Work Order Master'!$K:$Q,7,FALSE),\"Remove\")","v":"N"}]
["16000-1-1","CFOVPA Office","Active","16000-1","CFOVPA Office","(blank)","6000","CFO VP Administration Office","600","CFO and VP Administration - Office","600","CFO and VP Administration - Office","(blank)","100","Administration","no",{"$f":"IFERROR(INDEX('Work Order Master'!$S:$S,MATCH(A438,'Work Order Master'!$K:$K,0)),\"New\")","v":8000},{"$f":"IFERROR(INDEX('Work Order Master'!T:T,MATCH(WORKORDERS!$Q438,'Work Order Master'!$S:$S,0)),Q438)","v":"VP Admin & Finance"},{"$f":"IFERROR(INDEX('FRS CC Master'!A:A,MATCH(WORKORDERS!$Q438*1,'FRS CC Master'!$C:$C,0)),WORKORDERS!$L438)","v":"VP Administration and Finance"},{"$f":"IFERROR(VLOOKUP($A438,'Work Order Master'!$K:$Q,7,FALSE),\"Remove\")","v":"N"}]
["16000-1-2","CFOVPA Professional Development","Active","16000-1","CFOVPA Office","(blank)","6000","CFO VP Administration Office","600","CFO and VP Administration - Office","600","CFO and VP Administration - Office","(blank)","100","Administration","no",{"$f":"IFERROR(INDEX('Work Order Master'!$S:$S,MATCH(A439,'Work Order Master'!$K:$K,0)),\"New\")","v":8003},{"$f":"IFERROR(INDEX('Work Order Master'!T:T,MATCH(WORKORDERS!$Q439,'Work Order Master'!$S:$S,0)),Q439)","v":"LEGIN - VP Admin PD"},{"$f":"IFERROR(INDEX('FRS CC Master'!A:A,MATCH(WORKORDERS!$Q439*1,'FRS CC Master'!$C:$C,0)),WORKORDERS!$L439)","v":"VP Administration and Finance"},{"$f":"IFERROR(VLOOKUP($A439,'Work Order Master'!$K:$Q,7,FALSE),\"Remove\")","v":"N"}]
["16010-1-1","CFOVPA Office - Initiatives","Parked","16010-1","CFOVPA Office - Initiatives","(blank)","6010","CFO VPA Office - Initiatives","600","CFO and VP Administration - Office","600","CFO and VP Administration - Office","(blank)","100","Administration","yes",{"$f":"IFERROR(INDEX('Work Order Master'!$S:$S,MATCH(A440,'Work Order Master'!$K:$K,0)),\"New\")","v":"New"},{"$f":"IFERROR(INDEX('Work Order Master'!T:T,MATCH(WORKORDERS!$Q440,'Work Order Master'!$S:$S,0)),Q440)","v":"New"},{"$f":"IFERROR(INDEX('FRS CC Master'!A:A,MATCH(WORKORDERS!$Q440*1,'FRS CC Master'!$C:$C,0)),WORKORDERS!$L440)","v":"CFO and VP Administration - Office"},{"$f":"IFERROR(VLOOKUP($A440,'Work Order Master'!$K:$Q,7,FALSE),\"Remove\")","v":"P"}]
["16010-1-1","CFOVPA Office - Initiatives","Parked","16010-1","CFOVPA Office - Initiatives","(blank)","6010","CFO VPA Office - Initiatives","600","CFO and VP Administration - Office","600","CFO and VP Administration - Office","(blank)","101","Institutional","yes",{"$f":"IFERROR(INDEX('Work Order Master'!$S:$S,MATCH(A441,'Work Order Master'!$K:$K,0)),\"New\")","v":"New"},{"$f":"IFERROR(INDEX('Work Order Master'!T:T,MATCH(WORKORDERS!$Q441,'Work Order Master'!$S:$S,0)),Q441)","v":"New"},{"$f":"IFERROR(INDEX('FRS CC Master'!A:A,MATCH(WORKORDERS!$Q441*1,'FRS CC Master'!$C:$C,0)),WORKORDERS!$L441)","v":"CFO and VP Administration - Office"},{"$f":"IFERROR(VLOOKUP($A441,'Work Order Master'!$K:$Q,7,FALSE),\"Remove\")","v":"P"}]
["16030-1-1","CFOVPA ASA - Divisional Holding","Active","16030-1","CFOVPA ASA - Divisional Holding","(blank)","6030","CFOVPA ASA (Administrative Support Activity)","603","CFOVPA - ASA (Administrative Support Activity)","603","CFOVPA - ASA (Administrative Support Activity)","(blank)","100","Administration","yes",{"$f":"IFERROR(INDEX('Work Order Master'!$S:$S,MATCH(A442,'Work Order Master'!$K:$K,0)),\"New\")","v":8002},{"$f":"IFERROR(INDEX('Work Order Master'!T:T,MATCH(WORKORDERS!$Q442,'Work Order Master'!$S:$S,0)),Q442)","v":"VP ADMIN DIVISION-HOLDING"},{"$f":"IFERROR(INDEX('FRS CC Master'!A:A,MATCH(WORKORDERS!$Q442*1,'FRS CC Master'!$C:$C,0)),WORKORDERS!$L442)","v":"VP Administration and Finance"},{"$f":"IFERROR(VLOOKUP($A442,'Work Order Master'!$K:$Q,7,FALSE),\"Remove\")","v":"N"}]
["16030-1-1","CFOVPA ASA - Divisional Holding","Active","16030-1","CFOVPA ASA - Divisional Holding","(blank)","6030","CFOVPA ASA (Administrative Support Activity)","603","CFOVPA - ASA (Administrative Support Activity)","603","CFOVPA - ASA (Administrative Support Activity)","(blank)","101","Institutional","yes",{"$f":"IFERROR(INDEX('Work Order Master'!$S:$S,MATCH(A443,'Work Order Master'!$K:$K,0)),\"New\")","v":8002},{"$f":"IFERROR(INDEX('Work Order Master'!T:T,MATCH(WORKORDERS!$Q443,'Work Order Master'!$S:$S,0)),Q443)","v":"VP ADMIN DIVISION-HOLDING"},{"$f":"IFERROR(INDEX('FRS CC Master'!A:A,MATCH(WORKORDERS!$Q443*1,'FRS CC Master'!$C:$C,0)),WORKORDERS!$L443)","v":"VP Administration and Finance"},{"$f":"IFERROR(VLOOKUP($A443,'Work Order Master'!$K:$Q,7,FALSE),\"Remove\")","v":"N"}]
["16030-2-1","CFOVPA ASA - COVID 19 Expenditures","Active","16030-2","CFOVPA ASA - COVID 19 Expenditures","(blank)","6030","CFOVPA ASA (Administrative Support Activity)","603","CFOVPA - ASA (Administrative Support Activity)","603","CFOVPA - ASA (Administrative Support Activity)","(blank)","101","Institutional","no",{"$f":"IFERROR(INDEX('Work Order Master'!$S:$S,MATCH(A444,'Work Order Master'!$K:$K,0)),\"New\")","v":8052},{"$f":"IFERROR(INDEX('Work Order Master'!T:T,MATCH(WORKORDERS!$Q444,'Work Order Master'!$S:$S,0)),Q444)","v":"COVID-19 EXPENDITURES"},{"$f":"IFERROR(INDEX('FRS CC Master'!A:A,MATCH(WORKORDERS!$Q444*1,'FRS CC Master'!$C:$C,0)),WORKORDERS!$L444)","v":"VP Administration and Finance"},{"$f":"IFERROR(VLOOKUP($A444,'Work Order Master'!$K:$Q,7,FALSE),\"Remove\")","v":"N"}]
["16100-1-1","IT Information Technology Division","Active","16100-1","IT Information Technology Division","(blank)","6100","Information Technology Services Division","610","Information Technology Services","610","Information Technology Services","(blank)","100","Administration","no",{"$f":"IFERROR(INDEX('Work Order Master'!$S:$S,MATCH(A445,'Work Order Master'!$K:$K,0)),\"New\")","v":6700},{"$f":"IFERROR(INDEX('Work Order Master'!T:T,MATCH(WORKORDERS!$Q445,'Work Order Master'!$S:$S,0)),Q445)","v":"INFORMATION TECHNOLOGY"},{"$f":"IFERROR(INDEX('FRS CC Master'!A:A,MATCH(WORKORDERS!$Q445*1,'FRS CC Master'!$C:$C,0)),WORKORDERS!$L445)","v":"Information Technology Services"},{"$f":"IFERROR(VLOOKUP($A445,'Work Order Master'!$K:$Q,7,FALSE),\"Remove\")","v":"N"}]
["16110-1-1","IT Operations Department","Parked","16110-1","IT Operations Department","(blank)","6110","IT Operations","611","IT Operations","610","Information Technology Services","(blank)","100","Administration","no",{"$f":"IFERROR(INDEX('Work Order Master'!$S:$S,MATCH(A446,'Work Order Master'!$K:$K,0)),\"New\")","v":"New"},{"$f":"IFERROR(INDEX('Work Order Master'!T:T,MATCH(WORKORDERS!$Q446,'Work Order Master'!$S:$S,0)),Q446)","v":"New"},{"$f":"IFERROR(INDEX('FRS CC Master'!A:A,MATCH(WORKORDERS!$Q446*1,'FRS CC Master'!$C:$C,0)),WORKORDERS!$L446)","v":"Information Technology Services"},{"$f":"IFERROR(VLOOKUP($A446,'Work Order Master'!$K:$Q,7,FALSE),\"Remove\")","v":"P"}]
["16110-2-1","IT Operations - Institutional Services","Active","16110-2","IT Information Technology Operations - Institutional","(blank)","6110","IT Operations","611","IT Operations","610","Information Technology Services","(blank)","101","Institutional","no",{"$f":"IFERROR(INDEX('Work Order Master'!$S:$S,MATCH(A447,'Work Order Master'!$K:$K,0)),\"New\")","v":6705},{"$f":"IFERROR(INDEX('Work Order Master'!T:T,MATCH(WORKORDERS!$Q447,'Work Order Master'!$S:$S,0)),Q447)","v":"INSTNL IT SERVICES "},{"$f":"IFERROR(INDEX('FRS CC Master'!A:A,MATCH(WORKORDERS!$Q447*1,'FRS CC Master'!$C:$C,0)),WORKORDERS!$L447)","v":"Information Technology Services"},{"$f":"IFERROR(VLOOKUP($A447,'Work Order Master'!$K:$Q,7,FALSE),\"Remove\")","v":"N"}]
["16110-2-2","IT TBD","Parked","16110-2","IT Information Technology Operations - Institutional","(blank)","6110","IT Operations","611","IT Operations","610","Information Technology Services","(blank)","101","Institutional","no",{"$f":"IFERROR(INDEX('Work Order Master'!$S:$S,MATCH(A448,'Work Order Master'!$K:$K,0)),\"New\")","v":"New"},{"$f":"IFERROR(INDEX('Work Order Master'!T:T,MATCH(WORKORDERS!$Q448,'Work Order Master'!$S:$S,0)),Q448)","v":"New"},{"$f":"IFERROR(INDEX('FRS CC Master'!A:A,MATCH(WORKORDERS!$Q448*1,'FRS CC Master'!$C:$C,0)),WORKORDERS!$L448)","v":"Information Technology Services"},{"$f":"IFERROR(VLOOKUP($A448,'Work Order Master'!$K:$Q,7,FALSE),\"Remove\")","v":"Remove"}]
["16110-3-1","IT Operations - SSF Funds - Access to Technology","Active","16110-3","IT Operations - SSF","(blank)","6110","IT Operations","611","IT Operations","610","Information Technology Services","(blank)","101","Institutional","no",{"$f":"IFERROR(INDEX('Work Order Master'!$S:$S,MATCH(A449,'Work Order Master'!$K:$K,0)),\"New\")","v":6720},{"$f":"IFERROR(INDEX('Work Order Master'!T:T,MATCH(WORKORDERS!$Q449,'Work Order Master'!$S:$S,0)),Q449)","v":"SSF ITS ACCESS TO TECH"},{"$f":"IFERROR(INDEX('FRS CC Master'!A:A,MATCH(WORKORDERS!$Q449*1,'FRS CC Master'!$C:$C,0)),WORKORDERS!$L449)","v":"Information Technology Services"},{"$f":"IFERROR(VLOOKUP($A449,'Work Order Master'!$K:$Q,7,FALSE),\"Remove\")","v":"N"}]
["16120-1-1","IT Client Services Department","Active","16120-1","IT Client Services Department","(blank)","6120","Client Services","611","IT Operations","610","Information Technology Services","(blank)","100","Administration","no",{"$f":"IFERROR(INDEX('Work Order Master'!$S:$S,MATCH(A450,'Work Order Master'!$K:$K,0)),\"New\")","v":6703},{"$f":"IFERROR(INDEX('Work Order Master'!T:T,MATCH(WORKORDERS!$Q450,'Work Order Master'!$S:$S,0)),Q450)","v":"IT CLIENT SERVICES"},{"$f":"IFERROR(INDEX('FRS CC Master'!A:A,MATCH(WORKORDERS!$Q450*1,'FRS CC Master'!$C:$C,0)),WORKORDERS!$L450)","v":"Information Technology Services"},{"$f":"IFERROR(VLOOKUP($A450,'Work Order Master'!$K:$Q,7,FALSE),\"Remove\")","v":"N"}]
["16120-1-2","IT Client Services - TBD","Parked","16120-1","IT Client Services Department","(blank)","6120","Client Services","611","IT Operations","610","Information Technology Services","(blank)","100","Administration","no",{"$f":"IFERROR(INDEX('Work Order Master'!$S:$S,MATCH(A451,'Work Order Master'!$K:$K,0)),\"New\")","v":"New"},{"$f":"IFERROR(INDEX('Work Order Master'!T:T,MATCH(WORKORDERS!$Q451,'Work Order Master'!$S:$S,0)),Q451)","v":"New"},{"$f":"IFERROR(INDEX('FRS CC Master'!A:A,MATCH(WORKORDERS!$Q451*1,'FRS CC Master'!$C:$C,0)),WORKORDERS!$L451)","v":"Information Technology Services"},{"$f":"IFERROR(VLOOKUP($A451,'Work Order Master'!$K:$Q,7,FALSE),\"Remove\")","v":"Remove"}]
["16120-2-1","IT Client Services - Institutional","Parked","16120-2","IT Client Services - Institutional","(blank)","6120","Client Services","611","IT Operations","610","Information Technology Services","(blank)","101","Institutional",{"$f":"IF(OR(A452=A451,A452=A453),\"yes\",\"no\")","v":"no"},{"$f":"IFERROR(INDEX('Work Order Master'!$S:$S,MATCH(A452,'Work Order Master'!$K:$K,0)),\"New\")","v":"New"},{"$f":"IFERROR(INDEX('Work Order Master'!T:T,MATCH(WORKORDERS!$Q452,'Work Order Master'!$S:$S,0)),Q452)","v":"New"},{"$f":"IFERROR(INDEX('FRS CC Master'!A:A,MATCH(WORKORDERS!$Q452*1,'FRS CC Master'!$C:$C,0)),WORKORDERS!$L452)","v":"Information Technology Services"},{"$f":"IFERROR(VLOOKUP($A452,'Work Order Master'!$K:$Q,7,FALSE),\"Remove\")","v":"P"}]
["16130-1-1","IT Infrastructure Department","Active","16130-1","IT Infrastructure Department","(blank)","6130","Infrastructure","611","IT Operations","610","Information Technology Services","(blank)","100","Administration","no",{"$f":"IFERROR(INDEX('Work Order Master'!$S:$S,MATCH(A453,'Work Order Master'!$K:$K,0)),\"New\")","v":6702},{"$f":"IFERROR(INDEX('Work Order Master'!T:T,MATCH(WORKORDERS!$Q453,'Work Order Master'!$S:$S,0)),Q453)","v":"IT INFRASTRUCTURE"},{"$f":"IFERROR(INDEX('FRS CC Master'!A:A,MATCH(WORKORDERS!$Q453*1,'FRS CC Master'!$C:$C,0)),WORKORDERS!$L453)","v":"Information Technology Services"},{"$f":"IFERROR(VLOOKUP($A453,'Work Order Master'!$K:$Q,7,FALSE),\"Remove\")","v":"N"}]
["16130-2-1","IT Infrastructure - Institutional","Active","16130-2","IT Infrastructure - Institutional","(blank)","6130","Infrastructure","611","IT Operations","610","Information Technology Services","(blank)","101","Institutional","no",{"$f":"IFERROR(INDEX('Work Order Master'!$S:$S,MATCH(A454,'Work Order Master'!$K:$K,0)),\"New\")","v":6711},{"$f":"IFERROR(INDEX('Work Order Master'!T:T,MATCH(WORKORDERS!$Q454,'Work Order Master'!$S:$S,0)),Q454)","v":"INSTNL IT INFRASTRUCTURE"},{"$f":"IFERROR(INDEX('FRS CC Master'!A:A,MATCH(WORKORDERS!$Q454*1,'FRS CC Master'!$C:$C,0)),WORKORDERS!$L454)","v":"Information Technology Services"},{"$f":"IFERROR(VLOOKUP($A454,'Work Order Master'!$K:$Q,7,FALSE),\"Remove\")","v":"N"}]
["16130-2-2","IT Infrastructure - Phone Service","Active","16130-2","IT Infrastructure - Institutional","(blank)","6130","Infrastructure","611","IT Operations","610","Information Technology Services","(blank)","101","Institutional","no",{"$f":"IFERROR(INDEX('Work Order Master'!$S:$S,MATCH(A455,'Work Order Master'!$K:$K,0)),\"New\")","v":6708},{"$f":"IFERROR(INDEX('Work Order Master'!T:T,MATCH(WORKORDERS!$Q455,'Work Order Master'!$S:$S,0)),Q455)","v":"PHONE SERVICE"},{"$f":"IFERROR(INDEX('FRS CC Master'!A:A,MATCH(WORKORDERS!$Q455*1,'FRS CC Master'!$C:$C,0)),WORKORDERS!$L455)","v":"Information Technology Services"},{"$f":"IFERROR(VLOOKUP($A455,'Work Order Master'!$K:$Q,7,FALSE),\"Remove\")","v":"N"}]
["16130-2-3","IT Infrastructure - Institutional - TBD","Parked","16130-2","IT Infrastructure - Institutional","(blank)","6130","Infrastructure","611","IT Operations","610","Information Technology Services","(blank)","101","Institutional","no",{"$f":"IFERROR(INDEX('Work Order Master'!$S:$S,MATCH(A456,'Work Order Master'!$K:$K,0)),\"New\")","v":"New"},{"$f":"IFERROR(INDEX('Work Order Master'!T:T,MATCH(WORKORDERS!$Q456,'Work Order Master'!$S:$S,0)),Q456)","v":"New"},{"$f":"IFERROR(INDEX('FRS CC Master'!A:A,MATCH(WORKORDERS!$Q456*1,'FRS CC Master'!$C:$C,0)),WORKORDERS!$L456)","v":"Information Technology Services"},{"$f":"IFERROR(VLOOKUP($A456,'Work Order Master'!$K:$Q,7,FALSE),\"Remove\")","v":"Remove"}]
["16140-1-1","IT End User Technology","Active","16140-1","IT End User Technology Department","(blank)","6140","End User Technology","611","IT Operations","610","Information Technology Services","(blank)","100","Administration","no",{"$f":"IFERROR(INDEX('Work Order Master'!$S:$S,MATCH(A457,'Work Order Master'!$K:$K,0)),\"New\")","v":6704},{"$f":"IFERROR(INDEX('Work Order Master'!T:T,MATCH(WORKORDERS!$Q457,'Work Order Master'!$S:$S,0)),Q457)","v":"IT END USER TECHNOLOGY"},{"$f":"IFERROR(INDEX('FRS CC Master'!A:A,MATCH(WORKORDERS!$Q457*1,'FRS CC Master'!$C:$C,0)),WORKORDERS!$L457)","v":"Information Technology Services"},{"$f":"IFERROR(VLOOKUP($A457,'Work Order Master'!$K:$Q,7,FALSE),\"Remove\")","v":"N"}]
["16140-2-1","IT End User Technology - Institutional","Active","16140-2","IT End User Technology - Institutional","(blank)","6140","End User Technology","611","IT Operations","610","Information Technology Services","(blank)","101","Institutional","no",{"$f":"IFERROR(INDEX('Work Order Master'!$S:$S,MATCH(A458,'Work Order Master'!$K:$K,0)),\"New\")","v":6712},{"$f":"IFERROR(INDEX('Work Order Master'!T:T,MATCH(WORKORDERS!$Q458,'Work Order Master'!$S:$S,0)),Q458)","v":"INSTNL IT END USER"},{"$f":"IFERROR(INDEX('FRS CC Master'!A:A,MATCH(WORKORDERS!$Q458*1,'FRS CC Master'!$C:$C,0)),WORKORDERS!$L458)","v":"Information Technology Services"},{"$f":"IFERROR(VLOOKUP($A458,'Work Order Master'!$K:$Q,7,FALSE),\"Remove\")","v":"N"}]
["16140-2-2","IT End User Technology - Student Printing","Active","16140-2","IT End User Technology - Institutional","(blank)","6140","End User Technology","611","IT Operations","610","Information Technology Services","(blank)","101","Institutional","no",{"$f":"IFERROR(INDEX('Work Order Master'!$S:$S,MATCH(A459,'Work Order Master'!$K:$K,0)),\"New\")","v":6701},{"$f":"IFERROR(INDEX('Work Order Master'!T:T,MATCH(WORKORDERS!$Q459,'Work Order Master'!$S:$S,0)),Q459)","v":"STUDENT PRINTING"},{"$f":"IFERROR(INDEX('FRS CC Master'!A:A,MATCH(WORKORDERS!$Q459*1,'FRS CC Master'!$C:$C,0)),WORKORDERS!$L459)","v":"Information Technology Services"},{"$f":"IFERROR(VLOOKUP($A459,'Work Order Master'!$K:$Q,7,FALSE),\"Remove\")","v":"N"}]
["16150-1-1","IT Web Management Department","Active","16150-1","IT Web Management Department","(blank)","6150","Web Management","611","IT Operations","610","Information Technology Services","(blank)","100","Administration","no",{"$f":"IFERROR(INDEX('Work Order Master'!$S:$S,MATCH(A460,'Work Order Master'!$K:$K,0)),\"New\")","v":6713},{"$f":"IFERROR(INDEX('Work Order Master'!T:T,MATCH(WORKORDERS!$Q460,'Work Order Master'!$S:$S,0)),Q460)","v":"WEB MANAGEMENT OFFICE"},{"$f":"IFERROR(INDEX('FRS CC Master'!A:A,MATCH(WORKORDERS!$Q460*1,'FRS CC Master'!$C:$C,0)),WORKORDERS!$L460)","v":"Information Technology Services"},{"$f":"IFERROR(VLOOKUP($A460,'Work Order Master'!$K:$Q,7,FALSE),\"Remove\")","v":"N"}]
["16150-2-1","IT Web Management - Institutional","Parked","16150-2","IT Web Management - Institutional","(blank)","6150","Web Management","611","IT Operations","610","Information Technology Services","(blank)","101","Institutional","no",{"$f":"IFERROR(INDEX('Work Order Master'!$S:$S,MATCH(A461,'Work Order Master'!$K:$K,0)),\"New\")","v":"New"},{"$f":"IFERROR(INDEX('Work Order Master'!T:T,MATCH(WORKORDERS!$Q461,'Work Order Master'!$S:$S,0)),Q461)","v":"New"},{"$f":"IFERROR(INDEX('FRS CC Master'!A:A,MATCH(WORKORDERS!$Q461*1,'FRS CC Master'!$C:$C,0)),WORKORDERS!$L461)","v":"Information Technology Services"},{"$f":"IFERROR(VLOOKUP($A461,'Work Order Master'!$K:$Q,7,FALSE),\"Remove\")","v":"P"}]
["16160-1-1","IT Security Department","Active","16160-1","IT Security Department","(blank)","6160","IT Security","611","IT Operations","610","Information Technology Services","(blank)","100","Administration","no",{"$f":"IFERROR(INDEX('Work Order Master'!$S:$S,MATCH(A462,'Work Order Master'!$K:$K,0)),\"New\")","v":6715},{"$f":"IFERROR(INDEX('Work Order Master'!T:T,MATCH(WORKORDERS!$Q462,'Work Order Master'!$S:$S,0)),Q462)","v":"INSTITUTION DATA SECURITY"},{"$f":"IFERROR(INDEX('FRS CC Master'!A:A,MATCH(WORKORDERS!$Q462*1,'FRS CC Master'!$C:$C,0)),WORKORDERS!$L462)","v":"Information Technology Services"},{"$f":"IFERROR(VLOOKUP($A462,'Work Order Master'!$K:$Q,7,FALSE),\"Remove\")","v":"N"}]
["16160-2-1","IT Security - Institutional","Parked","16160-2","IT Security - Institutional","(blank)","6160","IT Security","611","IT Operations","610","Information Technology Services","(blank)","101","Institutional","no",{"$f":"IFERROR(INDEX('Work Order Master'!$S:$S,MATCH(A463,'Work Order Master'!$K:$K,0)),\"New\")","v":"New"},{"$f":"IFERROR(INDEX('Work Order Master'!T:T,MATCH(WORKORDERS!$Q463,'Work Order Master'!$S:$S,0)),Q463)","v":"New"},{"$f":"IFERROR(INDEX('FRS CC Master'!A:A,MATCH(WORKORDERS!$Q463*1,'FRS CC Master'!$C:$C,0)),WORKORDERS!$L463)","v":"Information Technology Services"},{"$f":"IFERROR(VLOOKUP($A463,'Work Order Master'!$K:$Q,7,FALSE),\"Remove\")","v":"P"}]
["16180-1-1","IT Enterprise Systems Department","Active","16180-1","IT Enterprise Systems Department","(blank)","6180","Enterprise Systems","618","Enterprise Systems","610","Information Technology Services","(blank)","100","Administration","no",{"$f":"IFERROR(INDEX('Work Order Master'!$S:$S,MATCH(A464,'Work Order Master'!$K:$K,0)),\"New\")","v":6710},{"$f":"IFERROR(INDEX('Work Order Master'!T:T,MATCH(WORKORDERS!$Q464,'Work Order Master'!$S:$S,0)),Q464)","v":"ENTERPRISE SYSTEMS"},{"$f":"IFERROR(INDEX('FRS CC Master'!A:A,MATCH(WORKORDERS!$Q464*1,'FRS CC Master'!$C:$C,0)),WORKORDERS!$L464)","v":"Information Technology Services"},{"$f":"IFERROR(VLOOKUP($A464,'Work Order Master'!$K:$Q,7,FALSE),\"Remove\")","v":"N"}]
["16180-2-1","IT Enterprise Systems - Institutional","Parked","16180-2","IT Enterprise Systems - Institutional","(blank)","6180","Enterprise Systems","618","Enterprise Systems","610","Information Technology Services","(blank)","101","Institutional","no",{"$f":"IFERROR(INDEX('Work Order Master'!$S:$S,MATCH(A465,'Work Order Master'!$K:$K,0)),\"New\")","v":"New"},{"$f":"IFERROR(INDEX('Work Order Master'!T:T,MATCH(WORKORDERS!$Q465,'Work Order Master'!$S:$S,0)),Q465)","v":"New"},{"$f":"IFERROR(INDEX('FRS CC Master'!A:A,MATCH(WORKORDERS!$Q465*1,'FRS CC Master'!$C:$C,0)),WORKORDERS!$L465)","v":"Information Technology Services"},{"$f":"IFERROR(VLOOKUP($A465,'Work Order Master'!$K:$Q,7,FALSE),\"Remove\")","v":"P"}]
["16180-2-2","IT ES Institutional - TLASR Project","Active","16180-2","IT Enterprise Systems - Institutional","(blank)","6180","Enterprise Systems","618","Enterprise Systems","610","Information Technology Services","(blank)","101","Institutional","no",{"$f":"IFERROR(INDEX('Work Order Master'!$S:$S,MATCH(A466,'Work Order Master'!$K:$K,0)),\"New\")","v":6714},{"$f":"IFERROR(INDEX('Work Order Master'!T:T,MATCH(WORKORDERS!$Q466,'Work Order Master'!$S:$S,0)),Q466)","v":"TLASR PROJECT"},{"$f":"IFERROR(INDEX('FRS CC Master'!A:A,MATCH(WORKORDERS!$Q466*1,'FRS CC Master'!$C:$C,0)),WORKORDERS!$L466)","v":"Information Technology Services"},{"$f":"IFERROR(VLOOKUP($A466,'Work Order Master'!$K:$Q,7,FALSE),\"Remove\")","v":"N"}]
["16400-1-1","FSCD Facilities and Ancillary - AVP Office","Active","16400-1","FSCD Facilities & Ancillary Services - Administration","(blank)","6400","Facilities & Ancillary Services","640","Facilities and Ancillary Services","640","Facilities Services and Campus Development","(blank)","100","Administration","no",{"$f":"IFERROR(INDEX('Work Order Master'!$S:$S,MATCH(A467,'Work Order Master'!$K:$K,0)),\"New\")","v":8454},{"$f":"IFERROR(INDEX('Work Order Master'!T:T,MATCH(WORKORDERS!$Q467,'Work Order Master'!$S:$S,0)),Q467)","v":"FAC & ANCILLARY ADMIN "},{"$f":"IFERROR(INDEX('FRS CC Master'!A:A,MATCH(WORKORDERS!$Q467*1,'FRS CC Master'!$C:$C,0)),WORKORDERS!$L467)","v":"Facilities"},{"$f":"IFERROR(VLOOKUP($A467,'Work Order Master'!$K:$Q,7,FALSE),\"Remove\")","v":"N"}]
["16430-1-1","FSCD Administration","Active","16430-1","FSCD Facilities Services and Campus Development","(blank)","6430","Facilities Services and Campus Development","643","Facilities Services and Campus Development","640","Facilities Services and Campus Development","(blank)","100","Administration","no",{"$f":"IFERROR(INDEX('Work Order Master'!$S:$S,MATCH(A468,'Work Order Master'!$K:$K,0)),\"New\")","v":8450},{"$f":"IFERROR(INDEX('Work Order Master'!T:T,MATCH(WORKORDERS!$Q468,'Work Order Master'!$S:$S,0)),Q468)","v":"FSCD ADMINISTRATION"},{"$f":"IFERROR(INDEX('FRS CC Master'!A:A,MATCH(WORKORDERS!$Q468*1,'FRS CC Master'!$C:$C,0)),WORKORDERS!$L468)","v":"Facilities"},{"$f":"IFERROR(VLOOKUP($A468,'Work Order Master'!$K:$Q,7,FALSE),\"Remove\")","v":"N"}]
["16432-1-1","FSCD Recoveries - Physical Plant","Active","16432-1","FSCD Recoveries","(blank)","6432","Facilities Services","643","Facilities Services and Campus Development","640","Facilities Services and Campus Development","(blank)","100","Administration","no",{"$f":"IFERROR(INDEX('Work Order Master'!$S:$S,MATCH(A469,'Work Order Master'!$K:$K,0)),\"New\")","v":8401},{"$f":"IFERROR(INDEX('Work Order Master'!T:T,MATCH(WORKORDERS!$Q469,'Work Order Master'!$S:$S,0)),Q469)","v":"PHYS.PLANT RECOVERY"},{"$f":"IFERROR(INDEX('FRS CC Master'!A:A,MATCH(WORKORDERS!$Q469*1,'FRS CC Master'!$C:$C,0)),WORKORDERS!$L469)","v":"Facilities"},{"$f":"IFERROR(VLOOKUP($A469,'Work Order Master'!$K:$Q,7,FALSE),\"Remove\")","v":"N"}]
["16432-1-2","FSCD Recoveries - Project costs","Active","16432-1","FSCD Recoveries","(blank)","6432","Facilities Services","643","Facilities Services and Campus Development","640","Facilities Services and Campus Development","(blank)","100","Administration","no",{"$f":"IFERROR(INDEX('Work Order Master'!$S:$S,MATCH(A470,'Work Order Master'!$K:$K,0)),\"New\")","v":8402},{"$f":"IFERROR(INDEX('Work Order Master'!T:T,MATCH(WORKORDERS!$Q470,'Work Order Master'!$S:$S,0)),Q470)","v":"PROJECT COST RECOVERY"},{"$f":"IFERROR(INDEX('FRS CC Master'!A:A,MATCH(WORKORDERS!$Q470*1,'FRS CC Master'!$C:$C,0)),WORKORDERS!$L470)","v":"Facilities"},{"$f":"IFERROR(VLOOKUP($A470,'Work Order Master'!$K:$Q,7,FALSE),\"Remove\")","v":"N"}]
["16432-2-2","FSCD Risk Management","Active","16432-2","FSCD Risk Management","(blank)","6432","Facilities Services","643","Facilities Services and Campus Development","640","Facilities Services and Campus Development","(blank)","100","Administration","no",{"$f":"IFERROR(INDEX('Work Order Master'!$S:$S,MATCH(A471,'Work Order Master'!$K:$K,0)),\"New\")","v":8408},{"$f":"IFERROR(INDEX('Work Order Master'!T:T,MATCH(WORKORDERS!$Q471,'Work Order Master'!$S:$S,0)),Q471)","v":"RISK MANAGEMENT"},{"$f":"IFERROR(INDEX('FRS CC Master'!A:A,MATCH(WORKORDERS!$Q471*1,'FRS CC Master'!$C:$C,0)),WORKORDERS!$L471)","v":"Facilities"},{"$f":"IFERROR(VLOOKUP($A471,'Work Order Master'!$K:$Q,7,FALSE),\"Remove\")","v":"N"}]
["16432-3-1","FSCD HHS Portables","Active","16432-3","FSCD Properties","(blank)","6432","Facilities Services","643","Facilities Services and Campus Development","640","Facilities Services and Campus Development","(blank)","100","Administration","no",{"$f":"IFERROR(INDEX('Work Order Master'!$S:$S,MATCH(A472,'Work Order Master'!$K:$K,0)),\"New\")","v":8427},{"$f":"IFERROR(INDEX('Work Order Master'!T:T,MATCH(WORKORDERS!$Q472,'Work Order Master'!$S:$S,0)),Q472)","v":"HHS PORTABLES "},{"$f":"IFERROR(INDEX('FRS CC Master'!A:A,MATCH(WORKORDERS!$Q472*1,'FRS CC Master'!$C:$C,0)),WORKORDERS!$L472)","v":"Facilities"},{"$f":"IFERROR(VLOOKUP($A472,'Work Order Master'!$K:$Q,7,FALSE),\"Remove\")","v":"N"}]
["16432-3-2","FSCD Mariner Field Maintenance","Parked","16432-3","FSCD Properties","(blank)","6432","Facilities Services","643","Facilities Services and Campus Development","640","Facilities Services and Campus Development","(blank)","100","Administration","no",{"$f":"IFERROR(INDEX('Work Order Master'!$S:$S,MATCH(A473,'Work Order Master'!$K:$K,0)),\"New\")","v":"New"},{"$f":"IFERROR(INDEX('Work Order Master'!T:T,MATCH(WORKORDERS!$Q473,'Work Order Master'!$S:$S,0)),Q473)","v":"New"},{"$f":"IFERROR(INDEX('FRS CC Master'!A:A,MATCH(WORKORDERS!$Q473*1,'FRS CC Master'!$C:$C,0)),WORKORDERS!$L473)","v":"Facilities Services and Campus Development"},{"$f":"IFERROR(VLOOKUP($A473,'Work Order Master'!$K:$Q,7,FALSE),\"Remove\")","v":"Remove"}]
["16432-3-3","FSCD Mills Street Site","Parked","16432-3","FSCD Properties","(blank)","6432","Facilities Services","643","Facilities Services and Campus Development","640","Facilities Services and Campus Development","(blank)","100","Administration","no",{"$f":"IFERROR(INDEX('Work Order Master'!$S:$S,MATCH(A474,'Work Order Master'!$K:$K,0)),\"New\")","v":"New"},{"$f":"IFERROR(INDEX('Work Order Master'!T:T,MATCH(WORKORDERS!$Q474,'Work Order Master'!$S:$S,0)),Q474)","v":"New"},{"$f":"IFERROR(INDEX('FRS CC Master'!A:A,MATCH(WORKORDERS!$Q474*1,'FRS CC Master'!$C:$C,0)),WORKORDERS!$L474)","v":"Facilities Services and Campus Development"},{"$f":"IFERROR(VLOOKUP($A474,'Work Order Master'!$K:$Q,7,FALSE),\"Remove\")","v":"Remove"}]
["16432-3-4","FSCD Milner Gardens","Active","16432-3","FSCD Properties","(blank)","6432","Facilities Services","643","Facilities Services and Campus Development","640","Facilities Services and Campus Development","(blank)","100","Administration","no",{"$f":"IFERROR(INDEX('Work Order Master'!$S:$S,MATCH(A475,'Work Order Master'!$K:$K,0)),\"New\")","v":8445},{"$f":"IFERROR(INDEX('Work Order Master'!T:T,MATCH(WORKORDERS!$Q475,'Work Order Master'!$S:$S,0)),Q475)","v":"MILNER GARDENS"},{"$f":"IFERROR(INDEX('FRS CC Master'!A:A,MATCH(WORKORDERS!$Q475*1,'FRS CC Master'!$C:$C,0)),WORKORDERS!$L475)","v":"Facilities"},{"$f":"IFERROR(VLOOKUP($A475,'Work Order Master'!$K:$Q,7,FALSE),\"Remove\")","v":"N"}]
["16435-1-1","FSCD Campus Development","Active","16435-1","FSCD Campus Development","(blank)","6435","Campus Development","643","Facilities Services and Campus Development","640","Facilities Services and Campus Development","(blank)","100","Administration","no",{"$f":"IFERROR(INDEX('Work Order Master'!$S:$S,MATCH(A476,'Work Order Master'!$K:$K,0)),\"New\")","v":8453},{"$f":"IFERROR(INDEX('Work Order Master'!T:T,MATCH(WORKORDERS!$Q476,'Work Order Master'!$S:$S,0)),Q476)","v":"CAMPUS DEVELOPMENT"},{"$f":"IFERROR(INDEX('FRS CC Master'!A:A,MATCH(WORKORDERS!$Q476*1,'FRS CC Master'!$C:$C,0)),WORKORDERS!$L476)","v":"Facilities"},{"$f":"IFERROR(VLOOKUP($A476,'Work Order Master'!$K:$Q,7,FALSE),\"Remove\")","v":"N"}]
["16435-2-1","FSCD Universal Access","Active","16435-2","FSCD Universal Access","(blank)","6435","Campus Development","643","Facilities Services and Campus Development","640","Facilities Services and Campus Development","(blank)","100","Administration","no",{"$f":"IFERROR(INDEX('Work Order Master'!$S:$S,MATCH(A477,'Work Order Master'!$K:$K,0)),\"New\")","v":8403},{"$f":"IFERROR(INDEX('Work Order Master'!T:T,MATCH(WORKORDERS!$Q477,'Work Order Master'!$S:$S,0)),Q477)","v":"UNIVERSAL ACCESS"},{"$f":"IFERROR(INDEX('FRS CC Master'!A:A,MATCH(WORKORDERS!$Q477*1,'FRS CC Master'!$C:$C,0)),WORKORDERS!$L477)","v":"Facilities"},{"$f":"IFERROR(VLOOKUP($A477,'Work Order Master'!$K:$Q,7,FALSE),\"Remove\")","v":"N"}]
["16435-3-1","FSCD SSF Funds UAC - Health and Wellness","Active","16435-3","FSCD SSF Funds - UAC","(blank)","6435","Campus Development","643","Facilities Services and Campus Development","640","Facilities Services and Campus Development","(blank)","100","Administration","no",{"$f":"IFERROR(INDEX('Work Order Master'!$S:$S,MATCH(A478,'Work Order Master'!$K:$K,0)),\"New\")","v":8495},{"$f":"IFERROR(INDEX('Work Order Master'!T:T,MATCH(WORKORDERS!$Q478,'Work Order Master'!$S:$S,0)),Q478)","v":"SSF UAC HEALTH & WELLNESS"},{"$f":"IFERROR(INDEX('FRS CC Master'!A:A,MATCH(WORKORDERS!$Q478*1,'FRS CC Master'!$C:$C,0)),WORKORDERS!$L478)","v":"Facilities"},{"$f":"IFERROR(VLOOKUP($A478,'Work Order Master'!$K:$Q,7,FALSE),\"Remove\")","v":"N"}]
["16435-4-1","FSCD Routine Minor Maintenance","Active","16435-4","FSCD Routine Minor Maintenance","(blank)","6435","Campus Development","643","Facilities Services and Campus Development","640","Facilities Services and Campus Development","(blank)","100","Administration","no",{"$f":"IFERROR(INDEX('Work Order Master'!$S:$S,MATCH(A479,'Work Order Master'!$K:$K,0)),\"New\")","v":"8460, 8461"},{"$f":"IFERROR(INDEX('Work Order Master'!T:T,MATCH(WORKORDERS!$Q479,'Work Order Master'!$S:$S,0)),Q479)","v":"ROUTINE MINOR OPERAT EXP, ROUTINE MINOR OPERATE REV"},{"$f":"IFERROR(INDEX('FRS CC Master'!A:A,MATCH(WORKORDERS!$Q479*1,'FRS CC Master'!$C:$C,0)),WORKORDERS!$L479)","v":"Facilities Services and Campus Development"},{"$f":"IFERROR(VLOOKUP($A479,'Work Order Master'!$K:$Q,7,FALSE),\"Remove\")","v":"N"}]
["16440-1-1","FSCD Buildings and Grounds - Administration","Active","16440-1","FSCD Buildings and Grounds - Administration","(blank)","6440","Buildings and Grounds","644","Building and Grounds","640","Facilities Services and Campus Development","(blank)","100","Administration","no",{"$f":"IFERROR(INDEX('Work Order Master'!$S:$S,MATCH(A480,'Work Order Master'!$K:$K,0)),\"New\")","v":8451},{"$f":"IFERROR(INDEX('Work Order Master'!T:T,MATCH(WORKORDERS!$Q480,'Work Order Master'!$S:$S,0)),Q480)","v":"BUILDING & GROUNDS MGMT."},{"$f":"IFERROR(INDEX('FRS CC Master'!A:A,MATCH(WORKORDERS!$Q480*1,'FRS CC Master'!$C:$C,0)),WORKORDERS!$L480)","v":"Facilities"},{"$f":"IFERROR(VLOOKUP($A480,'Work Order Master'!$K:$Q,7,FALSE),\"Remove\")","v":"N"}]
["16440-2-1","FSCD Shipping & Receiving","Active","16440-2","FSCD Shipping & Receiving","(blank)","6440","Buildings and Grounds","644","Building and Grounds","640","Facilities Services and Campus Development","(blank)","100","Administration","no",{"$f":"IFERROR(INDEX('Work Order Master'!$S:$S,MATCH(A481,'Work Order Master'!$K:$K,0)),\"New\")","v":8480},{"$f":"IFERROR(INDEX('Work Order Master'!T:T,MATCH(WORKORDERS!$Q481,'Work Order Master'!$S:$S,0)),Q481)","v":"SHIPPING & RECEIVING"},{"$f":"IFERROR(INDEX('FRS CC Master'!A:A,MATCH(WORKORDERS!$Q481*1,'FRS CC Master'!$C:$C,0)),WORKORDERS!$L481)","v":"Facilities"},{"$f":"IFERROR(VLOOKUP($A481,'Work Order Master'!$K:$Q,7,FALSE),\"Remove\")","v":"N"}]
["16440-3-1","FSCD Mail & Delivery","Active","16440-3","FSCD Mail & Delivery","(blank)","6440","Buildings and Grounds","644","Building and Grounds","640","Facilities Services and Campus Development","(blank)","100","Administration","no",{"$f":"IFERROR(INDEX('Work Order Master'!$S:$S,MATCH(A482,'Work Order Master'!$K:$K,0)),\"New\")","v":8490},{"$f":"IFERROR(INDEX('Work Order Master'!T:T,MATCH(WORKORDERS!$Q482,'Work Order Master'!$S:$S,0)),Q482)","v":"MAIL & DELIVERY"},{"$f":"IFERROR(INDEX('FRS CC Master'!A:A,MATCH(WORKORDERS!$Q482*1,'FRS CC Master'!$C:$C,0)),WORKORDERS!$L482)","v":"Facilities"},{"$f":"IFERROR(VLOOKUP($A482,'Work Order Master'!$K:$Q,7,FALSE),\"Remove\")","v":"N"}]
["16442-1-1","FSCD Fleet Management","Active","16442-1","FSCD Fleet Management","(blank)","6442","Fleet Management","644","Building and Grounds","640","Facilities Services and Campus Development","(blank)","100","Administration","no",{"$f":"IFERROR(INDEX('Work Order Master'!$S:$S,MATCH(A483,'Work Order Master'!$K:$K,0)),\"New\")","v":8405},{"$f":"IFERROR(INDEX('Work Order Master'!T:T,MATCH(WORKORDERS!$Q483,'Work Order Master'!$S:$S,0)),Q483)","v":"FLEET"},{"$f":"IFERROR(INDEX('FRS CC Master'!A:A,MATCH(WORKORDERS!$Q483*1,'FRS CC Master'!$C:$C,0)),WORKORDERS!$L483)","v":"Facilities"},{"$f":"IFERROR(VLOOKUP($A483,'Work Order Master'!$K:$Q,7,FALSE),\"Remove\")","v":"N"}]
["16442-1-2","FSCD Fleet Vehicle Insurance","Active","16442-1","FSCD Fleet Management","(blank)","6442","Fleet Management","644","Building and Grounds","640","Facilities Services and Campus Development","(blank)","100","Administration","no",{"$f":"IFERROR(INDEX('Work Order Master'!$S:$S,MATCH(A484,'Work Order Master'!$K:$K,0)),\"New\")","v":8407},{"$f":"IFERROR(INDEX('Work Order Master'!T:T,MATCH(WORKORDERS!$Q484,'Work Order Master'!$S:$S,0)),Q484)","v":"MOTOR VEHICLE INSURANCE"},{"$f":"IFERROR(INDEX('FRS CC Master'!A:A,MATCH(WORKORDERS!$Q484*1,'FRS CC Master'!$C:$C,0)),WORKORDERS!$L484)","v":"Facilities"},{"$f":"IFERROR(VLOOKUP($A484,'Work Order Master'!$K:$Q,7,FALSE),\"Remove\")","v":"N"}]
["16445-1-1","FSCD Facilities Maintenance - Cowichan","Active","16445-1","FSCD Facilities Maintenance - Cowichan","(blank)","6445","Facilities Maintenance","644","Building and Grounds","640","Facilities Services and Campus Development","(blank)","100","Administration","no",{"$f":"IFERROR(INDEX('Work Order Master'!$S:$S,MATCH(A485,'Work Order Master'!$K:$K,0)),\"New\")","v":8437},{"$f":"IFERROR(INDEX('Work Order Master'!T:T,MATCH(WORKORDERS!$Q485,'Work Order Master'!$S:$S,0)),Q485)","v":"COWICHAN FACILITIES MAINT"},{"$f":"IFERROR(INDEX('FRS CC Master'!A:A,MATCH(WORKORDERS!$Q485*1,'FRS CC Master'!$C:$C,0)),WORKORDERS!$L485)","v":"Facilities"},{"$f":"IFERROR(VLOOKUP($A485,'Work Order Master'!$K:$Q,7,FALSE),\"Remove\")","v":"N"}]
["16445-2-1","FSCD Facilities Maintenance - CTC","Active","16445-2","FSCD Facilities Maintenance - CTC","(blank)","6445","Facilities Maintenance","644","Building and Grounds","640","Facilities Services and Campus Development","(blank)","100","Administration","no",{"$f":"IFERROR(INDEX('Work Order Master'!$S:$S,MATCH(A486,'Work Order Master'!$K:$K,0)),\"New\")","v":8440},{"$f":"IFERROR(INDEX('Work Order Master'!T:T,MATCH(WORKORDERS!$Q486,'Work Order Master'!$S:$S,0)),Q486)","v":"CTC FACILITIES MAINT."},{"$f":"IFERROR(INDEX('FRS CC Master'!A:A,MATCH(WORKORDERS!$Q486*1,'FRS CC Master'!$C:$C,0)),WORKORDERS!$L486)","v":"Facilities"},{"$f":"IFERROR(VLOOKUP($A486,'Work Order Master'!$K:$Q,7,FALSE),\"Remove\")","v":"N"}]
["16445-3-1","FSCD Facilities Maintenance - Deep Bay","Active","16445-3","FSCD Facilities Maintenance - Deep Bay","(blank)","6445","Facilities Maintenance","644","Building and Grounds","640","Facilities Services and Campus Development","(blank)","100","Administration","no",{"$f":"IFERROR(INDEX('Work Order Master'!$S:$S,MATCH(A487,'Work Order Master'!$K:$K,0)),\"New\")","v":8426},{"$f":"IFERROR(INDEX('Work Order Master'!T:T,MATCH(WORKORDERS!$Q487,'Work Order Master'!$S:$S,0)),Q487)","v":"DEEP BAY RESEARCH CENTRE"},{"$f":"IFERROR(INDEX('FRS CC Master'!A:A,MATCH(WORKORDERS!$Q487*1,'FRS CC Master'!$C:$C,0)),WORKORDERS!$L487)","v":"Facilities"},{"$f":"IFERROR(VLOOKUP($A487,'Work Order Master'!$K:$Q,7,FALSE),\"Remove\")","v":"N"}]
["16445-4-1","FSCD Facilities Maintenance - G.R. Paine Centre","Active","16445-4","FSCD Facilities Maintenance - G.R. Paine Centre","(blank)","6445","Facilities Maintenance","644","Building and Grounds","640","Facilities Services and Campus Development","(blank)","100","Administration","no",{"$f":"IFERROR(INDEX('Work Order Master'!$S:$S,MATCH(A488,'Work Order Master'!$K:$K,0)),\"New\")","v":8415},{"$f":"IFERROR(INDEX('Work Order Master'!T:T,MATCH(WORKORDERS!$Q488,'Work Order Master'!$S:$S,0)),Q488)","v":"GR PAINE FACILITIES MAINT"},{"$f":"IFERROR(INDEX('FRS CC Master'!A:A,MATCH(WORKORDERS!$Q488*1,'FRS CC Master'!$C:$C,0)),WORKORDERS!$L488)","v":"Facilities"},{"$f":"IFERROR(VLOOKUP($A488,'Work Order Master'!$K:$Q,7,FALSE),\"Remove\")","v":"N"}]
["16445-5-1","FSCD Facilities Maintenance - Nanaimo","Active","16445-5","FSCD Facilities Maintenance - Nanaimo","(blank)","6445","Facilities Maintenance","644","Building and Grounds","640","Facilities Services and Campus Development","(blank)","100","Administration","no",{"$f":"IFERROR(INDEX('Work Order Master'!$S:$S,MATCH(A489,'Work Order Master'!$K:$K,0)),\"New\")","v":8400},{"$f":"IFERROR(INDEX('Work Order Master'!T:T,MATCH(WORKORDERS!$Q489,'Work Order Master'!$S:$S,0)),Q489)","v":"NANAIMO FACILITIES MAINT."},{"$f":"IFERROR(INDEX('FRS CC Master'!A:A,MATCH(WORKORDERS!$Q489*1,'FRS CC Master'!$C:$C,0)),WORKORDERS!$L489)","v":"Facilities"},{"$f":"IFERROR(VLOOKUP($A489,'Work Order Master'!$K:$Q,7,FALSE),\"Remove\")","v":"N"}]
["16445-6-1","FSCD Facilities Maintenance - Parksville","Active","16445-6","FSCD Facilities Maintenance - Parksville","(blank)","6445","Facilities Maintenance","644","Building and Grounds","640","Facilities Services and Campus Development","(blank)","100","Administration","no",{"$f":"IFERROR(INDEX('Work Order Master'!$S:$S,MATCH(A490,'Work Order Master'!$K:$K,0)),\"New\")","v":8425},{"$f":"IFERROR(INDEX('Work Order Master'!T:T,MATCH(WORKORDERS!$Q490,'Work Order Master'!$S:$S,0)),Q490)","v":"PARKSVILLE MAIN CAMPUS"},{"$f":"IFERROR(INDEX('FRS CC Master'!A:A,MATCH(WORKORDERS!$Q490*1,'FRS CC Master'!$C:$C,0)),WORKORDERS!$L490)","v":"Facilities"},{"$f":"IFERROR(VLOOKUP($A490,'Work Order Master'!$K:$Q,7,FALSE),\"Remove\")","v":"N"}]
["16445-7-1","FSCD Facilities Maintenance - Powell River","Active","16445-7","FSCD Facilities Maintenance - Powell River","(blank)","6445","Facilities Maintenance","644","Building and Grounds","640","Facilities Services and Campus Development","(blank)","100","Administration","no",{"$f":"IFERROR(INDEX('Work Order Master'!$S:$S,MATCH(A491,'Work Order Master'!$K:$K,0)),\"New\")","v":8430},{"$f":"IFERROR(INDEX('Work Order Master'!T:T,MATCH(WORKORDERS!$Q491,'Work Order Master'!$S:$S,0)),Q491)","v":"POW RIVER FACILITIES MAIN"},{"$f":"IFERROR(INDEX('FRS CC Master'!A:A,MATCH(WORKORDERS!$Q491*1,'FRS CC Master'!$C:$C,0)),WORKORDERS!$L491)","v":"Facilities"},{"$f":"IFERROR(VLOOKUP($A491,'Work Order Master'!$K:$Q,7,FALSE),\"Remove\")","v":"N"}]
["16448-1-1","FSCD Grounds Maintenance - Cowichan","Active","16448-1","FSCD Grounds Maintenance - Cowichan","(blank)","6448","Grounds Maintenance","644","Building and Grounds","640","Facilities Services and Campus Development","(blank)","100","Administration","no",{"$f":"IFERROR(INDEX('Work Order Master'!$S:$S,MATCH(A492,'Work Order Master'!$K:$K,0)),\"New\")","v":8438},{"$f":"IFERROR(INDEX('Work Order Master'!T:T,MATCH(WORKORDERS!$Q492,'Work Order Master'!$S:$S,0)),Q492)","v":"COWICHAN GROUNDS"},{"$f":"IFERROR(INDEX('FRS CC Master'!A:A,MATCH(WORKORDERS!$Q492*1,'FRS CC Master'!$C:$C,0)),WORKORDERS!$L492)","v":"Facilities"},{"$f":"IFERROR(VLOOKUP($A492,'Work Order Master'!$K:$Q,7,FALSE),\"Remove\")","v":"N"}]
["16448-2-1","FSCD Grounds Maintenance - CTC","Active","16448-2","FSCD Grounds Maintenance - CTC","(blank)","6448","Grounds Maintenance","644","Building and Grounds","640","Facilities Services and Campus Development","(blank)","100","Administration","no",{"$f":"IFERROR(INDEX('Work Order Master'!$S:$S,MATCH(A493,'Work Order Master'!$K:$K,0)),\"New\")","v":8441},{"$f":"IFERROR(INDEX('Work Order Master'!T:T,MATCH(WORKORDERS!$Q493,'Work Order Master'!$S:$S,0)),Q493)","v":"CTC GROUNDS"},{"$f":"IFERROR(INDEX('FRS CC Master'!A:A,MATCH(WORKORDERS!$Q493*1,'FRS CC Master'!$C:$C,0)),WORKORDERS!$L493)","v":"Facilities"},{"$f":"IFERROR(VLOOKUP($A493,'Work Order Master'!$K:$Q,7,FALSE),\"Remove\")","v":"N"}]
["16448-3-1","FSCD Grounds Maintenance - G.R. Paine Centre","Active","16448-3","FSCD Grounds Maintenance - G.R. Paine Centre","(blank)","6448","Grounds Maintenance","644","Building and Grounds","640","Facilities Services and Campus Development","(blank)","100","Administration","no",{"$f":"IFERROR(INDEX('Work Order Master'!$S:$S,MATCH(A494,'Work Order Master'!$K:$K,0)),\"New\")","v":8416},{"$f":"IFERROR(INDEX('Work Order Master'!T:T,MATCH(WORKORDERS!$Q494,'Work Order Master'!$S:$S,0)),Q494)","v":"GR PAINE GROUNDS"},{"$f":"IFERROR(INDEX('FRS CC Master'!A:A,MATCH(WORKORDERS!$Q494*1,'FRS CC Master'!$C:$C,0)),WORKORDERS!$L494)","v":"Facilities"},{"$f":"IFERROR(VLOOKUP($A494,'Work Order Master'!$K:$Q,7,FALSE),\"Remove\")","v":"N"}]
["16448-4-1","FSCD Grounds Maintenance - Nanaimo","Active","16448-4","FSCD Grounds Maintenance - Nanaimo","(blank)","6448","Grounds Maintenance","644","Building and Grounds","640","Facilities Services and Campus Development","(blank)","100","Administration","no",{"$f":"IFERROR(INDEX('Work Order Master'!$S:$S,MATCH(A495,'Work Order Master'!$K:$K,0)),\"New\")","v":8410},{"$f":"IFERROR(INDEX('Work Order Master'!T:T,MATCH(WORKORDERS!$Q495,'Work Order Master'!$S:$S,0)),Q495)","v":"NANAIMO GROUNDS"},{"$f":"IFERROR(INDEX('FRS CC Master'!A:A,MATCH(WORKORDERS!$Q495*1,'FRS CC Master'!$C:$C,0)),WORKORDERS!$L495)","v":"Facilities"},{"$f":"IFERROR(VLOOKUP($A495,'Work Order Master'!$K:$Q,7,FALSE),\"Remove\")","v":"N"}]
["16448-5-1","FSCD Grounds Maintenance - Powell River","Active","16448-5","FSCD Grounds Maintenance - Powell River","(blank)","6448","Grounds Maintenance","644","Building and Grounds","640","Facilities Services and Campus Development","(blank)","100","Administration","no",{"$f":"IFERROR(INDEX('Work Order Master'!$S:$S,MATCH(A496,'Work Order Master'!$K:$K,0)),\"New\")","v":8431},{"$f":"IFERROR(INDEX('Work Order Master'!T:T,MATCH(WORKORDERS!$Q496,'Work Order Master'!$S:$S,0)),Q496)","v":"POW RIVER GROUNDS"},{"$f":"IFERROR(INDEX('FRS CC Master'!A:A,MATCH(WORKORDERS!$Q496*1,'FRS CC Master'!$C:$C,0)),WORKORDERS!$L496)","v":"Facilities"},{"$f":"IFERROR(VLOOKUP($A496,'Work Order Master'!$K:$Q,7,FALSE),\"Remove\")","v":"N"}]
["16450-1-1","FSCD Technical Systems  - Administration","Active","16450-1","FSCD Technical Systems  - Administration","(blank)","6450","Technical Systems","645","Technical Systems","640","Facilities Services and Campus Development","(blank)","100","Administration","no",{"$f":"IFERROR(INDEX('Work Order Master'!$S:$S,MATCH(A497,'Work Order Master'!$K:$K,0)),\"New\")","v":8452},{"$f":"IFERROR(INDEX('Work Order Master'!T:T,MATCH(WORKORDERS!$Q497,'Work Order Master'!$S:$S,0)),Q497)","v":"BUILDING SYSTEMS MGMT."},{"$f":"IFERROR(INDEX('FRS CC Master'!A:A,MATCH(WORKORDERS!$Q497*1,'FRS CC Master'!$C:$C,0)),WORKORDERS!$L497)","v":"Facilities"},{"$f":"IFERROR(VLOOKUP($A497,'Work Order Master'!$K:$Q,7,FALSE),\"Remove\")","v":"N"}]
["16452-1-1","FSCD HVAC and Utilities - Cowichan","Active","16452-1","FSCD HVAC and Utilities - Cowichan","(blank)","6452","HVAC and Utilities","645","Technical Systems","640","Facilities Services and Campus Development","(blank)","100","Administration","no",{"$f":"IFERROR(INDEX('Work Order Master'!$S:$S,MATCH(A498,'Work Order Master'!$K:$K,0)),\"New\")","v":8439},{"$f":"IFERROR(INDEX('Work Order Master'!T:T,MATCH(WORKORDERS!$Q498,'Work Order Master'!$S:$S,0)),Q498)","v":"COWICHAN HVAC & UTILITIES"},{"$f":"IFERROR(INDEX('FRS CC Master'!A:A,MATCH(WORKORDERS!$Q498*1,'FRS CC Master'!$C:$C,0)),WORKORDERS!$L498)","v":"Facilities"},{"$f":"IFERROR(VLOOKUP($A498,'Work Order Master'!$K:$Q,7,FALSE),\"Remove\")","v":"N"}]
["16452-2-1","FSCD HVAC and Utilities - CTC","Active","16452-2","FSCD HVAC and Utilities - CTC","(blank)","6452","HVAC and Utilities","645","Technical Systems","640","Facilities Services and Campus Development","(blank)","100","Administration","no",{"$f":"IFERROR(INDEX('Work Order Master'!$S:$S,MATCH(A499,'Work Order Master'!$K:$K,0)),\"New\")","v":8442},{"$f":"IFERROR(INDEX('Work Order Master'!T:T,MATCH(WORKORDERS!$Q499,'Work Order Master'!$S:$S,0)),Q499)","v":"CTC HVAC & UTILITIES"},{"$f":"IFERROR(INDEX('FRS CC Master'!A:A,MATCH(WORKORDERS!$Q499*1,'FRS CC Master'!$C:$C,0)),WORKORDERS!$L499)","v":"Facilities"},{"$f":"IFERROR(VLOOKUP($A499,'Work Order Master'!$K:$Q,7,FALSE),\"Remove\")","v":"N"}]
["16452-3-1","FSCD HVAC and Utilities - Deep Bay","Active","16452-3","FSCD HVAC and Utilities - Deep Bay","(blank)","6452","HVAC and Utilities","645","Technical Systems","640","Facilities Services and Campus Development","(blank)","100","Administration","no",{"$f":"IFERROR(INDEX('Work Order Master'!$S:$S,MATCH(A500,'Work Order Master'!$K:$K,0)),\"New\")","v":8428},{"$f":"IFERROR(INDEX('Work Order Master'!T:T,MATCH(WORKORDERS!$Q500,'Work Order Master'!$S:$S,0)),Q500)","v":"DEEP BAY HVAC & UTILITIES"},{"$f":"IFERROR(INDEX('FRS CC Master'!A:A,MATCH(WORKORDERS!$Q500*1,'FRS CC Master'!$C:$C,0)),WORKORDERS!$L500)","v":"Facilities"},{"$f":"IFERROR(VLOOKUP($A500,'Work Order Master'!$K:$Q,7,FALSE),\"Remove\")","v":"N"}]
["16452-4-1","FSCD HVAC and Utilities - G.R. Paine Centre","Active","16452-4","FSCD HVAC and Utilities - G.R. Paine Centre","(blank)","6452","HVAC and Utilities","645","Technical Systems","640","Facilities Services and Campus Development","(blank)","100","Administration","no",{"$f":"IFERROR(INDEX('Work Order Master'!$S:$S,MATCH(A501,'Work Order Master'!$K:$K,0)),\"New\")","v":8417},{"$f":"IFERROR(INDEX('Work Order Master'!T:T,MATCH(WORKORDERS!$Q501,'Work Order Master'!$S:$S,0)),Q501)","v":"GR PAINE HVAC & UTILITIES"},{"$f":"IFERROR(INDEX('FRS CC Master'!A:A,MATCH(WORKORDERS!$Q501*1,'FRS CC Master'!$C:$C,0)),WORKORDERS!$L501)","v":"Facilities"},{"$f":"IFERROR(VLOOKUP($A501,'Work Order Master'!$K:$Q,7,FALSE),\"Remove\")","v":"N"}]
["16452-5-1","FSCD HVAC and Utilities - Nanaimo","Active","16452-5","FSCD HVAC and Utilities - Nanaimo","(blank)","6452","HVAC and Utilities","645","Technical Systems","640","Facilities Services and Campus Development","(blank)","100","Administration","no",{"$f":"IFERROR(INDEX('Work Order Master'!$S:$S,MATCH(A502,'Work Order Master'!$K:$K,0)),\"New\")","v":8411},{"$f":"IFERROR(INDEX('Work Order Master'!T:T,MATCH(WORKORDERS!$Q502,'Work Order Master'!$S:$S,0)),Q502)","v":"NANAIMO HVAC & UTILITIES"},{"$f":"IFERROR(INDEX('FRS CC Master'!A:A,MATCH(WORKORDERS!$Q502*1,'FRS CC Master'!$C:$C,0)),WORKORDERS!$L502)","v":"Facilities"},{"$f":"IFERROR(VLOOKUP($A502,'Work Order Master'!$K:$Q,7,FALSE),\"Remove\")","v":"N"}]
["16452-5-2","FSCD Nanaimo Geoexchange","Active","16452-5","FSCD HVAC and Utilities - Nanaimo","(blank)","6452","HVAC and Utilities","645","Technical Systems","640","Facilities Services and Campus Development","(blank)","100","Administration","no",{"$f":"IFERROR(INDEX('Work Order Master'!$S:$S,MATCH(A503,'Work Order Master'!$K:$K,0)),\"New\")","v":8412},{"$f":"IFERROR(INDEX('Work Order Master'!T:T,MATCH(WORKORDERS!$Q503,'Work Order Master'!$S:$S,0)),Q503)","v":"GEOEXCHANGE"},{"$f":"IFERROR(INDEX('FRS CC Master'!A:A,MATCH(WORKORDERS!$Q503*1,'FRS CC Master'!$C:$C,0)),WORKORDERS!$L503)","v":"Facilities"},{"$f":"IFERROR(VLOOKUP($A503,'Work Order Master'!$K:$Q,7,FALSE),\"Remove\")","v":"N"}]
["16452-6-1","FSCD HVAC and Utilities - Powell River","Active","16452-6","FSCD HVAC and Utilities - Powell River","(blank)","6452","HVAC and Utilities","645","Technical Systems","640","Facilities Services and Campus Development","(blank)","100","Administration","no",{"$f":"IFERROR(INDEX('Work Order Master'!$S:$S,MATCH(A504,'Work Order Master'!$K:$K,0)),\"New\")","v":8432},{"$f":"IFERROR(INDEX('Work Order Master'!T:T,MATCH(WORKORDERS!$Q504,'Work Order Master'!$S:$S,0)),Q504)","v":"POW RIVER HVAC&UTILITIES"},{"$f":"IFERROR(INDEX('FRS CC Master'!A:A,MATCH(WORKORDERS!$Q504*1,'FRS CC Master'!$C:$C,0)),WORKORDERS!$L504)","v":"Facilities"},{"$f":"IFERROR(VLOOKUP($A504,'Work Order Master'!$K:$Q,7,FALSE),\"Remove\")","v":"N"}]
["16455-1-1","FSCD Audio Visual Systems","Active","16455-1","FSCD Audio Visual Systems","(blank)","6455","Audio Visual Systems","645","Technical Systems","640","Facilities Services and Campus Development","(blank)","100","Administration","no",{"$f":"IFERROR(INDEX('Work Order Master'!$S:$S,MATCH(A505,'Work Order Master'!$K:$K,0)),\"New\")","v":8456},{"$f":"IFERROR(INDEX('Work Order Master'!T:T,MATCH(WORKORDERS!$Q505,'Work Order Master'!$S:$S,0)),Q505)","v":"AUDIO-VISUAL SERVICES"},{"$f":"IFERROR(INDEX('FRS CC Master'!A:A,MATCH(WORKORDERS!$Q505*1,'FRS CC Master'!$C:$C,0)),WORKORDERS!$L505)","v":"Facilities"},{"$f":"IFERROR(VLOOKUP($A505,'Work Order Master'!$K:$Q,7,FALSE),\"Remove\")","v":"N"}]
["17000-1-1","FIN Financial Services - AVP Office","Active","17000-1","FIN Financial Services - AVP Office","(blank)","7000","Financial Services - AVP Office","700","Financial Services","700","Financial Services","(blank)","100","Administration","no",{"$f":"IFERROR(INDEX('Work Order Master'!$S:$S,MATCH(A506,'Work Order Master'!$K:$K,0)),\"New\")","v":8300},{"$f":"IFERROR(INDEX('Work Order Master'!T:T,MATCH(WORKORDERS!$Q506,'Work Order Master'!$S:$S,0)),Q506)","v":"FINANCIAL SERVICES"},{"$f":"IFERROR(INDEX('FRS CC Master'!A:A,MATCH(WORKORDERS!$Q506*1,'FRS CC Master'!$C:$C,0)),WORKORDERS!$L506)","v":"Financial Services"},{"$f":"IFERROR(VLOOKUP($A506,'Work Order Master'!$K:$Q,7,FALSE),\"Remove\")","v":"N"}]
["17010-1-1","FIN Accounting Services - Director's Office","Active","17010-1","FIN Accounting Services - Director's Office","(blank)","7010","Accounting Services - Director's Office","701","Accounting Services","700","Financial Services","(blank)","100","Administration","no",{"$f":"IFERROR(INDEX('Work Order Master'!$S:$S,MATCH(A507,'Work Order Master'!$K:$K,0)),\"New\")","v":8309},{"$f":"IFERROR(INDEX('Work Order Master'!T:T,MATCH(WORKORDERS!$Q507,'Work Order Master'!$S:$S,0)),Q507)","v":"DIRECTOR OFFICE-ACCTING"},{"$f":"IFERROR(INDEX('FRS CC Master'!A:A,MATCH(WORKORDERS!$Q507*1,'FRS CC Master'!$C:$C,0)),WORKORDERS!$L507)","v":"Financial Services"},{"$f":"IFERROR(VLOOKUP($A507,'Work Order Master'!$K:$Q,7,FALSE),\"Remove\")","v":"N"}]
["17015-1-1","FIN Accounting Services Department","Active","17015-1","FIN Accounting Services Department","(blank)","7015","Accounting Services Department","701","Accounting Services","700","Financial Services","(blank)","100","Administration","no",{"$f":"IFERROR(INDEX('Work Order Master'!$S:$S,MATCH(A508,'Work Order Master'!$K:$K,0)),\"New\")","v":8310},{"$f":"IFERROR(INDEX('Work Order Master'!T:T,MATCH(WORKORDERS!$Q508,'Work Order Master'!$S:$S,0)),Q508)","v":"ACOUNTING SERVICES"},{"$f":"IFERROR(INDEX('FRS CC Master'!A:A,MATCH(WORKORDERS!$Q508*1,'FRS CC Master'!$C:$C,0)),WORKORDERS!$L508)","v":"Financial Services"},{"$f":"IFERROR(VLOOKUP($A508,'Work Order Master'!$K:$Q,7,FALSE),\"Remove\")","v":"N"}]
["17015-2-1","FIN Accounting Services Department - Institutional","Parked","17015-2","FIN Accounting Services Department - Institutional","(blank)","7015","Accounting Services Department","701","Accounting Services","700","Financial Services","(blank)","101","Institutional","no",{"$f":"IFERROR(INDEX('Work Order Master'!$S:$S,MATCH(A509,'Work Order Master'!$K:$K,0)),\"New\")","v":"New"},{"$f":"IFERROR(INDEX('Work Order Master'!T:T,MATCH(WORKORDERS!$Q509,'Work Order Master'!$S:$S,0)),Q509)","v":"New"},{"$f":"IFERROR(INDEX('FRS CC Master'!A:A,MATCH(WORKORDERS!$Q509*1,'FRS CC Master'!$C:$C,0)),WORKORDERS!$L509)","v":"Financial Services"},{"$f":"IFERROR(VLOOKUP($A509,'Work Order Master'!$K:$Q,7,FALSE),\"Remove\")","v":"Remove"}]
["17020-1-1","FIN Accounts Payable","Active","17020-1","FIN Accounts Payable","(blank)","7020","Accounts Payable","701","Accounting Services","700","Financial Services","(blank)","100","Administration","no",{"$f":"IFERROR(INDEX('Work Order Master'!$S:$S,MATCH(A510,'Work Order Master'!$K:$K,0)),\"New\")","v":8313},{"$f":"IFERROR(INDEX('Work Order Master'!T:T,MATCH(WORKORDERS!$Q510,'Work Order Master'!$S:$S,0)),Q510)","v":"ACCOUNTS PAYABLE"},{"$f":"IFERROR(INDEX('FRS CC Master'!A:A,MATCH(WORKORDERS!$Q510*1,'FRS CC Master'!$C:$C,0)),WORKORDERS!$L510)","v":"Financial Services"},{"$f":"IFERROR(VLOOKUP($A510,'Work Order Master'!$K:$Q,7,FALSE),\"Remove\")","v":"N"}]
["17020-2-1","FIN Accounts Payable - Institutional","Parked","17020-2","FIN Accounts Payable - Institutional","(blank)","7020","Accounts Payable","701","Accounting Services","700","Financial Services","(blank)","101","Institutional","no",{"$f":"IFERROR(INDEX('Work Order Master'!$S:$S,MATCH(A511,'Work Order Master'!$K:$K,0)),\"New\")","v":"New"},{"$f":"IFERROR(INDEX('Work Order Master'!T:T,MATCH(WORKORDERS!$Q511,'Work Order Master'!$S:$S,0)),Q511)","v":"New"},{"$f":"IFERROR(INDEX('FRS CC Master'!A:A,MATCH(WORKORDERS!$Q511*1,'FRS CC Master'!$C:$C,0)),WORKORDERS!$L511)","v":"Financial Services"},{"$f":"IFERROR(VLOOKUP($A511,'Work Order Master'!$K:$Q,7,FALSE),\"Remove\")","v":"Remove"}]
["17030-1-1","FIN Procurement and Contract Services","Active","17030-1","FIN Procurement and Contract Services","(blank)","7030","Procurement and Contract Services","701","Accounting Services","700","Financial Services","(blank)","100","Administration","no",{"$f":"IFERROR(INDEX('Work Order Master'!$S:$S,MATCH(A512,'Work Order Master'!$K:$K,0)),\"New\")","v":8312},{"$f":"IFERROR(INDEX('Work Order Master'!T:T,MATCH(WORKORDERS!$Q512,'Work Order Master'!$S:$S,0)),Q512)","v":"PROCUREMENT"},{"$f":"IFERROR(INDEX('FRS CC Master'!A:A,MATCH(WORKORDERS!$Q512*1,'FRS CC Master'!$C:$C,0)),WORKORDERS!$L512)","v":"Financial Services"},{"$f":"IFERROR(VLOOKUP($A512,'Work Order Master'!$K:$Q,7,FALSE),\"Remove\")","v":"N"}]
["17030-2-1","FIN Procurement Inst - PCard Rebate","Active","17030-2","FIN Procurement - Institutional","(blank)","7030","Procurement and Contract Services","701","Accounting Services","700","Financial Services","(blank)","101","Institutional","no",{"$f":"IFERROR(INDEX('Work Order Master'!$S:$S,MATCH(A513,'Work Order Master'!$K:$K,0)),\"New\")","v":8350},{"$f":"IFERROR(INDEX('Work Order Master'!T:T,MATCH(WORKORDERS!$Q513,'Work Order Master'!$S:$S,0)),Q513)","v":"PCARD REBATE"},{"$f":"IFERROR(INDEX('FRS CC Master'!A:A,MATCH(WORKORDERS!$Q513*1,'FRS CC Master'!$C:$C,0)),WORKORDERS!$L513)","v":"Financial Services"},{"$f":"IFERROR(VLOOKUP($A513,'Work Order Master'!$K:$Q,7,FALSE),\"Remove\")","v":"N"}]
["17030-2-2","FIN Procurement Inst - Open PO Clearing","Active","17030-2","FIN Procurement - Institutional","(blank)","7030","Procurement and Contract Services","701","Accounting Services","700","Financial Services","(blank)","101","Institutional","no",{"$f":"IFERROR(INDEX('Work Order Master'!$S:$S,MATCH(A514,'Work Order Master'!$K:$K,0)),\"New\")","v":8399},{"$f":"IFERROR(INDEX('Work Order Master'!T:T,MATCH(WORKORDERS!$Q514,'Work Order Master'!$S:$S,0)),Q514)","v":"INST.OPEN PURCHASE ORDERS"},{"$f":"IFERROR(INDEX('FRS CC Master'!A:A,MATCH(WORKORDERS!$Q514*1,'FRS CC Master'!$C:$C,0)),WORKORDERS!$L514)","v":"Financial Services"},{"$f":"IFERROR(VLOOKUP($A514,'Work Order Master'!$K:$Q,7,FALSE),\"Remove\")","v":"N"}]
["17040-1-1","FIN Treasury & Collections","Active","17040-1","FIN Treasury & Collections","(blank)","7040","Treasury & Collections","701","Accounting Services","700","Financial Services","(blank)","100","Administration","no",{"$f":"IFERROR(INDEX('Work Order Master'!$S:$S,MATCH(A515,'Work Order Master'!$K:$K,0)),\"New\")","v":8311},{"$f":"IFERROR(INDEX('Work Order Master'!T:T,MATCH(WORKORDERS!$Q515,'Work Order Master'!$S:$S,0)),Q515)","v":"TREASURY & COLLECTIONS"},{"$f":"IFERROR(INDEX('FRS CC Master'!A:A,MATCH(WORKORDERS!$Q515*1,'FRS CC Master'!$C:$C,0)),WORKORDERS!$L515)","v":"Financial Services"},{"$f":"IFERROR(VLOOKUP($A515,'Work Order Master'!$K:$Q,7,FALSE),\"Remove\")","v":"N"}]
["17040-2-1","FIN Treasury & Collections Inst - Portfolio Interest","Active","17040-2","FIN Treasury & Collections - Institutional","(blank)","7040","Treasury & Collections","701","Accounting Services","700","Financial Services","(blank)","101","Institutional",{"$f":"IF(OR(A516=A515,A516=A517),\"yes\",\"no\")","v":"no"},{"$f":"IFERROR(INDEX('Work Order Master'!$S:$S,MATCH(A516,'Work Order Master'!$K:$K,0)),\"New\")","v":8340},{"$f":"IFERROR(INDEX('Work Order Master'!T:T,MATCH(WORKORDERS!$Q516,'Work Order Master'!$S:$S,0)),Q516)","v":"PORTFOLIO INTEREST"},{"$f":"IFERROR(INDEX('FRS CC Master'!A:A,MATCH(WORKORDERS!$Q516*1,'FRS CC Master'!$C:$C,0)),WORKORDERS!$L516)","v":"Financial Services"},{"$f":"IFERROR(VLOOKUP($A516,'Work Order Master'!$K:$Q,7,FALSE),\"Remove\")","v":"N"}]
["17050-1-1","FIN Financial Planning and Reporting - Director's Office","Active","17050-1","FIN Financial Planning and Reporting - Director's Office","(blank)","7050","Financial Planning and Reporting - Director's Office","705","Financial Planning & Reporting","700","Financial Services","(blank)","100","Administration","no",{"$f":"IFERROR(INDEX('Work Order Master'!$S:$S,MATCH(A517,'Work Order Master'!$K:$K,0)),\"New\")","v":8320},{"$f":"IFERROR(INDEX('Work Order Master'!T:T,MATCH(WORKORDERS!$Q517,'Work Order Master'!$S:$S,0)),Q517)","v":"DIRECTOR OFFICE-FIN PLAN"},{"$f":"IFERROR(INDEX('FRS CC Master'!A:A,MATCH(WORKORDERS!$Q517*1,'FRS CC Master'!$C:$C,0)),WORKORDERS!$L517)","v":"Financial Services"},{"$f":"IFERROR(VLOOKUP($A517,'Work Order Master'!$K:$Q,7,FALSE),\"Remove\")","v":"N"}]
["17060-1-1","FIN Budgets & Financial Planning","Active","17060-1","FIN Budgets & Financial Planning","(blank)","7060","Budgets & Financial Planning","705","Financial Planning & Reporting","700","Financial Services","(blank)","100","Administration","no",{"$f":"IFERROR(INDEX('Work Order Master'!$S:$S,MATCH(A518,'Work Order Master'!$K:$K,0)),\"New\")","v":8321},{"$f":"IFERROR(INDEX('Work Order Master'!T:T,MATCH(WORKORDERS!$Q518,'Work Order Master'!$S:$S,0)),Q518)","v":"BUDGETS & FINANCIAL PLAN"},{"$f":"IFERROR(INDEX('FRS CC Master'!A:A,MATCH(WORKORDERS!$Q518*1,'FRS CC Master'!$C:$C,0)),WORKORDERS!$L518)","v":"Financial Services"},{"$f":"IFERROR(VLOOKUP($A518,'Work Order Master'!$K:$Q,7,FALSE),\"Remove\")","v":"N"}]
["17070-1-1","FIN Payroll","Active","17070-1","FIN Payroll","(blank)","7070","Payroll","705","Financial Planning & Reporting","700","Financial Services","(blank)","100","Administration","no",{"$f":"IFERROR(INDEX('Work Order Master'!$S:$S,MATCH(A519,'Work Order Master'!$K:$K,0)),\"New\")","v":8322},{"$f":"IFERROR(INDEX('Work Order Master'!T:T,MATCH(WORKORDERS!$Q519,'Work Order Master'!$S:$S,0)),Q519)","v":"PAYROLL"},{"$f":"IFERROR(INDEX('FRS CC Master'!A:A,MATCH(WORKORDERS!$Q519*1,'FRS CC Master'!$C:$C,0)),WORKORDERS!$L519)","v":"Financial Services"},{"$f":"IFERROR(VLOOKUP($A519,'Work Order Master'!$K:$Q,7,FALSE),\"Remove\")","v":"N"}]
["17080-1-1","FIN Risk Management","Parked","17080-1","FIN Risk Management","(blank)","7080","Risk Management","700","Financial Services","700","Financial Services","(blank)","100","Administration","no",{"$f":"IFERROR(INDEX('Work Order Master'!$S:$S,MATCH(A520,'Work Order Master'!$K:$K,0)),\"New\")","v":"New"},{"$f":"IFERROR(INDEX('Work Order Master'!T:T,MATCH(WORKORDERS!$Q520,'Work Order Master'!$S:$S,0)),Q520)","v":"New"},{"$f":"IFERROR(INDEX('FRS CC Master'!A:A,MATCH(WORKORDERS!$Q520*1,'FRS CC Master'!$C:$C,0)),WORKORDERS!$L520)","v":"Financial Services"},{"$f":"IFERROR(VLOOKUP($A520,'Work Order Master'!$K:$Q,7,FALSE),\"Remove\")","v":"Remove"}]
["17081-1-1","FIN Health & Safety","Parked","17081-1","FIN Health & Safety","(blank)","7081","Health & Safety","700","Financial Services","700","Financial Services","(blank)","100","Administration","no",{"$f":"IFERROR(INDEX('Work Order Master'!$S:$S,MATCH(A521,'Work Order Master'!$K:$K,0)),\"New\")","v":"New"},{"$f":"IFERROR(INDEX('Work Order Master'!T:T,MATCH(WORKORDERS!$Q521,'Work Order Master'!$S:$S,0)),Q521)","v":"New"},{"$f":"IFERROR(INDEX('FRS CC Master'!A:A,MATCH(WORKORDERS!$Q521*1,'FRS CC Master'!$C:$C,0)),WORKORDERS!$L521)","v":"Financial Services"},{"$f":"IFERROR(VLOOKUP($A521,'Work Order Master'!$K:$Q,7,FALSE),\"Remove\")","v":"Remove"}]
["17200-1-1","MC Marketing & Communications Division","Parked","17200-1","MC Marketing & Communications Division","(blank)","7200","Marketing & Communications Division","600","CFO and VP Administration - Office","600","CFO and VP Administration - Office","(blank)","100","Administration","no",{"$f":"IFERROR(INDEX('Work Order Master'!$S:$S,MATCH(A522,'Work Order Master'!$K:$K,0)),\"New\")","v":"New"},{"$f":"IFERROR(INDEX('Work Order Master'!T:T,MATCH(WORKORDERS!$Q522,'Work Order Master'!$S:$S,0)),Q522)","v":"New"},{"$f":"IFERROR(INDEX('FRS CC Master'!A:A,MATCH(WORKORDERS!$Q522*1,'FRS CC Master'!$C:$C,0)),WORKORDERS!$L522)","v":"CFO and VP Administration - Office"},{"$f":"IFERROR(VLOOKUP($A522,'Work Order Master'!$K:$Q,7,FALSE),\"Remove\")","v":"Remove"}]
["17205-1-1","MC Marketing","Parked","17205-1","MC Marketing","(blank)","7205","Marketing","600","CFO and VP Administration - Office","600","CFO and VP Administration - Office","(blank)","100","Administration","no",{"$f":"IFERROR(INDEX('Work Order Master'!$S:$S,MATCH(A523,'Work Order Master'!$K:$K,0)),\"New\")","v":"New"},{"$f":"IFERROR(INDEX('Work Order Master'!T:T,MATCH(WORKORDERS!$Q523,'Work Order Master'!$S:$S,0)),Q523)","v":"New"},{"$f":"IFERROR(INDEX('FRS CC Master'!A:A,MATCH(WORKORDERS!$Q523*1,'FRS CC Master'!$C:$C,0)),WORKORDERS!$L523)","v":"CFO and VP Administration - Office"},{"$f":"IFERROR(VLOOKUP($A523,'Work Order Master'!$K:$Q,7,FALSE),\"Remove\")","v":"Remove"}]
["17210-1-1","MC Analytics","Parked","17210-1","MC Analytics","(blank)","7210","Analytics","600","CFO and VP Administration - Office","600","CFO and VP Administration - Office","(blank)","100","Administration","no",{"$f":"IFERROR(INDEX('Work Order Master'!$S:$S,MATCH(A524,'Work Order Master'!$K:$K,0)),\"New\")","v":"New"},{"$f":"IFERROR(INDEX('Work Order Master'!T:T,MATCH(WORKORDERS!$Q524,'Work Order Master'!$S:$S,0)),Q524)","v":"New"},{"$f":"IFERROR(INDEX('FRS CC Master'!A:A,MATCH(WORKORDERS!$Q524*1,'FRS CC Master'!$C:$C,0)),WORKORDERS!$L524)","v":"CFO and VP Administration - Office"},{"$f":"IFERROR(VLOOKUP($A524,'Work Order Master'!$K:$Q,7,FALSE),\"Remove\")","v":"Remove"}]
["17215-1-1","MC Recruitment","Parked","17215-1","MC Recruitment","(blank)","7215","Recruitment","600","CFO and VP Administration - Office","600","CFO and VP Administration - Office","(blank)","100","Administration","no",{"$f":"IFERROR(INDEX('Work Order Master'!$S:$S,MATCH(A525,'Work Order Master'!$K:$K,0)),\"New\")","v":"New"},{"$f":"IFERROR(INDEX('Work Order Master'!T:T,MATCH(WORKORDERS!$Q525,'Work Order Master'!$S:$S,0)),Q525)","v":"New"},{"$f":"IFERROR(INDEX('FRS CC Master'!A:A,MATCH(WORKORDERS!$Q525*1,'FRS CC Master'!$C:$C,0)),WORKORDERS!$L525)","v":"CFO and VP Administration - Office"},{"$f":"IFERROR(VLOOKUP($A525,'Work Order Master'!$K:$Q,7,FALSE),\"Remove\")","v":"Remove"}]
["17220-1-1","MC Communications","Parked","17220-1","MC Communications","(blank)","7220","Communications","600","CFO and VP Administration - Office","600","CFO and VP Administration - Office","(blank)","100","Administration","no",{"$f":"IFERROR(INDEX('Work Order Master'!$S:$S,MATCH(A526,'Work Order Master'!$K:$K,0)),\"New\")","v":"New"},{"$f":"IFERROR(INDEX('Work Order Master'!T:T,MATCH(WORKORDERS!$Q526,'Work Order Master'!$S:$S,0)),Q526)","v":"New"},{"$f":"IFERROR(INDEX('FRS CC Master'!A:A,MATCH(WORKORDERS!$Q526*1,'FRS CC Master'!$C:$C,0)),WORKORDERS!$L526)","v":"CFO and VP Administration - Office"},{"$f":"IFERROR(VLOOKUP($A526,'Work Order Master'!$K:$Q,7,FALSE),\"Remove\")","v":"Remove"}]
["17220-1-2","MC Communications - Indigenous Speaker Series","Parked","17220-1","MC Communications","(blank)","7220","Communications","600","CFO and VP Administration - Office","600","CFO and VP Administration - Office","(blank)","100","Administration","no",{"$f":"IFERROR(INDEX('Work Order Master'!$S:$S,MATCH(A527,'Work Order Master'!$K:$K,0)),\"New\")","v":"New"},{"$f":"IFERROR(INDEX('Work Order Master'!T:T,MATCH(WORKORDERS!$Q527,'Work Order Master'!$S:$S,0)),Q527)","v":"New"},{"$f":"IFERROR(INDEX('FRS CC Master'!A:A,MATCH(WORKORDERS!$Q527*1,'FRS CC Master'!$C:$C,0)),WORKORDERS!$L527)","v":"CFO and VP Administration - Office"},{"$f":"IFERROR(VLOOKUP($A527,'Work Order Master'!$K:$Q,7,FALSE),\"Remove\")","v":"Remove"}]
["17500-1-1","ERM Enterprise Risk Management Office","Active","17500-1","ERM Enterprise Risk Management Office","(blank)","7500","Risk Management Office","750","Enterprise Risk Management","750","Enterprise Risk Management","(blank)","100","Administration","no",{"$f":"IFERROR(INDEX('Work Order Master'!$S:$S,MATCH(A528,'Work Order Master'!$K:$K,0)),\"New\")","v":8080},{"$f":"IFERROR(INDEX('Work Order Master'!T:T,MATCH(WORKORDERS!$Q528,'Work Order Master'!$S:$S,0)),Q528)","v":"ENTERPRISE RISK MGMT"},{"$f":"IFERROR(INDEX('FRS CC Master'!A:A,MATCH(WORKORDERS!$Q528*1,'FRS CC Master'!$C:$C,0)),WORKORDERS!$L528)","v":"VP Administration and Finance"},{"$f":"IFERROR(VLOOKUP($A528,'Work Order Master'!$K:$Q,7,FALSE),\"Remove\")","v":"N"}]
["17500-2-1","ERM Emergency Management and Business Continuity","Active","17500-2","ERM Emergency Management and Business Continuity","(blank)","7500","Risk Management Office","750","Enterprise Risk Management","750","Enterprise Risk Management","(blank)","100","Administration","no",{"$f":"IFERROR(INDEX('Work Order Master'!$S:$S,MATCH(A529,'Work Order Master'!$K:$K,0)),\"New\")","v":8082},{"$f":"IFERROR(INDEX('Work Order Master'!T:T,MATCH(WORKORDERS!$Q529,'Work Order Master'!$S:$S,0)),Q529)","v":"EMRGNCY MGMT/BUSIN CONT."},{"$f":"IFERROR(INDEX('FRS CC Master'!A:A,MATCH(WORKORDERS!$Q529*1,'FRS CC Master'!$C:$C,0)),WORKORDERS!$L529)","v":"VP Administration and Finance"},{"$f":"IFERROR(VLOOKUP($A529,'Work Order Master'!$K:$Q,7,FALSE),\"Remove\")","v":"N"}]
["17550-1-1","ERM Health and Safety","Active","17550-1","ERM Health and Safety","(blank)","7550","Health and Safety","755","Health and Safety","750","Enterprise Risk Management","(blank)","100","Administration","no",{"$f":"IFERROR(INDEX('Work Order Master'!$S:$S,MATCH(A530,'Work Order Master'!$K:$K,0)),\"New\")","v":8081},{"$f":"IFERROR(INDEX('Work Order Master'!T:T,MATCH(WORKORDERS!$Q530,'Work Order Master'!$S:$S,0)),Q530)","v":"HEALTH & SAFETY SERVICES"},{"$f":"IFERROR(INDEX('FRS CC Master'!A:A,MATCH(WORKORDERS!$Q530*1,'FRS CC Master'!$C:$C,0)),WORKORDERS!$L530)","v":"VP Administration and Finance"},{"$f":"IFERROR(VLOOKUP($A530,'Work Order Master'!$K:$Q,7,FALSE),\"Remove\")","v":"N"}]
["19000-1-1","INST Balance Sheet","Active","19000-1","INST Balance Sheet","(blank)","9000","Balance Sheet","900","CFOVPA - Institutional","900","CFOVPA - Institutional","(blank)","101","Institutional","no",{"$f":"IFERROR(INDEX('Work Order Master'!$S:$S,MATCH(A531,'Work Order Master'!$K:$K,0)),\"New\")","v":"100, 200"},{"$f":"IFERROR(INDEX('Work Order Master'!T:T,MATCH(WORKORDERS!$Q531,'Work Order Master'!$S:$S,0)),Q531)","v":"ASSETS, LIABILITIES"},{"$f":"IFERROR(INDEX('FRS CC Master'!A:A,MATCH(WORKORDERS!$Q531*1,'FRS CC Master'!$C:$C,0)),WORKORDERS!$L531)","v":"CFOVPA - Institutional"},{"$f":"IFERROR(VLOOKUP($A531,'Work Order Master'!$K:$Q,7,FALSE),\"Remove\")","v":"N"}]
["19100-1-1","INST Institutional Revenue - Grants","Active","19100-1","INST Institutional Revenue - Grants","(blank)","9100","Institutional Revenue - Grants","910","Institutional Revenue","910","Institutional Revenue","(blank)","101","Institutional","no",{"$f":"IFERROR(INDEX('Work Order Master'!$S:$S,MATCH(A532,'Work Order Master'!$K:$K,0)),\"New\")","v":8009},{"$f":"IFERROR(INDEX('Work Order Master'!T:T,MATCH(WORKORDERS!$Q532,'Work Order Master'!$S:$S,0)),Q532)","v":"MINISTRY BASE GRANTS"},{"$f":"IFERROR(INDEX('FRS CC Master'!A:A,MATCH(WORKORDERS!$Q532*1,'FRS CC Master'!$C:$C,0)),WORKORDERS!$L532)","v":"Institutional Revenue"},{"$f":"IFERROR(VLOOKUP($A532,'Work Order Master'!$K:$Q,7,FALSE),\"Remove\")","v":"N"}]
["19105-1-1","INST Institutional Revenue - Tuition","Active","19105-1","INST Institutional Revenue - Tuition","(blank)","9105","Institutional Revenue - Tuition","910","Institutional Revenue","910","Institutional Revenue","(blank)","101","Institutional","no",{"$f":"IFERROR(INDEX('Work Order Master'!$S:$S,MATCH(A533,'Work Order Master'!$K:$K,0)),\"New\")","v":1090},{"$f":"IFERROR(INDEX('Work Order Master'!T:T,MATCH(WORKORDERS!$Q533,'Work Order Master'!$S:$S,0)),Q533)","v":"TUITION - NANAIMO"},{"$f":"IFERROR(INDEX('FRS CC Master'!A:A,MATCH(WORKORDERS!$Q533*1,'FRS CC Master'!$C:$C,0)),WORKORDERS!$L533)","v":"Institutional Revenue"},{"$f":"IFERROR(VLOOKUP($A533,'Work Order Master'!$K:$Q,7,FALSE),\"Remove\")","v":"N"}]
["19110-1-1","INST Institutional Revenue - Student Fees","Active","19110-1","INST Institutional Revenue - Student Fees","(blank)","9110","Institutional Revenue - Student Fees","910","Institutional Revenue","910","Institutional Revenue","(blank)","101","Institutional","no",{"$f":"IFERROR(INDEX('Work Order Master'!$S:$S,MATCH(A534,'Work Order Master'!$K:$K,0)),\"New\")","v":1089},{"$f":"IFERROR(INDEX('Work Order Master'!T:T,MATCH(WORKORDERS!$Q534,'Work Order Master'!$S:$S,0)),Q534)","v":"STUDENT FEES"},{"$f":"IFERROR(INDEX('FRS CC Master'!A:A,MATCH(WORKORDERS!$Q534*1,'FRS CC Master'!$C:$C,0)),WORKORDERS!$L534)","v":"Institutional Revenue"},{"$f":"IFERROR(VLOOKUP($A534,'Work Order Master'!$K:$Q,7,FALSE),\"Remove\")","v":"N"}]
["19115-1-1","INST Institutional Administration","Active","19115-1","INST Institutional Administration","(blank)","9115","Institutional Administration","900","CFOVPA - Institutional","900","CFOVPA - Institutional","(blank)","101","Institutional","no",{"$f":"IFERROR(INDEX('Work Order Master'!$S:$S,MATCH(A535,'Work Order Master'!$K:$K,0)),\"New\")","v":8035},{"$f":"IFERROR(INDEX('Work Order Master'!T:T,MATCH(WORKORDERS!$Q535,'Work Order Master'!$S:$S,0)),Q535)","v":"INSTITUTIONAL ADMINISTRA"},{"$f":"IFERROR(INDEX('FRS CC Master'!A:A,MATCH(WORKORDERS!$Q535*1,'FRS CC Master'!$C:$C,0)),WORKORDERS!$L535)","v":"VP Administration and Finance"},{"$f":"IFERROR(VLOOKUP($A535,'Work Order Master'!$K:$Q,7,FALSE),\"Remove\")","v":"N"}]
["19115-1-2","INST Non Insurred Losses","Active","19115-1","INST Institutional Administration","(blank)","9115","Institutional Administration","900","CFOVPA - Institutional","900","CFOVPA - Institutional","(blank)","101","Institutional","no",{"$f":"IFERROR(INDEX('Work Order Master'!$S:$S,MATCH(A536,'Work Order Master'!$K:$K,0)),\"New\")","v":8005},{"$f":"IFERROR(INDEX('Work Order Master'!T:T,MATCH(WORKORDERS!$Q536,'Work Order Master'!$S:$S,0)),Q536)","v":"NON INSURRED LOSSES"},{"$f":"IFERROR(INDEX('FRS CC Master'!A:A,MATCH(WORKORDERS!$Q536*1,'FRS CC Master'!$C:$C,0)),WORKORDERS!$L536)","v":"VP Administration and Finance"},{"$f":"IFERROR(VLOOKUP($A536,'Work Order Master'!$K:$Q,7,FALSE),\"Remove\")","v":"N"}]
["19115-2-1","INST Institutional Employee Awards","Active","19115-2","INST Institutional Employee Awards","(blank)","9115","Institutional Administration","900","CFOVPA - Institutional","900","CFOVPA - Institutional","(blank)","101","Institutional","no",{"$f":"IFERROR(INDEX('Work Order Master'!$S:$S,MATCH(A537,'Work Order Master'!$K:$K,0)),\"New\")","v":8049},{"$f":"IFERROR(INDEX('Work Order Master'!T:T,MATCH(WORKORDERS!$Q537,'Work Order Master'!$S:$S,0)),Q537)","v":"INST EMPLOYEE AWARDS"},{"$f":"IFERROR(INDEX('FRS CC Master'!A:A,MATCH(WORKORDERS!$Q537*1,'FRS CC Master'!$C:$C,0)),WORKORDERS!$L537)","v":"VP Administration and Finance"},{"$f":"IFERROR(VLOOKUP($A537,'Work Order Master'!$K:$Q,7,FALSE),\"Remove\")","v":"N"}]
["19120-1-1","INST Labour Payouts - Other","Parked","19120-1","INST Institutional Labour Payouts","(blank)","9120","Institutional Labour Payouts","900","CFOVPA - Institutional","900","CFOVPA - Institutional","(blank)","101","Institutional","no",{"$f":"IFERROR(INDEX('Work Order Master'!$S:$S,MATCH(A538,'Work Order Master'!$K:$K,0)),\"New\")","v":"New"},{"$f":"IFERROR(INDEX('Work Order Master'!T:T,MATCH(WORKORDERS!$Q538,'Work Order Master'!$S:$S,0)),Q538)","v":"New"},{"$f":"IFERROR(INDEX('FRS CC Master'!A:A,MATCH(WORKORDERS!$Q538*1,'FRS CC Master'!$C:$C,0)),WORKORDERS!$L538)","v":"CFOVPA - Institutional"},{"$f":"IFERROR(VLOOKUP($A538,'Work Order Master'!$K:$Q,7,FALSE),\"Remove\")","v":"P"}]
["19120-1-2","INST Labour Payouts - Severance","Active","19120-1","INST Institutional Labour Payouts","(blank)","9120","Institutional Labour Payouts","900","CFOVPA - Institutional","900","CFOVPA - Institutional","(blank)","101","Institutional","no",{"$f":"IFERROR(INDEX('Work Order Master'!$S:$S,MATCH(A539,'Work Order Master'!$K:$K,0)),\"New\")","v":8050},{"$f":"IFERROR(INDEX('Work Order Master'!T:T,MATCH(WORKORDERS!$Q539,'Work Order Master'!$S:$S,0)),Q539)","v":"RESIGNATION/RETIRE PAYOUT"},{"$f":"IFERROR(INDEX('FRS CC Master'!A:A,MATCH(WORKORDERS!$Q539*1,'FRS CC Master'!$C:$C,0)),WORKORDERS!$L539)","v":"VP Administration and Finance"},{"$f":"IFERROR(VLOOKUP($A539,'Work Order Master'!$K:$Q,7,FALSE),\"Remove\")","v":"N"}]
["19120-1-3","INST Labour Payouts - Sick Leave","Active","19120-1","INST Institutional Labour Payouts","(blank)","9120","Institutional Labour Payouts","900","CFOVPA - Institutional","900","CFOVPA - Institutional","(blank)","101","Institutional","no",{"$f":"IFERROR(INDEX('Work Order Master'!$S:$S,MATCH(A540,'Work Order Master'!$K:$K,0)),\"New\")","v":"New"},{"$f":"IFERROR(INDEX('Work Order Master'!T:T,MATCH(WORKORDERS!$Q540,'Work Order Master'!$S:$S,0)),Q540)","v":"New"},{"$f":"IFERROR(INDEX('FRS CC Master'!A:A,MATCH(WORKORDERS!$Q540*1,'FRS CC Master'!$C:$C,0)),WORKORDERS!$L540)","v":"CFOVPA - Institutional"},{"$f":"IFERROR(VLOOKUP($A540,'Work Order Master'!$K:$Q,7,FALSE),\"Remove\")","v":"N"}]
["19120-1-4","INST Labour Payouts - President Admin Leave","Active","19120-1","INST Institutional Labour Payouts","(blank)","9120","Institutional Labour Payouts","900","CFOVPA - Institutional","900","CFOVPA - Institutional","(blank)","101","Institutional","no",{"$f":"IFERROR(INDEX('Work Order Master'!$S:$S,MATCH(A541,'Work Order Master'!$K:$K,0)),\"New\")","v":8051},{"$f":"IFERROR(INDEX('Work Order Master'!T:T,MATCH(WORKORDERS!$Q541,'Work Order Master'!$S:$S,0)),Q541)","v":"PRESIDENT ADMIN LEAVE"},{"$f":"IFERROR(INDEX('FRS CC Master'!A:A,MATCH(WORKORDERS!$Q541*1,'FRS CC Master'!$C:$C,0)),WORKORDERS!$L541)","v":"VP Administration and Finance"},{"$f":"IFERROR(VLOOKUP($A541,'Work Order Master'!$K:$Q,7,FALSE),\"Remove\")","v":"N"}]
["19125-1-1","INST Labour Adjustments","Active","19125-1","INST Institutional Labour Adjustments","(blank)","9125","Institutional Labour Adjustments","900","CFOVPA - Institutional","900","CFOVPA - Institutional","(blank)","101","Institutional","no",{"$f":"IFERROR(INDEX('Work Order Master'!$S:$S,MATCH(A542,'Work Order Master'!$K:$K,0)),\"New\")","v":8040},{"$f":"IFERROR(INDEX('Work Order Master'!T:T,MATCH(WORKORDERS!$Q542,'Work Order Master'!$S:$S,0)),Q542)","v":"INST. LABOUR ADJUSTMENTS"},{"$f":"IFERROR(INDEX('FRS CC Master'!A:A,MATCH(WORKORDERS!$Q542*1,'FRS CC Master'!$C:$C,0)),WORKORDERS!$L542)","v":"VP Administration and Finance"},{"$f":"IFERROR(VLOOKUP($A542,'Work Order Master'!$K:$Q,7,FALSE),\"Remove\")","v":"N"}]
["19125-1-2","INST Labour Adjustments - CUPE EI Rebate (Benefit exchange)","Parked","19125-1","INST Institutional Labour Adjustments","(blank)","9125","Institutional Labour Adjustments","900","CFOVPA - Institutional","900","CFOVPA - Institutional","(blank)","101","Institutional","no",{"$f":"IFERROR(INDEX('Work Order Master'!$S:$S,MATCH(A543,'Work Order Master'!$K:$K,0)),\"New\")","v":"New"},{"$f":"IFERROR(INDEX('Work Order Master'!T:T,MATCH(WORKORDERS!$Q543,'Work Order Master'!$S:$S,0)),Q543)","v":"New"},{"$f":"IFERROR(INDEX('FRS CC Master'!A:A,MATCH(WORKORDERS!$Q543*1,'FRS CC Master'!$C:$C,0)),WORKORDERS!$L543)","v":"CFOVPA - Institutional"},{"$f":"IFERROR(VLOOKUP($A543,'Work Order Master'!$K:$Q,7,FALSE),\"Remove\")","v":"P"}]
["19125-1-3","INST Labour Adjustments - VIUFA PD Recovery","Active","19125-1","INST Institutional Labour Adjustments","(blank)","9125","Institutional Labour Adjustments","900","CFOVPA - Institutional","900","CFOVPA - Institutional","(blank)","101","Institutional","no",{"$f":"IFERROR(INDEX('Work Order Master'!$S:$S,MATCH(A544,'Work Order Master'!$K:$K,0)),\"New\")","v":8041},{"$f":"IFERROR(INDEX('Work Order Master'!T:T,MATCH(WORKORDERS!$Q544,'Work Order Master'!$S:$S,0)),Q544)","v":"VIUFA PD RECOVERY"},{"$f":"IFERROR(INDEX('FRS CC Master'!A:A,MATCH(WORKORDERS!$Q544*1,'FRS CC Master'!$C:$C,0)),WORKORDERS!$L544)","v":"VP Administration and Finance"},{"$f":"IFERROR(VLOOKUP($A544,'Work Order Master'!$K:$Q,7,FALSE),\"Remove\")","v":"N"}]
["19150-1-1","INST Institutional Other","Active","19150-1","INST Institutional Other","(blank)","9150","Institutional Assets","900","CFOVPA - Institutional","900","CFOVPA - Institutional","(blank)","101","Institutional","no",{"$f":"IFERROR(INDEX('Work Order Master'!$S:$S,MATCH(A545,'Work Order Master'!$K:$K,0)),\"New\")","v":"New"},{"$f":"IFERROR(INDEX('Work Order Master'!T:T,MATCH(WORKORDERS!$Q545,'Work Order Master'!$S:$S,0)),Q545)","v":"New"},{"$f":"IFERROR(INDEX('FRS CC Master'!A:A,MATCH(WORKORDERS!$Q545*1,'FRS CC Master'!$C:$C,0)),WORKORDERS!$L545)","v":"CFOVPA - Institutional"},{"$f":"IFERROR(VLOOKUP($A545,'Work Order Master'!$K:$Q,7,FALSE),\"Remove\")","v":"N"}]
["21111-1-1","HR Collective Agreement - BCGEU Charges (RECOVERY)","Active","21111-1","HR Collective Agreement - UNION Charges (RECOVERY)","(blank)","1111","Collective Agreement / Legislation Interpretation & Application","111","Employee Relations","110","Human Resources","(blank)","102","External recoveries (Inst)","no",{"$f":"IFERROR(INDEX('Work Order Master'!$S:$S,MATCH(A546,'Work Order Master'!$K:$K,0)),\"New\")","v":8253},{"$f":"IFERROR(INDEX('Work Order Master'!T:T,MATCH(WORKORDERS!$Q546,'Work Order Master'!$S:$S,0)),Q546)","v":"BCGEU CHARGES"},{"$f":"IFERROR(INDEX('FRS CC Master'!A:A,MATCH(WORKORDERS!$Q546*1,'FRS CC Master'!$C:$C,0)),WORKORDERS!$L546)","v":"Human Resources"},{"$f":"IFERROR(VLOOKUP($A546,'Work Order Master'!$K:$Q,7,FALSE),\"Remove\")","v":"N"}]
["21111-1-2","HR Collective Agreement - CUPE Charges (RECOVERY)","Active","21111-1","HR Collective Agreement - UNION Charges (RECOVERY)","(blank)","1111","Collective Agreement / Legislation Interpretation & Application","111","Employee Relations","110","Human Resources","(blank)","102","External recoveries (Inst)","no",{"$f":"IFERROR(INDEX('Work Order Master'!$S:$S,MATCH(A547,'Work Order Master'!$K:$K,0)),\"New\")","v":8254},{"$f":"IFERROR(INDEX('Work Order Master'!T:T,MATCH(WORKORDERS!$Q547,'Work Order Master'!$S:$S,0)),Q547)","v":"CUPE CHARGES"},{"$f":"IFERROR(INDEX('FRS CC Master'!A:A,MATCH(WORKORDERS!$Q547*1,'FRS CC Master'!$C:$C,0)),WORKORDERS!$L547)","v":"Human Resources"},{"$f":"IFERROR(VLOOKUP($A547,'Work Order Master'!$K:$Q,7,FALSE),\"Remove\")","v":"N"}]
["21111-1-3","HR Collective Agreement - VIUFA Charges (RECOVERY)","Active","21111-1","HR Collective Agreement - UNION Charges (RECOVERY)","(blank)","1111","Collective Agreement / Legislation Interpretation & Application","111","Employee Relations","110","Human Resources","(blank)","102","External recoveries (Inst)","no",{"$f":"IFERROR(INDEX('Work Order Master'!$S:$S,MATCH(A548,'Work Order Master'!$K:$K,0)),\"New\")","v":8252},{"$f":"IFERROR(INDEX('Work Order Master'!T:T,MATCH(WORKORDERS!$Q548,'Work Order Master'!$S:$S,0)),Q548)","v":"VIUFA CHARGES"},{"$f":"IFERROR(INDEX('FRS CC Master'!A:A,MATCH(WORKORDERS!$Q548*1,'FRS CC Master'!$C:$C,0)),WORKORDERS!$L548)","v":"Human Resources"},{"$f":"IFERROR(VLOOKUP($A548,'Work Order Master'!$K:$Q,7,FALSE),\"Remove\")","v":"N"}]
["21111-1-4","HR Collective Agreement - VIUFA Committee Charges (RECOVERY)","Active","21111-1","HR Collective Agreement - UNION Charges (RECOVERY)","(blank)","1111","Collective Agreement / Legislation Interpretation & Application","111","Employee Relations","110","Human Resources","(blank)","102","External recoveries (Inst)","no",{"$f":"IFERROR(INDEX('Work Order Master'!$S:$S,MATCH(A549,'Work Order Master'!$K:$K,0)),\"New\")","v":8251},{"$f":"IFERROR(INDEX('Work Order Master'!T:T,MATCH(WORKORDERS!$Q549,'Work Order Master'!$S:$S,0)),Q549)","v":"VIUFA PD COMMITTEE"},{"$f":"IFERROR(INDEX('FRS CC Master'!A:A,MATCH(WORKORDERS!$Q549*1,'FRS CC Master'!$C:$C,0)),WORKORDERS!$L549)","v":"Human Resources"},{"$f":"IFERROR(VLOOKUP($A549,'Work Order Master'!$K:$Q,7,FALSE),\"Remove\")","v":"N"}]
["21151-1-1","HR Employee Wellbeing - Positive Space Alliance (RECOVERY)","Active","21151-1","HR Employee Wellbeing (RECOVERY)","(blank)","1151","Employee Wellbeing","115","Human Resources Department","110","Human Resources","(blank)","102","External recoveries (Inst)","no",{"$f":"IFERROR(INDEX('Work Order Master'!$S:$S,MATCH(A550,'Work Order Master'!$K:$K,0)),\"New\")","v":8258},{"$f":"IFERROR(INDEX('Work Order Master'!T:T,MATCH(WORKORDERS!$Q550,'Work Order Master'!$S:$S,0)),Q550)","v":"POSITIVE SPACE ALLIANCE"},{"$f":"IFERROR(INDEX('FRS CC Master'!A:A,MATCH(WORKORDERS!$Q550*1,'FRS CC Master'!$C:$C,0)),WORKORDERS!$L550)","v":"Human Resources"},{"$f":"IFERROR(VLOOKUP($A550,'Work Order Master'!$K:$Q,7,FALSE),\"Remove\")","v":"N"}]
["22105-1-1","ACP ABE - Nanaimo - Math Book","Parked","22105-1","ACP ABE - Nanaimo - Math Book","(blank)","2105","Adult Basic Education","210","Academic and Career Preparation","210","Academic and Career Preparation","(blank)","208","Instruction","no",{"$f":"IFERROR(INDEX('Work Order Master'!$S:$S,MATCH(A551,'Work Order Master'!$K:$K,0)),\"New\")","v":"New"},{"$f":"IFERROR(INDEX('Work Order Master'!T:T,MATCH(WORKORDERS!$Q551,'Work Order Master'!$S:$S,0)),Q551)","v":"New"},{"$f":"IFERROR(INDEX('FRS CC Master'!A:A,MATCH(WORKORDERS!$Q551*1,'FRS CC Master'!$C:$C,0)),WORKORDERS!$L551)","v":"Academic and Career Preparation"},{"$f":"IFERROR(VLOOKUP($A551,'Work Order Master'!$K:$Q,7,FALSE),\"Remove\")","v":"Remove"}]
["22110-1-1","ACP ASE - CETP Grant","Active","22110-1","ACP ASE - CETP Grant","(blank)","2110","Adult Special Education","210","Academic and Career Preparation","210","Academic and Career Preparation","(blank)","208","Instruction","no",{"$f":"IFERROR(INDEX('Work Order Master'!$S:$S,MATCH(A552,'Work Order Master'!$K:$K,0)),\"New\")","v":2903},{"$f":"IFERROR(INDEX('Work Order Master'!T:T,MATCH(WORKORDERS!$Q552,'Work Order Master'!$S:$S,0)),Q552)","v":"CETP 2019-2020"},{"$f":"IFERROR(INDEX('FRS CC Master'!A:A,MATCH(WORKORDERS!$Q552*1,'FRS CC Master'!$C:$C,0)),WORKORDERS!$L552)","v":"Academic and Career Preparation"},{"$f":"IFERROR(VLOOKUP($A552,'Work Order Master'!$K:$Q,7,FALSE),\"Remove\")","v":"N"}]
["22110-2-1","ACP ASE - WEST Grant","Active","22110-2","ACP ASE - WEST Grant","(blank)","2110","Adult Special Education","210","Academic and Career Preparation","210","Academic and Career Preparation","(blank)","208","Instruction","no",{"$f":"IFERROR(INDEX('Work Order Master'!$S:$S,MATCH(A553,'Work Order Master'!$K:$K,0)),\"New\")","v":2904},{"$f":"IFERROR(INDEX('Work Order Master'!T:T,MATCH(WORKORDERS!$Q553,'Work Order Master'!$S:$S,0)),Q553)","v":"WEST MINSTRY GRANT 2019"},{"$f":"IFERROR(INDEX('FRS CC Master'!A:A,MATCH(WORKORDERS!$Q553*1,'FRS CC Master'!$C:$C,0)),WORKORDERS!$L553)","v":"Academic and Career Preparation"},{"$f":"IFERROR(VLOOKUP($A553,'Work Order Master'!$K:$Q,7,FALSE),\"Remove\")","v":"N"}]
["22125-1-1","ACP English Language Learning","Active","22125-1","ACP English Language Learning","(blank)","2125","English Language Learning","210","Academic and Career Preparation","210","Academic and Career Preparation","(blank)","208","Instruction","no",{"$f":"IFERROR(INDEX('Work Order Master'!$S:$S,MATCH(A554,'Work Order Master'!$K:$K,0)),\"New\")","v":"New"},{"$f":"IFERROR(INDEX('Work Order Master'!T:T,MATCH(WORKORDERS!$Q554,'Work Order Master'!$S:$S,0)),Q554)","v":"New"},{"$f":"IFERROR(INDEX('FRS CC Master'!A:A,MATCH(WORKORDERS!$Q554*1,'FRS CC Master'!$C:$C,0)),WORKORDERS!$L554)","v":"Academic and Career Preparation"},{"$f":"IFERROR(VLOOKUP($A554,'Work Order Master'!$K:$Q,7,FALSE),\"Remove\")","v":"N"}]
["22201-1-1","AH Faculty of Arts and Humanities - Faculty Holding","Active","22201-1","AH Faculty of Arts and Humanities - Faculty Holding","(blank)","2201","Arts and Humanities - Initiatives","220","Arts and Humanitites","220","Arts and Humanities","(blank)","221","Department Initiatives","no",{"$f":"IFERROR(INDEX('Work Order Master'!$S:$S,MATCH(A555,'Work Order Master'!$K:$K,0)),\"New\")","v":2201},{"$f":"IFERROR(INDEX('Work Order Master'!T:T,MATCH(WORKORDERS!$Q555,'Work Order Master'!$S:$S,0)),Q555)","v":"ARTS-CONTRACTS-HOLDING"},{"$f":"IFERROR(INDEX('FRS CC Master'!A:A,MATCH(WORKORDERS!$Q555*1,'FRS CC Master'!$C:$C,0)),WORKORDERS!$L555)","v":"Arts and Humanities"},{"$f":"IFERROR(VLOOKUP($A555,'Work Order Master'!$K:$Q,7,FALSE),\"Remove\")","v":"N"}]
["22201-2-1","AH Faculty of Arts and Humanities - Gustafson - Poetry Trust","Active","22201-2","AH Faculty of Arts and Humanities - Gustafson","(blank)","2201","Arts and Humanities - Initiatives","220","Arts and Humanitites","220","Arts and Humanities","(blank)","221","Department Initiatives","no",{"$f":"IFERROR(INDEX('Work Order Master'!$S:$S,MATCH(A556,'Work Order Master'!$K:$K,0)),\"New\")","v":2209},{"$f":"IFERROR(INDEX('Work Order Master'!T:T,MATCH(WORKORDERS!$Q556,'Work Order Master'!$S:$S,0)),Q556)","v":"RALPH GUSTAFSON POETRY TR"},{"$f":"IFERROR(INDEX('FRS CC Master'!A:A,MATCH(WORKORDERS!$Q556*1,'FRS CC Master'!$C:$C,0)),WORKORDERS!$L556)","v":"Arts and Humanities"},{"$f":"IFERROR(VLOOKUP($A556,'Work Order Master'!$K:$Q,7,FALSE),\"Remove\")","v":"N"}]
["22201-2-2","AH Faculty of Arts and Humanities - Gustafson - Chapbook Series","Active","22201-2","AH Faculty of Arts and Humanities - Gustafson","(blank)","2201","Arts and Humanities - Initiatives","220","Arts and Humanitites","220","Arts and Humanities","(blank)","221","Department Initiatives","no",{"$f":"IFERROR(INDEX('Work Order Master'!$S:$S,MATCH(A557,'Work Order Master'!$K:$K,0)),\"New\")","v":2220},{"$f":"IFERROR(INDEX('Work Order Master'!T:T,MATCH(WORKORDERS!$Q557,'Work Order Master'!$S:$S,0)),Q557)","v":"GUSTAFSON CHAPBOOKS SERIE"},{"$f":"IFERROR(INDEX('FRS CC Master'!A:A,MATCH(WORKORDERS!$Q557*1,'FRS CC Master'!$C:$C,0)),WORKORDERS!$L557)","v":"Arts and Humanities"},{"$f":"IFERROR(VLOOKUP($A557,'Work Order Master'!$K:$Q,7,FALSE),\"Remove\")","v":"N"}]
["22201-3-1","AH Faculty of Arts and Humanities - Other - Meta Lab","Active","22201-3","AH Faculty of Arts and Humanities - Other","(blank)","2201","Arts and Humanities - Initiatives","220","Arts and Humanitites","220","Arts and Humanities","(blank)","221","Department Initiatives","no",{"$f":"IFERROR(INDEX('Work Order Master'!$S:$S,MATCH(A558,'Work Order Master'!$K:$K,0)),\"New\")","v":2205},{"$f":"IFERROR(INDEX('Work Order Master'!T:T,MATCH(WORKORDERS!$Q558,'Work Order Master'!$S:$S,0)),Q558)","v":"MISC META LAB NEEDS"},{"$f":"IFERROR(INDEX('FRS CC Master'!A:A,MATCH(WORKORDERS!$Q558*1,'FRS CC Master'!$C:$C,0)),WORKORDERS!$L558)","v":"Arts and Humanities"},{"$f":"IFERROR(VLOOKUP($A558,'Work Order Master'!$K:$Q,7,FALSE),\"Remove\")","v":"N"}]
["22201-3-2","AH Faculty of Arts and Humanities - Other - Colloquium Series","Active","22201-3","AH Faculty of Arts and Humanities - Other","(blank)","2201","Arts and Humanities - Initiatives","220","Arts and Humanitites","220","Arts and Humanities","(blank)","221","Department Initiatives","no",{"$f":"IFERROR(INDEX('Work Order Master'!$S:$S,MATCH(A559,'Work Order Master'!$K:$K,0)),\"New\")","v":2207},{"$f":"IFERROR(INDEX('Work Order Master'!T:T,MATCH(WORKORDERS!$Q559,'Work Order Master'!$S:$S,0)),Q559)","v":"A&H COLLOQUIUM SERIES"},{"$f":"IFERROR(INDEX('FRS CC Master'!A:A,MATCH(WORKORDERS!$Q559*1,'FRS CC Master'!$C:$C,0)),WORKORDERS!$L559)","v":"Arts and Humanities"},{"$f":"IFERROR(VLOOKUP($A559,'Work Order Master'!$K:$Q,7,FALSE),\"Remove\")","v":"N"}]
["22201-3-3","AH Faculty of Arts and Humanities - Other - Canada Council Readings","Active","22201-3","AH Faculty of Arts and Humanities - Other","(blank)","2201","Arts and Humanities - Initiatives","220","Arts and Humanitites","220","Arts and Humanities","(blank)","221","Department Initiatives","no",{"$f":"IFERROR(INDEX('Work Order Master'!$S:$S,MATCH(A560,'Work Order Master'!$K:$K,0)),\"New\")","v":2202},{"$f":"IFERROR(INDEX('Work Order Master'!T:T,MATCH(WORKORDERS!$Q560,'Work Order Master'!$S:$S,0)),Q560)","v":"CANADA COUNCIL READINGS"},{"$f":"IFERROR(INDEX('FRS CC Master'!A:A,MATCH(WORKORDERS!$Q560*1,'FRS CC Master'!$C:$C,0)),WORKORDERS!$L560)","v":"Arts and Humanities"},{"$f":"IFERROR(VLOOKUP($A560,'Work Order Master'!$K:$Q,7,FALSE),\"Remove\")","v":"N"}]
["22201-4-1","AH General Research - Wood","Active","22201-4","AH Faculty - General Research","(blank)","2201","Arts and Humanities - Initiatives","220","Arts and Humanitites","220","Arts and Humanities","(blank)","302","General Research","no",{"$f":"IFERROR(INDEX('Work Order Master'!$S:$S,MATCH(A561,'Work Order Master'!$K:$K,0)),\"New\")","v":2260},{"$f":"IFERROR(INDEX('Work Order Master'!T:T,MATCH(WORKORDERS!$Q561,'Work Order Master'!$S:$S,0)),Q561)","v":"GENERAL RESEARCH - WOOD"},{"$f":"IFERROR(INDEX('FRS CC Master'!A:A,MATCH(WORKORDERS!$Q561*1,'FRS CC Master'!$C:$C,0)),WORKORDERS!$L561)","v":"Arts and Humanities"},{"$f":"IFERROR(VLOOKUP($A561,'Work Order Master'!$K:$Q,7,FALSE),\"Remove\")","v":"N"}]
["22205-1-1","AH Art and Design - Graphic Design - Other - Student Art Sales","Active","22205-1","AH Art and Design - Graphic Design - Other","(blank)","2205","Art and Design - Graphic Design","220","Arts and Humanitites","220","Arts and Humanities","(blank)","208","Instruction","yes",{"$f":"IFERROR(INDEX('Work Order Master'!$S:$S,MATCH(A562,'Work Order Master'!$K:$K,0)),\"New\")","v":2210},{"$f":"IFERROR(INDEX('Work Order Master'!T:T,MATCH(WORKORDERS!$Q562,'Work Order Master'!$S:$S,0)),Q562)","v":"STUDENT ART SALES"},{"$f":"IFERROR(INDEX('FRS CC Master'!A:A,MATCH(WORKORDERS!$Q562*1,'FRS CC Master'!$C:$C,0)),WORKORDERS!$L562)","v":"Arts and Humanities"},{"$f":"IFERROR(VLOOKUP($A562,'Work Order Master'!$K:$Q,7,FALSE),\"Remove\")","v":"N"}]
["22205-1-1","AH Art and Design - Graphic Design - Other - Student Art Sales","Active","22205-1","AH Art and Design - Graphic Design - Other","(blank)","2205","Art and Design - Graphic Design","220","Arts and Humanitites","220","Arts and Humanities","(blank)","227","Student Sales","yes",{"$f":"IFERROR(INDEX('Work Order Master'!$S:$S,MATCH(A563,'Work Order Master'!$K:$K,0)),\"New\")","v":2210},{"$f":"IFERROR(INDEX('Work Order Master'!T:T,MATCH(WORKORDERS!$Q563,'Work Order Master'!$S:$S,0)),Q563)","v":"STUDENT ART SALES"},{"$f":"IFERROR(INDEX('FRS CC Master'!A:A,MATCH(WORKORDERS!$Q563*1,'FRS CC Master'!$C:$C,0)),WORKORDERS!$L563)","v":"Arts and Humanities"},{"$f":"IFERROR(VLOOKUP($A563,'Work Order Master'!$K:$Q,7,FALSE),\"Remove\")","v":"N"}]
["22205-1-2","AH Art and Design - Graphic Design - Other - Visiting Artists Series","Active","22205-1","AH Art and Design - Graphic Design - Other","(blank)","2205","Art and Design - Graphic Design","220","Arts and Humanitites","220","Arts and Humanities","(blank)","208","Instruction","yes",{"$f":"IFERROR(INDEX('Work Order Master'!$S:$S,MATCH(A564,'Work Order Master'!$K:$K,0)),\"New\")","v":2211},{"$f":"IFERROR(INDEX('Work Order Master'!T:T,MATCH(WORKORDERS!$Q564,'Work Order Master'!$S:$S,0)),Q564)","v":"VISITING ARTIST SERIES"},{"$f":"IFERROR(INDEX('FRS CC Master'!A:A,MATCH(WORKORDERS!$Q564*1,'FRS CC Master'!$C:$C,0)),WORKORDERS!$L564)","v":"Arts and Humanities"},{"$f":"IFERROR(VLOOKUP($A564,'Work Order Master'!$K:$Q,7,FALSE),\"Remove\")","v":"N"}]
["22205-1-2","AH Art and Design - Graphic Design - Other - Visiting Artists Series","Active","22205-1","AH Art and Design - Graphic Design - Other","(blank)","2205","Art and Design - Graphic Design","220","Arts and Humanitites","220","Arts and Humanities","(blank)","227","Student Sales","yes",{"$f":"IFERROR(INDEX('Work Order Master'!$S:$S,MATCH(A565,'Work Order Master'!$K:$K,0)),\"New\")","v":2211},{"$f":"IFERROR(INDEX('Work Order Master'!T:T,MATCH(WORKORDERS!$Q565,'Work Order Master'!$S:$S,0)),Q565)","v":"VISITING ARTIST SERIES"},{"$f":"IFERROR(INDEX('FRS CC Master'!A:A,MATCH(WORKORDERS!$Q565*1,'FRS CC Master'!$C:$C,0)),WORKORDERS!$L565)","v":"Arts and Humanities"},{"$f":"IFERROR(VLOOKUP($A565,'Work Order Master'!$K:$Q,7,FALSE),\"Remove\")","v":"N"}]
["22205-1-3","AH Art and Design - Graphic Design - Other - ARTG 480 FINAL exhibit","Active","22205-1","AH Art and Design - Graphic Design - Other","(blank)","2205","Art and Design - Graphic Design","220","Arts and Humanitites","220","Arts and Humanities","(blank)","208","Instruction","yes",{"$f":"IFERROR(INDEX('Work Order Master'!$S:$S,MATCH(A566,'Work Order Master'!$K:$K,0)),\"New\")","v":2212},{"$f":"IFERROR(INDEX('Work Order Master'!T:T,MATCH(WORKORDERS!$Q566,'Work Order Master'!$S:$S,0)),Q566)","v":"ARTG 480 FINAL EXHIBIT"},{"$f":"IFERROR(INDEX('FRS CC Master'!A:A,MATCH(WORKORDERS!$Q566*1,'FRS CC Master'!$C:$C,0)),WORKORDERS!$L566)","v":"Arts and Humanities"},{"$f":"IFERROR(VLOOKUP($A566,'Work Order Master'!$K:$Q,7,FALSE),\"Remove\")","v":"N"}]
["22205-1-3","AH Art and Design - Graphic Design - Other - ARTG 480 FINAL exhibit","Active","22205-1","AH Art and Design - Graphic Design - Other","(blank)","2205","Art and Design - Graphic Design","220","Arts and Humanitites","220","Arts and Humanities","(blank)","227","Student Sales","yes",{"$f":"IFERROR(INDEX('Work Order Master'!$S:$S,MATCH(A567,'Work Order Master'!$K:$K,0)),\"New\")","v":2212},{"$f":"IFERROR(INDEX('Work Order Master'!T:T,MATCH(WORKORDERS!$Q567,'Work Order Master'!$S:$S,0)),Q567)","v":"ARTG 480 FINAL EXHIBIT"},{"$f":"IFERROR(INDEX('FRS CC Master'!A:A,MATCH(WORKORDERS!$Q567*1,'FRS CC Master'!$C:$C,0)),WORKORDERS!$L567)","v":"Arts and Humanities"},{"$f":"IFERROR(VLOOKUP($A567,'Work Order Master'!$K:$Q,7,FALSE),\"Remove\")","v":"N"}]
["22210-1-1","AH Art and Design - Interior Design - Other - Student Art Sales","Parked","22210-1","AH Art and Design - Interior Design - Other","(blank)","2210","Art and Design - Interior Design","220","Arts and Humanitites","220","Arts and Humanities","(blank)","208","Instruction","no",{"$f":"IFERROR(INDEX('Work Order Master'!$S:$S,MATCH(A568,'Work Order Master'!$K:$K,0)),\"New\")","v":"New"},{"$f":"IFERROR(INDEX('Work Order Master'!T:T,MATCH(WORKORDERS!$Q568,'Work Order Master'!$S:$S,0)),Q568)","v":"New"},{"$f":"IFERROR(INDEX('FRS CC Master'!A:A,MATCH(WORKORDERS!$Q568*1,'FRS CC Master'!$C:$C,0)),WORKORDERS!$L568)","v":"Arts and Humanities"},{"$f":"IFERROR(VLOOKUP($A568,'Work Order Master'!$K:$Q,7,FALSE),\"Remove\")","v":"P"}]
["22210-1-2","AH Art and Design - Interior Design - Other - Visiting Artists Series","Parked","22210-1","AH Art and Design - Interior Design - Other","(blank)","2210","Art and Design - Interior Design","220","Arts and Humanitites","220","Arts and Humanities","(blank)","208","Instruction","no",{"$f":"IFERROR(INDEX('Work Order Master'!$S:$S,MATCH(A569,'Work Order Master'!$K:$K,0)),\"New\")","v":"New"},{"$f":"IFERROR(INDEX('Work Order Master'!T:T,MATCH(WORKORDERS!$Q569,'Work Order Master'!$S:$S,0)),Q569)","v":"New"},{"$f":"IFERROR(INDEX('FRS CC Master'!A:A,MATCH(WORKORDERS!$Q569*1,'FRS CC Master'!$C:$C,0)),WORKORDERS!$L569)","v":"Arts and Humanities"},{"$f":"IFERROR(VLOOKUP($A569,'Work Order Master'!$K:$Q,7,FALSE),\"Remove\")","v":"P"}]
["22215-1-1","AH Art and Design - Visual Art - Other - Student Art Sales","Parked","22215-1","AH Art and Design - Visual Art - Other","(blank)","2215","Art and Design - Visual Art","220","Arts and Humanitites","220","Arts and Humanities","(blank)","208","Instruction","yes",{"$f":"IFERROR(INDEX('Work Order Master'!$S:$S,MATCH(A570,'Work Order Master'!$K:$K,0)),\"New\")","v":"New"},{"$f":"IFERROR(INDEX('Work Order Master'!T:T,MATCH(WORKORDERS!$Q570,'Work Order Master'!$S:$S,0)),Q570)","v":"New"},{"$f":"IFERROR(INDEX('FRS CC Master'!A:A,MATCH(WORKORDERS!$Q570*1,'FRS CC Master'!$C:$C,0)),WORKORDERS!$L570)","v":"Arts and Humanities"},{"$f":"IFERROR(VLOOKUP($A570,'Work Order Master'!$K:$Q,7,FALSE),\"Remove\")","v":"P"}]
["22215-1-1","AH Art and Design - Visual Art - Other - Student Art Sales","Parked","22215-1","AH Art and Design - Visual Art - Other","(blank)","2215","Art and Design - Visual Art","220","Arts and Humanitites","220","Arts and Humanities","(blank)","227","Student Sales","yes",{"$f":"IFERROR(INDEX('Work Order Master'!$S:$S,MATCH(A571,'Work Order Master'!$K:$K,0)),\"New\")","v":"New"},{"$f":"IFERROR(INDEX('Work Order Master'!T:T,MATCH(WORKORDERS!$Q571,'Work Order Master'!$S:$S,0)),Q571)","v":"New"},{"$f":"IFERROR(INDEX('FRS CC Master'!A:A,MATCH(WORKORDERS!$Q571*1,'FRS CC Master'!$C:$C,0)),WORKORDERS!$L571)","v":"Arts and Humanities"},{"$f":"IFERROR(VLOOKUP($A571,'Work Order Master'!$K:$Q,7,FALSE),\"Remove\")","v":"P"}]
["22215-1-2","AH Art and Design - Visual Art - Other - Visiting Artists Series","Parked","22215-1","AH Art and Design - Visual Art - Other","(blank)","2215","Art and Design - Visual Art","220","Arts and Humanitites","220","Arts and Humanities","(blank)","208","Instruction","yes",{"$f":"IFERROR(INDEX('Work Order Master'!$S:$S,MATCH(A572,'Work Order Master'!$K:$K,0)),\"New\")","v":"New"},{"$f":"IFERROR(INDEX('Work Order Master'!T:T,MATCH(WORKORDERS!$Q572,'Work Order Master'!$S:$S,0)),Q572)","v":"New"},{"$f":"IFERROR(INDEX('FRS CC Master'!A:A,MATCH(WORKORDERS!$Q572*1,'FRS CC Master'!$C:$C,0)),WORKORDERS!$L572)","v":"Arts and Humanities"},{"$f":"IFERROR(VLOOKUP($A572,'Work Order Master'!$K:$Q,7,FALSE),\"Remove\")","v":"P"}]
["22215-1-2","AH Art and Design - Visual Art - Other - Visiting Artists Series","Parked","22215-1","AH Art and Design - Visual Art - Other","(blank)","2215","Art and Design - Visual Art","220","Arts and Humanitites","220","Arts and Humanities","(blank)","227","Student Sales","yes",{"$f":"IFERROR(INDEX('Work Order Master'!$S:$S,MATCH(A573,'Work Order Master'!$K:$K,0)),\"New\")","v":"New"},{"$f":"IFERROR(INDEX('Work Order Master'!T:T,MATCH(WORKORDERS!$Q573,'Work Order Master'!$S:$S,0)),Q573)","v":"New"},{"$f":"IFERROR(INDEX('FRS CC Master'!A:A,MATCH(WORKORDERS!$Q573*1,'FRS CC Master'!$C:$C,0)),WORKORDERS!$L573)","v":"Arts and Humanities"},{"$f":"IFERROR(VLOOKUP($A573,'Work Order Master'!$K:$Q,7,FALSE),\"Remove\")","v":"P"}]
["22215-1-3","AH Art and Design - Visual Art - Other - Progressions","Active","22215-1","AH Art and Design - Visual Art - Other","(blank)","2215","Art and Design - Visual Art","220","Arts and Humanitites","220","Arts and Humanities","(blank)","208","Instruction","yes",{"$f":"IFERROR(INDEX('Work Order Master'!$S:$S,MATCH(A574,'Work Order Master'!$K:$K,0)),\"New\")","v":2232},{"$f":"IFERROR(INDEX('Work Order Master'!T:T,MATCH(WORKORDERS!$Q574,'Work Order Master'!$S:$S,0)),Q574)","v":"PROGRESSIONS"},{"$f":"IFERROR(INDEX('FRS CC Master'!A:A,MATCH(WORKORDERS!$Q574*1,'FRS CC Master'!$C:$C,0)),WORKORDERS!$L574)","v":"Arts and Humanities"},{"$f":"IFERROR(VLOOKUP($A574,'Work Order Master'!$K:$Q,7,FALSE),\"Remove\")","v":"N"}]
["22215-1-3","AH Art and Design - Visual Art - Other - Progressions","Active","22215-1","AH Art and Design - Visual Art - Other","(blank)","2215","Art and Design - Visual Art","220","Arts and Humanitites","220","Arts and Humanities","(blank)","227","Student Sales","yes",{"$f":"IFERROR(INDEX('Work Order Master'!$S:$S,MATCH(A575,'Work Order Master'!$K:$K,0)),\"New\")","v":2232},{"$f":"IFERROR(INDEX('Work Order Master'!T:T,MATCH(WORKORDERS!$Q575,'Work Order Master'!$S:$S,0)),Q575)","v":"PROGRESSIONS"},{"$f":"IFERROR(INDEX('FRS CC Master'!A:A,MATCH(WORKORDERS!$Q575*1,'FRS CC Master'!$C:$C,0)),WORKORDERS!$L575)","v":"Arts and Humanities"},{"$f":"IFERROR(VLOOKUP($A575,'Work Order Master'!$K:$Q,7,FALSE),\"Remove\")","v":"N"}]
["22220-1-1","AH Creative Writing and Journalism - Portal Magazine","Active","22220-1","AH Creative Writing and Journalism","(blank)","2220","Creative Writing and Journalism","220","Arts and Humanitites","220","Arts and Humanities","(blank)","221","Department Initiatives","no",{"$f":"IFERROR(INDEX('Work Order Master'!$S:$S,MATCH(A576,'Work Order Master'!$K:$K,0)),\"New\")","v":2203},{"$f":"IFERROR(INDEX('Work Order Master'!T:T,MATCH(WORKORDERS!$Q576,'Work Order Master'!$S:$S,0)),Q576)","v":"CREATIVE WRITING - PORTAL"},{"$f":"IFERROR(INDEX('FRS CC Master'!A:A,MATCH(WORKORDERS!$Q576*1,'FRS CC Master'!$C:$C,0)),WORKORDERS!$L576)","v":"Arts and Humanities"},{"$f":"IFERROR(VLOOKUP($A576,'Work Order Master'!$K:$Q,7,FALSE),\"Remove\")","v":"N"}]
["22225-1-1","AH English - Other - Dual Credit","Active","22225-1","AH English - Other","(blank)","2225","English","220","Arts and Humanitites","220","Arts and Humanities","(blank)","208","Instruction","no",{"$f":"IFERROR(INDEX('Work Order Master'!$S:$S,MATCH(A577,'Work Order Master'!$K:$K,0)),\"New\")","v":2217},{"$f":"IFERROR(INDEX('Work Order Master'!T:T,MATCH(WORKORDERS!$Q577,'Work Order Master'!$S:$S,0)),Q577)","v":"ENGL DUAL CREDIT SD68"},{"$f":"IFERROR(INDEX('FRS CC Master'!A:A,MATCH(WORKORDERS!$Q577*1,'FRS CC Master'!$C:$C,0)),WORKORDERS!$L577)","v":"Arts and Humanities"},{"$f":"IFERROR(VLOOKUP($A577,'Work Order Master'!$K:$Q,7,FALSE),\"Remove\")","v":"N"}]
["22230-1-1","AH History - Other - Canadian Letters, Images","Active","22230-1","AH History - Other","(blank)","2230","History","220","Arts and Humanitites","220","Arts and Humanities","(blank)","221","Department Initiatives","no",{"$f":"IFERROR(INDEX('Work Order Master'!$S:$S,MATCH(A578,'Work Order Master'!$K:$K,0)),\"New\")","v":2214},{"$f":"IFERROR(INDEX('Work Order Master'!T:T,MATCH(WORKORDERS!$Q578,'Work Order Master'!$S:$S,0)),Q578)","v":"CANADIAN LETTERS,IMAGES"},{"$f":"IFERROR(INDEX('FRS CC Master'!A:A,MATCH(WORKORDERS!$Q578*1,'FRS CC Master'!$C:$C,0)),WORKORDERS!$L578)","v":"Arts and Humanities"},{"$f":"IFERROR(VLOOKUP($A578,'Work Order Master'!$K:$Q,7,FALSE),\"Remove\")","v":"N"}]
["22240-1-1","AH Media Studies - Other - MRL Business Activity","Active","22240-1","AH Media Studies - Other","(blank)","2240","Media Studies","220","Arts and Humanitites","220","Arts and Humanities","(blank)","208","Instruction","no",{"$f":"IFERROR(INDEX('Work Order Master'!$S:$S,MATCH(A579,'Work Order Master'!$K:$K,0)),\"New\")","v":2256},{"$f":"IFERROR(INDEX('Work Order Master'!T:T,MATCH(WORKORDERS!$Q579,'Work Order Master'!$S:$S,0)),Q579)","v":"MRL BUSINESS ACTIVITY"},{"$f":"IFERROR(INDEX('FRS CC Master'!A:A,MATCH(WORKORDERS!$Q579*1,'FRS CC Master'!$C:$C,0)),WORKORDERS!$L579)","v":"Arts and Humanities"},{"$f":"IFERROR(VLOOKUP($A579,'Work Order Master'!$K:$Q,7,FALSE),\"Remove\")","v":"N"}]
["22250-1-1","AH Music - Other - Master Series","Active","22250-1","AH Music - Other","(blank)","2250","Music","220","Arts and Humanitites","220","Arts and Humanities","(blank)","221","Department Initiatives",{"$f":"IF(OR(A580=A579,A580=A581),\"yes\",\"no\")","v":"no"},{"$f":"IFERROR(INDEX('Work Order Master'!$S:$S,MATCH(A580,'Work Order Master'!$K:$K,0)),\"New\")","v":2206},{"$f":"IFERROR(INDEX('Work Order Master'!T:T,MATCH(WORKORDERS!$Q580,'Work Order Master'!$S:$S,0)),Q580)","v":"MUSIC MASTER SERIES"},{"$f":"IFERROR(INDEX('FRS CC Master'!A:A,MATCH(WORKORDERS!$Q580*1,'FRS CC Master'!$C:$C,0)),WORKORDERS!$L580)","v":"Arts and Humanities"},{"$f":"IFERROR(VLOOKUP($A580,'Work Order Master'!$K:$Q,7,FALSE),\"Remove\")","v":"N"}]
["22250-1-2","AH Music - Other -  Student Performances","Parked","22250-1","AH Music - Other","(blank)","2250","Music","220","Arts and Humanitites","220","Arts and Humanities","(blank)","221","Department Initiatives","no",{"$f":"IFERROR(INDEX('Work Order Master'!$S:$S,MATCH(A581,'Work Order Master'!$K:$K,0)),\"New\")","v":"New"},{"$f":"IFERROR(INDEX('Work Order Master'!T:T,MATCH(WORKORDERS!$Q581,'Work Order Master'!$S:$S,0)),Q581)","v":"New"},{"$f":"IFERROR(INDEX('FRS CC Master'!A:A,MATCH(WORKORDERS!$Q581*1,'FRS CC Master'!$C:$C,0)),WORKORDERS!$L581)","v":"Arts and Humanities"},{"$f":"IFERROR(VLOOKUP($A581,'Work Order Master'!$K:$Q,7,FALSE),\"Remove\")","v":"Remove"}]
["22301-1-1","EDUC General Research - Davidson","Active","22301-1","EDUC Faculty - General Research","(blank)","2301","Education - Initiatives","230","Education","230","Education","(blank)","302","General Research","no",{"$f":"IFERROR(INDEX('Work Order Master'!$S:$S,MATCH(A582,'Work Order Master'!$K:$K,0)),\"New\")","v":5132},{"$f":"IFERROR(INDEX('Work Order Master'!T:T,MATCH(WORKORDERS!$Q582,'Work Order Master'!$S:$S,0)),Q582)","v":"GENERAL RESEARCH-DAVIDSON"},{"$f":"IFERROR(INDEX('FRS CC Master'!A:A,MATCH(WORKORDERS!$Q582*1,'FRS CC Master'!$C:$C,0)),WORKORDERS!$L582)","v":"Education"},{"$f":"IFERROR(VLOOKUP($A582,'Work Order Master'!$K:$Q,7,FALSE),\"Remove\")","v":"N"}]
["22310-1-1","EDUC Education  - Conferences","Active","22310-1","EDUC Education - Other","(blank)","2310","Education","230","Education","230","Education","(blank)","220","Conferences","no",{"$f":"IFERROR(INDEX('Work Order Master'!$S:$S,MATCH(A583,'Work Order Master'!$K:$K,0)),\"New\")","v":5109},{"$f":"IFERROR(INDEX('Work Order Master'!T:T,MATCH(WORKORDERS!$Q583,'Work Order Master'!$S:$S,0)),Q583)","v":"PRO-D/RESEARCH"},{"$f":"IFERROR(INDEX('FRS CC Master'!A:A,MATCH(WORKORDERS!$Q583*1,'FRS CC Master'!$C:$C,0)),WORKORDERS!$L583)","v":"Education"},{"$f":"IFERROR(VLOOKUP($A583,'Work Order Master'!$K:$Q,7,FALSE),\"Remove\")","v":"N"}]
["22320-1-1","EDUC Kinesiology - Development","Active","22320-1","EDUC Kinesiology - Other","(blank)","2320","Kinesiology","230","Education","230","Education","(blank)","211","Program Development","yes",{"$f":"IFERROR(INDEX('Work Order Master'!$S:$S,MATCH(A584,'Work Order Master'!$K:$K,0)),\"New\")","v":5116},{"$f":"IFERROR(INDEX('Work Order Master'!T:T,MATCH(WORKORDERS!$Q584,'Work Order Master'!$S:$S,0)),Q584)","v":"SHAPE - PRO D"},{"$f":"IFERROR(INDEX('FRS CC Master'!A:A,MATCH(WORKORDERS!$Q584*1,'FRS CC Master'!$C:$C,0)),WORKORDERS!$L584)","v":"Education"},{"$f":"IFERROR(VLOOKUP($A584,'Work Order Master'!$K:$Q,7,FALSE),\"Remove\")","v":"N"}]
["22320-1-1","EDUC Kinesiology - Development","Active","22320-1","EDUC Kinesiology - Other","(blank)","2320","Kinesiology","230","Education","230","Education","(blank)","220","Conferences","yes",{"$f":"IFERROR(INDEX('Work Order Master'!$S:$S,MATCH(A585,'Work Order Master'!$K:$K,0)),\"New\")","v":5116},{"$f":"IFERROR(INDEX('Work Order Master'!T:T,MATCH(WORKORDERS!$Q585,'Work Order Master'!$S:$S,0)),Q585)","v":"SHAPE - PRO D"},{"$f":"IFERROR(INDEX('FRS CC Master'!A:A,MATCH(WORKORDERS!$Q585*1,'FRS CC Master'!$C:$C,0)),WORKORDERS!$L585)","v":"Education"},{"$f":"IFERROR(VLOOKUP($A585,'Work Order Master'!$K:$Q,7,FALSE),\"Remove\")","v":"N"}]
["22320-1-2","EDUC Kinesiology - NPPE Conference","Active","22320-1","EDUC Kinesiology - Other","(blank)","2320","Kinesiology","230","Education","230","Education","(blank)","211","Program Development","yes",{"$f":"IFERROR(INDEX('Work Order Master'!$S:$S,MATCH(A586,'Work Order Master'!$K:$K,0)),\"New\")","v":5121},{"$f":"IFERROR(INDEX('Work Order Master'!T:T,MATCH(WORKORDERS!$Q586,'Work Order Master'!$S:$S,0)),Q586)","v":"NPPE CONFERENCE"},{"$f":"IFERROR(INDEX('FRS CC Master'!A:A,MATCH(WORKORDERS!$Q586*1,'FRS CC Master'!$C:$C,0)),WORKORDERS!$L586)","v":"Education"},{"$f":"IFERROR(VLOOKUP($A586,'Work Order Master'!$K:$Q,7,FALSE),\"Remove\")","v":"N"}]
["22320-1-2","EDUC Kinesiology - NPPE Conference","Active","22320-1","EDUC Kinesiology - Other","(blank)","2320","Kinesiology","230","Education","230","Education","(blank)","220","Conferences","yes",{"$f":"IFERROR(INDEX('Work Order Master'!$S:$S,MATCH(A587,'Work Order Master'!$K:$K,0)),\"New\")","v":5121},{"$f":"IFERROR(INDEX('Work Order Master'!T:T,MATCH(WORKORDERS!$Q587,'Work Order Master'!$S:$S,0)),Q587)","v":"NPPE CONFERENCE"},{"$f":"IFERROR(INDEX('FRS CC Master'!A:A,MATCH(WORKORDERS!$Q587*1,'FRS CC Master'!$C:$C,0)),WORKORDERS!$L587)","v":"Education"},{"$f":"IFERROR(VLOOKUP($A587,'Work Order Master'!$K:$Q,7,FALSE),\"Remove\")","v":"N"}]
["22350-1-1","EDUC Graduate Diploma - Online Teaching and Learning","Active","22350-1","EDUC Graduate Diploma - Online Teaching and Learning","(blank)","2350","Graduate Diploma - Online Teaching and Learning","230","Education","230","Education","(blank)","208","Instruction","no",{"$f":"IFERROR(INDEX('Work Order Master'!$S:$S,MATCH(A588,'Work Order Master'!$K:$K,0)),\"New\")","v":5120},{"$f":"IFERROR(INDEX('Work Order Master'!T:T,MATCH(WORKORDERS!$Q588,'Work Order Master'!$S:$S,0)),Q588)","v":"GRAD DIPL-ONLINE LEARNING"},{"$f":"IFERROR(INDEX('FRS CC Master'!A:A,MATCH(WORKORDERS!$Q588*1,'FRS CC Master'!$C:$C,0)),WORKORDERS!$L588)","v":"Education"},{"$f":"IFERROR(VLOOKUP($A588,'Work Order Master'!$K:$Q,7,FALSE),\"Remove\")","v":"N"}]
["22355-1-1","EDUC Graduate Diploma - Inclusive Education","Active","22355-1","EDUC Graduate Diploma - Inclusive Education","(blank)","2355","Graduate Diploma - Inclusive Education","230","Education","230","Education","(blank)","208","Instruction","no",{"$f":"IFERROR(INDEX('Work Order Master'!$S:$S,MATCH(A589,'Work Order Master'!$K:$K,0)),\"New\")","v":5111},{"$f":"IFERROR(INDEX('Work Order Master'!T:T,MATCH(WORKORDERS!$Q589,'Work Order Master'!$S:$S,0)),Q589)","v":"SPECIAL ED TEACHING SPECI"},{"$f":"IFERROR(INDEX('FRS CC Master'!A:A,MATCH(WORKORDERS!$Q589*1,'FRS CC Master'!$C:$C,0)),WORKORDERS!$L589)","v":"Education"},{"$f":"IFERROR(VLOOKUP($A589,'Work Order Master'!$K:$Q,7,FALSE),\"Remove\")","v":"N"}]
["22360-1-1","EDUC Masters of Education (Leadership)","Active","22360-1","EDUC Masters of Education (Leadership)","(blank)","2360","Masters of Education (Leadership)","230","Education","230","Education","(blank)","208","Instruction","no",{"$f":"IFERROR(INDEX('Work Order Master'!$S:$S,MATCH(A590,'Work Order Master'!$K:$K,0)),\"New\")","v":5105},{"$f":"IFERROR(INDEX('Work Order Master'!T:T,MATCH(WORKORDERS!$Q590,'Work Order Master'!$S:$S,0)),Q590)","v":"M.ED LEADERSHIP"},{"$f":"IFERROR(INDEX('FRS CC Master'!A:A,MATCH(WORKORDERS!$Q590*1,'FRS CC Master'!$C:$C,0)),WORKORDERS!$L590)","v":"Education"},{"$f":"IFERROR(VLOOKUP($A590,'Work Order Master'!$K:$Q,7,FALSE),\"Remove\")","v":"N"}]
["22365-1-1","EDUC Masters of Education (Special Education)","Active","22365-1","EDUC Masters of Education (Special Education)","(blank)","2365","Masters of Education (Special Education)","230","Education","230","Education","(blank)","208","Instruction","no",{"$f":"IFERROR(INDEX('Work Order Master'!$S:$S,MATCH(A591,'Work Order Master'!$K:$K,0)),\"New\")","v":5117},{"$f":"IFERROR(INDEX('Work Order Master'!T:T,MATCH(WORKORDERS!$Q591,'Work Order Master'!$S:$S,0)),Q591)","v":"M.ED SPECIAL EDUCATION"},{"$f":"IFERROR(INDEX('FRS CC Master'!A:A,MATCH(WORKORDERS!$Q591*1,'FRS CC Master'!$C:$C,0)),WORKORDERS!$L591)","v":"Education"},{"$f":"IFERROR(VLOOKUP($A591,'Work Order Master'!$K:$Q,7,FALSE),\"Remove\")","v":"N"}]
["22401-1-1","HHS Faculty - General Research - Price","Active","22401-1","HHS Faculty - General Research","(blank)","2401","Health and Human Services - Initiatives","240","Health and Human Services","240","Health and Human Services","(blank)","302","General Research","no",{"$f":"IFERROR(INDEX('Work Order Master'!$S:$S,MATCH(A592,'Work Order Master'!$K:$K,0)),\"New\")","v":4776},{"$f":"IFERROR(INDEX('Work Order Master'!T:T,MATCH(WORKORDERS!$Q592,'Work Order Master'!$S:$S,0)),Q592)","v":"GENERAL RESEARCH-PRICE"},{"$f":"IFERROR(INDEX('FRS CC Master'!A:A,MATCH(WORKORDERS!$Q592*1,'FRS CC Master'!$C:$C,0)),WORKORDERS!$L592)","v":"Health and Human Services"},{"$f":"IFERROR(VLOOKUP($A592,'Work Order Master'!$K:$Q,7,FALSE),\"Remove\")","v":"N"}]
["22401-1-2","HHS Faculty - General Research - Taplay","Active","22401-1","HHS Faculty - General Research","(blank)","2401","Health and Human Services - Initiatives","240","Health and Human Services","240","Health and Human Services","(blank)","302","General Research","no",{"$f":"IFERROR(INDEX('Work Order Master'!$S:$S,MATCH(A593,'Work Order Master'!$K:$K,0)),\"New\")","v":4772},{"$f":"IFERROR(INDEX('Work Order Master'!T:T,MATCH(WORKORDERS!$Q593,'Work Order Master'!$S:$S,0)),Q593)","v":"GENERAL RESEARCH - TAPLAY"},{"$f":"IFERROR(INDEX('FRS CC Master'!A:A,MATCH(WORKORDERS!$Q593*1,'FRS CC Master'!$C:$C,0)),WORKORDERS!$L593)","v":"Health and Human Services"},{"$f":"IFERROR(VLOOKUP($A593,'Work Order Master'!$K:$Q,7,FALSE),\"Remove\")","v":"N"}]
["22401-2-1","HHS Faculty - Scholarly Activity","Active","22401-2","HHS Faculty - Scholarly Activity","(blank)","2401","Health and Human Services - Initiatives","240","Health and Human Services","240","Health and Human Services","(blank)","201","Faculty Administration","no",{"$f":"IFERROR(INDEX('Work Order Master'!$S:$S,MATCH(A594,'Work Order Master'!$K:$K,0)),\"New\")","v":4704},{"$f":"IFERROR(INDEX('Work Order Master'!T:T,MATCH(WORKORDERS!$Q594,'Work Order Master'!$S:$S,0)),Q594)","v":"HHS FACULTY SCH ACTIVITY"},{"$f":"IFERROR(INDEX('FRS CC Master'!A:A,MATCH(WORKORDERS!$Q594*1,'FRS CC Master'!$C:$C,0)),WORKORDERS!$L594)","v":"Health and Human Services"},{"$f":"IFERROR(VLOOKUP($A594,'Work Order Master'!$K:$Q,7,FALSE),\"Remove\")","v":"N"}]
["22401-3-1","HHS Faculty - Interprofessional Development Fund","Active","22401-3","HHS Faculty - Interprofessional Development Fund","(blank)","2401","Health and Human Services - Initiatives","240","Health and Human Services","240","Health and Human Services","(blank)","201","Faculty Administration","no",{"$f":"IFERROR(INDEX('Work Order Master'!$S:$S,MATCH(A595,'Work Order Master'!$K:$K,0)),\"New\")","v":4705},{"$f":"IFERROR(INDEX('Work Order Master'!T:T,MATCH(WORKORDERS!$Q595,'Work Order Master'!$S:$S,0)),Q595)","v":"HHS INTERPROF DEV FUND"},{"$f":"IFERROR(INDEX('FRS CC Master'!A:A,MATCH(WORKORDERS!$Q595*1,'FRS CC Master'!$C:$C,0)),WORKORDERS!$L595)","v":"Health and Human Services"},{"$f":"IFERROR(VLOOKUP($A595,'Work Order Master'!$K:$Q,7,FALSE),\"Remove\")","v":"N"}]
["22401-4-1","HHS Faculty - Research contracts - Styles - Pathways","Active","22401-4","HHS Faculty - Research contracts","(blank)","2401","Health and Human Services - Initiatives","240","Health and Human Services","240","Health and Human Services","(blank)","310","Research Contract","no",{"$f":"IFERROR(INDEX('Work Order Master'!$S:$S,MATCH(A596,'Work Order Master'!$K:$K,0)),\"New\")","v":4775},{"$f":"IFERROR(INDEX('Work Order Master'!T:T,MATCH(WORKORDERS!$Q596,'Work Order Master'!$S:$S,0)),Q596)","v":"STYLES-PATHWAYS PROJECT"},{"$f":"IFERROR(INDEX('FRS CC Master'!A:A,MATCH(WORKORDERS!$Q596*1,'FRS CC Master'!$C:$C,0)),WORKORDERS!$L596)","v":"Health and Human Services"},{"$f":"IFERROR(VLOOKUP($A596,'Work Order Master'!$K:$Q,7,FALSE),\"Remove\")","v":"N"}]
["22401-5-1","HHS Faculty - Aboriginal Forum","Active","22401-5","HHS Faculty - Other","(blank)","2401","Health and Human Services - Initiatives","240","Health and Human Services","240","Health and Human Services","(blank)","201","Faculty Administration","no",{"$f":"IFERROR(INDEX('Work Order Master'!$S:$S,MATCH(A597,'Work Order Master'!$K:$K,0)),\"New\")","v":4709},{"$f":"IFERROR(INDEX('Work Order Master'!T:T,MATCH(WORKORDERS!$Q597,'Work Order Master'!$S:$S,0)),Q597)","v":"ABORIGINAL FORUM"},{"$f":"IFERROR(INDEX('FRS CC Master'!A:A,MATCH(WORKORDERS!$Q597*1,'FRS CC Master'!$C:$C,0)),WORKORDERS!$L597)","v":"Health and Human Services"},{"$f":"IFERROR(VLOOKUP($A597,'Work Order Master'!$K:$Q,7,FALSE),\"Remove\")","v":"N"}]
["22401-5-2","HHS Faculty - Student Engagement Fund","Active","22401-5","HHS Faculty - Other","(blank)","2401","Health and Human Services - Initiatives","240","Health and Human Services","240","Health and Human Services","(blank)","201","Faculty Administration","no",{"$f":"IFERROR(INDEX('Work Order Master'!$S:$S,MATCH(A598,'Work Order Master'!$K:$K,0)),\"New\")","v":4703},{"$f":"IFERROR(INDEX('Work Order Master'!T:T,MATCH(WORKORDERS!$Q598,'Work Order Master'!$S:$S,0)),Q598)","v":"HHS STUDENT ENGAGEMENT FD"},{"$f":"IFERROR(INDEX('FRS CC Master'!A:A,MATCH(WORKORDERS!$Q598*1,'FRS CC Master'!$C:$C,0)),WORKORDERS!$L598)","v":"Health and Human Services"},{"$f":"IFERROR(VLOOKUP($A598,'Work Order Master'!$K:$Q,7,FALSE),\"Remove\")","v":"N"}]
["22401-6-1","HHS Faculty - BC Aboriginal Child Care Society","Parked","22401-6","HHS Faculty - Misc. Contract Delivery","(blank)","2401","Health and Human Services - Initiatives","240","Health and Human Services","240","Health and Human Services","(blank)","219","Contract activity","no",{"$f":"IFERROR(INDEX('Work Order Master'!$S:$S,MATCH(A599,'Work Order Master'!$K:$K,0)),\"New\")","v":"New"},{"$f":"IFERROR(INDEX('Work Order Master'!T:T,MATCH(WORKORDERS!$Q599,'Work Order Master'!$S:$S,0)),Q599)","v":"New"},{"$f":"IFERROR(INDEX('FRS CC Master'!A:A,MATCH(WORKORDERS!$Q599*1,'FRS CC Master'!$C:$C,0)),WORKORDERS!$L599)","v":"Health and Human Services"},{"$f":"IFERROR(VLOOKUP($A599,'Work Order Master'!$K:$Q,7,FALSE),\"Remove\")","v":"Remove"}]
["22406-1-1","HHS Roots to Thrive - KAT","Active","22406-1","HHS Roots to Thrive - KAT","(blank)","2406","Roots to Thrive - KAT","240","Health and Human Services","240","Health and Human Services","(blank)","219","Contract activity","no",{"$f":"IFERROR(INDEX('Work Order Master'!$S:$S,MATCH(A600,'Work Order Master'!$K:$K,0)),\"New\")","v":4780},{"$f":"IFERROR(INDEX('Work Order Master'!T:T,MATCH(WORKORDERS!$Q600,'Work Order Master'!$S:$S,0)),Q600)","v":"RTT - KAT "},{"$f":"IFERROR(INDEX('FRS CC Master'!A:A,MATCH(WORKORDERS!$Q600*1,'FRS CC Master'!$C:$C,0)),WORKORDERS!$L600)","v":"Health and Human Services"},{"$f":"IFERROR(VLOOKUP($A600,'Work Order Master'!$K:$Q,7,FALSE),\"Remove\")","v":"N"}]
["22415-1-1","HHS BC Dental Hygienist Association","Active","22415-1","HHS Dental Hygiene - Other","(blank)","2415","Dental Hygiene","240","Health and Human Services","240","Health and Human Services","(blank)","201","Faculty Administration","no",{"$f":"IFERROR(INDEX('Work Order Master'!$S:$S,MATCH(A601,'Work Order Master'!$K:$K,0)),\"New\")","v":4719},{"$f":"IFERROR(INDEX('Work Order Master'!T:T,MATCH(WORKORDERS!$Q601,'Work Order Master'!$S:$S,0)),Q601)","v":"BC DENTAL HYGIENIST ASSN"},{"$f":"IFERROR(INDEX('FRS CC Master'!A:A,MATCH(WORKORDERS!$Q601*1,'FRS CC Master'!$C:$C,0)),WORKORDERS!$L601)","v":"Health and Human Services"},{"$f":"IFERROR(VLOOKUP($A601,'Work Order Master'!$K:$Q,7,FALSE),\"Remove\")","v":"N"}]
["22420-1-1","HHS Health Care Assistant - Cowichan","Parked","22420-1","HHS Health Care Assistant - Cowichan","(blank)","2420","Health Care Assistant","240","Health and Human Services","240","Health and Human Services","(blank)","208","Instruction","no",{"$f":"IFERROR(INDEX('Work Order Master'!$S:$S,MATCH(A602,'Work Order Master'!$K:$K,0)),\"New\")","v":"New"},{"$f":"IFERROR(INDEX('Work Order Master'!T:T,MATCH(WORKORDERS!$Q602,'Work Order Master'!$S:$S,0)),Q602)","v":"New"},{"$f":"IFERROR(INDEX('FRS CC Master'!A:A,MATCH(WORKORDERS!$Q602*1,'FRS CC Master'!$C:$C,0)),WORKORDERS!$L602)","v":"Health and Human Services"},{"$f":"IFERROR(VLOOKUP($A602,'Work Order Master'!$K:$Q,7,FALSE),\"Remove\")","v":"Remove"}]
["22420-2-1","HHS Health Care Assistant - Powell River (VCH)","Parked","22420-2","HHS Health Care Assistant - Powell River (VCH)","(blank)","2420","Health Care Assistant","240","Health and Human Services","240","Health and Human Services","(blank)","219","Contract activity","no",{"$f":"IFERROR(INDEX('Work Order Master'!$S:$S,MATCH(A603,'Work Order Master'!$K:$K,0)),\"New\")","v":"New"},{"$f":"IFERROR(INDEX('Work Order Master'!T:T,MATCH(WORKORDERS!$Q603,'Work Order Master'!$S:$S,0)),Q603)","v":"New"},{"$f":"IFERROR(INDEX('FRS CC Master'!A:A,MATCH(WORKORDERS!$Q603*1,'FRS CC Master'!$C:$C,0)),WORKORDERS!$L603)","v":"Health and Human Services"},{"$f":"IFERROR(VLOOKUP($A603,'Work Order Master'!$K:$Q,7,FALSE),\"Remove\")","v":"Remove"}]
["22420-3-1","HHS Health Care Assistant - Gabriola (PHC)","Parked","22420-3","HHS Health Care Assistant - Gabriola (PHC)","(blank)","2420","Health Care Assistant","240","Health and Human Services","240","Health and Human Services","(blank)","219","Contract activity","no",{"$f":"IFERROR(INDEX('Work Order Master'!$S:$S,MATCH(A604,'Work Order Master'!$K:$K,0)),\"New\")","v":"New"},{"$f":"IFERROR(INDEX('Work Order Master'!T:T,MATCH(WORKORDERS!$Q604,'Work Order Master'!$S:$S,0)),Q604)","v":"New"},{"$f":"IFERROR(INDEX('FRS CC Master'!A:A,MATCH(WORKORDERS!$Q604*1,'FRS CC Master'!$C:$C,0)),WORKORDERS!$L604)","v":"Health and Human Services"},{"$f":"IFERROR(VLOOKUP($A604,'Work Order Master'!$K:$Q,7,FALSE),\"Remove\")","v":"Remove"}]
["22420-4-1","HHS Health Care Assistant - Partnership Pathways","Active","22420-4","HHS Health Care Assistant - Partnership Pathways","(blank)","2420","Health Care Assistant","240","Health and Human Services","240","Health and Human Services","(blank)","219","Contract activity","no",{"$f":"IFERROR(INDEX('Work Order Master'!$S:$S,MATCH(A605,'Work Order Master'!$K:$K,0)),\"New\")","v":4710},{"$f":"IFERROR(INDEX('Work Order Master'!T:T,MATCH(WORKORDERS!$Q605,'Work Order Master'!$S:$S,0)),Q605)","v":"HCA PARTNERSHIP PATHWAYS "},{"$f":"IFERROR(INDEX('FRS CC Master'!A:A,MATCH(WORKORDERS!$Q605*1,'FRS CC Master'!$C:$C,0)),WORKORDERS!$L605)","v":"Health and Human Services"},{"$f":"IFERROR(VLOOKUP($A605,'Work Order Master'!$K:$Q,7,FALSE),\"Remove\")","v":"N"}]
["22430-1-1","HHS Bachelor of Social Work","Active","22430-1","HHS Bachelor of Social Work","(blank)","2430","Bachelor of Social Work","240","Health and Human Services","240","Health and Human Services","(blank)","208","Instruction","no",{"$f":"IFERROR(INDEX('Work Order Master'!$S:$S,MATCH(A606,'Work Order Master'!$K:$K,0)),\"New\")","v":5420},{"$f":"IFERROR(INDEX('Work Order Master'!T:T,MATCH(WORKORDERS!$Q606,'Work Order Master'!$S:$S,0)),Q606)","v":"BACHELOR OF SOCIAL WORK"},{"$f":"IFERROR(INDEX('FRS CC Master'!A:A,MATCH(WORKORDERS!$Q606*1,'FRS CC Master'!$C:$C,0)),WORKORDERS!$L606)","v":"Health and Human Services"},{"$f":"IFERROR(VLOOKUP($A606,'Work Order Master'!$K:$Q,7,FALSE),\"Remove\")","v":"N"}]
["22435-1-1","HHS Child and Youth Care - CTR - Outreach/Comm. Care","Active","22435-1","HHS Child and Youth Care - CTR - Outreach/Comm. Care","(blank)","2435","Child and Youth Care","240","Health and Human Services","240","Health and Human Services","(blank)","201","Faculty Administration","no",{"$f":"IFERROR(INDEX('Work Order Master'!$S:$S,MATCH(A607,'Work Order Master'!$K:$K,0)),\"New\")","v":5494},{"$f":"IFERROR(INDEX('Work Order Master'!T:T,MATCH(WORKORDERS!$Q607,'Work Order Master'!$S:$S,0)),Q607)","v":"CTR-OUTREACH/COMM.CARE"},{"$f":"IFERROR(INDEX('FRS CC Master'!A:A,MATCH(WORKORDERS!$Q607*1,'FRS CC Master'!$C:$C,0)),WORKORDERS!$L607)","v":"Health and Human Services"},{"$f":"IFERROR(VLOOKUP($A607,'Work Order Master'!$K:$Q,7,FALSE),\"Remove\")","v":"N"}]
["22440-1-1","HHS Early Childhood Education and Care - Cowichan Cert.","Active","22440-1","HHS Early Childhood Education and Care - Cowichan Cert.","(blank)","2440","Early Childhood Education and Care","240","Health and Human Services","240","Health and Human Services","(blank)","219","Contract activity","no",{"$f":"IFERROR(INDEX('Work Order Master'!$S:$S,MATCH(A608,'Work Order Master'!$K:$K,0)),\"New\")","v":4721},{"$f":"IFERROR(INDEX('Work Order Master'!T:T,MATCH(WORKORDERS!$Q608,'Work Order Master'!$S:$S,0)),Q608)","v":"ECEC-COWICHAN CERTIFICATE"},{"$f":"IFERROR(INDEX('FRS CC Master'!A:A,MATCH(WORKORDERS!$Q608*1,'FRS CC Master'!$C:$C,0)),WORKORDERS!$L608)","v":"Health and Human Services"},{"$f":"IFERROR(VLOOKUP($A608,'Work Order Master'!$K:$Q,7,FALSE),\"Remove\")","v":"N"}]
["22440-2-1","HHS Early Childhood Education and Care - Powell River Cert.","Active","22440-2","HHS Early Childhood Education and Care - Powell River Cert.","(blank)","2440","Early Childhood Education and Care","240","Health and Human Services","240","Health and Human Services","(blank)","219","Contract activity","no",{"$f":"IFERROR(INDEX('Work Order Master'!$S:$S,MATCH(A609,'Work Order Master'!$K:$K,0)),\"New\")","v":4724},{"$f":"IFERROR(INDEX('Work Order Master'!T:T,MATCH(WORKORDERS!$Q609,'Work Order Master'!$S:$S,0)),Q609)","v":"ECEC-POWELL RIVER CERT."},{"$f":"IFERROR(INDEX('FRS CC Master'!A:A,MATCH(WORKORDERS!$Q609*1,'FRS CC Master'!$C:$C,0)),WORKORDERS!$L609)","v":"Health and Human Services"},{"$f":"IFERROR(VLOOKUP($A609,'Work Order Master'!$K:$Q,7,FALSE),\"Remove\")","v":"N"}]
["22440-3-1","HHS Early Childhood Education and Care - Aboriginal Head Start","Active","22440-3","HHS Early Childhood Education and Care - Aboriginal Head Start","(blank)","2440","Early Childhood Education and Care","240","Health and Human Services","240","Health and Human Services","(blank)","219","Contract activity","no",{"$f":"IFERROR(INDEX('Work Order Master'!$S:$S,MATCH(A610,'Work Order Master'!$K:$K,0)),\"New\")","v":4723},{"$f":"IFERROR(INDEX('Work Order Master'!T:T,MATCH(WORKORDERS!$Q610,'Work Order Master'!$S:$S,0)),Q610)","v":"ECEC-AHS"},{"$f":"IFERROR(INDEX('FRS CC Master'!A:A,MATCH(WORKORDERS!$Q610*1,'FRS CC Master'!$C:$C,0)),WORKORDERS!$L610)","v":"Health and Human Services"},{"$f":"IFERROR(VLOOKUP($A610,'Work Order Master'!$K:$Q,7,FALSE),\"Remove\")","v":"N"}]
["22440-4-1","HHS Early Childhood Education and Care - Infant Toddler","Active","22440-4","HHS Early Childhood Education and Care - Infant Toddler","(blank)","2440","Early Childhood Education and Care","240","Health and Human Services","240","Health and Human Services","(blank)","219","Contract activity","no",{"$f":"IFERROR(INDEX('Work Order Master'!$S:$S,MATCH(A611,'Work Order Master'!$K:$K,0)),\"New\")","v":4722},{"$f":"IFERROR(INDEX('Work Order Master'!T:T,MATCH(WORKORDERS!$Q611,'Work Order Master'!$S:$S,0)),Q611)","v":"ECEC-INFANT TODDLER"},{"$f":"IFERROR(INDEX('FRS CC Master'!A:A,MATCH(WORKORDERS!$Q611*1,'FRS CC Master'!$C:$C,0)),WORKORDERS!$L611)","v":"Health and Human Services"},{"$f":"IFERROR(VLOOKUP($A611,'Work Order Master'!$K:$Q,7,FALSE),\"Remove\")","v":"N"}]
["22440-5-1","HHS Early Childhood Education and Care - WIL AHS PLAR","Parked","22440-5","HHS Early Childhood Education and Care - WIL AHS PLAR","(blank)","2440","Early Childhood Education and Care","240","Health and Human Services","240","Health and Human Services","(blank)","219","Contract activity","no",{"$f":"IFERROR(INDEX('Work Order Master'!$S:$S,MATCH(A612,'Work Order Master'!$K:$K,0)),\"New\")","v":"New"},{"$f":"IFERROR(INDEX('Work Order Master'!T:T,MATCH(WORKORDERS!$Q612,'Work Order Master'!$S:$S,0)),Q612)","v":"New"},{"$f":"IFERROR(INDEX('FRS CC Master'!A:A,MATCH(WORKORDERS!$Q612*1,'FRS CC Master'!$C:$C,0)),WORKORDERS!$L612)","v":"Health and Human Services"},{"$f":"IFERROR(VLOOKUP($A612,'Work Order Master'!$K:$Q,7,FALSE),\"Remove\")","v":"Remove"}]
["22440-6-1","HHS Early Childhood Education and Care- ECPN","Active","22440-6","HHS Early Childhood Education and Care- ECPN","(blank)","2440","Early Childhood Education and Care","240","Health and Human Services","240","Health and Human Services","(blank)","219","Contract activity","no",{"$f":"IFERROR(INDEX('Work Order Master'!$S:$S,MATCH(A613,'Work Order Master'!$K:$K,0)),\"New\")","v":5414},{"$f":"IFERROR(INDEX('Work Order Master'!T:T,MATCH(WORKORDERS!$Q613,'Work Order Master'!$S:$S,0)),Q613)","v":"ECEC - ECPN"},{"$f":"IFERROR(INDEX('FRS CC Master'!A:A,MATCH(WORKORDERS!$Q613*1,'FRS CC Master'!$C:$C,0)),WORKORDERS!$L613)","v":"Health and Human Services"},{"$f":"IFERROR(VLOOKUP($A613,'Work Order Master'!$K:$Q,7,FALSE),\"Remove\")","v":"N"}]
["22440-7-1","HHS Early Childhood Education and Care - Nanaimo Cert.","Active","22440-7","HHS Early Childhood Education and Care - Nanaimo Cert.","(blank)","2440","Early Childhood Education and Care","240","Health and Human Services","240","Health and Human Services","(blank)","219","Contract activity","no",{"$f":"IFERROR(INDEX('Work Order Master'!$S:$S,MATCH(A614,'Work Order Master'!$K:$K,0)),\"New\")","v":4725},{"$f":"IFERROR(INDEX('Work Order Master'!T:T,MATCH(WORKORDERS!$Q614,'Work Order Master'!$S:$S,0)),Q614)","v":"ECEC - Nanaimo Cert. "},{"$f":"IFERROR(INDEX('FRS CC Master'!A:A,MATCH(WORKORDERS!$Q614*1,'FRS CC Master'!$C:$C,0)),WORKORDERS!$L614)","v":"Health and Human Services"},{"$f":"IFERROR(VLOOKUP($A614,'Work Order Master'!$K:$Q,7,FALSE),\"Remove\")","v":"N"}]
["22440-8-1","HHS Early Childhood Education and Care - Special Needs Cert.","Active","22440-8","HHS Early Childhood Education and Care - Special Needs Cert.","(blank)","2440","Early Childhood Education and Care","240","Health and Human Services","240","Health and Human Services","(blank)","219","Contract activity","no",{"$f":"IFERROR(INDEX('Work Order Master'!$S:$S,MATCH(A615,'Work Order Master'!$K:$K,0)),\"New\")","v":4726},{"$f":"IFERROR(INDEX('Work Order Master'!T:T,MATCH(WORKORDERS!$Q615,'Work Order Master'!$S:$S,0)),Q615)","v":"ECEC - Special Needs Cert."},{"$f":"IFERROR(INDEX('FRS CC Master'!A:A,MATCH(WORKORDERS!$Q615*1,'FRS CC Master'!$C:$C,0)),WORKORDERS!$L615)","v":"Health and Human Services"},{"$f":"IFERROR(VLOOKUP($A615,'Work Order Master'!$K:$Q,7,FALSE),\"Remove\")","v":"N"}]
["22500-1-1","IE Department Dean's Office","Active","22500-1","IE Department Dean's Office","(blank)","2500","Department of International Education","250","International Education","250","International Education","(blank)","201","Faculty Administration","no",{"$f":"IFERROR(INDEX('Work Order Master'!$S:$S,MATCH(A616,'Work Order Master'!$K:$K,0)),\"New\")","v":3000},{"$f":"IFERROR(INDEX('Work Order Master'!T:T,MATCH(WORKORDERS!$Q616,'Work Order Master'!$S:$S,0)),Q616)","v":"INTERNATIONAL ADMIN"},{"$f":"IFERROR(INDEX('FRS CC Master'!A:A,MATCH(WORKORDERS!$Q616*1,'FRS CC Master'!$C:$C,0)),WORKORDERS!$L616)","v":"International Education"},{"$f":"IFERROR(VLOOKUP($A616,'Work Order Master'!$K:$Q,7,FALSE),\"Remove\")","v":"N"}]
["22501-1-1","IE Department Initiatives","Parked","22501-1","IE Department Initiatives","(blank)","2501","International Education - Initiatives","250","International Education","250","International Education","(blank)","201","Faculty Administration","no",{"$f":"IFERROR(INDEX('Work Order Master'!$S:$S,MATCH(A617,'Work Order Master'!$K:$K,0)),\"New\")","v":"New"},{"$f":"IFERROR(INDEX('Work Order Master'!T:T,MATCH(WORKORDERS!$Q617,'Work Order Master'!$S:$S,0)),Q617)","v":"New"},{"$f":"IFERROR(INDEX('FRS CC Master'!A:A,MATCH(WORKORDERS!$Q617*1,'FRS CC Master'!$C:$C,0)),WORKORDERS!$L617)","v":"International Education"},{"$f":"IFERROR(VLOOKUP($A617,'Work Order Master'!$K:$Q,7,FALSE),\"Remove\")","v":"P"}]
["22501-1-2","IE Department - Building 255 Renovations","Active","22501-1","IE Department Initiatives","(blank)","2501","International Education - Initiatives","250","International Education","250","International Education","(blank)","201","Faculty Administration","no",{"$f":"IFERROR(INDEX('Work Order Master'!$S:$S,MATCH(A618,'Work Order Master'!$K:$K,0)),\"New\")","v":3004},{"$f":"IFERROR(INDEX('Work Order Master'!T:T,MATCH(WORKORDERS!$Q618,'Work Order Master'!$S:$S,0)),Q618)","v":"INTERED RENOVATIONS"},{"$f":"IFERROR(INDEX('FRS CC Master'!A:A,MATCH(WORKORDERS!$Q618*1,'FRS CC Master'!$C:$C,0)),WORKORDERS!$L618)","v":"International Education"},{"$f":"IFERROR(VLOOKUP($A618,'Work Order Master'!$K:$Q,7,FALSE),\"Remove\")","v":"N"}]
["22501-1-3","IE Department - Vehicle Management","Parked","22501-1","IE Department Initiatives","(blank)","2501","International Education - Initiatives","250","International Education","250","International Education","(blank)","201","Faculty Administration","no",{"$f":"IFERROR(INDEX('Work Order Master'!$S:$S,MATCH(A619,'Work Order Master'!$K:$K,0)),\"New\")","v":"New"},{"$f":"IFERROR(INDEX('Work Order Master'!T:T,MATCH(WORKORDERS!$Q619,'Work Order Master'!$S:$S,0)),Q619)","v":"New"},{"$f":"IFERROR(INDEX('FRS CC Master'!A:A,MATCH(WORKORDERS!$Q619*1,'FRS CC Master'!$C:$C,0)),WORKORDERS!$L619)","v":"International Education"},{"$f":"IFERROR(VLOOKUP($A619,'Work Order Master'!$K:$Q,7,FALSE),\"Remove\")","v":"Remove"}]
["22501-2-1","IE Department Travel","Active","22501-2","IE Department Travel","(blank)","2501","International Education - Initiatives","250","International Education","250","International Education","(blank)","201","Faculty Administration","no",{"$f":"IFERROR(INDEX('Work Order Master'!$S:$S,MATCH(A620,'Work Order Master'!$K:$K,0)),\"New\")","v":3040},{"$f":"IFERROR(INDEX('Work Order Master'!T:T,MATCH(WORKORDERS!$Q620,'Work Order Master'!$S:$S,0)),Q620)","v":"INTERNATIONAL ED TRAVEL"},{"$f":"IFERROR(INDEX('FRS CC Master'!A:A,MATCH(WORKORDERS!$Q620*1,'FRS CC Master'!$C:$C,0)),WORKORDERS!$L620)","v":"International Education"},{"$f":"IFERROR(VLOOKUP($A620,'Work Order Master'!$K:$Q,7,FALSE),\"Remove\")","v":"N"}]
["22501-2-2","IE Department Travel Stipends","Active","22501-2","IE Department Travel","(blank)","2501","International Education - Initiatives","250","International Education","250","International Education","(blank)","201","Faculty Administration","no",{"$f":"IFERROR(INDEX('Work Order Master'!$S:$S,MATCH(A621,'Work Order Master'!$K:$K,0)),\"New\")","v":3093},{"$f":"IFERROR(INDEX('Work Order Master'!T:T,MATCH(WORKORDERS!$Q621,'Work Order Master'!$S:$S,0)),Q621)","v":"OVERSEAS TRAVEL STIPEND"},{"$f":"IFERROR(INDEX('FRS CC Master'!A:A,MATCH(WORKORDERS!$Q621*1,'FRS CC Master'!$C:$C,0)),WORKORDERS!$L621)","v":"International Education"},{"$f":"IFERROR(VLOOKUP($A621,'Work Order Master'!$K:$Q,7,FALSE),\"Remove\")","v":"N"}]
["22501-2-3","IE Global Engagement Grants","Active","22501-2","IE Department Travel","(blank)","2501","International Education - Initiatives","250","International Education","250","International Education","(blank)","201","Faculty Administration","no",{"$f":"IFERROR(INDEX('Work Order Master'!$S:$S,MATCH(A622,'Work Order Master'!$K:$K,0)),\"New\")","v":3150},{"$f":"IFERROR(INDEX('Work Order Master'!T:T,MATCH(WORKORDERS!$Q622,'Work Order Master'!$S:$S,0)),Q622)","v":"INT'L TRVL/CURRIC GRANTS"},{"$f":"IFERROR(INDEX('FRS CC Master'!A:A,MATCH(WORKORDERS!$Q622*1,'FRS CC Master'!$C:$C,0)),WORKORDERS!$L622)","v":"International Education"},{"$f":"IFERROR(VLOOKUP($A622,'Work Order Master'!$K:$Q,7,FALSE),\"Remove\")","v":"N"}]
["22501-3-1","IE ERM Travel Support Project","Active","22501-3","IE ERM Travel Support Project","(blank)","2501","International Education - Initiatives","250","International Education","250","International Education","(blank)","201","Faculty Administration","no",{"$f":"IFERROR(INDEX('Work Order Master'!$S:$S,MATCH(A623,'Work Order Master'!$K:$K,0)),\"New\")","v":3070},{"$f":"IFERROR(INDEX('Work Order Master'!T:T,MATCH(WORKORDERS!$Q623,'Work Order Master'!$S:$S,0)),Q623)","v":"ERM TRAVEL SUPPORT"},{"$f":"IFERROR(INDEX('FRS CC Master'!A:A,MATCH(WORKORDERS!$Q623*1,'FRS CC Master'!$C:$C,0)),WORKORDERS!$L623)","v":"International Education"},{"$f":"IFERROR(VLOOKUP($A623,'Work Order Master'!$K:$Q,7,FALSE),\"Remove\")","v":"N"}]
["22505-1-1","IE International Finance","Parked","22505-1","IE International Finance","(blank)","2505","International Finance","250","International Education","250","International Education","(blank)","201","Faculty Administration","no",{"$f":"IFERROR(INDEX('Work Order Master'!$S:$S,MATCH(A624,'Work Order Master'!$K:$K,0)),\"New\")","v":"New"},{"$f":"IFERROR(INDEX('Work Order Master'!T:T,MATCH(WORKORDERS!$Q624,'Work Order Master'!$S:$S,0)),Q624)","v":"New"},{"$f":"IFERROR(INDEX('FRS CC Master'!A:A,MATCH(WORKORDERS!$Q624*1,'FRS CC Master'!$C:$C,0)),WORKORDERS!$L624)","v":"International Education"},{"$f":"IFERROR(VLOOKUP($A624,'Work Order Master'!$K:$Q,7,FALSE),\"Remove\")","v":"P"}]
["22505-2-1","IE International Student Revenues","Active","22505-2","IE International Student Revenues","(blank)","2505","International Finance","250","International Education","250","International Education","(blank)","201","Faculty Administration","no",{"$f":"IFERROR(INDEX('Work Order Master'!$S:$S,MATCH(A625,'Work Order Master'!$K:$K,0)),\"New\")","v":3099},{"$f":"IFERROR(INDEX('Work Order Master'!T:T,MATCH(WORKORDERS!$Q625,'Work Order Master'!$S:$S,0)),Q625)","v":"INTER ED INDIV. STUDENTS"},{"$f":"IFERROR(INDEX('FRS CC Master'!A:A,MATCH(WORKORDERS!$Q625*1,'FRS CC Master'!$C:$C,0)),WORKORDERS!$L625)","v":"International Education"},{"$f":"IFERROR(VLOOKUP($A625,'Work Order Master'!$K:$Q,7,FALSE),\"Remove\")","v":"N"}]
["22505-2-2","IE International Student Fee - Holding","Active","22505-2","IE International Student Revenues","(blank)","2505","International Finance","250","International Education","250","International Education","(blank)","201","Faculty Administration","no",{"$f":"IFERROR(INDEX('Work Order Master'!$S:$S,MATCH(A626,'Work Order Master'!$K:$K,0)),\"New\")","v":3098},{"$f":"IFERROR(INDEX('Work Order Master'!T:T,MATCH(WORKORDERS!$Q626,'Work Order Master'!$S:$S,0)),Q626)","v":"STU.FEES-HOLDING ACCOUNT"},{"$f":"IFERROR(INDEX('FRS CC Master'!A:A,MATCH(WORKORDERS!$Q626*1,'FRS CC Master'!$C:$C,0)),WORKORDERS!$L626)","v":"International Education"},{"$f":"IFERROR(VLOOKUP($A626,'Work Order Master'!$K:$Q,7,FALSE),\"Remove\")","v":"N"}]
["22505-3-1","IE Academic Transfers","Active","22505-3","IE International Transfers","(blank)","2505","International Finance","250","International Education","250","International Education","(blank)","201","Faculty Administration","no",{"$f":"IFERROR(INDEX('Work Order Master'!$S:$S,MATCH(A627,'Work Order Master'!$K:$K,0)),\"New\")","v":3095},{"$f":"IFERROR(INDEX('Work Order Master'!T:T,MATCH(WORKORDERS!$Q627,'Work Order Master'!$S:$S,0)),Q627)","v":"ACADEMIC PAID BY IE"},{"$f":"IFERROR(INDEX('FRS CC Master'!A:A,MATCH(WORKORDERS!$Q627*1,'FRS CC Master'!$C:$C,0)),WORKORDERS!$L627)","v":"International Education"},{"$f":"IFERROR(VLOOKUP($A627,'Work Order Master'!$K:$Q,7,FALSE),\"Remove\")","v":"N"}]
["22505-3-2","IE ABE Transfers","Active","22505-3","IE International Transfers","(blank)","2505","International Finance","250","International Education","250","International Education","(blank)","201","Faculty Administration","no",{"$f":"IFERROR(INDEX('Work Order Master'!$S:$S,MATCH(A628,'Work Order Master'!$K:$K,0)),\"New\")","v":3096},{"$f":"IFERROR(INDEX('Work Order Master'!T:T,MATCH(WORKORDERS!$Q628,'Work Order Master'!$S:$S,0)),Q628)","v":"ABE PAID BY IE"},{"$f":"IFERROR(INDEX('FRS CC Master'!A:A,MATCH(WORKORDERS!$Q628*1,'FRS CC Master'!$C:$C,0)),WORKORDERS!$L628)","v":"International Education"},{"$f":"IFERROR(VLOOKUP($A628,'Work Order Master'!$K:$Q,7,FALSE),\"Remove\")","v":"N"}]
["22505-4-1","IE Student Scholarships","Active","22505-4","IE Student Scholarships","(blank)","2505","International Finance","250","International Education","250","International Education","(blank)","201","Faculty Administration","no",{"$f":"IFERROR(INDEX('Work Order Master'!$S:$S,MATCH(A629,'Work Order Master'!$K:$K,0)),\"New\")","v":3014},{"$f":"IFERROR(INDEX('Work Order Master'!T:T,MATCH(WORKORDERS!$Q629,'Work Order Master'!$S:$S,0)),Q629)","v":"INTERNATIONAL SHOLARSHIPS"},{"$f":"IFERROR(INDEX('FRS CC Master'!A:A,MATCH(WORKORDERS!$Q629*1,'FRS CC Master'!$C:$C,0)),WORKORDERS!$L629)","v":"International Education"},{"$f":"IFERROR(VLOOKUP($A629,'Work Order Master'!$K:$Q,7,FALSE),\"Remove\")","v":"N"}]
["22505-4-10","IE Scholarships - TASIS/VIU","Active","22505-4","IE Student Scholarships","(blank)","2505","International Finance","250","International Education","250","International Education","(blank)","201","Faculty Administration","no",{"$f":"IFERROR(INDEX('Work Order Master'!$S:$S,MATCH(A630,'Work Order Master'!$K:$K,0)),\"New\")","v":3019},{"$f":"IFERROR(INDEX('Work Order Master'!T:T,MATCH(WORKORDERS!$Q630,'Work Order Master'!$S:$S,0)),Q630)","v":"TASIS/VIU SCHOLARSHIP"},{"$f":"IFERROR(INDEX('FRS CC Master'!A:A,MATCH(WORKORDERS!$Q630*1,'FRS CC Master'!$C:$C,0)),WORKORDERS!$L630)","v":"International Education"},{"$f":"IFERROR(VLOOKUP($A630,'Work Order Master'!$K:$Q,7,FALSE),\"Remove\")","v":"N"}]
["22505-4-11","IE Scholarships - Syrian Sheikho","Active","22505-4","IE Student Scholarships","(blank)","2505","International Finance","250","International Education","250","International Education","(blank)","201","Faculty Administration","no",{"$f":"IFERROR(INDEX('Work Order Master'!$S:$S,MATCH(A631,'Work Order Master'!$K:$K,0)),\"New\")","v":3024},{"$f":"IFERROR(INDEX('Work Order Master'!T:T,MATCH(WORKORDERS!$Q631,'Work Order Master'!$S:$S,0)),Q631)","v":"SYRIAN SCHOLARSHIP-SHEIKHO"},{"$f":"IFERROR(INDEX('FRS CC Master'!A:A,MATCH(WORKORDERS!$Q631*1,'FRS CC Master'!$C:$C,0)),WORKORDERS!$L631)","v":"International Education"},{"$f":"IFERROR(VLOOKUP($A631,'Work Order Master'!$K:$Q,7,FALSE),\"Remove\")","v":"N"}]
["22505-4-2","IE Scholarships - NYAKA","Active","22505-4","IE Student Scholarships","(blank)","2505","International Finance","250","International Education","250","International Education","(blank)","201","Faculty Administration","no",{"$f":"IFERROR(INDEX('Work Order Master'!$S:$S,MATCH(A632,'Work Order Master'!$K:$K,0)),\"New\")","v":3015},{"$f":"IFERROR(INDEX('Work Order Master'!T:T,MATCH(WORKORDERS!$Q632,'Work Order Master'!$S:$S,0)),Q632)","v":"NYAKA SCHOLARSHIP"},{"$f":"IFERROR(INDEX('FRS CC Master'!A:A,MATCH(WORKORDERS!$Q632*1,'FRS CC Master'!$C:$C,0)),WORKORDERS!$L632)","v":"International Education"},{"$f":"IFERROR(VLOOKUP($A632,'Work Order Master'!$K:$Q,7,FALSE),\"Remove\")","v":"N"}]
["22505-4-3","IE Scholarships - Pearson college","Active","22505-4","IE Student Scholarships","(blank)","2505","International Finance","250","International Education","250","International Education","(blank)","201","Faculty Administration","no",{"$f":"IFERROR(INDEX('Work Order Master'!$S:$S,MATCH(A633,'Work Order Master'!$K:$K,0)),\"New\")","v":3021},{"$f":"IFERROR(INDEX('Work Order Master'!T:T,MATCH(WORKORDERS!$Q633,'Work Order Master'!$S:$S,0)),Q633)","v":"PEASON COLLEGE SCLRSHIP"},{"$f":"IFERROR(INDEX('FRS CC Master'!A:A,MATCH(WORKORDERS!$Q633*1,'FRS CC Master'!$C:$C,0)),WORKORDERS!$L633)","v":"International Education"},{"$f":"IFERROR(VLOOKUP($A633,'Work Order Master'!$K:$Q,7,FALSE),\"Remove\")","v":"N"}]
["22505-4-4","IE Scholarships - Queen Elizabeth","Active","22505-4","IE Student Scholarships","(blank)","2505","International Finance","250","International Education","250","International Education","(blank)","201","Faculty Administration","no",{"$f":"IFERROR(INDEX('Work Order Master'!$S:$S,MATCH(A634,'Work Order Master'!$K:$K,0)),\"New\")","v":3041},{"$f":"IFERROR(INDEX('Work Order Master'!T:T,MATCH(WORKORDERS!$Q634,'Work Order Master'!$S:$S,0)),Q634)","v":"QUEEN ELIZABETH SCHOLARS"},{"$f":"IFERROR(INDEX('FRS CC Master'!A:A,MATCH(WORKORDERS!$Q634*1,'FRS CC Master'!$C:$C,0)),WORKORDERS!$L634)","v":"International Education"},{"$f":"IFERROR(VLOOKUP($A634,'Work Order Master'!$K:$Q,7,FALSE),\"Remove\")","v":"N"}]
["22505-4-5","IE Scholarships - QES - Waived tuition","Active","22505-4","IE Student Scholarships","(blank)","2505","International Finance","250","International Education","250","International Education","(blank)","201","Faculty Administration","no",{"$f":"IFERROR(INDEX('Work Order Master'!$S:$S,MATCH(A635,'Work Order Master'!$K:$K,0)),\"New\")","v":3042},{"$f":"IFERROR(INDEX('Work Order Master'!T:T,MATCH(WORKORDERS!$Q635,'Work Order Master'!$S:$S,0)),Q635)","v":"QES VIU WAIVED TUITION"},{"$f":"IFERROR(INDEX('FRS CC Master'!A:A,MATCH(WORKORDERS!$Q635*1,'FRS CC Master'!$C:$C,0)),WORKORDERS!$L635)","v":"International Education"},{"$f":"IFERROR(VLOOKUP($A635,'Work Order Master'!$K:$Q,7,FALSE),\"Remove\")","v":"N"}]
["22505-4-6","IE Scholarships - Students for Development","Active","22505-4","IE Student Scholarships","(blank)","2505","International Finance","250","International Education","250","International Education","(blank)","201","Faculty Administration","no",{"$f":"IFERROR(INDEX('Work Order Master'!$S:$S,MATCH(A636,'Work Order Master'!$K:$K,0)),\"New\")","v":3160},{"$f":"IFERROR(INDEX('Work Order Master'!T:T,MATCH(WORKORDERS!$Q636,'Work Order Master'!$S:$S,0)),Q636)","v":"STUDENTS FOR DEVELOPMENT"},{"$f":"IFERROR(INDEX('FRS CC Master'!A:A,MATCH(WORKORDERS!$Q636*1,'FRS CC Master'!$C:$C,0)),WORKORDERS!$L636)","v":"International Education"},{"$f":"IFERROR(VLOOKUP($A636,'Work Order Master'!$K:$Q,7,FALSE),\"Remove\")","v":"N"}]
["22505-4-7","IE Scholarships - Syrian","Active","22505-4","IE Student Scholarships","(blank)","2505","International Finance","250","International Education","250","International Education","(blank)","201","Faculty Administration","no",{"$f":"IFERROR(INDEX('Work Order Master'!$S:$S,MATCH(A637,'Work Order Master'!$K:$K,0)),\"New\")","v":3020},{"$f":"IFERROR(INDEX('Work Order Master'!T:T,MATCH(WORKORDERS!$Q637,'Work Order Master'!$S:$S,0)),Q637)","v":"SYRIAN STDNT SCHOLARSHIP"},{"$f":"IFERROR(INDEX('FRS CC Master'!A:A,MATCH(WORKORDERS!$Q637*1,'FRS CC Master'!$C:$C,0)),WORKORDERS!$L637)","v":"International Education"},{"$f":"IFERROR(VLOOKUP($A637,'Work Order Master'!$K:$Q,7,FALSE),\"Remove\")","v":"N"}]
["22505-4-8","IE Scholarships - Syrian Alliko","Active","22505-4","IE Student Scholarships","(blank)","2505","International Finance","250","International Education","250","International Education","(blank)","201","Faculty Administration","no",{"$f":"IFERROR(INDEX('Work Order Master'!$S:$S,MATCH(A638,'Work Order Master'!$K:$K,0)),\"New\")","v":3022},{"$f":"IFERROR(INDEX('Work Order Master'!T:T,MATCH(WORKORDERS!$Q638,'Work Order Master'!$S:$S,0)),Q638)","v":"SYRIAN SCHOLARSHIP-ALLIKO"},{"$f":"IFERROR(INDEX('FRS CC Master'!A:A,MATCH(WORKORDERS!$Q638*1,'FRS CC Master'!$C:$C,0)),WORKORDERS!$L638)","v":"International Education"},{"$f":"IFERROR(VLOOKUP($A638,'Work Order Master'!$K:$Q,7,FALSE),\"Remove\")","v":"N"}]
["22505-4-9","IE Scholarships - Syrian Baker","Active","22505-4","IE Student Scholarships","(blank)","2505","International Finance","250","International Education","250","International Education","(blank)","201","Faculty Administration","no",{"$f":"IFERROR(INDEX('Work Order Master'!$S:$S,MATCH(A639,'Work Order Master'!$K:$K,0)),\"New\")","v":3023},{"$f":"IFERROR(INDEX('Work Order Master'!T:T,MATCH(WORKORDERS!$Q639,'Work Order Master'!$S:$S,0)),Q639)","v":"SYRIAN SCHOLARSHIP-BAKER"},{"$f":"IFERROR(INDEX('FRS CC Master'!A:A,MATCH(WORKORDERS!$Q639*1,'FRS CC Master'!$C:$C,0)),WORKORDERS!$L639)","v":"International Education"},{"$f":"IFERROR(VLOOKUP($A639,'Work Order Master'!$K:$Q,7,FALSE),\"Remove\")","v":"N"}]
["22508-1-1","IE English Language Centre","Active","22508-1","IE English Language Centre","(blank)","2508","English Language Centre","250","International Education","250","International Education","(blank)","208","Instruction","no",{"$f":"IFERROR(INDEX('Work Order Master'!$S:$S,MATCH(A640,'Work Order Master'!$K:$K,0)),\"New\")","v":"2820, 2829"},{"$f":"IFERROR(INDEX('Work Order Master'!T:T,MATCH(WORKORDERS!$Q640,'Work Order Master'!$S:$S,0)),Q640)","v":"ENGLISH LANGUAGE CENTRE, ESL TUITION "},{"$f":"IFERROR(INDEX('FRS CC Master'!A:A,MATCH(WORKORDERS!$Q640*1,'FRS CC Master'!$C:$C,0)),WORKORDERS!$L640)","v":"International Education"},{"$f":"IFERROR(VLOOKUP($A640,'Work Order Master'!$K:$Q,7,FALSE),\"Remove\")","v":"N"}]
["22510-1-1","IE Graduate Programs Administration","Parked","22510-1","IE Graduate Programs Administration","(blank)","2510","Graduate Programs Administration","250","International Education","250","International Education","(blank)","201","Faculty Administration","no",{"$f":"IFERROR(INDEX('Work Order Master'!$S:$S,MATCH(A641,'Work Order Master'!$K:$K,0)),\"New\")","v":"New"},{"$f":"IFERROR(INDEX('Work Order Master'!T:T,MATCH(WORKORDERS!$Q641,'Work Order Master'!$S:$S,0)),Q641)","v":"New"},{"$f":"IFERROR(INDEX('FRS CC Master'!A:A,MATCH(WORKORDERS!$Q641*1,'FRS CC Master'!$C:$C,0)),WORKORDERS!$L641)","v":"International Education"},{"$f":"IFERROR(VLOOKUP($A641,'Work Order Master'!$K:$Q,7,FALSE),\"Remove\")","v":"P"}]
["22510-2-1","IE Master of Business Administration","Active","22510-2","IE Master of Business Administration","(blank)","2510","Graduate Programs Administration","250","International Education","250","International Education","(blank)","208","Instruction","no",{"$f":"IFERROR(INDEX('Work Order Master'!$S:$S,MATCH(A642,'Work Order Master'!$K:$K,0)),\"New\")","v":3112},{"$f":"IFERROR(INDEX('Work Order Master'!T:T,MATCH(WORKORDERS!$Q642,'Work Order Master'!$S:$S,0)),Q642)","v":"MBA PROGRAM"},{"$f":"IFERROR(INDEX('FRS CC Master'!A:A,MATCH(WORKORDERS!$Q642*1,'FRS CC Master'!$C:$C,0)),WORKORDERS!$L642)","v":"International Education"},{"$f":"IFERROR(VLOOKUP($A642,'Work Order Master'!$K:$Q,7,FALSE),\"Remove\")","v":"N"}]
["22510-3-1","IE Master of Arts in Sustainable Leisure Management","Active","22510-3","IE Master of Arts in Sustainable Leisure Management","(blank)","2510","Graduate Programs Administration","250","International Education","250","International Education","(blank)","208","Instruction","no",{"$f":"IFERROR(INDEX('Work Order Master'!$S:$S,MATCH(A643,'Work Order Master'!$K:$K,0)),\"New\")","v":3114},{"$f":"IFERROR(INDEX('Work Order Master'!T:T,MATCH(WORKORDERS!$Q643,'Work Order Master'!$S:$S,0)),Q643)","v":"MA SUSTAIN.LEISURE MGMT"},{"$f":"IFERROR(INDEX('FRS CC Master'!A:A,MATCH(WORKORDERS!$Q643*1,'FRS CC Master'!$C:$C,0)),WORKORDERS!$L643)","v":"International Education"},{"$f":"IFERROR(VLOOKUP($A643,'Work Order Master'!$K:$Q,7,FALSE),\"Remove\")","v":"N"}]
["22510-4-1","IE Master of Education International Perspective","Active","22510-4","IE Master of Education International Perspective","(blank)","2510","Graduate Programs Administration","250","International Education","250","International Education","(blank)","208","Instruction",{"$f":"IF(OR(A644=A643,A644=A645),\"yes\",\"no\")","v":"no"},{"$f":"IFERROR(INDEX('Work Order Master'!$S:$S,MATCH(A644,'Work Order Master'!$K:$K,0)),\"New\")","v":3116},{"$f":"IFERROR(INDEX('Work Order Master'!T:T,MATCH(WORKORDERS!$Q644,'Work Order Master'!$S:$S,0)),Q644)","v":"MASTERS ED - INTL PERSPEC"},{"$f":"IFERROR(INDEX('FRS CC Master'!A:A,MATCH(WORKORDERS!$Q644*1,'FRS CC Master'!$C:$C,0)),WORKORDERS!$L644)","v":"International Education"},{"$f":"IFERROR(VLOOKUP($A644,'Work Order Master'!$K:$Q,7,FALSE),\"Remove\")","v":"N"}]
["22510-5-1","IE Master of Community Planning","Active","22510-5","IE Master of Community Planning","(blank)","2510","Graduate Programs Administration","250","International Education","250","International Education","(blank)","208","Instruction","no",{"$f":"IFERROR(INDEX('Work Order Master'!$S:$S,MATCH(A645,'Work Order Master'!$K:$K,0)),\"New\")","v":3118},{"$f":"IFERROR(INDEX('Work Order Master'!T:T,MATCH(WORKORDERS!$Q645,'Work Order Master'!$S:$S,0)),Q645)","v":"MASTER OF COM PLANN (MCP)"},{"$f":"IFERROR(INDEX('FRS CC Master'!A:A,MATCH(WORKORDERS!$Q645*1,'FRS CC Master'!$C:$C,0)),WORKORDERS!$L645)","v":"International Education"},{"$f":"IFERROR(VLOOKUP($A645,'Work Order Master'!$K:$Q,7,FALSE),\"Remove\")","v":"N"}]
["22510-6-1","IE Master of Geographic Information Systems Applications","Active","22510-6","IE Master of Geographic Information Systems Applications","(blank)","2510","Graduate Programs Administration","250","International Education","250","International Education","(blank)","208","Instruction","no",{"$f":"IFERROR(INDEX('Work Order Master'!$S:$S,MATCH(A646,'Work Order Master'!$K:$K,0)),\"New\")","v":3120},{"$f":"IFERROR(INDEX('Work Order Master'!T:T,MATCH(WORKORDERS!$Q646,'Work Order Master'!$S:$S,0)),Q646)","v":"MASTER OF GISA (MGISA)"},{"$f":"IFERROR(INDEX('FRS CC Master'!A:A,MATCH(WORKORDERS!$Q646*1,'FRS CC Master'!$C:$C,0)),WORKORDERS!$L646)","v":"International Education"},{"$f":"IFERROR(VLOOKUP($A646,'Work Order Master'!$K:$Q,7,FALSE),\"Remove\")","v":"N"}]
["22510-7-1","IE Grad Certificate - Business","Active","22510-7","IE Graduate Certificate and Diploma - Management","(blank)","2510","Graduate Programs Administration","250","International Education","250","International Education","(blank)","208","Instruction","no",{"$f":"IFERROR(INDEX('Work Order Master'!$S:$S,MATCH(A647,'Work Order Master'!$K:$K,0)),\"New\")","v":3122},{"$f":"IFERROR(INDEX('Work Order Master'!T:T,MATCH(WORKORDERS!$Q647,'Work Order Master'!$S:$S,0)),Q647)","v":"GRAD CERT IN BUSINESS "},{"$f":"IFERROR(INDEX('FRS CC Master'!A:A,MATCH(WORKORDERS!$Q647*1,'FRS CC Master'!$C:$C,0)),WORKORDERS!$L647)","v":"International Education"},{"$f":"IFERROR(VLOOKUP($A647,'Work Order Master'!$K:$Q,7,FALSE),\"Remove\")","v":"N"}]
["22510-7-2","IE Grad Diploma - International Trade","Active","22510-7","IE Graduate Certificate and Diploma - Management","(blank)","2510","Graduate Programs Administration","250","International Education","250","International Education","(blank)","208","Instruction","no",{"$f":"IFERROR(INDEX('Work Order Master'!$S:$S,MATCH(A648,'Work Order Master'!$K:$K,0)),\"New\")","v":3124},{"$f":"IFERROR(INDEX('Work Order Master'!T:T,MATCH(WORKORDERS!$Q648,'Work Order Master'!$S:$S,0)),Q648)","v":"GRAD DIPL INTL TRADE"},{"$f":"IFERROR(INDEX('FRS CC Master'!A:A,MATCH(WORKORDERS!$Q648*1,'FRS CC Master'!$C:$C,0)),WORKORDERS!$L648)","v":"International Education"},{"$f":"IFERROR(VLOOKUP($A648,'Work Order Master'!$K:$Q,7,FALSE),\"Remove\")","v":"N"}]
["22510-7-3","IE Grad Diploma - Project Management","Active","22510-7","IE Graduate Certificate and Diploma - Management","(blank)","2510","Graduate Programs Administration","250","International Education","250","International Education","(blank)","208","Instruction","no",{"$f":"IFERROR(INDEX('Work Order Master'!$S:$S,MATCH(A649,'Work Order Master'!$K:$K,0)),\"New\")","v":3126},{"$f":"IFERROR(INDEX('Work Order Master'!T:T,MATCH(WORKORDERS!$Q649,'Work Order Master'!$S:$S,0)),Q649)","v":"GRAD DIPL PROJ MGMT"},{"$f":"IFERROR(INDEX('FRS CC Master'!A:A,MATCH(WORKORDERS!$Q649*1,'FRS CC Master'!$C:$C,0)),WORKORDERS!$L649)","v":"International Education"},{"$f":"IFERROR(VLOOKUP($A649,'Work Order Master'!$K:$Q,7,FALSE),\"Remove\")","v":"N"}]
["22515-1-1","IE Centre for Intercultural Studies - Intercultural Programs","Active","22515-1","IE Centre for Intercultural Studies","(blank)","2515","Centre for Intercultural Studies","250","International Education","250","International Education","(blank)","201","Faculty Administration","no",{"$f":"IFERROR(INDEX('Work Order Master'!$S:$S,MATCH(A650,'Work Order Master'!$K:$K,0)),\"New\")","v":3009},{"$f":"IFERROR(INDEX('Work Order Master'!T:T,MATCH(WORKORDERS!$Q650,'Work Order Master'!$S:$S,0)),Q650)","v":"INTERCULTURAL PROGRAMS"},{"$f":"IFERROR(INDEX('FRS CC Master'!A:A,MATCH(WORKORDERS!$Q650*1,'FRS CC Master'!$C:$C,0)),WORKORDERS!$L650)","v":"International Education"},{"$f":"IFERROR(VLOOKUP($A650,'Work Order Master'!$K:$Q,7,FALSE),\"Remove\")","v":"N"}]
["22515-1-2","IE Centre for Intercultural Studies","Active","22515-1","IE Centre for Intercultural Studies","(blank)","2515","Centre for Intercultural Studies","250","International Education","250","International Education","(blank)","201","Faculty Administration","no",{"$f":"IFERROR(INDEX('Work Order Master'!$S:$S,MATCH(A651,'Work Order Master'!$K:$K,0)),\"New\")","v":3101},{"$f":"IFERROR(INDEX('Work Order Master'!T:T,MATCH(WORKORDERS!$Q651,'Work Order Master'!$S:$S,0)),Q651)","v":"INTERNATIONAL RETENTION"},{"$f":"IFERROR(INDEX('FRS CC Master'!A:A,MATCH(WORKORDERS!$Q651*1,'FRS CC Master'!$C:$C,0)),WORKORDERS!$L651)","v":"International Education"},{"$f":"IFERROR(VLOOKUP($A651,'Work Order Master'!$K:$Q,7,FALSE),\"Remove\")","v":"N"}]
["22520-1-1","IE International Student Services","Active","22520-1","IE International Student Services","(blank)","2520","International Student Services","252","International Student Services","250","International Education","(blank)","204","Advising","yes",{"$f":"IFERROR(INDEX('Work Order Master'!$S:$S,MATCH(A652,'Work Order Master'!$K:$K,0)),\"New\")","v":3010},{"$f":"IFERROR(INDEX('Work Order Master'!T:T,MATCH(WORKORDERS!$Q652,'Work Order Master'!$S:$S,0)),Q652)","v":"INTERN'L STU SERVICES"},{"$f":"IFERROR(INDEX('FRS CC Master'!A:A,MATCH(WORKORDERS!$Q652*1,'FRS CC Master'!$C:$C,0)),WORKORDERS!$L652)","v":"International Education"},{"$f":"IFERROR(VLOOKUP($A652,'Work Order Master'!$K:$Q,7,FALSE),\"Remove\")","v":"N"}]
["22520-1-1","IE International Student Services","Active","22520-1","IE International Student Services","(blank)","2520","International Student Services","252","International Student Services","250","International Education","(blank)","217","Student Support and Services","yes",{"$f":"IFERROR(INDEX('Work Order Master'!$S:$S,MATCH(A653,'Work Order Master'!$K:$K,0)),\"New\")","v":3010},{"$f":"IFERROR(INDEX('Work Order Master'!T:T,MATCH(WORKORDERS!$Q653,'Work Order Master'!$S:$S,0)),Q653)","v":"INTERN'L STU SERVICES"},{"$f":"IFERROR(INDEX('FRS CC Master'!A:A,MATCH(WORKORDERS!$Q653*1,'FRS CC Master'!$C:$C,0)),WORKORDERS!$L653)","v":"International Education"},{"$f":"IFERROR(VLOOKUP($A653,'Work Order Master'!$K:$Q,7,FALSE),\"Remove\")","v":"N"}]
["22520-1-2","IE International Student Services - Advising","Active","22520-1","IE International Student Services","(blank)","2520","International Student Services","252","International Student Services","250","International Education","(blank)","204","Advising","yes",{"$f":"IFERROR(INDEX('Work Order Master'!$S:$S,MATCH(A654,'Work Order Master'!$K:$K,0)),\"New\")","v":3008},{"$f":"IFERROR(INDEX('Work Order Master'!T:T,MATCH(WORKORDERS!$Q654,'Work Order Master'!$S:$S,0)),Q654)","v":"INT'L STUDENT ADVISING"},{"$f":"IFERROR(INDEX('FRS CC Master'!A:A,MATCH(WORKORDERS!$Q654*1,'FRS CC Master'!$C:$C,0)),WORKORDERS!$L654)","v":"International Education"},{"$f":"IFERROR(VLOOKUP($A654,'Work Order Master'!$K:$Q,7,FALSE),\"Remove\")","v":"N"}]
["22520-1-2","IE International Student Services - Advising","Active","22520-1","IE International Student Services","(blank)","2520","International Student Services","252","International Student Services","250","International Education","(blank)","217","Student Support and Services","yes",{"$f":"IFERROR(INDEX('Work Order Master'!$S:$S,MATCH(A655,'Work Order Master'!$K:$K,0)),\"New\")","v":3008},{"$f":"IFERROR(INDEX('Work Order Master'!T:T,MATCH(WORKORDERS!$Q655,'Work Order Master'!$S:$S,0)),Q655)","v":"INT'L STUDENT ADVISING"},{"$f":"IFERROR(INDEX('FRS CC Master'!A:A,MATCH(WORKORDERS!$Q655*1,'FRS CC Master'!$C:$C,0)),WORKORDERS!$L655)","v":"International Education"},{"$f":"IFERROR(VLOOKUP($A655,'Work Order Master'!$K:$Q,7,FALSE),\"Remove\")","v":"N"}]
["22520-1-3","IE International Student Services - Emergency Loan","Active","22520-1","IE International Student Services","(blank)","2520","International Student Services","252","International Student Services","250","International Education","(blank)","204","Advising","yes",{"$f":"IFERROR(INDEX('Work Order Master'!$S:$S,MATCH(A656,'Work Order Master'!$K:$K,0)),\"New\")","v":3006},{"$f":"IFERROR(INDEX('Work Order Master'!T:T,MATCH(WORKORDERS!$Q656,'Work Order Master'!$S:$S,0)),Q656)","v":"INTED STUDENT EMERG LOAN"},{"$f":"IFERROR(INDEX('FRS CC Master'!A:A,MATCH(WORKORDERS!$Q656*1,'FRS CC Master'!$C:$C,0)),WORKORDERS!$L656)","v":"International Education"},{"$f":"IFERROR(VLOOKUP($A656,'Work Order Master'!$K:$Q,7,FALSE),\"Remove\")","v":"N"}]
["22520-1-3","IE International Student Services - Emergency Loan","Active","22520-1","IE International Student Services","(blank)","2520","International Student Services","252","International Student Services","250","International Education","(blank)","217","Student Support and Services","yes",{"$f":"IFERROR(INDEX('Work Order Master'!$S:$S,MATCH(A657,'Work Order Master'!$K:$K,0)),\"New\")","v":3006},{"$f":"IFERROR(INDEX('Work Order Master'!T:T,MATCH(WORKORDERS!$Q657,'Work Order Master'!$S:$S,0)),Q657)","v":"INTED STUDENT EMERG LOAN"},{"$f":"IFERROR(INDEX('FRS CC Master'!A:A,MATCH(WORKORDERS!$Q657*1,'FRS CC Master'!$C:$C,0)),WORKORDERS!$L657)","v":"International Education"},{"$f":"IFERROR(VLOOKUP($A657,'Work Order Master'!$K:$Q,7,FALSE),\"Remove\")","v":"N"}]
["22520-1-4","IE International Student Services - Medical","Active","22520-1","IE International Student Services","(blank)","2520","International Student Services","252","International Student Services","250","International Education","(blank)","204","Advising","yes",{"$f":"IFERROR(INDEX('Work Order Master'!$S:$S,MATCH(A658,'Work Order Master'!$K:$K,0)),\"New\")","v":3005},{"$f":"IFERROR(INDEX('Work Order Master'!T:T,MATCH(WORKORDERS!$Q658,'Work Order Master'!$S:$S,0)),Q658)","v":"INTERNATIONAL MEDICAL"},{"$f":"IFERROR(INDEX('FRS CC Master'!A:A,MATCH(WORKORDERS!$Q658*1,'FRS CC Master'!$C:$C,0)),WORKORDERS!$L658)","v":"International Education"},{"$f":"IFERROR(VLOOKUP($A658,'Work Order Master'!$K:$Q,7,FALSE),\"Remove\")","v":"N"}]
["22520-1-4","IE International Student Services - Medical","Active","22520-1","IE International Student Services","(blank)","2520","International Student Services","252","International Student Services","250","International Education","(blank)","217","Student Support and Services","yes",{"$f":"IFERROR(INDEX('Work Order Master'!$S:$S,MATCH(A659,'Work Order Master'!$K:$K,0)),\"New\")","v":3005},{"$f":"IFERROR(INDEX('Work Order Master'!T:T,MATCH(WORKORDERS!$Q659,'Work Order Master'!$S:$S,0)),Q659)","v":"INTERNATIONAL MEDICAL"},{"$f":"IFERROR(INDEX('FRS CC Master'!A:A,MATCH(WORKORDERS!$Q659*1,'FRS CC Master'!$C:$C,0)),WORKORDERS!$L659)","v":"International Education"},{"$f":"IFERROR(VLOOKUP($A659,'Work Order Master'!$K:$Q,7,FALSE),\"Remove\")","v":"N"}]
["22522-1-1","IE International Admissions","Active","22522-1","IE International Admissions","(blank)","2522","International Admissions","252","International Student Services","250","International Education","(blank)","217","Student Support and Services","no",{"$f":"IFERROR(INDEX('Work Order Master'!$S:$S,MATCH(A660,'Work Order Master'!$K:$K,0)),\"New\")","v":3100},{"$f":"IFERROR(INDEX('Work Order Master'!T:T,MATCH(WORKORDERS!$Q660,'Work Order Master'!$S:$S,0)),Q660)","v":"INTERNATIONAL ADMISSIONS"},{"$f":"IFERROR(INDEX('FRS CC Master'!A:A,MATCH(WORKORDERS!$Q660*1,'FRS CC Master'!$C:$C,0)),WORKORDERS!$L660)","v":"International Education"},{"$f":"IFERROR(VLOOKUP($A660,'Work Order Master'!$K:$Q,7,FALSE),\"Remove\")","v":"N"}]
["22525-1-1","IE Homestay - Administration","Active","22525-1","IE Student Homestay","(blank)","2525","Student Homestay","252","International Student Services","250","International Education","(blank)","217","Student Support and Services","no",{"$f":"IFERROR(INDEX('Work Order Master'!$S:$S,MATCH(A661,'Work Order Master'!$K:$K,0)),\"New\")","v":3011},{"$f":"IFERROR(INDEX('Work Order Master'!T:T,MATCH(WORKORDERS!$Q661,'Work Order Master'!$S:$S,0)),Q661)","v":"HOMESTAY"},{"$f":"IFERROR(INDEX('FRS CC Master'!A:A,MATCH(WORKORDERS!$Q661*1,'FRS CC Master'!$C:$C,0)),WORKORDERS!$L661)","v":"International Education"},{"$f":"IFERROR(VLOOKUP($A661,'Work Order Master'!$K:$Q,7,FALSE),\"Remove\")","v":"N"}]
["22525-1-2","IE Homestay - VIU Students","Active","22525-1","IE Student Homestay","(blank)","2525","Student Homestay","252","International Student Services","250","International Education","(blank)","217","Student Support and Services","no",{"$f":"IFERROR(INDEX('Work Order Master'!$S:$S,MATCH(A662,'Work Order Master'!$K:$K,0)),\"New\")","v":3016},{"$f":"IFERROR(INDEX('Work Order Master'!T:T,MATCH(WORKORDERS!$Q662,'Work Order Master'!$S:$S,0)),Q662)","v":"HOMESTAY-VIU STUDENTS"},{"$f":"IFERROR(INDEX('FRS CC Master'!A:A,MATCH(WORKORDERS!$Q662*1,'FRS CC Master'!$C:$C,0)),WORKORDERS!$L662)","v":"International Education"},{"$f":"IFERROR(VLOOKUP($A662,'Work Order Master'!$K:$Q,7,FALSE),\"Remove\")","v":"N"}]
["22525-1-3","IE Homestay - Groups","Active","22525-1","IE Student Homestay","(blank)","2525","Student Homestay","252","International Student Services","250","International Education","(blank)","217","Student Support and Services","no",{"$f":"IFERROR(INDEX('Work Order Master'!$S:$S,MATCH(A663,'Work Order Master'!$K:$K,0)),\"New\")","v":3017},{"$f":"IFERROR(INDEX('Work Order Master'!T:T,MATCH(WORKORDERS!$Q663,'Work Order Master'!$S:$S,0)),Q663)","v":"HOMESTAY - GROUPS"},{"$f":"IFERROR(INDEX('FRS CC Master'!A:A,MATCH(WORKORDERS!$Q663*1,'FRS CC Master'!$C:$C,0)),WORKORDERS!$L663)","v":"International Education"},{"$f":"IFERROR(VLOOKUP($A663,'Work Order Master'!$K:$Q,7,FALSE),\"Remove\")","v":"N"}]
["22530-1-1","IE International Marketing","Active","22530-1","IE International Marketing","(blank)","2530","International Marketing","253","International Marketing","250","International Education","(blank)","201","Faculty Administration","no",{"$f":"IFERROR(INDEX('Work Order Master'!$S:$S,MATCH(A664,'Work Order Master'!$K:$K,0)),\"New\")","v":3090},{"$f":"IFERROR(INDEX('Work Order Master'!T:T,MATCH(WORKORDERS!$Q664,'Work Order Master'!$S:$S,0)),Q664)","v":"INT'L MARKETING PROGRAMS"},{"$f":"IFERROR(INDEX('FRS CC Master'!A:A,MATCH(WORKORDERS!$Q664*1,'FRS CC Master'!$C:$C,0)),WORKORDERS!$L664)","v":"International Education"},{"$f":"IFERROR(VLOOKUP($A664,'Work Order Master'!$K:$Q,7,FALSE),\"Remove\")","v":"N"}]
["22530-1-2","IE Marketing - Customer Relations Management","Active","22530-1","IE International Marketing","(blank)","2530","International Marketing","253","International Marketing","250","International Education","(blank)","201","Faculty Administration","no",{"$f":"IFERROR(INDEX('Work Order Master'!$S:$S,MATCH(A665,'Work Order Master'!$K:$K,0)),\"New\")","v":3002},{"$f":"IFERROR(INDEX('Work Order Master'!T:T,MATCH(WORKORDERS!$Q665,'Work Order Master'!$S:$S,0)),Q665)","v":"CUSTOMER RELATIONS MGMT"},{"$f":"IFERROR(INDEX('FRS CC Master'!A:A,MATCH(WORKORDERS!$Q665*1,'FRS CC Master'!$C:$C,0)),WORKORDERS!$L665)","v":"International Education"},{"$f":"IFERROR(VLOOKUP($A665,'Work Order Master'!$K:$Q,7,FALSE),\"Remove\")","v":"N"}]
["22530-2-1","IE Marketing - Academic","Active","22530-2","IE International Marketing - Agents Fees","(blank)","2530","International Marketing","253","International Marketing","250","International Education","(blank)","201","Faculty Administration","no",{"$f":"IFERROR(INDEX('Work Order Master'!$S:$S,MATCH(A666,'Work Order Master'!$K:$K,0)),\"New\")","v":3013},{"$f":"IFERROR(INDEX('Work Order Master'!T:T,MATCH(WORKORDERS!$Q666,'Work Order Master'!$S:$S,0)),Q666)","v":"AGENTS FEES ACADEMIC"},{"$f":"IFERROR(INDEX('FRS CC Master'!A:A,MATCH(WORKORDERS!$Q666*1,'FRS CC Master'!$C:$C,0)),WORKORDERS!$L666)","v":"International Education"},{"$f":"IFERROR(VLOOKUP($A666,'Work Order Master'!$K:$Q,7,FALSE),\"Remove\")","v":"N"}]
["22530-2-2","IE Marketing - ESL","Active","22530-2","IE International Marketing - Agents Fees","(blank)","2530","International Marketing","253","International Marketing","250","International Education","(blank)","201","Faculty Administration","no",{"$f":"IFERROR(INDEX('Work Order Master'!$S:$S,MATCH(A667,'Work Order Master'!$K:$K,0)),\"New\")","v":3012},{"$f":"IFERROR(INDEX('Work Order Master'!T:T,MATCH(WORKORDERS!$Q667,'Work Order Master'!$S:$S,0)),Q667)","v":"AGENTS FEES  ESL"},{"$f":"IFERROR(INDEX('FRS CC Master'!A:A,MATCH(WORKORDERS!$Q667*1,'FRS CC Master'!$C:$C,0)),WORKORDERS!$L667)","v":"International Education"},{"$f":"IFERROR(VLOOKUP($A667,'Work Order Master'!$K:$Q,7,FALSE),\"Remove\")","v":"N"}]
["22540-1-1","IE Group Programs","Active","22540-1","IE Group Programs","(blank)","2540","Group Programs","254","Group Programs and Global Engagement","250","International Education","(blank)","219","Contract activity","no",{"$f":"IFERROR(INDEX('Work Order Master'!$S:$S,MATCH(A668,'Work Order Master'!$K:$K,0)),\"New\")","v":3025},{"$f":"IFERROR(INDEX('Work Order Master'!T:T,MATCH(WORKORDERS!$Q668,'Work Order Master'!$S:$S,0)),Q668)","v":"GROUP PROGRAMS&CONTRACTS"},{"$f":"IFERROR(INDEX('FRS CC Master'!A:A,MATCH(WORKORDERS!$Q668*1,'FRS CC Master'!$C:$C,0)),WORKORDERS!$L668)","v":"International Education"},{"$f":"IFERROR(VLOOKUP($A668,'Work Order Master'!$K:$Q,7,FALSE),\"Remove\")","v":"N"}]
["22540-1-2","IE Group Programs  - ELAP","Active","22540-1","IE Group Programs","(blank)","2540","Group Programs","254","Group Programs and Global Engagement","250","International Education","(blank)","219","Contract activity","no",{"$f":"IFERROR(INDEX('Work Order Master'!$S:$S,MATCH(A669,'Work Order Master'!$K:$K,0)),\"New\")","v":3029},{"$f":"IFERROR(INDEX('Work Order Master'!T:T,MATCH(WORKORDERS!$Q669,'Work Order Master'!$S:$S,0)),Q669)","v":"ELAP"},{"$f":"IFERROR(INDEX('FRS CC Master'!A:A,MATCH(WORKORDERS!$Q669*1,'FRS CC Master'!$C:$C,0)),WORKORDERS!$L669)","v":"International Education"},{"$f":"IFERROR(VLOOKUP($A669,'Work Order Master'!$K:$Q,7,FALSE),\"Remove\")","v":"N"}]
["22540-1-3","IE Group Programs  - International Project/Partnerships","Active","22540-1","IE Group Programs","(blank)","2540","Group Programs","254","Group Programs and Global Engagement","250","International Education","(blank)","219","Contract activity","no",{"$f":"IFERROR(INDEX('Work Order Master'!$S:$S,MATCH(A670,'Work Order Master'!$K:$K,0)),\"New\")","v":3030},{"$f":"IFERROR(INDEX('Work Order Master'!T:T,MATCH(WORKORDERS!$Q670,'Work Order Master'!$S:$S,0)),Q670)","v":"INTERNL PROJECT/PARTNERSH"},{"$f":"IFERROR(INDEX('FRS CC Master'!A:A,MATCH(WORKORDERS!$Q670*1,'FRS CC Master'!$C:$C,0)),WORKORDERS!$L670)","v":"International Education"},{"$f":"IFERROR(VLOOKUP($A670,'Work Order Master'!$K:$Q,7,FALSE),\"Remove\")","v":"N"}]
["22540-1-4","IE Group Programs  - Shanghai Lizin U Commerce","Active","22540-1","IE Group Programs","(blank)","2540","Group Programs","254","Group Programs and Global Engagement","250","International Education","(blank)","219","Contract activity","no",{"$f":"IFERROR(INDEX('Work Order Master'!$S:$S,MATCH(A671,'Work Order Master'!$K:$K,0)),\"New\")","v":3034},{"$f":"IFERROR(INDEX('Work Order Master'!T:T,MATCH(WORKORDERS!$Q671,'Work Order Master'!$S:$S,0)),Q671)","v":"SHANGHAI LIXIN U COMMERCE"},{"$f":"IFERROR(INDEX('FRS CC Master'!A:A,MATCH(WORKORDERS!$Q671*1,'FRS CC Master'!$C:$C,0)),WORKORDERS!$L671)","v":"International Education"},{"$f":"IFERROR(VLOOKUP($A671,'Work Order Master'!$K:$Q,7,FALSE),\"Remove\")","v":"N"}]
["22540-1-5","IE Group Programs  - SDIBT","Active","22540-1","IE Group Programs","(blank)","2540","Group Programs","254","Group Programs and Global Engagement","250","International Education","(blank)","219","Contract activity","no",{"$f":"IFERROR(INDEX('Work Order Master'!$S:$S,MATCH(A672,'Work Order Master'!$K:$K,0)),\"New\")","v":3035},{"$f":"IFERROR(INDEX('Work Order Master'!T:T,MATCH(WORKORDERS!$Q672,'Work Order Master'!$S:$S,0)),Q672)","v":"SDIBT"},{"$f":"IFERROR(INDEX('FRS CC Master'!A:A,MATCH(WORKORDERS!$Q672*1,'FRS CC Master'!$C:$C,0)),WORKORDERS!$L672)","v":"International Education"},{"$f":"IFERROR(VLOOKUP($A672,'Work Order Master'!$K:$Q,7,FALSE),\"Remove\")","v":"N"}]
["22540-1-6","IE Group Programs  - Tamagawa ESL/Horticulture","Active","22540-1","IE Group Programs","(blank)","2540","Group Programs","254","Group Programs and Global Engagement","250","International Education","(blank)","219","Contract activity","no",{"$f":"IFERROR(INDEX('Work Order Master'!$S:$S,MATCH(A673,'Work Order Master'!$K:$K,0)),\"New\")","v":3130},{"$f":"IFERROR(INDEX('Work Order Master'!T:T,MATCH(WORKORDERS!$Q673,'Work Order Master'!$S:$S,0)),Q673)","v":"TAMAGAWA  ESL/HORTICULTUR"},{"$f":"IFERROR(INDEX('FRS CC Master'!A:A,MATCH(WORKORDERS!$Q673*1,'FRS CC Master'!$C:$C,0)),WORKORDERS!$L673)","v":"International Education"},{"$f":"IFERROR(VLOOKUP($A673,'Work Order Master'!$K:$Q,7,FALSE),\"Remove\")","v":"N"}]
["22545-1-1","IE Global Engagement","Active","22545-1","IE Global Engagement","(blank)","2545","Global Engagement","254","Group Programs and Global Engagement","250","International Education","(blank)","201","Faculty Administration","no",{"$f":"IFERROR(INDEX('Work Order Master'!$S:$S,MATCH(A674,'Work Order Master'!$K:$K,0)),\"New\")","v":3061},{"$f":"IFERROR(INDEX('Work Order Master'!T:T,MATCH(WORKORDERS!$Q674,'Work Order Master'!$S:$S,0)),Q674)","v":"GLOBAL ENGAGEMENT "},{"$f":"IFERROR(INDEX('FRS CC Master'!A:A,MATCH(WORKORDERS!$Q674*1,'FRS CC Master'!$C:$C,0)),WORKORDERS!$L674)","v":"International Education"},{"$f":"IFERROR(VLOOKUP($A674,'Work Order Master'!$K:$Q,7,FALSE),\"Remove\")","v":"N"}]
["22545-2-1","IE Global Engagement - Internationalization","Active","22545-2","IE Global Engagement - Internationalization","(blank)","2545","Global Engagement","254","Group Programs and Global Engagement","250","International Education","(blank)","201","Faculty Administration","no",{"$f":"IFERROR(INDEX('Work Order Master'!$S:$S,MATCH(A675,'Work Order Master'!$K:$K,0)),\"New\")","v":3092},{"$f":"IFERROR(INDEX('Work Order Master'!T:T,MATCH(WORKORDERS!$Q675,'Work Order Master'!$S:$S,0)),Q675)","v":"MAL.INTERNATIONALIZATION"},{"$f":"IFERROR(INDEX('FRS CC Master'!A:A,MATCH(WORKORDERS!$Q675*1,'FRS CC Master'!$C:$C,0)),WORKORDERS!$L675)","v":"International Education"},{"$f":"IFERROR(VLOOKUP($A675,'Work Order Master'!$K:$Q,7,FALSE),\"Remove\")","v":"N"}]
["22545-3-1","IE Global Engagement - SAGE - Belize","Active","22545-3","IE GE - Skills to Access the Green Economy Program","(blank)","2545","Global Engagement","254","Group Programs and Global Engagement","250","International Education","(blank)","219","Contract activity","no",{"$f":"IFERROR(INDEX('Work Order Master'!$S:$S,MATCH(A676,'Work Order Master'!$K:$K,0)),\"New\")","v":3044},{"$f":"IFERROR(INDEX('Work Order Master'!T:T,MATCH(WORKORDERS!$Q676,'Work Order Master'!$S:$S,0)),Q676)","v":"SAGE - BELIZE"},{"$f":"IFERROR(INDEX('FRS CC Master'!A:A,MATCH(WORKORDERS!$Q676*1,'FRS CC Master'!$C:$C,0)),WORKORDERS!$L676)","v":"International Education"},{"$f":"IFERROR(VLOOKUP($A676,'Work Order Master'!$K:$Q,7,FALSE),\"Remove\")","v":"N"}]
["22545-4-1","IE Global Engagement- Young Africa Works- Kenya","Active","22545-4","IE Global Engagement- Young Africa Works","(blank)","2545","Global Engagement","254","Group Programs and Global Engagement","250","International Education","(blank)","219","Contract activity","no",{"$f":"IFERROR(INDEX('Work Order Master'!$S:$S,MATCH(A677,'Work Order Master'!$K:$K,0)),\"New\")","v":3046},{"$f":"IFERROR(INDEX('Work Order Master'!T:T,MATCH(WORKORDERS!$Q677,'Work Order Master'!$S:$S,0)),Q677)","v":"YOUNG AFRICA WORKS - KENYA"},{"$f":"IFERROR(INDEX('FRS CC Master'!A:A,MATCH(WORKORDERS!$Q677*1,'FRS CC Master'!$C:$C,0)),WORKORDERS!$L677)","v":"International Education"},{"$f":"IFERROR(VLOOKUP($A677,'Work Order Master'!$K:$Q,7,FALSE),\"Remove\")","v":"N"}]
["22545-5-1","IE Global Engagement - Pacific Alliance - Chile","Active","22545-5","IE Global Engagement - Pacific Alliance","(blank)","2545","Global Engagement","254","Group Programs and Global Engagement","250","International Education","(blank)","219","Contract activity","no",{"$f":"IFERROR(INDEX('Work Order Master'!$S:$S,MATCH(A678,'Work Order Master'!$K:$K,0)),\"New\")","v":3045},{"$f":"IFERROR(INDEX('Work Order Master'!T:T,MATCH(WORKORDERS!$Q678,'Work Order Master'!$S:$S,0)),Q678)","v":"PACIFIC ALLIANCE"},{"$f":"IFERROR(INDEX('FRS CC Master'!A:A,MATCH(WORKORDERS!$Q678*1,'FRS CC Master'!$C:$C,0)),WORKORDERS!$L678)","v":"International Education"},{"$f":"IFERROR(VLOOKUP($A678,'Work Order Master'!$K:$Q,7,FALSE),\"Remove\")","v":"N"}]
["22545-6-1","IE Global Engagement - TRA NINH - Vietnam","Active","22545-6","IE Global Engagement - TRA NINH","(blank)","2545","Global Engagement","254","Group Programs and Global Engagement","250","International Education","(blank)","219","Contract activity","no",{"$f":"IFERROR(INDEX('Work Order Master'!$S:$S,MATCH(A679,'Work Order Master'!$K:$K,0)),\"New\")","v":3073},{"$f":"IFERROR(INDEX('Work Order Master'!T:T,MATCH(WORKORDERS!$Q679,'Work Order Master'!$S:$S,0)),Q679)","v":"VIETNAM - TRA VINH"},{"$f":"IFERROR(INDEX('FRS CC Master'!A:A,MATCH(WORKORDERS!$Q679*1,'FRS CC Master'!$C:$C,0)),WORKORDERS!$L679)","v":"International Education"},{"$f":"IFERROR(VLOOKUP($A679,'Work Order Master'!$K:$Q,7,FALSE),\"Remove\")","v":"N"}]
["22550-1-1","IE Education Abroad and Field Schools","Active","22550-1","IE Education Abroad and Field Schools","(blank)","2550","Education Abroad and Field Schools","255","Education Abroad and Field Schools","250","International Education","(blank)","223","Field Schools","no",{"$f":"IFERROR(INDEX('Work Order Master'!$S:$S,MATCH(A680,'Work Order Master'!$K:$K,0)),\"New\")","v":3060},{"$f":"IFERROR(INDEX('Work Order Master'!T:T,MATCH(WORKORDERS!$Q680,'Work Order Master'!$S:$S,0)),Q680)","v":"ED. ABROAD & PROJ MNGMT"},{"$f":"IFERROR(INDEX('FRS CC Master'!A:A,MATCH(WORKORDERS!$Q680*1,'FRS CC Master'!$C:$C,0)),WORKORDERS!$L680)","v":"International Education"},{"$f":"IFERROR(VLOOKUP($A680,'Work Order Master'!$K:$Q,7,FALSE),\"Remove\")","v":"N"}]
["22550-1-10","IE EAFS - Business Field School EAFS - Europe","Active","22550-1","IE Education Abroad and Field Schools","(blank)","2550","Education Abroad and Field Schools","255","Education Abroad and Field Schools","250","International Education","(blank)","223","Field Schools","no",{"$f":"IFERROR(INDEX('Work Order Master'!$S:$S,MATCH(A681,'Work Order Master'!$K:$K,0)),\"New\")","v":3194},{"$f":"IFERROR(INDEX('Work Order Master'!T:T,MATCH(WORKORDERS!$Q681,'Work Order Master'!$S:$S,0)),Q681)","v":"BUSINESS FS - EUROPE"},{"$f":"IFERROR(INDEX('FRS CC Master'!A:A,MATCH(WORKORDERS!$Q681*1,'FRS CC Master'!$C:$C,0)),WORKORDERS!$L681)","v":"International Education"},{"$f":"IFERROR(VLOOKUP($A681,'Work Order Master'!$K:$Q,7,FALSE),\"Remove\")","v":"N"}]
["22550-1-11","IE EAFS - Central Asia Office","Parked","22550-1","IE Education Abroad and Field Schools","(blank)","2550","Education Abroad and Field Schools","255","Education Abroad and Field Schools","250","International Education","(blank)","223","Field Schools","no",{"$f":"IFERROR(INDEX('Work Order Master'!$S:$S,MATCH(A682,'Work Order Master'!$K:$K,0)),\"New\")","v":"New"},{"$f":"IFERROR(INDEX('Work Order Master'!T:T,MATCH(WORKORDERS!$Q682,'Work Order Master'!$S:$S,0)),Q682)","v":"New"},{"$f":"IFERROR(INDEX('FRS CC Master'!A:A,MATCH(WORKORDERS!$Q682*1,'FRS CC Master'!$C:$C,0)),WORKORDERS!$L682)","v":"International Education"},{"$f":"IFERROR(VLOOKUP($A682,'Work Order Master'!$K:$Q,7,FALSE),\"Remove\")","v":"P"}]
["22550-1-12","IE EAFS - Cosmetology Implementation","Active","22550-1","IE Education Abroad and Field Schools","(blank)","2550","Education Abroad and Field Schools","255","Education Abroad and Field Schools","250","International Education","(blank)","223","Field Schools","no",{"$f":"IFERROR(INDEX('Work Order Master'!$S:$S,MATCH(A683,'Work Order Master'!$K:$K,0)),\"New\")","v":3039},{"$f":"IFERROR(INDEX('Work Order Master'!T:T,MATCH(WORKORDERS!$Q683,'Work Order Master'!$S:$S,0)),Q683)","v":"COSMETOLGY IMPLEMENTATION"},{"$f":"IFERROR(INDEX('FRS CC Master'!A:A,MATCH(WORKORDERS!$Q683*1,'FRS CC Master'!$C:$C,0)),WORKORDERS!$L683)","v":"International Education"},{"$f":"IFERROR(VLOOKUP($A683,'Work Order Master'!$K:$Q,7,FALSE),\"Remove\")","v":"N"}]
["22550-1-13","IE EAFS - Culinary Field School EAFS - Italy","Active","22550-1","IE Education Abroad and Field Schools","(blank)","2550","Education Abroad and Field Schools","255","Education Abroad and Field Schools","250","International Education","(blank)","223","Field Schools","no",{"$f":"IFERROR(INDEX('Work Order Master'!$S:$S,MATCH(A684,'Work Order Master'!$K:$K,0)),\"New\")","v":3184},{"$f":"IFERROR(INDEX('Work Order Master'!T:T,MATCH(WORKORDERS!$Q684,'Work Order Master'!$S:$S,0)),Q684)","v":"CULINARY FIELD SCH -ITALY"},{"$f":"IFERROR(INDEX('FRS CC Master'!A:A,MATCH(WORKORDERS!$Q684*1,'FRS CC Master'!$C:$C,0)),WORKORDERS!$L684)","v":"International Education"},{"$f":"IFERROR(VLOOKUP($A684,'Work Order Master'!$K:$Q,7,FALSE),\"Remove\")","v":"N"}]
["22550-1-14","IE EAFS - Eng/Geography Field School Italy","Active","22550-1","IE Education Abroad and Field Schools","(blank)","2550","Education Abroad and Field Schools","255","Education Abroad and Field Schools","250","International Education","(blank)","223","Field Schools","no",{"$f":"IFERROR(INDEX('Work Order Master'!$S:$S,MATCH(A685,'Work Order Master'!$K:$K,0)),\"New\")","v":3185},{"$f":"IFERROR(INDEX('Work Order Master'!T:T,MATCH(WORKORDERS!$Q685,'Work Order Master'!$S:$S,0)),Q685)","v":"ENG/GEOGRAPHY FS ITALY"},{"$f":"IFERROR(INDEX('FRS CC Master'!A:A,MATCH(WORKORDERS!$Q685*1,'FRS CC Master'!$C:$C,0)),WORKORDERS!$L685)","v":"International Education"},{"$f":"IFERROR(VLOOKUP($A685,'Work Order Master'!$K:$Q,7,FALSE),\"Remove\")","v":"N"}]
["22550-1-15","IE EAFS - Engineering Field School Vietnam","Active","22550-1","IE Education Abroad and Field Schools","(blank)","2550","Education Abroad and Field Schools","255","Education Abroad and Field Schools","250","International Education","(blank)","223","Field Schools","no",{"$f":"IFERROR(INDEX('Work Order Master'!$S:$S,MATCH(A686,'Work Order Master'!$K:$K,0)),\"New\")","v":3163},{"$f":"IFERROR(INDEX('Work Order Master'!T:T,MATCH(WORKORDERS!$Q686,'Work Order Master'!$S:$S,0)),Q686)","v":"ENGR FIELD SCHOOL VIETNAM"},{"$f":"IFERROR(INDEX('FRS CC Master'!A:A,MATCH(WORKORDERS!$Q686*1,'FRS CC Master'!$C:$C,0)),WORKORDERS!$L686)","v":"International Education"},{"$f":"IFERROR(VLOOKUP($A686,'Work Order Master'!$K:$Q,7,FALSE),\"Remove\")","v":"N"}]
["22550-1-16","IE EAFS - Field School Fee Clearing","Active","22550-1","IE Education Abroad and Field Schools","(blank)","2550","Education Abroad and Field Schools","255","Education Abroad and Field Schools","250","International Education","(blank)","223","Field Schools","no",{"$f":"IFERROR(INDEX('Work Order Master'!$S:$S,MATCH(A687,'Work Order Master'!$K:$K,0)),\"New\")","v":3155},{"$f":"IFERROR(INDEX('Work Order Master'!T:T,MATCH(WORKORDERS!$Q687,'Work Order Master'!$S:$S,0)),Q687)","v":"FIELD SCHOOL FEE-CLEARING"},{"$f":"IFERROR(INDEX('FRS CC Master'!A:A,MATCH(WORKORDERS!$Q687*1,'FRS CC Master'!$C:$C,0)),WORKORDERS!$L687)","v":"International Education"},{"$f":"IFERROR(VLOOKUP($A687,'Work Order Master'!$K:$Q,7,FALSE),\"Remove\")","v":"N"}]
["22550-1-17","IE EAFS - Geography Abroad","Active","22550-1","IE Education Abroad and Field Schools","(blank)","2550","Education Abroad and Field Schools","255","Education Abroad and Field Schools","250","International Education","(blank)","223","Field Schools","no",{"$f":"IFERROR(INDEX('Work Order Master'!$S:$S,MATCH(A688,'Work Order Master'!$K:$K,0)),\"New\")","v":3191},{"$f":"IFERROR(INDEX('Work Order Master'!T:T,MATCH(WORKORDERS!$Q688,'Work Order Master'!$S:$S,0)),Q688)","v":"GEOGRAPHY ABROAD"},{"$f":"IFERROR(INDEX('FRS CC Master'!A:A,MATCH(WORKORDERS!$Q688*1,'FRS CC Master'!$C:$C,0)),WORKORDERS!$L688)","v":"International Education"},{"$f":"IFERROR(VLOOKUP($A688,'Work Order Master'!$K:$Q,7,FALSE),\"Remove\")","v":"N"}]
["22550-1-18","IE EAFS - Geology Abroad","Active","22550-1","IE Education Abroad and Field Schools","(blank)","2550","Education Abroad and Field Schools","255","Education Abroad and Field Schools","250","International Education","(blank)","223","Field Schools","no",{"$f":"IFERROR(INDEX('Work Order Master'!$S:$S,MATCH(A689,'Work Order Master'!$K:$K,0)),\"New\")","v":3175},{"$f":"IFERROR(INDEX('Work Order Master'!T:T,MATCH(WORKORDERS!$Q689,'Work Order Master'!$S:$S,0)),Q689)","v":"GEOLOGY ABROAD"},{"$f":"IFERROR(INDEX('FRS CC Master'!A:A,MATCH(WORKORDERS!$Q689*1,'FRS CC Master'!$C:$C,0)),WORKORDERS!$L689)","v":"International Education"},{"$f":"IFERROR(VLOOKUP($A689,'Work Order Master'!$K:$Q,7,FALSE),\"Remove\")","v":"N"}]
["22550-1-19","IE EAFS - Global Studies Internship","Active","22550-1","IE Education Abroad and Field Schools","(blank)","2550","Education Abroad and Field Schools","255","Education Abroad and Field Schools","250","International Education","(blank)","223","Field Schools","no",{"$f":"IFERROR(INDEX('Work Order Master'!$S:$S,MATCH(A690,'Work Order Master'!$K:$K,0)),\"New\")","v":3110},{"$f":"IFERROR(INDEX('Work Order Master'!T:T,MATCH(WORKORDERS!$Q690,'Work Order Master'!$S:$S,0)),Q690)","v":"GLOBAL STUDIES INTERNSHIP"},{"$f":"IFERROR(INDEX('FRS CC Master'!A:A,MATCH(WORKORDERS!$Q690*1,'FRS CC Master'!$C:$C,0)),WORKORDERS!$L690)","v":"International Education"},{"$f":"IFERROR(VLOOKUP($A690,'Work Order Master'!$K:$Q,7,FALSE),\"Remove\")","v":"N"}]
["22550-1-2","IE EAFS - Exchange Programs","Active","22550-1","IE Education Abroad and Field Schools","(blank)","2550","Education Abroad and Field Schools","255","Education Abroad and Field Schools","250","International Education","(blank)","223","Field Schools","no",{"$f":"IFERROR(INDEX('Work Order Master'!$S:$S,MATCH(A691,'Work Order Master'!$K:$K,0)),\"New\")","v":3094},{"$f":"IFERROR(INDEX('Work Order Master'!T:T,MATCH(WORKORDERS!$Q691,'Work Order Master'!$S:$S,0)),Q691)","v":"EXCHANGE PROGRAMS"},{"$f":"IFERROR(INDEX('FRS CC Master'!A:A,MATCH(WORKORDERS!$Q691*1,'FRS CC Master'!$C:$C,0)),WORKORDERS!$L691)","v":"International Education"},{"$f":"IFERROR(VLOOKUP($A691,'Work Order Master'!$K:$Q,7,FALSE),\"Remove\")","v":"N"}]
["22550-1-20","IE EAFS - China Office","Active","22550-1","IE Education Abroad and Field Schools","(blank)","2550","Education Abroad and Field Schools","255","Education Abroad and Field Schools","250","International Education","(blank)","223","Field Schools","no",{"$f":"IFERROR(INDEX('Work Order Master'!$S:$S,MATCH(A692,'Work Order Master'!$K:$K,0)),\"New\")","v":3143},{"$f":"IFERROR(INDEX('Work Order Master'!T:T,MATCH(WORKORDERS!$Q692,'Work Order Master'!$S:$S,0)),Q692)","v":"GROK EDUC-CHINA OFFICE"},{"$f":"IFERROR(INDEX('FRS CC Master'!A:A,MATCH(WORKORDERS!$Q692*1,'FRS CC Master'!$C:$C,0)),WORKORDERS!$L692)","v":"International Education"},{"$f":"IFERROR(VLOOKUP($A692,'Work Order Master'!$K:$Q,7,FALSE),\"Remove\")","v":"N"}]
["22550-1-21","IE EAFS - HSP/Tourism Field School EAFS - Hawaii","Active","22550-1","IE Education Abroad and Field Schools","(blank)","2550","Education Abroad and Field Schools","255","Education Abroad and Field Schools","250","International Education","(blank)","223","Field Schools","no",{"$f":"IFERROR(INDEX('Work Order Master'!$S:$S,MATCH(A693,'Work Order Master'!$K:$K,0)),\"New\")","v":3172},{"$f":"IFERROR(INDEX('Work Order Master'!T:T,MATCH(WORKORDERS!$Q693,'Work Order Master'!$S:$S,0)),Q693)","v":"HSP/TOUR FIELD SCH-HAWAII"},{"$f":"IFERROR(INDEX('FRS CC Master'!A:A,MATCH(WORKORDERS!$Q693*1,'FRS CC Master'!$C:$C,0)),WORKORDERS!$L693)","v":"International Education"},{"$f":"IFERROR(VLOOKUP($A693,'Work Order Master'!$K:$Q,7,FALSE),\"Remove\")","v":"N"}]
["22550-1-22","IE EAFS - India Office","Active","22550-1","IE Education Abroad and Field Schools","(blank)","2550","Education Abroad and Field Schools","255","Education Abroad and Field Schools","250","International Education","(blank)","223","Field Schools","no",{"$f":"IFERROR(INDEX('Work Order Master'!$S:$S,MATCH(A694,'Work Order Master'!$K:$K,0)),\"New\")","v":3140},{"$f":"IFERROR(INDEX('Work Order Master'!T:T,MATCH(WORKORDERS!$Q694,'Work Order Master'!$S:$S,0)),Q694)","v":"INDIA OFFICE"},{"$f":"IFERROR(INDEX('FRS CC Master'!A:A,MATCH(WORKORDERS!$Q694*1,'FRS CC Master'!$C:$C,0)),WORKORDERS!$L694)","v":"International Education"},{"$f":"IFERROR(VLOOKUP($A694,'Work Order Master'!$K:$Q,7,FALSE),\"Remove\")","v":"N"}]
["22550-1-23","IE EAFS - International Ed EAFS - Global Studies","Active","22550-1","IE Education Abroad and Field Schools","(blank)","2550","Education Abroad and Field Schools","255","Education Abroad and Field Schools","250","International Education","(blank)","223","Field Schools","no",{"$f":"IFERROR(INDEX('Work Order Master'!$S:$S,MATCH(A695,'Work Order Master'!$K:$K,0)),\"New\")","v":3111},{"$f":"IFERROR(INDEX('Work Order Master'!T:T,MATCH(WORKORDERS!$Q695,'Work Order Master'!$S:$S,0)),Q695)","v":"INTERNAT'L ED: GLOBAL ST."},{"$f":"IFERROR(INDEX('FRS CC Master'!A:A,MATCH(WORKORDERS!$Q695*1,'FRS CC Master'!$C:$C,0)),WORKORDERS!$L695)","v":"International Education"},{"$f":"IFERROR(VLOOKUP($A695,'Work Order Master'!$K:$Q,7,FALSE),\"Remove\")","v":"N"}]
["22550-1-24","IE EAFS - ISTEP EAFS - Tanzania","Active","22550-1","IE Education Abroad and Field Schools","(blank)","2550","Education Abroad and Field Schools","255","Education Abroad and Field Schools","250","International Education","(blank)","223","Field Schools","no",{"$f":"IFERROR(INDEX('Work Order Master'!$S:$S,MATCH(A696,'Work Order Master'!$K:$K,0)),\"New\")","v":3027},{"$f":"IFERROR(INDEX('Work Order Master'!T:T,MATCH(WORKORDERS!$Q696,'Work Order Master'!$S:$S,0)),Q696)","v":"ISTEP-TANZANIA"},{"$f":"IFERROR(INDEX('FRS CC Master'!A:A,MATCH(WORKORDERS!$Q696*1,'FRS CC Master'!$C:$C,0)),WORKORDERS!$L696)","v":"International Education"},{"$f":"IFERROR(VLOOKUP($A696,'Work Order Master'!$K:$Q,7,FALSE),\"Remove\")","v":"N"}]
["22550-1-25","IE EAFS - ISTEP EAFS - Tanzania PIP","Active","22550-1","IE Education Abroad and Field Schools","(blank)","2550","Education Abroad and Field Schools","255","Education Abroad and Field Schools","250","International Education","(blank)","223","Field Schools","no",{"$f":"IFERROR(INDEX('Work Order Master'!$S:$S,MATCH(A697,'Work Order Master'!$K:$K,0)),\"New\")","v":3028},{"$f":"IFERROR(INDEX('Work Order Master'!T:T,MATCH(WORKORDERS!$Q697,'Work Order Master'!$S:$S,0)),Q697)","v":"ISTEP-TANZANIA-PIP"},{"$f":"IFERROR(INDEX('FRS CC Master'!A:A,MATCH(WORKORDERS!$Q697*1,'FRS CC Master'!$C:$C,0)),WORKORDERS!$L697)","v":"International Education"},{"$f":"IFERROR(VLOOKUP($A697,'Work Order Master'!$K:$Q,7,FALSE),\"Remove\")","v":"N"}]
["22550-1-26","IE EAFS - KEFEP EAFS - Kenya","Active","22550-1","IE Education Abroad and Field Schools","(blank)","2550","Education Abroad and Field Schools","255","Education Abroad and Field Schools","250","International Education","(blank)","223","Field Schools","no",{"$f":"IFERROR(INDEX('Work Order Master'!$S:$S,MATCH(A698,'Work Order Master'!$K:$K,0)),\"New\")","v":3043},{"$f":"IFERROR(INDEX('Work Order Master'!T:T,MATCH(WORKORDERS!$Q698,'Work Order Master'!$S:$S,0)),Q698)","v":"KEFEP - KENYA"},{"$f":"IFERROR(INDEX('FRS CC Master'!A:A,MATCH(WORKORDERS!$Q698*1,'FRS CC Master'!$C:$C,0)),WORKORDERS!$L698)","v":"International Education"},{"$f":"IFERROR(VLOOKUP($A698,'Work Order Master'!$K:$Q,7,FALSE),\"Remove\")","v":"N"}]
["22550-1-27","IE EAFS - Latin America Office","Active","22550-1","IE Education Abroad and Field Schools","(blank)","2550","Education Abroad and Field Schools","255","Education Abroad and Field Schools","250","International Education","(blank)","223","Field Schools","no",{"$f":"IFERROR(INDEX('Work Order Master'!$S:$S,MATCH(A699,'Work Order Master'!$K:$K,0)),\"New\")","v":3145},{"$f":"IFERROR(INDEX('Work Order Master'!T:T,MATCH(WORKORDERS!$Q699,'Work Order Master'!$S:$S,0)),Q699)","v":"LATIN AMERICA OFFICE"},{"$f":"IFERROR(INDEX('FRS CC Master'!A:A,MATCH(WORKORDERS!$Q699*1,'FRS CC Master'!$C:$C,0)),WORKORDERS!$L699)","v":"International Education"},{"$f":"IFERROR(VLOOKUP($A699,'Work Order Master'!$K:$Q,7,FALSE),\"Remove\")","v":"N"}]
["22550-1-28","IE EAFS - Liberal Studies Abroad","Active","22550-1","IE Education Abroad and Field Schools","(blank)","2550","Education Abroad and Field Schools","255","Education Abroad and Field Schools","250","International Education","(blank)","223","Field Schools","no",{"$f":"IFERROR(INDEX('Work Order Master'!$S:$S,MATCH(A700,'Work Order Master'!$K:$K,0)),\"New\")","v":3180},{"$f":"IFERROR(INDEX('Work Order Master'!T:T,MATCH(WORKORDERS!$Q700,'Work Order Master'!$S:$S,0)),Q700)","v":"LIBERAL STUDIES ABROAD"},{"$f":"IFERROR(INDEX('FRS CC Master'!A:A,MATCH(WORKORDERS!$Q700*1,'FRS CC Master'!$C:$C,0)),WORKORDERS!$L700)","v":"International Education"},{"$f":"IFERROR(VLOOKUP($A700,'Work Order Master'!$K:$Q,7,FALSE),\"Remove\")","v":"N"}]
["22550-1-29","IE EAFS - Nursing field School Nepal","Active","22550-1","IE Education Abroad and Field Schools","(blank)","2550","Education Abroad and Field Schools","255","Education Abroad and Field Schools","250","International Education","(blank)","223","Field Schools","no",{"$f":"IFERROR(INDEX('Work Order Master'!$S:$S,MATCH(A701,'Work Order Master'!$K:$K,0)),\"New\")","v":3182},{"$f":"IFERROR(INDEX('Work Order Master'!T:T,MATCH(WORKORDERS!$Q701,'Work Order Master'!$S:$S,0)),Q701)","v":"NURSING FIELD SCH NEPAL"},{"$f":"IFERROR(INDEX('FRS CC Master'!A:A,MATCH(WORKORDERS!$Q701*1,'FRS CC Master'!$C:$C,0)),WORKORDERS!$L701)","v":"International Education"},{"$f":"IFERROR(VLOOKUP($A701,'Work Order Master'!$K:$Q,7,FALSE),\"Remove\")","v":"N"}]
["22550-1-3","IE EAFS - Anthropology Field School","Active","22550-1","IE Education Abroad and Field Schools","(blank)","2550","Education Abroad and Field Schools","255","Education Abroad and Field Schools","250","International Education","(blank)","223","Field Schools","no",{"$f":"IFERROR(INDEX('Work Order Master'!$S:$S,MATCH(A702,'Work Order Master'!$K:$K,0)),\"New\")","v":3195},{"$f":"IFERROR(INDEX('Work Order Master'!T:T,MATCH(WORKORDERS!$Q702,'Work Order Master'!$S:$S,0)),Q702)","v":"ANTHROPOLOGY FIELD SCHOOL"},{"$f":"IFERROR(INDEX('FRS CC Master'!A:A,MATCH(WORKORDERS!$Q702*1,'FRS CC Master'!$C:$C,0)),WORKORDERS!$L702)","v":"International Education"},{"$f":"IFERROR(VLOOKUP($A702,'Work Order Master'!$K:$Q,7,FALSE),\"Remove\")","v":"N"}]
["22550-1-30","IE EAFS - OWWE EAFS - Europe Office","Active","22550-1","IE Education Abroad and Field Schools","(blank)","2550","Education Abroad and Field Schools","255","Education Abroad and Field Schools","250","International Education","(blank)","223","Field Schools","no",{"$f":"IFERROR(INDEX('Work Order Master'!$S:$S,MATCH(A703,'Work Order Master'!$K:$K,0)),\"New\")","v":3141},{"$f":"IFERROR(INDEX('Work Order Master'!T:T,MATCH(WORKORDERS!$Q703,'Work Order Master'!$S:$S,0)),Q703)","v":"OWWE - EUROPE OFFICE"},{"$f":"IFERROR(INDEX('FRS CC Master'!A:A,MATCH(WORKORDERS!$Q703*1,'FRS CC Master'!$C:$C,0)),WORKORDERS!$L703)","v":"International Education"},{"$f":"IFERROR(VLOOKUP($A703,'Work Order Master'!$K:$Q,7,FALSE),\"Remove\")","v":"N"}]
["22550-1-31","IE EAFS - Practicum Support","Active","22550-1","IE Education Abroad and Field Schools","(blank)","2550","Education Abroad and Field Schools","255","Education Abroad and Field Schools","250","International Education","(blank)","223","Field Schools","no",{"$f":"IFERROR(INDEX('Work Order Master'!$S:$S,MATCH(A704,'Work Order Master'!$K:$K,0)),\"New\")","v":3158},{"$f":"IFERROR(INDEX('Work Order Master'!T:T,MATCH(WORKORDERS!$Q704,'Work Order Master'!$S:$S,0)),Q704)","v":"PRACTICUM SUPPORT"},{"$f":"IFERROR(INDEX('FRS CC Master'!A:A,MATCH(WORKORDERS!$Q704*1,'FRS CC Master'!$C:$C,0)),WORKORDERS!$L704)","v":"International Education"},{"$f":"IFERROR(VLOOKUP($A704,'Work Order Master'!$K:$Q,7,FALSE),\"Remove\")","v":"N"}]
["22550-1-32","IE EAFS - RASHA EAFS - East Asia Office","Active","22550-1","IE Education Abroad and Field Schools","(blank)","2550","Education Abroad and Field Schools","255","Education Abroad and Field Schools","250","International Education","(blank)","223","Field Schools","no",{"$f":"IFERROR(INDEX('Work Order Master'!$S:$S,MATCH(A705,'Work Order Master'!$K:$K,0)),\"New\")","v":3142},{"$f":"IFERROR(INDEX('Work Order Master'!T:T,MATCH(WORKORDERS!$Q705,'Work Order Master'!$S:$S,0)),Q705)","v":"RASHA - EAST ASIA OFFICE"},{"$f":"IFERROR(INDEX('FRS CC Master'!A:A,MATCH(WORKORDERS!$Q705*1,'FRS CC Master'!$C:$C,0)),WORKORDERS!$L705)","v":"International Education"},{"$f":"IFERROR(VLOOKUP($A705,'Work Order Master'!$K:$Q,7,FALSE),\"Remove\")","v":"N"}]
["22550-1-33","IE EAFS - Soc/Crim Field School EAFS - Arizona","Active","22550-1","IE Education Abroad and Field Schools","(blank)","2550","Education Abroad and Field Schools","255","Education Abroad and Field Schools","250","International Education","(blank)","223","Field Schools","no",{"$f":"IFERROR(INDEX('Work Order Master'!$S:$S,MATCH(A706,'Work Order Master'!$K:$K,0)),\"New\")","v":3187},{"$f":"IFERROR(INDEX('Work Order Master'!T:T,MATCH(WORKORDERS!$Q706,'Work Order Master'!$S:$S,0)),Q706)","v":"SOC/CRIM FS ARIZONA"},{"$f":"IFERROR(INDEX('FRS CC Master'!A:A,MATCH(WORKORDERS!$Q706*1,'FRS CC Master'!$C:$C,0)),WORKORDERS!$L706)","v":"International Education"},{"$f":"IFERROR(VLOOKUP($A706,'Work Order Master'!$K:$Q,7,FALSE),\"Remove\")","v":"N"}]
["22550-1-34","IE EAFS - Study Abroad Emergency Fund","Active","22550-1","IE Education Abroad and Field Schools","(blank)","2550","Education Abroad and Field Schools","255","Education Abroad and Field Schools","250","International Education","(blank)","223","Field Schools","no",{"$f":"IFERROR(INDEX('Work Order Master'!$S:$S,MATCH(A707,'Work Order Master'!$K:$K,0)),\"New\")","v":3159},{"$f":"IFERROR(INDEX('Work Order Master'!T:T,MATCH(WORKORDERS!$Q707,'Work Order Master'!$S:$S,0)),Q707)","v":"STUDY ABROAD EMERGENCY FD"},{"$f":"IFERROR(INDEX('FRS CC Master'!A:A,MATCH(WORKORDERS!$Q707*1,'FRS CC Master'!$C:$C,0)),WORKORDERS!$L707)","v":"International Education"},{"$f":"IFERROR(VLOOKUP($A707,'Work Order Master'!$K:$Q,7,FALSE),\"Remove\")","v":"N"}]
["22550-1-35","IE EAFS - SWU BIP","Active","22550-1","IE Education Abroad and Field Schools","(blank)","2550","Education Abroad and Field Schools","255","Education Abroad and Field Schools","250","International Education","(blank)","223","Field Schools",{"$f":"IF(OR(A708=A707,A708=A709),\"yes\",\"no\")","v":"no"},{"$f":"IFERROR(INDEX('Work Order Master'!$S:$S,MATCH(A708,'Work Order Master'!$K:$K,0)),\"New\")","v":3189},{"$f":"IFERROR(INDEX('Work Order Master'!T:T,MATCH(WORKORDERS!$Q708,'Work Order Master'!$S:$S,0)),Q708)","v":"SWU BIP"},{"$f":"IFERROR(INDEX('FRS CC Master'!A:A,MATCH(WORKORDERS!$Q708*1,'FRS CC Master'!$C:$C,0)),WORKORDERS!$L708)","v":"International Education"},{"$f":"IFERROR(VLOOKUP($A708,'Work Order Master'!$K:$Q,7,FALSE),\"Remove\")","v":"N"}]
["22550-1-36","IE EAFS - Tamagawa ESL/Horticulture","Parked","22550-1","IE Education Abroad and Field Schools","(blank)","2550","Education Abroad and Field Schools","255","Education Abroad and Field Schools","250","International Education","(blank)","223","Field Schools","no",{"$f":"IFERROR(INDEX('Work Order Master'!$S:$S,MATCH(A709,'Work Order Master'!$K:$K,0)),\"New\")","v":"New"},{"$f":"IFERROR(INDEX('Work Order Master'!T:T,MATCH(WORKORDERS!$Q709,'Work Order Master'!$S:$S,0)),Q709)","v":"New"},{"$f":"IFERROR(INDEX('FRS CC Master'!A:A,MATCH(WORKORDERS!$Q709*1,'FRS CC Master'!$C:$C,0)),WORKORDERS!$L709)","v":"International Education"},{"$f":"IFERROR(VLOOKUP($A709,'Work Order Master'!$K:$Q,7,FALSE),\"Remove\")","v":"Remove"}]
["22550-1-37","IE EAFS - Vietnam EAFS - TRA VINH","Parked","22550-1","IE Education Abroad and Field Schools","(blank)","2550","Education Abroad and Field Schools","255","Education Abroad and Field Schools","250","International Education","(blank)","223","Field Schools","no",{"$f":"IFERROR(INDEX('Work Order Master'!$S:$S,MATCH(A710,'Work Order Master'!$K:$K,0)),\"New\")","v":"New"},{"$f":"IFERROR(INDEX('Work Order Master'!T:T,MATCH(WORKORDERS!$Q710,'Work Order Master'!$S:$S,0)),Q710)","v":"New"},{"$f":"IFERROR(INDEX('FRS CC Master'!A:A,MATCH(WORKORDERS!$Q710*1,'FRS CC Master'!$C:$C,0)),WORKORDERS!$L710)","v":"International Education"},{"$f":"IFERROR(VLOOKUP($A710,'Work Order Master'!$K:$Q,7,FALSE),\"Remove\")","v":"Remove"}]
["22550-1-38","IE EAFS - VIU in Africa","Active","22550-1","IE Education Abroad and Field Schools","(blank)","2550","Education Abroad and Field Schools","255","Education Abroad and Field Schools","250","International Education","(blank)","223","Field Schools","no",{"$f":"IFERROR(INDEX('Work Order Master'!$S:$S,MATCH(A711,'Work Order Master'!$K:$K,0)),\"New\")","v":3173},{"$f":"IFERROR(INDEX('Work Order Master'!T:T,MATCH(WORKORDERS!$Q711,'Work Order Master'!$S:$S,0)),Q711)","v":"VIU IN AFRICA"},{"$f":"IFERROR(INDEX('FRS CC Master'!A:A,MATCH(WORKORDERS!$Q711*1,'FRS CC Master'!$C:$C,0)),WORKORDERS!$L711)","v":"International Education"},{"$f":"IFERROR(VLOOKUP($A711,'Work Order Master'!$K:$Q,7,FALSE),\"Remove\")","v":"N"}]
["22550-1-39","IE EAFS - Wine Field School - Europe","Active","22550-1","IE Education Abroad and Field Schools","(blank)","2550","Education Abroad and Field Schools","255","Education Abroad and Field Schools","250","International Education","(blank)","223","Field Schools","no",{"$f":"IFERROR(INDEX('Work Order Master'!$S:$S,MATCH(A712,'Work Order Master'!$K:$K,0)),\"New\")","v":3169},{"$f":"IFERROR(INDEX('Work Order Master'!T:T,MATCH(WORKORDERS!$Q712,'Work Order Master'!$S:$S,0)),Q712)","v":"MGMT WINE FS-EUROPE"},{"$f":"IFERROR(INDEX('FRS CC Master'!A:A,MATCH(WORKORDERS!$Q712*1,'FRS CC Master'!$C:$C,0)),WORKORDERS!$L712)","v":"International Education"},{"$f":"IFERROR(VLOOKUP($A712,'Work Order Master'!$K:$Q,7,FALSE),\"Remove\")","v":"N"}]
["22550-1-4","IE EAFS - Anthropology Internships","Active","22550-1","IE Education Abroad and Field Schools","(blank)","2550","Education Abroad and Field Schools","255","Education Abroad and Field Schools","250","International Education","(blank)","223","Field Schools","no",{"$f":"IFERROR(INDEX('Work Order Master'!$S:$S,MATCH(A713,'Work Order Master'!$K:$K,0)),\"New\")","v":3178},{"$f":"IFERROR(INDEX('Work Order Master'!T:T,MATCH(WORKORDERS!$Q713,'Work Order Master'!$S:$S,0)),Q713)","v":"ANTHROPOLOGY INTERNSHIPS"},{"$f":"IFERROR(INDEX('FRS CC Master'!A:A,MATCH(WORKORDERS!$Q713*1,'FRS CC Master'!$C:$C,0)),WORKORDERS!$L713)","v":"International Education"},{"$f":"IFERROR(VLOOKUP($A713,'Work Order Master'!$K:$Q,7,FALSE),\"Remove\")","v":"N"}]
["22550-1-40","IE EAFS - PE Abroad","Active","22550-1","IE Education Abroad and Field Schools","(blank)","2550","Education Abroad and Field Schools","255","Education Abroad and Field Schools","250","International Education","(blank)","223","Field Schools","no",{"$f":"IFERROR(INDEX('Work Order Master'!$S:$S,MATCH(A714,'Work Order Master'!$K:$K,0)),\"New\")","v":3186},{"$f":"IFERROR(INDEX('Work Order Master'!T:T,MATCH(WORKORDERS!$Q714,'Work Order Master'!$S:$S,0)),Q714)","v":"PE ABROAD"},{"$f":"IFERROR(INDEX('FRS CC Master'!A:A,MATCH(WORKORDERS!$Q714*1,'FRS CC Master'!$C:$C,0)),WORKORDERS!$L714)","v":"International Education"},{"$f":"IFERROR(VLOOKUP($A714,'Work Order Master'!$K:$Q,7,FALSE),\"Remove\")","v":"N"}]
["22550-1-41","IE EAFS - HHS Field School - Indonesia","Active","22550-1","IE Education Abroad and Field Schools","(blank)","2550","Education Abroad and Field Schools","255","Education Abroad and Field Schools","250","International Education","(blank)","223","Field Schools","no",{"$f":"IFERROR(INDEX('Work Order Master'!$S:$S,MATCH(A715,'Work Order Master'!$K:$K,0)),\"New\")","v":3192},{"$f":"IFERROR(INDEX('Work Order Master'!T:T,MATCH(WORKORDERS!$Q715,'Work Order Master'!$S:$S,0)),Q715)","v":"HHS FIELD SCH-INDONESIA"},{"$f":"IFERROR(INDEX('FRS CC Master'!A:A,MATCH(WORKORDERS!$Q715*1,'FRS CC Master'!$C:$C,0)),WORKORDERS!$L715)","v":"International Education"},{"$f":"IFERROR(VLOOKUP($A715,'Work Order Master'!$K:$Q,7,FALSE),\"Remove\")","v":"N"}]
["22550-1-5","IE EAFS - Art EAFS - New York","Active","22550-1","IE Education Abroad and Field Schools","(blank)","2550","Education Abroad and Field Schools","255","Education Abroad and Field Schools","250","International Education","(blank)","223","Field Schools","no",{"$f":"IFERROR(INDEX('Work Order Master'!$S:$S,MATCH(A716,'Work Order Master'!$K:$K,0)),\"New\")","v":3170},{"$f":"IFERROR(INDEX('Work Order Master'!T:T,MATCH(WORKORDERS!$Q716,'Work Order Master'!$S:$S,0)),Q716)","v":"ART - NEW YORK"},{"$f":"IFERROR(INDEX('FRS CC Master'!A:A,MATCH(WORKORDERS!$Q716*1,'FRS CC Master'!$C:$C,0)),WORKORDERS!$L716)","v":"International Education"},{"$f":"IFERROR(VLOOKUP($A716,'Work Order Master'!$K:$Q,7,FALSE),\"Remove\")","v":"N"}]
["22550-1-6","IE EAFS - Bach Education Abroad","Active","22550-1","IE Education Abroad and Field Schools","(blank)","2550","Education Abroad and Field Schools","255","Education Abroad and Field Schools","250","International Education","(blank)","223","Field Schools","no",{"$f":"IFERROR(INDEX('Work Order Master'!$S:$S,MATCH(A717,'Work Order Master'!$K:$K,0)),\"New\")","v":3179},{"$f":"IFERROR(INDEX('Work Order Master'!T:T,MATCH(WORKORDERS!$Q717,'Work Order Master'!$S:$S,0)),Q717)","v":"BACH EDUCATION ABROAD"},{"$f":"IFERROR(INDEX('FRS CC Master'!A:A,MATCH(WORKORDERS!$Q717*1,'FRS CC Master'!$C:$C,0)),WORKORDERS!$L717)","v":"International Education"},{"$f":"IFERROR(VLOOKUP($A717,'Work Order Master'!$K:$Q,7,FALSE),\"Remove\")","v":"N"}]
["22550-1-7","IE EAFS - Baking EAFS - France","Active","22550-1","IE Education Abroad and Field Schools","(blank)","2550","Education Abroad and Field Schools","255","Education Abroad and Field Schools","250","International Education","(blank)","223","Field Schools","no",{"$f":"IFERROR(INDEX('Work Order Master'!$S:$S,MATCH(A718,'Work Order Master'!$K:$K,0)),\"New\")","v":3190},{"$f":"IFERROR(INDEX('Work Order Master'!T:T,MATCH(WORKORDERS!$Q718,'Work Order Master'!$S:$S,0)),Q718)","v":"BAKING - FRANCE"},{"$f":"IFERROR(INDEX('FRS CC Master'!A:A,MATCH(WORKORDERS!$Q718*1,'FRS CC Master'!$C:$C,0)),WORKORDERS!$L718)","v":"International Education"},{"$f":"IFERROR(VLOOKUP($A718,'Work Order Master'!$K:$Q,7,FALSE),\"Remove\")","v":"N"}]
["22550-1-8","IE EAFS - Crim - Philidelphia","Active","22550-1","IE Education Abroad and Field Schools","(blank)","2550","Education Abroad and Field Schools","255","Education Abroad and Field Schools","250","International Education","(blank)","223","Field Schools","no",{"$f":"IFERROR(INDEX('Work Order Master'!$S:$S,MATCH(A719,'Work Order Master'!$K:$K,0)),\"New\")","v":3174},{"$f":"IFERROR(INDEX('Work Order Master'!T:T,MATCH(WORKORDERS!$Q719,'Work Order Master'!$S:$S,0)),Q719)","v":"Crim FS - Philidelphia "},{"$f":"IFERROR(INDEX('FRS CC Master'!A:A,MATCH(WORKORDERS!$Q719*1,'FRS CC Master'!$C:$C,0)),WORKORDERS!$L719)","v":"International Education"},{"$f":"IFERROR(VLOOKUP($A719,'Work Order Master'!$K:$Q,7,FALSE),\"Remove\")","v":"N"}]
["22550-1-9","IE EAFS - Business Field School EAFS - China","Active","22550-1","IE Education Abroad and Field Schools","(blank)","2550","Education Abroad and Field Schools","255","Education Abroad and Field Schools","250","International Education","(blank)","223","Field Schools","no",{"$f":"IFERROR(INDEX('Work Order Master'!$S:$S,MATCH(A720,'Work Order Master'!$K:$K,0)),\"New\")","v":3183},{"$f":"IFERROR(INDEX('Work Order Master'!T:T,MATCH(WORKORDERS!$Q720,'Work Order Master'!$S:$S,0)),Q720)","v":"BUSINESS FIELD SCH-CHINA"},{"$f":"IFERROR(INDEX('FRS CC Master'!A:A,MATCH(WORKORDERS!$Q720*1,'FRS CC Master'!$C:$C,0)),WORKORDERS!$L720)","v":"International Education"},{"$f":"IFERROR(VLOOKUP($A720,'Work Order Master'!$K:$Q,7,FALSE),\"Remove\")","v":"N"}]
["22601-1-1","FOM General Research - Brouder","Active","22601-1","FOM Faculty - General Research","(blank)","2601","Faculty of Management - Initiatives","260","Management","260","Management","(blank)","302","General Research","no",{"$f":"IFERROR(INDEX('Work Order Master'!$S:$S,MATCH(A721,'Work Order Master'!$K:$K,0)),\"New\")","v":1643},{"$f":"IFERROR(INDEX('Work Order Master'!T:T,MATCH(WORKORDERS!$Q721,'Work Order Master'!$S:$S,0)),Q721)","v":"GENERAL RESEARCH - BROUDER"},{"$f":"IFERROR(INDEX('FRS CC Master'!A:A,MATCH(WORKORDERS!$Q721*1,'FRS CC Master'!$C:$C,0)),WORKORDERS!$L721)","v":"Management"},{"$f":"IFERROR(VLOOKUP($A721,'Work Order Master'!$K:$Q,7,FALSE),\"Remove\")","v":"N"}]
["22601-1-10","FOM General Research - Predyk","Active","22601-1","FOM Faculty - General Research","(blank)","2601","Faculty of Management - Initiatives","260","Management","260","Management","(blank)","302","General Research","no",{"$f":"IFERROR(INDEX('Work Order Master'!$S:$S,MATCH(A722,'Work Order Master'!$K:$K,0)),\"New\")","v":1649},{"$f":"IFERROR(INDEX('Work Order Master'!T:T,MATCH(WORKORDERS!$Q722,'Work Order Master'!$S:$S,0)),Q722)","v":"GENERAL RESEARCH - PREDYK"},{"$f":"IFERROR(INDEX('FRS CC Master'!A:A,MATCH(WORKORDERS!$Q722*1,'FRS CC Master'!$C:$C,0)),WORKORDERS!$L722)","v":"Management"},{"$f":"IFERROR(VLOOKUP($A722,'Work Order Master'!$K:$Q,7,FALSE),\"Remove\")","v":"N"}]
["22601-1-11","FOM General Research - Schroeder","Active","22601-1","FOM Faculty - General Research","(blank)","2601","Faculty of Management - Initiatives","260","Management","260","Management","(blank)","302","General Research","no",{"$f":"IFERROR(INDEX('Work Order Master'!$S:$S,MATCH(A723,'Work Order Master'!$K:$K,0)),\"New\")","v":1648},{"$f":"IFERROR(INDEX('Work Order Master'!T:T,MATCH(WORKORDERS!$Q723,'Work Order Master'!$S:$S,0)),Q723)","v":"GENERAL RESEARCH - SCHROEDER"},{"$f":"IFERROR(INDEX('FRS CC Master'!A:A,MATCH(WORKORDERS!$Q723*1,'FRS CC Master'!$C:$C,0)),WORKORDERS!$L723)","v":"Management"},{"$f":"IFERROR(VLOOKUP($A723,'Work Order Master'!$K:$Q,7,FALSE),\"Remove\")","v":"N"}]
["22601-1-12","FOM General Research - Stone","Active","22601-1","FOM Faculty - General Research","(blank)","2601","Faculty of Management - Initiatives","260","Management","260","Management","(blank)","302","General Research","no",{"$f":"IFERROR(INDEX('Work Order Master'!$S:$S,MATCH(A724,'Work Order Master'!$K:$K,0)),\"New\")","v":1641},{"$f":"IFERROR(INDEX('Work Order Master'!T:T,MATCH(WORKORDERS!$Q724,'Work Order Master'!$S:$S,0)),Q724)","v":"GENERAL RESEARCH - STONE"},{"$f":"IFERROR(INDEX('FRS CC Master'!A:A,MATCH(WORKORDERS!$Q724*1,'FRS CC Master'!$C:$C,0)),WORKORDERS!$L724)","v":"Management"},{"$f":"IFERROR(VLOOKUP($A724,'Work Order Master'!$K:$Q,7,FALSE),\"Remove\")","v":"N"}]
["22601-1-13","FOM General Research - Vaugeois","Active","22601-1","FOM Faculty - General Research","(blank)","2601","Faculty of Management - Initiatives","260","Management","260","Management","(blank)","302","General Research","no",{"$f":"IFERROR(INDEX('Work Order Master'!$S:$S,MATCH(A725,'Work Order Master'!$K:$K,0)),\"New\")","v":1627},{"$f":"IFERROR(INDEX('Work Order Master'!T:T,MATCH(WORKORDERS!$Q725,'Work Order Master'!$S:$S,0)),Q725)","v":"GENERAL RESEARCH - VAUGEOIS"},{"$f":"IFERROR(INDEX('FRS CC Master'!A:A,MATCH(WORKORDERS!$Q725*1,'FRS CC Master'!$C:$C,0)),WORKORDERS!$L725)","v":"Management"},{"$f":"IFERROR(VLOOKUP($A725,'Work Order Master'!$K:$Q,7,FALSE),\"Remove\")","v":"N"}]
["22601-1-14","FOM General Research - Weighill","Active","22601-1","FOM Faculty - General Research","(blank)","2601","Faculty of Management - Initiatives","260","Management","260","Management","(blank)","302","General Research","no",{"$f":"IFERROR(INDEX('Work Order Master'!$S:$S,MATCH(A726,'Work Order Master'!$K:$K,0)),\"New\")","v":1645},{"$f":"IFERROR(INDEX('Work Order Master'!T:T,MATCH(WORKORDERS!$Q726,'Work Order Master'!$S:$S,0)),Q726)","v":"GENERAL RESEARCH - WEIGHILL"},{"$f":"IFERROR(INDEX('FRS CC Master'!A:A,MATCH(WORKORDERS!$Q726*1,'FRS CC Master'!$C:$C,0)),WORKORDERS!$L726)","v":"Management"},{"$f":"IFERROR(VLOOKUP($A726,'Work Order Master'!$K:$Q,7,FALSE),\"Remove\")","v":"N"}]
["22601-1-15","FOM General Research - McKeown","Active","22601-1","FOM Faculty - General Research","(blank)","2601","Faculty of Management - Initiatives","260","Management","260","Management","(blank)","302","General Research","no",{"$f":"IFERROR(INDEX('Work Order Master'!$S:$S,MATCH(A727,'Work Order Master'!$K:$K,0)),\"New\")","v":1632},{"$f":"IFERROR(INDEX('Work Order Master'!T:T,MATCH(WORKORDERS!$Q727,'Work Order Master'!$S:$S,0)),Q727)","v":"GENERAL RESEARCH - MCKEOWEN"},{"$f":"IFERROR(INDEX('FRS CC Master'!A:A,MATCH(WORKORDERS!$Q727*1,'FRS CC Master'!$C:$C,0)),WORKORDERS!$L727)","v":"Management"},{"$f":"IFERROR(VLOOKUP($A727,'Work Order Master'!$K:$Q,7,FALSE),\"Remove\")","v":"N"}]
["22601-1-2","FOM General Research - Burnley, Chris","Active","22601-1","FOM Faculty - General Research","(blank)","2601","Faculty of Management - Initiatives","260","Management","260","Management","(blank)","302","General Research","no",{"$f":"IFERROR(INDEX('Work Order Master'!$S:$S,MATCH(A728,'Work Order Master'!$K:$K,0)),\"New\")","v":1634},{"$f":"IFERROR(INDEX('Work Order Master'!T:T,MATCH(WORKORDERS!$Q728,'Work Order Master'!$S:$S,0)),Q728)","v":"GENERAL RESEARCH - BURNLEY,C"},{"$f":"IFERROR(INDEX('FRS CC Master'!A:A,MATCH(WORKORDERS!$Q728*1,'FRS CC Master'!$C:$C,0)),WORKORDERS!$L728)","v":"Management"},{"$f":"IFERROR(VLOOKUP($A728,'Work Order Master'!$K:$Q,7,FALSE),\"Remove\")","v":"N"}]
["22601-1-3","FOM General Research - De La Barre","Active","22601-1","FOM Faculty - General Research","(blank)","2601","Faculty of Management - Initiatives","260","Management","260","Management","(blank)","302","General Research","no",{"$f":"IFERROR(INDEX('Work Order Master'!$S:$S,MATCH(A729,'Work Order Master'!$K:$K,0)),\"New\")","v":1639},{"$f":"IFERROR(INDEX('Work Order Master'!T:T,MATCH(WORKORDERS!$Q729,'Work Order Master'!$S:$S,0)),Q729)","v":"GENERAL RESEARCH -  DE LA BARRE"},{"$f":"IFERROR(INDEX('FRS CC Master'!A:A,MATCH(WORKORDERS!$Q729*1,'FRS CC Master'!$C:$C,0)),WORKORDERS!$L729)","v":"Management"},{"$f":"IFERROR(VLOOKUP($A729,'Work Order Master'!$K:$Q,7,FALSE),\"Remove\")","v":"N"}]
["22601-1-4","FOM General Research - Delamere","Active","22601-1","FOM Faculty - General Research","(blank)","2601","Faculty of Management - Initiatives","260","Management","260","Management","(blank)","302","General Research","no",{"$f":"IFERROR(INDEX('Work Order Master'!$S:$S,MATCH(A730,'Work Order Master'!$K:$K,0)),\"New\")","v":1637},{"$f":"IFERROR(INDEX('Work Order Master'!T:T,MATCH(WORKORDERS!$Q730,'Work Order Master'!$S:$S,0)),Q730)","v":"GENERAL RESEARCH - DELAMERE"},{"$f":"IFERROR(INDEX('FRS CC Master'!A:A,MATCH(WORKORDERS!$Q730*1,'FRS CC Master'!$C:$C,0)),WORKORDERS!$L730)","v":"Management"},{"$f":"IFERROR(VLOOKUP($A730,'Work Order Master'!$K:$Q,7,FALSE),\"Remove\")","v":"N"}]
["22601-1-5","FOM General Research - Ferguson","Active","22601-1","FOM Faculty - General Research","(blank)","2601","Faculty of Management - Initiatives","260","Management","260","Management","(blank)","302","General Research","no",{"$f":"IFERROR(INDEX('Work Order Master'!$S:$S,MATCH(A731,'Work Order Master'!$K:$K,0)),\"New\")","v":1647},{"$f":"IFERROR(INDEX('Work Order Master'!T:T,MATCH(WORKORDERS!$Q731,'Work Order Master'!$S:$S,0)),Q731)","v":"GENERAL RESEARCH - FERGUSON"},{"$f":"IFERROR(INDEX('FRS CC Master'!A:A,MATCH(WORKORDERS!$Q731*1,'FRS CC Master'!$C:$C,0)),WORKORDERS!$L731)","v":"Management"},{"$f":"IFERROR(VLOOKUP($A731,'Work Order Master'!$K:$Q,7,FALSE),\"Remove\")","v":"N"}]
["22601-1-6","FOM General Research - Johnson","Active","22601-1","FOM Faculty - General Research","(blank)","2601","Faculty of Management - Initiatives","260","Management","260","Management","(blank)","302","General Research","no",{"$f":"IFERROR(INDEX('Work Order Master'!$S:$S,MATCH(A732,'Work Order Master'!$K:$K,0)),\"New\")","v":1651},{"$f":"IFERROR(INDEX('Work Order Master'!T:T,MATCH(WORKORDERS!$Q732,'Work Order Master'!$S:$S,0)),Q732)","v":"GENERAL RESEARCH - JOHNSON"},{"$f":"IFERROR(INDEX('FRS CC Master'!A:A,MATCH(WORKORDERS!$Q732*1,'FRS CC Master'!$C:$C,0)),WORKORDERS!$L732)","v":"Management"},{"$f":"IFERROR(VLOOKUP($A732,'Work Order Master'!$K:$Q,7,FALSE),\"Remove\")","v":"N"}]
["22601-1-7","FOM General Research - Latulippe","Active","22601-1","FOM Faculty - General Research","(blank)","2601","Faculty of Management - Initiatives","260","Management","260","Management","(blank)","302","General Research","no",{"$f":"IFERROR(INDEX('Work Order Master'!$S:$S,MATCH(A733,'Work Order Master'!$K:$K,0)),\"New\")","v":1652},{"$f":"IFERROR(INDEX('Work Order Master'!T:T,MATCH(WORKORDERS!$Q733,'Work Order Master'!$S:$S,0)),Q733)","v":"GENERAL RESEARCH - LATULIPPE"},{"$f":"IFERROR(INDEX('FRS CC Master'!A:A,MATCH(WORKORDERS!$Q733*1,'FRS CC Master'!$C:$C,0)),WORKORDERS!$L733)","v":"Management"},{"$f":"IFERROR(VLOOKUP($A733,'Work Order Master'!$K:$Q,7,FALSE),\"Remove\")","v":"N"}]
["22601-1-8","FOM General Research - Moghimehfar","Active","22601-1","FOM Faculty - General Research","(blank)","2601","Faculty of Management - Initiatives","260","Management","260","Management","(blank)","302","General Research","no",{"$f":"IFERROR(INDEX('Work Order Master'!$S:$S,MATCH(A734,'Work Order Master'!$K:$K,0)),\"New\")","v":1642},{"$f":"IFERROR(INDEX('Work Order Master'!T:T,MATCH(WORKORDERS!$Q734,'Work Order Master'!$S:$S,0)),Q734)","v":"GENERAL RESEARCH - MOGHIMEHFAR"},{"$f":"IFERROR(INDEX('FRS CC Master'!A:A,MATCH(WORKORDERS!$Q734*1,'FRS CC Master'!$C:$C,0)),WORKORDERS!$L734)","v":"Management"},{"$f":"IFERROR(VLOOKUP($A734,'Work Order Master'!$K:$Q,7,FALSE),\"Remove\")","v":"N"}]
["22601-1-9","FOM General Research - Murray","Parked","22601-1","FOM Faculty - General Research","(blank)","2601","Faculty of Management - Initiatives","260","Management","260","Management","(blank)","302","General Research","no",{"$f":"IFERROR(INDEX('Work Order Master'!$S:$S,MATCH(A735,'Work Order Master'!$K:$K,0)),\"New\")","v":"New"},{"$f":"IFERROR(INDEX('Work Order Master'!T:T,MATCH(WORKORDERS!$Q735,'Work Order Master'!$S:$S,0)),Q735)","v":"New"},{"$f":"IFERROR(INDEX('FRS CC Master'!A:A,MATCH(WORKORDERS!$Q735*1,'FRS CC Master'!$C:$C,0)),WORKORDERS!$L735)","v":"Management"},{"$f":"IFERROR(VLOOKUP($A735,'Work Order Master'!$K:$Q,7,FALSE),\"Remove\")","v":"P"}]
["22601-2-1","FOM MBA Funded Initatives","Active","22601-2","FOM MBA Funded Initiatives","(blank)","2601","Faculty of Management - Initiatives","260","Management","260","Management","(blank)","201","Faculty Administration","no",{"$f":"IFERROR(INDEX('Work Order Master'!$S:$S,MATCH(A736,'Work Order Master'!$K:$K,0)),\"New\")","v":1612},{"$f":"IFERROR(INDEX('Work Order Master'!T:T,MATCH(WORKORDERS!$Q736,'Work Order Master'!$S:$S,0)),Q736)","v":"FOM INITIATIVES"},{"$f":"IFERROR(INDEX('FRS CC Master'!A:A,MATCH(WORKORDERS!$Q736*1,'FRS CC Master'!$C:$C,0)),WORKORDERS!$L736)","v":"Management"},{"$f":"IFERROR(VLOOKUP($A736,'Work Order Master'!$K:$Q,7,FALSE),\"Remove\")","v":"N"}]
["22601-2-2","FOM MBA Funded - TBD","Parked","22601-2","FOM MBA Funded Initiatives","(blank)","2601","Faculty of Management - Initiatives","260","Management","260","Management","(blank)","201","Faculty Administration","no",{"$f":"IFERROR(INDEX('Work Order Master'!$S:$S,MATCH(A737,'Work Order Master'!$K:$K,0)),\"New\")","v":"New"},{"$f":"IFERROR(INDEX('Work Order Master'!T:T,MATCH(WORKORDERS!$Q737,'Work Order Master'!$S:$S,0)),Q737)","v":"New"},{"$f":"IFERROR(INDEX('FRS CC Master'!A:A,MATCH(WORKORDERS!$Q737*1,'FRS CC Master'!$C:$C,0)),WORKORDERS!$L737)","v":"Management"},{"$f":"IFERROR(VLOOKUP($A737,'Work Order Master'!$K:$Q,7,FALSE),\"Remove\")","v":"P"}]
["22601-3-1","FOM Scholarships - Competitive Fund","Active","22601-3","FOM Faculty Scholarships","(blank)","2601","Faculty of Management - Initiatives","260","Management","260","Management","(blank)","201","Faculty Administration","no",{"$f":"IFERROR(INDEX('Work Order Master'!$S:$S,MATCH(A738,'Work Order Master'!$K:$K,0)),\"New\")","v":1654},{"$f":"IFERROR(INDEX('Work Order Master'!T:T,MATCH(WORKORDERS!$Q738,'Work Order Master'!$S:$S,0)),Q738)","v":"COMPETITIVE FUND"},{"$f":"IFERROR(INDEX('FRS CC Master'!A:A,MATCH(WORKORDERS!$Q738*1,'FRS CC Master'!$C:$C,0)),WORKORDERS!$L738)","v":"Management"},{"$f":"IFERROR(VLOOKUP($A738,'Work Order Master'!$K:$Q,7,FALSE),\"Remove\")","v":"N"}]
["22601-4-1","FOM Accreditation - Business Programs","Active","22601-4","FOM Faculty - Other","(blank)","2601","Faculty of Management - Initiatives","260","Management","260","Management","(blank)","201","Faculty Administration","no",{"$f":"IFERROR(INDEX('Work Order Master'!$S:$S,MATCH(A739,'Work Order Master'!$K:$K,0)),\"New\")","v":1619},{"$f":"IFERROR(INDEX('Work Order Master'!T:T,MATCH(WORKORDERS!$Q739,'Work Order Master'!$S:$S,0)),Q739)","v":"ACCREDITATION-BUSINESS PR"},{"$f":"IFERROR(INDEX('FRS CC Master'!A:A,MATCH(WORKORDERS!$Q739*1,'FRS CC Master'!$C:$C,0)),WORKORDERS!$L739)","v":"Management"},{"$f":"IFERROR(VLOOKUP($A739,'Work Order Master'!$K:$Q,7,FALSE),\"Remove\")","v":"N"}]
["22601-4-2","FOM Recruitment and Retention","Parked","22601-4","FOM Faculty - Other","(blank)","2601","Faculty of Management - Initiatives","260","Management","260","Management","(blank)","201","Faculty Administration","no",{"$f":"IFERROR(INDEX('Work Order Master'!$S:$S,MATCH(A740,'Work Order Master'!$K:$K,0)),\"New\")","v":"New"},{"$f":"IFERROR(INDEX('Work Order Master'!T:T,MATCH(WORKORDERS!$Q740,'Work Order Master'!$S:$S,0)),Q740)","v":"New"},{"$f":"IFERROR(INDEX('FRS CC Master'!A:A,MATCH(WORKORDERS!$Q740*1,'FRS CC Master'!$C:$C,0)),WORKORDERS!$L740)","v":"Management"},{"$f":"IFERROR(VLOOKUP($A740,'Work Order Master'!$K:$Q,7,FALSE),\"Remove\")","v":"Remove"}]
["22601-4-3","FOM IPTRN conference","Parked","22601-4","FOM Faculty - Other","(blank)","2601","Faculty of Management - Initiatives","260","Management","260","Management","(blank)","201","Faculty Administration","no",{"$f":"IFERROR(INDEX('Work Order Master'!$S:$S,MATCH(A741,'Work Order Master'!$K:$K,0)),\"New\")","v":"New"},{"$f":"IFERROR(INDEX('Work Order Master'!T:T,MATCH(WORKORDERS!$Q741,'Work Order Master'!$S:$S,0)),Q741)","v":"New"},{"$f":"IFERROR(INDEX('FRS CC Master'!A:A,MATCH(WORKORDERS!$Q741*1,'FRS CC Master'!$C:$C,0)),WORKORDERS!$L741)","v":"Management"},{"$f":"IFERROR(VLOOKUP($A741,'Work Order Master'!$K:$Q,7,FALSE),\"Remove\")","v":"P"}]
["22630-1-1","FOM Event Management","Active","22630-1","FOM Event Management","(blank)","2630","Recreation and Tourism","260","Management","260","Management","(blank)","208","Instruction","no",{"$f":"IFERROR(INDEX('Work Order Master'!$S:$S,MATCH(A742,'Work Order Master'!$K:$K,0)),\"New\")","v":1672},{"$f":"IFERROR(INDEX('Work Order Master'!T:T,MATCH(WORKORDERS!$Q742,'Work Order Master'!$S:$S,0)),Q742)","v":"EVENT MANAGEMENT"},{"$f":"IFERROR(INDEX('FRS CC Master'!A:A,MATCH(WORKORDERS!$Q742*1,'FRS CC Master'!$C:$C,0)),WORKORDERS!$L742)","v":"Management"},{"$f":"IFERROR(VLOOKUP($A742,'Work Order Master'!$K:$Q,7,FALSE),\"Remove\")","v":"N"}]
["22635-1-1","FOM Hospitality Management - Wine Certificate","Active","22635-1","FOM Hospitality Management - Wine Certificate","(blank)","2635","Hospitality Management","260","Management","260","Management","(blank)","208","Instruction","no",{"$f":"IFERROR(INDEX('Work Order Master'!$S:$S,MATCH(A743,'Work Order Master'!$K:$K,0)),\"New\")","v":1670},{"$f":"IFERROR(INDEX('Work Order Master'!T:T,MATCH(WORKORDERS!$Q743,'Work Order Master'!$S:$S,0)),Q743)","v":"WINE PROGRAM"},{"$f":"IFERROR(INDEX('FRS CC Master'!A:A,MATCH(WORKORDERS!$Q743*1,'FRS CC Master'!$C:$C,0)),WORKORDERS!$L743)","v":"Management"},{"$f":"IFERROR(VLOOKUP($A743,'Work Order Master'!$K:$Q,7,FALSE),\"Remove\")","v":"N"}]
["22640-1-1","FOM Graduate Programs Administrator","Parked","22640-1","FOM Graduate Programs Administrator","(blank)","2640","Graduate Programs Administrator","264","Graduate Programs","260","Management","(blank)","201","Faculty Administration","no",{"$f":"IFERROR(INDEX('Work Order Master'!$S:$S,MATCH(A744,'Work Order Master'!$K:$K,0)),\"New\")","v":"New"},{"$f":"IFERROR(INDEX('Work Order Master'!T:T,MATCH(WORKORDERS!$Q744,'Work Order Master'!$S:$S,0)),Q744)","v":"New"},{"$f":"IFERROR(INDEX('FRS CC Master'!A:A,MATCH(WORKORDERS!$Q744*1,'FRS CC Master'!$C:$C,0)),WORKORDERS!$L744)","v":"Management"},{"$f":"IFERROR(VLOOKUP($A744,'Work Order Master'!$K:$Q,7,FALSE),\"Remove\")","v":"P"}]
["22641-1-1","FOM Post Degree Diploma in Business Studies","Active","22641-1","FOM Post Degree Diploma in Business Studies","(blank)","2641","Post Degree Diploma in Business Studies","264","Graduate Programs","260","Management","(blank)","208","Instruction","no",{"$f":"IFERROR(INDEX('Work Order Master'!$S:$S,MATCH(A745,'Work Order Master'!$K:$K,0)),\"New\")","v":1662},{"$f":"IFERROR(INDEX('Work Order Master'!T:T,MATCH(WORKORDERS!$Q745,'Work Order Master'!$S:$S,0)),Q745)","v":"PDD BUSINESS STUDIES CO-O"},{"$f":"IFERROR(INDEX('FRS CC Master'!A:A,MATCH(WORKORDERS!$Q745*1,'FRS CC Master'!$C:$C,0)),WORKORDERS!$L745)","v":"Management"},{"$f":"IFERROR(VLOOKUP($A745,'Work Order Master'!$K:$Q,7,FALSE),\"Remove\")","v":"N"}]
["22645-1-1","FOM Graduate Certificate in Business Program","Active","22645-1","FOM Graduate Certificate in Business Program","(blank)","2645","Graduate Certificate in Business Management","264","Graduate Programs","260","Management","(blank)","208","Instruction","no",{"$f":"IFERROR(INDEX('Work Order Master'!$S:$S,MATCH(A746,'Work Order Master'!$K:$K,0)),\"New\")","v":1617},{"$f":"IFERROR(INDEX('Work Order Master'!T:T,MATCH(WORKORDERS!$Q746,'Work Order Master'!$S:$S,0)),Q746)","v":"GCIB PROGRAM"},{"$f":"IFERROR(INDEX('FRS CC Master'!A:A,MATCH(WORKORDERS!$Q746*1,'FRS CC Master'!$C:$C,0)),WORKORDERS!$L746)","v":"Management"},{"$f":"IFERROR(VLOOKUP($A746,'Work Order Master'!$K:$Q,7,FALSE),\"Remove\")","v":"N"}]
["22650-1-1","FOM Graduate Diploma in Hospitality","Active","22650-1","FOM Graduate Diploma in Hospitality","(blank)","2650","Graduate Diploma in Hospitality","264","Graduate Programs","260","Management","(blank)","208","Instruction","no",{"$f":"IFERROR(INDEX('Work Order Master'!$S:$S,MATCH(A747,'Work Order Master'!$K:$K,0)),\"New\")","v":1613},{"$f":"IFERROR(INDEX('Work Order Master'!T:T,MATCH(WORKORDERS!$Q747,'Work Order Master'!$S:$S,0)),Q747)","v":"GD HOSPITALITY MANAGEMENT"},{"$f":"IFERROR(INDEX('FRS CC Master'!A:A,MATCH(WORKORDERS!$Q747*1,'FRS CC Master'!$C:$C,0)),WORKORDERS!$L747)","v":"Management"},{"$f":"IFERROR(VLOOKUP($A747,'Work Order Master'!$K:$Q,7,FALSE),\"Remove\")","v":"N"}]
["22651-1-1","FOM Graduate Diploma in International Trade","Active","22651-1","FOM Graduate Diploma in International Trade","(blank)","2651","Graduate Diploma in International Trade","264","Graduate Programs","260","Management","(blank)","208","Instruction","no",{"$f":"IFERROR(INDEX('Work Order Master'!$S:$S,MATCH(A748,'Work Order Master'!$K:$K,0)),\"New\")","v":1618},{"$f":"IFERROR(INDEX('Work Order Master'!T:T,MATCH(WORKORDERS!$Q748,'Work Order Master'!$S:$S,0)),Q748)","v":"GCIT PROGRAM"},{"$f":"IFERROR(INDEX('FRS CC Master'!A:A,MATCH(WORKORDERS!$Q748*1,'FRS CC Master'!$C:$C,0)),WORKORDERS!$L748)","v":"Management"},{"$f":"IFERROR(VLOOKUP($A748,'Work Order Master'!$K:$Q,7,FALSE),\"Remove\")","v":"N"}]
["22652-1-1","FOM Graduate Diploma in Project Management","Active","22652-1","FOM Graduate Diploma in Project Management","(blank)","2652","Graduate Diploma in Project Management","264","Graduate Programs","260","Management","(blank)","208","Instruction","no",{"$f":"IFERROR(INDEX('Work Order Master'!$S:$S,MATCH(A749,'Work Order Master'!$K:$K,0)),\"New\")","v":1616},{"$f":"IFERROR(INDEX('Work Order Master'!T:T,MATCH(WORKORDERS!$Q749,'Work Order Master'!$S:$S,0)),Q749)","v":"GDPM PROGRAM"},{"$f":"IFERROR(INDEX('FRS CC Master'!A:A,MATCH(WORKORDERS!$Q749*1,'FRS CC Master'!$C:$C,0)),WORKORDERS!$L749)","v":"Management"},{"$f":"IFERROR(VLOOKUP($A749,'Work Order Master'!$K:$Q,7,FALSE),\"Remove\")","v":"N"}]
["22655-1-1","FOM Master of Arts in Sustainable Leisure Management","Active","22655-1","FOM Master of Arts in Sustainable Leisure Management","(blank)","2655","Master of Arts in Sustainable Leisure Management","264","Graduate Programs","260","Management","(blank)","208","Instruction","no",{"$f":"IFERROR(INDEX('Work Order Master'!$S:$S,MATCH(A750,'Work Order Master'!$K:$K,0)),\"New\")","v":1615},{"$f":"IFERROR(INDEX('Work Order Master'!T:T,MATCH(WORKORDERS!$Q750,'Work Order Master'!$S:$S,0)),Q750)","v":"MA SUSTAINABLE LEISURE"},{"$f":"IFERROR(INDEX('FRS CC Master'!A:A,MATCH(WORKORDERS!$Q750*1,'FRS CC Master'!$C:$C,0)),WORKORDERS!$L750)","v":"Management"},{"$f":"IFERROR(VLOOKUP($A750,'Work Order Master'!$K:$Q,7,FALSE),\"Remove\")","v":"N"}]
["22660-1-1","FOM MBA Instruction","Active","22660-1","FOM Master of Business Administration","(blank)","2660","Master of Business Administration","264","Graduate Programs","260","Management","(blank)","208","Instruction","no",{"$f":"IFERROR(INDEX('Work Order Master'!$S:$S,MATCH(A751,'Work Order Master'!$K:$K,0)),\"New\")","v":1620},{"$f":"IFERROR(INDEX('Work Order Master'!T:T,MATCH(WORKORDERS!$Q751,'Work Order Master'!$S:$S,0)),Q751)","v":"MBA PRGM INSTRUCTION"},{"$f":"IFERROR(INDEX('FRS CC Master'!A:A,MATCH(WORKORDERS!$Q751*1,'FRS CC Master'!$C:$C,0)),WORKORDERS!$L751)","v":"Management"},{"$f":"IFERROR(VLOOKUP($A751,'Work Order Master'!$K:$Q,7,FALSE),\"Remove\")","v":"N"}]
["22660-2-1","FOM MBA Internship","Active","22660-2","FOM MBA Internship","(blank)","2660","Master of Business Administration","264","Graduate Programs","260","Management","(blank)","208","Instruction","no",{"$f":"IFERROR(INDEX('Work Order Master'!$S:$S,MATCH(A752,'Work Order Master'!$K:$K,0)),\"New\")","v":1622},{"$f":"IFERROR(INDEX('Work Order Master'!T:T,MATCH(WORKORDERS!$Q752,'Work Order Master'!$S:$S,0)),Q752)","v":"MBA INTERNSHIP PROGRAM"},{"$f":"IFERROR(INDEX('FRS CC Master'!A:A,MATCH(WORKORDERS!$Q752*1,'FRS CC Master'!$C:$C,0)),WORKORDERS!$L752)","v":"Management"},{"$f":"IFERROR(VLOOKUP($A752,'Work Order Master'!$K:$Q,7,FALSE),\"Remove\")","v":"N"}]
["22660-3-1","FOM MBA Course Redesign","Active","22660-3","FOM MBA Course Redesign","(blank)","2660","Master of Business Administration","264","Graduate Programs","260","Management","(blank)","201","Faculty Administration","no",{"$f":"IFERROR(INDEX('Work Order Master'!$S:$S,MATCH(A753,'Work Order Master'!$K:$K,0)),\"New\")","v":1621},{"$f":"IFERROR(INDEX('Work Order Master'!T:T,MATCH(WORKORDERS!$Q753,'Work Order Master'!$S:$S,0)),Q753)","v":"MBA COURSE REDESIGN"},{"$f":"IFERROR(INDEX('FRS CC Master'!A:A,MATCH(WORKORDERS!$Q753*1,'FRS CC Master'!$C:$C,0)),WORKORDERS!$L753)","v":"Management"},{"$f":"IFERROR(VLOOKUP($A753,'Work Order Master'!$K:$Q,7,FALSE),\"Remove\")","v":"N"}]
["22660-4-1","FOM MBA Faculty Development","Active","22660-4","FOM MBA Faculty Development","(blank)","2660","Master of Business Administration","264","Graduate Programs","260","Management","(blank)","201","Faculty Administration","no",{"$f":"IFERROR(INDEX('Work Order Master'!$S:$S,MATCH(A754,'Work Order Master'!$K:$K,0)),\"New\")","v":1602},{"$f":"IFERROR(INDEX('Work Order Master'!T:T,MATCH(WORKORDERS!$Q754,'Work Order Master'!$S:$S,0)),Q754)","v":"MBA-RELATED FACULTY DEV'T"},{"$f":"IFERROR(INDEX('FRS CC Master'!A:A,MATCH(WORKORDERS!$Q754*1,'FRS CC Master'!$C:$C,0)),WORKORDERS!$L754)","v":"Management"},{"$f":"IFERROR(VLOOKUP($A754,'Work Order Master'!$K:$Q,7,FALSE),\"Remove\")","v":"N"}]
["22701-1-1","ST General Research - Baker","Active","22701-1","ST Faculty - General Research","(blank)","2701","Science and Technology - Initiatives","270","Science and Technology","270","Science and Technology","(blank)","302","General Research","no",{"$f":"IFERROR(INDEX('Work Order Master'!$S:$S,MATCH(A755,'Work Order Master'!$K:$K,0)),\"New\")","v":2463},{"$f":"IFERROR(INDEX('Work Order Master'!T:T,MATCH(WORKORDERS!$Q755,'Work Order Master'!$S:$S,0)),Q755)","v":"GENERAL RESEARCH-BAKER"},{"$f":"IFERROR(INDEX('FRS CC Master'!A:A,MATCH(WORKORDERS!$Q755*1,'FRS CC Master'!$C:$C,0)),WORKORDERS!$L755)","v":"Science and Technology"},{"$f":"IFERROR(VLOOKUP($A755,'Work Order Master'!$K:$Q,7,FALSE),\"Remove\")","v":"N"}]
["22701-1-10","ST General Research - Key","Parked","22701-1","ST Faculty - General Research","(blank)","2701","Science and Technology - Initiatives","270","Science and Technology","270","Science and Technology","(blank)","302","General Research","no",{"$f":"IFERROR(INDEX('Work Order Master'!$S:$S,MATCH(A756,'Work Order Master'!$K:$K,0)),\"New\")","v":"New"},{"$f":"IFERROR(INDEX('Work Order Master'!T:T,MATCH(WORKORDERS!$Q756,'Work Order Master'!$S:$S,0)),Q756)","v":"New"},{"$f":"IFERROR(INDEX('FRS CC Master'!A:A,MATCH(WORKORDERS!$Q756*1,'FRS CC Master'!$C:$C,0)),WORKORDERS!$L756)","v":"Science and Technology"},{"$f":"IFERROR(VLOOKUP($A756,'Work Order Master'!$K:$Q,7,FALSE),\"Remove\")","v":"Remove"}]
["22701-1-11","ST General Research - Krogh","Active","22701-1","ST Faculty - General Research","(blank)","2701","Science and Technology - Initiatives","270","Science and Technology","270","Science and Technology","(blank)","302","General Research","no",{"$f":"IFERROR(INDEX('Work Order Master'!$S:$S,MATCH(A757,'Work Order Master'!$K:$K,0)),\"New\")","v":2458},{"$f":"IFERROR(INDEX('Work Order Master'!T:T,MATCH(WORKORDERS!$Q757,'Work Order Master'!$S:$S,0)),Q757)","v":"GENERAL RESEARCH-KROGH"},{"$f":"IFERROR(INDEX('FRS CC Master'!A:A,MATCH(WORKORDERS!$Q757*1,'FRS CC Master'!$C:$C,0)),WORKORDERS!$L757)","v":"Science and Technology"},{"$f":"IFERROR(VLOOKUP($A757,'Work Order Master'!$K:$Q,7,FALSE),\"Remove\")","v":"N"}]
["22701-1-12","ST General Research - Lesemann","Active","22701-1","ST Faculty - General Research","(blank)","2701","Science and Technology - Initiatives","270","Science and Technology","270","Science and Technology","(blank)","302","General Research","no",{"$f":"IFERROR(INDEX('Work Order Master'!$S:$S,MATCH(A758,'Work Order Master'!$K:$K,0)),\"New\")","v":2470},{"$f":"IFERROR(INDEX('Work Order Master'!T:T,MATCH(WORKORDERS!$Q758,'Work Order Master'!$S:$S,0)),Q758)","v":"GENERAL RESEARCH-LESEMANN"},{"$f":"IFERROR(INDEX('FRS CC Master'!A:A,MATCH(WORKORDERS!$Q758*1,'FRS CC Master'!$C:$C,0)),WORKORDERS!$L758)","v":"Science and Technology"},{"$f":"IFERROR(VLOOKUP($A758,'Work Order Master'!$K:$Q,7,FALSE),\"Remove\")","v":"N"}]
["22701-1-13","ST General Research - Morgan","Parked","22701-1","ST Faculty - General Research","(blank)","2701","Science and Technology - Initiatives","270","Science and Technology","270","Science and Technology","(blank)","302","General Research","no",{"$f":"IFERROR(INDEX('Work Order Master'!$S:$S,MATCH(A759,'Work Order Master'!$K:$K,0)),\"New\")","v":"New"},{"$f":"IFERROR(INDEX('Work Order Master'!T:T,MATCH(WORKORDERS!$Q759,'Work Order Master'!$S:$S,0)),Q759)","v":"New"},{"$f":"IFERROR(INDEX('FRS CC Master'!A:A,MATCH(WORKORDERS!$Q759*1,'FRS CC Master'!$C:$C,0)),WORKORDERS!$L759)","v":"Science and Technology"},{"$f":"IFERROR(VLOOKUP($A759,'Work Order Master'!$K:$Q,7,FALSE),\"Remove\")","v":"Remove"}]
["22701-1-14","ST General Research - Pennell","Parked","22701-1","ST Faculty - General Research","(blank)","2701","Science and Technology - Initiatives","270","Science and Technology","270","Science and Technology","(blank)","302","General Research","no",{"$f":"IFERROR(INDEX('Work Order Master'!$S:$S,MATCH(A760,'Work Order Master'!$K:$K,0)),\"New\")","v":"New"},{"$f":"IFERROR(INDEX('Work Order Master'!T:T,MATCH(WORKORDERS!$Q760,'Work Order Master'!$S:$S,0)),Q760)","v":"New"},{"$f":"IFERROR(INDEX('FRS CC Master'!A:A,MATCH(WORKORDERS!$Q760*1,'FRS CC Master'!$C:$C,0)),WORKORDERS!$L760)","v":"Science and Technology"},{"$f":"IFERROR(VLOOKUP($A760,'Work Order Master'!$K:$Q,7,FALSE),\"Remove\")","v":"Remove"}]
["22701-1-15","ST General Research - Penner","Active","22701-1","ST Faculty - General Research","(blank)","2701","Science and Technology - Initiatives","270","Science and Technology","270","Science and Technology","(blank)","302","General Research","no",{"$f":"IFERROR(INDEX('Work Order Master'!$S:$S,MATCH(A761,'Work Order Master'!$K:$K,0)),\"New\")","v":2515},{"$f":"IFERROR(INDEX('Work Order Master'!T:T,MATCH(WORKORDERS!$Q761,'Work Order Master'!$S:$S,0)),Q761)","v":"GENERAL RESEARCH-PENNER"},{"$f":"IFERROR(INDEX('FRS CC Master'!A:A,MATCH(WORKORDERS!$Q761*1,'FRS CC Master'!$C:$C,0)),WORKORDERS!$L761)","v":"Science and Technology"},{"$f":"IFERROR(VLOOKUP($A761,'Work Order Master'!$K:$Q,7,FALSE),\"Remove\")","v":"N"}]
["22701-1-16","ST General Research - Stokes","Active","22701-1","ST Faculty - General Research","(blank)","2701","Science and Technology - Initiatives","270","Science and Technology","270","Science and Technology","(blank)","302","General Research","no",{"$f":"IFERROR(INDEX('Work Order Master'!$S:$S,MATCH(A762,'Work Order Master'!$K:$K,0)),\"New\")","v":2466},{"$f":"IFERROR(INDEX('Work Order Master'!T:T,MATCH(WORKORDERS!$Q762,'Work Order Master'!$S:$S,0)),Q762)","v":"GENERAL RESEARCH-STOKES"},{"$f":"IFERROR(INDEX('FRS CC Master'!A:A,MATCH(WORKORDERS!$Q762*1,'FRS CC Master'!$C:$C,0)),WORKORDERS!$L762)","v":"Science and Technology"},{"$f":"IFERROR(VLOOKUP($A762,'Work Order Master'!$K:$Q,7,FALSE),\"Remove\")","v":"N"}]
["22701-1-17","ST General Research - Russell","Active","22701-1","ST Faculty - General Research","(blank)","2701","Science and Technology - Initiatives","270","Science and Technology","270","Science and Technology","(blank)","302","General Research","no",{"$f":"IFERROR(INDEX('Work Order Master'!$S:$S,MATCH(A763,'Work Order Master'!$K:$K,0)),\"New\")","v":2464},{"$f":"IFERROR(INDEX('Work Order Master'!T:T,MATCH(WORKORDERS!$Q763,'Work Order Master'!$S:$S,0)),Q763)","v":"GENERAL RESEARCH-RUSSELL"},{"$f":"IFERROR(INDEX('FRS CC Master'!A:A,MATCH(WORKORDERS!$Q763*1,'FRS CC Master'!$C:$C,0)),WORKORDERS!$L763)","v":"Science and Technology"},{"$f":"IFERROR(VLOOKUP($A763,'Work Order Master'!$K:$Q,7,FALSE),\"Remove\")","v":"N"}]
["22701-1-18","ST General Research - McEwen","Active","22701-1","ST Faculty - General Research","(blank)","2701","Science and Technology - Initiatives","270","Science and Technology","270","Science and Technology","(blank)","302","General Research","no",{"$f":"IFERROR(INDEX('Work Order Master'!$S:$S,MATCH(A764,'Work Order Master'!$K:$K,0)),\"New\")","v":2465},{"$f":"IFERROR(INDEX('Work Order Master'!T:T,MATCH(WORKORDERS!$Q764,'Work Order Master'!$S:$S,0)),Q764)","v":"GENERAL RESEARCH-MCEWEN"},{"$f":"IFERROR(INDEX('FRS CC Master'!A:A,MATCH(WORKORDERS!$Q764*1,'FRS CC Master'!$C:$C,0)),WORKORDERS!$L764)","v":"Science and Technology"},{"$f":"IFERROR(VLOOKUP($A764,'Work Order Master'!$K:$Q,7,FALSE),\"Remove\")","v":"N"}]
["22701-1-19","ST General Research - Sun","Active","22701-1","ST Faculty - General Research","(blank)","2701","Science and Technology - Initiatives","270","Science and Technology","270","Science and Technology","(blank)","302","General Research","no",{"$f":"IFERROR(INDEX('Work Order Master'!$S:$S,MATCH(A765,'Work Order Master'!$K:$K,0)),\"New\")","v":2461},{"$f":"IFERROR(INDEX('Work Order Master'!T:T,MATCH(WORKORDERS!$Q765,'Work Order Master'!$S:$S,0)),Q765)","v":"GENERAL RESEARCH-SUN"},{"$f":"IFERROR(INDEX('FRS CC Master'!A:A,MATCH(WORKORDERS!$Q765*1,'FRS CC Master'!$C:$C,0)),WORKORDERS!$L765)","v":"Science and Technology"},{"$f":"IFERROR(VLOOKUP($A765,'Work Order Master'!$K:$Q,7,FALSE),\"Remove\")","v":"N"}]
["22701-1-2","ST General Research - Barsby","Parked","22701-1","ST Faculty - General Research","(blank)","2701","Science and Technology - Initiatives","270","Science and Technology","270","Science and Technology","(blank)","302","General Research","no",{"$f":"IFERROR(INDEX('Work Order Master'!$S:$S,MATCH(A766,'Work Order Master'!$K:$K,0)),\"New\")","v":"New"},{"$f":"IFERROR(INDEX('Work Order Master'!T:T,MATCH(WORKORDERS!$Q766,'Work Order Master'!$S:$S,0)),Q766)","v":"New"},{"$f":"IFERROR(INDEX('FRS CC Master'!A:A,MATCH(WORKORDERS!$Q766*1,'FRS CC Master'!$C:$C,0)),WORKORDERS!$L766)","v":"Science and Technology"},{"$f":"IFERROR(VLOOKUP($A766,'Work Order Master'!$K:$Q,7,FALSE),\"Remove\")","v":"Remove"}]
["22701-1-20","ST General Research - Duncan","Active","22701-1","ST Faculty - General Research","(blank)","2701","Science and Technology - Initiatives","270","Science and Technology","270","Science and Technology","(blank)","302","General Research","no",{"$f":"IFERROR(INDEX('Work Order Master'!$S:$S,MATCH(A767,'Work Order Master'!$K:$K,0)),\"New\")","v":2471},{"$f":"IFERROR(INDEX('Work Order Master'!T:T,MATCH(WORKORDERS!$Q767,'Work Order Master'!$S:$S,0)),Q767)","v":"GENERAL RESEARCH - DUNCAN "},{"$f":"IFERROR(INDEX('FRS CC Master'!A:A,MATCH(WORKORDERS!$Q767*1,'FRS CC Master'!$C:$C,0)),WORKORDERS!$L767)","v":"Science and Technology"},{"$f":"IFERROR(VLOOKUP($A767,'Work Order Master'!$K:$Q,7,FALSE),\"Remove\")","v":"N"}]
["22701-1-3","ST General Research - Dudas","Parked","22701-1","ST Faculty - General Research","(blank)","2701","Science and Technology - Initiatives","270","Science and Technology","270","Science and Technology","(blank)","302","General Research","no",{"$f":"IFERROR(INDEX('Work Order Master'!$S:$S,MATCH(A768,'Work Order Master'!$K:$K,0)),\"New\")","v":"New"},{"$f":"IFERROR(INDEX('Work Order Master'!T:T,MATCH(WORKORDERS!$Q768,'Work Order Master'!$S:$S,0)),Q768)","v":"New"},{"$f":"IFERROR(INDEX('FRS CC Master'!A:A,MATCH(WORKORDERS!$Q768*1,'FRS CC Master'!$C:$C,0)),WORKORDERS!$L768)","v":"Science and Technology"},{"$f":"IFERROR(VLOOKUP($A768,'Work Order Master'!$K:$Q,7,FALSE),\"Remove\")","v":"Remove"}]
["22701-1-4","ST General Research - Duff","Active","22701-1","ST Faculty - General Research","(blank)","2701","Science and Technology - Initiatives","270","Science and Technology","270","Science and Technology","(blank)","302","General Research","no",{"$f":"IFERROR(INDEX('Work Order Master'!$S:$S,MATCH(A769,'Work Order Master'!$K:$K,0)),\"New\")","v":2574},{"$f":"IFERROR(INDEX('Work Order Master'!T:T,MATCH(WORKORDERS!$Q769,'Work Order Master'!$S:$S,0)),Q769)","v":"GENERAL RESEARCH-DUFF"},{"$f":"IFERROR(INDEX('FRS CC Master'!A:A,MATCH(WORKORDERS!$Q769*1,'FRS CC Master'!$C:$C,0)),WORKORDERS!$L769)","v":"Science and Technology"},{"$f":"IFERROR(VLOOKUP($A769,'Work Order Master'!$K:$Q,7,FALSE),\"Remove\")","v":"N"}]
["22701-1-5","ST General Research - Fischer","Parked","22701-1","ST Faculty - General Research","(blank)","2701","Science and Technology - Initiatives","270","Science and Technology","270","Science and Technology","(blank)","302","General Research","no",{"$f":"IFERROR(INDEX('Work Order Master'!$S:$S,MATCH(A770,'Work Order Master'!$K:$K,0)),\"New\")","v":"New"},{"$f":"IFERROR(INDEX('Work Order Master'!T:T,MATCH(WORKORDERS!$Q770,'Work Order Master'!$S:$S,0)),Q770)","v":"New"},{"$f":"IFERROR(INDEX('FRS CC Master'!A:A,MATCH(WORKORDERS!$Q770*1,'FRS CC Master'!$C:$C,0)),WORKORDERS!$L770)","v":"Science and Technology"},{"$f":"IFERROR(VLOOKUP($A770,'Work Order Master'!$K:$Q,7,FALSE),\"Remove\")","v":"Remove"}]
["22701-1-6","ST General Research - Friesen","Parked","22701-1","ST Faculty - General Research","(blank)","2701","Science and Technology - Initiatives","270","Science and Technology","270","Science and Technology","(blank)","302","General Research","no",{"$f":"IFERROR(INDEX('Work Order Master'!$S:$S,MATCH(A771,'Work Order Master'!$K:$K,0)),\"New\")","v":"New"},{"$f":"IFERROR(INDEX('Work Order Master'!T:T,MATCH(WORKORDERS!$Q771,'Work Order Master'!$S:$S,0)),Q771)","v":"New"},{"$f":"IFERROR(INDEX('FRS CC Master'!A:A,MATCH(WORKORDERS!$Q771*1,'FRS CC Master'!$C:$C,0)),WORKORDERS!$L771)","v":"Science and Technology"},{"$f":"IFERROR(VLOOKUP($A771,'Work Order Master'!$K:$Q,7,FALSE),\"Remove\")","v":"Remove"}]
["22701-1-7","ST General Research - Gill","Active","22701-1","ST Faculty - General Research","(blank)","2701","Science and Technology - Initiatives","270","Science and Technology","270","Science and Technology","(blank)","302","General Research",{"$f":"IF(OR(A772=A771,A772=A773),\"yes\",\"no\")","v":"no"},{"$f":"IFERROR(INDEX('Work Order Master'!$S:$S,MATCH(A772,'Work Order Master'!$K:$K,0)),\"New\")","v":2459},{"$f":"IFERROR(INDEX('Work Order Master'!T:T,MATCH(WORKORDERS!$Q772,'Work Order Master'!$S:$S,0)),Q772)","v":"GENERAL RESEARCH-GILL"},{"$f":"IFERROR(INDEX('FRS CC Master'!A:A,MATCH(WORKORDERS!$Q772*1,'FRS CC Master'!$C:$C,0)),WORKORDERS!$L772)","v":"Science and Technology"},{"$f":"IFERROR(VLOOKUP($A772,'Work Order Master'!$K:$Q,7,FALSE),\"Remove\")","v":"N"}]
["22701-1-8","ST General Research - Hearn","Parked","22701-1","ST Faculty - General Research","(blank)","2701","Science and Technology - Initiatives","270","Science and Technology","270","Science and Technology","(blank)","302","General Research","no",{"$f":"IFERROR(INDEX('Work Order Master'!$S:$S,MATCH(A773,'Work Order Master'!$K:$K,0)),\"New\")","v":"New"},{"$f":"IFERROR(INDEX('Work Order Master'!T:T,MATCH(WORKORDERS!$Q773,'Work Order Master'!$S:$S,0)),Q773)","v":"New"},{"$f":"IFERROR(INDEX('FRS CC Master'!A:A,MATCH(WORKORDERS!$Q773*1,'FRS CC Master'!$C:$C,0)),WORKORDERS!$L773)","v":"Science and Technology"},{"$f":"IFERROR(VLOOKUP($A773,'Work Order Master'!$K:$Q,7,FALSE),\"Remove\")","v":"Remove"}]
["22701-1-9","ST General Research - Hernandez","Active","22701-1","ST Faculty - General Research","(blank)","2701","Science and Technology - Initiatives","270","Science and Technology","270","Science and Technology","(blank)","302","General Research","no",{"$f":"IFERROR(INDEX('Work Order Master'!$S:$S,MATCH(A774,'Work Order Master'!$K:$K,0)),\"New\")","v":2535},{"$f":"IFERROR(INDEX('Work Order Master'!T:T,MATCH(WORKORDERS!$Q774,'Work Order Master'!$S:$S,0)),Q774)","v":"HERNANDEZ STUDENT RESEARC"},{"$f":"IFERROR(INDEX('FRS CC Master'!A:A,MATCH(WORKORDERS!$Q774*1,'FRS CC Master'!$C:$C,0)),WORKORDERS!$L774)","v":"Science and Technology"},{"$f":"IFERROR(VLOOKUP($A774,'Work Order Master'!$K:$Q,7,FALSE),\"Remove\")","v":"N"}]
["22701-2-1","ST Faculty Proceeds","Active","22701-2","ST Faculty Proceeds","(blank)","2701","Science and Technology - Initiatives","270","Science and Technology","270","Science and Technology","(blank)","201","Faculty Administration","no",{"$f":"IFERROR(INDEX('Work Order Master'!$S:$S,MATCH(A775,'Work Order Master'!$K:$K,0)),\"New\")","v":2500},{"$f":"IFERROR(INDEX('Work Order Master'!T:T,MATCH(WORKORDERS!$Q775,'Work Order Master'!$S:$S,0)),Q775)","v":"PROCEEDS - SCIENCE/TECH"},{"$f":"IFERROR(INDEX('FRS CC Master'!A:A,MATCH(WORKORDERS!$Q775*1,'FRS CC Master'!$C:$C,0)),WORKORDERS!$L775)","v":"Science and Technology"},{"$f":"IFERROR(VLOOKUP($A775,'Work Order Master'!$K:$Q,7,FALSE),\"Remove\")","v":"N"}]
["22701-3-1","ST Fundraising - VIU Museum","Active","22701-3","ST Faculty Fundraising","(blank)","2701","Science and Technology - Initiatives","270","Science and Technology","270","Science and Technology","(blank)","201","Faculty Administration","no",{"$f":"IFERROR(INDEX('Work Order Master'!$S:$S,MATCH(A776,'Work Order Master'!$K:$K,0)),\"New\")","v":2402},{"$f":"IFERROR(INDEX('Work Order Master'!T:T,MATCH(WORKORDERS!$Q776,'Work Order Master'!$S:$S,0)),Q776)","v":"VIU MUSEUM FUNDRAISING"},{"$f":"IFERROR(INDEX('FRS CC Master'!A:A,MATCH(WORKORDERS!$Q776*1,'FRS CC Master'!$C:$C,0)),WORKORDERS!$L776)","v":"Science and Technology"},{"$f":"IFERROR(VLOOKUP($A776,'Work Order Master'!$K:$Q,7,FALSE),\"Remove\")","v":"N"}]
["22701-3-2","ST Fundraising - Awareness Climate Change","Active","22701-3","ST Faculty Fundraising","(blank)","2701","Science and Technology - Initiatives","270","Science and Technology","270","Science and Technology","(blank)","201","Faculty Administration","no",{"$f":"IFERROR(INDEX('Work Order Master'!$S:$S,MATCH(A777,'Work Order Master'!$K:$K,0)),\"New\")","v":2579},{"$f":"IFERROR(INDEX('Work Order Master'!T:T,MATCH(WORKORDERS!$Q777,'Work Order Master'!$S:$S,0)),Q777)","v":"AWARENESS CLIMATE CHANGE"},{"$f":"IFERROR(INDEX('FRS CC Master'!A:A,MATCH(WORKORDERS!$Q777*1,'FRS CC Master'!$C:$C,0)),WORKORDERS!$L777)","v":"Science and Technology"},{"$f":"IFERROR(VLOOKUP($A777,'Work Order Master'!$K:$Q,7,FALSE),\"Remove\")","v":"N"}]
["22701-4-1","ST Faculty Lecture Series","Active","22701-4","ST Faculty Lecture Series","(blank)","2701","Science and Technology - Initiatives","270","Science and Technology","270","Science and Technology","(blank)","201","Faculty Administration","no",{"$f":"IFERROR(INDEX('Work Order Master'!$S:$S,MATCH(A778,'Work Order Master'!$K:$K,0)),\"New\")","v":2520},{"$f":"IFERROR(INDEX('Work Order Master'!T:T,MATCH(WORKORDERS!$Q778,'Work Order Master'!$S:$S,0)),Q778)","v":"SCIENCE/TECH LECTURE SER."},{"$f":"IFERROR(INDEX('FRS CC Master'!A:A,MATCH(WORKORDERS!$Q778*1,'FRS CC Master'!$C:$C,0)),WORKORDERS!$L778)","v":"Science and Technology"},{"$f":"IFERROR(VLOOKUP($A778,'Work Order Master'!$K:$Q,7,FALSE),\"Remove\")","v":"N"}]
["22701-5-1","ST Centre for Coastal Health","Active","22701-5","ST Research Contracts","(blank)","2701","Science and Technology - Initiatives","270","Science and Technology","270","Science and Technology","(blank)","310","Research Contract","no",{"$f":"IFERROR(INDEX('Work Order Master'!$S:$S,MATCH(A779,'Work Order Master'!$K:$K,0)),\"New\")","v":2533},{"$f":"IFERROR(INDEX('Work Order Master'!T:T,MATCH(WORKORDERS!$Q779,'Work Order Master'!$S:$S,0)),Q779)","v":"CENTRE FOR COASTAL HEALTH"},{"$f":"IFERROR(INDEX('FRS CC Master'!A:A,MATCH(WORKORDERS!$Q779*1,'FRS CC Master'!$C:$C,0)),WORKORDERS!$L779)","v":"Science and Technology"},{"$f":"IFERROR(VLOOKUP($A779,'Work Order Master'!$K:$Q,7,FALSE),\"Remove\")","v":"N"}]
["22701-5-2","ST Environment Canada Contract - Krogh","Active","22701-5","ST Research Contracts","(blank)","2701","Science and Technology - Initiatives","270","Science and Technology","270","Science and Technology","(blank)","310","Research Contract","no",{"$f":"IFERROR(INDEX('Work Order Master'!$S:$S,MATCH(A780,'Work Order Master'!$K:$K,0)),\"New\")","v":2453},{"$f":"IFERROR(INDEX('Work Order Master'!T:T,MATCH(WORKORDERS!$Q780,'Work Order Master'!$S:$S,0)),Q780)","v":"ENV CAN - KROGH"},{"$f":"IFERROR(INDEX('FRS CC Master'!A:A,MATCH(WORKORDERS!$Q780*1,'FRS CC Master'!$C:$C,0)),WORKORDERS!$L780)","v":"Science and Technology"},{"$f":"IFERROR(VLOOKUP($A780,'Work Order Master'!$K:$Q,7,FALSE),\"Remove\")","v":"N"}]
["22701-6-1","ST AERL (Krogh)","Active","22701-6","ST Applied Environmental Research Lab","(blank)","2701","Science and Technology - Initiatives","270","Science and Technology","270","Science and Technology","(blank)","216","Research Administration","no",{"$f":"IFERROR(INDEX('Work Order Master'!$S:$S,MATCH(A781,'Work Order Master'!$K:$K,0)),\"New\")","v":2452},{"$f":"IFERROR(INDEX('Work Order Master'!T:T,MATCH(WORKORDERS!$Q781,'Work Order Master'!$S:$S,0)),Q781)","v":"AERL OPERATING (KROGH)"},{"$f":"IFERROR(INDEX('FRS CC Master'!A:A,MATCH(WORKORDERS!$Q781*1,'FRS CC Master'!$C:$C,0)),WORKORDERS!$L781)","v":"Science and Technology"},{"$f":"IFERROR(VLOOKUP($A781,'Work Order Master'!$K:$Q,7,FALSE),\"Remove\")","v":"N"}]
["22701-6-2","ST AERL Applied Research","Active","22701-6","ST Applied Environmental Research Lab","(blank)","2701","Science and Technology - Initiatives","270","Science and Technology","270","Science and Technology","(blank)","216","Research Administration","no",{"$f":"IFERROR(INDEX('Work Order Master'!$S:$S,MATCH(A782,'Work Order Master'!$K:$K,0)),\"New\")","v":2406},{"$f":"IFERROR(INDEX('Work Order Master'!T:T,MATCH(WORKORDERS!$Q782,'Work Order Master'!$S:$S,0)),Q782)","v":"AERL APPLIED RESEARCH"},{"$f":"IFERROR(INDEX('FRS CC Master'!A:A,MATCH(WORKORDERS!$Q782*1,'FRS CC Master'!$C:$C,0)),WORKORDERS!$L782)","v":"Science and Technology"},{"$f":"IFERROR(VLOOKUP($A782,'Work Order Master'!$K:$Q,7,FALSE),\"Remove\")","v":"N"}]
["22705-1-1","ST CSR Operations","Active","22705-1","ST Centre for Shellfish Research","(blank)","2705","AQUA Group","270","Science and Technology","270","Science and Technology","(blank)","216","Research Administration","no",{"$f":"IFERROR(INDEX('Work Order Master'!$S:$S,MATCH(A783,'Work Order Master'!$K:$K,0)),\"New\")","v":1480},{"$f":"IFERROR(INDEX('Work Order Master'!T:T,MATCH(WORKORDERS!$Q783,'Work Order Master'!$S:$S,0)),Q783)","v":"CSR OPERATING FUND "},{"$f":"IFERROR(INDEX('FRS CC Master'!A:A,MATCH(WORKORDERS!$Q783*1,'FRS CC Master'!$C:$C,0)),WORKORDERS!$L783)","v":"Science and Technology"},{"$f":"IFERROR(VLOOKUP($A783,'Work Order Master'!$K:$Q,7,FALSE),\"Remove\")","v":"N"}]
["22705-2-1","ST DBMFS Operations","Active","22705-2","ST Deep Bay Marine Field Station","(blank)","2705","AQUA Group","270","Science and Technology","270","Science and Technology","(blank)","216","Research Administration","no",{"$f":"IFERROR(INDEX('Work Order Master'!$S:$S,MATCH(A784,'Work Order Master'!$K:$K,0)),\"New\")","v":1481},{"$f":"IFERROR(INDEX('Work Order Master'!T:T,MATCH(WORKORDERS!$Q784,'Work Order Master'!$S:$S,0)),Q784)","v":"DEEP BAY OPERATIONS/ADMIN "},{"$f":"IFERROR(INDEX('FRS CC Master'!A:A,MATCH(WORKORDERS!$Q784*1,'FRS CC Master'!$C:$C,0)),WORKORDERS!$L784)","v":"Science and Technology"},{"$f":"IFERROR(VLOOKUP($A784,'Work Order Master'!$K:$Q,7,FALSE),\"Remove\")","v":"N"}]
["22705-2-2","ST DBMFS Public Education & Events","Active","22705-2","ST Deep Bay Marine Field Station","(blank)","2705","AQUA Group","270","Science and Technology","270","Science and Technology","(blank)","216","Research Administration","no",{"$f":"IFERROR(INDEX('Work Order Master'!$S:$S,MATCH(A785,'Work Order Master'!$K:$K,0)),\"New\")","v":1476},{"$f":"IFERROR(INDEX('Work Order Master'!T:T,MATCH(WORKORDERS!$Q785,'Work Order Master'!$S:$S,0)),Q785)","v":"DEEP BAY-PUBLIC ED/EVENTS"},{"$f":"IFERROR(INDEX('FRS CC Master'!A:A,MATCH(WORKORDERS!$Q785*1,'FRS CC Master'!$C:$C,0)),WORKORDERS!$L785)","v":"Science and Technology"},{"$f":"IFERROR(VLOOKUP($A785,'Work Order Master'!$K:$Q,7,FALSE),\"Remove\")","v":"N"}]
["22705-2-3","ST DBMFS Research & Service","Active","22705-2","ST Deep Bay Marine Field Station","(blank)","2705","AQUA Group","270","Science and Technology","270","Science and Technology","(blank)","216","Research Administration","no",{"$f":"IFERROR(INDEX('Work Order Master'!$S:$S,MATCH(A786,'Work Order Master'!$K:$K,0)),\"New\")","v":1477},{"$f":"IFERROR(INDEX('Work Order Master'!T:T,MATCH(WORKORDERS!$Q786,'Work Order Master'!$S:$S,0)),Q786)","v":"DEEP BAY-RESEARCH, SERVICE"},{"$f":"IFERROR(INDEX('FRS CC Master'!A:A,MATCH(WORKORDERS!$Q786*1,'FRS CC Master'!$C:$C,0)),WORKORDERS!$L786)","v":"Science and Technology"},{"$f":"IFERROR(VLOOKUP($A786,'Work Order Master'!$K:$Q,7,FALSE),\"Remove\")","v":"N"}]
["22705-3-1","ST SC Operations","Active","22705-3","ST Sturgeon Centre","(blank)","2705","AQUA Group","270","Science and Technology","270","Science and Technology","(blank)","201","Faculty Administration","no",{"$f":"IFERROR(INDEX('Work Order Master'!$S:$S,MATCH(A787,'Work Order Master'!$K:$K,0)),\"New\")","v":1475},{"$f":"IFERROR(INDEX('Work Order Master'!T:T,MATCH(WORKORDERS!$Q787,'Work Order Master'!$S:$S,0)),Q787)","v":"STURGEON CTR-GENERAL OPS"},{"$f":"IFERROR(INDEX('FRS CC Master'!A:A,MATCH(WORKORDERS!$Q787*1,'FRS CC Master'!$C:$C,0)),WORKORDERS!$L787)","v":"Science and Technology"},{"$f":"IFERROR(VLOOKUP($A787,'Work Order Master'!$K:$Q,7,FALSE),\"Remove\")","v":"N"}]
["22705-4-1","ST Seafood Innovation Centre - Feasibility","Active","22705-4","ST Seafood Innovation Centre","(blank)","2705","AQUA Group","270","Science and Technology","270","Science and Technology","(blank)","201","Faculty Administration","no",{"$f":"IFERROR(INDEX('Work Order Master'!$S:$S,MATCH(A788,'Work Order Master'!$K:$K,0)),\"New\")","v":1479},{"$f":"IFERROR(INDEX('Work Order Master'!T:T,MATCH(WORKORDERS!$Q788,'Work Order Master'!$S:$S,0)),Q788)","v":"SEAFOOD INNOVATION CENTRE"},{"$f":"IFERROR(INDEX('FRS CC Master'!A:A,MATCH(WORKORDERS!$Q788*1,'FRS CC Master'!$C:$C,0)),WORKORDERS!$L788)","v":"Science and Technology"},{"$f":"IFERROR(VLOOKUP($A788,'Work Order Master'!$K:$Q,7,FALSE),\"Remove\")","v":"N"}]
["22705-4-2","ST Seafood Innovation Centre - Implementation","Active","22705-4","ST Seafood Innovation Centre","(blank)","2705","AQUA Group","270","Science and Technology","270","Science and Technology","(blank)","201","Faculty Administration","no",{"$f":"IFERROR(INDEX('Work Order Master'!$S:$S,MATCH(A789,'Work Order Master'!$K:$K,0)),\"New\")","v":1482},{"$f":"IFERROR(INDEX('Work Order Master'!T:T,MATCH(WORKORDERS!$Q789,'Work Order Master'!$S:$S,0)),Q789)","v":"SIC - IMPLEMENTATION"},{"$f":"IFERROR(INDEX('FRS CC Master'!A:A,MATCH(WORKORDERS!$Q789*1,'FRS CC Master'!$C:$C,0)),WORKORDERS!$L789)","v":"Science and Technology"},{"$f":"IFERROR(VLOOKUP($A789,'Work Order Master'!$K:$Q,7,FALSE),\"Remove\")","v":"N"}]
["22710-1-1","ST Biology Student Fund","Parked","22710-1","ST Biology","(blank)","2710","Biology","270","Science and Technology","270","Science and Technology","(blank)","201","Faculty Administration","no",{"$f":"IFERROR(INDEX('Work Order Master'!$S:$S,MATCH(A790,'Work Order Master'!$K:$K,0)),\"New\")","v":"New"},{"$f":"IFERROR(INDEX('Work Order Master'!T:T,MATCH(WORKORDERS!$Q790,'Work Order Master'!$S:$S,0)),Q790)","v":"New"},{"$f":"IFERROR(INDEX('FRS CC Master'!A:A,MATCH(WORKORDERS!$Q790*1,'FRS CC Master'!$C:$C,0)),WORKORDERS!$L790)","v":"Science and Technology"},{"$f":"IFERROR(VLOOKUP($A790,'Work Order Master'!$K:$Q,7,FALSE),\"Remove\")","v":"Remove"}]
["22710-2-1","ST VIU Bird Banding Station","Active","22710-2","ST Biology - VIU Bird Banding Station","(blank)","2710","Biology","270","Science and Technology","270","Science and Technology","(blank)","216","Research Administration","no",{"$f":"IFERROR(INDEX('Work Order Master'!$S:$S,MATCH(A791,'Work Order Master'!$K:$K,0)),\"New\")","v":2483},{"$f":"IFERROR(INDEX('Work Order Master'!T:T,MATCH(WORKORDERS!$Q791,'Work Order Master'!$S:$S,0)),Q791)","v":"VIU BIRD BANDING STATION"},{"$f":"IFERROR(INDEX('FRS CC Master'!A:A,MATCH(WORKORDERS!$Q791*1,'FRS CC Master'!$C:$C,0)),WORKORDERS!$L791)","v":"Science and Technology"},{"$f":"IFERROR(VLOOKUP($A791,'Work Order Master'!$K:$Q,7,FALSE),\"Remove\")","v":"N"}]
["22710-3-1","ST BioTech Research - Wager","Parked","22710-3","ST BioTech Research","(blank)","2710","Biology","270","Science and Technology","270","Science and Technology","(blank)","216","Research Administration","no",{"$f":"IFERROR(INDEX('Work Order Master'!$S:$S,MATCH(A792,'Work Order Master'!$K:$K,0)),\"New\")","v":"New"},{"$f":"IFERROR(INDEX('Work Order Master'!T:T,MATCH(WORKORDERS!$Q792,'Work Order Master'!$S:$S,0)),Q792)","v":"New"},{"$f":"IFERROR(INDEX('FRS CC Master'!A:A,MATCH(WORKORDERS!$Q792*1,'FRS CC Master'!$C:$C,0)),WORKORDERS!$L792)","v":"Science and Technology"},{"$f":"IFERROR(VLOOKUP($A792,'Work Order Master'!$K:$Q,7,FALSE),\"Remove\")","v":"Remove"}]
["22725-1-1","ST Geology 206 Field School","Active","22725-1","ST Earth Science Field Schools","(blank)","2725","Earth Science / Geology","270","Science and Technology","270","Science and Technology","(blank)","223","Field Schools","no",{"$f":"IFERROR(INDEX('Work Order Master'!$S:$S,MATCH(A793,'Work Order Master'!$K:$K,0)),\"New\")","v":2563},{"$f":"IFERROR(INDEX('Work Order Master'!T:T,MATCH(WORKORDERS!$Q793,'Work Order Master'!$S:$S,0)),Q793)","v":"GEOL 206 FIELD SCHOOL"},{"$f":"IFERROR(INDEX('FRS CC Master'!A:A,MATCH(WORKORDERS!$Q793*1,'FRS CC Master'!$C:$C,0)),WORKORDERS!$L793)","v":"Science and Technology"},{"$f":"IFERROR(VLOOKUP($A793,'Work Order Master'!$K:$Q,7,FALSE),\"Remove\")","v":"N"}]
["22725-1-2","ST Geology 390 Field Studies","Active","22725-1","ST Earth Science Field Schools","(blank)","2725","Earth Science / Geology","270","Science and Technology","270","Science and Technology","(blank)","223","Field Schools","no",{"$f":"IFERROR(INDEX('Work Order Master'!$S:$S,MATCH(A794,'Work Order Master'!$K:$K,0)),\"New\")","v":2562},{"$f":"IFERROR(INDEX('Work Order Master'!T:T,MATCH(WORKORDERS!$Q794,'Work Order Master'!$S:$S,0)),Q794)","v":"GEOL 390 SPEC.FIELD STUDI"},{"$f":"IFERROR(INDEX('FRS CC Master'!A:A,MATCH(WORKORDERS!$Q794*1,'FRS CC Master'!$C:$C,0)),WORKORDERS!$L794)","v":"Science and Technology"},{"$f":"IFERROR(VLOOKUP($A794,'Work Order Master'!$K:$Q,7,FALSE),\"Remove\")","v":"N"}]
["22725-2-1","ST Earth Science / Geology - Promotion","Active","22725-2","ST Earth Science / Geology - Promotion","(blank)","2725","Earth Science / Geology","270","Science and Technology","270","Science and Technology","(blank)","201","Faculty Administration","no",{"$f":"IFERROR(INDEX('Work Order Master'!$S:$S,MATCH(A795,'Work Order Master'!$K:$K,0)),\"New\")","v":2455},{"$f":"IFERROR(INDEX('Work Order Master'!T:T,MATCH(WORKORDERS!$Q795,'Work Order Master'!$S:$S,0)),Q795)","v":"PROMOTING EARTH SCIENCE"},{"$f":"IFERROR(INDEX('FRS CC Master'!A:A,MATCH(WORKORDERS!$Q795*1,'FRS CC Master'!$C:$C,0)),WORKORDERS!$L795)","v":"Science and Technology"},{"$f":"IFERROR(VLOOKUP($A795,'Work Order Master'!$K:$Q,7,FALSE),\"Remove\")","v":"N"}]
["22730-1-1","ST Engineering Fair","Parked","22730-1","ST Engineering","(blank)","2730","Engineering","270","Science and Technology","270","Science and Technology","(blank)","208","Instruction","no",{"$f":"IFERROR(INDEX('Work Order Master'!$S:$S,MATCH(A796,'Work Order Master'!$K:$K,0)),\"New\")","v":"New"},{"$f":"IFERROR(INDEX('Work Order Master'!T:T,MATCH(WORKORDERS!$Q796,'Work Order Master'!$S:$S,0)),Q796)","v":"New"},{"$f":"IFERROR(INDEX('FRS CC Master'!A:A,MATCH(WORKORDERS!$Q796*1,'FRS CC Master'!$C:$C,0)),WORKORDERS!$L796)","v":"Science and Technology"},{"$f":"IFERROR(VLOOKUP($A796,'Work Order Master'!$K:$Q,7,FALSE),\"Remove\")","v":"Remove"}]
["22730-2-1","ST Engineering Research","Active","22730-2","ST Engineering Research","(blank)","2730","Engineering","270","Science and Technology","270","Science and Technology","(blank)","216","Research Administration","no",{"$f":"IFERROR(INDEX('Work Order Master'!$S:$S,MATCH(A797,'Work Order Master'!$K:$K,0)),\"New\")","v":2566},{"$f":"IFERROR(INDEX('Work Order Master'!T:T,MATCH(WORKORDERS!$Q797,'Work Order Master'!$S:$S,0)),Q797)","v":"ENGINEERING RESEARCH"},{"$f":"IFERROR(INDEX('FRS CC Master'!A:A,MATCH(WORKORDERS!$Q797*1,'FRS CC Master'!$C:$C,0)),WORKORDERS!$L797)","v":"Science and Technology"},{"$f":"IFERROR(VLOOKUP($A797,'Work Order Master'!$K:$Q,7,FALSE),\"Remove\")","v":"N"}]
["22740-1-1","ST Forestry Field Trips - Domestic","Active","22740-1","ST Forestry Field Trips","(blank)","2740","Forestry","270","Science and Technology","270","Science and Technology","(blank)","223","Field Schools","no",{"$f":"IFERROR(INDEX('Work Order Master'!$S:$S,MATCH(A798,'Work Order Master'!$K:$K,0)),\"New\")","v":2409},{"$f":"IFERROR(INDEX('Work Order Master'!T:T,MATCH(WORKORDERS!$Q798,'Work Order Master'!$S:$S,0)),Q798)","v":"FORESTRY FIELD TRIPS"},{"$f":"IFERROR(INDEX('FRS CC Master'!A:A,MATCH(WORKORDERS!$Q798*1,'FRS CC Master'!$C:$C,0)),WORKORDERS!$L798)","v":"Science and Technology"},{"$f":"IFERROR(VLOOKUP($A798,'Work Order Master'!$K:$Q,7,FALSE),\"Remove\")","v":"N"}]
["22740-1-2","ST Forestry Field Trips - International","Parked","22740-1","ST Forestry Field Trips","(blank)","2740","Forestry","270","Science and Technology","270","Science and Technology","(blank)","223","Field Schools","no",{"$f":"IFERROR(INDEX('Work Order Master'!$S:$S,MATCH(A799,'Work Order Master'!$K:$K,0)),\"New\")","v":"New"},{"$f":"IFERROR(INDEX('Work Order Master'!T:T,MATCH(WORKORDERS!$Q799,'Work Order Master'!$S:$S,0)),Q799)","v":"New"},{"$f":"IFERROR(INDEX('FRS CC Master'!A:A,MATCH(WORKORDERS!$Q799*1,'FRS CC Master'!$C:$C,0)),WORKORDERS!$L799)","v":"Science and Technology"},{"$f":"IFERROR(VLOOKUP($A799,'Work Order Master'!$K:$Q,7,FALSE),\"Remove\")","v":"Remove"}]
["22740-2-1","ST Forestry Grad Account","Parked","22740-2","ST Forestry Students - Other","(blank)","2740","Forestry","270","Science and Technology","270","Science and Technology","(blank)","201","Faculty Administration","no",{"$f":"IFERROR(INDEX('Work Order Master'!$S:$S,MATCH(A800,'Work Order Master'!$K:$K,0)),\"New\")","v":"New"},{"$f":"IFERROR(INDEX('Work Order Master'!T:T,MATCH(WORKORDERS!$Q800,'Work Order Master'!$S:$S,0)),Q800)","v":"New"},{"$f":"IFERROR(INDEX('FRS CC Master'!A:A,MATCH(WORKORDERS!$Q800*1,'FRS CC Master'!$C:$C,0)),WORKORDERS!$L800)","v":"Science and Technology"},{"$f":"IFERROR(VLOOKUP($A800,'Work Order Master'!$K:$Q,7,FALSE),\"Remove\")","v":"Remove"}]
["22740-2-2","ST Forestry Equipment Deposits","Active","22740-2","ST Forestry Students - Other","(blank)","2740","Forestry","270","Science and Technology","270","Science and Technology","(blank)","201","Faculty Administration","no",{"$f":"IFERROR(INDEX('Work Order Master'!$S:$S,MATCH(A801,'Work Order Master'!$K:$K,0)),\"New\")","v":2510},{"$f":"IFERROR(INDEX('Work Order Master'!T:T,MATCH(WORKORDERS!$Q801,'Work Order Master'!$S:$S,0)),Q801)","v":"PRGM EQUIPMENT DEPOSITS"},{"$f":"IFERROR(INDEX('FRS CC Master'!A:A,MATCH(WORKORDERS!$Q801*1,'FRS CC Master'!$C:$C,0)),WORKORDERS!$L801)","v":"Science and Technology"},{"$f":"IFERROR(VLOOKUP($A801,'Work Order Master'!$K:$Q,7,FALSE),\"Remove\")","v":"N"}]
["22740-3-1","ST Forestry Woodlot - A117","Active","22740-3","ST Forestry Woodlot","(blank)","2740","Forestry","270","Science and Technology","270","Science and Technology","(blank)","219","Contract activity","no",{"$f":"IFERROR(INDEX('Work Order Master'!$S:$S,MATCH(A802,'Work Order Master'!$K:$K,0)),\"New\")","v":2519},{"$f":"IFERROR(INDEX('Work Order Master'!T:T,MATCH(WORKORDERS!$Q802,'Work Order Master'!$S:$S,0)),Q802)","v":"FORESTRY WOODLOT-A117"},{"$f":"IFERROR(INDEX('FRS CC Master'!A:A,MATCH(WORKORDERS!$Q802*1,'FRS CC Master'!$C:$C,0)),WORKORDERS!$L802)","v":"Science and Technology"},{"$f":"IFERROR(VLOOKUP($A802,'Work Order Master'!$K:$Q,7,FALSE),\"Remove\")","v":"N"}]
["22745-1-1","ST Math Contest","Active","22745-1","ST Math Contest","(blank)","2745","Mathematics","270","Science and Technology","270","Science and Technology","(blank)","208","Instruction","no",{"$f":"IFERROR(INDEX('Work Order Master'!$S:$S,MATCH(A803,'Work Order Master'!$K:$K,0)),\"New\")","v":2451},{"$f":"IFERROR(INDEX('Work Order Master'!T:T,MATCH(WORKORDERS!$Q803,'Work Order Master'!$S:$S,0)),Q803)","v":"MATH CONTEST"},{"$f":"IFERROR(INDEX('FRS CC Master'!A:A,MATCH(WORKORDERS!$Q803*1,'FRS CC Master'!$C:$C,0)),WORKORDERS!$L803)","v":"Science and Technology"},{"$f":"IFERROR(VLOOKUP($A803,'Work Order Master'!$K:$Q,7,FALSE),\"Remove\")","v":"N"}]
["22755-1-1","ST RMOT Student Fund","Active","22755-1","ST RMOT Student Fund","(blank)","2755","Resource Management and Protection","270","Science and Technology","270","Science and Technology","(blank)","201","Faculty Administration","no",{"$f":"IFERROR(INDEX('Work Order Master'!$S:$S,MATCH(A804,'Work Order Master'!$K:$K,0)),\"New\")","v":2511},{"$f":"IFERROR(INDEX('Work Order Master'!T:T,MATCH(WORKORDERS!$Q804,'Work Order Master'!$S:$S,0)),Q804)","v":"RMOT STUDENT FUND"},{"$f":"IFERROR(INDEX('FRS CC Master'!A:A,MATCH(WORKORDERS!$Q804*1,'FRS CC Master'!$C:$C,0)),WORKORDERS!$L804)","v":"Science and Technology"},{"$f":"IFERROR(VLOOKUP($A804,'Work Order Master'!$K:$Q,7,FALSE),\"Remove\")","v":"N"}]
["22755-2-1","ST MENREP Program","Active","22755-2","ST MENREP Program","(blank)","2755","Resource Management and Protection","270","Science and Technology","270","Science and Technology","(blank)","219","Contract activity","no",{"$f":"IFERROR(INDEX('Work Order Master'!$S:$S,MATCH(A805,'Work Order Master'!$K:$K,0)),\"New\")","v":2530},{"$f":"IFERROR(INDEX('Work Order Master'!T:T,MATCH(WORKORDERS!$Q805,'Work Order Master'!$S:$S,0)),Q805)","v":"MENREP PROGRAM"},{"$f":"IFERROR(INDEX('FRS CC Master'!A:A,MATCH(WORKORDERS!$Q805*1,'FRS CC Master'!$C:$C,0)),WORKORDERS!$L805)","v":"Science and Technology"},{"$f":"IFERROR(VLOOKUP($A805,'Work Order Master'!$K:$Q,7,FALSE),\"Remove\")","v":"N"}]
["22801-1-1","SS General Research - Burnley, Caroline","Active","22801-1","SS Faculty - General Research","(blank)","2801","Social Sciences - Initiatives","280","Social Sciences","280","Social Sciences","(blank)","302","General Research","no",{"$f":"IFERROR(INDEX('Work Order Master'!$S:$S,MATCH(A806,'Work Order Master'!$K:$K,0)),\"New\")","v":1928},{"$f":"IFERROR(INDEX('Work Order Master'!T:T,MATCH(WORKORDERS!$Q806,'Work Order Master'!$S:$S,0)),Q806)","v":"GENERAL RESEARCH-BURNLEY"},{"$f":"IFERROR(INDEX('FRS CC Master'!A:A,MATCH(WORKORDERS!$Q806*1,'FRS CC Master'!$C:$C,0)),WORKORDERS!$L806)","v":"Social Sciences"},{"$f":"IFERROR(VLOOKUP($A806,'Work Order Master'!$K:$Q,7,FALSE),\"Remove\")","v":"N"}]
["22801-1-10","SS General Research - Nicol","Active","22801-1","SS Faculty - General Research","(blank)","2801","Social Sciences - Initiatives","280","Social Sciences","280","Social Sciences","(blank)","302","General Research","no",{"$f":"IFERROR(INDEX('Work Order Master'!$S:$S,MATCH(A807,'Work Order Master'!$K:$K,0)),\"New\")","v":1933},{"$f":"IFERROR(INDEX('Work Order Master'!T:T,MATCH(WORKORDERS!$Q807,'Work Order Master'!$S:$S,0)),Q807)","v":"GENERAL RESEARCH-NICOL"},{"$f":"IFERROR(INDEX('FRS CC Master'!A:A,MATCH(WORKORDERS!$Q807*1,'FRS CC Master'!$C:$C,0)),WORKORDERS!$L807)","v":"Social Sciences"},{"$f":"IFERROR(VLOOKUP($A807,'Work Order Master'!$K:$Q,7,FALSE),\"Remove\")","v":"N"}]
["22801-1-11","SS General Research - Patenaude","Active","22801-1","SS Faculty - General Research","(blank)","2801","Social Sciences - Initiatives","280","Social Sciences","280","Social Sciences","(blank)","302","General Research","no",{"$f":"IFERROR(INDEX('Work Order Master'!$S:$S,MATCH(A808,'Work Order Master'!$K:$K,0)),\"New\")","v":1923},{"$f":"IFERROR(INDEX('Work Order Master'!T:T,MATCH(WORKORDERS!$Q808,'Work Order Master'!$S:$S,0)),Q808)","v":"GENERL RESEARCH-PATENAUDE"},{"$f":"IFERROR(INDEX('FRS CC Master'!A:A,MATCH(WORKORDERS!$Q808*1,'FRS CC Master'!$C:$C,0)),WORKORDERS!$L808)","v":"Social Sciences"},{"$f":"IFERROR(VLOOKUP($A808,'Work Order Master'!$K:$Q,7,FALSE),\"Remove\")","v":"N"}]
["22801-1-2","SS General Research - Cooper","Active","22801-1","SS Faculty - General Research","(blank)","2801","Social Sciences - Initiatives","280","Social Sciences","280","Social Sciences","(blank)","302","General Research","no",{"$f":"IFERROR(INDEX('Work Order Master'!$S:$S,MATCH(A809,'Work Order Master'!$K:$K,0)),\"New\")","v":1925},{"$f":"IFERROR(INDEX('Work Order Master'!T:T,MATCH(WORKORDERS!$Q809,'Work Order Master'!$S:$S,0)),Q809)","v":"GENERAL RESEARCH-COOPER"},{"$f":"IFERROR(INDEX('FRS CC Master'!A:A,MATCH(WORKORDERS!$Q809*1,'FRS CC Master'!$C:$C,0)),WORKORDERS!$L809)","v":"Social Sciences"},{"$f":"IFERROR(VLOOKUP($A809,'Work Order Master'!$K:$Q,7,FALSE),\"Remove\")","v":"N"}]
["22801-1-3","SS General Research - Gilchrist","Active","22801-1","SS Faculty - General Research","(blank)","2801","Social Sciences - Initiatives","280","Social Sciences","280","Social Sciences","(blank)","302","General Research","no",{"$f":"IFERROR(INDEX('Work Order Master'!$S:$S,MATCH(A810,'Work Order Master'!$K:$K,0)),\"New\")","v":1931},{"$f":"IFERROR(INDEX('Work Order Master'!T:T,MATCH(WORKORDERS!$Q810,'Work Order Master'!$S:$S,0)),Q810)","v":"GENERL RESEARCH-GILCHRIST"},{"$f":"IFERROR(INDEX('FRS CC Master'!A:A,MATCH(WORKORDERS!$Q810*1,'FRS CC Master'!$C:$C,0)),WORKORDERS!$L810)","v":"Social Sciences"},{"$f":"IFERROR(VLOOKUP($A810,'Work Order Master'!$K:$Q,7,FALSE),\"Remove\")","v":"N"}]
["22801-1-4","SS General Research - Hinbest","Active","22801-1","SS Faculty - General Research","(blank)","2801","Social Sciences - Initiatives","280","Social Sciences","280","Social Sciences","(blank)","302","General Research","no",{"$f":"IFERROR(INDEX('Work Order Master'!$S:$S,MATCH(A811,'Work Order Master'!$K:$K,0)),\"New\")","v":1929},{"$f":"IFERROR(INDEX('Work Order Master'!T:T,MATCH(WORKORDERS!$Q811,'Work Order Master'!$S:$S,0)),Q811)","v":"GENERAL RESEARCH-HINBEST"},{"$f":"IFERROR(INDEX('FRS CC Master'!A:A,MATCH(WORKORDERS!$Q811*1,'FRS CC Master'!$C:$C,0)),WORKORDERS!$L811)","v":"Social Sciences"},{"$f":"IFERROR(VLOOKUP($A811,'Work Order Master'!$K:$Q,7,FALSE),\"Remove\")","v":"N"}]
["22801-1-5","SS General Research - Lim","Active","22801-1","SS Faculty - General Research","(blank)","2801","Social Sciences - Initiatives","280","Social Sciences","280","Social Sciences","(blank)","302","General Research","no",{"$f":"IFERROR(INDEX('Work Order Master'!$S:$S,MATCH(A812,'Work Order Master'!$K:$K,0)),\"New\")","v":1934},{"$f":"IFERROR(INDEX('Work Order Master'!T:T,MATCH(WORKORDERS!$Q812,'Work Order Master'!$S:$S,0)),Q812)","v":"GENERAL RESEARCH-LIM"},{"$f":"IFERROR(INDEX('FRS CC Master'!A:A,MATCH(WORKORDERS!$Q812*1,'FRS CC Master'!$C:$C,0)),WORKORDERS!$L812)","v":"Social Sciences"},{"$f":"IFERROR(VLOOKUP($A812,'Work Order Master'!$K:$Q,7,FALSE),\"Remove\")","v":"N"}]
["22801-1-6","SS General Research - Livingstone","Active","22801-1","SS Faculty - General Research","(blank)","2801","Social Sciences - Initiatives","280","Social Sciences","280","Social Sciences","(blank)","302","General Research","no",{"$f":"IFERROR(INDEX('Work Order Master'!$S:$S,MATCH(A813,'Work Order Master'!$K:$K,0)),\"New\")","v":1927},{"$f":"IFERROR(INDEX('Work Order Master'!T:T,MATCH(WORKORDERS!$Q813,'Work Order Master'!$S:$S,0)),Q813)","v":"GENERL RESEARCH-LIVINGSTO"},{"$f":"IFERROR(INDEX('FRS CC Master'!A:A,MATCH(WORKORDERS!$Q813*1,'FRS CC Master'!$C:$C,0)),WORKORDERS!$L813)","v":"Social Sciences"},{"$f":"IFERROR(VLOOKUP($A813,'Work Order Master'!$K:$Q,7,FALSE),\"Remove\")","v":"N"}]
["22801-1-7","SS General Research - MacGuire","Active","22801-1","SS Faculty - General Research","(blank)","2801","Social Sciences - Initiatives","280","Social Sciences","280","Social Sciences","(blank)","302","General Research","no",{"$f":"IFERROR(INDEX('Work Order Master'!$S:$S,MATCH(A814,'Work Order Master'!$K:$K,0)),\"New\")","v":1930},{"$f":"IFERROR(INDEX('Work Order Master'!T:T,MATCH(WORKORDERS!$Q814,'Work Order Master'!$S:$S,0)),Q814)","v":"GENERAL RESEARCH-MACGUIRE"},{"$f":"IFERROR(INDEX('FRS CC Master'!A:A,MATCH(WORKORDERS!$Q814*1,'FRS CC Master'!$C:$C,0)),WORKORDERS!$L814)","v":"Social Sciences"},{"$f":"IFERROR(VLOOKUP($A814,'Work Order Master'!$K:$Q,7,FALSE),\"Remove\")","v":"N"}]
["22801-1-8","SS General Research - Marchant","Active","22801-1","SS Faculty - General Research","(blank)","2801","Social Sciences - Initiatives","280","Social Sciences","280","Social Sciences","(blank)","302","General Research","no",{"$f":"IFERROR(INDEX('Work Order Master'!$S:$S,MATCH(A815,'Work Order Master'!$K:$K,0)),\"New\")","v":1922},{"$f":"IFERROR(INDEX('Work Order Master'!T:T,MATCH(WORKORDERS!$Q815,'Work Order Master'!$S:$S,0)),Q815)","v":"GENERAL RESEARCH-MARCHANT"},{"$f":"IFERROR(INDEX('FRS CC Master'!A:A,MATCH(WORKORDERS!$Q815*1,'FRS CC Master'!$C:$C,0)),WORKORDERS!$L815)","v":"Social Sciences"},{"$f":"IFERROR(VLOOKUP($A815,'Work Order Master'!$K:$Q,7,FALSE),\"Remove\")","v":"N"}]
["22801-1-9","SS General Research - McCunn","Active","22801-1","SS Faculty - General Research","(blank)","2801","Social Sciences - Initiatives","280","Social Sciences","280","Social Sciences","(blank)","302","General Research","no",{"$f":"IFERROR(INDEX('Work Order Master'!$S:$S,MATCH(A816,'Work Order Master'!$K:$K,0)),\"New\")","v":1924},{"$f":"IFERROR(INDEX('Work Order Master'!T:T,MATCH(WORKORDERS!$Q816,'Work Order Master'!$S:$S,0)),Q816)","v":"GENERAL RESEARCH-MCCUNN"},{"$f":"IFERROR(INDEX('FRS CC Master'!A:A,MATCH(WORKORDERS!$Q816*1,'FRS CC Master'!$C:$C,0)),WORKORDERS!$L816)","v":"Social Sciences"},{"$f":"IFERROR(VLOOKUP($A816,'Work Order Master'!$K:$Q,7,FALSE),\"Remove\")","v":"N"}]
["22801-2-1","SS General Research - Shaw","Active","22801-2","SS General Research - Shaw","(blank)","2801","Social Sciences - Initiatives","280","Social Sciences","280","Social Sciences","(blank)","302","General Research","no",{"$f":"IFERROR(INDEX('Work Order Master'!$S:$S,MATCH(A817,'Work Order Master'!$K:$K,0)),\"New\")","v":1932},{"$f":"IFERROR(INDEX('Work Order Master'!T:T,MATCH(WORKORDERS!$Q817,'Work Order Master'!$S:$S,0)),Q817)","v":"GENERAL RESEARCH-SHAW"},{"$f":"IFERROR(INDEX('FRS CC Master'!A:A,MATCH(WORKORDERS!$Q817*1,'FRS CC Master'!$C:$C,0)),WORKORDERS!$L817)","v":"Social Sciences"},{"$f":"IFERROR(VLOOKUP($A817,'Work Order Master'!$K:$Q,7,FALSE),\"Remove\")","v":"N"}]
["22801-3-1","SS Malaspina Research Centre","Active","22801-3","SS Research - Other","(blank)","2801","Social Sciences - Initiatives","280","Social Sciences","280","Social Sciences","(blank)","216","Research Administration","no",{"$f":"IFERROR(INDEX('Work Order Master'!$S:$S,MATCH(A818,'Work Order Master'!$K:$K,0)),\"New\")","v":1920},{"$f":"IFERROR(INDEX('Work Order Master'!T:T,MATCH(WORKORDERS!$Q818,'Work Order Master'!$S:$S,0)),Q818)","v":"MALASPINA RESEARCH CENTRE"},{"$f":"IFERROR(INDEX('FRS CC Master'!A:A,MATCH(WORKORDERS!$Q818*1,'FRS CC Master'!$C:$C,0)),WORKORDERS!$L818)","v":"Social Sciences"},{"$f":"IFERROR(VLOOKUP($A818,'Work Order Master'!$K:$Q,7,FALSE),\"Remove\")","v":"N"}]
["22801-3-2","SS Resilience Research Lab","Active","22801-3","SS Research - Other","(blank)","2801","Social Sciences - Initiatives","280","Social Sciences","280","Social Sciences","(blank)","216","Research Administration","no",{"$f":"IFERROR(INDEX('Work Order Master'!$S:$S,MATCH(A819,'Work Order Master'!$K:$K,0)),\"New\")","v":1912},{"$f":"IFERROR(INDEX('Work Order Master'!T:T,MATCH(WORKORDERS!$Q819,'Work Order Master'!$S:$S,0)),Q819)","v":"RESILIENCE RESEARCH LAB"},{"$f":"IFERROR(INDEX('FRS CC Master'!A:A,MATCH(WORKORDERS!$Q819*1,'FRS CC Master'!$C:$C,0)),WORKORDERS!$L819)","v":"Social Sciences"},{"$f":"IFERROR(VLOOKUP($A819,'Work Order Master'!$K:$Q,7,FALSE),\"Remove\")","v":"N"}]
["22801-3-3","SS Resilience Research Lab (RSAC)","Active","22801-3","SS Research - Other","(blank)","2801","Social Sciences - Initiatives","280","Social Sciences","280","Social Sciences","(blank)","216","Research Administration","no",{"$f":"IFERROR(INDEX('Work Order Master'!$S:$S,MATCH(A820,'Work Order Master'!$K:$K,0)),\"New\")","v":1904},{"$f":"IFERROR(INDEX('Work Order Master'!T:T,MATCH(WORKORDERS!$Q820,'Work Order Master'!$S:$S,0)),Q820)","v":"RESILIENCE LAB (RSAC)"},{"$f":"IFERROR(INDEX('FRS CC Master'!A:A,MATCH(WORKORDERS!$Q820*1,'FRS CC Master'!$C:$C,0)),WORKORDERS!$L820)","v":"Social Sciences"},{"$f":"IFERROR(VLOOKUP($A820,'Work Order Master'!$K:$Q,7,FALSE),\"Remove\")","v":"N"}]
["22801-4-1","SS VIU Model UN","Active","22801-4","SS Faculty - Other","(blank)","2801","Social Sciences - Initiatives","280","Social Sciences","280","Social Sciences","(blank)","201","Faculty Administration","no",{"$f":"IFERROR(INDEX('Work Order Master'!$S:$S,MATCH(A821,'Work Order Master'!$K:$K,0)),\"New\")","v":1900},{"$f":"IFERROR(INDEX('Work Order Master'!T:T,MATCH(WORKORDERS!$Q821,'Work Order Master'!$S:$S,0)),Q821)","v":"VIU MODEL UN"},{"$f":"IFERROR(INDEX('FRS CC Master'!A:A,MATCH(WORKORDERS!$Q821*1,'FRS CC Master'!$C:$C,0)),WORKORDERS!$L821)","v":"Social Sciences"},{"$f":"IFERROR(VLOOKUP($A821,'Work Order Master'!$K:$Q,7,FALSE),\"Remove\")","v":"N"}]
["22801-4-2","SS The Compass Rose","Active","22801-4","SS Faculty - Other","(blank)","2801","Social Sciences - Initiatives","280","Social Sciences","280","Social Sciences","(blank)","201","Faculty Administration","no",{"$f":"IFERROR(INDEX('Work Order Master'!$S:$S,MATCH(A822,'Work Order Master'!$K:$K,0)),\"New\")","v":1919},{"$f":"IFERROR(INDEX('Work Order Master'!T:T,MATCH(WORKORDERS!$Q822,'Work Order Master'!$S:$S,0)),Q822)","v":"THE COMPASS ROSE"},{"$f":"IFERROR(INDEX('FRS CC Master'!A:A,MATCH(WORKORDERS!$Q822*1,'FRS CC Master'!$C:$C,0)),WORKORDERS!$L822)","v":"Social Sciences"},{"$f":"IFERROR(VLOOKUP($A822,'Work Order Master'!$K:$Q,7,FALSE),\"Remove\")","v":"N"}]
["22801-4-3","SS Worldbridger Film Series","Active","22801-4","SS Faculty - Other","(blank)","2801","Social Sciences - Initiatives","280","Social Sciences","280","Social Sciences","(blank)","201","Faculty Administration","no",{"$f":"IFERROR(INDEX('Work Order Master'!$S:$S,MATCH(A823,'Work Order Master'!$K:$K,0)),\"New\")","v":1903},{"$f":"IFERROR(INDEX('Work Order Master'!T:T,MATCH(WORKORDERS!$Q823,'Work Order Master'!$S:$S,0)),Q823)","v":"WORLDBRIDGER FILM SERIES"},{"$f":"IFERROR(INDEX('FRS CC Master'!A:A,MATCH(WORKORDERS!$Q823*1,'FRS CC Master'!$C:$C,0)),WORKORDERS!$L823)","v":"Social Sciences"},{"$f":"IFERROR(VLOOKUP($A823,'Work Order Master'!$K:$Q,7,FALSE),\"Remove\")","v":"N"}]
["22801-4-4","SS Malaspina Fellows Program","Active","22801-4","SS Faculty - Other","(blank)","2801","Social Sciences - Initiatives","280","Social Sciences","280","Social Sciences","(blank)","201","Faculty Administration","no",{"$f":"IFERROR(INDEX('Work Order Master'!$S:$S,MATCH(A824,'Work Order Master'!$K:$K,0)),\"New\")","v":1921},{"$f":"IFERROR(INDEX('Work Order Master'!T:T,MATCH(WORKORDERS!$Q824,'Work Order Master'!$S:$S,0)),Q824)","v":"MALASPINA FELLOWS PROGRAM"},{"$f":"IFERROR(INDEX('FRS CC Master'!A:A,MATCH(WORKORDERS!$Q824*1,'FRS CC Master'!$C:$C,0)),WORKORDERS!$L824)","v":"Social Sciences"},{"$f":"IFERROR(VLOOKUP($A824,'Work Order Master'!$K:$Q,7,FALSE),\"Remove\")","v":"N"}]
["22815-1-1","SS Geography - Online Course- National Resource Canada","Active","22815-1","SS Geography - Online Course","(blank)","2815","Geography","280","Social Sciences","280","Social Sciences","(blank)","219","Contract activity","no",{"$f":"IFERROR(INDEX('Work Order Master'!$S:$S,MATCH(A825,'Work Order Master'!$K:$K,0)),\"New\")","v":1976},{"$f":"IFERROR(INDEX('Work Order Master'!T:T,MATCH(WORKORDERS!$Q825,'Work Order Master'!$S:$S,0)),Q825)","v":"NRCAN"},{"$f":"IFERROR(INDEX('FRS CC Master'!A:A,MATCH(WORKORDERS!$Q825*1,'FRS CC Master'!$C:$C,0)),WORKORDERS!$L825)","v":"Social Sciences"},{"$f":"IFERROR(VLOOKUP($A825,'Work Order Master'!$K:$Q,7,FALSE),\"Remove\")","v":"N"}]
["22848-1-1","SS Advanced Diploma in GIS Applications","Active","22848-1","SS Advanced Diploma in GIS Applications","(blank)","2848","Advanced Diploma in GIS Applications","280","Social Sciences","280","Social Sciences","(blank)","208","Instruction","no",{"$f":"IFERROR(INDEX('Work Order Master'!$S:$S,MATCH(A826,'Work Order Master'!$K:$K,0)),\"New\")","v":1974},{"$f":"IFERROR(INDEX('Work Order Master'!T:T,MATCH(WORKORDERS!$Q826,'Work Order Master'!$S:$S,0)),Q826)","v":"ADVANCED DIPLOMA GIS"},{"$f":"IFERROR(INDEX('FRS CC Master'!A:A,MATCH(WORKORDERS!$Q826*1,'FRS CC Master'!$C:$C,0)),WORKORDERS!$L826)","v":"Social Sciences"},{"$f":"IFERROR(VLOOKUP($A826,'Work Order Master'!$K:$Q,7,FALSE),\"Remove\")","v":"N"}]
["22849-1-1","SS Lands Management Certificate","Active","22849-1","SS Lands Management Certificate","(blank)","2849","Lands Management Certificate","280","Social Sciences","280","Social Sciences","(blank)","208","Instruction","no",{"$f":"IFERROR(INDEX('Work Order Master'!$S:$S,MATCH(A827,'Work Order Master'!$K:$K,0)),\"New\")","v":1971},{"$f":"IFERROR(INDEX('Work Order Master'!T:T,MATCH(WORKORDERS!$Q827,'Work Order Master'!$S:$S,0)),Q827)","v":"LANDS MGMT CERT PROGRAM"},{"$f":"IFERROR(INDEX('FRS CC Master'!A:A,MATCH(WORKORDERS!$Q827*1,'FRS CC Master'!$C:$C,0)),WORKORDERS!$L827)","v":"Social Sciences"},{"$f":"IFERROR(VLOOKUP($A827,'Work Order Master'!$K:$Q,7,FALSE),\"Remove\")","v":"N"}]
["22850-1-1","SS Master of Community Planning ","Active","22850-1","SS Master of Community Planning ","(blank)","2850","Master of Community Planning ","280","Social Sciences","280","Social Sciences","(blank)","208","Instruction","no",{"$f":"IFERROR(INDEX('Work Order Master'!$S:$S,MATCH(A828,'Work Order Master'!$K:$K,0)),\"New\")","v":1970},{"$f":"IFERROR(INDEX('Work Order Master'!T:T,MATCH(WORKORDERS!$Q828,'Work Order Master'!$S:$S,0)),Q828)","v":"MASTERS-COMM.PLANNING"},{"$f":"IFERROR(INDEX('FRS CC Master'!A:A,MATCH(WORKORDERS!$Q828*1,'FRS CC Master'!$C:$C,0)),WORKORDERS!$L828)","v":"Social Sciences"},{"$f":"IFERROR(VLOOKUP($A828,'Work Order Master'!$K:$Q,7,FALSE),\"Remove\")","v":"N"}]
["22855-1-1","SS Master of Geographic Information Systems Applications","Active","22855-1","SS Master of Geographic Information Systems Applications","(blank)","2855","Master of Geographic Information Systems Applications","280","Social Sciences","280","Social Sciences","(blank)","208","Instruction","no",{"$f":"IFERROR(INDEX('Work Order Master'!$S:$S,MATCH(A829,'Work Order Master'!$K:$K,0)),\"New\")","v":1975},{"$f":"IFERROR(INDEX('Work Order Master'!T:T,MATCH(WORKORDERS!$Q829,'Work Order Master'!$S:$S,0)),Q829)","v":"MASTERS-GIS APPLICATIONS"},{"$f":"IFERROR(INDEX('FRS CC Master'!A:A,MATCH(WORKORDERS!$Q829*1,'FRS CC Master'!$C:$C,0)),WORKORDERS!$L829)","v":"Social Sciences"},{"$f":"IFERROR(VLOOKUP($A829,'Work Order Master'!$K:$Q,7,FALSE),\"Remove\")","v":"N"}]
["22901-1-1","TAT Faculty Contracts - Development","Active","22901-1","TAT Faculty Contracts","(blank)","2901","Trades and Applied Technology - Initiatives","290","Trades and Applied Technology","290","Trades and Applied Technology","(blank)","219","Contract activity","no",{"$f":"IFERROR(INDEX('Work Order Master'!$S:$S,MATCH(A830,'Work Order Master'!$K:$K,0)),\"New\")","v":3944},{"$f":"IFERROR(INDEX('Work Order Master'!T:T,MATCH(WORKORDERS!$Q830,'Work Order Master'!$S:$S,0)),Q830)","v":"CONTRACT DEVELOPMENT"},{"$f":"IFERROR(INDEX('FRS CC Master'!A:A,MATCH(WORKORDERS!$Q830*1,'FRS CC Master'!$C:$C,0)),WORKORDERS!$L830)","v":"Trades and Applied Technology"},{"$f":"IFERROR(VLOOKUP($A830,'Work Order Master'!$K:$Q,7,FALSE),\"Remove\")","v":"N"}]
["22901-1-2","TAT Faculty Contracts- Removing Barriers","Parked","22901-1","TAT Faculty Contracts","(blank)","2901","Trades and Applied Technology - Initiatives","290","Trades and Applied Technology","290","Trades and Applied Technology","(blank)","219","Contract activity","no",{"$f":"IFERROR(INDEX('Work Order Master'!$S:$S,MATCH(A831,'Work Order Master'!$K:$K,0)),\"New\")","v":"New"},{"$f":"IFERROR(INDEX('Work Order Master'!T:T,MATCH(WORKORDERS!$Q831,'Work Order Master'!$S:$S,0)),Q831)","v":"New"},{"$f":"IFERROR(INDEX('FRS CC Master'!A:A,MATCH(WORKORDERS!$Q831*1,'FRS CC Master'!$C:$C,0)),WORKORDERS!$L831)","v":"Trades and Applied Technology"},{"$f":"IFERROR(VLOOKUP($A831,'Work Order Master'!$K:$Q,7,FALSE),\"Remove\")","v":"Remove"}]
["22901-1-3","TAT Faculty Contracts- Hair Harmonization - Trades Training BC","Active","22901-1","TAT Faculty Contracts","(blank)","2901","Trades and Applied Technology - Initiatives","290","Trades and Applied Technology","290","Trades and Applied Technology","(blank)","219","Contract activity","no",{"$f":"IFERROR(INDEX('Work Order Master'!$S:$S,MATCH(A832,'Work Order Master'!$K:$K,0)),\"New\")","v":3991},{"$f":"IFERROR(INDEX('Work Order Master'!T:T,MATCH(WORKORDERS!$Q832,'Work Order Master'!$S:$S,0)),Q832)","v":"HAIR HARMONIZATION"},{"$f":"IFERROR(INDEX('FRS CC Master'!A:A,MATCH(WORKORDERS!$Q832*1,'FRS CC Master'!$C:$C,0)),WORKORDERS!$L832)","v":"Trades and Applied Technology"},{"$f":"IFERROR(VLOOKUP($A832,'Work Order Master'!$K:$Q,7,FALSE),\"Remove\")","v":"N"}]
["22901-2-1","TAT Skills Canada Competition","Active","22901-2","TAT Skills Canada Competition","(blank)","2901","Trades and Applied Technology - Initiatives","290","Trades and Applied Technology","290","Trades and Applied Technology","(blank)","224","Field Experience / Practicum","no",{"$f":"IFERROR(INDEX('Work Order Master'!$S:$S,MATCH(A833,'Work Order Master'!$K:$K,0)),\"New\")","v":3948},{"$f":"IFERROR(INDEX('Work Order Master'!T:T,MATCH(WORKORDERS!$Q833,'Work Order Master'!$S:$S,0)),Q833)","v":"SKILLS CANADA COMPETITION"},{"$f":"IFERROR(INDEX('FRS CC Master'!A:A,MATCH(WORKORDERS!$Q833*1,'FRS CC Master'!$C:$C,0)),WORKORDERS!$L833)","v":"Trades and Applied Technology"},{"$f":"IFERROR(VLOOKUP($A833,'Work Order Master'!$K:$Q,7,FALSE),\"Remove\")","v":"N"}]
["22905-1-1","TAT Office Administration - Rentals & Deposits","Active","22905-1","TAT Office Administration - Rentals & Deposits","(blank)","2905","Office Administration","290","Trades and Applied Technology","290","Trades and Applied Technology","(blank)","208","Instruction","no",{"$f":"IFERROR(INDEX('Work Order Master'!$S:$S,MATCH(A834,'Work Order Master'!$K:$K,0)),\"New\")","v":3960},{"$f":"IFERROR(INDEX('Work Order Master'!T:T,MATCH(WORKORDERS!$Q834,'Work Order Master'!$S:$S,0)),Q834)","v":"OA CALC.RENTAL/DEPOSIT"},{"$f":"IFERROR(INDEX('FRS CC Master'!A:A,MATCH(WORKORDERS!$Q834*1,'FRS CC Master'!$C:$C,0)),WORKORDERS!$L834)","v":"Trades and Applied Technology"},{"$f":"IFERROR(VLOOKUP($A834,'Work Order Master'!$K:$Q,7,FALSE),\"Remove\")","v":"N"}]
["22905-2-1","TAT Office Administration - Cowichan Contract","Active","22905-2","TAT Office Administration - Cowichan Contract","(blank)","2905","Office Administration","290","Trades and Applied Technology","290","Trades and Applied Technology","(blank)","219","Contract activity","no",{"$f":"IFERROR(INDEX('Work Order Master'!$S:$S,MATCH(A835,'Work Order Master'!$K:$K,0)),\"New\")","v":3980},{"$f":"IFERROR(INDEX('Work Order Master'!T:T,MATCH(WORKORDERS!$Q835,'Work Order Master'!$S:$S,0)),Q835)","v":"OA COST RECOVERY-COW"},{"$f":"IFERROR(INDEX('FRS CC Master'!A:A,MATCH(WORKORDERS!$Q835*1,'FRS CC Master'!$C:$C,0)),WORKORDERS!$L835)","v":"Trades and Applied Technology"},{"$f":"IFERROR(VLOOKUP($A835,'Work Order Master'!$K:$Q,7,FALSE),\"Remove\")","v":"N"}]
["22915-1-1","TAT Carpentry - Sunshine Coast SD #46 Partnership","Active","22915-1","TAT Carpentry - Sunshine Coast SD #46 Partnership","(blank)","2915","Carpentry","290","Trades and Applied Technology","290","Trades and Applied Technology","(blank)","219","Contract activity",{"$f":"IF(OR(A836=A835,A836=A837),\"yes\",\"no\")","v":"no"},{"$f":"IFERROR(INDEX('Work Order Master'!$S:$S,MATCH(A836,'Work Order Master'!$K:$K,0)),\"New\")","v":3917},{"$f":"IFERROR(INDEX('Work Order Master'!T:T,MATCH(WORKORDERS!$Q836,'Work Order Master'!$S:$S,0)),Q836)","v":"SCH.DIST#46 PARTNERSHIP"},{"$f":"IFERROR(INDEX('FRS CC Master'!A:A,MATCH(WORKORDERS!$Q836*1,'FRS CC Master'!$C:$C,0)),WORKORDERS!$L836)","v":"Trades and Applied Technology"},{"$f":"IFERROR(VLOOKUP($A836,'Work Order Master'!$K:$Q,7,FALSE),\"Remove\")","v":"N"}]
["22915-2-1","TAT Carpentry - Aboriginal Construction - Pt Alberni, Nuuchahnulth","Active","22915-2","TAT Carpentry - Aboriginal Construction","(blank)","2915","Carpentry","290","Trades and Applied Technology","290","Trades and Applied Technology","(blank)","219","Contract activity","no",{"$f":"IFERROR(INDEX('Work Order Master'!$S:$S,MATCH(A837,'Work Order Master'!$K:$K,0)),\"New\")","v":3911},{"$f":"IFERROR(INDEX('Work Order Master'!T:T,MATCH(WORKORDERS!$Q837,'Work Order Master'!$S:$S,0)),Q837)","v":"ABORIGINAL CONSTRUCTION"},{"$f":"IFERROR(INDEX('FRS CC Master'!A:A,MATCH(WORKORDERS!$Q837*1,'FRS CC Master'!$C:$C,0)),WORKORDERS!$L837)","v":"Trades and Applied Technology"},{"$f":"IFERROR(VLOOKUP($A837,'Work Order Master'!$K:$Q,7,FALSE),\"Remove\")","v":"N"}]
["22920-1-1","TAT Culinary Arts Contract - Diploma","Active","22920-1","TAT Culinary Arts Contract - Diploma","(blank)","2920","Culinary Arts","290","Trades and Applied Technology","290","Trades and Applied Technology","(blank)","219","Contract activity","no",{"$f":"IFERROR(INDEX('Work Order Master'!$S:$S,MATCH(A838,'Work Order Master'!$K:$K,0)),\"New\")","v":3914},{"$f":"IFERROR(INDEX('Work Order Master'!T:T,MATCH(WORKORDERS!$Q838,'Work Order Master'!$S:$S,0)),Q838)","v":"CULINARY DIPLOMA"},{"$f":"IFERROR(INDEX('FRS CC Master'!A:A,MATCH(WORKORDERS!$Q838*1,'FRS CC Master'!$C:$C,0)),WORKORDERS!$L838)","v":"Trades and Applied Technology"},{"$f":"IFERROR(VLOOKUP($A838,'Work Order Master'!$K:$Q,7,FALSE),\"Remove\")","v":"N"}]
["22930-1-1","TAT Hairdressing Contract - Cowichan SD #79","Active","22930-1","TAT Hairdressing Contract - Cowichan SD #79","(blank)","2930","Hairdressing","290","Trades and Applied Technology","290","Trades and Applied Technology","(blank)","219","Contract activity","no",{"$f":"IFERROR(INDEX('Work Order Master'!$S:$S,MATCH(A839,'Work Order Master'!$K:$K,0)),\"New\")","v":3985},{"$f":"IFERROR(INDEX('Work Order Master'!T:T,MATCH(WORKORDERS!$Q839,'Work Order Master'!$S:$S,0)),Q839)","v":"HAIRDRESSING SD#79-COW"},{"$f":"IFERROR(INDEX('FRS CC Master'!A:A,MATCH(WORKORDERS!$Q839*1,'FRS CC Master'!$C:$C,0)),WORKORDERS!$L839)","v":"Trades and Applied Technology"},{"$f":"IFERROR(VLOOKUP($A839,'Work Order Master'!$K:$Q,7,FALSE),\"Remove\")","v":"N"}]
["22930-2-1","TAT Hairdressing Contract - Saanich SD #63 (Cowichan)","Active","22930-2","TAT Hairdressing Contract - Saanich SD #63 (Cowichan)","(blank)","2930","Hairdressing","290","Trades and Applied Technology","290","Trades and Applied Technology","(blank)","219","Contract activity","no",{"$f":"IFERROR(INDEX('Work Order Master'!$S:$S,MATCH(A840,'Work Order Master'!$K:$K,0)),\"New\")","v":3983},{"$f":"IFERROR(INDEX('Work Order Master'!T:T,MATCH(WORKORDERS!$Q840,'Work Order Master'!$S:$S,0)),Q840)","v":"HAIRDRESSING SD#63-COW"},{"$f":"IFERROR(INDEX('FRS CC Master'!A:A,MATCH(WORKORDERS!$Q840*1,'FRS CC Master'!$C:$C,0)),WORKORDERS!$L840)","v":"Trades and Applied Technology"},{"$f":"IFERROR(VLOOKUP($A840,'Work Order Master'!$K:$Q,7,FALSE),\"Remove\")","v":"N"}]
["22930-3-1","TAT Hairdressing Contract - Powell River","Active","22930-3","TAT Hairdressing Contract - Powell River","(blank)","2930","Hairdressing","290","Trades and Applied Technology","290","Trades and Applied Technology","(blank)","219","Contract activity","no",{"$f":"IFERROR(INDEX('Work Order Master'!$S:$S,MATCH(A841,'Work Order Master'!$K:$K,0)),\"New\")","v":3990},{"$f":"IFERROR(INDEX('Work Order Master'!T:T,MATCH(WORKORDERS!$Q841,'Work Order Master'!$S:$S,0)),Q841)","v":"HAIRDRESSING-POWELL RIVER"},{"$f":"IFERROR(INDEX('FRS CC Master'!A:A,MATCH(WORKORDERS!$Q841*1,'FRS CC Master'!$C:$C,0)),WORKORDERS!$L841)","v":"Trades and Applied Technology"},{"$f":"IFERROR(VLOOKUP($A841,'Work Order Master'!$K:$Q,7,FALSE),\"Remove\")","v":"N"}]
["22935-1-1","TAT Heavy Equipment Operator","Active","22935-1","TAT Heavy Equipment Operator","(blank)","2935","Heavy Equipment Operator","290","Trades and Applied Technology","290","Trades and Applied Technology","(blank)","208","Instruction","no",{"$f":"IFERROR(INDEX('Work Order Master'!$S:$S,MATCH(A842,'Work Order Master'!$K:$K,0)),\"New\")","v":3900},{"$f":"IFERROR(INDEX('Work Order Master'!T:T,MATCH(WORKORDERS!$Q842,'Work Order Master'!$S:$S,0)),Q842)","v":"HEAVY EQUIP.OP.A075"},{"$f":"IFERROR(INDEX('FRS CC Master'!A:A,MATCH(WORKORDERS!$Q842*1,'FRS CC Master'!$C:$C,0)),WORKORDERS!$L842)","v":"Trades and Applied Technology"},{"$f":"IFERROR(VLOOKUP($A842,'Work Order Master'!$K:$Q,7,FALSE),\"Remove\")","v":"N"}]
["22935-2-1","TAT HEO Simulator Program","Active","22935-2","TAT Heavy Equipment Operator - Simulator Program","(blank)","2935","Heavy Equipment Operator","290","Trades and Applied Technology","290","Trades and Applied Technology","(blank)","208","Instruction","no",{"$f":"IFERROR(INDEX('Work Order Master'!$S:$S,MATCH(A843,'Work Order Master'!$K:$K,0)),\"New\")","v":3909},{"$f":"IFERROR(INDEX('Work Order Master'!T:T,MATCH(WORKORDERS!$Q843,'Work Order Master'!$S:$S,0)),Q843)","v":"HEO SIMULATOR PROGRAM"},{"$f":"IFERROR(INDEX('FRS CC Master'!A:A,MATCH(WORKORDERS!$Q843*1,'FRS CC Master'!$C:$C,0)),WORKORDERS!$L843)","v":"Trades and Applied Technology"},{"$f":"IFERROR(VLOOKUP($A843,'Work Order Master'!$K:$Q,7,FALSE),\"Remove\")","v":"N"}]
["22935-2-2","TAT HEO Simulator Program - Forest Centre","Active","22935-2","TAT Heavy Equipment Operator - Simulator Program","(blank)","2935","Heavy Equipment Operator","290","Trades and Applied Technology","290","Trades and Applied Technology","(blank)","208","Instruction","no",{"$f":"IFERROR(INDEX('Work Order Master'!$S:$S,MATCH(A844,'Work Order Master'!$K:$K,0)),\"New\")","v":3926},{"$f":"IFERROR(INDEX('Work Order Master'!T:T,MATCH(WORKORDERS!$Q844,'Work Order Master'!$S:$S,0)),Q844)","v":"FOREST CENTRE"},{"$f":"IFERROR(INDEX('FRS CC Master'!A:A,MATCH(WORKORDERS!$Q844*1,'FRS CC Master'!$C:$C,0)),WORKORDERS!$L844)","v":"Trades and Applied Technology"},{"$f":"IFERROR(VLOOKUP($A844,'Work Order Master'!$K:$Q,7,FALSE),\"Remove\")","v":"N"}]
["22935-3-1","TAT Driver Training","Parked","22935-3","TAT Driver Training","(blank)","2935","Heavy Equipment Operator","290","Trades and Applied Technology","290","Trades and Applied Technology","(blank)","208","Instruction","no",{"$f":"IFERROR(INDEX('Work Order Master'!$S:$S,MATCH(A845,'Work Order Master'!$K:$K,0)),\"New\")","v":"New"},{"$f":"IFERROR(INDEX('Work Order Master'!T:T,MATCH(WORKORDERS!$Q845,'Work Order Master'!$S:$S,0)),Q845)","v":"New"},{"$f":"IFERROR(INDEX('FRS CC Master'!A:A,MATCH(WORKORDERS!$Q845*1,'FRS CC Master'!$C:$C,0)),WORKORDERS!$L845)","v":"Trades and Applied Technology"},{"$f":"IFERROR(VLOOKUP($A845,'Work Order Master'!$K:$Q,7,FALSE),\"Remove\")","v":"Remove"}]
["22935-4-1","TAT Forklift Training","Active","22935-4","TAT Forklift Training","(blank)","2935","Heavy Equipment Operator","290","Trades and Applied Technology","290","Trades and Applied Technology","(blank)","208","Instruction","no",{"$f":"IFERROR(INDEX('Work Order Master'!$S:$S,MATCH(A846,'Work Order Master'!$K:$K,0)),\"New\")","v":3903},{"$f":"IFERROR(INDEX('Work Order Master'!T:T,MATCH(WORKORDERS!$Q846,'Work Order Master'!$S:$S,0)),Q846)","v":"FORKLIFT TRAINING"},{"$f":"IFERROR(INDEX('FRS CC Master'!A:A,MATCH(WORKORDERS!$Q846*1,'FRS CC Master'!$C:$C,0)),WORKORDERS!$L846)","v":"Trades and Applied Technology"},{"$f":"IFERROR(VLOOKUP($A846,'Work Order Master'!$K:$Q,7,FALSE),\"Remove\")","v":"N"}]
["22935-5-1","TAT Heavy Metal Rocks","Active","22935-5","TAT Heavy Metal Rocks","(blank)","2935","Heavy Equipment Operator","290","Trades and Applied Technology","290","Trades and Applied Technology","(blank)","208","Instruction","no",{"$f":"IFERROR(INDEX('Work Order Master'!$S:$S,MATCH(A847,'Work Order Master'!$K:$K,0)),\"New\")","v":3904},{"$f":"IFERROR(INDEX('Work Order Master'!T:T,MATCH(WORKORDERS!$Q847,'Work Order Master'!$S:$S,0)),Q847)","v":"HEAVY METAL ROCKS"},{"$f":"IFERROR(INDEX('FRS CC Master'!A:A,MATCH(WORKORDERS!$Q847*1,'FRS CC Master'!$C:$C,0)),WORKORDERS!$L847)","v":"Trades and Applied Technology"},{"$f":"IFERROR(VLOOKUP($A847,'Work Order Master'!$K:$Q,7,FALSE),\"Remove\")","v":"N"}]
["22945-1-1","TAT Horticulture Contract - Tamagawa","Active","22945-1","TAT Horticulture Contract - Tamagawa","(blank)","2945","Horticultural Technician","290","Trades and Applied Technology","290","Trades and Applied Technology","(blank)","219","Contract activity","no",{"$f":"IFERROR(INDEX('Work Order Master'!$S:$S,MATCH(A848,'Work Order Master'!$K:$K,0)),\"New\")","v":3930},{"$f":"IFERROR(INDEX('Work Order Master'!T:T,MATCH(WORKORDERS!$Q848,'Work Order Master'!$S:$S,0)),Q848)","v":"TAMAGAWA INTERNATIONAL FD"},{"$f":"IFERROR(INDEX('FRS CC Master'!A:A,MATCH(WORKORDERS!$Q848*1,'FRS CC Master'!$C:$C,0)),WORKORDERS!$L848)","v":"Trades and Applied Technology"},{"$f":"IFERROR(VLOOKUP($A848,'Work Order Master'!$K:$Q,7,FALSE),\"Remove\")","v":"N"}]
["22945-2-1","TAT Horticulture Contract - Forest Seedling","Parked","22945-2","TAT Horticulture Contract - Forest Seedling","(blank)","2945","Horticultural Technician","290","Trades and Applied Technology","290","Trades and Applied Technology","(blank)","219","Contract activity","no",{"$f":"IFERROR(INDEX('Work Order Master'!$S:$S,MATCH(A849,'Work Order Master'!$K:$K,0)),\"New\")","v":"New"},{"$f":"IFERROR(INDEX('Work Order Master'!T:T,MATCH(WORKORDERS!$Q849,'Work Order Master'!$S:$S,0)),Q849)","v":"New"},{"$f":"IFERROR(INDEX('FRS CC Master'!A:A,MATCH(WORKORDERS!$Q849*1,'FRS CC Master'!$C:$C,0)),WORKORDERS!$L849)","v":"Trades and Applied Technology"},{"$f":"IFERROR(VLOOKUP($A849,'Work Order Master'!$K:$Q,7,FALSE),\"Remove\")","v":"Remove"}]
["22945-3-1","TAT Horticulture - Nursery","Parked","22945-3","TAT Horticulture - Nursery","(blank)","2945","Horticultural Technician","290","Trades and Applied Technology","290","Trades and Applied Technology","(blank)","227","Student Sales","no",{"$f":"IFERROR(INDEX('Work Order Master'!$S:$S,MATCH(A850,'Work Order Master'!$K:$K,0)),\"New\")","v":"New"},{"$f":"IFERROR(INDEX('Work Order Master'!T:T,MATCH(WORKORDERS!$Q850,'Work Order Master'!$S:$S,0)),Q850)","v":"New"},{"$f":"IFERROR(INDEX('FRS CC Master'!A:A,MATCH(WORKORDERS!$Q850*1,'FRS CC Master'!$C:$C,0)),WORKORDERS!$L850)","v":"Trades and Applied Technology"},{"$f":"IFERROR(VLOOKUP($A850,'Work Order Master'!$K:$Q,7,FALSE),\"Remove\")","v":"Remove"}]
["22950-1-1","TAT Information Technology and Applied Systems - Contract - SD #79","Active","22950-1","TAT Information Technology and Applied Systems - Contract - SD #79","(blank)","2950","Information Technology & Applied Systems","290","Trades and Applied Technology","290","Trades and Applied Technology","(blank)","219","Contract activity","no",{"$f":"IFERROR(INDEX('Work Order Master'!$S:$S,MATCH(A851,'Work Order Master'!$K:$K,0)),\"New\")","v":3916},{"$f":"IFERROR(INDEX('Work Order Master'!T:T,MATCH(WORKORDERS!$Q851,'Work Order Master'!$S:$S,0)),Q851)","v":"SCH.DIST#79 PROGRAMS"},{"$f":"IFERROR(INDEX('FRS CC Master'!A:A,MATCH(WORKORDERS!$Q851*1,'FRS CC Master'!$C:$C,0)),WORKORDERS!$L851)","v":"Trades and Applied Technology"},{"$f":"IFERROR(VLOOKUP($A851,'Work Order Master'!$K:$Q,7,FALSE),\"Remove\")","v":"N"}]
["22960-1-1","TAT Power Engineering - Contract","Active","22960-1","TAT Power Engineering - Contract","(blank)","2960","Power Engineering","290","Trades and Applied Technology","290","Trades and Applied Technology","(blank)","208","Instruction","no",{"$f":"IFERROR(INDEX('Work Order Master'!$S:$S,MATCH(A852,'Work Order Master'!$K:$K,0)),\"New\")","v":3912},{"$f":"IFERROR(INDEX('Work Order Master'!T:T,MATCH(WORKORDERS!$Q852,'Work Order Master'!$S:$S,0)),Q852)","v":"POWER ENGINEERING"},{"$f":"IFERROR(INDEX('FRS CC Master'!A:A,MATCH(WORKORDERS!$Q852*1,'FRS CC Master'!$C:$C,0)),WORKORDERS!$L852)","v":"Trades and Applied Technology"},{"$f":"IFERROR(VLOOKUP($A852,'Work Order Master'!$K:$Q,7,FALSE),\"Remove\")","v":"N"}]
["22965-1-1","TAT Baking Donations","Active","22965-1","TAT Baking Donations","(blank)","2965","Professional Baking & Pastry Arts ","290","Trades and Applied Technology","290","Trades and Applied Technology","(blank)","208","Instruction","no",{"$f":"IFERROR(INDEX('Work Order Master'!$S:$S,MATCH(A853,'Work Order Master'!$K:$K,0)),\"New\")","v":3949},{"$f":"IFERROR(INDEX('Work Order Master'!T:T,MATCH(WORKORDERS!$Q853,'Work Order Master'!$S:$S,0)),Q853)","v":"BAKING DONATIONS"},{"$f":"IFERROR(INDEX('FRS CC Master'!A:A,MATCH(WORKORDERS!$Q853*1,'FRS CC Master'!$C:$C,0)),WORKORDERS!$L853)","v":"Trades and Applied Technology"},{"$f":"IFERROR(VLOOKUP($A853,'Work Order Master'!$K:$Q,7,FALSE),\"Remove\")","v":"N"}]
["22965-2-1","TAT Baking Diploma","Active","22965-2","TAT Baking Diploma","(blank)","2965","Professional Baking & Pastry Arts ","290","Trades and Applied Technology","290","Trades and Applied Technology","(blank)","208","Instruction","no",{"$f":"IFERROR(INDEX('Work Order Master'!$S:$S,MATCH(A854,'Work Order Master'!$K:$K,0)),\"New\")","v":3915},{"$f":"IFERROR(INDEX('Work Order Master'!T:T,MATCH(WORKORDERS!$Q854,'Work Order Master'!$S:$S,0)),Q854)","v":"BAKING DIPLOMA"},{"$f":"IFERROR(INDEX('FRS CC Master'!A:A,MATCH(WORKORDERS!$Q854*1,'FRS CC Master'!$C:$C,0)),WORKORDERS!$L854)","v":"Trades and Applied Technology"},{"$f":"IFERROR(VLOOKUP($A854,'Work Order Master'!$K:$Q,7,FALSE),\"Remove\")","v":"N"}]
["22972-1-1","TAT Trades Discovery Contracts - Nanaimo","Parked","22972-1","TAT Trades Discovery Contracts - Nanaimo","(blank)","2972","Trades Discovery","290","Trades and Applied Technology","290","Trades and Applied Technology","(blank)","219","Contract activity","no",{"$f":"IFERROR(INDEX('Work Order Master'!$S:$S,MATCH(A855,'Work Order Master'!$K:$K,0)),\"New\")","v":"New"},{"$f":"IFERROR(INDEX('Work Order Master'!T:T,MATCH(WORKORDERS!$Q855,'Work Order Master'!$S:$S,0)),Q855)","v":"New"},{"$f":"IFERROR(INDEX('FRS CC Master'!A:A,MATCH(WORKORDERS!$Q855*1,'FRS CC Master'!$C:$C,0)),WORKORDERS!$L855)","v":"Trades and Applied Technology"},{"$f":"IFERROR(VLOOKUP($A855,'Work Order Master'!$K:$Q,7,FALSE),\"Remove\")","v":"Remove"}]
["22975-1-1","TAT Welding - Nanaimo Welder-Fitter","Active","22975-1","TAT Welding - Nanaimo Welder-Fitter","(blank)","2975","Welding","290","Trades and Applied Technology","290","Trades and Applied Technology","(blank)","208","Instruction","no",{"$f":"IFERROR(INDEX('Work Order Master'!$S:$S,MATCH(A856,'Work Order Master'!$K:$K,0)),\"New\")","v":3939},{"$f":"IFERROR(INDEX('Work Order Master'!T:T,MATCH(WORKORDERS!$Q856,'Work Order Master'!$S:$S,0)),Q856)","v":"WELDER-FITTER NAN 2015/16"},{"$f":"IFERROR(INDEX('FRS CC Master'!A:A,MATCH(WORKORDERS!$Q856*1,'FRS CC Master'!$C:$C,0)),WORKORDERS!$L856)","v":"Trades and Applied Technology"},{"$f":"IFERROR(VLOOKUP($A856,'Work Order Master'!$K:$Q,7,FALSE),\"Remove\")","v":"N"}]
["22975-2-1","TAT Welding - Cowichan Welder-Fitter","Active","22975-2","TAT Welding - Cowichan Welder-Fitter","(blank)","2975","Welding","290","Trades and Applied Technology","290","Trades and Applied Technology","(blank)","208","Instruction","no",{"$f":"IFERROR(INDEX('Work Order Master'!$S:$S,MATCH(A857,'Work Order Master'!$K:$K,0)),\"New\")","v":3938},{"$f":"IFERROR(INDEX('Work Order Master'!T:T,MATCH(WORKORDERS!$Q857,'Work Order Master'!$S:$S,0)),Q857)","v":"WELDER FITTER COWICHAN"},{"$f":"IFERROR(INDEX('FRS CC Master'!A:A,MATCH(WORKORDERS!$Q857*1,'FRS CC Master'!$C:$C,0)),WORKORDERS!$L857)","v":"Trades and Applied Technology"},{"$f":"IFERROR(VLOOKUP($A857,'Work Order Master'!$K:$Q,7,FALSE),\"Remove\")","v":"N"}]
["23510-1-1","IEE Indigenous Mentorship","Active","23510-1","IEE Indigenous Mentorship","(blank)","3510","External Contracts - Indigenous Mentorships","350","Indigenous Education and Engagement","350","Indigenous Education and Engagement","(blank)","219","Contract activity","no",{"$f":"IFERROR(INDEX('Work Order Master'!$S:$S,MATCH(A858,'Work Order Master'!$K:$K,0)),\"New\")","v":6980},{"$f":"IFERROR(INDEX('Work Order Master'!T:T,MATCH(WORKORDERS!$Q858,'Work Order Master'!$S:$S,0)),Q858)","v":"INDIGENOUS MENTORSHIP"},{"$f":"IFERROR(INDEX('FRS CC Master'!A:A,MATCH(WORKORDERS!$Q858*1,'FRS CC Master'!$C:$C,0)),WORKORDERS!$L858)","v":"Indigenous Education and Engagement"},{"$f":"IFERROR(VLOOKUP($A858,'Work Order Master'!$K:$Q,7,FALSE),\"Remove\")","v":"N"}]
["23515-1-1","IEE ASP - Community Lead Projects","Active","23515-1","IEE ASP - Community Lead Projects","(blank)","3515","External Contracts - ASP Community Projects","350","Indigenous Education and Engagement","350","Indigenous Education and Engagement","(blank)","219","Contract activity","no",{"$f":"IFERROR(INDEX('Work Order Master'!$S:$S,MATCH(A859,'Work Order Master'!$K:$K,0)),\"New\")","v":6981},{"$f":"IFERROR(INDEX('Work Order Master'!T:T,MATCH(WORKORDERS!$Q859,'Work Order Master'!$S:$S,0)),Q859)","v":"ASP-COMMUNITY-LEAD PROJ."},{"$f":"IFERROR(INDEX('FRS CC Master'!A:A,MATCH(WORKORDERS!$Q859*1,'FRS CC Master'!$C:$C,0)),WORKORDERS!$L859)","v":"Indigenous Education and Engagement"},{"$f":"IFERROR(VLOOKUP($A859,'Work Order Master'!$K:$Q,7,FALSE),\"Remove\")","v":"N"}]
["23520-1-1","IEE ASP - VIU Lead Projects","Active","23520-1","IEE ASP - VIU Lead Projects","(blank)","3520","External Contracts - ASP VIU Lead Projects","350","Indigenous Education and Engagement","350","Indigenous Education and Engagement","(blank)","219","Contract activity","no",{"$f":"IFERROR(INDEX('Work Order Master'!$S:$S,MATCH(A860,'Work Order Master'!$K:$K,0)),\"New\")","v":6982},{"$f":"IFERROR(INDEX('Work Order Master'!T:T,MATCH(WORKORDERS!$Q860,'Work Order Master'!$S:$S,0)),Q860)","v":"ASP-VIU-LEAD PROJECTS"},{"$f":"IFERROR(INDEX('FRS CC Master'!A:A,MATCH(WORKORDERS!$Q860*1,'FRS CC Master'!$C:$C,0)),WORKORDERS!$L860)","v":"Indigenous Education and Engagement"},{"$f":"IFERROR(VLOOKUP($A860,'Work Order Master'!$K:$Q,7,FALSE),\"Remove\")","v":"N"}]
["23520-2-1","IEE ASP - IUB Program","Active","23520-2","IEE ASP - IUB Program","(blank)","3520","External Contracts - ASP VIU Lead Projects","350","Indigenous Education and Engagement","350","Indigenous Education and Engagement","(blank)","219","Contract activity","no",{"$f":"IFERROR(INDEX('Work Order Master'!$S:$S,MATCH(A861,'Work Order Master'!$K:$K,0)),\"New\")","v":7711},{"$f":"IFERROR(INDEX('Work Order Master'!T:T,MATCH(WORKORDERS!$Q861,'Work Order Master'!$S:$S,0)),Q861)","v":"ASP-AUBP-NANAIMO & COWICH"},{"$f":"IFERROR(INDEX('FRS CC Master'!A:A,MATCH(WORKORDERS!$Q861*1,'FRS CC Master'!$C:$C,0)),WORKORDERS!$L861)","v":"Indigenous Education and Engagement"},{"$f":"IFERROR(VLOOKUP($A861,'Work Order Master'!$K:$Q,7,FALSE),\"Remove\")","v":"N"}]
["23520-3-1","IEE ASP - Shq’athut Cultural Events","Active","23520-3","IEE ASP - Cultural Events","(blank)","3520","External Contracts - ASP VIU Lead Projects","350","Indigenous Education and Engagement","350","Indigenous Education and Engagement","(blank)","219","Contract activity","no",{"$f":"IFERROR(INDEX('Work Order Master'!$S:$S,MATCH(A862,'Work Order Master'!$K:$K,0)),\"New\")","v":7710},{"$f":"IFERROR(INDEX('Work Order Master'!T:T,MATCH(WORKORDERS!$Q862,'Work Order Master'!$S:$S,0)),Q862)","v":"ASP-CULTURE EVENTS"},{"$f":"IFERROR(INDEX('FRS CC Master'!A:A,MATCH(WORKORDERS!$Q862*1,'FRS CC Master'!$C:$C,0)),WORKORDERS!$L862)","v":"Indigenous Education and Engagement"},{"$f":"IFERROR(VLOOKUP($A862,'Work Order Master'!$K:$Q,7,FALSE),\"Remove\")","v":"N"}]
["23520-4-1","IEE ASP - Language HLQ","Active","23520-4","IEE ASP - Language","(blank)","3520","External Contracts - ASP VIU Lead Projects","350","Indigenous Education and Engagement","350","Indigenous Education and Engagement","(blank)","219","Contract activity","no",{"$f":"IFERROR(INDEX('Work Order Master'!$S:$S,MATCH(A863,'Work Order Master'!$K:$K,0)),\"New\")","v":7712},{"$f":"IFERROR(INDEX('Work Order Master'!T:T,MATCH(WORKORDERS!$Q863,'Work Order Master'!$S:$S,0)),Q863)","v":"ASP-LANGUAGE-COASTAL"},{"$f":"IFERROR(INDEX('FRS CC Master'!A:A,MATCH(WORKORDERS!$Q863*1,'FRS CC Master'!$C:$C,0)),WORKORDERS!$L863)","v":"Indigenous Education and Engagement"},{"$f":"IFERROR(VLOOKUP($A863,'Work Order Master'!$K:$Q,7,FALSE),\"Remove\")","v":"N"}]
["23520-4-2","IEE ASP - Language KWA","Active","23520-4","IEE ASP - Language","(blank)","3520","External Contracts - ASP VIU Lead Projects","350","Indigenous Education and Engagement","350","Indigenous Education and Engagement","(blank)","219","Contract activity","no",{"$f":"IFERROR(INDEX('Work Order Master'!$S:$S,MATCH(A864,'Work Order Master'!$K:$K,0)),\"New\")","v":7713},{"$f":"IFERROR(INDEX('Work Order Master'!T:T,MATCH(WORKORDERS!$Q864,'Work Order Master'!$S:$S,0)),Q864)","v":"ASP-LANGUAGE-KWAK"},{"$f":"IFERROR(INDEX('FRS CC Master'!A:A,MATCH(WORKORDERS!$Q864*1,'FRS CC Master'!$C:$C,0)),WORKORDERS!$L864)","v":"Indigenous Education and Engagement"},{"$f":"IFERROR(VLOOKUP($A864,'Work Order Master'!$K:$Q,7,FALSE),\"Remove\")","v":"N"}]
["23525-1-1","IEE CFN - Stewardship Training","Parked","23525-1","IEE CFN Partnership","(blank)","3525","External Contracts - Major Partners","350","Indigenous Education and Engagement","350","Indigenous Education and Engagement","(blank)","219","Contract activity","no",{"$f":"IFERROR(INDEX('Work Order Master'!$S:$S,MATCH(A865,'Work Order Master'!$K:$K,0)),\"New\")","v":"New"},{"$f":"IFERROR(INDEX('Work Order Master'!T:T,MATCH(WORKORDERS!$Q865,'Work Order Master'!$S:$S,0)),Q865)","v":"New"},{"$f":"IFERROR(INDEX('FRS CC Master'!A:A,MATCH(WORKORDERS!$Q865*1,'FRS CC Master'!$C:$C,0)),WORKORDERS!$L865)","v":"Indigenous Education and Engagement"},{"$f":"IFERROR(VLOOKUP($A865,'Work Order Master'!$K:$Q,7,FALSE),\"Remove\")","v":"Remove"}]
["23525-1-2","IEE CFN - 2018 Stewardship","Parked","23525-1","IEE CFN Partnership","(blank)","3525","External Contracts - Major Partners","350","Indigenous Education and Engagement","350","Indigenous Education and Engagement","(blank)","219","Contract activity","no",{"$f":"IFERROR(INDEX('Work Order Master'!$S:$S,MATCH(A866,'Work Order Master'!$K:$K,0)),\"New\")","v":"New"},{"$f":"IFERROR(INDEX('Work Order Master'!T:T,MATCH(WORKORDERS!$Q866,'Work Order Master'!$S:$S,0)),Q866)","v":"New"},{"$f":"IFERROR(INDEX('FRS CC Master'!A:A,MATCH(WORKORDERS!$Q866*1,'FRS CC Master'!$C:$C,0)),WORKORDERS!$L866)","v":"Indigenous Education and Engagement"},{"$f":"IFERROR(VLOOKUP($A866,'Work Order Master'!$K:$Q,7,FALSE),\"Remove\")","v":"Remove"}]
["23525-1-3","IEE CFN - 2020 Stewardship Training","Active","23525-1","IEE CFN Partnership","(blank)","3525","External Contracts - Major Partners","350","Indigenous Education and Engagement","350","Indigenous Education and Engagement","(blank)","219","Contract activity","no",{"$f":"IFERROR(INDEX('Work Order Master'!$S:$S,MATCH(A867,'Work Order Master'!$K:$K,0)),\"New\")","v":6997},{"$f":"IFERROR(INDEX('Work Order Master'!T:T,MATCH(WORKORDERS!$Q867,'Work Order Master'!$S:$S,0)),Q867)","v":"CFN 2020 STEWARDSHIP"},{"$f":"IFERROR(INDEX('FRS CC Master'!A:A,MATCH(WORKORDERS!$Q867*1,'FRS CC Master'!$C:$C,0)),WORKORDERS!$L867)","v":"Indigenous Education and Engagement"},{"$f":"IFERROR(VLOOKUP($A867,'Work Order Master'!$K:$Q,7,FALSE),\"Remove\")","v":"N"}]
["23525-2-1","IEE Gitxsan Development Group","Parked","23525-2","IEE Gitxsan Development Group Partnership","(blank)","3525","External Contracts - Major Partners","350","Indigenous Education and Engagement","350","Indigenous Education and Engagement","(blank)","219","Contract activity","no",{"$f":"IFERROR(INDEX('Work Order Master'!$S:$S,MATCH(A868,'Work Order Master'!$K:$K,0)),\"New\")","v":"New"},{"$f":"IFERROR(INDEX('Work Order Master'!T:T,MATCH(WORKORDERS!$Q868,'Work Order Master'!$S:$S,0)),Q868)","v":"New"},{"$f":"IFERROR(INDEX('FRS CC Master'!A:A,MATCH(WORKORDERS!$Q868*1,'FRS CC Master'!$C:$C,0)),WORKORDERS!$L868)","v":"Indigenous Education and Engagement"},{"$f":"IFERROR(VLOOKUP($A868,'Work Order Master'!$K:$Q,7,FALSE),\"Remove\")","v":"Remove"}]
["23525-3-1","IEE Heiltsuk - Eco Tourism","Active","23525-3","IEE Heiltsuk Partnership","(blank)","3525","External Contracts - Major Partners","350","Indigenous Education and Engagement","350","Indigenous Education and Engagement","(blank)","219","Contract activity","no",{"$f":"IFERROR(INDEX('Work Order Master'!$S:$S,MATCH(A869,'Work Order Master'!$K:$K,0)),\"New\")","v":6992},{"$f":"IFERROR(INDEX('Work Order Master'!T:T,MATCH(WORKORDERS!$Q869,'Work Order Master'!$S:$S,0)),Q869)","v":"INDIGENOUS ECOTOURI 18-20"},{"$f":"IFERROR(INDEX('FRS CC Master'!A:A,MATCH(WORKORDERS!$Q869*1,'FRS CC Master'!$C:$C,0)),WORKORDERS!$L869)","v":"Indigenous Education and Engagement"},{"$f":"IFERROR(VLOOKUP($A869,'Work Order Master'!$K:$Q,7,FALSE),\"Remove\")","v":"N"}]
["23525-3-2","IEE Heiltsuk - Ecotourism 2020-2021","Active","23525-3","IEE Heiltsuk Partnership","(blank)","3525","External Contracts - Major Partners","350","Indigenous Education and Engagement","350","Indigenous Education and Engagement","(blank)","219","Contract activity","no",{"$f":"IFERROR(INDEX('Work Order Master'!$S:$S,MATCH(A870,'Work Order Master'!$K:$K,0)),\"New\")","v":6984},{"$f":"IFERROR(INDEX('Work Order Master'!T:T,MATCH(WORKORDERS!$Q870,'Work Order Master'!$S:$S,0)),Q870)","v":"INDIGENOUSE ECOTOURI 20-21"},{"$f":"IFERROR(INDEX('FRS CC Master'!A:A,MATCH(WORKORDERS!$Q870*1,'FRS CC Master'!$C:$C,0)),WORKORDERS!$L870)","v":"Indigenous Education and Engagement"},{"$f":"IFERROR(VLOOKUP($A870,'Work Order Master'!$K:$Q,7,FALSE),\"Remove\")","v":"N"}]
["23525-4-1","IEE SFN - Indigenous Construction","Parked","23525-4","IEE SFN Partnership","(blank)","3525","External Contracts - Major Partners","350","Indigenous Education and Engagement","350","Indigenous Education and Engagement","(blank)","219","Contract activity","no",{"$f":"IFERROR(INDEX('Work Order Master'!$S:$S,MATCH(A871,'Work Order Master'!$K:$K,0)),\"New\")","v":"New"},{"$f":"IFERROR(INDEX('Work Order Master'!T:T,MATCH(WORKORDERS!$Q871,'Work Order Master'!$S:$S,0)),Q871)","v":"New"},{"$f":"IFERROR(INDEX('FRS CC Master'!A:A,MATCH(WORKORDERS!$Q871*1,'FRS CC Master'!$C:$C,0)),WORKORDERS!$L871)","v":"Indigenous Education and Engagement"},{"$f":"IFERROR(VLOOKUP($A871,'Work Order Master'!$K:$Q,7,FALSE),\"Remove\")","v":"Remove"}]
["23525-4-2","IEE SFN - ECE 2020","Active","23525-4","IEE SFN Partnership","(blank)","3525","External Contracts - Major Partners","350","Indigenous Education and Engagement","350","Indigenous Education and Engagement","(blank)","219","Contract activity","no",{"$f":"IFERROR(INDEX('Work Order Master'!$S:$S,MATCH(A872,'Work Order Master'!$K:$K,0)),\"New\")","v":6990},{"$f":"IFERROR(INDEX('Work Order Master'!T:T,MATCH(WORKORDERS!$Q872,'Work Order Master'!$S:$S,0)),Q872)","v":"AEST-SNUNEYMUXW ECE 2020"},{"$f":"IFERROR(INDEX('FRS CC Master'!A:A,MATCH(WORKORDERS!$Q872*1,'FRS CC Master'!$C:$C,0)),WORKORDERS!$L872)","v":"Indigenous Education and Engagement"},{"$f":"IFERROR(VLOOKUP($A872,'Work Order Master'!$K:$Q,7,FALSE),\"Remove\")","v":"N"}]
["23525-5-1","IEE Nanwakolas Council - STTP","Active","23525-5","IEE Nanwakolas Council","(blank)","3525","External Contracts - Major Partners","350","Indigenous Education and Engagement","350","Indigenous Education and Engagement","(blank)","219","Contract activity","no",{"$f":"IFERROR(INDEX('Work Order Master'!$S:$S,MATCH(A873,'Work Order Master'!$K:$K,0)),\"New\")","v":6991},{"$f":"IFERROR(INDEX('Work Order Master'!T:T,MATCH(WORKORDERS!$Q873,'Work Order Master'!$S:$S,0)),Q873)","v":"NANWAKOLAS COUNCIL-STTP"},{"$f":"IFERROR(INDEX('FRS CC Master'!A:A,MATCH(WORKORDERS!$Q873*1,'FRS CC Master'!$C:$C,0)),WORKORDERS!$L873)","v":"Indigenous Education and Engagement"},{"$f":"IFERROR(VLOOKUP($A873,'Work Order Master'!$K:$Q,7,FALSE),\"Remove\")","v":"N"}]
["23530-1-1","IEE Misc - Indigenous Contract","Active","23530-1","IEE Misc Contracts","(blank)","3530","External Contracts - Misc Contracts","350","Indigenous Education and Engagement","350","Indigenous Education and Engagement","(blank)","219","Contract activity","no",{"$f":"IFERROR(INDEX('Work Order Master'!$S:$S,MATCH(A874,'Work Order Master'!$K:$K,0)),\"New\")","v":6999},{"$f":"IFERROR(INDEX('Work Order Master'!T:T,MATCH(WORKORDERS!$Q874,'Work Order Master'!$S:$S,0)),Q874)","v":"OAEE-MISC INDIG. CONTRACT"},{"$f":"IFERROR(INDEX('FRS CC Master'!A:A,MATCH(WORKORDERS!$Q874*1,'FRS CC Master'!$C:$C,0)),WORKORDERS!$L874)","v":"Indigenous Education and Engagement"},{"$f":"IFERROR(VLOOKUP($A874,'Work Order Master'!$K:$Q,7,FALSE),\"Remove\")","v":"N"}]
["23530-1-2","IEE Indigenous Education - Contract Admin","Active","23530-1","IEE Misc Contracts","(blank)","3530","External Contracts - Misc Contracts","350","Indigenous Education and Engagement","350","Indigenous Education and Engagement","(blank)","219","Contract activity","no",{"$f":"IFERROR(INDEX('Work Order Master'!$S:$S,MATCH(A875,'Work Order Master'!$K:$K,0)),\"New\")","v":6988},{"$f":"IFERROR(INDEX('Work Order Master'!T:T,MATCH(WORKORDERS!$Q875,'Work Order Master'!$S:$S,0)),Q875)","v":"IN ED. - CONTRACT ADMIN"},{"$f":"IFERROR(INDEX('FRS CC Master'!A:A,MATCH(WORKORDERS!$Q875*1,'FRS CC Master'!$C:$C,0)),WORKORDERS!$L875)","v":"Indigenous Education and Engagement"},{"$f":"IFERROR(VLOOKUP($A875,'Work Order Master'!$K:$Q,7,FALSE),\"Remove\")","v":"N"}]
["23535-1-1","IEE EleV Scholarship Program - Administration","Active","23535-1","IEE EleV Scholarship Program - Administration","(blank)","3535","EleV Scholarship Program","350","Indigenous Education and Engagement","350","Indigenous Education and Engagement","(blank)","219","Contract activity","no",{"$f":"IFERROR(INDEX('Work Order Master'!$S:$S,MATCH(A876,'Work Order Master'!$K:$K,0)),\"New\")","v":7700},{"$f":"IFERROR(INDEX('Work Order Master'!T:T,MATCH(WORKORDERS!$Q876,'Work Order Master'!$S:$S,0)),Q876)","v":"A2E SCHOLARSHIP SUPPORT"},{"$f":"IFERROR(INDEX('FRS CC Master'!A:A,MATCH(WORKORDERS!$Q876*1,'FRS CC Master'!$C:$C,0)),WORKORDERS!$L876)","v":"Indigenous Education and Engagement"},{"$f":"IFERROR(VLOOKUP($A876,'Work Order Master'!$K:$Q,7,FALSE),\"Remove\")","v":"N"}]
["23535-2-1","IEE EleV - Creating Pathways","Active","23535-2","IEE EleV Scholarship Program - Creating Pathways","(blank)","3535","EleV Scholarship Program","350","Indigenous Education and Engagement","350","Indigenous Education and Engagement","(blank)","219","Contract activity","no",{"$f":"IFERROR(INDEX('Work Order Master'!$S:$S,MATCH(A877,'Work Order Master'!$K:$K,0)),\"New\")","v":7702},{"$f":"IFERROR(INDEX('Work Order Master'!T:T,MATCH(WORKORDERS!$Q877,'Work Order Master'!$S:$S,0)),Q877)","v":"A2E CREATING PATHWAYS"},{"$f":"IFERROR(INDEX('FRS CC Master'!A:A,MATCH(WORKORDERS!$Q877*1,'FRS CC Master'!$C:$C,0)),WORKORDERS!$L877)","v":"Indigenous Education and Engagement"},{"$f":"IFERROR(VLOOKUP($A877,'Work Order Master'!$K:$Q,7,FALSE),\"Remove\")","v":"N"}]
["23535-3-1","IEE EleV - Monitor & Evaluation","Active","23535-3","IEE EleV Scholarship Program - Monitor & Evaluation","(blank)","3535","EleV Scholarship Program","350","Indigenous Education and Engagement","350","Indigenous Education and Engagement","(blank)","219","Contract activity","no",{"$f":"IFERROR(INDEX('Work Order Master'!$S:$S,MATCH(A878,'Work Order Master'!$K:$K,0)),\"New\")","v":7705},{"$f":"IFERROR(INDEX('Work Order Master'!T:T,MATCH(WORKORDERS!$Q878,'Work Order Master'!$S:$S,0)),Q878)","v":"A2E MONITOR & EVALUATION"},{"$f":"IFERROR(INDEX('FRS CC Master'!A:A,MATCH(WORKORDERS!$Q878*1,'FRS CC Master'!$C:$C,0)),WORKORDERS!$L878)","v":"Indigenous Education and Engagement"},{"$f":"IFERROR(VLOOKUP($A878,'Work Order Master'!$K:$Q,7,FALSE),\"Remove\")","v":"N"}]
["23535-4-1","IEE EleV - Scholarships","Active","23535-4","IEE EleV Scholarship Program - Scholarships","(blank)","3535","EleV Scholarship Program","350","Indigenous Education and Engagement","350","Indigenous Education and Engagement","(blank)","219","Contract activity","no",{"$f":"IFERROR(INDEX('Work Order Master'!$S:$S,MATCH(A879,'Work Order Master'!$K:$K,0)),\"New\")","v":7701},{"$f":"IFERROR(INDEX('Work Order Master'!T:T,MATCH(WORKORDERS!$Q879,'Work Order Master'!$S:$S,0)),Q879)","v":"A2E STUDENT SCHOLARSHIPS"},{"$f":"IFERROR(INDEX('FRS CC Master'!A:A,MATCH(WORKORDERS!$Q879*1,'FRS CC Master'!$C:$C,0)),WORKORDERS!$L879)","v":"Indigenous Education and Engagement"},{"$f":"IFERROR(VLOOKUP($A879,'Work Order Master'!$K:$Q,7,FALSE),\"Remove\")","v":"N"}]
["23535-4-2","IEE EleV - VIU Contribution","Active","23535-4","IEE EleV Scholarship Program - Scholarships","(blank)","3535","EleV Scholarship Program","350","Indigenous Education and Engagement","350","Indigenous Education and Engagement","(blank)","219","Contract activity","no",{"$f":"IFERROR(INDEX('Work Order Master'!$S:$S,MATCH(A880,'Work Order Master'!$K:$K,0)),\"New\")","v":7706},{"$f":"IFERROR(INDEX('Work Order Master'!T:T,MATCH(WORKORDERS!$Q880,'Work Order Master'!$S:$S,0)),Q880)","v":"A2E VIU CONTRIBUTION"},{"$f":"IFERROR(INDEX('FRS CC Master'!A:A,MATCH(WORKORDERS!$Q880*1,'FRS CC Master'!$C:$C,0)),WORKORDERS!$L880)","v":"Indigenous Education and Engagement"},{"$f":"IFERROR(VLOOKUP($A880,'Work Order Master'!$K:$Q,7,FALSE),\"Remove\")","v":"N"}]
["23535-5-1","IEE EleV - Transition to employment","Active","23535-5","IEE EleV Scholarship Program - Transition to employment","(blank)","3535","EleV Scholarship Program","350","Indigenous Education and Engagement","350","Indigenous Education and Engagement","(blank)","219","Contract activity","no",{"$f":"IFERROR(INDEX('Work Order Master'!$S:$S,MATCH(A881,'Work Order Master'!$K:$K,0)),\"New\")","v":7704},{"$f":"IFERROR(INDEX('Work Order Master'!T:T,MATCH(WORKORDERS!$Q881,'Work Order Master'!$S:$S,0)),Q881)","v":"A2E TRANSITION TO EMPLOY"},{"$f":"IFERROR(INDEX('FRS CC Master'!A:A,MATCH(WORKORDERS!$Q881*1,'FRS CC Master'!$C:$C,0)),WORKORDERS!$L881)","v":"Indigenous Education and Engagement"},{"$f":"IFERROR(VLOOKUP($A881,'Work Order Master'!$K:$Q,7,FALSE),\"Remove\")","v":"N"}]
["23535-6-1","IEE EleV - Youth Development","Active","23535-6","IEE EleV Scholarship Program - Youth Development","(blank)","3535","EleV Scholarship Program","350","Indigenous Education and Engagement","350","Indigenous Education and Engagement","(blank)","219","Contract activity","no",{"$f":"IFERROR(INDEX('Work Order Master'!$S:$S,MATCH(A882,'Work Order Master'!$K:$K,0)),\"New\")","v":7703},{"$f":"IFERROR(INDEX('Work Order Master'!T:T,MATCH(WORKORDERS!$Q882,'Work Order Master'!$S:$S,0)),Q882)","v":"A2E YOUTH DEVELOPMENT"},{"$f":"IFERROR(INDEX('FRS CC Master'!A:A,MATCH(WORKORDERS!$Q882*1,'FRS CC Master'!$C:$C,0)),WORKORDERS!$L882)","v":"Indigenous Education and Engagement"},{"$f":"IFERROR(VLOOKUP($A882,'Work Order Master'!$K:$Q,7,FALSE),\"Remove\")","v":"N"}]
["23540-1-1","IEE MCF - Community Internship","Active","23540-1","IEE MCF - Community Internship","(blank)","3540","MCF Emerging Initiatives","350","Indigenous Education and Engagement","350","Indigenous Education and Engagement","(blank)","219","Contract activity","no",{"$f":"IFERROR(INDEX('Work Order Master'!$S:$S,MATCH(A883,'Work Order Master'!$K:$K,0)),\"New\")","v":7708},{"$f":"IFERROR(INDEX('Work Order Master'!T:T,MATCH(WORKORDERS!$Q883,'Work Order Master'!$S:$S,0)),Q883)","v":"MCF - COMMUNITY INTERNSHP"},{"$f":"IFERROR(INDEX('FRS CC Master'!A:A,MATCH(WORKORDERS!$Q883*1,'FRS CC Master'!$C:$C,0)),WORKORDERS!$L883)","v":"Indigenous Education and Engagement"},{"$f":"IFERROR(VLOOKUP($A883,'Work Order Master'!$K:$Q,7,FALSE),\"Remove\")","v":"N"}]
["23540-2-1","IEE MCF - Learning Facilitator","Active","23540-2","IEE MCF - Learning Facilitator","(blank)","3540","MCF Emerging Initiatives","350","Indigenous Education and Engagement","350","Indigenous Education and Engagement","(blank)","219","Contract activity","no",{"$f":"IFERROR(INDEX('Work Order Master'!$S:$S,MATCH(A884,'Work Order Master'!$K:$K,0)),\"New\")","v":7709},{"$f":"IFERROR(INDEX('Work Order Master'!T:T,MATCH(WORKORDERS!$Q884,'Work Order Master'!$S:$S,0)),Q884)","v":"MCF-LEARNING FACILITATOR"},{"$f":"IFERROR(INDEX('FRS CC Master'!A:A,MATCH(WORKORDERS!$Q884*1,'FRS CC Master'!$C:$C,0)),WORKORDERS!$L884)","v":"Indigenous Education and Engagement"},{"$f":"IFERROR(VLOOKUP($A884,'Work Order Master'!$K:$Q,7,FALSE),\"Remove\")","v":"N"}]
["23610-1-1","LIB Library - Field School","Active","23610-1","LIB Library - Other","(blank)","3610","Library - Initiatives","360","Library","360","Library","(blank)","219","Contract activity","yes",{"$f":"IFERROR(INDEX('Work Order Master'!$S:$S,MATCH(A885,'Work Order Master'!$K:$K,0)),\"New\")","v":6850},{"$f":"IFERROR(INDEX('Work Order Master'!T:T,MATCH(WORKORDERS!$Q885,'Work Order Master'!$S:$S,0)),Q885)","v":"LIBRARY FIELD SCHOOL"},{"$f":"IFERROR(INDEX('FRS CC Master'!A:A,MATCH(WORKORDERS!$Q885*1,'FRS CC Master'!$C:$C,0)),WORKORDERS!$L885)","v":"Library"},{"$f":"IFERROR(VLOOKUP($A885,'Work Order Master'!$K:$Q,7,FALSE),\"Remove\")","v":"N"}]
["23610-1-1","LIB Library - Field School","Active","23610-1","LIB Library - Other","(blank)","3610","Library - Initiatives","360","Library","360","Library","(blank)","223","Field Schools","yes",{"$f":"IFERROR(INDEX('Work Order Master'!$S:$S,MATCH(A886,'Work Order Master'!$K:$K,0)),\"New\")","v":6850},{"$f":"IFERROR(INDEX('Work Order Master'!T:T,MATCH(WORKORDERS!$Q886,'Work Order Master'!$S:$S,0)),Q886)","v":"LIBRARY FIELD SCHOOL"},{"$f":"IFERROR(INDEX('FRS CC Master'!A:A,MATCH(WORKORDERS!$Q886*1,'FRS CC Master'!$C:$C,0)),WORKORDERS!$L886)","v":"Library"},{"$f":"IFERROR(VLOOKUP($A886,'Work Order Master'!$K:$Q,7,FALSE),\"Remove\")","v":"N"}]
["23610-1-2","LIB Library -  Digital BC Secretatiat","Active","23610-1","LIB Library - Other","(blank)","3610","Library - Initiatives","360","Library","360","Library","(blank)","219","Contract activity","yes",{"$f":"IFERROR(INDEX('Work Order Master'!$S:$S,MATCH(A887,'Work Order Master'!$K:$K,0)),\"New\")","v":6851},{"$f":"IFERROR(INDEX('Work Order Master'!T:T,MATCH(WORKORDERS!$Q887,'Work Order Master'!$S:$S,0)),Q887)","v":"DIGITAL BC SECRETATIAT"},{"$f":"IFERROR(INDEX('FRS CC Master'!A:A,MATCH(WORKORDERS!$Q887*1,'FRS CC Master'!$C:$C,0)),WORKORDERS!$L887)","v":"Library"},{"$f":"IFERROR(VLOOKUP($A887,'Work Order Master'!$K:$Q,7,FALSE),\"Remove\")","v":"N"}]
["23610-1-2","LIB Library -  Digital BC Secretatiat","Active","23610-1","LIB Library - Other","(blank)","3610","Library - Initiatives","360","Library","360","Library","(blank)","223","Field Schools","yes",{"$f":"IFERROR(INDEX('Work Order Master'!$S:$S,MATCH(A888,'Work Order Master'!$K:$K,0)),\"New\")","v":6851},{"$f":"IFERROR(INDEX('Work Order Master'!T:T,MATCH(WORKORDERS!$Q888,'Work Order Master'!$S:$S,0)),Q888)","v":"DIGITAL BC SECRETATIAT"},{"$f":"IFERROR(INDEX('FRS CC Master'!A:A,MATCH(WORKORDERS!$Q888*1,'FRS CC Master'!$C:$C,0)),WORKORDERS!$L888)","v":"Library"},{"$f":"IFERROR(VLOOKUP($A888,'Work Order Master'!$K:$Q,7,FALSE),\"Remove\")","v":"N"}]
["23610-2-1","LIB Faculty - General Research - McLeod","Active","23610-2","LIB Faculty - General Research","(blank)","3610","Library - Initiatives","360","Library","360","Library","(blank)","302","General Research","no",{"$f":"IFERROR(INDEX('Work Order Master'!$S:$S,MATCH(A889,'Work Order Master'!$K:$K,0)),\"New\")","v":6860},{"$f":"IFERROR(INDEX('Work Order Master'!T:T,MATCH(WORKORDERS!$Q889,'Work Order Master'!$S:$S,0)),Q889)","v":"GEN RESEARCH - MCLEOD"},{"$f":"IFERROR(INDEX('FRS CC Master'!A:A,MATCH(WORKORDERS!$Q889*1,'FRS CC Master'!$C:$C,0)),WORKORDERS!$L889)","v":"Library"},{"$f":"IFERROR(VLOOKUP($A889,'Work Order Master'!$K:$Q,7,FALSE),\"Remove\")","v":"N"}]
["23610-2-2","LIB Faculty - General Research - McFarland","Active","23610-2","LIB Faculty - General Research","(blank)","3610","Library - Initiatives","360","Library","360","Library","(blank)","302","General Research","no",{"$f":"IFERROR(INDEX('Work Order Master'!$S:$S,MATCH(A890,'Work Order Master'!$K:$K,0)),\"New\")","v":6861},{"$f":"IFERROR(INDEX('Work Order Master'!T:T,MATCH(WORKORDERS!$Q890,'Work Order Master'!$S:$S,0)),Q890)","v":"GEN RESEARCH - MCFARLAND"},{"$f":"IFERROR(INDEX('FRS CC Master'!A:A,MATCH(WORKORDERS!$Q890*1,'FRS CC Master'!$C:$C,0)),WORKORDERS!$L890)","v":"Library"},{"$f":"IFERROR(VLOOKUP($A890,'Work Order Master'!$K:$Q,7,FALSE),\"Remove\")","v":"N"}]
["23710-1-1","REG Summer Session","Parked","23710-1","REG Summer Session","(blank)","3710","Summer Session","370","Registration Services","370","Registration Services","(blank)","208","Instruction","no",{"$f":"IFERROR(INDEX('Work Order Master'!$S:$S,MATCH(A891,'Work Order Master'!$K:$K,0)),\"New\")","v":"New"},{"$f":"IFERROR(INDEX('Work Order Master'!T:T,MATCH(WORKORDERS!$Q891,'Work Order Master'!$S:$S,0)),Q891)","v":"New"},{"$f":"IFERROR(INDEX('FRS CC Master'!A:A,MATCH(WORKORDERS!$Q891*1,'FRS CC Master'!$C:$C,0)),WORKORDERS!$L891)","v":"Registration Services"},{"$f":"IFERROR(VLOOKUP($A891,'Work Order Master'!$K:$Q,7,FALSE),\"Remove\")","v":"P"}]
["23710-2-1","REG Summer Session - Arts","Parked","23710-2","REG Summer Session - Arts","(blank)","3710","Summer Session","370","Registration Services","370","Registration Services","(blank)","208","Instruction","no",{"$f":"IFERROR(INDEX('Work Order Master'!$S:$S,MATCH(A892,'Work Order Master'!$K:$K,0)),\"New\")","v":"New"},{"$f":"IFERROR(INDEX('Work Order Master'!T:T,MATCH(WORKORDERS!$Q892,'Work Order Master'!$S:$S,0)),Q892)","v":"New"},{"$f":"IFERROR(INDEX('FRS CC Master'!A:A,MATCH(WORKORDERS!$Q892*1,'FRS CC Master'!$C:$C,0)),WORKORDERS!$L892)","v":"Registration Services"},{"$f":"IFERROR(VLOOKUP($A892,'Work Order Master'!$K:$Q,7,FALSE),\"Remove\")","v":"Remove"}]
["23710-3-1","REG Summer Session - Education","Parked","23710-3","REG Summer Session - Education","(blank)","3710","Summer Session","370","Registration Services","370","Registration Services","(blank)","208","Instruction","no",{"$f":"IFERROR(INDEX('Work Order Master'!$S:$S,MATCH(A893,'Work Order Master'!$K:$K,0)),\"New\")","v":"New"},{"$f":"IFERROR(INDEX('Work Order Master'!T:T,MATCH(WORKORDERS!$Q893,'Work Order Master'!$S:$S,0)),Q893)","v":"New"},{"$f":"IFERROR(INDEX('FRS CC Master'!A:A,MATCH(WORKORDERS!$Q893*1,'FRS CC Master'!$C:$C,0)),WORKORDERS!$L893)","v":"Registration Services"},{"$f":"IFERROR(VLOOKUP($A893,'Work Order Master'!$K:$Q,7,FALSE),\"Remove\")","v":"Remove"}]
["23710-4-1","REG Summer Session - Management","Parked","23710-4","REG Summer Session - Management","(blank)","3710","Summer Session","370","Registration Services","370","Registration Services","(blank)","208","Instruction","no",{"$f":"IFERROR(INDEX('Work Order Master'!$S:$S,MATCH(A894,'Work Order Master'!$K:$K,0)),\"New\")","v":"New"},{"$f":"IFERROR(INDEX('Work Order Master'!T:T,MATCH(WORKORDERS!$Q894,'Work Order Master'!$S:$S,0)),Q894)","v":"New"},{"$f":"IFERROR(INDEX('FRS CC Master'!A:A,MATCH(WORKORDERS!$Q894*1,'FRS CC Master'!$C:$C,0)),WORKORDERS!$L894)","v":"Registration Services"},{"$f":"IFERROR(VLOOKUP($A894,'Work Order Master'!$K:$Q,7,FALSE),\"Remove\")","v":"Remove"}]
["23710-5-1","REG Summer Session - Science","Parked","23710-5","REG Summer Session - Science","(blank)","3710","Summer Session","370","Registration Services","370","Registration Services","(blank)","208","Instruction","no",{"$f":"IFERROR(INDEX('Work Order Master'!$S:$S,MATCH(A895,'Work Order Master'!$K:$K,0)),\"New\")","v":"New"},{"$f":"IFERROR(INDEX('Work Order Master'!T:T,MATCH(WORKORDERS!$Q895,'Work Order Master'!$S:$S,0)),Q895)","v":"New"},{"$f":"IFERROR(INDEX('FRS CC Master'!A:A,MATCH(WORKORDERS!$Q895*1,'FRS CC Master'!$C:$C,0)),WORKORDERS!$L895)","v":"Registration Services"},{"$f":"IFERROR(VLOOKUP($A895,'Work Order Master'!$K:$Q,7,FALSE),\"Remove\")","v":"Remove"}]
["23710-6-1","REG Summer Session - Social Science","Parked","23710-6","REG Summer Session - Social Science","(blank)","3710","Summer Session","370","Registration Services","370","Registration Services","(blank)","208","Instruction","no",{"$f":"IFERROR(INDEX('Work Order Master'!$S:$S,MATCH(A896,'Work Order Master'!$K:$K,0)),\"New\")","v":"New"},{"$f":"IFERROR(INDEX('Work Order Master'!T:T,MATCH(WORKORDERS!$Q896,'Work Order Master'!$S:$S,0)),Q896)","v":"New"},{"$f":"IFERROR(INDEX('FRS CC Master'!A:A,MATCH(WORKORDERS!$Q896*1,'FRS CC Master'!$C:$C,0)),WORKORDERS!$L896)","v":"Registration Services"},{"$f":"IFERROR(VLOOKUP($A896,'Work Order Master'!$K:$Q,7,FALSE),\"Remove\")","v":"Remove"}]
["23710-7-1","REG Summer Session - Cowichan","Parked","23710-7","REG Summer Session - Cowichan","(blank)","3710","Summer Session","370","Registration Services","370","Registration Services","(blank)","208","Instruction","no",{"$f":"IFERROR(INDEX('Work Order Master'!$S:$S,MATCH(A897,'Work Order Master'!$K:$K,0)),\"New\")","v":"New"},{"$f":"IFERROR(INDEX('Work Order Master'!T:T,MATCH(WORKORDERS!$Q897,'Work Order Master'!$S:$S,0)),Q897)","v":"New"},{"$f":"IFERROR(INDEX('FRS CC Master'!A:A,MATCH(WORKORDERS!$Q897*1,'FRS CC Master'!$C:$C,0)),WORKORDERS!$L897)","v":"Registration Services"},{"$f":"IFERROR(VLOOKUP($A897,'Work Order Master'!$K:$Q,7,FALSE),\"Remove\")","v":"Remove"}]
["24405-1-1","CC Cafeteria","Active","24405-1","CC Campus Administration - Other","(blank)","4405","Cowichan Campus Administration","440","Cowichan Campus Administration","440","Cowichan Campus","(blank)","200","Academic Administration","no",{"$f":"IFERROR(INDEX('Work Order Master'!$S:$S,MATCH(A898,'Work Order Master'!$K:$K,0)),\"New\")","v":7570},{"$f":"IFERROR(INDEX('Work Order Master'!T:T,MATCH(WORKORDERS!$Q898,'Work Order Master'!$S:$S,0)),Q898)","v":"CAFETERIA - COWICHAN "},{"$f":"IFERROR(INDEX('FRS CC Master'!A:A,MATCH(WORKORDERS!$Q898*1,'FRS CC Master'!$C:$C,0)),WORKORDERS!$L898)","v":"Cowichan Campus"},{"$f":"IFERROR(VLOOKUP($A898,'Work Order Master'!$K:$Q,7,FALSE),\"Remove\")","v":"N"}]
["24405-1-2","CC Facilities Rentals","Active","24405-1","CC Campus Administration - Other","(blank)","4405","Cowichan Campus Administration","440","Cowichan Campus Administration","440","Cowichan Campus","(blank)","200","Academic Administration","no",{"$f":"IFERROR(INDEX('Work Order Master'!$S:$S,MATCH(A899,'Work Order Master'!$K:$K,0)),\"New\")","v":7504},{"$f":"IFERROR(INDEX('Work Order Master'!T:T,MATCH(WORKORDERS!$Q899,'Work Order Master'!$S:$S,0)),Q899)","v":"FACILITIES RENTALS COWICH"},{"$f":"IFERROR(INDEX('FRS CC Master'!A:A,MATCH(WORKORDERS!$Q899*1,'FRS CC Master'!$C:$C,0)),WORKORDERS!$L899)","v":"Cowichan Campus"},{"$f":"IFERROR(VLOOKUP($A899,'Work Order Master'!$K:$Q,7,FALSE),\"Remove\")","v":"N"}]
["24405-1-3","CC Lockers","Active","24405-1","CC Campus Administration - Other","(blank)","4405","Cowichan Campus Administration","440","Cowichan Campus Administration","440","Cowichan Campus","(blank)","200","Academic Administration",{"$f":"IF(OR(A900=A899,A900=A901),\"yes\",\"no\")","v":"no"},{"$f":"IFERROR(INDEX('Work Order Master'!$S:$S,MATCH(A900,'Work Order Master'!$K:$K,0)),\"New\")","v":7571},{"$f":"IFERROR(INDEX('Work Order Master'!T:T,MATCH(WORKORDERS!$Q900,'Work Order Master'!$S:$S,0)),Q900)","v":"COWICHAN CAMPUS LOCKERS"},{"$f":"IFERROR(INDEX('FRS CC Master'!A:A,MATCH(WORKORDERS!$Q900*1,'FRS CC Master'!$C:$C,0)),WORKORDERS!$L900)","v":"Cowichan Campus"},{"$f":"IFERROR(VLOOKUP($A900,'Work Order Master'!$K:$Q,7,FALSE),\"Remove\")","v":"N"}]
["24445-1-1","CC Contracts - ECEC","Active","24445-1","CC Contract - Early Childhood Education and Care","(blank)","4445","Cowichan External Contracts","444","Cowichan PD&T & External Contracts","440","Cowichan Campus","(blank)","219","Contract activity","no",{"$f":"IFERROR(INDEX('Work Order Master'!$S:$S,MATCH(A901,'Work Order Master'!$K:$K,0)),\"New\")","v":7563},{"$f":"IFERROR(INDEX('Work Order Master'!T:T,MATCH(WORKORDERS!$Q901,'Work Order Master'!$S:$S,0)),Q901)","v":"ECEC PROGRAM "},{"$f":"IFERROR(INDEX('FRS CC Master'!A:A,MATCH(WORKORDERS!$Q901*1,'FRS CC Master'!$C:$C,0)),WORKORDERS!$L901)","v":"Cowichan Campus"},{"$f":"IFERROR(VLOOKUP($A901,'Work Order Master'!$K:$Q,7,FALSE),\"Remove\")","v":"N"}]
["24445-2-1","CC Contract - UCEP","Active","24445-2","CC Contract - UCEP","(blank)","4445","Cowichan External Contracts","444","Cowichan PD&T & External Contracts","440","Cowichan Campus","(blank)","219","Contract activity","no",{"$f":"IFERROR(INDEX('Work Order Master'!$S:$S,MATCH(A902,'Work Order Master'!$K:$K,0)),\"New\")","v":7565},{"$f":"IFERROR(INDEX('Work Order Master'!T:T,MATCH(WORKORDERS!$Q902,'Work Order Master'!$S:$S,0)),Q902)","v":"COWICHAN - UCEP"},{"$f":"IFERROR(INDEX('FRS CC Master'!A:A,MATCH(WORKORDERS!$Q902*1,'FRS CC Master'!$C:$C,0)),WORKORDERS!$L902)","v":"Cowichan Campus"},{"$f":"IFERROR(VLOOKUP($A902,'Work Order Master'!$K:$Q,7,FALSE),\"Remove\")","v":"N"}]
["24445-3-1","CC Contract - Summer Session","Active","24445-3","CC Contract - Summer Session","(blank)","4445","Cowichan External Contracts","444","Cowichan PD&T & External Contracts","440","Cowichan Campus","(blank)","208","Instruction","no",{"$f":"IFERROR(INDEX('Work Order Master'!$S:$S,MATCH(A903,'Work Order Master'!$K:$K,0)),\"New\")","v":7510},{"$f":"IFERROR(INDEX('Work Order Master'!T:T,MATCH(WORKORDERS!$Q903,'Work Order Master'!$S:$S,0)),Q903)","v":"DN SUMMER SESS-NET PROCEE"},{"$f":"IFERROR(INDEX('FRS CC Master'!A:A,MATCH(WORKORDERS!$Q903*1,'FRS CC Master'!$C:$C,0)),WORKORDERS!$L903)","v":"Cowichan Campus"},{"$f":"IFERROR(VLOOKUP($A903,'Work Order Master'!$K:$Q,7,FALSE),\"Remove\")","v":"N"}]
["24445-4-1","CC Contract - SD 79 EACS","Parked","24445-4","CC Contract - School District 79","(blank)","4445","Cowichan External Contracts","444","Cowichan PD&T & External Contracts","440","Cowichan Campus","(blank)","219","Contract activity","no",{"$f":"IFERROR(INDEX('Work Order Master'!$S:$S,MATCH(A904,'Work Order Master'!$K:$K,0)),\"New\")","v":"New"},{"$f":"IFERROR(INDEX('Work Order Master'!T:T,MATCH(WORKORDERS!$Q904,'Work Order Master'!$S:$S,0)),Q904)","v":"New"},{"$f":"IFERROR(INDEX('FRS CC Master'!A:A,MATCH(WORKORDERS!$Q904*1,'FRS CC Master'!$C:$C,0)),WORKORDERS!$L904)","v":"Cowichan Campus"},{"$f":"IFERROR(VLOOKUP($A904,'Work Order Master'!$K:$Q,7,FALSE),\"Remove\")","v":"Remove"}]
["24445-4-2","CC Contract - SD 79 UP","Active","24445-4","CC Contract - School District 79","(blank)","4445","Cowichan External Contracts","444","Cowichan PD&T & External Contracts","440","Cowichan Campus","(blank)","219","Contract activity","no",{"$f":"IFERROR(INDEX('Work Order Master'!$S:$S,MATCH(A905,'Work Order Master'!$K:$K,0)),\"New\")","v":7575},{"$f":"IFERROR(INDEX('Work Order Master'!T:T,MATCH(WORKORDERS!$Q905,'Work Order Master'!$S:$S,0)),Q905)","v":"SD#79 UP CONTRACTS"},{"$f":"IFERROR(INDEX('FRS CC Master'!A:A,MATCH(WORKORDERS!$Q905*1,'FRS CC Master'!$C:$C,0)),WORKORDERS!$L905)","v":"Cowichan Campus"},{"$f":"IFERROR(VLOOKUP($A905,'Work Order Master'!$K:$Q,7,FALSE),\"Remove\")","v":"N"}]
["24445-5-1","CC Contract - Kwam Kwum Shhwuli","Parked","24445-5","CC Contract - Communities","(blank)","4445","Cowichan External Contracts","444","Cowichan PD&T & External Contracts","440","Cowichan Campus","(blank)","219","Contract activity","no",{"$f":"IFERROR(INDEX('Work Order Master'!$S:$S,MATCH(A906,'Work Order Master'!$K:$K,0)),\"New\")","v":"New"},{"$f":"IFERROR(INDEX('Work Order Master'!T:T,MATCH(WORKORDERS!$Q906,'Work Order Master'!$S:$S,0)),Q906)","v":"New"},{"$f":"IFERROR(INDEX('FRS CC Master'!A:A,MATCH(WORKORDERS!$Q906*1,'FRS CC Master'!$C:$C,0)),WORKORDERS!$L906)","v":"Cowichan Campus"},{"$f":"IFERROR(VLOOKUP($A906,'Work Order Master'!$K:$Q,7,FALSE),\"Remove\")","v":"Remove"}]
["24445-5-2","CC Contract - Lil'wat Emp Program Carpentry","Active","24445-5","CC Contract - Communities","(blank)","4445","Cowichan External Contracts","444","Cowichan PD&T & External Contracts","440","Cowichan Campus","(blank)","219","Contract activity","no",{"$f":"IFERROR(INDEX('Work Order Master'!$S:$S,MATCH(A907,'Work Order Master'!$K:$K,0)),\"New\")","v":7558},{"$f":"IFERROR(INDEX('Work Order Master'!T:T,MATCH(WORKORDERS!$Q907,'Work Order Master'!$S:$S,0)),Q907)","v":"LIL ' WAT EMP PRGM CARPNTRY"},{"$f":"IFERROR(INDEX('FRS CC Master'!A:A,MATCH(WORKORDERS!$Q907*1,'FRS CC Master'!$C:$C,0)),WORKORDERS!$L907)","v":"Cowichan Campus"},{"$f":"IFERROR(VLOOKUP($A907,'Work Order Master'!$K:$Q,7,FALSE),\"Remove\")","v":"N"}]
["24445-5-3","CC Contract - Ta'Tul'ut Shqwaluwun","Parked","24445-5","CC Contract - Communities","(blank)","4445","Cowichan External Contracts","444","Cowichan PD&T & External Contracts","440","Cowichan Campus","(blank)","219","Contract activity","no",{"$f":"IFERROR(INDEX('Work Order Master'!$S:$S,MATCH(A908,'Work Order Master'!$K:$K,0)),\"New\")","v":"New"},{"$f":"IFERROR(INDEX('Work Order Master'!T:T,MATCH(WORKORDERS!$Q908,'Work Order Master'!$S:$S,0)),Q908)","v":"New"},{"$f":"IFERROR(INDEX('FRS CC Master'!A:A,MATCH(WORKORDERS!$Q908*1,'FRS CC Master'!$C:$C,0)),WORKORDERS!$L908)","v":"Cowichan Campus"},{"$f":"IFERROR(VLOOKUP($A908,'Work Order Master'!$K:$Q,7,FALSE),\"Remove\")","v":"Remove"}]
["24445-5-4","CC Contract - Women In Trades Training","Active","24445-5","CC Contract - Communities","(blank)","4445","Cowichan External Contracts","444","Cowichan PD&T & External Contracts","440","Cowichan Campus","(blank)","219","Contract activity","no",{"$f":"IFERROR(INDEX('Work Order Master'!$S:$S,MATCH(A909,'Work Order Master'!$K:$K,0)),\"New\")","v":7564},{"$f":"IFERROR(INDEX('Work Order Master'!T:T,MATCH(WORKORDERS!$Q909,'Work Order Master'!$S:$S,0)),Q909)","v":"WOMEN IN TRADES TRAINING "},{"$f":"IFERROR(INDEX('FRS CC Master'!A:A,MATCH(WORKORDERS!$Q909*1,'FRS CC Master'!$C:$C,0)),WORKORDERS!$L909)","v":"Cowichan Campus"},{"$f":"IFERROR(VLOOKUP($A909,'Work Order Master'!$K:$Q,7,FALSE),\"Remove\")","v":"N"}]
["24445-5-5","CC Contract - Indigenous Peoples In Trades Training","Active","24445-5","CC Contract - Communities","(blank)","4445","Cowichan External Contracts","444","Cowichan PD&T & External Contracts","440","Cowichan Campus","(blank)","219","Contract activity","no",{"$f":"IFERROR(INDEX('Work Order Master'!$S:$S,MATCH(A910,'Work Order Master'!$K:$K,0)),\"New\")","v":7566},{"$f":"IFERROR(INDEX('Work Order Master'!T:T,MATCH(WORKORDERS!$Q910,'Work Order Master'!$S:$S,0)),Q910)","v":"IPTT"},{"$f":"IFERROR(INDEX('FRS CC Master'!A:A,MATCH(WORKORDERS!$Q910*1,'FRS CC Master'!$C:$C,0)),WORKORDERS!$L910)","v":"Cowichan Campus"},{"$f":"IFERROR(VLOOKUP($A910,'Work Order Master'!$K:$Q,7,FALSE),\"Remove\")","v":"N"}]
["24445-5-6","CC Contract - Building Service Worker","Active","24445-5","CC Contract - Communities","(blank)","4445","Cowichan External Contracts","444","Cowichan PD&T & External Contracts","440","Cowichan Campus","(blank)","219","Contract activity","no",{"$f":"IFERROR(INDEX('Work Order Master'!$S:$S,MATCH(A911,'Work Order Master'!$K:$K,0)),\"New\")","v":7569},{"$f":"IFERROR(INDEX('Work Order Master'!T:T,MATCH(WORKORDERS!$Q911,'Work Order Master'!$S:$S,0)),Q911)","v":"BUILDING SERVICE WORKERS "},{"$f":"IFERROR(INDEX('FRS CC Master'!A:A,MATCH(WORKORDERS!$Q911*1,'FRS CC Master'!$C:$C,0)),WORKORDERS!$L911)","v":"Cowichan Campus"},{"$f":"IFERROR(VLOOKUP($A911,'Work Order Master'!$K:$Q,7,FALSE),\"Remove\")","v":"N"}]
["24608-1-1","PRC Student Services Proceeds","Active","24608-1","PRC Student Services Proceeds","(blank)","4608","Powell River Student Services","460","Powell River Campus Administration","460","Powell River Campus","(blank)","200","Academic Administration","yes",{"$f":"IFERROR(INDEX('Work Order Master'!$S:$S,MATCH(A912,'Work Order Master'!$K:$K,0)),\"New\")","v":7802},{"$f":"IFERROR(INDEX('Work Order Master'!T:T,MATCH(WORKORDERS!$Q912,'Work Order Master'!$S:$S,0)),Q912)","v":"STUDENT SERVICES PROCEEDS"},{"$f":"IFERROR(INDEX('FRS CC Master'!A:A,MATCH(WORKORDERS!$Q912*1,'FRS CC Master'!$C:$C,0)),WORKORDERS!$L912)","v":"Powell River Campus"},{"$f":"IFERROR(VLOOKUP($A912,'Work Order Master'!$K:$Q,7,FALSE),\"Remove\")","v":"N"}]
["24608-1-1","PRC Student Services Proceeds","Active","24608-1","PRC Student Services Proceeds","(blank)","4608","Powell River Student Services","460","Powell River Campus Administration","460","Powell River Campus","(blank)","217","Student Support and Services","yes",{"$f":"IFERROR(INDEX('Work Order Master'!$S:$S,MATCH(A913,'Work Order Master'!$K:$K,0)),\"New\")","v":7802},{"$f":"IFERROR(INDEX('Work Order Master'!T:T,MATCH(WORKORDERS!$Q913,'Work Order Master'!$S:$S,0)),Q913)","v":"STUDENT SERVICES PROCEEDS"},{"$f":"IFERROR(INDEX('FRS CC Master'!A:A,MATCH(WORKORDERS!$Q913*1,'FRS CC Master'!$C:$C,0)),WORKORDERS!$L913)","v":"Powell River Campus"},{"$f":"IFERROR(VLOOKUP($A913,'Work Order Master'!$K:$Q,7,FALSE),\"Remove\")","v":"N"}]
["24645-1-1","PRC Contracts - Aboriginal Service Plan","Active","24645-1","PRC Contracts - Aboriginal Service Plan","(blank)","4645","Powell River External Contracts","464","Powell River PD&T and External Contracts","460","Powell River Campus","(blank)","219","Contract activity","no",{"$f":"IFERROR(INDEX('Work Order Master'!$S:$S,MATCH(A914,'Work Order Master'!$K:$K,0)),\"New\")","v":7805},{"$f":"IFERROR(INDEX('Work Order Master'!T:T,MATCH(WORKORDERS!$Q914,'Work Order Master'!$S:$S,0)),Q914)","v":"ABORIGINAL SERVICE PLAN "},{"$f":"IFERROR(INDEX('FRS CC Master'!A:A,MATCH(WORKORDERS!$Q914*1,'FRS CC Master'!$C:$C,0)),WORKORDERS!$L914)","v":"Powell River Campus"},{"$f":"IFERROR(VLOOKUP($A914,'Work Order Master'!$K:$Q,7,FALSE),\"Remove\")","v":"N"}]
["24645-2-1","PRC Contracts - Gathering Place","Parked","24645-2","PRC Contracts - Gathering Place","(blank)","4645","Powell River External Contracts","464","Powell River PD&T and External Contracts","460","Powell River Campus","(blank)","219","Contract activity","no",{"$f":"IFERROR(INDEX('Work Order Master'!$S:$S,MATCH(A915,'Work Order Master'!$K:$K,0)),\"New\")","v":"New"},{"$f":"IFERROR(INDEX('Work Order Master'!T:T,MATCH(WORKORDERS!$Q915,'Work Order Master'!$S:$S,0)),Q915)","v":"New"},{"$f":"IFERROR(INDEX('FRS CC Master'!A:A,MATCH(WORKORDERS!$Q915*1,'FRS CC Master'!$C:$C,0)),WORKORDERS!$L915)","v":"Powell River Campus"},{"$f":"IFERROR(VLOOKUP($A915,'Work Order Master'!$K:$Q,7,FALSE),\"Remove\")","v":"Remove"}]
["24645-3-1","PRC Contracts - HEO - Ministry of Social Development","Active","24645-3","PRC Contracts - HEO","(blank)","4645","Powell River External Contracts","464","Powell River PD&T and External Contracts","460","Powell River Campus","(blank)","219","Contract activity","no",{"$f":"IFERROR(INDEX('Work Order Master'!$S:$S,MATCH(A916,'Work Order Master'!$K:$K,0)),\"New\")","v":7811},{"$f":"IFERROR(INDEX('Work Order Master'!T:T,MATCH(WORKORDERS!$Q916,'Work Order Master'!$S:$S,0)),Q916)","v":"HEO - PBLMT POWELL RIVER"},{"$f":"IFERROR(INDEX('FRS CC Master'!A:A,MATCH(WORKORDERS!$Q916*1,'FRS CC Master'!$C:$C,0)),WORKORDERS!$L916)","v":"Powell River Campus"},{"$f":"IFERROR(VLOOKUP($A916,'Work Order Master'!$K:$Q,7,FALSE),\"Remove\")","v":"N"}]
["24645-4-1","PRC Contracts - Work Essential Skills Training - AVED","Active","24645-4","PRC Contracts - Work Essential Skills Training","(blank)","4645","Powell River External Contracts","464","Powell River PD&T and External Contracts","460","Powell River Campus","(blank)","219","Contract activity","no",{"$f":"IFERROR(INDEX('Work Order Master'!$S:$S,MATCH(A917,'Work Order Master'!$K:$K,0)),\"New\")","v":7812},{"$f":"IFERROR(INDEX('Work Order Master'!T:T,MATCH(WORKORDERS!$Q917,'Work Order Master'!$S:$S,0)),Q917)","v":"PR WEST"},{"$f":"IFERROR(INDEX('FRS CC Master'!A:A,MATCH(WORKORDERS!$Q917*1,'FRS CC Master'!$C:$C,0)),WORKORDERS!$L917)","v":"Powell River Campus"},{"$f":"IFERROR(VLOOKUP($A917,'Work Order Master'!$K:$Q,7,FALSE),\"Remove\")","v":"N"}]
["24645-5-1","PRC Contracts - Holding Account","Active","24645-5","PRC Contracts - Holding","(blank)","4645","Powell River External Contracts","464","Powell River PD&T and External Contracts","460","Powell River Campus","(blank)","219","Contract activity","no",{"$f":"IFERROR(INDEX('Work Order Master'!$S:$S,MATCH(A918,'Work Order Master'!$K:$K,0)),\"New\")","v":7810},{"$f":"IFERROR(INDEX('Work Order Master'!T:T,MATCH(WORKORDERS!$Q918,'Work Order Master'!$S:$S,0)),Q918)","v":"CONTRACTS HOLDING ACCOUNT"},{"$f":"IFERROR(INDEX('FRS CC Master'!A:A,MATCH(WORKORDERS!$Q918*1,'FRS CC Master'!$C:$C,0)),WORKORDERS!$L918)","v":"Powell River Campus"},{"$f":"IFERROR(VLOOKUP($A918,'Work Order Master'!$K:$Q,7,FALSE),\"Remove\")","v":"N"}]
["25000-1-1","SRCA Research Contract Holding","Active","25000-1","SRCA Research Contract Administration","(blank)","5000","Scholarship, Research & Creative Activity","500","Scholarship, Research and Creative Activity","500","Scholarship, Research and Creative Activity","(blank)","300","Research Contract Administration","no",{"$f":"IFERROR(INDEX('Work Order Master'!$S:$S,MATCH(A919,'Work Order Master'!$K:$K,0)),\"New\")","v":1399},{"$f":"IFERROR(INDEX('Work Order Master'!T:T,MATCH(WORKORDERS!$Q919,'Work Order Master'!$S:$S,0)),Q919)","v":"PVPA RESEARCH HOLDING A/C"},{"$f":"IFERROR(INDEX('FRS CC Master'!A:A,MATCH(WORKORDERS!$Q919*1,'FRS CC Master'!$C:$C,0)),WORKORDERS!$L919)","v":"Scholarship, Research and Creative Activity"},{"$f":"IFERROR(VLOOKUP($A919,'Work Order Master'!$K:$Q,7,FALSE),\"Remove\")","v":"N"}]
["25001-1-1","SRCA Initiatives","Active","25001-1","SRCA Initiatives","(blank)","5001","Research Initiatives","500","Scholarship, Research and Creative Activity","500","Scholarship, Research and Creative Activity","(blank)","300","Research Contract Administration","no",{"$f":"IFERROR(INDEX('Work Order Master'!$S:$S,MATCH(A920,'Work Order Master'!$K:$K,0)),\"New\")","v":1139},{"$f":"IFERROR(INDEX('Work Order Master'!T:T,MATCH(WORKORDERS!$Q920,'Work Order Master'!$S:$S,0)),Q920)","v":"AVPSCE INITIATIVES"},{"$f":"IFERROR(INDEX('FRS CC Master'!A:A,MATCH(WORKORDERS!$Q920*1,'FRS CC Master'!$C:$C,0)),WORKORDERS!$L920)","v":"Scholarship, Research and Creative Activity"},{"$f":"IFERROR(VLOOKUP($A920,'Work Order Master'!$K:$Q,7,FALSE),\"Remove\")","v":"N"}]
["25001-1-10","SRCA VIU Press","Parked","25001-1","SRCA Initiatives","(blank)","5001","Research Initiatives","500","Scholarship, Research and Creative Activity","500","Scholarship, Research and Creative Activity","(blank)","300","Research Contract Administration","no",{"$f":"IFERROR(INDEX('Work Order Master'!$S:$S,MATCH(A921,'Work Order Master'!$K:$K,0)),\"New\")","v":"New"},{"$f":"IFERROR(INDEX('Work Order Master'!T:T,MATCH(WORKORDERS!$Q921,'Work Order Master'!$S:$S,0)),Q921)","v":"New"},{"$f":"IFERROR(INDEX('FRS CC Master'!A:A,MATCH(WORKORDERS!$Q921*1,'FRS CC Master'!$C:$C,0)),WORKORDERS!$L921)","v":"Scholarship, Research and Creative Activity"},{"$f":"IFERROR(VLOOKUP($A921,'Work Order Master'!$K:$Q,7,FALSE),\"Remove\")","v":"Remove"}]
["25001-1-11","SRCA - Student - Misc External Funding","Active","25001-1","SRCA Initiatives","(blank)","5001","Research Initiatives","500","Scholarship, Research and Creative Activity","500","Scholarship, Research and Creative Activity","(blank)","300","Research Contract Administration","no",{"$f":"IFERROR(INDEX('Work Order Master'!$S:$S,MATCH(A922,'Work Order Master'!$K:$K,0)),\"New\")","v":1144},{"$f":"IFERROR(INDEX('Work Order Master'!T:T,MATCH(WORKORDERS!$Q922,'Work Order Master'!$S:$S,0)),Q922)","v":"SRCA-STUDENT MISC FUNDING"},{"$f":"IFERROR(INDEX('FRS CC Master'!A:A,MATCH(WORKORDERS!$Q922*1,'FRS CC Master'!$C:$C,0)),WORKORDERS!$L922)","v":"Scholarship, Research and Creative Activity"},{"$f":"IFERROR(VLOOKUP($A922,'Work Order Master'!$K:$Q,7,FALSE),\"Remove\")","v":"N"}]
["25001-1-2","SRCA AERL Harm Check Phase 1","Active","25001-1","SRCA Initiatives","(blank)","5001","Research Initiatives","500","Scholarship, Research and Creative Activity","500","Scholarship, Research and Creative Activity","(blank)","300","Research Contract Administration","no",{"$f":"IFERROR(INDEX('Work Order Master'!$S:$S,MATCH(A923,'Work Order Master'!$K:$K,0)),\"New\")","v":1112},{"$f":"IFERROR(INDEX('Work Order Master'!T:T,MATCH(WORKORDERS!$Q923,'Work Order Master'!$S:$S,0)),Q923)","v":"AERL HARM CHECK PHASE I"},{"$f":"IFERROR(INDEX('FRS CC Master'!A:A,MATCH(WORKORDERS!$Q923*1,'FRS CC Master'!$C:$C,0)),WORKORDERS!$L923)","v":"Scholarship, Research and Creative Activity"},{"$f":"IFERROR(VLOOKUP($A923,'Work Order Master'!$K:$Q,7,FALSE),\"Remove\")","v":"N"}]
["25001-1-3","SRCA Centre for Social Enterprise","Active","25001-1","SRCA Initiatives","(blank)","5001","Research Initiatives","500","Scholarship, Research and Creative Activity","500","Scholarship, Research and Creative Activity","(blank)","300","Research Contract Administration","no",{"$f":"IFERROR(INDEX('Work Order Master'!$S:$S,MATCH(A924,'Work Order Master'!$K:$K,0)),\"New\")","v":1133},{"$f":"IFERROR(INDEX('Work Order Master'!T:T,MATCH(WORKORDERS!$Q924,'Work Order Master'!$S:$S,0)),Q924)","v":"CTR FOR SOCIAL ENTERPRISE"},{"$f":"IFERROR(INDEX('FRS CC Master'!A:A,MATCH(WORKORDERS!$Q924*1,'FRS CC Master'!$C:$C,0)),WORKORDERS!$L924)","v":"Scholarship, Research and Creative Activity"},{"$f":"IFERROR(VLOOKUP($A924,'Work Order Master'!$K:$Q,7,FALSE),\"Remove\")","v":"N"}]
["25001-1-4","SRCA CHCCRL - Floyd","Active","25001-1","SRCA Initiatives","(blank)","5001","Research Initiatives","500","Scholarship, Research and Creative Activity","500","Scholarship, Research and Creative Activity","(blank)","300","Research Contract Administration","no",{"$f":"IFERROR(INDEX('Work Order Master'!$S:$S,MATCH(A925,'Work Order Master'!$K:$K,0)),\"New\")","v":1110},{"$f":"IFERROR(INDEX('Work Order Master'!T:T,MATCH(WORKORDERS!$Q925,'Work Order Master'!$S:$S,0)),Q925)","v":"CHCCRL - FLOYD"},{"$f":"IFERROR(INDEX('FRS CC Master'!A:A,MATCH(WORKORDERS!$Q925*1,'FRS CC Master'!$C:$C,0)),WORKORDERS!$L925)","v":"Scholarship, Research and Creative Activity"},{"$f":"IFERROR(VLOOKUP($A925,'Work Order Master'!$K:$Q,7,FALSE),\"Remove\")","v":"N"}]
["25001-1-5","SRCA Community Initiatives","Active","25001-1","SRCA Initiatives","(blank)","5001","Research Initiatives","500","Scholarship, Research and Creative Activity","500","Scholarship, Research and Creative Activity","(blank)","300","Research Contract Administration","no",{"$f":"IFERROR(INDEX('Work Order Master'!$S:$S,MATCH(A926,'Work Order Master'!$K:$K,0)),\"New\")","v":1135},{"$f":"IFERROR(INDEX('Work Order Master'!T:T,MATCH(WORKORDERS!$Q926,'Work Order Master'!$S:$S,0)),Q926)","v":"COMMUNITY INITIATIVES"},{"$f":"IFERROR(INDEX('FRS CC Master'!A:A,MATCH(WORKORDERS!$Q926*1,'FRS CC Master'!$C:$C,0)),WORKORDERS!$L926)","v":"Scholarship, Research and Creative Activity"},{"$f":"IFERROR(VLOOKUP($A926,'Work Order Master'!$K:$Q,7,FALSE),\"Remove\")","v":"N"}]
["25001-1-6","SRCA CRC Genomics - Green Operating","Active","25001-1","SRCA Initiatives","(blank)","5001","Research Initiatives","500","Scholarship, Research and Creative Activity","500","Scholarship, Research and Creative Activity","(blank)","300","Research Contract Administration","no",{"$f":"IFERROR(INDEX('Work Order Master'!$S:$S,MATCH(A927,'Work Order Master'!$K:$K,0)),\"New\")","v":1326},{"$f":"IFERROR(INDEX('Work Order Master'!T:T,MATCH(WORKORDERS!$Q927,'Work Order Master'!$S:$S,0)),Q927)","v":"CRC GENOMICS-OPERATING"},{"$f":"IFERROR(INDEX('FRS CC Master'!A:A,MATCH(WORKORDERS!$Q927*1,'FRS CC Master'!$C:$C,0)),WORKORDERS!$L927)","v":"Scholarship, Research and Creative Activity"},{"$f":"IFERROR(VLOOKUP($A927,'Work Order Master'!$K:$Q,7,FALSE),\"Remove\")","v":"N"}]
["25001-1-7","SRCA CREATE Student Poster","Active","25001-1","SRCA Initiatives","(blank)","5001","Research Initiatives","500","Scholarship, Research and Creative Activity","500","Scholarship, Research and Creative Activity","(blank)","300","Research Contract Administration","no",{"$f":"IFERROR(INDEX('Work Order Master'!$S:$S,MATCH(A928,'Work Order Master'!$K:$K,0)),\"New\")","v":1134},{"$f":"IFERROR(INDEX('Work Order Master'!T:T,MATCH(WORKORDERS!$Q928,'Work Order Master'!$S:$S,0)),Q928)","v":"CREATE-STUDENT POSTER EVT"},{"$f":"IFERROR(INDEX('FRS CC Master'!A:A,MATCH(WORKORDERS!$Q928*1,'FRS CC Master'!$C:$C,0)),WORKORDERS!$L928)","v":"Scholarship, Research and Creative Activity"},{"$f":"IFERROR(VLOOKUP($A928,'Work Order Master'!$K:$Q,7,FALSE),\"Remove\")","v":"N"}]
["25001-1-8","SRCA Newcastle FN Initiatives","Active","25001-1","SRCA Initiatives","(blank)","5001","Research Initiatives","500","Scholarship, Research and Creative Activity","500","Scholarship, Research and Creative Activity","(blank)","300","Research Contract Administration","no",{"$f":"IFERROR(INDEX('Work Order Master'!$S:$S,MATCH(A929,'Work Order Master'!$K:$K,0)),\"New\")","v":1136},{"$f":"IFERROR(INDEX('Work Order Master'!T:T,MATCH(WORKORDERS!$Q929,'Work Order Master'!$S:$S,0)),Q929)","v":"NEWCASTLE FN INITIATIVE"},{"$f":"IFERROR(INDEX('FRS CC Master'!A:A,MATCH(WORKORDERS!$Q929*1,'FRS CC Master'!$C:$C,0)),WORKORDERS!$L929)","v":"Scholarship, Research and Creative Activity"},{"$f":"IFERROR(VLOOKUP($A929,'Work Order Master'!$K:$Q,7,FALSE),\"Remove\")","v":"N"}]
["25001-1-9","SRCA Royal Society Operating","Parked","25001-1","SRCA Initiatives","(blank)","5001","Research Initiatives","500","Scholarship, Research and Creative Activity","500","Scholarship, Research and Creative Activity","(blank)","300","Research Contract Administration","no",{"$f":"IFERROR(INDEX('Work Order Master'!$S:$S,MATCH(A930,'Work Order Master'!$K:$K,0)),\"New\")","v":"New"},{"$f":"IFERROR(INDEX('Work Order Master'!T:T,MATCH(WORKORDERS!$Q930,'Work Order Master'!$S:$S,0)),Q930)","v":"New"},{"$f":"IFERROR(INDEX('FRS CC Master'!A:A,MATCH(WORKORDERS!$Q930*1,'FRS CC Master'!$C:$C,0)),WORKORDERS!$L930)","v":"Scholarship, Research and Creative Activity"},{"$f":"IFERROR(VLOOKUP($A930,'Work Order Master'!$K:$Q,7,FALSE),\"Remove\")","v":"Remove"}]
["25020-1-1","SRCA Internal - Faculty Reassignments","Active","25020-1","SRCA Internal Awards - Other","(blank)","5020","VIU Internal Awards","500","Scholarship, Research and Creative Activity","500","Scholarship, Research and Creative Activity","(blank)","300","Research Contract Administration","no",{"$f":"IFERROR(INDEX('Work Order Master'!$S:$S,MATCH(A931,'Work Order Master'!$K:$K,0)),\"New\")","v":1140},{"$f":"IFERROR(INDEX('Work Order Master'!T:T,MATCH(WORKORDERS!$Q931,'Work Order Master'!$S:$S,0)),Q931)","v":"FACULTY REASSIGNMENTS"},{"$f":"IFERROR(INDEX('FRS CC Master'!A:A,MATCH(WORKORDERS!$Q931*1,'FRS CC Master'!$C:$C,0)),WORKORDERS!$L931)","v":"Scholarship, Research and Creative Activity"},{"$f":"IFERROR(VLOOKUP($A931,'Work Order Master'!$K:$Q,7,FALSE),\"Remove\")","v":"N"}]
["25025-1-1","SRCA VIURAC RF - Affleck","Parked","25025-1","SRCA VIURAC RF","(blank)","5025","VIU Internal Awards - VIURAC","500","Scholarship, Research and Creative Activity","500","Scholarship, Research and Creative Activity","(blank)","315","VIURAC RF","no",{"$f":"IFERROR(INDEX('Work Order Master'!$S:$S,MATCH(A932,'Work Order Master'!$K:$K,0)),\"New\")","v":"New"},{"$f":"IFERROR(INDEX('Work Order Master'!T:T,MATCH(WORKORDERS!$Q932,'Work Order Master'!$S:$S,0)),Q932)","v":"New"},{"$f":"IFERROR(INDEX('FRS CC Master'!A:A,MATCH(WORKORDERS!$Q932*1,'FRS CC Master'!$C:$C,0)),WORKORDERS!$L932)","v":"Scholarship, Research and Creative Activity"},{"$f":"IFERROR(VLOOKUP($A932,'Work Order Master'!$K:$Q,7,FALSE),\"Remove\")","v":"Remove"}]
["25025-1-10","SRCA VIURAC RF - Kelly","Parked","25025-1","SRCA VIURAC RF","(blank)","5025","VIU Internal Awards - VIURAC","500","Scholarship, Research and Creative Activity","500","Scholarship, Research and Creative Activity","(blank)","315","VIURAC RF","no",{"$f":"IFERROR(INDEX('Work Order Master'!$S:$S,MATCH(A933,'Work Order Master'!$K:$K,0)),\"New\")","v":"New"},{"$f":"IFERROR(INDEX('Work Order Master'!T:T,MATCH(WORKORDERS!$Q933,'Work Order Master'!$S:$S,0)),Q933)","v":"New"},{"$f":"IFERROR(INDEX('FRS CC Master'!A:A,MATCH(WORKORDERS!$Q933*1,'FRS CC Master'!$C:$C,0)),WORKORDERS!$L933)","v":"Scholarship, Research and Creative Activity"},{"$f":"IFERROR(VLOOKUP($A933,'Work Order Master'!$K:$Q,7,FALSE),\"Remove\")","v":"Remove"}]
["25025-1-11","SRCA VIURAC RF - Knight","Parked","25025-1","SRCA VIURAC RF","(blank)","5025","VIU Internal Awards - VIURAC","500","Scholarship, Research and Creative Activity","500","Scholarship, Research and Creative Activity","(blank)","315","VIURAC RF","no",{"$f":"IFERROR(INDEX('Work Order Master'!$S:$S,MATCH(A934,'Work Order Master'!$K:$K,0)),\"New\")","v":"New"},{"$f":"IFERROR(INDEX('Work Order Master'!T:T,MATCH(WORKORDERS!$Q934,'Work Order Master'!$S:$S,0)),Q934)","v":"New"},{"$f":"IFERROR(INDEX('FRS CC Master'!A:A,MATCH(WORKORDERS!$Q934*1,'FRS CC Master'!$C:$C,0)),WORKORDERS!$L934)","v":"Scholarship, Research and Creative Activity"},{"$f":"IFERROR(VLOOKUP($A934,'Work Order Master'!$K:$Q,7,FALSE),\"Remove\")","v":"Remove"}]
["25025-1-12","SRCA VIURAC RF - Krogh","Parked","25025-1","SRCA VIURAC RF","(blank)","5025","VIU Internal Awards - VIURAC","500","Scholarship, Research and Creative Activity","500","Scholarship, Research and Creative Activity","(blank)","315","VIURAC RF","no",{"$f":"IFERROR(INDEX('Work Order Master'!$S:$S,MATCH(A935,'Work Order Master'!$K:$K,0)),\"New\")","v":"New"},{"$f":"IFERROR(INDEX('Work Order Master'!T:T,MATCH(WORKORDERS!$Q935,'Work Order Master'!$S:$S,0)),Q935)","v":"New"},{"$f":"IFERROR(INDEX('FRS CC Master'!A:A,MATCH(WORKORDERS!$Q935*1,'FRS CC Master'!$C:$C,0)),WORKORDERS!$L935)","v":"Scholarship, Research and Creative Activity"},{"$f":"IFERROR(VLOOKUP($A935,'Work Order Master'!$K:$Q,7,FALSE),\"Remove\")","v":"Remove"}]
["25025-1-13","SRCA VIURAC RF - Kusz","Parked","25025-1","SRCA VIURAC RF","(blank)","5025","VIU Internal Awards - VIURAC","500","Scholarship, Research and Creative Activity","500","Scholarship, Research and Creative Activity","(blank)","315","VIURAC RF","no",{"$f":"IFERROR(INDEX('Work Order Master'!$S:$S,MATCH(A936,'Work Order Master'!$K:$K,0)),\"New\")","v":"New"},{"$f":"IFERROR(INDEX('Work Order Master'!T:T,MATCH(WORKORDERS!$Q936,'Work Order Master'!$S:$S,0)),Q936)","v":"New"},{"$f":"IFERROR(INDEX('FRS CC Master'!A:A,MATCH(WORKORDERS!$Q936*1,'FRS CC Master'!$C:$C,0)),WORKORDERS!$L936)","v":"Scholarship, Research and Creative Activity"},{"$f":"IFERROR(VLOOKUP($A936,'Work Order Master'!$K:$Q,7,FALSE),\"Remove\")","v":"Remove"}]
["25025-1-14","SRCA VIURAC RF - Lavoie","Parked","25025-1","SRCA VIURAC RF","(blank)","5025","VIU Internal Awards - VIURAC","500","Scholarship, Research and Creative Activity","500","Scholarship, Research and Creative Activity","(blank)","315","VIURAC RF","no",{"$f":"IFERROR(INDEX('Work Order Master'!$S:$S,MATCH(A937,'Work Order Master'!$K:$K,0)),\"New\")","v":"New"},{"$f":"IFERROR(INDEX('Work Order Master'!T:T,MATCH(WORKORDERS!$Q937,'Work Order Master'!$S:$S,0)),Q937)","v":"New"},{"$f":"IFERROR(INDEX('FRS CC Master'!A:A,MATCH(WORKORDERS!$Q937*1,'FRS CC Master'!$C:$C,0)),WORKORDERS!$L937)","v":"Scholarship, Research and Creative Activity"},{"$f":"IFERROR(VLOOKUP($A937,'Work Order Master'!$K:$Q,7,FALSE),\"Remove\")","v":"Remove"}]
["25025-1-15","SRCA VIURAC RF - McGrail","Parked","25025-1","SRCA VIURAC RF","(blank)","5025","VIU Internal Awards - VIURAC","500","Scholarship, Research and Creative Activity","500","Scholarship, Research and Creative Activity","(blank)","315","VIURAC RF","no",{"$f":"IFERROR(INDEX('Work Order Master'!$S:$S,MATCH(A938,'Work Order Master'!$K:$K,0)),\"New\")","v":"New"},{"$f":"IFERROR(INDEX('Work Order Master'!T:T,MATCH(WORKORDERS!$Q938,'Work Order Master'!$S:$S,0)),Q938)","v":"New"},{"$f":"IFERROR(INDEX('FRS CC Master'!A:A,MATCH(WORKORDERS!$Q938*1,'FRS CC Master'!$C:$C,0)),WORKORDERS!$L938)","v":"Scholarship, Research and Creative Activity"},{"$f":"IFERROR(VLOOKUP($A938,'Work Order Master'!$K:$Q,7,FALSE),\"Remove\")","v":"Remove"}]
["25025-1-16","SRCA VIURAC RF - Moghimehfar","Parked","25025-1","SRCA VIURAC RF","(blank)","5025","VIU Internal Awards - VIURAC","500","Scholarship, Research and Creative Activity","500","Scholarship, Research and Creative Activity","(blank)","315","VIURAC RF","no",{"$f":"IFERROR(INDEX('Work Order Master'!$S:$S,MATCH(A939,'Work Order Master'!$K:$K,0)),\"New\")","v":"New"},{"$f":"IFERROR(INDEX('Work Order Master'!T:T,MATCH(WORKORDERS!$Q939,'Work Order Master'!$S:$S,0)),Q939)","v":"New"},{"$f":"IFERROR(INDEX('FRS CC Master'!A:A,MATCH(WORKORDERS!$Q939*1,'FRS CC Master'!$C:$C,0)),WORKORDERS!$L939)","v":"Scholarship, Research and Creative Activity"},{"$f":"IFERROR(VLOOKUP($A939,'Work Order Master'!$K:$Q,7,FALSE),\"Remove\")","v":"Remove"}]
["25025-1-17","SRCA VIURAC RF - Robichaud","Parked","25025-1","SRCA VIURAC RF","(blank)","5025","VIU Internal Awards - VIURAC","500","Scholarship, Research and Creative Activity","500","Scholarship, Research and Creative Activity","(blank)","315","VIURAC RF","no",{"$f":"IFERROR(INDEX('Work Order Master'!$S:$S,MATCH(A940,'Work Order Master'!$K:$K,0)),\"New\")","v":"New"},{"$f":"IFERROR(INDEX('Work Order Master'!T:T,MATCH(WORKORDERS!$Q940,'Work Order Master'!$S:$S,0)),Q940)","v":"New"},{"$f":"IFERROR(INDEX('FRS CC Master'!A:A,MATCH(WORKORDERS!$Q940*1,'FRS CC Master'!$C:$C,0)),WORKORDERS!$L940)","v":"Scholarship, Research and Creative Activity"},{"$f":"IFERROR(VLOOKUP($A940,'Work Order Master'!$K:$Q,7,FALSE),\"Remove\")","v":"Remove"}]
["25025-1-18","SRCA VIURAC RF - Rogers","Parked","25025-1","SRCA VIURAC RF","(blank)","5025","VIU Internal Awards - VIURAC","500","Scholarship, Research and Creative Activity","500","Scholarship, Research and Creative Activity","(blank)","315","VIURAC RF","no",{"$f":"IFERROR(INDEX('Work Order Master'!$S:$S,MATCH(A941,'Work Order Master'!$K:$K,0)),\"New\")","v":"New"},{"$f":"IFERROR(INDEX('Work Order Master'!T:T,MATCH(WORKORDERS!$Q941,'Work Order Master'!$S:$S,0)),Q941)","v":"New"},{"$f":"IFERROR(INDEX('FRS CC Master'!A:A,MATCH(WORKORDERS!$Q941*1,'FRS CC Master'!$C:$C,0)),WORKORDERS!$L941)","v":"Scholarship, Research and Creative Activity"},{"$f":"IFERROR(VLOOKUP($A941,'Work Order Master'!$K:$Q,7,FALSE),\"Remove\")","v":"Remove"}]
["25025-1-19","SRCA VIURAC RF - Russell SLMN","Parked","25025-1","SRCA VIURAC RF","(blank)","5025","VIU Internal Awards - VIURAC","500","Scholarship, Research and Creative Activity","500","Scholarship, Research and Creative Activity","(blank)","315","VIURAC RF","no",{"$f":"IFERROR(INDEX('Work Order Master'!$S:$S,MATCH(A942,'Work Order Master'!$K:$K,0)),\"New\")","v":"New"},{"$f":"IFERROR(INDEX('Work Order Master'!T:T,MATCH(WORKORDERS!$Q942,'Work Order Master'!$S:$S,0)),Q942)","v":"New"},{"$f":"IFERROR(INDEX('FRS CC Master'!A:A,MATCH(WORKORDERS!$Q942*1,'FRS CC Master'!$C:$C,0)),WORKORDERS!$L942)","v":"Scholarship, Research and Creative Activity"},{"$f":"IFERROR(VLOOKUP($A942,'Work Order Master'!$K:$Q,7,FALSE),\"Remove\")","v":"Remove"}]
["25025-1-2","SRCA VIURAC RF - Anglestad","Parked","25025-1","SRCA VIURAC RF","(blank)","5025","VIU Internal Awards - VIURAC","500","Scholarship, Research and Creative Activity","500","Scholarship, Research and Creative Activity","(blank)","315","VIURAC RF","no",{"$f":"IFERROR(INDEX('Work Order Master'!$S:$S,MATCH(A943,'Work Order Master'!$K:$K,0)),\"New\")","v":"New"},{"$f":"IFERROR(INDEX('Work Order Master'!T:T,MATCH(WORKORDERS!$Q943,'Work Order Master'!$S:$S,0)),Q943)","v":"New"},{"$f":"IFERROR(INDEX('FRS CC Master'!A:A,MATCH(WORKORDERS!$Q943*1,'FRS CC Master'!$C:$C,0)),WORKORDERS!$L943)","v":"Scholarship, Research and Creative Activity"},{"$f":"IFERROR(VLOOKUP($A943,'Work Order Master'!$K:$Q,7,FALSE),\"Remove\")","v":"Remove"}]
["25025-1-20","SRCA VIURAC RF - Russell STURG","Parked","25025-1","SRCA VIURAC RF","(blank)","5025","VIU Internal Awards - VIURAC","500","Scholarship, Research and Creative Activity","500","Scholarship, Research and Creative Activity","(blank)","315","VIURAC RF","no",{"$f":"IFERROR(INDEX('Work Order Master'!$S:$S,MATCH(A944,'Work Order Master'!$K:$K,0)),\"New\")","v":"New"},{"$f":"IFERROR(INDEX('Work Order Master'!T:T,MATCH(WORKORDERS!$Q944,'Work Order Master'!$S:$S,0)),Q944)","v":"New"},{"$f":"IFERROR(INDEX('FRS CC Master'!A:A,MATCH(WORKORDERS!$Q944*1,'FRS CC Master'!$C:$C,0)),WORKORDERS!$L944)","v":"Scholarship, Research and Creative Activity"},{"$f":"IFERROR(VLOOKUP($A944,'Work Order Master'!$K:$Q,7,FALSE),\"Remove\")","v":"Remove"}]
["25025-1-21","SRCA VIURAC RF - Schmid","Parked","25025-1","SRCA VIURAC RF","(blank)","5025","VIU Internal Awards - VIURAC","500","Scholarship, Research and Creative Activity","500","Scholarship, Research and Creative Activity","(blank)","315","VIURAC RF","no",{"$f":"IFERROR(INDEX('Work Order Master'!$S:$S,MATCH(A945,'Work Order Master'!$K:$K,0)),\"New\")","v":"New"},{"$f":"IFERROR(INDEX('Work Order Master'!T:T,MATCH(WORKORDERS!$Q945,'Work Order Master'!$S:$S,0)),Q945)","v":"New"},{"$f":"IFERROR(INDEX('FRS CC Master'!A:A,MATCH(WORKORDERS!$Q945*1,'FRS CC Master'!$C:$C,0)),WORKORDERS!$L945)","v":"Scholarship, Research and Creative Activity"},{"$f":"IFERROR(VLOOKUP($A945,'Work Order Master'!$K:$Q,7,FALSE),\"Remove\")","v":"Remove"}]
["25025-1-22","SRCA VIURAC RF - Shaw","Parked","25025-1","SRCA VIURAC RF","(blank)","5025","VIU Internal Awards - VIURAC","500","Scholarship, Research and Creative Activity","500","Scholarship, Research and Creative Activity","(blank)","315","VIURAC RF","no",{"$f":"IFERROR(INDEX('Work Order Master'!$S:$S,MATCH(A946,'Work Order Master'!$K:$K,0)),\"New\")","v":"New"},{"$f":"IFERROR(INDEX('Work Order Master'!T:T,MATCH(WORKORDERS!$Q946,'Work Order Master'!$S:$S,0)),Q946)","v":"New"},{"$f":"IFERROR(INDEX('FRS CC Master'!A:A,MATCH(WORKORDERS!$Q946*1,'FRS CC Master'!$C:$C,0)),WORKORDERS!$L946)","v":"Scholarship, Research and Creative Activity"},{"$f":"IFERROR(VLOOKUP($A946,'Work Order Master'!$K:$Q,7,FALSE),\"Remove\")","v":"Remove"}]
["25025-1-23","SRCA VIURAC RF - Shea","Parked","25025-1","SRCA VIURAC RF","(blank)","5025","VIU Internal Awards - VIURAC","500","Scholarship, Research and Creative Activity","500","Scholarship, Research and Creative Activity","(blank)","315","VIURAC RF","no",{"$f":"IFERROR(INDEX('Work Order Master'!$S:$S,MATCH(A947,'Work Order Master'!$K:$K,0)),\"New\")","v":"New"},{"$f":"IFERROR(INDEX('Work Order Master'!T:T,MATCH(WORKORDERS!$Q947,'Work Order Master'!$S:$S,0)),Q947)","v":"New"},{"$f":"IFERROR(INDEX('FRS CC Master'!A:A,MATCH(WORKORDERS!$Q947*1,'FRS CC Master'!$C:$C,0)),WORKORDERS!$L947)","v":"Scholarship, Research and Creative Activity"},{"$f":"IFERROR(VLOOKUP($A947,'Work Order Master'!$K:$Q,7,FALSE),\"Remove\")","v":"Remove"}]
["25025-1-24","SRCA VIURAC RF - Stern","Active","25025-1","SRCA VIURAC RF","(blank)","5025","VIU Internal Awards - VIURAC","500","Scholarship, Research and Creative Activity","500","Scholarship, Research and Creative Activity","(blank)","315","VIURAC RF","no",{"$f":"IFERROR(INDEX('Work Order Master'!$S:$S,MATCH(A948,'Work Order Master'!$K:$K,0)),\"New\")","v":1188},{"$f":"IFERROR(INDEX('Work Order Master'!T:T,MATCH(WORKORDERS!$Q948,'Work Order Master'!$S:$S,0)),Q948)","v":"VIURAC RF STERN"},{"$f":"IFERROR(INDEX('FRS CC Master'!A:A,MATCH(WORKORDERS!$Q948*1,'FRS CC Master'!$C:$C,0)),WORKORDERS!$L948)","v":"Scholarship, Research and Creative Activity"},{"$f":"IFERROR(VLOOKUP($A948,'Work Order Master'!$K:$Q,7,FALSE),\"Remove\")","v":"N"}]
["25025-1-25","SRCA VIURAC RF - Wilson","Parked","25025-1","SRCA VIURAC RF","(blank)","5025","VIU Internal Awards - VIURAC","500","Scholarship, Research and Creative Activity","500","Scholarship, Research and Creative Activity","(blank)","315","VIURAC RF","no",{"$f":"IFERROR(INDEX('Work Order Master'!$S:$S,MATCH(A949,'Work Order Master'!$K:$K,0)),\"New\")","v":"New"},{"$f":"IFERROR(INDEX('Work Order Master'!T:T,MATCH(WORKORDERS!$Q949,'Work Order Master'!$S:$S,0)),Q949)","v":"New"},{"$f":"IFERROR(INDEX('FRS CC Master'!A:A,MATCH(WORKORDERS!$Q949*1,'FRS CC Master'!$C:$C,0)),WORKORDERS!$L949)","v":"Scholarship, Research and Creative Activity"},{"$f":"IFERROR(VLOOKUP($A949,'Work Order Master'!$K:$Q,7,FALSE),\"Remove\")","v":"Remove"}]
["25025-1-26","SRCA VIURAC RF - EN/IQ RF Blaney","Active","25025-1","SRCA VIURAC RF","(blank)","5025","VIU Internal Awards - VIURAC","500","Scholarship, Research and Creative Activity","500","Scholarship, Research and Creative Activity","(blank)","315","VIURAC RF","no",{"$f":"IFERROR(INDEX('Work Order Master'!$S:$S,MATCH(A950,'Work Order Master'!$K:$K,0)),\"New\")","v":4111},{"$f":"IFERROR(INDEX('Work Order Master'!T:T,MATCH(WORKORDERS!$Q950,'Work Order Master'!$S:$S,0)),Q950)","v":"VIURAC-EN/IQ RF BLANEY"},{"$f":"IFERROR(INDEX('FRS CC Master'!A:A,MATCH(WORKORDERS!$Q950*1,'FRS CC Master'!$C:$C,0)),WORKORDERS!$L950)","v":"Scholarship, Research and Creative Activity"},{"$f":"IFERROR(VLOOKUP($A950,'Work Order Master'!$K:$Q,7,FALSE),\"Remove\")","v":"N"}]
["25025-1-27","SRCA VIURAC RF - Carruthers","Parked","25025-1","SRCA VIURAC RF","(blank)","5025","VIU Internal Awards - VIURAC","500","Scholarship, Research and Creative Activity","500","Scholarship, Research and Creative Activity","(blank)","315","VIURAC RF","no",{"$f":"IFERROR(INDEX('Work Order Master'!$S:$S,MATCH(A951,'Work Order Master'!$K:$K,0)),\"New\")","v":"New"},{"$f":"IFERROR(INDEX('Work Order Master'!T:T,MATCH(WORKORDERS!$Q951,'Work Order Master'!$S:$S,0)),Q951)","v":"New"},{"$f":"IFERROR(INDEX('FRS CC Master'!A:A,MATCH(WORKORDERS!$Q951*1,'FRS CC Master'!$C:$C,0)),WORKORDERS!$L951)","v":"Scholarship, Research and Creative Activity"},{"$f":"IFERROR(VLOOKUP($A951,'Work Order Master'!$K:$Q,7,FALSE),\"Remove\")","v":"Remove"}]
["25025-1-28","SRCA VIURAC RF - Craig","Active","25025-1","SRCA VIURAC RF","(blank)","5025","VIU Internal Awards - VIURAC","500","Scholarship, Research and Creative Activity","500","Scholarship, Research and Creative Activity","(blank)","315","VIURAC RF","no",{"$f":"IFERROR(INDEX('Work Order Master'!$S:$S,MATCH(A952,'Work Order Master'!$K:$K,0)),\"New\")","v":4139},{"$f":"IFERROR(INDEX('Work Order Master'!T:T,MATCH(WORKORDERS!$Q952,'Work Order Master'!$S:$S,0)),Q952)","v":"VIURAC RF CRAIG"},{"$f":"IFERROR(INDEX('FRS CC Master'!A:A,MATCH(WORKORDERS!$Q952*1,'FRS CC Master'!$C:$C,0)),WORKORDERS!$L952)","v":"Scholarship, Research and Creative Activity"},{"$f":"IFERROR(VLOOKUP($A952,'Work Order Master'!$K:$Q,7,FALSE),\"Remove\")","v":"N"}]
["25025-1-29","SRCA VIURAC RF - Davey","Active","25025-1","SRCA VIURAC RF","(blank)","5025","VIU Internal Awards - VIURAC","500","Scholarship, Research and Creative Activity","500","Scholarship, Research and Creative Activity","(blank)","315","VIURAC RF","no",{"$f":"IFERROR(INDEX('Work Order Master'!$S:$S,MATCH(A953,'Work Order Master'!$K:$K,0)),\"New\")","v":4147},{"$f":"IFERROR(INDEX('Work Order Master'!T:T,MATCH(WORKORDERS!$Q953,'Work Order Master'!$S:$S,0)),Q953)","v":"VIURAC RF DAVEY"},{"$f":"IFERROR(INDEX('FRS CC Master'!A:A,MATCH(WORKORDERS!$Q953*1,'FRS CC Master'!$C:$C,0)),WORKORDERS!$L953)","v":"Scholarship, Research and Creative Activity"},{"$f":"IFERROR(VLOOKUP($A953,'Work Order Master'!$K:$Q,7,FALSE),\"Remove\")","v":"N"}]
["25025-1-3","SRCA VIURAC RF - Baker","Active","25025-1","SRCA VIURAC RF","(blank)","5025","VIU Internal Awards - VIURAC","500","Scholarship, Research and Creative Activity","500","Scholarship, Research and Creative Activity","(blank)","315","VIURAC RF","no",{"$f":"IFERROR(INDEX('Work Order Master'!$S:$S,MATCH(A954,'Work Order Master'!$K:$K,0)),\"New\")","v":4130},{"$f":"IFERROR(INDEX('Work Order Master'!T:T,MATCH(WORKORDERS!$Q954,'Work Order Master'!$S:$S,0)),Q954)","v":"VIURAC BAKER"},{"$f":"IFERROR(INDEX('FRS CC Master'!A:A,MATCH(WORKORDERS!$Q954*1,'FRS CC Master'!$C:$C,0)),WORKORDERS!$L954)","v":"Scholarship, Research and Creative Activity"},{"$f":"IFERROR(VLOOKUP($A954,'Work Order Master'!$K:$Q,7,FALSE),\"Remove\")","v":"N"}]
["25025-1-30","SRCA VIURAC RF - Davies","Parked","25025-1","SRCA VIURAC RF","(blank)","5025","VIU Internal Awards - VIURAC","500","Scholarship, Research and Creative Activity","500","Scholarship, Research and Creative Activity","(blank)","315","VIURAC RF","no",{"$f":"IFERROR(INDEX('Work Order Master'!$S:$S,MATCH(A955,'Work Order Master'!$K:$K,0)),\"New\")","v":"New"},{"$f":"IFERROR(INDEX('Work Order Master'!T:T,MATCH(WORKORDERS!$Q955,'Work Order Master'!$S:$S,0)),Q955)","v":"New"},{"$f":"IFERROR(INDEX('FRS CC Master'!A:A,MATCH(WORKORDERS!$Q955*1,'FRS CC Master'!$C:$C,0)),WORKORDERS!$L955)","v":"Scholarship, Research and Creative Activity"},{"$f":"IFERROR(VLOOKUP($A955,'Work Order Master'!$K:$Q,7,FALSE),\"Remove\")","v":"Remove"}]
["25025-1-31","SRCA VIURAC RF - Heiti","Active","25025-1","SRCA VIURAC RF","(blank)","5025","VIU Internal Awards - VIURAC","500","Scholarship, Research and Creative Activity","500","Scholarship, Research and Creative Activity","(blank)","315","VIURAC RF","no",{"$f":"IFERROR(INDEX('Work Order Master'!$S:$S,MATCH(A956,'Work Order Master'!$K:$K,0)),\"New\")","v":4145},{"$f":"IFERROR(INDEX('Work Order Master'!T:T,MATCH(WORKORDERS!$Q956,'Work Order Master'!$S:$S,0)),Q956)","v":"VIURAC RF HEITI"},{"$f":"IFERROR(INDEX('FRS CC Master'!A:A,MATCH(WORKORDERS!$Q956*1,'FRS CC Master'!$C:$C,0)),WORKORDERS!$L956)","v":"Scholarship, Research and Creative Activity"},{"$f":"IFERROR(VLOOKUP($A956,'Work Order Master'!$K:$Q,7,FALSE),\"Remove\")","v":"N"}]
["25025-1-32","SRCA VIURAC RF - Hopwood","Active","25025-1","SRCA VIURAC RF","(blank)","5025","VIU Internal Awards - VIURAC","500","Scholarship, Research and Creative Activity","500","Scholarship, Research and Creative Activity","(blank)","315","VIURAC RF","no",{"$f":"IFERROR(INDEX('Work Order Master'!$S:$S,MATCH(A957,'Work Order Master'!$K:$K,0)),\"New\")","v":4146},{"$f":"IFERROR(INDEX('Work Order Master'!T:T,MATCH(WORKORDERS!$Q957,'Work Order Master'!$S:$S,0)),Q957)","v":"VIURAC RF HOPWOOD"},{"$f":"IFERROR(INDEX('FRS CC Master'!A:A,MATCH(WORKORDERS!$Q957*1,'FRS CC Master'!$C:$C,0)),WORKORDERS!$L957)","v":"Scholarship, Research and Creative Activity"},{"$f":"IFERROR(VLOOKUP($A957,'Work Order Master'!$K:$Q,7,FALSE),\"Remove\")","v":"N"}]
["25025-1-33","SRCA VIURAC RF - Juby","Active","25025-1","SRCA VIURAC RF","(blank)","5025","VIU Internal Awards - VIURAC","500","Scholarship, Research and Creative Activity","500","Scholarship, Research and Creative Activity","(blank)","315","VIURAC RF","no",{"$f":"IFERROR(INDEX('Work Order Master'!$S:$S,MATCH(A958,'Work Order Master'!$K:$K,0)),\"New\")","v":4140},{"$f":"IFERROR(INDEX('Work Order Master'!T:T,MATCH(WORKORDERS!$Q958,'Work Order Master'!$S:$S,0)),Q958)","v":"VIURAC RF JUBY"},{"$f":"IFERROR(INDEX('FRS CC Master'!A:A,MATCH(WORKORDERS!$Q958*1,'FRS CC Master'!$C:$C,0)),WORKORDERS!$L958)","v":"Scholarship, Research and Creative Activity"},{"$f":"IFERROR(VLOOKUP($A958,'Work Order Master'!$K:$Q,7,FALSE),\"Remove\")","v":"N"}]
["25025-1-34","SRCA VIURAC RF - Russell","Parked","25025-1","SRCA VIURAC RF","(blank)","5025","VIU Internal Awards - VIURAC","500","Scholarship, Research and Creative Activity","500","Scholarship, Research and Creative Activity","(blank)","315","VIURAC RF","no",{"$f":"IFERROR(INDEX('Work Order Master'!$S:$S,MATCH(A959,'Work Order Master'!$K:$K,0)),\"New\")","v":"New"},{"$f":"IFERROR(INDEX('Work Order Master'!T:T,MATCH(WORKORDERS!$Q959,'Work Order Master'!$S:$S,0)),Q959)","v":"New"},{"$f":"IFERROR(INDEX('FRS CC Master'!A:A,MATCH(WORKORDERS!$Q959*1,'FRS CC Master'!$C:$C,0)),WORKORDERS!$L959)","v":"Scholarship, Research and Creative Activity"},{"$f":"IFERROR(VLOOKUP($A959,'Work Order Master'!$K:$Q,7,FALSE),\"Remove\")","v":"Remove"}]
["25025-1-35","SRCA VIURAC RF - Simms","Parked","25025-1","SRCA VIURAC RF","(blank)","5025","VIU Internal Awards - VIURAC","500","Scholarship, Research and Creative Activity","500","Scholarship, Research and Creative Activity","(blank)","315","VIURAC RF","no",{"$f":"IFERROR(INDEX('Work Order Master'!$S:$S,MATCH(A960,'Work Order Master'!$K:$K,0)),\"New\")","v":"New"},{"$f":"IFERROR(INDEX('Work Order Master'!T:T,MATCH(WORKORDERS!$Q960,'Work Order Master'!$S:$S,0)),Q960)","v":"New"},{"$f":"IFERROR(INDEX('FRS CC Master'!A:A,MATCH(WORKORDERS!$Q960*1,'FRS CC Master'!$C:$C,0)),WORKORDERS!$L960)","v":"Scholarship, Research and Creative Activity"},{"$f":"IFERROR(VLOOKUP($A960,'Work Order Master'!$K:$Q,7,FALSE),\"Remove\")","v":"Remove"}]
["25025-1-36","SRCA VIURAC RF - Sun","Parked","25025-1","SRCA VIURAC RF","(blank)","5025","VIU Internal Awards - VIURAC","500","Scholarship, Research and Creative Activity","500","Scholarship, Research and Creative Activity","(blank)","315","VIURAC RF","no",{"$f":"IFERROR(INDEX('Work Order Master'!$S:$S,MATCH(A961,'Work Order Master'!$K:$K,0)),\"New\")","v":"New"},{"$f":"IFERROR(INDEX('Work Order Master'!T:T,MATCH(WORKORDERS!$Q961,'Work Order Master'!$S:$S,0)),Q961)","v":"New"},{"$f":"IFERROR(INDEX('FRS CC Master'!A:A,MATCH(WORKORDERS!$Q961*1,'FRS CC Master'!$C:$C,0)),WORKORDERS!$L961)","v":"Scholarship, Research and Creative Activity"},{"$f":"IFERROR(VLOOKUP($A961,'Work Order Master'!$K:$Q,7,FALSE),\"Remove\")","v":"Remove"}]
["25025-1-37","SRCA VIURAC RF - Dames 100239","Active","25025-1","SRCA VIURAC RF","(blank)","5025","VIU Internal Awards - VIURAC","500","Scholarship, Research and Creative Activity","500","Scholarship, Research and Creative Activity","(blank)","315","VIURAC RF","no",{"$f":"IFERROR(INDEX('Work Order Master'!$S:$S,MATCH(A962,'Work Order Master'!$K:$K,0)),\"New\")","v":4143},{"$f":"IFERROR(INDEX('Work Order Master'!T:T,MATCH(WORKORDERS!$Q962,'Work Order Master'!$S:$S,0)),Q962)","v":"VIURAC RF DAMES 100239"},{"$f":"IFERROR(INDEX('FRS CC Master'!A:A,MATCH(WORKORDERS!$Q962*1,'FRS CC Master'!$C:$C,0)),WORKORDERS!$L962)","v":"Scholarship, Research and Creative Activity"},{"$f":"IFERROR(VLOOKUP($A962,'Work Order Master'!$K:$Q,7,FALSE),\"Remove\")","v":"N"}]
["25025-1-38","SRCA VIURAC RF - Krogh 100281","Active","25025-1","SRCA VIURAC RF","(blank)","5025","VIU Internal Awards - VIURAC","500","Scholarship, Research and Creative Activity","500","Scholarship, Research and Creative Activity","(blank)","315","VIURAC RF","no",{"$f":"IFERROR(INDEX('Work Order Master'!$S:$S,MATCH(A963,'Work Order Master'!$K:$K,0)),\"New\")","v":4141},{"$f":"IFERROR(INDEX('Work Order Master'!T:T,MATCH(WORKORDERS!$Q963,'Work Order Master'!$S:$S,0)),Q963)","v":"VIURAC RF KROGH 100281"},{"$f":"IFERROR(INDEX('FRS CC Master'!A:A,MATCH(WORKORDERS!$Q963*1,'FRS CC Master'!$C:$C,0)),WORKORDERS!$L963)","v":"Scholarship, Research and Creative Activity"},{"$f":"IFERROR(VLOOKUP($A963,'Work Order Master'!$K:$Q,7,FALSE),\"Remove\")","v":"N"}]
["25025-1-39","SRCA VIURAC RF - McCunn 100240","Parked","25025-1","SRCA VIURAC RF","(blank)","5025","VIU Internal Awards - VIURAC","500","Scholarship, Research and Creative Activity","500","Scholarship, Research and Creative Activity","(blank)","315","VIURAC RF",{"$f":"IF(OR(A964=A963,A964=A965),\"yes\",\"no\")","v":"no"},{"$f":"IFERROR(INDEX('Work Order Master'!$S:$S,MATCH(A964,'Work Order Master'!$K:$K,0)),\"New\")","v":"New"},{"$f":"IFERROR(INDEX('Work Order Master'!T:T,MATCH(WORKORDERS!$Q964,'Work Order Master'!$S:$S,0)),Q964)","v":"New"},{"$f":"IFERROR(INDEX('FRS CC Master'!A:A,MATCH(WORKORDERS!$Q964*1,'FRS CC Master'!$C:$C,0)),WORKORDERS!$L964)","v":"Scholarship, Research and Creative Activity"},{"$f":"IFERROR(VLOOKUP($A964,'Work Order Master'!$K:$Q,7,FALSE),\"Remove\")","v":"Remove"}]
["25025-1-4","SRCA VIURAC RF - Dames","Parked","25025-1","SRCA VIURAC RF","(blank)","5025","VIU Internal Awards - VIURAC","500","Scholarship, Research and Creative Activity","500","Scholarship, Research and Creative Activity","(blank)","315","VIURAC RF","no",{"$f":"IFERROR(INDEX('Work Order Master'!$S:$S,MATCH(A965,'Work Order Master'!$K:$K,0)),\"New\")","v":"New"},{"$f":"IFERROR(INDEX('Work Order Master'!T:T,MATCH(WORKORDERS!$Q965,'Work Order Master'!$S:$S,0)),Q965)","v":"New"},{"$f":"IFERROR(INDEX('FRS CC Master'!A:A,MATCH(WORKORDERS!$Q965*1,'FRS CC Master'!$C:$C,0)),WORKORDERS!$L965)","v":"Scholarship, Research and Creative Activity"},{"$f":"IFERROR(VLOOKUP($A965,'Work Order Master'!$K:$Q,7,FALSE),\"Remove\")","v":"Remove"}]
["25025-1-40","SRCA VIURAC RF - McCunn Ex-Inn","Parked","25025-1","SRCA VIURAC RF","(blank)","5025","VIU Internal Awards - VIURAC","500","Scholarship, Research and Creative Activity","500","Scholarship, Research and Creative Activity","(blank)","315","VIURAC RF","no",{"$f":"IFERROR(INDEX('Work Order Master'!$S:$S,MATCH(A966,'Work Order Master'!$K:$K,0)),\"New\")","v":"New"},{"$f":"IFERROR(INDEX('Work Order Master'!T:T,MATCH(WORKORDERS!$Q966,'Work Order Master'!$S:$S,0)),Q966)","v":"New"},{"$f":"IFERROR(INDEX('FRS CC Master'!A:A,MATCH(WORKORDERS!$Q966*1,'FRS CC Master'!$C:$C,0)),WORKORDERS!$L966)","v":"Scholarship, Research and Creative Activity"},{"$f":"IFERROR(VLOOKUP($A966,'Work Order Master'!$K:$Q,7,FALSE),\"Remove\")","v":"Remove"}]
["25025-1-41","SRCA VIURAC RF - Blaney Ex","Parked","25025-1","SRCA VIURAC RF","(blank)","5025","VIU Internal Awards - VIURAC","500","Scholarship, Research and Creative Activity","500","Scholarship, Research and Creative Activity","(blank)","315","VIURAC RF","no",{"$f":"IFERROR(INDEX('Work Order Master'!$S:$S,MATCH(A967,'Work Order Master'!$K:$K,0)),\"New\")","v":"New"},{"$f":"IFERROR(INDEX('Work Order Master'!T:T,MATCH(WORKORDERS!$Q967,'Work Order Master'!$S:$S,0)),Q967)","v":"New"},{"$f":"IFERROR(INDEX('FRS CC Master'!A:A,MATCH(WORKORDERS!$Q967*1,'FRS CC Master'!$C:$C,0)),WORKORDERS!$L967)","v":"Scholarship, Research and Creative Activity"},{"$f":"IFERROR(VLOOKUP($A967,'Work Order Master'!$K:$Q,7,FALSE),\"Remove\")","v":"Remove"}]
["25025-1-42","SRCA VIURAC RF - Lait (Moved to MABRRI)","Parked","25025-1","SRCA VIURAC RF","(blank)","5025","VIU Internal Awards - VIURAC","500","Scholarship, Research and Creative Activity","500","Scholarship, Research and Creative Activity","(blank)","315","VIURAC RF","no",{"$f":"IFERROR(INDEX('Work Order Master'!$S:$S,MATCH(A968,'Work Order Master'!$K:$K,0)),\"New\")","v":"New"},{"$f":"IFERROR(INDEX('Work Order Master'!T:T,MATCH(WORKORDERS!$Q968,'Work Order Master'!$S:$S,0)),Q968)","v":"New"},{"$f":"IFERROR(INDEX('FRS CC Master'!A:A,MATCH(WORKORDERS!$Q968*1,'FRS CC Master'!$C:$C,0)),WORKORDERS!$L968)","v":"Scholarship, Research and Creative Activity"},{"$f":"IFERROR(VLOOKUP($A968,'Work Order Master'!$K:$Q,7,FALSE),\"Remove\")","v":"Remove"}]
["25025-1-43","SRCA VIURAC RF - Alphonse","Active","25025-1","SRCA VIURAC RF","(blank)","5025","VIU Internal Awards - VIURAC","500","Scholarship, Research and Creative Activity","500","Scholarship, Research and Creative Activity","(blank)","315","VIURAC RF","no",{"$f":"IFERROR(INDEX('Work Order Master'!$S:$S,MATCH(A969,'Work Order Master'!$K:$K,0)),\"New\")","v":1419},{"$f":"IFERROR(INDEX('Work Order Master'!T:T,MATCH(WORKORDERS!$Q969,'Work Order Master'!$S:$S,0)),Q969)","v":"VIURAC RF ALPHONSE"},{"$f":"IFERROR(INDEX('FRS CC Master'!A:A,MATCH(WORKORDERS!$Q969*1,'FRS CC Master'!$C:$C,0)),WORKORDERS!$L969)","v":"Scholarship, Research and Creative Activity"},{"$f":"IFERROR(VLOOKUP($A969,'Work Order Master'!$K:$Q,7,FALSE),\"Remove\")","v":"N"}]
["25025-1-44","SRCA VIURAC RF - MOGH 100262","Active","25025-1","SRCA VIURAC RF","(blank)","5025","VIU Internal Awards - VIURAC","500","Scholarship, Research and Creative Activity","500","Scholarship, Research and Creative Activity","(blank)","315","VIURAC RF","no",{"$f":"IFERROR(INDEX('Work Order Master'!$S:$S,MATCH(A970,'Work Order Master'!$K:$K,0)),\"New\")","v":1146},{"$f":"IFERROR(INDEX('Work Order Master'!T:T,MATCH(WORKORDERS!$Q970,'Work Order Master'!$S:$S,0)),Q970)","v":"VIURAC RF MOGH 100262"},{"$f":"IFERROR(INDEX('FRS CC Master'!A:A,MATCH(WORKORDERS!$Q970*1,'FRS CC Master'!$C:$C,0)),WORKORDERS!$L970)","v":"Scholarship, Research and Creative Activity"},{"$f":"IFERROR(VLOOKUP($A970,'Work Order Master'!$K:$Q,7,FALSE),\"Remove\")","v":"N"}]
["25025-1-45","SRCA VIURAC RF - HERNANDEZ 100580","Active","25025-1","SRCA VIURAC RF","(blank)","5025","VIU Internal Awards - VIURAC","500","Scholarship, Research and Creative Activity","500","Scholarship, Research and Creative Activity","(blank)","315","VIURAC RF","no",{"$f":"IFERROR(INDEX('Work Order Master'!$S:$S,MATCH(A971,'Work Order Master'!$K:$K,0)),\"New\")","v":1161},{"$f":"IFERROR(INDEX('Work Order Master'!T:T,MATCH(WORKORDERS!$Q971,'Work Order Master'!$S:$S,0)),Q971)","v":"VIURAC RF HERNANDEZ "},{"$f":"IFERROR(INDEX('FRS CC Master'!A:A,MATCH(WORKORDERS!$Q971*1,'FRS CC Master'!$C:$C,0)),WORKORDERS!$L971)","v":"Scholarship, Research and Creative Activity"},{"$f":"IFERROR(VLOOKUP($A971,'Work Order Master'!$K:$Q,7,FALSE),\"Remove\")","v":"N"}]
["25025-1-46","SRCA VIURAC RF - ANGLESTAD 100554","Parked","25025-1","SRCA VIURAC RF","(blank)","5025","VIU Internal Awards - VIURAC","500","Scholarship, Research and Creative Activity","500","Scholarship, Research and Creative Activity","(blank)","315","VIURAC RF","no",{"$f":"IFERROR(INDEX('Work Order Master'!$S:$S,MATCH(A972,'Work Order Master'!$K:$K,0)),\"New\")","v":"New"},{"$f":"IFERROR(INDEX('Work Order Master'!T:T,MATCH(WORKORDERS!$Q972,'Work Order Master'!$S:$S,0)),Q972)","v":"New"},{"$f":"IFERROR(INDEX('FRS CC Master'!A:A,MATCH(WORKORDERS!$Q972*1,'FRS CC Master'!$C:$C,0)),WORKORDERS!$L972)","v":"Scholarship, Research and Creative Activity"},{"$f":"IFERROR(VLOOKUP($A972,'Work Order Master'!$K:$Q,7,FALSE),\"Remove\")","v":"Remove"}]
["25025-1-47","SRCA VIURAC RF - JANES 100584 -561","Parked","25025-1","SRCA VIURAC RF","(blank)","5025","VIU Internal Awards - VIURAC","500","Scholarship, Research and Creative Activity","500","Scholarship, Research and Creative Activity","(blank)","315","VIURAC RF","no",{"$f":"IFERROR(INDEX('Work Order Master'!$S:$S,MATCH(A973,'Work Order Master'!$K:$K,0)),\"New\")","v":"New"},{"$f":"IFERROR(INDEX('Work Order Master'!T:T,MATCH(WORKORDERS!$Q973,'Work Order Master'!$S:$S,0)),Q973)","v":"New"},{"$f":"IFERROR(INDEX('FRS CC Master'!A:A,MATCH(WORKORDERS!$Q973*1,'FRS CC Master'!$C:$C,0)),WORKORDERS!$L973)","v":"Scholarship, Research and Creative Activity"},{"$f":"IFERROR(VLOOKUP($A973,'Work Order Master'!$K:$Q,7,FALSE),\"Remove\")","v":"Remove"}]
["25025-1-48","SRCA VIURAC RF - MCEWEN 100581","Active","25025-1","SRCA VIURAC RF","(blank)","5025","VIU Internal Awards - VIURAC","500","Scholarship, Research and Creative Activity","500","Scholarship, Research and Creative Activity","(blank)","315","VIURAC RF","no",{"$f":"IFERROR(INDEX('Work Order Master'!$S:$S,MATCH(A974,'Work Order Master'!$K:$K,0)),\"New\")","v":1158},{"$f":"IFERROR(INDEX('Work Order Master'!T:T,MATCH(WORKORDERS!$Q974,'Work Order Master'!$S:$S,0)),Q974)","v":"VIURAC RF MCEWEN 100581"},{"$f":"IFERROR(INDEX('FRS CC Master'!A:A,MATCH(WORKORDERS!$Q974*1,'FRS CC Master'!$C:$C,0)),WORKORDERS!$L974)","v":"Scholarship, Research and Creative Activity"},{"$f":"IFERROR(VLOOKUP($A974,'Work Order Master'!$K:$Q,7,FALSE),\"Remove\")","v":"N"}]
["25025-1-49","SRCA VIURAC RF - GORRELL 100579","Active","25025-1","SRCA VIURAC RF","(blank)","5025","VIU Internal Awards - VIURAC","500","Scholarship, Research and Creative Activity","500","Scholarship, Research and Creative Activity","(blank)","315","VIURAC RF","no",{"$f":"IFERROR(INDEX('Work Order Master'!$S:$S,MATCH(A975,'Work Order Master'!$K:$K,0)),\"New\")","v":1160},{"$f":"IFERROR(INDEX('Work Order Master'!T:T,MATCH(WORKORDERS!$Q975,'Work Order Master'!$S:$S,0)),Q975)","v":"VIURAC RF GORRELL 100579"},{"$f":"IFERROR(INDEX('FRS CC Master'!A:A,MATCH(WORKORDERS!$Q975*1,'FRS CC Master'!$C:$C,0)),WORKORDERS!$L975)","v":"Scholarship, Research and Creative Activity"},{"$f":"IFERROR(VLOOKUP($A975,'Work Order Master'!$K:$Q,7,FALSE),\"Remove\")","v":"N"}]
["25025-1-5","SRCA VIURAC RF -  Doughty","Parked","25025-1","SRCA VIURAC RF","(blank)","5025","VIU Internal Awards - VIURAC","500","Scholarship, Research and Creative Activity","500","Scholarship, Research and Creative Activity","(blank)","315","VIURAC RF","no",{"$f":"IFERROR(INDEX('Work Order Master'!$S:$S,MATCH(A976,'Work Order Master'!$K:$K,0)),\"New\")","v":"New"},{"$f":"IFERROR(INDEX('Work Order Master'!T:T,MATCH(WORKORDERS!$Q976,'Work Order Master'!$S:$S,0)),Q976)","v":"New"},{"$f":"IFERROR(INDEX('FRS CC Master'!A:A,MATCH(WORKORDERS!$Q976*1,'FRS CC Master'!$C:$C,0)),WORKORDERS!$L976)","v":"Scholarship, Research and Creative Activity"},{"$f":"IFERROR(VLOOKUP($A976,'Work Order Master'!$K:$Q,7,FALSE),\"Remove\")","v":"Remove"}]
["25025-1-50","SRCA VIURAC RF - DAMES 100631","Parked","25025-1","SRCA VIURAC RF","(blank)","5025","VIU Internal Awards - VIURAC","500","Scholarship, Research and Creative Activity","500","Scholarship, Research and Creative Activity","(blank)","315","VIURAC RF","no",{"$f":"IFERROR(INDEX('Work Order Master'!$S:$S,MATCH(A977,'Work Order Master'!$K:$K,0)),\"New\")","v":"New"},{"$f":"IFERROR(INDEX('Work Order Master'!T:T,MATCH(WORKORDERS!$Q977,'Work Order Master'!$S:$S,0)),Q977)","v":"New"},{"$f":"IFERROR(INDEX('FRS CC Master'!A:A,MATCH(WORKORDERS!$Q977*1,'FRS CC Master'!$C:$C,0)),WORKORDERS!$L977)","v":"Scholarship, Research and Creative Activity"},{"$f":"IFERROR(VLOOKUP($A977,'Work Order Master'!$K:$Q,7,FALSE),\"Remove\")","v":"Remove"}]
["25025-1-51","SRCA VIURAC RF - Publish - Heiti 100727","Parked","25025-1","SRCA VIURAC RF","(blank)","5025","VIU Internal Awards - VIURAC","500","Scholarship, Research and Creative Activity","500","Scholarship, Research and Creative Activity","(blank)","315","VIURAC RF","no",{"$f":"IFERROR(INDEX('Work Order Master'!$S:$S,MATCH(A978,'Work Order Master'!$K:$K,0)),\"New\")","v":"New"},{"$f":"IFERROR(INDEX('Work Order Master'!T:T,MATCH(WORKORDERS!$Q978,'Work Order Master'!$S:$S,0)),Q978)","v":"New"},{"$f":"IFERROR(INDEX('FRS CC Master'!A:A,MATCH(WORKORDERS!$Q978*1,'FRS CC Master'!$C:$C,0)),WORKORDERS!$L978)","v":"Scholarship, Research and Creative Activity"},{"$f":"IFERROR(VLOOKUP($A978,'Work Order Master'!$K:$Q,7,FALSE),\"Remove\")","v":"Remove"}]
["25025-1-52","SRCA VIURAC RF - Publish - Martin 100877","Active","25025-1","SRCA VIURAC RF","(blank)","5025","VIU Internal Awards - VIURAC","500","Scholarship, Research and Creative Activity","500","Scholarship, Research and Creative Activity","(blank)","315","VIURAC RF","no",{"$f":"IFERROR(INDEX('Work Order Master'!$S:$S,MATCH(A979,'Work Order Master'!$K:$K,0)),\"New\")","v":1199},{"$f":"IFERROR(INDEX('Work Order Master'!T:T,MATCH(WORKORDERS!$Q979,'Work Order Master'!$S:$S,0)),Q979)","v":"VIURAC RF-PUB MARTIN"},{"$f":"IFERROR(INDEX('FRS CC Master'!A:A,MATCH(WORKORDERS!$Q979*1,'FRS CC Master'!$C:$C,0)),WORKORDERS!$L979)","v":"Scholarship, Research and Creative Activity"},{"$f":"IFERROR(VLOOKUP($A979,'Work Order Master'!$K:$Q,7,FALSE),\"Remove\")","v":"N"}]
["25025-1-53","SRCA VIURAC RF - Russell 101007","Active","25025-1","SRCA VIURAC RF","(blank)","5025","VIU Internal Awards - VIURAC","500","Scholarship, Research and Creative Activity","500","Scholarship, Research and Creative Activity","(blank)","315","VIURAC RF","no",{"$f":"IFERROR(INDEX('Work Order Master'!$S:$S,MATCH(A980,'Work Order Master'!$K:$K,0)),\"New\")","v":1185},{"$f":"IFERROR(INDEX('Work Order Master'!T:T,MATCH(WORKORDERS!$Q980,'Work Order Master'!$S:$S,0)),Q980)","v":"VIURAC RF RUSSELL 101007"},{"$f":"IFERROR(INDEX('FRS CC Master'!A:A,MATCH(WORKORDERS!$Q980*1,'FRS CC Master'!$C:$C,0)),WORKORDERS!$L980)","v":"Scholarship, Research and Creative Activity"},{"$f":"IFERROR(VLOOKUP($A980,'Work Order Master'!$K:$Q,7,FALSE),\"Remove\")","v":"N"}]
["25025-1-54","SRCA VIURAC RF - Doughty 101013","Active","25025-1","SRCA VIURAC RF","(blank)","5025","VIU Internal Awards - VIURAC","500","Scholarship, Research and Creative Activity","500","Scholarship, Research and Creative Activity","(blank)","315","VIURAC RF","no",{"$f":"IFERROR(INDEX('Work Order Master'!$S:$S,MATCH(A981,'Work Order Master'!$K:$K,0)),\"New\")","v":1149},{"$f":"IFERROR(INDEX('Work Order Master'!T:T,MATCH(WORKORDERS!$Q981,'Work Order Master'!$S:$S,0)),Q981)","v":"VIURAC RF DOUGHTY 101013"},{"$f":"IFERROR(INDEX('FRS CC Master'!A:A,MATCH(WORKORDERS!$Q981*1,'FRS CC Master'!$C:$C,0)),WORKORDERS!$L981)","v":"Scholarship, Research and Creative Activity"},{"$f":"IFERROR(VLOOKUP($A981,'Work Order Master'!$K:$Q,7,FALSE),\"Remove\")","v":"N"}]
["25025-1-55","SRCA VIURAC RF - Affleck 101042","Active","25025-1","SRCA VIURAC RF","(blank)","5025","VIU Internal Awards - VIURAC","500","Scholarship, Research and Creative Activity","500","Scholarship, Research and Creative Activity","(blank)","315","VIURAC RF","no",{"$f":"IFERROR(INDEX('Work Order Master'!$S:$S,MATCH(A982,'Work Order Master'!$K:$K,0)),\"New\")","v":1145},{"$f":"IFERROR(INDEX('Work Order Master'!T:T,MATCH(WORKORDERS!$Q982,'Work Order Master'!$S:$S,0)),Q982)","v":"VIURAC RF AFFLECK 101042"},{"$f":"IFERROR(INDEX('FRS CC Master'!A:A,MATCH(WORKORDERS!$Q982*1,'FRS CC Master'!$C:$C,0)),WORKORDERS!$L982)","v":"Scholarship, Research and Creative Activity"},{"$f":"IFERROR(VLOOKUP($A982,'Work Order Master'!$K:$Q,7,FALSE),\"Remove\")","v":"N"}]
["25025-1-56","SRCA VIURAC RF - Sun 101008","Active","25025-1","SRCA VIURAC RF","(blank)","5025","VIU Internal Awards - VIURAC","500","Scholarship, Research and Creative Activity","500","Scholarship, Research and Creative Activity","(blank)","315","VIURAC RF","no",{"$f":"IFERROR(INDEX('Work Order Master'!$S:$S,MATCH(A983,'Work Order Master'!$K:$K,0)),\"New\")","v":1186},{"$f":"IFERROR(INDEX('Work Order Master'!T:T,MATCH(WORKORDERS!$Q983,'Work Order Master'!$S:$S,0)),Q983)","v":"VIURAC RF SUN 101008"},{"$f":"IFERROR(INDEX('FRS CC Master'!A:A,MATCH(WORKORDERS!$Q983*1,'FRS CC Master'!$C:$C,0)),WORKORDERS!$L983)","v":"Scholarship, Research and Creative Activity"},{"$f":"IFERROR(VLOOKUP($A983,'Work Order Master'!$K:$Q,7,FALSE),\"Remove\")","v":"N"}]
["25025-1-57","SRCA VIURAC RF - LOUDON 100997","Active","25025-1","SRCA VIURAC RF","(blank)","5025","VIU Internal Awards - VIURAC","500","Scholarship, Research and Creative Activity","500","Scholarship, Research and Creative Activity","(blank)","315","VIURAC RF","no",{"$f":"IFERROR(INDEX('Work Order Master'!$S:$S,MATCH(A984,'Work Order Master'!$K:$K,0)),\"New\")","v":1167},{"$f":"IFERROR(INDEX('Work Order Master'!T:T,MATCH(WORKORDERS!$Q984,'Work Order Master'!$S:$S,0)),Q984)","v":"VIURAC RF LOUDON 100997"},{"$f":"IFERROR(INDEX('FRS CC Master'!A:A,MATCH(WORKORDERS!$Q984*1,'FRS CC Master'!$C:$C,0)),WORKORDERS!$L984)","v":"Scholarship, Research and Creative Activity"},{"$f":"IFERROR(VLOOKUP($A984,'Work Order Master'!$K:$Q,7,FALSE),\"Remove\")","v":"N"}]
["25025-1-58","SRCA VIURAC RF - Mohabeer 101160","Active","25025-1","SRCA VIURAC RF","(blank)","5025","VIU Internal Awards - VIURAC","500","Scholarship, Research and Creative Activity","500","Scholarship, Research and Creative Activity","(blank)","315","VIURAC RF","no",{"$f":"IFERROR(INDEX('Work Order Master'!$S:$S,MATCH(A985,'Work Order Master'!$K:$K,0)),\"New\")","v":1189},{"$f":"IFERROR(INDEX('Work Order Master'!T:T,MATCH(WORKORDERS!$Q985,'Work Order Master'!$S:$S,0)),Q985)","v":"VIURAC RF MOHABEER 101160"},{"$f":"IFERROR(INDEX('FRS CC Master'!A:A,MATCH(WORKORDERS!$Q985*1,'FRS CC Master'!$C:$C,0)),WORKORDERS!$L985)","v":"Scholarship, Research and Creative Activity"},{"$f":"IFERROR(VLOOKUP($A985,'Work Order Master'!$K:$Q,7,FALSE),\"Remove\")","v":"N"}]
["25025-1-59","SRCA VIURAC RF - Wiebe 101172-173","Active","25025-1","SRCA VIURAC RF","(blank)","5025","VIU Internal Awards - VIURAC","500","Scholarship, Research and Creative Activity","500","Scholarship, Research and Creative Activity","(blank)","315","VIURAC RF","no",{"$f":"IFERROR(INDEX('Work Order Master'!$S:$S,MATCH(A986,'Work Order Master'!$K:$K,0)),\"New\")","v":1192},{"$f":"IFERROR(INDEX('Work Order Master'!T:T,MATCH(WORKORDERS!$Q986,'Work Order Master'!$S:$S,0)),Q986)","v":"VIURAC RF WIEBE 101172"},{"$f":"IFERROR(INDEX('FRS CC Master'!A:A,MATCH(WORKORDERS!$Q986*1,'FRS CC Master'!$C:$C,0)),WORKORDERS!$L986)","v":"Scholarship, Research and Creative Activity"},{"$f":"IFERROR(VLOOKUP($A986,'Work Order Master'!$K:$Q,7,FALSE),\"Remove\")","v":"N"}]
["25025-1-6","SRCA VIURAC RF - Duff","Parked","25025-1","SRCA VIURAC RF","(blank)","5025","VIU Internal Awards - VIURAC","500","Scholarship, Research and Creative Activity","500","Scholarship, Research and Creative Activity","(blank)","315","VIURAC RF","no",{"$f":"IFERROR(INDEX('Work Order Master'!$S:$S,MATCH(A987,'Work Order Master'!$K:$K,0)),\"New\")","v":"New"},{"$f":"IFERROR(INDEX('Work Order Master'!T:T,MATCH(WORKORDERS!$Q987,'Work Order Master'!$S:$S,0)),Q987)","v":"New"},{"$f":"IFERROR(INDEX('FRS CC Master'!A:A,MATCH(WORKORDERS!$Q987*1,'FRS CC Master'!$C:$C,0)),WORKORDERS!$L987)","v":"Scholarship, Research and Creative Activity"},{"$f":"IFERROR(VLOOKUP($A987,'Work Order Master'!$K:$Q,7,FALSE),\"Remove\")","v":"Remove"}]
["25025-1-60","SRCA VIURAC RF - Carruthers 101165-6","Active","25025-1","SRCA VIURAC RF","(blank)","5025","VIU Internal Awards - VIURAC","500","Scholarship, Research and Creative Activity","500","Scholarship, Research and Creative Activity","(blank)","315","VIURAC RF","no",{"$f":"IFERROR(INDEX('Work Order Master'!$S:$S,MATCH(A988,'Work Order Master'!$K:$K,0)),\"New\")","v":1193},{"$f":"IFERROR(INDEX('Work Order Master'!T:T,MATCH(WORKORDERS!$Q988,'Work Order Master'!$S:$S,0)),Q988)","v":"VIURAC RF CARRUTHERS"},{"$f":"IFERROR(INDEX('FRS CC Master'!A:A,MATCH(WORKORDERS!$Q988*1,'FRS CC Master'!$C:$C,0)),WORKORDERS!$L988)","v":"Scholarship, Research and Creative Activity"},{"$f":"IFERROR(VLOOKUP($A988,'Work Order Master'!$K:$Q,7,FALSE),\"Remove\")","v":"N"}]
["25025-1-61","SRCA VIURAC RF - Lester 101256","Active","25025-1","SRCA VIURAC RF","(blank)","5025","VIU Internal Awards - VIURAC","500","Scholarship, Research and Creative Activity","500","Scholarship, Research and Creative Activity","(blank)","315","VIURAC RF","no",{"$f":"IFERROR(INDEX('Work Order Master'!$S:$S,MATCH(A989,'Work Order Master'!$K:$K,0)),\"New\")","v":1172},{"$f":"IFERROR(INDEX('Work Order Master'!T:T,MATCH(WORKORDERS!$Q989,'Work Order Master'!$S:$S,0)),Q989)","v":"VIURAC RF LESTER 101256"},{"$f":"IFERROR(INDEX('FRS CC Master'!A:A,MATCH(WORKORDERS!$Q989*1,'FRS CC Master'!$C:$C,0)),WORKORDERS!$L989)","v":"Scholarship, Research and Creative Activity"},{"$f":"IFERROR(VLOOKUP($A989,'Work Order Master'!$K:$Q,7,FALSE),\"Remove\")","v":"N"}]
["25025-1-62","SRCA VIURAC RF - Duncan 248-9","Active","25025-1","SRCA VIURAC RF","(blank)","5025","VIU Internal Awards - VIURAC","500","Scholarship, Research and Creative Activity","500","Scholarship, Research and Creative Activity","(blank)","315","VIURAC RF","no",{"$f":"IFERROR(INDEX('Work Order Master'!$S:$S,MATCH(A990,'Work Order Master'!$K:$K,0)),\"New\")","v":1196},{"$f":"IFERROR(INDEX('Work Order Master'!T:T,MATCH(WORKORDERS!$Q990,'Work Order Master'!$S:$S,0)),Q990)","v":"VIURAC RF DUNCAN 248-9"},{"$f":"IFERROR(INDEX('FRS CC Master'!A:A,MATCH(WORKORDERS!$Q990*1,'FRS CC Master'!$C:$C,0)),WORKORDERS!$L990)","v":"Scholarship, Research and Creative Activity"},{"$f":"IFERROR(VLOOKUP($A990,'Work Order Master'!$K:$Q,7,FALSE),\"Remove\")","v":"N"}]
["25025-1-63","SRCA VIURAC RF - Janes 101240","Active","25025-1","SRCA VIURAC RF","(blank)","5025","VIU Internal Awards - VIURAC","500","Scholarship, Research and Creative Activity","500","Scholarship, Research and Creative Activity","(blank)","315","VIURAC RF","no",{"$f":"IFERROR(INDEX('Work Order Master'!$S:$S,MATCH(A991,'Work Order Master'!$K:$K,0)),\"New\")","v":1197},{"$f":"IFERROR(INDEX('Work Order Master'!T:T,MATCH(WORKORDERS!$Q991,'Work Order Master'!$S:$S,0)),Q991)","v":"VIURAC RF JANES 101240"},{"$f":"IFERROR(INDEX('FRS CC Master'!A:A,MATCH(WORKORDERS!$Q991*1,'FRS CC Master'!$C:$C,0)),WORKORDERS!$L991)","v":"Scholarship, Research and Creative Activity"},{"$f":"IFERROR(VLOOKUP($A991,'Work Order Master'!$K:$Q,7,FALSE),\"Remove\")","v":"N"}]
["25025-1-64","SRCA VIURAC RF - Bitterberg 101253-2-1","Active","25025-1","SRCA VIURAC RF","(blank)","5025","VIU Internal Awards - VIURAC","500","Scholarship, Research and Creative Activity","500","Scholarship, Research and Creative Activity","(blank)","315","VIURAC RF","no",{"$f":"IFERROR(INDEX('Work Order Master'!$S:$S,MATCH(A992,'Work Order Master'!$K:$K,0)),\"New\")","v":1178},{"$f":"IFERROR(INDEX('Work Order Master'!T:T,MATCH(WORKORDERS!$Q992,'Work Order Master'!$S:$S,0)),Q992)","v":"VIURAC RF BITTERBERG"},{"$f":"IFERROR(INDEX('FRS CC Master'!A:A,MATCH(WORKORDERS!$Q992*1,'FRS CC Master'!$C:$C,0)),WORKORDERS!$L992)","v":"Scholarship, Research and Creative Activity"},{"$f":"IFERROR(VLOOKUP($A992,'Work Order Master'!$K:$Q,7,FALSE),\"Remove\")","v":"N"}]
["25025-1-65","SRCA VIURAC RF - Russell 101246","Active","25025-1","SRCA VIURAC RF","(blank)","5025","VIU Internal Awards - VIURAC","500","Scholarship, Research and Creative Activity","500","Scholarship, Research and Creative Activity","(blank)","315","VIURAC RF","no",{"$f":"IFERROR(INDEX('Work Order Master'!$S:$S,MATCH(A993,'Work Order Master'!$K:$K,0)),\"New\")","v":1194},{"$f":"IFERROR(INDEX('Work Order Master'!T:T,MATCH(WORKORDERS!$Q993,'Work Order Master'!$S:$S,0)),Q993)","v":"VIURAC RF RUSSELL 101246"},{"$f":"IFERROR(INDEX('FRS CC Master'!A:A,MATCH(WORKORDERS!$Q993*1,'FRS CC Master'!$C:$C,0)),WORKORDERS!$L993)","v":"Scholarship, Research and Creative Activity"},{"$f":"IFERROR(VLOOKUP($A993,'Work Order Master'!$K:$Q,7,FALSE),\"Remove\")","v":"N"}]
["25025-1-66","SRCA VIURAC RF - Sun 101250","Active","25025-1","SRCA VIURAC RF","(blank)","5025","VIU Internal Awards - VIURAC","500","Scholarship, Research and Creative Activity","500","Scholarship, Research and Creative Activity","(blank)","315","VIURAC RF","no",{"$f":"IFERROR(INDEX('Work Order Master'!$S:$S,MATCH(A994,'Work Order Master'!$K:$K,0)),\"New\")","v":1174},{"$f":"IFERROR(INDEX('Work Order Master'!T:T,MATCH(WORKORDERS!$Q994,'Work Order Master'!$S:$S,0)),Q994)","v":"VIURAC RF SUN 101250"},{"$f":"IFERROR(INDEX('FRS CC Master'!A:A,MATCH(WORKORDERS!$Q994*1,'FRS CC Master'!$C:$C,0)),WORKORDERS!$L994)","v":"Scholarship, Research and Creative Activity"},{"$f":"IFERROR(VLOOKUP($A994,'Work Order Master'!$K:$Q,7,FALSE),\"Remove\")","v":"N"}]
["25025-1-7","SRCA VIURAC RF - Gorrell-2","Parked","25025-1","SRCA VIURAC RF","(blank)","5025","VIU Internal Awards - VIURAC","500","Scholarship, Research and Creative Activity","500","Scholarship, Research and Creative Activity","(blank)","315","VIURAC RF","no",{"$f":"IFERROR(INDEX('Work Order Master'!$S:$S,MATCH(A995,'Work Order Master'!$K:$K,0)),\"New\")","v":"New"},{"$f":"IFERROR(INDEX('Work Order Master'!T:T,MATCH(WORKORDERS!$Q995,'Work Order Master'!$S:$S,0)),Q995)","v":"New"},{"$f":"IFERROR(INDEX('FRS CC Master'!A:A,MATCH(WORKORDERS!$Q995*1,'FRS CC Master'!$C:$C,0)),WORKORDERS!$L995)","v":"Scholarship, Research and Creative Activity"},{"$f":"IFERROR(VLOOKUP($A995,'Work Order Master'!$K:$Q,7,FALSE),\"Remove\")","v":"Remove"}]
["25025-1-8","SRCA VIURAC RF - Johnstone","Parked","25025-1","SRCA VIURAC RF","(blank)","5025","VIU Internal Awards - VIURAC","500","Scholarship, Research and Creative Activity","500","Scholarship, Research and Creative Activity","(blank)","315","VIURAC RF","no",{"$f":"IFERROR(INDEX('Work Order Master'!$S:$S,MATCH(A996,'Work Order Master'!$K:$K,0)),\"New\")","v":"New"},{"$f":"IFERROR(INDEX('Work Order Master'!T:T,MATCH(WORKORDERS!$Q996,'Work Order Master'!$S:$S,0)),Q996)","v":"New"},{"$f":"IFERROR(INDEX('FRS CC Master'!A:A,MATCH(WORKORDERS!$Q996*1,'FRS CC Master'!$C:$C,0)),WORKORDERS!$L996)","v":"Scholarship, Research and Creative Activity"},{"$f":"IFERROR(VLOOKUP($A996,'Work Order Master'!$K:$Q,7,FALSE),\"Remove\")","v":"Remove"}]
["25025-1-9","SRCA VIURAC RF - Jung","Parked","25025-1","SRCA VIURAC RF","(blank)","5025","VIU Internal Awards - VIURAC","500","Scholarship, Research and Creative Activity","500","Scholarship, Research and Creative Activity","(blank)","315","VIURAC RF","no",{"$f":"IFERROR(INDEX('Work Order Master'!$S:$S,MATCH(A997,'Work Order Master'!$K:$K,0)),\"New\")","v":"New"},{"$f":"IFERROR(INDEX('Work Order Master'!T:T,MATCH(WORKORDERS!$Q997,'Work Order Master'!$S:$S,0)),Q997)","v":"New"},{"$f":"IFERROR(INDEX('FRS CC Master'!A:A,MATCH(WORKORDERS!$Q997*1,'FRS CC Master'!$C:$C,0)),WORKORDERS!$L997)","v":"Scholarship, Research and Creative Activity"},{"$f":"IFERROR(VLOOKUP($A997,'Work Order Master'!$K:$Q,7,FALSE),\"Remove\")","v":"Remove"}]
["25025-2-1","SRCA VIURAC N-GRF - Baker","Parked","25025-2","SRCA VIURAC N-GRF","(blank)","5025","VIU Internal Awards - VIURAC","500","Scholarship, Research and Creative Activity","500","Scholarship, Research and Creative Activity","(blank)","315","VIURAC RF","no",{"$f":"IFERROR(INDEX('Work Order Master'!$S:$S,MATCH(A998,'Work Order Master'!$K:$K,0)),\"New\")","v":"New"},{"$f":"IFERROR(INDEX('Work Order Master'!T:T,MATCH(WORKORDERS!$Q998,'Work Order Master'!$S:$S,0)),Q998)","v":"New"},{"$f":"IFERROR(INDEX('FRS CC Master'!A:A,MATCH(WORKORDERS!$Q998*1,'FRS CC Master'!$C:$C,0)),WORKORDERS!$L998)","v":"Scholarship, Research and Creative Activity"},{"$f":"IFERROR(VLOOKUP($A998,'Work Order Master'!$K:$Q,7,FALSE),\"Remove\")","v":"Remove"}]
["25025-2-2","SRCA VIURAC N-GRF - Gorrell","Parked","25025-2","SRCA VIURAC N-GRF","(blank)","5025","VIU Internal Awards - VIURAC","500","Scholarship, Research and Creative Activity","500","Scholarship, Research and Creative Activity","(blank)","315","VIURAC RF","no",{"$f":"IFERROR(INDEX('Work Order Master'!$S:$S,MATCH(A999,'Work Order Master'!$K:$K,0)),\"New\")","v":"New"},{"$f":"IFERROR(INDEX('Work Order Master'!T:T,MATCH(WORKORDERS!$Q999,'Work Order Master'!$S:$S,0)),Q999)","v":"New"},{"$f":"IFERROR(INDEX('FRS CC Master'!A:A,MATCH(WORKORDERS!$Q999*1,'FRS CC Master'!$C:$C,0)),WORKORDERS!$L999)","v":"Scholarship, Research and Creative Activity"},{"$f":"IFERROR(VLOOKUP($A999,'Work Order Master'!$K:$Q,7,FALSE),\"Remove\")","v":"Remove"}]
["25025-2-3","SRCA VIURAC N-GRF - Janes (1)","Parked","25025-2","SRCA VIURAC N-GRF","(blank)","5025","VIU Internal Awards - VIURAC","500","Scholarship, Research and Creative Activity","500","Scholarship, Research and Creative Activity","(blank)","315","VIURAC RF","no",{"$f":"IFERROR(INDEX('Work Order Master'!$S:$S,MATCH(A1000,'Work Order Master'!$K:$K,0)),\"New\")","v":"New"},{"$f":"IFERROR(INDEX('Work Order Master'!T:T,MATCH(WORKORDERS!$Q1000,'Work Order Master'!$S:$S,0)),Q1000)","v":"New"},{"$f":"IFERROR(INDEX('FRS CC Master'!A:A,MATCH(WORKORDERS!$Q1000*1,'FRS CC Master'!$C:$C,0)),WORKORDERS!$L1000)","v":"Scholarship, Research and Creative Activity"},{"$f":"IFERROR(VLOOKUP($A1000,'Work Order Master'!$K:$Q,7,FALSE),\"Remove\")","v":"Remove"}]
["25025-2-4","SRCA VIURAC N-GRF - Janes (2)","Parked","25025-2","SRCA VIURAC N-GRF","(blank)","5025","VIU Internal Awards - VIURAC","500","Scholarship, Research and Creative Activity","500","Scholarship, Research and Creative Activity","(blank)","315","VIURAC RF","no",{"$f":"IFERROR(INDEX('Work Order Master'!$S:$S,MATCH(A1001,'Work Order Master'!$K:$K,0)),\"New\")","v":"New"},{"$f":"IFERROR(INDEX('Work Order Master'!T:T,MATCH(WORKORDERS!$Q1001,'Work Order Master'!$S:$S,0)),Q1001)","v":"New"},{"$f":"IFERROR(INDEX('FRS CC Master'!A:A,MATCH(WORKORDERS!$Q1001*1,'FRS CC Master'!$C:$C,0)),WORKORDERS!$L1001)","v":"Scholarship, Research and Creative Activity"},{"$f":"IFERROR(VLOOKUP($A1001,'Work Order Master'!$K:$Q,7,FALSE),\"Remove\")","v":"Remove"}]
["25025-2-5","SRCA VIURAC N-GRF - Nilson","Parked","25025-2","SRCA VIURAC N-GRF","(blank)","5025","VIU Internal Awards - VIURAC","500","Scholarship, Research and Creative Activity","500","Scholarship, Research and Creative Activity","(blank)","315","VIURAC RF","no",{"$f":"IFERROR(INDEX('Work Order Master'!$S:$S,MATCH(A1002,'Work Order Master'!$K:$K,0)),\"New\")","v":"New"},{"$f":"IFERROR(INDEX('Work Order Master'!T:T,MATCH(WORKORDERS!$Q1002,'Work Order Master'!$S:$S,0)),Q1002)","v":"New"},{"$f":"IFERROR(INDEX('FRS CC Master'!A:A,MATCH(WORKORDERS!$Q1002*1,'FRS CC Master'!$C:$C,0)),WORKORDERS!$L1002)","v":"Scholarship, Research and Creative Activity"},{"$f":"IFERROR(VLOOKUP($A1002,'Work Order Master'!$K:$Q,7,FALSE),\"Remove\")","v":"Remove"}]
["25025-2-6","SRCA VIURAC N-GRF - Russell","Active","25025-2","SRCA VIURAC N-GRF","(blank)","5025","VIU Internal Awards - VIURAC","500","Scholarship, Research and Creative Activity","500","Scholarship, Research and Creative Activity","(blank)","315","VIURAC RF","no",{"$f":"IFERROR(INDEX('Work Order Master'!$S:$S,MATCH(A1003,'Work Order Master'!$K:$K,0)),\"New\")","v":4137},{"$f":"IFERROR(INDEX('Work Order Master'!T:T,MATCH(WORKORDERS!$Q1003,'Work Order Master'!$S:$S,0)),Q1003)","v":"VIURAC N-GRF RUSSELL"},{"$f":"IFERROR(INDEX('FRS CC Master'!A:A,MATCH(WORKORDERS!$Q1003*1,'FRS CC Master'!$C:$C,0)),WORKORDERS!$L1003)","v":"Scholarship, Research and Creative Activity"},{"$f":"IFERROR(VLOOKUP($A1003,'Work Order Master'!$K:$Q,7,FALSE),\"Remove\")","v":"N"}]
["25025-2-7","SRCA VIURAC N-GRF - Stokes","Active","25025-2","SRCA VIURAC N-GRF","(blank)","5025","VIU Internal Awards - VIURAC","500","Scholarship, Research and Creative Activity","500","Scholarship, Research and Creative Activity","(blank)","315","VIURAC RF","no",{"$f":"IFERROR(INDEX('Work Order Master'!$S:$S,MATCH(A1004,'Work Order Master'!$K:$K,0)),\"New\")","v":4129},{"$f":"IFERROR(INDEX('Work Order Master'!T:T,MATCH(WORKORDERS!$Q1004,'Work Order Master'!$S:$S,0)),Q1004)","v":"VIURAC N-GRF STOKES"},{"$f":"IFERROR(INDEX('FRS CC Master'!A:A,MATCH(WORKORDERS!$Q1004*1,'FRS CC Master'!$C:$C,0)),WORKORDERS!$L1004)","v":"Scholarship, Research and Creative Activity"},{"$f":"IFERROR(VLOOKUP($A1004,'Work Order Master'!$K:$Q,7,FALSE),\"Remove\")","v":"N"}]
["25025-3-1","SRCA VIURAC S-GRF - Koerbler","Parked","25025-3","SRCA VIURAC S-GRF","(blank)","5025","VIU Internal Awards - VIURAC","500","Scholarship, Research and Creative Activity","500","Scholarship, Research and Creative Activity","(blank)","315","VIURAC RF","no",{"$f":"IFERROR(INDEX('Work Order Master'!$S:$S,MATCH(A1005,'Work Order Master'!$K:$K,0)),\"New\")","v":"New"},{"$f":"IFERROR(INDEX('Work Order Master'!T:T,MATCH(WORKORDERS!$Q1005,'Work Order Master'!$S:$S,0)),Q1005)","v":"New"},{"$f":"IFERROR(INDEX('FRS CC Master'!A:A,MATCH(WORKORDERS!$Q1005*1,'FRS CC Master'!$C:$C,0)),WORKORDERS!$L1005)","v":"Scholarship, Research and Creative Activity"},{"$f":"IFERROR(VLOOKUP($A1005,'Work Order Master'!$K:$Q,7,FALSE),\"Remove\")","v":"Remove"}]
["25025-3-2","SRCA VIURAC S-GRF - Farrell","Active","25025-3","SRCA VIURAC S-GRF","(blank)","5025","VIU Internal Awards - VIURAC","500","Scholarship, Research and Creative Activity","500","Scholarship, Research and Creative Activity","(blank)","315","VIURAC RF","no",{"$f":"IFERROR(INDEX('Work Order Master'!$S:$S,MATCH(A1006,'Work Order Master'!$K:$K,0)),\"New\")","v":4125},{"$f":"IFERROR(INDEX('Work Order Master'!T:T,MATCH(WORKORDERS!$Q1006,'Work Order Master'!$S:$S,0)),Q1006)","v":"VIURAC S-GRF FARRELL"},{"$f":"IFERROR(INDEX('FRS CC Master'!A:A,MATCH(WORKORDERS!$Q1006*1,'FRS CC Master'!$C:$C,0)),WORKORDERS!$L1006)","v":"Scholarship, Research and Creative Activity"},{"$f":"IFERROR(VLOOKUP($A1006,'Work Order Master'!$K:$Q,7,FALSE),\"Remove\")","v":"N"}]
["25025-3-3","SRCA VIURAC S-GRF - Shaw","Parked","25025-3","SRCA VIURAC S-GRF","(blank)","5025","VIU Internal Awards - VIURAC","500","Scholarship, Research and Creative Activity","500","Scholarship, Research and Creative Activity","(blank)","315","VIURAC RF","no",{"$f":"IFERROR(INDEX('Work Order Master'!$S:$S,MATCH(A1007,'Work Order Master'!$K:$K,0)),\"New\")","v":"New"},{"$f":"IFERROR(INDEX('Work Order Master'!T:T,MATCH(WORKORDERS!$Q1007,'Work Order Master'!$S:$S,0)),Q1007)","v":"New"},{"$f":"IFERROR(INDEX('FRS CC Master'!A:A,MATCH(WORKORDERS!$Q1007*1,'FRS CC Master'!$C:$C,0)),WORKORDERS!$L1007)","v":"Scholarship, Research and Creative Activity"},{"$f":"IFERROR(VLOOKUP($A1007,'Work Order Master'!$K:$Q,7,FALSE),\"Remove\")","v":"Remove"}]
["25025-3-4","SRCA VIURAC S-GRF-Lewis 100556","Active","25025-3","SRCA VIURAC S-GRF","(blank)","5025","VIU Internal Awards - VIURAC","500","Scholarship, Research and Creative Activity","500","Scholarship, Research and Creative Activity","(blank)","315","VIURAC RF","no",{"$f":"IFERROR(INDEX('Work Order Master'!$S:$S,MATCH(A1008,'Work Order Master'!$K:$K,0)),\"New\")","v":1154},{"$f":"IFERROR(INDEX('Work Order Master'!T:T,MATCH(WORKORDERS!$Q1008,'Work Order Master'!$S:$S,0)),Q1008)","v":"VIURAC S-GRF LEWIS 100556"},{"$f":"IFERROR(INDEX('FRS CC Master'!A:A,MATCH(WORKORDERS!$Q1008*1,'FRS CC Master'!$C:$C,0)),WORKORDERS!$L1008)","v":"Scholarship, Research and Creative Activity"},{"$f":"IFERROR(VLOOKUP($A1008,'Work Order Master'!$K:$Q,7,FALSE),\"Remove\")","v":"N"}]
["25025-3-5","SRCA VIURAC S-GRF - Gardiner 101041","Active","25025-3","SRCA VIURAC S-GRF","(blank)","5025","VIU Internal Awards - VIURAC","500","Scholarship, Research and Creative Activity","500","Scholarship, Research and Creative Activity","(blank)","315","VIURAC RF","no",{"$f":"IFERROR(INDEX('Work Order Master'!$S:$S,MATCH(A1009,'Work Order Master'!$K:$K,0)),\"New\")","v":1159},{"$f":"IFERROR(INDEX('Work Order Master'!T:T,MATCH(WORKORDERS!$Q1009,'Work Order Master'!$S:$S,0)),Q1009)","v":"VIURAC S-GRF GARDINER 101041"},{"$f":"IFERROR(INDEX('FRS CC Master'!A:A,MATCH(WORKORDERS!$Q1009*1,'FRS CC Master'!$C:$C,0)),WORKORDERS!$L1009)","v":"Scholarship, Research and Creative Activity"},{"$f":"IFERROR(VLOOKUP($A1009,'Work Order Master'!$K:$Q,7,FALSE),\"Remove\")","v":"N"}]
["25025-3-6","SRCA VIURAC S-GRF - Reed 101043","Active","25025-3","SRCA VIURAC S-GRF","(blank)","5025","VIU Internal Awards - VIURAC","500","Scholarship, Research and Creative Activity","500","Scholarship, Research and Creative Activity","(blank)","315","VIURAC RF","no",{"$f":"IFERROR(INDEX('Work Order Master'!$S:$S,MATCH(A1010,'Work Order Master'!$K:$K,0)),\"New\")","v":1184},{"$f":"IFERROR(INDEX('Work Order Master'!T:T,MATCH(WORKORDERS!$Q1010,'Work Order Master'!$S:$S,0)),Q1010)","v":"VIURAC S-GRF REED 101043"},{"$f":"IFERROR(INDEX('FRS CC Master'!A:A,MATCH(WORKORDERS!$Q1010*1,'FRS CC Master'!$C:$C,0)),WORKORDERS!$L1010)","v":"Scholarship, Research and Creative Activity"},{"$f":"IFERROR(VLOOKUP($A1010,'Work Order Master'!$K:$Q,7,FALSE),\"Remove\")","v":"N"}]
["25025-3-7","SRCA VIURAC S-GRF - Moghimehfar 101040","Active","25025-3","SRCA VIURAC S-GRF","(blank)","5025","VIU Internal Awards - VIURAC","500","Scholarship, Research and Creative Activity","500","Scholarship, Research and Creative Activity","(blank)","315","VIURAC RF","no",{"$f":"IFERROR(INDEX('Work Order Master'!$S:$S,MATCH(A1011,'Work Order Master'!$K:$K,0)),\"New\")","v":1170},{"$f":"IFERROR(INDEX('Work Order Master'!T:T,MATCH(WORKORDERS!$Q1011,'Work Order Master'!$S:$S,0)),Q1011)","v":"VIURAC S-GRF MOGHIMEHFAR"},{"$f":"IFERROR(INDEX('FRS CC Master'!A:A,MATCH(WORKORDERS!$Q1011*1,'FRS CC Master'!$C:$C,0)),WORKORDERS!$L1011)","v":"Scholarship, Research and Creative Activity"},{"$f":"IFERROR(VLOOKUP($A1011,'Work Order Master'!$K:$Q,7,FALSE),\"Remove\")","v":"N"}]
["25025-3-8","SRCA VIURAC S-GRF - Warsh 101178","Active","25025-3","SRCA VIURAC S-GRF","(blank)","5025","VIU Internal Awards - VIURAC","500","Scholarship, Research and Creative Activity","500","Scholarship, Research and Creative Activity","(blank)","315","VIURAC RF","no",{"$f":"IFERROR(INDEX('Work Order Master'!$S:$S,MATCH(A1012,'Work Order Master'!$K:$K,0)),\"New\")","v":1152},{"$f":"IFERROR(INDEX('Work Order Master'!T:T,MATCH(WORKORDERS!$Q1012,'Work Order Master'!$S:$S,0)),Q1012)","v":"VIURAC S-GRF MOGHIMEHFAR"},{"$f":"IFERROR(INDEX('FRS CC Master'!A:A,MATCH(WORKORDERS!$Q1012*1,'FRS CC Master'!$C:$C,0)),WORKORDERS!$L1012)","v":"Scholarship, Research and Creative Activity"},{"$f":"IFERROR(VLOOKUP($A1012,'Work Order Master'!$K:$Q,7,FALSE),\"Remove\")","v":"N"}]
["25025-4-1","SRCA VIURAC SSHRC CEA - Lim","Parked","25025-4","SRCA VIURAC SSHRC","(blank)","5025","VIU Internal Awards - VIURAC","500","Scholarship, Research and Creative Activity","500","Scholarship, Research and Creative Activity","(blank)","315","VIURAC RF","no",{"$f":"IFERROR(INDEX('Work Order Master'!$S:$S,MATCH(A1013,'Work Order Master'!$K:$K,0)),\"New\")","v":"New"},{"$f":"IFERROR(INDEX('Work Order Master'!T:T,MATCH(WORKORDERS!$Q1013,'Work Order Master'!$S:$S,0)),Q1013)","v":"New"},{"$f":"IFERROR(INDEX('FRS CC Master'!A:A,MATCH(WORKORDERS!$Q1013*1,'FRS CC Master'!$C:$C,0)),WORKORDERS!$L1013)","v":"Scholarship, Research and Creative Activity"},{"$f":"IFERROR(VLOOKUP($A1013,'Work Order Master'!$K:$Q,7,FALSE),\"Remove\")","v":"Remove"}]
["25025-4-2","SRCA VIURAC SSHRC CEA - Moll","Parked","25025-4","SRCA VIURAC SSHRC","(blank)","5025","VIU Internal Awards - VIURAC","500","Scholarship, Research and Creative Activity","500","Scholarship, Research and Creative Activity","(blank)","315","VIURAC RF","no",{"$f":"IFERROR(INDEX('Work Order Master'!$S:$S,MATCH(A1014,'Work Order Master'!$K:$K,0)),\"New\")","v":"New"},{"$f":"IFERROR(INDEX('Work Order Master'!T:T,MATCH(WORKORDERS!$Q1014,'Work Order Master'!$S:$S,0)),Q1014)","v":"New"},{"$f":"IFERROR(INDEX('FRS CC Master'!A:A,MATCH(WORKORDERS!$Q1014*1,'FRS CC Master'!$C:$C,0)),WORKORDERS!$L1014)","v":"Scholarship, Research and Creative Activity"},{"$f":"IFERROR(VLOOKUP($A1014,'Work Order Master'!$K:$Q,7,FALSE),\"Remove\")","v":"Remove"}]
["25025-5-1","SRCA VIURAC SIG18 - Davidson","Active","25025-5","SRCA VIURAC SIG","(blank)","5025","VIU Internal Awards - VIURAC","500","Scholarship, Research and Creative Activity","500","Scholarship, Research and Creative Activity","(blank)","315","VIURAC RF","no",{"$f":"IFERROR(INDEX('Work Order Master'!$S:$S,MATCH(A1015,'Work Order Master'!$K:$K,0)),\"New\")","v":4114},{"$f":"IFERROR(INDEX('Work Order Master'!T:T,MATCH(WORKORDERS!$Q1015,'Work Order Master'!$S:$S,0)),Q1015)","v":"VIURAC SIG-18 DAVIDSON"},{"$f":"IFERROR(INDEX('FRS CC Master'!A:A,MATCH(WORKORDERS!$Q1015*1,'FRS CC Master'!$C:$C,0)),WORKORDERS!$L1015)","v":"Scholarship, Research and Creative Activity"},{"$f":"IFERROR(VLOOKUP($A1015,'Work Order Master'!$K:$Q,7,FALSE),\"Remove\")","v":"N"}]
["25025-5-10","SRCA VIURAC SIG18 - PASTRO","Active","25025-5","SRCA VIURAC SIG","(blank)","5025","VIU Internal Awards - VIURAC","500","Scholarship, Research and Creative Activity","500","Scholarship, Research and Creative Activity","(blank)","315","VIURAC RF","no",{"$f":"IFERROR(INDEX('Work Order Master'!$S:$S,MATCH(A1016,'Work Order Master'!$K:$K,0)),\"New\")","v":1418},{"$f":"IFERROR(INDEX('Work Order Master'!T:T,MATCH(WORKORDERS!$Q1016,'Work Order Master'!$S:$S,0)),Q1016)","v":"VIURAC SIG-18 PASTRO "},{"$f":"IFERROR(INDEX('FRS CC Master'!A:A,MATCH(WORKORDERS!$Q1016*1,'FRS CC Master'!$C:$C,0)),WORKORDERS!$L1016)","v":"Scholarship, Research and Creative Activity"},{"$f":"IFERROR(VLOOKUP($A1016,'Work Order Master'!$K:$Q,7,FALSE),\"Remove\")","v":"N"}]
["25025-5-11","SRCA VIURAC SIG18 - WARSH 100592","Active","25025-5","SRCA VIURAC SIG","(blank)","5025","VIU Internal Awards - VIURAC","500","Scholarship, Research and Creative Activity","500","Scholarship, Research and Creative Activity","(blank)","315","VIURAC RF","no",{"$f":"IFERROR(INDEX('Work Order Master'!$S:$S,MATCH(A1017,'Work Order Master'!$K:$K,0)),\"New\")","v":1162},{"$f":"IFERROR(INDEX('Work Order Master'!T:T,MATCH(WORKORDERS!$Q1017,'Work Order Master'!$S:$S,0)),Q1017)","v":"VIURAC SIG-18 WARSH "},{"$f":"IFERROR(INDEX('FRS CC Master'!A:A,MATCH(WORKORDERS!$Q1017*1,'FRS CC Master'!$C:$C,0)),WORKORDERS!$L1017)","v":"Scholarship, Research and Creative Activity"},{"$f":"IFERROR(VLOOKUP($A1017,'Work Order Master'!$K:$Q,7,FALSE),\"Remove\")","v":"N"}]
["25025-5-12","SRCA VIURAC SIG18 - TAPLAY 100633","Active","25025-5","SRCA VIURAC SIG","(blank)","5025","VIU Internal Awards - VIURAC","500","Scholarship, Research and Creative Activity","500","Scholarship, Research and Creative Activity","(blank)","315","VIURAC RF","no",{"$f":"IFERROR(INDEX('Work Order Master'!$S:$S,MATCH(A1018,'Work Order Master'!$K:$K,0)),\"New\")","v":1157},{"$f":"IFERROR(INDEX('Work Order Master'!T:T,MATCH(WORKORDERS!$Q1018,'Work Order Master'!$S:$S,0)),Q1018)","v":"VIURAC SIG-18 TAPLAY 100633"},{"$f":"IFERROR(INDEX('FRS CC Master'!A:A,MATCH(WORKORDERS!$Q1018*1,'FRS CC Master'!$C:$C,0)),WORKORDERS!$L1018)","v":"Scholarship, Research and Creative Activity"},{"$f":"IFERROR(VLOOKUP($A1018,'Work Order Master'!$K:$Q,7,FALSE),\"Remove\")","v":"N"}]
["25025-5-13","SRCA VIURAC SIG18 - Esliger 101017/18","Active","25025-5","SRCA VIURAC SIG","(blank)","5025","VIU Internal Awards - VIURAC","500","Scholarship, Research and Creative Activity","500","Scholarship, Research and Creative Activity","(blank)","315","VIURAC RF","no",{"$f":"IFERROR(INDEX('Work Order Master'!$S:$S,MATCH(A1019,'Work Order Master'!$K:$K,0)),\"New\")","v":1151},{"$f":"IFERROR(INDEX('Work Order Master'!T:T,MATCH(WORKORDERS!$Q1019,'Work Order Master'!$S:$S,0)),Q1019)","v":"VIURAC SIG18 ESLIGER 101017/18"},{"$f":"IFERROR(INDEX('FRS CC Master'!A:A,MATCH(WORKORDERS!$Q1019*1,'FRS CC Master'!$C:$C,0)),WORKORDERS!$L1019)","v":"Scholarship, Research and Creative Activity"},{"$f":"IFERROR(VLOOKUP($A1019,'Work Order Master'!$K:$Q,7,FALSE),\"Remove\")","v":"N"}]
["25025-5-2","SRCA VIURAC SIG15 - Hopwood","Parked","25025-5","SRCA VIURAC SIG","(blank)","5025","VIU Internal Awards - VIURAC","500","Scholarship, Research and Creative Activity","500","Scholarship, Research and Creative Activity","(blank)","315","VIURAC RF","no",{"$f":"IFERROR(INDEX('Work Order Master'!$S:$S,MATCH(A1020,'Work Order Master'!$K:$K,0)),\"New\")","v":"New"},{"$f":"IFERROR(INDEX('Work Order Master'!T:T,MATCH(WORKORDERS!$Q1020,'Work Order Master'!$S:$S,0)),Q1020)","v":"New"},{"$f":"IFERROR(INDEX('FRS CC Master'!A:A,MATCH(WORKORDERS!$Q1020*1,'FRS CC Master'!$C:$C,0)),WORKORDERS!$L1020)","v":"Scholarship, Research and Creative Activity"},{"$f":"IFERROR(VLOOKUP($A1020,'Work Order Master'!$K:$Q,7,FALSE),\"Remove\")","v":"Remove"}]
["25025-5-3","SRCA VIURAC SIG15 - Lewis","Parked","25025-5","SRCA VIURAC SIG","(blank)","5025","VIU Internal Awards - VIURAC","500","Scholarship, Research and Creative Activity","500","Scholarship, Research and Creative Activity","(blank)","315","VIURAC RF","no",{"$f":"IFERROR(INDEX('Work Order Master'!$S:$S,MATCH(A1021,'Work Order Master'!$K:$K,0)),\"New\")","v":"New"},{"$f":"IFERROR(INDEX('Work Order Master'!T:T,MATCH(WORKORDERS!$Q1021,'Work Order Master'!$S:$S,0)),Q1021)","v":"New"},{"$f":"IFERROR(INDEX('FRS CC Master'!A:A,MATCH(WORKORDERS!$Q1021*1,'FRS CC Master'!$C:$C,0)),WORKORDERS!$L1021)","v":"Scholarship, Research and Creative Activity"},{"$f":"IFERROR(VLOOKUP($A1021,'Work Order Master'!$K:$Q,7,FALSE),\"Remove\")","v":"Remove"}]
["25025-5-4","SRCA VIURAC SIG15 - Manson","Parked","25025-5","SRCA VIURAC SIG","(blank)","5025","VIU Internal Awards - VIURAC","500","Scholarship, Research and Creative Activity","500","Scholarship, Research and Creative Activity","(blank)","315","VIURAC RF","no",{"$f":"IFERROR(INDEX('Work Order Master'!$S:$S,MATCH(A1022,'Work Order Master'!$K:$K,0)),\"New\")","v":"New"},{"$f":"IFERROR(INDEX('Work Order Master'!T:T,MATCH(WORKORDERS!$Q1022,'Work Order Master'!$S:$S,0)),Q1022)","v":"New"},{"$f":"IFERROR(INDEX('FRS CC Master'!A:A,MATCH(WORKORDERS!$Q1022*1,'FRS CC Master'!$C:$C,0)),WORKORDERS!$L1022)","v":"Scholarship, Research and Creative Activity"},{"$f":"IFERROR(VLOOKUP($A1022,'Work Order Master'!$K:$Q,7,FALSE),\"Remove\")","v":"Remove"}]
["25025-5-5","SRCA VIURAC SIG18 - Mazutinec","Parked","25025-5","SRCA VIURAC SIG","(blank)","5025","VIU Internal Awards - VIURAC","500","Scholarship, Research and Creative Activity","500","Scholarship, Research and Creative Activity","(blank)","315","VIURAC RF","no",{"$f":"IFERROR(INDEX('Work Order Master'!$S:$S,MATCH(A1023,'Work Order Master'!$K:$K,0)),\"New\")","v":"New"},{"$f":"IFERROR(INDEX('Work Order Master'!T:T,MATCH(WORKORDERS!$Q1023,'Work Order Master'!$S:$S,0)),Q1023)","v":"New"},{"$f":"IFERROR(INDEX('FRS CC Master'!A:A,MATCH(WORKORDERS!$Q1023*1,'FRS CC Master'!$C:$C,0)),WORKORDERS!$L1023)","v":"Scholarship, Research and Creative Activity"},{"$f":"IFERROR(VLOOKUP($A1023,'Work Order Master'!$K:$Q,7,FALSE),\"Remove\")","v":"Remove"}]
["25025-5-6","SRCA VIURAC SIG18 - McCunn","Parked","25025-5","SRCA VIURAC SIG","(blank)","5025","VIU Internal Awards - VIURAC","500","Scholarship, Research and Creative Activity","500","Scholarship, Research and Creative Activity","(blank)","315","VIURAC RF","no",{"$f":"IFERROR(INDEX('Work Order Master'!$S:$S,MATCH(A1024,'Work Order Master'!$K:$K,0)),\"New\")","v":"New"},{"$f":"IFERROR(INDEX('Work Order Master'!T:T,MATCH(WORKORDERS!$Q1024,'Work Order Master'!$S:$S,0)),Q1024)","v":"New"},{"$f":"IFERROR(INDEX('FRS CC Master'!A:A,MATCH(WORKORDERS!$Q1024*1,'FRS CC Master'!$C:$C,0)),WORKORDERS!$L1024)","v":"Scholarship, Research and Creative Activity"},{"$f":"IFERROR(VLOOKUP($A1024,'Work Order Master'!$K:$Q,7,FALSE),\"Remove\")","v":"Remove"}]
["25025-5-7","SRCA VIURAC SIG18 - Taplay","Parked","25025-5","SRCA VIURAC SIG","(blank)","5025","VIU Internal Awards - VIURAC","500","Scholarship, Research and Creative Activity","500","Scholarship, Research and Creative Activity","(blank)","315","VIURAC RF","no",{"$f":"IFERROR(INDEX('Work Order Master'!$S:$S,MATCH(A1025,'Work Order Master'!$K:$K,0)),\"New\")","v":"New"},{"$f":"IFERROR(INDEX('Work Order Master'!T:T,MATCH(WORKORDERS!$Q1025,'Work Order Master'!$S:$S,0)),Q1025)","v":"New"},{"$f":"IFERROR(INDEX('FRS CC Master'!A:A,MATCH(WORKORDERS!$Q1025*1,'FRS CC Master'!$C:$C,0)),WORKORDERS!$L1025)","v":"Scholarship, Research and Creative Activity"},{"$f":"IFERROR(VLOOKUP($A1025,'Work Order Master'!$K:$Q,7,FALSE),\"Remove\")","v":"Remove"}]
["25025-5-8","SRCA VIURAC SIG18 - Hopwood","Parked","25025-5","SRCA VIURAC SIG","(blank)","5025","VIU Internal Awards - VIURAC","500","Scholarship, Research and Creative Activity","500","Scholarship, Research and Creative Activity","(blank)","315","VIURAC RF","no",{"$f":"IFERROR(INDEX('Work Order Master'!$S:$S,MATCH(A1026,'Work Order Master'!$K:$K,0)),\"New\")","v":"New"},{"$f":"IFERROR(INDEX('Work Order Master'!T:T,MATCH(WORKORDERS!$Q1026,'Work Order Master'!$S:$S,0)),Q1026)","v":"New"},{"$f":"IFERROR(INDEX('FRS CC Master'!A:A,MATCH(WORKORDERS!$Q1026*1,'FRS CC Master'!$C:$C,0)),WORKORDERS!$L1026)","v":"Scholarship, Research and Creative Activity"},{"$f":"IFERROR(VLOOKUP($A1026,'Work Order Master'!$K:$Q,7,FALSE),\"Remove\")","v":"Remove"}]
["25025-5-9","SRCA VIURAC SIG18 - Stone","Parked","25025-5","SRCA VIURAC SIG","(blank)","5025","VIU Internal Awards - VIURAC","500","Scholarship, Research and Creative Activity","500","Scholarship, Research and Creative Activity","(blank)","315","VIURAC RF","no",{"$f":"IFERROR(INDEX('Work Order Master'!$S:$S,MATCH(A1027,'Work Order Master'!$K:$K,0)),\"New\")","v":"New"},{"$f":"IFERROR(INDEX('Work Order Master'!T:T,MATCH(WORKORDERS!$Q1027,'Work Order Master'!$S:$S,0)),Q1027)","v":"New"},{"$f":"IFERROR(INDEX('FRS CC Master'!A:A,MATCH(WORKORDERS!$Q1027*1,'FRS CC Master'!$C:$C,0)),WORKORDERS!$L1027)","v":"Scholarship, Research and Creative Activity"},{"$f":"IFERROR(VLOOKUP($A1027,'Work Order Master'!$K:$Q,7,FALSE),\"Remove\")","v":"Remove"}]
["25025-6-1","SRCA VIURAC-Multiple - RF SIG18 - Gray","Parked","25025-6","SRCA VIURAC-Multiple","(blank)","5025","VIU Internal Awards - VIURAC","500","Scholarship, Research and Creative Activity","500","Scholarship, Research and Creative Activity","(blank)","315","VIURAC RF",{"$f":"IF(OR(A1028=A1027,A1028=A1029),\"yes\",\"no\")","v":"no"},{"$f":"IFERROR(INDEX('Work Order Master'!$S:$S,MATCH(A1028,'Work Order Master'!$K:$K,0)),\"New\")","v":"New"},{"$f":"IFERROR(INDEX('Work Order Master'!T:T,MATCH(WORKORDERS!$Q1028,'Work Order Master'!$S:$S,0)),Q1028)","v":"New"},{"$f":"IFERROR(INDEX('FRS CC Master'!A:A,MATCH(WORKORDERS!$Q1028*1,'FRS CC Master'!$C:$C,0)),WORKORDERS!$L1028)","v":"Scholarship, Research and Creative Activity"},{"$f":"IFERROR(VLOOKUP($A1028,'Work Order Master'!$K:$Q,7,FALSE),\"Remove\")","v":"Remove"}]
["25025-6-2","SRCA VIURAC-Multiple - SIG15 SIG18 SGRF - Hinbest","Parked","25025-6","SRCA VIURAC-Multiple","(blank)","5025","VIU Internal Awards - VIURAC","500","Scholarship, Research and Creative Activity","500","Scholarship, Research and Creative Activity","(blank)","315","VIURAC RF","no",{"$f":"IFERROR(INDEX('Work Order Master'!$S:$S,MATCH(A1029,'Work Order Master'!$K:$K,0)),\"New\")","v":"New"},{"$f":"IFERROR(INDEX('Work Order Master'!T:T,MATCH(WORKORDERS!$Q1029,'Work Order Master'!$S:$S,0)),Q1029)","v":"New"},{"$f":"IFERROR(INDEX('FRS CC Master'!A:A,MATCH(WORKORDERS!$Q1029*1,'FRS CC Master'!$C:$C,0)),WORKORDERS!$L1029)","v":"Scholarship, Research and Creative Activity"},{"$f":"IFERROR(VLOOKUP($A1029,'Work Order Master'!$K:$Q,7,FALSE),\"Remove\")","v":"Remove"}]
["25025-6-3","SRCA VIURAC-Multiple - SIG18 SGRF - Manson","Active","25025-6","SRCA VIURAC-Multiple","(blank)","5025","VIU Internal Awards - VIURAC","500","Scholarship, Research and Creative Activity","500","Scholarship, Research and Creative Activity","(blank)","315","VIURAC RF","no",{"$f":"IFERROR(INDEX('Work Order Master'!$S:$S,MATCH(A1030,'Work Order Master'!$K:$K,0)),\"New\")","v":4121},{"$f":"IFERROR(INDEX('Work Order Master'!T:T,MATCH(WORKORDERS!$Q1030,'Work Order Master'!$S:$S,0)),Q1030)","v":"VIURAC SIG-18-SGRF MANSON"},{"$f":"IFERROR(INDEX('FRS CC Master'!A:A,MATCH(WORKORDERS!$Q1030*1,'FRS CC Master'!$C:$C,0)),WORKORDERS!$L1030)","v":"Scholarship, Research and Creative Activity"},{"$f":"IFERROR(VLOOKUP($A1030,'Work Order Master'!$K:$Q,7,FALSE),\"Remove\")","v":"N"}]
["25025-6-4","SRCA VIURAC-Multiple - SIG18 SGRF - Moghimehfa","Parked","25025-6","SRCA VIURAC-Multiple","(blank)","5025","VIU Internal Awards - VIURAC","500","Scholarship, Research and Creative Activity","500","Scholarship, Research and Creative Activity","(blank)","315","VIURAC RF","no",{"$f":"IFERROR(INDEX('Work Order Master'!$S:$S,MATCH(A1031,'Work Order Master'!$K:$K,0)),\"New\")","v":"New"},{"$f":"IFERROR(INDEX('Work Order Master'!T:T,MATCH(WORKORDERS!$Q1031,'Work Order Master'!$S:$S,0)),Q1031)","v":"New"},{"$f":"IFERROR(INDEX('FRS CC Master'!A:A,MATCH(WORKORDERS!$Q1031*1,'FRS CC Master'!$C:$C,0)),WORKORDERS!$L1031)","v":"Scholarship, Research and Creative Activity"},{"$f":"IFERROR(VLOOKUP($A1031,'Work Order Master'!$K:$Q,7,FALSE),\"Remove\")","v":"Remove"}]
["25025-6-5","SRCA VIURAC-MULTIPLE-SIG18-SGRF-GOVER-BASAR 100590-91","Active","25025-6","SRCA VIURAC-Multiple","(blank)","5025","VIU Internal Awards - VIURAC","500","Scholarship, Research and Creative Activity","500","Scholarship, Research and Creative Activity","(blank)","315","VIURAC RF","no",{"$f":"IFERROR(INDEX('Work Order Master'!$S:$S,MATCH(A1032,'Work Order Master'!$K:$K,0)),\"New\")","v":1153},{"$f":"IFERROR(INDEX('Work Order Master'!T:T,MATCH(WORKORDERS!$Q1032,'Work Order Master'!$S:$S,0)),Q1032)","v":"VRC SIG18-SGRF GOVER-BASAR "},{"$f":"IFERROR(INDEX('FRS CC Master'!A:A,MATCH(WORKORDERS!$Q1032*1,'FRS CC Master'!$C:$C,0)),WORKORDERS!$L1032)","v":"Scholarship, Research and Creative Activity"},{"$f":"IFERROR(VLOOKUP($A1032,'Work Order Master'!$K:$Q,7,FALSE),\"Remove\")","v":"N"}]
["25025-7-1","SRCA VIURAC-AEST- Riedel 100650","Active","25025-7","SRCA VIURAC-AEST","(blank)","5025","VIU Internal Awards - VIURAC","500","Scholarship, Research and Creative Activity","500","Scholarship, Research and Creative Activity","(blank)","315","VIURAC RF","no",{"$f":"IFERROR(INDEX('Work Order Master'!$S:$S,MATCH(A1033,'Work Order Master'!$K:$K,0)),\"New\")","v":1163},{"$f":"IFERROR(INDEX('Work Order Master'!T:T,MATCH(WORKORDERS!$Q1033,'Work Order Master'!$S:$S,0)),Q1033)","v":"VIURAC AEST RIEDEL 100650"},{"$f":"IFERROR(INDEX('FRS CC Master'!A:A,MATCH(WORKORDERS!$Q1033*1,'FRS CC Master'!$C:$C,0)),WORKORDERS!$L1033)","v":"Scholarship, Research and Creative Activity"},{"$f":"IFERROR(VLOOKUP($A1033,'Work Order Master'!$K:$Q,7,FALSE),\"Remove\")","v":"N"}]
["25025-7-2","SRCA VIURAC-AEST Morden 653","Active","25025-7","SRCA VIURAC-AEST","(blank)","5025","VIU Internal Awards - VIURAC","500","Scholarship, Research and Creative Activity","500","Scholarship, Research and Creative Activity","(blank)","315","VIURAC RF","no",{"$f":"IFERROR(INDEX('Work Order Master'!$S:$S,MATCH(A1034,'Work Order Master'!$K:$K,0)),\"New\")","v":1165},{"$f":"IFERROR(INDEX('Work Order Master'!T:T,MATCH(WORKORDERS!$Q1034,'Work Order Master'!$S:$S,0)),Q1034)","v":"VIURAC AEST MORDEN 653"},{"$f":"IFERROR(INDEX('FRS CC Master'!A:A,MATCH(WORKORDERS!$Q1034*1,'FRS CC Master'!$C:$C,0)),WORKORDERS!$L1034)","v":"Scholarship, Research and Creative Activity"},{"$f":"IFERROR(VLOOKUP($A1034,'Work Order Master'!$K:$Q,7,FALSE),\"Remove\")","v":"N"}]
["25025-7-3","SRCA VIURAC-AEST McFarland 665","Active","25025-7","SRCA VIURAC-AEST","(blank)","5025","VIU Internal Awards - VIURAC","500","Scholarship, Research and Creative Activity","500","Scholarship, Research and Creative Activity","(blank)","315","VIURAC RF","no",{"$f":"IFERROR(INDEX('Work Order Master'!$S:$S,MATCH(A1035,'Work Order Master'!$K:$K,0)),\"New\")","v":1176},{"$f":"IFERROR(INDEX('Work Order Master'!T:T,MATCH(WORKORDERS!$Q1035,'Work Order Master'!$S:$S,0)),Q1035)","v":"VIURAC AEST MCFARLAND 665"},{"$f":"IFERROR(INDEX('FRS CC Master'!A:A,MATCH(WORKORDERS!$Q1035*1,'FRS CC Master'!$C:$C,0)),WORKORDERS!$L1035)","v":"Scholarship, Research and Creative Activity"},{"$f":"IFERROR(VLOOKUP($A1035,'Work Order Master'!$K:$Q,7,FALSE),\"Remove\")","v":"N"}]
["25025-7-4","SRCA VIURAC-AEST- Weighill 658","Active","25025-7","SRCA VIURAC-AEST","(blank)","5025","VIU Internal Awards - VIURAC","500","Scholarship, Research and Creative Activity","500","Scholarship, Research and Creative Activity","(blank)","315","VIURAC RF","no",{"$f":"IFERROR(INDEX('Work Order Master'!$S:$S,MATCH(A1036,'Work Order Master'!$K:$K,0)),\"New\")","v":1166},{"$f":"IFERROR(INDEX('Work Order Master'!T:T,MATCH(WORKORDERS!$Q1036,'Work Order Master'!$S:$S,0)),Q1036)","v":"VIURAC AEST WEIGHILL 658"},{"$f":"IFERROR(INDEX('FRS CC Master'!A:A,MATCH(WORKORDERS!$Q1036*1,'FRS CC Master'!$C:$C,0)),WORKORDERS!$L1036)","v":"Scholarship, Research and Creative Activity"},{"$f":"IFERROR(VLOOKUP($A1036,'Work Order Master'!$K:$Q,7,FALSE),\"Remove\")","v":"N"}]
["25025-7-5","SRCA VIURAC-AEST- Lait 100668","Active","25025-7","SRCA VIURAC-AEST","(blank)","5025","VIU Internal Awards - VIURAC","500","Scholarship, Research and Creative Activity","500","Scholarship, Research and Creative Activity","(blank)","315","VIURAC RF","no",{"$f":"IFERROR(INDEX('Work Order Master'!$S:$S,MATCH(A1037,'Work Order Master'!$K:$K,0)),\"New\")","v":1171},{"$f":"IFERROR(INDEX('Work Order Master'!T:T,MATCH(WORKORDERS!$Q1037,'Work Order Master'!$S:$S,0)),Q1037)","v":"VIURAC AEST LAIT 100668"},{"$f":"IFERROR(INDEX('FRS CC Master'!A:A,MATCH(WORKORDERS!$Q1037*1,'FRS CC Master'!$C:$C,0)),WORKORDERS!$L1037)","v":"Scholarship, Research and Creative Activity"},{"$f":"IFERROR(VLOOKUP($A1037,'Work Order Master'!$K:$Q,7,FALSE),\"Remove\")","v":"N"}]
["25025-7-6","SRCA VIURAC-AEST- Mayes 100652","Active","25025-7","SRCA VIURAC-AEST","(blank)","5025","VIU Internal Awards - VIURAC","500","Scholarship, Research and Creative Activity","500","Scholarship, Research and Creative Activity","(blank)","315","VIURAC RF","no",{"$f":"IFERROR(INDEX('Work Order Master'!$S:$S,MATCH(A1038,'Work Order Master'!$K:$K,0)),\"New\")","v":1164},{"$f":"IFERROR(INDEX('Work Order Master'!T:T,MATCH(WORKORDERS!$Q1038,'Work Order Master'!$S:$S,0)),Q1038)","v":"VIURAC AEST MAYES 100652"},{"$f":"IFERROR(INDEX('FRS CC Master'!A:A,MATCH(WORKORDERS!$Q1038*1,'FRS CC Master'!$C:$C,0)),WORKORDERS!$L1038)","v":"Scholarship, Research and Creative Activity"},{"$f":"IFERROR(VLOOKUP($A1038,'Work Order Master'!$K:$Q,7,FALSE),\"Remove\")","v":"N"}]
["25025-7-7","SRCA VIURAC-AEST- Anderson 637","Active","25025-7","SRCA VIURAC-AEST","(blank)","5025","VIU Internal Awards - VIURAC","500","Scholarship, Research and Creative Activity","500","Scholarship, Research and Creative Activity","(blank)","315","VIURAC RF","no",{"$f":"IFERROR(INDEX('Work Order Master'!$S:$S,MATCH(A1039,'Work Order Master'!$K:$K,0)),\"New\")","v":1169},{"$f":"IFERROR(INDEX('Work Order Master'!T:T,MATCH(WORKORDERS!$Q1039,'Work Order Master'!$S:$S,0)),Q1039)","v":"VIURAC AEST ANDERSON 637"},{"$f":"IFERROR(INDEX('FRS CC Master'!A:A,MATCH(WORKORDERS!$Q1039*1,'FRS CC Master'!$C:$C,0)),WORKORDERS!$L1039)","v":"Scholarship, Research and Creative Activity"},{"$f":"IFERROR(VLOOKUP($A1039,'Work Order Master'!$K:$Q,7,FALSE),\"Remove\")","v":"N"}]
["25025-7-8","SRCA VIURAC-AEST- Morden 101054","Active","25025-7","SRCA VIURAC-AEST","(blank)","5025","VIU Internal Awards - VIURAC","500","Scholarship, Research and Creative Activity","500","Scholarship, Research and Creative Activity","(blank)","315","VIURAC RF","no",{"$f":"IFERROR(INDEX('Work Order Master'!$S:$S,MATCH(A1040,'Work Order Master'!$K:$K,0)),\"New\")","v":1182},{"$f":"IFERROR(INDEX('Work Order Master'!T:T,MATCH(WORKORDERS!$Q1040,'Work Order Master'!$S:$S,0)),Q1040)","v":"VIURAC AEST MORDEN 101054"},{"$f":"IFERROR(INDEX('FRS CC Master'!A:A,MATCH(WORKORDERS!$Q1040*1,'FRS CC Master'!$C:$C,0)),WORKORDERS!$L1040)","v":"Scholarship, Research and Creative Activity"},{"$f":"IFERROR(VLOOKUP($A1040,'Work Order Master'!$K:$Q,7,FALSE),\"Remove\")","v":"N"}]
["25025-8-1","SRCA VIURAC M-HEALTH- Dames 100989","Active","25025-8","SRCA VIURAC M-HEALTH","(blank)","5025","VIU Internal Awards - VIURAC","500","Scholarship, Research and Creative Activity","500","Scholarship, Research and Creative Activity","(blank)","315","VIURAC RF","no",{"$f":"IFERROR(INDEX('Work Order Master'!$S:$S,MATCH(A1041,'Work Order Master'!$K:$K,0)),\"New\")","v":1147},{"$f":"IFERROR(INDEX('Work Order Master'!T:T,MATCH(WORKORDERS!$Q1041,'Work Order Master'!$S:$S,0)),Q1041)","v":"VIURAC M-HEALTH DAMES "},{"$f":"IFERROR(INDEX('FRS CC Master'!A:A,MATCH(WORKORDERS!$Q1041*1,'FRS CC Master'!$C:$C,0)),WORKORDERS!$L1041)","v":"Scholarship, Research and Creative Activity"},{"$f":"IFERROR(VLOOKUP($A1041,'Work Order Master'!$K:$Q,7,FALSE),\"Remove\")","v":"N"}]
["25025-8-2","SRCA VIURAC M-HEALTH- Gill 101174","Active","25025-8","SRCA VIURAC M-HEALTH","(blank)","5025","VIU Internal Awards - VIURAC","500","Scholarship, Research and Creative Activity","500","Scholarship, Research and Creative Activity","(blank)","315","VIURAC RF","no",{"$f":"IFERROR(INDEX('Work Order Master'!$S:$S,MATCH(A1042,'Work Order Master'!$K:$K,0)),\"New\")","v":1190},{"$f":"IFERROR(INDEX('Work Order Master'!T:T,MATCH(WORKORDERS!$Q1042,'Work Order Master'!$S:$S,0)),Q1042)","v":"VIURAC MH GILL 101174"},{"$f":"IFERROR(INDEX('FRS CC Master'!A:A,MATCH(WORKORDERS!$Q1042*1,'FRS CC Master'!$C:$C,0)),WORKORDERS!$L1042)","v":"Scholarship, Research and Creative Activity"},{"$f":"IFERROR(VLOOKUP($A1042,'Work Order Master'!$K:$Q,7,FALSE),\"Remove\")","v":"N"}]
["25100-10-1","SRCA RIF - REFBC - Brouder","Active","25100-10","SRCA RIF - REFBC","(blank)","5100","External Research Grants","500","Scholarship, Research and Creative Activity","500","Scholarship, Research and Creative Activity","(blank)","309","Research Grant","no",{"$f":"IFERROR(INDEX('Work Order Master'!$S:$S,MATCH(A1043,'Work Order Master'!$K:$K,0)),\"New\")","v":1439},{"$f":"IFERROR(INDEX('Work Order Master'!T:T,MATCH(WORKORDERS!$Q1043,'Work Order Master'!$S:$S,0)),Q1043)","v":"RIF - BROUDER"},{"$f":"IFERROR(INDEX('FRS CC Master'!A:A,MATCH(WORKORDERS!$Q1043*1,'FRS CC Master'!$C:$C,0)),WORKORDERS!$L1043)","v":"Scholarship, Research and Creative Activity"},{"$f":"IFERROR(VLOOKUP($A1043,'Work Order Master'!$K:$Q,7,FALSE),\"Remove\")","v":"N"}]
["25100-10-10","SRCA RIF - REFBC - Gorrell 101061","Active","25100-10","SRCA RIF - REFBC","(blank)","5100","External Research Grants","500","Scholarship, Research and Creative Activity","500","Scholarship, Research and Creative Activity","(blank)","309","Research Grant","no",{"$f":"IFERROR(INDEX('Work Order Master'!$S:$S,MATCH(A1044,'Work Order Master'!$K:$K,0)),\"New\")","v":1446},{"$f":"IFERROR(INDEX('Work Order Master'!T:T,MATCH(WORKORDERS!$Q1044,'Work Order Master'!$S:$S,0)),Q1044)","v":"RIF-GORRELL 101061"},{"$f":"IFERROR(INDEX('FRS CC Master'!A:A,MATCH(WORKORDERS!$Q1044*1,'FRS CC Master'!$C:$C,0)),WORKORDERS!$L1044)","v":"Scholarship, Research and Creative Activity"},{"$f":"IFERROR(VLOOKUP($A1044,'Work Order Master'!$K:$Q,7,FALSE),\"Remove\")","v":"N"}]
["25100-10-11","SRCA RIF - REFBC - Green 101062","Active","25100-10","SRCA RIF - REFBC","(blank)","5100","External Research Grants","500","Scholarship, Research and Creative Activity","500","Scholarship, Research and Creative Activity","(blank)","309","Research Grant","no",{"$f":"IFERROR(INDEX('Work Order Master'!$S:$S,MATCH(A1045,'Work Order Master'!$K:$K,0)),\"New\")","v":1447},{"$f":"IFERROR(INDEX('Work Order Master'!T:T,MATCH(WORKORDERS!$Q1045,'Work Order Master'!$S:$S,0)),Q1045)","v":"RIF-GREEN 101062"},{"$f":"IFERROR(INDEX('FRS CC Master'!A:A,MATCH(WORKORDERS!$Q1045*1,'FRS CC Master'!$C:$C,0)),WORKORDERS!$L1045)","v":"Scholarship, Research and Creative Activity"},{"$f":"IFERROR(VLOOKUP($A1045,'Work Order Master'!$K:$Q,7,FALSE),\"Remove\")","v":"N"}]
["25100-10-12","SRCA RIF - REFBC - Krogh 101085","Active","25100-10","SRCA RIF - REFBC","(blank)","5100","External Research Grants","500","Scholarship, Research and Creative Activity","500","Scholarship, Research and Creative Activity","(blank)","309","Research Grant","no",{"$f":"IFERROR(INDEX('Work Order Master'!$S:$S,MATCH(A1046,'Work Order Master'!$K:$K,0)),\"New\")","v":1450},{"$f":"IFERROR(INDEX('Work Order Master'!T:T,MATCH(WORKORDERS!$Q1046,'Work Order Master'!$S:$S,0)),Q1046)","v":"RIF - KROGH 101085"},{"$f":"IFERROR(INDEX('FRS CC Master'!A:A,MATCH(WORKORDERS!$Q1046*1,'FRS CC Master'!$C:$C,0)),WORKORDERS!$L1046)","v":"Scholarship, Research and Creative Activity"},{"$f":"IFERROR(VLOOKUP($A1046,'Work Order Master'!$K:$Q,7,FALSE),\"Remove\")","v":"N"}]
["25100-10-2","SRCA RIF - REFBC - Manson","Parked","25100-10","SRCA RIF - REFBC","(blank)","5100","External Research Grants","500","Scholarship, Research and Creative Activity","500","Scholarship, Research and Creative Activity","(blank)","309","Research Grant","no",{"$f":"IFERROR(INDEX('Work Order Master'!$S:$S,MATCH(A1047,'Work Order Master'!$K:$K,0)),\"New\")","v":"New"},{"$f":"IFERROR(INDEX('Work Order Master'!T:T,MATCH(WORKORDERS!$Q1047,'Work Order Master'!$S:$S,0)),Q1047)","v":"New"},{"$f":"IFERROR(INDEX('FRS CC Master'!A:A,MATCH(WORKORDERS!$Q1047*1,'FRS CC Master'!$C:$C,0)),WORKORDERS!$L1047)","v":"Scholarship, Research and Creative Activity"},{"$f":"IFERROR(VLOOKUP($A1047,'Work Order Master'!$K:$Q,7,FALSE),\"Remove\")","v":"Remove"}]
["25100-10-3","SRCA RIF - REFBC","Active","25100-10","SRCA RIF - REFBC","(blank)","5100","External Research Grants","500","Scholarship, Research and Creative Activity","500","Scholarship, Research and Creative Activity","(blank)","309","Research Grant","no",{"$f":"IFERROR(INDEX('Work Order Master'!$S:$S,MATCH(A1048,'Work Order Master'!$K:$K,0)),\"New\")","v":1138},{"$f":"IFERROR(INDEX('Work Order Master'!T:T,MATCH(WORKORDERS!$Q1048,'Work Order Master'!$S:$S,0)),Q1048)","v":"RIF - REFBC"},{"$f":"IFERROR(INDEX('FRS CC Master'!A:A,MATCH(WORKORDERS!$Q1048*1,'FRS CC Master'!$C:$C,0)),WORKORDERS!$L1048)","v":"Scholarship, Research and Creative Activity"},{"$f":"IFERROR(VLOOKUP($A1048,'Work Order Master'!$K:$Q,7,FALSE),\"Remove\")","v":"N"}]
["25100-10-4","SRCA RIF - REFBC - Schroeder 101065","Active","25100-10","SRCA RIF - REFBC","(blank)","5100","External Research Grants","500","Scholarship, Research and Creative Activity","500","Scholarship, Research and Creative Activity","(blank)","309","Research Grant","no",{"$f":"IFERROR(INDEX('Work Order Master'!$S:$S,MATCH(A1049,'Work Order Master'!$K:$K,0)),\"New\")","v":1451},{"$f":"IFERROR(INDEX('Work Order Master'!T:T,MATCH(WORKORDERS!$Q1049,'Work Order Master'!$S:$S,0)),Q1049)","v":"RIF - Schroeder 101065"},{"$f":"IFERROR(INDEX('FRS CC Master'!A:A,MATCH(WORKORDERS!$Q1049*1,'FRS CC Master'!$C:$C,0)),WORKORDERS!$L1049)","v":"Scholarship, Research and Creative Activity"},{"$f":"IFERROR(VLOOKUP($A1049,'Work Order Master'!$K:$Q,7,FALSE),\"Remove\")","v":"N"}]
["25100-1-1","SRCA Research Support Fund","Active","25100-1","SRCA Research Grant Administration","(blank)","5100","External Research Grants","500","Scholarship, Research and Creative Activity","500","Scholarship, Research and Creative Activity","(blank)","309","Research Grant","no",{"$f":"IFERROR(INDEX('Work Order Master'!$S:$S,MATCH(A1050,'Work Order Master'!$K:$K,0)),\"New\")","v":1119},{"$f":"IFERROR(INDEX('Work Order Master'!T:T,MATCH(WORKORDERS!$Q1050,'Work Order Master'!$S:$S,0)),Q1050)","v":"RESEARCH SUPPORT FUND"},{"$f":"IFERROR(INDEX('FRS CC Master'!A:A,MATCH(WORKORDERS!$Q1050*1,'FRS CC Master'!$C:$C,0)),WORKORDERS!$L1050)","v":"Scholarship, Research and Creative Activity"},{"$f":"IFERROR(VLOOKUP($A1050,'Work Order Master'!$K:$Q,7,FALSE),\"Remove\")","v":"N"}]
["25100-11-1","SRCA RIF - Multiple Funders - Holland","Parked","25100-11","SRCA RIF - Multiple Funders","(blank)","5100","External Research Grants","500","Scholarship, Research and Creative Activity","500","Scholarship, Research and Creative Activity","(blank)","309","Research Grant","no",{"$f":"IFERROR(INDEX('Work Order Master'!$S:$S,MATCH(A1051,'Work Order Master'!$K:$K,0)),\"New\")","v":"New"},{"$f":"IFERROR(INDEX('Work Order Master'!T:T,MATCH(WORKORDERS!$Q1051,'Work Order Master'!$S:$S,0)),Q1051)","v":"New"},{"$f":"IFERROR(INDEX('FRS CC Master'!A:A,MATCH(WORKORDERS!$Q1051*1,'FRS CC Master'!$C:$C,0)),WORKORDERS!$L1051)","v":"Scholarship, Research and Creative Activity"},{"$f":"IFERROR(VLOOKUP($A1051,'Work Order Master'!$K:$Q,7,FALSE),\"Remove\")","v":"Remove"}]
["25100-12-1","SRCA SSHRC GRF","Active","25100-12","SRCA SSHRC","(blank)","5100","External Research Grants","500","Scholarship, Research and Creative Activity","500","Scholarship, Research and Creative Activity","(blank)","309","Research Grant","no",{"$f":"IFERROR(INDEX('Work Order Master'!$S:$S,MATCH(A1052,'Work Order Master'!$K:$K,0)),\"New\")","v":1120},{"$f":"IFERROR(INDEX('Work Order Master'!T:T,MATCH(WORKORDERS!$Q1052,'Work Order Master'!$S:$S,0)),Q1052)","v":"GRF - NSERC"},{"$f":"IFERROR(INDEX('FRS CC Master'!A:A,MATCH(WORKORDERS!$Q1052*1,'FRS CC Master'!$C:$C,0)),WORKORDERS!$L1052)","v":"Scholarship, Research and Creative Activity"},{"$f":"IFERROR(VLOOKUP($A1052,'Work Order Master'!$K:$Q,7,FALSE),\"Remove\")","v":"N"}]
["25100-12-10","SRCA SSHRC IDG - Brouder","Active","25100-12","SRCA SSHRC","(blank)","5100","External Research Grants","500","Scholarship, Research and Creative Activity","500","Scholarship, Research and Creative Activity","(blank)","309","Research Grant","no",{"$f":"IFERROR(INDEX('Work Order Master'!$S:$S,MATCH(A1053,'Work Order Master'!$K:$K,0)),\"New\")","v":1232},{"$f":"IFERROR(INDEX('Work Order Master'!T:T,MATCH(WORKORDERS!$Q1053,'Work Order Master'!$S:$S,0)),Q1053)","v":"SSHRC IDG - BROUDER"},{"$f":"IFERROR(INDEX('FRS CC Master'!A:A,MATCH(WORKORDERS!$Q1053*1,'FRS CC Master'!$C:$C,0)),WORKORDERS!$L1053)","v":"Scholarship, Research and Creative Activity"},{"$f":"IFERROR(VLOOKUP($A1053,'Work Order Master'!$K:$Q,7,FALSE),\"Remove\")","v":"N"}]
["25100-12-11","SRCA SSHRC CG - Warsh","Active","25100-12","SRCA SSHRC","(blank)","5100","External Research Grants","500","Scholarship, Research and Creative Activity","500","Scholarship, Research and Creative Activity","(blank)","309","Research Grant","no",{"$f":"IFERROR(INDEX('Work Order Master'!$S:$S,MATCH(A1054,'Work Order Master'!$K:$K,0)),\"New\")","v":1237},{"$f":"IFERROR(INDEX('Work Order Master'!T:T,MATCH(WORKORDERS!$Q1054,'Work Order Master'!$S:$S,0)),Q1054)","v":"SSHRC CG - WARSH"},{"$f":"IFERROR(INDEX('FRS CC Master'!A:A,MATCH(WORKORDERS!$Q1054*1,'FRS CC Master'!$C:$C,0)),WORKORDERS!$L1054)","v":"Scholarship, Research and Creative Activity"},{"$f":"IFERROR(VLOOKUP($A1054,'Work Order Master'!$K:$Q,7,FALSE),\"Remove\")","v":"N"}]
["25100-12-12","SRCA SSHRC CG - DOUGHTY 5714","Active","25100-12","SRCA SSHRC","(blank)","5100","External Research Grants","500","Scholarship, Research and Creative Activity","500","Scholarship, Research and Creative Activity","(blank)","309","Research Grant","no",{"$f":"IFERROR(INDEX('Work Order Master'!$S:$S,MATCH(A1055,'Work Order Master'!$K:$K,0)),\"New\")","v":1239},{"$f":"IFERROR(INDEX('Work Order Master'!T:T,MATCH(WORKORDERS!$Q1055,'Work Order Master'!$S:$S,0)),Q1055)","v":"SSHRC CG - DOUGHTY 5714"},{"$f":"IFERROR(INDEX('FRS CC Master'!A:A,MATCH(WORKORDERS!$Q1055*1,'FRS CC Master'!$C:$C,0)),WORKORDERS!$L1055)","v":"Scholarship, Research and Creative Activity"},{"$f":"IFERROR(VLOOKUP($A1055,'Work Order Master'!$K:$Q,7,FALSE),\"Remove\")","v":"N"}]
["25100-12-13","SRCA SSHRC ICG - Wager 5669","Active","25100-12","SRCA SSHRC","(blank)","5100","External Research Grants","500","Scholarship, Research and Creative Activity","500","Scholarship, Research and Creative Activity","(blank)","309","Research Grant","no",{"$f":"IFERROR(INDEX('Work Order Master'!$S:$S,MATCH(A1056,'Work Order Master'!$K:$K,0)),\"New\")","v":1240},{"$f":"IFERROR(INDEX('Work Order Master'!T:T,MATCH(WORKORDERS!$Q1056,'Work Order Master'!$S:$S,0)),Q1056)","v":"SSHRC ICG - WAGER 5669"},{"$f":"IFERROR(INDEX('FRS CC Master'!A:A,MATCH(WORKORDERS!$Q1056*1,'FRS CC Master'!$C:$C,0)),WORKORDERS!$L1056)","v":"Scholarship, Research and Creative Activity"},{"$f":"IFERROR(VLOOKUP($A1056,'Work Order Master'!$K:$Q,7,FALSE),\"Remove\")","v":"N"}]
["25100-12-14","SRCA SSHRC PDG (UofA) - Rollins","Active","25100-12","SRCA SSHRC","(blank)","5100","External Research Grants","500","Scholarship, Research and Creative Activity","500","Scholarship, Research and Creative Activity","(blank)","309","Research Grant","no",{"$f":"IFERROR(INDEX('Work Order Master'!$S:$S,MATCH(A1057,'Work Order Master'!$K:$K,0)),\"New\")","v":1235},{"$f":"IFERROR(INDEX('Work Order Master'!T:T,MATCH(WORKORDERS!$Q1057,'Work Order Master'!$S:$S,0)),Q1057)","v":"SSHRC PDG (UOFA)-ROLLINS"},{"$f":"IFERROR(INDEX('FRS CC Master'!A:A,MATCH(WORKORDERS!$Q1057*1,'FRS CC Master'!$C:$C,0)),WORKORDERS!$L1057)","v":"Scholarship, Research and Creative Activity"},{"$f":"IFERROR(VLOOKUP($A1057,'Work Order Master'!$K:$Q,7,FALSE),\"Remove\")","v":"N"}]
["25100-12-2","SRCA SSHRC CG - De La Barre","Parked","25100-12","SRCA SSHRC","(blank)","5100","External Research Grants","500","Scholarship, Research and Creative Activity","500","Scholarship, Research and Creative Activity","(blank)","309","Research Grant","no",{"$f":"IFERROR(INDEX('Work Order Master'!$S:$S,MATCH(A1058,'Work Order Master'!$K:$K,0)),\"New\")","v":"New"},{"$f":"IFERROR(INDEX('Work Order Master'!T:T,MATCH(WORKORDERS!$Q1058,'Work Order Master'!$S:$S,0)),Q1058)","v":"New"},{"$f":"IFERROR(INDEX('FRS CC Master'!A:A,MATCH(WORKORDERS!$Q1058*1,'FRS CC Master'!$C:$C,0)),WORKORDERS!$L1058)","v":"Scholarship, Research and Creative Activity"},{"$f":"IFERROR(VLOOKUP($A1058,'Work Order Master'!$K:$Q,7,FALSE),\"Remove\")","v":"Remove"}]
["25100-12-3","SRCA SSHRCCG - Rollwagen","Parked","25100-12","SRCA SSHRC","(blank)","5100","External Research Grants","500","Scholarship, Research and Creative Activity","500","Scholarship, Research and Creative Activity","(blank)","309","Research Grant","no",{"$f":"IFERROR(INDEX('Work Order Master'!$S:$S,MATCH(A1059,'Work Order Master'!$K:$K,0)),\"New\")","v":"New"},{"$f":"IFERROR(INDEX('Work Order Master'!T:T,MATCH(WORKORDERS!$Q1059,'Work Order Master'!$S:$S,0)),Q1059)","v":"New"},{"$f":"IFERROR(INDEX('FRS CC Master'!A:A,MATCH(WORKORDERS!$Q1059*1,'FRS CC Master'!$C:$C,0)),WORKORDERS!$L1059)","v":"Scholarship, Research and Creative Activity"},{"$f":"IFERROR(VLOOKUP($A1059,'Work Order Master'!$K:$Q,7,FALSE),\"Remove\")","v":"Remove"}]
["25100-12-4","SRCA SSHRC CGSM - Gibson","Parked","25100-12","SRCA SSHRC","(blank)","5100","External Research Grants","500","Scholarship, Research and Creative Activity","500","Scholarship, Research and Creative Activity","(blank)","309","Research Grant","no",{"$f":"IFERROR(INDEX('Work Order Master'!$S:$S,MATCH(A1060,'Work Order Master'!$K:$K,0)),\"New\")","v":"New"},{"$f":"IFERROR(INDEX('Work Order Master'!T:T,MATCH(WORKORDERS!$Q1060,'Work Order Master'!$S:$S,0)),Q1060)","v":"New"},{"$f":"IFERROR(INDEX('FRS CC Master'!A:A,MATCH(WORKORDERS!$Q1060*1,'FRS CC Master'!$C:$C,0)),WORKORDERS!$L1060)","v":"Scholarship, Research and Creative Activity"},{"$f":"IFERROR(VLOOKUP($A1060,'Work Order Master'!$K:$Q,7,FALSE),\"Remove\")","v":"Remove"}]
["25100-12-5","SRCA SSHRC CGSM","Active","25100-12","SRCA SSHRC","(blank)","5100","External Research Grants","500","Scholarship, Research and Creative Activity","500","Scholarship, Research and Creative Activity","(blank)","309","Research Grant","no",{"$f":"IFERROR(INDEX('Work Order Master'!$S:$S,MATCH(A1061,'Work Order Master'!$K:$K,0)),\"New\")","v":1224},{"$f":"IFERROR(INDEX('Work Order Master'!T:T,MATCH(WORKORDERS!$Q1061,'Work Order Master'!$S:$S,0)),Q1061)","v":"SSHRC CGSM"},{"$f":"IFERROR(INDEX('FRS CC Master'!A:A,MATCH(WORKORDERS!$Q1061*1,'FRS CC Master'!$C:$C,0)),WORKORDERS!$L1061)","v":"Scholarship, Research and Creative Activity"},{"$f":"IFERROR(VLOOKUP($A1061,'Work Order Master'!$K:$Q,7,FALSE),\"Remove\")","v":"N"}]
["25100-12-6","SRCA SSHRC IDG - Gray","Parked","25100-12","SRCA SSHRC","(blank)","5100","External Research Grants","500","Scholarship, Research and Creative Activity","500","Scholarship, Research and Creative Activity","(blank)","309","Research Grant","no",{"$f":"IFERROR(INDEX('Work Order Master'!$S:$S,MATCH(A1062,'Work Order Master'!$K:$K,0)),\"New\")","v":"New"},{"$f":"IFERROR(INDEX('Work Order Master'!T:T,MATCH(WORKORDERS!$Q1062,'Work Order Master'!$S:$S,0)),Q1062)","v":"New"},{"$f":"IFERROR(INDEX('FRS CC Master'!A:A,MATCH(WORKORDERS!$Q1062*1,'FRS CC Master'!$C:$C,0)),WORKORDERS!$L1062)","v":"Scholarship, Research and Creative Activity"},{"$f":"IFERROR(VLOOKUP($A1062,'Work Order Master'!$K:$Q,7,FALSE),\"Remove\")","v":"Remove"}]
["25100-12-7","SRCA SSHRC IRCR CG - Martin","Active","25100-12","SRCA SSHRC","(blank)","5100","External Research Grants","500","Scholarship, Research and Creative Activity","500","Scholarship, Research and Creative Activity","(blank)","309","Research Grant","no",{"$f":"IFERROR(INDEX('Work Order Master'!$S:$S,MATCH(A1063,'Work Order Master'!$K:$K,0)),\"New\")","v":1234},{"$f":"IFERROR(INDEX('Work Order Master'!T:T,MATCH(WORKORDERS!$Q1063,'Work Order Master'!$S:$S,0)),Q1063)","v":"SSHRC IRCR CG - MARTIN"},{"$f":"IFERROR(INDEX('FRS CC Master'!A:A,MATCH(WORKORDERS!$Q1063*1,'FRS CC Master'!$C:$C,0)),WORKORDERS!$L1063)","v":"Scholarship, Research and Creative Activity"},{"$f":"IFERROR(VLOOKUP($A1063,'Work Order Master'!$K:$Q,7,FALSE),\"Remove\")","v":"N"}]
["25100-12-8","SRCA SSHRC SIG 2018-21","Active","25100-12","SRCA SSHRC","(blank)","5100","External Research Grants","500","Scholarship, Research and Creative Activity","500","Scholarship, Research and Creative Activity","(blank)","309","Research Grant","no",{"$f":"IFERROR(INDEX('Work Order Master'!$S:$S,MATCH(A1064,'Work Order Master'!$K:$K,0)),\"New\")","v":1222},{"$f":"IFERROR(INDEX('Work Order Master'!T:T,MATCH(WORKORDERS!$Q1064,'Work Order Master'!$S:$S,0)),Q1064)","v":"SIG SSHRC 2018-21"},{"$f":"IFERROR(INDEX('FRS CC Master'!A:A,MATCH(WORKORDERS!$Q1064*1,'FRS CC Master'!$C:$C,0)),WORKORDERS!$L1064)","v":"Scholarship, Research and Creative Activity"},{"$f":"IFERROR(VLOOKUP($A1064,'Work Order Master'!$K:$Q,7,FALSE),\"Remove\")","v":"N"}]
["25100-12-9","SRCA SSHRC SIG 2015-17","Parked","25100-12","SRCA SSHRC","(blank)","5100","External Research Grants","500","Scholarship, Research and Creative Activity","500","Scholarship, Research and Creative Activity","(blank)","309","Research Grant","no",{"$f":"IFERROR(INDEX('Work Order Master'!$S:$S,MATCH(A1065,'Work Order Master'!$K:$K,0)),\"New\")","v":"New"},{"$f":"IFERROR(INDEX('Work Order Master'!T:T,MATCH(WORKORDERS!$Q1065,'Work Order Master'!$S:$S,0)),Q1065)","v":"New"},{"$f":"IFERROR(INDEX('FRS CC Master'!A:A,MATCH(WORKORDERS!$Q1065*1,'FRS CC Master'!$C:$C,0)),WORKORDERS!$L1065)","v":"Scholarship, Research and Creative Activity"},{"$f":"IFERROR(VLOOKUP($A1065,'Work Order Master'!$K:$Q,7,FALSE),\"Remove\")","v":"Remove"}]
["25100-13-1","SRCA AGILENT - Gill","Parked","25100-13","SRCA Other Grants","(blank)","5100","External Research Grants","500","Scholarship, Research and Creative Activity","500","Scholarship, Research and Creative Activity","(blank)","309","Research Grant","no",{"$f":"IFERROR(INDEX('Work Order Master'!$S:$S,MATCH(A1066,'Work Order Master'!$K:$K,0)),\"New\")","v":"New"},{"$f":"IFERROR(INDEX('Work Order Master'!T:T,MATCH(WORKORDERS!$Q1066,'Work Order Master'!$S:$S,0)),Q1066)","v":"New"},{"$f":"IFERROR(INDEX('FRS CC Master'!A:A,MATCH(WORKORDERS!$Q1066*1,'FRS CC Master'!$C:$C,0)),WORKORDERS!$L1066)","v":"Scholarship, Research and Creative Activity"},{"$f":"IFERROR(VLOOKUP($A1066,'Work Order Master'!$K:$Q,7,FALSE),\"Remove\")","v":"Remove"}]
["25100-13-10","SRCA Vancouver Fdn 2 - Falvai","Active","25100-13","SRCA Other Grants","(blank)","5100","External Research Grants","500","Scholarship, Research and Creative Activity","500","Scholarship, Research and Creative Activity","(blank)","309","Research Grant","no",{"$f":"IFERROR(INDEX('Work Order Master'!$S:$S,MATCH(A1067,'Work Order Master'!$K:$K,0)),\"New\")","v":1293},{"$f":"IFERROR(INDEX('Work Order Master'!T:T,MATCH(WORKORDERS!$Q1067,'Work Order Master'!$S:$S,0)),Q1067)","v":"VANCOUVER FDN 2 - FALVAI"},{"$f":"IFERROR(INDEX('FRS CC Master'!A:A,MATCH(WORKORDERS!$Q1067*1,'FRS CC Master'!$C:$C,0)),WORKORDERS!$L1067)","v":"Scholarship, Research and Creative Activity"},{"$f":"IFERROR(VLOOKUP($A1067,'Work Order Master'!$K:$Q,7,FALSE),\"Remove\")","v":"N"}]
["25100-13-11","SRCA Vancouver Fdn - Schroeder","Parked","25100-13","SRCA Other Grants","(blank)","5100","External Research Grants","500","Scholarship, Research and Creative Activity","500","Scholarship, Research and Creative Activity","(blank)","309","Research Grant","no",{"$f":"IFERROR(INDEX('Work Order Master'!$S:$S,MATCH(A1068,'Work Order Master'!$K:$K,0)),\"New\")","v":"New"},{"$f":"IFERROR(INDEX('Work Order Master'!T:T,MATCH(WORKORDERS!$Q1068,'Work Order Master'!$S:$S,0)),Q1068)","v":"New"},{"$f":"IFERROR(INDEX('FRS CC Master'!A:A,MATCH(WORKORDERS!$Q1068*1,'FRS CC Master'!$C:$C,0)),WORKORDERS!$L1068)","v":"Scholarship, Research and Creative Activity"},{"$f":"IFERROR(VLOOKUP($A1068,'Work Order Master'!$K:$Q,7,FALSE),\"Remove\")","v":"Remove"}]
["25100-13-12","SRCA WORKSAFE - Blaney","Parked","25100-13","SRCA Other Grants","(blank)","5100","External Research Grants","500","Scholarship, Research and Creative Activity","500","Scholarship, Research and Creative Activity","(blank)","309","Research Grant","no",{"$f":"IFERROR(INDEX('Work Order Master'!$S:$S,MATCH(A1069,'Work Order Master'!$K:$K,0)),\"New\")","v":"New"},{"$f":"IFERROR(INDEX('Work Order Master'!T:T,MATCH(WORKORDERS!$Q1069,'Work Order Master'!$S:$S,0)),Q1069)","v":"New"},{"$f":"IFERROR(INDEX('FRS CC Master'!A:A,MATCH(WORKORDERS!$Q1069*1,'FRS CC Master'!$C:$C,0)),WORKORDERS!$L1069)","v":"Scholarship, Research and Creative Activity"},{"$f":"IFERROR(VLOOKUP($A1069,'Work Order Master'!$K:$Q,7,FALSE),\"Remove\")","v":"Remove"}]
["25100-13-13","SRCA MITACS RTA - SRCA","Active","25100-13","SRCA Other Grants","(blank)","5100","External Research Grants","500","Scholarship, Research and Creative Activity","500","Scholarship, Research and Creative Activity","(blank)","309","Research Grant","no",{"$f":"IFERROR(INDEX('Work Order Master'!$S:$S,MATCH(A1070,'Work Order Master'!$K:$K,0)),\"New\")","v":1299},{"$f":"IFERROR(INDEX('Work Order Master'!T:T,MATCH(WORKORDERS!$Q1070,'Work Order Master'!$S:$S,0)),Q1070)","v":"MITACS RTA - SCRA "},{"$f":"IFERROR(INDEX('FRS CC Master'!A:A,MATCH(WORKORDERS!$Q1070*1,'FRS CC Master'!$C:$C,0)),WORKORDERS!$L1070)","v":"Scholarship, Research and Creative Activity"},{"$f":"IFERROR(VLOOKUP($A1070,'Work Order Master'!$K:$Q,7,FALSE),\"Remove\")","v":"N"}]
["25100-13-14","SRCA NOAA/PSMFC (OSU) - Green","Active","25100-13","SRCA Other Grants","(blank)","5100","External Research Grants","500","Scholarship, Research and Creative Activity","500","Scholarship, Research and Creative Activity","(blank)","309","Research Grant","no",{"$f":"IFERROR(INDEX('Work Order Master'!$S:$S,MATCH(A1071,'Work Order Master'!$K:$K,0)),\"New\")","v":1328},{"$f":"IFERROR(INDEX('Work Order Master'!T:T,MATCH(WORKORDERS!$Q1071,'Work Order Master'!$S:$S,0)),Q1071)","v":"NOAA/PSMFC (OSU) - GREEN"},{"$f":"IFERROR(INDEX('FRS CC Master'!A:A,MATCH(WORKORDERS!$Q1071*1,'FRS CC Master'!$C:$C,0)),WORKORDERS!$L1071)","v":"Scholarship, Research and Creative Activity"},{"$f":"IFERROR(VLOOKUP($A1071,'Work Order Master'!$K:$Q,7,FALSE),\"Remove\")","v":"N"}]
["25100-13-15","SRCA MITACS BSI - SRCA","Active","25100-13","SRCA Other Grants","(blank)","5100","External Research Grants","500","Scholarship, Research and Creative Activity","500","Scholarship, Research and Creative Activity","(blank)","309","Research Grant","no",{"$f":"IFERROR(INDEX('Work Order Master'!$S:$S,MATCH(A1072,'Work Order Master'!$K:$K,0)),\"New\")","v":1298},{"$f":"IFERROR(INDEX('Work Order Master'!T:T,MATCH(WORKORDERS!$Q1072,'Work Order Master'!$S:$S,0)),Q1072)","v":"MITACS BSI - SRCA"},{"$f":"IFERROR(INDEX('FRS CC Master'!A:A,MATCH(WORKORDERS!$Q1072*1,'FRS CC Master'!$C:$C,0)),WORKORDERS!$L1072)","v":"Scholarship, Research and Creative Activity"},{"$f":"IFERROR(VLOOKUP($A1072,'Work Order Master'!$K:$Q,7,FALSE),\"Remove\")","v":"N"}]
["25100-13-16","SRCA MITACS ACC - Gorrell 5761","Active","25100-13","SRCA Other Grants","(blank)","5100","External Research Grants","500","Scholarship, Research and Creative Activity","500","Scholarship, Research and Creative Activity","(blank)","309","Research Grant","no",{"$f":"IFERROR(INDEX('Work Order Master'!$S:$S,MATCH(A1073,'Work Order Master'!$K:$K,0)),\"New\")","v":1295},{"$f":"IFERROR(INDEX('Work Order Master'!T:T,MATCH(WORKORDERS!$Q1073,'Work Order Master'!$S:$S,0)),Q1073)","v":"MITACS ACC - GORRELL 5761"},{"$f":"IFERROR(INDEX('FRS CC Master'!A:A,MATCH(WORKORDERS!$Q1073*1,'FRS CC Master'!$C:$C,0)),WORKORDERS!$L1073)","v":"Scholarship, Research and Creative Activity"},{"$f":"IFERROR(VLOOKUP($A1073,'Work Order Master'!$K:$Q,7,FALSE),\"Remove\")","v":"N"}]
["25100-13-17","SRCA VAN FDN - Wager 100677","Active","25100-13","SRCA Other Grants","(blank)","5100","External Research Grants","500","Scholarship, Research and Creative Activity","500","Scholarship, Research and Creative Activity","(blank)","309","Research Grant","no",{"$f":"IFERROR(INDEX('Work Order Master'!$S:$S,MATCH(A1074,'Work Order Master'!$K:$K,0)),\"New\")","v":1292},{"$f":"IFERROR(INDEX('Work Order Master'!T:T,MATCH(WORKORDERS!$Q1074,'Work Order Master'!$S:$S,0)),Q1074)","v":"VAN FDN-WAGER 100677"},{"$f":"IFERROR(INDEX('FRS CC Master'!A:A,MATCH(WORKORDERS!$Q1074*1,'FRS CC Master'!$C:$C,0)),WORKORDERS!$L1074)","v":"Scholarship, Research and Creative Activity"},{"$f":"IFERROR(VLOOKUP($A1074,'Work Order Master'!$K:$Q,7,FALSE),\"Remove\")","v":"N"}]
["25100-13-18","SRCA UNI-CAN-SRCA 5825","Active","25100-13","SRCA Other Grants","(blank)","5100","External Research Grants","500","Scholarship, Research and Creative Activity","500","Scholarship, Research and Creative Activity","(blank)","309","Research Grant","no",{"$f":"IFERROR(INDEX('Work Order Master'!$S:$S,MATCH(A1075,'Work Order Master'!$K:$K,0)),\"New\")","v":1296},{"$f":"IFERROR(INDEX('Work Order Master'!T:T,MATCH(WORKORDERS!$Q1075,'Work Order Master'!$S:$S,0)),Q1075)","v":"UNI-CAN-SRCA 5825"},{"$f":"IFERROR(INDEX('FRS CC Master'!A:A,MATCH(WORKORDERS!$Q1075*1,'FRS CC Master'!$C:$C,0)),WORKORDERS!$L1075)","v":"Scholarship, Research and Creative Activity"},{"$f":"IFERROR(VLOOKUP($A1075,'Work Order Master'!$K:$Q,7,FALSE),\"Remove\")","v":"N"}]
["25100-13-2","SRCA AVED - Russell","Active","25100-13","SRCA Other Grants","(blank)","5100","External Research Grants","500","Scholarship, Research and Creative Activity","500","Scholarship, Research and Creative Activity","(blank)","309","Research Grant","no",{"$f":"IFERROR(INDEX('Work Order Master'!$S:$S,MATCH(A1076,'Work Order Master'!$K:$K,0)),\"New\")","v":1383},{"$f":"IFERROR(INDEX('Work Order Master'!T:T,MATCH(WORKORDERS!$Q1076,'Work Order Master'!$S:$S,0)),Q1076)","v":"AVED - RUSSELL"},{"$f":"IFERROR(INDEX('FRS CC Master'!A:A,MATCH(WORKORDERS!$Q1076*1,'FRS CC Master'!$C:$C,0)),WORKORDERS!$L1076)","v":"Scholarship, Research and Creative Activity"},{"$f":"IFERROR(VLOOKUP($A1076,'Work Order Master'!$K:$Q,7,FALSE),\"Remove\")","v":"N"}]
["25100-13-3","SRCA BC PUBLIC SAFETY - Derksen","Parked","25100-13","SRCA Other Grants","(blank)","5100","External Research Grants","500","Scholarship, Research and Creative Activity","500","Scholarship, Research and Creative Activity","(blank)","309","Research Grant","no",{"$f":"IFERROR(INDEX('Work Order Master'!$S:$S,MATCH(A1077,'Work Order Master'!$K:$K,0)),\"New\")","v":"New"},{"$f":"IFERROR(INDEX('Work Order Master'!T:T,MATCH(WORKORDERS!$Q1077,'Work Order Master'!$S:$S,0)),Q1077)","v":"New"},{"$f":"IFERROR(INDEX('FRS CC Master'!A:A,MATCH(WORKORDERS!$Q1077*1,'FRS CC Master'!$C:$C,0)),WORKORDERS!$L1077)","v":"Scholarship, Research and Creative Activity"},{"$f":"IFERROR(VLOOKUP($A1077,'Work Order Master'!$K:$Q,7,FALSE),\"Remove\")","v":"Remove"}]
["25100-13-4","SRCA DAMES - MSFHR Reach","Parked","25100-13","SRCA Other Grants","(blank)","5100","External Research Grants","500","Scholarship, Research and Creative Activity","500","Scholarship, Research and Creative Activity","(blank)","309","Research Grant","no",{"$f":"IFERROR(INDEX('Work Order Master'!$S:$S,MATCH(A1078,'Work Order Master'!$K:$K,0)),\"New\")","v":"New"},{"$f":"IFERROR(INDEX('Work Order Master'!T:T,MATCH(WORKORDERS!$Q1078,'Work Order Master'!$S:$S,0)),Q1078)","v":"New"},{"$f":"IFERROR(INDEX('FRS CC Master'!A:A,MATCH(WORKORDERS!$Q1078*1,'FRS CC Master'!$C:$C,0)),WORKORDERS!$L1078)","v":"Scholarship, Research and Creative Activity"},{"$f":"IFERROR(VLOOKUP($A1078,'Work Order Master'!$K:$Q,7,FALSE),\"Remove\")","v":"Remove"}]
["25100-13-5","SRCA Genome BC (SFU) - Murray","Active","25100-13","SRCA Other Grants","(blank)","5100","External Research Grants","500","Scholarship, Research and Creative Activity","500","Scholarship, Research and Creative Activity","(blank)","309","Research Grant","no",{"$f":"IFERROR(INDEX('Work Order Master'!$S:$S,MATCH(A1079,'Work Order Master'!$K:$K,0)),\"New\")","v":1347},{"$f":"IFERROR(INDEX('Work Order Master'!T:T,MATCH(WORKORDERS!$Q1079,'Work Order Master'!$S:$S,0)),Q1079)","v":"GENOME BC (SFU)-MURRAY"},{"$f":"IFERROR(INDEX('FRS CC Master'!A:A,MATCH(WORKORDERS!$Q1079*1,'FRS CC Master'!$C:$C,0)),WORKORDERS!$L1079)","v":"Scholarship, Research and Creative Activity"},{"$f":"IFERROR(VLOOKUP($A1079,'Work Order Master'!$K:$Q,7,FALSE),\"Remove\")","v":"N"}]
["25100-13-6","SRCA  Health Canada (UVIC - Styles)","Parked","25100-13","SRCA Other Grants","(blank)","5100","External Research Grants","500","Scholarship, Research and Creative Activity","500","Scholarship, Research and Creative Activity","(blank)","309","Research Grant","no",{"$f":"IFERROR(INDEX('Work Order Master'!$S:$S,MATCH(A1080,'Work Order Master'!$K:$K,0)),\"New\")","v":"New"},{"$f":"IFERROR(INDEX('Work Order Master'!T:T,MATCH(WORKORDERS!$Q1080,'Work Order Master'!$S:$S,0)),Q1080)","v":"New"},{"$f":"IFERROR(INDEX('FRS CC Master'!A:A,MATCH(WORKORDERS!$Q1080*1,'FRS CC Master'!$C:$C,0)),WORKORDERS!$L1080)","v":"Scholarship, Research and Creative Activity"},{"$f":"IFERROR(VLOOKUP($A1080,'Work Order Master'!$K:$Q,7,FALSE),\"Remove\")","v":"Remove"}]
["25100-13-7","SRCA IS Health Innovation - Gill","Active","25100-13","SRCA Other Grants","(blank)","5100","External Research Grants","500","Scholarship, Research and Creative Activity","500","Scholarship, Research and Creative Activity","(blank)","309","Research Grant","no",{"$f":"IFERROR(INDEX('Work Order Master'!$S:$S,MATCH(A1081,'Work Order Master'!$K:$K,0)),\"New\")","v":1349},{"$f":"IFERROR(INDEX('Work Order Master'!T:T,MATCH(WORKORDERS!$Q1081,'Work Order Master'!$S:$S,0)),Q1081)","v":"IS HEALTH INNOVATION-GILL"},{"$f":"IFERROR(INDEX('FRS CC Master'!A:A,MATCH(WORKORDERS!$Q1081*1,'FRS CC Master'!$C:$C,0)),WORKORDERS!$L1081)","v":"Scholarship, Research and Creative Activity"},{"$f":"IFERROR(VLOOKUP($A1081,'Work Order Master'!$K:$Q,7,FALSE),\"Remove\")","v":"N"}]
["25100-13-8","SRCA MITACS-ACC-PD - Vaugeois","Active","25100-13","SRCA Other Grants","(blank)","5100","External Research Grants","500","Scholarship, Research and Creative Activity","500","Scholarship, Research and Creative Activity","(blank)","309","Research Grant","no",{"$f":"IFERROR(INDEX('Work Order Master'!$S:$S,MATCH(A1082,'Work Order Master'!$K:$K,0)),\"New\")","v":1395},{"$f":"IFERROR(INDEX('Work Order Master'!T:T,MATCH(WORKORDERS!$Q1082,'Work Order Master'!$S:$S,0)),Q1082)","v":"MITACS-ACC-PD-VAUGEOIS"},{"$f":"IFERROR(INDEX('FRS CC Master'!A:A,MATCH(WORKORDERS!$Q1082*1,'FRS CC Master'!$C:$C,0)),WORKORDERS!$L1082)","v":"Scholarship, Research and Creative Activity"},{"$f":"IFERROR(VLOOKUP($A1082,'Work Order Master'!$K:$Q,7,FALSE),\"Remove\")","v":"N"}]
["25100-13-9","SRCA TULA (UNBC) - Floyd","Active","25100-13","SRCA Other Grants","(blank)","5100","External Research Grants","500","Scholarship, Research and Creative Activity","500","Scholarship, Research and Creative Activity","(blank)","309","Research Grant","no",{"$f":"IFERROR(INDEX('Work Order Master'!$S:$S,MATCH(A1083,'Work Order Master'!$K:$K,0)),\"New\")","v":1380},{"$f":"IFERROR(INDEX('Work Order Master'!T:T,MATCH(WORKORDERS!$Q1083,'Work Order Master'!$S:$S,0)),Q1083)","v":"TULA (UNBC) - FLOYD"},{"$f":"IFERROR(INDEX('FRS CC Master'!A:A,MATCH(WORKORDERS!$Q1083*1,'FRS CC Master'!$C:$C,0)),WORKORDERS!$L1083)","v":"Scholarship, Research and Creative Activity"},{"$f":"IFERROR(VLOOKUP($A1083,'Work Order Master'!$K:$Q,7,FALSE),\"Remove\")","v":"N"}]
["25100-2-1","SRCA ASPER - Hengstler","Parked","25100-2","SRCA ASPER","(blank)","5100","External Research Grants","500","Scholarship, Research and Creative Activity","500","Scholarship, Research and Creative Activity","(blank)","309","Research Grant","no",{"$f":"IFERROR(INDEX('Work Order Master'!$S:$S,MATCH(A1084,'Work Order Master'!$K:$K,0)),\"New\")","v":"New"},{"$f":"IFERROR(INDEX('Work Order Master'!T:T,MATCH(WORKORDERS!$Q1084,'Work Order Master'!$S:$S,0)),Q1084)","v":"New"},{"$f":"IFERROR(INDEX('FRS CC Master'!A:A,MATCH(WORKORDERS!$Q1084*1,'FRS CC Master'!$C:$C,0)),WORKORDERS!$L1084)","v":"Scholarship, Research and Creative Activity"},{"$f":"IFERROR(VLOOKUP($A1084,'Work Order Master'!$K:$Q,7,FALSE),\"Remove\")","v":"Remove"}]
["25100-2-2","SRCA ASPER - Mayes","Parked","25100-2","SRCA ASPER","(blank)","5100","External Research Grants","500","Scholarship, Research and Creative Activity","500","Scholarship, Research and Creative Activity","(blank)","309","Research Grant","no",{"$f":"IFERROR(INDEX('Work Order Master'!$S:$S,MATCH(A1085,'Work Order Master'!$K:$K,0)),\"New\")","v":"New"},{"$f":"IFERROR(INDEX('Work Order Master'!T:T,MATCH(WORKORDERS!$Q1085,'Work Order Master'!$S:$S,0)),Q1085)","v":"New"},{"$f":"IFERROR(INDEX('FRS CC Master'!A:A,MATCH(WORKORDERS!$Q1085*1,'FRS CC Master'!$C:$C,0)),WORKORDERS!$L1085)","v":"Scholarship, Research and Creative Activity"},{"$f":"IFERROR(VLOOKUP($A1085,'Work Order Master'!$K:$Q,7,FALSE),\"Remove\")","v":"Remove"}]
["25100-2-3","SRCA ASPER - McGrail","Parked","25100-2","SRCA ASPER","(blank)","5100","External Research Grants","500","Scholarship, Research and Creative Activity","500","Scholarship, Research and Creative Activity","(blank)","309","Research Grant","no",{"$f":"IFERROR(INDEX('Work Order Master'!$S:$S,MATCH(A1086,'Work Order Master'!$K:$K,0)),\"New\")","v":"New"},{"$f":"IFERROR(INDEX('Work Order Master'!T:T,MATCH(WORKORDERS!$Q1086,'Work Order Master'!$S:$S,0)),Q1086)","v":"New"},{"$f":"IFERROR(INDEX('FRS CC Master'!A:A,MATCH(WORKORDERS!$Q1086*1,'FRS CC Master'!$C:$C,0)),WORKORDERS!$L1086)","v":"Scholarship, Research and Creative Activity"},{"$f":"IFERROR(VLOOKUP($A1086,'Work Order Master'!$K:$Q,7,FALSE),\"Remove\")","v":"Remove"}]
["25100-2-4","SRCA ASPER - Mohabeer","Parked","25100-2","SRCA ASPER","(blank)","5100","External Research Grants","500","Scholarship, Research and Creative Activity","500","Scholarship, Research and Creative Activity","(blank)","309","Research Grant","no",{"$f":"IFERROR(INDEX('Work Order Master'!$S:$S,MATCH(A1087,'Work Order Master'!$K:$K,0)),\"New\")","v":"New"},{"$f":"IFERROR(INDEX('Work Order Master'!T:T,MATCH(WORKORDERS!$Q1087,'Work Order Master'!$S:$S,0)),Q1087)","v":"New"},{"$f":"IFERROR(INDEX('FRS CC Master'!A:A,MATCH(WORKORDERS!$Q1087*1,'FRS CC Master'!$C:$C,0)),WORKORDERS!$L1087)","v":"Scholarship, Research and Creative Activity"},{"$f":"IFERROR(VLOOKUP($A1087,'Work Order Master'!$K:$Q,7,FALSE),\"Remove\")","v":"Remove"}]
["25100-2-5","SRCA ASPER - Pentecost","Parked","25100-2","SRCA ASPER","(blank)","5100","External Research Grants","500","Scholarship, Research and Creative Activity","500","Scholarship, Research and Creative Activity","(blank)","309","Research Grant","no",{"$f":"IFERROR(INDEX('Work Order Master'!$S:$S,MATCH(A1088,'Work Order Master'!$K:$K,0)),\"New\")","v":"New"},{"$f":"IFERROR(INDEX('Work Order Master'!T:T,MATCH(WORKORDERS!$Q1088,'Work Order Master'!$S:$S,0)),Q1088)","v":"New"},{"$f":"IFERROR(INDEX('FRS CC Master'!A:A,MATCH(WORKORDERS!$Q1088*1,'FRS CC Master'!$C:$C,0)),WORKORDERS!$L1088)","v":"Scholarship, Research and Creative Activity"},{"$f":"IFERROR(VLOOKUP($A1088,'Work Order Master'!$K:$Q,7,FALSE),\"Remove\")","v":"Remove"}]
["25100-2-6","SRCA ASPER - Williams 18-19","Parked","25100-2","SRCA ASPER","(blank)","5100","External Research Grants","500","Scholarship, Research and Creative Activity","500","Scholarship, Research and Creative Activity","(blank)","309","Research Grant","no",{"$f":"IFERROR(INDEX('Work Order Master'!$S:$S,MATCH(A1089,'Work Order Master'!$K:$K,0)),\"New\")","v":"New"},{"$f":"IFERROR(INDEX('Work Order Master'!T:T,MATCH(WORKORDERS!$Q1089,'Work Order Master'!$S:$S,0)),Q1089)","v":"New"},{"$f":"IFERROR(INDEX('FRS CC Master'!A:A,MATCH(WORKORDERS!$Q1089*1,'FRS CC Master'!$C:$C,0)),WORKORDERS!$L1089)","v":"Scholarship, Research and Creative Activity"},{"$f":"IFERROR(VLOOKUP($A1089,'Work Order Master'!$K:$Q,7,FALSE),\"Remove\")","v":"Remove"}]
["25100-3-1","SRCA BCRIC - AECD","Active","25100-3","SRCA BCRIC","(blank)","5100","External Research Grants","500","Scholarship, Research and Creative Activity","500","Scholarship, Research and Creative Activity","(blank)","309","Research Grant","no",{"$f":"IFERROR(INDEX('Work Order Master'!$S:$S,MATCH(A1090,'Work Order Master'!$K:$K,0)),\"New\")","v":1305},{"$f":"IFERROR(INDEX('Work Order Master'!T:T,MATCH(WORKORDERS!$Q1090,'Work Order Master'!$S:$S,0)),Q1090)","v":"BCRIC AECD"},{"$f":"IFERROR(INDEX('FRS CC Master'!A:A,MATCH(WORKORDERS!$Q1090*1,'FRS CC Master'!$C:$C,0)),WORKORDERS!$L1090)","v":"Scholarship, Research and Creative Activity"},{"$f":"IFERROR(VLOOKUP($A1090,'Work Order Master'!$K:$Q,7,FALSE),\"Remove\")","v":"N"}]
["25100-3-2","SRCA BCRIC - Chair Tourism","Active","25100-3","SRCA BCRIC","(blank)","5100","External Research Grants","500","Scholarship, Research and Creative Activity","500","Scholarship, Research and Creative Activity","(blank)","309","Research Grant","no",{"$f":"IFERROR(INDEX('Work Order Master'!$S:$S,MATCH(A1091,'Work Order Master'!$K:$K,0)),\"New\")","v":1310},{"$f":"IFERROR(INDEX('Work Order Master'!T:T,MATCH(WORKORDERS!$Q1091,'Work Order Master'!$S:$S,0)),Q1091)","v":"BCRIC CHAIR TOURISM"},{"$f":"IFERROR(INDEX('FRS CC Master'!A:A,MATCH(WORKORDERS!$Q1091*1,'FRS CC Master'!$C:$C,0)),WORKORDERS!$L1091)","v":"Scholarship, Research and Creative Activity"},{"$f":"IFERROR(VLOOKUP($A1091,'Work Order Master'!$K:$Q,7,FALSE),\"Remove\")","v":"N"}]
["25100-3-3","SRCA BCRIC - AECD Alphonse GRF","Active","25100-3","SRCA BCRIC","(blank)","5100","External Research Grants","500","Scholarship, Research and Creative Activity","500","Scholarship, Research and Creative Activity","(blank)","309","Research Grant",{"$f":"IF(OR(A1092=A1091,A1092=A1093),\"yes\",\"no\")","v":"no"},{"$f":"IFERROR(INDEX('Work Order Master'!$S:$S,MATCH(A1092,'Work Order Master'!$K:$K,0)),\"New\")","v":1306},{"$f":"IFERROR(INDEX('Work Order Master'!T:T,MATCH(WORKORDERS!$Q1092,'Work Order Master'!$S:$S,0)),Q1092)","v":"BCRIC AECD-OPERATING"},{"$f":"IFERROR(INDEX('FRS CC Master'!A:A,MATCH(WORKORDERS!$Q1092*1,'FRS CC Master'!$C:$C,0)),WORKORDERS!$L1092)","v":"Scholarship, Research and Creative Activity"},{"$f":"IFERROR(VLOOKUP($A1092,'Work Order Master'!$K:$Q,7,FALSE),\"Remove\")","v":"N"}]
["25100-4-1","SRCA CRC - Wager","Active","25100-4","SRCA Canada Research Chair","(blank)","5100","External Research Grants","500","Scholarship, Research and Creative Activity","500","Scholarship, Research and Creative Activity","(blank)","309","Research Grant","no",{"$f":"IFERROR(INDEX('Work Order Master'!$S:$S,MATCH(A1093,'Work Order Master'!$K:$K,0)),\"New\")","v":1300},{"$f":"IFERROR(INDEX('Work Order Master'!T:T,MATCH(WORKORDERS!$Q1093,'Work Order Master'!$S:$S,0)),Q1093)","v":"CRC - WAGER"},{"$f":"IFERROR(INDEX('FRS CC Master'!A:A,MATCH(WORKORDERS!$Q1093*1,'FRS CC Master'!$C:$C,0)),WORKORDERS!$L1093)","v":"Scholarship, Research and Creative Activity"},{"$f":"IFERROR(VLOOKUP($A1093,'Work Order Master'!$K:$Q,7,FALSE),\"Remove\")","v":"N"}]
["25100-4-2","SRCA CRC - Wood","Active","25100-4","SRCA Canada Research Chair","(blank)","5100","External Research Grants","500","Scholarship, Research and Creative Activity","500","Scholarship, Research and Creative Activity","(blank)","309","Research Grant","no",{"$f":"IFERROR(INDEX('Work Order Master'!$S:$S,MATCH(A1094,'Work Order Master'!$K:$K,0)),\"New\")","v":1315},{"$f":"IFERROR(INDEX('Work Order Master'!T:T,MATCH(WORKORDERS!$Q1094,'Work Order Master'!$S:$S,0)),Q1094)","v":"CRC - WOOD"},{"$f":"IFERROR(INDEX('FRS CC Master'!A:A,MATCH(WORKORDERS!$Q1094*1,'FRS CC Master'!$C:$C,0)),WORKORDERS!$L1094)","v":"Scholarship, Research and Creative Activity"},{"$f":"IFERROR(VLOOKUP($A1094,'Work Order Master'!$K:$Q,7,FALSE),\"Remove\")","v":"N"}]
["25100-4-3","SRCA CRC - Green","Active","25100-4","SRCA Canada Research Chair","(blank)","5100","External Research Grants","500","Scholarship, Research and Creative Activity","500","Scholarship, Research and Creative Activity","(blank)","309","Research Grant","no",{"$f":"IFERROR(INDEX('Work Order Master'!$S:$S,MATCH(A1095,'Work Order Master'!$K:$K,0)),\"New\")","v":1325},{"$f":"IFERROR(INDEX('Work Order Master'!T:T,MATCH(WORKORDERS!$Q1095,'Work Order Master'!$S:$S,0)),Q1095)","v":"CRC GENOMICS-GREEN"},{"$f":"IFERROR(INDEX('FRS CC Master'!A:A,MATCH(WORKORDERS!$Q1095*1,'FRS CC Master'!$C:$C,0)),WORKORDERS!$L1095)","v":"Scholarship, Research and Creative Activity"},{"$f":"IFERROR(VLOOKUP($A1095,'Work Order Master'!$K:$Q,7,FALSE),\"Remove\")","v":"N"}]
["25100-4-4","SRCA CRC TIPS - EDI Stipend - Vaugeois 5779","Active","25100-4","SRCA Canada Research Chair","(blank)","5100","External Research Grants","500","Scholarship, Research and Creative Activity","500","Scholarship, Research and Creative Activity","(blank)","309","Research Grant","no",{"$f":"IFERROR(INDEX('Work Order Master'!$S:$S,MATCH(A1096,'Work Order Master'!$K:$K,0)),\"New\")","v":1304},{"$f":"IFERROR(INDEX('Work Order Master'!T:T,MATCH(WORKORDERS!$Q1096,'Work Order Master'!$S:$S,0)),Q1096)","v":"TIPS-EDI STIP-VAUGEOIS"},{"$f":"IFERROR(INDEX('FRS CC Master'!A:A,MATCH(WORKORDERS!$Q1096*1,'FRS CC Master'!$C:$C,0)),WORKORDERS!$L1096)","v":"Scholarship, Research and Creative Activity"},{"$f":"IFERROR(VLOOKUP($A1096,'Work Order Master'!$K:$Q,7,FALSE),\"Remove\")","v":"N"}]
["25100-4-5","SRCA CRC - Sloan 4670","Active","25100-4","SRCA Canada Research Chair","(blank)","5100","External Research Grants","500","Scholarship, Research and Creative Activity","500","Scholarship, Research and Creative Activity","(blank)","309","Research Grant","no",{"$f":"IFERROR(INDEX('Work Order Master'!$S:$S,MATCH(A1097,'Work Order Master'!$K:$K,0)),\"New\")","v":1301},{"$f":"IFERROR(INDEX('Work Order Master'!T:T,MATCH(WORKORDERS!$Q1097,'Work Order Master'!$S:$S,0)),Q1097)","v":"CRC - SLOAN 4670"},{"$f":"IFERROR(INDEX('FRS CC Master'!A:A,MATCH(WORKORDERS!$Q1097*1,'FRS CC Master'!$C:$C,0)),WORKORDERS!$L1097)","v":"Scholarship, Research and Creative Activity"},{"$f":"IFERROR(VLOOKUP($A1097,'Work Order Master'!$K:$Q,7,FALSE),\"Remove\")","v":"N"}]
["25100-5-1","SRCA CFI - IOFCFI - IOF","Active","25100-5","SRCA CFI - IOF","(blank)","5100","External Research Grants","500","Scholarship, Research and Creative Activity","500","Scholarship, Research and Creative Activity","(blank)","309","Research Grant","no",{"$f":"IFERROR(INDEX('Work Order Master'!$S:$S,MATCH(A1098,'Work Order Master'!$K:$K,0)),\"New\")","v":1200},{"$f":"IFERROR(INDEX('Work Order Master'!T:T,MATCH(WORKORDERS!$Q1098,'Work Order Master'!$S:$S,0)),Q1098)","v":"CFI - IOF"},{"$f":"IFERROR(INDEX('FRS CC Master'!A:A,MATCH(WORKORDERS!$Q1098*1,'FRS CC Master'!$C:$C,0)),WORKORDERS!$L1098)","v":"Scholarship, Research and Creative Activity"},{"$f":"IFERROR(VLOOKUP($A1098,'Work Order Master'!$K:$Q,7,FALSE),\"Remove\")","v":"N"}]
["25100-5-2","SRCA CFI - IOF Estuaries (Shaw)","Parked","25100-5","SRCA CFI - IOF","(blank)","5100","External Research Grants","500","Scholarship, Research and Creative Activity","500","Scholarship, Research and Creative Activity","(blank)","309","Research Grant","no",{"$f":"IFERROR(INDEX('Work Order Master'!$S:$S,MATCH(A1099,'Work Order Master'!$K:$K,0)),\"New\")","v":"New"},{"$f":"IFERROR(INDEX('Work Order Master'!T:T,MATCH(WORKORDERS!$Q1099,'Work Order Master'!$S:$S,0)),Q1099)","v":"New"},{"$f":"IFERROR(INDEX('FRS CC Master'!A:A,MATCH(WORKORDERS!$Q1099*1,'FRS CC Master'!$C:$C,0)),WORKORDERS!$L1099)","v":"Scholarship, Research and Creative Activity"},{"$f":"IFERROR(VLOOKUP($A1099,'Work Order Master'!$K:$Q,7,FALSE),\"Remove\")","v":"Remove"}]
["25100-5-3","SRCA CFI - IOF Mobile Lab (Krogh)","Active","25100-5","SRCA CFI - IOF","(blank)","5100","External Research Grants","500","Scholarship, Research and Creative Activity","500","Scholarship, Research and Creative Activity","(blank)","309","Research Grant","no",{"$f":"IFERROR(INDEX('Work Order Master'!$S:$S,MATCH(A1100,'Work Order Master'!$K:$K,0)),\"New\")","v":1209},{"$f":"IFERROR(INDEX('Work Order Master'!T:T,MATCH(WORKORDERS!$Q1100,'Work Order Master'!$S:$S,0)),Q1100)","v":"CFI IOF MOBILE LAB(KROGH)"},{"$f":"IFERROR(INDEX('FRS CC Master'!A:A,MATCH(WORKORDERS!$Q1100*1,'FRS CC Master'!$C:$C,0)),WORKORDERS!$L1100)","v":"Scholarship, Research and Creative Activity"},{"$f":"IFERROR(VLOOKUP($A1100,'Work Order Master'!$K:$Q,7,FALSE),\"Remove\")","v":"N"}]
["25100-5-4","SRCA CFI - IOF Shellfish (Green)","Active","25100-5","SRCA CFI - IOF","(blank)","5100","External Research Grants","500","Scholarship, Research and Creative Activity","500","Scholarship, Research and Creative Activity","(blank)","309","Research Grant","no",{"$f":"IFERROR(INDEX('Work Order Master'!$S:$S,MATCH(A1101,'Work Order Master'!$K:$K,0)),\"New\")","v":1207},{"$f":"IFERROR(INDEX('Work Order Master'!T:T,MATCH(WORKORDERS!$Q1101,'Work Order Master'!$S:$S,0)),Q1101)","v":"CFI IOF SHELLFISH (GREEN)"},{"$f":"IFERROR(INDEX('FRS CC Master'!A:A,MATCH(WORKORDERS!$Q1101*1,'FRS CC Master'!$C:$C,0)),WORKORDERS!$L1101)","v":"Scholarship, Research and Creative Activity"},{"$f":"IFERROR(VLOOKUP($A1101,'Work Order Master'!$K:$Q,7,FALSE),\"Remove\")","v":"N"}]
["25100-5-5","SRCA CFI - IOF MeTA DH Lab - Lane","Active","25100-5","SRCA CFI - IOF","(blank)","5100","External Research Grants","500","Scholarship, Research and Creative Activity","500","Scholarship, Research and Creative Activity","(blank)","309","Research Grant","no",{"$f":"IFERROR(INDEX('Work Order Master'!$S:$S,MATCH(A1102,'Work Order Master'!$K:$K,0)),\"New\")","v":1201},{"$f":"IFERROR(INDEX('Work Order Master'!T:T,MATCH(WORKORDERS!$Q1102,'Work Order Master'!$S:$S,0)),Q1102)","v":"CFI-IOF META DH LAB - LANE "},{"$f":"IFERROR(INDEX('FRS CC Master'!A:A,MATCH(WORKORDERS!$Q1102*1,'FRS CC Master'!$C:$C,0)),WORKORDERS!$L1102)","v":"Scholarship, Research and Creative Activity"},{"$f":"IFERROR(VLOOKUP($A1102,'Work Order Master'!$K:$Q,7,FALSE),\"Remove\")","v":"N"}]
["25100-5-6","SRCA CFI - IOF Russell","Active","25100-5","SRCA CFI - IOF","(blank)","5100","External Research Grants","500","Scholarship, Research and Creative Activity","500","Scholarship, Research and Creative Activity","(blank)","309","Research Grant","no",{"$f":"IFERROR(INDEX('Work Order Master'!$S:$S,MATCH(A1103,'Work Order Master'!$K:$K,0)),\"New\")","v":1202},{"$f":"IFERROR(INDEX('Work Order Master'!T:T,MATCH(WORKORDERS!$Q1103,'Work Order Master'!$S:$S,0)),Q1103)","v":"CFI-IOF RUSSELL "},{"$f":"IFERROR(INDEX('FRS CC Master'!A:A,MATCH(WORKORDERS!$Q1103*1,'FRS CC Master'!$C:$C,0)),WORKORDERS!$L1103)","v":"Scholarship, Research and Creative Activity"},{"$f":"IFERROR(VLOOKUP($A1103,'Work Order Master'!$K:$Q,7,FALSE),\"Remove\")","v":"N"}]
["25100-5-7","SRCA CFI - IOF Gill","Active","25100-5","SRCA CFI - IOF","(blank)","5100","External Research Grants","500","Scholarship, Research and Creative Activity","500","Scholarship, Research and Creative Activity","(blank)","309","Research Grant","no",{"$f":"IFERROR(INDEX('Work Order Master'!$S:$S,MATCH(A1104,'Work Order Master'!$K:$K,0)),\"New\")","v":1203},{"$f":"IFERROR(INDEX('Work Order Master'!T:T,MATCH(WORKORDERS!$Q1104,'Work Order Master'!$S:$S,0)),Q1104)","v":"CFI-IOF GILL"},{"$f":"IFERROR(INDEX('FRS CC Master'!A:A,MATCH(WORKORDERS!$Q1104*1,'FRS CC Master'!$C:$C,0)),WORKORDERS!$L1104)","v":"Scholarship, Research and Creative Activity"},{"$f":"IFERROR(VLOOKUP($A1104,'Work Order Master'!$K:$Q,7,FALSE),\"Remove\")","v":"N"}]
["25100-6-1","SRCA CIHR - Travel","Parked","25100-6","SRCA CIHR","(blank)","5100","External Research Grants","500","Scholarship, Research and Creative Activity","500","Scholarship, Research and Creative Activity","(blank)","309","Research Grant","no",{"$f":"IFERROR(INDEX('Work Order Master'!$S:$S,MATCH(A1105,'Work Order Master'!$K:$K,0)),\"New\")","v":"New"},{"$f":"IFERROR(INDEX('Work Order Master'!T:T,MATCH(WORKORDERS!$Q1105,'Work Order Master'!$S:$S,0)),Q1105)","v":"New"},{"$f":"IFERROR(INDEX('FRS CC Master'!A:A,MATCH(WORKORDERS!$Q1105*1,'FRS CC Master'!$C:$C,0)),WORKORDERS!$L1105)","v":"Scholarship, Research and Creative Activity"},{"$f":"IFERROR(VLOOKUP($A1105,'Work Order Master'!$K:$Q,7,FALSE),\"Remove\")","v":"Remove"}]
["25100-6-2","SRCA CIHR - IGWDG - Meijer-Drees 100093","Active","25100-6","SRCA CIHR","(blank)","5100","External Research Grants","500","Scholarship, Research and Creative Activity","500","Scholarship, Research and Creative Activity","(blank)","309","Research Grant","no",{"$f":"IFERROR(INDEX('Work Order Master'!$S:$S,MATCH(A1106,'Work Order Master'!$K:$K,0)),\"New\")","v":1290},{"$f":"IFERROR(INDEX('Work Order Master'!T:T,MATCH(WORKORDERS!$Q1106,'Work Order Master'!$S:$S,0)),Q1106)","v":"CIHR IGWDG-MEIJER-DREES "},{"$f":"IFERROR(INDEX('FRS CC Master'!A:A,MATCH(WORKORDERS!$Q1106*1,'FRS CC Master'!$C:$C,0)),WORKORDERS!$L1106)","v":"Scholarship, Research and Creative Activity"},{"$f":"IFERROR(VLOOKUP($A1106,'Work Order Master'!$K:$Q,7,FALSE),\"Remove\")","v":"N"}]
["25100-6-3","SRCA CIHR - COVID - Dames","Parked","25100-6","SRCA CIHR","(blank)","5100","External Research Grants","500","Scholarship, Research and Creative Activity","500","Scholarship, Research and Creative Activity","(blank)","309","Research Grant","no",{"$f":"IFERROR(INDEX('Work Order Master'!$S:$S,MATCH(A1107,'Work Order Master'!$K:$K,0)),\"New\")","v":"New"},{"$f":"IFERROR(INDEX('Work Order Master'!T:T,MATCH(WORKORDERS!$Q1107,'Work Order Master'!$S:$S,0)),Q1107)","v":"New"},{"$f":"IFERROR(INDEX('FRS CC Master'!A:A,MATCH(WORKORDERS!$Q1107*1,'FRS CC Master'!$C:$C,0)),WORKORDERS!$L1107)","v":"Scholarship, Research and Creative Activity"},{"$f":"IFERROR(VLOOKUP($A1107,'Work Order Master'!$K:$Q,7,FALSE),\"Remove\")","v":"Remove"}]
["25100-7-1","SRCA HHS - Jung","Parked","25100-7","SRCA HHS Faculty Awards","(blank)","5100","External Research Grants","500","Scholarship, Research and Creative Activity","500","Scholarship, Research and Creative Activity","(blank)","309","Research Grant","no",{"$f":"IFERROR(INDEX('Work Order Master'!$S:$S,MATCH(A1108,'Work Order Master'!$K:$K,0)),\"New\")","v":"New"},{"$f":"IFERROR(INDEX('Work Order Master'!T:T,MATCH(WORKORDERS!$Q1108,'Work Order Master'!$S:$S,0)),Q1108)","v":"New"},{"$f":"IFERROR(INDEX('FRS CC Master'!A:A,MATCH(WORKORDERS!$Q1108*1,'FRS CC Master'!$C:$C,0)),WORKORDERS!$L1108)","v":"Scholarship, Research and Creative Activity"},{"$f":"IFERROR(VLOOKUP($A1108,'Work Order Master'!$K:$Q,7,FALSE),\"Remove\")","v":"Remove"}]
["25100-7-2","SRCA HHS - Lavoie","Parked","25100-7","SRCA HHS Faculty Awards","(blank)","5100","External Research Grants","500","Scholarship, Research and Creative Activity","500","Scholarship, Research and Creative Activity","(blank)","309","Research Grant","no",{"$f":"IFERROR(INDEX('Work Order Master'!$S:$S,MATCH(A1109,'Work Order Master'!$K:$K,0)),\"New\")","v":"New"},{"$f":"IFERROR(INDEX('Work Order Master'!T:T,MATCH(WORKORDERS!$Q1109,'Work Order Master'!$S:$S,0)),Q1109)","v":"New"},{"$f":"IFERROR(INDEX('FRS CC Master'!A:A,MATCH(WORKORDERS!$Q1109*1,'FRS CC Master'!$C:$C,0)),WORKORDERS!$L1109)","v":"Scholarship, Research and Creative Activity"},{"$f":"IFERROR(VLOOKUP($A1109,'Work Order Master'!$K:$Q,7,FALSE),\"Remove\")","v":"Remove"}]
["25100-8-1","SRCA GRF - NSERC","Active","25100-8","SRCA NSERC","(blank)","5100","External Research Grants","500","Scholarship, Research and Creative Activity","500","Scholarship, Research and Creative Activity","(blank)","309","Research Grant","no",{"$f":"IFERROR(INDEX('Work Order Master'!$S:$S,MATCH(A1110,'Work Order Master'!$K:$K,0)),\"New\")","v":1118},{"$f":"IFERROR(INDEX('Work Order Master'!T:T,MATCH(WORKORDERS!$Q1110,'Work Order Master'!$S:$S,0)),Q1110)","v":"GRF - SSHRC"},{"$f":"IFERROR(INDEX('FRS CC Master'!A:A,MATCH(WORKORDERS!$Q1110*1,'FRS CC Master'!$C:$C,0)),WORKORDERS!$L1110)","v":"Scholarship, Research and Creative Activity"},{"$f":"IFERROR(VLOOKUP($A1110,'Work Order Master'!$K:$Q,7,FALSE),\"Remove\")","v":"N"}]
["25100-8-10","SRCA NSERC SPGN (Waterloo) - Floyd","Active","25100-8","SRCA NSERC","(blank)","5100","External Research Grants","500","Scholarship, Research and Creative Activity","500","Scholarship, Research and Creative Activity","(blank)","309","Research Grant","no",{"$f":"IFERROR(INDEX('Work Order Master'!$S:$S,MATCH(A1111,'Work Order Master'!$K:$K,0)),\"New\")","v":1259},{"$f":"IFERROR(INDEX('Work Order Master'!T:T,MATCH(WORKORDERS!$Q1111,'Work Order Master'!$S:$S,0)),Q1111)","v":"NSERC SPGN(WATRLOO)-FLOYD"},{"$f":"IFERROR(INDEX('FRS CC Master'!A:A,MATCH(WORKORDERS!$Q1111*1,'FRS CC Master'!$C:$C,0)),WORKORDERS!$L1111)","v":"Scholarship, Research and Creative Activity"},{"$f":"IFERROR(VLOOKUP($A1111,'Work Order Master'!$K:$Q,7,FALSE),\"Remove\")","v":"N"}]
["25100-8-11","SRCA NSERC USRA","Active","25100-8","SRCA NSERC","(blank)","5100","External Research Grants","500","Scholarship, Research and Creative Activity","500","Scholarship, Research and Creative Activity","(blank)","309","Research Grant","no",{"$f":"IFERROR(INDEX('Work Order Master'!$S:$S,MATCH(A1112,'Work Order Master'!$K:$K,0)),\"New\")","v":1250},{"$f":"IFERROR(INDEX('Work Order Master'!T:T,MATCH(WORKORDERS!$Q1112,'Work Order Master'!$S:$S,0)),Q1112)","v":"NSERC USRA"},{"$f":"IFERROR(INDEX('FRS CC Master'!A:A,MATCH(WORKORDERS!$Q1112*1,'FRS CC Master'!$C:$C,0)),WORKORDERS!$L1112)","v":"Scholarship, Research and Creative Activity"},{"$f":"IFERROR(VLOOKUP($A1112,'Work Order Master'!$K:$Q,7,FALSE),\"Remove\")","v":"N"}]
["25100-8-12","SRCA NSERC DG - Janes","Active","25100-8","SRCA NSERC","(blank)","5100","External Research Grants","500","Scholarship, Research and Creative Activity","500","Scholarship, Research and Creative Activity","(blank)","309","Research Grant","no",{"$f":"IFERROR(INDEX('Work Order Master'!$S:$S,MATCH(A1113,'Work Order Master'!$K:$K,0)),\"New\")","v":1279},{"$f":"IFERROR(INDEX('Work Order Master'!T:T,MATCH(WORKORDERS!$Q1113,'Work Order Master'!$S:$S,0)),Q1113)","v":"NSERC DG - JANES "},{"$f":"IFERROR(INDEX('FRS CC Master'!A:A,MATCH(WORKORDERS!$Q1113*1,'FRS CC Master'!$C:$C,0)),WORKORDERS!$L1113)","v":"Scholarship, Research and Creative Activity"},{"$f":"IFERROR(VLOOKUP($A1113,'Work Order Master'!$K:$Q,7,FALSE),\"Remove\")","v":"N"}]
["25100-8-13","SRCA NSERC DG - Stringham","Active","25100-8","SRCA NSERC","(blank)","5100","External Research Grants","500","Scholarship, Research and Creative Activity","500","Scholarship, Research and Creative Activity","(blank)","309","Research Grant","no",{"$f":"IFERROR(INDEX('Work Order Master'!$S:$S,MATCH(A1114,'Work Order Master'!$K:$K,0)),\"New\")","v":1283},{"$f":"IFERROR(INDEX('Work Order Master'!T:T,MATCH(WORKORDERS!$Q1114,'Work Order Master'!$S:$S,0)),Q1114)","v":"NSERC DG - STRINGHAM"},{"$f":"IFERROR(INDEX('FRS CC Master'!A:A,MATCH(WORKORDERS!$Q1114*1,'FRS CC Master'!$C:$C,0)),WORKORDERS!$L1114)","v":"Scholarship, Research and Creative Activity"},{"$f":"IFERROR(VLOOKUP($A1114,'Work Order Master'!$K:$Q,7,FALSE),\"Remove\")","v":"N"}]
["25100-8-14","SRCA NSERC DG - Wiebe 5790-101005","Active","25100-8","SRCA NSERC","(blank)","5100","External Research Grants","500","Scholarship, Research and Creative Activity","500","Scholarship, Research and Creative Activity","(blank)","309","Research Grant","no",{"$f":"IFERROR(INDEX('Work Order Master'!$S:$S,MATCH(A1115,'Work Order Master'!$K:$K,0)),\"New\")","v":1284},{"$f":"IFERROR(INDEX('Work Order Master'!T:T,MATCH(WORKORDERS!$Q1115,'Work Order Master'!$S:$S,0)),Q1115)","v":"NSERC DG - WIEBE 5790"},{"$f":"IFERROR(INDEX('FRS CC Master'!A:A,MATCH(WORKORDERS!$Q1115*1,'FRS CC Master'!$C:$C,0)),WORKORDERS!$L1115)","v":"Scholarship, Research and Creative Activity"},{"$f":"IFERROR(VLOOKUP($A1115,'Work Order Master'!$K:$Q,7,FALSE),\"Remove\")","v":"N"}]
["25100-8-2","SRCA NSERC  DG - Baker","Active","25100-8","SRCA NSERC","(blank)","5100","External Research Grants","500","Scholarship, Research and Creative Activity","500","Scholarship, Research and Creative Activity","(blank)","309","Research Grant","no",{"$f":"IFERROR(INDEX('Work Order Master'!$S:$S,MATCH(A1116,'Work Order Master'!$K:$K,0)),\"New\")","v":1256},{"$f":"IFERROR(INDEX('Work Order Master'!T:T,MATCH(WORKORDERS!$Q1116,'Work Order Master'!$S:$S,0)),Q1116)","v":"NSERC DG - BAKER"},{"$f":"IFERROR(INDEX('FRS CC Master'!A:A,MATCH(WORKORDERS!$Q1116*1,'FRS CC Master'!$C:$C,0)),WORKORDERS!$L1116)","v":"Scholarship, Research and Creative Activity"},{"$f":"IFERROR(VLOOKUP($A1116,'Work Order Master'!$K:$Q,7,FALSE),\"Remove\")","v":"N"}]
["25100-8-3","SRCA NSERC DG - Gill","Active","25100-8","SRCA NSERC","(blank)","5100","External Research Grants","500","Scholarship, Research and Creative Activity","500","Scholarship, Research and Creative Activity","(blank)","309","Research Grant","no",{"$f":"IFERROR(INDEX('Work Order Master'!$S:$S,MATCH(A1117,'Work Order Master'!$K:$K,0)),\"New\")","v":1278},{"$f":"IFERROR(INDEX('Work Order Master'!T:T,MATCH(WORKORDERS!$Q1117,'Work Order Master'!$S:$S,0)),Q1117)","v":"NSERC DG - GILL"},{"$f":"IFERROR(INDEX('FRS CC Master'!A:A,MATCH(WORKORDERS!$Q1117*1,'FRS CC Master'!$C:$C,0)),WORKORDERS!$L1117)","v":"Scholarship, Research and Creative Activity"},{"$f":"IFERROR(VLOOKUP($A1117,'Work Order Master'!$K:$Q,7,FALSE),\"Remove\")","v":"N"}]
["25100-8-4","SRCA NSERC DG - Gorrell","Active","25100-8","SRCA NSERC","(blank)","5100","External Research Grants","500","Scholarship, Research and Creative Activity","500","Scholarship, Research and Creative Activity","(blank)","309","Research Grant","no",{"$f":"IFERROR(INDEX('Work Order Master'!$S:$S,MATCH(A1118,'Work Order Master'!$K:$K,0)),\"New\")","v":1281},{"$f":"IFERROR(INDEX('Work Order Master'!T:T,MATCH(WORKORDERS!$Q1118,'Work Order Master'!$S:$S,0)),Q1118)","v":"NSERC DG - GORRELL"},{"$f":"IFERROR(INDEX('FRS CC Master'!A:A,MATCH(WORKORDERS!$Q1118*1,'FRS CC Master'!$C:$C,0)),WORKORDERS!$L1118)","v":"Scholarship, Research and Creative Activity"},{"$f":"IFERROR(VLOOKUP($A1118,'Work Order Master'!$K:$Q,7,FALSE),\"Remove\")","v":"N"}]
["25100-8-5","SRCA NSERC DG - Green","Active","25100-8","SRCA NSERC","(blank)","5100","External Research Grants","500","Scholarship, Research and Creative Activity","500","Scholarship, Research and Creative Activity","(blank)","309","Research Grant","no",{"$f":"IFERROR(INDEX('Work Order Master'!$S:$S,MATCH(A1119,'Work Order Master'!$K:$K,0)),\"New\")","v":1280},{"$f":"IFERROR(INDEX('Work Order Master'!T:T,MATCH(WORKORDERS!$Q1119,'Work Order Master'!$S:$S,0)),Q1119)","v":"NSERC DG - GREEN"},{"$f":"IFERROR(INDEX('FRS CC Master'!A:A,MATCH(WORKORDERS!$Q1119*1,'FRS CC Master'!$C:$C,0)),WORKORDERS!$L1119)","v":"Scholarship, Research and Creative Activity"},{"$f":"IFERROR(VLOOKUP($A1119,'Work Order Master'!$K:$Q,7,FALSE),\"Remove\")","v":"N"}]
["25100-8-6","SRCA NSERC DG - Krogh","Active","25100-8","SRCA NSERC","(blank)","5100","External Research Grants","500","Scholarship, Research and Creative Activity","500","Scholarship, Research and Creative Activity","(blank)","309","Research Grant","no",{"$f":"IFERROR(INDEX('Work Order Master'!$S:$S,MATCH(A1120,'Work Order Master'!$K:$K,0)),\"New\")","v":1277},{"$f":"IFERROR(INDEX('Work Order Master'!T:T,MATCH(WORKORDERS!$Q1120,'Work Order Master'!$S:$S,0)),Q1120)","v":"NSERC DG - KROGH"},{"$f":"IFERROR(INDEX('FRS CC Master'!A:A,MATCH(WORKORDERS!$Q1120*1,'FRS CC Master'!$C:$C,0)),WORKORDERS!$L1120)","v":"Scholarship, Research and Creative Activity"},{"$f":"IFERROR(VLOOKUP($A1120,'Work Order Master'!$K:$Q,7,FALSE),\"Remove\")","v":"N"}]
["25100-8-7","SRCA NSERC EDI - Vaugeois","Active","25100-8","SRCA NSERC","(blank)","5100","External Research Grants","500","Scholarship, Research and Creative Activity","500","Scholarship, Research and Creative Activity","(blank)","309","Research Grant","no",{"$f":"IFERROR(INDEX('Work Order Master'!$S:$S,MATCH(A1121,'Work Order Master'!$K:$K,0)),\"New\")","v":1282},{"$f":"IFERROR(INDEX('Work Order Master'!T:T,MATCH(WORKORDERS!$Q1121,'Work Order Master'!$S:$S,0)),Q1121)","v":"NSERC EDI - VAUGEOIS"},{"$f":"IFERROR(INDEX('FRS CC Master'!A:A,MATCH(WORKORDERS!$Q1121*1,'FRS CC Master'!$C:$C,0)),WORKORDERS!$L1121)","v":"Scholarship, Research and Creative Activity"},{"$f":"IFERROR(VLOOKUP($A1121,'Work Order Master'!$K:$Q,7,FALSE),\"Remove\")","v":"N"}]
["25100-8-8","SRCA NSERC Engage - Gill","Parked","25100-8","SRCA NSERC","(blank)","5100","External Research Grants","500","Scholarship, Research and Creative Activity","500","Scholarship, Research and Creative Activity","(blank)","309","Research Grant","no",{"$f":"IFERROR(INDEX('Work Order Master'!$S:$S,MATCH(A1122,'Work Order Master'!$K:$K,0)),\"New\")","v":"New"},{"$f":"IFERROR(INDEX('Work Order Master'!T:T,MATCH(WORKORDERS!$Q1122,'Work Order Master'!$S:$S,0)),Q1122)","v":"New"},{"$f":"IFERROR(INDEX('FRS CC Master'!A:A,MATCH(WORKORDERS!$Q1122*1,'FRS CC Master'!$C:$C,0)),WORKORDERS!$L1122)","v":"Scholarship, Research and Creative Activity"},{"$f":"IFERROR(VLOOKUP($A1122,'Work Order Master'!$K:$Q,7,FALSE),\"Remove\")","v":"Remove"}]
["25100-8-9","SRCA NSERC SPGN (VIU) - Floyd","Active","25100-8","SRCA NSERC","(blank)","5100","External Research Grants","500","Scholarship, Research and Creative Activity","500","Scholarship, Research and Creative Activity","(blank)","309","Research Grant","no",{"$f":"IFERROR(INDEX('Work Order Master'!$S:$S,MATCH(A1123,'Work Order Master'!$K:$K,0)),\"New\")","v":1260},{"$f":"IFERROR(INDEX('Work Order Master'!T:T,MATCH(WORKORDERS!$Q1123,'Work Order Master'!$S:$S,0)),Q1123)","v":"NSERC SPGN (VIU) - FLOYD"},{"$f":"IFERROR(INDEX('FRS CC Master'!A:A,MATCH(WORKORDERS!$Q1123*1,'FRS CC Master'!$C:$C,0)),WORKORDERS!$L1123)","v":"Scholarship, Research and Creative Activity"},{"$f":"IFERROR(VLOOKUP($A1123,'Work Order Master'!$K:$Q,7,FALSE),\"Remove\")","v":"N"}]
["25100-9-1","SRCA RIF Ministry - AVED","Active","25100-9","SRCA RIF - Ministry","(blank)","5100","External Research Grants","500","Scholarship, Research and Creative Activity","500","Scholarship, Research and Creative Activity","(blank)","309","Research Grant","no",{"$f":"IFERROR(INDEX('Work Order Master'!$S:$S,MATCH(A1124,'Work Order Master'!$K:$K,0)),\"New\")","v":1137},{"$f":"IFERROR(INDEX('Work Order Master'!T:T,MATCH(WORKORDERS!$Q1124,'Work Order Master'!$S:$S,0)),Q1124)","v":"REGIONAL INITIATIVES FUND"},{"$f":"IFERROR(INDEX('FRS CC Master'!A:A,MATCH(WORKORDERS!$Q1124*1,'FRS CC Master'!$C:$C,0)),WORKORDERS!$L1124)","v":"Scholarship, Research and Creative Activity"},{"$f":"IFERROR(VLOOKUP($A1124,'Work Order Master'!$K:$Q,7,FALSE),\"Remove\")","v":"N"}]
["25100-9-10","SRCA RIF - Ministry - AEST","Active","25100-9","SRCA RIF - Ministry","(blank)","5100","External Research Grants","500","Scholarship, Research and Creative Activity","500","Scholarship, Research and Creative Activity","(blank)","309","Research Grant","no",{"$f":"IFERROR(INDEX('Work Order Master'!$S:$S,MATCH(A1125,'Work Order Master'!$K:$K,0)),\"New\")","v":1141},{"$f":"IFERROR(INDEX('Work Order Master'!T:T,MATCH(WORKORDERS!$Q1125,'Work Order Master'!$S:$S,0)),Q1125)","v":"RIF - AEST 2019"},{"$f":"IFERROR(INDEX('FRS CC Master'!A:A,MATCH(WORKORDERS!$Q1125*1,'FRS CC Master'!$C:$C,0)),WORKORDERS!$L1125)","v":"Scholarship, Research and Creative Activity"},{"$f":"IFERROR(VLOOKUP($A1125,'Work Order Master'!$K:$Q,7,FALSE),\"Remove\")","v":"N"}]
["25100-9-11","SRCA RIF - Ministry - Russell","Parked","25100-9","SRCA RIF - Ministry","(blank)","5100","External Research Grants","500","Scholarship, Research and Creative Activity","500","Scholarship, Research and Creative Activity","(blank)","309","Research Grant","no",{"$f":"IFERROR(INDEX('Work Order Master'!$S:$S,MATCH(A1126,'Work Order Master'!$K:$K,0)),\"New\")","v":"New"},{"$f":"IFERROR(INDEX('Work Order Master'!T:T,MATCH(WORKORDERS!$Q1126,'Work Order Master'!$S:$S,0)),Q1126)","v":"New"},{"$f":"IFERROR(INDEX('FRS CC Master'!A:A,MATCH(WORKORDERS!$Q1126*1,'FRS CC Master'!$C:$C,0)),WORKORDERS!$L1126)","v":"Scholarship, Research and Creative Activity"},{"$f":"IFERROR(VLOOKUP($A1126,'Work Order Master'!$K:$Q,7,FALSE),\"Remove\")","v":"Remove"}]
["25100-9-12","SRCA RIF - Ministry - Schroeder 2019","Parked","25100-9","SRCA RIF - Ministry","(blank)","5100","External Research Grants","500","Scholarship, Research and Creative Activity","500","Scholarship, Research and Creative Activity","(blank)","309","Research Grant","no",{"$f":"IFERROR(INDEX('Work Order Master'!$S:$S,MATCH(A1127,'Work Order Master'!$K:$K,0)),\"New\")","v":"New"},{"$f":"IFERROR(INDEX('Work Order Master'!T:T,MATCH(WORKORDERS!$Q1127,'Work Order Master'!$S:$S,0)),Q1127)","v":"New"},{"$f":"IFERROR(INDEX('FRS CC Master'!A:A,MATCH(WORKORDERS!$Q1127*1,'FRS CC Master'!$C:$C,0)),WORKORDERS!$L1127)","v":"Scholarship, Research and Creative Activity"},{"$f":"IFERROR(VLOOKUP($A1127,'Work Order Master'!$K:$Q,7,FALSE),\"Remove\")","v":"Remove"}]
["25100-9-13","SRCA RIF - Ministry - Johnson - 100497","Active","25100-9","SRCA RIF - Ministry","(blank)","5100","External Research Grants","500","Scholarship, Research and Creative Activity","500","Scholarship, Research and Creative Activity","(blank)","309","Research Grant","no",{"$f":"IFERROR(INDEX('Work Order Master'!$S:$S,MATCH(A1128,'Work Order Master'!$K:$K,0)),\"New\")","v":1444},{"$f":"IFERROR(INDEX('Work Order Master'!T:T,MATCH(WORKORDERS!$Q1128,'Work Order Master'!$S:$S,0)),Q1128)","v":"RIF - JOHNSON 100497"},{"$f":"IFERROR(INDEX('FRS CC Master'!A:A,MATCH(WORKORDERS!$Q1128*1,'FRS CC Master'!$C:$C,0)),WORKORDERS!$L1128)","v":"Scholarship, Research and Creative Activity"},{"$f":"IFERROR(VLOOKUP($A1128,'Work Order Master'!$K:$Q,7,FALSE),\"Remove\")","v":"N"}]
["25100-9-14","SRCA RIF - Ministry  - Dames - 100546","Active","25100-9","SRCA RIF - Ministry","(blank)","5100","External Research Grants","500","Scholarship, Research and Creative Activity","500","Scholarship, Research and Creative Activity","(blank)","309","Research Grant","no",{"$f":"IFERROR(INDEX('Work Order Master'!$S:$S,MATCH(A1129,'Work Order Master'!$K:$K,0)),\"New\")","v":1443},{"$f":"IFERROR(INDEX('Work Order Master'!T:T,MATCH(WORKORDERS!$Q1129,'Work Order Master'!$S:$S,0)),Q1129)","v":"RIF - DAMES 100546"},{"$f":"IFERROR(INDEX('FRS CC Master'!A:A,MATCH(WORKORDERS!$Q1129*1,'FRS CC Master'!$C:$C,0)),WORKORDERS!$L1129)","v":"Scholarship, Research and Creative Activity"},{"$f":"IFERROR(VLOOKUP($A1129,'Work Order Master'!$K:$Q,7,FALSE),\"Remove\")","v":"N"}]
["25100-9-15","SRCA RIF - Ministry  - Russell 100948","Active","25100-9","SRCA RIF - Ministry","(blank)","5100","External Research Grants","500","Scholarship, Research and Creative Activity","500","Scholarship, Research and Creative Activity","(blank)","309","Research Grant","no",{"$f":"IFERROR(INDEX('Work Order Master'!$S:$S,MATCH(A1130,'Work Order Master'!$K:$K,0)),\"New\")","v":1445},{"$f":"IFERROR(INDEX('Work Order Master'!T:T,MATCH(WORKORDERS!$Q1130,'Work Order Master'!$S:$S,0)),Q1130)","v":"RIF - RUSSELL 100849"},{"$f":"IFERROR(INDEX('FRS CC Master'!A:A,MATCH(WORKORDERS!$Q1130*1,'FRS CC Master'!$C:$C,0)),WORKORDERS!$L1130)","v":"Scholarship, Research and Creative Activity"},{"$f":"IFERROR(VLOOKUP($A1130,'Work Order Master'!$K:$Q,7,FALSE),\"Remove\")","v":"N"}]
["25100-9-16","SRCA RIF - Ministry  - Russell 101069","Active","25100-9","SRCA RIF - Ministry","(blank)","5100","External Research Grants","500","Scholarship, Research and Creative Activity","500","Scholarship, Research and Creative Activity","(blank)","309","Research Grant","no",{"$f":"IFERROR(INDEX('Work Order Master'!$S:$S,MATCH(A1131,'Work Order Master'!$K:$K,0)),\"New\")","v":1448},{"$f":"IFERROR(INDEX('Work Order Master'!T:T,MATCH(WORKORDERS!$Q1131,'Work Order Master'!$S:$S,0)),Q1131)","v":"RIF-(IOF)-RUSSELL 101069"},{"$f":"IFERROR(INDEX('FRS CC Master'!A:A,MATCH(WORKORDERS!$Q1131*1,'FRS CC Master'!$C:$C,0)),WORKORDERS!$L1131)","v":"Scholarship, Research and Creative Activity"},{"$f":"IFERROR(VLOOKUP($A1131,'Work Order Master'!$K:$Q,7,FALSE),\"Remove\")","v":"N"}]
["25100-9-17","SRCA RIF - Ministry  - Baker 101071","Active","25100-9","SRCA RIF - Ministry","(blank)","5100","External Research Grants","500","Scholarship, Research and Creative Activity","500","Scholarship, Research and Creative Activity","(blank)","309","Research Grant","no",{"$f":"IFERROR(INDEX('Work Order Master'!$S:$S,MATCH(A1132,'Work Order Master'!$K:$K,0)),\"New\")","v":1449},{"$f":"IFERROR(INDEX('Work Order Master'!T:T,MATCH(WORKORDERS!$Q1132,'Work Order Master'!$S:$S,0)),Q1132)","v":"RIF - BAKER 101071"},{"$f":"IFERROR(INDEX('FRS CC Master'!A:A,MATCH(WORKORDERS!$Q1132*1,'FRS CC Master'!$C:$C,0)),WORKORDERS!$L1132)","v":"Scholarship, Research and Creative Activity"},{"$f":"IFERROR(VLOOKUP($A1132,'Work Order Master'!$K:$Q,7,FALSE),\"Remove\")","v":"N"}]
["25100-9-2","SRCA RIF - Ministry - Baker","Parked","25100-9","SRCA RIF - Ministry","(blank)","5100","External Research Grants","500","Scholarship, Research and Creative Activity","500","Scholarship, Research and Creative Activity","(blank)","309","Research Grant","no",{"$f":"IFERROR(INDEX('Work Order Master'!$S:$S,MATCH(A1133,'Work Order Master'!$K:$K,0)),\"New\")","v":"New"},{"$f":"IFERROR(INDEX('Work Order Master'!T:T,MATCH(WORKORDERS!$Q1133,'Work Order Master'!$S:$S,0)),Q1133)","v":"New"},{"$f":"IFERROR(INDEX('FRS CC Master'!A:A,MATCH(WORKORDERS!$Q1133*1,'FRS CC Master'!$C:$C,0)),WORKORDERS!$L1133)","v":"Scholarship, Research and Creative Activity"},{"$f":"IFERROR(VLOOKUP($A1133,'Work Order Master'!$K:$Q,7,FALSE),\"Remove\")","v":"Remove"}]
["25100-9-3","SRCA RIF - Ministry - Bowes","Parked","25100-9","SRCA RIF - Ministry","(blank)","5100","External Research Grants","500","Scholarship, Research and Creative Activity","500","Scholarship, Research and Creative Activity","(blank)","309","Research Grant","no",{"$f":"IFERROR(INDEX('Work Order Master'!$S:$S,MATCH(A1134,'Work Order Master'!$K:$K,0)),\"New\")","v":"New"},{"$f":"IFERROR(INDEX('Work Order Master'!T:T,MATCH(WORKORDERS!$Q1134,'Work Order Master'!$S:$S,0)),Q1134)","v":"New"},{"$f":"IFERROR(INDEX('FRS CC Master'!A:A,MATCH(WORKORDERS!$Q1134*1,'FRS CC Master'!$C:$C,0)),WORKORDERS!$L1134)","v":"Scholarship, Research and Creative Activity"},{"$f":"IFERROR(VLOOKUP($A1134,'Work Order Master'!$K:$Q,7,FALSE),\"Remove\")","v":"Remove"}]
["25100-9-4","SRCA RIF - Ministry - Ferguson","Parked","25100-9","SRCA RIF - Ministry","(blank)","5100","External Research Grants","500","Scholarship, Research and Creative Activity","500","Scholarship, Research and Creative Activity","(blank)","309","Research Grant","no",{"$f":"IFERROR(INDEX('Work Order Master'!$S:$S,MATCH(A1135,'Work Order Master'!$K:$K,0)),\"New\")","v":"New"},{"$f":"IFERROR(INDEX('Work Order Master'!T:T,MATCH(WORKORDERS!$Q1135,'Work Order Master'!$S:$S,0)),Q1135)","v":"New"},{"$f":"IFERROR(INDEX('FRS CC Master'!A:A,MATCH(WORKORDERS!$Q1135*1,'FRS CC Master'!$C:$C,0)),WORKORDERS!$L1135)","v":"Scholarship, Research and Creative Activity"},{"$f":"IFERROR(VLOOKUP($A1135,'Work Order Master'!$K:$Q,7,FALSE),\"Remove\")","v":"Remove"}]
["25100-9-5","SRCA RIF - Ministry - Gill","Active","25100-9","SRCA RIF - Ministry","(blank)","5100","External Research Grants","500","Scholarship, Research and Creative Activity","500","Scholarship, Research and Creative Activity","(blank)","309","Research Grant","no",{"$f":"IFERROR(INDEX('Work Order Master'!$S:$S,MATCH(A1136,'Work Order Master'!$K:$K,0)),\"New\")","v":1438},{"$f":"IFERROR(INDEX('Work Order Master'!T:T,MATCH(WORKORDERS!$Q1136,'Work Order Master'!$S:$S,0)),Q1136)","v":"RIF - GILL"},{"$f":"IFERROR(INDEX('FRS CC Master'!A:A,MATCH(WORKORDERS!$Q1136*1,'FRS CC Master'!$C:$C,0)),WORKORDERS!$L1136)","v":"Scholarship, Research and Creative Activity"},{"$f":"IFERROR(VLOOKUP($A1136,'Work Order Master'!$K:$Q,7,FALSE),\"Remove\")","v":"N"}]
["25100-9-6","SRCA RIF - Ministry - Gorrell","Parked","25100-9","SRCA RIF - Ministry","(blank)","5100","External Research Grants","500","Scholarship, Research and Creative Activity","500","Scholarship, Research and Creative Activity","(blank)","309","Research Grant","no",{"$f":"IFERROR(INDEX('Work Order Master'!$S:$S,MATCH(A1137,'Work Order Master'!$K:$K,0)),\"New\")","v":"New"},{"$f":"IFERROR(INDEX('Work Order Master'!T:T,MATCH(WORKORDERS!$Q1137,'Work Order Master'!$S:$S,0)),Q1137)","v":"New"},{"$f":"IFERROR(INDEX('FRS CC Master'!A:A,MATCH(WORKORDERS!$Q1137*1,'FRS CC Master'!$C:$C,0)),WORKORDERS!$L1137)","v":"Scholarship, Research and Creative Activity"},{"$f":"IFERROR(VLOOKUP($A1137,'Work Order Master'!$K:$Q,7,FALSE),\"Remove\")","v":"Remove"}]
["25100-9-7","SRCA RIF - Ministry - Krogh","Parked","25100-9","SRCA RIF - Ministry","(blank)","5100","External Research Grants","500","Scholarship, Research and Creative Activity","500","Scholarship, Research and Creative Activity","(blank)","309","Research Grant","no",{"$f":"IFERROR(INDEX('Work Order Master'!$S:$S,MATCH(A1138,'Work Order Master'!$K:$K,0)),\"New\")","v":"New"},{"$f":"IFERROR(INDEX('Work Order Master'!T:T,MATCH(WORKORDERS!$Q1138,'Work Order Master'!$S:$S,0)),Q1138)","v":"New"},{"$f":"IFERROR(INDEX('FRS CC Master'!A:A,MATCH(WORKORDERS!$Q1138*1,'FRS CC Master'!$C:$C,0)),WORKORDERS!$L1138)","v":"Scholarship, Research and Creative Activity"},{"$f":"IFERROR(VLOOKUP($A1138,'Work Order Master'!$K:$Q,7,FALSE),\"Remove\")","v":"Remove"}]
["25100-9-8","SRCA RIF - Ministry - Krogh 2019","Parked","25100-9","SRCA RIF - Ministry","(blank)","5100","External Research Grants","500","Scholarship, Research and Creative Activity","500","Scholarship, Research and Creative Activity","(blank)","309","Research Grant","no",{"$f":"IFERROR(INDEX('Work Order Master'!$S:$S,MATCH(A1139,'Work Order Master'!$K:$K,0)),\"New\")","v":"New"},{"$f":"IFERROR(INDEX('Work Order Master'!T:T,MATCH(WORKORDERS!$Q1139,'Work Order Master'!$S:$S,0)),Q1139)","v":"New"},{"$f":"IFERROR(INDEX('FRS CC Master'!A:A,MATCH(WORKORDERS!$Q1139*1,'FRS CC Master'!$C:$C,0)),WORKORDERS!$L1139)","v":"Scholarship, Research and Creative Activity"},{"$f":"IFERROR(VLOOKUP($A1139,'Work Order Master'!$K:$Q,7,FALSE),\"Remove\")","v":"Remove"}]
["25100-9-9","SRCA RIF - Ministry - Schroeder","Parked","25100-9","SRCA RIF - Ministry","(blank)","5100","External Research Grants","500","Scholarship, Research and Creative Activity","500","Scholarship, Research and Creative Activity","(blank)","309","Research Grant","no",{"$f":"IFERROR(INDEX('Work Order Master'!$S:$S,MATCH(A1140,'Work Order Master'!$K:$K,0)),\"New\")","v":"New"},{"$f":"IFERROR(INDEX('Work Order Master'!T:T,MATCH(WORKORDERS!$Q1140,'Work Order Master'!$S:$S,0)),Q1140)","v":"New"},{"$f":"IFERROR(INDEX('FRS CC Master'!A:A,MATCH(WORKORDERS!$Q1140*1,'FRS CC Master'!$C:$C,0)),WORKORDERS!$L1140)","v":"Scholarship, Research and Creative Activity"},{"$f":"IFERROR(VLOOKUP($A1140,'Work Order Master'!$K:$Q,7,FALSE),\"Remove\")","v":"Remove"}]
["25125-1-1","SRCA BC MIN ED 2(UVIC) - Fisher","Parked","25125-1","SRCA Other contracts","(blank)","5125","External Research Contracts","500","Scholarship, Research and Creative Activity","500","Scholarship, Research and Creative Activity","(blank)","310","Research Contract","no",{"$f":"IFERROR(INDEX('Work Order Master'!$S:$S,MATCH(A1141,'Work Order Master'!$K:$K,0)),\"New\")","v":"New"},{"$f":"IFERROR(INDEX('Work Order Master'!T:T,MATCH(WORKORDERS!$Q1141,'Work Order Master'!$S:$S,0)),Q1141)","v":"New"},{"$f":"IFERROR(INDEX('FRS CC Master'!A:A,MATCH(WORKORDERS!$Q1141*1,'FRS CC Master'!$C:$C,0)),WORKORDERS!$L1141)","v":"Scholarship, Research and Creative Activity"},{"$f":"IFERROR(VLOOKUP($A1141,'Work Order Master'!$K:$Q,7,FALSE),\"Remove\")","v":"Remove"}]
["25125-1-10","SRCA Health Canada - Gill","Parked","25125-1","SRCA Other contracts","(blank)","5125","External Research Contracts","500","Scholarship, Research and Creative Activity","500","Scholarship, Research and Creative Activity","(blank)","310","Research Contract","no",{"$f":"IFERROR(INDEX('Work Order Master'!$S:$S,MATCH(A1142,'Work Order Master'!$K:$K,0)),\"New\")","v":"New"},{"$f":"IFERROR(INDEX('Work Order Master'!T:T,MATCH(WORKORDERS!$Q1142,'Work Order Master'!$S:$S,0)),Q1142)","v":"New"},{"$f":"IFERROR(INDEX('FRS CC Master'!A:A,MATCH(WORKORDERS!$Q1142*1,'FRS CC Master'!$C:$C,0)),WORKORDERS!$L1142)","v":"Scholarship, Research and Creative Activity"},{"$f":"IFERROR(VLOOKUP($A1142,'Work Order Master'!$K:$Q,7,FALSE),\"Remove\")","v":"Remove"}]
["25125-1-11","SRCA INAC - Hobenshield","Parked","25125-1","SRCA Other contracts","(blank)","5125","External Research Contracts","500","Scholarship, Research and Creative Activity","500","Scholarship, Research and Creative Activity","(blank)","310","Research Contract","no",{"$f":"IFERROR(INDEX('Work Order Master'!$S:$S,MATCH(A1143,'Work Order Master'!$K:$K,0)),\"New\")","v":"New"},{"$f":"IFERROR(INDEX('Work Order Master'!T:T,MATCH(WORKORDERS!$Q1143,'Work Order Master'!$S:$S,0)),Q1143)","v":"New"},{"$f":"IFERROR(INDEX('FRS CC Master'!A:A,MATCH(WORKORDERS!$Q1143*1,'FRS CC Master'!$C:$C,0)),WORKORDERS!$L1143)","v":"Scholarship, Research and Creative Activity"},{"$f":"IFERROR(VLOOKUP($A1143,'Work Order Master'!$K:$Q,7,FALSE),\"Remove\")","v":"Remove"}]
["25125-1-12","SRCA IS Health - Schroeder","Parked","25125-1","SRCA Other contracts","(blank)","5125","External Research Contracts","500","Scholarship, Research and Creative Activity","500","Scholarship, Research and Creative Activity","(blank)","310","Research Contract","no",{"$f":"IFERROR(INDEX('Work Order Master'!$S:$S,MATCH(A1144,'Work Order Master'!$K:$K,0)),\"New\")","v":"New"},{"$f":"IFERROR(INDEX('Work Order Master'!T:T,MATCH(WORKORDERS!$Q1144,'Work Order Master'!$S:$S,0)),Q1144)","v":"New"},{"$f":"IFERROR(INDEX('FRS CC Master'!A:A,MATCH(WORKORDERS!$Q1144*1,'FRS CC Master'!$C:$C,0)),WORKORDERS!$L1144)","v":"Scholarship, Research and Creative Activity"},{"$f":"IFERROR(VLOOKUP($A1144,'Work Order Master'!$K:$Q,7,FALSE),\"Remove\")","v":"Remove"}]
["25125-1-13","SRCA IS Health-Wellness - Sakaki","Parked","25125-1","SRCA Other contracts","(blank)","5125","External Research Contracts","500","Scholarship, Research and Creative Activity","500","Scholarship, Research and Creative Activity","(blank)","310","Research Contract","no",{"$f":"IFERROR(INDEX('Work Order Master'!$S:$S,MATCH(A1145,'Work Order Master'!$K:$K,0)),\"New\")","v":"New"},{"$f":"IFERROR(INDEX('Work Order Master'!T:T,MATCH(WORKORDERS!$Q1145,'Work Order Master'!$S:$S,0)),Q1145)","v":"New"},{"$f":"IFERROR(INDEX('FRS CC Master'!A:A,MATCH(WORKORDERS!$Q1145*1,'FRS CC Master'!$C:$C,0)),WORKORDERS!$L1145)","v":"Scholarship, Research and Creative Activity"},{"$f":"IFERROR(VLOOKUP($A1145,'Work Order Master'!$K:$Q,7,FALSE),\"Remove\")","v":"Remove"}]
["25125-1-14","SRCA MIN AG - Fischer Russell","Parked","25125-1","SRCA Other contracts","(blank)","5125","External Research Contracts","500","Scholarship, Research and Creative Activity","500","Scholarship, Research and Creative Activity","(blank)","310","Research Contract","no",{"$f":"IFERROR(INDEX('Work Order Master'!$S:$S,MATCH(A1146,'Work Order Master'!$K:$K,0)),\"New\")","v":"New"},{"$f":"IFERROR(INDEX('Work Order Master'!T:T,MATCH(WORKORDERS!$Q1146,'Work Order Master'!$S:$S,0)),Q1146)","v":"New"},{"$f":"IFERROR(INDEX('FRS CC Master'!A:A,MATCH(WORKORDERS!$Q1146*1,'FRS CC Master'!$C:$C,0)),WORKORDERS!$L1146)","v":"Scholarship, Research and Creative Activity"},{"$f":"IFERROR(VLOOKUP($A1146,'Work Order Master'!$K:$Q,7,FALSE),\"Remove\")","v":"Remove"}]
["25125-1-15","SRCA Mosaic - Beese","Parked","25125-1","SRCA Other contracts","(blank)","5125","External Research Contracts","500","Scholarship, Research and Creative Activity","500","Scholarship, Research and Creative Activity","(blank)","310","Research Contract","no",{"$f":"IFERROR(INDEX('Work Order Master'!$S:$S,MATCH(A1147,'Work Order Master'!$K:$K,0)),\"New\")","v":"New"},{"$f":"IFERROR(INDEX('Work Order Master'!T:T,MATCH(WORKORDERS!$Q1147,'Work Order Master'!$S:$S,0)),Q1147)","v":"New"},{"$f":"IFERROR(INDEX('FRS CC Master'!A:A,MATCH(WORKORDERS!$Q1147*1,'FRS CC Master'!$C:$C,0)),WORKORDERS!$L1147)","v":"Scholarship, Research and Creative Activity"},{"$f":"IFERROR(VLOOKUP($A1147,'Work Order Master'!$K:$Q,7,FALSE),\"Remove\")","v":"Remove"}]
["25125-1-16","SRCA NRC-GEM-Lesemann","Parked","25125-1","SRCA Other contracts","(blank)","5125","External Research Contracts","500","Scholarship, Research and Creative Activity","500","Scholarship, Research and Creative Activity","(blank)","310","Research Contract","no",{"$f":"IFERROR(INDEX('Work Order Master'!$S:$S,MATCH(A1148,'Work Order Master'!$K:$K,0)),\"New\")","v":"New"},{"$f":"IFERROR(INDEX('Work Order Master'!T:T,MATCH(WORKORDERS!$Q1148,'Work Order Master'!$S:$S,0)),Q1148)","v":"New"},{"$f":"IFERROR(INDEX('FRS CC Master'!A:A,MATCH(WORKORDERS!$Q1148*1,'FRS CC Master'!$C:$C,0)),WORKORDERS!$L1148)","v":"Scholarship, Research and Creative Activity"},{"$f":"IFERROR(VLOOKUP($A1148,'Work Order Master'!$K:$Q,7,FALSE),\"Remove\")","v":"Remove"}]
["25125-1-17","SRCA PACHEEDAHT - Sakaki","Parked","25125-1","SRCA Other contracts","(blank)","5125","External Research Contracts","500","Scholarship, Research and Creative Activity","500","Scholarship, Research and Creative Activity","(blank)","310","Research Contract","no",{"$f":"IFERROR(INDEX('Work Order Master'!$S:$S,MATCH(A1149,'Work Order Master'!$K:$K,0)),\"New\")","v":"New"},{"$f":"IFERROR(INDEX('Work Order Master'!T:T,MATCH(WORKORDERS!$Q1149,'Work Order Master'!$S:$S,0)),Q1149)","v":"New"},{"$f":"IFERROR(INDEX('FRS CC Master'!A:A,MATCH(WORKORDERS!$Q1149*1,'FRS CC Master'!$C:$C,0)),WORKORDERS!$L1149)","v":"Scholarship, Research and Creative Activity"},{"$f":"IFERROR(VLOOKUP($A1149,'Work Order Master'!$K:$Q,7,FALSE),\"Remove\")","v":"Remove"}]
["25125-1-18","SRCA TULA FDN 2 - Floyd","Active","25125-1","SRCA Other contracts","(blank)","5125","External Research Contracts","500","Scholarship, Research and Creative Activity","500","Scholarship, Research and Creative Activity","(blank)","310","Research Contract","no",{"$f":"IFERROR(INDEX('Work Order Master'!$S:$S,MATCH(A1150,'Work Order Master'!$K:$K,0)),\"New\")","v":1381},{"$f":"IFERROR(INDEX('Work Order Master'!T:T,MATCH(WORKORDERS!$Q1150,'Work Order Master'!$S:$S,0)),Q1150)","v":"TULA FDN 2 - FLOYD"},{"$f":"IFERROR(INDEX('FRS CC Master'!A:A,MATCH(WORKORDERS!$Q1150*1,'FRS CC Master'!$C:$C,0)),WORKORDERS!$L1150)","v":"Scholarship, Research and Creative Activity"},{"$f":"IFERROR(VLOOKUP($A1150,'Work Order Master'!$K:$Q,7,FALSE),\"Remove\")","v":"N"}]
["25125-1-19","SRCA VI Economic Alliance - Sakaki","Parked","25125-1","SRCA Other contracts","(blank)","5125","External Research Contracts","500","Scholarship, Research and Creative Activity","500","Scholarship, Research and Creative Activity","(blank)","310","Research Contract","no",{"$f":"IFERROR(INDEX('Work Order Master'!$S:$S,MATCH(A1151,'Work Order Master'!$K:$K,0)),\"New\")","v":"New"},{"$f":"IFERROR(INDEX('Work Order Master'!T:T,MATCH(WORKORDERS!$Q1151,'Work Order Master'!$S:$S,0)),Q1151)","v":"New"},{"$f":"IFERROR(INDEX('FRS CC Master'!A:A,MATCH(WORKORDERS!$Q1151*1,'FRS CC Master'!$C:$C,0)),WORKORDERS!$L1151)","v":"Scholarship, Research and Creative Activity"},{"$f":"IFERROR(VLOOKUP($A1151,'Work Order Master'!$K:$Q,7,FALSE),\"Remove\")","v":"Remove"}]
["25125-1-2","SRCA BC MIN FORESTS 6 - Floyd","Active","25125-1","SRCA Other contracts","(blank)","5125","External Research Contracts","500","Scholarship, Research and Creative Activity","500","Scholarship, Research and Creative Activity","(blank)","310","Research Contract","no",{"$f":"IFERROR(INDEX('Work Order Master'!$S:$S,MATCH(A1152,'Work Order Master'!$K:$K,0)),\"New\")","v":1393},{"$f":"IFERROR(INDEX('Work Order Master'!T:T,MATCH(WORKORDERS!$Q1152,'Work Order Master'!$S:$S,0)),Q1152)","v":"BC MIN FORESTS 6 - FLOYD"},{"$f":"IFERROR(INDEX('FRS CC Master'!A:A,MATCH(WORKORDERS!$Q1152*1,'FRS CC Master'!$C:$C,0)),WORKORDERS!$L1152)","v":"Scholarship, Research and Creative Activity"},{"$f":"IFERROR(VLOOKUP($A1152,'Work Order Master'!$K:$Q,7,FALSE),\"Remove\")","v":"N"}]
["25125-1-20","SRCA VI Health - Schroeder","Parked","25125-1","SRCA Other contracts","(blank)","5125","External Research Contracts","500","Scholarship, Research and Creative Activity","500","Scholarship, Research and Creative Activity","(blank)","310","Research Contract","no",{"$f":"IFERROR(INDEX('Work Order Master'!$S:$S,MATCH(A1153,'Work Order Master'!$K:$K,0)),\"New\")","v":"New"},{"$f":"IFERROR(INDEX('Work Order Master'!T:T,MATCH(WORKORDERS!$Q1153,'Work Order Master'!$S:$S,0)),Q1153)","v":"New"},{"$f":"IFERROR(INDEX('FRS CC Master'!A:A,MATCH(WORKORDERS!$Q1153*1,'FRS CC Master'!$C:$C,0)),WORKORDERS!$L1153)","v":"Scholarship, Research and Creative Activity"},{"$f":"IFERROR(VLOOKUP($A1153,'Work Order Master'!$K:$Q,7,FALSE),\"Remove\")","v":"Remove"}]
["25125-1-21","SRCA GVWD - Floyd","Active","25125-1","SRCA Other contracts","(blank)","5125","External Research Contracts","500","Scholarship, Research and Creative Activity","500","Scholarship, Research and Creative Activity","(blank)","310","Research Contract","no",{"$f":"IFERROR(INDEX('Work Order Master'!$S:$S,MATCH(A1154,'Work Order Master'!$K:$K,0)),\"New\")","v":4154},{"$f":"IFERROR(INDEX('Work Order Master'!T:T,MATCH(WORKORDERS!$Q1154,'Work Order Master'!$S:$S,0)),Q1154)","v":"GVWD-FLOYD "},{"$f":"IFERROR(INDEX('FRS CC Master'!A:A,MATCH(WORKORDERS!$Q1154*1,'FRS CC Master'!$C:$C,0)),WORKORDERS!$L1154)","v":"Scholarship, Research and Creative Activity"},{"$f":"IFERROR(VLOOKUP($A1154,'Work Order Master'!$K:$Q,7,FALSE),\"Remove\")","v":"N"}]
["25125-1-22","SRCA BCSDEVPR(IPRS)TAPLAY","Parked","25125-1","SRCA Other contracts","(blank)","5125","External Research Contracts","500","Scholarship, Research and Creative Activity","500","Scholarship, Research and Creative Activity","(blank)","310","Research Contract","no",{"$f":"IFERROR(INDEX('Work Order Master'!$S:$S,MATCH(A1155,'Work Order Master'!$K:$K,0)),\"New\")","v":"New"},{"$f":"IFERROR(INDEX('Work Order Master'!T:T,MATCH(WORKORDERS!$Q1155,'Work Order Master'!$S:$S,0)),Q1155)","v":"New"},{"$f":"IFERROR(INDEX('FRS CC Master'!A:A,MATCH(WORKORDERS!$Q1155*1,'FRS CC Master'!$C:$C,0)),WORKORDERS!$L1155)","v":"Scholarship, Research and Creative Activity"},{"$f":"IFERROR(VLOOKUP($A1155,'Work Order Master'!$K:$Q,7,FALSE),\"Remove\")","v":"Remove"}]
["25125-1-23","SRCA BCCAMPUS - DRURY","Active","25125-1","SRCA Other contracts","(blank)","5125","External Research Contracts","500","Scholarship, Research and Creative Activity","500","Scholarship, Research and Creative Activity","(blank)","310","Research Contract",{"$f":"IF(OR(A1156=A1155,A1156=A1157),\"yes\",\"no\")","v":"no"},{"$f":"IFERROR(INDEX('Work Order Master'!$S:$S,MATCH(A1156,'Work Order Master'!$K:$K,0)),\"New\")","v":4158},{"$f":"IFERROR(INDEX('Work Order Master'!T:T,MATCH(WORKORDERS!$Q1156,'Work Order Master'!$S:$S,0)),Q1156)","v":"BCCAMPUS - DRURY"},{"$f":"IFERROR(INDEX('FRS CC Master'!A:A,MATCH(WORKORDERS!$Q1156*1,'FRS CC Master'!$C:$C,0)),WORKORDERS!$L1156)","v":"Scholarship, Research and Creative Activity"},{"$f":"IFERROR(VLOOKUP($A1156,'Work Order Master'!$K:$Q,7,FALSE),\"Remove\")","v":"N"}]
["25125-1-24","SRCA MITACS-RBC-ALPHONSE","Active","25125-1","SRCA Other contracts","(blank)","5125","External Research Contracts","500","Scholarship, Research and Creative Activity","500","Scholarship, Research and Creative Activity","(blank)","310","Research Contract","no",{"$f":"IFERROR(INDEX('Work Order Master'!$S:$S,MATCH(A1157,'Work Order Master'!$K:$K,0)),\"New\")","v":4161},{"$f":"IFERROR(INDEX('Work Order Master'!T:T,MATCH(WORKORDERS!$Q1157,'Work Order Master'!$S:$S,0)),Q1157)","v":"MITACS-RBC-ALPHONSE"},{"$f":"IFERROR(INDEX('FRS CC Master'!A:A,MATCH(WORKORDERS!$Q1157*1,'FRS CC Master'!$C:$C,0)),WORKORDERS!$L1157)","v":"Scholarship, Research and Creative Activity"},{"$f":"IFERROR(VLOOKUP($A1157,'Work Order Master'!$K:$Q,7,FALSE),\"Remove\")","v":"N"}]
["25125-1-25","SRCA GENOME BC - GREEN","Active","25125-1","SRCA Other contracts","(blank)","5125","External Research Contracts","500","Scholarship, Research and Creative Activity","500","Scholarship, Research and Creative Activity","(blank)","310","Research Contract","no",{"$f":"IFERROR(INDEX('Work Order Master'!$S:$S,MATCH(A1158,'Work Order Master'!$K:$K,0)),\"New\")","v":4163},{"$f":"IFERROR(INDEX('Work Order Master'!T:T,MATCH(WORKORDERS!$Q1158,'Work Order Master'!$S:$S,0)),Q1158)","v":"GENOMEBC-GREEN"},{"$f":"IFERROR(INDEX('FRS CC Master'!A:A,MATCH(WORKORDERS!$Q1158*1,'FRS CC Master'!$C:$C,0)),WORKORDERS!$L1158)","v":"Scholarship, Research and Creative Activity"},{"$f":"IFERROR(VLOOKUP($A1158,'Work Order Master'!$K:$Q,7,FALSE),\"Remove\")","v":"N"}]
["25125-1-26","SRCA BCSGA - GREEN","Active","25125-1","SRCA Other contracts","(blank)","5125","External Research Contracts","500","Scholarship, Research and Creative Activity","500","Scholarship, Research and Creative Activity","(blank)","310","Research Contract","no",{"$f":"IFERROR(INDEX('Work Order Master'!$S:$S,MATCH(A1159,'Work Order Master'!$K:$K,0)),\"New\")","v":4164},{"$f":"IFERROR(INDEX('Work Order Master'!T:T,MATCH(WORKORDERS!$Q1159,'Work Order Master'!$S:$S,0)),Q1159)","v":"BCSGA – GREEN"},{"$f":"IFERROR(INDEX('FRS CC Master'!A:A,MATCH(WORKORDERS!$Q1159*1,'FRS CC Master'!$C:$C,0)),WORKORDERS!$L1159)","v":"Scholarship, Research and Creative Activity"},{"$f":"IFERROR(VLOOKUP($A1159,'Work Order Master'!$K:$Q,7,FALSE),\"Remove\")","v":"N"}]
["25125-1-27","SRCA MOWI - 5705 - RUSSELL","Parked","25125-1","SRCA Other contracts","(blank)","5125","External Research Contracts","500","Scholarship, Research and Creative Activity","500","Scholarship, Research and Creative Activity","(blank)","310","Research Contract","no",{"$f":"IFERROR(INDEX('Work Order Master'!$S:$S,MATCH(A1160,'Work Order Master'!$K:$K,0)),\"New\")","v":"New"},{"$f":"IFERROR(INDEX('Work Order Master'!T:T,MATCH(WORKORDERS!$Q1160,'Work Order Master'!$S:$S,0)),Q1160)","v":"New"},{"$f":"IFERROR(INDEX('FRS CC Master'!A:A,MATCH(WORKORDERS!$Q1160*1,'FRS CC Master'!$C:$C,0)),WORKORDERS!$L1160)","v":"Scholarship, Research and Creative Activity"},{"$f":"IFERROR(VLOOKUP($A1160,'Work Order Master'!$K:$Q,7,FALSE),\"Remove\")","v":"Remove"}]
["25125-1-28","SRCA TULA (UNBC) - Owikeno - Floyd","Active","25125-1","SRCA Other contracts","(blank)","5125","External Research Contracts","500","Scholarship, Research and Creative Activity","500","Scholarship, Research and Creative Activity","(blank)","310","Research Contract","no",{"$f":"IFERROR(INDEX('Work Order Master'!$S:$S,MATCH(A1161,'Work Order Master'!$K:$K,0)),\"New\")","v":1379},{"$f":"IFERROR(INDEX('Work Order Master'!T:T,MATCH(WORKORDERS!$Q1161,'Work Order Master'!$S:$S,0)),Q1161)","v":"TULA (UNBC) - OWIKENO - FLOYD"},{"$f":"IFERROR(INDEX('FRS CC Master'!A:A,MATCH(WORKORDERS!$Q1161*1,'FRS CC Master'!$C:$C,0)),WORKORDERS!$L1161)","v":"Scholarship, Research and Creative Activity"},{"$f":"IFERROR(VLOOKUP($A1161,'Work Order Master'!$K:$Q,7,FALSE),\"Remove\")","v":"N"}]
["25125-1-29","SRCA RDN - Floyd - 100604","Active","25125-1","SRCA Other contracts","(blank)","5125","External Research Contracts","500","Scholarship, Research and Creative Activity","500","Scholarship, Research and Creative Activity","(blank)","310","Research Contract","no",{"$f":"IFERROR(INDEX('Work Order Master'!$S:$S,MATCH(A1162,'Work Order Master'!$K:$K,0)),\"New\")","v":1378},{"$f":"IFERROR(INDEX('Work Order Master'!T:T,MATCH(WORKORDERS!$Q1162,'Work Order Master'!$S:$S,0)),Q1162)","v":"RDN - FLOYD 100604"},{"$f":"IFERROR(INDEX('FRS CC Master'!A:A,MATCH(WORKORDERS!$Q1162*1,'FRS CC Master'!$C:$C,0)),WORKORDERS!$L1162)","v":"Scholarship, Research and Creative Activity"},{"$f":"IFERROR(VLOOKUP($A1162,'Work Order Master'!$K:$Q,7,FALSE),\"Remove\")","v":"N"}]
["25125-1-3","SRCA BCCAT - Dick","Parked","25125-1","SRCA Other contracts","(blank)","5125","External Research Contracts","500","Scholarship, Research and Creative Activity","500","Scholarship, Research and Creative Activity","(blank)","310","Research Contract","no",{"$f":"IFERROR(INDEX('Work Order Master'!$S:$S,MATCH(A1163,'Work Order Master'!$K:$K,0)),\"New\")","v":"New"},{"$f":"IFERROR(INDEX('Work Order Master'!T:T,MATCH(WORKORDERS!$Q1163,'Work Order Master'!$S:$S,0)),Q1163)","v":"New"},{"$f":"IFERROR(INDEX('FRS CC Master'!A:A,MATCH(WORKORDERS!$Q1163*1,'FRS CC Master'!$C:$C,0)),WORKORDERS!$L1163)","v":"Scholarship, Research and Creative Activity"},{"$f":"IFERROR(VLOOKUP($A1163,'Work Order Master'!$K:$Q,7,FALSE),\"Remove\")","v":"Remove"}]
["25125-1-30","SRCA IND-North-Affairs (Gitksan) Floyd 100600","Active","25125-1","SRCA Other contracts","(blank)","5125","External Research Contracts","500","Scholarship, Research and Creative Activity","500","Scholarship, Research and Creative Activity","(blank)","310","Research Contract","no",{"$f":"IFERROR(INDEX('Work Order Master'!$S:$S,MATCH(A1164,'Work Order Master'!$K:$K,0)),\"New\")","v":4165},{"$f":"IFERROR(INDEX('Work Order Master'!T:T,MATCH(WORKORDERS!$Q1164,'Work Order Master'!$S:$S,0)),Q1164)","v":"IN-NA (GITKSAN) - FLOYD "},{"$f":"IFERROR(INDEX('FRS CC Master'!A:A,MATCH(WORKORDERS!$Q1164*1,'FRS CC Master'!$C:$C,0)),WORKORDERS!$L1164)","v":"Scholarship, Research and Creative Activity"},{"$f":"IFERROR(VLOOKUP($A1164,'Work Order Master'!$K:$Q,7,FALSE),\"Remove\")","v":"N"}]
["25125-1-31","SRCA CVRD - Floyd 5712","Active","25125-1","SRCA Other contracts","(blank)","5125","External Research Contracts","500","Scholarship, Research and Creative Activity","500","Scholarship, Research and Creative Activity","(blank)","310","Research Contract","no",{"$f":"IFERROR(INDEX('Work Order Master'!$S:$S,MATCH(A1165,'Work Order Master'!$K:$K,0)),\"New\")","v":1377},{"$f":"IFERROR(INDEX('Work Order Master'!T:T,MATCH(WORKORDERS!$Q1165,'Work Order Master'!$S:$S,0)),Q1165)","v":"CVRD - FLOYD 5712"},{"$f":"IFERROR(INDEX('FRS CC Master'!A:A,MATCH(WORKORDERS!$Q1165*1,'FRS CC Master'!$C:$C,0)),WORKORDERS!$L1165)","v":"Scholarship, Research and Creative Activity"},{"$f":"IFERROR(VLOOKUP($A1165,'Work Order Master'!$K:$Q,7,FALSE),\"Remove\")","v":"N"}]
["25125-1-32","SRCA MIN HLTH - SRCA 5832","Active","25125-1","SRCA Other contracts","(blank)","5125","External Research Contracts","500","Scholarship, Research and Creative Activity","500","Scholarship, Research and Creative Activity","(blank)","310","Research Contract","no",{"$f":"IFERROR(INDEX('Work Order Master'!$S:$S,MATCH(A1166,'Work Order Master'!$K:$K,0)),\"New\")","v":1330},{"$f":"IFERROR(INDEX('Work Order Master'!T:T,MATCH(WORKORDERS!$Q1166,'Work Order Master'!$S:$S,0)),Q1166)","v":"MIN HLTH - SRCA 5832"},{"$f":"IFERROR(INDEX('FRS CC Master'!A:A,MATCH(WORKORDERS!$Q1166*1,'FRS CC Master'!$C:$C,0)),WORKORDERS!$L1166)","v":"Scholarship, Research and Creative Activity"},{"$f":"IFERROR(VLOOKUP($A1166,'Work Order Master'!$K:$Q,7,FALSE),\"Remove\")","v":"N"}]
["25125-1-33","SRCA RTT-KAT - DAMES 5854","Parked","25125-1","SRCA Other contracts","(blank)","5125","External Research Contracts","500","Scholarship, Research and Creative Activity","500","Scholarship, Research and Creative Activity","(blank)","310","Research Contract","no",{"$f":"IFERROR(INDEX('Work Order Master'!$S:$S,MATCH(A1167,'Work Order Master'!$K:$K,0)),\"New\")","v":"New"},{"$f":"IFERROR(INDEX('Work Order Master'!T:T,MATCH(WORKORDERS!$Q1167,'Work Order Master'!$S:$S,0)),Q1167)","v":"New"},{"$f":"IFERROR(INDEX('FRS CC Master'!A:A,MATCH(WORKORDERS!$Q1167*1,'FRS CC Master'!$C:$C,0)),WORKORDERS!$L1167)","v":"Scholarship, Research and Creative Activity"},{"$f":"IFERROR(VLOOKUP($A1167,'Work Order Master'!$K:$Q,7,FALSE),\"Remove\")","v":"Remove"}]
["25125-1-34","SRCA BC-CMPS - Vinden 4589","Active","25125-1","SRCA Other contracts","(blank)","5125","External Research Contracts","500","Scholarship, Research and Creative Activity","500","Scholarship, Research and Creative Activity","(blank)","310","Research Contract","no",{"$f":"IFERROR(INDEX('Work Order Master'!$S:$S,MATCH(A1168,'Work Order Master'!$K:$K,0)),\"New\")","v":4167},{"$f":"IFERROR(INDEX('Work Order Master'!T:T,MATCH(WORKORDERS!$Q1168,'Work Order Master'!$S:$S,0)),Q1168)","v":"BC-CMPS - VINDEN 4167"},{"$f":"IFERROR(INDEX('FRS CC Master'!A:A,MATCH(WORKORDERS!$Q1168*1,'FRS CC Master'!$C:$C,0)),WORKORDERS!$L1168)","v":"Scholarship, Research and Creative Activity"},{"$f":"IFERROR(VLOOKUP($A1168,'Work Order Master'!$K:$Q,7,FALSE),\"Remove\")","v":"N"}]
["25125-1-35","SRCA BC SUPP (UVIC) - Blaney 5817","Active","25125-1","SRCA Other contracts","(blank)","5125","External Research Contracts","500","Scholarship, Research and Creative Activity","500","Scholarship, Research and Creative Activity","(blank)","310","Research Contract","no",{"$f":"IFERROR(INDEX('Work Order Master'!$S:$S,MATCH(A1169,'Work Order Master'!$K:$K,0)),\"New\")","v":1398},{"$f":"IFERROR(INDEX('Work Order Master'!T:T,MATCH(WORKORDERS!$Q1169,'Work Order Master'!$S:$S,0)),Q1169)","v":"BC SUPP (UVIC) - BLANEY 5817"},{"$f":"IFERROR(INDEX('FRS CC Master'!A:A,MATCH(WORKORDERS!$Q1169*1,'FRS CC Master'!$C:$C,0)),WORKORDERS!$L1169)","v":"Scholarship, Research and Creative Activity"},{"$f":"IFERROR(VLOOKUP($A1169,'Work Order Master'!$K:$Q,7,FALSE),\"Remove\")","v":"N"}]
["25125-1-36","SRCA IH - GILL 101344","Active","25125-1","SRCA Other contracts","(blank)","5125","External Research Contracts","500","Scholarship, Research and Creative Activity","500","Scholarship, Research and Creative Activity","(blank)","310","Research Contract","no",{"$f":"IFERROR(INDEX('Work Order Master'!$S:$S,MATCH(A1170,'Work Order Master'!$K:$K,0)),\"New\")","v":"New"},{"$f":"IFERROR(INDEX('Work Order Master'!T:T,MATCH(WORKORDERS!$Q1170,'Work Order Master'!$S:$S,0)),Q1170)","v":"New"},{"$f":"IFERROR(INDEX('FRS CC Master'!A:A,MATCH(WORKORDERS!$Q1170*1,'FRS CC Master'!$C:$C,0)),WORKORDERS!$L1170)","v":"Scholarship, Research and Creative Activity"},{"$f":"IFERROR(VLOOKUP($A1170,'Work Order Master'!$K:$Q,7,FALSE),\"Remove\")","v":"N"}]
["25125-1-4","SRCA CRD-Floyd","Parked","25125-1","SRCA Other contracts","(blank)","5125","External Research Contracts","500","Scholarship, Research and Creative Activity","500","Scholarship, Research and Creative Activity","(blank)","310","Research Contract","no",{"$f":"IFERROR(INDEX('Work Order Master'!$S:$S,MATCH(A1171,'Work Order Master'!$K:$K,0)),\"New\")","v":"New"},{"$f":"IFERROR(INDEX('Work Order Master'!T:T,MATCH(WORKORDERS!$Q1171,'Work Order Master'!$S:$S,0)),Q1171)","v":"New"},{"$f":"IFERROR(INDEX('FRS CC Master'!A:A,MATCH(WORKORDERS!$Q1171*1,'FRS CC Master'!$C:$C,0)),WORKORDERS!$L1171)","v":"Scholarship, Research and Creative Activity"},{"$f":"IFERROR(VLOOKUP($A1171,'Work Order Master'!$K:$Q,7,FALSE),\"Remove\")","v":"Remove"}]
["25125-1-5","SRCA DFO ACRDP - Dudas","Active","25125-1","SRCA Other contracts","(blank)","5125","External Research Contracts","500","Scholarship, Research and Creative Activity","500","Scholarship, Research and Creative Activity","(blank)","310","Research Contract","no",{"$f":"IFERROR(INDEX('Work Order Master'!$S:$S,MATCH(A1172,'Work Order Master'!$K:$K,0)),\"New\")","v":1324},{"$f":"IFERROR(INDEX('Work Order Master'!T:T,MATCH(WORKORDERS!$Q1172,'Work Order Master'!$S:$S,0)),Q1172)","v":"DFO ACRDP-DUDAS"},{"$f":"IFERROR(INDEX('FRS CC Master'!A:A,MATCH(WORKORDERS!$Q1172*1,'FRS CC Master'!$C:$C,0)),WORKORDERS!$L1172)","v":"Scholarship, Research and Creative Activity"},{"$f":"IFERROR(VLOOKUP($A1172,'Work Order Master'!$K:$Q,7,FALSE),\"Remove\")","v":"N"}]
["25125-1-6","SRCA ECO-Hobkirk - Sakaki","Parked","25125-1","SRCA Other contracts","(blank)","5125","External Research Contracts","500","Scholarship, Research and Creative Activity","500","Scholarship, Research and Creative Activity","(blank)","310","Research Contract","no",{"$f":"IFERROR(INDEX('Work Order Master'!$S:$S,MATCH(A1173,'Work Order Master'!$K:$K,0)),\"New\")","v":"New"},{"$f":"IFERROR(INDEX('Work Order Master'!T:T,MATCH(WORKORDERS!$Q1173,'Work Order Master'!$S:$S,0)),Q1173)","v":"New"},{"$f":"IFERROR(INDEX('FRS CC Master'!A:A,MATCH(WORKORDERS!$Q1173*1,'FRS CC Master'!$C:$C,0)),WORKORDERS!$L1173)","v":"Scholarship, Research and Creative Activity"},{"$f":"IFERROR(VLOOKUP($A1173,'Work Order Master'!$K:$Q,7,FALSE),\"Remove\")","v":"Remove"}]
["25125-1-7","SRCA ECO-Vivani - Sakaki","Parked","25125-1","SRCA Other contracts","(blank)","5125","External Research Contracts","500","Scholarship, Research and Creative Activity","500","Scholarship, Research and Creative Activity","(blank)","310","Research Contract","no",{"$f":"IFERROR(INDEX('Work Order Master'!$S:$S,MATCH(A1174,'Work Order Master'!$K:$K,0)),\"New\")","v":"New"},{"$f":"IFERROR(INDEX('Work Order Master'!T:T,MATCH(WORKORDERS!$Q1174,'Work Order Master'!$S:$S,0)),Q1174)","v":"New"},{"$f":"IFERROR(INDEX('FRS CC Master'!A:A,MATCH(WORKORDERS!$Q1174*1,'FRS CC Master'!$C:$C,0)),WORKORDERS!$L1174)","v":"Scholarship, Research and Creative Activity"},{"$f":"IFERROR(VLOOKUP($A1174,'Work Order Master'!$K:$Q,7,FALSE),\"Remove\")","v":"Remove"}]
["25125-1-8","SRCA ENV. CAN. NON 2 - Floyd","Parked","25125-1","SRCA Other contracts","(blank)","5125","External Research Contracts","500","Scholarship, Research and Creative Activity","500","Scholarship, Research and Creative Activity","(blank)","310","Research Contract","no",{"$f":"IFERROR(INDEX('Work Order Master'!$S:$S,MATCH(A1175,'Work Order Master'!$K:$K,0)),\"New\")","v":"New"},{"$f":"IFERROR(INDEX('Work Order Master'!T:T,MATCH(WORKORDERS!$Q1175,'Work Order Master'!$S:$S,0)),Q1175)","v":"New"},{"$f":"IFERROR(INDEX('FRS CC Master'!A:A,MATCH(WORKORDERS!$Q1175*1,'FRS CC Master'!$C:$C,0)),WORKORDERS!$L1175)","v":"Scholarship, Research and Creative Activity"},{"$f":"IFERROR(VLOOKUP($A1175,'Work Order Master'!$K:$Q,7,FALSE),\"Remove\")","v":"Remove"}]
["25125-1-9","SRCA G-H JOURNAL - Warsh","Active","25125-1","SRCA Other contracts","(blank)","5125","External Research Contracts","500","Scholarship, Research and Creative Activity","500","Scholarship, Research and Creative Activity","(blank)","310","Research Contract","no",{"$f":"IFERROR(INDEX('Work Order Master'!$S:$S,MATCH(A1176,'Work Order Master'!$K:$K,0)),\"New\")","v":1387},{"$f":"IFERROR(INDEX('Work Order Master'!T:T,MATCH(WORKORDERS!$Q1176,'Work Order Master'!$S:$S,0)),Q1176)","v":"G-H JOURNAL - WARSH"},{"$f":"IFERROR(INDEX('FRS CC Master'!A:A,MATCH(WORKORDERS!$Q1176*1,'FRS CC Master'!$C:$C,0)),WORKORDERS!$L1176)","v":"Scholarship, Research and Creative Activity"},{"$f":"IFERROR(VLOOKUP($A1176,'Work Order Master'!$K:$Q,7,FALSE),\"Remove\")","v":"N"}]
["25150-1-1","SRCA MABRRI - Administration","Active","25150-1","SRCA MABRRI - Administration","(blank)","5150","Mt Arrowsmith Biosphere Reserve Research Institute","515","Mt Arrowsmith Biosphere Reserve Research Institute","500","Scholarship, Research and Creative Activity","(blank)","300","Research Contract Administration","no",{"$f":"IFERROR(INDEX('Work Order Master'!$S:$S,MATCH(A1177,'Work Order Master'!$K:$K,0)),\"New\")","v":1101},{"$f":"IFERROR(INDEX('Work Order Master'!T:T,MATCH(WORKORDERS!$Q1177,'Work Order Master'!$S:$S,0)),Q1177)","v":"MT.ARROWSMITH RES. INST"},{"$f":"IFERROR(INDEX('FRS CC Master'!A:A,MATCH(WORKORDERS!$Q1177*1,'FRS CC Master'!$C:$C,0)),WORKORDERS!$L1177)","v":"Scholarship, Research and Creative Activity"},{"$f":"IFERROR(VLOOKUP($A1177,'Work Order Master'!$K:$Q,7,FALSE),\"Remove\")","v":"N"}]
["25150-1-2","SRCA MABRRI - Communications","Parked","25150-1","SRCA MABRRI - Administration","(blank)","5150","Mt Arrowsmith Biosphere Reserve Research Institute","515","Mt Arrowsmith Biosphere Reserve Research Institute","500","Scholarship, Research and Creative Activity","(blank)","300","Research Contract Administration","no",{"$f":"IFERROR(INDEX('Work Order Master'!$S:$S,MATCH(A1178,'Work Order Master'!$K:$K,0)),\"New\")","v":"New"},{"$f":"IFERROR(INDEX('Work Order Master'!T:T,MATCH(WORKORDERS!$Q1178,'Work Order Master'!$S:$S,0)),Q1178)","v":"New"},{"$f":"IFERROR(INDEX('FRS CC Master'!A:A,MATCH(WORKORDERS!$Q1178*1,'FRS CC Master'!$C:$C,0)),WORKORDERS!$L1178)","v":"Scholarship, Research and Creative Activity"},{"$f":"IFERROR(VLOOKUP($A1178,'Work Order Master'!$K:$Q,7,FALSE),\"Remove\")","v":"Remove"}]
["25150-1-3","SRCA MABRRI - Research Contract Holding","Active","25150-1","SRCA MABRRI - Administration","(blank)","5150","Mt Arrowsmith Biosphere Reserve Research Institute","515","Mt Arrowsmith Biosphere Reserve Research Institute","500","Scholarship, Research and Creative Activity","(blank)","300","Research Contract Administration","no",{"$f":"IFERROR(INDEX('Work Order Master'!$S:$S,MATCH(A1179,'Work Order Master'!$K:$K,0)),\"New\")","v":4200},{"$f":"IFERROR(INDEX('Work Order Master'!T:T,MATCH(WORKORDERS!$Q1179,'Work Order Master'!$S:$S,0)),Q1179)","v":"MABRRI HOLDING ACCOUNT"},{"$f":"IFERROR(INDEX('FRS CC Master'!A:A,MATCH(WORKORDERS!$Q1179*1,'FRS CC Master'!$C:$C,0)),WORKORDERS!$L1179)","v":"Scholarship, Research and Creative Activity"},{"$f":"IFERROR(VLOOKUP($A1179,'Work Order Master'!$K:$Q,7,FALSE),\"Remove\")","v":"N"}]
["25150-2-1","SRCA MABRRI - Student Projects","Parked","25150-2","SRCA MABRRI - Student Projects","(blank)","5150","Mt Arrowsmith Biosphere Reserve Research Institute","515","Mt Arrowsmith Biosphere Reserve Research Institute","500","Scholarship, Research and Creative Activity","(blank)","300","Research Contract Administration","no",{"$f":"IFERROR(INDEX('Work Order Master'!$S:$S,MATCH(A1180,'Work Order Master'!$K:$K,0)),\"New\")","v":"New"},{"$f":"IFERROR(INDEX('Work Order Master'!T:T,MATCH(WORKORDERS!$Q1180,'Work Order Master'!$S:$S,0)),Q1180)","v":"New"},{"$f":"IFERROR(INDEX('FRS CC Master'!A:A,MATCH(WORKORDERS!$Q1180*1,'FRS CC Master'!$C:$C,0)),WORKORDERS!$L1180)","v":"Scholarship, Research and Creative Activity"},{"$f":"IFERROR(VLOOKUP($A1180,'Work Order Master'!$K:$Q,7,FALSE),\"Remove\")","v":"Remove"}]
["25150-3-1","SRCA MABRRI - Coordinators","Parked","25150-3","SRCA MABRRI - Coordinators","(blank)","5150","Mt Arrowsmith Biosphere Reserve Research Institute","515","Mt Arrowsmith Biosphere Reserve Research Institute","500","Scholarship, Research and Creative Activity","(blank)","300","Research Contract Administration","no",{"$f":"IFERROR(INDEX('Work Order Master'!$S:$S,MATCH(A1181,'Work Order Master'!$K:$K,0)),\"New\")","v":"New"},{"$f":"IFERROR(INDEX('Work Order Master'!T:T,MATCH(WORKORDERS!$Q1181,'Work Order Master'!$S:$S,0)),Q1181)","v":"New"},{"$f":"IFERROR(INDEX('FRS CC Master'!A:A,MATCH(WORKORDERS!$Q1181*1,'FRS CC Master'!$C:$C,0)),WORKORDERS!$L1181)","v":"Scholarship, Research and Creative Activity"},{"$f":"IFERROR(VLOOKUP($A1181,'Work Order Master'!$K:$Q,7,FALSE),\"Remove\")","v":"Remove"}]
["25151-1-1","SRCA MABRRI VIURAC S-GRF - Shaw","Parked","25151-1","SRCA MABRRI VIURAC S-GRF","(blank)","5151","MABRRI Internal Awards","515","Mt Arrowsmith Biosphere Reserve Research Institute","500","Scholarship, Research and Creative Activity","(blank)","315","VIURAC RF","no",{"$f":"IFERROR(INDEX('Work Order Master'!$S:$S,MATCH(A1182,'Work Order Master'!$K:$K,0)),\"New\")","v":"New"},{"$f":"IFERROR(INDEX('Work Order Master'!T:T,MATCH(WORKORDERS!$Q1182,'Work Order Master'!$S:$S,0)),Q1182)","v":"New"},{"$f":"IFERROR(INDEX('FRS CC Master'!A:A,MATCH(WORKORDERS!$Q1182*1,'FRS CC Master'!$C:$C,0)),WORKORDERS!$L1182)","v":"Scholarship, Research and Creative Activity"},{"$f":"IFERROR(VLOOKUP($A1182,'Work Order Master'!$K:$Q,7,FALSE),\"Remove\")","v":"Remove"}]
["25151-2-1","SRCA MABRRI VIURAC Multiple - SIG18 - SGRF - Moghimehfar","Parked","25151-2","SRCA MABRRI VIURAC Multiple","(blank)","5151","MABRRI Internal Awards","515","Mt Arrowsmith Biosphere Reserve Research Institute","500","Scholarship, Research and Creative Activity","(blank)","315","VIURAC RF","no",{"$f":"IFERROR(INDEX('Work Order Master'!$S:$S,MATCH(A1183,'Work Order Master'!$K:$K,0)),\"New\")","v":"New"},{"$f":"IFERROR(INDEX('Work Order Master'!T:T,MATCH(WORKORDERS!$Q1183,'Work Order Master'!$S:$S,0)),Q1183)","v":"New"},{"$f":"IFERROR(INDEX('FRS CC Master'!A:A,MATCH(WORKORDERS!$Q1183*1,'FRS CC Master'!$C:$C,0)),WORKORDERS!$L1183)","v":"Scholarship, Research and Creative Activity"},{"$f":"IFERROR(VLOOKUP($A1183,'Work Order Master'!$K:$Q,7,FALSE),\"Remove\")","v":"Remove"}]
["25151-3-1","SRCA MABRRI - VIURAC RF - Lait","Parked","25151-3","SRCA MABRRI - VIURAC RF","(blank)","5151","MABRRI Internal Awards","515","Mt Arrowsmith Biosphere Reserve Research Institute","500","Scholarship, Research and Creative Activity","(blank)","315","VIURAC RF","no",{"$f":"IFERROR(INDEX('Work Order Master'!$S:$S,MATCH(A1184,'Work Order Master'!$K:$K,0)),\"New\")","v":"New"},{"$f":"IFERROR(INDEX('Work Order Master'!T:T,MATCH(WORKORDERS!$Q1184,'Work Order Master'!$S:$S,0)),Q1184)","v":"New"},{"$f":"IFERROR(INDEX('FRS CC Master'!A:A,MATCH(WORKORDERS!$Q1184*1,'FRS CC Master'!$C:$C,0)),WORKORDERS!$L1184)","v":"Scholarship, Research and Creative Activity"},{"$f":"IFERROR(VLOOKUP($A1184,'Work Order Master'!$K:$Q,7,FALSE),\"Remove\")","v":"Remove"}]
["25152-1-1","SRCA MABRRI RIF REFBC - Shaw 2018","Parked","25152-1","SRCA MABRRI RIF REFBC","(blank)","5152","MABRRI External Grants","515","Mt Arrowsmith Biosphere Reserve Research Institute","500","Scholarship, Research and Creative Activity","(blank)","309","Research Grant","no",{"$f":"IFERROR(INDEX('Work Order Master'!$S:$S,MATCH(A1185,'Work Order Master'!$K:$K,0)),\"New\")","v":"New"},{"$f":"IFERROR(INDEX('Work Order Master'!T:T,MATCH(WORKORDERS!$Q1185,'Work Order Master'!$S:$S,0)),Q1185)","v":"New"},{"$f":"IFERROR(INDEX('FRS CC Master'!A:A,MATCH(WORKORDERS!$Q1185*1,'FRS CC Master'!$C:$C,0)),WORKORDERS!$L1185)","v":"Scholarship, Research and Creative Activity"},{"$f":"IFERROR(VLOOKUP($A1185,'Work Order Master'!$K:$Q,7,FALSE),\"Remove\")","v":"Remove"}]
["25152-1-2","SRCA MABRRI RIF REFBC -  Holland - 100512","Parked","25152-1","SRCA MABRRI RIF REFBC","(blank)","5152","MABRRI External Grants","515","Mt Arrowsmith Biosphere Reserve Research Institute","500","Scholarship, Research and Creative Activity","(blank)","309","Research Grant","no",{"$f":"IFERROR(INDEX('Work Order Master'!$S:$S,MATCH(A1186,'Work Order Master'!$K:$K,0)),\"New\")","v":"New"},{"$f":"IFERROR(INDEX('Work Order Master'!T:T,MATCH(WORKORDERS!$Q1186,'Work Order Master'!$S:$S,0)),Q1186)","v":"New"},{"$f":"IFERROR(INDEX('FRS CC Master'!A:A,MATCH(WORKORDERS!$Q1186*1,'FRS CC Master'!$C:$C,0)),WORKORDERS!$L1186)","v":"Scholarship, Research and Creative Activity"},{"$f":"IFERROR(VLOOKUP($A1186,'Work Order Master'!$K:$Q,7,FALSE),\"Remove\")","v":"Remove"}]
["25152-1-3","SRCA MABRRI RIF REFBC - Manson","Parked","25152-1","SRCA MABRRI RIF REFBC","(blank)","5152","MABRRI External Grants","515","Mt Arrowsmith Biosphere Reserve Research Institute","500","Scholarship, Research and Creative Activity","(blank)","309","Research Grant","no",{"$f":"IFERROR(INDEX('Work Order Master'!$S:$S,MATCH(A1187,'Work Order Master'!$K:$K,0)),\"New\")","v":"New"},{"$f":"IFERROR(INDEX('Work Order Master'!T:T,MATCH(WORKORDERS!$Q1187,'Work Order Master'!$S:$S,0)),Q1187)","v":"New"},{"$f":"IFERROR(INDEX('FRS CC Master'!A:A,MATCH(WORKORDERS!$Q1187*1,'FRS CC Master'!$C:$C,0)),WORKORDERS!$L1187)","v":"Scholarship, Research and Creative Activity"},{"$f":"IFERROR(VLOOKUP($A1187,'Work Order Master'!$K:$Q,7,FALSE),\"Remove\")","v":"Remove"}]
["25152-1-4","SRCA MABRRI RIF REFBC - Lafreniere 100614","Active","25152-1","SRCA MABRRI RIF REFBC","(blank)","5152","MABRRI External Grants","515","Mt Arrowsmith Biosphere Reserve Research Institute","500","Scholarship, Research and Creative Activity","(blank)","309","Research Grant","no",{"$f":"IFERROR(INDEX('Work Order Master'!$S:$S,MATCH(A1188,'Work Order Master'!$K:$K,0)),\"New\")","v":4234},{"$f":"IFERROR(INDEX('Work Order Master'!T:T,MATCH(WORKORDERS!$Q1188,'Work Order Master'!$S:$S,0)),Q1188)","v":"RIF LAFRENIERE 100614"},{"$f":"IFERROR(INDEX('FRS CC Master'!A:A,MATCH(WORKORDERS!$Q1188*1,'FRS CC Master'!$C:$C,0)),WORKORDERS!$L1188)","v":"Scholarship, Research and Creative Activity"},{"$f":"IFERROR(VLOOKUP($A1188,'Work Order Master'!$K:$Q,7,FALSE),\"Remove\")","v":"N"}]
["25152-1-5","SRCA MABRRI RIF REFBC - Bowes 100598","Active","25152-1","SRCA MABRRI RIF REFBC","(blank)","5152","MABRRI External Grants","515","Mt Arrowsmith Biosphere Reserve Research Institute","500","Scholarship, Research and Creative Activity","(blank)","309","Research Grant","no",{"$f":"IFERROR(INDEX('Work Order Master'!$S:$S,MATCH(A1189,'Work Order Master'!$K:$K,0)),\"New\")","v":4230},{"$f":"IFERROR(INDEX('Work Order Master'!T:T,MATCH(WORKORDERS!$Q1189,'Work Order Master'!$S:$S,0)),Q1189)","v":"RIF - BOWES 100598"},{"$f":"IFERROR(INDEX('FRS CC Master'!A:A,MATCH(WORKORDERS!$Q1189*1,'FRS CC Master'!$C:$C,0)),WORKORDERS!$L1189)","v":"Scholarship, Research and Creative Activity"},{"$f":"IFERROR(VLOOKUP($A1189,'Work Order Master'!$K:$Q,7,FALSE),\"Remove\")","v":"N"}]
["25152-1-6","SRCA MABRRI RIF REFBC - Shaw 100740","Active","25152-1","SRCA MABRRI RIF REFBC","(blank)","5152","MABRRI External Grants","515","Mt Arrowsmith Biosphere Reserve Research Institute","500","Scholarship, Research and Creative Activity","(blank)","309","Research Grant","no",{"$f":"IFERROR(INDEX('Work Order Master'!$S:$S,MATCH(A1190,'Work Order Master'!$K:$K,0)),\"New\")","v":4241},{"$f":"IFERROR(INDEX('Work Order Master'!T:T,MATCH(WORKORDERS!$Q1190,'Work Order Master'!$S:$S,0)),Q1190)","v":"RIF - SHAW 100740"},{"$f":"IFERROR(INDEX('FRS CC Master'!A:A,MATCH(WORKORDERS!$Q1190*1,'FRS CC Master'!$C:$C,0)),WORKORDERS!$L1190)","v":"Scholarship, Research and Creative Activity"},{"$f":"IFERROR(VLOOKUP($A1190,'Work Order Master'!$K:$Q,7,FALSE),\"Remove\")","v":"N"}]
["25152-1-7","SRCA MABRRI RIF REFBC - Shaw 101098","Active","25152-1","SRCA MABRRI RIF REFBC","(blank)","5152","MABRRI External Grants","515","Mt Arrowsmith Biosphere Reserve Research Institute","500","Scholarship, Research and Creative Activity","(blank)","309","Research Grant","no",{"$f":"IFERROR(INDEX('Work Order Master'!$S:$S,MATCH(A1191,'Work Order Master'!$K:$K,0)),\"New\")","v":4246},{"$f":"IFERROR(INDEX('Work Order Master'!T:T,MATCH(WORKORDERS!$Q1191,'Work Order Master'!$S:$S,0)),Q1191)","v":"RIF - SHAW 101098"},{"$f":"IFERROR(INDEX('FRS CC Master'!A:A,MATCH(WORKORDERS!$Q1191*1,'FRS CC Master'!$C:$C,0)),WORKORDERS!$L1191)","v":"Scholarship, Research and Creative Activity"},{"$f":"IFERROR(VLOOKUP($A1191,'Work Order Master'!$K:$Q,7,FALSE),\"Remove\")","v":"N"}]
["25152-2-1","SRCA MABRRI SSHRC IRCR CG - Shaw","Active","25152-2","SRCA MABRRI SSHRC","(blank)","5152","MABRRI External Grants","515","Mt Arrowsmith Biosphere Reserve Research Institute","500","Scholarship, Research and Creative Activity","(blank)","309","Research Grant","no",{"$f":"IFERROR(INDEX('Work Order Master'!$S:$S,MATCH(A1192,'Work Order Master'!$K:$K,0)),\"New\")","v":4233},{"$f":"IFERROR(INDEX('Work Order Master'!T:T,MATCH(WORKORDERS!$Q1192,'Work Order Master'!$S:$S,0)),Q1192)","v":"SSHRC IRCR CG - SHAW"},{"$f":"IFERROR(INDEX('FRS CC Master'!A:A,MATCH(WORKORDERS!$Q1192*1,'FRS CC Master'!$C:$C,0)),WORKORDERS!$L1192)","v":"Scholarship, Research and Creative Activity"},{"$f":"IFERROR(VLOOKUP($A1192,'Work Order Master'!$K:$Q,7,FALSE),\"Remove\")","v":"N"}]
["25152-2-2","SRCA MABRRI SSHRC NCE (CMN) - Shaw","Active","25152-2","SRCA MABRRI SSHRC","(blank)","5152","MABRRI External Grants","515","Mt Arrowsmith Biosphere Reserve Research Institute","500","Scholarship, Research and Creative Activity","(blank)","309","Research Grant","no",{"$f":"IFERROR(INDEX('Work Order Master'!$S:$S,MATCH(A1193,'Work Order Master'!$K:$K,0)),\"New\")","v":4231},{"$f":"IFERROR(INDEX('Work Order Master'!T:T,MATCH(WORKORDERS!$Q1193,'Work Order Master'!$S:$S,0)),Q1193)","v":"NCE (CMN) SHAW"},{"$f":"IFERROR(INDEX('FRS CC Master'!A:A,MATCH(WORKORDERS!$Q1193*1,'FRS CC Master'!$C:$C,0)),WORKORDERS!$L1193)","v":"Scholarship, Research and Creative Activity"},{"$f":"IFERROR(VLOOKUP($A1193,'Work Order Master'!$K:$Q,7,FALSE),\"Remove\")","v":"N"}]
["25152-3-1","SRCA MABRRI ENV CAN - Shaw","Parked","25152-3","SRCA MABRRI Grant - Other","(blank)","5152","MABRRI External Grants","515","Mt Arrowsmith Biosphere Reserve Research Institute","500","Scholarship, Research and Creative Activity","(blank)","309","Research Grant","no",{"$f":"IFERROR(INDEX('Work Order Master'!$S:$S,MATCH(A1194,'Work Order Master'!$K:$K,0)),\"New\")","v":"New"},{"$f":"IFERROR(INDEX('Work Order Master'!T:T,MATCH(WORKORDERS!$Q1194,'Work Order Master'!$S:$S,0)),Q1194)","v":"New"},{"$f":"IFERROR(INDEX('FRS CC Master'!A:A,MATCH(WORKORDERS!$Q1194*1,'FRS CC Master'!$C:$C,0)),WORKORDERS!$L1194)","v":"Scholarship, Research and Creative Activity"},{"$f":"IFERROR(VLOOKUP($A1194,'Work Order Master'!$K:$Q,7,FALSE),\"Remove\")","v":"Remove"}]
["25152-3-2","SRCA MABRRI SITKA - Shaw","Parked","25152-3","SRCA MABRRI Grant - Other","(blank)","5152","MABRRI External Grants","515","Mt Arrowsmith Biosphere Reserve Research Institute","500","Scholarship, Research and Creative Activity","(blank)","309","Research Grant","no",{"$f":"IFERROR(INDEX('Work Order Master'!$S:$S,MATCH(A1195,'Work Order Master'!$K:$K,0)),\"New\")","v":"New"},{"$f":"IFERROR(INDEX('Work Order Master'!T:T,MATCH(WORKORDERS!$Q1195,'Work Order Master'!$S:$S,0)),Q1195)","v":"New"},{"$f":"IFERROR(INDEX('FRS CC Master'!A:A,MATCH(WORKORDERS!$Q1195*1,'FRS CC Master'!$C:$C,0)),WORKORDERS!$L1195)","v":"Scholarship, Research and Creative Activity"},{"$f":"IFERROR(VLOOKUP($A1195,'Work Order Master'!$K:$Q,7,FALSE),\"Remove\")","v":"Remove"}]
["25152-3-3","SRCA MABRRI SITKA2019 - Shaw","Active","25152-3","SRCA MABRRI Grant - Other","(blank)","5152","MABRRI External Grants","515","Mt Arrowsmith Biosphere Reserve Research Institute","500","Scholarship, Research and Creative Activity","(blank)","309","Research Grant","no",{"$f":"IFERROR(INDEX('Work Order Master'!$S:$S,MATCH(A1196,'Work Order Master'!$K:$K,0)),\"New\")","v":4215},{"$f":"IFERROR(INDEX('Work Order Master'!T:T,MATCH(WORKORDERS!$Q1196,'Work Order Master'!$S:$S,0)),Q1196)","v":"SITKA2019-SHAW"},{"$f":"IFERROR(INDEX('FRS CC Master'!A:A,MATCH(WORKORDERS!$Q1196*1,'FRS CC Master'!$C:$C,0)),WORKORDERS!$L1196)","v":"Scholarship, Research and Creative Activity"},{"$f":"IFERROR(VLOOKUP($A1196,'Work Order Master'!$K:$Q,7,FALSE),\"Remove\")","v":"N"}]
["25152-3-4","SRCA MABRRI St John Legacy Fdn - Shaw","Active","25152-3","SRCA MABRRI Grant - Other","(blank)","5152","MABRRI External Grants","515","Mt Arrowsmith Biosphere Reserve Research Institute","500","Scholarship, Research and Creative Activity","(blank)","309","Research Grant","no",{"$f":"IFERROR(INDEX('Work Order Master'!$S:$S,MATCH(A1197,'Work Order Master'!$K:$K,0)),\"New\")","v":4207},{"$f":"IFERROR(INDEX('Work Order Master'!T:T,MATCH(WORKORDERS!$Q1197,'Work Order Master'!$S:$S,0)),Q1197)","v":"ST JOHN LEGACY FDN - SHAW"},{"$f":"IFERROR(INDEX('FRS CC Master'!A:A,MATCH(WORKORDERS!$Q1197*1,'FRS CC Master'!$C:$C,0)),WORKORDERS!$L1197)","v":"Scholarship, Research and Creative Activity"},{"$f":"IFERROR(VLOOKUP($A1197,'Work Order Master'!$K:$Q,7,FALSE),\"Remove\")","v":"N"}]
["25152-3-5","SRCA MABRRI TD FEF Coastal Plant - Shaw","Parked","25152-3","SRCA MABRRI Grant - Other","(blank)","5152","MABRRI External Grants","515","Mt Arrowsmith Biosphere Reserve Research Institute","500","Scholarship, Research and Creative Activity","(blank)","309","Research Grant","no",{"$f":"IFERROR(INDEX('Work Order Master'!$S:$S,MATCH(A1198,'Work Order Master'!$K:$K,0)),\"New\")","v":"New"},{"$f":"IFERROR(INDEX('Work Order Master'!T:T,MATCH(WORKORDERS!$Q1198,'Work Order Master'!$S:$S,0)),Q1198)","v":"New"},{"$f":"IFERROR(INDEX('FRS CC Master'!A:A,MATCH(WORKORDERS!$Q1198*1,'FRS CC Master'!$C:$C,0)),WORKORDERS!$L1198)","v":"Scholarship, Research and Creative Activity"},{"$f":"IFERROR(VLOOKUP($A1198,'Work Order Master'!$K:$Q,7,FALSE),\"Remove\")","v":"Remove"}]
["25152-3-6","SRCA MABRRI Grant - Other Mitacs Accelerate (Fletcher) - Shaw 5763","Active","25152-3","SRCA MABRRI Grant - Other","(blank)","5152","MABRRI External Grants","515","Mt Arrowsmith Biosphere Reserve Research Institute","500","Scholarship, Research and Creative Activity","(blank)","309","Research Grant","no",{"$f":"IFERROR(INDEX('Work Order Master'!$S:$S,MATCH(A1199,'Work Order Master'!$K:$K,0)),\"New\")","v":4239},{"$f":"IFERROR(INDEX('Work Order Master'!T:T,MATCH(WORKORDERS!$Q1199,'Work Order Master'!$S:$S,0)),Q1199)","v":"MITACS ACC - SHAW 5763"},{"$f":"IFERROR(INDEX('FRS CC Master'!A:A,MATCH(WORKORDERS!$Q1199*1,'FRS CC Master'!$C:$C,0)),WORKORDERS!$L1199)","v":"Scholarship, Research and Creative Activity"},{"$f":"IFERROR(VLOOKUP($A1199,'Work Order Master'!$K:$Q,7,FALSE),\"Remove\")","v":"N"}]
["25152-3-7","SRCA MABRRI Grant - Other Molson Fnd - Shaw 5786","Active","25152-3","SRCA MABRRI Grant - Other","(blank)","5152","MABRRI External Grants","515","Mt Arrowsmith Biosphere Reserve Research Institute","500","Scholarship, Research and Creative Activity","(blank)","309","Research Grant","no",{"$f":"IFERROR(INDEX('Work Order Master'!$S:$S,MATCH(A1200,'Work Order Master'!$K:$K,0)),\"New\")","v":4244},{"$f":"IFERROR(INDEX('Work Order Master'!T:T,MATCH(WORKORDERS!$Q1200,'Work Order Master'!$S:$S,0)),Q1200)","v":"MOLSON FND - SHAW 5786"},{"$f":"IFERROR(INDEX('FRS CC Master'!A:A,MATCH(WORKORDERS!$Q1200*1,'FRS CC Master'!$C:$C,0)),WORKORDERS!$L1200)","v":"Scholarship, Research and Creative Activity"},{"$f":"IFERROR(VLOOKUP($A1200,'Work Order Master'!$K:$Q,7,FALSE),\"Remove\")","v":"N"}]
["25152-3-8","SRCA MABRRI Grant - Other CMN - Stipend - Shaw 5851","Active","25152-3","SRCA MABRRI Grant - Other","(blank)","5152","MABRRI External Grants","515","Mt Arrowsmith Biosphere Reserve Research Institute","500","Scholarship, Research and Creative Activity","(blank)","309","Research Grant","no",{"$f":"IFERROR(INDEX('Work Order Master'!$S:$S,MATCH(A1201,'Work Order Master'!$K:$K,0)),\"New\")","v":4243},{"$f":"IFERROR(INDEX('Work Order Master'!T:T,MATCH(WORKORDERS!$Q1201,'Work Order Master'!$S:$S,0)),Q1201)","v":"CMN-STIPEND-SHAW 5851"},{"$f":"IFERROR(INDEX('FRS CC Master'!A:A,MATCH(WORKORDERS!$Q1201*1,'FRS CC Master'!$C:$C,0)),WORKORDERS!$L1201)","v":"Scholarship, Research and Creative Activity"},{"$f":"IFERROR(VLOOKUP($A1201,'Work Order Master'!$K:$Q,7,FALSE),\"Remove\")","v":"N"}]
["25152-3-9","SRCA MABRRI Grant - Other ESDC - SHAW 5847","Active","25152-3","SRCA MABRRI Grant - Other","(blank)","5152","MABRRI External Grants","515","Mt Arrowsmith Biosphere Reserve Research Institute","500","Scholarship, Research and Creative Activity","(blank)","309","Research Grant","no",{"$f":"IFERROR(INDEX('Work Order Master'!$S:$S,MATCH(A1202,'Work Order Master'!$K:$K,0)),\"New\")","v":4248},{"$f":"IFERROR(INDEX('Work Order Master'!T:T,MATCH(WORKORDERS!$Q1202,'Work Order Master'!$S:$S,0)),Q1202)","v":"ESDC - SHAW 5847"},{"$f":"IFERROR(INDEX('FRS CC Master'!A:A,MATCH(WORKORDERS!$Q1202*1,'FRS CC Master'!$C:$C,0)),WORKORDERS!$L1202)","v":"Scholarship, Research and Creative Activity"},{"$f":"IFERROR(VLOOKUP($A1202,'Work Order Master'!$K:$Q,7,FALSE),\"Remove\")","v":"N"}]
["25152-4-1","SRCA MABRRI CFI - IOF Estuaries (Shaw)","Active","25152-4","SRCA MABRRI CFI","(blank)","5152","MABRRI External Grants","515","Mt Arrowsmith Biosphere Reserve Research Institute","500","Scholarship, Research and Creative Activity","(blank)","309","Research Grant","no",{"$f":"IFERROR(INDEX('Work Order Master'!$S:$S,MATCH(A1203,'Work Order Master'!$K:$K,0)),\"New\")","v":4208},{"$f":"IFERROR(INDEX('Work Order Master'!T:T,MATCH(WORKORDERS!$Q1203,'Work Order Master'!$S:$S,0)),Q1203)","v":"CFI IOF ESTUARIES (SHAW)"},{"$f":"IFERROR(INDEX('FRS CC Master'!A:A,MATCH(WORKORDERS!$Q1203*1,'FRS CC Master'!$C:$C,0)),WORKORDERS!$L1203)","v":"Scholarship, Research and Creative Activity"},{"$f":"IFERROR(VLOOKUP($A1203,'Work Order Master'!$K:$Q,7,FALSE),\"Remove\")","v":"N"}]
["25152-5-1","SRCA MABRRI RIF - Ministry - McCunn - 100597","Parked","25152-5","SRCA MABRRI RIF - MINISTRY","(blank)","5152","MABRRI External Grants","515","Mt Arrowsmith Biosphere Reserve Research Institute","500","Scholarship, Research and Creative Activity","(blank)","309","Research Grant","no",{"$f":"IFERROR(INDEX('Work Order Master'!$S:$S,MATCH(A1204,'Work Order Master'!$K:$K,0)),\"New\")","v":"New"},{"$f":"IFERROR(INDEX('Work Order Master'!T:T,MATCH(WORKORDERS!$Q1204,'Work Order Master'!$S:$S,0)),Q1204)","v":"New"},{"$f":"IFERROR(INDEX('FRS CC Master'!A:A,MATCH(WORKORDERS!$Q1204*1,'FRS CC Master'!$C:$C,0)),WORKORDERS!$L1204)","v":"Scholarship, Research and Creative Activity"},{"$f":"IFERROR(VLOOKUP($A1204,'Work Order Master'!$K:$Q,7,FALSE),\"Remove\")","v":"Remove"}]
["25152-5-2","SRCA MABRRI RIF - Ministry - Gilchrist - 100606","Parked","25152-5","SRCA MABRRI RIF - MINISTRY","(blank)","5152","MABRRI External Grants","515","Mt Arrowsmith Biosphere Reserve Research Institute","500","Scholarship, Research and Creative Activity","(blank)","309","Research Grant","no",{"$f":"IFERROR(INDEX('Work Order Master'!$S:$S,MATCH(A1205,'Work Order Master'!$K:$K,0)),\"New\")","v":"New"},{"$f":"IFERROR(INDEX('Work Order Master'!T:T,MATCH(WORKORDERS!$Q1205,'Work Order Master'!$S:$S,0)),Q1205)","v":"New"},{"$f":"IFERROR(INDEX('FRS CC Master'!A:A,MATCH(WORKORDERS!$Q1205*1,'FRS CC Master'!$C:$C,0)),WORKORDERS!$L1205)","v":"Scholarship, Research and Creative Activity"},{"$f":"IFERROR(VLOOKUP($A1205,'Work Order Master'!$K:$Q,7,FALSE),\"Remove\")","v":"Remove"}]
["25155-1-1","SRCA MABRRI Campbellton2 - Shaw","Parked","25155-1","SRCA MABRRI Contracts","(blank)","5155","MABRRI External Research Contracts","515","Mt Arrowsmith Biosphere Reserve Research Institute","500","Scholarship, Research and Creative Activity","(blank)","310","Research Contract","no",{"$f":"IFERROR(INDEX('Work Order Master'!$S:$S,MATCH(A1206,'Work Order Master'!$K:$K,0)),\"New\")","v":"New"},{"$f":"IFERROR(INDEX('Work Order Master'!T:T,MATCH(WORKORDERS!$Q1206,'Work Order Master'!$S:$S,0)),Q1206)","v":"New"},{"$f":"IFERROR(INDEX('FRS CC Master'!A:A,MATCH(WORKORDERS!$Q1206*1,'FRS CC Master'!$C:$C,0)),WORKORDERS!$L1206)","v":"Scholarship, Research and Creative Activity"},{"$f":"IFERROR(VLOOKUP($A1206,'Work Order Master'!$K:$Q,7,FALSE),\"Remove\")","v":"Remove"}]
["25155-1-10","SRCA MABRRI Port Alberni - Shaw","Parked","25155-1","SRCA MABRRI Contracts","(blank)","5155","MABRRI External Research Contracts","515","Mt Arrowsmith Biosphere Reserve Research Institute","500","Scholarship, Research and Creative Activity","(blank)","310","Research Contract","no",{"$f":"IFERROR(INDEX('Work Order Master'!$S:$S,MATCH(A1207,'Work Order Master'!$K:$K,0)),\"New\")","v":"New"},{"$f":"IFERROR(INDEX('Work Order Master'!T:T,MATCH(WORKORDERS!$Q1207,'Work Order Master'!$S:$S,0)),Q1207)","v":"New"},{"$f":"IFERROR(INDEX('FRS CC Master'!A:A,MATCH(WORKORDERS!$Q1207*1,'FRS CC Master'!$C:$C,0)),WORKORDERS!$L1207)","v":"Scholarship, Research and Creative Activity"},{"$f":"IFERROR(VLOOKUP($A1207,'Work Order Master'!$K:$Q,7,FALSE),\"Remove\")","v":"Remove"}]
["25155-1-11","SRCA MABRRI Qualicum - Comm - Shaw","Parked","25155-1","SRCA MABRRI Contracts","(blank)","5155","MABRRI External Research Contracts","515","Mt Arrowsmith Biosphere Reserve Research Institute","500","Scholarship, Research and Creative Activity","(blank)","310","Research Contract","no",{"$f":"IFERROR(INDEX('Work Order Master'!$S:$S,MATCH(A1208,'Work Order Master'!$K:$K,0)),\"New\")","v":"New"},{"$f":"IFERROR(INDEX('Work Order Master'!T:T,MATCH(WORKORDERS!$Q1208,'Work Order Master'!$S:$S,0)),Q1208)","v":"New"},{"$f":"IFERROR(INDEX('FRS CC Master'!A:A,MATCH(WORKORDERS!$Q1208*1,'FRS CC Master'!$C:$C,0)),WORKORDERS!$L1208)","v":"Scholarship, Research and Creative Activity"},{"$f":"IFERROR(VLOOKUP($A1208,'Work Order Master'!$K:$Q,7,FALSE),\"Remove\")","v":"Remove"}]
["25155-1-12","SRCA MABRRI RDN - Shaw","Active","25155-1","SRCA MABRRI Contracts","(blank)","5155","MABRRI External Research Contracts","515","Mt Arrowsmith Biosphere Reserve Research Institute","500","Scholarship, Research and Creative Activity","(blank)","310","Research Contract","no",{"$f":"IFERROR(INDEX('Work Order Master'!$S:$S,MATCH(A1209,'Work Order Master'!$K:$K,0)),\"New\")","v":4206},{"$f":"IFERROR(INDEX('Work Order Master'!T:T,MATCH(WORKORDERS!$Q1209,'Work Order Master'!$S:$S,0)),Q1209)","v":"RDN-SHAW "},{"$f":"IFERROR(INDEX('FRS CC Master'!A:A,MATCH(WORKORDERS!$Q1209*1,'FRS CC Master'!$C:$C,0)),WORKORDERS!$L1209)","v":"Scholarship, Research and Creative Activity"},{"$f":"IFERROR(VLOOKUP($A1209,'Work Order Master'!$K:$Q,7,FALSE),\"Remove\")","v":"N"}]
["25155-1-13","SRCA MABRRI REFBC - Shaw","Active","25155-1","SRCA MABRRI Contracts","(blank)","5155","MABRRI External Research Contracts","515","Mt Arrowsmith Biosphere Reserve Research Institute","500","Scholarship, Research and Creative Activity","(blank)","310","Research Contract","no",{"$f":"IFERROR(INDEX('Work Order Master'!$S:$S,MATCH(A1210,'Work Order Master'!$K:$K,0)),\"New\")","v":4213},{"$f":"IFERROR(INDEX('Work Order Master'!T:T,MATCH(WORKORDERS!$Q1210,'Work Order Master'!$S:$S,0)),Q1210)","v":"REFBC - SHAW"},{"$f":"IFERROR(INDEX('FRS CC Master'!A:A,MATCH(WORKORDERS!$Q1210*1,'FRS CC Master'!$C:$C,0)),WORKORDERS!$L1210)","v":"Scholarship, Research and Creative Activity"},{"$f":"IFERROR(VLOOKUP($A1210,'Work Order Master'!$K:$Q,7,FALSE),\"Remove\")","v":"N"}]
["25155-1-14","SRCA MABRRI WWF Forage 18-19 - Shaw","Parked","25155-1","SRCA MABRRI Contracts","(blank)","5155","MABRRI External Research Contracts","515","Mt Arrowsmith Biosphere Reserve Research Institute","500","Scholarship, Research and Creative Activity","(blank)","310","Research Contract","no",{"$f":"IFERROR(INDEX('Work Order Master'!$S:$S,MATCH(A1211,'Work Order Master'!$K:$K,0)),\"New\")","v":"New"},{"$f":"IFERROR(INDEX('Work Order Master'!T:T,MATCH(WORKORDERS!$Q1211,'Work Order Master'!$S:$S,0)),Q1211)","v":"New"},{"$f":"IFERROR(INDEX('FRS CC Master'!A:A,MATCH(WORKORDERS!$Q1211*1,'FRS CC Master'!$C:$C,0)),WORKORDERS!$L1211)","v":"Scholarship, Research and Creative Activity"},{"$f":"IFERROR(VLOOKUP($A1211,'Work Order Master'!$K:$Q,7,FALSE),\"Remove\")","v":"Remove"}]
["25155-1-15","SRCA MABRRI WWF Forage 19-21 - Shaw","Parked","25155-1","SRCA MABRRI Contracts","(blank)","5155","MABRRI External Research Contracts","515","Mt Arrowsmith Biosphere Reserve Research Institute","500","Scholarship, Research and Creative Activity","(blank)","310","Research Contract","no",{"$f":"IFERROR(INDEX('Work Order Master'!$S:$S,MATCH(A1212,'Work Order Master'!$K:$K,0)),\"New\")","v":"New"},{"$f":"IFERROR(INDEX('Work Order Master'!T:T,MATCH(WORKORDERS!$Q1212,'Work Order Master'!$S:$S,0)),Q1212)","v":"New"},{"$f":"IFERROR(INDEX('FRS CC Master'!A:A,MATCH(WORKORDERS!$Q1212*1,'FRS CC Master'!$C:$C,0)),WORKORDERS!$L1212)","v":"Scholarship, Research and Creative Activity"},{"$f":"IFERROR(VLOOKUP($A1212,'Work Order Master'!$K:$Q,7,FALSE),\"Remove\")","v":"Remove"}]
["25155-1-16","SRCA MABRRI  PSF-FORAGE-SHAW","Active","25155-1","SRCA MABRRI Contracts","(blank)","5155","MABRRI External Research Contracts","515","Mt Arrowsmith Biosphere Reserve Research Institute","500","Scholarship, Research and Creative Activity","(blank)","310","Research Contract","no",{"$f":"IFERROR(INDEX('Work Order Master'!$S:$S,MATCH(A1213,'Work Order Master'!$K:$K,0)),\"New\")","v":4219},{"$f":"IFERROR(INDEX('Work Order Master'!T:T,MATCH(WORKORDERS!$Q1213,'Work Order Master'!$S:$S,0)),Q1213)","v":"PSF-FORAGE-SHAW 5907"},{"$f":"IFERROR(INDEX('FRS CC Master'!A:A,MATCH(WORKORDERS!$Q1213*1,'FRS CC Master'!$C:$C,0)),WORKORDERS!$L1213)","v":"Scholarship, Research and Creative Activity"},{"$f":"IFERROR(VLOOKUP($A1213,'Work Order Master'!$K:$Q,7,FALSE),\"Remove\")","v":"N"}]
["25155-1-17","SRCA MABRRI  IN-SERV-CAN(CANDO)-SHAW","Active","25155-1","SRCA MABRRI Contracts","(blank)","5155","MABRRI External Research Contracts","515","Mt Arrowsmith Biosphere Reserve Research Institute","500","Scholarship, Research and Creative Activity","(blank)","310","Research Contract","no",{"$f":"IFERROR(INDEX('Work Order Master'!$S:$S,MATCH(A1214,'Work Order Master'!$K:$K,0)),\"New\")","v":4220},{"$f":"IFERROR(INDEX('Work Order Master'!T:T,MATCH(WORKORDERS!$Q1214,'Work Order Master'!$S:$S,0)),Q1214)","v":"IN-SERV-CAN(CANDO)-SHAW"},{"$f":"IFERROR(INDEX('FRS CC Master'!A:A,MATCH(WORKORDERS!$Q1214*1,'FRS CC Master'!$C:$C,0)),WORKORDERS!$L1214)","v":"Scholarship, Research and Creative Activity"},{"$f":"IFERROR(VLOOKUP($A1214,'Work Order Master'!$K:$Q,7,FALSE),\"Remove\")","v":"N"}]
["25155-1-18","SRCA MABRRI  KOMOKSFN-19/20-SHAW","Parked","25155-1","SRCA MABRRI Contracts","(blank)","5155","MABRRI External Research Contracts","515","Mt Arrowsmith Biosphere Reserve Research Institute","500","Scholarship, Research and Creative Activity","(blank)","310","Research Contract","no",{"$f":"IFERROR(INDEX('Work Order Master'!$S:$S,MATCH(A1215,'Work Order Master'!$K:$K,0)),\"New\")","v":"New"},{"$f":"IFERROR(INDEX('Work Order Master'!T:T,MATCH(WORKORDERS!$Q1215,'Work Order Master'!$S:$S,0)),Q1215)","v":"New"},{"$f":"IFERROR(INDEX('FRS CC Master'!A:A,MATCH(WORKORDERS!$Q1215*1,'FRS CC Master'!$C:$C,0)),WORKORDERS!$L1215)","v":"Scholarship, Research and Creative Activity"},{"$f":"IFERROR(VLOOKUP($A1215,'Work Order Master'!$K:$Q,7,FALSE),\"Remove\")","v":"Remove"}]
["25155-1-19","SRCA MABRRI  CBRA2019-SHAW","Parked","25155-1","SRCA MABRRI Contracts","(blank)","5155","MABRRI External Research Contracts","515","Mt Arrowsmith Biosphere Reserve Research Institute","500","Scholarship, Research and Creative Activity","(blank)","310","Research Contract","no",{"$f":"IFERROR(INDEX('Work Order Master'!$S:$S,MATCH(A1216,'Work Order Master'!$K:$K,0)),\"New\")","v":"New"},{"$f":"IFERROR(INDEX('Work Order Master'!T:T,MATCH(WORKORDERS!$Q1216,'Work Order Master'!$S:$S,0)),Q1216)","v":"New"},{"$f":"IFERROR(INDEX('FRS CC Master'!A:A,MATCH(WORKORDERS!$Q1216*1,'FRS CC Master'!$C:$C,0)),WORKORDERS!$L1216)","v":"Scholarship, Research and Creative Activity"},{"$f":"IFERROR(VLOOKUP($A1216,'Work Order Master'!$K:$Q,7,FALSE),\"Remove\")","v":"Remove"}]
["25155-1-2","SRCA MABRRI Campbell River 2019 - Shaw","Parked","25155-1","SRCA MABRRI Contracts","(blank)","5155","MABRRI External Research Contracts","515","Mt Arrowsmith Biosphere Reserve Research Institute","500","Scholarship, Research and Creative Activity","(blank)","310","Research Contract","no",{"$f":"IFERROR(INDEX('Work Order Master'!$S:$S,MATCH(A1217,'Work Order Master'!$K:$K,0)),\"New\")","v":"New"},{"$f":"IFERROR(INDEX('Work Order Master'!T:T,MATCH(WORKORDERS!$Q1217,'Work Order Master'!$S:$S,0)),Q1217)","v":"New"},{"$f":"IFERROR(INDEX('FRS CC Master'!A:A,MATCH(WORKORDERS!$Q1217*1,'FRS CC Master'!$C:$C,0)),WORKORDERS!$L1217)","v":"Scholarship, Research and Creative Activity"},{"$f":"IFERROR(VLOOKUP($A1217,'Work Order Master'!$K:$Q,7,FALSE),\"Remove\")","v":"Remove"}]
["25155-1-20","SRCA MABRRI BC FLNRO - SHAW","Parked","25155-1","SRCA MABRRI Contracts","(blank)","5155","MABRRI External Research Contracts","515","Mt Arrowsmith Biosphere Reserve Research Institute","500","Scholarship, Research and Creative Activity","(blank)","310","Research Contract","no",{"$f":"IFERROR(INDEX('Work Order Master'!$S:$S,MATCH(A1218,'Work Order Master'!$K:$K,0)),\"New\")","v":"New"},{"$f":"IFERROR(INDEX('Work Order Master'!T:T,MATCH(WORKORDERS!$Q1218,'Work Order Master'!$S:$S,0)),Q1218)","v":"New"},{"$f":"IFERROR(INDEX('FRS CC Master'!A:A,MATCH(WORKORDERS!$Q1218*1,'FRS CC Master'!$C:$C,0)),WORKORDERS!$L1218)","v":"Scholarship, Research and Creative Activity"},{"$f":"IFERROR(VLOOKUP($A1218,'Work Order Master'!$K:$Q,7,FALSE),\"Remove\")","v":"Remove"}]
["25155-1-21","SRCA MABRRI CITY NAN DKP - Shaw","Active","25155-1","SRCA MABRRI Contracts","(blank)","5155","MABRRI External Research Contracts","515","Mt Arrowsmith Biosphere Reserve Research Institute","500","Scholarship, Research and Creative Activity","(blank)","310","Research Contract","no",{"$f":"IFERROR(INDEX('Work Order Master'!$S:$S,MATCH(A1219,'Work Order Master'!$K:$K,0)),\"New\")","v":4223},{"$f":"IFERROR(INDEX('Work Order Master'!T:T,MATCH(WORKORDERS!$Q1219,'Work Order Master'!$S:$S,0)),Q1219)","v":"CITY NAN DKP-SHAW"},{"$f":"IFERROR(INDEX('FRS CC Master'!A:A,MATCH(WORKORDERS!$Q1219*1,'FRS CC Master'!$C:$C,0)),WORKORDERS!$L1219)","v":"Scholarship, Research and Creative Activity"},{"$f":"IFERROR(VLOOKUP($A1219,'Work Order Master'!$K:$Q,7,FALSE),\"Remove\")","v":"N"}]
["25155-1-22","SRCA MABRRI Port Alberni-Shaw 5697","Active","25155-1","SRCA MABRRI Contracts","(blank)","5155","MABRRI External Research Contracts","515","Mt Arrowsmith Biosphere Reserve Research Institute","500","Scholarship, Research and Creative Activity","(blank)","310","Research Contract",{"$f":"IF(OR(A1220=A1219,A1220=A1221),\"yes\",\"no\")","v":"no"},{"$f":"IFERROR(INDEX('Work Order Master'!$S:$S,MATCH(A1220,'Work Order Master'!$K:$K,0)),\"New\")","v":4201},{"$f":"IFERROR(INDEX('Work Order Master'!T:T,MATCH(WORKORDERS!$Q1220,'Work Order Master'!$S:$S,0)),Q1220)","v":"PORT ALBERNI-SHAW 5697"},{"$f":"IFERROR(INDEX('FRS CC Master'!A:A,MATCH(WORKORDERS!$Q1220*1,'FRS CC Master'!$C:$C,0)),WORKORDERS!$L1220)","v":"Scholarship, Research and Creative Activity"},{"$f":"IFERROR(VLOOKUP($A1220,'Work Order Master'!$K:$Q,7,FALSE),\"Remove\")","v":"N"}]
["25155-1-23","SRCA MABRRI Komoks-Shaw 5707","Active","25155-1","SRCA MABRRI Contracts","(blank)","5155","MABRRI External Research Contracts","515","Mt Arrowsmith Biosphere Reserve Research Institute","500","Scholarship, Research and Creative Activity","(blank)","310","Research Contract","no",{"$f":"IFERROR(INDEX('Work Order Master'!$S:$S,MATCH(A1221,'Work Order Master'!$K:$K,0)),\"New\")","v":4202},{"$f":"IFERROR(INDEX('Work Order Master'!T:T,MATCH(WORKORDERS!$Q1221,'Work Order Master'!$S:$S,0)),Q1221)","v":"KOMOKS-SHAW 5707"},{"$f":"IFERROR(INDEX('FRS CC Master'!A:A,MATCH(WORKORDERS!$Q1221*1,'FRS CC Master'!$C:$C,0)),WORKORDERS!$L1221)","v":"Scholarship, Research and Creative Activity"},{"$f":"IFERROR(VLOOKUP($A1221,'Work Order Master'!$K:$Q,7,FALSE),\"Remove\")","v":"N"}]
["25155-1-24","SRCA MABRRI  ECO-Hobkirk - Sakaki","Parked","25155-1","SRCA MABRRI Contracts","(blank)","5155","MABRRI External Research Contracts","515","Mt Arrowsmith Biosphere Reserve Research Institute","500","Scholarship, Research and Creative Activity","(blank)","310","Research Contract","no",{"$f":"IFERROR(INDEX('Work Order Master'!$S:$S,MATCH(A1222,'Work Order Master'!$K:$K,0)),\"New\")","v":"New"},{"$f":"IFERROR(INDEX('Work Order Master'!T:T,MATCH(WORKORDERS!$Q1222,'Work Order Master'!$S:$S,0)),Q1222)","v":"New"},{"$f":"IFERROR(INDEX('FRS CC Master'!A:A,MATCH(WORKORDERS!$Q1222*1,'FRS CC Master'!$C:$C,0)),WORKORDERS!$L1222)","v":"Scholarship, Research and Creative Activity"},{"$f":"IFERROR(VLOOKUP($A1222,'Work Order Master'!$K:$Q,7,FALSE),\"Remove\")","v":"Remove"}]
["25155-1-25","SRCA MABRRI ECO-Vivani - Sakaki","Parked","25155-1","SRCA MABRRI Contracts","(blank)","5155","MABRRI External Research Contracts","515","Mt Arrowsmith Biosphere Reserve Research Institute","500","Scholarship, Research and Creative Activity","(blank)","310","Research Contract","no",{"$f":"IFERROR(INDEX('Work Order Master'!$S:$S,MATCH(A1223,'Work Order Master'!$K:$K,0)),\"New\")","v":"New"},{"$f":"IFERROR(INDEX('Work Order Master'!T:T,MATCH(WORKORDERS!$Q1223,'Work Order Master'!$S:$S,0)),Q1223)","v":"New"},{"$f":"IFERROR(INDEX('FRS CC Master'!A:A,MATCH(WORKORDERS!$Q1223*1,'FRS CC Master'!$C:$C,0)),WORKORDERS!$L1223)","v":"Scholarship, Research and Creative Activity"},{"$f":"IFERROR(VLOOKUP($A1223,'Work Order Master'!$K:$Q,7,FALSE),\"Remove\")","v":"Remove"}]
["25155-1-26","SRCA MABRRI IS Health-Wellness - Sakaki","Parked","25155-1","SRCA MABRRI Contracts","(blank)","5155","MABRRI External Research Contracts","515","Mt Arrowsmith Biosphere Reserve Research Institute","500","Scholarship, Research and Creative Activity","(blank)","310","Research Contract","no",{"$f":"IFERROR(INDEX('Work Order Master'!$S:$S,MATCH(A1224,'Work Order Master'!$K:$K,0)),\"New\")","v":"New"},{"$f":"IFERROR(INDEX('Work Order Master'!T:T,MATCH(WORKORDERS!$Q1224,'Work Order Master'!$S:$S,0)),Q1224)","v":"New"},{"$f":"IFERROR(INDEX('FRS CC Master'!A:A,MATCH(WORKORDERS!$Q1224*1,'FRS CC Master'!$C:$C,0)),WORKORDERS!$L1224)","v":"Scholarship, Research and Creative Activity"},{"$f":"IFERROR(VLOOKUP($A1224,'Work Order Master'!$K:$Q,7,FALSE),\"Remove\")","v":"Remove"}]
["25155-1-27","SRCA MABRRI VI Economic Alliance - Sakaki","Active","25155-1","SRCA MABRRI Contracts","(blank)","5155","MABRRI External Research Contracts","515","Mt Arrowsmith Biosphere Reserve Research Institute","500","Scholarship, Research and Creative Activity","(blank)","310","Research Contract","no",{"$f":"IFERROR(INDEX('Work Order Master'!$S:$S,MATCH(A1225,'Work Order Master'!$K:$K,0)),\"New\")","v":4211},{"$f":"IFERROR(INDEX('Work Order Master'!T:T,MATCH(WORKORDERS!$Q1225,'Work Order Master'!$S:$S,0)),Q1225)","v":"VI ECON ALLIANCE-SAKAKI"},{"$f":"IFERROR(INDEX('FRS CC Master'!A:A,MATCH(WORKORDERS!$Q1225*1,'FRS CC Master'!$C:$C,0)),WORKORDERS!$L1225)","v":"Scholarship, Research and Creative Activity"},{"$f":"IFERROR(VLOOKUP($A1225,'Work Order Master'!$K:$Q,7,FALSE),\"Remove\")","v":"N"}]
["25155-1-28","SRCA MABRRI NALMA Pan 2020 – Shaw 5724","Parked","25155-1","SRCA MABRRI Contracts","(blank)","5155","MABRRI External Research Contracts","515","Mt Arrowsmith Biosphere Reserve Research Institute","500","Scholarship, Research and Creative Activity","(blank)","310","Research Contract","no",{"$f":"IFERROR(INDEX('Work Order Master'!$S:$S,MATCH(A1226,'Work Order Master'!$K:$K,0)),\"New\")","v":"New"},{"$f":"IFERROR(INDEX('Work Order Master'!T:T,MATCH(WORKORDERS!$Q1226,'Work Order Master'!$S:$S,0)),Q1226)","v":"New"},{"$f":"IFERROR(INDEX('FRS CC Master'!A:A,MATCH(WORKORDERS!$Q1226*1,'FRS CC Master'!$C:$C,0)),WORKORDERS!$L1226)","v":"Scholarship, Research and Creative Activity"},{"$f":"IFERROR(VLOOKUP($A1226,'Work Order Master'!$K:$Q,7,FALSE),\"Remove\")","v":"Remove"}]
["25155-1-29","SRCA MABRRI TseshahtFN - Shaw 100734","Active","25155-1","SRCA MABRRI Contracts","(blank)","5155","MABRRI External Research Contracts","515","Mt Arrowsmith Biosphere Reserve Research Institute","500","Scholarship, Research and Creative Activity","(blank)","310","Research Contract","no",{"$f":"IFERROR(INDEX('Work Order Master'!$S:$S,MATCH(A1227,'Work Order Master'!$K:$K,0)),\"New\")","v":4236},{"$f":"IFERROR(INDEX('Work Order Master'!T:T,MATCH(WORKORDERS!$Q1227,'Work Order Master'!$S:$S,0)),Q1227)","v":"TFN - SHAW 100734"},{"$f":"IFERROR(INDEX('FRS CC Master'!A:A,MATCH(WORKORDERS!$Q1227*1,'FRS CC Master'!$C:$C,0)),WORKORDERS!$L1227)","v":"Scholarship, Research and Creative Activity"},{"$f":"IFERROR(VLOOKUP($A1227,'Work Order Master'!$K:$Q,7,FALSE),\"Remove\")","v":"N"}]
["25155-1-3","SRCA MABRRI Campbell River Benchmark - Shaw","Parked","25155-1","SRCA MABRRI Contracts","(blank)","5155","MABRRI External Research Contracts","515","Mt Arrowsmith Biosphere Reserve Research Institute","500","Scholarship, Research and Creative Activity","(blank)","310","Research Contract","no",{"$f":"IFERROR(INDEX('Work Order Master'!$S:$S,MATCH(A1228,'Work Order Master'!$K:$K,0)),\"New\")","v":"New"},{"$f":"IFERROR(INDEX('Work Order Master'!T:T,MATCH(WORKORDERS!$Q1228,'Work Order Master'!$S:$S,0)),Q1228)","v":"New"},{"$f":"IFERROR(INDEX('FRS CC Master'!A:A,MATCH(WORKORDERS!$Q1228*1,'FRS CC Master'!$C:$C,0)),WORKORDERS!$L1228)","v":"Scholarship, Research and Creative Activity"},{"$f":"IFERROR(VLOOKUP($A1228,'Work Order Master'!$K:$Q,7,FALSE),\"Remove\")","v":"Remove"}]
["25155-1-30","SRCA MABRRI MECCS - Shaw 5665","Active","25155-1","SRCA MABRRI Contracts","(blank)","5155","MABRRI External Research Contracts","515","Mt Arrowsmith Biosphere Reserve Research Institute","500","Scholarship, Research and Creative Activity","(blank)","310","Research Contract","no",{"$f":"IFERROR(INDEX('Work Order Master'!$S:$S,MATCH(A1229,'Work Order Master'!$K:$K,0)),\"New\")","v":4237},{"$f":"IFERROR(INDEX('Work Order Master'!T:T,MATCH(WORKORDERS!$Q1229,'Work Order Master'!$S:$S,0)),Q1229)","v":"MECCS - SHAW 5665"},{"$f":"IFERROR(INDEX('FRS CC Master'!A:A,MATCH(WORKORDERS!$Q1229*1,'FRS CC Master'!$C:$C,0)),WORKORDERS!$L1229)","v":"Scholarship, Research and Creative Activity"},{"$f":"IFERROR(VLOOKUP($A1229,'Work Order Master'!$K:$Q,7,FALSE),\"Remove\")","v":"N"}]
["25155-1-31","SRCA MABRRI CMN - Shaw 5747","Active","25155-1","SRCA MABRRI Contracts","(blank)","5155","MABRRI External Research Contracts","515","Mt Arrowsmith Biosphere Reserve Research Institute","500","Scholarship, Research and Creative Activity","(blank)","310","Research Contract","no",{"$f":"IFERROR(INDEX('Work Order Master'!$S:$S,MATCH(A1230,'Work Order Master'!$K:$K,0)),\"New\")","v":4238},{"$f":"IFERROR(INDEX('Work Order Master'!T:T,MATCH(WORKORDERS!$Q1230,'Work Order Master'!$S:$S,0)),Q1230)","v":"CMN - SHAW 5747"},{"$f":"IFERROR(INDEX('FRS CC Master'!A:A,MATCH(WORKORDERS!$Q1230*1,'FRS CC Master'!$C:$C,0)),WORKORDERS!$L1230)","v":"Scholarship, Research and Creative Activity"},{"$f":"IFERROR(VLOOKUP($A1230,'Work Order Master'!$K:$Q,7,FALSE),\"Remove\")","v":"N"}]
["25155-1-32","SRCA MABRRI WWF - Shaw 5792","Active","25155-1","SRCA MABRRI Contracts","(blank)","5155","MABRRI External Research Contracts","515","Mt Arrowsmith Biosphere Reserve Research Institute","500","Scholarship, Research and Creative Activity","(blank)","310","Research Contract","no",{"$f":"IFERROR(INDEX('Work Order Master'!$S:$S,MATCH(A1231,'Work Order Master'!$K:$K,0)),\"New\")","v":4240},{"$f":"IFERROR(INDEX('Work Order Master'!T:T,MATCH(WORKORDERS!$Q1231,'Work Order Master'!$S:$S,0)),Q1231)","v":"WWF - SHAW 5792"},{"$f":"IFERROR(INDEX('FRS CC Master'!A:A,MATCH(WORKORDERS!$Q1231*1,'FRS CC Master'!$C:$C,0)),WORKORDERS!$L1231)","v":"Scholarship, Research and Creative Activity"},{"$f":"IFERROR(VLOOKUP($A1231,'Work Order Master'!$K:$Q,7,FALSE),\"Remove\")","v":"N"}]
["25155-1-33","SRCA MABRRI ACRD - Shaw 5818","Active","25155-1","SRCA MABRRI Contracts","(blank)","5155","MABRRI External Research Contracts","515","Mt Arrowsmith Biosphere Reserve Research Institute","500","Scholarship, Research and Creative Activity","(blank)","310","Research Contract","no",{"$f":"IFERROR(INDEX('Work Order Master'!$S:$S,MATCH(A1232,'Work Order Master'!$K:$K,0)),\"New\")","v":4242},{"$f":"IFERROR(INDEX('Work Order Master'!T:T,MATCH(WORKORDERS!$Q1232,'Work Order Master'!$S:$S,0)),Q1232)","v":"ACRD - SHAW 5818"},{"$f":"IFERROR(INDEX('FRS CC Master'!A:A,MATCH(WORKORDERS!$Q1232*1,'FRS CC Master'!$C:$C,0)),WORKORDERS!$L1232)","v":"Scholarship, Research and Creative Activity"},{"$f":"IFERROR(VLOOKUP($A1232,'Work Order Master'!$K:$Q,7,FALSE),\"Remove\")","v":"N"}]
["25155-1-34","SRCA MABRRI DoL - Shaw 5843","Active","25155-1","SRCA MABRRI Contracts","(blank)","5155","MABRRI External Research Contracts","515","Mt Arrowsmith Biosphere Reserve Research Institute","500","Scholarship, Research and Creative Activity","(blank)","310","Research Contract","no",{"$f":"IFERROR(INDEX('Work Order Master'!$S:$S,MATCH(A1233,'Work Order Master'!$K:$K,0)),\"New\")","v":4245},{"$f":"IFERROR(INDEX('Work Order Master'!T:T,MATCH(WORKORDERS!$Q1233,'Work Order Master'!$S:$S,0)),Q1233)","v":"DOL - SHAW 5843"},{"$f":"IFERROR(INDEX('FRS CC Master'!A:A,MATCH(WORKORDERS!$Q1233*1,'FRS CC Master'!$C:$C,0)),WORKORDERS!$L1233)","v":"Scholarship, Research and Creative Activity"},{"$f":"IFERROR(VLOOKUP($A1233,'Work Order Master'!$K:$Q,7,FALSE),\"Remove\")","v":"N"}]
["25155-1-35","SRCA MABRRI NMTC - Shaw - 5848","Parked","25155-1","SRCA MABRRI Contracts","(blank)","5155","MABRRI External Research Contracts","515","Mt Arrowsmith Biosphere Reserve Research Institute","500","Scholarship, Research and Creative Activity","(blank)","310","Research Contract","no",{"$f":"IFERROR(INDEX('Work Order Master'!$S:$S,MATCH(A1234,'Work Order Master'!$K:$K,0)),\"New\")","v":"New"},{"$f":"IFERROR(INDEX('Work Order Master'!T:T,MATCH(WORKORDERS!$Q1234,'Work Order Master'!$S:$S,0)),Q1234)","v":"New"},{"$f":"IFERROR(INDEX('FRS CC Master'!A:A,MATCH(WORKORDERS!$Q1234*1,'FRS CC Master'!$C:$C,0)),WORKORDERS!$L1234)","v":"Scholarship, Research and Creative Activity"},{"$f":"IFERROR(VLOOKUP($A1234,'Work Order Master'!$K:$Q,7,FALSE),\"Remove\")","v":"Remove"}]
["25155-1-36","SRCA MABRRI RDN - Shaw 5877","Active","25155-1","SRCA MABRRI Contracts","(blank)","5155","MABRRI External Research Contracts","515","Mt Arrowsmith Biosphere Reserve Research Institute","500","Scholarship, Research and Creative Activity","(blank)","310","Research Contract","no",{"$f":"IFERROR(INDEX('Work Order Master'!$S:$S,MATCH(A1235,'Work Order Master'!$K:$K,0)),\"New\")","v":4249},{"$f":"IFERROR(INDEX('Work Order Master'!T:T,MATCH(WORKORDERS!$Q1235,'Work Order Master'!$S:$S,0)),Q1235)","v":"RDN - SHAW 5877"},{"$f":"IFERROR(INDEX('FRS CC Master'!A:A,MATCH(WORKORDERS!$Q1235*1,'FRS CC Master'!$C:$C,0)),WORKORDERS!$L1235)","v":"Scholarship, Research and Creative Activity"},{"$f":"IFERROR(VLOOKUP($A1235,'Work Order Master'!$K:$Q,7,FALSE),\"Remove\")","v":"N"}]
["25155-1-37","SRCA MABRRI NEDC - Shaw 5887","Active","25155-1","SRCA MABRRI Contracts","(blank)","5155","MABRRI External Research Contracts","515","Mt Arrowsmith Biosphere Reserve Research Institute","500","Scholarship, Research and Creative Activity","(blank)","310","Research Contract","no",{"$f":"IFERROR(INDEX('Work Order Master'!$S:$S,MATCH(A1236,'Work Order Master'!$K:$K,0)),\"New\")","v":4250},{"$f":"IFERROR(INDEX('Work Order Master'!T:T,MATCH(WORKORDERS!$Q1236,'Work Order Master'!$S:$S,0)),Q1236)","v":"NEDC - SHAW 5887"},{"$f":"IFERROR(INDEX('FRS CC Master'!A:A,MATCH(WORKORDERS!$Q1236*1,'FRS CC Master'!$C:$C,0)),WORKORDERS!$L1236)","v":"Scholarship, Research and Creative Activity"},{"$f":"IFERROR(VLOOKUP($A1236,'Work Order Master'!$K:$Q,7,FALSE),\"Remove\")","v":"N"}]
["25155-1-38","SRCA MABRRI CANDO - Shaw 5902-5904","Active","25155-1","SRCA MABRRI Contracts","(blank)","5155","MABRRI External Research Contracts","515","Mt Arrowsmith Biosphere Reserve Research Institute","500","Scholarship, Research and Creative Activity","(blank)","310","Research Contract","no",{"$f":"IFERROR(INDEX('Work Order Master'!$S:$S,MATCH(A1237,'Work Order Master'!$K:$K,0)),\"New\")","v":4251},{"$f":"IFERROR(INDEX('Work Order Master'!T:T,MATCH(WORKORDERS!$Q1237,'Work Order Master'!$S:$S,0)),Q1237)","v":"CANDO - SHAW 5902-5904"},{"$f":"IFERROR(INDEX('FRS CC Master'!A:A,MATCH(WORKORDERS!$Q1237*1,'FRS CC Master'!$C:$C,0)),WORKORDERS!$L1237)","v":"Scholarship, Research and Creative Activity"},{"$f":"IFERROR(VLOOKUP($A1237,'Work Order Master'!$K:$Q,7,FALSE),\"Remove\")","v":"N"}]
["25155-1-39","SRCA MABRRI Islands Trust - Shaw 5908","Active","25155-1","SRCA MABRRI Contracts","(blank)","5155","MABRRI External Research Contracts","515","Mt Arrowsmith Biosphere Reserve Research Institute","500","Scholarship, Research and Creative Activity","(blank)","310","Research Contract","no",{"$f":"IFERROR(INDEX('Work Order Master'!$S:$S,MATCH(A1238,'Work Order Master'!$K:$K,0)),\"New\")","v":4252},{"$f":"IFERROR(INDEX('Work Order Master'!T:T,MATCH(WORKORDERS!$Q1238,'Work Order Master'!$S:$S,0)),Q1238)","v":"ISLANDS TRUST - SHAW 5908"},{"$f":"IFERROR(INDEX('FRS CC Master'!A:A,MATCH(WORKORDERS!$Q1238*1,'FRS CC Master'!$C:$C,0)),WORKORDERS!$L1238)","v":"Scholarship, Research and Creative Activity"},{"$f":"IFERROR(VLOOKUP($A1238,'Work Order Master'!$K:$Q,7,FALSE),\"Remove\")","v":"N"}]
["25155-1-4","SRCA MABRRI Campbell River - Tree 19 - Shaw","Parked","25155-1","SRCA MABRRI Contracts","(blank)","5155","MABRRI External Research Contracts","515","Mt Arrowsmith Biosphere Reserve Research Institute","500","Scholarship, Research and Creative Activity","(blank)","310","Research Contract","no",{"$f":"IFERROR(INDEX('Work Order Master'!$S:$S,MATCH(A1239,'Work Order Master'!$K:$K,0)),\"New\")","v":"New"},{"$f":"IFERROR(INDEX('Work Order Master'!T:T,MATCH(WORKORDERS!$Q1239,'Work Order Master'!$S:$S,0)),Q1239)","v":"New"},{"$f":"IFERROR(INDEX('FRS CC Master'!A:A,MATCH(WORKORDERS!$Q1239*1,'FRS CC Master'!$C:$C,0)),WORKORDERS!$L1239)","v":"Scholarship, Research and Creative Activity"},{"$f":"IFERROR(VLOOKUP($A1239,'Work Order Master'!$K:$Q,7,FALSE),\"Remove\")","v":"Remove"}]
["25155-1-40","SRCA MABRRI BC Parks - Shaw 100968","Active","25155-1","SRCA MABRRI Contracts","(blank)","5155","MABRRI External Research Contracts","515","Mt Arrowsmith Biosphere Reserve Research Institute","500","Scholarship, Research and Creative Activity","(blank)","310","Research Contract","no",{"$f":"IFERROR(INDEX('Work Order Master'!$S:$S,MATCH(A1240,'Work Order Master'!$K:$K,0)),\"New\")","v":"New"},{"$f":"IFERROR(INDEX('Work Order Master'!T:T,MATCH(WORKORDERS!$Q1240,'Work Order Master'!$S:$S,0)),Q1240)","v":"New"},{"$f":"IFERROR(INDEX('FRS CC Master'!A:A,MATCH(WORKORDERS!$Q1240*1,'FRS CC Master'!$C:$C,0)),WORKORDERS!$L1240)","v":"Scholarship, Research and Creative Activity"},{"$f":"IFERROR(VLOOKUP($A1240,'Work Order Master'!$K:$Q,7,FALSE),\"Remove\")","v":"N"}]
["25155-1-5","SRCA MABRRI Gold River 2019 - Shaw","Parked","25155-1","SRCA MABRRI Contracts","(blank)","5155","MABRRI External Research Contracts","515","Mt Arrowsmith Biosphere Reserve Research Institute","500","Scholarship, Research and Creative Activity","(blank)","310","Research Contract","no",{"$f":"IFERROR(INDEX('Work Order Master'!$S:$S,MATCH(A1241,'Work Order Master'!$K:$K,0)),\"New\")","v":"New"},{"$f":"IFERROR(INDEX('Work Order Master'!T:T,MATCH(WORKORDERS!$Q1241,'Work Order Master'!$S:$S,0)),Q1241)","v":"New"},{"$f":"IFERROR(INDEX('FRS CC Master'!A:A,MATCH(WORKORDERS!$Q1241*1,'FRS CC Master'!$C:$C,0)),WORKORDERS!$L1241)","v":"Scholarship, Research and Creative Activity"},{"$f":"IFERROR(VLOOKUP($A1241,'Work Order Master'!$K:$Q,7,FALSE),\"Remove\")","v":"Remove"}]
["25155-1-6","SRCA MABRRI Lantzville 2019 - Shaw","Parked","25155-1","SRCA MABRRI Contracts","(blank)","5155","MABRRI External Research Contracts","515","Mt Arrowsmith Biosphere Reserve Research Institute","500","Scholarship, Research and Creative Activity","(blank)","310","Research Contract","no",{"$f":"IFERROR(INDEX('Work Order Master'!$S:$S,MATCH(A1242,'Work Order Master'!$K:$K,0)),\"New\")","v":"New"},{"$f":"IFERROR(INDEX('Work Order Master'!T:T,MATCH(WORKORDERS!$Q1242,'Work Order Master'!$S:$S,0)),Q1242)","v":"New"},{"$f":"IFERROR(INDEX('FRS CC Master'!A:A,MATCH(WORKORDERS!$Q1242*1,'FRS CC Master'!$C:$C,0)),WORKORDERS!$L1242)","v":"Scholarship, Research and Creative Activity"},{"$f":"IFERROR(VLOOKUP($A1242,'Work Order Master'!$K:$Q,7,FALSE),\"Remove\")","v":"Remove"}]
["25155-1-7","SRCA MABRRI Malahat Nation - Shaw","Parked","25155-1","SRCA MABRRI Contracts","(blank)","5155","MABRRI External Research Contracts","515","Mt Arrowsmith Biosphere Reserve Research Institute","500","Scholarship, Research and Creative Activity","(blank)","310","Research Contract","no",{"$f":"IFERROR(INDEX('Work Order Master'!$S:$S,MATCH(A1243,'Work Order Master'!$K:$K,0)),\"New\")","v":"New"},{"$f":"IFERROR(INDEX('Work Order Master'!T:T,MATCH(WORKORDERS!$Q1243,'Work Order Master'!$S:$S,0)),Q1243)","v":"New"},{"$f":"IFERROR(INDEX('FRS CC Master'!A:A,MATCH(WORKORDERS!$Q1243*1,'FRS CC Master'!$C:$C,0)),WORKORDERS!$L1243)","v":"Scholarship, Research and Creative Activity"},{"$f":"IFERROR(VLOOKUP($A1243,'Work Order Master'!$K:$Q,7,FALSE),\"Remove\")","v":"Remove"}]
["25155-1-8","SRCA MABRRI NCE (CMN) - Shaw","Parked","25155-1","SRCA MABRRI Contracts","(blank)","5155","MABRRI External Research Contracts","515","Mt Arrowsmith Biosphere Reserve Research Institute","500","Scholarship, Research and Creative Activity","(blank)","310","Research Contract","no",{"$f":"IFERROR(INDEX('Work Order Master'!$S:$S,MATCH(A1244,'Work Order Master'!$K:$K,0)),\"New\")","v":"New"},{"$f":"IFERROR(INDEX('Work Order Master'!T:T,MATCH(WORKORDERS!$Q1244,'Work Order Master'!$S:$S,0)),Q1244)","v":"New"},{"$f":"IFERROR(INDEX('FRS CC Master'!A:A,MATCH(WORKORDERS!$Q1244*1,'FRS CC Master'!$C:$C,0)),WORKORDERS!$L1244)","v":"Scholarship, Research and Creative Activity"},{"$f":"IFERROR(VLOOKUP($A1244,'Work Order Master'!$K:$Q,7,FALSE),\"Remove\")","v":"Remove"}]
["25155-1-9","SRCA MABRRI PFWSBC - Shaw","Active","25155-1","SRCA MABRRI Contracts","(blank)","5155","MABRRI External Research Contracts","515","Mt Arrowsmith Biosphere Reserve Research Institute","500","Scholarship, Research and Creative Activity","(blank)","310","Research Contract","no",{"$f":"IFERROR(INDEX('Work Order Master'!$S:$S,MATCH(A1245,'Work Order Master'!$K:$K,0)),\"New\")","v":4212},{"$f":"IFERROR(INDEX('Work Order Master'!T:T,MATCH(WORKORDERS!$Q1245,'Work Order Master'!$S:$S,0)),Q1245)","v":"PFWSBC-SHAW"},{"$f":"IFERROR(INDEX('FRS CC Master'!A:A,MATCH(WORKORDERS!$Q1245*1,'FRS CC Master'!$C:$C,0)),WORKORDERS!$L1245)","v":"Scholarship, Research and Creative Activity"},{"$f":"IFERROR(VLOOKUP($A1245,'Work Order Master'!$K:$Q,7,FALSE),\"Remove\")","v":"N"}]
["25516-1-1","SA Peer to Peer Connections","Active","25516-1","SA Assessment and Invigilation","(blank)","5516","Assessment and Invigilation","551","Student Affairs Department","550","Student Affairs","(blank)","217","Student Support and Services","no",{"$f":"IFERROR(INDEX('Work Order Master'!$S:$S,MATCH(A1246,'Work Order Master'!$K:$K,0)),\"New\")","v":6502},{"$f":"IFERROR(INDEX('Work Order Master'!T:T,MATCH(WORKORDERS!$Q1246,'Work Order Master'!$S:$S,0)),Q1246)","v":"PEER TO PEER CONNECTIONS"},{"$f":"IFERROR(INDEX('FRS CC Master'!A:A,MATCH(WORKORDERS!$Q1246*1,'FRS CC Master'!$C:$C,0)),WORKORDERS!$L1246)","v":"Student Affairs"},{"$f":"IFERROR(VLOOKUP($A1246,'Work Order Master'!$K:$Q,7,FALSE),\"Remove\")","v":"N"}]
["25518-1-1","SA APSD / Ministry funding","Active","25518-1","SA Disability Access Services - Other","(blank)","5518","Accessibility Services","551","Student Affairs Department","550","Student Affairs","(blank)","217","Student Support and Services","no",{"$f":"IFERROR(INDEX('Work Order Master'!$S:$S,MATCH(A1247,'Work Order Master'!$K:$K,0)),\"New\")","v":6516},{"$f":"IFERROR(INDEX('Work Order Master'!T:T,MATCH(WORKORDERS!$Q1247,'Work Order Master'!$S:$S,0)),Q1247)","v":"APSD/MINISTRY "},{"$f":"IFERROR(INDEX('FRS CC Master'!A:A,MATCH(WORKORDERS!$Q1247*1,'FRS CC Master'!$C:$C,0)),WORKORDERS!$L1247)","v":"Student Affairs"},{"$f":"IFERROR(VLOOKUP($A1247,'Work Order Master'!$K:$Q,7,FALSE),\"Remove\")","v":"N"}]
["25518-1-2","SA Disability Access Trust Funds","Active","25518-1","SA Disability Access Services - Other","(blank)","5518","Accessibility Services","551","Student Affairs Department","550","Student Affairs","(blank)","217","Student Support and Services","no",{"$f":"IFERROR(INDEX('Work Order Master'!$S:$S,MATCH(A1248,'Work Order Master'!$K:$K,0)),\"New\")","v":9600},{"$f":"IFERROR(INDEX('Work Order Master'!T:T,MATCH(WORKORDERS!$Q1248,'Work Order Master'!$S:$S,0)),Q1248)","v":"ACCESS TRUST FUND"},{"$f":"IFERROR(INDEX('FRS CC Master'!A:A,MATCH(WORKORDERS!$Q1248*1,'FRS CC Master'!$C:$C,0)),WORKORDERS!$L1248)","v":"Student Affairs"},{"$f":"IFERROR(VLOOKUP($A1248,'Work Order Master'!$K:$Q,7,FALSE),\"Remove\")","v":"N"}]
["25518-1-3","SA Disability Services Proceeds","Active","25518-1","SA Disability Access Services - Other","(blank)","5518","Accessibility Services","551","Student Affairs Department","550","Student Affairs","(blank)","217","Student Support and Services","no",{"$f":"IFERROR(INDEX('Work Order Master'!$S:$S,MATCH(A1249,'Work Order Master'!$K:$K,0)),\"New\")","v":6517},{"$f":"IFERROR(INDEX('Work Order Master'!T:T,MATCH(WORKORDERS!$Q1249,'Work Order Master'!$S:$S,0)),Q1249)","v":"DISABILITY SERV. PROCEEDS"},{"$f":"IFERROR(INDEX('FRS CC Master'!A:A,MATCH(WORKORDERS!$Q1249*1,'FRS CC Master'!$C:$C,0)),WORKORDERS!$L1249)","v":"Student Affairs"},{"$f":"IFERROR(VLOOKUP($A1249,'Work Order Master'!$K:$Q,7,FALSE),\"Remove\")","v":"N"}]
["25519-1-1","SA Financial Aid - ABESAP","Active","25519-1","SA Financial Aid","(blank)","5519","Financial Aid and Awards","551","Student Affairs Department","550","Student Affairs","(blank)","217","Student Support and Services","no",{"$f":"IFERROR(INDEX('Work Order Master'!$S:$S,MATCH(A1250,'Work Order Master'!$K:$K,0)),\"New\")","v":9610},{"$f":"IFERROR(INDEX('Work Order Master'!T:T,MATCH(WORKORDERS!$Q1250,'Work Order Master'!$S:$S,0)),Q1250)","v":"ABESAP "},{"$f":"IFERROR(INDEX('FRS CC Master'!A:A,MATCH(WORKORDERS!$Q1250*1,'FRS CC Master'!$C:$C,0)),WORKORDERS!$L1250)","v":"Student Affairs"},{"$f":"IFERROR(VLOOKUP($A1250,'Work Order Master'!$K:$Q,7,FALSE),\"Remove\")","v":"N"}]
["25519-1-2","SA Financial Aid - Aboriginal Emergency Assistance","Active","25519-1","SA Financial Aid","(blank)","5519","Financial Aid and Awards","551","Student Affairs Department","550","Student Affairs","(blank)","217","Student Support and Services","no",{"$f":"IFERROR(INDEX('Work Order Master'!$S:$S,MATCH(A1251,'Work Order Master'!$K:$K,0)),\"New\")","v":9609},{"$f":"IFERROR(INDEX('Work Order Master'!T:T,MATCH(WORKORDERS!$Q1251,'Work Order Master'!$S:$S,0)),Q1251)","v":"ABORIGINAL EMERG.ASSIST"},{"$f":"IFERROR(INDEX('FRS CC Master'!A:A,MATCH(WORKORDERS!$Q1251*1,'FRS CC Master'!$C:$C,0)),WORKORDERS!$L1251)","v":"Student Affairs"},{"$f":"IFERROR(VLOOKUP($A1251,'Work Order Master'!$K:$Q,7,FALSE),\"Remove\")","v":"N"}]
["25519-1-3","SA Financial Aid - Foundation Funds","Active","25519-1","SA Financial Aid","(blank)","5519","Financial Aid and Awards","551","Student Affairs Department","550","Student Affairs","(blank)","217","Student Support and Services","no",{"$f":"IFERROR(INDEX('Work Order Master'!$S:$S,MATCH(A1252,'Work Order Master'!$K:$K,0)),\"New\")","v":9616},{"$f":"IFERROR(INDEX('Work Order Master'!T:T,MATCH(WORKORDERS!$Q1252,'Work Order Master'!$S:$S,0)),Q1252)","v":"FOUNDATION FUNDS"},{"$f":"IFERROR(INDEX('FRS CC Master'!A:A,MATCH(WORKORDERS!$Q1252*1,'FRS CC Master'!$C:$C,0)),WORKORDERS!$L1252)","v":"Student Affairs"},{"$f":"IFERROR(VLOOKUP($A1252,'Work Order Master'!$K:$Q,7,FALSE),\"Remove\")","v":"N"}]
["25519-1-4","SA Financial Aid - General Scholarships/Bursaries","Active","25519-1","SA Financial Aid","(blank)","5519","Financial Aid and Awards","551","Student Affairs Department","550","Student Affairs","(blank)","217","Student Support and Services","no",{"$f":"IFERROR(INDEX('Work Order Master'!$S:$S,MATCH(A1253,'Work Order Master'!$K:$K,0)),\"New\")","v":9613},{"$f":"IFERROR(INDEX('Work Order Master'!T:T,MATCH(WORKORDERS!$Q1253,'Work Order Master'!$S:$S,0)),Q1253)","v":"GENERAL SCH/BURSARY FUND "},{"$f":"IFERROR(INDEX('FRS CC Master'!A:A,MATCH(WORKORDERS!$Q1253*1,'FRS CC Master'!$C:$C,0)),WORKORDERS!$L1253)","v":"Student Affairs"},{"$f":"IFERROR(VLOOKUP($A1253,'Work Order Master'!$K:$Q,7,FALSE),\"Remove\")","v":"N"}]
["25519-1-5","SA Financial Aid - MSU Special Bursaries","Active","25519-1","SA Financial Aid","(blank)","5519","Financial Aid and Awards","551","Student Affairs Department","550","Student Affairs","(blank)","217","Student Support and Services","no",{"$f":"IFERROR(INDEX('Work Order Master'!$S:$S,MATCH(A1254,'Work Order Master'!$K:$K,0)),\"New\")","v":9611},{"$f":"IFERROR(INDEX('Work Order Master'!T:T,MATCH(WORKORDERS!$Q1254,'Work Order Master'!$S:$S,0)),Q1254)","v":"MSU SPECIAL BURSARIES"},{"$f":"IFERROR(INDEX('FRS CC Master'!A:A,MATCH(WORKORDERS!$Q1254*1,'FRS CC Master'!$C:$C,0)),WORKORDERS!$L1254)","v":"Student Affairs"},{"$f":"IFERROR(VLOOKUP($A1254,'Work Order Master'!$K:$Q,7,FALSE),\"Remove\")","v":"N"}]
["25519-2-1","SA Financial Aid - Other - Canada Student Grant","Active","25519-2","SA Financial Aid - Other","(blank)","5519","Financial Aid and Awards","551","Student Affairs Department","550","Student Affairs","(blank)","217","Student Support and Services","no",{"$f":"IFERROR(INDEX('Work Order Master'!$S:$S,MATCH(A1255,'Work Order Master'!$K:$K,0)),\"New\")","v":6333},{"$f":"IFERROR(INDEX('Work Order Master'!T:T,MATCH(WORKORDERS!$Q1255,'Work Order Master'!$S:$S,0)),Q1255)","v":"CANADA STUDENT GRANT"},{"$f":"IFERROR(INDEX('FRS CC Master'!A:A,MATCH(WORKORDERS!$Q1255*1,'FRS CC Master'!$C:$C,0)),WORKORDERS!$L1255)","v":"Student Affairs"},{"$f":"IFERROR(VLOOKUP($A1255,'Work Order Master'!$K:$Q,7,FALSE),\"Remove\")","v":"N"}]
["25520-1-1","SA Mental Health  - Canadian Mental Health Association","Active","25520-1","SA Mental Health","(blank)","5520","Health and Wellness","551","Student Affairs Department","550","Student Affairs","(blank)","217","Student Support and Services","yes",{"$f":"IFERROR(INDEX('Work Order Master'!$S:$S,MATCH(A1256,'Work Order Master'!$K:$K,0)),\"New\")","v":6515},{"$f":"IFERROR(INDEX('Work Order Master'!T:T,MATCH(WORKORDERS!$Q1256,'Work Order Master'!$S:$S,0)),Q1256)","v":"MENTAL HEALTH  - CMHA "},{"$f":"IFERROR(INDEX('FRS CC Master'!A:A,MATCH(WORKORDERS!$Q1256*1,'FRS CC Master'!$C:$C,0)),WORKORDERS!$L1256)","v":"Student Affairs"},{"$f":"IFERROR(VLOOKUP($A1256,'Work Order Master'!$K:$Q,7,FALSE),\"Remove\")","v":"N"}]
["25520-1-1","SA Mental Health  - Canadian Mental Health Association","Active","25520-1","SA Mental Health","(blank)","5520","Health and Wellness","551","Student Affairs Department","550","Student Affairs","(blank)","219","Contract activity","yes",{"$f":"IFERROR(INDEX('Work Order Master'!$S:$S,MATCH(A1257,'Work Order Master'!$K:$K,0)),\"New\")","v":6515},{"$f":"IFERROR(INDEX('Work Order Master'!T:T,MATCH(WORKORDERS!$Q1257,'Work Order Master'!$S:$S,0)),Q1257)","v":"MENTAL HEALTH  - CMHA "},{"$f":"IFERROR(INDEX('FRS CC Master'!A:A,MATCH(WORKORDERS!$Q1257*1,'FRS CC Master'!$C:$C,0)),WORKORDERS!$L1257)","v":"Student Affairs"},{"$f":"IFERROR(VLOOKUP($A1257,'Work Order Master'!$K:$Q,7,FALSE),\"Remove\")","v":"N"}]
["25555-1-1","SA Vancouver Island Leadership Conference","Active","25555-1","SA Centre for Experiential Learning","(blank)","5555","Centre for Experiential Learning","555","Student Engagement and Experiential Learning","550","Student Affairs","(blank)","217","Student Support and Services","no",{"$f":"IFERROR(INDEX('Work Order Master'!$S:$S,MATCH(A1258,'Work Order Master'!$K:$K,0)),\"New\")","v":6530},{"$f":"IFERROR(INDEX('Work Order Master'!T:T,MATCH(WORKORDERS!$Q1258,'Work Order Master'!$S:$S,0)),Q1258)","v":"VAN ISLE LEADERSIHP CONF"},{"$f":"IFERROR(INDEX('FRS CC Master'!A:A,MATCH(WORKORDERS!$Q1258*1,'FRS CC Master'!$C:$C,0)),WORKORDERS!$L1258)","v":"Student Affairs"},{"$f":"IFERROR(VLOOKUP($A1258,'Work Order Master'!$K:$Q,7,FALSE),\"Remove\")","v":"N"}]
["25581-1-1","SA PacificWest CCAA hosting","Active","25581-1","SA Athletics and Recreation Department - Initiatives","(blank)","5581","Athletics and Recreation Department - Initiatives","558","Athletics and Recreation","550","Student Affairs","(blank)","217","Student Support and Services","no",{"$f":"IFERROR(INDEX('Work Order Master'!$S:$S,MATCH(A1259,'Work Order Master'!$K:$K,0)),\"New\")","v":6510},{"$f":"IFERROR(INDEX('Work Order Master'!T:T,MATCH(WORKORDERS!$Q1259,'Work Order Master'!$S:$S,0)),Q1259)","v":"PACWEST-CCAA HOSTING "},{"$f":"IFERROR(INDEX('FRS CC Master'!A:A,MATCH(WORKORDERS!$Q1259*1,'FRS CC Master'!$C:$C,0)),WORKORDERS!$L1259)","v":"Student Affairs"},{"$f":"IFERROR(VLOOKUP($A1259,'Work Order Master'!$K:$Q,7,FALSE),\"Remove\")","v":"N"}]
["26035-1-1","CFOVPA ASA - Institutional Non-Budgeted Contracts","Active","26035-1","CFOVPA - ASA (Contracts)","(blank)","6035","CFOVPA - ASA (Contracts)","603","CFOVPA - ASA (Administrative Support Activity)","603","CFOVPA - ASA (Administrative Support Activity)","(blank)","101","Institutional","no",{"$f":"IFERROR(INDEX('Work Order Master'!$S:$S,MATCH(A1260,'Work Order Master'!$K:$K,0)),\"New\")","v":8721},{"$f":"IFERROR(INDEX('Work Order Master'!T:T,MATCH(WORKORDERS!$Q1260,'Work Order Master'!$S:$S,0)),Q1260)","v":"INSTL NON-BUDG CONTRACTS"},{"$f":"IFERROR(INDEX('FRS CC Master'!A:A,MATCH(WORKORDERS!$Q1260*1,'FRS CC Master'!$C:$C,0)),WORKORDERS!$L1260)","v":"VP Administration and Finance"},{"$f":"IFERROR(VLOOKUP($A1260,'Work Order Master'!$K:$Q,7,FALSE),\"Remove\")","v":"N"}]
["26040-1-1","CFOVPA ASA - VIU Initiatives Trust (Clearing)","Active","26040-1","CFOVPA ASA - VIU Initiatives Trust (Clearing)","(blank)","6040","VIU Initiatives Trust (Clearing)","603","CFOVPA - ASA (Administrative Support Activity)","603","CFOVPA - ASA (Administrative Support Activity)","(blank)","102","External recoveries (Inst)","no",{"$f":"IFERROR(INDEX('Work Order Master'!$S:$S,MATCH(A1261,'Work Order Master'!$K:$K,0)),\"New\")","v":8799},{"$f":"IFERROR(INDEX('Work Order Master'!T:T,MATCH(WORKORDERS!$Q1261,'Work Order Master'!$S:$S,0)),Q1261)","v":"VIU INIT TRUST - CLEARING"},{"$f":"IFERROR(INDEX('FRS CC Master'!A:A,MATCH(WORKORDERS!$Q1261*1,'FRS CC Master'!$C:$C,0)),WORKORDERS!$L1261)","v":"VP Administration and Finance"},{"$f":"IFERROR(VLOOKUP($A1261,'Work Order Master'!$K:$Q,7,FALSE),\"Remove\")","v":"N"}]
["29114-1-1","INST Recoveries - Overhead","Active","29114-1","INST Recoveries - Overhead","(blank)","9114","Institutional Recoveries","910","Institutional Revenue","910","Institutional Revenue","(blank)","101","Institutional","yes",{"$f":"IFERROR(INDEX('Work Order Master'!$S:$S,MATCH(A1262,'Work Order Master'!$K:$K,0)),\"New\")","v":8500},{"$f":"IFERROR(INDEX('Work Order Master'!T:T,MATCH(WORKORDERS!$Q1262,'Work Order Master'!$S:$S,0)),Q1262)","v":"COST RECOVERY - OVERHEAD"},{"$f":"IFERROR(INDEX('FRS CC Master'!A:A,MATCH(WORKORDERS!$Q1262*1,'FRS CC Master'!$C:$C,0)),WORKORDERS!$L1262)","v":"Institutional Revenue"},{"$f":"IFERROR(VLOOKUP($A1262,'Work Order Master'!$K:$Q,7,FALSE),\"Remove\")","v":"N"}]
["29114-1-1","INST Recoveries - Overhead","Active","29114-1","INST Recoveries - Overhead","(blank)","9114","Institutional Recoveries","910","Institutional Revenue","910","Institutional Revenue","(blank)","103","internal Sales and Recoveries","yes",{"$f":"IFERROR(INDEX('Work Order Master'!$S:$S,MATCH(A1263,'Work Order Master'!$K:$K,0)),\"New\")","v":8500},{"$f":"IFERROR(INDEX('Work Order Master'!T:T,MATCH(WORKORDERS!$Q1263,'Work Order Master'!$S:$S,0)),Q1263)","v":"COST RECOVERY - OVERHEAD"},{"$f":"IFERROR(INDEX('FRS CC Master'!A:A,MATCH(WORKORDERS!$Q1263*1,'FRS CC Master'!$C:$C,0)),WORKORDERS!$L1263)","v":"Institutional Revenue"},{"$f":"IFERROR(VLOOKUP($A1263,'Work Order Master'!$K:$Q,7,FALSE),\"Remove\")","v":"N"}]
["29114-2-1","INST Recoveries - VIU Foundation Clearing","Active","29114-2","INST Recoveries - VIU Foundation Clearing","(blank)","9114","Institutional Recoveries","910","Institutional Revenue","910","Institutional Revenue","(blank)","102","External recoveries (Inst)","no",{"$f":"IFERROR(INDEX('Work Order Master'!$S:$S,MATCH(A1264,'Work Order Master'!$K:$K,0)),\"New\")","v":8501},{"$f":"IFERROR(INDEX('Work Order Master'!T:T,MATCH(WORKORDERS!$Q1264,'Work Order Master'!$S:$S,0)),Q1264)","v":"EXTERNAL FDN CLEARING"},{"$f":"IFERROR(INDEX('FRS CC Master'!A:A,MATCH(WORKORDERS!$Q1264*1,'FRS CC Master'!$C:$C,0)),WORKORDERS!$L1264)","v":"Institutional Revenue"},{"$f":"IFERROR(VLOOKUP($A1264,'Work Order Master'!$K:$Q,7,FALSE),\"Remove\")","v":"N"}]
["32110-1-1","ACP ASE - Preparatory Activity","Parked","32110-1","ACP ASE - Preparatory Activity","(blank)","2110","Adult Special Education","210","Academic and Career Preparation","210","Academic and Career Preparation","(blank)","281","PD&T Program Delivery","no",{"$f":"IFERROR(INDEX('Work Order Master'!$S:$S,MATCH(A1265,'Work Order Master'!$K:$K,0)),\"New\")","v":"New"},{"$f":"IFERROR(INDEX('Work Order Master'!T:T,MATCH(WORKORDERS!$Q1265,'Work Order Master'!$S:$S,0)),Q1265)","v":"New"},{"$f":"IFERROR(INDEX('FRS CC Master'!A:A,MATCH(WORKORDERS!$Q1265*1,'FRS CC Master'!$C:$C,0)),WORKORDERS!$L1265)","v":"Academic and Career Preparation"},{"$f":"IFERROR(VLOOKUP($A1265,'Work Order Master'!$K:$Q,7,FALSE),\"Remove\")","v":"Remove"}]
["32465-10-1","HHS PD&T - Medical Office Assistant","Active","32465-10","HHS PD&T - Medical Office Assistant","(blank)","2465","Health and Human Services - PD&T","240","Health and Human Services","240","Health and Human Services","(blank)","281","PD&T Program Delivery","no",{"$f":"IFERROR(INDEX('Work Order Master'!$S:$S,MATCH(A1266,'Work Order Master'!$K:$K,0)),\"New\")","v":4606},{"$f":"IFERROR(INDEX('Work Order Master'!T:T,MATCH(WORKORDERS!$Q1266,'Work Order Master'!$S:$S,0)),Q1266)","v":"MEDICAL OFFICE ASSISTANT"},{"$f":"IFERROR(INDEX('FRS CC Master'!A:A,MATCH(WORKORDERS!$Q1266*1,'FRS CC Master'!$C:$C,0)),WORKORDERS!$L1266)","v":"Health and Human Services"},{"$f":"IFERROR(VLOOKUP($A1266,'Work Order Master'!$K:$Q,7,FALSE),\"Remove\")","v":"N"}]
["32465-1-1","HHS PD&T - Administration","Active","32465-1","HHS PD&T - Administration","(blank)","2465","Health and Human Services - PD&T","240","Health and Human Services","240","Health and Human Services","(blank)","280","PD&T Administration","no",{"$f":"IFERROR(INDEX('Work Order Master'!$S:$S,MATCH(A1267,'Work Order Master'!$K:$K,0)),\"New\")","v":4600},{"$f":"IFERROR(INDEX('Work Order Master'!T:T,MATCH(WORKORDERS!$Q1267,'Work Order Master'!$S:$S,0)),Q1267)","v":"CE ADMIN - HEALTH & HS "},{"$f":"IFERROR(INDEX('FRS CC Master'!A:A,MATCH(WORKORDERS!$Q1267*1,'FRS CC Master'!$C:$C,0)),WORKORDERS!$L1267)","v":"Health and Human Services"},{"$f":"IFERROR(VLOOKUP($A1267,'Work Order Master'!$K:$Q,7,FALSE),\"Remove\")","v":"N"}]
["32465-2-1","HHS PD&T - Activity Assistant","Active","32465-2","HHS PD&T - Activity Assistant","(blank)","2465","Health and Human Services - PD&T","240","Health and Human Services","240","Health and Human Services","(blank)","281","PD&T Program Delivery","no",{"$f":"IFERROR(INDEX('Work Order Master'!$S:$S,MATCH(A1268,'Work Order Master'!$K:$K,0)),\"New\")","v":4609},{"$f":"IFERROR(INDEX('Work Order Master'!T:T,MATCH(WORKORDERS!$Q1268,'Work Order Master'!$S:$S,0)),Q1268)","v":"ACTIVITY ASSISTANT"},{"$f":"IFERROR(INDEX('FRS CC Master'!A:A,MATCH(WORKORDERS!$Q1268*1,'FRS CC Master'!$C:$C,0)),WORKORDERS!$L1268)","v":"Health and Human Services"},{"$f":"IFERROR(VLOOKUP($A1268,'Work Order Master'!$K:$Q,7,FALSE),\"Remove\")","v":"N"}]
["32465-3-1","HHS PD&T - Animal Care Aide Certificate","Active","32465-3","HHS PD&T - Animal Care Aide Certificate","(blank)","2465","Health and Human Services - PD&T","240","Health and Human Services","240","Health and Human Services","(blank)","281","PD&T Program Delivery","no",{"$f":"IFERROR(INDEX('Work Order Master'!$S:$S,MATCH(A1269,'Work Order Master'!$K:$K,0)),\"New\")","v":4608},{"$f":"IFERROR(INDEX('Work Order Master'!T:T,MATCH(WORKORDERS!$Q1269,'Work Order Master'!$S:$S,0)),Q1269)","v":"ANIMAL CARE AIDE CERTIFIC"},{"$f":"IFERROR(INDEX('FRS CC Master'!A:A,MATCH(WORKORDERS!$Q1269*1,'FRS CC Master'!$C:$C,0)),WORKORDERS!$L1269)","v":"Health and Human Services"},{"$f":"IFERROR(VLOOKUP($A1269,'Work Order Master'!$K:$Q,7,FALSE),\"Remove\")","v":"N"}]
["32465-4-1","HHS PD&T - Credit courses","Active","32465-4","HHS PD&T - Credit courses","(blank)","2465","Health and Human Services - PD&T","240","Health and Human Services","240","Health and Human Services","(blank)","281","PD&T Program Delivery","no",{"$f":"IFERROR(INDEX('Work Order Master'!$S:$S,MATCH(A1270,'Work Order Master'!$K:$K,0)),\"New\")","v":4625},{"$f":"IFERROR(INDEX('Work Order Master'!T:T,MATCH(WORKORDERS!$Q1270,'Work Order Master'!$S:$S,0)),Q1270)","v":"CE CREDIT COURSES - HHS"},{"$f":"IFERROR(INDEX('FRS CC Master'!A:A,MATCH(WORKORDERS!$Q1270*1,'FRS CC Master'!$C:$C,0)),WORKORDERS!$L1270)","v":"Health and Human Services"},{"$f":"IFERROR(VLOOKUP($A1270,'Work Order Master'!$K:$Q,7,FALSE),\"Remove\")","v":"N"}]
["32465-5-1","HHS PD&T - Community Health Promotion","Active","32465-5","HHS PD&T - Community Health Promotion","(blank)","2465","Health and Human Services - PD&T","240","Health and Human Services","240","Health and Human Services","(blank)","281","PD&T Program Delivery","no",{"$f":"IFERROR(INDEX('Work Order Master'!$S:$S,MATCH(A1271,'Work Order Master'!$K:$K,0)),\"New\")","v":4615},{"$f":"IFERROR(INDEX('Work Order Master'!T:T,MATCH(WORKORDERS!$Q1271,'Work Order Master'!$S:$S,0)),Q1271)","v":"COMMUNITY HEALTH PROMO"},{"$f":"IFERROR(INDEX('FRS CC Master'!A:A,MATCH(WORKORDERS!$Q1271*1,'FRS CC Master'!$C:$C,0)),WORKORDERS!$L1271)","v":"Health and Human Services"},{"$f":"IFERROR(VLOOKUP($A1271,'Work Order Master'!$K:$Q,7,FALSE),\"Remove\")","v":"N"}]
["32465-6-1","HHS PD&T - Community Mental Health Worker","Active","32465-6","HHS PD&T - Community Mental Health Worker","(blank)","2465","Health and Human Services - PD&T","240","Health and Human Services","240","Health and Human Services","(blank)","281","PD&T Program Delivery","no",{"$f":"IFERROR(INDEX('Work Order Master'!$S:$S,MATCH(A1272,'Work Order Master'!$K:$K,0)),\"New\")","v":4613},{"$f":"IFERROR(INDEX('Work Order Master'!T:T,MATCH(WORKORDERS!$Q1272,'Work Order Master'!$S:$S,0)),Q1272)","v":"COMM.MENTAL HLTH WK CERT"},{"$f":"IFERROR(INDEX('FRS CC Master'!A:A,MATCH(WORKORDERS!$Q1272*1,'FRS CC Master'!$C:$C,0)),WORKORDERS!$L1272)","v":"Health and Human Services"},{"$f":"IFERROR(VLOOKUP($A1272,'Work Order Master'!$K:$Q,7,FALSE),\"Remove\")","v":"N"}]
["32465-7-1","HHS PD&T - Health and Human Services","Active","32465-7","HHS PD&T - Health and Human Services","(blank)","2465","Health and Human Services - PD&T","240","Health and Human Services","240","Health and Human Services","(blank)","281","PD&T Program Delivery","no",{"$f":"IFERROR(INDEX('Work Order Master'!$S:$S,MATCH(A1273,'Work Order Master'!$K:$K,0)),\"New\")","v":4603},{"$f":"IFERROR(INDEX('Work Order Master'!T:T,MATCH(WORKORDERS!$Q1273,'Work Order Master'!$S:$S,0)),Q1273)","v":"HEALTH AND HUMAN SERVICES "},{"$f":"IFERROR(INDEX('FRS CC Master'!A:A,MATCH(WORKORDERS!$Q1273*1,'FRS CC Master'!$C:$C,0)),WORKORDERS!$L1273)","v":"Health and Human Services"},{"$f":"IFERROR(VLOOKUP($A1273,'Work Order Master'!$K:$Q,7,FALSE),\"Remove\")","v":"N"}]
["32465-8-1","HHS PD&T - Hospital Unit Coordinator","Active","32465-8","HHS PD&T - Hospital Unit Coordinator","(blank)","2465","Health and Human Services - PD&T","240","Health and Human Services","240","Health and Human Services","(blank)","281","PD&T Program Delivery","no",{"$f":"IFERROR(INDEX('Work Order Master'!$S:$S,MATCH(A1274,'Work Order Master'!$K:$K,0)),\"New\")","v":4607},{"$f":"IFERROR(INDEX('Work Order Master'!T:T,MATCH(WORKORDERS!$Q1274,'Work Order Master'!$S:$S,0)),Q1274)","v":"HOPSITAL UNIT COORDINATOR "},{"$f":"IFERROR(INDEX('FRS CC Master'!A:A,MATCH(WORKORDERS!$Q1274*1,'FRS CC Master'!$C:$C,0)),WORKORDERS!$L1274)","v":"Health and Human Services"},{"$f":"IFERROR(VLOOKUP($A1274,'Work Order Master'!$K:$Q,7,FALSE),\"Remove\")","v":"N"}]
["32465-9-1","HHS PD&T - Medical Device Processing Technician","Active","32465-9","HHS PD&T - Medical Device Processing Technician","(blank)","2465","Health and Human Services - PD&T","240","Health and Human Services","240","Health and Human Services","(blank)","281","PD&T Program Delivery","no",{"$f":"IFERROR(INDEX('Work Order Master'!$S:$S,MATCH(A1275,'Work Order Master'!$K:$K,0)),\"New\")","v":4610},{"$f":"IFERROR(INDEX('Work Order Master'!T:T,MATCH(WORKORDERS!$Q1275,'Work Order Master'!$S:$S,0)),Q1275)","v":"MED DEVICE REPROC TECHNCN"},{"$f":"IFERROR(INDEX('FRS CC Master'!A:A,MATCH(WORKORDERS!$Q1275*1,'FRS CC Master'!$C:$C,0)),WORKORDERS!$L1275)","v":"Health and Human Services"},{"$f":"IFERROR(VLOOKUP($A1275,'Work Order Master'!$K:$Q,7,FALSE),\"Remove\")","v":"N"}]
["32670-1-1","FOM PD&T Administration","Active","32670-1","FOM PD&T Administration","(blank)","2670","Management - PD&T","260","Management","260","Management","(blank)","280","PD&T Administration","no",{"$f":"IFERROR(INDEX('Work Order Master'!$S:$S,MATCH(A1276,'Work Order Master'!$K:$K,0)),\"New\")","v":1700},{"$f":"IFERROR(INDEX('Work Order Master'!T:T,MATCH(WORKORDERS!$Q1276,'Work Order Master'!$S:$S,0)),Q1276)","v":"CE ADMIN - MANAGEMENT"},{"$f":"IFERROR(INDEX('FRS CC Master'!A:A,MATCH(WORKORDERS!$Q1276*1,'FRS CC Master'!$C:$C,0)),WORKORDERS!$L1276)","v":"Management"},{"$f":"IFERROR(VLOOKUP($A1276,'Work Order Master'!$K:$Q,7,FALSE),\"Remove\")","v":"N"}]
["32670-2-1","FOM PD&T Business Leaders","Active","32670-2","FOM PD&T Business Leaders","(blank)","2670","Management - PD&T","260","Management","260","Management","(blank)","281","PD&T Program Delivery","no",{"$f":"IFERROR(INDEX('Work Order Master'!$S:$S,MATCH(A1277,'Work Order Master'!$K:$K,0)),\"New\")","v":1703},{"$f":"IFERROR(INDEX('Work Order Master'!T:T,MATCH(WORKORDERS!$Q1277,'Work Order Master'!$S:$S,0)),Q1277)","v":"BUSINESS AND COMM LEADERS"},{"$f":"IFERROR(INDEX('FRS CC Master'!A:A,MATCH(WORKORDERS!$Q1277*1,'FRS CC Master'!$C:$C,0)),WORKORDERS!$L1277)","v":"Management"},{"$f":"IFERROR(VLOOKUP($A1277,'Work Order Master'!$K:$Q,7,FALSE),\"Remove\")","v":"N"}]
["32670-3-1","FOM PD&T Management Skills","Active","32670-3","FOM PD&T Management Skills","(blank)","2670","Management - PD&T","260","Management","260","Management","(blank)","281","PD&T Program Delivery","no",{"$f":"IFERROR(INDEX('Work Order Master'!$S:$S,MATCH(A1278,'Work Order Master'!$K:$K,0)),\"New\")","v":1704},{"$f":"IFERROR(INDEX('Work Order Master'!T:T,MATCH(WORKORDERS!$Q1278,'Work Order Master'!$S:$S,0)),Q1278)","v":"MANAGEMENT SKILLS"},{"$f":"IFERROR(INDEX('FRS CC Master'!A:A,MATCH(WORKORDERS!$Q1278*1,'FRS CC Master'!$C:$C,0)),WORKORDERS!$L1278)","v":"Management"},{"$f":"IFERROR(VLOOKUP($A1278,'Work Order Master'!$K:$Q,7,FALSE),\"Remove\")","v":"N"}]
["32670-4-1","FOM PD&T Managing Conflicts","Active","32670-4","FOM PD&T Managing Conflicts","(blank)","2670","Management - PD&T","260","Management","260","Management","(blank)","281","PD&T Program Delivery","no",{"$f":"IFERROR(INDEX('Work Order Master'!$S:$S,MATCH(A1279,'Work Order Master'!$K:$K,0)),\"New\")","v":1705},{"$f":"IFERROR(INDEX('Work Order Master'!T:T,MATCH(WORKORDERS!$Q1279,'Work Order Master'!$S:$S,0)),Q1279)","v":"MANAGING CONFLIC-WORKPLA"},{"$f":"IFERROR(INDEX('FRS CC Master'!A:A,MATCH(WORKORDERS!$Q1279*1,'FRS CC Master'!$C:$C,0)),WORKORDERS!$L1279)","v":"Management"},{"$f":"IFERROR(VLOOKUP($A1279,'Work Order Master'!$K:$Q,7,FALSE),\"Remove\")","v":"N"}]
["32670-5-1","FOM PD&T External","Active","32670-5","FOM PD&T External","(blank)","2670","Management - PD&T","260","Management","260","Management","(blank)","281","PD&T Program Delivery","no",{"$f":"IFERROR(INDEX('Work Order Master'!$S:$S,MATCH(A1280,'Work Order Master'!$K:$K,0)),\"New\")","v":1706},{"$f":"IFERROR(INDEX('Work Order Master'!T:T,MATCH(WORKORDERS!$Q1280,'Work Order Master'!$S:$S,0)),Q1280)","v":"PD&T CONTRCT TRNG-EXTERNAL"},{"$f":"IFERROR(INDEX('FRS CC Master'!A:A,MATCH(WORKORDERS!$Q1280*1,'FRS CC Master'!$C:$C,0)),WORKORDERS!$L1280)","v":"Management"},{"$f":"IFERROR(VLOOKUP($A1280,'Work Order Master'!$K:$Q,7,FALSE),\"Remove\")","v":"N"}]
["32760-1-1","ST PD&T Administration","Active","32760-1","ST PD&T Administration","(blank)","2760","Science and Technology - PD&T","270","Science and Technology","270","Science and Technology","(blank)","280","PD&T Administration","no",{"$f":"IFERROR(INDEX('Work Order Master'!$S:$S,MATCH(A1281,'Work Order Master'!$K:$K,0)),\"New\")","v":"2610, 2649"},{"$f":"IFERROR(INDEX('Work Order Master'!T:T,MATCH(WORKORDERS!$Q1281,'Work Order Master'!$S:$S,0)),Q1281)","v":"FISH EXTENSION-GENERAL EX, NREP CREDIT CARD CHARGES "},{"$f":"IFERROR(INDEX('FRS CC Master'!A:A,MATCH(WORKORDERS!$Q1281*1,'FRS CC Master'!$C:$C,0)),WORKORDERS!$L1281)","v":"Science and Technology"},{"$f":"IFERROR(VLOOKUP($A1281,'Work Order Master'!$K:$Q,7,FALSE),\"Remove\")","v":"N"}]
["32760-2-1","ST PD&T Environmental Technician","Active","32760-2","ST PD&T Environment","(blank)","2760","Science and Technology - PD&T","270","Science and Technology","270","Science and Technology","(blank)","281","PD&T Program Delivery","no",{"$f":"IFERROR(INDEX('Work Order Master'!$S:$S,MATCH(A1282,'Work Order Master'!$K:$K,0)),\"New\")","v":2621},{"$f":"IFERROR(INDEX('Work Order Master'!T:T,MATCH(WORKORDERS!$Q1282,'Work Order Master'!$S:$S,0)),Q1282)","v":"ABORIGINAL ENV.TECH.CERT."},{"$f":"IFERROR(INDEX('FRS CC Master'!A:A,MATCH(WORKORDERS!$Q1282*1,'FRS CC Master'!$C:$C,0)),WORKORDERS!$L1282)","v":"Science and Technology"},{"$f":"IFERROR(VLOOKUP($A1282,'Work Order Master'!$K:$Q,7,FALSE),\"Remove\")","v":"N"}]
["32760-2-2","ST PD&T Environmental Monitoring","Active","32760-2","ST PD&T Environment","(blank)","2760","Science and Technology - PD&T","270","Science and Technology","270","Science and Technology","(blank)","281","PD&T Program Delivery","no",{"$f":"IFERROR(INDEX('Work Order Master'!$S:$S,MATCH(A1283,'Work Order Master'!$K:$K,0)),\"New\")","v":2613},{"$f":"IFERROR(INDEX('Work Order Master'!T:T,MATCH(WORKORDERS!$Q1283,'Work Order Master'!$S:$S,0)),Q1283)","v":"ENVIRONMENTAL MONITORING"},{"$f":"IFERROR(INDEX('FRS CC Master'!A:A,MATCH(WORKORDERS!$Q1283*1,'FRS CC Master'!$C:$C,0)),WORKORDERS!$L1283)","v":"Science and Technology"},{"$f":"IFERROR(VLOOKUP($A1283,'Work Order Master'!$K:$Q,7,FALSE),\"Remove\")","v":"N"}]
["32760-2-3","ST PD&T Erosion and Sediment Control","Active","32760-2","ST PD&T Environment","(blank)","2760","Science and Technology - PD&T","270","Science and Technology","270","Science and Technology","(blank)","281","PD&T Program Delivery",{"$f":"IF(OR(A1284=A1283,A1284=A1285),\"yes\",\"no\")","v":"no"},{"$f":"IFERROR(INDEX('Work Order Master'!$S:$S,MATCH(A1284,'Work Order Master'!$K:$K,0)),\"New\")","v":2617},{"$f":"IFERROR(INDEX('Work Order Master'!T:T,MATCH(WORKORDERS!$Q1284,'Work Order Master'!$S:$S,0)),Q1284)","v":"EROSION AND SEDIMENT CONT"},{"$f":"IFERROR(INDEX('FRS CC Master'!A:A,MATCH(WORKORDERS!$Q1284*1,'FRS CC Master'!$C:$C,0)),WORKORDERS!$L1284)","v":"Science and Technology"},{"$f":"IFERROR(VLOOKUP($A1284,'Work Order Master'!$K:$Q,7,FALSE),\"Remove\")","v":"N"}]
["32760-3-1","ST PD&T Fisheries Field Technician","Active","32760-3","ST PD&T Fisheries","(blank)","2760","Science and Technology - PD&T","270","Science and Technology","270","Science and Technology","(blank)","281","PD&T Program Delivery","no",{"$f":"IFERROR(INDEX('Work Order Master'!$S:$S,MATCH(A1285,'Work Order Master'!$K:$K,0)),\"New\")","v":2612},{"$f":"IFERROR(INDEX('Work Order Master'!T:T,MATCH(WORKORDERS!$Q1285,'Work Order Master'!$S:$S,0)),Q1285)","v":"FFTCP MODULES"},{"$f":"IFERROR(INDEX('FRS CC Master'!A:A,MATCH(WORKORDERS!$Q1285*1,'FRS CC Master'!$C:$C,0)),WORKORDERS!$L1285)","v":"Science and Technology"},{"$f":"IFERROR(VLOOKUP($A1285,'Work Order Master'!$K:$Q,7,FALSE),\"Remove\")","v":"N"}]
["32760-3-2","ST PD&T Electrofishing Recertification","Active","32760-3","ST PD&T Fisheries","(blank)","2760","Science and Technology - PD&T","270","Science and Technology","270","Science and Technology","(blank)","281","PD&T Program Delivery","no",{"$f":"IFERROR(INDEX('Work Order Master'!$S:$S,MATCH(A1286,'Work Order Master'!$K:$K,0)),\"New\")","v":2620},{"$f":"IFERROR(INDEX('Work Order Master'!T:T,MATCH(WORKORDERS!$Q1286,'Work Order Master'!$S:$S,0)),Q1286)","v":"EF RECERT"},{"$f":"IFERROR(INDEX('FRS CC Master'!A:A,MATCH(WORKORDERS!$Q1286*1,'FRS CC Master'!$C:$C,0)),WORKORDERS!$L1286)","v":"Science and Technology"},{"$f":"IFERROR(VLOOKUP($A1286,'Work Order Master'!$K:$Q,7,FALSE),\"Remove\")","v":"N"}]
["32760-3-3","ST PD&T Essential Fisheries Field","Active","32760-3","ST PD&T Fisheries","(blank)","2760","Science and Technology - PD&T","270","Science and Technology","270","Science and Technology","(blank)","281","PD&T Program Delivery","no",{"$f":"IFERROR(INDEX('Work Order Master'!$S:$S,MATCH(A1287,'Work Order Master'!$K:$K,0)),\"New\")","v":2622},{"$f":"IFERROR(INDEX('Work Order Master'!T:T,MATCH(WORKORDERS!$Q1287,'Work Order Master'!$S:$S,0)),Q1287)","v":"ESSENTIAL FISHERIES FIELD"},{"$f":"IFERROR(INDEX('FRS CC Master'!A:A,MATCH(WORKORDERS!$Q1287*1,'FRS CC Master'!$C:$C,0)),WORKORDERS!$L1287)","v":"Science and Technology"},{"$f":"IFERROR(VLOOKUP($A1287,'Work Order Master'!$K:$Q,7,FALSE),\"Remove\")","v":"N"}]
["32760-4-1","ST PD&T Technical Writing","Active","32760-4","ST PD&T Professional Skills","(blank)","2760","Science and Technology - PD&T","270","Science and Technology","270","Science and Technology","(blank)","281","PD&T Program Delivery","no",{"$f":"IFERROR(INDEX('Work Order Master'!$S:$S,MATCH(A1288,'Work Order Master'!$K:$K,0)),\"New\")","v":2625},{"$f":"IFERROR(INDEX('Work Order Master'!T:T,MATCH(WORKORDERS!$Q1288,'Work Order Master'!$S:$S,0)),Q1288)","v":"NRTW-WRITING COURSE"},{"$f":"IFERROR(INDEX('FRS CC Master'!A:A,MATCH(WORKORDERS!$Q1288*1,'FRS CC Master'!$C:$C,0)),WORKORDERS!$L1288)","v":"Science and Technology"},{"$f":"IFERROR(VLOOKUP($A1288,'Work Order Master'!$K:$Q,7,FALSE),\"Remove\")","v":"N"}]
["32760-5-1","ST PD&T Riparian Area Regulation","Active","32760-5","ST PD&T Riparian","(blank)","2760","Science and Technology - PD&T","270","Science and Technology","270","Science and Technology","(blank)","281","PD&T Program Delivery","no",{"$f":"IFERROR(INDEX('Work Order Master'!$S:$S,MATCH(A1289,'Work Order Master'!$K:$K,0)),\"New\")","v":2619},{"$f":"IFERROR(INDEX('Work Order Master'!T:T,MATCH(WORKORDERS!$Q1289,'Work Order Master'!$S:$S,0)),Q1289)","v":"RIPARIAN AREA REGULATION"},{"$f":"IFERROR(INDEX('FRS CC Master'!A:A,MATCH(WORKORDERS!$Q1289*1,'FRS CC Master'!$C:$C,0)),WORKORDERS!$L1289)","v":"Science and Technology"},{"$f":"IFERROR(VLOOKUP($A1289,'Work Order Master'!$K:$Q,7,FALSE),\"Remove\")","v":"N"}]
["32760-6-1","ST PD&T Safety Training","Active","32760-6","ST PD&T Safety","(blank)","2760","Science and Technology - PD&T","270","Science and Technology","270","Science and Technology","(blank)","281","PD&T Program Delivery","no",{"$f":"IFERROR(INDEX('Work Order Master'!$S:$S,MATCH(A1290,'Work Order Master'!$K:$K,0)),\"New\")","v":2627},{"$f":"IFERROR(INDEX('Work Order Master'!T:T,MATCH(WORKORDERS!$Q1290,'Work Order Master'!$S:$S,0)),Q1290)","v":"SAFETY TRAINING (NRST)"},{"$f":"IFERROR(INDEX('FRS CC Master'!A:A,MATCH(WORKORDERS!$Q1290*1,'FRS CC Master'!$C:$C,0)),WORKORDERS!$L1290)","v":"Science and Technology"},{"$f":"IFERROR(VLOOKUP($A1290,'Work Order Master'!$K:$Q,7,FALSE),\"Remove\")","v":"N"}]
["32760-7-1","ST PD&T Shellfish Course","Active","32760-7","ST PD&T Shellfish","(blank)","2760","Science and Technology - PD&T","270","Science and Technology","270","Science and Technology","(blank)","281","PD&T Program Delivery","no",{"$f":"IFERROR(INDEX('Work Order Master'!$S:$S,MATCH(A1291,'Work Order Master'!$K:$K,0)),\"New\")","v":2618},{"$f":"IFERROR(INDEX('Work Order Master'!T:T,MATCH(WORKORDERS!$Q1291,'Work Order Master'!$S:$S,0)),Q1291)","v":"NRSH-SHELLFISH COURSE"},{"$f":"IFERROR(INDEX('FRS CC Master'!A:A,MATCH(WORKORDERS!$Q1291*1,'FRS CC Master'!$C:$C,0)),WORKORDERS!$L1291)","v":"Science and Technology"},{"$f":"IFERROR(VLOOKUP($A1291,'Work Order Master'!$K:$Q,7,FALSE),\"Remove\")","v":"N"}]
["32760-8-1","ST PD&T Water Quality Sampling","Active","32760-8","ST PD&T Water Quality","(blank)","2760","Science and Technology - PD&T","270","Science and Technology","270","Science and Technology","(blank)","281","PD&T Program Delivery","no",{"$f":"IFERROR(INDEX('Work Order Master'!$S:$S,MATCH(A1292,'Work Order Master'!$K:$K,0)),\"New\")","v":2614},{"$f":"IFERROR(INDEX('Work Order Master'!T:T,MATCH(WORKORDERS!$Q1292,'Work Order Master'!$S:$S,0)),Q1292)","v":"FRESHWATER SAMPLING METHO"},{"$f":"IFERROR(INDEX('FRS CC Master'!A:A,MATCH(WORKORDERS!$Q1292*1,'FRS CC Master'!$C:$C,0)),WORKORDERS!$L1292)","v":"Science and Technology"},{"$f":"IFERROR(VLOOKUP($A1292,'Work Order Master'!$K:$Q,7,FALSE),\"Remove\")","v":"N"}]
["32860-1-1","SS PD&T Clemente","Active","32860-1","SS PD&T Clemente","(blank)","2860","Social Sciences - PD&T","280","Social Sciences","280","Social Sciences","(blank)","281","PD&T Program Delivery","no",{"$f":"IFERROR(INDEX('Work Order Master'!$S:$S,MATCH(A1293,'Work Order Master'!$K:$K,0)),\"New\")","v":1751},{"$f":"IFERROR(INDEX('Work Order Master'!T:T,MATCH(WORKORDERS!$Q1293,'Work Order Master'!$S:$S,0)),Q1293)","v":"CLEMENTE PROGRAM"},{"$f":"IFERROR(INDEX('FRS CC Master'!A:A,MATCH(WORKORDERS!$Q1293*1,'FRS CC Master'!$C:$C,0)),WORKORDERS!$L1293)","v":"Social Sciences"},{"$f":"IFERROR(VLOOKUP($A1293,'Work Order Master'!$K:$Q,7,FALSE),\"Remove\")","v":"N"}]
["32860-2-1","SS PD&T Couch Stone Symposium","Active","32860-2","SS PD&T Couch Stone Symposium","(blank)","2860","Social Sciences - PD&T","280","Social Sciences","280","Social Sciences","(blank)","281","PD&T Program Delivery","no",{"$f":"IFERROR(INDEX('Work Order Master'!$S:$S,MATCH(A1294,'Work Order Master'!$K:$K,0)),\"New\")","v":1758},{"$f":"IFERROR(INDEX('Work Order Master'!T:T,MATCH(WORKORDERS!$Q1294,'Work Order Master'!$S:$S,0)),Q1294)","v":"COUCH STONE SYMPSIUM 2016"},{"$f":"IFERROR(INDEX('FRS CC Master'!A:A,MATCH(WORKORDERS!$Q1294*1,'FRS CC Master'!$C:$C,0)),WORKORDERS!$L1294)","v":"Social Sciences"},{"$f":"IFERROR(VLOOKUP($A1294,'Work Order Master'!$K:$Q,7,FALSE),\"Remove\")","v":"N"}]
["32860-3-1","SS PD&T GIS CIDA","Active","32860-3","SS PD&T GIS CIDA","(blank)","2860","Social Sciences - PD&T","280","Social Sciences","280","Social Sciences","(blank)","281","PD&T Program Delivery","no",{"$f":"IFERROR(INDEX('Work Order Master'!$S:$S,MATCH(A1295,'Work Order Master'!$K:$K,0)),\"New\")","v":1755},{"$f":"IFERROR(INDEX('Work Order Master'!T:T,MATCH(WORKORDERS!$Q1295,'Work Order Master'!$S:$S,0)),Q1295)","v":"GIS CIDA HOLDING FUND"},{"$f":"IFERROR(INDEX('FRS CC Master'!A:A,MATCH(WORKORDERS!$Q1295*1,'FRS CC Master'!$C:$C,0)),WORKORDERS!$L1295)","v":"Social Sciences"},{"$f":"IFERROR(VLOOKUP($A1295,'Work Order Master'!$K:$Q,7,FALSE),\"Remove\")","v":"N"}]
["32860-4-1","SS PD&T Inside Out Prison Education","Active","32860-4","SS PD&T Inside Out Prison Education","(blank)","2860","Social Sciences - PD&T","280","Social Sciences","280","Social Sciences","(blank)","281","PD&T Program Delivery","no",{"$f":"IFERROR(INDEX('Work Order Master'!$S:$S,MATCH(A1296,'Work Order Master'!$K:$K,0)),\"New\")","v":1756},{"$f":"IFERROR(INDEX('Work Order Master'!T:T,MATCH(WORKORDERS!$Q1296,'Work Order Master'!$S:$S,0)),Q1296)","v":"INSIDE OUT PRISON EDUC"},{"$f":"IFERROR(INDEX('FRS CC Master'!A:A,MATCH(WORKORDERS!$Q1296*1,'FRS CC Master'!$C:$C,0)),WORKORDERS!$L1296)","v":"Social Sciences"},{"$f":"IFERROR(VLOOKUP($A1296,'Work Order Master'!$K:$Q,7,FALSE),\"Remove\")","v":"N"}]
["32860-5-1","SS PD&T Inside Out Training","Active","32860-5","SS PD&T Inside Out Training","(blank)","2860","Social Sciences - PD&T","280","Social Sciences","280","Social Sciences","(blank)","281","PD&T Program Delivery","no",{"$f":"IFERROR(INDEX('Work Order Master'!$S:$S,MATCH(A1297,'Work Order Master'!$K:$K,0)),\"New\")","v":1759},{"$f":"IFERROR(INDEX('Work Order Master'!T:T,MATCH(WORKORDERS!$Q1297,'Work Order Master'!$S:$S,0)),Q1297)","v":"INSIDE OUT TRAINING"},{"$f":"IFERROR(INDEX('FRS CC Master'!A:A,MATCH(WORKORDERS!$Q1297*1,'FRS CC Master'!$C:$C,0)),WORKORDERS!$L1297)","v":"Social Sciences"},{"$f":"IFERROR(VLOOKUP($A1297,'Work Order Master'!$K:$Q,7,FALSE),\"Remove\")","v":"N"}]
["32980-1-1","TAT PD&T Esthetics","Active","32980-1","TAT PD&T Esthetics","(blank)","2980","Trades and Applied Technology - PD&T","290","Trades and Applied Technology","290","Trades and Applied Technology","(blank)","281","PD&T Program Delivery","no",{"$f":"IFERROR(INDEX('Work Order Master'!$S:$S,MATCH(A1298,'Work Order Master'!$K:$K,0)),\"New\")","v":3809},{"$f":"IFERROR(INDEX('Work Order Master'!T:T,MATCH(WORKORDERS!$Q1298,'Work Order Master'!$S:$S,0)),Q1298)","v":"ESTHETICS"},{"$f":"IFERROR(INDEX('FRS CC Master'!A:A,MATCH(WORKORDERS!$Q1298*1,'FRS CC Master'!$C:$C,0)),WORKORDERS!$L1298)","v":"Trades and Applied Technology"},{"$f":"IFERROR(VLOOKUP($A1298,'Work Order Master'!$K:$Q,7,FALSE),\"Remove\")","v":"N"}]
["32980-2-1","TAT PD&T Electrician","Active","32980-2","TAT PD&T Electrician","(blank)","2980","Trades and Applied Technology - PD&T","290","Trades and Applied Technology","290","Trades and Applied Technology","(blank)","281","PD&T Program Delivery","no",{"$f":"IFERROR(INDEX('Work Order Master'!$S:$S,MATCH(A1299,'Work Order Master'!$K:$K,0)),\"New\")","v":3810},{"$f":"IFERROR(INDEX('Work Order Master'!T:T,MATCH(WORKORDERS!$Q1299,'Work Order Master'!$S:$S,0)),Q1299)","v":"ELECTRICIAN CE"},{"$f":"IFERROR(INDEX('FRS CC Master'!A:A,MATCH(WORKORDERS!$Q1299*1,'FRS CC Master'!$C:$C,0)),WORKORDERS!$L1299)","v":"Trades and Applied Technology"},{"$f":"IFERROR(VLOOKUP($A1299,'Work Order Master'!$K:$Q,7,FALSE),\"Remove\")","v":"N"}]
["33715-1-1","REG Registration - PD&T","Active","33715-1","REG Registration - PD&T","(blank)","3715","Registration - PD&T","370","Registration Services","370","Registration Services","(blank)","280","PD&T Administration","no",{"$f":"IFERROR(INDEX('Work Order Master'!$S:$S,MATCH(A1300,'Work Order Master'!$K:$K,0)),\"New\")","v":6960},{"$f":"IFERROR(INDEX('Work Order Master'!T:T,MATCH(WORKORDERS!$Q1300,'Work Order Master'!$S:$S,0)),Q1300)","v":"CE ADMIN - REGISTRATION"},{"$f":"IFERROR(INDEX('FRS CC Master'!A:A,MATCH(WORKORDERS!$Q1300*1,'FRS CC Master'!$C:$C,0)),WORKORDERS!$L1300)","v":"Registration Services"},{"$f":"IFERROR(VLOOKUP($A1300,'Work Order Master'!$K:$Q,7,FALSE),\"Remove\")","v":"N"}]
["33715-2-1","REG PD&T - Adventures in Mind","Active","33715-2","REG PD&T - Adventures in Mind","(blank)","3715","Registration - PD&T","370","Registration Services","370","Registration Services","(blank)","281","PD&T Program Delivery","no",{"$f":"IFERROR(INDEX('Work Order Master'!$S:$S,MATCH(A1301,'Work Order Master'!$K:$K,0)),\"New\")","v":6952},{"$f":"IFERROR(INDEX('Work Order Master'!T:T,MATCH(WORKORDERS!$Q1301,'Work Order Master'!$S:$S,0)),Q1301)","v":"ADVENTURES IN MIND"},{"$f":"IFERROR(INDEX('FRS CC Master'!A:A,MATCH(WORKORDERS!$Q1301*1,'FRS CC Master'!$C:$C,0)),WORKORDERS!$L1301)","v":"Registration Services"},{"$f":"IFERROR(VLOOKUP($A1301,'Work Order Master'!$K:$Q,7,FALSE),\"Remove\")","v":"N"}]
["33715-3-1","REG PD&T - Eldercollege","Active","33715-3","REG PD&T - Eldercollege","(blank)","3715","Registration - PD&T","370","Registration Services","370","Registration Services","(blank)","281","PD&T Program Delivery","no",{"$f":"IFERROR(INDEX('Work Order Master'!$S:$S,MATCH(A1302,'Work Order Master'!$K:$K,0)),\"New\")","v":6963},{"$f":"IFERROR(INDEX('Work Order Master'!T:T,MATCH(WORKORDERS!$Q1302,'Work Order Master'!$S:$S,0)),Q1302)","v":"ELDERCOLLEGE"},{"$f":"IFERROR(INDEX('FRS CC Master'!A:A,MATCH(WORKORDERS!$Q1302*1,'FRS CC Master'!$C:$C,0)),WORKORDERS!$L1302)","v":"Registration Services"},{"$f":"IFERROR(VLOOKUP($A1302,'Work Order Master'!$K:$Q,7,FALSE),\"Remove\")","v":"N"}]
["33715-4-1","REG PD&T - Grandkids University","Active","33715-4","REG PD&T - Grandkids University","(blank)","3715","Registration - PD&T","370","Registration Services","370","Registration Services","(blank)","281","PD&T Program Delivery","no",{"$f":"IFERROR(INDEX('Work Order Master'!$S:$S,MATCH(A1303,'Work Order Master'!$K:$K,0)),\"New\")","v":6961},{"$f":"IFERROR(INDEX('Work Order Master'!T:T,MATCH(WORKORDERS!$Q1303,'Work Order Master'!$S:$S,0)),Q1303)","v":"GRANDKIDS UNIVERSITY"},{"$f":"IFERROR(INDEX('FRS CC Master'!A:A,MATCH(WORKORDERS!$Q1303*1,'FRS CC Master'!$C:$C,0)),WORKORDERS!$L1303)","v":"Registration Services"},{"$f":"IFERROR(VLOOKUP($A1303,'Work Order Master'!$K:$Q,7,FALSE),\"Remove\")","v":"N"}]
["33715-5-1","REG PD&T - Love of Learning","Active","33715-5","REG PD&T - Love of Learning","(blank)","3715","Registration - PD&T","370","Registration Services","370","Registration Services","(blank)","281","PD&T Program Delivery","no",{"$f":"IFERROR(INDEX('Work Order Master'!$S:$S,MATCH(A1304,'Work Order Master'!$K:$K,0)),\"New\")","v":6964},{"$f":"IFERROR(INDEX('Work Order Master'!T:T,MATCH(WORKORDERS!$Q1304,'Work Order Master'!$S:$S,0)),Q1304)","v":"LOVE OF LEARNING"},{"$f":"IFERROR(INDEX('FRS CC Master'!A:A,MATCH(WORKORDERS!$Q1304*1,'FRS CC Master'!$C:$C,0)),WORKORDERS!$L1304)","v":"Registration Services"},{"$f":"IFERROR(VLOOKUP($A1304,'Work Order Master'!$K:$Q,7,FALSE),\"Remove\")","v":"N"}]
["34440-1-1","CC PD&T Administration","Active","34440-1","CC PD&T Administration","(blank)","4440","Cowichan PD&T","444","Cowichan PD&T & External Contracts","440","Cowichan Campus","(blank)","280","PD&T Administration","no",{"$f":"IFERROR(INDEX('Work Order Master'!$S:$S,MATCH(A1305,'Work Order Master'!$K:$K,0)),\"New\")","v":7400},{"$f":"IFERROR(INDEX('Work Order Master'!T:T,MATCH(WORKORDERS!$Q1305,'Work Order Master'!$S:$S,0)),Q1305)","v":"PD&T ADMIN - COWICHAN"},{"$f":"IFERROR(INDEX('FRS CC Master'!A:A,MATCH(WORKORDERS!$Q1305*1,'FRS CC Master'!$C:$C,0)),WORKORDERS!$L1305)","v":"Cowichan Campus"},{"$f":"IFERROR(VLOOKUP($A1305,'Work Order Master'!$K:$Q,7,FALSE),\"Remove\")","v":"N"}]
["34440-2-1","CC  PD&T- Business Management","Active","34440-2","CC  PD&T- Business Management","(blank)","4440","Cowichan PD&T","444","Cowichan PD&T & External Contracts","440","Cowichan Campus","(blank)","281","PD&T Program Delivery","no",{"$f":"IFERROR(INDEX('Work Order Master'!$S:$S,MATCH(A1306,'Work Order Master'!$K:$K,0)),\"New\")","v":7412},{"$f":"IFERROR(INDEX('Work Order Master'!T:T,MATCH(WORKORDERS!$Q1306,'Work Order Master'!$S:$S,0)),Q1306)","v":"PD&T BUSINESS & MANAGEMENT "},{"$f":"IFERROR(INDEX('FRS CC Master'!A:A,MATCH(WORKORDERS!$Q1306*1,'FRS CC Master'!$C:$C,0)),WORKORDERS!$L1306)","v":"Cowichan Campus"},{"$f":"IFERROR(VLOOKUP($A1306,'Work Order Master'!$K:$Q,7,FALSE),\"Remove\")","v":"N"}]
["34440-3-1","CC  PD&T- FN Housing Manager Certificate","Active","34440-3","CC  PD&T- FN Housing Manager Certificate","(blank)","4440","Cowichan PD&T","444","Cowichan PD&T & External Contracts","440","Cowichan Campus","(blank)","281","PD&T Program Delivery","no",{"$f":"IFERROR(INDEX('Work Order Master'!$S:$S,MATCH(A1307,'Work Order Master'!$K:$K,0)),\"New\")","v":7438},{"$f":"IFERROR(INDEX('Work Order Master'!T:T,MATCH(WORKORDERS!$Q1307,'Work Order Master'!$S:$S,0)),Q1307)","v":"FN HOUSING MANAGER CERT."},{"$f":"IFERROR(INDEX('FRS CC Master'!A:A,MATCH(WORKORDERS!$Q1307*1,'FRS CC Master'!$C:$C,0)),WORKORDERS!$L1307)","v":"Cowichan Campus"},{"$f":"IFERROR(VLOOKUP($A1307,'Work Order Master'!$K:$Q,7,FALSE),\"Remove\")","v":"N"}]
["34440-4-1","CC  PD&T- Health & Human Services","Active","34440-4","CC  PD&T- Health & Human Services","(blank)","4440","Cowichan PD&T","444","Cowichan PD&T & External Contracts","440","Cowichan Campus","(blank)","281","PD&T Program Delivery","no",{"$f":"IFERROR(INDEX('Work Order Master'!$S:$S,MATCH(A1308,'Work Order Master'!$K:$K,0)),\"New\")","v":7416},{"$f":"IFERROR(INDEX('Work Order Master'!T:T,MATCH(WORKORDERS!$Q1308,'Work Order Master'!$S:$S,0)),Q1308)","v":"PD&T HEALTH & HS COWCHAN"},{"$f":"IFERROR(INDEX('FRS CC Master'!A:A,MATCH(WORKORDERS!$Q1308*1,'FRS CC Master'!$C:$C,0)),WORKORDERS!$L1308)","v":"Cowichan Campus"},{"$f":"IFERROR(VLOOKUP($A1308,'Work Order Master'!$K:$Q,7,FALSE),\"Remove\")","v":"N"}]
["34440-5-1","CC  PD&T- Master Gardener","Active","34440-5","CC  PD&T- Master Gardener","(blank)","4440","Cowichan PD&T","444","Cowichan PD&T & External Contracts","440","Cowichan Campus","(blank)","281","PD&T Program Delivery","no",{"$f":"IFERROR(INDEX('Work Order Master'!$S:$S,MATCH(A1309,'Work Order Master'!$K:$K,0)),\"New\")","v":7436},{"$f":"IFERROR(INDEX('Work Order Master'!T:T,MATCH(WORKORDERS!$Q1309,'Work Order Master'!$S:$S,0)),Q1309)","v":"MASTER GARDENER"},{"$f":"IFERROR(INDEX('FRS CC Master'!A:A,MATCH(WORKORDERS!$Q1309*1,'FRS CC Master'!$C:$C,0)),WORKORDERS!$L1309)","v":"Cowichan Campus"},{"$f":"IFERROR(VLOOKUP($A1309,'Work Order Master'!$K:$Q,7,FALSE),\"Remove\")","v":"N"}]
["34440-6-1","CC  PD&T- Open Enrolment","Active","34440-6","CC  PD&T- Open Enrolment","(blank)","4440","Cowichan PD&T","444","Cowichan PD&T & External Contracts","440","Cowichan Campus","(blank)","281","PD&T Program Delivery","no",{"$f":"IFERROR(INDEX('Work Order Master'!$S:$S,MATCH(A1310,'Work Order Master'!$K:$K,0)),\"New\")","v":7410},{"$f":"IFERROR(INDEX('Work Order Master'!T:T,MATCH(WORKORDERS!$Q1310,'Work Order Master'!$S:$S,0)),Q1310)","v":"PD&T OPEN ENROL - COWICHAN"},{"$f":"IFERROR(INDEX('FRS CC Master'!A:A,MATCH(WORKORDERS!$Q1310*1,'FRS CC Master'!$C:$C,0)),WORKORDERS!$L1310)","v":"Cowichan Campus"},{"$f":"IFERROR(VLOOKUP($A1310,'Work Order Master'!$K:$Q,7,FALSE),\"Remove\")","v":"N"}]
["34440-7-1","CC  PD&T- Small Contracts","Active","34440-7","CC  PD&T- Small Contracts","(blank)","4440","Cowichan PD&T","444","Cowichan PD&T & External Contracts","440","Cowichan Campus","(blank)","281","PD&T Program Delivery","no",{"$f":"IFERROR(INDEX('Work Order Master'!$S:$S,MATCH(A1311,'Work Order Master'!$K:$K,0)),\"New\")","v":7450},{"$f":"IFERROR(INDEX('Work Order Master'!T:T,MATCH(WORKORDERS!$Q1311,'Work Order Master'!$S:$S,0)),Q1311)","v":"PD & T CUST SMALL CONTRACTS"},{"$f":"IFERROR(INDEX('FRS CC Master'!A:A,MATCH(WORKORDERS!$Q1311*1,'FRS CC Master'!$C:$C,0)),WORKORDERS!$L1311)","v":"Cowichan Campus"},{"$f":"IFERROR(VLOOKUP($A1311,'Work Order Master'!$K:$Q,7,FALSE),\"Remove\")","v":"N"}]
["34440-8-1","CC  PD&T- Trades & Applied Technology","Active","34440-8","CC  PD&T- Trades & Applied Technology","(blank)","4440","Cowichan PD&T","444","Cowichan PD&T & External Contracts","440","Cowichan Campus","(blank)","281","PD&T Program Delivery","no",{"$f":"IFERROR(INDEX('Work Order Master'!$S:$S,MATCH(A1312,'Work Order Master'!$K:$K,0)),\"New\")","v":7414},{"$f":"IFERROR(INDEX('Work Order Master'!T:T,MATCH(WORKORDERS!$Q1312,'Work Order Master'!$S:$S,0)),Q1312)","v":"PD&T TRADES - COWICHAN"},{"$f":"IFERROR(INDEX('FRS CC Master'!A:A,MATCH(WORKORDERS!$Q1312*1,'FRS CC Master'!$C:$C,0)),WORKORDERS!$L1312)","v":"Cowichan Campus"},{"$f":"IFERROR(VLOOKUP($A1312,'Work Order Master'!$K:$Q,7,FALSE),\"Remove\")","v":"N"}]
["34640-1-1","PRC PD&T - Administration","Active","34640-1","PRC PD&T - Administration","(blank)","4640","Powell River - PD&T","464","Powell River PD&T and External Contracts","460","Powell River Campus","(blank)","280","PD&T Administration","no",{"$f":"IFERROR(INDEX('Work Order Master'!$S:$S,MATCH(A1313,'Work Order Master'!$K:$K,0)),\"New\")","v":7660},{"$f":"IFERROR(INDEX('Work Order Master'!T:T,MATCH(WORKORDERS!$Q1313,'Work Order Master'!$S:$S,0)),Q1313)","v":"CE - POWELL RIVER"},{"$f":"IFERROR(INDEX('FRS CC Master'!A:A,MATCH(WORKORDERS!$Q1313*1,'FRS CC Master'!$C:$C,0)),WORKORDERS!$L1313)","v":"Powell River Campus"},{"$f":"IFERROR(VLOOKUP($A1313,'Work Order Master'!$K:$Q,7,FALSE),\"Remove\")","v":"N"}]
["34640-2-1","PRC PD&T - Eldercollege","Active","34640-2","PRC PD&T - Eldercollege","(blank)","4640","Powell River - PD&T","464","Powell River PD&T and External Contracts","460","Powell River Campus","(blank)","281","PD&T Program Delivery","no",{"$f":"IFERROR(INDEX('Work Order Master'!$S:$S,MATCH(A1314,'Work Order Master'!$K:$K,0)),\"New\")","v":7667},{"$f":"IFERROR(INDEX('Work Order Master'!T:T,MATCH(WORKORDERS!$Q1314,'Work Order Master'!$S:$S,0)),Q1314)","v":"ELDERCOLLEGE"},{"$f":"IFERROR(INDEX('FRS CC Master'!A:A,MATCH(WORKORDERS!$Q1314*1,'FRS CC Master'!$C:$C,0)),WORKORDERS!$L1314)","v":"Powell River Campus"},{"$f":"IFERROR(VLOOKUP($A1314,'Work Order Master'!$K:$Q,7,FALSE),\"Remove\")","v":"N"}]
["34640-3-1","PRC PD&T - Online Training","Active","34640-3","PRC PD&T - Online Training","(blank)","4640","Powell River - PD&T","464","Powell River PD&T and External Contracts","460","Powell River Campus","(blank)","281","PD&T Program Delivery","no",{"$f":"IFERROR(INDEX('Work Order Master'!$S:$S,MATCH(A1315,'Work Order Master'!$K:$K,0)),\"New\")","v":7668},{"$f":"IFERROR(INDEX('Work Order Master'!T:T,MATCH(WORKORDERS!$Q1315,'Work Order Master'!$S:$S,0)),Q1315)","v":"CE ONLINE TRAINING "},{"$f":"IFERROR(INDEX('FRS CC Master'!A:A,MATCH(WORKORDERS!$Q1315*1,'FRS CC Master'!$C:$C,0)),WORKORDERS!$L1315)","v":"Powell River Campus"},{"$f":"IFERROR(VLOOKUP($A1315,'Work Order Master'!$K:$Q,7,FALSE),\"Remove\")","v":"N"}]
["46410-1-1","FSCD Parking - Administration","Active","46410-1","FSCD Ancillary - Administration","(blank)","6410","Parking and Security","641","Ancillary - Facilities","640","Facilities Services and Campus Development","(blank)","400","Ancillary Administration","no",{"$f":"IFERROR(INDEX('Work Order Master'!$S:$S,MATCH(A1316,'Work Order Master'!$K:$K,0)),\"New\")","v":8701},{"$f":"IFERROR(INDEX('Work Order Master'!T:T,MATCH(WORKORDERS!$Q1316,'Work Order Master'!$S:$S,0)),Q1316)","v":"FAC. ANCILLARY - ADMIN"},{"$f":"IFERROR(INDEX('FRS CC Master'!A:A,MATCH(WORKORDERS!$Q1316*1,'FRS CC Master'!$C:$C,0)),WORKORDERS!$L1316)","v":"Ancillary - Facilities"},{"$f":"IFERROR(VLOOKUP($A1316,'Work Order Master'!$K:$Q,7,FALSE),\"Remove\")","v":"N"}]
["46410-1-2","FSCD Security - Administration","Active","46410-1","FSCD Ancillary - Administration","(blank)","6410","Parking and Security","641","Ancillary - Facilities","640","Facilities Services and Campus Development","(blank)","400","Ancillary Administration","no",{"$f":"IFERROR(INDEX('Work Order Master'!$S:$S,MATCH(A1317,'Work Order Master'!$K:$K,0)),\"New\")","v":8702},{"$f":"IFERROR(INDEX('Work Order Master'!T:T,MATCH(WORKORDERS!$Q1317,'Work Order Master'!$S:$S,0)),Q1317)","v":"SECURITY MANAGEMENT"},{"$f":"IFERROR(INDEX('FRS CC Master'!A:A,MATCH(WORKORDERS!$Q1317*1,'FRS CC Master'!$C:$C,0)),WORKORDERS!$L1317)","v":"Ancillary - Facilities"},{"$f":"IFERROR(VLOOKUP($A1317,'Work Order Master'!$K:$Q,7,FALSE),\"Remove\")","v":"N"}]
["46410-2-1","FSCD Parking and Security - Cowichan","Active","46410-2","FSCD Parking and Security - Cowichan Campus","(blank)","6410","Parking and Security","641","Ancillary - Facilities","640","Facilities Services and Campus Development","(blank)","401","Retail Operations","no",{"$f":"IFERROR(INDEX('Work Order Master'!$S:$S,MATCH(A1318,'Work Order Master'!$K:$K,0)),\"New\")","v":8707},{"$f":"IFERROR(INDEX('Work Order Master'!T:T,MATCH(WORKORDERS!$Q1318,'Work Order Master'!$S:$S,0)),Q1318)","v":"COWICHAN - PARKING/SECURITY"},{"$f":"IFERROR(INDEX('FRS CC Master'!A:A,MATCH(WORKORDERS!$Q1318*1,'FRS CC Master'!$C:$C,0)),WORKORDERS!$L1318)","v":"Ancillary - Facilities"},{"$f":"IFERROR(VLOOKUP($A1318,'Work Order Master'!$K:$Q,7,FALSE),\"Remove\")","v":"N"}]
["46410-2-2","FSCD Snow Removal - Cowichan","Active","46410-2","FSCD Parking and Security - Cowichan Campus","(blank)","6410","Parking and Security","641","Ancillary - Facilities","640","Facilities Services and Campus Development","(blank)","401","Retail Operations","no",{"$f":"IFERROR(INDEX('Work Order Master'!$S:$S,MATCH(A1319,'Work Order Master'!$K:$K,0)),\"New\")","v":8708},{"$f":"IFERROR(INDEX('Work Order Master'!T:T,MATCH(WORKORDERS!$Q1319,'Work Order Master'!$S:$S,0)),Q1319)","v":"COWICHAN-SNOW/ICE REMOVAL"},{"$f":"IFERROR(INDEX('FRS CC Master'!A:A,MATCH(WORKORDERS!$Q1319*1,'FRS CC Master'!$C:$C,0)),WORKORDERS!$L1319)","v":"Ancillary - Facilities"},{"$f":"IFERROR(VLOOKUP($A1319,'Work Order Master'!$K:$Q,7,FALSE),\"Remove\")","v":"N"}]
["46410-3-1","FSCD Parking and Security - CTC","Active","46410-3","FSCD Parking and Security - Cowichan Trades Centre","(blank)","6410","Parking and Security","641","Ancillary - Facilities","640","Facilities Services and Campus Development","(blank)","401","Retail Operations","no",{"$f":"IFERROR(INDEX('Work Order Master'!$S:$S,MATCH(A1320,'Work Order Master'!$K:$K,0)),\"New\")","v":8712},{"$f":"IFERROR(INDEX('Work Order Master'!T:T,MATCH(WORKORDERS!$Q1320,'Work Order Master'!$S:$S,0)),Q1320)","v":"COW.TRADES-PARKING/SECURI"},{"$f":"IFERROR(INDEX('FRS CC Master'!A:A,MATCH(WORKORDERS!$Q1320*1,'FRS CC Master'!$C:$C,0)),WORKORDERS!$L1320)","v":"Ancillary - Facilities"},{"$f":"IFERROR(VLOOKUP($A1320,'Work Order Master'!$K:$Q,7,FALSE),\"Remove\")","v":"N"}]
["46410-3-2","FSCD Snow Removal - CTC","Active","46410-3","FSCD Parking and Security - Cowichan Trades Centre","(blank)","6410","Parking and Security","641","Ancillary - Facilities","640","Facilities Services and Campus Development","(blank)","401","Retail Operations","no",{"$f":"IFERROR(INDEX('Work Order Master'!$S:$S,MATCH(A1321,'Work Order Master'!$K:$K,0)),\"New\")","v":8711},{"$f":"IFERROR(INDEX('Work Order Master'!T:T,MATCH(WORKORDERS!$Q1321,'Work Order Master'!$S:$S,0)),Q1321)","v":"COW.TRADES-SNOW/ICE REMOV"},{"$f":"IFERROR(INDEX('FRS CC Master'!A:A,MATCH(WORKORDERS!$Q1321*1,'FRS CC Master'!$C:$C,0)),WORKORDERS!$L1321)","v":"Ancillary - Facilities"},{"$f":"IFERROR(VLOOKUP($A1321,'Work Order Master'!$K:$Q,7,FALSE),\"Remove\")","v":"N"}]
["46410-4-1","FSCD Parking and Security -  G.R. Paine Centre","Active","46410-4","FSCD Parking and Security - G.R. Paine Centre","(blank)","6410","Parking and Security","641","Ancillary - Facilities","640","Facilities Services and Campus Development","(blank)","401","Retail Operations","no",{"$f":"IFERROR(INDEX('Work Order Master'!$S:$S,MATCH(A1322,'Work Order Master'!$K:$K,0)),\"New\")","v":8713},{"$f":"IFERROR(INDEX('Work Order Master'!T:T,MATCH(WORKORDERS!$Q1322,'Work Order Master'!$S:$S,0)),Q1322)","v":"GR PAINE-PARKING/SECURITY"},{"$f":"IFERROR(INDEX('FRS CC Master'!A:A,MATCH(WORKORDERS!$Q1322*1,'FRS CC Master'!$C:$C,0)),WORKORDERS!$L1322)","v":"Ancillary - Facilities"},{"$f":"IFERROR(VLOOKUP($A1322,'Work Order Master'!$K:$Q,7,FALSE),\"Remove\")","v":"N"}]
["46410-4-2","FSCD Snow Removal -  G.R. Paine Centre","Active","46410-4","FSCD Parking and Security - G.R. Paine Centre","(blank)","6410","Parking and Security","641","Ancillary - Facilities","640","Facilities Services and Campus Development","(blank)","401","Retail Operations","no",{"$f":"IFERROR(INDEX('Work Order Master'!$S:$S,MATCH(A1323,'Work Order Master'!$K:$K,0)),\"New\")","v":8714},{"$f":"IFERROR(INDEX('Work Order Master'!T:T,MATCH(WORKORDERS!$Q1323,'Work Order Master'!$S:$S,0)),Q1323)","v":"GR PAINE-SNOW/ICE REMOVAL"},{"$f":"IFERROR(INDEX('FRS CC Master'!A:A,MATCH(WORKORDERS!$Q1323*1,'FRS CC Master'!$C:$C,0)),WORKORDERS!$L1323)","v":"Ancillary - Facilities"},{"$f":"IFERROR(VLOOKUP($A1323,'Work Order Master'!$K:$Q,7,FALSE),\"Remove\")","v":"N"}]
["46410-5-1","FSCD Parking and Security - Nanaimo","Active","46410-5","FSCD Parking and Security - Nanaimo Campus","(blank)","6410","Parking and Security","641","Ancillary - Facilities","640","Facilities Services and Campus Development","(blank)","401","Retail Operations","no",{"$f":"IFERROR(INDEX('Work Order Master'!$S:$S,MATCH(A1324,'Work Order Master'!$K:$K,0)),\"New\")","v":8705},{"$f":"IFERROR(INDEX('Work Order Master'!T:T,MATCH(WORKORDERS!$Q1324,'Work Order Master'!$S:$S,0)),Q1324)","v":"NANAIMO-PARKING/SECURITY"},{"$f":"IFERROR(INDEX('FRS CC Master'!A:A,MATCH(WORKORDERS!$Q1324*1,'FRS CC Master'!$C:$C,0)),WORKORDERS!$L1324)","v":"Ancillary - Facilities"},{"$f":"IFERROR(VLOOKUP($A1324,'Work Order Master'!$K:$Q,7,FALSE),\"Remove\")","v":"N"}]
["46410-5-2","FSCD Snow Removal - Nanaimo","Active","46410-5","FSCD Parking and Security - Nanaimo Campus","(blank)","6410","Parking and Security","641","Ancillary - Facilities","640","Facilities Services and Campus Development","(blank)","401","Retail Operations","no",{"$f":"IFERROR(INDEX('Work Order Master'!$S:$S,MATCH(A1325,'Work Order Master'!$K:$K,0)),\"New\")","v":8704},{"$f":"IFERROR(INDEX('Work Order Master'!T:T,MATCH(WORKORDERS!$Q1325,'Work Order Master'!$S:$S,0)),Q1325)","v":"NANAIMO-SNOW/ICE REMOVAL"},{"$f":"IFERROR(INDEX('FRS CC Master'!A:A,MATCH(WORKORDERS!$Q1325*1,'FRS CC Master'!$C:$C,0)),WORKORDERS!$L1325)","v":"Ancillary - Facilities"},{"$f":"IFERROR(VLOOKUP($A1325,'Work Order Master'!$K:$Q,7,FALSE),\"Remove\")","v":"N"}]
["46410-6-1","FSCD Parking and Security -  Powell River","Active","46410-6","FSCD Parking and Security - Powell River Campus","(blank)","6410","Parking and Security","641","Ancillary - Facilities","640","Facilities Services and Campus Development","(blank)","401","Retail Operations","no",{"$f":"IFERROR(INDEX('Work Order Master'!$S:$S,MATCH(A1326,'Work Order Master'!$K:$K,0)),\"New\")","v":8709},{"$f":"IFERROR(INDEX('Work Order Master'!T:T,MATCH(WORKORDERS!$Q1326,'Work Order Master'!$S:$S,0)),Q1326)","v":"POWELL RIVER-PARKING/SEC."},{"$f":"IFERROR(INDEX('FRS CC Master'!A:A,MATCH(WORKORDERS!$Q1326*1,'FRS CC Master'!$C:$C,0)),WORKORDERS!$L1326)","v":"Ancillary - Facilities"},{"$f":"IFERROR(VLOOKUP($A1326,'Work Order Master'!$K:$Q,7,FALSE),\"Remove\")","v":"N"}]
["46410-6-2","FSCD Snow Removal - Powell River","Active","46410-6","FSCD Parking and Security - Powell River Campus","(blank)","6410","Parking and Security","641","Ancillary - Facilities","640","Facilities Services and Campus Development","(blank)","401","Retail Operations","no",{"$f":"IFERROR(INDEX('Work Order Master'!$S:$S,MATCH(A1327,'Work Order Master'!$K:$K,0)),\"New\")","v":8710},{"$f":"IFERROR(INDEX('Work Order Master'!T:T,MATCH(WORKORDERS!$Q1327,'Work Order Master'!$S:$S,0)),Q1327)","v":"POWELL RIVER-SNOW/ICE REM"},{"$f":"IFERROR(INDEX('FRS CC Master'!A:A,MATCH(WORKORDERS!$Q1327*1,'FRS CC Master'!$C:$C,0)),WORKORDERS!$L1327)","v":"Ancillary - Facilities"},{"$f":"IFERROR(VLOOKUP($A1327,'Work Order Master'!$K:$Q,7,FALSE),\"Remove\")","v":"N"}]
["46420-1-1","FSCD Environmental Sustainability","Active","46420-1","FSCD Environmental Sustainability","(blank)","6420","Environmental Sustainability","641","Ancillary - Facilities","640","Facilities Services and Campus Development","(blank)","400","Ancillary Administration","no",{"$f":"IFERROR(INDEX('Work Order Master'!$S:$S,MATCH(A1328,'Work Order Master'!$K:$K,0)),\"New\")","v":8715},{"$f":"IFERROR(INDEX('Work Order Master'!T:T,MATCH(WORKORDERS!$Q1328,'Work Order Master'!$S:$S,0)),Q1328)","v":"ENVIRON. & SUSTAINABILITY"},{"$f":"IFERROR(INDEX('FRS CC Master'!A:A,MATCH(WORKORDERS!$Q1328*1,'FRS CC Master'!$C:$C,0)),WORKORDERS!$L1328)","v":"Ancillary - Facilities"},{"$f":"IFERROR(VLOOKUP($A1328,'Work Order Master'!$K:$Q,7,FALSE),\"Remove\")","v":"N"}]
["46700-1-1","ANC Ancillary Services","Active","46700-1","ANC Ancillary Services","(blank)","6700","Ancillary Services","670","Ancillary Services","670","Ancillary Operations","(blank)","400","Ancillary Administration","no",{"$f":"IFERROR(INDEX('Work Order Master'!$S:$S,MATCH(A1329,'Work Order Master'!$K:$K,0)),\"New\")","v":8620},{"$f":"IFERROR(INDEX('Work Order Master'!T:T,MATCH(WORKORDERS!$Q1329,'Work Order Master'!$S:$S,0)),Q1329)","v":"BUSINESS OPERATIONS "},{"$f":"IFERROR(INDEX('FRS CC Master'!A:A,MATCH(WORKORDERS!$Q1329*1,'FRS CC Master'!$C:$C,0)),WORKORDERS!$L1329)","v":"Ancillary - Business Operations"},{"$f":"IFERROR(VLOOKUP($A1329,'Work Order Master'!$K:$Q,7,FALSE),\"Remove\")","v":"N"}]
["46705-1-1","ANC Other Ancillary Services - Regalia","Active","46705-1","ANC Other Ancillary Services","(blank)","6705","Other Ancillary Services","670","Ancillary Services","670","Ancillary Operations","(blank)","401","Retail Operations","no",{"$f":"IFERROR(INDEX('Work Order Master'!$S:$S,MATCH(A1330,'Work Order Master'!$K:$K,0)),\"New\")","v":8610},{"$f":"IFERROR(INDEX('Work Order Master'!T:T,MATCH(WORKORDERS!$Q1330,'Work Order Master'!$S:$S,0)),Q1330)","v":"REGALIA DEPOSITS"},{"$f":"IFERROR(INDEX('FRS CC Master'!A:A,MATCH(WORKORDERS!$Q1330*1,'FRS CC Master'!$C:$C,0)),WORKORDERS!$L1330)","v":"Ancillary - Business Operations"},{"$f":"IFERROR(VLOOKUP($A1330,'Work Order Master'!$K:$Q,7,FALSE),\"Remove\")","v":"N"}]
["46710-1-1","ANC Campus Store - Nanaimo","Active","46710-1","ANC Campus Store - Nanaimo","(blank)","6710","Campus Store","671","Campus Store","670","Ancillary Operations","(blank)","401","Retail Operations","no",{"$f":"IFERROR(INDEX('Work Order Master'!$S:$S,MATCH(A1331,'Work Order Master'!$K:$K,0)),\"New\")","v":8600},{"$f":"IFERROR(INDEX('Work Order Master'!T:T,MATCH(WORKORDERS!$Q1331,'Work Order Master'!$S:$S,0)),Q1331)","v":"BOOKSTORE"},{"$f":"IFERROR(INDEX('FRS CC Master'!A:A,MATCH(WORKORDERS!$Q1331*1,'FRS CC Master'!$C:$C,0)),WORKORDERS!$L1331)","v":"Ancillary - Business Operations"},{"$f":"IFERROR(VLOOKUP($A1331,'Work Order Master'!$K:$Q,7,FALSE),\"Remove\")","v":"N"}]
["46710-1-2","ANC Campus Store - Nanaimo - Internal Clearing","Active","46710-1","ANC Campus Store - Nanaimo","(blank)","6710","Campus Store","671","Campus Store","670","Ancillary Operations","(blank)","401","Retail Operations","no",{"$f":"IFERROR(INDEX('Work Order Master'!$S:$S,MATCH(A1332,'Work Order Master'!$K:$K,0)),\"New\")","v":8612},{"$f":"IFERROR(INDEX('Work Order Master'!T:T,MATCH(WORKORDERS!$Q1332,'Work Order Master'!$S:$S,0)),Q1332)","v":"BKS INTERNAL CRG-CLEARING"},{"$f":"IFERROR(INDEX('FRS CC Master'!A:A,MATCH(WORKORDERS!$Q1332*1,'FRS CC Master'!$C:$C,0)),WORKORDERS!$L1332)","v":"Ancillary - Business Operations"},{"$f":"IFERROR(VLOOKUP($A1332,'Work Order Master'!$K:$Q,7,FALSE),\"Remove\")","v":"N"}]
["46710-2-1","ANC Campus Store - Cowichan","Active","46710-2","ANC Campus Store - Cowichan","(blank)","6710","Campus Store","671","Campus Store","670","Ancillary Operations","(blank)","401","Retail Operations","no",{"$f":"IFERROR(INDEX('Work Order Master'!$S:$S,MATCH(A1333,'Work Order Master'!$K:$K,0)),\"New\")","v":8601},{"$f":"IFERROR(INDEX('Work Order Master'!T:T,MATCH(WORKORDERS!$Q1333,'Work Order Master'!$S:$S,0)),Q1333)","v":"BOOKSTORE - DUNCAN"},{"$f":"IFERROR(INDEX('FRS CC Master'!A:A,MATCH(WORKORDERS!$Q1333*1,'FRS CC Master'!$C:$C,0)),WORKORDERS!$L1333)","v":"Ancillary - Business Operations"},{"$f":"IFERROR(VLOOKUP($A1333,'Work Order Master'!$K:$Q,7,FALSE),\"Remove\")","v":"N"}]
["46710-3-1","ANC Campus Store - Powell River","Active","46710-3","ANC Campus Store - Powell River","(blank)","6710","Campus Store","671","Campus Store","670","Ancillary Operations","(blank)","401","Retail Operations","no",{"$f":"IFERROR(INDEX('Work Order Master'!$S:$S,MATCH(A1334,'Work Order Master'!$K:$K,0)),\"New\")","v":8603},{"$f":"IFERROR(INDEX('Work Order Master'!T:T,MATCH(WORKORDERS!$Q1334,'Work Order Master'!$S:$S,0)),Q1334)","v":"BOOKSTORE - POWELL RIVER"},{"$f":"IFERROR(INDEX('FRS CC Master'!A:A,MATCH(WORKORDERS!$Q1334*1,'FRS CC Master'!$C:$C,0)),WORKORDERS!$L1334)","v":"Ancillary - Business Operations"},{"$f":"IFERROR(VLOOKUP($A1334,'Work Order Master'!$K:$Q,7,FALSE),\"Remove\")","v":"N"}]
["46710-4-1","ANC Campus Store - Parksville","Active","46710-4","ANC Campus Store - Parksville","(blank)","6710","Campus Store","671","Campus Store","670","Ancillary Operations","(blank)","401","Retail Operations","no",{"$f":"IFERROR(INDEX('Work Order Master'!$S:$S,MATCH(A1335,'Work Order Master'!$K:$K,0)),\"New\")","v":8602},{"$f":"IFERROR(INDEX('Work Order Master'!T:T,MATCH(WORKORDERS!$Q1335,'Work Order Master'!$S:$S,0)),Q1335)","v":"BOOKSTORE - PARKSVILLE"},{"$f":"IFERROR(INDEX('FRS CC Master'!A:A,MATCH(WORKORDERS!$Q1335*1,'FRS CC Master'!$C:$C,0)),WORKORDERS!$L1335)","v":"Ancillary - Business Operations"},{"$f":"IFERROR(VLOOKUP($A1335,'Work Order Master'!$K:$Q,7,FALSE),\"Remove\")","v":"N"}]
["46710-5-1","ANC Campus Store - Book Buyback WEB","Active","46710-5","ANC Campus Store - Book Buyback WEB","(blank)","6710","Campus Store","671","Campus Store","670","Ancillary Operations","(blank)","401","Retail Operations","no",{"$f":"IFERROR(INDEX('Work Order Master'!$S:$S,MATCH(A1336,'Work Order Master'!$K:$K,0)),\"New\")","v":8605},{"$f":"IFERROR(INDEX('Work Order Master'!T:T,MATCH(WORKORDERS!$Q1336,'Work Order Master'!$S:$S,0)),Q1336)","v":"BB WEB (BOOK BUY BACK) "},{"$f":"IFERROR(INDEX('FRS CC Master'!A:A,MATCH(WORKORDERS!$Q1336*1,'FRS CC Master'!$C:$C,0)),WORKORDERS!$L1336)","v":"Ancillary - Business Operations"},{"$f":"IFERROR(VLOOKUP($A1336,'Work Order Master'!$K:$Q,7,FALSE),\"Remove\")","v":"N"}]
["46720-1-1","ANC Conference & Event Services - External Events","Active","46720-1","ANC Conference & Event Services - External Events","(blank)","6720","Conference & Event Services","672","Conference and Event Services","670","Ancillary Operations","(blank)","401","Retail Operations","no",{"$f":"IFERROR(INDEX('Work Order Master'!$S:$S,MATCH(A1337,'Work Order Master'!$K:$K,0)),\"New\")","v":8625},{"$f":"IFERROR(INDEX('Work Order Master'!T:T,MATCH(WORKORDERS!$Q1337,'Work Order Master'!$S:$S,0)),Q1337)","v":"BUSINESS OPS EXTERNAL REV"},{"$f":"IFERROR(INDEX('FRS CC Master'!A:A,MATCH(WORKORDERS!$Q1337*1,'FRS CC Master'!$C:$C,0)),WORKORDERS!$L1337)","v":"Ancillary - Business Operations"},{"$f":"IFERROR(VLOOKUP($A1337,'Work Order Master'!$K:$Q,7,FALSE),\"Remove\")","v":"N"}]
["46720-2-1","ANC Conference & Event Services - Vending","Active","46720-2","ANC Conference & Event Services - Vending","(blank)","6720","Conference & Event Services","672","Conference and Event Services","670","Ancillary Operations","(blank)","401","Retail Operations","no",{"$f":"IFERROR(INDEX('Work Order Master'!$S:$S,MATCH(A1338,'Work Order Master'!$K:$K,0)),\"New\")","v":8606},{"$f":"IFERROR(INDEX('Work Order Master'!T:T,MATCH(WORKORDERS!$Q1338,'Work Order Master'!$S:$S,0)),Q1338)","v":"VENDING/CONCESSIONS"},{"$f":"IFERROR(INDEX('FRS CC Master'!A:A,MATCH(WORKORDERS!$Q1338*1,'FRS CC Master'!$C:$C,0)),WORKORDERS!$L1338)","v":"Ancillary - Business Operations"},{"$f":"IFERROR(VLOOKUP($A1338,'Work Order Master'!$K:$Q,7,FALSE),\"Remove\")","v":"N"}]
["46740-1-1","ANC Food Services - Department","Parked","46740-1","ANC Food Services - Department","(blank)","6740","Food Services","674","Food Services","670","Ancillary Operations","(blank)","400","Ancillary Administration","no",{"$f":"IFERROR(INDEX('Work Order Master'!$S:$S,MATCH(A1339,'Work Order Master'!$K:$K,0)),\"New\")","v":"New"},{"$f":"IFERROR(INDEX('Work Order Master'!T:T,MATCH(WORKORDERS!$Q1339,'Work Order Master'!$S:$S,0)),Q1339)","v":"New"},{"$f":"IFERROR(INDEX('FRS CC Master'!A:A,MATCH(WORKORDERS!$Q1339*1,'FRS CC Master'!$C:$C,0)),WORKORDERS!$L1339)","v":"Ancillary Operations"},{"$f":"IFERROR(VLOOKUP($A1339,'Work Order Master'!$K:$Q,7,FALSE),\"Remove\")","v":"P"}]
["46740-2-1","ANC Food Services - Cafeteria","Active","46740-2","ANC Food Services - Cafeteria","(blank)","6740","Food Services","674","Food Services","670","Ancillary Operations","(blank)","401","Retail Operations","no",{"$f":"IFERROR(INDEX('Work Order Master'!$S:$S,MATCH(A1340,'Work Order Master'!$K:$K,0)),\"New\")","v":3600},{"$f":"IFERROR(INDEX('Work Order Master'!T:T,MATCH(WORKORDERS!$Q1340,'Work Order Master'!$S:$S,0)),Q1340)","v":"CAFETERIA "},{"$f":"IFERROR(INDEX('FRS CC Master'!A:A,MATCH(WORKORDERS!$Q1340*1,'FRS CC Master'!$C:$C,0)),WORKORDERS!$L1340)","v":"Ancillary - Business Operations"},{"$f":"IFERROR(VLOOKUP($A1340,'Work Order Master'!$K:$Q,7,FALSE),\"Remove\")","v":"N"}]
["46740-3-1","ANC Food Services - Catering","Active","46740-3","ANC Food Services - Catering","(blank)","6740","Food Services","674","Food Services","670","Ancillary Operations","(blank)","401","Retail Operations","no",{"$f":"IFERROR(INDEX('Work Order Master'!$S:$S,MATCH(A1341,'Work Order Master'!$K:$K,0)),\"New\")","v":3604},{"$f":"IFERROR(INDEX('Work Order Master'!T:T,MATCH(WORKORDERS!$Q1341,'Work Order Master'!$S:$S,0)),Q1341)","v":"CATERING SERVICES "},{"$f":"IFERROR(INDEX('FRS CC Master'!A:A,MATCH(WORKORDERS!$Q1341*1,'FRS CC Master'!$C:$C,0)),WORKORDERS!$L1341)","v":"Ancillary - Business Operations"},{"$f":"IFERROR(VLOOKUP($A1341,'Work Order Master'!$K:$Q,7,FALSE),\"Remove\")","v":"N"}]
["46740-3-2","ANC Food Services - Catering Clearing","Active","46740-3","ANC Food Services - Catering","(blank)","6740","Food Services","674","Food Services","670","Ancillary Operations","(blank)","401","Retail Operations","no",{"$f":"IFERROR(INDEX('Work Order Master'!$S:$S,MATCH(A1342,'Work Order Master'!$K:$K,0)),\"New\")","v":8626},{"$f":"IFERROR(INDEX('Work Order Master'!T:T,MATCH(WORKORDERS!$Q1342,'Work Order Master'!$S:$S,0)),Q1342)","v":"CATERING - CLEARING "},{"$f":"IFERROR(INDEX('FRS CC Master'!A:A,MATCH(WORKORDERS!$Q1342*1,'FRS CC Master'!$C:$C,0)),WORKORDERS!$L1342)","v":"Ancillary - Business Operations"},{"$f":"IFERROR(VLOOKUP($A1342,'Work Order Master'!$K:$Q,7,FALSE),\"Remove\")","v":"N"}]
["46740-4-1","ANC Food Services - Student Food Sales","Active","46740-4","ANC Food Services - Student Food Sales","(blank)","6740","Food Services","674","Food Services","670","Ancillary Operations","(blank)","401","Retail Operations","no",{"$f":"IFERROR(INDEX('Work Order Master'!$S:$S,MATCH(A1343,'Work Order Master'!$K:$K,0)),\"New\")","v":3605},{"$f":"IFERROR(INDEX('Work Order Master'!T:T,MATCH(WORKORDERS!$Q1343,'Work Order Master'!$S:$S,0)),Q1343)","v":"STUDENT FOOD SALES "},{"$f":"IFERROR(INDEX('FRS CC Master'!A:A,MATCH(WORKORDERS!$Q1343*1,'FRS CC Master'!$C:$C,0)),WORKORDERS!$L1343)","v":"Ancillary - Business Operations"},{"$f":"IFERROR(VLOOKUP($A1343,'Work Order Master'!$K:$Q,7,FALSE),\"Remove\")","v":"N"}]
["46740-5-1","ANC Food Services - StarBucks","Active","46740-5","ANC Food Services - StarBucks","(blank)","6740","Food Services","674","Food Services","670","Ancillary Operations","(blank)","401","Retail Operations","no",{"$f":"IFERROR(INDEX('Work Order Master'!$S:$S,MATCH(A1344,'Work Order Master'!$K:$K,0)),\"New\")","v":3606},{"$f":"IFERROR(INDEX('Work Order Master'!T:T,MATCH(WORKORDERS!$Q1344,'Work Order Master'!$S:$S,0)),Q1344)","v":"STARBUCKS "},{"$f":"IFERROR(INDEX('FRS CC Master'!A:A,MATCH(WORKORDERS!$Q1344*1,'FRS CC Master'!$C:$C,0)),WORKORDERS!$L1344)","v":"Ancillary - Business Operations"},{"$f":"IFERROR(VLOOKUP($A1344,'Work Order Master'!$K:$Q,7,FALSE),\"Remove\")","v":"N"}]
["46780-1-1","ANC Printshop","Active","46780-1","ANC Printshop","(blank)","6780","Printshop","678","Printshop","670","Ancillary Operations","(blank)","401","Retail Operations","no",{"$f":"IFERROR(INDEX('Work Order Master'!$S:$S,MATCH(A1345,'Work Order Master'!$K:$K,0)),\"New\")","v":8640},{"$f":"IFERROR(INDEX('Work Order Master'!T:T,MATCH(WORKORDERS!$Q1345,'Work Order Master'!$S:$S,0)),Q1345)","v":"PRINTING/DUPLICATING "},{"$f":"IFERROR(INDEX('FRS CC Master'!A:A,MATCH(WORKORDERS!$Q1345*1,'FRS CC Master'!$C:$C,0)),WORKORDERS!$L1345)","v":"Ancillary - Business Operations"},{"$f":"IFERROR(VLOOKUP($A1345,'Work Order Master'!$K:$Q,7,FALSE),\"Remove\")","v":"N"}]
["46800-1-1","ANC Student Residences","Active","46800-1","ANC Student Residences","(blank)","6800","Student Residences","680","VIU Student Residences","670","Ancillary Operations","(blank)","400","Ancillary Administration","no",{"$f":"IFERROR(INDEX('Work Order Master'!$S:$S,MATCH(A1346,'Work Order Master'!$K:$K,0)),\"New\")","v":8650},{"$f":"IFERROR(INDEX('Work Order Master'!T:T,MATCH(WORKORDERS!$Q1346,'Work Order Master'!$S:$S,0)),Q1346)","v":"ANCILLARY - VIU STUDENT RES."},{"$f":"IFERROR(INDEX('FRS CC Master'!A:A,MATCH(WORKORDERS!$Q1346*1,'FRS CC Master'!$C:$C,0)),WORKORDERS!$L1346)","v":"Ancillary - VIU Student Residences"},{"$f":"IFERROR(VLOOKUP($A1346,'Work Order Master'!$K:$Q,7,FALSE),\"Remove\")","v":"N"}]
["46810-1-1","ANC Student Residences - Residence Life","Parked","46810-1","ANC Student Residences - Residence Life","(blank)","6810","Student Residences - Resident Life","680","VIU Student Residences","670","Ancillary Operations","(blank)","401","Retail Operations","no",{"$f":"IFERROR(INDEX('Work Order Master'!$S:$S,MATCH(A1347,'Work Order Master'!$K:$K,0)),\"New\")","v":"New"},{"$f":"IFERROR(INDEX('Work Order Master'!T:T,MATCH(WORKORDERS!$Q1347,'Work Order Master'!$S:$S,0)),Q1347)","v":"New"},{"$f":"IFERROR(INDEX('FRS CC Master'!A:A,MATCH(WORKORDERS!$Q1347*1,'FRS CC Master'!$C:$C,0)),WORKORDERS!$L1347)","v":"Ancillary Operations"},{"$f":"IFERROR(VLOOKUP($A1347,'Work Order Master'!$K:$Q,7,FALSE),\"Remove\")","v":"P"}]
["51010-1-1","PRES Minor Capital","Parked","51010-1","PRES Minor Capital","(blank)","1010","President Initiatives","100","President - Office","100","President - Office","(blank)","500","Capital - General",{"$f":"IF(OR(A1348=A1347,A1348=A1349),\"yes\",\"no\")","v":"no"},{"$f":"IFERROR(INDEX('Work Order Master'!$S:$S,MATCH(A1348,'Work Order Master'!$K:$K,0)),\"New\")","v":"New"},{"$f":"IFERROR(INDEX('Work Order Master'!T:T,MATCH(WORKORDERS!$Q1348,'Work Order Master'!$S:$S,0)),Q1348)","v":"New"},{"$f":"IFERROR(INDEX('FRS CC Master'!A:A,MATCH(WORKORDERS!$Q1348*1,'FRS CC Master'!$C:$C,0)),WORKORDERS!$L1348)","v":"President - Office"},{"$f":"IFERROR(VLOOKUP($A1348,'Work Order Master'!$K:$Q,7,FALSE),\"Remove\")","v":"P"}]
["51101-1-1","HR Minor Capital","Parked","51101-1","HR Minor Capital","(blank)","1101","Human Resources Division - AVP Initiatives","110","Human Resources Division","110","Human Resources","(blank)","500","Capital - General","no",{"$f":"IFERROR(INDEX('Work Order Master'!$S:$S,MATCH(A1349,'Work Order Master'!$K:$K,0)),\"New\")","v":"New"},{"$f":"IFERROR(INDEX('Work Order Master'!T:T,MATCH(WORKORDERS!$Q1349,'Work Order Master'!$S:$S,0)),Q1349)","v":"New"},{"$f":"IFERROR(INDEX('FRS CC Master'!A:A,MATCH(WORKORDERS!$Q1349*1,'FRS CC Master'!$C:$C,0)),WORKORDERS!$L1349)","v":"Human Resources"},{"$f":"IFERROR(VLOOKUP($A1349,'Work Order Master'!$K:$Q,7,FALSE),\"Remove\")","v":"P"}]
["51501-1-1","CP Minor Capital","Parked","51501-1","CP Minor Capital","(blank)","1501","Community Partnerships - Initiatives","150","Community Partnerships","150","Community Partnerships","(blank)","500","Capital - General","no",{"$f":"IFERROR(INDEX('Work Order Master'!$S:$S,MATCH(A1350,'Work Order Master'!$K:$K,0)),\"New\")","v":"New"},{"$f":"IFERROR(INDEX('Work Order Master'!T:T,MATCH(WORKORDERS!$Q1350,'Work Order Master'!$S:$S,0)),Q1350)","v":"New"},{"$f":"IFERROR(INDEX('FRS CC Master'!A:A,MATCH(WORKORDERS!$Q1350*1,'FRS CC Master'!$C:$C,0)),WORKORDERS!$L1350)","v":"Community Partnerships"},{"$f":"IFERROR(VLOOKUP($A1350,'Work Order Master'!$K:$Q,7,FALSE),\"Remove\")","v":"P"}]
["51601-1-1","USEC Minor Capital","Parked","51601-1","USEC Minor Capital","(blank)","1601","University Secretary - Initiatives","160","University Secretary","160","University Secretary","(blank)","500","Capital - General","no",{"$f":"IFERROR(INDEX('Work Order Master'!$S:$S,MATCH(A1351,'Work Order Master'!$K:$K,0)),\"New\")","v":"New"},{"$f":"IFERROR(INDEX('Work Order Master'!T:T,MATCH(WORKORDERS!$Q1351,'Work Order Master'!$S:$S,0)),Q1351)","v":"New"},{"$f":"IFERROR(INDEX('FRS CC Master'!A:A,MATCH(WORKORDERS!$Q1351*1,'FRS CC Master'!$C:$C,0)),WORKORDERS!$L1351)","v":"University Secretary"},{"$f":"IFERROR(VLOOKUP($A1351,'Work Order Master'!$K:$Q,7,FALSE),\"Remove\")","v":"P"}]
["52010-1-1","PVPA-CAU Minor Capital","Parked","52010-1","PVPA-CAU Minor Capital","(blank)","2010","PVPA Initiatives","201","PVPA Initiatives and Instructional Support","201","PVPA - Centralized Academic Units","(blank)","500","Capital - General","no",{"$f":"IFERROR(INDEX('Work Order Master'!$S:$S,MATCH(A1352,'Work Order Master'!$K:$K,0)),\"New\")","v":"New"},{"$f":"IFERROR(INDEX('Work Order Master'!T:T,MATCH(WORKORDERS!$Q1352,'Work Order Master'!$S:$S,0)),Q1352)","v":"New"},{"$f":"IFERROR(INDEX('FRS CC Master'!A:A,MATCH(WORKORDERS!$Q1352*1,'FRS CC Master'!$C:$C,0)),WORKORDERS!$L1352)","v":"PVPA - Centralized Academic Units"},{"$f":"IFERROR(VLOOKUP($A1352,'Work Order Master'!$K:$Q,7,FALSE),\"Remove\")","v":"P"}]
["52101-1-1","ACP Minor Capital","Parked","52101-1","ACP Minor Capital","(blank)","2101","Academic and Career Preparation - Initiatives","210","Academic and Career Preparation","210","Academic and Career Preparation","(blank)","500","Capital - General","no",{"$f":"IFERROR(INDEX('Work Order Master'!$S:$S,MATCH(A1353,'Work Order Master'!$K:$K,0)),\"New\")","v":"New"},{"$f":"IFERROR(INDEX('Work Order Master'!T:T,MATCH(WORKORDERS!$Q1353,'Work Order Master'!$S:$S,0)),Q1353)","v":"New"},{"$f":"IFERROR(INDEX('FRS CC Master'!A:A,MATCH(WORKORDERS!$Q1353*1,'FRS CC Master'!$C:$C,0)),WORKORDERS!$L1353)","v":"Academic and Career Preparation"},{"$f":"IFERROR(VLOOKUP($A1353,'Work Order Master'!$K:$Q,7,FALSE),\"Remove\")","v":"P"}]
["52201-1-1","AH Minor Capital","Parked","52201-1","AH Minor Capital","(blank)","2201","Arts and Humanities - Initiatives","220","Arts and Humanitites","220","Arts and Humanities","(blank)","500","Capital - General","no",{"$f":"IFERROR(INDEX('Work Order Master'!$S:$S,MATCH(A1354,'Work Order Master'!$K:$K,0)),\"New\")","v":"New"},{"$f":"IFERROR(INDEX('Work Order Master'!T:T,MATCH(WORKORDERS!$Q1354,'Work Order Master'!$S:$S,0)),Q1354)","v":"New"},{"$f":"IFERROR(INDEX('FRS CC Master'!A:A,MATCH(WORKORDERS!$Q1354*1,'FRS CC Master'!$C:$C,0)),WORKORDERS!$L1354)","v":"Arts and Humanities"},{"$f":"IFERROR(VLOOKUP($A1354,'Work Order Master'!$K:$Q,7,FALSE),\"Remove\")","v":"P"}]
["52301-1-1","EDUC Minor Capital","Parked","52301-1","EDUC Minor Capital","(blank)","2301","Education - Initiatives","230","Education","230","Education","(blank)","500","Capital - General","no",{"$f":"IFERROR(INDEX('Work Order Master'!$S:$S,MATCH(A1355,'Work Order Master'!$K:$K,0)),\"New\")","v":"New"},{"$f":"IFERROR(INDEX('Work Order Master'!T:T,MATCH(WORKORDERS!$Q1355,'Work Order Master'!$S:$S,0)),Q1355)","v":"New"},{"$f":"IFERROR(INDEX('FRS CC Master'!A:A,MATCH(WORKORDERS!$Q1355*1,'FRS CC Master'!$C:$C,0)),WORKORDERS!$L1355)","v":"Education"},{"$f":"IFERROR(VLOOKUP($A1355,'Work Order Master'!$K:$Q,7,FALSE),\"Remove\")","v":"P"}]
["52401-1-1","HHS Minor Capital","Parked","52401-1","HHS Minor Capital","(blank)","2401","Health and Human Services - Initiatives","240","Health and Human Services","240","Health and Human Services","(blank)","500","Capital - General","no",{"$f":"IFERROR(INDEX('Work Order Master'!$S:$S,MATCH(A1356,'Work Order Master'!$K:$K,0)),\"New\")","v":"New"},{"$f":"IFERROR(INDEX('Work Order Master'!T:T,MATCH(WORKORDERS!$Q1356,'Work Order Master'!$S:$S,0)),Q1356)","v":"New"},{"$f":"IFERROR(INDEX('FRS CC Master'!A:A,MATCH(WORKORDERS!$Q1356*1,'FRS CC Master'!$C:$C,0)),WORKORDERS!$L1356)","v":"Health and Human Services"},{"$f":"IFERROR(VLOOKUP($A1356,'Work Order Master'!$K:$Q,7,FALSE),\"Remove\")","v":"P"}]
["52401-2-1","HHS Capital - Health Equipment","Active","52401-2","HHS Capital - Health Equipment","(blank)","2401","Health and Human Services - Initiatives","240","Health and Human Services","240","Health and Human Services","(blank)","500","Capital - General","no",{"$f":"IFERROR(INDEX('Work Order Master'!$S:$S,MATCH(A1357,'Work Order Master'!$K:$K,0)),\"New\")","v":9116},{"$f":"IFERROR(INDEX('Work Order Master'!T:T,MATCH(WORKORDERS!$Q1357,'Work Order Master'!$S:$S,0)),Q1357)","v":"HCA - PP EQUIPMENT "},{"$f":"IFERROR(INDEX('FRS CC Master'!A:A,MATCH(WORKORDERS!$Q1357*1,'FRS CC Master'!$C:$C,0)),WORKORDERS!$L1357)","v":"Capital"},{"$f":"IFERROR(VLOOKUP($A1357,'Work Order Master'!$K:$Q,7,FALSE),\"Remove\")","v":"N"}]
["52501-1-1","IE Minor Capital","Parked","52501-1","IE Minor Capital","(blank)","2501","International Education - Initiatives","250","International Education","250","International Education","(blank)","500","Capital - General","no",{"$f":"IFERROR(INDEX('Work Order Master'!$S:$S,MATCH(A1358,'Work Order Master'!$K:$K,0)),\"New\")","v":"New"},{"$f":"IFERROR(INDEX('Work Order Master'!T:T,MATCH(WORKORDERS!$Q1358,'Work Order Master'!$S:$S,0)),Q1358)","v":"New"},{"$f":"IFERROR(INDEX('FRS CC Master'!A:A,MATCH(WORKORDERS!$Q1358*1,'FRS CC Master'!$C:$C,0)),WORKORDERS!$L1358)","v":"International Education"},{"$f":"IFERROR(VLOOKUP($A1358,'Work Order Master'!$K:$Q,7,FALSE),\"Remove\")","v":"P"}]
["52601-1-1","FOM Minor Capital","Parked","52601-1","FOM Minor Capital","(blank)","2601","Faculty of Management - Initiatives","260","Management","260","Management","(blank)","500","Capital - General","no",{"$f":"IFERROR(INDEX('Work Order Master'!$S:$S,MATCH(A1359,'Work Order Master'!$K:$K,0)),\"New\")","v":"New"},{"$f":"IFERROR(INDEX('Work Order Master'!T:T,MATCH(WORKORDERS!$Q1359,'Work Order Master'!$S:$S,0)),Q1359)","v":"New"},{"$f":"IFERROR(INDEX('FRS CC Master'!A:A,MATCH(WORKORDERS!$Q1359*1,'FRS CC Master'!$C:$C,0)),WORKORDERS!$L1359)","v":"Management"},{"$f":"IFERROR(VLOOKUP($A1359,'Work Order Master'!$K:$Q,7,FALSE),\"Remove\")","v":"P"}]
["52701-1-1","ST Minor Capital","Parked","52701-1","ST Minor Capital","(blank)","2701","Science and Technology - Initiatives","270","Science and Technology","270","Science and Technology","(blank)","500","Capital - General","no",{"$f":"IFERROR(INDEX('Work Order Master'!$S:$S,MATCH(A1360,'Work Order Master'!$K:$K,0)),\"New\")","v":"New"},{"$f":"IFERROR(INDEX('Work Order Master'!T:T,MATCH(WORKORDERS!$Q1360,'Work Order Master'!$S:$S,0)),Q1360)","v":"New"},{"$f":"IFERROR(INDEX('FRS CC Master'!A:A,MATCH(WORKORDERS!$Q1360*1,'FRS CC Master'!$C:$C,0)),WORKORDERS!$L1360)","v":"Science and Technology"},{"$f":"IFERROR(VLOOKUP($A1360,'Work Order Master'!$K:$Q,7,FALSE),\"Remove\")","v":"P"}]
["52701-2-1","ST Multi-Mode Microplate","Active","52701-2","ST CRP Capital Projects","(blank)","2701","Science and Technology - Initiatives","270","Science and Technology","270","Science and Technology","(blank)","500","Capital - General","no",{"$f":"IFERROR(INDEX('Work Order Master'!$S:$S,MATCH(A1361,'Work Order Master'!$K:$K,0)),\"New\")","v":9207},{"$f":"IFERROR(INDEX('Work Order Master'!T:T,MATCH(WORKORDERS!$Q1361,'Work Order Master'!$S:$S,0)),Q1361)","v":"SCI-MULTI MODE MICROPLATE"},{"$f":"IFERROR(INDEX('FRS CC Master'!A:A,MATCH(WORKORDERS!$Q1361*1,'FRS CC Master'!$C:$C,0)),WORKORDERS!$L1361)","v":"Capital"},{"$f":"IFERROR(VLOOKUP($A1361,'Work Order Master'!$K:$Q,7,FALSE),\"Remove\")","v":"N"}]
["52701-2-2","ST Enginnering Lab Equipment","Active","52701-2","ST CRP Capital Projects","(blank)","2701","Science and Technology - Initiatives","270","Science and Technology","270","Science and Technology","(blank)","500","Capital - General","no",{"$f":"IFERROR(INDEX('Work Order Master'!$S:$S,MATCH(A1362,'Work Order Master'!$K:$K,0)),\"New\")","v":9208},{"$f":"IFERROR(INDEX('Work Order Master'!T:T,MATCH(WORKORDERS!$Q1362,'Work Order Master'!$S:$S,0)),Q1362)","v":"SCI - ENGNING LAB EQUIP"},{"$f":"IFERROR(INDEX('FRS CC Master'!A:A,MATCH(WORKORDERS!$Q1362*1,'FRS CC Master'!$C:$C,0)),WORKORDERS!$L1362)","v":"Capital"},{"$f":"IFERROR(VLOOKUP($A1362,'Work Order Master'!$K:$Q,7,FALSE),\"Remove\")","v":"N"}]
["52801-1-1","SS Minor Capital","Parked","52801-1","SS Minor Capital","(blank)","2801","Social Sciences - Initiatives","280","Social Sciences","280","Social Sciences","(blank)","500","Capital - General","no",{"$f":"IFERROR(INDEX('Work Order Master'!$S:$S,MATCH(A1363,'Work Order Master'!$K:$K,0)),\"New\")","v":"New"},{"$f":"IFERROR(INDEX('Work Order Master'!T:T,MATCH(WORKORDERS!$Q1363,'Work Order Master'!$S:$S,0)),Q1363)","v":"New"},{"$f":"IFERROR(INDEX('FRS CC Master'!A:A,MATCH(WORKORDERS!$Q1363*1,'FRS CC Master'!$C:$C,0)),WORKORDERS!$L1363)","v":"Social Sciences"},{"$f":"IFERROR(VLOOKUP($A1363,'Work Order Master'!$K:$Q,7,FALSE),\"Remove\")","v":"P"}]
["52901-1-1","TAT Minor Capital","Parked","52901-1","TAT Minor Capital","(blank)","2901","Trades and Applied Technology - Initiatives","290","Trades and Applied Technology","290","Trades and Applied Technology","(blank)","500","Capital - General","no",{"$f":"IFERROR(INDEX('Work Order Master'!$S:$S,MATCH(A1364,'Work Order Master'!$K:$K,0)),\"New\")","v":"New"},{"$f":"IFERROR(INDEX('Work Order Master'!T:T,MATCH(WORKORDERS!$Q1364,'Work Order Master'!$S:$S,0)),Q1364)","v":"New"},{"$f":"IFERROR(INDEX('FRS CC Master'!A:A,MATCH(WORKORDERS!$Q1364*1,'FRS CC Master'!$C:$C,0)),WORKORDERS!$L1364)","v":"Trades and Applied Technology"},{"$f":"IFERROR(VLOOKUP($A1364,'Work Order Master'!$K:$Q,7,FALSE),\"Remove\")","v":"P"}]
["52901-2-1","TAT Capital - Training Equipment","Active","52901-2","TAT Capital - Training Equipment","(blank)","2901","Trades and Applied Technology - Initiatives","290","Trades and Applied Technology","290","Trades and Applied Technology","(blank)","500","Capital - General","no",{"$f":"IFERROR(INDEX('Work Order Master'!$S:$S,MATCH(A1365,'Work Order Master'!$K:$K,0)),\"New\")","v":9030},{"$f":"IFERROR(INDEX('Work Order Master'!T:T,MATCH(WORKORDERS!$Q1365,'Work Order Master'!$S:$S,0)),Q1365)","v":"TRADES TRAINING EQUIPMENT "},{"$f":"IFERROR(INDEX('FRS CC Master'!A:A,MATCH(WORKORDERS!$Q1365*1,'FRS CC Master'!$C:$C,0)),WORKORDERS!$L1365)","v":"Capital"},{"$f":"IFERROR(VLOOKUP($A1365,'Work Order Master'!$K:$Q,7,FALSE),\"Remove\")","v":"N"}]
["53501-1-1","IEE Minor Capital","Parked","53501-1","IEE Minor Capital","(blank)","3501","Indigenous Education and Engagement - Initiatives","350","Indigenous Education and Engagement","350","Indigenous Education and Engagement","(blank)","500","Capital - General","no",{"$f":"IFERROR(INDEX('Work Order Master'!$S:$S,MATCH(A1366,'Work Order Master'!$K:$K,0)),\"New\")","v":"New"},{"$f":"IFERROR(INDEX('Work Order Master'!T:T,MATCH(WORKORDERS!$Q1366,'Work Order Master'!$S:$S,0)),Q1366)","v":"New"},{"$f":"IFERROR(INDEX('FRS CC Master'!A:A,MATCH(WORKORDERS!$Q1366*1,'FRS CC Master'!$C:$C,0)),WORKORDERS!$L1366)","v":"Indigenous Education and Engagement"},{"$f":"IFERROR(VLOOKUP($A1366,'Work Order Master'!$K:$Q,7,FALSE),\"Remove\")","v":"P"}]
["53610-1-1","LIB Library - Capital - Book Purchases","Active","53610-1","LIB Library - Capital Book Purchases","(blank)","3610","Library - Initiatives","360","Library","360","Library","(blank)","500","Capital - General","no",{"$f":"IFERROR(INDEX('Work Order Master'!$S:$S,MATCH(A1367,'Work Order Master'!$K:$K,0)),\"New\")","v":9075},{"$f":"IFERROR(INDEX('Work Order Master'!T:T,MATCH(WORKORDERS!$Q1367,'Work Order Master'!$S:$S,0)),Q1367)","v":"LIBRARY BOOK PURCHASES (CAPITAL FUND)"},{"$f":"IFERROR(INDEX('FRS CC Master'!A:A,MATCH(WORKORDERS!$Q1367*1,'FRS CC Master'!$C:$C,0)),WORKORDERS!$L1367)","v":"Capital"},{"$f":"IFERROR(VLOOKUP($A1367,'Work Order Master'!$K:$Q,7,FALSE),\"Remove\")","v":"N"}]
["53610-2-1","LIB Library - Minor Capital","Parked","53610-2","LIB Library - Minor Capital","(blank)","3610","Library - Initiatives","360","Library","360","Library","(blank)","500","Capital - General","no",{"$f":"IFERROR(INDEX('Work Order Master'!$S:$S,MATCH(A1368,'Work Order Master'!$K:$K,0)),\"New\")","v":"New"},{"$f":"IFERROR(INDEX('Work Order Master'!T:T,MATCH(WORKORDERS!$Q1368,'Work Order Master'!$S:$S,0)),Q1368)","v":"New"},{"$f":"IFERROR(INDEX('FRS CC Master'!A:A,MATCH(WORKORDERS!$Q1368*1,'FRS CC Master'!$C:$C,0)),WORKORDERS!$L1368)","v":"Library"},{"$f":"IFERROR(VLOOKUP($A1368,'Work Order Master'!$K:$Q,7,FALSE),\"Remove\")","v":"P"}]
["53701-1-1","REG Minor Capital","Parked","53701-1","REG Minor Capital","(blank)","3701","Registration - Initiatives","370","Registration Services","370","Registration Services","(blank)","500","Capital - General","no",{"$f":"IFERROR(INDEX('Work Order Master'!$S:$S,MATCH(A1369,'Work Order Master'!$K:$K,0)),\"New\")","v":"New"},{"$f":"IFERROR(INDEX('Work Order Master'!T:T,MATCH(WORKORDERS!$Q1369,'Work Order Master'!$S:$S,0)),Q1369)","v":"New"},{"$f":"IFERROR(INDEX('FRS CC Master'!A:A,MATCH(WORKORDERS!$Q1369*1,'FRS CC Master'!$C:$C,0)),WORKORDERS!$L1369)","v":"Registration Services"},{"$f":"IFERROR(VLOOKUP($A1369,'Work Order Master'!$K:$Q,7,FALSE),\"Remove\")","v":"P"}]
["54101-1-1","CIEL Minor Capital","Parked","54101-1","CIEL Minor Capital","(blank)","4101","Centre for Innovation and Excellence in Learning - Initiatives","410","Centre for Innovation and Excellence in Learning","410","Centre for Innovation and Excellence in Learning","(blank)","500","Capital - General","no",{"$f":"IFERROR(INDEX('Work Order Master'!$S:$S,MATCH(A1370,'Work Order Master'!$K:$K,0)),\"New\")","v":"New"},{"$f":"IFERROR(INDEX('Work Order Master'!T:T,MATCH(WORKORDERS!$Q1370,'Work Order Master'!$S:$S,0)),Q1370)","v":"New"},{"$f":"IFERROR(INDEX('FRS CC Master'!A:A,MATCH(WORKORDERS!$Q1370*1,'FRS CC Master'!$C:$C,0)),WORKORDERS!$L1370)","v":"Centre for Innovation and Excellence in Learning"},{"$f":"IFERROR(VLOOKUP($A1370,'Work Order Master'!$K:$Q,7,FALSE),\"Remove\")","v":"P"}]
["54401-1-1","CC Minor Capital","Parked","54401-1","CC Minor Capital","(blank)","4401","Cowichan Campus - Initiatives","440","Cowichan Campus Administration","440","Cowichan Campus","(blank)","500","Capital - General","no",{"$f":"IFERROR(INDEX('Work Order Master'!$S:$S,MATCH(A1371,'Work Order Master'!$K:$K,0)),\"New\")","v":"New"},{"$f":"IFERROR(INDEX('Work Order Master'!T:T,MATCH(WORKORDERS!$Q1371,'Work Order Master'!$S:$S,0)),Q1371)","v":"New"},{"$f":"IFERROR(INDEX('FRS CC Master'!A:A,MATCH(WORKORDERS!$Q1371*1,'FRS CC Master'!$C:$C,0)),WORKORDERS!$L1371)","v":"Cowichan Campus"},{"$f":"IFERROR(VLOOKUP($A1371,'Work Order Master'!$K:$Q,7,FALSE),\"Remove\")","v":"P"}]
["54601-1-1","PRC Minor Capital","Parked","54601-1","PRC Minor Capital","(blank)","4601","Powell River Campus - Initiatives","460","Powell River Campus Administration","460","Powell River Campus","(blank)","500","Capital - General","no",{"$f":"IFERROR(INDEX('Work Order Master'!$S:$S,MATCH(A1372,'Work Order Master'!$K:$K,0)),\"New\")","v":"New"},{"$f":"IFERROR(INDEX('Work Order Master'!T:T,MATCH(WORKORDERS!$Q1372,'Work Order Master'!$S:$S,0)),Q1372)","v":"New"},{"$f":"IFERROR(INDEX('FRS CC Master'!A:A,MATCH(WORKORDERS!$Q1372*1,'FRS CC Master'!$C:$C,0)),WORKORDERS!$L1372)","v":"Powell River Campus"},{"$f":"IFERROR(VLOOKUP($A1372,'Work Order Master'!$K:$Q,7,FALSE),\"Remove\")","v":"P"}]
["55001-1-1","SRCA Minor Capital","Parked","55001-1","SRCA Minor Capital","(blank)","5001","Research Initiatives","500","Scholarship, Research and Creative Activity","500","Scholarship, Research and Creative Activity","(blank)","500","Capital - General","no",{"$f":"IFERROR(INDEX('Work Order Master'!$S:$S,MATCH(A1373,'Work Order Master'!$K:$K,0)),\"New\")","v":"New"},{"$f":"IFERROR(INDEX('Work Order Master'!T:T,MATCH(WORKORDERS!$Q1373,'Work Order Master'!$S:$S,0)),Q1373)","v":"New"},{"$f":"IFERROR(INDEX('FRS CC Master'!A:A,MATCH(WORKORDERS!$Q1373*1,'FRS CC Master'!$C:$C,0)),WORKORDERS!$L1373)","v":"Scholarship, Research and Creative Activity"},{"$f":"IFERROR(VLOOKUP($A1373,'Work Order Master'!$K:$Q,7,FALSE),\"Remove\")","v":"P"}]
["55140-1-1","SRCA Lane CFI - BCKDF","Active","55140-1","SRCA CFI - Capital","(blank)","5140","Externally Funded Capital Projects","500","Scholarship, Research and Creative Activity","500","Scholarship, Research and Creative Activity","(blank)","500","Capital - General","no",{"$f":"IFERROR(INDEX('Work Order Master'!$S:$S,MATCH(A1374,'Work Order Master'!$K:$K,0)),\"New\")","v":9134},{"$f":"IFERROR(INDEX('Work Order Master'!T:T,MATCH(WORKORDERS!$Q1374,'Work Order Master'!$S:$S,0)),Q1374)","v":"LANE CFI - BCKDF EXP"},{"$f":"IFERROR(INDEX('FRS CC Master'!A:A,MATCH(WORKORDERS!$Q1374*1,'FRS CC Master'!$C:$C,0)),WORKORDERS!$L1374)","v":"Capital"},{"$f":"IFERROR(VLOOKUP($A1374,'Work Order Master'!$K:$Q,7,FALSE),\"Remove\")","v":"N"}]
["55140-1-2","SRCA Wager CFI","Active","55140-1","SRCA CFI - Capital","(blank)","5140","Externally Funded Capital Projects","500","Scholarship, Research and Creative Activity","500","Scholarship, Research and Creative Activity","(blank)","500","Capital - General","no",{"$f":"IFERROR(INDEX('Work Order Master'!$S:$S,MATCH(A1375,'Work Order Master'!$K:$K,0)),\"New\")","v":9023},{"$f":"IFERROR(INDEX('Work Order Master'!T:T,MATCH(WORKORDERS!$Q1375,'Work Order Master'!$S:$S,0)),Q1375)","v":"CFI - WAGER "},{"$f":"IFERROR(INDEX('FRS CC Master'!A:A,MATCH(WORKORDERS!$Q1375*1,'FRS CC Master'!$C:$C,0)),WORKORDERS!$L1375)","v":"Capital"},{"$f":"IFERROR(VLOOKUP($A1375,'Work Order Master'!$K:$Q,7,FALSE),\"Remove\")","v":"N"}]
["55140-1-3","SRCA Wood CFI","Active","55140-1","SRCA CFI - Capital","(blank)","5140","Externally Funded Capital Projects","500","Scholarship, Research and Creative Activity","500","Scholarship, Research and Creative Activity","(blank)","500","Capital - General","no",{"$f":"IFERROR(INDEX('Work Order Master'!$S:$S,MATCH(A1376,'Work Order Master'!$K:$K,0)),\"New\")","v":9024},{"$f":"IFERROR(INDEX('Work Order Master'!T:T,MATCH(WORKORDERS!$Q1376,'Work Order Master'!$S:$S,0)),Q1376)","v":"CFI - WOOD "},{"$f":"IFERROR(INDEX('FRS CC Master'!A:A,MATCH(WORKORDERS!$Q1376*1,'FRS CC Master'!$C:$C,0)),WORKORDERS!$L1376)","v":"Capital"},{"$f":"IFERROR(VLOOKUP($A1376,'Work Order Master'!$K:$Q,7,FALSE),\"Remove\")","v":"N"}]
["55140-1-4","SRCA Gill CFI - BCKDF","Active","55140-1","SRCA CFI - Capital","(blank)","5140","Externally Funded Capital Projects","500","Scholarship, Research and Creative Activity","500","Scholarship, Research and Creative Activity","(blank)","500","Capital - General","no",{"$f":"IFERROR(INDEX('Work Order Master'!$S:$S,MATCH(A1377,'Work Order Master'!$K:$K,0)),\"New\")","v":9131},{"$f":"IFERROR(INDEX('Work Order Master'!T:T,MATCH(WORKORDERS!$Q1377,'Work Order Master'!$S:$S,0)),Q1377)","v":"GILL CFI-BCKDF EXP "},{"$f":"IFERROR(INDEX('FRS CC Master'!A:A,MATCH(WORKORDERS!$Q1377*1,'FRS CC Master'!$C:$C,0)),WORKORDERS!$L1377)","v":"Capital"},{"$f":"IFERROR(VLOOKUP($A1377,'Work Order Master'!$K:$Q,7,FALSE),\"Remove\")","v":"N"}]
["55140-1-5","SRCA Russell CFI - BCKDF","Active","55140-1","SRCA CFI - Capital","(blank)","5140","Externally Funded Capital Projects","500","Scholarship, Research and Creative Activity","500","Scholarship, Research and Creative Activity","(blank)","500","Capital - General","no",{"$f":"IFERROR(INDEX('Work Order Master'!$S:$S,MATCH(A1378,'Work Order Master'!$K:$K,0)),\"New\")","v":9137},{"$f":"IFERROR(INDEX('Work Order Master'!T:T,MATCH(WORKORDERS!$Q1378,'Work Order Master'!$S:$S,0)),Q1378)","v":"RUSSELL CFI-BCKDF EXP"},{"$f":"IFERROR(INDEX('FRS CC Master'!A:A,MATCH(WORKORDERS!$Q1378*1,'FRS CC Master'!$C:$C,0)),WORKORDERS!$L1378)","v":"Capital"},{"$f":"IFERROR(VLOOKUP($A1378,'Work Order Master'!$K:$Q,7,FALSE),\"Remove\")","v":"N"}]
["55140-1-6","SRCA Green CFI","Active","55140-1","SRCA CFI - Capital","(blank)","5140","Externally Funded Capital Projects","500","Scholarship, Research and Creative Activity","500","Scholarship, Research and Creative Activity","(blank)","500","Capital - General","no",{"$f":"IFERROR(INDEX('Work Order Master'!$S:$S,MATCH(A1379,'Work Order Master'!$K:$K,0)),\"New\")","v":9012},{"$f":"IFERROR(INDEX('Work Order Master'!T:T,MATCH(WORKORDERS!$Q1379,'Work Order Master'!$S:$S,0)),Q1379)","v":"CFI EXPENSES - GREEN"},{"$f":"IFERROR(INDEX('FRS CC Master'!A:A,MATCH(WORKORDERS!$Q1379*1,'FRS CC Master'!$C:$C,0)),WORKORDERS!$L1379)","v":"Capital"},{"$f":"IFERROR(VLOOKUP($A1379,'Work Order Master'!$K:$Q,7,FALSE),\"Remove\")","v":"N"}]
["55140-1-7","SRCA Janes CFI - BCKDF","Active","55140-1","SRCA CFI - Capital","(blank)","5140","Externally Funded Capital Projects","500","Scholarship, Research and Creative Activity","500","Scholarship, Research and Creative Activity","(blank)","500","Capital - General","no",{"$f":"IFERROR(INDEX('Work Order Master'!$S:$S,MATCH(A1380,'Work Order Master'!$K:$K,0)),\"New\")","v":9140},{"$f":"IFERROR(INDEX('Work Order Master'!T:T,MATCH(WORKORDERS!$Q1380,'Work Order Master'!$S:$S,0)),Q1380)","v":"JANES - CFI-BCKDF EXP"},{"$f":"IFERROR(INDEX('FRS CC Master'!A:A,MATCH(WORKORDERS!$Q1380*1,'FRS CC Master'!$C:$C,0)),WORKORDERS!$L1380)","v":"Capital"},{"$f":"IFERROR(VLOOKUP($A1380,'Work Order Master'!$K:$Q,7,FALSE),\"Remove\")","v":"N"}]
["55140-1-8","SRCA McCunn CFI - BCKDF","Active","55140-1","SRCA CFI - Capital","(blank)","5140","Externally Funded Capital Projects","500","Scholarship, Research and Creative Activity","500","Scholarship, Research and Creative Activity","(blank)","500","Capital - General","no",{"$f":"IFERROR(INDEX('Work Order Master'!$S:$S,MATCH(A1381,'Work Order Master'!$K:$K,0)),\"New\")","v":9143},{"$f":"IFERROR(INDEX('Work Order Master'!T:T,MATCH(WORKORDERS!$Q1381,'Work Order Master'!$S:$S,0)),Q1381)","v":"MCCUNN CFI-BCKDF EXP "},{"$f":"IFERROR(INDEX('FRS CC Master'!A:A,MATCH(WORKORDERS!$Q1381*1,'FRS CC Master'!$C:$C,0)),WORKORDERS!$L1381)","v":"Capital"},{"$f":"IFERROR(VLOOKUP($A1381,'Work Order Master'!$K:$Q,7,FALSE),\"Remove\")","v":"N"}]
["55140-2-1","SRCA Ministry of Health - Gill 5920","Active","55140-2","SRCA Capital - Other","(blank)","5140","Externally Funded Capital Projects","500","Scholarship, Research and Creative Activity","500","Scholarship, Research and Creative Activity","(blank)","500","Capital - General","no",{"$f":"IFERROR(INDEX('Work Order Master'!$S:$S,MATCH(A1382,'Work Order Master'!$K:$K,0)),\"New\")","v":9130},{"$f":"IFERROR(INDEX('Work Order Master'!T:T,MATCH(WORKORDERS!$Q1382,'Work Order Master'!$S:$S,0)),Q1382)","v":"MIN HLTH - GILL 5920"},{"$f":"IFERROR(INDEX('FRS CC Master'!A:A,MATCH(WORKORDERS!$Q1382*1,'FRS CC Master'!$C:$C,0)),WORKORDERS!$L1382)","v":"Capital"},{"$f":"IFERROR(VLOOKUP($A1382,'Work Order Master'!$K:$Q,7,FALSE),\"Remove\")","v":"N"}]
["55501-1-1","SA Minor Capital","Parked","55501-1","SA Minor Capital","(blank)","5501","Student Affairs Division - Initiatives","550","Student Affairs Division","550","Student Affairs","(blank)","500","Capital - General","no",{"$f":"IFERROR(INDEX('Work Order Master'!$S:$S,MATCH(A1383,'Work Order Master'!$K:$K,0)),\"New\")","v":"New"},{"$f":"IFERROR(INDEX('Work Order Master'!T:T,MATCH(WORKORDERS!$Q1383,'Work Order Master'!$S:$S,0)),Q1383)","v":"New"},{"$f":"IFERROR(INDEX('FRS CC Master'!A:A,MATCH(WORKORDERS!$Q1383*1,'FRS CC Master'!$C:$C,0)),WORKORDERS!$L1383)","v":"Student Affairs"},{"$f":"IFERROR(VLOOKUP($A1383,'Work Order Master'!$K:$Q,7,FALSE),\"Remove\")","v":"P"}]
["56010-1-1","CFOVPA Minor Capital","Parked","56010-1","CFOVPA Minor Capital","(blank)","6010","CFO VPA Office - Initiatives","600","CFO and VP Administration - Office","600","CFO and VP Administration - Office","(blank)","500","Capital - General","no",{"$f":"IFERROR(INDEX('Work Order Master'!$S:$S,MATCH(A1384,'Work Order Master'!$K:$K,0)),\"New\")","v":"New"},{"$f":"IFERROR(INDEX('Work Order Master'!T:T,MATCH(WORKORDERS!$Q1384,'Work Order Master'!$S:$S,0)),Q1384)","v":"New"},{"$f":"IFERROR(INDEX('FRS CC Master'!A:A,MATCH(WORKORDERS!$Q1384*1,'FRS CC Master'!$C:$C,0)),WORKORDERS!$L1384)","v":"CFO and VP Administration - Office"},{"$f":"IFERROR(VLOOKUP($A1384,'Work Order Master'!$K:$Q,7,FALSE),\"Remove\")","v":"P"}]
["56101-1-1","IT Minor Capital","Parked","56101-1","IT Minor Capital","(blank)","6101","Information Technology - Initatives","610","Information Technology Services","610","Information Technology Services","(blank)","500","Capital - General","no",{"$f":"IFERROR(INDEX('Work Order Master'!$S:$S,MATCH(A1385,'Work Order Master'!$K:$K,0)),\"New\")","v":"New"},{"$f":"IFERROR(INDEX('Work Order Master'!T:T,MATCH(WORKORDERS!$Q1385,'Work Order Master'!$S:$S,0)),Q1385)","v":"New"},{"$f":"IFERROR(INDEX('FRS CC Master'!A:A,MATCH(WORKORDERS!$Q1385*1,'FRS CC Master'!$C:$C,0)),WORKORDERS!$L1385)","v":"Information Technology Services"},{"$f":"IFERROR(VLOOKUP($A1385,'Work Order Master'!$K:$Q,7,FALSE),\"Remove\")","v":"P"}]
["56101-2-1","IT CRP Capital Projects - Nelvana","Active","56101-2","IT CRP Capital Projects","(blank)","6101","Information Technology - Initatives","610","Information Technology Services","610","Information Technology Services","(blank)","500","Capital - General","no",{"$f":"IFERROR(INDEX('Work Order Master'!$S:$S,MATCH(A1386,'Work Order Master'!$K:$K,0)),\"New\")","v":9526},{"$f":"IFERROR(INDEX('Work Order Master'!T:T,MATCH(WORKORDERS!$Q1386,'Work Order Master'!$S:$S,0)),Q1386)","v":"NELVANA - AV"},{"$f":"IFERROR(INDEX('FRS CC Master'!A:A,MATCH(WORKORDERS!$Q1386*1,'FRS CC Master'!$C:$C,0)),WORKORDERS!$L1386)","v":"Capital"},{"$f":"IFERROR(VLOOKUP($A1386,'Work Order Master'!$K:$Q,7,FALSE),\"Remove\")","v":"N"}]
["56101-2-2","IT CRP Capital Projects - Virtual Desktop Expansion","Active","56101-2","IT CRP Capital Projects","(blank)","6101","Information Technology - Initatives","610","Information Technology Services","610","Information Technology Services","(blank)","500","Capital - General","no",{"$f":"IFERROR(INDEX('Work Order Master'!$S:$S,MATCH(A1387,'Work Order Master'!$K:$K,0)),\"New\")","v":9062},{"$f":"IFERROR(INDEX('Work Order Master'!T:T,MATCH(WORKORDERS!$Q1387,'Work Order Master'!$S:$S,0)),Q1387)","v":"ITS-VRTUAL DSKTP EXPNSION "},{"$f":"IFERROR(INDEX('FRS CC Master'!A:A,MATCH(WORKORDERS!$Q1387*1,'FRS CC Master'!$C:$C,0)),WORKORDERS!$L1387)","v":"Capital"},{"$f":"IFERROR(VLOOKUP($A1387,'Work Order Master'!$K:$Q,7,FALSE),\"Remove\")","v":"N"}]
["56110-1-1","IT Ops Major Projects - Borealis","Active","56110-1","IT Ops Major Projects - Borealis","(blank)","6110","IT Operations","611","IT Operations","610","Information Technology Services","(blank)","500","Capital - General","no",{"$f":"IFERROR(INDEX('Work Order Master'!$S:$S,MATCH(A1388,'Work Order Master'!$K:$K,0)),\"New\")","v":9081},{"$f":"IFERROR(INDEX('Work Order Master'!T:T,MATCH(WORKORDERS!$Q1388,'Work Order Master'!$S:$S,0)),Q1388)","v":"BOREALIS NR"},{"$f":"IFERROR(INDEX('FRS CC Master'!A:A,MATCH(WORKORDERS!$Q1388*1,'FRS CC Master'!$C:$C,0)),WORKORDERS!$L1388)","v":"Capital"},{"$f":"IFERROR(VLOOKUP($A1388,'Work Order Master'!$K:$Q,7,FALSE),\"Remove\")","v":"N"}]
["56180-1-1","IT ES Major Projects - Aurora","Active","56180-1","IT ES Major Projects - Aurora","(blank)","6180","Enterprise Systems","618","Enterprise Systems","610","Information Technology Services","(blank)","500","Capital - General","no",{"$f":"IFERROR(INDEX('Work Order Master'!$S:$S,MATCH(A1389,'Work Order Master'!$K:$K,0)),\"New\")","v":9150},{"$f":"IFERROR(INDEX('Work Order Master'!T:T,MATCH(WORKORDERS!$Q1389,'Work Order Master'!$S:$S,0)),Q1389)","v":"AURORA-EXP"},{"$f":"IFERROR(INDEX('FRS CC Master'!A:A,MATCH(WORKORDERS!$Q1389*1,'FRS CC Master'!$C:$C,0)),WORKORDERS!$L1389)","v":"Capital"},{"$f":"IFERROR(VLOOKUP($A1389,'Work Order Master'!$K:$Q,7,FALSE),\"Remove\")","v":"N"}]
["56401-1-1","FSCD Minor Capital","Parked","56401-1","FSCD Minor Capital","(blank)","6401","Facilities and Ancillary Services - Initiatives","640","Facilities and Ancillary Services","640","Facilities Services and Campus Development","(blank)","500","Capital - General","no",{"$f":"IFERROR(INDEX('Work Order Master'!$S:$S,MATCH(A1390,'Work Order Master'!$K:$K,0)),\"New\")","v":"New"},{"$f":"IFERROR(INDEX('Work Order Master'!T:T,MATCH(WORKORDERS!$Q1390,'Work Order Master'!$S:$S,0)),Q1390)","v":"New"},{"$f":"IFERROR(INDEX('FRS CC Master'!A:A,MATCH(WORKORDERS!$Q1390*1,'FRS CC Master'!$C:$C,0)),WORKORDERS!$L1390)","v":"Facilities Services and Campus Development"},{"$f":"IFERROR(VLOOKUP($A1390,'Work Order Master'!$K:$Q,7,FALSE),\"Remove\")","v":"P"}]
["56500-1-1","FSCD FMP - 2122-020 B180 Classroom Upgrades","Active","56500-1","FSCD Facilities Managed Projects","(blank)","6500","Facilities Managed Projects","640","Facilities and Ancillary Services","640","Facilities Services and Campus Development","(blank)","550","Capital FMP - Administration","no",{"$f":"IFERROR(INDEX('Work Order Master'!$S:$S,MATCH(A1391,'Work Order Master'!$K:$K,0)),\"New\")","v":9528},{"$f":"IFERROR(INDEX('Work Order Master'!T:T,MATCH(WORKORDERS!$Q1391,'Work Order Master'!$S:$S,0)),Q1391)","v":"2122-020 B180 CLASSROOM"},{"$f":"IFERROR(INDEX('FRS CC Master'!A:A,MATCH(WORKORDERS!$Q1391*1,'FRS CC Master'!$C:$C,0)),WORKORDERS!$L1391)","v":"Capital"},{"$f":"IFERROR(VLOOKUP($A1391,'Work Order Master'!$K:$Q,7,FALSE),\"Remove\")","v":"N"}]
["56500-1-2","FSCD FMP - Facility Student Accomodations","Active","56500-1","FSCD Facilities Managed Projects","(blank)","6500","Facilities Managed Projects","640","Facilities and Ancillary Services","640","Facilities Services and Campus Development","(blank)","550","Capital FMP - Administration","no",{"$f":"IFERROR(INDEX('Work Order Master'!$S:$S,MATCH(A1392,'Work Order Master'!$K:$K,0)),\"New\")","v":9460},{"$f":"IFERROR(INDEX('Work Order Master'!T:T,MATCH(WORKORDERS!$Q1392,'Work Order Master'!$S:$S,0)),Q1392)","v":"FACILITY STDNT ACCOMDTION"},{"$f":"IFERROR(INDEX('FRS CC Master'!A:A,MATCH(WORKORDERS!$Q1392*1,'FRS CC Master'!$C:$C,0)),WORKORDERS!$L1392)","v":"Capital"},{"$f":"IFERROR(VLOOKUP($A1392,'Work Order Master'!$K:$Q,7,FALSE),\"Remove\")","v":"N"}]
["56500-1-3","FSCD FMP - Biology Lab Repairs","Active","56500-1","FSCD Facilities Managed Projects","(blank)","6500","Facilities Managed Projects","640","Facilities and Ancillary Services","640","Facilities Services and Campus Development","(blank)","550","Capital FMP - Administration","no",{"$f":"IFERROR(INDEX('Work Order Master'!$S:$S,MATCH(A1393,'Work Order Master'!$K:$K,0)),\"New\")","v":9531},{"$f":"IFERROR(INDEX('Work Order Master'!T:T,MATCH(WORKORDERS!$Q1393,'Work Order Master'!$S:$S,0)),Q1393)","v":"2122-061 BIO LAB REPAIRS "},{"$f":"IFERROR(INDEX('FRS CC Master'!A:A,MATCH(WORKORDERS!$Q1393*1,'FRS CC Master'!$C:$C,0)),WORKORDERS!$L1393)","v":"Capital"},{"$f":"IFERROR(VLOOKUP($A1393,'Work Order Master'!$K:$Q,7,FALSE),\"Remove\")","v":"N"}]
["56550-1-1","FSCD CNP - Administration","Active","56550-1","FSCD Carbon Neutral Capital Projects","(blank)","6550","Carbon Neutral Capital Projects","640","Facilities and Ancillary Services","640","Facilities Services and Campus Development","(blank)","550","Capital FMP - Administration","no",{"$f":"IFERROR(INDEX('Work Order Master'!$S:$S,MATCH(A1394,'Work Order Master'!$K:$K,0)),\"New\")","v":9029},{"$f":"IFERROR(INDEX('Work Order Master'!T:T,MATCH(WORKORDERS!$Q1394,'Work Order Master'!$S:$S,0)),Q1394)","v":"CARBON NEUTRAL PROJECTREV "},{"$f":"IFERROR(INDEX('FRS CC Master'!A:A,MATCH(WORKORDERS!$Q1394*1,'FRS CC Master'!$C:$C,0)),WORKORDERS!$L1394)","v":"Capital"},{"$f":"IFERROR(VLOOKUP($A1394,'Work Order Master'!$K:$Q,7,FALSE),\"Remove\")","v":"N"}]
["56550-1-2","FSCD CNP - 1920-023 B300 Refrigerator","Active","56550-1","FSCD Carbon Neutral Capital Projects","(blank)","6550","Carbon Neutral Capital Projects","640","Facilities and Ancillary Services","640","Facilities Services and Campus Development","(blank)","550","Capital FMP - Administration","no",{"$f":"IFERROR(INDEX('Work Order Master'!$S:$S,MATCH(A1395,'Work Order Master'!$K:$K,0)),\"New\")","v":9380},{"$f":"IFERROR(INDEX('Work Order Master'!T:T,MATCH(WORKORDERS!$Q1395,'Work Order Master'!$S:$S,0)),Q1395)","v":"1920-023 B300 REFRIGERATR "},{"$f":"IFERROR(INDEX('FRS CC Master'!A:A,MATCH(WORKORDERS!$Q1395*1,'FRS CC Master'!$C:$C,0)),WORKORDERS!$L1395)","v":"Capital"},{"$f":"IFERROR(VLOOKUP($A1395,'Work Order Master'!$K:$Q,7,FALSE),\"Remove\")","v":"N"}]
["56550-1-3","FSCD CNP - 2122-004 Fleet EV Charge Stations","Active","56550-1","FSCD Carbon Neutral Capital Projects","(blank)","6550","Carbon Neutral Capital Projects","640","Facilities and Ancillary Services","640","Facilities Services and Campus Development","(blank)","550","Capital FMP - Administration","no",{"$f":"IFERROR(INDEX('Work Order Master'!$S:$S,MATCH(A1396,'Work Order Master'!$K:$K,0)),\"New\")","v":"New"},{"$f":"IFERROR(INDEX('Work Order Master'!T:T,MATCH(WORKORDERS!$Q1396,'Work Order Master'!$S:$S,0)),Q1396)","v":"New"},{"$f":"IFERROR(INDEX('FRS CC Master'!A:A,MATCH(WORKORDERS!$Q1396*1,'FRS CC Master'!$C:$C,0)),WORKORDERS!$L1396)","v":"Facilities Services and Campus Development"},{"$f":"IFERROR(VLOOKUP($A1396,'Work Order Master'!$K:$Q,7,FALSE),\"Remove\")","v":"N"}]
["56575-1-1","FSCD BI - Day Care - Exp","Active","56575-1","FSCD Buildings and Infrastructure","(blank)","6575","Buildings and Infrastructure","640","Facilities and Ancillary Services","640","Facilities Services and Campus Development","(blank)","550","Capital FMP - Administration","no",{"$f":"IFERROR(INDEX('Work Order Master'!$S:$S,MATCH(A1397,'Work Order Master'!$K:$K,0)),\"New\")","v":9077},{"$f":"IFERROR(INDEX('Work Order Master'!T:T,MATCH(WORKORDERS!$Q1397,'Work Order Master'!$S:$S,0)),Q1397)","v":"DAY CARE EXP"},{"$f":"IFERROR(INDEX('FRS CC Master'!A:A,MATCH(WORKORDERS!$Q1397*1,'FRS CC Master'!$C:$C,0)),WORKORDERS!$L1397)","v":"Capital"},{"$f":"IFERROR(VLOOKUP($A1397,'Work Order Master'!$K:$Q,7,FALSE),\"Remove\")","v":"N"}]
["56575-1-2","FSCD BI - Aboriginal Gathering Phase II","Active","56575-1","FSCD Buildings and Infrastructure","(blank)","6575","Buildings and Infrastructure","640","Facilities and Ancillary Services","640","Facilities Services and Campus Development","(blank)","550","Capital FMP - Administration","no",{"$f":"IFERROR(INDEX('Work Order Master'!$S:$S,MATCH(A1398,'Work Order Master'!$K:$K,0)),\"New\")","v":9100},{"$f":"IFERROR(INDEX('Work Order Master'!T:T,MATCH(WORKORDERS!$Q1398,'Work Order Master'!$S:$S,0)),Q1398)","v":"ABOR. GATHERING PL. PHASE 2"},{"$f":"IFERROR(INDEX('FRS CC Master'!A:A,MATCH(WORKORDERS!$Q1398*1,'FRS CC Master'!$C:$C,0)),WORKORDERS!$L1398)","v":"Capital"},{"$f":"IFERROR(VLOOKUP($A1398,'Work Order Master'!$K:$Q,7,FALSE),\"Remove\")","v":"N"}]
["56575-1-3","FSCD BI - LIB - Expansion (Buildings & Equipment)","Active","56575-1","FSCD Buildings and Infrastructure","(blank)","6575","Buildings and Infrastructure","640","Facilities and Ancillary Services","640","Facilities Services and Campus Development","(blank)","550","Capital FMP - Administration","no",{"$f":"IFERROR(INDEX('Work Order Master'!$S:$S,MATCH(A1399,'Work Order Master'!$K:$K,0)),\"New\")","v":9000},{"$f":"IFERROR(INDEX('Work Order Master'!T:T,MATCH(WORKORDERS!$Q1399,'Work Order Master'!$S:$S,0)),Q1399)","v":"LIB - EXPANSION"},{"$f":"IFERROR(INDEX('FRS CC Master'!A:A,MATCH(WORKORDERS!$Q1399*1,'FRS CC Master'!$C:$C,0)),WORKORDERS!$L1399)","v":"Capital"},{"$f":"IFERROR(VLOOKUP($A1399,'Work Order Master'!$K:$Q,7,FALSE),\"Remove\")","v":"N"}]
["56575-1-4","FSCD BI - 1819-006 Ext Corr Protect","Active","56575-1","FSCD Buildings and Infrastructure","(blank)","6575","Buildings and Infrastructure","640","Facilities and Ancillary Services","640","Facilities Services and Campus Development","(blank)","550","Capital FMP - Administration","no",{"$f":"IFERROR(INDEX('Work Order Master'!$S:$S,MATCH(A1400,'Work Order Master'!$K:$K,0)),\"New\")","v":9303},{"$f":"IFERROR(INDEX('Work Order Master'!T:T,MATCH(WORKORDERS!$Q1400,'Work Order Master'!$S:$S,0)),Q1400)","v":"1819-006 EXT CORR PROTECT"},{"$f":"IFERROR(INDEX('FRS CC Master'!A:A,MATCH(WORKORDERS!$Q1400*1,'FRS CC Master'!$C:$C,0)),WORKORDERS!$L1400)","v":"Capital"},{"$f":"IFERROR(VLOOKUP($A1400,'Work Order Master'!$K:$Q,7,FALSE),\"Remove\")","v":"N"}]
["56575-1-5","FSCD BI - 1819-010 Ductwork Reseal","Active","56575-1","FSCD Buildings and Infrastructure","(blank)","6575","Buildings and Infrastructure","640","Facilities and Ancillary Services","640","Facilities Services and Campus Development","(blank)","550","Capital FMP - Administration","no",{"$f":"IFERROR(INDEX('Work Order Master'!$S:$S,MATCH(A1401,'Work Order Master'!$K:$K,0)),\"New\")","v":9307},{"$f":"IFERROR(INDEX('Work Order Master'!T:T,MATCH(WORKORDERS!$Q1401,'Work Order Master'!$S:$S,0)),Q1401)","v":"1819-010 DUCTWORK RESEAL"},{"$f":"IFERROR(INDEX('FRS CC Master'!A:A,MATCH(WORKORDERS!$Q1401*1,'FRS CC Master'!$C:$C,0)),WORKORDERS!$L1401)","v":"Capital"},{"$f":"IFERROR(VLOOKUP($A1401,'Work Order Master'!$K:$Q,7,FALSE),\"Remove\")","v":"N"}]
["56600-1-1","FSCD RC - 1920-003 LED EXT Lighting","Active","56600-1","FSCD Routine Capital","(blank)","6600","Routine Capital","640","Facilities and Ancillary Services","640","Facilities Services and Campus Development","(blank)","550","Capital FMP - Administration","no",{"$f":"IFERROR(INDEX('Work Order Master'!$S:$S,MATCH(A1402,'Work Order Master'!$K:$K,0)),\"New\")","v":9333},{"$f":"IFERROR(INDEX('Work Order Master'!T:T,MATCH(WORKORDERS!$Q1402,'Work Order Master'!$S:$S,0)),Q1402)","v":"1920-003 LED EXT LIGHTING "},{"$f":"IFERROR(INDEX('FRS CC Master'!A:A,MATCH(WORKORDERS!$Q1402*1,'FRS CC Master'!$C:$C,0)),WORKORDERS!$L1402)","v":"Capital"},{"$f":"IFERROR(VLOOKUP($A1402,'Work Order Master'!$K:$Q,7,FALSE),\"Remove\")","v":"N"}]
["56600-1-10","FSCD RC - 2122-021 Food Services Reno","Active","56600-1","FSCD Routine Capital","(blank)","6600","Routine Capital","640","Facilities and Ancillary Services","640","Facilities Services and Campus Development","(blank)","550","Capital FMP - Administration","no",{"$f":"IFERROR(INDEX('Work Order Master'!$S:$S,MATCH(A1403,'Work Order Master'!$K:$K,0)),\"New\")","v":9517},{"$f":"IFERROR(INDEX('Work Order Master'!T:T,MATCH(WORKORDERS!$Q1403,'Work Order Master'!$S:$S,0)),Q1403)","v":"2122-021 FOOD SERV RENO"},{"$f":"IFERROR(INDEX('FRS CC Master'!A:A,MATCH(WORKORDERS!$Q1403*1,'FRS CC Master'!$C:$C,0)),WORKORDERS!$L1403)","v":"Capital"},{"$f":"IFERROR(VLOOKUP($A1403,'Work Order Master'!$K:$Q,7,FALSE),\"Remove\")","v":"N"}]
["56600-1-11","FSCD RC - 2122-017 B300 Mechanical","Active","56600-1","FSCD Routine Capital","(blank)","6600","Routine Capital","640","Facilities and Ancillary Services","640","Facilities Services and Campus Development","(blank)","550","Capital FMP - Administration","no",{"$f":"IFERROR(INDEX('Work Order Master'!$S:$S,MATCH(A1404,'Work Order Master'!$K:$K,0)),\"New\")","v":9525},{"$f":"IFERROR(INDEX('Work Order Master'!T:T,MATCH(WORKORDERS!$Q1404,'Work Order Master'!$S:$S,0)),Q1404)","v":"2122-017 B300 MECHANICAL "},{"$f":"IFERROR(INDEX('FRS CC Master'!A:A,MATCH(WORKORDERS!$Q1404*1,'FRS CC Master'!$C:$C,0)),WORKORDERS!$L1404)","v":"Capital"},{"$f":"IFERROR(VLOOKUP($A1404,'Work Order Master'!$K:$Q,7,FALSE),\"Remove\")","v":"N"}]
["56600-1-12","FSCD RC - 2122-006 Classroom Refurbish","Active","56600-1","FSCD Routine Capital","(blank)","6600","Routine Capital","640","Facilities and Ancillary Services","640","Facilities Services and Campus Development","(blank)","550","Capital FMP - Administration","no",{"$f":"IFERROR(INDEX('Work Order Master'!$S:$S,MATCH(A1405,'Work Order Master'!$K:$K,0)),\"New\")","v":9527},{"$f":"IFERROR(INDEX('Work Order Master'!T:T,MATCH(WORKORDERS!$Q1405,'Work Order Master'!$S:$S,0)),Q1405)","v":"2122-006 CLASSROOM REFURB "},{"$f":"IFERROR(INDEX('FRS CC Master'!A:A,MATCH(WORKORDERS!$Q1405*1,'FRS CC Master'!$C:$C,0)),WORKORDERS!$L1405)","v":"Capital"},{"$f":"IFERROR(VLOOKUP($A1405,'Work Order Master'!$K:$Q,7,FALSE),\"Remove\")","v":"N"}]
["56600-1-13","FSCD RC - 1920-102 B610 PR HCA Lab","Active","56600-1","FSCD Routine Capital","(blank)","6600","Routine Capital","640","Facilities and Ancillary Services","640","Facilities Services and Campus Development","(blank)","550","Capital FMP - Administration","no",{"$f":"IFERROR(INDEX('Work Order Master'!$S:$S,MATCH(A1406,'Work Order Master'!$K:$K,0)),\"New\")","v":9518},{"$f":"IFERROR(INDEX('Work Order Master'!T:T,MATCH(WORKORDERS!$Q1406,'Work Order Master'!$S:$S,0)),Q1406)","v":"1920-102 B610 PR HCA LAB"},{"$f":"IFERROR(INDEX('FRS CC Master'!A:A,MATCH(WORKORDERS!$Q1406*1,'FRS CC Master'!$C:$C,0)),WORKORDERS!$L1406)","v":"Capital"},{"$f":"IFERROR(VLOOKUP($A1406,'Work Order Master'!$K:$Q,7,FALSE),\"Remove\")","v":"N"}]
["56600-1-14","FSCD RC - 2021-126 B160 Geoexchange","Active","56600-1","FSCD Routine Capital","(blank)","6600","Routine Capital","640","Facilities and Ancillary Services","640","Facilities Services and Campus Development","(blank)","550","Capital FMP - Administration","no",{"$f":"IFERROR(INDEX('Work Order Master'!$S:$S,MATCH(A1407,'Work Order Master'!$K:$K,0)),\"New\")","v":9519},{"$f":"IFERROR(INDEX('Work Order Master'!T:T,MATCH(WORKORDERS!$Q1407,'Work Order Master'!$S:$S,0)),Q1407)","v":"2021-126 B160 GEOEXCHANGE "},{"$f":"IFERROR(INDEX('FRS CC Master'!A:A,MATCH(WORKORDERS!$Q1407*1,'FRS CC Master'!$C:$C,0)),WORKORDERS!$L1407)","v":"Capital"},{"$f":"IFERROR(VLOOKUP($A1407,'Work Order Master'!$K:$Q,7,FALSE),\"Remove\")","v":"N"}]
["56600-1-15","FSCD RC - 2122-009 B305 Washrooms","Active","56600-1","FSCD Routine Capital","(blank)","6600","Routine Capital","640","Facilities and Ancillary Services","640","Facilities Services and Campus Development","(blank)","550","Capital FMP - Administration","no",{"$f":"IFERROR(INDEX('Work Order Master'!$S:$S,MATCH(A1408,'Work Order Master'!$K:$K,0)),\"New\")","v":9521},{"$f":"IFERROR(INDEX('Work Order Master'!T:T,MATCH(WORKORDERS!$Q1408,'Work Order Master'!$S:$S,0)),Q1408)","v":"2122-009 B305 WASHROOMS "},{"$f":"IFERROR(INDEX('FRS CC Master'!A:A,MATCH(WORKORDERS!$Q1408*1,'FRS CC Master'!$C:$C,0)),WORKORDERS!$L1408)","v":"Capital"},{"$f":"IFERROR(VLOOKUP($A1408,'Work Order Master'!$K:$Q,7,FALSE),\"Remove\")","v":"N"}]
["56600-1-16","FSCD RC - 2122-011 B355 Lecture Theatre","Active","56600-1","FSCD Routine Capital","(blank)","6600","Routine Capital","640","Facilities and Ancillary Services","640","Facilities Services and Campus Development","(blank)","550","Capital FMP - Administration","no",{"$f":"IFERROR(INDEX('Work Order Master'!$S:$S,MATCH(A1409,'Work Order Master'!$K:$K,0)),\"New\")","v":9522},{"$f":"IFERROR(INDEX('Work Order Master'!T:T,MATCH(WORKORDERS!$Q1409,'Work Order Master'!$S:$S,0)),Q1409)","v":"2122-011 B355 LEC THEATRE "},{"$f":"IFERROR(INDEX('FRS CC Master'!A:A,MATCH(WORKORDERS!$Q1409*1,'FRS CC Master'!$C:$C,0)),WORKORDERS!$L1409)","v":"Capital"},{"$f":"IFERROR(VLOOKUP($A1409,'Work Order Master'!$K:$Q,7,FALSE),\"Remove\")","v":"N"}]
["56600-1-17","FSCD RC - 2122-013 Library Courtyard","Active","56600-1","FSCD Routine Capital","(blank)","6600","Routine Capital","640","Facilities and Ancillary Services","640","Facilities Services and Campus Development","(blank)","550","Capital FMP - Administration","no",{"$f":"IFERROR(INDEX('Work Order Master'!$S:$S,MATCH(A1410,'Work Order Master'!$K:$K,0)),\"New\")","v":9523},{"$f":"IFERROR(INDEX('Work Order Master'!T:T,MATCH(WORKORDERS!$Q1410,'Work Order Master'!$S:$S,0)),Q1410)","v":"2122-013 LIB COURTYARD  "},{"$f":"IFERROR(INDEX('FRS CC Master'!A:A,MATCH(WORKORDERS!$Q1410*1,'FRS CC Master'!$C:$C,0)),WORKORDERS!$L1410)","v":"Capital"},{"$f":"IFERROR(VLOOKUP($A1410,'Work Order Master'!$K:$Q,7,FALSE),\"Remove\")","v":"N"}]
["56600-1-18","FSCD RC - 2021-103 Deck Repair","Active","56600-1","FSCD Routine Capital","(blank)","6600","Routine Capital","640","Facilities and Ancillary Services","640","Facilities Services and Campus Development","(blank)","550","Capital FMP - Administration","no",{"$f":"IFERROR(INDEX('Work Order Master'!$S:$S,MATCH(A1411,'Work Order Master'!$K:$K,0)),\"New\")","v":9524},{"$f":"IFERROR(INDEX('Work Order Master'!T:T,MATCH(WORKORDERS!$Q1411,'Work Order Master'!$S:$S,0)),Q1411)","v":"2021-103 DECK REPAIR  "},{"$f":"IFERROR(INDEX('FRS CC Master'!A:A,MATCH(WORKORDERS!$Q1411*1,'FRS CC Master'!$C:$C,0)),WORKORDERS!$L1411)","v":"Capital"},{"$f":"IFERROR(VLOOKUP($A1411,'Work Order Master'!$K:$Q,7,FALSE),\"Remove\")","v":"N"}]
["56600-1-19","FSCD RC - 2122-021 COVID Mechanical","Active","56600-1","FSCD Routine Capital","(blank)","6600","Routine Capital","640","Facilities and Ancillary Services","640","Facilities Services and Campus Development","(blank)","550","Capital FMP - Administration",{"$f":"IF(OR(A1412=A1411,A1412=A1413),\"yes\",\"no\")","v":"no"},{"$f":"IFERROR(INDEX('Work Order Master'!$S:$S,MATCH(A1412,'Work Order Master'!$K:$K,0)),\"New\")","v":9529},{"$f":"IFERROR(INDEX('Work Order Master'!T:T,MATCH(WORKORDERS!$Q1412,'Work Order Master'!$S:$S,0)),Q1412)","v":"2122-021 COVID MECHANICAL "},{"$f":"IFERROR(INDEX('FRS CC Master'!A:A,MATCH(WORKORDERS!$Q1412*1,'FRS CC Master'!$C:$C,0)),WORKORDERS!$L1412)","v":"Capital"},{"$f":"IFERROR(VLOOKUP($A1412,'Work Order Master'!$K:$Q,7,FALSE),\"Remove\")","v":"N"}]
["56600-1-2","FSCD RC - 1920-015 B356 HVAC Replacement","Active","56600-1","FSCD Routine Capital","(blank)","6600","Routine Capital","640","Facilities and Ancillary Services","640","Facilities Services and Campus Development","(blank)","550","Capital FMP - Administration","no",{"$f":"IFERROR(INDEX('Work Order Master'!$S:$S,MATCH(A1413,'Work Order Master'!$K:$K,0)),\"New\")","v":9341},{"$f":"IFERROR(INDEX('Work Order Master'!T:T,MATCH(WORKORDERS!$Q1413,'Work Order Master'!$S:$S,0)),Q1413)","v":"1920-015 B356 HVAC RPLCE "},{"$f":"IFERROR(INDEX('FRS CC Master'!A:A,MATCH(WORKORDERS!$Q1413*1,'FRS CC Master'!$C:$C,0)),WORKORDERS!$L1413)","v":"Capital"},{"$f":"IFERROR(VLOOKUP($A1413,'Work Order Master'!$K:$Q,7,FALSE),\"Remove\")","v":"N"}]
["56600-1-20","FSCD RC - 1920-029 Powell River Parking Lot Resurfacing","Active","56600-1","FSCD Routine Capital","(blank)","6600","Routine Capital","640","Facilities and Ancillary Services","640","Facilities Services and Campus Development","(blank)","550","Capital FMP - Administration","no",{"$f":"IFERROR(INDEX('Work Order Master'!$S:$S,MATCH(A1414,'Work Order Master'!$K:$K,0)),\"New\")","v":9530},{"$f":"IFERROR(INDEX('Work Order Master'!T:T,MATCH(WORKORDERS!$Q1414,'Work Order Master'!$S:$S,0)),Q1414)","v":"1920-029 PR PARKING LOT"},{"$f":"IFERROR(INDEX('FRS CC Master'!A:A,MATCH(WORKORDERS!$Q1414*1,'FRS CC Master'!$C:$C,0)),WORKORDERS!$L1414)","v":"Capital"},{"$f":"IFERROR(VLOOKUP($A1414,'Work Order Master'!$K:$Q,7,FALSE),\"Remove\")","v":"N"}]
["56600-1-21","FSCD RC - 2122-022 B120 Enclosed Office Space Paint Shop","Active","56600-1","FSCD Routine Capital","(blank)","6600","Routine Capital","640","Facilities and Ancillary Services","640","Facilities Services and Campus Development","(blank)","550","Capital FMP - Administration","no",{"$f":"IFERROR(INDEX('Work Order Master'!$S:$S,MATCH(A1415,'Work Order Master'!$K:$K,0)),\"New\")","v":"New"},{"$f":"IFERROR(INDEX('Work Order Master'!T:T,MATCH(WORKORDERS!$Q1415,'Work Order Master'!$S:$S,0)),Q1415)","v":"New"},{"$f":"IFERROR(INDEX('FRS CC Master'!A:A,MATCH(WORKORDERS!$Q1415*1,'FRS CC Master'!$C:$C,0)),WORKORDERS!$L1415)","v":"Facilities Services and Campus Development"},{"$f":"IFERROR(VLOOKUP($A1415,'Work Order Master'!$K:$Q,7,FALSE),\"Remove\")","v":"N"}]
["56600-1-22","FSCD RC - 2122-035 Universal Access Improvements","Active","56600-1","FSCD Routine Capital","(blank)","6600","Routine Capital","640","Facilities and Ancillary Services","640","Facilities Services and Campus Development","(blank)","550","Capital FMP - Administration","no",{"$f":"IFERROR(INDEX('Work Order Master'!$S:$S,MATCH(A1416,'Work Order Master'!$K:$K,0)),\"New\")","v":"New"},{"$f":"IFERROR(INDEX('Work Order Master'!T:T,MATCH(WORKORDERS!$Q1416,'Work Order Master'!$S:$S,0)),Q1416)","v":"New"},{"$f":"IFERROR(INDEX('FRS CC Master'!A:A,MATCH(WORKORDERS!$Q1416*1,'FRS CC Master'!$C:$C,0)),WORKORDERS!$L1416)","v":"Facilities Services and Campus Development"},{"$f":"IFERROR(VLOOKUP($A1416,'Work Order Master'!$K:$Q,7,FALSE),\"Remove\")","v":"N"}]
["56600-1-3","FSCD RC - 2021-029 Intrusion Sysy","Active","56600-1","FSCD Routine Capital","(blank)","6600","Routine Capital","640","Facilities and Ancillary Services","640","Facilities Services and Campus Development","(blank)","550","Capital FMP - Administration","no",{"$f":"IFERROR(INDEX('Work Order Master'!$S:$S,MATCH(A1417,'Work Order Master'!$K:$K,0)),\"New\")","v":9383},{"$f":"IFERROR(INDEX('Work Order Master'!T:T,MATCH(WORKORDERS!$Q1417,'Work Order Master'!$S:$S,0)),Q1417)","v":"2021-029 INTRUSION SYSY"},{"$f":"IFERROR(INDEX('FRS CC Master'!A:A,MATCH(WORKORDERS!$Q1417*1,'FRS CC Master'!$C:$C,0)),WORKORDERS!$L1417)","v":"Capital"},{"$f":"IFERROR(VLOOKUP($A1417,'Work Order Master'!$K:$Q,7,FALSE),\"Remove\")","v":"N"}]
["56600-1-4","FSCD RC - 1920-082 B345 Cladding","Active","56600-1","FSCD Routine Capital","(blank)","6600","Routine Capital","640","Facilities and Ancillary Services","640","Facilities Services and Campus Development","(blank)","550","Capital FMP - Administration","no",{"$f":"IFERROR(INDEX('Work Order Master'!$S:$S,MATCH(A1418,'Work Order Master'!$K:$K,0)),\"New\")","v":9475},{"$f":"IFERROR(INDEX('Work Order Master'!T:T,MATCH(WORKORDERS!$Q1418,'Work Order Master'!$S:$S,0)),Q1418)","v":"1920-082 B345 CLADDING "},{"$f":"IFERROR(INDEX('FRS CC Master'!A:A,MATCH(WORKORDERS!$Q1418*1,'FRS CC Master'!$C:$C,0)),WORKORDERS!$L1418)","v":"Capital"},{"$f":"IFERROR(VLOOKUP($A1418,'Work Order Master'!$K:$Q,7,FALSE),\"Remove\")","v":"N"}]
["56600-1-5","FSCD RC - 2021-049 B300 & B310 RF & Air","Active","56600-1","FSCD Routine Capital","(blank)","6600","Routine Capital","640","Facilities and Ancillary Services","640","Facilities Services and Campus Development","(blank)","550","Capital FMP - Administration","no",{"$f":"IFERROR(INDEX('Work Order Master'!$S:$S,MATCH(A1419,'Work Order Master'!$K:$K,0)),\"New\")","v":9503},{"$f":"IFERROR(INDEX('Work Order Master'!T:T,MATCH(WORKORDERS!$Q1419,'Work Order Master'!$S:$S,0)),Q1419)","v":"2021-049 B300&B310 RF&AIR"},{"$f":"IFERROR(INDEX('FRS CC Master'!A:A,MATCH(WORKORDERS!$Q1419*1,'FRS CC Master'!$C:$C,0)),WORKORDERS!$L1419)","v":"Capital"},{"$f":"IFERROR(VLOOKUP($A1419,'Work Order Master'!$K:$Q,7,FALSE),\"Remove\")","v":"N"}]
["56600-1-6","FSCD RC - 2122-001 Roof Replacement","Active","56600-1","FSCD Routine Capital","(blank)","6600","Routine Capital","640","Facilities and Ancillary Services","640","Facilities Services and Campus Development","(blank)","550","Capital FMP - Administration","no",{"$f":"IFERROR(INDEX('Work Order Master'!$S:$S,MATCH(A1420,'Work Order Master'!$K:$K,0)),\"New\")","v":9507},{"$f":"IFERROR(INDEX('Work Order Master'!T:T,MATCH(WORKORDERS!$Q1420,'Work Order Master'!$S:$S,0)),Q1420)","v":"2122-001 ROOF REPLACEMENT"},{"$f":"IFERROR(INDEX('FRS CC Master'!A:A,MATCH(WORKORDERS!$Q1420*1,'FRS CC Master'!$C:$C,0)),WORKORDERS!$L1420)","v":"Capital"},{"$f":"IFERROR(VLOOKUP($A1420,'Work Order Master'!$K:$Q,7,FALSE),\"Remove\")","v":"N"}]
["56600-1-7","FSCD RC - 2122-002 Exterior Paint","Active","56600-1","FSCD Routine Capital","(blank)","6600","Routine Capital","640","Facilities and Ancillary Services","640","Facilities Services and Campus Development","(blank)","550","Capital FMP - Administration","no",{"$f":"IFERROR(INDEX('Work Order Master'!$S:$S,MATCH(A1421,'Work Order Master'!$K:$K,0)),\"New\")","v":9508},{"$f":"IFERROR(INDEX('Work Order Master'!T:T,MATCH(WORKORDERS!$Q1421,'Work Order Master'!$S:$S,0)),Q1421)","v":"2122-002 EXTERIOR PAINT "},{"$f":"IFERROR(INDEX('FRS CC Master'!A:A,MATCH(WORKORDERS!$Q1421*1,'FRS CC Master'!$C:$C,0)),WORKORDERS!$L1421)","v":"Capital"},{"$f":"IFERROR(VLOOKUP($A1421,'Work Order Master'!$K:$Q,7,FALSE),\"Remove\")","v":"N"}]
["56600-1-8","FSCD RC - 1920-037 Deep Bay Structure","Active","56600-1","FSCD Routine Capital","(blank)","6600","Routine Capital","640","Facilities and Ancillary Services","640","Facilities Services and Campus Development","(blank)","550","Capital FMP - Administration","no",{"$f":"IFERROR(INDEX('Work Order Master'!$S:$S,MATCH(A1422,'Work Order Master'!$K:$K,0)),\"New\")","v":9348},{"$f":"IFERROR(INDEX('Work Order Master'!T:T,MATCH(WORKORDERS!$Q1422,'Work Order Master'!$S:$S,0)),Q1422)","v":"1920-037 DEEP BAY STRUCT"},{"$f":"IFERROR(INDEX('FRS CC Master'!A:A,MATCH(WORKORDERS!$Q1422*1,'FRS CC Master'!$C:$C,0)),WORKORDERS!$L1422)","v":"Capital"},{"$f":"IFERROR(VLOOKUP($A1422,'Work Order Master'!$K:$Q,7,FALSE),\"Remove\")","v":"N"}]
["56600-1-9","FSCD RC - 2021-101 Student Fire Alarm","Active","56600-1","FSCD Routine Capital","(blank)","6600","Routine Capital","640","Facilities and Ancillary Services","640","Facilities Services and Campus Development","(blank)","550","Capital FMP - Administration","no",{"$f":"IFERROR(INDEX('Work Order Master'!$S:$S,MATCH(A1423,'Work Order Master'!$K:$K,0)),\"New\")","v":9505},{"$f":"IFERROR(INDEX('Work Order Master'!T:T,MATCH(WORKORDERS!$Q1423,'Work Order Master'!$S:$S,0)),Q1423)","v":"1920-037 STUDT FIRE ALARM"},{"$f":"IFERROR(INDEX('FRS CC Master'!A:A,MATCH(WORKORDERS!$Q1423*1,'FRS CC Master'!$C:$C,0)),WORKORDERS!$L1423)","v":"Capital"},{"$f":"IFERROR(VLOOKUP($A1423,'Work Order Master'!$K:$Q,7,FALSE),\"Remove\")","v":"N"}]
["56625-1-1","FSCD UA - 1920-022 Universal Access","Active","56625-1","FSCD Universal Access - General","(blank)","6625","Universal Access","640","Facilities and Ancillary Services","640","Facilities Services and Campus Development","(blank)","550","Capital FMP - Administration","no",{"$f":"IFERROR(INDEX('Work Order Master'!$S:$S,MATCH(A1424,'Work Order Master'!$K:$K,0)),\"New\")","v":9394},{"$f":"IFERROR(INDEX('Work Order Master'!T:T,MATCH(WORKORDERS!$Q1424,'Work Order Master'!$S:$S,0)),Q1424)","v":"1920-022 UNIVERSL ACCESS "},{"$f":"IFERROR(INDEX('FRS CC Master'!A:A,MATCH(WORKORDERS!$Q1424*1,'FRS CC Master'!$C:$C,0)),WORKORDERS!$L1424)","v":"Capital"},{"$f":"IFERROR(VLOOKUP($A1424,'Work Order Master'!$K:$Q,7,FALSE),\"Remove\")","v":"N"}]
["56625-1-2","FSCD UA - 1920-083 Outdoor Ramp Replacement","Active","56625-1","FSCD Universal Access - General","(blank)","6625","Universal Access","640","Facilities and Ancillary Services","640","Facilities Services and Campus Development","(blank)","550","Capital FMP - Administration","no",{"$f":"IFERROR(INDEX('Work Order Master'!$S:$S,MATCH(A1425,'Work Order Master'!$K:$K,0)),\"New\")","v":9395},{"$f":"IFERROR(INDEX('Work Order Master'!T:T,MATCH(WORKORDERS!$Q1425,'Work Order Master'!$S:$S,0)),Q1425)","v":"1920-083 OUTDR RMP REP"},{"$f":"IFERROR(INDEX('FRS CC Master'!A:A,MATCH(WORKORDERS!$Q1425*1,'FRS CC Master'!$C:$C,0)),WORKORDERS!$L1425)","v":"Capital"},{"$f":"IFERROR(VLOOKUP($A1425,'Work Order Master'!$K:$Q,7,FALSE),\"Remove\")","v":"N"}]
["56625-1-3","FSCD UA - 2021-117 Access Washrooms","Active","56625-1","FSCD Universal Access - General","(blank)","6625","Universal Access","640","Facilities and Ancillary Services","640","Facilities Services and Campus Development","(blank)","550","Capital FMP - Administration","no",{"$f":"IFERROR(INDEX('Work Order Master'!$S:$S,MATCH(A1426,'Work Order Master'!$K:$K,0)),\"New\")","v":9510},{"$f":"IFERROR(INDEX('Work Order Master'!T:T,MATCH(WORKORDERS!$Q1426,'Work Order Master'!$S:$S,0)),Q1426)","v":"2021-117 ACCESS WASHROOMS"},{"$f":"IFERROR(INDEX('FRS CC Master'!A:A,MATCH(WORKORDERS!$Q1426*1,'FRS CC Master'!$C:$C,0)),WORKORDERS!$L1426)","v":"Capital"},{"$f":"IFERROR(VLOOKUP($A1426,'Work Order Master'!$K:$Q,7,FALSE),\"Remove\")","v":"N"}]
["56650-1-1","FSCD CO - Eclipse","Active","56650-1","FSCD Capital Other","(blank)","6650","Capital - Other","640","Facilities and Ancillary Services","640","Facilities Services and Campus Development","(blank)","550","Capital FMP - Administration","no",{"$f":"IFERROR(INDEX('Work Order Master'!$S:$S,MATCH(A1427,'Work Order Master'!$K:$K,0)),\"New\")","v":9454},{"$f":"IFERROR(INDEX('Work Order Master'!T:T,MATCH(WORKORDERS!$Q1427,'Work Order Master'!$S:$S,0)),Q1427)","v":"1920-086 ECLIPSE"},{"$f":"IFERROR(INDEX('FRS CC Master'!A:A,MATCH(WORKORDERS!$Q1427*1,'FRS CC Master'!$C:$C,0)),WORKORDERS!$L1427)","v":"Capital"},{"$f":"IFERROR(VLOOKUP($A1427,'Work Order Master'!$K:$Q,7,FALSE),\"Remove\")","v":"N"}]
["56650-1-2","FSCD CO - Evergreen","Active","56650-1","FSCD Capital Other","(blank)","6650","Capital - Other","640","Facilities and Ancillary Services","640","Facilities Services and Campus Development","(blank)","550","Capital FMP - Administration","no",{"$f":"IFERROR(INDEX('Work Order Master'!$S:$S,MATCH(A1428,'Work Order Master'!$K:$K,0)),\"New\")","v":9001},{"$f":"IFERROR(INDEX('Work Order Master'!T:T,MATCH(WORKORDERS!$Q1428,'Work Order Master'!$S:$S,0)),Q1428)","v":"FAC - EVERGREEN "},{"$f":"IFERROR(INDEX('FRS CC Master'!A:A,MATCH(WORKORDERS!$Q1428*1,'FRS CC Master'!$C:$C,0)),WORKORDERS!$L1428)","v":"Capital"},{"$f":"IFERROR(VLOOKUP($A1428,'Work Order Master'!$K:$Q,7,FALSE),\"Remove\")","v":"N"}]
["56650-2-1","FSCD UFO - 2122-074 Cowichan Trade Centre - Business Case","Active","56650-2","FSCD Capital Unfunded Objectives","(blank)","6650","Capital - Other","640","Facilities and Ancillary Services","640","Facilities Services and Campus Development","(blank)","550","Capital FMP - Administration","no",{"$f":"IFERROR(INDEX('Work Order Master'!$S:$S,MATCH(A1429,'Work Order Master'!$K:$K,0)),\"New\")","v":"New"},{"$f":"IFERROR(INDEX('Work Order Master'!T:T,MATCH(WORKORDERS!$Q1429,'Work Order Master'!$S:$S,0)),Q1429)","v":"New"},{"$f":"IFERROR(INDEX('FRS CC Master'!A:A,MATCH(WORKORDERS!$Q1429*1,'FRS CC Master'!$C:$C,0)),WORKORDERS!$L1429)","v":"Facilities Services and Campus Development"},{"$f":"IFERROR(VLOOKUP($A1429,'Work Order Master'!$K:$Q,7,FALSE),\"Remove\")","v":"N"}]
["56701-1-1","ANC Minor Capital","Parked","56701-1","ANC Minor Capital","(blank)","6701","Ancillary Services - Initiatives","670","Ancillary Services","670","Ancillary Operations","(blank)","500","Capital - General","no",{"$f":"IFERROR(INDEX('Work Order Master'!$S:$S,MATCH(A1430,'Work Order Master'!$K:$K,0)),\"New\")","v":"New"},{"$f":"IFERROR(INDEX('Work Order Master'!T:T,MATCH(WORKORDERS!$Q1430,'Work Order Master'!$S:$S,0)),Q1430)","v":"New"},{"$f":"IFERROR(INDEX('FRS CC Master'!A:A,MATCH(WORKORDERS!$Q1430*1,'FRS CC Master'!$C:$C,0)),WORKORDERS!$L1430)","v":"Ancillary Operations"},{"$f":"IFERROR(VLOOKUP($A1430,'Work Order Master'!$K:$Q,7,FALSE),\"Remove\")","v":"P"}]
["57001-1-1","FIN Minor Capital","Parked","57001-1","FIN Minor Capital","(blank)","7001","Financial Services - Initiatives","700","Financial Services","700","Financial Services","(blank)","500","Capital - General","no",{"$f":"IFERROR(INDEX('Work Order Master'!$S:$S,MATCH(A1431,'Work Order Master'!$K:$K,0)),\"New\")","v":"New"},{"$f":"IFERROR(INDEX('Work Order Master'!T:T,MATCH(WORKORDERS!$Q1431,'Work Order Master'!$S:$S,0)),Q1431)","v":"New"},{"$f":"IFERROR(INDEX('FRS CC Master'!A:A,MATCH(WORKORDERS!$Q1431*1,'FRS CC Master'!$C:$C,0)),WORKORDERS!$L1431)","v":"Financial Services"},{"$f":"IFERROR(VLOOKUP($A1431,'Work Order Master'!$K:$Q,7,FALSE),\"Remove\")","v":"P"}]
["57501-1-1","ERM Minor Capital","Parked","57501-1","ERM Minor Capital","(blank)","7501","Risk Management - Initiatives","750","Enterprise Risk Management","750","Enterprise Risk Management","(blank)","500","Capital - General","no",{"$f":"IFERROR(INDEX('Work Order Master'!$S:$S,MATCH(A1432,'Work Order Master'!$K:$K,0)),\"New\")","v":"New"},{"$f":"IFERROR(INDEX('Work Order Master'!T:T,MATCH(WORKORDERS!$Q1432,'Work Order Master'!$S:$S,0)),Q1432)","v":"New"},{"$f":"IFERROR(INDEX('FRS CC Master'!A:A,MATCH(WORKORDERS!$Q1432*1,'FRS CC Master'!$C:$C,0)),WORKORDERS!$L1432)","v":"Enterprise Risk Management"},{"$f":"IFERROR(VLOOKUP($A1432,'Work Order Master'!$K:$Q,7,FALSE),\"Remove\")","v":"P"}]
["59150-1-1","INST Historic Assets - Pre 2022","Active","59150-1","INST Historic Assets","(blank)","9150","Institutional Assets","900","CFOVPA - Institutional","900","CFOVPA - Institutional","(blank)","500","Capital - General","no",{"$f":"IFERROR(INDEX('Work Order Master'!$S:$S,MATCH(A1433,'Work Order Master'!$K:$K,0)),\"New\")","v":"New"},{"$f":"IFERROR(INDEX('Work Order Master'!T:T,MATCH(WORKORDERS!$Q1433,'Work Order Master'!$S:$S,0)),Q1433)","v":"New"},{"$f":"IFERROR(INDEX('FRS CC Master'!A:A,MATCH(WORKORDERS!$Q1433*1,'FRS CC Master'!$C:$C,0)),WORKORDERS!$L1433)","v":"CFOVPA - Institutional"},{"$f":"IFERROR(VLOOKUP($A1433,'Work Order Master'!$K:$Q,7,FALSE),\"Remove\")","v":"N"}]
["88000-1-1","VH High Schools - Administration","Active","88000-1","VH High Schools - Administration","(blank)","8000","High Schools - Administration","800","VH Clearing Activity","250","International Education","(blank)","100","Administration","yes",{"$f":"IFERROR(INDEX('Work Order Master'!$S:$S,MATCH(A1434,'Work Order Master'!$K:$K,0)),\"New\")","v":3085},{"$f":"IFERROR(INDEX('Work Order Master'!T:T,MATCH(WORKORDERS!$Q1434,'Work Order Master'!$S:$S,0)),Q1434)","v":"MIHS OPERATIONS"},{"$f":"IFERROR(INDEX('FRS CC Master'!A:A,MATCH(WORKORDERS!$Q1434*1,'FRS CC Master'!$C:$C,0)),WORKORDERS!$L1434)","v":"High School"},{"$f":"IFERROR(VLOOKUP($A1434,'Work Order Master'!$K:$Q,7,FALSE),\"Remove\")","v":"N"}]
["88000-1-1","VH High Schools - Administration","Active","88000-1","VH High Schools - Administration","(blank)","8000","High Schools - Administration","800","VH Clearing Activity","250","International Education","(blank)","101","Institutional","yes",{"$f":"IFERROR(INDEX('Work Order Master'!$S:$S,MATCH(A1435,'Work Order Master'!$K:$K,0)),\"New\")","v":3085},{"$f":"IFERROR(INDEX('Work Order Master'!T:T,MATCH(WORKORDERS!$Q1435,'Work Order Master'!$S:$S,0)),Q1435)","v":"MIHS OPERATIONS"},{"$f":"IFERROR(INDEX('FRS CC Master'!A:A,MATCH(WORKORDERS!$Q1435*1,'FRS CC Master'!$C:$C,0)),WORKORDERS!$L1435)","v":"High School"},{"$f":"IFERROR(VLOOKUP($A1435,'Work Order Master'!$K:$Q,7,FALSE),\"Remove\")","v":"N"}]
["88050-1-1","VH Scholarships","Parked","88050-1","VH Scholarships","(blank)","8050","High Schools - Scholarships","800","VH Clearing Activity","250","International Education","(blank)","100","Administration","no",{"$f":"IFERROR(INDEX('Work Order Master'!$S:$S,MATCH(A1436,'Work Order Master'!$K:$K,0)),\"New\")","v":"New"},{"$f":"IFERROR(INDEX('Work Order Master'!T:T,MATCH(WORKORDERS!$Q1436,'Work Order Master'!$S:$S,0)),Q1436)","v":"New"},{"$f":"IFERROR(INDEX('FRS CC Master'!A:A,MATCH(WORKORDERS!$Q1436*1,'FRS CC Master'!$C:$C,0)),WORKORDERS!$L1436)","v":"International Education"},{"$f":"IFERROR(VLOOKUP($A1436,'Work Order Master'!$K:$Q,7,FALSE),\"Remove\")","v":"Remove"}]
["88075-1-1","VH Combined - Domestic and International activity","Active","88075-1","VH Combined - Domestic and International activity","(blank)","8075","HS Combined - Domestic and International activity","800","VH Clearing Activity","250","International Education","(blank)","100","Administration","yes",{"$f":"IFERROR(INDEX('Work Order Master'!$S:$S,MATCH(A1437,'Work Order Master'!$K:$K,0)),\"New\")","v":3087},{"$f":"IFERROR(INDEX('Work Order Master'!T:T,MATCH(WORKORDERS!$Q1437,'Work Order Master'!$S:$S,0)),Q1437)","v":"HIGH SCHOOL INSTRUCTION"},{"$f":"IFERROR(INDEX('FRS CC Master'!A:A,MATCH(WORKORDERS!$Q1437*1,'FRS CC Master'!$C:$C,0)),WORKORDERS!$L1437)","v":"High School"},{"$f":"IFERROR(VLOOKUP($A1437,'Work Order Master'!$K:$Q,7,FALSE),\"Remove\")","v":"N"}]
["88075-1-1","VH Combined - Domestic and International activity","Active","88075-1","VH Combined - Domestic and International activity","(blank)","8075","HS Combined - Domestic and International activity","800","VH Clearing Activity","250","International Education","(blank)","208","Instruction","yes",{"$f":"IFERROR(INDEX('Work Order Master'!$S:$S,MATCH(A1438,'Work Order Master'!$K:$K,0)),\"New\")","v":3087},{"$f":"IFERROR(INDEX('Work Order Master'!T:T,MATCH(WORKORDERS!$Q1438,'Work Order Master'!$S:$S,0)),Q1438)","v":"HIGH SCHOOL INSTRUCTION"},{"$f":"IFERROR(INDEX('FRS CC Master'!A:A,MATCH(WORKORDERS!$Q1438*1,'FRS CC Master'!$C:$C,0)),WORKORDERS!$L1438)","v":"High School"},{"$f":"IFERROR(VLOOKUP($A1438,'Work Order Master'!$K:$Q,7,FALSE),\"Remove\")","v":"N"}]
["88100-1-1","VH Domestic activity","Active","88100-1","VH Domestic activity","(blank)","8100","HS Domestic activity","800","VH Clearing Activity","250","International Education","(blank)","100","Administration","yes",{"$f":"IFERROR(INDEX('Work Order Master'!$S:$S,MATCH(A1439,'Work Order Master'!$K:$K,0)),\"New\")","v":3088},{"$f":"IFERROR(INDEX('Work Order Master'!T:T,MATCH(WORKORDERS!$Q1439,'Work Order Master'!$S:$S,0)),Q1439)","v":"HIGH SCHOOL- CANADIAN"},{"$f":"IFERROR(INDEX('FRS CC Master'!A:A,MATCH(WORKORDERS!$Q1439*1,'FRS CC Master'!$C:$C,0)),WORKORDERS!$L1439)","v":"High School"},{"$f":"IFERROR(VLOOKUP($A1439,'Work Order Master'!$K:$Q,7,FALSE),\"Remove\")","v":"N"}]
["88100-1-1","VH Domestic activity","Active","88100-1","VH Domestic activity","(blank)","8100","HS Domestic activity","800","VH Clearing Activity","250","International Education","(blank)","208","Instruction","yes",{"$f":"IFERROR(INDEX('Work Order Master'!$S:$S,MATCH(A1440,'Work Order Master'!$K:$K,0)),\"New\")","v":3088},{"$f":"IFERROR(INDEX('Work Order Master'!T:T,MATCH(WORKORDERS!$Q1440,'Work Order Master'!$S:$S,0)),Q1440)","v":"HIGH SCHOOL- CANADIAN"},{"$f":"IFERROR(INDEX('FRS CC Master'!A:A,MATCH(WORKORDERS!$Q1440*1,'FRS CC Master'!$C:$C,0)),WORKORDERS!$L1440)","v":"High School"},{"$f":"IFERROR(VLOOKUP($A1440,'Work Order Master'!$K:$Q,7,FALSE),\"Remove\")","v":"N"}]
["88200-1-1","VH International activity","Active","88200-1","VH International activity","(blank)","8200","HS International activity","800","VH Clearing Activity","250","International Education","(blank)","100","Administration","yes",{"$f":"IFERROR(INDEX('Work Order Master'!$S:$S,MATCH(A1441,'Work Order Master'!$K:$K,0)),\"New\")","v":3089},{"$f":"IFERROR(INDEX('Work Order Master'!T:T,MATCH(WORKORDERS!$Q1441,'Work Order Master'!$S:$S,0)),Q1441)","v":"MHS -INT'L STUDENTS"},{"$f":"IFERROR(INDEX('FRS CC Master'!A:A,MATCH(WORKORDERS!$Q1441*1,'FRS CC Master'!$C:$C,0)),WORKORDERS!$L1441)","v":"High School"},{"$f":"IFERROR(VLOOKUP($A1441,'Work Order Master'!$K:$Q,7,FALSE),\"Remove\")","v":"N"}]
["88200-1-1","VH International activity","Active","88200-1","VH International activity","(blank)","8200","HS International activity","800","VH Clearing Activity","250","International Education","(blank)","208","Instruction","yes",{"$f":"IFERROR(INDEX('Work Order Master'!$S:$S,MATCH(A1442,'Work Order Master'!$K:$K,0)),\"New\")","v":3089},{"$f":"IFERROR(INDEX('Work Order Master'!T:T,MATCH(WORKORDERS!$Q1442,'Work Order Master'!$S:$S,0)),Q1442)","v":"MHS -INT'L STUDENTS"},{"$f":"IFERROR(INDEX('FRS CC Master'!A:A,MATCH(WORKORDERS!$Q1442*1,'FRS CC Master'!$C:$C,0)),WORKORDERS!$L1442)","v":"High School"},{"$f":"IFERROR(VLOOKUP($A1442,'Work Order Master'!$K:$Q,7,FALSE),\"Remove\")","v":"N"}]
["88200-1-2","VH Insurance and Recoveries","Parked","88200-1","VH International activity","(blank)","8200","HS International activity","800","VH Clearing Activity","250","International Education","(blank)","100","Administration","yes",{"$f":"IFERROR(INDEX('Work Order Master'!$S:$S,MATCH(A1443,'Work Order Master'!$K:$K,0)),\"New\")","v":"New"},{"$f":"IFERROR(INDEX('Work Order Master'!T:T,MATCH(WORKORDERS!$Q1443,'Work Order Master'!$S:$S,0)),Q1443)","v":"New"},{"$f":"IFERROR(INDEX('FRS CC Master'!A:A,MATCH(WORKORDERS!$Q1443*1,'FRS CC Master'!$C:$C,0)),WORKORDERS!$L1443)","v":"International Education"},{"$f":"IFERROR(VLOOKUP($A1443,'Work Order Master'!$K:$Q,7,FALSE),\"Remove\")","v":"Remove"}]
["88200-1-2","VH Insurance and Recoveries","Parked","88200-1","VH International activity","(blank)","8200","HS International activity","800","VH Clearing Activity","250","International Education","(blank)","208","Instruction","yes",{"$f":"IFERROR(INDEX('Work Order Master'!$S:$S,MATCH(A1444,'Work Order Master'!$K:$K,0)),\"New\")","v":"New"},{"$f":"IFERROR(INDEX('Work Order Master'!T:T,MATCH(WORKORDERS!$Q1444,'Work Order Master'!$S:$S,0)),Q1444)","v":"New"},{"$f":"IFERROR(INDEX('FRS CC Master'!A:A,MATCH(WORKORDERS!$Q1444*1,'FRS CC Master'!$C:$C,0)),WORKORDERS!$L1444)","v":"International Education"},{"$f":"IFERROR(VLOOKUP($A1444,'Work Order Master'!$K:$Q,7,FALSE),\"Remove\")","v":"Remove"}]
["88210-1-1","VH Adult and Foundation Programs","Active","88210-1","VH Adult and Foundation Programs","(blank)","8210","HS Adult and Foundation Programs","800","VH Clearing Activity","250","International Education","(blank)","100","Administration","yes",{"$f":"IFERROR(INDEX('Work Order Master'!$S:$S,MATCH(A1445,'Work Order Master'!$K:$K,0)),\"New\")","v":3084},{"$f":"IFERROR(INDEX('Work Order Master'!T:T,MATCH(WORKORDERS!$Q1445,'Work Order Master'!$S:$S,0)),Q1445)","v":"ADULT & FDN PROGRAMS"},{"$f":"IFERROR(INDEX('FRS CC Master'!A:A,MATCH(WORKORDERS!$Q1445*1,'FRS CC Master'!$C:$C,0)),WORKORDERS!$L1445)","v":"High School"},{"$f":"IFERROR(VLOOKUP($A1445,'Work Order Master'!$K:$Q,7,FALSE),\"Remove\")","v":"N"}]
["88210-1-1","VH Adult and Foundation Programs","Active","88210-1","VH Adult and Foundation Programs","(blank)","8210","HS Adult and Foundation Programs","800","VH Clearing Activity","250","International Education","(blank)","208","Instruction",{"$f":"IF(OR(A1446=A1445,A1446=A1447),\"yes\",\"no\")","v":"yes"},{"$f":"IFERROR(INDEX('Work Order Master'!$S:$S,MATCH(A1446,'Work Order Master'!$K:$K,0)),\"New\")","v":3084},{"$f":"IFERROR(INDEX('Work Order Master'!T:T,MATCH(WORKORDERS!$Q1446,'Work Order Master'!$S:$S,0)),Q1446)","v":"ADULT & FDN PROGRAMS"},{"$f":"IFERROR(INDEX('FRS CC Master'!A:A,MATCH(WORKORDERS!$Q1446*1,'FRS CC Master'!$C:$C,0)),WORKORDERS!$L1446)","v":"High School"},{"$f":"IFERROR(VLOOKUP($A1446,'Work Order Master'!$K:$Q,7,FALSE),\"Remove\")","v":"N"}]
["88215-1-1","VH Summer Programs","Active","88215-1","VH Summer Programs","(blank)","8215","HS Summer Programs","800","VH Clearing Activity","250","International Education","(blank)","100","Administration","yes",{"$f":"IFERROR(INDEX('Work Order Master'!$S:$S,MATCH(A1447,'Work Order Master'!$K:$K,0)),\"New\")","v":3082},{"$f":"IFERROR(INDEX('Work Order Master'!T:T,MATCH(WORKORDERS!$Q1447,'Work Order Master'!$S:$S,0)),Q1447)","v":"MIHS SUMMER STUDY"},{"$f":"IFERROR(INDEX('FRS CC Master'!A:A,MATCH(WORKORDERS!$Q1447*1,'FRS CC Master'!$C:$C,0)),WORKORDERS!$L1447)","v":"High School"},{"$f":"IFERROR(VLOOKUP($A1447,'Work Order Master'!$K:$Q,7,FALSE),\"Remove\")","v":"N"}]
["88215-1-1","VH Summer Programs","Active","88215-1","VH Summer Programs","(blank)","8215","HS Summer Programs","800","VH Clearing Activity","250","International Education","(blank)","208","Instruction","yes",{"$f":"IFERROR(INDEX('Work Order Master'!$S:$S,MATCH(A1448,'Work Order Master'!$K:$K,0)),\"New\")","v":3082},{"$f":"IFERROR(INDEX('Work Order Master'!T:T,MATCH(WORKORDERS!$Q1448,'Work Order Master'!$S:$S,0)),Q1448)","v":"MIHS SUMMER STUDY"},{"$f":"IFERROR(INDEX('FRS CC Master'!A:A,MATCH(WORKORDERS!$Q1448*1,'FRS CC Master'!$C:$C,0)),WORKORDERS!$L1448)","v":"High School"},{"$f":"IFERROR(VLOOKUP($A1448,'Work Order Master'!$K:$Q,7,FALSE),\"Remove\")","v":"N"}]
["88230-1-1","VH Group Programs","Active","88230-1","VH Group Programs","(blank)","8230","HS Group Programs","800","VH Clearing Activity","250","International Education","(blank)","100","Administration","yes",{"$f":"IFERROR(INDEX('Work Order Master'!$S:$S,MATCH(A1449,'Work Order Master'!$K:$K,0)),\"New\")","v":3083},{"$f":"IFERROR(INDEX('Work Order Master'!T:T,MATCH(WORKORDERS!$Q1449,'Work Order Master'!$S:$S,0)),Q1449)","v":"GROUP PROGRAMS"},{"$f":"IFERROR(INDEX('FRS CC Master'!A:A,MATCH(WORKORDERS!$Q1449*1,'FRS CC Master'!$C:$C,0)),WORKORDERS!$L1449)","v":"High School"},{"$f":"IFERROR(VLOOKUP($A1449,'Work Order Master'!$K:$Q,7,FALSE),\"Remove\")","v":"N"}]
["88230-1-1","VH Group Programs","Active","88230-1","VH Group Programs","(blank)","8230","HS Group Programs","800","VH Clearing Activity","250","International Education","(blank)","208","Instruction","yes",{"$f":"IFERROR(INDEX('Work Order Master'!$S:$S,MATCH(A1450,'Work Order Master'!$K:$K,0)),\"New\")","v":3083},{"$f":"IFERROR(INDEX('Work Order Master'!T:T,MATCH(WORKORDERS!$Q1450,'Work Order Master'!$S:$S,0)),Q1450)","v":"GROUP PROGRAMS"},{"$f":"IFERROR(INDEX('FRS CC Master'!A:A,MATCH(WORKORDERS!$Q1450*1,'FRS CC Master'!$C:$C,0)),WORKORDERS!$L1450)","v":"High School"},{"$f":"IFERROR(VLOOKUP($A1450,'Work Order Master'!$K:$Q,7,FALSE),\"Remove\")","v":"N"}]
["88299-1-1","VH High Schools Clearing","Parked","88299-1","VH High Schools Clearing","(blank)","8299","High Schools Clearing","800","VH Clearing Activity","250","International Education","(blank)","100","Administration","no",{"$f":"IFERROR(INDEX('Work Order Master'!$S:$S,MATCH(A1451,'Work Order Master'!$K:$K,0)),\"New\")","v":"New"},{"$f":"IFERROR(INDEX('Work Order Master'!T:T,MATCH(WORKORDERS!$Q1451,'Work Order Master'!$S:$S,0)),Q1451)","v":"New"},{"$f":"IFERROR(INDEX('FRS CC Master'!A:A,MATCH(WORKORDERS!$Q1451*1,'FRS CC Master'!$C:$C,0)),WORKORDERS!$L1451)","v":"International Education"},{"$f":"IFERROR(VLOOKUP($A1451,'Work Order Master'!$K:$Q,7,FALSE),\"Remove\")","v":"Remove"}]
["88300-1-1","VH High Schools - Due To/From","Active","88300-1","VH High Schools - Due To/From","(blank)","8300","High Schools - Due To/From","800","VH Clearing Activity","250","International Education","(blank)","100","Administration","no",{"$f":"IFERROR(INDEX('Work Order Master'!$S:$S,MATCH(A1452,'Work Order Master'!$K:$K,0)),\"New\")","v":"New"},{"$f":"IFERROR(INDEX('Work Order Master'!T:T,MATCH(WORKORDERS!$Q1452,'Work Order Master'!$S:$S,0)),Q1452)","v":"New"},{"$f":"IFERROR(INDEX('FRS CC Master'!A:A,MATCH(WORKORDERS!$Q1452*1,'FRS CC Master'!$C:$C,0)),WORKORDERS!$L1452)","v":"International Education"},{"$f":"IFERROR(VLOOKUP($A1452,'Work Order Master'!$K:$Q,7,FALSE),\"Remove\")","v":"N"}]

{"sheet":"CHART OF ACCOUNTS","index":7,"n_rows":916,"n_cols":21,"rows_kept":916,"cut":false,"hidden":true,"merged":[[1,13,1,14],[1,15,1,17]]}
[]
["Unit4 ERP (FIS) Chart of Accounts details with Account Groups (Financial Statement Categories)",null,null,null,null,null,null,null,null,null,null,null,null,"FRS Object Code details",null,"NOTES"]
["Accgrp3","Accgrp3(T)","Accgrp2","Accgrp2(T)","Accgrp1","Accgrp1(T)","Account","Account Description","Rule","Group","Head account","Type","Status","FRS Object Code","FRS Object Code Descirption","Comments","Account Type","Account Rule implications","Keep","open field 1","open field 2"]
[2,"Statement of Operations","50","Expenses","500","Salaries and benefits",5000,"ADMIN - Salaries","Salaries (4) - CC(F-Cat4)/Fund(F-VM)/RESNO(M)/WO(M)/ACT(M)/AT(M)","IS","5000","GL","Active",200,"200 ADMIN COMPLEMENT",null,null,null,{"$f":"T4=T3","v":false},{"$f":"IF(LEN(G4)=4,G4,K4)","v":5000},{"$f":"IFERROR(INDEX('Prod COA'!B:B,MATCH('CHART OF ACCOUNTS'!T4,'Prod COA'!E:E,0)),INDEX('Prod COA'!B:B,MATCH('CHART OF ACCOUNTS'!T4,'Prod COA'!A:A,0)))","v":{"$error":"#N/A"}}]
[2,"Statement of Operations","50","Expenses","500","Salaries and benefits",5000,"ADMIN - Salaries","Salaries (4) - CC(F-Cat4)/Fund(F-VM)/RESNO(M)/WO(M)/ACT(M)/AT(M)","IS","5000","GL","Active",201,"201 ADMIN TERM",null,null,null,{"$f":"T5=T4","v":true},{"$f":"IF(LEN(G5)=4,G5,K5)*1","v":5000},{"$f":"IFERROR(INDEX('Prod COA'!B:B,MATCH('CHART OF ACCOUNTS'!T5,'Prod COA'!E:E,0)),INDEX('Prod COA'!B:B,MATCH('CHART OF ACCOUNTS'!T5,'Prod COA'!A:A,0)))","v":{"$error":"#N/A"}}]
[2,"Statement of Operations","50","Expenses","500","Salaries and benefits",5300,"VIUFA - Salaries","Salaries (4) - CC(F-Cat4)/Fund(F-VM)/RESNO(M)/WO(M)/ACT(M)/AT(M)","IS","5300","GL","Active",202,"202 VIUFA LTC",null,null,null,false,5300,{"$f":"IFERROR(INDEX('Prod COA'!B:B,MATCH('CHART OF ACCOUNTS'!T6,'Prod COA'!E:E,0)),INDEX('Prod COA'!B:B,MATCH('CHART OF ACCOUNTS'!T6,'Prod COA'!A:A,0)))","v":{"$error":"#N/A"}}]
[2,"Statement of Operations","50","Expenses","500","Salaries and benefits",5301,"VIUFA - Overtime / Other","Salaries (4) - CC(F-Cat4)/Fund(F-VM)/RESNO(M)/WO(M)/ACT(M)/AT(M)","IS","5301","GL","Active",203,"203 VIUFA O/T AND ON-CALL",null,null,null,false,5301,{"$f":"IFERROR(INDEX('Prod COA'!B:B,MATCH('CHART OF ACCOUNTS'!T7,'Prod COA'!E:E,0)),INDEX('Prod COA'!B:B,MATCH('CHART OF ACCOUNTS'!T7,'Prod COA'!A:A,0)))","v":{"$error":"#N/A"}}]
[2,"Statement of Operations","50","Expenses","500","Salaries and benefits",5302,"VIUFA - Stipend","Salaries (4) - CC(F-Cat4)/Fund(F-VM)/RESNO(M)/WO(M)/ACT(M)/AT(M)","IS","5302","GL","Active",204,"204 VIUFA STIPEND/ALLOWANCE",null,null,null,false,5302,{"$f":"IFERROR(INDEX('Prod COA'!B:B,MATCH('CHART OF ACCOUNTS'!T8,'Prod COA'!E:E,0)),INDEX('Prod COA'!B:B,MATCH('CHART OF ACCOUNTS'!T8,'Prod COA'!A:A,0)))","v":{"$error":"#N/A"}}]
[2,"Statement of Operations","50","Expenses","500","Salaries and benefits",5300,"VIUFA - Salaries","Salaries (4) - CC(F-Cat4)/Fund(F-VM)/RESNO(M)/WO(M)/ACT(M)/AT(M)","IS","5300","GL","Active",205,"205 VIUFA COMPLEMENT",null,null,null,{"$f":"T9=#REF!","v":{"$error":"#REF!"}},5300,{"$f":"IFERROR(INDEX('Prod COA'!B:B,MATCH('CHART OF ACCOUNTS'!T9,'Prod COA'!E:E,0)),INDEX('Prod COA'!B:B,MATCH('CHART OF ACCOUNTS'!T9,'Prod COA'!A:A,0)))","v":{"$error":"#N/A"}}]
[2,"Statement of Operations","50","Expenses","500","Salaries and benefits",5300,"VIUFA - Salaries","Salaries (4) - CC(F-Cat4)/Fund(F-VM)/RESNO(M)/WO(M)/ACT(M)/AT(M)","IS","5300","GL","Active",206,"206 VIUFA TEMPORARY",null,null,null,{"$f":"T10=#REF!","v":{"$error":"#REF!"}},5300,{"$f":"IFERROR(INDEX('Prod COA'!B:B,MATCH('CHART OF ACCOUNTS'!T10,'Prod COA'!E:E,0)),INDEX('Prod COA'!B:B,MATCH('CHART OF ACCOUNTS'!T10,'Prod COA'!A:A,0)))","v":{"$error":"#N/A"}}]
[2,"Statement of Operations","50","Expenses","500","Salaries and benefits",5300,"VIUFA - Salaries","Salaries (4) - CC(F-Cat4)/Fund(F-VM)/RESNO(M)/WO(M)/ACT(M)/AT(M)","IS","5300","GL","Active",207,"207 VIUFA PART-TIME",null,null,null,true,5300,{"$f":"IFERROR(INDEX('Prod COA'!B:B,MATCH('CHART OF ACCOUNTS'!T11,'Prod COA'!E:E,0)),INDEX('Prod COA'!B:B,MATCH('CHART OF ACCOUNTS'!T11,'Prod COA'!A:A,0)))","v":{"$error":"#N/A"}}]
[2,"Statement of Operations","50","Expenses","500","Salaries and benefits",5320,"VIUFA - Contractual PD - Time taken","Salaries (4) - CC(F-Cat4)/Fund(F-VM)/RESNO(M)/WO(M)/ACT(M)/AT(M)","IS","5320","GL","Active",208,"208 VIUFA LEAVE",null,null,null,false,5320,{"$f":"IFERROR(INDEX('Prod COA'!B:B,MATCH('CHART OF ACCOUNTS'!T12,'Prod COA'!E:E,0)),INDEX('Prod COA'!B:B,MATCH('CHART OF ACCOUNTS'!T12,'Prod COA'!A:A,0)))","v":{"$error":"#N/A"}}]
[2,"Statement of Operations","50","Expenses","500","Salaries and benefits",5102,"BCGEU - Stipend","Salaries (4) - CC(F-Cat4)/Fund(F-VM)/RESNO(M)/WO(M)/ACT(M)/AT(M)","IS","5102","GL","Active",209,"209 BCGEU STIPEND/ALLOWANCE",null,null,null,false,5102,{"$f":"IFERROR(INDEX('Prod COA'!B:B,MATCH('CHART OF ACCOUNTS'!T13,'Prod COA'!E:E,0)),INDEX('Prod COA'!B:B,MATCH('CHART OF ACCOUNTS'!T13,'Prod COA'!A:A,0)))","v":{"$error":"#N/A"}}]
[2,"Statement of Operations","50","Expenses","500","Salaries and benefits",5100,"BCGEU - Salaries","Salaries (4) - CC(F-Cat4)/Fund(F-VM)/RESNO(M)/WO(M)/ACT(M)/AT(M)","IS","5100","GL","Active",210,"210 BCGEU COMPLEMENT",null,null,null,false,5100,{"$f":"IFERROR(INDEX('Prod COA'!B:B,MATCH('CHART OF ACCOUNTS'!T14,'Prod COA'!E:E,0)),INDEX('Prod COA'!B:B,MATCH('CHART OF ACCOUNTS'!T14,'Prod COA'!A:A,0)))","v":{"$error":"#N/A"}}]
[2,"Statement of Operations","50","Expenses","500","Salaries and benefits",5100,"BCGEU - Salaries","Salaries (4) - CC(F-Cat4)/Fund(F-VM)/RESNO(M)/WO(M)/ACT(M)/AT(M)","IS","5100","GL","Active",211,"211 BCGEU TERM",null,null,null,true,5100,{"$f":"IFERROR(INDEX('Prod COA'!B:B,MATCH('CHART OF ACCOUNTS'!T15,'Prod COA'!E:E,0)),INDEX('Prod COA'!B:B,MATCH('CHART OF ACCOUNTS'!T15,'Prod COA'!A:A,0)))","v":{"$error":"#N/A"}}]
[2,"Statement of Operations","50","Expenses","500","Salaries and benefits",5100,"BCGEU - Salaries","Salaries (4) - CC(F-Cat4)/Fund(F-VM)/RESNO(M)/WO(M)/ACT(M)/AT(M)","IS","5100","GL","Active",212,"212 BCGEU AUXILIARY",null,null,null,{"$f":"T16=#REF!","v":{"$error":"#REF!"}},5100,{"$f":"IFERROR(INDEX('Prod COA'!B:B,MATCH('CHART OF ACCOUNTS'!T16,'Prod COA'!E:E,0)),INDEX('Prod COA'!B:B,MATCH('CHART OF ACCOUNTS'!T16,'Prod COA'!A:A,0)))","v":{"$error":"#N/A"}}]
[2,"Statement of Operations","50","Expenses","500","Salaries and benefits",5100,"BCGEU - Salaries","Salaries (4) - CC(F-Cat4)/Fund(F-VM)/RESNO(M)/WO(M)/ACT(M)/AT(M)","IS","5100","GL","Active",213,"Not in YTD GL",null,null,null,true,5100,{"$f":"IFERROR(INDEX('Prod COA'!B:B,MATCH('CHART OF ACCOUNTS'!T17,'Prod COA'!E:E,0)),INDEX('Prod COA'!B:B,MATCH('CHART OF ACCOUNTS'!T17,'Prod COA'!A:A,0)))","v":{"$error":"#N/A"}}]
[2,"Statement of Operations","50","Expenses","500","Salaries and benefits",5101,"BCGEU - Overtime / Other","Salaries (4) - CC(F-Cat4)/Fund(F-VM)/RESNO(M)/WO(M)/ACT(M)/AT(M)","IS","5101","GL","Active",214,"214 BCGEU O/T",null,null,null,false,5101,{"$f":"IFERROR(INDEX('Prod COA'!B:B,MATCH('CHART OF ACCOUNTS'!T18,'Prod COA'!E:E,0)),INDEX('Prod COA'!B:B,MATCH('CHART OF ACCOUNTS'!T18,'Prod COA'!A:A,0)))","v":{"$error":"#N/A"}}]
[2,"Statement of Operations","50","Expenses","500","Salaries and benefits",5200,"CUPE - Salaries","Salaries (4) - CC(F-Cat4)/Fund(F-VM)/RESNO(M)/WO(M)/ACT(M)/AT(M)","IS","5200","GL","Active",215,"215 CUPE COMPLEMENT",null,null,null,false,5200,{"$f":"IFERROR(INDEX('Prod COA'!B:B,MATCH('CHART OF ACCOUNTS'!T19,'Prod COA'!E:E,0)),INDEX('Prod COA'!B:B,MATCH('CHART OF ACCOUNTS'!T19,'Prod COA'!A:A,0)))","v":{"$error":"#N/A"}}]
[2,"Statement of Operations","50","Expenses","500","Salaries and benefits",5200,"CUPE - Salaries","Salaries (4) - CC(F-Cat4)/Fund(F-VM)/RESNO(M)/WO(M)/ACT(M)/AT(M)","IS","5200","GL","Active",216,"216 CUPE TEMPORARY",null,null,null,true,5200,{"$f":"IFERROR(INDEX('Prod COA'!B:B,MATCH('CHART OF ACCOUNTS'!T20,'Prod COA'!E:E,0)),INDEX('Prod COA'!B:B,MATCH('CHART OF ACCOUNTS'!T20,'Prod COA'!A:A,0)))","v":{"$error":"#N/A"}}]
[2,"Statement of Operations","50","Expenses","500","Salaries and benefits",5200,"CUPE - Salaries","Salaries (4) - CC(F-Cat4)/Fund(F-VM)/RESNO(M)/WO(M)/ACT(M)/AT(M)","IS","5200","GL","Active",217,"217 CUPE CASUAL",null,null,null,true,5200,{"$f":"IFERROR(INDEX('Prod COA'!B:B,MATCH('CHART OF ACCOUNTS'!T21,'Prod COA'!E:E,0)),INDEX('Prod COA'!B:B,MATCH('CHART OF ACCOUNTS'!T21,'Prod COA'!A:A,0)))","v":{"$error":"#N/A"}}]
[2,"Statement of Operations","50","Expenses","500","Salaries and benefits",5201,"CUPE - Overtime / Other","Salaries (4) - CC(F-Cat4)/Fund(F-VM)/RESNO(M)/WO(M)/ACT(M)/AT(M)","IS","5201","GL","Active",218,"218 CUPE O/T",null,null,null,false,5201,{"$f":"IFERROR(INDEX('Prod COA'!B:B,MATCH('CHART OF ACCOUNTS'!T22,'Prod COA'!E:E,0)),INDEX('Prod COA'!B:B,MATCH('CHART OF ACCOUNTS'!T22,'Prod COA'!A:A,0)))","v":{"$error":"#N/A"}}]
[2,"Statement of Operations","50","Expenses","500","Salaries and benefits",5203,"CUPE - Allowance","Salaries (4) - CC(F-Cat4)/Fund(F-VM)/RESNO(M)/WO(M)/ACT(M)/AT(M)","IS","5203","GL","Active",219,"219 CUPE ALLOWANCE",null,null,null,false,5203,{"$f":"IFERROR(INDEX('Prod COA'!B:B,MATCH('CHART OF ACCOUNTS'!T23,'Prod COA'!E:E,0)),INDEX('Prod COA'!B:B,MATCH('CHART OF ACCOUNTS'!T23,'Prod COA'!A:A,0)))","v":{"$error":"#N/A"}}]
[2,"Statement of Operations","50","Expenses","500","Salaries and benefits",5400,"Non-Jurisdictional - Salaries","Salaries (4) - CC(F-Cat4)/Fund(F-VM)/RESNO(M)/WO(M)/ACT(M)/AT(M)","IS","5400","GL","Active",220,"220 CE N/CR-GENERAL INTEREST",null,null,null,false,5400,{"$f":"IFERROR(INDEX('Prod COA'!B:B,MATCH('CHART OF ACCOUNTS'!T24,'Prod COA'!E:E,0)),INDEX('Prod COA'!B:B,MATCH('CHART OF ACCOUNTS'!T24,'Prod COA'!A:A,0)))","v":{"$error":"#N/A"}}]
[2,"Statement of Operations","50","Expenses","500","Salaries and benefits",5400,"Non-Jurisdictional - Salaries","Salaries (4) - CC(F-Cat4)/Fund(F-VM)/RESNO(M)/WO(M)/ACT(M)/AT(M)","IS","5400","GL","Active",221,"221 STUDENTS/OTHER",null,null,null,true,5400,{"$f":"IFERROR(INDEX('Prod COA'!B:B,MATCH('CHART OF ACCOUNTS'!T25,'Prod COA'!E:E,0)),INDEX('Prod COA'!B:B,MATCH('CHART OF ACCOUNTS'!T25,'Prod COA'!A:A,0)))","v":{"$error":"#N/A"}}]
[2,"Statement of Operations","50","Expenses","500","Salaries and benefits",5500,"Salary - Other expenses","General Rev and Exp (7) - CC(F-Cat4)/Fund(F-VM)/WO(M)/ACT(M)","IS","5500","GL","Active",222,"222 PROGRAM DEVELOPMENT",null,null,null,false,5500,{"$f":"IFERROR(INDEX('Prod COA'!B:B,MATCH('CHART OF ACCOUNTS'!T26,'Prod COA'!E:E,0)),INDEX('Prod COA'!B:B,MATCH('CHART OF ACCOUNTS'!T26,'Prod COA'!A:A,0)))","v":{"$error":"#N/A"}}]
[2,"Statement of Operations","50","Expenses","500","Salaries and benefits",5400,"Non-Jurisdictional - Salaries","Salaries (4) - CC(F-Cat4)/Fund(F-VM)/RESNO(M)/WO(M)/ACT(M)/AT(M)","IS","5400","GL","Active",223,"223 C.E. N/CREDIT-VOCATIONAL",null,null,null,false,5400,{"$f":"IFERROR(INDEX('Prod COA'!B:B,MATCH('CHART OF ACCOUNTS'!T27,'Prod COA'!E:E,0)),INDEX('Prod COA'!B:B,MATCH('CHART OF ACCOUNTS'!T27,'Prod COA'!A:A,0)))","v":{"$error":"#N/A"}}]
[2,"Statement of Operations","50","Expenses","500","Salaries and benefits",5500,"Salary - Other expenses","General Rev and Exp (7) - CC(F-Cat4)/Fund(F-VM)/WO(M)/ACT(M)","IS","5500","GL","Active",226,"226 SALARY - OTHER",null,null,null,false,5500,{"$f":"IFERROR(INDEX('Prod COA'!B:B,MATCH('CHART OF ACCOUNTS'!T28,'Prod COA'!E:E,0)),INDEX('Prod COA'!B:B,MATCH('CHART OF ACCOUNTS'!T28,'Prod COA'!A:A,0)))","v":{"$error":"#N/A"}}]
[2,"Statement of Operations","50","Expenses","500","Salaries and benefits",5400,"Non-Jurisdictional - Salaries","Salaries (4) - CC(F-Cat4)/Fund(F-VM)/RESNO(M)/WO(M)/ACT(M)/AT(M)","IS","5400","GL","Active",229,"229 PROJECT PERSONNEL",null,null,null,false,5400,{"$f":"IFERROR(INDEX('Prod COA'!B:B,MATCH('CHART OF ACCOUNTS'!T29,'Prod COA'!E:E,0)),INDEX('Prod COA'!B:B,MATCH('CHART OF ACCOUNTS'!T29,'Prod COA'!A:A,0)))","v":{"$error":"#N/A"}}]
[2,"Statement of Operations","50","Expenses","500","Salaries and benefits",5530,"Salary - Internal recoveries","General Rev and Exp (7) - CC(F-Cat4)/Fund(F-VM)/WO(M)/ACT(M)","IS","5530","GL","Active",230,"230 SALARY RECOVERY INTERNAL",null,null,null,false,5530,{"$f":"IFERROR(INDEX('Prod COA'!B:B,MATCH('CHART OF ACCOUNTS'!T30,'Prod COA'!E:E,0)),INDEX('Prod COA'!B:B,MATCH('CHART OF ACCOUNTS'!T30,'Prod COA'!A:A,0)))","v":{"$error":"#N/A"}}]
[2,"Statement of Operations","50","Expenses","500","Salaries and benefits",5848,"EXTERNAL Salary recoveries","General ResNo Rule (8) - CC(F-Cat4)/Fund(F-VM)/RESNO(O)/WO(M)/Act(M)","IS","5848","GL","Active",231,"231 SALARY RECOVERY EXTERNAL",null,null,null,false,5848,{"$f":"IFERROR(INDEX('Prod COA'!B:B,MATCH('CHART OF ACCOUNTS'!T31,'Prod COA'!E:E,0)),INDEX('Prod COA'!B:B,MATCH('CHART OF ACCOUNTS'!T31,'Prod COA'!A:A,0)))","v":{"$error":"#N/A"}}]
[2,"Statement of Operations","50","Expenses","500","Salaries and benefits",5500,"Salary - Other expenses","General Rev and Exp (7) - CC(F-Cat4)/Fund(F-VM)/WO(M)/ACT(M)","IS","5500","GL","Active",232,"Not in YTD GL",null,null,null,false,5500,{"$f":"IFERROR(INDEX('Prod COA'!B:B,MATCH('CHART OF ACCOUNTS'!T32,'Prod COA'!E:E,0)),INDEX('Prod COA'!B:B,MATCH('CHART OF ACCOUNTS'!T32,'Prod COA'!A:A,0)))","v":{"$error":"#N/A"}}]
[2,"Statement of Operations","50","Expenses","600","Fees and purchased services","6006-1","Non-Employee Honoraria (NT)","Tax Value Matrix (27) - CC(F-Cat4)/Fund(F-VM)/WO(M)/Act(M)","IS","6006","GL","Active",235,"235 HONORARIA",null,null,null,false,6006,{"$f":"IFERROR(INDEX('Prod COA'!B:B,MATCH('CHART OF ACCOUNTS'!T33,'Prod COA'!E:E,0)),INDEX('Prod COA'!B:B,MATCH('CHART OF ACCOUNTS'!T33,'Prod COA'!A:A,0)))","v":{"$error":"#N/A"}}]
[2,"Statement of Operations","50","Expenses","600","Fees and purchased services","6005-1","Fee for Service - Individual / Sole Proprietor (NT)","Tax Value Matrix (27) - CC(F-Cat4)/Fund(F-VM)/WO(M)/Act(M)","IS","6005","GL","Active",239,"239 FEE FOR SERVICE",null,null,null,false,6005,{"$f":"IFERROR(INDEX('Prod COA'!B:B,MATCH('CHART OF ACCOUNTS'!T34,'Prod COA'!E:E,0)),INDEX('Prod COA'!B:B,MATCH('CHART OF ACCOUNTS'!T34,'Prod COA'!A:A,0)))","v":{"$error":"#N/A"}}]
[2,"Statement of Operations","50","Expenses","500","Salaries and benefits",5899,"FORECAST Benefits - Employer costs and Premiums","Salaries (4) - CC(F-Cat4)/Fund(F-VM)/RESNO(M)/WO(M)/ACT(M)/AT(M)","IS","5899","GL","Active",240,"240 FRINGE BENEFITS",null,null,null,false,5899,{"$f":"IFERROR(INDEX('Prod COA'!B:B,MATCH('CHART OF ACCOUNTS'!T35,'Prod COA'!E:E,0)),INDEX('Prod COA'!B:B,MATCH('CHART OF ACCOUNTS'!T35,'Prod COA'!A:A,0)))","v":{"$error":"#N/A"}}]
[2,"Statement of Operations","50","Expenses","500","Salaries and benefits",5400,"Non-Jurisdictional - Salaries","Salaries (4) - CC(F-Cat4)/Fund(F-VM)/RESNO(M)/WO(M)/ACT(M)/AT(M)","IS","5400","GL","Active",250,"250 RESEARCH-UNDERGRAD STUDNT",null,null,null,false,5400,{"$f":"IFERROR(INDEX('Prod COA'!B:B,MATCH('CHART OF ACCOUNTS'!T36,'Prod COA'!E:E,0)),INDEX('Prod COA'!B:B,MATCH('CHART OF ACCOUNTS'!T36,'Prod COA'!A:A,0)))","v":{"$error":"#N/A"}}]
[2,"Statement of Operations","50","Expenses","500","Salaries and benefits",5400,"Non-Jurisdictional - Salaries","Salaries (4) - CC(F-Cat4)/Fund(F-VM)/RESNO(M)/WO(M)/ACT(M)/AT(M)","IS","5400","GL","Active",251,"251 RESEARCH-MASTERS STUDENT",null,null,null,true,5400,{"$f":"IFERROR(INDEX('Prod COA'!B:B,MATCH('CHART OF ACCOUNTS'!T37,'Prod COA'!E:E,0)),INDEX('Prod COA'!B:B,MATCH('CHART OF ACCOUNTS'!T37,'Prod COA'!A:A,0)))","v":{"$error":"#N/A"}}]
[2,"Statement of Operations","50","Expenses","500","Salaries and benefits",5400,"Non-Jurisdictional - Salaries","Salaries (4) - CC(F-Cat4)/Fund(F-VM)/RESNO(M)/WO(M)/ACT(M)/AT(M)","IS","5400","GL","Active",252,"252 RESEARCH-DOCTORAL STUDENT",null,null,null,true,5400,{"$f":"IFERROR(INDEX('Prod COA'!B:B,MATCH('CHART OF ACCOUNTS'!T38,'Prod COA'!E:E,0)),INDEX('Prod COA'!B:B,MATCH('CHART OF ACCOUNTS'!T38,'Prod COA'!A:A,0)))","v":{"$error":"#N/A"}}]
[2,"Statement of Operations","50","Expenses","500","Salaries and benefits",5400,"Non-Jurisdictional - Salaries","Salaries (4) - CC(F-Cat4)/Fund(F-VM)/RESNO(M)/WO(M)/ACT(M)/AT(M)","IS","5400","GL","Active",253,"253 RESEARCH-POST-DOCTORAL",null,null,null,true,5400,{"$f":"IFERROR(INDEX('Prod COA'!B:B,MATCH('CHART OF ACCOUNTS'!T39,'Prod COA'!E:E,0)),INDEX('Prod COA'!B:B,MATCH('CHART OF ACCOUNTS'!T39,'Prod COA'!A:A,0)))","v":{"$error":"#N/A"}}]
[2,"Statement of Operations","50","Expenses","500","Salaries and benefits",5330,"VIUFA - Contractual PD - Funds","Salaries (4) - CC(F-Cat4)/Fund(F-VM)/RESNO(M)/WO(M)/ACT(M)/AT(M)","IS","5330","GL","Active",280,"280 VUIFA PROFESSIONAL DEV'T",null,null,null,false,5330,{"$f":"IFERROR(INDEX('Prod COA'!B:B,MATCH('CHART OF ACCOUNTS'!T40,'Prod COA'!E:E,0)),INDEX('Prod COA'!B:B,MATCH('CHART OF ACCOUNTS'!T40,'Prod COA'!A:A,0)))","v":{"$error":"#N/A"}}]
[2,"Statement of Operations","50","Expenses","500","Salaries and benefits",5120,"BCGEU - Contractual Professional Development","Salaries (4) - CC(F-Cat4)/Fund(F-VM)/RESNO(M)/WO(M)/ACT(M)/AT(M)","IS","5120","GL","Active",281,"281 BGGEU CONTRACTUAL PRO-D",null,null,null,{"$f":"T41=#REF!","v":{"$error":"#REF!"}},5120,{"$f":"IFERROR(INDEX('Prod COA'!B:B,MATCH('CHART OF ACCOUNTS'!T41,'Prod COA'!E:E,0)),INDEX('Prod COA'!B:B,MATCH('CHART OF ACCOUNTS'!T41,'Prod COA'!A:A,0)))","v":{"$error":"#N/A"}}]
[2,"Statement of Operations","50","Expenses","610","Travel and training","6110-1","Training - Employee (NT)","Tax Value Matrix (Resno) (28) - CC(F-Cat4)/Fund(F-VM)/ResNo(M)/WO(M)/Act(M)","IS","6110","GL","Active",281,"281 BGGEU CONTRACTUAL PRO-D",null,null,null,false,6110,{"$f":"IFERROR(INDEX('Prod COA'!B:B,MATCH('CHART OF ACCOUNTS'!T42,'Prod COA'!E:E,0)),INDEX('Prod COA'!B:B,MATCH('CHART OF ACCOUNTS'!T42,'Prod COA'!A:A,0)))","v":{"$error":"#N/A"}}]
[2,"Statement of Operations","50","Expenses","610","Travel and training","6110-1","Training - Employee (NT)","Tax Value Matrix (Resno) (28) - CC(F-Cat4)/Fund(F-VM)/ResNo(M)/WO(M)/Act(M)","IS","6110","GL","Active",282,"282 NON-CONTRACTUAL PRO-D",null,null,null,true,6110,{"$f":"IFERROR(INDEX('Prod COA'!B:B,MATCH('CHART OF ACCOUNTS'!T43,'Prod COA'!E:E,0)),INDEX('Prod COA'!B:B,MATCH('CHART OF ACCOUNTS'!T43,'Prod COA'!A:A,0)))","v":{"$error":"#N/A"}}]
[2,"Statement of Operations","50","Expenses","610","Travel and training","6111-1","Training - VIU Courses Paid for Staff - SLED","General Rev and Exp (7) - CC(F-Cat4)/Fund(F-VM)/WO(M)/ACT(M)","IS","6111","GL","Active",285,"285 VIU PAID STAFF COURSE FEE",null,null,null,false,6111,{"$f":"IFERROR(INDEX('Prod COA'!B:B,MATCH('CHART OF ACCOUNTS'!T44,'Prod COA'!E:E,0)),INDEX('Prod COA'!B:B,MATCH('CHART OF ACCOUNTS'!T44,'Prod COA'!A:A,0)))","v":{"$error":"#N/A"}}]
[2,"Statement of Operations","77","Capital additions - to be capitalized","770","Capital additions - to be capitalized","7700-1","Capital Purchases - Buildings (NT)","Tax Value Matrix (27) - CC(F-Cat4)/Fund(F-VM)/WO(M)/Act(M)","IS","7700","GL","Active",300,"Not in YTD GL",null,null,null,false,7700,{"$f":"IFERROR(INDEX('Prod COA'!B:B,MATCH('CHART OF ACCOUNTS'!T45,'Prod COA'!E:E,0)),INDEX('Prod COA'!B:B,MATCH('CHART OF ACCOUNTS'!T45,'Prod COA'!A:A,0)))","v":{"$error":"#N/A"}}]
[2,"Statement of Operations","77","Capital additions - to be capitalized","770","Capital additions - to be capitalized","7700-1","Capital Purchases - Buildings (NT)","Tax Value Matrix (27) - CC(F-Cat4)/Fund(F-VM)/WO(M)/Act(M)","IS","7700","GL","Active",315,"315 CONSTRUCTION-PAINTING",null,null,null,true,7700,{"$f":"IFERROR(INDEX('Prod COA'!B:B,MATCH('CHART OF ACCOUNTS'!T46,'Prod COA'!E:E,0)),INDEX('Prod COA'!B:B,MATCH('CHART OF ACCOUNTS'!T46,'Prod COA'!A:A,0)))","v":{"$error":"#N/A"}}]
[2,"Statement of Operations","50","Expenses","650","Materials and supplies","6500-1","Supplies (NT)","Tax Value Matrix (27) - CC(F-Cat4)/Fund(F-VM)/WO(M)/Act(M)","IS","6500","GL","Active",400,"400 SUPPLIES",null,null,null,false,6500,{"$f":"IFERROR(INDEX('Prod COA'!B:B,MATCH('CHART OF ACCOUNTS'!T47,'Prod COA'!E:E,0)),INDEX('Prod COA'!B:B,MATCH('CHART OF ACCOUNTS'!T47,'Prod COA'!A:A,0)))","v":{"$error":"#N/A"}}]
[2,"Statement of Operations","50","Expenses","600","Fees and purchased services","6010-1","Advertising & Promotion (NT)","Tax Value Matrix (27) - CC(F-Cat4)/Fund(F-VM)/WO(M)/Act(M)","IS","6010","GL","Active",401,"401 BROCHURES/POSTERS",null,null,null,false,6010,{"$f":"IFERROR(INDEX('Prod COA'!B:B,MATCH('CHART OF ACCOUNTS'!T48,'Prod COA'!E:E,0)),INDEX('Prod COA'!B:B,MATCH('CHART OF ACCOUNTS'!T48,'Prod COA'!A:A,0)))","v":{"$error":"#N/A"}}]
[2,"Statement of Operations","50","Expenses","600","Fees and purchased services","6010-1","Advertising & Promotion (NT)","Tax Value Matrix (27) - CC(F-Cat4)/Fund(F-VM)/WO(M)/Act(M)","IS","6010","GL","Active",402,"402 PUBLICITY/PROMOTION",null,null,null,true,6010,{"$f":"IFERROR(INDEX('Prod COA'!B:B,MATCH('CHART OF ACCOUNTS'!T49,'Prod COA'!E:E,0)),INDEX('Prod COA'!B:B,MATCH('CHART OF ACCOUNTS'!T49,'Prod COA'!A:A,0)))","v":{"$error":"#N/A"}}]
[2,"Statement of Operations","50","Expenses","600","Fees and purchased services","6010-1","Advertising & Promotion (NT)","Tax Value Matrix (27) - CC(F-Cat4)/Fund(F-VM)/WO(M)/Act(M)","IS","6010","GL","Active",403,"Not in YTD GL",null,null,null,true,6010,{"$f":"IFERROR(INDEX('Prod COA'!B:B,MATCH('CHART OF ACCOUNTS'!T50,'Prod COA'!E:E,0)),INDEX('Prod COA'!B:B,MATCH('CHART OF ACCOUNTS'!T50,'Prod COA'!A:A,0)))","v":{"$error":"#N/A"}}]
[2,"Statement of Operations","50","Expenses","650","Materials and supplies","6500-1","Supplies (NT)","Tax Value Matrix (27) - CC(F-Cat4)/Fund(F-VM)/WO(M)/Act(M)","IS","6500","GL","Active",404,"Not in YTD GL",null,null,null,false,6500,{"$f":"IFERROR(INDEX('Prod COA'!B:B,MATCH('CHART OF ACCOUNTS'!T51,'Prod COA'!E:E,0)),INDEX('Prod COA'!B:B,MATCH('CHART OF ACCOUNTS'!T51,'Prod COA'!A:A,0)))","v":{"$error":"#N/A"}}]
[2,"Statement of Operations","50","Expenses","600","Fees and purchased services","6010-1","Advertising & Promotion (NT)","Tax Value Matrix (27) - CC(F-Cat4)/Fund(F-VM)/WO(M)/Act(M)","IS","6010","GL","Active",405,"405 ADVERTISING",null,null,null,false,6010,{"$f":"IFERROR(INDEX('Prod COA'!B:B,MATCH('CHART OF ACCOUNTS'!T52,'Prod COA'!E:E,0)),INDEX('Prod COA'!B:B,MATCH('CHART OF ACCOUNTS'!T52,'Prod COA'!A:A,0)))","v":{"$error":"#N/A"}}]
[2,"Statement of Operations","50","Expenses","650","Materials and supplies","6520-1","Postage, Courier, and Freight (NT)","Tax Value Matrix (27) - CC(F-Cat4)/Fund(F-VM)/WO(M)/Act(M)","IS","6520","GL","Active",406,"406 POSTAGE AND COURIER",null,null,null,false,6520,{"$f":"IFERROR(INDEX('Prod COA'!B:B,MATCH('CHART OF ACCOUNTS'!T53,'Prod COA'!E:E,0)),INDEX('Prod COA'!B:B,MATCH('CHART OF ACCOUNTS'!T53,'Prod COA'!A:A,0)))","v":{"$error":"#N/A"}}]
[2,"Statement of Operations","50","Expenses","630","Equipment rental and maintenance","6325-1","Rental and Lease (NT)","Tax Value Matrix (27) - CC(F-Cat4)/Fund(F-VM)/WO(M)/Act(M)","IS","6325","GL","Active",408,"Not in YTD GL",null,null,null,false,6325,{"$f":"IFERROR(INDEX('Prod COA'!B:B,MATCH('CHART OF ACCOUNTS'!T54,'Prod COA'!E:E,0)),INDEX('Prod COA'!B:B,MATCH('CHART OF ACCOUNTS'!T54,'Prod COA'!A:A,0)))","v":{"$error":"#N/A"}}]
[2,"Statement of Operations","50","Expenses","600","Fees and purchased services","6000-1","Services (NT)","Tax Value Matrix (27) - CC(F-Cat4)/Fund(F-VM)/WO(M)/Act(M)","IS","6000","GL","Active",409,"409 PROGRAM DEVELOPMENT",null,null,null,false,6000,{"$f":"IFERROR(INDEX('Prod COA'!B:B,MATCH('CHART OF ACCOUNTS'!T55,'Prod COA'!E:E,0)),INDEX('Prod COA'!B:B,MATCH('CHART OF ACCOUNTS'!T55,'Prod COA'!A:A,0)))","v":{"$error":"#N/A"}}]
[2,"Statement of Operations","50","Expenses","600","Fees and purchased services","6000-1","Services (NT)","Tax Value Matrix (27) - CC(F-Cat4)/Fund(F-VM)/WO(M)/Act(M)","IS","6000","GL","Active",410,"410 SERVICES",null,null,null,true,6000,{"$f":"IFERROR(INDEX('Prod COA'!B:B,MATCH('CHART OF ACCOUNTS'!T56,'Prod COA'!E:E,0)),INDEX('Prod COA'!B:B,MATCH('CHART OF ACCOUNTS'!T56,'Prod COA'!A:A,0)))","v":{"$error":"#N/A"}}]
[2,"Statement of Operations","50","Expenses","600","Fees and purchased services","6000-1","Services (NT)","Tax Value Matrix (27) - CC(F-Cat4)/Fund(F-VM)/WO(M)/Act(M)","IS","6000","GL","Active",411,"411 AGENTS' COMMISSIONS",null,null,null,true,6000,{"$f":"IFERROR(INDEX('Prod COA'!B:B,MATCH('CHART OF ACCOUNTS'!T57,'Prod COA'!E:E,0)),INDEX('Prod COA'!B:B,MATCH('CHART OF ACCOUNTS'!T57,'Prod COA'!A:A,0)))","v":{"$error":"#N/A"}}]
[2,"Statement of Operations","50","Expenses","600","Fees and purchased services","6030-1","Professional and Consulting Fees (NT)","Tax Value Matrix (27) - CC(F-Cat4)/Fund(F-VM)/WO(M)/Act(M)","IS","6030","GL","Active",412,"412 AUDIT FEES",null,null,null,false,6030,{"$f":"IFERROR(INDEX('Prod COA'!B:B,MATCH('CHART OF ACCOUNTS'!T58,'Prod COA'!E:E,0)),INDEX('Prod COA'!B:B,MATCH('CHART OF ACCOUNTS'!T58,'Prod COA'!A:A,0)))","v":{"$error":"#N/A"}}]
[2,"Statement of Operations","50","Expenses","600","Fees and purchased services","6030-1","Professional and Consulting Fees (NT)","Tax Value Matrix (27) - CC(F-Cat4)/Fund(F-VM)/WO(M)/Act(M)","IS","6030","GL","Active",413,"413 LEGAL FEES",null,null,null,true,6030,{"$f":"IFERROR(INDEX('Prod COA'!B:B,MATCH('CHART OF ACCOUNTS'!T59,'Prod COA'!E:E,0)),INDEX('Prod COA'!B:B,MATCH('CHART OF ACCOUNTS'!T59,'Prod COA'!A:A,0)))","v":{"$error":"#N/A"}}]
[2,"Statement of Operations","50","Expenses","600","Fees and purchased services","6035-1","Bank Charges, Interest, and Credit Card Fees (NT)","Tax Value Matrix (27) - CC(F-Cat4)/Fund(F-VM)/WO(M)/Act(M)","IS","6035","GL","Active",415,"Not in YTD GL",null,null,null,{"$f":"T60=#REF!","v":{"$error":"#REF!"}},6035,{"$f":"IFERROR(INDEX('Prod COA'!B:B,MATCH('CHART OF ACCOUNTS'!T60,'Prod COA'!E:E,0)),INDEX('Prod COA'!B:B,MATCH('CHART OF ACCOUNTS'!T60,'Prod COA'!A:A,0)))","v":{"$error":"#N/A"}}]
[2,"Statement of Operations","50","Expenses","660","Cost of goods sold","6600-1","Cost of Goods Sold (NT)","Tax Value Matrix (27) - CC(F-Cat4)/Fund(F-VM)/WO(M)/Act(M)","IS","6600","GL","Active",416,"416 PAPER SUPPLIES CAFETERIA",null,null,null,{"$f":"T61=T60","v":false},6600,{"$f":"IFERROR(INDEX('Prod COA'!B:B,MATCH('CHART OF ACCOUNTS'!T61,'Prod COA'!E:E,0)),INDEX('Prod COA'!B:B,MATCH('CHART OF ACCOUNTS'!T61,'Prod COA'!A:A,0)))","v":{"$error":"#N/A"}}]
[2,"Statement of Operations","50","Expenses","600","Fees and purchased services","6000-1","Services (NT)","Tax Value Matrix (27) - CC(F-Cat4)/Fund(F-VM)/WO(M)/Act(M)","IS","6000","GL","Active",417,"417 LAUNDRY/LINEN",null,null,null,false,6000,{"$f":"IFERROR(INDEX('Prod COA'!B:B,MATCH('CHART OF ACCOUNTS'!T62,'Prod COA'!E:E,0)),INDEX('Prod COA'!B:B,MATCH('CHART OF ACCOUNTS'!T62,'Prod COA'!A:A,0)))","v":{"$error":"#N/A"}}]
[2,"Statement of Operations","50","Expenses","600","Fees and purchased services","6000-1","Services (NT)","Tax Value Matrix (27) - CC(F-Cat4)/Fund(F-VM)/WO(M)/Act(M)","IS","6000","GL","Active",418,"418 TECHN. SERVICES/SUPPLIES",null,null,null,true,6000,{"$f":"IFERROR(INDEX('Prod COA'!B:B,MATCH('CHART OF ACCOUNTS'!T63,'Prod COA'!E:E,0)),INDEX('Prod COA'!B:B,MATCH('CHART OF ACCOUNTS'!T63,'Prod COA'!A:A,0)))","v":{"$error":"#N/A"}}]
[2,"Statement of Operations","50","Expenses","610","Travel and training","6100-1","Travel - Employee (NT)","Tax Value Matrix (Resno) (28) - CC(F-Cat4)/Fund(F-VM)/ResNo(M)/WO(M)/Act(M)","IS","6100","GL","Active",420,"420 TRAVEL",null,null,null,false,6100,{"$f":"IFERROR(INDEX('Prod COA'!B:B,MATCH('CHART OF ACCOUNTS'!T64,'Prod COA'!E:E,0)),INDEX('Prod COA'!B:B,MATCH('CHART OF ACCOUNTS'!T64,'Prod COA'!A:A,0)))","v":{"$error":"#N/A"}}]
[2,"Statement of Operations","50","Expenses","610","Travel and training","6100-1","Travel - Employee (NT)","Tax Value Matrix (Resno) (28) - CC(F-Cat4)/Fund(F-VM)/ResNo(M)/WO(M)/Act(M)","IS","6100","GL","Active",421,"421 INTER-CAMPUS TRAVEL",null,null,null,true,6100,{"$f":"IFERROR(INDEX('Prod COA'!B:B,MATCH('CHART OF ACCOUNTS'!T65,'Prod COA'!E:E,0)),INDEX('Prod COA'!B:B,MATCH('CHART OF ACCOUNTS'!T65,'Prod COA'!A:A,0)))","v":{"$error":"#N/A"}}]
[2,"Statement of Operations","50","Expenses","610","Travel and training","6100-1","Travel - Employee (NT)","Tax Value Matrix (Resno) (28) - CC(F-Cat4)/Fund(F-VM)/ResNo(M)/WO(M)/Act(M)","IS","6100","GL","Active",422,"422 TRAVEL - INST. DELIVERY",null,null,null,true,6100,{"$f":"IFERROR(INDEX('Prod COA'!B:B,MATCH('CHART OF ACCOUNTS'!T66,'Prod COA'!E:E,0)),INDEX('Prod COA'!B:B,MATCH('CHART OF ACCOUNTS'!T66,'Prod COA'!A:A,0)))","v":{"$error":"#N/A"}}]
[2,"Statement of Operations","50","Expenses","610","Travel and training","6100-1","Travel - Employee (NT)","Tax Value Matrix (Resno) (28) - CC(F-Cat4)/Fund(F-VM)/ResNo(M)/WO(M)/Act(M)","IS","6100","GL","Active",423,"423 TRAVEL - ADMINISTRATION",null,null,null,true,6100,{"$f":"IFERROR(INDEX('Prod COA'!B:B,MATCH('CHART OF ACCOUNTS'!T67,'Prod COA'!E:E,0)),INDEX('Prod COA'!B:B,MATCH('CHART OF ACCOUNTS'!T67,'Prod COA'!A:A,0)))","v":{"$error":"#N/A"}}]
[2,"Statement of Operations","50","Expenses","610","Travel and training","6100-1","Travel - Employee (NT)","Tax Value Matrix (Resno) (28) - CC(F-Cat4)/Fund(F-VM)/ResNo(M)/WO(M)/Act(M)","IS","6100","GL","Active",424,"Not in YTD GL",null,null,null,true,{"$f":"IF(LEN(G68)=4,G68,K68)*1","v":6100},{"$f":"IFERROR(INDEX('Prod COA'!B:B,MATCH('CHART OF ACCOUNTS'!T68,'Prod COA'!E:E,0)),INDEX('Prod COA'!B:B,MATCH('CHART OF ACCOUNTS'!T68,'Prod COA'!A:A,0)))","v":{"$error":"#N/A"}}]
[2,"Statement of Operations","50","Expenses","610","Travel and training","6105-1","Travel - Non Employee (NT)","Tax Value Matrix (27) - CC(F-Cat4)/Fund(F-VM)/WO(M)/Act(M)","IS","6105","GL","Active",425,"425 TRAVEL-STUDENT/NON-EMPL",null,null,null,false,6105,{"$f":"IFERROR(INDEX('Prod COA'!B:B,MATCH('CHART OF ACCOUNTS'!T69,'Prod COA'!E:E,0)),INDEX('Prod COA'!B:B,MATCH('CHART OF ACCOUNTS'!T69,'Prod COA'!A:A,0)))","v":{"$error":"#N/A"}}]
[2,"Statement of Operations","50","Expenses","610","Travel and training","6105-1","Travel - Non Employee (NT)","Tax Value Matrix (27) - CC(F-Cat4)/Fund(F-VM)/WO(M)/Act(M)","IS","6105","GL","Active",426,"Not in YTD GL",null,null,null,true,6105,{"$f":"IFERROR(INDEX('Prod COA'!B:B,MATCH('CHART OF ACCOUNTS'!T70,'Prod COA'!E:E,0)),INDEX('Prod COA'!B:B,MATCH('CHART OF ACCOUNTS'!T70,'Prod COA'!A:A,0)))","v":{"$error":"#N/A"}}]
[2,"Statement of Operations","50","Expenses","600","Fees and purchased services","6005-1","Fee for Service - Individual / Sole Proprietor (NT)","Tax Value Matrix (27) - CC(F-Cat4)/Fund(F-VM)/WO(M)/Act(M)","IS","6005","GL","Active",427,"427 PARTICIPANT ALLOWANCES",null,null,null,false,6005,{"$f":"IFERROR(INDEX('Prod COA'!B:B,MATCH('CHART OF ACCOUNTS'!T71,'Prod COA'!E:E,0)),INDEX('Prod COA'!B:B,MATCH('CHART OF ACCOUNTS'!T71,'Prod COA'!A:A,0)))","v":{"$error":"#N/A"}}]
[2,"Statement of Operations","50","Expenses","610","Travel and training","6100-1","Travel - Employee (NT)","Tax Value Matrix (Resno) (28) - CC(F-Cat4)/Fund(F-VM)/ResNo(M)/WO(M)/Act(M)","IS","6100","GL","Active",428,"428 ARTICULATION",null,null,null,false,6100,{"$f":"IFERROR(INDEX('Prod COA'!B:B,MATCH('CHART OF ACCOUNTS'!T72,'Prod COA'!E:E,0)),INDEX('Prod COA'!B:B,MATCH('CHART OF ACCOUNTS'!T72,'Prod COA'!A:A,0)))","v":{"$error":"#N/A"}}]
[2,"Statement of Operations","50","Expenses","620","Scholarships and bursaries","6200-1","Tuition Bursary/Scholarships (NT)","Tax Value Matrix (27) - CC(F-Cat4)/Fund(F-VM)/WO(M)/Act(M)","IS","6200","GL","Active",429,"429 TUITION CHG/BURSAY/SCHOLA",null,null,null,false,6200,{"$f":"IFERROR(INDEX('Prod COA'!B:B,MATCH('CHART OF ACCOUNTS'!T73,'Prod COA'!E:E,0)),INDEX('Prod COA'!B:B,MATCH('CHART OF ACCOUNTS'!T73,'Prod COA'!A:A,0)))","v":{"$error":"#N/A"}}]
[2,"Statement of Operations","50","Expenses","630","Equipment rental and maintenance","6325-1","Rental and Lease (NT)","Tax Value Matrix (27) - CC(F-Cat4)/Fund(F-VM)/WO(M)/Act(M)","IS","6325","GL","Active",430,"430 RENTAL - EQUIPMENT",null,null,null,false,6325,{"$f":"IFERROR(INDEX('Prod COA'!B:B,MATCH('CHART OF ACCOUNTS'!T74,'Prod COA'!E:E,0)),INDEX('Prod COA'!B:B,MATCH('CHART OF ACCOUNTS'!T74,'Prod COA'!A:A,0)))","v":{"$error":"#N/A"}}]
[2,"Statement of Operations","50","Expenses","630","Equipment rental and maintenance","6325-1","Rental and Lease (NT)","Tax Value Matrix (27) - CC(F-Cat4)/Fund(F-VM)/WO(M)/Act(M)","IS","6325","GL","Active",431,"431 RENTAL - FACILITES",null,null,null,true,6325,{"$f":"IFERROR(INDEX('Prod COA'!B:B,MATCH('CHART OF ACCOUNTS'!T75,'Prod COA'!E:E,0)),INDEX('Prod COA'!B:B,MATCH('CHART OF ACCOUNTS'!T75,'Prod COA'!A:A,0)))","v":{"$error":"#N/A"}}]
[2,"Statement of Operations","77","Capital additions - to be capitalized","770","Capital additions - to be capitalized","7701-1","Capital Purchases - Building Retrofit (NT)","Tax Value Matrix (27) - CC(F-Cat4)/Fund(F-VM)/WO(M)/Act(M)","IS","7701","GL","Active",435,"Not in YTD GL",null,null,null,false,7701,{"$f":"IFERROR(INDEX('Prod COA'!B:B,MATCH('CHART OF ACCOUNTS'!T76,'Prod COA'!E:E,0)),INDEX('Prod COA'!B:B,MATCH('CHART OF ACCOUNTS'!T76,'Prod COA'!A:A,0)))","v":{"$error":"#N/A"}}]
[2,"Statement of Operations","77","Capital additions - to be capitalized","770","Capital additions - to be capitalized","7712-3","Capital Purchases - Land (GP)","Tax Value Matrix (27) - CC(F-Cat4)/Fund(F-VM)/WO(M)/Act(M)","IS","7712","GL","Active",437,"Not in YTD GL",null,null,null,false,7712,{"$f":"IFERROR(INDEX('Prod COA'!B:B,MATCH('CHART OF ACCOUNTS'!T77,'Prod COA'!E:E,0)),INDEX('Prod COA'!B:B,MATCH('CHART OF ACCOUNTS'!T77,'Prod COA'!A:A,0)))","v":{"$error":"#N/A"}}]
[2,"Statement of Operations","77","Capital additions - to be capitalized","770","Capital additions - to be capitalized","7707-2","Capital Purchases - Equipment (G)","Tax Value Matrix (27) - CC(F-Cat4)/Fund(F-VM)/WO(M)/Act(M)","IS","7707","GL","Active",440,"440 EQUIP/INSTRUMENTS >$5,000",null,null,null,false,7707,{"$f":"IFERROR(INDEX('Prod COA'!B:B,MATCH('CHART OF ACCOUNTS'!T78,'Prod COA'!E:E,0)),INDEX('Prod COA'!B:B,MATCH('CHART OF ACCOUNTS'!T78,'Prod COA'!A:A,0)))","v":{"$error":"#N/A"}}]
[2,"Statement of Operations","77","Capital additions - to be capitalized","770","Capital additions - to be capitalized","7711-2","Capital Purchases - Vehicles (G)","Tax Value Matrix (27) - CC(F-Cat4)/Fund(F-VM)/WO(M)/Act(M)","IS","7711","GL","Active",441,"Not in YTD GL",null,null,null,false,7711,{"$f":"IFERROR(INDEX('Prod COA'!B:B,MATCH('CHART OF ACCOUNTS'!T79,'Prod COA'!E:E,0)),INDEX('Prod COA'!B:B,MATCH('CHART OF ACCOUNTS'!T79,'Prod COA'!A:A,0)))","v":{"$error":"#N/A"}}]
[2,"Statement of Operations","77","Capital additions - to be capitalized","770","Capital additions - to be capitalized","7702-2","Capital Purchases - Computer Equipment (G)","Tax Value Matrix (27) - CC(F-Cat4)/Fund(F-VM)/WO(M)/Act(M)","IS","7702","GL","Active",443,"Not in YTD GL",null,null,null,false,7702,{"$f":"IFERROR(INDEX('Prod COA'!B:B,MATCH('CHART OF ACCOUNTS'!T80,'Prod COA'!E:E,0)),INDEX('Prod COA'!B:B,MATCH('CHART OF ACCOUNTS'!T80,'Prod COA'!A:A,0)))","v":{"$error":"#N/A"}}]
[2,"Statement of Operations","50","Expenses","600","Fees and purchased services","6045-1","Software (NT)","Tax Value Matrix (27) - CC(F-Cat4)/Fund(F-VM)/WO(M)/Act(M)","IS","6045","GL","Active",444,"444 SOFTWARE",null,null,null,{"$f":"T81=#REF!","v":{"$error":"#REF!"}},6045,{"$f":"IFERROR(INDEX('Prod COA'!B:B,MATCH('CHART OF ACCOUNTS'!T81,'Prod COA'!E:E,0)),INDEX('Prod COA'!B:B,MATCH('CHART OF ACCOUNTS'!T81,'Prod COA'!A:A,0)))","v":{"$error":"#N/A"}}]
[2,"Statement of Operations","50","Expenses","630","Equipment rental and maintenance","6300-1","Repair and Maintenance - Furniture & Equipment (NT)","Tax Value Matrix (27) - CC(F-Cat4)/Fund(F-VM)/WO(M)/Act(M)","IS","6300","GL","Active",450,"450 REPAIRS - FURN & EQUIP",null,null,null,false,6300,{"$f":"IFERROR(INDEX('Prod COA'!B:B,MATCH('CHART OF ACCOUNTS'!T82,'Prod COA'!E:E,0)),INDEX('Prod COA'!B:B,MATCH('CHART OF ACCOUNTS'!T82,'Prod COA'!A:A,0)))","v":{"$error":"#N/A"}}]
[2,"Statement of Operations","50","Expenses","630","Equipment rental and maintenance","6310-1","Repair and Maintenance - Facilities (GP)","Tax Value Matrix (27) - CC(F-Cat4)/Fund(F-VM)/WO(M)/Act(M)","IS","6310","GL","Active",451,"451 PREVENTATIVE MAINTENANCE",null,null,null,false,6310,{"$f":"IFERROR(INDEX('Prod COA'!B:B,MATCH('CHART OF ACCOUNTS'!T83,'Prod COA'!E:E,0)),INDEX('Prod COA'!B:B,MATCH('CHART OF ACCOUNTS'!T83,'Prod COA'!A:A,0)))","v":{"$error":"#N/A"}}]
[2,"Statement of Operations","50","Expenses","630","Equipment rental and maintenance","6310-3","Repair and Maintenance - Facilities (GP)","Tax Value Matrix (27) - CC(F-Cat4)/Fund(F-VM)/WO(M)/Act(M)","IS","6310","GL","Active",451,"451 PREVENTATIVE MAINTENANCE",null,null,null,true,6310,{"$f":"IFERROR(INDEX('Prod COA'!B:B,MATCH('CHART OF ACCOUNTS'!T84,'Prod COA'!E:E,0)),INDEX('Prod COA'!B:B,MATCH('CHART OF ACCOUNTS'!T84,'Prod COA'!A:A,0)))","v":{"$error":"#N/A"}}]
[2,"Statement of Operations","50","Expenses","630","Equipment rental and maintenance","6310-1","Repair and Maintenance - Facilities (GP)","Tax Value Matrix (27) - CC(F-Cat4)/Fund(F-VM)/WO(M)/Act(M)","IS","6310","GL","Active",452,"Not in YTD GL",null,null,null,true,6310,{"$f":"IFERROR(INDEX('Prod COA'!B:B,MATCH('CHART OF ACCOUNTS'!T85,'Prod COA'!E:E,0)),INDEX('Prod COA'!B:B,MATCH('CHART OF ACCOUNTS'!T85,'Prod COA'!A:A,0)))","v":{"$error":"#N/A"}}]
[2,"Statement of Operations","82","Internal Expenses","820","Internal ordering - expenditures",8204,"Internal Consumption - Catering Costs","General Rev and Exp (7) - CC(F-Cat4)/Fund(F-VM)/WO(M)/ACT(M)","IS","8204","GL","Active",460,"460 ON CAMPUS HOSPITALITY EXP",null,null,null,false,8204,{"$f":"IFERROR(INDEX('Prod COA'!B:B,MATCH('CHART OF ACCOUNTS'!T86,'Prod COA'!E:E,0)),INDEX('Prod COA'!B:B,MATCH('CHART OF ACCOUNTS'!T86,'Prod COA'!A:A,0)))","v":{"$error":"#N/A"}}]
[2,"Statement of Operations","50","Expenses","600","Fees and purchased services","6015-1","Hospitality - External (NT)","Tax Value Matrix (27) - CC(F-Cat4)/Fund(F-VM)/WO(M)/Act(M)","IS","6015","GL","Active",461,"461 HOSPITALITY EXP. OTHER",null,null,null,false,6015,{"$f":"IFERROR(INDEX('Prod COA'!B:B,MATCH('CHART OF ACCOUNTS'!T87,'Prod COA'!E:E,0)),INDEX('Prod COA'!B:B,MATCH('CHART OF ACCOUNTS'!T87,'Prod COA'!A:A,0)))","v":{"$error":"#N/A"}}]
[2,"Statement of Operations","50","Expenses","650","Materials and supplies","6525-1","Miscellaneous Employee Expenses (NT)","Tax Value Matrix (Resno) (28) - CC(F-Cat4)/Fund(F-VM)/ResNo(M)/WO(M)/Act(M)","IS","6525","GL","Active",462,"462 EMPLOYEE EXPENSES - MISC",null,null,null,false,6525,{"$f":"IFERROR(INDEX('Prod COA'!B:B,MATCH('CHART OF ACCOUNTS'!T88,'Prod COA'!E:E,0)),INDEX('Prod COA'!B:B,MATCH('CHART OF ACCOUNTS'!T88,'Prod COA'!A:A,0)))","v":{"$error":"#N/A"}}]
[2,"Statement of Operations","82","Internal Expenses","820","Internal ordering - expenditures",8205,"Internal Consumption - Campus Store Costs","General Rev and Exp (7) - CC(F-Cat4)/Fund(F-VM)/WO(M)/ACT(M)","IS","8205","GL","Active",463,"463 VIU BOOKSTORE CHARGES",null,null,null,false,8205,{"$f":"IFERROR(INDEX('Prod COA'!B:B,MATCH('CHART OF ACCOUNTS'!T89,'Prod COA'!E:E,0)),INDEX('Prod COA'!B:B,MATCH('CHART OF ACCOUNTS'!T89,'Prod COA'!A:A,0)))","v":{"$error":"#N/A"}}]
[2,"Statement of Operations","50","Expenses","650","Materials and supplies","6500-1","Supplies (NT)","Tax Value Matrix (27) - CC(F-Cat4)/Fund(F-VM)/WO(M)/Act(M)","IS","6500","GL","Active",465,"465 MAJOR SUPPLIES/EQUIPMENT",null,null,null,false,6500,{"$f":"IFERROR(INDEX('Prod COA'!B:B,MATCH('CHART OF ACCOUNTS'!T90,'Prod COA'!E:E,0)),INDEX('Prod COA'!B:B,MATCH('CHART OF ACCOUNTS'!T90,'Prod COA'!A:A,0)))","v":{"$error":"#N/A"}}]
[2,"Statement of Operations","50","Expenses","650","Materials and supplies","6500-1","Supplies (NT)","Tax Value Matrix (27) - CC(F-Cat4)/Fund(F-VM)/WO(M)/Act(M)","IS","6500","GL","Active",466,"466 MAJOR SUPPLIES-COMP H/W",null,null,null,true,6500,{"$f":"IFERROR(INDEX('Prod COA'!B:B,MATCH('CHART OF ACCOUNTS'!T91,'Prod COA'!E:E,0)),INDEX('Prod COA'!B:B,MATCH('CHART OF ACCOUNTS'!T91,'Prod COA'!A:A,0)))","v":{"$error":"#N/A"}}]
[2,"Statement of Operations","50","Expenses","600","Fees and purchased services","6000-1","Services (NT)","Tax Value Matrix (27) - CC(F-Cat4)/Fund(F-VM)/WO(M)/Act(M)","IS","6000","GL","Active",469,"469 SECURITY/EMER.TELE.ACCESS",null,null,null,false,6000,{"$f":"IFERROR(INDEX('Prod COA'!B:B,MATCH('CHART OF ACCOUNTS'!T92,'Prod COA'!E:E,0)),INDEX('Prod COA'!B:B,MATCH('CHART OF ACCOUNTS'!T92,'Prod COA'!A:A,0)))","v":{"$error":"#N/A"}}]
[2,"Statement of Operations","50","Expenses","640","Utilities, insurance and taxes","6400-1","Utilities (NT)","Tax Value Matrix (27) - CC(F-Cat4)/Fund(F-VM)/WO(M)/Act(M)","IS","6400","GL","Active",470,"470 UTILITIES-HYDRO",null,null,null,false,6400,{"$f":"IFERROR(INDEX('Prod COA'!B:B,MATCH('CHART OF ACCOUNTS'!T93,'Prod COA'!E:E,0)),INDEX('Prod COA'!B:B,MATCH('CHART OF ACCOUNTS'!T93,'Prod COA'!A:A,0)))","v":{"$error":"#N/A"}}]
[2,"Statement of Operations","50","Expenses","640","Utilities, insurance and taxes","6400-1","Utilities (NT)","Tax Value Matrix (27) - CC(F-Cat4)/Fund(F-VM)/WO(M)/Act(M)","IS","6400","GL","Active",471,"471 UTILITIES WATER/SW/GARB.",null,null,null,true,6400,{"$f":"IFERROR(INDEX('Prod COA'!B:B,MATCH('CHART OF ACCOUNTS'!T94,'Prod COA'!E:E,0)),INDEX('Prod COA'!B:B,MATCH('CHART OF ACCOUNTS'!T94,'Prod COA'!A:A,0)))","v":{"$error":"#N/A"}}]
[2,"Statement of Operations","50","Expenses","640","Utilities, insurance and taxes","6400-1","Utilities (NT)","Tax Value Matrix (27) - CC(F-Cat4)/Fund(F-VM)/WO(M)/Act(M)","IS","6400","GL","Active",472,"472 UTILITIES-HEATING FUEL",null,null,null,true,6400,{"$f":"IFERROR(INDEX('Prod COA'!B:B,MATCH('CHART OF ACCOUNTS'!T95,'Prod COA'!E:E,0)),INDEX('Prod COA'!B:B,MATCH('CHART OF ACCOUNTS'!T95,'Prod COA'!A:A,0)))","v":{"$error":"#N/A"}}]
[2,"Statement of Operations","50","Expenses","640","Utilities, insurance and taxes","6400-1","Utilities (NT)","Tax Value Matrix (27) - CC(F-Cat4)/Fund(F-VM)/WO(M)/Act(M)","IS","6400","GL","Active",473,"473 UTILITIES NATURAL GAS",null,null,null,true,6400,{"$f":"IFERROR(INDEX('Prod COA'!B:B,MATCH('CHART OF ACCOUNTS'!T96,'Prod COA'!E:E,0)),INDEX('Prod COA'!B:B,MATCH('CHART OF ACCOUNTS'!T96,'Prod COA'!A:A,0)))","v":{"$error":"#N/A"}}]
[2,"Statement of Operations","50","Expenses","640","Utilities, insurance and taxes","6400-1","Utilities (NT)","Tax Value Matrix (27) - CC(F-Cat4)/Fund(F-VM)/WO(M)/Act(M)","IS","6400","GL","Active",474,"474 UTILITIES-CONTRACTED GARB",null,null,null,true,6400,{"$f":"IFERROR(INDEX('Prod COA'!B:B,MATCH('CHART OF ACCOUNTS'!T97,'Prod COA'!E:E,0)),INDEX('Prod COA'!B:B,MATCH('CHART OF ACCOUNTS'!T97,'Prod COA'!A:A,0)))","v":{"$error":"#N/A"}}]
[2,"Statement of Operations","50","Expenses","640","Utilities, insurance and taxes","6400-1","Utilities (NT)","Tax Value Matrix (27) - CC(F-Cat4)/Fund(F-VM)/WO(M)/Act(M)","IS","6400","GL","Active",475,"475 PROPERTY TAX/CARBON OFFSE",null,null,null,true,6400,{"$f":"IFERROR(INDEX('Prod COA'!B:B,MATCH('CHART OF ACCOUNTS'!T98,'Prod COA'!E:E,0)),INDEX('Prod COA'!B:B,MATCH('CHART OF ACCOUNTS'!T98,'Prod COA'!A:A,0)))","v":{"$error":"#N/A"}}]
[2,"Statement of Operations","50","Expenses","640","Utilities, insurance and taxes","6400-1","Utilities (NT)","Tax Value Matrix (27) - CC(F-Cat4)/Fund(F-VM)/WO(M)/Act(M)","IS","6400","GL","Active",476,"476 GARBAGE REMOVAL",null,null,null,true,6400,{"$f":"IFERROR(INDEX('Prod COA'!B:B,MATCH('CHART OF ACCOUNTS'!T99,'Prod COA'!E:E,0)),INDEX('Prod COA'!B:B,MATCH('CHART OF ACCOUNTS'!T99,'Prod COA'!A:A,0)))","v":{"$error":"#N/A"}}]
[2,"Statement of Operations","50","Expenses","630","Equipment rental and maintenance","6310-1","Repair and Maintenance - Facilities (GP)","Tax Value Matrix (27) - CC(F-Cat4)/Fund(F-VM)/WO(M)/Act(M)","IS","6310","GL","Active",478,"478 HVAC",null,null,null,false,6310,{"$f":"IFERROR(INDEX('Prod COA'!B:B,MATCH('CHART OF ACCOUNTS'!T100,'Prod COA'!E:E,0)),INDEX('Prod COA'!B:B,MATCH('CHART OF ACCOUNTS'!T100,'Prod COA'!A:A,0)))","v":{"$error":"#N/A"}}]
[2,"Statement of Operations","50","Expenses","630","Equipment rental and maintenance","6300-1","Repair and Maintenance - Furniture & Equipment (NT)","Tax Value Matrix (27) - CC(F-Cat4)/Fund(F-VM)/WO(M)/Act(M)","IS","6300","GL","Active",479,"479 SAFETY",null,null,null,false,6300,{"$f":"IFERROR(INDEX('Prod COA'!B:B,MATCH('CHART OF ACCOUNTS'!T101,'Prod COA'!E:E,0)),INDEX('Prod COA'!B:B,MATCH('CHART OF ACCOUNTS'!T101,'Prod COA'!A:A,0)))","v":{"$error":"#N/A"}}]
[2,"Statement of Operations","50","Expenses","600","Fees and purchased services","6000-1","Services (NT)","Tax Value Matrix (27) - CC(F-Cat4)/Fund(F-VM)/WO(M)/Act(M)","IS","6000","GL","Active",480,"480 JANITORIAL SERVICES",null,null,null,false,6000,{"$f":"IFERROR(INDEX('Prod COA'!B:B,MATCH('CHART OF ACCOUNTS'!T102,'Prod COA'!E:E,0)),INDEX('Prod COA'!B:B,MATCH('CHART OF ACCOUNTS'!T102,'Prod COA'!A:A,0)))","v":{"$error":"#N/A"}}]
[2,"Statement of Operations","50","Expenses","630","Equipment rental and maintenance","6300-1","Repair and Maintenance - Furniture & Equipment (NT)","Tax Value Matrix (27) - CC(F-Cat4)/Fund(F-VM)/WO(M)/Act(M)","IS","6300","GL","Active",482,"482 FIRE PROTECTION",null,null,null,false,6300,{"$f":"IFERROR(INDEX('Prod COA'!B:B,MATCH('CHART OF ACCOUNTS'!T103,'Prod COA'!E:E,0)),INDEX('Prod COA'!B:B,MATCH('CHART OF ACCOUNTS'!T103,'Prod COA'!A:A,0)))","v":{"$error":"#N/A"}}]
[2,"Statement of Operations","50","Expenses","630","Equipment rental and maintenance","6310-1","Repair and Maintenance - Facilities (GP)","Tax Value Matrix (27) - CC(F-Cat4)/Fund(F-VM)/WO(M)/Act(M)","IS","6310","GL","Active",483,"483 ELEVATORS",null,null,null,false,6310,{"$f":"IFERROR(INDEX('Prod COA'!B:B,MATCH('CHART OF ACCOUNTS'!T104,'Prod COA'!E:E,0)),INDEX('Prod COA'!B:B,MATCH('CHART OF ACCOUNTS'!T104,'Prod COA'!A:A,0)))","v":{"$error":"#N/A"}}]
[2,"Statement of Operations","50","Expenses","630","Equipment rental and maintenance","6310-1","Repair and Maintenance - Facilities (GP)","Tax Value Matrix (27) - CC(F-Cat4)/Fund(F-VM)/WO(M)/Act(M)","IS","6310","GL","Active",484,"484 ELECTRICAL",null,null,null,true,6310,{"$f":"IFERROR(INDEX('Prod COA'!B:B,MATCH('CHART OF ACCOUNTS'!T105,'Prod COA'!E:E,0)),INDEX('Prod COA'!B:B,MATCH('CHART OF ACCOUNTS'!T105,'Prod COA'!A:A,0)))","v":{"$error":"#N/A"}}]
[2,"Statement of Operations","50","Expenses","630","Equipment rental and maintenance","6310-1","Repair and Maintenance - Facilities (GP)","Tax Value Matrix (27) - CC(F-Cat4)/Fund(F-VM)/WO(M)/Act(M)","IS","6310","GL","Active",485,"485 PLUMBING",null,null,null,true,6310,{"$f":"IFERROR(INDEX('Prod COA'!B:B,MATCH('CHART OF ACCOUNTS'!T106,'Prod COA'!E:E,0)),INDEX('Prod COA'!B:B,MATCH('CHART OF ACCOUNTS'!T106,'Prod COA'!A:A,0)))","v":{"$error":"#N/A"}}]
[2,"Statement of Operations","50","Expenses","600","Fees and purchased services","6000-1","Services (NT)","Tax Value Matrix (27) - CC(F-Cat4)/Fund(F-VM)/WO(M)/Act(M)","IS","6000","GL","Active",486,"486 SECURITY SERVICES",null,null,null,false,6000,{"$f":"IFERROR(INDEX('Prod COA'!B:B,MATCH('CHART OF ACCOUNTS'!T107,'Prod COA'!E:E,0)),INDEX('Prod COA'!B:B,MATCH('CHART OF ACCOUNTS'!T107,'Prod COA'!A:A,0)))","v":{"$error":"#N/A"}}]
[2,"Statement of Operations","50","Expenses","600","Fees and purchased services","6000-1","Services (NT)","Tax Value Matrix (27) - CC(F-Cat4)/Fund(F-VM)/WO(M)/Act(M)","IS","6000","GL","Active",487,"Not in YTD GL",null,null,null,true,6000,{"$f":"IFERROR(INDEX('Prod COA'!B:B,MATCH('CHART OF ACCOUNTS'!T108,'Prod COA'!E:E,0)),INDEX('Prod COA'!B:B,MATCH('CHART OF ACCOUNTS'!T108,'Prod COA'!A:A,0)))","v":{"$error":"#N/A"}}]
[2,"Statement of Operations","50","Expenses","630","Equipment rental and maintenance","6310-1","Repair and Maintenance - Facilities (GP)","Tax Value Matrix (27) - CC(F-Cat4)/Fund(F-VM)/WO(M)/Act(M)","IS","6310","GL","Active",488,"Not in YTD GL",null,null,null,false,6310,{"$f":"IFERROR(INDEX('Prod COA'!B:B,MATCH('CHART OF ACCOUNTS'!T109,'Prod COA'!E:E,0)),INDEX('Prod COA'!B:B,MATCH('CHART OF ACCOUNTS'!T109,'Prod COA'!A:A,0)))","v":{"$error":"#N/A"}}]
[2,"Statement of Operations","50","Expenses","610","Travel and training","6115-1","Training - Institutional (NT)","Tax Value Matrix (27) - CC(F-Cat4)/Fund(F-VM)/WO(M)/Act(M)","IS","6115","GL","Active",493,"493 STAFF TRAINING-INSTITUTIO",null,null,null,false,6115,{"$f":"IFERROR(INDEX('Prod COA'!B:B,MATCH('CHART OF ACCOUNTS'!T110,'Prod COA'!E:E,0)),INDEX('Prod COA'!B:B,MATCH('CHART OF ACCOUNTS'!T110,'Prod COA'!A:A,0)))","v":{"$error":"#N/A"}}]
[2,"Statement of Operations","50","Expenses","600","Fees and purchased services","6020-1","Fees and Memberships - Institutional (NT)","Tax Value Matrix (27) - CC(F-Cat4)/Fund(F-VM)/WO(M)/Act(M)","IS","6020","GL","Active",494,"494 MEMBERSHIPS-INSTITUTIONAL",null,null,null,{"$f":"T111=#REF!","v":{"$error":"#REF!"}},6020,{"$f":"IFERROR(INDEX('Prod COA'!B:B,MATCH('CHART OF ACCOUNTS'!T111,'Prod COA'!E:E,0)),INDEX('Prod COA'!B:B,MATCH('CHART OF ACCOUNTS'!T111,'Prod COA'!A:A,0)))","v":{"$error":"#N/A"}}]
[2,"Statement of Operations","50","Expenses","600","Fees and purchased services","6025-1","Fees and Memberships - Employee (NT)","Tax Value Matrix (Resno) (28) - CC(F-Cat4)/Fund(F-VM)/ResNo(M)/WO(M)/Act(M)","IS","6025","GL","Active",495,"495 MEMBERSHIPS - EMPLOYEE",null,null,null,false,6025,{"$f":"IFERROR(INDEX('Prod COA'!B:B,MATCH('CHART OF ACCOUNTS'!T112,'Prod COA'!E:E,0)),INDEX('Prod COA'!B:B,MATCH('CHART OF ACCOUNTS'!T112,'Prod COA'!A:A,0)))","v":{"$error":"#N/A"}}]
[2,"Statement of Operations","50","Expenses","600","Fees and purchased services","6020-1","Fees and Memberships - Institutional (NT)","Tax Value Matrix (27) - CC(F-Cat4)/Fund(F-VM)/WO(M)/Act(M)","IS","6020","GL","Active",496,"496 SITE LICENCES/LIC/PERMITS",null,null,null,false,6020,{"$f":"IFERROR(INDEX('Prod COA'!B:B,MATCH('CHART OF ACCOUNTS'!T113,'Prod COA'!E:E,0)),INDEX('Prod COA'!B:B,MATCH('CHART OF ACCOUNTS'!T113,'Prod COA'!A:A,0)))","v":{"$error":"#N/A"}}]
[2,"Statement of Operations","50","Expenses","610","Travel and training","6110-1","Training - Employee (NT)","Tax Value Matrix (Resno) (28) - CC(F-Cat4)/Fund(F-VM)/ResNo(M)/WO(M)/Act(M)","IS","6110","GL","Active",497,"497 CONFERENCE FEES",null,null,null,{"$f":"T114=#REF!","v":{"$error":"#REF!"}},6110,{"$f":"IFERROR(INDEX('Prod COA'!B:B,MATCH('CHART OF ACCOUNTS'!T114,'Prod COA'!E:E,0)),INDEX('Prod COA'!B:B,MATCH('CHART OF ACCOUNTS'!T114,'Prod COA'!A:A,0)))","v":{"$error":"#N/A"}}]
[2,"Statement of Operations","50","Expenses","650","Materials and supplies","6500-1","Supplies (NT)","Tax Value Matrix (27) - CC(F-Cat4)/Fund(F-VM)/WO(M)/Act(M)","IS","6500","GL","Active",498,"498 FIRST AID",null,null,null,{"$f":"T115=T114","v":false},6500,{"$f":"IFERROR(INDEX('Prod COA'!B:B,MATCH('CHART OF ACCOUNTS'!T115,'Prod COA'!E:E,0)),INDEX('Prod COA'!B:B,MATCH('CHART OF ACCOUNTS'!T115,'Prod COA'!A:A,0)))","v":{"$error":"#N/A"}}]
[2,"Statement of Operations","50","Expenses","600","Fees and purchased services","6010-1","Advertising & Promotion (NT)","Tax Value Matrix (27) - CC(F-Cat4)/Fund(F-VM)/WO(M)/Act(M)","IS","6010","GL","Active",499,"499 SPECIAL EVENT EXPENDITURE",null,null,null,{"$f":"T116=#REF!","v":{"$error":"#REF!"}},6010,{"$f":"IFERROR(INDEX('Prod COA'!B:B,MATCH('CHART OF ACCOUNTS'!T116,'Prod COA'!E:E,0)),INDEX('Prod COA'!B:B,MATCH('CHART OF ACCOUNTS'!T116,'Prod COA'!A:A,0)))","v":{"$error":"#N/A"}}]
[2,"Statement of Operations","50","Expenses","610","Travel and training","6100-1","Travel - Employee (NT)","Tax Value Matrix (Resno) (28) - CC(F-Cat4)/Fund(F-VM)/ResNo(M)/WO(M)/Act(M)","IS","6100","GL","Active",500,"500 VEHICLE RENTAL-EMPL.TRAVE",null,null,null,{"$f":"T117=#REF!","v":{"$error":"#REF!"}},6100,{"$f":"IFERROR(INDEX('Prod COA'!B:B,MATCH('CHART OF ACCOUNTS'!T117,'Prod COA'!E:E,0)),INDEX('Prod COA'!B:B,MATCH('CHART OF ACCOUNTS'!T117,'Prod COA'!A:A,0)))","v":{"$error":"#N/A"}}]
[2,"Statement of Operations","50","Expenses","630","Equipment rental and maintenance","6325-1","Rental and Lease (NT)","Tax Value Matrix (27) - CC(F-Cat4)/Fund(F-VM)/WO(M)/Act(M)","IS","6325","GL","Active",501,"Not in YTD GL",null,null,null,false,6325,{"$f":"IFERROR(INDEX('Prod COA'!B:B,MATCH('CHART OF ACCOUNTS'!T118,'Prod COA'!E:E,0)),INDEX('Prod COA'!B:B,MATCH('CHART OF ACCOUNTS'!T118,'Prod COA'!A:A,0)))","v":{"$error":"#N/A"}}]
[2,"Statement of Operations","50","Expenses","630","Equipment rental and maintenance","6305-2","Repair and Maintenance - Vehicles (G)","Tax Value Matrix (27) - CC(F-Cat4)/Fund(F-VM)/WO(M)/Act(M)","IS","6305","GL","Active",505,"505 VEHICLES - REPAIR & MAINT",null,null,null,false,6305,{"$f":"IFERROR(INDEX('Prod COA'!B:B,MATCH('CHART OF ACCOUNTS'!T119,'Prod COA'!E:E,0)),INDEX('Prod COA'!B:B,MATCH('CHART OF ACCOUNTS'!T119,'Prod COA'!A:A,0)))","v":{"$error":"#N/A"}}]
[2,"Statement of Operations","50","Expenses","630","Equipment rental and maintenance","6320-2","Vehicle Fuel (G)","Tax Value Matrix (27) - CC(F-Cat4)/Fund(F-VM)/WO(M)/Act(M)","IS","6320","GL","Active",506,"506 VEHICLES - FUEL",null,null,null,false,6320,{"$f":"IFERROR(INDEX('Prod COA'!B:B,MATCH('CHART OF ACCOUNTS'!T120,'Prod COA'!E:E,0)),INDEX('Prod COA'!B:B,MATCH('CHART OF ACCOUNTS'!T120,'Prod COA'!A:A,0)))","v":{"$error":"#N/A"}}]
[2,"Statement of Operations","50","Expenses","640","Utilities, insurance and taxes","6405-1","Phone (NT)","Tax Value Matrix (27) - CC(F-Cat4)/Fund(F-VM)/WO(M)/Act(M)","IS","6405","GL","Active",520,"520 PHONE - EQUIPMENT",null,null,null,false,6405,{"$f":"IFERROR(INDEX('Prod COA'!B:B,MATCH('CHART OF ACCOUNTS'!T121,'Prod COA'!E:E,0)),INDEX('Prod COA'!B:B,MATCH('CHART OF ACCOUNTS'!T121,'Prod COA'!A:A,0)))","v":{"$error":"#N/A"}}]
[2,"Statement of Operations","50","Expenses","640","Utilities, insurance and taxes","6405-1","Phone (NT)","Tax Value Matrix (27) - CC(F-Cat4)/Fund(F-VM)/WO(M)/Act(M)","IS","6405","GL","Active",521,"521 PHONE MAINTENANCE CONT.",null,null,null,true,6405,{"$f":"IFERROR(INDEX('Prod COA'!B:B,MATCH('CHART OF ACCOUNTS'!T122,'Prod COA'!E:E,0)),INDEX('Prod COA'!B:B,MATCH('CHART OF ACCOUNTS'!T122,'Prod COA'!A:A,0)))","v":{"$error":"#N/A"}}]
[2,"Statement of Operations","50","Expenses","640","Utilities, insurance and taxes","6405-1","Phone (NT)","Tax Value Matrix (27) - CC(F-Cat4)/Fund(F-VM)/WO(M)/Act(M)","IS","6405","GL","Active",525,"525 PHONE - LONG DISTANCE",null,null,null,true,6405,{"$f":"IFERROR(INDEX('Prod COA'!B:B,MATCH('CHART OF ACCOUNTS'!T123,'Prod COA'!E:E,0)),INDEX('Prod COA'!B:B,MATCH('CHART OF ACCOUNTS'!T123,'Prod COA'!A:A,0)))","v":{"$error":"#N/A"}}]
[2,"Statement of Operations","50","Expenses","640","Utilities, insurance and taxes","6405-1","Phone (NT)","Tax Value Matrix (27) - CC(F-Cat4)/Fund(F-VM)/WO(M)/Act(M)","IS","6405","GL","Active",526,"526 CELLULAR PHONE CHARGES",null,null,null,true,6405,{"$f":"IFERROR(INDEX('Prod COA'!B:B,MATCH('CHART OF ACCOUNTS'!T124,'Prod COA'!E:E,0)),INDEX('Prod COA'!B:B,MATCH('CHART OF ACCOUNTS'!T124,'Prod COA'!A:A,0)))","v":{"$error":"#N/A"}}]
[2,"Statement of Operations","50","Expenses","650","Materials and supplies","6515-3","Printing and Duplicating (GP)","Tax Value Matrix (27) - CC(F-Cat4)/Fund(F-VM)/WO(M)/Act(M)","IS","6515","GL","Active",535,"535 PRINTING & DUPLICATING",null,null,null,false,6515,{"$f":"IFERROR(INDEX('Prod COA'!B:B,MATCH('CHART OF ACCOUNTS'!T125,'Prod COA'!E:E,0)),INDEX('Prod COA'!B:B,MATCH('CHART OF ACCOUNTS'!T125,'Prod COA'!A:A,0)))","v":{"$error":"#N/A"}}]
[2,"Statement of Operations","50","Expenses","650","Materials and supplies","6505-1","Office Supplies and Stationery (NT)","Tax Value Matrix (27) - CC(F-Cat4)/Fund(F-VM)/WO(M)/Act(M)","IS","6505","GL","Active",540,"540 STATIONERY/OFF.SUPPLIES",null,null,null,false,6505,{"$f":"IFERROR(INDEX('Prod COA'!B:B,MATCH('CHART OF ACCOUNTS'!T126,'Prod COA'!E:E,0)),INDEX('Prod COA'!B:B,MATCH('CHART OF ACCOUNTS'!T126,'Prod COA'!A:A,0)))","v":{"$error":"#N/A"}}]
[2,"Statement of Operations","50","Expenses","650","Materials and supplies","6500-1","Supplies (NT)","Tax Value Matrix (27) - CC(F-Cat4)/Fund(F-VM)/WO(M)/Act(M)","IS","6500","GL","Active",541,"Not in YTD GL",null,null,null,false,6500,{"$f":"IFERROR(INDEX('Prod COA'!B:B,MATCH('CHART OF ACCOUNTS'!T127,'Prod COA'!E:E,0)),INDEX('Prod COA'!B:B,MATCH('CHART OF ACCOUNTS'!T127,'Prod COA'!A:A,0)))","v":{"$error":"#N/A"}}]
[2,"Statement of Operations","50","Expenses","650","Materials and supplies","6500-1","Supplies (NT)","Tax Value Matrix (27) - CC(F-Cat4)/Fund(F-VM)/WO(M)/Act(M)","IS","6500","GL","Active",542,"542 PRGM-RELATED CONSUMMABLES",null,null,null,true,6500,{"$f":"IFERROR(INDEX('Prod COA'!B:B,MATCH('CHART OF ACCOUNTS'!T128,'Prod COA'!E:E,0)),INDEX('Prod COA'!B:B,MATCH('CHART OF ACCOUNTS'!T128,'Prod COA'!A:A,0)))","v":{"$error":"#N/A"}}]
[2,"Statement of Operations","50","Expenses","650","Materials and supplies","6505-1","Office Supplies and Stationery (NT)","Tax Value Matrix (27) - CC(F-Cat4)/Fund(F-VM)/WO(M)/Act(M)","IS","6505","GL","Active",545,"Not in YTD GL",null,null,null,false,6505,{"$f":"IFERROR(INDEX('Prod COA'!B:B,MATCH('CHART OF ACCOUNTS'!T129,'Prod COA'!E:E,0)),INDEX('Prod COA'!B:B,MATCH('CHART OF ACCOUNTS'!T129,'Prod COA'!A:A,0)))","v":{"$error":"#N/A"}}]
[2,"Statement of Operations","50","Expenses","640","Utilities, insurance and taxes","6410-1","Insurance (NT)","Tax Value Matrix (27) - CC(F-Cat4)/Fund(F-VM)/WO(M)/Act(M)","IS","6410","GL","Active",550,"550 INSURANCE PREMIUMS",null,null,null,false,6410,{"$f":"IFERROR(INDEX('Prod COA'!B:B,MATCH('CHART OF ACCOUNTS'!T130,'Prod COA'!E:E,0)),INDEX('Prod COA'!B:B,MATCH('CHART OF ACCOUNTS'!T130,'Prod COA'!A:A,0)))","v":{"$error":"#N/A"}}]
[2,"Statement of Operations","50","Expenses","650","Materials and supplies","6500-1","Supplies (NT)","Tax Value Matrix (27) - CC(F-Cat4)/Fund(F-VM)/WO(M)/Act(M)","IS","6500","GL","Active",555,"Not in YTD GL",null,null,null,false,6500,{"$f":"IFERROR(INDEX('Prod COA'!B:B,MATCH('CHART OF ACCOUNTS'!T131,'Prod COA'!E:E,0)),INDEX('Prod COA'!B:B,MATCH('CHART OF ACCOUNTS'!T131,'Prod COA'!A:A,0)))","v":{"$error":"#N/A"}}]
[2,"Statement of Operations","50","Expenses","630","Equipment rental and maintenance","6310-1","Repair and Maintenance - Facilities (GP)","Tax Value Matrix (27) - CC(F-Cat4)/Fund(F-VM)/WO(M)/Act(M)","IS","6310","GL","Active",557,"557 MILNER-IRRIGATION/INS.R&M",null,null,null,false,{"$f":"IF(LEN(G132)=4,G132,K132)*1","v":6310},{"$f":"IFERROR(INDEX('Prod COA'!B:B,MATCH('CHART OF ACCOUNTS'!T132,'Prod COA'!E:E,0)),INDEX('Prod COA'!B:B,MATCH('CHART OF ACCOUNTS'!T132,'Prod COA'!A:A,0)))","v":{"$error":"#N/A"}}]
[2,"Statement of Operations","50","Expenses","650","Materials and supplies","6530-1","Gifts in Kind - Expense (NT)","Tax Value Matrix (27) - CC(F-Cat4)/Fund(F-VM)/WO(M)/Act(M)","IS","6530","GL","Active",576,"576 GIFTS IN KIND - EXPENSE",null,null,null,false,6530,{"$f":"IFERROR(INDEX('Prod COA'!B:B,MATCH('CHART OF ACCOUNTS'!T133,'Prod COA'!E:E,0)),INDEX('Prod COA'!B:B,MATCH('CHART OF ACCOUNTS'!T133,'Prod COA'!A:A,0)))","v":{"$error":"#N/A"}}]
[2,"Statement of Operations","50","Expenses","620","Scholarships and bursaries","6200-1","Tuition Bursary/Scholarships (NT)","Tax Value Matrix (27) - CC(F-Cat4)/Fund(F-VM)/WO(M)/Act(M)","IS","6200","GL","Active",578,"578 BURS/SCHLSHP INTRNL FNDED",null,null,null,false,6200,{"$f":"IFERROR(INDEX('Prod COA'!B:B,MATCH('CHART OF ACCOUNTS'!T134,'Prod COA'!E:E,0)),INDEX('Prod COA'!B:B,MATCH('CHART OF ACCOUNTS'!T134,'Prod COA'!A:A,0)))","v":{"$error":"#N/A"}}]
[2,"Statement of Operations","50","Expenses","600","Fees and purchased services","6040-1","Payments to Service Partners (NT)","Tax Value Matrix (27) - CC(F-Cat4)/Fund(F-VM)/WO(M)/Act(M)","IS","6040","GL","Active",598,"598 GRANTS",null,null,null,false,6040,{"$f":"IFERROR(INDEX('Prod COA'!B:B,MATCH('CHART OF ACCOUNTS'!T135,'Prod COA'!E:E,0)),INDEX('Prod COA'!B:B,MATCH('CHART OF ACCOUNTS'!T135,'Prod COA'!A:A,0)))","v":{"$error":"#N/A"}}]
[2,"Statement of Operations","77","Capital additions - to be capitalized","770","Capital additions - to be capitalized","7709-2","Capital Purchases - Library Books (G)","Tax Value Matrix (27) - CC(F-Cat4)/Fund(F-VM)/WO(M)/Act(M)","IS","7709","GL","Active",600,"600 BOOK PURCH. LIBRARY ONLY",null,null,null,false,7709,{"$f":"IFERROR(INDEX('Prod COA'!B:B,MATCH('CHART OF ACCOUNTS'!T136,'Prod COA'!E:E,0)),INDEX('Prod COA'!B:B,MATCH('CHART OF ACCOUNTS'!T136,'Prod COA'!A:A,0)))","v":{"$error":"#N/A"}}]
[2,"Statement of Operations","50","Expenses","650","Materials and supplies","6500-1","Supplies (NT)","Tax Value Matrix (27) - CC(F-Cat4)/Fund(F-VM)/WO(M)/Act(M)","IS","6500","GL","Active",601,"601 BOOK PURCHASES, INSTRUCT.",null,null,null,false,6500,{"$f":"IFERROR(INDEX('Prod COA'!B:B,MATCH('CHART OF ACCOUNTS'!T137,'Prod COA'!E:E,0)),INDEX('Prod COA'!B:B,MATCH('CHART OF ACCOUNTS'!T137,'Prod COA'!A:A,0)))","v":{"$error":"#N/A"}}]
[2,"Statement of Operations","50","Expenses","630","Equipment rental and maintenance","6325-1","Rental and Lease (NT)","Tax Value Matrix (27) - CC(F-Cat4)/Fund(F-VM)/WO(M)/Act(M)","IS","6325","GL","Active",608,"608 INTER LIBRARY LOAN",null,null,null,false,6325,{"$f":"IFERROR(INDEX('Prod COA'!B:B,MATCH('CHART OF ACCOUNTS'!T138,'Prod COA'!E:E,0)),INDEX('Prod COA'!B:B,MATCH('CHART OF ACCOUNTS'!T138,'Prod COA'!A:A,0)))","v":{"$error":"#N/A"}}]
[2,"Statement of Operations","50","Expenses","660","Cost of goods sold","6600-1","Cost of Goods Sold (NT)","Tax Value Matrix (27) - CC(F-Cat4)/Fund(F-VM)/WO(M)/Act(M)","IS","6600","GL","Active",620,"620 RESALEABLE ITEMS",null,null,null,false,6600,{"$f":"IFERROR(INDEX('Prod COA'!B:B,MATCH('CHART OF ACCOUNTS'!T139,'Prod COA'!E:E,0)),INDEX('Prod COA'!B:B,MATCH('CHART OF ACCOUNTS'!T139,'Prod COA'!A:A,0)))","v":{"$error":"#N/A"}}]
[2,"Statement of Operations","50","Expenses","650","Materials and supplies","6500-1","Supplies (NT)","Tax Value Matrix (27) - CC(F-Cat4)/Fund(F-VM)/WO(M)/Act(M)","IS","6500","GL","Active",625,"625 EXPENSE RECOVERY",null,null,null,false,6500,{"$f":"IFERROR(INDEX('Prod COA'!B:B,MATCH('CHART OF ACCOUNTS'!T140,'Prod COA'!E:E,0)),INDEX('Prod COA'!B:B,MATCH('CHART OF ACCOUNTS'!T140,'Prod COA'!A:A,0)))","v":{"$error":"#N/A"}}]
[2,"Statement of Operations","50","Expenses","650","Materials and supplies","6500-1","Supplies (NT)","Tax Value Matrix (27) - CC(F-Cat4)/Fund(F-VM)/WO(M)/Act(M)","IS","6500","GL","Active",626,"626 PHOTOCOPY RECOVERY",null,null,null,true,6500,{"$f":"IFERROR(INDEX('Prod COA'!B:B,MATCH('CHART OF ACCOUNTS'!T141,'Prod COA'!E:E,0)),INDEX('Prod COA'!B:B,MATCH('CHART OF ACCOUNTS'!T141,'Prod COA'!A:A,0)))","v":{"$error":"#N/A"}}]
[2,"Statement of Operations","50","Expenses","660","Cost of goods sold","6600-1","Cost of Goods Sold (NT)","Tax Value Matrix (27) - CC(F-Cat4)/Fund(F-VM)/WO(M)/Act(M)","IS","6600","GL","Active",630,"630 CGS-CULINARY FOOD COSTS",null,null,null,false,6600,{"$f":"IFERROR(INDEX('Prod COA'!B:B,MATCH('CHART OF ACCOUNTS'!T142,'Prod COA'!E:E,0)),INDEX('Prod COA'!B:B,MATCH('CHART OF ACCOUNTS'!T142,'Prod COA'!A:A,0)))","v":{"$error":"#N/A"}}]
[2,"Statement of Operations","50","Expenses","660","Cost of goods sold","6600-1","Cost of Goods Sold (NT)","Tax Value Matrix (27) - CC(F-Cat4)/Fund(F-VM)/WO(M)/Act(M)","IS","6600","GL","Active",631,"631 CGS-CUL.COSTS RECOVERY",null,null,null,true,6600,{"$f":"IFERROR(INDEX('Prod COA'!B:B,MATCH('CHART OF ACCOUNTS'!T143,'Prod COA'!E:E,0)),INDEX('Prod COA'!B:B,MATCH('CHART OF ACCOUNTS'!T143,'Prod COA'!A:A,0)))","v":{"$error":"#N/A"}}]
[2,"Statement of Operations","50","Expenses","660","Cost of goods sold","6600-1","Cost of Goods Sold (NT)","Tax Value Matrix (27) - CC(F-Cat4)/Fund(F-VM)/WO(M)/Act(M)","IS","6600","GL","Active",632,"Not in YTD GL",null,null,null,true,6600,{"$f":"IFERROR(INDEX('Prod COA'!B:B,MATCH('CHART OF ACCOUNTS'!T144,'Prod COA'!E:E,0)),INDEX('Prod COA'!B:B,MATCH('CHART OF ACCOUNTS'!T144,'Prod COA'!A:A,0)))","v":{"$error":"#N/A"}}]
[2,"Statement of Operations","50","Expenses","660","Cost of goods sold","6600-1","Cost of Goods Sold (NT)","Tax Value Matrix (27) - CC(F-Cat4)/Fund(F-VM)/WO(M)/Act(M)","IS","6600","GL","Active",633,"Not in YTD GL",null,null,null,true,6600,{"$f":"IFERROR(INDEX('Prod COA'!B:B,MATCH('CHART OF ACCOUNTS'!T145,'Prod COA'!E:E,0)),INDEX('Prod COA'!B:B,MATCH('CHART OF ACCOUNTS'!T145,'Prod COA'!A:A,0)))","v":{"$error":"#N/A"}}]
[2,"Statement of Operations","50","Expenses","660","Cost of goods sold","6600-1","Cost of Goods Sold (NT)","Tax Value Matrix (27) - CC(F-Cat4)/Fund(F-VM)/WO(M)/Act(M)","IS","6600","GL","Active",635,"Not in YTD GL",null,null,null,true,6600,{"$f":"IFERROR(INDEX('Prod COA'!B:B,MATCH('CHART OF ACCOUNTS'!T146,'Prod COA'!E:E,0)),INDEX('Prod COA'!B:B,MATCH('CHART OF ACCOUNTS'!T146,'Prod COA'!A:A,0)))","v":{"$error":"#N/A"}}]
[2,"Statement of Operations","50","Expenses","660","Cost of goods sold","6600-1","Cost of Goods Sold (NT)","Tax Value Matrix (27) - CC(F-Cat4)/Fund(F-VM)/WO(M)/Act(M)","IS","6600","GL","Active",636,"Not in YTD GL",null,null,null,true,6600,{"$f":"IFERROR(INDEX('Prod COA'!B:B,MATCH('CHART OF ACCOUNTS'!T147,'Prod COA'!E:E,0)),INDEX('Prod COA'!B:B,MATCH('CHART OF ACCOUNTS'!T147,'Prod COA'!A:A,0)))","v":{"$error":"#N/A"}}]
[2,"Statement of Operations","50","Expenses","660","Cost of goods sold","6600-1","Cost of Goods Sold (NT)","Tax Value Matrix (27) - CC(F-Cat4)/Fund(F-VM)/WO(M)/Act(M)","IS","6600","GL","Active",637,"Not in YTD GL",null,null,null,true,6600,{"$f":"IFERROR(INDEX('Prod COA'!B:B,MATCH('CHART OF ACCOUNTS'!T148,'Prod COA'!E:E,0)),INDEX('Prod COA'!B:B,MATCH('CHART OF ACCOUNTS'!T148,'Prod COA'!A:A,0)))","v":{"$error":"#N/A"}}]
[2,"Statement of Operations","50","Expenses","660","Cost of goods sold","6600-1","Cost of Goods Sold (NT)","Tax Value Matrix (27) - CC(F-Cat4)/Fund(F-VM)/WO(M)/Act(M)","IS","6600","GL","Active",638,"Not in YTD GL",null,null,null,true,6600,{"$f":"IFERROR(INDEX('Prod COA'!B:B,MATCH('CHART OF ACCOUNTS'!T149,'Prod COA'!E:E,0)),INDEX('Prod COA'!B:B,MATCH('CHART OF ACCOUNTS'!T149,'Prod COA'!A:A,0)))","v":{"$error":"#N/A"}}]
[2,"Statement of Operations","50","Expenses","600","Fees and purchased services","6035-1","Bank Charges, Interest, and Credit Card Fees (NT)","Tax Value Matrix (27) - CC(F-Cat4)/Fund(F-VM)/WO(M)/Act(M)","IS","6035","GL","Active",639,"639 CREDIT CARD CHARGES",null,null,null,false,6035,{"$f":"IFERROR(INDEX('Prod COA'!B:B,MATCH('CHART OF ACCOUNTS'!T150,'Prod COA'!E:E,0)),INDEX('Prod COA'!B:B,MATCH('CHART OF ACCOUNTS'!T150,'Prod COA'!A:A,0)))","v":{"$error":"#N/A"}}]
[2,"Statement of Operations","50","Expenses","660","Cost of goods sold","6600-1","Cost of Goods Sold (NT)","Tax Value Matrix (27) - CC(F-Cat4)/Fund(F-VM)/WO(M)/Act(M)","IS","6600","GL","Active",640,"640 LIQUOR PURCHASES",null,null,null,false,6600,{"$f":"IFERROR(INDEX('Prod COA'!B:B,MATCH('CHART OF ACCOUNTS'!T151,'Prod COA'!E:E,0)),INDEX('Prod COA'!B:B,MATCH('CHART OF ACCOUNTS'!T151,'Prod COA'!A:A,0)))","v":{"$error":"#N/A"}}]
[2,"Statement of Operations","50","Expenses","660","Cost of goods sold","6600-1","Cost of Goods Sold (NT)","Tax Value Matrix (27) - CC(F-Cat4)/Fund(F-VM)/WO(M)/Act(M)","IS","6600","GL","Active",644,"Not in YTD GL",null,null,null,true,6600,{"$f":"IFERROR(INDEX('Prod COA'!B:B,MATCH('CHART OF ACCOUNTS'!T152,'Prod COA'!E:E,0)),INDEX('Prod COA'!B:B,MATCH('CHART OF ACCOUNTS'!T152,'Prod COA'!A:A,0)))","v":{"$error":"#N/A"}}]
[2,"Statement of Operations","50","Expenses","660","Cost of goods sold","6600-1","Cost of Goods Sold (NT)","Tax Value Matrix (27) - CC(F-Cat4)/Fund(F-VM)/WO(M)/Act(M)","IS","6600","GL","Active",647,"647 PURCHASE-GENERAL MDSE",null,null,null,true,6600,{"$f":"IFERROR(INDEX('Prod COA'!B:B,MATCH('CHART OF ACCOUNTS'!T153,'Prod COA'!E:E,0)),INDEX('Prod COA'!B:B,MATCH('CHART OF ACCOUNTS'!T153,'Prod COA'!A:A,0)))","v":{"$error":"#N/A"}}]
[2,"Statement of Operations","50","Expenses","660","Cost of goods sold","6600-1","Cost of Goods Sold (NT)","Tax Value Matrix (27) - CC(F-Cat4)/Fund(F-VM)/WO(M)/Act(M)","IS","6600","GL","Active",648,"648 PURCHASES - NON MERCHANDS",null,null,null,true,6600,{"$f":"IFERROR(INDEX('Prod COA'!B:B,MATCH('CHART OF ACCOUNTS'!T154,'Prod COA'!E:E,0)),INDEX('Prod COA'!B:B,MATCH('CHART OF ACCOUNTS'!T154,'Prod COA'!A:A,0)))","v":{"$error":"#N/A"}}]
[2,"Statement of Operations","50","Expenses","660","Cost of goods sold","6600-1","Cost of Goods Sold (NT)","Tax Value Matrix (27) - CC(F-Cat4)/Fund(F-VM)/WO(M)/Act(M)","IS","6600","GL","Active",649,"Not in YTD GL",null,null,null,true,6600,{"$f":"IFERROR(INDEX('Prod COA'!B:B,MATCH('CHART OF ACCOUNTS'!T155,'Prod COA'!E:E,0)),INDEX('Prod COA'!B:B,MATCH('CHART OF ACCOUNTS'!T155,'Prod COA'!A:A,0)))","v":{"$error":"#N/A"}}]
[2,"Statement of Operations","50","Expenses","660","Cost of goods sold","6600-1","Cost of Goods Sold (NT)","Tax Value Matrix (27) - CC(F-Cat4)/Fund(F-VM)/WO(M)/Act(M)","IS","6600","GL","Active",651,"651 PURCHASES - TEXT",null,null,null,true,6600,{"$f":"IFERROR(INDEX('Prod COA'!B:B,MATCH('CHART OF ACCOUNTS'!T156,'Prod COA'!E:E,0)),INDEX('Prod COA'!B:B,MATCH('CHART OF ACCOUNTS'!T156,'Prod COA'!A:A,0)))","v":{"$error":"#N/A"}}]
[2,"Statement of Operations","50","Expenses","660","Cost of goods sold","6600-1","Cost of Goods Sold (NT)","Tax Value Matrix (27) - CC(F-Cat4)/Fund(F-VM)/WO(M)/Act(M)","IS","6600","GL","Active",653,"Not in YTD GL",null,null,null,true,6600,{"$f":"IFERROR(INDEX('Prod COA'!B:B,MATCH('CHART OF ACCOUNTS'!T157,'Prod COA'!E:E,0)),INDEX('Prod COA'!B:B,MATCH('CHART OF ACCOUNTS'!T157,'Prod COA'!A:A,0)))","v":{"$error":"#N/A"}}]
[2,"Statement of Operations","50","Expenses","660","Cost of goods sold","6600-1","Cost of Goods Sold (NT)","Tax Value Matrix (27) - CC(F-Cat4)/Fund(F-VM)/WO(M)/Act(M)","IS","6600","GL","Active",654,"654 PURCHASE-TRADE",null,null,null,true,6600,{"$f":"IFERROR(INDEX('Prod COA'!B:B,MATCH('CHART OF ACCOUNTS'!T158,'Prod COA'!E:E,0)),INDEX('Prod COA'!B:B,MATCH('CHART OF ACCOUNTS'!T158,'Prod COA'!A:A,0)))","v":{"$error":"#N/A"}}]
[2,"Statement of Operations","50","Expenses","660","Cost of goods sold","6605-1","Freight and Brokerage Fees (NT)","Tax Value Matrix (27) - CC(F-Cat4)/Fund(F-VM)/WO(M)/Act(M)","IS","6605","GL","Active",655,"655 FREIGHT-IN/BOOKS",null,null,null,false,6605,{"$f":"IFERROR(INDEX('Prod COA'!B:B,MATCH('CHART OF ACCOUNTS'!T159,'Prod COA'!E:E,0)),INDEX('Prod COA'!B:B,MATCH('CHART OF ACCOUNTS'!T159,'Prod COA'!A:A,0)))","v":{"$error":"#N/A"}}]
[2,"Statement of Operations","50","Expenses","660","Cost of goods sold","6605-1","Freight and Brokerage Fees (NT)","Tax Value Matrix (27) - CC(F-Cat4)/Fund(F-VM)/WO(M)/Act(M)","IS","6605","GL","Active",656,"656 FREIGHT-IN/OTHER",null,null,null,true,6605,{"$f":"IFERROR(INDEX('Prod COA'!B:B,MATCH('CHART OF ACCOUNTS'!T160,'Prod COA'!E:E,0)),INDEX('Prod COA'!B:B,MATCH('CHART OF ACCOUNTS'!T160,'Prod COA'!A:A,0)))","v":{"$error":"#N/A"}}]
[2,"Statement of Operations","50","Expenses","660","Cost of goods sold","6605-1","Freight and Brokerage Fees (NT)","Tax Value Matrix (27) - CC(F-Cat4)/Fund(F-VM)/WO(M)/Act(M)","IS","6605","GL","Active",657,"657 FREIGHT OUT",null,null,null,true,6605,{"$f":"IFERROR(INDEX('Prod COA'!B:B,MATCH('CHART OF ACCOUNTS'!T161,'Prod COA'!E:E,0)),INDEX('Prod COA'!B:B,MATCH('CHART OF ACCOUNTS'!T161,'Prod COA'!A:A,0)))","v":{"$error":"#N/A"}}]
[2,"Statement of Operations","50","Expenses","660","Cost of goods sold","6605-1","Freight and Brokerage Fees (NT)","Tax Value Matrix (27) - CC(F-Cat4)/Fund(F-VM)/WO(M)/Act(M)","IS","6605","GL","Active",660,"660 BROKER FEES/BOOKS",null,null,null,true,6605,{"$f":"IFERROR(INDEX('Prod COA'!B:B,MATCH('CHART OF ACCOUNTS'!T162,'Prod COA'!E:E,0)),INDEX('Prod COA'!B:B,MATCH('CHART OF ACCOUNTS'!T162,'Prod COA'!A:A,0)))","v":{"$error":"#N/A"}}]
[2,"Statement of Operations","50","Expenses","660","Cost of goods sold","6605-1","Freight and Brokerage Fees (NT)","Tax Value Matrix (27) - CC(F-Cat4)/Fund(F-VM)/WO(M)/Act(M)","IS","6605","GL","Active",664,"664 FREIGHT GENERAL/COURIER",null,null,null,true,6605,{"$f":"IFERROR(INDEX('Prod COA'!B:B,MATCH('CHART OF ACCOUNTS'!T163,'Prod COA'!E:E,0)),INDEX('Prod COA'!B:B,MATCH('CHART OF ACCOUNTS'!T163,'Prod COA'!A:A,0)))","v":{"$error":"#N/A"}}]
[2,"Statement of Operations","50","Expenses","660","Cost of goods sold",6611,"Bad Debt Expense - Actuals","General Rev and Exp (7) - CC(F-Cat4)/Fund(F-VM)/WO(M)/ACT(M)","IS","6611","GL","Active",665,"Not in YTD GL",null,null,null,false,6611,{"$f":"IFERROR(INDEX('Prod COA'!B:B,MATCH('CHART OF ACCOUNTS'!T164,'Prod COA'!E:E,0)),INDEX('Prod COA'!B:B,MATCH('CHART OF ACCOUNTS'!T164,'Prod COA'!A:A,0)))","v":{"$error":"#N/A"}}]
[2,"Statement of Operations","82","Internal Expenses","845","Overhead Paid",8450,"Internal Consumption - Overhead paid - Department","General Rev and Exp (7) - CC(F-Cat4)/Fund(F-VM)/WO(M)/ACT(M)","IS","8450","GL","Active",680,"680 CONTRACT PROCEEDS, DEPT.",null,null,null,{"$f":"T165=#REF!","v":{"$error":"#REF!"}},8450,{"$f":"IFERROR(INDEX('Prod COA'!B:B,MATCH('CHART OF ACCOUNTS'!T165,'Prod COA'!E:E,0)),INDEX('Prod COA'!B:B,MATCH('CHART OF ACCOUNTS'!T165,'Prod COA'!A:A,0)))","v":{"$error":"#N/A"}}]
[2,"Statement of Operations","82","Internal Expenses","845","Overhead Paid",8451,"Internal Consumption - Overhead paid - Institutional","General Rev and Exp (7) - CC(F-Cat4)/Fund(F-VM)/WO(M)/ACT(M)","IS","8451","GL","Active",681,"Not in YTD GL",null,null,null,false,8451,{"$f":"IFERROR(INDEX('Prod COA'!B:B,MATCH('CHART OF ACCOUNTS'!T166,'Prod COA'!E:E,0)),INDEX('Prod COA'!B:B,MATCH('CHART OF ACCOUNTS'!T166,'Prod COA'!A:A,0)))","v":{"$error":"#N/A"}}]
[2,"Statement of Operations","82","Internal Expenses","845","Overhead Paid",8452,"Internal Consumption - Overhead paid - Research","General Rev and Exp (7) - CC(F-Cat4)/Fund(F-VM)/WO(M)/ACT(M)","IS","8452","GL","Active",682,"682 RESEARCH OVERHEAD",null,null,null,false,8452,{"$f":"IFERROR(INDEX('Prod COA'!B:B,MATCH('CHART OF ACCOUNTS'!T167,'Prod COA'!E:E,0)),INDEX('Prod COA'!B:B,MATCH('CHART OF ACCOUNTS'!T167,'Prod COA'!A:A,0)))","v":{"$error":"#N/A"}}]
[2,"Statement of Operations","82","Internal Expenses","845","Overhead Paid",8453,"Internal Consumption - Overhead paid - PVPA Premium","General Rev and Exp (7) - CC(F-Cat4)/Fund(F-VM)/WO(M)/ACT(M)","IS","8453","GL","Active",683,"Not in YTD GL",null,null,null,false,8453,{"$f":"IFERROR(INDEX('Prod COA'!B:B,MATCH('CHART OF ACCOUNTS'!T168,'Prod COA'!E:E,0)),INDEX('Prod COA'!B:B,MATCH('CHART OF ACCOUNTS'!T168,'Prod COA'!A:A,0)))","v":{"$error":"#N/A"}}]
[2,"Statement of Operations","50","Expenses","660","Cost of goods sold","6600-1","Cost of Goods Sold (NT)","Tax Value Matrix (27) - CC(F-Cat4)/Fund(F-VM)/WO(M)/Act(M)","IS","6600","GL","Active",699,"Not in YTD GL",null,null,null,false,6600,{"$f":"IFERROR(INDEX('Prod COA'!B:B,MATCH('CHART OF ACCOUNTS'!T169,'Prod COA'!E:E,0)),INDEX('Prod COA'!B:B,MATCH('CHART OF ACCOUNTS'!T169,'Prod COA'!A:A,0)))","v":{"$error":"#N/A"}}]
[2,"Statement of Operations","40","Revenue","400","Province of British Columbia grants",4000,"Province of BC - Grants - AVED Core Operating Grant","Grants (15) - CC(F-Cat4)/Fund(F-VM)/WO(M)/ACT(M)/G(M)","IS","4000","GL","Active",700,"700 OPERATING GRANT",null,null,null,false,4000,{"$f":"IFERROR(INDEX('Prod COA'!B:B,MATCH('CHART OF ACCOUNTS'!T170,'Prod COA'!E:E,0)),INDEX('Prod COA'!B:B,MATCH('CHART OF ACCOUNTS'!T170,'Prod COA'!A:A,0)))","v":{"$error":"#N/A"}}]
[2,"Statement of Operations","40","Revenue","400","Province of British Columbia grants",4050,"Province of BC - Crown Corps, Agencies, Boards - Grants and Contracts - Other","Grants (15) - CC(F-Cat4)/Fund(F-VM)/WO(M)/ACT(M)/G(M)","IS","4050","GL","Active",701,"701 GRNTS & CTRCTS - OTHR GOV",null,null,null,{"$f":"T171=#REF!","v":{"$error":"#REF!"}},4050,{"$f":"IFERROR(INDEX('Prod COA'!B:B,MATCH('CHART OF ACCOUNTS'!T171,'Prod COA'!E:E,0)),INDEX('Prod COA'!B:B,MATCH('CHART OF ACCOUNTS'!T171,'Prod COA'!A:A,0)))","v":{"$error":"#N/A"}}]
[2,"Statement of Operations","40","Revenue","400","Province of British Columbia grants",4010,"Province of BC -  Grants - AVED General Grants","Grants (15) - CC(F-Cat4)/Fund(F-VM)/WO(M)/ACT(M)/G(M)","IS","4010","GL","Active",704,"704 NON RECURRING GRANT",null,null,null,{"$f":"T172=T171","v":false},4010,{"$f":"IFERROR(INDEX('Prod COA'!B:B,MATCH('CHART OF ACCOUNTS'!T172,'Prod COA'!E:E,0)),INDEX('Prod COA'!B:B,MATCH('CHART OF ACCOUNTS'!T172,'Prod COA'!A:A,0)))","v":{"$error":"#N/A"}}]
[2,"Statement of Operations","40","Revenue","400","Province of British Columbia grants",4010,"Province of BC -  Grants - AVED General Grants","Grants (15) - CC(F-Cat4)/Fund(F-VM)/WO(M)/ACT(M)/G(M)","IS","4010","GL","Active",705,"Not in YTD GL",null,null,null,true,4010,{"$f":"IFERROR(INDEX('Prod COA'!B:B,MATCH('CHART OF ACCOUNTS'!T173,'Prod COA'!E:E,0)),INDEX('Prod COA'!B:B,MATCH('CHART OF ACCOUNTS'!T173,'Prod COA'!A:A,0)))","v":{"$error":"#N/A"}}]
[2,"Statement of Operations","40","Revenue","400","Province of British Columbia grants",4010,"Province of BC -  Grants - AVED General Grants","Grants (15) - CC(F-Cat4)/Fund(F-VM)/WO(M)/ACT(M)/G(M)","IS","4010","GL","Active",706,"Not in YTD GL",null,null,null,{"$f":"T174=#REF!","v":{"$error":"#REF!"}},4010,{"$f":"IFERROR(INDEX('Prod COA'!B:B,MATCH('CHART OF ACCOUNTS'!T174,'Prod COA'!E:E,0)),INDEX('Prod COA'!B:B,MATCH('CHART OF ACCOUNTS'!T174,'Prod COA'!A:A,0)))","v":{"$error":"#N/A"}}]
[2,"Statement of Operations","40","Revenue","400","Province of British Columbia grants",4040,"Province of BC - Crown Corps, Agencies, Boards - Grants and Contracts - ITA","Grants (15) - CC(F-Cat4)/Fund(F-VM)/WO(M)/ACT(M)/G(M)","IS","4040","GL","Active",707,"707 MIN.GRANT INDUSTRY TRNG",null,null,null,false,4040,{"$f":"IFERROR(INDEX('Prod COA'!B:B,MATCH('CHART OF ACCOUNTS'!T175,'Prod COA'!E:E,0)),INDEX('Prod COA'!B:B,MATCH('CHART OF ACCOUNTS'!T175,'Prod COA'!A:A,0)))","v":{"$error":"#N/A"}}]
[2,"Statement of Operations","40","Revenue","400","Province of British Columbia grants",4010,"Province of BC -  Grants - AVED General Grants","Grants (15) - CC(F-Cat4)/Fund(F-VM)/WO(M)/ACT(M)/G(M)","IS","4010","GL","Active",708,"708 MINISTRY GRANT DEFERRED",null,null,null,false,4010,{"$f":"IFERROR(INDEX('Prod COA'!B:B,MATCH('CHART OF ACCOUNTS'!T176,'Prod COA'!E:E,0)),INDEX('Prod COA'!B:B,MATCH('CHART OF ACCOUNTS'!T176,'Prod COA'!A:A,0)))","v":{"$error":"#N/A"}}]
[2,"Statement of Operations","40","Revenue","410","Government of Canada grants",4100,"Government of Canada Department - Grants","Grants (15) - CC(F-Cat4)/Fund(F-VM)/WO(M)/ACT(M)/G(M)","IS","4100","GL","Active",709,"709 FEDERAL GOVT GRANTS",null,null,null,{"$f":"T177=#REF!","v":{"$error":"#REF!"}},4100,{"$f":"IFERROR(INDEX('Prod COA'!B:B,MATCH('CHART OF ACCOUNTS'!T177,'Prod COA'!E:E,0)),INDEX('Prod COA'!B:B,MATCH('CHART OF ACCOUNTS'!T177,'Prod COA'!A:A,0)))","v":{"$error":"#N/A"}}]
[2,"Statement of Operations","40","Revenue","430","Tuition and student fees",4300,"Domestic Distributed - Tuition","Distributed Tuition (5) - CC(F-Cat4)/Fund(F-VM)/WO(M)/Act(M)","IS","4300","GL","Active",710,"710 TUITION FEES AC/TECH.",null,null,null,false,4300,{"$f":"IFERROR(INDEX('Prod COA'!B:B,MATCH('CHART OF ACCOUNTS'!T178,'Prod COA'!E:E,0)),INDEX('Prod COA'!B:B,MATCH('CHART OF ACCOUNTS'!T178,'Prod COA'!A:A,0)))","v":{"$error":"#N/A"}}]
[2,"Statement of Operations","40","Revenue","430","Tuition and student fees",4330,"International Distributed - Tuition","Distributed Tuition (5) - CC(F-Cat4)/Fund(F-VM)/WO(M)/Act(M)","IS","4330","GL","Active",713,"713 IE TUITION FEES",null,null,null,false,4330,{"$f":"IFERROR(INDEX('Prod COA'!B:B,MATCH('CHART OF ACCOUNTS'!T179,'Prod COA'!E:E,0)),INDEX('Prod COA'!B:B,MATCH('CHART OF ACCOUNTS'!T179,'Prod COA'!A:A,0)))","v":{"$error":"#N/A"}}]
[2,"Statement of Operations","40","Revenue","430","Tuition and student fees",4301,"Domestic Distributed - ESL","Distributed Tuition (5) - CC(F-Cat4)/Fund(F-VM)/WO(M)/Act(M)","IS","4301","GL","Active",714,"714 E.S.L. TUITION (DOMESTIC)",null,null,null,false,4301,{"$f":"IFERROR(INDEX('Prod COA'!B:B,MATCH('CHART OF ACCOUNTS'!T180,'Prod COA'!E:E,0)),INDEX('Prod COA'!B:B,MATCH('CHART OF ACCOUNTS'!T180,'Prod COA'!A:A,0)))","v":{"$error":"#N/A"}}]
[2,"Statement of Operations","40","Revenue","430","Tuition and student fees",4302,"Domestic Distributed - Vocational (Trade)","Distributed Tuition (5) - CC(F-Cat4)/Fund(F-VM)/WO(M)/Act(M)","IS","4302","GL","Active",715,"715 TUITION FEES VOCATIONAL",null,null,null,false,4302,{"$f":"IFERROR(INDEX('Prod COA'!B:B,MATCH('CHART OF ACCOUNTS'!T181,'Prod COA'!E:E,0)),INDEX('Prod COA'!B:B,MATCH('CHART OF ACCOUNTS'!T181,'Prod COA'!A:A,0)))","v":{"$error":"#N/A"}}]
[2,"Statement of Operations","40","Revenue","430","Tuition and student fees",4303,"Domestic Distributed - CE General Interest","Distributed Tuition (5) - CC(F-Cat4)/Fund(F-VM)/WO(M)/Act(M)","IS","4303","GL","Active",716,"716 TUITION-PERSONAL INTEREST",null,null,null,false,4303,{"$f":"IFERROR(INDEX('Prod COA'!B:B,MATCH('CHART OF ACCOUNTS'!T182,'Prod COA'!E:E,0)),INDEX('Prod COA'!B:B,MATCH('CHART OF ACCOUNTS'!T182,'Prod COA'!A:A,0)))","v":{"$error":"#N/A"}}]
[2,"Statement of Operations","40","Revenue","430","Tuition and student fees",4304,"Domestic Distributed - ABE","Distributed Tuition (5) - CC(F-Cat4)/Fund(F-VM)/WO(M)/Act(M)","IS","4304","GL","Active",717,"717 A.B.E. TUITION",null,null,null,{"$f":"T183=#REF!","v":{"$error":"#REF!"}},4304,{"$f":"IFERROR(INDEX('Prod COA'!B:B,MATCH('CHART OF ACCOUNTS'!T183,'Prod COA'!E:E,0)),INDEX('Prod COA'!B:B,MATCH('CHART OF ACCOUNTS'!T183,'Prod COA'!A:A,0)))","v":{"$error":"#N/A"}}]
[2,"Statement of Operations","40","Revenue","430","Tuition and student fees",4350,"Other Student Fees Distributed - Domestic Lab Fees","Distributed Tuition (5) - CC(F-Cat4)/Fund(F-VM)/WO(M)/Act(M)","IS","4350","GL","Active",720,"720 LAB FEES",null,null,null,false,4350,{"$f":"IFERROR(INDEX('Prod COA'!B:B,MATCH('CHART OF ACCOUNTS'!T184,'Prod COA'!E:E,0)),INDEX('Prod COA'!B:B,MATCH('CHART OF ACCOUNTS'!T184,'Prod COA'!A:A,0)))","v":{"$error":"#N/A"}}]
[2,"Statement of Operations","40","Revenue","430","Tuition and student fees",4367,"Other Student Fees - Tuition Discount","General Rev and Exp (7) - CC(F-Cat4)/Fund(F-VM)/WO(M)/ACT(M)","IS","4367","GL","Active",721,"721 TUITION DISCOUNT",null,null,null,{"$f":"T185=#REF!","v":{"$error":"#REF!"}},4367,{"$f":"IFERROR(INDEX('Prod COA'!B:B,MATCH('CHART OF ACCOUNTS'!T185,'Prod COA'!E:E,0)),INDEX('Prod COA'!B:B,MATCH('CHART OF ACCOUNTS'!T185,'Prod COA'!A:A,0)))","v":{"$error":"#N/A"}}]
[2,"Statement of Operations","40","Revenue","430","Tuition and student fees",4360,"Other Student Fees - General Other Fees","Distributed Tuition (5) - CC(F-Cat4)/Fund(F-VM)/WO(M)/Act(M)","IS","4360","GL","Active",722,"722 OTHER FEES",null,null,null,{"$f":"T186=#REF!","v":{"$error":"#REF!"}},4360,{"$f":"IFERROR(INDEX('Prod COA'!B:B,MATCH('CHART OF ACCOUNTS'!T186,'Prod COA'!E:E,0)),INDEX('Prod COA'!B:B,MATCH('CHART OF ACCOUNTS'!T186,'Prod COA'!A:A,0)))","v":{"$error":"#N/A"}}]
[2,"Statement of Operations","40","Revenue","430","Tuition and student fees",4364,"Other Student Fees - Appeals Fee","General Rev and Exp (7) - CC(F-Cat4)/Fund(F-VM)/WO(M)/ACT(M)","IS","4364","GL","Active",723,"Not in YTD GL",null,null,null,{"$f":"T187=#REF!","v":{"$error":"#REF!"}},4364,{"$f":"IFERROR(INDEX('Prod COA'!B:B,MATCH('CHART OF ACCOUNTS'!T187,'Prod COA'!E:E,0)),INDEX('Prod COA'!B:B,MATCH('CHART OF ACCOUNTS'!T187,'Prod COA'!A:A,0)))","v":{"$error":"#N/A"}}]
[2,"Statement of Operations","40","Revenue","430","Tuition and student fees",4365,"Other Student Fees - Graduation Fee","General Rev and Exp (7) - CC(F-Cat4)/Fund(F-VM)/WO(M)/ACT(M)","IS","4365","GL","Active",724,"724 REGISTRATION - GRAD FEE",null,null,null,{"$f":"T188=#REF!","v":{"$error":"#REF!"}},4365,{"$f":"IFERROR(INDEX('Prod COA'!B:B,MATCH('CHART OF ACCOUNTS'!T188,'Prod COA'!E:E,0)),INDEX('Prod COA'!B:B,MATCH('CHART OF ACCOUNTS'!T188,'Prod COA'!A:A,0)))","v":{"$error":"#N/A"}}]
[2,"Statement of Operations","40","Revenue","430","Tuition and student fees",4363,"Other Student Fees - Criminal Record Check Fees","General Rev and Exp (7) - CC(F-Cat4)/Fund(F-VM)/WO(M)/ACT(M)","IS","4363","GL","Active",725,"725 REGISTRATION-CRIM.RCD CK",null,null,null,{"$f":"T189=T188","v":false},4363,{"$f":"IFERROR(INDEX('Prod COA'!B:B,MATCH('CHART OF ACCOUNTS'!T189,'Prod COA'!E:E,0)),INDEX('Prod COA'!B:B,MATCH('CHART OF ACCOUNTS'!T189,'Prod COA'!A:A,0)))","v":{"$error":"#N/A"}}]
[2,"Statement of Operations","40","Revenue","430","Tuition and student fees",4354,"Other Student Fees Distributed - Domestic Student Services Fee","Distributed Tuition (5) - CC(F-Cat4)/Fund(F-VM)/WO(M)/Act(M)","IS","4354","GL","Active",726,"726 STUDENT SERVICES FEE",null,null,null,false,4354,{"$f":"IFERROR(INDEX('Prod COA'!B:B,MATCH('CHART OF ACCOUNTS'!T190,'Prod COA'!E:E,0)),INDEX('Prod COA'!B:B,MATCH('CHART OF ACCOUNTS'!T190,'Prod COA'!A:A,0)))","v":{"$error":"#N/A"}}]
[2,"Statement of Operations","40","Revenue","430","Tuition and student fees",4352,"Other Student Fees Distributed - Domestic Student Activity Fee","Distributed Tuition (5) - CC(F-Cat4)/Fund(F-VM)/WO(M)/Act(M)","IS","4352","GL","Active",727,"727 STUDENT ACTIVITY FEE",null,null,null,false,4352,{"$f":"IFERROR(INDEX('Prod COA'!B:B,MATCH('CHART OF ACCOUNTS'!T191,'Prod COA'!E:E,0)),INDEX('Prod COA'!B:B,MATCH('CHART OF ACCOUNTS'!T191,'Prod COA'!A:A,0)))","v":{"$error":"#N/A"}}]
[2,"Statement of Operations","40","Revenue","430","Tuition and student fees",4366,"Other Student Fees - Library Fines","General Rev and Exp (7) - CC(F-Cat4)/Fund(F-VM)/WO(M)/ACT(M)","IS","4366","GL","Active",730,"Not in YTD GL",null,null,null,false,4366,{"$f":"IFERROR(INDEX('Prod COA'!B:B,MATCH('CHART OF ACCOUNTS'!T192,'Prod COA'!E:E,0)),INDEX('Prod COA'!B:B,MATCH('CHART OF ACCOUNTS'!T192,'Prod COA'!A:A,0)))","v":{"$error":"#N/A"}}]
[2,"Statement of Operations","40","Revenue","440","Sales of goods and services",4400,"Merchandise Revenue","General Rev and Exp (7) - CC(F-Cat4)/Fund(F-VM)/WO(M)/ACT(M)","IS","4400","GL","Active",740,"740 SALES - GENERAL MDSE",null,null,null,false,4400,{"$f":"IFERROR(INDEX('Prod COA'!B:B,MATCH('CHART OF ACCOUNTS'!T193,'Prod COA'!E:E,0)),INDEX('Prod COA'!B:B,MATCH('CHART OF ACCOUNTS'!T193,'Prod COA'!A:A,0)))","v":{"$error":"#N/A"}}]
[2,"Statement of Operations","40","Revenue","440","Sales of goods and services",4401,"Service Revenue","General Rev and Exp (7) - CC(F-Cat4)/Fund(F-VM)/WO(M)/ACT(M)","IS","4401","GL","Active",741,"741 SALES-NON MERCHANDISE",null,null,null,false,4401,{"$f":"IFERROR(INDEX('Prod COA'!B:B,MATCH('CHART OF ACCOUNTS'!T194,'Prod COA'!E:E,0)),INDEX('Prod COA'!B:B,MATCH('CHART OF ACCOUNTS'!T194,'Prod COA'!A:A,0)))","v":{"$error":"#N/A"}}]
[2,"Statement of Operations","40","Revenue","440","Sales of goods and services",4408,"Textbook Revenue","General Rev and Exp (7) - CC(F-Cat4)/Fund(F-VM)/WO(M)/ACT(M)","IS","4408","GL","Active",745,"745 SALES - TEXT",null,null,null,false,4408,{"$f":"IFERROR(INDEX('Prod COA'!B:B,MATCH('CHART OF ACCOUNTS'!T195,'Prod COA'!E:E,0)),INDEX('Prod COA'!B:B,MATCH('CHART OF ACCOUNTS'!T195,'Prod COA'!A:A,0)))","v":{"$error":"#N/A"}}]
[2,"Statement of Operations","40","Revenue","440","Sales of goods and services",4408,"Textbook Revenue","General Rev and Exp (7) - CC(F-Cat4)/Fund(F-VM)/WO(M)/ACT(M)","IS","4408","GL","Active",748,"Not in YTD GL",null,null,null,{"$f":"T196=#REF!","v":{"$error":"#REF!"}},{"$f":"IF(LEN(G196)=4,G196,K196)*1","v":4408},{"$f":"IFERROR(INDEX('Prod COA'!B:B,MATCH('CHART OF ACCOUNTS'!T196,'Prod COA'!E:E,0)),INDEX('Prod COA'!B:B,MATCH('CHART OF ACCOUNTS'!T196,'Prod COA'!A:A,0)))","v":{"$error":"#N/A"}}]
[2,"Statement of Operations","40","Revenue","440","Sales of goods and services",4400,"Merchandise Revenue","General Rev and Exp (7) - CC(F-Cat4)/Fund(F-VM)/WO(M)/ACT(M)","IS","4400","GL","Active",749,"749 SALES - TRADE",null,null,null,false,4400,{"$f":"IFERROR(INDEX('Prod COA'!B:B,MATCH('CHART OF ACCOUNTS'!T197,'Prod COA'!E:E,0)),INDEX('Prod COA'!B:B,MATCH('CHART OF ACCOUNTS'!T197,'Prod COA'!A:A,0)))","v":{"$error":"#N/A"}}]
[2,"Statement of Operations","40","Revenue","440","Sales of goods and services",4400,"Merchandise Revenue","General Rev and Exp (7) - CC(F-Cat4)/Fund(F-VM)/WO(M)/ACT(M)","IS","4400","GL","Active",750,"750 PST-TAXABLE SALES",null,null,null,true,4400,{"$f":"IFERROR(INDEX('Prod COA'!B:B,MATCH('CHART OF ACCOUNTS'!T198,'Prod COA'!E:E,0)),INDEX('Prod COA'!B:B,MATCH('CHART OF ACCOUNTS'!T198,'Prod COA'!A:A,0)))","v":{"$error":"#N/A"}}]
[2,"Statement of Operations","80","Internal Revenues","800","Internal ordering - revenue",8004,"Internal Consumption - Catering Sales","General Rev and Exp (7) - CC(F-Cat4)/Fund(F-VM)/WO(M)/ACT(M)","IS","8004","GL","Active",754,"Not in YTD GL",null,null,null,false,8004,{"$f":"IFERROR(INDEX('Prod COA'!B:B,MATCH('CHART OF ACCOUNTS'!T199,'Prod COA'!E:E,0)),INDEX('Prod COA'!B:B,MATCH('CHART OF ACCOUNTS'!T199,'Prod COA'!A:A,0)))","v":{"$error":"#N/A"}}]
[2,"Statement of Operations","40","Revenue","440","Sales of goods and services",4403,"Liquor Sales Revenue","General Rev and Exp (7) - CC(F-Cat4)/Fund(F-VM)/WO(M)/ACT(M)","IS","4403","GL","Active",755,"Not in YTD GL",null,null,null,false,4403,{"$f":"IFERROR(INDEX('Prod COA'!B:B,MATCH('CHART OF ACCOUNTS'!T200,'Prod COA'!E:E,0)),INDEX('Prod COA'!B:B,MATCH('CHART OF ACCOUNTS'!T200,'Prod COA'!A:A,0)))","v":{"$error":"#N/A"}}]
[2,"Statement of Operations","40","Revenue","440","Sales of goods and services",4412,"Miscellaneous Sales Revenue","General Rev and Exp (7) - CC(F-Cat4)/Fund(F-VM)/WO(M)/ACT(M)","IS","4412","GL","Active",760,"760 SALES",null,null,null,false,4412,{"$f":"IFERROR(INDEX('Prod COA'!B:B,MATCH('CHART OF ACCOUNTS'!T201,'Prod COA'!E:E,0)),INDEX('Prod COA'!B:B,MATCH('CHART OF ACCOUNTS'!T201,'Prod COA'!A:A,0)))","v":{"$error":"#N/A"}}]
[2,"Statement of Operations","40","Revenue","440","Sales of goods and services",4405,"Admissions Revenue","General Rev and Exp (7) - CC(F-Cat4)/Fund(F-VM)/WO(M)/ACT(M)","IS","4405","GL","Active",762,"Not in YTD GL",null,null,null,false,4405,{"$f":"IFERROR(INDEX('Prod COA'!B:B,MATCH('CHART OF ACCOUNTS'!T202,'Prod COA'!E:E,0)),INDEX('Prod COA'!B:B,MATCH('CHART OF ACCOUNTS'!T202,'Prod COA'!A:A,0)))","v":{"$error":"#N/A"}}]
[2,"Statement of Operations","40","Revenue","440","Sales of goods and services",4402,"Food and Non Alcoholic Beverages Revenue","General Rev and Exp (7) - CC(F-Cat4)/Fund(F-VM)/WO(M)/ACT(M)","IS","4402","GL","Active",766,"766 CATERING REVENUE-FOOD",null,null,null,false,4402,{"$f":"IFERROR(INDEX('Prod COA'!B:B,MATCH('CHART OF ACCOUNTS'!T203,'Prod COA'!E:E,0)),INDEX('Prod COA'!B:B,MATCH('CHART OF ACCOUNTS'!T203,'Prod COA'!A:A,0)))","v":{"$error":"#N/A"}}]
[2,"Statement of Operations","40","Revenue","440","Sales of goods and services",4403,"Liquor Sales Revenue","General Rev and Exp (7) - CC(F-Cat4)/Fund(F-VM)/WO(M)/ACT(M)","IS","4403","GL","Active",767,"767 CATERING -LIQUOR",null,null,null,false,4403,{"$f":"IFERROR(INDEX('Prod COA'!B:B,MATCH('CHART OF ACCOUNTS'!T204,'Prod COA'!E:E,0)),INDEX('Prod COA'!B:B,MATCH('CHART OF ACCOUNTS'!T204,'Prod COA'!A:A,0)))","v":{"$error":"#N/A"}}]
[2,"Statement of Operations","40","Revenue","480","Gain (Loss) on investments",4800,"Realized Gain (Loss) on Investments","General Rev and Exp (7) - CC(F-Cat4)/Fund(F-VM)/WO(M)/ACT(M)","IS","4800","GL","Active",774,"774 REALIZED (GAINS) LOSSES",null,null,null,false,4800,{"$f":"IFERROR(INDEX('Prod COA'!B:B,MATCH('CHART OF ACCOUNTS'!T205,'Prod COA'!E:E,0)),INDEX('Prod COA'!B:B,MATCH('CHART OF ACCOUNTS'!T205,'Prod COA'!A:A,0)))","v":{"$error":"#N/A"}}]
[2,"Statement of Operations","40","Revenue","440","Sales of goods and services",4405,"Admissions Revenue","General Rev and Exp (7) - CC(F-Cat4)/Fund(F-VM)/WO(M)/ACT(M)","IS","4405","GL","Active",775,"775 TICKET SALES",null,null,null,false,4405,{"$f":"IFERROR(INDEX('Prod COA'!B:B,MATCH('CHART OF ACCOUNTS'!T206,'Prod COA'!E:E,0)),INDEX('Prod COA'!B:B,MATCH('CHART OF ACCOUNTS'!T206,'Prod COA'!A:A,0)))","v":{"$error":"#N/A"}}]
[2,"Statement of Operations","40","Revenue","470","Gifts, grants and bequests",4700,"Gifts in Kind","General Rev and Exp (7) - CC(F-Cat4)/Fund(F-VM)/WO(M)/ACT(M)","IS","4700","GL","Active",776,"776 GIFTS IN KIND",null,null,null,false,4700,{"$f":"IFERROR(INDEX('Prod COA'!B:B,MATCH('CHART OF ACCOUNTS'!T207,'Prod COA'!E:E,0)),INDEX('Prod COA'!B:B,MATCH('CHART OF ACCOUNTS'!T207,'Prod COA'!A:A,0)))","v":{"$error":"#N/A"}}]
[2,"Statement of Operations","40","Revenue","470","Gifts, grants and bequests",4701,"Donations","General Rev and Exp (7) - CC(F-Cat4)/Fund(F-VM)/WO(M)/ACT(M)","IS","4701","GL","Active",778,"778 DONATIONS,GIFTS,BEQUESTS",null,null,null,false,4701,{"$f":"IFERROR(INDEX('Prod COA'!B:B,MATCH('CHART OF ACCOUNTS'!T208,'Prod COA'!E:E,0)),INDEX('Prod COA'!B:B,MATCH('CHART OF ACCOUNTS'!T208,'Prod COA'!A:A,0)))","v":{"$error":"#N/A"}}]
[2,"Statement of Operations","40","Revenue","440","Sales of goods and services",4407,"Special Events Revenue","General Rev and Exp (7) - CC(F-Cat4)/Fund(F-VM)/WO(M)/ACT(M)","IS","4407","GL","Active",779,"779 SPECIAL EVENT REVENUE",null,null,null,false,4407,{"$f":"IFERROR(INDEX('Prod COA'!B:B,MATCH('CHART OF ACCOUNTS'!T209,'Prod COA'!E:E,0)),INDEX('Prod COA'!B:B,MATCH('CHART OF ACCOUNTS'!T209,'Prod COA'!A:A,0)))","v":{"$error":"#N/A"}}]
[2,"Statement of Operations","40","Revenue","460","Investment income",4600,"Investment Income","General Rev and Exp (7) - CC(F-Cat4)/Fund(F-VM)/WO(M)/ACT(M)","IS","4600","GL","Active",780,"780 INTEREST INCOME",null,null,null,false,4600,{"$f":"IFERROR(INDEX('Prod COA'!B:B,MATCH('CHART OF ACCOUNTS'!T210,'Prod COA'!E:E,0)),INDEX('Prod COA'!B:B,MATCH('CHART OF ACCOUNTS'!T210,'Prod COA'!A:A,0)))","v":{"$error":"#N/A"}}]
[2,"Statement of Operations","40","Revenue","480","Gain (Loss) on investments",4801,"Unrealized Gain (Loss) on Investments","General Rev and Exp (7) - CC(F-Cat4)/Fund(F-VM)/WO(M)/ACT(M)","IS","4801","GL","Active",782,"Not in YTD GL",null,null,null,false,4801,{"$f":"IFERROR(INDEX('Prod COA'!B:B,MATCH('CHART OF ACCOUNTS'!T211,'Prod COA'!E:E,0)),INDEX('Prod COA'!B:B,MATCH('CHART OF ACCOUNTS'!T211,'Prod COA'!A:A,0)))","v":{"$error":"#N/A"}}]
[2,"Statement of Operations","40","Revenue","420","Other grants and contracts",4270,"Grants and Contracts - NFP's","Grants (15) - CC(F-Cat4)/Fund(F-VM)/WO(M)/ACT(M)/G(M)","IS","4270","GL","Active",783,"783 GRANTS&CONTRACTS-NFP ORG",null,null,null,false,4270,{"$f":"IFERROR(INDEX('Prod COA'!B:B,MATCH('CHART OF ACCOUNTS'!T212,'Prod COA'!E:E,0)),INDEX('Prod COA'!B:B,MATCH('CHART OF ACCOUNTS'!T212,'Prod COA'!A:A,0)))","v":{"$error":"#N/A"}}]
[2,"Statement of Operations","40","Revenue","410","Government of Canada grants",4110,"Government of Canada Department - Contracts","Grants (15) - CC(F-Cat4)/Fund(F-VM)/WO(M)/ACT(M)/G(M)","IS","4110","GL","Active",784,"784 FEDERAL GOVT CONTRACTS",null,null,null,false,4110,{"$f":"IFERROR(INDEX('Prod COA'!B:B,MATCH('CHART OF ACCOUNTS'!T213,'Prod COA'!E:E,0)),INDEX('Prod COA'!B:B,MATCH('CHART OF ACCOUNTS'!T213,'Prod COA'!A:A,0)))","v":{"$error":"#N/A"}}]
[2,"Statement of Operations","40","Revenue","400","Province of British Columbia grants",4020,"Province of BC - Contracts - Non AVED Other Ministries","Grants (15) - CC(F-Cat4)/Fund(F-VM)/WO(M)/ACT(M)/G(M)","IS","4020","GL","Active",785,"785 BC PROV CONTRACTS",null,null,null,false,4020,{"$f":"IFERROR(INDEX('Prod COA'!B:B,MATCH('CHART OF ACCOUNTS'!T214,'Prod COA'!E:E,0)),INDEX('Prod COA'!B:B,MATCH('CHART OF ACCOUNTS'!T214,'Prod COA'!A:A,0)))","v":{"$error":"#N/A"}}]
[2,"Statement of Operations","82","Internal Expenses","820","Internal ordering - expenditures",8298,"Internal Consumption - Opening Balance - Interfund Transfer","General Rev and Exp (7) - CC(F-Cat4)/Fund(F-VM)/WO(M)/ACT(M)","IS",8298,"GL","Active",786,"786 INTERFUND TRANSFER",null,null,null,{"$f":"T215=#REF!","v":{"$error":"#REF!"}},8298,{"$f":"IFERROR(INDEX('Prod COA'!B:B,MATCH('CHART OF ACCOUNTS'!T215,'Prod COA'!E:E,0)),INDEX('Prod COA'!B:B,MATCH('CHART OF ACCOUNTS'!T215,'Prod COA'!A:A,0)))","v":{"$error":"#N/A"}}]
[2,"Statement of Operations","82","Internal Expenses","820","Internal ordering - expenditures",8299,"Internal Consumption - Opening Balance - Intarfund Transfer","General Rev and Exp (7) - CC(F-Cat4)/Fund(F-VM)/WO(M)/ACT(M)","IS",8299,"GL","Active",787,"787 INTRAFUND TRANSFER",null,null,null,false,8299,{"$f":"IFERROR(INDEX('Prod COA'!B:B,MATCH('CHART OF ACCOUNTS'!T216,'Prod COA'!E:E,0)),INDEX('Prod COA'!B:B,MATCH('CHART OF ACCOUNTS'!T216,'Prod COA'!A:A,0)))","v":{"$error":"#N/A"}}]
[2,"Statement of Operations","40","Revenue","420","Other grants and contracts",4250,"Grants and Contracts - Corporations","Grants (15) - CC(F-Cat4)/Fund(F-VM)/WO(M)/ACT(M)/G(M)","IS","4250","GL","Active",790,"790 GRANTS&CONTRACTS-IND/CORP",null,null,null,false,4250,{"$f":"IFERROR(INDEX('Prod COA'!B:B,MATCH('CHART OF ACCOUNTS'!T217,'Prod COA'!E:E,0)),INDEX('Prod COA'!B:B,MATCH('CHART OF ACCOUNTS'!T217,'Prod COA'!A:A,0)))","v":{"$error":"#N/A"}}]
[2,"Statement of Operations","40","Revenue","440","Sales of goods and services",4404,"Operating Fees Revenue","General Rev and Exp (7) - CC(F-Cat4)/Fund(F-VM)/WO(M)/ACT(M)","IS","4404","GL","Active",791,"791 MEMBERSHIP REVENUE",null,null,null,false,4404,{"$f":"IFERROR(INDEX('Prod COA'!B:B,MATCH('CHART OF ACCOUNTS'!T218,'Prod COA'!E:E,0)),INDEX('Prod COA'!B:B,MATCH('CHART OF ACCOUNTS'!T218,'Prod COA'!A:A,0)))","v":{"$error":"#N/A"}}]
[2,"Statement of Operations","40","Revenue","440","Sales of goods and services",4411,"Commission Revenue","General Rev and Exp (7) - CC(F-Cat4)/Fund(F-VM)/WO(M)/ACT(M)","IS","4411","GL","Active",792,"792 REVENUE VENDING MACHINES",null,null,null,false,4411,{"$f":"IFERROR(INDEX('Prod COA'!B:B,MATCH('CHART OF ACCOUNTS'!T219,'Prod COA'!E:E,0)),INDEX('Prod COA'!B:B,MATCH('CHART OF ACCOUNTS'!T219,'Prod COA'!A:A,0)))","v":{"$error":"#N/A"}}]
[2,"Statement of Operations","40","Revenue","440","Sales of goods and services",4409,"Parking Revenue","General Rev and Exp (7) - CC(F-Cat4)/Fund(F-VM)/WO(M)/ACT(M)","IS","4409","GL","Active",793,"793 PARKING PERMITS",null,null,null,false,4409,{"$f":"IFERROR(INDEX('Prod COA'!B:B,MATCH('CHART OF ACCOUNTS'!T220,'Prod COA'!E:E,0)),INDEX('Prod COA'!B:B,MATCH('CHART OF ACCOUNTS'!T220,'Prod COA'!A:A,0)))","v":{"$error":"#N/A"}}]
[2,"Statement of Operations","40","Revenue","440","Sales of goods and services",4409,"Parking Revenue","General Rev and Exp (7) - CC(F-Cat4)/Fund(F-VM)/WO(M)/ACT(M)","IS","4409","GL","Active",794,"794 PARKING METERS REVENUE",null,null,null,true,4409,{"$f":"IFERROR(INDEX('Prod COA'!B:B,MATCH('CHART OF ACCOUNTS'!T221,'Prod COA'!E:E,0)),INDEX('Prod COA'!B:B,MATCH('CHART OF ACCOUNTS'!T221,'Prod COA'!A:A,0)))","v":{"$error":"#N/A"}}]
[2,"Statement of Operations","40","Revenue","450","Rental income",4501,"Residence Rental Income","General Rev and Exp (7) - CC(F-Cat4)/Fund(F-VM)/WO(M)/ACT(M)","IS","4501","GL","Active",795,"795 FACILITIES RENTAL REVENUE",null,null,null,false,4501,{"$f":"IFERROR(INDEX('Prod COA'!B:B,MATCH('CHART OF ACCOUNTS'!T222,'Prod COA'!E:E,0)),INDEX('Prod COA'!B:B,MATCH('CHART OF ACCOUNTS'!T222,'Prod COA'!A:A,0)))","v":{"$error":"#N/A"}}]
[2,"Statement of Operations","40","Revenue","440","Sales of goods and services",4406,"Recreation Classes, Courses and Trips Revenue","General Rev and Exp (7) - CC(F-Cat4)/Fund(F-VM)/WO(M)/ACT(M)","IS","4406","GL","Active",796,"796 SUMMER CAMP REVENUE",null,null,null,false,4406,{"$f":"IFERROR(INDEX('Prod COA'!B:B,MATCH('CHART OF ACCOUNTS'!T223,'Prod COA'!E:E,0)),INDEX('Prod COA'!B:B,MATCH('CHART OF ACCOUNTS'!T223,'Prod COA'!A:A,0)))","v":{"$error":"#N/A"}}]
[2,"Statement of Operations","40","Revenue","440","Sales of goods and services",4405,"Admissions Revenue","General Rev and Exp (7) - CC(F-Cat4)/Fund(F-VM)/WO(M)/ACT(M)","IS","4405","GL","Active",797,"797 ENTRY/REGISTRATION FEES",null,null,null,false,4405,{"$f":"IFERROR(INDEX('Prod COA'!B:B,MATCH('CHART OF ACCOUNTS'!T224,'Prod COA'!E:E,0)),INDEX('Prod COA'!B:B,MATCH('CHART OF ACCOUNTS'!T224,'Prod COA'!A:A,0)))","v":{"$error":"#N/A"}}]
[2,"Statement of Operations","40","Revenue","440","Sales of goods and services",4401,"Service Revenue","General Rev and Exp (7) - CC(F-Cat4)/Fund(F-VM)/WO(M)/ACT(M)","IS","4401","GL","Active",798,"798 SERVICES REVENUE",null,null,null,{"$f":"T225=#REF!","v":{"$error":"#REF!"}},4401,{"$f":"IFERROR(INDEX('Prod COA'!B:B,MATCH('CHART OF ACCOUNTS'!T225,'Prod COA'!E:E,0)),INDEX('Prod COA'!B:B,MATCH('CHART OF ACCOUNTS'!T225,'Prod COA'!A:A,0)))","v":{"$error":"#N/A"}}]
[2,"Statement of Operations","40","Revenue","490","Other revenue",4900,"Other Revenue","General Rev and Exp (7) - CC(F-Cat4)/Fund(F-VM)/WO(M)/ACT(M)","IS","4900","GL","Active",799,"799 OTHER REVENUE",null,null,null,false,4900,{"$f":"IFERROR(INDEX('Prod COA'!B:B,MATCH('CHART OF ACCOUNTS'!T226,'Prod COA'!E:E,0)),INDEX('Prod COA'!B:B,MATCH('CHART OF ACCOUNTS'!T226,'Prod COA'!A:A,0)))","v":{"$error":"#N/A"}}]
[1,"Statement of Financial Position","10","Financial assets","100","Cash and cash equivalents",1000,"Bank - General","Balance Sheet (2) - General CC(F-9000)/Fund(F-10)","BS","1000","GL","Active",800,"800 BANK - GENERAL",null,null,null,false,1000,{"$f":"IFERROR(INDEX('Prod COA'!B:B,MATCH('CHART OF ACCOUNTS'!T227,'Prod COA'!E:E,0)),INDEX('Prod COA'!B:B,MATCH('CHART OF ACCOUNTS'!T227,'Prod COA'!A:A,0)))","v":{"$error":"#N/A"}}]
[1,"Statement of Financial Position","10","Financial assets","100","Cash and cash equivalents",1010,"Bank - U.S.","Balance Sheet (2) - General CC(F-9000)/Fund(F-10)","BS","1010","GL","Active",801,"801 BANK - U.S.",null,null,null,false,1010,{"$f":"IFERROR(INDEX('Prod COA'!B:B,MATCH('CHART OF ACCOUNTS'!T228,'Prod COA'!E:E,0)),INDEX('Prod COA'!B:B,MATCH('CHART OF ACCOUNTS'!T228,'Prod COA'!A:A,0)))","v":{"$error":"#N/A"}}]
[1,"Statement of Financial Position","10","Financial assets","100","Cash and cash equivalents",1020,"Bank - External Access","Balance Sheet (2) - General CC(F-9000)/Fund(F-10)","BS","1020","GL","Active",803,"803 PRE-AUTH DR ACCT-APPLY BC",null,null,null,false,1020,{"$f":"IFERROR(INDEX('Prod COA'!B:B,MATCH('CHART OF ACCOUNTS'!T229,'Prod COA'!E:E,0)),INDEX('Prod COA'!B:B,MATCH('CHART OF ACCOUNTS'!T229,'Prod COA'!A:A,0)))","v":{"$error":"#N/A"}}]
[1,"Statement of Financial Position","10","Financial assets","100","Cash and cash equivalents",1030,"Petty Cash & Cash Floats","Balance Sheet (2) - General CC(F-9000)/Fund(F-10)","BS","1030","GL","Active",820,"820 PETTY CASH/CHANGE FUND",null,null,null,{"$f":"T230=#REF!","v":{"$error":"#REF!"}},1030,{"$f":"IFERROR(INDEX('Prod COA'!B:B,MATCH('CHART OF ACCOUNTS'!T230,'Prod COA'!E:E,0)),INDEX('Prod COA'!B:B,MATCH('CHART OF ACCOUNTS'!T230,'Prod COA'!A:A,0)))","v":{"$error":"#N/A"}}]
[1,"Statement of Financial Position","10","Financial assets","120","Accounts receivable",1212,"Accounts Receivable - GST ITCs and Rebates","Balance Sheet (2) - General CC(F-9000)/Fund(F-10)","BS","1212","GL","Active",822,"822 G.S.T. REBATE RECEIVABLE",null,null,null,{"$f":"T231=T230","v":false},1212,{"$f":"IFERROR(INDEX('Prod COA'!B:B,MATCH('CHART OF ACCOUNTS'!T231,'Prod COA'!E:E,0)),INDEX('Prod COA'!B:B,MATCH('CHART OF ACCOUNTS'!T231,'Prod COA'!A:A,0)))","v":{"$error":"#N/A"}}]
[1,"Statement of Financial Position","10","Financial assets","120","Accounts receivable",1212,"Accounts Receivable - GST ITCs and Rebates","Balance Sheet (2) - General CC(F-9000)/Fund(F-10)","BS","1212","GL","Active",825,"825 G.S.T. ITC'S RECEIVABLE",null,null,null,true,1212,{"$f":"IFERROR(INDEX('Prod COA'!B:B,MATCH('CHART OF ACCOUNTS'!T232,'Prod COA'!E:E,0)),INDEX('Prod COA'!B:B,MATCH('CHART OF ACCOUNTS'!T232,'Prod COA'!A:A,0)))","v":{"$error":"#N/A"}}]
[1,"Statement of Financial Position","10","Financial assets","120","Accounts receivable",1212,"Accounts Receivable - GST ITCs and Rebates","Balance Sheet (2) - General CC(F-9000)/Fund(F-10)","BS","1212","GL","Active",827,"827 G.S.T. REBATES MANUAL ADJ",null,null,null,true,1212,{"$f":"IFERROR(INDEX('Prod COA'!B:B,MATCH('CHART OF ACCOUNTS'!T233,'Prod COA'!E:E,0)),INDEX('Prod COA'!B:B,MATCH('CHART OF ACCOUNTS'!T233,'Prod COA'!A:A,0)))","v":{"$error":"#N/A"}}]
[1,"Statement of Financial Position","10","Financial assets","120","Accounts receivable",1291,"Accounts Receivable - Due from THS at VIU (Intercompany)","Balance Sheet (2) - General CC(F-9000)/Fund(F-10)","BS","1291","GL","Active",828,"828 DUE TO/FROM MIHS",null,null,null,false,1291,{"$f":"IFERROR(INDEX('Prod COA'!B:B,MATCH('CHART OF ACCOUNTS'!T234,'Prod COA'!E:E,0)),INDEX('Prod COA'!B:B,MATCH('CHART OF ACCOUNTS'!T234,'Prod COA'!A:A,0)))","v":{"$error":"#N/A"}}]
[1,"Statement of Financial Position","10","Financial assets","120","Accounts receivable",1200,"Accounts Receivable Control - BC Provincial Govt - Grants and Contracts","Balance Sheet (2) - General CC(F-9000)/Fund(F-10)","BS","1200","AR","Active",830,"830 ACCTS REC - GENERAL",null,null,null,false,1200,{"$f":"IFERROR(INDEX('Prod COA'!B:B,MATCH('CHART OF ACCOUNTS'!T235,'Prod COA'!E:E,0)),INDEX('Prod COA'!B:B,MATCH('CHART OF ACCOUNTS'!T235,'Prod COA'!A:A,0)))","v":{"$error":"#N/A"}}]
[1,"Statement of Financial Position","10","Financial assets","120","Accounts receivable",1210,"Accounts Receivable Control -  Federal Govt- Grants and Contracts","Balance Sheet (2) - General CC(F-9000)/Fund(F-10)","BS","1210","AR","Active",830,"830 ACCTS REC - GENERAL",null,null,null,{"$f":"T236=#REF!","v":{"$error":"#REF!"}},1210,{"$f":"IFERROR(INDEX('Prod COA'!B:B,MATCH('CHART OF ACCOUNTS'!T236,'Prod COA'!E:E,0)),INDEX('Prod COA'!B:B,MATCH('CHART OF ACCOUNTS'!T236,'Prod COA'!A:A,0)))","v":{"$error":"#N/A"}}]
[1,"Statement of Financial Position","10","Financial assets","120","Accounts receivable",1220,"Accounts Receivable  Control - Other Govt - Grants and Contracts","Balance Sheet (2) - General CC(F-9000)/Fund(F-10)","BS","1220","AR","Active",830,"830 ACCTS REC - GENERAL",null,null,null,false,1220,{"$f":"IFERROR(INDEX('Prod COA'!B:B,MATCH('CHART OF ACCOUNTS'!T237,'Prod COA'!E:E,0)),INDEX('Prod COA'!B:B,MATCH('CHART OF ACCOUNTS'!T237,'Prod COA'!A:A,0)))","v":{"$error":"#N/A"}}]
[1,"Statement of Financial Position","10","Financial assets","120","Accounts receivable",1230,"Accounts Receivable Control - Trade General","Balance Sheet (2) - General CC(F-9000)/Fund(F-10)","BS","1230","AR","Active",830,"830 ACCTS REC - GENERAL",null,null,null,false,1230,{"$f":"IFERROR(INDEX('Prod COA'!B:B,MATCH('CHART OF ACCOUNTS'!T238,'Prod COA'!E:E,0)),INDEX('Prod COA'!B:B,MATCH('CHART OF ACCOUNTS'!T238,'Prod COA'!A:A,0)))","v":{"$error":"#N/A"}}]
[1,"Statement of Financial Position","10","Financial assets","120","Accounts receivable",1260,"AR Clearing - Student Emergency Loans (Advances)","Balance Sheet (2) - General CC(F-9000)/Fund(F-10)","BS","1260","GL","Active",832,"Not in YTD GL",null,null,null,false,1260,{"$f":"IFERROR(INDEX('Prod COA'!B:B,MATCH('CHART OF ACCOUNTS'!T239,'Prod COA'!E:E,0)),INDEX('Prod COA'!B:B,MATCH('CHART OF ACCOUNTS'!T239,'Prod COA'!A:A,0)))","v":{"$error":"#N/A"}}]
[1,"Statement of Financial Position","10","Financial assets","120","Accounts receivable",1212,"Accounts Receivable - GST ITCs and Rebates","Balance Sheet (2) - General CC(F-9000)/Fund(F-10)","BS","1212","GL","Active",833,"833 GST CLEARING",null,null,null,false,1212,{"$f":"IFERROR(INDEX('Prod COA'!B:B,MATCH('CHART OF ACCOUNTS'!T240,'Prod COA'!E:E,0)),INDEX('Prod COA'!B:B,MATCH('CHART OF ACCOUNTS'!T240,'Prod COA'!A:A,0)))","v":{"$error":"#N/A"}}]
[1,"Statement of Financial Position","10","Financial assets","120","Accounts receivable",1252,"Accounts Receivable - Campus Store","Balance Sheet (2) - General CC(F-9000)/Fund(F-10)","BS","1252","GL","Active",836,"836 BOOKSTORE A/R CLEARING",null,null,null,false,1252,{"$f":"IFERROR(INDEX('Prod COA'!B:B,MATCH('CHART OF ACCOUNTS'!T241,'Prod COA'!E:E,0)),INDEX('Prod COA'!B:B,MATCH('CHART OF ACCOUNTS'!T241,'Prod COA'!A:A,0)))","v":{"$error":"#N/A"}}]
[1,"Statement of Financial Position","10","Financial assets","120","Accounts receivable",1263,"AR Clearing - Passport / Youth Works","Balance Sheet (2) - General CC(F-9000)/Fund(F-10)","BS","1263","GL","Active",837,"Not in YTD GL",null,null,null,false,1263,{"$f":"IFERROR(INDEX('Prod COA'!B:B,MATCH('CHART OF ACCOUNTS'!T242,'Prod COA'!E:E,0)),INDEX('Prod COA'!B:B,MATCH('CHART OF ACCOUNTS'!T242,'Prod COA'!A:A,0)))","v":{"$error":"#N/A"}}]
[1,"Statement of Financial Position","15","Non-financial assets","170","Prepaid expenses",1700,"Prepaid Expenses - Supplier Invoices","Prepaid Expenses (29) - CC(F-9000)/Fund(F-10)/WO(M)/ACT(M)","BS","1700","GL","Active",840,"840 PREPAID EXPENSES-GENERAL",null,null,null,false,1700,{"$f":"IFERROR(INDEX('Prod COA'!B:B,MATCH('CHART OF ACCOUNTS'!T243,'Prod COA'!E:E,0)),INDEX('Prod COA'!B:B,MATCH('CHART OF ACCOUNTS'!T243,'Prod COA'!A:A,0)))","v":{"$error":"#N/A"}}]
[1,"Statement of Financial Position","10","Financial assets","120","Accounts receivable",1290,"AR Clearing - Due from VIU Foundation","Balance Sheet (2) - General CC(F-9000)/Fund(F-10)","BS","1290","GL","Active",844,"844 DUE TO/FROM FOUNDATION",null,null,null,false,1290,{"$f":"IFERROR(INDEX('Prod COA'!B:B,MATCH('CHART OF ACCOUNTS'!T244,'Prod COA'!E:E,0)),INDEX('Prod COA'!B:B,MATCH('CHART OF ACCOUNTS'!T244,'Prod COA'!A:A,0)))","v":{"$error":"#N/A"}}]
[1,"Statement of Financial Position","10","Financial assets","120","Accounts receivable",1252,"Accounts Receivable - Campus Store","Balance Sheet (2) - General CC(F-9000)/Fund(F-10)","BS","1252","GL","Active",845,"845 BOOKSTORE INV.CLEARING",null,null,null,false,1252,{"$f":"IFERROR(INDEX('Prod COA'!B:B,MATCH('CHART OF ACCOUNTS'!T245,'Prod COA'!E:E,0)),INDEX('Prod COA'!B:B,MATCH('CHART OF ACCOUNTS'!T245,'Prod COA'!A:A,0)))","v":{"$error":"#N/A"}}]
[1,"Statement of Financial Position","15","Non-financial assets","170","Prepaid expenses",1805,"Deposits - Employee Advances","Balance Sheet (2) - General CC(F-9000)/Fund(F-10)","BS","1805","GL","Active",846,"846 TRAVEL ADVANCES",null,null,null,false,1805,{"$f":"IFERROR(INDEX('Prod COA'!B:B,MATCH('CHART OF ACCOUNTS'!T246,'Prod COA'!E:E,0)),INDEX('Prod COA'!B:B,MATCH('CHART OF ACCOUNTS'!T246,'Prod COA'!A:A,0)))","v":{"$error":"#N/A"}}]
[1,"Statement of Financial Position","10","Financial assets","120","Accounts receivable",1251,"Accounts Receivable - Residence","Balance Sheet (2) - General CC(F-9000)/Fund(F-10)","BS","1251","GL","Active",848,"Not in YTD GL",null,null,null,false,1251,{"$f":"IFERROR(INDEX('Prod COA'!B:B,MATCH('CHART OF ACCOUNTS'!T247,'Prod COA'!E:E,0)),INDEX('Prod COA'!B:B,MATCH('CHART OF ACCOUNTS'!T247,'Prod COA'!A:A,0)))","v":{"$error":"#N/A"}}]
[1,"Statement of Financial Position","10","Financial assets","120","Accounts receivable",1235,"Accounts Receivable - Student Ledger AR (SLED)","SLED Transactions (24) - CC(F-9000)/Fund(F-10)/SL (M)/SCP (M)","BS","1235","AR","Active",849,"849 STU LEDGER:TUITION RECEIV",null,null,null,false,1235,{"$f":"IFERROR(INDEX('Prod COA'!B:B,MATCH('CHART OF ACCOUNTS'!T248,'Prod COA'!E:E,0)),INDEX('Prod COA'!B:B,MATCH('CHART OF ACCOUNTS'!T248,'Prod COA'!A:A,0)))","v":{"$error":"#N/A"}}]
[1,"Statement of Financial Position","10","Financial assets","120","Accounts receivable",1240,"Accounts Receivable - Allowance for Doubtful Accounts","Balance Sheet (2) - General CC(F-9000)/Fund(F-10)","BS","1240","GL","Active",850,"850 SLED BAD DEBT CONTRA ACCT",null,null,null,{"$f":"T249=#REF!","v":{"$error":"#REF!"}},1240,{"$f":"IFERROR(INDEX('Prod COA'!B:B,MATCH('CHART OF ACCOUNTS'!T249,'Prod COA'!E:E,0)),INDEX('Prod COA'!B:B,MATCH('CHART OF ACCOUNTS'!T249,'Prod COA'!A:A,0)))","v":{"$error":"#N/A"}}]
[1,"Statement of Financial Position","10","Financial assets","140","Portfolio investments",1400,"Investment - General - Cumulative Unrealized Gains/Losses","Balance Sheet (2) - General CC(F-9000)/Fund(F-10)","BS","1400","GL","Active",851,"851 INVESTMENT-CUMULATIVE UGL",null,null,null,false,1400,{"$f":"IFERROR(INDEX('Prod COA'!B:B,MATCH('CHART OF ACCOUNTS'!T250,'Prod COA'!E:E,0)),INDEX('Prod COA'!B:B,MATCH('CHART OF ACCOUNTS'!T250,'Prod COA'!A:A,0)))","v":{"$error":"#N/A"}}]
[1,"Statement of Financial Position","10","Financial assets","140","Portfolio investments",1410,"Investment - General","Balance Sheet (2) - General CC(F-9000)/Fund(F-10)","BS","1410","GL","Active",853,"853 INVESTMENTS",null,null,null,false,1410,{"$f":"IFERROR(INDEX('Prod COA'!B:B,MATCH('CHART OF ACCOUNTS'!T251,'Prod COA'!E:E,0)),INDEX('Prod COA'!B:B,MATCH('CHART OF ACCOUNTS'!T251,'Prod COA'!A:A,0)))","v":{"$error":"#N/A"}}]
[1,"Statement of Financial Position","10","Financial assets","130","Inventories for resale",1300,"Inventory - Campus Store","Balance Sheet (2) - General CC(F-9000)/Fund(F-10)","BS","1300","GL","Active",855,"855 BOOKSTORE INVENTORY",null,null,null,false,1300,{"$f":"IFERROR(INDEX('Prod COA'!B:B,MATCH('CHART OF ACCOUNTS'!T252,'Prod COA'!E:E,0)),INDEX('Prod COA'!B:B,MATCH('CHART OF ACCOUNTS'!T252,'Prod COA'!A:A,0)))","v":{"$error":"#N/A"}}]
[1,"Statement of Financial Position","10","Financial assets","130","Inventories for resale",1310,"Inventory - Food Services","Balance Sheet (2) - General CC(F-9000)/Fund(F-10)","BS","1310","GL","Active",856,"856 CAFETERIA INVENTORY",null,null,null,false,1310,{"$f":"IFERROR(INDEX('Prod COA'!B:B,MATCH('CHART OF ACCOUNTS'!T253,'Prod COA'!E:E,0)),INDEX('Prod COA'!B:B,MATCH('CHART OF ACCOUNTS'!T253,'Prod COA'!A:A,0)))","v":{"$error":"#N/A"}}]
[1,"Statement of Financial Position","10","Financial assets","130","Inventories for resale",1320,"Inventory - Milner Gardens","Balance Sheet (2) - General CC(F-9000)/Fund(F-10)","BS","1320","GL","Active",857,"857 MILNER GARDENS INVENTORY",null,null,null,false,1320,{"$f":"IFERROR(INDEX('Prod COA'!B:B,MATCH('CHART OF ACCOUNTS'!T254,'Prod COA'!E:E,0)),INDEX('Prod COA'!B:B,MATCH('CHART OF ACCOUNTS'!T254,'Prod COA'!A:A,0)))","v":{"$error":"#N/A"}}]
[1,"Statement of Financial Position","10","Financial assets","140","Portfolio investments",1420,"Investment - Tourism Chair","Balance Sheet (2) - General CC(F-9000)/Fund(F-10)","BS","1420","GL","Active",867,"867 INVESTMENT TOURISM CHAIR",null,null,null,false,1420,{"$f":"IFERROR(INDEX('Prod COA'!B:B,MATCH('CHART OF ACCOUNTS'!T255,'Prod COA'!E:E,0)),INDEX('Prod COA'!B:B,MATCH('CHART OF ACCOUNTS'!T255,'Prod COA'!A:A,0)))","v":{"$error":"#N/A"}}]
[1,"Statement of Financial Position","10","Financial assets","140","Portfolio investments",1430,"Investment - Tourism Chair - Cumulative Unrealized Gains/Losses","Balance Sheet (2) - General CC(F-9000)/Fund(F-10)","BS","1430","GL","Active",868,"868 TOURISM CH-CUMULATIVE UGL",null,null,null,false,1430,{"$f":"IFERROR(INDEX('Prod COA'!B:B,MATCH('CHART OF ACCOUNTS'!T256,'Prod COA'!E:E,0)),INDEX('Prod COA'!B:B,MATCH('CHART OF ACCOUNTS'!T256,'Prod COA'!A:A,0)))","v":{"$error":"#N/A"}}]
[1,"Statement of Financial Position","10","Financial assets","140","Portfolio investments",1440,"Investment - Aboriginal Early Childhood Development Chair","Balance Sheet (2) - General CC(F-9000)/Fund(F-10)","BS","1440","GL","Active",869,"869 INVESTMENT-AECD CHAIR",null,null,null,false,1440,{"$f":"IFERROR(INDEX('Prod COA'!B:B,MATCH('CHART OF ACCOUNTS'!T257,'Prod COA'!E:E,0)),INDEX('Prod COA'!B:B,MATCH('CHART OF ACCOUNTS'!T257,'Prod COA'!A:A,0)))","v":{"$error":"#N/A"}}]
[1,"Statement of Financial Position","10","Financial assets","140","Portfolio investments",1450,"Investment - Aboriginal Early Childhood Development Chair - Cumulative Unrealized Gains/Losses","Balance Sheet (2) - General CC(F-9000)/Fund(F-10)","BS","1450","GL","Active",870,"870 ACED CHAIR-CUMULATIVE UGL",null,null,null,false,1450,{"$f":"IFERROR(INDEX('Prod COA'!B:B,MATCH('CHART OF ACCOUNTS'!T258,'Prod COA'!E:E,0)),INDEX('Prod COA'!B:B,MATCH('CHART OF ACCOUNTS'!T258,'Prod COA'!A:A,0)))","v":{"$error":"#N/A"}}]
[1,"Statement of Financial Position","10","Financial assets","140","Portfolio investments",1455,"Investment - VIU Initiatives Corp ","Balance Sheet (2) - General CC(F-9000)/Fund(F-10)","BS","1455","GL","Active",871,"871 INVESTMENT IN VIUIC",null,null,null,false,{"$f":"IF(LEN(G259)=4,G259,K259)*1","v":1455},{"$f":"IFERROR(INDEX('Prod COA'!B:B,MATCH('CHART OF ACCOUNTS'!T259,'Prod COA'!E:E,0)),INDEX('Prod COA'!B:B,MATCH('CHART OF ACCOUNTS'!T259,'Prod COA'!A:A,0)))","v":{"$error":"#N/A"}}]
[1,"Statement of Financial Position","15","Non-financial assets","150","Tangible capital assets",1509,"Capital Assets - Vehicles","Assets (3) - CC(F-9150)/Fund(F-50)/WO(M)/ACT(M-Default 500)","BS","1509","GL","Active",875,"875 VEHICLES",null,null,null,false,1509,{"$f":"IFERROR(INDEX('Prod COA'!B:B,MATCH('CHART OF ACCOUNTS'!T260,'Prod COA'!E:E,0)),INDEX('Prod COA'!B:B,MATCH('CHART OF ACCOUNTS'!T260,'Prod COA'!A:A,0)))","v":{"$error":"#N/A"}}]
[1,"Statement of Financial Position","15","Non-financial assets","150","Tangible capital assets",1511,"Capital Assets - Work In Progress","Assets (3) - CC(F-9150)/Fund(F-50)/WO(M)/ACT(M-Default 500)","BS","1511","GL","Active",876,"876 WORK IN PROGRESS",null,null,null,false,1511,{"$f":"IFERROR(INDEX('Prod COA'!B:B,MATCH('CHART OF ACCOUNTS'!T261,'Prod COA'!E:E,0)),INDEX('Prod COA'!B:B,MATCH('CHART OF ACCOUNTS'!T261,'Prod COA'!A:A,0)))","v":{"$error":"#N/A"}}]
[1,"Statement of Financial Position","15","Non-financial assets","150","Tangible capital assets",1510,"Capital Assets - Land","Assets (3) - CC(F-9150)/Fund(F-50)/WO(M)/ACT(M-Default 500)","BS","1510","GL","Active",880,"880 LAND",null,null,null,false,1510,{"$f":"IFERROR(INDEX('Prod COA'!B:B,MATCH('CHART OF ACCOUNTS'!T262,'Prod COA'!E:E,0)),INDEX('Prod COA'!B:B,MATCH('CHART OF ACCOUNTS'!T262,'Prod COA'!A:A,0)))","v":{"$error":"#N/A"}}]
[1,"Statement of Financial Position","15","Non-financial assets","150","Tangible capital assets",1508,"Capital Assets - Site Improvements (Land)","Assets (3) - CC(F-9150)/Fund(F-50)/WO(M)/ACT(M-Default 500)","BS","1508","GL","Active",881,"881 SITE IMPROVEMENTS",null,null,null,false,1508,{"$f":"IFERROR(INDEX('Prod COA'!B:B,MATCH('CHART OF ACCOUNTS'!T263,'Prod COA'!E:E,0)),INDEX('Prod COA'!B:B,MATCH('CHART OF ACCOUNTS'!T263,'Prod COA'!A:A,0)))","v":{"$error":"#N/A"}}]
[1,"Statement of Financial Position","15","Non-financial assets","150","Tangible capital assets",1500,"Capital Assets - Buildings - New Construction","Assets (3) - CC(F-9150)/Fund(F-50)/WO(M)/ACT(M-Default 500)","BS","1500","GL","Active",882,"882 BUILDINGS",null,null,null,false,1500,{"$f":"IFERROR(INDEX('Prod COA'!B:B,MATCH('CHART OF ACCOUNTS'!T264,'Prod COA'!E:E,0)),INDEX('Prod COA'!B:B,MATCH('CHART OF ACCOUNTS'!T264,'Prod COA'!A:A,0)))","v":{"$error":"#N/A"}}]
[1,"Statement of Financial Position","15","Non-financial assets","150","Tangible capital assets",1504,"Capital Assets - Furniture","Assets (3) - CC(F-9150)/Fund(F-50)/WO(M)/ACT(M-Default 500)","BS","1504","GL","Active",883,"883 FURNITURE & EQUIPMENT",null,null,null,false,1504,{"$f":"IFERROR(INDEX('Prod COA'!B:B,MATCH('CHART OF ACCOUNTS'!T265,'Prod COA'!E:E,0)),INDEX('Prod COA'!B:B,MATCH('CHART OF ACCOUNTS'!T265,'Prod COA'!A:A,0)))","v":{"$error":"#N/A"}}]
[1,"Statement of Financial Position","15","Non-financial assets","150","Tangible capital assets",1502,"Capital Assets - Computer Equipment","Assets (3) - CC(F-9150)/Fund(F-50)/WO(M)/ACT(M-Default 500)","BS","1502","GL","Active",884,"884 COMPUTER EQUIPMENT",null,null,null,{"$f":"T266=#REF!","v":{"$error":"#REF!"}},1502,{"$f":"IFERROR(INDEX('Prod COA'!B:B,MATCH('CHART OF ACCOUNTS'!T266,'Prod COA'!E:E,0)),INDEX('Prod COA'!B:B,MATCH('CHART OF ACCOUNTS'!T266,'Prod COA'!A:A,0)))","v":{"$error":"#N/A"}}]
[1,"Statement of Financial Position","15","Non-financial assets","150","Tangible capital assets",1506,"Capital Assets - Leasehold Improvements","Assets (3) - CC(F-9150)/Fund(F-50)/WO(M)/ACT(M-Default 500)","BS","1506","GL","Active",885,"885 LEASEHOLD IMPROVEMENTS",null,null,null,false,1506,{"$f":"IFERROR(INDEX('Prod COA'!B:B,MATCH('CHART OF ACCOUNTS'!T267,'Prod COA'!E:E,0)),INDEX('Prod COA'!B:B,MATCH('CHART OF ACCOUNTS'!T267,'Prod COA'!A:A,0)))","v":{"$error":"#N/A"}}]
[1,"Statement of Financial Position","15","Non-financial assets","150","Tangible capital assets",1507,"Capital Assets - Library Books","Assets (3) - CC(F-9150)/Fund(F-50)/WO(M)/ACT(M-Default 500)","BS","1507","GL","Active",886,"886 LIBRARY BOOKS",null,null,null,false,1507,{"$f":"IFERROR(INDEX('Prod COA'!B:B,MATCH('CHART OF ACCOUNTS'!T268,'Prod COA'!E:E,0)),INDEX('Prod COA'!B:B,MATCH('CHART OF ACCOUNTS'!T268,'Prod COA'!A:A,0)))","v":{"$error":"#N/A"}}]
[1,"Statement of Financial Position","15","Non-financial assets","150","Tangible capital assets",1558,"Accumulated Amortization - Site Improvements (Land)","Assets (3) - CC(F-9150)/Fund(F-50)/WO(M)/ACT(M-Default 500)","BS","1558","GL","Active",887,"887 ACCUM.AMORT.SITE IMPROV.",null,null,null,false,1558,{"$f":"IFERROR(INDEX('Prod COA'!B:B,MATCH('CHART OF ACCOUNTS'!T269,'Prod COA'!E:E,0)),INDEX('Prod COA'!B:B,MATCH('CHART OF ACCOUNTS'!T269,'Prod COA'!A:A,0)))","v":{"$error":"#N/A"}}]
[1,"Statement of Financial Position","15","Non-financial assets","150","Tangible capital assets",1550,"Accumulated Amortization - New Building Construction","Assets (3) - CC(F-9150)/Fund(F-50)/WO(M)/ACT(M-Default 500)","BS","1550","GL","Active",888,"888 ACCUM.AMORT.BUILDINGS",null,null,null,false,1550,{"$f":"IFERROR(INDEX('Prod COA'!B:B,MATCH('CHART OF ACCOUNTS'!T270,'Prod COA'!E:E,0)),INDEX('Prod COA'!B:B,MATCH('CHART OF ACCOUNTS'!T270,'Prod COA'!A:A,0)))","v":{"$error":"#N/A"}}]
[1,"Statement of Financial Position","15","Non-financial assets","150","Tangible capital assets",1554,"Accumulated Amortization - Furniture","Assets (3) - CC(F-9150)/Fund(F-50)/WO(M)/ACT(M-Default 500)","BS","1554","GL","Active",889,"889 ACCUM.AMORT.EQUIP.F&F",null,null,null,{"$f":"T271=#REF!","v":{"$error":"#REF!"}},1554,{"$f":"IFERROR(INDEX('Prod COA'!B:B,MATCH('CHART OF ACCOUNTS'!T271,'Prod COA'!E:E,0)),INDEX('Prod COA'!B:B,MATCH('CHART OF ACCOUNTS'!T271,'Prod COA'!A:A,0)))","v":{"$error":"#N/A"}}]
[1,"Statement of Financial Position","15","Non-financial assets","150","Tangible capital assets",1552,"Accumulated Amortization - Computer Equipment","Assets (3) - CC(F-9150)/Fund(F-50)/WO(M)/ACT(M-Default 500)","BS","1552","GL","Active",890,"890 ACCUM.AMORT.COMPUTER EQ.",null,null,null,false,1552,{"$f":"IFERROR(INDEX('Prod COA'!B:B,MATCH('CHART OF ACCOUNTS'!T272,'Prod COA'!E:E,0)),INDEX('Prod COA'!B:B,MATCH('CHART OF ACCOUNTS'!T272,'Prod COA'!A:A,0)))","v":{"$error":"#N/A"}}]
[1,"Statement of Financial Position","15","Non-financial assets","150","Tangible capital assets",1556,"Accumulated Amortization - Leasehold Improvements","Assets (3) - CC(F-9150)/Fund(F-50)/WO(M)/ACT(M-Default 500)","BS","1556","GL","Active",891,"891 ACCUM.AMORT.LEASEHOLD IMP",null,null,null,false,1556,{"$f":"IFERROR(INDEX('Prod COA'!B:B,MATCH('CHART OF ACCOUNTS'!T273,'Prod COA'!E:E,0)),INDEX('Prod COA'!B:B,MATCH('CHART OF ACCOUNTS'!T273,'Prod COA'!A:A,0)))","v":{"$error":"#N/A"}}]
[1,"Statement of Financial Position","15","Non-financial assets","150","Tangible capital assets",1557,"Accumulated Amortization - Library Books","Assets (3) - CC(F-9150)/Fund(F-50)/WO(M)/ACT(M-Default 500)","BS","1557","GL","Active",892,"892 ACCUM.AMORT.LIBRARY BOOKS",null,null,null,{"$f":"T274=#REF!","v":{"$error":"#REF!"}},1557,{"$f":"IFERROR(INDEX('Prod COA'!B:B,MATCH('CHART OF ACCOUNTS'!T274,'Prod COA'!E:E,0)),INDEX('Prod COA'!B:B,MATCH('CHART OF ACCOUNTS'!T274,'Prod COA'!A:A,0)))","v":{"$error":"#N/A"}}]
[1,"Statement of Financial Position","15","Non-financial assets","150","Tangible capital assets",1559,"Accumulated Amortization - Vehicles","Assets (3) - CC(F-9150)/Fund(F-50)/WO(M)/ACT(M-Default 500)","BS","1559","GL","Active",895,"895 ACCUMULATED DEP-VEHICLES",null,null,null,{"$f":"T275=T274","v":false},1559,{"$f":"IFERROR(INDEX('Prod COA'!B:B,MATCH('CHART OF ACCOUNTS'!T275,'Prod COA'!E:E,0)),INDEX('Prod COA'!B:B,MATCH('CHART OF ACCOUNTS'!T275,'Prod COA'!A:A,0)))","v":{"$error":"#N/A"}}]
[1,"Statement of Financial Position","10","Financial assets","146","Loan receivable",1460,"Loan Receivable - VIU Initiatives Trust ","Balance Sheet (2) - General CC(F-9000)/Fund(F-10)","BS","1460","GL","Active",897,"897 LOAN RECEIVABLE - VIIT",null,null,null,false,1460,{"$f":"IFERROR(INDEX('Prod COA'!B:B,MATCH('CHART OF ACCOUNTS'!T276,'Prod COA'!E:E,0)),INDEX('Prod COA'!B:B,MATCH('CHART OF ACCOUNTS'!T276,'Prod COA'!A:A,0)))","v":{"$error":"#N/A"}}]
[1,"Statement of Financial Position","20","Liabilities","200","Accounts payable",2000,"Accounts Payable - Control - Provincial","Balance Sheet (2) - General CC(F-9000)/Fund(F-10)","BS","2000","AP","Active",900,"900 ACCTS PAYABLE - GENERAL",null,null,null,false,2000,{"$f":"IFERROR(INDEX('Prod COA'!B:B,MATCH('CHART OF ACCOUNTS'!T277,'Prod COA'!E:E,0)),INDEX('Prod COA'!B:B,MATCH('CHART OF ACCOUNTS'!T277,'Prod COA'!A:A,0)))","v":{"$error":"#N/A"}}]
[1,"Statement of Financial Position","20","Liabilities","200","Accounts payable",2010,"Accounts Payable - Control - Federal","Balance Sheet (2) - General CC(F-9000)/Fund(F-10)","BS","2010","AP","Active",900,"900 ACCTS PAYABLE - GENERAL",null,null,null,false,2010,{"$f":"IFERROR(INDEX('Prod COA'!B:B,MATCH('CHART OF ACCOUNTS'!T278,'Prod COA'!E:E,0)),INDEX('Prod COA'!B:B,MATCH('CHART OF ACCOUNTS'!T278,'Prod COA'!A:A,0)))","v":{"$error":"#N/A"}}]
[1,"Statement of Financial Position","20","Liabilities","200","Accounts payable",2020,"Accounts Payable - Control - Other Government","Balance Sheet (2) - General CC(F-9000)/Fund(F-10)","BS","2020","AP","Active",900,"900 ACCTS PAYABLE - GENERAL",null,null,null,false,2020,{"$f":"IFERROR(INDEX('Prod COA'!B:B,MATCH('CHART OF ACCOUNTS'!T279,'Prod COA'!E:E,0)),INDEX('Prod COA'!B:B,MATCH('CHART OF ACCOUNTS'!T279,'Prod COA'!A:A,0)))","v":{"$error":"#N/A"}}]
[1,"Statement of Financial Position","20","Liabilities","200","Accounts payable",2030,"Accounts Payable - Control - Trade","Balance Sheet (2) - General CC(F-9000)/Fund(F-10)","BS","2030","AP","Active",900,"900 ACCTS PAYABLE - GENERAL",null,null,null,false,2030,{"$f":"IFERROR(INDEX('Prod COA'!B:B,MATCH('CHART OF ACCOUNTS'!T280,'Prod COA'!E:E,0)),INDEX('Prod COA'!B:B,MATCH('CHART OF ACCOUNTS'!T280,'Prod COA'!A:A,0)))","v":{"$error":"#N/A"}}]
[1,"Statement of Financial Position","20","Liabilities","200","Accounts payable",2032,"Accounts Payable - Control - Union","Balance Sheet (2) - General CC(F-9000)/Fund(F-10)","BS","2032","AP","Active",900,"900 ACCTS PAYABLE - GENERAL",null,null,null,false,2032,{"$f":"IFERROR(INDEX('Prod COA'!B:B,MATCH('CHART OF ACCOUNTS'!T281,'Prod COA'!E:E,0)),INDEX('Prod COA'!B:B,MATCH('CHART OF ACCOUNTS'!T281,'Prod COA'!A:A,0)))","v":{"$error":"#N/A"}}]
[1,"Statement of Financial Position","20","Liabilities","200","Accounts payable",2067,"Accounts Payable - General Clearing","Balance Sheet (2) - General CC(F-9000)/Fund(F-10)","BS","2067","GL","Active",901,"901 ACCTS PAYABLE - CLEARING",null,null,null,{"$f":"T282=#REF!","v":{"$error":"#REF!"}},2067,{"$f":"IFERROR(INDEX('Prod COA'!B:B,MATCH('CHART OF ACCOUNTS'!T282,'Prod COA'!E:E,0)),INDEX('Prod COA'!B:B,MATCH('CHART OF ACCOUNTS'!T282,'Prod COA'!A:A,0)))","v":{"$error":"#N/A"}}]
[1,"Statement of Financial Position","20","Liabilities","210","Accrued liabilities",2140,"Accrued - Registered Supplier Invoices","Balance Sheet (2) - General CC(F-9000)/Fund(F-10)","BS","2140","GL","Active",902,"902 ACCTS PAYABLE-VENDOR ADJ.",null,null,null,false,2140,{"$f":"IFERROR(INDEX('Prod COA'!B:B,MATCH('CHART OF ACCOUNTS'!T283,'Prod COA'!E:E,0)),INDEX('Prod COA'!B:B,MATCH('CHART OF ACCOUNTS'!T283,'Prod COA'!A:A,0)))","v":{"$error":"#N/A"}}]
[1,"Statement of Financial Position","20","Liabilities","200","Accounts payable",2001,"PST Payable","Balance Sheet (2) - General CC(F-9000)/Fund(F-10)","BS","2001","GL","Active",903,"903 B.C. SALES TAX PAYABLE",null,null,null,{"$f":"T284=#REF!","v":{"$error":"#REF!"}},2001,{"$f":"IFERROR(INDEX('Prod COA'!B:B,MATCH('CHART OF ACCOUNTS'!T284,'Prod COA'!E:E,0)),INDEX('Prod COA'!B:B,MATCH('CHART OF ACCOUNTS'!T284,'Prod COA'!A:A,0)))","v":{"$error":"#N/A"}}]
[1,"Statement of Financial Position","20","Liabilities","200","Accounts payable",2030,"Accounts Payable - Control - Trade","Balance Sheet (2) - General CC(F-9000)/Fund(F-10)","BS","2030","AP","Active",904,"904 ACCTS PAYABLE - U.S. BANK",null,null,null,false,2030,{"$f":"IFERROR(INDEX('Prod COA'!B:B,MATCH('CHART OF ACCOUNTS'!T285,'Prod COA'!E:E,0)),INDEX('Prod COA'!B:B,MATCH('CHART OF ACCOUNTS'!T285,'Prod COA'!A:A,0)))","v":{"$error":"#N/A"}}]
[1,"Statement of Financial Position","20","Liabilities","200","Accounts payable",2067,"Accounts Payable - General Clearing","Balance Sheet (2) - General CC(F-9000)/Fund(F-10)","BS","2067","GL","Active",905,"905 B.C.TEL L.D.CLEARING ACT.",null,null,null,false,2067,{"$f":"IFERROR(INDEX('Prod COA'!B:B,MATCH('CHART OF ACCOUNTS'!T286,'Prod COA'!E:E,0)),INDEX('Prod COA'!B:B,MATCH('CHART OF ACCOUNTS'!T286,'Prod COA'!A:A,0)))","v":{"$error":"#N/A"}}]
[1,"Statement of Financial Position","20","Liabilities","200","Accounts payable",2000,"Accounts Payable - Control - Provincial","Balance Sheet (2) - General CC(F-9000)/Fund(F-10)","BS","2000","AP","Active",906,"906 ACCTS PAYABLE - WEEKLY",null,null,null,false,2000,{"$f":"IFERROR(INDEX('Prod COA'!B:B,MATCH('CHART OF ACCOUNTS'!T287,'Prod COA'!E:E,0)),INDEX('Prod COA'!B:B,MATCH('CHART OF ACCOUNTS'!T287,'Prod COA'!A:A,0)))","v":{"$error":"#N/A"}}]
[1,"Statement of Financial Position","20","Liabilities","200","Accounts payable",2010,"Accounts Payable - Control - Federal","Balance Sheet (2) - General CC(F-9000)/Fund(F-10)","BS","2010","AP","Active",906,"906 ACCTS PAYABLE - WEEKLY",null,null,null,false,2010,{"$f":"IFERROR(INDEX('Prod COA'!B:B,MATCH('CHART OF ACCOUNTS'!T288,'Prod COA'!E:E,0)),INDEX('Prod COA'!B:B,MATCH('CHART OF ACCOUNTS'!T288,'Prod COA'!A:A,0)))","v":{"$error":"#N/A"}}]
[1,"Statement of Financial Position","20","Liabilities","200","Accounts payable",2020,"Accounts Payable - Control - Other Government","Balance Sheet (2) - General CC(F-9000)/Fund(F-10)","BS","2020","AP","Active",906,"906 ACCTS PAYABLE - WEEKLY",null,null,null,false,2020,{"$f":"IFERROR(INDEX('Prod COA'!B:B,MATCH('CHART OF ACCOUNTS'!T289,'Prod COA'!E:E,0)),INDEX('Prod COA'!B:B,MATCH('CHART OF ACCOUNTS'!T289,'Prod COA'!A:A,0)))","v":{"$error":"#N/A"}}]
[1,"Statement of Financial Position","20","Liabilities","200","Accounts payable",2030,"Accounts Payable - Control - Trade","Balance Sheet (2) - General CC(F-9000)/Fund(F-10)","BS","2030","AP","Active",906,"906 ACCTS PAYABLE - WEEKLY",null,null,null,false,2030,{"$f":"IFERROR(INDEX('Prod COA'!B:B,MATCH('CHART OF ACCOUNTS'!T290,'Prod COA'!E:E,0)),INDEX('Prod COA'!B:B,MATCH('CHART OF ACCOUNTS'!T290,'Prod COA'!A:A,0)))","v":{"$error":"#N/A"}}]
[1,"Statement of Financial Position","20","Liabilities","200","Accounts payable",2032,"Accounts Payable - Control - Union","Balance Sheet (2) - General CC(F-9000)/Fund(F-10)","BS","2032","AP","Active",906,"906 ACCTS PAYABLE - WEEKLY",null,null,null,false,2032,{"$f":"IFERROR(INDEX('Prod COA'!B:B,MATCH('CHART OF ACCOUNTS'!T291,'Prod COA'!E:E,0)),INDEX('Prod COA'!B:B,MATCH('CHART OF ACCOUNTS'!T291,'Prod COA'!A:A,0)))","v":{"$error":"#N/A"}}]
[1,"Statement of Financial Position","20","Liabilities","200","Accounts payable",2033,"Accounts Payable - Control - Employees","Balance Sheet (2) - General CC(F-9000)/Fund(F-10)","BS","2033","AP","Active",906,"906 ACCTS PAYABLE - WEEKLY",null,null,null,false,2033,{"$f":"IFERROR(INDEX('Prod COA'!B:B,MATCH('CHART OF ACCOUNTS'!T292,'Prod COA'!E:E,0)),INDEX('Prod COA'!B:B,MATCH('CHART OF ACCOUNTS'!T292,'Prod COA'!A:A,0)))","v":{"$error":"#N/A"}}]
[1,"Statement of Financial Position","20","Liabilities","200","Accounts payable",2011,"GST Collected on Sales","Balance Sheet (2) - General CC(F-9000)/Fund(F-10)","BS","2011","GL","Active",907,"907 G.S.T. COLLECTED ON SALES",null,null,null,false,2011,{"$f":"IFERROR(INDEX('Prod COA'!B:B,MATCH('CHART OF ACCOUNTS'!T293,'Prod COA'!E:E,0)),INDEX('Prod COA'!B:B,MATCH('CHART OF ACCOUNTS'!T293,'Prod COA'!A:A,0)))","v":{"$error":"#N/A"}}]
[1,"Statement of Financial Position","20","Liabilities","230","Deferred revenue",2360,"Deferred Revenue - Food Services Meal Plans","Balance Sheet (2) - General CC(F-9000)/Fund(F-10)","BS",2360,"GL","Active",908,"908 FOOD SERVICES-MEAL PLANS",null,null,null,false,2360,{"$f":"IFERROR(INDEX('Prod COA'!B:B,MATCH('CHART OF ACCOUNTS'!T294,'Prod COA'!E:E,0)),INDEX('Prod COA'!B:B,MATCH('CHART OF ACCOUNTS'!T294,'Prod COA'!A:A,0)))","v":{"$error":"#N/A"}}]
[1,"Statement of Financial Position","20","Liabilities","210","Accrued liabilities",2100,"Wages Payable","Balance Sheet (2) - General CC(F-9000)/Fund(F-10)","BS","2100","GL","Active",910,"910 WAGES PAYABLE",null,null,null,false,2100,{"$f":"IFERROR(INDEX('Prod COA'!B:B,MATCH('CHART OF ACCOUNTS'!T295,'Prod COA'!E:E,0)),INDEX('Prod COA'!B:B,MATCH('CHART OF ACCOUNTS'!T295,'Prod COA'!A:A,0)))","v":{"$error":"#N/A"}}]
[1,"Statement of Financial Position","20","Liabilities","210","Accrued liabilities",2114,"WorkSafeBC Payable","Balance Sheet (2) - General CC(F-9000)/Fund(F-10)","BS","2114","GL","Active",911,"911 WORKSAFEBC PAYABLE",null,null,null,false,2114,{"$f":"IFERROR(INDEX('Prod COA'!B:B,MATCH('CHART OF ACCOUNTS'!T296,'Prod COA'!E:E,0)),INDEX('Prod COA'!B:B,MATCH('CHART OF ACCOUNTS'!T296,'Prod COA'!A:A,0)))","v":{"$error":"#N/A"}}]
[1,"Statement of Financial Position","20","Liabilities","210","Accrued liabilities",2130,"Union Dues Payable","Balance Sheet (2) - General CC(F-9000)/Fund(F-10)","BS","2130","GL","Active",912,"912 UNION DUES-CHARITY-MISC",null,null,null,false,2130,{"$f":"IFERROR(INDEX('Prod COA'!B:B,MATCH('CHART OF ACCOUNTS'!T297,'Prod COA'!E:E,0)),INDEX('Prod COA'!B:B,MATCH('CHART OF ACCOUNTS'!T297,'Prod COA'!A:A,0)))","v":{"$error":"#N/A"}}]
[1,"Statement of Financial Position","20","Liabilities","210","Accrued liabilities",2111,"College Pension Payable","Balance Sheet (2) - General CC(F-9000)/Fund(F-10)","BS","2111","GL","Active",913,"913 MUNICIPAL/COLLEGE PENSION",null,null,null,false,2111,{"$f":"IFERROR(INDEX('Prod COA'!B:B,MATCH('CHART OF ACCOUNTS'!T298,'Prod COA'!E:E,0)),INDEX('Prod COA'!B:B,MATCH('CHART OF ACCOUNTS'!T298,'Prod COA'!A:A,0)))","v":{"$error":"#N/A"}}]
[1,"Statement of Financial Position","20","Liabilities","200","Accounts payable",2066,"Accounts Payable - VIU Foundation - Employee McLotto","Balance Sheet (2) - General CC(F-9000)/Fund(F-10)","BS","2066","GL","Active",914,"914 STAFF LOTTERY - CLEARING",null,null,null,false,2066,{"$f":"IFERROR(INDEX('Prod COA'!B:B,MATCH('CHART OF ACCOUNTS'!T299,'Prod COA'!E:E,0)),INDEX('Prod COA'!B:B,MATCH('CHART OF ACCOUNTS'!T299,'Prod COA'!A:A,0)))","v":{"$error":"#N/A"}}]
[1,"Statement of Financial Position","20","Liabilities","210","Accrued liabilities",2132,"Deferred Salary Payable","Balance Sheet (2) - General CC(F-9000)/Fund(F-10)","BS","2132","GL","Active",915,"915 DEFERRED SALARY PAYABLE",null,null,null,false,2132,{"$f":"IFERROR(INDEX('Prod COA'!B:B,MATCH('CHART OF ACCOUNTS'!T300,'Prod COA'!E:E,0)),INDEX('Prod COA'!B:B,MATCH('CHART OF ACCOUNTS'!T300,'Prod COA'!A:A,0)))","v":{"$error":"#N/A"}}]
[1,"Statement of Financial Position","20","Liabilities","210","Accrued liabilities",2120,"Benefits - Extended Health Payable","Balance Sheet (2) - General CC(F-9000)/Fund(F-10)","BS","2120","GL","Active",917,"917 M.S.A. (E.H.B.) PAYABLE",null,null,null,false,2120,{"$f":"IFERROR(INDEX('Prod COA'!B:B,MATCH('CHART OF ACCOUNTS'!T301,'Prod COA'!E:E,0)),INDEX('Prod COA'!B:B,MATCH('CHART OF ACCOUNTS'!T301,'Prod COA'!A:A,0)))","v":{"$error":"#N/A"}}]
[1,"Statement of Financial Position","20","Liabilities","210","Accrued liabilities",2122,"Benefits - Accidental death and dismemberment Payable","Balance Sheet (2) - General CC(F-9000)/Fund(F-10)","BS","2122","GL","Active",918,"918 MANULIFE/I.A. INSURANCES",null,null,null,false,2122,{"$f":"IFERROR(INDEX('Prod COA'!B:B,MATCH('CHART OF ACCOUNTS'!T302,'Prod COA'!E:E,0)),INDEX('Prod COA'!B:B,MATCH('CHART OF ACCOUNTS'!T302,'Prod COA'!A:A,0)))","v":{"$error":"#N/A"}}]
[1,"Statement of Financial Position","20","Liabilities","210","Accrued liabilities",2123,"Benefits - Group Life Payable","Balance Sheet (2) - General CC(F-9000)/Fund(F-10)","BS","2123","GL","Active",918,"918 MANULIFE/I.A. INSURANCES",null,null,null,false,2123,{"$f":"IFERROR(INDEX('Prod COA'!B:B,MATCH('CHART OF ACCOUNTS'!T303,'Prod COA'!E:E,0)),INDEX('Prod COA'!B:B,MATCH('CHART OF ACCOUNTS'!T303,'Prod COA'!A:A,0)))","v":{"$error":"#N/A"}}]
[1,"Statement of Financial Position","20","Liabilities","210","Accrued liabilities",2124,"Benefits - Short Term Disability Payable","Balance Sheet (2) - General CC(F-9000)/Fund(F-10)","BS","2124","GL","Active",918,"918 MANULIFE/I.A. INSURANCES",null,null,null,false,2124,{"$f":"IFERROR(INDEX('Prod COA'!B:B,MATCH('CHART OF ACCOUNTS'!T304,'Prod COA'!E:E,0)),INDEX('Prod COA'!B:B,MATCH('CHART OF ACCOUNTS'!T304,'Prod COA'!A:A,0)))","v":{"$error":"#N/A"}}]
[1,"Statement of Financial Position","20","Liabilities","210","Accrued liabilities",2125,"Benefits - Long Term Disability Payable","Balance Sheet (2) - General CC(F-9000)/Fund(F-10)","BS","2125","GL","Active",918,"918 MANULIFE/I.A. INSURANCES",null,null,null,false,2125,{"$f":"IFERROR(INDEX('Prod COA'!B:B,MATCH('CHART OF ACCOUNTS'!T305,'Prod COA'!E:E,0)),INDEX('Prod COA'!B:B,MATCH('CHART OF ACCOUNTS'!T305,'Prod COA'!A:A,0)))","v":{"$error":"#N/A"}}]
[1,"Statement of Financial Position","20","Liabilities","210","Accrued liabilities",2121,"Benefits - Dental benefit Payable","Balance Sheet (2) - General CC(F-9000)/Fund(F-10)","BS","2121","GL","Active",919,"919 M.S.A. DENTAL PAYABLE",null,null,null,false,2121,{"$f":"IFERROR(INDEX('Prod COA'!B:B,MATCH('CHART OF ACCOUNTS'!T306,'Prod COA'!E:E,0)),INDEX('Prod COA'!B:B,MATCH('CHART OF ACCOUNTS'!T306,'Prod COA'!A:A,0)))","v":{"$error":"#N/A"}}]
[1,"Statement of Financial Position","20","Liabilities","200","Accounts payable",2060,"Accounts Payable - VIUSU Payable - Student Society Fees","Balance Sheet (2) - General CC(F-9000)/Fund(F-10)","BS","2060","GL","Active",920,"920 STUDENT SOCIETY FEES PAY.",null,null,null,false,2060,{"$f":"IFERROR(INDEX('Prod COA'!B:B,MATCH('CHART OF ACCOUNTS'!T307,'Prod COA'!E:E,0)),INDEX('Prod COA'!B:B,MATCH('CHART OF ACCOUNTS'!T307,'Prod COA'!A:A,0)))","v":{"$error":"#N/A"}}]
[1,"Statement of Financial Position","20","Liabilities","210","Accrued liabilities",2175,"Accrued Employee Liabilities - VIUFA Overtime","Balance Sheet (2) - General CC(F-9000)/Fund(F-10)","BS","2175","GL","Active",923,"923 BANKED LEAVE SECTIONS",null,null,null,false,2175,{"$f":"IFERROR(INDEX('Prod COA'!B:B,MATCH('CHART OF ACCOUNTS'!T308,'Prod COA'!E:E,0)),INDEX('Prod COA'!B:B,MATCH('CHART OF ACCOUNTS'!T308,'Prod COA'!A:A,0)))","v":{"$error":"#N/A"}}]
[1,"Statement of Financial Position","20","Liabilities","210","Accrued liabilities",2101,"RRSP Payable","Balance Sheet (2) - General CC(F-9000)/Fund(F-10)","BS","2101","GL","Active",925,"925 RRSP PAYABLE",null,null,null,false,2101,{"$f":"IFERROR(INDEX('Prod COA'!B:B,MATCH('CHART OF ACCOUNTS'!T309,'Prod COA'!E:E,0)),INDEX('Prod COA'!B:B,MATCH('CHART OF ACCOUNTS'!T309,'Prod COA'!A:A,0)))","v":{"$error":"#N/A"}}]
[1,"Statement of Financial Position","10","Financial assets","120","Accounts receivable",1233,"Accounts Receivable Control - Employee Receivables","Balance Sheet (2) - General CC(F-9000)/Fund(F-10)","BS","1233","GL","Active",926,"926 EMPLOYEE RECEIVABLE",null,null,null,false,1233,{"$f":"IFERROR(INDEX('Prod COA'!B:B,MATCH('CHART OF ACCOUNTS'!T310,'Prod COA'!E:E,0)),INDEX('Prod COA'!B:B,MATCH('CHART OF ACCOUNTS'!T310,'Prod COA'!A:A,0)))","v":{"$error":"#N/A"}}]
[1,"Statement of Financial Position","10","Financial assets","120","Accounts receivable",1234,"Accounts Receivable - Employee Receivables (Computer and Relocation Loans)","Balance Sheet (2) - General CC(F-9000)/Fund(F-10)","BS","1234","GL","Active",927,"927 COMPUTER/PD/RELOC. LOANS",null,null,null,false,1234,{"$f":"IFERROR(INDEX('Prod COA'!B:B,MATCH('CHART OF ACCOUNTS'!T311,'Prod COA'!E:E,0)),INDEX('Prod COA'!B:B,MATCH('CHART OF ACCOUNTS'!T311,'Prod COA'!A:A,0)))","v":{"$error":"#N/A"}}]
[1,"Statement of Financial Position","20","Liabilities","210","Accrued liabilities",2178,"Accrued Employee Liabilities - VIUFA Professional Development","Balance Sheet (2) - General CC(F-9000)/Fund(F-10)","BS","2178","GL","Active",929,"929 VIUFA PD BANK",null,null,null,false,2178,{"$f":"IFERROR(INDEX('Prod COA'!B:B,MATCH('CHART OF ACCOUNTS'!T312,'Prod COA'!E:E,0)),INDEX('Prod COA'!B:B,MATCH('CHART OF ACCOUNTS'!T312,'Prod COA'!A:A,0)))","v":{"$error":"#N/A"}}]
[1,"Statement of Financial Position","20","Liabilities","210","Accrued liabilities",2134,"PRO-PASS Deductions","Balance Sheet (2) - General CC(F-9000)/Fund(F-10)","BS","2134","GL","Active",930,"930 PRO-PASS DEDUCTIONS",null,null,null,false,2134,{"$f":"IFERROR(INDEX('Prod COA'!B:B,MATCH('CHART OF ACCOUNTS'!T313,'Prod COA'!E:E,0)),INDEX('Prod COA'!B:B,MATCH('CHART OF ACCOUNTS'!T313,'Prod COA'!A:A,0)))","v":{"$error":"#N/A"}}]
[1,"Statement of Financial Position","10","Financial assets","120","Accounts receivable",1236,"Accounts Receivable - Employee Receivables (Pay Advance)","Balance Sheet (2) - General CC(F-9000)/Fund(F-10)","BS","1236","GL","Active",931,"931 EE RECEIVABLE-PAY ADVANCE",null,null,null,false,1236,{"$f":"IFERROR(INDEX('Prod COA'!B:B,MATCH('CHART OF ACCOUNTS'!T314,'Prod COA'!E:E,0)),INDEX('Prod COA'!B:B,MATCH('CHART OF ACCOUNTS'!T314,'Prod COA'!A:A,0)))","v":{"$error":"#N/A"}}]
[1,"Statement of Financial Position","20","Liabilities","210","Accrued liabilities",2110,"Receiver General Payroll Payable","Balance Sheet (2) - General CC(F-9000)/Fund(F-10)","BS","2110","GL","Active",932,"932 RECEIVER GENRAL PAYROLL",null,null,null,false,2110,{"$f":"IFERROR(INDEX('Prod COA'!B:B,MATCH('CHART OF ACCOUNTS'!T315,'Prod COA'!E:E,0)),INDEX('Prod COA'!B:B,MATCH('CHART OF ACCOUNTS'!T315,'Prod COA'!A:A,0)))","v":{"$error":"#N/A"}}]
[1,"Statement of Financial Position","10","Financial assets","120","Accounts receivable",1262,"AR Clearing - Accounts Receivable","Balance Sheet (2) - General CC(F-9000)/Fund(F-10)","BS","1262","GL","Active",933,"933 AR/AP CREDITS - CLEARING",null,null,null,false,1262,{"$f":"IFERROR(INDEX('Prod COA'!B:B,MATCH('CHART OF ACCOUNTS'!T316,'Prod COA'!E:E,0)),INDEX('Prod COA'!B:B,MATCH('CHART OF ACCOUNTS'!T316,'Prod COA'!A:A,0)))","v":{"$error":"#N/A"}}]
[1,"Statement of Financial Position","10","Financial assets","120","Accounts receivable",1261,"AR Clearing - CBV Collections Clearing","Balance Sheet (2) - General CC(F-9000)/Fund(F-10)","BS","1261","GL","Active",934,"934 CBV CLEARING",null,null,null,false,1261,{"$f":"IFERROR(INDEX('Prod COA'!B:B,MATCH('CHART OF ACCOUNTS'!T317,'Prod COA'!E:E,0)),INDEX('Prod COA'!B:B,MATCH('CHART OF ACCOUNTS'!T317,'Prod COA'!A:A,0)))","v":{"$error":"#N/A"}}]
[1,"Statement of Financial Position","20","Liabilities","230","Deferred revenue",2361,"Deferred Revenue - Food Services Dining Dollars","Balance Sheet (2) - General CC(F-9000)/Fund(F-10)","BS",2361,"GL","Active",935,"935 DINING $$$ CLEARING",null,null,null,false,2361,{"$f":"IFERROR(INDEX('Prod COA'!B:B,MATCH('CHART OF ACCOUNTS'!T318,'Prod COA'!E:E,0)),INDEX('Prod COA'!B:B,MATCH('CHART OF ACCOUNTS'!T318,'Prod COA'!A:A,0)))","v":{"$error":"#N/A"}}]
[1,"Statement of Financial Position","20","Liabilities","230","Deferred revenue",2350,"Deferred Revenue - Tuition and Student Fees - SLED","Balance Sheet (2) - General CC(F-9000)/Fund(F-10)","BS","2350","GL","Active",937,"937 DEFERRED TUITION REVENUE",null,null,null,false,2350,{"$f":"IFERROR(INDEX('Prod COA'!B:B,MATCH('CHART OF ACCOUNTS'!T319,'Prod COA'!E:E,0)),INDEX('Prod COA'!B:B,MATCH('CHART OF ACCOUNTS'!T319,'Prod COA'!A:A,0)))","v":{"$error":"#N/A"}}]
[1,"Statement of Financial Position","20","Liabilities","230","Deferred revenue",2310,"Deferred Revenue - Corporations - Grants and Contracts","Grants (15) - CC(F-Cat4)/Fund(F-VM)/WO(M)/ACT(M)/G(M)","BS","2310","GL","Active",938,"938 DEFERRED REVENUE",null,null,null,false,2310,{"$f":"IFERROR(INDEX('Prod COA'!B:B,MATCH('CHART OF ACCOUNTS'!T320,'Prod COA'!E:E,0)),INDEX('Prod COA'!B:B,MATCH('CHART OF ACCOUNTS'!T320,'Prod COA'!A:A,0)))","v":{"$error":"#N/A"}}]
[1,"Statement of Financial Position","20","Liabilities","230","Deferred revenue",2320,"Deferred Revenue - Individuals - Grants and Contracts","Grants (15) - CC(F-Cat4)/Fund(F-VM)/WO(M)/ACT(M)/G(M)","BS","2320","GL","Active",938,"938 DEFERRED REVENUE",null,null,null,false,2320,{"$f":"IFERROR(INDEX('Prod COA'!B:B,MATCH('CHART OF ACCOUNTS'!T321,'Prod COA'!E:E,0)),INDEX('Prod COA'!B:B,MATCH('CHART OF ACCOUNTS'!T321,'Prod COA'!A:A,0)))","v":{"$error":"#N/A"}}]
[1,"Statement of Financial Position","20","Liabilities","230","Deferred revenue",2330,"Deferred Revenue - NFPs - Grants and Contracts","Grants (15) - CC(F-Cat4)/Fund(F-VM)/WO(M)/ACT(M)/G(M)","BS","2330","GL","Active",938,"938 DEFERRED REVENUE",null,null,null,false,2330,{"$f":"IFERROR(INDEX('Prod COA'!B:B,MATCH('CHART OF ACCOUNTS'!T322,'Prod COA'!E:E,0)),INDEX('Prod COA'!B:B,MATCH('CHART OF ACCOUNTS'!T322,'Prod COA'!A:A,0)))","v":{"$error":"#N/A"}}]
[1,"Statement of Financial Position","20","Liabilities","200","Accounts payable",2070,"Accounts Payable -Bookstore Student Credits","Balance Sheet (2) - General CC(F-9000)/Fund(F-10)","BS","2070","GL","Active",939,"939 BOOKSTORE STU.CREDITS-CLE",null,null,null,false,{"$f":"IF(LEN(G323)=4,G323,K323)*1","v":2070},{"$f":"IFERROR(INDEX('Prod COA'!B:B,MATCH('CHART OF ACCOUNTS'!T323,'Prod COA'!E:E,0)),INDEX('Prod COA'!B:B,MATCH('CHART OF ACCOUNTS'!T323,'Prod COA'!A:A,0)))","v":{"$error":"#N/A"}}]
[1,"Statement of Financial Position","30","Accumulated surplus","300","Equity/Accumulated surplus",3020,"Unrestricted Net Assets","Balance Sheet (2) - General CC(F-9000)/Fund(F-10)","BS","3020","GL","Active",940,"940 UNRESTRICTED NET ASSETS",null,null,null,false,3020,{"$f":"IFERROR(INDEX('Prod COA'!B:B,MATCH('CHART OF ACCOUNTS'!T324,'Prod COA'!E:E,0)),INDEX('Prod COA'!B:B,MATCH('CHART OF ACCOUNTS'!T324,'Prod COA'!A:A,0)))","v":{"$error":"#N/A"}}]
[1,"Statement of Financial Position","20","Liabilities","200","Accounts payable",2071,"Accounts Payable - Manulife Claims","Balance Sheet (2) - General CC(F-9000)/Fund(F-10)","BS","2071","GL","Active",941,"941 MANULIFE CLAIM CLEARING",null,null,null,false,2071,{"$f":"IFERROR(INDEX('Prod COA'!B:B,MATCH('CHART OF ACCOUNTS'!T325,'Prod COA'!E:E,0)),INDEX('Prod COA'!B:B,MATCH('CHART OF ACCOUNTS'!T325,'Prod COA'!A:A,0)))","v":{"$error":"#N/A"}}]
[1,"Statement of Financial Position","20","Liabilities","240","Deferred contributions",2430,"Deferred Contributions - Government of Canada Department - Grants","Grants (15) - CC(F-Cat4)/Fund(F-VM)/WO(M)/ACT(M)/G(M)","BS","2430","GL","Active",945,"945 DEFERRED FED.GRANTS-OPERA",null,null,null,false,2430,{"$f":"IFERROR(INDEX('Prod COA'!B:B,MATCH('CHART OF ACCOUNTS'!T326,'Prod COA'!E:E,0)),INDEX('Prod COA'!B:B,MATCH('CHART OF ACCOUNTS'!T326,'Prod COA'!A:A,0)))","v":{"$error":"#N/A"}}]
[1,"Statement of Financial Position","20","Liabilities","240","Deferred contributions",2431,"Deferred Contributions - Government of Canada Department - Contracts","Grants (15) - CC(F-Cat4)/Fund(F-VM)/WO(M)/ACT(M)/G(M)","BS","2431","GL","Active",945,"945 DEFERRED FED.GRANTS-OPERA",null,null,null,false,2431,{"$f":"IFERROR(INDEX('Prod COA'!B:B,MATCH('CHART OF ACCOUNTS'!T327,'Prod COA'!E:E,0)),INDEX('Prod COA'!B:B,MATCH('CHART OF ACCOUNTS'!T327,'Prod COA'!A:A,0)))","v":{"$error":"#N/A"}}]
[1,"Statement of Financial Position","20","Liabilities","250","Deferred capital contributions",2510,"Deferred Capital Contributions -  Federal","Assets (3) - CC(F-9150)/Fund(F-50)/WO(M)/ACT(M-Default 500)","BS","2510","GL","Active",945,"945 DEFERRED FED.GRANTS-OPERA",null,null,null,false,2510,{"$f":"IFERROR(INDEX('Prod COA'!B:B,MATCH('CHART OF ACCOUNTS'!T328,'Prod COA'!E:E,0)),INDEX('Prod COA'!B:B,MATCH('CHART OF ACCOUNTS'!T328,'Prod COA'!A:A,0)))","v":{"$error":"#N/A"}}]
[1,"Statement of Financial Position","20","Liabilities","240","Deferred contributions",2400,"Deferred Contributions - Province of BC - AVED Core Operating","Grants (15) - CC(F-Cat4)/Fund(F-VM)/WO(M)/ACT(M)/G(M)","BS","2400","GL","Active",946,"946 DEFERRED MINISTRY GRANTS",null,null,null,false,2400,{"$f":"IFERROR(INDEX('Prod COA'!B:B,MATCH('CHART OF ACCOUNTS'!T329,'Prod COA'!E:E,0)),INDEX('Prod COA'!B:B,MATCH('CHART OF ACCOUNTS'!T329,'Prod COA'!A:A,0)))","v":{"$error":"#N/A"}}]
[1,"Statement of Financial Position","20","Liabilities","240","Deferred contributions",2401,"Deferred Contributions - Province of BC - AVED General Grants","Grants (15) - CC(F-Cat4)/Fund(F-VM)/WO(M)/ACT(M)/G(M)","BS","2401","GL","Active",946,"946 DEFERRED MINISTRY GRANTS",null,null,null,false,2401,{"$f":"IFERROR(INDEX('Prod COA'!B:B,MATCH('CHART OF ACCOUNTS'!T330,'Prod COA'!E:E,0)),INDEX('Prod COA'!B:B,MATCH('CHART OF ACCOUNTS'!T330,'Prod COA'!A:A,0)))","v":{"$error":"#N/A"}}]
[1,"Statement of Financial Position","20","Liabilities","220","Employee future benefits",2200,"Employee Future Benefits - Actuarial","Balance Sheet (2) - General CC(F-9000)/Fund(F-10)","BS","2200","GL","Active",949,"949 EMPLOYEE FUTURE BENEFITS",null,null,null,false,2200,{"$f":"IFERROR(INDEX('Prod COA'!B:B,MATCH('CHART OF ACCOUNTS'!T331,'Prod COA'!E:E,0)),INDEX('Prod COA'!B:B,MATCH('CHART OF ACCOUNTS'!T331,'Prod COA'!A:A,0)))","v":{"$error":"#N/A"}}]
[1,"Statement of Financial Position","30","Accumulated surplus","300","Equity/Accumulated surplus",3030,"Equity Endowment - Aboriginal Early Childhood Development Chair","Balance Sheet (2) - General CC(F-9000)/Fund(F-10)","BS","3030","GL","Active",950,"950 EQUITY Endow-AECD Chair",null,null,null,false,3030,{"$f":"IFERROR(INDEX('Prod COA'!B:B,MATCH('CHART OF ACCOUNTS'!T332,'Prod COA'!E:E,0)),INDEX('Prod COA'!B:B,MATCH('CHART OF ACCOUNTS'!T332,'Prod COA'!A:A,0)))","v":{"$error":"#N/A"}}]
[1,"Statement of Financial Position","30","Accumulated surplus","300","Equity/Accumulated surplus",3040,"Equity Endowment - Tourism Chair","Balance Sheet (2) - General CC(F-9000)/Fund(F-10)","BS","3040","GL","Active",952,"952 EQUITY Endow-Tour Chair",null,null,null,false,3040,{"$f":"IFERROR(INDEX('Prod COA'!B:B,MATCH('CHART OF ACCOUNTS'!T333,'Prod COA'!E:E,0)),INDEX('Prod COA'!B:B,MATCH('CHART OF ACCOUNTS'!T333,'Prod COA'!A:A,0)))","v":{"$error":"#N/A"}}]
[1,"Statement of Financial Position","20","Liabilities","210","Accrued liabilities",2161,"Accrued Employee Liabilities - ADMIN Vacation","Balance Sheet (2) - General CC(F-9000)/Fund(F-10)","BS","2161","GL","Active",955,"955 ACCR. VACATION LIABILITY",null,null,null,false,2161,{"$f":"IFERROR(INDEX('Prod COA'!B:B,MATCH('CHART OF ACCOUNTS'!T334,'Prod COA'!E:E,0)),INDEX('Prod COA'!B:B,MATCH('CHART OF ACCOUNTS'!T334,'Prod COA'!A:A,0)))","v":{"$error":"#N/A"}}]
[1,"Statement of Financial Position","20","Liabilities","200","Accounts payable",2002,"Municipal and Regional District Tax (MRDT) Payable","Balance Sheet (2) - General CC(F-9000)/Fund(F-10)","BS","2002","GL","Active",956,"956 MRDT PAYABLE",null,null,null,{"$f":"T335=T334","v":false},2002,{"$f":"IFERROR(INDEX('Prod COA'!B:B,MATCH('CHART OF ACCOUNTS'!T335,'Prod COA'!E:E,0)),INDEX('Prod COA'!B:B,MATCH('CHART OF ACCOUNTS'!T335,'Prod COA'!A:A,0)))","v":{"$error":"#N/A"}}]
[1,"Statement of Financial Position","20","Liabilities","210","Accrued liabilities",2191,"Residence Damage Deposits ","Balance Sheet (17) - Deposits - CC(F-9000)/Fund(M-VM)/WO(M)","BS","2191","GL","Active",957,"957 RESIDENCE DAMAGE DEPOSITS",null,null,null,{"$f":"T336=#REF!","v":{"$error":"#REF!"}},2191,{"$f":"IFERROR(INDEX('Prod COA'!B:B,MATCH('CHART OF ACCOUNTS'!T336,'Prod COA'!E:E,0)),INDEX('Prod COA'!B:B,MATCH('CHART OF ACCOUNTS'!T336,'Prod COA'!A:A,0)))","v":{"$error":"#N/A"}}]
[1,"Statement of Financial Position","20","Liabilities","240","Deferred contributions",2402,"Deferred Contributions - Province of BC - Non AVED Other Ministries","Grants (15) - CC(F-Cat4)/Fund(F-VM)/WO(M)/ACT(M)/G(M)","BS","2402","GL","Active",958,"958 DEFERRED PROV GRANTS OTHR",null,null,null,false,2402,{"$f":"IFERROR(INDEX('Prod COA'!B:B,MATCH('CHART OF ACCOUNTS'!T337,'Prod COA'!E:E,0)),INDEX('Prod COA'!B:B,MATCH('CHART OF ACCOUNTS'!T337,'Prod COA'!A:A,0)))","v":{"$error":"#N/A"}}]
[1,"Statement of Financial Position","20","Liabilities","240","Deferred contributions",2404,"Deferred Contributions - Province of BC - Crown Corps, Agencies, Boards - ITA","Grants (15) - CC(F-Cat4)/Fund(F-VM)/WO(M)/ACT(M)/G(M)","BS","2404","GL","Active",959,"959 DEFERRED PROV ITA",null,null,null,false,2404,{"$f":"IFERROR(INDEX('Prod COA'!B:B,MATCH('CHART OF ACCOUNTS'!T338,'Prod COA'!E:E,0)),INDEX('Prod COA'!B:B,MATCH('CHART OF ACCOUNTS'!T338,'Prod COA'!A:A,0)))","v":{"$error":"#N/A"}}]
[1,"Statement of Financial Position","20","Liabilities","240","Deferred contributions",2405,"Deferred Contributions - Province of BC - Crown Corps, Agencies, Boards - Other","Grants (15) - CC(F-Cat4)/Fund(F-VM)/WO(M)/ACT(M)/G(M)","BS","2405","GL","Active",963,"963 DEFERRED OTHER GOV GRANTS",null,null,null,false,2405,{"$f":"IFERROR(INDEX('Prod COA'!B:B,MATCH('CHART OF ACCOUNTS'!T339,'Prod COA'!E:E,0)),INDEX('Prod COA'!B:B,MATCH('CHART OF ACCOUNTS'!T339,'Prod COA'!A:A,0)))","v":{"$error":"#N/A"}}]
[1,"Statement of Financial Position","20","Liabilities","240","Deferred contributions",2440,"Deferred Contributions - Other Govt - Grants and Contracts ","Grants (15) - CC(F-Cat4)/Fund(F-VM)/WO(M)/ACT(M)/G(M)","BS",2440,"GL","Active",963,"963 DEFERRED OTHER GOV GRANTS",null,null,null,false,2440,{"$f":"IFERROR(INDEX('Prod COA'!B:B,MATCH('CHART OF ACCOUNTS'!T340,'Prod COA'!E:E,0)),INDEX('Prod COA'!B:B,MATCH('CHART OF ACCOUNTS'!T340,'Prod COA'!A:A,0)))","v":{"$error":"#N/A"}}]
[1,"Statement of Financial Position","20","Liabilities","210","Accrued liabilities",2113,"Employer Health Tax Payable (MSP)","Balance Sheet (2) - General CC(F-9000)/Fund(F-10)","BS","2113","GL","Active",964,"964 EHT PAYABLE",null,null,null,false,2113,{"$f":"IFERROR(INDEX('Prod COA'!B:B,MATCH('CHART OF ACCOUNTS'!T341,'Prod COA'!E:E,0)),INDEX('Prod COA'!B:B,MATCH('CHART OF ACCOUNTS'!T341,'Prod COA'!A:A,0)))","v":{"$error":"#N/A"}}]
[1,"Statement of Financial Position","20","Liabilities","250","Deferred capital contributions",2520,"Deferred Capital Contributions - Other","Assets (3) - CC(F-9150)/Fund(F-50)/WO(M)/ACT(M-Default 500)","BS","2520","GL","Active",966,"Not in YTD GL",null,null,null,false,2520,{"$f":"IFERROR(INDEX('Prod COA'!B:B,MATCH('CHART OF ACCOUNTS'!T342,'Prod COA'!E:E,0)),INDEX('Prod COA'!B:B,MATCH('CHART OF ACCOUNTS'!T342,'Prod COA'!A:A,0)))","v":{"$error":"#N/A"}}]
[1,"Statement of Financial Position","20","Liabilities","250","Deferred capital contributions",2520,"Deferred Capital Contributions - Other","Assets (3) - CC(F-9150)/Fund(F-50)/WO(M)/ACT(M-Default 500)","BS","2520","GL","Active",967,"967 DEF DONATION&OTHER CONTRB",null,null,null,{"$f":"T343=#REF!","v":{"$error":"#REF!"}},2520,{"$f":"IFERROR(INDEX('Prod COA'!B:B,MATCH('CHART OF ACCOUNTS'!T343,'Prod COA'!E:E,0)),INDEX('Prod COA'!B:B,MATCH('CHART OF ACCOUNTS'!T343,'Prod COA'!A:A,0)))","v":{"$error":"#N/A"}}]
[1,"Statement of Financial Position","20","Liabilities","250","Deferred capital contributions",2500,"Deferred Capital Contributions - Provincial","Assets (3) - CC(F-9150)/Fund(F-50)/WO(M)/ACT(M-Default 500)","BS","2500","GL","Active",968,"968 DEFERRED HISTORICAL ACA",null,null,null,false,2500,{"$f":"IFERROR(INDEX('Prod COA'!B:B,MATCH('CHART OF ACCOUNTS'!T344,'Prod COA'!E:E,0)),INDEX('Prod COA'!B:B,MATCH('CHART OF ACCOUNTS'!T344,'Prod COA'!A:A,0)))","v":{"$error":"#N/A"}}]
[1,"Statement of Financial Position","20","Liabilities","250","Deferred capital contributions",2500,"Deferred Capital Contributions - Provincial","Assets (3) - CC(F-9150)/Fund(F-50)/WO(M)/ACT(M-Default 500)","BS","2500","GL","Active",969,"969 DEFERRED CERTIFICATES REV",null,null,null,true,2500,{"$f":"IFERROR(INDEX('Prod COA'!B:B,MATCH('CHART OF ACCOUNTS'!T345,'Prod COA'!E:E,0)),INDEX('Prod COA'!B:B,MATCH('CHART OF ACCOUNTS'!T345,'Prod COA'!A:A,0)))","v":{"$error":"#N/A"}}]
[1,"Statement of Financial Position","30","Accumulated surplus","300","Equity/Accumulated surplus",3050,"Invested in Capital Assets","Balance Sheet (2) - General CC(F-9000)/Fund(F-10)","BS","3050","GL","Active",970,"970 INVESTED IN CAP ASSETS",null,null,null,false,3050,{"$f":"IFERROR(INDEX('Prod COA'!B:B,MATCH('CHART OF ACCOUNTS'!T346,'Prod COA'!E:E,0)),INDEX('Prod COA'!B:B,MATCH('CHART OF ACCOUNTS'!T346,'Prod COA'!A:A,0)))","v":{"$error":"#N/A"}}]
[1,"Statement of Financial Position","30","Accumulated surplus","300","Equity/Accumulated surplus",3060,"Invested in Capital Assets - Work in Progress (WIP)","Balance Sheet (2) - General CC(F-9000)/Fund(F-10)","BS","3060","GL","Active",971,"971 INVESTED IN CAP ASSET-WIP",null,null,null,false,3060,{"$f":"IFERROR(INDEX('Prod COA'!B:B,MATCH('CHART OF ACCOUNTS'!T347,'Prod COA'!E:E,0)),INDEX('Prod COA'!B:B,MATCH('CHART OF ACCOUNTS'!T347,'Prod COA'!A:A,0)))","v":{"$error":"#N/A"}}]
[1,"Statement of Financial Position","90","CLEARING","900","Clearing",9999,"GL Balancing  Account - SYSTEM Errors","Balance Sheet (2) - General CC(F-9000)/Fund(F-10)","BS","9999","GL","Active",999,"999 CLEARING ACCOUNT",null,null,null,false,9999,{"$f":"IFERROR(INDEX('Prod COA'!B:B,MATCH('CHART OF ACCOUNTS'!T348,'Prod COA'!E:E,0)),INDEX('Prod COA'!B:B,MATCH('CHART OF ACCOUNTS'!T348,'Prod COA'!A:A,0)))","v":{"$error":"#N/A"}}]
[1,"Statement of Financial Position","10","Financial assets","120","Accounts receivable",1201,"Accounts Receivable - PST Adjustments","Balance Sheet (2) - General CC(F-9000)/Fund(F-10)","BS",null,"GL","Closed","Not in FRS","Not in YTD GL",null,null,null,false,1201,{"$f":"IFERROR(INDEX('Prod COA'!B:B,MATCH('CHART OF ACCOUNTS'!T349,'Prod COA'!E:E,0)),INDEX('Prod COA'!B:B,MATCH('CHART OF ACCOUNTS'!T349,'Prod COA'!A:A,0)))","v":{"$error":"#N/A"}}]
[1,"Statement of Financial Position","10","Financial assets","120","Accounts receivable",1211,"Accounts Receivable - GST Rebates Receivable","Balance Sheet (2) - General CC(F-9000)/Fund(F-10)","BS",null,"GL","Closed","Not in FRS","Not in YTD GL",null,null,null,false,1211,{"$f":"IFERROR(INDEX('Prod COA'!B:B,MATCH('CHART OF ACCOUNTS'!T350,'Prod COA'!E:E,0)),INDEX('Prod COA'!B:B,MATCH('CHART OF ACCOUNTS'!T350,'Prod COA'!A:A,0)))","v":{"$error":"#N/A"}}]
[1,"Statement of Financial Position","10","Financial assets","120","Accounts receivable",1231,"Accounts Receivable Control - Student Tuition (Domestic and International)","Balance Sheet (2) - General CC(F-9000)/Fund(F-10)","BS",null,"AR","Closed","Not in FRS","Not in YTD GL",null,null,null,false,1231,{"$f":"IFERROR(INDEX('Prod COA'!B:B,MATCH('CHART OF ACCOUNTS'!T351,'Prod COA'!E:E,0)),INDEX('Prod COA'!B:B,MATCH('CHART OF ACCOUNTS'!T351,'Prod COA'!A:A,0)))","v":{"$error":"#N/A"}}]
[1,"Statement of Financial Position","10","Financial assets","120","Accounts receivable",1232,"Accounts Receivable Control - Student Tuition (International - Pending U4SM))","Balance Sheet (2) - General CC(F-9000)/Fund(F-10)","BS",null,"AR","Closed","Not in FRS","Not in YTD GL",null,null,null,{"$f":"T352=#REF!","v":{"$error":"#REF!"}},1232,{"$f":"IFERROR(INDEX('Prod COA'!B:B,MATCH('CHART OF ACCOUNTS'!T352,'Prod COA'!E:E,0)),INDEX('Prod COA'!B:B,MATCH('CHART OF ACCOUNTS'!T352,'Prod COA'!A:A,0)))","v":{"$error":"#N/A"}}]
[1,"Statement of Financial Position","10","Financial assets","120","Accounts receivable",1250,"Accounts Receivable - Deposits Paid","Balance Sheet (2) - General CC(F-9000)/Fund(F-10)","BS","1250","GL","Active","Not in FRS","Not in YTD GL",null,null,null,false,1250,{"$f":"IFERROR(INDEX('Prod COA'!B:B,MATCH('CHART OF ACCOUNTS'!T353,'Prod COA'!E:E,0)),INDEX('Prod COA'!B:B,MATCH('CHART OF ACCOUNTS'!T353,'Prod COA'!A:A,0)))","v":{"$error":"#N/A"}}]
[1,"Statement of Financial Position","10","Financial assets","120","Accounts receivable",1264,"AR Clearing - Domestic Sponsor Billing From SLED","Balance Sheet (2) - General CC(F-9000)/Fund(F-10)","BS","1264","GL","Active","Not in FRS","Not in YTD GL",null,null,null,false,1264,{"$f":"IFERROR(INDEX('Prod COA'!B:B,MATCH('CHART OF ACCOUNTS'!T354,'Prod COA'!E:E,0)),INDEX('Prod COA'!B:B,MATCH('CHART OF ACCOUNTS'!T354,'Prod COA'!A:A,0)))","v":{"$error":"#N/A"}}]
[1,"Statement of Financial Position","10","Financial assets","120","Accounts receivable",1265,"AR Clearing - Domestic Contract Billing From SLED","Balance Sheet (2) - General CC(F-9000)/Fund(F-10)","BS","1265","GL","Active","Not in FRS","Not in YTD GL",null,null,null,false,1265,{"$f":"IFERROR(INDEX('Prod COA'!B:B,MATCH('CHART OF ACCOUNTS'!T355,'Prod COA'!E:E,0)),INDEX('Prod COA'!B:B,MATCH('CHART OF ACCOUNTS'!T355,'Prod COA'!A:A,0)))","v":{"$error":"#N/A"}}]
[1,"Statement of Financial Position","10","Financial assets","120","Accounts receivable",1266,"AR Clearing - International Sponsor Billing From SLED","Balance Sheet (2) - General CC(F-9000)/Fund(F-10)","BS","1266","GL","Active","Not in FRS","Not in YTD GL",null,null,null,false,1266,{"$f":"IFERROR(INDEX('Prod COA'!B:B,MATCH('CHART OF ACCOUNTS'!T356,'Prod COA'!E:E,0)),INDEX('Prod COA'!B:B,MATCH('CHART OF ACCOUNTS'!T356,'Prod COA'!A:A,0)))","v":{"$error":"#N/A"}}]
[1,"Statement of Financial Position","10","Financial assets","120","Accounts receivable",1267,"AR Clearing - International Contract Billing From SLED","Balance Sheet (2) - General CC(F-9000)/Fund(F-10)","BS","1267","GL","Active","Not in FRS","Not in YTD GL",null,null,null,false,1267,{"$f":"IFERROR(INDEX('Prod COA'!B:B,MATCH('CHART OF ACCOUNTS'!T357,'Prod COA'!E:E,0)),INDEX('Prod COA'!B:B,MATCH('CHART OF ACCOUNTS'!T357,'Prod COA'!A:A,0)))","v":{"$error":"#N/A"}}]
[1,"Statement of Financial Position","10","Financial assets","120","Accounts receivable",1268,"AR Clearing - Homestay SLED clearing","Balance Sheet (2) - General CC(F-9000)/Fund(F-10)","BS","1268","GL","Active","Not in FRS","Not in YTD GL",null,null,null,false,1268,{"$f":"IFERROR(INDEX('Prod COA'!B:B,MATCH('CHART OF ACCOUNTS'!T358,'Prod COA'!E:E,0)),INDEX('Prod COA'!B:B,MATCH('CHART OF ACCOUNTS'!T358,'Prod COA'!A:A,0)))","v":{"$error":"#N/A"}}]
[1,"Statement of Financial Position","10","Financial assets","120","Accounts receivable",1269,"AR Clearing - S&B Cash Equivalent Disbursement","Balance Sheet (2) - General CC(F-9000)/Fund(F-10)","BS","1269","GL","Active","Not in FRS","Not in YTD GL",null,null,null,false,1269,{"$f":"IFERROR(INDEX('Prod COA'!B:B,MATCH('CHART OF ACCOUNTS'!T359,'Prod COA'!E:E,0)),INDEX('Prod COA'!B:B,MATCH('CHART OF ACCOUNTS'!T359,'Prod COA'!A:A,0)))","v":{"$error":"#N/A"}}]
[1,"Statement of Financial Position","10","Financial assets","120","Accounts receivable",1270,"AR Clearing - IE Application Fees (AIE)","Balance Sheet (2) - General CC(F-9000)/Fund(F-10)","BS","1270","GL","Active","Not in FRS","Not in YTD GL",null,null,null,false,1270,{"$f":"IFERROR(INDEX('Prod COA'!B:B,MATCH('CHART OF ACCOUNTS'!T360,'Prod COA'!E:E,0)),INDEX('Prod COA'!B:B,MATCH('CHART OF ACCOUNTS'!T360,'Prod COA'!A:A,0)))","v":{"$error":"#N/A"}}]
[1,"Statement of Financial Position","10","Financial assets","120","Accounts receivable",1271,"AR Clearing - Residence Cash Receipts","Balance Sheet (2) - General CC(F-9000)/Fund(F-10)","BS","1271","GL","Active","Not in FRS","Not in YTD GL",null,null,null,false,1271,{"$f":"IFERROR(INDEX('Prod COA'!B:B,MATCH('CHART OF ACCOUNTS'!T361,'Prod COA'!E:E,0)),INDEX('Prod COA'!B:B,MATCH('CHART OF ACCOUNTS'!T361,'Prod COA'!A:A,0)))","v":{"$error":"#N/A"}}]
[1,"Statement of Financial Position","10","Financial assets","120","Accounts receivable",1272,"AR Clearing - Residence Sponsorships","Balance Sheet (2) - General CC(F-9000)/Fund(F-10)","BS","1272","GL","Active","Not in FRS","Not in YTD GL",null,null,null,false,1272,{"$f":"IFERROR(INDEX('Prod COA'!B:B,MATCH('CHART OF ACCOUNTS'!T362,'Prod COA'!E:E,0)),INDEX('Prod COA'!B:B,MATCH('CHART OF ACCOUNTS'!T362,'Prod COA'!A:A,0)))","v":{"$error":"#N/A"}}]
[1,"Statement of Financial Position","10","Financial assets","120","Accounts receivable",1273,"AR Clearing - Campus Store Sponsorships","Balance Sheet (2) - General CC(F-9000)/Fund(F-10)","BS","1273","GL","Active","Not in FRS","Not in YTD GL",null,null,null,false,1273,{"$f":"IFERROR(INDEX('Prod COA'!B:B,MATCH('CHART OF ACCOUNTS'!T363,'Prod COA'!E:E,0)),INDEX('Prod COA'!B:B,MATCH('CHART OF ACCOUNTS'!T363,'Prod COA'!A:A,0)))","v":{"$error":"#N/A"}}]
[1,"Statement of Financial Position","10","Financial assets","120","Accounts receivable",1275,"AR Clearing - Campus Store eleV ","Balance Sheet (2) - General CC(F-9000)/Fund(F-10)","BS","1275","GL","Active","Not in FRS","Not in YTD GL",null,null,null,false,1275,{"$f":"IFERROR(INDEX('Prod COA'!B:B,MATCH('CHART OF ACCOUNTS'!T364,'Prod COA'!E:E,0)),INDEX('Prod COA'!B:B,MATCH('CHART OF ACCOUNTS'!T364,'Prod COA'!A:A,0)))","v":{"$error":"#N/A"}}]
[1,"Statement of Financial Position","10","Financial assets","130","Inventories for resale",1330,"Inventory Clearing - Campus Store Inventory","Balance Sheet (2) - General CC(F-9000)/Fund(F-10)","BS",null,"GL","Closed","Not in FRS","Not in YTD GL",null,null,null,false,1330,{"$f":"IFERROR(INDEX('Prod COA'!B:B,MATCH('CHART OF ACCOUNTS'!T365,'Prod COA'!E:E,0)),INDEX('Prod COA'!B:B,MATCH('CHART OF ACCOUNTS'!T365,'Prod COA'!A:A,0)))","v":{"$error":"#N/A"}}]
[1,"Statement of Financial Position","10","Financial assets","146","Loan receivable",1470,"CLOSED - Never Used - Available For Future Use ","Balance Sheet (2) - General CC(F-9000)/Fund(F-10)","BS","1470","GL","Closed","Not in FRS","Not in YTD GL",null,null,null,false,1470,{"$f":"IFERROR(INDEX('Prod COA'!B:B,MATCH('CHART OF ACCOUNTS'!T366,'Prod COA'!E:E,0)),INDEX('Prod COA'!B:B,MATCH('CHART OF ACCOUNTS'!T366,'Prod COA'!A:A,0)))","v":{"$error":"#N/A"}}]
[1,"Statement of Financial Position","15","Non-financial assets","150","Tangible capital assets",1501,"Capital Assets - Buildings - Building Retrofit","Assets (3) - CC(F-9150)/Fund(F-50)/WO(M)/ACT(M-Default 500)","BS","1501","GL","Active","Not in FRS","Not in YTD GL",null,null,null,false,1501,{"$f":"IFERROR(INDEX('Prod COA'!B:B,MATCH('CHART OF ACCOUNTS'!T367,'Prod COA'!E:E,0)),INDEX('Prod COA'!B:B,MATCH('CHART OF ACCOUNTS'!T367,'Prod COA'!A:A,0)))","v":{"$error":"#N/A"}}]
[1,"Statement of Financial Position","15","Non-financial assets","150","Tangible capital assets",1503,"Capital Assets - Computer Software","Assets (3) - CC(F-9150)/Fund(F-50)/WO(M)/ACT(M-Default 500)","BS","1503","GL","Active","Not in FRS","Not in YTD GL",null,null,null,{"$f":"T368=#REF!","v":{"$error":"#REF!"}},1503,{"$f":"IFERROR(INDEX('Prod COA'!B:B,MATCH('CHART OF ACCOUNTS'!T368,'Prod COA'!E:E,0)),INDEX('Prod COA'!B:B,MATCH('CHART OF ACCOUNTS'!T368,'Prod COA'!A:A,0)))","v":{"$error":"#N/A"}}]
[1,"Statement of Financial Position","15","Non-financial assets","150","Tangible capital assets",1505,"Capital Assets - Equipment","Assets (3) - CC(F-9150)/Fund(F-50)/WO(M)/ACT(M-Default 500)","BS","1505","GL","Active","Not in FRS","Not in YTD GL",null,null,null,false,1505,{"$f":"IFERROR(INDEX('Prod COA'!B:B,MATCH('CHART OF ACCOUNTS'!T369,'Prod COA'!E:E,0)),INDEX('Prod COA'!B:B,MATCH('CHART OF ACCOUNTS'!T369,'Prod COA'!A:A,0)))","v":{"$error":"#N/A"}}]
[1,"Statement of Financial Position","15","Non-financial assets","150","Tangible capital assets",1512,"FA Accum.Amort - Furniture & Equipment","Assets (3) - CC(F-9150)/Fund(F-50)/WO(M)/ACT(M-Default 500)","BS",null,"GL","Closed","Not in FRS","Not in YTD GL",null,null,null,false,1512,{"$f":"IFERROR(INDEX('Prod COA'!B:B,MATCH('CHART OF ACCOUNTS'!T370,'Prod COA'!E:E,0)),INDEX('Prod COA'!B:B,MATCH('CHART OF ACCOUNTS'!T370,'Prod COA'!A:A,0)))","v":{"$error":"#N/A"}}]
[1,"Statement of Financial Position","15","Non-financial assets","150","Tangible capital assets",1513,"FA Accum.Amort - Leasehold Improvements","Assets (3) - CC(F-9150)/Fund(F-50)/WO(M)/ACT(M-Default 500)","BS",null,"GL","Closed","Not in FRS","Not in YTD GL",null,null,null,false,1513,{"$f":"IFERROR(INDEX('Prod COA'!B:B,MATCH('CHART OF ACCOUNTS'!T371,'Prod COA'!E:E,0)),INDEX('Prod COA'!B:B,MATCH('CHART OF ACCOUNTS'!T371,'Prod COA'!A:A,0)))","v":{"$error":"#N/A"}}]
[1,"Statement of Financial Position","15","Non-financial assets","150","Tangible capital assets",1514,"FA Accum.Amort - Library Books","Assets (3) - CC(F-9150)/Fund(F-50)/WO(M)/ACT(M-Default 500)","BS",null,"GL","Closed","Not in FRS","Not in YTD GL",null,null,null,false,1514,{"$f":"IFERROR(INDEX('Prod COA'!B:B,MATCH('CHART OF ACCOUNTS'!T372,'Prod COA'!E:E,0)),INDEX('Prod COA'!B:B,MATCH('CHART OF ACCOUNTS'!T372,'Prod COA'!A:A,0)))","v":{"$error":"#N/A"}}]
[1,"Statement of Financial Position","15","Non-financial assets","150","Tangible capital assets",1515,"FA Accum.Amort - Site improvements","Assets (3) - CC(F-9150)/Fund(F-50)/WO(M)/ACT(M-Default 500)","BS",null,"GL","Closed","Not in FRS","Not in YTD GL",null,null,null,false,1515,{"$f":"IFERROR(INDEX('Prod COA'!B:B,MATCH('CHART OF ACCOUNTS'!T373,'Prod COA'!E:E,0)),INDEX('Prod COA'!B:B,MATCH('CHART OF ACCOUNTS'!T373,'Prod COA'!A:A,0)))","v":{"$error":"#N/A"}}]
[1,"Statement of Financial Position","15","Non-financial assets","150","Tangible capital assets",1516,"FA Accum.Amort - Vehicles","Assets (3) - CC(F-9150)/Fund(F-50)/WO(M)/ACT(M-Default 500)","BS",null,"GL","Closed","Not in FRS","Not in YTD GL",null,null,null,{"$f":"T374=#REF!","v":{"$error":"#REF!"}},1516,{"$f":"IFERROR(INDEX('Prod COA'!B:B,MATCH('CHART OF ACCOUNTS'!T374,'Prod COA'!E:E,0)),INDEX('Prod COA'!B:B,MATCH('CHART OF ACCOUNTS'!T374,'Prod COA'!A:A,0)))","v":{"$error":"#N/A"}}]
[1,"Statement of Financial Position","15","Non-financial assets","150","Tangible capital assets",1517,"FA Accum.Amort - TBD","Assets (3) - CC(F-9150)/Fund(F-50)/WO(M)/ACT(M-Default 500)","BS",null,"GL","Closed","Not in FRS","Not in YTD GL",null,null,null,false,1517,{"$f":"IFERROR(INDEX('Prod COA'!B:B,MATCH('CHART OF ACCOUNTS'!T375,'Prod COA'!E:E,0)),INDEX('Prod COA'!B:B,MATCH('CHART OF ACCOUNTS'!T375,'Prod COA'!A:A,0)))","v":{"$error":"#N/A"}}]
[1,"Statement of Financial Position","15","Non-financial assets","150","Tangible capital assets",1551,"Accumulated Amortization - Building Retrofit","Assets (3) - CC(F-9150)/Fund(F-50)/WO(M)/ACT(M-Default 500)","BS","1551","GL","Active","Not in FRS","Not in YTD GL",null,null,null,false,1551,{"$f":"IFERROR(INDEX('Prod COA'!B:B,MATCH('CHART OF ACCOUNTS'!T376,'Prod COA'!E:E,0)),INDEX('Prod COA'!B:B,MATCH('CHART OF ACCOUNTS'!T376,'Prod COA'!A:A,0)))","v":{"$error":"#N/A"}}]
[1,"Statement of Financial Position","15","Non-financial assets","150","Tangible capital assets",1553,"Accumulated Amortization - Computer Software","Assets (3) - CC(F-9150)/Fund(F-50)/WO(M)/ACT(M-Default 500)","BS","1553","GL","Active","Not in FRS","Not in YTD GL",null,null,null,false,1553,{"$f":"IFERROR(INDEX('Prod COA'!B:B,MATCH('CHART OF ACCOUNTS'!T377,'Prod COA'!E:E,0)),INDEX('Prod COA'!B:B,MATCH('CHART OF ACCOUNTS'!T377,'Prod COA'!A:A,0)))","v":{"$error":"#N/A"}}]
[1,"Statement of Financial Position","15","Non-financial assets","150","Tangible capital assets",1555,"Accumulated Amortization - Equipment","Assets (3) - CC(F-9150)/Fund(F-50)/WO(M)/ACT(M-Default 500)","BS","1555","GL","Active","Not in FRS","Not in YTD GL",null,null,null,false,1555,{"$f":"IFERROR(INDEX('Prod COA'!B:B,MATCH('CHART OF ACCOUNTS'!T378,'Prod COA'!E:E,0)),INDEX('Prod COA'!B:B,MATCH('CHART OF ACCOUNTS'!T378,'Prod COA'!A:A,0)))","v":{"$error":"#N/A"}}]
[1,"Statement of Financial Position","15","Non-financial assets","150","Tangible capital assets",1575,"Capital Asset Suspense - New Building Construction","Assets (3) - CC(F-9150)/Fund(F-50)/WO(M)/ACT(M-Default 500)","BS","1575","GL","Active","Not in FRS","Not in YTD GL",null,null,null,false,1575,{"$f":"IFERROR(INDEX('Prod COA'!B:B,MATCH('CHART OF ACCOUNTS'!T379,'Prod COA'!E:E,0)),INDEX('Prod COA'!B:B,MATCH('CHART OF ACCOUNTS'!T379,'Prod COA'!A:A,0)))","v":{"$error":"#N/A"}}]
[1,"Statement of Financial Position","15","Non-financial assets","150","Tangible capital assets",1576,"Capital Asset Suspense - Building Retrofit","Assets (3) - CC(F-9150)/Fund(F-50)/WO(M)/ACT(M-Default 500)","BS","1576","GL","Active","Not in FRS","Not in YTD GL",null,null,null,false,1576,{"$f":"IFERROR(INDEX('Prod COA'!B:B,MATCH('CHART OF ACCOUNTS'!T380,'Prod COA'!E:E,0)),INDEX('Prod COA'!B:B,MATCH('CHART OF ACCOUNTS'!T380,'Prod COA'!A:A,0)))","v":{"$error":"#N/A"}}]
[1,"Statement of Financial Position","15","Non-financial assets","150","Tangible capital assets",1577,"Capital Asset Suspense - Computer Equipment","Assets (3) - CC(F-9150)/Fund(F-50)/WO(M)/ACT(M-Default 500)","BS","1577","GL","Active","Not in FRS","Not in YTD GL",null,null,null,false,1577,{"$f":"IFERROR(INDEX('Prod COA'!B:B,MATCH('CHART OF ACCOUNTS'!T381,'Prod COA'!E:E,0)),INDEX('Prod COA'!B:B,MATCH('CHART OF ACCOUNTS'!T381,'Prod COA'!A:A,0)))","v":{"$error":"#N/A"}}]
[1,"Statement of Financial Position","15","Non-financial assets","150","Tangible capital assets",1578,"Capital Asset Suspense - Computer Software","Assets (3) - CC(F-9150)/Fund(F-50)/WO(M)/ACT(M-Default 500)","BS","1578","GL","Active","Not in FRS","Not in YTD GL",null,null,null,false,1578,{"$f":"IFERROR(INDEX('Prod COA'!B:B,MATCH('CHART OF ACCOUNTS'!T382,'Prod COA'!E:E,0)),INDEX('Prod COA'!B:B,MATCH('CHART OF ACCOUNTS'!T382,'Prod COA'!A:A,0)))","v":{"$error":"#N/A"}}]
[1,"Statement of Financial Position","15","Non-financial assets","150","Tangible capital assets",1579,"Capital Asset Suspense - Furniture","Assets (3) - CC(F-9150)/Fund(F-50)/WO(M)/ACT(M-Default 500)","BS","1579","GL","Active","Not in FRS","Not in YTD GL",null,null,null,false,1579,{"$f":"IFERROR(INDEX('Prod COA'!B:B,MATCH('CHART OF ACCOUNTS'!T383,'Prod COA'!E:E,0)),INDEX('Prod COA'!B:B,MATCH('CHART OF ACCOUNTS'!T383,'Prod COA'!A:A,0)))","v":{"$error":"#N/A"}}]
[1,"Statement of Financial Position","15","Non-financial assets","150","Tangible capital assets",1580,"Capital Asset Suspense - Equipment","Assets (3) - CC(F-9150)/Fund(F-50)/WO(M)/ACT(M-Default 500)","BS","1580","GL","Active","Not in FRS","Not in YTD GL",null,null,null,false,1580,{"$f":"IFERROR(INDEX('Prod COA'!B:B,MATCH('CHART OF ACCOUNTS'!T384,'Prod COA'!E:E,0)),INDEX('Prod COA'!B:B,MATCH('CHART OF ACCOUNTS'!T384,'Prod COA'!A:A,0)))","v":{"$error":"#N/A"}}]
[1,"Statement of Financial Position","15","Non-financial assets","150","Tangible capital assets",1581,"Capital Asset Suspense - Leasehold Improvements","Assets (3) - CC(F-9150)/Fund(F-50)/WO(M)/ACT(M-Default 500)","BS","1581","GL","Active","Not in FRS","Not in YTD GL",null,null,null,false,1581,{"$f":"IFERROR(INDEX('Prod COA'!B:B,MATCH('CHART OF ACCOUNTS'!T385,'Prod COA'!E:E,0)),INDEX('Prod COA'!B:B,MATCH('CHART OF ACCOUNTS'!T385,'Prod COA'!A:A,0)))","v":{"$error":"#N/A"}}]
[1,"Statement of Financial Position","15","Non-financial assets","150","Tangible capital assets",1582,"Capital Asset Suspense - Library Books","Assets (3) - CC(F-9150)/Fund(F-50)/WO(M)/ACT(M-Default 500)","BS","1582","GL","Active","Not in FRS","Not in YTD GL",null,null,null,false,1582,{"$f":"IFERROR(INDEX('Prod COA'!B:B,MATCH('CHART OF ACCOUNTS'!T386,'Prod COA'!E:E,0)),INDEX('Prod COA'!B:B,MATCH('CHART OF ACCOUNTS'!T386,'Prod COA'!A:A,0)))","v":{"$error":"#N/A"}}]
[1,"Statement of Financial Position","15","Non-financial assets","150","Tangible capital assets",1583,"Capital Asset Suspense - Site Improvements (Land)","Assets (3) - CC(F-9150)/Fund(F-50)/WO(M)/ACT(M-Default 500)","BS","1583","GL","Active","Not in FRS","Not in YTD GL",null,null,null,false,{"$f":"IF(LEN(G387)=4,G387,K387)*1","v":1583},{"$f":"IFERROR(INDEX('Prod COA'!B:B,MATCH('CHART OF ACCOUNTS'!T387,'Prod COA'!E:E,0)),INDEX('Prod COA'!B:B,MATCH('CHART OF ACCOUNTS'!T387,'Prod COA'!A:A,0)))","v":{"$error":"#N/A"}}]
[1,"Statement of Financial Position","15","Non-financial assets","150","Tangible capital assets",1584,"Capital Assets Suspense - Vehicles","Assets (3) - CC(F-9150)/Fund(F-50)/WO(M)/ACT(M-Default 500)","BS","1584","GL","Active","Not in FRS","Not in YTD GL",null,null,null,false,1584,{"$f":"IFERROR(INDEX('Prod COA'!B:B,MATCH('CHART OF ACCOUNTS'!T388,'Prod COA'!E:E,0)),INDEX('Prod COA'!B:B,MATCH('CHART OF ACCOUNTS'!T388,'Prod COA'!A:A,0)))","v":{"$error":"#N/A"}}]
[1,"Statement of Financial Position","15","Non-financial assets","150","Tangible capital assets",1585,"Capital Asset Suspense - Land","Assets (3) - CC(F-9150)/Fund(F-50)/WO(M)/ACT(M-Default 500)","BS","1585","GL","Active","Not in FRS","Not in YTD GL",null,null,null,false,1585,{"$f":"IFERROR(INDEX('Prod COA'!B:B,MATCH('CHART OF ACCOUNTS'!T389,'Prod COA'!E:E,0)),INDEX('Prod COA'!B:B,MATCH('CHART OF ACCOUNTS'!T389,'Prod COA'!A:A,0)))","v":{"$error":"#N/A"}}]
[1,"Statement of Financial Position","15","Non-financial assets","150","Tangible capital assets",1599,"Capital Assets - Suspense Account (Fixed Asset Management)","Assets (3) - CC(F-9150)/Fund(F-50)/WO(M)/ACT(M-Default 500)","BS",null,"GL","Closed","Not in FRS","Not in YTD GL",null,null,null,{"$f":"T390=T389","v":false},1599,{"$f":"IFERROR(INDEX('Prod COA'!B:B,MATCH('CHART OF ACCOUNTS'!T390,'Prod COA'!E:E,0)),INDEX('Prod COA'!B:B,MATCH('CHART OF ACCOUNTS'!T390,'Prod COA'!A:A,0)))","v":{"$error":"#N/A"}}]
[1,"Statement of Financial Position","15","Non-financial assets","160","Restricted endowment investments",1600,"Restricted Endowment Investments - Tourism Chair","Balance Sheet (2) - General CC(F-9000)/Fund(F-10)","BS","1600","GL","Active","Not in FRS","Not in YTD GL",null,null,null,false,1600,{"$f":"IFERROR(INDEX('Prod COA'!B:B,MATCH('CHART OF ACCOUNTS'!T391,'Prod COA'!E:E,0)),INDEX('Prod COA'!B:B,MATCH('CHART OF ACCOUNTS'!T391,'Prod COA'!A:A,0)))","v":{"$error":"#N/A"}}]
[1,"Statement of Financial Position","15","Non-financial assets","160","Restricted endowment investments",1610,"Restricted Endowment Investments - Tourism Chair - Cumulative Unrealized Gains/Losses","Balance Sheet (2) - General CC(F-9000)/Fund(F-10)","BS","1610","GL","Closed","Not in FRS","Not in YTD GL",null,null,null,false,1610,{"$f":"IFERROR(INDEX('Prod COA'!B:B,MATCH('CHART OF ACCOUNTS'!T392,'Prod COA'!E:E,0)),INDEX('Prod COA'!B:B,MATCH('CHART OF ACCOUNTS'!T392,'Prod COA'!A:A,0)))","v":{"$error":"#N/A"}}]
[1,"Statement of Financial Position","15","Non-financial assets","160","Restricted endowment investments",1620,"Restricted Endowment Investments - Aboriginal Early Childhood Development","Balance Sheet (2) - General CC(F-9000)/Fund(F-10)","BS","1620","GL","Active","Not in FRS","Not in YTD GL",null,null,null,false,1620,{"$f":"IFERROR(INDEX('Prod COA'!B:B,MATCH('CHART OF ACCOUNTS'!T393,'Prod COA'!E:E,0)),INDEX('Prod COA'!B:B,MATCH('CHART OF ACCOUNTS'!T393,'Prod COA'!A:A,0)))","v":{"$error":"#N/A"}}]
[1,"Statement of Financial Position","15","Non-financial assets","160","Restricted endowment investments",1630,"Restricted Endowment Investments - Aboriginal Early Childhood Development Chair - Cumulative Unrealized Gains/Losses","Balance Sheet (2) - General CC(F-9000)/Fund(F-10)","BS","1630","GL","Closed","Not in FRS","Not in YTD GL",null,null,null,false,1630,{"$f":"IFERROR(INDEX('Prod COA'!B:B,MATCH('CHART OF ACCOUNTS'!T394,'Prod COA'!E:E,0)),INDEX('Prod COA'!B:B,MATCH('CHART OF ACCOUNTS'!T394,'Prod COA'!A:A,0)))","v":{"$error":"#N/A"}}]
[1,"Statement of Financial Position","15","Non-financial assets","170","Prepaid expenses",1705,"Prepaid Expenses - Employee Expenses","Prepaid Expenses (29) - CC(F-9000)/Fund(F-10)/WO(M)/ACT(M)","BS","1705","GL","Active","Not in FRS","Not in YTD GL",null,null,null,false,1705,{"$f":"IFERROR(INDEX('Prod COA'!B:B,MATCH('CHART OF ACCOUNTS'!T395,'Prod COA'!E:E,0)),INDEX('Prod COA'!B:B,MATCH('CHART OF ACCOUNTS'!T395,'Prod COA'!A:A,0)))","v":{"$error":"#N/A"}}]
[1,"Statement of Financial Position","15","Non-financial assets","170","Prepaid expenses",1800,"Deposits - Supplier","Balance Sheet (2) - General CC(F-9000)/Fund(F-10)","BS","1800","GL","Active","Not in FRS","Not in YTD GL",null,null,null,false,1800,{"$f":"IFERROR(INDEX('Prod COA'!B:B,MATCH('CHART OF ACCOUNTS'!T396,'Prod COA'!E:E,0)),INDEX('Prod COA'!B:B,MATCH('CHART OF ACCOUNTS'!T396,'Prod COA'!A:A,0)))","v":{"$error":"#N/A"}}]
[1,"Statement of Financial Position","20","Liabilities","200","Accounts payable",2003,"PST Self Assessed","Balance Sheet (2) - General CC(F-9000)/Fund(F-10)","BS","2003","GL","Closed","Not in FRS","Not in YTD GL",null,null,null,false,2003,{"$f":"IFERROR(INDEX('Prod COA'!B:B,MATCH('CHART OF ACCOUNTS'!T397,'Prod COA'!E:E,0)),INDEX('Prod COA'!B:B,MATCH('CHART OF ACCOUNTS'!T397,'Prod COA'!A:A,0)))","v":{"$error":"#N/A"}}]
[1,"Statement of Financial Position","20","Liabilities","200","Accounts payable",2012,"GST Self Assessed","Balance Sheet (2) - General CC(F-9000)/Fund(F-10)","BS","2012","GL","Active","Not in FRS","Not in YTD GL",null,null,null,false,2012,{"$f":"IFERROR(INDEX('Prod COA'!B:B,MATCH('CHART OF ACCOUNTS'!T398,'Prod COA'!E:E,0)),INDEX('Prod COA'!B:B,MATCH('CHART OF ACCOUNTS'!T398,'Prod COA'!A:A,0)))","v":{"$error":"#N/A"}}]
[1,"Statement of Financial Position","20","Liabilities","200","Accounts payable",2031,"Accounts Payable - Holdbacks","Balance Sheet (2) - General CC(F-9000)/Fund(F-10)","BS","2031","GL","Active","Not in FRS","Not in YTD GL",null,null,null,false,2031,{"$f":"IFERROR(INDEX('Prod COA'!B:B,MATCH('CHART OF ACCOUNTS'!T399,'Prod COA'!E:E,0)),INDEX('Prod COA'!B:B,MATCH('CHART OF ACCOUNTS'!T399,'Prod COA'!A:A,0)))","v":{"$error":"#N/A"}}]
[1,"Statement of Financial Position","20","Liabilities","200","Accounts payable",2034,"Accounts Payable - Control - Employee Advances","Balance Sheet (2) - General CC(F-9000)/Fund(F-10)","BS","2034","AP","Closed","Not in FRS","Not in YTD GL",null,null,null,false,2034,{"$f":"IFERROR(INDEX('Prod COA'!B:B,MATCH('CHART OF ACCOUNTS'!T400,'Prod COA'!E:E,0)),INDEX('Prod COA'!B:B,MATCH('CHART OF ACCOUNTS'!T400,'Prod COA'!A:A,0)))","v":{"$error":"#N/A"}}]
[1,"Statement of Financial Position","20","Liabilities","200","Accounts payable",2035,"Accounts Payable - VIUFA PD Bank","Balance Sheet (2) - General CC(F-9000)/Fund(F-10)","BS","2035","GL","Closed","Not in FRS","Not in YTD GL",null,null,null,false,2035,{"$f":"IFERROR(INDEX('Prod COA'!B:B,MATCH('CHART OF ACCOUNTS'!T401,'Prod COA'!E:E,0)),INDEX('Prod COA'!B:B,MATCH('CHART OF ACCOUNTS'!T401,'Prod COA'!A:A,0)))","v":{"$error":"#N/A"}}]
[1,"Statement of Financial Position","20","Liabilities","200","Accounts payable",2061,"Accounts Payable - PCard - Payments made by PCard","Balance Sheet (2) - General CC(F-9000)/Fund(F-10)","BS","2061","GL","Active","Not in FRS","Not in YTD GL",null,null,null,false,2061,{"$f":"IFERROR(INDEX('Prod COA'!B:B,MATCH('CHART OF ACCOUNTS'!T402,'Prod COA'!E:E,0)),INDEX('Prod COA'!B:B,MATCH('CHART OF ACCOUNTS'!T402,'Prod COA'!A:A,0)))","v":{"$error":"#N/A"}}]
[1,"Statement of Financial Position","20","Liabilities","200","Accounts payable",2062,"CLEARING - TELUS LONG DISTANCE","Balance Sheet (2) - General CC(F-9000)/Fund(F-10)","BS",null,"GL","Closed","Not in FRS","Not in YTD GL",null,null,null,{"$f":"T403=#REF!","v":{"$error":"#REF!"}},2062,{"$f":"IFERROR(INDEX('Prod COA'!B:B,MATCH('CHART OF ACCOUNTS'!T403,'Prod COA'!E:E,0)),INDEX('Prod COA'!B:B,MATCH('CHART OF ACCOUNTS'!T403,'Prod COA'!A:A,0)))","v":{"$error":"#N/A"}}]
[1,"Statement of Financial Position","20","Liabilities","200","Accounts payable",2063,"Accounts Payable - Food Services - Meal Plans","Balance Sheet (2) - General CC(F-9000)/Fund(F-10)","BS",null,"GL","Closed","Not in FRS","Not in YTD GL",null,null,null,false,2063,{"$f":"IFERROR(INDEX('Prod COA'!B:B,MATCH('CHART OF ACCOUNTS'!T404,'Prod COA'!E:E,0)),INDEX('Prod COA'!B:B,MATCH('CHART OF ACCOUNTS'!T404,'Prod COA'!A:A,0)))","v":{"$error":"#N/A"}}]
[1,"Statement of Financial Position","20","Liabilities","200","Accounts payable",2064,"CLEARING - PARKING CHARGES/SLED","Balance Sheet (2) - General CC(F-9000)/Fund(F-10)","BS",null,"GL","Closed","Not in FRS","Not in YTD GL",null,null,null,false,2064,{"$f":"IFERROR(INDEX('Prod COA'!B:B,MATCH('CHART OF ACCOUNTS'!T405,'Prod COA'!E:E,0)),INDEX('Prod COA'!B:B,MATCH('CHART OF ACCOUNTS'!T405,'Prod COA'!A:A,0)))","v":{"$error":"#N/A"}}]
[1,"Statement of Financial Position","20","Liabilities","200","Accounts payable",2065,"Accounts Payable - Print Cards","Balance Sheet (2) - General CC(F-9000)/Fund(F-10)","BS",null,"GL","Closed","Not in FRS","Not in YTD GL",null,null,null,false,2065,{"$f":"IFERROR(INDEX('Prod COA'!B:B,MATCH('CHART OF ACCOUNTS'!T406,'Prod COA'!E:E,0)),INDEX('Prod COA'!B:B,MATCH('CHART OF ACCOUNTS'!T406,'Prod COA'!A:A,0)))","v":{"$error":"#N/A"}}]
[1,"Statement of Financial Position","20","Liabilities","200","Accounts payable",2068,"CLEARING - CBV (COLLECTIONS)","Balance Sheet (2) - General CC(F-9000)/Fund(F-10)","BS",null,"GL","Closed","Not in FRS","Not in YTD GL",null,null,null,false,2068,{"$f":"IFERROR(INDEX('Prod COA'!B:B,MATCH('CHART OF ACCOUNTS'!T407,'Prod COA'!E:E,0)),INDEX('Prod COA'!B:B,MATCH('CHART OF ACCOUNTS'!T407,'Prod COA'!A:A,0)))","v":{"$error":"#N/A"}}]
[1,"Statement of Financial Position","20","Liabilities","200","Accounts payable",2069,"Accounts Payable  - Food Services - Dinning Dollars","Balance Sheet (2) - General CC(F-9000)/Fund(F-10)","BS",null,"GL","Closed","Not in FRS","Not in YTD GL",null,null,null,false,2069,{"$f":"IFERROR(INDEX('Prod COA'!B:B,MATCH('CHART OF ACCOUNTS'!T408,'Prod COA'!E:E,0)),INDEX('Prod COA'!B:B,MATCH('CHART OF ACCOUNTS'!T408,'Prod COA'!A:A,0)))","v":{"$error":"#N/A"}}]
[1,"Statement of Financial Position","20","Liabilities","200","Accounts payable",2072,"CLEARING - STUDENT WIRES","Balance Sheet (2) - General CC(F-9000)/Fund(F-10)","BS",null,"GL","Closed","Not in FRS","Not in YTD GL",null,null,null,false,2072,{"$f":"IFERROR(INDEX('Prod COA'!B:B,MATCH('CHART OF ACCOUNTS'!T409,'Prod COA'!E:E,0)),INDEX('Prod COA'!B:B,MATCH('CHART OF ACCOUNTS'!T409,'Prod COA'!A:A,0)))","v":{"$error":"#N/A"}}]
[1,"Statement of Financial Position","20","Liabilities","200","Accounts payable",2073,"CLEARING - STUDENT CHEQUES & EFTS","Balance Sheet (2) - General CC(F-9000)/Fund(F-10)","BS",null,"GL","Closed","Not in FRS","Not in YTD GL",null,null,null,false,2073,{"$f":"IFERROR(INDEX('Prod COA'!B:B,MATCH('CHART OF ACCOUNTS'!T410,'Prod COA'!E:E,0)),INDEX('Prod COA'!B:B,MATCH('CHART OF ACCOUNTS'!T410,'Prod COA'!A:A,0)))","v":{"$error":"#N/A"}}]
[1,"Statement of Financial Position","20","Liabilities","200","Accounts payable",2074,"CLEARING - TUITION FEES CLEARING","Balance Sheet (2) - General CC(F-9000)/Fund(F-10)","BS",null,"GL","Closed","Not in FRS","Not in YTD GL",null,null,null,false,2074,{"$f":"IFERROR(INDEX('Prod COA'!B:B,MATCH('CHART OF ACCOUNTS'!T411,'Prod COA'!E:E,0)),INDEX('Prod COA'!B:B,MATCH('CHART OF ACCOUNTS'!T411,'Prod COA'!A:A,0)))","v":{"$error":"#N/A"}}]
[1,"Statement of Financial Position","20","Liabilities","200","Accounts payable",2075,"CLEARING - TUITION DISTRIBUTION","Balance Sheet (2) - General CC(F-9000)/Fund(F-10)","BS",null,"GL","Closed","Not in FRS","Not in YTD GL",null,null,null,false,2075,{"$f":"IFERROR(INDEX('Prod COA'!B:B,MATCH('CHART OF ACCOUNTS'!T412,'Prod COA'!E:E,0)),INDEX('Prod COA'!B:B,MATCH('CHART OF ACCOUNTS'!T412,'Prod COA'!A:A,0)))","v":{"$error":"#N/A"}}]
[1,"Statement of Financial Position","20","Liabilities","200","Accounts payable",2076,"Accounts Payable - International Medical Fees","Balance Sheet (2) - General CC(F-9000)/Fund(F-10)","BS","2076","GL","Active","Not in FRS","Not in YTD GL",null,null,null,false,2076,{"$f":"IFERROR(INDEX('Prod COA'!B:B,MATCH('CHART OF ACCOUNTS'!T413,'Prod COA'!E:E,0)),INDEX('Prod COA'!B:B,MATCH('CHART OF ACCOUNTS'!T413,'Prod COA'!A:A,0)))","v":{"$error":"#N/A"}}]
[1,"Statement of Financial Position","20","Liabilities","200","Accounts payable",2077,"Accounts Payable - Parking - Employee Payments","Balance Sheet (2) - General CC(F-9000)/Fund(F-10)","BS",null,"GL","Closed","Not in FRS","Not in YTD GL",null,null,null,false,2077,{"$f":"IFERROR(INDEX('Prod COA'!B:B,MATCH('CHART OF ACCOUNTS'!T414,'Prod COA'!E:E,0)),INDEX('Prod COA'!B:B,MATCH('CHART OF ACCOUNTS'!T414,'Prod COA'!A:A,0)))","v":{"$error":"#N/A"}}]
[1,"Statement of Financial Position","20","Liabilities","200","Accounts payable",2078,"Accounts Payable - Athletics Activenet Refunds","Balance Sheet (2) - General CC(F-9000)/Fund(F-10)","BS","2078","GL","Closed","Not in FRS","Not in YTD GL",null,null,null,false,2078,{"$f":"IFERROR(INDEX('Prod COA'!B:B,MATCH('CHART OF ACCOUNTS'!T415,'Prod COA'!E:E,0)),INDEX('Prod COA'!B:B,MATCH('CHART OF ACCOUNTS'!T415,'Prod COA'!A:A,0)))","v":{"$error":"#N/A"}}]
[1,"Statement of Financial Position","20","Liabilities","200","Accounts payable",2079,"Accounts Payable - Supplier Credits Outstanding","Balance Sheet (2) - General CC(F-9000)/Fund(F-10)","BS","2079","GL","Active","Not in FRS","Not in YTD GL",null,null,null,false,2079,{"$f":"IFERROR(INDEX('Prod COA'!B:B,MATCH('CHART OF ACCOUNTS'!T416,'Prod COA'!E:E,0)),INDEX('Prod COA'!B:B,MATCH('CHART OF ACCOUNTS'!T416,'Prod COA'!A:A,0)))","v":{"$error":"#N/A"}}]
[1,"Statement of Financial Position","20","Liabilities","200","Accounts payable",2090,"Accounts Payable - VIU Foundation - Employee Donations","Balance Sheet (2) - General CC(F-9000)/Fund(F-10)","BS","2090","GL","Active","Not in FRS","Not in YTD GL",null,null,null,false,2090,{"$f":"IFERROR(INDEX('Prod COA'!B:B,MATCH('CHART OF ACCOUNTS'!T417,'Prod COA'!E:E,0)),INDEX('Prod COA'!B:B,MATCH('CHART OF ACCOUNTS'!T417,'Prod COA'!A:A,0)))","v":{"$error":"#N/A"}}]
[1,"Statement of Financial Position","20","Liabilities","200","Accounts payable",2091,"Accounts Payable - Due to THS at VIU (Intercompany)","Balance Sheet (2) - General CC(F-9000)/Fund(F-10)","BS","2091","GL","Active","Not in FRS","Not in YTD GL",null,null,null,{"$f":"T418=#REF!","v":{"$error":"#REF!"}},2091,{"$f":"IFERROR(INDEX('Prod COA'!B:B,MATCH('CHART OF ACCOUNTS'!T418,'Prod COA'!E:E,0)),INDEX('Prod COA'!B:B,MATCH('CHART OF ACCOUNTS'!T418,'Prod COA'!A:A,0)))","v":{"$error":"#N/A"}}]
[1,"Statement of Financial Position","20","Liabilities","210","Accrued liabilities",2112,"Municipal Pension Payable","Balance Sheet (2) - General CC(F-9000)/Fund(F-10)","BS","2112","GL","Active","Not in FRS","Not in YTD GL",null,null,null,false,2112,{"$f":"IFERROR(INDEX('Prod COA'!B:B,MATCH('CHART OF ACCOUNTS'!T419,'Prod COA'!E:E,0)),INDEX('Prod COA'!B:B,MATCH('CHART OF ACCOUNTS'!T419,'Prod COA'!A:A,0)))","v":{"$error":"#N/A"}}]
[1,"Statement of Financial Position","20","Liabilities","210","Accrued liabilities",2126,"EI Rebate Benefit - Payable","Balance Sheet (18) - EMP_GRP CLEARING","BS","2126","GL","Active","Not in FRS","Not in YTD GL",null,null,null,false,2126,{"$f":"IFERROR(INDEX('Prod COA'!B:B,MATCH('CHART OF ACCOUNTS'!T420,'Prod COA'!E:E,0)),INDEX('Prod COA'!B:B,MATCH('CHART OF ACCOUNTS'!T420,'Prod COA'!A:A,0)))","v":{"$error":"#N/A"}}]
[1,"Statement of Financial Position","20","Liabilities","210","Accrued liabilities",2131,"United Way Payable","Balance Sheet (2) - General CC(F-9000)/Fund(F-10)","BS","2131","GL","Active","Not in FRS","Not in YTD GL",null,null,null,false,2131,{"$f":"IFERROR(INDEX('Prod COA'!B:B,MATCH('CHART OF ACCOUNTS'!T421,'Prod COA'!E:E,0)),INDEX('Prod COA'!B:B,MATCH('CHART OF ACCOUNTS'!T421,'Prod COA'!A:A,0)))","v":{"$error":"#N/A"}}]
[1,"Statement of Financial Position","20","Liabilities","210","Accrued liabilities",2133,"Family Maintenance and Garnishments","Balance Sheet (2) - General CC(F-9000)/Fund(F-10)","BS","2133","GL","Active","Not in FRS","Not in YTD GL",null,null,null,false,2133,{"$f":"IFERROR(INDEX('Prod COA'!B:B,MATCH('CHART OF ACCOUNTS'!T422,'Prod COA'!E:E,0)),INDEX('Prod COA'!B:B,MATCH('CHART OF ACCOUNTS'!T422,'Prod COA'!A:A,0)))","v":{"$error":"#N/A"}}]
[1,"Statement of Financial Position","20","Liabilities","210","Accrued liabilities",2141,"Receiver General - Non-Resident Tax Payable","Balance Sheet (2) - General CC(F-9000)/Fund(F-10)","BS","2141","GL","Active","Not in FRS","Not in YTD GL",null,null,null,false,2141,{"$f":"IFERROR(INDEX('Prod COA'!B:B,MATCH('CHART OF ACCOUNTS'!T423,'Prod COA'!E:E,0)),INDEX('Prod COA'!B:B,MATCH('CHART OF ACCOUNTS'!T423,'Prod COA'!A:A,0)))","v":{"$error":"#N/A"}}]
[1,"Statement of Financial Position","20","Liabilities","210","Accrued liabilities",2160,"Accrued Employee Liabilities - ADMIN Overtime","Balance Sheet (2) - General CC(F-9000)/Fund(F-10)","BS","2160","GL","Active","Not in FRS","Not in YTD GL",null,null,null,false,2160,{"$f":"IFERROR(INDEX('Prod COA'!B:B,MATCH('CHART OF ACCOUNTS'!T424,'Prod COA'!E:E,0)),INDEX('Prod COA'!B:B,MATCH('CHART OF ACCOUNTS'!T424,'Prod COA'!A:A,0)))","v":{"$error":"#N/A"}}]
[1,"Statement of Financial Position","20","Liabilities","210","Accrued liabilities",2162,"Accrued Employee Liabilities - ADMIN Frozen Sick Bank","Balance Sheet (2) - General CC(F-9000)/Fund(F-10)","BS","2162","GL","Active","Not in FRS","Not in YTD GL",null,null,null,false,2162,{"$f":"IFERROR(INDEX('Prod COA'!B:B,MATCH('CHART OF ACCOUNTS'!T425,'Prod COA'!E:E,0)),INDEX('Prod COA'!B:B,MATCH('CHART OF ACCOUNTS'!T425,'Prod COA'!A:A,0)))","v":{"$error":"#N/A"}}]
[1,"Statement of Financial Position","20","Liabilities","210","Accrued liabilities",2163,"Accrued Employee Liabilities - ADMIN Professional Development","Balance Sheet (2) - General CC(F-9000)/Fund(F-10)","BS","2163","GL","Active","Not in FRS","Not in YTD GL",null,null,null,false,2163,{"$f":"IFERROR(INDEX('Prod COA'!B:B,MATCH('CHART OF ACCOUNTS'!T426,'Prod COA'!E:E,0)),INDEX('Prod COA'!B:B,MATCH('CHART OF ACCOUNTS'!T426,'Prod COA'!A:A,0)))","v":{"$error":"#N/A"}}]
[1,"Statement of Financial Position","20","Liabilities","210","Accrued liabilities",2164,"Accrued Employee Liabilities - ADMIN Other","Balance Sheet (2) - General CC(F-9000)/Fund(F-10)","BS","2164","GL","Active","Not in FRS","Not in YTD GL",null,null,null,false,2164,{"$f":"IFERROR(INDEX('Prod COA'!B:B,MATCH('CHART OF ACCOUNTS'!T427,'Prod COA'!E:E,0)),INDEX('Prod COA'!B:B,MATCH('CHART OF ACCOUNTS'!T427,'Prod COA'!A:A,0)))","v":{"$error":"#N/A"}}]
[1,"Statement of Financial Position","20","Liabilities","210","Accrued liabilities",2165,"Accrued Employee Liabilities - BCGEU Overtime","Balance Sheet (2) - General CC(F-9000)/Fund(F-10)","BS","2165","GL","Active","Not in FRS","Not in YTD GL",null,null,null,false,2165,{"$f":"IFERROR(INDEX('Prod COA'!B:B,MATCH('CHART OF ACCOUNTS'!T428,'Prod COA'!E:E,0)),INDEX('Prod COA'!B:B,MATCH('CHART OF ACCOUNTS'!T428,'Prod COA'!A:A,0)))","v":{"$error":"#N/A"}}]
[1,"Statement of Financial Position","20","Liabilities","210","Accrued liabilities",2166,"Accrued Employee Liabilities - BCGEU Vacation","Balance Sheet (2) - General CC(F-9000)/Fund(F-10)","BS","2166","GL","Active","Not in FRS","Not in YTD GL",null,null,null,false,2166,{"$f":"IFERROR(INDEX('Prod COA'!B:B,MATCH('CHART OF ACCOUNTS'!T429,'Prod COA'!E:E,0)),INDEX('Prod COA'!B:B,MATCH('CHART OF ACCOUNTS'!T429,'Prod COA'!A:A,0)))","v":{"$error":"#N/A"}}]
[1,"Statement of Financial Position","20","Liabilities","210","Accrued liabilities",2167,"Accrued Employee Liabilities - BCGEU Frozen Sick Bank","Balance Sheet (2) - General CC(F-9000)/Fund(F-10)","BS","2167","GL","Active","Not in FRS","Not in YTD GL",null,null,null,false,2167,{"$f":"IFERROR(INDEX('Prod COA'!B:B,MATCH('CHART OF ACCOUNTS'!T430,'Prod COA'!E:E,0)),INDEX('Prod COA'!B:B,MATCH('CHART OF ACCOUNTS'!T430,'Prod COA'!A:A,0)))","v":{"$error":"#N/A"}}]
[1,"Statement of Financial Position","20","Liabilities","210","Accrued liabilities",2168,"Accrued Employee Liabilities - BCGEU Professional Development","Balance Sheet (2) - General CC(F-9000)/Fund(F-10)","BS","2168","GL","Active","Not in FRS","Not in YTD GL",null,null,null,false,2168,{"$f":"IFERROR(INDEX('Prod COA'!B:B,MATCH('CHART OF ACCOUNTS'!T431,'Prod COA'!E:E,0)),INDEX('Prod COA'!B:B,MATCH('CHART OF ACCOUNTS'!T431,'Prod COA'!A:A,0)))","v":{"$error":"#N/A"}}]
[1,"Statement of Financial Position","20","Liabilities","210","Accrued liabilities",2169,"Accrued Employee Liabilities - BCGEU Other","Balance Sheet (2) - General CC(F-9000)/Fund(F-10)","BS","2169","GL","Active","Not in FRS","Not in YTD GL",null,null,null,false,2169,{"$f":"IFERROR(INDEX('Prod COA'!B:B,MATCH('CHART OF ACCOUNTS'!T432,'Prod COA'!E:E,0)),INDEX('Prod COA'!B:B,MATCH('CHART OF ACCOUNTS'!T432,'Prod COA'!A:A,0)))","v":{"$error":"#N/A"}}]
[1,"Statement of Financial Position","20","Liabilities","210","Accrued liabilities",2170,"Accrued Employee Liabilities - CUPE Overtime","Balance Sheet (2) - General CC(F-9000)/Fund(F-10)","BS","2170","GL","Active","Not in FRS","Not in YTD GL",null,null,null,false,2170,{"$f":"IFERROR(INDEX('Prod COA'!B:B,MATCH('CHART OF ACCOUNTS'!T433,'Prod COA'!E:E,0)),INDEX('Prod COA'!B:B,MATCH('CHART OF ACCOUNTS'!T433,'Prod COA'!A:A,0)))","v":{"$error":"#N/A"}}]
[1,"Statement of Financial Position","20","Liabilities","210","Accrued liabilities",2171,"Accrued Employee Liabilities - CUPE Vacation","Balance Sheet (2) - General CC(F-9000)/Fund(F-10)","BS","2171","GL","Active","Not in FRS","Not in YTD GL",null,null,null,false,2171,{"$f":"IFERROR(INDEX('Prod COA'!B:B,MATCH('CHART OF ACCOUNTS'!T434,'Prod COA'!E:E,0)),INDEX('Prod COA'!B:B,MATCH('CHART OF ACCOUNTS'!T434,'Prod COA'!A:A,0)))","v":{"$error":"#N/A"}}]
[1,"Statement of Financial Position","20","Liabilities","210","Accrued liabilities",2172,"Accrued Employee Liabilities - CUPE Other","Balance Sheet (2) - General CC(F-9000)/Fund(F-10)","BS","2172","GL","Active","Not in FRS","Not in YTD GL",null,null,null,false,2172,{"$f":"IFERROR(INDEX('Prod COA'!B:B,MATCH('CHART OF ACCOUNTS'!T435,'Prod COA'!E:E,0)),INDEX('Prod COA'!B:B,MATCH('CHART OF ACCOUNTS'!T435,'Prod COA'!A:A,0)))","v":{"$error":"#N/A"}}]
[1,"Statement of Financial Position","20","Liabilities","210","Accrued liabilities",2176,"Accrued Employee Liabilities - VIUFA Vacation","Balance Sheet (2) - General CC(F-9000)/Fund(F-10)","BS","2176","GL","Active","Not in FRS","Not in YTD GL",null,null,null,false,2176,{"$f":"IFERROR(INDEX('Prod COA'!B:B,MATCH('CHART OF ACCOUNTS'!T436,'Prod COA'!E:E,0)),INDEX('Prod COA'!B:B,MATCH('CHART OF ACCOUNTS'!T436,'Prod COA'!A:A,0)))","v":{"$error":"#N/A"}}]
[1,"Statement of Financial Position","20","Liabilities","210","Accrued liabilities",2177,"Accrued Employee Liabilities - VIUFA Frozen Sick Bank","Balance Sheet (2) - General CC(F-9000)/Fund(F-10)","BS","2177","GL","Active","Not in FRS","Not in YTD GL",null,null,null,false,2177,{"$f":"IFERROR(INDEX('Prod COA'!B:B,MATCH('CHART OF ACCOUNTS'!T437,'Prod COA'!E:E,0)),INDEX('Prod COA'!B:B,MATCH('CHART OF ACCOUNTS'!T437,'Prod COA'!A:A,0)))","v":{"$error":"#N/A"}}]
[1,"Statement of Financial Position","20","Liabilities","210","Accrued liabilities",2179,"Accrued Employee Liabilities - VIUFA Other","Balance Sheet (2) - General CC(F-9000)/Fund(F-10)","BS","2179","GL","Active","Not in FRS","Not in YTD GL",null,null,null,false,2179,{"$f":"IFERROR(INDEX('Prod COA'!B:B,MATCH('CHART OF ACCOUNTS'!T438,'Prod COA'!E:E,0)),INDEX('Prod COA'!B:B,MATCH('CHART OF ACCOUNTS'!T438,'Prod COA'!A:A,0)))","v":{"$error":"#N/A"}}]
[1,"Statement of Financial Position","20","Liabilities","210","Accrued liabilities",2180,"Accrued Employee Liabilities - Non-Jurisdicational Overtime","Balance Sheet (2) - General CC(F-9000)/Fund(F-10)","BS","2180","GL","Active","Not in FRS","Not in YTD GL",null,null,null,false,2180,{"$f":"IFERROR(INDEX('Prod COA'!B:B,MATCH('CHART OF ACCOUNTS'!T439,'Prod COA'!E:E,0)),INDEX('Prod COA'!B:B,MATCH('CHART OF ACCOUNTS'!T439,'Prod COA'!A:A,0)))","v":{"$error":"#N/A"}}]
[1,"Statement of Financial Position","20","Liabilities","210","Accrued liabilities",2181,"Accrued Employee Liabilities - Non-Jurisidicational Vacation","Balance Sheet (2) - General CC(F-9000)/Fund(F-10)","BS","2181","GL","Active","Not in FRS","Not in YTD GL",null,null,null,false,2181,{"$f":"IFERROR(INDEX('Prod COA'!B:B,MATCH('CHART OF ACCOUNTS'!T440,'Prod COA'!E:E,0)),INDEX('Prod COA'!B:B,MATCH('CHART OF ACCOUNTS'!T440,'Prod COA'!A:A,0)))","v":{"$error":"#N/A"}}]
[1,"Statement of Financial Position","20","Liabilities","210","Accrued liabilities",2190,"Unearned Revenue - Deposits General","Balance Sheet (17) - Deposits - CC(F-9000)/Fund(M-VM)/WO(M)","BS","2190","GL","Active","Not in FRS","Not in YTD GL",null,null,null,false,2190,{"$f":"IFERROR(INDEX('Prod COA'!B:B,MATCH('CHART OF ACCOUNTS'!T441,'Prod COA'!E:E,0)),INDEX('Prod COA'!B:B,MATCH('CHART OF ACCOUNTS'!T441,'Prod COA'!A:A,0)))","v":{"$error":"#N/A"}}]
[1,"Statement of Financial Position","20","Liabilities","210","Accrued liabilities",2192,"Homestay Family Deposits ","Balance Sheet (17) - Deposits - CC(F-9000)/Fund(M-VM)/WO(M)","BS","2192","GL","Active","Not in FRS","Not in YTD GL",null,null,null,false,2192,{"$f":"IFERROR(INDEX('Prod COA'!B:B,MATCH('CHART OF ACCOUNTS'!T442,'Prod COA'!E:E,0)),INDEX('Prod COA'!B:B,MATCH('CHART OF ACCOUNTS'!T442,'Prod COA'!A:A,0)))","v":{"$error":"#N/A"}}]
[1,"Statement of Financial Position","20","Liabilities","210","Accrued liabilities",2193,"Unearned Revenue - Homestay Student Deposits","Balance Sheet (17) - Deposits - CC(F-9000)/Fund(M-VM)/WO(M)","BS",null,"GL","Closed","Not in FRS","Not in YTD GL",null,null,null,false,2193,{"$f":"IFERROR(INDEX('Prod COA'!B:B,MATCH('CHART OF ACCOUNTS'!T443,'Prod COA'!E:E,0)),INDEX('Prod COA'!B:B,MATCH('CHART OF ACCOUNTS'!T443,'Prod COA'!A:A,0)))","v":{"$error":"#N/A"}}]
[1,"Statement of Financial Position","20","Liabilities","210","Accrued liabilities",2194,"Unearned Revenue - Food Services Meal Plans","Balance Sheet (2) - General CC(F-9000)/Fund(F-10)","BS","2194","GL","Closed","Not in FRS","Not in YTD GL",null,null,null,false,2194,{"$f":"IFERROR(INDEX('Prod COA'!B:B,MATCH('CHART OF ACCOUNTS'!T444,'Prod COA'!E:E,0)),INDEX('Prod COA'!B:B,MATCH('CHART OF ACCOUNTS'!T444,'Prod COA'!A:A,0)))","v":{"$error":"#N/A"}}]
[1,"Statement of Financial Position","20","Liabilities","210","Accrued liabilities",2195,"Unearned Revenue - Food Services Dinning Dollars","Balance Sheet (2) - General CC(F-9000)/Fund(F-10)","BS","2195","GL","Closed","Not in FRS","Not in YTD GL",null,null,null,false,2195,{"$f":"IFERROR(INDEX('Prod COA'!B:B,MATCH('CHART OF ACCOUNTS'!T445,'Prod COA'!E:E,0)),INDEX('Prod COA'!B:B,MATCH('CHART OF ACCOUNTS'!T445,'Prod COA'!A:A,0)))","v":{"$error":"#N/A"}}]
[1,"Statement of Financial Position","20","Liabilities","210","Accrued liabilities",2196,"SLED Reclass Deposits","Balance Sheet (2) - General CC(F-9000)/Fund(F-10)","BS","2196","GL","Active","Not in FRS","Not in YTD GL",null,null,null,false,2196,{"$f":"IFERROR(INDEX('Prod COA'!B:B,MATCH('CHART OF ACCOUNTS'!T446,'Prod COA'!E:E,0)),INDEX('Prod COA'!B:B,MATCH('CHART OF ACCOUNTS'!T446,'Prod COA'!A:A,0)))","v":{"$error":"#N/A"}}]
[1,"Statement of Financial Position","20","Liabilities","220","Employee future benefits",2210,"Employee Future Benefits - ADMIN","Balance Sheet (2) - General CC(F-9000)/Fund(F-10)","BS","2210","GL","Active","Not in FRS","Not in YTD GL",null,null,null,false,2210,{"$f":"IFERROR(INDEX('Prod COA'!B:B,MATCH('CHART OF ACCOUNTS'!T447,'Prod COA'!E:E,0)),INDEX('Prod COA'!B:B,MATCH('CHART OF ACCOUNTS'!T447,'Prod COA'!A:A,0)))","v":{"$error":"#N/A"}}]
[1,"Statement of Financial Position","20","Liabilities","230","Deferred revenue",2300,"Deferred Revenue - Other Govt -Grants and Contracts","Grants (15) - CC(F-Cat4)/Fund(F-VM)/WO(M)/ACT(M)/G(M)","BS","2300","GL","Closed","Not in FRS","Not in YTD GL",null,null,null,false,2300,{"$f":"IFERROR(INDEX('Prod COA'!B:B,MATCH('CHART OF ACCOUNTS'!T448,'Prod COA'!E:E,0)),INDEX('Prod COA'!B:B,MATCH('CHART OF ACCOUNTS'!T448,'Prod COA'!A:A,0)))","v":{"$error":"#N/A"}}]
[1,"Statement of Financial Position","20","Liabilities","230","Deferred revenue",2301,"Deferred Contributions - BC Provincial Govt - AVED General Grants","Grants (15) - CC(F-Cat4)/Fund(F-VM)/WO(M)/ACT(M)/G(M)","BS",null,"GL","Closed","Not in FRS","Not in YTD GL",null,null,null,{"$f":"T449=#REF!","v":{"$error":"#REF!"}},2301,{"$f":"IFERROR(INDEX('Prod COA'!B:B,MATCH('CHART OF ACCOUNTS'!T449,'Prod COA'!E:E,0)),INDEX('Prod COA'!B:B,MATCH('CHART OF ACCOUNTS'!T449,'Prod COA'!A:A,0)))","v":{"$error":"#N/A"}}]
[1,"Statement of Financial Position","20","Liabilities","230","Deferred revenue",2302,"Deferred Contributions - BC Provincial Govt - Non AVED Other Ministries","Grants (15) - CC(F-Cat4)/Fund(F-VM)/WO(M)/ACT(M)/G(M)","BS",null,"GL","Closed","Not in FRS","Not in YTD GL",null,null,null,{"$f":"T450=T449","v":false},2302,{"$f":"IFERROR(INDEX('Prod COA'!B:B,MATCH('CHART OF ACCOUNTS'!T450,'Prod COA'!E:E,0)),INDEX('Prod COA'!B:B,MATCH('CHART OF ACCOUNTS'!T450,'Prod COA'!A:A,0)))","v":{"$error":"#N/A"}}]
[1,"Statement of Financial Position","20","Liabilities","230","Deferred revenue",2303,"Deferred Contributions - BC Provincial Govt - AVED - BC Operating COA","Grants (15) - CC(F-Cat4)/Fund(F-VM)/WO(M)/ACT(M)/G(M)","BS",null,"GL","Closed","Not in FRS","Not in YTD GL",null,null,null,false,{"$f":"IF(LEN(G451)=4,G451,K451)*1","v":2303},{"$f":"IFERROR(INDEX('Prod COA'!B:B,MATCH('CHART OF ACCOUNTS'!T451,'Prod COA'!E:E,0)),INDEX('Prod COA'!B:B,MATCH('CHART OF ACCOUNTS'!T451,'Prod COA'!A:A,0)))","v":{"$error":"#N/A"}}]
[1,"Statement of Financial Position","20","Liabilities","230","Deferred revenue",2304,"Deferred Contributions - BC Provincial Crown Corps, Agencies, Boards - ITA","Grants (15) - CC(F-Cat4)/Fund(F-VM)/WO(M)/ACT(M)/G(M)","BS",null,"GL","Closed","Not in FRS","Not in YTD GL",null,null,null,false,2304,{"$f":"IFERROR(INDEX('Prod COA'!B:B,MATCH('CHART OF ACCOUNTS'!T452,'Prod COA'!E:E,0)),INDEX('Prod COA'!B:B,MATCH('CHART OF ACCOUNTS'!T452,'Prod COA'!A:A,0)))","v":{"$error":"#N/A"}}]
[1,"Statement of Financial Position","20","Liabilities","230","Deferred revenue",2305,"Deferred Contributions - BC Provincial Crown Corps, Agencies, Boards - Other","Grants (15) - CC(F-Cat4)/Fund(F-VM)/WO(M)/ACT(M)/G(M)","BS",null,"GL","Closed","Not in FRS","Not in YTD GL",null,null,null,false,2305,{"$f":"IFERROR(INDEX('Prod COA'!B:B,MATCH('CHART OF ACCOUNTS'!T453,'Prod COA'!E:E,0)),INDEX('Prod COA'!B:B,MATCH('CHART OF ACCOUNTS'!T453,'Prod COA'!A:A,0)))","v":{"$error":"#N/A"}}]
[1,"Statement of Financial Position","20","Liabilities","230","Deferred revenue",2331,"Deferred Contributions - Federal Govt Department Contracts","Grants (15) - CC(F-Cat4)/Fund(F-VM)/WO(M)/ACT(M)/G(M)","BS",null,"GL","Closed","Not in FRS","Not in YTD GL",null,null,null,false,2331,{"$f":"IFERROR(INDEX('Prod COA'!B:B,MATCH('CHART OF ACCOUNTS'!T454,'Prod COA'!E:E,0)),INDEX('Prod COA'!B:B,MATCH('CHART OF ACCOUNTS'!T454,'Prod COA'!A:A,0)))","v":{"$error":"#N/A"}}]
[1,"Statement of Financial Position","20","Liabilities","230","Deferred revenue",2340,"Deferred Revenue - Indigenous Organizations - Grants and Contracts","Grants (15) - CC(F-Cat4)/Fund(F-VM)/WO(M)/ACT(M)/G(M)","BS","2340","GL","Closed","Not in FRS","Not in YTD GL",null,null,null,false,2340,{"$f":"IFERROR(INDEX('Prod COA'!B:B,MATCH('CHART OF ACCOUNTS'!T455,'Prod COA'!E:E,0)),INDEX('Prod COA'!B:B,MATCH('CHART OF ACCOUNTS'!T455,'Prod COA'!A:A,0)))","v":{"$error":"#N/A"}}]
[1,"Statement of Financial Position","20","Liabilities","230","Deferred revenue",2351,"Deferred Revenue - SLED Reclass Contra Account","Balance Sheet (2) - General CC(F-9000)/Fund(F-10)","BS","2351","GL","Active","Not in FRS","Not in YTD GL",null,null,null,false,2351,{"$f":"IFERROR(INDEX('Prod COA'!B:B,MATCH('CHART OF ACCOUNTS'!T456,'Prod COA'!E:E,0)),INDEX('Prod COA'!B:B,MATCH('CHART OF ACCOUNTS'!T456,'Prod COA'!A:A,0)))","v":{"$error":"#N/A"}}]
[1,"Statement of Financial Position","20","Liabilities","240","Deferred contributions",2403,"Deferred Contributions - Province of BC - AVED - COA (Operating/Non Capital)","Grants (15) - CC(F-Cat4)/Fund(F-VM)/WO(M)/ACT(M)/G(M)","BS","2403","GL","Closed","Not in FRS","Not in YTD GL",null,null,null,false,2403,{"$f":"IFERROR(INDEX('Prod COA'!B:B,MATCH('CHART OF ACCOUNTS'!T457,'Prod COA'!E:E,0)),INDEX('Prod COA'!B:B,MATCH('CHART OF ACCOUNTS'!T457,'Prod COA'!A:A,0)))","v":{"$error":"#N/A"}}]
[1,"Statement of Financial Position","20","Liabilities","240","Deferred contributions",2410,"Deferred Revenue - Corporations - Corporations","Grants (15) - CC(F-Cat4)/Fund(F-VM)/WO(M)/ACT(M)/G(M)","BS",null,"GL","Closed","Not in FRS","Not in YTD GL",null,null,null,false,2410,{"$f":"IFERROR(INDEX('Prod COA'!B:B,MATCH('CHART OF ACCOUNTS'!T458,'Prod COA'!E:E,0)),INDEX('Prod COA'!B:B,MATCH('CHART OF ACCOUNTS'!T458,'Prod COA'!A:A,0)))","v":{"$error":"#N/A"}}]
[1,"Statement of Financial Position","20","Liabilities","240","Deferred contributions",2420,"Deferred Revenue - Individuals - Grants and Contracts","Grants (15) - CC(F-Cat4)/Fund(F-VM)/WO(M)/ACT(M)/G(M)","BS",null,"GL","Closed","Not in FRS","Not in YTD GL",null,null,null,false,2420,{"$f":"IFERROR(INDEX('Prod COA'!B:B,MATCH('CHART OF ACCOUNTS'!T459,'Prod COA'!E:E,0)),INDEX('Prod COA'!B:B,MATCH('CHART OF ACCOUNTS'!T459,'Prod COA'!A:A,0)))","v":{"$error":"#N/A"}}]
[1,"Statement of Financial Position","20","Liabilities","240","Deferred contributions",2450,"Deferred Revenue - Tuition and Student Fees - SLED","Balance Sheet (2) - General CC(F-9000)/Fund(F-10)","BS",null,"GL","Closed","Not in FRS","Not in YTD GL",null,null,null,false,2450,{"$f":"IFERROR(INDEX('Prod COA'!B:B,MATCH('CHART OF ACCOUNTS'!T460,'Prod COA'!E:E,0)),INDEX('Prod COA'!B:B,MATCH('CHART OF ACCOUNTS'!T460,'Prod COA'!A:A,0)))","v":{"$error":"#N/A"}}]
[1,"Statement of Financial Position","20","Liabilities","240","Deferred contributions",2451,"Deferred Revenue - Tuition and Student Fees - DOMESTIC","Balance Sheet (2) - General CC(F-9000)/Fund(F-10)","BS",null,"GL","Closed","Not in FRS","Not in YTD GL",null,null,null,false,2451,{"$f":"IFERROR(INDEX('Prod COA'!B:B,MATCH('CHART OF ACCOUNTS'!T461,'Prod COA'!E:E,0)),INDEX('Prod COA'!B:B,MATCH('CHART OF ACCOUNTS'!T461,'Prod COA'!A:A,0)))","v":{"$error":"#N/A"}}]
[1,"Statement of Financial Position","20","Liabilities","240","Deferred contributions",2452,"Deferred Revenue - Tuition and Student Fees - INTERNATIONAL","Balance Sheet (2) - General CC(F-9000)/Fund(F-10)","BS",null,"GL","Closed","Not in FRS","Not in YTD GL",null,null,null,false,2452,{"$f":"IFERROR(INDEX('Prod COA'!B:B,MATCH('CHART OF ACCOUNTS'!T462,'Prod COA'!E:E,0)),INDEX('Prod COA'!B:B,MATCH('CHART OF ACCOUNTS'!T462,'Prod COA'!A:A,0)))","v":{"$error":"#N/A"}}]
[1,"Statement of Financial Position","20","Liabilities","250","Deferred capital contributions",2501,"FA DCC Provincial - Computers and Software","Assets (3) - CC(F-9150)/Fund(F-50)/WO(M)/ACT(M-Default 500)","BS",null,"GL","Closed","Not in FRS","Not in YTD GL",null,null,null,false,2501,{"$f":"IFERROR(INDEX('Prod COA'!B:B,MATCH('CHART OF ACCOUNTS'!T463,'Prod COA'!E:E,0)),INDEX('Prod COA'!B:B,MATCH('CHART OF ACCOUNTS'!T463,'Prod COA'!A:A,0)))","v":{"$error":"#N/A"}}]
[1,"Statement of Financial Position","20","Liabilities","250","Deferred capital contributions",2502,"FA DCC Provincial - Furniture and Equipment","Assets (3) - CC(F-9150)/Fund(F-50)/WO(M)/ACT(M-Default 500)","BS",null,"GL","Closed","Not in FRS","Not in YTD GL",null,null,null,false,2502,{"$f":"IFERROR(INDEX('Prod COA'!B:B,MATCH('CHART OF ACCOUNTS'!T464,'Prod COA'!E:E,0)),INDEX('Prod COA'!B:B,MATCH('CHART OF ACCOUNTS'!T464,'Prod COA'!A:A,0)))","v":{"$error":"#N/A"}}]
[1,"Statement of Financial Position","20","Liabilities","250","Deferred capital contributions",2503,"FA DCC Provincial - Leasehold Improvements","Assets (3) - CC(F-9150)/Fund(F-50)/WO(M)/ACT(M-Default 500)","BS",null,"GL","Closed","Not in FRS","Not in YTD GL",null,null,null,false,2503,{"$f":"IFERROR(INDEX('Prod COA'!B:B,MATCH('CHART OF ACCOUNTS'!T465,'Prod COA'!E:E,0)),INDEX('Prod COA'!B:B,MATCH('CHART OF ACCOUNTS'!T465,'Prod COA'!A:A,0)))","v":{"$error":"#N/A"}}]
[1,"Statement of Financial Position","20","Liabilities","250","Deferred capital contributions",2504,"FA DCC Provincial - Library","Assets (3) - CC(F-9150)/Fund(F-50)/WO(M)/ACT(M-Default 500)","BS",null,"GL","Closed","Not in FRS","Not in YTD GL",null,null,null,false,2504,{"$f":"IFERROR(INDEX('Prod COA'!B:B,MATCH('CHART OF ACCOUNTS'!T466,'Prod COA'!E:E,0)),INDEX('Prod COA'!B:B,MATCH('CHART OF ACCOUNTS'!T466,'Prod COA'!A:A,0)))","v":{"$error":"#N/A"}}]
[1,"Statement of Financial Position","20","Liabilities","250","Deferred capital contributions",2505,"FA DCC Provincial - Site Improvements","Assets (3) - CC(F-9150)/Fund(F-50)/WO(M)/ACT(M-Default 500)","BS",null,"GL","Closed","Not in FRS","Not in YTD GL",null,null,null,false,2505,{"$f":"IFERROR(INDEX('Prod COA'!B:B,MATCH('CHART OF ACCOUNTS'!T467,'Prod COA'!E:E,0)),INDEX('Prod COA'!B:B,MATCH('CHART OF ACCOUNTS'!T467,'Prod COA'!A:A,0)))","v":{"$error":"#N/A"}}]
[1,"Statement of Financial Position","20","Liabilities","250","Deferred capital contributions",2506,"FA DCC Provincial - Vehicles","Assets (3) - CC(F-9150)/Fund(F-50)/WO(M)/ACT(M-Default 500)","BS",null,"GL","Closed","Not in FRS","Not in YTD GL",null,null,null,false,2506,{"$f":"IFERROR(INDEX('Prod COA'!B:B,MATCH('CHART OF ACCOUNTS'!T468,'Prod COA'!E:E,0)),INDEX('Prod COA'!B:B,MATCH('CHART OF ACCOUNTS'!T468,'Prod COA'!A:A,0)))","v":{"$error":"#N/A"}}]
[1,"Statement of Financial Position","20","Liabilities","250","Deferred capital contributions",2507,"FA DCC Provincial - TBD","Assets (3) - CC(F-9150)/Fund(F-50)/WO(M)/ACT(M-Default 500)","BS",null,"GL","Closed","Not in FRS","Not in YTD GL",null,null,null,false,2507,{"$f":"IFERROR(INDEX('Prod COA'!B:B,MATCH('CHART OF ACCOUNTS'!T469,'Prod COA'!E:E,0)),INDEX('Prod COA'!B:B,MATCH('CHART OF ACCOUNTS'!T469,'Prod COA'!A:A,0)))","v":{"$error":"#N/A"}}]
[1,"Statement of Financial Position","20","Liabilities","250","Deferred capital contributions",2508,"FA DCC Provincial - Land","Assets (3) - CC(F-9150)/Fund(F-50)/WO(M)/ACT(M-Default 500)","BS",null,"GL","Closed","Not in FRS","Not in YTD GL",null,null,null,false,2508,{"$f":"IFERROR(INDEX('Prod COA'!B:B,MATCH('CHART OF ACCOUNTS'!T470,'Prod COA'!E:E,0)),INDEX('Prod COA'!B:B,MATCH('CHART OF ACCOUNTS'!T470,'Prod COA'!A:A,0)))","v":{"$error":"#N/A"}}]
[1,"Statement of Financial Position","20","Liabilities","250","Deferred capital contributions",2509,"FA DCC Provincial - Work In Progress","Assets (3) - CC(F-9150)/Fund(F-50)/WO(M)/ACT(M-Default 500)","BS",null,"GL","Closed","Not in FRS","Not in YTD GL",null,null,null,false,2509,{"$f":"IFERROR(INDEX('Prod COA'!B:B,MATCH('CHART OF ACCOUNTS'!T471,'Prod COA'!E:E,0)),INDEX('Prod COA'!B:B,MATCH('CHART OF ACCOUNTS'!T471,'Prod COA'!A:A,0)))","v":{"$error":"#N/A"}}]
[1,"Statement of Financial Position","20","Liabilities","250","Deferred capital contributions",2511,"FA DCC Federal - Computers and Software","Assets (3) - CC(F-9150)/Fund(F-50)/WO(M)/ACT(M-Default 500)","BS",null,"GL","Closed","Not in FRS","Not in YTD GL",null,null,null,false,2511,{"$f":"IFERROR(INDEX('Prod COA'!B:B,MATCH('CHART OF ACCOUNTS'!T472,'Prod COA'!E:E,0)),INDEX('Prod COA'!B:B,MATCH('CHART OF ACCOUNTS'!T472,'Prod COA'!A:A,0)))","v":{"$error":"#N/A"}}]
[1,"Statement of Financial Position","20","Liabilities","250","Deferred capital contributions",2512,"FA DCC Federal - Furniture and Equipment","Assets (3) - CC(F-9150)/Fund(F-50)/WO(M)/ACT(M-Default 500)","BS",null,"GL","Closed","Not in FRS","Not in YTD GL",null,null,null,false,2512,{"$f":"IFERROR(INDEX('Prod COA'!B:B,MATCH('CHART OF ACCOUNTS'!T473,'Prod COA'!E:E,0)),INDEX('Prod COA'!B:B,MATCH('CHART OF ACCOUNTS'!T473,'Prod COA'!A:A,0)))","v":{"$error":"#N/A"}}]
[1,"Statement of Financial Position","20","Liabilities","250","Deferred capital contributions",2513,"FA DCC Federal - Leasehold Improvements","Assets (3) - CC(F-9150)/Fund(F-50)/WO(M)/ACT(M-Default 500)","BS",null,"GL","Closed","Not in FRS","Not in YTD GL",null,null,null,false,2513,{"$f":"IFERROR(INDEX('Prod COA'!B:B,MATCH('CHART OF ACCOUNTS'!T474,'Prod COA'!E:E,0)),INDEX('Prod COA'!B:B,MATCH('CHART OF ACCOUNTS'!T474,'Prod COA'!A:A,0)))","v":{"$error":"#N/A"}}]
[1,"Statement of Financial Position","20","Liabilities","250","Deferred capital contributions",2514,"FA DCC Federal - Library","Assets (3) - CC(F-9150)/Fund(F-50)/WO(M)/ACT(M-Default 500)","BS",null,"GL","Closed","Not in FRS","Not in YTD GL",null,null,null,false,2514,{"$f":"IFERROR(INDEX('Prod COA'!B:B,MATCH('CHART OF ACCOUNTS'!T475,'Prod COA'!E:E,0)),INDEX('Prod COA'!B:B,MATCH('CHART OF ACCOUNTS'!T475,'Prod COA'!A:A,0)))","v":{"$error":"#N/A"}}]
[1,"Statement of Financial Position","20","Liabilities","250","Deferred capital contributions",2515,"FA DCC Federal - Site Improvements","Assets (3) - CC(F-9150)/Fund(F-50)/WO(M)/ACT(M-Default 500)","BS",null,"GL","Closed","Not in FRS","Not in YTD GL",null,null,null,false,2515,{"$f":"IFERROR(INDEX('Prod COA'!B:B,MATCH('CHART OF ACCOUNTS'!T476,'Prod COA'!E:E,0)),INDEX('Prod COA'!B:B,MATCH('CHART OF ACCOUNTS'!T476,'Prod COA'!A:A,0)))","v":{"$error":"#N/A"}}]
[1,"Statement of Financial Position","20","Liabilities","250","Deferred capital contributions",2516,"FA DCC Federal - Vehicles","Assets (3) - CC(F-9150)/Fund(F-50)/WO(M)/ACT(M-Default 500)","BS",null,"GL","Closed","Not in FRS","Not in YTD GL",null,null,null,false,2516,{"$f":"IFERROR(INDEX('Prod COA'!B:B,MATCH('CHART OF ACCOUNTS'!T477,'Prod COA'!E:E,0)),INDEX('Prod COA'!B:B,MATCH('CHART OF ACCOUNTS'!T477,'Prod COA'!A:A,0)))","v":{"$error":"#N/A"}}]
[1,"Statement of Financial Position","20","Liabilities","250","Deferred capital contributions",2517,"FA DCC Federal - TBD","Assets (3) - CC(F-9150)/Fund(F-50)/WO(M)/ACT(M-Default 500)","BS",null,"GL","Closed","Not in FRS","Not in YTD GL",null,null,null,false,2517,{"$f":"IFERROR(INDEX('Prod COA'!B:B,MATCH('CHART OF ACCOUNTS'!T478,'Prod COA'!E:E,0)),INDEX('Prod COA'!B:B,MATCH('CHART OF ACCOUNTS'!T478,'Prod COA'!A:A,0)))","v":{"$error":"#N/A"}}]
[1,"Statement of Financial Position","20","Liabilities","250","Deferred capital contributions",2518,"FA DCC Federal - Land","Assets (3) - CC(F-9150)/Fund(F-50)/WO(M)/ACT(M-Default 500)","BS",null,"GL","Closed","Not in FRS","Not in YTD GL",null,null,null,false,2518,{"$f":"IFERROR(INDEX('Prod COA'!B:B,MATCH('CHART OF ACCOUNTS'!T479,'Prod COA'!E:E,0)),INDEX('Prod COA'!B:B,MATCH('CHART OF ACCOUNTS'!T479,'Prod COA'!A:A,0)))","v":{"$error":"#N/A"}}]
[1,"Statement of Financial Position","20","Liabilities","250","Deferred capital contributions",2519,"FA DCC Federal - Work In Progress","Assets (3) - CC(F-9150)/Fund(F-50)/WO(M)/ACT(M-Default 500)","BS",null,"GL","Closed","Not in FRS","Not in YTD GL",null,null,null,false,2519,{"$f":"IFERROR(INDEX('Prod COA'!B:B,MATCH('CHART OF ACCOUNTS'!T480,'Prod COA'!E:E,0)),INDEX('Prod COA'!B:B,MATCH('CHART OF ACCOUNTS'!T480,'Prod COA'!A:A,0)))","v":{"$error":"#N/A"}}]
[1,"Statement of Financial Position","20","Liabilities","250","Deferred capital contributions",2521,"FA DCC Other - Computers and Software","Assets (3) - CC(F-9150)/Fund(F-50)/WO(M)/ACT(M-Default 500)","BS",null,"GL","Closed","Not in FRS","Not in YTD GL",null,null,null,false,2521,{"$f":"IFERROR(INDEX('Prod COA'!B:B,MATCH('CHART OF ACCOUNTS'!T481,'Prod COA'!E:E,0)),INDEX('Prod COA'!B:B,MATCH('CHART OF ACCOUNTS'!T481,'Prod COA'!A:A,0)))","v":{"$error":"#N/A"}}]
[1,"Statement of Financial Position","20","Liabilities","250","Deferred capital contributions",2522,"FA DCC Other - Furniture and Equipment","Assets (3) - CC(F-9150)/Fund(F-50)/WO(M)/ACT(M-Default 500)","BS",null,"GL","Closed","Not in FRS","Not in YTD GL",null,null,null,false,2522,{"$f":"IFERROR(INDEX('Prod COA'!B:B,MATCH('CHART OF ACCOUNTS'!T482,'Prod COA'!E:E,0)),INDEX('Prod COA'!B:B,MATCH('CHART OF ACCOUNTS'!T482,'Prod COA'!A:A,0)))","v":{"$error":"#N/A"}}]
[1,"Statement of Financial Position","20","Liabilities","250","Deferred capital contributions",2523,"FA DCC Other - Leasehold Improvements","Assets (3) - CC(F-9150)/Fund(F-50)/WO(M)/ACT(M-Default 500)","BS",null,"GL","Closed","Not in FRS","Not in YTD GL",null,null,null,{"$f":"T483=#REF!","v":{"$error":"#REF!"}},2523,{"$f":"IFERROR(INDEX('Prod COA'!B:B,MATCH('CHART OF ACCOUNTS'!T483,'Prod COA'!E:E,0)),INDEX('Prod COA'!B:B,MATCH('CHART OF ACCOUNTS'!T483,'Prod COA'!A:A,0)))","v":{"$error":"#N/A"}}]
[1,"Statement of Financial Position","20","Liabilities","250","Deferred capital contributions",2524,"FA DCC Other - Library","Assets (3) - CC(F-9150)/Fund(F-50)/WO(M)/ACT(M-Default 500)","BS",null,"GL","Closed","Not in FRS","Not in YTD GL",null,null,null,false,2524,{"$f":"IFERROR(INDEX('Prod COA'!B:B,MATCH('CHART OF ACCOUNTS'!T484,'Prod COA'!E:E,0)),INDEX('Prod COA'!B:B,MATCH('CHART OF ACCOUNTS'!T484,'Prod COA'!A:A,0)))","v":{"$error":"#N/A"}}]
[1,"Statement of Financial Position","20","Liabilities","250","Deferred capital contributions",2525,"FA DCC Other - Site Improvements","Assets (3) - CC(F-9150)/Fund(F-50)/WO(M)/ACT(M-Default 500)","BS",null,"GL","Closed","Not in FRS","Not in YTD GL",null,null,null,false,2525,{"$f":"IFERROR(INDEX('Prod COA'!B:B,MATCH('CHART OF ACCOUNTS'!T485,'Prod COA'!E:E,0)),INDEX('Prod COA'!B:B,MATCH('CHART OF ACCOUNTS'!T485,'Prod COA'!A:A,0)))","v":{"$error":"#N/A"}}]
[1,"Statement of Financial Position","20","Liabilities","250","Deferred capital contributions",2526,"FA DCC Other - Vehicles","Assets (3) - CC(F-9150)/Fund(F-50)/WO(M)/ACT(M-Default 500)","BS",null,"GL","Closed","Not in FRS","Not in YTD GL",null,null,null,false,2526,{"$f":"IFERROR(INDEX('Prod COA'!B:B,MATCH('CHART OF ACCOUNTS'!T486,'Prod COA'!E:E,0)),INDEX('Prod COA'!B:B,MATCH('CHART OF ACCOUNTS'!T486,'Prod COA'!A:A,0)))","v":{"$error":"#N/A"}}]
[1,"Statement of Financial Position","20","Liabilities","250","Deferred capital contributions",2527,"FA DCC Accum.Amort. Provincial - TBD","Assets (3) - CC(F-9150)/Fund(F-50)/WO(M)/ACT(M-Default 500)","BS",null,"GL","Closed","Not in FRS","Not in YTD GL",null,null,null,false,2527,{"$f":"IFERROR(INDEX('Prod COA'!B:B,MATCH('CHART OF ACCOUNTS'!T487,'Prod COA'!E:E,0)),INDEX('Prod COA'!B:B,MATCH('CHART OF ACCOUNTS'!T487,'Prod COA'!A:A,0)))","v":{"$error":"#N/A"}}]
[1,"Statement of Financial Position","20","Liabilities","250","Deferred capital contributions",2528,"FA DCC Other - Land","Assets (3) - CC(F-9150)/Fund(F-50)/WO(M)/ACT(M-Default 500)","BS",null,"GL","Closed","Not in FRS","Not in YTD GL",null,null,null,false,2528,{"$f":"IFERROR(INDEX('Prod COA'!B:B,MATCH('CHART OF ACCOUNTS'!T488,'Prod COA'!E:E,0)),INDEX('Prod COA'!B:B,MATCH('CHART OF ACCOUNTS'!T488,'Prod COA'!A:A,0)))","v":{"$error":"#N/A"}}]
[1,"Statement of Financial Position","20","Liabilities","250","Deferred capital contributions",2529,"FA DCC Other - Work In Progress","Assets (3) - CC(F-9150)/Fund(F-50)/WO(M)/ACT(M-Default 500)","BS",null,"GL","Closed","Not in FRS","Not in YTD GL",null,null,null,false,2529,{"$f":"IFERROR(INDEX('Prod COA'!B:B,MATCH('CHART OF ACCOUNTS'!T489,'Prod COA'!E:E,0)),INDEX('Prod COA'!B:B,MATCH('CHART OF ACCOUNTS'!T489,'Prod COA'!A:A,0)))","v":{"$error":"#N/A"}}]
[1,"Statement of Financial Position","20","Liabilities","250","Deferred capital contributions",2530,"FA DCC Accum.Amort. Provincial - Buildings","Assets (3) - CC(F-9150)/Fund(F-50)/WO(M)/ACT(M-Default 500)","BS",null,"GL","Closed","Not in FRS","Not in YTD GL",null,null,null,false,2530,{"$f":"IFERROR(INDEX('Prod COA'!B:B,MATCH('CHART OF ACCOUNTS'!T490,'Prod COA'!E:E,0)),INDEX('Prod COA'!B:B,MATCH('CHART OF ACCOUNTS'!T490,'Prod COA'!A:A,0)))","v":{"$error":"#N/A"}}]
[1,"Statement of Financial Position","20","Liabilities","250","Deferred capital contributions",2531,"FA DCC Accum.Amort. Provincial - Computers and Software","Assets (3) - CC(F-9150)/Fund(F-50)/WO(M)/ACT(M-Default 500)","BS",null,"GL","Closed","Not in FRS","Not in YTD GL",null,null,null,false,2531,{"$f":"IFERROR(INDEX('Prod COA'!B:B,MATCH('CHART OF ACCOUNTS'!T491,'Prod COA'!E:E,0)),INDEX('Prod COA'!B:B,MATCH('CHART OF ACCOUNTS'!T491,'Prod COA'!A:A,0)))","v":{"$error":"#N/A"}}]
[1,"Statement of Financial Position","20","Liabilities","250","Deferred capital contributions",2532,"FA DCC Accum.Amort. Provincial - Furniture and Equipment","Assets (3) - CC(F-9150)/Fund(F-50)/WO(M)/ACT(M-Default 500)","BS",null,"GL","Closed","Not in FRS","Not in YTD GL",null,null,null,false,2532,{"$f":"IFERROR(INDEX('Prod COA'!B:B,MATCH('CHART OF ACCOUNTS'!T492,'Prod COA'!E:E,0)),INDEX('Prod COA'!B:B,MATCH('CHART OF ACCOUNTS'!T492,'Prod COA'!A:A,0)))","v":{"$error":"#N/A"}}]
[1,"Statement of Financial Position","20","Liabilities","250","Deferred capital contributions",2533,"FA DCC Accum.Amort. Provincial - Leasehold Improvements","Assets (3) - CC(F-9150)/Fund(F-50)/WO(M)/ACT(M-Default 500)","BS",null,"GL","Closed","Not in FRS","Not in YTD GL",null,null,null,false,2533,{"$f":"IFERROR(INDEX('Prod COA'!B:B,MATCH('CHART OF ACCOUNTS'!T493,'Prod COA'!E:E,0)),INDEX('Prod COA'!B:B,MATCH('CHART OF ACCOUNTS'!T493,'Prod COA'!A:A,0)))","v":{"$error":"#N/A"}}]
[1,"Statement of Financial Position","20","Liabilities","250","Deferred capital contributions",2534,"FA DCC Accum.Amort. Provincial - Library","Assets (3) - CC(F-9150)/Fund(F-50)/WO(M)/ACT(M-Default 500)","BS",null,"GL","Closed","Not in FRS","Not in YTD GL",null,null,null,false,2534,{"$f":"IFERROR(INDEX('Prod COA'!B:B,MATCH('CHART OF ACCOUNTS'!T494,'Prod COA'!E:E,0)),INDEX('Prod COA'!B:B,MATCH('CHART OF ACCOUNTS'!T494,'Prod COA'!A:A,0)))","v":{"$error":"#N/A"}}]
[1,"Statement of Financial Position","20","Liabilities","250","Deferred capital contributions",2535,"FA DCC Accum.Amort. Provincial - Site Improvements","Assets (3) - CC(F-9150)/Fund(F-50)/WO(M)/ACT(M-Default 500)","BS",null,"GL","Closed","Not in FRS","Not in YTD GL",null,null,null,false,2535,{"$f":"IFERROR(INDEX('Prod COA'!B:B,MATCH('CHART OF ACCOUNTS'!T495,'Prod COA'!E:E,0)),INDEX('Prod COA'!B:B,MATCH('CHART OF ACCOUNTS'!T495,'Prod COA'!A:A,0)))","v":{"$error":"#N/A"}}]
[1,"Statement of Financial Position","20","Liabilities","250","Deferred capital contributions",2536,"FA DCC Accum.Amort. Provincial - Vehicles","Assets (3) - CC(F-9150)/Fund(F-50)/WO(M)/ACT(M-Default 500)","BS",null,"GL","Closed","Not in FRS","Not in YTD GL",null,null,null,false,2536,{"$f":"IFERROR(INDEX('Prod COA'!B:B,MATCH('CHART OF ACCOUNTS'!T496,'Prod COA'!E:E,0)),INDEX('Prod COA'!B:B,MATCH('CHART OF ACCOUNTS'!T496,'Prod COA'!A:A,0)))","v":{"$error":"#N/A"}}]
[1,"Statement of Financial Position","20","Liabilities","250","Deferred capital contributions",2537,"FA DCC Accum.Amort. Federal - TBD","Assets (3) - CC(F-9150)/Fund(F-50)/WO(M)/ACT(M-Default 500)","BS",null,"GL","Closed","Not in FRS","Not in YTD GL",null,null,null,false,2537,{"$f":"IFERROR(INDEX('Prod COA'!B:B,MATCH('CHART OF ACCOUNTS'!T497,'Prod COA'!E:E,0)),INDEX('Prod COA'!B:B,MATCH('CHART OF ACCOUNTS'!T497,'Prod COA'!A:A,0)))","v":{"$error":"#N/A"}}]
[1,"Statement of Financial Position","20","Liabilities","250","Deferred capital contributions",2540,"FA DCC Accum.Amort. Federal - Buildings","Assets (3) - CC(F-9150)/Fund(F-50)/WO(M)/ACT(M-Default 500)","BS",null,"GL","Closed","Not in FRS","Not in YTD GL",null,null,null,false,2540,{"$f":"IFERROR(INDEX('Prod COA'!B:B,MATCH('CHART OF ACCOUNTS'!T498,'Prod COA'!E:E,0)),INDEX('Prod COA'!B:B,MATCH('CHART OF ACCOUNTS'!T498,'Prod COA'!A:A,0)))","v":{"$error":"#N/A"}}]
[1,"Statement of Financial Position","20","Liabilities","250","Deferred capital contributions",2541,"FA DCC Accum.Amort. Federal - Computers and Software","Assets (3) - CC(F-9150)/Fund(F-50)/WO(M)/ACT(M-Default 500)","BS",null,"GL","Closed","Not in FRS","Not in YTD GL",null,null,null,false,2541,{"$f":"IFERROR(INDEX('Prod COA'!B:B,MATCH('CHART OF ACCOUNTS'!T499,'Prod COA'!E:E,0)),INDEX('Prod COA'!B:B,MATCH('CHART OF ACCOUNTS'!T499,'Prod COA'!A:A,0)))","v":{"$error":"#N/A"}}]
[1,"Statement of Financial Position","20","Liabilities","250","Deferred capital contributions",2542,"FA DCC Accum.Amort. Federal - Furniture and Equipment","Assets (3) - CC(F-9150)/Fund(F-50)/WO(M)/ACT(M-Default 500)","BS",null,"GL","Closed","Not in FRS","Not in YTD GL",null,null,null,false,2542,{"$f":"IFERROR(INDEX('Prod COA'!B:B,MATCH('CHART OF ACCOUNTS'!T500,'Prod COA'!E:E,0)),INDEX('Prod COA'!B:B,MATCH('CHART OF ACCOUNTS'!T500,'Prod COA'!A:A,0)))","v":{"$error":"#N/A"}}]
[1,"Statement of Financial Position","20","Liabilities","250","Deferred capital contributions",2543,"FA DCC Accum.Amort. Federal - Leasehold Improvements","Assets (3) - CC(F-9150)/Fund(F-50)/WO(M)/ACT(M-Default 500)","BS",null,"GL","Closed","Not in FRS","Not in YTD GL",null,null,null,false,2543,{"$f":"IFERROR(INDEX('Prod COA'!B:B,MATCH('CHART OF ACCOUNTS'!T501,'Prod COA'!E:E,0)),INDEX('Prod COA'!B:B,MATCH('CHART OF ACCOUNTS'!T501,'Prod COA'!A:A,0)))","v":{"$error":"#N/A"}}]
[1,"Statement of Financial Position","20","Liabilities","250","Deferred capital contributions",2544,"FA DCC Accum.Amort. Federal - Library","Assets (3) - CC(F-9150)/Fund(F-50)/WO(M)/ACT(M-Default 500)","BS",null,"GL","Closed","Not in FRS","Not in YTD GL",null,null,null,false,2544,{"$f":"IFERROR(INDEX('Prod COA'!B:B,MATCH('CHART OF ACCOUNTS'!T502,'Prod COA'!E:E,0)),INDEX('Prod COA'!B:B,MATCH('CHART OF ACCOUNTS'!T502,'Prod COA'!A:A,0)))","v":{"$error":"#N/A"}}]
[1,"Statement of Financial Position","20","Liabilities","250","Deferred capital contributions",2545,"FA DCC Accum.Amort. Federal - Site Improvements","Assets (3) - CC(F-9150)/Fund(F-50)/WO(M)/ACT(M-Default 500)","BS",null,"GL","Closed","Not in FRS","Not in YTD GL",null,null,null,false,2545,{"$f":"IFERROR(INDEX('Prod COA'!B:B,MATCH('CHART OF ACCOUNTS'!T503,'Prod COA'!E:E,0)),INDEX('Prod COA'!B:B,MATCH('CHART OF ACCOUNTS'!T503,'Prod COA'!A:A,0)))","v":{"$error":"#N/A"}}]
[1,"Statement of Financial Position","20","Liabilities","250","Deferred capital contributions",2546,"FA DCC Accum.Amort. Federal - Vehicles","Assets (3) - CC(F-9150)/Fund(F-50)/WO(M)/ACT(M-Default 500)","BS",null,"GL","Closed","Not in FRS","Not in YTD GL",null,null,null,false,2546,{"$f":"IFERROR(INDEX('Prod COA'!B:B,MATCH('CHART OF ACCOUNTS'!T504,'Prod COA'!E:E,0)),INDEX('Prod COA'!B:B,MATCH('CHART OF ACCOUNTS'!T504,'Prod COA'!A:A,0)))","v":{"$error":"#N/A"}}]
[1,"Statement of Financial Position","20","Liabilities","250","Deferred capital contributions",2550,"FA DCC Accum.Amort. Other - Buildings","Assets (3) - CC(F-9150)/Fund(F-50)/WO(M)/ACT(M-Default 500)","BS",null,"GL","Closed","Not in FRS","Not in YTD GL",null,null,null,false,2550,{"$f":"IFERROR(INDEX('Prod COA'!B:B,MATCH('CHART OF ACCOUNTS'!T505,'Prod COA'!E:E,0)),INDEX('Prod COA'!B:B,MATCH('CHART OF ACCOUNTS'!T505,'Prod COA'!A:A,0)))","v":{"$error":"#N/A"}}]
[1,"Statement of Financial Position","20","Liabilities","250","Deferred capital contributions",2551,"FA DCC Accum.Amort. Other - Computers and Software","Assets (3) - CC(F-9150)/Fund(F-50)/WO(M)/ACT(M-Default 500)","BS",null,"GL","Closed","Not in FRS","Not in YTD GL",null,null,null,{"$f":"T506=#REF!","v":{"$error":"#REF!"}},2551,{"$f":"IFERROR(INDEX('Prod COA'!B:B,MATCH('CHART OF ACCOUNTS'!T506,'Prod COA'!E:E,0)),INDEX('Prod COA'!B:B,MATCH('CHART OF ACCOUNTS'!T506,'Prod COA'!A:A,0)))","v":{"$error":"#N/A"}}]
[1,"Statement of Financial Position","20","Liabilities","250","Deferred capital contributions",2552,"FA DCC Accum.Amort. Other - Furniture and Equipment","Assets (3) - CC(F-9150)/Fund(F-50)/WO(M)/ACT(M-Default 500)","BS",null,"GL","Closed","Not in FRS","Not in YTD GL",null,null,null,{"$f":"T507=T506","v":false},2552,{"$f":"IFERROR(INDEX('Prod COA'!B:B,MATCH('CHART OF ACCOUNTS'!T507,'Prod COA'!E:E,0)),INDEX('Prod COA'!B:B,MATCH('CHART OF ACCOUNTS'!T507,'Prod COA'!A:A,0)))","v":{"$error":"#N/A"}}]
[1,"Statement of Financial Position","20","Liabilities","250","Deferred capital contributions",2553,"FA DCC Accum.Amort. Other - Leasehold Improvements","Assets (3) - CC(F-9150)/Fund(F-50)/WO(M)/ACT(M-Default 500)","BS",null,"GL","Closed","Not in FRS","Not in YTD GL",null,null,null,false,2553,{"$f":"IFERROR(INDEX('Prod COA'!B:B,MATCH('CHART OF ACCOUNTS'!T508,'Prod COA'!E:E,0)),INDEX('Prod COA'!B:B,MATCH('CHART OF ACCOUNTS'!T508,'Prod COA'!A:A,0)))","v":{"$error":"#N/A"}}]
[1,"Statement of Financial Position","20","Liabilities","250","Deferred capital contributions",2554,"FA DCC Accum.Amort. Other - Library","Assets (3) - CC(F-9150)/Fund(F-50)/WO(M)/ACT(M-Default 500)","BS",null,"GL","Closed","Not in FRS","Not in YTD GL",null,null,null,{"$f":"T509=#REF!","v":{"$error":"#REF!"}},2554,{"$f":"IFERROR(INDEX('Prod COA'!B:B,MATCH('CHART OF ACCOUNTS'!T509,'Prod COA'!E:E,0)),INDEX('Prod COA'!B:B,MATCH('CHART OF ACCOUNTS'!T509,'Prod COA'!A:A,0)))","v":{"$error":"#N/A"}}]
[1,"Statement of Financial Position","20","Liabilities","250","Deferred capital contributions",2555,"FA DCC Accum.Amort. Other - Site Improvements","Assets (3) - CC(F-9150)/Fund(F-50)/WO(M)/ACT(M-Default 500)","BS",null,"GL","Closed","Not in FRS","Not in YTD GL",null,null,null,false,2555,{"$f":"IFERROR(INDEX('Prod COA'!B:B,MATCH('CHART OF ACCOUNTS'!T510,'Prod COA'!E:E,0)),INDEX('Prod COA'!B:B,MATCH('CHART OF ACCOUNTS'!T510,'Prod COA'!A:A,0)))","v":{"$error":"#N/A"}}]
[1,"Statement of Financial Position","20","Liabilities","250","Deferred capital contributions",2556,"FA DCC Accum.Amort. Other - Vehicles","Assets (3) - CC(F-9150)/Fund(F-50)/WO(M)/ACT(M-Default 500)","BS",null,"GL","Closed","Not in FRS","Not in YTD GL",null,null,null,false,2556,{"$f":"IFERROR(INDEX('Prod COA'!B:B,MATCH('CHART OF ACCOUNTS'!T511,'Prod COA'!E:E,0)),INDEX('Prod COA'!B:B,MATCH('CHART OF ACCOUNTS'!T511,'Prod COA'!A:A,0)))","v":{"$error":"#N/A"}}]
[1,"Statement of Financial Position","20","Liabilities","250","Deferred capital contributions",2599,"FA Decrease SUSPENSE Account (Fixed Asset Management)","Assets (3) - CC(F-9150)/Fund(F-50)/WO(M)/ACT(M-Default 500)","BS",null,"GL","Closed","Not in FRS","Not in YTD GL",null,null,null,false,2599,{"$f":"IFERROR(INDEX('Prod COA'!B:B,MATCH('CHART OF ACCOUNTS'!T512,'Prod COA'!E:E,0)),INDEX('Prod COA'!B:B,MATCH('CHART OF ACCOUNTS'!T512,'Prod COA'!A:A,0)))","v":{"$error":"#N/A"}}]
[1,"Statement of Financial Position","30","Accumulated surplus","300","Equity/Accumulated surplus",3000,"Internally Restricted Surplus - Department Operations","Balance Sheet (2) - General CC(F-9000)/Fund(F-10)","BS","3000","GL","Closed","Not in FRS","Not in YTD GL",null,null,null,{"$f":"T513=#REF!","v":{"$error":"#REF!"}},3000,{"$f":"IFERROR(INDEX('Prod COA'!B:B,MATCH('CHART OF ACCOUNTS'!T513,'Prod COA'!E:E,0)),INDEX('Prod COA'!B:B,MATCH('CHART OF ACCOUNTS'!T513,'Prod COA'!A:A,0)))","v":{"$error":"#N/A"}}]
[1,"Statement of Financial Position","30","Accumulated surplus","300","Equity/Accumulated surplus",3010,"Internally Restricted Surplus - International Downturn Reserve","Balance Sheet (2) - General CC(F-9000)/Fund(F-10)","BS","3010","GL","Closed","Not in FRS","Not in YTD GL",null,null,null,false,3010,{"$f":"IFERROR(INDEX('Prod COA'!B:B,MATCH('CHART OF ACCOUNTS'!T514,'Prod COA'!E:E,0)),INDEX('Prod COA'!B:B,MATCH('CHART OF ACCOUNTS'!T514,'Prod COA'!A:A,0)))","v":{"$error":"#N/A"}}]
[1,"Statement of Financial Position","30","Accumulated surplus","300","Equity/Accumulated surplus",3070,"Unrestricted Statement of Remeasurement ","Balance Sheet (2) - General CC(F-9000)/Fund(F-10)","BS","3070","GL","Active","Not in FRS","Not in YTD GL",null,null,null,false,{"$f":"IF(LEN(G515)=4,G515,K515)*1","v":3070},{"$f":"IFERROR(INDEX('Prod COA'!B:B,MATCH('CHART OF ACCOUNTS'!T515,'Prod COA'!E:E,0)),INDEX('Prod COA'!B:B,MATCH('CHART OF ACCOUNTS'!T515,'Prod COA'!A:A,0)))","v":{"$error":"#N/A"}}]
[1,"Statement of Financial Position","30","Accumulated surplus","300","Equity/Accumulated surplus",3080,"Internally Restricted Net Assets  - Capital Reserve","Balance Sheet (2) - General CC(F-9000)/Fund(F-10)","BS",null,"GL","Closed","Not in FRS","Not in YTD GL",null,null,null,false,3080,{"$f":"IFERROR(INDEX('Prod COA'!B:B,MATCH('CHART OF ACCOUNTS'!T516,'Prod COA'!E:E,0)),INDEX('Prod COA'!B:B,MATCH('CHART OF ACCOUNTS'!T516,'Prod COA'!A:A,0)))","v":{"$error":"#N/A"}}]
[1,"Statement of Financial Position","30","Accumulated surplus","300","Equity/Accumulated surplus",3993,"Op. Bal. Clearing - Bank","Balance Sheet (2) - General CC(F-9000)/Fund(F-10)","BS","3993","GL","Active","Not in FRS","Not in YTD GL",null,null,null,false,3993,{"$f":"IFERROR(INDEX('Prod COA'!B:B,MATCH('CHART OF ACCOUNTS'!T517,'Prod COA'!E:E,0)),INDEX('Prod COA'!B:B,MATCH('CHART OF ACCOUNTS'!T517,'Prod COA'!A:A,0)))","v":{"$error":"#N/A"}}]
[1,"Statement of Financial Position","30","Accumulated surplus","300","Equity/Accumulated surplus",3994,"Op. Bal. - Cashbook","Balance Sheet (2) - General CC(F-9000)/Fund(F-10)","BS","3994","GL","Active","Not in FRS","Not in YTD GL",null,null,null,false,3994,{"$f":"IFERROR(INDEX('Prod COA'!B:B,MATCH('CHART OF ACCOUNTS'!T518,'Prod COA'!E:E,0)),INDEX('Prod COA'!B:B,MATCH('CHART OF ACCOUNTS'!T518,'Prod COA'!A:A,0)))","v":{"$error":"#N/A"}}]
[1,"Statement of Financial Position","30","Accumulated surplus","300","Equity/Accumulated surplus",3995,"Op. Bal. Clearing - AR","Balance Sheet (2) - General CC(F-9000)/Fund(F-10)","BS","3995","GL","Active","Not in FRS","Not in YTD GL",null,null,null,false,3995,{"$f":"IFERROR(INDEX('Prod COA'!B:B,MATCH('CHART OF ACCOUNTS'!T519,'Prod COA'!E:E,0)),INDEX('Prod COA'!B:B,MATCH('CHART OF ACCOUNTS'!T519,'Prod COA'!A:A,0)))","v":{"$error":"#N/A"}}]
[1,"Statement of Financial Position","30","Accumulated surplus","300","Equity/Accumulated surplus",3996,"Op. Bal. Clearing – AP","Balance Sheet (2) - General CC(F-9000)/Fund(F-10)","BS","3996","GL","Active","Not in FRS","Not in YTD GL",null,null,null,false,3996,{"$f":"IFERROR(INDEX('Prod COA'!B:B,MATCH('CHART OF ACCOUNTS'!T520,'Prod COA'!E:E,0)),INDEX('Prod COA'!B:B,MATCH('CHART OF ACCOUNTS'!T520,'Prod COA'!A:A,0)))","v":{"$error":"#N/A"}}]
[1,"Statement of Financial Position","30","Accumulated surplus","300","Equity/Accumulated surplus",3997,"Op. Bal. Clearing - Income Statement Clearing (TEST ONLY)","Balance Sheet (2) - General CC(F-9000)/Fund(F-10)","BS","3997","GL","Active","Not in FRS","Not in YTD GL",null,null,null,false,3997,{"$f":"IFERROR(INDEX('Prod COA'!B:B,MATCH('CHART OF ACCOUNTS'!T521,'Prod COA'!E:E,0)),INDEX('Prod COA'!B:B,MATCH('CHART OF ACCOUNTS'!T521,'Prod COA'!A:A,0)))","v":{"$error":"#N/A"}}]
[1,"Statement of Financial Position","30","Accumulated surplus","300","Equity/Accumulated surplus",3998,"Op. Bal. Clearing – Balance Sheet Other (TEST ONLY)","Balance Sheet (2) - General CC(F-9000)/Fund(F-10)","BS","3998","GL","Active","Not in FRS","Not in YTD GL",null,null,null,false,3998,{"$f":"IFERROR(INDEX('Prod COA'!B:B,MATCH('CHART OF ACCOUNTS'!T522,'Prod COA'!E:E,0)),INDEX('Prod COA'!B:B,MATCH('CHART OF ACCOUNTS'!T522,'Prod COA'!A:A,0)))","v":{"$error":"#N/A"}}]
[1,"Statement of Financial Position","30","Accumulated surplus","300","Equity/Accumulated surplus",3999,"Op. Bal. Clearing - SLED","Balance Sheet (2) - General CC(F-9000)/Fund(F-10)","BS","3990","GL","Active","Not in FRS","Not in YTD GL",null,null,null,false,3999,{"$f":"IFERROR(INDEX('Prod COA'!B:B,MATCH('CHART OF ACCOUNTS'!T523,'Prod COA'!E:E,0)),INDEX('Prod COA'!B:B,MATCH('CHART OF ACCOUNTS'!T523,'Prod COA'!A:A,0)))","v":{"$error":"#N/A"}}]
[2,"Statement of Operations","40","Revenue","400","Province of British Columbia grants",4030,"Province of BC - COA Funds (Operating/Non Capital)","Grants (15) - CC(F-Cat4)/Fund(F-VM)/WO(M)/ACT(M)/G(M)","IS","4030","GL","Closed","Not in FRS","Not in YTD GL",null,null,null,false,4030,{"$f":"IFERROR(INDEX('Prod COA'!B:B,MATCH('CHART OF ACCOUNTS'!T524,'Prod COA'!E:E,0)),INDEX('Prod COA'!B:B,MATCH('CHART OF ACCOUNTS'!T524,'Prod COA'!A:A,0)))","v":{"$error":"#N/A"}}]
[2,"Statement of Operations","40","Revenue","420","Other grants and contracts",4200,"Other Govt Grants and Contracts - Municipalities, SD's, Post Secondary Institutions","Grants (15) - CC(F-Cat4)/Fund(F-VM)/WO(M)/ACT(M)/G(M)","IS","4200","GL","Active","Not in FRS","Not in YTD GL",null,null,null,false,4200,{"$f":"IFERROR(INDEX('Prod COA'!B:B,MATCH('CHART OF ACCOUNTS'!T525,'Prod COA'!E:E,0)),INDEX('Prod COA'!B:B,MATCH('CHART OF ACCOUNTS'!T525,'Prod COA'!A:A,0)))","v":{"$error":"#N/A"}}]
[2,"Statement of Operations","40","Revenue","420","Other grants and contracts",4201,"Grants and Contracts - Indivduals","Grants (15) - CC(F-Cat4)/Fund(F-VM)/WO(M)/ACT(M)/G(M)","IS",null,"GL","Closed","Not in FRS","Not in YTD GL",null,null,null,false,4201,{"$f":"IFERROR(INDEX('Prod COA'!B:B,MATCH('CHART OF ACCOUNTS'!T526,'Prod COA'!E:E,0)),INDEX('Prod COA'!B:B,MATCH('CHART OF ACCOUNTS'!T526,'Prod COA'!A:A,0)))","v":{"$error":"#N/A"}}]
[2,"Statement of Operations","40","Revenue","420","Other grants and contracts",4202,"Grants and Contracts - Not For Profits","Grants (15) - CC(F-Cat4)/Fund(F-VM)/WO(M)/ACT(M)/G(M)","IS",null,"GL","Closed","Not in FRS","Not in YTD GL",null,null,null,false,4202,{"$f":"IFERROR(INDEX('Prod COA'!B:B,MATCH('CHART OF ACCOUNTS'!T527,'Prod COA'!E:E,0)),INDEX('Prod COA'!B:B,MATCH('CHART OF ACCOUNTS'!T527,'Prod COA'!A:A,0)))","v":{"$error":"#N/A"}}]
[2,"Statement of Operations","40","Revenue","420","Other grants and contracts",4203,"Grants and Contracts - Indigenous Organizations","Grants (15) - CC(F-Cat4)/Fund(F-VM)/WO(M)/ACT(M)/G(M)","IS",null,"GL","Closed","Not in FRS","Not in YTD GL",null,null,null,false,4203,{"$f":"IFERROR(INDEX('Prod COA'!B:B,MATCH('CHART OF ACCOUNTS'!T528,'Prod COA'!E:E,0)),INDEX('Prod COA'!B:B,MATCH('CHART OF ACCOUNTS'!T528,'Prod COA'!A:A,0)))","v":{"$error":"#N/A"}}]
[2,"Statement of Operations","40","Revenue","420","Other grants and contracts",4220,"Other Govt Grants and Contracts - Municialities, SD's, Post Secondary Institutions","Grants (15) - CC(F-Cat4)/Fund(F-VM)/WO(M)/ACT(M)/G(M)","IS",null,"GL","Closed","Not in FRS","Not in YTD GL",null,null,null,false,4220,{"$f":"IFERROR(INDEX('Prod COA'!B:B,MATCH('CHART OF ACCOUNTS'!T529,'Prod COA'!E:E,0)),INDEX('Prod COA'!B:B,MATCH('CHART OF ACCOUNTS'!T529,'Prod COA'!A:A,0)))","v":{"$error":"#N/A"}}]
[2,"Statement of Operations","40","Revenue","420","Other grants and contracts",4260,"Grants and Contracts - Individuals","Grants (15) - CC(F-Cat4)/Fund(F-VM)/WO(M)/ACT(M)/G(M)","IS","4260","GL","Active","Not in FRS","Not in YTD GL",null,null,null,false,4260,{"$f":"IFERROR(INDEX('Prod COA'!B:B,MATCH('CHART OF ACCOUNTS'!T530,'Prod COA'!E:E,0)),INDEX('Prod COA'!B:B,MATCH('CHART OF ACCOUNTS'!T530,'Prod COA'!A:A,0)))","v":{"$error":"#N/A"}}]
[2,"Statement of Operations","40","Revenue","420","Other grants and contracts",4280,"Grants and Contracts - Indigenous Organizations","Grants (15) - CC(F-Cat4)/Fund(F-VM)/WO(M)/ACT(M)/G(M)","IS","4280","GL","Closed","Not in FRS","Not in YTD GL",null,null,null,false,4280,{"$f":"IFERROR(INDEX('Prod COA'!B:B,MATCH('CHART OF ACCOUNTS'!T531,'Prod COA'!E:E,0)),INDEX('Prod COA'!B:B,MATCH('CHART OF ACCOUNTS'!T531,'Prod COA'!A:A,0)))","v":{"$error":"#N/A"}}]
[2,"Statement of Operations","40","Revenue","420","Other grants and contracts",4299,"Grant Transfer","Grants (15) - CC(F-Cat4)/Fund(F-VM)/WO(M)/ACT(M)/G(M)","IS","4299","GL","Closed","Not in FRS","Not in YTD GL",null,null,null,false,4299,{"$f":"IFERROR(INDEX('Prod COA'!B:B,MATCH('CHART OF ACCOUNTS'!T532,'Prod COA'!E:E,0)),INDEX('Prod COA'!B:B,MATCH('CHART OF ACCOUNTS'!T532,'Prod COA'!A:A,0)))","v":{"$error":"#N/A"}}]
[2,"Statement of Operations","40","Revenue","430","Tuition and student fees",4305,"Domestic Distributed - TBD","Distributed Tuition (5) - CC(F-Cat4)/Fund(F-VM)/WO(M)/Act(M)","IS",null,"GL","Closed","Not in FRS","Not in YTD GL",null,null,null,false,4305,{"$f":"IFERROR(INDEX('Prod COA'!B:B,MATCH('CHART OF ACCOUNTS'!T533,'Prod COA'!E:E,0)),INDEX('Prod COA'!B:B,MATCH('CHART OF ACCOUNTS'!T533,'Prod COA'!A:A,0)))","v":{"$error":"#N/A"}}]
[2,"Statement of Operations","40","Revenue","430","Tuition and student fees",4331,"International Distributed - ESL","Distributed Tuition (5) - CC(F-Cat4)/Fund(F-VM)/WO(M)/Act(M)","IS","4331","GL","Active","Not in FRS","Not in YTD GL",null,null,null,false,4331,{"$f":"IFERROR(INDEX('Prod COA'!B:B,MATCH('CHART OF ACCOUNTS'!T534,'Prod COA'!E:E,0)),INDEX('Prod COA'!B:B,MATCH('CHART OF ACCOUNTS'!T534,'Prod COA'!A:A,0)))","v":{"$error":"#N/A"}}]
[2,"Statement of Operations","40","Revenue","430","Tuition and student fees",4332,"International Distributed - Vocational (Trade)","Distributed Tuition (5) - CC(F-Cat4)/Fund(F-VM)/WO(M)/Act(M)","IS","4332","GL","Active","Not in FRS","Not in YTD GL",null,null,null,false,4332,{"$f":"IFERROR(INDEX('Prod COA'!B:B,MATCH('CHART OF ACCOUNTS'!T535,'Prod COA'!E:E,0)),INDEX('Prod COA'!B:B,MATCH('CHART OF ACCOUNTS'!T535,'Prod COA'!A:A,0)))","v":{"$error":"#N/A"}}]
[2,"Statement of Operations","40","Revenue","430","Tuition and student fees",4333,"International Distributed - CE General Interest","Distributed Tuition (5) - CC(F-Cat4)/Fund(F-VM)/WO(M)/Act(M)","IS","4333","GL","Active","Not in FRS","Not in YTD GL",null,null,null,false,4333,{"$f":"IFERROR(INDEX('Prod COA'!B:B,MATCH('CHART OF ACCOUNTS'!T536,'Prod COA'!E:E,0)),INDEX('Prod COA'!B:B,MATCH('CHART OF ACCOUNTS'!T536,'Prod COA'!A:A,0)))","v":{"$error":"#N/A"}}]
[2,"Statement of Operations","40","Revenue","430","Tuition and student fees",4334,"International Distributed - ABE","Distributed Tuition (5) - CC(F-Cat4)/Fund(F-VM)/WO(M)/Act(M)","IS","4334","GL","Active","Not in FRS","Not in YTD GL",null,null,null,false,4334,{"$f":"IFERROR(INDEX('Prod COA'!B:B,MATCH('CHART OF ACCOUNTS'!T537,'Prod COA'!E:E,0)),INDEX('Prod COA'!B:B,MATCH('CHART OF ACCOUNTS'!T537,'Prod COA'!A:A,0)))","v":{"$error":"#N/A"}}]
[2,"Statement of Operations","40","Revenue","430","Tuition and student fees",4335,"International Distributed - TBD","Distributed Tuition (5) - CC(F-Cat4)/Fund(F-VM)/WO(M)/Act(M)","IS",null,"GL","Closed","Not in FRS","Not in YTD GL",null,null,null,false,4335,{"$f":"IFERROR(INDEX('Prod COA'!B:B,MATCH('CHART OF ACCOUNTS'!T538,'Prod COA'!E:E,0)),INDEX('Prod COA'!B:B,MATCH('CHART OF ACCOUNTS'!T538,'Prod COA'!A:A,0)))","v":{"$error":"#N/A"}}]
[2,"Statement of Operations","40","Revenue","430","Tuition and student fees",4351,"Other Student Fees Distributed - International Lab Fees","Distributed Tuition (5) - CC(F-Cat4)/Fund(F-VM)/WO(M)/Act(M)","IS","4351","GL","Active","Not in FRS","Not in YTD GL",null,null,null,false,4351,{"$f":"IFERROR(INDEX('Prod COA'!B:B,MATCH('CHART OF ACCOUNTS'!T539,'Prod COA'!E:E,0)),INDEX('Prod COA'!B:B,MATCH('CHART OF ACCOUNTS'!T539,'Prod COA'!A:A,0)))","v":{"$error":"#N/A"}}]
[2,"Statement of Operations","40","Revenue","430","Tuition and student fees",4353,"Other Student Fees Distributed - International Student Activity Fee","Distributed Tuition (5) - CC(F-Cat4)/Fund(F-VM)/WO(M)/Act(M)","IS","4353","GL","Active","Not in FRS","Not in YTD GL",null,null,null,false,4353,{"$f":"IFERROR(INDEX('Prod COA'!B:B,MATCH('CHART OF ACCOUNTS'!T540,'Prod COA'!E:E,0)),INDEX('Prod COA'!B:B,MATCH('CHART OF ACCOUNTS'!T540,'Prod COA'!A:A,0)))","v":{"$error":"#N/A"}}]
[2,"Statement of Operations","40","Revenue","430","Tuition and student fees",4355,"Other Student Fees Distributed - International Student Services Fee","Distributed Tuition (5) - CC(F-Cat4)/Fund(F-VM)/WO(M)/Act(M)","IS","4355","GL","Active","Not in FRS","Not in YTD GL",null,null,null,false,4355,{"$f":"IFERROR(INDEX('Prod COA'!B:B,MATCH('CHART OF ACCOUNTS'!T541,'Prod COA'!E:E,0)),INDEX('Prod COA'!B:B,MATCH('CHART OF ACCOUNTS'!T541,'Prod COA'!A:A,0)))","v":{"$error":"#N/A"}}]
[2,"Statement of Operations","40","Revenue","430","Tuition and student fees",4356,"Other Student Fees Distributed - TBD","Distributed Tuition (5) - CC(F-Cat4)/Fund(F-VM)/WO(M)/Act(M)","IS",null,"GL","Closed","Not in FRS","Not in YTD GL",null,null,null,false,4356,{"$f":"IFERROR(INDEX('Prod COA'!B:B,MATCH('CHART OF ACCOUNTS'!T542,'Prod COA'!E:E,0)),INDEX('Prod COA'!B:B,MATCH('CHART OF ACCOUNTS'!T542,'Prod COA'!A:A,0)))","v":{"$error":"#N/A"}}]
[2,"Statement of Operations","40","Revenue","430","Tuition and student fees",4357,"Other Student Fees Distributed - TBD","Distributed Tuition (5) - CC(F-Cat4)/Fund(F-VM)/WO(M)/Act(M)","IS",null,"GL","Closed","Not in FRS","Not in YTD GL",null,null,null,false,4357,{"$f":"IFERROR(INDEX('Prod COA'!B:B,MATCH('CHART OF ACCOUNTS'!T543,'Prod COA'!E:E,0)),INDEX('Prod COA'!B:B,MATCH('CHART OF ACCOUNTS'!T543,'Prod COA'!A:A,0)))","v":{"$error":"#N/A"}}]
[2,"Statement of Operations","40","Revenue","430","Tuition and student fees",4361,"Other Student Fees - Domestic Application Fees","Distributed Tuition (5) - CC(F-Cat4)/Fund(F-VM)/WO(M)/Act(M)","IS","4361","GL","Active","Not in FRS","Not in YTD GL",null,null,null,false,4361,{"$f":"IFERROR(INDEX('Prod COA'!B:B,MATCH('CHART OF ACCOUNTS'!T544,'Prod COA'!E:E,0)),INDEX('Prod COA'!B:B,MATCH('CHART OF ACCOUNTS'!T544,'Prod COA'!A:A,0)))","v":{"$error":"#N/A"}}]
[2,"Statement of Operations","40","Revenue","430","Tuition and student fees",4362,"Other Student Fees - International Application Fees","Distributed Tuition (5) - CC(F-Cat4)/Fund(F-VM)/WO(M)/Act(M)","IS","4362","GL","Active","Not in FRS","Not in YTD GL",null,null,null,false,4362,{"$f":"IFERROR(INDEX('Prod COA'!B:B,MATCH('CHART OF ACCOUNTS'!T545,'Prod COA'!E:E,0)),INDEX('Prod COA'!B:B,MATCH('CHART OF ACCOUNTS'!T545,'Prod COA'!A:A,0)))","v":{"$error":"#N/A"}}]
[2,"Statement of Operations","40","Revenue","430","Tuition and student fees",4368,"Other Student Fees - Late Fees","General Rev and Exp (7) - CC(F-Cat4)/Fund(F-VM)/WO(M)/ACT(M)","IS","4368","GL","Active","Not in FRS","Not in YTD GL",null,null,null,false,4368,{"$f":"IFERROR(INDEX('Prod COA'!B:B,MATCH('CHART OF ACCOUNTS'!T546,'Prod COA'!E:E,0)),INDEX('Prod COA'!B:B,MATCH('CHART OF ACCOUNTS'!T546,'Prod COA'!A:A,0)))","v":{"$error":"#N/A"}}]
[2,"Statement of Operations","40","Revenue","430","Tuition and student fees",4369,"Other Student Fees - Replacement Cheque","General Rev and Exp (7) - CC(F-Cat4)/Fund(F-VM)/WO(M)/ACT(M)","IS","4369","GL","Active","Not in FRS","Not in YTD GL",null,null,null,false,4369,{"$f":"IFERROR(INDEX('Prod COA'!B:B,MATCH('CHART OF ACCOUNTS'!T547,'Prod COA'!E:E,0)),INDEX('Prod COA'!B:B,MATCH('CHART OF ACCOUNTS'!T547,'Prod COA'!A:A,0)))","v":{"$error":"#N/A"}}]
[2,"Statement of Operations","40","Revenue","430","Tuition and student fees",4370,"Other Student Fees - Homestay Fees","General Rev and Exp (7) - CC(F-Cat4)/Fund(F-VM)/WO(M)/ACT(M)","IS","4370","GL","Active","Not in FRS","Not in YTD GL",null,null,null,{"$f":"T548=#REF!","v":{"$error":"#REF!"}},4370,{"$f":"IFERROR(INDEX('Prod COA'!B:B,MATCH('CHART OF ACCOUNTS'!T548,'Prod COA'!E:E,0)),INDEX('Prod COA'!B:B,MATCH('CHART OF ACCOUNTS'!T548,'Prod COA'!A:A,0)))","v":{"$error":"#N/A"}}]
[2,"Statement of Operations","40","Revenue","430","Tuition and student fees",4371,"Other Student Fees - Transcript Fees","General Rev and Exp (7) - CC(F-Cat4)/Fund(F-VM)/WO(M)/ACT(M)","IS","4371","GL","Active","Not in FRS","Not in YTD GL",null,null,null,false,4371,{"$f":"IFERROR(INDEX('Prod COA'!B:B,MATCH('CHART OF ACCOUNTS'!T549,'Prod COA'!E:E,0)),INDEX('Prod COA'!B:B,MATCH('CHART OF ACCOUNTS'!T549,'Prod COA'!A:A,0)))","v":{"$error":"#N/A"}}]
[2,"Statement of Operations","40","Revenue","440","Sales of goods and services",4410,"Conferences and Seminars","General Rev and Exp (7) - CC(F-Cat4)/Fund(F-VM)/WO(M)/ACT(M)","IS","4410","GL","Active","Not in FRS","Not in YTD GL",null,null,null,false,4410,{"$f":"IFERROR(INDEX('Prod COA'!B:B,MATCH('CHART OF ACCOUNTS'!T550,'Prod COA'!E:E,0)),INDEX('Prod COA'!B:B,MATCH('CHART OF ACCOUNTS'!T550,'Prod COA'!A:A,0)))","v":{"$error":"#N/A"}}]
[2,"Statement of Operations","40","Revenue","440","Sales of goods and services",4440,"TBD","General Rev and Exp (7) - CC(F-Cat4)/Fund(F-VM)/WO(M)/ACT(M)","IS",null,"GL","Closed","Not in FRS","Not in YTD GL",null,null,null,false,4440,{"$f":"IFERROR(INDEX('Prod COA'!B:B,MATCH('CHART OF ACCOUNTS'!T551,'Prod COA'!E:E,0)),INDEX('Prod COA'!B:B,MATCH('CHART OF ACCOUNTS'!T551,'Prod COA'!A:A,0)))","v":{"$error":"#N/A"}}]
[2,"Statement of Operations","40","Revenue","450","Rental income",4500,"Rental Income","General Rev and Exp (7) - CC(F-Cat4)/Fund(F-VM)/WO(M)/ACT(M)","IS","4500","GL","Active","Not in FRS","Not in YTD GL",null,null,null,false,4500,{"$f":"IFERROR(INDEX('Prod COA'!B:B,MATCH('CHART OF ACCOUNTS'!T552,'Prod COA'!E:E,0)),INDEX('Prod COA'!B:B,MATCH('CHART OF ACCOUNTS'!T552,'Prod COA'!A:A,0)))","v":{"$error":"#N/A"}}]
[2,"Statement of Operations","40","Revenue","470","Gifts, grants and bequests",4702,"Bequests","General Rev and Exp (7) - CC(F-Cat4)/Fund(F-VM)/WO(M)/ACT(M)","IS","4702","GL","Active","Not in FRS","Not in YTD GL",null,null,null,false,4702,{"$f":"IFERROR(INDEX('Prod COA'!B:B,MATCH('CHART OF ACCOUNTS'!T553,'Prod COA'!E:E,0)),INDEX('Prod COA'!B:B,MATCH('CHART OF ACCOUNTS'!T553,'Prod COA'!A:A,0)))","v":{"$error":"#N/A"}}]
[2,"Statement of Operations","40","Revenue","480","Gain (Loss) on investments",4802,"Foreign Exchange Gain (Loss)","General Rev and Exp (7) - CC(F-Cat4)/Fund(F-VM)/WO(M)/ACT(M)","IS","4802","GL","Active","Not in FRS","Not in YTD GL",null,null,null,{"$f":"T554=T553","v":false},4802,{"$f":"IFERROR(INDEX('Prod COA'!B:B,MATCH('CHART OF ACCOUNTS'!T554,'Prod COA'!E:E,0)),INDEX('Prod COA'!B:B,MATCH('CHART OF ACCOUNTS'!T554,'Prod COA'!A:A,0)))","v":{"$error":"#N/A"}}]
[2,"Statement of Operations","40","Revenue","490","Other revenue",4901,"Other Revenue - Sales Discounts","General Rev and Exp (7) - CC(F-Cat4)/Fund(F-VM)/WO(M)/ACT(M)","IS","4900","GL","Active","Not in FRS","Not in YTD GL",null,null,null,false,4901,{"$f":"IFERROR(INDEX('Prod COA'!B:B,MATCH('CHART OF ACCOUNTS'!T555,'Prod COA'!E:E,0)),INDEX('Prod COA'!B:B,MATCH('CHART OF ACCOUNTS'!T555,'Prod COA'!A:A,0)))","v":{"$error":"#N/A"}}]
[2,"Statement of Operations","50","Expenses","500","Salaries and benefits",5001,"ADMIN - Overtime / Other","Salaries (4) - CC(F-Cat4)/Fund(F-VM)/RESNO(M)/WO(M)/ACT(M)/AT(M)","IS","5001","GL","Active","Not in FRS","Not in YTD GL",null,null,null,{"$f":"T556=#REF!","v":{"$error":"#REF!"}},5001,{"$f":"IFERROR(INDEX('Prod COA'!B:B,MATCH('CHART OF ACCOUNTS'!T556,'Prod COA'!E:E,0)),INDEX('Prod COA'!B:B,MATCH('CHART OF ACCOUNTS'!T556,'Prod COA'!A:A,0)))","v":{"$error":"#N/A"}}]
[2,"Statement of Operations","50","Expenses","500","Salaries and benefits",5002,"ADMIN - Stipend","Salaries (4) - CC(F-Cat4)/Fund(F-VM)/RESNO(M)/WO(M)/ACT(M)/AT(M)","IS","5002","GL","Active","Not in FRS","Not in YTD GL",null,null,null,false,5002,{"$f":"IFERROR(INDEX('Prod COA'!B:B,MATCH('CHART OF ACCOUNTS'!T557,'Prod COA'!E:E,0)),INDEX('Prod COA'!B:B,MATCH('CHART OF ACCOUNTS'!T557,'Prod COA'!A:A,0)))","v":{"$error":"#N/A"}}]
[2,"Statement of Operations","50","Expenses","500","Salaries and benefits",5003,"ADMIN - Allowance","Salaries (4) - CC(F-Cat4)/Fund(F-VM)/RESNO(M)/WO(M)/ACT(M)/AT(M)","IS","5003","GL","Active","Not in FRS","Not in YTD GL",null,null,null,false,5003,{"$f":"IFERROR(INDEX('Prod COA'!B:B,MATCH('CHART OF ACCOUNTS'!T558,'Prod COA'!E:E,0)),INDEX('Prod COA'!B:B,MATCH('CHART OF ACCOUNTS'!T558,'Prod COA'!A:A,0)))","v":{"$error":"#N/A"}}]
[2,"Statement of Operations","50","Expenses","500","Salaries and benefits",5010,"ADMIN - Vacation Accrual","Salaries (4) - CC(F-Cat4)/Fund(F-VM)/RESNO(M)/WO(M)/ACT(M)/AT(M)","IS","5010","GL","Active","Not in FRS","Not in YTD GL",null,null,null,false,5010,{"$f":"IFERROR(INDEX('Prod COA'!B:B,MATCH('CHART OF ACCOUNTS'!T559,'Prod COA'!E:E,0)),INDEX('Prod COA'!B:B,MATCH('CHART OF ACCOUNTS'!T559,'Prod COA'!A:A,0)))","v":{"$error":"#N/A"}}]
[2,"Statement of Operations","50","Expenses","500","Salaries and benefits",5011,"ADMIN - Vacation paid in lieu","Salaries (4) - CC(F-Cat4)/Fund(F-VM)/RESNO(M)/WO(M)/ACT(M)/AT(M)","IS","5011","GL","Active","Not in FRS","Not in YTD GL",null,null,null,{"$f":"T560=#REF!","v":{"$error":"#REF!"}},5011,{"$f":"IFERROR(INDEX('Prod COA'!B:B,MATCH('CHART OF ACCOUNTS'!T560,'Prod COA'!E:E,0)),INDEX('Prod COA'!B:B,MATCH('CHART OF ACCOUNTS'!T560,'Prod COA'!A:A,0)))","v":{"$error":"#N/A"}}]
[2,"Statement of Operations","50","Expenses","500","Salaries and benefits",5020,"ADMIN - Professional Development","Salaries (4) - CC(F-Cat4)/Fund(F-VM)/RESNO(M)/WO(M)/ACT(M)/AT(M)","IS","5020","GL","Active","Not in FRS","Not in YTD GL",null,null,null,false,5020,{"$f":"IFERROR(INDEX('Prod COA'!B:B,MATCH('CHART OF ACCOUNTS'!T561,'Prod COA'!E:E,0)),INDEX('Prod COA'!B:B,MATCH('CHART OF ACCOUNTS'!T561,'Prod COA'!A:A,0)))","v":{"$error":"#N/A"}}]
[2,"Statement of Operations","50","Expenses","500","Salaries and benefits",5103,"BCGEU - Allowance","Salaries (4) - CC(F-Cat4)/Fund(F-VM)/RESNO(M)/WO(M)/ACT(M)/AT(M)","IS","5103","GL","Active","Not in FRS","Not in YTD GL",null,null,null,false,5103,{"$f":"IFERROR(INDEX('Prod COA'!B:B,MATCH('CHART OF ACCOUNTS'!T562,'Prod COA'!E:E,0)),INDEX('Prod COA'!B:B,MATCH('CHART OF ACCOUNTS'!T562,'Prod COA'!A:A,0)))","v":{"$error":"#N/A"}}]
[2,"Statement of Operations","50","Expenses","500","Salaries and benefits",5110,"BCGEU - Vacation Accrual","Salaries (4) - CC(F-Cat4)/Fund(F-VM)/RESNO(M)/WO(M)/ACT(M)/AT(M)","IS","5110","GL","Active","Not in FRS","Not in YTD GL",null,null,null,false,5110,{"$f":"IFERROR(INDEX('Prod COA'!B:B,MATCH('CHART OF ACCOUNTS'!T563,'Prod COA'!E:E,0)),INDEX('Prod COA'!B:B,MATCH('CHART OF ACCOUNTS'!T563,'Prod COA'!A:A,0)))","v":{"$error":"#N/A"}}]
[2,"Statement of Operations","50","Expenses","500","Salaries and benefits",5111,"BCGEU - Vacation paid in lieu","Salaries (4) - CC(F-Cat4)/Fund(F-VM)/RESNO(M)/WO(M)/ACT(M)/AT(M)","IS","5111","GL","Active","Not in FRS","Not in YTD GL",null,null,null,false,5111,{"$f":"IFERROR(INDEX('Prod COA'!B:B,MATCH('CHART OF ACCOUNTS'!T564,'Prod COA'!E:E,0)),INDEX('Prod COA'!B:B,MATCH('CHART OF ACCOUNTS'!T564,'Prod COA'!A:A,0)))","v":{"$error":"#N/A"}}]
[2,"Statement of Operations","50","Expenses","500","Salaries and benefits",5202,"CUPE - Stipend","Salaries (4) - CC(F-Cat4)/Fund(F-VM)/RESNO(M)/WO(M)/ACT(M)/AT(M)","IS","5202","GL","Active","Not in FRS","Not in YTD GL",null,null,null,false,5202,{"$f":"IFERROR(INDEX('Prod COA'!B:B,MATCH('CHART OF ACCOUNTS'!T565,'Prod COA'!E:E,0)),INDEX('Prod COA'!B:B,MATCH('CHART OF ACCOUNTS'!T565,'Prod COA'!A:A,0)))","v":{"$error":"#N/A"}}]
[2,"Statement of Operations","50","Expenses","500","Salaries and benefits",5210,"CUPE - Vacation Accrual","Salaries (4) - CC(F-Cat4)/Fund(F-VM)/RESNO(M)/WO(M)/ACT(M)/AT(M)","IS","5210","GL","Active","Not in FRS","Not in YTD GL",null,null,null,false,5210,{"$f":"IFERROR(INDEX('Prod COA'!B:B,MATCH('CHART OF ACCOUNTS'!T566,'Prod COA'!E:E,0)),INDEX('Prod COA'!B:B,MATCH('CHART OF ACCOUNTS'!T566,'Prod COA'!A:A,0)))","v":{"$error":"#N/A"}}]
[2,"Statement of Operations","50","Expenses","500","Salaries and benefits",5211,"CUPE - Vacation paid in lieu","Salaries (4) - CC(F-Cat4)/Fund(F-VM)/RESNO(M)/WO(M)/ACT(M)/AT(M)","IS","5211","GL","Active","Not in FRS","Not in YTD GL",null,null,null,false,5211,{"$f":"IFERROR(INDEX('Prod COA'!B:B,MATCH('CHART OF ACCOUNTS'!T567,'Prod COA'!E:E,0)),INDEX('Prod COA'!B:B,MATCH('CHART OF ACCOUNTS'!T567,'Prod COA'!A:A,0)))","v":{"$error":"#N/A"}}]
[2,"Statement of Operations","50","Expenses","500","Salaries and benefits",5220,"CUPE - Contractual Professional Development","Salaries (4) - CC(F-Cat4)/Fund(F-VM)/RESNO(M)/WO(M)/ACT(M)/AT(M)","IS","5220","GL","Active","Not in FRS","Not in YTD GL",null,null,null,false,5220,{"$f":"IFERROR(INDEX('Prod COA'!B:B,MATCH('CHART OF ACCOUNTS'!T568,'Prod COA'!E:E,0)),INDEX('Prod COA'!B:B,MATCH('CHART OF ACCOUNTS'!T568,'Prod COA'!A:A,0)))","v":{"$error":"#N/A"}}]
[2,"Statement of Operations","50","Expenses","500","Salaries and benefits",5303,"VIUFA - Allowance","Salaries (4) - CC(F-Cat4)/Fund(F-VM)/RESNO(M)/WO(M)/ACT(M)/AT(M)","IS","5303","GL","Active","Not in FRS","Not in YTD GL",null,null,null,false,5303,{"$f":"IFERROR(INDEX('Prod COA'!B:B,MATCH('CHART OF ACCOUNTS'!T569,'Prod COA'!E:E,0)),INDEX('Prod COA'!B:B,MATCH('CHART OF ACCOUNTS'!T569,'Prod COA'!A:A,0)))","v":{"$error":"#N/A"}}]
[2,"Statement of Operations","50","Expenses","500","Salaries and benefits",5310,"VIUFA - Vacation Accrual","Salaries (4) - CC(F-Cat4)/Fund(F-VM)/RESNO(M)/WO(M)/ACT(M)/AT(M)","IS","5310","GL","Active","Not in FRS","Not in YTD GL",null,null,null,{"$f":"T570=#REF!","v":{"$error":"#REF!"}},5310,{"$f":"IFERROR(INDEX('Prod COA'!B:B,MATCH('CHART OF ACCOUNTS'!T570,'Prod COA'!E:E,0)),INDEX('Prod COA'!B:B,MATCH('CHART OF ACCOUNTS'!T570,'Prod COA'!A:A,0)))","v":{"$error":"#N/A"}}]
[2,"Statement of Operations","50","Expenses","500","Salaries and benefits",5311,"VIUFA - Vacation paid in lieu","Salaries (4) - CC(F-Cat4)/Fund(F-VM)/RESNO(M)/WO(M)/ACT(M)/AT(M)","IS","5311","GL","Active","Not in FRS","Not in YTD GL",null,null,null,{"$f":"T571=#REF!","v":{"$error":"#REF!"}},5311,{"$f":"IFERROR(INDEX('Prod COA'!B:B,MATCH('CHART OF ACCOUNTS'!T571,'Prod COA'!E:E,0)),INDEX('Prod COA'!B:B,MATCH('CHART OF ACCOUNTS'!T571,'Prod COA'!A:A,0)))","v":{"$error":"#N/A"}}]
[2,"Statement of Operations","50","Expenses","500","Salaries and benefits",5401,"Non-Jurisdictional - Overtime / Other","Salaries (4) - CC(F-Cat4)/Fund(F-VM)/RESNO(M)/WO(M)/ACT(M)/AT(M)","IS","5401","GL","Active","Not in FRS","Not in YTD GL",null,null,null,false,5401,{"$f":"IFERROR(INDEX('Prod COA'!B:B,MATCH('CHART OF ACCOUNTS'!T572,'Prod COA'!E:E,0)),INDEX('Prod COA'!B:B,MATCH('CHART OF ACCOUNTS'!T572,'Prod COA'!A:A,0)))","v":{"$error":"#N/A"}}]
[2,"Statement of Operations","50","Expenses","500","Salaries and benefits",5402,"Non-Jurisdictional - Stipend","Salaries (4) - CC(F-Cat4)/Fund(F-VM)/RESNO(M)/WO(M)/ACT(M)/AT(M)","IS","5402","GL","Active","Not in FRS","Not in YTD GL",null,null,null,false,5402,{"$f":"IFERROR(INDEX('Prod COA'!B:B,MATCH('CHART OF ACCOUNTS'!T573,'Prod COA'!E:E,0)),INDEX('Prod COA'!B:B,MATCH('CHART OF ACCOUNTS'!T573,'Prod COA'!A:A,0)))","v":{"$error":"#N/A"}}]
[2,"Statement of Operations","50","Expenses","500","Salaries and benefits",5403,"Non-Jurisdictional - Allowance","Salaries (4) - CC(F-Cat4)/Fund(F-VM)/RESNO(M)/WO(M)/ACT(M)/AT(M)","IS","5403","GL","Active","Not in FRS","Not in YTD GL",null,null,null,false,5403,{"$f":"IFERROR(INDEX('Prod COA'!B:B,MATCH('CHART OF ACCOUNTS'!T574,'Prod COA'!E:E,0)),INDEX('Prod COA'!B:B,MATCH('CHART OF ACCOUNTS'!T574,'Prod COA'!A:A,0)))","v":{"$error":"#N/A"}}]
[2,"Statement of Operations","50","Expenses","500","Salaries and benefits",5410,"Non-Jurisdictional - Vacation Accrual","Salaries (4) - CC(F-Cat4)/Fund(F-VM)/RESNO(M)/WO(M)/ACT(M)/AT(M)","IS","5410","GL","Active","Not in FRS","Not in YTD GL",null,null,null,false,5410,{"$f":"IFERROR(INDEX('Prod COA'!B:B,MATCH('CHART OF ACCOUNTS'!T575,'Prod COA'!E:E,0)),INDEX('Prod COA'!B:B,MATCH('CHART OF ACCOUNTS'!T575,'Prod COA'!A:A,0)))","v":{"$error":"#N/A"}}]
[2,"Statement of Operations","50","Expenses","500","Salaries and benefits",5411,"Non-Jurisdictional - Vacation paid in lieu","Salaries (4) - CC(F-Cat4)/Fund(F-VM)/RESNO(M)/WO(M)/ACT(M)/AT(M)","IS","5411","GL","Active","Not in FRS","Not in YTD GL",null,null,null,false,5411,{"$f":"IFERROR(INDEX('Prod COA'!B:B,MATCH('CHART OF ACCOUNTS'!T576,'Prod COA'!E:E,0)),INDEX('Prod COA'!B:B,MATCH('CHART OF ACCOUNTS'!T576,'Prod COA'!A:A,0)))","v":{"$error":"#N/A"}}]
[2,"Statement of Operations","50","Expenses","500","Salaries and benefits",5420,"Non-Jurisdictional - Contractual Professional Development","Salaries (4) - CC(F-Cat4)/Fund(F-VM)/RESNO(M)/WO(M)/ACT(M)/AT(M)","IS","5420","GL","Active","Not in FRS","Not in YTD GL",null,null,null,false,5420,{"$f":"IFERROR(INDEX('Prod COA'!B:B,MATCH('CHART OF ACCOUNTS'!T577,'Prod COA'!E:E,0)),INDEX('Prod COA'!B:B,MATCH('CHART OF ACCOUNTS'!T577,'Prod COA'!A:A,0)))","v":{"$error":"#N/A"}}]
[2,"Statement of Operations","50","Expenses","500","Salaries and benefits",5430,"Non-Jurisdictional - Fee for Service (AP Use only)","General Rev and Exp (7) - CC(F-Cat4)/Fund(F-VM)/WO(M)/ACT(M)","IS",null,"GL","Closed","Not in FRS","Not in YTD GL",null,null,null,false,5430,{"$f":"IFERROR(INDEX('Prod COA'!B:B,MATCH('CHART OF ACCOUNTS'!T578,'Prod COA'!E:E,0)),INDEX('Prod COA'!B:B,MATCH('CHART OF ACCOUNTS'!T578,'Prod COA'!A:A,0)))","v":{"$error":"#N/A"}}]
[2,"Statement of Operations","50","Expenses","500","Salaries and benefits",5431,"Non-Jurisdictional - Honoraria (AP Use only)","General Rev and Exp (7) - CC(F-Cat4)/Fund(F-VM)/WO(M)/ACT(M)","IS",null,"GL","Closed","Not in FRS","Not in YTD GL",null,null,null,false,{"$f":"IF(LEN(G579)=4,G579,K579)*1","v":5431},{"$f":"IFERROR(INDEX('Prod COA'!B:B,MATCH('CHART OF ACCOUNTS'!T579,'Prod COA'!E:E,0)),INDEX('Prod COA'!B:B,MATCH('CHART OF ACCOUNTS'!T579,'Prod COA'!A:A,0)))","v":{"$error":"#N/A"}}]
[2,"Statement of Operations","50","Expenses","500","Salaries and benefits",5800,"Employer Costs - Receiver General","Salary Benefits (11) - CC(F-Cat4)/Fund(F-VM)/WO(M)/Act(M)/EG(M)/AT(M)","IS","5800","GL","Active","Not in FRS","Not in YTD GL",null,null,null,false,5800,{"$f":"IFERROR(INDEX('Prod COA'!B:B,MATCH('CHART OF ACCOUNTS'!T580,'Prod COA'!E:E,0)),INDEX('Prod COA'!B:B,MATCH('CHART OF ACCOUNTS'!T580,'Prod COA'!A:A,0)))","v":{"$error":"#N/A"}}]
[2,"Statement of Operations","50","Expenses","500","Salaries and benefits",5801,"Employer Costs - College Pension Plan","Salary Benefits (11) - CC(F-Cat4)/Fund(F-VM)/WO(M)/Act(M)/EG(M)/AT(M)","IS","5801","GL","Active","Not in FRS","Not in YTD GL",null,null,null,false,5801,{"$f":"IFERROR(INDEX('Prod COA'!B:B,MATCH('CHART OF ACCOUNTS'!T581,'Prod COA'!E:E,0)),INDEX('Prod COA'!B:B,MATCH('CHART OF ACCOUNTS'!T581,'Prod COA'!A:A,0)))","v":{"$error":"#N/A"}}]
[2,"Statement of Operations","50","Expenses","500","Salaries and benefits",5802,"Employer Costs - Municipal Pension Plan","Salary Benefits (11) - CC(F-Cat4)/Fund(F-VM)/WO(M)/Act(M)/EG(M)/AT(M)","IS","5802","GL","Active","Not in FRS","Not in YTD GL",null,null,null,false,5802,{"$f":"IFERROR(INDEX('Prod COA'!B:B,MATCH('CHART OF ACCOUNTS'!T582,'Prod COA'!E:E,0)),INDEX('Prod COA'!B:B,MATCH('CHART OF ACCOUNTS'!T582,'Prod COA'!A:A,0)))","v":{"$error":"#N/A"}}]
[2,"Statement of Operations","50","Expenses","500","Salaries and benefits",5803,"Employer Costs - Employer Health Tax (MSP)","Salary Benefits (11) - CC(F-Cat4)/Fund(F-VM)/WO(M)/Act(M)/EG(M)/AT(M)","IS","5803","GL","Active","Not in FRS","Not in YTD GL",null,null,null,false,5803,{"$f":"IFERROR(INDEX('Prod COA'!B:B,MATCH('CHART OF ACCOUNTS'!T583,'Prod COA'!E:E,0)),INDEX('Prod COA'!B:B,MATCH('CHART OF ACCOUNTS'!T583,'Prod COA'!A:A,0)))","v":{"$error":"#N/A"}}]
[2,"Statement of Operations","50","Expenses","500","Salaries and benefits",5804,"Employer Costs - WorkSafeBC","Salary Benefits (11) - CC(F-Cat4)/Fund(F-VM)/WO(M)/Act(M)/EG(M)/AT(M)","IS","5804","GL","Active","Not in FRS","Not in YTD GL",null,null,null,false,5804,{"$f":"IFERROR(INDEX('Prod COA'!B:B,MATCH('CHART OF ACCOUNTS'!T584,'Prod COA'!E:E,0)),INDEX('Prod COA'!B:B,MATCH('CHART OF ACCOUNTS'!T584,'Prod COA'!A:A,0)))","v":{"$error":"#N/A"}}]
[2,"Statement of Operations","50","Expenses","500","Salaries and benefits",5810,"Employer Costs - Misc Employee Expenses","General ResNo Rule (8) - CC(F-Cat4)/Fund(F-VM)/RESNO(O)/WO(M)/Act(M)","IS","5810","GL","Closed","Not in FRS","Not in YTD GL",null,null,null,false,5810,{"$f":"IFERROR(INDEX('Prod COA'!B:B,MATCH('CHART OF ACCOUNTS'!T585,'Prod COA'!E:E,0)),INDEX('Prod COA'!B:B,MATCH('CHART OF ACCOUNTS'!T585,'Prod COA'!A:A,0)))","v":{"$error":"#N/A"}}]
[2,"Statement of Operations","50","Expenses","500","Salaries and benefits",5820,"Benefit Premiums - Extended Health","Salary Benefits (11) - CC(F-Cat4)/Fund(F-VM)/WO(M)/Act(M)/EG(M)/AT(M)","IS","5820","GL","Active","Not in FRS","Not in YTD GL",null,null,null,false,5820,{"$f":"IFERROR(INDEX('Prod COA'!B:B,MATCH('CHART OF ACCOUNTS'!T586,'Prod COA'!E:E,0)),INDEX('Prod COA'!B:B,MATCH('CHART OF ACCOUNTS'!T586,'Prod COA'!A:A,0)))","v":{"$error":"#N/A"}}]
[2,"Statement of Operations","50","Expenses","500","Salaries and benefits",5821,"Benefit Premiums - Dental","Salary Benefits (11) - CC(F-Cat4)/Fund(F-VM)/WO(M)/Act(M)/EG(M)/AT(M)","IS","5821","GL","Active","Not in FRS","Not in YTD GL",null,null,null,false,5821,{"$f":"IFERROR(INDEX('Prod COA'!B:B,MATCH('CHART OF ACCOUNTS'!T587,'Prod COA'!E:E,0)),INDEX('Prod COA'!B:B,MATCH('CHART OF ACCOUNTS'!T587,'Prod COA'!A:A,0)))","v":{"$error":"#N/A"}}]
[2,"Statement of Operations","50","Expenses","500","Salaries and benefits",5822,"Benefit Premiums - Accidental death and dismemberment","Salary Benefits (11) - CC(F-Cat4)/Fund(F-VM)/WO(M)/Act(M)/EG(M)/AT(M)","IS","5822","GL","Active","Not in FRS","Not in YTD GL",null,null,null,false,5822,{"$f":"IFERROR(INDEX('Prod COA'!B:B,MATCH('CHART OF ACCOUNTS'!T588,'Prod COA'!E:E,0)),INDEX('Prod COA'!B:B,MATCH('CHART OF ACCOUNTS'!T588,'Prod COA'!A:A,0)))","v":{"$error":"#N/A"}}]
[2,"Statement of Operations","50","Expenses","500","Salaries and benefits",5823,"Benefit Premiums - Group Life","Salary Benefits (11) - CC(F-Cat4)/Fund(F-VM)/WO(M)/Act(M)/EG(M)/AT(M)","IS","5823","GL","Active","Not in FRS","Not in YTD GL",null,null,null,false,5823,{"$f":"IFERROR(INDEX('Prod COA'!B:B,MATCH('CHART OF ACCOUNTS'!T589,'Prod COA'!E:E,0)),INDEX('Prod COA'!B:B,MATCH('CHART OF ACCOUNTS'!T589,'Prod COA'!A:A,0)))","v":{"$error":"#N/A"}}]
[2,"Statement of Operations","50","Expenses","500","Salaries and benefits",5824,"Benefit Premiums - Short Term Disability","Salary Benefits (11) - CC(F-Cat4)/Fund(F-VM)/WO(M)/Act(M)/EG(M)/AT(M)","IS","5824","GL","Active","Not in FRS","Not in YTD GL",null,null,null,false,5824,{"$f":"IFERROR(INDEX('Prod COA'!B:B,MATCH('CHART OF ACCOUNTS'!T590,'Prod COA'!E:E,0)),INDEX('Prod COA'!B:B,MATCH('CHART OF ACCOUNTS'!T590,'Prod COA'!A:A,0)))","v":{"$error":"#N/A"}}]
[2,"Statement of Operations","50","Expenses","500","Salaries and benefits",5825,"Benefit Premiums - Long Term Disability","Salary Benefits (11) - CC(F-Cat4)/Fund(F-VM)/WO(M)/Act(M)/EG(M)/AT(M)","IS","5825","GL","Active","Not in FRS","Not in YTD GL",null,null,null,false,5825,{"$f":"IFERROR(INDEX('Prod COA'!B:B,MATCH('CHART OF ACCOUNTS'!T591,'Prod COA'!E:E,0)),INDEX('Prod COA'!B:B,MATCH('CHART OF ACCOUNTS'!T591,'Prod COA'!A:A,0)))","v":{"$error":"#N/A"}}]
[2,"Statement of Operations","50","Expenses","500","Salaries and benefits",5826,"EI Rebate Benefit Expense","Salary Benefits (11) - CC(F-Cat4)/Fund(F-VM)/WO(M)/Act(M)/EG(M)/AT(M)","IS","5826","GL","Active","Not in FRS","Not in YTD GL",null,null,null,false,5826,{"$f":"IFERROR(INDEX('Prod COA'!B:B,MATCH('CHART OF ACCOUNTS'!T592,'Prod COA'!E:E,0)),INDEX('Prod COA'!B:B,MATCH('CHART OF ACCOUNTS'!T592,'Prod COA'!A:A,0)))","v":{"$error":"#N/A"}}]
[2,"Statement of Operations","50","Expenses","500","Salaries and benefits",5827,"Employee Assistance Program - Employee portion","Salary Benefits (11) - CC(F-Cat4)/Fund(F-VM)/WO(M)/Act(M)/EG(M)/AT(M)","IS","5827","GL","Active","Not in FRS","Not in YTD GL",null,null,null,false,5827,{"$f":"IFERROR(INDEX('Prod COA'!B:B,MATCH('CHART OF ACCOUNTS'!T593,'Prod COA'!E:E,0)),INDEX('Prod COA'!B:B,MATCH('CHART OF ACCOUNTS'!T593,'Prod COA'!A:A,0)))","v":{"$error":"#N/A"}}]
[2,"Statement of Operations","50","Expenses","500","Salaries and benefits",5849,"TEMP ACCOUNT OPENING BAL. - Consolidated Benefit Costs","General ResNo Rule (8) - CC(F-Cat4)/Fund(F-VM)/RESNO(O)/WO(M)/Act(M)","IS",null,"GL","Closed","Not in FRS","Not in YTD GL",null,null,null,false,5849,{"$f":"IFERROR(INDEX('Prod COA'!B:B,MATCH('CHART OF ACCOUNTS'!T594,'Prod COA'!E:E,0)),INDEX('Prod COA'!B:B,MATCH('CHART OF ACCOUNTS'!T594,'Prod COA'!A:A,0)))","v":{"$error":"#N/A"}}]
[2,"Statement of Operations","50","Expenses","500","Salaries and benefits",5850,"VIU Paid Staff Courses","Salaries (4) - CC(F-Cat4)/Fund(F-VM)/RESNO(M)/WO(M)/ACT(M)/AT(M)","IS","5850","GL","Active","Not in FRS","Not in YTD GL",null,null,null,false,5850,{"$f":"IFERROR(INDEX('Prod COA'!B:B,MATCH('CHART OF ACCOUNTS'!T595,'Prod COA'!E:E,0)),INDEX('Prod COA'!B:B,MATCH('CHART OF ACCOUNTS'!T595,'Prod COA'!A:A,0)))","v":{"$error":"#N/A"}}]
[2,"Statement of Operations","50","Expenses","600","Fees and purchased services",6000,"Services - Budget","General Rev and Exp (7) - CC(F-Cat4)/Fund(F-VM)/WO(M)/ACT(M)","IS","6000","GL","Active","Not in FRS","Not in YTD GL",null,null,null,false,6000,{"$f":"IFERROR(INDEX('Prod COA'!B:B,MATCH('CHART OF ACCOUNTS'!T596,'Prod COA'!E:E,0)),INDEX('Prod COA'!B:B,MATCH('CHART OF ACCOUNTS'!T596,'Prod COA'!A:A,0)))","v":{"$error":"#N/A"}}]
[2,"Statement of Operations","50","Expenses","600","Fees and purchased services",6001,"Services - Service Fee from CBV - Budget","General Rev and Exp (7) - CC(F-Cat4)/Fund(F-VM)/WO(M)/ACT(M)","IS","6001","GL","Active","Not in FRS","Not in YTD GL",null,null,null,false,6001,{"$f":"IFERROR(INDEX('Prod COA'!B:B,MATCH('CHART OF ACCOUNTS'!T597,'Prod COA'!E:E,0)),INDEX('Prod COA'!B:B,MATCH('CHART OF ACCOUNTS'!T597,'Prod COA'!A:A,0)))","v":{"$error":"#N/A"}}]
[2,"Statement of Operations","50","Expenses","600","Fees and purchased services",6002,"Service Fees - Banking","General Rev and Exp (7) - CC(F-Cat4)/Fund(F-VM)/WO(M)/ACT(M)","IS",null,"GL","Closed","Not in FRS","Not in YTD GL",null,null,null,false,6002,{"$f":"IFERROR(INDEX('Prod COA'!B:B,MATCH('CHART OF ACCOUNTS'!T598,'Prod COA'!E:E,0)),INDEX('Prod COA'!B:B,MATCH('CHART OF ACCOUNTS'!T598,'Prod COA'!A:A,0)))","v":{"$error":"#N/A"}}]
[2,"Statement of Operations","50","Expenses","600","Fees and purchased services",6003,"Service Fees - Interest","General Rev and Exp (7) - CC(F-Cat4)/Fund(F-VM)/WO(M)/ACT(M)","IS",null,"GL","Closed","Not in FRS","Not in YTD GL",null,null,null,false,6003,{"$f":"IFERROR(INDEX('Prod COA'!B:B,MATCH('CHART OF ACCOUNTS'!T599,'Prod COA'!E:E,0)),INDEX('Prod COA'!B:B,MATCH('CHART OF ACCOUNTS'!T599,'Prod COA'!A:A,0)))","v":{"$error":"#N/A"}}]
[2,"Statement of Operations","50","Expenses","600","Fees and purchased services",6004,"Fees","General Rev and Exp (7) - CC(F-Cat4)/Fund(F-VM)/WO(M)/ACT(M)","IS",null,"GL","Closed","Not in FRS","Not in YTD GL",null,null,null,false,6004,{"$f":"IFERROR(INDEX('Prod COA'!B:B,MATCH('CHART OF ACCOUNTS'!T600,'Prod COA'!E:E,0)),INDEX('Prod COA'!B:B,MATCH('CHART OF ACCOUNTS'!T600,'Prod COA'!A:A,0)))","v":{"$error":"#N/A"}}]
[2,"Statement of Operations","50","Expenses","600","Fees and purchased services",6005,"Fee for Service - Individual / Sole Proprietor - Budget","General Rev and Exp (7) - CC(F-Cat4)/Fund(F-VM)/WO(M)/ACT(M)","IS","6005","GL","Active","Not in FRS","Not in YTD GL",null,null,null,false,6005,{"$f":"IFERROR(INDEX('Prod COA'!B:B,MATCH('CHART OF ACCOUNTS'!T601,'Prod COA'!E:E,0)),INDEX('Prod COA'!B:B,MATCH('CHART OF ACCOUNTS'!T601,'Prod COA'!A:A,0)))","v":{"$error":"#N/A"}}]
[2,"Statement of Operations","50","Expenses","600","Fees and purchased services",6006,"Non-Employee Honoraria - Budget","General Rev and Exp (7) - CC(F-Cat4)/Fund(F-VM)/WO(M)/ACT(M)","IS","6006","GL","Active","Not in FRS","Not in YTD GL",null,null,null,false,6006,{"$f":"IFERROR(INDEX('Prod COA'!B:B,MATCH('CHART OF ACCOUNTS'!T602,'Prod COA'!E:E,0)),INDEX('Prod COA'!B:B,MATCH('CHART OF ACCOUNTS'!T602,'Prod COA'!A:A,0)))","v":{"$error":"#N/A"}}]
[2,"Statement of Operations","50","Expenses","600","Fees and purchased services",6008,"Service Fees - Credit Card","General Rev and Exp (7) - CC(F-Cat4)/Fund(F-VM)/WO(M)/ACT(M)","IS",null,"GL","Closed","Not in FRS","Not in YTD GL",null,null,null,false,6008,{"$f":"IFERROR(INDEX('Prod COA'!B:B,MATCH('CHART OF ACCOUNTS'!T603,'Prod COA'!E:E,0)),INDEX('Prod COA'!B:B,MATCH('CHART OF ACCOUNTS'!T603,'Prod COA'!A:A,0)))","v":{"$error":"#N/A"}}]
[2,"Statement of Operations","50","Expenses","600","Fees and purchased services",6010,"Advertising & Promotion - Budget","General Rev and Exp (7) - CC(F-Cat4)/Fund(F-VM)/WO(M)/ACT(M)","IS","6010","GL","Active","Not in FRS","Not in YTD GL",null,null,null,false,6010,{"$f":"IFERROR(INDEX('Prod COA'!B:B,MATCH('CHART OF ACCOUNTS'!T604,'Prod COA'!E:E,0)),INDEX('Prod COA'!B:B,MATCH('CHART OF ACCOUNTS'!T604,'Prod COA'!A:A,0)))","v":{"$error":"#N/A"}}]
[2,"Statement of Operations","50","Expenses","600","Fees and purchased services",6015,"Hospitality - Budget","General Rev and Exp (7) - CC(F-Cat4)/Fund(F-VM)/WO(M)/ACT(M)","IS","6015","GL","Active","Not in FRS","Not in YTD GL",null,null,null,false,6015,{"$f":"IFERROR(INDEX('Prod COA'!B:B,MATCH('CHART OF ACCOUNTS'!T605,'Prod COA'!E:E,0)),INDEX('Prod COA'!B:B,MATCH('CHART OF ACCOUNTS'!T605,'Prod COA'!A:A,0)))","v":{"$error":"#N/A"}}]
[2,"Statement of Operations","50","Expenses","600","Fees and purchased services",6020,"Fees and Memberships - Institutional - Budget","General Rev and Exp (7) - CC(F-Cat4)/Fund(F-VM)/WO(M)/ACT(M)","IS","6020","GL","Active","Not in FRS","Not in YTD GL",null,null,null,false,6020,{"$f":"IFERROR(INDEX('Prod COA'!B:B,MATCH('CHART OF ACCOUNTS'!T606,'Prod COA'!E:E,0)),INDEX('Prod COA'!B:B,MATCH('CHART OF ACCOUNTS'!T606,'Prod COA'!A:A,0)))","v":{"$error":"#N/A"}}]
[2,"Statement of Operations","50","Expenses","600","Fees and purchased services",6025,"Fees and Memberships - Employees - Budget","General Rev and Exp (7) - CC(F-Cat4)/Fund(F-VM)/WO(M)/ACT(M)","IS","6025","GL","Active","Not in FRS","Not in YTD GL",null,null,null,false,6025,{"$f":"IFERROR(INDEX('Prod COA'!B:B,MATCH('CHART OF ACCOUNTS'!T607,'Prod COA'!E:E,0)),INDEX('Prod COA'!B:B,MATCH('CHART OF ACCOUNTS'!T607,'Prod COA'!A:A,0)))","v":{"$error":"#N/A"}}]
[2,"Statement of Operations","50","Expenses","600","Fees and purchased services",6030,"Professional and Consulting Fees - Budget","General Rev and Exp (7) - CC(F-Cat4)/Fund(F-VM)/WO(M)/ACT(M)","IS","6030","GL","Active","Not in FRS","Not in YTD GL",null,null,null,false,6030,{"$f":"IFERROR(INDEX('Prod COA'!B:B,MATCH('CHART OF ACCOUNTS'!T608,'Prod COA'!E:E,0)),INDEX('Prod COA'!B:B,MATCH('CHART OF ACCOUNTS'!T608,'Prod COA'!A:A,0)))","v":{"$error":"#N/A"}}]
[2,"Statement of Operations","50","Expenses","600","Fees and purchased services",6035,"Bank Charges, Interest, and Credit Card Fees - Budget","General Rev and Exp (7) - CC(F-Cat4)/Fund(F-VM)/WO(M)/ACT(M)","IS","6035","GL","Active","Not in FRS","Not in YTD GL",null,null,null,false,6035,{"$f":"IFERROR(INDEX('Prod COA'!B:B,MATCH('CHART OF ACCOUNTS'!T609,'Prod COA'!E:E,0)),INDEX('Prod COA'!B:B,MATCH('CHART OF ACCOUNTS'!T609,'Prod COA'!A:A,0)))","v":{"$error":"#N/A"}}]
[2,"Statement of Operations","50","Expenses","600","Fees and purchased services",6040,"Payments to Service Partners - Budget","General Rev and Exp (7) - CC(F-Cat4)/Fund(F-VM)/WO(M)/ACT(M)","IS","6040","GL","Active","Not in FRS","Not in YTD GL",null,null,null,false,6040,{"$f":"IFERROR(INDEX('Prod COA'!B:B,MATCH('CHART OF ACCOUNTS'!T610,'Prod COA'!E:E,0)),INDEX('Prod COA'!B:B,MATCH('CHART OF ACCOUNTS'!T610,'Prod COA'!A:A,0)))","v":{"$error":"#N/A"}}]
[2,"Statement of Operations","50","Expenses","600","Fees and purchased services",6045,"Software - Budget","General Rev and Exp (7) - CC(F-Cat4)/Fund(F-VM)/WO(M)/ACT(M)","IS","6045","GL","Active","Not in FRS","Not in YTD GL",null,null,null,false,6045,{"$f":"IFERROR(INDEX('Prod COA'!B:B,MATCH('CHART OF ACCOUNTS'!T611,'Prod COA'!E:E,0)),INDEX('Prod COA'!B:B,MATCH('CHART OF ACCOUNTS'!T611,'Prod COA'!A:A,0)))","v":{"$error":"#N/A"}}]
[2,"Statement of Operations","50","Expenses","600","Fees and purchased services",6050,"Foreign Exchange Gain / Loss - Budget","General Rev and Exp (7) - CC(F-Cat4)/Fund(F-VM)/WO(M)/ACT(M)","IS","6050","GL","Active","Not in FRS","Not in YTD GL",null,null,null,{"$f":"T612=T611","v":false},6050,{"$f":"IFERROR(INDEX('Prod COA'!B:B,MATCH('CHART OF ACCOUNTS'!T612,'Prod COA'!E:E,0)),INDEX('Prod COA'!B:B,MATCH('CHART OF ACCOUNTS'!T612,'Prod COA'!A:A,0)))","v":{"$error":"#N/A"}}]
[2,"Statement of Operations","50","Expenses","610","Travel and training",6100,"Travel - Employee - Budget","General ResNo Rule (8) - CC(F-Cat4)/Fund(F-VM)/RESNO(O)/WO(M)/Act(M)","IS","6100","GL","Active","Not in FRS","Not in YTD GL",null,null,null,false,6100,{"$f":"IFERROR(INDEX('Prod COA'!B:B,MATCH('CHART OF ACCOUNTS'!T613,'Prod COA'!E:E,0)),INDEX('Prod COA'!B:B,MATCH('CHART OF ACCOUNTS'!T613,'Prod COA'!A:A,0)))","v":{"$error":"#N/A"}}]
[2,"Statement of Operations","50","Expenses","610","Travel and training",6101,"Staff Training","General ResNo Rule (8) - CC(F-Cat4)/Fund(F-VM)/RESNO(O)/WO(M)/Act(M)","IS",null,"GL","Closed","Not in FRS","Not in YTD GL",null,null,null,false,6101,{"$f":"IFERROR(INDEX('Prod COA'!B:B,MATCH('CHART OF ACCOUNTS'!T614,'Prod COA'!E:E,0)),INDEX('Prod COA'!B:B,MATCH('CHART OF ACCOUNTS'!T614,'Prod COA'!A:A,0)))","v":{"$error":"#N/A"}}]
[2,"Statement of Operations","50","Expenses","610","Travel and training",6102,"Articulation","General Rev and Exp (7) - CC(F-Cat4)/Fund(F-VM)/WO(M)/ACT(M)","IS",null,"GL","Closed","Not in FRS","Not in YTD GL",null,null,null,false,6102,{"$f":"IFERROR(INDEX('Prod COA'!B:B,MATCH('CHART OF ACCOUNTS'!T615,'Prod COA'!E:E,0)),INDEX('Prod COA'!B:B,MATCH('CHART OF ACCOUNTS'!T615,'Prod COA'!A:A,0)))","v":{"$error":"#N/A"}}]
[2,"Statement of Operations","50","Expenses","610","Travel and training",6103,"Non-Employee Travel","General Rev and Exp (7) - CC(F-Cat4)/Fund(F-VM)/WO(M)/ACT(M)","IS",null,"GL","Closed","Not in FRS","Not in YTD GL",null,null,null,false,6103,{"$f":"IFERROR(INDEX('Prod COA'!B:B,MATCH('CHART OF ACCOUNTS'!T616,'Prod COA'!E:E,0)),INDEX('Prod COA'!B:B,MATCH('CHART OF ACCOUNTS'!T616,'Prod COA'!A:A,0)))","v":{"$error":"#N/A"}}]
[2,"Statement of Operations","50","Expenses","610","Travel and training",6105,"Travel - Non Employee - Budget","General Rev and Exp (7) - CC(F-Cat4)/Fund(F-VM)/WO(M)/ACT(M)","IS","6105","GL","Active","Not in FRS","Not in YTD GL",null,null,null,false,6105,{"$f":"IFERROR(INDEX('Prod COA'!B:B,MATCH('CHART OF ACCOUNTS'!T617,'Prod COA'!E:E,0)),INDEX('Prod COA'!B:B,MATCH('CHART OF ACCOUNTS'!T617,'Prod COA'!A:A,0)))","v":{"$error":"#N/A"}}]
[2,"Statement of Operations","50","Expenses","610","Travel and training",6110,"Training - Employee - Budget","General Rev and Exp (7) - CC(F-Cat4)/Fund(F-VM)/WO(M)/ACT(M)","IS","6110","GL","Active","Not in FRS","Not in YTD GL",null,null,null,false,6110,{"$f":"IFERROR(INDEX('Prod COA'!B:B,MATCH('CHART OF ACCOUNTS'!T618,'Prod COA'!E:E,0)),INDEX('Prod COA'!B:B,MATCH('CHART OF ACCOUNTS'!T618,'Prod COA'!A:A,0)))","v":{"$error":"#N/A"}}]
[2,"Statement of Operations","50","Expenses","610","Travel and training",6111,"Training - VIU Courses Paid for Staff - SLED - Budget","General Rev and Exp (7) - CC(F-Cat4)/Fund(F-VM)/WO(M)/ACT(M)","IS","6111","GL","Active","Not in FRS","Not in YTD GL",null,null,null,false,6111,{"$f":"IFERROR(INDEX('Prod COA'!B:B,MATCH('CHART OF ACCOUNTS'!T619,'Prod COA'!E:E,0)),INDEX('Prod COA'!B:B,MATCH('CHART OF ACCOUNTS'!T619,'Prod COA'!A:A,0)))","v":{"$error":"#N/A"}}]
[2,"Statement of Operations","50","Expenses","610","Travel and training",6115,"Training- Institutional - Budget","General Rev and Exp (7) - CC(F-Cat4)/Fund(F-VM)/WO(M)/ACT(M)","IS","6115","GL","Active","Not in FRS","Not in YTD GL",null,null,null,false,6115,{"$f":"IFERROR(INDEX('Prod COA'!B:B,MATCH('CHART OF ACCOUNTS'!T620,'Prod COA'!E:E,0)),INDEX('Prod COA'!B:B,MATCH('CHART OF ACCOUNTS'!T620,'Prod COA'!A:A,0)))","v":{"$error":"#N/A"}}]
[2,"Statement of Operations","50","Expenses","620","Scholarships and bursaries",6200,"Tuition Bursary/Scholarships - Budget","General Rev and Exp (7) - CC(F-Cat4)/Fund(F-VM)/WO(M)/ACT(M)","IS","6200","GL","Active","Not in FRS","Not in YTD GL",null,null,null,false,6200,{"$f":"IFERROR(INDEX('Prod COA'!B:B,MATCH('CHART OF ACCOUNTS'!T621,'Prod COA'!E:E,0)),INDEX('Prod COA'!B:B,MATCH('CHART OF ACCOUNTS'!T621,'Prod COA'!A:A,0)))","v":{"$error":"#N/A"}}]
[2,"Statement of Operations","50","Expenses","630","Equipment rental and maintenance",6300,"Repairs and Maintenance - Furniture  & Equipment - Budget","General Rev and Exp (7) - CC(F-Cat4)/Fund(F-VM)/WO(M)/ACT(M)","IS","6300","GL","Active","Not in FRS","Not in YTD GL",null,null,null,false,6300,{"$f":"IFERROR(INDEX('Prod COA'!B:B,MATCH('CHART OF ACCOUNTS'!T622,'Prod COA'!E:E,0)),INDEX('Prod COA'!B:B,MATCH('CHART OF ACCOUNTS'!T622,'Prod COA'!A:A,0)))","v":{"$error":"#N/A"}}]
[2,"Statement of Operations","50","Expenses","630","Equipment rental and maintenance",6301,"R&M - Vehicles","General Rev and Exp (7) - CC(F-Cat4)/Fund(F-VM)/WO(M)/ACT(M)","IS",null,"GL","Closed","Not in FRS","Not in YTD GL",null,null,null,false,6301,{"$f":"IFERROR(INDEX('Prod COA'!B:B,MATCH('CHART OF ACCOUNTS'!T623,'Prod COA'!E:E,0)),INDEX('Prod COA'!B:B,MATCH('CHART OF ACCOUNTS'!T623,'Prod COA'!A:A,0)))","v":{"$error":"#N/A"}}]
[2,"Statement of Operations","50","Expenses","630","Equipment rental and maintenance",6302,"R&M - Buildings","General Rev and Exp (7) - CC(F-Cat4)/Fund(F-VM)/WO(M)/ACT(M)","IS",null,"GL","Closed","Not in FRS","Not in YTD GL",null,null,null,false,6302,{"$f":"IFERROR(INDEX('Prod COA'!B:B,MATCH('CHART OF ACCOUNTS'!T624,'Prod COA'!E:E,0)),INDEX('Prod COA'!B:B,MATCH('CHART OF ACCOUNTS'!T624,'Prod COA'!A:A,0)))","v":{"$error":"#N/A"}}]
[2,"Statement of Operations","50","Expenses","630","Equipment rental and maintenance",6303,"Safety Equipment","General Rev and Exp (7) - CC(F-Cat4)/Fund(F-VM)/WO(M)/ACT(M)","IS",null,"GL","Closed","Not in FRS","Not in YTD GL",null,null,null,{"$f":"T625=#REF!","v":{"$error":"#REF!"}},6303,{"$f":"IFERROR(INDEX('Prod COA'!B:B,MATCH('CHART OF ACCOUNTS'!T625,'Prod COA'!E:E,0)),INDEX('Prod COA'!B:B,MATCH('CHART OF ACCOUNTS'!T625,'Prod COA'!A:A,0)))","v":{"$error":"#N/A"}}]
[2,"Statement of Operations","50","Expenses","630","Equipment rental and maintenance",6305,"Repairs and Maintenance - Vehicles - Budget","General Rev and Exp (7) - CC(F-Cat4)/Fund(F-VM)/WO(M)/ACT(M)","IS","6305","GL","Active","Not in FRS","Not in YTD GL",null,null,null,false,6305,{"$f":"IFERROR(INDEX('Prod COA'!B:B,MATCH('CHART OF ACCOUNTS'!T626,'Prod COA'!E:E,0)),INDEX('Prod COA'!B:B,MATCH('CHART OF ACCOUNTS'!T626,'Prod COA'!A:A,0)))","v":{"$error":"#N/A"}}]
[2,"Statement of Operations","50","Expenses","630","Equipment rental and maintenance",6310,"Repairs and Maintenance - Facilities - Budget","General Rev and Exp (7) - CC(F-Cat4)/Fund(F-VM)/WO(M)/ACT(M)","IS","6310","GL","Active","Not in FRS","Not in YTD GL",null,null,null,false,6310,{"$f":"IFERROR(INDEX('Prod COA'!B:B,MATCH('CHART OF ACCOUNTS'!T627,'Prod COA'!E:E,0)),INDEX('Prod COA'!B:B,MATCH('CHART OF ACCOUNTS'!T627,'Prod COA'!A:A,0)))","v":{"$error":"#N/A"}}]
[2,"Statement of Operations","50","Expenses","630","Equipment rental and maintenance",6320,"Vehicle Fuel - Budget","General Rev and Exp (7) - CC(F-Cat4)/Fund(F-VM)/WO(M)/ACT(M)","IS","6320","GL","Active","Not in FRS","Not in YTD GL",null,null,null,false,6320,{"$f":"IFERROR(INDEX('Prod COA'!B:B,MATCH('CHART OF ACCOUNTS'!T628,'Prod COA'!E:E,0)),INDEX('Prod COA'!B:B,MATCH('CHART OF ACCOUNTS'!T628,'Prod COA'!A:A,0)))","v":{"$error":"#N/A"}}]
[2,"Statement of Operations","50","Expenses","630","Equipment rental and maintenance",6325,"Rental and Lease - Budget","General Rev and Exp (7) - CC(F-Cat4)/Fund(F-VM)/WO(M)/ACT(M)","IS","6325","GL","Active","Not in FRS","Not in YTD GL",null,null,null,false,6325,{"$f":"IFERROR(INDEX('Prod COA'!B:B,MATCH('CHART OF ACCOUNTS'!T629,'Prod COA'!E:E,0)),INDEX('Prod COA'!B:B,MATCH('CHART OF ACCOUNTS'!T629,'Prod COA'!A:A,0)))","v":{"$error":"#N/A"}}]
[2,"Statement of Operations","50","Expenses","640","Utilities, insurance and taxes",6400,"Utilities - Budget","General Rev and Exp (7) - CC(F-Cat4)/Fund(F-VM)/WO(M)/ACT(M)","IS","6400","GL","Active","Not in FRS","Not in YTD GL",null,null,null,false,6400,{"$f":"IFERROR(INDEX('Prod COA'!B:B,MATCH('CHART OF ACCOUNTS'!T630,'Prod COA'!E:E,0)),INDEX('Prod COA'!B:B,MATCH('CHART OF ACCOUNTS'!T630,'Prod COA'!A:A,0)))","v":{"$error":"#N/A"}}]
[2,"Statement of Operations","50","Expenses","640","Utilities, insurance and taxes",6401,"Property Tax","General Rev and Exp (7) - CC(F-Cat4)/Fund(F-VM)/WO(M)/ACT(M)","IS",null,"GL","Closed","Not in FRS","Not in YTD GL",null,null,null,false,6401,{"$f":"IFERROR(INDEX('Prod COA'!B:B,MATCH('CHART OF ACCOUNTS'!T631,'Prod COA'!E:E,0)),INDEX('Prod COA'!B:B,MATCH('CHART OF ACCOUNTS'!T631,'Prod COA'!A:A,0)))","v":{"$error":"#N/A"}}]
[2,"Statement of Operations","50","Expenses","640","Utilities, insurance and taxes",6402,"Phone","General ResNo Rule (8) - CC(F-Cat4)/Fund(F-VM)/RESNO(O)/WO(M)/Act(M)","IS",null,"GL","Closed","Not in FRS","Not in YTD GL",null,null,null,false,6402,{"$f":"IFERROR(INDEX('Prod COA'!B:B,MATCH('CHART OF ACCOUNTS'!T632,'Prod COA'!E:E,0)),INDEX('Prod COA'!B:B,MATCH('CHART OF ACCOUNTS'!T632,'Prod COA'!A:A,0)))","v":{"$error":"#N/A"}}]
[2,"Statement of Operations","50","Expenses","640","Utilities, insurance and taxes",6403,"Insurance Premiums","General Rev and Exp (7) - CC(F-Cat4)/Fund(F-VM)/WO(M)/ACT(M)","IS",null,"GL","Closed","Not in FRS","Not in YTD GL",null,null,null,false,6403,{"$f":"IFERROR(INDEX('Prod COA'!B:B,MATCH('CHART OF ACCOUNTS'!T633,'Prod COA'!E:E,0)),INDEX('Prod COA'!B:B,MATCH('CHART OF ACCOUNTS'!T633,'Prod COA'!A:A,0)))","v":{"$error":"#N/A"}}]
[2,"Statement of Operations","50","Expenses","640","Utilities, insurance and taxes",6404,"Carbon Offset","General Rev and Exp (7) - CC(F-Cat4)/Fund(F-VM)/WO(M)/ACT(M)","IS",null,"GL","Closed","Not in FRS","Not in YTD GL",null,null,null,false,6404,{"$f":"IFERROR(INDEX('Prod COA'!B:B,MATCH('CHART OF ACCOUNTS'!T634,'Prod COA'!E:E,0)),INDEX('Prod COA'!B:B,MATCH('CHART OF ACCOUNTS'!T634,'Prod COA'!A:A,0)))","v":{"$error":"#N/A"}}]
[2,"Statement of Operations","50","Expenses","640","Utilities, insurance and taxes",6405,"Phone - Budget","General Rev and Exp (7) - CC(F-Cat4)/Fund(F-VM)/WO(M)/ACT(M)","IS","6405","GL","Active","Not in FRS","Not in YTD GL",null,null,null,false,6405,{"$f":"IFERROR(INDEX('Prod COA'!B:B,MATCH('CHART OF ACCOUNTS'!T635,'Prod COA'!E:E,0)),INDEX('Prod COA'!B:B,MATCH('CHART OF ACCOUNTS'!T635,'Prod COA'!A:A,0)))","v":{"$error":"#N/A"}}]
[2,"Statement of Operations","50","Expenses","640","Utilities, insurance and taxes",6410,"Insurance - Budget","General Rev and Exp (7) - CC(F-Cat4)/Fund(F-VM)/WO(M)/ACT(M)","IS","6410","GL","Active","Not in FRS","Not in YTD GL",null,null,null,{"$f":"T636=#REF!","v":{"$error":"#REF!"}},6410,{"$f":"IFERROR(INDEX('Prod COA'!B:B,MATCH('CHART OF ACCOUNTS'!T636,'Prod COA'!E:E,0)),INDEX('Prod COA'!B:B,MATCH('CHART OF ACCOUNTS'!T636,'Prod COA'!A:A,0)))","v":{"$error":"#N/A"}}]
[2,"Statement of Operations","50","Expenses","650","Materials and supplies",6500,"Supplies - Budget","General Rev and Exp (7) - CC(F-Cat4)/Fund(F-VM)/WO(M)/ACT(M)","IS","6500","GL","Active","Not in FRS","Not in YTD GL",null,null,null,false,6500,{"$f":"IFERROR(INDEX('Prod COA'!B:B,MATCH('CHART OF ACCOUNTS'!T637,'Prod COA'!E:E,0)),INDEX('Prod COA'!B:B,MATCH('CHART OF ACCOUNTS'!T637,'Prod COA'!A:A,0)))","v":{"$error":"#N/A"}}]
[2,"Statement of Operations","50","Expenses","650","Materials and supplies",6501,"Paper Supplies - Cafeteria","General Rev and Exp (7) - CC(F-Cat4)/Fund(F-VM)/WO(M)/ACT(M)","IS",null,"GL","Closed","Not in FRS","Not in YTD GL",null,null,null,false,6501,{"$f":"IFERROR(INDEX('Prod COA'!B:B,MATCH('CHART OF ACCOUNTS'!T638,'Prod COA'!E:E,0)),INDEX('Prod COA'!B:B,MATCH('CHART OF ACCOUNTS'!T638,'Prod COA'!A:A,0)))","v":{"$error":"#N/A"}}]
[2,"Statement of Operations","50","Expenses","650","Materials and supplies",6502,"Hospitality","General ResNo Rule (8) - CC(F-Cat4)/Fund(F-VM)/RESNO(O)/WO(M)/Act(M)","IS",null,"GL","Closed","Not in FRS","Not in YTD GL",null,null,null,false,6502,{"$f":"IFERROR(INDEX('Prod COA'!B:B,MATCH('CHART OF ACCOUNTS'!T639,'Prod COA'!E:E,0)),INDEX('Prod COA'!B:B,MATCH('CHART OF ACCOUNTS'!T639,'Prod COA'!A:A,0)))","v":{"$error":"#N/A"}}]
[2,"Statement of Operations","50","Expenses","650","Materials and supplies",6503,"First Aid","General Rev and Exp (7) - CC(F-Cat4)/Fund(F-VM)/WO(M)/ACT(M)","IS",null,"GL","Closed","Not in FRS","Not in YTD GL",null,null,null,false,6503,{"$f":"IFERROR(INDEX('Prod COA'!B:B,MATCH('CHART OF ACCOUNTS'!T640,'Prod COA'!E:E,0)),INDEX('Prod COA'!B:B,MATCH('CHART OF ACCOUNTS'!T640,'Prod COA'!A:A,0)))","v":{"$error":"#N/A"}}]
[2,"Statement of Operations","50","Expenses","650","Materials and supplies",6504,"Postage and Courier","General Rev and Exp (7) - CC(F-Cat4)/Fund(F-VM)/WO(M)/ACT(M)","IS",null,"GL","Closed","Not in FRS","Not in YTD GL",null,null,null,false,6504,{"$f":"IFERROR(INDEX('Prod COA'!B:B,MATCH('CHART OF ACCOUNTS'!T641,'Prod COA'!E:E,0)),INDEX('Prod COA'!B:B,MATCH('CHART OF ACCOUNTS'!T641,'Prod COA'!A:A,0)))","v":{"$error":"#N/A"}}]
[2,"Statement of Operations","50","Expenses","650","Materials and supplies",6505,"Office Supplies and Stationery - Budget","General ResNo Rule (8) - CC(F-Cat4)/Fund(F-VM)/RESNO(O)/WO(M)/Act(M)","IS","6505","GL","Active","Not in FRS","Not in YTD GL",null,null,null,false,6505,{"$f":"IFERROR(INDEX('Prod COA'!B:B,MATCH('CHART OF ACCOUNTS'!T642,'Prod COA'!E:E,0)),INDEX('Prod COA'!B:B,MATCH('CHART OF ACCOUNTS'!T642,'Prod COA'!A:A,0)))","v":{"$error":"#N/A"}}]
[2,"Statement of Operations","50","Expenses","650","Materials and supplies",6506,"Major Supplies - Computers","General Rev and Exp (7) - CC(F-Cat4)/Fund(F-VM)/WO(M)/ACT(M)","IS",null,"GL","Closed","Not in FRS","Not in YTD GL",null,null,null,false,{"$f":"IF(LEN(G643)=4,G643,K643)*1","v":6506},{"$f":"IFERROR(INDEX('Prod COA'!B:B,MATCH('CHART OF ACCOUNTS'!T643,'Prod COA'!E:E,0)),INDEX('Prod COA'!B:B,MATCH('CHART OF ACCOUNTS'!T643,'Prod COA'!A:A,0)))","v":{"$error":"#N/A"}}]
[2,"Statement of Operations","50","Expenses","650","Materials and supplies",6507,"Major Supplies - Equipment","General Rev and Exp (7) - CC(F-Cat4)/Fund(F-VM)/WO(M)/ACT(M)","IS",null,"GL","Closed","Not in FRS","Not in YTD GL",null,null,null,false,6507,{"$f":"IFERROR(INDEX('Prod COA'!B:B,MATCH('CHART OF ACCOUNTS'!T644,'Prod COA'!E:E,0)),INDEX('Prod COA'!B:B,MATCH('CHART OF ACCOUNTS'!T644,'Prod COA'!A:A,0)))","v":{"$error":"#N/A"}}]
[2,"Statement of Operations","50","Expenses","650","Materials and supplies",6508,"Inter-Library Loan","General Rev and Exp (7) - CC(F-Cat4)/Fund(F-VM)/WO(M)/ACT(M)","IS",null,"GL","Closed","Not in FRS","Not in YTD GL",null,null,null,false,6508,{"$f":"IFERROR(INDEX('Prod COA'!B:B,MATCH('CHART OF ACCOUNTS'!T645,'Prod COA'!E:E,0)),INDEX('Prod COA'!B:B,MATCH('CHART OF ACCOUNTS'!T645,'Prod COA'!A:A,0)))","v":{"$error":"#N/A"}}]
[2,"Statement of Operations","50","Expenses","650","Materials and supplies",6509,"Special Event Expenditures","General Rev and Exp (7) - CC(F-Cat4)/Fund(F-VM)/WO(M)/ACT(M)","IS",null,"GL","Closed","Not in FRS","Not in YTD GL",null,null,null,false,6509,{"$f":"IFERROR(INDEX('Prod COA'!B:B,MATCH('CHART OF ACCOUNTS'!T646,'Prod COA'!E:E,0)),INDEX('Prod COA'!B:B,MATCH('CHART OF ACCOUNTS'!T646,'Prod COA'!A:A,0)))","v":{"$error":"#N/A"}}]
[2,"Statement of Operations","50","Expenses","650","Materials and supplies",6510,"Software - Budget","General Rev and Exp (7) - CC(F-Cat4)/Fund(F-VM)/WO(M)/ACT(M)","IS","6510","GL","Closed","Not in FRS","Not in YTD GL",null,null,null,false,6510,{"$f":"IFERROR(INDEX('Prod COA'!B:B,MATCH('CHART OF ACCOUNTS'!T647,'Prod COA'!E:E,0)),INDEX('Prod COA'!B:B,MATCH('CHART OF ACCOUNTS'!T647,'Prod COA'!A:A,0)))","v":{"$error":"#N/A"}}]
[2,"Statement of Operations","50","Expenses","650","Materials and supplies",6511,"Instruction - Program Related Consumables","General Rev and Exp (7) - CC(F-Cat4)/Fund(F-VM)/WO(M)/ACT(M)","IS",null,"GL","Closed","Not in FRS","Not in YTD GL",null,null,null,false,6511,{"$f":"IFERROR(INDEX('Prod COA'!B:B,MATCH('CHART OF ACCOUNTS'!T648,'Prod COA'!E:E,0)),INDEX('Prod COA'!B:B,MATCH('CHART OF ACCOUNTS'!T648,'Prod COA'!A:A,0)))","v":{"$error":"#N/A"}}]
[2,"Statement of Operations","50","Expenses","650","Materials and supplies",6512,"Instruction - Book purchases (External)","General Rev and Exp (7) - CC(F-Cat4)/Fund(F-VM)/WO(M)/ACT(M)","IS",null,"GL","Closed","Not in FRS","Not in YTD GL",null,null,null,false,6512,{"$f":"IFERROR(INDEX('Prod COA'!B:B,MATCH('CHART OF ACCOUNTS'!T649,'Prod COA'!E:E,0)),INDEX('Prod COA'!B:B,MATCH('CHART OF ACCOUNTS'!T649,'Prod COA'!A:A,0)))","v":{"$error":"#N/A"}}]
[2,"Statement of Operations","50","Expenses","650","Materials and supplies",6513,"Printing and Duplicating (External)","General Rev and Exp (7) - CC(F-Cat4)/Fund(F-VM)/WO(M)/ACT(M)","IS",null,"GL","Closed","Not in FRS","Not in YTD GL",null,null,null,false,6513,{"$f":"IFERROR(INDEX('Prod COA'!B:B,MATCH('CHART OF ACCOUNTS'!T650,'Prod COA'!E:E,0)),INDEX('Prod COA'!B:B,MATCH('CHART OF ACCOUNTS'!T650,'Prod COA'!A:A,0)))","v":{"$error":"#N/A"}}]
[2,"Statement of Operations","50","Expenses","650","Materials and supplies",6514,"Gifts in Kind - Expense - to be eliminated?","General Rev and Exp (7) - CC(F-Cat4)/Fund(F-VM)/WO(M)/ACT(M)","IS",null,"GL","Closed","Not in FRS","Not in YTD GL",null,null,null,{"$f":"T651=#REF!","v":{"$error":"#REF!"}},6514,{"$f":"IFERROR(INDEX('Prod COA'!B:B,MATCH('CHART OF ACCOUNTS'!T651,'Prod COA'!E:E,0)),INDEX('Prod COA'!B:B,MATCH('CHART OF ACCOUNTS'!T651,'Prod COA'!A:A,0)))","v":{"$error":"#N/A"}}]
[2,"Statement of Operations","50","Expenses","650","Materials and supplies",6515,"Printing and Duplicating - Budget","General Rev and Exp (7) - CC(F-Cat4)/Fund(F-VM)/WO(M)/ACT(M)","IS","6515","GL","Active","Not in FRS","Not in YTD GL",null,null,null,false,6515,{"$f":"IFERROR(INDEX('Prod COA'!B:B,MATCH('CHART OF ACCOUNTS'!T652,'Prod COA'!E:E,0)),INDEX('Prod COA'!B:B,MATCH('CHART OF ACCOUNTS'!T652,'Prod COA'!A:A,0)))","v":{"$error":"#N/A"}}]
[2,"Statement of Operations","50","Expenses","650","Materials and supplies",6520,"Postage, Courier, and Freight- Budget","General Rev and Exp (7) - CC(F-Cat4)/Fund(F-VM)/WO(M)/ACT(M)","IS","6520","GL","Active","Not in FRS","Not in YTD GL",null,null,null,false,6520,{"$f":"IFERROR(INDEX('Prod COA'!B:B,MATCH('CHART OF ACCOUNTS'!T653,'Prod COA'!E:E,0)),INDEX('Prod COA'!B:B,MATCH('CHART OF ACCOUNTS'!T653,'Prod COA'!A:A,0)))","v":{"$error":"#N/A"}}]
[2,"Statement of Operations","50","Expenses","650","Materials and supplies",6525,"Miscellaneous Employee Expenses - Budget","General Rev and Exp (7) - CC(F-Cat4)/Fund(F-VM)/WO(M)/ACT(M)","IS","6525","GL","Active","Not in FRS","Not in YTD GL",null,null,null,false,6525,{"$f":"IFERROR(INDEX('Prod COA'!B:B,MATCH('CHART OF ACCOUNTS'!T654,'Prod COA'!E:E,0)),INDEX('Prod COA'!B:B,MATCH('CHART OF ACCOUNTS'!T654,'Prod COA'!A:A,0)))","v":{"$error":"#N/A"}}]
[2,"Statement of Operations","50","Expenses","650","Materials and supplies",6530,"Gifts in Kind - Expense - Budget","General Rev and Exp (7) - CC(F-Cat4)/Fund(F-VM)/WO(M)/ACT(M)","IS","6530","GL","Active","Not in FRS","Not in YTD GL",null,null,null,null,6530,{"$f":"IFERROR(INDEX('Prod COA'!B:B,MATCH('CHART OF ACCOUNTS'!T655,'Prod COA'!E:E,0)),INDEX('Prod COA'!B:B,MATCH('CHART OF ACCOUNTS'!T655,'Prod COA'!A:A,0)))","v":{"$error":"#N/A"}}]
[2,"Statement of Operations","50","Expenses","660","Cost of goods sold",6600,"Cost of Goods Sold - Budget","General Rev and Exp (7) - CC(F-Cat4)/Fund(F-VM)/WO(M)/ACT(M)","IS","6600","GL","Active","Not in FRS","Not in YTD GL",null,null,null,null,6600,{"$f":"IFERROR(INDEX('Prod COA'!B:B,MATCH('CHART OF ACCOUNTS'!T656,'Prod COA'!E:E,0)),INDEX('Prod COA'!B:B,MATCH('CHART OF ACCOUNTS'!T656,'Prod COA'!A:A,0)))","v":{"$error":"#N/A"}}]
[2,"Statement of Operations","50","Expenses","660","Cost of goods sold",6601,"Culinary Foods purchases","General Rev and Exp (7) - CC(F-Cat4)/Fund(F-VM)/WO(M)/ACT(M)","IS",null,"GL","Closed","Not in FRS","Not in YTD GL",null,null,null,null,6601,{"$f":"IFERROR(INDEX('Prod COA'!B:B,MATCH('CHART OF ACCOUNTS'!T657,'Prod COA'!E:E,0)),INDEX('Prod COA'!B:B,MATCH('CHART OF ACCOUNTS'!T657,'Prod COA'!A:A,0)))","v":{"$error":"#N/A"}}]
[2,"Statement of Operations","50","Expenses","660","Cost of goods sold",6602,"Hospitality Food","General Rev and Exp (7) - CC(F-Cat4)/Fund(F-VM)/WO(M)/ACT(M)","IS",null,"GL","Closed","Not in FRS","Not in YTD GL",null,null,null,null,6602,{"$f":"IFERROR(INDEX('Prod COA'!B:B,MATCH('CHART OF ACCOUNTS'!T658,'Prod COA'!E:E,0)),INDEX('Prod COA'!B:B,MATCH('CHART OF ACCOUNTS'!T658,'Prod COA'!A:A,0)))","v":{"$error":"#N/A"}}]
[2,"Statement of Operations","50","Expenses","660","Cost of goods sold",6603,"Food Services Food","General Rev and Exp (7) - CC(F-Cat4)/Fund(F-VM)/WO(M)/ACT(M)","IS",null,"GL","Closed","Not in FRS","Not in YTD GL",null,null,null,null,6603,{"$f":"IFERROR(INDEX('Prod COA'!B:B,MATCH('CHART OF ACCOUNTS'!T659,'Prod COA'!E:E,0)),INDEX('Prod COA'!B:B,MATCH('CHART OF ACCOUNTS'!T659,'Prod COA'!A:A,0)))","v":{"$error":"#N/A"}}]
[2,"Statement of Operations","50","Expenses","660","Cost of goods sold",6604,"Liquor purchases","General Rev and Exp (7) - CC(F-Cat4)/Fund(F-VM)/WO(M)/ACT(M)","IS",null,"GL","Closed","Not in FRS","Not in YTD GL",null,null,null,null,6604,{"$f":"IFERROR(INDEX('Prod COA'!B:B,MATCH('CHART OF ACCOUNTS'!T660,'Prod COA'!E:E,0)),INDEX('Prod COA'!B:B,MATCH('CHART OF ACCOUNTS'!T660,'Prod COA'!A:A,0)))","v":{"$error":"#N/A"}}]
[2,"Statement of Operations","50","Expenses","660","Cost of goods sold",6605,"Freight and Brokerage Fees - Budget","General Rev and Exp (7) - CC(F-Cat4)/Fund(F-VM)/WO(M)/ACT(M)","IS","6605","GL","Active","Not in FRS","Not in YTD GL",null,null,null,null,6605,{"$f":"IFERROR(INDEX('Prod COA'!B:B,MATCH('CHART OF ACCOUNTS'!T661,'Prod COA'!E:E,0)),INDEX('Prod COA'!B:B,MATCH('CHART OF ACCOUNTS'!T661,'Prod COA'!A:A,0)))","v":{"$error":"#N/A"}}]
[2,"Statement of Operations","50","Expenses","660","Cost of goods sold",6606,"Freight In","General Rev and Exp (7) - CC(F-Cat4)/Fund(F-VM)/WO(M)/ACT(M)","IS",null,"GL","Closed","Not in FRS","Not in YTD GL",null,null,null,null,6606,{"$f":"IFERROR(INDEX('Prod COA'!B:B,MATCH('CHART OF ACCOUNTS'!T662,'Prod COA'!E:E,0)),INDEX('Prod COA'!B:B,MATCH('CHART OF ACCOUNTS'!T662,'Prod COA'!A:A,0)))","v":{"$error":"#N/A"}}]
[2,"Statement of Operations","50","Expenses","660","Cost of goods sold",6607,"Freight Out","General Rev and Exp (7) - CC(F-Cat4)/Fund(F-VM)/WO(M)/ACT(M)","IS",null,"GL","Closed","Not in FRS","Not in YTD GL",null,null,null,null,6607,{"$f":"IFERROR(INDEX('Prod COA'!B:B,MATCH('CHART OF ACCOUNTS'!T663,'Prod COA'!E:E,0)),INDEX('Prod COA'!B:B,MATCH('CHART OF ACCOUNTS'!T663,'Prod COA'!A:A,0)))","v":{"$error":"#N/A"}}]
[2,"Statement of Operations","50","Expenses","660","Cost of goods sold",6608,"Brokerage Fees","General Rev and Exp (7) - CC(F-Cat4)/Fund(F-VM)/WO(M)/ACT(M)","IS",null,"GL","Closed","Not in FRS","Not in YTD GL",null,null,null,null,6608,{"$f":"IFERROR(INDEX('Prod COA'!B:B,MATCH('CHART OF ACCOUNTS'!T664,'Prod COA'!E:E,0)),INDEX('Prod COA'!B:B,MATCH('CHART OF ACCOUNTS'!T664,'Prod COA'!A:A,0)))","v":{"$error":"#N/A"}}]
[2,"Statement of Operations","50","Expenses","660","Cost of goods sold",6609,"Inventory adjustment","General Rev and Exp (7) - CC(F-Cat4)/Fund(F-VM)/WO(M)/ACT(M)","IS","6609","GL","Closed","Not in FRS","Not in YTD GL",null,null,null,null,6609,{"$f":"IFERROR(INDEX('Prod COA'!B:B,MATCH('CHART OF ACCOUNTS'!T665,'Prod COA'!E:E,0)),INDEX('Prod COA'!B:B,MATCH('CHART OF ACCOUNTS'!T665,'Prod COA'!A:A,0)))","v":{"$error":"#N/A"}}]
[2,"Statement of Operations","50","Expenses","660","Cost of goods sold",6610,"Bad Debt Expense - Budget","General Rev and Exp (7) - CC(F-Cat4)/Fund(F-VM)/WO(M)/ACT(M)","IS","6610","GL","Closed","Not in FRS","Not in YTD GL",null,null,null,null,6610,{"$f":"IFERROR(INDEX('Prod COA'!B:B,MATCH('CHART OF ACCOUNTS'!T666,'Prod COA'!E:E,0)),INDEX('Prod COA'!B:B,MATCH('CHART OF ACCOUNTS'!T666,'Prod COA'!A:A,0)))","v":{"$error":"#N/A"}}]
[2,"Statement of Operations","50","Expenses","660","Cost of goods sold",6700,"Bad Debt Expense","General Rev and Exp (7) - CC(F-Cat4)/Fund(F-VM)/WO(M)/ACT(M)","IS",null,"GL","Closed","Not in FRS","Not in YTD GL",null,null,null,null,6700,{"$f":"IFERROR(INDEX('Prod COA'!B:B,MATCH('CHART OF ACCOUNTS'!T667,'Prod COA'!E:E,0)),INDEX('Prod COA'!B:B,MATCH('CHART OF ACCOUNTS'!T667,'Prod COA'!A:A,0)))","v":{"$error":"#N/A"}}]
[2,"Statement of Operations","50","Expenses","680","Grants and Contributions",6800,"Contributions To VIU FDN - Internally Funded - Budget","General Rev and Exp (7) - CC(F-Cat4)/Fund(F-VM)/WO(M)/ACT(M)","IS","6800","GL","Active","Not in FRS","Not in YTD GL",null,null,null,null,6800,{"$f":"IFERROR(INDEX('Prod COA'!B:B,MATCH('CHART OF ACCOUNTS'!T668,'Prod COA'!E:E,0)),INDEX('Prod COA'!B:B,MATCH('CHART OF ACCOUNTS'!T668,'Prod COA'!A:A,0)))","v":{"$error":"#N/A"}}]
[2,"Statement of Operations","50","Expenses","680","Grants and Contributions",6801,"Contributions To VIU FDN - Externally Funded - Budget","General Rev and Exp (7) - CC(F-Cat4)/Fund(F-VM)/WO(M)/ACT(M)","IS","6801","GL","Active","Not in FRS","Not in YTD GL",null,null,null,null,6801,{"$f":"IFERROR(INDEX('Prod COA'!B:B,MATCH('CHART OF ACCOUNTS'!T669,'Prod COA'!E:E,0)),INDEX('Prod COA'!B:B,MATCH('CHART OF ACCOUNTS'!T669,'Prod COA'!A:A,0)))","v":{"$error":"#N/A"}}]
[2,"Statement of Operations","50","Expenses","680","Grants and Contributions",6805,"Grants Distributed To External Agencies - Budget","General Rev and Exp (7) - CC(F-Cat4)/Fund(F-VM)/WO(M)/ACT(M)","IS","6805","GL","Active","Not in FRS","Not in YTD GL",null,null,null,null,6805,{"$f":"IFERROR(INDEX('Prod COA'!B:B,MATCH('CHART OF ACCOUNTS'!T670,'Prod COA'!E:E,0)),INDEX('Prod COA'!B:B,MATCH('CHART OF ACCOUNTS'!T670,'Prod COA'!A:A,0)))","v":{"$error":"#N/A"}}]
[2,"Statement of Operations","40","Revenue","455","Revenue recognized from deferred capital contributions",7000,"Accretion Revenue on Deferred Capital Contributions - Provincial","Assets - DCC Revenue (9) - CC(F-9150)/Fund(F-50)/WO(M)/ACT(M-Default 500)/G(M)","IS","7000","GL","Active","Not in FRS","Not in YTD GL",null,null,null,null,7000,{"$f":"IFERROR(INDEX('Prod COA'!B:B,MATCH('CHART OF ACCOUNTS'!T671,'Prod COA'!E:E,0)),INDEX('Prod COA'!B:B,MATCH('CHART OF ACCOUNTS'!T671,'Prod COA'!A:A,0)))","v":{"$error":"#N/A"}}]
[2,"Statement of Operations","40","Revenue","455","Revenue recognized from deferred capital contributions",7001,"Accretion Revenue on Deferred Capital Contributions - Federal","Assets - DCC Revenue (9) - CC(F-9150)/Fund(F-50)/WO(M)/ACT(M-Default 500)/G(M)","IS","7001","GL","Active","Not in FRS","Not in YTD GL",null,null,null,null,7001,{"$f":"IFERROR(INDEX('Prod COA'!B:B,MATCH('CHART OF ACCOUNTS'!T672,'Prod COA'!E:E,0)),INDEX('Prod COA'!B:B,MATCH('CHART OF ACCOUNTS'!T672,'Prod COA'!A:A,0)))","v":{"$error":"#N/A"}}]
[2,"Statement of Operations","40","Revenue","455","Revenue recognized from deferred capital contributions",7002,"Accretion Revenue on Deferred Capital Contributions - Other","Assets - DCC Revenue (9) - CC(F-9150)/Fund(F-50)/WO(M)/ACT(M-Default 500)/G(M)","IS","7002","GL","Active","Not in FRS","Not in YTD GL",null,null,null,null,7002,{"$f":"IFERROR(INDEX('Prod COA'!B:B,MATCH('CHART OF ACCOUNTS'!T673,'Prod COA'!E:E,0)),INDEX('Prod COA'!B:B,MATCH('CHART OF ACCOUNTS'!T673,'Prod COA'!A:A,0)))","v":{"$error":"#N/A"}}]
[2,"Statement of Operations","40","Revenue","455","Revenue recognized from deferred capital contributions",7003,"FA DCC Provincial Revenue - Leasehold Improvements","Assets (3) - CC(F-9150)/Fund(F-50)/WO(M)/ACT(M-Default 500)","IS",null,"GL","Closed","Not in FRS","Not in YTD GL",null,null,null,null,7003,{"$f":"IFERROR(INDEX('Prod COA'!B:B,MATCH('CHART OF ACCOUNTS'!T674,'Prod COA'!E:E,0)),INDEX('Prod COA'!B:B,MATCH('CHART OF ACCOUNTS'!T674,'Prod COA'!A:A,0)))","v":{"$error":"#N/A"}}]
[2,"Statement of Operations","40","Revenue","455","Revenue recognized from deferred capital contributions",7004,"FA DCC Provincial Revenue - Library","Assets (3) - CC(F-9150)/Fund(F-50)/WO(M)/ACT(M-Default 500)","IS",null,"GL","Closed","Not in FRS","Not in YTD GL",null,null,null,null,7004,{"$f":"IFERROR(INDEX('Prod COA'!B:B,MATCH('CHART OF ACCOUNTS'!T675,'Prod COA'!E:E,0)),INDEX('Prod COA'!B:B,MATCH('CHART OF ACCOUNTS'!T675,'Prod COA'!A:A,0)))","v":{"$error":"#N/A"}}]
[2,"Statement of Operations","40","Revenue","455","Revenue recognized from deferred capital contributions",7005,"FA DCC Provincial Revenue - Site Improvements","Assets (3) - CC(F-9150)/Fund(F-50)/WO(M)/ACT(M-Default 500)","IS",null,"GL","Closed","Not in FRS","Not in YTD GL",null,null,null,null,7005,{"$f":"IFERROR(INDEX('Prod COA'!B:B,MATCH('CHART OF ACCOUNTS'!T676,'Prod COA'!E:E,0)),INDEX('Prod COA'!B:B,MATCH('CHART OF ACCOUNTS'!T676,'Prod COA'!A:A,0)))","v":{"$error":"#N/A"}}]
[2,"Statement of Operations","40","Revenue","455","Revenue recognized from deferred capital contributions",7006,"FA DCC Provincial Revenue - Vehicles","Assets (3) - CC(F-9150)/Fund(F-50)/WO(M)/ACT(M-Default 500)","IS",null,"GL","Closed","Not in FRS","Not in YTD GL",null,null,null,null,7006,{"$f":"IFERROR(INDEX('Prod COA'!B:B,MATCH('CHART OF ACCOUNTS'!T677,'Prod COA'!E:E,0)),INDEX('Prod COA'!B:B,MATCH('CHART OF ACCOUNTS'!T677,'Prod COA'!A:A,0)))","v":{"$error":"#N/A"}}]
[2,"Statement of Operations","40","Revenue","455","Revenue recognized from deferred capital contributions",7007,"FA DCC Provincial Revenue - TBD","Assets (3) - CC(F-9150)/Fund(F-50)/WO(M)/ACT(M-Default 500)","IS",null,"GL","Closed","Not in FRS","Not in YTD GL",null,null,null,null,7007,{"$f":"IFERROR(INDEX('Prod COA'!B:B,MATCH('CHART OF ACCOUNTS'!T678,'Prod COA'!E:E,0)),INDEX('Prod COA'!B:B,MATCH('CHART OF ACCOUNTS'!T678,'Prod COA'!A:A,0)))","v":{"$error":"#N/A"}}]
[2,"Statement of Operations","40","Revenue","455","Revenue recognized from deferred capital contributions",7100,"Capital Contributions Suspense - Provincial","Assets (3) - CC(F-9150)/Fund(F-50)/WO(M)/ACT(M-Default 500)","IS","7100","GL","Active","Not in FRS","Not in YTD GL",null,null,null,null,7100,{"$f":"IFERROR(INDEX('Prod COA'!B:B,MATCH('CHART OF ACCOUNTS'!T679,'Prod COA'!E:E,0)),INDEX('Prod COA'!B:B,MATCH('CHART OF ACCOUNTS'!T679,'Prod COA'!A:A,0)))","v":{"$error":"#N/A"}}]
[2,"Statement of Operations","40","Revenue","455","Revenue recognized from deferred capital contributions",7101,"Capital Contributions Suspense - Federal","Assets (3) - CC(F-9150)/Fund(F-50)/WO(M)/ACT(M-Default 500)","IS","7101","GL","Active","Not in FRS","Not in YTD GL",null,null,null,null,7101,{"$f":"IFERROR(INDEX('Prod COA'!B:B,MATCH('CHART OF ACCOUNTS'!T680,'Prod COA'!E:E,0)),INDEX('Prod COA'!B:B,MATCH('CHART OF ACCOUNTS'!T680,'Prod COA'!A:A,0)))","v":{"$error":"#N/A"}}]
[2,"Statement of Operations","40","Revenue","455","Revenue recognized from deferred capital contributions",7102,"Capital Contributions Suspense - Other","Assets (3) - CC(F-9150)/Fund(F-50)/WO(M)/ACT(M-Default 500)","IS","7102","GL","Active","Not in FRS","Not in YTD GL",null,null,null,null,7102,{"$f":"IFERROR(INDEX('Prod COA'!B:B,MATCH('CHART OF ACCOUNTS'!T681,'Prod COA'!E:E,0)),INDEX('Prod COA'!B:B,MATCH('CHART OF ACCOUNTS'!T681,'Prod COA'!A:A,0)))","v":{"$error":"#N/A"}}]
[2,"Statement of Operations","40","Revenue","455","Revenue recognized from deferred capital contributions",7103,"FA DCC Federal Revenue - Leasehold Improvements","Assets (3) - CC(F-9150)/Fund(F-50)/WO(M)/ACT(M-Default 500)","IS",null,"GL","Closed","Not in FRS","Not in YTD GL",null,null,null,null,7103,{"$f":"IFERROR(INDEX('Prod COA'!B:B,MATCH('CHART OF ACCOUNTS'!T682,'Prod COA'!E:E,0)),INDEX('Prod COA'!B:B,MATCH('CHART OF ACCOUNTS'!T682,'Prod COA'!A:A,0)))","v":{"$error":"#N/A"}}]
[2,"Statement of Operations","40","Revenue","455","Revenue recognized from deferred capital contributions",7104,"FA DCC Federal Revenue - Library","Assets (3) - CC(F-9150)/Fund(F-50)/WO(M)/ACT(M-Default 500)","IS",null,"GL","Closed","Not in FRS","Not in YTD GL",null,null,null,null,7104,{"$f":"IFERROR(INDEX('Prod COA'!B:B,MATCH('CHART OF ACCOUNTS'!T683,'Prod COA'!E:E,0)),INDEX('Prod COA'!B:B,MATCH('CHART OF ACCOUNTS'!T683,'Prod COA'!A:A,0)))","v":{"$error":"#N/A"}}]
[2,"Statement of Operations","40","Revenue","455","Revenue recognized from deferred capital contributions",7105,"FA DCC Federal Revenue - Site Improvements","Assets (3) - CC(F-9150)/Fund(F-50)/WO(M)/ACT(M-Default 500)","IS",null,"GL","Closed","Not in FRS","Not in YTD GL",null,null,null,null,7105,{"$f":"IFERROR(INDEX('Prod COA'!B:B,MATCH('CHART OF ACCOUNTS'!T684,'Prod COA'!E:E,0)),INDEX('Prod COA'!B:B,MATCH('CHART OF ACCOUNTS'!T684,'Prod COA'!A:A,0)))","v":{"$error":"#N/A"}}]
[2,"Statement of Operations","40","Revenue","455","Revenue recognized from deferred capital contributions",7106,"FA DCC Federal Revenue - Vehicles","Assets (3) - CC(F-9150)/Fund(F-50)/WO(M)/ACT(M-Default 500)","IS",null,"GL","Closed","Not in FRS","Not in YTD GL",null,null,null,null,7106,{"$f":"IFERROR(INDEX('Prod COA'!B:B,MATCH('CHART OF ACCOUNTS'!T685,'Prod COA'!E:E,0)),INDEX('Prod COA'!B:B,MATCH('CHART OF ACCOUNTS'!T685,'Prod COA'!A:A,0)))","v":{"$error":"#N/A"}}]
[2,"Statement of Operations","40","Revenue","455","Revenue recognized from deferred capital contributions",7107,"FA DCC Federal Revenue - TBD","Assets (3) - CC(F-9150)/Fund(F-50)/WO(M)/ACT(M-Default 500)","IS",null,"GL","Closed","Not in FRS","Not in YTD GL",null,null,null,null,7107,{"$f":"IFERROR(INDEX('Prod COA'!B:B,MATCH('CHART OF ACCOUNTS'!T686,'Prod COA'!E:E,0)),INDEX('Prod COA'!B:B,MATCH('CHART OF ACCOUNTS'!T686,'Prod COA'!A:A,0)))","v":{"$error":"#N/A"}}]
[2,"Statement of Operations","40","Revenue","455","Revenue recognized from deferred capital contributions",7200,"FA DCC Other Revenue - Buildings","Assets (3) - CC(F-9150)/Fund(F-50)/WO(M)/ACT(M-Default 500)","IS",null,"GL","Closed","Not in FRS","Not in YTD GL",null,null,null,null,7200,{"$f":"IFERROR(INDEX('Prod COA'!B:B,MATCH('CHART OF ACCOUNTS'!T687,'Prod COA'!E:E,0)),INDEX('Prod COA'!B:B,MATCH('CHART OF ACCOUNTS'!T687,'Prod COA'!A:A,0)))","v":{"$error":"#N/A"}}]
[2,"Statement of Operations","40","Revenue","455","Revenue recognized from deferred capital contributions",7201,"FA DCC Other Revenue - Computers and Software","Assets (3) - CC(F-9150)/Fund(F-50)/WO(M)/ACT(M-Default 500)","IS",null,"GL","Closed","Not in FRS","Not in YTD GL",null,null,null,null,7201,{"$f":"IFERROR(INDEX('Prod COA'!B:B,MATCH('CHART OF ACCOUNTS'!T688,'Prod COA'!E:E,0)),INDEX('Prod COA'!B:B,MATCH('CHART OF ACCOUNTS'!T688,'Prod COA'!A:A,0)))","v":{"$error":"#N/A"}}]
[2,"Statement of Operations","40","Revenue","455","Revenue recognized from deferred capital contributions",7202,"FA DCC Other Revenue - Furniture and Equipment","Assets (3) - CC(F-9150)/Fund(F-50)/WO(M)/ACT(M-Default 500)","IS",null,"GL","Closed","Not in FRS","Not in YTD GL",null,null,null,null,7202,{"$f":"IFERROR(INDEX('Prod COA'!B:B,MATCH('CHART OF ACCOUNTS'!T689,'Prod COA'!E:E,0)),INDEX('Prod COA'!B:B,MATCH('CHART OF ACCOUNTS'!T689,'Prod COA'!A:A,0)))","v":{"$error":"#N/A"}}]
[2,"Statement of Operations","40","Revenue","455","Revenue recognized from deferred capital contributions",7203,"FA DCC Other Revenue - Leasehold Improvements","Assets (3) - CC(F-9150)/Fund(F-50)/WO(M)/ACT(M-Default 500)","IS",null,"GL","Closed","Not in FRS","Not in YTD GL",null,null,null,null,7203,{"$f":"IFERROR(INDEX('Prod COA'!B:B,MATCH('CHART OF ACCOUNTS'!T690,'Prod COA'!E:E,0)),INDEX('Prod COA'!B:B,MATCH('CHART OF ACCOUNTS'!T690,'Prod COA'!A:A,0)))","v":{"$error":"#N/A"}}]
[2,"Statement of Operations","40","Revenue","455","Revenue recognized from deferred capital contributions",7204,"FA DCC Other Revenue - Library","Assets (3) - CC(F-9150)/Fund(F-50)/WO(M)/ACT(M-Default 500)","IS",null,"GL","Closed","Not in FRS","Not in YTD GL",null,null,null,null,7204,{"$f":"IFERROR(INDEX('Prod COA'!B:B,MATCH('CHART OF ACCOUNTS'!T691,'Prod COA'!E:E,0)),INDEX('Prod COA'!B:B,MATCH('CHART OF ACCOUNTS'!T691,'Prod COA'!A:A,0)))","v":{"$error":"#N/A"}}]
[2,"Statement of Operations","40","Revenue","455","Revenue recognized from deferred capital contributions",7205,"FA DCC Other Revenue - Site Improvements","Assets (3) - CC(F-9150)/Fund(F-50)/WO(M)/ACT(M-Default 500)","IS",null,"GL","Closed","Not in FRS","Not in YTD GL",null,null,null,null,7205,{"$f":"IFERROR(INDEX('Prod COA'!B:B,MATCH('CHART OF ACCOUNTS'!T692,'Prod COA'!E:E,0)),INDEX('Prod COA'!B:B,MATCH('CHART OF ACCOUNTS'!T692,'Prod COA'!A:A,0)))","v":{"$error":"#N/A"}}]
[2,"Statement of Operations","40","Revenue","455","Revenue recognized from deferred capital contributions",7206,"FA DCC Other Revenue - Vehicles","Assets (3) - CC(F-9150)/Fund(F-50)/WO(M)/ACT(M-Default 500)","IS",null,"GL","Closed","Not in FRS","Not in YTD GL",null,null,null,null,7206,{"$f":"IFERROR(INDEX('Prod COA'!B:B,MATCH('CHART OF ACCOUNTS'!T693,'Prod COA'!E:E,0)),INDEX('Prod COA'!B:B,MATCH('CHART OF ACCOUNTS'!T693,'Prod COA'!A:A,0)))","v":{"$error":"#N/A"}}]
[2,"Statement of Operations","40","Revenue","485","Gain (Loss) on sale of tangible capital assets",7400,"Capital Asset Adjustments - Gain (Loss) on Asset Disposal","Assets (3) - CC(F-9150)/Fund(F-50)/WO(M)/ACT(M-Default 500)","IS","7400","GL","Active","Not in FRS","Not in YTD GL",null,null,null,null,7400,{"$f":"IFERROR(INDEX('Prod COA'!B:B,MATCH('CHART OF ACCOUNTS'!T694,'Prod COA'!E:E,0)),INDEX('Prod COA'!B:B,MATCH('CHART OF ACCOUNTS'!T694,'Prod COA'!A:A,0)))","v":{"$error":"#N/A"}}]
[2,"Statement of Operations","40","Revenue","485","Gain (Loss) on sale of tangible capital assets",7450,"Capital Gain (Loss) - Other","Assets (3) - CC(F-9150)/Fund(F-50)/WO(M)/ACT(M-Default 500)","IS","7450","GL","Closed","Not in FRS","Not in YTD GL",null,null,null,null,7450,{"$f":"IFERROR(INDEX('Prod COA'!B:B,MATCH('CHART OF ACCOUNTS'!T695,'Prod COA'!E:E,0)),INDEX('Prod COA'!B:B,MATCH('CHART OF ACCOUNTS'!T695,'Prod COA'!A:A,0)))","v":{"$error":"#N/A"}}]
[2,"Statement of Operations","40","Revenue","495","Other revenue - Capital",7499,"Capital revenue - Suspense","Assets (3) - CC(F-9150)/Fund(F-50)/WO(M)/ACT(M-Default 500)","IS","7499","GL","Closed","Not in FRS","Not in YTD GL",null,null,null,null,7499,{"$f":"IFERROR(INDEX('Prod COA'!B:B,MATCH('CHART OF ACCOUNTS'!T696,'Prod COA'!E:E,0)),INDEX('Prod COA'!B:B,MATCH('CHART OF ACCOUNTS'!T696,'Prod COA'!A:A,0)))","v":{"$error":"#N/A"}}]
[2,"Statement of Operations","50","Expenses","750","Amortization of tangible capital assets",7500,"Amortization Expense - New Building Construction","Assets (3) - CC(F-9150)/Fund(F-50)/WO(M)/ACT(M-Default 500)","IS","7500","GL","Active","Not in FRS","Not in YTD GL",null,null,null,null,7500,{"$f":"IFERROR(INDEX('Prod COA'!B:B,MATCH('CHART OF ACCOUNTS'!T697,'Prod COA'!E:E,0)),INDEX('Prod COA'!B:B,MATCH('CHART OF ACCOUNTS'!T697,'Prod COA'!A:A,0)))","v":{"$error":"#N/A"}}]
[2,"Statement of Operations","50","Expenses","750","Amortization of tangible capital assets",7501,"Amortization Expense - Building Retrofit","Assets (3) - CC(F-9150)/Fund(F-50)/WO(M)/ACT(M-Default 500)","IS","7501","GL","Active","Not in FRS","Not in YTD GL",null,null,null,null,7501,{"$f":"IFERROR(INDEX('Prod COA'!B:B,MATCH('CHART OF ACCOUNTS'!T698,'Prod COA'!E:E,0)),INDEX('Prod COA'!B:B,MATCH('CHART OF ACCOUNTS'!T698,'Prod COA'!A:A,0)))","v":{"$error":"#N/A"}}]
[2,"Statement of Operations","50","Expenses","750","Amortization of tangible capital assets",7502,"Amortization Expense - Computer Equipment","Assets (3) - CC(F-9150)/Fund(F-50)/WO(M)/ACT(M-Default 500)","IS","7502","GL","Active","Not in FRS","Not in YTD GL",null,null,null,null,7502,{"$f":"IFERROR(INDEX('Prod COA'!B:B,MATCH('CHART OF ACCOUNTS'!T699,'Prod COA'!E:E,0)),INDEX('Prod COA'!B:B,MATCH('CHART OF ACCOUNTS'!T699,'Prod COA'!A:A,0)))","v":{"$error":"#N/A"}}]
[2,"Statement of Operations","50","Expenses","750","Amortization of tangible capital assets",7503,"Amortization Expense - Computer Software","Assets (3) - CC(F-9150)/Fund(F-50)/WO(M)/ACT(M-Default 500)","IS","7503","GL","Active","Not in FRS","Not in YTD GL",null,null,null,null,7503,{"$f":"IFERROR(INDEX('Prod COA'!B:B,MATCH('CHART OF ACCOUNTS'!T700,'Prod COA'!E:E,0)),INDEX('Prod COA'!B:B,MATCH('CHART OF ACCOUNTS'!T700,'Prod COA'!A:A,0)))","v":{"$error":"#N/A"}}]
[2,"Statement of Operations","50","Expenses","750","Amortization of tangible capital assets",7504,"Amortization  Expense - Furniture","Assets (3) - CC(F-9150)/Fund(F-50)/WO(M)/ACT(M-Default 500)","IS","7504","GL","Active","Not in FRS","Not in YTD GL",null,null,null,null,7504,{"$f":"IFERROR(INDEX('Prod COA'!B:B,MATCH('CHART OF ACCOUNTS'!T701,'Prod COA'!E:E,0)),INDEX('Prod COA'!B:B,MATCH('CHART OF ACCOUNTS'!T701,'Prod COA'!A:A,0)))","v":{"$error":"#N/A"}}]
[2,"Statement of Operations","50","Expenses","750","Amortization of tangible capital assets",7505,"Amortization Expense - Equipment","Assets (3) - CC(F-9150)/Fund(F-50)/WO(M)/ACT(M-Default 500)","IS","7505","GL","Active","Not in FRS","Not in YTD GL",null,null,null,null,7505,{"$f":"IFERROR(INDEX('Prod COA'!B:B,MATCH('CHART OF ACCOUNTS'!T702,'Prod COA'!E:E,0)),INDEX('Prod COA'!B:B,MATCH('CHART OF ACCOUNTS'!T702,'Prod COA'!A:A,0)))","v":{"$error":"#N/A"}}]
[2,"Statement of Operations","50","Expenses","750","Amortization of tangible capital assets",7506,"Amortization Expense - Leasehold Improvements","Assets (3) - CC(F-9150)/Fund(F-50)/WO(M)/ACT(M-Default 500)","IS","7506","GL","Active","Not in FRS","Not in YTD GL",null,null,null,null,7506,{"$f":"IFERROR(INDEX('Prod COA'!B:B,MATCH('CHART OF ACCOUNTS'!T703,'Prod COA'!E:E,0)),INDEX('Prod COA'!B:B,MATCH('CHART OF ACCOUNTS'!T703,'Prod COA'!A:A,0)))","v":{"$error":"#N/A"}}]
[2,"Statement of Operations","50","Expenses","750","Amortization of tangible capital assets",7507,"Amortization Expense - Library Books","Assets (3) - CC(F-9150)/Fund(F-50)/WO(M)/ACT(M-Default 500)","IS","7507","GL","Active","Not in FRS","Not in YTD GL",null,null,null,null,7507,{"$f":"IFERROR(INDEX('Prod COA'!B:B,MATCH('CHART OF ACCOUNTS'!T704,'Prod COA'!E:E,0)),INDEX('Prod COA'!B:B,MATCH('CHART OF ACCOUNTS'!T704,'Prod COA'!A:A,0)))","v":{"$error":"#N/A"}}]
[2,"Statement of Operations","50","Expenses","750","Amortization of tangible capital assets",7508,"Amortization Expense - Site Improvements (Land)","Assets (3) - CC(F-9150)/Fund(F-50)/WO(M)/ACT(M-Default 500)","IS","7508","GL","Active","Not in FRS","Not in YTD GL",null,null,null,null,7508,{"$f":"IFERROR(INDEX('Prod COA'!B:B,MATCH('CHART OF ACCOUNTS'!T705,'Prod COA'!E:E,0)),INDEX('Prod COA'!B:B,MATCH('CHART OF ACCOUNTS'!T705,'Prod COA'!A:A,0)))","v":{"$error":"#N/A"}}]
[2,"Statement of Operations","50","Expenses","750","Amortization of tangible capital assets",7509,"Amortization Expense - Vehicles","Assets (3) - CC(F-9150)/Fund(F-50)/WO(M)/ACT(M-Default 500)","IS","7509","GL","Active","Not in FRS","Not in YTD GL",null,null,null,null,7509,{"$f":"IFERROR(INDEX('Prod COA'!B:B,MATCH('CHART OF ACCOUNTS'!T706,'Prod COA'!E:E,0)),INDEX('Prod COA'!B:B,MATCH('CHART OF ACCOUNTS'!T706,'Prod COA'!A:A,0)))","v":{"$error":"#N/A"}}]
[2,"Statement of Operations","50","Expenses","755","Capital expenses - Other",7550,"Capital Asset Adjustments - Loss on Asset Disposal","Assets (3) - CC(F-9150)/Fund(F-50)/WO(M)/ACT(M-Default 500)","IS","7550","GL","Closed","Not in FRS","Not in YTD GL",null,null,null,null,{"$f":"IF(LEN(G707)=4,G707,K707)*1","v":7550},{"$f":"IFERROR(INDEX('Prod COA'!B:B,MATCH('CHART OF ACCOUNTS'!T707,'Prod COA'!E:E,0)),INDEX('Prod COA'!B:B,MATCH('CHART OF ACCOUNTS'!T707,'Prod COA'!A:A,0)))","v":{"$error":"#N/A"}}]
[2,"Statement of Operations","50","Expenses","755","Capital expenses - Other",7555,"Capital Asset Adjustments - Capital Asset Write-Down","Assets (3) - CC(F-9150)/Fund(F-50)/WO(M)/ACT(M-Default 500)","IS","7555","GL","Active","Not in FRS","Not in YTD GL",null,null,null,null,7555,{"$f":"IFERROR(INDEX('Prod COA'!B:B,MATCH('CHART OF ACCOUNTS'!T708,'Prod COA'!E:E,0)),INDEX('Prod COA'!B:B,MATCH('CHART OF ACCOUNTS'!T708,'Prod COA'!A:A,0)))","v":{"$error":"#N/A"}}]
[2,"Statement of Operations","50","Expenses","755","Capital expenses - Other",7600,"FA General Expenses","Assets (3) - CC(F-9150)/Fund(F-50)/WO(M)/ACT(M-Default 500)","IS",7600,"GL","Closed","Not in FRS","Not in YTD GL",null,null,null,null,7600,{"$f":"IFERROR(INDEX('Prod COA'!B:B,MATCH('CHART OF ACCOUNTS'!T709,'Prod COA'!E:E,0)),INDEX('Prod COA'!B:B,MATCH('CHART OF ACCOUNTS'!T709,'Prod COA'!A:A,0)))","v":{"$error":"#N/A"}}]
[2,"Statement of Operations","77","Capital additions - to be capitalized","770","Capital additions - to be capitalized",7700,"Capital Purchases - Buildings","Assets (3) - CC(F-9150)/Fund(F-50)/WO(M)/ACT(M-Default 500)","IS","7700","GL","Active","Not in FRS","Not in YTD GL",null,null,null,null,7700,{"$f":"IFERROR(INDEX('Prod COA'!B:B,MATCH('CHART OF ACCOUNTS'!T710,'Prod COA'!E:E,0)),INDEX('Prod COA'!B:B,MATCH('CHART OF ACCOUNTS'!T710,'Prod COA'!A:A,0)))","v":{"$error":"#N/A"}}]
[2,"Statement of Operations","77","Capital additions - to be capitalized","770","Capital additions - to be capitalized",7701,"Capital Purchases - Building Retrofit","Assets (3) - CC(F-9150)/Fund(F-50)/WO(M)/ACT(M-Default 500)","IS","7701","GL","Active","Not in FRS","Not in YTD GL",null,null,null,null,7701,{"$f":"IFERROR(INDEX('Prod COA'!B:B,MATCH('CHART OF ACCOUNTS'!T711,'Prod COA'!E:E,0)),INDEX('Prod COA'!B:B,MATCH('CHART OF ACCOUNTS'!T711,'Prod COA'!A:A,0)))","v":{"$error":"#N/A"}}]
[2,"Statement of Operations","77","Capital additions - to be capitalized","770","Capital additions - to be capitalized",7702,"Capital Purchases - Computer Equipment","Assets (3) - CC(F-9150)/Fund(F-50)/WO(M)/ACT(M-Default 500)","IS","7702","GL","Active","Not in FRS","Not in YTD GL",null,null,null,null,7702,{"$f":"IFERROR(INDEX('Prod COA'!B:B,MATCH('CHART OF ACCOUNTS'!T712,'Prod COA'!E:E,0)),INDEX('Prod COA'!B:B,MATCH('CHART OF ACCOUNTS'!T712,'Prod COA'!A:A,0)))","v":{"$error":"#N/A"}}]
[2,"Statement of Operations","77","Capital additions - to be capitalized","770","Capital additions - to be capitalized",7703,"Capital Purchases - Network and Server Equipment","Assets (3) - CC(F-9150)/Fund(F-50)/WO(M)/ACT(M-Default 500)","IS","7703","GL","Active","Not in FRS","Not in YTD GL",null,null,null,null,7703,{"$f":"IFERROR(INDEX('Prod COA'!B:B,MATCH('CHART OF ACCOUNTS'!T713,'Prod COA'!E:E,0)),INDEX('Prod COA'!B:B,MATCH('CHART OF ACCOUNTS'!T713,'Prod COA'!A:A,0)))","v":{"$error":"#N/A"}}]
[2,"Statement of Operations","77","Capital additions - to be capitalized","770","Capital additions - to be capitalized",7704,"Capital Purchases - Computer Software","Assets (3) - CC(F-9150)/Fund(F-50)/WO(M)/ACT(M-Default 500)","IS","7704","GL","Active","Not in FRS","Not in YTD GL",null,null,null,null,7704,{"$f":"IFERROR(INDEX('Prod COA'!B:B,MATCH('CHART OF ACCOUNTS'!T714,'Prod COA'!E:E,0)),INDEX('Prod COA'!B:B,MATCH('CHART OF ACCOUNTS'!T714,'Prod COA'!A:A,0)))","v":{"$error":"#N/A"}}]
[2,"Statement of Operations","77","Capital additions - to be capitalized","770","Capital additions - to be capitalized",7705,"Capital Purchases - Enterprise Systems","Assets (3) - CC(F-9150)/Fund(F-50)/WO(M)/ACT(M-Default 500)","IS","7705","GL","Active","Not in FRS","Not in YTD GL",null,null,null,null,7705,{"$f":"IFERROR(INDEX('Prod COA'!B:B,MATCH('CHART OF ACCOUNTS'!T715,'Prod COA'!E:E,0)),INDEX('Prod COA'!B:B,MATCH('CHART OF ACCOUNTS'!T715,'Prod COA'!A:A,0)))","v":{"$error":"#N/A"}}]
[2,"Statement of Operations","77","Capital additions - to be capitalized","770","Capital additions - to be capitalized",7706,"Capital Purchases - Furniture","Assets (3) - CC(F-9150)/Fund(F-50)/WO(M)/ACT(M-Default 500)","IS","7706","GL","Active","Not in FRS","Not in YTD GL",null,null,null,null,7706,{"$f":"IFERROR(INDEX('Prod COA'!B:B,MATCH('CHART OF ACCOUNTS'!T716,'Prod COA'!E:E,0)),INDEX('Prod COA'!B:B,MATCH('CHART OF ACCOUNTS'!T716,'Prod COA'!A:A,0)))","v":{"$error":"#N/A"}}]
[2,"Statement of Operations","77","Capital additions - to be capitalized","770","Capital additions - to be capitalized",7707,"Capital Purchases - Equipment","Assets (3) - CC(F-9150)/Fund(F-50)/WO(M)/ACT(M-Default 500)","IS","7707","GL","Active","Not in FRS","Not in YTD GL",null,null,null,null,7707,{"$f":"IFERROR(INDEX('Prod COA'!B:B,MATCH('CHART OF ACCOUNTS'!T717,'Prod COA'!E:E,0)),INDEX('Prod COA'!B:B,MATCH('CHART OF ACCOUNTS'!T717,'Prod COA'!A:A,0)))","v":{"$error":"#N/A"}}]
[2,"Statement of Operations","77","Capital additions - to be capitalized","770","Capital additions - to be capitalized",7708,"Capital Purchases - Leasehold Improvements","Assets (3) - CC(F-9150)/Fund(F-50)/WO(M)/ACT(M-Default 500)","IS","7708","GL","Active","Not in FRS","Not in YTD GL",null,null,null,null,7708,{"$f":"IFERROR(INDEX('Prod COA'!B:B,MATCH('CHART OF ACCOUNTS'!T718,'Prod COA'!E:E,0)),INDEX('Prod COA'!B:B,MATCH('CHART OF ACCOUNTS'!T718,'Prod COA'!A:A,0)))","v":{"$error":"#N/A"}}]
[2,"Statement of Operations","77","Capital additions - to be capitalized","770","Capital additions - to be capitalized",7709,"Capital Purchases - Library Books","Assets (3) - CC(F-9150)/Fund(F-50)/WO(M)/ACT(M-Default 500)","IS","7709","GL","Active","Not in FRS","Not in YTD GL",null,null,null,null,7709,{"$f":"IFERROR(INDEX('Prod COA'!B:B,MATCH('CHART OF ACCOUNTS'!T719,'Prod COA'!E:E,0)),INDEX('Prod COA'!B:B,MATCH('CHART OF ACCOUNTS'!T719,'Prod COA'!A:A,0)))","v":{"$error":"#N/A"}}]
[2,"Statement of Operations","77","Capital additions - to be capitalized","770","Capital additions - to be capitalized",7710,"Capital Purchases - Site Improvements (Land)","Assets (3) - CC(F-9150)/Fund(F-50)/WO(M)/ACT(M-Default 500)","IS","7710","GL","Active","Not in FRS","Not in YTD GL",null,null,null,null,7710,{"$f":"IFERROR(INDEX('Prod COA'!B:B,MATCH('CHART OF ACCOUNTS'!T720,'Prod COA'!E:E,0)),INDEX('Prod COA'!B:B,MATCH('CHART OF ACCOUNTS'!T720,'Prod COA'!A:A,0)))","v":{"$error":"#N/A"}}]
[2,"Statement of Operations","77","Capital additions - to be capitalized","770","Capital additions - to be capitalized",7711,"Capital Purchases - Vehicles","Assets (3) - CC(F-9150)/Fund(F-50)/WO(M)/ACT(M-Default 500)","IS","7711","GL","Active","Not in FRS","Not in YTD GL",null,null,null,null,7711,{"$f":"IFERROR(INDEX('Prod COA'!B:B,MATCH('CHART OF ACCOUNTS'!T721,'Prod COA'!E:E,0)),INDEX('Prod COA'!B:B,MATCH('CHART OF ACCOUNTS'!T721,'Prod COA'!A:A,0)))","v":{"$error":"#N/A"}}]
[2,"Statement of Operations","77","Capital additions - to be capitalized","770","Capital additions - to be capitalized",7712,"Capital Purchases - Land","Assets (3) - CC(F-9150)/Fund(F-50)/WO(M)/ACT(M-Default 500)","IS","7712","GL","Active","Not in FRS","Not in YTD GL",null,null,null,null,7712,{"$f":"IFERROR(INDEX('Prod COA'!B:B,MATCH('CHART OF ACCOUNTS'!T722,'Prod COA'!E:E,0)),INDEX('Prod COA'!B:B,MATCH('CHART OF ACCOUNTS'!T722,'Prod COA'!A:A,0)))","v":{"$error":"#N/A"}}]
[2,"Statement of Operations","78","Transfers to Capital Assets","780","Transfers to Capital Assets",7800,"Capital Transfers","Assets (3) - CC(F-9150)/Fund(F-50)/WO(M)/ACT(M-Default 500)","IS","7800","GL","Active","Not in FRS","Not in YTD GL",null,null,null,null,7800,{"$f":"IFERROR(INDEX('Prod COA'!B:B,MATCH('CHART OF ACCOUNTS'!T723,'Prod COA'!E:E,0)),INDEX('Prod COA'!B:B,MATCH('CHART OF ACCOUNTS'!T723,'Prod COA'!A:A,0)))","v":{"$error":"#N/A"}}]
[2,"Statement of Operations","78","Transfers to Capital Assets","780","Transfers to Capital Assets",7900,"TBD","Assets (3) - CC(F-9150)/Fund(F-50)/WO(M)/ACT(M-Default 500)","IS","7800","GL","Closed","Not in FRS","Not in YTD GL",null,null,null,null,7900,{"$f":"IFERROR(INDEX('Prod COA'!B:B,MATCH('CHART OF ACCOUNTS'!T724,'Prod COA'!E:E,0)),INDEX('Prod COA'!B:B,MATCH('CHART OF ACCOUNTS'!T724,'Prod COA'!A:A,0)))","v":{"$error":"#N/A"}}]
[2,"Statement of Operations","78","Transfers to Capital Assets","780","Transfers to Capital Assets",7901,"TBD","Assets (3) - CC(F-9150)/Fund(F-50)/WO(M)/ACT(M-Default 500)","IS","7800","GL","Closed","Not in FRS","Not in YTD GL",null,null,null,null,7901,{"$f":"IFERROR(INDEX('Prod COA'!B:B,MATCH('CHART OF ACCOUNTS'!T725,'Prod COA'!E:E,0)),INDEX('Prod COA'!B:B,MATCH('CHART OF ACCOUNTS'!T725,'Prod COA'!A:A,0)))","v":{"$error":"#N/A"}}]
[2,"Statement of Operations","78","Transfers to Capital Assets","780","Transfers to Capital Assets",7950,"TBD","Assets (3) - CC(F-9150)/Fund(F-50)/WO(M)/ACT(M-Default 500)","IS","7800","GL","Closed","Not in FRS","Not in YTD GL",null,null,null,null,7950,{"$f":"IFERROR(INDEX('Prod COA'!B:B,MATCH('CHART OF ACCOUNTS'!T726,'Prod COA'!E:E,0)),INDEX('Prod COA'!B:B,MATCH('CHART OF ACCOUNTS'!T726,'Prod COA'!A:A,0)))","v":{"$error":"#N/A"}}]
[2,"Statement of Operations","78","Transfers to Capital Assets","780","Transfers to Capital Assets",7999,"TBD","Assets (3) - CC(F-9150)/Fund(F-50)/WO(M)/ACT(M-Default 500)","IS","7800","GL","Closed","Not in FRS","Not in YTD GL",null,null,null,null,7999,{"$f":"IFERROR(INDEX('Prod COA'!B:B,MATCH('CHART OF ACCOUNTS'!T727,'Prod COA'!E:E,0)),INDEX('Prod COA'!B:B,MATCH('CHART OF ACCOUNTS'!T727,'Prod COA'!A:A,0)))","v":{"$error":"#N/A"}}]
[2,"Statement of Operations","80","Internal Revenues","800","Internal ordering - revenue",8000,"Internal Consumption - Revenue","General Rev and Exp (7) - CC(F-Cat4)/Fund(F-VM)/WO(M)/ACT(M)","IS","8000","GL","Active","Not in FRS","Not in YTD GL",null,null,null,null,8000,{"$f":"IFERROR(INDEX('Prod COA'!B:B,MATCH('CHART OF ACCOUNTS'!T728,'Prod COA'!E:E,0)),INDEX('Prod COA'!B:B,MATCH('CHART OF ACCOUNTS'!T728,'Prod COA'!A:A,0)))","v":{"$error":"#N/A"}}]
[2,"Statement of Operations","80","Internal Revenues","800","Internal ordering - revenue",8001,"Internal Consumption - Merchandise Sales","General Rev and Exp (7) - CC(F-Cat4)/Fund(F-VM)/WO(M)/ACT(M)","IS","8001","GL","Active","Not in FRS","Not in YTD GL",null,null,null,null,8001,{"$f":"IFERROR(INDEX('Prod COA'!B:B,MATCH('CHART OF ACCOUNTS'!T729,'Prod COA'!E:E,0)),INDEX('Prod COA'!B:B,MATCH('CHART OF ACCOUNTS'!T729,'Prod COA'!A:A,0)))","v":{"$error":"#N/A"}}]
[2,"Statement of Operations","80","Internal Revenues","800","Internal ordering - revenue",8002,"Internal Consumption - Admissions Sales","General Rev and Exp (7) - CC(F-Cat4)/Fund(F-VM)/WO(M)/ACT(M)","IS","8002","GL","Active","Not in FRS","Not in YTD GL",null,null,null,null,8002,{"$f":"IFERROR(INDEX('Prod COA'!B:B,MATCH('CHART OF ACCOUNTS'!T730,'Prod COA'!E:E,0)),INDEX('Prod COA'!B:B,MATCH('CHART OF ACCOUNTS'!T730,'Prod COA'!A:A,0)))","v":{"$error":"#N/A"}}]
[2,"Statement of Operations","80","Internal Revenues","800","Internal ordering - revenue",8003,"Internal Consumption - Facilities (recoveries)","General Rev and Exp (7) - CC(F-Cat4)/Fund(F-VM)/WO(M)/ACT(M)","IS","8003","GL","Active","Not in FRS","Not in YTD GL",null,null,null,null,8003,{"$f":"IFERROR(INDEX('Prod COA'!B:B,MATCH('CHART OF ACCOUNTS'!T731,'Prod COA'!E:E,0)),INDEX('Prod COA'!B:B,MATCH('CHART OF ACCOUNTS'!T731,'Prod COA'!A:A,0)))","v":{"$error":"#N/A"}}]
[2,"Statement of Operations","80","Internal Revenues","800","Internal ordering - revenue",8005,"Internal Consumption - Campus Store Sales","General Rev and Exp (7) - CC(F-Cat4)/Fund(F-VM)/WO(M)/ACT(M)","IS","8005","GL","Active","Not in FRS","Not in YTD GL",null,null,null,null,8005,{"$f":"IFERROR(INDEX('Prod COA'!B:B,MATCH('CHART OF ACCOUNTS'!T732,'Prod COA'!E:E,0)),INDEX('Prod COA'!B:B,MATCH('CHART OF ACCOUNTS'!T732,'Prod COA'!A:A,0)))","v":{"$error":"#N/A"}}]
[2,"Statement of Operations","80","Internal Revenues","800","Internal ordering - revenue",8006,"Internal Consumption - Campus Store Book Sales","General Rev and Exp (7) - CC(F-Cat4)/Fund(F-VM)/WO(M)/ACT(M)","IS","8006","GL","Active","Not in FRS","Not in YTD GL",null,null,null,null,8006,{"$f":"IFERROR(INDEX('Prod COA'!B:B,MATCH('CHART OF ACCOUNTS'!T733,'Prod COA'!E:E,0)),INDEX('Prod COA'!B:B,MATCH('CHART OF ACCOUNTS'!T733,'Prod COA'!A:A,0)))","v":{"$error":"#N/A"}}]
[2,"Statement of Operations","80","Internal Revenues","800","Internal ordering - revenue",8007,"Internal Consumption - Printing and Duplicating Sales","General Rev and Exp (7) - CC(F-Cat4)/Fund(F-VM)/WO(M)/ACT(M)","IS","8007","GL","Active","Not in FRS","Not in YTD GL",null,null,null,null,8007,{"$f":"IFERROR(INDEX('Prod COA'!B:B,MATCH('CHART OF ACCOUNTS'!T734,'Prod COA'!E:E,0)),INDEX('Prod COA'!B:B,MATCH('CHART OF ACCOUNTS'!T734,'Prod COA'!A:A,0)))","v":{"$error":"#N/A"}}]
[2,"Statement of Operations","80","Internal Revenues","800","Internal ordering - revenue",8008,"Internal Consumption - Housing Revenue","General Rev and Exp (7) - CC(F-Cat4)/Fund(F-VM)/WO(M)/ACT(M)","IS","8008","GL","Active","Not in FRS","Not in YTD GL",null,null,null,null,8008,{"$f":"IFERROR(INDEX('Prod COA'!B:B,MATCH('CHART OF ACCOUNTS'!T735,'Prod COA'!E:E,0)),INDEX('Prod COA'!B:B,MATCH('CHART OF ACCOUNTS'!T735,'Prod COA'!A:A,0)))","v":{"$error":"#N/A"}}]
[2,"Statement of Operations","80","Internal Revenues","800","Internal ordering - revenue",8009,"Internal Consumption - Gifts in Kind Recoveries","General Rev and Exp (7) - CC(F-Cat4)/Fund(F-VM)/WO(M)/ACT(M)","IS","8009","GL","Active","Not in FRS","Not in YTD GL",null,null,null,null,8009,{"$f":"IFERROR(INDEX('Prod COA'!B:B,MATCH('CHART OF ACCOUNTS'!T736,'Prod COA'!E:E,0)),INDEX('Prod COA'!B:B,MATCH('CHART OF ACCOUNTS'!T736,'Prod COA'!A:A,0)))","v":{"$error":"#N/A"}}]
[2,"Statement of Operations","80","Internal Revenues","800","Internal ordering - revenue",8010,"Internal Consumption - Food Services Sales","General Rev and Exp (7) - CC(F-Cat4)/Fund(F-VM)/WO(M)/ACT(M)","IS","8010","GL","Active","Not in FRS","Not in YTD GL",null,null,null,null,8010,{"$f":"IFERROR(INDEX('Prod COA'!B:B,MATCH('CHART OF ACCOUNTS'!T737,'Prod COA'!E:E,0)),INDEX('Prod COA'!B:B,MATCH('CHART OF ACCOUNTS'!T737,'Prod COA'!A:A,0)))","v":{"$error":"#N/A"}}]
[2,"Statement of Operations","80","Internal Revenues","800","Internal ordering - revenue",8011,"Internal Consumption - Overhead - Institutional Revenue","General Rev and Exp (7) - CC(F-Cat4)/Fund(F-VM)/WO(M)/ACT(M)","IS",null,"GL","Closed","Not in FRS","Not in YTD GL",null,null,null,null,8011,{"$f":"IFERROR(INDEX('Prod COA'!B:B,MATCH('CHART OF ACCOUNTS'!T738,'Prod COA'!E:E,0)),INDEX('Prod COA'!B:B,MATCH('CHART OF ACCOUNTS'!T738,'Prod COA'!A:A,0)))","v":{"$error":"#N/A"}}]
[2,"Statement of Operations","80","Internal Revenues","800","Internal ordering - revenue",8012,"Internal Consumption - Overhead - Research Revenue","General Rev and Exp (7) - CC(F-Cat4)/Fund(F-VM)/WO(M)/ACT(M)","IS",null,"GL","Closed","Not in FRS","Not in YTD GL",null,null,null,null,8012,{"$f":"IFERROR(INDEX('Prod COA'!B:B,MATCH('CHART OF ACCOUNTS'!T739,'Prod COA'!E:E,0)),INDEX('Prod COA'!B:B,MATCH('CHART OF ACCOUNTS'!T739,'Prod COA'!A:A,0)))","v":{"$error":"#N/A"}}]
[2,"Statement of Operations","80","Internal Revenues","800","Internal ordering - revenue",8013,"Internal Consumption - Overhead - PVPA Premium Revenue","General Rev and Exp (7) - CC(F-Cat4)/Fund(F-VM)/WO(M)/ACT(M)","IS",null,"GL","Closed","Not in FRS","Not in YTD GL",null,null,null,null,8013,{"$f":"IFERROR(INDEX('Prod COA'!B:B,MATCH('CHART OF ACCOUNTS'!T740,'Prod COA'!E:E,0)),INDEX('Prod COA'!B:B,MATCH('CHART OF ACCOUNTS'!T740,'Prod COA'!A:A,0)))","v":{"$error":"#N/A"}}]
[2,"Statement of Operations","82","Internal Expenses","820","Internal ordering - expenditures",8200,"Internal Consumption - Expenditures","General Rev and Exp (7) - CC(F-Cat4)/Fund(F-VM)/WO(M)/ACT(M)","IS","8200","GL","Active","Not in FRS","Not in YTD GL",null,null,null,null,8200,{"$f":"IFERROR(INDEX('Prod COA'!B:B,MATCH('CHART OF ACCOUNTS'!T741,'Prod COA'!E:E,0)),INDEX('Prod COA'!B:B,MATCH('CHART OF ACCOUNTS'!T741,'Prod COA'!A:A,0)))","v":{"$error":"#N/A"}}]
[2,"Statement of Operations","82","Internal Expenses","820","Internal ordering - expenditures",8201,"Internal Consumption - Merchandise Costs","General Rev and Exp (7) - CC(F-Cat4)/Fund(F-VM)/WO(M)/ACT(M)","IS","8201","GL","Active","Not in FRS","Not in YTD GL",null,null,null,null,8201,{"$f":"IFERROR(INDEX('Prod COA'!B:B,MATCH('CHART OF ACCOUNTS'!T742,'Prod COA'!E:E,0)),INDEX('Prod COA'!B:B,MATCH('CHART OF ACCOUNTS'!T742,'Prod COA'!A:A,0)))","v":{"$error":"#N/A"}}]
[2,"Statement of Operations","82","Internal Expenses","820","Internal ordering - expenditures",8202,"Internal Consumption - Admissions Costs","General Rev and Exp (7) - CC(F-Cat4)/Fund(F-VM)/WO(M)/ACT(M)","IS","8202","GL","Active","Not in FRS","Not in YTD GL",null,null,null,null,8202,{"$f":"IFERROR(INDEX('Prod COA'!B:B,MATCH('CHART OF ACCOUNTS'!T743,'Prod COA'!E:E,0)),INDEX('Prod COA'!B:B,MATCH('CHART OF ACCOUNTS'!T743,'Prod COA'!A:A,0)))","v":{"$error":"#N/A"}}]
[2,"Statement of Operations","82","Internal Expenses","820","Internal ordering - expenditures",8203,"Internal Consumption - Facilities Costs","General Rev and Exp (7) - CC(F-Cat4)/Fund(F-VM)/WO(M)/ACT(M)","IS","8203","GL","Active","Not in FRS","Not in YTD GL",null,null,null,null,8203,{"$f":"IFERROR(INDEX('Prod COA'!B:B,MATCH('CHART OF ACCOUNTS'!T744,'Prod COA'!E:E,0)),INDEX('Prod COA'!B:B,MATCH('CHART OF ACCOUNTS'!T744,'Prod COA'!A:A,0)))","v":{"$error":"#N/A"}}]
[2,"Statement of Operations","82","Internal Expenses","820","Internal ordering - expenditures",8206,"Internal Consumption - Campus Store Book Costs","General Rev and Exp (7) - CC(F-Cat4)/Fund(F-VM)/WO(M)/ACT(M)","IS","8206","GL","Active","Not in FRS","Not in YTD GL",null,null,null,null,8206,{"$f":"IFERROR(INDEX('Prod COA'!B:B,MATCH('CHART OF ACCOUNTS'!T745,'Prod COA'!E:E,0)),INDEX('Prod COA'!B:B,MATCH('CHART OF ACCOUNTS'!T745,'Prod COA'!A:A,0)))","v":{"$error":"#N/A"}}]
[2,"Statement of Operations","82","Internal Expenses","820","Internal ordering - expenditures",8207,"Internal Consumption - Printing and Duplicating Costs","General Rev and Exp (7) - CC(F-Cat4)/Fund(F-VM)/WO(M)/ACT(M)","IS","8207","GL","Active","Not in FRS","Not in YTD GL",null,null,null,null,8207,{"$f":"IFERROR(INDEX('Prod COA'!B:B,MATCH('CHART OF ACCOUNTS'!T746,'Prod COA'!E:E,0)),INDEX('Prod COA'!B:B,MATCH('CHART OF ACCOUNTS'!T746,'Prod COA'!A:A,0)))","v":{"$error":"#N/A"}}]
[2,"Statement of Operations","82","Internal Expenses","820","Internal ordering - expenditures",8208,"Internal Consumption - Housing Costs","General Rev and Exp (7) - CC(F-Cat4)/Fund(F-VM)/WO(M)/ACT(M)","IS","8208","GL","Active","Not in FRS","Not in YTD GL",null,null,null,null,8208,{"$f":"IFERROR(INDEX('Prod COA'!B:B,MATCH('CHART OF ACCOUNTS'!T747,'Prod COA'!E:E,0)),INDEX('Prod COA'!B:B,MATCH('CHART OF ACCOUNTS'!T747,'Prod COA'!A:A,0)))","v":{"$error":"#N/A"}}]
[2,"Statement of Operations","82","Internal Expenses","820","Internal ordering - expenditures",8209,"Internal Consumption - Gifts in Kind Costs","General Rev and Exp (7) - CC(F-Cat4)/Fund(F-VM)/WO(M)/ACT(M)","IS","8209","GL","Active","Not in FRS","Not in YTD GL",null,null,null,null,8209,{"$f":"IFERROR(INDEX('Prod COA'!B:B,MATCH('CHART OF ACCOUNTS'!T748,'Prod COA'!E:E,0)),INDEX('Prod COA'!B:B,MATCH('CHART OF ACCOUNTS'!T748,'Prod COA'!A:A,0)))","v":{"$error":"#N/A"}}]
[2,"Statement of Operations","82","Internal Expenses","820","Internal ordering - expenditures",8210,"Internal Consumption - Food Services Costs","General Rev and Exp (7) - CC(F-Cat4)/Fund(F-VM)/WO(M)/ACT(M)","IS","8210","GL","Active","Not in FRS","Not in YTD GL",null,null,null,null,8210,{"$f":"IFERROR(INDEX('Prod COA'!B:B,MATCH('CHART OF ACCOUNTS'!T749,'Prod COA'!E:E,0)),INDEX('Prod COA'!B:B,MATCH('CHART OF ACCOUNTS'!T749,'Prod COA'!A:A,0)))","v":{"$error":"#N/A"}}]
[2,"Statement of Operations","82","Internal Expenses","820","Internal ordering - expenditures",8250,"Internal Consumption - Expenditures","General Rev and Exp (7) - CC(F-Cat4)/Fund(F-VM)/WO(M)/ACT(M)","IS",null,"GL","Closed","Not in FRS","Not in YTD GL",null,null,null,null,8250,{"$f":"IFERROR(INDEX('Prod COA'!B:B,MATCH('CHART OF ACCOUNTS'!T750,'Prod COA'!E:E,0)),INDEX('Prod COA'!B:B,MATCH('CHART OF ACCOUNTS'!T750,'Prod COA'!A:A,0)))","v":{"$error":"#N/A"}}]
[2,"Statement of Operations","82","Internal Expenses","820","Internal ordering - expenditures",8251,"Internal Consumption - Merchandise Costs","General Rev and Exp (7) - CC(F-Cat4)/Fund(F-VM)/WO(M)/ACT(M)","IS",null,"GL","Closed","Not in FRS","Not in YTD GL",null,null,null,null,8251,{"$f":"IFERROR(INDEX('Prod COA'!B:B,MATCH('CHART OF ACCOUNTS'!T751,'Prod COA'!E:E,0)),INDEX('Prod COA'!B:B,MATCH('CHART OF ACCOUNTS'!T751,'Prod COA'!A:A,0)))","v":{"$error":"#N/A"}}]
[2,"Statement of Operations","82","Internal Expenses","820","Internal ordering - expenditures",8252,"Internal Consumption - Admissions Costs","General Rev and Exp (7) - CC(F-Cat4)/Fund(F-VM)/WO(M)/ACT(M)","IS",null,"GL","Closed","Not in FRS","Not in YTD GL",null,null,null,null,8252,{"$f":"IFERROR(INDEX('Prod COA'!B:B,MATCH('CHART OF ACCOUNTS'!T752,'Prod COA'!E:E,0)),INDEX('Prod COA'!B:B,MATCH('CHART OF ACCOUNTS'!T752,'Prod COA'!A:A,0)))","v":{"$error":"#N/A"}}]
[2,"Statement of Operations","82","Internal Expenses","820","Internal ordering - expenditures",8253,"Internal Consumption - Facilities Costs","General Rev and Exp (7) - CC(F-Cat4)/Fund(F-VM)/WO(M)/ACT(M)","IS",null,"GL","Closed","Not in FRS","Not in YTD GL",null,null,null,null,8253,{"$f":"IFERROR(INDEX('Prod COA'!B:B,MATCH('CHART OF ACCOUNTS'!T753,'Prod COA'!E:E,0)),INDEX('Prod COA'!B:B,MATCH('CHART OF ACCOUNTS'!T753,'Prod COA'!A:A,0)))","v":{"$error":"#N/A"}}]
[2,"Statement of Operations","82","Internal Expenses","820","Internal ordering - expenditures",8254,"Internal Consumption - Catering Costs","General Rev and Exp (7) - CC(F-Cat4)/Fund(F-VM)/WO(M)/ACT(M)","IS",null,"GL","Closed","Not in FRS","Not in YTD GL",null,null,null,null,8254,{"$f":"IFERROR(INDEX('Prod COA'!B:B,MATCH('CHART OF ACCOUNTS'!T754,'Prod COA'!E:E,0)),INDEX('Prod COA'!B:B,MATCH('CHART OF ACCOUNTS'!T754,'Prod COA'!A:A,0)))","v":{"$error":"#N/A"}}]
[2,"Statement of Operations","82","Internal Expenses","820","Internal ordering - expenditures",8255,"Internal Consumption - Campus Store Costs","General Rev and Exp (7) - CC(F-Cat4)/Fund(F-VM)/WO(M)/ACT(M)","IS",null,"GL","Closed","Not in FRS","Not in YTD GL",null,null,null,null,8255,{"$f":"IFERROR(INDEX('Prod COA'!B:B,MATCH('CHART OF ACCOUNTS'!T755,'Prod COA'!E:E,0)),INDEX('Prod COA'!B:B,MATCH('CHART OF ACCOUNTS'!T755,'Prod COA'!A:A,0)))","v":{"$error":"#N/A"}}]
[2,"Statement of Operations","82","Internal Expenses","820","Internal ordering - expenditures",8256,"Internal Consumption - Campus Store Book Costs","General Rev and Exp (7) - CC(F-Cat4)/Fund(F-VM)/WO(M)/ACT(M)","IS",null,"GL","Closed","Not in FRS","Not in YTD GL",null,null,null,null,8256,{"$f":"IFERROR(INDEX('Prod COA'!B:B,MATCH('CHART OF ACCOUNTS'!T756,'Prod COA'!E:E,0)),INDEX('Prod COA'!B:B,MATCH('CHART OF ACCOUNTS'!T756,'Prod COA'!A:A,0)))","v":{"$error":"#N/A"}}]
[2,"Statement of Operations","82","Internal Expenses","820","Internal ordering - expenditures",8257,"Internal Consumption - Printing and Duplicating Costs","General Rev and Exp (7) - CC(F-Cat4)/Fund(F-VM)/WO(M)/ACT(M)","IS",null,"GL","Closed","Not in FRS","Not in YTD GL",null,null,null,null,8257,{"$f":"IFERROR(INDEX('Prod COA'!B:B,MATCH('CHART OF ACCOUNTS'!T757,'Prod COA'!E:E,0)),INDEX('Prod COA'!B:B,MATCH('CHART OF ACCOUNTS'!T757,'Prod COA'!A:A,0)))","v":{"$error":"#N/A"}}]
[2,"Statement of Operations","82","Internal Expenses","820","Internal ordering - expenditures",8258,"Internal Consumption - Housing Costs","General Rev and Exp (7) - CC(F-Cat4)/Fund(F-VM)/WO(M)/ACT(M)","IS",null,"GL","Closed","Not in FRS","Not in YTD GL",null,null,null,null,8258,{"$f":"IFERROR(INDEX('Prod COA'!B:B,MATCH('CHART OF ACCOUNTS'!T758,'Prod COA'!E:E,0)),INDEX('Prod COA'!B:B,MATCH('CHART OF ACCOUNTS'!T758,'Prod COA'!A:A,0)))","v":{"$error":"#N/A"}}]
[2,"Statement of Operations","82","Internal Expenses","820","Internal ordering - expenditures",8259,"Internal Consumption - Gifts in Kind Costs","General Rev and Exp (7) - CC(F-Cat4)/Fund(F-VM)/WO(M)/ACT(M)","IS",null,"GL","Closed","Not in FRS","Not in YTD GL",null,null,null,null,8259,{"$f":"IFERROR(INDEX('Prod COA'!B:B,MATCH('CHART OF ACCOUNTS'!T759,'Prod COA'!E:E,0)),INDEX('Prod COA'!B:B,MATCH('CHART OF ACCOUNTS'!T759,'Prod COA'!A:A,0)))","v":{"$error":"#N/A"}}]
[2,"Statement of Operations","82","Internal Expenses","820","Internal ordering - expenditures",8260,"Internal Consumption - Overhead paid - Department","General Rev and Exp (7) - CC(F-Cat4)/Fund(F-VM)/WO(M)/ACT(M)","IS",null,"GL","Closed","Not in FRS","Not in YTD GL",null,null,null,null,8260,{"$f":"IFERROR(INDEX('Prod COA'!B:B,MATCH('CHART OF ACCOUNTS'!T760,'Prod COA'!E:E,0)),INDEX('Prod COA'!B:B,MATCH('CHART OF ACCOUNTS'!T760,'Prod COA'!A:A,0)))","v":{"$error":"#N/A"}}]
[2,"Statement of Operations","82","Internal Expenses","820","Internal ordering - expenditures",8261,"Internal Consumption - Overhead paid - Institutional","General Rev and Exp (7) - CC(F-Cat4)/Fund(F-VM)/WO(M)/ACT(M)","IS",null,"GL","Closed","Not in FRS","Not in YTD GL",null,null,null,null,8261,{"$f":"IFERROR(INDEX('Prod COA'!B:B,MATCH('CHART OF ACCOUNTS'!T761,'Prod COA'!E:E,0)),INDEX('Prod COA'!B:B,MATCH('CHART OF ACCOUNTS'!T761,'Prod COA'!A:A,0)))","v":{"$error":"#N/A"}}]
[2,"Statement of Operations","82","Internal Expenses","820","Internal ordering - expenditures",8262,"Internal Consumption - Overhead paid - Research","General Rev and Exp (7) - CC(F-Cat4)/Fund(F-VM)/WO(M)/ACT(M)","IS",null,"GL","Closed","Not in FRS","Not in YTD GL",null,null,null,null,8262,{"$f":"IFERROR(INDEX('Prod COA'!B:B,MATCH('CHART OF ACCOUNTS'!T762,'Prod COA'!E:E,0)),INDEX('Prod COA'!B:B,MATCH('CHART OF ACCOUNTS'!T762,'Prod COA'!A:A,0)))","v":{"$error":"#N/A"}}]
[2,"Statement of Operations","82","Internal Expenses","820","Internal ordering - expenditures",8263,"Internal Consumption - Overhead paid - PVPA Premium","General Rev and Exp (7) - CC(F-Cat4)/Fund(F-VM)/WO(M)/ACT(M)","IS",null,"GL","Closed","Not in FRS","Not in YTD GL",null,null,null,null,8263,{"$f":"IFERROR(INDEX('Prod COA'!B:B,MATCH('CHART OF ACCOUNTS'!T763,'Prod COA'!E:E,0)),INDEX('Prod COA'!B:B,MATCH('CHART OF ACCOUNTS'!T763,'Prod COA'!A:A,0)))","v":{"$error":"#N/A"}}]
[2,"Statement of Operations","80","Internal Revenues","840","Overhead Received",8400,"Internal Consumption - Overhead - Department Revenue","General Rev and Exp (7) - CC(F-Cat4)/Fund(F-VM)/WO(M)/ACT(M)","IS","8400","GL","Active","Not in FRS","Not in YTD GL",null,null,null,null,8400,{"$f":"IFERROR(INDEX('Prod COA'!B:B,MATCH('CHART OF ACCOUNTS'!T764,'Prod COA'!E:E,0)),INDEX('Prod COA'!B:B,MATCH('CHART OF ACCOUNTS'!T764,'Prod COA'!A:A,0)))","v":{"$error":"#N/A"}}]
[2,"Statement of Operations","80","Internal Revenues","840","Overhead Received",8401,"Internal Consumption - Overhead - Institutional Revenue","General Rev and Exp (7) - CC(F-Cat4)/Fund(F-VM)/WO(M)/ACT(M)","IS","8401","GL","Active","Not in FRS","Not in YTD GL",null,null,null,null,8401,{"$f":"IFERROR(INDEX('Prod COA'!B:B,MATCH('CHART OF ACCOUNTS'!T765,'Prod COA'!E:E,0)),INDEX('Prod COA'!B:B,MATCH('CHART OF ACCOUNTS'!T765,'Prod COA'!A:A,0)))","v":{"$error":"#N/A"}}]
[2,"Statement of Operations","80","Internal Revenues","840","Overhead Received",8402,"Internal Consumption - Overhead - Research Revenue","General Rev and Exp (7) - CC(F-Cat4)/Fund(F-VM)/WO(M)/ACT(M)","IS","8402","GL","Active","Not in FRS","Not in YTD GL",null,null,null,null,8402,{"$f":"IFERROR(INDEX('Prod COA'!B:B,MATCH('CHART OF ACCOUNTS'!T766,'Prod COA'!E:E,0)),INDEX('Prod COA'!B:B,MATCH('CHART OF ACCOUNTS'!T766,'Prod COA'!A:A,0)))","v":{"$error":"#N/A"}}]
[2,"Statement of Operations","80","Internal Revenues","840","Overhead Received",8403,"Internal Consumption - Overhead - PVPA Premium Revenue","General Rev and Exp (7) - CC(F-Cat4)/Fund(F-VM)/WO(M)/ACT(M)","IS","8403","GL","Active","Not in FRS","Not in YTD GL",null,null,null,null,8403,{"$f":"IFERROR(INDEX('Prod COA'!B:B,MATCH('CHART OF ACCOUNTS'!T767,'Prod COA'!E:E,0)),INDEX('Prod COA'!B:B,MATCH('CHART OF ACCOUNTS'!T767,'Prod COA'!A:A,0)))","v":{"$error":"#N/A"}}]
[2,"Statement of Operations","85","Project Costing and Billing Placeholder (Parked)","850","Project Costing and Billing (Parked)",8500,"Project Costing and Billing Revenue - Placeholder","General Rev and Exp (7) - CC(F-Cat4)/Fund(F-VM)/WO(M)/ACT(M)","IS",null,"GL","Closed","Not in FRS","Not in YTD GL",null,null,null,null,8500,{"$f":"IFERROR(INDEX('Prod COA'!B:B,MATCH('CHART OF ACCOUNTS'!T768,'Prod COA'!E:E,0)),INDEX('Prod COA'!B:B,MATCH('CHART OF ACCOUNTS'!T768,'Prod COA'!A:A,0)))","v":{"$error":"#N/A"}}]
[2,"Statement of Operations","85","Project Costing and Billing Placeholder (Parked)","850","Project Costing and Billing (Parked)",8501,"Hourly Costs Contractors - Project Costing","General Rev and Exp (7) - CC(F-Cat4)/Fund(F-VM)/WO(M)/ACT(M)","IS",null,"GL","Closed","Not in FRS","Not in YTD GL",null,null,null,null,8501,{"$f":"IFERROR(INDEX('Prod COA'!B:B,MATCH('CHART OF ACCOUNTS'!T769,'Prod COA'!E:E,0)),INDEX('Prod COA'!B:B,MATCH('CHART OF ACCOUNTS'!T769,'Prod COA'!A:A,0)))","v":{"$error":"#N/A"}}]
[2,"Statement of Operations","85","Project Costing and Billing Placeholder (Parked)","850","Project Costing and Billing (Parked)",8502,"ACE - Project Costing","General Rev and Exp (7) - CC(F-Cat4)/Fund(F-VM)/WO(M)/ACT(M)","IS",null,"GL","Closed","Not in FRS","Not in YTD GL",null,null,null,null,8502,{"$f":"IFERROR(INDEX('Prod COA'!B:B,MATCH('CHART OF ACCOUNTS'!T770,'Prod COA'!E:E,0)),INDEX('Prod COA'!B:B,MATCH('CHART OF ACCOUNTS'!T770,'Prod COA'!A:A,0)))","v":{"$error":"#N/A"}}]
[2,"Statement of Operations","85","Project Costing and Billing Placeholder (Parked)","850","Project Costing and Billing (Parked)",8503,"Contingency","General Rev and Exp (7) - CC(F-Cat4)/Fund(F-VM)/WO(M)/ACT(M)","IS",null,"GL","Closed","Not in FRS","Not in YTD GL",null,null,null,null,{"$f":"IF(LEN(G771)=4,G771,K771)*1","v":8503},{"$f":"IFERROR(INDEX('Prod COA'!B:B,MATCH('CHART OF ACCOUNTS'!T771,'Prod COA'!E:E,0)),INDEX('Prod COA'!B:B,MATCH('CHART OF ACCOUNTS'!T771,'Prod COA'!A:A,0)))","v":{"$error":"#N/A"}}]
[2,"Statement of Operations","85","Project Costing and Billing Placeholder (Parked)","850","Project Costing and Billing (Parked)",8804,"Hourly Cost Employees  - Recovery","General Rev and Exp (7) - CC(F-Cat4)/Fund(F-VM)/WO(M)/ACT(M)","IS",null,"GL","Closed","Not in FRS","Not in YTD GL",null,null,null,null,8804,{"$f":"IFERROR(INDEX('Prod COA'!B:B,MATCH('CHART OF ACCOUNTS'!T772,'Prod COA'!E:E,0)),INDEX('Prod COA'!B:B,MATCH('CHART OF ACCOUNTS'!T772,'Prod COA'!A:A,0)))","v":{"$error":"#N/A"}}]
[2,"Statement of Operations","85","Project Costing and Billing Placeholder (Parked)","850","Project Costing and Billing (Parked)",8805,"Hourly Cost Contractors - Recovery","General Rev and Exp (7) - CC(F-Cat4)/Fund(F-VM)/WO(M)/ACT(M)","IS",null,"GL","Closed","Not in FRS","Not in YTD GL",null,null,null,null,8805,{"$f":"IFERROR(INDEX('Prod COA'!B:B,MATCH('CHART OF ACCOUNTS'!T773,'Prod COA'!E:E,0)),INDEX('Prod COA'!B:B,MATCH('CHART OF ACCOUNTS'!T773,'Prod COA'!A:A,0)))","v":{"$error":"#N/A"}}]
[2,"Statement of Operations","85","Project Costing and Billing Placeholder (Parked)","850","Project Costing and Billing (Parked)",8806,"ACE Recovery","General Rev and Exp (7) - CC(F-Cat4)/Fund(F-VM)/WO(M)/ACT(M)","IS",null,"GL","Closed","Not in FRS","Not in YTD GL",null,null,null,null,8806,{"$f":"IFERROR(INDEX('Prod COA'!B:B,MATCH('CHART OF ACCOUNTS'!T774,'Prod COA'!E:E,0)),INDEX('Prod COA'!B:B,MATCH('CHART OF ACCOUNTS'!T774,'Prod COA'!A:A,0)))","v":{"$error":"#N/A"}}]
[2,"Statement of Operations","85","Project Costing and Billing Placeholder (Parked)","850","Project Costing and Billing (Parked)",8900,"Internal Consumption - Revenue","General Rev and Exp (7) - CC(F-Cat4)/Fund(F-VM)/WO(M)/ACT(M)","IS",null,"GL","Closed","Not in FRS","Not in YTD GL",null,null,null,null,8900,{"$f":"IFERROR(INDEX('Prod COA'!B:B,MATCH('CHART OF ACCOUNTS'!T775,'Prod COA'!E:E,0)),INDEX('Prod COA'!B:B,MATCH('CHART OF ACCOUNTS'!T775,'Prod COA'!A:A,0)))","v":{"$error":"#N/A"}}]
[2,"Statement of Operations","85","Project Costing and Billing Placeholder (Parked)","850","Project Costing and Billing (Parked)",8901,"Internal Consumption - Merchandise Sales","General Rev and Exp (7) - CC(F-Cat4)/Fund(F-VM)/WO(M)/ACT(M)","IS",null,"GL","Closed","Not in FRS","Not in YTD GL",null,null,null,null,8901,{"$f":"IFERROR(INDEX('Prod COA'!B:B,MATCH('CHART OF ACCOUNTS'!T776,'Prod COA'!E:E,0)),INDEX('Prod COA'!B:B,MATCH('CHART OF ACCOUNTS'!T776,'Prod COA'!A:A,0)))","v":{"$error":"#N/A"}}]
[2,"Statement of Operations","85","Project Costing and Billing Placeholder (Parked)","850","Project Costing and Billing (Parked)",8902,"Internal Consumption - Admissions Sales","General Rev and Exp (7) - CC(F-Cat4)/Fund(F-VM)/WO(M)/ACT(M)","IS",null,"GL","Closed","Not in FRS","Not in YTD GL",null,null,null,null,8902,{"$f":"IFERROR(INDEX('Prod COA'!B:B,MATCH('CHART OF ACCOUNTS'!T777,'Prod COA'!E:E,0)),INDEX('Prod COA'!B:B,MATCH('CHART OF ACCOUNTS'!T777,'Prod COA'!A:A,0)))","v":{"$error":"#N/A"}}]
[2,"Statement of Operations","85","Project Costing and Billing Placeholder (Parked)","850","Project Costing and Billing (Parked)",8903,"Internal Consumption - Facilities (recoveries)","General Rev and Exp (7) - CC(F-Cat4)/Fund(F-VM)/WO(M)/ACT(M)","IS",null,"GL","Closed","Not in FRS","Not in YTD GL",null,null,null,null,8903,{"$f":"IFERROR(INDEX('Prod COA'!B:B,MATCH('CHART OF ACCOUNTS'!T778,'Prod COA'!E:E,0)),INDEX('Prod COA'!B:B,MATCH('CHART OF ACCOUNTS'!T778,'Prod COA'!A:A,0)))","v":{"$error":"#N/A"}}]
[2,"Statement of Operations","85","Project Costing and Billing Placeholder (Parked)","850","Project Costing and Billing (Parked)",8904,"Internal Consumption - Catering Sales","General Rev and Exp (7) - CC(F-Cat4)/Fund(F-VM)/WO(M)/ACT(M)","IS",null,"GL","Closed","Not in FRS","Not in YTD GL",null,null,null,null,8904,{"$f":"IFERROR(INDEX('Prod COA'!B:B,MATCH('CHART OF ACCOUNTS'!T779,'Prod COA'!E:E,0)),INDEX('Prod COA'!B:B,MATCH('CHART OF ACCOUNTS'!T779,'Prod COA'!A:A,0)))","v":{"$error":"#N/A"}}]
[2,"Statement of Operations","85","Project Costing and Billing Placeholder (Parked)","850","Project Costing and Billing (Parked)",8905,"Internal Consumption - Campus Store Sales","General Rev and Exp (7) - CC(F-Cat4)/Fund(F-VM)/WO(M)/ACT(M)","IS",null,"GL","Closed","Not in FRS","Not in YTD GL",null,null,null,null,8905,{"$f":"IFERROR(INDEX('Prod COA'!B:B,MATCH('CHART OF ACCOUNTS'!T780,'Prod COA'!E:E,0)),INDEX('Prod COA'!B:B,MATCH('CHART OF ACCOUNTS'!T780,'Prod COA'!A:A,0)))","v":{"$error":"#N/A"}}]
[2,"Statement of Operations","85","Project Costing and Billing Placeholder (Parked)","850","Project Costing and Billing (Parked)",8906,"Internal Consumption - Campus Store Book Sales","General Rev and Exp (7) - CC(F-Cat4)/Fund(F-VM)/WO(M)/ACT(M)","IS",null,"GL","Closed","Not in FRS","Not in YTD GL",null,null,null,null,8906,{"$f":"IFERROR(INDEX('Prod COA'!B:B,MATCH('CHART OF ACCOUNTS'!T781,'Prod COA'!E:E,0)),INDEX('Prod COA'!B:B,MATCH('CHART OF ACCOUNTS'!T781,'Prod COA'!A:A,0)))","v":{"$error":"#N/A"}}]
[2,"Statement of Operations","85","Project Costing and Billing Placeholder (Parked)","850","Project Costing and Billing (Parked)",8907,"Internal Consumption - Printing and Duplicating Sales","General Rev and Exp (7) - CC(F-Cat4)/Fund(F-VM)/WO(M)/ACT(M)","IS",null,"GL","Closed","Not in FRS","Not in YTD GL",null,null,null,null,8907,{"$f":"IFERROR(INDEX('Prod COA'!B:B,MATCH('CHART OF ACCOUNTS'!T782,'Prod COA'!E:E,0)),INDEX('Prod COA'!B:B,MATCH('CHART OF ACCOUNTS'!T782,'Prod COA'!A:A,0)))","v":{"$error":"#N/A"}}]
[2,"Statement of Operations","85","Project Costing and Billing Placeholder (Parked)","850","Project Costing and Billing (Parked)",8908,"Internal Consumption - Gifts in Kind Recoveries","General Rev and Exp (7) - CC(F-Cat4)/Fund(F-VM)/WO(M)/ACT(M)","IS",null,"GL","Closed","Not in FRS","Not in YTD GL",null,null,null,null,8908,{"$f":"IFERROR(INDEX('Prod COA'!B:B,MATCH('CHART OF ACCOUNTS'!T783,'Prod COA'!E:E,0)),INDEX('Prod COA'!B:B,MATCH('CHART OF ACCOUNTS'!T783,'Prod COA'!A:A,0)))","v":{"$error":"#N/A"}}]
[2,"Statement of Operations","85","Project Costing and Billing Placeholder (Parked)","850","Project Costing and Billing (Parked)",8909,"Internal Consumption - Department Overhead Revenue","General Rev and Exp (7) - CC(F-Cat4)/Fund(F-VM)/WO(M)/ACT(M)","IS",null,"GL","Closed","Not in FRS","Not in YTD GL",null,null,null,null,8909,{"$f":"IFERROR(INDEX('Prod COA'!B:B,MATCH('CHART OF ACCOUNTS'!T784,'Prod COA'!E:E,0)),INDEX('Prod COA'!B:B,MATCH('CHART OF ACCOUNTS'!T784,'Prod COA'!A:A,0)))","v":{"$error":"#N/A"}}]
[2,"Statement of Operations","85","Project Costing and Billing Placeholder (Parked)","850","Project Costing and Billing (Parked)",8910,"Internal Consumption - Institutional Overhead Revenue","General Rev and Exp (7) - CC(F-Cat4)/Fund(F-VM)/WO(M)/ACT(M)","IS",null,"GL","Closed","Not in FRS","Not in YTD GL",null,null,null,null,8910,{"$f":"IFERROR(INDEX('Prod COA'!B:B,MATCH('CHART OF ACCOUNTS'!T785,'Prod COA'!E:E,0)),INDEX('Prod COA'!B:B,MATCH('CHART OF ACCOUNTS'!T785,'Prod COA'!A:A,0)))","v":{"$error":"#N/A"}}]
[2,"Statement of Operations","85","Project Costing and Billing Placeholder (Parked)","850","Project Costing and Billing (Parked)",8911,"Internal Consumption - Research Overhead Revenue","General Rev and Exp (7) - CC(F-Cat4)/Fund(F-VM)/WO(M)/ACT(M)","IS",null,"GL","Closed","Not in FRS","Not in YTD GL",null,null,null,null,8911,{"$f":"IFERROR(INDEX('Prod COA'!B:B,MATCH('CHART OF ACCOUNTS'!T786,'Prod COA'!E:E,0)),INDEX('Prod COA'!B:B,MATCH('CHART OF ACCOUNTS'!T786,'Prod COA'!A:A,0)))","v":{"$error":"#N/A"}}]
[2,"Statement of Operations","85","Project Costing and Billing Placeholder (Parked)","850","Project Costing and Billing (Parked)",8912,"Internal Consumption - PVPA Premium Revenue","General Rev and Exp (7) - CC(F-Cat4)/Fund(F-VM)/WO(M)/ACT(M)","IS",null,"GL","Closed","Not in FRS","Not in YTD GL",null,null,null,null,8912,{"$f":"IFERROR(INDEX('Prod COA'!B:B,MATCH('CHART OF ACCOUNTS'!T787,'Prod COA'!E:E,0)),INDEX('Prod COA'!B:B,MATCH('CHART OF ACCOUNTS'!T787,'Prod COA'!A:A,0)))","v":{"$error":"#N/A"}}]
[2,"Statement of Operations","85","Project Costing and Billing Placeholder (Parked)","850","Project Costing and Billing (Parked)",8913,"Internal Consumption - Housing Revenue","General Rev and Exp (7) - CC(F-Cat4)/Fund(F-VM)/WO(M)/ACT(M)","IS",null,"GL","Closed","Not in FRS","Not in YTD GL",null,null,null,null,8913,{"$f":"IFERROR(INDEX('Prod COA'!B:B,MATCH('CHART OF ACCOUNTS'!T788,'Prod COA'!E:E,0)),INDEX('Prod COA'!B:B,MATCH('CHART OF ACCOUNTS'!T788,'Prod COA'!A:A,0)))","v":{"$error":"#N/A"}}]
[2,"Statement of Operations","85","Project Costing and Billing Placeholder (Parked)","850","Project Costing and Billing (Parked)",8950,"Internal Consumption - Expenditures","General Rev and Exp (7) - CC(F-Cat4)/Fund(F-VM)/WO(M)/ACT(M)","IS",null,"GL","Closed","Not in FRS","Not in YTD GL",null,null,null,null,8950,{"$f":"IFERROR(INDEX('Prod COA'!B:B,MATCH('CHART OF ACCOUNTS'!T789,'Prod COA'!E:E,0)),INDEX('Prod COA'!B:B,MATCH('CHART OF ACCOUNTS'!T789,'Prod COA'!A:A,0)))","v":{"$error":"#N/A"}}]
[2,"Statement of Operations","85","Project Costing and Billing Placeholder (Parked)","850","Project Costing and Billing (Parked)",8951,"Internal Consumption - Merchandise Costs","General Rev and Exp (7) - CC(F-Cat4)/Fund(F-VM)/WO(M)/ACT(M)","IS",null,"GL","Closed","Not in FRS","Not in YTD GL",null,null,null,null,8951,{"$f":"IFERROR(INDEX('Prod COA'!B:B,MATCH('CHART OF ACCOUNTS'!T790,'Prod COA'!E:E,0)),INDEX('Prod COA'!B:B,MATCH('CHART OF ACCOUNTS'!T790,'Prod COA'!A:A,0)))","v":{"$error":"#N/A"}}]
[2,"Statement of Operations",85,"Project Costing and Billing Placeholder (Parked)",850,"Project Costing and Billing (Parked)",8952,"Internal Consumption - Admissions Costs","General Rev and Exp (7) - CC(F-Cat4)/Fund(F-VM)/WO(M)/ACT(M)","IS",null,"GL","Closed","Not in FRS","Not in YTD GL",null,null,null,null,8952,{"$f":"IFERROR(INDEX('Prod COA'!B:B,MATCH('CHART OF ACCOUNTS'!T791,'Prod COA'!E:E,0)),INDEX('Prod COA'!B:B,MATCH('CHART OF ACCOUNTS'!T791,'Prod COA'!A:A,0)))","v":{"$error":"#N/A"}}]
[2,"Statement of Operations",85,"Project Costing and Billing Placeholder (Parked)",850,"Project Costing and Billing (Parked)",8953,"Internal Consumption - Facilities Costs","General Rev and Exp (7) - CC(F-Cat4)/Fund(F-VM)/WO(M)/ACT(M)","IS",null,"GL","Closed","Not in FRS","Not in YTD GL",null,null,null,null,8953,{"$f":"IFERROR(INDEX('Prod COA'!B:B,MATCH('CHART OF ACCOUNTS'!T792,'Prod COA'!E:E,0)),INDEX('Prod COA'!B:B,MATCH('CHART OF ACCOUNTS'!T792,'Prod COA'!A:A,0)))","v":{"$error":"#N/A"}}]
[2,"Statement of Operations",85,"Project Costing and Billing Placeholder (Parked)",850,"Project Costing and Billing (Parked)",8954,"Internal Consumption - Catering Costs","General Rev and Exp (7) - CC(F-Cat4)/Fund(F-VM)/WO(M)/ACT(M)","IS",null,"GL","Closed","Not in FRS","Not in YTD GL",null,null,null,null,8954,{"$f":"IFERROR(INDEX('Prod COA'!B:B,MATCH('CHART OF ACCOUNTS'!T793,'Prod COA'!E:E,0)),INDEX('Prod COA'!B:B,MATCH('CHART OF ACCOUNTS'!T793,'Prod COA'!A:A,0)))","v":{"$error":"#N/A"}}]
[2,"Statement of Operations",85,"Project Costing and Billing Placeholder (Parked)",850,"Project Costing and Billing (Parked)",8955,"Internal Consumption - Campus Store Costs","General Rev and Exp (7) - CC(F-Cat4)/Fund(F-VM)/WO(M)/ACT(M)","IS",null,"GL","Closed","Not in FRS","Not in YTD GL",null,null,null,null,8955,{"$f":"IFERROR(INDEX('Prod COA'!B:B,MATCH('CHART OF ACCOUNTS'!T794,'Prod COA'!E:E,0)),INDEX('Prod COA'!B:B,MATCH('CHART OF ACCOUNTS'!T794,'Prod COA'!A:A,0)))","v":{"$error":"#N/A"}}]
[2,"Statement of Operations",85,"Project Costing and Billing Placeholder (Parked)",850,"Project Costing and Billing (Parked)",8956,"Internal Consumption - Campus Store Book Costs","General Rev and Exp (7) - CC(F-Cat4)/Fund(F-VM)/WO(M)/ACT(M)","IS",null,"GL","Closed","Not in FRS","Not in YTD GL",null,null,null,null,8956,{"$f":"IFERROR(INDEX('Prod COA'!B:B,MATCH('CHART OF ACCOUNTS'!T795,'Prod COA'!E:E,0)),INDEX('Prod COA'!B:B,MATCH('CHART OF ACCOUNTS'!T795,'Prod COA'!A:A,0)))","v":{"$error":"#N/A"}}]
[2,"Statement of Operations",85,"Project Costing and Billing Placeholder (Parked)",850,"Project Costing and Billing (Parked)",8957,"Internal Consumption - Printing and Duplicating Costs","General Rev and Exp (7) - CC(F-Cat4)/Fund(F-VM)/WO(M)/ACT(M)","IS",null,"GL","Closed","Not in FRS","Not in YTD GL",null,null,null,null,8957,{"$f":"IFERROR(INDEX('Prod COA'!B:B,MATCH('CHART OF ACCOUNTS'!T796,'Prod COA'!E:E,0)),INDEX('Prod COA'!B:B,MATCH('CHART OF ACCOUNTS'!T796,'Prod COA'!A:A,0)))","v":{"$error":"#N/A"}}]
[2,"Statement of Operations",85,"Project Costing and Billing Placeholder (Parked)",850,"Project Costing and Billing (Parked)",8958,"Internal Consumption - Gifts in Kind Costs","General Rev and Exp (7) - CC(F-Cat4)/Fund(F-VM)/WO(M)/ACT(M)","IS",null,"GL","Closed","Not in FRS","Not in YTD GL",null,null,null,null,8958,{"$f":"IFERROR(INDEX('Prod COA'!B:B,MATCH('CHART OF ACCOUNTS'!T797,'Prod COA'!E:E,0)),INDEX('Prod COA'!B:B,MATCH('CHART OF ACCOUNTS'!T797,'Prod COA'!A:A,0)))","v":{"$error":"#N/A"}}]
[2,"Statement of Operations",85,"Project Costing and Billing Placeholder (Parked)",850,"Project Costing and Billing (Parked)",8959,"Internal Consumption - Department Overhead Paid","General Rev and Exp (7) - CC(F-Cat4)/Fund(F-VM)/WO(M)/ACT(M)","IS",null,"GL","Closed","Not in FRS","Not in YTD GL",null,null,null,null,8959,{"$f":"IFERROR(INDEX('Prod COA'!B:B,MATCH('CHART OF ACCOUNTS'!T798,'Prod COA'!E:E,0)),INDEX('Prod COA'!B:B,MATCH('CHART OF ACCOUNTS'!T798,'Prod COA'!A:A,0)))","v":{"$error":"#N/A"}}]
[2,"Statement of Operations",85,"Project Costing and Billing Placeholder (Parked)",850,"Project Costing and Billing (Parked)",8960,"Internal Consumption - Institutional Overhead Paid","General Rev and Exp (7) - CC(F-Cat4)/Fund(F-VM)/WO(M)/ACT(M)","IS",null,"GL","Closed","Not in FRS","Not in YTD GL",null,null,null,null,8960,{"$f":"IFERROR(INDEX('Prod COA'!B:B,MATCH('CHART OF ACCOUNTS'!T799,'Prod COA'!E:E,0)),INDEX('Prod COA'!B:B,MATCH('CHART OF ACCOUNTS'!T799,'Prod COA'!A:A,0)))","v":{"$error":"#N/A"}}]
[2,"Statement of Operations",85,"Project Costing and Billing Placeholder (Parked)",850,"Project Costing and Billing (Parked)",8961,"Internal Consumption - Research Overhead paid","General Rev and Exp (7) - CC(F-Cat4)/Fund(F-VM)/WO(M)/ACT(M)","IS",null,"GL","Closed","Not in FRS","Not in YTD GL",null,null,null,null,8961,{"$f":"IFERROR(INDEX('Prod COA'!B:B,MATCH('CHART OF ACCOUNTS'!T800,'Prod COA'!E:E,0)),INDEX('Prod COA'!B:B,MATCH('CHART OF ACCOUNTS'!T800,'Prod COA'!A:A,0)))","v":{"$error":"#N/A"}}]
[2,"Statement of Operations",85,"Project Costing and Billing Placeholder (Parked)",850,"Project Costing and Billing (Parked)",8962,"Internal Consumption - PVPA Premium Paid","General Rev and Exp (7) - CC(F-Cat4)/Fund(F-VM)/WO(M)/ACT(M)","IS",null,"GL","Closed","Not in FRS","Not in YTD GL",null,null,null,null,8962,{"$f":"IFERROR(INDEX('Prod COA'!B:B,MATCH('CHART OF ACCOUNTS'!T801,'Prod COA'!E:E,0)),INDEX('Prod COA'!B:B,MATCH('CHART OF ACCOUNTS'!T801,'Prod COA'!A:A,0)))","v":{"$error":"#N/A"}}]
[2,"Statement of Operations",85,"Project Costing and Billing Placeholder (Parked)",850,"Project Costing and Billing (Parked)",8963,"Internal Consumption - Housing Costs","General Rev and Exp (7) - CC(F-Cat4)/Fund(F-VM)/WO(M)/ACT(M)","IS",null,"GL","Closed","Not in FRS","Not in YTD GL",null,null,null,null,8963,{"$f":"IFERROR(INDEX('Prod COA'!B:B,MATCH('CHART OF ACCOUNTS'!T802,'Prod COA'!E:E,0)),INDEX('Prod COA'!B:B,MATCH('CHART OF ACCOUNTS'!T802,'Prod COA'!A:A,0)))","v":{"$error":"#N/A"}}]
[1,"Statement of Financial Position","90","CLEARING","900","Clearing",9600,"PAYROLL Business Number Account - CLEARING FOR T4s","Balance Sheet (13) - PAYROLL BNumber CLEARING","BS","9600","GL","Active","Not in FRS","Not in YTD GL",null,null,null,null,9600,{"$f":"IFERROR(INDEX('Prod COA'!B:B,MATCH('CHART OF ACCOUNTS'!T803,'Prod COA'!E:E,0)),INDEX('Prod COA'!B:B,MATCH('CHART OF ACCOUNTS'!T803,'Prod COA'!A:A,0)))","v":{"$error":"#N/A"}}]
[1,"Statement of Financial Position","90","CLEARING","900","Clearing",9601,"PAYROLL Balancing  Account - SYSTEM Errors","Balance Sheet (2) - General CC(F-9000)/Fund(F-10)","BS","9601","GL","Active","Not in FRS","Not in YTD GL",null,null,null,null,9601,{"$f":"IFERROR(INDEX('Prod COA'!B:B,MATCH('CHART OF ACCOUNTS'!T804,'Prod COA'!E:E,0)),INDEX('Prod COA'!B:B,MATCH('CHART OF ACCOUNTS'!T804,'Prod COA'!A:A,0)))","v":{"$error":"#N/A"}}]
[1,"Statement of Financial Position","90","CLEARING","900","Clearing",9602,"PAYROLL Balancing  Account - BENEFITS rounding (BILLING)","Balance Sheet (20) - PAYROLL BENEFITS Clearing","BS","9602","GL","Active","Not in FRS","Not in YTD GL",null,null,null,null,9602,{"$f":"IFERROR(INDEX('Prod COA'!B:B,MATCH('CHART OF ACCOUNTS'!T805,'Prod COA'!E:E,0)),INDEX('Prod COA'!B:B,MATCH('CHART OF ACCOUNTS'!T805,'Prod COA'!A:A,0)))","v":{"$error":"#N/A"}}]
[1,"Statement of Financial Position","90","CLEARING","900","Clearing",9603,"PAYROLL Balancing Account - Cost Distribution","Salaries (4) - CC(F-Cat4)/Fund(F-VM)/RESNO(M)/WO(M)/ACT(M)/AT(M)","BS","9603","GL","Active","Not in FRS","Not in YTD GL",null,null,null,null,9603,{"$f":"IFERROR(INDEX('Prod COA'!B:B,MATCH('CHART OF ACCOUNTS'!T806,'Prod COA'!E:E,0)),INDEX('Prod COA'!B:B,MATCH('CHART OF ACCOUNTS'!T806,'Prod COA'!A:A,0)))","v":{"$error":"#N/A"}}]
[1,"Statement of Financial Position","90","CLEARING","900","Clearing",9700,"PCard Suspense Account","Assets - DCC Revenue (9) - CC(F-9150)/Fund(F-50)/WO(M)/ACT(M-Default 500)/G(M)","BS","9700","GL","Closed","Not in FRS","Not in YTD GL",null,null,null,null,9700,{"$f":"IFERROR(INDEX('Prod COA'!B:B,MATCH('CHART OF ACCOUNTS'!T807,'Prod COA'!E:E,0)),INDEX('Prod COA'!B:B,MATCH('CHART OF ACCOUNTS'!T807,'Prod COA'!A:A,0)))","v":{"$error":"#N/A"}}]
[1,"Statement of Financial Position","90","CLEARING","900","Clearing",9800,"Payment Differences - Rounding","Balance Sheet (2) - General CC(F-9000)/Fund(F-10)","BS","9800","GL","Active","Not in FRS","Not in YTD GL",null,null,null,null,9800,{"$f":"IFERROR(INDEX('Prod COA'!B:B,MATCH('CHART OF ACCOUNTS'!T808,'Prod COA'!E:E,0)),INDEX('Prod COA'!B:B,MATCH('CHART OF ACCOUNTS'!T808,'Prod COA'!A:A,0)))","v":{"$error":"#N/A"}}]
[1,"Statement of Financial Position","90","CLEARING","900","Clearing",9990,"P2P Suspense","Balance Sheet (2) - General CC(F-9000)/Fund(F-10)","BS","9990","GL","Active","Not in FRS","Not in YTD GL",null,null,null,null,9990,{"$f":"IFERROR(INDEX('Prod COA'!B:B,MATCH('CHART OF ACCOUNTS'!T809,'Prod COA'!E:E,0)),INDEX('Prod COA'!B:B,MATCH('CHART OF ACCOUNTS'!T809,'Prod COA'!A:A,0)))","v":{"$error":"#N/A"}}]
[2,"Statement of Operations","50","Expenses","600","Fees and purchased services","6000-2","Services (G)","Tax Value Matrix (27) - CC(F-Cat4)/Fund(F-VM)/WO(M)/Act(M)","IS","6000","GL","Active","Not in FRS","Not in YTD GL",null,null,null,null,6000,{"$f":"IFERROR(INDEX('Prod COA'!B:B,MATCH('CHART OF ACCOUNTS'!T810,'Prod COA'!E:E,0)),INDEX('Prod COA'!B:B,MATCH('CHART OF ACCOUNTS'!T810,'Prod COA'!A:A,0)))","v":{"$error":"#N/A"}}]
[2,"Statement of Operations","50","Expenses","600","Fees and purchased services","6000-3","Services (GP)","Tax Value Matrix (27) - CC(F-Cat4)/Fund(F-VM)/WO(M)/Act(M)","IS","6000","GL","Active","Not in FRS","Not in YTD GL",null,null,null,null,6000,{"$f":"IFERROR(INDEX('Prod COA'!B:B,MATCH('CHART OF ACCOUNTS'!T811,'Prod COA'!E:E,0)),INDEX('Prod COA'!B:B,MATCH('CHART OF ACCOUNTS'!T811,'Prod COA'!A:A,0)))","v":{"$error":"#N/A"}}]
[2,"Statement of Operations","50","Expenses","600","Fees and purchased services","6001-2","Services - Service Fee from CBV - SO","General Rev and Exp (7) - CC(F-Cat4)/Fund(F-VM)/WO(M)/ACT(M)","IS","6001","GL","Active","Not in FRS","Not in YTD GL",null,null,null,null,6001,{"$f":"IFERROR(INDEX('Prod COA'!B:B,MATCH('CHART OF ACCOUNTS'!T812,'Prod COA'!E:E,0)),INDEX('Prod COA'!B:B,MATCH('CHART OF ACCOUNTS'!T812,'Prod COA'!A:A,0)))","v":{"$error":"#N/A"}}]
[2,"Statement of Operations","50","Expenses","600","Fees and purchased services","6005-2","Fee for Service - Individual / Sole Proprietor (G)","Tax Value Matrix (27) - CC(F-Cat4)/Fund(F-VM)/WO(M)/Act(M)","IS","6005","GL","Active","Not in FRS","Not in YTD GL",null,null,null,null,6005,{"$f":"IFERROR(INDEX('Prod COA'!B:B,MATCH('CHART OF ACCOUNTS'!T813,'Prod COA'!E:E,0)),INDEX('Prod COA'!B:B,MATCH('CHART OF ACCOUNTS'!T813,'Prod COA'!A:A,0)))","v":{"$error":"#N/A"}}]
[2,"Statement of Operations","50","Expenses","600","Fees and purchased services","6005-3","Fee for Service - Individual / Sole Proprietor (GP)","Tax Value Matrix (27) - CC(F-Cat4)/Fund(F-VM)/WO(M)/Act(M)","IS","6005","GL","Active","Not in FRS","Not in YTD GL",null,null,null,null,6005,{"$f":"IFERROR(INDEX('Prod COA'!B:B,MATCH('CHART OF ACCOUNTS'!T814,'Prod COA'!E:E,0)),INDEX('Prod COA'!B:B,MATCH('CHART OF ACCOUNTS'!T814,'Prod COA'!A:A,0)))","v":{"$error":"#N/A"}}]
[2,"Statement of Operations","50","Expenses","600","Fees and purchased services","6010-2","Advertising & Promotion (G)","Tax Value Matrix (27) - CC(F-Cat4)/Fund(F-VM)/WO(M)/Act(M)","IS","6010","GL","Active","Not in FRS","Not in YTD GL",null,null,null,null,6010,{"$f":"IFERROR(INDEX('Prod COA'!B:B,MATCH('CHART OF ACCOUNTS'!T815,'Prod COA'!E:E,0)),INDEX('Prod COA'!B:B,MATCH('CHART OF ACCOUNTS'!T815,'Prod COA'!A:A,0)))","v":{"$error":"#N/A"}}]
[2,"Statement of Operations","50","Expenses","600","Fees and purchased services","6010-3","Advertising & Promotion (GP)","Tax Value Matrix (27) - CC(F-Cat4)/Fund(F-VM)/WO(M)/Act(M)","IS","6010","GL","Active","Not in FRS","Not in YTD GL",null,null,null,null,6010,{"$f":"IFERROR(INDEX('Prod COA'!B:B,MATCH('CHART OF ACCOUNTS'!T816,'Prod COA'!E:E,0)),INDEX('Prod COA'!B:B,MATCH('CHART OF ACCOUNTS'!T816,'Prod COA'!A:A,0)))","v":{"$error":"#N/A"}}]
[2,"Statement of Operations","50","Expenses","600","Fees and purchased services","6015-2","Hospitality - External (G)","Tax Value Matrix (27) - CC(F-Cat4)/Fund(F-VM)/WO(M)/Act(M)","IS","6015","GL","Active","Not in FRS","Not in YTD GL",null,null,null,null,6015,{"$f":"IFERROR(INDEX('Prod COA'!B:B,MATCH('CHART OF ACCOUNTS'!T817,'Prod COA'!E:E,0)),INDEX('Prod COA'!B:B,MATCH('CHART OF ACCOUNTS'!T817,'Prod COA'!A:A,0)))","v":{"$error":"#N/A"}}]
[2,"Statement of Operations","50","Expenses","600","Fees and purchased services","6015-3","Hospitality - External (GP)","Tax Value Matrix (27) - CC(F-Cat4)/Fund(F-VM)/WO(M)/Act(M)","IS","6015","GL","Active","Not in FRS","Not in YTD GL",null,null,null,null,6015,{"$f":"IFERROR(INDEX('Prod COA'!B:B,MATCH('CHART OF ACCOUNTS'!T818,'Prod COA'!E:E,0)),INDEX('Prod COA'!B:B,MATCH('CHART OF ACCOUNTS'!T818,'Prod COA'!A:A,0)))","v":{"$error":"#N/A"}}]
[2,"Statement of Operations","50","Expenses","600","Fees and purchased services","6020-2","Fees and Memberships - Institutional (G)","Tax Value Matrix (27) - CC(F-Cat4)/Fund(F-VM)/WO(M)/Act(M)","IS","6020","GL","Active","Not in FRS","Not in YTD GL",null,null,null,null,6020,{"$f":"IFERROR(INDEX('Prod COA'!B:B,MATCH('CHART OF ACCOUNTS'!T819,'Prod COA'!E:E,0)),INDEX('Prod COA'!B:B,MATCH('CHART OF ACCOUNTS'!T819,'Prod COA'!A:A,0)))","v":{"$error":"#N/A"}}]
[2,"Statement of Operations","50","Expenses","600","Fees and purchased services","6025-2","Fees and Memberships - Employee (G)","Tax Value Matrix (Resno) (28) - CC(F-Cat4)/Fund(F-VM)/ResNo(M)/WO(M)/Act(M)","IS","6025","GL","Active","Not in FRS","Not in YTD GL",null,null,null,null,6025,{"$f":"IFERROR(INDEX('Prod COA'!B:B,MATCH('CHART OF ACCOUNTS'!T820,'Prod COA'!E:E,0)),INDEX('Prod COA'!B:B,MATCH('CHART OF ACCOUNTS'!T820,'Prod COA'!A:A,0)))","v":{"$error":"#N/A"}}]
[2,"Statement of Operations","50","Expenses","600","Fees and purchased services","6030-2","Professional and Consulting Fees (G)","Tax Value Matrix (27) - CC(F-Cat4)/Fund(F-VM)/WO(M)/Act(M)","IS","6030","GL","Active","Not in FRS","Not in YTD GL",null,null,null,null,6030,{"$f":"IFERROR(INDEX('Prod COA'!B:B,MATCH('CHART OF ACCOUNTS'!T821,'Prod COA'!E:E,0)),INDEX('Prod COA'!B:B,MATCH('CHART OF ACCOUNTS'!T821,'Prod COA'!A:A,0)))","v":{"$error":"#N/A"}}]
[2,"Statement of Operations","50","Expenses","600","Fees and purchased services","6030-3","Professional and Consulting Fees (GP)","Tax Value Matrix (27) - CC(F-Cat4)/Fund(F-VM)/WO(M)/Act(M)","IS","6030","GL","Active","Not in FRS","Not in YTD GL",null,null,null,null,6030,{"$f":"IFERROR(INDEX('Prod COA'!B:B,MATCH('CHART OF ACCOUNTS'!T822,'Prod COA'!E:E,0)),INDEX('Prod COA'!B:B,MATCH('CHART OF ACCOUNTS'!T822,'Prod COA'!A:A,0)))","v":{"$error":"#N/A"}}]
[2,"Statement of Operations","50","Expenses","600","Fees and purchased services","6045-2","Software (G)","Tax Value Matrix (27) - CC(F-Cat4)/Fund(F-VM)/WO(M)/Act(M)","IS","6045","GL","Active","Not in FRS","Not in YTD GL",null,null,null,null,6045,{"$f":"IFERROR(INDEX('Prod COA'!B:B,MATCH('CHART OF ACCOUNTS'!T823,'Prod COA'!E:E,0)),INDEX('Prod COA'!B:B,MATCH('CHART OF ACCOUNTS'!T823,'Prod COA'!A:A,0)))","v":{"$error":"#N/A"}}]
[2,"Statement of Operations","50","Expenses","600","Fees and purchased services","6045-3","Software (GP)","Tax Value Matrix (27) - CC(F-Cat4)/Fund(F-VM)/WO(M)/Act(M)","IS","6046","GL","Active","Not in FRS","Not in YTD GL",null,null,null,null,6046,{"$f":"IFERROR(INDEX('Prod COA'!B:B,MATCH('CHART OF ACCOUNTS'!T824,'Prod COA'!E:E,0)),INDEX('Prod COA'!B:B,MATCH('CHART OF ACCOUNTS'!T824,'Prod COA'!A:A,0)))","v":{"$error":"#N/A"}}]
[2,"Statement of Operations","50","Expenses","600","Fees and purchased services","6050-1","Foreign Exchange Gain / Loss","AP Exchange Rate Variation (26) -CC(F-Cat4)/Fund(F-VM)/WO(F-19150-1-1)/ACT(F-101)","IS","6050","GL","Active","Not in FRS","Not in YTD GL",null,null,null,null,6050,{"$f":"IFERROR(INDEX('Prod COA'!B:B,MATCH('CHART OF ACCOUNTS'!T825,'Prod COA'!E:E,0)),INDEX('Prod COA'!B:B,MATCH('CHART OF ACCOUNTS'!T825,'Prod COA'!A:A,0)))","v":{"$error":"#N/A"}}]
[2,"Statement of Operations","50","Expenses","610","Travel and training","6100-2","Travel - Employee (G)","Tax Value Matrix (Resno) (28) - CC(F-Cat4)/Fund(F-VM)/ResNo(M)/WO(M)/Act(M)","IS","6100","GL","Active","Not in FRS","Not in YTD GL",null,null,null,null,6100,{"$f":"IFERROR(INDEX('Prod COA'!B:B,MATCH('CHART OF ACCOUNTS'!T826,'Prod COA'!E:E,0)),INDEX('Prod COA'!B:B,MATCH('CHART OF ACCOUNTS'!T826,'Prod COA'!A:A,0)))","v":{"$error":"#N/A"}}]
[2,"Statement of Operations","50","Expenses","610","Travel and training","6100-3","Travel - Employee (GP)","Tax Value Matrix (Resno) (28) - CC(F-Cat4)/Fund(F-VM)/ResNo(M)/WO(M)/Act(M)","IS","6100","GL","Active","Not in FRS","Not in YTD GL",null,null,null,null,6100,{"$f":"IFERROR(INDEX('Prod COA'!B:B,MATCH('CHART OF ACCOUNTS'!T827,'Prod COA'!E:E,0)),INDEX('Prod COA'!B:B,MATCH('CHART OF ACCOUNTS'!T827,'Prod COA'!A:A,0)))","v":{"$error":"#N/A"}}]
[2,"Statement of Operations","50","Expenses","610","Travel and training","6100-5","Travel - Employee (M)","Tax Value Matrix (Resno) (28) - CC(F-Cat4)/Fund(F-VM)/ResNo(M)/WO(M)/Act(M)","IS","6100","GL","Active","Not in FRS","Not in YTD GL",null,null,null,null,6100,{"$f":"IFERROR(INDEX('Prod COA'!B:B,MATCH('CHART OF ACCOUNTS'!T828,'Prod COA'!E:E,0)),INDEX('Prod COA'!B:B,MATCH('CHART OF ACCOUNTS'!T828,'Prod COA'!A:A,0)))","v":{"$error":"#N/A"}}]
[2,"Statement of Operations","50","Expenses","610","Travel and training","6100-6","Travel - Employee (4/104)","Tax Value Matrix (Resno) (28) - CC(F-Cat4)/Fund(F-VM)/ResNo(M)/WO(M)/Act(M)","IS","6100","GL","Active","Not in FRS","Not in YTD GL",null,null,null,null,6100,{"$f":"IFERROR(INDEX('Prod COA'!B:B,MATCH('CHART OF ACCOUNTS'!T829,'Prod COA'!E:E,0)),INDEX('Prod COA'!B:B,MATCH('CHART OF ACCOUNTS'!T829,'Prod COA'!A:A,0)))","v":{"$error":"#N/A"}}]
[2,"Statement of Operations","50","Expenses","610","Travel and training","6100-7","Travel - Employee (5/105)","Tax Value Matrix (Resno) (28) - CC(F-Cat4)/Fund(F-VM)/ResNo(M)/WO(M)/Act(M)","IS","6100","GL","Active","Not in FRS","Not in YTD GL",null,null,null,null,6100,{"$f":"IFERROR(INDEX('Prod COA'!B:B,MATCH('CHART OF ACCOUNTS'!T830,'Prod COA'!E:E,0)),INDEX('Prod COA'!B:B,MATCH('CHART OF ACCOUNTS'!T830,'Prod COA'!A:A,0)))","v":{"$error":"#N/A"}}]
[2,"Statement of Operations","50","Expenses","610","Travel and training","6105-2","Travel - Non Employee (G)","Tax Value Matrix (27) - CC(F-Cat4)/Fund(F-VM)/WO(M)/Act(M)","IS","6105","GL","Active","Not in FRS","Not in YTD GL",null,null,null,null,6105,{"$f":"IFERROR(INDEX('Prod COA'!B:B,MATCH('CHART OF ACCOUNTS'!T831,'Prod COA'!E:E,0)),INDEX('Prod COA'!B:B,MATCH('CHART OF ACCOUNTS'!T831,'Prod COA'!A:A,0)))","v":{"$error":"#N/A"}}]
[2,"Statement of Operations","50","Expenses","610","Travel and training","6105-3","Travel - Non Employee (GP)","Tax Value Matrix (27) - CC(F-Cat4)/Fund(F-VM)/WO(M)/Act(M)","IS","6105","GL","Active","Not in FRS","Not in YTD GL",null,null,null,null,6105,{"$f":"IFERROR(INDEX('Prod COA'!B:B,MATCH('CHART OF ACCOUNTS'!T832,'Prod COA'!E:E,0)),INDEX('Prod COA'!B:B,MATCH('CHART OF ACCOUNTS'!T832,'Prod COA'!A:A,0)))","v":{"$error":"#N/A"}}]
[2,"Statement of Operations","50","Expenses","610","Travel and training","6105-5","Travel - Non Employee (M)","Tax Value Matrix (27) - CC(F-Cat4)/Fund(F-VM)/WO(M)/Act(M)","IS","6105","GL","Active","Not in FRS","Not in YTD GL",null,null,null,null,6105,{"$f":"IFERROR(INDEX('Prod COA'!B:B,MATCH('CHART OF ACCOUNTS'!T833,'Prod COA'!E:E,0)),INDEX('Prod COA'!B:B,MATCH('CHART OF ACCOUNTS'!T833,'Prod COA'!A:A,0)))","v":{"$error":"#N/A"}}]
[2,"Statement of Operations","50","Expenses","610","Travel and training","6105-6","Travel - Non Employee (4/104)","Tax Value Matrix (27) - CC(F-Cat4)/Fund(F-VM)/WO(M)/Act(M)","IS","6105","GL","Active","Not in FRS","Not in YTD GL",null,null,null,null,6105,{"$f":"IFERROR(INDEX('Prod COA'!B:B,MATCH('CHART OF ACCOUNTS'!T834,'Prod COA'!E:E,0)),INDEX('Prod COA'!B:B,MATCH('CHART OF ACCOUNTS'!T834,'Prod COA'!A:A,0)))","v":{"$error":"#N/A"}}]
[2,"Statement of Operations","50","Expenses","610","Travel and training","6105-7","Travel - Non Employee (5/105)","Tax Value Matrix (27) - CC(F-Cat4)/Fund(F-VM)/WO(M)/Act(M)","IS","6105","GL","Active","Not in FRS","Not in YTD GL",null,null,null,null,{"$f":"IF(LEN(G835)=4,G835,K835)*1","v":6105},{"$f":"IFERROR(INDEX('Prod COA'!B:B,MATCH('CHART OF ACCOUNTS'!T835,'Prod COA'!E:E,0)),INDEX('Prod COA'!B:B,MATCH('CHART OF ACCOUNTS'!T835,'Prod COA'!A:A,0)))","v":{"$error":"#N/A"}}]
[2,"Statement of Operations","50","Expenses","610","Travel and training","6110-2","Training - Employee (G)","Tax Value Matrix (Resno) (28) - CC(F-Cat4)/Fund(F-VM)/ResNo(M)/WO(M)/Act(M)","IS","6110","GL","Active","Not in FRS","Not in YTD GL",null,null,null,null,6110,{"$f":"IFERROR(INDEX('Prod COA'!B:B,MATCH('CHART OF ACCOUNTS'!T836,'Prod COA'!E:E,0)),INDEX('Prod COA'!B:B,MATCH('CHART OF ACCOUNTS'!T836,'Prod COA'!A:A,0)))","v":{"$error":"#N/A"}}]
[2,"Statement of Operations","50","Expenses","610","Travel and training","6110-3","Training - Employee (GP)","Tax Value Matrix (Resno) (28) - CC(F-Cat4)/Fund(F-VM)/ResNo(M)/WO(M)/Act(M)","IS","6110","GL","Active","Not in FRS","Not in YTD GL",null,null,null,null,6110,{"$f":"IFERROR(INDEX('Prod COA'!B:B,MATCH('CHART OF ACCOUNTS'!T837,'Prod COA'!E:E,0)),INDEX('Prod COA'!B:B,MATCH('CHART OF ACCOUNTS'!T837,'Prod COA'!A:A,0)))","v":{"$error":"#N/A"}}]
[2,"Statement of Operations","50","Expenses","610","Travel and training","6115-2","Training - Institutional (G)","Tax Value Matrix (27) - CC(F-Cat4)/Fund(F-VM)/WO(M)/Act(M)","IS","6115","GL","Active","Not in FRS","Not in YTD GL",null,null,null,null,6115,{"$f":"IFERROR(INDEX('Prod COA'!B:B,MATCH('CHART OF ACCOUNTS'!T838,'Prod COA'!E:E,0)),INDEX('Prod COA'!B:B,MATCH('CHART OF ACCOUNTS'!T838,'Prod COA'!A:A,0)))","v":{"$error":"#N/A"}}]
[2,"Statement of Operations","50","Expenses","610","Travel and training","6115-3","Training - Institutional (GP)","Tax Value Matrix (27) - CC(F-Cat4)/Fund(F-VM)/WO(M)/Act(M)","IS","6115","GL","Active","Not in FRS","Not in YTD GL",null,null,null,null,6115,{"$f":"IFERROR(INDEX('Prod COA'!B:B,MATCH('CHART OF ACCOUNTS'!T839,'Prod COA'!E:E,0)),INDEX('Prod COA'!B:B,MATCH('CHART OF ACCOUNTS'!T839,'Prod COA'!A:A,0)))","v":{"$error":"#N/A"}}]
[2,"Statement of Operations","50","Expenses","620","Scholarships and bursaries","6200-2","Tuition Bursary/Scholarships (G)","Tax Value Matrix (27) - CC(F-Cat4)/Fund(F-VM)/WO(M)/Act(M)","IS","6200","GL","Active","Not in FRS","Not in YTD GL",null,null,null,null,6200,{"$f":"IFERROR(INDEX('Prod COA'!B:B,MATCH('CHART OF ACCOUNTS'!T840,'Prod COA'!E:E,0)),INDEX('Prod COA'!B:B,MATCH('CHART OF ACCOUNTS'!T840,'Prod COA'!A:A,0)))","v":{"$error":"#N/A"}}]
[2,"Statement of Operations","50","Expenses","620","Scholarships and bursaries","6200-3","Tuition Bursary/Scholarships (GP)","Tax Value Matrix (27) - CC(F-Cat4)/Fund(F-VM)/WO(M)/Act(M)","IS","6200","GL","Active","Not in FRS","Not in YTD GL",null,null,null,null,6200,{"$f":"IFERROR(INDEX('Prod COA'!B:B,MATCH('CHART OF ACCOUNTS'!T841,'Prod COA'!E:E,0)),INDEX('Prod COA'!B:B,MATCH('CHART OF ACCOUNTS'!T841,'Prod COA'!A:A,0)))","v":{"$error":"#N/A"}}]
[2,"Statement of Operations","50","Expenses","630","Equipment rental and maintenance","6300-2","Repair and Maintenance - Furniture & Equipment (G)","Tax Value Matrix (27) - CC(F-Cat4)/Fund(F-VM)/WO(M)/Act(M)","IS","6300","GL","Active","Not in FRS","Not in YTD GL",null,null,null,null,6300,{"$f":"IFERROR(INDEX('Prod COA'!B:B,MATCH('CHART OF ACCOUNTS'!T842,'Prod COA'!E:E,0)),INDEX('Prod COA'!B:B,MATCH('CHART OF ACCOUNTS'!T842,'Prod COA'!A:A,0)))","v":{"$error":"#N/A"}}]
[2,"Statement of Operations","50","Expenses","630","Equipment rental and maintenance","6300-3","Repair and Maintenance - Furniture & Equipment (GP)","Tax Value Matrix (27) - CC(F-Cat4)/Fund(F-VM)/WO(M)/Act(M)","IS","6300","GL","Active","Not in FRS","Not in YTD GL",null,null,null,null,6300,{"$f":"IFERROR(INDEX('Prod COA'!B:B,MATCH('CHART OF ACCOUNTS'!T843,'Prod COA'!E:E,0)),INDEX('Prod COA'!B:B,MATCH('CHART OF ACCOUNTS'!T843,'Prod COA'!A:A,0)))","v":{"$error":"#N/A"}}]
[2,"Statement of Operations","50","Expenses","630","Equipment rental and maintenance","6305-3","Repair and Maintenance - Vehicles (GP)","Tax Value Matrix (27) - CC(F-Cat4)/Fund(F-VM)/WO(M)/Act(M)","IS","6305","GL","Active","Not in FRS","Not in YTD GL",null,null,null,null,6305,{"$f":"IFERROR(INDEX('Prod COA'!B:B,MATCH('CHART OF ACCOUNTS'!T844,'Prod COA'!E:E,0)),INDEX('Prod COA'!B:B,MATCH('CHART OF ACCOUNTS'!T844,'Prod COA'!A:A,0)))","v":{"$error":"#N/A"}}]
[2,"Statement of Operations","50","Expenses","630","Equipment rental and maintenance","6310-2","Repair and Maintenance - Facilities (G)","Tax Value Matrix (27) - CC(F-Cat4)/Fund(F-VM)/WO(M)/Act(M)","IS","6310","GL","Active","Not in FRS","Not in YTD GL",null,null,null,null,6310,{"$f":"IFERROR(INDEX('Prod COA'!B:B,MATCH('CHART OF ACCOUNTS'!T845,'Prod COA'!E:E,0)),INDEX('Prod COA'!B:B,MATCH('CHART OF ACCOUNTS'!T845,'Prod COA'!A:A,0)))","v":{"$error":"#N/A"}}]
[2,"Statement of Operations","50","Expenses","630","Equipment rental and maintenance","6325-2","Rental and Lease (G)","Tax Value Matrix (27) - CC(F-Cat4)/Fund(F-VM)/WO(M)/Act(M)","IS","6325","GL","Active","Not in FRS","Not in YTD GL",null,null,null,null,6325,{"$f":"IFERROR(INDEX('Prod COA'!B:B,MATCH('CHART OF ACCOUNTS'!T846,'Prod COA'!E:E,0)),INDEX('Prod COA'!B:B,MATCH('CHART OF ACCOUNTS'!T846,'Prod COA'!A:A,0)))","v":{"$error":"#N/A"}}]
[2,"Statement of Operations","50","Expenses","630","Equipment rental and maintenance","6325-3","Rental and Lease (GP)","Tax Value Matrix (27) - CC(F-Cat4)/Fund(F-VM)/WO(M)/Act(M)","IS","6325","GL","Active","Not in FRS","Not in YTD GL",null,null,null,null,6325,{"$f":"IFERROR(INDEX('Prod COA'!B:B,MATCH('CHART OF ACCOUNTS'!T847,'Prod COA'!E:E,0)),INDEX('Prod COA'!B:B,MATCH('CHART OF ACCOUNTS'!T847,'Prod COA'!A:A,0)))","v":{"$error":"#N/A"}}]
[2,"Statement of Operations","50","Expenses","640","Utilities, insurance and taxes","6400-2","Utilities (G)","Tax Value Matrix (27) - CC(F-Cat4)/Fund(F-VM)/WO(M)/Act(M)","IS","6400","GL","Active","Not in FRS","Not in YTD GL",null,null,null,null,6400,{"$f":"IFERROR(INDEX('Prod COA'!B:B,MATCH('CHART OF ACCOUNTS'!T848,'Prod COA'!E:E,0)),INDEX('Prod COA'!B:B,MATCH('CHART OF ACCOUNTS'!T848,'Prod COA'!A:A,0)))","v":{"$error":"#N/A"}}]
[2,"Statement of Operations","50","Expenses","640","Utilities, insurance and taxes","6400-3","Utilities (GP)","Tax Value Matrix (27) - CC(F-Cat4)/Fund(F-VM)/WO(M)/Act(M)","IS","6400","GL","Active","Not in FRS","Not in YTD GL",null,null,null,null,6400,{"$f":"IFERROR(INDEX('Prod COA'!B:B,MATCH('CHART OF ACCOUNTS'!T849,'Prod COA'!E:E,0)),INDEX('Prod COA'!B:B,MATCH('CHART OF ACCOUNTS'!T849,'Prod COA'!A:A,0)))","v":{"$error":"#N/A"}}]
[2,"Statement of Operations","50","Expenses","640","Utilities, insurance and taxes","6405-2","Phone (G)","Tax Value Matrix (27) - CC(F-Cat4)/Fund(F-VM)/WO(M)/Act(M)","IS","6405","GL","Active","Not in FRS","Not in YTD GL",null,null,null,null,6405,{"$f":"IFERROR(INDEX('Prod COA'!B:B,MATCH('CHART OF ACCOUNTS'!T850,'Prod COA'!E:E,0)),INDEX('Prod COA'!B:B,MATCH('CHART OF ACCOUNTS'!T850,'Prod COA'!A:A,0)))","v":{"$error":"#N/A"}}]
[2,"Statement of Operations","50","Expenses","640","Utilities, insurance and taxes","6405-3","Phone (GP)","Tax Value Matrix (27) - CC(F-Cat4)/Fund(F-VM)/WO(M)/Act(M)","IS","6405","GL","Active","Not in FRS","Not in YTD GL",null,null,null,null,6405,{"$f":"IFERROR(INDEX('Prod COA'!B:B,MATCH('CHART OF ACCOUNTS'!T851,'Prod COA'!E:E,0)),INDEX('Prod COA'!B:B,MATCH('CHART OF ACCOUNTS'!T851,'Prod COA'!A:A,0)))","v":{"$error":"#N/A"}}]
[2,"Statement of Operations","50","Expenses","650","Materials and supplies","6500-2","Supplies (G)","Tax Value Matrix (27) - CC(F-Cat4)/Fund(F-VM)/WO(M)/Act(M)","IS","6500","GL","Active","Not in FRS","Not in YTD GL",null,null,null,null,6500,{"$f":"IFERROR(INDEX('Prod COA'!B:B,MATCH('CHART OF ACCOUNTS'!T852,'Prod COA'!E:E,0)),INDEX('Prod COA'!B:B,MATCH('CHART OF ACCOUNTS'!T852,'Prod COA'!A:A,0)))","v":{"$error":"#N/A"}}]
[2,"Statement of Operations","50","Expenses","650","Materials and supplies","6500-3","Supplies (GP)","Tax Value Matrix (27) - CC(F-Cat4)/Fund(F-VM)/WO(M)/Act(M)","IS","6500","GL","Active","Not in FRS","Not in YTD GL",null,null,null,null,6500,{"$f":"IFERROR(INDEX('Prod COA'!B:B,MATCH('CHART OF ACCOUNTS'!T853,'Prod COA'!E:E,0)),INDEX('Prod COA'!B:B,MATCH('CHART OF ACCOUNTS'!T853,'Prod COA'!A:A,0)))","v":{"$error":"#N/A"}}]
[2,"Statement of Operations","50","Expenses","650","Materials and supplies","6505-3","Office Supplies and Stationery (GP)","Tax Value Matrix (27) - CC(F-Cat4)/Fund(F-VM)/WO(M)/Act(M)","IS","6505","GL","Active","Not in FRS","Not in YTD GL",null,null,null,null,6505,{"$f":"IFERROR(INDEX('Prod COA'!B:B,MATCH('CHART OF ACCOUNTS'!T854,'Prod COA'!E:E,0)),INDEX('Prod COA'!B:B,MATCH('CHART OF ACCOUNTS'!T854,'Prod COA'!A:A,0)))","v":{"$error":"#N/A"}}]
[2,"Statement of Operations","50","Expenses","650","Materials and supplies","6510-1","Software (NT)","Tax Value Matrix (27) - CC(F-Cat4)/Fund(F-VM)/WO(M)/Act(M)","IS","6510","GL","Closed","Not in FRS","Not in YTD GL",null,null,null,null,6510,{"$f":"IFERROR(INDEX('Prod COA'!B:B,MATCH('CHART OF ACCOUNTS'!T855,'Prod COA'!E:E,0)),INDEX('Prod COA'!B:B,MATCH('CHART OF ACCOUNTS'!T855,'Prod COA'!A:A,0)))","v":{"$error":"#N/A"}}]
[2,"Statement of Operations","50","Expenses","650","Materials and supplies","6510-2","Software (G)","Tax Value Matrix (27) - CC(F-Cat4)/Fund(F-VM)/WO(M)/Act(M)","IS","6510","GL","Closed","Not in FRS","Not in YTD GL",null,null,null,null,6510,{"$f":"IFERROR(INDEX('Prod COA'!B:B,MATCH('CHART OF ACCOUNTS'!T856,'Prod COA'!E:E,0)),INDEX('Prod COA'!B:B,MATCH('CHART OF ACCOUNTS'!T856,'Prod COA'!A:A,0)))","v":{"$error":"#N/A"}}]
[2,"Statement of Operations","50","Expenses","650","Materials and supplies","6510-3","Software (GP)","Tax Value Matrix (27) - CC(F-Cat4)/Fund(F-VM)/WO(M)/Act(M)","IS","6510","GL","Closed","Not in FRS","Not in YTD GL",null,null,null,null,6510,{"$f":"IFERROR(INDEX('Prod COA'!B:B,MATCH('CHART OF ACCOUNTS'!T857,'Prod COA'!E:E,0)),INDEX('Prod COA'!B:B,MATCH('CHART OF ACCOUNTS'!T857,'Prod COA'!A:A,0)))","v":{"$error":"#N/A"}}]
[2,"Statement of Operations","50","Expenses","650","Materials and supplies","6520-2","Postage, Courier, and Freight (G)","Tax Value Matrix (27) - CC(F-Cat4)/Fund(F-VM)/WO(M)/Act(M)","IS","6520","GL","Active","Not in FRS","Not in YTD GL",null,null,null,null,6520,{"$f":"IFERROR(INDEX('Prod COA'!B:B,MATCH('CHART OF ACCOUNTS'!T858,'Prod COA'!E:E,0)),INDEX('Prod COA'!B:B,MATCH('CHART OF ACCOUNTS'!T858,'Prod COA'!A:A,0)))","v":{"$error":"#N/A"}}]
[2,"Statement of Operations","50","Expenses","650","Materials and supplies","6520-3","Postage, Courier, and Freight (GP)","Tax Value Matrix (27) - CC(F-Cat4)/Fund(F-VM)/WO(M)/Act(M)","IS","6520","GL","Active","Not in FRS","Not in YTD GL",null,null,null,null,6520,{"$f":"IFERROR(INDEX('Prod COA'!B:B,MATCH('CHART OF ACCOUNTS'!T859,'Prod COA'!E:E,0)),INDEX('Prod COA'!B:B,MATCH('CHART OF ACCOUNTS'!T859,'Prod COA'!A:A,0)))","v":{"$error":"#N/A"}}]
[2,"Statement of Operations","50","Expenses","650","Materials and supplies","6525-2","Miscellaneous Employee Expenses (G)","Tax Value Matrix (Resno) (28) - CC(F-Cat4)/Fund(F-VM)/ResNo(M)/WO(M)/Act(M)","IS","6525","GL","Active","Not in FRS","Not in YTD GL",null,null,null,null,6525,{"$f":"IFERROR(INDEX('Prod COA'!B:B,MATCH('CHART OF ACCOUNTS'!T860,'Prod COA'!E:E,0)),INDEX('Prod COA'!B:B,MATCH('CHART OF ACCOUNTS'!T860,'Prod COA'!A:A,0)))","v":{"$error":"#N/A"}}]
[2,"Statement of Operations","50","Expenses","650","Materials and supplies","6525-3","Miscellaneous Employee Expenses (GP)","Tax Value Matrix (Resno) (28) - CC(F-Cat4)/Fund(F-VM)/ResNo(M)/WO(M)/Act(M)","IS","6525","GL","Active","Not in FRS","Not in YTD GL",null,null,null,null,6525,{"$f":"IFERROR(INDEX('Prod COA'!B:B,MATCH('CHART OF ACCOUNTS'!T861,'Prod COA'!E:E,0)),INDEX('Prod COA'!B:B,MATCH('CHART OF ACCOUNTS'!T861,'Prod COA'!A:A,0)))","v":{"$error":"#N/A"}}]
[2,"Statement of Operations","50","Expenses","650","Materials and supplies","6525-6","Miscellaneous Employee Expenses (4/104)","Tax Value Matrix (Resno) (28) - CC(F-Cat4)/Fund(F-VM)/ResNo(M)/WO(M)/Act(M)","IS","6525","GL","Active","Not in FRS","Not in YTD GL",null,null,null,null,6525,{"$f":"IFERROR(INDEX('Prod COA'!B:B,MATCH('CHART OF ACCOUNTS'!T862,'Prod COA'!E:E,0)),INDEX('Prod COA'!B:B,MATCH('CHART OF ACCOUNTS'!T862,'Prod COA'!A:A,0)))","v":{"$error":"#N/A"}}]
[2,"Statement of Operations","50","Expenses","650","Materials and supplies","6525-7","Miscellaneous Employee Expenses (5/105)","Tax Value Matrix (Resno) (28) - CC(F-Cat4)/Fund(F-VM)/ResNo(M)/WO(M)/Act(M)","IS","6525","GL","Active","Not in FRS","Not in YTD GL",null,null,null,null,6525,{"$f":"IFERROR(INDEX('Prod COA'!B:B,MATCH('CHART OF ACCOUNTS'!T863,'Prod COA'!E:E,0)),INDEX('Prod COA'!B:B,MATCH('CHART OF ACCOUNTS'!T863,'Prod COA'!A:A,0)))","v":{"$error":"#N/A"}}]
[2,"Statement of Operations","50","Expenses","660","Cost of goods sold","6600-2","Cost of Goods Sold (G)","Tax Value Matrix (27) - CC(F-Cat4)/Fund(F-VM)/WO(M)/Act(M)","IS","6600","GL","Active","Not in FRS","Not in YTD GL",null,null,null,null,6600,{"$f":"IFERROR(INDEX('Prod COA'!B:B,MATCH('CHART OF ACCOUNTS'!T864,'Prod COA'!E:E,0)),INDEX('Prod COA'!B:B,MATCH('CHART OF ACCOUNTS'!T864,'Prod COA'!A:A,0)))","v":{"$error":"#N/A"}}]
[2,"Statement of Operations","50","Expenses","660","Cost of goods sold","6600-3","Cost of Goods Sold (GP)","Tax Value Matrix (27) - CC(F-Cat4)/Fund(F-VM)/WO(M)/Act(M)","IS","6600","GL","Active","Not in FRS","Not in YTD GL",null,null,null,null,6600,{"$f":"IFERROR(INDEX('Prod COA'!B:B,MATCH('CHART OF ACCOUNTS'!T865,'Prod COA'!E:E,0)),INDEX('Prod COA'!B:B,MATCH('CHART OF ACCOUNTS'!T865,'Prod COA'!A:A,0)))","v":{"$error":"#N/A"}}]
[2,"Statement of Operations","50","Expenses","660","Cost of goods sold","6605-2","Freight and Brokerage Fees (G)","Tax Value Matrix (27) - CC(F-Cat4)/Fund(F-VM)/WO(M)/Act(M)","IS","6605","GL","Active","Not in FRS","Not in YTD GL",null,null,null,null,6605,{"$f":"IFERROR(INDEX('Prod COA'!B:B,MATCH('CHART OF ACCOUNTS'!T866,'Prod COA'!E:E,0)),INDEX('Prod COA'!B:B,MATCH('CHART OF ACCOUNTS'!T866,'Prod COA'!A:A,0)))","v":{"$error":"#N/A"}}]
[2,"Statement of Operations","50","Expenses","660","Cost of goods sold","6605-3","Freight and Brokerage Fees (GP)","Tax Value Matrix (27) - CC(F-Cat4)/Fund(F-VM)/WO(M)/Act(M)","IS","6605","GL","Active","Not in FRS","Not in YTD GL",null,null,null,null,6605,{"$f":"IFERROR(INDEX('Prod COA'!B:B,MATCH('CHART OF ACCOUNTS'!T867,'Prod COA'!E:E,0)),INDEX('Prod COA'!B:B,MATCH('CHART OF ACCOUNTS'!T867,'Prod COA'!A:A,0)))","v":{"$error":"#N/A"}}]
[2,"Statement of Operations","50","Expenses","660","Cost of goods sold","6610-1","Bad Debt Expense (NT)","General Rev and Exp (7) - CC(F-Cat4)/Fund(F-VM)/WO(M)/ACT(M)","IS","6610","GL","Closed","Not in FRS","Not in YTD GL",null,null,null,null,6610,{"$f":"IFERROR(INDEX('Prod COA'!B:B,MATCH('CHART OF ACCOUNTS'!T868,'Prod COA'!E:E,0)),INDEX('Prod COA'!B:B,MATCH('CHART OF ACCOUNTS'!T868,'Prod COA'!A:A,0)))","v":{"$error":"#N/A"}}]
[2,"Statement of Operations","50","Expenses","680","Grants and Contributions","6800-1","Contributions To VIU FDN - Internally Funded (NT)","Tax Value Matrix (27) - CC(F-Cat4)/Fund(F-VM)/WO(M)/Act(M)","IS","6800","GL","Active","Not in FRS","Not in YTD GL",null,null,null,null,6800,{"$f":"IFERROR(INDEX('Prod COA'!B:B,MATCH('CHART OF ACCOUNTS'!T869,'Prod COA'!E:E,0)),INDEX('Prod COA'!B:B,MATCH('CHART OF ACCOUNTS'!T869,'Prod COA'!A:A,0)))","v":{"$error":"#N/A"}}]
[2,"Statement of Operations","50","Expenses","680","Grants and Contributions","6801-1","Contributions To VIU FDN - Externally Funded (NT)","Tax Value Matrix (27) - CC(F-Cat4)/Fund(F-VM)/WO(M)/Act(M)","IS","6801","GL","Active","Not in FRS","Not in YTD GL",null,null,null,null,6801,{"$f":"IFERROR(INDEX('Prod COA'!B:B,MATCH('CHART OF ACCOUNTS'!T870,'Prod COA'!E:E,0)),INDEX('Prod COA'!B:B,MATCH('CHART OF ACCOUNTS'!T870,'Prod COA'!A:A,0)))","v":{"$error":"#N/A"}}]
[2,"Statement of Operations","50","Expenses","680","Grants and Contributions","6805-1","Grants Distributed To External Agencies (NT)","Tax Value Matrix (27) - CC(F-Cat4)/Fund(F-VM)/WO(M)/Act(M)","IS","6805","GL","Active","Not in FRS","Not in YTD GL",null,null,null,null,6805,{"$f":"IFERROR(INDEX('Prod COA'!B:B,MATCH('CHART OF ACCOUNTS'!T871,'Prod COA'!E:E,0)),INDEX('Prod COA'!B:B,MATCH('CHART OF ACCOUNTS'!T871,'Prod COA'!A:A,0)))","v":{"$error":"#N/A"}}]
[2,"Statement of Operations","77","Capital additions - to be capitalized","770","Capital additions - to be capitalized","7700-2","Capital Purchases - Buildings (G)","Tax Value Matrix (27) - CC(F-Cat4)/Fund(F-VM)/WO(M)/Act(M)","IS","7700","GL","Active","Not in FRS","Not in YTD GL",null,null,null,null,7700,{"$f":"IFERROR(INDEX('Prod COA'!B:B,MATCH('CHART OF ACCOUNTS'!T872,'Prod COA'!E:E,0)),INDEX('Prod COA'!B:B,MATCH('CHART OF ACCOUNTS'!T872,'Prod COA'!A:A,0)))","v":{"$error":"#N/A"}}]
[2,"Statement of Operations","77","Capital additions - to be capitalized","770","Capital additions - to be capitalized","7700-3","Capital Purchases - Buildings (GP)","Tax Value Matrix (27) - CC(F-Cat4)/Fund(F-VM)/WO(M)/Act(M)","IS","7700","GL","Active","Not in FRS","Not in YTD GL",null,null,null,null,7700,{"$f":"IFERROR(INDEX('Prod COA'!B:B,MATCH('CHART OF ACCOUNTS'!T873,'Prod COA'!E:E,0)),INDEX('Prod COA'!B:B,MATCH('CHART OF ACCOUNTS'!T873,'Prod COA'!A:A,0)))","v":{"$error":"#N/A"}}]
[2,"Statement of Operations","77","Capital additions - to be capitalized","770","Capital additions - to be capitalized","7701-2","Capital Purchases - Building Retrofit (G)","Tax Value Matrix (27) - CC(F-Cat4)/Fund(F-VM)/WO(M)/Act(M)","IS","7701","GL","Active","Not in FRS","Not in YTD GL",null,null,null,null,7701,{"$f":"IFERROR(INDEX('Prod COA'!B:B,MATCH('CHART OF ACCOUNTS'!T874,'Prod COA'!E:E,0)),INDEX('Prod COA'!B:B,MATCH('CHART OF ACCOUNTS'!T874,'Prod COA'!A:A,0)))","v":{"$error":"#N/A"}}]
[2,"Statement of Operations","77","Capital additions - to be capitalized","770","Capital additions - to be capitalized","7701-3","Capital Purchases - Building Retrofit (GP)","Tax Value Matrix (27) - CC(F-Cat4)/Fund(F-VM)/WO(M)/Act(M)","IS","7701","GL","Active","Not in FRS","Not in YTD GL",null,null,null,null,7701,{"$f":"IFERROR(INDEX('Prod COA'!B:B,MATCH('CHART OF ACCOUNTS'!T875,'Prod COA'!E:E,0)),INDEX('Prod COA'!B:B,MATCH('CHART OF ACCOUNTS'!T875,'Prod COA'!A:A,0)))","v":{"$error":"#N/A"}}]
[2,"Statement of Operations","77","Capital additions - to be capitalized","770","Capital additions - to be capitalized","7702-3","Capital Purchases - Computer Equipment (GP)","Tax Value Matrix (27) - CC(F-Cat4)/Fund(F-VM)/WO(M)/Act(M)","IS","7702","GL","Active","Not in FRS","Not in YTD GL",null,null,null,null,7702,{"$f":"IFERROR(INDEX('Prod COA'!B:B,MATCH('CHART OF ACCOUNTS'!T876,'Prod COA'!E:E,0)),INDEX('Prod COA'!B:B,MATCH('CHART OF ACCOUNTS'!T876,'Prod COA'!A:A,0)))","v":{"$error":"#N/A"}}]
[2,"Statement of Operations","77","Capital additions - to be capitalized","770","Capital additions - to be capitalized","7703-2","Capital Purchases - Network and Server Equipment (G)","Tax Value Matrix (27) - CC(F-Cat4)/Fund(F-VM)/WO(M)/Act(M)","IS","7703","GL","Active","Not in FRS","Not in YTD GL",null,null,null,null,7703,{"$f":"IFERROR(INDEX('Prod COA'!B:B,MATCH('CHART OF ACCOUNTS'!T877,'Prod COA'!E:E,0)),INDEX('Prod COA'!B:B,MATCH('CHART OF ACCOUNTS'!T877,'Prod COA'!A:A,0)))","v":{"$error":"#N/A"}}]
[2,"Statement of Operations","77","Capital additions - to be capitalized","770","Capital additions - to be capitalized","7703-3","Capital Purchases - Network and Server Equipment (GP)","Tax Value Matrix (27) - CC(F-Cat4)/Fund(F-VM)/WO(M)/Act(M)","IS","7703","GL","Active","Not in FRS","Not in YTD GL",null,null,null,null,7703,{"$f":"IFERROR(INDEX('Prod COA'!B:B,MATCH('CHART OF ACCOUNTS'!T878,'Prod COA'!E:E,0)),INDEX('Prod COA'!B:B,MATCH('CHART OF ACCOUNTS'!T878,'Prod COA'!A:A,0)))","v":{"$error":"#N/A"}}]
[2,"Statement of Operations","77","Capital additions - to be capitalized","770","Capital additions - to be capitalized","7704-2","Capital Purchases - Computer Software (G)","Tax Value Matrix (27) - CC(F-Cat4)/Fund(F-VM)/WO(M)/Act(M)","IS","7704","GL","Active","Not in FRS","Not in YTD GL",null,null,null,null,7704,{"$f":"IFERROR(INDEX('Prod COA'!B:B,MATCH('CHART OF ACCOUNTS'!T879,'Prod COA'!E:E,0)),INDEX('Prod COA'!B:B,MATCH('CHART OF ACCOUNTS'!T879,'Prod COA'!A:A,0)))","v":{"$error":"#N/A"}}]
[2,"Statement of Operations","77","Capital additions - to be capitalized","770","Capital additions - to be capitalized","7704-3","Capital Purchases - Computer Software (GP)","Tax Value Matrix (27) - CC(F-Cat4)/Fund(F-VM)/WO(M)/Act(M)","IS","7704","GL","Active","Not in FRS","Not in YTD GL",null,null,null,null,7704,{"$f":"IFERROR(INDEX('Prod COA'!B:B,MATCH('CHART OF ACCOUNTS'!T880,'Prod COA'!E:E,0)),INDEX('Prod COA'!B:B,MATCH('CHART OF ACCOUNTS'!T880,'Prod COA'!A:A,0)))","v":{"$error":"#N/A"}}]
[2,"Statement of Operations","77","Capital additions - to be capitalized","770","Capital additions - to be capitalized","7705-2","Capital Purchases - Enterprise Systems (G)","Tax Value Matrix (27) - CC(F-Cat4)/Fund(F-VM)/WO(M)/Act(M)","IS","7705","GL","Active","Not in FRS","Not in YTD GL",null,null,null,null,7705,{"$f":"IFERROR(INDEX('Prod COA'!B:B,MATCH('CHART OF ACCOUNTS'!T881,'Prod COA'!E:E,0)),INDEX('Prod COA'!B:B,MATCH('CHART OF ACCOUNTS'!T881,'Prod COA'!A:A,0)))","v":{"$error":"#N/A"}}]
[2,"Statement of Operations","77","Capital additions - to be capitalized","770","Capital additions - to be capitalized","7705-3","Capital Purchases - Enterprise Systems (GP)","Tax Value Matrix (27) - CC(F-Cat4)/Fund(F-VM)/WO(M)/Act(M)","IS","7705","GL","Active","Not in FRS","Not in YTD GL",null,null,null,null,7705,{"$f":"IFERROR(INDEX('Prod COA'!B:B,MATCH('CHART OF ACCOUNTS'!T882,'Prod COA'!E:E,0)),INDEX('Prod COA'!B:B,MATCH('CHART OF ACCOUNTS'!T882,'Prod COA'!A:A,0)))","v":{"$error":"#N/A"}}]
[2,"Statement of Operations","77","Capital additions - to be capitalized","770","Capital additions - to be capitalized","7706-2","Capital Purchases - Furniture (G)","Tax Value Matrix (27) - CC(F-Cat4)/Fund(F-VM)/WO(M)/Act(M)","IS","7706","GL","Active","Not in FRS","Not in YTD GL",null,null,null,null,7706,{"$f":"IFERROR(INDEX('Prod COA'!B:B,MATCH('CHART OF ACCOUNTS'!T883,'Prod COA'!E:E,0)),INDEX('Prod COA'!B:B,MATCH('CHART OF ACCOUNTS'!T883,'Prod COA'!A:A,0)))","v":{"$error":"#N/A"}}]
[2,"Statement of Operations","77","Capital additions - to be capitalized","770","Capital additions - to be capitalized","7706-3","Capital Purchases - Furniture (GP)","Tax Value Matrix (27) - CC(F-Cat4)/Fund(F-VM)/WO(M)/Act(M)","IS","7706","GL","Active","Not in FRS","Not in YTD GL",null,null,null,null,7706,{"$f":"IFERROR(INDEX('Prod COA'!B:B,MATCH('CHART OF ACCOUNTS'!T884,'Prod COA'!E:E,0)),INDEX('Prod COA'!B:B,MATCH('CHART OF ACCOUNTS'!T884,'Prod COA'!A:A,0)))","v":{"$error":"#N/A"}}]
[2,"Statement of Operations","77","Capital additions - to be capitalized","770","Capital additions - to be capitalized","7707-3","Capital Purchases - Equipment (GP)","Tax Value Matrix (27) - CC(F-Cat4)/Fund(F-VM)/WO(M)/Act(M)","IS","7707","GL","Active","Not in FRS","Not in YTD GL",null,null,null,null,7707,{"$f":"IFERROR(INDEX('Prod COA'!B:B,MATCH('CHART OF ACCOUNTS'!T885,'Prod COA'!E:E,0)),INDEX('Prod COA'!B:B,MATCH('CHART OF ACCOUNTS'!T885,'Prod COA'!A:A,0)))","v":{"$error":"#N/A"}}]
[2,"Statement of Operations","77","Capital additions - to be capitalized","770","Capital additions - to be capitalized","7708-1","Capital Purchases - Leasehold Improvements (NT)","Tax Value Matrix (27) - CC(F-Cat4)/Fund(F-VM)/WO(M)/Act(M)","IS","7708","GL","Active","Not in FRS","Not in YTD GL",null,null,null,null,7708,{"$f":"IFERROR(INDEX('Prod COA'!B:B,MATCH('CHART OF ACCOUNTS'!T886,'Prod COA'!E:E,0)),INDEX('Prod COA'!B:B,MATCH('CHART OF ACCOUNTS'!T886,'Prod COA'!A:A,0)))","v":{"$error":"#N/A"}}]
[2,"Statement of Operations","77","Capital additions - to be capitalized","770","Capital additions - to be capitalized","7708-2","Capital Purchases - Leasehold Improvements (G)","Tax Value Matrix (27) - CC(F-Cat4)/Fund(F-VM)/WO(M)/Act(M)","IS","7708","GL","Active","Not in FRS","Not in YTD GL",null,null,null,null,7708,{"$f":"IFERROR(INDEX('Prod COA'!B:B,MATCH('CHART OF ACCOUNTS'!T887,'Prod COA'!E:E,0)),INDEX('Prod COA'!B:B,MATCH('CHART OF ACCOUNTS'!T887,'Prod COA'!A:A,0)))","v":{"$error":"#N/A"}}]
[2,"Statement of Operations","77","Capital additions - to be capitalized","770","Capital additions - to be capitalized","7708-3","Capital Purchases - Leasehold Improvements (GP)","Tax Value Matrix (27) - CC(F-Cat4)/Fund(F-VM)/WO(M)/Act(M)","IS","7708","GL","Active","Not in FRS","Not in YTD GL",null,null,null,null,7708,{"$f":"IFERROR(INDEX('Prod COA'!B:B,MATCH('CHART OF ACCOUNTS'!T888,'Prod COA'!E:E,0)),INDEX('Prod COA'!B:B,MATCH('CHART OF ACCOUNTS'!T888,'Prod COA'!A:A,0)))","v":{"$error":"#N/A"}}]
[2,"Statement of Operations","77","Capital additions - to be capitalized","770","Capital additions - to be capitalized","7710-2","Capital Purchases - Site Improvements (Land) (G)","Tax Value Matrix (27) - CC(F-Cat4)/Fund(F-VM)/WO(M)/Act(M)","IS","7710","GL","Active","Not in FRS","Not in YTD GL",null,null,null,null,7710,{"$f":"IFERROR(INDEX('Prod COA'!B:B,MATCH('CHART OF ACCOUNTS'!T889,'Prod COA'!E:E,0)),INDEX('Prod COA'!B:B,MATCH('CHART OF ACCOUNTS'!T889,'Prod COA'!A:A,0)))","v":{"$error":"#N/A"}}]
[2,"Statement of Operations","77","Capital additions - to be capitalized","770","Capital additions - to be capitalized","7710-3","Capital Purchases - Site Improvements (Land) (GP)","Tax Value Matrix (27) - CC(F-Cat4)/Fund(F-VM)/WO(M)/Act(M)","IS","7710","GL","Active","Not in FRS","Not in YTD GL",null,null,null,null,7710,{"$f":"IFERROR(INDEX('Prod COA'!B:B,MATCH('CHART OF ACCOUNTS'!T890,'Prod COA'!E:E,0)),INDEX('Prod COA'!B:B,MATCH('CHART OF ACCOUNTS'!T890,'Prod COA'!A:A,0)))","v":{"$error":"#N/A"}}]
[2,"Statement of Operations","77","Capital additions - to be capitalized","770","Capital additions - to be capitalized","7711-3","Capital Purchases - Vehicles (GP)","Tax Value Matrix (27) - CC(F-Cat4)/Fund(F-VM)/WO(M)/Act(M)","IS","7711","GL","Active","Not in FRS","Not in YTD GL",null,null,null,null,7711,{"$f":"IFERROR(INDEX('Prod COA'!B:B,MATCH('CHART OF ACCOUNTS'!T891,'Prod COA'!E:E,0)),INDEX('Prod COA'!B:B,MATCH('CHART OF ACCOUNTS'!T891,'Prod COA'!A:A,0)))","v":{"$error":"#N/A"}}]
[2,"Statement of Operations","78","Transfers to Capital Assets","780","Transfers to Capital Assets","7800-99","Capital Transfers - Buildings - Transfers","Assets (3) - CC(F-9150)/Fund(F-50)/WO(M)/ACT(M-Default 500)","IS","7800","GL","Active","Not in FRS","Not in YTD GL",null,null,null,null,7800,{"$f":"IFERROR(INDEX('Prod COA'!B:B,MATCH('CHART OF ACCOUNTS'!T892,'Prod COA'!E:E,0)),INDEX('Prod COA'!B:B,MATCH('CHART OF ACCOUNTS'!T892,'Prod COA'!A:A,0)))","v":{"$error":"#N/A"}}]
[2,"Statement of Operations","78","Transfers to Capital Assets","780","Transfers to Capital Assets","7801-99","Capital Transfers - Building Retrofit - Transfers","Assets (3) - CC(F-9150)/Fund(F-50)/WO(M)/ACT(M-Default 500)","IS","7800","GL","Active","Not in FRS","Not in YTD GL",null,null,null,null,7800,{"$f":"IFERROR(INDEX('Prod COA'!B:B,MATCH('CHART OF ACCOUNTS'!T893,'Prod COA'!E:E,0)),INDEX('Prod COA'!B:B,MATCH('CHART OF ACCOUNTS'!T893,'Prod COA'!A:A,0)))","v":{"$error":"#N/A"}}]
[2,"Statement of Operations","78","Transfers to Capital Assets","780","Transfers to Capital Assets","7802-99","Capital Transfers - Computer Equipment - Transfers","Assets (3) - CC(F-9150)/Fund(F-50)/WO(M)/ACT(M-Default 500)","IS","7800","GL","Active","Not in FRS","Not in YTD GL",null,null,null,null,7800,{"$f":"IFERROR(INDEX('Prod COA'!B:B,MATCH('CHART OF ACCOUNTS'!T894,'Prod COA'!E:E,0)),INDEX('Prod COA'!B:B,MATCH('CHART OF ACCOUNTS'!T894,'Prod COA'!A:A,0)))","v":{"$error":"#N/A"}}]
[2,"Statement of Operations","78","Transfers to Capital Assets","780","Transfers to Capital Assets","7803-99","Capital Transfers - Network and Server Equipment - Transfers","Assets (3) - CC(F-9150)/Fund(F-50)/WO(M)/ACT(M-Default 500)","IS","7800","GL","Active","Not in FRS","Not in YTD GL",null,null,null,null,7800,{"$f":"IFERROR(INDEX('Prod COA'!B:B,MATCH('CHART OF ACCOUNTS'!T895,'Prod COA'!E:E,0)),INDEX('Prod COA'!B:B,MATCH('CHART OF ACCOUNTS'!T895,'Prod COA'!A:A,0)))","v":{"$error":"#N/A"}}]
[2,"Statement of Operations","78","Transfers to Capital Assets","780","Transfers to Capital Assets","7804-99","Capital Transfers - Computer Software - Transfers","Assets (3) - CC(F-9150)/Fund(F-50)/WO(M)/ACT(M-Default 500)","IS","7800","GL","Active","Not in FRS","Not in YTD GL",null,null,null,null,7800,{"$f":"IFERROR(INDEX('Prod COA'!B:B,MATCH('CHART OF ACCOUNTS'!T896,'Prod COA'!E:E,0)),INDEX('Prod COA'!B:B,MATCH('CHART OF ACCOUNTS'!T896,'Prod COA'!A:A,0)))","v":{"$error":"#N/A"}}]
[2,"Statement of Operations","78","Transfers to Capital Assets","780","Transfers to Capital Assets","7805-99","Capital Transfers - Enterprise Systems - Transfers","Assets (3) - CC(F-9150)/Fund(F-50)/WO(M)/ACT(M-Default 500)","IS","7800","GL","Active","Not in FRS","Not in YTD GL",null,null,null,null,7800,{"$f":"IFERROR(INDEX('Prod COA'!B:B,MATCH('CHART OF ACCOUNTS'!T897,'Prod COA'!E:E,0)),INDEX('Prod COA'!B:B,MATCH('CHART OF ACCOUNTS'!T897,'Prod COA'!A:A,0)))","v":{"$error":"#N/A"}}]
[2,"Statement of Operations","78","Transfers to Capital Assets","780","Transfers to Capital Assets","7806-99","Capital Transfers - Furniture - Transfers","Assets (3) - CC(F-9150)/Fund(F-50)/WO(M)/ACT(M-Default 500)","IS","7800","GL","Active","Not in FRS","Not in YTD GL",null,null,null,null,7800,{"$f":"IFERROR(INDEX('Prod COA'!B:B,MATCH('CHART OF ACCOUNTS'!T898,'Prod COA'!E:E,0)),INDEX('Prod COA'!B:B,MATCH('CHART OF ACCOUNTS'!T898,'Prod COA'!A:A,0)))","v":{"$error":"#N/A"}}]
[2,"Statement of Operations","78","Transfers to Capital Assets","780","Transfers to Capital Assets","7807-99","Capital Transfers - Equipment - Transfers","Assets (3) - CC(F-9150)/Fund(F-50)/WO(M)/ACT(M-Default 500)","IS","7800","GL","Active","Not in FRS","Not in YTD GL",null,null,null,null,{"$f":"IF(LEN(G899)=4,G899,K899)*1","v":7800},{"$f":"IFERROR(INDEX('Prod COA'!B:B,MATCH('CHART OF ACCOUNTS'!T899,'Prod COA'!E:E,0)),INDEX('Prod COA'!B:B,MATCH('CHART OF ACCOUNTS'!T899,'Prod COA'!A:A,0)))","v":{"$error":"#N/A"}}]
[2,"Statement of Operations","78","Transfers to Capital Assets","780","Transfers to Capital Assets","7808-99","Capital Transfers - Leasehold Improvements - Transfers","Assets (3) - CC(F-9150)/Fund(F-50)/WO(M)/ACT(M-Default 500)","IS","7800","GL","Active","Not in FRS","Not in YTD GL",null,null,null,null,7800,{"$f":"IFERROR(INDEX('Prod COA'!B:B,MATCH('CHART OF ACCOUNTS'!T900,'Prod COA'!E:E,0)),INDEX('Prod COA'!B:B,MATCH('CHART OF ACCOUNTS'!T900,'Prod COA'!A:A,0)))","v":{"$error":"#N/A"}}]
[2,"Statement of Operations","78","Transfers to Capital Assets","780","Transfers to Capital Assets","7809-99","Capital Transfers - Library Books - Transfers","Assets (3) - CC(F-9150)/Fund(F-50)/WO(M)/ACT(M-Default 500)","IS","7800","GL","Active","Not in FRS","Not in YTD GL",null,null,null,null,7800,{"$f":"IFERROR(INDEX('Prod COA'!B:B,MATCH('CHART OF ACCOUNTS'!T901,'Prod COA'!E:E,0)),INDEX('Prod COA'!B:B,MATCH('CHART OF ACCOUNTS'!T901,'Prod COA'!A:A,0)))","v":{"$error":"#N/A"}}]
[2,"Statement of Operations","78","Transfers to Capital Assets","780","Transfers to Capital Assets","7810-99","Capital Transfers - Site Improvements (Land) - Transfers","Assets (3) - CC(F-9150)/Fund(F-50)/WO(M)/ACT(M-Default 500)","IS","7800","GL","Active","Not in FRS","Not in YTD GL",null,null,null,null,7800,{"$f":"IFERROR(INDEX('Prod COA'!B:B,MATCH('CHART OF ACCOUNTS'!T902,'Prod COA'!E:E,0)),INDEX('Prod COA'!B:B,MATCH('CHART OF ACCOUNTS'!T902,'Prod COA'!A:A,0)))","v":{"$error":"#N/A"}}]
[2,"Statement of Operations","78","Transfers to Capital Assets","780","Transfers to Capital Assets","7811-99","Capital Transfers - Vehicles - Transfers","Assets (3) - CC(F-9150)/Fund(F-50)/WO(M)/ACT(M-Default 500)","IS","7800","GL","Active","Not in FRS","Not in YTD GL",null,null,null,null,7800,{"$f":"IFERROR(INDEX('Prod COA'!B:B,MATCH('CHART OF ACCOUNTS'!T903,'Prod COA'!E:E,0)),INDEX('Prod COA'!B:B,MATCH('CHART OF ACCOUNTS'!T903,'Prod COA'!A:A,0)))","v":{"$error":"#N/A"}}]
[2,"Statement of Operations","78","Transfers to Capital Assets","780","Transfers to Capital Assets","7812-99","Capital Transfers - Land - Transfers","Assets (3) - CC(F-9150)/Fund(F-50)/WO(M)/ACT(M-Default 500)","IS","7800","GL","Active","Not in FRS","Not in YTD GL",null,null,null,null,7800,{"$f":"IFERROR(INDEX('Prod COA'!B:B,MATCH('CHART OF ACCOUNTS'!T904,'Prod COA'!E:E,0)),INDEX('Prod COA'!B:B,MATCH('CHART OF ACCOUNTS'!T904,'Prod COA'!A:A,0)))","v":{"$error":"#N/A"}}]
[1,"Statement of Financial Position","10","Financial assets","120","Accounts receivable",1200,"Accounts Receivable Control - BC Provincial Govt - Grants and Contracts","Balance Sheet (2) - General CC(F-9000)/Fund(F-10)","BS","1200","AR","Active",839,"FEES RECEIVABLE",null,null,null,null,1200,{"$f":"IFERROR(INDEX('Prod COA'!B:B,MATCH('CHART OF ACCOUNTS'!T905,'Prod COA'!E:E,0)),INDEX('Prod COA'!B:B,MATCH('CHART OF ACCOUNTS'!T905,'Prod COA'!A:A,0)))","v":{"$error":"#N/A"}}]
[1,"Statement of Financial Position","10","Financial assets","120","Accounts receivable",1210,"Accounts Receivable Control -  Federal Govt- Grants and Contracts","Balance Sheet (2) - General CC(F-9000)/Fund(F-10)","BS","1210","AR","Active",839,"FEES RECEIVABLE",null,null,null,null,1210,{"$f":"IFERROR(INDEX('Prod COA'!B:B,MATCH('CHART OF ACCOUNTS'!T906,'Prod COA'!E:E,0)),INDEX('Prod COA'!B:B,MATCH('CHART OF ACCOUNTS'!T906,'Prod COA'!A:A,0)))","v":{"$error":"#N/A"}}]
[1,"Statement of Financial Position","10","Financial assets","120","Accounts receivable",1220,"Accounts Receivable  Control - Other Govt - Grants and Contracts","Balance Sheet (2) - General CC(F-9000)/Fund(F-10)","BS","1220","AR","Active",839,"FEES RECEIVABLE",null,null,null,null,1220,{"$f":"IFERROR(INDEX('Prod COA'!B:B,MATCH('CHART OF ACCOUNTS'!T907,'Prod COA'!E:E,0)),INDEX('Prod COA'!B:B,MATCH('CHART OF ACCOUNTS'!T907,'Prod COA'!A:A,0)))","v":{"$error":"#N/A"}}]
[1,"Statement of Financial Position","10","Financial assets","120","Accounts receivable",1230,"Accounts Receivable Control - Trade General","Balance Sheet (2) - General CC(F-9000)/Fund(F-10)","BS","1230","AR","Active",839,"FEES RECEIVABLE",null,null,null,null,1230,{"$f":"IFERROR(INDEX('Prod COA'!B:B,MATCH('CHART OF ACCOUNTS'!T908,'Prod COA'!E:E,0)),INDEX('Prod COA'!B:B,MATCH('CHART OF ACCOUNTS'!T908,'Prod COA'!A:A,0)))","v":{"$error":"#N/A"}}]
[1,"Statement of Financial Position","10","Financial assets","120","Accounts receivable",1237,"Accounts Receivable - SLED Reclass Contra Account","Balance Sheet (2) - General CC(F-9000)/Fund(F-10)","BS","1237","GL","Active","Not in FRS","Not in FRS",null,null,null,null,1237,{"$f":"IFERROR(INDEX('Prod COA'!B:B,MATCH('CHART OF ACCOUNTS'!T909,'Prod COA'!E:E,0)),INDEX('Prod COA'!B:B,MATCH('CHART OF ACCOUNTS'!T909,'Prod COA'!A:A,0)))","v":{"$error":"#N/A"}}]
["1","Statement of Financial Position","20","Liabilities","230","Deferred revenue","2370","Deferred Revenue - Tourism Chair","Balance Sheet (2) - General CC(F-9000)/Fund(F-10)","BS",null,"GL","Active","Not in FRS","Not in FRS",null,null,null,null,2370,{"$f":"IFERROR(INDEX('Prod COA'!B:B,MATCH('CHART OF ACCOUNTS'!T910,'Prod COA'!E:E,0)),INDEX('Prod COA'!B:B,MATCH('CHART OF ACCOUNTS'!T910,'Prod COA'!A:A,0)))","v":{"$error":"#N/A"}}]
["1","Statement of Financial Position","20","Liabilities","230","Deferred revenue","2371","Deferred Revenue - Aboriginal Early Childhood Development Chair","Balance Sheet (2) - General CC(F-9000)/Fund(F-10)","BS",null,"GL","Active","Not in FRS","Not in FRS",null,null,null,null,2371,{"$f":"IFERROR(INDEX('Prod COA'!B:B,MATCH('CHART OF ACCOUNTS'!T911,'Prod COA'!E:E,0)),INDEX('Prod COA'!B:B,MATCH('CHART OF ACCOUNTS'!T911,'Prod COA'!A:A,0)))","v":{"$error":"#N/A"}}]
["1","Statement of Financial Position","30","Accumulated surplus","300","Equity/Accumulated surplus","3071","Unrestricted Statement of Remeasurement - Chairs","Balance Sheet (2) - General CC(F-9000)/Fund(F-10)","BS",null,"GL","Active","Not in FRS","Not in FRS",null,null,null,null,3071,{"$f":"IFERROR(INDEX('Prod COA'!B:B,MATCH('CHART OF ACCOUNTS'!T912,'Prod COA'!E:E,0)),INDEX('Prod COA'!B:B,MATCH('CHART OF ACCOUNTS'!T912,'Prod COA'!A:A,0)))","v":{"$error":"#N/A"}}]
["2","Statement of Operations","50","Expenses","600","Fees and purchased services","6020-3","Fees and Memberships - Institutional (GP)","Tax Value Matrix (27) - CC(F-Cat4)/Fund(F-VM)/WO(M)/Act(M)","IS",{"$f":"LEFT(G913,4)","v":"6020"},"GL","Active","Not in FRS","Not in FRS",null,null,null,null,6020,{"$f":"IFERROR(INDEX('Prod COA'!B:B,MATCH('CHART OF ACCOUNTS'!T913,'Prod COA'!E:E,0)),INDEX('Prod COA'!B:B,MATCH('CHART OF ACCOUNTS'!T913,'Prod COA'!A:A,0)))","v":{"$error":"#N/A"}}]
["2","Statement of Operations","50","Expenses","600","Fees and purchased services","6025-3","Fees and Memberships - Employee (GP)","Tax Value Matrix (Resno) (28) - CC(F-Cat4)/Fund(F-VM)/ResNo(M)/WO(M)/Act(M)","IS",{"$f":"LEFT(G914,4)","v":"6025"},"GL","Active","Not in FRS","Not in FRS",null,null,null,null,6025,{"$f":"IFERROR(INDEX('Prod COA'!B:B,MATCH('CHART OF ACCOUNTS'!T914,'Prod COA'!E:E,0)),INDEX('Prod COA'!B:B,MATCH('CHART OF ACCOUNTS'!T914,'Prod COA'!A:A,0)))","v":{"$error":"#N/A"}}]
["2","Statement of Operations","77","Capital additions - to be capitalized","770","Capital additions - to be capitalized","7707-1","Capital Purchases - Equipment (NT)","Tax Value Matrix (27) - CC(F-Cat4)/Fund(F-VM)/WO(M)/Act(M)","IS","7707","GL","Active","Not in FRS","Not in FRS",null,null,null,null,7707,{"$f":"IFERROR(INDEX('Prod COA'!B:B,MATCH('CHART OF ACCOUNTS'!T915,'Prod COA'!E:E,0)),INDEX('Prod COA'!B:B,MATCH('CHART OF ACCOUNTS'!T915,'Prod COA'!A:A,0)))","v":{"$error":"#N/A"}}]
["2","Statement of Operations","82","Internal Expenses","820","Internal ordering - expenditures","8297","Internal Consumption - Budget Transfers","General Rev and Exp (7) - CC(F-Cat4)/Fund(F-VM)/WO(M)/ACT(M)","IS",null,"GL","Active","Not in FRS","Not in FRS",null,null,null,null,8297,{"$f":"IFERROR(INDEX('Prod COA'!B:B,MATCH('CHART OF ACCOUNTS'!T916,'Prod COA'!E:E,0)),INDEX('Prod COA'!B:B,MATCH('CHART OF ACCOUNTS'!T916,'Prod COA'!A:A,0)))","v":{"$error":"#N/A"}}]

{"sheet":"Prod COA","index":8,"n_rows":779,"n_cols":7,"rows_kept":779,"cut":false,"hidden":true,"merged":[]}
["Account","Description","Acct rule","Acct grp","Head account","Acct type","Status"]
["1000","Bank - General","Balance Sheet (2) - General CC(F-9000)/Fund(F-10)","BS","1000","GL","Active"]
["1010","Bank - U.S.","Balance Sheet (2) - General CC(F-9000)/Fund(F-10)","BS","1010","GL","Active"]
["1020","Bank - External Access","Balance Sheet (2) - General CC(F-9000)/Fund(F-10)","BS","1020","GL","Active"]
["1030","Petty Cash & Cash Floats","Balance Sheet (2) - General CC(F-9000)/Fund(F-10)","BS","1030","GL","Active"]
["1200","Accounts Receivable Control - BC Provincial Govt - Grants and Contracts","Balance Sheet (2) - General CC(F-9000)/Fund(F-10)","BS","1200","AR","Active"]
["1201","Accounts Receivable - PST Adjustments","Balance Sheet (2) - General CC(F-9000)/Fund(F-10)","BS","","GL","Closed"]
["1210","Accounts Receivable Control -  Federal Govt- Grants and Contracts","Balance Sheet (2) - General CC(F-9000)/Fund(F-10)","BS","1210","AR","Active"]
["1211","Accounts Receivable - GST Rebates Receivable","Balance Sheet (2) - General CC(F-9000)/Fund(F-10)","BS","","GL","Closed"]
["1212","Accounts Receivable - GST ITCs and Rebates","Balance Sheet (2) - General CC(F-9000)/Fund(F-10)","BS","1212","GL","Active"]
["1220","Accounts Receivable  Control - Other Govt - Grants and Contracts","Balance Sheet (2) - General CC(F-9000)/Fund(F-10)","BS","1220","AR","Active"]
["1230","Accounts Receivable Control - Trade General","Balance Sheet (2) - General CC(F-9000)/Fund(F-10)","BS","1230","AR","Active"]
["1231","Accounts Receivable Control - Student Tuition (Domestic and International)","Balance Sheet (2) - General CC(F-9000)/Fund(F-10)","BS","","AR","Closed"]
["1232","Accounts Receivable Control - Student Tuition (International - Pending U4SM))","Balance Sheet (2) - General CC(F-9000)/Fund(F-10)","BS","","AR","Closed"]
["1233","Accounts Receivable Control - Employee Receivables","Balance Sheet (2) - General CC(F-9000)/Fund(F-10)","BS","1233","GL","Active"]
["1234","Accounts Receivable - Employee Receivables (Computer and Relocation Loans)","Balance Sheet (2) - General CC(F-9000)/Fund(F-10)","BS","1234","GL","Active"]
["1235","Accounts Receivable - Student Ledger AR (SLED)","SLED Transactions (24) - CC(F-9000)/Fund(F-10)/SL (M)/SCP (M)","BS","1235","AR","Active"]
["1236","Accounts Receivable - Employee Receivables (Pay Advance)","Balance Sheet (2) - General CC(F-9000)/Fund(F-10)","BS","1236","GL","Active"]
["1237","Accounts Receivable - SLED Reclass Contra Account","Balance Sheet (2) - General CC(F-9000)/Fund(F-10)","BS","1237","GL","Active"]
["1240","Accounts Receivable - Allowance for Doubtful Accounts","Balance Sheet (2) - General CC(F-9000)/Fund(F-10)","BS","1240","GL","Active"]
["1250","Accounts Receivable - Deposits Paid","Balance Sheet (2) - General CC(F-9000)/Fund(F-10)","BS","1250","GL","Active"]
["1251","Accounts Receivable - Residence","Balance Sheet (2) - General CC(F-9000)/Fund(F-10)","BS","1251","GL","Active"]
["1252","Accounts Receivable - Campus Store","Balance Sheet (2) - General CC(F-9000)/Fund(F-10)","BS","1252","GL","Active"]
["1260","AR Clearing - Student Emergency Loans (Advances)","Balance Sheet (2) - General CC(F-9000)/Fund(F-10)","BS","1260","GL","Active"]
["1261","AR Clearing - CBV Collections Clearing","Balance Sheet (2) - General CC(F-9000)/Fund(F-10)","BS","1261","GL","Active"]
["1262","AR Clearing - Accounts Receivable","Balance Sheet (2) - General CC(F-9000)/Fund(F-10)","BS","1262","GL","Active"]
["1263","AR Clearing - Passport / Youth Works","Balance Sheet (2) - General CC(F-9000)/Fund(F-10)","BS","1263","GL","Active"]
["1264","AR Clearing - Domestic Sponsor Billing From SLED","Balance Sheet (2) - General CC(F-9000)/Fund(F-10)","BS","1264","GL","Active"]
["1265","AR Clearing - Domestic Contract Billing From SLED","Balance Sheet (2) - General CC(F-9000)/Fund(F-10)","BS","1265","GL","Active"]
["1266","AR Clearing - International Sponsor Billing From SLED","Balance Sheet (2) - General CC(F-9000)/Fund(F-10)","BS","1266","GL","Active"]
["1267","AR Clearing - International Contract Billing From SLED","Balance Sheet (2) - General CC(F-9000)/Fund(F-10)","BS","1267","GL","Active"]
["1268","AR Clearing - Homestay SLED clearing","Balance Sheet (2) - General CC(F-9000)/Fund(F-10)","BS","1268","GL","Active"]
["1269","AR Clearing - S&B Cash Equivalent Disbursement","Balance Sheet (2) - General CC(F-9000)/Fund(F-10)","BS","1269","GL","Active"]
["1270","AR Clearing - IE Application Fees (AIE)","Balance Sheet (2) - General CC(F-9000)/Fund(F-10)","BS","1270","GL","Active"]
["1271","AR Clearing - Residence Cash Receipts","Balance Sheet (2) - General CC(F-9000)/Fund(F-10)","BS","1271","GL","Active"]
["1272","AR Clearing - Residence Sponsorships","Balance Sheet (2) - General CC(F-9000)/Fund(F-10)","BS","1272","GL","Active"]
["1273","AR Clearing - Campus Store Sponsorships","Balance Sheet (2) - General CC(F-9000)/Fund(F-10)","BS","1273","GL","Active"]
["1275","AR Clearing - Campus Store eleV","Balance Sheet (2) - General CC(F-9000)/Fund(F-10)","BS","1275","GL","Active"]
["1290","AR Clearing - Due from VIU Foundation","Balance Sheet (2) - General CC(F-9000)/Fund(F-10)","BS","1290","GL","Active"]
["1291","Accounts Receivable - Due from THS at VIU (Intercompany)","Balance Sheet (2) - General CC(F-9000)/Fund(F-10)","BS","1291","GL","Active"]
["1300","Inventory - Campus Store","Balance Sheet (2) - General CC(F-9000)/Fund(F-10)","BS","1300","GL","Active"]
["1310","Inventory - Food Services","Balance Sheet (2) - General CC(F-9000)/Fund(F-10)","BS","1310","GL","Active"]
["1320","Inventory - Milner Gardens","Balance Sheet (2) - General CC(F-9000)/Fund(F-10)","BS","1320","GL","Active"]
["1330","Inventory Clearing - Campus Store Inventory","Balance Sheet (2) - General CC(F-9000)/Fund(F-10)","BS","","GL","Closed"]
["1400","Investment - General - Cumulative Unrealized Gains/Losses","Balance Sheet (2) - General CC(F-9000)/Fund(F-10)","BS","1400","GL","Active"]
["1410","Investment - General","Balance Sheet (2) - General CC(F-9000)/Fund(F-10)","BS","1410","GL","Active"]
["1420","Investment - Tourism Chair","Balance Sheet (2) - General CC(F-9000)/Fund(F-10)","BS","1420","GL","Active"]
["1430","Investment - Tourism Chair - Cumulative Unrealized Gains/Losses","Balance Sheet (2) - General CC(F-9000)/Fund(F-10)","BS","1430","GL","Active"]
["1440","Investment - Aboriginal Early Childhood Development Chair","Balance Sheet (2) - General CC(F-9000)/Fund(F-10)","BS","1440","GL","Active"]
["1450","Investment - Aboriginal Early Childhood Development Chair - Cumulative Unrealized Gains/Losses","Balance Sheet (2) - General CC(F-9000)/Fund(F-10)","BS","1450","GL","Active"]
["1455","Investment - VIU Initiatives Corp","Balance Sheet (2) - General CC(F-9000)/Fund(F-10)","BS","1455","GL","Active"]
["1460","Loan Receivable - VIU Initiatives Trust","Balance Sheet (2) - General CC(F-9000)/Fund(F-10)","BS","1460","GL","Active"]
["1470","CLOSED - Never Used - Available For Future Use","Balance Sheet (2) - General CC(F-9000)/Fund(F-10)","BS","1470","GL","Closed"]
["1500","Capital Assets - Buildings - New Construction","Assets (3) - CC(F-9150)/Fund(F-50)/WO(M)/ACT(M-Default 500)","BS","1500","GL","Active"]
["1501","Capital Assets - Buildings - Building Retrofit","Assets (3) - CC(F-9150)/Fund(F-50)/WO(M)/ACT(M-Default 500)","BS","1501","GL","Active"]
["1502","Capital Assets - Computer Equipment","Assets (3) - CC(F-9150)/Fund(F-50)/WO(M)/ACT(M-Default 500)","BS","1502","GL","Active"]
["1503","Capital Assets - Computer Software","Assets (3) - CC(F-9150)/Fund(F-50)/WO(M)/ACT(M-Default 500)","BS","1503","GL","Active"]
["1504","Capital Assets - Furniture","Assets (3) - CC(F-9150)/Fund(F-50)/WO(M)/ACT(M-Default 500)","BS","1504","GL","Active"]
["1505","Capital Assets - Equipment","Assets (3) - CC(F-9150)/Fund(F-50)/WO(M)/ACT(M-Default 500)","BS","1505","GL","Active"]
["1506","Capital Assets - Leasehold Improvements","Assets (3) - CC(F-9150)/Fund(F-50)/WO(M)/ACT(M-Default 500)","BS","1506","GL","Active"]
["1507","Capital Assets - Library Books","Assets (3) - CC(F-9150)/Fund(F-50)/WO(M)/ACT(M-Default 500)","BS","1507","GL","Active"]
["1508","Capital Assets - Site Improvements (Land)","Assets (3) - CC(F-9150)/Fund(F-50)/WO(M)/ACT(M-Default 500)","BS","1508","GL","Active"]
["1509","Capital Assets - Vehicles","Assets (3) - CC(F-9150)/Fund(F-50)/WO(M)/ACT(M-Default 500)","BS","1509","GL","Active"]
["1510","Capital Assets - Land","Assets (3) - CC(F-9150)/Fund(F-50)/WO(M)/ACT(M-Default 500)","BS","1510","GL","Active"]
["1511","Capital Assets - Work In Progress","Assets (3) - CC(F-9150)/Fund(F-50)/WO(M)/ACT(M-Default 500)","BS","1511","GL","Active"]
["1512","FA Accum.Amort - Furniture & Equipment","Assets (3) - CC(F-9150)/Fund(F-50)/WO(M)/ACT(M-Default 500)","BS","","GL","Closed"]
["1513","FA Accum.Amort - Leasehold Improvements","Assets (3) - CC(F-9150)/Fund(F-50)/WO(M)/ACT(M-Default 500)","BS","","GL","Closed"]
["1514","FA Accum.Amort - Library Books","Assets (3) - CC(F-9150)/Fund(F-50)/WO(M)/ACT(M-Default 500)","BS","","GL","Closed"]
["1515","FA Accum.Amort - Site improvements","Assets (3) - CC(F-9150)/Fund(F-50)/WO(M)/ACT(M-Default 500)","BS","","GL","Closed"]
["1516","FA Accum.Amort - Vehicles","Assets (3) - CC(F-9150)/Fund(F-50)/WO(M)/ACT(M-Default 500)","BS","","GL","Closed"]
["1517","FA Accum.Amort - TBD","Assets (3) - CC(F-9150)/Fund(F-50)/WO(M)/ACT(M-Default 500)","BS","","GL","Closed"]
["1550","Accumulated Amortization - New Building Construction","Assets (3) - CC(F-9150)/Fund(F-50)/WO(M)/ACT(M-Default 500)","BS","1550","GL","Active"]
["1551","Accumulated Amortization - Building Retrofit","Assets (3) - CC(F-9150)/Fund(F-50)/WO(M)/ACT(M-Default 500)","BS","1551","GL","Active"]
["1552","Accumulated Amortization - Computer Equipment","Assets (3) - CC(F-9150)/Fund(F-50)/WO(M)/ACT(M-Default 500)","BS","1552","GL","Active"]
["1553","Accumulated Amortization - Computer Software","Assets (3) - CC(F-9150)/Fund(F-50)/WO(M)/ACT(M-Default 500)","BS","1553","GL","Active"]
["1554","Accumulated Amortization - Furniture","Assets (3) - CC(F-9150)/Fund(F-50)/WO(M)/ACT(M-Default 500)","BS","1554","GL","Active"]
["1555","Accumulated Amortization - Equipment","Assets (3) - CC(F-9150)/Fund(F-50)/WO(M)/ACT(M-Default 500)","BS","1555","GL","Active"]
["1556","Accumulated Amortization - Leasehold Improvements","Assets (3) - CC(F-9150)/Fund(F-50)/WO(M)/ACT(M-Default 500)","BS","1556","GL","Active"]
["1557","Accumulated Amortization - Library Books","Assets (3) - CC(F-9150)/Fund(F-50)/WO(M)/ACT(M-Default 500)","BS","1557","GL","Active"]
["1558","Accumulated Amortization - Site Improvements (Land)","Assets (3) - CC(F-9150)/Fund(F-50)/WO(M)/ACT(M-Default 500)","BS","1558","GL","Active"]
["1559","Accumulated Amortization - Vehicles","Assets (3) - CC(F-9150)/Fund(F-50)/WO(M)/ACT(M-Default 500)","BS","1559","GL","Active"]
["1575","Capital Asset Suspense - New Building Construction","Assets (3) - CC(F-9150)/Fund(F-50)/WO(M)/ACT(M-Default 500)","BS","1575","GL","Active"]
["1576","Capital Asset Suspense - Building Retrofit","Assets (3) - CC(F-9150)/Fund(F-50)/WO(M)/ACT(M-Default 500)","BS","1576","GL","Active"]
["1577","Capital Asset Suspense - Computer Equipment","Assets (3) - CC(F-9150)/Fund(F-50)/WO(M)/ACT(M-Default 500)","BS","1577","GL","Active"]
["1578","Capital Asset Suspense - Computer Software","Assets (3) - CC(F-9150)/Fund(F-50)/WO(M)/ACT(M-Default 500)","BS","1578","GL","Active"]
["1579","Capital Asset Suspense - Furniture","Assets (3) - CC(F-9150)/Fund(F-50)/WO(M)/ACT(M-Default 500)","BS","1579","GL","Active"]
["1580","Capital Asset Suspense - Equipment","Assets (3) - CC(F-9150)/Fund(F-50)/WO(M)/ACT(M-Default 500)","BS","1580","GL","Active"]
["1581","Capital Asset Suspense - Leasehold Improvements","Assets (3) - CC(F-9150)/Fund(F-50)/WO(M)/ACT(M-Default 500)","BS","1581","GL","Active"]
["1582","Capital Asset Suspense - Library Books","Assets (3) - CC(F-9150)/Fund(F-50)/WO(M)/ACT(M-Default 500)","BS","1582","GL","Active"]
["1583","Capital Asset Suspense - Site Improvements (Land)","Assets (3) - CC(F-9150)/Fund(F-50)/WO(M)/ACT(M-Default 500)","BS","1583","GL","Active"]
["1584","Capital Assets Suspense - Vehicles","Assets (3) - CC(F-9150)/Fund(F-50)/WO(M)/ACT(M-Default 500)","BS","1584","GL","Active"]
["1585","Capital Asset Suspense - Land","Assets (3) - CC(F-9150)/Fund(F-50)/WO(M)/ACT(M-Default 500)","BS","1585","GL","Active"]
["1599","Capital Assets - Suspense Account (Fixed Asset Management)","Assets (3) - CC(F-9150)/Fund(F-50)/WO(M)/ACT(M-Default 500)","BS","","GL","Closed"]
["1600","Restricted Endowment Investments - Tourism Chair","Balance Sheet (2) - General CC(F-9000)/Fund(F-10)","BS","1600","GL","Active"]
["1610","Restricted Endowment Investments - Tourism Chair - Cumulative Unrealized Gains/Losses","Balance Sheet (2) - General CC(F-9000)/Fund(F-10)","BS","1610","GL","Closed"]
["1620","Restricted Endowment Investments - Aboriginal Early Childhood Development","Balance Sheet (2) - General CC(F-9000)/Fund(F-10)","BS","1620","GL","Active"]
["1630","Restricted Endowment Investments - Aboriginal Early Childhood Development Chair - Cumulative Unrealized Gains/Losses","Balance Sheet (2) - General CC(F-9000)/Fund(F-10)","BS","1630","GL","Closed"]
["1700","Prepaid Expenses - Supplier Invoices","Prepaid Expenses (29) - CC(F-9000)/Fund(F-10)/WO(M)/ACT(M)","BS","1700","GL","Active"]
["1705","Prepaid Expenses - Employee Expenses","Prepaid Expenses (29) - CC(F-9000)/Fund(F-10)/WO(M)/ACT(M)","BS","1705","GL","Active"]
["1800","Deposits - Supplier","Balance Sheet (2) - General CC(F-9000)/Fund(F-10)","BS","1800","GL","Active"]
["1805","Deposits - Employee Advances","Balance Sheet (2) - General CC(F-9000)/Fund(F-10)","BS","1805","GL","Active"]
["2000","Accounts Payable - Control - Provincial","Balance Sheet (2) - General CC(F-9000)/Fund(F-10)","BS","2000","AP","Active"]
["2001","PST Payable","Balance Sheet (2) - General CC(F-9000)/Fund(F-10)","BS","2001","GL","Active"]
["2002","Municipal and Regional District Tax (MRDT) Payable","Balance Sheet (2) - General CC(F-9000)/Fund(F-10)","BS","2002","GL","Active"]
["2003","PST Self Assessed","Balance Sheet (2) - General CC(F-9000)/Fund(F-10)","BS","2003","GL","Closed"]
["2010","Accounts Payable - Control - Federal","Balance Sheet (2) - General CC(F-9000)/Fund(F-10)","BS","2010","AP","Active"]
["2011","GST Collected on Sales","Balance Sheet (2) - General CC(F-9000)/Fund(F-10)","BS","2011","GL","Active"]
["2012","GST Self Assessed","Balance Sheet (2) - General CC(F-9000)/Fund(F-10)","BS","2012","GL","Active"]
["2020","Accounts Payable - Control - Other Government","Balance Sheet (2) - General CC(F-9000)/Fund(F-10)","BS","2020","AP","Active"]
["2030","Accounts Payable - Control - Trade","Balance Sheet (2) - General CC(F-9000)/Fund(F-10)","BS","2030","AP","Active"]
["2031","Accounts Payable - Holdbacks","Balance Sheet (2) - General CC(F-9000)/Fund(F-10)","BS","2031","GL","Active"]
["2032","Accounts Payable - Control - Union","Balance Sheet (2) - General CC(F-9000)/Fund(F-10)","BS","2032","AP","Active"]
["2033","Accounts Payable - Control - Employees","Balance Sheet (2) - General CC(F-9000)/Fund(F-10)","BS","2033","AP","Active"]
["2034","Accounts Payable - Control - Employee Advances","Balance Sheet (2) - General CC(F-9000)/Fund(F-10)","BS","2034","AP","Closed"]
["2035","Accounts Payable - VIUFA PD Bank","Balance Sheet (2) - General CC(F-9000)/Fund(F-10)","BS","2035","GL","Closed"]
["2060","Accounts Payable - VIUSU Payable - Student Society Fees","Balance Sheet (2) - General CC(F-9000)/Fund(F-10)","BS","2060","GL","Active"]
["2061","Accounts Payable - PCard - Payments made by PCard","Balance Sheet (2) - General CC(F-9000)/Fund(F-10)","BS","2061","GL","Active"]
["2062","CLEARING - TELUS LONG DISTANCE","Balance Sheet (2) - General CC(F-9000)/Fund(F-10)","BS","","GL","Closed"]
["2063","Accounts Payable - Food Services - Meal Plans","Balance Sheet (2) - General CC(F-9000)/Fund(F-10)","BS","","GL","Closed"]
["2064","CLEARING - PARKING CHARGES/SLED","Balance Sheet (2) - General CC(F-9000)/Fund(F-10)","BS","","GL","Closed"]
["2065","Accounts Payable - Print Cards","Balance Sheet (2) - General CC(F-9000)/Fund(F-10)","BS","","GL","Closed"]
["2066","Accounts Payable - VIU Foundation - Employee McLotto","Balance Sheet (2) - General CC(F-9000)/Fund(F-10)","BS","2066","GL","Active"]
["2067","Accounts Payable - General Clearing","Balance Sheet (2) - General CC(F-9000)/Fund(F-10)","BS","2067","GL","Active"]
["2068","CLEARING - CBV (COLLECTIONS)","Balance Sheet (2) - General CC(F-9000)/Fund(F-10)","BS","","GL","Closed"]
["2069","Accounts Payable  - Food Services - Dinning Dollars","Balance Sheet (2) - General CC(F-9000)/Fund(F-10)","BS","","GL","Closed"]
["2070","Accounts Payable -Bookstore Student Credits","Balance Sheet (2) - General CC(F-9000)/Fund(F-10)","BS","2070","GL","Active"]
["2071","Accounts Payable - Manulife Claims","Balance Sheet (2) - General CC(F-9000)/Fund(F-10)","BS","2071","GL","Active"]
["2072","CLEARING - STUDENT WIRES","Balance Sheet (2) - General CC(F-9000)/Fund(F-10)","BS","","GL","Closed"]
["2073","CLEARING - STUDENT CHEQUES & EFTS","Balance Sheet (2) - General CC(F-9000)/Fund(F-10)","BS","","GL","Closed"]
["2074","CLEARING - TUITION FEES CLEARING","Balance Sheet (2) - General CC(F-9000)/Fund(F-10)","BS","","GL","Closed"]
["2075","CLEARING - TUITION DISTRIBUTION","Balance Sheet (2) - General CC(F-9000)/Fund(F-10)","BS","","GL","Closed"]
["2076","Accounts Payable - International Medical Fees","Balance Sheet (2) - General CC(F-9000)/Fund(F-10)","BS","2076","GL","Active"]
["2077","Accounts Payable - Parking - Employee Payments","Balance Sheet (2) - General CC(F-9000)/Fund(F-10)","BS","","GL","Closed"]
["2078","Accounts Payable - Athletics Activenet Refunds","Balance Sheet (2) - General CC(F-9000)/Fund(F-10)","BS","2078","GL","Closed"]
["2079","Accounts Payable - Supplier Credits Outstanding","Balance Sheet (2) - General CC(F-9000)/Fund(F-10)","BS","2079","GL","Active"]
["2090","Accounts Payable - VIU Foundation - Employee Donations","Balance Sheet (2) - General CC(F-9000)/Fund(F-10)","BS","2090","GL","Active"]
["2091","Accounts Payable - Due to THS at VIU (Intercompany)","Balance Sheet (2) - General CC(F-9000)/Fund(F-10)","BS","2091","GL","Active"]
["2100","Wages Payable","Balance Sheet (2) - General CC(F-9000)/Fund(F-10)","BS","2100","GL","Active"]
["2101","RRSP Payable","Balance Sheet (2) - General CC(F-9000)/Fund(F-10)","BS","2101","GL","Active"]
["2110","Receiver General Payroll Payable","Balance Sheet (2) - General CC(F-9000)/Fund(F-10)","BS","2110","GL","Active"]
["2111","College Pension Payable","Balance Sheet (2) - General CC(F-9000)/Fund(F-10)","BS","2111","GL","Active"]
["2112","Municipal Pension Payable","Balance Sheet (2) - General CC(F-9000)/Fund(F-10)","BS","2112","GL","Active"]
["2113","Employer Health Tax Payable (MSP)","Balance Sheet (2) - General CC(F-9000)/Fund(F-10)","BS","2113","GL","Active"]
["2114","WorkSafeBC Payable","Balance Sheet (2) - General CC(F-9000)/Fund(F-10)","BS","2114","GL","Active"]
["2120","Benefits - Extended Health Payable","Balance Sheet (2) - General CC(F-9000)/Fund(F-10)","BS","2120","GL","Active"]
["2121","Benefits - Dental benefit Payable","Balance Sheet (2) - General CC(F-9000)/Fund(F-10)","BS","2121","GL","Active"]
["2122","Benefits - Accidental death and dismemberment Payable","Balance Sheet (2) - General CC(F-9000)/Fund(F-10)","BS","2122","GL","Active"]
["2123","Benefits - Group Life Payable","Balance Sheet (2) - General CC(F-9000)/Fund(F-10)","BS","2123","GL","Active"]
["2124","Benefits - Short Term Disability Payable","Balance Sheet (2) - General CC(F-9000)/Fund(F-10)","BS","2124","GL","Active"]
["2125","Benefits - Long Term Disability Payable","Balance Sheet (2) - General CC(F-9000)/Fund(F-10)","BS","2125","GL","Active"]
["2126","EI Rebate Benefit - Payable","Balance Sheet (18) - EMP_GRP CLEARING","BS","2126","GL","Active"]
["2130","Union Dues Payable","Balance Sheet (2) - General CC(F-9000)/Fund(F-10)","BS","2130","GL","Active"]
["2131","United Way Payable","Balance Sheet (2) - General CC(F-9000)/Fund(F-10)","BS","2131","GL","Active"]
["2132","Deferred Salary Payable","Balance Sheet (2) - General CC(F-9000)/Fund(F-10)","BS","2132","GL","Active"]
["2133","Family Maintenance and Garnishments","Balance Sheet (2) - General CC(F-9000)/Fund(F-10)","BS","2133","GL","Active"]
["2134","PRO-PASS Deductions","Balance Sheet (2) - General CC(F-9000)/Fund(F-10)","BS","2134","GL","Active"]
["2140","Accrued - Registered Supplier Invoices","Balance Sheet (2) - General CC(F-9000)/Fund(F-10)","BS","2140","GL","Active"]
["2141","Receiver General - Non-Resident Tax Payable","Balance Sheet (2) - General CC(F-9000)/Fund(F-10)","BS","2141","GL","Active"]
["2160","Accrued Employee Liabilities - ADMIN Overtime","Balance Sheet (2) - General CC(F-9000)/Fund(F-10)","BS","2160","GL","Active"]
["2161","Accrued Employee Liabilities - ADMIN Vacation","Balance Sheet (2) - General CC(F-9000)/Fund(F-10)","BS","2161","GL","Active"]
["2162","Accrued Employee Liabilities - ADMIN Frozen Sick Bank","Balance Sheet (2) - General CC(F-9000)/Fund(F-10)","BS","2162","GL","Active"]
["2163","Accrued Employee Liabilities - ADMIN Professional Development","Balance Sheet (2) - General CC(F-9000)/Fund(F-10)","BS","2163","GL","Active"]
["2164","Accrued Employee Liabilities - ADMIN Other","Balance Sheet (2) - General CC(F-9000)/Fund(F-10)","BS","2164","GL","Active"]
["2165","Accrued Employee Liabilities - BCGEU Overtime","Balance Sheet (2) - General CC(F-9000)/Fund(F-10)","BS","2165","GL","Active"]
["2166","Accrued Employee Liabilities - BCGEU Vacation","Balance Sheet (2) - General CC(F-9000)/Fund(F-10)","BS","2166","GL","Active"]
["2167","Accrued Employee Liabilities - BCGEU Frozen Sick Bank","Balance Sheet (2) - General CC(F-9000)/Fund(F-10)","BS","2167","GL","Active"]
["2168","Accrued Employee Liabilities - BCGEU Professional Development","Balance Sheet (2) - General CC(F-9000)/Fund(F-10)","BS","2168","GL","Active"]
["2169","Accrued Employee Liabilities - BCGEU Other","Balance Sheet (2) - General CC(F-9000)/Fund(F-10)","BS","2169","GL","Active"]
["2170","Accrued Employee Liabilities - CUPE Overtime","Balance Sheet (2) - General CC(F-9000)/Fund(F-10)","BS","2170","GL","Active"]
["2171","Accrued Employee Liabilities - CUPE Vacation","Balance Sheet (2) - General CC(F-9000)/Fund(F-10)","BS","2171","GL","Active"]
["2172","Accrued Employee Liabilities - CUPE Other","Balance Sheet (2) - General CC(F-9000)/Fund(F-10)","BS","2172","GL","Active"]
["2175","Accrued Employee Liabilities - VIUFA Overtime","Balance Sheet (2) - General CC(F-9000)/Fund(F-10)","BS","2175","GL","Active"]
["2176","Accrued Employee Liabilities - VIUFA Vacation","Balance Sheet (2) - General CC(F-9000)/Fund(F-10)","BS","2176","GL","Active"]
["2177","Accrued Employee Liabilities - VIUFA Frozen Sick Bank","Balance Sheet (2) - General CC(F-9000)/Fund(F-10)","BS","2177","GL","Active"]
["2178","Accrued Employee Liabilities - VIUFA Professional Development","Balance Sheet (2) - General CC(F-9000)/Fund(F-10)","BS","2178","GL","Active"]
["2179","Accrued Employee Liabilities - VIUFA Other","Balance Sheet (2) - General CC(F-9000)/Fund(F-10)","BS","2179","GL","Active"]
["2180","Accrued Employee Liabilities - Non-Jurisdicational Overtime","Balance Sheet (2) - General CC(F-9000)/Fund(F-10)","BS","2180","GL","Active"]
["2181","Accrued Employee Liabilities - Non-Jurisidicational Vacation","Balance Sheet (2) - General CC(F-9000)/Fund(F-10)","BS","2181","GL","Active"]
["2190","Unearned Revenue - Deposits General","Balance Sheet (17) - Deposits - CC(F-9000)/Fund(M-VM)/WO(M)","BS","2190","GL","Active"]
["2191","Residence Damage Deposits","Balance Sheet (17) - Deposits - CC(F-9000)/Fund(M-VM)/WO(M)","BS","2191","GL","Active"]
["2192","Homestay Family Deposits","Balance Sheet (17) - Deposits - CC(F-9000)/Fund(M-VM)/WO(M)","BS","2192","GL","Active"]
["2193","Unearned Revenue - Homestay Student Deposits","Balance Sheet (17) - Deposits - CC(F-9000)/Fund(M-VM)/WO(M)","BS","","GL","Closed"]
["2194","Unearned Revenue - Food Services Meal Plans","Balance Sheet (2) - General CC(F-9000)/Fund(F-10)","BS","2194","GL","Closed"]
["2195","Unearned Revenue - Food Services Dinning Dollars","Balance Sheet (2) - General CC(F-9000)/Fund(F-10)","BS","2195","GL","Closed"]
["2196","SLED Reclass Deposits","Balance Sheet (2) - General CC(F-9000)/Fund(F-10)","BS","2196","GL","Active"]
["2200","Employee Future Benefits - Actuarial","Balance Sheet (2) - General CC(F-9000)/Fund(F-10)","BS","2200","GL","Active"]
["2210","Employee Future Benefits - ADMIN","Balance Sheet (2) - General CC(F-9000)/Fund(F-10)","BS","2210","GL","Active"]
["2300","Deferred Revenue - Other Govt -Grants and Contracts","Grants (15) - CC(F-Cat4)/Fund(F-VM)/WO(M)/ACT(M)/G(M)","BS","2300","GL","Closed"]
["2301","Deferred Contributions - BC Provincial Govt - AVED General Grants","Grants (15) - CC(F-Cat4)/Fund(F-VM)/WO(M)/ACT(M)/G(M)","BS","","GL","Closed"]
["2302","Deferred Contributions - BC Provincial Govt - Non AVED Other Ministries","Grants (15) - CC(F-Cat4)/Fund(F-VM)/WO(M)/ACT(M)/G(M)","BS","","GL","Closed"]
["2303","Deferred Contributions - BC Provincial Govt - AVED - BC Operating COA","Grants (15) - CC(F-Cat4)/Fund(F-VM)/WO(M)/ACT(M)/G(M)","BS","","GL","Closed"]
["2304","Deferred Contributions - BC Provincial Crown Corps, Agencies, Boards - ITA","Grants (15) - CC(F-Cat4)/Fund(F-VM)/WO(M)/ACT(M)/G(M)","BS","","GL","Closed"]
["2305","Deferred Contributions - BC Provincial Crown Corps, Agencies, Boards - Other","Grants (15) - CC(F-Cat4)/Fund(F-VM)/WO(M)/ACT(M)/G(M)","BS","","GL","Closed"]
["2310","Deferred Revenue - Corporations - Grants and Contracts","Grants (15) - CC(F-Cat4)/Fund(F-VM)/WO(M)/ACT(M)/G(M)","BS","2310","GL","Active"]
["2320","Deferred Revenue - Individuals - Grants and Contracts","Grants (15) - CC(F-Cat4)/Fund(F-VM)/WO(M)/ACT(M)/G(M)","BS","2320","GL","Active"]
["2330","Deferred Revenue - NFPs - Grants and Contracts","Grants (15) - CC(F-Cat4)/Fund(F-VM)/WO(M)/ACT(M)/G(M)","BS","2330","GL","Active"]
["2331","Deferred Contributions - Federal Govt Department Contracts","Grants (15) - CC(F-Cat4)/Fund(F-VM)/WO(M)/ACT(M)/G(M)","BS","","GL","Closed"]
["2340","Deferred Revenue - Indigenous Organizations - Grants and Contracts","Grants (15) - CC(F-Cat4)/Fund(F-VM)/WO(M)/ACT(M)/G(M)","BS","2340","GL","Closed"]
["2350","Deferred Revenue - Tuition and Student Fees - SLED","Balance Sheet (2) - General CC(F-9000)/Fund(F-10)","BS","2350","GL","Active"]
["2351","Deferred Revenue - SLED Reclass Contra Account","Balance Sheet (2) - General CC(F-9000)/Fund(F-10)","BS","2351","GL","Active"]
["2360","Deferred Revenue - Food Services Meal Plans","Balance Sheet (2) - General CC(F-9000)/Fund(F-10)","BS","2360","GL","Active"]
["2361","Deferred Revenue - Food Services Dining Dollars","Balance Sheet (2) - General CC(F-9000)/Fund(F-10)","BS","2361","GL","Active"]
["2400","Deferred Contributions - Province of BC - AVED Core Operating","Grants (15) - CC(F-Cat4)/Fund(F-VM)/WO(M)/ACT(M)/G(M)","BS","2400","GL","Active"]
["2401","Deferred Contributions - Province of BC - AVED General Grants","Grants (15) - CC(F-Cat4)/Fund(F-VM)/WO(M)/ACT(M)/G(M)","BS","2401","GL","Active"]
["2402","Deferred Contributions - Province of BC - Non AVED Other Ministries","Grants (15) - CC(F-Cat4)/Fund(F-VM)/WO(M)/ACT(M)/G(M)","BS","2402","GL","Active"]
["2403","Deferred Contributions - Province of BC - AVED - COA (Operating/Non Capital)","Grants (15) - CC(F-Cat4)/Fund(F-VM)/WO(M)/ACT(M)/G(M)","BS","2403","GL","Closed"]
["2404","Deferred Contributions - Province of BC - Crown Corps, Agencies, Boards - ITA","Grants (15) - CC(F-Cat4)/Fund(F-VM)/WO(M)/ACT(M)/G(M)","BS","2404","GL","Active"]
["2405","Deferred Contributions - Province of BC - Crown Corps, Agencies, Boards - Other","Grants (15) - CC(F-Cat4)/Fund(F-VM)/WO(M)/ACT(M)/G(M)","BS","2405","GL","Active"]
["2410","Deferred Revenue - Corporations - Corporations","Grants (15) - CC(F-Cat4)/Fund(F-VM)/WO(M)/ACT(M)/G(M)","BS","","GL","Closed"]
["2420","Deferred Revenue - Individuals - Grants and Contracts","Grants (15) - CC(F-Cat4)/Fund(F-VM)/WO(M)/ACT(M)/G(M)","BS","","GL","Closed"]
["2430","Deferred Contributions - Government of Canada Department - Grants","Grants (15) - CC(F-Cat4)/Fund(F-VM)/WO(M)/ACT(M)/G(M)","BS","2430","GL","Active"]
["2431","Deferred Contributions - Government of Canada Department - Contracts","Grants (15) - CC(F-Cat4)/Fund(F-VM)/WO(M)/ACT(M)/G(M)","BS","2431","GL","Active"]
["2440","Deferred Contributions - Other Govt - Grants and Contracts","Grants (15) - CC(F-Cat4)/Fund(F-VM)/WO(M)/ACT(M)/G(M)","BS","2440","GL","Active"]
["2450","Deferred Revenue - Tuition and Student Fees - SLED","Balance Sheet (2) - General CC(F-9000)/Fund(F-10)","BS","","GL","Closed"]
["2451","Deferred Revenue - Tuition and Student Fees - DOMESTIC","Balance Sheet (2) - General CC(F-9000)/Fund(F-10)","BS","","GL","Closed"]
["2452","Deferred Revenue - Tuition and Student Fees - INTERNATIONAL","Balance Sheet (2) - General CC(F-9000)/Fund(F-10)","BS","","GL","Closed"]
["2500","Deferred Capital Contributions - Provincial","Assets (3) - CC(F-9150)/Fund(F-50)/WO(M)/ACT(M-Default 500)","BS","2500","GL","Active"]
["2501","FA DCC Provincial - Computers and Software","Assets (3) - CC(F-9150)/Fund(F-50)/WO(M)/ACT(M-Default 500)","BS","","GL","Closed"]
["2502","FA DCC Provincial - Furniture and Equipment","Assets (3) - CC(F-9150)/Fund(F-50)/WO(M)/ACT(M-Default 500)","BS","","GL","Closed"]
["2503","FA DCC Provincial - Leasehold Improvements","Assets (3) - CC(F-9150)/Fund(F-50)/WO(M)/ACT(M-Default 500)","BS","","GL","Closed"]
["2504","FA DCC Provincial - Library","Assets (3) - CC(F-9150)/Fund(F-50)/WO(M)/ACT(M-Default 500)","BS","","GL","Closed"]
["2505","FA DCC Provincial - Site Improvements","Assets (3) - CC(F-9150)/Fund(F-50)/WO(M)/ACT(M-Default 500)","BS","","GL","Closed"]
["2506","FA DCC Provincial - Vehicles","Assets (3) - CC(F-9150)/Fund(F-50)/WO(M)/ACT(M-Default 500)","BS","","GL","Closed"]
["2507","FA DCC Provincial - TBD","Assets (3) - CC(F-9150)/Fund(F-50)/WO(M)/ACT(M-Default 500)","BS","","GL","Closed"]
["2508","FA DCC Provincial - Land","Assets (3) - CC(F-9150)/Fund(F-50)/WO(M)/ACT(M-Default 500)","BS","","GL","Closed"]
["2509","FA DCC Provincial - Work In Progress","Assets (3) - CC(F-9150)/Fund(F-50)/WO(M)/ACT(M-Default 500)","BS","","GL","Closed"]
["2510","Deferred Capital Contributions -  Federal","Assets (3) - CC(F-9150)/Fund(F-50)/WO(M)/ACT(M-Default 500)","BS","2510","GL","Active"]
["2511","FA DCC Federal - Computers and Software","Assets (3) - CC(F-9150)/Fund(F-50)/WO(M)/ACT(M-Default 500)","BS","","GL","Closed"]
["2512","FA DCC Federal - Furniture and Equipment","Assets (3) - CC(F-9150)/Fund(F-50)/WO(M)/ACT(M-Default 500)","BS","","GL","Closed"]
["2513","FA DCC Federal - Leasehold Improvements","Assets (3) - CC(F-9150)/Fund(F-50)/WO(M)/ACT(M-Default 500)","BS","","GL","Closed"]
["2514","FA DCC Federal - Library","Assets (3) - CC(F-9150)/Fund(F-50)/WO(M)/ACT(M-Default 500)","BS","","GL","Closed"]
["2515","FA DCC Federal - Site Improvements","Assets (3) - CC(F-9150)/Fund(F-50)/WO(M)/ACT(M-Default 500)","BS","","GL","Closed"]
["2516","FA DCC Federal - Vehicles","Assets (3) - CC(F-9150)/Fund(F-50)/WO(M)/ACT(M-Default 500)","BS","","GL","Closed"]
["2517","FA DCC Federal - TBD","Assets (3) - CC(F-9150)/Fund(F-50)/WO(M)/ACT(M-Default 500)","BS","","GL","Closed"]
["2518","FA DCC Federal - Land","Assets (3) - CC(F-9150)/Fund(F-50)/WO(M)/ACT(M-Default 500)","BS","","GL","Closed"]
["2519","FA DCC Federal - Work In Progress","Assets (3) - CC(F-9150)/Fund(F-50)/WO(M)/ACT(M-Default 500)","BS","","GL","Closed"]
["2520","Deferred Capital Contributions - Other","Assets (3) - CC(F-9150)/Fund(F-50)/WO(M)/ACT(M-Default 500)","BS","2520","GL","Active"]
["2521","FA DCC Other - Computers and Software","Assets (3) - CC(F-9150)/Fund(F-50)/WO(M)/ACT(M-Default 500)","BS","","GL","Closed"]
["2522","FA DCC Other - Furniture and Equipment","Assets (3) - CC(F-9150)/Fund(F-50)/WO(M)/ACT(M-Default 500)","BS","","GL","Closed"]
["2523","FA DCC Other - Leasehold Improvements","Assets (3) - CC(F-9150)/Fund(F-50)/WO(M)/ACT(M-Default 500)","BS","","GL","Closed"]
["2524","FA DCC Other - Library","Assets (3) - CC(F-9150)/Fund(F-50)/WO(M)/ACT(M-Default 500)","BS","","GL","Closed"]
["2525","FA DCC Other - Site Improvements","Assets (3) - CC(F-9150)/Fund(F-50)/WO(M)/ACT(M-Default 500)","BS","","GL","Closed"]
["2526","FA DCC Other - Vehicles","Assets (3) - CC(F-9150)/Fund(F-50)/WO(M)/ACT(M-Default 500)","BS","","GL","Closed"]
["2527","FA DCC Accum.Amort. Provincial - TBD","Assets (3) - CC(F-9150)/Fund(F-50)/WO(M)/ACT(M-Default 500)","BS","","GL","Closed"]
["2528","FA DCC Other - Land","Assets (3) - CC(F-9150)/Fund(F-50)/WO(M)/ACT(M-Default 500)","BS","","GL","Closed"]
["2529","FA DCC Other - Work In Progress","Assets (3) - CC(F-9150)/Fund(F-50)/WO(M)/ACT(M-Default 500)","BS","","GL","Closed"]
["2530","FA DCC Accum.Amort. Provincial - Buildings","Assets (3) - CC(F-9150)/Fund(F-50)/WO(M)/ACT(M-Default 500)","BS","","GL","Closed"]
["2531","FA DCC Accum.Amort. Provincial - Computers and Software","Assets (3) - CC(F-9150)/Fund(F-50)/WO(M)/ACT(M-Default 500)","BS","","GL","Closed"]
["2532","FA DCC Accum.Amort. Provincial - Furniture and Equipment","Assets (3) - CC(F-9150)/Fund(F-50)/WO(M)/ACT(M-Default 500)","BS","","GL","Closed"]
["2533","FA DCC Accum.Amort. Provincial - Leasehold Improvements","Assets (3) - CC(F-9150)/Fund(F-50)/WO(M)/ACT(M-Default 500)","BS","","GL","Closed"]
["2534","FA DCC Accum.Amort. Provincial - Library","Assets (3) - CC(F-9150)/Fund(F-50)/WO(M)/ACT(M-Default 500)","BS","","GL","Closed"]
["2535","FA DCC Accum.Amort. Provincial - Site Improvements","Assets (3) - CC(F-9150)/Fund(F-50)/WO(M)/ACT(M-Default 500)","BS","","GL","Closed"]
["2536","FA DCC Accum.Amort. Provincial - Vehicles","Assets (3) - CC(F-9150)/Fund(F-50)/WO(M)/ACT(M-Default 500)","BS","","GL","Closed"]
["2537","FA DCC Accum.Amort. Federal - TBD","Assets (3) - CC(F-9150)/Fund(F-50)/WO(M)/ACT(M-Default 500)","BS","","GL","Closed"]
["2540","FA DCC Accum.Amort. Federal - Buildings","Assets (3) - CC(F-9150)/Fund(F-50)/WO(M)/ACT(M-Default 500)","BS","","GL","Closed"]
["2541","FA DCC Accum.Amort. Federal - Computers and Software","Assets (3) - CC(F-9150)/Fund(F-50)/WO(M)/ACT(M-Default 500)","BS","","GL","Closed"]
["2542","FA DCC Accum.Amort. Federal - Furniture and Equipment","Assets (3) - CC(F-9150)/Fund(F-50)/WO(M)/ACT(M-Default 500)","BS","","GL","Closed"]
["2543","FA DCC Accum.Amort. Federal - Leasehold Improvements","Assets (3) - CC(F-9150)/Fund(F-50)/WO(M)/ACT(M-Default 500)","BS","","GL","Closed"]
["2544","FA DCC Accum.Amort. Federal - Library","Assets (3) - CC(F-9150)/Fund(F-50)/WO(M)/ACT(M-Default 500)","BS","","GL","Closed"]
["2545","FA DCC Accum.Amort. Federal - Site Improvements","Assets (3) - CC(F-9150)/Fund(F-50)/WO(M)/ACT(M-Default 500)","BS","","GL","Closed"]
["2546","FA DCC Accum.Amort. Federal - Vehicles","Assets (3) - CC(F-9150)/Fund(F-50)/WO(M)/ACT(M-Default 500)","BS","","GL","Closed"]
["2550","FA DCC Accum.Amort. Other - Buildings","Assets (3) - CC(F-9150)/Fund(F-50)/WO(M)/ACT(M-Default 500)","BS","","GL","Closed"]
["2551","FA DCC Accum.Amort. Other - Computers and Software","Assets (3) - CC(F-9150)/Fund(F-50)/WO(M)/ACT(M-Default 500)","BS","","GL","Closed"]
["2552","FA DCC Accum.Amort. Other - Furniture and Equipment","Assets (3) - CC(F-9150)/Fund(F-50)/WO(M)/ACT(M-Default 500)","BS","","GL","Closed"]
["2553","FA DCC Accum.Amort. Other - Leasehold Improvements","Assets (3) - CC(F-9150)/Fund(F-50)/WO(M)/ACT(M-Default 500)","BS","","GL","Closed"]
["2554","FA DCC Accum.Amort. Other - Library","Assets (3) - CC(F-9150)/Fund(F-50)/WO(M)/ACT(M-Default 500)","BS","","GL","Closed"]
["2555","FA DCC Accum.Amort. Other - Site Improvements","Assets (3) - CC(F-9150)/Fund(F-50)/WO(M)/ACT(M-Default 500)","BS","","GL","Closed"]
["2556","FA DCC Accum.Amort. Other - Vehicles","Assets (3) - CC(F-9150)/Fund(F-50)/WO(M)/ACT(M-Default 500)","BS","","GL","Closed"]
["2599","FA Decrease SUSPENSE Account (Fixed Asset Management)","Assets (3) - CC(F-9150)/Fund(F-50)/WO(M)/ACT(M-Default 500)","BS","","GL","Closed"]
["3000","Internally Restricted Surplus - Department Operations","Balance Sheet (2) - General CC(F-9000)/Fund(F-10)","BS","3000","GL","Closed"]
["3010","Internally Restricted Surplus - International Downturn Reserve","Balance Sheet (2) - General CC(F-9000)/Fund(F-10)","BS","3010","GL","Closed"]
["3020","Unrestricted Net Assets","Balance Sheet (2) - General CC(F-9000)/Fund(F-10)","BS","3020","GL","Active"]
["3030","Equity Endowment - Aboriginal Early Childhood Development Chair","Balance Sheet (2) - General CC(F-9000)/Fund(F-10)","BS","3030","GL","Active"]
["3040","Equity Endowment - Tourism Chair","Balance Sheet (2) - General CC(F-9000)/Fund(F-10)","BS","3040","GL","Active"]
["3050","Invested in Capital Assets","Balance Sheet (2) - General CC(F-9000)/Fund(F-10)","BS","3050","GL","Active"]
["3060","Invested in Capital Assets - Work in Progress (WIP)","Balance Sheet (2) - General CC(F-9000)/Fund(F-10)","BS","3060","GL","Active"]
["3070","Unrestricted Statement of Remeasurement","Balance Sheet (2) - General CC(F-9000)/Fund(F-10)","BS","3070","GL","Active"]
["3080","Internally Restricted Net Assets  - Capital Reserve","Balance Sheet (2) - General CC(F-9000)/Fund(F-10)","BS","","GL","Closed"]
["3993","Op. Bal. Clearing - Bank","Balance Sheet (2) - General CC(F-9000)/Fund(F-10)","BS","3990","GL","Active"]
["3994","Op. Bal. - Cashbook","Balance Sheet (2) - General CC(F-9000)/Fund(F-10)","BS","3990","GL","Active"]
["3995","Op. Bal. Clearing - AR","Balance Sheet (2) - General CC(F-9000)/Fund(F-10)","BS","3990","GL","Active"]
["3996","Op. Bal. Clearing – AP","Balance Sheet (2) - General CC(F-9000)/Fund(F-10)","BS","3990","GL","Active"]
["3997","Op. Bal. Clearing - Income Statement Clearing (TEST ONLY)","Balance Sheet (2) - General CC(F-9000)/Fund(F-10)","BS","3990","GL","Active"]
["3998","Op. Bal. Clearing – Balance Sheet Other (TEST ONLY)","Balance Sheet (2) - General CC(F-9000)/Fund(F-10)","BS","3990","GL","Active"]
["3999","Op. Bal. Clearing - SLED","Balance Sheet (2) - General CC(F-9000)/Fund(F-10)","BS","3990","GL","Active"]
["4000","Province of BC - Grants - AVED Core Operating Grant","Grants (15) - CC(F-Cat4)/Fund(F-VM)/WO(M)/ACT(M)/G(M)","IS","4000","GL","Active"]
["4010","Province of BC -  Grants - AVED General Grants","Grants (15) - CC(F-Cat4)/Fund(F-VM)/WO(M)/ACT(M)/G(M)","IS","4010","GL","Active"]
["4020","Province of BC - Contracts - Non AVED Other Ministries","Grants (15) - CC(F-Cat4)/Fund(F-VM)/WO(M)/ACT(M)/G(M)","IS","4020","GL","Active"]
["4030","Province of BC - COA Funds (Operating/Non Capital)","Grants (15) - CC(F-Cat4)/Fund(F-VM)/WO(M)/ACT(M)/G(M)","IS","4030","GL","Closed"]
["4040","Province of BC - Crown Corps, Agencies, Boards - Grants and Contracts - ITA","Grants (15) - CC(F-Cat4)/Fund(F-VM)/WO(M)/ACT(M)/G(M)","IS","4040","GL","Active"]
["4050","Province of BC - Crown Corps, Agencies, Boards - Grants and Contracts - Other","Grants (15) - CC(F-Cat4)/Fund(F-VM)/WO(M)/ACT(M)/G(M)","IS","4050","GL","Active"]
["4100","Government of Canada Department - Grants","Grants (15) - CC(F-Cat4)/Fund(F-VM)/WO(M)/ACT(M)/G(M)","IS","4100","GL","Active"]
["4110","Government of Canada Department - Contracts","Grants (15) - CC(F-Cat4)/Fund(F-VM)/WO(M)/ACT(M)/G(M)","IS","4110","GL","Active"]
["4200","Other Govt Grants and Contracts - Municipalities, SD's, Post Secondary Institutions","Grants (15) - CC(F-Cat4)/Fund(F-VM)/WO(M)/ACT(M)/G(M)","IS","4200","GL","Active"]
["4201","Grants and Contracts - Indivduals","Grants (15) - CC(F-Cat4)/Fund(F-VM)/WO(M)/ACT(M)/G(M)","IS","","GL","Closed"]
["4202","Grants and Contracts - Not For Profits","Grants (15) - CC(F-Cat4)/Fund(F-VM)/WO(M)/ACT(M)/G(M)","IS","","GL","Closed"]
["4203","Grants and Contracts - Indigenous Organizations","Grants (15) - CC(F-Cat4)/Fund(F-VM)/WO(M)/ACT(M)/G(M)","IS","","GL","Closed"]
["4220","Other Govt Grants and Contracts - Municialities, SD's, Post Secondary Institutions","Grants (15) - CC(F-Cat4)/Fund(F-VM)/WO(M)/ACT(M)/G(M)","IS","","GL","Closed"]
["4250","Grants and Contracts - Corporations","Grants (15) - CC(F-Cat4)/Fund(F-VM)/WO(M)/ACT(M)/G(M)","IS","4250","GL","Active"]
["4260","Grants and Contracts - Individuals","Grants (15) - CC(F-Cat4)/Fund(F-VM)/WO(M)/ACT(M)/G(M)","IS","4260","GL","Active"]
["4270","Grants and Contracts - NFP's","Grants (15) - CC(F-Cat4)/Fund(F-VM)/WO(M)/ACT(M)/G(M)","IS","4270","GL","Active"]
["4280","Grants and Contracts - Indigenous Organizations","Grants (15) - CC(F-Cat4)/Fund(F-VM)/WO(M)/ACT(M)/G(M)","IS","4280","GL","Closed"]
["4299","Grant Transfer","Grants (15) - CC(F-Cat4)/Fund(F-VM)/WO(M)/ACT(M)/G(M)","IS","4299","GL","Closed"]
["4300","Domestic Distributed - Tuition","Distributed Tuition (5) - CC(F-Cat4)/Fund(F-VM)/WO(M)/Act(M)","IS","4300","GL","Active"]
["4301","Domestic Distributed - ESL","Distributed Tuition (5) - CC(F-Cat4)/Fund(F-VM)/WO(M)/Act(M)","IS","4301","GL","Active"]
["4302","Domestic Distributed - Vocational (Trade)","Distributed Tuition (5) - CC(F-Cat4)/Fund(F-VM)/WO(M)/Act(M)","IS","4302","GL","Active"]
["4303","Domestic Distributed - CE General Interest","Distributed Tuition (5) - CC(F-Cat4)/Fund(F-VM)/WO(M)/Act(M)","IS","4303","GL","Active"]
["4304","Domestic Distributed - ABE","Distributed Tuition (5) - CC(F-Cat4)/Fund(F-VM)/WO(M)/Act(M)","IS","4304","GL","Active"]
["4305","Domestic Distributed - TBD","Distributed Tuition (5) - CC(F-Cat4)/Fund(F-VM)/WO(M)/Act(M)","IS","","GL","Closed"]
["4330","International Distributed - Tuition","Distributed Tuition (5) - CC(F-Cat4)/Fund(F-VM)/WO(M)/Act(M)","IS","4330","GL","Active"]
["4331","International Distributed - ESL","Distributed Tuition (5) - CC(F-Cat4)/Fund(F-VM)/WO(M)/Act(M)","IS","4331","GL","Active"]
["4332","International Distributed - Vocational (Trade)","Distributed Tuition (5) - CC(F-Cat4)/Fund(F-VM)/WO(M)/Act(M)","IS","4332","GL","Active"]
["4333","International Distributed - CE General Interest","Distributed Tuition (5) - CC(F-Cat4)/Fund(F-VM)/WO(M)/Act(M)","IS","4333","GL","Active"]
["4334","International Distributed - ABE","Distributed Tuition (5) - CC(F-Cat4)/Fund(F-VM)/WO(M)/Act(M)","IS","4334","GL","Active"]
["4335","International Distributed - TBD","Distributed Tuition (5) - CC(F-Cat4)/Fund(F-VM)/WO(M)/Act(M)","IS","","GL","Closed"]
["4350","Other Student Fees Distributed - Domestic Lab Fees","Distributed Tuition (5) - CC(F-Cat4)/Fund(F-VM)/WO(M)/Act(M)","IS","4350","GL","Active"]
["4351","Other Student Fees Distributed - International Lab Fees","Distributed Tuition (5) - CC(F-Cat4)/Fund(F-VM)/WO(M)/Act(M)","IS","4351","GL","Active"]
["4352","Other Student Fees Distributed - Domestic Student Activity Fee","Distributed Tuition (5) - CC(F-Cat4)/Fund(F-VM)/WO(M)/Act(M)","IS","4352","GL","Active"]
["4353","Other Student Fees Distributed - International Student Activity Fee","Distributed Tuition (5) - CC(F-Cat4)/Fund(F-VM)/WO(M)/Act(M)","IS","4353","GL","Active"]
["4354","Other Student Fees Distributed - Domestic Student Services Fee","Distributed Tuition (5) - CC(F-Cat4)/Fund(F-VM)/WO(M)/Act(M)","IS","4354","GL","Active"]
["4355","Other Student Fees Distributed - International Student Services Fee","Distributed Tuition (5) - CC(F-Cat4)/Fund(F-VM)/WO(M)/Act(M)","IS","4355","GL","Active"]
["4356","Other Student Fees Distributed - TBD","Distributed Tuition (5) - CC(F-Cat4)/Fund(F-VM)/WO(M)/Act(M)","IS","","GL","Closed"]
["4357","Other Student Fees Distributed - TBD","Distributed Tuition (5) - CC(F-Cat4)/Fund(F-VM)/WO(M)/Act(M)","IS","","GL","Closed"]
["4360","Other Student Fees - General Other Fees","Distributed Tuition (5) - CC(F-Cat4)/Fund(F-VM)/WO(M)/Act(M)","IS","4360","GL","Active"]
["4361","Other Student Fees - Domestic Application Fees","Distributed Tuition (5) - CC(F-Cat4)/Fund(F-VM)/WO(M)/Act(M)","IS","4361","GL","Active"]
["4362","Other Student Fees - International Application Fees","Distributed Tuition (5) - CC(F-Cat4)/Fund(F-VM)/WO(M)/Act(M)","IS","4362","GL","Active"]
["4363","Other Student Fees - Criminal Record Check Fees","General Rev and Exp (7) - CC(F-Cat4)/Fund(F-VM)/WO(M)/ACT(M)","IS","4363","GL","Active"]
["4364","Other Student Fees - Appeals Fee","General Rev and Exp (7) - CC(F-Cat4)/Fund(F-VM)/WO(M)/ACT(M)","IS","4364","GL","Active"]
["4365","Other Student Fees - Graduation Fee","General Rev and Exp (7) - CC(F-Cat4)/Fund(F-VM)/WO(M)/ACT(M)","IS","4365","GL","Active"]
["4366","Other Student Fees - Library Fines","General Rev and Exp (7) - CC(F-Cat4)/Fund(F-VM)/WO(M)/ACT(M)","IS","4366","GL","Active"]
["4367","Other Student Fees - Tuition Discount","General Rev and Exp (7) - CC(F-Cat4)/Fund(F-VM)/WO(M)/ACT(M)","IS","4367","GL","Active"]
["4368","Other Student Fees - Late Fees","General Rev and Exp (7) - CC(F-Cat4)/Fund(F-VM)/WO(M)/ACT(M)","IS","4368","GL","Active"]
["4369","Other Student Fees - Replacement Cheque","General Rev and Exp (7) - CC(F-Cat4)/Fund(F-VM)/WO(M)/ACT(M)","IS","4369","GL","Active"]
["4370","Other Student Fees - Homestay Fees","General Rev and Exp (7) - CC(F-Cat4)/Fund(F-VM)/WO(M)/ACT(M)","IS","4370","GL","Active"]
["4371","Other Student Fees - Transcript Fees","General Rev and Exp (7) - CC(F-Cat4)/Fund(F-VM)/WO(M)/ACT(M)","IS","4371","GL","Active"]
["4400","Merchandise Revenue","General Rev and Exp (7) - CC(F-Cat4)/Fund(F-VM)/WO(M)/ACT(M)","IS","4400","GL","Active"]
["4401","Service Revenue","General Rev and Exp (7) - CC(F-Cat4)/Fund(F-VM)/WO(M)/ACT(M)","IS","4401","GL","Active"]
["4402","Food and Non Alcoholic Beverages Revenue","General Rev and Exp (7) - CC(F-Cat4)/Fund(F-VM)/WO(M)/ACT(M)","IS","4402","GL","Active"]
["4403","Liquor Sales Revenue","General Rev and Exp (7) - CC(F-Cat4)/Fund(F-VM)/WO(M)/ACT(M)","IS","4403","GL","Active"]
["4404","Operating Fees Revenue","General Rev and Exp (7) - CC(F-Cat4)/Fund(F-VM)/WO(M)/ACT(M)","IS","4404","GL","Active"]
["4405","Admissions Revenue","General Rev and Exp (7) - CC(F-Cat4)/Fund(F-VM)/WO(M)/ACT(M)","IS","4405","GL","Active"]
["4406","Recreation Classes, Courses and Trips Revenue","General Rev and Exp (7) - CC(F-Cat4)/Fund(F-VM)/WO(M)/ACT(M)","IS","4406","GL","Active"]
["4407","Special Events Revenue","General Rev and Exp (7) - CC(F-Cat4)/Fund(F-VM)/WO(M)/ACT(M)","IS","4407","GL","Active"]
["4408","Textbook Revenue","General Rev and Exp (7) - CC(F-Cat4)/Fund(F-VM)/WO(M)/ACT(M)","IS","4408","GL","Active"]
["4409","Parking Revenue","General Rev and Exp (7) - CC(F-Cat4)/Fund(F-VM)/WO(M)/ACT(M)","IS","4409","GL","Active"]
["4410","Conferences and Seminars","General Rev and Exp (7) - CC(F-Cat4)/Fund(F-VM)/WO(M)/ACT(M)","IS","4410","GL","Active"]
["4411","Commission Revenue","General Rev and Exp (7) - CC(F-Cat4)/Fund(F-VM)/WO(M)/ACT(M)","IS","4411","GL","Active"]
["4412","Miscellaneous Sales Revenue","General Rev and Exp (7) - CC(F-Cat4)/Fund(F-VM)/WO(M)/ACT(M)","IS","4412","GL","Active"]
["4440","TBD","General Rev and Exp (7) - CC(F-Cat4)/Fund(F-VM)/WO(M)/ACT(M)","IS","","GL","Closed"]
["4500","Rental Income","General Rev and Exp (7) - CC(F-Cat4)/Fund(F-VM)/WO(M)/ACT(M)","IS","4500","GL","Active"]
["4501","Residence Rental Income","General Rev and Exp (7) - CC(F-Cat4)/Fund(F-VM)/WO(M)/ACT(M)","IS","4501","GL","Active"]
["4600","Investment Income","General Rev and Exp (7) - CC(F-Cat4)/Fund(F-VM)/WO(M)/ACT(M)","IS","4600","GL","Active"]
["4700","Gifts in Kind","General Rev and Exp (7) - CC(F-Cat4)/Fund(F-VM)/WO(M)/ACT(M)","IS","4700","GL","Active"]
["4701","Donations","General Rev and Exp (7) - CC(F-Cat4)/Fund(F-VM)/WO(M)/ACT(M)","IS","4701","GL","Active"]
["4702","Bequests","General Rev and Exp (7) - CC(F-Cat4)/Fund(F-VM)/WO(M)/ACT(M)","IS","4702","GL","Active"]
["4800","Realized Gain (Loss) on Investments","General Rev and Exp (7) - CC(F-Cat4)/Fund(F-VM)/WO(M)/ACT(M)","IS","4800","GL","Active"]
["4801","Unrealized Gain (Loss) on Investments","General Rev and Exp (7) - CC(F-Cat4)/Fund(F-VM)/WO(M)/ACT(M)","IS","4801","GL","Active"]
["4802","Foreign Exchange Gain (Loss)","General Rev and Exp (7) - CC(F-Cat4)/Fund(F-VM)/WO(M)/ACT(M)","IS","4802","GL","Active"]
["4900","Other Revenue","General Rev and Exp (7) - CC(F-Cat4)/Fund(F-VM)/WO(M)/ACT(M)","IS","4900","GL","Active"]
["4901","Other Revenue - Sales Discounts","General Rev and Exp (7) - CC(F-Cat4)/Fund(F-VM)/WO(M)/ACT(M)","IS","4900","GL","Active"]
["5000","ADMIN - Salaries","Salaries (4) - CC(F-Cat4)/Fund(F-VM)/RESNO(M)/WO(M)/ACT(M)/AT(M)","IS","5000","GL","Active"]
["5001","ADMIN - Overtime / Other","Salaries (4) - CC(F-Cat4)/Fund(F-VM)/RESNO(M)/WO(M)/ACT(M)/AT(M)","IS","5001","GL","Active"]
["5002","ADMIN - Stipend","Salaries (4) - CC(F-Cat4)/Fund(F-VM)/RESNO(M)/WO(M)/ACT(M)/AT(M)","IS","5002","GL","Active"]
["5003","ADMIN - Allowance","Salaries (4) - CC(F-Cat4)/Fund(F-VM)/RESNO(M)/WO(M)/ACT(M)/AT(M)","IS","5003","GL","Active"]
["5010","ADMIN - Vacation Accrual","Salaries (4) - CC(F-Cat4)/Fund(F-VM)/RESNO(M)/WO(M)/ACT(M)/AT(M)","IS","5010","GL","Active"]
["5011","ADMIN - Vacation paid in lieu","Salaries (4) - CC(F-Cat4)/Fund(F-VM)/RESNO(M)/WO(M)/ACT(M)/AT(M)","IS","5011","GL","Active"]
["5020","ADMIN - Professional Development","Salaries (4) - CC(F-Cat4)/Fund(F-VM)/RESNO(M)/WO(M)/ACT(M)/AT(M)","IS","5020","GL","Active"]
["5100","BCGEU - Salaries","Salaries (4) - CC(F-Cat4)/Fund(F-VM)/RESNO(M)/WO(M)/ACT(M)/AT(M)","IS","5100","GL","Active"]
["5101","BCGEU - Overtime / Other","Salaries (4) - CC(F-Cat4)/Fund(F-VM)/RESNO(M)/WO(M)/ACT(M)/AT(M)","IS","5101","GL","Active"]
["5102","BCGEU - Stipend","Salaries (4) - CC(F-Cat4)/Fund(F-VM)/RESNO(M)/WO(M)/ACT(M)/AT(M)","IS","5102","GL","Active"]
["5103","BCGEU - Allowance","Salaries (4) - CC(F-Cat4)/Fund(F-VM)/RESNO(M)/WO(M)/ACT(M)/AT(M)","IS","5103","GL","Active"]
["5110","BCGEU - Vacation Accrual","Salaries (4) - CC(F-Cat4)/Fund(F-VM)/RESNO(M)/WO(M)/ACT(M)/AT(M)","IS","5110","GL","Active"]
["5111","BCGEU - Vacation paid in lieu","Salaries (4) - CC(F-Cat4)/Fund(F-VM)/RESNO(M)/WO(M)/ACT(M)/AT(M)","IS","5111","GL","Active"]
["5120","BCGEU - Contractual Professional Development","Salaries (4) - CC(F-Cat4)/Fund(F-VM)/RESNO(M)/WO(M)/ACT(M)/AT(M)","IS","5120","GL","Active"]
["5200","CUPE - Salaries","Salaries (4) - CC(F-Cat4)/Fund(F-VM)/RESNO(M)/WO(M)/ACT(M)/AT(M)","IS","5200","GL","Active"]
["5201","CUPE - Overtime / Other","Salaries (4) - CC(F-Cat4)/Fund(F-VM)/RESNO(M)/WO(M)/ACT(M)/AT(M)","IS","5201","GL","Active"]
["5202","CUPE - Stipend","Salaries (4) - CC(F-Cat4)/Fund(F-VM)/RESNO(M)/WO(M)/ACT(M)/AT(M)","IS","5202","GL","Active"]
["5203","CUPE - Allowance","Salaries (4) - CC(F-Cat4)/Fund(F-VM)/RESNO(M)/WO(M)/ACT(M)/AT(M)","IS","5203","GL","Active"]
["5210","CUPE - Vacation Accrual","Salaries (4) - CC(F-Cat4)/Fund(F-VM)/RESNO(M)/WO(M)/ACT(M)/AT(M)","IS","5210","GL","Active"]
["5211","CUPE - Vacation paid in lieu","Salaries (4) - CC(F-Cat4)/Fund(F-VM)/RESNO(M)/WO(M)/ACT(M)/AT(M)","IS","5211","GL","Active"]
["5220","CUPE - Contractual Professional Development","Salaries (4) - CC(F-Cat4)/Fund(F-VM)/RESNO(M)/WO(M)/ACT(M)/AT(M)","IS","5220","GL","Active"]
["5300","VIUFA - Salaries","Salaries (4) - CC(F-Cat4)/Fund(F-VM)/RESNO(M)/WO(M)/ACT(M)/AT(M)","IS","5300","GL","Active"]
["5301","VIUFA - Overtime / Other","Salaries (4) - CC(F-Cat4)/Fund(F-VM)/RESNO(M)/WO(M)/ACT(M)/AT(M)","IS","5301","GL","Active"]
["5302","VIUFA - Stipend","Salaries (4) - CC(F-Cat4)/Fund(F-VM)/RESNO(M)/WO(M)/ACT(M)/AT(M)","IS","5302","GL","Active"]
["5303","VIUFA - Allowance","Salaries (4) - CC(F-Cat4)/Fund(F-VM)/RESNO(M)/WO(M)/ACT(M)/AT(M)","IS","5303","GL","Active"]
["5310","VIUFA - Vacation Accrual","Salaries (4) - CC(F-Cat4)/Fund(F-VM)/RESNO(M)/WO(M)/ACT(M)/AT(M)","IS","5310","GL","Active"]
["5311","VIUFA - Vacation paid in lieu","Salaries (4) - CC(F-Cat4)/Fund(F-VM)/RESNO(M)/WO(M)/ACT(M)/AT(M)","IS","5311","GL","Active"]
["5320","VIUFA - Contractual PD - Time taken","Salaries (4) - CC(F-Cat4)/Fund(F-VM)/RESNO(M)/WO(M)/ACT(M)/AT(M)","IS","5320","GL","Active"]
["5330","VIUFA - Contractual PD - Funds","Salaries (4) - CC(F-Cat4)/Fund(F-VM)/RESNO(M)/WO(M)/ACT(M)/AT(M)","IS","5330","GL","Active"]
["5400","Non-Jurisdictional - Salaries","Salaries (4) - CC(F-Cat4)/Fund(F-VM)/RESNO(M)/WO(M)/ACT(M)/AT(M)","IS","5400","GL","Active"]
["5401","Non-Jurisdictional - Overtime / Other","Salaries (4) - CC(F-Cat4)/Fund(F-VM)/RESNO(M)/WO(M)/ACT(M)/AT(M)","IS","5401","GL","Active"]
["5402","Non-Jurisdictional - Stipend","Salaries (4) - CC(F-Cat4)/Fund(F-VM)/RESNO(M)/WO(M)/ACT(M)/AT(M)","IS","5402","GL","Active"]
["5403","Non-Jurisdictional - Allowance","Salaries (4) - CC(F-Cat4)/Fund(F-VM)/RESNO(M)/WO(M)/ACT(M)/AT(M)","IS","5403","GL","Active"]
["5410","Non-Jurisdictional - Vacation Accrual","Salaries (4) - CC(F-Cat4)/Fund(F-VM)/RESNO(M)/WO(M)/ACT(M)/AT(M)","IS","5410","GL","Active"]
["5411","Non-Jurisdictional - Vacation paid in lieu","Salaries (4) - CC(F-Cat4)/Fund(F-VM)/RESNO(M)/WO(M)/ACT(M)/AT(M)","IS","5411","GL","Active"]
["5420","Non-Jurisdictional - Contractual Professional Development","Salaries (4) - CC(F-Cat4)/Fund(F-VM)/RESNO(M)/WO(M)/ACT(M)/AT(M)","IS","5420","GL","Active"]
["5430","Non-Jurisdictional - Fee for Service (AP Use only)","General Rev and Exp (7) - CC(F-Cat4)/Fund(F-VM)/WO(M)/ACT(M)","IS","","GL","Closed"]
["5431","Non-Jurisdictional - Honoraria (AP Use only)","General Rev and Exp (7) - CC(F-Cat4)/Fund(F-VM)/WO(M)/ACT(M)","IS","","GL","Closed"]
["5500","Salary - Other expenses","General Rev and Exp (7) - CC(F-Cat4)/Fund(F-VM)/WO(M)/ACT(M)","IS","5500","GL","Active"]
["5530","Salary - Internal recoveries","General Rev and Exp (7) - CC(F-Cat4)/Fund(F-VM)/WO(M)/ACT(M)","IS","5530","GL","Active"]
["5800","Employer Costs - Receiver General","Salary Benefits (11) - CC(F-Cat4)/Fund(F-VM)/WO(M)/Act(M)/EG(M)/AT(M)","IS","5800","GL","Active"]
["5801","Employer Costs - College Pension Plan","Salary Benefits (11) - CC(F-Cat4)/Fund(F-VM)/WO(M)/Act(M)/EG(M)/AT(M)","IS","5801","GL","Active"]
["5802","Employer Costs - Municipal Pension Plan","Salary Benefits (11) - CC(F-Cat4)/Fund(F-VM)/WO(M)/Act(M)/EG(M)/AT(M)","IS","5802","GL","Active"]
["5803","Employer Costs - Employer Health Tax (MSP)","Salary Benefits (11) - CC(F-Cat4)/Fund(F-VM)/WO(M)/Act(M)/EG(M)/AT(M)","IS","5803","GL","Active"]
["5804","Employer Costs - WorkSafeBC","Salary Benefits (11) - CC(F-Cat4)/Fund(F-VM)/WO(M)/Act(M)/EG(M)/AT(M)","IS","5804","GL","Active"]
["5810","Employer Costs - Misc Employee Expenses","General ResNo Rule (8) - CC(F-Cat4)/Fund(F-VM)/RESNO(O)/WO(M)/Act(M)","IS","5810","GL","Closed"]
["5820","Benefit Premiums - Extended Health","Salary Benefits (11) - CC(F-Cat4)/Fund(F-VM)/WO(M)/Act(M)/EG(M)/AT(M)","IS","5820","GL","Active"]
["5821","Benefit Premiums - Dental","Salary Benefits (11) - CC(F-Cat4)/Fund(F-VM)/WO(M)/Act(M)/EG(M)/AT(M)","IS","5821","GL","Active"]
["5822","Benefit Premiums - Accidental death and dismemberment","Salary Benefits (11) - CC(F-Cat4)/Fund(F-VM)/WO(M)/Act(M)/EG(M)/AT(M)","IS","5822","GL","Active"]
["5823","Benefit Premiums - Group Life","Salary Benefits (11) - CC(F-Cat4)/Fund(F-VM)/WO(M)/Act(M)/EG(M)/AT(M)","IS","5823","GL","Active"]
["5824","Benefit Premiums - Short Term Disability","Salary Benefits (11) - CC(F-Cat4)/Fund(F-VM)/WO(M)/Act(M)/EG(M)/AT(M)","IS","5824","GL","Active"]
["5825","Benefit Premiums - Long Term Disability","Salary Benefits (11) - CC(F-Cat4)/Fund(F-VM)/WO(M)/Act(M)/EG(M)/AT(M)","IS","5825","GL","Active"]
["5826","EI Rebate Benefit Expense","Salary Benefits (11) - CC(F-Cat4)/Fund(F-VM)/WO(M)/Act(M)/EG(M)/AT(M)","IS","5826","GL","Active"]
["5827","Employee Assistance Program - Employee portion","Salary Benefits (11) - CC(F-Cat4)/Fund(F-VM)/WO(M)/Act(M)/EG(M)/AT(M)","IS","5827","GL","Active"]
["5848","EXTERNAL Salary recoveries","General ResNo Rule (8) - CC(F-Cat4)/Fund(F-VM)/RESNO(O)/WO(M)/Act(M)","IS","5848","GL","Active"]
["5849","TEMP ACCOUNT OPENING BAL. - Consolidated Benefit Costs","General ResNo Rule (8) - CC(F-Cat4)/Fund(F-VM)/RESNO(O)/WO(M)/Act(M)","IS","","GL","Closed"]
["5850","VIU Paid Staff Courses","Salaries (4) - CC(F-Cat4)/Fund(F-VM)/RESNO(M)/WO(M)/ACT(M)/AT(M)","IS","5850","GL","Active"]
["5899","FORECAST Benefits - Employer costs and Premiums","Salaries (4) - CC(F-Cat4)/Fund(F-VM)/RESNO(M)/WO(M)/ACT(M)/AT(M)","IS","5899","GL","Active"]
["6000","Services - Budget","General Rev and Exp (7) - CC(F-Cat4)/Fund(F-VM)/WO(M)/ACT(M)","IS","6000","GL","Active"]
["6000-1","Services (NT)","Tax Value Matrix (27) - CC(F-Cat4)/Fund(F-VM)/WO(M)/Act(M)","IS","6000","GL","Active"]
["6000-2","Services (G)","Tax Value Matrix (27) - CC(F-Cat4)/Fund(F-VM)/WO(M)/Act(M)","IS","6000","GL","Active"]
["6000-3","Services (GP)","Tax Value Matrix (27) - CC(F-Cat4)/Fund(F-VM)/WO(M)/Act(M)","IS","6000","GL","Active"]
["6001","Services - Service Fee from CBV - Budget","General Rev and Exp (7) - CC(F-Cat4)/Fund(F-VM)/WO(M)/ACT(M)","IS","6001","GL","Active"]
["6001-2","Services - Service Fee from CBV - SO","General Rev and Exp (7) - CC(F-Cat4)/Fund(F-VM)/WO(M)/ACT(M)","IS","6001","GL","Active"]
["6002","Service Fees - Banking","General Rev and Exp (7) - CC(F-Cat4)/Fund(F-VM)/WO(M)/ACT(M)","IS","","GL","Closed"]
["6003","Service Fees - Interest","General Rev and Exp (7) - CC(F-Cat4)/Fund(F-VM)/WO(M)/ACT(M)","IS","","GL","Closed"]
["6004","Fees","General Rev and Exp (7) - CC(F-Cat4)/Fund(F-VM)/WO(M)/ACT(M)","IS","","GL","Closed"]
["6005","Fee for Service - Individual / Sole Proprietor - Budget","General Rev and Exp (7) - CC(F-Cat4)/Fund(F-VM)/WO(M)/ACT(M)","IS","6005","GL","Active"]
["6005-1","Fee for Service - Individual / Sole Proprietor (NT)","Tax Value Matrix (27) - CC(F-Cat4)/Fund(F-VM)/WO(M)/Act(M)","IS","6005","GL","Active"]
["6005-2","Fee for Service - Individual / Sole Proprietor (G)","Tax Value Matrix (27) - CC(F-Cat4)/Fund(F-VM)/WO(M)/Act(M)","IS","6005","GL","Active"]
["6005-3","Fee for Service - Individual / Sole Proprietor (GP)","Tax Value Matrix (27) - CC(F-Cat4)/Fund(F-VM)/WO(M)/Act(M)","IS","6005","GL","Active"]
["6006","Non-Employee Honoraria","General Rev and Exp (7) - CC(F-Cat4)/Fund(F-VM)/WO(M)/ACT(M)","IS","6006","GL","Active"]
["6006-1","Non-Employee Honoraria (NT)","Tax Value Matrix (27) - CC(F-Cat4)/Fund(F-VM)/WO(M)/Act(M)","IS","6006","GL","Active"]
["6008","Service Fees - Credit Card","General Rev and Exp (7) - CC(F-Cat4)/Fund(F-VM)/WO(M)/ACT(M)","IS","","GL","Closed"]
["6010","Advertising & Promotion - Budget","General Rev and Exp (7) - CC(F-Cat4)/Fund(F-VM)/WO(M)/ACT(M)","IS","6010","GL","Active"]
["6010-1","Advertising & Promotion (NT)","Tax Value Matrix (27) - CC(F-Cat4)/Fund(F-VM)/WO(M)/Act(M)","IS","6010","GL","Active"]
["6010-2","Advertising & Promotion (G)","Tax Value Matrix (27) - CC(F-Cat4)/Fund(F-VM)/WO(M)/Act(M)","IS","6010","GL","Active"]
["6010-3","Advertising & Promotion (GP)","Tax Value Matrix (27) - CC(F-Cat4)/Fund(F-VM)/WO(M)/Act(M)","IS","6010","GL","Active"]
["6015","Hospitality - Budget","General Rev and Exp (7) - CC(F-Cat4)/Fund(F-VM)/WO(M)/ACT(M)","IS","6015","GL","Active"]
["6015-1","Hospitality - External (NT)","Tax Value Matrix (27) - CC(F-Cat4)/Fund(F-VM)/WO(M)/Act(M)","IS","6015","GL","Active"]
["6015-2","Hospitality - External (G)","Tax Value Matrix (27) - CC(F-Cat4)/Fund(F-VM)/WO(M)/Act(M)","IS","6015","GL","Active"]
["6015-3","Hospitality - External (GP)","Tax Value Matrix (27) - CC(F-Cat4)/Fund(F-VM)/WO(M)/Act(M)","IS","6015","GL","Active"]
["6020","Fees and Memberships - Institutional - Budget","General Rev and Exp (7) - CC(F-Cat4)/Fund(F-VM)/WO(M)/ACT(M)","IS","6020","GL","Active"]
["6020-1","Fees and Memberships - Institutional (NT)","Tax Value Matrix (27) - CC(F-Cat4)/Fund(F-VM)/WO(M)/Act(M)","IS","6020","GL","Active"]
["6020-2","Fees and Memberships - Institutional (G)","Tax Value Matrix (27) - CC(F-Cat4)/Fund(F-VM)/WO(M)/Act(M)","IS","6020","GL","Active"]
["6025","Fees and Memberships - Employees - Budget","General Rev and Exp (7) - CC(F-Cat4)/Fund(F-VM)/WO(M)/ACT(M)","IS","6025","GL","Active"]
["6025-1","Fees and Memberships - Employee (NT)","Tax Value Matrix (Resno) (28) - CC(F-Cat4)/Fund(F-VM)/ResNo(M)/WO(M)/Act(M)","IS","6025","GL","Active"]
["6025-2","Fees and Memberships - Employee (G)","Tax Value Matrix (Resno) (28) - CC(F-Cat4)/Fund(F-VM)/ResNo(M)/WO(M)/Act(M)","IS","6025","GL","Active"]
["6030","Professional and Consulting Fees - Budget","General Rev and Exp (7) - CC(F-Cat4)/Fund(F-VM)/WO(M)/ACT(M)","IS","6030","GL","Active"]
["6030-1","Professional and Consulting Fees (NT)","Tax Value Matrix (27) - CC(F-Cat4)/Fund(F-VM)/WO(M)/Act(M)","IS","6030","GL","Active"]
["6030-2","Professional and Consulting Fees (G)","Tax Value Matrix (27) - CC(F-Cat4)/Fund(F-VM)/WO(M)/Act(M)","IS","6030","GL","Active"]
["6030-3","Professional and Consulting Fees (GP)","Tax Value Matrix (27) - CC(F-Cat4)/Fund(F-VM)/WO(M)/Act(M)","IS","6030","GL","Active"]
["6035","Bank Charges, Interest, and Credit Card Fees - Budget","General Rev and Exp (7) - CC(F-Cat4)/Fund(F-VM)/WO(M)/ACT(M)","IS","6035","GL","Active"]
["6035-1","Bank Charges, Interest, and Credit Card Fees (NT)","Tax Value Matrix (27) - CC(F-Cat4)/Fund(F-VM)/WO(M)/Act(M)","IS","6035","GL","Active"]
["6040","Payments to Service Partners - Budget","General Rev and Exp (7) - CC(F-Cat4)/Fund(F-VM)/WO(M)/ACT(M)","IS","6040","GL","Active"]
["6040-1","Payments to Service Partners (NT)","Tax Value Matrix (27) - CC(F-Cat4)/Fund(F-VM)/WO(M)/Act(M)","IS","6040","GL","Active"]
["6045","Software - Budget","General Rev and Exp (7) - CC(F-Cat4)/Fund(F-VM)/WO(M)/ACT(M)","IS","6045","GL","Active"]
["6045-1","Software (NT)","Tax Value Matrix (27) - CC(F-Cat4)/Fund(F-VM)/WO(M)/Act(M)","IS","6045","GL","Active"]
["6045-2","Software (G)","Tax Value Matrix (27) - CC(F-Cat4)/Fund(F-VM)/WO(M)/Act(M)","IS","6045","GL","Active"]
["6045-3","Software (GPI)","Tax Value Matrix (27) - CC(F-Cat4)/Fund(F-VM)/WO(M)/Act(M)","IS","6045","GL","Active"]
["6050","Foreign Exchange Gain / Loss - Budget","General Rev and Exp (7) - CC(F-Cat4)/Fund(F-VM)/WO(M)/ACT(M)","IS","6050","GL","Active"]
["6050-1","Foreign Exchange Gain / Loss","AP Exchange Rate Variation (26) -CC(F-Cat4)/Fund(F-VM)/WO(F-19150-1-1)/ACT(F-101)","IS","6050","GL","Active"]
["6100","Travel - Employee - Budget","General ResNo Rule (8) - CC(F-Cat4)/Fund(F-VM)/RESNO(O)/WO(M)/Act(M)","IS","6100","GL","Active"]
["6100-1","Travel - Employee (NT)","Tax Value Matrix (Resno) (28) - CC(F-Cat4)/Fund(F-VM)/ResNo(M)/WO(M)/Act(M)","IS","6100","GL","Active"]
["6100-2","Travel - Employee (G)","Tax Value Matrix (Resno) (28) - CC(F-Cat4)/Fund(F-VM)/ResNo(M)/WO(M)/Act(M)","IS","6100","GL","Active"]
["6100-3","Travel - Employee (GP)","Tax Value Matrix (Resno) (28) - CC(F-Cat4)/Fund(F-VM)/ResNo(M)/WO(M)/Act(M)","IS","6100","GL","Active"]
["6100-5","Travel - Employee (M)","Tax Value Matrix (Resno) (28) - CC(F-Cat4)/Fund(F-VM)/ResNo(M)/WO(M)/Act(M)","IS","6100","GL","Active"]
["6100-6","Travel - Employee (4/104)","Tax Value Matrix (Resno) (28) - CC(F-Cat4)/Fund(F-VM)/ResNo(M)/WO(M)/Act(M)","IS","6100","GL","Active"]
["6100-7","Travel - Employee (5/105)","Tax Value Matrix (Resno) (28) - CC(F-Cat4)/Fund(F-VM)/ResNo(M)/WO(M)/Act(M)","IS","6100","GL","Active"]
["6101","Staff Training","General ResNo Rule (8) - CC(F-Cat4)/Fund(F-VM)/RESNO(O)/WO(M)/Act(M)","IS","","GL","Closed"]
["6102","Articulation","General Rev and Exp (7) - CC(F-Cat4)/Fund(F-VM)/WO(M)/ACT(M)","IS","","GL","Closed"]
["6103","Non-Employee Travel","General Rev and Exp (7) - CC(F-Cat4)/Fund(F-VM)/WO(M)/ACT(M)","IS","","GL","Closed"]
["6105","Travel - Non Employee - Budget","General Rev and Exp (7) - CC(F-Cat4)/Fund(F-VM)/WO(M)/ACT(M)","IS","6105","GL","Active"]
["6105-1","Travel - Non Employee (NT)","Tax Value Matrix (27) - CC(F-Cat4)/Fund(F-VM)/WO(M)/Act(M)","IS","6105","GL","Active"]
["6105-2","Travel - Non Employee (G)","Tax Value Matrix (27) - CC(F-Cat4)/Fund(F-VM)/WO(M)/Act(M)","IS","6105","GL","Active"]
["6105-3","Travel - Non Employee (GP)","Tax Value Matrix (27) - CC(F-Cat4)/Fund(F-VM)/WO(M)/Act(M)","IS","6105","GL","Active"]
["6105-5","Travel - Non Employee (M)","Tax Value Matrix (27) - CC(F-Cat4)/Fund(F-VM)/WO(M)/Act(M)","IS","6105","GL","Active"]
["6105-6","Travel - Non Employee (4/104)","Tax Value Matrix (27) - CC(F-Cat4)/Fund(F-VM)/WO(M)/Act(M)","IS","6105","GL","Active"]
["6105-7","Travel - Non Employee (5/105)","Tax Value Matrix (27) - CC(F-Cat4)/Fund(F-VM)/WO(M)/Act(M)","IS","6105","GL","Active"]
["6110","Training - Employee - Budget","General Rev and Exp (7) - CC(F-Cat4)/Fund(F-VM)/WO(M)/ACT(M)","IS","6110","GL","Active"]
["6110-1","Training - Employee (NT)","Tax Value Matrix (Resno) (28) - CC(F-Cat4)/Fund(F-VM)/ResNo(M)/WO(M)/Act(M)","IS","6110","GL","Active"]
["6110-2","Training - Employee (G)","Tax Value Matrix (Resno) (28) - CC(F-Cat4)/Fund(F-VM)/ResNo(M)/WO(M)/Act(M)","IS","6110","GL","Active"]
["6110-3","Training - Employee (GP)","Tax Value Matrix (Resno) (28) - CC(F-Cat4)/Fund(F-VM)/ResNo(M)/WO(M)/Act(M)","IS","6110","GL","Active"]
["6111","Training - VIU Courses Paid for Staff - SLED - Budget","General Rev and Exp (7) - CC(F-Cat4)/Fund(F-VM)/WO(M)/ACT(M)","IS","6111","GL","Active"]
["6111-1","Training - VIU Courses Paid for Staff - SLED","General Rev and Exp (7) - CC(F-Cat4)/Fund(F-VM)/WO(M)/ACT(M)","IS","6111","GL","Active"]
["6115","Training- Institutional - Budget","General Rev and Exp (7) - CC(F-Cat4)/Fund(F-VM)/WO(M)/ACT(M)","IS","6115","GL","Active"]
["6115-1","Training - Institutional (NT)","Tax Value Matrix (27) - CC(F-Cat4)/Fund(F-VM)/WO(M)/Act(M)","IS","6115","GL","Active"]
["6115-2","Training - Institutional (G)","Tax Value Matrix (27) - CC(F-Cat4)/Fund(F-VM)/WO(M)/Act(M)","IS","6115","GL","Active"]
["6115-3","Training - Institutional (GP)","Tax Value Matrix (27) - CC(F-Cat4)/Fund(F-VM)/WO(M)/Act(M)","IS","6115","GL","Active"]
["6200","Tuition Bursary/Scholarships - Budget","General Rev and Exp (7) - CC(F-Cat4)/Fund(F-VM)/WO(M)/ACT(M)","IS","6200","GL","Active"]
["6200-1","Tuition Bursary/Scholarships (NT)","Tax Value Matrix (27) - CC(F-Cat4)/Fund(F-VM)/WO(M)/Act(M)","IS","6200","GL","Active"]
["6200-2","Tuition Bursary/Scholarships (G)","Tax Value Matrix (27) - CC(F-Cat4)/Fund(F-VM)/WO(M)/Act(M)","IS","6200","GL","Active"]
["6200-3","Tuition Bursary/Scholarships (GP)","Tax Value Matrix (27) - CC(F-Cat4)/Fund(F-VM)/WO(M)/Act(M)","IS","6200","GL","Active"]
["6300","Repairs and Maintenance - Furniture  & Equipment - Budget","General Rev and Exp (7) - CC(F-Cat4)/Fund(F-VM)/WO(M)/ACT(M)","IS","6300","GL","Active"]
["6300-1","Repair and Maintenance - Furniture & Equipment (NT)","Tax Value Matrix (27) - CC(F-Cat4)/Fund(F-VM)/WO(M)/Act(M)","IS","6300","GL","Active"]
["6300-2","Repair and Maintenance - Furniture & Equipment (G)","Tax Value Matrix (27) - CC(F-Cat4)/Fund(F-VM)/WO(M)/Act(M)","IS","6300","GL","Active"]
["6300-3","Repair and Maintenance - Furniture & Equipment (GP)","Tax Value Matrix (27) - CC(F-Cat4)/Fund(F-VM)/WO(M)/Act(M)","IS","6300","GL","Active"]
["6301","R&M - Vehicles","General Rev and Exp (7) - CC(F-Cat4)/Fund(F-VM)/WO(M)/ACT(M)","IS","","GL","Closed"]
["6302","R&M - Buildings","General Rev and Exp (7) - CC(F-Cat4)/Fund(F-VM)/WO(M)/ACT(M)","IS","","GL","Closed"]
["6303","Safety Equipment","General Rev and Exp (7) - CC(F-Cat4)/Fund(F-VM)/WO(M)/ACT(M)","IS","","GL","Closed"]
["6305","Repairs and Maintenance - Vehicles - Budget","General Rev and Exp (7) - CC(F-Cat4)/Fund(F-VM)/WO(M)/ACT(M)","IS","6305","GL","Active"]
["6305-2","Repair and Maintenance - Vehicles (G)","Tax Value Matrix (27) - CC(F-Cat4)/Fund(F-VM)/WO(M)/Act(M)","IS","6305","GL","Active"]
["6305-3","Repair and Maintenance - Vehicles (GP)","Tax Value Matrix (27) - CC(F-Cat4)/Fund(F-VM)/WO(M)/Act(M)","IS","6305","GL","Active"]
["6310","Repairs and Maintenance - Facilities - Budget","General Rev and Exp (7) - CC(F-Cat4)/Fund(F-VM)/WO(M)/ACT(M)","IS","6310","GL","Active"]
["6310-1","Repair and Maintenance - Facilities (GP)","Tax Value Matrix (27) - CC(F-Cat4)/Fund(F-VM)/WO(M)/Act(M)","IS","6310","GL","Active"]
["6310-2","Repair and Maintenance - Facilities (G)","Tax Value Matrix (27) - CC(F-Cat4)/Fund(F-VM)/WO(M)/Act(M)","IS","6310","GL","Active"]
["6310-3","Repair and Maintenance - Facilities (GP)","Tax Value Matrix (27) - CC(F-Cat4)/Fund(F-VM)/WO(M)/Act(M)","IS","6310","GL","Active"]
["6320","Vehicle Fuel - Budget","General Rev and Exp (7) - CC(F-Cat4)/Fund(F-VM)/WO(M)/ACT(M)","IS","6320","GL","Active"]
["6320-2","Vehicle Fuel (G)","Tax Value Matrix (27) - CC(F-Cat4)/Fund(F-VM)/WO(M)/Act(M)","IS","6320","GL","Active"]
["6325","Rental and Lease - Budget","General Rev and Exp (7) - CC(F-Cat4)/Fund(F-VM)/WO(M)/ACT(M)","IS","6325","GL","Active"]
["6325-1","Rental and Lease (NT)","Tax Value Matrix (27) - CC(F-Cat4)/Fund(F-VM)/WO(M)/Act(M)","IS","6325","GL","Active"]
["6325-2","Rental and Lease (G)","Tax Value Matrix (27) - CC(F-Cat4)/Fund(F-VM)/WO(M)/Act(M)","IS","6325","GL","Active"]
["6325-3","Rental and Lease (GP)","Tax Value Matrix (27) - CC(F-Cat4)/Fund(F-VM)/WO(M)/Act(M)","IS","6325","GL","Active"]
["6400","Utilities - Budget","General Rev and Exp (7) - CC(F-Cat4)/Fund(F-VM)/WO(M)/ACT(M)","IS","6400","GL","Active"]
["6400-1","Utilities (NT)","Tax Value Matrix (27) - CC(F-Cat4)/Fund(F-VM)/WO(M)/Act(M)","IS","6400","GL","Active"]
["6400-2","Utilities (G)","Tax Value Matrix (27) - CC(F-Cat4)/Fund(F-VM)/WO(M)/Act(M)","IS","6400","GL","Active"]
["6400-3","Utilities (GP)","Tax Value Matrix (27) - CC(F-Cat4)/Fund(F-VM)/WO(M)/Act(M)","IS","6400","GL","Active"]
["6401","Property Tax","General Rev and Exp (7) - CC(F-Cat4)/Fund(F-VM)/WO(M)/ACT(M)","IS","","GL","Closed"]
["6402","Phone","General ResNo Rule (8) - CC(F-Cat4)/Fund(F-VM)/RESNO(O)/WO(M)/Act(M)","IS","","GL","Closed"]
["6403","Insurance Premiums","General Rev and Exp (7) - CC(F-Cat4)/Fund(F-VM)/WO(M)/ACT(M)","IS","","GL","Closed"]
["6404","Carbon Offset","General Rev and Exp (7) - CC(F-Cat4)/Fund(F-VM)/WO(M)/ACT(M)","IS","","GL","Closed"]
["6405","Phone - Budget","General Rev and Exp (7) - CC(F-Cat4)/Fund(F-VM)/WO(M)/ACT(M)","IS","6405","GL","Active"]
["6405-1","Phone (NT)","Tax Value Matrix (27) - CC(F-Cat4)/Fund(F-VM)/WO(M)/Act(M)","IS","6405","GL","Active"]
["6405-2","Phone (G)","Tax Value Matrix (27) - CC(F-Cat4)/Fund(F-VM)/WO(M)/Act(M)","IS","6405","GL","Active"]
["6405-3","Phone (GP)","Tax Value Matrix (27) - CC(F-Cat4)/Fund(F-VM)/WO(M)/Act(M)","IS","6405","GL","Active"]
["6410","Insurance - Budget","General Rev and Exp (7) - CC(F-Cat4)/Fund(F-VM)/WO(M)/ACT(M)","IS","6410","GL","Active"]
["6410-1","Insurance (NT)","Tax Value Matrix (27) - CC(F-Cat4)/Fund(F-VM)/WO(M)/Act(M)","IS","6410","GL","Active"]
["6500","Supplies - Budget","General Rev and Exp (7) - CC(F-Cat4)/Fund(F-VM)/WO(M)/ACT(M)","IS","6500","GL","Active"]
["6500-1","Supplies (NT)","Tax Value Matrix (27) - CC(F-Cat4)/Fund(F-VM)/WO(M)/Act(M)","IS","6500","GL","Active"]
["6500-2","Supplies (G)","Tax Value Matrix (27) - CC(F-Cat4)/Fund(F-VM)/WO(M)/Act(M)","IS","6500","GL","Active"]
["6500-3","Supplies (GP)","Tax Value Matrix (27) - CC(F-Cat4)/Fund(F-VM)/WO(M)/Act(M)","IS","6500","GL","Active"]
["6501","Paper Supplies - Cafeteria","General Rev and Exp (7) - CC(F-Cat4)/Fund(F-VM)/WO(M)/ACT(M)","IS","","GL","Closed"]
["6502","Hospitality","General ResNo Rule (8) - CC(F-Cat4)/Fund(F-VM)/RESNO(O)/WO(M)/Act(M)","IS","","GL","Closed"]
["6503","First Aid","General Rev and Exp (7) - CC(F-Cat4)/Fund(F-VM)/WO(M)/ACT(M)","IS","","GL","Closed"]
["6504","Postage and Courier","General Rev and Exp (7) - CC(F-Cat4)/Fund(F-VM)/WO(M)/ACT(M)","IS","","GL","Closed"]
["6505","Office Supplies and Stationery - Budget","General ResNo Rule (8) - CC(F-Cat4)/Fund(F-VM)/RESNO(O)/WO(M)/Act(M)","IS","6505","GL","Active"]
["6505-1","Office Supplies and Stationery (NT)","Tax Value Matrix (27) - CC(F-Cat4)/Fund(F-VM)/WO(M)/Act(M)","IS","6505","GL","Active"]
["6505-3","Office Supplies and Stationery (GP)","Tax Value Matrix (27) - CC(F-Cat4)/Fund(F-VM)/WO(M)/Act(M)","IS","6505","GL","Active"]
["6506","Major Supplies - Computers","General Rev and Exp (7) - CC(F-Cat4)/Fund(F-VM)/WO(M)/ACT(M)","IS","","GL","Closed"]
["6507","Major Supplies - Equipment","General Rev and Exp (7) - CC(F-Cat4)/Fund(F-VM)/WO(M)/ACT(M)","IS","","GL","Closed"]
["6508","Inter-Library Loan","General Rev and Exp (7) - CC(F-Cat4)/Fund(F-VM)/WO(M)/ACT(M)","IS","","GL","Closed"]
["6509","Special Event Expenditures","General Rev and Exp (7) - CC(F-Cat4)/Fund(F-VM)/WO(M)/ACT(M)","IS","","GL","Closed"]
["6510","Software - Budget","General Rev and Exp (7) - CC(F-Cat4)/Fund(F-VM)/WO(M)/ACT(M)","IS","6510","GL","Closed"]
["6510-1","Software (NT)","Tax Value Matrix (27) - CC(F-Cat4)/Fund(F-VM)/WO(M)/Act(M)","IS","6510","GL","Closed"]
["6510-2","Software (G)","Tax Value Matrix (27) - CC(F-Cat4)/Fund(F-VM)/WO(M)/Act(M)","IS","6510","GL","Closed"]
["6510-3","Software (GP)","Tax Value Matrix (27) - CC(F-Cat4)/Fund(F-VM)/WO(M)/Act(M)","IS","6510","GL","Closed"]
["6511","Instruction - Program Related Consumables","General Rev and Exp (7) - CC(F-Cat4)/Fund(F-VM)/WO(M)/ACT(M)","IS","","GL","Closed"]
["6512","Instruction - Book purchases (External)","General Rev and Exp (7) - CC(F-Cat4)/Fund(F-VM)/WO(M)/ACT(M)","IS","","GL","Closed"]
["6513","Printing and Duplicating (External)","General Rev and Exp (7) - CC(F-Cat4)/Fund(F-VM)/WO(M)/ACT(M)","IS","","GL","Closed"]
["6514","Gifts in Kind - Expense - to be eliminated?","General Rev and Exp (7) - CC(F-Cat4)/Fund(F-VM)/WO(M)/ACT(M)","IS","","GL","Closed"]
["6515","Printing and Duplicating - Budget","General Rev and Exp (7) - CC(F-Cat4)/Fund(F-VM)/WO(M)/ACT(M)","IS","6515","GL","Active"]
["6515-3","Printing and Duplicating (GP)","Tax Value Matrix (27) - CC(F-Cat4)/Fund(F-VM)/WO(M)/Act(M)","IS","6515","GL","Active"]
["6520","Postage, Courier, and Freight - Budget","General Rev and Exp (7) - CC(F-Cat4)/Fund(F-VM)/WO(M)/ACT(M)","IS","6520","GL","Active"]
["6520-1","Postage, Courier, and Freight (NT)","Tax Value Matrix (27) - CC(F-Cat4)/Fund(F-VM)/WO(M)/Act(M)","IS","6520","GL","Active"]
["6520-2","Postage, Courier, and Freight (G)","Tax Value Matrix (27) - CC(F-Cat4)/Fund(F-VM)/WO(M)/Act(M)","IS","6520","GL","Active"]
["6520-3","Postage, Courier, and Freight (GP)","Tax Value Matrix (27) - CC(F-Cat4)/Fund(F-VM)/WO(M)/Act(M)","IS","6520","GL","Active"]
["6525","Miscellaneous Employee Expenses - Budget","General Rev and Exp (7) - CC(F-Cat4)/Fund(F-VM)/WO(M)/ACT(M)","IS","6525","GL","Active"]
["6525-1","Miscellaneous Employee Expenses (NT)","Tax Value Matrix (Resno) (28) - CC(F-Cat4)/Fund(F-VM)/ResNo(M)/WO(M)/Act(M)","IS","6525","GL","Active"]
["6525-2","Miscellaneous Employee Expenses (G)","Tax Value Matrix (Resno) (28) - CC(F-Cat4)/Fund(F-VM)/ResNo(M)/WO(M)/Act(M)","IS","6525","GL","Active"]
["6525-3","Miscellaneous Employee Expenses (GP)","Tax Value Matrix (Resno) (28) - CC(F-Cat4)/Fund(F-VM)/ResNo(M)/WO(M)/Act(M)","IS","6525","GL","Active"]
["6525-6","Miscellaneous Employee Expenses (4/104)","Tax Value Matrix (Resno) (28) - CC(F-Cat4)/Fund(F-VM)/ResNo(M)/WO(M)/Act(M)","IS","6525","GL","Active"]
["6525-7","Miscellaneous Employee Expenses (5/105)","Tax Value Matrix (Resno) (28) - CC(F-Cat4)/Fund(F-VM)/ResNo(M)/WO(M)/Act(M)","IS","6525","GL","Active"]
["6530","Gifts in Kind - Expense - Budget","General Rev and Exp (7) - CC(F-Cat4)/Fund(F-VM)/WO(M)/ACT(M)","IS","6530","GL","Active"]
["6530-1","Gifts in Kind - Expense (NT)","Tax Value Matrix (27) - CC(F-Cat4)/Fund(F-VM)/WO(M)/Act(M)","IS","6530","GL","Active"]
["6600","Cost of Goods Sold - Budget","General Rev and Exp (7) - CC(F-Cat4)/Fund(F-VM)/WO(M)/ACT(M)","IS","6600","GL","Active"]
["6600-1","Cost of Goods Sold (NT)","Tax Value Matrix (27) - CC(F-Cat4)/Fund(F-VM)/WO(M)/Act(M)","IS","6600","GL","Active"]
["6600-2","Cost of Goods Sold (G)","Tax Value Matrix (27) - CC(F-Cat4)/Fund(F-VM)/WO(M)/Act(M)","IS","6600","GL","Active"]
["6600-3","Cost of Goods Sold (GP)","Tax Value Matrix (27) - CC(F-Cat4)/Fund(F-VM)/WO(M)/Act(M)","IS","6600","GL","Active"]
["6601","Culinary Foods purchases","General Rev and Exp (7) - CC(F-Cat4)/Fund(F-VM)/WO(M)/ACT(M)","IS","","GL","Closed"]
["6602","Hospitality Food","General Rev and Exp (7) - CC(F-Cat4)/Fund(F-VM)/WO(M)/ACT(M)","IS","","GL","Closed"]
["6603","Food Services Food","General Rev and Exp (7) - CC(F-Cat4)/Fund(F-VM)/WO(M)/ACT(M)","IS","","GL","Closed"]
["6604","Liquor purchases","General Rev and Exp (7) - CC(F-Cat4)/Fund(F-VM)/WO(M)/ACT(M)","IS","","GL","Closed"]
["6605","Freight and Brokerage Fees - Budget","General Rev and Exp (7) - CC(F-Cat4)/Fund(F-VM)/WO(M)/ACT(M)","IS","6605","GL","Active"]
["6605-1","Freight and Brokerage Fees (NT)","Tax Value Matrix (27) - CC(F-Cat4)/Fund(F-VM)/WO(M)/Act(M)","IS","6605","GL","Active"]
["6605-2","Freight and Brokerage Fees (G)","Tax Value Matrix (27) - CC(F-Cat4)/Fund(F-VM)/WO(M)/Act(M)","IS","6605","GL","Active"]
["6605-3","Freight and Brokerage Fees (GP)","Tax Value Matrix (27) - CC(F-Cat4)/Fund(F-VM)/WO(M)/Act(M)","IS","6605","GL","Active"]
["6606","Freight In","General Rev and Exp (7) - CC(F-Cat4)/Fund(F-VM)/WO(M)/ACT(M)","IS","","GL","Closed"]
["6607","Freight Out","General Rev and Exp (7) - CC(F-Cat4)/Fund(F-VM)/WO(M)/ACT(M)","IS","","GL","Closed"]
["6608","Brokerage Fees","General Rev and Exp (7) - CC(F-Cat4)/Fund(F-VM)/WO(M)/ACT(M)","IS","","GL","Closed"]
["6609","Inventory adjustment","General Rev and Exp (7) - CC(F-Cat4)/Fund(F-VM)/WO(M)/ACT(M)","IS","6609","GL","Closed"]
["6610","Bad Debt Expense - Budget","General Rev and Exp (7) - CC(F-Cat4)/Fund(F-VM)/WO(M)/ACT(M)","IS","6610","GL","Closed"]
["6610-1","Bad Debt Expense (NT)","General Rev and Exp (7) - CC(F-Cat4)/Fund(F-VM)/WO(M)/ACT(M)","IS","6610","GL","Closed"]
["6611","Bad Debt Expense - Actuals","General Rev and Exp (7) - CC(F-Cat4)/Fund(F-VM)/WO(M)/ACT(M)","IS","6611","GL","Active"]
["6700","Bad Debt Expense","General Rev and Exp (7) - CC(F-Cat4)/Fund(F-VM)/WO(M)/ACT(M)","IS","","GL","Closed"]
["6800","Contributions To VIU FDN - Internally Funded - Budget","General Rev and Exp (7) - CC(F-Cat4)/Fund(F-VM)/WO(M)/ACT(M)","IS","6800","GL","Active"]
["6800-1","Contributions To VIU FDN - Internally Funded (NT)","Tax Value Matrix (27) - CC(F-Cat4)/Fund(F-VM)/WO(M)/Act(M)","IS","6800","GL","Active"]
["6801","Contributions To VIU FDN - Externally Funded - Budget","General Rev and Exp (7) - CC(F-Cat4)/Fund(F-VM)/WO(M)/ACT(M)","IS","6801","GL","Active"]
["6801-1","Contributions To VIU FDN - Externally Funded (NT)","Tax Value Matrix (27) - CC(F-Cat4)/Fund(F-VM)/WO(M)/Act(M)","IS","6801","GL","Active"]
["6805","Grants Distributed To External Agencies - Budget","General Rev and Exp (7) - CC(F-Cat4)/Fund(F-VM)/WO(M)/ACT(M)","IS","6805","GL","Active"]
["6805-1","Grants Distributed To External Agencies (NT)","Tax Value Matrix (27) - CC(F-Cat4)/Fund(F-VM)/WO(M)/Act(M)","IS","6805","GL","Active"]
["7000","Accretion Revenue on Deferred Capital Contributions - Provincial","Assets - DCC Revenue (9) - CC(F-9150)/Fund(F-50)/WO(M)/ACT(M-Default 500)/G(M)","IS","7000","GL","Active"]
["7001","Accretion Revenue on Deferred Capital Contributions - Federal","Assets - DCC Revenue (9) - CC(F-9150)/Fund(F-50)/WO(M)/ACT(M-Default 500)/G(M)","IS","7001","GL","Active"]
["7002","Accretion Revenue on Deferred Capital Contributions - Other","Assets - DCC Revenue (9) - CC(F-9150)/Fund(F-50)/WO(M)/ACT(M-Default 500)/G(M)","IS","7002","GL","Active"]
["7003","FA DCC Provincial Revenue - Leasehold Improvements","Assets (3) - CC(F-9150)/Fund(F-50)/WO(M)/ACT(M-Default 500)","IS","","GL","Closed"]
["7004","FA DCC Provincial Revenue - Library","Assets (3) - CC(F-9150)/Fund(F-50)/WO(M)/ACT(M-Default 500)","IS","","GL","Closed"]
["7005","FA DCC Provincial Revenue - Site Improvements","Assets (3) - CC(F-9150)/Fund(F-50)/WO(M)/ACT(M-Default 500)","IS","","GL","Closed"]
["7006","FA DCC Provincial Revenue - Vehicles","Assets (3) - CC(F-9150)/Fund(F-50)/WO(M)/ACT(M-Default 500)","IS","","GL","Closed"]
["7007","FA DCC Provincial Revenue - TBD","Assets (3) - CC(F-9150)/Fund(F-50)/WO(M)/ACT(M-Default 500)","IS","","GL","Closed"]
["7100","Capital Contributions Suspense - Provincial","Assets (3) - CC(F-9150)/Fund(F-50)/WO(M)/ACT(M-Default 500)","IS","7100","GL","Active"]
["7101","Capital Contributions Suspense - Federal","Assets (3) - CC(F-9150)/Fund(F-50)/WO(M)/ACT(M-Default 500)","IS","7101","GL","Active"]
["7102","Capital Contributions Suspense - Other","Assets (3) - CC(F-9150)/Fund(F-50)/WO(M)/ACT(M-Default 500)","IS","7102","GL","Active"]
["7103","FA DCC Federal Revenue - Leasehold Improvements","Assets (3) - CC(F-9150)/Fund(F-50)/WO(M)/ACT(M-Default 500)","IS","","GL","Closed"]
["7104","FA DCC Federal Revenue - Library","Assets (3) - CC(F-9150)/Fund(F-50)/WO(M)/ACT(M-Default 500)","IS","","GL","Closed"]
["7105","FA DCC Federal Revenue - Site Improvements","Assets (3) - CC(F-9150)/Fund(F-50)/WO(M)/ACT(M-Default 500)","IS","","GL","Closed"]
["7106","FA DCC Federal Revenue - Vehicles","Assets (3) - CC(F-9150)/Fund(F-50)/WO(M)/ACT(M-Default 500)","IS","","GL","Closed"]
["7107","FA DCC Federal Revenue - TBD","Assets (3) - CC(F-9150)/Fund(F-50)/WO(M)/ACT(M-Default 500)","IS","","GL","Closed"]
["7200","FA DCC Other Revenue - Buildings","Assets (3) - CC(F-9150)/Fund(F-50)/WO(M)/ACT(M-Default 500)","IS","","GL","Closed"]
["7201","FA DCC Other Revenue - Computers and Software","Assets (3) - CC(F-9150)/Fund(F-50)/WO(M)/ACT(M-Default 500)","IS","","GL","Closed"]
["7202","FA DCC Other Revenue - Furniture and Equipment","Assets (3) - CC(F-9150)/Fund(F-50)/WO(M)/ACT(M-Default 500)","IS","","GL","Closed"]
["7203","FA DCC Other Revenue - Leasehold Improvements","Assets (3) - CC(F-9150)/Fund(F-50)/WO(M)/ACT(M-Default 500)","IS","","GL","Closed"]
["7204","FA DCC Other Revenue - Library","Assets (3) - CC(F-9150)/Fund(F-50)/WO(M)/ACT(M-Default 500)","IS","","GL","Closed"]
["7205","FA DCC Other Revenue - Site Improvements","Assets (3) - CC(F-9150)/Fund(F-50)/WO(M)/ACT(M-Default 500)","IS","","GL","Closed"]
["7206","FA DCC Other Revenue - Vehicles","Assets (3) - CC(F-9150)/Fund(F-50)/WO(M)/ACT(M-Default 500)","IS","","GL","Closed"]
["7400","Capital Asset Adjustments - Gain (Loss) on Asset Disposal","Assets (3) - CC(F-9150)/Fund(F-50)/WO(M)/ACT(M-Default 500)","IS","7400","GL","Active"]
["7450","Capital Gain (Loss) - Other","Assets (3) - CC(F-9150)/Fund(F-50)/WO(M)/ACT(M-Default 500)","IS","7450","GL","Closed"]
["7499","Capital revenue - Suspense","Assets (3) - CC(F-9150)/Fund(F-50)/WO(M)/ACT(M-Default 500)","IS","7499","GL","Closed"]
["7500","Amortization Expense - New Building Construction","Assets (3) - CC(F-9150)/Fund(F-50)/WO(M)/ACT(M-Default 500)","IS","7500","GL","Active"]
["7501","Amortization Expense - Building Retrofit","Assets (3) - CC(F-9150)/Fund(F-50)/WO(M)/ACT(M-Default 500)","IS","7501","GL","Active"]
["7502","Amortization Expense - Computer Equipment","Assets (3) - CC(F-9150)/Fund(F-50)/WO(M)/ACT(M-Default 500)","IS","7502","GL","Active"]
["7503","Amortization Expense - Computer Software","Assets (3) - CC(F-9150)/Fund(F-50)/WO(M)/ACT(M-Default 500)","IS","7503","GL","Active"]
["7504","Amortization  Expense - Furniture","Assets (3) - CC(F-9150)/Fund(F-50)/WO(M)/ACT(M-Default 500)","IS","7504","GL","Active"]
["7505","Amortization Expense - Equipment","Assets (3) - CC(F-9150)/Fund(F-50)/WO(M)/ACT(M-Default 500)","IS","7505","GL","Active"]
["7506","Amortization Expense - Leasehold Improvements","Assets (3) - CC(F-9150)/Fund(F-50)/WO(M)/ACT(M-Default 500)","IS","7506","GL","Active"]
["7507","Amortization Expense - Library Books","Assets (3) - CC(F-9150)/Fund(F-50)/WO(M)/ACT(M-Default 500)","IS","7507","GL","Active"]
["7508","Amortization Expense - Site Improvements (Land)","Assets (3) - CC(F-9150)/Fund(F-50)/WO(M)/ACT(M-Default 500)","IS","7508","GL","Active"]
["7509","Amortization Expense - Vehicles","Assets (3) - CC(F-9150)/Fund(F-50)/WO(M)/ACT(M-Default 500)","IS","7509","GL","Active"]
["7550","Capital Asset Adjustments - Loss on Asset Disposal","Assets (3) - CC(F-9150)/Fund(F-50)/WO(M)/ACT(M-Default 500)","IS","7550","GL","Closed"]
["7555","Capital Asset Adjustments - Capital Asset Write-Down","Assets (3) - CC(F-9150)/Fund(F-50)/WO(M)/ACT(M-Default 500)","IS","7555","GL","Active"]
["7600","FA General Expenses","Assets (3) - CC(F-9150)/Fund(F-50)/WO(M)/ACT(M-Default 500)","IS","","GL","Closed"]
["7700","Capital Purchases - Buildings","Assets (3) - CC(F-9150)/Fund(F-50)/WO(M)/ACT(M-Default 500)","IS","7700","GL","Active"]
["7700-1","Capital Purchases - Buildings (NT)","Tax Value Matrix (27) - CC(F-Cat4)/Fund(F-VM)/WO(M)/Act(M)","IS","7700","GL","Active"]
["7700-2","Capital Purchases - Buildings (G)","Tax Value Matrix (27) - CC(F-Cat4)/Fund(F-VM)/WO(M)/Act(M)","IS","7700","GL","Active"]
["7700-3","Capital Purchases - Buildings (GP)","Tax Value Matrix (27) - CC(F-Cat4)/Fund(F-VM)/WO(M)/Act(M)","IS","7700","GL","Active"]
["7701","Capital Purchases - Building Retrofit","Assets (3) - CC(F-9150)/Fund(F-50)/WO(M)/ACT(M-Default 500)","IS","7701","GL","Active"]
["7701-1","Capital Purchases - Building Retrofit (NT)","Tax Value Matrix (27) - CC(F-Cat4)/Fund(F-VM)/WO(M)/Act(M)","IS","7701","GL","Active"]
["7701-2","Capital Purchases - Building Retrofit (G)","Tax Value Matrix (27) - CC(F-Cat4)/Fund(F-VM)/WO(M)/Act(M)","IS","7701","GL","Active"]
["7701-3","Capital Purchases - Building Retrofit (GP)","Tax Value Matrix (27) - CC(F-Cat4)/Fund(F-VM)/WO(M)/Act(M)","IS","7701","GL","Active"]
["7702","Capital Purchases - Computer Equipment","Assets (3) - CC(F-9150)/Fund(F-50)/WO(M)/ACT(M-Default 500)","IS","7702","GL","Active"]
["7702-2","Capital Purchases - Computer Equipment (G)","Tax Value Matrix (27) - CC(F-Cat4)/Fund(F-VM)/WO(M)/Act(M)","IS","7702","GL","Active"]
["7702-3","Capital Purchases - Computer Equipment (GP)","Tax Value Matrix (27) - CC(F-Cat4)/Fund(F-VM)/WO(M)/Act(M)","IS","7702","GL","Active"]
["7703","Capital Purchases - Network and Server Equipment","Assets (3) - CC(F-9150)/Fund(F-50)/WO(M)/ACT(M-Default 500)","IS","7703","GL","Active"]
["7703-2","Capital Purchases - Network and Server Equipment (G)","Tax Value Matrix (27) - CC(F-Cat4)/Fund(F-VM)/WO(M)/Act(M)","IS","7703","GL","Active"]
["7703-3","Capital Purchases - Network and Server Equipment (GP)","Tax Value Matrix (27) - CC(F-Cat4)/Fund(F-VM)/WO(M)/Act(M)","IS","7703","GL","Active"]
["7704","Capital Purchases - Computer Software","Assets (3) - CC(F-9150)/Fund(F-50)/WO(M)/ACT(M-Default 500)","IS","7704","GL","Active"]
["7704-2","Capital Purchases - Computer Software (G)","Tax Value Matrix (27) - CC(F-Cat4)/Fund(F-VM)/WO(M)/Act(M)","IS","7704","GL","Active"]
["7704-3","Capital Purchases - Computer Software (GP)","Tax Value Matrix (27) - CC(F-Cat4)/Fund(F-VM)/WO(M)/Act(M)","IS","7704","GL","Active"]
["7705","Capital Purchases - Enterprise Systems","Assets (3) - CC(F-9150)/Fund(F-50)/WO(M)/ACT(M-Default 500)","IS","7705","GL","Active"]
["7705-2","Capital Purchases - Enterprise Systems (G)","Tax Value Matrix (27) - CC(F-Cat4)/Fund(F-VM)/WO(M)/Act(M)","IS","7705","GL","Active"]
["7705-3","Capital Purchases - Enterprise Systems (GP)","Tax Value Matrix (27) - CC(F-Cat4)/Fund(F-VM)/WO(M)/Act(M)","IS","7705","GL","Active"]
["7706","Capital Purchases - Furniture","Assets (3) - CC(F-9150)/Fund(F-50)/WO(M)/ACT(M-Default 500)","IS","7706","GL","Active"]
["7706-2","Capital Purchases - Furniture (G)","Tax Value Matrix (27) - CC(F-Cat4)/Fund(F-VM)/WO(M)/Act(M)","IS","7706","GL","Active"]
["7706-3","Capital Purchases - Furniture (GP)","Tax Value Matrix (27) - CC(F-Cat4)/Fund(F-VM)/WO(M)/Act(M)","IS","7706","GL","Active"]
["7707","Capital Purchases - Equipment","Assets (3) - CC(F-9150)/Fund(F-50)/WO(M)/ACT(M-Default 500)","IS","7707","GL","Active"]
["7707-2","Capital Purchases - Equipment (G)","Tax Value Matrix (27) - CC(F-Cat4)/Fund(F-VM)/WO(M)/Act(M)","IS","7707","GL","Active"]
["7707-3","Capital Purchases - Equipment (GP)","Tax Value Matrix (27) - CC(F-Cat4)/Fund(F-VM)/WO(M)/Act(M)","IS","7707","GL","Active"]
["7708","Capital Purchases - Leasehold Improvements","Assets (3) - CC(F-9150)/Fund(F-50)/WO(M)/ACT(M-Default 500)","IS","7708","GL","Active"]
["7708-1","Capital Purchases - Leasehold Improvements (NT)","Tax Value Matrix (27) - CC(F-Cat4)/Fund(F-VM)/WO(M)/Act(M)","IS","7708","GL","Active"]
["7708-2","Capital Purchases - Leasehold Improvements (G)","Tax Value Matrix (27) - CC(F-Cat4)/Fund(F-VM)/WO(M)/Act(M)","IS","7708","GL","Active"]
["7708-3","Capital Purchases - Leasehold Improvements (GP)","Tax Value Matrix (27) - CC(F-Cat4)/Fund(F-VM)/WO(M)/Act(M)","IS","7708","GL","Active"]
["7709","Capital Purchases - Library Books","Assets (3) - CC(F-9150)/Fund(F-50)/WO(M)/ACT(M-Default 500)","IS","7709","GL","Active"]
["7709-2","Capital Purchases - Library Books (G)","Tax Value Matrix (27) - CC(F-Cat4)/Fund(F-VM)/WO(M)/Act(M)","IS","7709","GL","Active"]
["7710","Capital Purchases - Site Improvements (Land)","Assets (3) - CC(F-9150)/Fund(F-50)/WO(M)/ACT(M-Default 500)","IS","7710","GL","Active"]
["7710-2","Capital Purchases - Site Improvements (Land) (G)","Tax Value Matrix (27) - CC(F-Cat4)/Fund(F-VM)/WO(M)/Act(M)","IS","7710","GL","Active"]
["7710-3","Capital Purchases - Site Improvements (Land) (GP)","Tax Value Matrix (27) - CC(F-Cat4)/Fund(F-VM)/WO(M)/Act(M)","IS","7710","GL","Active"]
["7711","Capital Purchases - Vehicles","Assets (3) - CC(F-9150)/Fund(F-50)/WO(M)/ACT(M-Default 500)","IS","7711","GL","Active"]
["7711-2","Capital Purchases - Vehicles (G)","Tax Value Matrix (27) - CC(F-Cat4)/Fund(F-VM)/WO(M)/Act(M)","IS","7711","GL","Active"]
["7711-3","Capital Purchases - Vehicles (GP)","Tax Value Matrix (27) - CC(F-Cat4)/Fund(F-VM)/WO(M)/Act(M)","IS","7711","GL","Active"]
["7712","Capital Purchases - Land","Assets (3) - CC(F-9150)/Fund(F-50)/WO(M)/ACT(M-Default 500)","IS","7712","GL","Active"]
["7712-3","Capital Purchases - Land (GP)","Tax Value Matrix (27) - CC(F-Cat4)/Fund(F-VM)/WO(M)/Act(M)","IS","7712","GL","Active"]
["7800","Capital Transfers","Assets (3) - CC(F-9150)/Fund(F-50)/WO(M)/ACT(M-Default 500)","IS","7800","GL","Active"]
["7800-99","Capital Transfers - Buildings - Transfers","Assets (3) - CC(F-9150)/Fund(F-50)/WO(M)/ACT(M-Default 500)","IS","7800","GL","Active"]
["7801-99","Capital Transfers - Building Retrofit - Transfers","Assets (3) - CC(F-9150)/Fund(F-50)/WO(M)/ACT(M-Default 500)","IS","7800","GL","Active"]
["7802-99","Capital Transfers - Computer Equipment - Transfers","Assets (3) - CC(F-9150)/Fund(F-50)/WO(M)/ACT(M-Default 500)","IS","7800","GL","Active"]
["7803-99","Capital Transfers - Network and Server Equipment - Transfers","Assets (3) - CC(F-9150)/Fund(F-50)/WO(M)/ACT(M-Default 500)","IS","7800","GL","Active"]
["7804-99","Capital Transfers - Computer Software - Transfers","Assets (3) - CC(F-9150)/Fund(F-50)/WO(M)/ACT(M-Default 500)","IS","7800","GL","Active"]
["7805-99","Capital Transfers - Enterprise Systems - Transfers","Assets (3) - CC(F-9150)/Fund(F-50)/WO(M)/ACT(M-Default 500)","IS","7800","GL","Active"]
["7806-99","Capital Transfers - Furniture - Transfers","Assets (3) - CC(F-9150)/Fund(F-50)/WO(M)/ACT(M-Default 500)","IS","7800","GL","Active"]
["7807-99","Capital Transfers - Equipment - Transfers","Assets (3) - CC(F-9150)/Fund(F-50)/WO(M)/ACT(M-Default 500)","IS","7800","GL","Active"]
["7808-99","Capital Transfers - Leasehold Improvements - Transfers","Assets (3) - CC(F-9150)/Fund(F-50)/WO(M)/ACT(M-Default 500)","IS","7800","GL","Active"]
["7809-99","Capital Transfers - Library Books - Transfers","Assets (3) - CC(F-9150)/Fund(F-50)/WO(M)/ACT(M-Default 500)","IS","7800","GL","Active"]
["7810-99","Capital Transfers - Site Improvements (Land) - Transfers","Assets (3) - CC(F-9150)/Fund(F-50)/WO(M)/ACT(M-Default 500)","IS","7800","GL","Active"]
["7811-99","Capital Transfers - Vehicles - Transfers","Assets (3) - CC(F-9150)/Fund(F-50)/WO(M)/ACT(M-Default 500)","IS","7800","GL","Active"]
["7812-99","Capital Transfers - Land - Transfers","Assets (3) - CC(F-9150)/Fund(F-50)/WO(M)/ACT(M-Default 500)","IS","7800","GL","Active"]
["7900","TBD","Assets (3) - CC(F-9150)/Fund(F-50)/WO(M)/ACT(M-Default 500)","IS","7800","GL","Closed"]
["7901","TBD","Assets (3) - CC(F-9150)/Fund(F-50)/WO(M)/ACT(M-Default 500)","IS","7800","GL","Closed"]
["7950","TBD","Assets (3) - CC(F-9150)/Fund(F-50)/WO(M)/ACT(M-Default 500)","IS","7800","GL","Closed"]
["7999","TBD","Assets (3) - CC(F-9150)/Fund(F-50)/WO(M)/ACT(M-Default 500)","IS","7800","GL","Closed"]
["8000","Internal Consumption - Revenue","General Rev and Exp (7) - CC(F-Cat4)/Fund(F-VM)/WO(M)/ACT(M)","IS","8000","GL","Active"]
["8001","Internal Consumption - Merchandise Sales","General Rev and Exp (7) - CC(F-Cat4)/Fund(F-VM)/WO(M)/ACT(M)","IS","8001","GL","Active"]
["8002","Internal Consumption - Admissions Sales","General Rev and Exp (7) - CC(F-Cat4)/Fund(F-VM)/WO(M)/ACT(M)","IS","8002","GL","Active"]
["8003","Internal Consumption - Facilities (recoveries)","General Rev and Exp (7) - CC(F-Cat4)/Fund(F-VM)/WO(M)/ACT(M)","IS","8003","GL","Active"]
["8004","Internal Consumption - Catering Sales","General Rev and Exp (7) - CC(F-Cat4)/Fund(F-VM)/WO(M)/ACT(M)","IS","8004","GL","Active"]
["8005","Internal Consumption - Campus Store Sales","General Rev and Exp (7) - CC(F-Cat4)/Fund(F-VM)/WO(M)/ACT(M)","IS","8005","GL","Active"]
["8006","Internal Consumption - Campus Store Book Sales","General Rev and Exp (7) - CC(F-Cat4)/Fund(F-VM)/WO(M)/ACT(M)","IS","8006","GL","Active"]
["8007","Internal Consumption - Printing and Duplicating Sales","General Rev and Exp (7) - CC(F-Cat4)/Fund(F-VM)/WO(M)/ACT(M)","IS","8007","GL","Active"]
["8008","Internal Consumption - Housing Revenue","General Rev and Exp (7) - CC(F-Cat4)/Fund(F-VM)/WO(M)/ACT(M)","IS","8008","GL","Active"]
["8009","Internal Consumption - Gifts in Kind Recoveries","General Rev and Exp (7) - CC(F-Cat4)/Fund(F-VM)/WO(M)/ACT(M)","IS","8009","GL","Active"]
["8010","Internal Consumption - Food Services Sales","General Rev and Exp (7) - CC(F-Cat4)/Fund(F-VM)/WO(M)/ACT(M)","IS","8010","GL","Active"]
["8011","Internal Consumption - Overhead - Institutional Revenue","General Rev and Exp (7) - CC(F-Cat4)/Fund(F-VM)/WO(M)/ACT(M)","IS","","GL","Closed"]
["8012","Internal Consumption - Overhead - Research Revenue","General Rev and Exp (7) - CC(F-Cat4)/Fund(F-VM)/WO(M)/ACT(M)","IS","","GL","Closed"]
["8013","Internal Consumption - Overhead - PVPA Premium Revenue","General Rev and Exp (7) - CC(F-Cat4)/Fund(F-VM)/WO(M)/ACT(M)","IS","","GL","Closed"]
["8200","Internal Consumption - Expenditures","General Rev and Exp (7) - CC(F-Cat4)/Fund(F-VM)/WO(M)/ACT(M)","IS","8200","GL","Active"]
["8201","Internal Consumption - Merchandise Costs","General Rev and Exp (7) - CC(F-Cat4)/Fund(F-VM)/WO(M)/ACT(M)","IS","8201","GL","Active"]
["8202","Internal Consumption - Admissions Costs","General Rev and Exp (7) - CC(F-Cat4)/Fund(F-VM)/WO(M)/ACT(M)","IS","8202","GL","Active"]
["8203","Internal Consumption - Facilities Costs","General Rev and Exp (7) - CC(F-Cat4)/Fund(F-VM)/WO(M)/ACT(M)","IS","8203","GL","Active"]
["8204","Internal Consumption - Catering Costs","General Rev and Exp (7) - CC(F-Cat4)/Fund(F-VM)/WO(M)/ACT(M)","IS","8204","GL","Active"]
["8205","Internal Consumption - Campus Store Costs","General Rev and Exp (7) - CC(F-Cat4)/Fund(F-VM)/WO(M)/ACT(M)","IS","8205","GL","Active"]
["8206","Internal Consumption - Campus Store Book Costs","General Rev and Exp (7) - CC(F-Cat4)/Fund(F-VM)/WO(M)/ACT(M)","IS","8206","GL","Active"]
["8207","Internal Consumption - Printing and Duplicating Costs","General Rev and Exp (7) - CC(F-Cat4)/Fund(F-VM)/WO(M)/ACT(M)","IS","8207","GL","Active"]
["8208","Internal Consumption - Housing Costs","General Rev and Exp (7) - CC(F-Cat4)/Fund(F-VM)/WO(M)/ACT(M)","IS","8208","GL","Active"]
["8209","Internal Consumption - Gifts in Kind Costs","General Rev and Exp (7) - CC(F-Cat4)/Fund(F-VM)/WO(M)/ACT(M)","IS","8209","GL","Active"]
["8210","Internal Consumption - Food Services Costs","General Rev and Exp (7) - CC(F-Cat4)/Fund(F-VM)/WO(M)/ACT(M)","IS","8210","GL","Active"]
["8250","Internal Consumption - Expenditures","General Rev and Exp (7) - CC(F-Cat4)/Fund(F-VM)/WO(M)/ACT(M)","IS","","GL","Closed"]
["8251","Internal Consumption - Merchandise Costs","General Rev and Exp (7) - CC(F-Cat4)/Fund(F-VM)/WO(M)/ACT(M)","IS","","GL","Closed"]
["8252","Internal Consumption - Admissions Costs","General Rev and Exp (7) - CC(F-Cat4)/Fund(F-VM)/WO(M)/ACT(M)","IS","","GL","Closed"]
["8253","Internal Consumption - Facilities Costs","General Rev and Exp (7) - CC(F-Cat4)/Fund(F-VM)/WO(M)/ACT(M)","IS","","GL","Closed"]
["8254","Internal Consumption - Catering Costs","General Rev and Exp (7) - CC(F-Cat4)/Fund(F-VM)/WO(M)/ACT(M)","IS","","GL","Closed"]
["8255","Internal Consumption - Campus Store Costs","General Rev and Exp (7) - CC(F-Cat4)/Fund(F-VM)/WO(M)/ACT(M)","IS","","GL","Closed"]
["8256","Internal Consumption - Campus Store Book Costs","General Rev and Exp (7) - CC(F-Cat4)/Fund(F-VM)/WO(M)/ACT(M)","IS","","GL","Closed"]
["8257","Internal Consumption - Printing and Duplicating Costs","General Rev and Exp (7) - CC(F-Cat4)/Fund(F-VM)/WO(M)/ACT(M)","IS","","GL","Closed"]
["8258","Internal Consumption - Housing Costs","General Rev and Exp (7) - CC(F-Cat4)/Fund(F-VM)/WO(M)/ACT(M)","IS","","GL","Closed"]
["8259","Internal Consumption - Gifts in Kind Costs","General Rev and Exp (7) - CC(F-Cat4)/Fund(F-VM)/WO(M)/ACT(M)","IS","","GL","Closed"]
["8260","Internal Consumption - Overhead paid - Department","General Rev and Exp (7) - CC(F-Cat4)/Fund(F-VM)/WO(M)/ACT(M)","IS","","GL","Closed"]
["8261","Internal Consumption - Overhead paid - Institutional","General Rev and Exp (7) - CC(F-Cat4)/Fund(F-VM)/WO(M)/ACT(M)","IS","","GL","Closed"]
["8262","Internal Consumption - Overhead paid - Research","General Rev and Exp (7) - CC(F-Cat4)/Fund(F-VM)/WO(M)/ACT(M)","IS","","GL","Closed"]
["8263","Internal Consumption - Overhead paid - PVPA Premium","General Rev and Exp (7) - CC(F-Cat4)/Fund(F-VM)/WO(M)/ACT(M)","IS","","GL","Closed"]
["8298","Internal Consumption - Opening Balance - Interfund Transfer","General Rev and Exp (7) - CC(F-Cat4)/Fund(F-VM)/WO(M)/ACT(M)","IS","8298","GL","Active"]
["8299","Internal Consumption - Opening Balance - Intrafund Transfer","General Rev and Exp (7) - CC(F-Cat4)/Fund(F-VM)/WO(M)/ACT(M)","IS","8299","GL","Active"]
["8400","Internal Consumption - Overhead - Department Revenue","General Rev and Exp (7) - CC(F-Cat4)/Fund(F-VM)/WO(M)/ACT(M)","IS","8400","GL","Active"]
["8401","Internal Consumption - Overhead - Institutional Revenue","General Rev and Exp (7) - CC(F-Cat4)/Fund(F-VM)/WO(M)/ACT(M)","IS","8401","GL","Active"]
["8402","Internal Consumption - Overhead - Research Revenue","General Rev and Exp (7) - CC(F-Cat4)/Fund(F-VM)/WO(M)/ACT(M)","IS","8402","GL","Active"]
["8403","Internal Consumption - Overhead - PVPA Premium Revenue","General Rev and Exp (7) - CC(F-Cat4)/Fund(F-VM)/WO(M)/ACT(M)","IS","8403","GL","Active"]
["8450","Internal Consumption - Overhead paid - Department","General Rev and Exp (7) - CC(F-Cat4)/Fund(F-VM)/WO(M)/ACT(M)","IS","8450","GL","Active"]
["8451","Internal Consumption - Overhead paid - Institutional","General Rev and Exp (7) - CC(F-Cat4)/Fund(F-VM)/WO(M)/ACT(M)","IS","8451","GL","Active"]
["8452","Internal Consumption - Overhead paid - Research","General Rev and Exp (7) - CC(F-Cat4)/Fund(F-VM)/WO(M)/ACT(M)","IS","8452","GL","Active"]
["8453","Internal Consumption - Overhead paid - PVPA Premium","General Rev and Exp (7) - CC(F-Cat4)/Fund(F-VM)/WO(M)/ACT(M)","IS","8453","GL","Active"]
["8500","Project Costing and Billing Revenue - Placeholder","General Rev and Exp (7) - CC(F-Cat4)/Fund(F-VM)/WO(M)/ACT(M)","IS","","GL","Closed"]
["8501","Hourly Costs Contractors - Project Costing","General Rev and Exp (7) - CC(F-Cat4)/Fund(F-VM)/WO(M)/ACT(M)","IS","","GL","Closed"]
["8502","ACE - Project Costing","General Rev and Exp (7) - CC(F-Cat4)/Fund(F-VM)/WO(M)/ACT(M)","IS","","GL","Closed"]
["8503","Contingency","General Rev and Exp (7) - CC(F-Cat4)/Fund(F-VM)/WO(M)/ACT(M)","IS","","GL","Closed"]
["8804","Hourly Cost Employees  - Recovery","General Rev and Exp (7) - CC(F-Cat4)/Fund(F-VM)/WO(M)/ACT(M)","IS","","GL","Closed"]
["8805","Hourly Cost Contractors - Recovery","General Rev and Exp (7) - CC(F-Cat4)/Fund(F-VM)/WO(M)/ACT(M)","IS","","GL","Closed"]
["8806","ACE Recovery","General Rev and Exp (7) - CC(F-Cat4)/Fund(F-VM)/WO(M)/ACT(M)","IS","","GL","Closed"]
["8900","Internal Consumption - Revenue","General Rev and Exp (7) - CC(F-Cat4)/Fund(F-VM)/WO(M)/ACT(M)","IS","","GL","Closed"]
["8901","Internal Consumption - Merchandise Sales","General Rev and Exp (7) - CC(F-Cat4)/Fund(F-VM)/WO(M)/ACT(M)","IS","","GL","Closed"]
["8902","Internal Consumption - Admissions Sales","General Rev and Exp (7) - CC(F-Cat4)/Fund(F-VM)/WO(M)/ACT(M)","IS","","GL","Closed"]
["8903","Internal Consumption - Facilities (recoveries)","General Rev and Exp (7) - CC(F-Cat4)/Fund(F-VM)/WO(M)/ACT(M)","IS","","GL","Closed"]
["8904","Internal Consumption - Catering Sales","General Rev and Exp (7) - CC(F-Cat4)/Fund(F-VM)/WO(M)/ACT(M)","IS","","GL","Closed"]
["8905","Internal Consumption - Campus Store Sales","General Rev and Exp (7) - CC(F-Cat4)/Fund(F-VM)/WO(M)/ACT(M)","IS","","GL","Closed"]
["8906","Internal Consumption - Campus Store Book Sales","General Rev and Exp (7) - CC(F-Cat4)/Fund(F-VM)/WO(M)/ACT(M)","IS","","GL","Closed"]
["8907","Internal Consumption - Printing and Duplicating Sales","General Rev and Exp (7) - CC(F-Cat4)/Fund(F-VM)/WO(M)/ACT(M)","IS","","GL","Closed"]
["8908","Internal Consumption - Gifts in Kind Recoveries","General Rev and Exp (7) - CC(F-Cat4)/Fund(F-VM)/WO(M)/ACT(M)","IS","","GL","Closed"]
["8909","Internal Consumption - Department Overhead Revenue","General Rev and Exp (7) - CC(F-Cat4)/Fund(F-VM)/WO(M)/ACT(M)","IS","","GL","Closed"]
["8910","Internal Consumption - Institutional Overhead Revenue","General Rev and Exp (7) - CC(F-Cat4)/Fund(F-VM)/WO(M)/ACT(M)","IS","","GL","Closed"]
["8911","Internal Consumption - Research Overhead Revenue","General Rev and Exp (7) - CC(F-Cat4)/Fund(F-VM)/WO(M)/ACT(M)","IS","","GL","Closed"]
["8912","Internal Consumption - PVPA Premium Revenue","General Rev and Exp (7) - CC(F-Cat4)/Fund(F-VM)/WO(M)/ACT(M)","IS","","GL","Closed"]
["8913","Internal Consumption - Housing Revenue","General Rev and Exp (7) - CC(F-Cat4)/Fund(F-VM)/WO(M)/ACT(M)","IS","","GL","Closed"]
["8950","Internal Consumption - Expenditures","General Rev and Exp (7) - CC(F-Cat4)/Fund(F-VM)/WO(M)/ACT(M)","IS","","GL","Closed"]
["8951","Internal Consumption - Merchandise Costs","General Rev and Exp (7) - CC(F-Cat4)/Fund(F-VM)/WO(M)/ACT(M)","IS","","GL","Closed"]
["8952","Internal Consumption - Admissions Costs","General Rev and Exp (7) - CC(F-Cat4)/Fund(F-VM)/WO(M)/ACT(M)","IS","","GL","Closed"]
["8953","Internal Consumption - Facilities Costs","General Rev and Exp (7) - CC(F-Cat4)/Fund(F-VM)/WO(M)/ACT(M)","IS","","GL","Closed"]
["8954","Internal Consumption - Catering Costs","General Rev and Exp (7) - CC(F-Cat4)/Fund(F-VM)/WO(M)/ACT(M)","IS","","GL","Closed"]
["8955","Internal Consumption - Campus Store Costs","General Rev and Exp (7) - CC(F-Cat4)/Fund(F-VM)/WO(M)/ACT(M)","IS","","GL","Closed"]
["8956","Internal Consumption - Campus Store Book Costs","General Rev and Exp (7) - CC(F-Cat4)/Fund(F-VM)/WO(M)/ACT(M)","IS","","GL","Closed"]
["8957","Internal Consumption - Printing and Duplicating Costs","General Rev and Exp (7) - CC(F-Cat4)/Fund(F-VM)/WO(M)/ACT(M)","IS","","GL","Closed"]
["8958","Internal Consumption - Gifts in Kind Costs","General Rev and Exp (7) - CC(F-Cat4)/Fund(F-VM)/WO(M)/ACT(M)","IS","","GL","Closed"]
["8959","Internal Consumption - Department Overhead Paid","General Rev and Exp (7) - CC(F-Cat4)/Fund(F-VM)/WO(M)/ACT(M)","IS","","GL","Closed"]
["8960","Internal Consumption - Institutional Overhead Paid","General Rev and Exp (7) - CC(F-Cat4)/Fund(F-VM)/WO(M)/ACT(M)","IS","","GL","Closed"]
["8961","Internal Consumption - Research Overhead paid","General Rev and Exp (7) - CC(F-Cat4)/Fund(F-VM)/WO(M)/ACT(M)","IS","","GL","Closed"]
["8962","Internal Consumption - PVPA Premium Paid","General Rev and Exp (7) - CC(F-Cat4)/Fund(F-VM)/WO(M)/ACT(M)","IS","","GL","Closed"]
["8963","Internal Consumption - Housing Costs","General Rev and Exp (7) - CC(F-Cat4)/Fund(F-VM)/WO(M)/ACT(M)","IS","","GL","Closed"]
["9600","PAYROLL Business Number Account - CLEARING FOR T4s","Balance Sheet (13) - PAYROLL BNumber CLEARING","BS","9600","GL","Active"]
["9601","PAYROLL Balancing  Account - SYSTEM Errors","Balance Sheet (2) - General CC(F-9000)/Fund(F-10)","BS","9601","GL","Active"]
["9602","PAYROLL Balancing  Account - BENEFITS rounding (BILLING)","Balance Sheet (20) - PAYROLL BENEFITS Clearing","BS","9602","GL","Active"]
["9603","PAYROLL Balancing Account - Cost Distribution","Salaries (4) - CC(F-Cat4)/Fund(F-VM)/RESNO(M)/WO(M)/ACT(M)/AT(M)","BS","9603","GL","Active"]
["9700","PCard Suspense Account","Assets - DCC Revenue (9) - CC(F-9150)/Fund(F-50)/WO(M)/ACT(M-Default 500)/G(M)","BS","9700","GL","Closed"]
["9800","Payment Differences - Rounding","Balance Sheet (2) - General CC(F-9000)/Fund(F-10)","BS","9800","GL","Active"]
["9990","P2P Suspense","Balance Sheet (2) - General CC(F-9000)/Fund(F-10)","BS","9990","GL","Active"]
["9999","GL Balancing  Account - SYSTEM Errors","Balance Sheet (2) - General CC(F-9000)/Fund(F-10)","BS","9999","GL","Active"]

{"sheet":"Statement","index":9,"n_rows":54,"n_cols":4,"rows_kept":54,"cut":false,"hidden":true,"merged":[]}
[]
[]
["Accgrp3(T)","Accgrp2(T)","Accgrp1","Accgrp1(T)"]
["Statement of Operations","Revenue","400","Province of British Columbia grants"]
["Statement of Operations","Revenue","410","Government of Canada grants"]
["Statement of Operations","Revenue","420","Other grants and contracts"]
["Statement of Operations","Revenue","430","Tuition and student fees"]
["Statement of Operations","Revenue","440","Sales of goods and services"]
["Statement of Operations","Revenue","450","Rental income"]
["Statement of Operations","Revenue","455","Revenue recognized from deferred capital contributions"]
["Statement of Operations","Revenue","460","Investment income"]
["Statement of Operations","Revenue","470","Gifts, grants and bequests"]
["Statement of Operations","Revenue","480","Gain (Loss) on investments"]
["Statement of Operations","Revenue","485","Gain (Loss) on sale of tangible capital assets"]
["Statement of Operations","Revenue","490","Other revenue"]
["Statement of Operations","Revenue","495","Other revenue - Capital"]
["Statement of Operations","Expenses","500","Salaries and benefits"]
["Statement of Operations","Expenses","600","Fees and purchased services"]
["Statement of Operations","Expenses","610","Travel and training"]
["Statement of Operations","Expenses","620","Scholarships and bursaries"]
["Statement of Operations","Expenses","630","Equipment rental and maintenance"]
["Statement of Operations","Expenses","640","Utilities, insurance and taxes"]
["Statement of Operations","Expenses","650","Materials and supplies"]
["Statement of Operations","Expenses","660","Cost of goods sold"]
["Statement of Operations","Expenses","680","Grants and Contributions"]
["Statement of Operations","Expenses","750","Amortization of tangible capital assets"]
["Statement of Operations","Expenses","755","Capital expenses - Other"]
["Statement of Operations","Internal Expenses","820","Internal ordering - expenditures"]
["Statement of Operations","Internal Expenses","845","Overhead Paid"]
["Statement of Operations","Internal Revenues","800","Internal ordering - revenue"]
["Statement of Operations","Internal Revenues","840","Overhead Received"]
["Statement of Operations","Capital additions - to be capitalized","770","Capital additions - to be capitalized"]
["Statement of Operations","Project Costing and Billing Placeholder (Parked)",850,"Project Costing and Billing (Parked)"]
["Statement of Operations","Project Costing and Billing Placeholder (Parked)","850","Project Costing and Billing (Parked)"]
["Statement of Operations","Transfers to Capital Assets","780","Transfers to Capital Assets"]
["Statement of Operations Total"]
["Statement of Financial Position","Accumulated surplus","300","Equity/Accumulated surplus"]
["Statement of Financial Position","CLEARING","900","Clearing"]
["Statement of Financial Position","Financial assets","100","Cash and cash equivalents"]
["Statement of Financial Position","Financial assets","120","Accounts receivable"]
["Statement of Financial Position","Financial assets","130","Inventories for resale"]
["Statement of Financial Position","Financial assets","140","Portfolio investments"]
["Statement of Financial Position","Financial assets","146","Loan receivable"]
["Statement of Financial Position","Liabilities","200","Accounts payable"]
["Statement of Financial Position","Liabilities","210","Accrued liabilities"]
["Statement of Financial Position","Liabilities","220","Employee future benefits"]
["Statement of Financial Position","Liabilities","230","Deferred revenue"]
["Statement of Financial Position","Liabilities","240","Deferred contributions"]
["Statement of Financial Position","Liabilities","250","Deferred capital contributions"]
["Statement of Financial Position","Non-financial assets","150","Tangible capital assets"]
["Statement of Financial Position","Non-financial assets","160","Restricted endowment investments"]
["Statement of Financial Position","Non-financial assets","170","Prepaid expenses"]
["Statement of Financial Position Total"]
["Grand Total"]

{"sheet":"Work Order Master","index":10,"n_rows":1179,"n_cols":21,"rows_kept":1179,"cut":false,"hidden":true,"merged":[]}
[null,"Y","Y","Y","Y",null,null,"Y",null,null,"Y","Y","Y","Y",null,null,"Y","Y","Y","Y","Y"]
[null,"Division","Division(T)","Subdivision","Subdivision(T)","Costc","Costc(T)","Fund","Project","Project(T)","Work order","Description","ACT/Intake","Activity Code Description","Date from","Date to","Status","FRS BUDGET Division","FRS Cost Centre","FRS Cost Centre Description","Multiple"]
[null,100,"President - Office",100,"President - Office",1000,"President - Office",10,"11000-1","PRES President Office","11000-1-1","PRES President Office",100,"Administration","2017-01-01","2099-12-31","N","President - Office",8800,"PRESIDENT",{"$f":"VLOOKUP(K3,WORKORDERS!$A:$P,16,FALSE)","v":"no"}]
[null,100,"President - Office",100,"President - Office",1010,"President Initiatives",10,"11010-1","PRES President Initiatives","11010-1-1","PRES President Initiatives",101,"Institutional","2017-01-01","2099-12-31","N","President - Office",8801,"PRESIDENT'S DEVELOPMENT",{"$f":"VLOOKUP(K4,WORKORDERS!$A:$P,16,FALSE)","v":"no"}]
[null,100,"President - Office",100,"President - Office",1010,"President Initiatives",10,"11010-2","PRES BCBC Internship program","11010-2-1","PRES BCBC Internship program",101,"Institutional","2017-01-01","2099-12-31","N","President - Office",8897,"BCBC INTERNSHIP PROGRAM",{"$f":"VLOOKUP(K5,WORKORDERS!$A:$P,16,FALSE)","v":"no"}]
[null,100,"President - Office",100,"President - Office",1010,"President Initiatives",10,"11010-4","PRES Social Innovation","11010-4-1","PRES Social Innovation",101,"Institutional","2017-01-01","2099-12-31","N","President - Office",8898,"SOCIAL INNOVATION",{"$f":"VLOOKUP(K6,WORKORDERS!$A:$P,16,FALSE)","v":"no"}]
[null,100,"President - Office",100,"President - Office",1010,"President Initiatives",10,"11010-5","PRES Strategic Planning","11010-5-1","PRES Strategic Planning",101,"Institutional","2017-01-01","2099-12-31","N","President - Office",8899,"STRATEGIC PLANNING ",{"$f":"VLOOKUP(K7,WORKORDERS!$A:$P,16,FALSE)","v":"no"}]
[null,100,"President - Office",100,"President - Office",1010,"President Initiatives",50,"51010-1","PRES Minor Capital","51010-1-1","PRES Minor Capital",500,"Capital - General","2021-07-01","2099-12-31","P",{"$error":"#N/A"},{"$error":"#N/A"},{"$error":"#N/A"},{"$f":"VLOOKUP(K8,WORKORDERS!$A:$P,16,FALSE)","v":"no"}]
[null,100,"President - Office",102,"Diversity, Equity and Human Rights Office",1020,"Diversity, Equity and Human Rights Office",10,"11020-1","PRES Diversity, Equity and Human Rights Office","11020-1-1","PRES Diversity, Equity and Human Rights Office",100,"Administration","2020-03-28","2099-12-31","N","President - Office",8804,"HUMAN RIGHTS & RESP WKPLC",{"$f":"VLOOKUP(K9,WORKORDERS!$A:$P,16,FALSE)","v":"no"}]
[null,100,"President - Office",103,"Communications and External Affaris",1030,"Communications and External Affairs",10,"11030-1","PRES Communications and External Affairs","11030-1-1","PRES Communications and External Affairs",100,"Administration","2020-03-28","2099-12-31","N","President - Office",8806,"COMMUN. & EXTNL AFFAIRS ",{"$f":"VLOOKUP(K10,WORKORDERS!$A:$P,16,FALSE)","v":"no"}]
[null,100,"President - Office",103,"Communications and External Affaris",1030,"Communications and External Affairs",10,"11030-1","PRES Communications and External Affairs","11030-1-2","PRES Communications and External Affairs - Indigenous Speakers Series",100,"Administration","2020-03-28","2099-12-31","N","President - Office",8803,"INDIGENOUS SPKR SERIES ",{"$f":"VLOOKUP(K11,WORKORDERS!$A:$P,16,FALSE)","v":"no"}]
[null,100,"President - Office",104,"Brand and Marketing",1040,"Brand and Marketing",10,"11040-1","PRES Brand and Marketing","11040-1-1","PRES Brand and Marketing",100,"Administration","2020-03-28","2099-12-31","N","President - Office",8805,"BRAND AND MARKETING",{"$f":"VLOOKUP(K12,WORKORDERS!$A:$P,16,FALSE)","v":"no"}]
[null,105,"President - Institutional",105,"President - Institutional",1050,"President Institutional",10,"11050-1","PRES President Institutional - Contingency","11050-1-1","PRES President Institutional - Contingency",101,"Institutional","2017-01-01","2099-12-31","N","President - Institutional",8860,"PRESIDENT'S CONTINGENCY",{"$f":"VLOOKUP(K13,WORKORDERS!$A:$P,16,FALSE)","v":"no"}]
[null,105,"President - Institutional",105,"President - Institutional",1050,"President Institutional",10,"11050-2","PRES President Institutional - HR Legal","11050-2-1","PRES President Institutional - HR Legal",101,"Institutional","2020-03-28","2099-12-31","N","President - Institutional",8862,"INSTITUTIONAL HR LEGAL ",{"$f":"VLOOKUP(K14,WORKORDERS!$A:$P,16,FALSE)","v":"no"}]
[null,110,"Human Resources",110,"Human Resources Division",1100,"Human Resources Division",10,"11100-1","HR Human Resources Division","11100-1-1","HR Human Resources Division",100,"Administration","2017-01-01","2099-12-31","N","Human Resources",8200,"HUMAN RESOURCES",{"$f":"VLOOKUP(K15,WORKORDERS!$A:$P,16,FALSE)","v":"no"}]
[null,110,"Human Resources",110,"Human Resources Division",1101,"Human Resources Division - AVP Initiatives",10,"11101-1","HR Human Resources - Initiatives","11101-1-1","HR Human Resources - Initiatives",101,"Institutional","2021-07-01","2099-12-31","P",{"$error":"#N/A"},{"$error":"#N/A"},{"$error":"#N/A"},{"$f":"VLOOKUP(K16,WORKORDERS!$A:$P,16,FALSE)","v":"no"}]
[null,110,"Human Resources",110,"Human Resources Division",1101,"Human Resources Division - AVP Initiatives",10,"11101-1","HR Human Resources - Initiatives","11101-1-2","HR Human Resources - Initiatives - United Way Representative",101,"Institutional","2017-01-01","2099-12-31","N","Human Resources",8205,"UNITED WAY",{"$f":"VLOOKUP(K17,WORKORDERS!$A:$P,16,FALSE)","v":"no"}]
[null,110,"Human Resources",110,"Human Resources Division",1101,"Human Resources Division - AVP Initiatives",10,"11101-2","HR Pooled Positions","11101-2-1","HR Pooled Positions",101,"Institutional","2017-01-01","2099-12-31","N",{"$error":"#N/A"},{"$error":"#N/A"},{"$error":"#N/A"},{"$f":"VLOOKUP(K18,WORKORDERS!$A:$P,16,FALSE)","v":"no"}]
[null,110,"Human Resources",110,"Human Resources Division",1101,"Human Resources Division - AVP Initiatives",50,"51101-1","HR Minor Capital","51101-1-1","HR Minor Capital",500,"Capital - General","2021-07-01","2099-12-31","P",{"$error":"#N/A"},{"$error":"#N/A"},{"$error":"#N/A"},{"$f":"VLOOKUP(K19,WORKORDERS!$A:$P,16,FALSE)","v":"no"}]
[null,110,"Human Resources",110,"Human Resources Division",1102,"Training & Professional Development",10,"11102-1","HR Training and Professional Development - Institutional","11102-1-1","HR Training and Professional Development - Institutional",101,"Institutional","2021-07-01","2099-12-31","P",{"$error":"#N/A"},{"$error":"#N/A"},{"$error":"#N/A"},{"$f":"VLOOKUP(K20,WORKORDERS!$A:$P,16,FALSE)","v":"no"}]
[null,110,"Human Resources",110,"Human Resources Division",1102,"Training & Professional Development",10,"11102-2","HR Training & PD - ADMIN","11102-2-1","HR Training & PD - ADMIN",101,"Institutional","2017-01-01","2099-12-31","N","Human Resources",8210,"PROF. DEV. ADMI",{"$f":"VLOOKUP(K21,WORKORDERS!$A:$P,16,FALSE)","v":"no"}]
[null,110,"Human Resources",110,"Human Resources Division",1102,"Training & Professional Development",10,"11102-3","HR Training & PD - BCGEU","11102-3-1","HR Training & PD - BCGEU",101,"Institutional","2017-01-01","2099-12-31","N","Human Resources",8239,"BCGEU - PROFESSIONAL DEVELOPMENT",{"$f":"VLOOKUP(K22,WORKORDERS!$A:$P,16,FALSE)","v":"no"}]
[null,110,"Human Resources",110,"Human Resources Division",1102,"Training & Professional Development",10,"11102-3","HR Training & PD - BCGEU","11102-3-2","HR Training & PD - BCGEU - PD Committee",101,"Institutional","2017-01-01","2099-12-31","N","Human Resources",8240,"BCGEU - PRO-D COMMITTEE",{"$f":"VLOOKUP(K23,WORKORDERS!$A:$P,16,FALSE)","v":"no"}]
[null,110,"Human Resources",110,"Human Resources Division",1102,"Training & Professional Development",10,"11102-4","HR Training & PD - CUPE","11102-4-1","HR Training & PD - CUPE Contract Fund",101,"Institutional","2017-01-01","2099-12-31","N","Human Resources",8201,"CUPE TRAINING AND DEV'T",{"$f":"VLOOKUP(K24,WORKORDERS!$A:$P,16,FALSE)","v":"no"}]
[null,110,"Human Resources",110,"Human Resources Division",1102,"Training & Professional Development",10,"11102-4","HR Training & PD - CUPE","11102-4-2","HR Training & PD - CUPE Career Development Fund",101,"Institutional","2017-01-01","2099-12-31","N","Human Resources",8215,"CAREER DEV'T FUND",{"$f":"VLOOKUP(K25,WORKORDERS!$A:$P,16,FALSE)","v":"no"}]
[null,110,"Human Resources",110,"Human Resources Division",1102,"Training & Professional Development",10,"11102-5","HR Training & PD - VIUFA","11102-5-1","HR Training & PD - VIUFA",101,"Institutional","2017-01-01","2099-12-31","N","Human Resources",8238,"VIUFA PROF. MEMBERSHIP",{"$f":"VLOOKUP(K26,WORKORDERS!$A:$P,16,FALSE)","v":"no"}]
[null,110,"Human Resources",110,"Human Resources Division",1102,"Training & Professional Development",10,"11102-6","HR Training & PD - VIUFA & BCGEU","11102-6-1","HR Training & PD - VIUFA & BCGEU Chair Development",205,"Chair","2017-01-01","2099-12-31","N","Human Resources",8202,"CHAIR DEVELOPMENT",{"$f":"VLOOKUP(K27,WORKORDERS!$A:$P,16,FALSE)","v":"no"}]
[null,110,"Human Resources",111,"Employee Relations",1110,"Employee Relations Department",10,"11110-1","HR Employee Relations Department","11110-1-1","HR Employee Relations Department",100,"Administration","2021-07-01","2099-12-31","P",{"$error":"#N/A"},{"$error":"#N/A"},{"$error":"#N/A"},{"$f":"VLOOKUP(K28,WORKORDERS!$A:$P,16,FALSE)","v":"no"}]
[null,110,"Human Resources",111,"Employee Relations",1111,"Collective Agreement / Legislation Interpretation & Application",10,"11111-1","HR Collective Agreement / Legislation Interpretation and Application","11111-1-1","HR Collective Agreement / Legislation Interpretation and Application",101,"Institutional","2021-07-01","2099-12-31","P",{"$error":"#N/A"},{"$error":"#N/A"},{"$error":"#N/A"},{"$f":"VLOOKUP(K29,WORKORDERS!$A:$P,16,FALSE)","v":"no"}]
[null,110,"Human Resources",111,"Employee Relations",1111,"Collective Agreement / Legislation Interpretation & Application",20,"21111-1","HR Collective Agreement - UNION Charges (RECOVERY)","21111-1-1","HR Collective Agreement - BCGEU Charges (RECOVERY)",102,"External recoveries (Inst)","2017-01-01","2099-12-31","N","Contracts - Human Resources",8253,"BCGEU CHARGES",{"$f":"VLOOKUP(K30,WORKORDERS!$A:$P,16,FALSE)","v":"no"}]
[null,110,"Human Resources",111,"Employee Relations",1111,"Collective Agreement / Legislation Interpretation & Application",20,"21111-1","HR Collective Agreement - UNION Charges (RECOVERY)","21111-1-2","HR Collective Agreement - CUPE Charges (RECOVERY)",102,"External recoveries (Inst)","2017-01-01","2099-12-31","N","Contracts - Human Resources",8254,"CUPE CHARGES",{"$f":"VLOOKUP(K31,WORKORDERS!$A:$P,16,FALSE)","v":"no"}]
[null,110,"Human Resources",111,"Employee Relations",1111,"Collective Agreement / Legislation Interpretation & Application",20,"21111-1","HR Collective Agreement - UNION Charges (RECOVERY)","21111-1-3","HR Collective Agreement - VIUFA Charges (RECOVERY)",102,"External recoveries (Inst)","2017-01-01","2099-12-31","N","Contracts - Human Resources",8252,"VIUFA CHARGES",{"$f":"VLOOKUP(K32,WORKORDERS!$A:$P,16,FALSE)","v":"no"}]
[null,110,"Human Resources",111,"Employee Relations",1111,"Collective Agreement / Legislation Interpretation & Application",20,"21111-1","HR Collective Agreement - UNION Charges (RECOVERY)","21111-1-4","HR Collective Agreement - VIUFA Committee Charges (RECOVERY)",102,"External recoveries (Inst)","2017-01-01","2099-12-31","N","Contracts - Human Resources",8251,"VIUFA PD COMMITTEE",{"$f":"VLOOKUP(K33,WORKORDERS!$A:$P,16,FALSE)","v":"no"}]
[null,110,"Human Resources",111,"Employee Relations",1115,"Conflict Resolution and Risk Assessment",10,"11115-1","HR Institutional HR (Conflict Resolution and Risk Assessment)","11115-1-1","HR Institutional HR (Conflict Resolution and Risk Assessment)",101,"Institutional","2021-03-27","2099-12-31","N","Human Resources",8230,"INSTITUTIONAL HR",{"$f":"VLOOKUP(K34,WORKORDERS!$A:$P,16,FALSE)","v":"no"}]
[null,110,"Human Resources",111,"Employee Relations",1120,"External Legal Counsel and Mediation/Arbitration",10,"11120-1","HR External Legal Counsel And Mediation/Arbitration","11120-1-1","HR External Legal Counsel And Mediation/Arbitration",101,"Institutional","2021-07-01","2099-12-31","P",{"$error":"#N/A"},{"$error":"#N/A"},{"$error":"#N/A"},{"$f":"VLOOKUP(K35,WORKORDERS!$A:$P,16,FALSE)","v":"no"}]
[null,110,"Human Resources",111,"Employee Relations",1125,"Investigations",10,"11125-1","HR Investigations","11125-1-1","HR Investigations",101,"Institutional","2021-07-01","2099-12-31","P",{"$error":"#N/A"},{"$error":"#N/A"},{"$error":"#N/A"},{"$f":"VLOOKUP(K36,WORKORDERS!$A:$P,16,FALSE)","v":"no"}]
[null,110,"Human Resources",111,"Employee Relations",1130,"Performance Management",10,"11130-1","HR Performance Management","11130-1-1","HR Performance Management",101,"Institutional","2021-07-01","2099-12-31","P",{"$error":"#N/A"},{"$error":"#N/A"},{"$error":"#N/A"},{"$f":"VLOOKUP(K37,WORKORDERS!$A:$P,16,FALSE)","v":"no"}]
[null,110,"Human Resources",115,"Human Resources Department",1150,"Human Resources Department",10,"11150-1","HR Human Resources Department","11150-1-1","HR Human Resources Department",100,"Administration","2021-07-01","2099-12-31","P",{"$error":"#N/A"},{"$error":"#N/A"},{"$error":"#N/A"},{"$f":"VLOOKUP(K38,WORKORDERS!$A:$P,16,FALSE)","v":"no"}]
[null,110,"Human Resources",115,"Human Resources Department",1150,"Human Resources Department",10,"11150-2","HR Human Resources Department - Systems and Projects","11150-2-1","HR Human Resources Department - Systems and Projects",100,"Administration","2021-07-01","2099-12-31","P",{"$error":"#N/A"},{"$error":"#N/A"},{"$error":"#N/A"},{"$f":"VLOOKUP(K39,WORKORDERS!$A:$P,16,FALSE)","v":"no"}]
[null,110,"Human Resources",115,"Human Resources Department",1151,"Employee Wellbeing",10,"11151-1","HR Employee Wellbeing","11151-1-1","HR Employee Wellbeing",101,"Institutional","2021-07-01","2099-12-31","P",{"$error":"#N/A"},{"$error":"#N/A"},{"$error":"#N/A"},{"$f":"VLOOKUP(K40,WORKORDERS!$A:$P,16,FALSE)","v":"no"}]
[null,110,"Human Resources",115,"Human Resources Department",1151,"Employee Wellbeing",10,"11151-2","HR Employee Wellbeing - Health","11151-2-1","HR Employee Wellbeing - Health",101,"Institutional","2021-07-01","2099-12-31","P",{"$error":"#N/A"},{"$error":"#N/A"},{"$error":"#N/A"},{"$f":"VLOOKUP(K41,WORKORDERS!$A:$P,16,FALSE)","v":"no"}]
[null,110,"Human Resources",115,"Human Resources Department",1151,"Employee Wellbeing",10,"11151-2","HR Employee Wellbeing - Health","11151-2-2","HR Employee Wellbeing - Health - Accommodations",101,"Institutional","2017-01-01","2099-12-31","N","Human Resources",8206,"ACCOMMODATIONS",{"$f":"VLOOKUP(K42,WORKORDERS!$A:$P,16,FALSE)","v":"no"}]
[null,110,"Human Resources",115,"Human Resources Department",1151,"Employee Wellbeing",10,"11151-2","HR Employee Wellbeing - Health","11151-2-3","HR Employee Wellbeing - Health - Employee Assistance Program",101,"Institutional","2017-01-01","2099-12-31","N","Human Resources",8207,"EMPLOYEE ASSIST",{"$f":"VLOOKUP(K43,WORKORDERS!$A:$P,16,FALSE)","v":"no"}]
[null,110,"Human Resources",115,"Human Resources Department",1151,"Employee Wellbeing",10,"11151-2","HR Employee Wellbeing - Health","11151-2-4","HR Employee Wellbeing - Health - Medical Travel",101,"Institutional","2017-01-01","2099-12-31","N","Human Resources",8203,"MEDICAL TRAVEL",{"$f":"VLOOKUP(K44,WORKORDERS!$A:$P,16,FALSE)","v":"no"}]
[null,110,"Human Resources",115,"Human Resources Department",1151,"Employee Wellbeing",10,"11151-3","HR Employee Wellbeing - Wellness","11151-3-1","HR Employee Wellbeing - Wellness",101,"Institutional","2017-01-01","2099-12-31","N","Human Resources",8204,"WORKPLACE WELLNESS",{"$f":"VLOOKUP(K45,WORKORDERS!$A:$P,16,FALSE)","v":"no"}]
[null,110,"Human Resources",115,"Human Resources Department",1151,"Employee Wellbeing",10,"11151-4","HR Employee Wellbeing - Benefits","11151-4-1","HR Employee Wellbeing - Benefits",101,"Institutional","2021-07-01","2099-12-31","P",{"$error":"#N/A"},{"$error":"#N/A"},{"$error":"#N/A"},{"$f":"VLOOKUP(K46,WORKORDERS!$A:$P,16,FALSE)","v":"no"}]
[null,110,"Human Resources",115,"Human Resources Department",1151,"Employee Wellbeing",20,"21151-1","HR Employee Wellbeing (RECOVERY)","21151-1-1","HR Employee Wellbeing - Positive Space Alliance (RECOVERY)",102,"External recoveries (Inst)","2017-01-01","2099-12-31","N","Contracts - Human Resources",8258,"POSITIVE SPACE ALLIANCE",{"$f":"VLOOKUP(K47,WORKORDERS!$A:$P,16,FALSE)","v":"no"}]
[null,110,"Human Resources",115,"Human Resources Department",1155,"Leave & Attendance Management",10,"11155-1","HR Leave & Attendance Management","11155-1-1","HR Leave & Attendance Management",101,"Institutional","2021-07-01","2099-12-31","P",{"$error":"#N/A"},{"$error":"#N/A"},{"$error":"#N/A"},{"$f":"VLOOKUP(K48,WORKORDERS!$A:$P,16,FALSE)","v":"no"}]
[null,110,"Human Resources",115,"Human Resources Department",1155,"Leave & Attendance Management",10,"11155-2","HR Leave & Attendance Management - ADMIN","11155-2-1","HR Leave & Attendance Management - ADMIN",101,"Institutional","2021-07-01","2099-12-31","P",{"$error":"#N/A"},{"$error":"#N/A"},{"$error":"#N/A"},{"$f":"VLOOKUP(K49,WORKORDERS!$A:$P,16,FALSE)","v":"no"}]
[null,110,"Human Resources",115,"Human Resources Department",1155,"Leave & Attendance Management",10,"11155-3","HR Leave & Attendance Management - BCGEU","11155-3-1","HR Leave & Attendance Management - BCGEU",101,"Institutional","2021-07-01","2099-12-31","P",{"$error":"#N/A"},{"$error":"#N/A"},{"$error":"#N/A"},{"$f":"VLOOKUP(K50,WORKORDERS!$A:$P,16,FALSE)","v":"no"}]
[null,110,"Human Resources",115,"Human Resources Department",1155,"Leave & Attendance Management",10,"11155-3","HR Leave & Attendance Management - BCGEU","11155-3-2","HR Leave & Attendance Management - BCGEU - UNION LEAVE",101,"Institutional","2017-01-01","2099-12-31","N","Human Resources",8234,"UNION LEAVE BCGEU",{"$f":"VLOOKUP(K51,WORKORDERS!$A:$P,16,FALSE)","v":"no"}]
[null,110,"Human Resources",115,"Human Resources Department",1155,"Leave & Attendance Management",10,"11155-4","HR Leave & Attendance Management - CUPE","11155-4-1","HR Leave & Attendance Management - CUPE",101,"Institutional","2021-07-01","2099-12-31","P",{"$error":"#N/A"},{"$error":"#N/A"},{"$error":"#N/A"},{"$f":"VLOOKUP(K52,WORKORDERS!$A:$P,16,FALSE)","v":"no"}]
[null,110,"Human Resources",115,"Human Resources Department",1155,"Leave & Attendance Management",10,"11155-4","HR Leave & Attendance Management - CUPE","11155-4-2","HR Leave & Attendance Management - CUPE - UNION LEAVE",101,"Institutional","2017-01-01","2099-12-31","N","Human Resources",8235,"CUPE UNION RELE",{"$f":"VLOOKUP(K53,WORKORDERS!$A:$P,16,FALSE)","v":"no"}]
[null,110,"Human Resources",115,"Human Resources Department",1155,"Leave & Attendance Management",10,"11155-5","HR Leave & Attendance Management - VIUFA","11155-5-1","HR Leave & Attendance Management - VIUFA",101,"Institutional","2021-07-01","2099-12-31","P",{"$error":"#N/A"},{"$error":"#N/A"},{"$error":"#N/A"},{"$f":"VLOOKUP(K54,WORKORDERS!$A:$P,16,FALSE)","v":"no"}]
[null,110,"Human Resources",115,"Human Resources Department",1155,"Leave & Attendance Management",10,"11155-5","HR Leave & Attendance Management - VIUFA","11155-5-2","HR Leave & Attendance Management - VIUFA - UNION LEAVE",101,"Institutional","2017-01-01","2099-12-31","N","Human Resources",8237,"UNION LEAVE VIU FA",{"$f":"VLOOKUP(K55,WORKORDERS!$A:$P,16,FALSE)","v":"no"}]
[null,110,"Human Resources",115,"Human Resources Department",1155,"Leave & Attendance Management",10,"11155-5","HR Leave & Attendance Management - VIUFA","11155-5-3","HR Leave & Attendance Management - VIUFA - ASSISTED LEAVE",101,"Institutional","2017-01-01","2099-12-31","N","Human Resources",8236,"VIUFA ASSISTED LEAVE",{"$f":"VLOOKUP(K56,WORKORDERS!$A:$P,16,FALSE)","v":"no"}]
[null,110,"Human Resources",115,"Human Resources Department",1160,"Recognition & Retention",10,"11160-1","HR Recognition & Retention","11160-1-1","HR Recognition & Retention",101,"Institutional","2017-01-01","2099-12-31","N","Human Resources",8212,"EMPLOYEE RECOGNITION",{"$f":"VLOOKUP(K57,WORKORDERS!$A:$P,16,FALSE)","v":"no"}]
[null,110,"Human Resources",115,"Human Resources Department",1165,"Recruitment & Job Evaluation",10,"11165-1","HR Recruitment & Job Evaluation","11165-1-1","HR Recruitment & Job Evaluation",100,"Administration","2021-07-01","2099-12-31","P",{"$error":"#N/A"},{"$error":"#N/A"},{"$error":"#N/A"},{"$f":"VLOOKUP(K58,WORKORDERS!$A:$P,16,FALSE)","v":"no"}]
[null,110,"Human Resources",115,"Human Resources Department",1165,"Recruitment & Job Evaluation",10,"11165-2","HR Talent Acquisition","11165-2-1","HR Talent Acquisition",100,"Administration","2021-07-01","2099-12-31","P",{"$error":"#N/A"},{"$error":"#N/A"},{"$error":"#N/A"},{"$f":"VLOOKUP(K59,WORKORDERS!$A:$P,16,FALSE)","v":"no"}]
[null,110,"Human Resources",115,"Human Resources Department",1165,"Recruitment & Job Evaluation",10,"11165-2","HR Talent Acquisition","11165-2-2","HR Talent Acquisition - Employee Relocation Grant",101,"Institutional","2017-01-01","2099-12-31","N","Human Resources",8216,"EMPLOYEE RELOCATION GRANT",{"$f":"VLOOKUP(K60,WORKORDERS!$A:$P,16,FALSE)","v":"no"}]
[null,110,"Human Resources",115,"Human Resources Department",1165,"Recruitment & Job Evaluation",10,"11165-2","HR Talent Acquisition","11165-2-3","HR Talent Acquisition - Recruitment Gen. Services",101,"Institutional","2017-01-01","2099-12-31","N","Human Resources",8231,"RECRUITMENT GEN. SERVICES ",{"$f":"VLOOKUP(K61,WORKORDERS!$A:$P,16,FALSE)","v":"no"}]
[null,110,"Human Resources",115,"Human Resources Department",1165,"Recruitment & Job Evaluation",10,"11165-2","HR Talent Acquisition","11165-2-4","HR Talent Acquisition - Senior Administrator Recruiting",101,"Institutional","2017-01-01","2099-12-31","N","Human Resources",8232,"SENIOR ADMIN. RECRUITMENT",{"$f":"VLOOKUP(K62,WORKORDERS!$A:$P,16,FALSE)","v":"no"}]
[null,110,"Human Resources",115,"Human Resources Department",1165,"Recruitment & Job Evaluation",10,"11165-2","HR Talent Acquisition","11165-2-5","HR Talent Acquisition - Instructional Recruitment",101,"Institutional","2017-01-01","2099-12-31","N","Human Resources",8233,"INSTRUCTIONAL RECRUITMENT ",{"$f":"VLOOKUP(K63,WORKORDERS!$A:$P,16,FALSE)","v":"no"}]
[null,110,"Human Resources",115,"Human Resources Department",1165,"Recruitment & Job Evaluation",10,"11165-3","HR Orientation","11165-3-1","HR Orientation",100,"Administration","2021-07-01","2099-12-31","P",{"$error":"#N/A"},{"$error":"#N/A"},{"$error":"#N/A"},{"$f":"VLOOKUP(K64,WORKORDERS!$A:$P,16,FALSE)","v":"no"}]
[null,110,"Human Resources",115,"Human Resources Department",1165,"Recruitment & Job Evaluation",10,"11165-4","HR Job Evaluation","11165-4-1","HR Job Evaluation",101,"Institutional","2021-07-01","2099-12-31","P",{"$error":"#N/A"},{"$error":"#N/A"},{"$error":"#N/A"},{"$f":"VLOOKUP(K65,WORKORDERS!$A:$P,16,FALSE)","v":"no"}]
[null,150,"Community Partnerships",150,"Community Partnerships",1500,"Community Partnerships Division",10,"11500-1","CP Community Partnerships Division","11500-1-1","CP Community Partnerships Division",100,"Administration","2017-01-01","2099-12-31","N","University Relations",8900,"COMMUNITY PARTNERSHIPS ",{"$f":"VLOOKUP(K66,WORKORDERS!$A:$P,16,FALSE)","v":"no"}]
[null,150,"Community Partnerships",150,"Community Partnerships",1501,"Community Partnerships - Initiatives",10,"11501-1","CP Community Partnerships - Initiatives","11501-1-1","CP Canada Learning Bond",101,"Institutional","2017-01-01","2099-12-31","N","University Relations",8908,"CANADA LEARNING BOND",{"$f":"VLOOKUP(K67,WORKORDERS!$A:$P,16,FALSE)","v":"no"}]
[null,150,"Community Partnerships",150,"Community Partnerships",1501,"Community Partnerships - Initiatives",50,"51501-1","CP Minor Capital","51501-1-1","CP Minor Capital",500,"Capital - General","2021-07-01","2099-12-31","P",{"$error":"#N/A"},{"$error":"#N/A"},{"$error":"#N/A"},{"$f":"VLOOKUP(K68,WORKORDERS!$A:$P,16,FALSE)","v":"no"}]
[null,150,"Community Partnerships",150,"Community Partnerships",1502,"Campaigns",10,"11502-1","CP Annual Campaigns","11502-1-1","CP Annual Campaigns",101,"Institutional","2021-07-01","2099-12-31","P",{"$error":"#N/A"},{"$error":"#N/A"},{"$error":"#N/A"},{"$f":"VLOOKUP(K69,WORKORDERS!$A:$P,16,FALSE)","v":"no"}]
[null,150,"Community Partnerships",150,"Community Partnerships",1502,"Campaigns",10,"11502-1","CP Annual Campaigns","11502-1-2","CP Giving Tuesday Campaign",101,"Institutional","2021-07-01","2099-12-31","P",{"$error":"#N/A"},{"$error":"#N/A"},{"$error":"#N/A"},{"$f":"VLOOKUP(K70,WORKORDERS!$A:$P,16,FALSE)","v":"no"}]
[null,150,"Community Partnerships",150,"Community Partnerships",1502,"Campaigns",10,"11502-2","CP VIU Campaigns","11502-2-1","CP Imagine VIU Campaign",101,"Institutional","2017-01-01","2099-12-31","N","University Relations",8816,"CAMPAIGN",{"$f":"VLOOKUP(K71,WORKORDERS!$A:$P,16,FALSE)","v":"no"}]
[null,150,"Community Partnerships",150,"Community Partnerships",1503,"Sponsorship",10,"11503-1","CP Sponsorship","11503-1-1","CP Sponsorship - Nanaimo",101,"Institutional","2017-01-01","2099-12-31","N","University Relations",8907,"SPONSORSHIP",{"$f":"VLOOKUP(K72,WORKORDERS!$A:$P,16,FALSE)","v":"no"}]
[null,150,"Community Partnerships",150,"Community Partnerships",1503,"Sponsorship",10,"11503-1","CP Sponsorship","11503-1-2","CP Sponsorship - Cowichan Valley",101,"Institutional","2021-07-01","2099-12-31","P",{"$error":"#N/A"},{"$error":"#N/A"},{"$error":"#N/A"},{"$f":"VLOOKUP(K73,WORKORDERS!$A:$P,16,FALSE)","v":"no"}]
[null,150,"Community Partnerships",150,"Community Partnerships",1503,"Sponsorship",10,"11503-1","CP Sponsorship","11503-1-3","CP Sponsorship - Parksville-Qualicum",101,"Institutional","2021-07-01","2099-12-31","P",{"$error":"#N/A"},{"$error":"#N/A"},{"$error":"#N/A"},{"$f":"VLOOKUP(K74,WORKORDERS!$A:$P,16,FALSE)","v":"no"}]
[null,150,"Community Partnerships",150,"Community Partnerships",1503,"Sponsorship",10,"11503-1","CP Sponsorship","11503-1-4","CP Sponsorship - Powell River",101,"Institutional","2021-07-01","2099-12-31","P",{"$error":"#N/A"},{"$error":"#N/A"},{"$error":"#N/A"},{"$f":"VLOOKUP(K75,WORKORDERS!$A:$P,16,FALSE)","v":"no"}]
[null,150,"Community Partnerships",150,"Community Partnerships",1503,"Sponsorship",10,"11503-1","CP Sponsorship","11503-1-5","CP Sponsorship - Vancouver Island Focus",101,"Institutional","2021-07-01","2099-12-31","P",{"$error":"#N/A"},{"$error":"#N/A"},{"$error":"#N/A"},{"$f":"VLOOKUP(K76,WORKORDERS!$A:$P,16,FALSE)","v":"no"}]
[null,150,"Community Partnerships",150,"Community Partnerships",1503,"Sponsorship",10,"11503-1","CP Sponsorship","11503-1-6","CP Sponsorship - Provincial Focus",101,"Institutional","2021-07-01","2099-12-31","P",{"$error":"#N/A"},{"$error":"#N/A"},{"$error":"#N/A"},{"$f":"VLOOKUP(K77,WORKORDERS!$A:$P,16,FALSE)","v":"no"}]
[null,150,"Community Partnerships",150,"Community Partnerships",1503,"Sponsorship",10,"11503-1","CP Sponsorship","11503-1-7","CP Sponsorship - National Focus",101,"Institutional","2021-07-01","2099-12-31","P",{"$error":"#N/A"},{"$error":"#N/A"},{"$error":"#N/A"},{"$f":"VLOOKUP(K78,WORKORDERS!$A:$P,16,FALSE)","v":"no"}]
[null,150,"Community Partnerships",150,"Community Partnerships",1505,"Advancement Services",10,"11505-1","CP Advancement Services","11505-1-1","CP Advancement Services",100,"Administration","2017-01-01","2099-12-31","N","University Relations",8808,"ADVANCEMENT OFFICE",{"$f":"VLOOKUP(K79,WORKORDERS!$A:$P,16,FALSE)","v":"no"}]
[null,150,"Community Partnerships",150,"Community Partnerships",1505,"Advancement Services",10,"11505-2","CP Gift Officers","11505-2-1","CP Gift Officer - Academic and Career Preparation",100,"Administration","2021-07-01","2099-12-31","P",{"$error":"#N/A"},{"$error":"#N/A"},{"$error":"#N/A"},{"$f":"VLOOKUP(K80,WORKORDERS!$A:$P,16,FALSE)","v":"no"}]
[null,150,"Community Partnerships",150,"Community Partnerships",1505,"Advancement Services",10,"11505-2","CP Gift Officers","11505-2-2","CP Gift Officer - Arts & Humanities",100,"Administration","2021-07-01","2099-12-31","P",{"$error":"#N/A"},{"$error":"#N/A"},{"$error":"#N/A"},{"$f":"VLOOKUP(K81,WORKORDERS!$A:$P,16,FALSE)","v":"no"}]
[null,150,"Community Partnerships",150,"Community Partnerships",1505,"Advancement Services",10,"11505-2","CP Gift Officers","11505-2-3","CP Gift Officer - Education",100,"Administration","2021-07-01","2099-12-31","P",{"$error":"#N/A"},{"$error":"#N/A"},{"$error":"#N/A"},{"$f":"VLOOKUP(K82,WORKORDERS!$A:$P,16,FALSE)","v":"no"}]
[null,150,"Community Partnerships",150,"Community Partnerships",1505,"Advancement Services",10,"11505-2","CP Gift Officers","11505-2-4","CP Gift Officer - Health & Human Services",100,"Administration","2021-07-01","2099-12-31","P",{"$error":"#N/A"},{"$error":"#N/A"},{"$error":"#N/A"},{"$f":"VLOOKUP(K83,WORKORDERS!$A:$P,16,FALSE)","v":"no"}]
[null,150,"Community Partnerships",150,"Community Partnerships",1505,"Advancement Services",10,"11505-2","CP Gift Officers","11505-2-5","CP Gift Officer - International Education",100,"Administration","2021-07-01","2099-12-31","P",{"$error":"#N/A"},{"$error":"#N/A"},{"$error":"#N/A"},{"$f":"VLOOKUP(K84,WORKORDERS!$A:$P,16,FALSE)","v":"no"}]
[null,150,"Community Partnerships",150,"Community Partnerships",1505,"Advancement Services",10,"11505-2","CP Gift Officers","11505-2-6","CP Gift Officer - Management",100,"Administration","2021-07-01","2099-12-31","P",{"$error":"#N/A"},{"$error":"#N/A"},{"$error":"#N/A"},{"$f":"VLOOKUP(K85,WORKORDERS!$A:$P,16,FALSE)","v":"no"}]
[null,150,"Community Partnerships",150,"Community Partnerships",1505,"Advancement Services",10,"11505-2","CP Gift Officers","11505-2-7","CP Gift Officer - Science & Technology",100,"Administration","2021-07-01","2099-12-31","P",{"$error":"#N/A"},{"$error":"#N/A"},{"$error":"#N/A"},{"$f":"VLOOKUP(K86,WORKORDERS!$A:$P,16,FALSE)","v":"no"}]
[null,150,"Community Partnerships",150,"Community Partnerships",1505,"Advancement Services",10,"11505-2","CP Gift Officers","11505-2-8","CP Gift Officer - Social Sciences",100,"Administration","2021-07-01","2099-12-31","P",{"$error":"#N/A"},{"$error":"#N/A"},{"$error":"#N/A"},{"$f":"VLOOKUP(K87,WORKORDERS!$A:$P,16,FALSE)","v":"no"}]
[null,150,"Community Partnerships",150,"Community Partnerships",1505,"Advancement Services",10,"11505-2","CP Gift Officers","11505-2-9","CP Gift Officer - Trades & Applied Technology",100,"Administration","2021-07-01","2099-12-31","P",{"$error":"#N/A"},{"$error":"#N/A"},{"$error":"#N/A"},{"$f":"VLOOKUP(K88,WORKORDERS!$A:$P,16,FALSE)","v":"no"}]
[null,150,"Community Partnerships",150,"Community Partnerships",1510,"Alumni Relations",10,"11510-1","CP Alumni Relations","11510-1-1","CP Alumni Relations",100,"Administration","2017-01-01","2099-12-31","N","University Relations",8815,"ALUMNI RELATIONS",{"$f":"VLOOKUP(K89,WORKORDERS!$A:$P,16,FALSE)","v":"no"}]
[null,150,"Community Partnerships",150,"Community Partnerships",1510,"Alumni Relations",10,"11510-2","CP Call Centre","11510-2-1","CP Call Centre",100,"Administration","2017-01-01","2099-12-31","N","University Relations",8817,"CALL CENTRE",{"$f":"VLOOKUP(K90,WORKORDERS!$A:$P,16,FALSE)","v":"no"}]
[null,150,"Community Partnerships",150,"Community Partnerships",1515,"Donor Relations",10,"11515-1","CP Donor Relations","11515-1-1","CP Donor Relations",100,"Administration","2021-07-01","2099-12-31","P",{"$error":"#N/A"},{"$error":"#N/A"},{"$error":"#N/A"},{"$f":"VLOOKUP(K91,WORKORDERS!$A:$P,16,FALSE)","v":"no"}]
[null,150,"Community Partnerships",150,"Community Partnerships",1520,"Major Gifts & Legacies",10,"11520-1","CP Major Gifts & Legacies","11520-1-1","CP Major Gifts & Legacies",100,"Administration","2021-07-01","2099-12-31","P",{"$error":"#N/A"},{"$error":"#N/A"},{"$error":"#N/A"},{"$f":"VLOOKUP(K92,WORKORDERS!$A:$P,16,FALSE)","v":"no"}]
[null,150,"Community Partnerships",155,"Milner Gardens",1550,"Milner Gardens Administration",10,"11550-1","CP Milner Gardens - Administration","11550-1-1","CP Milner Gardens - Administration",100,"Administration","2017-01-01","2099-12-31","N","University Relations",9636,"OFFICE ADMINISTRATION",{"$f":"VLOOKUP(K93,WORKORDERS!$A:$P,16,FALSE)","v":"no"}]
[null,150,"Community Partnerships",155,"Milner Gardens",1550,"Milner Gardens Administration",10,"11550-2","CP Milner Gardens - Operations","11550-2-1","CP Milner Gardens - Operations",100,"Administration","2017-01-01","2099-12-31","N","University Relations",9635,"MILNER GARDENS OPERATIONS",{"$f":"VLOOKUP(K94,WORKORDERS!$A:$P,16,FALSE)","v":"no"}]
[null,150,"Community Partnerships",155,"Milner Gardens",1551,"Milner - Other",10,"11551-1","CP Milner Gardens - Mill Road Residence","11551-1-1","CP Milner Gardens - Mill Road Residence",100,"Administration","2017-01-01","2099-12-31","N","University Relations",9675,"RESIDENTIAL HOUSE",{"$f":"VLOOKUP(K95,WORKORDERS!$A:$P,16,FALSE)","v":"no"}]
[null,150,"Community Partnerships",155,"Milner Gardens",1551,"Milner - Other",10,"11551-2","CP Milner Gardens - Major Projects","11551-2-1","CP Milner Gardens - Major Projects",100,"Administration","2017-01-01","2099-12-31","N","University Relations",9645,"CAP.PROJ-HOUSE RENOVATION",{"$f":"VLOOKUP(K96,WORKORDERS!$A:$P,16,FALSE)","v":"no"}]
[null,150,"Community Partnerships",155,"Milner Gardens",1552,"Milner - Public Openings",10,"11552-1","CP Milner - Public Openings","11552-1-1","CP Milner - Public Admissions",100,"Administration","2017-01-01","2099-12-31","N","University Relations",9634,"ADMISSION",{"$f":"VLOOKUP(K97,WORKORDERS!$A:$P,16,FALSE)","v":"no"}]
[null,150,"Community Partnerships",155,"Milner Gardens",1552,"Milner - Public Openings",10,"11552-1","CP Milner - Public Openings","11552-1-2","CP Milner - Gift Shop",100,"Administration","2017-01-01","2099-12-31","N","University Relations",9632,"GIFT SHOP",{"$f":"VLOOKUP(K98,WORKORDERS!$A:$P,16,FALSE)","v":"no"}]
[null,150,"Community Partnerships",155,"Milner Gardens",1552,"Milner - Public Openings",10,"11552-1","CP Milner - Public Openings","11552-1-3","CP Milner - Tea Room",100,"Administration","2017-01-01","2099-12-31","N","University Relations",9637,"TEA ROOM",{"$f":"VLOOKUP(K99,WORKORDERS!$A:$P,16,FALSE)","v":"no"}]
[null,150,"Community Partnerships",155,"Milner Gardens",1552,"Milner - Public Openings",10,"11552-1","CP Milner - Public Openings","11552-1-4","CP Milner - House Rental",100,"Administration","2017-01-01","2099-12-31","N","University Relations",9630,"HOUSE RENTAL",{"$f":"VLOOKUP(K100,WORKORDERS!$A:$P,16,FALSE)","v":"no"}]
[null,150,"Community Partnerships",155,"Milner Gardens",1552,"Milner - Public Openings",10,"11552-1","CP Milner - Public Openings","11552-1-5","CP Milner - Memberships",100,"Administration","2017-01-01","2099-12-31","N","University Relations",9638,"MEMBERSHIP",{"$f":"VLOOKUP(K101,WORKORDERS!$A:$P,16,FALSE)","v":"no"}]
[null,150,"Community Partnerships",155,"Milner Gardens",1552,"Milner - Public Openings",10,"11552-1","CP Milner - Public Openings","11552-1-6","CP Milner - Nursery and Plant Production",100,"Administration","2017-01-01","2099-12-31","N","University Relations",9631,"NURSERY/PLANT PRODUCTION",{"$f":"VLOOKUP(K102,WORKORDERS!$A:$P,16,FALSE)","v":"no"}]
[null,150,"Community Partnerships",155,"Milner Gardens",1552,"Milner - Public Openings",10,"11552-2","CP Milner - Public Events","11552-2-1","CP Milner - Small Events",100,"Administration","2017-01-01","2099-12-31","N","University Relations",9655,"MILNER - SMALL EVENTS",{"$f":"VLOOKUP(K103,WORKORDERS!$A:$P,16,FALSE)","v":"no"}]
[null,150,"Community Partnerships",155,"Milner Gardens",1552,"Milner - Public Openings",10,"11552-2","CP Milner - Public Events","11552-2-2","CP Milner - Christmas Magic",100,"Administration","2017-01-01","2099-12-31","N","University Relations",9642,"MILNER CHRISTMAS MAGIC",{"$f":"VLOOKUP(K104,WORKORDERS!$A:$P,16,FALSE)","v":"no"}]
[null,150,"Community Partnerships",155,"Milner Gardens",1552,"Milner - Public Openings",10,"11552-2","CP Milner - Public Events","11552-2-3","CP Milner - Art and Photography",100,"Administration","2017-01-01","2099-12-31","N","University Relations",9653,"ART & PHOTOGRAPHY",{"$f":"VLOOKUP(K105,WORKORDERS!$A:$P,16,FALSE)","v":"no"}]
[null,150,"Community Partnerships",155,"Milner Gardens",1552,"Milner - Public Openings",10,"11552-3","CP Milner - Programs","11552-3-1","CP Milner - Roots & Shoots",100,"Administration","2017-01-01","2099-12-31","N","University Relations",9646,"ROOTS & SHOOTS/FOOD GARDN",{"$f":"VLOOKUP(K106,WORKORDERS!$A:$P,16,FALSE)","v":"no"}]
[null,150,"Community Partnerships",155,"Milner Gardens",1553,"Milner - Volunteers",10,"11553-1","CP Milner - Volunteers","11553-1-1","CP Milner - Volunteers",100,"Administration","2017-01-01","2099-12-31","N","University Relations",9629,"VOLUNTEER EXPENSES",{"$f":"VLOOKUP(K107,WORKORDERS!$A:$P,16,FALSE)","v":"no"}]
[null,150,"Community Partnerships",155,"Milner Gardens",1554,"Milner - MGW Society",10,"11554-1","CP Milner - MGW Society","11554-1-1","CP MGW Society - Donations, Drop Boxes",100,"Administration","2017-01-01","2099-12-31","N","University Relations",9641,"DONATIONS/DROP BOXES",{"$f":"VLOOKUP(K108,WORKORDERS!$A:$P,16,FALSE)","v":"no"}]
[null,150,"Community Partnerships",155,"Milner Gardens",1554,"Milner - MGW Society",10,"11554-1","CP Milner - MGW Society","11554-1-2","CP MGW Society - Donations, Memberships & Other",100,"Administration","2017-01-01","2099-12-31","N","University Relations",9640,"DONATION/MEMBERSHIP/OTHER",{"$f":"VLOOKUP(K109,WORKORDERS!$A:$P,16,FALSE)","v":"no"}]
[null,150,"Community Partnerships",155,"Milner Gardens",1554,"Milner - MGW Society",10,"11554-1","CP Milner - MGW Society","11554-1-3","CP MGW Society - Investment Income",100,"Administration","2017-01-01","2099-12-31","N","University Relations",9625,"MILNER INVESTMENT INCOME",{"$f":"VLOOKUP(K110,WORKORDERS!$A:$P,16,FALSE)","v":"no"}]
[null,160,"University Secretary",160,"University Secretary",1600,"University Secretary",10,"11600-1","USEC University Secretary","11600-1-1","USEC University Secretary",100,"Administration","2017-01-01","2099-12-31","N","University Secretariat",8811,"UNIVERSITY SECRETARIAT",{"$f":"VLOOKUP(K111,WORKORDERS!$A:$P,16,FALSE)","v":"no"}]
[null,160,"University Secretary",160,"University Secretary",1601,"University Secretary - Initiatives",50,"51601-1","USEC Minor Capital","51601-1-1","USEC Minor Capital",500,"Capital - General","2021-07-01","2099-12-31","P",{"$error":"#N/A"},{"$error":"#N/A"},{"$error":"#N/A"},{"$f":"VLOOKUP(K112,WORKORDERS!$A:$P,16,FALSE)","v":"no"}]
[null,"160","University Secretary","160","University Secretary","1600","University Secretary","10","11600-1","USEC University Secretary","11600-1-2","USEC University Secretary - Presidents Installation","100","Administration","2021-03-27","2099-12-31","N","University Secretariat",8813,"PRESIDENTS INSTALLATION",{"$f":"VLOOKUP(K113,WORKORDERS!$A:$P,16,FALSE)","v":"no"}]
[null,160,"University Secretary",160,"University Secretary",1610,"VIU Board",10,"11610-1","USEC VIU Board","11610-1-1","USEC VIU Board",101,"Institutional","2017-01-01","2099-12-31","N","University Secretariat",8810,"VIU BOARD",{"$f":"VLOOKUP(K114,WORKORDERS!$A:$P,16,FALSE)","v":"no"}]
[null,160,"University Secretary",160,"University Secretary",1620,"University Senate",10,"11620-1","USEC University Senate","11620-1-1","USEC University Senate",101,"Institutional","2017-01-01","2099-12-31","N","University Secretariat",8812,"UNIVERSITY SENTATE ",{"$f":"VLOOKUP(K115,WORKORDERS!$A:$P,16,FALSE)","v":"no"}]
[null,200,"Provost and VP Academic - Office",200,"Provost and VP Academic - Office",2000,"Provost VP Academic - Office",10,"12000-1","PVPA Office","12000-1-1","PVPA Office",200,"Academic Administration","2017-01-01","2099-12-31","N","Provost and VP Academic - Office",1010,"PROVOST & VPA",{"$f":"VLOOKUP(K116,WORKORDERS!$A:$P,16,FALSE)","v":"no"}]
[null,200,"Provost and VP Academic - Office",200,"Provost and VP Academic - Office",2000,"Provost VP Academic - Office",10,"12000-1","PVPA Office","12000-1-2","PVPA Professional Development",200,"Academic Administration","2017-01-01","2099-12-31","N","Provost and VP Academic - Office",1007,"VP ACADEMIC - PRO D",{"$f":"VLOOKUP(K117,WORKORDERS!$A:$P,16,FALSE)","v":"no"}]
[null,200,"Provost and VP Academic - Office",200,"Provost and VP Academic - Office",2000,"Provost VP Academic - Office",10,"12000-1","PVPA Office","12000-1-3","PVPA Interim PVPA Professional Development",200,"Academic Administration","2017-01-01","2099-12-31","N","Provost and VP Academic - Office",1018,"INTERIM PROVOST & VPA-PD",{"$f":"VLOOKUP(K118,WORKORDERS!$A:$P,16,FALSE)","v":"no"}]
[null,200,"Provost and VP Academic - Office",200,"Provost and VP Academic - Office",4000,"AVPA - Office",10,"14000-1","PVPA - AVPA Office","14000-1-1","PVPA - AVPA Office",200,"Academic Administration","2017-01-01","2099-12-31","N","Provost and VP Academic - Office",1012,"ASSOCIATE VP ACADEMIC",{"$f":"VLOOKUP(K119,WORKORDERS!$A:$P,16,FALSE)","v":"no"}]
[null,200,"Provost and VP Academic - Office",200,"Provost and VP Academic - Office",4000,"AVPA - Office",10,"14000-1","PVPA - AVPA Office","14000-1-2","PVPA - AVPA Interim AVPA Professional Development",200,"Academic Administration","2017-01-01","2099-12-31","N","Provost and VP Academic - Office",1019,"ACTING ASSOC. VPA - PD",{"$f":"VLOOKUP(K120,WORKORDERS!$A:$P,16,FALSE)","v":"no"}]
[null,200,"Provost and VP Academic - Office",200,"Provost and VP Academic - Office",4000,"AVPA - Office",10,"14000-2","PVPA - AVPA Business Case Office","14000-2-1","PVPA - AVPA Business Case Office",200,"Academic Administration","2021-07-01","2099-12-31","P",{"$error":"#N/A"},{"$error":"#N/A"},{"$error":"#N/A"},{"$f":"VLOOKUP(K121,WORKORDERS!$A:$P,16,FALSE)","v":"no"}]
[null,201,"PVPA - Centralized Academic Units",201,"PVPA Initiatives and Instructional Support",2010,"PVPA Initiatives",10,"12010-1","PVPA-CAU PVPA Initiatives","12010-1-1","PVPA-CAU PVPA Initiatives",200,"Academic Administration","2017-01-01","2099-12-31","N","PVPA - Central.Academic Units",1032,"PVPA INITIATIVES",{"$f":"VLOOKUP(K122,WORKORDERS!$A:$P,16,FALSE)","v":"no"}]
[null,201,"PVPA - Centralized Academic Units",201,"PVPA Initiatives and Instructional Support",2010,"PVPA Initiatives",50,"52010-1","PVPA-CAU Minor Capital","52010-1-1","PVPA-CAU Minor Capital",500,"Capital - General","2021-07-01","2099-12-31","P",{"$error":"#N/A"},{"$error":"#N/A"},{"$error":"#N/A"},{"$f":"VLOOKUP(K123,WORKORDERS!$A:$P,16,FALSE)","v":"no"}]
[null,201,"PVPA - Centralized Academic Units",201,"PVPA Initiatives and Instructional Support",2015,"Academic Instructional Support",10,"12015-1","PVPA-CAU Provost Contingency","12015-1-1","PVPA-CAU Provost Contingency",200,"Academic Administration","2017-01-01","2099-12-31","N","PVPA - Central.Academic Units",1030,"ACADEMIC INST. ADMIN",{"$f":"VLOOKUP(K124,WORKORDERS!$A:$P,16,FALSE)","v":"no"}]
[null,201,"PVPA - Centralized Academic Units",201,"PVPA Initiatives and Instructional Support",2015,"Academic Instructional Support",10,"12015-2","PVPA-CAU Academic Travel","12015-2-1","PVPA-CAU Travel - UT Instructional Delivery",200,"Academic Administration","2017-01-01","2099-12-31","N","PVPA - Central.Academic Units",1022,"UT INSTR.DELIVERY TRAVEL",{"$f":"VLOOKUP(K125,WORKORDERS!$A:$P,16,FALSE)","v":"no"}]
[null,201,"PVPA - Centralized Academic Units",201,"PVPA Initiatives and Instructional Support",2015,"Academic Instructional Support",10,"12015-2","PVPA-CAU Academic Travel","12015-2-2","PVPA-CAU Travel - Instructional Recruitment",200,"Academic Administration","2017-01-01","2099-12-31","N","PVPA - Central.Academic Units",1042,"INSTR.RECRUITMENT-TRAVEL",{"$f":"VLOOKUP(K126,WORKORDERS!$A:$P,16,FALSE)","v":"no"}]
[null,201,"PVPA - Centralized Academic Units",201,"PVPA Initiatives and Instructional Support",2015,"Academic Instructional Support",10,"12015-3","PVPA-CAU Professional Development","12015-3-1","PVPA-CAU Professional Development - UBC Doctor Education",200,"Academic Administration","2017-01-01","2099-12-31","N","PVPA - Central.Academic Units",1029,"PRO-D UBC DOC EDUCATION",{"$f":"VLOOKUP(K127,WORKORDERS!$A:$P,16,FALSE)","v":"no"}]
[null,201,"PVPA - Centralized Academic Units",201,"PVPA Initiatives and Instructional Support",2015,"Academic Instructional Support",10,"12015-4","PVPA-CAU Curriculum Development Fund","12015-4-1","PVPA-CAU Curriculum Development Fund",200,"Academic Administration","2017-01-01","2099-12-31","N","PVPA - Central.Academic Units",1017,"CURRICULUM DEV. FUND",{"$f":"VLOOKUP(K128,WORKORDERS!$A:$P,16,FALSE)","v":"no"}]
[null,201,"PVPA - Centralized Academic Units",201,"PVPA Initiatives and Instructional Support",2015,"Academic Instructional Support",10,"12015-5","PVPA-CAU Theatre Operations","12015-5-1","PVPA-CAU Theatre Operations",200,"Academic Administration","2017-01-01","2099-12-31","N","PVPA - Central.Academic Units",1034,"THEATRE OPERATIONS",{"$f":"VLOOKUP(K129,WORKORDERS!$A:$P,16,FALSE)","v":"no"}]
[null,201,"PVPA - Centralized Academic Units",201,"PVPA Initiatives and Instructional Support",2015,"Academic Instructional Support",10,"12015-6","PVPA-CAU International Academic Support","12015-6-1","PVPA-CAU International Academic Support",200,"Academic Administration","2021-03-27","2099-12-31","N",{"$error":"#N/A"},{"$error":"#N/A"},{"$error":"#N/A"},{"$f":"VLOOKUP(K130,WORKORDERS!$A:$P,16,FALSE)","v":"no"}]
[null,201,"PVPA - Centralized Academic Units",202,"AVP Academic Initiatives",4010,"AVPA Initiatives",10,"14010-1","PVPA-CAU AVPA Initiatives","14010-1-1","PVPA-CAU AVPA Initiatives",200,"Academic Administration","2017-01-01","2099-12-31","N","PVPA - Central. Academic Units",1038,"AVPA INITIATIVES",{"$f":"VLOOKUP(K131,WORKORDERS!$A:$P,16,FALSE)","v":"no"}]
[null,201,"PVPA - Centralized Academic Units",202,"AVP Academic Initiatives",4010,"AVPA Initiatives",10,"14010-2","PVPA-CAU AVPA Initiatives - Writing Centre","14010-2-1","PVPA-CAU AVPA Initiatives - Writing Centre",210,"Writing Centre","2017-01-01","2099-12-31","N","PVPA - Central. Academic Units",1033,"WRITING CENTRE",{"$f":"VLOOKUP(K132,WORKORDERS!$A:$P,16,FALSE)","v":"no"}]
[null,201,"PVPA - Centralized Academic Units",202,"AVP Academic Initiatives",4010,"AVPA Initiatives",10,"14010-3","PVPA-CAU AVPA Initiatives - Dual Credit","14010-3-1","PVPA-CAU AVPA Initiatives - Dual Credit",200,"Academic Administration","2020-03-28","2099-12-31","N","PVPA - Central. Academic Units",1035,"DUAL CREDIT",{"$f":"VLOOKUP(K133,WORKORDERS!$A:$P,16,FALSE)","v":"no"}]
[null,201,"PVPA - Centralized Academic Units",205,"PVPA University Planning and Analysis",4200,"University Planning and Analysis",10,"14200-1","PVPA-CAU UPA University Planning and Analysis","14200-1-1","PVPA-CAU UPA University Planning and Analysis",200,"Academic Administration","2017-01-01","2099-12-31","N","PVPA - Central. Academic Units",1015,"UNIVERSITY PLAN/ANALYSIS",{"$f":"VLOOKUP(K134,WORKORDERS!$A:$P,16,FALSE)","v":"no"}]
[null,201,"PVPA - Centralized Academic Units",205,"PVPA University Planning and Analysis",4205,"UPA Programs",10,"14205-1","PVPA-CAU UPA Programs - Review","14205-1-1","PVPA-CAU UPA Programs - Review",218,"Program Review","2017-01-01","2099-12-31","N","PVPA - Central. Academic Units",1016,"PROGRAM REVIEW",{"$f":"VLOOKUP(K135,WORKORDERS!$A:$P,16,FALSE)","v":"no"}]
[null,201,"PVPA - Centralized Academic Units",205,"PVPA University Planning and Analysis",4205,"UPA Programs",10,"14205-2","PVPA-CAU UPA Programs - Development","14205-2-1","PVPA-CAU UPA Programs - Development",200,"Academic Administration","2021-07-01","2099-12-31","P",{"$error":"#N/A"},{"$error":"#N/A"},{"$error":"#N/A"},{"$f":"VLOOKUP(K136,WORKORDERS!$A:$P,16,FALSE)","v":"no"}]
[null,201,"PVPA - Centralized Academic Units",205,"PVPA University Planning and Analysis",4210,"UPA Surveys",10,"14210-1","PVPA-CAU UPA Surveys","14210-1-1","PVPA-CAU UPA Surveys",200,"Academic Administration","2021-07-01","2099-12-31","P",{"$error":"#N/A"},{"$error":"#N/A"},{"$error":"#N/A"},{"$f":"VLOOKUP(K137,WORKORDERS!$A:$P,16,FALSE)","v":"no"}]
[null,201,"PVPA - Centralized Academic Units",205,"PVPA University Planning and Analysis",4210,"UPA Surveys",10,"14210-2","PVPA-CAU UPA Surveys - Students","14210-2-1","PVPA-CAU UPA Surveys - Students - NSSE",200,"Academic Administration","2021-07-01","2099-12-31","P",{"$error":"#N/A"},{"$error":"#N/A"},{"$error":"#N/A"},{"$f":"VLOOKUP(K138,WORKORDERS!$A:$P,16,FALSE)","v":"no"}]
[null,201,"PVPA - Centralized Academic Units",205,"PVPA University Planning and Analysis",4210,"UPA Surveys",10,"14210-2","PVPA-CAU UPA Surveys - Students","14210-2-2","PVPA-CAU UPA Surveys - Students - BGE",200,"Academic Administration","2021-07-01","2099-12-31","P",{"$error":"#N/A"},{"$error":"#N/A"},{"$error":"#N/A"},{"$f":"VLOOKUP(K139,WORKORDERS!$A:$P,16,FALSE)","v":"no"}]
[null,201,"PVPA - Centralized Academic Units",205,"PVPA University Planning and Analysis",4210,"UPA Surveys",10,"14210-3","PVPA-CAU UPA Surveys - Institutional","14210-3-1","PVPA-CAU UPA Surveys - Institutional",200,"Academic Administration","2021-07-01","2099-12-31","P",{"$error":"#N/A"},{"$error":"#N/A"},{"$error":"#N/A"},{"$f":"VLOOKUP(K140,WORKORDERS!$A:$P,16,FALSE)","v":"no"}]
[null,201,"PVPA - Centralized Academic Units",205,"PVPA University Planning and Analysis",4210,"UPA Surveys",10,"14210-3","PVPA-CAU UPA Surveys - Institutional","14210-3-2","PVPA-CAU UPA Surveys - Institutional - TBD",200,"Academic Administration","2021-07-01","2099-12-31","P",{"$error":"#N/A"},{"$error":"#N/A"},{"$error":"#N/A"},{"$f":"VLOOKUP(K141,WORKORDERS!$A:$P,16,FALSE)","v":"no"}]
[null,210,"Academic and Career Preparation",210,"Academic and Career Preparation",2100,"Faculty of Academic and Career Preparation",10,"12100-1","ACP Faculty Dean's Office","12100-1-1","ACP Faculty Dean's Office",201,"Faculty Administration","2017-01-01","2099-12-31","N","Academic and Career Preparation",2700,"ABE & CAP ADMINISTRATRATION",{"$f":"VLOOKUP(K142,WORKORDERS!$A:$P,16,FALSE)","v":"no"}]
[null,210,"Academic and Career Preparation",210,"Academic and Career Preparation",2101,"Academic and Career Preparation - Initiatives",10,"12101-1","ACP Faculty Initiatives","12101-1-1","ACP Faculty Initiatives",201,"Faculty Administration","2021-07-01","2099-12-31","P",{"$error":"#N/A"},{"$error":"#N/A"},{"$error":"#N/A"},{"$f":"VLOOKUP(K143,WORKORDERS!$A:$P,16,FALSE)","v":"no"}]
[null,210,"Academic and Career Preparation",210,"Academic and Career Preparation",2101,"Academic and Career Preparation - Initiatives",50,"52101-1","ACP Minor Capital","52101-1-1","ACP Minor Capital",500,"Capital - General","2021-07-01","2099-12-31","P",{"$error":"#N/A"},{"$error":"#N/A"},{"$error":"#N/A"},{"$f":"VLOOKUP(K144,WORKORDERS!$A:$P,16,FALSE)","v":"no"}]
[null,210,"Academic and Career Preparation",210,"Academic and Career Preparation",2105,"Adult Basic Education",10,"12105-1","ACP ABE - Nanaimo","12105-1-1","ACP ABE - Nanaimo",208,"Instruction","2017-01-01","2099-12-31","N","Academic and Career Preparation",2730,"ADULT BASIC EDU",{"$f":"VLOOKUP(K145,WORKORDERS!$A:$P,16,FALSE)","v":"no"}]
[null,210,"Academic and Career Preparation",210,"Academic and Career Preparation",2105,"Adult Basic Education",10,"12105-1","ACP ABE - Nanaimo","12105-1-2","ACP ABE - Aboriginal University Bridging",208,"Instruction","2017-01-01","2099-12-31","N","Academic and Career Preparation",2770,"ABORIGINAL UNIV. BRIDGING",{"$f":"VLOOKUP(K146,WORKORDERS!$A:$P,16,FALSE)","v":"no"}]
[null,210,"Academic and Career Preparation",210,"Academic and Career Preparation",2105,"Adult Basic Education",10,"12105-2","ACP ABE - Cowichan","12105-2-1","ACP ABE - Cowichan",208,"Instruction","2017-01-01","2099-12-31","N","Academic and Career Preparation",2752,"COWICHAN-A.B.E.",{"$f":"VLOOKUP(K147,WORKORDERS!$A:$P,16,FALSE)","v":"no"}]
[null,210,"Academic and Career Preparation",210,"Academic and Career Preparation",2105,"Adult Basic Education",10,"12105-3","ACP ABE - Parksville","12105-3-1","ACP ABE - Parksville",208,"Instruction","2017-01-01","2099-12-31","N","Academic and Career Preparation",2780,"PARKSVILLE A.B.E.",{"$f":"VLOOKUP(K148,WORKORDERS!$A:$P,16,FALSE)","v":"no"}]
[null,210,"Academic and Career Preparation",210,"Academic and Career Preparation",2105,"Adult Basic Education",10,"12105-4","ACP ABE - Learning Centre","12105-4-1","ACP ABE - Learning Centre",208,"Instruction","2017-01-01","2099-12-31","N","Academic and Career Preparation",2705,"ABE LEARNING CENTRE",{"$f":"VLOOKUP(K149,WORKORDERS!$A:$P,16,FALSE)","v":"no"}]
[null,210,"Academic and Career Preparation",210,"Academic and Career Preparation",2110,"Adult Special Education",10,"12110-1","ACP ASE - Nanaimo","12110-1-1","ACP ASE - Nanaimo",208,"Instruction","2017-01-01","2099-12-31","N","Academic and Career Preparation",2741,"ACCESS PROGRAMS",{"$f":"VLOOKUP(K150,WORKORDERS!$A:$P,16,FALSE)","v":"no"}]
[null,210,"Academic and Career Preparation",210,"Academic and Career Preparation",2110,"Adult Special Education",10,"12110-2","ACP ASE - Cowichan","12110-2-1","ACP ASE - Cowichan",208,"Instruction","2017-01-01","2099-12-31","N","Academic and Career Preparation",2755,"COWICHAN-ACCESS PROGRAMS",{"$f":"VLOOKUP(K151,WORKORDERS!$A:$P,16,FALSE)","v":"no"}]
[null,210,"Academic and Career Preparation",210,"Academic and Career Preparation",2110,"Adult Special Education",20,"22110-1","ACP ASE - CETP Grant","22110-1-1","ACP ASE - CETP Grant",208,"Instruction","2017-01-01","2099-12-31","N","CE - Academic & Career Prep",2903,"CETP 2019-2020",{"$f":"VLOOKUP(K152,WORKORDERS!$A:$P,16,FALSE)","v":"no"}]
[null,210,"Academic and Career Preparation",210,"Academic and Career Preparation",2110,"Adult Special Education",20,"22110-2","ACP ASE - WEST Grant","22110-2-1","ACP ASE - WEST Grant",208,"Instruction","2017-01-01","2099-12-31","N","CE - Academic & Career Prep",2904,"WEST MINSTRY GRANT 2019",{"$f":"VLOOKUP(K153,WORKORDERS!$A:$P,16,FALSE)","v":"no"}]
[null,210,"Academic and Career Preparation",210,"Academic and Career Preparation",2115,"Foundations for Success",10,"12115-1","ACP Foundations for Success","12115-1-1","ACP Foundations for Success",208,"Instruction","2017-01-01","2099-12-31","N","Academic and Career Preparation",2706,"FOUNDATIONS FOR SUCCESS",{"$f":"VLOOKUP(K154,WORKORDERS!$A:$P,16,FALSE)","v":"no"}]
[null,210,"Academic and Career Preparation",210,"Academic and Career Preparation",2120,"Volunteer Tutors and Community Adult Literacy",10,"12120-1","ACP Volunteer Tutors - Nanaimo","12120-1-1","ACP Volunteer Tutors - Nanaimo",208,"Instruction","2017-01-01","2099-12-31","N","Academic and Career Preparation",2736,"VOLUNTEER TUTOR",{"$f":"VLOOKUP(K155,WORKORDERS!$A:$P,16,FALSE)","v":"no"}]
[null,210,"Academic and Career Preparation",210,"Academic and Career Preparation",2120,"Volunteer Tutors and Community Adult Literacy",10,"12120-2","ACP Volunteer Tutors - Cowichan","12120-2-1","ACP Volunteer Tutors - Cowichan",208,"Instruction","2017-01-01","2099-12-31","N","Academic and Career Preparation",2750,"COWICHAN-VOLUNTEER TUTORS",{"$f":"VLOOKUP(K156,WORKORDERS!$A:$P,16,FALSE)","v":"no"}]
[null,210,"Academic and Career Preparation",210,"Academic and Career Preparation",2120,"Volunteer Tutors and Community Adult Literacy",10,"12120-3","ACP Community Adult Literacy Programs","12120-3-1","ACP Community Adult Literacy Programs",208,"Instruction","2017-01-01","2099-12-31","N","Academic and Career Preparation",2735,"REGIONAL PROGRAMS",{"$f":"VLOOKUP(K157,WORKORDERS!$A:$P,16,FALSE)","v":"no"}]
[null,210,"Academic and Career Preparation",210,"Academic and Career Preparation",2125,"English Language Learning",20,"22125-1","ACP English Language Learning ","22125-1-1","ACP English Language Learning ",208,"Instruction","2021-03-27","2099-12-31","N",{"$error":"#N/A"},{"$error":"#N/A"},{"$error":"#N/A"},{"$f":"VLOOKUP(K158,WORKORDERS!$A:$P,16,FALSE)","v":"no"}]
[null,220,"Arts and Humanities",220,"Arts and Humanitites",2200,"Faculty of Arts and Humanities",10,"12200-1","AH Faculty Dean's Office","12200-1-1","AH Faculty Dean's Office",201,"Faculty Administration","2017-01-01","2099-12-31","N","Arts & Humanities",2000,"DEAN, ARTS AND HUMANITIES",{"$f":"VLOOKUP(K159,WORKORDERS!$A:$P,16,FALSE)","v":"no"}]
[null,220,"Arts and Humanities",220,"Arts and Humanitites",2201,"Arts and Humanities - Initiatives",10,"12201-1","AH Faculty Initiatives","12201-1-1","AH Faculty Initiatives",201,"Faculty Administration","2021-07-01","2099-12-31","P",{"$error":"#N/A"},{"$error":"#N/A"},{"$error":"#N/A"},{"$f":"VLOOKUP(K160,WORKORDERS!$A:$P,16,FALSE)","v":"yes"}]
[null,220,"Arts and Humanities",220,"Arts and Humanitites",2201,"Arts and Humanities - Initiatives",10,"12201-1","AH Faculty Initiatives","12201-1-2","AH Faculty Advising",204,"Advising","2017-01-01","2099-12-31","N","Arts & Humanities",2005,"ARTS AND F.N.ST ADVISING",{"$f":"VLOOKUP(K161,WORKORDERS!$A:$P,16,FALSE)","v":"yes"}]
[null,220,"Arts and Humanities",220,"Arts and Humanitites",2201,"Arts and Humanities - Initiatives",50,"52201-1","AH Minor Capital","52201-1-1","AH Minor Capital",500,"Capital - General","2021-07-01","2099-12-31","P",{"$error":"#N/A"},{"$error":"#N/A"},{"$error":"#N/A"},{"$f":"VLOOKUP(K162,WORKORDERS!$A:$P,16,FALSE)","v":"no"}]
[null,220,"Arts and Humanities",220,"Arts and Humanitites",2201,"Arts and Humanities - Initiatives",10,"12201-2","AH Faculty of Arts and Humanities - Initiatives - International Sections","12201-2-1","AH Faculty of Arts and Humanities - Initiatives - International Sections",208,"Instruction","2017-01-01","2099-12-31","N","Arts & Humanities",2003,"INTERED SECTIONS ARTS",{"$f":"VLOOKUP(K163,WORKORDERS!$A:$P,16,FALSE)","v":"no"}]
[null,220,"Arts and Humanities",220,"Arts and Humanitites",2201,"Arts and Humanities - Initiatives",10,"12201-3","AH Faculty of Arts and Humanities - Initiatives - Directed Studies","12201-3-1","AH Faculty of Arts and Humanities - Initiatives - Directed Studies",208,"Instruction","2017-01-01","2099-12-31","N","Arts & Humanities",2002,"A & H DIRECTED STUDIES",{"$f":"VLOOKUP(K164,WORKORDERS!$A:$P,16,FALSE)","v":"no"}]
[null,220,"Arts and Humanities",220,"Arts and Humanitites",2201,"Arts and Humanities - Initiatives",20,"22201-1","AH Faculty of Arts and Humanities - Faculty Holding","22201-1-1","AH Faculty of Arts and Humanities - Faculty Holding",221,"Department Initiatives","2017-01-01","2099-12-31","N","Contracts - Arts & Humanities",2201,"ARTS-CONTRACTS-HOLDING",{"$f":"VLOOKUP(K165,WORKORDERS!$A:$P,16,FALSE)","v":"no"}]
[null,220,"Arts and Humanities",220,"Arts and Humanitites",2201,"Arts and Humanities - Initiatives",20,"22201-2","AH Faculty of Arts and Humanities - Gustafson","22201-2-1","AH Faculty of Arts and Humanities - Gustafson - Poetry Trust",221,"Department Initiatives","2017-01-01","2099-12-31","N","Contracts - Arts & Humanities",2209,"RALPH GUSTAFSON POETRY TR",{"$f":"VLOOKUP(K166,WORKORDERS!$A:$P,16,FALSE)","v":"no"}]
[null,220,"Arts and Humanities",220,"Arts and Humanitites",2201,"Arts and Humanities - Initiatives",20,"22201-2","AH Faculty of Arts and Humanities - Gustafson","22201-2-2","AH Faculty of Arts and Humanities - Gustafson - Chapbook Series",221,"Department Initiatives","2017-01-01","2099-12-31","N","Contracts - Arts & Humanities",2220,"GUSTAFSON CHAPBOOKS SERIE",{"$f":"VLOOKUP(K167,WORKORDERS!$A:$P,16,FALSE)","v":"no"}]
[null,220,"Arts and Humanities",220,"Arts and Humanitites",2201,"Arts and Humanities - Initiatives",20,"22201-3","AH Faculty of Arts and Humanities - Other","22201-3-1","AH Faculty of Arts and Humanities - Other - Meta Lab",221,"Department Initiatives","2017-01-01","2099-12-31","N","Contracts - Arts & Humanities",2205,"MISC META LAB NEEDS",{"$f":"VLOOKUP(K168,WORKORDERS!$A:$P,16,FALSE)","v":"no"}]
[null,220,"Arts and Humanities",220,"Arts and Humanitites",2201,"Arts and Humanities - Initiatives",20,"22201-3","AH Faculty of Arts and Humanities - Other","22201-3-2","AH Faculty of Arts and Humanities - Other - Colloquium Series",221,"Department Initiatives","2017-01-01","2099-12-31","N","Contracts - Arts & Humanities",2207,"A&H COLLOQUIUM SERIES",{"$f":"VLOOKUP(K169,WORKORDERS!$A:$P,16,FALSE)","v":"no"}]
[null,220,"Arts and Humanities",220,"Arts and Humanitites",2201,"Arts and Humanities - Initiatives",20,"22201-3","AH Faculty of Arts and Humanities - Other","22201-3-3","AH Faculty of Arts and Humanities - Other - Canada Council Readings",221,"Department Initiatives","2020-03-28","2099-12-31","N","Contracts - Arts & Humanities",2202,"CANADA COUNCIL READINGS",{"$f":"VLOOKUP(K170,WORKORDERS!$A:$P,16,FALSE)","v":"no"}]
[null,220,"Arts and Humanities",220,"Arts and Humanitites",2201,"Arts and Humanities - Initiatives",20,"22201-4","AH Faculty - General Research","22201-4-1","AH General Research - Wood",302,"General Research","2020-03-28","2099-12-31","N","Contracts - Arts & Humanities",2260,"GENERAL RESEARCH - WOOD",{"$f":"VLOOKUP(K171,WORKORDERS!$A:$P,16,FALSE)","v":"no"}]
[null,220,"Arts and Humanities",220,"Arts and Humanitites",2205,"Art and Design - Graphic Design",10,"12205-1","AH Art and Design - Graphic Design","12205-1-1","AH Art and Design - Graphic Design",208,"Instruction","2017-01-01","2099-12-31","N","Arts & Humanities",2011,"APPLIED ART - GRAPHICS",{"$f":"VLOOKUP(K172,WORKORDERS!$A:$P,16,FALSE)","v":"no"}]
[null,220,"Arts and Humanities",220,"Arts and Humanitites",2205,"Art and Design - Graphic Design",20,"22205-1","AH Art and Design - Graphic Design - Other","22205-1-1","AH Art and Design - Graphic Design - Other - Student Art Sales",227,"Student Sales","2017-01-01","2099-12-31","N","Contracts - Arts & Humanities",2210,"STUDENT ART SALES",{"$f":"VLOOKUP(K173,WORKORDERS!$A:$P,16,FALSE)","v":"yes"}]
[null,220,"Arts and Humanities",220,"Arts and Humanitites",2205,"Art and Design - Graphic Design",20,"22205-1","AH Art and Design - Graphic Design - Other","22205-1-2","AH Art and Design - Graphic Design - Other - Visiting Artists Series",208,"Instruction","2017-01-01","2099-12-31","N","Contracts - Arts & Humanities",2211,"VISITING ARTIST SERIES",{"$f":"VLOOKUP(K174,WORKORDERS!$A:$P,16,FALSE)","v":"yes"}]
[null,220,"Arts and Humanities",220,"Arts and Humanitites",2205,"Art and Design - Graphic Design",20,"22205-1","AH Art and Design - Graphic Design - Other","22205-1-3","AH Art and Design - Graphic Design - Other - ARTG 480 FINAL exhibit",208,"Instruction","2017-01-01","2099-12-31","N","Contracts - Arts & Humanities",2212,"ARTG 480 FINAL EXHIBIT",{"$f":"VLOOKUP(K175,WORKORDERS!$A:$P,16,FALSE)","v":"yes"}]
[null,220,"Arts and Humanities",220,"Arts and Humanitites",2210,"Art and Design - Interior Design",10,"12210-1","AH Art and Design - Interior Design","12210-1-1","AH Art and Design - Interior Design",208,"Instruction","2017-01-01","2099-12-31","N","Arts & Humanities",2012,"INTERIOR DESIGN",{"$f":"VLOOKUP(K176,WORKORDERS!$A:$P,16,FALSE)","v":"no"}]
[null,220,"Arts and Humanities",220,"Arts and Humanitites",2210,"Art and Design - Interior Design",20,"22210-1","AH Art and Design - Interior Design - Other","22210-1-1","AH Art and Design - Interior Design - Other - Student Art Sales",227,"Student Sales","2021-07-01","2099-12-31","P",{"$error":"#N/A"},{"$error":"#N/A"},{"$error":"#N/A"},{"$f":"VLOOKUP(K177,WORKORDERS!$A:$P,16,FALSE)","v":"no"}]
[null,220,"Arts and Humanities",220,"Arts and Humanitites",2210,"Art and Design - Interior Design",20,"22210-1","AH Art and Design - Interior Design - Other","22210-1-2","AH Art and Design - Interior Design - Other - Visiting Artists Series",208,"Instruction","2021-07-01","2099-12-31","P",{"$error":"#N/A"},{"$error":"#N/A"},{"$error":"#N/A"},{"$f":"VLOOKUP(K178,WORKORDERS!$A:$P,16,FALSE)","v":"no"}]
[null,220,"Arts and Humanities",220,"Arts and Humanitites",2215,"Art and Design - Visual Art",10,"12215-1","AH Art and Design - Visual Art","12215-1-1","AH Art and Design - Visual Art",208,"Instruction","2017-01-01","2099-12-31","N","Arts & Humanities",2010,"ART",{"$f":"VLOOKUP(K179,WORKORDERS!$A:$P,16,FALSE)","v":"yes"}]
[null,220,"Arts and Humanities",220,"Arts and Humanitites",2215,"Art and Design - Visual Art",10,"12215-1","AH Art and Design - Visual Art","12215-1-2","AH Art and Design - Art Technician",208,"Instruction","2017-01-01","2099-12-31","N","Arts & Humanities",2009,"ART TECHNICIAN",{"$f":"VLOOKUP(K180,WORKORDERS!$A:$P,16,FALSE)","v":"yes"}]
[null,220,"Arts and Humanities",220,"Arts and Humanitites",2215,"Art and Design - Visual Art",10,"12215-1","AH Art and Design - Visual Art","12215-1-3","AH Art and Design - View Gallery",201,"Faculty Administration","2017-01-01","2099-12-31","N","Arts & Humanities",2090,"VIEW GALLERY",{"$f":"VLOOKUP(K181,WORKORDERS!$A:$P,16,FALSE)","v":"yes"}]
[null,220,"Arts and Humanities",220,"Arts and Humanitites",2215,"Art and Design - Visual Art",20,"22215-1","AH Art and Design - Visual Art - Other","22215-1-1","AH Art and Design - Visual Art - Other - Student Art Sales",227,"Student Sales","2021-07-01","2099-12-31","P",{"$error":"#N/A"},{"$error":"#N/A"},{"$error":"#N/A"},{"$f":"VLOOKUP(K182,WORKORDERS!$A:$P,16,FALSE)","v":"yes"}]
[null,220,"Arts and Humanities",220,"Arts and Humanitites",2215,"Art and Design - Visual Art",20,"22215-1","AH Art and Design - Visual Art - Other","22215-1-2","AH Art and Design - Visual Art - Other - Visiting Artists Series",208,"Instruction","2021-07-01","2099-12-31","P",{"$error":"#N/A"},{"$error":"#N/A"},{"$error":"#N/A"},{"$f":"VLOOKUP(K183,WORKORDERS!$A:$P,16,FALSE)","v":"yes"}]
[null,220,"Arts and Humanities",220,"Arts and Humanitites",2215,"Art and Design - Visual Art",20,"22215-1","AH Art and Design - Visual Art - Other","22215-1-3","AH Art and Design - Visual Art - Other - Progressions",208,"Instruction","2017-01-01","2099-12-31","N","Contracts - Arts & Humanities",2232,"PROGRESSIONS",{"$f":"VLOOKUP(K184,WORKORDERS!$A:$P,16,FALSE)","v":"yes"}]
[null,220,"Arts and Humanities",220,"Arts and Humanitites",2220,"Creative Writing and Journalism",10,"12220-1","AH Creative Writing and Journalism","12220-1-1","AH Creative Writing and Journalism",208,"Instruction","2017-01-01","2099-12-31","N","Arts & Humanities",2032,"CREATIVE WRITING",{"$f":"VLOOKUP(K185,WORKORDERS!$A:$P,16,FALSE)","v":"no"}]
[null,220,"Arts and Humanities",220,"Arts and Humanitites",2220,"Creative Writing and Journalism",10,"12220-1","AH Creative Writing and Journalism","12220-1-2","AH Creative Writing and Journalism - Extra Sections",208,"Instruction","2017-01-01","2099-12-31","N","Arts & Humanities",2035,"CREW - EXTRA SECTIONS",{"$f":"VLOOKUP(K186,WORKORDERS!$A:$P,16,FALSE)","v":"no"}]
[null,220,"Arts and Humanities",220,"Arts and Humanitites",2220,"Creative Writing and Journalism",20,"22220-1","AH Creative Writing and Journalism","22220-1-1","AH Creative Writing and Journalism - Portal Magazine",221,"Department Initiatives","2017-01-01","2099-12-31","N","Contracts - Arts & Humanities",2203,"CREATIVE WRITING - PORTAL",{"$f":"VLOOKUP(K187,WORKORDERS!$A:$P,16,FALSE)","v":"no"}]
[null,220,"Arts and Humanities",220,"Arts and Humanitites",2225,"English",10,"12225-1","AH English","12225-1-1","AH English",208,"Instruction","2017-01-01","2099-12-31","N","Arts & Humanities",2030,"ENGLISH",{"$f":"VLOOKUP(K188,WORKORDERS!$A:$P,16,FALSE)","v":"no"}]
[null,220,"Arts and Humanities",220,"Arts and Humanitites",2225,"English",10,"12225-1","AH English","12225-1-2","AH English - Extra Sections",208,"Instruction","2017-01-01","2099-12-31","N","Arts & Humanities",2029,"ENGLISH - EXTRA SECTIONS",{"$f":"VLOOKUP(K189,WORKORDERS!$A:$P,16,FALSE)","v":"no"}]
[null,220,"Arts and Humanities",220,"Arts and Humanitites",2225,"English",20,"22225-1","AH English - Other","22225-1-1","AH English - Other - Dual Credit",208,"Instruction","2017-01-01","2099-12-31","N","Contracts - Arts & Humanities",2217,"ENGL DUAL CREDIT SD68",{"$f":"VLOOKUP(K190,WORKORDERS!$A:$P,16,FALSE)","v":"no"}]
[null,220,"Arts and Humanities",220,"Arts and Humanitites",2230,"History",10,"12230-1","AH History","12230-1-1","AH History",208,"Instruction","2017-01-01","2099-12-31","N","Arts & Humanities",2052,"HISTORY",{"$f":"VLOOKUP(K191,WORKORDERS!$A:$P,16,FALSE)","v":"no"}]
[null,220,"Arts and Humanities",220,"Arts and Humanitites",2230,"History",20,"22230-1","AH History - Other","22230-1-1","AH History - Other - Canadian Letters, Images",221,"Department Initiatives","2017-01-01","2099-12-31","N","Contracts - Arts & Humanities",2214,"CANADIAN LETTERS,IMAGES",{"$f":"VLOOKUP(K192,WORKORDERS!$A:$P,16,FALSE)","v":"no"}]
[null,220,"Arts and Humanities",220,"Arts and Humanitites",2235,"Indigenous/Xwulmuxw Studies",10,"12235-1","AH Indigenous/Xwulmuxw Studies","12235-1-1","AH Indigenous/Xwulmuxw Studies",208,"Instruction","2017-01-01","2099-12-31","N","Arts & Humanities",2070,"FIRST NATIONS STUDIES",{"$f":"VLOOKUP(K193,WORKORDERS!$A:$P,16,FALSE)","v":"no"}]
[null,220,"Arts and Humanities",220,"Arts and Humanitites",2240,"Media Studies",10,"12240-1","AH Media Studies","12240-1-1","AH Media Studies",208,"Instruction","2017-01-01","2099-12-31","N","Arts & Humanities",2014,"MEDIA STUDIES",{"$f":"VLOOKUP(K194,WORKORDERS!$A:$P,16,FALSE)","v":"no"}]
[null,220,"Arts and Humanities",220,"Arts and Humanitites",2240,"Media Studies",10,"12240-1","AH Media Studies","12240-1-2","AH Media Studies - Extra Sections",208,"Instruction","2017-01-01","2099-12-31","N","Arts & Humanities",2013,"MEDIA STUDIES - EXTRA SECTIONS",{"$f":"VLOOKUP(K195,WORKORDERS!$A:$P,16,FALSE)","v":"no"}]
[null,220,"Arts and Humanities",220,"Arts and Humanitites",2240,"Media Studies",20,"22240-1","AH Media Studies - Other","22240-1-1","AH Media Studies - Other - MRL Business Activity",208,"Instruction","2017-01-01","2099-12-31","N","Contracts - Arts & Humanities",2256,"MRL BUSINESS ACTIVITY",{"$f":"VLOOKUP(K196,WORKORDERS!$A:$P,16,FALSE)","v":"no"}]
[null,220,"Arts and Humanities",220,"Arts and Humanitites",2245,"Modern Languages Studies",10,"12245-1","AH Modern Languages Studies","12245-1-1","AH Modern Languages Studies",208,"Instruction","2017-01-01","2099-12-31","N","Arts & Humanities",2026,"MODERN LANGUAGE",{"$f":"VLOOKUP(K197,WORKORDERS!$A:$P,16,FALSE)","v":"no"}]
[null,220,"Arts and Humanities",220,"Arts and Humanitites",2245,"Modern Languages Studies",10,"12245-2","AH Asian Studies Credential","12245-2-1","AH Asian Studies Credential",208,"Instruction","2017-01-01","2099-12-31","N","Arts & Humanities",2027,"ASIAN STUDIES CREDENTIAL",{"$f":"VLOOKUP(K198,WORKORDERS!$A:$P,16,FALSE)","v":"no"}]
[null,220,"Arts and Humanities",220,"Arts and Humanitites",2250,"Music",10,"12250-1","AH Music","12250-1-1","AH Music",208,"Instruction","2017-01-01","2099-12-31","N","Arts & Humanities",2016,"MUSIC",{"$f":"VLOOKUP(K199,WORKORDERS!$A:$P,16,FALSE)","v":"no"}]
[null,220,"Arts and Humanities",220,"Arts and Humanitites",2250,"Music",10,"12250-1","AH Music","12250-1-2","AH Music - Private Instruction",208,"Instruction","2017-01-01","2099-12-31","N","Arts & Humanities",2018,"MUSIC-PRIVATE INSTRUCTION",{"$f":"VLOOKUP(K200,WORKORDERS!$A:$P,16,FALSE)","v":"no"}]
[null,220,"Arts and Humanities",220,"Arts and Humanitites",2250,"Music",20,"22250-1","AH Music - Other","22250-1-1","AH Music - Other - Master Series",221,"Department Initiatives","2017-01-01","2099-12-31","N","Contracts - Arts & Humanities",2206,"MUSIC MASTER SERIES",{"$f":"VLOOKUP(K201,WORKORDERS!$A:$P,16,FALSE)","v":"no"}]
[null,220,"Arts and Humanities",220,"Arts and Humanitites",2255,"Studies in Women and Gender",10,"12255-1","AH Studies in Women and Gender","12255-1-1","AH Studies in Women and Gender",208,"Instruction","2017-01-01","2099-12-31","N","Arts & Humanities",2080,"WOMEN'S STUDIES",{"$f":"VLOOKUP(K202,WORKORDERS!$A:$P,16,FALSE)","v":"no"}]
[null,220,"Arts and Humanities",220,"Arts and Humanitites",2260,"Theatre",10,"12260-1","AH Theatre","12260-1-1","AH Theatre",208,"Instruction","2017-01-01","2099-12-31","N","Arts & Humanities",2019,"THEATRE",{"$f":"VLOOKUP(K203,WORKORDERS!$A:$P,16,FALSE)","v":"no"}]
[null,230,"Education",230,"Education",2300,"Faculty of Education",10,"12300-1","EDUC Faculty Dean's Office","12300-1-1","EDUC Faculty Dean's Office",201,"Faculty Administration","2017-01-01","2099-12-31","N","Education",5000,"DEAN, EDUCATION",{"$f":"VLOOKUP(K204,WORKORDERS!$A:$P,16,FALSE)","v":"no"}]
[null,230,"Education",230,"Education",2301,"Education - Initiatives",10,"12301-1","EDUC Faculty of Education - Initiatives","12301-1-1","EDUC Faculty - Advising",204,"Advising","2017-01-01","2099-12-31","N","Education",5005,"EDUCATION ADVISING",{"$f":"VLOOKUP(K205,WORKORDERS!$A:$P,16,FALSE)","v":"yes"}]
[null,230,"Education",230,"Education",2301,"Education - Initiatives",10,"12301-1","EDUC Faculty of Education - Initiatives","12301-1-2","EDUC Faculty - Multi Media",201,"Faculty Administration","2017-01-01","2099-12-31","N","Education",5007,"MULTI MEDIA",{"$f":"VLOOKUP(K206,WORKORDERS!$A:$P,16,FALSE)","v":"yes"}]
[null,230,"Education",230,"Education",2301,"Education - Initiatives",10,"12301-3","EDUC Faculty - Directed Studies","12301-3-1","EDUC Faculty - Directed Studies",208,"Instruction","2017-01-01","2099-12-31","N","Education",5003,"EDUC. - DIRECTED STUDIES",{"$f":"VLOOKUP(K207,WORKORDERS!$A:$P,16,FALSE)","v":"no"}]
[null,230,"Education",230,"Education",2301,"Education - Initiatives",10,"12301-4","EDUC Faculty - School Experience","12301-4-1","EDUC Faculty - School Experience",223,"Field Schools","2017-01-01","2099-12-31","N","Education",5004,"SCHOOL EXPERIENCE",{"$f":"VLOOKUP(K208,WORKORDERS!$A:$P,16,FALSE)","v":"no"}]
[null,230,"Education",230,"Education",2301,"Education - Initiatives",20,"22301-1","EDUC Faculty - General Research","22301-1-1","EDUC General Research - Davidson",302,"General Research","2017-01-01","2099-12-31","N","Contracts - Education",5132,"GENERAL RESEARCH-DAVIDSON",{"$f":"VLOOKUP(K209,WORKORDERS!$A:$P,16,FALSE)","v":"no"}]
[null,230,"Education",230,"Education",2301,"Education - Initiatives",50,"52301-1","EDUC Minor Capital","52301-1-1","EDUC Minor Capital",500,"Capital - General","2021-07-01","2099-12-31","P",{"$error":"#N/A"},{"$error":"#N/A"},{"$error":"#N/A"},{"$f":"VLOOKUP(K210,WORKORDERS!$A:$P,16,FALSE)","v":"no"}]
[null,230,"Education",230,"Education",2310,"Education",10,"12310-1","EDUC Education - Instruction","12310-1-1","EDUC Education - Instruction",208,"Instruction","2017-01-01","2099-12-31","N","Education",5006,"EDUCATION, INSTRUCTION",{"$f":"VLOOKUP(K211,WORKORDERS!$A:$P,16,FALSE)","v":"no"}]
[null,230,"Education",230,"Education",2310,"Education",20,"22310-1","EDUC Education - Other","22310-1-1","EDUC Education  - Conferences",220,"Conferences","2017-01-01","2099-12-31","N","Contracts - Education",5109,"PRO-D/RESEARCH",{"$f":"VLOOKUP(K212,WORKORDERS!$A:$P,16,FALSE)","v":"no"}]
[null,230,"Education",230,"Education",2315,"Post Bac - Secondary Education",10,"12315-1","EDUC Education - Post Bac Secondary Education","12315-1-1","EDUC Education - Post Bac Secondary Education",208,"Instruction","2017-01-01","2099-12-31","N","Education",5014,"POST BAC-SECONDARY FOCUS",{"$f":"VLOOKUP(K213,WORKORDERS!$A:$P,16,FALSE)","v":"no"}]
[null,230,"Education",230,"Education",2320,"Kinesiology",10,"12320-1","EDUC Kinesiology","12320-1-1","EDUC Kinesiology",208,"Instruction","2017-01-01","2099-12-31","N","Education",5010,"PHYSICAL EDUCATION",{"$f":"VLOOKUP(K214,WORKORDERS!$A:$P,16,FALSE)","v":"no"}]
[null,230,"Education",230,"Education",2320,"Kinesiology",20,"22320-1","EDUC Kinesiology - Other","22320-1-1","EDUC Kinesiology - Development",211,"Program Development","2017-01-01","2099-12-31","N","Contracts - Education",5116,"SHAPE - PRO D",{"$f":"VLOOKUP(K215,WORKORDERS!$A:$P,16,FALSE)","v":"yes"}]
[null,230,"Education",230,"Education",2320,"Kinesiology",20,"22320-1","EDUC Kinesiology - Other","22320-1-2","EDUC Kinesiology - NPPE Conference",220,"Conferences","2017-01-01","2099-12-31","N","Contracts - Education",5121,"NPPE CONFERENCE",{"$f":"VLOOKUP(K216,WORKORDERS!$A:$P,16,FALSE)","v":"yes"}]
[null,230,"Education",230,"Education",2350,"Graduate Diploma - Online Teaching and Learning",20,"22350-1","EDUC Graduate Diploma - Online Teaching and Learning","22350-1-1","EDUC Graduate Diploma - Online Teaching and Learning",208,"Instruction","2017-01-01","2099-12-31","N","Contracts - Education",5120,"GRAD DIPL-ONLINE LEARNING",{"$f":"VLOOKUP(K217,WORKORDERS!$A:$P,16,FALSE)","v":"no"}]
[null,230,"Education",230,"Education",2355,"Graduate Diploma - Inclusive Education",20,"22355-1","EDUC Graduate Diploma - Inclusive Education","22355-1-1","EDUC Graduate Diploma - Inclusive Education",208,"Instruction","2017-01-01","2099-12-31","N","Contracts - Education",5111,"SPECIAL ED TEACHING SPECI",{"$f":"VLOOKUP(K218,WORKORDERS!$A:$P,16,FALSE)","v":"no"}]
[null,230,"Education",230,"Education",2360,"Masters of Education (Leadership)",20,"22360-1","EDUC Masters of Education (Leadership)","22360-1-1","EDUC Masters of Education (Leadership)",208,"Instruction","2017-01-01","2099-12-31","N","Contracts - Education",5105,"M.ED LEADERSHIP",{"$f":"VLOOKUP(K219,WORKORDERS!$A:$P,16,FALSE)","v":"no"}]
[null,230,"Education",230,"Education",2365,"Masters of Education (Special Education)",20,"22365-1","EDUC Masters of Education (Special Education)","22365-1-1","EDUC Masters of Education (Special Education)",208,"Instruction","2017-01-01","2099-12-31","N","Contracts - Education",5117,"M.ED SPECIAL EDUCATION",{"$f":"VLOOKUP(K220,WORKORDERS!$A:$P,16,FALSE)","v":"no"}]
[null,240,"Health and Human Services",240,"Health and Human Services",2400,"Faculty of Health and Human Services",10,"12400-1","HHS Faculty Dean's Office","12400-1-1","HHS Faculty Dean's Office",201,"Faculty Administration","2017-01-01","2099-12-31","N","Health & Human Services",4500,"DEAN,HEALTH & HUMAN SERV",{"$f":"VLOOKUP(K221,WORKORDERS!$A:$P,16,FALSE)","v":"no"}]
[null,240,"Health and Human Services",240,"Health and Human Services",2400,"Faculty of Health and Human Services",10,"12400-2","HHS Health Programs Support","12400-2-1","HHS Health Programs Support",201,"Faculty Administration","2017-01-01","2099-12-31","N","Health & Human Services",4502,"HEALTH PROGRAMS SUPPORT",{"$f":"VLOOKUP(K222,WORKORDERS!$A:$P,16,FALSE)","v":"no"}]
[null,240,"Health and Human Services",240,"Health and Human Services",2401,"Health and Human Services - Initiatives",10,"12401-1","HHS Faculty Initiatives","12401-1-1","HHS Faculty Initiatives",201,"Faculty Administration","2021-07-01","2099-12-31","P",{"$error":"#N/A"},{"$error":"#N/A"},{"$error":"#N/A"},{"$f":"VLOOKUP(K223,WORKORDERS!$A:$P,16,FALSE)","v":"no"}]
[null,240,"Health and Human Services",240,"Health and Human Services",2401,"Health and Human Services - Initiatives",10,"12401-1","HHS Faculty Initiatives","12401-1-2","HHS Faculty - Initiatives - TBD",201,"Faculty Administration","2021-07-01","2099-12-31","P",{"$error":"#N/A"},{"$error":"#N/A"},{"$error":"#N/A"},{"$f":"VLOOKUP(K224,WORKORDERS!$A:$P,16,FALSE)","v":"no"}]
[null,240,"Health and Human Services",240,"Health and Human Services",2401,"Health and Human Services - Initiatives",10,"12401-2","HHS Faculty - International Sections","12401-2-1","HHS Faculty - International Sections",208,"Instruction","2017-01-01","2099-12-31","N","Health & Human Services",5205,"HEALTH&HS-HOLDING ACCOUNT",{"$f":"VLOOKUP(K225,WORKORDERS!$A:$P,16,FALSE)","v":"no"}]
[null,240,"Health and Human Services",240,"Health and Human Services",2401,"Health and Human Services - Initiatives",10,"12401-3","HHS Faculty - Directed Studies","12401-3-1","HHS Faculty - Directed Studies",208,"Instruction","2017-01-01","2099-12-31","N","Health & Human Services",4509,"DIRECTED STUDIES - HEALTH",{"$f":"VLOOKUP(K226,WORKORDERS!$A:$P,16,FALSE)","v":"no"}]
[null,240,"Health and Human Services",240,"Health and Human Services",2401,"Health and Human Services - Initiatives",20,"22401-1","HHS Faculty - General Research","22401-1-1","HHS Faculty - General Research - Price",302,"General Research","2017-01-01","2099-12-31","N","Contracts - Health & HS",4776,"GENERAL RESEARCH-PRICE",{"$f":"VLOOKUP(K227,WORKORDERS!$A:$P,16,FALSE)","v":"no"}]
[null,240,"Health and Human Services",240,"Health and Human Services",2401,"Health and Human Services - Initiatives",20,"22401-1","HHS Faculty - General Research","22401-1-2","HHS Faculty - General Research - Taplay",302,"General Research","2020-03-28","2099-12-31","N","Contracts - Health & HS",4772,"GENERAL RESEARCH - TAPLAY",{"$f":"VLOOKUP(K228,WORKORDERS!$A:$P,16,FALSE)","v":"no"}]
[null,240,"Health and Human Services",240,"Health and Human Services",2401,"Health and Human Services - Initiatives",20,"22401-2","HHS Faculty - Scholarly Activity","22401-2-1","HHS Faculty - Scholarly Activity",201,"Faculty Administration","2017-01-01","2099-12-31","N","Contracts - Health & HS",4704,"HHS FACULTY SCH ACTIVITY",{"$f":"VLOOKUP(K229,WORKORDERS!$A:$P,16,FALSE)","v":"no"}]
[null,240,"Health and Human Services",240,"Health and Human Services",2401,"Health and Human Services - Initiatives",20,"22401-3","HHS Faculty - Interprofessional Development Fund","22401-3-1","HHS Faculty - Interprofessional Development Fund",201,"Faculty Administration","2017-01-01","2099-12-31","N","Contracts - Health & HS",4705,"HHS INTERPROF DEV FUND",{"$f":"VLOOKUP(K230,WORKORDERS!$A:$P,16,FALSE)","v":"no"}]
[null,240,"Health and Human Services",240,"Health and Human Services",2401,"Health and Human Services - Initiatives",20,"22401-4","HHS Faculty - Research contracts","22401-4-1","HHS Faculty - Research contracts - Styles - Pathways",310,"Research Contract","2017-01-01","2099-12-31","N","Contracts - Health & HS",4775,"STYLES-PATHWAYS PROJECT",{"$f":"VLOOKUP(K231,WORKORDERS!$A:$P,16,FALSE)","v":"no"}]
[null,240,"Health and Human Services",240,"Health and Human Services",2401,"Health and Human Services - Initiatives",20,"22401-5","HHS Faculty - Other","22401-5-1","HHS Faculty - Aboriginal Forum",201,"Faculty Administration","2017-01-01","2099-12-31","N","Contracts - Health & HS",4709,"ABORIGINAL FORUM",{"$f":"VLOOKUP(K232,WORKORDERS!$A:$P,16,FALSE)","v":"no"}]
[null,240,"Health and Human Services",240,"Health and Human Services",2401,"Health and Human Services - Initiatives",20,"22401-5","HHS Faculty - Other","22401-5-2","HHS Faculty - Student Engagement Fund",201,"Faculty Administration","2017-01-01","2099-12-31","N","Contracts - Health & HS",4703,"HHS STUDENT ENGAGEMENT FD",{"$f":"VLOOKUP(K233,WORKORDERS!$A:$P,16,FALSE)","v":"no"}]
[null,240,"Health and Human Services",240,"Health and Human Services",2401,"Health and Human Services - Initiatives",50,"52401-1","HHS Minor Capital","52401-1-1","HHS Minor Capital",500,"Capital - General","2021-07-01","2099-12-31","P",{"$error":"#N/A"},{"$error":"#N/A"},{"$error":"#N/A"},{"$f":"VLOOKUP(K234,WORKORDERS!$A:$P,16,FALSE)","v":"no"}]
[null,240,"Health and Human Services",240,"Health and Human Services",2401,"Health and Human Services - Initiatives",50,"52401-2","HHS Capital - Health Equipment","52401-2-1","HHS Capital - Health Equipment",500,"Capital - General","2021-03-27","2099-12-31","N","Capital",9116,"HCA - PP EQUIPMENT ",{"$f":"VLOOKUP(K235,WORKORDERS!$A:$P,16,FALSE)","v":"no"}]
[null,240,"Health and Human Services",240,"Health and Human Services",2405,"Bachelor of Science in Nursing",10,"12405-1","HHS Bachelor of Science in Nursing","12405-1-1","HHS Bachelor of Science in Nursing",208,"Instruction","2017-01-01","2099-12-31","N","Health & Human Services",4510,"BSN",{"$f":"VLOOKUP(K236,WORKORDERS!$A:$P,16,FALSE)","v":"no"}]
[null,240,"Health and Human Services",240,"Health and Human Services",2405,"Bachelor of Science in Nursing",10,"12405-2","HHS Bachelor of Science in Nursing  - North Island College","12405-2-1","HHS Bachelor of Science in Nursing  - North Island College",219,"Contract Activity","2017-01-01","2099-12-31","N","Health & Human Services",4511,"B.NURSING - NORTH ISLAND COLLEGE",{"$f":"VLOOKUP(K237,WORKORDERS!$A:$P,16,FALSE)","v":"no"}]
[null,240,"Health and Human Services",240,"Health and Human Services",2406,"Roots to Thrive - KAT",20,"22406-1","HHS Roots to Thrive - KAT","22406-1-1","HHS Roots to Thrive - KAT",219,"Contract Activity","2020-03-28","2099-12-31","N","Contracts - Health & HS",4780,"RTT - KAT ",{"$f":"VLOOKUP(K238,WORKORDERS!$A:$P,16,FALSE)","v":"no"}]
[null,240,"Health and Human Services",240,"Health and Human Services",2410,"Dental Assistant",10,"12410-1","HHS Dental Assistant","12410-1-1","HHS Dental Assistant",208,"Instruction","2017-01-01","2099-12-31","N","Health & Human Services",4520,"DENTAL ASSISTANT",{"$f":"VLOOKUP(K239,WORKORDERS!$A:$P,16,FALSE)","v":"no"}]
[null,240,"Health and Human Services",240,"Health and Human Services",2412,"Dental Clinic",10,"12412-1","HHS Dental Clinic","12412-1-1","HHS Dental Clinic",208,"Instruction","2017-01-01","2099-12-31","N","Health & Human Services",4519,"DENTAL CLINIC",{"$f":"VLOOKUP(K240,WORKORDERS!$A:$P,16,FALSE)","v":"no"}]
[null,240,"Health and Human Services",240,"Health and Human Services",2415,"Dental Hygiene",10,"12415-1","HHS Dental Hygiene","12415-1-1","HHS Dental Hygiene",208,"Instruction","2017-01-01","2099-12-31","N","Health & Human Services",4522,"DENTAL HYGIENE PROGRAM",{"$f":"VLOOKUP(K241,WORKORDERS!$A:$P,16,FALSE)","v":"no"}]
[null,240,"Health and Human Services",240,"Health and Human Services",2415,"Dental Hygiene",20,"22415-1","HHS Dental Hygiene - Other","22415-1-1","HHS BC Dental Hygienist Association",201,"Faculty Administration","2017-01-01","2099-12-31","N","Contracts - Health & HS",4719,"BC DENTAL HYGIENIST ASSN",{"$f":"VLOOKUP(K242,WORKORDERS!$A:$P,16,FALSE)","v":"no"}]
[null,240,"Health and Human Services",240,"Health and Human Services",2420,"Health Care Assistant",10,"12420-1","HHS Health Care Assistant","12420-1-1","HHS Health Care Assistant",208,"Instruction","2017-01-01","2099-12-31","N","Health & Human Services",4516,"HEALTH CARE ASSISTANT-HCA",{"$f":"VLOOKUP(K243,WORKORDERS!$A:$P,16,FALSE)","v":"no"}]
[null,240,"Health and Human Services",240,"Health and Human Services",2420,"Health Care Assistant",20,"22420-4","HHS Health Care Assistant - Partnership Pathways","22420-4-1","HHS Health Care Assistant - Partnership Pathways",219,"Contract Activity","2020-03-28","2099-12-31","N","Contracts - Health & HS",4710,"HCA PARTNERSHIP PATHWAYS ",{"$f":"VLOOKUP(K244,WORKORDERS!$A:$P,16,FALSE)","v":"no"}]
[null,240,"Health and Human Services",240,"Health and Human Services",2425,"Practical Nursing",10,"12425-1","HHS Practical Nursing","12425-1-1","HHS Practical Nursing",208,"Instruction","2017-01-01","2099-12-31","N","Health & Human Services",4513,"PRACTICAL NURSING",{"$f":"VLOOKUP(K245,WORKORDERS!$A:$P,16,FALSE)","v":"no"}]
[null,240,"Health and Human Services",240,"Health and Human Services",2430,"Bachelor of Social Work",20,"22430-1","HHS Bachelor of Social Work","22430-1-1","HHS Bachelor of Social Work",208,"Instruction","2017-01-01","2099-12-31","N","Contracts - Health & HS",5420,"BACHELOR OF SOCIAL WORK",{"$f":"VLOOKUP(K246,WORKORDERS!$A:$P,16,FALSE)","v":"no"}]
[null,240,"Health and Human Services",240,"Health and Human Services",2435,"Child and Youth Care",10,"12435-1","HHS Child and Youth Care","12435-1-1","HHS Child and Youth Care",208,"Instruction","2017-01-01","2099-12-31","N","Health & Human Services",5240,"CHILD/YTH CARE",{"$f":"VLOOKUP(K247,WORKORDERS!$A:$P,16,FALSE)","v":"no"}]
[null,240,"Health and Human Services",240,"Health and Human Services",2435,"Child and Youth Care",20,"22435-1","HHS Child and Youth Care - CTR - Outreach/Comm. Care","22435-1-1","HHS Child and Youth Care - CTR - Outreach/Comm. Care",201,"Faculty Administration","2017-01-01","2099-12-31","N","Contracts - Health & HS",5494,"CTR-OUTREACH/COMM.CARE",{"$f":"VLOOKUP(K248,WORKORDERS!$A:$P,16,FALSE)","v":"no"}]
[null,240,"Health and Human Services",240,"Health and Human Services",2440,"Early Childhood Education and Care",10,"12440-1","HHS Early Childhood Education and Care","12440-1-1","HHS Early Childhood Education and Care",208,"Instruction","2017-01-01","2099-12-31","N","Health & Human Services",5230,"E.C.E.C.",{"$f":"VLOOKUP(K249,WORKORDERS!$A:$P,16,FALSE)","v":"no"}]
[null,240,"Health and Human Services",240,"Health and Human Services",2440,"Early Childhood Education and Care",20,"22440-1","HHS Early Childhood Education and Care - Cowichan Cert.","22440-1-1","HHS Early Childhood Education and Care - Cowichan Cert.",219,"Contract Activity","2017-01-01","2099-12-31","N","Contracts - Health & HS",4721,"ECEC-COWICHAN CERTIFICATE",{"$f":"VLOOKUP(K250,WORKORDERS!$A:$P,16,FALSE)","v":"no"}]
[null,240,"Health and Human Services",240,"Health and Human Services",2440,"Early Childhood Education and Care",20,"22440-2","HHS Early Childhood Education and Care - Powell River Cert.","22440-2-1","HHS Early Childhood Education and Care - Powell River Cert.",219,"Contract Activity","2017-01-01","2099-12-31","N","Contracts - Health & HS",4724,"ECEC-POWELL RIVER CERT.",{"$f":"VLOOKUP(K251,WORKORDERS!$A:$P,16,FALSE)","v":"no"}]
[null,240,"Health and Human Services",240,"Health and Human Services",2440,"Early Childhood Education and Care",20,"22440-3","HHS Early Childhood Education and Care - Aboriginal Head Start","22440-3-1","HHS Early Childhood Education and Care - Aboriginal Head Start",219,"Contract Activity","2017-01-01","2099-12-31","N","Contracts - Health & HS",4723,"ECEC-AHS",{"$f":"VLOOKUP(K252,WORKORDERS!$A:$P,16,FALSE)","v":"no"}]
[null,240,"Health and Human Services",240,"Health and Human Services",2440,"Early Childhood Education and Care",20,"22440-4","HHS Early Childhood Education and Care - Infant Toddler","22440-4-1","HHS Early Childhood Education and Care - Infant Toddler",219,"Contract Activity","2017-01-01","2099-12-31","N","Contracts - Health & HS",4722,"ECEC-INFANT TODDLER",{"$f":"VLOOKUP(K253,WORKORDERS!$A:$P,16,FALSE)","v":"no"}]
[null,240,"Health and Human Services",240,"Health and Human Services",2440,"Early Childhood Education and Care",20,"22440-6","HHS Early Childhood Education and Care- ECPN","22440-6-1","HHS Early Childhood Education and Care- ECPN",219,"Contract Activity","2017-01-01","2099-12-31","N","Contracts - Health & HS",5414,"ECEC - ECPN",{"$f":"VLOOKUP(K254,WORKORDERS!$A:$P,16,FALSE)","v":"no"}]
[null,240,"Health and Human Services",240,"Health and Human Services",2440,"Early Childhood Education and Care",20,"22440-7","HHS Early Childhood Education and Care - Nanaimo Cert.","22440-7-1","HHS Early Childhood Education and Care - Nanaimo Cert.",219,"Contract Activity","2020-03-28","2099-12-31","N","Contracts - Health & HS",4725,"ECEC - Nanaimo Cert. ",{"$f":"VLOOKUP(K255,WORKORDERS!$A:$P,16,FALSE)","v":"no"}]
[null,240,"Health and Human Services",240,"Health and Human Services",2440,"Early Childhood Education and Care",20,"22440-8","HHS Early Childhood Education and Care - Special Needs Cert.","22440-8-1","HHS Early Childhood Education and Care - Special Needs Cert.",219,"Contract Activity","2020-03-28","2099-12-31","N","Contracts - Health & HS",4726,"ECEC - Special Needs Cert.",{"$f":"VLOOKUP(K256,WORKORDERS!$A:$P,16,FALSE)","v":"no"}]
[null,240,"Health and Human Services",240,"Health and Human Services",2445,"Education Assistant and Community Support",10,"12445-1","HHS Education Assistant and Community Support","12445-1-1","HHS Education Assistant and Community Support",208,"Instruction","2017-01-01","2099-12-31","N","Health & Human Services",5215,"SCSW",{"$f":"VLOOKUP(K257,WORKORDERS!$A:$P,16,FALSE)","v":"no"}]
[null,240,"Health and Human Services",240,"Health and Human Services",2450,"Social Services Diploma",10,"12450-1","HHS Social Services Diploma","12450-1-1","HHS Social Services Diploma",208,"Instruction","2017-01-01","2099-12-31","N","Health & Human Services",5210,"SS DIPLOMA",{"$f":"VLOOKUP(K258,WORKORDERS!$A:$P,16,FALSE)","v":"no"}]
[null,240,"Health and Human Services",240,"Health and Human Services",2455,"Parksville Operations",10,"12455-1","HHS Parksville Operations","12455-1-1","HHS Parksville Operations",201,"Faculty Administration","2017-01-01","2099-12-31","N","HHS - Centre for Healthy Aging",7000,"PARKSVILLE CTR OPERATIONS",{"$f":"VLOOKUP(K259,WORKORDERS!$A:$P,16,FALSE)","v":"no"}]
[null,240,"Health and Human Services",240,"Health and Human Services",2465,"Health and Human Services - PD&T",30,"32465-1","HHS PD&T - Administration","32465-1-1","HHS PD&T - Administration",280,"PD&T Administration","2017-01-01","2099-12-31","N","CE - Health & HS PD&T",4600,"CE ADMIN - HEALTH & HS ",{"$f":"VLOOKUP(K260,WORKORDERS!$A:$P,16,FALSE)","v":"no"}]
[null,240,"Health and Human Services",240,"Health and Human Services",2465,"Health and Human Services - PD&T",30,"32465-10","HHS PD&T - Medical Office Assistant","32465-10-1","HHS PD&T - Medical Office Assistant",281,"PD&T Program Delivery","2017-01-01","2099-12-31","N","CE - Health & HS PD&T",4606,"MEDICAL OFFICE ASSISTANT",{"$f":"VLOOKUP(K261,WORKORDERS!$A:$P,16,FALSE)","v":"no"}]
[null,240,"Health and Human Services",240,"Health and Human Services",2465,"Health and Human Services - PD&T",30,"32465-2","HHS PD&T - Activity Assistant","32465-2-1","HHS PD&T - Activity Assistant",281,"PD&T Program Delivery","2017-01-01","2099-12-31","N","CE - Health & HS PD&T",4609,"ACTIVITY ASSISTANT",{"$f":"VLOOKUP(K262,WORKORDERS!$A:$P,16,FALSE)","v":"no"}]
[null,240,"Health and Human Services",240,"Health and Human Services",2465,"Health and Human Services - PD&T",30,"32465-3","HHS PD&T - Animal Care Aide Certificate","32465-3-1","HHS PD&T - Animal Care Aide Certificate",281,"PD&T Program Delivery","2017-01-01","2099-12-31","N","CE - Health & HS PD&T",4608,"ANIMAL CARE AIDE CERTIFIC",{"$f":"VLOOKUP(K263,WORKORDERS!$A:$P,16,FALSE)","v":"no"}]
[null,240,"Health and Human Services",240,"Health and Human Services",2465,"Health and Human Services - PD&T",30,"32465-4","HHS PD&T - Credit courses","32465-4-1","HHS PD&T - Credit courses",281,"PD&T Program Delivery","2017-01-01","2099-12-31","N","CE - Health & HS PD&T",4625,"CE CREDIT COURSES - HHS",{"$f":"VLOOKUP(K264,WORKORDERS!$A:$P,16,FALSE)","v":"no"}]
[null,240,"Health and Human Services",240,"Health and Human Services",2465,"Health and Human Services - PD&T",30,"32465-5","HHS PD&T - Community Health Promotion","32465-5-1","HHS PD&T - Community Health Promotion",281,"PD&T Program Delivery","2017-01-01","2099-12-31","N","CE - Health & HS PD&T",4615,"COMMUNITY HEALTH PROMO",{"$f":"VLOOKUP(K265,WORKORDERS!$A:$P,16,FALSE)","v":"no"}]
[null,240,"Health and Human Services",240,"Health and Human Services",2465,"Health and Human Services - PD&T",30,"32465-6","HHS PD&T - Community Mental Health Worker","32465-6-1","HHS PD&T - Community Mental Health Worker",281,"PD&T Program Delivery","2017-01-01","2099-12-31","N","CE - Health & HS PD&T",4613,"COMM.MENTAL HLTH WK CERT",{"$f":"VLOOKUP(K266,WORKORDERS!$A:$P,16,FALSE)","v":"no"}]
[null,240,"Health and Human Services",240,"Health and Human Services",2465,"Health and Human Services - PD&T",30,"32465-7","HHS PD&T - Health and Human Services","32465-7-1","HHS PD&T - Health and Human Services",281,"PD&T Program Delivery","2017-01-01","2099-12-31","N","CE - Health & HS PD&T",4603,"HEALTH AND HUMAN SERVICES ",{"$f":"VLOOKUP(K267,WORKORDERS!$A:$P,16,FALSE)","v":"no"}]
[null,240,"Health and Human Services",240,"Health and Human Services",2465,"Health and Human Services - PD&T",30,"32465-8","HHS PD&T - Hospital Unit Coordinator","32465-8-1","HHS PD&T - Hospital Unit Coordinator",281,"PD&T Program Delivery","2017-01-01","2099-12-31","N","CE - Health & HS PD&T",4607,"HOPSITAL UNIT COORDINATOR ",{"$f":"VLOOKUP(K268,WORKORDERS!$A:$P,16,FALSE)","v":"no"}]
[null,240,"Health and Human Services",240,"Health and Human Services",2465,"Health and Human Services - PD&T",30,"32465-9","HHS PD&T - Medical Device Processing Technician","32465-9-1","HHS PD&T - Medical Device Processing Technician",281,"PD&T Program Delivery","2017-01-01","2099-12-31","N","CE - Health & HS PD&T",4610,"MED DEVICE REPROC TECHNCN",{"$f":"VLOOKUP(K269,WORKORDERS!$A:$P,16,FALSE)","v":"no"}]
[null,250,"International Education",250,"International Education",2500,"Department of International Education",20,"22500-1","IE Department Dean's Office","22500-1-1","IE Department Dean's Office",201,"Faculty Administration","2017-01-01","2099-12-31","N","International Education ",3000,"INTERNATIONAL ADMIN",{"$f":"VLOOKUP(K270,WORKORDERS!$A:$P,16,FALSE)","v":"no"}]
[null,250,"International Education",250,"International Education",2501,"International Education - Initiatives",20,"22501-1","IE Department Initiatives","22501-1-1","IE Department Initiatives",201,"Faculty Administration","2021-07-01","2099-12-31","P",{"$error":"#N/A"},{"$error":"#N/A"},{"$error":"#N/A"},{"$f":"VLOOKUP(K271,WORKORDERS!$A:$P,16,FALSE)","v":"no"}]
[null,250,"International Education",250,"International Education",2501,"International Education - Initiatives",20,"22501-1","IE Department Initiatives","22501-1-2","IE Department - Building 255 Renovations",201,"Faculty Administration","2017-01-01","2099-12-31","N","International Education ",3004,"INTERED RENOVATIONS",{"$f":"VLOOKUP(K272,WORKORDERS!$A:$P,16,FALSE)","v":"no"}]
[null,250,"International Education",250,"International Education",2501,"International Education - Initiatives",20,"22501-2","IE Department Travel","22501-2-1","IE Department Travel",201,"Faculty Administration","2017-01-01","2099-12-31","N","International Education ",3040,"INTERNATIONAL ED TRAVEL",{"$f":"VLOOKUP(K273,WORKORDERS!$A:$P,16,FALSE)","v":"no"}]
[null,250,"International Education",250,"International Education",2501,"International Education - Initiatives",20,"22501-2","IE Department Travel","22501-2-2","IE Department Travel Stipends",201,"Faculty Administration","2017-01-01","2099-12-31","N","International Education ",3093,"OVERSEAS TRAVEL STIPEND",{"$f":"VLOOKUP(K274,WORKORDERS!$A:$P,16,FALSE)","v":"no"}]
[null,250,"International Education",250,"International Education",2501,"International Education - Initiatives",20,"22501-2","IE Department Travel","22501-2-3","IE Global Engagement Grants ",201,"Faculty Administration","2017-01-01","2099-12-31","N","International Education ",3150,"INT'L TRVL/CURRIC GRANTS",{"$f":"VLOOKUP(K275,WORKORDERS!$A:$P,16,FALSE)","v":"no"}]
[null,250,"International Education",250,"International Education",2501,"International Education - Initiatives",20,"22501-3","IE ERM Travel Support Project","22501-3-1","IE ERM Travel Support Project",201,"Faculty Administration","2020-03-28","2099-12-31","N","International Education ",3070,"ERM TRAVEL SUPPORT",{"$f":"VLOOKUP(K276,WORKORDERS!$A:$P,16,FALSE)","v":"no"}]
[null,250,"International Education",250,"International Education",2501,"International Education - Initiatives",50,"52501-1","IE Minor Capital","52501-1-1","IE Minor Capital",500,"Capital - General","2021-07-01","2099-12-31","P",{"$error":"#N/A"},{"$error":"#N/A"},{"$error":"#N/A"},{"$f":"VLOOKUP(K277,WORKORDERS!$A:$P,16,FALSE)","v":"no"}]
[null,250,"International Education",250,"International Education",2505,"International Finance",20,"22505-1","IE International Finance","22505-1-1","IE International Finance",201,"Faculty Administration","2021-07-01","2099-12-31","P",{"$error":"#N/A"},{"$error":"#N/A"},{"$error":"#N/A"},{"$f":"VLOOKUP(K278,WORKORDERS!$A:$P,16,FALSE)","v":"no"}]
[null,250,"International Education",250,"International Education",2505,"International Finance",20,"22505-2","IE International Student Revenues","22505-2-1","IE International Student Revenues",201,"Faculty Administration","2017-01-01","2099-12-31","N","International Education ",3099,"INTER ED INDIV. STUDENTS",{"$f":"VLOOKUP(K279,WORKORDERS!$A:$P,16,FALSE)","v":"no"}]
[null,250,"International Education",250,"International Education",2505,"International Finance",20,"22505-2","IE International Student Revenues","22505-2-2","IE International Student Fee - Holding",201,"Faculty Administration","2017-01-01","2099-12-31","N","International Education ",3098,"STU.FEES-HOLDING ACCOUNT",{"$f":"VLOOKUP(K280,WORKORDERS!$A:$P,16,FALSE)","v":"no"}]
[null,250,"International Education",250,"International Education",2505,"International Finance",20,"22505-3","IE International Transfers","22505-3-1","IE Academic Transfers",201,"Faculty Administration","2017-01-01","2099-12-31","N","International Education ",3095,"ACADEMIC PAID BY IE",{"$f":"VLOOKUP(K281,WORKORDERS!$A:$P,16,FALSE)","v":"no"}]
[null,250,"International Education",250,"International Education",2505,"International Finance",20,"22505-3","IE International Transfers","22505-3-2","IE ABE Transfers",201,"Faculty Administration","2017-01-01","2099-12-31","N","International Education ",3096,"ABE PAID BY IE",{"$f":"VLOOKUP(K282,WORKORDERS!$A:$P,16,FALSE)","v":"no"}]
[null,250,"International Education",250,"International Education",2505,"International Finance",20,"22505-4","IE Student Scholarships","22505-4-1","IE Student Scholarships",201,"Faculty Administration","2017-01-01","2099-12-31","N","International Education ",3014,"INTERNATIONAL SHOLARSHIPS",{"$f":"VLOOKUP(K283,WORKORDERS!$A:$P,16,FALSE)","v":"no"}]
[null,250,"International Education",250,"International Education",2505,"International Finance",20,"22505-4","IE Student Scholarships","22505-4-10","IE Scholarships - TASIS/VIU",201,"Faculty Administration","2017-01-01","2099-12-31","N","International Education ",3019,"TASIS/VIU SCHOLARSHIP",{"$f":"VLOOKUP(K284,WORKORDERS!$A:$P,16,FALSE)","v":"no"}]
[null,"250","International Education","250","International Education","2505","International Finance","20","22505-4","IE Student Scholarships","22505-4-11","IE Scholarships - Syrian Sheikho","201","Faculty Administration","2021-03-27","2099-12-31","N","International Education ",3024,"SYRIAN SCHOLARSHIP-SHEIKHO",{"$f":"VLOOKUP(K285,WORKORDERS!$A:$P,16,FALSE)","v":"no"}]
[null,250,"International Education",250,"International Education",2505,"International Finance",20,"22505-4","IE Student Scholarships","22505-4-2","IE Scholarships - NYAKA",201,"Faculty Administration","2017-01-01","2099-12-31","N","International Education ",3015,"NYAKA SCHOLARSHIP",{"$f":"VLOOKUP(K286,WORKORDERS!$A:$P,16,FALSE)","v":"no"}]
[null,250,"International Education",250,"International Education",2505,"International Finance",20,"22505-4","IE Student Scholarships","22505-4-3","IE Scholarships - Pearson college",201,"Faculty Administration","2017-01-01","2099-12-31","N","International Education ",3021,"PEASON COLLEGE SCLRSHIP",{"$f":"VLOOKUP(K287,WORKORDERS!$A:$P,16,FALSE)","v":"no"}]
[null,250,"International Education",250,"International Education",2505,"International Finance",20,"22505-4","IE Student Scholarships","22505-4-4","IE Scholarships - Queen Elizabeth",201,"Faculty Administration","2017-01-01","2099-12-31","N","International Education ",3041,"QUEEN ELIZABETH SCHOLARS",{"$f":"VLOOKUP(K288,WORKORDERS!$A:$P,16,FALSE)","v":"no"}]
[null,250,"International Education",250,"International Education",2505,"International Finance",20,"22505-4","IE Student Scholarships","22505-4-5","IE Scholarships - QES - Waived tuition",201,"Faculty Administration","2017-01-01","2099-12-31","N","International Education ",3042,"QES VIU WAIVED TUITION",{"$f":"VLOOKUP(K289,WORKORDERS!$A:$P,16,FALSE)","v":"no"}]
[null,250,"International Education",250,"International Education",2505,"International Finance",20,"22505-4","IE Student Scholarships","22505-4-6","IE Scholarships - Students for Development",201,"Faculty Administration","2017-01-01","2099-12-31","N","International Education ",3160,"STUDENTS FOR DEVELOPMENT",{"$f":"VLOOKUP(K290,WORKORDERS!$A:$P,16,FALSE)","v":"no"}]
[null,250,"International Education",250,"International Education",2505,"International Finance",20,"22505-4","IE Student Scholarships","22505-4-7","IE Scholarships - Syrian",201,"Faculty Administration","2017-01-01","2099-12-31","N","International Education ",3020,"SYRIAN STDNT SCHOLARSHIP",{"$f":"VLOOKUP(K291,WORKORDERS!$A:$P,16,FALSE)","v":"no"}]
[null,250,"International Education",250,"International Education",2505,"International Finance",20,"22505-4","IE Student Scholarships","22505-4-8","IE Scholarships - Syrian Alliko",201,"Faculty Administration","2017-01-01","2099-12-31","N","International Education ",3022,"SYRIAN SCHOLARSHIP-ALLIKO",{"$f":"VLOOKUP(K292,WORKORDERS!$A:$P,16,FALSE)","v":"no"}]
[null,250,"International Education",250,"International Education",2505,"International Finance",20,"22505-4","IE Student Scholarships","22505-4-9","IE Scholarships - Syrian Baker",201,"Faculty Administration","2017-01-01","2099-12-31","N","International Education ",3023,"SYRIAN SCHOLARSHIP-BAKER",{"$f":"VLOOKUP(K293,WORKORDERS!$A:$P,16,FALSE)","v":"no"}]
[null,250,"International Education",250,"International Education",2508,"English Language Centre",20,"22508-1","IE English Language Centre","22508-1-1","IE English Language Centre",208,"Instruction","2017-01-01","2099-12-31","N","International Education ","2820, 2829","ENGLISH LANGUAGE CENTRE, ESL TUITION ",{"$f":"VLOOKUP(K294,WORKORDERS!$A:$P,16,FALSE)","v":"no"}]
[null,250,"International Education",250,"International Education",2510,"Graduate Programs Administration",20,"22510-1","IE Graduate Programs Administration","22510-1-1","IE Graduate Programs Administration",201,"Faculty Administration","2021-07-01","2099-12-31","P",{"$error":"#N/A"},{"$error":"#N/A"},{"$error":"#N/A"},{"$f":"VLOOKUP(K295,WORKORDERS!$A:$P,16,FALSE)","v":"no"}]
[null,250,"International Education",250,"International Education",2510,"Graduate Programs Administration",20,"22510-2","IE Master of Business Administration","22510-2-1","IE Master of Business Administration",208,"Instruction","2017-01-01","2099-12-31","N","International Education ",3112,"MBA PROGRAM",{"$f":"VLOOKUP(K296,WORKORDERS!$A:$P,16,FALSE)","v":"no"}]
[null,250,"International Education",250,"International Education",2510,"Graduate Programs Administration",20,"22510-3","IE Master of Arts in Sustainable Leisure Management","22510-3-1","IE Master of Arts in Sustainable Leisure Management",208,"Instruction","2017-01-01","2099-12-31","N","International Education ",3114,"MA SUSTAIN.LEISURE MGMT",{"$f":"VLOOKUP(K297,WORKORDERS!$A:$P,16,FALSE)","v":"no"}]
[null,250,"International Education",250,"International Education",2510,"Graduate Programs Administration",20,"22510-4","IE Master of Education International Perspective","22510-4-1","IE Master of Education International Perspective",208,"Instruction","2017-01-01","2099-12-31","N","International Education ",3116,"MASTERS ED - INTL PERSPEC",{"$f":"VLOOKUP(K298,WORKORDERS!$A:$P,16,FALSE)","v":"no"}]
[null,250,"International Education",250,"International Education",2510,"Graduate Programs Administration",20,"22510-5","IE Master of Community Planning","22510-5-1","IE Master of Community Planning",208,"Instruction","2017-01-01","2099-12-31","N","International Education ",3118,"MASTER OF COM PLANN (MCP)",{"$f":"VLOOKUP(K299,WORKORDERS!$A:$P,16,FALSE)","v":"no"}]
[null,250,"International Education",250,"International Education",2510,"Graduate Programs Administration",20,"22510-6","IE Master of Geographic Information Systems Applications","22510-6-1","IE Master of Geographic Information Systems Applications",208,"Instruction","2017-01-01","2099-12-31","N","International Education ",3120,"MASTER OF GISA (MGISA)",{"$f":"VLOOKUP(K300,WORKORDERS!$A:$P,16,FALSE)","v":"no"}]
[null,250,"International Education",250,"International Education",2510,"Graduate Programs Administration",20,"22510-7","IE Graduate Certificate and Diploma - Management","22510-7-1","IE Grad Certificate - Business",208,"Instruction","2020-03-28","2099-12-31","N","International Education ",3122,"GRAD CERT IN BUSINESS ",{"$f":"VLOOKUP(K301,WORKORDERS!$A:$P,16,FALSE)","v":"no"}]
[null,250,"International Education",250,"International Education",2510,"Graduate Programs Administration",20,"22510-7","IE Graduate Certificate and Diploma - Management","22510-7-2","IE Grad Diploma - International Trade",208,"Instruction","2020-03-28","2099-12-31","N","International Education ",3124,"GRAD DIPL INTL TRADE",{"$f":"VLOOKUP(K302,WORKORDERS!$A:$P,16,FALSE)","v":"no"}]
[null,250,"International Education",250,"International Education",2510,"Graduate Programs Administration",20,"22510-7","IE Graduate Certificate and Diploma - Management","22510-7-3","IE Grad Diploma - Project Management",208,"Instruction","2020-03-28","2099-12-31","N","International Education ",3126,"GRAD DIPL PROJ MGMT",{"$f":"VLOOKUP(K303,WORKORDERS!$A:$P,16,FALSE)","v":"no"}]
[null,250,"International Education",250,"International Education",2515,"Centre for Intercultural Studies",20,"22515-1","IE Centre for Intercultural Studies","22515-1-1","IE Centre for Intercultural Studies - Intercultural Programs",201,"Faculty Administration","2017-01-01","2099-12-31","N","International Education ",3009,"INTERCULTURAL PROGRAMS",{"$f":"VLOOKUP(K304,WORKORDERS!$A:$P,16,FALSE)","v":"no"}]
[null,250,"International Education",250,"International Education",2515,"Centre for Intercultural Studies",20,"22515-1","IE Centre for Intercultural Studies","22515-1-2","IE Centre for Intercultural Studies",201,"Faculty Administration","2017-01-01","2099-12-31","N","International Education ",3101,"INTERNATIONAL RETENTION",{"$f":"VLOOKUP(K305,WORKORDERS!$A:$P,16,FALSE)","v":"no"}]
[null,250,"International Education",252,"International Student Services",2520,"International Student Services",20,"22520-1","IE International Student Services","22520-1-1","IE International Student Services",217,"Student Support and Services","2017-01-01","2099-12-31","N","International Education ",3010,"INTERN'L STU SERVICES",{"$f":"VLOOKUP(K306,WORKORDERS!$A:$P,16,FALSE)","v":"yes"}]
[null,250,"International Education",252,"International Student Services",2520,"International Student Services",20,"22520-1","IE International Student Services","22520-1-2","IE International Student Services - Advising",204,"Advising","2017-01-01","2099-12-31","N","International Education ",3008,"INT'L STUDENT ADVISING",{"$f":"VLOOKUP(K307,WORKORDERS!$A:$P,16,FALSE)","v":"yes"}]
[null,250,"International Education",252,"International Student Services",2520,"International Student Services",20,"22520-1","IE International Student Services","22520-1-3","IE International Student Services - Emergency Loan",217,"Student Support and Services","2017-01-01","2099-12-31","N","International Education ",3006,"INTED STUDENT EMERG LOAN",{"$f":"VLOOKUP(K308,WORKORDERS!$A:$P,16,FALSE)","v":"yes"}]
[null,250,"International Education",252,"International Student Services",2520,"International Student Services",20,"22520-1","IE International Student Services","22520-1-4","IE International Student Services - Medical",217,"Student Support and Services","2017-01-01","2099-12-31","N","International Education ",3005,"INTERNATIONAL MEDICAL",{"$f":"VLOOKUP(K309,WORKORDERS!$A:$P,16,FALSE)","v":"yes"}]
[null,250,"International Education",252,"International Student Services",2522,"International Admissions",20,"22522-1","IE International Admissions","22522-1-1","IE International Admissions",217,"Student Support and Services","2017-01-01","2099-12-31","N","International Education ",3100,"INTERNATIONAL ADMISSIONS",{"$f":"VLOOKUP(K310,WORKORDERS!$A:$P,16,FALSE)","v":"no"}]
[null,250,"International Education",252,"International Student Services",2525,"Student Homestay",20,"22525-1","IE Student Homestay","22525-1-1","IE Homestay - Administration",217,"Student Support and Services","2017-01-01","2099-12-31","N","International Education ",3011,"HOMESTAY",{"$f":"VLOOKUP(K311,WORKORDERS!$A:$P,16,FALSE)","v":"no"}]
[null,250,"International Education",252,"International Student Services",2525,"Student Homestay",20,"22525-1","IE Student Homestay","22525-1-2","IE Homestay - VIU Students",217,"Student Support and Services","2017-01-01","2099-12-31","N","International Education ",3016,"HOMESTAY-VIU STUDENTS",{"$f":"VLOOKUP(K312,WORKORDERS!$A:$P,16,FALSE)","v":"no"}]
[null,250,"International Education",252,"International Student Services",2525,"Student Homestay",20,"22525-1","IE Student Homestay","22525-1-3","IE Homestay - Groups",217,"Student Support and Services","2017-01-01","2099-12-31","N","International Education ",3017,"HOMESTAY - GROUPS",{"$f":"VLOOKUP(K313,WORKORDERS!$A:$P,16,FALSE)","v":"no"}]
[null,250,"International Education",253,"International Marketing",2530,"International Marketing",20,"22530-1","IE International Marketing","22530-1-1","IE International Marketing",201,"Faculty Administration","2017-01-01","2099-12-31","N","International Education ",3090,"INT'L MARKETING PROGRAMS",{"$f":"VLOOKUP(K314,WORKORDERS!$A:$P,16,FALSE)","v":"no"}]
[null,250,"International Education",253,"International Marketing",2530,"International Marketing",20,"22530-1","IE International Marketing","22530-1-2","IE Marketing - Customer Relations Management",201,"Faculty Administration","2017-01-01","2099-12-31","N","International Education ",3002,"CUSTOMER RELATIONS MGMT",{"$f":"VLOOKUP(K315,WORKORDERS!$A:$P,16,FALSE)","v":"no"}]
[null,250,"International Education",253,"International Marketing",2530,"International Marketing",20,"22530-2","IE International Marketing - Agents Fees","22530-2-1","IE Marketing - Academic",201,"Faculty Administration","2017-01-01","2099-12-31","N","International Education ",3013,"AGENTS FEES ACADEMIC",{"$f":"VLOOKUP(K316,WORKORDERS!$A:$P,16,FALSE)","v":"no"}]
[null,250,"International Education",253,"International Marketing",2530,"International Marketing",20,"22530-2","IE International Marketing - Agents Fees","22530-2-2","IE Marketing - ESL",201,"Faculty Administration","2017-01-01","2099-12-31","N","International Education ",3012,"AGENTS FEES  ESL",{"$f":"VLOOKUP(K317,WORKORDERS!$A:$P,16,FALSE)","v":"no"}]
[null,250,"International Education",254,"Group Programs and Global Engagement",2540,"Group Programs",20,"22540-1","IE Group Programs","22540-1-1","IE Group Programs",219,"Contract Activity","2017-01-01","2099-12-31","N","International Education ",3025,"GROUP PROGRAMS&CONTRACTS",{"$f":"VLOOKUP(K318,WORKORDERS!$A:$P,16,FALSE)","v":"no"}]
[null,250,"International Education",254,"Group Programs and Global Engagement",2540,"Group Programs",20,"22540-1","IE Group Programs","22540-1-2","IE Group Programs  - ELAP",219,"Contract Activity","2017-01-01","2099-12-31","N","International Education ",3029,"ELAP",{"$f":"VLOOKUP(K319,WORKORDERS!$A:$P,16,FALSE)","v":"no"}]
[null,250,"International Education",254,"Group Programs and Global Engagement",2540,"Group Programs",20,"22540-1","IE Group Programs","22540-1-3","IE Group Programs  - International Project/Partnerships",219,"Contract Activity","2017-01-01","2099-12-31","N","International Education ",3030,"INTERNL PROJECT/PARTNERSH",{"$f":"VLOOKUP(K320,WORKORDERS!$A:$P,16,FALSE)","v":"no"}]
[null,250,"International Education",254,"Group Programs and Global Engagement",2540,"Group Programs",20,"22540-1","IE Group Programs","22540-1-4","IE Group Programs  - Shanghai Lizin U Commerce",219,"Contract Activity","2017-01-01","2099-12-31","N","International Education ",3034,"SHANGHAI LIXIN U COMMERCE",{"$f":"VLOOKUP(K321,WORKORDERS!$A:$P,16,FALSE)","v":"no"}]
[null,250,"International Education",254,"Group Programs and Global Engagement",2540,"Group Programs",20,"22540-1","IE Group Programs","22540-1-5","IE Group Programs  - SDIBT",219,"Contract Activity","2017-01-01","2099-12-31","N","International Education ",3035,"SDIBT",{"$f":"VLOOKUP(K322,WORKORDERS!$A:$P,16,FALSE)","v":"no"}]
[null,250,"International Education",254,"Group Programs and Global Engagement",2540,"Group Programs",20,"22540-1","IE Group Programs","22540-1-6","IE Group Programs  - Tamagawa ESL/Horticulture ",219,"Contract Activity","2021-03-27","2099-12-31","N","International Education ",3130,"TAMAGAWA  ESL/HORTICULTUR",{"$f":"VLOOKUP(K323,WORKORDERS!$A:$P,16,FALSE)","v":"no"}]
[null,250,"International Education",254,"Group Programs and Global Engagement",2545,"Global Engagement",20,"22545-1","IE Global Engagement","22545-1-1","IE Global Engagement",201,"Faculty Administration","2017-01-01","2099-12-31","N","International Education ",3061,"GLOBAL ENGAGEMENT ",{"$f":"VLOOKUP(K324,WORKORDERS!$A:$P,16,FALSE)","v":"no"}]
[null,250,"International Education",254,"Group Programs and Global Engagement",2545,"Global Engagement",20,"22545-2","IE Global Engagement - Internationalization","22545-2-1","IE Global Engagement - Internationalization",201,"Faculty Administration","2017-01-01","2099-12-31","N","International Education ",3092,"MAL.INTERNATIONALIZATION",{"$f":"VLOOKUP(K325,WORKORDERS!$A:$P,16,FALSE)","v":"no"}]
[null,250,"International Education",254,"Group Programs and Global Engagement",2545,"Global Engagement",20,"22545-3","IE Global Engagement - SAGE ","22545-3-1","IE Global Engagement - SAGE - Belize",219,"Contract Activity","2017-01-01","2099-12-31","N","International Education ",3044,"SAGE - BELIZE",{"$f":"VLOOKUP(K326,WORKORDERS!$A:$P,16,FALSE)","v":"no"}]
[null,250,"International Education",254,"Group Programs and Global Engagement",2545,"Global Engagement",20,"22545-4","IE Global Engagement- Young Africa Works","22545-4-1","IE Global Engagement- Young Africa Works- Kenya",219,"Contract Activity","2020-03-28","2099-12-31","N","International Education ",3046,"YOUNG AFRICA WORKS - KENYA",{"$f":"VLOOKUP(K327,WORKORDERS!$A:$P,16,FALSE)","v":"no"}]
[null,"250","International Education","254","Group Programs and Global Engagement","2545","Global Engagement","20","22545-5","IE Global Engagement - Pacific Alliance","22545-5-1","IE Global Engagement - Pacific Alliance - Chile","219","Contract activity","2021-03-27","2099-12-31","N","International Education ",3045,"PACIFIC ALLIANCE",{"$f":"VLOOKUP(K328,WORKORDERS!$A:$P,16,FALSE)","v":"no"}]
[null,"250","International Education","254","Group Programs and Global Engagement","2545","Global Engagement","20","22545-6","IE Global Engagement - TRA NINH ","22545-6-1","IE Global Engagement - TRA NINH - Vietnam ","219","Contract activity","2021-03-27","2099-12-31","N","International Education ",3073,"VIETNAM - TRA VINH",{"$f":"VLOOKUP(K329,WORKORDERS!$A:$P,16,FALSE)","v":"no"}]
[null,250,"International Education",255,"Education Abroad and Field Schools",2550,"Education Abroad and Field Schools",20,"22550-1","IE Education Abroad and Field Schools","22550-1-1","IE Education Abroad and Field Schools",223,"Field Schools","2017-01-01","2099-12-31","N","International Education ",3060,"ED. ABROAD & PROJ MNGMT",{"$f":"VLOOKUP(K330,WORKORDERS!$A:$P,16,FALSE)","v":"no"}]
[null,250,"International Education",255,"Education Abroad and Field Schools",2550,"Education Abroad and Field Schools",20,"22550-1","IE Education Abroad and Field Schools","22550-1-10","IE EAFS - Business Field School EAFS - Europe",223,"Field Schools","2017-01-01","2099-12-31","N","International Education ",3194,"BUSINESS FS - EUROPE",{"$f":"VLOOKUP(K331,WORKORDERS!$A:$P,16,FALSE)","v":"no"}]
[null,250,"International Education",255,"Education Abroad and Field Schools",2550,"Education Abroad and Field Schools",20,"22550-1","IE Education Abroad and Field Schools","22550-1-11","IE EAFS - Central Asia Office",223,"Field Schools","2021-07-01","2099-12-31","P",{"$error":"#N/A"},{"$error":"#N/A"},{"$error":"#N/A"},{"$f":"VLOOKUP(K332,WORKORDERS!$A:$P,16,FALSE)","v":"no"}]
[null,250,"International Education",255,"Education Abroad and Field Schools",2550,"Education Abroad and Field Schools",20,"22550-1","IE Education Abroad and Field Schools","22550-1-12","IE EAFS - Cosmetology Implementation",223,"Field Schools","2017-01-01","2099-12-31","N","International Education ",3039,"COSMETOLGY IMPLEMENTATION",{"$f":"VLOOKUP(K333,WORKORDERS!$A:$P,16,FALSE)","v":"no"}]
[null,250,"International Education",255,"Education Abroad and Field Schools",2550,"Education Abroad and Field Schools",20,"22550-1","IE Education Abroad and Field Schools","22550-1-13","IE EAFS - Culinary Field School EAFS - Italy",223,"Field Schools","2017-01-01","2099-12-31","N","International Education ",3184,"CULINARY FIELD SCH -ITALY",{"$f":"VLOOKUP(K334,WORKORDERS!$A:$P,16,FALSE)","v":"no"}]
[null,250,"International Education",255,"Education Abroad and Field Schools",2550,"Education Abroad and Field Schools",20,"22550-1","IE Education Abroad and Field Schools","22550-1-14","IE EAFS - Eng/Geography Field School Italy",223,"Field Schools","2017-01-01","2099-12-31","N","International Education ",3185,"ENG/GEOGRAPHY FS ITALY",{"$f":"VLOOKUP(K335,WORKORDERS!$A:$P,16,FALSE)","v":"no"}]
[null,250,"International Education",255,"Education Abroad and Field Schools",2550,"Education Abroad and Field Schools",20,"22550-1","IE Education Abroad and Field Schools","22550-1-15","IE EAFS - Engineering Field School Vietnam",223,"Field Schools","2017-01-01","2099-12-31","N","International Education ",3163,"ENGR FIELD SCHOOL VIETNAM",{"$f":"VLOOKUP(K336,WORKORDERS!$A:$P,16,FALSE)","v":"no"}]
[null,250,"International Education",255,"Education Abroad and Field Schools",2550,"Education Abroad and Field Schools",20,"22550-1","IE Education Abroad and Field Schools","22550-1-16","IE EAFS - Field School Fee Clearing",223,"Field Schools","2017-01-01","2099-12-31","N","International Education ",3155,"FIELD SCHOOL FEE-CLEARING",{"$f":"VLOOKUP(K337,WORKORDERS!$A:$P,16,FALSE)","v":"no"}]
[null,250,"International Education",255,"Education Abroad and Field Schools",2550,"Education Abroad and Field Schools",20,"22550-1","IE Education Abroad and Field Schools","22550-1-17","IE EAFS - Geography Abroad",223,"Field Schools","2017-01-01","2099-12-31","N","International Education ",3191,"GEOGRAPHY ABROAD",{"$f":"VLOOKUP(K338,WORKORDERS!$A:$P,16,FALSE)","v":"no"}]
[null,250,"International Education",255,"Education Abroad and Field Schools",2550,"Education Abroad and Field Schools",20,"22550-1","IE Education Abroad and Field Schools","22550-1-18","IE EAFS - Geology Abroad",223,"Field Schools","2017-01-01","2099-12-31","N","International Education ",3175,"GEOLOGY ABROAD",{"$f":"VLOOKUP(K339,WORKORDERS!$A:$P,16,FALSE)","v":"no"}]
[null,250,"International Education",255,"Education Abroad and Field Schools",2550,"Education Abroad and Field Schools",20,"22550-1","IE Education Abroad and Field Schools","22550-1-19","IE EAFS - Global Studies Internship",223,"Field Schools","2017-01-01","2099-12-31","N","International Education ",3110,"GLOBAL STUDIES INTERNSHIP",{"$f":"VLOOKUP(K340,WORKORDERS!$A:$P,16,FALSE)","v":"no"}]
[null,250,"International Education",255,"Education Abroad and Field Schools",2550,"Education Abroad and Field Schools",20,"22550-1","IE Education Abroad and Field Schools","22550-1-2","IE EAFS - Exchange Programs",223,"Field Schools","2017-01-01","2099-12-31","N","International Education ",3094,"EXCHANGE PROGRAMS",{"$f":"VLOOKUP(K341,WORKORDERS!$A:$P,16,FALSE)","v":"no"}]
[null,250,"International Education",255,"Education Abroad and Field Schools",2550,"Education Abroad and Field Schools",20,"22550-1","IE Education Abroad and Field Schools","22550-1-20","IE EAFS - China Office",223,"Field Schools","2017-01-01","2099-12-31","N","International Education ",3143,"GROK EDUC-CHINA OFFICE",{"$f":"VLOOKUP(K342,WORKORDERS!$A:$P,16,FALSE)","v":"no"}]
[null,250,"International Education",255,"Education Abroad and Field Schools",2550,"Education Abroad and Field Schools",20,"22550-1","IE Education Abroad and Field Schools","22550-1-21","IE EAFS - HSP/Tourism Field School EAFS - Hawaii",223,"Field Schools","2017-01-01","2099-12-31","N","International Education ",3172,"HSP/TOUR FIELD SCH-HAWAII",{"$f":"VLOOKUP(K343,WORKORDERS!$A:$P,16,FALSE)","v":"no"}]
[null,250,"International Education",255,"Education Abroad and Field Schools",2550,"Education Abroad and Field Schools",20,"22550-1","IE Education Abroad and Field Schools","22550-1-22","IE EAFS - India Office",223,"Field Schools","2017-01-01","2099-12-31","N","International Education ",3140,"INDIA OFFICE",{"$f":"VLOOKUP(K344,WORKORDERS!$A:$P,16,FALSE)","v":"no"}]
[null,250,"International Education",255,"Education Abroad and Field Schools",2550,"Education Abroad and Field Schools",20,"22550-1","IE Education Abroad and Field Schools","22550-1-23","IE EAFS - International Ed EAFS - Global Studies",223,"Field Schools","2017-01-01","2099-12-31","N","International Education ",3111,"INTERNAT'L ED: GLOBAL ST.",{"$f":"VLOOKUP(K345,WORKORDERS!$A:$P,16,FALSE)","v":"no"}]
[null,250,"International Education",255,"Education Abroad and Field Schools",2550,"Education Abroad and Field Schools",20,"22550-1","IE Education Abroad and Field Schools","22550-1-24","IE EAFS - ISTEP EAFS - Tanzania",223,"Field Schools","2017-01-01","2099-12-31","N","International Education ",3027,"ISTEP-TANZANIA",{"$f":"VLOOKUP(K346,WORKORDERS!$A:$P,16,FALSE)","v":"no"}]
[null,250,"International Education",255,"Education Abroad and Field Schools",2550,"Education Abroad and Field Schools",20,"22550-1","IE Education Abroad and Field Schools","22550-1-25","IE EAFS - ISTEP EAFS - Tanzania PIP",223,"Field Schools","2017-01-01","2099-12-31","N","International Education ",3028,"ISTEP-TANZANIA-PIP",{"$f":"VLOOKUP(K347,WORKORDERS!$A:$P,16,FALSE)","v":"no"}]
[null,250,"International Education",255,"Education Abroad and Field Schools",2550,"Education Abroad and Field Schools",20,"22550-1","IE Education Abroad and Field Schools","22550-1-26","IE EAFS - KEFEP EAFS - Kenya",223,"Field Schools","2017-01-01","2099-12-31","N","International Education ",3043,"KEFEP - KENYA",{"$f":"VLOOKUP(K348,WORKORDERS!$A:$P,16,FALSE)","v":"no"}]
[null,250,"International Education",255,"Education Abroad and Field Schools",2550,"Education Abroad and Field Schools",20,"22550-1","IE Education Abroad and Field Schools","22550-1-27","IE EAFS - Latin America Office",223,"Field Schools","2017-01-01","2099-12-31","N","International Education ",3145,"LATIN AMERICA OFFICE",{"$f":"VLOOKUP(K349,WORKORDERS!$A:$P,16,FALSE)","v":"no"}]
[null,250,"International Education",255,"Education Abroad and Field Schools",2550,"Education Abroad and Field Schools",20,"22550-1","IE Education Abroad and Field Schools","22550-1-28","IE EAFS - Liberal Studies Abroad",223,"Field Schools","2017-01-01","2099-12-31","N","International Education ",3180,"LIBERAL STUDIES ABROAD",{"$f":"VLOOKUP(K350,WORKORDERS!$A:$P,16,FALSE)","v":"no"}]
[null,250,"International Education",255,"Education Abroad and Field Schools",2550,"Education Abroad and Field Schools",20,"22550-1","IE Education Abroad and Field Schools","22550-1-29","IE EAFS - Nursing field School Nepal",223,"Field Schools","2017-01-01","2099-12-31","N","International Education ",3182,"NURSING FIELD SCH NEPAL",{"$f":"VLOOKUP(K351,WORKORDERS!$A:$P,16,FALSE)","v":"no"}]
[null,250,"International Education",255,"Education Abroad and Field Schools",2550,"Education Abroad and Field Schools",20,"22550-1","IE Education Abroad and Field Schools","22550-1-3","IE EAFS - Anthropology Field School",223,"Field Schools","2017-01-01","2099-12-31","N","International Education ",3195,"ANTHROPOLOGY FIELD SCHOOL",{"$f":"VLOOKUP(K352,WORKORDERS!$A:$P,16,FALSE)","v":"no"}]
[null,250,"International Education",255,"Education Abroad and Field Schools",2550,"Education Abroad and Field Schools",20,"22550-1","IE Education Abroad and Field Schools","22550-1-30","IE EAFS - OWWE EAFS - Europe Office",223,"Field Schools","2017-01-01","2099-12-31","N","International Education ",3141,"OWWE - EUROPE OFFICE",{"$f":"VLOOKUP(K353,WORKORDERS!$A:$P,16,FALSE)","v":"no"}]
[null,250,"International Education",255,"Education Abroad and Field Schools",2550,"Education Abroad and Field Schools",20,"22550-1","IE Education Abroad and Field Schools","22550-1-31","IE EAFS - Practicum Support",223,"Field Schools","2017-01-01","2099-12-31","N","International Education ",3158,"PRACTICUM SUPPORT",{"$f":"VLOOKUP(K354,WORKORDERS!$A:$P,16,FALSE)","v":"no"}]
[null,250,"International Education",255,"Education Abroad and Field Schools",2550,"Education Abroad and Field Schools",20,"22550-1","IE Education Abroad and Field Schools","22550-1-32","IE EAFS - RASHA EAFS - East Asia Office",223,"Field Schools","2017-01-01","2099-12-31","N","International Education ",3142,"RASHA - EAST ASIA OFFICE",{"$f":"VLOOKUP(K355,WORKORDERS!$A:$P,16,FALSE)","v":"no"}]
[null,250,"International Education",255,"Education Abroad and Field Schools",2550,"Education Abroad and Field Schools",20,"22550-1","IE Education Abroad and Field Schools","22550-1-33","IE EAFS - Soc/Crim Field School EAFS - Arizona",223,"Field Schools","2017-01-01","2099-12-31","N","International Education ",3187,"SOC/CRIM FS ARIZONA",{"$f":"VLOOKUP(K356,WORKORDERS!$A:$P,16,FALSE)","v":"no"}]
[null,250,"International Education",255,"Education Abroad and Field Schools",2550,"Education Abroad and Field Schools",20,"22550-1","IE Education Abroad and Field Schools","22550-1-34","IE EAFS - Study Abroad Emergency Fund",223,"Field Schools","2017-01-01","2099-12-31","N","International Education ",3159,"STUDY ABROAD EMERGENCY FD",{"$f":"VLOOKUP(K357,WORKORDERS!$A:$P,16,FALSE)","v":"no"}]
[null,250,"International Education",255,"Education Abroad and Field Schools",2550,"Education Abroad and Field Schools",20,"22550-1","IE Education Abroad and Field Schools","22550-1-35","IE EAFS - SWU BIP",223,"Field Schools","2017-01-01","2099-12-31","N","International Education ",3189,"SWU BIP",{"$f":"VLOOKUP(K358,WORKORDERS!$A:$P,16,FALSE)","v":"no"}]
[null,250,"International Education",255,"Education Abroad and Field Schools",2550,"Education Abroad and Field Schools",20,"22550-1","IE Education Abroad and Field Schools","22550-1-38","IE EAFS - VIU in Africa",223,"Field Schools","2017-01-01","2099-12-31","N","International Education ",3173,"VIU IN AFRICA",{"$f":"VLOOKUP(K359,WORKORDERS!$A:$P,16,FALSE)","v":"no"}]
[null,250,"International Education",255,"Education Abroad and Field Schools",2550,"Education Abroad and Field Schools",20,"22550-1","IE Education Abroad and Field Schools","22550-1-39","IE EAFS - Wine Field School - Europe",223,"Field Schools","2020-03-28","2099-12-31","N","International Education ",3169,"MGMT WINE FS-EUROPE",{"$f":"VLOOKUP(K360,WORKORDERS!$A:$P,16,FALSE)","v":"no"}]
[null,250,"International Education",255,"Education Abroad and Field Schools",2550,"Education Abroad and Field Schools",20,"22550-1","IE Education Abroad and Field Schools","22550-1-4","IE EAFS - Anthropology Internships",223,"Field Schools","2017-01-01","2099-12-31","N","International Education ",3178,"ANTHROPOLOGY INTERNSHIPS",{"$f":"VLOOKUP(K361,WORKORDERS!$A:$P,16,FALSE)","v":"no"}]
[null,250,"International Education",255,"Education Abroad and Field Schools",2550,"Education Abroad and Field Schools",20,"22550-1","IE Education Abroad and Field Schools","22550-1-40","IE EAFS - PE Abroad",223,"Field Schools","2020-03-28","2099-12-31","N","International Education ",3186,"PE ABROAD",{"$f":"VLOOKUP(K362,WORKORDERS!$A:$P,16,FALSE)","v":"no"}]
[null,250,"International Education",255,"Education Abroad and Field Schools",2550,"Education Abroad and Field Schools",20,"22550-1","IE Education Abroad and Field Schools","22550-1-41","IE EAFS - HHS Field School - Indonesia",223,"Field Schools","2020-03-28","2099-12-31","N","International Education ",3192,"HHS FIELD SCH-INDONESIA",{"$f":"VLOOKUP(K363,WORKORDERS!$A:$P,16,FALSE)","v":"no"}]
[null,250,"International Education",255,"Education Abroad and Field Schools",2550,"Education Abroad and Field Schools",20,"22550-1","IE Education Abroad and Field Schools","22550-1-5","IE EAFS - Art EAFS - New York",223,"Field Schools","2017-01-01","2099-12-31","N","International Education ",3170,"ART - NEW YORK",{"$f":"VLOOKUP(K364,WORKORDERS!$A:$P,16,FALSE)","v":"no"}]
[null,250,"International Education",255,"Education Abroad and Field Schools",2550,"Education Abroad and Field Schools",20,"22550-1","IE Education Abroad and Field Schools","22550-1-6","IE EAFS - Bach Education Abroad",223,"Field Schools","2017-01-01","2099-12-31","N","International Education ",3179,"BACH EDUCATION ABROAD",{"$f":"VLOOKUP(K365,WORKORDERS!$A:$P,16,FALSE)","v":"no"}]
[null,250,"International Education",255,"Education Abroad and Field Schools",2550,"Education Abroad and Field Schools",20,"22550-1","IE Education Abroad and Field Schools","22550-1-7","IE EAFS - Baking EAFS - France",223,"Field Schools","2017-01-01","2099-12-31","N","International Education ",3190,"BAKING - FRANCE",{"$f":"VLOOKUP(K366,WORKORDERS!$A:$P,16,FALSE)","v":"no"}]
[null,250,"International Education",255,"Education Abroad and Field Schools",2550,"Education Abroad and Field Schools",20,"22550-1","IE Education Abroad and Field Schools","22550-1-8","IE EAFS - Crim - Philidelphia",223,"Field Schools","2017-01-01","2099-12-31","N","International Education ",3174,"Crim FS - Philidelphia ",{"$f":"VLOOKUP(K367,WORKORDERS!$A:$P,16,FALSE)","v":"no"}]
[null,250,"International Education",255,"Education Abroad and Field Schools",2550,"Education Abroad and Field Schools",20,"22550-1","IE Education Abroad and Field Schools","22550-1-9","IE EAFS - Business Field School EAFS - China",223,"Field Schools","2017-01-01","2099-12-31","N","International Education ",3183,"BUSINESS FIELD SCH-CHINA",{"$f":"VLOOKUP(K368,WORKORDERS!$A:$P,16,FALSE)","v":"no"}]
[null,250,"International Education",800,"VH Clearing Activity",8000,"High Schools - Administration",80,"88000-1","VH High Schools - Administration","88000-1-1","VH High Schools - Administration",100,"Administration","2017-01-01","2099-12-31","N","High School",3085,"MIHS OPERATIONS",{"$f":"VLOOKUP(K369,WORKORDERS!$A:$P,16,FALSE)","v":"yes"}]
[null,250,"International Education",800,"VH Clearing Activity",8075,"HS Combined - Domestic and International activity",80,"88075-1","VH Combined - Domestic and International activity","88075-1-1","VH Combined - Domestic and International activity",208,"Instruction","2017-01-01","2099-12-31","N","High School",3087,"HIGH SCHOOL INSTRUCTION",{"$f":"VLOOKUP(K370,WORKORDERS!$A:$P,16,FALSE)","v":"yes"}]
[null,250,"International Education",800,"VH Clearing Activity",8100,"HS Domestic activity",80,"88100-1","VH Domestic activity","88100-1-1","VH Domestic activity",208,"Instruction","2017-01-01","2099-12-31","N","High School",3088,"HIGH SCHOOL- CANADIAN",{"$f":"VLOOKUP(K371,WORKORDERS!$A:$P,16,FALSE)","v":"yes"}]
[null,250,"International Education",800,"VH Clearing Activity",8200,"HS International activity",80,"88200-1","VH International activity","88200-1-1","VH International activity",208,"Instruction","2017-01-01","2099-12-31","N","High School",3089,"MHS -INT'L STUDENTS",{"$f":"VLOOKUP(K372,WORKORDERS!$A:$P,16,FALSE)","v":"yes"}]
[null,250,"International Education",800,"VH Clearing Activity",8210,"HS Adult and Foundation Programs",80,"88210-1","VH Adult and Foundation Programs","88210-1-1","VH Adult and Foundation Programs",208,"Instruction","2017-01-01","2099-12-31","N","High School",3084,"ADULT & FDN PROGRAMS",{"$f":"VLOOKUP(K373,WORKORDERS!$A:$P,16,FALSE)","v":"yes"}]
[null,250,"International Education",800,"VH Clearing Activity",8215,"HS Summer Programs",80,"88215-1","VH Summer Programs","88215-1-1","VH Summer Programs",208,"Instruction","2017-01-01","2099-12-31","N","High School",3082,"MIHS SUMMER STUDY",{"$f":"VLOOKUP(K374,WORKORDERS!$A:$P,16,FALSE)","v":"yes"}]
[null,250,"International Education",800,"VH Clearing Activity",8230,"HS Group Programs",80,"88230-1","VH Group Programs","88230-1-1","VH Group Programs",208,"Instruction","2017-01-01","2099-12-31","N","High School",3083,"GROUP PROGRAMS",{"$f":"VLOOKUP(K375,WORKORDERS!$A:$P,16,FALSE)","v":"yes"}]
[null,250,"International Education",800,"VH Clearing Activity",8300,"High Schools - Due To/From",80,"88300-1","VH High Schools - Due To/From","88300-1-1","VH High Schools - Due To/From",100,"Administration","2020-03-28","2099-12-31","N",{"$error":"#N/A"},{"$error":"#N/A"},{"$error":"#N/A"},{"$f":"VLOOKUP(K376,WORKORDERS!$A:$P,16,FALSE)","v":"no"}]
[null,260,"Management",260,"Management",2600,"Faculty of Management",10,"12600-1","FOM Faculty Dean's Office","12600-1-1","FOM Faculty Dean's Office",201,"Faculty Administration","2017-01-01","2099-12-31","N","Management",1500,"DEAN - FACULTY OF MGMT",{"$f":"VLOOKUP(K377,WORKORDERS!$A:$P,16,FALSE)","v":"no"}]
[null,260,"Management",260,"Management",2600,"Faculty of Management",10,"12600-2","FOM Faculty Administration","12600-2-1","FOM Faculty Administration",201,"Faculty Administration","2021-07-01","2099-12-31","P",{"$error":"#N/A"},{"$error":"#N/A"},{"$error":"#N/A"},{"$f":"VLOOKUP(K378,WORKORDERS!$A:$P,16,FALSE)","v":"no"}]
[null,260,"Management",260,"Management",2601,"Faculty of Management - Initiatives",10,"12601-1","FOM Faculty Initiatives","12601-1-1","FOM Faculty Initiatives",201,"Faculty Administration","2021-07-01","2099-12-31","P",{"$error":"#N/A"},{"$error":"#N/A"},{"$error":"#N/A"},{"$f":"VLOOKUP(K379,WORKORDERS!$A:$P,16,FALSE)","v":"yes"}]
[null,260,"Management",260,"Management",2601,"Faculty of Management - Initiatives",10,"12601-1","FOM Faculty Initiatives","12601-1-2","FOM Advising",204,"Advising","2017-01-01","2099-12-31","N","Management",1505,"ADVISING - F OF M ",{"$f":"VLOOKUP(K380,WORKORDERS!$A:$P,16,FALSE)","v":"yes"}]
[null,260,"Management",260,"Management",2601,"Faculty of Management - Initiatives",10,"12601-2","FOM Faculty - International Sections","12601-2-1","FOM Faculty - International Sections",208,"Instruction","2017-01-01","2099-12-31","N","Management",1515,"INT'L SECTIONS - MGMT",{"$f":"VLOOKUP(K381,WORKORDERS!$A:$P,16,FALSE)","v":"no"}]
[null,260,"Management",260,"Management",2601,"Faculty of Management - Initiatives",10,"12601-3","FOM Faculty - Directed Studies","12601-3-1","FOM Faculty - Directed Studies",208,"Instruction","2017-01-01","2099-12-31","N","Management",1510,"DIRECTED STUDIES - F OF M",{"$f":"VLOOKUP(K382,WORKORDERS!$A:$P,16,FALSE)","v":"no"}]
[null,260,"Management",260,"Management",2601,"Faculty of Management - Initiatives",20,"22601-1","FOM Faculty - General Research","22601-1-1","FOM General Research - Brouder",302,"General Research","2017-01-01","2099-12-31","N","Contracts - Management",1643,"GENERAL RESEARCH - BROUDER",{"$f":"VLOOKUP(K383,WORKORDERS!$A:$P,16,FALSE)","v":"no"}]
[null,260,"Management",260,"Management",2601,"Faculty of Management - Initiatives",20,"22601-1","FOM Faculty - General Research","22601-1-10","FOM General Research - Predyk",302,"General Research","2017-01-01","2099-12-31","N","Contracts - Management",1649,"GENERAL RESEARCH - PREDYK",{"$f":"VLOOKUP(K384,WORKORDERS!$A:$P,16,FALSE)","v":"no"}]
[null,260,"Management",260,"Management",2601,"Faculty of Management - Initiatives",20,"22601-1","FOM Faculty - General Research","22601-1-11","FOM General Research - Schroeder",302,"General Research","2017-01-01","2099-12-31","N","Contracts - Management",1648,"GENERAL RESEARCH - SCHROEDER",{"$f":"VLOOKUP(K385,WORKORDERS!$A:$P,16,FALSE)","v":"no"}]
[null,260,"Management",260,"Management",2601,"Faculty of Management - Initiatives",20,"22601-1","FOM Faculty - General Research","22601-1-12","FOM General Research - Stone",302,"General Research","2017-01-01","2099-12-31","N","Contracts - Management",1641,"GENERAL RESEARCH - STONE",{"$f":"VLOOKUP(K386,WORKORDERS!$A:$P,16,FALSE)","v":"no"}]
[null,260,"Management",260,"Management",2601,"Faculty of Management - Initiatives",20,"22601-1","FOM Faculty - General Research","22601-1-13","FOM General Research - Vaugeois",302,"General Research","2017-01-01","2099-12-31","N","Contracts - Management",1627,"GENERAL RESEARCH - VAUGEOIS",{"$f":"VLOOKUP(K387,WORKORDERS!$A:$P,16,FALSE)","v":"no"}]
[null,260,"Management",260,"Management",2601,"Faculty of Management - Initiatives",20,"22601-1","FOM Faculty - General Research","22601-1-14","FOM General Research - Weighill",302,"General Research","2017-01-01","2099-12-31","N","Contracts - Management",1645,"GENERAL RESEARCH - WEIGHILL",{"$f":"VLOOKUP(K388,WORKORDERS!$A:$P,16,FALSE)","v":"no"}]
[null,"260","Management","260","Management","2601","Faculty of Management - Initiatives","20","22601-1","FOM Faculty - General Research","22601-1-15","FOM General Research - McKeown","302","General Research","2021-03-27","2099-12-31","N","Contracts - Management",1632,"GENERAL RESEARCH - MCKEOWEN",{"$f":"VLOOKUP(K389,WORKORDERS!$A:$P,16,FALSE)","v":"no"}]
[null,260,"Management",260,"Management",2601,"Faculty of Management - Initiatives",20,"22601-1","FOM Faculty - General Research","22601-1-2","FOM General Research - Burnley, Chris",302,"General Research","2017-01-01","2099-12-31","N","Contracts - Management",1634,"GENERAL RESEARCH - BURNLEY,C",{"$f":"VLOOKUP(K390,WORKORDERS!$A:$P,16,FALSE)","v":"no"}]
[null,260,"Management",260,"Management",2601,"Faculty of Management - Initiatives",20,"22601-1","FOM Faculty - General Research","22601-1-3","FOM General Research - De La Barre",302,"General Research","2017-01-01","2099-12-31","N","Contracts - Management",1639,"GENERAL RESEARCH -  DE LA BARRE",{"$f":"VLOOKUP(K391,WORKORDERS!$A:$P,16,FALSE)","v":"no"}]
[null,260,"Management",260,"Management",2601,"Faculty of Management - Initiatives",20,"22601-1","FOM Faculty - General Research","22601-1-4","FOM General Research - Delamere",302,"General Research","2017-01-01","2099-12-31","N","Contracts - Management",1637,"GENERAL RESEARCH - DELAMERE",{"$f":"VLOOKUP(K392,WORKORDERS!$A:$P,16,FALSE)","v":"no"}]
[null,260,"Management",260,"Management",2601,"Faculty of Management - Initiatives",20,"22601-1","FOM Faculty - General Research","22601-1-5","FOM General Research - Ferguson",302,"General Research","2017-01-01","2099-12-31","N","Contracts - Management",1647,"GENERAL RESEARCH - FERGUSON",{"$f":"VLOOKUP(K393,WORKORDERS!$A:$P,16,FALSE)","v":"no"}]
[null,260,"Management",260,"Management",2601,"Faculty of Management - Initiatives",20,"22601-1","FOM Faculty - General Research","22601-1-6","FOM General Research - Johnson",302,"General Research","2017-01-01","2099-12-31","N","Contracts - Management",1651,"GENERAL RESEARCH - JOHNSON",{"$f":"VLOOKUP(K394,WORKORDERS!$A:$P,16,FALSE)","v":"no"}]
[null,260,"Management",260,"Management",2601,"Faculty of Management - Initiatives",20,"22601-1","FOM Faculty - General Research","22601-1-7","FOM General Research - Latulippe",302,"General Research","2017-01-01","2099-12-31","N","Contracts - Management",1652,"GENERAL RESEARCH - LATULIPPE",{"$f":"VLOOKUP(K395,WORKORDERS!$A:$P,16,FALSE)","v":"no"}]
[null,260,"Management",260,"Management",2601,"Faculty of Management - Initiatives",20,"22601-1","FOM Faculty - General Research","22601-1-8","FOM General Research - Moghimehfar",302,"General Research","2017-01-01","2099-12-31","N","Contracts - Management",1642,"GENERAL RESEARCH - MOGHIMEHFAR",{"$f":"VLOOKUP(K396,WORKORDERS!$A:$P,16,FALSE)","v":"no"}]
[null,260,"Management",260,"Management",2601,"Faculty of Management - Initiatives",20,"22601-1","FOM Faculty - General Research","22601-1-9","FOM General Research - Murray",302,"General Research","2021-07-01","2099-12-31","P",{"$error":"#N/A"},{"$error":"#N/A"},{"$error":"#N/A"},{"$f":"VLOOKUP(K397,WORKORDERS!$A:$P,16,FALSE)","v":"no"}]
[null,260,"Management",260,"Management",2601,"Faculty of Management - Initiatives",20,"22601-2","FOM MBA Funded Initiatives","22601-2-1","FOM MBA Funded Initatives",201,"Faculty Administration","2017-01-01","2099-12-31","N","Contracts - Management",1612,"FOM INITIATIVES",{"$f":"VLOOKUP(K398,WORKORDERS!$A:$P,16,FALSE)","v":"no"}]
[null,260,"Management",260,"Management",2601,"Faculty of Management - Initiatives",20,"22601-2","FOM MBA Funded Initiatives","22601-2-2","FOM MBA Funded - TBD",201,"Faculty Administration","2021-07-01","2099-12-31","P",{"$error":"#N/A"},{"$error":"#N/A"},{"$error":"#N/A"},{"$f":"VLOOKUP(K399,WORKORDERS!$A:$P,16,FALSE)","v":"no"}]
[null,260,"Management",260,"Management",2601,"Faculty of Management - Initiatives",20,"22601-3","FOM Faculty Scholarships","22601-3-1","FOM Scholarships - Competitive Fund",201,"Faculty Administration","2017-01-01","2099-12-31","N","Contracts - Management",1654,"COMPETITIVE FUND",{"$f":"VLOOKUP(K400,WORKORDERS!$A:$P,16,FALSE)","v":"no"}]
[null,260,"Management",260,"Management",2601,"Faculty of Management - Initiatives",20,"22601-4","FOM Faculty - Other","22601-4-1","FOM Accreditation - Business Programs",201,"Faculty Administration","2017-01-01","2099-12-31","N","Contracts - Management",1619,"ACCREDITATION-BUSINESS PR",{"$f":"VLOOKUP(K401,WORKORDERS!$A:$P,16,FALSE)","v":"no"}]
[null,260,"Management",260,"Management",2601,"Faculty of Management - Initiatives",20,"22601-4","FOM Faculty - Other","22601-4-3","FOM IPTRN conference",201,"Faculty Administration","2021-07-01","2099-12-31","P",{"$error":"#N/A"},{"$error":"#N/A"},{"$error":"#N/A"},{"$f":"VLOOKUP(K402,WORKORDERS!$A:$P,16,FALSE)","v":"no"}]
[null,260,"Management",260,"Management",2601,"Faculty of Management - Initiatives",50,"52601-1","FOM Minor Capital","52601-1-1","FOM Minor Capital",500,"Capital - General","2021-07-01","2099-12-31","P",{"$error":"#N/A"},{"$error":"#N/A"},{"$error":"#N/A"},{"$f":"VLOOKUP(K403,WORKORDERS!$A:$P,16,FALSE)","v":"no"}]
[null,260,"Management",260,"Management",2605,"Accounting",10,"12605-1","FOM Accounting","12605-1-1","FOM Accounting",208,"Instruction","2017-01-01","2099-12-31","N","Management",1525,"ACCOUNTING",{"$f":"VLOOKUP(K404,WORKORDERS!$A:$P,16,FALSE)","v":"no"}]
[null,260,"Management",260,"Management",2610,"Economics",10,"12610-1","FOM Economics","12610-1-1","FOM Economics",208,"Instruction","2017-01-01","2099-12-31","N","Management",1530,"ECONOMICS",{"$f":"VLOOKUP(K405,WORKORDERS!$A:$P,16,FALSE)","v":"no"}]
[null,260,"Management",260,"Management",2615,"Finance / QUME",10,"12615-1","FOM Finance / QUME","12615-1-1","FOM Finance / QUME",208,"Instruction","2017-01-01","2099-12-31","N","Management",1535,"FINANCE/QUME",{"$f":"VLOOKUP(K406,WORKORDERS!$A:$P,16,FALSE)","v":"no"}]
[null,260,"Management",260,"Management",2620,"Management / Law",10,"12620-1","FOM Management / Law","12620-1-1","FOM Management / Law",208,"Instruction","2017-01-01","2099-12-31","N","Management",1540,"MANAGEMENT / LAW",{"$f":"VLOOKUP(K407,WORKORDERS!$A:$P,16,FALSE)","v":"no"}]
[null,260,"Management",260,"Management",2620,"Management / Law",10,"12620-1","FOM Management / Law","12620-1-2","FOM Management / Law - Extra Sections",208,"Instruction","2017-01-01","2099-12-31","N","Management",1522,"MANAGEMENT-EXTRA SECTIONS",{"$f":"VLOOKUP(K408,WORKORDERS!$A:$P,16,FALSE)","v":"no"}]
[null,260,"Management",260,"Management",2625,"Marketing",10,"12625-1","FOM Marketing","12625-1-1","FOM Marketing",208,"Instruction","2017-01-01","2099-12-31","N","Management",1545,"MARKETING",{"$f":"VLOOKUP(K409,WORKORDERS!$A:$P,16,FALSE)","v":"no"}]
[null,260,"Management",260,"Management",2630,"Recreation and Tourism",10,"12630-1","FOM Recreation and Tourism","12630-1-1","FOM Recreation and Tourism",208,"Instruction","2017-01-01","2099-12-31","N","Management",1550,"RECREATION/TOUR - F OF M",{"$f":"VLOOKUP(K410,WORKORDERS!$A:$P,16,FALSE)","v":"no"}]
[null,260,"Management",260,"Management",2630,"Recreation and Tourism",20,"22630-1","FOM Event Management","22630-1-1","FOM Event Management",208,"Instruction","2017-01-01","2099-12-31","N","Contracts - Management",1672,"EVENT MANAGEMENT",{"$f":"VLOOKUP(K411,WORKORDERS!$A:$P,16,FALSE)","v":"no"}]
[null,260,"Management",260,"Management",2635,"Hospitality Management",10,"12635-1","FOM Hospitality Management","12635-1-1","FOM Hospitality Management",208,"Instruction","2017-01-01","2099-12-31","N","Management",1560,"HOSPITALITY - F O M",{"$f":"VLOOKUP(K412,WORKORDERS!$A:$P,16,FALSE)","v":"no"}]
[null,260,"Management",260,"Management",2635,"Hospitality Management",10,"12635-2","FOM Hospitality Management - Lab","12635-2-1","FOM Hospitality Management - Lab",208,"Instruction","2017-01-01","2099-12-31","N","Management",1562,"HOSPITALITY LAB",{"$f":"VLOOKUP(K413,WORKORDERS!$A:$P,16,FALSE)","v":"no"}]
[null,260,"Management",260,"Management",2635,"Hospitality Management",10,"12635-3","FOM Hospitality Management - Discovery Room Lab","12635-3-1","FOM Hospitality Management - Discovery Room Lab",208,"Instruction","2017-01-01","2099-12-31","N","Management",1563,"DISCOVERY ROOM LAB",{"$f":"VLOOKUP(K414,WORKORDERS!$A:$P,16,FALSE)","v":"no"}]
[null,260,"Management",260,"Management",2635,"Hospitality Management",10,"12635-4","FOM Hospitality Management - Field Trips","12635-4-1","FOM Hospitality Management - Field Trips",223,"Field Schools","2017-01-01","2099-12-31","N","Management",1561,"HOSP.MGMT TRUST/FIELD TRI",{"$f":"VLOOKUP(K415,WORKORDERS!$A:$P,16,FALSE)","v":"no"}]
[null,260,"Management",260,"Management",2635,"Hospitality Management",20,"22635-1","FOM Hospitality Management - Wine Certificate","22635-1-1","FOM Hospitality Management - Wine Certificate",208,"Instruction","2017-01-01","2099-12-31","N","Contracts - Management",1670,"WINE PROGRAM",{"$f":"VLOOKUP(K416,WORKORDERS!$A:$P,16,FALSE)","v":"no"}]
[null,260,"Management",260,"Management",2670,"Management - PD&T",30,"32670-1","FOM PD&T Administration","32670-1-1","FOM PD&T Administration",280,"PD&T Administration","2017-01-01","2099-12-31","N","CE - Management PD&T",1700,"CE ADMIN - MANAGEMENT",{"$f":"VLOOKUP(K417,WORKORDERS!$A:$P,16,FALSE)","v":"no"}]
[null,260,"Management",260,"Management",2670,"Management - PD&T",30,"32670-2","FOM PD&T Business Leaders","32670-2-1","FOM PD&T Business Leaders",281,"PD&T Program Delivery","2017-01-01","2099-12-31","N","CE - Management PD&T",1703,"BUSINESS AND COMM LEADERS",{"$f":"VLOOKUP(K418,WORKORDERS!$A:$P,16,FALSE)","v":"no"}]
[null,260,"Management",260,"Management",2670,"Management - PD&T",30,"32670-3","FOM PD&T Management Skills","32670-3-1","FOM PD&T Management Skills",281,"PD&T Program Delivery","2017-01-01","2099-12-31","N","CE - Management PD&T",1704,"MANAGEMENT SKILLS",{"$f":"VLOOKUP(K419,WORKORDERS!$A:$P,16,FALSE)","v":"no"}]
[null,260,"Management",260,"Management",2670,"Management - PD&T",30,"32670-4","FOM PD&T Managing Conflicts","32670-4-1","FOM PD&T Managing Conflicts",281,"PD&T Program Delivery","2017-01-01","2099-12-31","N","CE - Management PD&T",1705,"MANAGING CONFLIC-WORKPLA",{"$f":"VLOOKUP(K420,WORKORDERS!$A:$P,16,FALSE)","v":"no"}]
[null,260,"Management",260,"Management",2670,"Management - PD&T",30,"32670-5","FOM PD&T External","32670-5-1","FOM PD&T External",281,"PD&T Program Delivery","2017-01-01","2099-12-31","N","CE - Management PD&T",1706,"PD&T CONTRCT TRNG-EXTERNAL",{"$f":"VLOOKUP(K421,WORKORDERS!$A:$P,16,FALSE)","v":"no"}]
[null,260,"Management",264,"Graduate Programs",2640,"Graduate Programs Administrator",20,"22640-1","FOM Graduate Programs Administrator","22640-1-1","FOM Graduate Programs Administrator",201,"Faculty Administration","2021-07-01","2099-12-31","P",{"$error":"#N/A"},{"$error":"#N/A"},{"$error":"#N/A"},{"$f":"VLOOKUP(K422,WORKORDERS!$A:$P,16,FALSE)","v":"no"}]
[null,260,"Management",264,"Graduate Programs",2641,"Post Degree Diploma in Business Studies",20,"22641-1","FOM Post Degree Diploma in Business Studies","22641-1-1","FOM Post Degree Diploma in Business Studies",208,"Instruction","2017-01-01","2099-12-31","N","Contracts - Management",1662,"PDD BUSINESS STUDIES CO-O",{"$f":"VLOOKUP(K423,WORKORDERS!$A:$P,16,FALSE)","v":"no"}]
[null,260,"Management",264,"Graduate Programs",2645,"Graduate Certificate in Business Management",20,"22645-1","FOM Graduate Certificate in Business Program","22645-1-1","FOM Graduate Certificate in Business Program",208,"Instruction","2017-01-01","2099-12-31","N","Contracts - Management",1617,"GCIB PROGRAM",{"$f":"VLOOKUP(K424,WORKORDERS!$A:$P,16,FALSE)","v":"no"}]
[null,260,"Management",264,"Graduate Programs",2650,"Graduate Diploma in Hospitality",20,"22650-1","FOM Graduate Diploma in Hospitality","22650-1-1","FOM Graduate Diploma in Hospitality",208,"Instruction","2017-01-01","2099-12-31","N","Contracts - Management",1613,"GD HOSPITALITY MANAGEMENT",{"$f":"VLOOKUP(K425,WORKORDERS!$A:$P,16,FALSE)","v":"no"}]
[null,260,"Management",264,"Graduate Programs",2651,"Graduate Diploma in International Trade",20,"22651-1","FOM Graduate Diploma in International Trade","22651-1-1","FOM Graduate Diploma in International Trade",208,"Instruction","2017-01-01","2099-12-31","N","Contracts - Management",1618,"GCIT PROGRAM",{"$f":"VLOOKUP(K426,WORKORDERS!$A:$P,16,FALSE)","v":"no"}]
[null,260,"Management",264,"Graduate Programs",2652,"Graduate Diploma in Project Management",20,"22652-1","FOM Graduate Diploma in Project Management","22652-1-1","FOM Graduate Diploma in Project Management",208,"Instruction","2017-01-01","2099-12-31","N","Contracts - Management",1616,"GDPM PROGRAM",{"$f":"VLOOKUP(K427,WORKORDERS!$A:$P,16,FALSE)","v":"no"}]
[null,260,"Management",264,"Graduate Programs",2655,"Master of Arts in Sustainable Leisure Management",20,"22655-1","FOM Master of Arts in Sustainable Leisure Management","22655-1-1","FOM Master of Arts in Sustainable Leisure Management",208,"Instruction","2017-01-01","2099-12-31","N","Contracts - Management",1615,"MA SUSTAINABLE LEISURE",{"$f":"VLOOKUP(K428,WORKORDERS!$A:$P,16,FALSE)","v":"no"}]
[null,260,"Management",264,"Graduate Programs",2660,"Master of Business Administration",20,"22660-1","FOM Master of Business Administration","22660-1-1","FOM MBA Instruction",208,"Instruction","2017-01-01","2099-12-31","N","Contracts - Management",1620,"MBA PRGM INSTRUCTION",{"$f":"VLOOKUP(K429,WORKORDERS!$A:$P,16,FALSE)","v":"no"}]
[null,260,"Management",264,"Graduate Programs",2660,"Master of Business Administration",20,"22660-2","FOM MBA Internship","22660-2-1","FOM MBA Internship",208,"Instruction","2017-01-01","2099-12-31","N","Contracts - Management",1622,"MBA INTERNSHIP PROGRAM",{"$f":"VLOOKUP(K430,WORKORDERS!$A:$P,16,FALSE)","v":"no"}]
[null,260,"Management",264,"Graduate Programs",2660,"Master of Business Administration",20,"22660-3","FOM MBA Course Redesign","22660-3-1","FOM MBA Course Redesign",201,"Faculty Administration","2017-01-01","2099-12-31","N","Contracts - Management",1621,"MBA COURSE REDESIGN",{"$f":"VLOOKUP(K431,WORKORDERS!$A:$P,16,FALSE)","v":"no"}]
[null,260,"Management",264,"Graduate Programs",2660,"Master of Business Administration",20,"22660-4","FOM MBA Faculty Development","22660-4-1","FOM MBA Faculty Development",201,"Faculty Administration","2017-01-01","2099-12-31","N","Contracts - Management",1602,"MBA-RELATED FACULTY DEV'T",{"$f":"VLOOKUP(K432,WORKORDERS!$A:$P,16,FALSE)","v":"no"}]
[null,270,"Science and Technology",270,"Science and Technology",2700,"Faculty of Science and Technology",10,"12700-1","ST Faculty Dean's Office","12700-1-1","ST Faculty Dean's Office",201,"Faculty Administration","2017-01-01","2099-12-31","N","Science & Technology",2300,"DEAN, SCIENCE AND TECH",{"$f":"VLOOKUP(K433,WORKORDERS!$A:$P,16,FALSE)","v":"no"}]
[null,270,"Science and Technology",270,"Science and Technology",2700,"Faculty of Science and Technology",10,"12700-2","ST Faculty Administration","12700-2-1","ST Faculty Administration",201,"Faculty Administration","2017-01-01","2099-12-31","N","Science & Technology",2301,"FACULTY ADMINISTRATION",{"$f":"VLOOKUP(K434,WORKORDERS!$A:$P,16,FALSE)","v":"no"}]
[null,270,"Science and Technology",270,"Science and Technology",2701,"Science and Technology - Initiatives",10,"12701-1","ST Faculty Initiatives","12701-1-1","ST Faculty Initiatives",201,"Faculty Administration","2021-07-01","2099-12-31","P",{"$error":"#N/A"},{"$error":"#N/A"},{"$error":"#N/A"},{"$f":"VLOOKUP(K435,WORKORDERS!$A:$P,16,FALSE)","v":"yes"}]
[null,270,"Science and Technology",270,"Science and Technology",2701,"Science and Technology - Initiatives",10,"12701-1","ST Faculty Initiatives","12701-1-2","ST Faculty Advising",204,"Advising","2017-01-01","2099-12-31","N","Science & Technology",2303,"SCIENCE/TECH ADVISING",{"$f":"VLOOKUP(K436,WORKORDERS!$A:$P,16,FALSE)","v":"yes"}]
[null,270,"Science and Technology",270,"Science and Technology",2701,"Science and Technology - Initiatives",10,"12701-1","ST Faculty Initiatives","12701-1-4","ST Fumehood Hazardous Waste Disposal",201,"Faculty Administration","2017-01-01","2099-12-31","N","Science & Technology",2325,"FUMEHOOD HAZ.WASTE DISPOS",{"$f":"VLOOKUP(K437,WORKORDERS!$A:$P,16,FALSE)","v":"yes"}]
[null,270,"Science and Technology",270,"Science and Technology",2701,"Science and Technology - Initiatives",10,"12701-1","ST Faculty Initiatives","12701-1-5","ST Bamfield - Fellowships",201,"Faculty Administration","2017-01-01","2099-12-31","N","Science & Technology",2305,"BAMFIELD FELLOWSHIPS",{"$f":"VLOOKUP(K438,WORKORDERS!$A:$P,16,FALSE)","v":"yes"}]
[null,270,"Science and Technology",270,"Science and Technology",2701,"Science and Technology - Initiatives",10,"12701-2","ST Faculty - International Sections","12701-2-1","ST Faculty - International Sections",208,"Instruction","2017-01-01","2099-12-31","N","Science & Technology",2315,"INT'L SECTIONS - SCIENCE",{"$f":"VLOOKUP(K439,WORKORDERS!$A:$P,16,FALSE)","v":"no"}]
[null,270,"Science and Technology",270,"Science and Technology",2701,"Science and Technology - Initiatives",10,"12701-3","ST Faculty - Directed Studies","12701-3-1","ST Faculty - Directed Studies",208,"Instruction","2017-01-01","2099-12-31","N","Science & Technology",2306,"DIRECTED STUDIES-SCIENCE",{"$f":"VLOOKUP(K440,WORKORDERS!$A:$P,16,FALSE)","v":"no"}]
[null,270,"Science and Technology",270,"Science and Technology",2701,"Science and Technology - Initiatives",20,"22701-1","ST Faculty - General Research","22701-1-1","ST General Research - Baker",302,"General Research","2017-01-01","2099-12-31","N","Contracts - Science & Tech",2463,"GENERAL RESEARCH-BAKER",{"$f":"VLOOKUP(K441,WORKORDERS!$A:$P,16,FALSE)","v":"no"}]
[null,270,"Science and Technology",270,"Science and Technology",2701,"Science and Technology - Initiatives",20,"22701-1","ST Faculty - General Research","22701-1-11","ST General Research - Krogh",302,"General Research","2017-01-01","2099-12-31","N","Contracts - Science & Tech",2458,"GENERAL RESEARCH-KROGH",{"$f":"VLOOKUP(K442,WORKORDERS!$A:$P,16,FALSE)","v":"no"}]
[null,270,"Science and Technology",270,"Science and Technology",2701,"Science and Technology - Initiatives",20,"22701-1","ST Faculty - General Research","22701-1-12","ST General Research - Lesemann",302,"General Research","2017-01-01","2099-12-31","N","Contracts - Science & Tech",2470,"GENERAL RESEARCH-LESEMANN",{"$f":"VLOOKUP(K443,WORKORDERS!$A:$P,16,FALSE)","v":"no"}]
[null,270,"Science and Technology",270,"Science and Technology",2701,"Science and Technology - Initiatives",20,"22701-1","ST Faculty - General Research","22701-1-15","ST General Research - Penner",302,"General Research","2017-01-01","2099-12-31","N","Contracts - Science & Tech",2515,"GENERAL RESEARCH-PENNER",{"$f":"VLOOKUP(K444,WORKORDERS!$A:$P,16,FALSE)","v":"no"}]
[null,270,"Science and Technology",270,"Science and Technology",2701,"Science and Technology - Initiatives",20,"22701-1","ST Faculty - General Research","22701-1-16","ST General Research - Stokes",302,"General Research","2017-01-01","2099-12-31","N","Contracts - Science & Tech",2466,"GENERAL RESEARCH-STOKES",{"$f":"VLOOKUP(K445,WORKORDERS!$A:$P,16,FALSE)","v":"no"}]
[null,270,"Science and Technology",270,"Science and Technology",2701,"Science and Technology - Initiatives",20,"22701-1","ST Faculty - General Research","22701-1-17","ST General Research - Russell",302,"General Research","2020-03-28","2099-12-31","N","Contracts - Science & Tech",2464,"GENERAL RESEARCH-RUSSELL",{"$f":"VLOOKUP(K446,WORKORDERS!$A:$P,16,FALSE)","v":"no"}]
[null,270,"Science and Technology",270,"Science and Technology",2701,"Science and Technology - Initiatives",20,"22701-1","ST Faculty - General Research","22701-1-18","ST General Research - McEwen",302,"General Research","2020-03-28","2099-12-31","N","Contracts - Science & Tech",2465,"GENERAL RESEARCH-MCEWEN",{"$f":"VLOOKUP(K447,WORKORDERS!$A:$P,16,FALSE)","v":"no"}]
[null,"270","Science and Technology","270","Science and Technology","2701","Science and Technology - Initiatives","20","22701-1","ST Faculty - General Research","22701-1-19","ST General Research - Sun","302","General Research","2021-03-27","2099-12-31","N","Contracts - Science & Tech",2461,"GENERAL RESEARCH-SUN",{"$f":"VLOOKUP(K448,WORKORDERS!$A:$P,16,FALSE)","v":"no"}]
[null,270,"Science and Technology",270,"Science and Technology",2701,"Science and Technology - Initiatives",20,"22701-1","ST Faculty - General Research","22701-1-4","ST General Research - Duff",302,"General Research","2017-01-01","2099-12-31","N","Contracts - Science & Tech",2574,"GENERAL RESEARCH-DUFF",{"$f":"VLOOKUP(K449,WORKORDERS!$A:$P,16,FALSE)","v":"no"}]
[null,270,"Science and Technology",270,"Science and Technology",2701,"Science and Technology - Initiatives",20,"22701-1","ST Faculty - General Research","22701-1-7","ST General Research - Gill",302,"General Research","2017-01-01","2099-12-31","N","Contracts - Science & Tech",2459,"GENERAL RESEARCH-GILL",{"$f":"VLOOKUP(K450,WORKORDERS!$A:$P,16,FALSE)","v":"no"}]
[null,270,"Science and Technology",270,"Science and Technology",2701,"Science and Technology - Initiatives",20,"22701-1","ST Faculty - General Research","22701-1-9","ST General Research - Hernandez",302,"General Research","2017-01-01","2099-12-31","N","Contracts - Science & Tech",2535,"HERNANDEZ STUDENT RESEARC",{"$f":"VLOOKUP(K451,WORKORDERS!$A:$P,16,FALSE)","v":"no"}]
[null,270,"Science and Technology",270,"Science and Technology",2701,"Science and Technology - Initiatives",20,"22701-1","ST Faculty - General Research","22701-1-20","ST General Research - Duncan",302,"General Research","2021-03-27","2099-12-31","N","Contracts - Science & Tech",2471,"GENERAL RESEARCH - DUNCAN ",{"$f":"VLOOKUP(K452,WORKORDERS!$A:$P,16,FALSE)","v":"no"}]
[null,270,"Science and Technology",270,"Science and Technology",2701,"Science and Technology - Initiatives",20,"22701-2","ST Faculty Proceeds","22701-2-1","ST Faculty Proceeds",201,"Faculty Administration","2017-01-01","2099-12-31","N","Contracts - Science & Tech",2500,"PROCEEDS - SCIENCE/TECH",{"$f":"VLOOKUP(K453,WORKORDERS!$A:$P,16,FALSE)","v":"no"}]
[null,270,"Science and Technology",270,"Science and Technology",2701,"Science and Technology - Initiatives",20,"22701-3","ST Faculty Fundraising","22701-3-1","ST Fundraising - VIU Museum",201,"Faculty Administration","2017-01-01","2099-12-31","N","Contracts - Science & Tech",2402,"VIU MUSEUM FUNDRAISING",{"$f":"VLOOKUP(K454,WORKORDERS!$A:$P,16,FALSE)","v":"no"}]
[null,270,"Science and Technology",270,"Science and Technology",2701,"Science and Technology - Initiatives",20,"22701-3","ST Faculty Fundraising","22701-3-2","ST Fundraising - Awareness Climate Change",201,"Faculty Administration","2017-01-01","2099-12-31","N","Contracts - Science & Tech",2579,"AWARENESS CLIMATE CHANGE",{"$f":"VLOOKUP(K455,WORKORDERS!$A:$P,16,FALSE)","v":"no"}]
[null,270,"Science and Technology",270,"Science and Technology",2701,"Science and Technology - Initiatives",20,"22701-4","ST Faculty Lecture Series","22701-4-1","ST Faculty Lecture Series",201,"Faculty Administration","2017-01-01","2099-12-31","N","Contracts - Science & Tech",2520,"SCIENCE/TECH LECTURE SER.",{"$f":"VLOOKUP(K456,WORKORDERS!$A:$P,16,FALSE)","v":"no"}]
[null,270,"Science and Technology",270,"Science and Technology",2701,"Science and Technology - Initiatives",20,"22701-5","ST Research Contracts","22701-5-1","ST Centre for Coastal Health",310,"Research Contract","2017-01-01","2099-12-31","N","Contracts - Science & Tech",2533,"CENTRE FOR COASTAL HEALTH",{"$f":"VLOOKUP(K457,WORKORDERS!$A:$P,16,FALSE)","v":"no"}]
[null,270,"Science and Technology",270,"Science and Technology",2701,"Science and Technology - Initiatives",20,"22701-5","ST Research Contracts","22701-5-2","ST Environment Canada Contract - Krogh",310,"Research Contract","2017-01-01","2099-12-31","N","Contracts - Science & Tech",2453,"ENV CAN - KROGH",{"$f":"VLOOKUP(K458,WORKORDERS!$A:$P,16,FALSE)","v":"no"}]
[null,270,"Science and Technology",270,"Science and Technology",2701,"Science and Technology - Initiatives",20,"22701-6","ST Applied Environmental Research Lab","22701-6-1","ST AERL (Krogh)",216,"Research Administration","2017-01-01","2099-12-31","N","Contracts - Science & Tech",2452,"AERL OPERATING (KROGH)",{"$f":"VLOOKUP(K459,WORKORDERS!$A:$P,16,FALSE)","v":"no"}]
[null,270,"Science and Technology",270,"Science and Technology",2701,"Science and Technology - Initiatives",20,"22701-6","ST Applied Environmental Research Lab","22701-6-2","ST AERL Applied Research",216,"Research Administration","2017-01-01","2099-12-31","N","Contracts - Science & Tech",2406,"AERL APPLIED RESEARCH",{"$f":"VLOOKUP(K460,WORKORDERS!$A:$P,16,FALSE)","v":"no"}]
[null,270,"Science and Technology",270,"Science and Technology",2701,"Science and Technology - Initiatives",50,"52701-1","ST Minor Capital","52701-1-1","ST Minor Capital",500,"Capital - General","2021-07-01","2099-12-31","P",{"$error":"#N/A"},{"$error":"#N/A"},{"$error":"#N/A"},{"$f":"VLOOKUP(K461,WORKORDERS!$A:$P,16,FALSE)","v":"no"}]
[null,270,"Science and Technology",270,"Science and Technology",2701,"Science and Technology - Initiatives",50,"52701-2","ST CRP Capital Projects ","52701-2-1","ST Multi-Mode Microplate ",500,"Capital - General","2021-03-27","2099-12-31","N","Capital",9207,"SCI-MULTI MODE MICROPLATE",{"$f":"VLOOKUP(K462,WORKORDERS!$A:$P,16,FALSE)","v":"no"}]
[null,270,"Science and Technology",270,"Science and Technology",2701,"Science and Technology - Initiatives",50,"52701-2","ST CRP Capital Projects ","52701-2-2","ST Enginnering Lab Equipment",500,"Capital - General","2021-03-27","2099-12-31","N","Capital",9208,"SCI - ENGNING LAB EQUIP",{"$f":"VLOOKUP(K463,WORKORDERS!$A:$P,16,FALSE)","v":"no"}]
[null,270,"Science and Technology",270,"Science and Technology",2705,"AQUA Group",20,"22705-1","ST Centre for Shellfish Research","22705-1-1","ST CSR Operations",216,"Research Administration","2017-01-01","2099-12-31","N","Contracts-Science-AQUA Group",1480,"CSR OPERATING FUND ",{"$f":"VLOOKUP(K464,WORKORDERS!$A:$P,16,FALSE)","v":"no"}]
[null,270,"Science and Technology",270,"Science and Technology",2705,"AQUA Group",20,"22705-2","ST Deep Bay Marine Field Station","22705-2-1","ST DBMFS Operations",216,"Research Administration","2017-01-01","2099-12-31","N","Contracts-Science-AQUA Group",1481,"DEEP BAY OPERATIONS/ADMIN ",{"$f":"VLOOKUP(K465,WORKORDERS!$A:$P,16,FALSE)","v":"no"}]
[null,270,"Science and Technology",270,"Science and Technology",2705,"AQUA Group",20,"22705-2","ST Deep Bay Marine Field Station","22705-2-2","ST DBMFS Public Education & Events",216,"Research Administration","2017-01-01","2099-12-31","N","Contracts-Science-AQUA Group",1476,"DEEP BAY-PUBLIC ED/EVENTS",{"$f":"VLOOKUP(K466,WORKORDERS!$A:$P,16,FALSE)","v":"no"}]
[null,270,"Science and Technology",270,"Science and Technology",2705,"AQUA Group",20,"22705-2","ST Deep Bay Marine Field Station","22705-2-3","ST DBMFS Research & Service",216,"Research Administration","2017-01-01","2099-12-31","N","Contracts-Science-AQUA Group",1477,"DEEP BAY-RESEARCH, SERVICE",{"$f":"VLOOKUP(K467,WORKORDERS!$A:$P,16,FALSE)","v":"no"}]
[null,270,"Science and Technology",270,"Science and Technology",2705,"AQUA Group",20,"22705-3","ST Sturgeon Centre","22705-3-1","ST SC Operations",201,"Faculty Administration","2017-01-01","2099-12-31","N","Contracts-Science-AQUA Group",1475,"STURGEON CTR-GENERAL OPS",{"$f":"VLOOKUP(K468,WORKORDERS!$A:$P,16,FALSE)","v":"no"}]
[null,270,"Science and Technology",270,"Science and Technology",2705,"AQUA Group",20,"22705-4","ST Seafood Innovation Centre","22705-4-1","ST Seafood Innovation Centre - Feasibility",201,"Faculty Administration","2017-01-01","2099-12-31","N","Contracts-Science-AQUA Group",1479,"SEAFOOD INNOVATION CENTRE",{"$f":"VLOOKUP(K469,WORKORDERS!$A:$P,16,FALSE)","v":"no"}]
[null,270,"Science and Technology",270,"Science and Technology",2705,"AQUA Group",20,"22705-4","ST Seafood Innovation Centre","22705-4-2","ST Seafood Innovation Centre - Implementation",201,"Faculty Administration","2020-03-28","2099-12-31","N","Contracts-Science-AQUA Group",1482,"SIC - IMPLEMENTATION",{"$f":"VLOOKUP(K470,WORKORDERS!$A:$P,16,FALSE)","v":"no"}]
[null,270,"Science and Technology",270,"Science and Technology",2710,"Biology",10,"12710-1","ST Biology","12710-1-1","ST Biology",208,"Instruction","2017-01-01","2099-12-31","N","Science & Technology",2360,"BIOLOGY",{"$f":"VLOOKUP(K471,WORKORDERS!$A:$P,16,FALSE)","v":"no"}]
[null,270,"Science and Technology",270,"Science and Technology",2710,"Biology",20,"22710-2","ST Biology - VIU Bird Banding Station","22710-2-1","ST VIU Bird Banding Station",216,"Research Administration","2017-01-01","2099-12-31","N","Contracts - Science & Tech",2483,"VIU BIRD BANDING STATION",{"$f":"VLOOKUP(K472,WORKORDERS!$A:$P,16,FALSE)","v":"no"}]
[null,270,"Science and Technology",270,"Science and Technology",2715,"Chemistry",10,"12715-1","ST Chemistry","12715-1-1","ST Chemistry",208,"Instruction","2017-01-01","2099-12-31","N","Science & Technology",2320,"CHEMISTRY",{"$f":"VLOOKUP(K473,WORKORDERS!$A:$P,16,FALSE)","v":"no"}]
[null,270,"Science and Technology",270,"Science and Technology",2720,"Computer Science",10,"12720-1","ST Computer Science","12720-1-1","ST Computer Science",208,"Instruction","2017-01-01","2099-12-31","N","Science & Technology",2340,"COMPUTER SCIENCE",{"$f":"VLOOKUP(K474,WORKORDERS!$A:$P,16,FALSE)","v":"no"}]
[null,270,"Science and Technology",270,"Science and Technology",2725,"Earth Science / Geology",10,"12725-1","ST Earth Science / Geology","12725-1-1","ST Earth Science / Geology",208,"Instruction","2017-01-01","2099-12-31","N","Science & Technology",2393,"GEOLOGY",{"$f":"VLOOKUP(K475,WORKORDERS!$A:$P,16,FALSE)","v":"no"}]
[null,270,"Science and Technology",270,"Science and Technology",2725,"Earth Science / Geology",20,"22725-1","ST Earth Science Field Schools","22725-1-1","ST Geology 206 Field School",223,"Field Schools","2017-01-01","2099-12-31","N","Contracts - Science & Tech",2563,"GEOL 206 FIELD SCHOOL",{"$f":"VLOOKUP(K476,WORKORDERS!$A:$P,16,FALSE)","v":"no"}]
[null,270,"Science and Technology",270,"Science and Technology",2725,"Earth Science / Geology",20,"22725-1","ST Earth Science Field Schools","22725-1-2","ST Geology 390 Field Studies",223,"Field Schools","2017-01-01","2099-12-31","N","Contracts - Science & Tech",2562,"GEOL 390 SPEC.FIELD STUDI",{"$f":"VLOOKUP(K477,WORKORDERS!$A:$P,16,FALSE)","v":"no"}]
[null,270,"Science and Technology",270,"Science and Technology",2725,"Earth Science / Geology",20,"22725-2","ST Earth Science / Geology - Promotion","22725-2-1","ST Earth Science / Geology - Promotion",201,"Faculty Administration","2017-01-01","2099-12-31","N","Contracts - Science & Tech",2455,"PROMOTING EARTH SCIENCE",{"$f":"VLOOKUP(K478,WORKORDERS!$A:$P,16,FALSE)","v":"no"}]
[null,270,"Science and Technology",270,"Science and Technology",2730,"Engineering",10,"12730-1","ST Engineering","12730-1-1","ST Engineering",208,"Instruction","2017-01-01","2099-12-31","N","Science & Technology",2327,"ENGINEERING DEGREE PROGR",{"$f":"VLOOKUP(K479,WORKORDERS!$A:$P,16,FALSE)","v":"no"}]
[null,"270","Science and Technology","270","Science and Technology","2730","Engineering","20","22730-2","ST Engineering Research","22730-2-1","ST Engineering Research","216","Research Administration","2021-03-27","2099-12-31","N","Contracts - Science & Tech",2566,"ENGINEERING RESEARCH",{"$f":"VLOOKUP(K480,WORKORDERS!$A:$P,16,FALSE)","v":"no"}]
[null,270,"Science and Technology",270,"Science and Technology",2735,"Fisheries and Aquaculture",10,"12735-1","ST Fisheries and Aquaculture","12735-1-1","ST Fisheries and Aquaculture",208,"Instruction","2017-01-01","2099-12-31","N","Science & Technology",2380,"AQUACULTURE",{"$f":"VLOOKUP(K481,WORKORDERS!$A:$P,16,FALSE)","v":"no"}]
[null,270,"Science and Technology",270,"Science and Technology",2740,"Forestry",10,"12740-1","ST Forestry","12740-1-1","ST Forestry",208,"Instruction","2017-01-01","2099-12-31","N","Science & Technology",2350,"FORESTRY",{"$f":"VLOOKUP(K482,WORKORDERS!$A:$P,16,FALSE)","v":"no"}]
[null,270,"Science and Technology",270,"Science and Technology",2740,"Forestry",20,"22740-1","ST Forestry Field Trips","22740-1-1","ST Forestry Field Trips - Domestic",223,"Field Schools","2017-01-01","2099-12-31","N","Contracts - Science & Tech",2409,"FORESTRY FIELD TRIPS",{"$f":"VLOOKUP(K483,WORKORDERS!$A:$P,16,FALSE)","v":"no"}]
[null,270,"Science and Technology",270,"Science and Technology",2740,"Forestry",20,"22740-2","ST Forestry Students - Other","22740-2-2","ST Forestry Equipment Deposits",201,"Faculty Administration","2017-01-01","2099-12-31","N","Contracts - Science & Tech",2510,"PRGM EQUIPMENT DEPOSITS",{"$f":"VLOOKUP(K484,WORKORDERS!$A:$P,16,FALSE)","v":"no"}]
[null,270,"Science and Technology",270,"Science and Technology",2740,"Forestry",20,"22740-3","ST Forestry Woodlot","22740-3-1","ST Forestry Woodlot - A117",219,"Contract Activity","2017-01-01","2099-12-31","N","Contracts - Science & Tech",2519,"FORESTRY WOODLOT-A117",{"$f":"VLOOKUP(K485,WORKORDERS!$A:$P,16,FALSE)","v":"no"}]
[null,270,"Science and Technology",270,"Science and Technology",2745,"Mathematics",10,"12745-1","ST Mathematics","12745-1-1","ST Mathematics",208,"Instruction","2017-01-01","2099-12-31","N","Science & Technology",2310,"MATH",{"$f":"VLOOKUP(K486,WORKORDERS!$A:$P,16,FALSE)","v":"no"}]
[null,270,"Science and Technology",270,"Science and Technology",2745,"Mathematics",10,"12745-2","ST Math Centre","12745-2-1","ST Math Centre",208,"Instruction","2017-01-01","2099-12-31","N","Science & Technology",2313,"MATH CENTRE",{"$f":"VLOOKUP(K487,WORKORDERS!$A:$P,16,FALSE)","v":"no"}]
[null,270,"Science and Technology",270,"Science and Technology",2745,"Mathematics",20,"22745-1","ST Math Contest","22745-1-1","ST Math Contest",208,"Instruction","2017-01-01","2099-12-31","N","Contracts - Science & Tech",2451,"MATH CONTEST",{"$f":"VLOOKUP(K488,WORKORDERS!$A:$P,16,FALSE)","v":"no"}]
[null,270,"Science and Technology",270,"Science and Technology",2750,"Physics",10,"12750-1","ST Physics","12750-1-1","ST Physics",208,"Instruction","2017-01-01","2099-12-31","N","Science & Technology",2326,"PHYSICS",{"$f":"VLOOKUP(K489,WORKORDERS!$A:$P,16,FALSE)","v":"no"}]
[null,270,"Science and Technology",270,"Science and Technology",2755,"Resource Management and Protection",10,"12755-1","ST Resource Management and Protection","12755-1-1","ST Resource Management and Protection",208,"Instruction","2017-01-01","2099-12-31","N","Science & Technology",2386,"RESOURCE MGMT/PROTECTION",{"$f":"VLOOKUP(K490,WORKORDERS!$A:$P,16,FALSE)","v":"no"}]
[null,270,"Science and Technology",270,"Science and Technology",2755,"Resource Management and Protection",20,"22755-1","ST RMOT Student Fund","22755-1-1","ST RMOT Student Fund",201,"Faculty Administration","2017-01-01","2099-12-31","N","Contracts - Science & Tech",2511,"RMOT STUDENT FUND",{"$f":"VLOOKUP(K491,WORKORDERS!$A:$P,16,FALSE)","v":"no"}]
[null,270,"Science and Technology",270,"Science and Technology",2755,"Resource Management and Protection",20,"22755-2","ST MENREP Program","22755-2-1","ST MENREP Program",219,"Contract Activity","2020-03-28","2099-12-31","N","Contracts - Science & Tech",2530,"MENREP PROGRAM",{"$f":"VLOOKUP(K492,WORKORDERS!$A:$P,16,FALSE)","v":"no"}]
[null,270,"Science and Technology",270,"Science and Technology",2760,"Science and Technology - PD&T",30,"32760-1","ST PD&T Administration","32760-1-1","ST PD&T Administration",280,"PD&T Administration","2017-01-01","2099-12-31","N","CE - Science & Tech PD&T","2610, 2649","FISH EXTENSION-GENERAL EX, NREP CREDIT CARD CHARGES ",{"$f":"VLOOKUP(K493,WORKORDERS!$A:$P,16,FALSE)","v":"no"}]
[null,270,"Science and Technology",270,"Science and Technology",2760,"Science and Technology - PD&T",30,"32760-2","ST PD&T Environment","32760-2-1","ST PD&T Environmental Technician",281,"PD&T Program Delivery","2017-01-01","2099-12-31","N","CE - Science & Tech PD&T",2621,"ABORIGINAL ENV.TECH.CERT.",{"$f":"VLOOKUP(K494,WORKORDERS!$A:$P,16,FALSE)","v":"no"}]
[null,270,"Science and Technology",270,"Science and Technology",2760,"Science and Technology - PD&T",30,"32760-2","ST PD&T Environment","32760-2-2","ST PD&T Environmental Monitoring",281,"PD&T Program Delivery","2017-01-01","2099-12-31","N","CE - Science & Tech PD&T",2613,"ENVIRONMENTAL MONITORING",{"$f":"VLOOKUP(K495,WORKORDERS!$A:$P,16,FALSE)","v":"no"}]
[null,270,"Science and Technology",270,"Science and Technology",2760,"Science and Technology - PD&T",30,"32760-2","ST PD&T Environment","32760-2-3","ST PD&T Erosion and Sediment Control",281,"PD&T Program Delivery","2017-01-01","2099-12-31","N","CE - Science & Tech PD&T",2617,"EROSION AND SEDIMENT CONT",{"$f":"VLOOKUP(K496,WORKORDERS!$A:$P,16,FALSE)","v":"no"}]
[null,270,"Science and Technology",270,"Science and Technology",2760,"Science and Technology - PD&T",30,"32760-3","ST PD&T Fisheries","32760-3-1","ST PD&T Fisheries Field Technician",281,"PD&T Program Delivery","2017-01-01","2099-12-31","N","CE - Science & Tech PD&T",2612,"FFTCP MODULES",{"$f":"VLOOKUP(K497,WORKORDERS!$A:$P,16,FALSE)","v":"no"}]
[null,270,"Science and Technology",270,"Science and Technology",2760,"Science and Technology - PD&T",30,"32760-3","ST PD&T Fisheries","32760-3-2","ST PD&T Electrofishing Recertification",281,"PD&T Program Delivery","2017-01-01","2099-12-31","N","CE - Science & Tech PD&T",2620,"EF RECERT",{"$f":"VLOOKUP(K498,WORKORDERS!$A:$P,16,FALSE)","v":"no"}]
[null,270,"Science and Technology",270,"Science and Technology",2760,"Science and Technology - PD&T",30,"32760-3","ST PD&T Fisheries","32760-3-3","ST PD&T Essential Fisheries Field",281,"PD&T Program Delivery","2020-03-28","2099-12-31","N","CE - Science & Tech PD&T",2622,"ESSENTIAL FISHERIES FIELD",{"$f":"VLOOKUP(K499,WORKORDERS!$A:$P,16,FALSE)","v":"no"}]
[null,270,"Science and Technology",270,"Science and Technology",2760,"Science and Technology - PD&T",30,"32760-4","ST PD&T Professional Skills","32760-4-1","ST PD&T Technical Writing",281,"PD&T Program Delivery","2017-01-01","2099-12-31","N","CE - Science & Tech PD&T",2625,"NRTW-WRITING COURSE",{"$f":"VLOOKUP(K500,WORKORDERS!$A:$P,16,FALSE)","v":"no"}]
[null,270,"Science and Technology",270,"Science and Technology",2760,"Science and Technology - PD&T",30,"32760-5","ST PD&T Riparian","32760-5-1","ST PD&T Riparian Area Regulation",281,"PD&T Program Delivery","2017-01-01","2099-12-31","N","CE - Science & Tech PD&T",2619,"RIPARIAN AREA REGULATION",{"$f":"VLOOKUP(K501,WORKORDERS!$A:$P,16,FALSE)","v":"no"}]
[null,270,"Science and Technology",270,"Science and Technology",2760,"Science and Technology - PD&T",30,"32760-6","ST PD&T Safety","32760-6-1","ST PD&T Safety Training",281,"PD&T Program Delivery","2017-01-01","2099-12-31","N","CE - Science & Tech PD&T",2627,"SAFETY TRAINING (NRST)",{"$f":"VLOOKUP(K502,WORKORDERS!$A:$P,16,FALSE)","v":"no"}]
[null,270,"Science and Technology",270,"Science and Technology",2760,"Science and Technology - PD&T",30,"32760-7","ST PD&T Shellfish","32760-7-1","ST PD&T Shellfish Course",281,"PD&T Program Delivery","2017-01-01","2099-12-31","N","CE - Science & Tech PD&T",2618,"NRSH-SHELLFISH COURSE",{"$f":"VLOOKUP(K503,WORKORDERS!$A:$P,16,FALSE)","v":"no"}]
[null,270,"Science and Technology",270,"Science and Technology",2760,"Science and Technology - PD&T",30,"32760-8","ST PD&T Water Quality","32760-8-1","ST PD&T Water Quality Sampling",281,"PD&T Program Delivery","2017-01-01","2099-12-31","N","CE - Science & Tech PD&T",2614,"FRESHWATER SAMPLING METHO",{"$f":"VLOOKUP(K504,WORKORDERS!$A:$P,16,FALSE)","v":"no"}]
[null,280,"Social Sciences",280,"Social Sciences",2800,"Faculty of Social Sciences",10,"12800-1","SS Faculty Dean's Office","12800-1-1","SS Faculty Dean's Office",201,"Faculty Administration","2017-01-01","2099-12-31","N","Social Sciences",1800,"DEAN, SOCIAL SCIENCES",{"$f":"VLOOKUP(K505,WORKORDERS!$A:$P,16,FALSE)","v":"no"}]
[null,280,"Social Sciences",280,"Social Sciences",2801,"Social Sciences - Initiatives",10,"12801-1","SS Faculty Initiatives","12801-1-1","SS Faculty - Initiatives",201,"Faculty Administration","2021-07-01","2099-12-31","P",{"$error":"#N/A"},{"$error":"#N/A"},{"$error":"#N/A"},{"$f":"VLOOKUP(K506,WORKORDERS!$A:$P,16,FALSE)","v":"yes"}]
[null,280,"Social Sciences",280,"Social Sciences",2801,"Social Sciences - Initiatives",10,"12801-1","SS Faculty Initiatives","12801-1-2","SS Faculty - Advising",204,"Advising","2017-01-01","2099-12-31","N","Social Sciences",1880,"B.A. ADVISING",{"$f":"VLOOKUP(K507,WORKORDERS!$A:$P,16,FALSE)","v":"yes"}]
[null,280,"Social Sciences",280,"Social Sciences",2801,"Social Sciences - Initiatives",10,"12801-1","SS Faculty Initiatives","12801-1-3","SS Building 355 Support",201,"Faculty Administration","2017-01-01","2099-12-31","N","Social Sciences",1804,"BUILDING 355 SUPPORT",{"$f":"VLOOKUP(K508,WORKORDERS!$A:$P,16,FALSE)","v":"yes"}]
[null,280,"Social Sciences",280,"Social Sciences",2801,"Social Sciences - Initiatives",10,"12801-1","SS Faculty Initiatives","12801-1-4","SS Recruitment and Retention",201,"Faculty Administration","2017-01-01","2099-12-31","N","Social Sciences",1801,"SOC SCI RECRUIT/RETENTION",{"$f":"VLOOKUP(K509,WORKORDERS!$A:$P,16,FALSE)","v":"yes"}]
[null,280,"Social Sciences",280,"Social Sciences",2801,"Social Sciences - Initiatives",10,"12801-2","SS Faculty - International Sections","12801-2-1","SS Faculty - International Sections",208,"Instruction","2017-01-01","2099-12-31","N","Social Sciences",1815,"INT'L SECTIONS SOCIAL SCI",{"$f":"VLOOKUP(K510,WORKORDERS!$A:$P,16,FALSE)","v":"no"}]
[null,280,"Social Sciences",280,"Social Sciences",2801,"Social Sciences - Initiatives",10,"12801-3","SS Faculty - Directed Studies","12801-3-1","SS Faculty - Directed Studies",208,"Instruction","2017-01-01","2099-12-31","N","Social Sciences",1812,"DIRECT STUDIES SOCIAL SCI",{"$f":"VLOOKUP(K511,WORKORDERS!$A:$P,16,FALSE)","v":"no"}]
[null,280,"Social Sciences",280,"Social Sciences",2801,"Social Sciences - Initiatives",10,"12801-4","SS Community Based Applied Interdisciplinary Research","12801-4-1","SS Community Based Applied Interdisciplinary Research",201,"Faculty Administration","2017-01-01","2099-12-31","N","Social Sciences",1844,"CBAIR",{"$f":"VLOOKUP(K512,WORKORDERS!$A:$P,16,FALSE)","v":"no"}]
[null,280,"Social Sciences",280,"Social Sciences",2801,"Social Sciences - Initiatives",20,"22801-1","SS Faculty - General Research","22801-1-1","SS General Research - Burnley, Caroline",302,"General Research","2017-01-01","2099-12-31","N","Contracts - Social Sciences",1928,"GENERAL RESEARCH-BURNLEY",{"$f":"VLOOKUP(K513,WORKORDERS!$A:$P,16,FALSE)","v":"no"}]
[null,280,"Social Sciences",280,"Social Sciences",2801,"Social Sciences - Initiatives",20,"22801-1","SS Faculty - General Research","22801-1-10","SS General Research - Nicol",302,"General Research","2017-01-01","2099-12-31","N","Contracts - Social Sciences",1933,"GENERAL RESEARCH-NICOL",{"$f":"VLOOKUP(K514,WORKORDERS!$A:$P,16,FALSE)","v":"no"}]
[null,280,"Social Sciences",280,"Social Sciences",2801,"Social Sciences - Initiatives",20,"22801-1","SS Faculty - General Research","22801-1-11","SS General Research - Patenaude",302,"General Research","2017-01-01","2099-12-31","N","Contracts - Social Sciences",1923,"GENERL RESEARCH-PATENAUDE",{"$f":"VLOOKUP(K515,WORKORDERS!$A:$P,16,FALSE)","v":"no"}]
[null,280,"Social Sciences",280,"Social Sciences",2801,"Social Sciences - Initiatives",20,"22801-1","SS Faculty - General Research","22801-1-2","SS General Research - Cooper",302,"General Research","2017-01-01","2099-12-31","N","Contracts - Social Sciences",1925,"GENERAL RESEARCH-COOPER",{"$f":"VLOOKUP(K516,WORKORDERS!$A:$P,16,FALSE)","v":"no"}]
[null,280,"Social Sciences",280,"Social Sciences",2801,"Social Sciences - Initiatives",20,"22801-1","SS Faculty - General Research","22801-1-3","SS General Research - Gilchrist",302,"General Research","2017-01-01","2099-12-31","N","Contracts - Social Sciences",1931,"GENERL RESEARCH-GILCHRIST",{"$f":"VLOOKUP(K517,WORKORDERS!$A:$P,16,FALSE)","v":"no"}]
[null,280,"Social Sciences",280,"Social Sciences",2801,"Social Sciences - Initiatives",20,"22801-1","SS Faculty - General Research","22801-1-4","SS General Research - Hinbest",302,"General Research","2017-01-01","2099-12-31","N","Contracts - Social Sciences",1929,"GENERAL RESEARCH-HINBEST",{"$f":"VLOOKUP(K518,WORKORDERS!$A:$P,16,FALSE)","v":"no"}]
[null,280,"Social Sciences",280,"Social Sciences",2801,"Social Sciences - Initiatives",20,"22801-1","SS Faculty - General Research","22801-1-5","SS General Research - Lim",302,"General Research","2017-01-01","2099-12-31","N","Contracts - Social Sciences",1934,"GENERAL RESEARCH-LIM",{"$f":"VLOOKUP(K519,WORKORDERS!$A:$P,16,FALSE)","v":"no"}]
[null,280,"Social Sciences",280,"Social Sciences",2801,"Social Sciences - Initiatives",20,"22801-1","SS Faculty - General Research","22801-1-6","SS General Research - Livingstone",302,"General Research","2017-01-01","2099-12-31","N","Contracts - Social Sciences",1927,"GENERL RESEARCH-LIVINGSTO",{"$f":"VLOOKUP(K520,WORKORDERS!$A:$P,16,FALSE)","v":"no"}]
[null,280,"Social Sciences",280,"Social Sciences",2801,"Social Sciences - Initiatives",20,"22801-1","SS Faculty - General Research","22801-1-7","SS General Research - MacGuire",302,"General Research","2017-01-01","2099-12-31","N","Contracts - Social Sciences",1930,"GENERAL RESEARCH-MACGUIRE",{"$f":"VLOOKUP(K521,WORKORDERS!$A:$P,16,FALSE)","v":"no"}]
[null,280,"Social Sciences",280,"Social Sciences",2801,"Social Sciences - Initiatives",20,"22801-1","SS Faculty - General Research","22801-1-8","SS General Research - Marchant",302,"General Research","2017-01-01","2099-12-31","N","Contracts - Social Sciences",1922,"GENERAL RESEARCH-MARCHANT",{"$f":"VLOOKUP(K522,WORKORDERS!$A:$P,16,FALSE)","v":"no"}]
[null,280,"Social Sciences",280,"Social Sciences",2801,"Social Sciences - Initiatives",20,"22801-1","SS Faculty - General Research","22801-1-9","SS General Research - McCunn",302,"General Research","2017-01-01","2099-12-31","N","Contracts - Social Sciences",1924,"GENERAL RESEARCH-MCCUNN",{"$f":"VLOOKUP(K523,WORKORDERS!$A:$P,16,FALSE)","v":"no"}]
[null,280,"Social Sciences",280,"Social Sciences",2801,"Social Sciences - Initiatives",20,"22801-2","SS General Research - Shaw","22801-2-1","SS General Research - Shaw",302,"General Research","2017-01-01","2099-12-31","N","Contracts - Social Sciences",1932,"GENERAL RESEARCH-SHAW",{"$f":"VLOOKUP(K524,WORKORDERS!$A:$P,16,FALSE)","v":"no"}]
[null,280,"Social Sciences",280,"Social Sciences",2801,"Social Sciences - Initiatives",20,"22801-3","SS Research - Other","22801-3-1","SS Malaspina Research Centre",216,"Research Administration","2017-01-01","2099-12-31","N","Contracts - Social Sciences",1920,"MALASPINA RESEARCH CENTRE",{"$f":"VLOOKUP(K525,WORKORDERS!$A:$P,16,FALSE)","v":"no"}]
[null,280,"Social Sciences",280,"Social Sciences",2801,"Social Sciences - Initiatives",20,"22801-3","SS Research - Other","22801-3-2","SS Resilience Research Lab",216,"Research Administration","2017-01-01","2099-12-31","N","Contracts - Social Sciences",1912,"RESILIENCE RESEARCH LAB",{"$f":"VLOOKUP(K526,WORKORDERS!$A:$P,16,FALSE)","v":"no"}]
[null,280,"Social Sciences",280,"Social Sciences",2801,"Social Sciences - Initiatives",20,"22801-3","SS Research - Other","22801-3-3","SS Resilience Research Lab (RSAC)",216,"Research Administration","2017-01-01","2099-12-31","N","Contracts - Social Sciences",1904,"RESILIENCE LAB (RSAC)",{"$f":"VLOOKUP(K527,WORKORDERS!$A:$P,16,FALSE)","v":"no"}]
[null,280,"Social Sciences",280,"Social Sciences",2801,"Social Sciences - Initiatives",20,"22801-4","SS Faculty - Other","22801-4-1","SS VIU Model UN",201,"Faculty Administration","2017-01-01","2099-12-31","N","Contracts - Social Sciences",1900,"VIU MODEL UN",{"$f":"VLOOKUP(K528,WORKORDERS!$A:$P,16,FALSE)","v":"no"}]
[null,280,"Social Sciences",280,"Social Sciences",2801,"Social Sciences - Initiatives",20,"22801-4","SS Faculty - Other","22801-4-2","SS The Compass Rose",201,"Faculty Administration","2017-01-01","2099-12-31","N","Contracts - Social Sciences",1919,"THE COMPASS ROSE",{"$f":"VLOOKUP(K529,WORKORDERS!$A:$P,16,FALSE)","v":"no"}]
[null,280,"Social Sciences",280,"Social Sciences",2801,"Social Sciences - Initiatives",20,"22801-4","SS Faculty - Other","22801-4-3","SS Worldbridger Film Series",201,"Faculty Administration","2017-01-01","2099-12-31","N","Contracts - Social Sciences",1903,"WORLDBRIDGER FILM SERIES",{"$f":"VLOOKUP(K530,WORKORDERS!$A:$P,16,FALSE)","v":"no"}]
[null,280,"Social Sciences",280,"Social Sciences",2801,"Social Sciences - Initiatives",20,"22801-4","SS Faculty - Other","22801-4-4","SS Malaspina Fellows Program",201,"Faculty Administration","2020-03-27","2099-12-31","N","Contracts - Social Sciences",1921,"MALASPINA FELLOWS PROGRAM",{"$f":"VLOOKUP(K531,WORKORDERS!$A:$P,16,FALSE)","v":"no"}]
[null,280,"Social Sciences",280,"Social Sciences",2801,"Social Sciences - Initiatives",50,"52801-1","SS Minor Capital","52801-1-1","SS Minor Capital",500,"Capital - General","2021-07-01","2099-12-31","P",{"$error":"#N/A"},{"$error":"#N/A"},{"$error":"#N/A"},{"$f":"VLOOKUP(K532,WORKORDERS!$A:$P,16,FALSE)","v":"no"}]
[null,280,"Social Sciences",280,"Social Sciences",2805,"Anthropology",10,"12805-1","SS Anthropology","12805-1-1","SS Anthropology",208,"Instruction","2017-01-01","2099-12-31","N","Social Sciences",1840,"ANTHROPOLOGY",{"$f":"VLOOKUP(K533,WORKORDERS!$A:$P,16,FALSE)","v":"no"}]
[null,280,"Social Sciences",280,"Social Sciences",2810,"Criminology",10,"12810-1","SS Criminology","12810-1-1","SS Criminology",208,"Instruction","2017-01-01","2099-12-31","N","Social Sciences",1846,"CRIMINOLOGY",{"$f":"VLOOKUP(K534,WORKORDERS!$A:$P,16,FALSE)","v":"no"}]
[null,280,"Social Sciences",280,"Social Sciences",2815,"Geography",10,"12815-1","SS Geography","12815-1-1","SS Geography",208,"Instruction","2017-01-01","2099-12-31","N","Social Sciences",1849,"GEOGRAPHY",{"$f":"VLOOKUP(K535,WORKORDERS!$A:$P,16,FALSE)","v":"no"}]
[null,280,"Social Sciences",280,"Social Sciences",2815,"Geography",20,"22815-1","SS Geography - Online Course","22815-1-1","SS Geography - Online Course- National Resource Canada",219,"Contract Activity","2017-01-01","2099-12-31","N","Contracts - Social Sciences",1976,"NRCAN",{"$f":"VLOOKUP(K536,WORKORDERS!$A:$P,16,FALSE)","v":"no"}]
[null,280,"Social Sciences",280,"Social Sciences",2820,"Interdisciplinary",10,"12820-1","SS Interdisciplinary Studies","12820-1-1","SS Interdisciplinary Studies",208,"Instruction","2017-01-01","2099-12-31","N","Social Sciences",1811,"SOC SCI INTERDISCIPLINARY",{"$f":"VLOOKUP(K537,WORKORDERS!$A:$P,16,FALSE)","v":"no"}]
[null,280,"Social Sciences",280,"Social Sciences",2825,"Liberal Studies",10,"12825-1","SS Liberal Studies","12825-1-1","SS Liberal Studies",208,"Instruction","2017-01-01","2099-12-31","N","Social Sciences",1810,"LIBERAL STUDIES",{"$f":"VLOOKUP(K538,WORKORDERS!$A:$P,16,FALSE)","v":"no"}]
[null,280,"Social Sciences",280,"Social Sciences",2827,"Global Studies",10,"12827-1","SS Global Studies","12827-1-1","SS Global Studies",208,"Instruction","2021-03-27","2099-12-31","N",{"$error":"#N/A"},{"$error":"#N/A"},{"$error":"#N/A"},{"$f":"VLOOKUP(K539,WORKORDERS!$A:$P,16,FALSE)","v":"no"}]
[null,280,"Social Sciences",280,"Social Sciences",2830,"Philosophy ",10,"12830-1","SS Philosophy ","12830-1-1","SS Philosophy ",208,"Instruction","2017-01-01","2099-12-31","N","Social Sciences",1836,"PHILOSOPHY",{"$f":"VLOOKUP(K540,WORKORDERS!$A:$P,16,FALSE)","v":"no"}]
[null,280,"Social Sciences",280,"Social Sciences",2835,"Political Studies",10,"12835-1","SS Political Studies","12835-1-1","SS Political Studies",208,"Instruction","2017-01-01","2099-12-31","N","Social Sciences",1855,"POLITICAL STUDIES",{"$f":"VLOOKUP(K541,WORKORDERS!$A:$P,16,FALSE)","v":"no"}]
[null,280,"Social Sciences",280,"Social Sciences",2840,"Psychology",10,"12840-1","SS Psychology","12840-1-1","SS Psychology",208,"Instruction","2017-01-01","2099-12-31","N","Social Sciences",1861,"PSYCHOLOGY",{"$f":"VLOOKUP(K542,WORKORDERS!$A:$P,16,FALSE)","v":"no"}]
[null,280,"Social Sciences",280,"Social Sciences",2845,"Sociology ",10,"12845-1","SS Sociology ","12845-1-1","SS Sociology ",208,"Instruction","2017-01-01","2099-12-31","N","Social Sciences",1843,"SOCIOLOGY",{"$f":"VLOOKUP(K543,WORKORDERS!$A:$P,16,FALSE)","v":"no"}]
[null,280,"Social Sciences",280,"Social Sciences",2848,"Advanced Diploma in GIS Applications",20,"22848-1","SS Advanced Diploma in GIS Applications","22848-1-1","SS Advanced Diploma in GIS Applications",208,"Instruction","2017-01-01","2099-12-31","N","Contracts - Social Sciences",1974,"ADVANCED DIPLOMA GIS",{"$f":"VLOOKUP(K544,WORKORDERS!$A:$P,16,FALSE)","v":"no"}]
[null,280,"Social Sciences",280,"Social Sciences",2849,"Lands Management Certificate",20,"22849-1","SS Lands Management Certificate","22849-1-1","SS Lands Management Certificate",208,"Instruction","2017-01-01","2099-12-31","N","Contracts - Social Sciences",1971,"LANDS MGMT CERT PROGRAM",{"$f":"VLOOKUP(K545,WORKORDERS!$A:$P,16,FALSE)","v":"no"}]
[null,280,"Social Sciences",280,"Social Sciences",2850,"Master of Community Planning ",20,"22850-1","SS Master of Community Planning ","22850-1-1","SS Master of Community Planning ",208,"Instruction","2017-01-01","2099-12-31","N","Contracts - Social Sciences",1970,"MASTERS-COMM.PLANNING",{"$f":"VLOOKUP(K546,WORKORDERS!$A:$P,16,FALSE)","v":"no"}]
[null,280,"Social Sciences",280,"Social Sciences",2855,"Master of Geographic Information Systems Applications",20,"22855-1","SS Master of Geographic Information Systems Applications","22855-1-1","SS Master of Geographic Information Systems Applications",208,"Instruction","2017-01-01","2099-12-31","N","Contracts - Social Sciences",1975,"MASTERS-GIS APPLICATIONS",{"$f":"VLOOKUP(K547,WORKORDERS!$A:$P,16,FALSE)","v":"no"}]
[null,280,"Social Sciences",280,"Social Sciences",2860,"Social Sciences - PD&T",30,"32860-1","SS PD&T Clemente","32860-1-1","SS PD&T Clemente",281,"PD&T Program Delivery","2017-01-01","2099-12-31","N","CE - Social Sciences",1751,"CLEMENTE PROGRAM",{"$f":"VLOOKUP(K548,WORKORDERS!$A:$P,16,FALSE)","v":"no"}]
[null,280,"Social Sciences",280,"Social Sciences",2860,"Social Sciences - PD&T",30,"32860-2","SS PD&T Couch Stone Symposium","32860-2-1","SS PD&T Couch Stone Symposium",281,"PD&T Program Delivery","2017-01-01","2099-12-31","N","CE - Social Sciences",1758,"COUCH STONE SYMPSIUM 2016",{"$f":"VLOOKUP(K549,WORKORDERS!$A:$P,16,FALSE)","v":"no"}]
[null,280,"Social Sciences",280,"Social Sciences",2860,"Social Sciences - PD&T",30,"32860-3","SS PD&T GIS CIDA","32860-3-1","SS PD&T GIS CIDA",281,"PD&T Program Delivery","2017-01-01","2099-12-31","N","CE - Social Sciences",1755,"GIS CIDA HOLDING FUND",{"$f":"VLOOKUP(K550,WORKORDERS!$A:$P,16,FALSE)","v":"no"}]
[null,280,"Social Sciences",280,"Social Sciences",2860,"Social Sciences - PD&T",30,"32860-4","SS PD&T Inside Out Prison Education","32860-4-1","SS PD&T Inside Out Prison Education",281,"PD&T Program Delivery","2017-01-01","2099-12-31","N","CE - Social Sciences",1756,"INSIDE OUT PRISON EDUC",{"$f":"VLOOKUP(K551,WORKORDERS!$A:$P,16,FALSE)","v":"no"}]
[null,280,"Social Sciences",280,"Social Sciences",2860,"Social Sciences - PD&T",30,"32860-5","SS PD&T Inside Out Training","32860-5-1","SS PD&T Inside Out Training",281,"PD&T Program Delivery","2017-01-01","2099-12-31","N","CE - Social Sciences",1759,"INSIDE OUT TRAINING",{"$f":"VLOOKUP(K552,WORKORDERS!$A:$P,16,FALSE)","v":"no"}]
[null,290,"Trades and Applied Technology",290,"Trades and Applied Technology",2900,"Faculty of Trades and Applied Technology",10,"12900-1","TAT Faculty Dean's Office","12900-1-1","TAT Faculty Dean's Office",201,"Faculty Administration","2017-01-01","2099-12-31","N","Trades",3200,"DEAN,TRADES/APPLIED TECH",{"$f":"VLOOKUP(K553,WORKORDERS!$A:$P,16,FALSE)","v":"no"}]
[null,290,"Trades and Applied Technology",290,"Trades and Applied Technology",2900,"Faculty of Trades and Applied Technology",10,"12900-2","TAT Enrolment Services and Operations","12900-2-1","TAT Enrolment Services and Operations",201,"Faculty Administration","2017-01-01","2099-12-31","N","Trades",3700,"TRADES AND APPRENTICESHIP",{"$f":"VLOOKUP(K554,WORKORDERS!$A:$P,16,FALSE)","v":"no"}]
[null,290,"Trades and Applied Technology",290,"Trades and Applied Technology",2901,"Trades and Applied Technology - Initiatives",10,"12901-1","TAT Faculty Initiatives","12901-1-1","TAT Faculty Initiatives",201,"Faculty Administration","2021-07-01","2099-12-31","P",{"$error":"#N/A"},{"$error":"#N/A"},{"$error":"#N/A"},{"$f":"VLOOKUP(K555,WORKORDERS!$A:$P,16,FALSE)","v":"no"}]
[null,290,"Trades and Applied Technology",290,"Trades and Applied Technology",2901,"Trades and Applied Technology - Initiatives",10,"12901-1","TAT Faculty Initiatives","12901-1-2","TAT Faculty Holding Account",201,"Faculty Administration","2017-01-01","2099-12-31","N","Trades",3299,"TRADES - HOLDING ACCOUNT",{"$f":"VLOOKUP(K556,WORKORDERS!$A:$P,16,FALSE)","v":"no"}]
[null,290,"Trades and Applied Technology",290,"Trades and Applied Technology",2901,"Trades and Applied Technology - Initiatives",10,"12901-1","TAT Faculty Initiatives","12901-1-3","TAT Faculty Development",201,"Faculty Administration","2021-07-01","2099-12-31","P",{"$error":"#N/A"},{"$error":"#N/A"},{"$error":"#N/A"},{"$f":"VLOOKUP(K557,WORKORDERS!$A:$P,16,FALSE)","v":"no"}]
[null,290,"Trades and Applied Technology",290,"Trades and Applied Technology",2901,"Trades and Applied Technology - Initiatives",20,"22901-1","TAT Faculty Contracts","22901-1-1","TAT Faculty Contracts - Development",219,"Contract Activity","2017-01-01","2099-12-31","N","Contracts - Trades & Appl Tech",3944,"CONTRACT DEVELOPMENT",{"$f":"VLOOKUP(K558,WORKORDERS!$A:$P,16,FALSE)","v":"no"}]
[null,290,"Trades and Applied Technology",290,"Trades and Applied Technology",2901,"Trades and Applied Technology - Initiatives",20,"22901-1","TAT Faculty Contracts","22901-1-3","TAT Faculty Contracts- Hair Harmonization - Trades Training BC",219,"Contract Activity","2020-03-28","2099-12-31","N","Contracts - Trades & Appl Tech",3991,"HAIR HARMONIZATION",{"$f":"VLOOKUP(K559,WORKORDERS!$A:$P,16,FALSE)","v":"no"}]
[null,290,"Trades and Applied Technology",290,"Trades and Applied Technology",2901,"Trades and Applied Technology - Initiatives",20,"22901-2","TAT Skills Canada Competition","22901-2-1","TAT Skills Canada Competition",224,"Field Experience / Practicum","2017-01-01","2099-12-31","N","Contracts - Trades & Appl Tech",3948,"SKILLS CANADA COMPETITION",{"$f":"VLOOKUP(K560,WORKORDERS!$A:$P,16,FALSE)","v":"no"}]
[null,290,"Trades and Applied Technology",290,"Trades and Applied Technology",2901,"Trades and Applied Technology - Initiatives",50,"52901-1","TAT Minor Capital","52901-1-1","TAT Minor Capital",500,"Capital - General","2021-07-01","2099-12-31","P",{"$error":"#N/A"},{"$error":"#N/A"},{"$error":"#N/A"},{"$f":"VLOOKUP(K561,WORKORDERS!$A:$P,16,FALSE)","v":"no"}]
[null,290,"Trades and Applied Technology",290,"Trades and Applied Technology",2901,"Trades and Applied Technology - Initiatives",50,"52901-2","TAT Capital - Training Equipment","52901-2-1","TAT Capital - Training Equipment",500,"Capital - General","2021-03-27","2099-12-31","N","Capital",9030,"TRADES TRAINING EQUIPMENT ",{"$f":"VLOOKUP(K562,WORKORDERS!$A:$P,16,FALSE)","v":"no"}]
[null,290,"Trades and Applied Technology",290,"Trades and Applied Technology",2905,"Office Administration",10,"12905-1","TAT Applied Business Technology","12905-1-1","TAT Office Administration",208,"Instruction","2017-01-01","2099-12-31","N","Trades",4060,"OFFICE ADMINISTRATION",{"$f":"VLOOKUP(K563,WORKORDERS!$A:$P,16,FALSE)","v":"no"}]
[null,290,"Trades and Applied Technology",290,"Trades and Applied Technology",2905,"Office Administration",20,"22905-1","TAT Office Administration - Rentals & Deposits","22905-1-1","TAT Office Administration - Rentals & Deposits",208,"Instruction","2017-01-01","2099-12-31","N","Contracts - Trades & Appl Tech",3960,"OA CALC.RENTAL/DEPOSIT",{"$f":"VLOOKUP(K564,WORKORDERS!$A:$P,16,FALSE)","v":"no"}]
[null,290,"Trades and Applied Technology",290,"Trades and Applied Technology",2905,"Office Administration",20,"22905-2","TAT Office Administration - Cowichan Contract","22905-2-1","TAT Office Administration - Cowichan Contract",219,"Contract Activity","2017-01-01","2099-12-31","N","Contracts - Trades & Appl Tech",3980,"OA COST RECOVERY-COW",{"$f":"VLOOKUP(K565,WORKORDERS!$A:$P,16,FALSE)","v":"no"}]
[null,290,"Trades and Applied Technology",290,"Trades and Applied Technology",2910,"Automotive Service Technician",10,"12910-1","TAT Automotive Service Technician","12910-1-1","TAT Automotive Service Technician",208,"Instruction","2017-01-01","2099-12-31","N","Trades",3761,"AUTO SERVICE TECH",{"$f":"VLOOKUP(K566,WORKORDERS!$A:$P,16,FALSE)","v":"no"}]
[null,290,"Trades and Applied Technology",290,"Trades and Applied Technology",2910,"Automotive Service Technician",10,"12910-2","TAT Automotive Service Technician - Powell River","12910-2-1","TAT Automotive Service Technician - Powell River",208,"Instruction","2017-01-01","2099-12-31","N","Trades",4032,"AUTO SV TECH-POWELL RIVER",{"$f":"VLOOKUP(K567,WORKORDERS!$A:$P,16,FALSE)","v":"no"}]
[null,290,"Trades and Applied Technology",290,"Trades and Applied Technology",2915,"Carpentry",10,"12915-1","TAT Carpentry","12915-1-1","TAT Carpentry",208,"Instruction","2017-01-01","2099-12-31","N","Trades",3728,"CARPENTRY",{"$f":"VLOOKUP(K568,WORKORDERS!$A:$P,16,FALSE)","v":"no"}]
[null,290,"Trades and Applied Technology",290,"Trades and Applied Technology",2915,"Carpentry",10,"12915-2","TAT Carpentry - Cowichan","12915-2-1","TAT Carpentry - Cowichan",208,"Instruction","2017-01-01","2099-12-31","N","Trades",4013,"CARPENTRY COWICHAN",{"$f":"VLOOKUP(K569,WORKORDERS!$A:$P,16,FALSE)","v":"no"}]
[null,290,"Trades and Applied Technology",290,"Trades and Applied Technology",2915,"Carpentry",10,"12915-3","TAT Carpentry - Powell River","12915-3-1","TAT Carpentry - Powell River",208,"Instruction","2017-01-01","2099-12-31","N","Trades",4033,"CARPENTRY-POWELL RIVER",{"$f":"VLOOKUP(K570,WORKORDERS!$A:$P,16,FALSE)","v":"no"}]
[null,290,"Trades and Applied Technology",290,"Trades and Applied Technology",2915,"Carpentry",20,"22915-1","TAT Carpentry - Sunshine Coast SD #46 Partnership","22915-1-1","TAT Carpentry - Sunshine Coast SD #46 Partnership",219,"Contract Activity","2017-01-01","2099-12-31","N","Contracts - Trades & Appl Tech",3917,"SCH.DIST#46 PARTNERSHIP",{"$f":"VLOOKUP(K571,WORKORDERS!$A:$P,16,FALSE)","v":"no"}]
[null,290,"Trades and Applied Technology",290,"Trades and Applied Technology",2915,"Carpentry",20,"22915-2","TAT Carpentry - Aboriginal Construction","22915-2-1","TAT Carpentry - Aboriginal Construction - Pt Alberni, Nuuchahnulth",219,"Contract Activity","2017-01-01","2099-12-31","N","Contracts - Trades & Appl Tech",3911,"ABORIGINAL CONSTRUCTION",{"$f":"VLOOKUP(K572,WORKORDERS!$A:$P,16,FALSE)","v":"no"}]
[null,290,"Trades and Applied Technology",290,"Trades and Applied Technology",2920,"Culinary Arts",10,"12920-1","TAT Culinary Arts","12920-1-1","TAT Culinary Arts",208,"Instruction","2017-01-01","2099-12-31","N","Trades",3320,"CULINARY ARTS/BAKING",{"$f":"VLOOKUP(K573,WORKORDERS!$A:$P,16,FALSE)","v":"yes"}]
[null,290,"Trades and Applied Technology",290,"Trades and Applied Technology",2920,"Culinary Arts",10,"12920-1","TAT Culinary Arts","12920-1-2","TAT Culinary Arts - Nanaimo - Competitions & Field Trips",223,"Field Schools","2017-01-01","2099-12-31","N","Trades",3322,"CUL COMPETITIONS-FIELD TR",{"$f":"VLOOKUP(K574,WORKORDERS!$A:$P,16,FALSE)","v":"yes"}]
[null,290,"Trades and Applied Technology",290,"Trades and Applied Technology",2920,"Culinary Arts",10,"12920-2","TAT Culinary Arts - Cowichan","12920-2-1","TAT Culinary Arts - Cowichan",208,"Instruction","2017-01-01","2099-12-31","N","Trades",4010,"CULINARY ARTS COW",{"$f":"VLOOKUP(K575,WORKORDERS!$A:$P,16,FALSE)","v":"no"}]
[null,290,"Trades and Applied Technology",290,"Trades and Applied Technology",2920,"Culinary Arts",10,"12920-3","TAT Culinary Arts - Powell River","12920-3-1","TAT Culinary Arts - Powell River",208,"Instruction","2017-01-01","2099-12-31","N","Trades",4030,"CULINARY ARTS-POWELL RIV",{"$f":"VLOOKUP(K576,WORKORDERS!$A:$P,16,FALSE)","v":"no"}]
[null,290,"Trades and Applied Technology",290,"Trades and Applied Technology",2920,"Culinary Arts",20,"22920-1","TAT Culinary Arts Contract - Diploma","22920-1-1","TAT Culinary Arts Contract - Diploma",219,"Contract Activity","2017-01-01","2099-12-31","N","Contracts - Trades & Appl Tech",3914,"CULINARY DIPLOMA",{"$f":"VLOOKUP(K577,WORKORDERS!$A:$P,16,FALSE)","v":"no"}]
[null,290,"Trades and Applied Technology",290,"Trades and Applied Technology",2925,"Electrician",10,"12925-1","TAT Electrician","12925-1-1","TAT Electrician",208,"Instruction","2017-01-01","2099-12-31","N","Trades",3785,"ELECTRICIAN",{"$f":"VLOOKUP(K578,WORKORDERS!$A:$P,16,FALSE)","v":"no"}]
[null,290,"Trades and Applied Technology",290,"Trades and Applied Technology",2930,"Hairdressing",10,"12930-1","TAT Hairdressing","12930-1-1","TAT Hairdressing",208,"Instruction","2017-01-01","2099-12-31","N","Trades",3790,"HAIRDRESSING",{"$f":"VLOOKUP(K579,WORKORDERS!$A:$P,16,FALSE)","v":"no"}]
[null,290,"Trades and Applied Technology",290,"Trades and Applied Technology",2930,"Hairdressing",10,"12930-1","TAT Hairdressing","12930-1-2","TAT Hairdressing - Student Kits",208,"Instruction","2017-01-01","2099-12-31","N","Trades",3791,"HAIRDRESSING STUDENT KITS",{"$f":"VLOOKUP(K580,WORKORDERS!$A:$P,16,FALSE)","v":"no"}]
[null,290,"Trades and Applied Technology",290,"Trades and Applied Technology",2930,"Hairdressing",20,"22930-1","TAT Hairdressing Contract - Cowichan SD #79","22930-1-1","TAT Hairdressing Contract - Cowichan SD #79",219,"Contract Activity","2017-01-01","2099-12-31","N","Contracts - Trades & Appl Tech",3985,"HAIRDRESSING SD#79-COW",{"$f":"VLOOKUP(K581,WORKORDERS!$A:$P,16,FALSE)","v":"no"}]
[null,290,"Trades and Applied Technology",290,"Trades and Applied Technology",2930,"Hairdressing",20,"22930-2","TAT Hairdressing Contract - Saanich SD #63 (Cowichan)","22930-2-1","TAT Hairdressing Contract - Saanich SD #63 (Cowichan)",219,"Contract Activity","2017-01-01","2099-12-31","N","Contracts - Trades & Appl Tech",3983,"HAIRDRESSING SD#63-COW",{"$f":"VLOOKUP(K582,WORKORDERS!$A:$P,16,FALSE)","v":"no"}]
[null,290,"Trades and Applied Technology",290,"Trades and Applied Technology",2930,"Hairdressing",20,"22930-3","TAT Hairdressing Contract - Powell River","22930-3-1","TAT Hairdressing Contract - Powell River",219,"Contract Activity","2017-01-01","2099-12-31","N","Contracts - Trades & Appl Tech",3990,"HAIRDRESSING-POWELL RIVER",{"$f":"VLOOKUP(K583,WORKORDERS!$A:$P,16,FALSE)","v":"no"}]
[null,290,"Trades and Applied Technology",290,"Trades and Applied Technology",2935,"Heavy Equipment Operator",20,"22935-1","TAT Heavy Equipment Operator","22935-1-1","TAT Heavy Equipment Operator",208,"Instruction","2017-01-01","2099-12-31","N","Contracts - Trades & Appl Tech",3900,"HEAVY EQUIP.OP.A075",{"$f":"VLOOKUP(K584,WORKORDERS!$A:$P,16,FALSE)","v":"no"}]
[null,290,"Trades and Applied Technology",290,"Trades and Applied Technology",2935,"Heavy Equipment Operator",20,"22935-2","TAT Heavy Equipment Operator - Simulator Program","22935-2-1","TAT HEO Simulator Program",208,"Instruction","2017-01-01","2099-12-31","N","Contracts - Trades & Appl Tech",3909,"HEO SIMULATOR PROGRAM",{"$f":"VLOOKUP(K585,WORKORDERS!$A:$P,16,FALSE)","v":"no"}]
[null,290,"Trades and Applied Technology",290,"Trades and Applied Technology",2935,"Heavy Equipment Operator",20,"22935-2","TAT Heavy Equipment Operator - Simulator Program","22935-2-2","TAT HEO Simulator Program - Forest Centre",208,"Instruction","2017-01-01","2099-12-31","N","Contracts - Trades & Appl Tech",3926,"FOREST CENTRE",{"$f":"VLOOKUP(K586,WORKORDERS!$A:$P,16,FALSE)","v":"no"}]
[null,290,"Trades and Applied Technology",290,"Trades and Applied Technology",2935,"Heavy Equipment Operator",20,"22935-4","TAT Forklift Training","22935-4-1","TAT Forklift Training",208,"Instruction","2017-01-01","2099-12-31","N","Contracts - Trades & Appl Tech",3903,"FORKLIFT TRAINING",{"$f":"VLOOKUP(K587,WORKORDERS!$A:$P,16,FALSE)","v":"no"}]
[null,290,"Trades and Applied Technology",290,"Trades and Applied Technology",2935,"Heavy Equipment Operator",20,"22935-5","TAT Heavy Metal Rocks","22935-5-1","TAT Heavy Metal Rocks",208,"Instruction","2017-01-01","2099-12-31","N","Contracts - Trades & Appl Tech",3904,"HEAVY METAL ROCKS",{"$f":"VLOOKUP(K588,WORKORDERS!$A:$P,16,FALSE)","v":"no"}]
[null,290,"Trades and Applied Technology",290,"Trades and Applied Technology",2940,"Heavy Mechanical Trades",10,"12940-1","TAT Heavy Mechanical Trades","12940-1-1","TAT Heavy Mechanical Trades",208,"Instruction","2017-01-01","2099-12-31","N","Trades",3765,"H.D./COMMERCIAL TRANSPORT",{"$f":"VLOOKUP(K589,WORKORDERS!$A:$P,16,FALSE)","v":"no"}]
[null,290,"Trades and Applied Technology",290,"Trades and Applied Technology",2945,"Horticultural Technician",10,"12945-1","TAT Horticultural Technician","12945-1-1","TAT Horticultural Technician",208,"Instruction","2017-01-01","2099-12-31","N","Trades",3720,"HORTICULTURE",{"$f":"VLOOKUP(K590,WORKORDERS!$A:$P,16,FALSE)","v":"no"}]
[null,290,"Trades and Applied Technology",290,"Trades and Applied Technology",2945,"Horticultural Technician",20,"22945-1","TAT Horticulture Contract - Tamagawa","22945-1-1","TAT Horticulture Contract - Tamagawa",219,"Contract Activity","2017-01-01","2099-12-31","N","Contracts - Trades & Appl Tech",3930,"TAMAGAWA INTERNATIONAL FD",{"$f":"VLOOKUP(K591,WORKORDERS!$A:$P,16,FALSE)","v":"no"}]
[null,290,"Trades and Applied Technology",290,"Trades and Applied Technology",2950,"Information Technology & Applied Systems",10,"12950-1","TAT Information Technology and Applied Systems","12950-1-1","TAT Information Technology and Applied Systems",208,"Instruction","2017-01-01","2099-12-31","N","Trades",4065,"ITAS",{"$f":"VLOOKUP(K592,WORKORDERS!$A:$P,16,FALSE)","v":"no"}]
[null,290,"Trades and Applied Technology",290,"Trades and Applied Technology",2950,"Information Technology & Applied Systems",20,"22950-1","TAT Information Technology and Applied Systems - Contract - SD #79","22950-1-1","TAT Information Technology and Applied Systems - Contract - SD #79",219,"Contract Activity","2017-01-01","2099-12-31","N","Contracts - Trades & Appl Tech",3916,"SCH.DIST#79 PROGRAMS",{"$f":"VLOOKUP(K593,WORKORDERS!$A:$P,16,FALSE)","v":"no"}]
[null,290,"Trades and Applied Technology",290,"Trades and Applied Technology",2955,"Motorcycle & Marine Technician",10,"12955-1","TAT Motorcycle and Marine Technician","12955-1-1","TAT Motorcycle and Marine Technician",208,"Instruction","2017-01-01","2099-12-31","N","Trades",3770,"MARINE/INBOARD/OUTBOARD",{"$f":"VLOOKUP(K594,WORKORDERS!$A:$P,16,FALSE)","v":"no"}]
[null,290,"Trades and Applied Technology",290,"Trades and Applied Technology",2960,"Power Engineering",20,"22960-1","TAT Power Engineering - Contract","22960-1-1","TAT Power Engineering - Contract",208,"Instruction","2020-03-28","2099-12-31","N","Contracts - Trades & Appl Tech",3912,"POWER ENGINEERING",{"$f":"VLOOKUP(K595,WORKORDERS!$A:$P,16,FALSE)","v":"no"}]
[null,290,"Trades and Applied Technology",290,"Trades and Applied Technology",2965,"Professional Baking & Pastry Arts ",20,"22965-1","TAT Baking Donations","22965-1-1","TAT Baking Donations",208,"Instruction","2017-01-01","2099-12-31","N","Contracts - Trades & Appl Tech",3949,"BAKING DONATIONS",{"$f":"VLOOKUP(K596,WORKORDERS!$A:$P,16,FALSE)","v":"no"}]
[null,290,"Trades and Applied Technology",290,"Trades and Applied Technology",2965,"Professional Baking & Pastry Arts ",20,"22965-2","TAT Baking Diploma","22965-2-1","TAT Baking Diploma",208,"Instruction","2020-03-28","2099-12-31","N","Contracts - Trades & Appl Tech",3915,"BAKING DIPLOMA",{"$f":"VLOOKUP(K597,WORKORDERS!$A:$P,16,FALSE)","v":"no"}]
[null,290,"Trades and Applied Technology",290,"Trades and Applied Technology",2970,"Refrigeration Mechanic",10,"12970-1","TAT Refrigeration Mechanic","12970-1-1","TAT Refrigeration Mechanic",208,"Instruction","2017-01-01","2099-12-31","N","Trades",4016,"REFRIDGTN A/C MECH. COW",{"$f":"VLOOKUP(K598,WORKORDERS!$A:$P,16,FALSE)","v":"no"}]
[null,290,"Trades and Applied Technology",290,"Trades and Applied Technology",2972,"Trades Discovery",10,"12972-1","TAT Trades Discovery - Nanaimo","12972-1-1","TAT Trades Discovery - Nanaimo",208,"Instruction","2017-01-01","2099-12-31","N","Trades",3729,"TRADES DISCOVERY NAN",{"$f":"VLOOKUP(K599,WORKORDERS!$A:$P,16,FALSE)","v":"no"}]
[null,290,"Trades and Applied Technology",290,"Trades and Applied Technology",2972,"Trades Discovery",10,"12972-2","TAT Trades Discovery - Cowichan","12972-2-1","TAT Trades Discovery - Cowichan",208,"Instruction","2017-01-01","2099-12-31","N","Trades",4014,"TRADES DISCOVERY COW",{"$f":"VLOOKUP(K600,WORKORDERS!$A:$P,16,FALSE)","v":"no"}]
[null,290,"Trades and Applied Technology",290,"Trades and Applied Technology",2975,"Welding",10,"12975-1","TAT Welding","12975-1-1","TAT Welding",208,"Instruction","2017-01-01","2099-12-31","N","Trades",3780,"WELDING",{"$f":"VLOOKUP(K601,WORKORDERS!$A:$P,16,FALSE)","v":"no"}]
[null,290,"Trades and Applied Technology",290,"Trades and Applied Technology",2975,"Welding",10,"12975-2","TAT Welding - Cowichan","12975-2-1","TAT Welding - Cowichan",208,"Instruction","2017-01-01","2099-12-31","N","Trades",3781,"WELD FOUNDATION COWICHAN",{"$f":"VLOOKUP(K602,WORKORDERS!$A:$P,16,FALSE)","v":"no"}]
[null,290,"Trades and Applied Technology",290,"Trades and Applied Technology",2975,"Welding",10,"12975-3","TAT Welding - Powell River","12975-3-1","TAT Welding - Powell River",208,"Instruction","2017-01-01","2099-12-31","N","Trades",4031,"WELDING-POWELL RIVER",{"$f":"VLOOKUP(K603,WORKORDERS!$A:$P,16,FALSE)","v":"no"}]
[null,290,"Trades and Applied Technology",290,"Trades and Applied Technology",2975,"Welding",20,"22975-1","TAT Welding - Nanaimo Welder-Fitter","22975-1-1","TAT Welding - Nanaimo Welder-Fitter",208,"Instruction","2017-01-01","2099-12-31","N","Contracts - Trades & Appl Tech",3939,"WELDER-FITTER NAN 2015/16",{"$f":"VLOOKUP(K604,WORKORDERS!$A:$P,16,FALSE)","v":"no"}]
[null,290,"Trades and Applied Technology",290,"Trades and Applied Technology",2975,"Welding",20,"22975-2","TAT Welding - Cowichan Welder-Fitter","22975-2-1","TAT Welding - Cowichan Welder-Fitter",208,"Instruction","2017-01-01","2099-12-31","N","Contracts - Trades & Appl Tech",3938,"WELDER FITTER COWICHAN",{"$f":"VLOOKUP(K605,WORKORDERS!$A:$P,16,FALSE)","v":"no"}]
[null,290,"Trades and Applied Technology",290,"Trades and Applied Technology",2980,"Trades and Applied Technology - PD&T",30,"32980-1","TAT PD&T Esthetics","32980-1-1","TAT PD&T Esthetics",281,"PD&T Program Delivery","2017-01-01","2099-12-31","N","CE - Trades & Appl Tech PD&T",3809,"ESTHETICS",{"$f":"VLOOKUP(K606,WORKORDERS!$A:$P,16,FALSE)","v":"no"}]
[null,290,"Trades and Applied Technology",290,"Trades and Applied Technology",2980,"Trades and Applied Technology - PD&T",30,"32980-2","TAT PD&T Electrician","32980-2-1","TAT PD&T Electrician",281,"PD&T Program Delivery","2017-01-01","2099-12-31","N","CE - Trades & Appl Tech PD&T",3810,"ELECTRICIAN CE",{"$f":"VLOOKUP(K607,WORKORDERS!$A:$P,16,FALSE)","v":"no"}]
[null,350,"Indigenous Education and Engagement",350,"Indigenous Education and Engagement",3500,"Indigenous Education and Engagement",10,"13500-1","IEE Indigenous Education and Engagement","13500-1-1","IEE Indigenous Education and Engagement",200,"Academic Administration","2017-01-01","2099-12-31","N","Aboriginal Ed. and Engagement",6930,"DIRECTOR-INDIGENOUS EDUC.",{"$f":"VLOOKUP(K608,WORKORDERS!$A:$P,16,FALSE)","v":"no"}]
[null,350,"Indigenous Education and Engagement",350,"Indigenous Education and Engagement",3501,"Indigenous Education and Engagement - Initiatives",10,"13501-1","IEE Indigenous Education and Engagement - Initiatives","13501-1-1","IEE Indigenous Education",200,"Academic Administration","2017-01-01","2099-12-31","N","Aboriginal Ed. and Engagement",6931,"INDIGENOUS EDUCATION",{"$f":"VLOOKUP(K609,WORKORDERS!$A:$P,16,FALSE)","v":"no"}]
[null,350,"Indigenous Education and Engagement",350,"Indigenous Education and Engagement",3501,"Indigenous Education and Engagement - Initiatives",50,"53501-1","IEE Minor Capital","53501-1-1","IEE Minor Capital",500,"Capital - General","2021-07-01","2099-12-31","P",{"$error":"#N/A"},{"$error":"#N/A"},{"$error":"#N/A"},{"$f":"VLOOKUP(K610,WORKORDERS!$A:$P,16,FALSE)","v":"no"}]
[null,350,"Indigenous Education and Engagement",350,"Indigenous Education and Engagement",3505,"Indigenous University Bridging - ACP Partnership",10,"13505-1","IEE Indigenous University Bridging - ACP Partnership","13505-1-1","IEE AUB - ACP Partnership",200,"Academic Administration","2017-01-01","2099-12-31","N","Aboriginal Ed. and Engagement",6932,"INDIGENOUS INTERNSHIP",{"$f":"VLOOKUP(K611,WORKORDERS!$A:$P,16,FALSE)","v":"no"}]
[null,350,"Indigenous Education and Engagement",350,"Indigenous Education and Engagement",3510,"External Contracts - Indigenous Mentorships",20,"23510-1","IEE Indigenous Mentorship","23510-1-1","IEE Indigenous Mentorship",219,"Contract Activity","2017-01-01","2099-12-31","N","Contracts - Aboriginal Education",6980,"INDIGENOUS MENTORSHIP",{"$f":"VLOOKUP(K612,WORKORDERS!$A:$P,16,FALSE)","v":"no"}]
[null,350,"Indigenous Education and Engagement",350,"Indigenous Education and Engagement",3515,"External Contracts - ASP Community Projects",20,"23515-1","IEE ASP - Community Lead Projects","23515-1-1","IEE ASP - Community Lead Projects",219,"Contract Activity","2017-01-01","2099-12-31","N","Contracts - Aboriginal Education",6981,"ASP-COMMUNITY-LEAD PROJ.",{"$f":"VLOOKUP(K613,WORKORDERS!$A:$P,16,FALSE)","v":"no"}]
[null,350,"Indigenous Education and Engagement",350,"Indigenous Education and Engagement",3520,"External Contracts - ASP VIU Lead Projects",20,"23520-1","IEE ASP - VIU Lead Projects","23520-1-1","IEE ASP - VIU Lead Projects",219,"Contract Activity","2017-01-01","2099-12-31","N","Contracts - Aboriginal Education",6982,"ASP-VIU-LEAD PROJECTS",{"$f":"VLOOKUP(K614,WORKORDERS!$A:$P,16,FALSE)","v":"no"}]
[null,350,"Indigenous Education and Engagement",350,"Indigenous Education and Engagement",3520,"External Contracts - ASP VIU Lead Projects",20,"23520-2","IEE ASP - IUB Program","23520-2-1","IEE ASP - IUB Program",219,"Contract Activity","2017-01-01","2099-12-31","N","Contracts - Aboriginal Education",7711,"ASP-AUBP-NANAIMO & COWICH",{"$f":"VLOOKUP(K615,WORKORDERS!$A:$P,16,FALSE)","v":"no"}]
[null,350,"Indigenous Education and Engagement",350,"Indigenous Education and Engagement",3520,"External Contracts - ASP VIU Lead Projects",20,"23520-3","IEE ASP - Cultural Events","23520-3-1","IEE ASP - Shq’athut Cultural Events",219,"Contract Activity","2017-01-01","2099-12-31","N","Contracts - Aboriginal Education",7710,"ASP-CULTURE EVENTS",{"$f":"VLOOKUP(K616,WORKORDERS!$A:$P,16,FALSE)","v":"no"}]
[null,350,"Indigenous Education and Engagement",350,"Indigenous Education and Engagement",3520,"External Contracts - ASP VIU Lead Projects",20,"23520-4","IEE ASP - Language","23520-4-1","IEE ASP - Language HLQ",219,"Contract Activity","2017-01-01","2099-12-31","N","Contracts - Aboriginal Education",7712,"ASP-LANGUAGE-COASTAL",{"$f":"VLOOKUP(K617,WORKORDERS!$A:$P,16,FALSE)","v":"no"}]
[null,350,"Indigenous Education and Engagement",350,"Indigenous Education and Engagement",3520,"External Contracts - ASP VIU Lead Projects",20,"23520-4","IEE ASP - Language","23520-4-2","IEE ASP - Language KWA",219,"Contract Activity","2017-01-01","2099-12-31","N","Contracts - Aboriginal Education",7713,"ASP-LANGUAGE-KWAK",{"$f":"VLOOKUP(K618,WORKORDERS!$A:$P,16,FALSE)","v":"no"}]
[null,350,"Indigenous Education and Engagement",350,"Indigenous Education and Engagement",3525,"External Contracts - Major Partners",20,"23525-1","IEE CFN Partnership","23525-1-3","IEE CFN - 2020 Stewardship Training",219,"Contract Activity","2020-03-28","2099-12-31","N","Contracts - Aboriginal Education",6997,"CFN 2020 STEWARDSHIP",{"$f":"VLOOKUP(K619,WORKORDERS!$A:$P,16,FALSE)","v":"no"}]
[null,350,"Indigenous Education and Engagement",350,"Indigenous Education and Engagement",3525,"External Contracts - Major Partners",20,"23525-3","IEE Heiltsuk Partnership","23525-3-1","IEE Heiltsuk - Eco Tourism",219,"Contract Activity","2017-01-01","2099-12-31","N","Contracts - Aboriginal Education",6992,"INDIGENOUS ECOTOURI 18-20",{"$f":"VLOOKUP(K620,WORKORDERS!$A:$P,16,FALSE)","v":"no"}]
[null,350,"Indigenous Education and Engagement",350,"Indigenous Education and Engagement",3525,"External Contracts - Major Partners",20,"23525-3","IEE Heiltsuk Partnership","23525-3-2","IEE Heiltsuk - Ecotourism 2020-2021",219,"Contract Activity","2020-03-28","2099-12-31","N","Contracts - Aboriginal Education",6984,"INDIGENOUSE ECOTOURI 20-21",{"$f":"VLOOKUP(K621,WORKORDERS!$A:$P,16,FALSE)","v":"no"}]
[null,350,"Indigenous Education and Engagement",350,"Indigenous Education and Engagement",3525,"External Contracts - Major Partners",20,"23525-4","IEE SFN Partnership","23525-4-2","IEE SFN - ECE 2020",219,"Contract Activity","2020-03-28","2099-12-31","N","Contracts - Aboriginal Education",6990,"AEST-SNUNEYMUXW ECE 2020",{"$f":"VLOOKUP(K622,WORKORDERS!$A:$P,16,FALSE)","v":"no"}]
[null,350,"Indigenous Education and Engagement",350,"Indigenous Education and Engagement",3525,"External Contracts - Major Partners",20,"23525-5","IEE Nanwakolas Council","23525-5-1","IEE Nanwakolas Council - STTP",219,"Contract Activity","2020-03-28","2099-12-31","N","Contracts - Aboriginal Education",6991,"NANWAKOLAS COUNCIL-STTP",{"$f":"VLOOKUP(K623,WORKORDERS!$A:$P,16,FALSE)","v":"no"}]
[null,350,"Indigenous Education and Engagement",350,"Indigenous Education and Engagement",3530,"External Contracts - Misc Contracts",20,"23530-1","IEE Misc Contracts","23530-1-1","IEE Misc - Indigenous Contract",219,"Contract Activity","2017-01-01","2099-12-31","N","Contracts - Aboriginal Education",6999,"OAEE-MISC INDIG. CONTRACT",{"$f":"VLOOKUP(K624,WORKORDERS!$A:$P,16,FALSE)","v":"no"}]
[null,350,"Indigenous Education and Engagement",350,"Indigenous Education and Engagement",3530,"External Contracts - Misc Contracts",20,"23530-1","IEE Misc Contracts","23530-1-2","IEE Indigenous Education - Contract Admin",219,"Contract Activity","2020-03-28","2099-12-31","N","Contracts - Aboriginal Education",6988,"IN ED. - CONTRACT ADMIN",{"$f":"VLOOKUP(K625,WORKORDERS!$A:$P,16,FALSE)","v":"no"}]
[null,350,"Indigenous Education and Engagement",350,"Indigenous Education and Engagement",3535,"EleV Scholarship Program",20,"23535-1","IEE EleV Scholarship Program - Administration","23535-1-1","IEE EleV Scholarship Program - Administration",219,"Contract Activity","2017-01-01","2099-12-31","N","Contracts - Ab Ed A2E",7700,"A2E SCHOLARSHIP SUPPORT",{"$f":"VLOOKUP(K626,WORKORDERS!$A:$P,16,FALSE)","v":"no"}]
[null,350,"Indigenous Education and Engagement",350,"Indigenous Education and Engagement",3535,"EleV Scholarship Program",20,"23535-2","IEE EleV Scholarship Program - Creating Pathways","23535-2-1","IEE EleV - Creating Pathways",219,"Contract Activity","2017-01-01","2099-12-31","N","Contracts - Ab Ed A2E",7702,"A2E CREATING PATHWAYS",{"$f":"VLOOKUP(K627,WORKORDERS!$A:$P,16,FALSE)","v":"no"}]
[null,350,"Indigenous Education and Engagement",350,"Indigenous Education and Engagement",3535,"EleV Scholarship Program",20,"23535-3","IEE EleV Scholarship Program - Monitor & Evaluation","23535-3-1","IEE EleV - Monitor & Evaluation",219,"Contract Activity","2017-01-01","2099-12-31","N","Contracts - Ab Ed A2E",7705,"A2E MONITOR & EVALUATION",{"$f":"VLOOKUP(K628,WORKORDERS!$A:$P,16,FALSE)","v":"no"}]
[null,350,"Indigenous Education and Engagement",350,"Indigenous Education and Engagement",3535,"EleV Scholarship Program",20,"23535-4","IEE EleV Scholarship Program - Scholarships","23535-4-1","IEE EleV - Scholarships",219,"Contract Activity","2017-01-01","2099-12-31","N","Contracts - Ab Ed A2E",7701,"A2E STUDENT SCHOLARSHIPS",{"$f":"VLOOKUP(K629,WORKORDERS!$A:$P,16,FALSE)","v":"no"}]
[null,350,"Indigenous Education and Engagement",350,"Indigenous Education and Engagement",3535,"EleV Scholarship Program",20,"23535-4","IEE EleV Scholarship Program - Scholarships","23535-4-2","IEE EleV - VIU Contribution",219,"Contract Activity","2017-01-01","2099-12-31","N","Contracts - Ab Ed A2E",7706,"A2E VIU CONTRIBUTION",{"$f":"VLOOKUP(K630,WORKORDERS!$A:$P,16,FALSE)","v":"no"}]
[null,350,"Indigenous Education and Engagement",350,"Indigenous Education and Engagement",3535,"EleV Scholarship Program",20,"23535-5","IEE EleV Scholarship Program - Transition to employment","23535-5-1","IEE EleV - Transition to employment",219,"Contract Activity","2017-01-01","2099-12-31","N","Contracts - Ab Ed A2E",7704,"A2E TRANSITION TO EMPLOY",{"$f":"VLOOKUP(K631,WORKORDERS!$A:$P,16,FALSE)","v":"no"}]
[null,350,"Indigenous Education and Engagement",350,"Indigenous Education and Engagement",3535,"EleV Scholarship Program",20,"23535-6","IEE EleV Scholarship Program - Youth Development","23535-6-1","IEE EleV - Youth Development",219,"Contract Activity","2017-01-01","2099-12-31","N","Contracts - Ab Ed A2E",7703,"A2E YOUTH DEVELOPMENT",{"$f":"VLOOKUP(K632,WORKORDERS!$A:$P,16,FALSE)","v":"no"}]
[null,350,"Indigenous Education and Engagement",350,"Indigenous Education and Engagement",3540,"MCF Emerging Initiatives",20,"23540-1","IEE MCF - Community Internship","23540-1-1","IEE MCF - Community Internship",219,"Contract Activity","2017-01-01","2099-12-31","N","Contracts - Ab Ed A2E",7708,"MCF - COMMUNITY INTERNSHP",{"$f":"VLOOKUP(K633,WORKORDERS!$A:$P,16,FALSE)","v":"no"}]
[null,350,"Indigenous Education and Engagement",350,"Indigenous Education and Engagement",3540,"MCF Emerging Initiatives",20,"23540-2","IEE MCF - Learning Facilitator","23540-2-1","IEE MCF - Learning Facilitator",219,"Contract Activity","2017-01-01","2099-12-31","N","Contracts - Ab Ed A2E",7709,"MCF-LEARNING FACILITATOR",{"$f":"VLOOKUP(K634,WORKORDERS!$A:$P,16,FALSE)","v":"no"}]
[null,360,"Library",360,"Library",3600,"Library",10,"13600-1","LIB Library - Department","13600-1-1","LIB Library - Department",200,"Academic Administration","2017-01-01","2099-12-31","N","Library",6800,"LIBRARY",{"$f":"VLOOKUP(K635,WORKORDERS!$A:$P,16,FALSE)","v":"no"}]
[null,360,"Library",360,"Library",3600,"Library",10,"13600-2","LIB Library - Institutional","13600-2-1","LIB Library - Books and Periodicals (non-capital)",222,"Library Services","2017-01-01","2099-12-31","N","Library",6804,"LIBRARY BOOKS,PERIODICALS",{"$f":"VLOOKUP(K636,WORKORDERS!$A:$P,16,FALSE)","v":"no"}]
[null,360,"Library",360,"Library",3600,"Library",10,"13600-2","LIB Library - Institutional","13600-2-2","LIB Library - Non-Recurring licensing",222,"Library Services","2017-01-01","2099-12-31","N","Library",6802,"LIBRARY NON RECURRING",{"$f":"VLOOKUP(K637,WORKORDERS!$A:$P,16,FALSE)","v":"no"}]
[null,360,"Library",360,"Library",3600,"Library",10,"13600-2","LIB Library - Institutional","13600-2-3","LIB Library - Photo ID",222,"Library Services","2017-01-01","2099-12-31","N","Library",6815,"PHOTO ID",{"$f":"VLOOKUP(K638,WORKORDERS!$A:$P,16,FALSE)","v":"no"}]
[null,360,"Library",360,"Library",3600,"Library",10,"13600-2","LIB Library - Institutional","13600-2-4","LIB Library - Special Collections",222,"Library Services","2017-01-01","2099-12-31","N","Library",6810,"SPECIAL COLLECTIONS",{"$f":"VLOOKUP(K639,WORKORDERS!$A:$P,16,FALSE)","v":"no"}]
[null,360,"Library",360,"Library",3610,"Library - Initiatives",10,"13610-1","LIB Library SSF - Student Service Fee project","13610-1-1","LIB Library SSF - Digital Access",222,"Library Services","2017-01-01","2099-12-31","N","Library",6820,"SSF DIGITAL ACCESS",{"$f":"VLOOKUP(K640,WORKORDERS!$A:$P,16,FALSE)","v":"no"}]
[null,360,"Library",360,"Library",3610,"Library - Initiatives",20,"23610-1","LIB Library - Other","23610-1-1","LIB Library - Field School",223,"Field Schools","2017-01-01","2099-12-31","N","Contracts - Library",6850,"LIBRARY FIELD SCHOOL",{"$f":"VLOOKUP(K641,WORKORDERS!$A:$P,16,FALSE)","v":"yes"}]
[null,360,"Library",360,"Library",3610,"Library - Initiatives",20,"23610-1","LIB Library - Other","23610-1-2","LIB Library -  Digital BC Secretatiat",219,"Contract Activity","2020-03-28","2099-12-31","N","Contracts - Library",6851,"DIGITAL BC SECRETATIAT",{"$f":"VLOOKUP(K642,WORKORDERS!$A:$P,16,FALSE)","v":"yes"}]
[null,"360","Library","360","Library","3610","Library - Initiatives","20","23610-2","LIB Faculty - General Research","23610-2-1","LIB Faculty - General Research - McLeod","302","General Research","2021-03-27","2099-12-31","N","Contracts - Library",6860,"GEN RESEARCH - MCLEOD",{"$f":"VLOOKUP(K643,WORKORDERS!$A:$P,16,FALSE)","v":"no"}]
[null,"360","Library","360","Library","3610","Library - Initiatives","20","23610-2","LIB Faculty - General Research","23610-2-2","LIB Faculty - General Research - McFarland","302","General Research","2021-03-27","2099-12-31","N","Contracts - Library",6861,"GEN RESEARCH - MCFARLAND",{"$f":"VLOOKUP(K644,WORKORDERS!$A:$P,16,FALSE)","v":"no"}]
[null,360,"Library",360,"Library",3610,"Library - Initiatives",50,"53610-1","LIB Library - Capital","53610-1-1","LIB Library - Capital - Book Purchases",500,"Capital - General","2017-01-01","2099-12-31","N","Capital",9075,"LIBRARY BOOK PURCHASES (CAPITAL FUND)",{"$f":"VLOOKUP(K645,WORKORDERS!$A:$P,16,FALSE)","v":"no"}]
[null,360,"Library",360,"Library",3610,"Library - Initiatives",50,"53610-2","LIB Library - Minor Capital","53610-2-1","LIB Library - Minor Capital",500,"Capital - General","2021-07-01","2099-12-31","P",{"$error":"#N/A"},{"$error":"#N/A"},{"$error":"#N/A"},{"$f":"VLOOKUP(K646,WORKORDERS!$A:$P,16,FALSE)","v":"no"}]
[null,370,"Registration Services",370,"Registration Services",3700,"Registration",10,"13700-1","REG Registration","13700-1-1","REG Registration",200,"Academic Administration","2017-01-01","2099-12-31","N","Registration",6900,"REGISTRATION",{"$f":"VLOOKUP(K647,WORKORDERS!$A:$P,16,FALSE)","v":"no"}]
[null,370,"Registration Services",370,"Registration Services",3701,"Registration - Initiatives",50,"53701-1","REG Minor Capital","53701-1-1","REG Minor Capital",500,"Capital - General","2021-07-01","2099-12-31","P",{"$error":"#N/A"},{"$error":"#N/A"},{"$error":"#N/A"},{"$f":"VLOOKUP(K648,WORKORDERS!$A:$P,16,FALSE)","v":"no"}]
[null,370,"Registration Services",370,"Registration Services",3705,"Convocation",10,"13705-1","REG Convocation","13705-1-1","REG Convocation",200,"Academic Administration","2017-01-01","2099-12-31","N","Registration",6905,"CONVOCATION",{"$f":"VLOOKUP(K649,WORKORDERS!$A:$P,16,FALSE)","v":"no"}]
[null,370,"Registration Services",370,"Registration Services",3710,"Summer Session",20,"23710-1","REG Summer Session","23710-1-1","REG Summer Session",200,"Academic Administration","2021-07-01","2099-12-31","P",{"$error":"#N/A"},{"$error":"#N/A"},{"$error":"#N/A"},{"$f":"VLOOKUP(K650,WORKORDERS!$A:$P,16,FALSE)","v":"no"}]
[null,370,"Registration Services",370,"Registration Services",3715,"Registration - PD&T",30,"33715-1","REG Registration - PD&T","33715-1-1","REG Registration - PD&T",280,"PD&T Administration","2017-01-01","2099-12-31","N","CE - Registration",6960,"CE ADMIN - REGISTRATION",{"$f":"VLOOKUP(K651,WORKORDERS!$A:$P,16,FALSE)","v":"no"}]
[null,370,"Registration Services",370,"Registration Services",3715,"Registration - PD&T",30,"33715-2","REG PD&T - Adventures in Mind","33715-2-1","REG PD&T - Adventures in Mind",281,"PD&T Program Delivery","2017-01-01","2099-12-31","N","CE - Registration",6952,"ADVENTURES IN MIND",{"$f":"VLOOKUP(K652,WORKORDERS!$A:$P,16,FALSE)","v":"no"}]
[null,370,"Registration Services",370,"Registration Services",3715,"Registration - PD&T",30,"33715-3","REG PD&T - Eldercollege","33715-3-1","REG PD&T - Eldercollege",281,"PD&T Program Delivery","2017-01-01","2099-12-31","N","CE - Registration",6963,"ELDERCOLLEGE",{"$f":"VLOOKUP(K653,WORKORDERS!$A:$P,16,FALSE)","v":"no"}]
[null,370,"Registration Services",370,"Registration Services",3715,"Registration - PD&T",30,"33715-4","REG PD&T - Grandkids University","33715-4-1","REG PD&T - Grandkids University",281,"PD&T Program Delivery","2017-01-01","2099-12-31","N","CE - Registration",6961,"GRANDKIDS UNIVERSITY",{"$f":"VLOOKUP(K654,WORKORDERS!$A:$P,16,FALSE)","v":"no"}]
[null,370,"Registration Services",370,"Registration Services",3715,"Registration - PD&T",30,"33715-5","REG PD&T - Love of Learning","33715-5-1","REG PD&T - Love of Learning",281,"PD&T Program Delivery","2017-01-01","2099-12-31","N","CE - Registration",6964,"LOVE OF LEARNING",{"$f":"VLOOKUP(K655,WORKORDERS!$A:$P,16,FALSE)","v":"no"}]
[null,370,"Registration Services",373,"Admissions & Registration",3730,"Admissions & Registration",10,"13730-1","REG Admissions & Registration","13730-1-1","REG Admissions & Registration",200,"Academic Administration","2021-07-01","2099-12-31","P",{"$error":"#N/A"},{"$error":"#N/A"},{"$error":"#N/A"},{"$f":"VLOOKUP(K656,WORKORDERS!$A:$P,16,FALSE)","v":"no"}]
[null,370,"Registration Services",374,"Records & Registration Systems",3740,"Records & Registration Systems",10,"13740-1","REG Records & Registration Systems","13740-1-1","REG Records & Registration Systems",200,"Academic Administration","2021-07-01","2099-12-31","P",{"$error":"#N/A"},{"$error":"#N/A"},{"$error":"#N/A"},{"$f":"VLOOKUP(K657,WORKORDERS!$A:$P,16,FALSE)","v":"no"}]
[null,370,"Registration Services",375,"Recruitment & Advising",3750,"Recruitment & Advising",10,"13750-1","REG Recruitment & Advising","13750-1-1","REG Recruitment & Advising",200,"Academic Administration","2019-12-01","2099-12-31","N","Registration",6901,"Recruitment & Advising",{"$f":"VLOOKUP(K658,WORKORDERS!$A:$P,16,FALSE)","v":"no"}]
[null,410,"Centre for Innovation and Excellence in Learning",410,"Centre for Innovation and Excellence in Learning",4100,"Centre for Innovation and Excellence in Learning",10,"14100-1","CIEL Centre for Innovation and Excellence in Learning","14100-1-1","CIEL Centre for Innovation and Excellence in Learning",200,"Academic Administration","2017-01-01","2099-12-31","N","Centre for Innovation & EL",6601,"CENTRE FOR IEL",{"$f":"VLOOKUP(K659,WORKORDERS!$A:$P,16,FALSE)","v":"no"}]
[null,410,"Centre for Innovation and Excellence in Learning",410,"Centre for Innovation and Excellence in Learning",4101,"Centre for Innovation and Excellence in Learning - Initiatives",50,"54101-1","CIEL Minor Capital","54101-1-1","CIEL Minor Capital",500,"Capital - General","2021-07-01","2099-12-31","P",{"$error":"#N/A"},{"$error":"#N/A"},{"$error":"#N/A"},{"$f":"VLOOKUP(K660,WORKORDERS!$A:$P,16,FALSE)","v":"no"}]
[null,440,"Cowichan Campus",440,"Cowichan Campus Administration",4400,"Academic Administrator's Office",10,"14400-1","CC Academic Administrator, Cowichan","14400-1-1","CC Academic Administrator, Cowichan",200,"Academic Administration","2021-07-01","2099-12-31","P",{"$error":"#N/A"},{"$error":"#N/A"},{"$error":"#N/A"},{"$f":"VLOOKUP(K661,WORKORDERS!$A:$P,16,FALSE)","v":"no"}]
[null,440,"Cowichan Campus",440,"Cowichan Campus Administration",4401,"Cowichan Campus - Initiatives",50,"54401-1","CC Minor Capital ","54401-1-1","CC Minor Capital ",500,"Capital - General","2021-07-01","2099-12-31","P",{"$error":"#N/A"},{"$error":"#N/A"},{"$error":"#N/A"},{"$f":"VLOOKUP(K662,WORKORDERS!$A:$P,16,FALSE)","v":"no"}]
[null,440,"Cowichan Campus",440,"Cowichan Campus Administration",4405,"Cowichan Campus Administration",10,"14405-1","CC Campus Administration","14405-1-1","CC Campus Administration",200,"Academic Administration","2017-01-01","2099-12-31","N","Cowichan Campus",7300,"ADMINISTRATION",{"$f":"VLOOKUP(K663,WORKORDERS!$A:$P,16,FALSE)","v":"no"}]
[null,440,"Cowichan Campus",440,"Cowichan Campus Administration",4405,"Cowichan Campus Administration",10,"14405-2","CC Campus Initiatives","14405-2-1","CC Campus Initiatives",200,"Academic Administration","2017-01-01","2099-12-31","N","Cowichan Campus",7399,"COWICHAN NEW INITIATIVES",{"$f":"VLOOKUP(K664,WORKORDERS!$A:$P,16,FALSE)","v":"no"}]
[null,440,"Cowichan Campus",440,"Cowichan Campus Administration",4405,"Cowichan Campus Administration",20,"24405-1","CC Campus Administration - Other","24405-1-1","CC Cafeteria",200,"Academic Administration","2017-01-01","2099-12-31","N","Contracts - Cowichan",7570,"CAFETERIA - COWICHAN ",{"$f":"VLOOKUP(K665,WORKORDERS!$A:$P,16,FALSE)","v":"no"}]
[null,440,"Cowichan Campus",440,"Cowichan Campus Administration",4405,"Cowichan Campus Administration",20,"24405-1","CC Campus Administration - Other","24405-1-2","CC Facilities Rentals",200,"Academic Administration","2017-01-01","2099-12-31","N","Contracts - Cowichan",7504,"FACILITIES RENTALS COWICH",{"$f":"VLOOKUP(K666,WORKORDERS!$A:$P,16,FALSE)","v":"no"}]
[null,440,"Cowichan Campus",440,"Cowichan Campus Administration",4405,"Cowichan Campus Administration",20,"24405-1","CC Campus Administration - Other","24405-1-3","CC Lockers",200,"Academic Administration","2017-01-01","2099-12-31","N","Contracts - Cowichan",7571,"COWICHAN CAMPUS LOCKERS",{"$f":"VLOOKUP(K667,WORKORDERS!$A:$P,16,FALSE)","v":"no"}]
[null,440,"Cowichan Campus",440,"Cowichan Campus Administration",4408,"Cowichan Student Services",10,"14408-1","CC Cowichan Student Services","14408-1-1","CC Student Services",217,"Student Support and Services","2017-01-01","2099-12-31","N","Cowichan Campus",7380,"STUDENT SERVICE",{"$f":"VLOOKUP(K668,WORKORDERS!$A:$P,16,FALSE)","v":"no"}]
[null,440,"Cowichan Campus",440,"Cowichan Campus Administration",4408,"Cowichan Student Services",10,"14408-1","CC Cowichan Student Services","14408-1-2","CC Student Programs",217,"Student Support and Services","2017-01-01","2099-12-31","N","Cowichan Campus",7360,"Duncan Student Programs",{"$f":"VLOOKUP(K669,WORKORDERS!$A:$P,16,FALSE)","v":"no"}]
[null,440,"Cowichan Campus",440,"Cowichan Campus Administration",4408,"Cowichan Student Services",10,"14408-1","CC Cowichan Student Services","14408-1-3","CC Student Assessment",217,"Student Support and Services","2017-01-01","2099-12-31","N","Cowichan Campus",7381,"COWICHAN ASSESSMENT",{"$f":"VLOOKUP(K670,WORKORDERS!$A:$P,16,FALSE)","v":"no"}]
[null,440,"Cowichan Campus",441,"Cowichan Campus Operations",4410,"Cowichan Campus Operations",10,"14410-1","CC Cowichan Campus Operations","14410-1-1","CC Campus Operations",200,"Academic Administration","2021-07-01","2099-12-31","P",{"$error":"#N/A"},{"$error":"#N/A"},{"$error":"#N/A"},{"$f":"VLOOKUP(K671,WORKORDERS!$A:$P,16,FALSE)","v":"no"}]
[null,440,"Cowichan Campus",441,"Cowichan Campus Operations",4410,"Cowichan Campus Operations",10,"14410-2","CC Strategic Enrolment Management Committee","14410-2-1","CC Strategic Enrolment Management Committee",200,"Academic Administration","2017-01-01","2099-12-31","N","Cowichan Campus",7306,"STRAT ENRL MGMT COMMITTEE",{"$f":"VLOOKUP(K672,WORKORDERS!$A:$P,16,FALSE)","v":"no"}]
[null,440,"Cowichan Campus",442,"Cowichan Registration & Admissions",4420,"Cowichan Registration & Admissions",10,"14420-1","CC Cowichan Registration and Admissions","14420-1-1","CC Registration and Admissions",200,"Academic Administration","2017-01-01","2099-12-31","N","Cowichan Campus",7304,"COWICHAN REGIST",{"$f":"VLOOKUP(K673,WORKORDERS!$A:$P,16,FALSE)","v":"no"}]
[null,440,"Cowichan Campus",443,"Cowichan Faculty Operations",4430,"Cowichan General Instruction",10,"14430-1","CC Cowichan Instruction","14430-1-1","CC Instructional Support",200,"Academic Administration","2017-01-01","2099-12-31","N","Cowichan Campus",7309,"INSTRUCT.SUPPOR",{"$f":"VLOOKUP(K674,WORKORDERS!$A:$P,16,FALSE)","v":"no"}]
[null,440,"Cowichan Campus",443,"Cowichan Faculty Operations",4430,"Cowichan General Instruction",10,"14430-1","CC Cowichan Instruction","14430-1-2","CC Instructional Support - CYC",200,"Academic Administration","2017-01-01","2099-12-31","N","Cowichan Campus",7305,"CYC- COWICHAN",{"$f":"VLOOKUP(K675,WORKORDERS!$A:$P,16,FALSE)","v":"no"}]
[null,440,"Cowichan Campus",443,"Cowichan Faculty Operations",4430,"Cowichan General Instruction",10,"14430-2","CC Indigenous Science","14430-2-1","CC Indigenous Science",208,"Instruction","2017-01-01","2099-12-31","N","Cowichan Campus",7311,"CWCHN INDIGENOUS SCIENCE",{"$f":"VLOOKUP(K676,WORKORDERS!$A:$P,16,FALSE)","v":"no"}]
[null,440,"Cowichan Campus",443,"Cowichan Faculty Operations",4435,"Cowichan University Programs",10,"14435-1","CC University Programs - Arts & Humanities","14435-1-1","CC UP - Arts & Humanities",208,"Instruction","2017-01-01","2099-12-31","N","Cowichan Campus",7394,"COWICHAN UT-ARTS/HUMANITI",{"$f":"VLOOKUP(K677,WORKORDERS!$A:$P,16,FALSE)","v":"no"}]
[null,440,"Cowichan Campus",443,"Cowichan Faculty Operations",4435,"Cowichan University Programs",10,"14435-2","CC University Programs - Education","14435-2-1","CC UP - Education",208,"Instruction","2017-01-01","2099-12-31","N","Cowichan Campus",7397,"COWICHAN UT - EDUCATION",{"$f":"VLOOKUP(K678,WORKORDERS!$A:$P,16,FALSE)","v":"no"}]
[null,440,"Cowichan Campus",443,"Cowichan Faculty Operations",4435,"Cowichan University Programs",10,"14435-3","CC University Programs - Health and Human Services","14435-3-1","CC UP - Health and Human Services",208,"Instruction","2017-01-01","2099-12-31","N","Cowichan Campus",7393,"COWICHAN UT- HUMAN SERVICE",{"$f":"VLOOKUP(K679,WORKORDERS!$A:$P,16,FALSE)","v":"no"}]
[null,440,"Cowichan Campus",443,"Cowichan Faculty Operations",4435,"Cowichan University Programs",10,"14435-4","CC University Programs - Management","14435-4-1","CC UP - Management",208,"Instruction","2017-01-01","2099-12-31","N","Cowichan Campus",7395,"COWICHAN UT - MGMT",{"$f":"VLOOKUP(K680,WORKORDERS!$A:$P,16,FALSE)","v":"no"}]
[null,440,"Cowichan Campus",443,"Cowichan Faculty Operations",4435,"Cowichan University Programs",10,"14435-5","CC University Programs - Science and Technology","14435-5-1","CC UP - Science and Technology",208,"Instruction","2017-01-01","2099-12-31","N","Cowichan Campus",7391,"COWICHAN UT - SCIENCE",{"$f":"VLOOKUP(K681,WORKORDERS!$A:$P,16,FALSE)","v":"no"}]
[null,440,"Cowichan Campus",443,"Cowichan Faculty Operations",4435,"Cowichan University Programs",10,"14435-6","CC University Programs - Social Sciences","14435-6-1","CC UP - Social Sciences",208,"Instruction","2017-01-01","2099-12-31","N","Cowichan Campus",7392,"COWICHAN UT - SOCIAL SCI",{"$f":"VLOOKUP(K682,WORKORDERS!$A:$P,16,FALSE)","v":"no"}]
[null,440,"Cowichan Campus",444,"Cowichan PD&T & External Contracts",4440,"Cowichan PD&T",30,"34440-1","CC PD&T Administration","34440-1-1","CC PD&T Administration",280,"PD&T Administration","2017-01-01","2099-12-31","N","CE - Cowichan PD&T",7400,"PD&T ADMIN - COWICHAN",{"$f":"VLOOKUP(K683,WORKORDERS!$A:$P,16,FALSE)","v":"no"}]
[null,440,"Cowichan Campus",444,"Cowichan PD&T & External Contracts",4440,"Cowichan PD&T",30,"34440-2","CC  PD&T- Business Management","34440-2-1","CC  PD&T- Business Management",281,"PD&T Program Delivery","2017-01-01","2099-12-31","N","CE - Cowichan PD&T",7412,"PD&T BUSINESS & MANAGEMENT ",{"$f":"VLOOKUP(K684,WORKORDERS!$A:$P,16,FALSE)","v":"no"}]
[null,440,"Cowichan Campus",444,"Cowichan PD&T & External Contracts",4440,"Cowichan PD&T",30,"34440-3","CC  PD&T- FN Housing Manager Certificate","34440-3-1","CC  PD&T- FN Housing Manager Certificate",281,"PD&T Program Delivery","2017-01-01","2099-12-31","N","CE - Cowichan PD&T",7438,"FN HOUSING MANAGER CERT.",{"$f":"VLOOKUP(K685,WORKORDERS!$A:$P,16,FALSE)","v":"no"}]
[null,440,"Cowichan Campus",444,"Cowichan PD&T & External Contracts",4440,"Cowichan PD&T",30,"34440-4","CC  PD&T- Health & Human Services","34440-4-1","CC  PD&T- Health & Human Services",281,"PD&T Program Delivery","2017-01-01","2099-12-31","N","CE - Cowichan PD&T",7416,"PD&T HEALTH & HS COWCHAN",{"$f":"VLOOKUP(K686,WORKORDERS!$A:$P,16,FALSE)","v":"no"}]
[null,440,"Cowichan Campus",444,"Cowichan PD&T & External Contracts",4440,"Cowichan PD&T",30,"34440-5","CC  PD&T- Master Gardener","34440-5-1","CC  PD&T- Master Gardener",281,"PD&T Program Delivery","2017-01-01","2099-12-31","N","CE - Cowichan PD&T",7436,"MASTER GARDENER",{"$f":"VLOOKUP(K687,WORKORDERS!$A:$P,16,FALSE)","v":"no"}]
[null,440,"Cowichan Campus",444,"Cowichan PD&T & External Contracts",4440,"Cowichan PD&T",30,"34440-6","CC  PD&T- Open Enrolment","34440-6-1","CC  PD&T- Open Enrolment",281,"PD&T Program Delivery","2017-01-01","2099-12-31","N","CE - Cowichan PD&T",7410,"PD&T OPEN ENROL - COWICHAN",{"$f":"VLOOKUP(K688,WORKORDERS!$A:$P,16,FALSE)","v":"no"}]
[null,440,"Cowichan Campus",444,"Cowichan PD&T & External Contracts",4440,"Cowichan PD&T",30,"34440-7","CC  PD&T- Small Contracts","34440-7-1","CC  PD&T- Small Contracts",281,"PD&T Program Delivery","2017-01-01","2099-12-31","N","CE - Cowichan PD&T",7450,"PD & T CUST SMALL CONTRACTS",{"$f":"VLOOKUP(K689,WORKORDERS!$A:$P,16,FALSE)","v":"no"}]
[null,440,"Cowichan Campus",444,"Cowichan PD&T & External Contracts",4440,"Cowichan PD&T",30,"34440-8","CC  PD&T- Trades & Applied Technology","34440-8-1","CC  PD&T- Trades & Applied Technology",281,"PD&T Program Delivery","2017-01-01","2099-12-31","N","CE - Cowichan PD&T",7414,"PD&T TRADES - COWICHAN",{"$f":"VLOOKUP(K690,WORKORDERS!$A:$P,16,FALSE)","v":"no"}]
[null,440,"Cowichan Campus",444,"Cowichan PD&T & External Contracts",4445,"Cowichan External Contracts",20,"24445-1","CC Contract - Early Childhood Education and Care","24445-1-1","CC Contracts - ECEC",219,"Contract Activity","2017-01-01","2099-12-31","N","Contracts - Cowichan",7563,"ECEC PROGRAM ",{"$f":"VLOOKUP(K691,WORKORDERS!$A:$P,16,FALSE)","v":"no"}]
[null,440,"Cowichan Campus",444,"Cowichan PD&T & External Contracts",4445,"Cowichan External Contracts",20,"24445-2","CC Contract - UCEP","24445-2-1","CC Contract - UCEP",219,"Contract Activity","2017-01-01","2099-12-31","N","Contracts - Cowichan",7565,"COWICHAN - UCEP",{"$f":"VLOOKUP(K692,WORKORDERS!$A:$P,16,FALSE)","v":"no"}]
[null,440,"Cowichan Campus",444,"Cowichan PD&T & External Contracts",4445,"Cowichan External Contracts",20,"24445-3","CC Contract - Summer Session","24445-3-1","CC Contract - Summer Session",219,"Contract Activity","2017-01-01","2099-12-31","N","Contracts - Cowichan",7510,"DN SUMMER SESS-NET PROCEE",{"$f":"VLOOKUP(K693,WORKORDERS!$A:$P,16,FALSE)","v":"no"}]
[null,440,"Cowichan Campus",444,"Cowichan PD&T & External Contracts",4445,"Cowichan External Contracts",20,"24445-4","CC Contract - School District 79","24445-4-2","CC Contract - SD 79 UP",219,"Contract Activity","2017-01-01","2099-12-31","N","Contracts - Cowichan",7575,"SD#79 UP CONTRACTS",{"$f":"VLOOKUP(K694,WORKORDERS!$A:$P,16,FALSE)","v":"no"}]
[null,440,"Cowichan Campus",444,"Cowichan PD&T & External Contracts",4445,"Cowichan External Contracts",20,"24445-5","CC Contract - Communities","24445-5-2","CC Contract - Lil'wat Emp Program Carpentry",219,"Contract Activity","2017-01-01","2099-12-31","N","Contracts - Cowichan",7558,"LIL ' WAT EMP PRGM CARPNTRY",{"$f":"VLOOKUP(K695,WORKORDERS!$A:$P,16,FALSE)","v":"no"}]
[null,440,"Cowichan Campus",444,"Cowichan PD&T & External Contracts",4445,"Cowichan External Contracts",20,"24445-5","CC Contract - Communities","24445-5-4","CC Contract - Women In Trades Training",219,"Contract Activity","2017-01-01","2099-12-31","N","Contracts - Cowichan",7564,"WOMEN IN TRADES TRAINING ",{"$f":"VLOOKUP(K696,WORKORDERS!$A:$P,16,FALSE)","v":"no"}]
[null,440,"Cowichan Campus",444,"Cowichan PD&T & External Contracts",4445,"Cowichan External Contracts",20,"24445-5","CC Contract - Communities","24445-5-5","CC Contract - Indigenous Peoples In Trades Training",219,"Contract Activity","2020-03-28","2099-12-31","N","Contracts - Cowichan",7566,"IPTT",{"$f":"VLOOKUP(K697,WORKORDERS!$A:$P,16,FALSE)","v":"no"}]
[null,440,"Cowichan Campus",444,"Cowichan PD&T & External Contracts",4445,"Cowichan External Contracts",20,"24445-5","CC Contract - Communities","24445-5-6","CC Contract - Building Service Worker ",219,"Contract Activity","2021-03-27","2099-12-31","N","Contracts - Cowichan",7569,"BUILDING SERVICE WORKERS ",{"$f":"VLOOKUP(K698,WORKORDERS!$A:$P,16,FALSE)","v":"no"}]
[null,460,"Powell River Campus",460,"Powell River Campus Administration",4600,"Powell River Administrator's Office",10,"14600-1","PRC Administrator's Office","14600-1-1","PRC Administrator's Office",200,"Academic Administration","2017-01-01","2099-12-31","N","Powell River Campus",7600,"ADMINISTRATION POW.RIVER",{"$f":"VLOOKUP(K699,WORKORDERS!$A:$P,16,FALSE)","v":"no"}]
[null,460,"Powell River Campus",460,"Powell River Campus Administration",4601,"Powell River Campus - Initiatives ",50,"54601-1","PRC Minor Capital","54601-1-1","PRC Minor Capital",500,"Capital - General","2021-07-01","2099-12-31","P",{"$error":"#N/A"},{"$error":"#N/A"},{"$error":"#N/A"},{"$f":"VLOOKUP(K700,WORKORDERS!$A:$P,16,FALSE)","v":"no"}]
[null,460,"Powell River Campus",460,"Powell River Campus Administration",4605,"Powell River Campus Administration",10,"14605-1","PRC Campus Administration","14605-1-1","PRC Campus Administration",200,"Academic Administration","2017-01-01","2099-12-31","N","Powell River Campus",7605,"CONTRACTS-SUPPORT STAFF",{"$f":"VLOOKUP(K701,WORKORDERS!$A:$P,16,FALSE)","v":"no"}]
[null,460,"Powell River Campus",460,"Powell River Campus Administration",4608,"Powell River Student Services",10,"14608-1","PRC Student Services","14608-1-1","PRC Student Services",217,"Student Support and Services","2017-01-01","2099-12-31","N","Powell River Campus",7604,"POWELL RIVER ST.SERVICES",{"$f":"VLOOKUP(K702,WORKORDERS!$A:$P,16,FALSE)","v":"no"}]
[null,460,"Powell River Campus",460,"Powell River Campus Administration",4608,"Powell River Student Services",10,"14608-1","PRC Student Services","14608-1-2","PRC Student Programs",217,"Student Support and Services","2017-01-01","2099-12-31","N","Powell River Campus",7608,"STUDENT PROGRAMS POW.R.",{"$f":"VLOOKUP(K703,WORKORDERS!$A:$P,16,FALSE)","v":"no"}]
[null,460,"Powell River Campus",460,"Powell River Campus Administration",4608,"Powell River Student Services",10,"14608-1","PRC Student Services","14608-1-3","PRC Student Services Training Support",217,"Student Support and Services","2017-01-01","2099-12-31","N","Powell River Campus",7609,"STUDENT SERVICE TRNG SUPP",{"$f":"VLOOKUP(K704,WORKORDERS!$A:$P,16,FALSE)","v":"no"}]
[null,460,"Powell River Campus",460,"Powell River Campus Administration",4608,"Powell River Student Services",20,"24608-1","PRC Student Services Proceeds","24608-1-1","PRC Student Services Proceeds",217,"Student Support and Services","2017-01-01","2099-12-31","N","Contracts - Powell River",7802,"STUDENT SERVICES PROCEEDS",{"$f":"VLOOKUP(K705,WORKORDERS!$A:$P,16,FALSE)","v":"yes"}]
[null,460,"Powell River Campus",463,"Powell River Faculty Operations",4630,"Powell River General Instruction",10,"14630-1","PRC Instructional Support","14630-1-1","PRC Computer Lab",200,"Academic Administration","2017-01-01","2099-12-31","N","Powell River Campus",7606,"COMPUTER LAB/SERVICES PR",{"$f":"VLOOKUP(K706,WORKORDERS!$A:$P,16,FALSE)","v":"no"}]
[null,460,"Powell River Campus",463,"Powell River Faculty Operations",4630,"Powell River General Instruction",10,"14630-1","PRC Instructional Support","14630-1-2","PRC Flexible FTE's",200,"Academic Administration","2017-01-01","2099-12-31","N","Powell River Campus",7634,"FLEXIBLE FTE'S POW.RIVER",{"$f":"VLOOKUP(K707,WORKORDERS!$A:$P,16,FALSE)","v":"no"}]
[null,460,"Powell River Campus",463,"Powell River Faculty Operations",4630,"Powell River General Instruction",10,"14630-2","PRC Human Services","14630-2-1","PRC Human Services",208,"Instruction","2017-01-01","2099-12-31","N","Powell River Campus",7642,"HUMAN SERVICES",{"$f":"VLOOKUP(K708,WORKORDERS!$A:$P,16,FALSE)","v":"no"}]
[null,460,"Powell River Campus",463,"Powell River Faculty Operations",4630,"Powell River General Instruction",10,"14630-3","PRC Home Care Assistant","14630-3-1","PRC Home Care Assistant",208,"Instruction","2017-01-01","2099-12-31","N","Powell River Campus",7644,"PR HOME CARE ASSISTANT",{"$f":"VLOOKUP(K709,WORKORDERS!$A:$P,16,FALSE)","v":"no"}]
[null,460,"Powell River Campus",463,"Powell River Faculty Operations",4630,"Powell River General Instruction",10,"14630-4","PRC Dual Credit - SD 47","14630-4-1","PRC Dual Credit - SD 47",208,"Instruction","2017-01-01","2099-12-31","N","Powell River Campus",7643,"DUAL CREDIT - SD47",{"$f":"VLOOKUP(K710,WORKORDERS!$A:$P,16,FALSE)","v":"no"}]
[null,460,"Powell River Campus",463,"Powell River Faculty Operations",4635,"Powell River University Programs",10,"14635-1","PRC University Programs","14635-1-1","PRC University Programs",208,"Instruction","2017-01-01","2099-12-31","N","Powell River Campus",7640,"UT POWELL RIVER",{"$f":"VLOOKUP(K711,WORKORDERS!$A:$P,16,FALSE)","v":"no"}]
[null,460,"Powell River Campus",464,"Powell River PD&T and External Contracts",4640,"Powell River - PD&T",30,"34640-1","PRC PD&T - Administration","34640-1-1","PRC PD&T - Administration",280,"PD&T Administration","2017-01-01","2099-12-31","N","CE - Powell River",7660,"CE - POWELL RIVER",{"$f":"VLOOKUP(K712,WORKORDERS!$A:$P,16,FALSE)","v":"no"}]
[null,460,"Powell River Campus",464,"Powell River PD&T and External Contracts",4640,"Powell River - PD&T",30,"34640-2","PRC PD&T - Eldercollege","34640-2-1","PRC PD&T - Eldercollege",281,"PD&T Program Delivery","2017-01-01","2099-12-31","N","CE - Powell River",7667,"ELDERCOLLEGE",{"$f":"VLOOKUP(K713,WORKORDERS!$A:$P,16,FALSE)","v":"no"}]
[null,460,"Powell River Campus",464,"Powell River PD&T and External Contracts",4640,"Powell River - PD&T",30,"34640-3","PRC PD&T - Online Training","34640-3-1","PRC PD&T - Online Training",281,"PD&T Program Delivery","2017-01-01","2099-12-31","N","CE - Powell River",7668,"CE ONLINE TRAINING ",{"$f":"VLOOKUP(K714,WORKORDERS!$A:$P,16,FALSE)","v":"no"}]
[null,460,"Powell River Campus",464,"Powell River PD&T and External Contracts",4645,"Powell River External Contracts",20,"24645-1","PRC Contracts - Aboriginal Service Plan","24645-1-1","PRC Contracts - Aboriginal Service Plan",219,"Contract Activity","2017-01-01","2099-12-31","N","Contracts - Powell River",7805,"ABORIGINAL SERVICE PLAN ",{"$f":"VLOOKUP(K715,WORKORDERS!$A:$P,16,FALSE)","v":"no"}]
[null,460,"Powell River Campus",464,"Powell River PD&T and External Contracts",4645,"Powell River External Contracts",20,"24645-3","PRC Contracts - HEO","24645-3-1","PRC Contracts - HEO - Ministry of Social Development",219,"Contract Activity","2020-03-28","2099-12-31","N","Contracts - Powell River",7811,"HEO - PBLMT POWELL RIVER",{"$f":"VLOOKUP(K716,WORKORDERS!$A:$P,16,FALSE)","v":"no"}]
[null,460,"Powell River Campus",464,"Powell River PD&T and External Contracts",4645,"Powell River External Contracts",20,"24645-4","PRC Contracts - Work Essential Skills Training","24645-4-1","PRC Contracts - Work Essential Skills Training - AVED",219,"Contract Activity","2021-03-27","2099-12-31","N","Contracts - Powell River",7812,"PR WEST",{"$f":"VLOOKUP(K717,WORKORDERS!$A:$P,16,FALSE)","v":"no"}]
[null,"460","Powell River Campus","464","Powell River PD&T and External Contracts","4645","Powell River External Contracts","20","24645-5","PRC Contracts - Holding","24645-5-1","PRC Contracts - Holding Account","219","Contract activity","2021-03-27","2099-12-31","N","Contracts - Powell River",7810,"CONTRACTS HOLDING ACCOUNT",{"$f":"VLOOKUP(K718,WORKORDERS!$A:$P,16,FALSE)","v":"no"}]
[null,500,"Scholarship, Research and Creative Activity",500,"Scholarship, Research and Creative Activity",5000,"Scholarship, Research & Creative Activity",10,"15000-1","SRCA Scholarship, Research & Creative Activity","15000-1-1","SRCA Research Office",216,"Research Administration","2017-01-01","2099-12-31","N","Schlshp Rsrch & Creatv Actvy",1020,"RESEARCH OFFICE",{"$f":"VLOOKUP(K719,WORKORDERS!$A:$P,16,FALSE)","v":"no"}]
[null,500,"Scholarship, Research and Creative Activity",500,"Scholarship, Research and Creative Activity",5000,"Scholarship, Research & Creative Activity",10,"15000-1","SRCA Scholarship, Research & Creative Activity","15000-1-2","SRCA AVP Professional Development",216,"Research Administration","2017-01-01","2099-12-31","N","Schlshp Rsrch & Creatv Actvy",1028,"AVP SCH/COMM ENGAGEMT PD",{"$f":"VLOOKUP(K720,WORKORDERS!$A:$P,16,FALSE)","v":"no"}]
[null,500,"Scholarship, Research and Creative Activity",500,"Scholarship, Research and Creative Activity",5000,"Scholarship, Research & Creative Activity",20,"25000-1","SRCA Research Contract Administration","25000-1-1","SRCA Research Contract Holding",300,"Research Contract Administration","2017-01-01","2099-12-31","N","Contracts-PVPA Research Contr.",1399,"PVPA RESEARCH HOLDING A/C",{"$f":"VLOOKUP(K721,WORKORDERS!$A:$P,16,FALSE)","v":"no"}]
[null,500,"Scholarship, Research and Creative Activity",500,"Scholarship, Research and Creative Activity",5001,"Research Initiatives",10,"15001-1","SRCA SSF Funds","15001-1-1","SRCA SSF Funds - Experiential Learning",216,"Research Administration","2017-01-01","2099-12-31","N","Schlshp Rsrch & Creatv Actvy",1055,"SSF SRCA EXP LEARNING",{"$f":"VLOOKUP(K722,WORKORDERS!$A:$P,16,FALSE)","v":"no"}]
[null,500,"Scholarship, Research and Creative Activity",500,"Scholarship, Research and Creative Activity",5001,"Research Initiatives",20,"25001-1","SRCA Initiatives","25001-1-1","SRCA Initiatives",300,"Research Contract Administration","2017-01-01","2099-12-31","N","Contracts-PVPA Research Contr.",1139,"AVPSCE INITIATIVES",{"$f":"VLOOKUP(K723,WORKORDERS!$A:$P,16,FALSE)","v":"no"}]
[null,500,"Scholarship, Research and Creative Activity",500,"Scholarship, Research and Creative Activity",5001,"Research Initiatives",20,"25001-1","SRCA Initiatives","25001-1-11","SRCA - Student - Misc External Funding",300,"Research Contract Administration","2021-03-27","2099-12-31","N","Contracts-PVPA Research Contr.",1144,"SRCA-STUDENT MISC FUNDING",{"$f":"VLOOKUP(K724,WORKORDERS!$A:$P,16,FALSE)","v":"no"}]
[null,500,"Scholarship, Research and Creative Activity",500,"Scholarship, Research and Creative Activity",5001,"Research Initiatives",20,"25001-1","SRCA Initiatives","25001-1-2","SRCA AERL Harm Check Phase 1",300,"Research Contract Administration","2017-01-01","2099-12-31","N","Contracts-PVPA Research Contr.",1112,"AERL HARM CHECK PHASE I",{"$f":"VLOOKUP(K725,WORKORDERS!$A:$P,16,FALSE)","v":"no"}]
[null,500,"Scholarship, Research and Creative Activity",500,"Scholarship, Research and Creative Activity",5001,"Research Initiatives",20,"25001-1","SRCA Initiatives","25001-1-3","SRCA Centre for Social Enterprise",300,"Research Contract Administration","2017-01-01","2099-12-31","N","Contracts-PVPA Research Contr.",1133,"CTR FOR SOCIAL ENTERPRISE",{"$f":"VLOOKUP(K726,WORKORDERS!$A:$P,16,FALSE)","v":"no"}]
[null,500,"Scholarship, Research and Creative Activity",500,"Scholarship, Research and Creative Activity",5001,"Research Initiatives",20,"25001-1","SRCA Initiatives","25001-1-4","SRCA CHCCRL - Floyd",300,"Research Contract Administration","2017-01-01","2099-12-31","N","Contracts-PVPA Research Contr.",1110,"CHCCRL - FLOYD",{"$f":"VLOOKUP(K727,WORKORDERS!$A:$P,16,FALSE)","v":"no"}]
[null,500,"Scholarship, Research and Creative Activity",500,"Scholarship, Research and Creative Activity",5001,"Research Initiatives",20,"25001-1","SRCA Initiatives","25001-1-5","SRCA Community Initiatives",300,"Research Contract Administration","2017-01-01","2099-12-31","N","Contracts-PVPA Research Contr.",1135,"COMMUNITY INITIATIVES",{"$f":"VLOOKUP(K728,WORKORDERS!$A:$P,16,FALSE)","v":"no"}]
[null,500,"Scholarship, Research and Creative Activity",500,"Scholarship, Research and Creative Activity",5001,"Research Initiatives",20,"25001-1","SRCA Initiatives","25001-1-6","SRCA CRC Genomics - Green Operating",300,"Research Contract Administration","2017-01-01","2099-12-31","N","Contracts-PVPA Research Contr.",1326,"CRC GENOMICS-OPERATING",{"$f":"VLOOKUP(K729,WORKORDERS!$A:$P,16,FALSE)","v":"no"}]
[null,500,"Scholarship, Research and Creative Activity",500,"Scholarship, Research and Creative Activity",5001,"Research Initiatives",20,"25001-1","SRCA Initiatives","25001-1-7","SRCA CREATE Student Poster",300,"Research Contract Administration","2017-01-01","2099-12-31","N","Contracts-PVPA Research Contr.",1134,"CREATE-STUDENT POSTER EVT",{"$f":"VLOOKUP(K730,WORKORDERS!$A:$P,16,FALSE)","v":"no"}]
[null,500,"Scholarship, Research and Creative Activity",500,"Scholarship, Research and Creative Activity",5001,"Research Initiatives",20,"25001-1","SRCA Initiatives","25001-1-8","SRCA Newcastle FN Initiatives",300,"Research Contract Administration","2017-01-01","2099-12-31","N","Contracts-PVPA Research Contr.",1136,"NEWCASTLE FN INITIATIVE",{"$f":"VLOOKUP(K731,WORKORDERS!$A:$P,16,FALSE)","v":"no"}]
[null,500,"Scholarship, Research and Creative Activity",500,"Scholarship, Research and Creative Activity",5001,"Research Initiatives",50,"55001-1","SRCA Minor Capital","55001-1-1","SRCA Minor Capital",500,"Capital - General","2021-07-01","2099-12-31","P",{"$error":"#N/A"},{"$error":"#N/A"},{"$error":"#N/A"},{"$f":"VLOOKUP(K732,WORKORDERS!$A:$P,16,FALSE)","v":"no"}]
[null,500,"Scholarship, Research and Creative Activity",500,"Scholarship, Research and Creative Activity",5005,"Research Compliance",10,"15005-1","SRCA Animal Care","15005-1-1","SRCA Animal Care",216,"Research Administration","2017-01-01","2099-12-31","N","Schlshp Rsrch & Creatv Actvy",1021,"ANIMAL CARE",{"$f":"VLOOKUP(K733,WORKORDERS!$A:$P,16,FALSE)","v":"no"}]
[null,500,"Scholarship, Research and Creative Activity",500,"Scholarship, Research and Creative Activity",5005,"Research Compliance",10,"15005-2","SRCA Research Ethics Board","15005-2-1","SRCA Research Ethics Board",216,"Research Administration","2017-01-01","2099-12-31","N","Schlshp Rsrch & Creatv Actvy",1023,"RESEARCH ETHICS BOARD ",{"$f":"VLOOKUP(K734,WORKORDERS!$A:$P,16,FALSE)","v":"no"}]
[null,500,"Scholarship, Research and Creative Activity",500,"Scholarship, Research and Creative Activity",5005,"Research Compliance",10,"15005-3","SRCA Biosafety","15005-3-1","SRCA Biosafety",216,"Research Administration","2020-03-28","2099-12-31","N","Schlshp Rsrch & Creatv Actvy",1024,"VIU BIOSAFETY ",{"$f":"VLOOKUP(K735,WORKORDERS!$A:$P,16,FALSE)","v":"no"}]
[null,500,"Scholarship, Research and Creative Activity",500,"Scholarship, Research and Creative Activity",5020,"VIU Internal Awards",10,"15020-1","SRCA Scholarly Research","15020-1-1","SRCA Scholarly Research",216,"Research Administration","2017-01-01","2099-12-31","N","Schlshp Rsrch & Creatv Actvy",1065,"SCHOLARLY RESEA",{"$f":"VLOOKUP(K736,WORKORDERS!$A:$P,16,FALSE)","v":"no"}]
[null,500,"Scholarship, Research and Creative Activity",500,"Scholarship, Research and Creative Activity",5020,"VIU Internal Awards",10,"15020-2","SRCA Student Conferences","15020-2-1","SRCA Student Conferences",216,"Research Administration","2017-01-01","2099-12-31","N","Schlshp Rsrch & Creatv Actvy",1027,"STUDENT CONFERENCES ",{"$f":"VLOOKUP(K737,WORKORDERS!$A:$P,16,FALSE)","v":"no"}]
[null,500,"Scholarship, Research and Creative Activity",500,"Scholarship, Research and Creative Activity",5020,"VIU Internal Awards",10,"15020-3","SRCA Travel and Conferences","15020-3-1","SRCA Travel and Conferences",216,"Research Administration","2017-01-01","2099-12-31","N","Schlshp Rsrch & Creatv Actvy",1050,"TRAVEL/CONFEREN",{"$f":"VLOOKUP(K738,WORKORDERS!$A:$P,16,FALSE)","v":"no"}]
[null,500,"Scholarship, Research and Creative Activity",500,"Scholarship, Research and Creative Activity",5020,"VIU Internal Awards",20,"25020-1","SRCA Internal Awards - Other","25020-1-1","SRCA Internal - Faculty Reassignments",300,"Research Contract Administration","2017-01-01","2099-12-31","N","Contracts-PVPA Research Contr.",1140,"FACULTY REASSIGNMENTS",{"$f":"VLOOKUP(K739,WORKORDERS!$A:$P,16,FALSE)","v":"no"}]
[null,500,"Scholarship, Research and Creative Activity",500,"Scholarship, Research and Creative Activity",5025,"VIU Internal Awards - VIURAC",10,"15025-1","SRCA VIURAC Research Fund","15025-1-1","SRCA VIURAC Research Fund",315,"VIURAC","2017-01-01","2099-12-31","N","Schlshp Rsrch & Creatv Actvy",1057,"VIURAC RESEARCH FUND",{"$f":"VLOOKUP(K740,WORKORDERS!$A:$P,16,FALSE)","v":"no"}]
[null,500,"Scholarship, Research and Creative Activity",500,"Scholarship, Research and Creative Activity",5025,"VIU Internal Awards - VIURAC",20,"25025-1","SRCA VIURAC RF","25025-1-24","SRCA VIURAC RF - Stern",315,"VIURAC","2017-01-01","2099-12-31","N","Contracts-PVPA Research Contr.",1188,"VIURAC RF STERN",{"$f":"VLOOKUP(K741,WORKORDERS!$A:$P,16,FALSE)","v":"no"}]
[null,500,"Scholarship, Research and Creative Activity",500,"Scholarship, Research and Creative Activity",5025,"VIU Internal Awards - VIURAC",20,"25025-1","SRCA VIURAC RF","25025-1-26","SRCA VIURAC RF - EN/IQ RF Blaney",315,"VIURAC","2017-01-01","2099-12-31","N","Contracts-PVPA Research Contr.",4111,"VIURAC-EN/IQ RF BLANEY",{"$f":"VLOOKUP(K742,WORKORDERS!$A:$P,16,FALSE)","v":"no"}]
[null,500,"Scholarship, Research and Creative Activity",500,"Scholarship, Research and Creative Activity",5025,"VIU Internal Awards - VIURAC",20,"25025-1","SRCA VIURAC RF","25025-1-28","SRCA VIURAC RF - Craig",315,"VIURAC","2017-01-01","2099-12-31","N","Contracts-PVPA Research Contr.",4139,"VIURAC RF CRAIG",{"$f":"VLOOKUP(K743,WORKORDERS!$A:$P,16,FALSE)","v":"no"}]
[null,500,"Scholarship, Research and Creative Activity",500,"Scholarship, Research and Creative Activity",5025,"VIU Internal Awards - VIURAC",20,"25025-1","SRCA VIURAC RF","25025-1-29","SRCA VIURAC RF - Davey",315,"VIURAC","2017-01-01","2099-12-31","N","Contracts-PVPA Research Contr.",4147,"VIURAC RF DAVEY",{"$f":"VLOOKUP(K744,WORKORDERS!$A:$P,16,FALSE)","v":"no"}]
[null,500,"Scholarship, Research and Creative Activity",500,"Scholarship, Research and Creative Activity",5025,"VIU Internal Awards - VIURAC",20,"25025-1","SRCA VIURAC RF","25025-1-3","SRCA VIURAC RF - Baker",315,"VIURAC","2017-01-01","2099-12-31","N","Contracts-PVPA Research Contr.",4130,"VIURAC BAKER",{"$f":"VLOOKUP(K745,WORKORDERS!$A:$P,16,FALSE)","v":"no"}]
[null,500,"Scholarship, Research and Creative Activity",500,"Scholarship, Research and Creative Activity",5025,"VIU Internal Awards - VIURAC",20,"25025-1","SRCA VIURAC RF","25025-1-31","SRCA VIURAC RF - Heiti",315,"VIURAC","2017-01-01","2099-12-31","N","Contracts-PVPA Research Contr.",4145,"VIURAC RF HEITI",{"$f":"VLOOKUP(K746,WORKORDERS!$A:$P,16,FALSE)","v":"no"}]
[null,500,"Scholarship, Research and Creative Activity",500,"Scholarship, Research and Creative Activity",5025,"VIU Internal Awards - VIURAC",20,"25025-1","SRCA VIURAC RF","25025-1-32","SRCA VIURAC RF - Hopwood",315,"VIURAC","2017-01-01","2099-12-31","N","Contracts-PVPA Research Contr.",4146,"VIURAC RF HOPWOOD",{"$f":"VLOOKUP(K747,WORKORDERS!$A:$P,16,FALSE)","v":"no"}]
[null,500,"Scholarship, Research and Creative Activity",500,"Scholarship, Research and Creative Activity",5025,"VIU Internal Awards - VIURAC",20,"25025-1","SRCA VIURAC RF","25025-1-33","SRCA VIURAC RF - Juby",315,"VIURAC","2017-01-01","2099-12-31","N","Contracts-PVPA Research Contr.",4140,"VIURAC RF JUBY",{"$f":"VLOOKUP(K748,WORKORDERS!$A:$P,16,FALSE)","v":"no"}]
[null,500,"Scholarship, Research and Creative Activity",500,"Scholarship, Research and Creative Activity",5025,"VIU Internal Awards - VIURAC",20,"25025-1","SRCA VIURAC RF","25025-1-37","SRCA VIURAC RF - Dames 100239",315,"VIURAC","2017-01-01","2099-12-31","N","Contracts-PVPA Research Contr.",4143,"VIURAC RF DAMES 100239",{"$f":"VLOOKUP(K749,WORKORDERS!$A:$P,16,FALSE)","v":"no"}]
[null,500,"Scholarship, Research and Creative Activity",500,"Scholarship, Research and Creative Activity",5025,"VIU Internal Awards - VIURAC",20,"25025-1","SRCA VIURAC RF","25025-1-38","SRCA VIURAC RF - Krogh 100281",315,"VIURAC","2017-01-01","2099-12-31","N","Contracts-PVPA Research Contr.",4141,"VIURAC RF KROGH 100281",{"$f":"VLOOKUP(K750,WORKORDERS!$A:$P,16,FALSE)","v":"no"}]
[null,500,"Scholarship, Research and Creative Activity",500,"Scholarship, Research and Creative Activity",5025,"VIU Internal Awards - VIURAC",20,"25025-1","SRCA VIURAC RF","25025-1-43","SRCA VIURAC RF - Alphonse",315,"VIURAC","2017-01-01","2099-12-31","N","Contracts-PVPA Research Contr.",1419,"VIURAC RF ALPHONSE",{"$f":"VLOOKUP(K751,WORKORDERS!$A:$P,16,FALSE)","v":"no"}]
[null,500,"Scholarship, Research and Creative Activity",500,"Scholarship, Research and Creative Activity",5025,"VIU Internal Awards - VIURAC",20,"25025-1","SRCA VIURAC RF","25025-1-44","SRCA VIURAC RF - MOGH 100262",315,"VIURAC","2017-01-01","2099-12-31","N","Contracts-PVPA Research Contr.",1146,"VIURAC RF MOGH 100262",{"$f":"VLOOKUP(K752,WORKORDERS!$A:$P,16,FALSE)","v":"no"}]
[null,500,"Scholarship, Research and Creative Activity",500,"Scholarship, Research and Creative Activity",5025,"VIU Internal Awards - VIURAC",20,"25025-1","SRCA VIURAC RF","25025-1-45","SRCA VIURAC RF - HERNANDEZ 100580",315,"VIURAC","2017-01-01","2099-12-31","N","Contracts-PVPA Research Contr.",1161,"VIURAC RF HERNANDEZ ",{"$f":"VLOOKUP(K753,WORKORDERS!$A:$P,16,FALSE)","v":"no"}]
[null,500,"Scholarship, Research and Creative Activity",500,"Scholarship, Research and Creative Activity",5025,"VIU Internal Awards - VIURAC",20,"25025-1","SRCA VIURAC RF","25025-1-48","SRCA VIURAC RF - MCEWEN 100581",315,"VIURAC","2017-01-01","2099-12-31","N","Contracts-PVPA Research Contr.",1158,"VIURAC RF MCEWEN 100581",{"$f":"VLOOKUP(K754,WORKORDERS!$A:$P,16,FALSE)","v":"no"}]
[null,500,"Scholarship, Research and Creative Activity",500,"Scholarship, Research and Creative Activity",5025,"VIU Internal Awards - VIURAC",20,"25025-1","SRCA VIURAC RF","25025-1-49","SRCA VIURAC RF - GORRELL 100579",315,"VIURAC","2017-01-01","2099-12-31","N","Contracts-PVPA Research Contr.",1160,"VIURAC RF GORRELL 100579",{"$f":"VLOOKUP(K755,WORKORDERS!$A:$P,16,FALSE)","v":"no"}]
[null,500,"Scholarship, Research and Creative Activity",500,"Scholarship, Research and Creative Activity",5025,"VIU Internal Awards - VIURAC",20,"25025-1","SRCA VIURAC RF","25025-1-52","SRCA VIURAC RF - Publish - Martin 100877",315,"VIURAC","2020-03-28","2099-12-31","N","Contracts-PVPA Research Contr.",1199,"VIURAC RF-PUB MARTIN",{"$f":"VLOOKUP(K756,WORKORDERS!$A:$P,16,FALSE)","v":"no"}]
[null,500,"Scholarship, Research and Creative Activity",500,"Scholarship, Research and Creative Activity",5025,"VIU Internal Awards - VIURAC",20,"25025-1","SRCA VIURAC RF","25025-1-53","SRCA VIURAC RF - Russell 101007",315,"VIURAC","2020-03-28","2099-12-31","N","Contracts-PVPA Research Contr.",1185,"VIURAC RF RUSSELL 101007",{"$f":"VLOOKUP(K757,WORKORDERS!$A:$P,16,FALSE)","v":"no"}]
[null,500,"Scholarship, Research and Creative Activity",500,"Scholarship, Research and Creative Activity",5025,"VIU Internal Awards - VIURAC",20,"25025-1","SRCA VIURAC RF","25025-1-54","SRCA VIURAC RF - Doughty 101013",315,"VIURAC","2020-03-28","2099-12-31","N","Contracts-PVPA Research Contr.",1149,"VIURAC RF DOUGHTY 101013",{"$f":"VLOOKUP(K758,WORKORDERS!$A:$P,16,FALSE)","v":"no"}]
[null,500,"Scholarship, Research and Creative Activity",500,"Scholarship, Research and Creative Activity",5025,"VIU Internal Awards - VIURAC",20,"25025-1","SRCA VIURAC RF","25025-1-55","SRCA VIURAC RF - Affleck 101042",315,"VIURAC","2017-03-28","2099-12-31","N","Contracts-PVPA Research Contr.",1145,"VIURAC RF AFFLECK 101042",{"$f":"VLOOKUP(K759,WORKORDERS!$A:$P,16,FALSE)","v":"no"}]
[null,500,"Scholarship, Research and Creative Activity",500,"Scholarship, Research and Creative Activity",5025,"VIU Internal Awards - VIURAC",20,"25025-1","SRCA VIURAC RF","25025-1-56","SRCA VIURAC RF - Sun 101008",315,"VIURAC","2020-03-28","2099-12-31","N","Contracts-PVPA Research Contr.",1186,"VIURAC RF SUN 101008",{"$f":"VLOOKUP(K760,WORKORDERS!$A:$P,16,FALSE)","v":"no"}]
[null,500,"Scholarship, Research and Creative Activity",500,"Scholarship, Research and Creative Activity",5025,"VIU Internal Awards - VIURAC",20,"25025-1","SRCA VIURAC RF","25025-1-57","SRCA VIURAC RF - LOUDON 100997",315,"VIURAC","2020-03-28","2099-12-31","N","Contracts-PVPA Research Contr.",1167,"VIURAC RF LOUDON 100997",{"$f":"VLOOKUP(K761,WORKORDERS!$A:$P,16,FALSE)","v":"no"}]
[null,500,"Scholarship, Research and Creative Activity",500,"Scholarship, Research and Creative Activity",5025,"VIU Internal Awards - VIURAC",20,"25025-1","SRCA VIURAC RF","25025-1-58","SRCA VIURAC RF - Mohabeer 101160",315,"VIURAC","2020-03-28","2099-12-31","N","Contracts-PVPA Research Contr.",1189,"VIURAC RF MOHABEER 101160",{"$f":"VLOOKUP(K762,WORKORDERS!$A:$P,16,FALSE)","v":"no"}]
[null,500,"Scholarship, Research and Creative Activity",500,"Scholarship, Research and Creative Activity",5025,"VIU Internal Awards - VIURAC",20,"25025-1","SRCA VIURAC RF","25025-1-59","SRCA VIURAC RF - Wiebe 101172-173",315,"VIURAC","2020-03-28","2099-12-31","N","Contracts-PVPA Research Contr.",1192,"VIURAC RF WIEBE 101172",{"$f":"VLOOKUP(K763,WORKORDERS!$A:$P,16,FALSE)","v":"no"}]
[null,500,"Scholarship, Research and Creative Activity",500,"Scholarship, Research and Creative Activity",5025,"VIU Internal Awards - VIURAC",20,"25025-1","SRCA VIURAC RF","25025-1-60","SRCA VIURAC RF - Carruthers 101165-6",315,"VIURAC","2021-03-27","2099-12-31","N","Contracts-PVPA Research Contr.",1193,"VIURAC RF CARRUTHERS",{"$f":"VLOOKUP(K764,WORKORDERS!$A:$P,16,FALSE)","v":"no"}]
[null,500,"Scholarship, Research and Creative Activity",500,"Scholarship, Research and Creative Activity",5025,"VIU Internal Awards - VIURAC",20,"25025-1","SRCA VIURAC RF","25025-1-61","SRCA VIURAC RF - Lester 101256",315,"VIURAC","2021-03-27","2099-12-31","N","Contracts-PVPA Research Contr.",1172,"VIURAC RF LESTER 101256",{"$f":"VLOOKUP(K765,WORKORDERS!$A:$P,16,FALSE)","v":"no"}]
[null,500,"Scholarship, Research and Creative Activity",500,"Scholarship, Research and Creative Activity",5025,"VIU Internal Awards - VIURAC",20,"25025-1","SRCA VIURAC RF","25025-1-62","SRCA VIURAC RF - Duncan 248-9",315,"VIURAC","2021-03-27","2099-12-31","N","Contracts-PVPA Research Contr.",1196,"VIURAC RF DUNCAN 248-9",{"$f":"VLOOKUP(K766,WORKORDERS!$A:$P,16,FALSE)","v":"no"}]
[null,500,"Scholarship, Research and Creative Activity",500,"Scholarship, Research and Creative Activity",5025,"VIU Internal Awards - VIURAC",20,"25025-1","SRCA VIURAC RF","25025-1-63","SRCA VIURAC RF - Janes 101240",315,"VIURAC","2021-03-27","2099-12-31","N","Contracts-PVPA Research Contr.",1197,"VIURAC RF JANES 101240",{"$f":"VLOOKUP(K767,WORKORDERS!$A:$P,16,FALSE)","v":"no"}]
[null,500,"Scholarship, Research and Creative Activity",500,"Scholarship, Research and Creative Activity",5025,"VIU Internal Awards - VIURAC",20,"25025-1","SRCA VIURAC RF","25025-1-64","SRCA VIURAC RF - Bitterberg 101253-2-1",315,"VIURAC","2021-03-27","2099-12-31","N","Contracts-PVPA Research Contr.",1178,"VIURAC RF BITTERBERG",{"$f":"VLOOKUP(K768,WORKORDERS!$A:$P,16,FALSE)","v":"no"}]
[null,500,"Scholarship, Research and Creative Activity",500,"Scholarship, Research and Creative Activity",5025,"VIU Internal Awards - VIURAC",20,"25025-1","SRCA VIURAC RF","25025-1-65","SRCA VIURAC RF - Russell 101246",315,"VIURAC","2021-03-27","2099-12-31","N","Contracts-PVPA Research Contr.",1194,"VIURAC RF RUSSELL 101246",{"$f":"VLOOKUP(K769,WORKORDERS!$A:$P,16,FALSE)","v":"no"}]
[null,500,"Scholarship, Research and Creative Activity",500,"Scholarship, Research and Creative Activity",5025,"VIU Internal Awards - VIURAC",20,"25025-1","SRCA VIURAC RF","25025-1-66","SRCA VIURAC RF - Sun 101250",315,"VIURAC","2021-03-27","2099-12-31","N","Contracts-PVPA Research Contr.",1174,"VIURAC RF SUN 101250",{"$f":"VLOOKUP(K770,WORKORDERS!$A:$P,16,FALSE)","v":"no"}]
[null,500,"Scholarship, Research and Creative Activity",500,"Scholarship, Research and Creative Activity",5025,"VIU Internal Awards - VIURAC",20,"25025-2","SRCA VIURAC N-GRF","25025-2-6","SRCA VIURAC N-GRF - Russell",315,"VIURAC","2017-01-01","2099-12-31","N","Contracts-PVPA Research Contr.",4137,"VIURAC N-GRF RUSSELL",{"$f":"VLOOKUP(K771,WORKORDERS!$A:$P,16,FALSE)","v":"no"}]
[null,500,"Scholarship, Research and Creative Activity",500,"Scholarship, Research and Creative Activity",5025,"VIU Internal Awards - VIURAC",20,"25025-2","SRCA VIURAC N-GRF","25025-2-7","SRCA VIURAC N-GRF - Stokes",315,"VIURAC","2017-01-01","2099-12-31","N","Contracts-PVPA Research Contr.",4129,"VIURAC N-GRF STOKES",{"$f":"VLOOKUP(K772,WORKORDERS!$A:$P,16,FALSE)","v":"no"}]
[null,500,"Scholarship, Research and Creative Activity",500,"Scholarship, Research and Creative Activity",5025,"VIU Internal Awards - VIURAC",20,"25025-3","SRCA VIURAC S-GRF","25025-3-2","SRCA VIURAC S-GRF - Farrell",315,"VIURAC","2017-01-01","2099-12-31","N","Contracts-PVPA Research Contr.",4125,"VIURAC S-GRF FARRELL",{"$f":"VLOOKUP(K773,WORKORDERS!$A:$P,16,FALSE)","v":"no"}]
[null,500,"Scholarship, Research and Creative Activity",500,"Scholarship, Research and Creative Activity",5025,"VIU Internal Awards - VIURAC",20,"25025-3","SRCA VIURAC S-GRF","25025-3-4","SRCA VIURAC S-GRF-Lewis 100556",315,"VIURAC","2017-01-01","2099-12-31","N","Contracts-PVPA Research Contr.",1154,"VIURAC S-GRF LEWIS 100556",{"$f":"VLOOKUP(K774,WORKORDERS!$A:$P,16,FALSE)","v":"no"}]
[null,500,"Scholarship, Research and Creative Activity",500,"Scholarship, Research and Creative Activity",5025,"VIU Internal Awards - VIURAC",20,"25025-3","SRCA VIURAC S-GRF","25025-3-5","SRCA VIURAC S-GRF - Gardiner 101041",315,"VIURAC","2020-03-28","2099-12-31","N","Contracts-PVPA Research Contr.",1159,"VIURAC S-GRF GARDINER 101041",{"$f":"VLOOKUP(K775,WORKORDERS!$A:$P,16,FALSE)","v":"no"}]
[null,500,"Scholarship, Research and Creative Activity",500,"Scholarship, Research and Creative Activity",5025,"VIU Internal Awards - VIURAC",20,"25025-3","SRCA VIURAC S-GRF","25025-3-6","SRCA VIURAC S-GRF - Reed 101043",315,"VIURAC","2020-03-28","2099-12-31","N","Contracts-PVPA Research Contr.",1184,"VIURAC S-GRF REED 101043",{"$f":"VLOOKUP(K776,WORKORDERS!$A:$P,16,FALSE)","v":"no"}]
[null,500,"Scholarship, Research and Creative Activity",500,"Scholarship, Research and Creative Activity",5025,"VIU Internal Awards - VIURAC",20,"25025-3","SRCA VIURAC S-GRF","25025-3-7","SRCA VIURAC S-GRF - Moghimehfar 101040",315,"VIURAC","2020-03-28","2099-12-31","N","Contracts-PVPA Research Contr.",1170,"VIURAC S-GRF MOGHIMEHFAR",{"$f":"VLOOKUP(K777,WORKORDERS!$A:$P,16,FALSE)","v":"no"}]
[null,500,"Scholarship, Research and Creative Activity",500,"Scholarship, Research and Creative Activity",5025,"VIU Internal Awards - VIURAC",20,"25025-3","SRCA VIURAC S-GRF","25025-3-8","SRCA VIURAC S-GRF - Warsh 101178",315,"VIURAC","2020-03-28","2099-12-31","N","Contracts-PVPA Research Contr.",1152,"VIURAC S-GRF MOGHIMEHFAR",{"$f":"VLOOKUP(K778,WORKORDERS!$A:$P,16,FALSE)","v":"no"}]
[null,500,"Scholarship, Research and Creative Activity",500,"Scholarship, Research and Creative Activity",5025,"VIU Internal Awards - VIURAC",20,"25025-5","SRCA VIURAC SIG","25025-5-1","SRCA VIURAC SIG18 - Davidson",315,"VIURAC","2017-01-01","2099-12-31","N","Contracts-PVPA Research Contr.",4114,"VIURAC SIG-18 DAVIDSON",{"$f":"VLOOKUP(K779,WORKORDERS!$A:$P,16,FALSE)","v":"no"}]
[null,500,"Scholarship, Research and Creative Activity",500,"Scholarship, Research and Creative Activity",5025,"VIU Internal Awards - VIURAC",20,"25025-5","SRCA VIURAC SIG","25025-5-10","SRCA VIURAC SIG18 - PASTRO",315,"VIURAC","2017-01-01","2099-12-31","N","Contracts-PVPA Research Contr.",1418,"VIURAC SIG-18 PASTRO ",{"$f":"VLOOKUP(K780,WORKORDERS!$A:$P,16,FALSE)","v":"no"}]
[null,500,"Scholarship, Research and Creative Activity",500,"Scholarship, Research and Creative Activity",5025,"VIU Internal Awards - VIURAC",20,"25025-5","SRCA VIURAC SIG","25025-5-11","SRCA VIURAC SIG18 - WARSH 100592",315,"VIURAC","2017-01-01","2099-12-31","N","Contracts-PVPA Research Contr.",1162,"VIURAC SIG-18 WARSH ",{"$f":"VLOOKUP(K781,WORKORDERS!$A:$P,16,FALSE)","v":"no"}]
[null,500,"Scholarship, Research and Creative Activity",500,"Scholarship, Research and Creative Activity",5025,"VIU Internal Awards - VIURAC",20,"25025-5","SRCA VIURAC SIG","25025-5-12","SRCA VIURAC SIG18 - TAPLAY 100633",315,"VIURAC","2020-03-28","2099-12-31","N","Contracts-PVPA Research Contr.",1157,"VIURAC SIG-18 TAPLAY 100633",{"$f":"VLOOKUP(K782,WORKORDERS!$A:$P,16,FALSE)","v":"no"}]
[null,500,"Scholarship, Research and Creative Activity",500,"Scholarship, Research and Creative Activity",5025,"VIU Internal Awards - VIURAC",20,"25025-5","SRCA VIURAC SIG","25025-5-13","SRCA VIURAC SIG18 - Esliger 101017/18",315,"VIURAC","2020-03-28","2099-12-31","N","Contracts-PVPA Research Contr.",1151,"VIURAC SIG18 ESLIGER 101017/18",{"$f":"VLOOKUP(K783,WORKORDERS!$A:$P,16,FALSE)","v":"no"}]
[null,500,"Scholarship, Research and Creative Activity",500,"Scholarship, Research and Creative Activity",5025,"VIU Internal Awards - VIURAC",20,"25025-6","SRCA VIURAC-Multiple","25025-6-3","SRCA VIURAC-Multiple - SIG18 SGRF - Manson",315,"VIURAC","2017-01-01","2099-12-31","N","Contracts-PVPA Research Contr.",4121,"VIURAC SIG-18-SGRF MANSON",{"$f":"VLOOKUP(K784,WORKORDERS!$A:$P,16,FALSE)","v":"no"}]
[null,500,"Scholarship, Research and Creative Activity",500,"Scholarship, Research and Creative Activity",5025,"VIU Internal Awards - VIURAC",20,"25025-6","SRCA VIURAC-Multiple","25025-6-5","SRCA VIURAC-MULTIPLE-SIG18-SGRF-GOVER-BASAR 100590-91",315,"VIURAC","2017-01-01","2099-12-31","N","Contracts-PVPA Research Contr.",1153,"VRC SIG18-SGRF GOVER-BASAR ",{"$f":"VLOOKUP(K785,WORKORDERS!$A:$P,16,FALSE)","v":"no"}]
[null,500,"Scholarship, Research and Creative Activity",500,"Scholarship, Research and Creative Activity",5025,"VIU Internal Awards - VIURAC",20,"25025-7","SRCA VIURAC-AEST","25025-7-1","SRCA VIURAC-AEST- Riedel 100650",315,"VIURAC","2020-03-28","2099-12-31","N","Contracts-PVPA Research Contr.",1163,"VIURAC AEST RIEDEL 100650",{"$f":"VLOOKUP(K786,WORKORDERS!$A:$P,16,FALSE)","v":"no"}]
[null,500,"Scholarship, Research and Creative Activity",500,"Scholarship, Research and Creative Activity",5025,"VIU Internal Awards - VIURAC",20,"25025-7","SRCA VIURAC-AEST","25025-7-2","SRCA VIURAC-AEST Morden 653",315,"VIURAC","2020-03-28","2099-12-31","N","Contracts-PVPA Research Contr.",1165,"VIURAC AEST MORDEN 653",{"$f":"VLOOKUP(K787,WORKORDERS!$A:$P,16,FALSE)","v":"no"}]
[null,500,"Scholarship, Research and Creative Activity",500,"Scholarship, Research and Creative Activity",5025,"VIU Internal Awards - VIURAC",20,"25025-7","SRCA VIURAC-AEST","25025-7-3","SRCA VIURAC-AEST McFarland 665",315,"VIURAC","2020-03-28","2099-12-31","N","Contracts-PVPA Research Contr.",1176,"VIURAC AEST MCFARLAND 665",{"$f":"VLOOKUP(K788,WORKORDERS!$A:$P,16,FALSE)","v":"no"}]
[null,500,"Scholarship, Research and Creative Activity",500,"Scholarship, Research and Creative Activity",5025,"VIU Internal Awards - VIURAC",20,"25025-7","SRCA VIURAC-AEST","25025-7-4","SRCA VIURAC-AEST- Weighill 658",315,"VIURAC","2020-03-28","2099-12-31","N","Contracts-PVPA Research Contr.",1166,"VIURAC AEST WEIGHILL 658",{"$f":"VLOOKUP(K789,WORKORDERS!$A:$P,16,FALSE)","v":"no"}]
[null,500,"Scholarship, Research and Creative Activity",500,"Scholarship, Research and Creative Activity",5025,"VIU Internal Awards - VIURAC",20,"25025-7","SRCA VIURAC-AEST","25025-7-5","SRCA VIURAC-AEST- Lait 100668",315,"VIURAC","2020-03-28","2099-12-31","N","Contracts-PVPA Research Contr.",1171,"VIURAC AEST LAIT 100668",{"$f":"VLOOKUP(K790,WORKORDERS!$A:$P,16,FALSE)","v":"no"}]
[null,500,"Scholarship, Research and Creative Activity",500,"Scholarship, Research and Creative Activity",5025,"VIU Internal Awards - VIURAC",20,"25025-7","SRCA VIURAC-AEST","25025-7-6","SRCA VIURAC-AEST- Mayes 100652",315,"VIURAC","2020-03-28","2099-12-31","N","Contracts-PVPA Research Contr.",1164,"VIURAC AEST MAYES 100652",{"$f":"VLOOKUP(K791,WORKORDERS!$A:$P,16,FALSE)","v":"no"}]
[null,500,"Scholarship, Research and Creative Activity",500,"Scholarship, Research and Creative Activity",5025,"VIU Internal Awards - VIURAC",20,"25025-7","SRCA VIURAC-AEST","25025-7-7","SRCA VIURAC-AEST- Anderson 637",315,"VIURAC","2020-03-28","2099-12-31","N","Contracts-PVPA Research Contr.",1169,"VIURAC AEST ANDERSON 637",{"$f":"VLOOKUP(K792,WORKORDERS!$A:$P,16,FALSE)","v":"no"}]
[null,500,"Scholarship, Research and Creative Activity",500,"Scholarship, Research and Creative Activity",5025,"VIU Internal Awards - VIURAC",20,"25025-7","SRCA VIURAC-AEST","25025-7-8","SRCA VIURAC-AEST- Morden 101054",315,"VIURAC","2020-03-28","2099-12-31","N","Contracts-PVPA Research Contr.",1182,"VIURAC AEST MORDEN 101054",{"$f":"VLOOKUP(K793,WORKORDERS!$A:$P,16,FALSE)","v":"no"}]
[null,500,"Scholarship, Research and Creative Activity",500,"Scholarship, Research and Creative Activity",5025,"VIU Internal Awards - VIURAC",20,"25025-8","SRCA VIURAC M-HEALTH","25025-8-1","SRCA VIURAC M-HEALTH- Dames 100989",315,"VIURAC","2021-03-27","2099-12-31","N","Contracts-PVPA Research Contr.",1147,"VIURAC M-HEALTH DAMES ",{"$f":"VLOOKUP(K794,WORKORDERS!$A:$P,16,FALSE)","v":"no"}]
[null,500,"Scholarship, Research and Creative Activity",500,"Scholarship, Research and Creative Activity",5025,"VIU Internal Awards - VIURAC",20,"25025-8","SRCA VIURAC M-HEALTH","25025-8-2","SRCA VIURAC M-HEALTH- Gill 101174",315,"VIURAC","2021-03-27","2099-12-31","N","Contracts-PVPA Research Contr.",1190,"VIURAC MH GILL 101174",{"$f":"VLOOKUP(K795,WORKORDERS!$A:$P,16,FALSE)","v":"no"}]
[null,500,"Scholarship, Research and Creative Activity",500,"Scholarship, Research and Creative Activity",5100,"External Research Grants",20,"25100-1","SRCA Research Grant Administration","25100-1-1","SRCA Research Support Fund",309,"Research Grant","2017-01-01","2099-12-31","N","Contracts-PVPA Research Contr.",1119,"RESEARCH SUPPORT FUND",{"$f":"VLOOKUP(K796,WORKORDERS!$A:$P,16,FALSE)","v":"no"}]
[null,500,"Scholarship, Research and Creative Activity",500,"Scholarship, Research and Creative Activity",5100,"External Research Grants",20,"25100-10","SRCA RIF - REFBC","25100-10-1","SRCA RIF - REFBC - Brouder",309,"Research Grant","2017-01-01","2099-12-31","N","Contracts-PVPA Research Contr.",1439,"RIF - BROUDER",{"$f":"VLOOKUP(K797,WORKORDERS!$A:$P,16,FALSE)","v":"no"}]
[null,500,"Scholarship, Research and Creative Activity",500,"Scholarship, Research and Creative Activity",5100,"External Research Grants",20,"25100-10","SRCA RIF - REFBC","25100-10-10","SRCA RIF - REFBC - Gorrell 101061",309,"Research Grant","2020-03-28","2099-12-31","N","Contracts-PVPA Research Contr.",1446,"RIF-GORRELL 101061",{"$f":"VLOOKUP(K798,WORKORDERS!$A:$P,16,FALSE)","v":"no"}]
[null,500,"Scholarship, Research and Creative Activity",500,"Scholarship, Research and Creative Activity",5100,"External Research Grants",20,"25100-10","SRCA RIF - REFBC","25100-10-11","SRCA RIF - REFBC - Green 101062",309,"Research Grant","2020-03-28","2099-12-31","N","Contracts-PVPA Research Contr.",1447,"RIF-GREEN 101062",{"$f":"VLOOKUP(K799,WORKORDERS!$A:$P,16,FALSE)","v":"no"}]
[null,500,"Scholarship, Research and Creative Activity",500,"Scholarship, Research and Creative Activity",5100,"External Research Grants",20,"25100-10","SRCA RIF - REFBC","25100-10-12","SRCA RIF - REFBC - Krogh 101085",309,"Research Grant","2020-03-28","2099-12-31","N","Contracts-PVPA Research Contr.",1450,"RIF - KROGH 101085",{"$f":"VLOOKUP(K800,WORKORDERS!$A:$P,16,FALSE)","v":"no"}]
[null,500,"Scholarship, Research and Creative Activity",500,"Scholarship, Research and Creative Activity",5100,"External Research Grants",20,"25100-10","SRCA RIF - REFBC","25100-10-3","SRCA RIF - REFBC",309,"Research Grant","2017-01-01","2099-12-31","N","Contracts-PVPA Research Contr.",1138,"RIF - REFBC",{"$f":"VLOOKUP(K801,WORKORDERS!$A:$P,16,FALSE)","v":"no"}]
[null,500,"Scholarship, Research and Creative Activity",500,"Scholarship, Research and Creative Activity",5100,"External Research Grants",20,"25100-10","SRCA RIF - REFBC","25100-10-4","SRCA RIF - REFBC - Schroeder 101065",309,"Research Grant","2020-03-28","2099-12-31","N","Contracts-PVPA Research Contr.",1451,"RIF - Schroeder 101065",{"$f":"VLOOKUP(K802,WORKORDERS!$A:$P,16,FALSE)","v":"no"}]
[null,500,"Scholarship, Research and Creative Activity",500,"Scholarship, Research and Creative Activity",5100,"External Research Grants",20,"25100-12","SRCA SSHRC","25100-12-1","SRCA SSHRC GRF",309,"Research Grant","2017-01-01","2099-12-31","N","Contracts-PVPA Research Contr.",1120,"GRF - NSERC",{"$f":"VLOOKUP(K803,WORKORDERS!$A:$P,16,FALSE)","v":"no"}]
[null,500,"Scholarship, Research and Creative Activity",500,"Scholarship, Research and Creative Activity",5100,"External Research Grants",20,"25100-12","SRCA SSHRC","25100-12-10","SRCA SSHRC IDG - Brouder",309,"Research Grant","2017-01-01","2099-12-31","N","Contracts-PVPA Research Contr.",1232,"SSHRC IDG - BROUDER",{"$f":"VLOOKUP(K804,WORKORDERS!$A:$P,16,FALSE)","v":"no"}]
[null,500,"Scholarship, Research and Creative Activity",500,"Scholarship, Research and Creative Activity",5100,"External Research Grants",20,"25100-12","SRCA SSHRC","25100-12-11","SRCA SSHRC CG - Warsh",309,"Research Grant","2017-01-01","2099-12-31","N","Contracts-PVPA Research Contr.",1237,"SSHRC CG - WARSH",{"$f":"VLOOKUP(K805,WORKORDERS!$A:$P,16,FALSE)","v":"no"}]
[null,500,"Scholarship, Research and Creative Activity",500,"Scholarship, Research and Creative Activity",5100,"External Research Grants",20,"25100-12","SRCA SSHRC","25100-12-12","SRCA SSHRC CG - DOUGHTY 5714",309,"Research Grant","2020-03-28","2099-12-31","N","Contracts-PVPA Research Contr.",1239,"SSHRC CG - DOUGHTY 5714",{"$f":"VLOOKUP(K806,WORKORDERS!$A:$P,16,FALSE)","v":"no"}]
[null,500,"Scholarship, Research and Creative Activity",500,"Scholarship, Research and Creative Activity",5100,"External Research Grants",20,"25100-12","SRCA SSHRC","25100-12-13","SRCA SSHRC ICG - Wager 5669",309,"Research Grant","2020-03-28","2099-12-31","N","Contracts-PVPA Research Contr.",1240,"SSHRC ICG - WAGER 5669",{"$f":"VLOOKUP(K807,WORKORDERS!$A:$P,16,FALSE)","v":"no"}]
[null,500,"Scholarship, Research and Creative Activity",500,"Scholarship, Research and Creative Activity",5100,"External Research Grants",20,"25100-12","SRCA SSHRC","25100-12-14","SRCA SSHRC PDG (UofA) - Rollins",309,"Research Grant","2021-03-27","2099-12-31","N","Contracts-PVPA Research Contr.",1235,"SSHRC PDG (UOFA)-ROLLINS",{"$f":"VLOOKUP(K808,WORKORDERS!$A:$P,16,FALSE)","v":"no"}]
[null,500,"Scholarship, Research and Creative Activity",500,"Scholarship, Research and Creative Activity",5100,"External Research Grants",20,"25100-12","SRCA SSHRC","25100-12-5","SRCA SSHRC CGSM",309,"Research Grant","2017-01-01","2099-12-31","N","Contracts-PVPA Research Contr.",1224,"SSHRC CGSM",{"$f":"VLOOKUP(K809,WORKORDERS!$A:$P,16,FALSE)","v":"no"}]
[null,500,"Scholarship, Research and Creative Activity",500,"Scholarship, Research and Creative Activity",5100,"External Research Grants",20,"25100-12","SRCA SSHRC","25100-12-7","SRCA SSHRC IRCR CG - Martin ",309,"Research Grant","2017-01-01","2099-12-31","N","Contracts-PVPA Research Contr.",1234,"SSHRC IRCR CG - MARTIN",{"$f":"VLOOKUP(K810,WORKORDERS!$A:$P,16,FALSE)","v":"no"}]
[null,500,"Scholarship, Research and Creative Activity",500,"Scholarship, Research and Creative Activity",5100,"External Research Grants",20,"25100-12","SRCA SSHRC","25100-12-8","SRCA SSHRC SIG 2018-21",309,"Research Grant","2017-01-01","2099-12-31","N","Contracts-PVPA Research Contr.",1222,"SIG SSHRC 2018-21",{"$f":"VLOOKUP(K811,WORKORDERS!$A:$P,16,FALSE)","v":"no"}]
[null,500,"Scholarship, Research and Creative Activity",500,"Scholarship, Research and Creative Activity",5100,"External Research Grants",20,"25100-13","SRCA Other Grants","25100-13-10","SRCA Vancouver Fdn 2 - Falvai",309,"Research Grant","2017-01-01","2099-12-31","N","Contracts-PVPA Research Contr.",1293,"VANCOUVER FDN 2 - FALVAI",{"$f":"VLOOKUP(K812,WORKORDERS!$A:$P,16,FALSE)","v":"no"}]
[null,500,"Scholarship, Research and Creative Activity",500,"Scholarship, Research and Creative Activity",5100,"External Research Grants",20,"25100-13","SRCA Other Grants","25100-13-13","SRCA MITACS RTA - SRCA",309,"Research Grant","2020-03-28","2099-12-31","N","Contracts-PVPA Research Contr.",1299,"MITACS RTA - SCRA ",{"$f":"VLOOKUP(K813,WORKORDERS!$A:$P,16,FALSE)","v":"no"}]
[null,500,"Scholarship, Research and Creative Activity",500,"Scholarship, Research and Creative Activity",5100,"External Research Grants",20,"25100-13","SRCA Other Grants","25100-13-14","SRCA NOAA/PSMFC (OSU) - Green",309,"Research Grant","2020-03-28","2099-12-31","N","Contracts-PVPA Research Contr.",1328,"NOAA/PSMFC (OSU) - GREEN",{"$f":"VLOOKUP(K814,WORKORDERS!$A:$P,16,FALSE)","v":"no"}]
[null,500,"Scholarship, Research and Creative Activity",500,"Scholarship, Research and Creative Activity",5100,"External Research Grants",20,"25100-13","SRCA Other Grants","25100-13-15","SRCA MITACS BSI - SRCA",309,"Research Grant","2020-03-28","2099-12-31","N","Contracts-PVPA Research Contr.",1298,"MITACS BSI - SRCA",{"$f":"VLOOKUP(K815,WORKORDERS!$A:$P,16,FALSE)","v":"no"}]
[null,500,"Scholarship, Research and Creative Activity",500,"Scholarship, Research and Creative Activity",5100,"External Research Grants",20,"25100-13","SRCA Other Grants","25100-13-16","SRCA MITACS ACC - Gorrell 5761",309,"Research Grant","2020-03-28","2099-12-31","N","Contracts-PVPA Research Contr.",1295,"MITACS ACC - GORRELL 5761",{"$f":"VLOOKUP(K816,WORKORDERS!$A:$P,16,FALSE)","v":"no"}]
[null,500,"Scholarship, Research and Creative Activity",500,"Scholarship, Research and Creative Activity",5100,"External Research Grants",20,"25100-13","SRCA Other Grants","25100-13-17","SRCA VAN FDN - Wager 100677",309,"Research Grant","2020-03-28","2099-12-31","N","Contracts-PVPA Research Contr.",1292,"VAN FDN-WAGER 100677",{"$f":"VLOOKUP(K817,WORKORDERS!$A:$P,16,FALSE)","v":"no"}]
[null,500,"Scholarship, Research and Creative Activity",500,"Scholarship, Research and Creative Activity",5100,"External Research Grants",20,"25100-13","SRCA Other Grants","25100-13-18","SRCA UNI-CAN-SRCA 5825",309,"Research Grant","2020-03-28","2099-12-31","N","Contracts-PVPA Research Contr.",1296,"UNI-CAN-SRCA 5825",{"$f":"VLOOKUP(K818,WORKORDERS!$A:$P,16,FALSE)","v":"no"}]
[null,500,"Scholarship, Research and Creative Activity",500,"Scholarship, Research and Creative Activity",5100,"External Research Grants",20,"25100-13","SRCA Other Grants","25100-13-2","SRCA AVED - Russell",309,"Research Grant","2017-01-01","2099-12-31","N","Contracts-PVPA Research Contr.",1383,"AVED - RUSSELL",{"$f":"VLOOKUP(K819,WORKORDERS!$A:$P,16,FALSE)","v":"no"}]
[null,500,"Scholarship, Research and Creative Activity",500,"Scholarship, Research and Creative Activity",5100,"External Research Grants",20,"25100-13","SRCA Other Grants","25100-13-5","SRCA Genome BC (SFU) - Murray",309,"Research Grant","2017-01-01","2099-12-31","N","Contracts-PVPA Research Contr.",1347,"GENOME BC (SFU)-MURRAY",{"$f":"VLOOKUP(K820,WORKORDERS!$A:$P,16,FALSE)","v":"no"}]
[null,500,"Scholarship, Research and Creative Activity",500,"Scholarship, Research and Creative Activity",5100,"External Research Grants",20,"25100-13","SRCA Other Grants","25100-13-7","SRCA IS Health Innovation - Gill",309,"Research Grant","2017-01-01","2099-12-31","N","Contracts-PVPA Research Contr.",1349,"IS HEALTH INNOVATION-GILL",{"$f":"VLOOKUP(K821,WORKORDERS!$A:$P,16,FALSE)","v":"no"}]
[null,500,"Scholarship, Research and Creative Activity",500,"Scholarship, Research and Creative Activity",5100,"External Research Grants",20,"25100-13","SRCA Other Grants","25100-13-8","SRCA MITACS-ACC-PD - Vaugeois",309,"Research Grant","2017-01-01","2099-12-31","N","Contracts-PVPA Research Contr.",1395,"MITACS-ACC-PD-VAUGEOIS",{"$f":"VLOOKUP(K822,WORKORDERS!$A:$P,16,FALSE)","v":"no"}]
[null,500,"Scholarship, Research and Creative Activity",500,"Scholarship, Research and Creative Activity",5100,"External Research Grants",20,"25100-13","SRCA Other Grants","25100-13-9","SRCA TULA (UNBC) - Floyd",309,"Research Grant","2017-01-01","2099-12-31","N","Contracts-PVPA Research Contr.",1380,"TULA (UNBC) - FLOYD",{"$f":"VLOOKUP(K823,WORKORDERS!$A:$P,16,FALSE)","v":"no"}]
[null,500,"Scholarship, Research and Creative Activity",500,"Scholarship, Research and Creative Activity",5100,"External Research Grants",20,"25100-3","SRCA BCRIC","25100-3-1","SRCA BCRIC - AECD",309,"Research Grant","2017-01-01","2099-12-31","N","Contracts-PVPA Research Contr.",1305,"BCRIC AECD",{"$f":"VLOOKUP(K824,WORKORDERS!$A:$P,16,FALSE)","v":"no"}]
[null,500,"Scholarship, Research and Creative Activity",500,"Scholarship, Research and Creative Activity",5100,"External Research Grants",20,"25100-3","SRCA BCRIC","25100-3-2","SRCA BCRIC - Chair Tourism",309,"Research Grant","2017-01-01","2099-12-31","N","Contracts-PVPA Research Contr.",1310,"BCRIC CHAIR TOURISM",{"$f":"VLOOKUP(K825,WORKORDERS!$A:$P,16,FALSE)","v":"no"}]
[null,500,"Scholarship, Research and Creative Activity",500,"Scholarship, Research and Creative Activity",5100,"External Research Grants",20,"25100-3","SRCA BCRIC","25100-3-3","SRCA BCRIC - AECD Alphonse GRF",309,"Research Grant","2017-01-01","2099-12-31","N","Contracts-PVPA Research Contr.",1306,"BCRIC AECD-OPERATING",{"$f":"VLOOKUP(K826,WORKORDERS!$A:$P,16,FALSE)","v":"no"}]
[null,500,"Scholarship, Research and Creative Activity",500,"Scholarship, Research and Creative Activity",5100,"External Research Grants",20,"25100-4","SRCA Canada Research Chair","25100-4-1","SRCA CRC - Wager",309,"Research Grant","2017-01-01","2099-12-31","N","Contracts-PVPA Research Contr.",1300,"CRC - WAGER",{"$f":"VLOOKUP(K827,WORKORDERS!$A:$P,16,FALSE)","v":"no"}]
[null,500,"Scholarship, Research and Creative Activity",500,"Scholarship, Research and Creative Activity",5100,"External Research Grants",20,"25100-4","SRCA Canada Research Chair","25100-4-2","SRCA CRC - Wood",309,"Research Grant","2017-01-01","2099-12-31","N","Contracts-PVPA Research Contr.",1315,"CRC - WOOD",{"$f":"VLOOKUP(K828,WORKORDERS!$A:$P,16,FALSE)","v":"no"}]
[null,500,"Scholarship, Research and Creative Activity",500,"Scholarship, Research and Creative Activity",5100,"External Research Grants",20,"25100-4","SRCA Canada Research Chair","25100-4-3","SRCA CRC - Green",309,"Research Grant","2017-01-01","2099-12-31","N","Contracts-PVPA Research Contr.",1325,"CRC GENOMICS-GREEN",{"$f":"VLOOKUP(K829,WORKORDERS!$A:$P,16,FALSE)","v":"no"}]
[null,500,"Scholarship, Research and Creative Activity",500,"Scholarship, Research and Creative Activity",5100,"External Research Grants",20,"25100-4","SRCA Canada Research Chair","25100-4-4","SRCA CRC TIPS - EDI Stipend - Vaugeois 5779",309,"Research Grant","2020-03-28","2099-12-31","N","Contracts-PVPA Research Contr.",1304,"TIPS-EDI STIP-VAUGEOIS",{"$f":"VLOOKUP(K830,WORKORDERS!$A:$P,16,FALSE)","v":"no"}]
[null,500,"Scholarship, Research and Creative Activity",500,"Scholarship, Research and Creative Activity",5100,"External Research Grants",20,"25100-4","SRCA Canada Research Chair","25100-4-5","SRCA CRC - Sloan 4670",309,"Research Grant","2020-03-28","2099-12-31","N","Contracts-PVPA Research Contr.",1301,"CRC - SLOAN 4670",{"$f":"VLOOKUP(K831,WORKORDERS!$A:$P,16,FALSE)","v":"no"}]
[null,500,"Scholarship, Research and Creative Activity",500,"Scholarship, Research and Creative Activity",5100,"External Research Grants",20,"25100-5","SRCA CFI - IOF","25100-5-1","SRCA CFI - IOFCFI - IOF",309,"Research Grant","2017-01-01","2099-12-31","N","Contracts-PVPA Research Contr.",1200,"CFI - IOF",{"$f":"VLOOKUP(K832,WORKORDERS!$A:$P,16,FALSE)","v":"no"}]
[null,500,"Scholarship, Research and Creative Activity",500,"Scholarship, Research and Creative Activity",5100,"External Research Grants",20,"25100-5","SRCA CFI - IOF","25100-5-3","SRCA CFI - IOF Mobile Lab (Krogh)",309,"Research Grant","2017-01-01","2099-12-31","N","Contracts-PVPA Research Contr.",1209,"CFI IOF MOBILE LAB(KROGH)",{"$f":"VLOOKUP(K833,WORKORDERS!$A:$P,16,FALSE)","v":"no"}]
[null,500,"Scholarship, Research and Creative Activity",500,"Scholarship, Research and Creative Activity",5100,"External Research Grants",20,"25100-5","SRCA CFI - IOF","25100-5-4","SRCA CFI - IOF Shellfish (Green)",309,"Research Grant","2017-01-01","2099-12-31","N","Contracts-PVPA Research Contr.",1207,"CFI IOF SHELLFISH (GREEN)",{"$f":"VLOOKUP(K834,WORKORDERS!$A:$P,16,FALSE)","v":"no"}]
[null,500,"Scholarship, Research and Creative Activity",500,"Scholarship, Research and Creative Activity",5100,"External Research Grants",20,"25100-5","SRCA CFI - IOF","25100-5-5","SRCA CFI - IOF MeTA DH Lab - Lane",309,"Research Grant","2020-03-28","2099-12-31","N","Contracts-PVPA Research Contr.",1201,"CFI-IOF META DH LAB - LANE ",{"$f":"VLOOKUP(K835,WORKORDERS!$A:$P,16,FALSE)","v":"no"}]
[null,500,"Scholarship, Research and Creative Activity",500,"Scholarship, Research and Creative Activity",5100,"External Research Grants",20,"25100-5","SRCA CFI - IOF","25100-5-6","SRCA CFI - IOF Russell",309,"Research Grant","2020-03-28","2099-12-31","N","Contracts-PVPA Research Contr.",1202,"CFI-IOF RUSSELL ",{"$f":"VLOOKUP(K836,WORKORDERS!$A:$P,16,FALSE)","v":"no"}]
[null,500,"Scholarship, Research and Creative Activity",500,"Scholarship, Research and Creative Activity",5100,"External Research Grants",20,"25100-5","SRCA CFI - IOF","25100-5-7","SRCA CFI - IOF Gill",309,"Research Grant","2020-03-28","2099-12-31","N","Contracts-PVPA Research Contr.",1203,"CFI-IOF GILL",{"$f":"VLOOKUP(K837,WORKORDERS!$A:$P,16,FALSE)","v":"no"}]
[null,500,"Scholarship, Research and Creative Activity",500,"Scholarship, Research and Creative Activity",5100,"External Research Grants",20,"25100-6","SRCA CIHR","25100-6-2","SRCA CIHR - IGWDG - Meijer-Drees 100093",309,"Research Grant","2020-03-28","2099-12-31","N","Contracts-PVPA Research Contr.",1290,"CIHR IGWDG-MEIJER-DREES ",{"$f":"VLOOKUP(K838,WORKORDERS!$A:$P,16,FALSE)","v":"no"}]
[null,500,"Scholarship, Research and Creative Activity",500,"Scholarship, Research and Creative Activity",5100,"External Research Grants",20,"25100-8","SRCA NSERC","25100-8-1","SRCA GRF - NSERC",309,"Research Grant","2017-01-01","2099-12-31","N","Contracts-PVPA Research Contr.",1118,"GRF - SSHRC",{"$f":"VLOOKUP(K839,WORKORDERS!$A:$P,16,FALSE)","v":"no"}]
[null,500,"Scholarship, Research and Creative Activity",500,"Scholarship, Research and Creative Activity",5100,"External Research Grants",20,"25100-8","SRCA NSERC","25100-8-10","SRCA NSERC SPGN (Waterloo) - Floyd",309,"Research Grant","2017-01-01","2099-12-31","N","Contracts-PVPA Research Contr.",1259,"NSERC SPGN(WATRLOO)-FLOYD",{"$f":"VLOOKUP(K840,WORKORDERS!$A:$P,16,FALSE)","v":"no"}]
[null,500,"Scholarship, Research and Creative Activity",500,"Scholarship, Research and Creative Activity",5100,"External Research Grants",20,"25100-8","SRCA NSERC","25100-8-11","SRCA NSERC USRA",309,"Research Grant","2017-01-01","2099-12-31","N","Contracts-PVPA Research Contr.",1250,"NSERC USRA",{"$f":"VLOOKUP(K841,WORKORDERS!$A:$P,16,FALSE)","v":"no"}]
[null,500,"Scholarship, Research and Creative Activity",500,"Scholarship, Research and Creative Activity",5100,"External Research Grants",20,"25100-8","SRCA NSERC","25100-8-12","SRCA NSERC DG - Janes",309,"Research Grant","2020-03-28","2099-12-31","N","Contracts-PVPA Research Contr.",1279,"NSERC DG - JANES ",{"$f":"VLOOKUP(K842,WORKORDERS!$A:$P,16,FALSE)","v":"no"}]
[null,500,"Scholarship, Research and Creative Activity",500,"Scholarship, Research and Creative Activity",5100,"External Research Grants",20,"25100-8","SRCA NSERC","25100-8-13","SRCA NSERC DG - Stringham",309,"Research Grant","2020-03-28","2099-12-31","N","Contracts-PVPA Research Contr.",1283,"NSERC DG - STRINGHAM",{"$f":"VLOOKUP(K843,WORKORDERS!$A:$P,16,FALSE)","v":"no"}]
[null,500,"Scholarship, Research and Creative Activity",500,"Scholarship, Research and Creative Activity",5100,"External Research Grants",20,"25100-8","SRCA NSERC","25100-8-14","SRCA NSERC DG - Wiebe 5790-101005",309,"Research Grant","2021-03-27","2099-12-31","N","Contracts-PVPA Research Contr.",1284,"NSERC DG - WIEBE 5790",{"$f":"VLOOKUP(K844,WORKORDERS!$A:$P,16,FALSE)","v":"no"}]
[null,500,"Scholarship, Research and Creative Activity",500,"Scholarship, Research and Creative Activity",5100,"External Research Grants",20,"25100-8","SRCA NSERC","25100-8-2","SRCA NSERC  DG - Baker",309,"Research Grant","2017-01-01","2099-12-31","N","Contracts-PVPA Research Contr.",1256,"NSERC DG - BAKER",{"$f":"VLOOKUP(K845,WORKORDERS!$A:$P,16,FALSE)","v":"no"}]
[null,500,"Scholarship, Research and Creative Activity",500,"Scholarship, Research and Creative Activity",5100,"External Research Grants",20,"25100-8","SRCA NSERC","25100-8-3","SRCA NSERC DG - Gill",309,"Research Grant","2017-01-01","2099-12-31","N","Contracts-PVPA Research Contr.",1278,"NSERC DG - GILL",{"$f":"VLOOKUP(K846,WORKORDERS!$A:$P,16,FALSE)","v":"no"}]
[null,500,"Scholarship, Research and Creative Activity",500,"Scholarship, Research and Creative Activity",5100,"External Research Grants",20,"25100-8","SRCA NSERC","25100-8-4","SRCA NSERC DG - Gorrell",309,"Research Grant","2017-01-01","2099-12-31","N","Contracts-PVPA Research Contr.",1281,"NSERC DG - GORRELL",{"$f":"VLOOKUP(K847,WORKORDERS!$A:$P,16,FALSE)","v":"no"}]
[null,500,"Scholarship, Research and Creative Activity",500,"Scholarship, Research and Creative Activity",5100,"External Research Grants",20,"25100-8","SRCA NSERC","25100-8-5","SRCA NSERC DG - Green",309,"Research Grant","2017-01-01","2099-12-31","N","Contracts-PVPA Research Contr.",1280,"NSERC DG - GREEN",{"$f":"VLOOKUP(K848,WORKORDERS!$A:$P,16,FALSE)","v":"no"}]
[null,500,"Scholarship, Research and Creative Activity",500,"Scholarship, Research and Creative Activity",5100,"External Research Grants",20,"25100-8","SRCA NSERC","25100-8-6","SRCA NSERC DG - Krogh",309,"Research Grant","2017-01-01","2099-12-31","N","Contracts-PVPA Research Contr.",1277,"NSERC DG - KROGH",{"$f":"VLOOKUP(K849,WORKORDERS!$A:$P,16,FALSE)","v":"no"}]
[null,500,"Scholarship, Research and Creative Activity",500,"Scholarship, Research and Creative Activity",5100,"External Research Grants",20,"25100-8","SRCA NSERC","25100-8-7","SRCA NSERC EDI - Vaugeois",309,"Research Grant","2017-01-01","2099-12-31","N","Contracts-PVPA Research Contr.",1282,"NSERC EDI - VAUGEOIS",{"$f":"VLOOKUP(K850,WORKORDERS!$A:$P,16,FALSE)","v":"no"}]
[null,500,"Scholarship, Research and Creative Activity",500,"Scholarship, Research and Creative Activity",5100,"External Research Grants",20,"25100-8","SRCA NSERC","25100-8-9","SRCA NSERC SPGN (VIU) - Floyd",309,"Research Grant","2017-01-01","2099-12-31","N","Contracts-PVPA Research Contr.",1260,"NSERC SPGN (VIU) - FLOYD",{"$f":"VLOOKUP(K851,WORKORDERS!$A:$P,16,FALSE)","v":"no"}]
[null,500,"Scholarship, Research and Creative Activity",500,"Scholarship, Research and Creative Activity",5100,"External Research Grants",20,"25100-9","SRCA RIF - Ministry","25100-9-1","SRCA RIF Ministry - AVED",309,"Research Grant","2017-01-01","2099-12-31","N","Contracts-PVPA Research Contr.",1137,"REGIONAL INITIATIVES FUND",{"$f":"VLOOKUP(K852,WORKORDERS!$A:$P,16,FALSE)","v":"no"}]
[null,500,"Scholarship, Research and Creative Activity",500,"Scholarship, Research and Creative Activity",5100,"External Research Grants",20,"25100-9","SRCA RIF - Ministry","25100-9-10","SRCA RIF - Ministry - AEST",309,"Research Grant","2017-01-01","2099-12-31","N","Contracts-PVPA Research Contr.",1141,"RIF - AEST 2019",{"$f":"VLOOKUP(K853,WORKORDERS!$A:$P,16,FALSE)","v":"no"}]
[null,500,"Scholarship, Research and Creative Activity",500,"Scholarship, Research and Creative Activity",5100,"External Research Grants",20,"25100-9","SRCA RIF - Ministry","25100-9-13","SRCA RIF - Ministry - Johnson - 100497",309,"Research Grant","2017-01-01","2099-12-31","N","Contracts-PVPA Research Contr.",1444,"RIF - JOHNSON 100497",{"$f":"VLOOKUP(K854,WORKORDERS!$A:$P,16,FALSE)","v":"no"}]
[null,500,"Scholarship, Research and Creative Activity",500,"Scholarship, Research and Creative Activity",5100,"External Research Grants",20,"25100-9","SRCA RIF - Ministry","25100-9-14","SRCA RIF - Ministry  - Dames - 100546",309,"Research Grant","2020-03-28","2099-12-31","N","Contracts-PVPA Research Contr.",1443,"RIF - DAMES 100546",{"$f":"VLOOKUP(K855,WORKORDERS!$A:$P,16,FALSE)","v":"no"}]
[null,500,"Scholarship, Research and Creative Activity",500,"Scholarship, Research and Creative Activity",5100,"External Research Grants",20,"25100-9","SRCA RIF - Ministry","25100-9-15","SRCA RIF - Ministry  - Russell 100948",309,"Research Grant","2020-03-28","2099-12-31","N","Contracts-PVPA Research Contr.",1445,"RIF - RUSSELL 100849",{"$f":"VLOOKUP(K856,WORKORDERS!$A:$P,16,FALSE)","v":"no"}]
[null,500,"Scholarship, Research and Creative Activity",500,"Scholarship, Research and Creative Activity",5100,"External Research Grants",20,"25100-9","SRCA RIF - Ministry","25100-9-16","SRCA RIF - Ministry  - Russell 101069",309,"Research Grant","2020-03-28","2099-12-31","N","Contracts-PVPA Research Contr.",1448,"RIF-(IOF)-RUSSELL 101069",{"$f":"VLOOKUP(K857,WORKORDERS!$A:$P,16,FALSE)","v":"no"}]
[null,500,"Scholarship, Research and Creative Activity",500,"Scholarship, Research and Creative Activity",5100,"External Research Grants",20,"25100-9","SRCA RIF - Ministry","25100-9-17","SRCA RIF - Ministry  - Baker 101071",309,"Research Grant","2020-03-28","2099-12-31","N","Contracts-PVPA Research Contr.",1449,"RIF - BAKER 101071",{"$f":"VLOOKUP(K858,WORKORDERS!$A:$P,16,FALSE)","v":"no"}]
[null,500,"Scholarship, Research and Creative Activity",500,"Scholarship, Research and Creative Activity",5100,"External Research Grants",20,"25100-9","SRCA RIF - Ministry","25100-9-5","SRCA RIF - Ministry - Gill",309,"Research Grant","2017-01-01","2099-12-31","N","Contracts-PVPA Research Contr.",1438,"RIF - GILL",{"$f":"VLOOKUP(K859,WORKORDERS!$A:$P,16,FALSE)","v":"no"}]
[null,500,"Scholarship, Research and Creative Activity",500,"Scholarship, Research and Creative Activity",5125,"External Research Contracts",20,"25125-1","SRCA Other contracts","25125-1-18","SRCA TULA FDN 2 - Floyd",310,"Research Contract","2017-01-01","2099-12-31","N","Contracts-PVPA Research Contr.",1381,"TULA FDN 2 - FLOYD",{"$f":"VLOOKUP(K860,WORKORDERS!$A:$P,16,FALSE)","v":"no"}]
[null,500,"Scholarship, Research and Creative Activity",500,"Scholarship, Research and Creative Activity",5125,"External Research Contracts",20,"25125-1","SRCA Other contracts","25125-1-2","SRCA BC MIN FORESTS 6 - Floyd",310,"Research Contract","2017-01-01","2099-12-31","N","Contracts-PVPA Research Contr.",1393,"BC MIN FORESTS 6 - FLOYD",{"$f":"VLOOKUP(K861,WORKORDERS!$A:$P,16,FALSE)","v":"no"}]
[null,500,"Scholarship, Research and Creative Activity",500,"Scholarship, Research and Creative Activity",5125,"External Research Contracts",20,"25125-1","SRCA Other contracts","25125-1-21","SRCA GVWD - Floyd",310,"Research Contract","2021-03-27","2099-12-31","N","Contracts-PVPA Research Contr.",4154,"GVWD-FLOYD ",{"$f":"VLOOKUP(K862,WORKORDERS!$A:$P,16,FALSE)","v":"no"}]
[null,500,"Scholarship, Research and Creative Activity",500,"Scholarship, Research and Creative Activity",5125,"External Research Contracts",20,"25125-1","SRCA Other contracts","25125-1-23","SRCA BCCAMPUS - DRURY",310,"Research Contract","2017-01-01","2099-12-31","N","Contracts-PVPA Research Contr.",4158,"BCCAMPUS - DRURY",{"$f":"VLOOKUP(K863,WORKORDERS!$A:$P,16,FALSE)","v":"no"}]
[null,500,"Scholarship, Research and Creative Activity",500,"Scholarship, Research and Creative Activity",5125,"External Research Contracts",20,"25125-1","SRCA Other contracts","25125-1-24","SRCA MITACS-RBC-ALPHONSE",310,"Research Contract","2017-01-01","2099-12-31","N","Contracts-PVPA Research Contr.",4161,"MITACS-RBC-ALPHONSE",{"$f":"VLOOKUP(K864,WORKORDERS!$A:$P,16,FALSE)","v":"no"}]
[null,500,"Scholarship, Research and Creative Activity",500,"Scholarship, Research and Creative Activity",5125,"External Research Contracts",20,"25125-1","SRCA Other contracts","25125-1-25","SRCA GENOME BC - GREEN",310,"Research Contract","2017-01-01","2099-12-31","N","Contracts-PVPA Research Contr.",4163,"GENOMEBC-GREEN",{"$f":"VLOOKUP(K865,WORKORDERS!$A:$P,16,FALSE)","v":"no"}]
[null,500,"Scholarship, Research and Creative Activity",500,"Scholarship, Research and Creative Activity",5125,"External Research Contracts",20,"25125-1","SRCA Other contracts","25125-1-26","SRCA BCSGA - GREEN",310,"Research Contract","2017-01-01","2099-12-31","N","Contracts-PVPA Research Contr.",4164,"BCSGA – GREEN",{"$f":"VLOOKUP(K866,WORKORDERS!$A:$P,16,FALSE)","v":"no"}]
[null,500,"Scholarship, Research and Creative Activity",500,"Scholarship, Research and Creative Activity",5125,"External Research Contracts",20,"25125-1","SRCA Other contracts","25125-1-28","SRCA TULA (UNBC) - Owikeno - Floyd",310,"Research Contract","2020-03-28","2099-12-31","N","Contracts-PVPA Research Contr.",1379,"TULA (UNBC) - OWIKENO - FLOYD",{"$f":"VLOOKUP(K867,WORKORDERS!$A:$P,16,FALSE)","v":"no"}]
[null,500,"Scholarship, Research and Creative Activity",500,"Scholarship, Research and Creative Activity",5125,"External Research Contracts",20,"25125-1","SRCA Other contracts","25125-1-29","SRCA RDN - Floyd - 100604",310,"Research Contract","2020-03-28","2099-12-31","N","Contracts-PVPA Research Contr.",1378,"RDN - FLOYD 100604",{"$f":"VLOOKUP(K868,WORKORDERS!$A:$P,16,FALSE)","v":"no"}]
[null,500,"Scholarship, Research and Creative Activity",500,"Scholarship, Research and Creative Activity",5125,"External Research Contracts",20,"25125-1","SRCA Other contracts","25125-1-30","SRCA IND-North-Affairs (Gitksan) Floyd 100600",310,"Research Contract","2020-03-28","2099-12-31","N","Contracts-PVPA Research Contr.",4165,"IN-NA (GITKSAN) - FLOYD ",{"$f":"VLOOKUP(K869,WORKORDERS!$A:$P,16,FALSE)","v":"no"}]
[null,500,"Scholarship, Research and Creative Activity",500,"Scholarship, Research and Creative Activity",5125,"External Research Contracts",20,"25125-1","SRCA Other contracts","25125-1-31","SRCA CVRD - Floyd 5712",310,"Research Contract","2020-03-28","2099-12-31","N","Contracts-PVPA Research Contr.",1377,"CVRD - FLOYD 5712",{"$f":"VLOOKUP(K870,WORKORDERS!$A:$P,16,FALSE)","v":"no"}]
[null,500,"Scholarship, Research and Creative Activity",500,"Scholarship, Research and Creative Activity",5125,"External Research Contracts",20,"25125-1","SRCA Other contracts","25125-1-32","SRCA MIN HLTH - SRCA 5832",310,"Research Contract","2020-03-28","2099-12-31","N","Contracts-PVPA Research Contr.",1330,"MIN HLTH - SRCA 5832",{"$f":"VLOOKUP(K871,WORKORDERS!$A:$P,16,FALSE)","v":"no"}]
[null,500,"Scholarship, Research and Creative Activity",500,"Scholarship, Research and Creative Activity",5125,"External Research Contracts",20,"25125-1","SRCA Other contracts","25125-1-34","SRCA BC-CMPS - Vinden 4589",310,"Research Contract","2020-03-28","2099-12-31","N","Contracts-PVPA Research Contr.",4167,"BC-CMPS - VINDEN 4167",{"$f":"VLOOKUP(K872,WORKORDERS!$A:$P,16,FALSE)","v":"no"}]
[null,500,"Scholarship, Research and Creative Activity",500,"Scholarship, Research and Creative Activity",5125,"External Research Contracts",20,"25125-1","SRCA Other contracts","25125-1-35","SRCA BC SUPP (UVIC) - Blaney 5817",310,"Research Contract","2020-03-28","2099-12-31","N","Contracts-PVPA Research Contr.",1398,"BC SUPP (UVIC) - BLANEY 5817",{"$f":"VLOOKUP(K873,WORKORDERS!$A:$P,16,FALSE)","v":"no"}]
[null,500,"Scholarship, Research and Creative Activity",500,"Scholarship, Research and Creative Activity",5125,"External Research Contracts",20,"25125-1","SRCA Other contracts","25125-1-36","SRCA IH - GILL 101344",310,"Research Contract","2021-03-27","2099-12-31","N",{"$error":"#N/A"},{"$error":"#N/A"},{"$error":"#N/A"},{"$f":"VLOOKUP(K874,WORKORDERS!$A:$P,16,FALSE)","v":"no"}]
[null,500,"Scholarship, Research and Creative Activity",500,"Scholarship, Research and Creative Activity",5125,"External Research Contracts",20,"25125-1","SRCA Other contracts","25125-1-5","SRCA DFO ACRDP - Dudas",310,"Research Contract","2017-01-01","2099-12-31","N","Contracts-PVPA Research Contr.",1324,"DFO ACRDP-DUDAS",{"$f":"VLOOKUP(K875,WORKORDERS!$A:$P,16,FALSE)","v":"no"}]
[null,500,"Scholarship, Research and Creative Activity",500,"Scholarship, Research and Creative Activity",5125,"External Research Contracts",20,"25125-1","SRCA Other contracts","25125-1-9","SRCA G-H JOURNAL - Warsh",310,"Research Contract","2017-01-01","2099-12-31","N","Contracts-PVPA Research Contr.",1387,"G-H JOURNAL - WARSH",{"$f":"VLOOKUP(K876,WORKORDERS!$A:$P,16,FALSE)","v":"no"}]
[null,500,"Scholarship, Research and Creative Activity",500,"Scholarship, Research and Creative Activity",5140,"Externally Funded Capital Projects",50,"55140-1","SRCA CFI - Capital","55140-1-1","SRCA Lane CFI - BCKDF",500,"Capital - General","2020-03-28","2099-12-31","N","Capital",9134,"LANE CFI - BCKDF EXP",{"$f":"VLOOKUP(K877,WORKORDERS!$A:$P,16,FALSE)","v":"no"}]
[null,500,"Scholarship, Research and Creative Activity",500,"Scholarship, Research and Creative Activity",5140,"Externally Funded Capital Projects",50,"55140-1","SRCA CFI - Capital","55140-1-2","SRCA Wager CFI ",500,"Capital - General","2021-03-27","2099-12-31","N","Capital",9023,"CFI - WAGER ",{"$f":"VLOOKUP(K878,WORKORDERS!$A:$P,16,FALSE)","v":"no"}]
[null,500,"Scholarship, Research and Creative Activity",500,"Scholarship, Research and Creative Activity",5140,"Externally Funded Capital Projects",50,"55140-1","SRCA CFI - Capital","55140-1-3","SRCA Wood CFI ",500,"Capital - General","2021-03-27","2099-12-31","N","Capital",9024,"CFI - WOOD ",{"$f":"VLOOKUP(K879,WORKORDERS!$A:$P,16,FALSE)","v":"no"}]
[null,500,"Scholarship, Research and Creative Activity",500,"Scholarship, Research and Creative Activity",5140,"Externally Funded Capital Projects",50,"55140-1","SRCA CFI - Capital","55140-1-4","SRCA Gill CFI - BCKDF ",500,"Capital - General","2021-03-27","2099-12-31","N","Capital",9131,"GILL CFI-BCKDF EXP ",{"$f":"VLOOKUP(K880,WORKORDERS!$A:$P,16,FALSE)","v":"no"}]
[null,500,"Scholarship, Research and Creative Activity",500,"Scholarship, Research and Creative Activity",5140,"Externally Funded Capital Projects",50,"55140-1","SRCA CFI - Capital","55140-1-5","SRCA Russell CFI - BCKDF ",500,"Capital - General","2021-03-27","2099-12-31","N","Capital",9137,"RUSSELL CFI-BCKDF EXP",{"$f":"VLOOKUP(K881,WORKORDERS!$A:$P,16,FALSE)","v":"no"}]
[null,500,"Scholarship, Research and Creative Activity",500,"Scholarship, Research and Creative Activity",5140,"Externally Funded Capital Projects",50,"55140-1","SRCA CFI - Capital","55140-1-6","SRCA Green CFI",500,"Capital - General","2021-03-27","2099-12-31","N","Capital",9012,"CFI EXPENSES - GREEN",{"$f":"VLOOKUP(K882,WORKORDERS!$A:$P,16,FALSE)","v":"no"}]
[null,500,"Scholarship, Research and Creative Activity",500,"Scholarship, Research and Creative Activity",5140,"Externally Funded Capital Projects",50,"55140-1","SRCA CFI - Capital","55140-1-7","SRCA Janes CFI - BCKDF ",500,"Capital - General","2021-03-27","2099-12-31","N","Capital",9140,"JANES - CFI-BCKDF EXP",{"$f":"VLOOKUP(K883,WORKORDERS!$A:$P,16,FALSE)","v":"no"}]
[null,500,"Scholarship, Research and Creative Activity",500,"Scholarship, Research and Creative Activity",5140,"Externally Funded Capital Projects",50,"55140-1","SRCA CFI - Capital","55140-1-8","SRCA McCunn CFI - BCKDF ",500,"Capital - General","2021-03-27","2099-12-31","N","Capital",9143,"MCCUNN CFI-BCKDF EXP ",{"$f":"VLOOKUP(K884,WORKORDERS!$A:$P,16,FALSE)","v":"no"}]
[null,500,"Scholarship, Research and Creative Activity",500,"Scholarship, Research and Creative Activity",5140,"Externally Funded Capital Projects",50,"55140-2","SRCA Capital - Other ","55140-2-1","SRCA Ministry of Health - Gill 5920",500,"Capital - General","2021-03-27","2099-12-31","N","Capital",9130,"MIN HLTH - GILL 5920",{"$f":"VLOOKUP(K885,WORKORDERS!$A:$P,16,FALSE)","v":"no"}]
[null,500,"Scholarship, Research and Creative Activity",515,"Mt Arrowsmith Biosphere Reserve Research Institute",5150,"Mt Arrowsmith Biosphere Reserve Research Institute",20,"25150-1","SRCA MABRRI - Administration","25150-1-1","SRCA MABRRI - Administration",300,"Research Contract Administration","2017-01-01","2099-12-31","N","Contracts-PVPA Research Contr.",1101,"MT.ARROWSMITH RES. INST",{"$f":"VLOOKUP(K886,WORKORDERS!$A:$P,16,FALSE)","v":"no"}]
[null,500,"Scholarship, Research and Creative Activity",515,"Mt Arrowsmith Biosphere Reserve Research Institute",5150,"Mt Arrowsmith Biosphere Reserve Research Institute",20,"25150-1","SRCA MABRRI - Administration","25150-1-3","SRCA MABRRI - Research Contract Holding",300,"Research Contract Administration","2020-03-28","2099-12-31","N","Contracts-PVPA Research Contr.",4200,"MABRRI HOLDING ACCOUNT",{"$f":"VLOOKUP(K887,WORKORDERS!$A:$P,16,FALSE)","v":"no"}]
[null,500,"Scholarship, Research and Creative Activity",515,"Mt Arrowsmith Biosphere Reserve Research Institute",5152,"MABRRI External Grants",20,"25152-1","SRCA MABRRI RIF REFBC","25152-1-4","SRCA MABRRI RIF REFBC - Lafreniere 100614",309,"Research Grant","2020-03-28","2099-12-31","N","Contracts-PVPA Research Contr.",4234,"RIF LAFRENIERE 100614",{"$f":"VLOOKUP(K888,WORKORDERS!$A:$P,16,FALSE)","v":"no"}]
[null,500,"Scholarship, Research and Creative Activity",515,"Mt Arrowsmith Biosphere Reserve Research Institute",5152,"MABRRI External Grants",20,"25152-1","SRCA MABRRI RIF REFBC","25152-1-5","SRCA MABRRI RIF REFBC - Bowes 100598",309,"Research Grant","2020-03-28","2099-12-31","N","Contracts-PVPA Research Contr.",4230,"RIF - BOWES 100598",{"$f":"VLOOKUP(K889,WORKORDERS!$A:$P,16,FALSE)","v":"no"}]
[null,500,"Scholarship, Research and Creative Activity",515,"Mt Arrowsmith Biosphere Reserve Research Institute",5152,"MABRRI External Grants",20,"25152-1","SRCA MABRRI RIF REFBC","25152-1-6","SRCA MABRRI RIF REFBC - Shaw 100740",309,"Research Grant","2020-03-28","2099-12-31","N","Contracts-PVPA Research Contr.",4241,"RIF - SHAW 100740",{"$f":"VLOOKUP(K890,WORKORDERS!$A:$P,16,FALSE)","v":"no"}]
[null,500,"Scholarship, Research and Creative Activity",515,"Mt Arrowsmith Biosphere Reserve Research Institute",5152,"MABRRI External Grants",20,"25152-1","SRCA MABRRI RIF REFBC","25152-1-7","SRCA MABRRI RIF REFBC - Shaw 101098",309,"Research Grant","2020-03-28","2099-12-31","N","Contracts-PVPA Research Contr.",4246,"RIF - SHAW 101098",{"$f":"VLOOKUP(K891,WORKORDERS!$A:$P,16,FALSE)","v":"no"}]
[null,500,"Scholarship, Research and Creative Activity",515,"Mt Arrowsmith Biosphere Reserve Research Institute",5152,"MABRRI External Grants",20,"25152-2","SRCA MABRRI SSHRC","25152-2-1","SRCA MABRRI SSHRC IRCR CG - Shaw",309,"Research Grant","2017-01-01","2099-12-31","N","Contracts-PVPA Research Contr.",4233,"SSHRC IRCR CG - SHAW",{"$f":"VLOOKUP(K892,WORKORDERS!$A:$P,16,FALSE)","v":"no"}]
[null,500,"Scholarship, Research and Creative Activity",515,"Mt Arrowsmith Biosphere Reserve Research Institute",5152,"MABRRI External Grants",20,"25152-2","SRCA MABRRI SSHRC","25152-2-2","SRCA MABRRI SSHRC NCE (CMN) - Shaw",309,"Research Grant","2017-01-01","2099-12-31","N","Contracts-PVPA Research Contr.",4231,"NCE (CMN) SHAW",{"$f":"VLOOKUP(K893,WORKORDERS!$A:$P,16,FALSE)","v":"no"}]
[null,500,"Scholarship, Research and Creative Activity",515,"Mt Arrowsmith Biosphere Reserve Research Institute",5152,"MABRRI External Grants",20,"25152-3","SRCA MABRRI Grant - Other","25152-3-3","SRCA MABRRI SITKA2019 - Shaw",309,"Research Grant","2017-01-01","2099-12-31","N","Contracts-PVPA Research Contr.",4215,"SITKA2019-SHAW",{"$f":"VLOOKUP(K894,WORKORDERS!$A:$P,16,FALSE)","v":"no"}]
[null,500,"Scholarship, Research and Creative Activity",515,"Mt Arrowsmith Biosphere Reserve Research Institute",5152,"MABRRI External Grants",20,"25152-3","SRCA MABRRI Grant - Other","25152-3-4","SRCA MABRRI St John Legacy Fdn - Shaw",309,"Research Grant","2017-01-01","2099-12-31","N","Contracts-PVPA Research Contr.",4207,"ST JOHN LEGACY FDN - SHAW",{"$f":"VLOOKUP(K895,WORKORDERS!$A:$P,16,FALSE)","v":"no"}]
[null,500,"Scholarship, Research and Creative Activity",515,"Mt Arrowsmith Biosphere Reserve Research Institute",5152,"MABRRI External Grants",20,"25152-3","SRCA MABRRI Grant - Other","25152-3-6","SRCA MABRRI Grant - Other Mitacs Accelerate (Fletcher) - Shaw 5763",309,"Research Grant","2020-03-28","2099-12-31","N","Contracts-PVPA Research Contr.",4239,"MITACS ACC - SHAW 5763",{"$f":"VLOOKUP(K896,WORKORDERS!$A:$P,16,FALSE)","v":"no"}]
[null,500,"Scholarship, Research and Creative Activity",515,"Mt Arrowsmith Biosphere Reserve Research Institute",5152,"MABRRI External Grants",20,"25152-3","SRCA MABRRI Grant - Other","25152-3-7","SRCA MABRRI Grant - Other Molson Fnd - Shaw 5786",309,"Research Grant","2020-03-28","2099-12-31","N","Contracts-PVPA Research Contr.",4244,"MOLSON FND - SHAW 5786",{"$f":"VLOOKUP(K897,WORKORDERS!$A:$P,16,FALSE)","v":"no"}]
[null,500,"Scholarship, Research and Creative Activity",515,"Mt Arrowsmith Biosphere Reserve Research Institute",5152,"MABRRI External Grants",20,"25152-3","SRCA MABRRI Grant - Other","25152-3-8","SRCA MABRRI Grant - Other CMN - Stipend - Shaw 5851",309,"Research Grant","2020-03-28","2099-12-31","N","Contracts-PVPA Research Contr.",4243,"CMN-STIPEND-SHAW 5851",{"$f":"VLOOKUP(K898,WORKORDERS!$A:$P,16,FALSE)","v":"no"}]
[null,500,"Scholarship, Research and Creative Activity",515,"Mt Arrowsmith Biosphere Reserve Research Institute",5152,"MABRRI External Grants",20,"25152-3","SRCA MABRRI Grant - Other","25152-3-9","SRCA MABRRI Grant - Other ESDC - SHAW 5847",309,"Research Grant","2020-03-28","2099-12-31","N","Contracts-PVPA Research Contr.",4248,"ESDC - SHAW 5847",{"$f":"VLOOKUP(K899,WORKORDERS!$A:$P,16,FALSE)","v":"no"}]
[null,500,"Scholarship, Research and Creative Activity",515,"Mt Arrowsmith Biosphere Reserve Research Institute",5152,"MABRRI External Grants",20,"25152-4","SRCA MABRRI CFI","25152-4-1","SRCA MABRRI CFI - IOF Estuaries (Shaw)",309,"Research Grant","2017-01-01","2099-12-31","N","Contracts-PVPA Research Contr.",4208,"CFI IOF ESTUARIES (SHAW)",{"$f":"VLOOKUP(K900,WORKORDERS!$A:$P,16,FALSE)","v":"no"}]
[null,500,"Scholarship, Research and Creative Activity",515,"Mt Arrowsmith Biosphere Reserve Research Institute",5155,"MABRRI External Research Contracts",20,"25155-1","SRCA MABRRI Contracts","25155-1-12","SRCA MABRRI RDN - Shaw",310,"Research Contract","2017-01-01","2099-12-31","N","Contracts-PVPA Research Contr.",4206,"RDN-SHAW ",{"$f":"VLOOKUP(K901,WORKORDERS!$A:$P,16,FALSE)","v":"no"}]
[null,500,"Scholarship, Research and Creative Activity",515,"Mt Arrowsmith Biosphere Reserve Research Institute",5155,"MABRRI External Research Contracts",20,"25155-1","SRCA MABRRI Contracts","25155-1-13","SRCA MABRRI REFBC - Shaw",310,"Research Contract","2017-01-01","2099-12-31","N","Contracts-PVPA Research Contr.",4213,"REFBC - SHAW",{"$f":"VLOOKUP(K902,WORKORDERS!$A:$P,16,FALSE)","v":"no"}]
[null,500,"Scholarship, Research and Creative Activity",515,"Mt Arrowsmith Biosphere Reserve Research Institute",5155,"MABRRI External Research Contracts",20,"25155-1","SRCA MABRRI Contracts","25155-1-16","SRCA MABRRI PSF-FORAGE-SHAW",310,"Research Contract","2017-01-01","2099-12-31","N","Contracts-PVPA Research Contr.",4219,"PSF-FORAGE-SHAW 5907",{"$f":"VLOOKUP(K903,WORKORDERS!$A:$P,16,FALSE)","v":"no"}]
[null,500,"Scholarship, Research and Creative Activity",515,"Mt Arrowsmith Biosphere Reserve Research Institute",5155,"MABRRI External Research Contracts",20,"25155-1","SRCA MABRRI Contracts","25155-1-17","SRCA MABRRI  IN-SERV-CAN(CANDO)-SHAW",310,"Research Contract","2017-01-01","2099-12-31","N","Contracts-PVPA Research Contr.",4220,"IN-SERV-CAN(CANDO)-SHAW",{"$f":"VLOOKUP(K904,WORKORDERS!$A:$P,16,FALSE)","v":"no"}]
[null,500,"Scholarship, Research and Creative Activity",515,"Mt Arrowsmith Biosphere Reserve Research Institute",5155,"MABRRI External Research Contracts",20,"25155-1","SRCA MABRRI Contracts","25155-1-21","SRCA MABRRI CITY NAN DKP - Shaw",310,"Research Contract","2017-01-01","2099-12-31","N","Contracts-PVPA Research Contr.",4223,"CITY NAN DKP-SHAW",{"$f":"VLOOKUP(K905,WORKORDERS!$A:$P,16,FALSE)","v":"no"}]
[null,500,"Scholarship, Research and Creative Activity",515,"Mt Arrowsmith Biosphere Reserve Research Institute",5155,"MABRRI External Research Contracts",20,"25155-1","SRCA MABRRI Contracts","25155-1-22","SRCA MABRRI Port Alberni-Shaw 5697",310,"Research Contract","2017-01-01","2099-12-31","N","Contracts-PVPA Research Contr.",4201,"PORT ALBERNI-SHAW 5697",{"$f":"VLOOKUP(K906,WORKORDERS!$A:$P,16,FALSE)","v":"no"}]
[null,500,"Scholarship, Research and Creative Activity",515,"Mt Arrowsmith Biosphere Reserve Research Institute",5155,"MABRRI External Research Contracts",20,"25155-1","SRCA MABRRI Contracts","25155-1-23","SRCA MABRRI Komoks-Shaw 5707",310,"Research Contract","2017-01-01","2099-12-31","N","Contracts-PVPA Research Contr.",4202,"KOMOKS-SHAW 5707",{"$f":"VLOOKUP(K907,WORKORDERS!$A:$P,16,FALSE)","v":"no"}]
[null,500,"Scholarship, Research and Creative Activity",515,"Mt Arrowsmith Biosphere Reserve Research Institute",5155,"MABRRI External Research Contracts",20,"25155-1","SRCA MABRRI Contracts","25155-1-27","SRCA MABRRI VI Economic Alliance - Sakaki",310,"Research Contract","2017-01-01","2099-12-31","N","Contracts-PVPA Research Contr.",4211,"VI ECON ALLIANCE-SAKAKI",{"$f":"VLOOKUP(K908,WORKORDERS!$A:$P,16,FALSE)","v":"no"}]
[null,500,"Scholarship, Research and Creative Activity",515,"Mt Arrowsmith Biosphere Reserve Research Institute",5155,"MABRRI External Research Contracts",20,"25155-1","SRCA MABRRI Contracts","25155-1-29","SRCA MABRRI TseshahtFN - Shaw 100734",310,"Research Contract","2020-03-28","2099-12-31","N","Contracts-PVPA Research Contr.",4236,"TFN - SHAW 100734",{"$f":"VLOOKUP(K909,WORKORDERS!$A:$P,16,FALSE)","v":"no"}]
[null,500,"Scholarship, Research and Creative Activity",515,"Mt Arrowsmith Biosphere Reserve Research Institute",5155,"MABRRI External Research Contracts",20,"25155-1","SRCA MABRRI Contracts","25155-1-30","SRCA MABRRI MECCS - Shaw 5665",310,"Research Contract","2020-03-28","2099-12-31","N","Contracts-PVPA Research Contr.",4237,"MECCS - SHAW 5665",{"$f":"VLOOKUP(K910,WORKORDERS!$A:$P,16,FALSE)","v":"no"}]
[null,500,"Scholarship, Research and Creative Activity",515,"Mt Arrowsmith Biosphere Reserve Research Institute",5155,"MABRRI External Research Contracts",20,"25155-1","SRCA MABRRI Contracts","25155-1-31","SRCA MABRRI CMN - Shaw 5747",310,"Research Contract","2020-03-28","2099-12-31","N","Contracts-PVPA Research Contr.",4238,"CMN - SHAW 5747",{"$f":"VLOOKUP(K911,WORKORDERS!$A:$P,16,FALSE)","v":"no"}]
[null,500,"Scholarship, Research and Creative Activity",515,"Mt Arrowsmith Biosphere Reserve Research Institute",5155,"MABRRI External Research Contracts",20,"25155-1","SRCA MABRRI Contracts","25155-1-32","SRCA MABRRI WWF - Shaw 5792",310,"Research Contract","2020-03-28","2099-12-31","N","Contracts-PVPA Research Contr.",4240,"WWF - SHAW 5792",{"$f":"VLOOKUP(K912,WORKORDERS!$A:$P,16,FALSE)","v":"no"}]
[null,500,"Scholarship, Research and Creative Activity",515,"Mt Arrowsmith Biosphere Reserve Research Institute",5155,"MABRRI External Research Contracts",20,"25155-1","SRCA MABRRI Contracts","25155-1-33","SRCA MABRRI ACRD - Shaw 5818",310,"Research Contract","2020-03-28","2099-12-31","N","Contracts-PVPA Research Contr.",4242,"ACRD - SHAW 5818",{"$f":"VLOOKUP(K913,WORKORDERS!$A:$P,16,FALSE)","v":"no"}]
[null,500,"Scholarship, Research and Creative Activity",515,"Mt Arrowsmith Biosphere Reserve Research Institute",5155,"MABRRI External Research Contracts",20,"25155-1","SRCA MABRRI Contracts","25155-1-34","SRCA MABRRI DoL - Shaw 5843",310,"Research Contract","2020-03-28","2099-12-31","N","Contracts-PVPA Research Contr.",4245,"DOL - SHAW 5843",{"$f":"VLOOKUP(K914,WORKORDERS!$A:$P,16,FALSE)","v":"no"}]
[null,500,"Scholarship, Research and Creative Activity",515,"Mt Arrowsmith Biosphere Reserve Research Institute",5155,"MABRRI External Research Contracts",20,"25155-1","SRCA MABRRI Contracts","25155-1-36","SRCA MABRRI RDN - Shaw 5877",310,"Research Contract","2021-03-27","2099-12-31","N","Contracts-PVPA Research Contr.",4249,"RDN - SHAW 5877",{"$f":"VLOOKUP(K915,WORKORDERS!$A:$P,16,FALSE)","v":"no"}]
[null,500,"Scholarship, Research and Creative Activity",515,"Mt Arrowsmith Biosphere Reserve Research Institute",5155,"MABRRI External Research Contracts",20,"25155-1","SRCA MABRRI Contracts","25155-1-37","SRCA MABRRI NEDC - Shaw 5887",310,"Research Contract","2021-03-27","2099-12-31","N","Contracts-PVPA Research Contr.",4250,"NEDC - SHAW 5887",{"$f":"VLOOKUP(K916,WORKORDERS!$A:$P,16,FALSE)","v":"no"}]
[null,500,"Scholarship, Research and Creative Activity",515,"Mt Arrowsmith Biosphere Reserve Research Institute",5155,"MABRRI External Research Contracts",20,"25155-1","SRCA MABRRI Contracts","25155-1-38","SRCA MABRRI CANDO - Shaw 5902-5904",310,"Research Contract","2021-03-27","2099-12-31","N","Contracts-PVPA Research Contr.",4251,"CANDO - SHAW 5902-5904",{"$f":"VLOOKUP(K917,WORKORDERS!$A:$P,16,FALSE)","v":"no"}]
[null,500,"Scholarship, Research and Creative Activity",515,"Mt Arrowsmith Biosphere Reserve Research Institute",5155,"MABRRI External Research Contracts",20,"25155-1","SRCA MABRRI Contracts","25155-1-39","SRCA MABRRI Islands Trust - Shaw 5908",310,"Research Contract","2021-03-27","2099-12-31","N","Contracts-PVPA Research Contr.",4252,"ISLANDS TRUST - SHAW 5908",{"$f":"VLOOKUP(K918,WORKORDERS!$A:$P,16,FALSE)","v":"no"}]
[null,500,"Scholarship, Research and Creative Activity",515,"Mt Arrowsmith Biosphere Reserve Research Institute",5155,"MABRRI External Research Contracts",20,"25155-1","SRCA MABRRI Contracts","25155-1-40","SRCA MABRRI BC Parks - Shaw 100968",310,"Research Contract","2021-03-27","2099-12-31","N",{"$error":"#N/A"},{"$error":"#N/A"},{"$error":"#N/A"},{"$f":"VLOOKUP(K919,WORKORDERS!$A:$P,16,FALSE)","v":"no"}]
[null,500,"Scholarship, Research and Creative Activity",515,"Mt Arrowsmith Biosphere Reserve Research Institute",5155,"MABRRI External Research Contracts",20,"25155-1","SRCA MABRRI Contracts","25155-1-9","SRCA MABRRI PFWSBC - Shaw",310,"Research Contract","2017-01-01","2099-12-31","N","Contracts-PVPA Research Contr.",4212,"PFWSBC-SHAW",{"$f":"VLOOKUP(K920,WORKORDERS!$A:$P,16,FALSE)","v":"no"}]
[null,550,"Student Affairs",550,"Student Affairs Division",5500,"Student Affairs Division",10,"15500-1","SA Student Affairs Division","15500-1-1","SA Student Affairs Division",200,"Academic Administration","2017-01-01","2099-12-31","N","Student Affairs",6302,"EX. DIR. STUDENT AFFAIRS",{"$f":"VLOOKUP(K921,WORKORDERS!$A:$P,16,FALSE)","v":"no"}]
[null,550,"Student Affairs",550,"Student Affairs Division",5501,"Student Affairs Division - Initiatives",10,"15501-1","SA Student Affairs Division - Initiatives","15501-1-1","SA Student Affairs Division - Initiatives",217,"Student Support and Services","2021-07-01","2099-12-31","P",{"$error":"#N/A"},{"$error":"#N/A"},{"$error":"#N/A"},{"$f":"VLOOKUP(K922,WORKORDERS!$A:$P,16,FALSE)","v":"no"}]
[null,550,"Student Affairs",550,"Student Affairs Division",5501,"Student Affairs Division - Initiatives",10,"15501-2","SA Prior Learning Assessment","15501-2-1","SA Prior Learning Assessment",217,"Student Support and Services","2017-01-01","2099-12-31","N","Student Affairs",6326,"PRIOR LEARNING ASSESSMENT",{"$f":"VLOOKUP(K923,WORKORDERS!$A:$P,16,FALSE)","v":"no"}]
[null,550,"Student Affairs",550,"Student Affairs Division",5501,"Student Affairs Division - Initiatives",10,"15501-3","SA Community Engagement","15501-3-1","SA Community Engagement",217,"Student Support and Services","2020-03-28","2099-12-31","N","Student Affairs",6313,"COMMUNITY ENGAGEMENT",{"$f":"VLOOKUP(K924,WORKORDERS!$A:$P,16,FALSE)","v":"no"}]
[null,550,"Student Affairs",550,"Student Affairs Division",5501,"Student Affairs Division - Initiatives",50,"55501-1","SA Minor Capital","55501-1-1","SA Minor Capital",500,"Capital - General","2021-07-01","2099-12-31","P",{"$error":"#N/A"},{"$error":"#N/A"},{"$error":"#N/A"},{"$f":"VLOOKUP(K925,WORKORDERS!$A:$P,16,FALSE)","v":"no"}]
[null,550,"Student Affairs",551,"Student Affairs Department",5510,"Student Services Department",10,"15510-1","SA Student Services Department","15510-1-1","SA Student Services Department",200,"Academic Administration","2021-07-01","2099-12-31","P",{"$error":"#N/A"},{"$error":"#N/A"},{"$error":"#N/A"},{"$f":"VLOOKUP(K926,WORKORDERS!$A:$P,16,FALSE)","v":"no"}]
[null,550,"Student Affairs",551,"Student Affairs Department",5515,"Student Services Advising",10,"15515-1","SA Student Services Advising","15515-1-1","SA Student Services Advising",204,"Advising","2021-07-01","2099-12-31","P",{"$error":"#N/A"},{"$error":"#N/A"},{"$error":"#N/A"},{"$f":"VLOOKUP(K927,WORKORDERS!$A:$P,16,FALSE)","v":"no"}]
[null,550,"Student Affairs",551,"Student Affairs Department",5516,"Assessment and Invigilation",10,"15516-1","SA Assessment and Invigilation","15516-1-1","SA Assessment and Invigilation",217,"Student Support and Services","2017-01-01","2099-12-31","N","Student Affairs",6340,"EDUCATIONAL ASSESSMENTS",{"$f":"VLOOKUP(K928,WORKORDERS!$A:$P,16,FALSE)","v":"no"}]
[null,550,"Student Affairs",551,"Student Affairs Department",5516,"Assessment and Invigilation",10,"15516-1","SA Assessment and Invigilation","15516-1-2","SA Peer Helpers",217,"Student Support and Services","2017-01-01","2099-12-31","N","Student Affairs",6337,"PEER HELPERS",{"$f":"VLOOKUP(K929,WORKORDERS!$A:$P,16,FALSE)","v":"no"}]
[null,550,"Student Affairs",551,"Student Affairs Department",5516,"Assessment and Invigilation",20,"25516-1","SA Assessment and Invigilation","25516-1-1","SA Peer to Peer Connections",217,"Student Support and Services","2020-03-28","2099-12-31","N","Contracts - Student Affairs",6502,"PEER TO PEER CONNECTIONS",{"$f":"VLOOKUP(K930,WORKORDERS!$A:$P,16,FALSE)","v":"no"}]
[null,550,"Student Affairs",551,"Student Affairs Department",5517,"Student Services Counselling",10,"15517-1","SA Student Services Counselling","15517-1-1","SA Student Services Counselling",217,"Student Support and Services","2017-01-01","2099-12-31","N","Student Affairs",6320,"COUNSELLING",{"$f":"VLOOKUP(K931,WORKORDERS!$A:$P,16,FALSE)","v":"no"}]
[null,550,"Student Affairs",551,"Student Affairs Department",5518,"Accessibility Services",10,"15518-1","SA Accessibility Services","15518-1-1","SA Accessibility Services",217,"Student Support and Services","2017-01-01","2099-12-31","N","Student Affairs",6335,"ACCCESSIBILITY SERVICES",{"$f":"VLOOKUP(K932,WORKORDERS!$A:$P,16,FALSE)","v":"no"}]
[null,550,"Student Affairs",551,"Student Affairs Department",5518,"Accessibility Services",10,"15518-1","SA Accessibility Services","15518-1-2","SA Extraordinary Accommodations",217,"Student Support and Services","2017-01-01","2099-12-31","N","Student Affairs",6334,"EXTRAORDINARY ACCOMMODATI",{"$f":"VLOOKUP(K933,WORKORDERS!$A:$P,16,FALSE)","v":"no"}]
[null,550,"Student Affairs",551,"Student Affairs Department",5518,"Accessibility Services",10,"15518-1","SA Accessibility Services","15518-1-3","SA International Accessibility Services",217,"Student Support and Services","2017-01-01","2099-12-31","N","Student Affairs",6339,"INTED ACCESSBLTY SERVICES",{"$f":"VLOOKUP(K934,WORKORDERS!$A:$P,16,FALSE)","v":"no"}]
[null,550,"Student Affairs",551,"Student Affairs Department",5518,"Accessibility Services",10,"15518-1","SA Accessibility Services","15518-1-4","SA Interpreting",217,"Student Support and Services","2017-01-01","2099-12-31","N","Student Affairs",6336,"INTERPRETING SERVICES",{"$f":"VLOOKUP(K935,WORKORDERS!$A:$P,16,FALSE)","v":"no"}]
[null,550,"Student Affairs",551,"Student Affairs Department",5518,"Accessibility Services",10,"15518-1","SA Accessibility Services","15518-1-5","SA Learning Disability Assessment",217,"Student Support and Services","2017-01-01","2099-12-31","N","Student Affairs",6338,"LEARNING DISABIL.ASMT N/R",{"$f":"VLOOKUP(K936,WORKORDERS!$A:$P,16,FALSE)","v":"no"}]
[null,550,"Student Affairs",551,"Student Affairs Department",5518,"Accessibility Services",20,"25518-1","SA Disability Access Services - Other","25518-1-1","SA APSD / Ministry funding",217,"Student Support and Services","2017-01-01","2099-12-31","N","Contracts - Student Affairs",6516,"APSD/MINISTRY ",{"$f":"VLOOKUP(K937,WORKORDERS!$A:$P,16,FALSE)","v":"no"}]
[null,550,"Student Affairs",551,"Student Affairs Department",5518,"Accessibility Services",20,"25518-1","SA Disability Access Services - Other","25518-1-2","SA Disability Access Trust Funds",217,"Student Support and Services","2017-01-01","2099-12-31","N","Contracts - Student Affairs",9600,"ACCESS TRUST FUND",{"$f":"VLOOKUP(K938,WORKORDERS!$A:$P,16,FALSE)","v":"no"}]
[null,550,"Student Affairs",551,"Student Affairs Department",5518,"Accessibility Services",20,"25518-1","SA Disability Access Services - Other","25518-1-3","SA Disability Services Proceeds",217,"Student Support and Services","2020-03-28","2099-12-31","N","Contracts - Student Affairs",6517,"DISABILITY SERV. PROCEEDS",{"$f":"VLOOKUP(K939,WORKORDERS!$A:$P,16,FALSE)","v":"no"}]
[null,550,"Student Affairs",551,"Student Affairs Department",5519,"Financial Aid and Awards",10,"15519-1","SA Financial Aid","15519-1-1","SA Financial Aid",217,"Student Support and Services","2017-01-01","2099-12-31","N","Student Affairs",6303,"FINANCIAL AID",{"$f":"VLOOKUP(K940,WORKORDERS!$A:$P,16,FALSE)","v":"no"}]
[null,550,"Student Affairs",551,"Student Affairs Department",5519,"Financial Aid and Awards",10,"15519-2","SA Financial Aid - Scholarships and Bursaries","15519-2-1","SA Foundation Matching",217,"Student Support and Services","2017-01-01","2099-12-31","N","Student Affairs",6307,"FOUNDATION S+B MATCHING",{"$f":"VLOOKUP(K941,WORKORDERS!$A:$P,16,FALSE)","v":"no"}]
[null,550,"Student Affairs",551,"Student Affairs Department",5519,"Financial Aid and Awards",10,"15519-2","SA Financial Aid - Scholarships and Bursaries","15519-2-2","SA Scholarships",217,"Student Support and Services","2017-01-01","2099-12-31","N","Student Affairs",6397,"SCHOLARSHIPS",{"$f":"VLOOKUP(K942,WORKORDERS!$A:$P,16,FALSE)","v":"no"}]
[null,550,"Student Affairs",551,"Student Affairs Department",5519,"Financial Aid and Awards",10,"15519-2","SA Financial Aid - Scholarships and Bursaries","15519-2-3","SA Executive Scholarships",217,"Student Support and Services","2017-01-01","2099-12-31","N","Student Affairs",6398,"S/B EXECUTIVE FUNDS",{"$f":"VLOOKUP(K943,WORKORDERS!$A:$P,16,FALSE)","v":"no"}]
[null,550,"Student Affairs",551,"Student Affairs Department",5519,"Financial Aid and Awards",10,"15519-2","SA Financial Aid - Scholarships and Bursaries","15519-2-4","SA Tuition Bursaries",217,"Student Support and Services","2017-01-01","2099-12-31","N","Student Affairs",6399,"TUITION BURSARY",{"$f":"VLOOKUP(K944,WORKORDERS!$A:$P,16,FALSE)","v":"no"}]
[null,550,"Student Affairs",551,"Student Affairs Department",5519,"Financial Aid and Awards",10,"15519-2","SA Financial Aid - Scholarships and Bursaries","15519-2-5","SA Awards - VIU Foundation",217,"Student Support and Services","2021-03-27","2099-12-31","N",{"$error":"#N/A"},{"$error":"#N/A"},{"$error":"#N/A"},{"$f":"VLOOKUP(K945,WORKORDERS!$A:$P,16,FALSE)","v":"no"}]
[null,550,"Student Affairs",551,"Student Affairs Department",5519,"Financial Aid and Awards",20,"25519-1","SA Financial Aid","25519-1-1","SA Financial Aid - ABESAP",217,"Student Support and Services","2017-01-01","2099-12-31","N","Contracts - Student Affairs",9610,"ABESAP ",{"$f":"VLOOKUP(K946,WORKORDERS!$A:$P,16,FALSE)","v":"no"}]
[null,550,"Student Affairs",551,"Student Affairs Department",5519,"Financial Aid and Awards",20,"25519-1","SA Financial Aid","25519-1-2","SA Financial Aid - Aboriginal Emergency Assistance",217,"Student Support and Services","2017-01-01","2099-12-31","N","Contracts - Student Affairs",9609,"ABORIGINAL EMERG.ASSIST",{"$f":"VLOOKUP(K947,WORKORDERS!$A:$P,16,FALSE)","v":"no"}]
[null,550,"Student Affairs",551,"Student Affairs Department",5519,"Financial Aid and Awards",20,"25519-1","SA Financial Aid","25519-1-3","SA Financial Aid - Foundation Funds",217,"Student Support and Services","2017-01-01","2099-12-31","N","Contracts - Student Affairs",9616,"FOUNDATION FUNDS",{"$f":"VLOOKUP(K948,WORKORDERS!$A:$P,16,FALSE)","v":"no"}]
[null,550,"Student Affairs",551,"Student Affairs Department",5519,"Financial Aid and Awards",20,"25519-1","SA Financial Aid","25519-1-4","SA Financial Aid - General Scholarships/Bursaries",217,"Student Support and Services","2017-01-01","2099-12-31","N","Contracts - Student Affairs",9613,"GENERAL SCH/BURSARY FUND ",{"$f":"VLOOKUP(K949,WORKORDERS!$A:$P,16,FALSE)","v":"no"}]
[null,550,"Student Affairs",551,"Student Affairs Department",5519,"Financial Aid and Awards",20,"25519-1","SA Financial Aid","25519-1-5","SA Financial Aid - MSU Special Bursaries",217,"Student Support and Services","2017-01-01","2099-12-31","N","Contracts - Student Affairs",9611,"MSU SPECIAL BURSARIES",{"$f":"VLOOKUP(K950,WORKORDERS!$A:$P,16,FALSE)","v":"no"}]
[null,550,"Student Affairs",551,"Student Affairs Department",5519,"Financial Aid and Awards",20,"25519-2","SA Financial Aid - Other","25519-2-1","SA Financial Aid - Other - Canada Student Grant",217,"Student Support and Services","2017-01-01","2099-12-31","N","Student Affairs",6333,"CANADA STUDENT GRANT",{"$f":"VLOOKUP(K951,WORKORDERS!$A:$P,16,FALSE)","v":"no"}]
[null,550,"Student Affairs",551,"Student Affairs Department",5520,"Health and Wellness",10,"15520-1","SA Health and Wellness Centre","15520-1-1","SA Health and Wellness Centre",217,"Student Support and Services","2017-01-01","2099-12-31","N","Student Affairs",6350,"HEALTH AND WELLNESS CTR",{"$f":"VLOOKUP(K952,WORKORDERS!$A:$P,16,FALSE)","v":"no"}]
[null,550,"Student Affairs",551,"Student Affairs Department",5520,"Health and Wellness",10,"15520-2","SA SSF Funds (HW)","15520-2-1","SA SSF Funds (HW) - Health and Wellness",217,"Student Support and Services","2017-01-01","2099-12-31","N","Student Affairs",6430,"SSF HEALTH AND WELLNESS",{"$f":"VLOOKUP(K953,WORKORDERS!$A:$P,16,FALSE)","v":"no"}]
[null,550,"Student Affairs",551,"Student Affairs Department",5520,"Health and Wellness",20,"25520-1","SA Mental Health","25520-1-1","SA Mental Health  - Canadian Mental Health Association",217,"Student Support and Services","2020-03-28","2099-12-31","N","Contracts - Student Affairs",6515,"MENTAL HEALTH  - CMHA ",{"$f":"VLOOKUP(K954,WORKORDERS!$A:$P,16,FALSE)","v":"yes"}]
[null,550,"Student Affairs",551,"Student Affairs Department",5522,"Student Conduct",10,"15522-1","SA Student Conduct - Administration","15522-1-1","SA Student Conduct - Administration",217,"Student Support and Services","2017-01-01","2099-12-31","N","Student Affairs",6305,"CONDUCT",{"$f":"VLOOKUP(K955,WORKORDERS!$A:$P,16,FALSE)","v":"no"}]
[null,550,"Student Affairs",551,"Student Affairs Department",5522,"Student Conduct",10,"15522-2","SA Student Conduct - Education & Training","15522-2-1","SA Student Conduct - Education & Training",217,"Student Support and Services","2021-07-01","2099-12-31","P",{"$error":"#N/A"},{"$error":"#N/A"},{"$error":"#N/A"},{"$f":"VLOOKUP(K956,WORKORDERS!$A:$P,16,FALSE)","v":"no"}]
[null,550,"Student Affairs",551,"Student Affairs Department",5522,"Student Conduct",10,"15522-3","SA Student Conduct - External Investigators","15522-3-1","SA Student Conduct - External Investigators",217,"Student Support and Services","2021-07-01","2099-12-31","P",{"$error":"#N/A"},{"$error":"#N/A"},{"$error":"#N/A"},{"$f":"VLOOKUP(K957,WORKORDERS!$A:$P,16,FALSE)","v":"no"}]
[null,550,"Student Affairs",555,"Student Engagement and Experiential Learning",5550,"Student Engagement and Experiential Learning Department",10,"15550-1","SA Student Engagement and Experiential Learning Department","15550-1-1","SA Student Engagement and Experiential Learning Department",200,"Academic Administration","2021-07-01","2099-12-31","P",{"$error":"#N/A"},{"$error":"#N/A"},{"$error":"#N/A"},{"$f":"VLOOKUP(K958,WORKORDERS!$A:$P,16,FALSE)","v":"no"}]
[null,550,"Student Affairs",555,"Student Engagement and Experiential Learning",5550,"Student Engagement and Experiential Learning Department",10,"15550-2","SA SSF Funds (EL)","15550-2-1","SA SSF Funds (EL) - Co-Curricular Engagement and Learning",217,"Student Support and Services","2017-01-01","2099-12-31","N","Student Affairs",6440,"SSF EXPERIENTIAL LEARNING",{"$f":"VLOOKUP(K959,WORKORDERS!$A:$P,16,FALSE)","v":"no"}]
[null,"550","Student Affairs","555","Student Engagement and Experiential Learning","5550","Student Engagement and Experiential Learning Department","10","15550-2","SA SSF Funds (EL)","15550-2-2","SA SSF Funds (EL) - Research","217","Student Support and Services","2021-03-27","2099-12-31","N","Student Affairs",6441,"SSF EXP LEARNING RESEARCH",{"$f":"VLOOKUP(K960,WORKORDERS!$A:$P,16,FALSE)","v":"no"}]
[null,550,"Student Affairs",555,"Student Engagement and Experiential Learning",5555,"Centre for Experiential Learning",10,"15555-1","SA Centre for Experiential Learning","15555-1-1","SA Centre for Experiential Learning",217,"Student Support and Services","2017-01-01","2099-12-31","N","Student Affairs",6304,"CAMPUS CAREER CENTRE",{"$f":"VLOOKUP(K961,WORKORDERS!$A:$P,16,FALSE)","v":"no"}]
[null,550,"Student Affairs",555,"Student Engagement and Experiential Learning",5555,"Centre for Experiential Learning",10,"15555-2","SA New Student Orientation","15555-2-1","SA New Student Orientation",217,"Student Support and Services","2017-01-01","2099-12-31","N","Student Affairs",6415,"NEW STUDENT ORIENTATION",{"$f":"VLOOKUP(K962,WORKORDERS!$A:$P,16,FALSE)","v":"no"}]
[null,550,"Student Affairs",555,"Student Engagement and Experiential Learning",5555,"Centre for Experiential Learning",20,"25555-1","SA Centre for Experiential Learning","25555-1-1","SA Vancouver Island Leadership Conference",217,"Student Support and Services","2017-01-01","2099-12-31","N","Contracts - Student Affairs",6530,"VAN ISLE LEADERSIHP CONF",{"$f":"VLOOKUP(K963,WORKORDERS!$A:$P,16,FALSE)","v":"no"}]
[null,550,"Student Affairs",555,"Student Engagement and Experiential Learning",5556,"Co-Op Programs",10,"15556-1","SA Co-Op Programs - Computer Science","15556-1-1","SA Co-Op Programs - Computer Science",225,"Co-Op programs","2017-01-01","2099-12-31","N","Student Affairs",6402,"CO-OP: COMPUTER SCIENCE",{"$f":"VLOOKUP(K964,WORKORDERS!$A:$P,16,FALSE)","v":"no"}]
[null,550,"Student Affairs",555,"Student Engagement and Experiential Learning",5556,"Co-Op Programs",10,"15556-2","SA Co-Op Programs - Culinary Arts","15556-2-1","SA Co-Op Programs - Culinary Arts",225,"Co-Op programs","2017-01-01","2099-12-31","N","Student Affairs",6406,"CO-OP: CULINARY ARTS",{"$f":"VLOOKUP(K965,WORKORDERS!$A:$P,16,FALSE)","v":"no"}]
[null,550,"Student Affairs",555,"Student Engagement and Experiential Learning",5556,"Co-Op Programs",10,"15556-3","SA Co-Op Programs - Engineering","15556-3-1","SA Co-Op Programs - Engineering",225,"Co-Op programs","2017-01-01","2099-12-31","N","Student Affairs",6411,"CO-OP: ENGINEERING",{"$f":"VLOOKUP(K966,WORKORDERS!$A:$P,16,FALSE)","v":"no"}]
[null,550,"Student Affairs",555,"Student Engagement and Experiential Learning",5556,"Co-Op Programs",10,"15556-4","SA Co-Op Programs - Hospitality","15556-4-1","SA Co-Op Programs - Hospitality",225,"Co-Op programs","2017-01-01","2099-12-31","N","Student Affairs",6407,"CO-OP: HOSPITALITY",{"$f":"VLOOKUP(K967,WORKORDERS!$A:$P,16,FALSE)","v":"no"}]
[null,550,"Student Affairs",555,"Student Engagement and Experiential Learning",5556,"Co-Op Programs",10,"15556-5","SA Co-Op Programs - Rec and Tourism","15556-5-1","SA Co-Op Programs - Rec and Tourism",225,"Co-Op programs","2017-01-01","2099-12-31","N","Student Affairs",6405,"CO-OP: REC/TOUR",{"$f":"VLOOKUP(K968,WORKORDERS!$A:$P,16,FALSE)","v":"no"}]
[null,550,"Student Affairs",555,"Student Engagement and Experiential Learning",5556,"Co-Op Programs",10,"15556-6","SA Co-Op Programs - Baking","15556-6-1","SA Co-Op Programs - Baking",225,"Co-Op programs","2021-03-27","2099-12-31","N","Student Affairs",6408,"CO-OP: BAKING",{"$f":"VLOOKUP(K969,WORKORDERS!$A:$P,16,FALSE)","v":"no"}]
[null,550,"Student Affairs",555,"Student Engagement and Experiential Learning",5557,"Internships",10,"15557-1","SA Internships - Creative Writing","15557-1-1","SA Internships - Creative Writing",224,"Field Experience / Practicum","2017-01-01","2099-12-31","N","Student Affairs",6404,"CO-OP: CREATIVE WRITING",{"$f":"VLOOKUP(K970,WORKORDERS!$A:$P,16,FALSE)","v":"no"}]
[null,550,"Student Affairs",555,"Student Engagement and Experiential Learning",5557,"Internships",10,"15557-2","SA Internships - Criminology","15557-2-1","SA Internships - Criminology",224,"Field Experience / Practicum","2017-01-01","2099-12-31","N","Student Affairs",6401,"CO-OP: CRIMINOLOGY",{"$f":"VLOOKUP(K971,WORKORDERS!$A:$P,16,FALSE)","v":"no"}]
[null,550,"Student Affairs",555,"Student Engagement and Experiential Learning",5557,"Internships",10,"15557-3","SA Internships - Education","15557-3-1","SA Internships - Education",224,"Field Experience / Practicum","2017-01-01","2099-12-31","N","Student Affairs",6400,"C0-OP EDUCATION",{"$f":"VLOOKUP(K972,WORKORDERS!$A:$P,16,FALSE)","v":"no"}]
[null,550,"Student Affairs",555,"Student Engagement and Experiential Learning",5557,"Internships",10,"15557-4","SA Internships  - Graphic Design","15557-4-1","SA Internships  - Graphic Design",224,"Field Experience / Practicum","2017-01-01","2099-12-31","N","Student Affairs",6412,"CO-OP: GRAPHIC DESIGN",{"$f":"VLOOKUP(K973,WORKORDERS!$A:$P,16,FALSE)","v":"no"}]
[null,550,"Student Affairs",555,"Student Engagement and Experiential Learning",5557,"Internships",10,"15557-5","SA Internships - Interior Design","15557-5-1","SA Internships - Interior Design",224,"Field Experience / Practicum","2017-01-01","2099-12-31","N","Student Affairs",6410,"CO-OP: INTERIOR DESIGN",{"$f":"VLOOKUP(K974,WORKORDERS!$A:$P,16,FALSE)","v":"no"}]
[null,550,"Student Affairs",555,"Student Engagement and Experiential Learning",5557,"Internships",10,"15557-6","SA Internships - Philosophy","15557-6-1","SA Internships - Philosophy",224,"Field Experience / Practicum","2017-01-01","2099-12-31","N","Student Affairs",6409,"CO-OP: PHILOSOPHY",{"$f":"VLOOKUP(K975,WORKORDERS!$A:$P,16,FALSE)","v":"no"}]
[null,550,"Student Affairs",555,"Student Engagement and Experiential Learning",5557,"Internships",10,"15557-7","SA Internships - Physical Education","15557-7-1","SA Internships - Physical Education",224,"Field Experience / Practicum","2017-01-01","2099-12-31","N","Student Affairs",6403,"CO-OP: PHYSICAL EDUCATION",{"$f":"VLOOKUP(K976,WORKORDERS!$A:$P,16,FALSE)","v":"no"}]
[null,550,"Student Affairs",555,"Student Engagement and Experiential Learning",5558,"On Campus Employment",10,"15558-1","SA On Campus Employment - Contracts","15558-1-1","SA On Campus Employment - Work Op",217,"Student Support and Services","2017-01-01","2099-12-31","N","Student Affairs",6306,"WORK-OP PROGRAM",{"$f":"VLOOKUP(K977,WORKORDERS!$A:$P,16,FALSE)","v":"no"}]
[null,550,"Student Affairs",555,"Student Engagement and Experiential Learning",5558,"On Campus Employment",10,"15558-1","SA On Campus Employment - Contracts","15558-1-2","SA On Campus employment - Student Summer employment",217,"Student Support and Services","2017-01-01","2099-12-31","N","Contracts - Student Affairs",6505,"STUDENT SUMMER EMPL-FEDER",{"$f":"VLOOKUP(K978,WORKORDERS!$A:$P,16,FALSE)","v":"no"}]
[null,550,"Student Affairs",558,"Athletics and Recreation",5580,"Athletics and Recreation Department",10,"15580-1","SA Athletics and Recreation Department","15580-1-1","SA Athletics and Recreation Department",200,"Academic Administration","2017-01-01","2099-12-31","N","Student Affairs",5070,"ATHLETICS",{"$f":"VLOOKUP(K979,WORKORDERS!$A:$P,16,FALSE)","v":"no"}]
[null,550,"Student Affairs",558,"Athletics and Recreation",5580,"Athletics and Recreation Department",10,"15580-2","SA Athletics and Recreation Department - Student Activity Fee","15580-2-1","SA Athletics and Recreation Department - Student Activity Fee",200,"Academic Administration","2021-03-27","2099-12-31","N","Student Affairs",5079,"STUDENT ACTIVITY FEE",{"$f":"VLOOKUP(K980,WORKORDERS!$A:$P,16,FALSE)","v":"no"}]
[null,550,"Student Affairs",558,"Athletics and Recreation",5581,"Athletics and Recreation Department - Initiatives",10,"15581-1","SA Athletics and Recreation Fundraising","15581-1-1","SA Athletics and Recreation Fundraising",217,"Student Support and Services","2017-01-01","2099-12-31","N","Student Affairs",5076,"ATHLETICS FUNDRAISING",{"$f":"VLOOKUP(K981,WORKORDERS!$A:$P,16,FALSE)","v":"no"}]
[null,550,"Student Affairs",558,"Athletics and Recreation",5581,"Athletics and Recreation Department - Initiatives",10,"15581-2","SA National Travel Pool","15581-2-1","SA National Travel Pool",217,"Student Support and Services","2017-01-01","2099-12-31","N","Student Affairs",5077,"NATIONAL TRAVEL POOL",{"$f":"VLOOKUP(K982,WORKORDERS!$A:$P,16,FALSE)","v":"no"}]
[null,550,"Student Affairs",558,"Athletics and Recreation",5581,"Athletics and Recreation Department - Initiatives",10,"15581-3","SA Sports Development Centre","15581-3-1","SA Sports Development Centre",217,"Student Support and Services","2017-01-01","2099-12-31","N","Student Affairs",5078,"SPORTS DEVELOPMENT CENTRE",{"$f":"VLOOKUP(K983,WORKORDERS!$A:$P,16,FALSE)","v":"no"}]
[null,550,"Student Affairs",558,"Athletics and Recreation",5581,"Athletics and Recreation Department - Initiatives",20,"25581-1","SA Athletics and Recreation Department - Initiatives","25581-1-1","SA PacificWest CCAA hosting",217,"Student Support and Services","2017-01-01","2099-12-31","N","Contracts - Student Affairs",6510,"PACWEST-CCAA HOSTING ",{"$f":"VLOOKUP(K984,WORKORDERS!$A:$P,16,FALSE)","v":"no"}]
[null,550,"Student Affairs",558,"Athletics and Recreation",5585,"Gym Management",10,"15585-1","SA Gym Management","15585-1-1","SA Gym Management",217,"Student Support and Services","2017-01-01","2099-12-31","N","Student Affairs",5073,"GYM MANAGEMENT",{"$f":"VLOOKUP(K985,WORKORDERS!$A:$P,16,FALSE)","v":"no"}]
[null,550,"Student Affairs",558,"Athletics and Recreation",5586,"Recreation",10,"15586-1","SA Recreation - Fitness","15586-1-1","SA Recreation - Fitness",217,"Student Support and Services","2017-01-01","2099-12-31","N","Student Affairs",5072,"FITNESS AND INTRAMURALS",{"$f":"VLOOKUP(K986,WORKORDERS!$A:$P,16,FALSE)","v":"no"}]
[null,550,"Student Affairs",558,"Athletics and Recreation",5586,"Recreation",10,"15586-2","SA Recreation - Intramurals","15586-2-1","SA Recreation - Intramurals",217,"Student Support and Services","2021-07-01","2099-12-31","P",{"$error":"#N/A"},{"$error":"#N/A"},{"$error":"#N/A"},{"$f":"VLOOKUP(K987,WORKORDERS!$A:$P,16,FALSE)","v":"no"}]
[null,550,"Student Affairs",558,"Athletics and Recreation",5586,"Recreation",10,"15586-3","SA Recreation - Camps","15586-3-1","SA Recreation - Camps",217,"Student Support and Services","2021-07-01","2099-12-31","P",{"$error":"#N/A"},{"$error":"#N/A"},{"$error":"#N/A"},{"$f":"VLOOKUP(K988,WORKORDERS!$A:$P,16,FALSE)","v":"no"}]
[null,550,"Student Affairs",558,"Athletics and Recreation",5587,"Outdoor Recreation",10,"15587-1","SA Outdoor Recreation","15587-1-1","SA Outdoor Recreation",217,"Student Support and Services","2017-01-01","2099-12-31","N","Student Affairs",5071,"OUTDOOR RECREATION",{"$f":"VLOOKUP(K989,WORKORDERS!$A:$P,16,FALSE)","v":"no"}]
[null,550,"Student Affairs",558,"Athletics and Recreation",5588,"Athletics",10,"15588-1","SA Athletics","15588-1-1","SA Athletics",217,"Student Support and Services","2017-01-01","2099-12-31","N","Student Affairs",5074,"STUDENT ACTIVITIES",{"$f":"VLOOKUP(K990,WORKORDERS!$A:$P,16,FALSE)","v":"no"}]
[null,550,"Student Affairs",558,"Athletics and Recreation",5588,"Athletics",10,"15588-1","SA Athletics","15588-1-2","SA Athletics - Banquet",217,"Student Support and Services","2021-07-01","2099-12-31","P",{"$error":"#N/A"},{"$error":"#N/A"},{"$error":"#N/A"},{"$f":"VLOOKUP(K991,WORKORDERS!$A:$P,16,FALSE)","v":"no"}]
[null,550,"Student Affairs",558,"Athletics and Recreation",5588,"Athletics",10,"15588-2","SA Athletics - Basketball","15588-2-1","SA Men's Basketball",217,"Student Support and Services","2017-01-01","2099-12-31","N","Student Affairs",5083,"MEN'S BASKETBALL",{"$f":"VLOOKUP(K992,WORKORDERS!$A:$P,16,FALSE)","v":"no"}]
[null,550,"Student Affairs",558,"Athletics and Recreation",5588,"Athletics",10,"15588-2","SA Athletics - Basketball","15588-2-2","SA Women's Basketball",217,"Student Support and Services","2017-01-01","2099-12-31","N","Student Affairs",5084,"WOMEN'S BASKETBALL",{"$f":"VLOOKUP(K993,WORKORDERS!$A:$P,16,FALSE)","v":"no"}]
[null,550,"Student Affairs",558,"Athletics and Recreation",5588,"Athletics",10,"15588-3","SA Athletics - Soccer","15588-3-1","SA Men's Soccer",217,"Student Support and Services","2017-01-01","2099-12-31","N","Student Affairs",5087,"MEN'S SOCCER",{"$f":"VLOOKUP(K994,WORKORDERS!$A:$P,16,FALSE)","v":"no"}]
[null,550,"Student Affairs",558,"Athletics and Recreation",5588,"Athletics",10,"15588-3","SA Athletics - Soccer","15588-3-2","SA Women's Soccer",217,"Student Support and Services","2017-01-01","2099-12-31","N","Student Affairs",5088,"WOMEN'S SOCCER",{"$f":"VLOOKUP(K995,WORKORDERS!$A:$P,16,FALSE)","v":"no"}]
[null,550,"Student Affairs",558,"Athletics and Recreation",5588,"Athletics",10,"15588-4","SA Athletics - Volleyball","15588-4-1","SA Men's Volleyball",217,"Student Support and Services","2017-01-01","2099-12-31","N","Student Affairs",5085,"MEN'S VOLLEYBALL",{"$f":"VLOOKUP(K996,WORKORDERS!$A:$P,16,FALSE)","v":"no"}]
[null,550,"Student Affairs",558,"Athletics and Recreation",5588,"Athletics",10,"15588-4","SA Athletics - Volleyball","15588-4-2","SA Women's Volleyball",217,"Student Support and Services","2017-01-01","2099-12-31","N","Student Affairs",5086,"WOMEN'S VOLLEYBALL",{"$f":"VLOOKUP(K997,WORKORDERS!$A:$P,16,FALSE)","v":"no"}]
[null,550,"Student Affairs",558,"Athletics and Recreation",5588,"Athletics",10,"15588-5","SA Athletics - Club","15588-5-1","SA Athletics - Club Badminton",217,"Student Support and Services","2017-01-01","2099-12-31","N","Student Affairs",5089,"BADMINTON",{"$f":"VLOOKUP(K998,WORKORDERS!$A:$P,16,FALSE)","v":"no"}]
[null,550,"Student Affairs",558,"Athletics and Recreation",5588,"Athletics",10,"15588-5","SA Athletics - Club","15588-5-3","SA Athletics - Club Golf",217,"Student Support and Services","2017-01-01","2099-12-31","N","Student Affairs",5080,"GOLF",{"$f":"VLOOKUP(K999,WORKORDERS!$A:$P,16,FALSE)","v":"no"}]
[null,550,"Student Affairs",558,"Athletics and Recreation",5588,"Athletics",10,"15588-5","SA Athletics - Club","15588-5-4","SA Athletics - Club Hockey",217,"Student Support and Services","2021-07-01","2099-12-31","P",{"$error":"#N/A"},{"$error":"#N/A"},{"$error":"#N/A"},{"$f":"VLOOKUP(K1000,WORKORDERS!$A:$P,16,FALSE)","v":"no"}]
[null,550,"Student Affairs",558,"Athletics and Recreation",5588,"Athletics",10,"15588-5","SA Athletics - Club","15588-5-6","SA Athletics - Club Swimming",217,"Student Support and Services","2021-07-01","2099-12-31","P",{"$error":"#N/A"},{"$error":"#N/A"},{"$error":"#N/A"},{"$f":"VLOOKUP(K1001,WORKORDERS!$A:$P,16,FALSE)","v":"no"}]
[null,"550","Student Affairs","558","Athletics and Recreation","5588","Athletics","10","15588-5","SA Athletics - Club","15588-5-7","SA Athletics - Club Sport Programs","217","Student Support and Services","2021-03-27","2099-12-31","N","Student Affairs",5090,"CLUB SPORT PROGRAMS",{"$f":"VLOOKUP(K1002,WORKORDERS!$A:$P,16,FALSE)","v":"no"}]
[null,600,"CFO and VP Administration - Office",600,"CFO and VP Administration - Office",6000,"CFO VP Administration Office",10,"16000-1","CFOVPA Office","16000-1-1","CFOVPA Office",100,"Administration","2017-01-01","2099-12-31","N","CFOVPA - Office",8000,"VP Admin & Finance",{"$f":"VLOOKUP(K1003,WORKORDERS!$A:$P,16,FALSE)","v":"no"}]
[null,600,"CFO and VP Administration - Office",600,"CFO and VP Administration - Office",6000,"CFO VP Administration Office",10,"16000-1","CFOVPA Office","16000-1-2","CFOVPA Professional Development",100,"Administration","2017-01-01","2099-12-31","N","CFOVPA - Office",8003,"LEGIN - VP Admin PD",{"$f":"VLOOKUP(K1004,WORKORDERS!$A:$P,16,FALSE)","v":"no"}]
[null,600,"CFO and VP Administration - Office",600,"CFO and VP Administration - Office",6010,"CFO VPA Office - Initiatives",10,"16010-1","CFOVPA Office - Initiatives","16010-1-1","CFOVPA Office - Initiatives",101,"Institutional","2021-07-01","2099-12-31","P",{"$error":"#N/A"},{"$error":"#N/A"},{"$error":"#N/A"},{"$f":"VLOOKUP(K1005,WORKORDERS!$A:$P,16,FALSE)","v":"yes"}]
[null,600,"CFO and VP Administration - Office",600,"CFO and VP Administration - Office",6010,"CFO VPA Office - Initiatives",50,"56010-1","CFOVPA Minor Capital","56010-1-1","CFOVPA Minor Capital",500,"Capital - General","2021-07-01","2099-12-31","P",{"$error":"#N/A"},{"$error":"#N/A"},{"$error":"#N/A"},{"$f":"VLOOKUP(K1006,WORKORDERS!$A:$P,16,FALSE)","v":"no"}]
[null,603,"CFOVPA - ASA (Administrative Support Activity)",603,"CFOVPA - ASA (Administrative Support Activity)",6030,"CFOVPA ASA (Administrative Support Activity)",10,"16030-1","CFOVPA ASA - Divisional Holding","16030-1-1","CFOVPA ASA - Divisional Holding",101,"Institutional","2017-01-01","2099-12-31","N","CFOVPA - ASA",8002,"VP ADMIN DIVISION-HOLDING",{"$f":"VLOOKUP(K1007,WORKORDERS!$A:$P,16,FALSE)","v":"yes"}]
[null,603,"CFOVPA - ASA (Administrative Support Activity)",603,"CFOVPA - ASA (Administrative Support Activity)",6030,"CFOVPA ASA (Administrative Support Activity)",10,"16030-2","CFOVPA ASA - COVID 19 Expenditures","16030-2-1","CFOVPA ASA - COVID 19 Expenditures",101,"Institutional","2017-01-01","2099-12-31","N","CFOVPA - Institutional",8052,"COVID-19 EXPENDITURES",{"$f":"VLOOKUP(K1008,WORKORDERS!$A:$P,16,FALSE)","v":"no"}]
[null,603,"CFOVPA - ASA (Administrative Support Activity)",603,"CFOVPA - ASA (Administrative Support Activity)",6035,"CFOVPA - ASA (Contracts)",20,"26035-1","CFOVPA - ASA (Contracts)","26035-1-1","CFOVPA ASA - Institutional Non-Budgeted Contracts",101,"Institutional","2020-03-28","2099-12-31","N","Contracts - CFOVPA - ASA",8721,"INSTL NON-BUDG CONTRACTS",{"$f":"VLOOKUP(K1009,WORKORDERS!$A:$P,16,FALSE)","v":"no"}]
[null,603,"CFOVPA - ASA (Administrative Support Activity)",603,"CFOVPA - ASA (Administrative Support Activity)",6040,"VIU Initiatives Trust (Clearing)",20,"26040-1","CFOVPA ASA - VIU Initiatives Trust (Clearing)","26040-1-1","CFOVPA ASA - VIU Initiatives Trust (Clearing)",102,"External recoveries (Inst)","2017-01-01","2099-12-31","N","Contracts - CFOVPA - ASA",8799,"VIU INIT TRUST - CLEARING",{"$f":"VLOOKUP(K1010,WORKORDERS!$A:$P,16,FALSE)","v":"no"}]
[null,610,"Information Technology Services",610,"Information Technology Services",6100,"Information Technology Services Division",10,"16100-1","IT Information Technology Division","16100-1-1","IT Information Technology Division",100,"Administration","2017-01-01","2099-12-31","N","Info. Technology Services",6700,"INFORMATION TECHNOLOGY",{"$f":"VLOOKUP(K1011,WORKORDERS!$A:$P,16,FALSE)","v":"no"}]
[null,610,"Information Technology Services",610,"Information Technology Services",6101,"Information Technology - Initiatives",50,"56101-1","IT Minor Capital","56101-1-1","IT Minor Capital",500,"Capital - General","2021-07-01","2099-12-31","P",{"$error":"#N/A"},{"$error":"#N/A"},{"$error":"#N/A"},{"$f":"VLOOKUP(K1012,WORKORDERS!$A:$P,16,FALSE)","v":"no"}]
[null,610,"Information Technology Services",610,"Information Technology Services",6101,"Information Technology - Initiatives",50,"56101-2","IT CRP Capital Projects ","56101-2-1","IT CRP Capital Projects - Nelvana ",500,"Capital - General","2021-03-27","2099-12-31","N","Capital",9526,"NELVANA - AV",{"$f":"VLOOKUP(K1013,WORKORDERS!$A:$P,16,FALSE)","v":"no"}]
[null,610,"Information Technology Services",610,"Information Technology Services",6101,"Information Technology - Initiatives",50,"56101-2","IT CRP Capital Projects","56101-2-2","IT CRP Capital Projects - Virtual Desktop Expansion ",500,"Capital - General","2021-03-27","2099-12-31","N","Capital",9062,"ITS-VRTUAL DSKTP EXPNSION ",{"$f":"VLOOKUP(K1014,WORKORDERS!$A:$P,16,FALSE)","v":"no"}]
[null,610,"Information Technology Services",611,"IT Operations",6110,"IT Operations",10,"16110-1","IT Operations Department","16110-1-1","IT Operations Department",100,"Administration","2021-07-01","2099-12-31","P",{"$error":"#N/A"},{"$error":"#N/A"},{"$error":"#N/A"},{"$f":"VLOOKUP(K1015,WORKORDERS!$A:$P,16,FALSE)","v":"no"}]
[null,610,"Information Technology Services",611,"IT Operations",6110,"IT Operations",10,"16110-2","IT Information Technology Operations - Institutional","16110-2-1","IT Operations - Institutional Services",101,"Institutional","2021-03-27","2099-12-31","N","Info. Technology Services",6705,"INSTNL IT SERVICES ",{"$f":"VLOOKUP(K1016,WORKORDERS!$A:$P,16,FALSE)","v":"no"}]
[null,610,"Information Technology Services",611,"IT Operations",6110,"IT Operations",10,"16110-3","IT Operations - SSF","16110-3-1","IT Operations - SSF Funds - Access to Technology",101,"Institutional","2017-01-01","2099-12-31","N","Info. Technology Services",6720,"SSF ITS ACCESS TO TECH",{"$f":"VLOOKUP(K1017,WORKORDERS!$A:$P,16,FALSE)","v":"no"}]
[null,610,"Information Technology Services",611,"IT Operations",6110,"IT Operations",50,"56110-1","IT Ops Major Projects - Borealis","56110-1-1","IT Ops Major Projects - Borealis",500,"Capital - General","2017-01-01","2099-12-31","N","Capital",9081,"BOREALIS NR",{"$f":"VLOOKUP(K1018,WORKORDERS!$A:$P,16,FALSE)","v":"no"}]
[null,610,"Information Technology Services",611,"IT Operations",6120,"Client Services",10,"16120-1","IT Client Services Department","16120-1-1","IT Client Services Department",100,"Administration","2017-01-01","2099-12-31","N","Info. Technology Services",6703,"IT CLIENT SERVICES",{"$f":"VLOOKUP(K1019,WORKORDERS!$A:$P,16,FALSE)","v":"no"}]
[null,610,"Information Technology Services",611,"IT Operations",6120,"Client Services",10,"16120-2","IT Client Services - Institutional","16120-2-1","IT Client Services - Institutional",101,"Institutional","2021-07-01","2099-12-31","P",{"$error":"#N/A"},{"$error":"#N/A"},{"$error":"#N/A"},{"$f":"VLOOKUP(K1020,WORKORDERS!$A:$P,16,FALSE)","v":"no"}]
[null,610,"Information Technology Services",611,"IT Operations",6130,"Infrastructure",10,"16130-1","IT Infrastructure Department","16130-1-1","IT Infrastructure Department",100,"Administration","2017-01-01","2099-12-31","N","Info. Technology Services",6702,"IT INFRASTRUCTURE",{"$f":"VLOOKUP(K1021,WORKORDERS!$A:$P,16,FALSE)","v":"no"}]
[null,610,"Information Technology Services",611,"IT Operations",6130,"Infrastructure",10,"16130-2","IT Infrastructure - Institutional","16130-2-1","IT Infrastructure - Institutional",101,"Institutional","2017-01-01","2099-12-31","N","Info. Technology Services",6711,"INSTNL IT INFRASTRUCTURE",{"$f":"VLOOKUP(K1022,WORKORDERS!$A:$P,16,FALSE)","v":"no"}]
[null,610,"Information Technology Services",611,"IT Operations",6130,"Infrastructure",10,"16130-2","IT Infrastructure - Institutional","16130-2-2","IT Infrastructure - Phone Service",101,"Institutional","2017-01-01","2099-12-31","N","Info. Technology Services",6708,"PHONE SERVICE",{"$f":"VLOOKUP(K1023,WORKORDERS!$A:$P,16,FALSE)","v":"no"}]
[null,610,"Information Technology Services",611,"IT Operations",6140,"End User Technology",10,"16140-1","IT End User Technology Department","16140-1-1","IT End User Technology",100,"Administration","2020-03-28","2099-12-31","N","Info. Technology Services",6704,"IT END USER TECHNOLOGY",{"$f":"VLOOKUP(K1024,WORKORDERS!$A:$P,16,FALSE)","v":"no"}]
[null,610,"Information Technology Services",611,"IT Operations",6140,"End User Technology",10,"16140-2","IT End User Technology - Institutional","16140-2-1","IT End User Technology - Institutional",101,"Institutional","2020-03-28","2099-12-31","N","Info. Technology Services",6712,"INSTNL IT END USER",{"$f":"VLOOKUP(K1025,WORKORDERS!$A:$P,16,FALSE)","v":"no"}]
[null,610,"Information Technology Services",611,"IT Operations",6140,"End User Technology",10,"16140-2","IT End User Technology - Institutional","16140-2-2","IT End User Technology - Student Printing",101,"Institutional","2017-01-01","2099-12-31","N","Info. Technology Services",6701,"STUDENT PRINTING",{"$f":"VLOOKUP(K1026,WORKORDERS!$A:$P,16,FALSE)","v":"no"}]
[null,610,"Information Technology Services",611,"IT Operations",6150,"Web Management",10,"16150-1","IT Web Management Department","16150-1-1","IT Web Management Department",100,"Administration","2017-01-01","2099-12-31","N","Info. Technology Services",6713,"WEB MANAGEMENT OFFICE",{"$f":"VLOOKUP(K1027,WORKORDERS!$A:$P,16,FALSE)","v":"no"}]
[null,610,"Information Technology Services",611,"IT Operations",6150,"Web Management",10,"16150-2","IT Web Management - Institutional","16150-2-1","IT Web Management - Institutional",101,"Institutional","2021-07-01","2099-12-31","P",{"$error":"#N/A"},{"$error":"#N/A"},{"$error":"#N/A"},{"$f":"VLOOKUP(K1028,WORKORDERS!$A:$P,16,FALSE)","v":"no"}]
[null,610,"Information Technology Services",611,"IT Operations",6160,"IT Security",10,"16160-1","IT Security Department","16160-1-1","IT Security Department",100,"Administration","2017-01-01","2099-12-31","N","Info. Technology Services",6715,"INSTITUTION DATA SECURITY",{"$f":"VLOOKUP(K1029,WORKORDERS!$A:$P,16,FALSE)","v":"no"}]
[null,610,"Information Technology Services",611,"IT Operations",6160,"IT Security",10,"16160-2","IT Security - Institutional","16160-2-1","IT Security - Institutional",101,"Institutional","2021-07-01","2099-12-31","P",{"$error":"#N/A"},{"$error":"#N/A"},{"$error":"#N/A"},{"$f":"VLOOKUP(K1030,WORKORDERS!$A:$P,16,FALSE)","v":"no"}]
[null,610,"Information Technology Services",618,"Enterprise Systems",6180,"Enterprise Systems",10,"16180-1","IT Enterprise Systems Department","16180-1-1","IT Enterprise Systems Department",100,"Administration","2017-01-01","2099-12-31","N","Info. Technology Services",6710,"ENTERPRISE SYSTEMS",{"$f":"VLOOKUP(K1031,WORKORDERS!$A:$P,16,FALSE)","v":"no"}]
[null,610,"Information Technology Services",618,"Enterprise Systems",6180,"Enterprise Systems",10,"16180-2","IT Enterprise Systems - Institutional","16180-2-1","IT Enterprise Systems - Institutional",101,"Institutional","2021-07-01","2099-12-31","P",{"$error":"#N/A"},{"$error":"#N/A"},{"$error":"#N/A"},{"$f":"VLOOKUP(K1032,WORKORDERS!$A:$P,16,FALSE)","v":"no"}]
[null,610,"Information Technology Services",618,"Enterprise Systems",6180,"Enterprise Systems",10,"16180-2","IT Enterprise Systems - Institutional","16180-2-2","IT ES Institutional - TLASR Project",101,"Institutional","2017-01-01","2099-12-31","N","Info. Technology Services",6714,"TLASR PROJECT",{"$f":"VLOOKUP(K1033,WORKORDERS!$A:$P,16,FALSE)","v":"no"}]
[null,610,"Information Technology Services",618,"Enterprise Systems",6180,"Enterprise Systems",50,"56180-1","IT ES Major Projects - Aurora","56180-1-1","IT ES Major Projects - Aurora",500,"Capital - General","2017-01-01","2099-12-31","N","Capital",9150,"AURORA-EXP",{"$f":"VLOOKUP(K1034,WORKORDERS!$A:$P,16,FALSE)","v":"no"}]
[null,640,"Facilities Services and Campus Development",640,"Facilities and Ancillary Services",6400,"Facilities & Ancillary Services",10,"16400-1","FSCD Facilities & Ancillary Services - Administration","16400-1-1","FSCD Facilities and Ancillary - AVP Office",100,"Administration","2017-01-01","2099-12-31","N","Facilities Svs & Campus Dev.",8454,"FAC & ANCILLARY ADMIN ",{"$f":"VLOOKUP(K1035,WORKORDERS!$A:$P,16,FALSE)","v":"no"}]
[null,640,"Facilities Services and Campus Development",640,"Facilities and Ancillary Services",6401,"Facilities & Ancillary Services - Initiatives",50,"56401-1","FSCD Minor Capital","56401-1-1","FSCD Minor Capital",500,"Capital - General","2021-07-01","2099-12-31","P",{"$error":"#N/A"},{"$error":"#N/A"},{"$error":"#N/A"},{"$f":"VLOOKUP(K1036,WORKORDERS!$A:$P,16,FALSE)","v":"no"}]
[null,640,"Facilities Services and Campus Development",641,"Ancillary - Facilities",6410,"Parking and Security",40,"46410-1","FSCD Ancillary - Administration","46410-1-1","FSCD Parking - Administration",400,"Ancillary Administration","2017-01-01","2099-12-31","N","Ancillary - Facilities",8701,"FAC. ANCILLARY - ADMIN",{"$f":"VLOOKUP(K1037,WORKORDERS!$A:$P,16,FALSE)","v":"no"}]
[null,640,"Facilities Services and Campus Development",641,"Ancillary - Facilities",6410,"Parking and Security",40,"46410-1","FSCD Ancillary - Administration","46410-1-2","FSCD Security - Administration",400,"Ancillary Administration","2017-01-01","2099-12-31","N","Ancillary - Facilities",8702,"SECURITY MANAGEMENT",{"$f":"VLOOKUP(K1038,WORKORDERS!$A:$P,16,FALSE)","v":"no"}]
[null,640,"Facilities Services and Campus Development",641,"Ancillary - Facilities",6410,"Parking and Security",40,"46410-2","FSCD Parking and Security - Cowichan Campus","46410-2-1","FSCD Parking and Security - Cowichan",401,"Retail Operations","2017-01-01","2099-12-31","N","Ancillary - Facilities",8707,"COWICHAN - PARKING/SECURITY",{"$f":"VLOOKUP(K1039,WORKORDERS!$A:$P,16,FALSE)","v":"no"}]
[null,640,"Facilities Services and Campus Development",641,"Ancillary - Facilities",6410,"Parking and Security",40,"46410-2","FSCD Parking and Security - Cowichan Campus","46410-2-2","FSCD Snow Removal - Cowichan",401,"Retail Operations","2017-01-01","2099-12-31","N","Ancillary - Facilities",8708,"COWICHAN-SNOW/ICE REMOVAL",{"$f":"VLOOKUP(K1040,WORKORDERS!$A:$P,16,FALSE)","v":"no"}]
[null,640,"Facilities Services and Campus Development",641,"Ancillary - Facilities",6410,"Parking and Security",40,"46410-3","FSCD Parking and Security - Cowichan Trades Centre","46410-3-1","FSCD Parking and Security - CTC",401,"Retail Operations","2017-01-01","2099-12-31","N","Ancillary - Facilities",8712,"COW.TRADES-PARKING/SECURI",{"$f":"VLOOKUP(K1041,WORKORDERS!$A:$P,16,FALSE)","v":"no"}]
[null,640,"Facilities Services and Campus Development",641,"Ancillary - Facilities",6410,"Parking and Security",40,"46410-3","FSCD Parking and Security - Cowichan Trades Centre","46410-3-2","FSCD Snow Removal - CTC",401,"Retail Operations","2017-01-01","2099-12-31","N","Ancillary - Facilities",8711,"COW.TRADES-SNOW/ICE REMOV",{"$f":"VLOOKUP(K1042,WORKORDERS!$A:$P,16,FALSE)","v":"no"}]
[null,640,"Facilities Services and Campus Development",641,"Ancillary - Facilities",6410,"Parking and Security",40,"46410-4","FSCD Parking and Security - G.R. Paine Centre","46410-4-1","FSCD Parking and Security -  G.R. Paine Centre",401,"Retail Operations","2017-01-01","2099-12-31","N","Ancillary - Facilities",8713,"GR PAINE-PARKING/SECURITY",{"$f":"VLOOKUP(K1043,WORKORDERS!$A:$P,16,FALSE)","v":"no"}]
[null,640,"Facilities Services and Campus Development",641,"Ancillary - Facilities",6410,"Parking and Security",40,"46410-4","FSCD Parking and Security - G.R. Paine Centre","46410-4-2","FSCD Snow Removal -  G.R. Paine Centre",401,"Retail Operations","2017-01-01","2099-12-31","N","Ancillary - Facilities",8714,"GR PAINE-SNOW/ICE REMOVAL",{"$f":"VLOOKUP(K1044,WORKORDERS!$A:$P,16,FALSE)","v":"no"}]
[null,640,"Facilities Services and Campus Development",641,"Ancillary - Facilities",6410,"Parking and Security",40,"46410-5","FSCD Parking and Security - Nanaimo Campus","46410-5-1","FSCD Parking and Security - Nanaimo",401,"Retail Operations","2017-01-01","2099-12-31","N","Ancillary - Facilities",8705,"NANAIMO-PARKING/SECURITY",{"$f":"VLOOKUP(K1045,WORKORDERS!$A:$P,16,FALSE)","v":"no"}]
[null,640,"Facilities Services and Campus Development",641,"Ancillary - Facilities",6410,"Parking and Security",40,"46410-5","FSCD Parking and Security - Nanaimo Campus","46410-5-2","FSCD Snow Removal - Nanaimo",401,"Retail Operations","2017-01-01","2099-12-31","N","Ancillary - Facilities",8704,"NANAIMO-SNOW/ICE REMOVAL",{"$f":"VLOOKUP(K1046,WORKORDERS!$A:$P,16,FALSE)","v":"no"}]
[null,640,"Facilities Services and Campus Development",641,"Ancillary - Facilities",6410,"Parking and Security",40,"46410-6","FSCD Parking and Security - Powell River Campus","46410-6-1","FSCD Parking and Security -  Powell River",401,"Retail Operations","2017-01-01","2099-12-31","N","Ancillary - Facilities",8709,"POWELL RIVER-PARKING/SEC.",{"$f":"VLOOKUP(K1047,WORKORDERS!$A:$P,16,FALSE)","v":"no"}]
[null,640,"Facilities Services and Campus Development",641,"Ancillary - Facilities",6410,"Parking and Security",40,"46410-6","FSCD Parking and Security - Powell River Campus","46410-6-2","FSCD Snow Removal - Powell River",401,"Retail Operations","2017-01-01","2099-12-31","N","Ancillary - Facilities",8710,"POWELL RIVER-SNOW/ICE REM",{"$f":"VLOOKUP(K1048,WORKORDERS!$A:$P,16,FALSE)","v":"no"}]
[null,640,"Facilities Services and Campus Development",641,"Ancillary - Facilities",6420,"Environmental Sustainability",40,"46420-1","FSCD Environmental Sustainability","46420-1-1","FSCD Environmental Sustainability",400,"Ancillary Administration","2017-01-01","2099-12-31","N","Ancillary - Facilities",8715,"ENVIRON. & SUSTAINABILITY",{"$f":"VLOOKUP(K1049,WORKORDERS!$A:$P,16,FALSE)","v":"no"}]
[null,640,"Facilities Services and Campus Development",643,"Facilities Services and Campus Development",6430,"Facilities Services and Campus Development",10,"16430-1","FSCD Facilities Services and Campus Development","16430-1-1","FSCD Administration",100,"Administration","2017-01-01","2099-12-31","N","Facilities Svs & Campus Dev.",8450,"FSCD ADMINISTRATION",{"$f":"VLOOKUP(K1050,WORKORDERS!$A:$P,16,FALSE)","v":"no"}]
[null,640,"Facilities Services and Campus Development",643,"Facilities Services and Campus Development",6432,"Facilities Services",10,"16432-1","FSCD Recoveries","16432-1-1","FSCD Recoveries - Physical Plant",100,"Administration","2017-01-01","2099-12-31","N","Facilities Svs & Campus Dev.",8401,"PHYS.PLANT RECOVERY",{"$f":"VLOOKUP(K1051,WORKORDERS!$A:$P,16,FALSE)","v":"no"}]
[null,640,"Facilities Services and Campus Development",643,"Facilities Services and Campus Development",6432,"Facilities Services",10,"16432-1","FSCD Recoveries","16432-1-2","FSCD Recoveries - Project costs",100,"Administration","2017-01-01","2099-12-31","N","Facilities Svs & Campus Dev.",8402,"PROJECT COST RECOVERY",{"$f":"VLOOKUP(K1052,WORKORDERS!$A:$P,16,FALSE)","v":"no"}]
[null,640,"Facilities Services and Campus Development",643,"Facilities Services and Campus Development",6432,"Facilities Services",10,"16432-2","FSCD Risk Management","16432-2-2","FSCD Risk Management",100,"Administration","2017-01-01","2099-12-31","N","Facilities Svs & Campus Dev.",8408,"RISK MANAGEMENT",{"$f":"VLOOKUP(K1053,WORKORDERS!$A:$P,16,FALSE)","v":"no"}]
[null,640,"Facilities Services and Campus Development",643,"Facilities Services and Campus Development",6432,"Facilities Services",10,"16432-3","FSCD Properties","16432-3-1","FSCD HHS Portables",100,"Administration","2017-01-01","2099-12-31","N","Facilities Svs & Campus Dev.",8427,"HHS PORTABLES ",{"$f":"VLOOKUP(K1054,WORKORDERS!$A:$P,16,FALSE)","v":"no"}]
[null,640,"Facilities Services and Campus Development",643,"Facilities Services and Campus Development",6432,"Facilities Services",10,"16432-3","FSCD Properties","16432-3-4","FSCD Milner Gardens",100,"Administration","2017-01-01","2099-12-31","N","Facilities Svs & Campus Dev.",8445,"MILNER GARDENS",{"$f":"VLOOKUP(K1055,WORKORDERS!$A:$P,16,FALSE)","v":"no"}]
[null,640,"Facilities Services and Campus Development",643,"Facilities Services and Campus Development",6435,"Campus Development",10,"16435-1","FSCD Campus Development","16435-1-1","FSCD Campus Development",100,"Administration","2017-01-01","2099-12-31","N","Facilities Svs & Campus Dev.",8453,"CAMPUS DEVELOPMENT",{"$f":"VLOOKUP(K1056,WORKORDERS!$A:$P,16,FALSE)","v":"no"}]
[null,640,"Facilities Services and Campus Development",643,"Facilities Services and Campus Development",6435,"Campus Development",10,"16435-2","FSCD Universal Access","16435-2-1","FSCD Universal Access",100,"Administration","2017-01-01","2099-12-31","N","Facilities Svs & Campus Dev.",8403,"UNIVERSAL ACCESS",{"$f":"VLOOKUP(K1057,WORKORDERS!$A:$P,16,FALSE)","v":"no"}]
[null,640,"Facilities Services and Campus Development",643,"Facilities Services and Campus Development",6435,"Campus Development",10,"16435-3","FSCD SSF Funds - UAC","16435-3-1","FSCD SSF Funds UAC - Health and Wellness",100,"Administration","2017-01-01","2099-12-31","N","Facilities Svs & Campus Dev.",8495,"SSF UAC HEALTH & WELLNESS",{"$f":"VLOOKUP(K1058,WORKORDERS!$A:$P,16,FALSE)","v":"no"}]
[null,640,"Facilities Services and Campus Development",643,"Facilities Services and Campus Development",6435,"Campus Development",10,"16435-4","FSCD Routine Minor Maintenance","16435-4-1","FSCD Routine Minor Maintenance",100,"Administration","2017-01-01","2099-12-31","N","Facilities Svs & Campus Dev.","8460, 8461","ROUTINE MINOR OPERAT EXP, ROUTINE MINOR OPERATE REV",{"$f":"VLOOKUP(K1059,WORKORDERS!$A:$P,16,FALSE)","v":"no"}]
[null,640,"Facilities Services and Campus Development",644,"Building and Grounds",6440,"Buildings and Grounds",10,"16440-1","FSCD Buildings and Grounds - Administration","16440-1-1","FSCD Buildings and Grounds - Administration",100,"Administration","2017-01-01","2099-12-31","N","Facilities Svs & Campus Dev.",8451,"BUILDING & GROUNDS MGMT.",{"$f":"VLOOKUP(K1060,WORKORDERS!$A:$P,16,FALSE)","v":"no"}]
[null,640,"Facilities Services and Campus Development",644,"Building and Grounds",6440,"Buildings and Grounds",10,"16440-2","FSCD Shipping & Receiving","16440-2-1","FSCD Shipping & Receiving",100,"Administration","2017-01-01","2099-12-31","N","Facilities Svs & Campus Dev.",8480,"SHIPPING & RECEIVING",{"$f":"VLOOKUP(K1061,WORKORDERS!$A:$P,16,FALSE)","v":"no"}]
[null,640,"Facilities Services and Campus Development",644,"Building and Grounds",6440,"Buildings and Grounds",10,"16440-3","FSCD Mail & Delivery","16440-3-1","FSCD Mail & Delivery",100,"Administration","2017-01-01","2099-12-31","N","Facilities Svs & Campus Dev.",8490,"MAIL & DELIVERY",{"$f":"VLOOKUP(K1062,WORKORDERS!$A:$P,16,FALSE)","v":"no"}]
[null,640,"Facilities Services and Campus Development",644,"Building and Grounds",6442,"Fleet Management",10,"16442-1","FSCD Fleet Management","16442-1-1","FSCD Fleet Management",100,"Administration","2017-01-01","2099-12-31","N","Facilities Svs & Campus Dev.",8405,"FLEET",{"$f":"VLOOKUP(K1063,WORKORDERS!$A:$P,16,FALSE)","v":"no"}]
[null,640,"Facilities Services and Campus Development",644,"Building and Grounds",6442,"Fleet Management",10,"16442-1","FSCD Fleet Management","16442-1-2","FSCD Fleet Vehicle Insurance",100,"Administration","2017-01-01","2099-12-31","N","Facilities Svs & Campus Dev.",8407,"MOTOR VEHICLE INSURANCE",{"$f":"VLOOKUP(K1064,WORKORDERS!$A:$P,16,FALSE)","v":"no"}]
[null,640,"Facilities Services and Campus Development",644,"Building and Grounds",6445,"Facilities Maintenance",10,"16445-1","FSCD Facilities Maintenance - Cowichan","16445-1-1","FSCD Facilities Maintenance - Cowichan",100,"Administration","2017-01-01","2099-12-31","N","Facilities Svs & Campus Dev.",8437,"COWICHAN FACILITIES MAINT",{"$f":"VLOOKUP(K1065,WORKORDERS!$A:$P,16,FALSE)","v":"no"}]
[null,640,"Facilities Services and Campus Development",644,"Building and Grounds",6445,"Facilities Maintenance",10,"16445-2","FSCD Facilities Maintenance - CTC","16445-2-1","FSCD Facilities Maintenance - CTC",100,"Administration","2017-01-01","2099-12-31","N","Facilities Svs & Campus Dev.",8440,"CTC FACILITIES MAINT.",{"$f":"VLOOKUP(K1066,WORKORDERS!$A:$P,16,FALSE)","v":"no"}]
[null,640,"Facilities Services and Campus Development",644,"Building and Grounds",6445,"Facilities Maintenance",10,"16445-3","FSCD Facilities Maintenance - Deep Bay","16445-3-1","FSCD Facilities Maintenance - Deep Bay",100,"Administration","2017-01-01","2099-12-31","N","Facilities Svs & Campus Dev.",8426,"DEEP BAY RESEARCH CENTRE",{"$f":"VLOOKUP(K1067,WORKORDERS!$A:$P,16,FALSE)","v":"no"}]
[null,640,"Facilities Services and Campus Development",644,"Building and Grounds",6445,"Facilities Maintenance",10,"16445-4","FSCD Facilities Maintenance - G.R. Paine Centre","16445-4-1","FSCD Facilities Maintenance - G.R. Paine Centre",100,"Administration","2017-01-01","2099-12-31","N","Facilities Svs & Campus Dev.",8415,"GR PAINE FACILITIES MAINT",{"$f":"VLOOKUP(K1068,WORKORDERS!$A:$P,16,FALSE)","v":"no"}]
[null,640,"Facilities Services and Campus Development",644,"Building and Grounds",6445,"Facilities Maintenance",10,"16445-5","FSCD Facilities Maintenance - Nanaimo","16445-5-1","FSCD Facilities Maintenance - Nanaimo",100,"Administration","2017-01-01","2099-12-31","N","Facilities Svs & Campus Dev.",8400,"NANAIMO FACILITIES MAINT.",{"$f":"VLOOKUP(K1069,WORKORDERS!$A:$P,16,FALSE)","v":"no"}]
[null,640,"Facilities Services and Campus Development",644,"Building and Grounds",6445,"Facilities Maintenance",10,"16445-6","FSCD Facilities Maintenance - Parksville","16445-6-1","FSCD Facilities Maintenance - Parksville",100,"Administration","2017-01-01","2099-12-31","N","Facilities Svs & Campus Dev.",8425,"PARKSVILLE MAIN CAMPUS",{"$f":"VLOOKUP(K1070,WORKORDERS!$A:$P,16,FALSE)","v":"no"}]
[null,640,"Facilities Services and Campus Development",644,"Building and Grounds",6445,"Facilities Maintenance",10,"16445-7","FSCD Facilities Maintenance - Powell River","16445-7-1","FSCD Facilities Maintenance - Powell River",100,"Administration","2017-01-01","2099-12-31","N","Facilities Svs & Campus Dev.",8430,"POW RIVER FACILITIES MAIN",{"$f":"VLOOKUP(K1071,WORKORDERS!$A:$P,16,FALSE)","v":"no"}]
[null,640,"Facilities Services and Campus Development",644,"Building and Grounds",6448,"Grounds Maintenance",10,"16448-1","FSCD Grounds Maintenance - Cowichan","16448-1-1","FSCD Grounds Maintenance - Cowichan",100,"Administration","2017-01-01","2099-12-31","N","Facilities Svs & Campus Dev.",8438,"COWICHAN GROUNDS",{"$f":"VLOOKUP(K1072,WORKORDERS!$A:$P,16,FALSE)","v":"no"}]
[null,640,"Facilities Services and Campus Development",644,"Building and Grounds",6448,"Grounds Maintenance",10,"16448-2","FSCD Grounds Maintenance - CTC","16448-2-1","FSCD Grounds Maintenance - CTC",100,"Administration","2017-01-01","2099-12-31","N","Facilities Svs & Campus Dev.",8441,"CTC GROUNDS",{"$f":"VLOOKUP(K1073,WORKORDERS!$A:$P,16,FALSE)","v":"no"}]
[null,640,"Facilities Services and Campus Development",644,"Building and Grounds",6448,"Grounds Maintenance",10,"16448-3","FSCD Grounds Maintenance - G.R. Paine Centre","16448-3-1","FSCD Grounds Maintenance - G.R. Paine Centre",100,"Administration","2017-01-01","2099-12-31","N","Facilities Svs & Campus Dev.",8416,"GR PAINE GROUNDS",{"$f":"VLOOKUP(K1074,WORKORDERS!$A:$P,16,FALSE)","v":"no"}]
[null,640,"Facilities Services and Campus Development",644,"Building and Grounds",6448,"Grounds Maintenance",10,"16448-4","FSCD Grounds Maintenance - Nanaimo","16448-4-1","FSCD Grounds Maintenance - Nanaimo",100,"Administration","2017-01-01","2099-12-31","N","Facilities Svs & Campus Dev.",8410,"NANAIMO GROUNDS",{"$f":"VLOOKUP(K1075,WORKORDERS!$A:$P,16,FALSE)","v":"no"}]
[null,640,"Facilities Services and Campus Development",644,"Building and Grounds",6448,"Grounds Maintenance",10,"16448-5","FSCD Grounds Maintenance - Powell River","16448-5-1","FSCD Grounds Maintenance - Powell River",100,"Administration","2017-01-01","2099-12-31","N","Facilities Svs & Campus Dev.",8431,"POW RIVER GROUNDS",{"$f":"VLOOKUP(K1076,WORKORDERS!$A:$P,16,FALSE)","v":"no"}]
[null,640,"Facilities Services and Campus Development",645,"Technical Systems",6450,"Technical Systems",10,"16450-1","FSCD Technical Systems  - Administration","16450-1-1","FSCD Technical Systems  - Administration",100,"Administration","2017-01-01","2099-12-31","N","Facilities Svs & Campus Dev.",8452,"BUILDING SYSTEMS MGMT.",{"$f":"VLOOKUP(K1077,WORKORDERS!$A:$P,16,FALSE)","v":"no"}]
[null,640,"Facilities Services and Campus Development",645,"Technical Systems",6452,"HVAC and Utilities",10,"16452-1","FSCD HVAC and Utilities - Cowichan","16452-1-1","FSCD HVAC and Utilities - Cowichan",100,"Administration","2017-01-01","2099-12-31","N","Facilities Svs & Campus Dev.",8439,"COWICHAN HVAC & UTILITIES",{"$f":"VLOOKUP(K1078,WORKORDERS!$A:$P,16,FALSE)","v":"no"}]
[null,640,"Facilities Services and Campus Development",645,"Technical Systems",6452,"HVAC and Utilities",10,"16452-2","FSCD HVAC and Utilities - CTC","16452-2-1","FSCD HVAC and Utilities - CTC",100,"Administration","2017-01-01","2099-12-31","N","Facilities Svs & Campus Dev.",8442,"CTC HVAC & UTILITIES",{"$f":"VLOOKUP(K1079,WORKORDERS!$A:$P,16,FALSE)","v":"no"}]
[null,640,"Facilities Services and Campus Development",645,"Technical Systems",6452,"HVAC and Utilities",10,"16452-3","FSCD HVAC and Utilities - Deep Bay","16452-3-1","FSCD HVAC and Utilities - Deep Bay",100,"Administration","2017-01-01","2099-12-31","N","Facilities Svs & Campus Dev.",8428,"DEEP BAY HVAC & UTILITIES",{"$f":"VLOOKUP(K1080,WORKORDERS!$A:$P,16,FALSE)","v":"no"}]
[null,640,"Facilities Services and Campus Development",645,"Technical Systems",6452,"HVAC and Utilities",10,"16452-4","FSCD HVAC and Utilities - G.R. Paine Centre","16452-4-1","FSCD HVAC and Utilities - G.R. Paine Centre",100,"Administration","2017-01-01","2099-12-31","N","Facilities Svs & Campus Dev.",8417,"GR PAINE HVAC & UTILITIES",{"$f":"VLOOKUP(K1081,WORKORDERS!$A:$P,16,FALSE)","v":"no"}]
[null,640,"Facilities Services and Campus Development",645,"Technical Systems",6452,"HVAC and Utilities",10,"16452-5","FSCD HVAC and Utilities - Nanaimo","16452-5-1","FSCD HVAC and Utilities - Nanaimo",100,"Administration","2017-01-01","2099-12-31","N","Facilities Svs & Campus Dev.",8411,"NANAIMO HVAC & UTILITIES",{"$f":"VLOOKUP(K1082,WORKORDERS!$A:$P,16,FALSE)","v":"no"}]
[null,640,"Facilities Services and Campus Development",645,"Technical Systems",6452,"HVAC and Utilities",10,"16452-5","FSCD HVAC and Utilities - Nanaimo","16452-5-2","FSCD Nanaimo Geoexchange",100,"Administration","2017-01-01","2099-12-31","N","Facilities Svs & Campus Dev.",8412,"GEOEXCHANGE",{"$f":"VLOOKUP(K1083,WORKORDERS!$A:$P,16,FALSE)","v":"no"}]
[null,640,"Facilities Services and Campus Development",645,"Technical Systems",6452,"HVAC and Utilities",10,"16452-6","FSCD HVAC and Utilities - Powell River","16452-6-1","FSCD HVAC and Utilities - Powell River",100,"Administration","2017-01-01","2099-12-31","N","Facilities Svs & Campus Dev.",8432,"POW RIVER HVAC&UTILITIES",{"$f":"VLOOKUP(K1084,WORKORDERS!$A:$P,16,FALSE)","v":"no"}]
[null,640,"Facilities Services and Campus Development",645,"Technical Systems",6455,"Audio Visual Systems",10,"16455-1","FSCD Audio Visual Systems","16455-1-1","FSCD Audio Visual Systems",100,"Administration","2017-01-01","2099-12-31","N","Facilities Svs & Campus Dev.",8456,"AUDIO-VISUAL SERVICES",{"$f":"VLOOKUP(K1085,WORKORDERS!$A:$P,16,FALSE)","v":"no"}]
[null,640,"Facilities Services and Campus Development",650,"Capital Activity",6500,"Facilities Managed Projects",50,"56500-1","FSCD Facilities Managed Projects","56500-1-1","FSCD FMP - 2122-020 B180 Classroom Upgrades ",550,"Capital FMP - Administration","2021-03-27","2099-12-31","N","Capital",9528,"2122-020 B180 CLASSROOM",{"$f":"VLOOKUP(K1086,WORKORDERS!$A:$P,16,FALSE)","v":"no"}]
[null,640,"Facilities Services and Campus Development",650,"Capital Activity",6500,"Facilities Managed Projects",50,"56500-1","FSCD Facilities Managed Projects","56500-1-2","FSCD FMP - Facility Student Accomodations",550,"Capital FMP - Administration","2021-03-27","2099-12-31","N","Capital",9460,"FACILITY STDNT ACCOMDTION",{"$f":"VLOOKUP(K1087,WORKORDERS!$A:$P,16,FALSE)","v":"no"}]
[null,640,"Facilities Services and Campus Development",650,"Capital Activity",6500,"Facilities Managed Projects",50,"56500-1","FSCD Facilities Managed Projects","56500-1-3","FSCD FMP - Biology Lab Repairs",550,"Capital FMP - Administration","2021-03-27","2099-12-31","N","Capital",9531,"2122-061 BIO LAB REPAIRS ",{"$f":"VLOOKUP(K1088,WORKORDERS!$A:$P,16,FALSE)","v":"no"}]
[null,640,"Facilities Services and Campus Development",650,"Capital Activity",6550,"Carbon Neutral Capital Projects ",50,"56550-1","FSCD Carbon Neutral Capital Projects ","56550-1-1","FSCD CNP - Administration",550,"Capital FMP - Administration","2021-03-27","2099-12-31","N","Capital",9029,"CARBON NEUTRAL PROJECTREV ",{"$f":"VLOOKUP(K1089,WORKORDERS!$A:$P,16,FALSE)","v":"no"}]
[null,640,"Facilities Services and Campus Development",650,"Capital Activity",6550,"Carbon Neutral Capital Projects ",50,"56550-1","FSCD Carbon Neutral Capital Projects ","56550-1-2","FSCD CNP - 1920-023 B300 Refrigerator ",550,"Capital FMP - Administration","2021-03-27","2099-12-31","N","Capital",9380,"1920-023 B300 REFRIGERATR ",{"$f":"VLOOKUP(K1090,WORKORDERS!$A:$P,16,FALSE)","v":"no"}]
[null,640,"Facilities Services and Campus Development",650,"Capital Activity",6550,"Carbon Neutral Capital Projects ",50,"56550-1","FSCD Carbon Neutral Capital Projects ","56550-1-3","FSCD CNP - 2122-004 Fleet EV Charge Stations",550,"Capital FMP - Administration","2021-03-27","2099-12-31","N",{"$error":"#N/A"},{"$error":"#N/A"},{"$error":"#N/A"},{"$f":"VLOOKUP(K1091,WORKORDERS!$A:$P,16,FALSE)","v":"no"}]
[null,640,"Facilities Services and Campus Development",650,"Capital Activity",6575,"Buildings and Infrastructure ",50,"56575-1","FSCD Buildings and Infrastructure ","56575-1-1","FSCD BI - Day Care - Exp",550,"Capital FMP - Administration","2021-03-27","2099-12-31","N","Capital",9077,"DAY CARE EXP",{"$f":"VLOOKUP(K1092,WORKORDERS!$A:$P,16,FALSE)","v":"no"}]
[null,640,"Facilities Services and Campus Development",650,"Capital Activity",6575,"Buildings and Infrastructure ",50,"56575-1","FSCD Buildings and Infrastructure ","56575-1-2","FSCD BI - Aboriginal Gathering Phase II",550,"Capital FMP - Administration","2021-03-27","2099-12-31","N","Capital",9100,"ABOR. GATHERING PL. PHASE 2",{"$f":"VLOOKUP(K1093,WORKORDERS!$A:$P,16,FALSE)","v":"no"}]
[null,640,"Facilities Services and Campus Development",650,"Capital Activity",6575,"Buildings and Infrastructure ",50,"56575-1","FSCD Buildings and Infrastructure ","56575-1-3","FSCD BI - LIB - Expansion (Buildings & Equipment)",550,"Capital FMP - Administration","2021-03-27","2099-12-31","N","Capital",9000,"LIB - EXPANSION",{"$f":"VLOOKUP(K1094,WORKORDERS!$A:$P,16,FALSE)","v":"no"}]
[null,640,"Facilities Services and Campus Development",650,"Capital Activity",6575,"Buildings and Infrastructure ",50,"56575-1","FSCD Buildings and Infrastructure ","56575-1-4","FSCD BI - 1819-006 Ext Corr Protect ",550,"Capital FMP - Administration","2021-03-27","2099-12-31","N","Capital",9303,"1819-006 EXT CORR PROTECT",{"$f":"VLOOKUP(K1095,WORKORDERS!$A:$P,16,FALSE)","v":"no"}]
[null,640,"Facilities Services and Campus Development",650,"Capital Activity",6575,"Buildings and Infrastructure ",50,"56575-1","FSCD Buildings and Infrastructure ","56575-1-5","FSCD BI - 1819-010 Ductwork Reseal ",550,"Capital FMP - Administration","2021-03-27","2099-12-31","N","Capital",9307,"1819-010 DUCTWORK RESEAL",{"$f":"VLOOKUP(K1096,WORKORDERS!$A:$P,16,FALSE)","v":"no"}]
[null,640,"Facilities Services and Campus Development",650,"Capital Activity",6600,"Routine Capital ",50,"56600-1","FSCD Routine Capital","56600-1-1","FSCD RC - 1920-003 LED EXT Lighting ",550,"Capital FMP - Administration","2021-03-27","2099-12-31","N","Capital",9333,"1920-003 LED EXT LIGHTING ",{"$f":"VLOOKUP(K1097,WORKORDERS!$A:$P,16,FALSE)","v":"no"}]
[null,640,"Facilities Services and Campus Development",650,"Capital Activity",6600,"Routine Capital ",50,"56600-1","FSCD Routine Capital","56600-1-2","FSCD RC - 1920-015 B356 HVAC Replacement ",550,"Capital FMP - Administration","2021-03-27","2099-12-31","N","Capital",9341,"1920-015 B356 HVAC RPLCE ",{"$f":"VLOOKUP(K1098,WORKORDERS!$A:$P,16,FALSE)","v":"no"}]
[null,640,"Facilities Services and Campus Development",650,"Capital Activity",6600,"Routine Capital ",50,"56600-1","FSCD Routine Capital","56600-1-3","FSCD RC - 2021-029 Intrusion Sysy",550,"Capital FMP - Administration","2021-03-27","2099-12-31","N","Capital",9383,"2021-029 INTRUSION SYSY",{"$f":"VLOOKUP(K1099,WORKORDERS!$A:$P,16,FALSE)","v":"no"}]
[null,640,"Facilities Services and Campus Development",650,"Capital Activity",6600,"Routine Capital ",50,"56600-1","FSCD Routine Capital","56600-1-4","FSCD RC - 1920-082 B345 Cladding",550,"Capital FMP - Administration","2021-03-27","2099-12-31","N","Capital",9475,"1920-082 B345 CLADDING ",{"$f":"VLOOKUP(K1100,WORKORDERS!$A:$P,16,FALSE)","v":"no"}]
[null,640,"Facilities Services and Campus Development",650,"Capital Activity",6600,"Routine Capital ",50,"56600-1","FSCD Routine Capital","56600-1-5","FSCD RC - 2021-049 B300 & B310 RF & Air ",550,"Capital FMP - Administration","2021-03-27","2099-12-31","N","Capital",9503,"2021-049 B300&B310 RF&AIR",{"$f":"VLOOKUP(K1101,WORKORDERS!$A:$P,16,FALSE)","v":"no"}]
[null,640,"Facilities Services and Campus Development",650,"Capital Activity",6600,"Routine Capital ",50,"56600-1","FSCD Routine Capital","56600-1-6","FSCD RC - 2122-001 Roof Replacement",550,"Capital FMP - Administration","2021-03-27","2099-12-31","N","Capital",9507,"2122-001 ROOF REPLACEMENT",{"$f":"VLOOKUP(K1102,WORKORDERS!$A:$P,16,FALSE)","v":"no"}]
[null,640,"Facilities Services and Campus Development",650,"Capital Activity",6600,"Routine Capital ",50,"56600-1","FSCD Routine Capital","56600-1-7","FSCD RC - 2122-002 Exterior Paint ",550,"Capital FMP - Administration","2021-03-27","2099-12-31","N","Capital",9508,"2122-002 EXTERIOR PAINT ",{"$f":"VLOOKUP(K1103,WORKORDERS!$A:$P,16,FALSE)","v":"no"}]
[null,640,"Facilities Services and Campus Development",650,"Capital Activity",6600,"Routine Capital ",50,"56600-1","FSCD Routine Capital","56600-1-8","FSCD RC - 1920-037 Deep Bay Structure",550,"Capital FMP - Administration","2021-03-27","2099-12-31","N","Capital",9348,"1920-037 DEEP BAY STRUCT",{"$f":"VLOOKUP(K1104,WORKORDERS!$A:$P,16,FALSE)","v":"no"}]
[null,640,"Facilities Services and Campus Development",650,"Capital Activity",6600,"Routine Capital ",50,"56600-1","FSCD Routine Capital","56600-1-9","FSCD RC - 2021-101 Student Fire Alarm",550,"Capital FMP - Administration","2021-03-27","2099-12-31","N","Capital",9505,"1920-037 STUDT FIRE ALARM",{"$f":"VLOOKUP(K1105,WORKORDERS!$A:$P,16,FALSE)","v":"no"}]
[null,640,"Facilities Services and Campus Development",650,"Capital Activity",6600,"Routine Capital ",50,"56600-1","FSCD Routine Capital","56600-1-10","FSCD RC - 2122-021 Food Services Reno",550,"Capital FMP - Administration","2021-03-27","2099-12-31","N","Capital",9517,"2122-021 FOOD SERV RENO",{"$f":"VLOOKUP(K1106,WORKORDERS!$A:$P,16,FALSE)","v":"no"}]
[null,640,"Facilities Services and Campus Development",650,"Capital Activity",6600,"Routine Capital ",50,"56600-1","FSCD Routine Capital","56600-1-11","FSCD RC - 2122-017 B300 Mechanical",550,"Capital FMP - Administration","2021-03-27","2099-12-31","N","Capital",9525,"2122-017 B300 MECHANICAL ",{"$f":"VLOOKUP(K1107,WORKORDERS!$A:$P,16,FALSE)","v":"no"}]
[null,640,"Facilities Services and Campus Development",650,"Capital Activity",6600,"Routine Capital ",50,"56600-1","FSCD Routine Capital","56600-1-12","FSCD RC - 2122-006 Classroom Refurbish ",550,"Capital FMP - Administration","2021-03-27","2099-12-31","N","Capital",9527,"2122-006 CLASSROOM REFURB ",{"$f":"VLOOKUP(K1108,WORKORDERS!$A:$P,16,FALSE)","v":"no"}]
[null,640,"Facilities Services and Campus Development",650,"Capital Activity",6600,"Routine Capital ",50,"56600-1","FSCD Routine Capital","56600-1-13","FSCD RC - 1920-102 B610 PR HCA Lab",550,"Capital FMP - Administration","2021-03-27","2099-12-31","N","Capital",9518,"1920-102 B610 PR HCA LAB",{"$f":"VLOOKUP(K1109,WORKORDERS!$A:$P,16,FALSE)","v":"no"}]
[null,640,"Facilities Services and Campus Development",650,"Capital Activity",6600,"Routine Capital ",50,"56600-1","FSCD Routine Capital","56600-1-14","FSCD RC - 2021-126 B160 Geoexchange ",550,"Capital FMP - Administration","2021-03-27","2099-12-31","N","Capital",9519,"2021-126 B160 GEOEXCHANGE ",{"$f":"VLOOKUP(K1110,WORKORDERS!$A:$P,16,FALSE)","v":"no"}]
[null,640,"Facilities Services and Campus Development",650,"Capital Activity",6600,"Routine Capital ",50,"56600-1","FSCD Routine Capital","56600-1-15","FSCD RC - 2122-009 B305 Washrooms",550,"Capital FMP - Administration","2021-03-27","2099-12-31","N","Capital",9521,"2122-009 B305 WASHROOMS ",{"$f":"VLOOKUP(K1111,WORKORDERS!$A:$P,16,FALSE)","v":"no"}]
[null,640,"Facilities Services and Campus Development",650,"Capital Activity",6600,"Routine Capital ",50,"56600-1","FSCD Routine Capital","56600-1-16","FSCD RC - 2122-011 B355 Lecture Theatre ",550,"Capital FMP - Administration","2021-03-27","2099-12-31","N","Capital",9522,"2122-011 B355 LEC THEATRE ",{"$f":"VLOOKUP(K1112,WORKORDERS!$A:$P,16,FALSE)","v":"no"}]
[null,640,"Facilities Services and Campus Development",650,"Capital Activity",6600,"Routine Capital ",50,"56600-1","FSCD Routine Capital","56600-1-17","FSCD RC - 2122-013 Library Courtyard ",550,"Capital FMP - Administration","2021-03-27","2099-12-31","N","Capital",9523,"2122-013 LIB COURTYARD  ",{"$f":"VLOOKUP(K1113,WORKORDERS!$A:$P,16,FALSE)","v":"no"}]
[null,640,"Facilities Services and Campus Development",650,"Capital Activity",6600,"Routine Capital ",50,"56600-1","FSCD Routine Capital","56600-1-18","FSCD RC - 2021-103 Deck Repair ",550,"Capital FMP - Administration","2021-03-27","2099-12-31","N","Capital",9524,"2021-103 DECK REPAIR  ",{"$f":"VLOOKUP(K1114,WORKORDERS!$A:$P,16,FALSE)","v":"no"}]
[null,640,"Facilities Services and Campus Development",650,"Capital Activity",6600,"Routine Capital ",50,"56600-1","FSCD Routine Capital","56600-1-19","FSCD RC - 2122-021 COVID Mechanical ",550,"Capital FMP - Administration","2021-03-27","2099-12-31","N","Capital",9529,"2122-021 COVID MECHANICAL ",{"$f":"VLOOKUP(K1115,WORKORDERS!$A:$P,16,FALSE)","v":"no"}]
[null,640,"Facilities Services and Campus Development",650,"Capital Activity",6600,"Routine Capital ",50,"56600-1","FSCD Routine Capital","56600-1-20","FSCD RC - 1920-029 Powell River Parking Lot Resurfacing ",550,"Capital FMP - Administration","2021-03-27","2099-12-31","N","Capital",9530,"1920-029 PR PARKING LOT",{"$f":"VLOOKUP(K1116,WORKORDERS!$A:$P,16,FALSE)","v":"no"}]
[null,640,"Facilities Services and Campus Development",650,"Capital Activity",6600,"Routine Capital ",50,"56600-1","FSCD Routine Capital","56600-1-21","FSCD RC - 2122-022 B120 Enclosed Office Space Paint Shop",550,"Capital FMP - Administration","2021-03-27","2099-12-31","N",{"$error":"#N/A"},{"$error":"#N/A"},{"$error":"#N/A"},{"$f":"VLOOKUP(K1117,WORKORDERS!$A:$P,16,FALSE)","v":"no"}]
[null,640,"Facilities Services and Campus Development",650,"Capital Activity",6600,"Routine Capital ",50,"56600-1","FSCD Routine Capital","56600-1-22","FSCD RC - 2122-035 Universal Access Improvements",550,"Capital FMP - Administration","2021-03-27","2099-12-31","N",{"$error":"#N/A"},{"$error":"#N/A"},{"$error":"#N/A"},{"$f":"VLOOKUP(K1118,WORKORDERS!$A:$P,16,FALSE)","v":"no"}]
[null,640,"Facilities Services and Campus Development",650,"Capital Activity",6625,"Universal Access",50,"56625-1","FSCD Universal Access - General ","56625-1-1","FSCD UA - 1920-022 Universal Access ",550,"Capital FMP - Administration","2021-03-27","2099-12-31","N","Capital",9394,"1920-022 UNIVERSL ACCESS ",{"$f":"VLOOKUP(K1119,WORKORDERS!$A:$P,16,FALSE)","v":"no"}]
[null,640,"Facilities Services and Campus Development",650,"Capital Activity",6625,"Universal Access",50,"56625-1","FSCD Universal Access - General ","56625-1-2","FSCD UA - 1920-083 Outdoor Ramp Replacement ",550,"Capital FMP - Administration","2021-03-27","2099-12-31","N","Capital",9395,"1920-083 OUTDR RMP REP",{"$f":"VLOOKUP(K1120,WORKORDERS!$A:$P,16,FALSE)","v":"no"}]
[null,640,"Facilities Services and Campus Development",650,"Capital Activity",6625,"Universal Access",50,"56625-1","FSCD Universal Access - General ","56625-1-3","FSCD UA - 2021-117 Access Washrooms",550,"Capital FMP - Administration","2021-03-27","2099-12-31","N","Capital",9510,"2021-117 ACCESS WASHROOMS",{"$f":"VLOOKUP(K1121,WORKORDERS!$A:$P,16,FALSE)","v":"no"}]
[null,640,"Facilities Services and Campus Development",650,"Capital Activity",6650,"Capital - Other",50,"56650-1","FSCD Capital Other ","56650-1-1","FSCD CO - Eclipse",550,"Capital FMP - Administration","2021-03-27","2099-12-31","N","Capital",9454,"1920-086 ECLIPSE",{"$f":"VLOOKUP(K1122,WORKORDERS!$A:$P,16,FALSE)","v":"no"}]
[null,640,"Facilities Services and Campus Development",650,"Capital Activity",6650,"Capital - Other",50,"56650-1","FSCD Capital Other ","56650-1-2","FSCD CO - Evergreen ",550,"Capital FMP - Administration","2021-03-27","2099-12-31","N","Capital",9001,"FAC - EVERGREEN ",{"$f":"VLOOKUP(K1123,WORKORDERS!$A:$P,16,FALSE)","v":"no"}]
[null,640,"Facilities Services and Campus Development",650,"Capital Activity",6650,"Capital - Other",50,"56650-2","FSCD Capital Unfunded Objectives","56650-2-1","FSCD UFO - 2122-074 Cowichan Trade Centre - Business Case ",550,"Capital FMP - Administration","2021-03-27","2099-12-31","N",{"$error":"#N/A"},{"$error":"#N/A"},{"$error":"#N/A"},{"$f":"VLOOKUP(K1124,WORKORDERS!$A:$P,16,FALSE)","v":"no"}]
[null,670,"Ancillary Operations",670,"Ancillary Services",6700,"Ancillary Services",40,"46700-1","ANC Ancillary Services","46700-1-1","ANC Ancillary Services",400,"Ancillary Administration","2017-01-01","2099-12-31","N","Ancillary - Administration",8620,"BUSINESS OPERATIONS ",{"$f":"VLOOKUP(K1125,WORKORDERS!$A:$P,16,FALSE)","v":"no"}]
[null,670,"Ancillary Operations",670,"Ancillary Services",6701,"Ancillary Services - Initiatives",50,"56701-1","ANC Minor Capital","56701-1-1","ANC Minor Capital",500,"Capital - General","2021-07-01","2099-12-31","P",{"$error":"#N/A"},{"$error":"#N/A"},{"$error":"#N/A"},{"$f":"VLOOKUP(K1126,WORKORDERS!$A:$P,16,FALSE)","v":"no"}]
[null,670,"Ancillary Operations",670,"Ancillary Services",6705,"Other Ancillary Services",40,"46705-1","ANC Other Ancillary Services","46705-1-1","ANC Other Ancillary Services - Regalia",401,"Retail Operations","2017-01-01","2099-12-31","N","Ancillary - Business Operations",8610,"REGALIA DEPOSITS",{"$f":"VLOOKUP(K1127,WORKORDERS!$A:$P,16,FALSE)","v":"no"}]
[null,670,"Ancillary Operations",671,"Campus Store",6710,"Campus Store",40,"46710-1","ANC Campus Store - Nanaimo","46710-1-1","ANC Campus Store - Nanaimo",401,"Retail Operations","2017-01-01","2099-12-31","N","Ancillary - Campus Store",8600,"BOOKSTORE",{"$f":"VLOOKUP(K1128,WORKORDERS!$A:$P,16,FALSE)","v":"no"}]
[null,670,"Ancillary Operations",671,"Campus Store",6710,"Campus Store",40,"46710-1","ANC Campus Store - Nanaimo ","46710-1-2","ANC Campus Store - Nanaimo - Internal Clearing",401,"Retail Operations","2021-03-27","2099-12-31","N","Ancillary - Campus Store",8612,"BKS INTERNAL CRG-CLEARING",{"$f":"VLOOKUP(K1129,WORKORDERS!$A:$P,16,FALSE)","v":"no"}]
[null,670,"Ancillary Operations",671,"Campus Store",6710,"Campus Store",40,"46710-2","ANC Campus Store - Cowichan","46710-2-1","ANC Campus Store - Cowichan",401,"Retail Operations","2017-01-01","2099-12-31","N","Ancillary - Campus Store",8601,"BOOKSTORE - DUNCAN",{"$f":"VLOOKUP(K1130,WORKORDERS!$A:$P,16,FALSE)","v":"no"}]
[null,670,"Ancillary Operations",671,"Campus Store",6710,"Campus Store",40,"46710-3","ANC Campus Store - Powell River","46710-3-1","ANC Campus Store - Powell River",401,"Retail Operations","2017-01-01","2099-12-31","N","Ancillary - Campus Store",8603,"BOOKSTORE - POWELL RIVER",{"$f":"VLOOKUP(K1131,WORKORDERS!$A:$P,16,FALSE)","v":"no"}]
[null,670,"Ancillary Operations",671,"Campus Store",6710,"Campus Store",40,"46710-4","ANC Campus Store - Parksville","46710-4-1","ANC Campus Store - Parksville",401,"Retail Operations","2017-01-01","2099-12-31","N","Ancillary - Campus Store",8602,"BOOKSTORE - PARKSVILLE",{"$f":"VLOOKUP(K1132,WORKORDERS!$A:$P,16,FALSE)","v":"no"}]
[null,670,"Ancillary Operations",671,"Campus Store",6710,"Campus Store",40,"46710-5","ANC Campus Store - Book Buyback WEB","46710-5-1","ANC Campus Store - Book Buyback WEB",401,"Retail Operations","2017-01-01","2099-12-31","N","Ancillary - Campus Store",8605,"BB WEB (BOOK BUY BACK) ",{"$f":"VLOOKUP(K1133,WORKORDERS!$A:$P,16,FALSE)","v":"no"}]
[null,670,"Ancillary Operations",672,"Conference and Event Services",6720,"Conference & Event Services",40,"46720-1","ANC Conference & Event Services - External Events","46720-1-1","ANC Conference & Event Services - External Events",401,"Retail Operations","2017-01-01","2099-12-31","N","Ancillary - Events/External",8625,"BUSINESS OPS EXTERNAL REV",{"$f":"VLOOKUP(K1134,WORKORDERS!$A:$P,16,FALSE)","v":"no"}]
[null,670,"Ancillary Operations",672,"Conference and Event Services",6720,"Conference & Event Services",40,"46720-2","ANC Conference & Event Services - Vending","46720-2-1","ANC Conference & Event Services - Vending",401,"Retail Operations","2017-01-01","2099-12-31","N","Ancillary - Events/External",8606,"VENDING/CONCESSIONS",{"$f":"VLOOKUP(K1135,WORKORDERS!$A:$P,16,FALSE)","v":"no"}]
[null,670,"Ancillary Operations",674,"Food Services",6740,"Food Services",40,"46740-1","ANC Food Services - Department","46740-1-1","ANC Food Services - Department",401,"Retail Operations","2021-07-01","2099-12-31","P",{"$error":"#N/A"},{"$error":"#N/A"},{"$error":"#N/A"},{"$f":"VLOOKUP(K1136,WORKORDERS!$A:$P,16,FALSE)","v":"no"}]
[null,670,"Ancillary Operations",674,"Food Services",6740,"Food Services",40,"46740-2","ANC Food Services - Cafeteria","46740-2-1","ANC Food Services - Cafeteria",401,"Retail Operations","2017-01-01","2099-12-31","N","Ancillary - Food Services",3600,"CAFETERIA ",{"$f":"VLOOKUP(K1137,WORKORDERS!$A:$P,16,FALSE)","v":"no"}]
[null,670,"Ancillary Operations",674,"Food Services",6740,"Food Services",40,"46740-3","ANC Food Services - Catering","46740-3-1","ANC Food Services - Catering",401,"Retail Operations","2017-01-01","2099-12-31","N","Ancillary - Food Services",3604,"CATERING SERVICES ",{"$f":"VLOOKUP(K1138,WORKORDERS!$A:$P,16,FALSE)","v":"no"}]
[null,"670","Ancillary Operations","674","Food Services","6740","Food Services","40","46740-3","ANC Food Services - Catering","46740-3-2","ANC Food Services - Catering Clearing","401","Retail Operations","2021-03-27","2099-12-31","N","Ancillary - Food Services",8626,"CATERING - CLEARING ",{"$f":"VLOOKUP(K1139,WORKORDERS!$A:$P,16,FALSE)","v":"no"}]
[null,670,"Ancillary Operations",674,"Food Services",6740,"Food Services",40,"46740-4","ANC Food Services - Student Food Sales","46740-4-1","ANC Food Services - Student Food Sales",401,"Retail Operations","2017-01-01","2099-12-31","N","Ancillary - Food Services",3605,"STUDENT FOOD SALES ",{"$f":"VLOOKUP(K1140,WORKORDERS!$A:$P,16,FALSE)","v":"no"}]
[null,670,"Ancillary Operations",674,"Food Services",6740,"Food Services",40,"46740-5","ANC Food Services - StarBucks","46740-5-1","ANC Food Services - StarBucks",401,"Retail Operations","2017-01-01","2099-12-31","N","Ancillary - Food Services",3606,"STARBUCKS ",{"$f":"VLOOKUP(K1141,WORKORDERS!$A:$P,16,FALSE)","v":"no"}]
[null,670,"Ancillary Operations",678,"Printshop",6780,"Printshop",40,"46780-1","ANC Printshop","46780-1-1","ANC Printshop",401,"Retail Operations","2017-01-01","2099-12-31","N","Ancillary - Printshop",8640,"PRINTING/DUPLICATING ",{"$f":"VLOOKUP(K1142,WORKORDERS!$A:$P,16,FALSE)","v":"no"}]
[null,670,"Ancillary Operations",680,"VIU Student Residences",6800,"Student Residences",40,"46800-1","ANC Student Residences","46800-1-1","ANC Student Residences",400,"Ancillary Administration","2017-01-01","2099-12-31","N","Ancillary - VIU Student Res.",8650,"ANCILLARY - VIU STUDENT RES.",{"$f":"VLOOKUP(K1143,WORKORDERS!$A:$P,16,FALSE)","v":"no"}]
[null,670,"Ancillary Operations",680,"VIU Student Residences",6810,"Student Residences - Resident Life",40,"46810-1","ANC Student Residences - Residence Life","46810-1-1","ANC Student Residences - Residence Life",400,"Ancillary Administration","2021-07-01","2099-12-31","P",{"$error":"#N/A"},{"$error":"#N/A"},{"$error":"#N/A"},{"$f":"VLOOKUP(K1144,WORKORDERS!$A:$P,16,FALSE)","v":"no"}]
[null,700,"Financial Services",700,"Financial Services",7000,"Financial Services - AVP Office",10,"17000-1","FIN Financial Services - AVP Office","17000-1-1","FIN Financial Services - AVP Office",100,"Administration","2017-01-01","2099-12-31","N","Financial Services",8300,"FINANCIAL SERVICES",{"$f":"VLOOKUP(K1145,WORKORDERS!$A:$P,16,FALSE)","v":"no"}]
[null,700,"Financial Services",700,"Financial Services",7001,"Financial Services - Initiatives",50,"57001-1","FIN Minor Capital","57001-1-1","FIN Minor Capital",500,"Capital - General","2021-07-01","2099-12-31","P",{"$error":"#N/A"},{"$error":"#N/A"},{"$error":"#N/A"},{"$f":"VLOOKUP(K1146,WORKORDERS!$A:$P,16,FALSE)","v":"no"}]
[null,700,"Financial Services",701,"Accounting Services",7010,"Accounting Services - Director's Office",10,"17010-1","FIN Accounting Services - Director's Office","17010-1-1","FIN Accounting Services - Director's Office",100,"Administration","2017-01-01","2099-12-31","N","Financial Services",8309,"DIRECTOR OFFICE-ACCTING",{"$f":"VLOOKUP(K1147,WORKORDERS!$A:$P,16,FALSE)","v":"no"}]
[null,700,"Financial Services",701,"Accounting Services",7015,"Accounting Services Department",10,"17015-1","FIN Accounting Services Department","17015-1-1","FIN Accounting Services Department",100,"Administration","2017-01-01","2099-12-31","N","Financial Services",8310,"ACOUNTING SERVICES",{"$f":"VLOOKUP(K1148,WORKORDERS!$A:$P,16,FALSE)","v":"no"}]
[null,700,"Financial Services",701,"Accounting Services",7020,"Accounts Payable",10,"17020-1","FIN Accounts Payable","17020-1-1","FIN Accounts Payable",100,"Administration","2017-01-01","2099-12-31","N","Financial Services",8313,"ACCOUNTS PAYABLE",{"$f":"VLOOKUP(K1149,WORKORDERS!$A:$P,16,FALSE)","v":"no"}]
[null,700,"Financial Services",701,"Accounting Services",7030,"Procurement and Contract Services",10,"17030-1","FIN Procurement and Contract Services","17030-1-1","FIN Procurement and Contract Services",100,"Administration","2017-01-01","2099-12-31","N","Financial Services",8312,"PROCUREMENT",{"$f":"VLOOKUP(K1150,WORKORDERS!$A:$P,16,FALSE)","v":"no"}]
[null,700,"Financial Services",701,"Accounting Services",7030,"Procurement and Contract Services",10,"17030-2","FIN Procurement - Institutional","17030-2-1","FIN Procurement Inst - PCard Rebate",101,"Institutional","2017-01-01","2099-12-31","N","Financial Services",8350,"PCARD REBATE",{"$f":"VLOOKUP(K1151,WORKORDERS!$A:$P,16,FALSE)","v":"no"}]
[null,700,"Financial Services",701,"Accounting Services",7030,"Procurement and Contract Services",10,"17030-2","FIN Procurement - Institutional","17030-2-2","FIN Procurement Inst - Open PO Clearing",101,"Institutional","2017-01-01","2099-12-31","N","Financial Services",8399,"INST.OPEN PURCHASE ORDERS",{"$f":"VLOOKUP(K1152,WORKORDERS!$A:$P,16,FALSE)","v":"no"}]
[null,700,"Financial Services",701,"Accounting Services",7040,"Treasury & Collections",10,"17040-1","FIN Treasury & Collections","17040-1-1","FIN Treasury & Collections",100,"Administration","2017-01-01","2099-12-31","N","Financial Services",8311,"TREASURY & COLLECTIONS",{"$f":"VLOOKUP(K1153,WORKORDERS!$A:$P,16,FALSE)","v":"no"}]
[null,700,"Financial Services",701,"Accounting Services",7040,"Treasury & Collections",10,"17040-2","FIN Treasury & Collections - Institutional","17040-2-1","FIN Treasury & Collections Inst - Portfolio Interest",101,"Institutional","2017-01-01","2099-12-31","N","Financial Services",8340,"PORTFOLIO INTEREST",{"$f":"VLOOKUP(K1154,WORKORDERS!$A:$P,16,FALSE)","v":"no"}]
[null,700,"Financial Services",705,"Financial Planning & Reporting",7050,"Financial Planning and Reporting - Director's Office",10,"17050-1","FIN Financial Planning and Reporting - Director's Office","17050-1-1","FIN Financial Planning and Reporting - Director's Office",100,"Administration","2017-01-01","2099-12-31","N","Financial Services",8320,"DIRECTOR OFFICE-FIN PLAN",{"$f":"VLOOKUP(K1155,WORKORDERS!$A:$P,16,FALSE)","v":"no"}]
[null,700,"Financial Services",705,"Financial Planning & Reporting",7060,"Budgets & Financial Planning",10,"17060-1","FIN Budgets & Financial Planning","17060-1-1","FIN Budgets & Financial Planning",100,"Administration","2017-01-01","2099-12-31","N","Financial Services",8321,"BUDGETS & FINANCIAL PLAN",{"$f":"VLOOKUP(K1156,WORKORDERS!$A:$P,16,FALSE)","v":"no"}]
[null,700,"Financial Services",705,"Financial Planning & Reporting",7070,"Payroll",10,"17070-1","FIN Payroll","17070-1-1","FIN Payroll",100,"Administration","2017-01-01","2099-12-31","N","Financial Services",8322,"PAYROLL",{"$f":"VLOOKUP(K1157,WORKORDERS!$A:$P,16,FALSE)","v":"no"}]
[null,750,"Enterprise Risk Management",750,"Enterprise Risk Management",7500,"Risk Management Office",10,"17500-1","ERM Enterprise Risk Management Office","17500-1-1","ERM Enterprise Risk Management Office",100,"Administration","2020-03-28","2099-12-31","N","CFO and VP Administration",8080,"ENTERPRISE RISK MGMT",{"$f":"VLOOKUP(K1158,WORKORDERS!$A:$P,16,FALSE)","v":"no"}]
[null,750,"Enterprise Risk Management",750,"Enterprise Risk Management",7500,"Risk Management Office",10,"17500-2","ERM Emergency Management and Business Continuity","17500-2-1","ERM Emergency Management and Business Continuity",100,"Administration","2020-03-28","2099-12-31","N","CFO and VP Administration",8082,"EMRGNCY MGMT/BUSIN CONT.",{"$f":"VLOOKUP(K1159,WORKORDERS!$A:$P,16,FALSE)","v":"no"}]
[null,750,"Enterprise Risk Management",750,"Enterprise Risk Management",7501,"Risk Management - Initiatives",50,"57501-1","ERM Minor Capital","57501-1-1","ERM Minor Capital",500,"Capital - General","2021-07-01","2099-12-31","P",{"$error":"#N/A"},{"$error":"#N/A"},{"$error":"#N/A"},{"$f":"VLOOKUP(K1160,WORKORDERS!$A:$P,16,FALSE)","v":"no"}]
[null,750,"Enterprise Risk Management",755,"Health and Safety",7550,"Health and Safety",10,"17550-1","ERM Health and Safety","17550-1-1","ERM Health and Safety",100,"Administration","2020-03-28","2099-12-31","N","CFO and VP Administration",8081,"HEALTH & SAFETY SERVICES",{"$f":"VLOOKUP(K1161,WORKORDERS!$A:$P,16,FALSE)","v":"no"}]
[null,900,"CFOVPA - Institutional",900,"CFOVPA - Institutional",9000,"Balance Sheet",10,"19000-1","INST Balance Sheet","19000-1-1","INST Balance Sheet",101,"Institutional","2017-01-01","2099-12-31","N","Assets/Liabilities","100, 200","ASSETS, LIABILITIES",{"$f":"VLOOKUP(K1162,WORKORDERS!$A:$P,16,FALSE)","v":"no"}]
[null,900,"CFOVPA - Institutional",900,"CFOVPA - Institutional",9115,"Institutional Administration",10,"19115-1","INST Institutional Administration","19115-1-1","INST Institutional Administration",101,"Institutional","2017-01-01","2099-12-31","N","CFOVPA - Institutional",8035,"INSTITUTIONAL ADMINISTRA",{"$f":"VLOOKUP(K1163,WORKORDERS!$A:$P,16,FALSE)","v":"no"}]
[null,900,"CFOVPA - Institutional",900,"CFOVPA - Institutional",9115,"Institutional Administration",10,"19115-1","INST Institutional Administration","19115-1-2","INST Non Insurred Losses",101,"Institutional","2017-01-01","2099-12-31","N","CFOVPA - Institutional",8005,"NON INSURRED LOSSES",{"$f":"VLOOKUP(K1164,WORKORDERS!$A:$P,16,FALSE)","v":"no"}]
[null,900,"CFOVPA - Institutional",900,"CFOVPA - Institutional",9115,"Institutional Administration",10,"19115-2","INST Institutional Employee Awards","19115-2-1","INST Institutional Employee Awards",101,"Institutional","2017-01-01","2099-12-31","N","CFOVPA - Institutional",8049,"INST EMPLOYEE AWARDS",{"$f":"VLOOKUP(K1165,WORKORDERS!$A:$P,16,FALSE)","v":"no"}]
[null,900,"CFOVPA - Institutional",900,"CFOVPA - Institutional",9120,"Institutional Labour Payouts",10,"19120-1","INST Institutional Labour Payouts","19120-1-1","INST Labour Payouts - Other",101,"Institutional","2021-07-01","2099-12-31","P",{"$error":"#N/A"},{"$error":"#N/A"},{"$error":"#N/A"},{"$f":"VLOOKUP(K1166,WORKORDERS!$A:$P,16,FALSE)","v":"no"}]
[null,900,"CFOVPA - Institutional",900,"CFOVPA - Institutional",9120,"Institutional Labour Payouts",10,"19120-1","INST Institutional Labour Payouts","19120-1-2","INST Labour Payouts - Severance",101,"Institutional","2017-01-01","2099-12-31","N","CFOVPA - Institutional",8050,"RESIGNATION/RETIRE PAYOUT",{"$f":"VLOOKUP(K1167,WORKORDERS!$A:$P,16,FALSE)","v":"no"}]
[null,900,"CFOVPA - Institutional",900,"CFOVPA - Institutional",9120,"Institutional Labour Payouts",10,"19120-1","INST Institutional Labour Payouts","19120-1-3","INST Labour Payouts - Sick Leave",101,"Institutional","2017-01-01","2099-12-31","N",{"$error":"#N/A"},{"$error":"#N/A"},{"$error":"#N/A"},{"$f":"VLOOKUP(K1168,WORKORDERS!$A:$P,16,FALSE)","v":"no"}]
[null,900,"CFOVPA - Institutional",900,"CFOVPA - Institutional",9120,"Institutional Labour Payouts",10,"19120-1","INST Institutional Labour Payouts","19120-1-4","INST Labour Payouts - President Admin Leave",101,"Institutional","2017-01-01","2099-12-31","N","CFOVPA - Institutional",8051,"PRESIDENT ADMIN LEAVE",{"$f":"VLOOKUP(K1169,WORKORDERS!$A:$P,16,FALSE)","v":"no"}]
[null,900,"CFOVPA - Institutional",900,"CFOVPA - Institutional",9125,"Institutional Labour Adjustments",10,"19125-1","INST Institutional Labour Adjustments","19125-1-1","INST Labour Adjustments",101,"Institutional","2017-01-01","2099-12-31","N","CFOVPA - Institutional",8040,"INST. LABOUR ADJUSTMENTS",{"$f":"VLOOKUP(K1170,WORKORDERS!$A:$P,16,FALSE)","v":"no"}]
[null,900,"CFOVPA - Institutional",900,"CFOVPA - Institutional",9125,"Institutional Labour Adjustments",10,"19125-1","INST Institutional Labour Adjustments","19125-1-2","INST Labour Adjustments - CUPE EI Rebate (Benefit exchange)",101,"Institutional","2021-07-01","2099-12-31","P",{"$error":"#N/A"},{"$error":"#N/A"},{"$error":"#N/A"},{"$f":"VLOOKUP(K1171,WORKORDERS!$A:$P,16,FALSE)","v":"no"}]
[null,900,"CFOVPA - Institutional",900,"CFOVPA - Institutional",9125,"Institutional Labour Adjustments",10,"19125-1","INST Institutional Labour Adjustments","19125-1-3","INST Labour Adjustments - VIUFA PD Recovery",101,"Institutional","2017-01-01","2099-12-31","N","CFOVPA - Institutional",8041,"VIUFA PD RECOVERY",{"$f":"VLOOKUP(K1172,WORKORDERS!$A:$P,16,FALSE)","v":"no"}]
[null,900,"CFOVPA - Institutional",900,"CFOVPA - Institutional",9150,"Institutional Assets",10,"19150-1","INST Institutional Other","19150-1-1","INST Institutional Other",101,"Institutional","2017-01-01","2099-12-31","N",{"$error":"#N/A"},{"$error":"#N/A"},{"$error":"#N/A"},{"$f":"VLOOKUP(K1173,WORKORDERS!$A:$P,16,FALSE)","v":"no"}]
[null,900,"CFOVPA - Institutional",900,"CFOVPA - Institutional",9150,"Institutional Assets",50,"59150-1","INST Historic Assets","59150-1-1","INST Historic Assets - Pre 2022",500,"Capital - General","2021-03-27","2099-12-31","N",{"$error":"#N/A"},{"$error":"#N/A"},{"$error":"#N/A"},{"$f":"VLOOKUP(K1174,WORKORDERS!$A:$P,16,FALSE)","v":"no"}]
[null,910,"Institutional Revenue",910,"Institutional Revenue",9100,"Institutional Revenue - Grants",10,"19100-1","INST Institutional Revenue - Grants","19100-1-1","INST Institutional Revenue - Grants",101,"Institutional","2017-01-01","2099-12-31","N","Institutional Revenue & OH",8009,"MINISTRY BASE GRANTS",{"$f":"VLOOKUP(K1175,WORKORDERS!$A:$P,16,FALSE)","v":"no"}]
[null,910,"Institutional Revenue",910,"Institutional Revenue",9105,"Institutional Revenue - Tuition",10,"19105-1","INST Institutional Revenue - Tuition","19105-1-1","INST Institutional Revenue - Tuition",101,"Institutional","2017-01-01","2099-12-31","N","Institutional Revenue & OH",1090,"TUITION - NANAIMO",{"$f":"VLOOKUP(K1176,WORKORDERS!$A:$P,16,FALSE)","v":"no"}]
[null,910,"Institutional Revenue",910,"Institutional Revenue",9110,"Institutional Revenue - Student Fees",10,"19110-1","INST Institutional Revenue - Student Fees","19110-1-1","INST Institutional Revenue - Student Fees",101,"Institutional","2017-01-01","2099-12-31","N","Institutional Revenue & OH",1089,"STUDENT FEES",{"$f":"VLOOKUP(K1177,WORKORDERS!$A:$P,16,FALSE)","v":"no"}]
[null,910,"Institutional Revenue",910,"Institutional Revenue",9114,"Institutional Recoveries",20,"29114-1","INST Recoveries - Overhead","29114-1-1","INST Recoveries - Overhead",101,"Institutional","2017-01-01","2099-12-31","N","Institutional Revenue & OH",8500,"COST RECOVERY - OVERHEAD",{"$f":"VLOOKUP(K1178,WORKORDERS!$A:$P,16,FALSE)","v":"yes"}]
[null,910,"Institutional Revenue",910,"Institutional Revenue",9114,"Institutional Recoveries",20,"29114-2","INST Recoveries - VIU Foundation Clearing","29114-2-1","INST Recoveries - VIU Foundation Clearing",102,"External recoveries (Inst)","2017-01-01","2099-12-31","N","Institutional Revenue & OH",8501,"EXTERNAL FDN CLEARING",{"$f":"VLOOKUP(K1179,WORKORDERS!$A:$P,16,FALSE)","v":"no"}]

{"sheet":"FRS CC Master","index":11,"n_rows":1419,"n_cols":9,"rows_kept":1419,"cut":false,"hidden":true,"merged":[]}
["Division","Sub-division","2021-2022","COST CENTRE DESCRIPTION","2022-2023","COST CENTRE DESCRIPTION","CC Type","Overhead Rate","Open  or Locked"]
["ASSETS","ASSETS",100,"ASSETS",100,"ASSETS",null,null,"O"]
["LIABILITIES","LIABILITIES",200,"LIABILITIES",200,"LIABILITIES",null,null,"O"]
["VIU Foundation","VIU Foundation",500,"ENDOWMENTS & AWARDS",500,"ENDOWMENTS & AWARDS","F",null,"L"]
["VIU Foundation","VIU Foundation",501,"PYRLL CONTR. CLEARING",501,"PYRLL CONTR. CLEARING","F",null,"L"]
["VIU Foundation","VIU Foundation",502,"DONATION CLEARING",502,"DONATION CLEARING","F",null,"L"]
["VIU Foundation","VIU Foundation",503,"CREDIT CARD CLEARING",503,"CREDIT CARD CLEARING","F",null,"L"]
["VIU Foundation","VIU Foundation",506,"HIGHER ED POINTS",506,"HIGHER ED POINTS","F",null,"L"]
["VIU Foundation","VIU Foundation",507,"A2E Funding-VIU TSF",507,"A2E Funding-VIU TSF","F",null,"L"]
["VIU Foundation","VIU Foundation",508,"QE2 Grants-VIU TSF",508,"QE2 Grants-VIU TSF","F",null,"L"]
["VIU Foundation","VIU Foundation",509,"Research Grants-VIU TSF",509,"Research Grants-VIU TSF","F",null,"L"]
["VIU Foundation","VIU Foundation",510,"Other Amounts-VIU TSF",510,"Other Amounts-VIU TSF","F",null,"L"]
["VIU Foundation","VIU Foundation",524,"PRESIDENTIAL EVENT",524,"PRESIDENTIAL EVENT","F",null,"L"]
["VIU Foundation","VIU Foundation",661,"UNRESTRICTED FUND",661,"UNRESTRICTED FUND","F",null,"L"]
["VIU Foundation","VIU Foundation",702,"INVESTMENT INTEREST",702,"INVESTMENT INTEREST","F",null,"L"]
["VIU Foundation","VIU Foundation",981,"ANNUAL FUND DONATIONS",981,"ANNUAL FUND DONATIONS","F",null,"L"]
["VIU Foundation","VIU Foundation",983,"OTHER GAMING EVENTS",983,"OTHER GAMING EVENTS","F",null,"L"]
["VIU Foundation","VIU Foundation",984,"GAMING ACCT BANK INTEREST",984,"GAMING ACCT BANK INTEREST","F",null,"L"]
["VIU Foundation","VIU Foundation",986,"FESTIVAL OF TREES",986,"FESTIVAL OF TREES","F",null,"L"]
["VIU Foundation","VIU Foundation",990,"CAP.CAMPAIGN (URGENT NEED",990,"CAP.CAMPAIGN (URGENT NEED","F",null,"L"]
["Provost VP Academic ","PVPA - Office",1007,"VP ACADEMIC - PRO D",1007,"VP ACADEMIC - PRO D","Operating",null,"O"]
["Provost VP Academic ","PVPA - Office",1010,"PROVOST & VPA",1010,"PROVOST & VPA","Operating",null,"O"]
["Provost VP Academic ","PVPA - Office",1012,"ASSOCIATE VP ACADEMIC",1012,"ASSOCIATE VP ACADEMIC","Operating",null,"O"]
["Provost VP Academic ","PVPA - Central Academic Units",1015,"UNIVERSITY PLAN/ANALYSIS",1015,"UNIVERSITY PLAN/ANALYSIS","Operating",null,"O"]
["Provost VP Academic ","PVPA - Central Academic Units",1016,"PROGRAM REVIEW",1016,"PROGRAM REVIEW","Operating",null,"O"]
["Provost VP Academic ","PVPA - Central Academic Units",1017,"CURRICULUM DEV. FUND",1017,"CURRICULUM DEV. FUND","Operating",null,"O"]
["Provost VP Academic ","PVPA - Office",1018,"INTERIM PROVOST & VPA-PD",1018,"INTERIM PROVOST & VPA-PD","Operating",null,"O"]
["Provost VP Academic ","PVPA - Office",1019,"ACTING ASSOC. VPA - PD",1019,"ACTING ASSOC. VPA - PD","Operating",null,"O"]
["Scholarship, Research and Creative Activity","Scholarship & Community Engmnt",1020,"RESEARCH OFFICE",1020,"RESEARCH OFFICE","Operating",null,"O"]
["Scholarship, Research and Creative Activity","Scholarship & Community Engmnt",1021,"ANIMAL CARE COMMITTEE",1021,"ANIMAL CARE COMMITTEE","Operating",null,"O"]
["Provost VP Academic ","PVPA - Central Academic Units",1022,"UT INSTR.DELIVERY TRAVEL",1022,"UT INSTR.DELIVERY TRAVEL","Operating",null,"O"]
["Scholarship, Research and Creative Activity","Scholarship & Community Engmnt",1023,"VIU RESEARCH ETHICS BOARD",1023,"VIU RESEARCH ETHICS BOARD","Operating",null,"O"]
["Scholarship, Research and Creative Activity","Scholarship & Community Engmnt",1024,"VIU BIOSAFETY ",1024,"VIU BIOSAFETY ","Operating",null,"O"]
["Scholarship, Research and Creative Activity","Scholarship & Community Engmnt",1027,"STUDENT CONFERENCES",1027,"STUDENT CONFERENCES","Operating",null,"O"]
["Scholarship, Research and Creative Activity","Scholarship & Community Engmnt",1028,"AVP SCH/COMM ENGAGEMT PD",1028,"AVP SCH/COMM ENGAGEMT PD","Operating",null,"O"]
["Provost VP Academic ","PVPA - Central Academic Units",1029,"PRO-D UBC DOC EDUCATION",1029,"PRO-D UBC DOC EDUCATION","Operating",null,"O"]
["Provost VP Academic ","PVPA - Central Academic Units",1030,"PROVOST CONTINGENCT",1030,"PROVOST CONTINGENCT","Operating",null,"O"]
["Provost VP Academic ","PVPA - Central Academic Units",1032,"PVPA INITIATIVES",1032,"PVPA INITIATIVES","Operating",null,"O"]
["Provost VP Academic ","PVPA - Central Academic Units",1033,"WRITING CENTRE",1033,"WRITING CENTRE","Operating",null,"O"]
["Provost VP Academic ","PVPA - Central Academic Units",1034,"THEATRE OPERATIONS",1034,"THEATRE OPERATIONS","Operating",null,"O"]
["Provost VP Academic ","PVPA - Central Academic Units",1035,"DUAL CREDIT",1035,"DUAL CREDIT","Operating",null,"O"]
["Provost VP Academic ","PVPA - Central Academic Units",1038,"AVPA INITIATIVES",1038,"AVPA INITIATIVES","Operating",null,"O"]
["Provost VP Academic ","PVPA - Central Academic Units",1042,"INSTR.RECRUITMENT-TRAVEL",1042,"INSTR.RECRUITMENT-TRAVEL","Operating",null,"O"]
["Scholarship, Research and Creative Activity","PVPA - Central Academic Units",1050,"TRAVEL/CONFERENCE (RES.)",1050,"TRAVEL/CONFERENCE (RES.)","Operating",null,"O"]
["Scholarship, Research and Creative Activity","PVPA - Central Academic Units",1055,"SSF SRCA EXP LEARNING",1055,"SSF SRCA EXP LEARNING","Operating",null,"O"]
["Scholarship, Research and Creative Activity","PVPA - Central Academic Units",1057,"VIURAC RESEARCH FUND",1057,"VIURAC RESEARCH FUND","Operating",null,"O"]
["Scholarship, Research and Creative Activity","Contracts - PVPA Research Cont.",1065,"SCHOLARLY RESEARCH",1065,"SCHOLARLY RESEARCH","Operating",null,"O"]
["Provost VP Academic ","PVPA - Central Academic Units",1074,"PVPA DIVSNL ENCUMBRANCE",1074,"PVPA DIVSNL ENCUMBRANCE","Operating",null,"L"]
["Institutional Revenue","Institutional Revenue",1089,"STUDENT FEES",1089,"STUDENT FEES","Operating",null,"O"]
["Institutional Revenue","Institutional Revenue",1090,"TUITION - NANAIMO",1090,"TUITION - NANAIMO","Operating",null,"O"]
["Scholarship, Research and Creative Activity","Contracts - PVPA Research Cont.",1101,"MT.ARROWSMITH RES. INST",1101,"MT.ARROWSMITH RES. INST","Off Grant ",null,"O"]
["Scholarship, Research and Creative Activity","Contracts - PVPA Research Cont.",1110,"CHCCRL - FLOYD",1110,"CHCCRL - FLOYD","Off Grant ",null,"O"]
["Scholarship, Research and Creative Activity","Contracts - PVPA Research Cont.",1111,"ROYAL SOCIETY OPERATING",1111,"ROYAL SOCIETY OPERATING","Off Grant ",null,"L"]
["Scholarship, Research and Creative Activity","Contracts - PVPA Research Cont.",1112,"AERL HARM CHECK PHASE I",1112,"AERL HARM CHECK PHASE I","Off Grant ",null,"O"]
["Scholarship, Research and Creative Activity","Contracts - PVPA Research Cont.",1118,"GRF - SSHRC",1118,"GRF - SSHRC","Off Grant ",null,"O"]
["Scholarship, Research and Creative Activity","Contracts - PVPA Research Cont.",1119,"RESEARCH SUPPORT FUND",1119,"RESEARCH SUPPORT FUND","Off Grant ",null,"O"]
["Scholarship, Research and Creative Activity","Contracts - PVPA Research Cont.",1120,"GRF - NSERC",1120,"GRF - NSERC","Off Grant ",null,"O"]
["Scholarship, Research and Creative Activity","Contracts - PVPA Research Cont.",1133,"CTR FOR SOCIAL ENTERPRISE",1133,"CTR FOR SOCIAL ENTERPRISE","Off Grant ",null,"O"]
["Scholarship, Research and Creative Activity","Contracts - PVPA Research Cont.",1134,"CREATE-STUDENT POSTER EVT",1134,"CREATE-STUDENT POSTER EVT","Off Grant ",null,"O"]
["Scholarship, Research and Creative Activity","Contracts - PVPA Research Cont.",1135,"COMMUNITY INITIATIVES",1135,"COMMUNITY INITIATIVES","Off Grant ",null,"O"]
["Scholarship, Research and Creative Activity","Contracts - PVPA Research Cont.",1136,"NEWCASTLE FN INITIATIVE",1136,"NEWCASTLE FN INITIATIVE","Off Grant ",null,"O"]
["Scholarship, Research and Creative Activity","Contracts - PVPA Research Cont.",1138,"RIF - REFBC",1138,"RIF - REFBC","Off Grant ",null,"O"]
["Scholarship, Research and Creative Activity","Contracts - PVPA Research Cont.",1139,"AVPSCE INITIATIVES",1139,"AVPSCE INITIATIVES","Off Grant ",null,"O"]
["Scholarship, Research and Creative Activity","Contracts - PVPA Research Cont.",1140,"FACULTY REASSIGNMENTS",1140,"FACULTY REASSIGNMENTS","Off Grant ",null,"O"]
["Scholarship, Research and Creative Activity","Contracts - PVPA Research Cont.",1141,"RIF - AEST 2019",1141,"RIF - AEST 2019","Off Grant ",null,"O"]
["Scholarship, Research and Creative Activity","Contracts - PVPA Research Cont.",1144,"SRCA- STUDENT MISC FUNDING",1144,"SRCA- STUDENT MISC FUNDING","Off Grant ",null,"O"]
["Scholarship, Research and Creative Activity","Contracts - PVPA Research Cont.",1145,"VIURAC RF AFFLECK 101042",1145,"VIURAC RF AFFLECK 101042","Off Grant ",null,"O"]
["Scholarship, Research and Creative Activity","Contracts - PVPA Research Cont.",1146,"VIURAC RF MOGH 100262",1146,"VIURAC RF MOGH 100262","Off Grant ",null,"O"]
["Scholarship, Research and Creative Activity","Contracts - PVPA Research Cont.",1147,"VIURAC M-HEALTH DAMES ",1147,"VIURAC M-HEALTH DAMES ","Off Grant ",null,"O"]
["Scholarship, Research and Creative Activity","Contracts - PVPA Research Cont.",1148,"VIURAC RF ANGLESTAD ",1148,"VIURAC RF ANGLESTAD ","Off Grant ",null,"L"]
["Scholarship, Research and Creative Activity","Contracts - PVPA Research Cont.",1149,"VIURAC RF DOUGHTY 101013",1149,"VIURAC RF DOUGHTY 101013","Off Grant ",null,"O"]
["Scholarship, Research and Creative Activity","Contracts - PVPA Research Cont.",1150,"VIURAC RF JANES ",1150,"VIURAC RF JANES ","Off Grant ",null,"L"]
["Scholarship, Research and Creative Activity","Contracts - PVPA Research Cont.",1151,"VIURAC SIG18 ESLIGER ",1151,"VIURAC SIG18 ESLIGER ","Off Grant ",null,"O"]
["Scholarship, Research and Creative Activity","Contracts - PVPA Research Cont.",1153,"VRC SIG18-SGRF GOVER-BASAR ",1153,"VRC SIG18-SGRF GOVER-BASAR ","Off Grant ",null,"O"]
["Scholarship, Research and Creative Activity","Contracts - PVPA Research Cont.",1152,"VIURAC S-GRF WARSH 101178",1152,"VIURAC S-GRF WARSH 101178","Off Grant ",null,"O"]
["Scholarship, Research and Creative Activity","Contracts - PVPA Research Cont.",1154,"VIURAC S-GRF LEWIS 100556",1154,"VIURAC S-GRF LEWIS 100556","Off Grant ",null,"O"]
["Scholarship, Research and Creative Activity","Contracts - PVPA Research Cont.",1157,"VIURAC SIG-18 TAPLAY ",1157,"VIURAC SIG-18 TAPLAY ","Off Grant ",null,"O"]
["Scholarship, Research and Creative Activity","Contracts - PVPA Research Cont.",1158,"VIURAC RF MCEWEN 100581",1158,"VIURAC RF MCEWEN 100581","Off Grant ",null,"O"]
["Scholarship, Research and Creative Activity","Contracts - PVPA Research Cont.",1159,"VIURAC S-GRF GARDINER ",1159,"VIURAC S-GRF GARDINER ","Off Grant ",null,"O"]
["Scholarship, Research and Creative Activity","Contracts - PVPA Research Cont.",1160,"VIURAC RF GORRELL 100579",1160,"VIURAC RF GORRELL 100579","Off Grant ",null,"O"]
["Scholarship, Research and Creative Activity","Contracts - PVPA Research Cont.",1161,"VIURAC RF HERNANDEZ ",1161,"VIURAC RF HERNANDEZ ","Off Grant ",null,"O"]
["Scholarship, Research and Creative Activity","Contracts - PVPA Research Cont.",1162,"VIURAC SIG-18 WARSH ",1162,"VIURAC SIG-18 WARSH ","Off Grant ",null,"O"]
["Scholarship, Research and Creative Activity","Contracts - PVPA Research Cont.",1163,"VIURAC AEST RIEDEL 100650",1163,"VIURAC AEST RIEDEL 100650","Off Grant ",null,"O"]
["Scholarship, Research and Creative Activity","Contracts - PVPA Research Cont.",1164,"VIURAC AEST MAYES 100652",1164,"VIURAC AEST MAYES 100652","Off Grant ",null,"O"]
["Scholarship, Research and Creative Activity","Contracts - PVPA Research Cont.",1165,"VIURAC AEST MORDEN 653",1165,"VIURAC AEST MORDEN 653","Off Grant ",null,"O"]
["Scholarship, Research and Creative Activity","Contracts - PVPA Research Cont.",1166,"VIURAC AEST WEIGHILL 658",1166,"VIURAC AEST WEIGHILL 658","Off Grant ",null,"O"]
["Scholarship, Research and Creative Activity","Contracts - PVPA Research Cont.",1167,"VIURAC RF LOUDON 100997",1167,"VIURAC RF LOUDON 100997","Off Grant ",null,"O"]
["Scholarship, Research and Creative Activity","Contracts - PVPA Research Cont.",1168,"VIURAC RF DAMES 100631",1168,"VIURAC RF DAMES 100631","Off Grant ",null,"L"]
["Scholarship, Research and Creative Activity","Contracts - PVPA Research Cont.",1169,"VIURAC AEST ANDERSON 637",1169,"VIURAC AEST ANDERSON 637","Off Grant ",null,"O"]
["Scholarship, Research and Creative Activity","Contracts - PVPA Research Cont.",1170,"VIURAC S-GRF MOGHIMEHFAR",1170,"VIURAC S-GRF MOGHIMEHFAR","Off Grant ",null,"O"]
["Scholarship, Research and Creative Activity","Contracts - PVPA Research Cont.",1171,"VIURAC AEST LAIT 100668",1171,"VIURAC AEST LAIT 100668","Off Grant ",null,"O"]
["Scholarship, Research and Creative Activity","Contracts - PVPA Research Cont.",1172,"VIURAC RF LESTER 101256",1172,"VIURAC RF LESTER 101256","Off Grant ",null,"O"]
["Scholarship, Research and Creative Activity","Contracts - PVPA Research Cont.",1174,"VIURAC RF SUN 101250",1174,"VIURAC RF SUN 101250","Off Grant ",null,"O"]
["Scholarship, Research and Creative Activity","Contracts - PVPA Research Cont.",1176,"VIURAC ASET MCFARLAND 665",1176,"VIURAC ASET MCFARLAND 665","Off Grant ",null,"O"]
["Scholarship, Research and Creative Activity","Contracts - PVPA Research Cont.",1178,"VIURAC RF BITTERBERG ",1178,"VIURAC RF BITTERBERG ","Off Grant ",null,"O"]
["Scholarship, Research and Creative Activity","Contracts - PVPA Research Cont.",1180,"VIURAC RF PUB HEITI ",1180,"VIURAC RF PUB HEITI ","Off Grant ",null,"L"]
["Scholarship, Research and Creative Activity","Contracts - PVPA Research Cont.",1182,"VIURAC AEST MORDEN 101054",1182,"VIURAC AEST MORDEN 101054","Off Grant ",null,"O"]
["Scholarship, Research and Creative Activity","Contracts - PVPA Research Cont.",1184,"VIURAC S-GRF REED 101043",1184,"VIURAC S-GRF REED 101043","Off Grant ",null,"O"]
["Scholarship, Research and Creative Activity","Contracts - PVPA Research Cont.",1185,"VIURAC RF RUSSELL 101007",1185,"VIURAC RF RUSSELL 101007","Off Grant ",null,"O"]
["Scholarship, Research and Creative Activity","Contracts - PVPA Research Cont.",1186,"VIURAC RF SUN 101008",1186,"VIURAC RF SUN 101008","Off Grant ",null,"O"]
["Scholarship, Research and Creative Activity","Contracts - PVPA Research Cont.",1189,"VIURAC RF MOHABEER 101160",1189,"VIURAC RF MOHABEER 101160","Off Grant ",null,"O"]
["Scholarship, Research and Creative Activity","Contracts - PVPA Research Cont.",1190,"VIURAC MH GILL 101174",1190,"VIURAC MH GILL 101174","Off Grant ",null,"O"]
["Scholarship, Research and Creative Activity","Contracts - PVPA Research Cont.",1192,"VIURAC RF WIEBE 101172",1192,"VIURAC RF WIEBE 101172","Off Grant ",null,"O"]
["Scholarship, Research and Creative Activity","Contracts - PVPA Research Cont.",1193,"VIURAC RF CARRUTHERS ",1193,"VIURAC RF CARRUTHERS ","Off Grant ",null,"O"]
["Scholarship, Research and Creative Activity","Contracts - PVPA Research Cont.",1194,"VIURAC RF RUSSELL 101246",1194,"VIURAC RF RUSSELL 101246","Off Grant ",null,"O"]
["Scholarship, Research and Creative Activity","Contracts - PVPA Research Cont.",1195,"VIURAC SSHRC CEA LIM",1195,"VIURAC SSHRC CEA LIM","Off Grant ",null,"L"]
["Scholarship, Research and Creative Activity","Contracts - PVPA Research Cont.",1196,"VIURAC RF DUNCAN 248-9",1196,"VIURAC RF DUNCAN 248-9","Off Grant ",null,"O"]
["Scholarship, Research and Creative Activity","Contracts - PVPA Research Cont.",1197,"VIURAC RF JANES 101240",1197,"VIURAC RF JANES 101240","Off Grant ",null,"O"]
["Scholarship, Research and Creative Activity","Contracts - PVPA Research Cont.",1199,"VIURAC RF-PUB MARTIN ",1199,"VIURAC RF-PUB MARTIN ","Off Grant ",null,"O"]
["Scholarship, Research and Creative Activity","Contracts - PVPA Research Cont.",1200,"CFI - IOF",1200,"CFI - IOF","Off Grant ",null,"O"]
["Scholarship, Research and Creative Activity","Contracts - PVPA Research Cont.",1201,"CFI-IOF META DH LAB - LANE",1201,"CFI-IOF META DH LAB - LANE","Off Grant ",null,"O"]
["Scholarship, Research and Creative Activity","Contracts - PVPA Research Cont.",1202,"CFI-IOF-RUSSELL",1202,"CFI-IOF-RUSSELL","Off Grant ",null,"O"]
["Scholarship, Research and Creative Activity","Contracts - PVPA Research Cont.",1203,"CFI-IOF - GILL ",1203,"CFI-IOF - GILL ","Off Grant ",null,"O"]
["Scholarship, Research and Creative Activity","Contracts - PVPA Research Cont.",1207,"CFI IOF SHELLFISH (GREEN)",1207,"CFI IOF SHELLFISH (GREEN)","Off Grant ",null,"O"]
["Scholarship, Research and Creative Activity","Contracts - PVPA Research Cont.",1209,"CFI IOF MOBILE LAB(KROGH)",1209,"CFI IOF MOBILE LAB(KROGH)","Off Grant ",null,"O"]
["Scholarship, Research and Creative Activity","Contracts - PVPA Research Cont.",1222,"SSHRC SIG - VAUGEOIS",1222,"SSHRC SIG - VAUGEOIS","Off Grant ",null,"O"]
["Scholarship, Research and Creative Activity","Contracts - PVPA Research Cont.",1224,"SRCA CGSM ",1224,"SRCA CGSM ","Off Grant ",null,"O"]
["Scholarship, Research and Creative Activity","Contracts - PVPA Research Cont.",1232,"SSHRC IDG - BROUDER",1232,"SSHRC IDG - BROUDER","Off Grant ",null,"O"]
["Scholarship, Research and Creative Activity","Contracts - PVPA Research Cont.",1234,"SSHRC IRCR CG - MARTIN",1234,"SSHRC IRCR CG - MARTIN","Off Grant ",null,"O"]
["Scholarship, Research and Creative Activity","Contracts - PVPA Research Cont.",1235,"SSHRC PDG (UOFA)-ROLLINS",1235,"SSHRC PDG (UOFA)-ROLLINS","Off Grant ",null,"O"]
["Scholarship, Research and Creative Activity","Contracts - PVPA Research Cont.",1236,"SSHRC IDG - GRAY",1236,"SSHRC IDG - GRAY","Off Grant ",null,"L"]
["Scholarship, Research and Creative Activity","Contracts - PVPA Research Cont.",1237,"SSHRC CG - WARSH",1237,"SSHRC CG - WARSH","Off Grant ",null,"O"]
["Scholarship, Research and Creative Activity","Contracts - PVPA Research Cont.",1239,"SSHRC CG - DOUGHTY 5714",1239,"SSHRC CG - DOUGHTY 5714","Off Grant ",null,"O"]
["Scholarship, Research and Creative Activity","Contracts - PVPA Research Cont.",1240,"SSHRC ICG - WAGER 5669",1240,"SSHRC ICG - WAGER 5669","Off Grant ",null,"O"]
["Scholarship, Research and Creative Activity","Contracts - PVPA Research Cont.",1250,"NSERC USRA",1250,"NSERC USRA","Off Grant ",null,"O"]
["Scholarship, Research and Creative Activity","Contracts - PVPA Research Cont.",1256,"NSERC DG - BAKER",1256,"NSERC DG - BAKER","Off Grant ",null,"L"]
["Scholarship, Research and Creative Activity","Contracts - PVPA Research Cont.",1259,"NSERC SPGN(WATRLOO)-FLOYD",1259,"NSERC SPGN(WATRLOO)-FLOYD","Off Grant ",null,"O"]
["Scholarship, Research and Creative Activity","Contracts - PVPA Research Cont.",1260,"NSERC SPGN (VIU) - FLOYD",1260,"NSERC SPGN (VIU) - FLOYD","Off Grant ",null,"O"]
["Scholarship, Research and Creative Activity","Contracts - PVPA Research Cont.",1277,"NSERC DG - KROGH",1277,"NSERC DG - KROGH","Off Grant ",null,"O"]
["Scholarship, Research and Creative Activity","Contracts - PVPA Research Cont.",1278,"NSERC DG - GILL",1278,"NSERC DG - GILL","Off Grant ",null,"O"]
["Scholarship, Research and Creative Activity","Contracts - PVPA Research Cont.",1279,"NSERC DG - JANES ",1279,"NSERC DG - JANES ","Off Grant ",null,"O"]
["Scholarship, Research and Creative Activity","Contracts - PVPA Research Cont.",1280,"NSERC DG - GREEN",1280,"NSERC DG - GREEN","Off Grant ",null,"O"]
["Scholarship, Research and Creative Activity","Contracts - PVPA Research Cont.",1281,"NSERC DG - GORRELL",1281,"NSERC DG - GORRELL","Off Grant ",null,"O"]
["Scholarship, Research and Creative Activity","Contracts - PVPA Research Cont.",1282,"NSERC EDI - VAUGEOIS",1282,"NSERC EDI - VAUGEOIS","Off Grant ",null,"O"]
["Scholarship, Research and Creative Activity","Contracts - PVPA Research Cont.",1283,"NSERC DG - STRINGHAM",1283,"NSERC DG - STRINGHAM","Off Grant ",null,"O"]
["Scholarship, Research and Creative Activity","Contracts - PVPA Research Cont.",1284,"NSERC DG - WIEBE 5790",1284,"NSERC DG - WIEBE 5790","Off Grant ",null,"O"]
["Scholarship, Research and Creative Activity","Contracts - PVPA Research Cont.",1290,"CIHR IGWDG - MEIJER-DREES",1290,"CIHR IGWDG - MEIJER-DREES","Off Grant ",null,"O"]
["Scholarship, Research and Creative Activity","Contracts - PVPA Research Cont.",1291,"CIHR - COVID - DAMES",1291,"CIHR - COVID - DAMES","Off Grant ",null,"L"]
["Scholarship, Research and Creative Activity","Contracts - PVPA Research Cont.",1292,"VAN FND-WAGER 100677",1292,"VAN FND-WAGER 100677","Off Grant ",null,"O"]
["Scholarship, Research and Creative Activity","Contracts - PVPA Research Cont.",1293,"VANCOUVER FDN 2 - FALVAI",1293,"VANCOUVER FDN 2 - FALVAI","Off Grant ",null,"O"]
["Scholarship, Research and Creative Activity","Contracts - PVPA Research Cont.",1295,"MITACS ACC - GORRELL 5761",1295,"MITACS ACC - GORRELL 5761","Off Grant ",null,"O"]
["Scholarship, Research and Creative Activity","Contracts - PVPA Research Cont.",1296,"UNI-CAN-SRCA 5825",1296,"UNI-CAN-SRCA 5825","Off Grant ",null,"O"]
["Scholarship, Research and Creative Activity","Contracts - PVPA Research Cont.",1298,"MITACS BSI - SRCA",1298,"MITACS BSI - SRCA","Off Grant ",null,"O"]
["Scholarship, Research and Creative Activity","Contracts - PVPA Research Cont.",1299,"MITACS RTA - SRCA",1299,"MITACS RTA - SRCA","Off Grant ",null,"O"]
["Scholarship, Research and Creative Activity","Contracts - PVPA Research Cont.",1300,"CRC - WAGER",1300,"CRC - WAGER","Off Grant ",null,"O"]
["Scholarship, Research and Creative Activity","Contracts - PVPA Research Cont.",1301,"CRC - SLOAN 4670",1301,"CRC - SLOAN 4670","Off Grant ",null,"O"]
["Scholarship, Research and Creative Activity","Contracts - PVPA Research Cont.",1304,"TIPS-EDI STIP-VAUGEOIS ",1304,"TIPS-EDI STIP-VAUGEOIS ","Off Grant ",null,"O"]
["Scholarship, Research and Creative Activity","Contracts - PVPA Research Cont.",1305,"BCRIC AECD",1305,"BCRIC AECD","Off Grant ",null,"O"]
["Scholarship, Research and Creative Activity","Contracts - PVPA Research Cont.",1306,"AECD MISC PROJECTS",1306,"AECD MISC PROJECTS","Off Grant ",null,"O"]
["Scholarship, Research and Creative Activity","Contracts - PVPA Research Cont.",1310,"BCRIC CHAIR TOURISM",1310,"BCRIC CHAIR TOURISM","Off Grant ",null,"O"]
["Scholarship, Research and Creative Activity","Contracts - PVPA Research Cont.",1315,"CRC - WOOD",1315,"CRC - WOOD","Off Grant ",null,"O"]
["Scholarship, Research and Creative Activity","Contracts - PVPA Research Cont.",1324,"DFO ACRDP-DUDAS",1324,"DFO ACRDP-DUDAS","Off Grant ",null,"O"]
["Scholarship, Research and Creative Activity","Contracts - PVPA Research Cont.",1325,"CRC GENOMICS-GREEN",1325,"CRC GENOMICS-GREEN","Off Grant ",null,"O"]
["Scholarship, Research and Creative Activity","Contracts - PVPA Research Cont.",1326,"CRC GENOMICS OPERATING",1326,"CRC GENOMICS OPERATING","Off Grant ",null,"O"]
["Scholarship, Research and Creative Activity","Contracts - PVPA Research Cont.",1327,"NRC-GEM-LESEMANN",1327,"NRC-GEM-LESEMANN","Off Grant ",null,"L"]
["Scholarship, Research and Creative Activity","Contracts - PVPA Research Cont.",1328,"NOAA/PSMFC (OSU) - GREEN",1328,"NOAA/PSMFC (OSU) - GREEN","Off Grant ",null,"O"]
["Scholarship, Research and Creative Activity","Contracts - PVPA Research Cont.",1330,"MIN HLTH - SRCA 5832",1330,"MIN HLTH - SRCA 5832","Off Grant ",null,"O"]
["Scholarship, Research and Creative Activity","Contracts - PVPA Research Cont.",1335,"VANFDN-SCHROEDER",1335,"VANFDN-SCHROEDER","Off Grant ",null,"L"]
["Scholarship, Research and Creative Activity","Contracts - PVPA Research Cont.",1339,"HEALTH CANADA-GILL",1339,"HEALTH CANADA-GILL","Off Grant ",null,"L"]
["Scholarship, Research and Creative Activity","Contracts - PVPA Research Cont.",1347,"GENOME BC (SFU)-MURRAY",1347,"GENOME BC (SFU)-MURRAY","Off Grant ",null,"O"]
["Scholarship, Research and Creative Activity","Contracts - PVPA Research Cont.",1349,"IS HEALTH INNOVATION-GILL",1349,"IS HEALTH INNOVATION-GILL","Off Grant ",null,"O"]
["Scholarship, Research and Creative Activity","Contracts - PVPA Research Cont.",1351,"TD FEF COASTAL PLANT-SHAW",1351,"TD FEF COASTAL PLANT-SHAW","Off Grant ",null,"L"]
["Scholarship, Research and Creative Activity","Contracts - PVPA Research Cont.",1352,"SITKA - SHAW",1352,"SITKA - SHAW","Off Grant ",null,"L"]
["Scholarship, Research and Creative Activity","Contracts - PVPA Research Cont.",1353,"RDN - SHAW",1353,"RDN - SHAW","Off Grant ",null,"L"]
["Scholarship, Research and Creative Activity","Contracts - PVPA Research Cont.",1359,"IS HEALTH-SCHROEDER",1359,"IS HEALTH-SCHROEDER","Off Grant ",null,"L"]
["Scholarship, Research and Creative Activity","Contracts - PVPA Research Cont.",1360,"AGILENT - GILL",1360,"AGILENT - GILL","Off Grant ",null,"L"]
["Scholarship, Research and Creative Activity","Contracts - PVPA Research Cont.",1368,"ENV. CAN. NON 2 - FLOYD",1368,"ENV. CAN. NON 2 - FLOYD","Off Grant ",null,"L"]
["Scholarship, Research and Creative Activity","Contracts - PVPA Research Cont.",1377,"CVRD - FLOYD 5712",1377,"CVRD - FLOYD 5712","Off Grant ",null,"O"]
["Scholarship, Research and Creative Activity","Contracts - PVPA Research Cont.",1378,"RDN - FLOYD 100604",1378,"RDN - FLOYD 100604","Off Grant ",null,"O"]
["Scholarship, Research and Creative Activity","Contracts - PVPA Research Cont.",1379,"TULA (UNBC)-OWIKENO-FLOYD",1379,"TULA (UNBC)-OWIKENO-FLOYD","Off Grant ",null,"O"]
["Scholarship, Research and Creative Activity","Contracts - PVPA Research Cont.",1380,"TULA (UNBC) - FLOYD",1380,"TULA (UNBC) - FLOYD","Off Grant ",null,"O"]
["Scholarship, Research and Creative Activity","Contracts - PVPA Research Cont.",1381,"TULA FDN 2 -FLOYD",1381,"TULA FDN 2 -FLOYD","Off Grant ",null,"O"]
["Scholarship, Research and Creative Activity","Contracts - PVPA Research Cont.",1383,"AVED - RUSSELL",1383,"AVED - RUSSELL","Off Grant ",null,"O"]
["Scholarship, Research and Creative Activity","Contracts - PVPA Research Cont.",1384,"WORKSAFE - BLANEY",1384,"WORKSAFE - BLANEY","Off Grant ",null,"L"]
["Scholarship, Research and Creative Activity","Contracts - PVPA Research Cont.",1386,"BC PUBLIC SAFETY-DERKSEN",1386,"BC PUBLIC SAFETY-DERKSEN","Off Grant ",null,"L"]
["Scholarship, Research and Creative Activity","Contracts - PVPA Research Cont.",1387,"G-H JOURNAL - WARSH",1387,"G-H JOURNAL - WARSH","Off Grant ",null,"O"]
["Scholarship, Research and Creative Activity","Contracts - PVPA Research Cont.",1392,"CRD-FLOYD",1392,"CRD-FLOYD","Off Grant ",null,"L"]
["Scholarship, Research and Creative Activity","Contracts - PVPA Research Cont.",1393,"BC MIN FORESTS 6 - FLOYD",1393,"BC MIN FORESTS 6 - FLOYD","Off Grant ",null,"O"]
["Scholarship, Research and Creative Activity","Contracts - PVPA Research Cont.",1394,"VI HEALTH-SCHROEDER",1394,"VI HEALTH-SCHROEDER","Off Grant ",null,"L"]
["Scholarship, Research and Creative Activity","Contracts - PVPA Research Cont.",1395,"MITACS-ACC-PD-VAUGEOIS",1395,"MITACS-ACC-PD-VAUGEOIS","Off Grant ",null,"O"]
["Scholarship, Research and Creative Activity","Contracts - PVPA Research Cont.",1397,"MOWI - 5705 - RUSSELL",1397,"MOWI - 5705 - RUSSELL","Off Grant ",null,"L"]
["Scholarship, Research and Creative Activity","Contracts - PVPA Research Cont.",1398,"BC SUPP (UVIC) - BLANEY 5817",1398,"BC SUPP (UVIC) - BLANEY 5817","Off Grant ",null,"O"]
["Scholarship, Research and Creative Activity","Contracts - PVPA Research Cont.",1399,"PVPA RESEARCH HOLDING A/C",1399,"PVPA RESEARCH HOLDING A/C","Off Grant ",null,"O"]
["Scholarship, Research and Creative Activity","Contracts - PVPA Research Cont.",1416,"VIURAC MCCUNN 100240",1416,"VIURAC MCCUNN 100240","Off Grant ",null,"L"]
["Scholarship, Research and Creative Activity","Contracts - PVPA Research Cont.",1417,"VIURAC RF-EX-INN-MCCUNN",1417,"VIURAC RF-EX-INN-MCCUNN","Off Grant ",null,"L"]
["Scholarship, Research and Creative Activity","Contracts - PVPA Research Cont.",1418,"VIURAC SIG-18 PASTRO ",1418,"VIURAC SIG-18 PASTRO ","Off Grant ",null,"O"]
["Scholarship, Research and Creative Activity","Contracts - PVPA Research Cont.",1419,"VIURAC RF ALPHONSE ",1419,"VIURAC RF ALPHONSE ","Off Grant ",null,"O"]
["Scholarship, Research and Creative Activity","Contracts - PVPA Research Cont.",1437,"RIF - KROGH 2019",1437,"RIF - KROGH 2019","Off Grant ",null,"L"]
["Scholarship, Research and Creative Activity","Contracts - PVPA Research Cont.",1438,"RIF - GILL",1438,"RIF - GILL","Off Grant ",null,"O"]
["Scholarship, Research and Creative Activity","Contracts - PVPA Research Cont.",1439,"RIF - BROUDER",1439,"RIF - BROUDER","Off Grant ",null,"O"]
["Scholarship, Research and Creative Activity","Contracts - PVPA Research Cont.",1440,"RIF - RUSSELL 2019",1440,"RIF - RUSSELL 2019","Off Grant ",null,"L"]
["Scholarship, Research and Creative Activity","Contracts - PVPA Research Cont.",1441,"RIF - SCHROEDER 2019",1441,"RIF - SCHROEDER 2019","Off Grant ",null,"L"]
["Scholarship, Research and Creative Activity","Contracts - PVPA Research Cont.",1442,"RIF - REFBC-CHA-LAIT",1442,"RIF - REFBC-CHA-LAIT","Off Grant ",null,"L"]
["Scholarship, Research and Creative Activity","Contracts - PVPA Research Cont.",1443,"RIF - DAMES 100546",1443,"RIF - DAMES 100546","Off Grant ",null,"O"]
["Scholarship, Research and Creative Activity","Contracts - PVPA Research Cont.",1444,"RIF - JOHNSON 100497",1444,"RIF - JOHNSON 100497","Off Grant ",null,"O"]
["Scholarship, Research and Creative Activity","Contracts - PVPA Research Cont.",1445,"RIF - RUSSELL 100849",1445,"RIF - RUSSELL 100849","Off Grant ",null,"O"]
["Scholarship, Research and Creative Activity","Contracts - PVPA Research Cont.",1446,"RIF - GORRELL 101061",1446,"RIF - GORRELL 101061","Off Grant ",null,"O"]
["Scholarship, Research and Creative Activity","Contracts - PVPA Research Cont.",1447,"RIF - GREEN 101062",1447,"RIF - GREEN 101062","Off Grant ",null,"O"]
["Scholarship, Research and Creative Activity","Contracts - PVPA Research Cont.",1448,"RIF -(IOF)-RUSSELL 101069",1448,"RIF -(IOF)-RUSSELL 101069","Off Grant ",null,"O"]
["Scholarship, Research and Creative Activity","Contracts - PVPA Research Cont.",1449,"RIF - BAKER 101071",1449,"RIF - BAKER 101071","Off Grant ",null,"O"]
["Scholarship, Research and Creative Activity","Contracts - PVPA Research Cont.",1450,"RIF - KROGH 101085",1450,"RIF - KROGH 101085","Off Grant ",null,"O"]
["Scholarship, Research and Creative Activity","Contracts - PVPA Research Cont.",1451,"RIF - SCHROEDER 101065",1451,"RIF - SCHROEDER 101065","Off Grant ",null,"O"]
["Scholarship, Research and Creative Activity","Contracts - PVPA Research Cont.",1467,"ASPER - PENTECOST",1467,"ASPER - PENTECOST","Off Grant ",null,"L"]
["Science and Technology","Contracts - Science - Aqua Group",1475,"STURGEON CTR-GENERAL OPS",1475,"STURGEON CTR-GENERAL OPS","Off Grant ",null,"O"]
["Science and Technology","Contracts - Science - Aqua Group",1476,"DEEP BAY-PUBLIC ED/EVENTS",1476,"DEEP BAY-PUBLIC ED/EVENTS","Off Grant ",null,"O"]
["Science and Technology","Contracts - Science - Aqua Group",1477,"DEEP BAY-RESEARCH,SERVICE",1477,"DEEP BAY-RESEARCH,SERVICE","Off Grant ",null,"O"]
["Science and Technology","Contracts - Science - Aqua Group",1479,"SIC - FEASIBILITY ",1479,"SIC - FEASIBILITY ","Off Grant ",0.05,"O"]
["Science and Technology","Contracts - Science - Aqua Group",1480,"CSR OPERATING FUND      .",1480,"CSR OPERATING FUND      .","Off Grant ",null,"O"]
["Science and Technology","Contracts - Science - Aqua Group",1481,"DEEP BAY OPERATIONS/ADMIN",1481,"DEEP BAY OPERATIONS/ADMIN","Off Grant ",null,"O"]
["Science and Technology","Contracts - Science - Aqua Group",1482,"SIC - IMPLEMENTATION",1482,"SIC - IMPLEMENTATION","Off Grant ",0.1,"O"]
["Management","Management",1500,"DEAN - FACULTY OF MGMT",1500,"DEAN - FACULTY OF MGMT","Operating",null,"O"]
["Management","Management",1501,"REST.TOURISM ENDOWMENT",1501,"REST.TOURISM ENDOWMENT","Operating",null,"L"]
["Management","Management",1504,"EXECUTIVE IN RESIDENCE",1504,"EXECUTIVE IN RESIDENCE","Operating",null,"L"]
["Management","Management",1505,"ADVISING S OF B",1505,"ADVISING S OF B","Operating",null,"O"]
["Management","Management",1510,"DIRECTED STUDIES - F OF M",1510,"DIRECTED STUDIES - F OF M","Operating",null,"O"]
["Management","Management",1515,"INT'L SECTIONS - MGMT",1515,"INT'L SECTIONS - MGMT","Operating",null,"O"]
["Management","Management",1522,"MANAGEMENT-EXTRA SECTIONS",1522,"MANAGEMENT-EXTRA SECTIONS","Operating",null,"O"]
["Management","Management",1525,"ACCOUNTING",1525,"ACCOUNTING","Operating",null,"O"]
["Management","Management",1530,"ECONOMICS",1530,"ECONOMICS","Operating",null,"O"]
["Management","Management",1535,"FINANCE / QUME",1535,"FINANCE / QUME","Operating",null,"O"]
["Management","Management",1540,"MANAGEMENT / LAW",1540,"MANAGEMENT / LAW","Operating",null,"O"]
["Management","Management",1545,"MARKETING",1545,"MARKETING","Operating",null,"O"]
["Management","Management",1550,"RECREATION/TOUR - F OF M",1550,"RECREATION/TOUR - F OF M","Operating",null,"O"]
["Management","Management",1560,"HOSPITALITY - F  OF M",1560,"HOSPITALITY - F  OF M","Operating",null,"O"]
["Management","Management",1561,"HOSP.MGMT TRUST/FIELD TRI",1561,"HOSP.MGMT TRUST/FIELD TRI","Operating",null,"O"]
["Management","Management",1562,"HOSPITALITY LAB",1562,"HOSPITALITY LAB","Operating",null,"O"]
["Management","Management",1563,"DISCOVERY ROOM LAB",1563,"DISCOVERY ROOM LAB","Operating",null,"O"]
["Management","Contracts - Management",1602,"MBA-RELATED FACULTY DEV'T",1602,"MBA-RELATED FACULTY DEV'T","Off Grant ",null,"O"]
["Management","Contracts - Management",1612,"FOM INITIATIVES",1612,"FOM INITIATIVES","Off Grant ",null,"O"]
["Management","Contracts - Management",1613,"GD HOSPITALITY MANAGEMENT ",1613,"GD HOSPITALITY MANAGEMENT ","Off Grant ",null,"O"]
["Management","Contracts - Management",1615,"MA SUSTAINABLE LEISURE",1615,"MA SUSTAINABLE LEISURE","Off Grant ",0.22,"O"]
["Management","Contracts - Management",1616,"GDPM PROGRAM",1616,"GDPM PROGRAM","Off Grant ",null,"O"]
["Management","Contracts - Management",1617,"GCIB PROGRAM",1617,"GCIB PROGRAM","Off Grant ",null,"O"]
["Management","Contracts - Management",1618,"GDIT PROGRAM",1618,"GDIT PROGRAM","Off Grant ",null,"O"]
["Management","Contracts - Management",1619,"ACCREDITATION-BUSINESS PR",1619,"ACCREDITATION-BUSINESS PR","Off Grant ",null,"O"]
["Management","Contracts - Management",1620,"MBA PRGM INSTRUCTION",1620,"MBA PRGM INSTRUCTION","Off Grant ",null,"O"]
["Management","Contracts - Management",1621,"MBA COURSE REDESIGN",1621,"MBA COURSE REDESIGN","Off Grant ",null,"O"]
["Management","Contracts - Management",1622,"MBA INTERNSHIP PROGRAM",1622,"MBA INTERNSHIP PROGRAM","Off Grant ",null,"O"]
["Management","Contracts - Management",1627,"GENERAL RESEARCH-VAUGEOIS",1627,"GENERAL RESEARCH-VAUGEOIS","Off Grant ",null,"O"]
["Management","Contracts - Management",1632,"GENERAL RESEARCH-MCKEOWN",1632,"GENERAL RESEARCH-MCKEOWN","Off Grant ",null,"O"]
["Management","Contracts - Management",1634,"BANKED RESEARCH-BURNLEY,C",1634,"BANKED RESEARCH-BURNLEY,C","Off Grant ",null,"O"]
["Management","Contracts - Management",1636,"GENERAL RESEARCH-MURRAY",1636,"GENERAL RESEARCH-MURRAY","Off Grant ",null,"L"]
["Management","Contracts - Management",1637,"GENERAL RESEARCH-DELAMERE",1637,"GENERAL RESEARCH-DELAMERE","Off Grant ",null,"O"]
["Management","Contracts - Management",1639,"BANKED RES. - DE LA BARRE",1639,"BANKED RES. - DE LA BARRE","Off Grant ",null,"O"]
["Management","Contracts - Management",1641,"GENERAL RESEARCH-STONE",1641,"GENERAL RESEARCH-STONE","Off Grant ",null,"O"]
["Management","Contracts - Management",1642,"GENERAL RES-MOGHIMEHFAR",1642,"GENERAL RES-MOGHIMEHFAR","Off Grant ",null,"O"]
["Management","Contracts - Management",1643,"GENERAL RESEARCH-BROUDER",1643,"GENERAL RESEARCH-BROUDER","Off Grant ",null,"O"]
["Management","Contracts - Management",1645,"GENERAL RESEARCH-WEIGHILL",1645,"GENERAL RESEARCH-WEIGHILL","Off Grant ",null,"O"]
["Management","Contracts - Management",1647,"GENERAL RESEARCH-FERGUSON",1647,"GENERAL RESEARCH-FERGUSON","Off Grant ",null,"O"]
["Management","Contracts - Management",1648,"BANKED RESEARCH-SCHROEDER",1648,"BANKED RESEARCH-SCHROEDER","Off Grant ",null,"O"]
["Management","Contracts - Management",1649,"GENERAL RESEARCH-PREDYK",1649,"GENERAL RESEARCH-PREDYK","Off Grant ",null,"O"]
["Management","Contracts - Management",1651,"GENERAL RESEARCH-JOHNSON",1651,"GENERAL RESEARCH-JOHNSON","Off Grant ",null,"O"]
["Management","Contracts - Management",1652,"BANKED RESEARCH - LATULIPPE",1652,"BANKED RESEARCH - LATULIPPE","Off Grant ",null,"O"]
["Management","Contracts - Management",1654,"COMPETTIVE FUND",1654,"COMPETTIVE FUND","Off Grant ",null,"O"]
["Management","Contracts - Management",1662,"PDD BUSINESS STUDIES CO-O",1662,"PDD BUSINESS STUDIES CO-O","Off Grant ",0.22,"O"]
["Management","Contracts - Management",1670,"WINE PROGRAM",1670,"WINE PROGRAM","Off Grant ",0.22,"O"]
["Management","Contracts - Management",1672,"EVENT MANAGEMENT",1672,"EVENT MANAGEMENT","Off Grant ",0.22,"O"]
["Management","CE - Management PD&T",1700,"CE ADMIN - MANAGEMENT",1700,"CE ADMIN - MANAGEMENT","PD&T",null,"O"]
["Management","CE - Management PD&T",1703,"BUSINESS AND COMM LEADERS",1703,"BUSINESS AND COMM LEADERS","PD&T",0.22,"O"]
["Management","CE - Management PD&T",1704,"MANAGEMENT SKILLS",1704,"MANAGEMENT SKILLS","PD&T",0.22,"O"]
["Management","CE - Management PD&T",1705,"MANAGING CONFLICT-WORKPLA",1705,"MANAGING CONFLICT-WORKPLA","PD&T",0.22,"O"]
["Management","CE - Management PD&T",1706,"PD&T CONTRCT TRNG - EXTERNL",1706,"PD&T CONTRCT TRNG - EXTERNL","PD&T",0.15,"O"]
["Management","CE - Management PD&T",1707,"CE-HOSPITALITY",1707,"CE-HOSPITALITY","PD&T",0.22,"L"]
["Social Sciences","CE- Social Sciences",1751,"CLEMENTE PROGRAM",1751,"CLEMENTE PROGRAM","Off Grant",null,"O"]
["Social Sciences","CE- Social Sciences",1755,"GIS CIDA HOLDING FUND",1755,"GIS CIDA HOLDING FUND","Off Grant",null,"O"]
["Social Sciences","CE- Social Sciences",1756,"INSIDE OUT PRISON EDUC",1756,"INSIDE OUT PRISON EDUC","Off Grant",null,"O"]
["Social Sciences","CE- Social Sciences",1757,"INST.OF PRACT.PHILOSOPHY",1757,"INST.OF PRACT.PHILOSOPHY","Off Grant",null,"L"]
["Social Sciences","CE- Social Sciences",1758,"COUCH STONE SYMPSIUM 2016",1758,"COUCH STONE SYMPSIUM 2016","Off Grant",null,"O"]
["Social Sciences","CE- Social Sciences",1759,"INSIDE OUT TRAINING",1759,"INSIDE OUT TRAINING","Off Grant",null,"O"]
["Social Sciences","Social Sciences",1800,"DEAN, SOCIAL SCIENCES",1800,"DEAN, SOCIAL SCIENCES","Operating",null,"O"]
["Social Sciences","Social Sciences",1801,"SOC SCI RECRUIT/RETENTION",1801,"SOC SCI RECRUIT/RETENTION","Operating",null,"O"]
["Social Sciences","Social Sciences",1804,"BUILDING 355 SUPPORT",1804,"BUILDING 355 SUPPORT","Operating",null,"O"]
["Social Sciences","Social Sciences",1810,"LIBERAL STUDIES",1810,"LIBERAL STUDIES","Operating",null,"O"]
["Social Sciences","Social Sciences",1811,"SOC SCI INTERDISCIPLINARY",1811,"SOC SCI INTERDISCIPLINARY","Operating",null,"O"]
["Social Sciences","Social Sciences",1812,"DIRECT STUDIES SOCIAL SCI",1812,"DIRECT STUDIES SOCIAL SCI","Operating",null,"O"]
["Social Sciences","Social Sciences",1815,"INT'L SECTIONS SOCIAL SCI",1815,"INT'L SECTIONS SOCIAL SCI","Operating",null,"O"]
["Social Sciences","Social Sciences",1836,"PHILOSOPHY",1836,"PHILOSOPHY","Operating",null,"O"]
["Social Sciences","Social Sciences",1840,"ANTHROPOLOGY",1840,"ANTHROPOLOGY","Operating",null,"O"]
["Social Sciences","Social Sciences",1843,"SOCIOLOGY",1843,"SOCIOLOGY","Operating",null,"O"]
["Social Sciences","Social Sciences",1844,"CBAIR",1844,"CBAIR","Operating",null,"O"]
["Social Sciences","Social Sciences",1846,"CRIMINOLOGY",1846,"CRIMINOLOGY","Operating",null,"O"]
["Social Sciences","Social Sciences",1849,"GEOGRAPHY",1849,"GEOGRAPHY","Operating",null,"O"]
["Social Sciences","Social Sciences",1855,"POLITICAL STUDIES",1855,"POLITICAL STUDIES","Operating",null,"O"]
["Social Sciences","Social Sciences",1861,"PSYCHOLOGY",1861,"PSYCHOLOGY","Operating",null,"O"]
["Social Sciences","Social Sciences",1880,"B.A. ADVISING",1880,"B.A. ADVISING","Operating",null,"O"]
["Social Sciences","Contracts - Social Sciences",1900,"VIU MODEL UN",1900,"VIU MODEL UN","Off Grant ",null,"O"]
["Social Sciences","Contracts - Social Sciences",1903,"WORLDBRIDGER FILM SERIES",1903,"WORLDBRIDGER FILM SERIES","Off Grant ",null,"O"]
["Social Sciences","Contracts - Social Sciences",1904,"RESILIENCE LAB (RSAC)",1904,"RESILIENCE LAB (RSAC)","Off Grant ",null,"O"]
["Social Sciences","Contracts - Social Sciences",1909,"GEOGRAPHY SCHOLARSHIP FD",1909,"GEOGRAPHY SCHOLARSHIP FD","Off Grant ",null,"L"]
["Social Sciences","Contracts - Social Sciences",1910,"NAN.CHINATOWN HERITAGE",1910,"NAN.CHINATOWN HERITAGE","Off Grant ",null,"L"]
["Social Sciences","Contracts - Social Sciences",1912,"RESILIENCE RESEARCH LAB",1912,"RESILIENCE RESEARCH LAB","Off Grant ",null,"O"]
["Social Sciences","Contracts - Social Sciences",1914,"WEST RESILIENCE NTWK CONF",1914,"WEST RESILIENCE NTWK CONF","Off Grant ",null,"L"]
["Social Sciences","Contracts - Social Sciences",1916,"BCPSA 16",1916,"BCPSA 16","Off Grant ",null,"L"]
["Social Sciences","Contracts - Social Sciences",1919,"THE COMPASS ROSE",1919,"THE COMPASS ROSE","Off Grant ",null,"O"]
["Social Sciences","Contracts - Social Sciences",1920,"MALASPINA RESEARCH CENTRE",1920,"MALASPINA RESEARCH CENTRE","Off Grant ",null,"O"]
["Social Sciences","Contracts - Social Sciences",1921,"MALASPINA FELLOWS PROGRAM",1921,"MALASPINA FELLOWS PROGRAM","Off Grant ",null,"O"]
["Social Sciences","Contracts - Social Sciences",1922,"GENERAL RESEARCH-MARCHANT",1922,"GENERAL RESEARCH-MARCHANT","Off Grant ",null,"O"]
["Social Sciences","Contracts - Social Sciences",1923,"BANKED RESEARCH-PATENAUDE",1923,"BANKED RESEARCH-PATENAUDE","Off Grant ",null,"O"]
["Social Sciences","Contracts - Social Sciences",1924,"GENERAL RESEARCH-MCCUNN",1924,"GENERAL RESEARCH-MCCUNN","Off Grant ",null,"O"]
["Social Sciences","Contracts - Social Sciences",1925,"GENERAL RESEARCH-COOPER",1925,"GENERAL RESEARCH-COOPER","Off Grant ",null,"O"]
["Social Sciences","Contracts - Social Sciences",1927,"BANKED RESEARCH-LIVINGSTO",1927,"BANKED RESEARCH-LIVINGSTO","Off Grant ",null,"O"]
["Social Sciences","Contracts - Social Sciences",1928,"GENERAL RESEARCH-BURNLEY",1928,"GENERAL RESEARCH-BURNLEY","Off Grant ",null,"O"]
["Social Sciences","Contracts - Social Sciences",1929,"GENERAL RESEARCH-HINBEST",1929,"GENERAL RESEARCH-HINBEST","Off Grant ",null,"O"]
["Social Sciences","Contracts - Social Sciences",1930,"GENERAL RESEARCH-MACGUIRE",1930,"GENERAL RESEARCH-MACGUIRE","Off Grant ",null,"O"]
["Social Sciences","Contracts - Social Sciences",1931,"BANKED RESEARCH GILCHRIST",1931,"BANKED RESEARCH GILCHRIST","Off Grant ",null,"O"]
["Social Sciences","Contracts - Social Sciences",1932,"GENERAL RESEARCH-SHAW",1932,"GENERAL RESEARCH-SHAW","Off Grant ",null,"O"]
["Social Sciences","Contracts - Social Sciences",1933,"GENERAL RESEARCH-NICOL",1933,"GENERAL RESEARCH-NICOL","Off Grant ",null,"O"]
["Social Sciences","Contracts - Social Sciences",1934,"GENERAL RESEARCH-LIM",1934,"GENERAL RESEARCH-LIM","Off Grant ",null,"O"]
["Social Sciences","Contracts - Social Sciences",1952,"UBC STUDY-BURNLEY/KIRSON",1952,"UBC STUDY-BURNLEY/KIRSON","Off Grant ",null,"L"]
["Social Sciences","Contracts - Social Sciences",1960,"SOCIAL SCI-PROCEEDS/(DEF)",1960,"SOCIAL SCI-PROCEEDS/(DEF)","Off Grant ",null,"L"]
["Social Sciences","Contracts - Social Sciences",1970,"MASTERS-COMM.PLANNING",1970,"MASTERS-COMM.PLANNING","Off Grant ",0.25,"O"]
["Social Sciences","Contracts - Social Sciences",1971,"LANDS MGMT CERT PROGRAM",1971,"LANDS MGMT CERT PROGRAM","Off Grant ",0.15,"O"]
["Social Sciences","Contracts - Social Sciences",1974,"ADVANCED DIPLOMA GIS",1974,"ADVANCED DIPLOMA GIS","Off Grant",0.2,"O"]
["Social Sciences","Contracts - Social Sciences",1975,"MASTERS-GIS APPLICATIONS",1975,"MASTERS-GIS APPLICATIONS","Off Grant ",0.25,"O"]
["Social Sciences","Contracts - Social Sciences",1976,"NRCAN",1976,"NRCAN","Off Grant ",null,"O"]
["Arts and Humanities","Arts & Humanities",2000,"DEAN, ARTS AND HUMANITIES",2000,"DEAN, ARTS AND HUMANITIES","Operating",null,"O"]
["Arts and Humanities","Arts & Humanities",2002,"A & H DIRECTED STUDIES",2002,"A & H DIRECTED STUDIES","Operating",null,"O"]
["Arts and Humanities","Arts & Humanities",2003,"INTERED SECTIONS ARTS",2003,"INTERED SECTIONS ARTS","Operating",null,"O"]
["Arts and Humanities","Arts & Humanities",2005,"ARTS AND F.N.ST. ADVISING",2005,"ARTS AND F.N.ST. ADVISING","Operating",null,"O"]
["Arts and Humanities","Arts & Humanities",2009,"ART TECHNICIAN",2009,"ART TECHNICIAN","Operating",null,"O"]
["Arts and Humanities","Arts & Humanities",2010,"ART",2010,"ART","Operating",null,"O"]
["Arts and Humanities","Arts & Humanities",2011,"APPLIED ART - GRAPHICS",2011,"APPLIED ART - GRAPHICS","Operating",null,"O"]
["Arts and Humanities","Arts & Humanities",2012,"INTERIOR DESIGN",2012,"INTERIOR DESIGN","Operating",null,"O"]
["Arts and Humanities","Arts & Humanities",2013,"MEDIA STUDIES-EXTRA SECTN",2013,"MEDIA STUDIES-EXTRA SECTN","Operating",null,"O"]
["Arts and Humanities","Arts & Humanities",2014,"MEDIA STUDIES",2014,"MEDIA STUDIES","Operating",null,"O"]
["Arts and Humanities","Arts & Humanities",2016,"MUSIC",2016,"MUSIC","Operating",null,"O"]
["Arts and Humanities","Arts & Humanities",2018,"MUSIC-PRIVATE INSTRUCTION",2018,"MUSIC-PRIVATE INSTRUCTION","Operating",null,"O"]
["Arts and Humanities","Arts & Humanities",2019,"THEATRE",2019,"THEATRE","Operating",null,"O"]
["Arts and Humanities","Arts & Humanities",2026,"MODERN LANGUAGES",2026,"MODERN LANGUAGES","Operating",null,"O"]
["Arts and Humanities","Arts & Humanities",2027,"ASIAN STUDIES CREDENTIAL",2027,"ASIAN STUDIES CREDENTIAL","Operating",null,"O"]
["Arts and Humanities","Arts & Humanities",2029,"ENGLISH - EXTRA SECTIONS",2029,"ENGLISH - EXTRA SECTIONS","Operating",null,"O"]
["Arts and Humanities","Arts & Humanities",2030,"ENGLISH",2030,"ENGLISH","Operating",null,"O"]
["Arts and Humanities","Arts & Humanities",2032,"CREATIVE WRITING",2032,"CREATIVE WRITING","Operating",null,"O"]
["Arts and Humanities","Arts & Humanities",2052,"HISTORY",2052,"HISTORY","Operating",null,"O"]
["Arts and Humanities","Arts & Humanities",2070,"FIRST NATIONS STUDIES",2070,"FIRST NATIONS STUDIES","Operating",null,"O"]
["Arts and Humanities","Arts & Humanities",2080,"WOMEN'S STUDIES",2080,"WOMEN'S STUDIES","Operating",null,"O"]
["Arts and Humanities","Arts & Humanities",2090,"VIEW GALLERY",2090,"VIEW GALLERY","Operating",null,"O"]
["Arts and Humanities","Contracts - Arts & Humanities",2201,"ARTS-CONTRACTS-HOLDING",2201,"ARTS-CONTRACTS-HOLDING","Off Grant",null,"O"]
["Arts and Humanities","Contracts - Arts & Humanities",2202,"CANADA COUNCIL READINGS",2202,"CANADA COUNCIL READINGS","Off Grant ",null,"O"]
["Arts and Humanities","Contracts - Arts & Humanities",2203,"CREATIVE WRITING - PORTAL",2203,"CREATIVE WRITING - PORTAL","Off Grant ",null,"O"]
["Arts and Humanities","Contracts - Arts & Humanities",2205,"MISC META LAB NEEDS",2205,"MISC META LAB NEEDS","Off Grant ",null,"O"]
["Arts and Humanities","Contracts - Arts & Humanities",2206,"MUSIC MASTER SERIES",2206,"MUSIC MASTER SERIES","Off Grant ",null,"O"]
["Arts and Humanities","Contracts - Arts & Humanities",2207,"A&H COLLOQUIUM SERIES",2207,"A&H COLLOQUIUM SERIES","Off Grant ",null,"O"]
["Arts and Humanities","Contracts - Arts & Humanities",2209,"RALPH GUSTAFSON POETRY TR",2209,"RALPH GUSTAFSON POETRY TR","Off Grant ",null,"O"]
["Arts and Humanities","Contracts - Arts & Humanities",2210,"STUDENT ART SALES",2210,"STUDENT ART SALES","Off Grant ",null,"O"]
["Arts and Humanities","Contracts - Arts & Humanities",2211,"VISITING ARTIST SERIES",2211,"VISITING ARTIST SERIES","Off Grant ",null,"O"]
["Arts and Humanities","Contracts - Arts & Humanities",2212,"ARTG 480 FINAL EXHIBIT",2212,"ARTG 480 FINAL EXHIBIT","Off Grant ",null,"O"]
["Arts and Humanities","Contracts - Arts & Humanities",2214,"CANADIAN LETTERS,IMAGES",2214,"CANADIAN LETTERS,IMAGES","Off Grant ",null,"O"]
["Arts and Humanities","Contracts - Arts & Humanities",2217,"ENGL DUAL CREDIT SD68",2217,"ENGL DUAL CREDIT SD68","Off Grant ",null,"O"]
["Arts and Humanities","Contracts - Arts & Humanities",2220,"GUSTAFSON CHAPBOOKS SERIE",2220,"GUSTAFSON CHAPBOOKS SERIE","Off Grant ",null,"O"]
["Arts and Humanities","Contracts - Arts & Humanities",2232,"PROGRESSIONS",2232,"PROGRESSIONS","Off Grant ",null,"O"]
["Arts and Humanities","Contracts - Arts & Humanities",2256,"MRL BUSINESS ACTIVITY",2256,"MRL BUSINESS ACTIVITY","Off Grant ",0.1,"O"]
["Arts and Humanities","Contracts - Arts & Humanities",2260,"GENERAL RESEARCH - WOOD",2260,"GENERAL RESEARCH - WOOD","Off Grant ",null,"O"]
["Science and Technology","Science & Technology",2300,"DEAN, SCIENCE AND TECH",2300,"DEAN, SCIENCE AND TECH","Operating",null,"O"]
["Science and Technology","Science & Technology",2301,"FACULTY ADMINISTRATION",2301,"FACULTY ADMINISTRATION","Operating",null,"O"]
["Science and Technology","Science & Technology",2303,"SCIENCE/TECH ADVISING",2303,"SCIENCE/TECH ADVISING","Operating",null,"O"]
["Science and Technology","Science & Technology",2305,"BAMFIELD FELLOWSHIPS",2305,"BAMFIELD FELLOWSHIPS","Operating",null,"O"]
["Science and Technology","Science & Technology",2306,"DIRECTED STUDIES-SCIENCE",2306,"DIRECTED STUDIES-SCIENCE","Operating",null,"O"]
["Science and Technology","Science & Technology",2310,"MATH",2310,"MATH","Operating",null,"O"]
["Science and Technology","Science & Technology",2313,"MATH CENTRE",2313,"MATH CENTRE","Operating",null,"O"]
["Science and Technology","Science & Technology",2315,"INT'L SECTIONS - SCIENCE",2315,"INT'L SECTIONS - SCIENCE","Operating",null,"O"]
["Science and Technology","Science & Technology",2320,"CHEMISTRY",2320,"CHEMISTRY","Operating",null,"O"]
["Science and Technology","Science & Technology",2325,"FUMEHOOD HAZ.WASTE DISPOS",2325,"FUMEHOOD HAZ.WASTE DISPOS","Operating",null,"O"]
["Science and Technology","Science & Technology",2326,"PHYSICS",2326,"PHYSICS","Operating",null,"O"]
["Science and Technology","Science & Technology",2327,"ENGINEERING DEGREE PROGR",2327,"ENGINEERING DEGREE PROGR","Operating",null,"O"]
["Science and Technology","Science & Technology",2340,"COMPUTING SCIENCE",2340,"COMPUTING SCIENCE","Operating",null,"O"]
["Science and Technology","Science & Technology",2350,"FORESTRY",2350,"FORESTRY","Operating",null,"O"]
["Science and Technology","Science & Technology",2360,"BIOLOGY",2360,"BIOLOGY","Operating",null,"O"]
["Science and Technology","Science & Technology",2365,"ANIMAL CARE",2365,"ANIMAL CARE","Operating",null,"L"]
["Science and Technology","Science & Technology",2380,"AQUACULTURE",2380,"AQUACULTURE","Operating",null,"O"]
["Science and Technology","Science & Technology",2386,"RESOURCE MGMT/PROTECTION",2386,"RESOURCE MGMT/PROTECTION","Operating",null,"O"]
["Science and Technology","Science & Technology",2393,"GEOLOGY",2393,"GEOLOGY","Operating",null,"O"]
["Science and Technology","Contracts - Science & Tech",2401,"INDIGENOUS SCHOLARSHIP",2401,"INDIGENOUS SCHOLARSHIP","Off Grant ",null,"L"]
["Science and Technology","Contracts - Science & Tech",2402,"VIU MUSEUM FUNDRAISING",2402,"VIU MUSEUM FUNDRAISING","Off Grant ",null,"O"]
["Science and Technology","Contracts - Science & Tech",2403,"AERL - EQUIPMENT",2403,"AERL - EQUIPMENT","Off Grant ",null,"L"]
["Science and Technology","Contracts - Science & Tech",2406,"AERL APPLIED RESEARCH",2406,"AERL APPLIED RESEARCH","Off Grant ",null,"O"]
["Science and Technology","Contracts - Science & Tech",2409,"FORESTRY FIELD TRIPS",2409,"FORESTRY FIELD TRIPS","Off Grant ",null,"O"]
["Science and Technology","Contracts - Science & Tech",2451,"MATH CONTEST",2451,"MATH CONTEST","Off Grant ",null,"O"]
["Science and Technology","Contracts - Science & Tech",2452,"AERL OPERATING (KROGH)",2452,"AERL OPERATING (KROGH)","Off Grant ",null,"O"]
["Science and Technology","Contracts - Science & Tech",2453,"ENV CAN - KROGH",2453,"ENV CAN - KROGH","Off Grant ",null,"O"]
["Science and Technology","Contracts - Science & Tech",2455,"PROMOTING EARTH SCIENCE",2455,"PROMOTING EARTH SCIENCE","Off Grant ",null,"O"]
["Science and Technology","Contracts - Science & Tech",2456,"FOSSIL HUT",2456,"FOSSIL HUT","Off Grant ",null,"L"]
["Science and Technology","Contracts - Science & Tech",2458,"GENERAL RESEARCH-KROGH",2458,"GENERAL RESEARCH-KROGH","Off Grant ",null,"O"]
["Science and Technology","Contracts - Science & Tech",2459,"GENERAL RESEARCH-GILL",2459,"GENERAL RESEARCH-GILL","Off Grant ",null,"O"]
["Science and Technology","Contracts - Science & Tech",2461,"GENERAL RESEARCH - SUN",2461,"GENERAL RESEARCH - SUN","Off Grant ",null,"O"]
["Science and Technology","Contracts - Science & Tech",2463,"GENERAL RESEARCH-BAKER",2463,"GENERAL RESEARCH-BAKER","Off Grant ",null,"O"]
["Science and Technology","Contracts - Science & Tech",2464,"GENERAL RESEARCH-RUSSELL",2464,"GENERAL RESEARCH-RUSSELL","Off Grant ",null,"O"]
["Science and Technology","Contracts - Science & Tech",2465,"GENERAL RESEARCH-MCEWEN",2465,"GENERAL RESEARCH-MCEWEN","Off Grant ",null,"O"]
["Science and Technology","Contracts - Science & Tech",2466,"GENERAL RESEARCH-STOKES",2466,"GENERAL RESEARCH-STOKES","Off Grant ",null,"O"]
["Science and Technology","Contracts - Science & Tech",2467,"GENERAL RESEARCH-BEESE",2467,"GENERAL RESEARCH-BEESE","Off Grant ",null,"L"]
["Science and Technology","Contracts - Science & Tech",2470,"GENERAL RESEARCH-LESEMANN",2470,"GENERAL RESEARCH-LESEMANN","Off Grant ",null,"O"]
["Science and Technology","Contracts - Science & Tech",2471,"GENERAL RESEARCH-DUNCAN",2471,"GENERAL RESEARCH-DUNCAN","Off Grant ",null,"O"]
["Science and Technology","Contracts - Science & Tech",2477,"GENERAL RESEARCH-MORGAN",2477,"GENERAL RESEARCH-MORGAN","Off Grant ",null,"L"]
["Science and Technology","Contracts - Science & Tech",2483,"VIU BIRD BANDING STATION",2483,"VIU BIRD BANDING STATION","Off Grant ",null,"O"]
["Science and Technology","Contracts - Science & Tech",2500,"PROCEEDS - SCIENCE/TECH",2500,"PROCEEDS - SCIENCE/TECH","Off Grant ",null,"O"]
["Science and Technology","Contracts - Science & Tech",2504,"FORESTRY GRAD ACCOUNT",2504,"FORESTRY GRAD ACCOUNT","Off Grant ",null,"L"]
["Science and Technology","Contracts - Science & Tech",2510,"PRGM EQUIPMENT DEPOSITS",2510,"PRGM EQUIPMENT DEPOSITS","Off Grant ",null,"O"]
["Science and Technology","Contracts - Science & Tech",2511,"RMOT STUDENT FUND",2511,"RMOT STUDENT FUND","Off Grant ",null,"O"]
["Science and Technology","Contracts - Science & Tech",2515,"GENERAL RESEARCH-PENNER",2515,"GENERAL RESEARCH-PENNER","Off Grant ",null,"O"]
["Science and Technology","Contracts - Science & Tech",2519,"FORESTRY WOODLOT-A117",2519,"FORESTRY WOODLOT-A117","Off Grant ",0.25,"O"]
["Science and Technology","Contracts - Science & Tech",2520,"SCIENCE/TECH LECTURE SER.",2520,"SCIENCE/TECH LECTURE SER.","Off Grant ",null,"O"]
["Science and Technology","Contracts - Science & Tech",2529,"BIOTECH RESEARCH/WAGER",2529,"BIOTECH RESEARCH/WAGER","Off Grant ",null,"L"]
["Science and Technology","Contracts - Science & Tech",2530,"MENREP PROGRAM",2530,"MENREP PROGRAM","Off Grant ",0.25,"O"]
["Science and Technology","Contracts - Science & Tech",2533,"CENTRE FOR COASTAL HEALTH",2533,"CENTRE FOR COASTAL HEALTH","Off Grant ",null,"O"]
["Science and Technology","Contracts - Science & Tech",2535,"HERNANDEZ STUDENT RESEARC",2535,"HERNANDEZ STUDENT RESEARC","Off Grant ",null,"O"]
["Science and Technology","Contracts - Science & Tech",2562,"GEOL 390 SPEC.FIELD STUDI",2562,"GEOL 390 SPEC.FIELD STUDI","Off Grant ",null,"O"]
["Science and Technology","Contracts - Science & Tech",2563,"GEOL 206 FIELD SCHOOL",2563,"GEOL 206 FIELD SCHOOL","Off Grant ",null,"O"]
["Science and Technology","Contracts - Science & Tech",2566,"ENGINEERING RESEARCH",2566,"ENGINEERING RESEARCH","Off Grant ",null,"O"]
["Science and Technology","Contracts - Science & Tech",2574,"GENERAL RESEARCH-DUFF",2574,"GENERAL RESEARCH-DUFF","Off Grant ",null,"O"]
["Science and Technology","Contracts - Science & Tech",2579,"AWARENESS CLIMATE CHANGE",2579,"AWARENESS CLIMATE CHANGE","Off Grant ",null,"O"]
["Science and Technology","Contracts - Science & Tech",2581,"CDN INSTITUTE OF FORESTRY",2581,"CDN INSTITUTE OF FORESTRY","Off Grant ",null,"L"]
["Science and Technology","Contracts - Science & Tech",2597,"AERL-UNDERWATER MASS SPEC",2597,"AERL-UNDERWATER MASS SPEC","Off Grant ",null,"L"]
["Science and Technology","CE - Science & Tech PD&T",2610,"FISH EXTENSION-GENERAL EX",2610,"FISH EXTENSION-GENERAL EX","PD&T",0.22,"O"]
["Science and Technology","CE - Science & Tech PD&T",2612,"FFTCP MODULES",2612,"FFTCP MODULES","PD&T",0.22,"O"]
["Science and Technology","CE - Science & Tech PD&T",2613,"ENVIRONMENTAL MONITORING",2613,"ENVIRONMENTAL MONITORING","PD&T",0.22,"O"]
["Science and Technology","CE - Science & Tech PD&T",2614,"FRESHWATER SAMPLING METHO",2614,"FRESHWATER SAMPLING METHO","PD&T",0.22,"O"]
["Science and Technology","CE - Science & Tech PD&T",2617,"EROSION AND SEDIMENT CONT",2617,"EROSION AND SEDIMENT CONT","PD&T",0.22,"O"]
["Science and Technology","CE - Science & Tech PD&T",2618,"NRSH-SHELLFISH COURSE",2618,"NRSH-SHELLFISH COURSE","PD&T",0.25,"O"]
["Science and Technology","CE - Science & Tech PD&T",2619,"RIPARIAN AREA REGULATION",2619,"RIPARIAN AREA REGULATION","PD&T",0.22,"O"]
["Science and Technology","CE - Science & Tech PD&T",2620,"EF RECERT",2620,"EF RECERT","PD&T",0.22,"O"]
["Science and Technology","CE - Science & Tech PD&T",2621,"ABORIGINAL ENV.TECH.CERT.",2621,"ABORIGINAL ENV.TECH.CERT.","PD&T",0.22,"O"]
["Science and Technology","CE - Science & Tech PD&T",2622,"ESSENTIAL FISHERIES FIELD",2622,"ESSENTIAL FISHERIES FIELD","PD&T",0.22,"O"]
["Science and Technology","CE - Science & Tech PD&T",2625,"NRTW-WRITING COURSE",2625,"NRTW-WRITING COURSE","PD&T",0.25,"O"]
["Science and Technology","CE - Science & Tech PD&T",2627,"SAFETY TRAINING (NRST)",2627,"SAFETY TRAINING (NRST)","PD&T",0.25,"O"]
["Science and Technology","CE - Science & Tech PD&T",2649,"NREP CREDIT CARD CHARGES",2649,"NREP CREDIT CARD CHARGES","PD&T",null,"O"]
["Academic and Career Preparation","Academic & Career Preparation",2700,"ABE & CAP ADMINISTRATION",2700,"ABE & CAP ADMINISTRATION","Operating",null,"O"]
["Academic and Career Preparation","Academic & Career Preparation",2705,"ABE LEARNING CENTRE",2705,"ABE LEARNING CENTRE","Operating",null,"O"]
["Academic and Career Preparation","Academic & Career Preparation",2706,"FOUNDATIONS FOR SUCCESS",2706,"FOUNDATIONS FOR SUCCESS","Operating",null,"O"]
["Academic and Career Preparation","Academic & Career Preparation",2730,"ADULT BASIC EDUCATION",2730,"ADULT BASIC EDUCATION","Operating",null,"O"]
["Academic and Career Preparation","Academic & Career Preparation",2735,"REGIONAL PROGRAMS",2735,"REGIONAL PROGRAMS","Operating",null,"O"]
["Academic and Career Preparation","Academic & Career Preparation",2736,"VOLUNTEER TUTOR PROGRAM",2736,"VOLUNTEER TUTOR PROGRAM","Operating",null,"O"]
["Academic and Career Preparation","Academic & Career Preparation",2741,"ACCESS PROGRAMS",2741,"ACCESS PROGRAMS","Operating",null,"O"]
["Academic and Career Preparation","Academic & Career Preparation",2742,"ACP CUSTOMIZED CONTRACT",2742,"ACP CUSTOMIZED CONTRACT","Operating",0.1,"L"]
["Academic and Career Preparation","Academic & Career Preparation",2750,"COWICHAN-VOLUNTEER TUTORS",2750,"COWICHAN-VOLUNTEER TUTORS","Operating",null,"O"]
["Academic and Career Preparation","Academic & Career Preparation",2752,"COWICHAN-A.B.E.",2752,"COWICHAN-A.B.E.","Operating",null,"O"]
["Academic and Career Preparation","Academic & Career Preparation",2755,"COWICHAN-ACCESS PROGRAMS",2755,"COWICHAN-ACCESS PROGRAMS","Operating",null,"O"]
["Academic and Career Preparation","Academic & Career Preparation",2770,"ABORIGINAL UNIV. BRIDGING",2770,"ABORIGINAL UNIV. BRIDGING","Operating",null,"O"]
["Academic and Career Preparation","Academic & Career Preparation",2780,"PARKSVILLE A.B.E.",2780,"PARKSVILLE A.B.E.","Operating",null,"O"]
["International Education","International Education",2800,"GENERAL RESEARCH-PIKE,GRAH",2800,"GENERAL RESEARCH-PIKE,GRAH","Off Grant ",null,"L"]
["International Education","International Education",2820,"ENGLISH LANGUAGE CENTRE",2820,"ENGLISH LANGUAGE CENTRE","Off Grant ",null,"O"]
["International Education","International Education",2829,"ESL TUITION",2829,"ESL TUITION","Off Grant ",null,"O"]
["Academic and Career Preparation","CE - Academic & Career Prep",2903,"CETP 2019-2020",2903,"CETP 2019-2020","Off Grant",0.1,"O"]
["Academic and Career Preparation","CE - Academic & Career Prep",2904,"WEST MINSTRY GRANT 2019",2904,"WEST MINSTRY GRANT 2019","Off Grant",0.1,"O"]
["International Education","International Education",3000,"INTERNATIONAL ADMIN",3000,"INTERNATIONAL ADMIN","Off Grant ",null,"O"]
["International Education","International Education",3001,"INTER ED. BCGEU PD",3001,"INTER ED. BCGEU PD","Off Grant ",null,"L"]
["International Education","International Education",3002,"CUSTOMER RELATIONS MGMT",3002,"CUSTOMER RELATIONS MGMT","Off Grant ",null,"O"]
["International Education","International Education",3004,"INTERED RENOVATIONS",3004,"INTERED RENOVATIONS","Off Grant ",null,"O"]
["International Education","International Education",3005,"INTERNATIONAL MEDICAL",3005,"INTERNATIONAL MEDICAL","Off Grant ",null,"O"]
["International Education","International Education",3006,"INTED STUDENT EMERG LOAN",3006,"INTED STUDENT EMERG LOAN","Off Grant ",null,"O"]
["International Education","International Education",3008,"INT'L STUDENT ADVISING",3008,"INT'L STUDENT ADVISING","Off Grant ",null,"O"]
["International Education","International Education",3009,"INTERCULTURAL PROGRAMS",3009,"INTERCULTURAL PROGRAMS","Off Grant ",null,"O"]
["International Education","International Education",3010,"INTERN'L STU. SERVICES",3010,"INTERN'L STU. SERVICES","Off Grant ",null,"O"]
["International Education","International Education",3011,"HOMESTAY",3011,"HOMESTAY","Off Grant ",null,"O"]
["International Education","International Education",3012,"AGENTS FEES  ESL",3012,"AGENTS FEES  ESL","Off Grant ",null,"O"]
["International Education","International Education",3013,"AGENTS FEES ACADEMIC",3013,"AGENTS FEES ACADEMIC","Off Grant ",null,"O"]
["International Education","International Education",3014,"INTERNATIONAL SCHOLARSHIP",3014,"INTERNATIONAL SCHOLARSHIP","Off Grant ",null,"O"]
["International Education","International Education",3015,"NYAKA SCHOLARSHIP",3015,"NYAKA SCHOLARSHIP","Off Grant ",null,"O"]
["International Education","International Education",3016,"HOMESTAY-VIU STUDENTS",3016,"HOMESTAY-VIU STUDENTS","Off Grant ",null,"O"]
["International Education","International Education",3017,"HOMESTAY - GROUPS",3017,"HOMESTAY - GROUPS","Off Grant ",null,"O"]
["International Education","International Education",3019,"TASIS/VIU SCHOLARSHIP",3019,"TASIS/VIU SCHOLARSHIP","Off Grant ",null,"O"]
["International Education","International Education",3020,"SYRIAN STDNT SCHOLARSHIP",3020,"SYRIAN STDNT SCHOLARSHIP","Off Grant ",null,"O"]
["International Education","International Education",3021,"PEARSON COLLEGE SCLRSHIP",3021,"PEARSON COLLEGE SCLRSHIP","Off Grant ",null,"O"]
["International Education","International Education",3022,"SYRIAN SCHOLARSHIP-ALLIKO",3022,"SYRIAN SCHOLARSHIP-ALLIKO","Off Grant ",null,"O"]
["International Education","International Education",3023,"SYRIAN SCHOLARSHIP-BAKER",3023,"SYRIAN SCHOLARSHIP-BAKER","Off Grant ",null,"O"]
["International Education","International Education",3024,"SYRIAN SCHLSHIP-SHEIKHO ",3024,"SYRIAN SCHLSHIP-SHEIKHO ","Off Grant ",null,"O"]
["International Education","International Education",3025,"GROUP PROGRAMS&CONTRACTS",3025,"GROUP PROGRAMS&CONTRACTS","Off Grant ",null,"O"]
["International Education","International Education",3027,"ISTEP-TANZANIA",3027,"ISTEP-TANZANIA","Off Grant ",null,"O"]
["International Education","International Education",3028,"ISTEP-TANZANIA-PIP",3028,"ISTEP-TANZANIA-PIP","Off Grant ",null,"O"]
["International Education","International Education",3029,"ELAP",3029,"ELAP","Off Grant ",null,"O"]
["International Education","International Education",3030,"INTERNL PROJECT/PARTNERSH",3030,"INTERNL PROJECT/PARTNERSH","Off Grant ",null,"O"]
["International Education","International Education",3034,"SHANGHAI LIXIN U COMMERCE",3034,"SHANGHAI LIXIN U COMMERCE","Off Grant ",null,"O"]
["International Education","International Education",3035,"SDIBT",3035,"SDIBT","Off Grant ",null,"O"]
["International Education","International Education",3039,"COSMETOLGY IMPLEMENTATION",3039,"COSMETOLGY IMPLEMENTATION","Off Grant ",null,"O"]
["International Education","International Education",3040,"INTERNATIONAL ED TRAVEL",3040,"INTERNATIONAL ED TRAVEL","Off Grant ",null,"O"]
["International Education","International Education",3041,"QUEEN ELIZABETH SCHOLARS",3041,"QUEEN ELIZABETH SCHOLARS","Off Grant ",null,"O"]
["International Education","International Education",3042,"QES VIU WAIVED TUITION",3042,"QES VIU WAIVED TUITION","Off Grant ",null,"O"]
["International Education","International Education",3043,"KEFEP - KENYA",3043,"KEFEP - KENYA","Off Grant ",null,"O"]
["International Education","International Education",3044,"SAGE - BELIZE",3044,"SAGE - BELIZE","Off Grant ",null,"O"]
["International Education","International Education",3045,"PACIFIC ALLIANCE ",3045,"PACIFIC ALLIANCE ","Off Grant ",null,"O"]
["International Education","International Education",3046,"YOUNG AFRICA WORKS - KENYA ",3046,"YOUNG AFRICA WORKS - KENYA ","Off Grant ",null,"O"]
["International Education","International Education",3060,"ED. ABROAD & PROJ MNGMT",3060,"ED. ABROAD & PROJ MNGMT","Off Grant ",null,"O"]
["International Education","International Education",3061,"GLOBAL ENGAGEMENT ",3061,"GLOBAL ENGAGEMENT ","Off Grant ",null,"O"]
["International Education","International Education",3070,"ERM TRAVEL SUPPORT ",3070,"ERM TRAVEL SUPPORT ","Off Grant ",null,"O"]
["International Education","International Education",3073,"VIETNAM - TRA VINH",3073,"VIETNAM - TRA VINH","Off Grant ",null,"O"]
["High School","High School",3080,"MIHS CLEARING",3080,"MIHS CLEARING","Off Grant ",null,"O"]
["High School","High School",3081,"MIHS SCHOLARSHIP FUND",3081,"MIHS SCHOLARSHIP FUND","Off Grant ",null,"O"]
["High School","High School",3082,"MIHS SUMMER STUDY",3082,"MIHS SUMMER STUDY","Off Grant ",null,"O"]
["High School","High School",3083,"GROUP PROGRAMS",3083,"GROUP PROGRAMS","Off Grant ",null,"O"]
["High School","High School",3084,"ADULT & FDN PROGRAMS",3084,"ADULT & FDN PROGRAMS","Off Grant ",null,"O"]
["High School","High School",3085,"MIHS OPERATIONS",3085,"MIHS OPERATIONS","Off Grant ",null,"O"]
["High School","High School",3086,"HIGH SCHOOL - TRUST",3086,"HIGH SCHOOL - TRUST","Off Grant ",null,"O"]
["High School","High School",3087,"HIGH SCHOOL INSTRUCTION",3087,"HIGH SCHOOL INSTRUCTION","Off Grant ",null,"O"]
["High School","High School",3088,"HIGH SCHOOL- CANADIAN",3088,"HIGH SCHOOL- CANADIAN","Off Grant ",null,"O"]
["High School","High School",3089,"MHS -INT'L STUDENTS",3089,"MHS -INT'L STUDENTS","Off Grant ",null,"O"]
["International Education","International Education",3090,"INT'L MARKETING PROGRAMS",3090,"INT'L MARKETING PROGRAMS","Off Grant ",null,"O"]
["International Education","International Education",3092,"MAL.INTERNATIONALIZATION",3092,"MAL.INTERNATIONALIZATION","Off Grant ",null,"O"]
["International Education","International Education",3093,"OVERSEAS TRAVEL STIPEND",3093,"OVERSEAS TRAVEL STIPEND","Off Grant ",null,"O"]
["International Education","International Education",3094,"EXCHANGE PROGRAMS",3094,"EXCHANGE PROGRAMS","Off Grant ",null,"O"]
["International Education","International Education",3095,"ACADEMIC PAID BY IE",3095,"ACADEMIC PAID BY IE","Off Grant ",null,"O"]
["International Education","International Education",3096,"ABE PAID BY IE",3096,"ABE PAID BY IE","Off Grant ",null,"O"]
["International Education","International Education",3098,"STU.FEES-HOLDING ACCOUNT",3098,"STU.FEES-HOLDING ACCOUNT","Off Grant ",null,"O"]
["International Education","International Education",3099,"INTER ED INDIV. STUDENTS",3099,"INTER ED INDIV. STUDENTS","Off Grant ",null,"O"]
["International Education","International Education",3100,"INTERNATIONAL ADMISSIONS",3100,"INTERNATIONAL ADMISSIONS","Off Grant ",null,"O"]
["International Education","International Education",3101,"CTR INTERCULTURAL STUDIES",3101,"CTR INTERCULTURAL STUDIES","Off Grant ",null,"O"]
["International Education","International Education",3110,"GLOBAL STUDIES INTERNSHIP",3110,"GLOBAL STUDIES INTERNSHIP","Off Grant ",null,"O"]
["International Education","International Education",3111,"INTERNAT'L ED: GLOBAL ST.",3111,"INTERNAT'L ED: GLOBAL ST.","Off Grant ",null,"O"]
["International Education","International Education",3112,"MBA PROGRAM",3112,"MBA PROGRAM","Off Grant ",null,"O"]
["International Education","International Education",3114,"MA SUSTAIN.LEISURE MGMT",3114,"MA SUSTAIN.LEISURE MGMT","Off Grant ",null,"O"]
["International Education","International Education",3116,"MASTERS ED - INTL PERSPEC",3116,"MASTERS ED - INTL PERSPEC","Off Grant ",null,"O"]
["International Education","International Education",3118,"MASTER OF COM PLANN (MCP)",3118,"MASTER OF COM PLANN (MCP)","Off Grant ",null,"O"]
["International Education","International Education",3120,"MASTER OF GISA (MGISA)",3120,"MASTER OF GISA (MGISA)","Off Grant ",null,"O"]
["International Education","International Education",3122,"GRAD CERT IN BUSINESS ",3122,"GRAD CERT IN BUSINESS ","Off Grant ",null,"O"]
["International Education","International Education",3124,"GRAD DIPL INTL TRADE",3124,"GRAD DIPL INTL TRADE","Off Grant ",null,"O"]
["International Education","International Education",3126,"GRAD DIPL PROJ MGMT",3126,"GRAD DIPL PROJ MGMT","Off Grant ",null,"O"]
["International Education","International Education",3128,"GRAD DIPL HOSP MGMT",3128,"GRAD DIPL HOSP MGMT","Off Grant ",null,"L"]
["International Education","International Education",3130,"TAMAGAWA  ESL/HORTICULTUR",3130,"TAMAGAWA  ESL/HORTICULTUR","Off Grant ",null,"O"]
["International Education","International Education",3140,"INDIA OFFICE",3140,"INDIA OFFICE","Off Grant ",null,"O"]
["International Education","International Education",3141,"OWWE - EUROPE OFFICE",3141,"OWWE - EUROPE OFFICE","Off Grant ",null,"O"]
["International Education","International Education",3142,"RASHA - EAST ASIA OFFICE",3142,"RASHA - EAST ASIA OFFICE","Off Grant ",null,"O"]
["International Education","International Education",3143,"GROK EDUC-CHINA OFFICE",3143,"GROK EDUC-CHINA OFFICE","Off Grant ",null,"O"]
["International Education","International Education",3145,"LATIN AMERICA OFFICE",3145,"LATIN AMERICA OFFICE","Off Grant",null,"O"]
["International Education","International Education",3150,"INT'L TRVL/CURRIC GRANTS",3150,"INT'L TRVL/CURRIC GRANTS","Off Grant ",null,"O"]
["International Education","International Education",3155,"FIELD SCHOOL FEE-CLEARING",3155,"FIELD SCHOOL FEE-CLEARING","Off Grant ",null,"O"]
["International Education","International Education",3158,"PRACTICUM SUPPORT",3158,"PRACTICUM SUPPORT","Off Grant ",null,"O"]
["International Education","International Education",3159,"STUDY ABROAD EMERGENCY FD",3159,"STUDY ABROAD EMERGENCY FD","Off Grant ",null,"O"]
["International Education","International Education",3160,"STUDENTS FOR DEVELOPMENT",3160,"STUDENTS FOR DEVELOPMENT","Off Grant ",null,"O"]
["International Education","International Education",3162,"FN FIELD SCHOOL",3162,"FN FIELD SCHOOL","Off Grant ",null,"L"]
["International Education","International Education",3163,"ENGR FIELD SCHOOL VIETNAM",3163,"ENGR FIELD SCHOOL VIETNAM","Off Grant ",null,"O"]
["International Education","International Education",3165,"FIELD SCHOOL DEVELOPMENT",3165,"FIELD SCHOOL DEVELOPMENT","Off Grant ",null,"L"]
["International Education","International Education",3169,"MGMT WINE FS-EUROPE",3169,"MGMT WINE FS-EUROPE","Off Grant ",null,"O"]
["International Education","International Education",3170,"ART - NEW YORK",3170,"ART - NEW YORK","Off Grant ",null,"O"]
["International Education","International Education",3172,"HSP/TOUR FIELD SCH-HAWAII",3172,"HSP/TOUR FIELD SCH-HAWAII","Off Grant ",null,"O"]
["International Education","International Education",3173,"VIU IN AFRICA",3173,"VIU IN AFRICA","Off Grant ",null,"O"]
["International Education","International Education",3174,"CRIM FS - PHILADELPHIA",3174,"CRIM FS - PHILADELPHIA","Off Grant ",null,"O"]
["International Education","International Education",3175,"GEOLOGY ABROAD",3175,"GEOLOGY ABROAD","Off Grant ",null,"O"]
["International Education","International Education",3178,"ANTHROPOLOGY INTERNSHIPS",3178,"ANTHROPOLOGY INTERNSHIPS","Off Grant ",null,"O"]
["International Education","International Education",3179,"BACH EDUCATION ABROAD",3179,"BACH EDUCATION ABROAD","Off Grant ",null,"O"]
["International Education","International Education",3180,"LIBERAL STUDIES ABROAD",3180,"LIBERAL STUDIES ABROAD","Off Grant ",null,"O"]
["International Education","International Education",3182,"NURSING FIELD SCH NEPAL",3182,"NURSING FIELD SCH NEPAL","Off Grant ",null,"O"]
["International Education","International Education",3183,"BUSINESS FIELD SCH-CHINA",3183,"BUSINESS FIELD SCH-CHINA","Off Grant ",null,"O"]
["International Education","International Education",3184,"CULINARY FIELD SCH -ITALY",3184,"CULINARY FIELD SCH -ITALY","Off Grant ",null,"O"]
["International Education","International Education",3185,"ENG/GEOGRAPHY FS ITALY",3185,"ENG/GEOGRAPHY FS ITALY","Off Grant ",null,"O"]
["International Education","International Education",3186,"PE ABROAD",3186,"PE ABROAD","Off Grant ",null,"O"]
["International Education","International Education",3187,"SOC/CRIM FS ARIZONA",3187,"SOC/CRIM FS ARIZONA","Off Grant ",null,"O"]
["International Education","International Education",3188,"BIOLOGY FS - BELIZE",3188,"BIOLOGY FS - BELIZE","Off Grant ",null,"L"]
["International Education","International Education",3189,"SWU BIP",3189,"SWU BIP","Off Grant ",null,"O"]
["International Education","International Education",3190,"BAKING - FRANCE",3190,"BAKING - FRANCE","Off Grant ",null,"O"]
["International Education","International Education",3191,"GEOGRAPHY ABROAD",3191,"GEOGRAPHY ABROAD","Off Grant ",null,"O"]
["International Education","International Education",3192,"HHS FIELD SCH-INDONESIA",3192,"HHS FIELD SCH-INDONESIA","Off Grant ",null,"O"]
["International Education","International Education",3194,"BUSINESS FS - EUROPE",3194,"BUSINESS FS - EUROPE","Off Grant ",null,"O"]
["International Education","International Education",3195,"EDUC FS - UGANDA ",3195,"EDUC FS - UGANDA ","Off Grant ",null,"O"]
["International Education","International Education",3199,"INT.CONTINGENCY&PROCEEDS",3199,"INT.CONTINGENCY&PROCEEDS","Off Grant ",null,"L"]
["Trades and Applied Technology","Trades & Applied Technology",3200,"DEAN,TRADES/APPLIED TECH",3200,"DEAN,TRADES/APPLIED TECH","Operating",null,"O"]
["Trades and Applied Technology","Trades & Applied Technology",3299,"TRADES - HOLDING ACCOUNT",3299,"TRADES - HOLDING ACCOUNT","Operating",null,"O"]
["Trades and Applied Technology","Trades & Applied Technology",3320,"CULINARY ARTS/BAKING",3320,"CULINARY ARTS/BAKING","Operating",null,"O"]
["Trades and Applied Technology","Trades & Applied Technology",3322,"CUL COMPETITIONS-FIELD TR",3322,"CUL COMPETITIONS-FIELD TR","Operating",null,"O"]
["Ancillary - Business Operations","Ancillary - Food Services",3600,"CAFETERIA",3600,"CAFETERIA","Operating",null,"O"]
["Ancillary - Business Operations","Ancillary - Food Services",3604,"CATERING SERVICES",3604,"CATERING SERVICES","Operating",null,"O"]
["Ancillary - Business Operations","Ancillary - Food Services",3605,"STUDENT FOOD SALES",3605,"STUDENT FOOD SALES","Operating",null,"O"]
["Ancillary - Business Operations","Ancillary - Food Services",3606,"STARBUCKS",3606,"STARBUCKS","Operating",null,"O"]
["Trades and Applied Technology","Trades & Applied Technology",3700,"TRADES AND APPRENTICESHIP",3700,"TRADES AND APPRENTICESHIP","Operating",null,"O"]
["Trades and Applied Technology","Trades & Applied Technology",3720,"HORTICULTURE",3720,"HORTICULTURE","Operating",null,"O"]
["Trades and Applied Technology","Trades & Applied Technology",3728,"CARPENTRY",3728,"CARPENTRY","Operating",null,"O"]
["Trades and Applied Technology","Trades & Applied Technology",3729,"TRADES DISCOVERY NAN",3729,"TRADES DISCOVERY NAN","Operating",null,"O"]
["Trades and Applied Technology","Trades & Applied Technology",3761,"AUTO SERVICE TECH",3761,"AUTO SERVICE TECH","Operating",null,"O"]
["Trades and Applied Technology","Trades & Applied Technology",3765,"H.D./COMMERCIAL TRANSPORT",3765,"H.D./COMMERCIAL TRANSPORT","Operating",null,"O"]
["Trades and Applied Technology","Trades & Applied Technology",3770,"MARINE/INBOARD/OUTBOARD",3770,"MARINE/INBOARD/OUTBOARD","Operating",null,"O"]
["Trades and Applied Technology","Trades & Applied Technology",3780,"WELDING",3780,"WELDING","Operating",null,"O"]
["Trades and Applied Technology","Trades & Applied Technology",3781,"WELD FOUNDATION COWICHAN",3781,"WELD FOUNDATION COWICHAN","Operating",null,"O"]
["Trades and Applied Technology","Trades & Applied Technology",3785,"ELECTRICIAN",3785,"ELECTRICIAN","Operating",null,"O"]
["Trades and Applied Technology","Trades & Applied Technology",3790,"HAIRDRESSING",3790,"HAIRDRESSING","Operating",null,"O"]
["Trades and Applied Technology","Trades & Applied Technology",3791,"HAIRDRESSING STUDENT KITS",3791,"HAIRDRESSING STUDENT KITS","Operating",null,"O"]
["Trades and Applied Technology","CE - Trades & Appl Tech PD&T",3809,"ESTHETICS",3809,"ESTHETICS","PD&T",0.22,"O"]
["Trades and Applied Technology","CE - Trades & Appl Tech PD&T",3810,"ELECTRICIAN CE",3810,"ELECTRICIAN CE","PD&T",0.25,"O"]
["Trades and Applied Technology","Contracts - Trades & Appl Tech",3900,"HEAVY EQUIP.OP.A075",3900,"HEAVY EQUIP.OP.A075","Off Grant",0.15,"O"]
["Trades and Applied Technology","Contracts - Trades & Appl Tech",3901,"TRADES REMOVING BARRIERS ",3901,"TRADES REMOVING BARRIERS ","Off Grant",0.25,"L"]
["Trades and Applied Technology","Contracts - Trades & Appl Tech",3902,"DRIVER TRAINING FOR HEO",3902,"DRIVER TRAINING FOR HEO","Off Grant",0.15,"L"]
["Trades and Applied Technology","Contracts - Trades & Appl Tech",3903,"FORKLIFT TRAINING",3903,"FORKLIFT TRAINING","Off Grant",0.15,"O"]
["Trades and Applied Technology","Contracts - Trades & Appl Tech",3904,"HEAVY METAL ROCKS",3904,"HEAVY METAL ROCKS","Off Grant",null,"O"]
["Trades and Applied Technology","Contracts - Trades & Appl Tech",3909,"HEO SIMULATOR PROGRAM",3909,"HEO SIMULATOR PROGRAM","Off Grant",null,"O"]
["Trades and Applied Technology","Contracts - Trades & Appl Tech",3911,"ABORIGINAL CONSTRUCTION",3911,"ABORIGINAL CONSTRUCTION","Off Grant",0.1,"O"]
["Trades and Applied Technology","Contracts - Trades & Appl Tech",3912,"POWER ENGINEERING",3912,"POWER ENGINEERING","Off Grant",0.25,"O"]
["Trades and Applied Technology","Contracts - Trades & Appl Tech",3914,"CULINARY DIPLOMA",3914,"CULINARY DIPLOMA","Off Grant",0.25,"O"]
["Trades and Applied Technology","Contracts - Trades & Appl Tech",3915,"BAKING DIPLOMA",3915,"BAKING DIPLOMA","Off Grant",0.25,"O"]
["Trades and Applied Technology","Contracts - Trades & Appl Tech",3916,"SCH. DIST #79 PROGRAMS",3916,"SCH. DIST #79 PROGRAMS","Off Grant",null,"O"]
["Trades and Applied Technology","Contracts - Trades & Appl Tech",3917,"SCH.DIST#46 PARTNERSHIP",3917,"SCH.DIST#46 PARTNERSHIP","Off Grant",0.18,"O"]
["Trades and Applied Technology","Contracts - Trades & Appl Tech",3919,"EXPLORE TRADES",3919,"EXPLORE TRADES","Off Grant",0.1,"L"]
["Trades and Applied Technology","Contracts - Trades & Appl Tech",3926,"FOREST CENTRE",3926,"FOREST CENTRE","Off Grant",null,"O"]
["Trades and Applied Technology","Contracts - Trades & Appl Tech",3930,"TAMAGAWA INTERNATIONAL FD",3930,"TAMAGAWA INTERNATIONAL FD","Off Grant",null,"O"]
["Trades and Applied Technology","Contracts - Trades & Appl Tech",3938,"WELDER FITTER COWICHAN",3938,"WELDER FITTER COWICHAN","Off Grant",0.05,"O"]
["Trades and Applied Technology","Contracts - Trades & Appl Tech",3939,"WELDER-FITTER NAN 2015/16",3939,"WELDER-FITTER NAN 2015/16","Off Grant",0.05,"O"]
["Trades and Applied Technology","Contracts - Trades & Appl Tech",3940,"VEHICLE INSPECTION",3940,"VEHICLE INSPECTION","Off Grant",0.25,"L"]
["Trades and Applied Technology","Contracts - Trades & Appl Tech",3944,"CONTRACT DEVELOPMENT",3944,"CONTRACT DEVELOPMENT","Off Grant",0.22,"O"]
["Trades and Applied Technology","Contracts - Trades & Appl Tech",3948,"SKILLS CANADA COMPETITION",3948,"SKILLS CANADA COMPETITION","Off Grant",null,"O"]
["Trades and Applied Technology","Contracts - Trades & Appl Tech",3949,"BAKING DONATIONS",3949,"BAKING DONATIONS","Off Grant",null,"O"]
["Trades and Applied Technology","Contracts - Trades & Appl Tech",3960,"OA CALC.RENTAL/DEPOSIT",3960,"OA CALC.RENTAL/DEPOSIT","Off Grant",null,"O"]
["Trades and Applied Technology","Contracts - Trades & Appl Tech",3980,"OA COST RECOVERY-COW",3980,"OA COST RECOVERY-COW","Off Grant",null,"O"]
["Trades and Applied Technology","Contracts - Trades & Appl Tech",3983,"HAIRDRESSING SD#63-COW",3983,"HAIRDRESSING SD#63-COW","Off Grant",null,"O"]
["Trades and Applied Technology","Contracts - Trades & Appl Tech",3985,"HAIRDRESSING SD#79-COW",3985,"HAIRDRESSING SD#79-COW","Off Grant",null,"O"]
["Trades and Applied Technology","Contracts - Trades & Appl Tech",3990,"HAIRDRESSING-POWELL RIVER",3990,"HAIRDRESSING-POWELL RIVER","Off Grant",0.22,"O"]
["Trades and Applied Technology","Contracts - Trades & Appl Tech",3991,"HAIR HARMONIZATION ",3991,"HAIR HARMONIZATION ","Off Grant",0.05,"O"]
["Trades and Applied Technology","Contracts - Trades & Appl Tech",3999,"TRADES/APP PRGMS-PROCEEDS",3999,"TRADES/APP PRGMS-PROCEEDS","Off Grant",null,"L"]
["Trades and Applied Technology","Trades & Applied Technology",4010,"CULINARY ARTS COW",4010,"CULINARY ARTS COW","Operating",null,"O"]
["Trades and Applied Technology","Trades & Applied Technology",4013,"CARPENTRY COW",4013,"CARPENTRY COW","Operating",null,"O"]
["Trades and Applied Technology","Trades & Applied Technology",4014,"TRADES DISCOVERY COW",4014,"TRADES DISCOVERY COW","Operating",null,"O"]
["Trades and Applied Technology","Trades & Applied Technology",4016,"REFRIDGTN A/C MECH. COW",4016,"REFRIDGTN A/C MECH. COW","Operating",null,"O"]
["Trades and Applied Technology","Trades & Applied Technology",4030,"CULINARY ARTS-POWELL RIV",4030,"CULINARY ARTS-POWELL RIV","Operating",null,"O"]
["Trades and Applied Technology","Trades & Applied Technology",4031,"WELDING-POWELL RIVER",4031,"WELDING-POWELL RIVER","Operating",null,"O"]
["Trades and Applied Technology","Trades & Applied Technology",4032,"AUTO SV TECH-POWELL RIVER",4032,"AUTO SV TECH-POWELL RIVER","Operating",null,"O"]
["Trades and Applied Technology","Trades & Applied Technology",4033,"CARPENTRY-POWELL RIVER",4033,"CARPENTRY-POWELL RIVER","Operating",null,"O"]
["Trades and Applied Technology","Trades & Applied Technology",4060,"OFFICE ADMINISTRATION",4060,"OFFICE ADMINISTRATION","Operating",null,"O"]
["Trades and Applied Technology","Trades & Applied Technology",4065,"ITAS",4065,"ITAS","Operating",null,"O"]
["Scholarship, Research and Creative Activity","Contracts - PVPA Research Cont.",4101,"VIURAC RF ROGERS",4101,"VIURAC RF ROGERS","Off Grant",null,"L"]
["Scholarship, Research and Creative Activity","Contracts - PVPA Research Cont.",4105,"VIURAC SIG-15 MANSON",4105,"VIURAC SIG-15 MANSON","Off Grant",null,"L"]
["Scholarship, Research and Creative Activity","Contracts - PVPA Research Cont.",4107,"VIURAC RF SHEA",4107,"VIURAC RF SHEA","Off Grant",null,"L"]
["Scholarship, Research and Creative Activity","Contracts - PVPA Research Cont.",4108,"VIURAC SIG-18 MAZUTINEC",4108,"VIURAC SIG-18 MAZUTINEC","Off Grant",null,"L"]
["Scholarship, Research and Creative Activity","Contracts - PVPA Research Cont.",4110,"VIURAC-EX RF BLANEY",4110,"VIURAC-EX RF BLANEY","Off Grant",null,"L"]
["Scholarship, Research and Creative Activity","Contracts - PVPA Research Cont.",4111,"VIURAC-EN/IQ RF BLANEY",4111,"VIURAC-EN/IQ RF BLANEY","Off Grant",null,"O"]
["Scholarship, Research and Creative Activity","Contracts - PVPA Research Cont.",4113,"VIURAC RF KNIGHT",4113,"VIURAC RF KNIGHT","Off Grant",null,"L"]
["Scholarship, Research and Creative Activity","Contracts - PVPA Research Cont.",4114,"VIURAC SIG-18 DAVIDSON",4114,"VIURAC SIG-18 DAVIDSON","Off Grant",null,"O"]
["Scholarship, Research and Creative Activity","Contracts - PVPA Research Cont.",4115,"VIURAC RF MCGRAIL",4115,"VIURAC RF MCGRAIL","Off Grant",null,"L"]
["Scholarship, Research and Creative Activity","Contracts - PVPA Research Cont.",4118,"VIURAC SIG1518 SGRF HNBST",4118,"VIURAC SIG1518 SGRF HNBST","Off Grant",null,"L"]
["Scholarship, Research and Creative Activity","Contracts - PVPA Research Cont.",4119,"VIURAC SIG-18 HOPWOOD ",4119,"VIURAC SIG-18 HOPWOOD ","Off Grant",null,"L"]
["Scholarship, Research and Creative Activity","Contracts - PVPA Research Cont.",4120,"VIURAC SIG-18 STONE",4120,"VIURAC SIG-18 STONE","Off Grant",null,"L"]
["Scholarship, Research and Creative Activity","Contracts - PVPA Research Cont.",4121,"VIURAC SIG-18-SGRF MANSON",4121,"VIURAC SIG-18-SGRF MANSON","Off Grant",null,"O"]
["Scholarship, Research and Creative Activity","Contracts - PVPA Research Cont.",4122,"VIURAC RF DAMES",4122,"VIURAC RF DAMES","Off Grant",null,"L"]
["Scholarship, Research and Creative Activity","Contracts - PVPA Research Cont.",4123,"VIURAC S-GRF KOERBLER",4123,"VIURAC S-GRF KOERBLER","Off Grant",null,"L"]
["Scholarship, Research and Creative Activity","Contracts - PVPA Research Cont.",4124,"VIURAC SIG-18 TAPLAY",4124,"VIURAC SIG-18 TAPLAY","Off Grant",null,"L"]
["Scholarship, Research and Creative Activity","Contracts - PVPA Research Cont.",4126,"VIURAC N-GRF NILSON",4126,"VIURAC N-GRF NILSON","Off Grant",null,"L"]
["Scholarship, Research and Creative Activity","Contracts - PVPA Research Cont.",4127,"VIURAC N-GRF JANES",4127,"VIURAC N-GRF JANES","Off Grant",null,"L"]
["Scholarship, Research and Creative Activity","Contracts - PVPA Research Cont.",4129,"VIURAC N-GRF STOKES",4129,"VIURAC N-GRF STOKES","Off Grant",null,"O"]
["Scholarship, Research and Creative Activity","Contracts - PVPA Research Cont.",4131,"VIURAC N-GRF GORRELL",4131,"VIURAC N-GRF GORRELL","Off Grant",null,"L"]
["Scholarship, Research and Creative Activity","Contracts - PVPA Research Cont.",4132,"VIURAC RF ANGLESTAD",4132,"VIURAC RF ANGLESTAD","Off Grant",null,"L"]
["Scholarship, Research and Creative Activity","Contracts - PVPA Research Cont.",4133,"VIURAC N-GRF BAKER",4133,"VIURAC N-GRF BAKER","Off Grant",null,"L"]
["Scholarship, Research and Creative Activity","Contracts - PVPA Research Cont.",4135,"VIURAC RF JUNG",4135,"VIURAC RF JUNG","Off Grant",null,"L"]
["Scholarship, Research and Creative Activity","Contracts - PVPA Research Cont.",4138,"VIURAC RF KUSZ",4138,"VIURAC RF KUSZ","Off Grant",null,"L"]
["Scholarship, Research and Creative Activity","Contracts - PVPA Research Cont.",4139,"VIURAC RF CRAIG",4139,"VIURAC RF CRAIG","Off Grant",null,"O"]
["Scholarship, Research and Creative Activity","Contracts - PVPA Research Cont.",4140,"VIURAC RF JUBY",4140,"VIURAC RF JUBY","Off Grant",null,"O"]
["Scholarship, Research and Creative Activity","Contracts - PVPA Research Cont.",4141,"VIURAC RF KROGH 100281",4141,"VIURAC RF KROGH 100281","Off Grant",null,"O"]
["Scholarship, Research and Creative Activity","Contracts - PVPA Research Cont.",4142,"VIURAC RF CARRUTHERS ",4142,"VIURAC RF CARRUTHERS ","Off Grant",null,"L"]
["Scholarship, Research and Creative Activity","Contracts - PVPA Research Cont.",4143,"VIURAC RF DAMES 100239",4143,"VIURAC RF DAMES 100239","Off Grant",null,"O"]
["Scholarship, Research and Creative Activity","Contracts - PVPA Research Cont.",4144,"VIURRAC RF DAVIES ",4144,"VIURRAC RF DAVIES ","Off Grant",null,"L"]
["Scholarship, Research and Creative Activity","Contracts - PVPA Research Cont.",4145,"VIURAC RF HEITI",4145,"VIURAC RF HEITI","Off Grant",null,"O"]
["Scholarship, Research and Creative Activity","Contracts - PVPA Research Cont.",4146,"VIURAC RF HOPWOOD ",4146,"VIURAC RF HOPWOOD ","Off Grant",null,"O"]
["Scholarship, Research and Creative Activity","Contracts - PVPA Research Cont.",4147,"VIURAC RF DAVEY",4147,"VIURAC RF DAVEY","Off Grant",null,"O"]
["Scholarship, Research and Creative Activity","Contracts - PVPA Research Cont.",4148,"VIURAC RF RUSSELL",4148,"VIURAC RF RUSSELL","Off Grant",null,"L"]
["Scholarship, Research and Creative Activity","Contracts - PVPA Research Cont.",4149,"VIURAC RF SUN ",4149,"VIURAC RF SUN ","Off Grant",null,"L"]
["Scholarship, Research and Creative Activity","Contracts - PVPA Research Cont.",4150,"VIURAC RF SIMMS",4150,"VIURAC RF SIMMS","Off Grant",null,"L"]
["Scholarship, Research and Creative Activity","Contracts - PVPA Research Cont.",4151,"MOSAIC-BEESE",4151,"MOSAIC-BEESE","Off Grant",null,"L"]
["Scholarship, Research and Creative Activity","Contracts - PVPA Research Cont.",4154,"GVWD-FLOYD",4154,"GVWD-FLOYD","Off Grant",null,"O"]
["Scholarship, Research and Creative Activity","Contracts - PVPA Research Cont.",4157,"BCSDEVPR(IPRS)TAPLAY ",4157,"BCSDEVPR(IPRS)TAPLAY ","Off Grant",null,"L"]
["Scholarship, Research and Creative Activity","Contracts - PVPA Research Cont.",4161,"MITACS-RBC-ALPHONSE",4161,"MITACS-RBC-ALPHONSE","Off Grant",null,"O"]
["Scholarship, Research and Creative Activity","Contracts - PVPA Research Cont.",4163,"GENOMEBC - GREEN ",4163,"GENOMEBC - GREEN ","Off Grant",null,"O"]
["Scholarship, Research and Creative Activity","Contracts - PVPA Research Cont.",4164,"BCSGA - GREEN",4164,"BCSGA - GREEN","Off Grant",null,"O"]
["Scholarship, Research and Creative Activity","Contracts - PVPA Research Cont.",4165,"IN-NA (GITKSAN) - FLOYD",4165,"IN-NA (GITKSAN) - FLOYD","Off Grant",null,"O"]
["Scholarship, Research and Creative Activity","Contracts - PVPA Research Cont.",4166,"RTT-KAT - DAMES 5854",4166,"RTT-KAT - DAMES 5854","Off Grant",null,"L"]
["Scholarship, Research and Creative Activity","Contracts - PVPA Research Cont.",4167,"BC - CMPS - VINDEN 4589",4167,"BC - CMPS - VINDEN 4589","Off Grant",null,"O"]
["Scholarship, Research and Creative Activity","Contracts - PVPA Research Cont.",4200,"MABRRI HOLDING ACCOUNT",4200,"MABRRI HOLDING ACCOUNT","Off Grant",null,"O"]
["Scholarship, Research and Creative Activity","Contracts - PVPA Research Cont.",4201,"PORT ALBERNI-SHAW 5697",4201,"PORT ALBERNI-SHAW 5697","Off Grant",null,"O"]
["Scholarship, Research and Creative Activity","Contracts - PVPA Research Cont.",4202,"KOMOKS-SHAW 5707",4202,"KOMOKS-SHAW 5707","Off Grant",null,"O"]
["Scholarship, Research and Creative Activity","Contracts - PVPA Research Cont.",4203,"RIF-SHAW ",4203,"RIF-SHAW ","Off Grant",null,"L"]
["Scholarship, Research and Creative Activity","Contracts - PVPA Research Cont.",4204,"ECO-HOBKIRK-SAKAKI",4204,"ECO-HOBKIRK-SAKAKI","Off Grant",null,"L"]
["Scholarship, Research and Creative Activity","Contracts - PVPA Research Cont.",4205,"ECO-VIVANI-SAKAKI",4205,"ECO-VIVANI-SAKAKI","Off Grant",null,"L"]
["Scholarship, Research and Creative Activity","Contracts - PVPA Research Cont.",4206,"RDN-SHAW",4206,"RDN-SHAW","Off Grant",null,"L"]
["Scholarship, Research and Creative Activity","Contracts - PVPA Research Cont.",4207,"ST JOHN LEGACY FDN - SHAW",4207,"ST JOHN LEGACY FDN - SHAW","Off Grant",null,"O"]
["Scholarship, Research and Creative Activity","Contracts - PVPA Research Cont.",4208,"CFI IOF ESTUARIES (SHAW)",4208,"CFI IOF ESTUARIES (SHAW)","Off Grant",null,"O"]
["Scholarship, Research and Creative Activity","Contracts - PVPA Research Cont.",4209,"CAMPRVR-BENCHMRK-SHAW",4209,"CAMPRVR-BENCHMRK-SHAW","Off Grant",null,"L"]
["Scholarship, Research and Creative Activity","Contracts - PVPA Research Cont.",4210,"IS HEALTH-WELLNESS-SAKAKI",4210,"IS HEALTH-WELLNESS-SAKAKI","Off Grant",null,"L"]
["Scholarship, Research and Creative Activity","Contracts - PVPA Research Cont.",4211,"VI ECON ALLIANCE-SAKAKI",4211,"VI ECON ALLIANCE-SAKAKI","Off Grant",null,"O"]
["Scholarship, Research and Creative Activity","Contracts - PVPA Research Cont.",4212,"PFWSBC-SHAW ",4212,"PFWSBC-SHAW ","Off Grant",null,"O"]
["Scholarship, Research and Creative Activity","Contracts - PVPA Research Cont.",4213,"REFBC - SHAW",4213,"REFBC - SHAW","Off Grant",null,"O"]
["Scholarship, Research and Creative Activity","Contracts - PVPA Research Cont.",4214,"ENV CAN - SHAW",4214,"ENV CAN - SHAW","Off Grant",null,"L"]
["Scholarship, Research and Creative Activity","Contracts - PVPA Research Cont.",4215,"SITKA2019-SHAW",4215,"SITKA2019-SHAW","Off Grant",null,"O"]
["Scholarship, Research and Creative Activity","Contracts - PVPA Research Cont.",4216,"QUALICUM-COMM-SHAW",4216,"QUALICUM-COMM-SHAW","Off Grant",null,"L"]
["Scholarship, Research and Creative Activity","Contracts - PVPA Research Cont.",4217,"WWF FORAGE 19-20 SHAW ",4217,"WWF FORAGE 19-20 SHAW ","Off Grant",null,"L"]
["Scholarship, Research and Creative Activity","Contracts - PVPA Research Cont.",4218,"FLNRORD - SHAW ",4218,"FLNRORD - SHAW ","Off Grant",null,"L"]
["Scholarship, Research and Creative Activity","Contracts - PVPA Research Cont.",4219,"PSF-FORAGE-SHAW",4219,"PSF-FORAGE-SHAW","Off Grant",null,"O"]
["Scholarship, Research and Creative Activity","Contracts - PVPA Research Cont.",4220,"IN-SERV-CAN (CANDO)-SHAW",4220,"IN-SERV-CAN (CANDO)-SHAW","Off Grant",null,"O"]
["Scholarship, Research and Creative Activity","Contracts - PVPA Research Cont.",4221,"KOMOKSFN-19/20-SHAW ",4221,"KOMOKSFN-19/20-SHAW ","Off Grant",null,"L"]
["Scholarship, Research and Creative Activity","Contracts - PVPA Research Cont.",4222,"CBRA2019-SHAW ",4222,"CBRA2019-SHAW ","Off Grant",null,"L"]
["Scholarship, Research and Creative Activity","Contracts - PVPA Research Cont.",4223,"CITY NAN DKP-SHAW ",4223,"CITY NAN DKP-SHAW ","Off Grant",null,"O"]
["Scholarship, Research and Creative Activity","Contracts - PVPA Research Cont.",4224,"VIURAC S-GRF-SHAW",4224,"VIURAC S-GRF-SHAW","Off Grant",null,"L"]
["Scholarship, Research and Creative Activity","Contracts - PVPA Research Cont.",4225,"RIF-HOLLAND 100512",4225,"RIF-HOLLAND 100512","Off Grant",null,"L"]
["Scholarship, Research and Creative Activity","Contracts - PVPA Research Cont.",4226,"RIF - MCCUNN - 100597",4226,"RIF - MCCUNN - 100597","Off Grant",null,"L"]
["Scholarship, Research and Creative Activity","Contracts - PVPA Research Cont.",4227,"RIF - MANSON",4227,"RIF - MANSON","Off Grant",null,"L"]
["Scholarship, Research and Creative Activity","Contracts - PVPA Research Cont.",4228,"VIURAC RF LAIT ",4228,"VIURAC RF LAIT ","Off Grant",null,"L"]
["Scholarship, Research and Creative Activity","Contracts - PVPA Research Cont.",4229,"VR SIG-18-SGRF MOGHIMEHFA",4229,"VR SIG-18-SGRF MOGHIMEHFA","Off Grant",null,"L"]
["Scholarship, Research and Creative Activity","Contracts - PVPA Research Cont.",4230,"RIF - BOWES 100598",4230,"RIF - BOWES 100598","Off Grant",null,"O"]
["Scholarship, Research and Creative Activity","Contracts - PVPA Research Cont.",4231,"NCE (CMN) SHAW",4231,"NCE (CMN) SHAW","Off Grant",null,"O"]
["Scholarship, Research and Creative Activity","Contracts - PVPA Research Cont.",4232,"NALMA PAN2020-SHAW ",4232,"NALMA PAN2020-SHAW ","Off Grant",null,"L"]
["Scholarship, Research and Creative Activity","Contracts - PVPA Research Cont.",4233,"SSHRC IRCR CG - SHAW",4233,"SSHRC IRCR CG - SHAW","Off Grant",null,"O"]
["Scholarship, Research and Creative Activity","Contracts - PVPA Research Cont.",4234,"RIF LAFRENIERE 100614",4234,"RIF LAFRENIERE 100614","Off Grant",null,"O"]
["Scholarship, Research and Creative Activity","Contracts - PVPA Research Cont.",4235,"RIF GILCHRIST 100606",4235,"RIF GILCHRIST 100606","Off Grant",null,"L"]
["Scholarship, Research and Creative Activity","Contracts - PVPA Research Cont.",4236,"TFN - SHAW 100734",4236,"TFN - SHAW 100734","Off Grant",null,"O"]
["Scholarship, Research and Creative Activity","Contracts - PVPA Research Cont.",4237,"MECCS - SHAW 5665",4237,"MECCS - SHAW 5665","Off Grant",null,"L"]
["Scholarship, Research and Creative Activity","Contracts - PVPA Research Cont.",4238,"CMN - SHAW 5747",4238,"CMN - SHAW 5747","Off Grant",null,"O"]
["Scholarship, Research and Creative Activity","Contracts - PVPA Research Cont.",4239,"MITACS ACC - SHAW 5763",4239,"MITACS ACC - SHAW 5763","Off Grant",null,"O"]
["Scholarship, Research and Creative Activity","Contracts - PVPA Research Cont.",4240,"WWF - SHAW 5792",4240,"WWF - SHAW 5792","Off Grant",null,"O"]
["Scholarship, Research and Creative Activity","Contracts - PVPA Research Cont.",4241,"RIF SHAW 100740",4241,"RIF SHAW 100740","Off Grant",null,"O"]
["Scholarship, Research and Creative Activity","Contracts - PVPA Research Cont.",4242,"ACRD - SHAW 5818",4242,"ACRD - SHAW 5818","Off Grant",null,"O"]
["Scholarship, Research and Creative Activity","Contracts - PVPA Research Cont.",4243,"CMN-STIPEND - SHAW 5851",4243,"CMN-STIPEND - SHAW 5851","Off Grant",null,"O"]
["Scholarship, Research and Creative Activity","Contracts - PVPA Research Cont.",4244,"MOLSON FND - SHAW 5786",4244,"MOLSON FND - SHAW 5786","Off Grant",null,"O"]
["Scholarship, Research and Creative Activity","Contracts - PVPA Research Cont.",4245,"DOL - SHAW 5843",4245,"DOL - SHAW 5843","Off Grant",null,"O"]
["Scholarship, Research and Creative Activity","Contracts - PVPA Research Cont.",4246,"RIF SHAW 101098",4246,"RIF SHAW 101098","Off Grant",null,"O"]
["Scholarship, Research and Creative Activity","Contracts - PVPA Research Cont.",4247,"NMTC - SHAW - 5848",4247,"NMTC - SHAW - 5848","Off Grant",null,"L"]
["Scholarship, Research and Creative Activity","Contracts - PVPA Research Cont.",4248,"ESDC - SHAW 5847",4248,"ESDC - SHAW 5847","Off Grant",null,"O"]
["Scholarship, Research and Creative Activity","Contracts - PVPA Research Cont.",4249,"RDN - SHAW 5877",4249,"RDN - SHAW 5877","Off Grant",null,"O"]
["Scholarship, Research and Creative Activity","Contracts - PVPA Research Cont.",4250,"NEDC - SHAW 5887",4250,"NEDC - SHAW 5887","Off Grant",null,"O"]
["Scholarship, Research and Creative Activity","Contracts - PVPA Research Cont.",4251,"CANDO - SHAW 5902-5904",4251,"CANDO - SHAW 5902-5904","Off Grant",null,"O"]
["Scholarship, Research and Creative Activity","Contracts - PVPA Research Cont.",4252,"ISLAND TRUST - SHAW 5908",4252,"ISLAND TRUST - SHAW 5908","Off Grant",null,"O"]
["Health and Human Services","Health & Human Services",4500,"DEAN,HEALTH & HUMAN SERV",4500,"DEAN,HEALTH & HUMAN SERV","Operating",null,"O"]
["Health and Human Services","Health & Human Services",4501,"RESTR. AECD ENDOWMENT",4501,"RESTR. AECD ENDOWMENT","Operating",null,"L"]
["Health and Human Services","Health & Human Services",4502,"HEALTH PROGRAMS SUPPORT",4502,"HEALTH PROGRAMS SUPPORT","Operating",null,"O"]
["Health and Human Services","Health & Human Services",4509,"DIRECTED STUDIES - HEALTH",4509,"DIRECTED STUDIES - HEALTH","Operating",null,"O"]
["Health and Human Services","Health & Human Services",4510,"BSN",4510,"BSN","Operating",null,"O"]
["Health and Human Services","Health & Human Services",4511,"B.NURSING - NORTH ISLAND",4511,"B.NURSING - NORTH ISLAND","Operating",null,"O"]
["Health and Human Services","Health & Human Services",4513,"PRACTICAL NURSING",4513,"PRACTICAL NURSING","Operating",null,"O"]
["Health and Human Services","Health & Human Services",4516,"HEALTH CARE ASSISTANT-HCA",4516,"HEALTH CARE ASSISTANT-HCA","Operating",null,"O"]
["Health and Human Services","Health & Human Services",4519,"DENTAL CLINIC",4519,"DENTAL CLINIC","Operating",null,"O"]
["Health and Human Services","Health & Human Services",4520,"DENTAL ASSISTANT",4520,"DENTAL ASSISTANT","Operating",null,"O"]
["Health and Human Services","Health & Human Services",4522,"DENTAL HYGIENE PROGRAM",4522,"DENTAL HYGIENE PROGRAM","Operating",null,"O"]
["Health and Human Services","CE - Health & HS PD&T",4600,"CE ADMIN - HEALTH & HS",4600,"CE ADMIN - HEALTH & HS","PD&T",null,"O"]
["Health and Human Services","CE - Health & HS PD&T",4603,"HEALTH AND HUMAN SERVICES",4603,"HEALTH AND HUMAN SERVICES","PD&T",0.22,"O"]
["Health and Human Services","CE - Health & HS PD&T",4606,"MEDICAL OFFICE ASSISTANT",4606,"MEDICAL OFFICE ASSISTANT","PD&T",0.22,"O"]
["Health and Human Services","CE - Health & HS PD&T",4607,"HOSPITAL UNIT COORDINATOR",4607,"HOSPITAL UNIT COORDINATOR","PD&T",0.22,"O"]
["Health and Human Services","CE - Health & HS PD&T",4608,"ANIMAL CARE AIDE CERTIFIC",4608,"ANIMAL CARE AIDE CERTIFIC","PD&T",0.22,"O"]
["Health and Human Services","CE - Health & HS PD&T",4609,"ACTIVITY ASSISTANT",4609,"ACTIVITY ASSISTANT","PD&T",0.22,"O"]
["Health and Human Services","CE - Health & HS PD&T",4610,"MED DEVICE REPROC TECHNCN",4610,"MED DEVICE REPROC TECHNCN","PD&T",0.22,"O"]
["Health and Human Services","CE - Health & HS PD&T",4611,"MENTAL HEALTH-FOUNDATIONS",4611,"MENTAL HEALTH-FOUNDATIONS","PD&T",0.22,"L"]
["Health and Human Services","CE - Health & HS PD&T",4613,"COMM.MENTAL HLTH WK CERT",4613,"COMM.MENTAL HLTH WK CERT","PD&T",0.22,"O"]
["Health and Human Services","CE - Health & HS PD&T",4615,"COMMUNITY HEALTH PROMO",4615,"COMMUNITY HEALTH PROMO","PD&T",0.25,"O"]
["Health and Human Services","CE - Health & HS PD&T",4616,"PHARMACY TECHNICIAN",4616,"PHARMACY TECHNICIAN","PD&T",0.25,"L"]
["Health and Human Services","CE - Health & HS PD&T",4625,"CE CREDIT COURSES - HHS",4625,"CE CREDIT COURSES - HHS","PD&T",0.17,"O"]
["Health and Human Services","CE - Health & HS PD&T",4699,"CE (PD&T) - PROCEEDS",4699,"CE (PD&T) - PROCEEDS","PD&T",null,"L"]
["Health and Human Services","Contracts - Health & HS",4700,"HEALTH/HUMAN SERV-PROCEED",4700,"HEALTH/HUMAN SERV-PROCEED","Off Grant",null,"L"]
["Health and Human Services","Contracts - Health & HS",4703,"HHS STUDENT ENGAGEMENT FD",4703,"HHS STUDENT ENGAGEMENT FD","Off Grant",null,"O"]
["Health and Human Services","Contracts - Health & HS",4704,"HHS FACULTY SCH ACTIVITY",4704,"HHS FACULTY SCH ACTIVITY","Off Grant",null,"O"]
["Health and Human Services","Contracts - Health & HS",4705,"HHS INTERPROF DEV FUND",4705,"HHS INTERPROF DEV FUND","Off Grant",null,"O"]
["Health and Human Services","Contracts - Health & HS",4706,"HCA COWICHAN COHORT",4706,"HCA COWICHAN COHORT","Off Grant",0.25,"L"]
["Health and Human Services","Contracts - Health & HS",4707,"HCA POWELL RIVER - VCH",4707,"HCA POWELL RIVER - VCH","Off Grant",0.12,"L"]
["Health and Human Services","Contracts - Health & HS",4708,"HCA-PHC GABRIOLA ",4708,"HCA-PHC GABRIOLA ","Off Grant",0.15,"L"]
["Health and Human Services","Contracts - Health & HS",4709,"ABORIGINAL FORUM MAY 2015",4709,"ABORIGINAL FORUM MAY 2015","Off Grant",null,"O"]
["Health and Human Services","Contracts - Health & HS",4710,"HCA PARTNERSHIP PATHWAY",4710,"HCA PARTNERSHIP PATHWAY","Off Grant",0.25,"O"]
["Health and Human Services","Contracts - Health & HS",4719,"BC DENTAL HYGIENIST ASSN",4719,"BC DENTAL HYGIENIST ASSN","Off Grant",null,"O"]
["Health and Human Services","Contracts - Health & HS",4720,"BC CAMPUS ONLINE - PN",4720,"BC CAMPUS ONLINE - PN","Off Grant",0.1,"L"]
["Health and Human Services","Contracts - Health & HS",4721,"ECEC-COWICHAN CERTIFICATE",4721,"ECEC-COWICHAN CERTIFICATE","Off Grant",0.12,"O"]
["Health and Human Services","Contracts - Health & HS",4722,"ECEC-INFANT TODDLER",4722,"ECEC-INFANT TODDLER","Off Grant",0.12,"O"]
["Health and Human Services","Contracts - Health & HS",4723,"ECEC-AHS",4723,"ECEC-AHS","Off Grant",0.12,"L"]
["Health and Human Services","Contracts - Health & HS",4724,"ECEC-POWELL RIVER CERT",4724,"ECEC-POWELL RIVER CERT","Off Grant",0.1,"O"]
["Health and Human Services","Contracts - Health & HS",4725,"ECEC-NANAIMO CERTIFICATE",4725,"ECEC-NANAIMO CERTIFICATE","Off Grant",0.1,"O"]
["Health and Human Services","Contracts - Health & HS",4726,"ECEC-SPECIAL NEEDS CERT",4726,"ECEC-SPECIAL NEEDS CERT","Off Grant",0.1,"O"]
["Health and Human Services","Contracts - Health & HS",4772,"GENERAL RESEARCH - TAPLAY",4772,"GENERAL RESEARCH - TAPLAY","Off Grant",null,"O"]
["Health and Human Services","Contracts - Health & HS",4775,"STYLES-PATHWAYS PROJECT",4775,"STYLES-PATHWAYS PROJECT","Off Grant",null,"O"]
["Health and Human Services","Contracts - Health & HS",4780,"RTT-KAT ",4780,"RTT-KAT ","Off Grant","TBD ","O"]
["Education","Education",5000,"DEAN, EDUCATION",5000,"DEAN, EDUCATION","Operating",null,"O"]
["Education","Education",5003,"EDUC. - DIRECTED STUDIES",5003,"EDUC. - DIRECTED STUDIES","Operating",null,"O"]
["Education","Education",5004,"SCHOOL EXPERIENCE",5004,"SCHOOL EXPERIENCE","Operating",null,"O"]
["Education","Education",5005,"EDUCATION ADVISING",5005,"EDUCATION ADVISING","Operating",null,"O"]
["Education","Education",5006,"EDUCATION, INSTRUCTION",5006,"EDUCATION, INSTRUCTION","Operating",null,"O"]
["Education","Education",5007,"MULTI MEDIA",5007,"MULTI MEDIA","Operating",null,"O"]
["Education","Education",5010,"PHYSICAL EDUCATION",5010,"PHYSICAL EDUCATION","Operating",null,"O"]
["Education","Education",5014,"POST BAC-SECONDARY FOCUS",5014,"POST BAC-SECONDARY FOCUS","Operating",null,"O"]
["Student Affairs","Student Affairs",5070,"ATHLETICS",5070,"ATHLETICS","Operating",null,"O"]
["Student Affairs","Student Affairs",5071,"OUTDOOR RECREATION",5071,"OUTDOOR RECREATION","Operating",null,"O"]
["Student Affairs","Student Affairs",5072,"FITNESS AND INTRAMURALS",5072,"FITNESS AND INTRAMURALS","Operating",null,"O"]
["Student Affairs","Student Affairs",5073,"GYM MANAGEMENT",5073,"GYM MANAGEMENT","Operating",null,"O"]
["Student Affairs","Student Affairs",5074,"STUDENT ACTIVITIES",5074,"STUDENT ACTIVITIES","Operating",null,"O"]
["Student Affairs","Student Affairs",5075,"OUTDOOR RECREATION DEV'T",5075,"OUTDOOR RECREATION DEV'T","Operating",null,"L"]
["Student Affairs","Student Affairs",5076,"ATHLETICS FUNDRAISING",5076,"ATHLETICS FUNDRAISING","Operating",null,"O"]
["Student Affairs","Student Affairs",5077,"NATIONAL TRAVEL POOL",5077,"NATIONAL TRAVEL POOL","Operating",null,"O"]
["Student Affairs","Student Affairs",5078,"SPORT DEVELOPMENT ",5078,"SPORT DEVELOPMENT ","Operating",null,"O"]
["Student Affairs","Student Affairs",5079,"STUDENT ACTIVITY FEE ",5079,"STUDENT ACTIVITY FEE ","Operating",null,"O"]
["Student Affairs","Student Affairs",5080,"GOLF",5080,"GOLF","Operating",null,"O"]
["Student Affairs","Student Affairs",5083,"MEN'S BASKETBALL",5083,"MEN'S BASKETBALL","Operating",null,"O"]
["Student Affairs","Student Affairs",5084,"WOMEN'S BASKETBALL",5084,"WOMEN'S BASKETBALL","Operating",null,"O"]
["Student Affairs","Student Affairs",5085,"MEN'S VOLLEYBALL",5085,"MEN'S VOLLEYBALL","Operating",null,"O"]
["Student Affairs","Student Affairs",5086,"WOMEN'S VOLLEYBALL",5086,"WOMEN'S VOLLEYBALL","Operating",null,"O"]
["Student Affairs","Student Affairs",5087,"MEN'S SOCCER",5087,"MEN'S SOCCER","Operating",null,"O"]
["Student Affairs","Student Affairs",5088,"WOMEN'S SOCCER",5088,"WOMEN'S SOCCER","Operating",null,"O"]
["Student Affairs","Student Affairs",5089,"BADMINTON",5089,"BADMINTON","Operating",null,"O"]
["Student Affairs","Student Affairs",5090,"CLUB SPORT PROGRAMS",5090,"CLUB SPORT PROGRAMS","Operating",null,"O"]
["Student Affairs","Student Affairs",5098,"GYM EQUIPMENT PURCHASE AC",5098,"GYM EQUIPMENT PURCHASE AC","Operating",null,"L"]
["Education","Contracts - Education",5105,"M.ED LEADERSHIP",5105,"M.ED LEADERSHIP","Off Grant",0.22,"O"]
["Education","Contracts - Education",5108,"CTR INNOV ED LEADERSHIP",5108,"CTR INNOV ED LEADERSHIP","Off Grant",null,"L"]
["Education","Contracts - Education",5109,"PRO-D/RESEARCH",5109,"PRO-D/RESEARCH","Off Grant",null,"O"]
["Education","Contracts - Education",5111,"SPECIAL ED TEACHING SPECI",5111,"SPECIAL ED TEACHING SPECI","Off Grant",0.22,"O"]
["Education","Contracts - Education",5116,"SHAPE - PRO D",5116,"SHAPE - PRO D","Off Grant",null,"O"]
["Education","Contracts - Education",5117,"M.ED SPECIAL EDUCATION",5117,"M.ED SPECIAL EDUCATION","Off Grant",0.22,"O"]
["Education","Contracts - Education",5120,"GRAD DIPL-ONLINE LEARNING",5120,"GRAD DIPL-ONLINE LEARNING","Off Grant",0.22,"O"]
["Education","Contracts - Education",5121,"NPPE CONFERENCE",5121,"NPPE CONFERENCE","Off Grant",null,"O"]
["Education","Contracts - Education",5132,"GENERAL RESEARCH-DAVIDSON",5132,"GENERAL RESEARCH-DAVIDSON","Off Grant",null,"O"]
["Education","Contracts - Education",5199,"COST RECOVERY-ED. HOLDING",5199,"COST RECOVERY-ED. HOLDING","Off Grant",0.22,"L"]
["Health and Human Services","Health & Human Services",5205,"HEALTH&HS-HOLDING ACCOUNT",5205,"HEALTH&HS-HOLDING ACCOUNT","Operating",null,"O"]
["Health and Human Services","Health & Human Services",5210,"SS DIPLOMA",5210,"SS DIPLOMA","Operating",null,"O"]
["Health and Human Services","Health & Human Services",5215,"SCSW",5215,"SCSW","Operating",null,"O"]
["Health and Human Services","Health & Human Services",5230,"E.C.E.C.",5230,"E.C.E.C.","Operating",null,"O"]
["Health and Human Services","Health & Human Services",5240,"CHILD/YTH CARE",5240,"CHILD/YTH CARE","Operating",null,"O"]
["Health and Human Services","Contracts - Health & HS",5412,"BCACCS",5412,"BCACCS","Off Grant",0.1,"L"]
["Health and Human Services","Contracts - Health & HS",5413,"ECEC - WIL AHS PLAR",5413,"ECEC - WIL AHS PLAR","Off Grant",0.1,"L"]
["Health and Human Services","Contracts - Health & HS",5414,"ECPN ",5414,"ECPN ","Off Grant",null,"O"]
["Health and Human Services","Contracts - Health & HS",5420,"BACHELOR OF SOCIAL WORK",5420,"BACHELOR OF SOCIAL WORK","Off Grant",0.22,"O"]
["Health and Human Services","Contracts - Health & HS",5494,"CTR-OUTREACH/COMM.CARE",5494,"CTR-OUTREACH/COMM.CARE","Off Grant",null,"O"]
["Student Affairs","Student Affairs",6302,"EX. DIR. STUDENT AFFAIRS",6302,"EX. DIR. STUDENT AFFAIRS","Operating",null,"O"]
["Student Affairs","Student Affairs",6303,"FINANCIAL AID",6303,"FINANCIAL AID","Operating",null,"O"]
["Student Affairs","Student Affairs",6304,"CAMPUS CAREER CENTRE",6304,"CAMPUS CAREER CENTRE","Operating",null,"O"]
["Student Affairs","Student Affairs",6305,"CONDUCT",6305,"CONDUCT","Operating",null,"O"]
["Student Affairs","Student Affairs",6306,"WORK-OP PROGRAM",6306,"WORK-OP PROGRAM","Operating",null,"O"]
["Student Affairs","Student Affairs",6307,"FOUNDATION S+B MATCHING",6307,"FOUNDATION S+B MATCHING","Operating",null,"O"]
["Student Affairs","Student Affairs",6313,"COMMUNITY ENGAGEMENT",6313,"COMMUNITY ENGAGEMENT","Operating",null,"O"]
["Student Affairs","Student Affairs",6320,"COUNSELLING",6320,"COUNSELLING","Operating",null,"O"]
["Student Affairs","Student Affairs",6326,"PRIOR LEARNING ASSESSMENT",6326,"PRIOR LEARNING ASSESSMENT","Operating",null,"O"]
["Student Affairs","Student Affairs",6333,"CANADA STUDENT GRANT",6333,"CANADA STUDENT GRANT","Operating",null,"O"]
["Student Affairs","Student Affairs",6334,"EXTRAORDINARY ACCOMMODATI",6334,"EXTRAORDINARY ACCOMMODATI","Operating",null,"O"]
["Student Affairs","Student Affairs",6335,"ACCESSIBILITY SERVICES",6335,"ACCESSIBILITY SERVICES","Operating",null,"O"]
["Student Affairs","Student Affairs",6336,"INTERPRETING SERVICES",6336,"INTERPRETING SERVICES","Operating",null,"O"]
["Student Affairs","Student Affairs",6337,"PEER HELPERS",6337,"PEER HELPERS","Operating",null,"O"]
["Student Affairs","Student Affairs",6338,"LEARNING DISABIL.ASMT N/R",6338,"LEARNING DISABIL.ASMT N/R","Operating",null,"O"]
["Student Affairs","Student Affairs",6339,"INTED ACCESSBLTY SERVICES",6339,"INTED ACCESSBLTY SERVICES","Operating",null,"O"]
["Student Affairs","Student Affairs",6340,"ASSESSMT/EXAM INVIG SERV",6340,"ASSESSMT/EXAM INVIG SERV","Operating",null,"O"]
["Student Affairs","Student Affairs",6350,"HEALTH AND WELLNESS CTR",6350,"HEALTH AND WELLNESS CTR","Operating",null,"O"]
["Student Affairs","Student Affairs",6397,"SCHOLARSHIPS",6397,"SCHOLARSHIPS","Operating",null,"O"]
["Student Affairs","Student Affairs",6398,"S/B EXECUTIVE FUNDS",6398,"S/B EXECUTIVE FUNDS","Operating",null,"O"]
["Student Affairs","Student Affairs",6399,"TUITION BURSARY",6399,"TUITION BURSARY","Operating",null,"O"]
["Student Affairs","Student Affairs",6400,"C0-OP EDUCATION",6400,"C0-OP EDUCATION","Operating",null,"O"]
["Student Affairs","Student Affairs",6401,"CO-OP: CRIMINOLOGY",6401,"CO-OP: CRIMINOLOGY","Operating",null,"O"]
["Student Affairs","Student Affairs",6402,"CO-OP: COMPUTER SCIENCE",6402,"CO-OP: COMPUTER SCIENCE","Operating",null,"O"]
["Student Affairs","Student Affairs",6403,"CO-OP: PHYSICAL EDUCATION",6403,"CO-OP: PHYSICAL EDUCATION","Operating",null,"O"]
["Student Affairs","Student Affairs",6404,"CO-OP: CREATIVE WRITING",6404,"CO-OP: CREATIVE WRITING","Operating",null,"O"]
["Student Affairs","Student Affairs",6405,"CO-OP: REC/TOUR",6405,"CO-OP: REC/TOUR","Operating",null,"O"]
["Student Affairs","Student Affairs",6406,"CO-OP: CULINARY ARTS",6406,"CO-OP: CULINARY ARTS","Operating",null,"O"]
["Student Affairs","Student Affairs",6407,"CO-OP: HOSPITALITY",6407,"CO-OP: HOSPITALITY","Operating",null,"O"]
["Student Affairs","Student Affairs",6408,"CO-OP: BAKING",6408,"CO-OP: BAKING","Operating",null,"O"]
["Student Affairs","Student Affairs",6409,"CO-OP: PHILOSOPHY",6409,"CO-OP: PHILOSOPHY","Operating",null,"O"]
["Student Affairs","Student Affairs",6410,"CO-OP: INTERIOR DESIGN",6410,"CO-OP: INTERIOR DESIGN","Operating",null,"O"]
["Student Affairs","Student Affairs",6411,"CO-OP: ENGINEERING",6411,"CO-OP: ENGINEERING","Operating",null,"O"]
["Student Affairs","Student Affairs",6412,"CO-OP: GRAPHIC DESIGN",6412,"CO-OP: GRAPHIC DESIGN","Operating",null,"O"]
["Student Affairs","Student Affairs",6415,"NEW STUDENT ORIENTATION",6415,"NEW STUDENT ORIENTATION","Operating",null,"O"]
["Student Affairs","Student Affairs",6430,"SSF HEALTH AND WELLNESS",6430,"SSF HEALTH AND WELLNESS","Operating",null,"O"]
["Student Affairs","Student Affairs",6440,"SSF EXPERIENTIAL LEARNING",6440,"SSF EXPERIENTIAL LEARNING","Operating",null,"O"]
["Student Affairs","Student Affairs",6441,"SSF EXP LEARNING RESEARCH",6441,"SSF EXP LEARNING RESEARCH","Operating",null,"O"]
["Student Affairs","Contracts - Student Affairs",6500,"STUDENT SERVS - PROCEEDS",6500,"STUDENT SERVS - PROCEEDS","Off Grant",null,"L"]
["Student Affairs","Contracts - Student Affairs",6501,"STRONG INTERST INVENTORY",6501,"STRONG INTERST INVENTORY","Off Grant",null,"L"]
["Student Affairs","Contracts - Student Affairs",6502,"PEER TO PEER CONNECTIONS",6502,"PEER TO PEER CONNECTIONS","Off Grant",null,"O"]
["Student Affairs","Contracts - Student Affairs",6505,"STUDENT SUMMER EMPL-FEDER",6505,"STUDENT SUMMER EMPL-FEDER","Off Grant",null,"O"]
["Student Affairs","Contracts - Student Affairs",6510,"PACWEST-CCAA HOSTING",6510,"PACWEST-CCAA HOSTING","Off Grant",null,"O"]
["Student Affairs","Contracts - Student Affairs",6515,"MENTAL HEALTH - CMHA BC",6515,"MENTAL HEALTH - CMHA BC","Off Grant",null,"O"]
["Student Affairs","Contracts - Student Affairs",6516,"APSD  / MINISTRY",6516,"APSD  / MINISTRY","Off Grant",null,"O"]
["Student Affairs","Contracts - Student Affairs",6517,"DISABILITY SERV.PROCEEDS",6517,"DISABILITY SERV.PROCEEDS","Off Grant",null,"O"]
["Student Affairs","Contracts - Student Affairs",6530,"VAN ISLE LEADERSHIP CONF",6530,"VAN ISLE LEADERSHIP CONF","Off Grant",null,"O"]
["Student Affairs","Contracts - Student Affairs",6590,"GENERAL RESEARCH-MCCARTNEY",6590,"GENERAL RESEARCH-MCCARTNEY","Off Grant",null,"L"]
["Centre for Innovation and Excellence in Learning","Centre for Innovation & EL",6601,"CENTRE FOR IEL",6601,"CENTRE FOR IEL","Operating",null,"O"]
["Information Technology Services","Info Technology Services",6700,"INFORMATION TECHNOLOGY",6700,"INFORMATION TECHNOLOGY","Operating",null,"O"]
["Information Technology Services","Info Technology Services",6701,"STUDENT PRINTING",6701,"STUDENT PRINTING","Operating",null,"O"]
["Information Technology Services","Info Technology Services",6702,"IT INFRASTRUCTURE",6702,"IT INFRASTRUCTURE","Operating",null,"O"]
["Information Technology Services","Info Technology Services",6703,"IT CLIENT SERVICES",6703,"IT CLIENT SERVICES","Operating",null,"O"]
["Information Technology Services","Info Technology Services",6704,"IT END USER TECHNOLOGY ",6704,"IT END USER TECHNOLOGY ","Operating",null,"O"]
["Information Technology Services","Info Technology Services",6705,"INSTNL IT SERVICES ",6705,"INSTNL IT SERVICES ","Operating",null,"O"]
["Information Technology Services","Info Technology Services",6708,"PHONE SERVICE",6708,"PHONE SERVICE","Operating",null,"O"]
["Information Technology Services","Info Technology Services",6710,"ENTERPRISE SYSTEMS",6710,"ENTERPRISE SYSTEMS","Operating",null,"O"]
["Information Technology Services","Info Technology Services",6711,"INSTNL IT INFRASTRUCTURE",6711,"INSTNL IT INFRASTRUCTURE","Operating",null,"O"]
["Information Technology Services","Info Technology Services",6712,"INSTNL IT END USER",6712,"INSTNL IT END USER","Operating",null,"O"]
["Information Technology Services","Info Technology Services",6713,"WEB MANAGEMENT OFFICE",6713,"WEB MANAGEMENT OFFICE","Operating",null,"O"]
["Information Technology Services","Info Technology Services",6714,"TLASR PROJECT",6714,"TLASR PROJECT","Operating",null,"O"]
["Information Technology Services","Info Technology Services",6720,"SSF ITS ACCESS TO TECH",6720,"SSF ITS ACCESS TO TECH","Operating",null,"O"]
["Library","Library",6800,"LIBRARY",6800,"LIBRARY","Operating",null,"O"]
["Library","Library",6802,"LIBRARY NON RECURRING",6802,"LIBRARY NON RECURRING","Operating",null,"O"]
["Library","Library",6804,"LIBRARY BOOKS,PERIODICALS",6804,"LIBRARY BOOKS,PERIODICALS","Operating",null,"O"]
["Library","Library",6810,"SPECIAL COLLECTIONS",6810,"SPECIAL COLLECTIONS","Operating",null,"O"]
["Library","Library",6815,"PHOTO ID",6815,"PHOTO ID","Operating",null,"O"]
["Library","Library",6820,"SSF DIGITAL ACCESS",6820,"SSF DIGITAL ACCESS","Operating",null,"O"]
["Library","Contracts - Library",6850,"LIBRARY FIELD SCHOOL",6850,"LIBRARY FIELD SCHOOL","Off Grant",null,"O"]
["Library","Contracts - Library",6851,"DIGITAL BC SECRETARIAT",6851,"DIGITAL BC SECRETARIAT","Off Grant",null,"O"]
["Library","Contracts - Library",6860,"GENERAL RESEARCH - MCLEOD ",6860,"GENERAL RESEARCH - MCLEOD ","Off Grant",null,"O"]
["Library","Contracts - Library",6861,"GENERAL RESEARCH - MCFARLAND",6861,"GENERAL RESEARCH - MCFARLAND","Off Grant",null,"O"]
["Registration Services","Registration",6900,"REGISTRATION",6900,"REGISTRATION","Operating",null,"O"]
["Registration Services","Registration",6901,"RECRUITMENT & ADVISING",6901,"RECRUITMENT & ADVISING","Operating",null,"O"]
["Registration Services","Registration",6905,"CONVOCATION",6905,"CONVOCATION","Operating",null,"O"]
["Indigenous Education and Engagement","Indigenous Education",6930,"DIRECTOR-INDIGENOUS EDUC.",6930,"DIRECTOR-INDIGENOUS EDUC.","Operating",null,"O"]
["Indigenous Education and Engagement","Indigenous Education",6931,"INDIGENOUS EDUCATION",6931,"INDIGENOUS EDUCATION","Operating",null,"O"]
["Indigenous Education and Engagement","Indigenous Education",6932,"INDIGENOUS INTERNSHIP",6932,"INDIGENOUS INTERNSHIP","Operating",null,"O"]
["Registration Services","Contracts - Registration",6952,"ADVENTURES IN MIND",6952,"ADVENTURES IN MIND","Off Grant",0.1,"O"]
["Registration Services","CE - Registration",6960,"CE ADMIN - REGISTRATION",6960,"CE ADMIN - REGISTRATION","Off Grant",null,"O"]
["Registration Services","CE - Registration",6961,"GRANDKIDS UNIVERSITY",6961,"GRANDKIDS UNIVERSITY","Off Grant",null,"O"]
["Registration Services","CE - Registration",6963,"ELDERCOLLEGE",6963,"ELDERCOLLEGE","Off Grant",null,"O"]
["Registration Services","CE - Registration",6964,"LOVE OF LEARNING",6964,"LOVE OF LEARNING","Off Grant",null,"O"]
["Registration Services","CE - Registration",6968,"SUMMER SESSION - ARTS",6968,"SUMMER SESSION - ARTS","Off Grant",null,"L"]
["Registration Services","CE - Registration",6969,"SUMMER SESSION-EDUCATION",6969,"SUMMER SESSION-EDUCATION","Off Grant",null,"L"]
["Registration Services","CE - Registration",6971,"SUMMER SESSION-MANAGEMENT",6971,"SUMMER SESSION-MANAGEMENT","Off Grant",null,"L"]
["Registration Services","CE - Registration",6972,"SUMMER SESSION - SCIENCE",6972,"SUMMER SESSION - SCIENCE","Off Grant",null,"L"]
["Registration Services","CE - Registration",6973,"SUMMER SES-SOCIAL SCIENCE",6973,"SUMMER SES-SOCIAL SCIENCE","Off Grant",null,"L"]
["Registration Services","CE - Registration",6975,"SUMMER SESSION - COWICHAN",6975,"SUMMER SESSION - COWICHAN","Off Grant",null,"L"]
["Indigenous Education and Engagement","Contracts - Indigenous Ed.",6980,"INDIGENOUS MENTORSHIP",6980,"INDIGENOUS MENTORSHIP","Off Grant",null,"O"]
["Indigenous Education and Engagement","Contracts - Indigenous Ed.",6981,"ASP-COMMUNITY-LEAD PROJ.",6981,"ASP-COMMUNITY-LEAD PROJ.","Off Grant",null,"O"]
["Indigenous Education and Engagement","Contracts - Indigenous Ed.",6982,"ASP-VIU-LEAD PROJECTS",6982,"ASP-VIU-LEAD PROJECTS","Off Grant",null,"O"]
["Indigenous Education and Engagement","Contracts - Indigenous Ed.",6983,"GITXSAN DEVELOPMENT CORP",6983,"GITXSAN DEVELOPMENT CORP","Off Grant",0.1,"L"]
["Indigenous Education and Engagement","Contracts - Indigenous Ed.",6984,"INDIGENOUS ECOTOURI 20-21",6984,"INDIGENOUS ECOTOURI 20-21","Off Grant",0.1,"O"]
["Indigenous Education and Engagement","Contracts - Indigenous Ed.",6987,"ASP-INDIGENOUS PORTFOLIO",6987,"ASP-INDIGENOUS PORTFOLIO","Off Grant",null,"L"]
["Indigenous Education and Engagement","Contracts - Indigenous Ed.",6988,"IN ED.-CONTRACT ADMIN",6988,"IN ED.-CONTRACT ADMIN","Off Grant",null,"O"]
["Indigenous Education and Engagement","Contracts - Indigenous Ed.",6989,"INDIGENOUS ED.-PROCEEDS",6989,"INDIGENOUS ED.-PROCEEDS","Off Grant",null,"L"]
["Indigenous Education and Engagement","Contracts - Indigenous Ed.",6990,"AEST-SNUNEYMUXW ECE 2020",6990,"AEST-SNUNEYMUXW ECE 2020","Off Grant",0.1,"O"]
["Indigenous Education and Engagement","Contracts - Indigenous Ed.",6991,"NANWAKOLAS COUNCIL - STTP",6991,"NANWAKOLAS COUNCIL - STTP","Off Grant",0.1,"O"]
["Indigenous Education and Engagement","Contracts - Indigenous Ed.",6994,"CFN STEWARDSHIP TRAINING",6994,"CFN STEWARDSHIP TRAINING","Off Grant",0.1,"L"]
["Indigenous Education and Engagement","Contracts - Indigenous Ed.",6997,"CFN 2020 STEWARDSHIP ",6997,"CFN 2020 STEWARDSHIP ","Off Grant",0.1,"O"]
["Indigenous Education and Engagement","Contracts - Indigenous Ed.",6998,"CFN 2018 STEWARDSHIP ",6998,"CFN 2018 STEWARDSHIP ","Off Grant",0.1,"L"]
["Indigenous Education and Engagement","Contracts - Indigenous Ed.",6999,"OAEE-MISC INDIG. CONTRACT",6999,"OAEE-MISC INDIG. CONTRACT","Off Grant",0.1,"O"]
["Health and Human Services","Health & Human Services",7000,"PARKSVILLE CENTRE OPERATIONS",7000,"PARKSVILLE CENTRE OPERATIONS","Operating",null,"O"]
["Health and Human Services","Health & Human Services",7005,"CENTRE FOR HEALTHY AGING",7005,"CENTRE FOR HEALTHY AGING","Operating",null,"L"]
["Cowichan Campus","Cowichan Campus",7300,"ADMINISTRATION COWICHAN",7300,"ADMINISTRATION COWICHAN","Operating",null,"O"]
["Cowichan Campus","Cowichan Campus",7304,"COWICHAN REGISTRATION",7304,"COWICHAN REGISTRATION","Operating",null,"O"]
["Cowichan Campus","Cowichan Campus",7305,"CYC- COWICHAN",7305,"CYC- COWICHAN","Operating",null,"O"]
["Cowichan Campus","Cowichan Campus",7306,"STRAT ENRL MGMT COMMITTEE",7306,"STRAT ENRL MGMT COMMITTEE","Operating",null,"O"]
["Cowichan Campus","Cowichan Campus",7309,"INSTRUCT.SUPPORT COWICHAN",7309,"INSTRUCT.SUPPORT COWICHAN","Operating",null,"O"]
["Cowichan Campus","Cowichan Campus",7311,"CWCHN INDIGENOUS SCIENCE",7311,"CWCHN INDIGENOUS SCIENCE","Operating",null,"O"]
["Cowichan Campus","Cowichan Campus",7360,"DUNCAN STUDENT PROGRAMS",7360,"DUNCAN STUDENT PROGRAMS","Operating",null,"O"]
["Cowichan Campus","Cowichan Campus",7380,"STUDENT AFFAIRS COWICHAN",7380,"STUDENT AFFAIRS COWICHAN","Operating",null,"O"]
["Cowichan Campus","Cowichan Campus",7381,"COWICHAN ASSESSMENT",7381,"COWICHAN ASSESSMENT","Operating",null,"O"]
["Cowichan Campus","Cowichan Campus",7391,"COWICHAN UP - SCIENCE",7391,"COWICHAN UP - SCIENCE","Operating",null,"O"]
["Cowichan Campus","Cowichan Campus",7392,"COWICHAN UP - SOCIAL SCI",7392,"COWICHAN UP - SOCIAL SCI","Operating",null,"O"]
["Cowichan Campus","Cowichan Campus",7393,"COWICHAN UP-HUMAN SERVICE",7393,"COWICHAN UP-HUMAN SERVICE","Operating",null,"O"]
["Cowichan Campus","Cowichan Campus",7394,"COWICHAN UP-ARTS/HUMANITI",7394,"COWICHAN UP-ARTS/HUMANITI","Operating",null,"O"]
["Cowichan Campus","Cowichan Campus",7395,"COWICHAN UP - MGMT",7395,"COWICHAN UP - MGMT","Operating",null,"O"]
["Cowichan Campus","Cowichan Campus",7397,"COWICHAN UP - EDUCATION",7397,"COWICHAN UP - EDUCATION","Operating",null,"O"]
["Cowichan Campus","Cowichan Campus",7399,"COWICHAN NEW INITIATIVES",7399,"COWICHAN NEW INITIATIVES","Operating",null,"O"]
["Cowichan Campus","CE - Cowichan PD&T",7400,"PD&T ADMIN - COWICHAN",7400,"PD&T ADMIN - COWICHAN","PD&T",null,"O"]
["Cowichan Campus","CE - Cowichan PD&T",7410,"PD&T OPEN ENROL - COWCHAN",7410,"PD&T OPEN ENROL - COWCHAN","PD&T",0.22,"O"]
["Cowichan Campus","CE - Cowichan PD&T",7412,"PD&T BUSINESS & MANAGMENT",7412,"PD&T BUSINESS & MANAGMENT","PD&T",0.22,"O"]
["Cowichan Campus","CE - Cowichan PD&T",7414,"PD&T TRADES - COWICHAN",7414,"PD&T TRADES - COWICHAN","PD&T",0.22,"O"]
["Cowichan Campus","CE - Cowichan PD&T",7416,"PD&T HEALTH & HS COWCHAN",7416,"PD&T HEALTH & HS COWCHAN","PD&T",0.22,"O"]
["Cowichan Campus","CE - Cowichan PD&T",7436,"MASTER GARDENER",7436,"MASTER GARDENER","PD&T",0.22,"O"]
["Cowichan Campus","CE - Cowichan PD&T",7438,"FN HOUSING MANAGER CERT.",7438,"FN HOUSING MANAGER CERT.","PD&T",0.15,"O"]
["Cowichan Campus","CE - Cowichan PD&T",7450,"PD&T CUST SMALL CONTRACTS",7450,"PD&T CUST SMALL CONTRACTS","PD&T",0.22,"O"]
["Cowichan Campus","Contracts - Cowichan",7503,"INNOVATION LAB-COWICHAN",7503,"INNOVATION LAB-COWICHAN","Off Grant",null,"L"]
["Cowichan Campus","Contracts - Cowichan",7504,"FACILITIES RENTALS COWICH",7504,"FACILITIES RENTALS COWICH","Off Grant",0.25,"O"]
["Cowichan Campus","Contracts - Cowichan",7510,"DN SUMMER SESS-NET PROCEE",7510,"DN SUMMER SESS-NET PROCEE","Off Grant",null,"O"]
["Cowichan Campus","Contracts - Cowichan",7545,"EACS COWICHAN SD79",7545,"EACS COWICHAN SD79","Off Grant",null,"L"]
["Cowichan Campus","Contracts - Cowichan",7558,"LIL'WAT EMP PRGM CARPNTRY",7558,"LIL'WAT EMP PRGM CARPNTRY","Off Grant",0.1,"O"]
["Cowichan Campus","Contracts - Cowichan",7561,"TA'TUL'UT SHQWALUWUN",7561,"TA'TUL'UT SHQWALUWUN","Off Grant",0.1,"L"]
["Cowichan Campus","Contracts - Cowichan",7562,"KWAM KWUM SHHWULI",7562,"KWAM KWUM SHHWULI","Off Grant",0.1,"L"]
["Cowichan Campus","Contracts - Cowichan",7563,"ECEC PROGRAM",7563,"ECEC PROGRAM","Off Grant",null,"O"]
["Cowichan Campus","Contracts - Cowichan",7564,"WOMEN IN TRADES TRAINING ",7564,"WOMEN IN TRADES TRAINING ","Off Grant",0.1,"O"]
["Cowichan Campus","Contracts - Cowichan",7565,"COWICHAN - UCEP",7565,"COWICHAN - UCEP","Off Grant",0.1,"O"]
["Cowichan Campus","Contracts - Cowichan",7566,"IPTT",7566,"IPTT","Off Grant",0.1,"O"]
["Cowichan Campus","Contracts - Cowichan",7569,"BUILDING SERVICE WORKERS",7569,"BUILDING SERVICE WORKERS","Off Grant",0.1,"O"]
["Cowichan Campus","Contracts - Cowichan",7570,"CAFETERIA - COWICHAN",7570,"CAFETERIA - COWICHAN","Off Grant",null,"O"]
["Cowichan Campus","Contracts - Cowichan",7571,"COWICHAN CAMPUS LOCKERS",7571,"COWICHAN CAMPUS LOCKERS","Off Grant",null,"O"]
["Cowichan Campus","Contracts - Cowichan",7575,"SD#79 UP CONTRACTS",7575,"SD#79 UP CONTRACTS","Off Grant",null,"O"]
["Powell River Campus","Powell River Campus",7600,"ADMINISTRATION POW.RIVER",7600,"ADMINISTRATION POW.RIVER","Operating",null,"O"]
["Powell River Campus","Powell River Campus",7604,"POWELL RIVER ST.SERVICES",7604,"POWELL RIVER ST.SERVICES","Operating",null,"O"]
["Powell River Campus","Powell River Campus",7605,"CONTRACTS-SUPPORT STAFF",7605,"CONTRACTS-SUPPORT STAFF","Operating",null,"O"]
["Powell River Campus","Powell River Campus",7606,"COMPUTER LAB/SERVICES PR",7606,"COMPUTER LAB/SERVICES PR","Operating",null,"O"]
["Powell River Campus","Powell River Campus",7608,"STUDENT PROGRAMS POW.R.",7608,"STUDENT PROGRAMS POW.R.","Operating",null,"O"]
["Powell River Campus","Powell River Campus",7609,"STUDENT SERVICE TRNG SUPP",7609,"STUDENT SERVICE TRNG SUPP","Operating",null,"O"]
["Powell River Campus","Powell River Campus",7623,"MARKETING AND RECRUITMENT",7623,"MARKETING AND RECRUITMENT","Operating",null,"L"]
["Powell River Campus","Powell River Campus",7634,"FLEXIBLE FTE'S POW.RIVER",7634,"FLEXIBLE FTE'S POW.RIVER","Operating",null,"O"]
["Powell River Campus","Powell River Campus",7640,"UT POWELL RIVER",7640,"UT POWELL RIVER","Operating",null,"O"]
["Powell River Campus","Powell River Campus",7641,"CSW/UT COST RECOVERY",7641,"CSW/UT COST RECOVERY","Operating",null,"L"]
["Powell River Campus","Powell River Campus",7642,"HUMAN SERVICES",7642,"HUMAN SERVICES","Operating",null,"O"]
["Powell River Campus","Powell River Campus",7643,"DUAL CREDIT - SD47",7643,"DUAL CREDIT - SD47","Operating",null,"O"]
["Powell River Campus","Powell River Campus",7644,"PR HOME CARE ASSISTANT",7644,"PR HOME CARE ASSISTANT","Operating",null,"O"]
["Powell River Campus","CE - Powell River",7660,"CE - POWELL RIVER",7660,"CE - POWELL RIVER","Off Grant",0.22,"O"]
["Powell River Campus","CE - Powell River",7667,"ELDERCOLLEGE",7667,"ELDERCOLLEGE","Off Grant",null,"O"]
["Powell River Campus","CE - Powell River",7668,"CE ONLINE TRAINING",7668,"CE ONLINE TRAINING","Off Grant",0.15,"O"]
["Indigenous Education and Engagement","Contracts - A2E",7700,"ELEV SCHOLARHIP SUPPORT",7700,"ELEV SCHOLARHIP SUPPORT","Off Grant",0.1,"O"]
["Indigenous Education and Engagement","Contracts - A2E",7701,"ELEV STUDENT SCHOLARSHIPS",7701,"ELEV STUDENT SCHOLARSHIPS","Off Grant",null,"O"]
["Indigenous Education and Engagement","Contracts - A2E",7702,"ELEV CREATING PATHWAYS",7702,"ELEV CREATING PATHWAYS","Off Grant",0.1,"O"]
["Indigenous Education and Engagement","Contracts - A2E",7703,"ELEV YOUTH DEVELOPMENT",7703,"ELEV YOUTH DEVELOPMENT","Off Grant",0.1,"O"]
["Indigenous Education and Engagement","Contracts - A2E",7704,"ELEV TRANSITION TO EMPLOY",7704,"ELEV TRANSITION TO EMPLOY","Off Grant",0.1,"O"]
["Indigenous Education and Engagement","Contracts - A2E",7705,"ELEV MONITOR & EVALUATION",7705,"ELEV MONITOR & EVALUATION","Off Grant",0.1,"O"]
["Indigenous Education and Engagement","Contracts - A2E",7706,"ELEV VIU CONTRIBUTION",7706,"ELEV VIU CONTRIBUTION","Off Grant",null,"O"]
["Indigenous Education and Engagement","Contracts - Indigenous Ed.",7708,"MCF - COMMUNITY INTERNSHP",7708,"MCF - COMMUNITY INTERNSHP","Off Grant",0.1,"O"]
["Indigenous Education and Engagement","Contracts - Indigenous Ed.",7709,"MCF-LEARNING FACILITATOR",7709,"MCF-LEARNING FACILITATOR","Off Grant",0.1,"O"]
["Indigenous Education and Engagement","Contracts - Indigenous Ed.",7710,"ASP-CULTURE EVENTS ",7710,"ASP-CULTURE EVENTS ","Off Grant",null,"O"]
["Indigenous Education and Engagement","Contracts - Indigenous Ed.",7711,"ASP-AUBP-NANAIMO & COWICH",7711,"ASP-AUBP-NANAIMO & COWICH","Off Grant",null,"O"]
["Indigenous Education and Engagement","Contracts - Indigenous Ed.",7712,"ASP-LANGUAGE-COASTAL",7712,"ASP-LANGUAGE-COASTAL","Off Grant",null,"O"]
["Indigenous Education and Engagement","Contracts - Indigenous Ed.",7713,"ASP-LANGUAGE-KWAK",7713,"ASP-LANGUAGE-KWAK","Off Grant",null,"O"]
["Powell River Campus","Contracts - Powell River",7802,"STUDENT SERVICES PROCEEDS",7802,"STUDENT SERVICES PROCEEDS","Off Grant",0.1,"O"]
["Powell River Campus","Contracts - Powell River",7805,"ABORIGINAL SERVICE PLAN",7805,"ABORIGINAL SERVICE PLAN","Off Grant",null,"O"]
["Powell River Campus","Contracts - Powell River",7806,"PR INDIG GATHERING PLACE",7806,"PR INDIG GATHERING PLACE","Off Grant",0.25,"L"]
["Powell River Campus","Contracts - Powell River",7808,"FAST TRACK TO TRADES",7808,"FAST TRACK TO TRADES","Off Grant",0.22,"L"]
["Powell River Campus","Contracts - Powell River",7810,"CONTRACTS HOLDING ACCOUNT",7810,"CONTRACTS HOLDING ACCOUNT","Off Grant",0.1,"O"]
["Powell River Campus","Contracts - Powell River",7811,"HEO-PBLMT POWELL RIVER ",7811,"HEO-PBLMT POWELL RIVER ","Off Grant",7.4999999999999997E-2,"O"]
["Powell River Campus","Contracts - Powell River",7812,"PR WEST",7812,"PR WEST","Off Grant",0.17,"O"]
["VP Administration and Finance","VPAF - Office",8000,"VP ADMIN & FINANCE",8000,"VP ADMIN & FINANCE","Operating",null,"O"]
["VP Administration and Finance","VPAF - Admin. Support Activity",8002,"VP ADMIN DIVISION-HOLDING",8002,"VP ADMIN DIVISION-HOLDING","Operating",null,"O"]
["VP Administration and Finance","VPAF - Office",8003,"LEGIN - VP ADMIN PD",8003,"LEGIN - VP ADMIN PD","Operating",null,"O"]
["VP Administration and Finance","VP Admin - Institutional",8005,"NON INSURRED LOSSES",8005,"NON INSURRED LOSSES","Operating",null,"O"]
["Institutional Revenue","Institutional Revenue",8009,"MINISTRY BASE GRANTS",8009,"MINISTRY BASE GRANTS","Operating",null,"O"]
["VP Administration and Finance","VP Admin - Institutional",8035,"INSTITUTIONAL ADMINISTRA",8035,"INSTITUTIONAL ADMINISTRA","Operating",null,"O"]
["VP Administration and Finance","VP Admin - Institutional",8040,"INST. LABOUR ADJUSTMENTS",8040,"INST. LABOUR ADJUSTMENTS","Operating",null,"O"]
["VP Administration and Finance","VP Admin - Institutional",8041,"VIUFA PD RECOVERY",8041,"VIUFA PD RECOVERY","Operating",null,"O"]
["VP Administration and Finance","VP Admin - Institutional",8049,"INST EMPLOYEE AWARDS",8049,"INST EMPLOYEE AWARDS","Operating",null,"O"]
["VP Administration and Finance","VP Admin - Institutional",8050,"RESIGNATION/RETIRE PAYOUT",8050,"RESIGNATION/RETIRE PAYOUT","Operating",null,"O"]
["VP Administration and Finance","VP Admin - Institutional",8051,"PRESIDENT ADMIN LEAVE",8051,"PRESIDENT ADMIN LEAVE","Operating",null,"O"]
["VP Administration and Finance","VP Admin - Institutional",8052,"COVID-19 EXPENDITURES",8052,"COVID-19 EXPENDITURES","Operating",null,"O"]
["VP Administration and Finance","VPAF - Office",8080,"ENTERPRISE RISK MGMT ",8080,"ENTERPRISE RISK MGMT ","Operating",null,"O"]
["VP Administration and Finance","VPAF - Office",8081,"HEALTH & SAFETY SERVICES ",8081,"HEALTH & SAFETY SERVICES ","Operating",null,"O"]
["VP Administration and Finance","VPAF - Office",8082,"EMRGNCY MGMT/BUSIN CONT",8082,"EMRGNCY MGMT/BUSIN CONT","Operating",null,"O"]
["Human Resources","Human Resources",8200,"HUMAN RESOURCES DEPT.",8200,"HUMAN RESOURCES DEPT.","Operating",null,"O"]
["Human Resources","Human Resources",8201,"CUPE TRAINING AND DEV'T",8201,"CUPE TRAINING AND DEV'T","Operating",null,"O"]
["Human Resources","Human Resources",8202,"CHAIR DEVELOPMENT",8202,"CHAIR DEVELOPMENT","Operating",null,"O"]
["Human Resources","Human Resources",8203,"MEDICAL TRAVEL REFERRAL",8203,"MEDICAL TRAVEL REFERRAL","Operating",null,"O"]
["Human Resources","Human Resources",8204,"WORKPLACE WELLNESS",8204,"WORKPLACE WELLNESS","Operating",null,"O"]
["Human Resources","Human Resources",8205,"UNITED WAY",8205,"UNITED WAY","Operating",null,"O"]
["Human Resources","Human Resources",8206,"ACCOMMODATIONS",8206,"ACCOMMODATIONS","Operating",null,"O"]
["Human Resources","Human Resources",8207,"EMPLOYEE ASSISTANCE CONS.",8207,"EMPLOYEE ASSISTANCE CONS.","Operating",null,"O"]
["Human Resources","Human Resources",8210,"PROF. DEV. ADMINISTRATORS",8210,"PROF. DEV. ADMINISTRATORS","Operating",null,"O"]
["Human Resources","Human Resources",8212,"EMPLOYEE RECOGNITION",8212,"EMPLOYEE RECOGNITION","Operating",null,"O"]
["Human Resources","Human Resources",8215,"CAREER DEV'T FUND",8215,"CAREER DEV'T FUND","Operating",null,"O"]
["Human Resources","Human Resources",8216,"EMPLOYEE RELOCATION ALLOW",8216,"EMPLOYEE RELOCATION ALLOW","Operating",null,"O"]
["Human Resources","Human Resources",8230,"INSTITUTIONAL HR",8230,"INSTITUTIONAL HR","Operating",null,"O"]
["Human Resources","Human Resources",8231,"RECRUITMENT GEN. SERVICES",8231,"RECRUITMENT GEN. SERVICES","Operating",null,"O"]
["Human Resources","Human Resources",8232,"SENIOR ADMIN.RECRUITMENT",8232,"SENIOR ADMIN.RECRUITMENT","Operating",null,"O"]
["Human Resources","Human Resources",8233,"INSTRUCTIONAL RECRUITMENT",8233,"INSTRUCTIONAL RECRUITMENT","Operating",null,"O"]
["Human Resources","Human Resources",8234,"UNION LEAVE BCGEU",8234,"UNION LEAVE BCGEU","Operating",null,"O"]
["Human Resources","Human Resources",8235,"CUPE UNION RELEASE",8235,"CUPE UNION RELEASE","Operating",null,"O"]
["Human Resources","Human Resources",8236,"VIUFA ASSISTED LEAVE",8236,"VIUFA ASSISTED LEAVE","Operating",null,"O"]
["Human Resources","Human Resources",8237,"UNION LEAVE VIUFA",8237,"UNION LEAVE VIUFA","Operating",null,"O"]
["Human Resources","Human Resources",8238,"VIUFA PROF.MEMBERSHIP",8238,"VIUFA PROF.MEMBERSHIP","Operating",null,"O"]
["Human Resources","Human Resources",8239,"BCGEU - PROFESSIONAL DEV",8239,"BCGEU - PROFESSIONAL DEV","Operating",null,"O"]
["Human Resources","Human Resources",8240,"BCGEU PRO-D COMMITTEE",8240,"BCGEU PRO-D COMMITTEE","Operating",null,"O"]
["Human Resources","Contracts - Human Resources",8250,"HR PROCEEDS (DEFICIT)",8250,"HR PROCEEDS (DEFICIT)","Off Grant",null,"L"]
["Human Resources","Contracts - Human Resources",8251,"VIUFA PD COMMITTEE",8251,"VIUFA PD COMMITTEE","Off Grant",null,"O"]
["Human Resources","Contracts - Human Resources",8252,"VIUFA CHARGES",8252,"VIUFA CHARGES","Off Grant",null,"O"]
["Human Resources","Contracts - Human Resources",8253,"BCGEU CHARGES",8253,"BCGEU CHARGES","Off Grant",null,"O"]
["Human Resources","Contracts - Human Resources",8254,"CUPE CHARGES",8254,"CUPE CHARGES","Off Grant",null,"O"]
["Human Resources","Contracts - Human Resources",8256,"RECOGNITION AWARDS",8256,"RECOGNITION AWARDS","Off Grant",null,"L"]
["Human Resources","Contracts - Human Resources",8258,"POSITIVE SPACE ALLIANCE",8258,"POSITIVE SPACE ALLIANCE","Off Grant",null,"O"]
["Financial Services","Financial Services",8300,"FINANCIAL SERVICES",8300,"FINANCIAL SERVICES","Operating",null,"O"]
["Financial Services","Financial Services",8309,"DIRECTOR OFFICE-ACCTING",8309,"DIRECTOR OFFICE-ACCTING","Operating",null,"O"]
["Financial Services","Financial Services",8310,"ACCOUNTING SERVICES",8310,"ACCOUNTING SERVICES","Operating",null,"O"]
["Financial Services","Financial Services",8311,"TREASURY & COLLECTIONS",8311,"TREASURY & COLLECTIONS","Operating",null,"O"]
["Financial Services","Financial Services",8312,"PROCUREMENT & CONT. SERV.  ",8312,"PROCUREMENT & CONT. SERV.  ","Operating",null,"O"]
["Financial Services","Financial Services",8313,"ACCOUNTS PAYABLE",8313,"ACCOUNTS PAYABLE","Operating",null,"O"]
["Financial Services","Financial Services",8320,"DIRECTOR OFFICE-FIN PLAN",8320,"DIRECTOR OFFICE-FIN PLAN","Operating",null,"O"]
["Financial Services","Financial Services",8321,"BUDGETS & FINANCIAL PLAN",8321,"BUDGETS & FINANCIAL PLAN","Operating",null,"O"]
["Financial Services","Financial Services",8322,"PAYROLL",8322,"PAYROLL","Operating",null,"O"]
["Financial Services","Financial Services",8340,"PORTFOLIO INTEREST",8340,"PORTFOLIO INTEREST","Operating",null,"O"]
["Financial Services","Financial Services",8350,"PCARD REBATE",8350,"PCARD REBATE","Operating",null,"O"]
["Financial Services","Financial Services",8360,"INST. RISK MANAGEMENT",8360,"INST. RISK MANAGEMENT","Operating",null,"L"]
["Financial Services","Financial Services",8361,"RISK MGMT-HEALTH & SAFETY",8361,"RISK MGMT-HEALTH & SAFETY","Operating",null,"L"]
["Financial Services","Financial Services",8398,"Y/E CLOSE OPS P&L",8398,"Y/E CLOSE OPS P&L","Operating",null,"L"]
["Financial Services","Financial Services",8399,"INST.OPEN PURCHASE ORDERS",8399,"INST.OPEN PURCHASE ORDERS","Operating",null,"O"]
["Facilities","Facilities",8400,"NANAIMO FACILITIES MAINT.",8400,"NANAIMO FACILITIES MAINT.","Operating",null,"O"]
["Facilities","Facilities",8401,"PHYS.PLANT RECOVERY",8401,"PHYS.PLANT RECOVERY","Operating",null,"O"]
["Facilities","Facilities",8402,"PROJECT COST RECOVERY",8402,"PROJECT COST RECOVERY","Operating",null,"O"]
["Facilities","Facilities",8403,"UNIVERSAL ACCESS",8403,"UNIVERSAL ACCESS","Operating",null,"O"]
["Facilities","Facilities",8405,"FLEET",8405,"FLEET","Operating",null,"O"]
["Facilities","Facilities",8407,"MOTOR VEHICLE INSURANCE",8407,"MOTOR VEHICLE INSURANCE","Operating",null,"O"]
["Facilities","Facilities",8408,"RISK MANAGEMENT",8408,"RISK MANAGEMENT","Operating",null,"O"]
["Facilities","Facilities",8410,"NANAIMO GROUNDS",8410,"NANAIMO GROUNDS","Operating",null,"O"]
["Facilities","Facilities",8411,"NANAIMO HVAC & UTILITIES",8411,"NANAIMO HVAC & UTILITIES","Operating",null,"O"]
["Facilities","Facilities",8412,"GEOEXCHANGE",8412,"GEOEXCHANGE","Operating",null,"O"]
["Facilities","Facilities",8415,"GR PAINE FACILITIES MAINT",8415,"GR PAINE FACILITIES MAINT","Operating",null,"O"]
["Facilities","Facilities",8416,"GR PAINE GROUNDS",8416,"GR PAINE GROUNDS","Operating",null,"O"]
["Facilities","Facilities",8417,"GR PAINE HVAC & UTILITIES",8417,"GR PAINE HVAC & UTILITIES","Operating",null,"O"]
["Facilities","Facilities",8425,"PARKSVILLE MAIN CAMPUS",8425,"PARKSVILLE MAIN CAMPUS","Operating",null,"O"]
["Facilities","Facilities",8426,"DEEP BAY RESEARCH CENTRE",8426,"DEEP BAY RESEARCH CENTRE","Operating",null,"O"]
["Facilities","Facilities",8427,"HHS PORTABLES",8427,"HHS PORTABLES","Operating",null,"L"]
["Facilities","Facilities",8428,"DEEP BAY HVAC & UTILITIES",8428,"DEEP BAY HVAC & UTILITIES","Operating",null,"O"]
["Facilities","Facilities",8430,"POW RIVER FACILITIES MAIN",8430,"POW RIVER FACILITIES MAIN","Operating",null,"O"]
["Facilities","Facilities",8431,"POW RIVER GROUNDS",8431,"POW RIVER GROUNDS","Operating",null,"O"]
["Facilities","Facilities",8432,"POW RIVER HVAC&UTILITIES",8432,"POW RIVER HVAC&UTILITIES","Operating",null,"O"]
["Facilities","Facilities",8435,"MARINER FIELD MAINTENANCE",8435,"MARINER FIELD MAINTENANCE","Operating",null,"L"]
["Facilities","Facilities",8437,"COWICHAN FACILITIES MAINT",8437,"COWICHAN FACILITIES MAINT","Operating",null,"O"]
["Facilities","Facilities",8438,"COWICHAN GROUNDS",8438,"COWICHAN GROUNDS","Operating",null,"O"]
["Facilities","Facilities",8439,"COWICHAN HVAC & UTILITIES",8439,"COWICHAN HVAC & UTILITIES","Operating",null,"O"]
["Facilities","Facilities",8440,"CTC FACILITIES MAINT.",8440,"CTC FACILITIES MAINT.","Operating",null,"O"]
["Facilities","Facilities",8441,"CTC GROUNDS",8441,"CTC GROUNDS","Operating",null,"O"]
["Facilities","Facilities",8442,"CTC HVAC & UTILITIES",8442,"CTC HVAC & UTILITIES","Operating",null,"O"]
["Facilities","Facilities",8445,"MILNER GARDENS",8445,"MILNER GARDENS","Operating",null,"O"]
["Facilities","Facilities",8450,"FSCD ADMINISTRATION",8450,"FSCD ADMINISTRATION","Operating",null,"O"]
["Facilities","Facilities",8451,"BUILDING & GROUNDS MGMT.",8451,"BUILDING & GROUNDS MGMT.","Operating",null,"O"]
["Facilities","Facilities",8452,"BUILDING SYSTEMS MGMT.",8452,"BUILDING SYSTEMS MGMT.","Operating",null,"O"]
["Facilities","Facilities",8453,"CAMPUS DEVELOPMENT",8453,"CAMPUS DEVELOPMENT","Operating",null,"O"]
["Facilities","Facilities",8454,"FAC & ANCILLARY ADMIN",8454,"FAC & ANCILLARY ADMIN","Operating",null,"O"]
["Facilities","Facilities",8456,"AUDIO-VISUAL SERVICES",8456,"AUDIO-VISUAL SERVICES","Operating",null,"O"]
["Facilities - Minor Maintenance","Facilities - Minor Maintenance",8460,"ROUTINE MINOR OPERAT EXP",8460,"ROUTINE MINOR OPERAT EXP","Operating",null,"O"]
["Facilities","Facilities",8461,"ROUNTINE MINOR OPERATE REV",8461,"ROUNTINE MINOR OPERATE REV","Operating",null,"O"]
["Facilities","Facilities",8480,"SHIPPING & RECEIVING",8480,"SHIPPING & RECEIVING","Operating",null,"O"]
["Facilities","Facilities",8490,"MAIL & DELIVERY",8490,"MAIL & DELIVERY","Operating",null,"O"]
["Facilities","Facilities",8495,"SSF UAC HEALTH & WELLNESS",8495,"SSF UAC HEALTH & WELLNESS","Operating",null,"O"]
["Institutional Revenue","Institutional Revenue",8500,"COST RECOVERY - OVERHEAD",8500,"COST RECOVERY - OVERHEAD","Off Grant",null,"O"]
["Institutional Revenue","Institutional Revenue",8501,"EXTERNAL FDN CLEARDING",8501,"EXTERNAL FDN CLEARDING","Off Grant",null,"O"]
["Institutional Revenue","Institutional Revenue",8598,"Y/E CLOSE CONTRACTS P&L",8598,"Y/E CLOSE CONTRACTS P&L","Off Grant",null,"L"]
["Ancillary - Business Operations","Ancillary - Bookstore",8600,"BOOKSTORE",8600,"BOOKSTORE","Operating",null,"O"]
["Ancillary - Business Operations","Ancillary - Bookstore",8601,"BOOKSTORE - DUNCAN",8601,"BOOKSTORE - DUNCAN","Operating",null,"O"]
["Ancillary - Business Operations","Ancillary - Bookstore",8602,"BOOKSTORE - PARKSVILLE",8602,"BOOKSTORE - PARKSVILLE","Operating",null,"O"]
["Ancillary - Business Operations","Ancillary - Bookstore",8603,"BOOKSTORE - POWELL RIVER",8603,"BOOKSTORE - POWELL RIVER","Operating",null,"O"]
["Ancillary - Business Operations","Ancillary - Bookstore",8605,"BB WEB",8605,"BB WEB","Operating",null,"O"]
["Ancillary - Business Operations","Ancillary - Events/External",8606,"VENDING/CONCESSIONS",8606,"VENDING/CONCESSIONS","Operating",null,"O"]
["Ancillary - Business Operations","Ancillary - Other",8610,"REGALIA DEPOSITS",8610,"REGALIA DEPOSITS","Operating",null,"O"]
["Ancillary - Business Operations","Ancillary - Other",8612,"BKS INTERNAL CRG-CLEARING",8612,"BKS INTERNAL CRG-CLEARING","Operating",null,"O"]
["Ancillary - Business Operations","Ancillary - Administration",8620,"BUSINESS OPERATIONS",8620,"BUSINESS OPERATIONS","Operating",null,"O"]
["Ancillary - Business Operations","Ancillary - Events/External",8625,"BUSINESS OPS EXTERNAL REV",8625,"BUSINESS OPS EXTERNAL REV","Operating",null,"O"]
["Ancillary - Business Operations","Ancillary - Events/External",8626,"CATERING - CLEARING",8626,"CATERING - CLEARING","Operating",null,"O"]
["Ancillary - Business Operations","Ancillary - Printshop",8640,"PRINTING/DUPLICATING",8640,"PRINTING/DUPLICATING","Operating",null,"O"]
["Ancillary - VIU Student Residences","Ancillary - VIU Student Residences",8650,"VIU RESIDENCES - ledger 1",8650,"VIU RESIDENCES - ledger 1","Operating",null,"O"]
["Ancillary - Business Operations","Ancillary - Business Operations",8698,"Y/E CLOSE ANCIL P&L",8698,"Y/E CLOSE ANCIL P&L","Operating",null,"L"]
["Ancillary - Facilities","Ancillary - Facilities",8701,"FAC. ANCILLARY - ADMIN",8701,"FAC. ANCILLARY - ADMIN","Operating",null,"O"]
["Ancillary - Facilities","Ancillary - Facilities",8702,"SECURITY MANAGEMENT",8702,"SECURITY MANAGEMENT","Operating",null,"O"]
["Ancillary - Facilities","Ancillary - Facilities",8704,"NANAIMO-SNOW/ICE REMOVAL",8704,"NANAIMO-SNOW/ICE REMOVAL","Operating",null,"O"]
["Ancillary - Facilities","Ancillary - Facilities",8705,"NANAIMO-PARKING/SECURITY",8705,"NANAIMO-PARKING/SECURITY","Operating",null,"O"]
["Ancillary - Facilities","Ancillary - Facilities",8707,"COWICHAN-PARKING/SECURITY",8707,"COWICHAN-PARKING/SECURITY","Operating",null,"O"]
["Ancillary - Facilities","Ancillary - Facilities",8708,"COWICHAN-SNOW/ICE REMOVAL",8708,"COWICHAN-SNOW/ICE REMOVAL","Operating",null,"O"]
["Ancillary - Facilities","Ancillary - Facilities",8709,"POWELL RIVER-PARKING/SEC.",8709,"POWELL RIVER-PARKING/SEC.","Operating",null,"O"]
["Ancillary - Facilities","Ancillary - Facilities",8710,"POWELL RIVER-SNOW/ICE REM",8710,"POWELL RIVER-SNOW/ICE REM","Operating",null,"O"]
["Ancillary - Facilities","Ancillary - Facilities",8711,"COW.TRADES-SNOW/ICE REMOV",8711,"COW.TRADES-SNOW/ICE REMOV","Operating",null,"O"]
["Ancillary - Facilities","Ancillary - Facilities",8712,"COW.TRADES-PARKING/SECURI",8712,"COW.TRADES-PARKING/SECURI","Operating",null,"O"]
["Ancillary - Facilities","Ancillary - Facilities",8713,"GR PAINE-PARKING/SECURITY",8713,"GR PAINE-PARKING/SECURITY","Operating",null,"O"]
["Ancillary - Facilities","Ancillary - Facilities",8714,"GR PAINE-SNOW/ICE REMOVAL",8714,"GR PAINE-SNOW/ICE REMOVAL","Operating",null,"O"]
["Ancillary - Facilities","Ancillary - Facilities",8715,"ENVIRON. & SUSTAINABILITY",8715,"ENVIRON. & SUSTAINABILITY","Operating",null,"O"]
["VP Administration and Finance","Contracts - VPAF ASA",8721,"INSTL NON-BUDG CONTRACTS",8721,"INSTL NON-BUDG CONTRACTS","Off Grant",null,"O"]
["VP Administration and Finance","Contracts - VPAF ASA",8799,"VIU INIT TRUST - CLEARING",8799,"VIU INIT TRUST - CLEARING","Off Grant",null,"O"]
["President","President - Office",8800,"PRESIDENT",8800,"PRESIDENT","Operating",null,"O"]
["President","President - Office",8801,"PRESIDENT'S DEVELOPMENT",8801,"PRESIDENT'S DEVELOPMENT","Operating",null,"O"]
["President","President - Office",8802,"MARCOMM OFFICE ",8802,"MARCOMM OFFICE ","Operating",null,"L"]
["President","President - Office",8803,"INDIGENOUS SPKR SERIES",8803,"INDIGENOUS SPKR SERIES","Operating",null,"O"]
["President","President - Office",8804,"DIVERSITY EQTY & HUM RGTS ",8804,"DIVERSITY EQTY & HUM RGTS ","Operating",null,"O"]
["President","President - Office",8805,"MARKETING",8805,"MARKETING","Operating",null,"O"]
["President","President - Office",8806,"COMMUNICATIONS",8806,"COMMUNICATIONS","Operating",null,"O"]
["Community Partnerships","Community Partnerships",8808,"ADVANCEMENT OFFICE",8808,"ADVANCEMENT OFFICE","Operating",null,"O"]
["University Secretary","University Secretariat",8810,"VIU BOARD",8810,"VIU BOARD","Operating",null,"O"]
["University Secretary","University Secretariat",8811,"UNIVERSITY SECRETARIAT",8811,"UNIVERSITY SECRETARIAT","Operating",null,"O"]
["University Secretary","University Secretariat",8812,"UNIVERSITY SENATE",8812,"UNIVERSITY SENATE","Operating",null,"O"]
["University Secretary","University Secretariat",8813,"PRESIDENTS INSTALLATION",8813,"PRESIDENTS INSTALLATION","Operating",null,"O"]
["University Secretary","University Secretariat",8814,"DIVERSITY EQTY & HUM RGTS ",8814,"DIVERSITY EQTY & HUM RGTS ","Operating",null,"L"]
["Community Partnerships","Community Partnerships",8815,"ALUMNI RELATIONS",8815,"ALUMNI RELATIONS","Operating",null,"O"]
["Community Partnerships","Community Partnerships",8816,"CAMPAIGN",8816,"CAMPAIGN","Operating",null,"O"]
["Community Partnerships","Community Partnerships",8817,"CALL CENTRE",8817,"CALL CENTRE","Operating",null,"O"]
["President","President - Institutional",8860,"PRESIDENT'S CONTINGENCY",8860,"PRESIDENT'S CONTINGENCY","Operating",null,"O"]
["President","President - Institutional",8862,"INSTITUTIONAL HR LEGAL",8862,"INSTITUTIONAL HR LEGAL","Operating",null,"O"]
["President","President - Office",8890,"CTR PRE-CONFED TREATIES",8890,"CTR PRE-CONFED TREATIES","Operating",null,"L"]
["President","President - Office",8897,"BCBC INTERNSHIP PROGRAM",8897,"BCBC INTERNSHIP PROGRAM","Operating",null,"O"]
["President","President - Office",8898,"SOCIAL INNOVATION",8898,"SOCIAL INNOVATION","Operating",null,"O"]
["President","President - Office",8899,"STRATEGIC PLANNING",8899,"STRATEGIC PLANNING","Operating",null,"O"]
["Community Partnerships","Community Partnerships",8900,"COMMUNITY PARTNERSHIPS",8900,"COMMUNITY PARTNERSHIPS","Operating",null,"O"]
["Community Partnerships","Community Partnerships",8907,"SPONSORSHIP",8907,"SPONSORSHIP","Operating",null,"O"]
["Community Partnerships","Community Partnerships",8908,"CANADA LEARNING BOND",8908,"CANADA LEARNING BOND","Operating",null,"O"]
["Capital","Capital",9000,"LIB - EXPANSION",9000,"LIB - EXPANSION",null,null,"O"]
["Capital","Capital",9001,"FAC - EVERGREEN",9001,"FAC - EVERGREEN",null,null,"O"]
["Capital","Capital",9003,"SOC-ANTHRO LAB EQUIP",9003,"SOC-ANTHRO LAB EQUIP",null,null,"L"]
["Capital","Capital",9004,"INT-OFFICE RENOVATION",9004,"INT-OFFICE RENOVATION",null,null,"L"]
["Capital","Capital",9005,"LIB-DIGI LITERACY ENH SSF",9005,"LIB-DIGI LITERACY ENH SSF",null,null,"L"]
["Capital","Capital",9006,"LIB-EXPANSION PLANNING",9006,"LIB-EXPANSION PLANNING",null,null,"L"]
["Capital","Capital",9010,"SCI-GENETIC RES EXPANSION",9010,"SCI-GENETIC RES EXPANSION",null,null,"L"]
["Capital","Capital",9011,"SCI-ROTARY EVAP SYSTEM",9011,"SCI-ROTARY EVAP SYSTEM",null,null,"L"]
["Capital","Capital",9012,"CFI EXPENSES - GREEN",9012,"CFI EXPENSES - GREEN",null,null,"O"]
["Capital","Capital",9013,"CFI REV - GREEN",9013,"CFI REV - GREEN",null,null,"L"]
["Capital","Capital",9014,"CFI PRIOR YEAR - GREEN",9014,"CFI PRIOR YEAR - GREEN",null,null,"L"]
["Capital","Capital",9015,"Outdoor Rec Equip",9015,"Outdoor Rec Equip",null,null,"L"]
["Capital","Capital",9016,"Outdoor Rec Equip-PRIOR YR",9016,"Outdoor Rec Equip-PRIOR YR",null,null,"L"]
["Capital","Capital",9017,"Fish Health Cntr Equip",9017,"Fish Health Cntr Equip",null,null,"L"]
["Capital","Capital",9018,"FISH HEALTH CNTR EQUIP-PY",9018,"FISH HEALTH CNTR EQUIP-PY",null,null,"L"]
["Capital","Capital",9020,"Project BREW-PRIOR YR",9020,"Project BREW-PRIOR YR",null,null,"L"]
["Capital","Capital",9021,"Residence WIFI",9021,"Residence WIFI",null,null,"L"]
["Capital","Capital",9022,"Residence WIFI-PRIOR YR",9022,"Residence WIFI-PRIOR YR",null,null,"L"]
["Capital","Capital",9023,"CFI - WAGER",9023,"CFI - WAGER",null,null,"O"]
["Capital","Capital",9024,"CFI - WOOD",9024,"CFI - WOOD",null,null,"O"]
["Capital","Capital",9025,"CFI-WOOD - PY",9025,"CFI-WOOD - PY",null,null,"L"]
["Capital","Capital",9026,"CFI WAGNER - PY",9026,"CFI WAGNER - PY",null,null,"L"]
["Capital","Capital",9029,"CARBON NEUTRAL PROJECTREV",9029,"CARBON NEUTRAL PROJECTREV",null,null,"O"]
["Capital","Capital",9030,"TRADES TRAINING EQUIPMENT",9030,"TRADES TRAINING EQUIPMENT",null,null,"O"]
["Capital","Capital",9031,"TRADES TRAINING EQUI-PRIOR YR",9031,"TRADES TRAINING EQUI-PRIOR YR",null,null,"L"]
["Capital","Capital",9032,"Trades Excavators-VIU funded",9032,"Trades Excavators-VIU funded",null,null,"L"]
["Capital","Capital",9034,"CARBON NEUTRAL PY",9034,"CARBON NEUTRAL PY",null,null,"L"]
["Capital","Capital",9039,"WOODLOT LEASE ",9039,"WOODLOT LEASE ",null,null,"L"]
["Capital","Capital",9040,"MILL ST DONATION",9040,"MILL ST DONATION",null,null,"L"]
["Capital","Capital",9041,"MILL ST DONATION PRIOR YR",9041,"MILL ST DONATION PRIOR YR",null,null,"L"]
["Capital","Capital",9042,"ECLIPSE PY",9042,"ECLIPSE PY",null,null,"L"]
["Capital","Capital",9046,"3RD STREET-PRIOR YEAR",9046,"3RD STREET-PRIOR YEAR",null,null,"L"]
["Capital","Capital",9048,"SHARMAN HEALTH-PRIOR YR",9048,"SHARMAN HEALTH-PRIOR YR",null,null,"L"]
["Capital","Capital",9062,"ITS-VRTUAL DSKTP EXPNSION",9062,"ITS-VRTUAL DSKTP EXPNSION",null,null,"O"]
["Capital","Capital",9063,"ITS-NETWORK GROWTH",9063,"ITS-NETWORK GROWTH",null,null,"L"]
["Capital","Capital",9064,"ITS-NETWORK EVERGREEN",9064,"ITS-NETWORK EVERGREEN",null,null,"L"]
["Capital","Capital",9065,"IT INFRASTRUCTURE-PR. YR",9065,"IT INFRASTRUCTURE-PR. YR",null,null,"L"]
["Capital","Capital",9066,"IT INFRASTRUCTURE REVENUE",9066,"IT INFRASTRUCTURE REVENUE",null,null,"L"]
["Capital","Capital",9067,"LOCAL BACKUP SPACE",9067,"LOCAL BACKUP SPACE",null,null,"L"]
["Capital","Capital",9068,"ITS - SERVER INFRA GROWTH",9068,"ITS - SERVER INFRA GROWTH",null,null,"L"]
["Capital","Capital",9074,"Capitalalized U&R-Rev",9074,"Capitalalized U&R-Rev",null,null,"L"]
["Capital","Capital",9075,"LIBRARY BOOK PURCHASES",9075,"LIBRARY BOOK PURCHASES",null,null,"O"]
["Capital","Capital",9077,"DAY CARE EXP",9077,"DAY CARE EXP",null,null,"O"]
["Capital","Capital",9078,"DAY CARE EXP PY",9078,"DAY CARE EXP PY",null,null,"L"]
["Capital","Capital",9079,"DAY CARE REV PY",9079,"DAY CARE REV PY",null,null,"L"]
["Capital","Capital",9080,"2021-102 MG ACCESSIBILITY",9080,"2021-102 MG ACCESSIBILITY",null,null,"L"]
["Capital","Capital",9081,"BOREALIS NR",9081,"BOREALIS NR",null,null,"O"]
["Capital","Capital",9082,"AVED IT Infrastruc-PRIOR YR",9082,"AVED IT Infrastruc-PRIOR YR",null,null,"L"]
["Capital","Capital",9083,"ROUTERS & RECEIVERS(AVED)",9083,"ROUTERS & RECEIVERS(AVED)",null,null,"L"]
["Capital","Capital",9084,"BOREALIS-REV",9084,"BOREALIS-REV",null,null,"L"]
["Capital","Capital",9090,"GeoExchange-Rev",9090,"GeoExchange-Rev",null,null,"L"]
["Capital","Capital",9091,"GeoExchange-PRIOR YR",9091,"GeoExchange-PRIOR YR",null,null,"L"]
["Capital","Capital",9092,"1920-004 RHP-POWER DOOR",9092,"1920-004 RHP-POWER DOOR",null,null,"L"]
["Capital","Capital",9093,"1920-005 RHP-WASHROOMS",9093,"1920-005 RHP-WASHROOMS",null,null,"L"]
["Capital","Capital",9094,"1920-006 RHP-LANDSCAPE",9094,"1920-006 RHP-LANDSCAPE",null,null,"L"]
["Capital","Capital",9095,"1920-007 RHP-FIRE ALARM",9095,"1920-007 RHP-FIRE ALARM",null,null,"L"]
["Capital","Capital",9096,"1920-008 RHP-FURNITURE",9096,"1920-008 RHP-FURNITURE",null,null,"L"]
["Capital","Capital",9097,"1920-009 RHP-SIGNAGE ",9097,"1920-009 RHP-SIGNAGE ",null,null,"L"]
["Capital","Capital",9098,"RHP-REV",9098,"RHP-REV",null,null,"L"]
["Capital","Capital",9099,"RHP-PY",9099,"RHP-PY",null,null,"L"]
["Capital","Capital",9100,"ABOR.GATHERING PL.PHASE 2",9100,"ABOR.GATHERING PL.PHASE 2",null,null,"O"]
["Capital","Capital",9101,"GATHER.PLC PH.II PRIOR YR",9101,"GATHER.PLC PH.II PRIOR YR",null,null,"L"]
["Capital","Capital",9102,"DONATED CAPITAL GIK",9102,"DONATED CAPITAL GIK",null,null,"L"]
["Capital","Capital",9103,"HEALTH/SCI BLDG-ELIGIBLE",9103,"HEALTH/SCI BLDG-ELIGIBLE",null,null,"L"]
["Capital","Capital",9104,"HEALTH/SCIENCE BLDG-PRIOR",9104,"HEALTH/SCIENCE BLDG-PRIOR",null,null,"L"]
["Capital","Capital",9105,"AUTO/MARINE BLDG-ELIGIBLE",9105,"AUTO/MARINE BLDG-ELIGIBLE",null,null,"L"]
["Capital","Capital",9106,"AUTO/MARINE BLDG-PRIOR YR",9106,"AUTO/MARINE BLDG-PRIOR YR",null,null,"L"]
["Capital","Capital",9107,"NEW BLDG FUNDRAISING",9107,"NEW BLDG FUNDRAISING",null,null,"L"]
["Capital","Capital",9108,"NEW BLDG FNDRAIS-PRIOR YR",9108,"NEW BLDG FNDRAIS-PRIOR YR",null,null,"L"]
["Capital","Capital",9109,"HEALTH/SCI BLD-INELIGIBLE",9109,"HEALTH/SCI BLD-INELIGIBLE",null,null,"L"]
["Capital","Capital",9112,"HEALTH/SCIENCE BLDG-REV",9112,"HEALTH/SCIENCE BLDG-REV",null,null,"L"]
["Capital","Capital",9113,"HEALTH/SCI BLDG-PRIOR YR",9113,"HEALTH/SCI BLDG-PRIOR YR",null,null,"L"]
["Capital","Capital",9114,"HEALTH/SCI simulation lab",9114,"HEALTH/SCI simulation lab",null,null,"L"]
["Capital","Capital",9116,"HCA - PP EQUIPMENT ",9116,"HCA - PP EQUIPMENT ",null,null,"O"]
["Capital","Capital",9117,"AUTO/MARINE BLD-INELIGIBL",9117,"AUTO/MARINE BLD-INELIGIBL",null,null,"L"]
["Capital","Capital",9120,"AUTO/MARINE BLDG-REV",9120,"AUTO/MARINE BLDG-REV",null,null,"L"]
["Capital","Capital",9121,"AUTO/MARINE BLDG-PRIOR YR",9121,"AUTO/MARINE BLDG-PRIOR YR",null,null,"L"]
["Capital","Capital",9130,"MIN HLTH - GILL 5920",9130,"MIN HLTH - GILL 5920",null,null,"O"]
["Capital","Capital",9131,"GILL CFI-BCKDF EXP",9131,"GILL CFI-BCKDF EXP",null,null,"O"]
["Capital","Capital",9132,"GILL CFI-BCKDF REV ",9132,"GILL CFI-BCKDF REV ",null,null,"L"]
["Capital","Capital",9133,"GILL CFI-BCKDF PY ",9133,"GILL CFI-BCKDF PY ",null,null,"L"]
["Capital","Capital",9134,"LANE CFI-BCKDF EXP",9134,"LANE CFI-BCKDF EXP",null,null,"O"]
["Capital","Capital",9135,"LANE CFI-BCKDF REV",9135,"LANE CFI-BCKDF REV",null,null,"L"]
["Capital","Capital",9136,"LANE CFI-BCKDF PY",9136,"LANE CFI-BCKDF PY",null,null,"L"]
["Capital","Capital",9137,"RUSSELL CFI-BCKDF EXP",9137,"RUSSELL CFI-BCKDF EXP",null,null,"O"]
["Capital","Capital",9138,"RUSSELL CFI-BCKDF REV",9138,"RUSSELL CFI-BCKDF REV",null,null,"L"]
["Capital","Capital",9139,"RUSSELL CFI-BCKDF PY",9139,"RUSSELL CFI-BCKDF PY",null,null,"L"]
["Capital","Capital",9140,"JANES - CFI-BCKDF EXP ",9140,"JANES - CFI-BCKDF EXP ",null,null,"O"]
["Capital","Capital",9141,"JANES - CFI-BCKDF REV",9141,"JANES - CFI-BCKDF REV",null,null,"L"]
["Capital","Capital",9142,"JANES - CFI-BCKDF PY",9142,"JANES - CFI-BCKDF PY",null,null,"L"]
["Capital","Capital",9143,"MCCUNN CFI-BCKDF EXP",9143,"MCCUNN CFI-BCKDF EXP",null,null,"O"]
["Capital","Capital",9144,"MCCUNN CFI-BCKDF REV",9144,"MCCUNN CFI-BCKDF REV",null,null,"L"]
["Capital","Capital",9145,"MCCUNN CFI-BCKDF PY",9145,"MCCUNN CFI-BCKDF PY",null,null,"L"]
["Capital","Capital",9150,"AURORA-EXP",9150,"AURORA-EXP",null,null,"O"]
["Capital","Capital",9154,"AURORA-REV",9154,"AURORA-REV",null,null,"L"]
["Capital","Capital",9155,"AURORA-PRIOR YR",9155,"AURORA-PRIOR YR",null,null,"L"]
["Capital","Capital",9200,"LIB-EXPANSION BUILD PY",9200,"LIB-EXPANSION BUILD PY",null,null,"L"]
["Capital","Capital",9201,"SCI-GAS CHROMATOGRAPHY ",9201,"SCI-GAS CHROMATOGRAPHY ",null,null,"L"]
["Capital","Capital",9202,"SCI-DRUM FILTER",9202,"SCI-DRUM FILTER",null,null,"L"]
["Capital","Capital",9203,"SCRA-COMPUTERS ",9203,"SCRA-COMPUTERS ",null,null,"L"]
["Capital","Capital",9204,"SA-2ND EXIT",9204,"SA-2ND EXIT",null,null,"L"]
["Capital","Capital",9205,"SA-SECURITY CAMERAS ",9205,"SA-SECURITY CAMERAS ",null,null,"L"]
["Capital","Capital",9206,"LIB-EXPANSION FUR & EQ PY",9206,"LIB-EXPANSION FUR & EQ PY",null,null,"L"]
["Capital","Capital",9207,"SCI - MULTI MODE MICROPLATE ",9207,"SCI - MULTI MODE MICROPLATE ",null,null,"O"]
["Capital","Capital",9208,"SCI - ENGNING LAB EQUIP ",9208,"SCI - ENGNING LAB EQUIP ",null,null,"O"]
["Capital","Capital",9240,"ROUTINE CAPITAL",9240,"ROUTINE CAPITAL",null,null,"L"]
["Capital","Capital",9278,"WED FOREST(MOTT/NOAKE)EXP",9278,"WED FOREST(MOTT/NOAKE)EXP",null,null,"L"]
["Capital","Capital",9279,"WED FOREST(MOTT/NOAKE)REV",9279,"WED FOREST(MOTT/NOAKE)REV",null,null,"L"]
["Capital","Capital",9280,"WED FOREST-PRIOR YEAR",9280,"WED FOREST-PRIOR YEAR",null,null,"L"]
["Capital","Capital",9288,"PARKING LOT IMPROVEMENTS",9288,"PARKING LOT IMPROVEMENTS",null,null,"L"]
["Capital","Capital",9289,"PARKING CONTRIB.TO RESERV",9289,"PARKING CONTRIB.TO RESERV",null,null,"L"]
["Capital","Capital",9301,"1819-002 B180 GYM AHU REPLACE",9301,"1819-002 B180 GYM AHU REPLACE",null,null,"L"]
["Capital","Capital",9303,"1819-006 Ext Corr Protect",9303,"1819-006 Ext Corr Protect",null,null,"O"]
["Capital","Capital",9306,"1819-009 Acc Washroom Upg",9306,"1819-009 Acc Washroom Upg",null,null,"L"]
["Capital","Capital",9307,"1819-010 Ductwork Reseal",9307,"1819-010 Ductwork Reseal",null,null,"O"]
["Capital","Capital",9309,"1819-012 Fall Protection",9309,"1819-012 Fall Protection",null,null,"L"]
["Capital","Capital",9310,"1819-013 Atri Glaz Replac",9310,"1819-013 Atri Glaz Replac",null,null,"L"]
["Capital","Capital",9313,"1819-016 Deep Bay-Env Upg",9313,"1819-016 Deep Bay-Env Upg",null,null,"L"]
["Capital","Capital",9333,"1920-003 LED EXT LIGHTING",9333,"1920-003 LED EXT LIGHTING",null,null,"O"]
["Capital","Capital",9334,"1920-006 GUARD RAIL BUS",9334,"1920-006 GUARD RAIL BUS",null,null,"L"]
["Capital","Capital",9335,"1920-007 B108 ARC PROT",9335,"1920-007 B108 ARC PROT",null,null,"L"]
["Capital","Capital",9338,"1920-001 2019 ROOF REPLCE",9338,"1920-001 2019 ROOF REPLCE",null,null,"L"]
["Capital","Capital",9339,"1920-013 B305 SKYLIGHT",9339,"1920-013 B305 SKYLIGHT",null,null,"L"]
["Capital","Capital",9340,"1920-014 AWNING REPLCMNTS",9340,"1920-014 AWNING REPLCMNTS",null,null,"L"]
["Capital","Capital",9341,"1920-015 B356 HVAC RPLCE",9341,"1920-015 B356 HVAC RPLCE",null,null,"O"]
["Capital","Capital",9342,"1920-017 B120 OFFICE ",9342,"1920-017 B120 OFFICE ",null,null,"L"]
["Capital","Capital",9343,"1920-031 CURB SANDBLASTNG",9343,"1920-031 CURB SANDBLASTNG",null,null,"L"]
["Capital","Capital",9345,"1920-033 LOT B CURB ",9345,"1920-033 LOT B CURB ",null,null,"L"]
["Capital","Capital",9346,"1920-035 DEEP BAY DRVWY",9346,"1920-035 DEEP BAY DRVWY",null,null,"L"]
["Capital","Capital",9347,"1920-036 DEEP BAY SPACE",9347,"1920-036 DEEP BAY SPACE",null,null,"L"]
["Capital","Capital",9348,"1920-037 DEEP BAY STRUCT",9348,"1920-037 DEEP BAY STRUCT",null,null,"O"]
["Capital","Capital",9349,"1920-040 TEACH SPACE",9349,"1920-040 TEACH SPACE",null,null,"L"]
["Capital","Capital",9350,"1920-041 ELVTR REFURB",9350,"1920-041 ELVTR REFURB",null,null,"L"]
["Capital","Capital",9351,"1920-042 B130 WELD VENT",9351,"1920-042 B130 WELD VENT",null,null,"L"]
["Capital","Capital",9352,"1920-046 B300 CLERESTORY",9352,"1920-046 B300 CLERESTORY",null,null,"L"]
["Capital","Capital",9353,"1920-047 WSHRM REFNSH",9353,"1920-047 WSHRM REFNSH",null,null,"L"]
["Capital","Capital",9354,"1920-048 HVAC REBALANC",9354,"1920-048 HVAC REBALANC",null,null,"L"]
["Capital","Capital",9355,"1920-054 B190 BIKE PARK",9355,"1920-054 B190 BIKE PARK",null,null,"L"]
["Capital","Capital",9357,"1920-057 ELECTRICAL",9357,"1920-057 ELECTRICAL",null,null,"L"]
["Capital","Capital",9358,"1920-059 GARBAGE ENCL",9358,"1920-059 GARBAGE ENCL",null,null,"L"]
["Capital","Capital",9359,"1920-060 CURTAINS",9359,"1920-060 CURTAINS",null,null,"L"]
["Capital","Capital",9360,"1920-068 EMERG BATTERY",9360,"1920-068 EMERG BATTERY",null,null,"L"]
["Capital","Capital",9361,"1920-070 EXT ENVLP RESEAL",9361,"1920-070 EXT ENVLP RESEAL",null,null,"L"]
["Capital","Capital",9362,"1920-066 LNDSCPE IMPROV",9362,"1920-066 LNDSCPE IMPROV",null,null,"L"]
["Capital","Capital",9363,"1920-084 B300 RAMP",9363,"1920-084 B300 RAMP",null,null,"L"]
["Capital","Capital",9364,"1920-065 DOOR REPLACEMNTS",9364,"1920-065 DOOR REPLACEMNTS",null,null,"L"]
["Capital","Capital",9365,"B120 GROUNDS OFFICE RENO",9365,"B120 GROUNDS OFFICE RENO",null,null,"L"]
["Capital","Capital",9366,"B300 CAF SERVERY UPGRADE",9366,"B300 CAF SERVERY UPGRADE",null,null,"L"]
["Capital","Capital",9367,"POS RPLCMNT TERMINAL CAF",9367,"POS RPLCMNT TERMINAL CAF",null,null,"L"]
["Capital","Capital",9368,"FLOORING REPLACEMENT",9368,"FLOORING REPLACEMENT",null,null,"L"]
["Capital","Capital",9369,"CFO SUPPORTED PROJ REV",9369,"CFO SUPPORTED PROJ REV",null,null,"L"]
["Capital","Capital",9370,"1920-097 STUDENT HOUSING",9370,"1920-097 STUDENT HOUSING",null,null,"L"]
["Capital","Capital",9371,"1920-012 VIU DAYCARE CENTRE ",9371,"1920-012 VIU DAYCARE CENTRE ",null,null,"L"]
["Capital","Capital",9372,"1920-034 ELC PRKNG KIOSKS",9372,"1920-034 ELC PRKNG KIOSKS",null,null,"L"]
["Capital","Capital",9373,"1920-136 VISIONWALL ",9373,"1920-136 VISIONWALL ",null,null,"L"]
["Capital","Capital",9374,"2021-001 ROOF REPLACEMENT ",9374,"2021-001 ROOF REPLACEMENT ",null,null,"L"]
["Capital","Capital",9375,"2021-015 B325 WSH SOLUTN",9375,"2021-015 B325 WSH SOLUTN",null,null,"L"]
["Capital","Capital",9376,"2021-016 B315 WSH SOLUTN",9376,"2021-016 B315 WSH SOLUTN",null,null,"L"]
["Capital","Capital",9377,"2021-017 B360 WSH SOLUTN",9377,"2021-017 B360 WSH SOLUTN",null,null,"L"]
["Capital","Capital",9378,"2021-018 B200 WSH SOLUTN",9378,"2021-018 B200 WSH SOLUTN",null,null,"L"]
["Capital","Capital",9379,"2021-010 STUD HOUS UPGRD",9379,"2021-010 STUD HOUS UPGRD",null,null,"L"]
["Capital","Capital",9380,"1920-023 B300 REFRIGERATR",9380,"1920-023 B300 REFRIGERATR",null,null,"L"]
["Capital","Capital",9381,"1920-024 LED LIGHTING",9381,"1920-024 LED LIGHTING",null,null,"L"]
["Capital","Capital",9382,"2021-041 UPGRADE INT LED ",9382,"2021-041 UPGRADE INT LED ",null,null,"L"]
["Capital","Capital",9383,"2021-029 INTRUSION SYS",9383,"2021-029 INTRUSION SYS",null,null,"O"]
["Capital","Capital",9384,"2021-052 PARKSVILLE ROOF ",9384,"2021-052 PARKSVILLE ROOF ",null,null,"L"]
["Capital","Capital",9385,"2021-031 KTCH HOOD REPAIR",9385,"2021-031 KTCH HOOD REPAIR",null,null,"L"]
["Capital","Capital",9386,"2021-096 CONCRETE ACCESS ",9386,"2021-096 CONCRETE ACCESS ",null,null,"L"]
["Capital","Capital",9387,"2021-094 VIU LAND EXCHNGE",9387,"2021-094 VIU LAND EXCHNGE",null,null,"L"]
["Capital","Capital",9389,"1920-071 2019 ACCESS UPGR",9389,"1920-071 2019 ACCESS UPGR",null,null,"L"]
["Capital","Capital",9390,"1920-018 B200,250 SEAT",9390,"1920-018 B200,250 SEAT",null,null,"L"]
["Capital","Capital",9391,"1920-019 B200 WHLCHR ENT",9391,"1920-019 B200 WHLCHR ENT",null,null,"L"]
["Capital","Capital",9392,"1920-020 ACCESS WSHRM SOL",9392,"1920-020 ACCESS WSHRM SOL",null,null,"L"]
["Capital","Capital",9393,"1920-021 B356 WHLCHR SPCE",9393,"1920-021 B356 WHLCHR SPCE",null,null,"L"]
["Capital","Capital",9394,"1920-022 UNIVERSL ACCESS",9394,"1920-022 UNIVERSL ACCESS",null,null,"O"]
["Capital","Capital",9395,"1920-083 OUTDR RMP REP",9395,"1920-083 OUTDR RMP REP",null,null,"O"]
["Capital","Capital",9396,"UNIVERSAL ACCESS EXP",9396,"UNIVERSAL ACCESS EXP",null,null,"L"]
["Capital","Capital",9397,"UNIVERSAL ACCESS REV",9397,"UNIVERSAL ACCESS REV",null,null,"L"]
["Capital","Capital",9398,"UNIVERSAL ACCESS PY EXP",9398,"UNIVERSAL ACCESS PY EXP",null,null,"L"]
["Capital","Capital",9399,"UNIVERSAL ACCESS PY REV",9399,"UNIVERSAL ACCESS PY REV",null,null,"L"]
["Capital","Capital",9420,"1516-008 B770 CTC KITCHEN",9420,"1516-008 B770 CTC KITCHEN",null,null,"L"]
["Capital","Capital",9435,"1718-014 B200 FEAS. STUDY",9435,"1718-014 B200 FEAS. STUDY",null,null,"L"]
["Capital","Capital",9438,"1718-020 PRINTSHOP RELOC",9438,"1718-020 PRINTSHOP RELOC",null,null,"L"]
["Capital","Capital",9439,"1718-041 B305 LBRARY UPGR",9439,"1718-041 B305 LBRARY UPGR",null,null,"L"]
["Capital","Capital",9440,"1718-042 FLT VEHCLE REPL",9440,"1718-042 FLT VEHCLE REPL",null,null,"L"]
["Capital","Capital",9441,"1718-048 B190 ENVELOPE",9441,"1718-048 B190 ENVELOPE",null,null,"L"]
["Capital","Capital",9442,"1718-018 B255 RENOVATION",9442,"1718-018 B255 RENOVATION",null,null,"L"]
["Capital","Capital",9443,"1819-004 PRKG SYS REPLCMT",9443,"1819-004 PRKG SYS REPLCMT",null,null,"L"]
["Capital","Capital",9444,"1819-005 PAINTING-DEEPBAY",9444,"1819-005 PAINTING-DEEPBAY",null,null,"L"]
["Capital","Capital",9445,"1819-033 TRAN PASS INFO ",9445,"1819-033 TRAN PASS INFO ",null,null,"L"]
["Capital","Capital",9446,"1819-035 HSC SIMULAT LAB",9446,"1819-035 HSC SIMULAT LAB",null,null,"L"]
["Capital","Capital",9447,"1819-052 NETWORK INFRAS",9447,"1819-052 NETWORK INFRAS",null,null,"L"]
["Capital","Capital",9448,"1819-053 B205, R201 CLASS",9448,"1819-053 B205, R201 CLASS",null,null,"L"]
["Capital","Capital",9449,"1819-054 B373, ENVIRO ",9449,"1819-054 B373, ENVIRO ",null,null,"L"]
["Capital","Capital",9450,"1819-051 GEOEXCHNAGE",9450,"1819-051 GEOEXCHNAGE",null,null,"L"]
["Capital","Capital",9451,"1819-067 B180 IT OFF RELO",9451,"1819-067 B180 IT OFF RELO",null,null,"L"]
["Capital","Capital",9452,"1819-049 RES FIRE PNL UPG",9452,"1819-049 RES FIRE PNL UPG",null,null,"L"]
["Capital","Capital",9453,"1819-058 B300, R112 RENO",9453,"1819-058 B300, R112 RENO",null,null,"L"]
["Capital","Capital",9454,"1920-086 ECLIPSE",9454,"1920-086 ECLIPSE",null,null,"O"]
["Capital","Capital",9455,"1819-070 B340,345 WSHRM",9455,"1819-070 B340,345 WSHRM",null,null,"L"]
["Capital","Capital",9456,"1920-078 WEST TRN LAB RNO",9456,"1920-078 WEST TRN LAB RNO",null,null,"L"]
["Capital","Capital",9457,"1920-098 B305 EXTRIOR UPG ",9457,"1920-098 B305 EXTRIOR UPG ",null,null,"L"]
["Capital","Capital",9458,"1920-100 B300 UP CAF RENO",9458,"1920-100 B300 UP CAF RENO",null,null,"L"]
["Capital","Capital",9459,"1920-121 B360 REVAMP",9459,"1920-121 B360 REVAMP",null,null,"L"]
["Capital","Capital",9460,"FACILITY STDNT ACCOMDTION",9460,"FACILITY STDNT ACCOMDTION",null,null,"O"]
["Capital","Capital",9461,"1920-038 GEOXCHNGE PUMP",9461,"1920-038 GEOXCHNGE PUMP",null,null,"L"]
["Capital","Capital",9462,"1920-039 UPGRD KEY SECRTY",9462,"1920-039 UPGRD KEY SECRTY",null,null,"L"]
["Capital","Capital",9463,"1920-043 B250,305 TILE",9463,"1920-043 B250,305 TILE",null,null,"L"]
["Capital","Capital",9464,"1920-045 B300 AWNING REPL",9464,"1920-045 B300 AWNING REPL",null,null,"L"]
["Capital","Capital",9465,"1920-055 CTC,DB,COW ENV",9465,"1920-055 CTC,DB,COW ENV",null,null,"L"]
["Capital","Capital",9467,"1920-061 PR WSHRM TILE",9467,"1920-061 PR WSHRM TILE",null,null,"L"]
["Capital","Capital",9468,"1920-062 REKEYING PROJ",9468,"1920-062 REKEYING PROJ",null,null,"L"]
["Capital","Capital",9469,"1920-063 SECURITY CAM INS",9469,"1920-063 SECURITY CAM INS",null,null,"L"]
["Capital","Capital",9470,"1920-064 CARD ACCESS SYST",9470,"1920-064 CARD ACCESS SYST",null,null,"L"]
["Capital","Capital",9471,"1920-067 MAGLOCK DOOR",9471,"1920-067 MAGLOCK DOOR",null,null,"L"]
["Capital","Capital",9472,"1920-069 CONVERT CONTROLS",9472,"1920-069 CONVERT CONTROLS",null,null,"L"]
["Capital","Capital",9473,"1920-105 B470-ASB REM-MG",9473,"1920-105 B470-ASB REM-MG",null,null,"L"]
["Capital","Capital",9474,"1718-011 COW-RECONFIG",9474,"1718-011 COW-RECONFIG",null,null,"L"]
["Capital","Capital",9475,"1920-082 B345 CLADDING",9475,"1920-082 B345 CLADDING",null,null,"O"]
["Capital","Capital",9476,"1920-138 MG P&H REPAIRS ",9476,"1920-138 MG P&H REPAIRS ",null,null,"L"]
["Capital","Capital",9477,"1920-137 ONLINE MAP NAN",9477,"1920-137 ONLINE MAP NAN",null,null,"L"]
["Capital","Capital",9478,"1920-139 B110 REPAIRS",9478,"1920-139 B110 REPAIRS",null,null,"L"]
["Capital","Capital",9479,"1920-143 SEWER REPAIRS",9479,"1920-143 SEWER REPAIRS",null,null,"L"]
["Capital","Capital",9480,"1920-095 B370R270 LOCKERS",9480,"1920-095 B370R270 LOCKERS",null,null,"L"]
["Capital","Capital",9481,"1920-116 B200 TBL EXAMS",9481,"1920-116 B200 TBL EXAMS",null,null,"L"]
["Capital","Capital",9482,"1920-149 B170 R103 GR BAR ",9482,"1920-149 B170 R103 GR BAR ",null,null,"L"]
["Capital","Capital",9483,"2021-193 PWR DOOR OPNR ",9483,"2021-193 PWR DOOR OPNR ",null,null,"L"]
["Capital","Capital",9500,"2020-003 EXTERIOR PAINTING",9500,"2020-003 EXTERIOR PAINTING",null,null,"L"]
["Capital","Capital",9501,"2021-042 FIRE ALARM SYSTM",9501,"2021-042 FIRE ALARM SYSTM",null,null,"L"]
["Capital","Capital",9502,"2021-014 SECURITY CAM ",9502,"2021-014 SECURITY CAM ",null,null,"L"]
["Capital","Capital",9503,"2021-049 B300&310 RF & AIR ",9503,"2021-049 B300&310 RF & AIR ",null,null,"O"]
["Capital","Capital",9504,"2021-098 B180 DENTAL RENO",9504,"2021-098 B180 DENTAL RENO",null,null,"L"]
["Capital","Capital",9505,"2021-101 STUDT FIRE ALARM",9505,"2021-101 STUDT FIRE ALARM",null,null,"O"]
["Capital","Capital",9506,"2021-108 DOOR ACCESS",9506,"2021-108 DOOR ACCESS",null,null,"L"]
["Capital","Capital",9507,"2122-001 ROOF REPLACEMENT",9507,"2122-001 ROOF REPLACEMENT",null,null,"O"]
["Capital","Capital",9508,"2122-002 EXTERIOR PAINT",9508,"2122-002 EXTERIOR PAINT",null,null,"O"]
["Capital","Capital",9509,"2122-003 B356 TRELLIS ",9509,"2122-003 B356 TRELLIS ",null,null,"L"]
["Capital","Capital",9510,"2021-117 ACCESS WASHROOMS",9510,"2021-117 ACCESS WASHROOMS",null,null,"O"]
["Capital","Capital",9511,"2021-121 MECHANICAL HEPA",9511,"2021-121 MECHANICAL HEPA",null,null,"L"]
["Capital","Capital",9512,"2021-107 B210 ELEVATORS",9512,"2021-107 B210 ELEVATORS",null,null,"L"]
["Capital","Capital",9513,"1920-142 CTC RACM GAS TRN",9513,"1920-142 CTC RACM GAS TRN",null,null,"L"]
["Capital","Capital",9514,"2021-116 B373 CNTR SREP",9514,"2021-116 B373 CNTR SREP",null,null,"L"]
["Capital","Capital",9515,"1920-104 B210 RICK HANSEN ",9515,"1920-104 B210 RICK HANSEN ",null,null,"L"]
["Capital","Capital",9516,"1920-150 B210 ADJ TABLE",9516,"1920-150 B210 ADJ TABLE",null,null,"L"]
["Capital","Capital",9517,"2122-012 FOOD SERV RENO",9517,"2122-012 FOOD SERV RENO",null,null,"O"]
["Capital","Capital",9518,"1920-102 B610 PR HCA LAB",9518,"1920-102 B610 PR HCA LAB",null,null,"O"]
["Capital","Capital",9519,"2021-126 B160 GEOEXCHANGE",9519,"2021-126 B160 GEOEXCHANGE",null,null,"O"]
["Capital","Capital",9520,"2021-135 B360 ENGRING LAB",9520,"2021-135 B360 ENGRING LAB",null,null,"L"]
["Capital","Capital",9521,"2122-009 B305 WASHROOMS",9521,"2122-009 B305 WASHROOMS",null,null,"O"]
["Capital","Capital",9522,"2122-011 B355 LEC THEATRE",9522,"2122-011 B355 LEC THEATRE",null,null,"O"]
["Capital","Capital",9523,"2122-013 LIB COURTYARD ",9523,"2122-013 LIB COURTYARD ",null,null,"O"]
["Capital","Capital",9524,"2021-103 DECK REPAIR ",9524,"2021-103 DECK REPAIR ",null,null,"O"]
["Capital","Capital",9525,"2122-017 B300 MECHANICAL",9525,"2122-017 B300 MECHANICAL",null,null,"O"]
["Capital","Capital",9526,"2122-018 NELVANA - AV ",9526,"2122-018 NELVANA - AV ",null,null,"O"]
["Capital","Capital",9527,"2122-006 CLASSROOM REFURB",9527,"2122-006 CLASSROOM REFURB",null,null,"O"]
["Capital","Capital",9528,"2122-020 B180 CLASSROOM",9528,"2122-020 B180 CLASSROOM",null,null,"O"]
["Capital","Capital",9529,"2122-021 COVID MECHANICAL",9529,"2122-021 COVID MECHANICAL",null,null,"O"]
["Capital","Capital",9530,"1920-029 PR PARKING LOT ",9530,"1920-029 PR PARKING LOT ",null,null,"O"]
["Capital","Capital",9531,"2122-061 BIO LAB REPAIRS ",9531,"2122-061 BIO LAB REPAIRS ",null,null,"O"]
["Student Affairs","Contracts - Student Affairs",9600,"ACCESS TRUST FUND",9600,"ACCESS TRUST FUND","Off Grant",null,"O"]
["Student Affairs","Contracts - Student Affairs",9609,"ABORIGINAL EMERG. ASSIST",9609,"ABORIGINAL EMERG. ASSIST","Off Grant",null,"O"]
["Student Affairs","Contracts - Student Affairs",9610,"ABESAP",9610,"ABESAP","Off Grant",null,"O"]
["Student Affairs","Contracts - Student Affairs",9611,"MSU SPECIAL BURSARIES",9611,"MSU SPECIAL BURSARIES","Off Grant",null,"O"]
["Milner Gardens - Operations","Milner - MGW Society",9625,"MILNER INVESTMENT INCOME",9625,"MILNER INVESTMENT INCOME","Operating",null,"O"]
["Milner Gardens - Operations","Milner - Operations",9629,"VOLUNTEER EXPENSES",9629,"VOLUNTEER EXPENSES","Operating",null,"O"]
["Milner Gardens - Operations","Milner - Public Openings",9630,"HOUSE RENTAL",9630,"HOUSE RENTAL","Operating",null,"O"]
["Milner Gardens - Operations","Milner - Public Openings",9631,"NURSERY/PLANT PRODUCTION",9631,"NURSERY/PLANT PRODUCTION","Operating",null,"O"]
["Milner Gardens - Operations","Milner - Public Openings",9632,"GIFT SHOP",9632,"GIFT SHOP","Operating",null,"O"]
["Milner Gardens - Operations","Milner - Public Openings",9634,"ADMISSION",9634,"ADMISSION","Operating",null,"O"]
["Milner Gardens - Operations","Milner - Operations",9635,"MILNER GARDENS OPERATIONS",9635,"MILNER GARDENS OPERATIONS","Operating",null,"O"]
["Milner Gardens - Operations","Milner - Administration",9636,"OFFICE ADMINISTRATION",9636,"OFFICE ADMINISTRATION","Operating",null,"O"]
["Milner Gardens - Operations","Milner - Public Openings",9637,"TEA ROOM",9637,"TEA ROOM","Operating",null,"O"]
["Milner Gardens - Operations","Milner - Public Openings",9638,"MEMBERSHIP",9638,"MEMBERSHIP","Operating",null,"O"]
["Milner Gardens - Operations","Milner - MGW Society",9640,"DONATION/MEMBERSHIP/OTHER",9640,"DONATION/MEMBERSHIP/OTHER","Operating",null,"O"]
["Milner Gardens - Operations","Milner - MGW Society",9641,"DONATIONS/DROP BOXES",9641,"DONATIONS/DROP BOXES","Operating",null,"O"]
["Milner Gardens - Operations","Milner - Public Openings",9642,"MILNER CHRISTMAS MAGIC",9642,"MILNER CHRISTMAS MAGIC","Operating",null,"O"]
["Milner Gardens - Operations","Milner - Projects",9645,"CAP.PROJ-HOUSE RENOVATION",9645,"CAP.PROJ-HOUSE RENOVATION","Operating",null,"O"]
["Milner Gardens - Operations","Milner - Shoots with Roots",9646,"ROOTS & SHOOTS/FOOD GARDN",9646,"ROOTS & SHOOTS/FOOD GARDN","Operating",null,"O"]
["Milner Gardens - Operations","Milner - Public Openings",9653,"ART & PHOTOGRAPHY",9653,"ART & PHOTOGRAPHY","Operating",null,"O"]
["Milner Gardens - Operations","Milner - Public Openings",9655,"MILNER - SMALL EVENTS",9655,"MILNER - SMALL EVENTS","Operating",null,"O"]
["Milner Gardens - Operations","Milner - Public Openings",9675,"RESIDENTIAL HOUSE",9675,"RESIDENTIAL HOUSE","Operating",null,"O"]

{"sheet":"WO UBW - DATA","index":12,"n_rows":1083,"n_cols":18,"rows_kept":1083,"cut":false,"hidden":true,"merged":[]}
["Division","Division (T)","Subdivision","Subdivision (T)","Costc","Costc (T)","Fund","Project","Project (T)","Work order","Work order (T)","Activity","Activity (T)","Date from","Date to","Status","Multiple","In MAP"]
["100","President - Office","100","President - Office","1000","President - Office","10","11000-1","PRES President Office","11000-1-1","PRES President Office","100","Administration","2017-01-01","2099-12-31","N",false,"11000-1-1"]
["100","President - Office","100","President - Office","1010","President Initiatives","10","11010-1","PRES President Initiatives","11010-1-1","PRES President Initiatives","100","Administration","2017-01-01","2099-12-31","N",false,"11010-1-1"]
["100","President - Office","100","President - Office","1010","President Initiatives","10","11010-1","PRES President Initiatives","11010-1-1","PRES President Initiatives","101","Institutional","2017-01-01","2099-12-31","N",true,"11010-1-1"]
["100","President - Office","100","President - Office","1010","President Initiatives","10","11010-2","PRES BCBC Internship program","11010-2-1","PRES BCBC Internship program","101","Institutional","2017-01-01","2099-12-31","N",false,"11010-2-1"]
["100","President - Office","100","President - Office","1010","President Initiatives","10","11010-4","PRES Social Innovation","11010-4-1","PRES Social Innovation","101","Institutional","2017-01-01","2099-12-31","N",false,"11010-4-1"]
["100","President - Office","100","President - Office","1010","President Initiatives","10","11010-5","PRES Strategic Planning","11010-5-1","PRES Strategic Planning","101","Institutional","2017-01-01","2099-12-31","N",false,"11010-5-1"]
["100","President - Office","102","Diversity, Equity and Human Rights Office","1020","Diversity, Equity and Human Rights Office","10","11020-1","PRES Diversity, Equity and Human Rights Office","11020-1-1","PRES Diversity, Equity and Human Rights Office","100","Administration","2020-03-28","2099-12-31","N",false,"11020-1-1"]
["100","President - Office","103","Communications and External Affaris","1030","Communications and External Affairs","10","11030-1","PRES Communications and External Affairs","11030-1-1","PRES Communications and External Affairs","100","Administration","2020-03-28","2099-12-31","N",false,"11030-1-1"]
["100","President - Office","103","Communications and External Affaris","1030","Communications and External Affairs","10","11030-1","PRES Communications and External Affairs","11030-1-2","PRES Communications and External Affairs - Indigenous Speakers Series","100","Administration","2020-03-28","2099-12-31","N",false,"11030-1-2"]
["100","President - Office","104","Brand and Marketing","1040","Brand and Marketing","10","11040-1","PRES Brand and Marketing","11040-1-1","PRES Brand and Marketing","100","Administration","2020-03-28","2099-12-31","N",false,"11040-1-1"]
["105","President - Institutional","105","President - Institutional","1050","President Institutional","10","11050-1","PRES President Institutional - Contingency","11050-1-1","PRES President Institutional - Contingency","101","Institutional","2017-01-01","2099-12-31","N",false,"11050-1-1"]
["105","President - Institutional","105","President - Institutional","1050","President Institutional","10","11050-2","PRES President Institutional - HR Legal","11050-2-1","PRES President Institutional - HR Legal","101","Institutional","2020-03-28","2099-12-31","N",false,"11050-2-1"]
["110","Human Resources","110","Human Resources Division","1100","Human Resources Division","10","11100-1","HR Human Resources Division","11100-1-1","HR Human Resources Division","100","Administration","2017-01-01","2099-12-31","N",false,"11100-1-1"]
["110","Human Resources","110","Human Resources Division","1101","Human Resources Division - AVP Initiatives","10","11101-1","HR Human Resources - Initiatives","11101-1-2","HR Human Resources - Initiatives - United Way Representative","101","Institutional","2017-01-01","2099-12-31","N",false,"11101-1-2"]
["110","Human Resources","110","Human Resources Division","1101","Human Resources Division - AVP Initiatives","10","11101-2","HR Pooled Positions","11101-2-1","HR Pooled Positions","101","Institutional","2017-01-01","2099-12-31","N",false,"11101-2-1"]
["110","Human Resources","110","Human Resources Division","1102","Training & Professional Development","10","11102-2","HR Training & PD - ADMIN","11102-2-1","HR Training & PD - ADMIN","101","Institutional","2017-01-01","2099-12-31","N",false,"11102-2-1"]
["110","Human Resources","110","Human Resources Division","1102","Training & Professional Development","10","11102-3","HR Training & PD - BCGEU","11102-3-1","HR Training & PD - BCGEU","101","Institutional","2017-01-01","2099-12-31","N",false,"11102-3-1"]
["110","Human Resources","110","Human Resources Division","1102","Training & Professional Development","10","11102-3","HR Training & PD - BCGEU","11102-3-2","HR Training & PD - BCGEU - PD Committee","101","Institutional","2017-01-01","2099-12-31","N",false,"11102-3-2"]
["110","Human Resources","110","Human Resources Division","1102","Training & Professional Development","10","11102-4","HR Training & PD - CUPE","11102-4-1","HR Training & PD - CUPE Contract Fund","101","Institutional","2017-01-01","2099-12-31","N",false,"11102-4-1"]
["110","Human Resources","110","Human Resources Division","1102","Training & Professional Development","10","11102-4","HR Training & PD - CUPE","11102-4-2","HR Training & PD - CUPE Career Development Fund","101","Institutional","2017-01-01","2099-12-31","N",false,"11102-4-2"]
["110","Human Resources","110","Human Resources Division","1102","Training & Professional Development","10","11102-5","HR Training & PD - VIUFA","11102-5-1","HR Training & PD - VIUFA","101","Institutional","2017-01-01","2099-12-31","N",false,"11102-5-1"]
["110","Human Resources","110","Human Resources Division","1102","Training & Professional Development","10","11102-6","HR Training & PD - VIUFA & BCGEU","11102-6-1","HR Training & PD - VIUFA & BCGEU Chair Development","205","Chair","2017-01-01","2099-12-31","N",false,"11102-6-1"]
["110","Human Resources","111","Employee Relations","1115","Conflict Resolution and Risk Assessment","10","11115-1","HR Institutional HR (Conflict Resolution and Risk Assessment)","11115-1-1","HR Institutional HR (Conflict Resolution and Risk Assessment)","101","Institutional","2021-03-27","2099-12-31","N",false,"11115-1-1"]
["110","Human Resources","115","Human Resources Department","1151","Employee Wellbeing","10","11151-2","HR Employee Wellbeing - Health","11151-2-2","HR Employee Wellbeing - Health - Accommodations","100","Administration","2017-01-01","2099-12-31","N",false,"11151-2-2"]
["110","Human Resources","115","Human Resources Department","1151","Employee Wellbeing","10","11151-2","HR Employee Wellbeing - Health","11151-2-2","HR Employee Wellbeing - Health - Accommodations","101","Institutional","2017-01-01","2099-12-31","N",true,"11151-2-2"]
["110","Human Resources","115","Human Resources Department","1151","Employee Wellbeing","10","11151-2","HR Employee Wellbeing - Health","11151-2-3","HR Employee Wellbeing - Health - Employee Assistance Program","100","Administration","2017-01-01","2099-12-31","N",false,"11151-2-3"]
["110","Human Resources","115","Human Resources Department","1151","Employee Wellbeing","10","11151-2","HR Employee Wellbeing - Health","11151-2-3","HR Employee Wellbeing - Health - Employee Assistance Program","101","Institutional","2017-01-01","2099-12-31","N",true,"11151-2-3"]
["110","Human Resources","115","Human Resources Department","1151","Employee Wellbeing","10","11151-2","HR Employee Wellbeing - Health","11151-2-4","HR Employee Wellbeing - Health - Medical Travel","100","Administration","2017-01-01","2099-12-31","N",false,"11151-2-4"]
["110","Human Resources","115","Human Resources Department","1151","Employee Wellbeing","10","11151-2","HR Employee Wellbeing - Health","11151-2-4","HR Employee Wellbeing - Health - Medical Travel","101","Institutional","2017-01-01","2099-12-31","N",true,"11151-2-4"]
["110","Human Resources","115","Human Resources Department","1151","Employee Wellbeing","10","11151-3","HR Employee Wellbeing - Wellness","11151-3-1","HR Employee Wellbeing - Wellness","101","Institutional","2017-01-01","2099-12-31","N",false,"11151-3-1"]
["110","Human Resources","115","Human Resources Department","1155","Leave & Attendance Management","10","11155-3","HR Leave & Attendance Management - BCGEU","11155-3-2","HR Leave & Attendance Management - BCGEU - UNION LEAVE","101","Institutional","2017-01-01","2099-12-31","N",false,"11155-3-2"]
["110","Human Resources","115","Human Resources Department","1155","Leave & Attendance Management","10","11155-4","HR Leave & Attendance Management - CUPE","11155-4-2","HR Leave & Attendance Management - CUPE - UNION LEAVE","101","Institutional","2017-01-01","2099-12-31","N",false,"11155-4-2"]
["110","Human Resources","115","Human Resources Department","1155","Leave & Attendance Management","10","11155-5","HR Leave & Attendance Management - VIUFA","11155-5-2","HR Leave & Attendance Management - VIUFA - UNION LEAVE","101","Institutional","2017-01-01","2099-12-31","N",false,"11155-5-2"]
["110","Human Resources","115","Human Resources Department","1155","Leave & Attendance Management","10","11155-5","HR Leave & Attendance Management - VIUFA","11155-5-3","HR Leave & Attendance Management - VIUFA - ASSISTED LEAVE","101","Institutional","2017-01-01","2099-12-31","N",false,"11155-5-3"]
["110","Human Resources","115","Human Resources Department","1160","Recognition & Retention","10","11160-1","HR Recognition & Retention","11160-1-1","HR Recognition & Retention","101","Institutional","2017-01-01","2099-12-31","N",false,"11160-1-1"]
["110","Human Resources","115","Human Resources Department","1165","Recruitment & Job Evaluation","10","11165-2","HR Talent Acquisition","11165-2-2","HR Talent Acquisition - Employee Relocation Grant","101","Institutional","2017-01-01","2099-12-31","N",false,"11165-2-2"]
["110","Human Resources","115","Human Resources Department","1165","Recruitment & Job Evaluation","10","11165-2","HR Talent Acquisition","11165-2-3","HR Talent Acquisition - Recruitment Gen. Services","101","Institutional","2017-01-01","2099-12-31","N",false,"11165-2-3"]
["110","Human Resources","115","Human Resources Department","1165","Recruitment & Job Evaluation","10","11165-2","HR Talent Acquisition","11165-2-4","HR Talent Acquisition - Senior Administrator Recruiting","101","Institutional","2017-01-01","2099-12-31","N",false,"11165-2-4"]
["110","Human Resources","115","Human Resources Department","1165","Recruitment & Job Evaluation","10","11165-2","HR Talent Acquisition","11165-2-5","HR Talent Acquisition - Instructional Recruitment","101","Institutional","2017-01-01","2099-12-31","N",false,"11165-2-5"]
["150","Community Partnerships","150","Community Partnerships","1500","Community Partnerships Division","10","11500-1","CP Community Partnerships Division","11500-1-1","CP Community Partnerships Division","100","Administration","2017-01-01","2099-12-31","N",false,"11500-1-1"]
["150","Community Partnerships","150","Community Partnerships","1501","Community Partnerships - Initiatives","10","11501-1","CP Community Partnerships - Initiatives","11501-1-1","CP Canada Learning Bond","101","Institutional","2017-01-01","2099-12-31","N",false,"11501-1-1"]
["150","Community Partnerships","150","Community Partnerships","1502","Campaigns","10","11502-2","CP VIU Campaigns","11502-2-1","CP Imagine VIU Campaign","101","Institutional","2017-01-01","2099-12-31","N",false,"11502-2-1"]
["150","Community Partnerships","150","Community Partnerships","1503","Sponsorship","10","11503-1","CP Sponsorship","11503-1-1","CP Sponsorship - Nanaimo","101","Institutional","2017-01-01","2099-12-31","N",false,"11503-1-1"]
["150","Community Partnerships","150","Community Partnerships","1505","Advancement Services","10","11505-1","CP Advancement Services","11505-1-1","CP Advancement Services","100","Administration","2017-01-01","2099-12-31","N",false,"11505-1-1"]
["150","Community Partnerships","150","Community Partnerships","1510","Alumni Relations","10","11510-1","CP Alumni Relations","11510-1-1","CP Alumni Relations","100","Administration","2017-01-01","2099-12-31","N",false,"11510-1-1"]
["150","Community Partnerships","150","Community Partnerships","1510","Alumni Relations","10","11510-2","CP Call Centre","11510-2-1","CP Call Centre","100","Administration","2017-01-01","2099-12-31","N",false,"11510-2-1"]
["150","Community Partnerships","155","Milner Gardens","1550","Milner Gardens Administration","10","11550-1","CP Milner Gardens - Administration","11550-1-1","CP Milner Gardens - Administration","100","Administration","2017-01-01","2099-12-31","N",false,"11550-1-1"]
["150","Community Partnerships","155","Milner Gardens","1550","Milner Gardens Administration","10","11550-2","CP Milner Gardens - Operations","11550-2-1","CP Milner Gardens - Operations","100","Administration","2017-01-01","2099-12-31","N",false,"11550-2-1"]
["150","Community Partnerships","155","Milner Gardens","1551","Milner - Other","10","11551-1","CP Milner Gardens - Mill Road Residence","11551-1-1","CP Milner Gardens - Mill Road Residence","100","Administration","2017-01-01","2099-12-31","N",false,"11551-1-1"]
["150","Community Partnerships","155","Milner Gardens","1551","Milner - Other","10","11551-2","CP Milner Gardens - Major Projects","11551-2-1","CP Milner Gardens - Major Projects","100","Administration","2017-01-01","2099-12-31","N",false,"11551-2-1"]
["150","Community Partnerships","155","Milner Gardens","1552","Milner - Public Openings","10","11552-1","CP Milner - Public Openings","11552-1-1","CP Milner - Public Admissions","100","Administration","2017-01-01","2099-12-31","N",false,"11552-1-1"]
["150","Community Partnerships","155","Milner Gardens","1552","Milner - Public Openings","10","11552-1","CP Milner - Public Openings","11552-1-2","CP Milner - Gift Shop","100","Administration","2017-01-01","2099-12-31","N",false,"11552-1-2"]
["150","Community Partnerships","155","Milner Gardens","1552","Milner - Public Openings","10","11552-1","CP Milner - Public Openings","11552-1-3","CP Milner - Tea Room","100","Administration","2017-01-01","2099-12-31","N",false,"11552-1-3"]
["150","Community Partnerships","155","Milner Gardens","1552","Milner - Public Openings","10","11552-1","CP Milner - Public Openings","11552-1-4","CP Milner - House Rental","100","Administration","2017-01-01","2099-12-31","N",false,"11552-1-4"]
["150","Community Partnerships","155","Milner Gardens","1552","Milner - Public Openings","10","11552-1","CP Milner - Public Openings","11552-1-5","CP Milner - Memberships","100","Administration","2017-01-01","2099-12-31","N",false,"11552-1-5"]
["150","Community Partnerships","155","Milner Gardens","1552","Milner - Public Openings","10","11552-1","CP Milner - Public Openings","11552-1-6","CP Milner - Nursery and Plant Production","100","Administration","2017-01-01","2099-12-31","N",false,"11552-1-6"]
["150","Community Partnerships","155","Milner Gardens","1552","Milner - Public Openings","10","11552-2","CP Milner - Public Events","11552-2-1","CP Milner - Small Events","100","Administration","2017-01-01","2099-12-31","N",false,"11552-2-1"]
["150","Community Partnerships","155","Milner Gardens","1552","Milner - Public Openings","10","11552-2","CP Milner - Public Events","11552-2-2","CP Milner - Christmas Magic","100","Administration","2017-01-01","2099-12-31","N",false,"11552-2-2"]
["150","Community Partnerships","155","Milner Gardens","1552","Milner - Public Openings","10","11552-2","CP Milner - Public Events","11552-2-3","CP Milner - Art and Photography","100","Administration","2017-01-01","2099-12-31","N",false,"11552-2-3"]
["150","Community Partnerships","155","Milner Gardens","1552","Milner - Public Openings","10","11552-3","CP Milner - Programs","11552-3-1","CP Milner - Roots & Shoots","100","Administration","2017-01-01","2099-12-31","N",false,"11552-3-1"]
["150","Community Partnerships","155","Milner Gardens","1553","Milner - Volunteers","10","11553-1","CP Milner - Volunteers","11553-1-1","CP Milner - Volunteers","100","Administration","2017-01-01","2099-12-31","N",false,"11553-1-1"]
["150","Community Partnerships","155","Milner Gardens","1554","Milner - MGW Society","10","11554-1","CP Milner - MGW Society","11554-1-1","CP MGW Society - Donations, Drop Boxes","100","Administration","2017-01-01","2099-12-31","N",false,"11554-1-1"]
["150","Community Partnerships","155","Milner Gardens","1554","Milner - MGW Society","10","11554-1","CP Milner - MGW Society","11554-1-2","CP MGW Society - Donations, Memberships & Other","100","Administration","2017-01-01","2099-12-31","N",false,"11554-1-2"]
["150","Community Partnerships","155","Milner Gardens","1554","Milner - MGW Society","10","11554-1","CP Milner - MGW Society","11554-1-3","CP MGW Society - Investment Income","100","Administration","2017-01-01","2099-12-31","N",false,"11554-1-3"]
["160","University Secretary","160","University Secretary","1600","University Secretary","10","11600-1","USEC University Secretary","11600-1-1","USEC University Secretary","100","Administration","2017-01-01","2099-12-31","N",false,"11600-1-1"]
["160","University Secretary","160","University Secretary","1600","University Secretary","10","11600-1","USEC University Secretary","11600-1-2","USEC University Secretary - Presidents Installation","100","Administration","2021-03-27","2099-12-31","N",false,"11600-1-2"]
["160","University Secretary","160","University Secretary","1610","VIU Board","10","11610-1","USEC VIU Board","11610-1-1","USEC VIU Board","101","Institutional","2017-01-01","2099-12-31","N",false,"11610-1-1"]
["160","University Secretary","160","University Secretary","1620","University Senate","10","11620-1","USEC University Senate","11620-1-1","USEC University Senate","101","Institutional","2017-01-01","2099-12-31","N",false,"11620-1-1"]
["200","Provost and VP Academic - Office","200","Provost and VP Academic - Office","2000","Provost VP Academic - Office","10","12000-1","PVPA Office","12000-1-1","PVPA Office","200","Academic Administration","2017-01-01","2099-12-31","N",false,"12000-1-1"]
["200","Provost and VP Academic - Office","200","Provost and VP Academic - Office","2000","Provost VP Academic - Office","10","12000-1","PVPA Office","12000-1-2","PVPA Professional Development","200","Academic Administration","2017-01-01","2099-12-31","N",false,"12000-1-2"]
["200","Provost and VP Academic - Office","200","Provost and VP Academic - Office","2000","Provost VP Academic - Office","10","12000-1","PVPA Office","12000-1-3","PVPA Interim PVPA Professional Development","200","Academic Administration","2017-01-01","2099-12-31","N",false,"12000-1-3"]
["201","PVPA - Centralized Academic Units","201","PVPA Initiatives and Instructional Support","2010","PVPA Initiatives","10","12010-1","PVPA-CAU PVPA Initiatives","12010-1-1","PVPA-CAU PVPA Initiatives","200","Academic Administration","2017-01-01","2099-12-31","N",false,"12010-1-1"]
["201","PVPA - Centralized Academic Units","201","PVPA Initiatives and Instructional Support","2015","Academic Instructional Support","10","12015-1","PVPA-CAU Provost Contingency","12015-1-1","PVPA-CAU Provost Contingency","200","Academic Administration","2017-01-01","2099-12-31","N",false,"12015-1-1"]
["201","PVPA - Centralized Academic Units","201","PVPA Initiatives and Instructional Support","2015","Academic Instructional Support","10","12015-2","PVPA-CAU Academic Travel","12015-2-1","PVPA-CAU Travel - UT Instructional Delivery","200","Academic Administration","2017-01-01","2099-12-31","N",false,"12015-2-1"]
["201","PVPA - Centralized Academic Units","201","PVPA Initiatives and Instructional Support","2015","Academic Instructional Support","10","12015-2","PVPA-CAU Academic Travel","12015-2-2","PVPA-CAU Travel - Instructional Recruitment","200","Academic Administration","2017-01-01","2099-12-31","N",false,"12015-2-2"]
["201","PVPA - Centralized Academic Units","201","PVPA Initiatives and Instructional Support","2015","Academic Instructional Support","10","12015-3","PVPA-CAU Professional Development","12015-3-1","PVPA-CAU Professional Development - UBC Doctor Education","200","Academic Administration","2017-01-01","2099-12-31","N",false,"12015-3-1"]
["201","PVPA - Centralized Academic Units","201","PVPA Initiatives and Instructional Support","2015","Academic Instructional Support","10","12015-4","PVPA-CAU Curriculum Development Fund","12015-4-1","PVPA-CAU Curriculum Development Fund","200","Academic Administration","2017-01-01","2099-12-31","N",false,"12015-4-1"]
["201","PVPA - Centralized Academic Units","201","PVPA Initiatives and Instructional Support","2015","Academic Instructional Support","10","12015-5","PVPA-CAU Theatre Operations","12015-5-1","PVPA-CAU Theatre Operations","200","Academic Administration","2017-01-01","2099-12-31","N",false,"12015-5-1"]
["210","Academic and Career Preparation","210","Academic and Career Preparation","2100","Faculty of Academic and Career Preparation","10","12100-1","ACP Faculty Dean's Office","12100-1-1","ACP Faculty Dean's Office","201","Faculty Administration","2017-01-01","2099-12-31","N",false,"12100-1-1"]
["210","Academic and Career Preparation","210","Academic and Career Preparation","2100","Faculty of Academic and Career Preparation","10","12100-1","ACP Faculty Dean's Office","12100-1-1","ACP Faculty Dean's Office","208","Instruction","2017-01-01","2099-12-31","N",true,"12100-1-1"]
["210","Academic and Career Preparation","210","Academic and Career Preparation","2105","Adult Basic Education","10","12105-1","ACP ABE - Nanaimo","12105-1-1","ACP ABE - Nanaimo","208","Instruction","2017-01-01","2099-12-31","N",false,"12105-1-1"]
["210","Academic and Career Preparation","210","Academic and Career Preparation","2105","Adult Basic Education","10","12105-1","ACP ABE - Nanaimo","12105-1-2","ACP ABE - Aboriginal University Bridging","208","Instruction","2017-01-01","2099-12-31","N",false,"12105-1-2"]
["210","Academic and Career Preparation","210","Academic and Career Preparation","2105","Adult Basic Education","10","12105-2","ACP ABE - Cowichan","12105-2-1","ACP ABE - Cowichan","208","Instruction","2017-01-01","2099-12-31","N",false,"12105-2-1"]
["210","Academic and Career Preparation","210","Academic and Career Preparation","2105","Adult Basic Education","10","12105-3","ACP ABE - Parksville","12105-3-1","ACP ABE - Parksville","208","Instruction","2017-01-01","2099-12-31","N",false,"12105-3-1"]
["210","Academic and Career Preparation","210","Academic and Career Preparation","2105","Adult Basic Education","10","12105-4","ACP ABE - Learning Centre","12105-4-1","ACP ABE - Learning Centre","208","Instruction","2017-01-01","2099-12-31","N",false,"12105-4-1"]
["210","Academic and Career Preparation","210","Academic and Career Preparation","2110","Adult Special Education","10","12110-1","ACP ASE - Nanaimo","12110-1-1","ACP ASE - Nanaimo","208","Instruction","2017-01-01","2099-12-31","N",false,"12110-1-1"]
["210","Academic and Career Preparation","210","Academic and Career Preparation","2110","Adult Special Education","10","12110-2","ACP ASE - Cowichan","12110-2-1","ACP ASE - Cowichan","208","Instruction","2017-01-01","2099-12-31","N",false,"12110-2-1"]
["210","Academic and Career Preparation","210","Academic and Career Preparation","2115","Foundations for Success","10","12115-1","ACP Foundations for Success","12115-1-1","ACP Foundations for Success","208","Instruction","2017-01-01","2099-12-31","N",false,"12115-1-1"]
["210","Academic and Career Preparation","210","Academic and Career Preparation","2120","Volunteer Tutors and Community Adult Literacy","10","12120-1","ACP Volunteer Tutors - Nanaimo","12120-1-1","ACP Volunteer Tutors - Nanaimo","208","Instruction","2017-01-01","2099-12-31","N",false,"12120-1-1"]
["210","Academic and Career Preparation","210","Academic and Career Preparation","2120","Volunteer Tutors and Community Adult Literacy","10","12120-2","ACP Volunteer Tutors - Cowichan","12120-2-1","ACP Volunteer Tutors - Cowichan","208","Instruction","2017-01-01","2099-12-31","N",false,"12120-2-1"]
["210","Academic and Career Preparation","210","Academic and Career Preparation","2120","Volunteer Tutors and Community Adult Literacy","10","12120-3","ACP Community Adult Literacy Programs","12120-3-1","ACP Community Adult Literacy Programs","208","Instruction","2017-01-01","2099-12-31","N",false,"12120-3-1"]
["220","Arts and Humanities","220","Arts and Humanitites","2200","Faculty of Arts and Humanities","10","12200-1","AH Faculty Dean's Office","12200-1-1","AH Faculty Dean's Office","201","Faculty Administration","2017-01-01","2099-12-31","N",false,"12200-1-1"]
["220","Arts and Humanities","220","Arts and Humanitites","2201","Arts and Humanities - Initiatives","10","12201-1","AH Faculty Initiatives","12201-1-2","AH Faculty Advising","201","Faculty Administration","2017-01-01","2099-12-31","N",false,"12201-1-2"]
["220","Arts and Humanities","220","Arts and Humanitites","2201","Arts and Humanities - Initiatives","10","12201-1","AH Faculty Initiatives","12201-1-2","AH Faculty Advising","204","Advising","2017-01-01","2099-12-31","N",true,"12201-1-2"]
["220","Arts and Humanities","220","Arts and Humanitites","2201","Arts and Humanities - Initiatives","10","12201-2","AH Faculty of Arts and Humanities - Initiatives - International Sections","12201-2-1","AH Faculty of Arts and Humanities - Initiatives - International Sections","208","Instruction","2017-01-01","2099-12-31","N",false,"12201-2-1"]
["220","Arts and Humanities","220","Arts and Humanitites","2201","Arts and Humanities - Initiatives","10","12201-3","AH Faculty of Arts and Humanities - Initiatives - Directed Studies","12201-3-1","AH Faculty of Arts and Humanities - Initiatives - Directed Studies","208","Instruction","2017-01-01","2099-12-31","N",false,"12201-3-1"]
["220","Arts and Humanities","220","Arts and Humanitites","2205","Art and Design - Graphic Design","10","12205-1","AH Art and Design - Graphic Design","12205-1-1","AH Art and Design - Graphic Design","208","Instruction","2017-01-01","2099-12-31","N",false,"12205-1-1"]
["220","Arts and Humanities","220","Arts and Humanitites","2210","Art and Design - Interior Design","10","12210-1","AH Art and Design - Interior Design","12210-1-1","AH Art and Design - Interior Design","208","Instruction","2017-01-01","2099-12-31","N",false,"12210-1-1"]
["220","Arts and Humanities","220","Arts and Humanitites","2215","Art and Design - Visual Art","10","12215-1","AH Art and Design - Visual Art","12215-1-1","AH Art and Design - Visual Art","201","Faculty Administration","2017-01-01","2099-12-31","N",false,"12215-1-1"]
["220","Arts and Humanities","220","Arts and Humanitites","2215","Art and Design - Visual Art","10","12215-1","AH Art and Design - Visual Art","12215-1-1","AH Art and Design - Visual Art","208","Instruction","2017-01-01","2099-12-31","N",true,"12215-1-1"]
["220","Arts and Humanities","220","Arts and Humanitites","2215","Art and Design - Visual Art","10","12215-1","AH Art and Design - Visual Art","12215-1-2","AH Art and Design - Art Technician","201","Faculty Administration","2017-01-01","2099-12-31","N",false,"12215-1-2"]
["220","Arts and Humanities","220","Arts and Humanitites","2215","Art and Design - Visual Art","10","12215-1","AH Art and Design - Visual Art","12215-1-2","AH Art and Design - Art Technician","208","Instruction","2017-01-01","2099-12-31","N",true,"12215-1-2"]
["220","Arts and Humanities","220","Arts and Humanitites","2215","Art and Design - Visual Art","10","12215-1","AH Art and Design - Visual Art","12215-1-3","AH Art and Design - View Gallery","201","Faculty Administration","2017-01-01","2099-12-31","N",false,"12215-1-3"]
["220","Arts and Humanities","220","Arts and Humanitites","2215","Art and Design - Visual Art","10","12215-1","AH Art and Design - Visual Art","12215-1-3","AH Art and Design - View Gallery","208","Instruction","2017-01-01","2099-12-31","N",true,"12215-1-3"]
["220","Arts and Humanities","220","Arts and Humanitites","2220","Creative Writing and Journalism","10","12220-1","AH Creative Writing and Journalism","12220-1-1","AH Creative Writing and Journalism","208","Instruction","2017-01-01","2099-12-31","N",false,"12220-1-1"]
["220","Arts and Humanities","220","Arts and Humanitites","2220","Creative Writing and Journalism","10","12220-1","AH Creative Writing and Journalism","12220-1-2","AH Creative Writing and Journalism - Extra Sections","208","Instruction","2017-01-01","2099-12-31","N",false,"12220-1-2"]
["220","Arts and Humanities","220","Arts and Humanitites","2225","English","10","12225-1","AH English","12225-1-1","AH English","208","Instruction","2017-01-01","2099-12-31","N",false,"12225-1-1"]
["220","Arts and Humanities","220","Arts and Humanitites","2225","English","10","12225-1","AH English","12225-1-2","AH English - Extra Sections","208","Instruction","2017-01-01","2099-12-31","N",false,"12225-1-2"]
["220","Arts and Humanities","220","Arts and Humanitites","2230","History","10","12230-1","AH History","12230-1-1","AH History","208","Instruction","2017-01-01","2099-12-31","N",false,"12230-1-1"]
["220","Arts and Humanities","220","Arts and Humanitites","2235","Indigenous/Xwulmuxw Studies","10","12235-1","AH Indigenous/Xwulmuxw Studies","12235-1-1","AH Indigenous/Xwulmuxw Studies","208","Instruction","2017-01-01","2099-12-31","N",false,"12235-1-1"]
["220","Arts and Humanities","220","Arts and Humanitites","2240","Media Studies","10","12240-1","AH Media Studies","12240-1-1","AH Media Studies","208","Instruction","2017-01-01","2099-12-31","N",false,"12240-1-1"]
["220","Arts and Humanities","220","Arts and Humanitites","2240","Media Studies","10","12240-1","AH Media Studies","12240-1-2","AH Media Studies - Extra Sections","208","Instruction","2017-01-01","2099-12-31","N",false,"12240-1-2"]
["220","Arts and Humanities","220","Arts and Humanitites","2245","Modern Languages Studies","10","12245-1","AH Modern Languages Studies","12245-1-1","AH Modern Languages Studies","208","Instruction","2017-01-01","2099-12-31","N",false,"12245-1-1"]
["220","Arts and Humanities","220","Arts and Humanitites","2245","Modern Languages Studies","10","12245-2","AH Asian Studies Credential","12245-2-1","AH Asian Studies Credential","208","Instruction","2017-01-01","2099-12-31","N",false,"12245-2-1"]
["220","Arts and Humanities","220","Arts and Humanitites","2250","Music","10","12250-1","AH Music","12250-1-1","AH Music","208","Instruction","2017-01-01","2099-12-31","N",false,"12250-1-1"]
["220","Arts and Humanities","220","Arts and Humanitites","2250","Music","10","12250-1","AH Music","12250-1-2","AH Music - Private Instruction","208","Instruction","2017-01-01","2099-12-31","N",false,"12250-1-2"]
["220","Arts and Humanities","220","Arts and Humanitites","2255","Studies in Women and Gender","10","12255-1","AH Studies in Women and Gender","12255-1-1","AH Studies in Women and Gender","208","Instruction","2017-01-01","2099-12-31","N",false,"12255-1-1"]
["220","Arts and Humanities","220","Arts and Humanitites","2260","Theatre","10","12260-1","AH Theatre","12260-1-1","AH Theatre","208","Instruction","2017-01-01","2099-12-31","N",false,"12260-1-1"]
["230","Education","230","Education","2300","Faculty of Education","10","12300-1","EDUC Faculty Dean's Office","12300-1-1","EDUC Faculty Dean's Office","201","Faculty Administration","2017-01-01","2099-12-31","N",false,"12300-1-1"]
["230","Education","230","Education","2301","Education - Initiatives","10","12301-1","EDUC Faculty of Education - Initiatives","12301-1-1","EDUC Faculty - Advising","201","Faculty Administration","2017-01-01","2099-12-31","N",false,"12301-1-1"]
["230","Education","230","Education","2301","Education - Initiatives","10","12301-1","EDUC Faculty of Education - Initiatives","12301-1-1","EDUC Faculty - Advising","204","Advising","2017-01-01","2099-12-31","N",true,"12301-1-1"]
["230","Education","230","Education","2301","Education - Initiatives","10","12301-1","EDUC Faculty of Education - Initiatives","12301-1-2","EDUC Faculty - Multi Media","201","Faculty Administration","2017-01-01","2099-12-31","N",false,"12301-1-2"]
["230","Education","230","Education","2301","Education - Initiatives","10","12301-1","EDUC Faculty of Education - Initiatives","12301-1-2","EDUC Faculty - Multi Media","204","Advising","2017-01-01","2099-12-31","N",true,"12301-1-2"]
["230","Education","230","Education","2301","Education - Initiatives","10","12301-3","EDUC Faculty - Directed Studies","12301-3-1","EDUC Faculty - Directed Studies","208","Instruction","2017-01-01","2099-12-31","N",false,"12301-3-1"]
["230","Education","230","Education","2301","Education - Initiatives","10","12301-4","EDUC Faculty - School Experience","12301-4-1","EDUC Faculty - School Experience","223","Field Schools","2017-01-01","2099-12-31","N",false,"12301-4-1"]
["230","Education","230","Education","2310","Education","10","12310-1","EDUC Education - Instruction","12310-1-1","EDUC Education - Instruction","208","Instruction","2017-01-01","2099-12-31","N",false,"12310-1-1"]
["230","Education","230","Education","2315","Post Bac - Secondary Education","10","12315-1","EDUC Education - Post Bac Secondary Education","12315-1-1","EDUC Education - Post Bac Secondary Education","208","Instruction","2017-01-01","2099-12-31","N",false,"12315-1-1"]
["230","Education","230","Education","2320","Kinesiology","10","12320-1","EDUC Kinesiology","12320-1-1","EDUC Kinesiology","208","Instruction","2017-01-01","2099-12-31","N",false,"12320-1-1"]
["240","Health and Human Services","240","Health and Human Services","2400","Faculty of Health and Human Services","10","12400-1","HHS Faculty Dean's Office","12400-1-1","HHS Faculty Dean's Office","201","Faculty Administration","2017-01-01","2099-12-31","N",false,"12400-1-1"]
["240","Health and Human Services","240","Health and Human Services","2400","Faculty of Health and Human Services","10","12400-2","HHS Health Programs Support","12400-2-1","HHS Health Programs Support","201","Faculty Administration","2017-01-01","2099-12-31","N",false,"12400-2-1"]
["240","Health and Human Services","240","Health and Human Services","2401","Health and Human Services - Initiatives","10","12401-2","HHS Faculty - International Sections","12401-2-1","HHS Faculty - International Sections","201","Faculty Administration","2017-01-01","2099-12-31","N",false,"12401-2-1"]
["240","Health and Human Services","240","Health and Human Services","2401","Health and Human Services - Initiatives","10","12401-2","HHS Faculty - International Sections","12401-2-1","HHS Faculty - International Sections","208","Instruction","2017-01-01","2099-12-31","N",true,"12401-2-1"]
["240","Health and Human Services","240","Health and Human Services","2401","Health and Human Services - Initiatives","10","12401-3","HHS Faculty - Directed Studies","12401-3-1","HHS Faculty - Directed Studies","201","Faculty Administration","2017-01-01","2099-12-31","N",false,"12401-3-1"]
["240","Health and Human Services","240","Health and Human Services","2401","Health and Human Services - Initiatives","10","12401-3","HHS Faculty - Directed Studies","12401-3-1","HHS Faculty - Directed Studies","208","Instruction","2017-01-01","2099-12-31","N",true,"12401-3-1"]
["240","Health and Human Services","240","Health and Human Services","2405","Bachelor of Science in Nursing","10","12405-1","HHS Bachelor of Science in Nursing","12405-1-1","HHS Bachelor of Science in Nursing","208","Instruction","2017-01-01","2099-12-31","N",false,"12405-1-1"]
["240","Health and Human Services","240","Health and Human Services","2405","Bachelor of Science in Nursing","10","12405-2","HHS Bachelor of Science in Nursing  - North Island College","12405-2-1","HHS Bachelor of Science in Nursing  - North Island College","219","Contract activity","2017-01-01","2099-12-31","N",false,"12405-2-1"]
["240","Health and Human Services","240","Health and Human Services","2410","Dental Assistant","10","12410-1","HHS Dental Assistant","12410-1-1","HHS Dental Assistant","208","Instruction","2017-01-01","2099-12-31","N",false,"12410-1-1"]
["240","Health and Human Services","240","Health and Human Services","2412","Dental Clinic","10","12412-1","HHS Dental Clinic","12412-1-1","HHS Dental Clinic","208","Instruction","2017-01-01","2099-12-31","N",false,"12412-1-1"]
["240","Health and Human Services","240","Health and Human Services","2415","Dental Hygiene","10","12415-1","HHS Dental Hygiene","12415-1-1","HHS Dental Hygiene","208","Instruction","2017-01-01","2099-12-31","N",false,"12415-1-1"]
["240","Health and Human Services","240","Health and Human Services","2420","Health Care Assistant","10","12420-1","HHS Health Care Assistant","12420-1-1","HHS Health Care Assistant","208","Instruction","2017-01-01","2099-12-31","N",false,"12420-1-1"]
["240","Health and Human Services","240","Health and Human Services","2425","Practical Nursing","10","12425-1","HHS Practical Nursing","12425-1-1","HHS Practical Nursing","208","Instruction","2017-01-01","2099-12-31","N",false,"12425-1-1"]
["240","Health and Human Services","240","Health and Human Services","2435","Child and Youth Care","10","12435-1","HHS Child and Youth Care","12435-1-1","HHS Child and Youth Care","208","Instruction","2017-01-01","2099-12-31","N",false,"12435-1-1"]
["240","Health and Human Services","240","Health and Human Services","2440","Early Childhood Education and Care","10","12440-1","HHS Early Childhood Education and Care","12440-1-1","HHS Early Childhood Education and Care","208","Instruction","2017-01-01","2099-12-31","N",false,"12440-1-1"]
["240","Health and Human Services","240","Health and Human Services","2445","Education Assistant and Community Support","10","12445-1","HHS Education Assistant and Community Support","12445-1-1","HHS Education Assistant and Community Support","208","Instruction","2017-01-01","2099-12-31","N",false,"12445-1-1"]
["240","Health and Human Services","240","Health and Human Services","2450","Social Services Diploma","10","12450-1","HHS Social Services Diploma","12450-1-1","HHS Social Services Diploma","208","Instruction","2017-01-01","2099-12-31","N",false,"12450-1-1"]
["240","Health and Human Services","240","Health and Human Services","2455","Parksville Operations","10","12455-1","HHS Parksville Operations","12455-1-1","HHS Parksville Operations","201","Faculty Administration","2017-01-01","2099-12-31","N",false,"12455-1-1"]
["260","Management","260","Management","2600","Faculty of Management","10","12600-1","FOM Faculty Dean's Office","12600-1-1","FOM Faculty Dean's Office","201","Faculty Administration","2017-01-01","2099-12-31","N",false,"12600-1-1"]
["260","Management","260","Management","2601","Faculty of Management - Initiatives","10","12601-1","FOM Faculty Initiatives","12601-1-2","FOM Advising","201","Faculty Administration","2017-01-01","2099-12-31","N",false,"12601-1-2"]
["260","Management","260","Management","2601","Faculty of Management - Initiatives","10","12601-1","FOM Faculty Initiatives","12601-1-2","FOM Advising","204","Advising","2017-01-01","2099-12-31","N",true,"12601-1-2"]
["260","Management","260","Management","2601","Faculty of Management - Initiatives","10","12601-2","FOM Faculty - International Sections","12601-2-1","FOM Faculty - International Sections","208","Instruction","2017-01-01","2099-12-31","N",false,"12601-2-1"]
["260","Management","260","Management","2601","Faculty of Management - Initiatives","10","12601-3","FOM Faculty - Directed Studies","12601-3-1","FOM Faculty - Directed Studies","208","Instruction","2017-01-01","2099-12-31","N",false,"12601-3-1"]
["260","Management","260","Management","2605","Accounting","10","12605-1","FOM Accounting","12605-1-1","FOM Accounting","208","Instruction","2017-01-01","2099-12-31","N",false,"12605-1-1"]
["260","Management","260","Management","2610","Economics","10","12610-1","FOM Economics","12610-1-1","FOM Economics","208","Instruction","2017-01-01","2099-12-31","N",false,"12610-1-1"]
["260","Management","260","Management","2615","Finance / QUME","10","12615-1","FOM Finance / QUME","12615-1-1","FOM Finance / QUME","208","Instruction","2017-01-01","2099-12-31","N",false,"12615-1-1"]
["260","Management","260","Management","2620","Management / Law","10","12620-1","FOM Management / Law","12620-1-1","FOM Management / Law","208","Instruction","2017-01-01","2099-12-31","N",false,"12620-1-1"]
["260","Management","260","Management","2620","Management / Law","10","12620-1","FOM Management / Law","12620-1-2","FOM Management / Law - Extra Sections","208","Instruction","2017-01-01","2099-12-31","N",false,"12620-1-2"]
["260","Management","260","Management","2625","Marketing","10","12625-1","FOM Marketing","12625-1-1","FOM Marketing","208","Instruction","2017-01-01","2099-12-31","N",false,"12625-1-1"]
["260","Management","260","Management","2630","Recreation and Tourism","10","12630-1","FOM Recreation and Tourism","12630-1-1","FOM Recreation and Tourism","208","Instruction","2017-01-01","2099-12-31","N",false,"12630-1-1"]
["260","Management","260","Management","2635","Hospitality Management","10","12635-1","FOM Hospitality Management","12635-1-1","FOM Hospitality Management","208","Instruction","2017-01-01","2099-12-31","N",false,"12635-1-1"]
["260","Management","260","Management","2635","Hospitality Management","10","12635-2","FOM Hospitality Management - Lab","12635-2-1","FOM Hospitality Management - Lab","208","Instruction","2017-01-01","2099-12-31","N",false,"12635-2-1"]
["260","Management","260","Management","2635","Hospitality Management","10","12635-3","FOM Hospitality Management - Discovery Room Lab","12635-3-1","FOM Hospitality Management - Discovery Room Lab","208","Instruction","2017-01-01","2099-12-31","N",false,"12635-3-1"]
["260","Management","260","Management","2635","Hospitality Management","10","12635-4","FOM Hospitality Management - Field Trips","12635-4-1","FOM Hospitality Management - Field Trips","223","Field Schools","2017-01-01","2099-12-31","N",false,"12635-4-1"]
["270","Science and Technology","270","Science and Technology","2700","Faculty of Science and Technology","10","12700-1","ST Faculty Dean's Office","12700-1-1","ST Faculty Dean's Office","201","Faculty Administration","2017-01-01","2099-12-31","N",false,"12700-1-1"]
["270","Science and Technology","270","Science and Technology","2700","Faculty of Science and Technology","10","12700-2","ST Faculty Administration","12700-2-1","ST Faculty Administration","201","Faculty Administration","2017-01-01","2099-12-31","N",false,"12700-2-1"]
["270","Science and Technology","270","Science and Technology","2701","Science and Technology - Initiatives","10","12701-1","ST Faculty Initiatives","12701-1-2","ST Faculty Advising","201","Faculty Administration","2017-01-01","2099-12-31","N",false,"12701-1-2"]
["270","Science and Technology","270","Science and Technology","2701","Science and Technology - Initiatives","10","12701-1","ST Faculty Initiatives","12701-1-2","ST Faculty Advising","204","Advising","2017-01-01","2099-12-31","N",true,"12701-1-2"]
["270","Science and Technology","270","Science and Technology","2701","Science and Technology - Initiatives","10","12701-1","ST Faculty Initiatives","12701-1-4","ST Fumehood Hazardous Waste Disposal","201","Faculty Administration","2017-01-01","2099-12-31","N",false,"12701-1-4"]
["270","Science and Technology","270","Science and Technology","2701","Science and Technology - Initiatives","10","12701-1","ST Faculty Initiatives","12701-1-4","ST Fumehood Hazardous Waste Disposal","204","Advising","2017-01-01","2099-12-31","N",true,"12701-1-4"]
["270","Science and Technology","270","Science and Technology","2701","Science and Technology - Initiatives","10","12701-1","ST Faculty Initiatives","12701-1-5","ST Bamfield - Fellowships","201","Faculty Administration","2017-01-01","2099-12-31","N",false,"12701-1-5"]
["270","Science and Technology","270","Science and Technology","2701","Science and Technology - Initiatives","10","12701-1","ST Faculty Initiatives","12701-1-5","ST Bamfield - Fellowships","204","Advising","2017-01-01","2099-12-31","N",true,"12701-1-5"]
["270","Science and Technology","270","Science and Technology","2701","Science and Technology - Initiatives","10","12701-2","ST Faculty - International Sections","12701-2-1","ST Faculty - International Sections","208","Instruction","2017-01-01","2099-12-31","N",false,"12701-2-1"]
["270","Science and Technology","270","Science and Technology","2701","Science and Technology - Initiatives","10","12701-3","ST Faculty - Directed Studies","12701-3-1","ST Faculty - Directed Studies","208","Instruction","2017-01-01","2099-12-31","N",false,"12701-3-1"]
["270","Science and Technology","270","Science and Technology","2710","Biology","10","12710-1","ST Biology","12710-1-1","ST Biology","208","Instruction","2017-01-01","2099-12-31","N",false,"12710-1-1"]
["270","Science and Technology","270","Science and Technology","2715","Chemistry","10","12715-1","ST Chemistry","12715-1-1","ST Chemistry","208","Instruction","2017-01-01","2099-12-31","N",false,"12715-1-1"]
["270","Science and Technology","270","Science and Technology","2720","Computer Science","10","12720-1","ST Computer Science","12720-1-1","ST Computer Science","208","Instruction","2017-01-01","2099-12-31","N",false,"12720-1-1"]
["270","Science and Technology","270","Science and Technology","2725","Earth Science / Geology","10","12725-1","ST Earth Science / Geology","12725-1-1","ST Earth Science / Geology","208","Instruction","2017-01-01","2099-12-31","N",false,"12725-1-1"]
["270","Science and Technology","270","Science and Technology","2730","Engineering","10","12730-1","ST Engineering","12730-1-1","ST Engineering","208","Instruction","2017-01-01","2099-12-31","N",false,"12730-1-1"]
["270","Science and Technology","270","Science and Technology","2735","Fisheries and Aquaculture","10","12735-1","ST Fisheries and Aquaculture","12735-1-1","ST Fisheries and Aquaculture","208","Instruction","2017-01-01","2099-12-31","N",false,"12735-1-1"]
["270","Science and Technology","270","Science and Technology","2740","Forestry","10","12740-1","ST Forestry","12740-1-1","ST Forestry","208","Instruction","2017-01-01","2099-12-31","N",false,"12740-1-1"]
["270","Science and Technology","270","Science and Technology","2745","Mathematics","10","12745-1","ST Mathematics","12745-1-1","ST Mathematics","208","Instruction","2017-01-01","2099-12-31","N",false,"12745-1-1"]
["270","Science and Technology","270","Science and Technology","2745","Mathematics","10","12745-2","ST Math Centre","12745-2-1","ST Math Centre","208","Instruction","2017-01-01","2099-12-31","N",false,"12745-2-1"]
["270","Science and Technology","270","Science and Technology","2750","Physics","10","12750-1","ST Physics","12750-1-1","ST Physics","208","Instruction","2017-01-01","2099-12-31","N",false,"12750-1-1"]
["270","Science and Technology","270","Science and Technology","2755","Resource Management and Protection","10","12755-1","ST Resource Management and Protection","12755-1-1","ST Resource Management and Protection","208","Instruction","2017-01-01","2099-12-31","N",false,"12755-1-1"]
["280","Social Sciences","280","Social Sciences","2800","Faculty of Social Sciences","10","12800-1","SS Faculty Dean's Office","12800-1-1","SS Faculty Dean's Office","201","Faculty Administration","2017-01-01","2099-12-31","N",false,"12800-1-1"]
["280","Social Sciences","280","Social Sciences","2801","Social Sciences - Initiatives","10","12801-1","SS Faculty Initiatives","12801-1-2","SS Faculty - Advising","201","Faculty Administration","2017-01-01","2099-12-31","N",false,"12801-1-2"]
["280","Social Sciences","280","Social Sciences","2801","Social Sciences - Initiatives","10","12801-1","SS Faculty Initiatives","12801-1-2","SS Faculty - Advising","204","Advising","2017-01-01","2099-12-31","N",true,"12801-1-2"]
["280","Social Sciences","280","Social Sciences","2801","Social Sciences - Initiatives","10","12801-1","SS Faculty Initiatives","12801-1-3","SS Building 355 Support","201","Faculty Administration","2017-01-01","2099-12-31","N",false,"12801-1-3"]
["280","Social Sciences","280","Social Sciences","2801","Social Sciences - Initiatives","10","12801-1","SS Faculty Initiatives","12801-1-3","SS Building 355 Support","204","Advising","2017-01-01","2099-12-31","N",true,"12801-1-3"]
["280","Social Sciences","280","Social Sciences","2801","Social Sciences - Initiatives","10","12801-1","SS Faculty Initiatives","12801-1-4","SS Recruitment and Retention","201","Faculty Administration","2017-01-01","2099-12-31","N",false,"12801-1-4"]
["280","Social Sciences","280","Social Sciences","2801","Social Sciences - Initiatives","10","12801-1","SS Faculty Initiatives","12801-1-4","SS Recruitment and Retention","204","Advising","2017-01-01","2099-12-31","N",true,"12801-1-4"]
["280","Social Sciences","280","Social Sciences","2801","Social Sciences - Initiatives","10","12801-2","SS Faculty - International Sections","12801-2-1","SS Faculty - International Sections","208","Instruction","2017-01-01","2099-12-31","N",false,"12801-2-1"]
["280","Social Sciences","280","Social Sciences","2801","Social Sciences - Initiatives","10","12801-3","SS Faculty - Directed Studies","12801-3-1","SS Faculty - Directed Studies","208","Instruction","2017-01-01","2099-12-31","N",false,"12801-3-1"]
["280","Social Sciences","280","Social Sciences","2801","Social Sciences - Initiatives","10","12801-4","SS Community Based Applied Interdisciplinary Research","12801-4-1","SS Community Based Applied Interdisciplinary Research","201","Faculty Administration","2017-01-01","2099-12-31","N",false,"12801-4-1"]
["280","Social Sciences","280","Social Sciences","2805","Anthropology","10","12805-1","SS Anthropology","12805-1-1","SS Anthropology","208","Instruction","2017-01-01","2099-12-31","N",false,"12805-1-1"]
["280","Social Sciences","280","Social Sciences","2810","Criminology","10","12810-1","SS Criminology","12810-1-1","SS Criminology","208","Instruction","2017-01-01","2099-12-31","N",false,"12810-1-1"]
["280","Social Sciences","280","Social Sciences","2815","Geography","10","12815-1","SS Geography","12815-1-1","SS Geography","208","Instruction","2017-01-01","2099-12-31","N",false,"12815-1-1"]
["280","Social Sciences","280","Social Sciences","2820","Interdisciplinary","10","12820-1","SS Interdisciplinary Studies","12820-1-1","SS Interdisciplinary Studies","208","Instruction","2017-01-01","2099-12-31","N",false,"12820-1-1"]
["280","Social Sciences","280","Social Sciences","2825","Liberal Studies","10","12825-1","SS Liberal Studies","12825-1-1","SS Liberal Studies","208","Instruction","2017-01-01","2099-12-31","N",false,"12825-1-1"]
["280","Social Sciences","280","Social Sciences","2830","Philosophy ","10","12830-1","SS Philosophy ","12830-1-1","SS Philosophy ","208","Instruction","2017-01-01","2099-12-31","N",false,"12830-1-1"]
["280","Social Sciences","280","Social Sciences","2835","Political Studies","10","12835-1","SS Political Studies","12835-1-1","SS Political Studies","208","Instruction","2017-01-01","2099-12-31","N",false,"12835-1-1"]
["280","Social Sciences","280","Social Sciences","2840","Psychology","10","12840-1","SS Psychology","12840-1-1","SS Psychology","208","Instruction","2017-01-01","2099-12-31","N",false,"12840-1-1"]
["280","Social Sciences","280","Social Sciences","2845","Sociology ","10","12845-1","SS Sociology ","12845-1-1","SS Sociology ","208","Instruction","2017-01-01","2099-12-31","N",false,"12845-1-1"]
["290","Trades and Applied Technology","290","Trades and Applied Technology","2900","Faculty of Trades and Applied Technology","10","12900-1","TAT Faculty Dean's Office","12900-1-1","TAT Faculty Dean's Office","201","Faculty Administration","2017-01-01","2099-12-31","N",false,"12900-1-1"]
["290","Trades and Applied Technology","290","Trades and Applied Technology","2900","Faculty of Trades and Applied Technology","10","12900-2","TAT Enrolment Services and Operations","12900-2-1","TAT Enrolment Services and Operations","201","Faculty Administration","2017-01-01","2099-12-31","N",false,"12900-2-1"]
["290","Trades and Applied Technology","290","Trades and Applied Technology","2901","Trades and Applied Technology - Initiatives","10","12901-1","TAT Faculty Initiatives","12901-1-2","TAT Faculty Holding Account","201","Faculty Administration","2017-01-01","2099-12-31","N",false,"12901-1-2"]
["290","Trades and Applied Technology","290","Trades and Applied Technology","2905","Office Administration","10","12905-1","TAT Applied Business Technology","12905-1-1","TAT Office Administration","208","Instruction","2017-01-01","2099-12-31","N",false,"12905-1-1"]
["290","Trades and Applied Technology","290","Trades and Applied Technology","2910","Automotive Service Technician","10","12910-1","TAT Automotive Service Technician","12910-1-1","TAT Automotive Service Technician","208","Instruction","2017-01-01","2099-12-31","N",false,"12910-1-1"]
["290","Trades and Applied Technology","290","Trades and Applied Technology","2910","Automotive Service Technician","10","12910-2","TAT Automotive Service Technician - Powell River","12910-2-1","TAT Automotive Service Technician - Powell River","208","Instruction","2017-01-01","2099-12-31","N",false,"12910-2-1"]
["290","Trades and Applied Technology","290","Trades and Applied Technology","2915","Carpentry","10","12915-1","TAT Carpentry","12915-1-1","TAT Carpentry","208","Instruction","2017-01-01","2099-12-31","N",false,"12915-1-1"]
["290","Trades and Applied Technology","290","Trades and Applied Technology","2915","Carpentry","10","12915-2","TAT Carpentry - Cowichan","12915-2-1","TAT Carpentry - Cowichan","208","Instruction","2017-01-01","2099-12-31","N",false,"12915-2-1"]
["290","Trades and Applied Technology","290","Trades and Applied Technology","2915","Carpentry","10","12915-3","TAT Carpentry - Powell River","12915-3-1","TAT Carpentry - Powell River","208","Instruction","2017-01-01","2099-12-31","N",false,"12915-3-1"]
["290","Trades and Applied Technology","290","Trades and Applied Technology","2920","Culinary Arts","10","12920-1","TAT Culinary Arts","12920-1-1","TAT Culinary Arts","208","Instruction","2017-01-01","2099-12-31","N",false,"12920-1-1"]
["290","Trades and Applied Technology","290","Trades and Applied Technology","2920","Culinary Arts","10","12920-1","TAT Culinary Arts","12920-1-1","TAT Culinary Arts","223","Field Schools","2017-01-01","2099-12-31","N",true,"12920-1-1"]
["290","Trades and Applied Technology","290","Trades and Applied Technology","2920","Culinary Arts","10","12920-1","TAT Culinary Arts","12920-1-2","TAT Culinary Arts - Nanaimo - Competitions & Field Trips","208","Instruction","2017-01-01","2099-12-31","N",false,"12920-1-2"]
["290","Trades and Applied Technology","290","Trades and Applied Technology","2920","Culinary Arts","10","12920-1","TAT Culinary Arts","12920-1-2","TAT Culinary Arts - Nanaimo - Competitions & Field Trips","223","Field Schools","2017-01-01","2099-12-31","N",true,"12920-1-2"]
["290","Trades and Applied Technology","290","Trades and Applied Technology","2920","Culinary Arts","10","12920-2","TAT Culinary Arts - Cowichan","12920-2-1","TAT Culinary Arts - Cowichan","208","Instruction","2017-01-01","2099-12-31","N",false,"12920-2-1"]
["290","Trades and Applied Technology","290","Trades and Applied Technology","2920","Culinary Arts","10","12920-3","TAT Culinary Arts - Powell River","12920-3-1","TAT Culinary Arts - Powell River","208","Instruction","2017-01-01","2099-12-31","N",false,"12920-3-1"]
["290","Trades and Applied Technology","290","Trades and Applied Technology","2925","Electrician","10","12925-1","TAT Electrician","12925-1-1","TAT Electrician","208","Instruction","2017-01-01","2099-12-31","N",false,"12925-1-1"]
["290","Trades and Applied Technology","290","Trades and Applied Technology","2930","Hairdressing","10","12930-1","TAT Hairdressing","12930-1-1","TAT Hairdressing","208","Instruction","2017-01-01","2099-12-31","N",false,"12930-1-1"]
["290","Trades and Applied Technology","290","Trades and Applied Technology","2930","Hairdressing","10","12930-1","TAT Hairdressing","12930-1-2","TAT Hairdressing - Student Kits","208","Instruction","2017-01-01","2099-12-31","N",false,"12930-1-2"]
["290","Trades and Applied Technology","290","Trades and Applied Technology","2940","Heavy Mechanical Trades","10","12940-1","TAT Heavy Mechanical Trades","12940-1-1","TAT Heavy Mechanical Trades","208","Instruction","2017-01-01","2099-12-31","N",false,"12940-1-1"]
["290","Trades and Applied Technology","290","Trades and Applied Technology","2945","Horticultural Technician","10","12945-1","TAT Horticultural Technician","12945-1-1","TAT Horticultural Technician","208","Instruction","2017-01-01","2099-12-31","N",false,"12945-1-1"]
["290","Trades and Applied Technology","290","Trades and Applied Technology","2950","Information Technology & Applied Systems","10","12950-1","TAT Information Technology and Applied Systems","12950-1-1","TAT Information Technology and Applied Systems","208","Instruction","2017-01-01","2099-12-31","N",false,"12950-1-1"]
["290","Trades and Applied Technology","290","Trades and Applied Technology","2955","Motorcycle & Marine Technician","10","12955-1","TAT Motorcycle and Marine Technician","12955-1-1","TAT Motorcycle and Marine Technician","208","Instruction","2017-01-01","2099-12-31","N",false,"12955-1-1"]
["290","Trades and Applied Technology","290","Trades and Applied Technology","2970","Refrigeration Mechanic","10","12970-1","TAT Refrigeration Mechanic","12970-1-1","TAT Refrigeration Mechanic","208","Instruction","2017-01-01","2099-12-31","N",false,"12970-1-1"]
["290","Trades and Applied Technology","290","Trades and Applied Technology","2972","Trades Discovery","10","12972-1","TAT Trades Discovery - Nanaimo","12972-1-1","TAT Trades Discovery - Nanaimo","208","Instruction","2017-01-01","2099-12-31","N",false,"12972-1-1"]
["290","Trades and Applied Technology","290","Trades and Applied Technology","2972","Trades Discovery","10","12972-2","TAT Trades Discovery - Cowichan","12972-2-1","TAT Trades Discovery - Cowichan","208","Instruction","2017-01-01","2099-12-31","N",false,"12972-2-1"]
["290","Trades and Applied Technology","290","Trades and Applied Technology","2975","Welding","10","12975-1","TAT Welding","12975-1-1","TAT Welding","208","Instruction","2017-01-01","2099-12-31","N",false,"12975-1-1"]
["290","Trades and Applied Technology","290","Trades and Applied Technology","2975","Welding","10","12975-2","TAT Welding - Cowichan","12975-2-1","TAT Welding - Cowichan","208","Instruction","2017-01-01","2099-12-31","N",false,"12975-2-1"]
["290","Trades and Applied Technology","290","Trades and Applied Technology","2975","Welding","10","12975-3","TAT Welding - Powell River","12975-3-1","TAT Welding - Powell River","208","Instruction","2017-01-01","2099-12-31","N",false,"12975-3-1"]
["350","Indigenous Education and Engagement","350","Indigenous Education and Engagement","3500","Indigenous Education and Engagement","10","13500-1","IEE Indigenous Education and Engagement","13500-1-1","IEE Indigenous Education and Engagement","200","Academic Administration","2017-01-01","2099-12-31","N",false,"13500-1-1"]
["350","Indigenous Education and Engagement","350","Indigenous Education and Engagement","3501","Indigenous Education and Engagement - Initiatives","10","13501-1","IEE Indigenous Education and Engagement - Initiatives","13501-1-1","IEE Indigenous Education","200","Academic Administration","2017-01-01","2099-12-31","N",false,"13501-1-1"]
["350","Indigenous Education and Engagement","350","Indigenous Education and Engagement","3505","Indigenous University Bridging - ACP Partnership","10","13505-1","IEE Indigenous University Bridging - ACP Partnership","13505-1-1","IEE AUB - ACP Partnership","200","Academic Administration","2017-01-01","2099-12-31","N",false,"13505-1-1"]
["360","Library","360","Library","3600","Library","10","13600-1","LIB Library - Department","13600-1-1","LIB Library - Department","200","Academic Administration","2017-01-01","2099-12-31","N",false,"13600-1-1"]
["360","Library","360","Library","3600","Library","10","13600-1","LIB Library - Department","13600-1-1","LIB Library - Department","222","Library Services","2017-01-01","2099-12-31","N",true,"13600-1-1"]
["360","Library","360","Library","3600","Library","10","13600-2","LIB Library - Institutional","13600-2-1","LIB Library - Books and Periodicals (non-capital)","222","Library Services","2017-01-01","2099-12-31","N",false,"13600-2-1"]
["360","Library","360","Library","3600","Library","10","13600-2","LIB Library - Institutional","13600-2-2","LIB Library - Non-Recurring licensing","222","Library Services","2017-01-01","2099-12-31","N",false,"13600-2-2"]
["360","Library","360","Library","3600","Library","10","13600-2","LIB Library - Institutional","13600-2-3","LIB Library - Photo ID","222","Library Services","2017-01-01","2099-12-31","N",false,"13600-2-3"]
["360","Library","360","Library","3600","Library","10","13600-2","LIB Library - Institutional","13600-2-4","LIB Library - Special Collections","222","Library Services","2017-01-01","2099-12-31","N",false,"13600-2-4"]
["360","Library","360","Library","3610","Library - Initiatives","10","13610-1","LIB Library SSF - Student Service Fee project","13610-1-1","LIB Library SSF - Digital Access","222","Library Services","2017-01-01","2099-12-31","N",false,"13610-1-1"]
["370","Registration Services","370","Registration Services","3700","Registration","10","13700-1","REG Registration","13700-1-1","REG Registration","200","Academic Administration","2017-01-01","2099-12-31","N",false,"13700-1-1"]
["370","Registration Services","370","Registration Services","3705","Convocation","10","13705-1","REG Convocation","13705-1-1","REG Convocation","200","Academic Administration","2017-01-01","2099-12-31","N",false,"13705-1-1"]
["370","Registration Services","375","Recruitment & Advising","3750","Recruitment & Advising","10","13750-1","REG Recruitment & Advising","13750-1-1","REG Recruitment & Advising","200","Academic Administration","2019-12-01","2099-12-31","N",false,"13750-1-1"]
["200","Provost and VP Academic - Office","200","Provost and VP Academic - Office","4000","AVPA - Office","10","14000-1","PVPA - AVPA Office","14000-1-1","PVPA - AVPA Office","200","Academic Administration","2017-01-01","2099-12-31","N",false,"14000-1-1"]
["200","Provost and VP Academic - Office","200","Provost and VP Academic - Office","4000","AVPA - Office","10","14000-1","PVPA - AVPA Office","14000-1-2","PVPA - AVPA Interim AVPA Professional Development","200","Academic Administration","2017-01-01","2099-12-31","N",false,"14000-1-2"]
["201","PVPA - Centralized Academic Units","202","AVP Academic Initiatives","4010","AVPA Initiatives","10","14010-1","PVPA-CAU AVPA Initiatives","14010-1-1","PVPA-CAU AVPA Initiatives","200","Academic Administration","2017-01-01","2099-12-31","N",false,"14010-1-1"]
["201","PVPA - Centralized Academic Units","202","AVP Academic Initiatives","4010","AVPA Initiatives","10","14010-2","PVPA-CAU AVPA Initiatives - Writing Centre","14010-2-1","PVPA-CAU AVPA Initiatives - Writing Centre","210","Writing Centre","2017-01-01","2099-12-31","N",false,"14010-2-1"]
["201","PVPA - Centralized Academic Units","202","AVP Academic Initiatives","4010","AVPA Initiatives","10","14010-3","PVPA-CAU AVPA Initiatives - Dual Credit","14010-3-1","PVPA-CAU AVPA Initiatives - Dual Credit","200","Academic Administration","2020-03-28","2099-12-31","N",false,"14010-3-1"]
["410","Centre for Innovation and Excellence in Learning","410","Centre for Innovation and Excellence in Learning","4100","Centre for Innovation and Excellence in Learning","10","14100-1","CIEL Centre for Innovation and Excellence in Learning","14100-1-1","CIEL Centre for Innovation and Excellence in Learning","200","Academic Administration","2017-01-01","2099-12-31","N",false,"14100-1-1"]
["201","PVPA - Centralized Academic Units","205","PVPA University Planning and Analysis","4200","University Planning and Analysis","10","14200-1","PVPA-CAU UPA University Planning and Analysis","14200-1-1","PVPA-CAU UPA University Planning and Analysis","200","Academic Administration","2017-01-01","2099-12-31","N",false,"14200-1-1"]
["201","PVPA - Centralized Academic Units","205","PVPA University Planning and Analysis","4205","UPA Programs","10","14205-1","PVPA-CAU UPA Programs - Review","14205-1-1","PVPA-CAU UPA Programs - Review","218","Program Review","2017-01-01","2099-12-31","N",false,"14205-1-1"]
["440","Cowichan Campus","440","Cowichan Campus Administration","4405","Cowichan Campus Administration","10","14405-1","CC Campus Administration","14405-1-1","CC Campus Administration","200","Academic Administration","2017-01-01","2099-12-31","N",false,"14405-1-1"]
["440","Cowichan Campus","440","Cowichan Campus Administration","4405","Cowichan Campus Administration","10","14405-2","CC Campus Initiatives","14405-2-1","CC Campus Initiatives","200","Academic Administration","2017-01-01","2099-12-31","N",false,"14405-2-1"]
["440","Cowichan Campus","440","Cowichan Campus Administration","4408","Cowichan Student Services","10","14408-1","CC Cowichan Student Services","14408-1-1","CC Student Services","200","Academic Administration","2017-01-01","2099-12-31","N",false,"14408-1-1"]
["440","Cowichan Campus","440","Cowichan Campus Administration","4408","Cowichan Student Services","10","14408-1","CC Cowichan Student Services","14408-1-1","CC Student Services","217","Student Support and Services","2017-01-01","2099-12-31","N",true,"14408-1-1"]
["440","Cowichan Campus","440","Cowichan Campus Administration","4408","Cowichan Student Services","10","14408-1","CC Cowichan Student Services","14408-1-2","CC Student Programs","200","Academic Administration","2017-01-01","2099-12-31","N",false,"14408-1-2"]
["440","Cowichan Campus","440","Cowichan Campus Administration","4408","Cowichan Student Services","10","14408-1","CC Cowichan Student Services","14408-1-2","CC Student Programs","217","Student Support and Services","2017-01-01","2099-12-31","N",true,"14408-1-2"]
["440","Cowichan Campus","440","Cowichan Campus Administration","4408","Cowichan Student Services","10","14408-1","CC Cowichan Student Services","14408-1-3","CC Student Assessment","200","Academic Administration","2017-01-01","2099-12-31","N",false,"14408-1-3"]
["440","Cowichan Campus","440","Cowichan Campus Administration","4408","Cowichan Student Services","10","14408-1","CC Cowichan Student Services","14408-1-3","CC Student Assessment","217","Student Support and Services","2017-01-01","2099-12-31","N",true,"14408-1-3"]
["440","Cowichan Campus","441","Cowichan Campus Operations","4410","Cowichan Campus Operations","10","14410-2","CC Strategic Enrolment Management Committee","14410-2-1","CC Strategic Enrolment Management Committee","200","Academic Administration","2017-01-01","2099-12-31","N",false,"14410-2-1"]
["440","Cowichan Campus","442","Cowichan Registration & Admissions","4420","Cowichan Registration & Admissions","10","14420-1","CC Cowichan Registration and Admissions","14420-1-1","CC Registration and Admissions","200","Academic Administration","2017-01-01","2099-12-31","N",false,"14420-1-1"]
["440","Cowichan Campus","442","Cowichan Registration & Admissions","4420","Cowichan Registration & Admissions","10","14420-1","CC Cowichan Registration and Admissions","14420-1-1","CC Registration and Admissions","217","Student Support and Services","2017-01-01","2099-12-31","N",true,"14420-1-1"]
["440","Cowichan Campus","443","Cowichan Faculty Operations","4430","Cowichan General Instruction","10","14430-1","CC Cowichan Instruction","14430-1-1","CC Instructional Support","200","Academic Administration","2017-01-01","2099-12-31","N",false,"14430-1-1"]
["440","Cowichan Campus","443","Cowichan Faculty Operations","4430","Cowichan General Instruction","10","14430-1","CC Cowichan Instruction","14430-1-2","CC Instructional Support - CYC","200","Academic Administration","2017-01-01","2099-12-31","N",false,"14430-1-2"]
["440","Cowichan Campus","443","Cowichan Faculty Operations","4430","Cowichan General Instruction","10","14430-2","CC Indigenous Science","14430-2-1","CC Indigenous Science","208","Instruction","2017-01-01","2099-12-31","N",false,"14430-2-1"]
["440","Cowichan Campus","443","Cowichan Faculty Operations","4435","Cowichan University Programs","10","14435-1","CC University Programs - Arts & Humanities","14435-1-1","CC UP - Arts & Humanities","208","Instruction","2017-01-01","2099-12-31","N",false,"14435-1-1"]
["440","Cowichan Campus","443","Cowichan Faculty Operations","4435","Cowichan University Programs","10","14435-2","CC University Programs - Education","14435-2-1","CC UP - Education","208","Instruction","2017-01-01","2099-12-31","N",false,"14435-2-1"]
["440","Cowichan Campus","443","Cowichan Faculty Operations","4435","Cowichan University Programs","10","14435-3","CC University Programs - Health and Human Services","14435-3-1","CC UP - Health and Human Services","208","Instruction","2017-01-01","2099-12-31","N",false,"14435-3-1"]
["440","Cowichan Campus","443","Cowichan Faculty Operations","4435","Cowichan University Programs","10","14435-4","CC University Programs - Management","14435-4-1","CC UP - Management","208","Instruction","2017-01-01","2099-12-31","N",false,"14435-4-1"]
["440","Cowichan Campus","443","Cowichan Faculty Operations","4435","Cowichan University Programs","10","14435-5","CC University Programs - Science and Technology","14435-5-1","CC UP - Science and Technology","208","Instruction","2017-01-01","2099-12-31","N",false,"14435-5-1"]
["440","Cowichan Campus","443","Cowichan Faculty Operations","4435","Cowichan University Programs","10","14435-6","CC University Programs - Social Sciences","14435-6-1","CC UP - Social Sciences","208","Instruction","2017-01-01","2099-12-31","N",false,"14435-6-1"]
["460","Powell River Campus","460","Powell River Campus Administration","4600","Powell River Administrator's Office","10","14600-1","PRC Administrator's Office","14600-1-1","PRC Administrator's Office","200","Academic Administration","2017-01-01","2099-12-31","N",false,"14600-1-1"]
["460","Powell River Campus","460","Powell River Campus Administration","4605","Powell River Campus Administration","10","14605-1","PRC Campus Administration","14605-1-1","PRC Campus Administration","200","Academic Administration","2017-01-01","2099-12-31","N",false,"14605-1-1"]
["460","Powell River Campus","460","Powell River Campus Administration","4608","Powell River Student Services","10","14608-1","PRC Student Services","14608-1-1","PRC Student Services","217","Student Support and Services","2017-01-01","2099-12-31","N",false,"14608-1-1"]
["460","Powell River Campus","460","Powell River Campus Administration","4608","Powell River Student Services","10","14608-1","PRC Student Services","14608-1-2","PRC Student Programs","217","Student Support and Services","2017-01-01","2099-12-31","N",false,"14608-1-2"]
["460","Powell River Campus","460","Powell River Campus Administration","4608","Powell River Student Services","10","14608-1","PRC Student Services","14608-1-3","PRC Student Services Training Support","217","Student Support and Services","2017-01-01","2099-12-31","N",false,"14608-1-3"]
["460","Powell River Campus","463","Powell River Faculty Operations","4630","Powell River General Instruction","10","14630-1","PRC Instructional Support","14630-1-1","PRC Computer Lab","200","Academic Administration","2017-01-01","2099-12-31","N",false,"14630-1-1"]
["460","Powell River Campus","463","Powell River Faculty Operations","4630","Powell River General Instruction","10","14630-1","PRC Instructional Support","14630-1-2","PRC Flexible FTE's","200","Academic Administration","2017-01-01","2099-12-31","N",false,"14630-1-2"]
["460","Powell River Campus","463","Powell River Faculty Operations","4630","Powell River General Instruction","10","14630-2","PRC Human Services","14630-2-1","PRC Human Services","208","Instruction","2017-01-01","2099-12-31","N",false,"14630-2-1"]
["460","Powell River Campus","463","Powell River Faculty Operations","4630","Powell River General Instruction","10","14630-3","PRC Home Care Assistant","14630-3-1","PRC Home Care Assistant","208","Instruction","2017-01-01","2099-12-31","N",false,"14630-3-1"]
["460","Powell River Campus","463","Powell River Faculty Operations","4630","Powell River General Instruction","10","14630-4","PRC Dual Credit - SD 47","14630-4-1","PRC Dual Credit - SD 47","208","Instruction","2017-01-01","2099-12-31","N",false,"14630-4-1"]
["460","Powell River Campus","463","Powell River Faculty Operations","4635","Powell River University Programs","10","14635-1","PRC University Programs","14635-1-1","PRC University Programs","208","Instruction","2017-01-01","2099-12-31","N",false,"14635-1-1"]
["500","Scholarship, Research and Creative Activity","500","Scholarship, Research and Creative Activity","5000","Scholarship, Research & Creative Activity","10","15000-1","SRCA Scholarship, Research & Creative Activity","15000-1-1","SRCA Research Office","216","Research Administration","2017-01-01","2099-12-31","N",false,"15000-1-1"]
["500","Scholarship, Research and Creative Activity","500","Scholarship, Research and Creative Activity","5000","Scholarship, Research & Creative Activity","10","15000-1","SRCA Scholarship, Research & Creative Activity","15000-1-2","SRCA AVP Professional Development","216","Research Administration","2017-01-01","2099-12-31","N",false,"15000-1-2"]
["500","Scholarship, Research and Creative Activity","500","Scholarship, Research and Creative Activity","5001","Research Initiatives","10","15001-1","SRCA SSF Funds","15001-1-1","SRCA SSF Funds - Experiential Learning","216","Research Administration","2017-01-01","2099-12-31","N",false,"15001-1-1"]
["500","Scholarship, Research and Creative Activity","500","Scholarship, Research and Creative Activity","5005","Research Compliance","10","15005-1","SRCA Animal Care","15005-1-1","SRCA Animal Care","216","Research Administration","2017-01-01","2099-12-31","N",false,"15005-1-1"]
["500","Scholarship, Research and Creative Activity","500","Scholarship, Research and Creative Activity","5005","Research Compliance","10","15005-2","SRCA Research Ethics Board","15005-2-1","SRCA Research Ethics Board","216","Research Administration","2017-01-01","2099-12-31","N",false,"15005-2-1"]
["500","Scholarship, Research and Creative Activity","500","Scholarship, Research and Creative Activity","5005","Research Compliance","10","15005-3","SRCA Biosafety","15005-3-1","SRCA Biosafety","216","Research Administration","2020-03-28","2099-12-31","N",false,"15005-3-1"]
["500","Scholarship, Research and Creative Activity","500","Scholarship, Research and Creative Activity","5020","VIU Internal Awards","10","15020-1","SRCA Scholarly Research","15020-1-1","SRCA Scholarly Research","216","Research Administration","2017-01-01","2099-12-31","N",false,"15020-1-1"]
["500","Scholarship, Research and Creative Activity","500","Scholarship, Research and Creative Activity","5020","VIU Internal Awards","10","15020-2","SRCA Student Conferences","15020-2-1","SRCA Student Conferences","216","Research Administration","2017-01-01","2099-12-31","N",false,"15020-2-1"]
["500","Scholarship, Research and Creative Activity","500","Scholarship, Research and Creative Activity","5020","VIU Internal Awards","10","15020-3","SRCA Travel and Conferences","15020-3-1","SRCA Travel and Conferences","216","Research Administration","2017-01-01","2099-12-31","N",false,"15020-3-1"]
["500","Scholarship, Research and Creative Activity","500","Scholarship, Research and Creative Activity","5025","VIU Internal Awards - VIURAC","10","15025-1","SRCA VIURAC Research Fund","15025-1-1","SRCA VIURAC Research Fund","315","VIURAC RF","2017-01-01","2099-12-31","N",false,"15025-1-1"]
["550","Student Affairs","550","Student Affairs Division","5500","Student Affairs Division","10","15500-1","SA Student Affairs Division","15500-1-1","SA Student Affairs Division","200","Academic Administration","2017-01-01","2099-12-31","N",false,"15500-1-1"]
["550","Student Affairs","550","Student Affairs Division","5501","Student Affairs Division - Initiatives","10","15501-2","SA Prior Learning Assessment","15501-2-1","SA Prior Learning Assessment","217","Student Support and Services","2017-01-01","2099-12-31","N",false,"15501-2-1"]
["550","Student Affairs","550","Student Affairs Division","5501","Student Affairs Division - Initiatives","10","15501-3","SA Community Engagement","15501-3-1","SA Community Engagement","217","Student Support and Services","2020-03-28","2099-12-31","N",false,"15501-3-1"]
["550","Student Affairs","551","Student Affairs Department","5516","Assessment and Invigilation","10","15516-1","SA Assessment and Invigilation","15516-1-1","SA Assessment and Invigilation","217","Student Support and Services","2017-01-01","2099-12-31","N",false,"15516-1-1"]
["550","Student Affairs","551","Student Affairs Department","5516","Assessment and Invigilation","10","15516-1","SA Assessment and Invigilation","15516-1-2","SA Peer Helpers","217","Student Support and Services","2017-01-01","2099-12-31","N",false,"15516-1-2"]
["550","Student Affairs","551","Student Affairs Department","5517","Student Services Counselling","10","15517-1","SA Student Services Counselling","15517-1-1","SA Student Services Counselling","217","Student Support and Services","2017-01-01","2099-12-31","N",false,"15517-1-1"]
["550","Student Affairs","551","Student Affairs Department","5518","Accessibility Services","10","15518-1","SA Accessibility Services","15518-1-1","SA Accessibility Services","217","Student Support and Services","2017-01-01","2099-12-31","N",false,"15518-1-1"]
["550","Student Affairs","551","Student Affairs Department","5518","Accessibility Services","10","15518-1","SA Accessibility Services","15518-1-2","SA Extraordinary Accommodations","217","Student Support and Services","2017-01-01","2099-12-31","N",false,"15518-1-2"]
["550","Student Affairs","551","Student Affairs Department","5518","Accessibility Services","10","15518-1","SA Accessibility Services","15518-1-3","SA International Accessibility Services","217","Student Support and Services","2017-01-01","2099-12-31","N",false,"15518-1-3"]
["550","Student Affairs","551","Student Affairs Department","5518","Accessibility Services","10","15518-1","SA Accessibility Services","15518-1-4","SA Interpreting","217","Student Support and Services","2017-01-01","2099-12-31","N",false,"15518-1-4"]
["550","Student Affairs","551","Student Affairs Department","5518","Accessibility Services","10","15518-1","SA Accessibility Services","15518-1-5","SA Learning Disability Assessment","217","Student Support and Services","2017-01-01","2099-12-31","N",false,"15518-1-5"]
["550","Student Affairs","551","Student Affairs Department","5519","Financial Aid and Awards","10","15519-1","SA Financial Aid","15519-1-1","SA Financial Aid","217","Student Support and Services","2017-01-01","2099-12-31","N",false,"15519-1-1"]
["550","Student Affairs","551","Student Affairs Department","5519","Financial Aid and Awards","10","15519-2","SA Financial Aid - Scholarships and Bursaries","15519-2-1","SA Foundation Matching","217","Student Support and Services","2017-01-01","2099-12-31","N",false,"15519-2-1"]
["550","Student Affairs","551","Student Affairs Department","5519","Financial Aid and Awards","10","15519-2","SA Financial Aid - Scholarships and Bursaries","15519-2-2","SA Scholarships","217","Student Support and Services","2017-01-01","2099-12-31","N",false,"15519-2-2"]
["550","Student Affairs","551","Student Affairs Department","5519","Financial Aid and Awards","10","15519-2","SA Financial Aid - Scholarships and Bursaries","15519-2-3","SA Executive Scholarships","217","Student Support and Services","2017-01-01","2099-12-31","N",false,"15519-2-3"]
["550","Student Affairs","551","Student Affairs Department","5519","Financial Aid and Awards","10","15519-2","SA Financial Aid - Scholarships and Bursaries","15519-2-4","SA Tuition Bursaries","217","Student Support and Services","2017-01-01","2099-12-31","N",false,"15519-2-4"]
["550","Student Affairs","551","Student Affairs Department","5520","Health and Wellness","10","15520-1","SA Health and Wellness Centre","15520-1-1","SA Health and Wellness Centre","217","Student Support and Services","2017-01-01","2099-12-31","N",false,"15520-1-1"]
["550","Student Affairs","551","Student Affairs Department","5520","Health and Wellness","10","15520-2","SA SSF Funds (HW)","15520-2-1","SA SSF Funds (HW) - Health and Wellness","217","Student Support and Services","2017-01-01","2099-12-31","N",false,"15520-2-1"]
["550","Student Affairs","551","Student Affairs Department","5522","Student Conduct","10","15522-1","SA Student Conduct - Administration","15522-1-1","SA Student Conduct - Administration","217","Student Support and Services","2017-01-01","2099-12-31","N",false,"15522-1-1"]
["550","Student Affairs","555","Student Engagement and Experiential Learning","5550","Student Engagement and Experiential Learning Department","10","15550-2","SA SSF Funds (EL)","15550-2-1","SA SSF Funds (EL) - Co-Curricular Engagement and Learning","217","Student Support and Services","2017-01-01","2099-12-31","N",false,"15550-2-1"]
["550","Student Affairs","555","Student Engagement and Experiential Learning","5550","Student Engagement and Experiential Learning Department","10","15550-2","SA SSF Funds (EL)","15550-2-2","SA SSF Funds (EL) - Research","217","Student Support and Services","2021-03-27","2099-12-31","N",false,"15550-2-2"]
["550","Student Affairs","555","Student Engagement and Experiential Learning","5555","Centre for Experiential Learning","10","15555-1","SA Centre for Experiential Learning","15555-1-1","SA Centre for Experiential Learning","217","Student Support and Services","2017-01-01","2099-12-31","N",false,"15555-1-1"]
["550","Student Affairs","555","Student Engagement and Experiential Learning","5555","Centre for Experiential Learning","10","15555-2","SA New Student Orientation","15555-2-1","SA New Student Orientation","217","Student Support and Services","2017-01-01","2099-12-31","N",false,"15555-2-1"]
["550","Student Affairs","555","Student Engagement and Experiential Learning","5556","Co-Op Programs","10","15556-1","SA Co-Op Programs - Computer Science","15556-1-1","SA Co-Op Programs - Computer Science","225","Co-Op Programs","2017-01-01","2099-12-31","N",false,"15556-1-1"]
["550","Student Affairs","555","Student Engagement and Experiential Learning","5556","Co-Op Programs","10","15556-2","SA Co-Op Programs - Culinary Arts","15556-2-1","SA Co-Op Programs - Culinary Arts","225","Co-Op Programs","2017-01-01","2099-12-31","N",false,"15556-2-1"]
["550","Student Affairs","555","Student Engagement and Experiential Learning","5556","Co-Op Programs","10","15556-3","SA Co-Op Programs - Engineering","15556-3-1","SA Co-Op Programs - Engineering","225","Co-Op Programs","2017-01-01","2099-12-31","N",false,"15556-3-1"]
["550","Student Affairs","555","Student Engagement and Experiential Learning","5556","Co-Op Programs","10","15556-4","SA Co-Op Programs - Hospitality","15556-4-1","SA Co-Op Programs - Hospitality","225","Co-Op Programs","2017-01-01","2099-12-31","N",false,"15556-4-1"]
["550","Student Affairs","555","Student Engagement and Experiential Learning","5556","Co-Op Programs","10","15556-5","SA Co-Op Programs - Rec and Tourism","15556-5-1","SA Co-Op Programs - Rec and Tourism","225","Co-Op Programs","2017-01-01","2099-12-31","N",false,"15556-5-1"]
["550","Student Affairs","555","Student Engagement and Experiential Learning","5556","Co-Op Programs","10","15556-6","SA Co-Op Programs - Baking","15556-6-1","SA Co-Op Programs - Baking","225","Co-Op Programs","2021-03-27","2099-12-31","N",false,"15556-6-1"]
["550","Student Affairs","555","Student Engagement and Experiential Learning","5557","Internships","10","15557-1","SA Internships - Creative Writing","15557-1-1","SA Internships - Creative Writing","224","Field Experience / Practicum","2017-01-01","2099-12-31","N",false,"15557-1-1"]
["550","Student Affairs","555","Student Engagement and Experiential Learning","5557","Internships","10","15557-2","SA Internships - Criminology","15557-2-1","SA Internships - Criminology","224","Field Experience / Practicum","2017-01-01","2099-12-31","N",false,"15557-2-1"]
["550","Student Affairs","555","Student Engagement and Experiential Learning","5557","Internships","10","15557-3","SA Internships - Education","15557-3-1","SA Internships - Education","224","Field Experience / Practicum","2017-01-01","2099-12-31","N",false,"15557-3-1"]
["550","Student Affairs","555","Student Engagement and Experiential Learning","5557","Internships","10","15557-4","SA Internships  - Graphic Design","15557-4-1","SA Internships  - Graphic Design","224","Field Experience / Practicum","2017-01-01","2099-12-31","N",false,"15557-4-1"]
["550","Student Affairs","555","Student Engagement and Experiential Learning","5557","Internships","10","15557-5","SA Internships - Interior Design","15557-5-1","SA Internships - Interior Design","224","Field Experience / Practicum","2017-01-01","2099-12-31","N",false,"15557-5-1"]
["550","Student Affairs","555","Student Engagement and Experiential Learning","5557","Internships","10","15557-6","SA Internships - Philosophy","15557-6-1","SA Internships - Philosophy","224","Field Experience / Practicum","2017-01-01","2099-12-31","N",false,"15557-6-1"]
["550","Student Affairs","555","Student Engagement and Experiential Learning","5557","Internships","10","15557-7","SA Internships - Physical Education","15557-7-1","SA Internships - Physical Education","224","Field Experience / Practicum","2017-01-01","2099-12-31","N",false,"15557-7-1"]
["550","Student Affairs","555","Student Engagement and Experiential Learning","5558","On Campus Employment","10","15558-1","SA On Campus Employment - Contracts","15558-1-1","SA On Campus Employment - Work Op","217","Student Support and Services","2017-01-01","2099-12-31","N",false,"15558-1-1"]
["550","Student Affairs","555","Student Engagement and Experiential Learning","5558","On Campus Employment","10","15558-1","SA On Campus Employment - Contracts","15558-1-2","SA On Campus employment - Student Summer employment","217","Student Support and Services","2017-01-01","2099-12-31","N",false,"15558-1-2"]
["550","Student Affairs","558","Athletics and Recreation","5580","Athletics and Recreation Department","10","15580-1","SA Athletics and Recreation Department","15580-1-1","SA Athletics and Recreation Department","200","Academic Administration","2017-01-01","2099-12-31","N",false,"15580-1-1"]
["550","Student Affairs","558","Athletics and Recreation","5580","Athletics and Recreation Department","10","15580-2","SA Athletics and Recreation Department - Student Activity Fee","15580-2-1","SA Athletics and Recreation Department - Student Activity Fee","200","Academic Administration","2021-03-27","2099-12-31","N",false,"15580-2-1"]
["550","Student Affairs","558","Athletics and Recreation","5581","Athletics and Recreation Department - Initiatives","10","15581-1","SA Athletics and Recreation Fundraising","15581-1-1","SA Athletics and Recreation Fundraising","217","Student Support and Services","2017-01-01","2099-12-31","N",false,"15581-1-1"]
["550","Student Affairs","558","Athletics and Recreation","5581","Athletics and Recreation Department - Initiatives","10","15581-2","SA National Travel Pool","15581-2-1","SA National Travel Pool","217","Student Support and Services","2017-01-01","2099-12-31","N",false,"15581-2-1"]
["550","Student Affairs","558","Athletics and Recreation","5581","Athletics and Recreation Department - Initiatives","10","15581-3","SA Sports Development Centre","15581-3-1","SA Sports Development Centre","217","Student Support and Services","2017-01-01","2099-12-31","N",false,"15581-3-1"]
["550","Student Affairs","558","Athletics and Recreation","5585","Gym Management","10","15585-1","SA Gym Management","15585-1-1","SA Gym Management","217","Student Support and Services","2017-01-01","2099-12-31","N",false,"15585-1-1"]
["550","Student Affairs","558","Athletics and Recreation","5586","Recreation","10","15586-1","SA Recreation - Fitness","15586-1-1","SA Recreation - Fitness","217","Student Support and Services","2017-01-01","2099-12-31","N",false,"15586-1-1"]
["550","Student Affairs","558","Athletics and Recreation","5587","Outdoor Recreation","10","15587-1","SA Outdoor Recreation","15587-1-1","SA Outdoor Recreation","217","Student Support and Services","2017-01-01","2099-12-31","N",false,"15587-1-1"]
["550","Student Affairs","558","Athletics and Recreation","5588","Athletics","10","15588-1","SA Athletics","15588-1-1","SA Athletics","217","Student Support and Services","2017-01-01","2099-12-31","N",false,"15588-1-1"]
["550","Student Affairs","558","Athletics and Recreation","5588","Athletics","10","15588-2","SA Athletics - Basketball","15588-2-1","SA Men's Basketball","217","Student Support and Services","2017-01-01","2099-12-31","N",false,"15588-2-1"]
["550","Student Affairs","558","Athletics and Recreation","5588","Athletics","10","15588-2","SA Athletics - Basketball","15588-2-2","SA Women's Basketball","217","Student Support and Services","2017-01-01","2099-12-31","N",false,"15588-2-2"]
["550","Student Affairs","558","Athletics and Recreation","5588","Athletics","10","15588-3","SA Athletics - Soccer","15588-3-1","SA Men's Soccer","217","Student Support and Services","2017-01-01","2099-12-31","N",false,"15588-3-1"]
["550","Student Affairs","558","Athletics and Recreation","5588","Athletics","10","15588-3","SA Athletics - Soccer","15588-3-2","SA Women's Soccer","217","Student Support and Services","2017-01-01","2099-12-31","N",false,"15588-3-2"]
["550","Student Affairs","558","Athletics and Recreation","5588","Athletics","10","15588-4","SA Athletics - Volleyball","15588-4-1","SA Men's Volleyball","217","Student Support and Services","2017-01-01","2099-12-31","N",false,"15588-4-1"]
["550","Student Affairs","558","Athletics and Recreation","5588","Athletics","10","15588-4","SA Athletics - Volleyball","15588-4-2","SA Women's Volleyball","217","Student Support and Services","2017-01-01","2099-12-31","N",false,"15588-4-2"]
["550","Student Affairs","558","Athletics and Recreation","5588","Athletics","10","15588-5","SA Athletics - Club","15588-5-1","SA Athletics - Club Badminton","217","Student Support and Services","2017-01-01","2099-12-31","N",false,"15588-5-1"]
["550","Student Affairs","558","Athletics and Recreation","5588","Athletics","10","15588-5","SA Athletics - Club","15588-5-3","SA Athletics - Club Golf","217","Student Support and Services","2017-01-01","2099-12-31","N",false,"15588-5-3"]
["550","Student Affairs","558","Athletics and Recreation","5588","Athletics","10","15588-5","SA Athletics - Club","15588-5-7","SA Athletics - Club Sport Programs","217","Student Support and Services","2021-03-27","2099-12-31","N",false,"15588-5-7"]
["600","CFO and VP Administration - Office","600","CFO and VP Administration - Office","6000","CFO VP Administration Office","10","16000-1","CFOVPA Office","16000-1-1","CFOVPA Office","100","Administration","2017-01-01","2099-12-31","N",false,"16000-1-1"]
["600","CFO and VP Administration - Office","600","CFO and VP Administration - Office","6000","CFO VP Administration Office","10","16000-1","CFOVPA Office","16000-1-2","CFOVPA Professional Development","100","Administration","2017-01-01","2099-12-31","N",false,"16000-1-2"]
["603","CFOVPA - ASA (Administrative Support Activity)","603","CFOVPA - ASA (Administrative Support Activity)","6030","CFOVPA ASA (Administrative Support Activity)","10","16030-1","CFOVPA ASA - Divisional Holding","16030-1-1","CFOVPA ASA - Divisional Holding","100","Administration","2017-01-01","2099-12-31","N",false,"16030-1-1"]
["603","CFOVPA - ASA (Administrative Support Activity)","603","CFOVPA - ASA (Administrative Support Activity)","6030","CFOVPA ASA (Administrative Support Activity)","10","16030-1","CFOVPA ASA - Divisional Holding","16030-1-1","CFOVPA ASA - Divisional Holding","101","Institutional","2017-01-01","2099-12-31","N",true,"16030-1-1"]
["603","CFOVPA - ASA (Administrative Support Activity)","603","CFOVPA - ASA (Administrative Support Activity)","6030","CFOVPA ASA (Administrative Support Activity)","10","16030-2","CFOVPA ASA - COVID 19 Expenditures","16030-2-1","CFOVPA ASA - COVID 19 Expenditures","101","Institutional","2017-01-01","2099-12-31","N",false,"16030-2-1"]
["610","Information Technology Services","610","Information Technology Services","6100","Information Technology Services Division","10","16100-1","IT Information Technology Division","16100-1-1","IT Information Technology Division","100","Administration","2017-01-01","2099-12-31","N",false,"16100-1-1"]
["610","Information Technology Services","611","IT Operations","6110","IT Operations","10","16110-2","IT Information Technology Operations - Institutional","16110-2-1","IT Operations - Institutional Services","101","Institutional","2021-03-27","2099-12-31","N",false,"16110-2-1"]
["610","Information Technology Services","611","IT Operations","6110","IT Operations","10","16110-3","IT Operations - SSF","16110-3-1","IT Operations - SSF Funds - Access to Technology","101","Institutional","2017-01-01","2099-12-31","N",false,"16110-3-1"]
["610","Information Technology Services","611","IT Operations","6120","Client Services","10","16120-1","IT Client Services Department","16120-1-1","IT Client Services Department","100","Administration","2017-01-01","2099-12-31","N",false,"16120-1-1"]
["610","Information Technology Services","611","IT Operations","6130","Infrastructure","10","16130-1","IT Infrastructure Department","16130-1-1","IT Infrastructure Department","100","Administration","2017-01-01","2099-12-31","N",false,"16130-1-1"]
["610","Information Technology Services","611","IT Operations","6130","Infrastructure","10","16130-2","IT Infrastructure - Institutional","16130-2-1","IT Infrastructure - Institutional","101","Institutional","2017-01-01","2099-12-31","N",false,"16130-2-1"]
["610","Information Technology Services","611","IT Operations","6130","Infrastructure","10","16130-2","IT Infrastructure - Institutional","16130-2-2","IT Infrastructure - Phone Service","101","Institutional","2017-01-01","2099-12-31","N",false,"16130-2-2"]
["610","Information Technology Services","611","IT Operations","6140","End User Technology","10","16140-1","IT End User Technology Department","16140-1-1","IT End User Technology","100","Administration","2020-03-28","2099-12-31","N",false,"16140-1-1"]
["610","Information Technology Services","611","IT Operations","6140","End User Technology","10","16140-2","IT End User Technology - Institutional","16140-2-1","IT End User Technology - Institutional","101","Institutional","2020-03-28","2099-12-31","N",false,"16140-2-1"]
["610","Information Technology Services","611","IT Operations","6140","End User Technology","10","16140-2","IT End User Technology - Institutional","16140-2-2","IT End User Technology - Student Printing","101","Institutional","2017-01-01","2099-12-31","N",false,"16140-2-2"]
["610","Information Technology Services","611","IT Operations","6150","Web Management","10","16150-1","IT Web Management Department","16150-1-1","IT Web Management Department","100","Administration","2017-01-01","2099-12-31","N",false,"16150-1-1"]
["610","Information Technology Services","611","IT Operations","6160","IT Security","10","16160-1","IT Security Department","16160-1-1","IT Security Department","100","Administration","2017-01-01","2099-12-31","N",false,"16160-1-1"]
["610","Information Technology Services","618","Enterprise Systems","6180","Enterprise Systems","10","16180-1","IT Enterprise Systems Department","16180-1-1","IT Enterprise Systems Department","100","Administration","2017-01-01","2099-12-31","N",false,"16180-1-1"]
["610","Information Technology Services","618","Enterprise Systems","6180","Enterprise Systems","10","16180-2","IT Enterprise Systems - Institutional","16180-2-2","IT ES Institutional - TLASR Project","101","Institutional","2017-01-01","2099-12-31","N",false,"16180-2-2"]
["640","Facilities Services and Campus Development","640","Facilities and Ancillary Services","6400","Facilities & Ancillary Services","10","16400-1","FSCD Facilities & Ancillary Services - Administration","16400-1-1","FSCD Facilities and Ancillary - AVP Office","100","Administration","2017-01-01","2099-12-31","N",false,"16400-1-1"]
["640","Facilities Services and Campus Development","643","Facilities Services and Campus Development","6430","Facilities Services and Campus Development","10","16430-1","FSCD Facilities Services and Campus Development","16430-1-1","FSCD Administration","100","Administration","2017-01-01","2099-12-31","N",false,"16430-1-1"]
["640","Facilities Services and Campus Development","643","Facilities Services and Campus Development","6432","Facilities Services","10","16432-1","FSCD Recoveries","16432-1-1","FSCD Recoveries - Physical Plant","100","Administration","2017-01-01","2099-12-31","N",false,"16432-1-1"]
["640","Facilities Services and Campus Development","643","Facilities Services and Campus Development","6432","Facilities Services","10","16432-1","FSCD Recoveries","16432-1-2","FSCD Recoveries - Project costs","100","Administration","2017-01-01","2099-12-31","N",false,"16432-1-2"]
["640","Facilities Services and Campus Development","643","Facilities Services and Campus Development","6432","Facilities Services","10","16432-2","FSCD Risk Management","16432-2-2","FSCD Risk Management","100","Administration","2017-01-01","2099-12-31","N",false,"16432-2-2"]
["640","Facilities Services and Campus Development","643","Facilities Services and Campus Development","6432","Facilities Services","10","16432-3","FSCD Properties","16432-3-1","FSCD HHS Portables","100","Administration","2017-01-01","2099-12-31","N",false,"16432-3-1"]
["640","Facilities Services and Campus Development","643","Facilities Services and Campus Development","6432","Facilities Services","10","16432-3","FSCD Properties","16432-3-4","FSCD Milner Gardens","100","Administration","2017-01-01","2099-12-31","N",false,"16432-3-4"]
["640","Facilities Services and Campus Development","643","Facilities Services and Campus Development","6435","Campus Development","10","16435-1","FSCD Campus Development","16435-1-1","FSCD Campus Development","100","Administration","2017-01-01","2099-12-31","N",false,"16435-1-1"]
["640","Facilities Services and Campus Development","643","Facilities Services and Campus Development","6435","Campus Development","10","16435-2","FSCD Universal Access","16435-2-1","FSCD Universal Access","100","Administration","2017-01-01","2099-12-31","N",false,"16435-2-1"]
["640","Facilities Services and Campus Development","643","Facilities Services and Campus Development","6435","Campus Development","10","16435-3","FSCD SSF Funds - UAC","16435-3-1","FSCD SSF Funds UAC - Health and Wellness","100","Administration","2017-01-01","2099-12-31","N",false,"16435-3-1"]
["640","Facilities Services and Campus Development","643","Facilities Services and Campus Development","6435","Campus Development","10","16435-4","FSCD Routine Minor Maintenance","16435-4-1","FSCD Routine Minor Maintenance","100","Administration","2017-01-01","2099-12-31","N",false,"16435-4-1"]
["640","Facilities Services and Campus Development","644","Building and Grounds","6440","Buildings and Grounds","10","16440-1","FSCD Buildings and Grounds - Administration","16440-1-1","FSCD Buildings and Grounds - Administration","100","Administration","2017-01-01","2099-12-31","N",false,"16440-1-1"]
["640","Facilities Services and Campus Development","644","Building and Grounds","6440","Buildings and Grounds","10","16440-2","FSCD Shipping & Receiving","16440-2-1","FSCD Shipping & Receiving","100","Administration","2017-01-01","2099-12-31","N",false,"16440-2-1"]
["640","Facilities Services and Campus Development","644","Building and Grounds","6440","Buildings and Grounds","10","16440-3","FSCD Mail & Delivery","16440-3-1","FSCD Mail & Delivery","100","Administration","2017-01-01","2099-12-31","N",false,"16440-3-1"]
["640","Facilities Services and Campus Development","644","Building and Grounds","6442","Fleet Management","10","16442-1","FSCD Fleet Management","16442-1-1","FSCD Fleet Management","100","Administration","2017-01-01","2099-12-31","N",false,"16442-1-1"]
["640","Facilities Services and Campus Development","644","Building and Grounds","6442","Fleet Management","10","16442-1","FSCD Fleet Management","16442-1-2","FSCD Fleet Vehicle Insurance","100","Administration","2017-01-01","2099-12-31","N",false,"16442-1-2"]
["640","Facilities Services and Campus Development","644","Building and Grounds","6445","Facilities Maintenance","10","16445-1","FSCD Facilities Maintenance - Cowichan","16445-1-1","FSCD Facilities Maintenance - Cowichan","100","Administration","2017-01-01","2099-12-31","N",false,"16445-1-1"]
["640","Facilities Services and Campus Development","644","Building and Grounds","6445","Facilities Maintenance","10","16445-2","FSCD Facilities Maintenance - CTC","16445-2-1","FSCD Facilities Maintenance - CTC","100","Administration","2017-01-01","2099-12-31","N",false,"16445-2-1"]
["640","Facilities Services and Campus Development","644","Building and Grounds","6445","Facilities Maintenance","10","16445-3","FSCD Facilities Maintenance - Deep Bay","16445-3-1","FSCD Facilities Maintenance - Deep Bay","100","Administration","2017-01-01","2099-12-31","N",false,"16445-3-1"]
["640","Facilities Services and Campus Development","644","Building and Grounds","6445","Facilities Maintenance","10","16445-4","FSCD Facilities Maintenance - G.R. Paine Centre","16445-4-1","FSCD Facilities Maintenance - G.R. Paine Centre","100","Administration","2017-01-01","2099-12-31","N",false,"16445-4-1"]
["640","Facilities Services and Campus Development","644","Building and Grounds","6445","Facilities Maintenance","10","16445-5","FSCD Facilities Maintenance - Nanaimo","16445-5-1","FSCD Facilities Maintenance - Nanaimo","100","Administration","2017-01-01","2099-12-31","N",false,"16445-5-1"]
["640","Facilities Services and Campus Development","644","Building and Grounds","6445","Facilities Maintenance","10","16445-6","FSCD Facilities Maintenance - Parksville","16445-6-1","FSCD Facilities Maintenance - Parksville","100","Administration","2017-01-01","2099-12-31","N",false,"16445-6-1"]
["640","Facilities Services and Campus Development","644","Building and Grounds","6445","Facilities Maintenance","10","16445-7","FSCD Facilities Maintenance - Powell River","16445-7-1","FSCD Facilities Maintenance - Powell River","100","Administration","2017-01-01","2099-12-31","N",false,"16445-7-1"]
["640","Facilities Services and Campus Development","644","Building and Grounds","6448","Grounds Maintenance","10","16448-1","FSCD Grounds Maintenance - Cowichan","16448-1-1","FSCD Grounds Maintenance - Cowichan","100","Administration","2017-01-01","2099-12-31","N",false,"16448-1-1"]
["640","Facilities Services and Campus Development","644","Building and Grounds","6448","Grounds Maintenance","10","16448-2","FSCD Grounds Maintenance - CTC","16448-2-1","FSCD Grounds Maintenance - CTC","100","Administration","2017-01-01","2099-12-31","N",false,"16448-2-1"]
["640","Facilities Services and Campus Development","644","Building and Grounds","6448","Grounds Maintenance","10","16448-3","FSCD Grounds Maintenance - G.R. Paine Centre","16448-3-1","FSCD Grounds Maintenance - G.R. Paine Centre","100","Administration","2017-01-01","2099-12-31","N",false,"16448-3-1"]
["640","Facilities Services and Campus Development","644","Building and Grounds","6448","Grounds Maintenance","10","16448-4","FSCD Grounds Maintenance - Nanaimo","16448-4-1","FSCD Grounds Maintenance - Nanaimo","100","Administration","2017-01-01","2099-12-31","N",false,"16448-4-1"]
["640","Facilities Services and Campus Development","644","Building and Grounds","6448","Grounds Maintenance","10","16448-5","FSCD Grounds Maintenance - Powell River","16448-5-1","FSCD Grounds Maintenance - Powell River","100","Administration","2017-01-01","2099-12-31","N",false,"16448-5-1"]
["640","Facilities Services and Campus Development","645","Technical Systems","6450","Technical Systems","10","16450-1","FSCD Technical Systems  - Administration","16450-1-1","FSCD Technical Systems  - Administration","100","Administration","2017-01-01","2099-12-31","N",false,"16450-1-1"]
["640","Facilities Services and Campus Development","645","Technical Systems","6452","HVAC and Utilities","10","16452-1","FSCD HVAC and Utilities - Cowichan","16452-1-1","FSCD HVAC and Utilities - Cowichan","100","Administration","2017-01-01","2099-12-31","N",false,"16452-1-1"]
["640","Facilities Services and Campus Development","645","Technical Systems","6452","HVAC and Utilities","10","16452-2","FSCD HVAC and Utilities - CTC","16452-2-1","FSCD HVAC and Utilities - CTC","100","Administration","2017-01-01","2099-12-31","N",false,"16452-2-1"]
["640","Facilities Services and Campus Development","645","Technical Systems","6452","HVAC and Utilities","10","16452-3","FSCD HVAC and Utilities - Deep Bay","16452-3-1","FSCD HVAC and Utilities - Deep Bay","100","Administration","2017-01-01","2099-12-31","N",false,"16452-3-1"]
["640","Facilities Services and Campus Development","645","Technical Systems","6452","HVAC and Utilities","10","16452-4","FSCD HVAC and Utilities - G.R. Paine Centre","16452-4-1","FSCD HVAC and Utilities - G.R. Paine Centre","100","Administration","2017-01-01","2099-12-31","N",false,"16452-4-1"]
["640","Facilities Services and Campus Development","645","Technical Systems","6452","HVAC and Utilities","10","16452-5","FSCD HVAC and Utilities - Nanaimo","16452-5-1","FSCD HVAC and Utilities - Nanaimo","100","Administration","2017-01-01","2099-12-31","N",false,"16452-5-1"]
["640","Facilities Services and Campus Development","645","Technical Systems","6452","HVAC and Utilities","10","16452-5","FSCD HVAC and Utilities - Nanaimo","16452-5-2","FSCD Nanaimo Geoexchange","100","Administration","2017-01-01","2099-12-31","N",false,"16452-5-2"]
["640","Facilities Services and Campus Development","645","Technical Systems","6452","HVAC and Utilities","10","16452-6","FSCD HVAC and Utilities - Powell River","16452-6-1","FSCD HVAC and Utilities - Powell River","100","Administration","2017-01-01","2099-12-31","N",false,"16452-6-1"]
["640","Facilities Services and Campus Development","645","Technical Systems","6455","Audio Visual Systems","10","16455-1","FSCD Audio Visual Systems","16455-1-1","FSCD Audio Visual Systems","100","Administration","2017-01-01","2099-12-31","N",false,"16455-1-1"]
["700","Financial Services","700","Financial Services","7000","Financial Services - AVP Office","10","17000-1","FIN Financial Services - AVP Office","17000-1-1","FIN Financial Services - AVP Office","100","Administration","2017-01-01","2099-12-31","N",false,"17000-1-1"]
["700","Financial Services","701","Accounting Services","7010","Accounting Services - Director's Office","10","17010-1","FIN Accounting Services - Director's Office","17010-1-1","FIN Accounting Services - Director's Office","100","Administration","2017-01-01","2099-12-31","N",false,"17010-1-1"]
["700","Financial Services","701","Accounting Services","7015","Accounting Services Department","10","17015-1","FIN Accounting Services Department","17015-1-1","FIN Accounting Services Department","100","Administration","2017-01-01","2099-12-31","N",false,"17015-1-1"]
["700","Financial Services","701","Accounting Services","7020","Accounts Payable","10","17020-1","FIN Accounts Payable","17020-1-1","FIN Accounts Payable","100","Administration","2017-01-01","2099-12-31","N",false,"17020-1-1"]
["700","Financial Services","701","Accounting Services","7030","Procurement and Contract Services","10","17030-1","FIN Procurement and Contract Services","17030-1-1","FIN Procurement and Contract Services","100","Administration","2017-01-01","2099-12-31","N",false,"17030-1-1"]
["700","Financial Services","701","Accounting Services","7030","Procurement and Contract Services","10","17030-2","FIN Procurement - Institutional","17030-2-1","FIN Procurement Inst - PCard Rebate","101","Institutional","2017-01-01","2099-12-31","N",false,"17030-2-1"]
["700","Financial Services","701","Accounting Services","7030","Procurement and Contract Services","10","17030-2","FIN Procurement - Institutional","17030-2-2","FIN Procurement Inst - Open PO Clearing","101","Institutional","2017-01-01","2099-12-31","N",false,"17030-2-2"]
["700","Financial Services","701","Accounting Services","7040","Treasury & Collections","10","17040-1","FIN Treasury & Collections","17040-1-1","FIN Treasury & Collections","100","Administration","2017-01-01","2099-12-31","N",false,"17040-1-1"]
["700","Financial Services","701","Accounting Services","7040","Treasury & Collections","10","17040-2","FIN Treasury & Collections - Institutional","17040-2-1","FIN Treasury & Collections Inst - Portfolio Interest","101","Institutional","2017-01-01","2099-12-31","N",false,"17040-2-1"]
["700","Financial Services","705","Financial Planning & Reporting","7050","Financial Planning and Reporting - Director's Office","10","17050-1","FIN Financial Planning and Reporting - Director's Office","17050-1-1","FIN Financial Planning and Reporting - Director's Office","100","Administration","2017-01-01","2099-12-31","N",false,"17050-1-1"]
["700","Financial Services","705","Financial Planning & Reporting","7060","Budgets & Financial Planning","10","17060-1","FIN Budgets & Financial Planning","17060-1-1","FIN Budgets & Financial Planning","100","Administration","2017-01-01","2099-12-31","N",false,"17060-1-1"]
["700","Financial Services","705","Financial Planning & Reporting","7070","Payroll","10","17070-1","FIN Payroll","17070-1-1","FIN Payroll","100","Administration","2017-01-01","2099-12-31","N",false,"17070-1-1"]
["750","Enterprise Risk Management","750","Enterprise Risk Management","7500","Risk Management Office","10","17500-1","ERM Enterprise Risk Management Office","17500-1-1","ERM Enterprise Risk Management Office","100","Administration","2020-03-28","2099-12-31","N",false,"17500-1-1"]
["750","Enterprise Risk Management","750","Enterprise Risk Management","7500","Risk Management Office","10","17500-2","ERM Emergency Management and Business Continuity","17500-2-1","ERM Emergency Management and Business Continuity","100","Administration","2020-03-28","2099-12-31","N",false,"17500-2-1"]
["750","Enterprise Risk Management","755","Health and Safety","7550","Health and Safety","10","17550-1","ERM Health and Safety","17550-1-1","ERM Health and Safety","100","Administration","2020-03-28","2099-12-31","N",false,"17550-1-1"]
["900","CFOVPA - Institutional","900","CFOVPA - Institutional","9000","Balance Sheet","10","19000-1","INST Balance Sheet","19000-1-1","INST Balance Sheet","101","Institutional","2017-01-01","2099-12-31","N",false,"19000-1-1"]
["910","Institutional Revenue","910","Institutional Revenue","9100","Institutional Revenue - Grants","10","19100-1","INST Institutional Revenue - Grants","19100-1-1","INST Institutional Revenue - Grants","101","Institutional","2017-01-01","2099-12-31","N",false,"19100-1-1"]
["910","Institutional Revenue","910","Institutional Revenue","9105","Institutional Revenue - Tuition","10","19105-1","INST Institutional Revenue - Tuition","19105-1-1","INST Institutional Revenue - Tuition","101","Institutional","2017-01-01","2099-12-31","N",false,"19105-1-1"]
["910","Institutional Revenue","910","Institutional Revenue","9110","Institutional Revenue - Student Fees","10","19110-1","INST Institutional Revenue - Student Fees","19110-1-1","INST Institutional Revenue - Student Fees","101","Institutional","2017-01-01","2099-12-31","N",false,"19110-1-1"]
["900","CFOVPA - Institutional","900","CFOVPA - Institutional","9115","Institutional Administration","10","19115-1","INST Institutional Administration","19115-1-2","INST Non Insurred Losses","101","Institutional","2017-01-01","2099-12-31","N",false,"19115-1-2"]
["900","CFOVPA - Institutional","900","CFOVPA - Institutional","9115","Institutional Administration","10","19115-1","INST Institutional Administration","19115-1-1","INST Institutional Administration","101","Institutional","2017-01-01","2099-12-31","N",false,"19115-1-1"]
["900","CFOVPA - Institutional","900","CFOVPA - Institutional","9115","Institutional Administration","10","19115-2","INST Institutional Employee Awards","19115-2-1","INST Institutional Employee Awards","101","Institutional","2017-01-01","2099-12-31","N",false,"19115-2-1"]
["900","CFOVPA - Institutional","900","CFOVPA - Institutional","9120","Institutional Labour Payouts","10","19120-1","INST Institutional Labour Payouts","19120-1-2","INST Labour Payouts - Severance","101","Institutional","2017-01-01","2099-12-31","N",false,"19120-1-2"]
["900","CFOVPA - Institutional","900","CFOVPA - Institutional","9120","Institutional Labour Payouts","10","19120-1","INST Institutional Labour Payouts","19120-1-3","INST Labour Payouts - Sick Leave","101","Institutional","2017-01-01","2099-12-31","N",false,"19120-1-3"]
["900","CFOVPA - Institutional","900","CFOVPA - Institutional","9120","Institutional Labour Payouts","10","19120-1","INST Institutional Labour Payouts","19120-1-4","INST Labour Payouts - President Admin Leave","101","Institutional","2017-01-01","2099-12-31","N",false,"19120-1-4"]
["900","CFOVPA - Institutional","900","CFOVPA - Institutional","9125","Institutional Labour Adjustments","10","19125-1","INST Institutional Labour Adjustments","19125-1-1","INST Labour Adjustments","101","Institutional","2017-01-01","2099-12-31","N",false,"19125-1-1"]
["900","CFOVPA - Institutional","900","CFOVPA - Institutional","9125","Institutional Labour Adjustments","10","19125-1","INST Institutional Labour Adjustments","19125-1-3","INST Labour Adjustments - VIUFA PD Recovery","101","Institutional","2017-01-01","2099-12-31","N",false,"19125-1-3"]
["110","Human Resources","111","Employee Relations","1111","Collective Agreement / Legislation Interpretation & Application","20","21111-1","HR Collective Agreement - UNION Charges (RECOVERY)","21111-1-1","HR Collective Agreement - BCGEU Charges (RECOVERY)","102","External recoveries (Inst)","2017-01-01","2099-12-31","N",false,"21111-1-1"]
["110","Human Resources","111","Employee Relations","1111","Collective Agreement / Legislation Interpretation & Application","20","21111-1","HR Collective Agreement - UNION Charges (RECOVERY)","21111-1-2","HR Collective Agreement - CUPE Charges (RECOVERY)","102","External recoveries (Inst)","2017-01-01","2099-12-31","N",false,"21111-1-2"]
["110","Human Resources","111","Employee Relations","1111","Collective Agreement / Legislation Interpretation & Application","20","21111-1","HR Collective Agreement - UNION Charges (RECOVERY)","21111-1-3","HR Collective Agreement - VIUFA Charges (RECOVERY)","102","External recoveries (Inst)","2017-01-01","2099-12-31","N",false,"21111-1-3"]
["110","Human Resources","111","Employee Relations","1111","Collective Agreement / Legislation Interpretation & Application","20","21111-1","HR Collective Agreement - UNION Charges (RECOVERY)","21111-1-4","HR Collective Agreement - VIUFA Committee Charges (RECOVERY)","102","External recoveries (Inst)","2017-01-01","2099-12-31","N",false,"21111-1-4"]
["110","Human Resources","115","Human Resources Department","1151","Employee Wellbeing","20","21151-1","HR Employee Wellbeing (RECOVERY)","21151-1-1","HR Employee Wellbeing - Positive Space Alliance (RECOVERY)","102","External recoveries (Inst)","2017-01-01","2099-12-31","N",false,"21151-1-1"]
["210","Academic and Career Preparation","210","Academic and Career Preparation","2110","Adult Special Education","20","22110-1","ACP ASE - CETP Grant","22110-1-1","ACP ASE - CETP Grant","208","Instruction","2017-01-01","2099-12-31","N",false,"22110-1-1"]
["210","Academic and Career Preparation","210","Academic and Career Preparation","2110","Adult Special Education","20","22110-2","ACP ASE - WEST Grant","22110-2-1","ACP ASE - WEST Grant","208","Instruction","2017-01-01","2099-12-31","N",false,"22110-2-1"]
["220","Arts and Humanities","220","Arts and Humanitites","2201","Arts and Humanities - Initiatives","20","22201-1","AH Faculty of Arts and Humanities - Faculty Holding","22201-1-1","AH Faculty of Arts and Humanities - Faculty Holding","221","Department Initiatives","2017-01-01","2099-12-31","N",false,"22201-1-1"]
["220","Arts and Humanities","220","Arts and Humanitites","2201","Arts and Humanities - Initiatives","20","22201-2","AH Faculty of Arts and Humanities - Gustafson","22201-2-1","AH Faculty of Arts and Humanities - Gustafson - Poetry Trust","221","Department Initiatives","2017-01-01","2099-12-31","N",false,"22201-2-1"]
["220","Arts and Humanities","220","Arts and Humanitites","2201","Arts and Humanities - Initiatives","20","22201-2","AH Faculty of Arts and Humanities - Gustafson","22201-2-2","AH Faculty of Arts and Humanities - Gustafson - Chapbook Series","221","Department Initiatives","2017-01-01","2099-12-31","N",false,"22201-2-2"]
["220","Arts and Humanities","220","Arts and Humanitites","2201","Arts and Humanities - Initiatives","20","22201-3","AH Faculty of Arts and Humanities - Other","22201-3-1","AH Faculty of Arts and Humanities - Other - Meta Lab","221","Department Initiatives","2017-01-01","2099-12-31","N",false,"22201-3-1"]
["220","Arts and Humanities","220","Arts and Humanitites","2201","Arts and Humanities - Initiatives","20","22201-3","AH Faculty of Arts and Humanities - Other","22201-3-2","AH Faculty of Arts and Humanities - Other - Colloquium Series","221","Department Initiatives","2017-01-01","2099-12-31","N",false,"22201-3-2"]
["220","Arts and Humanities","220","Arts and Humanitites","2201","Arts and Humanities - Initiatives","20","22201-3","AH Faculty of Arts and Humanities - Other","22201-3-3","AH Faculty of Arts and Humanities - Other - Canada Council Readings","221","Department Initiatives","2020-03-28","2099-12-31","N",false,"22201-3-3"]
["220","Arts and Humanities","220","Arts and Humanitites","2201","Arts and Humanities - Initiatives","20","22201-4","AH Faculty - General Research","22201-4-1","AH General Research - Wood","302","General Research","2020-03-28","2099-12-31","N",false,"22201-4-1"]
["220","Arts and Humanities","220","Arts and Humanitites","2205","Art and Design - Graphic Design","20","22205-1","AH Art and Design - Graphic Design - Other","22205-1-1","AH Art and Design - Graphic Design - Other - Student Art Sales","208","Instruction","2017-01-01","2099-12-31","N",false,"22205-1-1"]
["220","Arts and Humanities","220","Arts and Humanitites","2205","Art and Design - Graphic Design","20","22205-1","AH Art and Design - Graphic Design - Other","22205-1-1","AH Art and Design - Graphic Design - Other - Student Art Sales","227","Student Sales","2017-01-01","2099-12-31","N",true,"22205-1-1"]
["220","Arts and Humanities","220","Arts and Humanitites","2205","Art and Design - Graphic Design","20","22205-1","AH Art and Design - Graphic Design - Other","22205-1-2","AH Art and Design - Graphic Design - Other - Visiting Artists Series","208","Instruction","2017-01-01","2099-12-31","N",false,"22205-1-2"]
["220","Arts and Humanities","220","Arts and Humanitites","2205","Art and Design - Graphic Design","20","22205-1","AH Art and Design - Graphic Design - Other","22205-1-2","AH Art and Design - Graphic Design - Other - Visiting Artists Series","227","Student Sales","2017-01-01","2099-12-31","N",true,"22205-1-2"]
["220","Arts and Humanities","220","Arts and Humanitites","2205","Art and Design - Graphic Design","20","22205-1","AH Art and Design - Graphic Design - Other","22205-1-3","AH Art and Design - Graphic Design - Other - ARTG 480 FINAL exhibit","208","Instruction","2017-01-01","2099-12-31","N",false,"22205-1-3"]
["220","Arts and Humanities","220","Arts and Humanitites","2205","Art and Design - Graphic Design","20","22205-1","AH Art and Design - Graphic Design - Other","22205-1-3","AH Art and Design - Graphic Design - Other - ARTG 480 FINAL exhibit","227","Student Sales","2017-01-01","2099-12-31","N",true,"22205-1-3"]
["220","Arts and Humanities","220","Arts and Humanitites","2215","Art and Design - Visual Art","20","22215-1","AH Art and Design - Visual Art - Other","22215-1-3","AH Art and Design - Visual Art - Other - Progressions","208","Instruction","2017-01-01","2099-12-31","N",false,"22215-1-3"]
["220","Arts and Humanities","220","Arts and Humanitites","2215","Art and Design - Visual Art","20","22215-1","AH Art and Design - Visual Art - Other","22215-1-3","AH Art and Design - Visual Art - Other - Progressions","227","Student Sales","2017-01-01","2099-12-31","N",true,"22215-1-3"]
["220","Arts and Humanities","220","Arts and Humanitites","2220","Creative Writing and Journalism","20","22220-1","AH Creative Writing and Journalism","22220-1-1","AH Creative Writing and Journalism - Portal Magazine","221","Department Initiatives","2017-01-01","2099-12-31","N",false,"22220-1-1"]
["220","Arts and Humanities","220","Arts and Humanitites","2225","English","20","22225-1","AH English - Other","22225-1-1","AH English - Other - Dual Credit","208","Instruction","2017-01-01","2099-12-31","N",false,"22225-1-1"]
["220","Arts and Humanities","220","Arts and Humanitites","2230","History","20","22230-1","AH History - Other","22230-1-1","AH History - Other - Canadian Letters, Images","221","Department Initiatives","2017-01-01","2099-12-31","N",false,"22230-1-1"]
["220","Arts and Humanities","220","Arts and Humanitites","2240","Media Studies","20","22240-1","AH Media Studies - Other","22240-1-1","AH Media Studies - Other - MRL Business Activity","208","Instruction","2017-01-01","2099-12-31","N",false,"22240-1-1"]
["220","Arts and Humanities","220","Arts and Humanitites","2250","Music","20","22250-1","AH Music - Other","22250-1-1","AH Music - Other - Master Series","221","Department Initiatives","2017-01-01","2099-12-31","N",false,"22250-1-1"]
["230","Education","230","Education","2301","Education - Initiatives","20","22301-1","EDUC Faculty - General Research","22301-1-1","EDUC General Research - Davidson","302","General Research","2017-01-01","2099-12-31","N",false,"22301-1-1"]
["230","Education","230","Education","2310","Education","20","22310-1","EDUC Education - Other","22310-1-1","EDUC Education  - Conferences","220","Conferences","2017-01-01","2099-12-31","N",false,"22310-1-1"]
["230","Education","230","Education","2320","Kinesiology","20","22320-1","EDUC Kinesiology - Other","22320-1-1","EDUC Kinesiology - Development","211","Program Development","2017-01-01","2099-12-31","N",false,"22320-1-1"]
["230","Education","230","Education","2320","Kinesiology","20","22320-1","EDUC Kinesiology - Other","22320-1-1","EDUC Kinesiology - Development","220","Conferences","2017-01-01","2099-12-31","N",true,"22320-1-1"]
["230","Education","230","Education","2320","Kinesiology","20","22320-1","EDUC Kinesiology - Other","22320-1-2","EDUC Kinesiology - NPPE Conference","211","Program Development","2017-01-01","2099-12-31","N",false,"22320-1-2"]
["230","Education","230","Education","2320","Kinesiology","20","22320-1","EDUC Kinesiology - Other","22320-1-2","EDUC Kinesiology - NPPE Conference","220","Conferences","2017-01-01","2099-12-31","N",true,"22320-1-2"]
["230","Education","230","Education","2350","Graduate Diploma - Online Teaching and Learning","20","22350-1","EDUC Graduate Diploma - Online Teaching and Learning","22350-1-1","EDUC Graduate Diploma - Online Teaching and Learning","208","Instruction","2017-01-01","2099-12-31","N",false,"22350-1-1"]
["230","Education","230","Education","2355","Graduate Diploma - Inclusive Education","20","22355-1","EDUC Graduate Diploma - Inclusive Education","22355-1-1","EDUC Graduate Diploma - Inclusive Education","208","Instruction","2017-01-01","2099-12-31","N",false,"22355-1-1"]
["230","Education","230","Education","2360","Masters of Education (Leadership)","20","22360-1","EDUC Masters of Education (Leadership)","22360-1-1","EDUC Masters of Education (Leadership)","208","Instruction","2017-01-01","2099-12-31","N",false,"22360-1-1"]
["230","Education","230","Education","2365","Masters of Education (Special Education)","20","22365-1","EDUC Masters of Education (Special Education)","22365-1-1","EDUC Masters of Education (Special Education)","208","Instruction","2017-01-01","2099-12-31","N",false,"22365-1-1"]
["240","Health and Human Services","240","Health and Human Services","2401","Health and Human Services - Initiatives","20","22401-1","HHS Faculty - General Research","22401-1-2","HHS Faculty - General Research - Taplay","302","General Research","2020-03-28","2099-12-31","N",false,"22401-1-2"]
["240","Health and Human Services","240","Health and Human Services","2401","Health and Human Services - Initiatives","20","22401-1","HHS Faculty - General Research","22401-1-1","HHS Faculty - General Research - Price","302","General Research","2017-01-01","2099-12-31","N",false,"22401-1-1"]
["240","Health and Human Services","240","Health and Human Services","2401","Health and Human Services - Initiatives","20","22401-2","HHS Faculty - Scholarly Activity","22401-2-1","HHS Faculty - Scholarly Activity","201","Faculty Administration","2017-01-01","2099-12-31","N",false,"22401-2-1"]
["240","Health and Human Services","240","Health and Human Services","2401","Health and Human Services - Initiatives","20","22401-3","HHS Faculty - Interprofessional Development Fund","22401-3-1","HHS Faculty - Interprofessional Development Fund","201","Faculty Administration","2017-01-01","2099-12-31","N",false,"22401-3-1"]
["240","Health and Human Services","240","Health and Human Services","2401","Health and Human Services - Initiatives","20","22401-4","HHS Faculty - Research contracts","22401-4-1","HHS Faculty - Research contracts - Styles - Pathways","310","Research Contract","2017-01-01","2099-12-31","N",false,"22401-4-1"]
["240","Health and Human Services","240","Health and Human Services","2401","Health and Human Services - Initiatives","20","22401-5","HHS Faculty - Other","22401-5-1","HHS Faculty - Aboriginal Forum","201","Faculty Administration","2017-01-01","2099-12-31","N",false,"22401-5-1"]
["240","Health and Human Services","240","Health and Human Services","2401","Health and Human Services - Initiatives","20","22401-5","HHS Faculty - Other","22401-5-2","HHS Faculty - Student Engagement Fund","201","Faculty Administration","2017-01-01","2099-12-31","N",false,"22401-5-2"]
["240","Health and Human Services","240","Health and Human Services","2406","Roots to Thrive - KAT","20","22406-1","HHS Roots to Thrive - KAT","22406-1-1","HHS Roots to Thrive - KAT","201","Faculty Administration","2020-03-28","2099-12-31","N",false,"22406-1-1"]
["240","Health and Human Services","240","Health and Human Services","2406","Roots to Thrive - KAT","20","22406-1","HHS Roots to Thrive - KAT","22406-1-1","HHS Roots to Thrive - KAT","219","Contract activity","2020-03-28","2099-12-31","N",true,"22406-1-1"]
["240","Health and Human Services","240","Health and Human Services","2415","Dental Hygiene","20","22415-1","HHS Dental Hygiene - Other","22415-1-1","HHS BC Dental Hygienist Association","201","Faculty Administration","2017-01-01","2099-12-31","N",false,"22415-1-1"]
["240","Health and Human Services","240","Health and Human Services","2420","Health Care Assistant","20","22420-4","HHS Health Care Assistant - Partnership Pathways","22420-4-1","HHS Health Care Assistant - Partnership Pathways","219","Contract activity","2020-03-28","2099-12-31","N",false,"22420-4-1"]
["240","Health and Human Services","240","Health and Human Services","2430","Bachelor of Social Work","20","22430-1","HHS Bachelor of Social Work","22430-1-1","HHS Bachelor of Social Work","208","Instruction","2017-01-01","2099-12-31","N",false,"22430-1-1"]
["240","Health and Human Services","240","Health and Human Services","2435","Child and Youth Care","20","22435-1","HHS Child and Youth Care - CTR - Outreach/Comm. Care","22435-1-1","HHS Child and Youth Care - CTR - Outreach/Comm. Care","201","Faculty Administration","2017-01-01","2099-12-31","N",false,"22435-1-1"]
["240","Health and Human Services","240","Health and Human Services","2440","Early Childhood Education and Care","20","22440-1","HHS Early Childhood Education and Care - Cowichan Cert.","22440-1-1","HHS Early Childhood Education and Care - Cowichan Cert.","208","Instruction","2017-01-01","2099-12-31","N",false,"22440-1-1"]
["240","Health and Human Services","240","Health and Human Services","2440","Early Childhood Education and Care","20","22440-1","HHS Early Childhood Education and Care - Cowichan Cert.","22440-1-1","HHS Early Childhood Education and Care - Cowichan Cert.","219","Contract activity","2017-01-01","2099-12-31","N",true,"22440-1-1"]
["240","Health and Human Services","240","Health and Human Services","2440","Early Childhood Education and Care","20","22440-2","HHS Early Childhood Education and Care - Powell River Cert.","22440-2-1","HHS Early Childhood Education and Care - Powell River Cert.","208","Instruction","2017-01-01","2099-12-31","N",false,"22440-2-1"]
["240","Health and Human Services","240","Health and Human Services","2440","Early Childhood Education and Care","20","22440-2","HHS Early Childhood Education and Care - Powell River Cert.","22440-2-1","HHS Early Childhood Education and Care - Powell River Cert.","219","Contract activity","2017-01-01","2099-12-31","N",true,"22440-2-1"]
["240","Health and Human Services","240","Health and Human Services","2440","Early Childhood Education and Care","20","22440-3","HHS Early Childhood Education and Care - Aboriginal Head Start","22440-3-1","HHS Early Childhood Education and Care - Aboriginal Head Start","219","Contract activity","2017-01-01","2099-12-31","N",false,"22440-3-1"]
["240","Health and Human Services","240","Health and Human Services","2440","Early Childhood Education and Care","20","22440-4","HHS Early Childhood Education and Care - Infant Toddler","22440-4-1","HHS Early Childhood Education and Care - Infant Toddler","219","Contract activity","2017-01-01","2099-12-31","N",false,"22440-4-1"]
["240","Health and Human Services","240","Health and Human Services","2440","Early Childhood Education and Care","20","22440-6","HHS Early Childhood Education and Care- ECPN","22440-6-1","HHS Early Childhood Education and Care- ECPN","219","Contract activity","2017-01-01","2099-12-31","N",false,"22440-6-1"]
["240","Health and Human Services","240","Health and Human Services","2440","Early Childhood Education and Care","20","22440-7","HHS Early Childhood Education and Care - Nanaimo Cert.","22440-7-1","HHS Early Childhood Education and Care - Nanaimo Cert.","208","Instruction","2020-03-28","2099-12-31","N",false,"22440-7-1"]
["240","Health and Human Services","240","Health and Human Services","2440","Early Childhood Education and Care","20","22440-7","HHS Early Childhood Education and Care - Nanaimo Cert.","22440-7-1","HHS Early Childhood Education and Care - Nanaimo Cert.","219","Contract activity","2020-03-28","2099-12-31","N",true,"22440-7-1"]
["240","Health and Human Services","240","Health and Human Services","2440","Early Childhood Education and Care","20","22440-8","HHS Early Childhood Education and Care - Special Needs Cert.","22440-8-1","HHS Early Childhood Education and Care - Special Needs Cert.","208","Instruction","2020-03-28","2099-12-31","N",false,"22440-8-1"]
["240","Health and Human Services","240","Health and Human Services","2440","Early Childhood Education and Care","20","22440-8","HHS Early Childhood Education and Care - Special Needs Cert.","22440-8-1","HHS Early Childhood Education and Care - Special Needs Cert.","219","Contract activity","2020-03-28","2099-12-31","N",true,"22440-8-1"]
["250","International Education","250","International Education","2500","Faculty of International Education","20","22500-1","IE Faculty Dean's Office","22500-1-1","IE Faculty Dean's Office","201","Faculty Administration","2017-01-01","2099-12-31","N",false,"22500-1-1"]
["250","International Education","250","International Education","2501","International Education - Initiatives","20","22501-1","IE Faculty Initiatives","22501-1-2","IE  Faculty - Building 255 renovations","201","Faculty Administration","2017-01-01","2099-12-31","N",false,"22501-1-2"]
["250","International Education","250","International Education","2501","International Education - Initiatives","20","22501-2","IE  Faculty Travel","22501-2-1","IE  Faculty Travel","201","Faculty Administration","2017-01-01","2099-12-31","N",false,"22501-2-1"]
["250","International Education","250","International Education","2501","International Education - Initiatives","20","22501-2","IE  Faculty Travel","22501-2-2","IE  Faculty Travel Stipends","201","Faculty Administration","2017-01-01","2099-12-31","N",false,"22501-2-2"]
["250","International Education","250","International Education","2501","International Education - Initiatives","20","22501-2","IE  Faculty Travel","22501-2-3","IE Global Engagement Grants","201","Faculty Administration","2017-01-01","2099-12-31","N",false,"22501-2-3"]
["250","International Education","250","International Education","2501","International Education - Initiatives","20","22501-3","IE ERM Travel Support Project","22501-3-1","IE ERM Travel Support Project","201","Faculty Administration","2020-03-28","2099-12-31","N",false,"22501-3-1"]
["250","International Education","250","International Education","2505","International Finance","20","22505-2","IE International Student Revenues","22505-2-1","IE International Student Revenues","201","Faculty Administration","2017-01-01","2099-12-31","N",false,"22505-2-1"]
["250","International Education","250","International Education","2505","International Finance","20","22505-2","IE International Student Revenues","22505-2-2","IE International Student Fee - Holding","201","Faculty Administration","2017-01-01","2099-12-31","N",false,"22505-2-2"]
["250","International Education","250","International Education","2505","International Finance","20","22505-3","IE International Transfers","22505-3-1","IE Academic Transfers","201","Faculty Administration","2017-01-01","2099-12-31","N",false,"22505-3-1"]
["250","International Education","250","International Education","2505","International Finance","20","22505-3","IE International Transfers","22505-3-2","IE ABE Transfers","201","Faculty Administration","2017-01-01","2099-12-31","N",false,"22505-3-2"]
["250","International Education","250","International Education","2505","International Finance","20","22505-4","IE Student Scholarships","22505-4-1","IE Student Scholarships","201","Faculty Administration","2017-01-01","2099-12-31","N",false,"22505-4-1"]
["250","International Education","250","International Education","2505","International Finance","20","22505-4","IE Student Scholarships","22505-4-10","IE Scholarships - TASIS/VIU","201","Faculty Administration","2017-01-01","2099-12-31","N",false,"22505-4-10"]
["250","International Education","250","International Education","2505","International Finance","20","22505-4","IE Student Scholarships","22505-4-2","IE Scholarships - NYAKA","201","Faculty Administration","2017-01-01","2099-12-31","N",false,"22505-4-2"]
["250","International Education","250","International Education","2505","International Finance","20","22505-4","IE Student Scholarships","22505-4-3","IE Scholarships - Pearson college","201","Faculty Administration","2017-01-01","2099-12-31","N",false,"22505-4-3"]
["250","International Education","250","International Education","2505","International Finance","20","22505-4","IE Student Scholarships","22505-4-4","IE Scholarships - Queen Elizabeth","201","Faculty Administration","2017-01-01","2099-12-31","N",false,"22505-4-4"]
["250","International Education","250","International Education","2505","International Finance","20","22505-4","IE Student Scholarships","22505-4-5","IE Scholarships - QES - Waived tuition","201","Faculty Administration","2017-01-01","2099-12-31","N",false,"22505-4-5"]
["250","International Education","250","International Education","2505","International Finance","20","22505-4","IE Student Scholarships","22505-4-6","IE Scholarships - Students for Development","201","Faculty Administration","2017-01-01","2099-12-31","N",false,"22505-4-6"]
["250","International Education","250","International Education","2505","International Finance","20","22505-4","IE Student Scholarships","22505-4-7","IE Scholarships - Syrian","201","Faculty Administration","2017-01-01","2099-12-31","N",false,"22505-4-7"]
["250","International Education","250","International Education","2505","International Finance","20","22505-4","IE Student Scholarships","22505-4-8","IE Scholarships - Syrian Alliko","201","Faculty Administration","2017-01-01","2099-12-31","N",false,"22505-4-8"]
["250","International Education","250","International Education","2505","International Finance","20","22505-4","IE Student Scholarships","22505-4-9","IE Scholarships - Syrian Baker","201","Faculty Administration","2017-01-01","2099-12-31","N",false,"22505-4-9"]
["250","International Education","250","International Education","2505","International Finance","20","22505-4","IE Student Scholarships","22505-4-11","IE Scholarships - Syrian Sheikho","201","Faculty Administration","2021-03-27","2099-12-31","N",false,"22505-4-11"]
["250","International Education","250","International Education","2508","English Language Centre","20","22508-1","IE English Language Centre","22508-1-1","IE English Language Centre","208","Instruction","2017-01-01","2099-12-31","N",false,"22508-1-1"]
["250","International Education","250","International Education","2510","Graduate Programs Administration","20","22510-2","IE Master of Business Administration","22510-2-1","IE Master of Business Administration","208","Instruction","2017-01-01","2099-12-31","N",false,"22510-2-1"]
["250","International Education","250","International Education","2510","Graduate Programs Administration","20","22510-3","IE Master of Arts in Sustainable Leisure Management","22510-3-1","IE Master of Arts in Sustainable Leisure Management","208","Instruction","2017-01-01","2099-12-31","N",false,"22510-3-1"]
["250","International Education","250","International Education","2510","Graduate Programs Administration","20","22510-4","IE Master of Education International Perspective","22510-4-1","IE Master of Education International Perspective","208","Instruction","2017-01-01","2099-12-31","N",false,"22510-4-1"]
["250","International Education","250","International Education","2510","Graduate Programs Administration","20","22510-5","IE Master of Community Planning","22510-5-1","IE Master of Community Planning","208","Instruction","2017-01-01","2099-12-31","N",false,"22510-5-1"]
["250","International Education","250","International Education","2510","Graduate Programs Administration","20","22510-6","IE Master of Geographic Information Systems Applications","22510-6-1","IE Master of Geographic Information Systems Applications","208","Instruction","2017-01-01","2099-12-31","N",false,"22510-6-1"]
["250","International Education","250","International Education","2510","Graduate Programs Administration","20","22510-7","IE Graduate Certificate and Diploma - Management","22510-7-1","IE Grad Certificate - Business","208","Instruction","2020-03-28","2099-12-31","N",false,"22510-7-1"]
["250","International Education","250","International Education","2510","Graduate Programs Administration","20","22510-7","IE Graduate Certificate and Diploma - Management","22510-7-2","IE Grad Diploma - International Trade","208","Instruction","2020-03-28","2099-12-31","N",false,"22510-7-2"]
["250","International Education","250","International Education","2510","Graduate Programs Administration","20","22510-7","IE Graduate Certificate and Diploma - Management","22510-7-3","IE Grad Diploma - Project Management","208","Instruction","2020-03-28","2099-12-31","N",false,"22510-7-3"]
["250","International Education","250","International Education","2515","Centre for Intercultural Studies","20","22515-1","IE Centre for Intercultural Studies","22515-1-1","IE Centre for Intercultural Studies - Intercultural Programs","201","Faculty Administration","2017-01-01","2099-12-31","N",false,"22515-1-1"]
["250","International Education","250","International Education","2515","Centre for Intercultural Studies","20","22515-1","IE Centre for Intercultural Studies","22515-1-2","IE Centre for Intercultural Studies","201","Faculty Administration","2017-01-01","2099-12-31","N",false,"22515-1-2"]
["250","International Education","252","International Student Services","2520","International Student Services","20","22520-1","IE International Student Services","22520-1-1","IE International Student Services","204","Advising","2017-01-01","2099-12-31","N",false,"22520-1-1"]
["250","International Education","252","International Student Services","2520","International Student Services","20","22520-1","IE International Student Services","22520-1-1","IE International Student Services","217","Student Support and Services","2017-01-01","2099-12-31","N",true,"22520-1-1"]
["250","International Education","252","International Student Services","2520","International Student Services","20","22520-1","IE International Student Services","22520-1-2","IE International Student Services - Advising","204","Advising","2017-01-01","2099-12-31","N",false,"22520-1-2"]
["250","International Education","252","International Student Services","2520","International Student Services","20","22520-1","IE International Student Services","22520-1-2","IE International Student Services - Advising","217","Student Support and Services","2017-01-01","2099-12-31","N",true,"22520-1-2"]
["250","International Education","252","International Student Services","2520","International Student Services","20","22520-1","IE International Student Services","22520-1-3","IE International Student Services - Emergency Loan","204","Advising","2017-01-01","2099-12-31","N",false,"22520-1-3"]
["250","International Education","252","International Student Services","2520","International Student Services","20","22520-1","IE International Student Services","22520-1-3","IE International Student Services - Emergency Loan","217","Student Support and Services","2017-01-01","2099-12-31","N",true,"22520-1-3"]
["250","International Education","252","International Student Services","2520","International Student Services","20","22520-1","IE International Student Services","22520-1-4","IE International Student Services - Medical","204","Advising","2017-01-01","2099-12-31","N",false,"22520-1-4"]
["250","International Education","252","International Student Services","2520","International Student Services","20","22520-1","IE International Student Services","22520-1-4","IE International Student Services - Medical","217","Student Support and Services","2017-01-01","2099-12-31","N",true,"22520-1-4"]
["250","International Education","252","International Student Services","2522","International Admissions","20","22522-1","IE International Admissions","22522-1-1","IE International Admissions","217","Student Support and Services","2017-01-01","2099-12-31","N",false,"22522-1-1"]
["250","International Education","252","International Student Services","2525","Student Homestay","20","22525-1","IE Student Homestay","22525-1-2","IE Homestay - VIU Students","217","Student Support and Services","2017-01-01","2099-12-31","N",false,"22525-1-2"]
["250","International Education","252","International Student Services","2525","Student Homestay","20","22525-1","IE Student Homestay","22525-1-3","IE Homestay - Groups","217","Student Support and Services","2017-01-01","2099-12-31","N",false,"22525-1-3"]
["250","International Education","252","International Student Services","2525","Student Homestay","20","22525-1","IE Student Homestay","22525-1-1","IE Homestay - Administration","217","Student Support and Services","2017-01-01","2099-12-31","N",false,"22525-1-1"]
["250","International Education","253","International Marketing","2530","International Marketing","20","22530-1","IE International Marketing","22530-1-1","IE International Marketing","201","Faculty Administration","2017-01-01","2099-12-31","N",false,"22530-1-1"]
["250","International Education","253","International Marketing","2530","International Marketing","20","22530-1","IE International Marketing","22530-1-2","IE Marketing - Customer Relations Management","201","Faculty Administration","2017-01-01","2099-12-31","N",false,"22530-1-2"]
["250","International Education","253","International Marketing","2530","International Marketing","20","22530-2","IE International Marketing - Agents Fees","22530-2-1","IE Marketing - Academic","201","Faculty Administration","2017-01-01","2099-12-31","N",false,"22530-2-1"]
["250","International Education","253","International Marketing","2530","International Marketing","20","22530-2","IE International Marketing - Agents Fees","22530-2-2","IE Marketing - ESL","201","Faculty Administration","2017-01-01","2099-12-31","N",false,"22530-2-2"]
["250","International Education","254","Group Programs and Global Engagement","2540","Group Programs","20","22540-1","IE Group Programs","22540-1-1","IE Group Programs","219","Contract activity","2017-01-01","2099-12-31","N",false,"22540-1-1"]
["250","International Education","254","Group Programs and Global Engagement","2540","Group Programs","20","22540-1","IE Group Programs","22540-1-2","IE Group Programs  - ELAP","219","Contract activity","2017-01-01","2099-12-31","N",false,"22540-1-2"]
["250","International Education","254","Group Programs and Global Engagement","2540","Group Programs","20","22540-1","IE Group Programs","22540-1-3","IE Group Programs  - International Project/Partnerships","219","Contract activity","2017-01-01","2099-12-31","N",false,"22540-1-3"]
["250","International Education","254","Group Programs and Global Engagement","2540","Group Programs","20","22540-1","IE Group Programs","22540-1-4","IE Group Programs  - Shanghai Lizin U Commerce","219","Contract activity","2017-01-01","2099-12-31","N",false,"22540-1-4"]
["250","International Education","254","Group Programs and Global Engagement","2540","Group Programs","20","22540-1","IE Group Programs","22540-1-5","IE Group Programs  - SDIBT","219","Contract activity","2017-01-01","2099-12-31","N",false,"22540-1-5"]
["250","International Education","254","Group Programs and Global Engagement","2545","Global Engagement","20","22545-1","IE Global Engagement","22545-1-1","IE Global Engagement","201","Faculty Administration","2017-01-01","2099-12-31","N",false,"22545-1-1"]
["250","International Education","254","Group Programs and Global Engagement","2545","Global Engagement","20","22545-2","IE Global Engagement - Internationalization","22545-2-1","IE Global Engagement - Internationalization","201","Faculty Administration","2017-01-01","2099-12-31","N",false,"22545-2-1"]
["250","International Education","254","Group Programs and Global Engagement","2545","Global Engagement","20","22545-3","IE GE - Skills to Access the Green Economy Program","22545-3-1","IE Global Engagement - SAGE - Belize","219","Contract activity","2017-01-01","2099-12-31","N",false,"22545-3-1"]
["250","International Education","254","Group Programs and Global Engagement","2545","Global Engagement","20","22545-4","IE Global Engagement- Young Africa Works","22545-4-1","IE Global Engagement- Young Africa Works- Kenya","219","Contract activity","2020-03-28","2099-12-31","N",false,"22545-4-1"]
["250","International Education","254","Group Programs and Global Engagement","2545","Global Engagement","20","22545-5","IE Global Engagement - Pacific Alliance","22545-5-1","IE Global Engagement - Pacific Alliance - Chile","219","Contract activity","2021-03-27","2099-12-31","N",false,"22545-5-1"]
["250","International Education","255","Education Abroad and Field Schools","2550","Education Abroad and Field Schools","20","22550-1","IE Education Abroad and Field Schools","22550-1-1","IE Education Abroad and Field Schools","223","Field Schools","2017-01-01","2099-12-31","N",false,"22550-1-1"]
["250","International Education","255","Education Abroad and Field Schools","2550","Education Abroad and Field Schools","20","22550-1","IE Education Abroad and Field Schools","22550-1-10","IE EAFS - Business Field School EAFS - Europe","223","Field Schools","2017-01-01","2099-12-31","N",false,"22550-1-10"]
["250","International Education","255","Education Abroad and Field Schools","2550","Education Abroad and Field Schools","20","22550-1","IE Education Abroad and Field Schools","22550-1-12","IE EAFS - Cosmetology Implementation","223","Field Schools","2017-01-01","2099-12-31","N",false,"22550-1-12"]
["250","International Education","255","Education Abroad and Field Schools","2550","Education Abroad and Field Schools","20","22550-1","IE Education Abroad and Field Schools","22550-1-13","IE EAFS - Culinary Field School EAFS - Italy","223","Field Schools","2017-01-01","2099-12-31","N",false,"22550-1-13"]
["250","International Education","255","Education Abroad and Field Schools","2550","Education Abroad and Field Schools","20","22550-1","IE Education Abroad and Field Schools","22550-1-14","IE EAFS - Eng/Geography Field School Italy","223","Field Schools","2017-01-01","2099-12-31","N",false,"22550-1-14"]
["250","International Education","255","Education Abroad and Field Schools","2550","Education Abroad and Field Schools","20","22550-1","IE Education Abroad and Field Schools","22550-1-15","IE EAFS - Engineering Field School Vietnam","223","Field Schools","2017-01-01","2099-12-31","N",false,"22550-1-15"]
["250","International Education","255","Education Abroad and Field Schools","2550","Education Abroad and Field Schools","20","22550-1","IE Education Abroad and Field Schools","22550-1-16","IE EAFS - Field School Fee Clearing","223","Field Schools","2017-01-01","2099-12-31","N",false,"22550-1-16"]
["250","International Education","255","Education Abroad and Field Schools","2550","Education Abroad and Field Schools","20","22550-1","IE Education Abroad and Field Schools","22550-1-17","IE EAFS - Geography Abroad","223","Field Schools","2017-01-01","2099-12-31","N",false,"22550-1-17"]
["250","International Education","255","Education Abroad and Field Schools","2550","Education Abroad and Field Schools","20","22550-1","IE Education Abroad and Field Schools","22550-1-18","IE EAFS - Geology Abroad","223","Field Schools","2017-01-01","2099-12-31","N",false,"22550-1-18"]
["250","International Education","255","Education Abroad and Field Schools","2550","Education Abroad and Field Schools","20","22550-1","IE Education Abroad and Field Schools","22550-1-19","IE EAFS - Global Studies Internship","223","Field Schools","2017-01-01","2099-12-31","N",false,"22550-1-19"]
["250","International Education","255","Education Abroad and Field Schools","2550","Education Abroad and Field Schools","20","22550-1","IE Education Abroad and Field Schools","22550-1-2","IE EAFS - Exchange Programs","223","Field Schools","2017-01-01","2099-12-31","N",false,"22550-1-2"]
["250","International Education","255","Education Abroad and Field Schools","2550","Education Abroad and Field Schools","20","22550-1","IE Education Abroad and Field Schools","22550-1-20","IE EAFS - China Office","223","Field Schools","2017-01-01","2099-12-31","N",false,"22550-1-20"]
["250","International Education","255","Education Abroad and Field Schools","2550","Education Abroad and Field Schools","20","22550-1","IE Education Abroad and Field Schools","22550-1-21","IE EAFS - HSP/Tourism Field School EAFS - Hawaii","223","Field Schools","2017-01-01","2099-12-31","N",false,"22550-1-21"]
["250","International Education","255","Education Abroad and Field Schools","2550","Education Abroad and Field Schools","20","22550-1","IE Education Abroad and Field Schools","22550-1-22","IE EAFS - India Office","223","Field Schools","2017-01-01","2099-12-31","N",false,"22550-1-22"]
["250","International Education","255","Education Abroad and Field Schools","2550","Education Abroad and Field Schools","20","22550-1","IE Education Abroad and Field Schools","22550-1-23","IE EAFS - International Ed EAFS - Global Studies","223","Field Schools","2017-01-01","2099-12-31","N",false,"22550-1-23"]
["250","International Education","255","Education Abroad and Field Schools","2550","Education Abroad and Field Schools","20","22550-1","IE Education Abroad and Field Schools","22550-1-24","IE EAFS - ISTEP EAFS - Tanzania","223","Field Schools","2017-01-01","2099-12-31","N",false,"22550-1-24"]
["250","International Education","255","Education Abroad and Field Schools","2550","Education Abroad and Field Schools","20","22550-1","IE Education Abroad and Field Schools","22550-1-25","IE EAFS - ISTEP EAFS - Tanzania PIP","223","Field Schools","2017-01-01","2099-12-31","N",false,"22550-1-25"]
["250","International Education","255","Education Abroad and Field Schools","2550","Education Abroad and Field Schools","20","22550-1","IE Education Abroad and Field Schools","22550-1-26","IE EAFS - KEFEP EAFS - Kenya","223","Field Schools","2017-01-01","2099-12-31","N",false,"22550-1-26"]
["250","International Education","255","Education Abroad and Field Schools","2550","Education Abroad and Field Schools","20","22550-1","IE Education Abroad and Field Schools","22550-1-27","IE EAFS - Latin America Office","223","Field Schools","2017-01-01","2099-12-31","N",false,"22550-1-27"]
["250","International Education","255","Education Abroad and Field Schools","2550","Education Abroad and Field Schools","20","22550-1","IE Education Abroad and Field Schools","22550-1-28","IE EAFS - Liberal Studies Abroad","223","Field Schools","2017-01-01","2099-12-31","N",false,"22550-1-28"]
["250","International Education","255","Education Abroad and Field Schools","2550","Education Abroad and Field Schools","20","22550-1","IE Education Abroad and Field Schools","22550-1-29","IE EAFS - Nursing field School Nepal","223","Field Schools","2017-01-01","2099-12-31","N",false,"22550-1-29"]
["250","International Education","255","Education Abroad and Field Schools","2550","Education Abroad and Field Schools","20","22550-1","IE Education Abroad and Field Schools","22550-1-3","IE EAFS - Anthropology Field School","223","Field Schools","2017-01-01","2099-12-31","N",false,"22550-1-3"]
["250","International Education","255","Education Abroad and Field Schools","2550","Education Abroad and Field Schools","20","22550-1","IE Education Abroad and Field Schools","22550-1-30","IE EAFS - OWWE EAFS - Europe Office","223","Field Schools","2017-01-01","2099-12-31","N",false,"22550-1-30"]
["250","International Education","255","Education Abroad and Field Schools","2550","Education Abroad and Field Schools","20","22550-1","IE Education Abroad and Field Schools","22550-1-31","IE EAFS - Practicum Support","223","Field Schools","2017-01-01","2099-12-31","N",false,"22550-1-31"]
["250","International Education","255","Education Abroad and Field Schools","2550","Education Abroad and Field Schools","20","22550-1","IE Education Abroad and Field Schools","22550-1-32","IE EAFS - RASHA EAFS - East Asia Office","223","Field Schools","2017-01-01","2099-12-31","N",false,"22550-1-32"]
["250","International Education","255","Education Abroad and Field Schools","2550","Education Abroad and Field Schools","20","22550-1","IE Education Abroad and Field Schools","22550-1-33","IE EAFS - Soc/Crim Field School EAFS - Arizona","223","Field Schools","2017-01-01","2099-12-31","N",false,"22550-1-33"]
["250","International Education","255","Education Abroad and Field Schools","2550","Education Abroad and Field Schools","20","22550-1","IE Education Abroad and Field Schools","22550-1-34","IE EAFS - Study Abroad Emergency Fund","223","Field Schools","2017-01-01","2099-12-31","N",false,"22550-1-34"]
["250","International Education","255","Education Abroad and Field Schools","2550","Education Abroad and Field Schools","20","22550-1","IE Education Abroad and Field Schools","22550-1-35","IE EAFS - SWU BIP","223","Field Schools","2017-01-01","2099-12-31","N",false,"22550-1-35"]
["250","International Education","255","Education Abroad and Field Schools","2550","Education Abroad and Field Schools","20","22550-1","IE Education Abroad and Field Schools","22550-1-36","IE EAFS - Tamagawa ESL/Horticulture","223","Field Schools","2017-01-01","2099-12-31","N",false,"22550-1-36"]
["250","International Education","255","Education Abroad and Field Schools","2550","Education Abroad and Field Schools","20","22550-1","IE Education Abroad and Field Schools","22550-1-37","IE EAFS - Vietnam EAFS - TRA VINH","223","Field Schools","2017-01-01","2099-12-31","N",false,"22550-1-37"]
["250","International Education","255","Education Abroad and Field Schools","2550","Education Abroad and Field Schools","20","22550-1","IE Education Abroad and Field Schools","22550-1-38","IE EAFS - VIU in Africa","223","Field Schools","2017-01-01","2099-12-31","N",false,"22550-1-38"]
["250","International Education","255","Education Abroad and Field Schools","2550","Education Abroad and Field Schools","20","22550-1","IE Education Abroad and Field Schools","22550-1-4","IE EAFS - Anthropology Internships","223","Field Schools","2017-01-01","2099-12-31","N",false,"22550-1-4"]
["250","International Education","255","Education Abroad and Field Schools","2550","Education Abroad and Field Schools","20","22550-1","IE Education Abroad and Field Schools","22550-1-5","IE EAFS - Art EAFS - New York","223","Field Schools","2017-01-01","2099-12-31","N",false,"22550-1-5"]
["250","International Education","255","Education Abroad and Field Schools","2550","Education Abroad and Field Schools","20","22550-1","IE Education Abroad and Field Schools","22550-1-6","IE EAFS - Bach Education Abroad","223","Field Schools","2017-01-01","2099-12-31","N",false,"22550-1-6"]
["250","International Education","255","Education Abroad and Field Schools","2550","Education Abroad and Field Schools","20","22550-1","IE Education Abroad and Field Schools","22550-1-7","IE EAFS - Baking EAFS - France","223","Field Schools","2017-01-01","2099-12-31","N",false,"22550-1-7"]
["250","International Education","255","Education Abroad and Field Schools","2550","Education Abroad and Field Schools","20","22550-1","IE Education Abroad and Field Schools","22550-1-8","IE EAFS - Crim - Philidelphia","223","Field Schools","2017-01-01","2099-12-31","N",false,"22550-1-8"]
["250","International Education","255","Education Abroad and Field Schools","2550","Education Abroad and Field Schools","20","22550-1","IE Education Abroad and Field Schools","22550-1-9","IE EAFS - Business Field School EAFS - China","223","Field Schools","2017-01-01","2099-12-31","N",false,"22550-1-9"]
["250","International Education","255","Education Abroad and Field Schools","2550","Education Abroad and Field Schools","20","22550-1","IE Education Abroad and Field Schools","22550-1-39","IE EAFS - Wine Field School - Europe","223","Field Schools","2020-03-28","2099-12-31","N",false,"22550-1-39"]
["250","International Education","255","Education Abroad and Field Schools","2550","Education Abroad and Field Schools","20","22550-1","IE Education Abroad and Field Schools","22550-1-40","IE EAFS - PE Abroad","223","Field Schools","2020-03-28","2099-12-31","N",false,"22550-1-40"]
["250","International Education","255","Education Abroad and Field Schools","2550","Education Abroad and Field Schools","20","22550-1","IE Education Abroad and Field Schools","22550-1-41","IE EAFS - HHS Field School - Indonesia","223","Field Schools","2020-03-28","2099-12-31","N",false,"22550-1-41"]
["260","Management","260","Management","2601","Faculty of Management - Initiatives","20","22601-1","FOM Faculty - General Research","22601-1-1","FOM General Research - Brouder","302","General Research","2017-01-01","2099-12-31","N",false,"22601-1-1"]
["260","Management","260","Management","2601","Faculty of Management - Initiatives","20","22601-1","FOM Faculty - General Research","22601-1-10","FOM General Research - Predyk","302","General Research","2017-01-01","2099-12-31","N",false,"22601-1-10"]
["260","Management","260","Management","2601","Faculty of Management - Initiatives","20","22601-1","FOM Faculty - General Research","22601-1-11","FOM General Research - Schroeder","302","General Research","2017-01-01","2099-12-31","N",false,"22601-1-11"]
["260","Management","260","Management","2601","Faculty of Management - Initiatives","20","22601-1","FOM Faculty - General Research","22601-1-12","FOM General Research - Stone","302","General Research","2017-01-01","2099-12-31","N",false,"22601-1-12"]
["260","Management","260","Management","2601","Faculty of Management - Initiatives","20","22601-1","FOM Faculty - General Research","22601-1-13","FOM General Research - Vaugeois","302","General Research","2017-01-01","2099-12-31","N",false,"22601-1-13"]
["260","Management","260","Management","2601","Faculty of Management - Initiatives","20","22601-1","FOM Faculty - General Research","22601-1-14","FOM General Research - Weighill","302","General Research","2017-01-01","2099-12-31","N",false,"22601-1-14"]
["260","Management","260","Management","2601","Faculty of Management - Initiatives","20","22601-1","FOM Faculty - General Research","22601-1-2","FOM General Research - Burnley, Chris","302","General Research","2017-01-01","2099-12-31","N",false,"22601-1-2"]
["260","Management","260","Management","2601","Faculty of Management - Initiatives","20","22601-1","FOM Faculty - General Research","22601-1-3","FOM General Research - De La Barre","302","General Research","2017-01-01","2099-12-31","N",false,"22601-1-3"]
["260","Management","260","Management","2601","Faculty of Management - Initiatives","20","22601-1","FOM Faculty - General Research","22601-1-4","FOM General Research - Delamere","302","General Research","2017-01-01","2099-12-31","N",false,"22601-1-4"]
["260","Management","260","Management","2601","Faculty of Management - Initiatives","20","22601-1","FOM Faculty - General Research","22601-1-5","FOM General Research - Ferguson","302","General Research","2017-01-01","2099-12-31","N",false,"22601-1-5"]
["260","Management","260","Management","2601","Faculty of Management - Initiatives","20","22601-1","FOM Faculty - General Research","22601-1-6","FOM General Research - Johnson","302","General Research","2017-01-01","2099-12-31","N",false,"22601-1-6"]
["260","Management","260","Management","2601","Faculty of Management - Initiatives","20","22601-1","FOM Faculty - General Research","22601-1-7","FOM General Research - Latulippe","302","General Research","2017-01-01","2099-12-31","N",false,"22601-1-7"]
["260","Management","260","Management","2601","Faculty of Management - Initiatives","20","22601-1","FOM Faculty - General Research","22601-1-8","FOM General Research - Moghimehfar","302","General Research","2017-01-01","2099-12-31","N",false,"22601-1-8"]
["260","Management","260","Management","2601","Faculty of Management - Initiatives","20","22601-1","FOM Faculty - General Research","22601-1-15","FOM General Research - McKeown","302","General Research","2021-03-27","2099-12-31","N",false,"22601-1-15"]
["260","Management","260","Management","2601","Faculty of Management - Initiatives","20","22601-2","FOM MBA Funded Initiatives","22601-2-1","FOM MBA Funded Initatives","201","Faculty Administration","2017-01-01","2099-12-31","N",false,"22601-2-1"]
["260","Management","260","Management","2601","Faculty of Management - Initiatives","20","22601-3","FOM Faculty Scholarships","22601-3-1","FOM Scholarships - Competitive Fund","201","Faculty Administration","2017-01-01","2099-12-31","N",false,"22601-3-1"]
["260","Management","260","Management","2601","Faculty of Management - Initiatives","20","22601-4","FOM Faculty - Other","22601-4-1","FOM Accreditation - Business Programs","201","Faculty Administration","2017-01-01","2099-12-31","N",false,"22601-4-1"]
["260","Management","260","Management","2630","Recreation and Tourism","20","22630-1","FOM Event Management","22630-1-1","FOM Event Management","208","Instruction","2017-01-01","2099-12-31","N",false,"22630-1-1"]
["260","Management","260","Management","2635","Hospitality Management","20","22635-1","FOM Hospitality Management - Wine Certificate","22635-1-1","FOM Hospitality Management - Wine Certificate","208","Instruction","2017-01-01","2099-12-31","N",false,"22635-1-1"]
["260","Management","264","Graduate Programs","2641","Post Degree Diploma in Business Studies","20","22641-1","FOM Post Degree Diploma in Business Studies","22641-1-1","FOM Post Degree Diploma in Business Studies","208","Instruction","2017-01-01","2099-12-31","N",false,"22641-1-1"]
["260","Management","264","Graduate Programs","2645","Graduate Certificate in Business Management","20","22645-1","FOM Graduate Certificate in Business Program","22645-1-1","FOM Graduate Certificate in Business Program","208","Instruction","2017-01-01","2099-12-31","N",false,"22645-1-1"]
["260","Management","264","Graduate Programs","2650","Graduate Diploma in Hospitality","20","22650-1","FOM Graduate Diploma in Hospitality","22650-1-1","FOM Graduate Diploma in Hospitality","208","Instruction","2017-01-01","2099-12-31","N",false,"22650-1-1"]
["260","Management","264","Graduate Programs","2651","Graduate Diploma in International Trade","20","22651-1","FOM Graduate Diploma in International Trade","22651-1-1","FOM Graduate Diploma in International Trade","208","Instruction","2017-01-01","2099-12-31","N",false,"22651-1-1"]
["260","Management","264","Graduate Programs","2652","Graduate Diploma in Project Management","20","22652-1","FOM Graduate Diploma in Project Management","22652-1-1","FOM Graduate Diploma in Project Management","208","Instruction","2017-01-01","2099-12-31","N",false,"22652-1-1"]
["260","Management","264","Graduate Programs","2655","Master of Arts in Sustainable Leisure Management","20","22655-1","FOM Master of Arts in Sustainable Leisure Management","22655-1-1","FOM Master of Arts in Sustainable Leisure Management","208","Instruction","2017-01-01","2099-12-31","N",false,"22655-1-1"]
["260","Management","264","Graduate Programs","2660","Master of Business Administration","20","22660-1","FOM Master of Business Administration","22660-1-1","FOM MBA Instruction","208","Instruction","2017-01-01","2099-12-31","N",false,"22660-1-1"]
["260","Management","264","Graduate Programs","2660","Master of Business Administration","20","22660-2","FOM MBA Internship","22660-2-1","FOM MBA Internship","208","Instruction","2017-01-01","2099-12-31","N",false,"22660-2-1"]
["260","Management","264","Graduate Programs","2660","Master of Business Administration","20","22660-3","FOM MBA Course Redesign","22660-3-1","FOM MBA Course Redesign","201","Faculty Administration","2017-01-01","2099-12-31","N",false,"22660-3-1"]
["260","Management","264","Graduate Programs","2660","Master of Business Administration","20","22660-4","FOM MBA Faculty Development","22660-4-1","FOM MBA Faculty Development","201","Faculty Administration","2017-01-01","2099-12-31","N",false,"22660-4-1"]
["270","Science and Technology","270","Science and Technology","2701","Science and Technology - Initiatives","20","22701-1","ST Faculty - General Research","22701-1-17","ST General Research - Russell","302","General Research","2020-03-28","2099-12-31","N",false,"22701-1-17"]
["270","Science and Technology","270","Science and Technology","2701","Science and Technology - Initiatives","20","22701-1","ST Faculty - General Research","22701-1-18","ST General Research - McEwen","302","General Research","2020-03-28","2099-12-31","N",false,"22701-1-18"]
["270","Science and Technology","270","Science and Technology","2701","Science and Technology - Initiatives","20","22701-1","ST Faculty - General Research","22701-1-19","ST General Research - Sun","302","General Research","2021-03-27","2099-12-31","N",false,"22701-1-19"]
["270","Science and Technology","270","Science and Technology","2701","Science and Technology - Initiatives","20","22701-1","ST Faculty - General Research","22701-1-1","ST General Research - Baker","302","General Research","2017-01-01","2099-12-31","N",false,"22701-1-1"]
["270","Science and Technology","270","Science and Technology","2701","Science and Technology - Initiatives","20","22701-1","ST Faculty - General Research","22701-1-11","ST General Research - Krogh","302","General Research","2017-01-01","2099-12-31","N",false,"22701-1-11"]
["270","Science and Technology","270","Science and Technology","2701","Science and Technology - Initiatives","20","22701-1","ST Faculty - General Research","22701-1-12","ST General Research - Lesemann","302","General Research","2017-01-01","2099-12-31","N",false,"22701-1-12"]
["270","Science and Technology","270","Science and Technology","2701","Science and Technology - Initiatives","20","22701-1","ST Faculty - General Research","22701-1-15","ST General Research - Penner","302","General Research","2017-01-01","2099-12-31","N",false,"22701-1-15"]
["270","Science and Technology","270","Science and Technology","2701","Science and Technology - Initiatives","20","22701-1","ST Faculty - General Research","22701-1-16","ST General Research - Stokes","302","General Research","2017-01-01","2099-12-31","N",false,"22701-1-16"]
["270","Science and Technology","270","Science and Technology","2701","Science and Technology - Initiatives","20","22701-1","ST Faculty - General Research","22701-1-4","ST General Research - Duff","302","General Research","2017-01-01","2099-12-31","N",false,"22701-1-4"]
["270","Science and Technology","270","Science and Technology","2701","Science and Technology - Initiatives","20","22701-1","ST Faculty - General Research","22701-1-7","ST General Research - Gill","302","General Research","2017-01-01","2099-12-31","N",false,"22701-1-7"]
["270","Science and Technology","270","Science and Technology","2701","Science and Technology - Initiatives","20","22701-1","ST Faculty - General Research","22701-1-9","ST General Research - Hernandez","302","General Research","2017-01-01","2099-12-31","N",false,"22701-1-9"]
["270","Science and Technology","270","Science and Technology","2701","Science and Technology - Initiatives","20","22701-2","ST Faculty Proceeds","22701-2-1","ST Faculty Proceeds","201","Faculty Administration","2017-01-01","2099-12-31","N",false,"22701-2-1"]
["270","Science and Technology","270","Science and Technology","2701","Science and Technology - Initiatives","20","22701-3","ST Faculty Fundraising","22701-3-2","ST Fundraising - Awareness Climate Change","201","Faculty Administration","2017-01-01","2099-12-31","N",false,"22701-3-2"]
["270","Science and Technology","270","Science and Technology","2701","Science and Technology - Initiatives","20","22701-3","ST Faculty Fundraising","22701-3-1","ST Fundraising - VIU Museum","201","Faculty Administration","2017-01-01","2099-12-31","N",false,"22701-3-1"]
["270","Science and Technology","270","Science and Technology","2701","Science and Technology - Initiatives","20","22701-4","ST Faculty Lecture Series","22701-4-1","ST Faculty Lecture Series","201","Faculty Administration","2017-01-01","2099-12-31","N",false,"22701-4-1"]
["270","Science and Technology","270","Science and Technology","2701","Science and Technology - Initiatives","20","22701-5","ST Research Contracts","22701-5-1","ST Centre for Coastal Health","310","Research Contract","2017-01-01","2099-12-31","N",false,"22701-5-1"]
["270","Science and Technology","270","Science and Technology","2701","Science and Technology - Initiatives","20","22701-5","ST Research Contracts","22701-5-2","ST Environment Canada Contract - Krogh","310","Research Contract","2017-01-01","2099-12-31","N",false,"22701-5-2"]
["270","Science and Technology","270","Science and Technology","2701","Science and Technology - Initiatives","20","22701-6","ST Applied Environmental Research Lab","22701-6-1","ST AERL (Krogh)","216","Research Administration","2017-01-01","2099-12-31","N",false,"22701-6-1"]
["270","Science and Technology","270","Science and Technology","2701","Science and Technology - Initiatives","20","22701-6","ST Applied Environmental Research Lab","22701-6-2","ST AERL Applied Research","216","Research Administration","2017-01-01","2099-12-31","N",false,"22701-6-2"]
["270","Science and Technology","270","Science and Technology","2705","AQUA Group","20","22705-1","ST Centre for Shellfish Research","22705-1-1","ST CSR Operations","216","Research Administration","2017-01-01","2099-12-31","N",false,"22705-1-1"]
["270","Science and Technology","270","Science and Technology","2705","AQUA Group","20","22705-2","ST Deep Bay Marine Field Station","22705-2-1","ST DBMFS Operations","216","Research Administration","2017-01-01","2099-12-31","N",false,"22705-2-1"]
["270","Science and Technology","270","Science and Technology","2705","AQUA Group","20","22705-2","ST Deep Bay Marine Field Station","22705-2-2","ST DBMFS Public Education & Events","216","Research Administration","2017-01-01","2099-12-31","N",false,"22705-2-2"]
["270","Science and Technology","270","Science and Technology","2705","AQUA Group","20","22705-2","ST Deep Bay Marine Field Station","22705-2-3","ST DBMFS Research & Service","216","Research Administration","2017-01-01","2099-12-31","N",false,"22705-2-3"]
["270","Science and Technology","270","Science and Technology","2705","AQUA Group","20","22705-3","ST Sturgeon Centre","22705-3-1","ST SC Operations","201","Faculty Administration","2017-01-01","2099-12-31","N",false,"22705-3-1"]
["270","Science and Technology","270","Science and Technology","2705","AQUA Group","20","22705-4","ST Seafood Innovation Centre","22705-4-1","ST Seafood Innovation Centre - Feasibility","201","Faculty Administration","2017-01-01","2099-12-31","N",false,"22705-4-1"]
["270","Science and Technology","270","Science and Technology","2705","AQUA Group","20","22705-4","ST Seafood Innovation Centre","22705-4-2","ST Seafood Innovation Centre - Implementation","201","Faculty Administration","2020-03-28","2099-12-31","N",false,"22705-4-2"]
["270","Science and Technology","270","Science and Technology","2710","Biology","20","22710-2","ST Biology - VIU Bird Banding Station","22710-2-1","ST VIU Bird Banding Station","216","Research Administration","2017-01-01","2099-12-31","N",false,"22710-2-1"]
["270","Science and Technology","270","Science and Technology","2725","Earth Science / Geology","20","22725-1","ST Earth Science Field Schools","22725-1-1","ST Geology 206 Field School","223","Field Schools","2017-01-01","2099-12-31","N",false,"22725-1-1"]
["270","Science and Technology","270","Science and Technology","2725","Earth Science / Geology","20","22725-1","ST Earth Science Field Schools","22725-1-2","ST Geology 390 Field Studies","223","Field Schools","2017-01-01","2099-12-31","N",false,"22725-1-2"]
["270","Science and Technology","270","Science and Technology","2725","Earth Science / Geology","20","22725-2","ST Earth Science / Geology - Promotion","22725-2-1","ST Earth Science / Geology - Promotion","201","Faculty Administration","2017-01-01","2099-12-31","N",false,"22725-2-1"]
["270","Science and Technology","270","Science and Technology","2730","Engineering","20","22730-2","ST Engineering Research","22730-2-1","ST Engineering Research","216","Research Administration","2021-03-27","2099-12-31","N",false,"22730-2-1"]
["270","Science and Technology","270","Science and Technology","2740","Forestry","20","22740-1","ST Forestry Field Trips","22740-1-1","ST Forestry Field Trips - Domestic","223","Field Schools","2017-01-01","2099-12-31","N",false,"22740-1-1"]
["270","Science and Technology","270","Science and Technology","2740","Forestry","20","22740-2","ST Forestry Students - Other","22740-2-2","ST Forestry Equipment Deposits","201","Faculty Administration","2017-01-01","2099-12-31","N",false,"22740-2-2"]
["270","Science and Technology","270","Science and Technology","2740","Forestry","20","22740-3","ST Forestry Woodlot","22740-3-1","ST Forestry Woodlot - A117","219","Contract activity","2017-01-01","2099-12-31","N",false,"22740-3-1"]
["270","Science and Technology","270","Science and Technology","2745","Mathematics","20","22745-1","ST Math Contest","22745-1-1","ST Math Contest","208","Instruction","2017-01-01","2099-12-31","N",false,"22745-1-1"]
["270","Science and Technology","270","Science and Technology","2755","Resource Management and Protection","20","22755-1","ST RMOT Student Fund","22755-1-1","ST RMOT Student Fund","201","Faculty Administration","2017-01-01","2099-12-31","N",false,"22755-1-1"]
["270","Science and Technology","270","Science and Technology","2755","Resource Management and Protection","20","22755-2","ST MENREP Program","22755-2-1","ST MENREP Program","219","Contract activity","2020-03-28","2099-12-31","N",false,"22755-2-1"]
["280","Social Sciences","280","Social Sciences","2801","Social Sciences - Initiatives","20","22801-1","SS Faculty - General Research","22801-1-1","SS General Research - Burnley, Caroline","302","General Research","2017-01-01","2099-12-31","N",false,"22801-1-1"]
["280","Social Sciences","280","Social Sciences","2801","Social Sciences - Initiatives","20","22801-1","SS Faculty - General Research","22801-1-10","SS General Research - Nicol","302","General Research","2017-01-01","2099-12-31","N",false,"22801-1-10"]
["280","Social Sciences","280","Social Sciences","2801","Social Sciences - Initiatives","20","22801-1","SS Faculty - General Research","22801-1-11","SS General Research - Patenaude","302","General Research","2017-01-01","2099-12-31","N",false,"22801-1-11"]
["280","Social Sciences","280","Social Sciences","2801","Social Sciences - Initiatives","20","22801-1","SS Faculty - General Research","22801-1-2","SS General Research - Cooper","302","General Research","2017-01-01","2099-12-31","N",false,"22801-1-2"]
["280","Social Sciences","280","Social Sciences","2801","Social Sciences - Initiatives","20","22801-1","SS Faculty - General Research","22801-1-3","SS General Research - Gilchrist","302","General Research","2017-01-01","2099-12-31","N",false,"22801-1-3"]
["280","Social Sciences","280","Social Sciences","2801","Social Sciences - Initiatives","20","22801-1","SS Faculty - General Research","22801-1-4","SS General Research - Hinbest","302","General Research","2017-01-01","2099-12-31","N",false,"22801-1-4"]
["280","Social Sciences","280","Social Sciences","2801","Social Sciences - Initiatives","20","22801-1","SS Faculty - General Research","22801-1-5","SS General Research - Lim","302","General Research","2017-01-01","2099-12-31","N",false,"22801-1-5"]
["280","Social Sciences","280","Social Sciences","2801","Social Sciences - Initiatives","20","22801-1","SS Faculty - General Research","22801-1-6","SS General Research - Livingstone","302","General Research","2017-01-01","2099-12-31","N",false,"22801-1-6"]
["280","Social Sciences","280","Social Sciences","2801","Social Sciences - Initiatives","20","22801-1","SS Faculty - General Research","22801-1-7","SS General Research - MacGuire","302","General Research","2017-01-01","2099-12-31","N",false,"22801-1-7"]
["280","Social Sciences","280","Social Sciences","2801","Social Sciences - Initiatives","20","22801-1","SS Faculty - General Research","22801-1-8","SS General Research - Marchant","302","General Research","2017-01-01","2099-12-31","N",false,"22801-1-8"]
["280","Social Sciences","280","Social Sciences","2801","Social Sciences - Initiatives","20","22801-1","SS Faculty - General Research","22801-1-9","SS General Research - McCunn","302","General Research","2017-01-01","2099-12-31","N",false,"22801-1-9"]
["280","Social Sciences","280","Social Sciences","2801","Social Sciences - Initiatives","20","22801-2","SS General Research - Shaw","22801-2-1","SS General Research - Shaw","302","General Research","2017-01-01","2099-12-31","N",false,"22801-2-1"]
["280","Social Sciences","280","Social Sciences","2801","Social Sciences - Initiatives","20","22801-3","SS Research - Other","22801-3-1","SS Malaspina Research Centre","216","Research Administration","2017-01-01","2099-12-31","N",false,"22801-3-1"]
["280","Social Sciences","280","Social Sciences","2801","Social Sciences - Initiatives","20","22801-3","SS Research - Other","22801-3-2","SS Resilience Research Lab","216","Research Administration","2017-01-01","2099-12-31","N",false,"22801-3-2"]
["280","Social Sciences","280","Social Sciences","2801","Social Sciences - Initiatives","20","22801-3","SS Research - Other","22801-3-3","SS Resilience Research Lab (RSAC)","216","Research Administration","2017-01-01","2099-12-31","N",false,"22801-3-3"]
["280","Social Sciences","280","Social Sciences","2801","Social Sciences - Initiatives","20","22801-4","SS Faculty - Other","22801-4-1","SS VIU Model UN","201","Faculty Administration","2017-01-01","2099-12-31","N",false,"22801-4-1"]
["280","Social Sciences","280","Social Sciences","2801","Social Sciences - Initiatives","20","22801-4","SS Faculty - Other","22801-4-2","SS The Compass Rose","201","Faculty Administration","2017-01-01","2099-12-31","N",false,"22801-4-2"]
["280","Social Sciences","280","Social Sciences","2801","Social Sciences - Initiatives","20","22801-4","SS Faculty - Other","22801-4-3","SS Worldbridger Film Series","201","Faculty Administration","2017-01-01","2099-12-31","N",false,"22801-4-3"]
["280","Social Sciences","280","Social Sciences","2801","Social Sciences - Initiatives","20","22801-4","SS Faculty - Other","22801-4-4","SS Malaspina Fellows Program","201","Faculty Administration","2020-03-27","2099-12-31","N",false,"22801-4-4"]
["280","Social Sciences","280","Social Sciences","2815","Geography","20","22815-1","SS Geography - Online Course","22815-1-1","SS Geography - Online Course- National Resource Canada","219","Contract activity","2017-01-01","2099-12-31","N",false,"22815-1-1"]
["280","Social Sciences","280","Social Sciences","2848","Advanced Diploma in GIS Applications","20","22848-1","SS Advanced Diploma in GIS Applications","22848-1-1","SS Advanced Diploma in GIS Applications","208","Instruction","2017-01-01","2099-12-31","N",false,"22848-1-1"]
["280","Social Sciences","280","Social Sciences","2849","Lands Management Certificate","20","22849-1","SS Lands Management Certificate","22849-1-1","SS Lands Management Certificate","208","Instruction","2017-01-01","2099-12-31","N",false,"22849-1-1"]
["280","Social Sciences","280","Social Sciences","2850","Master of Community Planning ","20","22850-1","SS Master of Community Planning ","22850-1-1","SS Master of Community Planning ","208","Instruction","2017-01-01","2099-12-31","N",false,"22850-1-1"]
["280","Social Sciences","280","Social Sciences","2855","Master of Geographic Information Systems Applications","20","22855-1","SS Master of Geographic Information Systems Applications","22855-1-1","SS Master of Geographic Information Systems Applications","208","Instruction","2017-01-01","2099-12-31","N",false,"22855-1-1"]
["290","Trades and Applied Technology","290","Trades and Applied Technology","2901","Trades and Applied Technology - Initiatives","20","22901-1","TAT Faculty Contracts","22901-1-1","TAT Faculty Contracts - Development","219","Contract activity","2017-01-01","2099-12-31","N",false,"22901-1-1"]
["290","Trades and Applied Technology","290","Trades and Applied Technology","2901","Trades and Applied Technology - Initiatives","20","22901-1","TAT Faculty Contracts","22901-1-3","TAT Faculty Contracts- Hair Harmonization - Trades Training BC","219","Contract activity","2020-03-28","2099-12-31","N",false,"22901-1-3"]
["290","Trades and Applied Technology","290","Trades and Applied Technology","2901","Trades and Applied Technology - Initiatives","20","22901-2","TAT Skills Canada Competition","22901-2-1","TAT Skills Canada Competition","224","Field Experience / Practicum","2017-01-01","2099-12-31","N",false,"22901-2-1"]
["290","Trades and Applied Technology","290","Trades and Applied Technology","2905","Office Administration","20","22905-1","TAT Office Administration - Rentals & Deposits","22905-1-1","TAT Office Administration - Rentals & Deposits","208","Instruction","2017-01-01","2099-12-31","N",false,"22905-1-1"]
["290","Trades and Applied Technology","290","Trades and Applied Technology","2905","Office Administration","20","22905-2","TAT Office Administration - Cowichan Contract","22905-2-1","TAT Office Administration - Cowichan Contract","219","Contract activity","2017-01-01","2099-12-31","N",false,"22905-2-1"]
["290","Trades and Applied Technology","290","Trades and Applied Technology","2915","Carpentry","20","22915-1","TAT Carpentry - Sunshine Coast SD #46 Partnership","22915-1-1","TAT Carpentry - Sunshine Coast SD #46 Partnership","219","Contract activity","2017-01-01","2099-12-31","N",false,"22915-1-1"]
["290","Trades and Applied Technology","290","Trades and Applied Technology","2915","Carpentry","20","22915-2","TAT Carpentry - Aboriginal Construction","22915-2-1","TAT Carpentry - Aboriginal Construction - Pt Alberni, Nuuchahnulth","219","Contract activity","2017-01-01","2099-12-31","N",false,"22915-2-1"]
["290","Trades and Applied Technology","290","Trades and Applied Technology","2920","Culinary Arts","20","22920-1","TAT Culinary Arts Contract - Diploma","22920-1-1","TAT Culinary Arts Contract - Diploma","219","Contract activity","2017-01-01","2099-12-31","N",false,"22920-1-1"]
["290","Trades and Applied Technology","290","Trades and Applied Technology","2930","Hairdressing","20","22930-1","TAT Hairdressing Contract - Cowichan SD #79","22930-1-1","TAT Hairdressing Contract - Cowichan SD #79","219","Contract activity","2017-01-01","2099-12-31","N",false,"22930-1-1"]
["290","Trades and Applied Technology","290","Trades and Applied Technology","2930","Hairdressing","20","22930-2","TAT Hairdressing Contract - Saanich SD #63 (Cowichan)","22930-2-1","TAT Hairdressing Contract - Saanich SD #63 (Cowichan)","219","Contract activity","2017-01-01","2099-12-31","N",false,"22930-2-1"]
["290","Trades and Applied Technology","290","Trades and Applied Technology","2930","Hairdressing","20","22930-3","TAT Hairdressing Contract - Powell River","22930-3-1","TAT Hairdressing Contract - Powell River","219","Contract activity","2017-01-01","2099-12-31","N",false,"22930-3-1"]
["290","Trades and Applied Technology","290","Trades and Applied Technology","2935","Heavy Equipment Operator","20","22935-1","TAT Heavy Equipment Operator","22935-1-1","TAT Heavy Equipment Operator","208","Instruction","2017-01-01","2099-12-31","N",false,"22935-1-1"]
["290","Trades and Applied Technology","290","Trades and Applied Technology","2935","Heavy Equipment Operator","20","22935-2","TAT Heavy Equipment Operator - Simulator Program","22935-2-1","TAT HEO Simulator Program","208","Instruction","2017-01-01","2099-12-31","N",false,"22935-2-1"]
["290","Trades and Applied Technology","290","Trades and Applied Technology","2935","Heavy Equipment Operator","20","22935-2","TAT Heavy Equipment Operator - Simulator Program","22935-2-2","TAT HEO Simulator Program - Forest Centre","208","Instruction","2017-01-01","2099-12-31","N",false,"22935-2-2"]
["290","Trades and Applied Technology","290","Trades and Applied Technology","2935","Heavy Equipment Operator","20","22935-4","TAT Forklift Training","22935-4-1","TAT Forklift Training","208","Instruction","2017-01-01","2099-12-31","N",false,"22935-4-1"]
["290","Trades and Applied Technology","290","Trades and Applied Technology","2935","Heavy Equipment Operator","20","22935-5","TAT Heavy Metal Rocks","22935-5-1","TAT Heavy Metal Rocks","208","Instruction","2017-01-01","2099-12-31","N",false,"22935-5-1"]
["290","Trades and Applied Technology","290","Trades and Applied Technology","2945","Horticultural Technician","20","22945-1","TAT Horticulture Contract - Tamagawa","22945-1-1","TAT Horticulture Contract - Tamagawa","219","Contract activity","2017-01-01","2099-12-31","N",false,"22945-1-1"]
["290","Trades and Applied Technology","290","Trades and Applied Technology","2950","Information Technology & Applied Systems","20","22950-1","TAT Information Technology and Applied Systems - Contract - SD #79","22950-1-1","TAT Information Technology and Applied Systems - Contract - SD #79","219","Contract activity","2017-01-01","2099-12-31","N",false,"22950-1-1"]
["290","Trades and Applied Technology","290","Trades and Applied Technology","2960","Power Engineering","20","22960-1","TAT Power Engineering - Contract","22960-1-1","TAT Power Engineering - Contract","208","Instruction","2020-03-28","2099-12-31","N",false,"22960-1-1"]
["290","Trades and Applied Technology","290","Trades and Applied Technology","2965","Professional Baking & Pastry Arts ","20","22965-1","TAT Baking Donations","22965-1-1","TAT Baking Donations","208","Instruction","2017-01-01","2099-12-31","N",false,"22965-1-1"]
["290","Trades and Applied Technology","290","Trades and Applied Technology","2965","Professional Baking & Pastry Arts ","20","22965-2","TAT Baking Diploma","22965-2-1","TAT Baking Diploma","208","Instruction","2020-03-28","2099-12-31","N",false,"22965-2-1"]
["290","Trades and Applied Technology","290","Trades and Applied Technology","2975","Welding","20","22975-1","TAT Welding - Nanaimo Welder-Fitter","22975-1-1","TAT Welding - Nanaimo Welder-Fitter","208","Instruction","2017-01-01","2099-12-31","N",false,"22975-1-1"]
["290","Trades and Applied Technology","290","Trades and Applied Technology","2975","Welding","20","22975-2","TAT Welding - Cowichan Welder-Fitter","22975-2-1","TAT Welding - Cowichan Welder-Fitter","208","Instruction","2017-01-01","2099-12-31","N",false,"22975-2-1"]
["350","Indigenous Education and Engagement","350","Indigenous Education and Engagement","3510","External Contracts - Indigenous Mentorships","20","23510-1","IEE Indigenous Mentorship","23510-1-1","IEE Indigenous Mentorship","219","Contract activity","2017-01-01","2099-12-31","N",false,"23510-1-1"]
["350","Indigenous Education and Engagement","350","Indigenous Education and Engagement","3515","External Contracts - ASP Community Projects","20","23515-1","IEE ASP - Community Lead Projects","23515-1-1","IEE ASP - Community Lead Projects","219","Contract activity","2017-01-01","2099-12-31","N",false,"23515-1-1"]
["350","Indigenous Education and Engagement","350","Indigenous Education and Engagement","3520","External Contracts - ASP VIU Lead Projects","20","23520-1","IEE ASP - VIU Lead Projects","23520-1-1","IEE ASP - VIU Lead Projects","219","Contract activity","2017-01-01","2099-12-31","N",false,"23520-1-1"]
["350","Indigenous Education and Engagement","350","Indigenous Education and Engagement","3520","External Contracts - ASP VIU Lead Projects","20","23520-2","IEE ASP - IUB Program","23520-2-1","IEE ASP - IUB Program","219","Contract activity","2017-01-01","2099-12-31","N",false,"23520-2-1"]
["350","Indigenous Education and Engagement","350","Indigenous Education and Engagement","3520","External Contracts - ASP VIU Lead Projects","20","23520-3","IEE ASP - Cultural Events","23520-3-1","IEE ASP - Shq’athut Cultural Events","219","Contract activity","2017-01-01","2099-12-31","N",false,"23520-3-1"]
["350","Indigenous Education and Engagement","350","Indigenous Education and Engagement","3520","External Contracts - ASP VIU Lead Projects","20","23520-4","IEE ASP - Language","23520-4-1","IEE ASP - Language HLQ","219","Contract activity","2017-01-01","2099-12-31","N",false,"23520-4-1"]
["350","Indigenous Education and Engagement","350","Indigenous Education and Engagement","3520","External Contracts - ASP VIU Lead Projects","20","23520-4","IEE ASP - Language","23520-4-2","IEE ASP - Language KWA","219","Contract activity","2017-01-01","2099-12-31","N",false,"23520-4-2"]
["350","Indigenous Education and Engagement","350","Indigenous Education and Engagement","3525","External Contracts - Major Partners","20","23525-1","IEE CFN Partnership","23525-1-3","IEE CFN - 2020 Stewardship Training","219","Contract activity","2020-03-28","2099-12-31","N",false,"23525-1-3"]
["350","Indigenous Education and Engagement","350","Indigenous Education and Engagement","3525","External Contracts - Major Partners","20","23525-3","IEE Heiltsuk Partnership","23525-3-2","IEE Heiltsuk - Ecotourism 2020-2021","219","Contract activity","2020-03-28","2099-12-31","N",false,"23525-3-2"]
["350","Indigenous Education and Engagement","350","Indigenous Education and Engagement","3525","External Contracts - Major Partners","20","23525-3","IEE Heiltsuk Partnership","23525-3-1","IEE Heiltsuk - Eco Tourism","219","Contract activity","2017-01-01","2099-12-31","N",false,"23525-3-1"]
["350","Indigenous Education and Engagement","350","Indigenous Education and Engagement","3525","External Contracts - Major Partners","20","23525-4","IEE SFN Partnership","23525-4-2","IEE SFN - ECE 2020","219","Contract activity","2020-03-28","2099-12-31","N",false,"23525-4-2"]
["350","Indigenous Education and Engagement","350","Indigenous Education and Engagement","3525","External Contracts - Major Partners","20","23525-5","IEE Nanwakolas Council","23525-5-1","IEE Nanwakolas Council - STTP","219","Contract activity","2020-03-28","2099-12-31","N",false,"23525-5-1"]
["350","Indigenous Education and Engagement","350","Indigenous Education and Engagement","3530","External Contracts - Misc Contracts","20","23530-1","IEE Misc Contracts","23530-1-1","IEE Misc - Indigenous Contract","219","Contract activity","2017-01-01","2099-12-31","N",false,"23530-1-1"]
["350","Indigenous Education and Engagement","350","Indigenous Education and Engagement","3530","External Contracts - Misc Contracts","20","23530-1","IEE Misc Contracts","23530-1-2","IEE Indigenous Education - Contract Admin","219","Contract activity","2020-03-28","2099-12-31","N",false,"23530-1-2"]
["350","Indigenous Education and Engagement","350","Indigenous Education and Engagement","3535","EleV Scholarship Program","20","23535-1","IEE EleV Scholarship Program - Administration","23535-1-1","IEE EleV Scholarship Program - Administration","219","Contract activity","2017-01-01","2099-12-31","N",false,"23535-1-1"]
["350","Indigenous Education and Engagement","350","Indigenous Education and Engagement","3535","EleV Scholarship Program","20","23535-2","IEE EleV Scholarship Program - Creating Pathways","23535-2-1","IEE EleV - Creating Pathways","219","Contract activity","2017-01-01","2099-12-31","N",false,"23535-2-1"]
["350","Indigenous Education and Engagement","350","Indigenous Education and Engagement","3535","EleV Scholarship Program","20","23535-3","IEE EleV Scholarship Program - Monitor & Evaluation","23535-3-1","IEE EleV - Monitor & Evaluation","219","Contract activity","2017-01-01","2099-12-31","N",false,"23535-3-1"]
["350","Indigenous Education and Engagement","350","Indigenous Education and Engagement","3535","EleV Scholarship Program","20","23535-4","IEE EleV Scholarship Program - Scholarships","23535-4-1","IEE EleV - Scholarships","219","Contract activity","2017-01-01","2099-12-31","N",false,"23535-4-1"]
["350","Indigenous Education and Engagement","350","Indigenous Education and Engagement","3535","EleV Scholarship Program","20","23535-4","IEE EleV Scholarship Program - Scholarships","23535-4-2","IEE EleV - VIU Contribution","219","Contract activity","2017-01-01","2099-12-31","N",false,"23535-4-2"]
["350","Indigenous Education and Engagement","350","Indigenous Education and Engagement","3535","EleV Scholarship Program","20","23535-5","IEE EleV Scholarship Program - Transition to employment","23535-5-1","IEE EleV - Transition to employment","219","Contract activity","2017-01-01","2099-12-31","N",false,"23535-5-1"]
["350","Indigenous Education and Engagement","350","Indigenous Education and Engagement","3535","EleV Scholarship Program","20","23535-6","IEE EleV Scholarship Program - Youth Development","23535-6-1","IEE EleV - Youth Development","219","Contract activity","2017-01-01","2099-12-31","N",false,"23535-6-1"]
["350","Indigenous Education and Engagement","350","Indigenous Education and Engagement","3540","MCF Emerging Initiatives","20","23540-1","IEE MCF - Community Internship","23540-1-1","IEE MCF - Community Internship","219","Contract activity","2017-01-01","2099-12-31","N",false,"23540-1-1"]
["350","Indigenous Education and Engagement","350","Indigenous Education and Engagement","3540","MCF Emerging Initiatives","20","23540-2","IEE MCF - Learning Facilitator","23540-2-1","IEE MCF - Learning Facilitator","219","Contract activity","2017-01-01","2099-12-31","N",false,"23540-2-1"]
["360","Library","360","Library","3610","Library - Initiatives","20","23610-1","LIB Library - Other","23610-1-1","LIB Library - Field School","219","Contract activity","2017-01-01","2099-12-31","N",false,"23610-1-1"]
["360","Library","360","Library","3610","Library - Initiatives","20","23610-1","LIB Library - Other","23610-1-1","LIB Library - Field School","223","Field Schools","2017-01-01","2099-12-31","N",true,"23610-1-1"]
["360","Library","360","Library","3610","Library - Initiatives","20","23610-1","LIB Library - Other","23610-1-2","LIB Library -  Digital BC Secretatiat","219","Contract activity","2020-03-28","2099-12-31","N",false,"23610-1-2"]
["360","Library","360","Library","3610","Library - Initiatives","20","23610-1","LIB Library - Other","23610-1-2","LIB Library -  Digital BC Secretatiat","223","Field Schools","2020-03-28","2099-12-31","N",true,"23610-1-2"]
["360","Library","360","Library","3610","Library - Initiatives","20","23610-2","LIB Faculty - General Research","23610-2-1","LIB Faculty - General Research - McLeod","302","General Research","2021-03-27","2099-12-31","N",false,"23610-2-1"]
["360","Library","360","Library","3610","Library - Initiatives","20","23610-2","LIB Faculty - General Research","23610-2-2","LIB Faculty - General Research - McFarland","302","General Research","2021-03-27","2099-12-31","N",false,"23610-2-2"]
["440","Cowichan Campus","440","Cowichan Campus Administration","4405","Cowichan Campus Administration","20","24405-1","CC Campus Administration - Other","24405-1-1","CC Cafeteria","200","Academic Administration","2017-01-01","2099-12-31","N",false,"24405-1-1"]
["440","Cowichan Campus","440","Cowichan Campus Administration","4405","Cowichan Campus Administration","20","24405-1","CC Campus Administration - Other","24405-1-2","CC Facilities Rentals","200","Academic Administration","2017-01-01","2099-12-31","N",false,"24405-1-2"]
["440","Cowichan Campus","440","Cowichan Campus Administration","4405","Cowichan Campus Administration","20","24405-1","CC Campus Administration - Other","24405-1-3","CC Lockers","200","Academic Administration","2017-01-01","2099-12-31","N",false,"24405-1-3"]
["440","Cowichan Campus","444","Cowichan PD&T & External Contracts","4445","Cowichan External Contracts","20","24445-1","CC Contract - Early Childhood Education and Care","24445-1-1","CC Contracts - ECEC","219","Contract activity","2017-01-01","2099-12-31","N",false,"24445-1-1"]
["440","Cowichan Campus","444","Cowichan PD&T & External Contracts","4445","Cowichan External Contracts","20","24445-2","CC Contract - UCEP","24445-2-1","CC Contract - UCEP","219","Contract activity","2017-01-01","2099-12-31","N",false,"24445-2-1"]
["440","Cowichan Campus","444","Cowichan PD&T & External Contracts","4445","Cowichan External Contracts","20","24445-3","CC Contract - Summer Session","24445-3-1","CC Contract - Summer Session","208","Instruction","2017-01-01","2099-12-31","N",false,"24445-3-1"]
["440","Cowichan Campus","444","Cowichan PD&T & External Contracts","4445","Cowichan External Contracts","20","24445-3","CC Contract - Summer Session","24445-3-1","CC Contract - Summer Session","219","Contract activity","2017-01-01","2099-12-31","N",true,"24445-3-1"]
["440","Cowichan Campus","444","Cowichan PD&T & External Contracts","4445","Cowichan External Contracts","20","24445-4","CC Contract - School District 79","24445-4-2","CC Contract - SD 79 UP","219","Contract activity","2017-01-01","2099-12-31","N",false,"24445-4-2"]
["440","Cowichan Campus","444","Cowichan PD&T & External Contracts","4445","Cowichan External Contracts","20","24445-5","CC Contract - Communities","24445-5-2","CC Contract - Lil'wat Emp Program Carpentry","219","Contract activity","2017-01-01","2099-12-31","N",false,"24445-5-2"]
["440","Cowichan Campus","444","Cowichan PD&T & External Contracts","4445","Cowichan External Contracts","20","24445-5","CC Contract - Communities","24445-5-4","CC Contract - Women In Trades Training","219","Contract activity","2017-01-01","2099-12-31","N",false,"24445-5-4"]
["440","Cowichan Campus","444","Cowichan PD&T & External Contracts","4445","Cowichan External Contracts","20","24445-5","CC Contract - Communities","24445-5-5","CC Contract - Indigenous Peoples In Trades Training","219","Contract activity","2020-03-28","2099-12-31","N",false,"24445-5-5"]
["460","Powell River Campus","460","Powell River Campus Administration","4608","Powell River Student Services","20","24608-1","PRC Student Services Proceeds","24608-1-1","PRC Student Services Proceeds","200","Academic Administration","2017-01-01","2099-12-31","N",false,"24608-1-1"]
["460","Powell River Campus","460","Powell River Campus Administration","4608","Powell River Student Services","20","24608-1","PRC Student Services Proceeds","24608-1-1","PRC Student Services Proceeds","217","Student Support and Services","2017-01-01","2099-12-31","N",true,"24608-1-1"]
["460","Powell River Campus","464","Powell River PD&T and External Contracts","4645","Powell River External Contracts","20","24645-1","PRC Contracts - Aboriginal Service Plan","24645-1-1","PRC Contracts - Aboriginal Service Plan","219","Contract activity","2017-01-01","2099-12-31","N",false,"24645-1-1"]
["460","Powell River Campus","464","Powell River PD&T and External Contracts","4645","Powell River External Contracts","20","24645-3","PRC Contracts - HEO","24645-3-1","PRC Contracts - HEO - Ministry of Social Development","219","Contract activity","2020-03-28","2099-12-31","N",false,"24645-3-1"]
["460","Powell River Campus","464","Powell River PD&T and External Contracts","4645","Powell River External Contracts","20","24645-4","PRC Contracts - Work Essential Skills Training","24645-4-1","PRC Contracts - Work Essential Skills Training - AVED","219","Contract activity","2021-03-27","2099-12-31","N",false,"24645-4-1"]
["460","Powell River Campus","464","Powell River PD&T and External Contracts","4645","Powell River External Contracts","20","24645-5","PRC Contracts - Holding","24645-5-1","PRC Contracts - Holding Account","219","Contract activity","2021-03-27","2099-12-31","N",false,"24645-5-1"]
["500","Scholarship, Research and Creative Activity","500","Scholarship, Research and Creative Activity","5000","Scholarship, Research & Creative Activity","20","25000-1","SRCA Research Contract Administration","25000-1-1","SRCA Research Contract Holding","300","Research Contract Administration","2017-01-01","2099-12-31","N",false,"25000-1-1"]
["500","Scholarship, Research and Creative Activity","500","Scholarship, Research and Creative Activity","5001","Research Initiatives","20","25001-1","SRCA Initiatives","25001-1-1","SRCA Initiatives","300","Research Contract Administration","2017-01-01","2099-12-31","N",false,"25001-1-1"]
["500","Scholarship, Research and Creative Activity","500","Scholarship, Research and Creative Activity","5001","Research Initiatives","20","25001-1","SRCA Initiatives","25001-1-2","SRCA AERL Harm Check Phase 1","300","Research Contract Administration","2017-01-01","2099-12-31","N",false,"25001-1-2"]
["500","Scholarship, Research and Creative Activity","500","Scholarship, Research and Creative Activity","5001","Research Initiatives","20","25001-1","SRCA Initiatives","25001-1-3","SRCA Centre for Social Enterprise","300","Research Contract Administration","2017-01-01","2099-12-31","N",false,"25001-1-3"]
["500","Scholarship, Research and Creative Activity","500","Scholarship, Research and Creative Activity","5001","Research Initiatives","20","25001-1","SRCA Initiatives","25001-1-4","SRCA CHCCRL - Floyd","300","Research Contract Administration","2017-01-01","2099-12-31","N",false,"25001-1-4"]
["500","Scholarship, Research and Creative Activity","500","Scholarship, Research and Creative Activity","5001","Research Initiatives","20","25001-1","SRCA Initiatives","25001-1-5","SRCA Community Initiatives","300","Research Contract Administration","2017-01-01","2099-12-31","N",false,"25001-1-5"]
["500","Scholarship, Research and Creative Activity","500","Scholarship, Research and Creative Activity","5001","Research Initiatives","20","25001-1","SRCA Initiatives","25001-1-6","SRCA CRC Genomics - Green Operating","300","Research Contract Administration","2017-01-01","2099-12-31","N",false,"25001-1-6"]
["500","Scholarship, Research and Creative Activity","500","Scholarship, Research and Creative Activity","5001","Research Initiatives","20","25001-1","SRCA Initiatives","25001-1-7","SRCA CREATE Student Poster","300","Research Contract Administration","2017-01-01","2099-12-31","N",false,"25001-1-7"]
["500","Scholarship, Research and Creative Activity","500","Scholarship, Research and Creative Activity","5001","Research Initiatives","20","25001-1","SRCA Initiatives","25001-1-8","SRCA Newcastle FN Initiatives","300","Research Contract Administration","2017-01-01","2099-12-31","N",false,"25001-1-8"]
["500","Scholarship, Research and Creative Activity","500","Scholarship, Research and Creative Activity","5001","Research Initiatives","20","25001-1","SRCA Initiatives","25001-1-11","SRCA - Student - Misc External Funding","300","Research Contract Administration","2021-03-27","2099-12-31","N",false,"25001-1-11"]
["500","Scholarship, Research and Creative Activity","500","Scholarship, Research and Creative Activity","5020","VIU Internal Awards","20","25020-1","SRCA Internal Awards - Other","25020-1-1","SRCA Internal - Faculty Reassignments","300","Research Contract Administration","2017-01-01","2099-12-31","N",false,"25020-1-1"]
["500","Scholarship, Research and Creative Activity","500","Scholarship, Research and Creative Activity","5025","VIU Internal Awards - VIURAC","20","25025-1","SRCA VIURAC RF","25025-1-24","SRCA VIURAC RF - Stern","315","VIURAC RF","2017-01-01","2099-12-31","N",false,"25025-1-24"]
["500","Scholarship, Research and Creative Activity","500","Scholarship, Research and Creative Activity","5025","VIU Internal Awards - VIURAC","20","25025-1","SRCA VIURAC RF","25025-1-3","SRCA VIURAC RF - Baker","315","VIURAC RF","2017-01-01","2099-12-31","N",false,"25025-1-3"]
["500","Scholarship, Research and Creative Activity","500","Scholarship, Research and Creative Activity","5025","VIU Internal Awards - VIURAC","20","25025-1","SRCA VIURAC RF","25025-1-43","SRCA VIURAC RF - Alphonse","315","VIURAC RF","2017-01-01","2099-12-31","N",false,"25025-1-43"]
["500","Scholarship, Research and Creative Activity","500","Scholarship, Research and Creative Activity","5025","VIU Internal Awards - VIURAC","20","25025-1","SRCA VIURAC RF","25025-1-44","SRCA VIURAC RF - MOGH 100262","315","VIURAC RF","2017-01-01","2099-12-31","N",false,"25025-1-44"]
["500","Scholarship, Research and Creative Activity","500","Scholarship, Research and Creative Activity","5025","VIU Internal Awards - VIURAC","20","25025-1","SRCA VIURAC RF","25025-1-45","SRCA VIURAC RF - HERNANDEZ 100580","315","VIURAC RF","2017-01-01","2099-12-31","N",false,"25025-1-45"]
["500","Scholarship, Research and Creative Activity","500","Scholarship, Research and Creative Activity","5025","VIU Internal Awards - VIURAC","20","25025-1","SRCA VIURAC RF","25025-1-48","SRCA VIURAC RF - MCEWEN 100581","315","VIURAC RF","2017-01-01","2099-12-31","N",false,"25025-1-48"]
["500","Scholarship, Research and Creative Activity","500","Scholarship, Research and Creative Activity","5025","VIU Internal Awards - VIURAC","20","25025-1","SRCA VIURAC RF","25025-1-49","SRCA VIURAC RF - GORRELL 100579","315","VIURAC RF","2017-01-01","2099-12-31","N",false,"25025-1-49"]
["500","Scholarship, Research and Creative Activity","500","Scholarship, Research and Creative Activity","5025","VIU Internal Awards - VIURAC","20","25025-1","SRCA VIURAC RF","25025-1-26","SRCA VIURAC RF - EN/IQ RF Blaney","315","VIURAC RF","2017-01-01","2099-12-31","N",false,"25025-1-26"]
["500","Scholarship, Research and Creative Activity","500","Scholarship, Research and Creative Activity","5025","VIU Internal Awards - VIURAC","20","25025-1","SRCA VIURAC RF","25025-1-28","SRCA VIURAC RF - Craig","315","VIURAC RF","2017-01-01","2099-12-31","N",false,"25025-1-28"]
["500","Scholarship, Research and Creative Activity","500","Scholarship, Research and Creative Activity","5025","VIU Internal Awards - VIURAC","20","25025-1","SRCA VIURAC RF","25025-1-29","SRCA VIURAC RF - Davey","315","VIURAC RF","2017-01-01","2099-12-31","N",false,"25025-1-29"]
["500","Scholarship, Research and Creative Activity","500","Scholarship, Research and Creative Activity","5025","VIU Internal Awards - VIURAC","20","25025-1","SRCA VIURAC RF","25025-1-31","SRCA VIURAC RF - Heiti","315","VIURAC RF","2017-01-01","2099-12-31","N",false,"25025-1-31"]
["500","Scholarship, Research and Creative Activity","500","Scholarship, Research and Creative Activity","5025","VIU Internal Awards - VIURAC","20","25025-1","SRCA VIURAC RF","25025-1-32","SRCA VIURAC RF - Hopwood","315","VIURAC RF","2017-01-01","2099-12-31","N",false,"25025-1-32"]
["500","Scholarship, Research and Creative Activity","500","Scholarship, Research and Creative Activity","5025","VIU Internal Awards - VIURAC","20","25025-1","SRCA VIURAC RF","25025-1-33","SRCA VIURAC RF - Juby","315","VIURAC RF","2017-01-01","2099-12-31","N",false,"25025-1-33"]
["500","Scholarship, Research and Creative Activity","500","Scholarship, Research and Creative Activity","5025","VIU Internal Awards - VIURAC","20","25025-1","SRCA VIURAC RF","25025-1-37","SRCA VIURAC RF - Dames 100239","315","VIURAC RF","2017-01-01","2099-12-31","N",false,"25025-1-37"]
["500","Scholarship, Research and Creative Activity","500","Scholarship, Research and Creative Activity","5025","VIU Internal Awards - VIURAC","20","25025-1","SRCA VIURAC RF","25025-1-38","SRCA VIURAC RF - Krogh 100281","315","VIURAC RF","2017-01-01","2099-12-31","N",false,"25025-1-38"]
["500","Scholarship, Research and Creative Activity","500","Scholarship, Research and Creative Activity","5025","VIU Internal Awards - VIURAC","20","25025-1","SRCA VIURAC RF","25025-1-53","SRCA VIURAC RF - Russell 101007","315","VIURAC RF","2020-03-28","2099-12-31","N",false,"25025-1-53"]
["500","Scholarship, Research and Creative Activity","500","Scholarship, Research and Creative Activity","5025","VIU Internal Awards - VIURAC","20","25025-1","SRCA VIURAC RF","25025-1-54","SRCA VIURAC RF - Doughty 101013","315","VIURAC RF","2020-03-28","2099-12-31","N",false,"25025-1-54"]
["500","Scholarship, Research and Creative Activity","500","Scholarship, Research and Creative Activity","5025","VIU Internal Awards - VIURAC","20","25025-1","SRCA VIURAC RF","25025-1-55","SRCA VIURAC RF - Affleck 101042","315","VIURAC RF","2017-03-28","2099-12-31","N",false,"25025-1-55"]
["500","Scholarship, Research and Creative Activity","500","Scholarship, Research and Creative Activity","5025","VIU Internal Awards - VIURAC","20","25025-1","SRCA VIURAC RF","25025-1-56","SRCA VIURAC RF - Sun 101008","315","VIURAC RF","2020-03-28","2099-12-31","N",false,"25025-1-56"]
["500","Scholarship, Research and Creative Activity","500","Scholarship, Research and Creative Activity","5025","VIU Internal Awards - VIURAC","20","25025-1","SRCA VIURAC RF","25025-1-57","SRCA VIURAC RF - LOUDON 100997","315","VIURAC RF","2020-03-28","2099-12-31","N",false,"25025-1-57"]
["500","Scholarship, Research and Creative Activity","500","Scholarship, Research and Creative Activity","5025","VIU Internal Awards - VIURAC","20","25025-1","SRCA VIURAC RF","25025-1-52","SRCA VIURAC RF - Publish - Martin 100877","315","VIURAC RF","2020-03-28","2099-12-31","N",false,"25025-1-52"]
["500","Scholarship, Research and Creative Activity","500","Scholarship, Research and Creative Activity","5025","VIU Internal Awards - VIURAC","20","25025-1","SRCA VIURAC RF","25025-1-58","SRCA VIURAC RF - Mohabeer 101160","315","VIURAC RF","2020-03-28","2099-12-31","N",false,"25025-1-58"]
["500","Scholarship, Research and Creative Activity","500","Scholarship, Research and Creative Activity","5025","VIU Internal Awards - VIURAC","20","25025-1","SRCA VIURAC RF","25025-1-59","SRCA VIURAC RF - Wiebe 101172-173","315","VIURAC RF","2020-03-28","2099-12-31","N",false,"25025-1-59"]
["500","Scholarship, Research and Creative Activity","500","Scholarship, Research and Creative Activity","5025","VIU Internal Awards - VIURAC","20","25025-1","SRCA VIURAC RF","25025-1-60","SRCA VIURAC RF - Carruthers 101165-6","315","VIURAC RF","2021-03-27","2099-12-31","N",false,"25025-1-60"]
["500","Scholarship, Research and Creative Activity","500","Scholarship, Research and Creative Activity","5025","VIU Internal Awards - VIURAC","20","25025-2","SRCA VIURAC N-GRF","25025-2-6","SRCA VIURAC N-GRF - Russell","315","VIURAC RF","2017-01-01","2099-12-31","N",false,"25025-2-6"]
["500","Scholarship, Research and Creative Activity","500","Scholarship, Research and Creative Activity","5025","VIU Internal Awards - VIURAC","20","25025-2","SRCA VIURAC N-GRF","25025-2-7","SRCA VIURAC N-GRF - Stokes","315","VIURAC RF","2017-01-01","2099-12-31","N",false,"25025-2-7"]
["500","Scholarship, Research and Creative Activity","500","Scholarship, Research and Creative Activity","5025","VIU Internal Awards - VIURAC","20","25025-3","SRCA VIURAC S-GRF","25025-3-2","SRCA VIURAC S-GRF - Farrell","315","VIURAC RF","2017-01-01","2099-12-31","N",false,"25025-3-2"]
["500","Scholarship, Research and Creative Activity","500","Scholarship, Research and Creative Activity","5025","VIU Internal Awards - VIURAC","20","25025-3","SRCA VIURAC S-GRF","25025-3-4","SRCA VIURAC S-GRF-Lewis 100556","315","VIURAC RF","2017-01-01","2099-12-31","N",false,"25025-3-4"]
["500","Scholarship, Research and Creative Activity","500","Scholarship, Research and Creative Activity","5025","VIU Internal Awards - VIURAC","20","25025-3","SRCA VIURAC S-GRF","25025-3-5","SRCA VIURAC S-GRF - Gardiner 101041","315","VIURAC RF","2020-03-28","2099-12-31","N",false,"25025-3-5"]
["500","Scholarship, Research and Creative Activity","500","Scholarship, Research and Creative Activity","5025","VIU Internal Awards - VIURAC","20","25025-3","SRCA VIURAC S-GRF","25025-3-6","SRCA VIURAC S-GRF - Reed 101043","315","VIURAC RF","2020-03-28","2099-12-31","N",false,"25025-3-6"]
["500","Scholarship, Research and Creative Activity","500","Scholarship, Research and Creative Activity","5025","VIU Internal Awards - VIURAC","20","25025-3","SRCA VIURAC S-GRF","25025-3-7","SRCA VIURAC S-GRF - Moghimehfar 101040","315","VIURAC RF","2020-03-28","2099-12-31","N",false,"25025-3-7"]
["500","Scholarship, Research and Creative Activity","500","Scholarship, Research and Creative Activity","5025","VIU Internal Awards - VIURAC","20","25025-3","SRCA VIURAC S-GRF","25025-3-8","SRCA VIURAC S-GRF - Warsh 101178","315","VIURAC RF","2020-03-28","2099-12-31","N",false,"25025-3-8"]
["500","Scholarship, Research and Creative Activity","500","Scholarship, Research and Creative Activity","5025","VIU Internal Awards - VIURAC","20","25025-5","SRCA VIURAC SIG","25025-5-1","SRCA VIURAC SIG18 - Davidson","315","VIURAC RF","2017-01-01","2099-12-31","N",false,"25025-5-1"]
["500","Scholarship, Research and Creative Activity","500","Scholarship, Research and Creative Activity","5025","VIU Internal Awards - VIURAC","20","25025-5","SRCA VIURAC SIG","25025-5-12","SRCA VIURAC SIG18 - TAPLAY 100633","315","VIURAC RF","2020-03-28","2099-12-31","N",false,"25025-5-12"]
["500","Scholarship, Research and Creative Activity","500","Scholarship, Research and Creative Activity","5025","VIU Internal Awards - VIURAC","20","25025-5","SRCA VIURAC SIG","25025-5-10","SRCA VIURAC SIG18 - PASTRO","315","VIURAC RF","2017-01-01","2099-12-31","N",false,"25025-5-10"]
["500","Scholarship, Research and Creative Activity","500","Scholarship, Research and Creative Activity","5025","VIU Internal Awards - VIURAC","20","25025-5","SRCA VIURAC SIG","25025-5-11","SRCA VIURAC SIG18 - WARSH 100592","315","VIURAC RF","2017-01-01","2099-12-31","N",false,"25025-5-11"]
["500","Scholarship, Research and Creative Activity","500","Scholarship, Research and Creative Activity","5025","VIU Internal Awards - VIURAC","20","25025-5","SRCA VIURAC SIG","25025-5-13","SRCA VIURAC SIG18 - Esliger 101017/18","315","VIURAC RF","2020-03-28","2099-12-31","N",false,"25025-5-13"]
["500","Scholarship, Research and Creative Activity","500","Scholarship, Research and Creative Activity","5025","VIU Internal Awards - VIURAC","20","25025-6","SRCA VIURAC-Multiple","25025-6-3","SRCA VIURAC-Multiple - SIG18 SGRF - Manson","315","VIURAC RF","2017-01-01","2099-12-31","N",false,"25025-6-3"]
["500","Scholarship, Research and Creative Activity","500","Scholarship, Research and Creative Activity","5025","VIU Internal Awards - VIURAC","20","25025-6","SRCA VIURAC-Multiple","25025-6-5","SRCA VIURAC-MULTIPLE-SIG18-SGRF-GOVER-BASAR 100590-91","315","VIURAC RF","2017-01-01","2099-12-31","N",false,"25025-6-5"]
["500","Scholarship, Research and Creative Activity","500","Scholarship, Research and Creative Activity","5025","VIU Internal Awards - VIURAC","20","25025-7","SRCA VIURAC-AEST","25025-7-1","SRCA VIURAC-AEST- Riedel 100650","315","VIURAC RF","2020-03-28","2099-12-31","N",false,"25025-7-1"]
["500","Scholarship, Research and Creative Activity","500","Scholarship, Research and Creative Activity","5025","VIU Internal Awards - VIURAC","20","25025-7","SRCA VIURAC-AEST","25025-7-2","SRCA VIURAC-AEST Morden 653","315","VIURAC RF","2020-03-28","2099-12-31","N",false,"25025-7-2"]
["500","Scholarship, Research and Creative Activity","500","Scholarship, Research and Creative Activity","5025","VIU Internal Awards - VIURAC","20","25025-7","SRCA VIURAC-AEST","25025-7-3","SRCA VIURAC-AEST McFarland 665","315","VIURAC RF","2020-03-28","2099-12-31","N",false,"25025-7-3"]
["500","Scholarship, Research and Creative Activity","500","Scholarship, Research and Creative Activity","5025","VIU Internal Awards - VIURAC","20","25025-7","SRCA VIURAC-AEST","25025-7-4","SRCA VIURAC-AEST- Weighill 658","315","VIURAC RF","2020-03-28","2099-12-31","N",false,"25025-7-4"]
["500","Scholarship, Research and Creative Activity","500","Scholarship, Research and Creative Activity","5025","VIU Internal Awards - VIURAC","20","25025-7","SRCA VIURAC-AEST","25025-7-5","SRCA VIURAC-AEST- Lait 100668","315","VIURAC RF","2020-03-28","2099-12-31","N",false,"25025-7-5"]
["500","Scholarship, Research and Creative Activity","500","Scholarship, Research and Creative Activity","5025","VIU Internal Awards - VIURAC","20","25025-7","SRCA VIURAC-AEST","25025-7-6","SRCA VIURAC-AEST- Mayes 100652","315","VIURAC RF","2020-03-28","2099-12-31","N",false,"25025-7-6"]
["500","Scholarship, Research and Creative Activity","500","Scholarship, Research and Creative Activity","5025","VIU Internal Awards - VIURAC","20","25025-7","SRCA VIURAC-AEST","25025-7-7","SRCA VIURAC-AEST- Anderson 637","315","VIURAC RF","2020-03-28","2099-12-31","N",false,"25025-7-7"]
["500","Scholarship, Research and Creative Activity","500","Scholarship, Research and Creative Activity","5025","VIU Internal Awards - VIURAC","20","25025-7","SRCA VIURAC-AEST","25025-7-8","SRCA VIURAC-AEST- Morden 101054","315","VIURAC RF","2020-03-28","2099-12-31","N",false,"25025-7-8"]
["500","Scholarship, Research and Creative Activity","500","Scholarship, Research and Creative Activity","5025","VIU Internal Awards - VIURAC","20","25025-8","SRCA VIURAC M-HEALTH","25025-8-2","SRCA VIURAC M-HEALTH- Gill 101174","315","VIURAC RF","2021-03-27","2099-12-31","N",false,"25025-8-2"]
["500","Scholarship, Research and Creative Activity","500","Scholarship, Research and Creative Activity","5025","VIU Internal Awards - VIURAC","20","25025-8","SRCA VIURAC M-HEALTH","25025-8-1","SRCA VIURAC M-HEALTH- Dames 100989","315","VIURAC RF","2021-03-27","2099-12-31","N",false,"25025-8-1"]
["500","Scholarship, Research and Creative Activity","500","Scholarship, Research and Creative Activity","5100","External Research Grants","20","25100-1","SRCA Research Grant Administration","25100-1-1","SRCA Research Support Fund","309","Research Grant","2017-01-01","2099-12-31","N",false,"25100-1-1"]
["500","Scholarship, Research and Creative Activity","500","Scholarship, Research and Creative Activity","5100","External Research Grants","20","25100-10","SRCA RIF - REFBC","25100-10-4","SRCA RIF - REFBC - Schroeder 101065","309","Research Grant","2020-03-28","2099-12-31","N",false,"25100-10-4"]
["500","Scholarship, Research and Creative Activity","500","Scholarship, Research and Creative Activity","5100","External Research Grants","20","25100-10","SRCA RIF - REFBC","25100-10-3","SRCA RIF - REFBC","309","Research Grant","2017-01-01","2099-12-31","N",false,"25100-10-3"]
["500","Scholarship, Research and Creative Activity","500","Scholarship, Research and Creative Activity","5100","External Research Grants","20","25100-10","SRCA RIF - REFBC","25100-10-1","SRCA RIF - REFBC - Brouder","309","Research Grant","2017-01-01","2099-12-31","N",false,"25100-10-1"]
["500","Scholarship, Research and Creative Activity","500","Scholarship, Research and Creative Activity","5100","External Research Grants","20","25100-10","SRCA RIF - REFBC","25100-10-10","SRCA RIF - REFBC - Gorrell 101061","309","Research Grant","2020-03-28","2099-12-31","N",false,"25100-10-10"]
["500","Scholarship, Research and Creative Activity","500","Scholarship, Research and Creative Activity","5100","External Research Grants","20","25100-10","SRCA RIF - REFBC","25100-10-11","SRCA RIF - REFBC - Green 101062","309","Research Grant","2020-03-28","2099-12-31","N",false,"25100-10-11"]
["500","Scholarship, Research and Creative Activity","500","Scholarship, Research and Creative Activity","5100","External Research Grants","20","25100-10","SRCA RIF - REFBC","25100-10-12","SRCA RIF - REFBC - Krogh 101085","309","Research Grant","2020-03-28","2099-12-31","N",false,"25100-10-12"]
["500","Scholarship, Research and Creative Activity","500","Scholarship, Research and Creative Activity","5100","External Research Grants","20","25100-12","SRCA SSHRC","25100-12-12","SRCA SSHRC CG - DOUGHTY 5714","309","Research Grant","2020-03-28","2099-12-31","N",false,"25100-12-12"]
["500","Scholarship, Research and Creative Activity","500","Scholarship, Research and Creative Activity","5100","External Research Grants","20","25100-12","SRCA SSHRC","25100-12-13","SRCA SSHRC ICG - Wager 5669","309","Research Grant","2020-03-28","2099-12-31","N",false,"25100-12-13"]
["500","Scholarship, Research and Creative Activity","500","Scholarship, Research and Creative Activity","5100","External Research Grants","20","25100-12","SRCA SSHRC","25100-12-14","SRCA SSHRC PDG (UofA) - Rollins","309","Research Grant","2021-03-27","2099-12-31","N",false,"25100-12-14"]
["500","Scholarship, Research and Creative Activity","500","Scholarship, Research and Creative Activity","5100","External Research Grants","20","25100-12","SRCA SSHRC","25100-12-10","SRCA SSHRC IDG - Brouder","309","Research Grant","2017-01-01","2099-12-31","N",false,"25100-12-10"]
["500","Scholarship, Research and Creative Activity","500","Scholarship, Research and Creative Activity","5100","External Research Grants","20","25100-12","SRCA SSHRC","25100-12-11","SRCA SSHRC CG - Warsh","309","Research Grant","2017-01-01","2099-12-31","N",false,"25100-12-11"]
["500","Scholarship, Research and Creative Activity","500","Scholarship, Research and Creative Activity","5100","External Research Grants","20","25100-12","SRCA SSHRC","25100-12-1","SRCA SSHRC GRF","309","Research Grant","2017-01-01","2099-12-31","N",false,"25100-12-1"]
["500","Scholarship, Research and Creative Activity","500","Scholarship, Research and Creative Activity","5100","External Research Grants","20","25100-12","SRCA SSHRC","25100-12-5","SRCA SSHRC CGSM","309","Research Grant","2017-01-01","2099-12-31","N",false,"25100-12-5"]
["500","Scholarship, Research and Creative Activity","500","Scholarship, Research and Creative Activity","5100","External Research Grants","20","25100-12","SRCA SSHRC","25100-12-7","SRCA SSHRC IRCR CG - Martin","309","Research Grant","2017-01-01","2099-12-31","N",false,"25100-12-7"]
["500","Scholarship, Research and Creative Activity","500","Scholarship, Research and Creative Activity","5100","External Research Grants","20","25100-12","SRCA SSHRC","25100-12-8","SRCA SSHRC SIG 2018-21","309","Research Grant","2017-01-01","2099-12-31","N",false,"25100-12-8"]
["500","Scholarship, Research and Creative Activity","500","Scholarship, Research and Creative Activity","5100","External Research Grants","20","25100-13","SRCA Other Grants","25100-13-18","SRCA UNI-CAN-SRCA 5825","309","Research Grant","2020-03-28","2099-12-31","N",false,"25100-13-18"]
["500","Scholarship, Research and Creative Activity","500","Scholarship, Research and Creative Activity","5100","External Research Grants","20","25100-13","SRCA Other Grants","25100-13-13","SRCA MITACS RTA - SRCA","309","Research Grant","2020-03-28","2099-12-31","N",false,"25100-13-13"]
["500","Scholarship, Research and Creative Activity","500","Scholarship, Research and Creative Activity","5100","External Research Grants","20","25100-13","SRCA Other Grants","25100-13-14","SRCA NOAA/PSMFC (OSU) - Green","309","Research Grant","2020-03-28","2099-12-31","N",false,"25100-13-14"]
["500","Scholarship, Research and Creative Activity","500","Scholarship, Research and Creative Activity","5100","External Research Grants","20","25100-13","SRCA Other Grants","25100-13-15","SRCA MITACS BSI - SRCA","309","Research Grant","2020-03-28","2099-12-31","N",false,"25100-13-15"]
["500","Scholarship, Research and Creative Activity","500","Scholarship, Research and Creative Activity","5100","External Research Grants","20","25100-13","SRCA Other Grants","25100-13-16","SRCA MITACS ACC - Gorrell 5761","309","Research Grant","2020-03-28","2099-12-31","N",false,"25100-13-16"]
["500","Scholarship, Research and Creative Activity","500","Scholarship, Research and Creative Activity","5100","External Research Grants","20","25100-13","SRCA Other Grants","25100-13-17","SRCA VAN FDN - Wager 100677","309","Research Grant","2020-03-28","2099-12-31","N",false,"25100-13-17"]
["500","Scholarship, Research and Creative Activity","500","Scholarship, Research and Creative Activity","5100","External Research Grants","20","25100-13","SRCA Other Grants","25100-13-10","SRCA Vancouver Fdn 2 - Falvai","309","Research Grant","2017-01-01","2099-12-31","N",false,"25100-13-10"]
["500","Scholarship, Research and Creative Activity","500","Scholarship, Research and Creative Activity","5100","External Research Grants","20","25100-13","SRCA Other Grants","25100-13-2","SRCA AVED - Russell","309","Research Grant","2017-01-01","2099-12-31","N",false,"25100-13-2"]
["500","Scholarship, Research and Creative Activity","500","Scholarship, Research and Creative Activity","5100","External Research Grants","20","25100-13","SRCA Other Grants","25100-13-5","SRCA Genome BC (SFU) - Murray","309","Research Grant","2017-01-01","2099-12-31","N",false,"25100-13-5"]
["500","Scholarship, Research and Creative Activity","500","Scholarship, Research and Creative Activity","5100","External Research Grants","20","25100-13","SRCA Other Grants","25100-13-7","SRCA IS Health Innovation - Gill","309","Research Grant","2017-01-01","2099-12-31","N",false,"25100-13-7"]
["500","Scholarship, Research and Creative Activity","500","Scholarship, Research and Creative Activity","5100","External Research Grants","20","25100-13","SRCA Other Grants","25100-13-8","SRCA MITACS-ACC-PD - Vaugeois","309","Research Grant","2017-01-01","2099-12-31","N",false,"25100-13-8"]
["500","Scholarship, Research and Creative Activity","500","Scholarship, Research and Creative Activity","5100","External Research Grants","20","25100-13","SRCA Other Grants","25100-13-9","SRCA TULA (UNBC) - Floyd","309","Research Grant","2017-01-01","2099-12-31","N",false,"25100-13-9"]
["500","Scholarship, Research and Creative Activity","500","Scholarship, Research and Creative Activity","5100","External Research Grants","20","25100-3","SRCA BCRIC","25100-3-1","SRCA BCRIC - AECD","309","Research Grant","2017-01-01","2099-12-31","N",false,"25100-3-1"]
["500","Scholarship, Research and Creative Activity","500","Scholarship, Research and Creative Activity","5100","External Research Grants","20","25100-3","SRCA BCRIC","25100-3-2","SRCA BCRIC - Chair Tourism","309","Research Grant","2017-01-01","2099-12-31","N",false,"25100-3-2"]
["500","Scholarship, Research and Creative Activity","500","Scholarship, Research and Creative Activity","5100","External Research Grants","20","25100-3","SRCA BCRIC","25100-3-3","SRCA BCRIC - AECD Alphonse GRF","309","Research Grant","2017-01-01","2099-12-31","N",false,"25100-3-3"]
["500","Scholarship, Research and Creative Activity","500","Scholarship, Research and Creative Activity","5100","External Research Grants","20","25100-4","SRCA Canada Research Chair","25100-4-5","SRCA CRC - Sloan 4670","309","Research Grant","2020-03-28","2099-12-31","N",false,"25100-4-5"]
["500","Scholarship, Research and Creative Activity","500","Scholarship, Research and Creative Activity","5100","External Research Grants","20","25100-4","SRCA Canada Research Chair","25100-4-4","SRCA CRC TIPS - EDI Stipend - Vaugeois 5779","309","Research Grant","2020-03-28","2099-12-31","N",false,"25100-4-4"]
["500","Scholarship, Research and Creative Activity","500","Scholarship, Research and Creative Activity","5100","External Research Grants","20","25100-4","SRCA Canada Research Chair","25100-4-1","SRCA CRC - Wager","309","Research Grant","2017-01-01","2099-12-31","N",false,"25100-4-1"]
["500","Scholarship, Research and Creative Activity","500","Scholarship, Research and Creative Activity","5100","External Research Grants","20","25100-4","SRCA Canada Research Chair","25100-4-2","SRCA CRC - Wood","309","Research Grant","2017-01-01","2099-12-31","N",false,"25100-4-2"]
["500","Scholarship, Research and Creative Activity","500","Scholarship, Research and Creative Activity","5100","External Research Grants","20","25100-4","SRCA Canada Research Chair","25100-4-3","SRCA CRC - Green","309","Research Grant","2017-01-01","2099-12-31","N",false,"25100-4-3"]
["500","Scholarship, Research and Creative Activity","500","Scholarship, Research and Creative Activity","5100","External Research Grants","20","25100-5","SRCA CFI - IOF","25100-5-6","SRCA CFI - IOF Russell","309","Research Grant","2020-03-28","2099-12-31","N",false,"25100-5-6"]
["500","Scholarship, Research and Creative Activity","500","Scholarship, Research and Creative Activity","5100","External Research Grants","20","25100-5","SRCA CFI - IOF","25100-5-5","SRCA CFI - IOF MeTA DH Lab - Lane","309","Research Grant","2020-03-28","2099-12-31","N",false,"25100-5-5"]
["500","Scholarship, Research and Creative Activity","500","Scholarship, Research and Creative Activity","5100","External Research Grants","20","25100-5","SRCA CFI - IOF","25100-5-7","SRCA CFI - IOF Gill","309","Research Grant","2020-03-28","2099-12-31","N",false,"25100-5-7"]
["500","Scholarship, Research and Creative Activity","500","Scholarship, Research and Creative Activity","5100","External Research Grants","20","25100-5","SRCA CFI - IOF","25100-5-1","SRCA CFI - IOFCFI - IOF","309","Research Grant","2017-01-01","2099-12-31","N",false,"25100-5-1"]
["500","Scholarship, Research and Creative Activity","500","Scholarship, Research and Creative Activity","5100","External Research Grants","20","25100-5","SRCA CFI - IOF","25100-5-3","SRCA CFI - IOF Mobile Lab (Krogh)","309","Research Grant","2017-01-01","2099-12-31","N",false,"25100-5-3"]
["500","Scholarship, Research and Creative Activity","500","Scholarship, Research and Creative Activity","5100","External Research Grants","20","25100-5","SRCA CFI - IOF","25100-5-4","SRCA CFI - IOF Shellfish (Green)","309","Research Grant","2017-01-01","2099-12-31","N",false,"25100-5-4"]
["500","Scholarship, Research and Creative Activity","500","Scholarship, Research and Creative Activity","5100","External Research Grants","20","25100-6","SRCA CIHR","25100-6-2","SRCA CIHR - IGWDG - Meijer-Drees 100093","309","Research Grant","2020-03-28","2099-12-31","N",false,"25100-6-2"]
["500","Scholarship, Research and Creative Activity","500","Scholarship, Research and Creative Activity","5100","External Research Grants","20","25100-8","SRCA NSERC","25100-8-13","SRCA NSERC DG - Stringham","309","Research Grant","2020-03-28","2099-12-31","N",false,"25100-8-13"]
["500","Scholarship, Research and Creative Activity","500","Scholarship, Research and Creative Activity","5100","External Research Grants","20","25100-8","SRCA NSERC","25100-8-14","SRCA NSERC DG - Wiebe 5790-101005","309","Research Grant","2021-03-27","2099-12-31","N",false,"25100-8-14"]
["500","Scholarship, Research and Creative Activity","500","Scholarship, Research and Creative Activity","5100","External Research Grants","20","25100-8","SRCA NSERC","25100-8-12","SRCA NSERC DG - Janes","309","Research Grant","2020-03-28","2099-12-31","N",false,"25100-8-12"]
["500","Scholarship, Research and Creative Activity","500","Scholarship, Research and Creative Activity","5100","External Research Grants","20","25100-8","SRCA NSERC","25100-8-1","SRCA GRF - NSERC","309","Research Grant","2017-01-01","2099-12-31","N",false,"25100-8-1"]
["500","Scholarship, Research and Creative Activity","500","Scholarship, Research and Creative Activity","5100","External Research Grants","20","25100-8","SRCA NSERC","25100-8-10","SRCA NSERC SPGN (Waterloo) - Floyd","309","Research Grant","2017-01-01","2099-12-31","N",false,"25100-8-10"]
["500","Scholarship, Research and Creative Activity","500","Scholarship, Research and Creative Activity","5100","External Research Grants","20","25100-8","SRCA NSERC","25100-8-11","SRCA NSERC USRA","309","Research Grant","2017-01-01","2099-12-31","N",false,"25100-8-11"]
["500","Scholarship, Research and Creative Activity","500","Scholarship, Research and Creative Activity","5100","External Research Grants","20","25100-8","SRCA NSERC","25100-8-2","SRCA NSERC  DG - Baker","309","Research Grant","2017-01-01","2020-11-20","N",false,"25100-8-2"]
["500","Scholarship, Research and Creative Activity","500","Scholarship, Research and Creative Activity","5100","External Research Grants","20","25100-8","SRCA NSERC","25100-8-3","SRCA NSERC DG - Gill","309","Research Grant","2017-01-01","2099-12-31","N",false,"25100-8-3"]
["500","Scholarship, Research and Creative Activity","500","Scholarship, Research and Creative Activity","5100","External Research Grants","20","25100-8","SRCA NSERC","25100-8-4","SRCA NSERC DG - Gorrell","309","Research Grant","2017-01-01","2099-12-31","N",false,"25100-8-4"]
["500","Scholarship, Research and Creative Activity","500","Scholarship, Research and Creative Activity","5100","External Research Grants","20","25100-8","SRCA NSERC","25100-8-5","SRCA NSERC DG - Green","309","Research Grant","2017-01-01","2099-12-31","N",false,"25100-8-5"]
["500","Scholarship, Research and Creative Activity","500","Scholarship, Research and Creative Activity","5100","External Research Grants","20","25100-8","SRCA NSERC","25100-8-6","SRCA NSERC DG - Krogh","309","Research Grant","2017-01-01","2099-12-31","N",false,"25100-8-6"]
["500","Scholarship, Research and Creative Activity","500","Scholarship, Research and Creative Activity","5100","External Research Grants","20","25100-8","SRCA NSERC","25100-8-7","SRCA NSERC EDI - Vaugeois","309","Research Grant","2017-01-01","2099-12-31","N",false,"25100-8-7"]
["500","Scholarship, Research and Creative Activity","500","Scholarship, Research and Creative Activity","5100","External Research Grants","20","25100-8","SRCA NSERC","25100-8-9","SRCA NSERC SPGN (VIU) - Floyd","309","Research Grant","2017-01-01","2099-12-31","N",false,"25100-8-9"]
["500","Scholarship, Research and Creative Activity","500","Scholarship, Research and Creative Activity","5100","External Research Grants","20","25100-9","SRCA RIF - Ministry","25100-9-17","SRCA RIF - Ministry  - Baker 101071","309","Research Grant","2020-03-28","2099-12-31","N",false,"25100-9-17"]
["500","Scholarship, Research and Creative Activity","500","Scholarship, Research and Creative Activity","5100","External Research Grants","20","25100-9","SRCA RIF - Ministry","25100-9-16","SRCA RIF - Ministry  - Russell 101069","309","Research Grant","2020-03-28","2099-12-31","N",false,"25100-9-16"]
["500","Scholarship, Research and Creative Activity","500","Scholarship, Research and Creative Activity","5100","External Research Grants","20","25100-9","SRCA RIF - Ministry","25100-9-15","SRCA RIF - Ministry  - Russell 100948","309","Research Grant","2020-03-28","2099-12-31","N",false,"25100-9-15"]
["500","Scholarship, Research and Creative Activity","500","Scholarship, Research and Creative Activity","5100","External Research Grants","20","25100-9","SRCA RIF - Ministry","25100-9-10","SRCA RIF - Ministry - AEST","309","Research Grant","2017-01-01","2099-12-31","N",false,"25100-9-10"]
["500","Scholarship, Research and Creative Activity","500","Scholarship, Research and Creative Activity","5100","External Research Grants","20","25100-9","SRCA RIF - Ministry","25100-9-13","SRCA RIF - Ministry - Johnson - 100497","309","Research Grant","2017-01-01","2099-12-31","N",false,"25100-9-13"]
["500","Scholarship, Research and Creative Activity","500","Scholarship, Research and Creative Activity","5100","External Research Grants","20","25100-9","SRCA RIF - Ministry","25100-9-14","SRCA RIF - Ministry  - Dames - 100546","309","Research Grant","2020-03-28","2099-12-31","N",false,"25100-9-14"]
["500","Scholarship, Research and Creative Activity","500","Scholarship, Research and Creative Activity","5100","External Research Grants","20","25100-9","SRCA RIF - Ministry","25100-9-1","SRCA RIF Ministry - AVED","309","Research Grant","2017-01-01","2099-12-31","N",false,"25100-9-1"]
["500","Scholarship, Research and Creative Activity","500","Scholarship, Research and Creative Activity","5100","External Research Grants","20","25100-9","SRCA RIF - Ministry","25100-9-5","SRCA RIF - Ministry - Gill","309","Research Grant","2017-01-01","2099-12-31","N",false,"25100-9-5"]
["500","Scholarship, Research and Creative Activity","500","Scholarship, Research and Creative Activity","5125","External Research Contracts","20","25125-1","SRCA Other contracts","25125-1-18","SRCA TULA FDN 2 - Floyd","310","Research Contract","2017-01-01","2099-12-31","N",false,"25125-1-18"]
["500","Scholarship, Research and Creative Activity","500","Scholarship, Research and Creative Activity","5125","External Research Contracts","20","25125-1","SRCA Other contracts","25125-1-2","SRCA BC MIN FORESTS 6 - Floyd","310","Research Contract","2017-01-01","2099-12-31","N",false,"25125-1-2"]
["500","Scholarship, Research and Creative Activity","500","Scholarship, Research and Creative Activity","5125","External Research Contracts","20","25125-1","SRCA Other contracts","25125-1-5","SRCA DFO ACRDP - Dudas","310","Research Contract","2017-01-01","2099-12-31","N",false,"25125-1-5"]
["500","Scholarship, Research and Creative Activity","500","Scholarship, Research and Creative Activity","5125","External Research Contracts","20","25125-1","SRCA Other contracts","25125-1-9","SRCA G-H JOURNAL - Warsh","310","Research Contract","2017-01-01","2099-12-31","N",false,"25125-1-9"]
["500","Scholarship, Research and Creative Activity","500","Scholarship, Research and Creative Activity","5125","External Research Contracts","20","25125-1","SRCA Other contracts","25125-1-28","SRCA TULA (UNBC) - Owikeno - Floyd","310","Research Contract","2020-03-28","2099-12-31","N",false,"25125-1-28"]
["500","Scholarship, Research and Creative Activity","500","Scholarship, Research and Creative Activity","5125","External Research Contracts","20","25125-1","SRCA Other contracts","25125-1-31","SRCA CVRD - Floyd 5712","310","Research Contract","2020-03-28","2099-12-31","N",false,"25125-1-31"]
["500","Scholarship, Research and Creative Activity","500","Scholarship, Research and Creative Activity","5125","External Research Contracts","20","25125-1","SRCA Other contracts","25125-1-25","SRCA GENOME BC - GREEN","310","Research Contract","2017-01-01","2099-12-31","N",false,"25125-1-25"]
["500","Scholarship, Research and Creative Activity","500","Scholarship, Research and Creative Activity","5125","External Research Contracts","20","25125-1","SRCA Other contracts","25125-1-26","SRCA BCSGA - GREEN","310","Research Contract","2017-01-01","2099-12-31","N",false,"25125-1-26"]
["500","Scholarship, Research and Creative Activity","500","Scholarship, Research and Creative Activity","5125","External Research Contracts","20","25125-1","SRCA Other contracts","25125-1-29","SRCA RDN - Floyd - 100604","310","Research Contract","2020-03-28","2099-12-31","N",false,"25125-1-29"]
["500","Scholarship, Research and Creative Activity","500","Scholarship, Research and Creative Activity","5125","External Research Contracts","20","25125-1","SRCA Other contracts","25125-1-30","SRCA IND-North-Affairs (Gitksan) Floyd 100600","310","Research Contract","2020-03-28","2099-12-31","N",false,"25125-1-30"]
["500","Scholarship, Research and Creative Activity","500","Scholarship, Research and Creative Activity","5125","External Research Contracts","20","25125-1","SRCA Other contracts","25125-1-21","SRCA GVWD - Floyd","310","Research Contract","2021-03-27","2099-12-31","N",false,"25125-1-21"]
["500","Scholarship, Research and Creative Activity","500","Scholarship, Research and Creative Activity","5125","External Research Contracts","20","25125-1","SRCA Other contracts","25125-1-23","SRCA BCCAMPUS - DRURY","310","Research Contract","2017-01-01","2099-12-31","N",false,"25125-1-23"]
["500","Scholarship, Research and Creative Activity","500","Scholarship, Research and Creative Activity","5125","External Research Contracts","20","25125-1","SRCA Other contracts","25125-1-24","SRCA MITACS-RBC-ALPHONSE","310","Research Contract","2017-01-01","2099-12-31","N",false,"25125-1-24"]
["500","Scholarship, Research and Creative Activity","500","Scholarship, Research and Creative Activity","5125","External Research Contracts","20","25125-1","SRCA Other contracts","25125-1-32","SRCA MIN HLTH - SRCA 5832","310","Research Contract","2020-03-28","2099-12-31","N",false,"25125-1-32"]
["500","Scholarship, Research and Creative Activity","500","Scholarship, Research and Creative Activity","5125","External Research Contracts","20","25125-1","SRCA Other contracts","25125-1-34","SRCA BC-CMPS - Vinden 4589","310","Research Contract","2020-03-28","2099-12-31","N",false,"25125-1-34"]
["500","Scholarship, Research and Creative Activity","500","Scholarship, Research and Creative Activity","5125","External Research Contracts","20","25125-1","SRCA Other contracts","25125-1-35","SRCA BC SUPP (UVIC) - Blaney 5817","310","Research Contract","2020-03-28","2099-12-31","N",false,"25125-1-35"]
["500","Scholarship, Research and Creative Activity","515","Mt Arrowsmith Biosphere Reserve Research Institute","5150","Mt Arrowsmith Biosphere Reserve Research Institute","20","25150-1","SRCA MABRRI - Administration","25150-1-1","SRCA MABRRI - Administration","300","Research Contract Administration","2017-01-01","2099-12-31","N",false,"25150-1-1"]
["500","Scholarship, Research and Creative Activity","515","Mt Arrowsmith Biosphere Reserve Research Institute","5150","Mt Arrowsmith Biosphere Reserve Research Institute","20","25150-1","SRCA MABRRI - Administration","25150-1-3","SRCA MABRRI - Research Contract Holding","300","Research Contract Administration","2020-03-28","2099-12-31","N",false,"25150-1-3"]
["500","Scholarship, Research and Creative Activity","515","Mt Arrowsmith Biosphere Reserve Research Institute","5152","MABRRI External Grants","20","25152-1","SRCA MABRRI RIF REFBC","25152-1-4","SRCA MABRRI RIF REFBC - Lafreniere 100614","309","Research Grant","2020-03-28","2099-12-31","N",false,"25152-1-4"]
["500","Scholarship, Research and Creative Activity","515","Mt Arrowsmith Biosphere Reserve Research Institute","5152","MABRRI External Grants","20","25152-1","SRCA MABRRI RIF REFBC","25152-1-5","SRCA MABRRI RIF REFBC - Bowes 100598","309","Research Grant","2020-03-28","2099-12-31","N",false,"25152-1-5"]
["500","Scholarship, Research and Creative Activity","515","Mt Arrowsmith Biosphere Reserve Research Institute","5152","MABRRI External Grants","20","25152-1","SRCA MABRRI RIF REFBC","25152-1-6","SRCA MABRRI RIF REFBC - Shaw 100740","309","Research Grant","2020-03-28","2099-12-31","N",false,"25152-1-6"]
["500","Scholarship, Research and Creative Activity","515","Mt Arrowsmith Biosphere Reserve Research Institute","5152","MABRRI External Grants","20","25152-1","SRCA MABRRI RIF REFBC","25152-1-7","SRCA MABRRI RIF REFBC - Shaw 101098","309","Research Grant","2020-03-28","2099-12-31","N",false,"25152-1-7"]
["500","Scholarship, Research and Creative Activity","515","Mt Arrowsmith Biosphere Reserve Research Institute","5152","MABRRI External Grants","20","25152-2","SRCA MABRRI SSHRC","25152-2-2","SRCA MABRRI SSHRC NCE (CMN) - Shaw","309","Research Grant","2017-01-01","2099-12-31","N",false,"25152-2-2"]
["500","Scholarship, Research and Creative Activity","515","Mt Arrowsmith Biosphere Reserve Research Institute","5152","MABRRI External Grants","20","25152-2","SRCA MABRRI SSHRC","25152-2-1","SRCA MABRRI SSHRC IRCR CG - Shaw","309","Research Grant","2017-01-01","2099-12-31","N",false,"25152-2-1"]
["500","Scholarship, Research and Creative Activity","515","Mt Arrowsmith Biosphere Reserve Research Institute","5152","MABRRI External Grants","20","25152-3","SRCA MABRRI Grant - Other","25152-3-9","SRCA MABRRI Grant - Other ESDC - SHAW 5847","309","Research Grant","2020-03-28","2099-12-31","N",false,"25152-3-9"]
["500","Scholarship, Research and Creative Activity","515","Mt Arrowsmith Biosphere Reserve Research Institute","5152","MABRRI External Grants","20","25152-3","SRCA MABRRI Grant - Other","25152-3-3","SRCA MABRRI SITKA2019 - Shaw","309","Research Grant","2017-01-01","2099-12-31","N",false,"25152-3-3"]
["500","Scholarship, Research and Creative Activity","515","Mt Arrowsmith Biosphere Reserve Research Institute","5152","MABRRI External Grants","20","25152-3","SRCA MABRRI Grant - Other","25152-3-4","SRCA MABRRI St John Legacy Fdn - Shaw","309","Research Grant","2017-01-01","2099-12-31","N",false,"25152-3-4"]
["500","Scholarship, Research and Creative Activity","515","Mt Arrowsmith Biosphere Reserve Research Institute","5152","MABRRI External Grants","20","25152-3","SRCA MABRRI Grant - Other","25152-3-6","SRCA MABRRI Grant - Other Mitacs Accelerate (Fletcher) - Shaw 5763","309","Research Grant","2020-03-28","2099-12-31","N",false,"25152-3-6"]
["500","Scholarship, Research and Creative Activity","515","Mt Arrowsmith Biosphere Reserve Research Institute","5152","MABRRI External Grants","20","25152-3","SRCA MABRRI Grant - Other","25152-3-7","SRCA MABRRI Grant - Other Molson Fnd - Shaw 5786","309","Research Grant","2020-03-28","2099-12-31","N",false,"25152-3-7"]
["500","Scholarship, Research and Creative Activity","515","Mt Arrowsmith Biosphere Reserve Research Institute","5152","MABRRI External Grants","20","25152-3","SRCA MABRRI Grant - Other","25152-3-8","SRCA MABRRI Grant - Other CMN - Stipend - Shaw 5851","309","Research Grant","2020-03-28","2099-12-31","N",false,"25152-3-8"]
["500","Scholarship, Research and Creative Activity","515","Mt Arrowsmith Biosphere Reserve Research Institute","5152","MABRRI External Grants","20","25152-4","SRCA MABRRI CFI","25152-4-1","SRCA MABRRI CFI - IOF Estuaries (Shaw)","309","Research Grant","2017-01-01","2099-12-31","N",false,"25152-4-1"]
["500","Scholarship, Research and Creative Activity","515","Mt Arrowsmith Biosphere Reserve Research Institute","5155","MABRRI External Research Contracts","20","25155-1","SRCA MABRRI Contracts","25155-1-34","SRCA MABRRI DoL - Shaw 5843","310","Research Contract","2020-03-28","2099-12-31","N",false,"25155-1-34"]
["500","Scholarship, Research and Creative Activity","515","Mt Arrowsmith Biosphere Reserve Research Institute","5155","MABRRI External Research Contracts","20","25155-1","SRCA MABRRI Contracts","25155-1-33","SRCA MABRRI ACRD - Shaw 5818","310","Research Contract","2020-03-28","2099-12-31","N",false,"25155-1-33"]
["500","Scholarship, Research and Creative Activity","515","Mt Arrowsmith Biosphere Reserve Research Institute","5155","MABRRI External Research Contracts","20","25155-1","SRCA MABRRI Contracts","25155-1-32","SRCA MABRRI WWF - Shaw 5792","310","Research Contract","2020-03-28","2099-12-31","N",false,"25155-1-32"]
["500","Scholarship, Research and Creative Activity","515","Mt Arrowsmith Biosphere Reserve Research Institute","5155","MABRRI External Research Contracts","20","25155-1","SRCA MABRRI Contracts","25155-1-12","SRCA MABRRI RDN - Shaw","310","Research Contract","2017-01-01","2099-12-31","N",false,"25155-1-12"]
["500","Scholarship, Research and Creative Activity","515","Mt Arrowsmith Biosphere Reserve Research Institute","5155","MABRRI External Research Contracts","20","25155-1","SRCA MABRRI Contracts","25155-1-13","SRCA MABRRI REFBC - Shaw","310","Research Contract","2017-01-01","2099-12-31","N",false,"25155-1-13"]
["500","Scholarship, Research and Creative Activity","515","Mt Arrowsmith Biosphere Reserve Research Institute","5155","MABRRI External Research Contracts","20","25155-1","SRCA MABRRI Contracts","25155-1-9","SRCA MABRRI PFWSBC - Shaw","310","Research Contract","2017-01-01","2099-12-31","N",false,"25155-1-9"]
["500","Scholarship, Research and Creative Activity","515","Mt Arrowsmith Biosphere Reserve Research Institute","5155","MABRRI External Research Contracts","20","25155-1","SRCA MABRRI Contracts","25155-1-16","SRCA MABRRI  PSF-FORAGE-SHAW","310","Research Contract","2017-01-01","2099-12-31","N",false,"25155-1-16"]
["500","Scholarship, Research and Creative Activity","515","Mt Arrowsmith Biosphere Reserve Research Institute","5155","MABRRI External Research Contracts","20","25155-1","SRCA MABRRI Contracts","25155-1-17","SRCA MABRRI  IN-SERV-CAN(CANDO)-SHAW","310","Research Contract","2017-01-01","2099-12-31","N",false,"25155-1-17"]
["500","Scholarship, Research and Creative Activity","515","Mt Arrowsmith Biosphere Reserve Research Institute","5155","MABRRI External Research Contracts","20","25155-1","SRCA MABRRI Contracts","25155-1-21","SRCA MABRRI CITY NAN DKP - Shaw","310","Research Contract","2017-01-01","2099-12-31","N",false,"25155-1-21"]
["500","Scholarship, Research and Creative Activity","515","Mt Arrowsmith Biosphere Reserve Research Institute","5155","MABRRI External Research Contracts","20","25155-1","SRCA MABRRI Contracts","25155-1-36","SRCA MABRRI RDN - Shaw 5877","310","Research Contract","2021-03-27","2099-12-31","N",false,"25155-1-36"]
["500","Scholarship, Research and Creative Activity","515","Mt Arrowsmith Biosphere Reserve Research Institute","5155","MABRRI External Research Contracts","20","25155-1","SRCA MABRRI Contracts","25155-1-37","SRCA MABRRI NEDC - Shaw 5887","310","Research Contract","2021-03-27","2099-12-31","N",false,"25155-1-37"]
["500","Scholarship, Research and Creative Activity","515","Mt Arrowsmith Biosphere Reserve Research Institute","5155","MABRRI External Research Contracts","20","25155-1","SRCA MABRRI Contracts","25155-1-29","SRCA MABRRI TseshahtFN - Shaw 100734","310","Research Contract","2020-03-28","2099-12-31","N",false,"25155-1-29"]
["500","Scholarship, Research and Creative Activity","515","Mt Arrowsmith Biosphere Reserve Research Institute","5155","MABRRI External Research Contracts","20","25155-1","SRCA MABRRI Contracts","25155-1-30","SRCA MABRRI MECCS - Shaw 5665","310","Research Contract","2020-03-28","2099-12-31","N",false,"25155-1-30"]
["500","Scholarship, Research and Creative Activity","515","Mt Arrowsmith Biosphere Reserve Research Institute","5155","MABRRI External Research Contracts","20","25155-1","SRCA MABRRI Contracts","25155-1-31","SRCA MABRRI CMN - Shaw 5747","310","Research Contract","2020-03-28","2099-12-31","N",false,"25155-1-31"]
["500","Scholarship, Research and Creative Activity","515","Mt Arrowsmith Biosphere Reserve Research Institute","5155","MABRRI External Research Contracts","20","25155-1","SRCA MABRRI Contracts","25155-1-22","SRCA MABRRI Port Alberni-Shaw 5697","310","Research Contract","2017-01-01","2099-12-31","N",false,"25155-1-22"]
["500","Scholarship, Research and Creative Activity","515","Mt Arrowsmith Biosphere Reserve Research Institute","5155","MABRRI External Research Contracts","20","25155-1","SRCA MABRRI Contracts","25155-1-23","SRCA MABRRI Komoks-Shaw 5707","310","Research Contract","2017-01-01","2099-12-31","N",false,"25155-1-23"]
["500","Scholarship, Research and Creative Activity","515","Mt Arrowsmith Biosphere Reserve Research Institute","5155","MABRRI External Research Contracts","20","25155-1","SRCA MABRRI Contracts","25155-1-27","SRCA MABRRI VI Economic Alliance - Sakaki","310","Research Contract","2017-01-01","2099-12-31","N",false,"25155-1-27"]
["550","Student Affairs","551","Student Affairs Department","5516","Assessment and Invigilation","20","25516-1","SA Assessment and Invigilation","25516-1-1","SA Peer to Peer Connections","217","Student Support and Services","2020-03-28","2099-12-31","N",false,"25516-1-1"]
["550","Student Affairs","551","Student Affairs Department","5518","Accessibility Services","20","25518-1","SA Disability Access Services - Other","25518-1-3","SA Disability Services Proceeds","217","Student Support and Services","2020-03-28","2099-12-31","N",false,"25518-1-3"]
["550","Student Affairs","551","Student Affairs Department","5518","Accessibility Services","20","25518-1","SA Disability Access Services - Other","25518-1-1","SA APSD / Ministry funding","217","Student Support and Services","2017-01-01","2099-12-31","N",false,"25518-1-1"]
["550","Student Affairs","551","Student Affairs Department","5518","Accessibility Services","20","25518-1","SA Disability Access Services - Other","25518-1-2","SA Disability Access Trust Funds","217","Student Support and Services","2017-01-01","2099-12-31","N",false,"25518-1-2"]
["550","Student Affairs","551","Student Affairs Department","5519","Financial Aid and Awards","20","25519-1","SA Financial Aid","25519-1-1","SA Financial Aid - ABESAP","217","Student Support and Services","2017-01-01","2099-12-31","N",false,"25519-1-1"]
["550","Student Affairs","551","Student Affairs Department","5519","Financial Aid and Awards","20","25519-1","SA Financial Aid","25519-1-2","SA Financial Aid - Aboriginal Emergency Assistance","217","Student Support and Services","2017-01-01","2099-12-31","N",false,"25519-1-2"]
["550","Student Affairs","551","Student Affairs Department","5519","Financial Aid and Awards","20","25519-1","SA Financial Aid","25519-1-3","SA Financial Aid - Foundation Funds","217","Student Support and Services","2017-01-01","2099-12-31","N",false,"25519-1-3"]
["550","Student Affairs","551","Student Affairs Department","5519","Financial Aid and Awards","20","25519-1","SA Financial Aid","25519-1-4","SA Financial Aid - General Scholarships/Bursaries","217","Student Support and Services","2017-01-01","2099-12-31","N",false,"25519-1-4"]
["550","Student Affairs","551","Student Affairs Department","5519","Financial Aid and Awards","20","25519-1","SA Financial Aid","25519-1-5","SA Financial Aid - MSU Special Bursaries","217","Student Support and Services","2017-01-01","2099-12-31","N",false,"25519-1-5"]
["550","Student Affairs","551","Student Affairs Department","5519","Financial Aid and Awards","20","25519-2","SA Financial Aid - Other","25519-2-1","SA Financial Aid - Other - Canada Student Grant","217","Student Support and Services","2017-01-01","2099-12-31","N",false,"25519-2-1"]
["550","Student Affairs","551","Student Affairs Department","5520","Health and Wellness","20","25520-1","SA Mental Health","25520-1-1","SA Mental Health  - Canadian Mental Health Association","217","Student Support and Services","2020-03-28","2099-12-31","N",false,"25520-1-1"]
["550","Student Affairs","551","Student Affairs Department","5520","Health and Wellness","20","25520-1","SA Mental Health","25520-1-1","SA Mental Health  - Canadian Mental Health Association","219","Contract activity","2020-03-28","2099-12-31","N",true,"25520-1-1"]
["550","Student Affairs","555","Student Engagement and Experiential Learning","5555","Centre for Experiential Learning","20","25555-1","SA Centre for Experiential Learning","25555-1-1","SA Vancouver Island Leadership Conference","217","Student Support and Services","2017-01-01","2099-12-31","N",false,"25555-1-1"]
["550","Student Affairs","558","Athletics and Recreation","5581","Athletics and Recreation Department - Initiatives","20","25581-1","SA Athletics and Recreation Department - Initiatives","25581-1-1","SA PacificWest CCAA hosting","217","Student Support and Services","2017-01-01","2099-12-31","N",false,"25581-1-1"]
["603","CFOVPA - ASA (Administrative Support Activity)","603","CFOVPA - ASA (Administrative Support Activity)","6035","CFOVPA - ASA (Contracts)","20","26035-1","CFOVPA - ASA (Contracts)","26035-1-1","CFOVPA ASA - Institutional Non-Budgeted Contracts","101","Institutional","2020-03-28","2099-12-31","N",false,"26035-1-1"]
["603","CFOVPA - ASA (Administrative Support Activity)","603","CFOVPA - ASA (Administrative Support Activity)","6035","CFOVPA - ASA (Contracts)","20","26035-1","CFOVPA - ASA (Contracts)","26035-1-1","CFOVPA ASA - Institutional Non-Budgeted Contracts","102","External recoveries (Inst)","2020-03-28","2099-12-31","N",true,"26035-1-1"]
["603","CFOVPA - ASA (Administrative Support Activity)","603","CFOVPA - ASA (Administrative Support Activity)","6040","VIU Initiatives Trust (Clearing)","10","26040-1","CFOVPA ASA - VIU Initiatives Trust (Clearing)","26040-1-1","CFOVPA ASA - VIU Initiatives Trust (Clearing)","102","External recoveries (Inst)","2017-01-01","2099-12-31","N",false,"26040-1-1"]
["910","Institutional Revenue","910","Institutional Revenue","9114","Institutional Recoveries","20","29114-1","INST Recoveries - Overhead","29114-1-1","INST Recoveries - Overhead","101","Institutional","2017-01-01","2099-12-31","N",false,"29114-1-1"]
["910","Institutional Revenue","910","Institutional Revenue","9114","Institutional Recoveries","20","29114-1","INST Recoveries - Overhead","29114-1-1","INST Recoveries - Overhead","103","internal Sales and Recoveries","2017-01-01","2099-12-31","N",true,"29114-1-1"]
["910","Institutional Revenue","910","Institutional Revenue","9114","Institutional Recoveries","20","29114-2","INST Recoveries - VIU Foundation Clearing","29114-2-1","INST Recoveries - VIU Foundation Clearing","102","External recoveries (Inst)","2017-01-01","2099-12-31","N",false,"29114-2-1"]
["240","Health and Human Services","240","Health and Human Services","2465","Health and Human Services - PD&T","30","32465-1","HHS PD&T - Administration","32465-1-1","HHS PD&T - Administration","280","PD&T Administration","2017-01-01","2099-12-31","N",false,"32465-1-1"]
["240","Health and Human Services","240","Health and Human Services","2465","Health and Human Services - PD&T","30","32465-10","HHS PD&T - Medical Office Assistant","32465-10-1","HHS PD&T - Medical Office Assistant","281","PD&T Program Delivery","2017-01-01","2099-12-31","N",false,"32465-10-1"]
["240","Health and Human Services","240","Health and Human Services","2465","Health and Human Services - PD&T","30","32465-2","HHS PD&T - Activity Assistant","32465-2-1","HHS PD&T - Activity Assistant","281","PD&T Program Delivery","2017-01-01","2099-12-31","N",false,"32465-2-1"]
["240","Health and Human Services","240","Health and Human Services","2465","Health and Human Services - PD&T","30","32465-3","HHS PD&T - Animal Care Aide Certificate","32465-3-1","HHS PD&T - Animal Care Aide Certificate","281","PD&T Program Delivery","2017-01-01","2099-12-31","N",false,"32465-3-1"]
["240","Health and Human Services","240","Health and Human Services","2465","Health and Human Services - PD&T","30","32465-4","HHS PD&T - Credit courses","32465-4-1","HHS PD&T - Credit courses","281","PD&T Program Delivery","2017-01-01","2099-12-31","N",false,"32465-4-1"]
["240","Health and Human Services","240","Health and Human Services","2465","Health and Human Services - PD&T","30","32465-5","HHS PD&T - Community Health Promotion","32465-5-1","HHS PD&T - Community Health Promotion","281","PD&T Program Delivery","2017-01-01","2099-12-31","N",false,"32465-5-1"]
["240","Health and Human Services","240","Health and Human Services","2465","Health and Human Services - PD&T","30","32465-6","HHS PD&T - Community Mental Health Worker","32465-6-1","HHS PD&T - Community Mental Health Worker","281","PD&T Program Delivery","2017-01-01","2099-12-31","N",false,"32465-6-1"]
["240","Health and Human Services","240","Health and Human Services","2465","Health and Human Services - PD&T","30","32465-7","HHS PD&T - Health and Human Services","32465-7-1","HHS PD&T - Health and Human Services","281","PD&T Program Delivery","2017-01-01","2099-12-31","N",false,"32465-7-1"]
["240","Health and Human Services","240","Health and Human Services","2465","Health and Human Services - PD&T","30","32465-8","HHS PD&T - Hospital Unit Coordinator","32465-8-1","HHS PD&T - Hospital Unit Coordinator","281","PD&T Program Delivery","2017-01-01","2099-12-31","N",false,"32465-8-1"]
["240","Health and Human Services","240","Health and Human Services","2465","Health and Human Services - PD&T","30","32465-9","HHS PD&T - Medical Device Processing Technician","32465-9-1","HHS PD&T - Medical Device Processing Technician","281","PD&T Program Delivery","2017-01-01","2099-12-31","N",false,"32465-9-1"]
["260","Management","260","Management","2670","Management - PD&T","30","32670-1","FOM PD&T Administration","32670-1-1","FOM PD&T Administration","280","PD&T Administration","2017-01-01","2099-12-31","N",false,"32670-1-1"]
["260","Management","260","Management","2670","Management - PD&T","30","32670-2","FOM PD&T Business Leaders","32670-2-1","FOM PD&T Business Leaders","281","PD&T Program Delivery","2017-01-01","2099-12-31","N",false,"32670-2-1"]
["260","Management","260","Management","2670","Management - PD&T","30","32670-3","FOM PD&T Management Skills","32670-3-1","FOM PD&T Management Skills","281","PD&T Program Delivery","2017-01-01","2099-12-31","N",false,"32670-3-1"]
["260","Management","260","Management","2670","Management - PD&T","30","32670-4","FOM PD&T Managing Conflicts","32670-4-1","FOM PD&T Managing Conflicts","281","PD&T Program Delivery","2017-01-01","2099-12-31","N",false,"32670-4-1"]
["260","Management","260","Management","2670","Management - PD&T","30","32670-5","FOM PD&T External","32670-5-1","FOM PD&T External","281","PD&T Program Delivery","2017-01-01","2099-12-31","N",false,"32670-5-1"]
["270","Science and Technology","270","Science and Technology","2760","Science and Technology - PD&T","30","32760-1","ST PD&T Administration","32760-1-1","ST PD&T Administration","280","PD&T Administration","2017-01-01","2099-12-31","N",false,"32760-1-1"]
["270","Science and Technology","270","Science and Technology","2760","Science and Technology - PD&T","30","32760-2","ST PD&T Environment","32760-2-1","ST PD&T Environmental Technician","281","PD&T Program Delivery","2017-01-01","2099-12-31","N",false,"32760-2-1"]
["270","Science and Technology","270","Science and Technology","2760","Science and Technology - PD&T","30","32760-2","ST PD&T Environment","32760-2-2","ST PD&T Environmental Monitoring","281","PD&T Program Delivery","2017-01-01","2099-12-31","N",false,"32760-2-2"]
["270","Science and Technology","270","Science and Technology","2760","Science and Technology - PD&T","30","32760-2","ST PD&T Environment","32760-2-3","ST PD&T Erosion and Sediment Control","281","PD&T Program Delivery","2017-01-01","2099-12-31","N",false,"32760-2-3"]
["270","Science and Technology","270","Science and Technology","2760","Science and Technology - PD&T","30","32760-3","ST PD&T Fisheries","32760-3-3","ST PD&T Essential Fisheries Field","281","PD&T Program Delivery","2020-03-28","2099-12-31","N",false,"32760-3-3"]
["270","Science and Technology","270","Science and Technology","2760","Science and Technology - PD&T","30","32760-3","ST PD&T Fisheries","32760-3-1","ST PD&T Fisheries Field Technician","281","PD&T Program Delivery","2017-01-01","2099-12-31","N",false,"32760-3-1"]
["270","Science and Technology","270","Science and Technology","2760","Science and Technology - PD&T","30","32760-3","ST PD&T Fisheries","32760-3-2","ST PD&T Electrofishing Recertification","281","PD&T Program Delivery","2017-01-01","2099-12-31","N",false,"32760-3-2"]
["270","Science and Technology","270","Science and Technology","2760","Science and Technology - PD&T","30","32760-4","ST PD&T Professional Skills","32760-4-1","ST PD&T Technical Writing","281","PD&T Program Delivery","2017-01-01","2099-12-31","N",false,"32760-4-1"]
["270","Science and Technology","270","Science and Technology","2760","Science and Technology - PD&T","30","32760-5","ST PD&T Riparian","32760-5-1","ST PD&T Riparian Area Regulation","281","PD&T Program Delivery","2017-01-01","2099-12-31","N",false,"32760-5-1"]
["270","Science and Technology","270","Science and Technology","2760","Science and Technology - PD&T","30","32760-6","ST PD&T Safety","32760-6-1","ST PD&T Safety Training","281","PD&T Program Delivery","2017-01-01","2099-12-31","N",false,"32760-6-1"]
["270","Science and Technology","270","Science and Technology","2760","Science and Technology - PD&T","30","32760-7","ST PD&T Shellfish","32760-7-1","ST PD&T Shellfish Course","281","PD&T Program Delivery","2017-01-01","2099-12-31","N",false,"32760-7-1"]
["270","Science and Technology","270","Science and Technology","2760","Science and Technology - PD&T","30","32760-8","ST PD&T Water Quality","32760-8-1","ST PD&T Water Quality Sampling","281","PD&T Program Delivery","2017-01-01","2099-12-31","N",false,"32760-8-1"]
["280","Social Sciences","280","Social Sciences","2860","Social Sciences - PD&T","30","32860-1","SS PD&T Clemente","32860-1-1","SS PD&T Clemente","281","PD&T Program Delivery","2017-01-01","2099-12-31","N",false,"32860-1-1"]
["280","Social Sciences","280","Social Sciences","2860","Social Sciences - PD&T","30","32860-2","SS PD&T Couch Stone Symposium","32860-2-1","SS PD&T Couch Stone Symposium","281","PD&T Program Delivery","2017-01-01","2099-12-31","N",false,"32860-2-1"]
["280","Social Sciences","280","Social Sciences","2860","Social Sciences - PD&T","30","32860-3","SS PD&T GIS CIDA","32860-3-1","SS PD&T GIS CIDA","281","PD&T Program Delivery","2017-01-01","2099-12-31","N",false,"32860-3-1"]
["280","Social Sciences","280","Social Sciences","2860","Social Sciences - PD&T","30","32860-4","SS PD&T Inside Out Prison Education","32860-4-1","SS PD&T Inside Out Prison Education","281","PD&T Program Delivery","2017-01-01","2099-12-31","N",false,"32860-4-1"]
["280","Social Sciences","280","Social Sciences","2860","Social Sciences - PD&T","30","32860-5","SS PD&T Inside Out Training","32860-5-1","SS PD&T Inside Out Training","281","PD&T Program Delivery","2017-01-01","2099-12-31","N",false,"32860-5-1"]
["290","Trades and Applied Technology","290","Trades and Applied Technology","2980","Trades and Applied Technology - PD&T","30","32980-1","TAT PD&T Esthetics","32980-1-1","TAT PD&T Esthetics","281","PD&T Program Delivery","2017-01-01","2099-12-31","N",false,"32980-1-1"]
["290","Trades and Applied Technology","290","Trades and Applied Technology","2980","Trades and Applied Technology - PD&T","30","32980-2","TAT PD&T Electrician","32980-2-1","TAT PD&T Electrician","281","PD&T Program Delivery","2017-01-01","2099-12-31","N",false,"32980-2-1"]
["370","Registration Services","370","Registration Services","3715","Registration - PD&T","30","33715-1","REG Registration - PD&T","33715-1-1","REG Registration - PD&T","280","PD&T Administration","2017-01-01","2099-12-31","N",false,"33715-1-1"]
["370","Registration Services","370","Registration Services","3715","Registration - PD&T","30","33715-2","REG PD&T - Adventures in Mind","33715-2-1","REG PD&T - Adventures in Mind","281","PD&T Program Delivery","2017-01-01","2099-12-31","N",false,"33715-2-1"]
["370","Registration Services","370","Registration Services","3715","Registration - PD&T","30","33715-3","REG PD&T - Eldercollege","33715-3-1","REG PD&T - Eldercollege","281","PD&T Program Delivery","2017-01-01","2099-12-31","N",false,"33715-3-1"]
["370","Registration Services","370","Registration Services","3715","Registration - PD&T","30","33715-4","REG PD&T - Grandkids University","33715-4-1","REG PD&T - Grandkids University","281","PD&T Program Delivery","2017-01-01","2099-12-31","N",false,"33715-4-1"]
["370","Registration Services","370","Registration Services","3715","Registration - PD&T","30","33715-5","REG PD&T - Love of Learning","33715-5-1","REG PD&T - Love of Learning","281","PD&T Program Delivery","2017-01-01","2099-12-31","N",false,"33715-5-1"]
["440","Cowichan Campus","444","Cowichan PD&T & External Contracts","4440","Cowichan PD&T","30","34440-1","CC PD&T Administration","34440-1-1","CC PD&T Administration","280","PD&T Administration","2017-01-01","2099-12-31","N",false,"34440-1-1"]
["440","Cowichan Campus","444","Cowichan PD&T & External Contracts","4440","Cowichan PD&T","30","34440-2","CC  PD&T- Business Management","34440-2-1","CC  PD&T- Business Management","281","PD&T Program Delivery","2017-01-01","2099-12-31","N",false,"34440-2-1"]
["440","Cowichan Campus","444","Cowichan PD&T & External Contracts","4440","Cowichan PD&T","30","34440-3","CC  PD&T- FN Housing Manager Certificate","34440-3-1","CC  PD&T- FN Housing Manager Certificate","281","PD&T Program Delivery","2017-01-01","2099-12-31","N",false,"34440-3-1"]
["440","Cowichan Campus","444","Cowichan PD&T & External Contracts","4440","Cowichan PD&T","30","34440-4","CC  PD&T- Health & Human Services","34440-4-1","CC  PD&T- Health & Human Services","281","PD&T Program Delivery","2017-01-01","2099-12-31","N",false,"34440-4-1"]
["440","Cowichan Campus","444","Cowichan PD&T & External Contracts","4440","Cowichan PD&T","30","34440-5","CC  PD&T- Master Gardener","34440-5-1","CC  PD&T- Master Gardener","281","PD&T Program Delivery","2017-01-01","2099-12-31","N",false,"34440-5-1"]
["440","Cowichan Campus","444","Cowichan PD&T & External Contracts","4440","Cowichan PD&T","30","34440-6","CC  PD&T- Open Enrolment","34440-6-1","CC  PD&T- Open Enrolment","281","PD&T Program Delivery","2017-01-01","2099-12-31","N",false,"34440-6-1"]
["440","Cowichan Campus","444","Cowichan PD&T & External Contracts","4440","Cowichan PD&T","30","34440-7","CC  PD&T- Small Contracts","34440-7-1","CC  PD&T- Small Contracts","281","PD&T Program Delivery","2017-01-01","2099-12-31","N",false,"34440-7-1"]
["440","Cowichan Campus","444","Cowichan PD&T & External Contracts","4440","Cowichan PD&T","30","34440-8","CC  PD&T- Trades & Applied Technology","34440-8-1","CC  PD&T- Trades & Applied Technology","281","PD&T Program Delivery","2017-01-01","2099-12-31","N",false,"34440-8-1"]
["460","Powell River Campus","464","Powell River PD&T and External Contracts","4640","Powell River - PD&T","30","34640-1","PRC PD&T - Administration","34640-1-1","PRC PD&T - Administration","280","PD&T Administration","2017-01-01","2099-12-31","N",false,"34640-1-1"]
["460","Powell River Campus","464","Powell River PD&T and External Contracts","4640","Powell River - PD&T","30","34640-2","PRC PD&T - Eldercollege","34640-2-1","PRC PD&T - Eldercollege","281","PD&T Program Delivery","2017-01-01","2099-12-31","N",false,"34640-2-1"]
["460","Powell River Campus","464","Powell River PD&T and External Contracts","4640","Powell River - PD&T","30","34640-3","PRC PD&T - Online Training","34640-3-1","PRC PD&T - Online Training","281","PD&T Program Delivery","2017-01-01","2099-12-31","N",false,"34640-3-1"]
["640","Facilities Services and Campus Development","641","Ancillary - Facilities","6410","Parking and Security","40","46410-1","FSCD Ancillary - Administration","46410-1-1","FSCD Parking - Administration","400","Ancillary Administration","2017-01-01","2099-12-31","N",false,"46410-1-1"]
["640","Facilities Services and Campus Development","641","Ancillary - Facilities","6410","Parking and Security","40","46410-1","FSCD Ancillary - Administration","46410-1-2","FSCD Security - Administration","400","Ancillary Administration","2017-01-01","2099-12-31","N",false,"46410-1-2"]
["640","Facilities Services and Campus Development","641","Ancillary - Facilities","6410","Parking and Security","40","46410-2","FSCD Parking and Security - Cowichan Campus","46410-2-1","FSCD Parking and Security - Cowichan","401","Retail Operations","2017-01-01","2099-12-31","N",false,"46410-2-1"]
["640","Facilities Services and Campus Development","641","Ancillary - Facilities","6410","Parking and Security","40","46410-2","FSCD Parking and Security - Cowichan Campus","46410-2-2","FSCD Snow Removal - Cowichan","401","Retail Operations","2017-01-01","2099-12-31","N",false,"46410-2-2"]
["640","Facilities Services and Campus Development","641","Ancillary - Facilities","6410","Parking and Security","40","46410-3","FSCD Parking and Security - Cowichan Trades Centre","46410-3-1","FSCD Parking and Security - CTC","401","Retail Operations","2017-01-01","2099-12-31","N",false,"46410-3-1"]
["640","Facilities Services and Campus Development","641","Ancillary - Facilities","6410","Parking and Security","40","46410-3","FSCD Parking and Security - Cowichan Trades Centre","46410-3-2","FSCD Snow Removal - CTC","401","Retail Operations","2017-01-01","2099-12-31","N",false,"46410-3-2"]
["640","Facilities Services and Campus Development","641","Ancillary - Facilities","6410","Parking and Security","40","46410-4","FSCD Parking and Security - G.R. Paine Centre","46410-4-1","FSCD Parking and Security -  G.R. Paine Centre","401","Retail Operations","2017-01-01","2099-12-31","N",false,"46410-4-1"]
["640","Facilities Services and Campus Development","641","Ancillary - Facilities","6410","Parking and Security","40","46410-4","FSCD Parking and Security - G.R. Paine Centre","46410-4-2","FSCD Snow Removal -  G.R. Paine Centre","401","Retail Operations","2017-01-01","2099-12-31","N",false,"46410-4-2"]
["640","Facilities Services and Campus Development","641","Ancillary - Facilities","6410","Parking and Security","40","46410-5","FSCD Parking and Security - Nanaimo Campus","46410-5-1","FSCD Parking and Security - Nanaimo","401","Retail Operations","2017-01-01","2099-12-31","N",false,"46410-5-1"]
["640","Facilities Services and Campus Development","641","Ancillary - Facilities","6410","Parking and Security","40","46410-5","FSCD Parking and Security - Nanaimo Campus","46410-5-2","FSCD Snow Removal - Nanaimo","401","Retail Operations","2017-01-01","2099-12-31","N",false,"46410-5-2"]
["640","Facilities Services and Campus Development","641","Ancillary - Facilities","6410","Parking and Security","40","46410-6","FSCD Parking and Security - Powell River Campus","46410-6-1","FSCD Parking and Security -  Powell River","401","Retail Operations","2017-01-01","2099-12-31","N",false,"46410-6-1"]
["640","Facilities Services and Campus Development","641","Ancillary - Facilities","6410","Parking and Security","40","46410-6","FSCD Parking and Security - Powell River Campus","46410-6-2","FSCD Snow Removal - Powell River","401","Retail Operations","2017-01-01","2099-12-31","N",false,"46410-6-2"]
["640","Facilities Services and Campus Development","641","Ancillary - Facilities","6420","Environmental Sustainability","40","46420-1","FSCD Environmental Sustainability","46420-1-1","FSCD Environmental Sustainability","400","Ancillary Administration","2017-01-01","2099-12-31","N",false,"46420-1-1"]
["670","Ancillary Operations","670","Ancillary Services","6700","Ancillary Services","40","46700-1","ANC Ancillary Services","46700-1-1","ANC Ancillary Services","400","Ancillary Administration","2017-01-01","2099-12-31","N",false,"46700-1-1"]
["670","Ancillary Operations","670","Ancillary Services","6705","Other Ancillary Services","40","46705-1","ANC Other Ancillary Services","46705-1-1","ANC Other Ancillary Services - Regalia","401","Retail Operations","2017-01-01","2099-12-31","N",false,"46705-1-1"]
["670","Ancillary Operations","671","Campus Store","6710","Campus Store","40","46710-1","ANC Campus Store - Nanaimo","46710-1-1","ANC Campus Store - Nanaimo","401","Retail Operations","2017-01-01","2099-12-31","N",false,"46710-1-1"]
["670","Ancillary Operations","671","Campus Store","6710","Campus Store","40","46710-1","ANC Campus Store - Nanaimo","46710-1-2","ANC Campus Store - Nanaimo - Internal Clearing","401","Retail Operations","2021-03-27","2099-12-31","N",false,"46710-1-2"]
["670","Ancillary Operations","671","Campus Store","6710","Campus Store","40","46710-2","ANC Campus Store - Cowichan","46710-2-1","ANC Campus Store - Cowichan","401","Retail Operations","2017-01-01","2099-12-31","N",false,"46710-2-1"]
["670","Ancillary Operations","671","Campus Store","6710","Campus Store","40","46710-3","ANC Campus Store - Powell River","46710-3-1","ANC Campus Store - Powell River","401","Retail Operations","2017-01-01","2099-12-31","N",false,"46710-3-1"]
["670","Ancillary Operations","671","Campus Store","6710","Campus Store","40","46710-4","ANC Campus Store - Parksville","46710-4-1","ANC Campus Store - Parksville","401","Retail Operations","2017-01-01","2099-12-31","N",false,"46710-4-1"]
["670","Ancillary Operations","671","Campus Store","6710","Campus Store","40","46710-5","ANC Campus Store - Book Buyback WEB","46710-5-1","ANC Campus Store - Book Buyback WEB","401","Retail Operations","2017-01-01","2099-12-31","N",false,"46710-5-1"]
["670","Ancillary Operations","672","Conference and Event Services","6720","Conference & Event Services","40","46720-1","ANC Conference & Event Services - External Events","46720-1-1","ANC Conference & Event Services - External Events","401","Retail Operations","2017-01-01","2099-12-31","N",false,"46720-1-1"]
["670","Ancillary Operations","672","Conference and Event Services","6720","Conference & Event Services","40","46720-2","ANC Conference & Event Services - Vending","46720-2-1","ANC Conference & Event Services - Vending","401","Retail Operations","2017-01-01","2099-12-31","N",false,"46720-2-1"]
["670","Ancillary Operations","674","Food Services","6740","Food Services","40","46740-2","ANC Food Services - Cafeteria","46740-2-1","ANC Food Services - Cafeteria","401","Retail Operations","2017-01-01","2099-12-31","N",false,"46740-2-1"]
["670","Ancillary Operations","674","Food Services","6740","Food Services","40","46740-3","ANC Food Services - Catering","46740-3-1","ANC Food Services - Catering","401","Retail Operations","2017-01-01","2099-12-31","N",false,"46740-3-1"]
["670","Ancillary Operations","674","Food Services","6740","Food Services","40","46740-3","ANC Food Services - Catering","46740-3-2","ANC Food Services - Catering Clearing","401","Retail Operations","2021-03-27","2099-12-31","N",false,"46740-3-2"]
["670","Ancillary Operations","674","Food Services","6740","Food Services","40","46740-4","ANC Food Services - Student Food Sales","46740-4-1","ANC Food Services - Student Food Sales","401","Retail Operations","2017-01-01","2099-12-31","N",false,"46740-4-1"]
["670","Ancillary Operations","674","Food Services","6740","Food Services","40","46740-5","ANC Food Services - StarBucks","46740-5-1","ANC Food Services - StarBucks","401","Retail Operations","2017-01-01","2099-12-31","N",false,"46740-5-1"]
["670","Ancillary Operations","678","Printshop","6780","Printshop","40","46780-1","ANC Printshop","46780-1-1","ANC Printshop","401","Retail Operations","2017-01-01","2099-12-31","N",false,"46780-1-1"]
["670","Ancillary Operations","680","VIU Student Residences","6800","Student Residences","40","46800-1","ANC Student Residences","46800-1-1","ANC Student Residences","400","Ancillary Administration","2017-01-01","2099-12-31","N",false,"46800-1-1"]
["240","Health and Human Services","240","Health and Human Services","2401","Health and Human Services - Initiatives","50","52401-2","HHS Capital - Health Equipment","52401-2-1","HHS Capital - Health Equipment","500","Capital - General","2021-03-27","2099-12-31","N",false,"52401-2-1"]
["290","Trades and Applied Technology","290","Trades and Applied Technology","2901","Trades and Applied Technology - Initiatives","50","52901-2","TAT Capital - Training Equipment","52901-2-1","TAT Capital - Training Equipment","500","Capital - General","2021-03-27","2099-12-31","N",false,"52901-2-1"]
["360","Library","360","Library","3610","Library - Initiatives","50","53610-1","LIB Library - Capital Book Purchases","53610-1-1","LIB Library - Capital - Book Purchases","500","Capital - General","2017-01-01","2099-12-31","N",false,"53610-1-1"]
["500","Scholarship, Research and Creative Activity","500","Scholarship, Research and Creative Activity","5140","Externally Funded Capital Projects","50","55140-1","SRCA CFI - Capital","55140-1-1","SRCA Lane CFI - BCKDF","500","Capital - General","2020-03-28","2099-12-31","N",false,"55140-1-1"]
["500","Scholarship, Research and Creative Activity","500","Scholarship, Research and Creative Activity","5140","Externally Funded Capital Projects","50","55140-1","SRCA CFI - Capital","55140-1-2","SRCA Wager CFI","500","Capital - General","2020-03-28","2099-12-31","N",false,"55140-1-2"]
["500","Scholarship, Research and Creative Activity","500","Scholarship, Research and Creative Activity","5140","Externally Funded Capital Projects","50","55140-1","SRCA CFI - Capital","55140-1-3","SRCA Wood CFI","500","Capital - General","2020-03-28","2099-12-31","N",false,"55140-1-3"]
["500","Scholarship, Research and Creative Activity","500","Scholarship, Research and Creative Activity","5140","Externally Funded Capital Projects","50","55140-1","SRCA CFI - Capital","55140-1-4","SRCA Gill CFI - BCKDF","500","Capital - General","2020-03-28","2099-12-31","N",false,"55140-1-4"]
["500","Scholarship, Research and Creative Activity","500","Scholarship, Research and Creative Activity","5140","Externally Funded Capital Projects","50","55140-1","SRCA CFI - Capital","55140-1-5","SRCA Russell CFI - BCKDF","500","Capital - General","2020-03-28","2099-12-31","N",false,"55140-1-5"]
["500","Scholarship, Research and Creative Activity","500","Scholarship, Research and Creative Activity","5140","Externally Funded Capital Projects","50","55140-1","SRCA CFI - Capital","55140-1-6","SRCA Green CFI","500","Capital - General","2020-03-28","2099-12-31","N",false,"55140-1-6"]
["500","Scholarship, Research and Creative Activity","500","Scholarship, Research and Creative Activity","5140","Externally Funded Capital Projects","50","55140-1","SRCA CFI - Capital","55140-1-7","SRCA Janes CFI - BCKDF","500","Capital - General","2020-03-28","2099-12-31","N",false,"55140-1-7"]
["500","Scholarship, Research and Creative Activity","500","Scholarship, Research and Creative Activity","5140","Externally Funded Capital Projects","50","55140-1","SRCA CFI - Capital","55140-1-8","SRCA McCunn CFI - BCKDF","500","Capital - General","2020-03-28","2099-12-31","N",false,"55140-1-8"]
["610","Information Technology Services","610","Information Technology Services","6101","Information Technology - Initatives","50","56101-2","IT CRP Capital Projects","56101-2-1","IT CRP Capital Projects - Nelvana","500","Capital - General","2021-03-27","2099-12-31","N",false,"56101-2-1"]
["610","Information Technology Services","610","Information Technology Services","6101","Information Technology - Initatives","50","56101-2","IT CRP Capital Projects","56101-2-2","IT CRP Capital Projects - Virtual Desktop Expansion","500","Capital - General","2021-03-27","2099-12-31","N",false,"56101-2-2"]
["610","Information Technology Services","611","IT Operations","6110","IT Operations","10","56110-1","IT Ops Major Projects - Borealis","56110-1-1","IT Ops Major Projects - Borealis","500","Capital - General","2017-01-01","2099-12-31","N",false,"56110-1-1"]
["610","Information Technology Services","618","Enterprise Systems","6180","Enterprise Systems","10","56180-1","IT ES Major Projects - Aurora","56180-1-1","IT ES Major Projects - Aurora","500","Capital - General","2017-01-01","2099-12-31","N",false,"56180-1-1"]
["640","Facilities Services and Campus Development","640","Facilities and Ancillary Services","6550","Carbon Neutral Capital Projects","50","56550-1","FSCD Carbon Neutral Capital Projects","56550-1-1","FSCD CNP - Administration","500","Capital - General","2021-03-27","2099-12-31","N",false,"56550-1-1"]
["640","Facilities Services and Campus Development","640","Facilities and Ancillary Services","6550","Carbon Neutral Capital Projects","50","56550-1","FSCD Carbon Neutral Capital Projects","56550-1-1","FSCD CNP - Administration","550","Capital FMP - Administration","2021-03-27","2099-12-31","N",true,"56550-1-1"]
["640","Facilities Services and Campus Development","640","Facilities and Ancillary Services","6550","Carbon Neutral Capital Projects","50","56550-1","FSCD Carbon Neutral Capital Projects","56550-1-2","FSCD CNP - 1920-023 B300 Refrigerator","500","Capital - General","2021-03-27","2099-12-31","N",false,"56550-1-2"]
["640","Facilities Services and Campus Development","640","Facilities and Ancillary Services","6550","Carbon Neutral Capital Projects","50","56550-1","FSCD Carbon Neutral Capital Projects","56550-1-2","FSCD CNP - 1920-023 B300 Refrigerator","550","Capital FMP - Administration","2021-03-27","2099-12-31","N",true,"56550-1-2"]
["640","Facilities Services and Campus Development","640","Facilities and Ancillary Services","6575","Buildings and Infrastructure","50","56575-1","FSCD Buildings and Infrastructure","56575-1-1","FSCD BI - Day Care - Exp","550","Capital FMP - Administration","2021-03-27","2099-12-31","N",false,"56575-1-1"]
["640","Facilities Services and Campus Development","640","Facilities and Ancillary Services","6575","Buildings and Infrastructure","50","56575-1","FSCD Buildings and Infrastructure","56575-1-2","FSCD BI - Aboriginal Gathering Phase II","550","Capital FMP - Administration","2021-03-27","2099-12-31","N",false,"56575-1-2"]
["640","Facilities Services and Campus Development","640","Facilities and Ancillary Services","6575","Buildings and Infrastructure","50","56575-1","FSCD Buildings and Infrastructure","56575-1-3","FSCD BI - LIB - Expansion (Buildings & Equipment)","550","Capital FMP - Administration","2021-03-27","2099-12-31","N",false,"56575-1-3"]
["640","Facilities Services and Campus Development","640","Facilities and Ancillary Services","6575","Buildings and Infrastructure","50","56575-1","FSCD Buildings and Infrastructure","56575-1-4","FSCD BI - 1819-006 Ext Corr Protect","550","Capital FMP - Administration","2021-03-27","2099-12-31","N",false,"56575-1-4"]
["640","Facilities Services and Campus Development","640","Facilities and Ancillary Services","6575","Buildings and Infrastructure","50","56575-1","FSCD Buildings and Infrastructure","56575-1-5","FSCD BI - 1819-010 Ductwork Reseal","550","Capital FMP - Administration","2021-03-27","2099-12-31","N",false,"56575-1-5"]
["640","Facilities Services and Campus Development","640","Facilities and Ancillary Services","6600","Routine Capital","50","56600-1","FSCD Routine Capital","56600-1-1","FSCD RC - 1920-003 LED EXT Lighting","550","Capital FMP - Administration","2021-03-27","2099-12-31","N",false,"56600-1-1"]
["640","Facilities Services and Campus Development","640","Facilities and Ancillary Services","6600","Routine Capital","50","56600-1","FSCD Routine Capital","56600-1-2","FSCD RC - 1920-015 B356 HVAC Replacement","550","Capital FMP - Administration","2021-03-27","2099-12-31","N",false,"56600-1-2"]
["640","Facilities Services and Campus Development","640","Facilities and Ancillary Services","6600","Routine Capital","50","56600-1","FSCD Routine Capital","56600-1-3","FSCD RC - 2021-029 Intrusion Sysy","550","Capital FMP - Administration","2021-03-27","2099-12-31","N",false,"56600-1-3"]
["640","Facilities Services and Campus Development","640","Facilities and Ancillary Services","6600","Routine Capital","50","56600-1","FSCD Routine Capital","56600-1-4","FSCD RC - 1920-082 B345 Cladding","550","Capital FMP - Administration","2021-03-27","2099-12-31","N",false,"56600-1-4"]
["640","Facilities Services and Campus Development","640","Facilities and Ancillary Services","6600","Routine Capital","50","56600-1","FSCD Routine Capital","56600-1-5","FSCD RC - 2021-049 B300 & B310 RF & Air","550","Capital FMP - Administration","2021-03-27","2099-12-31","N",false,"56600-1-5"]
["640","Facilities Services and Campus Development","640","Facilities and Ancillary Services","6600","Routine Capital","50","56600-1","FSCD Routine Capital","56600-1-6","FSCD RC - 2122-001 Roof Replacement","550","Capital FMP - Administration","2021-03-27","2099-12-31","N",false,"56600-1-6"]
["640","Facilities Services and Campus Development","640","Facilities and Ancillary Services","6600","Routine Capital","50","56600-1","FSCD Routine Capital","56600-1-7","FSCD RC - 2122-002 Exterior Paint","550","Capital FMP - Administration","2021-03-27","2099-12-31","N",false,"56600-1-7"]
["640","Facilities Services and Campus Development","640","Facilities and Ancillary Services","6600","Routine Capital","50","56600-1","FSCD Routine Capital","56600-1-8","FSCD RC - 1920-037 Deep Bay Structure","550","Capital FMP - Administration","2021-03-27","2099-12-31","N",false,"56600-1-8"]
["640","Facilities Services and Campus Development","640","Facilities and Ancillary Services","6600","Routine Capital","50","56600-1","FSCD Routine Capital","56600-1-9","FSCD RC - 2021-101 Student Fire Alarm","550","Capital FMP - Administration","2021-03-27","2099-12-31","N",false,"56600-1-9"]
["640","Facilities Services and Campus Development","640","Facilities and Ancillary Services","6600","Routine Capital","50","56600-1","FSCD Routine Capital","56600-1-10","FSCD RC - 2122-021 Food Services Reno","550","Capital FMP - Administration","2021-03-27","2099-12-31","N",false,"56600-1-10"]
["640","Facilities Services and Campus Development","640","Facilities and Ancillary Services","6600","Routine Capital","50","56600-1","FSCD Routine Capital","56600-1-11","FSCD RC - 2122-017 B300 Mechanical","550","Capital FMP - Administration","2021-03-27","2099-12-31","N",false,"56600-1-11"]
["640","Facilities Services and Campus Development","640","Facilities and Ancillary Services","6600","Routine Capital","50","56600-1","FSCD Routine Capital","56600-1-12","FSCD RC - 2122-006 Classroom Refurbish","550","Capital FMP - Administration","2021-03-27","2099-12-31","N",false,"56600-1-12"]
["640","Facilities Services and Campus Development","640","Facilities and Ancillary Services","6600","Routine Capital","50","56600-1","FSCD Routine Capital","56600-1-13","FSCD RC - 1920-102 B610 PR HCA Lab","550","Capital FMP - Administration","2021-03-27","2099-12-31","N",false,"56600-1-13"]
["640","Facilities Services and Campus Development","640","Facilities and Ancillary Services","6600","Routine Capital","50","56600-1","FSCD Routine Capital","56600-1-14","FSCD RC - 2021-126 B160 Geoexchange","550","Capital FMP - Administration","2021-03-27","2099-12-31","N",false,"56600-1-14"]
["640","Facilities Services and Campus Development","640","Facilities and Ancillary Services","6600","Routine Capital","50","56600-1","FSCD Routine Capital","56600-1-15","FSCD RC - 2122-009 B305 Washrooms","550","Capital FMP - Administration","2021-03-27","2099-12-31","N",false,"56600-1-15"]
["640","Facilities Services and Campus Development","640","Facilities and Ancillary Services","6600","Routine Capital","50","56600-1","FSCD Routine Capital","56600-1-16","FSCD RC - 2122-011 B355 Lecture Theatre","550","Capital FMP - Administration","2021-03-27","2099-12-31","N",false,"56600-1-16"]
["640","Facilities Services and Campus Development","640","Facilities and Ancillary Services","6600","Routine Capital","50","56600-1","FSCD Routine Capital","56600-1-17","FSCD RC - 2122-013 Library Courtyard","550","Capital FMP - Administration","2021-03-27","2099-12-31","N",false,"56600-1-17"]
["640","Facilities Services and Campus Development","640","Facilities and Ancillary Services","6600","Routine Capital","50","56600-1","FSCD Routine Capital","56600-1-18","FSCD RC - 2021-103 Deck Repair","550","Capital FMP - Administration","2021-03-27","2099-12-31","N",false,"56600-1-18"]
["640","Facilities Services and Campus Development","640","Facilities and Ancillary Services","6625","Universal Access","50","56625-1","FSCD Universal Access - General","56625-1-1","FSCD UA - 1920-022 Universal Access","550","Capital FMP - Administration","2021-03-27","2099-12-31","N",false,"56625-1-1"]
["640","Facilities Services and Campus Development","640","Facilities and Ancillary Services","6625","Universal Access","50","56625-1","FSCD Universal Access - General","56625-1-2","FSCD UA - 1920-083 Outdoor Ramp Replacement","550","Capital FMP - Administration","2021-03-27","2099-12-31","N",false,"56625-1-2"]
["640","Facilities Services and Campus Development","640","Facilities and Ancillary Services","6625","Universal Access","50","56625-1","FSCD Universal Access - General","56625-1-3","FSCD UA - 2021-117 Access Washrooms","550","Capital FMP - Administration","2021-03-27","2099-12-31","N",false,"56625-1-3"]
["640","Facilities Services and Campus Development","640","Facilities and Ancillary Services","6650","Capital - Other","50","56650-1","FSCD Eclipse","56650-1-1","FSCD - Eclipse - Internal Accumulated Surplus","550","Capital FMP - Administration","2021-03-27","2099-12-31","N",false,"56650-1-1"]
["250","International Education","800","VH Clearing Activity","8000","High Schools - Administration","80","88000-1","VH High Schools - Administration","88000-1-1","VH High Schools - Administration","100","Administration","2017-01-01","2099-12-31","N",false,"88000-1-1"]
["250","International Education","800","VH Clearing Activity","8000","High Schools - Administration","80","88000-1","VH High Schools - Administration","88000-1-1","VH High Schools - Administration","101","Institutional","2017-01-01","2099-12-31","N",true,"88000-1-1"]
["250","International Education","800","VH Clearing Activity","8075","HS Combined - Domestic and International activity","80","88075-1","VH Combined - Domestic and International activity","88075-1-1","VH Combined - Domestic and International activity","100","Administration","2017-01-01","2099-12-31","N",false,"88075-1-1"]
["250","International Education","800","VH Clearing Activity","8075","HS Combined - Domestic and International activity","80","88075-1","VH Combined - Domestic and International activity","88075-1-1","VH Combined - Domestic and International activity","208","Instruction","2017-01-01","2099-12-31","N",true,"88075-1-1"]
["250","International Education","800","VH Clearing Activity","8100","HS Domestic activity","80","88100-1","VH Domestic activity","88100-1-1","VH Domestic activity","100","Administration","2017-01-01","2099-12-31","N",false,"88100-1-1"]
["250","International Education","800","VH Clearing Activity","8100","HS Domestic activity","80","88100-1","VH Domestic activity","88100-1-1","VH Domestic activity","208","Instruction","2017-01-01","2099-12-31","N",true,"88100-1-1"]
["250","International Education","800","VH Clearing Activity","8200","HS International activity","80","88200-1","VH International activity","88200-1-1","VH International activity","100","Administration","2017-01-01","2099-12-31","N",false,"88200-1-1"]
["250","International Education","800","VH Clearing Activity","8200","HS International activity","80","88200-1","VH International activity","88200-1-1","VH International activity","208","Instruction","2017-01-01","2099-12-31","N",true,"88200-1-1"]
["250","International Education","800","VH Clearing Activity","8210","HS Adult and Foundation Programs","80","88210-1","VH Adult and Foundation Programs","88210-1-1","VH Adult and Foundation Programs","100","Administration","2017-01-01","2099-12-31","N",false,"88210-1-1"]
["250","International Education","800","VH Clearing Activity","8210","HS Adult and Foundation Programs","80","88210-1","VH Adult and Foundation Programs","88210-1-1","VH Adult and Foundation Programs","208","Instruction","2017-01-01","2099-12-31","N",true,"88210-1-1"]
["250","International Education","800","VH Clearing Activity","8215","HS Summer Programs","80","88215-1","VH Summer Programs","88215-1-1","VH Summer Programs","100","Administration","2017-01-01","2099-12-31","N",false,"88215-1-1"]
["250","International Education","800","VH Clearing Activity","8215","HS Summer Programs","80","88215-1","VH Summer Programs","88215-1-1","VH Summer Programs","208","Instruction","2017-01-01","2099-12-31","N",true,"88215-1-1"]
["250","International Education","800","VH Clearing Activity","8230","HS Group Programs","80","88230-1","VH Group Programs","88230-1-1","VH Group Programs","100","Administration","2017-01-01","2099-12-31","N",false,"88230-1-1"]
["250","International Education","800","VH Clearing Activity","8230","HS Group Programs","80","88230-1","VH Group Programs","88230-1-1","VH Group Programs","208","Instruction","2017-01-01","2099-12-31","N",true,"88230-1-1"]
["250","International Education","800","VH Clearing Activity","8300","High Schools - Due To/From","80","88300-1","VH High Schools - Due To/From","88300-1-1","VH High Schools - Due To/From","100","Administration","2020-03-28","2099-12-31","N",false,"88300-1-1"]

{"sheet":"WO Sims","index":13,"n_rows":1171,"n_cols":9,"rows_kept":1171,"cut":false,"hidden":true,"merged":[]}
[]
[]
[]
[]
[]
[]
[]
[]
[]
[]
[]
[]
[]
[]
[]
["FRS BUDGET Division","FRS Cost Centre","FRS Cost Centre Description","Work order","Description","ACT/Intake","Activity Code Description","Division(T)","Fund"]
["Aboriginal Ed. and Engagement",6930,"DIRECTOR-INDIGENOUS EDUC.","13500-1-1","IEE Indigenous Education and Engagement",200,"Academic Administration","Indigenous Education and Engagement",10]
["Aboriginal Ed. and Engagement",6931,"INDIGENOUS EDUCATION","13501-1-1","IEE Indigenous Education",200,"Academic Administration","Indigenous Education and Engagement",10]
["Aboriginal Ed. and Engagement",6932,"INDIGENOUS INTERNSHIP","13505-1-1","IEE AUB - ACP Partnership",200,"Academic Administration","Indigenous Education and Engagement",10]
["Academic and Career Preparation",2700,"ABE & CAP ADMINISTRATRATION","12100-1-1","ACP Faculty Dean's Office",201,"Faculty Administration","Academic and Career Preparation",10]
["Academic and Career Preparation",2705,"ABE LEARNING CENTRE","12105-4-1","ACP ABE - Learning Centre",208,"Instruction"]
["Academic and Career Preparation",2706,"FOUNDATIONS FOR SUCCESS","12115-1-1","ACP Foundations for Success",208,"Instruction"]
["Academic and Career Preparation",2730,"ADULT BASIC EDU","12105-1-1","ACP ABE - Nanaimo",208,"Instruction"]
["Academic and Career Preparation",2735,"REGIONAL PROGRAMS","12120-3-1","ACP Community Adult Literacy Programs",208,"Instruction"]
["Academic and Career Preparation",2736,"VOLUNTEER TUTOR","12120-1-1","ACP Volunteer Tutors - Nanaimo",208,"Instruction"]
["Academic and Career Preparation",2741,"ACCESS PROGRAMS","12110-1-1","ACP ASE - Nanaimo",208,"Instruction"]
["Academic and Career Preparation",2750,"COWICHAN-VOLUNTEER TUTORS","12120-2-1","ACP Volunteer Tutors - Cowichan",208,"Instruction"]
["Academic and Career Preparation",2752,"COWICHAN-A.B.E.","12105-2-1","ACP ABE - Cowichan",208,"Instruction"]
["Academic and Career Preparation",2755,"COWICHAN-ACCESS PROGRAMS","12110-2-1","ACP ASE - Cowichan",208,"Instruction"]
["Academic and Career Preparation",2770,"ABORIGINAL UNIV. BRIDGING","12105-1-2","ACP ABE - Aboriginal University Bridging",208,"Instruction"]
["Academic and Career Preparation",2780,"PARKSVILLE A.B.E.","12105-3-1","ACP ABE - Parksville",208,"Instruction"]
["Ancillary - Administration",8620,"BUSINESS OPERATIONS ","46700-1-1","ANC Ancillary Services",400,"Ancillary Administration","Ancillary Operations",40]
["Ancillary - Business Operations",8610,"REGALIA DEPOSITS","46705-1-1","ANC Other Ancillary Services - Regalia",401,"Retail Operations","Ancillary Operations",40]
["Ancillary - Campus Store",8600,"BOOKSTORE","46710-1-1","ANC Campus Store - Nanaimo",401,"Retail Operations","Ancillary Operations",40]
["Ancillary - Campus Store",8601,"BOOKSTORE - DUNCAN","46710-2-1","ANC Campus Store - Cowichan",401,"Retail Operations","Ancillary Operations",40]
["Ancillary - Campus Store",8602,"BOOKSTORE - PARKSVILLE","46710-4-1","ANC Campus Store - Parksville",401,"Retail Operations","Ancillary Operations",40]
["Ancillary - Campus Store",8603,"BOOKSTORE - POWELL RIVER","46710-3-1","ANC Campus Store - Powell River",401,"Retail Operations","Ancillary Operations",40]
["Ancillary - Campus Store",8605,"BB WEB (BOOK BUY BACK) ","46710-5-1","ANC Campus Store - Book Buyback WEB",401,"Retail Operations","Ancillary Operations",40]
["Ancillary - Campus Store",8612,"BKS INTERNAL CRG-CLEARING","46710-1-2","ANC Campus Store - Nanaimo - Internal Clearing",401,"Retail Operations","Ancillary Operations",40]
["Ancillary - Events/External",8606,"VENDING/CONCESSIONS","46720-2-1","ANC Conference & Event Services - Vending",401,"Retail Operations","Ancillary Operations",40]
["Ancillary - Events/External",8625,"BUSINESS OPS EXTERNAL REV","46720-1-1","ANC Conference & Event Services - External Events",401,"Retail Operations","Ancillary Operations",40]
["Ancillary - Facilities",8701,"FAC. ANCILLARY - ADMIN","46410-1-1","FSCD Parking - Administration",400,"Ancillary Administration","Facilities Services and Campus Development",40]
["Ancillary - Facilities",8702,"SECURITY MANAGEMENT","46410-1-2","FSCD Security - Administration",400,"Ancillary Administration","Facilities Services and Campus Development",40]
["Ancillary - Facilities",8704,"NANAIMO-SNOW/ICE REMOVAL","46410-5-2","FSCD Snow Removal - Nanaimo",401,"Retail Operations","Facilities Services and Campus Development",40]
["Ancillary - Facilities",8705,"NANAIMO-PARKING/SECURITY","46410-5-1","FSCD Parking and Security - Nanaimo",401,"Retail Operations","Facilities Services and Campus Development",40]
["Ancillary - Facilities",8707,"COWICHAN - PARKING/SECURITY","46410-2-1","FSCD Parking and Security - Cowichan",401,"Retail Operations","Facilities Services and Campus Development",40]
["Ancillary - Facilities",8708,"COWICHAN-SNOW/ICE REMOVAL","46410-2-2","FSCD Snow Removal - Cowichan",401,"Retail Operations","Facilities Services and Campus Development",40]
["Ancillary - Facilities",8709,"POWELL RIVER-PARKING/SEC.","46410-6-1","FSCD Parking and Security -  Powell River",401,"Retail Operations","Facilities Services and Campus Development",40]
["Ancillary - Facilities",8710,"POWELL RIVER-SNOW/ICE REM","46410-6-2","FSCD Snow Removal - Powell River",401,"Retail Operations","Facilities Services and Campus Development",40]
["Ancillary - Facilities",8711,"COW.TRADES-SNOW/ICE REMOV","46410-3-2","FSCD Snow Removal - CTC",401,"Retail Operations","Facilities Services and Campus Development",40]
["Ancillary - Facilities",8712,"COW.TRADES-PARKING/SECURI","46410-3-1","FSCD Parking and Security - CTC",401,"Retail Operations","Facilities Services and Campus Development",40]
["Ancillary - Facilities",8713,"GR PAINE-PARKING/SECURITY","46410-4-1","FSCD Parking and Security -  G.R. Paine Centre",401,"Retail Operations","Facilities Services and Campus Development",40]
["Ancillary - Facilities",8714,"GR PAINE-SNOW/ICE REMOVAL","46410-4-2","FSCD Snow Removal -  G.R. Paine Centre",401,"Retail Operations","Facilities Services and Campus Development",40]
["Ancillary - Facilities",8715,"ENVIRON. & SUSTAINABILITY","46420-1-1","FSCD Environmental Sustainability",400,"Ancillary Administration","Facilities Services and Campus Development",40]
["Ancillary - Food Services",3600,"CAFETERIA ","46740-2-1","ANC Food Services - Cafeteria",401,"Retail Operations","Ancillary Operations",40]
["Ancillary - Food Services",3604,"CATERING SERVICES ","46740-3-1","ANC Food Services - Catering",401,"Retail Operations","Ancillary Operations",40]
["Ancillary - Food Services",3605,"STUDENT FOOD SALES ","46740-4-1","ANC Food Services - Student Food Sales",401,"Retail Operations","Ancillary Operations",40]
["Ancillary - Food Services",3606,"STARBUCKS ","46740-5-1","ANC Food Services - StarBucks",401,"Retail Operations","Ancillary Operations",40]
["Ancillary - Food Services",8626,"CATERING - CLEARING ","46740-3-2","ANC Food Services - Catering Clearing","401","Retail Operations","Ancillary Operations","40"]
["Ancillary - Printshop",8640,"PRINTING/DUPLICATING ","46780-1-1","ANC Printshop",401,"Retail Operations","Ancillary Operations",40]
["Ancillary - VIU Student Res.",8650,"ANCILLARY - VIU STUDENT RES.","46800-1-1","ANC Student Residences",400,"Ancillary Administration","Ancillary Operations",40]
["Arts & Humanities",2000,"DEAN, ARTS AND HUMANITIES","12200-1-1","AH Faculty Dean's Office",201,"Faculty Administration","Arts and Humanities",10]
["Arts & Humanities",2002,"A & H DIRECTED STUDIES","12201-3-1","AH Faculty of Arts and Humanities - Initiatives - Directed Studies",208,"Instruction"]
["Arts & Humanities",2003,"INTERED SECTIONS ARTS","12201-2-1","AH Faculty of Arts and Humanities - Initiatives - International Sections",208,"Instruction"]
["Arts & Humanities",2005,"ARTS AND F.N.ST ADVISING","12201-1-2","AH Faculty Advising",204,"Advising","Arts and Humanities",10]
["Arts & Humanities",2009,"ART TECHNICIAN","12215-1-2","AH Art and Design - Art Technician",208,"Instruction"]
["Arts & Humanities",2010,"ART","12215-1-1","AH Art and Design - Visual Art",208,"Instruction"]
["Arts & Humanities",2011,"APPLIED ART - GRAPHICS","12205-1-1","AH Art and Design - Graphic Design",208,"Instruction"]
["Arts & Humanities",2012,"INTERIOR DESIGN","12210-1-1","AH Art and Design - Interior Design",208,"Instruction"]
["Arts & Humanities",2013,"MEDIA STUDIES - EXTRA SECTIONS","12240-1-2","AH Media Studies - Extra Sections",208,"Instruction"]
["Arts & Humanities",2014,"MEDIA STUDIES","12240-1-1","AH Media Studies",208,"Instruction"]
["Arts & Humanities",2016,"MUSIC","12250-1-1","AH Music",208,"Instruction"]
["Arts & Humanities",2018,"MUSIC-PRIVATE INSTRUCTION","12250-1-2","AH Music - Private Instruction",208,"Instruction"]
["Arts & Humanities",2019,"THEATRE","12260-1-1","AH Theatre",208,"Instruction"]
["Arts & Humanities",2026,"MODERN LANGUAGE","12245-1-1","AH Modern Languages Studies",208,"Instruction"]
["Arts & Humanities",2027,"ASIAN STUDIES CREDENTIAL","12245-2-1","AH Asian Studies Credential",208,"Instruction"]
["Arts & Humanities",2029,"ENGLISH - EXTRA SECTIONS","12225-1-2","AH English - Extra Sections",208,"Instruction"]
["Arts & Humanities",2030,"ENGLISH","12225-1-1","AH English",208,"Instruction"]
["Arts & Humanities",2032,"CREATIVE WRITING","12220-1-1","AH Creative Writing and Journalism",208,"Instruction"]
["Arts & Humanities",2035,"CREW - EXTRA SECTIONS","12220-1-2","AH Creative Writing and Journalism - Extra Sections",208,"Instruction"]
["Arts & Humanities",2052,"HISTORY","12230-1-1","AH History",208,"Instruction"]
["Arts & Humanities",2070,"FIRST NATIONS STUDIES","12235-1-1","AH Indigenous/Xwulmuxw Studies",208,"Instruction"]
["Arts & Humanities",2080,"WOMEN'S STUDIES","12255-1-1","AH Studies in Women and Gender",208,"Instruction"]
["Arts & Humanities",2090,"VIEW GALLERY","12215-1-3","AH Art and Design - View Gallery",201,"Faculty Administration","Arts and Humanities",10]
["Capital",9000,"LIB - EXPANSION","56575-1-3","FSCD BI - LIB - Expansion (Buildings & Equipment)",550,"Capital FMP - Administration","Facilities Services and Campus Development",50]
["Capital",9012,"CFI EXPENSES - GREEN","55140-1-6","SRCA Green CFI",500,"Capital - General","Scholarship, Research and Creative Activity",50]
["Capital",9023,"CFI - WAGER ","55140-1-2","SRCA Wager CFI ",500,"Capital - General","Scholarship, Research and Creative Activity",50]
["Capital",9024,"CFI - WOOD ","55140-1-3","SRCA Wood CFI ",500,"Capital - General","Scholarship, Research and Creative Activity",50]
["Capital",9029,"CARBON NEUTRAL PROJECTREV ","56550-1-1","FSCD CNP - Administration",550,"Capital FMP - Administration","Facilities Services and Campus Development",50]
["Capital",9030,"TRADES TRAINING EQUIPMENT ","52901-2-1","TAT Capital - Training Equipment",500,"Capital - General","Trades and Applied Technology",50]
["Capital",9062,"ITS-VRTUAL DSKTP EXPNSION ","56101-2-2","IT CRP Capital Projects - Virtual Desktop Expansion ",500,"Capital - General","Information Technology Services",50]
["Capital",9075,"LIBRARY BOOK PURCHASES (CAPITAL FUND)","53610-1-1","LIB Library - Capital - Book Purchases",500,"Capital - General","Library",50]
["Capital",9077,"DAY CARE EXP","56575-1-1","FSCD BI - Day Care - Exp",550,"Capital FMP - Administration","Facilities Services and Campus Development",50]
["Capital",9081,"BOREALIS NR","56110-1-1","IT Ops Major Projects - Borealis",500,"Capital - General","Information Technology Services",50]
["Capital",9100,"ABOR. GATHERING PL. PHASE 2","56575-1-2","FSCD BI - Aboriginal Gathering Phase II",550,"Capital FMP - Administration","Facilities Services and Campus Development",50]
["Capital",9116,"HCA - PP EQUIPMENT ","52401-2-1","HHS Capital - Health Equipment",500,"Capital - General","Health and Human Services",50]
["Capital",9131,"GILL CFI-BCKDF EXP ","55140-1-4","SRCA Gill CFI - BCKDF ",500,"Capital - General","Scholarship, Research and Creative Activity",50]
["Capital",9134,"LANE CFI - BCKDF EXP","55140-1-1","SRCA Lane CFI - BCKDF",500,"Capital - General","Scholarship, Research and Creative Activity",50]
["Capital",9137,"RUSSELL CFI-BCKDF EXP","55140-1-5","SRCA Russell CFI - BCKDF ",500,"Capital - General","Scholarship, Research and Creative Activity",50]
["Capital",9140,"JANES - CFI-BCKDF EXP","55140-1-7","SRCA Janes CFI - BCKDF ",500,"Capital - General","Scholarship, Research and Creative Activity",50]
["Capital",9143,"MCCUNN CFI-BCKDF EXP ","55140-1-8","SRCA McCunn CFI - BCKDF ",500,"Capital - General","Scholarship, Research and Creative Activity",50]
["Capital",9150,"AURORA-EXP","56180-1-1","IT ES Major Projects - Aurora",500,"Capital - General","Information Technology Services",50]
["Capital",9303,"1819-006 EXT CORR PROTECT","56575-1-4","FSCD BI - 1819-006 Ext Corr Protect ",550,"Capital FMP - Administration","Facilities Services and Campus Development",50]
["Capital",9307,"1819-010 DUCTWORK RESEAL","56575-1-5","FSCD BI - 1819-010 Ductwork Reseal ",550,"Capital FMP - Administration","Facilities Services and Campus Development",50]
["Capital",9333,"1920-003 LED EXT LIGHTING ","56600-1-1","FSCD RC - 1920-003 LED EXT Lighting ",550,"Capital FMP - Administration","Facilities Services and Campus Development",50]
["Capital",9341,"1920-015 B356 HVAC RPLCE ","56600-1-2","FSCD RC - 1920-015 B356 HVAC Replacement ",550,"Capital FMP - Administration","Facilities Services and Campus Development",50]
["Capital",9348,"1920-037 DEEP BAY STRUCT","56600-1-8","FSCD RC - 1920-037 Deep Bay Structure",550,"Capital FMP - Administration","Facilities Services and Campus Development",50]
["Capital",9380,"1920-023 B300 REFRIGERATR ","56550-1-2","FSCD CNP - 1920-023 B300 Refrigerator ",550,"Capital FMP - Administration","Facilities Services and Campus Development",50]
["Capital",9383,"2021-029 INTRUSION SYSY","56600-1-3","FSCD RC - 2021-029 Intrusion Sysy",550,"Capital FMP - Administration","Facilities Services and Campus Development",50]
["Capital",9394,"1920-022 UNIVERSL ACCESS ","56625-1-1","FSCD UA - 1920-022 Universal Access ",550,"Capital FMP - Administration","Facilities Services and Campus Development",50]
["Capital",9395,"1920-083 OUTDR RMP REP","56625-1-2","FSCD UA - 1920-083 Outdoor Ramp Replacement ",550,"Capital FMP - Administration","Facilities Services and Campus Development",50]
["Capital",9454,"1920-086 ECLIPSE","56650-1-1","FSCD CO - Eclipse",550,"Capital FMP - Administration","Facilities Services and Campus Development",50]
["Capital",9475,"1920-082 B345 CLADDING ","56600-1-4","FSCD RC - 1920-082 B345 Cladding",550,"Capital FMP - Administration","Facilities Services and Campus Development",50]
["Capital",9503,"2021-049 B300&B310 RF&AIR","56600-1-5","FSCD RC - 2021-049 B300 & B310 RF & Air ",550,"Capital FMP - Administration","Facilities Services and Campus Development",50]
["Capital",9505,"1920-037 STUDT FIRE ALARM","56600-1-9","FSCD RC - 2021-101 Student Fire Alarm",550,"Capital FMP - Administration","Facilities Services and Campus Development",50]
["Capital",9507,"2122-001 ROOF REPLACEMENT","56600-1-6","FSCD RC - 2122-001 Roof Replacement",550,"Capital FMP - Administration","Facilities Services and Campus Development",50]
["Capital",9508,"2122-002 EXTERIOR PAINT ","56600-1-7","FSCD RC - 2122-002 Exterior Paint ",550,"Capital FMP - Administration","Facilities Services and Campus Development",50]
["Capital",9510,"2021-117 ACCESS WASHROOMS","56625-1-3","FSCD UA - 2021-117 Access Washrooms",550,"Capital FMP - Administration","Facilities Services and Campus Development",50]
["Capital",9517,"2122-021 FOOD SERV RENO","56600-1-10","FSCD RC - 2122-021 Food Services Reno",550,"Capital FMP - Administration","Facilities Services and Campus Development",50]
["Capital",9518,"1920-102 B610 PR HCA LAB","56600-1-13","FSCD RC - 1920-102 B610 PR HCA Lab",550,"Capital FMP - Administration","Facilities Services and Campus Development",50]
["Capital",9519,"2021-126 B160 GEOEXCHANGE ","56600-1-14","FSCD RC - 2021-126 B160 Geoexchange ",550,"Capital FMP - Administration","Facilities Services and Campus Development",50]
["Capital",9521,"2122-009 B305 WASHROOMS ","56600-1-15","FSCD RC - 2122-009 B305 Washrooms",550,"Capital FMP - Administration","Facilities Services and Campus Development",50]
["Capital",9522,"2122-011 B355 LEC THEATRE ","56600-1-16","FSCD RC - 2122-011 B355 Lecture Theatre ",550,"Capital FMP - Administration","Facilities Services and Campus Development",50]
["Capital",9523,"2122-013 LIB COURTYARD  ","56600-1-17","FSCD RC - 2122-013 Library Courtyard ",550,"Capital FMP - Administration","Facilities Services and Campus Development",50]
["Capital",9524,"2021-103 DECK REPAIR  ","56600-1-18","FSCD RC - 2021-103 Deck Repair ",550,"Capital FMP - Administration","Facilities Services and Campus Development",50]
["Capital",9525,"2122-017 B300 MECHANICAL ","56600-1-11","FSCD RC - 2122-017 B300 Mechanical",550,"Capital FMP - Administration","Facilities Services and Campus Development",50]
["Capital",9526,"NELVANA - AV","56101-2-1","IT CRP Capital Projects - Nelvana ",500,"Capital - General","Information Technology Services",50]
["Capital",9527,"2122-006 CLASSROOM REFURB ","56600-1-12","FSCD RC - 2122-006 Classroom Refurbish ",550,"Capital FMP - Administration","Facilities Services and Campus Development",50]
["Capital",9528,"2122-020 B180 CLASSROOM","56500-1-1","FSCD FMP - 2122-020 B180 Classroom Upgrades ",550,"Capital FMP - Administration","Facilities Services and Campus Development",50]
["Capital",9529,"2122-021 COVID MECHANICAL ","56600-1-19","FSCD RC - 2122-021 COVID Mechanical ",550,"Capital FMP - Administration","Facilities Services and Campus Development",50]
["Capital",9207,"SCI-MULTI MODE MICROPLATE","52701-2-1","ST Multi-Mode Microplate ",500,"Capital - General","Science and Technology",50]
["Capital",9208,"SCI - ENGNING LAB EQUIP","52701-2-2","ST Enginnering Lab Equipment",500,"Capital - General","Science and Technology",50]
["Capital",9130,"MIN HLTH - GILL 5920","55140-2-1","SRCA Ministry of Health - Gill 5920",500,"Capital - General","Scholarship, Research and Creative Activity",50]
["Capital",9460,"FACILITY STDNT ACCOMDTION","56500-1-2","FSCD FMP - Facility Student Accomodations",550,"Capital FMP - Administration","Facilities Services and Campus Development",50]
["Capital",9531,"2122-061 BIO LAB REPAIRS ","56500-1-3","FSCD FMP - Biology Lab Repairs",550,"Capital FMP - Administration","Facilities Services and Campus Development",50]
["Capital",9530,"1920-029 PR PARKING LOT","56600-1-20","FSCD RC - 1920-029 Powell River Parking Lot Resurfacing ",550,"Capital FMP - Administration","Facilities Services and Campus Development",50]
["Capital",9001,"FAC - EVERGREEN ","56650-1-2","FSCD CO - Evergreen ",550,"Capital FMP - Administration","Facilities Services and Campus Development",50]
["CE - Academic & Career Prep",2903,"CETP 2019-2020","22110-1-1","ACP ASE - CETP Grant",208,"Instruction"]
["CE - Academic & Career Prep",2904,"WEST MINSTRY GRANT 2019","22110-2-1","ACP ASE - WEST Grant",208,"Instruction"]
["CE - Cowichan PD&T",7400,"PD&T ADMIN - COWICHAN","34440-1-1","CC PD&T Administration",280,"PD&T Administration","Cowichan Campus",30]
["CE - Cowichan PD&T",7410,"PD&T OPEN ENROL - COWICHAN","34440-6-1","CC  PD&T- Open Enrolment",281,"PD&T Program Delivery","Cowichan Campus",30]
["CE - Cowichan PD&T",7412,"PD&T BUSINESS & MANAGEMENT ","34440-2-1","CC  PD&T- Business Management",281,"PD&T Program Delivery","Cowichan Campus",30]
["CE - Cowichan PD&T",7414,"PD&T TRADES - COWICHAN","34440-8-1","CC  PD&T- Trades & Applied Technology",281,"PD&T Program Delivery","Cowichan Campus",30]
["CE - Cowichan PD&T",7416,"PD&T HEALTH & HS COWCHAN","34440-4-1","CC  PD&T- Health & Human Services",281,"PD&T Program Delivery","Cowichan Campus",30]
["CE - Cowichan PD&T",7436,"MASTER GARDENER","34440-5-1","CC  PD&T- Master Gardener",281,"PD&T Program Delivery","Cowichan Campus",30]
["CE - Cowichan PD&T",7438,"FN HOUSING MANAGER CERT.","34440-3-1","CC  PD&T- FN Housing Manager Certificate",281,"PD&T Program Delivery","Cowichan Campus",30]
["CE - Cowichan PD&T",7450,"PD & T CUST SMALL CONTRACTS","34440-7-1","CC  PD&T- Small Contracts",281,"PD&T Program Delivery","Cowichan Campus",30]
["CE - Health & HS PD&T",4600,"CE ADMIN - HEALTH & HS ","32465-1-1","HHS PD&T - Administration",280,"PD&T Administration","Health and Human Services",30]
["CE - Health & HS PD&T",4603,"HEALTH AND HUMAN SERVICES ","32465-7-1","HHS PD&T - Health and Human Services",281,"PD&T Program Delivery","Health and Human Services",30]
["CE - Health & HS PD&T",4606,"MEDICAL OFFICE ASSISTANT","32465-10-1","HHS PD&T - Medical Office Assistant",281,"PD&T Program Delivery","Health and Human Services",30]
["CE - Health & HS PD&T",4607,"HOPSITAL UNIT COORDINATOR ","32465-8-1","HHS PD&T - Hospital Unit Coordinator",281,"PD&T Program Delivery","Health and Human Services",30]
["CE - Health & HS PD&T",4608,"ANIMAL CARE AIDE CERTIFIC","32465-3-1","HHS PD&T - Animal Care Aide Certificate",281,"PD&T Program Delivery","Health and Human Services",30]
["CE - Health & HS PD&T",4609,"ACTIVITY ASSISTANT","32465-2-1","HHS PD&T - Activity Assistant",281,"PD&T Program Delivery","Health and Human Services",30]
["CE - Health & HS PD&T",4610,"MED DEVICE REPROC TECHNCN","32465-9-1","HHS PD&T - Medical Device Processing Technician",281,"PD&T Program Delivery","Health and Human Services",30]
["CE - Health & HS PD&T",4613,"COMM.MENTAL HLTH WK CERT","32465-6-1","HHS PD&T - Community Mental Health Worker",281,"PD&T Program Delivery","Health and Human Services",30]
["CE - Health & HS PD&T",4615,"COMMUNITY HEALTH PROMO","32465-5-1","HHS PD&T - Community Health Promotion",281,"PD&T Program Delivery","Health and Human Services",30]
["CE - Health & HS PD&T",4625,"CE CREDIT COURSES - HHS","32465-4-1","HHS PD&T - Credit courses",281,"PD&T Program Delivery","Health and Human Services",30]
["CE - Management PD&T",1700,"CE ADMIN - MANAGEMENT","32670-1-1","FOM PD&T Administration",280,"PD&T Administration","Management",30]
["CE - Management PD&T",1703,"BUSINESS AND COMM LEADERS","32670-2-1","FOM PD&T Business Leaders",281,"PD&T Program Delivery","Management",30]
["CE - Management PD&T",1704,"MANAGEMENT SKILLS","32670-3-1","FOM PD&T Management Skills",281,"PD&T Program Delivery","Management",30]
["CE - Management PD&T",1705,"MANAGING CONFLIC-WORKPLA","32670-4-1","FOM PD&T Managing Conflicts",281,"PD&T Program Delivery","Management",30]
["CE - Management PD&T",1706,"PD&T CONTRCT TRNG-EXTERNAL","32670-5-1","FOM PD&T External",281,"PD&T Program Delivery","Management",30]
["CE - Powell River",7660,"CE - POWELL RIVER","34640-1-1","PRC PD&T - Administration",280,"PD&T Administration","Powell River Campus",30]
["CE - Powell River",7667,"ELDERCOLLEGE","34640-2-1","PRC PD&T - Eldercollege",281,"PD&T Program Delivery","Powell River Campus",30]
["CE - Powell River",7668,"CE ONLINE TRAINING ","34640-3-1","PRC PD&T - Online Training",281,"PD&T Program Delivery","Powell River Campus",30]
["CE - Registration",6952,"ADVENTURES IN MIND","33715-2-1","REG PD&T - Adventures in Mind",281,"PD&T Program Delivery","Registration Services",30]
["CE - Registration",6960,"CE ADMIN - REGISTRATION","33715-1-1","REG Registration - PD&T",280,"PD&T Administration","Registration Services",30]
["CE - Registration",6961,"GRANDKIDS UNIVERSITY","33715-4-1","REG PD&T - Grandkids University",281,"PD&T Program Delivery","Registration Services",30]
["CE - Registration",6963,"ELDERCOLLEGE","33715-3-1","REG PD&T - Eldercollege",281,"PD&T Program Delivery","Registration Services",30]
["CE - Registration",6964,"LOVE OF LEARNING","33715-5-1","REG PD&T - Love of Learning",281,"PD&T Program Delivery","Registration Services",30]
["CE - Science & Tech PD&T",2612,"FFTCP MODULES","32760-3-1","ST PD&T Fisheries Field Technician",281,"PD&T Program Delivery","Science and Technology",30]
["CE - Science & Tech PD&T",2613,"ENVIRONMENTAL MONITORING","32760-2-2","ST PD&T Environmental Monitoring",281,"PD&T Program Delivery","Science and Technology",30]
["CE - Science & Tech PD&T",2614,"FRESHWATER SAMPLING METHO","32760-8-1","ST PD&T Water Quality Sampling",281,"PD&T Program Delivery","Science and Technology",30]
["CE - Science & Tech PD&T",2617,"EROSION AND SEDIMENT CONT","32760-2-3","ST PD&T Erosion and Sediment Control",281,"PD&T Program Delivery","Science and Technology",30]
["CE - Science & Tech PD&T",2618,"NRSH-SHELLFISH COURSE","32760-7-1","ST PD&T Shellfish Course",281,"PD&T Program Delivery","Science and Technology",30]
["CE - Science & Tech PD&T",2619,"RIPARIAN AREA REGULATION","32760-5-1","ST PD&T Riparian Area Regulation",281,"PD&T Program Delivery","Science and Technology",30]
["CE - Science & Tech PD&T",2620,"EF RECERT","32760-3-2","ST PD&T Electrofishing Recertification",281,"PD&T Program Delivery","Science and Technology",30]
["CE - Science & Tech PD&T",2621,"ABORIGINAL ENV.TECH.CERT.","32760-2-1","ST PD&T Environmental Technician",281,"PD&T Program Delivery","Science and Technology",30]
["CE - Science & Tech PD&T",2622,"ESSENTIAL FISHERIES FIELD","32760-3-3","ST PD&T Essential Fisheries Field",281,"PD&T Program Delivery","Science and Technology",30]
["CE - Science & Tech PD&T",2625,"NRTW-WRITING COURSE","32760-4-1","ST PD&T Technical Writing",281,"PD&T Program Delivery","Science and Technology",30]
["CE - Science & Tech PD&T",2627,"SAFETY TRAINING (NRST)","32760-6-1","ST PD&T Safety Training",281,"PD&T Program Delivery","Science and Technology",30]
["CE - Science & Tech PD&T","2610, 2649","FISH EXTENSION-GENERAL EX, NREP CREDIT CARD CHARGES ","32760-1-1","ST PD&T Administration",280,"PD&T Administration","Science and Technology",30]
["CE - Social Sciences",1751,"CLEMENTE PROGRAM","32860-1-1","SS PD&T Clemente",281,"PD&T Program Delivery","Social Sciences",30]
["CE - Social Sciences",1755,"GIS CIDA HOLDING FUND","32860-3-1","SS PD&T GIS CIDA",281,"PD&T Program Delivery","Social Sciences",30]
["CE - Social Sciences",1756,"INSIDE OUT PRISON EDUC","32860-4-1","SS PD&T Inside Out Prison Education",281,"PD&T Program Delivery","Social Sciences",30]
["CE - Social Sciences",1758,"COUCH STONE SYMPSIUM 2016","32860-2-1","SS PD&T Couch Stone Symposium",281,"PD&T Program Delivery","Social Sciences",30]
["CE - Social Sciences",1759,"INSIDE OUT TRAINING","32860-5-1","SS PD&T Inside Out Training",281,"PD&T Program Delivery","Social Sciences",30]
["CE - Trades & Appl Tech PD&T",3809,"ESTHETICS","32980-1-1","TAT PD&T Esthetics",281,"PD&T Program Delivery","Trades and Applied Technology",30]
["CE - Trades & Appl Tech PD&T",3810,"ELECTRICIAN CE","32980-2-1","TAT PD&T Electrician",281,"PD&T Program Delivery","Trades and Applied Technology",30]
["Centre for Innovation & EL",6601,"CENTRE FOR IEL","14100-1-1","CIEL Centre for Innovation and Excellence in Learning",200,"Academic Administration","Centre for Innovation and Excellence in Learning",10]
["CFOVPA - ASA",8002,"VP ADMIN DIVISION-HOLDING","16030-1-1","CFOVPA ASA - Divisional Holding",101,"Institutional","CFOVPA - ASA (Administrative Support Activity)",10]
["CFOVPA - Institutional",8052,"COVID-19 EXPENDITURES","16030-2-1","CFOVPA ASA - COVID 19 Expenditures",101,"Institutional","CFOVPA - ASA (Administrative Support Activity)",10]
["CFOVPA - Office",8000,"VP Admin & Finance","16000-1-1","CFOVPA Office",100,"Administration","CFO and VP Administration - Office",10]
["CFOVPA - Office",8003,"LEGIN - VP Admin PD","16000-1-2","CFOVPA Professional Development",100,"Administration","CFO and VP Administration - Office",10]
["Contracts - Ab Ed A2E",7700,"A2E SCHOLARSHIP SUPPORT","23535-1-1","IEE EleV Scholarship Program - Administration",219,"Contract Activity","Indigenous Education and Engagement",20]
["Contracts - Ab Ed A2E",7701,"A2E STUDENT SCHOLARSHIPS","23535-4-1","IEE EleV - Scholarships",219,"Contract Activity","Indigenous Education and Engagement",20]
["Contracts - Ab Ed A2E",7702,"A2E CREATING PATHWAYS","23535-2-1","IEE EleV - Creating Pathways",219,"Contract Activity","Indigenous Education and Engagement",20]
["Contracts - Ab Ed A2E",7703,"A2E YOUTH DEVELOPMENT","23535-6-1","IEE EleV - Youth Development",219,"Contract Activity","Indigenous Education and Engagement",20]
["Contracts - Ab Ed A2E",7704,"A2E TRANSITION TO EMPLOY","23535-5-1","IEE EleV - Transition to employment",219,"Contract Activity","Indigenous Education and Engagement",20]
["Contracts - Ab Ed A2E",7705,"A2E MONITOR & EVALUATION","23535-3-1","IEE EleV - Monitor & Evaluation",219,"Contract Activity","Indigenous Education and Engagement",20]
["Contracts - Ab Ed A2E",7706,"A2E VIU CONTRIBUTION","23535-4-2","IEE EleV - VIU Contribution",219,"Contract Activity","Indigenous Education and Engagement",20]
["Contracts - Ab Ed A2E",7708,"MCF - COMMUNITY INTERNSHP","23540-1-1","IEE MCF - Community Internship",219,"Contract Activity","Indigenous Education and Engagement",20]
["Contracts - Ab Ed A2E",7709,"MCF-LEARNING FACILITATOR","23540-2-1","IEE MCF - Learning Facilitator",219,"Contract Activity","Indigenous Education and Engagement",20]
["Contracts - Aboriginal Education",6980,"INDIGENOUS MENTORSHIP","23510-1-1","IEE Indigenous Mentorship",219,"Contract Activity","Indigenous Education and Engagement",20]
["Contracts - Aboriginal Education",6981,"ASP-COMMUNITY-LEAD PROJ.","23515-1-1","IEE ASP - Community Lead Projects",219,"Contract Activity","Indigenous Education and Engagement",20]
["Contracts - Aboriginal Education",6982,"ASP-VIU-LEAD PROJECTS","23520-1-1","IEE ASP - VIU Lead Projects",219,"Contract Activity","Indigenous Education and Engagement",20]
["Contracts - Aboriginal Education",6984,"INDIGENOUSE ECOTOURI 20-21","23525-3-2","IEE Heiltsuk - Ecotourism 2020-2021",219,"Contract Activity","Indigenous Education and Engagement",20]
["Contracts - Aboriginal Education",6988,"IN ED. - CONTRACT ADMIN","23530-1-2","IEE Indigenous Education - Contract Admin",219,"Contract Activity","Indigenous Education and Engagement",20]
["Contracts - Aboriginal Education",6990,"AEST-SNUNEYMUXW ECE 2020","23525-4-2","IEE SFN - ECE 2020",219,"Contract Activity","Indigenous Education and Engagement",20]
["Contracts - Aboriginal Education",6991,"NANWAKOLAS COUNCIL-STTP","23525-5-1","IEE Nanwakolas Council - STTP",219,"Contract Activity","Indigenous Education and Engagement",20]
["Contracts - Aboriginal Education",6992,"INDIGENOUS ECOTOURI 18-20","23525-3-1","IEE Heiltsuk - Eco Tourism",219,"Contract Activity","Indigenous Education and Engagement",20]
["Contracts - Aboriginal Education",6997,"CFN 2020 STEWARDSHIP","23525-1-3","IEE CFN - 2020 Stewardship Training",219,"Contract Activity","Indigenous Education and Engagement",20]
["Contracts - Aboriginal Education",6999,"OAEE-MISC INDIG. CONTRACT","23530-1-1","IEE Misc - Indigenous Contract",219,"Contract Activity","Indigenous Education and Engagement",20]
["Contracts - Aboriginal Education",7710,"ASP-CULTURE EVENTS","23520-3-1","IEE ASP - Shq’athut Cultural Events",219,"Contract Activity","Indigenous Education and Engagement",20]
["Contracts - Aboriginal Education",7711,"ASP-AUBP-NANAIMO & COWICH","23520-2-1","IEE ASP - IUB Program",219,"Contract Activity","Indigenous Education and Engagement",20]
["Contracts - Aboriginal Education",7712,"ASP-LANGUAGE-COASTAL","23520-4-1","IEE ASP - Language HLQ",219,"Contract Activity","Indigenous Education and Engagement",20]
["Contracts - Aboriginal Education",7713,"ASP-LANGUAGE-KWAK","23520-4-2","IEE ASP - Language KWA",219,"Contract Activity","Indigenous Education and Engagement",20]
["Contracts - Arts & Humanities",2201,"ARTS-CONTRACTS-HOLDING","22201-1-1","AH Faculty of Arts and Humanities - Faculty Holding",221,"Department Initiatives","Arts and Humanities",20]
["Contracts - Arts & Humanities",2202,"CANADA COUNCIL READINGS","22201-3-3","AH Faculty of Arts and Humanities - Other - Canada Council Readings",221,"Department Initiatives","Arts and Humanities",20]
["Contracts - Arts & Humanities",2203,"CREATIVE WRITING - PORTAL","22220-1-1","AH Creative Writing and Journalism - Portal Magazine",221,"Department Initiatives","Arts and Humanities",20]
["Contracts - Arts & Humanities",2205,"MISC META LAB NEEDS","22201-3-1","AH Faculty of Arts and Humanities - Other - Meta Lab",221,"Department Initiatives","Arts and Humanities",20]
["Contracts - Arts & Humanities",2206,"MUSIC MASTER SERIES","22250-1-1","AH Music - Other - Master Series",221,"Department Initiatives","Arts and Humanities",20]
["Contracts - Arts & Humanities",2207,"A&H COLLOQUIUM SERIES","22201-3-2","AH Faculty of Arts and Humanities - Other - Colloquium Series",221,"Department Initiatives","Arts and Humanities",20]
["Contracts - Arts & Humanities",2209,"RALPH GUSTAFSON POETRY TR","22201-2-1","AH Faculty of Arts and Humanities - Gustafson - Poetry Trust",221,"Department Initiatives","Arts and Humanities",20]
["Contracts - Arts & Humanities",2210,"STUDENT ART SALES","22205-1-1","AH Art and Design - Graphic Design - Other - Student Art Sales",227,"Student Sales","Arts and Humanities",20]
["Contracts - Arts & Humanities",2211,"VISITING ARTIST SERIES","22205-1-2","AH Art and Design - Graphic Design - Other - Visiting Artists Series",208,"Instruction"]
["Contracts - Arts & Humanities",2212,"ARTG 480 FINAL EXHIBIT","22205-1-3","AH Art and Design - Graphic Design - Other - ARTG 480 FINAL exhibit",208,"Instruction"]
["Contracts - Arts & Humanities",2214,"CANADIAN LETTERS,IMAGES","22230-1-1","AH History - Other - Canadian Letters, Images",221,"Department Initiatives","Arts and Humanities",20]
["Contracts - Arts & Humanities",2217,"ENGL DUAL CREDIT SD68","22225-1-1","AH English - Other - Dual Credit",208,"Instruction"]
["Contracts - Arts & Humanities",2220,"GUSTAFSON CHAPBOOKS SERIE","22201-2-2","AH Faculty of Arts and Humanities - Gustafson - Chapbook Series",221,"Department Initiatives","Arts and Humanities",20]
["Contracts - Arts & Humanities",2232,"PROGRESSIONS","22215-1-3","AH Art and Design - Visual Art - Other - Progressions",208,"Instruction"]
["Contracts - Arts & Humanities",2256,"MRL BUSINESS ACTIVITY","22240-1-1","AH Media Studies - Other - MRL Business Activity",208,"Instruction"]
["Contracts - Arts & Humanities",2260,"GENERAL RESEARCH - WOOD","22201-4-1","AH General Research - Wood",302,"General Research","Arts and Humanities",20]
["Contracts - CFOVPA - ASA",8721,"INSTL NON-BUDG CONTRACTS","26035-1-1","CFOVPA ASA - Institutional Non-Budgeted Contracts",101,"Institutional","CFOVPA - ASA (Administrative Support Activity)",20]
["Contracts - CFOVPA - ASA",8799,"VIU INIT TRUST - CLEARING","26040-1-1","CFOVPA ASA - VIU Initiatives Trust (Clearing)",102,"External recoveries (Inst)","CFOVPA - ASA (Administrative Support Activity)",20]
["Contracts - Cowichan",7504,"FACILITIES RENTALS COWICH","24405-1-2","CC Facilities Rentals",200,"Academic Administration","Cowichan Campus",20]
["Contracts - Cowichan",7510,"DN SUMMER SESS-NET PROCEE","24445-3-1","CC Contract - Summer Session",219,"Contract Activity","Cowichan Campus",20]
["Contracts - Cowichan",7558,"LIL ' WAT EMP PRGM CARPNTRY","24445-5-2","CC Contract - Lil'wat Emp Program Carpentry",219,"Contract Activity","Cowichan Campus",20]
["Contracts - Cowichan",7563,"ECEC PROGRAM ","24445-1-1","CC Contracts - ECEC",219,"Contract Activity","Cowichan Campus",20]
["Contracts - Cowichan",7564,"WOMEN IN TRADES TRAINING ","24445-5-4","CC Contract - Women In Trades Training",219,"Contract Activity","Cowichan Campus",20]
["Contracts - Cowichan",7565,"COWICHAN - UCEP","24445-2-1","CC Contract - UCEP",219,"Contract Activity","Cowichan Campus",20]
["Contracts - Cowichan",7566,"IPTT","24445-5-5","CC Contract - Indigenous Peoples In Trades Training",219,"Contract Activity","Cowichan Campus",20]
["Contracts - Cowichan",7569,"BUILDING SERVICE WORKERS ","24445-5-6","CC Contract - Building Service Worker ",219,"Contract Activity","Cowichan Campus",20]
["Contracts - Cowichan",7570,"CAFETERIA - COWICHAN ","24405-1-1","CC Cafeteria",200,"Academic Administration","Cowichan Campus",20]
["Contracts - Cowichan",7571,"COWICHAN CAMPUS LOCKERS","24405-1-3","CC Lockers",200,"Academic Administration","Cowichan Campus",20]
["Contracts - Cowichan",7575,"SD#79 UP CONTRACTS","24445-4-2","CC Contract - SD 79 UP",219,"Contract Activity","Cowichan Campus",20]
["Contracts - Education",5105,"M.ED LEADERSHIP","22360-1-1","EDUC Masters of Education (Leadership)",208,"Instruction"]
["Contracts - Education",5109,"PRO-D/RESEARCH","22310-1-1","EDUC Education  - Conferences",220,"Conferences","Education",20]
["Contracts - Education",5111,"SPECIAL ED TEACHING SPECI","22355-1-1","EDUC Graduate Diploma - Inclusive Education",208,"Instruction"]
["Contracts - Education",5116,"SHAPE - PRO D","22320-1-1","EDUC Kinesiology - Development",211,"Program Development","Education",20]
["Contracts - Education",5117,"M.ED SPECIAL EDUCATION","22365-1-1","EDUC Masters of Education (Special Education)",208,"Instruction"]
["Contracts - Education",5120,"GRAD DIPL-ONLINE LEARNING","22350-1-1","EDUC Graduate Diploma - Online Teaching and Learning",208,"Instruction"]
["Contracts - Education",5121,"NPPE CONFERENCE","22320-1-2","EDUC Kinesiology - NPPE Conference",220,"Conferences","Education",20]
["Contracts - Education",5132,"GENERAL RESEARCH-DAVIDSON","22301-1-1","EDUC General Research - Davidson",302,"General Research","Education",20]
["Contracts - Health & HS",4703,"HHS STUDENT ENGAGEMENT FD","22401-5-2","HHS Faculty - Student Engagement Fund",201,"Faculty Administration","Health and Human Services",20]
["Contracts - Health & HS",4704,"HHS FACULTY SCH ACTIVITY","22401-2-1","HHS Faculty - Scholarly Activity",201,"Faculty Administration","Health and Human Services",20]
["Contracts - Health & HS",4705,"HHS INTERPROF DEV FUND","22401-3-1","HHS Faculty - Interprofessional Development Fund",201,"Faculty Administration","Health and Human Services",20]
["Contracts - Health & HS",4709,"ABORIGINAL FORUM","22401-5-1","HHS Faculty - Aboriginal Forum",201,"Faculty Administration","Health and Human Services",20]
["Contracts - Health & HS",4710,"HCA PARTNERSHIP PATHWAYS ","22420-4-1","HHS Health Care Assistant - Partnership Pathways",219,"Contract Activity","Health and Human Services",20]
["Contracts - Health & HS",4719,"BC DENTAL HYGIENIST ASSN","22415-1-1","HHS BC Dental Hygienist Association",201,"Faculty Administration","Health and Human Services",20]
["Contracts - Health & HS",4721,"ECEC-COWICHAN CERTIFICATE","22440-1-1","HHS Early Childhood Education and Care - Cowichan Cert.",219,"Contract Activity","Health and Human Services",20]
["Contracts - Health & HS",4722,"ECEC-INFANT TODDLER","22440-4-1","HHS Early Childhood Education and Care - Infant Toddler",219,"Contract Activity","Health and Human Services",20]
["Contracts - Health & HS",4723,"ECEC-AHS","22440-3-1","HHS Early Childhood Education and Care - Aboriginal Head Start",219,"Contract Activity","Health and Human Services",20]
["Contracts - Health & HS",4724,"ECEC-POWELL RIVER CERT.","22440-2-1","HHS Early Childhood Education and Care - Powell River Cert.",219,"Contract Activity","Health and Human Services",20]
["Contracts - Health & HS",4725,"ECEC - Nanaimo Cert. ","22440-7-1","HHS Early Childhood Education and Care - Nanaimo Cert.",219,"Contract Activity","Health and Human Services",20]
["Contracts - Health & HS",4726,"ECEC - Special Needs Cert.","22440-8-1","HHS Early Childhood Education and Care - Special Needs Cert.",219,"Contract Activity","Health and Human Services",20]
["Contracts - Health & HS",4772,"GENERAL RESEARCH - TAPLAY","22401-1-2","HHS Faculty - General Research - Taplay",302,"General Research","Health and Human Services",20]
["Contracts - Health & HS",4775,"STYLES-PATHWAYS PROJECT","22401-4-1","HHS Faculty - Research contracts - Styles - Pathways",310,"Research Contract","Health and Human Services",20]
["Contracts - Health & HS",4776,"GENERAL RESEARCH-PRICE","22401-1-1","HHS Faculty - General Research - Price",302,"General Research","Health and Human Services",20]
["Contracts - Health & HS",4780,"RTT - KAT ","22406-1-1","HHS Roots to Thrive - KAT",219,"Contract Activity","Health and Human Services",20]
["Contracts - Health & HS",5414,"ECEC - ECPN","22440-6-1","HHS Early Childhood Education and Care- ECPN",219,"Contract Activity","Health and Human Services",20]
["Contracts - Health & HS",5420,"BACHELOR OF SOCIAL WORK","22430-1-1","HHS Bachelor of Social Work",208,"Instruction"]
["Contracts - Health & HS",5494,"CTR-OUTREACH/COMM.CARE","22435-1-1","HHS Child and Youth Care - CTR - Outreach/Comm. Care",201,"Faculty Administration","Health and Human Services",20]
["Contracts - Human Resources",8251,"VIUFA PD COMMITTEE","21111-1-4","HR Collective Agreement - VIUFA Committee Charges (RECOVERY)",102,"External recoveries (Inst)","Human Resources",20]
["Contracts - Human Resources",8252,"VIUFA CHARGES","21111-1-3","HR Collective Agreement - VIUFA Charges (RECOVERY)",102,"External recoveries (Inst)","Human Resources",20]
["Contracts - Human Resources",8253,"BCGEU CHARGES","21111-1-1","HR Collective Agreement - BCGEU Charges (RECOVERY)",102,"External recoveries (Inst)","Human Resources",20]
["Contracts - Human Resources",8254,"CUPE CHARGES","21111-1-2","HR Collective Agreement - CUPE Charges (RECOVERY)",102,"External recoveries (Inst)","Human Resources",20]
["Contracts - Human Resources",8258,"POSITIVE SPACE ALLIANCE","21151-1-1","HR Employee Wellbeing - Positive Space Alliance (RECOVERY)",102,"External recoveries (Inst)","Human Resources",20]
["Contracts - Library",6850,"LIBRARY FIELD SCHOOL","23610-1-1","LIB Library - Field School",223,"Field Schools","Library",20]
["Contracts - Library",6851,"DIGITAL BC SECRETATIAT","23610-1-2","LIB Library -  Digital BC Secretatiat",219,"Contract Activity","Library",20]
["Contracts - Library",6860,"GEN RESEARCH - MCLEOD","23610-2-1","LIB Faculty - General Research - McLeod","302","General Research","Library","20"]
["Contracts - Library",6861,"GEN RESEARCH - MCFARLAND","23610-2-2","LIB Faculty - General Research - McFarland","302","General Research","Library","20"]
["Contracts - Management",1602,"MBA-RELATED FACULTY DEV'T","22660-4-1","FOM MBA Faculty Development",201,"Faculty Administration","Management",20]
["Contracts - Management",1612,"FOM INITIATIVES","22601-2-1","FOM MBA Funded Initatives",201,"Faculty Administration","Management",20]
["Contracts - Management",1613,"GD HOSPITALITY MANAGEMENT","22650-1-1","FOM Graduate Diploma in Hospitality",208,"Instruction"]
["Contracts - Management",1615,"MA SUSTAINABLE LEISURE","22655-1-1","FOM Master of Arts in Sustainable Leisure Management",208,"Instruction"]
["Contracts - Management",1616,"GDPM PROGRAM","22652-1-1","FOM Graduate Diploma in Project Management",208,"Instruction"]
["Contracts - Management",1617,"GCIB PROGRAM","22645-1-1","FOM Graduate Certificate in Business Program",208,"Instruction"]
["Contracts - Management",1618,"GCIT PROGRAM","22651-1-1","FOM Graduate Diploma in International Trade",208,"Instruction"]
["Contracts - Management",1619,"ACCREDITATION-BUSINESS PR","22601-4-1","FOM Accreditation - Business Programs",201,"Faculty Administration","Management",20]
["Contracts - Management",1620,"MBA PRGM INSTRUCTION","22660-1-1","FOM MBA Instruction",208,"Instruction"]
["Contracts - Management",1621,"MBA COURSE REDESIGN","22660-3-1","FOM MBA Course Redesign",201,"Faculty Administration","Management",20]
["Contracts - Management",1622,"MBA INTERNSHIP PROGRAM","22660-2-1","FOM MBA Internship",208,"Instruction"]
["Contracts - Management",1627,"GENERAL RESEARCH - VAUGEOIS","22601-1-13","FOM General Research - Vaugeois",302,"General Research","Management",20]
["Contracts - Management",1634,"GENERAL RESEARCH - BURNLEY,C","22601-1-2","FOM General Research - Burnley, Chris",302,"General Research","Management",20]
["Contracts - Management",1637,"GENERAL RESEARCH - DELAMERE","22601-1-4","FOM General Research - Delamere",302,"General Research","Management",20]
["Contracts - Management",1639,"GENERAL RESEARCH -  DE LA BARRE","22601-1-3","FOM General Research - De La Barre",302,"General Research","Management",20]
["Contracts - Management",1641,"GENERAL RESEARCH - STONE","22601-1-12","FOM General Research - Stone",302,"General Research","Management",20]
["Contracts - Management",1642,"GENERAL RESEARCH - MOGHIMEHFAR","22601-1-8","FOM General Research - Moghimehfar",302,"General Research","Management",20]
["Contracts - Management",1643,"GENERAL RESEARCH - BROUDER","22601-1-1","FOM General Research - Brouder",302,"General Research","Management",20]
["Contracts - Management",1645,"GENERAL RESEARCH - WEIGHILL","22601-1-14","FOM General Research - Weighill",302,"General Research","Management",20]
["Contracts - Management",1647,"GENERAL RESEARCH - FERGUSON","22601-1-5","FOM General Research - Ferguson",302,"General Research","Management",20]
["Contracts - Management",1648,"GENERAL RESEARCH - SCHROEDER","22601-1-11","FOM General Research - Schroeder",302,"General Research","Management",20]
["Contracts - Management",1649,"GENERAL RESEARCH - PREDYK","22601-1-10","FOM General Research - Predyk",302,"General Research","Management",20]
["Contracts - Management",1651,"GENERAL RESEARCH - JOHNSON","22601-1-6","FOM General Research - Johnson",302,"General Research","Management",20]
["Contracts - Management",1652,"GENERAL RESEARCH - LATULIPPE","22601-1-7","FOM General Research - Latulippe",302,"General Research","Management",20]
["Contracts - Management",1654,"COMPETITIVE FUND","22601-3-1","FOM Scholarships - Competitive Fund",201,"Faculty Administration","Management",20]
["Contracts - Management",1662,"PDD BUSINESS STUDIES CO-O","22641-1-1","FOM Post Degree Diploma in Business Studies",208,"Instruction"]
["Contracts - Management",1670,"WINE PROGRAM","22635-1-1","FOM Hospitality Management - Wine Certificate",208,"Instruction"]
["Contracts - Management",1672,"EVENT MANAGEMENT","22630-1-1","FOM Event Management",208,"Instruction"]
["Contracts - Management",1632,"GENERAL RESEARCH - MCKEOWEN","22601-1-15","FOM General Research - McKeown","302","General Research","Management","20"]
["Contracts - Powell River",7802,"STUDENT SERVICES PROCEEDS","24608-1-1","PRC Student Services Proceeds",217,"Student Support and Services","Powell River Campus",20]
["Contracts - Powell River",7805,"ABORIGINAL SERVICE PLAN ","24645-1-1","PRC Contracts - Aboriginal Service Plan",219,"Contract Activity","Powell River Campus",20]
["Contracts - Powell River",7810,"CONTRACTS HOLDING ACCOUNT","24645-5-1","PRC Contracts - Holding Account","219","Contract Activity","Powell River Campus","20"]
["Contracts - Powell River",7811,"HEO - PBLMT POWELL RIVER","24645-3-1","PRC Contracts - HEO - Ministry of Social Development",219,"Contract Activity","Powell River Campus",20]
["Contracts - Powell River",7812,"PR WEST","24645-4-1","PRC Contracts - Work Essential Skills Training - AVED",219,"Contract Activity","Powell River Campus",20]
["Contracts - Science & Tech",2402,"VIU MUSEUM FUNDRAISING","22701-3-1","ST Fundraising - VIU Museum",201,"Faculty Administration","Science and Technology",20]
["Contracts - Science & Tech",2406,"AERL APPLIED RESEARCH","22701-6-2","ST AERL Applied Research",216,"Research Administration","Science and Technology",20]
["Contracts - Science & Tech",2409,"FORESTRY FIELD TRIPS","22740-1-1","ST Forestry Field Trips - Domestic",223,"Field Schools","Science and Technology",20]
["Contracts - Science & Tech",2451,"MATH CONTEST","22745-1-1","ST Math Contest",208,"Instruction"]
["Contracts - Science & Tech",2452,"AERL OPERATING (KROGH)","22701-6-1","ST AERL (Krogh)",216,"Research Administration","Science and Technology",20]
["Contracts - Science & Tech",2453,"ENV CAN - KROGH","22701-5-2","ST Environment Canada Contract - Krogh",310,"Research Contract","Science and Technology",20]
["Contracts - Science & Tech",2455,"PROMOTING EARTH SCIENCE","22725-2-1","ST Earth Science / Geology - Promotion",201,"Faculty Administration","Science and Technology",20]
["Contracts - Science & Tech",2458,"GENERAL RESEARCH-KROGH","22701-1-11","ST General Research - Krogh",302,"General Research","Science and Technology",20]
["Contracts - Science & Tech",2459,"GENERAL RESEARCH-GILL","22701-1-7","ST General Research - Gill",302,"General Research","Science and Technology",20]
["Contracts - Science & Tech",2461,"GENERAL RESEARCH-SUN","22701-1-19","ST General Research - Sun","302","General Research","Science and Technology","20"]
["Contracts - Science & Tech",2463,"GENERAL RESEARCH-BAKER","22701-1-1","ST General Research - Baker",302,"General Research","Science and Technology",20]
["Contracts - Science & Tech",2464,"GENERAL RESEARCH-RUSSELL","22701-1-17","ST General Research - Russell",302,"General Research","Science and Technology",20]
["Contracts - Science & Tech",2465,"GENERAL RESEARCH-MCEWEN","22701-1-18","ST General Research - McEwen",302,"General Research","Science and Technology",20]
["Contracts - Science & Tech",2466,"GENERAL RESEARCH-STOKES","22701-1-16","ST General Research - Stokes",302,"General Research","Science and Technology",20]
["Contracts - Science & Tech",2470,"GENERAL RESEARCH-LESEMANN","22701-1-12","ST General Research - Lesemann",302,"General Research","Science and Technology",20]
["Contracts - Science & Tech",2471,"GENERAL RESEARCH - DUNCAN ","22701-1-20","ST General Research - Duncan",302,"General Research","Science and Technology",20]
["Contracts - Science & Tech",2483,"VIU BIRD BANDING STATION","22710-2-1","ST VIU Bird Banding Station",216,"Research Administration","Science and Technology",20]
["Contracts - Science & Tech",2500,"PROCEEDS - SCIENCE/TECH","22701-2-1","ST Faculty Proceeds",201,"Faculty Administration","Science and Technology",20]
["Contracts - Science & Tech",2510,"PRGM EQUIPMENT DEPOSITS","22740-2-2","ST Forestry Equipment Deposits",201,"Faculty Administration","Science and Technology",20]
["Contracts - Science & Tech",2511,"RMOT STUDENT FUND","22755-1-1","ST RMOT Student Fund",201,"Faculty Administration","Science and Technology",20]
["Contracts - Science & Tech",2515,"GENERAL RESEARCH-PENNER","22701-1-15","ST General Research - Penner",302,"General Research","Science and Technology",20]
["Contracts - Science & Tech",2519,"FORESTRY WOODLOT-A117","22740-3-1","ST Forestry Woodlot - A117",219,"Contract Activity","Science and Technology",20]
["Contracts - Science & Tech",2520,"SCIENCE/TECH LECTURE SER.","22701-4-1","ST Faculty Lecture Series",201,"Faculty Administration","Science and Technology",20]
["Contracts - Science & Tech",2530,"MENREP PROGRAM","22755-2-1","ST MENREP Program",219,"Contract Activity","Science and Technology",20]
["Contracts - Science & Tech",2533,"CENTRE FOR COASTAL HEALTH","22701-5-1","ST Centre for Coastal Health",310,"Research Contract","Science and Technology",20]
["Contracts - Science & Tech",2535,"HERNANDEZ STUDENT RESEARC","22701-1-9","ST General Research - Hernandez",302,"General Research","Science and Technology",20]
["Contracts - Science & Tech",2562,"GEOL 390 SPEC.FIELD STUDI","22725-1-2","ST Geology 390 Field Studies",223,"Field Schools","Science and Technology",20]
["Contracts - Science & Tech",2563,"GEOL 206 FIELD SCHOOL","22725-1-1","ST Geology 206 Field School",223,"Field Schools","Science and Technology",20]
["Contracts - Science & Tech",2566,"ENGINEERING RESEARCH","22730-2-1","ST Engineering Research","216","Research Administration","Science and Technology","20"]
["Contracts - Science & Tech",2574,"GENERAL RESEARCH-DUFF","22701-1-4","ST General Research - Duff",302,"General Research","Science and Technology",20]
["Contracts - Science & Tech",2579,"AWARENESS CLIMATE CHANGE","22701-3-2","ST Fundraising - Awareness Climate Change",201,"Faculty Administration","Science and Technology",20]
["Contracts - Social Sciences",1900,"VIU MODEL UN","22801-4-1","SS VIU Model UN",201,"Faculty Administration","Social Sciences",20]
["Contracts - Social Sciences",1903,"WORLDBRIDGER FILM SERIES","22801-4-3","SS Worldbridger Film Series",201,"Faculty Administration","Social Sciences",20]
["Contracts - Social Sciences",1904,"RESILIENCE LAB (RSAC)","22801-3-3","SS Resilience Research Lab (RSAC)",216,"Research Administration","Social Sciences",20]
["Contracts - Social Sciences",1912,"RESILIENCE RESEARCH LAB","22801-3-2","SS Resilience Research Lab",216,"Research Administration","Social Sciences",20]
["Contracts - Social Sciences",1919,"THE COMPASS ROSE","22801-4-2","SS The Compass Rose",201,"Faculty Administration","Social Sciences",20]
["Contracts - Social Sciences",1920,"MALASPINA RESEARCH CENTRE","22801-3-1","SS Malaspina Research Centre",216,"Research Administration","Social Sciences",20]
["Contracts - Social Sciences",1921,"MALASPINA FELLOWS PROGRAM","22801-4-4","SS Malaspina Fellows Program",201,"Faculty Administration","Social Sciences",20]
["Contracts - Social Sciences",1922,"GENERAL RESEARCH-MARCHANT","22801-1-8","SS General Research - Marchant",302,"General Research","Social Sciences",20]
["Contracts - Social Sciences",1923,"GENERL RESEARCH-PATENAUDE","22801-1-11","SS General Research - Patenaude",302,"General Research","Social Sciences",20]
["Contracts - Social Sciences",1924,"GENERAL RESEARCH-MCCUNN","22801-1-9","SS General Research - McCunn",302,"General Research","Social Sciences",20]
["Contracts - Social Sciences",1925,"GENERAL RESEARCH-COOPER","22801-1-2","SS General Research - Cooper",302,"General Research","Social Sciences",20]
["Contracts - Social Sciences",1927,"GENERL RESEARCH-LIVINGSTO","22801-1-6","SS General Research - Livingstone",302,"General Research","Social Sciences",20]
["Contracts - Social Sciences",1928,"GENERAL RESEARCH-BURNLEY","22801-1-1","SS General Research - Burnley, Caroline",302,"General Research","Social Sciences",20]
["Contracts - Social Sciences",1929,"GENERAL RESEARCH-HINBEST","22801-1-4","SS General Research - Hinbest",302,"General Research","Social Sciences",20]
["Contracts - Social Sciences",1930,"GENERAL RESEARCH-MACGUIRE","22801-1-7","SS General Research - MacGuire",302,"General Research","Social Sciences",20]
["Contracts - Social Sciences",1931,"GENERL RESEARCH-GILCHRIST","22801-1-3","SS General Research - Gilchrist",302,"General Research","Social Sciences",20]
["Contracts - Social Sciences",1932,"GENERAL RESEARCH-SHAW","22801-2-1","SS General Research - Shaw",302,"General Research","Social Sciences",20]
["Contracts - Social Sciences",1933,"GENERAL RESEARCH-NICOL","22801-1-10","SS General Research - Nicol",302,"General Research","Social Sciences",20]
["Contracts - Social Sciences",1934,"GENERAL RESEARCH-LIM","22801-1-5","SS General Research - Lim",302,"General Research","Social Sciences",20]
["Contracts - Social Sciences",1970,"MASTERS-COMM.PLANNING","22850-1-1","SS Master of Community Planning ",208,"Instruction"]
["Contracts - Social Sciences",1971,"LANDS MGMT CERT PROGRAM","22849-1-1","SS Lands Management Certificate",208,"Instruction"]
["Contracts - Social Sciences",1974,"ADVANCED DIPLOMA GIS","22848-1-1","SS Advanced Diploma in GIS Applications",208,"Instruction"]
["Contracts - Social Sciences",1975,"MASTERS-GIS APPLICATIONS","22855-1-1","SS Master of Geographic Information Systems Applications",208,"Instruction"]
["Contracts - Social Sciences",1976,"NRCAN","22815-1-1","SS Geography - Online Course- National Resource Canada",219,"Contract Activity","Social Sciences",20]
["Contracts - Student Affairs",6502,"PEER TO PEER CONNECTIONS","25516-1-1","SA Peer to Peer Connections",217,"Student Support and Services","Student Affairs",20]
["Contracts - Student Affairs",6505,"STUDENT SUMMER EMPL-FEDER","15558-1-2","SA On Campus employment - Student Summer employment",217,"Student Support and Services","Student Affairs",10]
["Contracts - Student Affairs",6510,"PACWEST-CCAA HOSTING ","25581-1-1","SA PacificWest CCAA hosting",217,"Student Support and Services","Student Affairs",20]
["Contracts - Student Affairs",6515,"MENTAL HEALTH  - CMHA ","25520-1-1","SA Mental Health  - Canadian Mental Health Association",217,"Student Support and Services","Student Affairs",20]
["Contracts - Student Affairs",6516,"APSD/MINISTRY ","25518-1-1","SA APSD / Ministry funding",217,"Student Support and Services","Student Affairs",20]
["Contracts - Student Affairs",6517,"DISABILITY SERV. PROCEEDS","25518-1-3","SA Disability Services Proceeds",217,"Student Support and Services","Student Affairs",20]
["Contracts - Student Affairs",6530,"VAN ISLE LEADERSIHP CONF","25555-1-1","SA Vancouver Island Leadership Conference",217,"Student Support and Services","Student Affairs",20]
["Contracts - Student Affairs",9600,"ACCESS TRUST FUND","25518-1-2","SA Disability Access Trust Funds",217,"Student Support and Services","Student Affairs",20]
["Contracts - Student Affairs",9609,"ABORIGINAL EMERG.ASSIST","25519-1-2","SA Financial Aid - Aboriginal Emergency Assistance",217,"Student Support and Services","Student Affairs",20]
["Contracts - Student Affairs",9610,"ABESAP ","25519-1-1","SA Financial Aid - ABESAP",217,"Student Support and Services","Student Affairs",20]
["Contracts - Student Affairs",9611,"MSU SPECIAL BURSARIES","25519-1-5","SA Financial Aid - MSU Special Bursaries",217,"Student Support and Services","Student Affairs",20]
["Contracts - Student Affairs",9613,"GENERAL SCH/BURSARY FUND ","25519-1-4","SA Financial Aid - General Scholarships/Bursaries",217,"Student Support and Services","Student Affairs",20]
["Contracts - Student Affairs",9616,"FOUNDATION FUNDS","25519-1-3","SA Financial Aid - Foundation Funds",217,"Student Support and Services","Student Affairs",20]
["Contracts - Trades & Appl Tech",3900,"HEAVY EQUIP.OP.A075","22935-1-1","TAT Heavy Equipment Operator",208,"Instruction"]
["Contracts - Trades & Appl Tech",3903,"FORKLIFT TRAINING","22935-4-1","TAT Forklift Training",208,"Instruction"]
["Contracts - Trades & Appl Tech",3904,"HEAVY METAL ROCKS","22935-5-1","TAT Heavy Metal Rocks",208,"Instruction"]
["Contracts - Trades & Appl Tech",3909,"HEO SIMULATOR PROGRAM","22935-2-1","TAT HEO Simulator Program",208,"Instruction"]
["Contracts - Trades & Appl Tech",3911,"ABORIGINAL CONSTRUCTION","22915-2-1","TAT Carpentry - Aboriginal Construction - Pt Alberni, Nuuchahnulth",219,"Contract Activity","Trades and Applied Technology",20]
["Contracts - Trades & Appl Tech",3912,"POWER ENGINEERING","22960-1-1","TAT Power Engineering - Contract",208,"Instruction"]
["Contracts - Trades & Appl Tech",3914,"CULINARY DIPLOMA","22920-1-1","TAT Culinary Arts Contract - Diploma",219,"Contract Activity","Trades and Applied Technology",20]
["Contracts - Trades & Appl Tech",3915,"BAKING DIPLOMA","22965-2-1","TAT Baking Diploma",208,"Instruction"]
["Contracts - Trades & Appl Tech",3916,"SCH.DIST#79 PROGRAMS","22950-1-1","TAT Information Technology and Applied Systems - Contract - SD #79",219,"Contract Activity","Trades and Applied Technology",20]
["Contracts - Trades & Appl Tech",3917,"SCH.DIST#46 PARTNERSHIP","22915-1-1","TAT Carpentry - Sunshine Coast SD #46 Partnership",219,"Contract Activity","Trades and Applied Technology",20]
["Contracts - Trades & Appl Tech",3926,"FOREST CENTRE","22935-2-2","TAT HEO Simulator Program - Forest Centre",208,"Instruction"]
["Contracts - Trades & Appl Tech",3930,"TAMAGAWA INTERNATIONAL FD","22945-1-1","TAT Horticulture Contract - Tamagawa",219,"Contract Activity","Trades and Applied Technology",20]
["Contracts - Trades & Appl Tech",3938,"WELDER FITTER COWICHAN","22975-2-1","TAT Welding - Cowichan Welder-Fitter",208,"Instruction"]
["Contracts - Trades & Appl Tech",3939,"WELDER-FITTER NAN 2015/16","22975-1-1","TAT Welding - Nanaimo Welder-Fitter",208,"Instruction"]
["Contracts - Trades & Appl Tech",3944,"CONTRACT DEVELOPMENT","22901-1-1","TAT Faculty Contracts - Development",219,"Contract Activity","Trades and Applied Technology",20]
["Contracts - Trades & Appl Tech",3948,"SKILLS CANADA COMPETITION","22901-2-1","TAT Skills Canada Competition",224,"Field Experience / Practicum","Trades and Applied Technology",20]
["Contracts - Trades & Appl Tech",3949,"BAKING DONATIONS","22965-1-1","TAT Baking Donations",208,"Instruction"]
["Contracts - Trades & Appl Tech",3960,"OA CALC.RENTAL/DEPOSIT","22905-1-1","TAT Office Administration - Rentals & Deposits",208,"Instruction"]
["Contracts - Trades & Appl Tech",3980,"OA COST RECOVERY-COW","22905-2-1","TAT Office Administration - Cowichan Contract",219,"Contract Activity","Trades and Applied Technology",20]
["Contracts - Trades & Appl Tech",3983,"HAIRDRESSING SD#63-COW","22930-2-1","TAT Hairdressing Contract - Saanich SD #63 (Cowichan)",219,"Contract Activity","Trades and Applied Technology",20]
["Contracts - Trades & Appl Tech",3985,"HAIRDRESSING SD#79-COW","22930-1-1","TAT Hairdressing Contract - Cowichan SD #79",219,"Contract Activity","Trades and Applied Technology",20]
["Contracts - Trades & Appl Tech",3990,"HAIRDRESSING-POWELL RIVER","22930-3-1","TAT Hairdressing Contract - Powell River",219,"Contract Activity","Trades and Applied Technology",20]
["Contracts - Trades & Appl Tech",3991,"HAIR HARMONIZATION","22901-1-3","TAT Faculty Contracts- Hair Harmonization - Trades Training BC",219,"Contract Activity","Trades and Applied Technology",20]
["Contracts-PVPA Research Contr.",1101,"MT.ARROWSMITH RES. INST","25150-1-1","SRCA MABRRI - Administration",300,"Research Contract Administration","Scholarship, Research and Creative Activity",20]
["Contracts-PVPA Research Contr.",1110,"CHCCRL - FLOYD","25001-1-4","SRCA CHCCRL - Floyd",300,"Research Contract Administration","Scholarship, Research and Creative Activity",20]
["Contracts-PVPA Research Contr.",1112,"AERL HARM CHECK PHASE I","25001-1-2","SRCA AERL Harm Check Phase 1",300,"Research Contract Administration","Scholarship, Research and Creative Activity",20]
["Contracts-PVPA Research Contr.",1118,"GRF - SSHRC","25100-8-1","SRCA GRF - NSERC",309,"Research Grant","Scholarship, Research and Creative Activity",20]
["Contracts-PVPA Research Contr.",1119,"RESEARCH SUPPORT FUND","25100-1-1","SRCA Research Support Fund",309,"Research Grant","Scholarship, Research and Creative Activity",20]
["Contracts-PVPA Research Contr.",1120,"GRF - NSERC","25100-12-1","SRCA SSHRC GRF",309,"Research Grant","Scholarship, Research and Creative Activity",20]
["Contracts-PVPA Research Contr.",1133,"CTR FOR SOCIAL ENTERPRISE","25001-1-3","SRCA Centre for Social Enterprise",300,"Research Contract Administration","Scholarship, Research and Creative Activity",20]
["Contracts-PVPA Research Contr.",1134,"CREATE-STUDENT POSTER EVT","25001-1-7","SRCA CREATE Student Poster",300,"Research Contract Administration","Scholarship, Research and Creative Activity",20]
["Contracts-PVPA Research Contr.",1135,"COMMUNITY INITIATIVES","25001-1-5","SRCA Community Initiatives",300,"Research Contract Administration","Scholarship, Research and Creative Activity",20]
["Contracts-PVPA Research Contr.",1136,"NEWCASTLE FN INITIATIVE","25001-1-8","SRCA Newcastle FN Initiatives",300,"Research Contract Administration","Scholarship, Research and Creative Activity",20]
["Contracts-PVPA Research Contr.",1137,"REGIONAL INITIATIVES FUND","25100-9-1","SRCA RIF Ministry - AVED",309,"Research Grant","Scholarship, Research and Creative Activity",20]
["Contracts-PVPA Research Contr.",1138,"RIF - REFBC","25100-10-3","SRCA RIF - REFBC",309,"Research Grant","Scholarship, Research and Creative Activity",20]
["Contracts-PVPA Research Contr.",1139,"AVPSCE INITIATIVES","25001-1-1","SRCA Initiatives",300,"Research Contract Administration","Scholarship, Research and Creative Activity",20]
["Contracts-PVPA Research Contr.",1140,"FACULTY REASSIGNMENTS","25020-1-1","SRCA Internal - Faculty Reassignments",300,"Research Contract Administration","Scholarship, Research and Creative Activity",20]
["Contracts-PVPA Research Contr.",1141,"RIF - AEST 2019","25100-9-10","SRCA RIF - Ministry - AEST",309,"Research Grant","Scholarship, Research and Creative Activity",20]
["Contracts-PVPA Research Contr.",1144,"SRCA-STUDENT MISC FUNDING","25001-1-11","SRCA - Student - Misc External Funding",300,"Research Contract Administration","Scholarship, Research and Creative Activity",20]
["Contracts-PVPA Research Contr.",1145,"VIURAC RF AFFLECK 101042","25025-1-55","SRCA VIURAC RF - Affleck 101042",315,"VIURAC","Scholarship, Research and Creative Activity",20]
["Contracts-PVPA Research Contr.",1146,"VIURAC RF MOGH 100262","25025-1-44","SRCA VIURAC RF - MOGH 100262",315,"VIURAC","Scholarship, Research and Creative Activity",20]
["Contracts-PVPA Research Contr.",1147,"VIURAC M-HEALTH DAMES ","25025-8-1","SRCA VIURAC M-HEALTH- Dames 100989",315,"VIURAC","Scholarship, Research and Creative Activity",20]
["Contracts-PVPA Research Contr.",1149,"VIURAC RF DOUGHTY 101013","25025-1-54","SRCA VIURAC RF - Doughty 101013",315,"VIURAC","Scholarship, Research and Creative Activity",20]
["Contracts-PVPA Research Contr.",1151,"VIURAC SIG18 ESLIGER 101017/18","25025-5-13","SRCA VIURAC SIG18 - Esliger 101017/18",315,"VIURAC","Scholarship, Research and Creative Activity",20]
["Contracts-PVPA Research Contr.",1152,"VIURAC S-GRF MOGHIMEHFAR","25025-3-8","SRCA VIURAC S-GRF - Warsh 101178",315,"VIURAC","Scholarship, Research and Creative Activity",20]
["Contracts-PVPA Research Contr.",1153,"VRC SIG18-SGRF GOVER-BASAR ","25025-6-5","SRCA VIURAC-MULTIPLE-SIG18-SGRF-GOVER-BASAR 100590-91",315,"VIURAC","Scholarship, Research and Creative Activity",20]
["Contracts-PVPA Research Contr.",1154,"VIURAC S-GRF LEWIS 100556","25025-3-4","SRCA VIURAC S-GRF-Lewis 100556",315,"VIURAC","Scholarship, Research and Creative Activity",20]
["Contracts-PVPA Research Contr.",1157,"VIURAC SIG-18 TAPLAY 100633","25025-5-12","SRCA VIURAC SIG18 - TAPLAY 100633",315,"VIURAC","Scholarship, Research and Creative Activity",20]
["Contracts-PVPA Research Contr.",1158,"VIURAC RF MCEWEN 100581","25025-1-48","SRCA VIURAC RF - MCEWEN 100581",315,"VIURAC","Scholarship, Research and Creative Activity",20]
["Contracts-PVPA Research Contr.",1159,"VIURAC S-GRF GARDINER 101041","25025-3-5","SRCA VIURAC S-GRF - Gardiner 101041",315,"VIURAC","Scholarship, Research and Creative Activity",20]
["Contracts-PVPA Research Contr.",1160,"VIURAC RF GORRELL 100579","25025-1-49","SRCA VIURAC RF - GORRELL 100579",315,"VIURAC","Scholarship, Research and Creative Activity",20]
["Contracts-PVPA Research Contr.",1161,"VIURAC RF HERNANDEZ ","25025-1-45","SRCA VIURAC RF - HERNANDEZ 100580",315,"VIURAC","Scholarship, Research and Creative Activity",20]
["Contracts-PVPA Research Contr.",1162,"VIURAC SIG-18 WARSH ","25025-5-11","SRCA VIURAC SIG18 - WARSH 100592",315,"VIURAC","Scholarship, Research and Creative Activity",20]
["Contracts-PVPA Research Contr.",1163,"VIURAC AEST RIEDEL 100650","25025-7-1","SRCA VIURAC-AEST- Riedel 100650",315,"VIURAC","Scholarship, Research and Creative Activity",20]
["Contracts-PVPA Research Contr.",1164,"VIURAC AEST MAYES 100652","25025-7-6","SRCA VIURAC-AEST- Mayes 100652",315,"VIURAC","Scholarship, Research and Creative Activity",20]
["Contracts-PVPA Research Contr.",1165,"VIURAC AEST MORDEN 653","25025-7-2","SRCA VIURAC-AEST Morden 653",315,"VIURAC","Scholarship, Research and Creative Activity",20]
["Contracts-PVPA Research Contr.",1166,"VIURAC AEST WEIGHILL 658","25025-7-4","SRCA VIURAC-AEST- Weighill 658",315,"VIURAC","Scholarship, Research and Creative Activity",20]
["Contracts-PVPA Research Contr.",1167,"VIURAC RF LOUDON 100997","25025-1-57","SRCA VIURAC RF - LOUDON 100997",315,"VIURAC","Scholarship, Research and Creative Activity",20]
["Contracts-PVPA Research Contr.",1169,"VIURAC AEST ANDERSON 637","25025-7-7","SRCA VIURAC-AEST- Anderson 637",315,"VIURAC","Scholarship, Research and Creative Activity",20]
["Contracts-PVPA Research Contr.",1170,"VIURAC S-GRF MOGHIMEHFAR","25025-3-7","SRCA VIURAC S-GRF - Moghimehfar 101040",315,"VIURAC","Scholarship, Research and Creative Activity",20]
["Contracts-PVPA Research Contr.",1171,"VIURAC AEST LAIT 100668","25025-7-5","SRCA VIURAC-AEST- Lait 100668",315,"VIURAC","Scholarship, Research and Creative Activity",20]
["Contracts-PVPA Research Contr.",1176,"VIURAC AEST MCFARLAND 665","25025-7-3","SRCA VIURAC-AEST McFarland 665",315,"VIURAC","Scholarship, Research and Creative Activity",20]
["Contracts-PVPA Research Contr.",1182,"VIURAC AEST MORDEN 101054","25025-7-8","SRCA VIURAC-AEST- Morden 101054",315,"VIURAC","Scholarship, Research and Creative Activity",20]
["Contracts-PVPA Research Contr.",1184,"VIURAC S-GRF REED 101043","25025-3-6","SRCA VIURAC S-GRF - Reed 101043",315,"VIURAC","Scholarship, Research and Creative Activity",20]
["Contracts-PVPA Research Contr.",1185,"VIURAC RF RUSSELL 101007","25025-1-53","SRCA VIURAC RF - Russell 101007",315,"VIURAC","Scholarship, Research and Creative Activity",20]
["Contracts-PVPA Research Contr.",1186,"VIURAC RF SUN 101008","25025-1-56","SRCA VIURAC RF - Sun 101008",315,"VIURAC","Scholarship, Research and Creative Activity",20]
["Contracts-PVPA Research Contr.",1188,"VIURAC RF STERN","25025-1-24","SRCA VIURAC RF - Stern",315,"VIURAC","Scholarship, Research and Creative Activity",20]
["Contracts-PVPA Research Contr.",1189,"VIURAC RF MOHABEER 101160","25025-1-58","SRCA VIURAC RF - Mohabeer 101160",315,"VIURAC","Scholarship, Research and Creative Activity",20]
["Contracts-PVPA Research Contr.",1190,"VIURAC MH GILL 101174","25025-8-2","SRCA VIURAC M-HEALTH- Gill 101174",315,"VIURAC","Scholarship, Research and Creative Activity",20]
["Contracts-PVPA Research Contr.",1192,"VIURAC RF WIEBE 101172","25025-1-59","SRCA VIURAC RF - Wiebe 101172-173",315,"VIURAC","Scholarship, Research and Creative Activity",20]
["Contracts-PVPA Research Contr.",1193,"VIURAC RF CARRUTHERS","25025-1-60","SRCA VIURAC RF - Carruthers 101165-6",315,"VIURAC","Scholarship, Research and Creative Activity",20]
["Contracts-PVPA Research Contr.",1199,"VIURAC RF-PUB MARTIN","25025-1-52","SRCA VIURAC RF - Publish - Martin 100877",315,"VIURAC","Scholarship, Research and Creative Activity",20]
["Contracts-PVPA Research Contr.",1200,"CFI - IOF","25100-5-1","SRCA CFI - IOFCFI - IOF",309,"Research Grant","Scholarship, Research and Creative Activity",20]
["Contracts-PVPA Research Contr.",1201,"CFI-IOF META DH LAB - LANE ","25100-5-5","SRCA CFI - IOF MeTA DH Lab - Lane",309,"Research Grant","Scholarship, Research and Creative Activity",20]
["Contracts-PVPA Research Contr.",1202,"CFI-IOF RUSSELL ","25100-5-6","SRCA CFI - IOF Russell",309,"Research Grant","Scholarship, Research and Creative Activity",20]
["Contracts-PVPA Research Contr.",1203,"CFI-IOF GILL","25100-5-7","SRCA CFI - IOF Gill",309,"Research Grant","Scholarship, Research and Creative Activity",20]
["Contracts-PVPA Research Contr.",1207,"CFI IOF SHELLFISH (GREEN)","25100-5-4","SRCA CFI - IOF Shellfish (Green)",309,"Research Grant","Scholarship, Research and Creative Activity",20]
["Contracts-PVPA Research Contr.",1209,"CFI IOF MOBILE LAB(KROGH)","25100-5-3","SRCA CFI - IOF Mobile Lab (Krogh)",309,"Research Grant","Scholarship, Research and Creative Activity",20]
["Contracts-PVPA Research Contr.",1222,"SIG SSHRC 2018-21","25100-12-8","SRCA SSHRC SIG 2018-21",309,"Research Grant","Scholarship, Research and Creative Activity",20]
["Contracts-PVPA Research Contr.",1224,"SSHRC CGSM","25100-12-5","SRCA SSHRC CGSM",309,"Research Grant","Scholarship, Research and Creative Activity",20]
["Contracts-PVPA Research Contr.",1232,"SSHRC IDG - BROUDER","25100-12-10","SRCA SSHRC IDG - Brouder",309,"Research Grant","Scholarship, Research and Creative Activity",20]
["Contracts-PVPA Research Contr.",1234,"SSHRC IRCR CG - MARTIN","25100-12-7","SRCA SSHRC IRCR CG - Martin ",309,"Research Grant","Scholarship, Research and Creative Activity",20]
["Contracts-PVPA Research Contr.",1235,"SSHRC PDG (UOFA)-ROLLINS","25100-12-14","SRCA SSHRC PDG (UofA) - Rollins",309,"Research Grant","Scholarship, Research and Creative Activity",20]
["Contracts-PVPA Research Contr.",1237,"SSHRC CG - WARSH","25100-12-11","SRCA SSHRC CG - Warsh",309,"Research Grant","Scholarship, Research and Creative Activity",20]
["Contracts-PVPA Research Contr.",1239,"SSHRC CG - DOUGHTY 5714","25100-12-12","SRCA SSHRC CG - DOUGHTY 5714",309,"Research Grant","Scholarship, Research and Creative Activity",20]
["Contracts-PVPA Research Contr.",1240,"SSHRC ICG - WAGER 5669","25100-12-13","SRCA SSHRC ICG - Wager 5669",309,"Research Grant","Scholarship, Research and Creative Activity",20]
["Contracts-PVPA Research Contr.",1250,"NSERC USRA","25100-8-11","SRCA NSERC USRA",309,"Research Grant","Scholarship, Research and Creative Activity",20]
["Contracts-PVPA Research Contr.",1256,"NSERC DG - BAKER","25100-8-2","SRCA NSERC  DG - Baker",309,"Research Grant","Scholarship, Research and Creative Activity",20]
["Contracts-PVPA Research Contr.",1259,"NSERC SPGN(WATRLOO)-FLOYD","25100-8-10","SRCA NSERC SPGN (Waterloo) - Floyd",309,"Research Grant","Scholarship, Research and Creative Activity",20]
["Contracts-PVPA Research Contr.",1260,"NSERC SPGN (VIU) - FLOYD","25100-8-9","SRCA NSERC SPGN (VIU) - Floyd",309,"Research Grant","Scholarship, Research and Creative Activity",20]
["Contracts-PVPA Research Contr.",1277,"NSERC DG - KROGH","25100-8-6","SRCA NSERC DG - Krogh",309,"Research Grant","Scholarship, Research and Creative Activity",20]
["Contracts-PVPA Research Contr.",1278,"NSERC DG - GILL","25100-8-3","SRCA NSERC DG - Gill",309,"Research Grant","Scholarship, Research and Creative Activity",20]
["Contracts-PVPA Research Contr.",1279,"NSERC DG - JANES ","25100-8-12","SRCA NSERC DG - Janes",309,"Research Grant","Scholarship, Research and Creative Activity",20]
["Contracts-PVPA Research Contr.",1280,"NSERC DG - GREEN","25100-8-5","SRCA NSERC DG - Green",309,"Research Grant","Scholarship, Research and Creative Activity",20]
["Contracts-PVPA Research Contr.",1281,"NSERC DG - GORRELL","25100-8-4","SRCA NSERC DG - Gorrell",309,"Research Grant","Scholarship, Research and Creative Activity",20]
["Contracts-PVPA Research Contr.",1282,"NSERC EDI - VAUGEOIS","25100-8-7","SRCA NSERC EDI - Vaugeois",309,"Research Grant","Scholarship, Research and Creative Activity",20]
["Contracts-PVPA Research Contr.",1283,"NSERC DG - STRINGHAM","25100-8-13","SRCA NSERC DG - Stringham",309,"Research Grant","Scholarship, Research and Creative Activity",20]
["Contracts-PVPA Research Contr.",1284,"NSERC DG - WIEBE 5790","25100-8-14","SRCA NSERC DG - Wiebe 5790-101005",309,"Research Grant","Scholarship, Research and Creative Activity",20]
["Contracts-PVPA Research Contr.",1290,"CIHR IGWDG-MEIJER-DREES ","25100-6-2","SRCA CIHR - IGWDG - Meijer-Drees 100093",309,"Research Grant","Scholarship, Research and Creative Activity",20]
["Contracts-PVPA Research Contr.",1292,"VAN FDN-WAGER 100677","25100-13-17","SRCA VAN FDN - Wager 100677",309,"Research Grant","Scholarship, Research and Creative Activity",20]
["Contracts-PVPA Research Contr.",1293,"VANCOUVER FDN 2 - FALVAI","25100-13-10","SRCA Vancouver Fdn 2 - Falvai",309,"Research Grant","Scholarship, Research and Creative Activity",20]
["Contracts-PVPA Research Contr.",1295,"MITACS ACC - GORRELL 5761","25100-13-16","SRCA MITACS ACC - Gorrell 5761",309,"Research Grant","Scholarship, Research and Creative Activity",20]
["Contracts-PVPA Research Contr.",1296,"UNI-CAN-SRCA 5825","25100-13-18","SRCA UNI-CAN-SRCA 5825",309,"Research Grant","Scholarship, Research and Creative Activity",20]
["Contracts-PVPA Research Contr.",1298,"MITACS BSI - SRCA","25100-13-15","SRCA MITACS BSI - SRCA",309,"Research Grant","Scholarship, Research and Creative Activity",20]
["Contracts-PVPA Research Contr.",1299,"MITACS RTA - SCRA ","25100-13-13","SRCA MITACS RTA - SRCA",309,"Research Grant","Scholarship, Research and Creative Activity",20]
["Contracts-PVPA Research Contr.",1300,"CRC - WAGER","25100-4-1","SRCA CRC - Wager",309,"Research Grant","Scholarship, Research and Creative Activity",20]
["Contracts-PVPA Research Contr.",1301,"CRC - SLOAN 4670","25100-4-5","SRCA CRC - Sloan 4670",309,"Research Grant","Scholarship, Research and Creative Activity",20]
["Contracts-PVPA Research Contr.",1304,"TIPS-EDI STIP-VAUGEOIS","25100-4-4","SRCA CRC TIPS - EDI Stipend - Vaugeois 5779",309,"Research Grant","Scholarship, Research and Creative Activity",20]
["Contracts-PVPA Research Contr.",1305,"BCRIC AECD","25100-3-1","SRCA BCRIC - AECD",309,"Research Grant","Scholarship, Research and Creative Activity",20]
["Contracts-PVPA Research Contr.",1306,"BCRIC AECD-OPERATING","25100-3-3","SRCA BCRIC - AECD Alphonse GRF",309,"Research Grant","Scholarship, Research and Creative Activity",20]
["Contracts-PVPA Research Contr.",1310,"BCRIC CHAIR TOURISM","25100-3-2","SRCA BCRIC - Chair Tourism",309,"Research Grant","Scholarship, Research and Creative Activity",20]
["Contracts-PVPA Research Contr.",1315,"CRC - WOOD","25100-4-2","SRCA CRC - Wood",309,"Research Grant","Scholarship, Research and Creative Activity",20]
["Contracts-PVPA Research Contr.",1324,"DFO ACRDP-DUDAS","25125-1-5","SRCA DFO ACRDP - Dudas",310,"Research Contract","Scholarship, Research and Creative Activity",20]
["Contracts-PVPA Research Contr.",1325,"CRC GENOMICS-GREEN","25100-4-3","SRCA CRC - Green",309,"Research Grant","Scholarship, Research and Creative Activity",20]
["Contracts-PVPA Research Contr.",1326,"CRC GENOMICS-OPERATING","25001-1-6","SRCA CRC Genomics - Green Operating",300,"Research Contract Administration","Scholarship, Research and Creative Activity",20]
["Contracts-PVPA Research Contr.",1328,"NOAA/PSMFC (OSU) - GREEN","25100-13-14","SRCA NOAA/PSMFC (OSU) - Green",309,"Research Grant","Scholarship, Research and Creative Activity",20]
["Contracts-PVPA Research Contr.",1330,"MIN HLTH - SRCA 5832","25125-1-32","SRCA MIN HLTH - SRCA 5832",310,"Research Contract","Scholarship, Research and Creative Activity",20]
["Contracts-PVPA Research Contr.",1347,"GENOME BC (SFU)-MURRAY","25100-13-5","SRCA Genome BC (SFU) - Murray",309,"Research Grant","Scholarship, Research and Creative Activity",20]
["Contracts-PVPA Research Contr.",1349,"IS HEALTH INNOVATION-GILL","25100-13-7","SRCA IS Health Innovation - Gill",309,"Research Grant","Scholarship, Research and Creative Activity",20]
["Contracts-PVPA Research Contr.",1377,"CVRD - FLOYD 5712","25125-1-31","SRCA CVRD - Floyd 5712",310,"Research Contract","Scholarship, Research and Creative Activity",20]
["Contracts-PVPA Research Contr.",1378,"RDN - FLOYD 100604","25125-1-29","SRCA RDN - Floyd - 100604",310,"Research Contract","Scholarship, Research and Creative Activity",20]
["Contracts-PVPA Research Contr.",1379,"TULA (UNBC) - OWIKENO - FLOYD","25125-1-28","SRCA TULA (UNBC) - Owikeno - Floyd",310,"Research Contract","Scholarship, Research and Creative Activity",20]
["Contracts-PVPA Research Contr.",1380,"TULA (UNBC) - FLOYD","25100-13-9","SRCA TULA (UNBC) - Floyd",309,"Research Grant","Scholarship, Research and Creative Activity",20]
["Contracts-PVPA Research Contr.",1381,"TULA FDN 2 - FLOYD","25125-1-18","SRCA TULA FDN 2 - Floyd",310,"Research Contract","Scholarship, Research and Creative Activity",20]
["Contracts-PVPA Research Contr.",1383,"AVED - RUSSELL","25100-13-2","SRCA AVED - Russell",309,"Research Grant","Scholarship, Research and Creative Activity",20]
["Contracts-PVPA Research Contr.",1387,"G-H JOURNAL - WARSH","25125-1-9","SRCA G-H JOURNAL - Warsh",310,"Research Contract","Scholarship, Research and Creative Activity",20]
["Contracts-PVPA Research Contr.",1393,"BC MIN FORESTS 6 - FLOYD","25125-1-2","SRCA BC MIN FORESTS 6 - Floyd",310,"Research Contract","Scholarship, Research and Creative Activity",20]
["Contracts-PVPA Research Contr.",1395,"MITACS-ACC-PD-VAUGEOIS","25100-13-8","SRCA MITACS-ACC-PD - Vaugeois",309,"Research Grant","Scholarship, Research and Creative Activity",20]
["Contracts-PVPA Research Contr.",1398,"BC SUPP (UVIC) - BLANEY 5817","25125-1-35","SRCA BC SUPP (UVIC) - Blaney 5817",310,"Research Contract","Scholarship, Research and Creative Activity",20]
["Contracts-PVPA Research Contr.",1399,"PVPA RESEARCH HOLDING A/C","25000-1-1","SRCA Research Contract Holding",300,"Research Contract Administration","Scholarship, Research and Creative Activity",20]
["Contracts-PVPA Research Contr.",1418,"VIURAC SIG-18 PASTRO ","25025-5-10","SRCA VIURAC SIG18 - PASTRO",315,"VIURAC","Scholarship, Research and Creative Activity",20]
["Contracts-PVPA Research Contr.",1419,"VIURAC RF ALPHONSE","25025-1-43","SRCA VIURAC RF - Alphonse",315,"VIURAC","Scholarship, Research and Creative Activity",20]
["Contracts-PVPA Research Contr.",1438,"RIF - GILL","25100-9-5","SRCA RIF - Ministry - Gill",309,"Research Grant","Scholarship, Research and Creative Activity",20]
["Contracts-PVPA Research Contr.",1439,"RIF - BROUDER","25100-10-1","SRCA RIF - REFBC - Brouder",309,"Research Grant","Scholarship, Research and Creative Activity",20]
["Contracts-PVPA Research Contr.",1443,"RIF - DAMES 100546","25100-9-14","SRCA RIF - Ministry  - Dames - 100546",309,"Research Grant","Scholarship, Research and Creative Activity",20]
["Contracts-PVPA Research Contr.",1444,"RIF - JOHNSON 100497","25100-9-13","SRCA RIF - Ministry - Johnson - 100497",309,"Research Grant","Scholarship, Research and Creative Activity",20]
["Contracts-PVPA Research Contr.",1445,"RIF - RUSSELL 100849","25100-9-15","SRCA RIF - Ministry  - Russell 100948",309,"Research Grant","Scholarship, Research and Creative Activity",20]
["Contracts-PVPA Research Contr.",1446,"RIF-GORRELL 101061","25100-10-10","SRCA RIF - REFBC - Gorrell 101061",309,"Research Grant","Scholarship, Research and Creative Activity",20]
["Contracts-PVPA Research Contr.",1447,"RIF-GREEN 101062","25100-10-11","SRCA RIF - REFBC - Green 101062",309,"Research Grant","Scholarship, Research and Creative Activity",20]
["Contracts-PVPA Research Contr.",1448,"RIF-(IOF)-RUSSELL 101069","25100-9-16","SRCA RIF - Ministry  - Russell 101069",309,"Research Grant","Scholarship, Research and Creative Activity",20]
["Contracts-PVPA Research Contr.",1449,"RIF - BAKER 101071","25100-9-17","SRCA RIF - Ministry  - Baker 101071",309,"Research Grant","Scholarship, Research and Creative Activity",20]
["Contracts-PVPA Research Contr.",1450,"RIF - KROGH 101085","25100-10-12","SRCA RIF - REFBC - Krogh 101085",309,"Research Grant","Scholarship, Research and Creative Activity",20]
["Contracts-PVPA Research Contr.",1451,"RIF - Schroeder 101065","25100-10-4","SRCA RIF - REFBC - Schroeder 101065",309,"Research Grant","Scholarship, Research and Creative Activity",20]
["Contracts-PVPA Research Contr.",4111,"VIURAC-EN/IQ RF BLANEY","25025-1-26","SRCA VIURAC RF - EN/IQ RF Blaney",315,"VIURAC","Scholarship, Research and Creative Activity",20]
["Contracts-PVPA Research Contr.",4114,"VIURAC SIG-18 DAVIDSON","25025-5-1","SRCA VIURAC SIG18 - Davidson",315,"VIURAC","Scholarship, Research and Creative Activity",20]
["Contracts-PVPA Research Contr.",4121,"VIURAC SIG-18-SGRF MANSON","25025-6-3","SRCA VIURAC-Multiple - SIG18 SGRF - Manson",315,"VIURAC","Scholarship, Research and Creative Activity",20]
["Contracts-PVPA Research Contr.",4125,"VIURAC S-GRF FARRELL","25025-3-2","SRCA VIURAC S-GRF - Farrell",315,"VIURAC","Scholarship, Research and Creative Activity",20]
["Contracts-PVPA Research Contr.",4129,"VIURAC N-GRF STOKES","25025-2-7","SRCA VIURAC N-GRF - Stokes",315,"VIURAC","Scholarship, Research and Creative Activity",20]
["Contracts-PVPA Research Contr.",4130,"VIURAC BAKER","25025-1-3","SRCA VIURAC RF - Baker",315,"VIURAC","Scholarship, Research and Creative Activity",20]
["Contracts-PVPA Research Contr.",4137,"VIURAC N-GRF RUSSELL","25025-2-6","SRCA VIURAC N-GRF - Russell",315,"VIURAC","Scholarship, Research and Creative Activity",20]
["Contracts-PVPA Research Contr.",4139,"VIURAC RF CRAIG","25025-1-28","SRCA VIURAC RF - Craig",315,"VIURAC","Scholarship, Research and Creative Activity",20]
["Contracts-PVPA Research Contr.",4140,"VIURAC RF JUBY","25025-1-33","SRCA VIURAC RF - Juby",315,"VIURAC","Scholarship, Research and Creative Activity",20]
["Contracts-PVPA Research Contr.",4141,"VIURAC RF KROGH 100281","25025-1-38","SRCA VIURAC RF - Krogh 100281",315,"VIURAC","Scholarship, Research and Creative Activity",20]
["Contracts-PVPA Research Contr.",4143,"VIURAC RF DAMES 100239","25025-1-37","SRCA VIURAC RF - Dames 100239",315,"VIURAC","Scholarship, Research and Creative Activity",20]
["Contracts-PVPA Research Contr.",4145,"VIURAC RF HEITI","25025-1-31","SRCA VIURAC RF - Heiti",315,"VIURAC","Scholarship, Research and Creative Activity",20]
["Contracts-PVPA Research Contr.",4146,"VIURAC RF HOPWOOD","25025-1-32","SRCA VIURAC RF - Hopwood",315,"VIURAC","Scholarship, Research and Creative Activity",20]
["Contracts-PVPA Research Contr.",4147,"VIURAC RF DAVEY","25025-1-29","SRCA VIURAC RF - Davey",315,"VIURAC","Scholarship, Research and Creative Activity",20]
["Contracts-PVPA Research Contr.",4154,"GVWD-FLOYD ","25125-1-21","SRCA GVWD - Floyd",310,"Research Contract","Scholarship, Research and Creative Activity",20]
["Contracts-PVPA Research Contr.",4158,"BCCAMPUS - DRURY","25125-1-23","SRCA BCCAMPUS - DRURY",310,"Research Contract","Scholarship, Research and Creative Activity",20]
["Contracts-PVPA Research Contr.",4161,"MITACS-RBC-ALPHONSE","25125-1-24","SRCA MITACS-RBC-ALPHONSE",310,"Research Contract","Scholarship, Research and Creative Activity",20]
["Contracts-PVPA Research Contr.",4163,"GENOMEBC-GREEN","25125-1-25","SRCA GENOME BC - GREEN",310,"Research Contract","Scholarship, Research and Creative Activity",20]
["Contracts-PVPA Research Contr.",4164,"BCSGA – GREEN","25125-1-26","SRCA BCSGA - GREEN",310,"Research Contract","Scholarship, Research and Creative Activity",20]
["Contracts-PVPA Research Contr.",4165,"IN-NA (GITKSAN) - FLOYD ","25125-1-30","SRCA IND-North-Affairs (Gitksan) Floyd 100600",310,"Research Contract","Scholarship, Research and Creative Activity",20]
["Contracts-PVPA Research Contr.",4167,"BC-CMPS - VINDEN 4167","25125-1-34","SRCA BC-CMPS - Vinden 4589",310,"Research Contract","Scholarship, Research and Creative Activity",20]
["Contracts-PVPA Research Contr.",4200,"MABRRI HOLDING ACCOUNT","25150-1-3","SRCA MABRRI - Research Contract Holding",300,"Research Contract Administration","Scholarship, Research and Creative Activity",20]
["Contracts-PVPA Research Contr.",4201,"PORT ALBERNI-SHAW 5697","25155-1-22","SRCA MABRRI Port Alberni-Shaw 5697",310,"Research Contract","Scholarship, Research and Creative Activity",20]
["Contracts-PVPA Research Contr.",4202,"KOMOKS-SHAW 5707","25155-1-23","SRCA MABRRI Komoks-Shaw 5707",310,"Research Contract","Scholarship, Research and Creative Activity",20]
["Contracts-PVPA Research Contr.",4206,"RDN-SHAW ","25155-1-12","SRCA MABRRI RDN - Shaw",310,"Research Contract","Scholarship, Research and Creative Activity",20]
["Contracts-PVPA Research Contr.",4207,"ST JOHN LEGACY FDN - SHAW","25152-3-4","SRCA MABRRI St John Legacy Fdn - Shaw",309,"Research Grant","Scholarship, Research and Creative Activity",20]
["Contracts-PVPA Research Contr.",4208,"CFI IOF ESTUARIES (SHAW)","25152-4-1","SRCA MABRRI CFI - IOF Estuaries (Shaw)",309,"Research Grant","Scholarship, Research and Creative Activity",20]
["Contracts-PVPA Research Contr.",4211,"VI ECON ALLIANCE-SAKAKI","25155-1-27","SRCA MABRRI VI Economic Alliance - Sakaki",310,"Research Contract","Scholarship, Research and Creative Activity",20]
["Contracts-PVPA Research Contr.",4212,"PFWSBC-SHAW","25155-1-9","SRCA MABRRI PFWSBC - Shaw",310,"Research Contract","Scholarship, Research and Creative Activity",20]
["Contracts-PVPA Research Contr.",4213,"REFBC - SHAW","25155-1-13","SRCA MABRRI REFBC - Shaw",310,"Research Contract","Scholarship, Research and Creative Activity",20]
["Contracts-PVPA Research Contr.",4215,"SITKA2019-SHAW","25152-3-3","SRCA MABRRI SITKA2019 - Shaw",309,"Research Grant","Scholarship, Research and Creative Activity",20]
["Contracts-PVPA Research Contr.",4219,"PSF-FORAGE-SHAW 5907","25155-1-16","SRCA MABRRI PSF-FORAGE-SHAW",310,"Research Contract","Scholarship, Research and Creative Activity",20]
["Contracts-PVPA Research Contr.",4220,"IN-SERV-CAN(CANDO)-SHAW","25155-1-17","SRCA MABRRI  IN-SERV-CAN(CANDO)-SHAW",310,"Research Contract","Scholarship, Research and Creative Activity",20]
["Contracts-PVPA Research Contr.",4223,"CITY NAN DKP-SHAW","25155-1-21","SRCA MABRRI CITY NAN DKP - Shaw",310,"Research Contract","Scholarship, Research and Creative Activity",20]
["Contracts-PVPA Research Contr.",4230,"RIF - BOWES 100598","25152-1-5","SRCA MABRRI RIF REFBC - Bowes 100598",309,"Research Grant","Scholarship, Research and Creative Activity",20]
["Contracts-PVPA Research Contr.",4231,"NCE (CMN) SHAW","25152-2-2","SRCA MABRRI SSHRC NCE (CMN) - Shaw",309,"Research Grant","Scholarship, Research and Creative Activity",20]
["Contracts-PVPA Research Contr.",4233,"SSHRC IRCR CG - SHAW","25152-2-1","SRCA MABRRI SSHRC IRCR CG - Shaw",309,"Research Grant","Scholarship, Research and Creative Activity",20]
["Contracts-PVPA Research Contr.",4234,"RIF LAFRENIERE 100614","25152-1-4","SRCA MABRRI RIF REFBC - Lafreniere 100614",309,"Research Grant","Scholarship, Research and Creative Activity",20]
["Contracts-PVPA Research Contr.",4236,"TFN - SHAW 100734","25155-1-29","SRCA MABRRI TseshahtFN - Shaw 100734",310,"Research Contract","Scholarship, Research and Creative Activity",20]
["Contracts-PVPA Research Contr.",4237,"MECCS - SHAW 5665","25155-1-30","SRCA MABRRI MECCS - Shaw 5665",310,"Research Contract","Scholarship, Research and Creative Activity",20]
["Contracts-PVPA Research Contr.",4238,"CMN - SHAW 5747","25155-1-31","SRCA MABRRI CMN - Shaw 5747",310,"Research Contract","Scholarship, Research and Creative Activity",20]
["Contracts-PVPA Research Contr.",4239,"MITACS ACC - SHAW 5763","25152-3-6","SRCA MABRRI Grant - Other Mitacs Accelerate (Fletcher) - Shaw 5763",309,"Research Grant","Scholarship, Research and Creative Activity",20]
["Contracts-PVPA Research Contr.",4240,"WWF - SHAW 5792","25155-1-32","SRCA MABRRI WWF - Shaw 5792",310,"Research Contract","Scholarship, Research and Creative Activity",20]
["Contracts-PVPA Research Contr.",4241,"RIF - SHAW 100740","25152-1-6","SRCA MABRRI RIF REFBC - Shaw 100740",309,"Research Grant","Scholarship, Research and Creative Activity",20]
["Contracts-PVPA Research Contr.",4242,"ACRD - SHAW 5818","25155-1-33","SRCA MABRRI ACRD - Shaw 5818",310,"Research Contract","Scholarship, Research and Creative Activity",20]
["Contracts-PVPA Research Contr.",4243,"CMN-STIPEND-SHAW 5851","25152-3-8","SRCA MABRRI Grant - Other CMN - Stipend - Shaw 5851",309,"Research Grant","Scholarship, Research and Creative Activity",20]
["Contracts-PVPA Research Contr.",4244,"MOLSON FND - SHAW 5786","25152-3-7","SRCA MABRRI Grant - Other Molson Fnd - Shaw 5786",309,"Research Grant","Scholarship, Research and Creative Activity",20]
["Contracts-PVPA Research Contr.",4245,"DOL - SHAW 5843","25155-1-34","SRCA MABRRI DoL - Shaw 5843",310,"Research Contract","Scholarship, Research and Creative Activity",20]
["Contracts-PVPA Research Contr.",4246,"RIF - SHAW 101098","25152-1-7","SRCA MABRRI RIF REFBC - Shaw 101098",309,"Research Grant","Scholarship, Research and Creative Activity",20]
["Contracts-PVPA Research Contr.",4248,"ESDC - SHAW 5847","25152-3-9","SRCA MABRRI Grant - Other ESDC - SHAW 5847",309,"Research Grant","Scholarship, Research and Creative Activity",20]
["Contracts-PVPA Research Contr.",4249,"RDN - SHAW 5877","25155-1-36","SRCA MABRRI RDN - Shaw 5877",310,"Research Contract","Scholarship, Research and Creative Activity",20]
["Contracts-PVPA Research Contr.",4250,"NEDC - SHAW 5887","25155-1-37","SRCA MABRRI NEDC - Shaw 5887",310,"Research Contract","Scholarship, Research and Creative Activity",20]
["Contracts-PVPA Research Contr.",1172,"VIURAC RF LESTER 101256","25025-1-61","SRCA VIURAC RF - Lester 101256",315,"VIURAC","Scholarship, Research and Creative Activity",20]
["Contracts-PVPA Research Contr.",1196,"VIURAC RF DUNCAN 248-9","25025-1-62","SRCA VIURAC RF - Duncan 248-9",315,"VIURAC","Scholarship, Research and Creative Activity",20]
["Contracts-PVPA Research Contr.",1197,"VIURAC RF JANES 101240","25025-1-63","SRCA VIURAC RF - Janes 101240",315,"VIURAC","Scholarship, Research and Creative Activity",20]
["Contracts-PVPA Research Contr.",1178,"VIURAC RF BITTERBERG","25025-1-64","SRCA VIURAC RF - Bitterberg 101253-2-1",315,"VIURAC","Scholarship, Research and Creative Activity",20]
["Contracts-PVPA Research Contr.",1194,"VIURAC RF RUSSELL 101246","25025-1-65","SRCA VIURAC RF - Russell 101246",315,"VIURAC","Scholarship, Research and Creative Activity",20]
["Contracts-PVPA Research Contr.",1174,"VIURAC RF SUN 101250","25025-1-66","SRCA VIURAC RF - Sun 101250",315,"VIURAC","Scholarship, Research and Creative Activity",20]
["Contracts-PVPA Research Contr.",4251,"CANDO - SHAW 5902-5904","25155-1-38","SRCA MABRRI CANDO - Shaw 5902-5904",310,"Research Contract","Scholarship, Research and Creative Activity",20]
["Contracts-PVPA Research Contr.",4252,"ISLANDS TRUST - SHAW 5908","25155-1-39","SRCA MABRRI Islands Trust - Shaw 5908",310,"Research Contract","Scholarship, Research and Creative Activity",20]
["Contracts-Science-AQUA Group",1475,"STURGEON CTR-GENERAL OPS","22705-3-1","ST SC Operations",201,"Faculty Administration","Science and Technology",20]
["Contracts-Science-AQUA Group",1476,"DEEP BAY-PUBLIC ED/EVENTS","22705-2-2","ST DBMFS Public Education & Events",216,"Research Administration","Science and Technology",20]
["Contracts-Science-AQUA Group",1477,"DEEP BAY-RESEARCH, SERVICE","22705-2-3","ST DBMFS Research & Service",216,"Research Administration","Science and Technology",20]
["Contracts-Science-AQUA Group",1479,"SEAFOOD INNOVATION CENTRE","22705-4-1","ST Seafood Innovation Centre - Feasibility",201,"Faculty Administration","Science and Technology",20]
["Contracts-Science-AQUA Group",1480,"CSR OPERATING FUND ","22705-1-1","ST CSR Operations",216,"Research Administration","Science and Technology",20]
["Contracts-Science-AQUA Group",1481,"DEEP BAY OPERATIONS/ADMIN ","22705-2-1","ST DBMFS Operations",216,"Research Administration","Science and Technology",20]
["Contracts-Science-AQUA Group",1482,"SIC - IMPLEMENTATION","22705-4-2","ST Seafood Innovation Centre - Implementation",201,"Faculty Administration","Science and Technology",20]
["Cowichan Campus",7300,"ADMINISTRATION","14405-1-1","CC Campus Administration",200,"Academic Administration","Cowichan Campus",10]
["Cowichan Campus",7304,"COWICHAN REGIST","14420-1-1","CC Registration and Admissions",200,"Academic Administration","Cowichan Campus",10]
["Cowichan Campus",7305,"CYC- COWICHAN","14430-1-2","CC Instructional Support - CYC",200,"Academic Administration","Cowichan Campus",10]
["Cowichan Campus",7306,"STRAT ENRL MGMT COMMITTEE","14410-2-1","CC Strategic Enrolment Management Committee",200,"Academic Administration","Cowichan Campus",10]
["Cowichan Campus",7309,"INSTRUCT.SUPPOR","14430-1-1","CC Instructional Support",200,"Academic Administration","Cowichan Campus",10]
["Cowichan Campus",7311,"CWCHN INDIGENOUS SCIENCE","14430-2-1","CC Indigenous Science",208,"Instruction"]
["Cowichan Campus",7360,"Duncan Student Programs","14408-1-2","CC Student Programs",217,"Student Support and Services","Cowichan Campus",10]
["Cowichan Campus",7380,"STUDENT SERVICE","14408-1-1","CC Student Services",217,"Student Support and Services","Cowichan Campus",10]
["Cowichan Campus",7381,"COWICHAN ASSESSMENT","14408-1-3","CC Student Assessment",217,"Student Support and Services","Cowichan Campus",10]
["Cowichan Campus",7391,"COWICHAN UT - SCIENCE","14435-5-1","CC UP - Science and Technology",208,"Instruction"]
["Cowichan Campus",7392,"COWICHAN UT - SOCIAL SCI","14435-6-1","CC UP - Social Sciences",208,"Instruction"]
["Cowichan Campus",7393,"COWICHAN UT- HUMAN SERVICE","14435-3-1","CC UP - Health and Human Services",208,"Instruction"]
["Cowichan Campus",7394,"COWICHAN UT-ARTS/HUMANITI","14435-1-1","CC UP - Arts & Humanities",208,"Instruction"]
["Cowichan Campus",7395,"COWICHAN UT - MGMT","14435-4-1","CC UP - Management",208,"Instruction"]
["Cowichan Campus",7397,"COWICHAN UT - EDUCATION","14435-2-1","CC UP - Education",208,"Instruction"]
["Cowichan Campus",7399,"COWICHAN NEW INITIATIVES","14405-2-1","CC Campus Initiatives",200,"Academic Administration","Cowichan Campus",10]
["Education",5000,"DEAN, EDUCATION","12300-1-1","EDUC Faculty Dean's Office",201,"Faculty Administration","Education",10]
["Education",5003,"EDUC. - DIRECTED STUDIES","12301-3-1","EDUC Faculty - Directed Studies",208,"Instruction"]
["Education",5004,"SCHOOL EXPERIENCE","12301-4-1","EDUC Faculty - School Experience",223,"Field Schools","Education",10]
["Education",5005,"EDUCATION ADVISING","12301-1-1","EDUC Faculty - Advising",204,"Advising","Education",10]
["Education",5006,"EDUCATION, INSTRUCTION","12310-1-1","EDUC Education - Instruction",208,"Instruction"]
["Education",5007,"MULTI MEDIA","12301-1-2","EDUC Faculty - Multi Media",201,"Faculty Administration","Education",10]
["Education",5010,"PHYSICAL EDUCATION","12320-1-1","EDUC Kinesiology",208,"Instruction"]
["Education",5014,"POST BAC-SECONDARY FOCUS","12315-1-1","EDUC Education - Post Bac Secondary Education",208,"Instruction"]
["Facilities Svs & Campus Dev.",8400,"NANAIMO FACILITIES MAINT.","16445-5-1","FSCD Facilities Maintenance - Nanaimo",100,"Administration","Facilities Services and Campus Development",10]
["Facilities Svs & Campus Dev.",8401,"PHYS.PLANT RECOVERY","16432-1-1","FSCD Recoveries - Physical Plant",100,"Administration","Facilities Services and Campus Development",10]
["Facilities Svs & Campus Dev.",8402,"PROJECT COST RECOVERY","16432-1-2","FSCD Recoveries - Project costs",100,"Administration","Facilities Services and Campus Development",10]
["Facilities Svs & Campus Dev.",8403,"UNIVERSAL ACCESS","16435-2-1","FSCD Universal Access",100,"Administration","Facilities Services and Campus Development",10]
["Facilities Svs & Campus Dev.",8405,"FLEET","16442-1-1","FSCD Fleet Management",100,"Administration","Facilities Services and Campus Development",10]
["Facilities Svs & Campus Dev.",8407,"MOTOR VEHICLE INSURANCE","16442-1-2","FSCD Fleet Vehicle Insurance",100,"Administration","Facilities Services and Campus Development",10]
["Facilities Svs & Campus Dev.",8408,"RISK MANAGEMENT","16432-2-2","FSCD Risk Management",100,"Administration","Facilities Services and Campus Development",10]
["Facilities Svs & Campus Dev.",8410,"NANAIMO GROUNDS","16448-4-1","FSCD Grounds Maintenance - Nanaimo",100,"Administration","Facilities Services and Campus Development",10]
["Facilities Svs & Campus Dev.",8411,"NANAIMO HVAC & UTILITIES","16452-5-1","FSCD HVAC and Utilities - Nanaimo",100,"Administration","Facilities Services and Campus Development",10]
["Facilities Svs & Campus Dev.",8412,"GEOEXCHANGE","16452-5-2","FSCD Nanaimo Geoexchange",100,"Administration","Facilities Services and Campus Development",10]
["Facilities Svs & Campus Dev.",8415,"GR PAINE FACILITIES MAINT","16445-4-1","FSCD Facilities Maintenance - G.R. Paine Centre",100,"Administration","Facilities Services and Campus Development",10]
["Facilities Svs & Campus Dev.",8416,"GR PAINE GROUNDS","16448-3-1","FSCD Grounds Maintenance - G.R. Paine Centre",100,"Administration","Facilities Services and Campus Development",10]
["Facilities Svs & Campus Dev.",8417,"GR PAINE HVAC & UTILITIES","16452-4-1","FSCD HVAC and Utilities - G.R. Paine Centre",100,"Administration","Facilities Services and Campus Development",10]
["Facilities Svs & Campus Dev.",8425,"PARKSVILLE MAIN CAMPUS","16445-6-1","FSCD Facilities Maintenance - Parksville",100,"Administration","Facilities Services and Campus Development",10]
["Facilities Svs & Campus Dev.",8426,"DEEP BAY RESEARCH CENTRE","16445-3-1","FSCD Facilities Maintenance - Deep Bay",100,"Administration","Facilities Services and Campus Development",10]
["Facilities Svs & Campus Dev.",8427,"HHS PORTABLES ","16432-3-1","FSCD HHS Portables",100,"Administration","Facilities Services and Campus Development",10]
["Facilities Svs & Campus Dev.",8428,"DEEP BAY HVAC & UTILITIES","16452-3-1","FSCD HVAC and Utilities - Deep Bay",100,"Administration","Facilities Services and Campus Development",10]
["Facilities Svs & Campus Dev.",8430,"POW RIVER FACILITIES MAIN","16445-7-1","FSCD Facilities Maintenance - Powell River",100,"Administration","Facilities Services and Campus Development",10]
["Facilities Svs & Campus Dev.",8431,"POW RIVER GROUNDS","16448-5-1","FSCD Grounds Maintenance - Powell River",100,"Administration","Facilities Services and Campus Development",10]
["Facilities Svs & Campus Dev.",8432,"POW RIVER HVAC&UTILITIES","16452-6-1","FSCD HVAC and Utilities - Powell River",100,"Administration","Facilities Services and Campus Development",10]
["Facilities Svs & Campus Dev.",8437,"COWICHAN FACILITIES MAINT","16445-1-1","FSCD Facilities Maintenance - Cowichan",100,"Administration","Facilities Services and Campus Development",10]
["Facilities Svs & Campus Dev.",8438,"COWICHAN GROUNDS","16448-1-1","FSCD Grounds Maintenance - Cowichan",100,"Administration","Facilities Services and Campus Development",10]
["Facilities Svs & Campus Dev.",8439,"COWICHAN HVAC & UTILITIES","16452-1-1","FSCD HVAC and Utilities - Cowichan",100,"Administration","Facilities Services and Campus Development",10]
["Facilities Svs & Campus Dev.",8440,"CTC FACILITIES MAINT.","16445-2-1","FSCD Facilities Maintenance - CTC",100,"Administration","Facilities Services and Campus Development",10]
["Facilities Svs & Campus Dev.",8441,"CTC GROUNDS","16448-2-1","FSCD Grounds Maintenance - CTC",100,"Administration","Facilities Services and Campus Development",10]
["Facilities Svs & Campus Dev.",8442,"CTC HVAC & UTILITIES","16452-2-1","FSCD HVAC and Utilities - CTC",100,"Administration","Facilities Services and Campus Development",10]
["Facilities Svs & Campus Dev.",8445,"MILNER GARDENS","16432-3-4","FSCD Milner Gardens",100,"Administration","Facilities Services and Campus Development",10]
["Facilities Svs & Campus Dev.",8450,"FSCD ADMINISTRATION","16430-1-1","FSCD Administration",100,"Administration","Facilities Services and Campus Development",10]
["Facilities Svs & Campus Dev.",8451,"BUILDING & GROUNDS MGMT.","16440-1-1","FSCD Buildings and Grounds - Administration",100,"Administration","Facilities Services and Campus Development",10]
["Facilities Svs & Campus Dev.",8452,"BUILDING SYSTEMS MGMT.","16450-1-1","FSCD Technical Systems  - Administration",100,"Administration","Facilities Services and Campus Development",10]
["Facilities Svs & Campus Dev.",8453,"CAMPUS DEVELOPMENT","16435-1-1","FSCD Campus Development",100,"Administration","Facilities Services and Campus Development",10]
["Facilities Svs & Campus Dev.",8454,"FAC & ANCILLARY ADMIN ","16400-1-1","FSCD Facilities and Ancillary - AVP Office",100,"Administration","Facilities Services and Campus Development",10]
["Facilities Svs & Campus Dev.",8456,"AUDIO-VISUAL SERVICES","16455-1-1","FSCD Audio Visual Systems",100,"Administration","Facilities Services and Campus Development",10]
["Facilities Svs & Campus Dev.",8480,"SHIPPING & RECEIVING","16440-2-1","FSCD Shipping & Receiving",100,"Administration","Facilities Services and Campus Development",10]
["Facilities Svs & Campus Dev.",8490,"MAIL & DELIVERY","16440-3-1","FSCD Mail & Delivery",100,"Administration","Facilities Services and Campus Development",10]
["Facilities Svs & Campus Dev.",8495,"SSF UAC HEALTH & WELLNESS","16435-3-1","FSCD SSF Funds UAC - Health and Wellness",100,"Administration","Facilities Services and Campus Development",10]
["Facilities Svs & Campus Dev.","8460, 8461","ROUTINE MINOR OPERAT EXP, ROUTINE MINOR OPERATE REV","16435-4-1","FSCD Routine Minor Maintenance",100,"Administration","Facilities Services and Campus Development",10]
["Financial Services",8300,"FINANCIAL SERVICES","17000-1-1","FIN Financial Services - AVP Office",100,"Administration","Financial Services",10]
["Financial Services",8309,"DIRECTOR OFFICE-ACCTING","17010-1-1","FIN Accounting Services - Director's Office",100,"Administration","Financial Services",10]
["Financial Services",8310,"ACOUNTING SERVICES","17015-1-1","FIN Accounting Services Department",100,"Administration","Financial Services",10]
["Financial Services",8311,"TREASURY & COLLECTIONS","17040-1-1","FIN Treasury & Collections",100,"Administration","Financial Services",10]
["Financial Services",8312,"PROCUREMENT","17030-1-1","FIN Procurement and Contract Services",100,"Administration","Financial Services",10]
["Financial Services",8313,"ACCOUNTS PAYABLE","17020-1-1","FIN Accounts Payable",100,"Administration","Financial Services",10]
["Financial Services",8320,"DIRECTOR OFFICE-FIN PLAN","17050-1-1","FIN Financial Planning and Reporting - Director's Office",100,"Administration","Financial Services",10]
["Financial Services",8321,"BUDGETS & FINANCIAL PLAN","17060-1-1","FIN Budgets & Financial Planning",100,"Administration","Financial Services",10]
["Financial Services",8340,"PORTFOLIO INTEREST","17040-2-1","FIN Treasury & Collections Inst - Portfolio Interest",101,"Institutional","Financial Services",10]
["Financial Services",8350,"PCARD REBATE","17030-2-1","FIN Procurement Inst - PCard Rebate",101,"Institutional","Financial Services",10]
["Financial Services",8399,"INST.OPEN PURCHASE ORDERS","17030-2-2","FIN Procurement Inst - Open PO Clearing",101,"Institutional","Financial Services",10]
["Health & Human Services",4500,"DEAN,HEALTH & HUMAN SERV","12400-1-1","HHS Faculty Dean's Office",201,"Faculty Administration","Health and Human Services",10]
["Health & Human Services",4502,"HEALTH PROGRAMS SUPPORT","12400-2-1","HHS Health Programs Support",201,"Faculty Administration","Health and Human Services",10]
["Health & Human Services",4509,"DIRECTED STUDIES - HEALTH","12401-3-1","HHS Faculty - Directed Studies",208,"Instruction"]
["Health & Human Services",4510,"BSN","12405-1-1","HHS Bachelor of Science in Nursing",208,"Instruction"]
["Health & Human Services",4511,"B.NURSING - NORTH ISLAND COLLEGE","12405-2-1","HHS Bachelor of Science in Nursing  - North Island College",219,"Contract Activity","Health and Human Services",10]
["Health & Human Services",4513,"PRACTICAL NURSING","12425-1-1","HHS Practical Nursing",208,"Instruction"]
["Health & Human Services",4516,"HEALTH CARE ASSISTANT-HCA","12420-1-1","HHS Health Care Assistant",208,"Instruction"]
["Health & Human Services",4519,"DENTAL CLINIC","12412-1-1","HHS Dental Clinic",208,"Instruction"]
["Health & Human Services",4520,"DENTAL ASSISTANT","12410-1-1","HHS Dental Assistant",208,"Instruction"]
["Health & Human Services",4522,"DENTAL HYGIENE PROGRAM","12415-1-1","HHS Dental Hygiene",208,"Instruction"]
["Health & Human Services",5205,"HEALTH&HS-HOLDING ACCOUNT","12401-2-1","HHS Faculty - International Sections",208,"Instruction"]
["Health & Human Services",5210,"SS DIPLOMA","12450-1-1","HHS Social Services Diploma",208,"Instruction"]
["Health & Human Services",5215,"SCSW","12445-1-1","HHS Education Assistant and Community Support",208,"Instruction"]
["Health & Human Services",5230,"E.C.E.C.","12440-1-1","HHS Early Childhood Education and Care",208,"Instruction"]
["Health & Human Services",5240,"CHILD/YTH CARE","12435-1-1","HHS Child and Youth Care",208,"Instruction"]
["HHS - Centre for Healthy Aging",7000,"PARKSVILLE CTR OPERATIONS","12455-1-1","HHS Parksville Operations",201,"Faculty Administration","Health and Human Services",10]
["High School",3082,"MIHS SUMMER STUDY","88215-1-1","VH Summer Programs",208,"Instruction"]
["High School",3083,"GROUP PROGRAMS","88230-1-1","VH Group Programs",208,"Instruction"]
["High School",3084,"ADULT & FDN PROGRAMS","88210-1-1","VH Adult and Foundation Programs",208,"Instruction"]
["High School",3085,"MIHS OPERATIONS","88000-1-1","VH High Schools - Administration",100,"Administration","International Education",80]
["High School",3087,"HIGH SCHOOL INSTRUCTION","88075-1-1","VH Combined - Domestic and International activity",208,"Instruction"]
["High School",3088,"HIGH SCHOOL- CANADIAN","88100-1-1","VH Domestic activity",208,"Instruction"]
["High School",3089,"MHS -INT'L STUDENTS","88200-1-1","VH International activity",208,"Instruction"]
["Human Resources",8200,"HUMAN RESOURCES","11100-1-1","HR Human Resources Division",100,"Administration","Human Resources",10]
["Human Resources",8201,"CUPE TRAINING AND DEV'T","11102-4-1","HR Training & PD - CUPE Contract Fund",101,"Institutional","Human Resources",10]
["Human Resources",8202,"CHAIR DEVELOPMENT","11102-6-1","HR Training & PD - VIUFA & BCGEU Chair Development",205,"Chair","Human Resources",10]
["Human Resources",8203,"MEDICAL TRAVEL","11151-2-4","HR Employee Wellbeing - Health - Medical Travel",101,"Institutional","Human Resources",10]
["Human Resources",8204,"WORKPLACE WELLNESS","11151-3-1","HR Employee Wellbeing - Wellness",101,"Institutional","Human Resources",10]
["Human Resources",8205,"UNITED WAY","11101-1-2","HR Human Resources - Initiatives - United Way Representative",101,"Institutional","Human Resources",10]
["Human Resources",8206,"ACCOMMODATIONS","11151-2-2","HR Employee Wellbeing - Health - Accommodations",101,"Institutional","Human Resources",10]
["Human Resources",8207,"EMPLOYEE ASSIST","11151-2-3","HR Employee Wellbeing - Health - Employee Assistance Program",101,"Institutional","Human Resources",10]
["Human Resources",8210,"PROF. DEV. ADMI","11102-2-1","HR Training & PD - ADMIN",101,"Institutional","Human Resources",10]
["Human Resources",8212,"EMPLOYEE RECOGNITION","11160-1-1","HR Recognition & Retention",101,"Institutional","Human Resources",10]
["Human Resources",8215,"CAREER DEV'T FUND","11102-4-2","HR Training & PD - CUPE Career Development Fund",101,"Institutional","Human Resources",10]
["Human Resources",8216,"EMPLOYEE RELOCATION GRANT","11165-2-2","HR Talent Acquisition - Employee Relocation Grant",101,"Institutional","Human Resources",10]
["Human Resources",8230,"INSTITUTIONAL HR","11115-1-1","HR Institutional HR (Conflict Resolution and Risk Assessment)",101,"Institutional","Human Resources",10]
["Human Resources",8231,"RECRUITMENT GEN. SERVICES ","11165-2-3","HR Talent Acquisition - Recruitment Gen. Services",101,"Institutional","Human Resources",10]
["Human Resources",8232,"SENIOR ADMIN. RECRUITMENT","11165-2-4","HR Talent Acquisition - Senior Administrator Recruiting",101,"Institutional","Human Resources",10]
["Human Resources",8233,"INSTRUCTIONAL RECRUITMENT ","11165-2-5","HR Talent Acquisition - Instructional Recruitment",101,"Institutional","Human Resources",10]
["Human Resources",8234,"UNION LEAVE BCGEU","11155-3-2","HR Leave & Attendance Management - BCGEU - UNION LEAVE",101,"Institutional","Human Resources",10]
["Human Resources",8235,"CUPE UNION RELE","11155-4-2","HR Leave & Attendance Management - CUPE - UNION LEAVE",101,"Institutional","Human Resources",10]
["Human Resources",8236,"VIUFA ASSISTED LEAVE","11155-5-3","HR Leave & Attendance Management - VIUFA - ASSISTED LEAVE",101,"Institutional","Human Resources",10]
["Human Resources",8237,"UNION LEAVE VIU FA","11155-5-2","HR Leave & Attendance Management - VIUFA - UNION LEAVE",101,"Institutional","Human Resources",10]
["Human Resources",8238,"VIUFA PROF. MEMBERSHIP","11102-5-1","HR Training & PD - VIUFA",101,"Institutional","Human Resources",10]
["Human Resources",8239,"BCGEU - PROFESSIONAL DEVELOPMENT","11102-3-1","HR Training & PD - BCGEU",101,"Institutional","Human Resources",10]
["Human Resources",8240,"BCGEU - PRO-D COMMITTEE","11102-3-2","HR Training & PD - BCGEU - PD Committee",101,"Institutional","Human Resources",10]
["Info. Technology Services",6700,"INFORMATION TECHNOLOGY","16100-1-1","IT Information Technology Division",100,"Administration","Information Technology Services",10]
["Info. Technology Services",6701,"STUDENT PRINTING","16140-2-2","IT End User Technology - Student Printing",101,"Institutional","Information Technology Services",10]
["Info. Technology Services",6702,"IT INFRASTRUCTURE","16130-1-1","IT Infrastructure Department",100,"Administration","Information Technology Services",10]
["Info. Technology Services",6703,"IT CLIENT SERVICES","16120-1-1","IT Client Services Department",100,"Administration","Information Technology Services",10]
["Info. Technology Services",6704,"IT END USER TECHNOLOGY","16140-1-1","IT End User Technology",100,"Administration","Information Technology Services",10]
["Info. Technology Services",6705,"INSTNL IT SERVICES ","16110-2-1","IT Operations - Institutional Services",101,"Institutional","Information Technology Services",10]
["Info. Technology Services",6708,"PHONE SERVICE","16130-2-2","IT Infrastructure - Phone Service",101,"Institutional","Information Technology Services",10]
["Info. Technology Services",6710,"ENTERPRISE SYSTEMS","16180-1-1","IT Enterprise Systems Department",100,"Administration","Information Technology Services",10]
["Info. Technology Services",6711,"INSTNL IT INFRASTRUCTURE","16130-2-1","IT Infrastructure - Institutional",101,"Institutional","Information Technology Services",10]
["Info. Technology Services",6712,"INSTNL IT END USER","16140-2-1","IT End User Technology - Institutional",101,"Institutional","Information Technology Services",10]
["Info. Technology Services",6713,"WEB MANAGEMENT OFFICE","16150-1-1","IT Web Management Department",100,"Administration","Information Technology Services",10]
["Info. Technology Services",6714,"TLASR PROJECT","16180-2-2","IT ES Institutional - TLASR Project",101,"Institutional","Information Technology Services",10]
["Info. Technology Services",6715,"INSTITUTION DATA SECURITY","16160-1-1","IT Security Department",100,"Administration","Information Technology Services",10]
["Info. Technology Services",6720,"SSF ITS ACCESS TO TECH","16110-3-1","IT Operations - SSF Funds - Access to Technology",101,"Institutional","Information Technology Services",10]
["International Education ",3000,"INTERNATIONAL ADMIN","22500-1-1","IE Department Dean's Office",201,"Faculty Administration","International Education",20]
["International Education ",3002,"CUSTOMER RELATIONS MGMT","22530-1-2","IE Marketing - Customer Relations Management",201,"Faculty Administration","International Education",20]
["International Education ",3004,"INTERED RENOVATIONS","22501-1-2","IE Department - Building 255 Renovations",201,"Faculty Administration","International Education",20]
["International Education ",3005,"INTERNATIONAL MEDICAL","22520-1-4","IE International Student Services - Medical",217,"Student Support and Services","International Education",20]
["International Education ",3006,"INTED STUDENT EMERG LOAN","22520-1-3","IE International Student Services - Emergency Loan",217,"Student Support and Services","International Education",20]
["International Education ",3008,"INT'L STUDENT ADVISING","22520-1-2","IE International Student Services - Advising",204,"Advising","International Education",20]
["International Education ",3009,"INTERCULTURAL PROGRAMS","22515-1-1","IE Centre for Intercultural Studies - Intercultural Programs",201,"Faculty Administration","International Education",20]
["International Education ",3010,"INTERN'L STU SERVICES","22520-1-1","IE International Student Services",217,"Student Support and Services","International Education",20]
["International Education ",3011,"HOMESTAY","22525-1-1","IE Homestay - Administration",217,"Student Support and Services","International Education",20]
["International Education ",3012,"AGENTS FEES  ESL","22530-2-2","IE Marketing - ESL",201,"Faculty Administration","International Education",20]
["International Education ",3013,"AGENTS FEES ACADEMIC","22530-2-1","IE Marketing - Academic",201,"Faculty Administration","International Education",20]
["International Education ",3014,"INTERNATIONAL SHOLARSHIPS","22505-4-1","IE Student Scholarships",201,"Faculty Administration","International Education",20]
["International Education ",3015,"NYAKA SCHOLARSHIP","22505-4-2","IE Scholarships - NYAKA",201,"Faculty Administration","International Education",20]
["International Education ",3016,"HOMESTAY-VIU STUDENTS","22525-1-2","IE Homestay - VIU Students",217,"Student Support and Services","International Education",20]
["International Education ",3017,"HOMESTAY - GROUPS","22525-1-3","IE Homestay - Groups",217,"Student Support and Services","International Education",20]
["International Education ",3019,"TASIS/VIU SCHOLARSHIP","22505-4-10","IE Scholarships - TASIS/VIU",201,"Faculty Administration","International Education",20]
["International Education ",3020,"SYRIAN STDNT SCHOLARSHIP","22505-4-7","IE Scholarships - Syrian",201,"Faculty Administration","International Education",20]
["International Education ",3021,"PEASON COLLEGE SCLRSHIP","22505-4-3","IE Scholarships - Pearson college",201,"Faculty Administration","International Education",20]
["International Education ",3022,"SYRIAN SCHOLARSHIP-ALLIKO","22505-4-8","IE Scholarships - Syrian Alliko",201,"Faculty Administration","International Education",20]
["International Education ",3023,"SYRIAN SCHOLARSHIP-BAKER","22505-4-9","IE Scholarships - Syrian Baker",201,"Faculty Administration","International Education",20]
["International Education ",3024,"SYRIAN SCHOLARSHIP-SHEIKHO","22505-4-11","IE Scholarships - Syrian Sheikho","201","Faculty Administration","International Education","20"]
["International Education ",3025,"GROUP PROGRAMS&CONTRACTS","22540-1-1","IE Group Programs",219,"Contract Activity","International Education",20]
["International Education ",3027,"ISTEP-TANZANIA","22550-1-24","IE EAFS - ISTEP EAFS - Tanzania",223,"Field Schools","International Education",20]
["International Education ",3028,"ISTEP-TANZANIA-PIP","22550-1-25","IE EAFS - ISTEP EAFS - Tanzania PIP",223,"Field Schools","International Education",20]
["International Education ",3029,"ELAP","22540-1-2","IE Group Programs  - ELAP",219,"Contract Activity","International Education",20]
["International Education ",3030,"INTERNL PROJECT/PARTNERSH","22540-1-3","IE Group Programs  - International Project/Partnerships",219,"Contract Activity","International Education",20]
["International Education ",3034,"SHANGHAI LIXIN U COMMERCE","22540-1-4","IE Group Programs  - Shanghai Lizin U Commerce",219,"Contract Activity","International Education",20]
["International Education ",3035,"SDIBT","22540-1-5","IE Group Programs  - SDIBT",219,"Contract Activity","International Education",20]
["International Education ",3039,"COSMETOLGY IMPLEMENTATION","22550-1-12","IE EAFS - Cosmetology Implementation",223,"Field Schools","International Education",20]
["International Education ",3040,"INTERNATIONAL ED TRAVEL","22501-2-1","IE Department Travel",201,"Faculty Administration","International Education",20]
["International Education ",3041,"QUEEN ELIZABETH SCHOLARS","22505-4-4","IE Scholarships - Queen Elizabeth",201,"Faculty Administration","International Education",20]
["International Education ",3042,"QES VIU WAIVED TUITION","22505-4-5","IE Scholarships - QES - Waived tuition",201,"Faculty Administration","International Education",20]
["International Education ",3043,"KEFEP - KENYA","22550-1-26","IE EAFS - KEFEP EAFS - Kenya",223,"Field Schools","International Education",20]
["International Education ",3044,"SAGE - BELIZE","22545-3-1","IE Global Engagement - SAGE - Belize",219,"Contract Activity","International Education",20]
["International Education ",3045,"PACIFIC ALLIANCE","22545-5-1","IE Global Engagement - Pacific Alliance - Chile","219","Contract Activity","International Education","20"]
["International Education ",3046,"YOUNG AFRICA WORKS - KENYA","22545-4-1","IE Global Engagement- Young Africa Works- Kenya",219,"Contract Activity","International Education",20]
["International Education ",3060,"ED. ABROAD & PROJ MNGMT","22550-1-1","IE Education Abroad and Field Schools",223,"Field Schools","International Education",20]
["International Education ",3061,"GLOBAL ENGAGEMENT ","22545-1-1","IE Global Engagement",201,"Faculty Administration","International Education",20]
["International Education ",3070,"ERM TRAVEL SUPPORT","22501-3-1","IE ERM Travel Support Project",201,"Faculty Administration","International Education",20]
["International Education ",3073,"VIETNAM - TRA VINH","22545-6-1","IE Global Engagement - TRA NINH - Vietnam ","219","Contract Activity","International Education","20"]
["International Education ",3090,"INT'L MARKETING PROGRAMS","22530-1-1","IE International Marketing",201,"Faculty Administration","International Education",20]
["International Education ",3092,"MAL.INTERNATIONALIZATION","22545-2-1","IE Global Engagement - Internationalization",201,"Faculty Administration","International Education",20]
["International Education ",3093,"OVERSEAS TRAVEL STIPEND","22501-2-2","IE Department Travel Stipends",201,"Faculty Administration","International Education",20]
["International Education ",3094,"EXCHANGE PROGRAMS","22550-1-2","IE EAFS - Exchange Programs",223,"Field Schools","International Education",20]
["International Education ",3095,"ACADEMIC PAID BY IE","22505-3-1","IE Academic Transfers",201,"Faculty Administration","International Education",20]
["International Education ",3096,"ABE PAID BY IE","22505-3-2","IE ABE Transfers",201,"Faculty Administration","International Education",20]
["International Education ",3098,"STU.FEES-HOLDING ACCOUNT","22505-2-2","IE International Student Fee - Holding",201,"Faculty Administration","International Education",20]
["International Education ",3099,"INTER ED INDIV. STUDENTS","22505-2-1","IE International Student Revenues",201,"Faculty Administration","International Education",20]
["International Education ",3100,"INTERNATIONAL ADMISSIONS","22522-1-1","IE International Admissions",217,"Student Support and Services","International Education",20]
["International Education ",3101,"INTERNATIONAL RETENTION","22515-1-2","IE Centre for Intercultural Studies",201,"Faculty Administration","International Education",20]
["International Education ",3110,"GLOBAL STUDIES INTERNSHIP","22550-1-19","IE EAFS - Global Studies Internship",223,"Field Schools","International Education",20]
["International Education ",3111,"INTERNAT'L ED: GLOBAL ST.","22550-1-23","IE EAFS - International Ed EAFS - Global Studies",223,"Field Schools","International Education",20]
["International Education ",3112,"MBA PROGRAM","22510-2-1","IE Master of Business Administration",208,"Instruction"]
["International Education ",3114,"MA SUSTAIN.LEISURE MGMT","22510-3-1","IE Master of Arts in Sustainable Leisure Management",208,"Instruction"]
["International Education ",3116,"MASTERS ED - INTL PERSPEC","22510-4-1","IE Master of Education International Perspective",208,"Instruction"]
["International Education ",3118,"MASTER OF COM PLANN (MCP)","22510-5-1","IE Master of Community Planning",208,"Instruction"]
["International Education ",3120,"MASTER OF GISA (MGISA)","22510-6-1","IE Master of Geographic Information Systems Applications",208,"Instruction"]
["International Education ",3122,"GRAD CERT IN BUSINESS ","22510-7-1","IE Grad Certificate - Business",208,"Instruction"]
["International Education ",3124,"GRAD DIPL INTL TRADE","22510-7-2","IE Grad Diploma - International Trade",208,"Instruction"]
["International Education ",3126,"GRAD DIPL PROJ MGMT","22510-7-3","IE Grad Diploma - Project Management",208,"Instruction"]
["International Education ",3130,"TAMAGAWA  ESL/HORTICULTUR","22540-1-6","IE Group Programs  - Tamagawa ESL/Horticulture ",219,"Contract Activity","International Education",20]
["International Education ",3140,"INDIA OFFICE","22550-1-22","IE EAFS - India Office",223,"Field Schools","International Education",20]
["International Education ",3141,"OWWE - EUROPE OFFICE","22550-1-30","IE EAFS - OWWE EAFS - Europe Office",223,"Field Schools","International Education",20]
["International Education ",3142,"RASHA - EAST ASIA OFFICE","22550-1-32","IE EAFS - RASHA EAFS - East Asia Office",223,"Field Schools","International Education",20]
["International Education ",3143,"GROK EDUC-CHINA OFFICE","22550-1-20","IE EAFS - China Office",223,"Field Schools","International Education",20]
["International Education ",3145,"LATIN AMERICA OFFICE","22550-1-27","IE EAFS - Latin America Office",223,"Field Schools","International Education",20]
["International Education ",3150,"INT'L TRVL/CURRIC GRANTS","22501-2-3","IE Global Engagement Grants ",201,"Faculty Administration","International Education",20]
["International Education ",3155,"FIELD SCHOOL FEE-CLEARING","22550-1-16","IE EAFS - Field School Fee Clearing",223,"Field Schools","International Education",20]
["International Education ",3158,"PRACTICUM SUPPORT","22550-1-31","IE EAFS - Practicum Support",223,"Field Schools","International Education",20]
["International Education ",3159,"STUDY ABROAD EMERGENCY FD","22550-1-34","IE EAFS - Study Abroad Emergency Fund",223,"Field Schools","International Education",20]
["International Education ",3160,"STUDENTS FOR DEVELOPMENT","22505-4-6","IE Scholarships - Students for Development",201,"Faculty Administration","International Education",20]
["International Education ",3163,"ENGR FIELD SCHOOL VIETNAM","22550-1-15","IE EAFS - Engineering Field School Vietnam",223,"Field Schools","International Education",20]
["International Education ",3169,"MGMT WINE FS-EUROPE","22550-1-39","IE EAFS - Wine Field School - Europe",223,"Field Schools","International Education",20]
["International Education ",3170,"ART - NEW YORK","22550-1-5","IE EAFS - Art EAFS - New York",223,"Field Schools","International Education",20]
["International Education ",3172,"HSP/TOUR FIELD SCH-HAWAII","22550-1-21","IE EAFS - HSP/Tourism Field School EAFS - Hawaii",223,"Field Schools","International Education",20]
["International Education ",3173,"VIU IN AFRICA","22550-1-38","IE EAFS - VIU in Africa",223,"Field Schools","International Education",20]
["International Education ",3174,"Crim FS - Philidelphia ","22550-1-8","IE EAFS - Crim - Philidelphia",223,"Field Schools","International Education",20]
["International Education ",3175,"GEOLOGY ABROAD","22550-1-18","IE EAFS - Geology Abroad",223,"Field Schools","International Education",20]
["International Education ",3178,"ANTHROPOLOGY INTERNSHIPS","22550-1-4","IE EAFS - Anthropology Internships",223,"Field Schools","International Education",20]
["International Education ",3179,"BACH EDUCATION ABROAD","22550-1-6","IE EAFS - Bach Education Abroad",223,"Field Schools","International Education",20]
["International Education ",3180,"LIBERAL STUDIES ABROAD","22550-1-28","IE EAFS - Liberal Studies Abroad",223,"Field Schools","International Education",20]
["International Education ",3182,"NURSING FIELD SCH NEPAL","22550-1-29","IE EAFS - Nursing field School Nepal",223,"Field Schools","International Education",20]
["International Education ",3183,"BUSINESS FIELD SCH-CHINA","22550-1-9","IE EAFS - Business Field School EAFS - China",223,"Field Schools","International Education",20]
["International Education ",3184,"CULINARY FIELD SCH -ITALY","22550-1-13","IE EAFS - Culinary Field School EAFS - Italy",223,"Field Schools","International Education",20]
["International Education ",3185,"ENG/GEOGRAPHY FS ITALY","22550-1-14","IE EAFS - Eng/Geography Field School Italy",223,"Field Schools","International Education",20]
["International Education ",3186,"PE ABROAD","22550-1-40","IE EAFS - PE Abroad",223,"Field Schools","International Education",20]
["International Education ",3187,"SOC/CRIM FS ARIZONA","22550-1-33","IE EAFS - Soc/Crim Field School EAFS - Arizona",223,"Field Schools","International Education",20]
["International Education ",3189,"SWU BIP","22550-1-35","IE EAFS - SWU BIP",223,"Field Schools","International Education",20]
["International Education ",3190,"BAKING - FRANCE","22550-1-7","IE EAFS - Baking EAFS - France",223,"Field Schools","International Education",20]
["International Education ",3191,"GEOGRAPHY ABROAD","22550-1-17","IE EAFS - Geography Abroad",223,"Field Schools","International Education",20]
["International Education ",3192,"HHS FIELD SCH-INDONESIA","22550-1-41","IE EAFS - HHS Field School - Indonesia",223,"Field Schools","International Education",20]
["International Education ",3194,"BUSINESS FS - EUROPE","22550-1-10","IE EAFS - Business Field School EAFS - Europe",223,"Field Schools","International Education",20]
["International Education ",3195,"ANTHROPOLOGY FIELD SCHOOL","22550-1-3","IE EAFS - Anthropology Field School",223,"Field Schools","International Education",20]
["International Education ","2820, 2829","ENGLISH LANGUAGE CENTRE, ESL TUITION ","22508-1-1","IE English Language Centre",208,"Instruction"]
["Library",6800,"LIBRARY","13600-1-1","LIB Library - Department",200,"Academic Administration","Library",10]
["Library",6802,"LIBRARY NON RECURRING","13600-2-2","LIB Library - Non-Recurring licensing",222,"Library Services","Library",10]
["Library",6804,"LIBRARY BOOKS,PERIODICALS","13600-2-1","LIB Library - Books and Periodicals (non-capital)",222,"Library Services","Library",10]
["Library",6810,"SPECIAL COLLECTIONS","13600-2-4","LIB Library - Special Collections",222,"Library Services","Library",10]
["Library",6815,"PHOTO ID","13600-2-3","LIB Library - Photo ID",222,"Library Services","Library",10]
["Library",6820,"SSF DIGITAL ACCESS","13610-1-1","LIB Library SSF - Digital Access",222,"Library Services","Library",10]
["Management",1500,"DEAN - FACULTY OF MGMT","12600-1-1","FOM Faculty Dean's Office",201,"Faculty Administration","Management",10]
["Management",1505,"ADVISING - F OF M ","12601-1-2","FOM Advising",204,"Advising","Management",10]
["Management",1510,"DIRECTED STUDIES - F OF M","12601-3-1","FOM Faculty - Directed Studies",208,"Instruction"]
["Management",1515,"INT'L SECTIONS - MGMT","12601-2-1","FOM Faculty - International Sections",208,"Instruction"]
["Management",1522,"MANAGEMENT-EXTRA SECTIONS","12620-1-2","FOM Management / Law - Extra Sections",208,"Instruction"]
["Management",1525,"ACCOUNTING","12605-1-1","FOM Accounting",208,"Instruction"]
["Management",1530,"ECONOMICS","12610-1-1","FOM Economics",208,"Instruction"]
["Management",1535,"FINANCE/QUME","12615-1-1","FOM Finance / QUME",208,"Instruction"]
["Management",1540,"MANAGEMENT / LAW","12620-1-1","FOM Management / Law",208,"Instruction"]
["Management",1545,"MARKETING","12625-1-1","FOM Marketing",208,"Instruction"]
["Management",1550,"RECREATION/TOUR - F OF M","12630-1-1","FOM Recreation and Tourism",208,"Instruction"]
["Management",1560,"HOSPITALITY - F O M","12635-1-1","FOM Hospitality Management",208,"Instruction"]
["Management",1561,"HOSP.MGMT TRUST/FIELD TRI","12635-4-1","FOM Hospitality Management - Field Trips",223,"Field Schools","Management",10]
["Management",1562,"HOSPITALITY LAB","12635-2-1","FOM Hospitality Management - Lab",208,"Instruction"]
["Management",1563,"DISCOVERY ROOM LAB","12635-3-1","FOM Hospitality Management - Discovery Room Lab",208,"Instruction"]
["Powell River Campus",7600,"ADMINISTRATION POW.RIVER","14600-1-1","PRC Administrator's Office",200,"Academic Administration","Powell River Campus",10]
["Powell River Campus",7604,"POWELL RIVER ST.SERVICES","14608-1-1","PRC Student Services",217,"Student Support and Services","Powell River Campus",10]
["Powell River Campus",7605,"CONTRACTS-SUPPORT STAFF","14605-1-1","PRC Campus Administration",200,"Academic Administration","Powell River Campus",10]
["Powell River Campus",7606,"COMPUTER LAB/SERVICES PR","14630-1-1","PRC Computer Lab",200,"Academic Administration","Powell River Campus",10]
["Powell River Campus",7608,"STUDENT PROGRAMS POW.R.","14608-1-2","PRC Student Programs",217,"Student Support and Services","Powell River Campus",10]
["Powell River Campus",7609,"STUDENT SERVICE TRNG SUPP","14608-1-3","PRC Student Services Training Support",217,"Student Support and Services","Powell River Campus",10]
["Powell River Campus",7634,"FLEXIBLE FTE'S POW.RIVER","14630-1-2","PRC Flexible FTE's",200,"Academic Administration","Powell River Campus",10]
["Powell River Campus",7640,"UT POWELL RIVER","14635-1-1","PRC University Programs",208,"Instruction"]
["Powell River Campus",7642,"HUMAN SERVICES","14630-2-1","PRC Human Services",208,"Instruction"]
["Powell River Campus",7643,"DUAL CREDIT - SD47","14630-4-1","PRC Dual Credit - SD 47",208,"Instruction"]
["Powell River Campus",7644,"PR HOME CARE ASSISTANT","14630-3-1","PRC Home Care Assistant",208,"Instruction"]
["President - Institutional",8860,"PRESIDENT'S CONTINGENCY","11050-1-1","PRES President Institutional - Contingency",101,"Institutional","President - Institutional",10]
["President - Institutional",8862,"INSTITUTIONAL HR LEGAL ","11050-2-1","PRES President Institutional - HR Legal",101,"Institutional","President - Institutional",10]
["President - Office",8800,"PRESIDENT","11000-1-1","PRES President Office",100,"Administration","President - Office",10]
["President - Office",8801,"PRESIDENT'S DEVELOPMENT","11010-1-1","PRES President Initiatives",101,"Institutional","President - Office",10]
["President - Office",8803,"INDIGENOUS SPKR SERIES ","11030-1-2","PRES Communications and External Affairs - Indigenous Speakers Series",100,"Administration","President - Office",10]
["President - Office",8804,"HUMAN RIGHTS & RESP WKPLC","11020-1-1","PRES Diversity, Equity and Human Rights Office",100,"Administration","President - Office",10]
["President - Office",8805,"BRAND AND MARKETING","11040-1-1","PRES Brand and Marketing",100,"Administration","President - Office",10]
["President - Office",8806,"COMMUN. & EXTNL AFFAIRS ","11030-1-1","PRES Communications and External Affairs",100,"Administration","President - Office",10]
["President - Office",8897,"BCBC INTERNSHIP PROGRAM","11010-2-1","PRES BCBC Internship program",101,"Institutional","President - Office",10]
["President - Office",8898,"SOCIAL INNOVATION","11010-4-1","PRES Social Innovation",101,"Institutional","President - Office",10]
["President - Office",8899,"STRATEGIC PLANNING ","11010-5-1","PRES Strategic Planning",101,"Institutional","President - Office",10]
["Provost and VP Academic - Office",1007,"VP ACADEMIC - PRO D","12000-1-2","PVPA Professional Development",200,"Academic Administration","Provost and VP Academic - Office",10]
["Provost and VP Academic - Office",1010,"PROVOST & VPA","12000-1-1","PVPA Office",200,"Academic Administration","Provost and VP Academic - Office",10]
["Provost and VP Academic - Office",1012,"ASSOCIATE VP ACADEMIC","14000-1-1","PVPA - AVPA Office",200,"Academic Administration","Provost and VP Academic - Office",10]
["Provost and VP Academic - Office",1018,"INTERIM PROVOST & VPA-PD","12000-1-3","PVPA Interim PVPA Professional Development",200,"Academic Administration","Provost and VP Academic - Office",10]
["Provost and VP Academic - Office",1019,"ACTING ASSOC. VPA - PD","14000-1-2","PVPA - AVPA Interim AVPA Professional Development",200,"Academic Administration","Provost and VP Academic - Office",10]
["PVPA - Central. Academic Units",1015,"UNIVERSITY PLAN/ANALYSIS","14200-1-1","PVPA-CAU UPA University Planning and Analysis",200,"Academic Administration","PVPA - Centralized Academic Units",10]
["PVPA - Central. Academic Units",1016,"PROGRAM REVIEW","14205-1-1","PVPA-CAU UPA Programs - Review",218,"Program Review","PVPA - Centralized Academic Units",10]
["PVPA - Central. Academic Units",1033,"WRITING CENTRE","14010-2-1","PVPA-CAU AVPA Initiatives - Writing Centre",210,"Writing Centre","PVPA - Centralized Academic Units",10]
["PVPA - Central. Academic Units",1035,"DUAL CREDIT","14010-3-1","PVPA-CAU AVPA Initiatives - Dual Credit",200,"Academic Administration","PVPA - Centralized Academic Units",10]
["PVPA - Central. Academic Units",1038,"AVPA INITIATIVES","14010-1-1","PVPA-CAU AVPA Initiatives",200,"Academic Administration","PVPA - Centralized Academic Units",10]
["PVPA - Central.Academic Units",1017,"CURRICULUM DEV. FUND","12015-4-1","PVPA-CAU Curriculum Development Fund",200,"Academic Administration","PVPA - Centralized Academic Units",10]
["PVPA - Central.Academic Units",1022,"UT INSTR.DELIVERY TRAVEL","12015-2-1","PVPA-CAU Travel - UT Instructional Delivery",200,"Academic Administration","PVPA - Centralized Academic Units",10]
["PVPA - Central.Academic Units",1029,"PRO-D UBC DOC EDUCATION","12015-3-1","PVPA-CAU Professional Development - UBC Doctor Education",200,"Academic Administration","PVPA - Centralized Academic Units",10]
["PVPA - Central.Academic Units",1030,"ACADEMIC INST. ADMIN","12015-1-1","PVPA-CAU Provost Contingency",200,"Academic Administration","PVPA - Centralized Academic Units",10]
["PVPA - Central.Academic Units",1032,"PVPA INITIATIVES","12010-1-1","PVPA-CAU PVPA Initiatives",200,"Academic Administration","PVPA - Centralized Academic Units",10]
["PVPA - Central.Academic Units",1034,"THEATRE OPERATIONS","12015-5-1","PVPA-CAU Theatre Operations",200,"Academic Administration","PVPA - Centralized Academic Units",10]
["PVPA - Central.Academic Units",1042,"INSTR.RECRUITMENT-TRAVEL","12015-2-2","PVPA-CAU Travel - Instructional Recruitment",200,"Academic Administration","PVPA - Centralized Academic Units",10]
["Registration",6900,"REGISTRATION","13700-1-1","REG Registration",200,"Academic Administration","Registration Services",10]
["Registration",6901,"Recruitment & Advising","13750-1-1","REG Recruitment & Advising",200,"Academic Administration","Registration Services",10]
["Registration",6905,"CONVOCATION","13705-1-1","REG Convocation",200,"Academic Administration","Registration Services",10]
["Schlshp Rsrch & Creatv Actvy",1020,"RESEARCH OFFICE","15000-1-1","SRCA Research Office",216,"Research Administration","Scholarship, Research and Creative Activity",10]
["Schlshp Rsrch & Creatv Actvy",1021,"ANIMAL CARE","15005-1-1","SRCA Animal Care",216,"Research Administration","Scholarship, Research and Creative Activity",10]
["Schlshp Rsrch & Creatv Actvy",1023,"RESEARCH ETHICS BOARD ","15005-2-1","SRCA Research Ethics Board",216,"Research Administration","Scholarship, Research and Creative Activity",10]
["Schlshp Rsrch & Creatv Actvy",1024,"VIU BIOSAFETY ","15005-3-1","SRCA Biosafety",216,"Research Administration","Scholarship, Research and Creative Activity",10]
["Schlshp Rsrch & Creatv Actvy",1027,"STUDENT CONFERENCES ","15020-2-1","SRCA Student Conferences",216,"Research Administration","Scholarship, Research and Creative Activity",10]
["Schlshp Rsrch & Creatv Actvy",1028,"AVP SCH/COMM ENGAGEMT PD","15000-1-2","SRCA AVP Professional Development",216,"Research Administration","Scholarship, Research and Creative Activity",10]
["Schlshp Rsrch & Creatv Actvy",1050,"TRAVEL/CONFEREN","15020-3-1","SRCA Travel and Conferences",216,"Research Administration","Scholarship, Research and Creative Activity",10]
["Schlshp Rsrch & Creatv Actvy",1055,"SSF SRCA EXP LEARNING","15001-1-1","SRCA SSF Funds - Experiential Learning",216,"Research Administration","Scholarship, Research and Creative Activity",10]
["Schlshp Rsrch & Creatv Actvy",1057,"VIURAC RESEARCH FUND","15025-1-1","SRCA VIURAC Research Fund",315,"VIURAC","Scholarship, Research and Creative Activity",10]
["Schlshp Rsrch & Creatv Actvy",1065,"SCHOLARLY RESEA","15020-1-1","SRCA Scholarly Research",216,"Research Administration","Scholarship, Research and Creative Activity",10]
["Science & Technology",2300,"DEAN, SCIENCE AND TECH","12700-1-1","ST Faculty Dean's Office",201,"Faculty Administration","Science and Technology",10]
["Science & Technology",2301,"FACULTY ADMINISTRATION","12700-2-1","ST Faculty Administration",201,"Faculty Administration","Science and Technology",10]
["Science & Technology",2303,"SCIENCE/TECH ADVISING","12701-1-2","ST Faculty Advising",204,"Advising","Science and Technology",10]
["Science & Technology",2305,"BAMFIELD FELLOWSHIPS","12701-1-5","ST Bamfield - Fellowships",201,"Faculty Administration","Science and Technology",10]
["Science & Technology",2306,"DIRECTED STUDIES-SCIENCE","12701-3-1","ST Faculty - Directed Studies",208,"Instruction"]
["Science & Technology",2310,"MATH","12745-1-1","ST Mathematics",208,"Instruction"]
["Science & Technology",2313,"MATH CENTRE","12745-2-1","ST Math Centre",208,"Instruction"]
["Science & Technology",2315,"INT'L SECTIONS - SCIENCE","12701-2-1","ST Faculty - International Sections",208,"Instruction"]
["Science & Technology",2320,"CHEMISTRY","12715-1-1","ST Chemistry",208,"Instruction"]
["Science & Technology",2325,"FUMEHOOD HAZ.WASTE DISPOS","12701-1-4","ST Fumehood Hazardous Waste Disposal",201,"Faculty Administration","Science and Technology",10]
["Science & Technology",2326,"PHYSICS","12750-1-1","ST Physics",208,"Instruction"]
["Science & Technology",2327,"ENGINEERING DEGREE PROGR","12730-1-1","ST Engineering",208,"Instruction"]
["Science & Technology",2340,"COMPUTER SCIENCE","12720-1-1","ST Computer Science",208,"Instruction"]
["Science & Technology",2350,"FORESTRY","12740-1-1","ST Forestry",208,"Instruction"]
["Science & Technology",2360,"BIOLOGY","12710-1-1","ST Biology",208,"Instruction"]
["Science & Technology",2380,"AQUACULTURE","12735-1-1","ST Fisheries and Aquaculture",208,"Instruction"]
["Science & Technology",2386,"RESOURCE MGMT/PROTECTION","12755-1-1","ST Resource Management and Protection",208,"Instruction"]
["Science & Technology",2393,"GEOLOGY","12725-1-1","ST Earth Science / Geology",208,"Instruction"]
["Social Sciences",1800,"DEAN, SOCIAL SCIENCES","12800-1-1","SS Faculty Dean's Office",201,"Faculty Administration","Social Sciences",10]
["Social Sciences",1801,"SOC SCI RECRUIT/RETENTION","12801-1-4","SS Recruitment and Retention",201,"Faculty Administration","Social Sciences",10]
["Social Sciences",1804,"BUILDING 355 SUPPORT","12801-1-3","SS Building 355 Support",201,"Faculty Administration","Social Sciences",10]
["Social Sciences",1810,"LIBERAL STUDIES","12825-1-1","SS Liberal Studies",208,"Instruction"]
["Social Sciences",1811,"SOC SCI INTERDISCIPLINARY","12820-1-1","SS Interdisciplinary Studies",208,"Instruction"]
["Social Sciences",1812,"DIRECT STUDIES SOCIAL SCI","12801-3-1","SS Faculty - Directed Studies",208,"Instruction"]
["Social Sciences",1815,"INT'L SECTIONS SOCIAL SCI","12801-2-1","SS Faculty - International Sections",208,"Instruction"]
["Social Sciences",1836,"PHILOSOPHY","12830-1-1","SS Philosophy ",208,"Instruction"]
["Social Sciences",1840,"ANTHROPOLOGY","12805-1-1","SS Anthropology",208,"Instruction"]
["Social Sciences",1843,"SOCIOLOGY","12845-1-1","SS Sociology ",208,"Instruction"]
["Social Sciences",1844,"CBAIR","12801-4-1","SS Community Based Applied Interdisciplinary Research",201,"Faculty Administration","Social Sciences",10]
["Social Sciences",1846,"CRIMINOLOGY","12810-1-1","SS Criminology",208,"Instruction"]
["Social Sciences",1849,"GEOGRAPHY","12815-1-1","SS Geography",208,"Instruction"]
["Social Sciences",1855,"POLITICAL STUDIES","12835-1-1","SS Political Studies",208,"Instruction"]
["Social Sciences",1861,"PSYCHOLOGY","12840-1-1","SS Psychology",208,"Instruction"]
["Social Sciences",1880,"B.A. ADVISING","12801-1-2","SS Faculty - Advising",204,"Advising","Social Sciences",10]
["Student Affairs",5070,"ATHLETICS","15580-1-1","SA Athletics and Recreation Department",200,"Academic Administration","Student Affairs",10]
["Student Affairs",5071,"OUTDOOR RECREATION","15587-1-1","SA Outdoor Recreation",217,"Student Support and Services","Student Affairs",10]
["Student Affairs",5072,"FITNESS AND INTRAMURALS","15586-1-1","SA Recreation - Fitness",217,"Student Support and Services","Student Affairs",10]
["Student Affairs",5073,"GYM MANAGEMENT","15585-1-1","SA Gym Management",217,"Student Support and Services","Student Affairs",10]
["Student Affairs",5074,"STUDENT ACTIVITIES","15588-1-1","SA Athletics",217,"Student Support and Services","Student Affairs",10]
["Student Affairs",5076,"ATHLETICS FUNDRAISING","15581-1-1","SA Athletics and Recreation Fundraising",217,"Student Support and Services","Student Affairs",10]
["Student Affairs",5077,"NATIONAL TRAVEL POOL","15581-2-1","SA National Travel Pool",217,"Student Support and Services","Student Affairs",10]
["Student Affairs",5078,"SPORTS DEVELOPMENT CENTRE","15581-3-1","SA Sports Development Centre",217,"Student Support and Services","Student Affairs",10]
["Student Affairs",5079,"STUDENT ACTIVITY FEE","15580-2-1","SA Athletics and Recreation Department - Student Activity Fee",200,"Academic Administration","Student Affairs",10]
["Student Affairs",5080,"GOLF","15588-5-3","SA Athletics - Club Golf",217,"Student Support and Services","Student Affairs",10]
["Student Affairs",5083,"MEN'S BASKETBALL","15588-2-1","SA Men's Basketball",217,"Student Support and Services","Student Affairs",10]
["Student Affairs",5084,"WOMEN'S BASKETBALL","15588-2-2","SA Women's Basketball",217,"Student Support and Services","Student Affairs",10]
["Student Affairs",5085,"MEN'S VOLLEYBALL","15588-4-1","SA Men's Volleyball",217,"Student Support and Services","Student Affairs",10]
["Student Affairs",5086,"WOMEN'S VOLLEYBALL","15588-4-2","SA Women's Volleyball",217,"Student Support and Services","Student Affairs",10]
["Student Affairs",5087,"MEN'S SOCCER","15588-3-1","SA Men's Soccer",217,"Student Support and Services","Student Affairs",10]
["Student Affairs",5088,"WOMEN'S SOCCER","15588-3-2","SA Women's Soccer",217,"Student Support and Services","Student Affairs",10]
["Student Affairs",5089,"BADMINTON","15588-5-1","SA Athletics - Club Badminton",217,"Student Support and Services","Student Affairs",10]
["Student Affairs",5090,"CLUB SPORT PROGRAMS","15588-5-7","SA Athletics - Club Sport Programs","217","Student Support and Services","Student Affairs","10"]
["Student Affairs",6302,"EX. DIR. STUDENT AFFAIRS","15500-1-1","SA Student Affairs Division",200,"Academic Administration","Student Affairs",10]
["Student Affairs",6303,"FINANCIAL AID","15519-1-1","SA Financial Aid",217,"Student Support and Services","Student Affairs",10]
["Student Affairs",6304,"CAMPUS CAREER CENTRE","15555-1-1","SA Centre for Experiential Learning",217,"Student Support and Services","Student Affairs",10]
["Student Affairs",6305,"CONDUCT","15522-1-1","SA Student Conduct - Administration",217,"Student Support and Services","Student Affairs",10]
["Student Affairs",6306,"WORK-OP PROGRAM","15558-1-1","SA On Campus Employment - Work Op",217,"Student Support and Services","Student Affairs",10]
["Student Affairs",6307,"FOUNDATION S+B MATCHING","15519-2-1","SA Foundation Matching",217,"Student Support and Services","Student Affairs",10]
["Student Affairs",6313,"COMMUNITY ENGAGEMENT","15501-3-1","SA Community Engagement",217,"Student Support and Services","Student Affairs",10]
["Student Affairs",6320,"COUNSELLING","15517-1-1","SA Student Services Counselling",217,"Student Support and Services","Student Affairs",10]
["Student Affairs",6326,"PRIOR LEARNING ASSESSMENT","15501-2-1","SA Prior Learning Assessment",217,"Student Support and Services","Student Affairs",10]
["Student Affairs",6333,"CANADA STUDENT GRANT","25519-2-1","SA Financial Aid - Other - Canada Student Grant",217,"Student Support and Services","Student Affairs",20]
["Student Affairs",6334,"EXTRAORDINARY ACCOMMODATI","15518-1-2","SA Extraordinary Accommodations",217,"Student Support and Services","Student Affairs",10]
["Student Affairs",6335,"ACCCESSIBILITY SERVICES","15518-1-1","SA Accessibility Services",217,"Student Support and Services","Student Affairs",10]
["Student Affairs",6336,"INTERPRETING SERVICES","15518-1-4","SA Interpreting",217,"Student Support and Services","Student Affairs",10]
["Student Affairs",6337,"PEER HELPERS","15516-1-2","SA Peer Helpers",217,"Student Support and Services","Student Affairs",10]
["Student Affairs",6338,"LEARNING DISABIL.ASMT N/R","15518-1-5","SA Learning Disability Assessment",217,"Student Support and Services","Student Affairs",10]
["Student Affairs",6339,"INTED ACCESSBLTY SERVICES","15518-1-3","SA International Accessibility Services",217,"Student Support and Services","Student Affairs",10]
["Student Affairs",6340,"EDUCATIONAL ASSESSMENTS","15516-1-1","SA Assessment and Invigilation",217,"Student Support and Services","Student Affairs",10]
["Student Affairs",6350,"HEALTH AND WELLNESS CTR","15520-1-1","SA Health and Wellness Centre",217,"Student Support and Services","Student Affairs",10]
["Student Affairs",6397,"SCHOLARSHIPS","15519-2-2","SA Scholarships",217,"Student Support and Services","Student Affairs",10]
["Student Affairs",6398,"S/B EXECUTIVE FUNDS","15519-2-3","SA Executive Scholarships",217,"Student Support and Services","Student Affairs",10]
["Student Affairs",6399,"TUITION BURSARY","15519-2-4","SA Tuition Bursaries",217,"Student Support and Services","Student Affairs",10]
["Student Affairs",6400,"C0-OP EDUCATION","15557-3-1","SA Internships - Education",224,"Field Experience / Practicum","Student Affairs",10]
["Student Affairs",6401,"CO-OP: CRIMINOLOGY","15557-2-1","SA Internships - Criminology",224,"Field Experience / Practicum","Student Affairs",10]
["Student Affairs",6402,"CO-OP: COMPUTER SCIENCE","15556-1-1","SA Co-Op Programs - Computer Science",225,"Co-Op programs","Student Affairs",10]
["Student Affairs",6403,"CO-OP: PHYSICAL EDUCATION","15557-7-1","SA Internships - Physical Education",224,"Field Experience / Practicum","Student Affairs",10]
["Student Affairs",6404,"CO-OP: CREATIVE WRITING","15557-1-1","SA Internships - Creative Writing",224,"Field Experience / Practicum","Student Affairs",10]
["Student Affairs",6405,"CO-OP: REC/TOUR","15556-5-1","SA Co-Op Programs - Rec and Tourism",225,"Co-Op programs","Student Affairs",10]
["Student Affairs",6406,"CO-OP: CULINARY ARTS","15556-2-1","SA Co-Op Programs - Culinary Arts",225,"Co-Op programs","Student Affairs",10]
["Student Affairs",6407,"CO-OP: HOSPITALITY","15556-4-1","SA Co-Op Programs - Hospitality",225,"Co-Op programs","Student Affairs",10]
["Student Affairs",6408,"CO-OP: BAKING","15556-6-1","SA Co-Op Programs - Baking",225,"Co-Op programs","Student Affairs",10]
["Student Affairs",6409,"CO-OP: PHILOSOPHY","15557-6-1","SA Internships - Philosophy",224,"Field Experience / Practicum","Student Affairs",10]
["Student Affairs",6410,"CO-OP: INTERIOR DESIGN","15557-5-1","SA Internships - Interior Design",224,"Field Experience / Practicum","Student Affairs",10]
["Student Affairs",6411,"CO-OP: ENGINEERING","15556-3-1","SA Co-Op Programs - Engineering",225,"Co-Op programs","Student Affairs",10]
["Student Affairs",6412,"CO-OP: GRAPHIC DESIGN","15557-4-1","SA Internships  - Graphic Design",224,"Field Experience / Practicum","Student Affairs",10]
["Student Affairs",6415,"NEW STUDENT ORIENTATION","15555-2-1","SA New Student Orientation",217,"Student Support and Services","Student Affairs",10]
["Student Affairs",6430,"SSF HEALTH AND WELLNESS","15520-2-1","SA SSF Funds (HW) - Health and Wellness",217,"Student Support and Services","Student Affairs",10]
["Student Affairs",6440,"SSF EXPERIENTIAL LEARNING","15550-2-1","SA SSF Funds (EL) - Co-Curricular Engagement and Learning",217,"Student Support and Services","Student Affairs",10]
["Student Affairs",6441,"SSF EXP LEARNING RESEARCH","15550-2-2","SA SSF Funds (EL) - Research","217","Student Support and Services","Student Affairs","10"]
["Trades",3200,"DEAN,TRADES/APPLIED TECH","12900-1-1","TAT Faculty Dean's Office",201,"Faculty Administration","Trades and Applied Technology",10]
["Trades",3299,"TRADES - HOLDING ACCOUNT","12901-1-2","TAT Faculty Holding Account",201,"Faculty Administration","Trades and Applied Technology",10]
["Trades",3320,"CULINARY ARTS/BAKING","12920-1-1","TAT Culinary Arts",208,"Instruction"]
["Trades",3322,"CUL COMPETITIONS-FIELD TR","12920-1-2","TAT Culinary Arts - Nanaimo - Competitions & Field Trips",223,"Field Schools","Trades and Applied Technology",10]
["Trades",3700,"TRADES AND APPRENTICESHIP","12900-2-1","TAT Enrolment Services and Operations",201,"Faculty Administration","Trades and Applied Technology",10]
["Trades",3720,"HORTICULTURE","12945-1-1","TAT Horticultural Technician",208,"Instruction"]
["Trades",3728,"CARPENTRY","12915-1-1","TAT Carpentry",208,"Instruction"]
["Trades",3729,"TRADES DISCOVERY NAN","12972-1-1","TAT Trades Discovery - Nanaimo",208,"Instruction"]
["Trades",3761,"AUTO SERVICE TECH","12910-1-1","TAT Automotive Service Technician",208,"Instruction"]
["Trades",3765,"H.D./COMMERCIAL TRANSPORT","12940-1-1","TAT Heavy Mechanical Trades",208,"Instruction"]
["Trades",3770,"MARINE/INBOARD/OUTBOARD","12955-1-1","TAT Motorcycle and Marine Technician",208,"Instruction"]
["Trades",3780,"WELDING","12975-1-1","TAT Welding",208,"Instruction"]
["Trades",3781,"WELD FOUNDATION COWICHAN","12975-2-1","TAT Welding - Cowichan",208,"Instruction"]
["Trades",3785,"ELECTRICIAN","12925-1-1","TAT Electrician",208,"Instruction"]
["Trades",3790,"HAIRDRESSING","12930-1-1","TAT Hairdressing",208,"Instruction"]
["Trades",3791,"HAIRDRESSING STUDENT KITS","12930-1-2","TAT Hairdressing - Student Kits",208,"Instruction"]
["Trades",4010,"CULINARY ARTS COW","12920-2-1","TAT Culinary Arts - Cowichan",208,"Instruction"]
["Trades",4013,"CARPENTRY COWICHAN","12915-2-1","TAT Carpentry - Cowichan",208,"Instruction"]
["Trades",4014,"TRADES DISCOVERY COW","12972-2-1","TAT Trades Discovery - Cowichan",208,"Instruction"]
["Trades",4016,"REFRIDGTN A/C MECH. COW","12970-1-1","TAT Refrigeration Mechanic",208,"Instruction"]
["Trades",4030,"CULINARY ARTS-POWELL RIV","12920-3-1","TAT Culinary Arts - Powell River",208,"Instruction"]
["Trades",4031,"WELDING-POWELL RIVER","12975-3-1","TAT Welding - Powell River",208,"Instruction"]
["Trades",4032,"AUTO SV TECH-POWELL RIVER","12910-2-1","TAT Automotive Service Technician - Powell River",208,"Instruction"]
["Trades",4033,"CARPENTRY-POWELL RIVER","12915-3-1","TAT Carpentry - Powell River",208,"Instruction"]
["Trades",4060,"OFFICE ADMINISTRATION","12905-1-1","TAT Office Administration",208,"Instruction"]
["Trades",4065,"ITAS","12950-1-1","TAT Information Technology and Applied Systems",208,"Instruction"]
["University Relations",8808,"ADVANCEMENT OFFICE","11505-1-1","CP Advancement Services",100,"Administration","Community Partnerships",10]
["University Relations",8815,"ALUMNI RELATIONS","11510-1-1","CP Alumni Relations",100,"Administration","Community Partnerships",10]
["University Relations",8816,"CAMPAIGN","11502-2-1","CP Imagine VIU Campaign",101,"Institutional","Community Partnerships",10]
["University Relations",8817,"CALL CENTRE","11510-2-1","CP Call Centre",100,"Administration","Community Partnerships",10]
["University Relations",8900,"COMMUNITY PARTNERSHIPS ","11500-1-1","CP Community Partnerships Division",100,"Administration","Community Partnerships",10]
["University Relations",8907,"SPONSORSHIP","11503-1-1","CP Sponsorship - Nanaimo",101,"Institutional","Community Partnerships",10]
["University Relations",8908,"CANADA LEARNING BOND","11501-1-1","CP Canada Learning Bond",101,"Institutional","Community Partnerships",10]
["University Relations",9625,"MILNER INVESTMENT INCOME","11554-1-3","CP MGW Society - Investment Income",100,"Administration","Community Partnerships",10]
["University Relations",9629,"VOLUNTEER EXPENSES","11553-1-1","CP Milner - Volunteers",100,"Administration","Community Partnerships",10]
["University Relations",9630,"HOUSE RENTAL","11552-1-4","CP Milner - House Rental",100,"Administration","Community Partnerships",10]
["University Relations",9631,"NURSERY/PLANT PRODUCTION","11552-1-6","CP Milner - Nursery and Plant Production",100,"Administration","Community Partnerships",10]
["University Relations",9632,"GIFT SHOP","11552-1-2","CP Milner - Gift Shop",100,"Administration","Community Partnerships",10]
["University Relations",9634,"ADMISSION","11552-1-1","CP Milner - Public Admissions",100,"Administration","Community Partnerships",10]
["University Relations",9635,"MILNER GARDENS OPERATIONS","11550-2-1","CP Milner Gardens - Operations",100,"Administration","Community Partnerships",10]
["University Relations",9636,"OFFICE ADMINISTRATION","11550-1-1","CP Milner Gardens - Administration",100,"Administration","Community Partnerships",10]
["University Relations",9637,"TEA ROOM","11552-1-3","CP Milner - Tea Room",100,"Administration","Community Partnerships",10]
["University Relations",9638,"MEMBERSHIP","11552-1-5","CP Milner - Memberships",100,"Administration","Community Partnerships",10]
["University Relations",9640,"DONATION/MEMBERSHIP/OTHER","11554-1-2","CP MGW Society - Donations, Memberships & Other",100,"Administration","Community Partnerships",10]
["University Relations",9641,"DONATIONS/DROP BOXES","11554-1-1","CP MGW Society - Donations, Drop Boxes",100,"Administration","Community Partnerships",10]
["University Relations",9642,"MILNER CHRISTMAS MAGIC","11552-2-2","CP Milner - Christmas Magic",100,"Administration","Community Partnerships",10]
["University Relations",9645,"CAP.PROJ-HOUSE RENOVATION","11551-2-1","CP Milner Gardens - Major Projects",100,"Administration","Community Partnerships",10]
["University Relations",9646,"ROOTS & SHOOTS/FOOD GARDN","11552-3-1","CP Milner - Roots & Shoots",100,"Administration","Community Partnerships",10]
["University Relations",9653,"ART & PHOTOGRAPHY","11552-2-3","CP Milner - Art and Photography",100,"Administration","Community Partnerships",10]
["University Relations",9655,"MILNER - SMALL EVENTS","11552-2-1","CP Milner - Small Events",100,"Administration","Community Partnerships",10]
["University Relations",9675,"RESIDENTIAL HOUSE","11551-1-1","CP Milner Gardens - Mill Road Residence",100,"Administration","Community Partnerships",10]
["University Secretariat",8810,"VIU BOARD","11610-1-1","USEC VIU Board",101,"Institutional","University Secretary",10]
["University Secretariat",8811,"UNIVERSITY SECRETARIAT","11600-1-1","USEC University Secretary",100,"Administration","University Secretary",10]
["University Secretariat",8812,"UNIVERSITY SENTATE ","11620-1-1","USEC University Senate",101,"Institutional","University Secretary",10]
["University Secretariat",8813,"PRESIDENTS INSTALLATION","11600-1-2","USEC University Secretary - Presidents Installation","100","Administration","University Secretary","10"]
["#N/A","#N/A","#N/A","11101-1-1","HR Human Resources - Initiatives",101,"Institutional","Human Resources",10]
["#N/A","#N/A","#N/A","11101-2-1","HR Pooled Positions",101,"Institutional","Human Resources",10]
["#N/A","#N/A","#N/A","11102-1-1","HR Training and Professional Development - Institutional",101,"Institutional","Human Resources",10]
["#N/A","#N/A","#N/A","11110-1-1","HR Employee Relations Department",100,"Administration","Human Resources",10]
["#N/A","#N/A","#N/A","11111-1-1","HR Collective Agreement / Legislation Interpretation and Application",101,"Institutional","Human Resources",10]
["#N/A","#N/A","#N/A","11120-1-1","HR External Legal Counsel And Mediation/Arbitration",101,"Institutional","Human Resources",10]
["#N/A","#N/A","#N/A","11125-1-1","HR Investigations",101,"Institutional","Human Resources",10]
["#N/A","#N/A","#N/A","11130-1-1","HR Performance Management",101,"Institutional","Human Resources",10]
["#N/A","#N/A","#N/A","11150-1-1","HR Human Resources Department",100,"Administration","Human Resources",10]
["#N/A","#N/A","#N/A","11150-2-1","HR Human Resources Department - Systems and Projects",100,"Administration","Human Resources",10]
["#N/A","#N/A","#N/A","11151-1-1","HR Employee Wellbeing",101,"Institutional","Human Resources",10]
["#N/A","#N/A","#N/A","11151-2-1","HR Employee Wellbeing - Health",101,"Institutional","Human Resources",10]
["#N/A","#N/A","#N/A","11151-4-1","HR Employee Wellbeing - Benefits",101,"Institutional","Human Resources",10]
["#N/A","#N/A","#N/A","11155-1-1","HR Leave & Attendance Management",101,"Institutional","Human Resources",10]
["#N/A","#N/A","#N/A","11155-2-1","HR Leave & Attendance Management - ADMIN",101,"Institutional","Human Resources",10]
["#N/A","#N/A","#N/A","11155-3-1","HR Leave & Attendance Management - BCGEU",101,"Institutional","Human Resources",10]
["#N/A","#N/A","#N/A","11155-4-1","HR Leave & Attendance Management - CUPE",101,"Institutional","Human Resources",10]
["#N/A","#N/A","#N/A","11155-5-1","HR Leave & Attendance Management - VIUFA",101,"Institutional","Human Resources",10]
["#N/A","#N/A","#N/A","11165-1-1","HR Recruitment & Job Evaluation",100,"Administration","Human Resources",10]
["#N/A","#N/A","#N/A","11165-2-1","HR Talent Acquisition",100,"Administration","Human Resources",10]
["#N/A","#N/A","#N/A","11165-3-1","HR Orientation",100,"Administration","Human Resources",10]
["#N/A","#N/A","#N/A","11165-4-1","HR Job Evaluation",101,"Institutional","Human Resources",10]
["#N/A","#N/A","#N/A","11502-1-1","CP Annual Campaigns",101,"Institutional","Community Partnerships",10]
["#N/A","#N/A","#N/A","11502-1-2","CP Giving Tuesday Campaign",101,"Institutional","Community Partnerships",10]
["#N/A","#N/A","#N/A","11503-1-2","CP Sponsorship - Cowichan Valley",101,"Institutional","Community Partnerships",10]
["#N/A","#N/A","#N/A","11503-1-3","CP Sponsorship - Parksville-Qualicum",101,"Institutional","Community Partnerships",10]
["#N/A","#N/A","#N/A","11503-1-4","CP Sponsorship - Powell River",101,"Institutional","Community Partnerships",10]
["#N/A","#N/A","#N/A","11503-1-5","CP Sponsorship - Vancouver Island Focus",101,"Institutional","Community Partnerships",10]
["#N/A","#N/A","#N/A","11503-1-6","CP Sponsorship - Provincial Focus",101,"Institutional","Community Partnerships",10]
["#N/A","#N/A","#N/A","11503-1-7","CP Sponsorship - National Focus",101,"Institutional","Community Partnerships",10]
["#N/A","#N/A","#N/A","11505-2-1","CP Gift Officer - Academic and Career Preparation",100,"Administration","Community Partnerships",10]
["#N/A","#N/A","#N/A","11505-2-2","CP Gift Officer - Arts & Humanities",100,"Administration","Community Partnerships",10]
["#N/A","#N/A","#N/A","11505-2-3","CP Gift Officer - Education",100,"Administration","Community Partnerships",10]
["#N/A","#N/A","#N/A","11505-2-4","CP Gift Officer - Health & Human Services",100,"Administration","Community Partnerships",10]
["#N/A","#N/A","#N/A","11505-2-5","CP Gift Officer - International Education",100,"Administration","Community Partnerships",10]
["#N/A","#N/A","#N/A","11505-2-6","CP Gift Officer - Management",100,"Administration","Community Partnerships",10]
["#N/A","#N/A","#N/A","11505-2-7","CP Gift Officer - Science & Technology",100,"Administration","Community Partnerships",10]
["#N/A","#N/A","#N/A","11505-2-8","CP Gift Officer - Social Sciences",100,"Administration","Community Partnerships",10]
["#N/A","#N/A","#N/A","11505-2-9","CP Gift Officer - Trades & Applied Technology",100,"Administration","Community Partnerships",10]
["#N/A","#N/A","#N/A","11515-1-1","CP Donor Relations",100,"Administration","Community Partnerships",10]
["#N/A","#N/A","#N/A","11520-1-1","CP Major Gifts & Legacies",100,"Administration","Community Partnerships",10]
["#N/A","#N/A","#N/A","12101-1-1","ACP Faculty Initiatives",201,"Faculty Administration","Academic and Career Preparation",10]
["#N/A","#N/A","#N/A","12201-1-1","AH Faculty Initiatives",201,"Faculty Administration","Arts and Humanities",10]
["#N/A","#N/A","#N/A","12401-1-1","HHS Faculty Initiatives",201,"Faculty Administration","Health and Human Services",10]
["#N/A","#N/A","#N/A","12401-1-2","HHS Faculty - Initiatives - TBD",201,"Faculty Administration","Health and Human Services",10]
["#N/A","#N/A","#N/A","12600-2-1","FOM Faculty Administration",201,"Faculty Administration","Management",10]
["#N/A","#N/A","#N/A","12601-1-1","FOM Faculty Initiatives",201,"Faculty Administration","Management",10]
["#N/A","#N/A","#N/A","12701-1-1","ST Faculty Initiatives",201,"Faculty Administration","Science and Technology",10]
["#N/A","#N/A","#N/A","12801-1-1","SS Faculty - Initiatives",201,"Faculty Administration","Social Sciences",10]
["#N/A","#N/A","#N/A","12901-1-1","TAT Faculty Initiatives",201,"Faculty Administration","Trades and Applied Technology",10]
["#N/A","#N/A","#N/A","12901-1-3","TAT Faculty Development",201,"Faculty Administration","Trades and Applied Technology",10]
["#N/A","#N/A","#N/A","13730-1-1","REG Admissions & Registration",200,"Academic Administration","Registration Services",10]
["#N/A","#N/A","#N/A","13740-1-1","REG Records & Registration Systems",200,"Academic Administration","Registration Services",10]
["#N/A","#N/A","#N/A","14000-2-1","PVPA - AVPA Business Case Office",200,"Academic Administration","Provost and VP Academic - Office",10]
["#N/A","#N/A","#N/A","14205-2-1","PVPA-CAU UPA Programs - Development",200,"Academic Administration","PVPA - Centralized Academic Units",10]
["#N/A","#N/A","#N/A","14210-1-1","PVPA-CAU UPA Surveys",200,"Academic Administration","PVPA - Centralized Academic Units",10]
["#N/A","#N/A","#N/A","14210-2-1","PVPA-CAU UPA Surveys - Students - NSSE",200,"Academic Administration","PVPA - Centralized Academic Units",10]
["#N/A","#N/A","#N/A","14210-2-2","PVPA-CAU UPA Surveys - Students - BGE",200,"Academic Administration","PVPA - Centralized Academic Units",10]
["#N/A","#N/A","#N/A","14210-3-1","PVPA-CAU UPA Surveys - Institutional",200,"Academic Administration","PVPA - Centralized Academic Units",10]
["#N/A","#N/A","#N/A","14210-3-2","PVPA-CAU UPA Surveys - Institutional - TBD",200,"Academic Administration","PVPA - Centralized Academic Units",10]
["#N/A","#N/A","#N/A","14400-1-1","CC Academic Administrator, Cowichan",200,"Academic Administration","Cowichan Campus",10]
["#N/A","#N/A","#N/A","14410-1-1","CC Campus Operations",200,"Academic Administration","Cowichan Campus",10]
["#N/A","#N/A","#N/A","15501-1-1","SA Student Affairs Division - Initiatives",217,"Student Support and Services","Student Affairs",10]
["#N/A","#N/A","#N/A","15510-1-1","SA Student Services Department",200,"Academic Administration","Student Affairs",10]
["#N/A","#N/A","#N/A","15515-1-1","SA Student Services Advising",204,"Advising","Student Affairs",10]
["#N/A","#N/A","#N/A","15519-2-5","SA Awards - VIU Foundation",217,"Student Support and Services","Student Affairs",10]
["#N/A","#N/A","#N/A","15522-2-1","SA Student Conduct - Education & Training",217,"Student Support and Services","Student Affairs",10]
["#N/A","#N/A","#N/A","15522-3-1","SA Student Conduct - External Investigators",217,"Student Support and Services","Student Affairs",10]
["#N/A","#N/A","#N/A","15550-1-1","SA Student Engagement and Experiential Learning Department",200,"Academic Administration","Student Affairs",10]
["#N/A","#N/A","#N/A","15586-2-1","SA Recreation - Intramurals",217,"Student Support and Services","Student Affairs",10]
["#N/A","#N/A","#N/A","15586-3-1","SA Recreation - Camps",217,"Student Support and Services","Student Affairs",10]
["#N/A","#N/A","#N/A","15588-1-2","SA Athletics - Banquet",217,"Student Support and Services","Student Affairs",10]
["#N/A","#N/A","#N/A","15588-5-4","SA Athletics - Club Hockey",217,"Student Support and Services","Student Affairs",10]
["#N/A","#N/A","#N/A","15588-5-6","SA Athletics - Club Swimming",217,"Student Support and Services","Student Affairs",10]
["#N/A","#N/A","#N/A","16010-1-1","CFOVPA Office - Initiatives",101,"Institutional","CFO and VP Administration - Office",10]
["#N/A","#N/A","#N/A","16110-1-1","IT Operations Department",100,"Administration","Information Technology Services",10]
["#N/A","#N/A","#N/A","16120-2-1","IT Client Services - Institutional",101,"Institutional","Information Technology Services",10]
["#N/A","#N/A","#N/A","16150-2-1","IT Web Management - Institutional",101,"Institutional","Information Technology Services",10]
["#N/A","#N/A","#N/A","16160-2-1","IT Security - Institutional",101,"Institutional","Information Technology Services",10]
["#N/A","#N/A","#N/A","16180-2-1","IT Enterprise Systems - Institutional",101,"Institutional","Information Technology Services",10]
["#N/A","#N/A","#N/A","22210-1-1","AH Art and Design - Interior Design - Other - Student Art Sales",227,"Student Sales","Arts and Humanities",20]
["#N/A","#N/A","#N/A","22210-1-2","AH Art and Design - Interior Design - Other - Visiting Artists Series",208,"Instruction"]
["#N/A","#N/A","#N/A","22215-1-1","AH Art and Design - Visual Art - Other - Student Art Sales",227,"Student Sales","Arts and Humanities",20]
["#N/A","#N/A","#N/A","22215-1-2","AH Art and Design - Visual Art - Other - Visiting Artists Series",208,"Instruction"]
["#N/A","#N/A","#N/A","22501-1-1","IE Department Initiatives",201,"Faculty Administration","International Education",20]
["#N/A","#N/A","#N/A","22505-1-1","IE International Finance",201,"Faculty Administration","International Education",20]
["#N/A","#N/A","#N/A","22510-1-1","IE Graduate Programs Administration",201,"Faculty Administration","International Education",20]
["#N/A","#N/A","#N/A","22550-1-11","IE EAFS - Central Asia Office",223,"Field Schools","International Education",20]
["#N/A","#N/A","#N/A","22601-1-9","FOM General Research - Murray",302,"General Research","Management",20]
["#N/A","#N/A","#N/A","22601-2-2","FOM MBA Funded - TBD",201,"Faculty Administration","Management",20]
["#N/A","#N/A","#N/A","22601-4-3","FOM IPTRN conference",201,"Faculty Administration","Management",20]
["#N/A","#N/A","#N/A","22640-1-1","FOM Graduate Programs Administrator",201,"Faculty Administration","Management",20]
["#N/A","#N/A","#N/A","23710-1-1","REG Summer Session",200,"Academic Administration","Registration Services",20]
["#N/A","#N/A","#N/A","46740-1-1","ANC Food Services - Department",401,"Retail Operations","Ancillary Operations",40]
["#N/A","#N/A","#N/A","46810-1-1","ANC Student Residences - Residence Life",400,"Ancillary Administration","Ancillary Operations",40]
["#N/A","#N/A","#N/A","51010-1-1","PRES Minor Capital",500,"Capital - General","President - Office",50]
["#N/A","#N/A","#N/A","51101-1-1","HR Minor Capital",500,"Capital - General","Human Resources",50]
["#N/A","#N/A","#N/A","51501-1-1","CP Minor Capital",500,"Capital - General","Community Partnerships",50]
["#N/A","#N/A","#N/A","51601-1-1","USEC Minor Capital",500,"Capital - General","University Secretary",50]
["#N/A","#N/A","#N/A","52010-1-1","PVPA-CAU Minor Capital",500,"Capital - General","PVPA - Centralized Academic Units",50]
["#N/A","#N/A","#N/A","52101-1-1","ACP Minor Capital",500,"Capital - General","Academic and Career Preparation",50]
["#N/A","#N/A","#N/A","52201-1-1","AH Minor Capital",500,"Capital - General","Arts and Humanities",50]
["#N/A","#N/A","#N/A","52301-1-1","EDUC Minor Capital",500,"Capital - General","Education",50]
["#N/A","#N/A","#N/A","52401-1-1","HHS Minor Capital",500,"Capital - General","Health and Human Services",50]
["#N/A","#N/A","#N/A","52501-1-1","IE Minor Capital",500,"Capital - General","International Education",50]
["#N/A","#N/A","#N/A","52601-1-1","FOM Minor Capital",500,"Capital - General","Management",50]
["#N/A","#N/A","#N/A","52701-1-1","ST Minor Capital",500,"Capital - General","Science and Technology",50]
["#N/A","#N/A","#N/A","52801-1-1","SS Minor Capital",500,"Capital - General","Social Sciences",50]
["#N/A","#N/A","#N/A","52901-1-1","TAT Minor Capital",500,"Capital - General","Trades and Applied Technology",50]
["#N/A","#N/A","#N/A","53501-1-1","IEE Minor Capital",500,"Capital - General","Indigenous Education and Engagement",50]
["#N/A","#N/A","#N/A","53610-2-1","LIB Library - Minor Capital",500,"Capital - General","Library",50]
["#N/A","#N/A","#N/A","53701-1-1","REG Minor Capital",500,"Capital - General","Registration Services",50]
["#N/A","#N/A","#N/A","54101-1-1","CIEL Minor Capital",500,"Capital - General","Centre for Innovation and Excellence in Learning",50]
["#N/A","#N/A","#N/A","54401-1-1","CC Minor Capital ",500,"Capital - General","Cowichan Campus",50]
["#N/A","#N/A","#N/A","54601-1-1","PRC Minor Capital",500,"Capital - General","Powell River Campus",50]
["#N/A","#N/A","#N/A","55001-1-1","SRCA Minor Capital",500,"Capital - General","Scholarship, Research and Creative Activity",50]
["#N/A","#N/A","#N/A","55501-1-1","SA Minor Capital",500,"Capital - General","Student Affairs",50]
["#N/A","#N/A","#N/A","56010-1-1","CFOVPA Minor Capital",500,"Capital - General","CFO and VP Administration - Office",50]
["#N/A","#N/A","#N/A","56101-1-1","IT Minor Capital",500,"Capital - General","Information Technology Services",50]
["#N/A","#N/A","#N/A","56401-1-1","FSCD Minor Capital",500,"Capital - General","Facilities Services and Campus Development",50]
["#N/A","#N/A","#N/A","56701-1-1","ANC Minor Capital",500,"Capital - General","Ancillary Operations",50]
["#N/A","#N/A","#N/A","57001-1-1","FIN Minor Capital",500,"Capital - General","Financial Services",50]
["#N/A","#N/A","#N/A","88300-1-1","VH High Schools - Due To/From",100,"Administration","International Education",80]
["#N/A","#N/A","#N/A","12015-6-1","PVPA-CAU International Academic Support",200,"Academic Administration","PVPA - Centralized Academic Units",10]
["#N/A","#N/A","#N/A","12827-1-1","SS Global Studies",208,"Instruction"]
["#N/A","#N/A","#N/A","22125-1-1","ACP English Language Learning ",208,"Instruction"]
["#N/A","#N/A","#N/A","25125-1-36","SRCA IH - GILL 101344",310,"Research Contract","Scholarship, Research and Creative Activity",20]
["#N/A","#N/A","#N/A","25155-1-40","SRCA MABRRI BC Parks - Shaw 100968",310,"Research Contract","Scholarship, Research and Creative Activity",20]
["#N/A","#N/A","#N/A","56550-1-3","FSCD CNP - 2122-004 Fleet EV Charge Stations",550,"Capital FMP - Administration","Facilities Services and Campus Development",50]
["#N/A","#N/A","#N/A","56600-1-21","FSCD RC - 2122-022 B120 Enclosed Office Space Paint Shop",550,"Capital FMP - Administration","Facilities Services and Campus Development",50]
["#N/A","#N/A","#N/A","56600-1-22","FSCD RC - 2122-035 Universal Access Improvements",550,"Capital FMP - Administration","Facilities Services and Campus Development",50]
["#N/A","#N/A","#N/A","56650-2-1","FSCD UFO - 2122-074 Cowichan Trade Centre - Business Case ",550,"Capital FMP - Administration","Facilities Services and Campus Development",50]
["Grand Total"]